{"text_format":"1","workbook":"xlsx","n_sheets":51,"sheets":["_context_data_infobox","b_disclaimer","b_Info","b_dashboard","_release","_todo_dev","_dims","_input","_data_storage","_data_flh","_calc","_pivot_output","_colors","_map","_output","m_CompareScenarios","m_CompareTargetCountries","m_CompareRE","m_CompareChains","_user_scenario_changes","b_MarketScanning","_MarketScanning_2","b_CostComponents","b_CompareCosts","b_CompareInputData","r_RegDataMAR","r_RegDataARG","r_RegDataZAF","b_context_demand","b_context_supply","b_context_certification","b_context_sustainability","_country_size","cd_rank_countries","e_view_data_processes","e_view_data_transport","e_view_data_chain","_view_data_regions","a_edit_data_speccost","a_edit_data_process","_dev_map","_agora_colors","_outputs","_results","_index_storage","_scenario_2040_medium","_scenario_2030_low","_scenario_2040_low","_scenario_2030_medium","_scenario_2040_high","_scenario_2030_high"],"not_rendered":{"charts":25,"images":21,"macros":1,"external_links":0,"defined_names":139,"comments":9,"pivot_tables":2},"unopened":[],"bounds":{"document_bytes":16777216,"sheet_cells":100000,"rows_first":2000,"rows_last":500,"rows_between":2000,"halvings":0,"cell_chars":16384,"cell_head_chars":4096},"cells_cut":0,"cells_raw":0,"read":"whole","date_system":"1900"}

{"sheet":"_context_data_infobox","index":0,"n_rows":12,"n_cols":18,"rows_kept":12,"cut":false,"hidden":true,"merged":[]}
["Target Country InfoBox:",null,null,null,null,null,null,"RE generation: ",null,null,"Carbon source: ",null,null,"Water source:",null,null,"Mode of transportation:"]
["country_name","Projected H2 demand [2030]","key_info_1","key_info_2","key_info_3","key_info_4",null,"selection","text",null,"selection","text",null,"selection","text",null,"selection","text"]
["Netherlands","n/a","Port of Rotterdam functions as a central import hub to the European market","Home of the first declared H2 valley in Europe "," ",null,null,"PV tilted","To secure that existing RES-E plants are not withdrawn from existing capacities, electricity should be sourced from new, additional RES-E plants. (How) Can you ensure this additionality of electricity supply?",null,"DAC","How are additional energy demands of DAC sourced (preferably from RES-E plants or excess heat)? Are there any potential land conflicts if deploying this technology? ",null,"Water desalination","How is brine disposal managed? Can chemicals be reduced to a minimum? How are additional energy requirements of desalination plants sourced?",null,"Ship","If you have only one option (ship) displayed in the dropdown menu, a pipeline option to your selected target country does not seem feasible. This might impact your competitiveness towards this country. "]
["Spain","n/a","Both importing and exporting country for H2 & derivatives","Considerable domestic installed electrolyser capacity foreseen by 2030 (4 GW)","Plans to connect to France & Germany via Europe's first offshore green H2 pipeline (H2Med)",null,null,"PV tracking","To secure that existing RES-E plants are not withdrawn from existing capacities, electricity should be sourced from new, additional RES-E plants. (How) Can you ensure this additionality of electricity supply?",null,"Specific costs","CO2 sourcing should not delay the decarbonisation of economic sectors. Is it possible to source it from the air or from unavoidable emissions (e.g. cement industry)?",null,"Specific costs","Is the region affected by water stress? If yes, how is this issue addressed? Could additional water demand lead to rising water costs to the local public?",null,"Pipeline"]
["France","n/a","Updated National Hydrogen Strategy in preparation ","Part of project to build Europe's first offshore pipeline for green H2 from Spain (H2Med)"," ",null,null,"Wind-PV-Hybrid","To secure that existing RES-E plants are not withdrawn from existing capacities, electricity should be sourced from new, additional RES-E plants. (How) Can you ensure this additionality of electricity supply?"]
["Germany","2,8-3,3 Mt","High reliance on H2 imports projected","LNG import infrastructure in development \n(8 terminals in development)","Plans to connect to Spain & Portugal via France with Europe's first offshore green H2 pipeline (H2Med)",null,null,"Wind Offshore","To secure that existing RES-E plants are not withdrawn from existing capacities, electricity should be sourced from new, additional RES-E plants. (How) Can you ensure this additionality of electricity supply?"]
["EU","20 Mt","Large domestic electrolyser capacities foreseen by 2030 (40 GW) ","Half of the hydrogen demand covered with domestic capacities by 2030 (only 10 Mt imports)","Large-scale H2 pipeline infrastructure planned (European H2 Backbone)",null,null,"Wind Onshore","To secure that existing RES-E plants are not withdrawn from existing capacities, electricity should be sourced from new, additional RES-E plants. (How) Can you ensure this additionality of electricity supply?"]
["Japan","3 Mt","High reliance on H2 imports projected","Released the first H2 strategy worldwide in 2017  (Basic Hydrogen Strategy)","Well-developed LNG import infrastructure \n(45 terminals operating)"]
["South Korea","2 Mt","Imports of blue and green H2 from overseas planned from 2030 on ","Goals for share of green H2 in 2030 at 50% & in 2040 at 70%"," "]
["China","35 Mt","Both importing and exporting country for H2 & derivatives","High cost-competitiveness in alkaline electrolysis technology","Well-developed LNG import infrastructure \n(32 terminals operating)"]
["India","11 Mt","Both importing and exporting country for H2 & derivatives","Considerable domestic production capacities of green H2 foreseen by 2030 (5 Mt p/a)","80% of H2 demand expected to be green by 2050"]
["USA","10 Mt","Both importing and exporting country for H2 & derivatives","Goal to become largely independent from H2 imports by 2030-2035","Large-scale H2 pipeline infrastructure already in place (~ 2.600 km) ","Extensive LNG export infrastructure \n(36 terminals operating)"]

{"sheet":"b_disclaimer","index":1,"n_rows":65,"n_cols":17,"rows_kept":65,"cut":false,"hidden":false,"merged":[[17,10,20,17],[22,10,23,17],[34,4,34,5],[35,4,35,5],[50,16,52,18],[31,10,32,17]]}
[]
[]
[]
[null,null,"PTX BUSINESS OPPORTUNITY ANALYSER (PTX BOA) "]
[null,null,"Product details"]
[]
[]
[]
[]
[]
[]
[]
[]
[]
[]
[]
[null,null,"Developed by:",null,"Öko-Institut",null,null,null,null,null,"Disclaimer:"]
[null,null,null,null,"Merzhauser Straße 173",null,null,null,null,null,"The PTX BOA uses technical reports published by third parties. The authors of the tool and Agora Energiewende trust but do not guarantee the accuracy and completeness of the information provided by them.   "]
[null,null,null,null,"D-79100 Freiburg im Breisgau"]
[null,null,null,null,"www.oeko.de"]
[]
[]
[null,null,"On behalf of:",null,"Agora Energiewende",null,null,null,null,null,"All rights reserved to Öko-Institut and Agora Energiewende. The use of the methods and results are only authorised in case Öko-institut and Agora Energiewende is properly cited."]
[null,null,null,null,"Anna-Louisa -Karsch-Str. 2"]
[null,null,null,null,"10178 Berlin "]
[null,null,null,null,"www.agora-energiewende.de",null,null,null,null,null,"Please cite as:"]
[null,null,null,null,null,null,null,null,null,null,"Oeko-Institut, Agora Energiewende & Agora Industry (2023): PTX Business Opportunity Analyser"]
[null,null,"Authors:",null,"Christoph Heinemann ",null,null,null,null,null,"PTX Business Opportunity Analyser"]
[null,null,null,null,"Dr. Roman Mendelevitch",null,null,null,null,null,{"$f":"\"Version \"&release_version","v":"Version 1.0.9"}]
[null,null,null,null,"Markus Haller"]
[null,null,null,null,"Christian Winger"]
[null,null,null,null,"Susanne Krieger",null,null,null,null,null,"This tool uses Excel's macro function. If you have trouble enabling macros, please check the Microsoft website for guidance:"]
[null,null,null,null,"Katharina Göckeler"]
[null,null,null,null,null,null,null,null,null,null,"https://support.microsoft.com/en-gb/topic/a-potentially-dangerous-macro-has-been-blocked-0952faa0-37e7-4316-b61d-5b5ed6024216"]
[null,null,"Last update:",null,{"$f":"release_date","v":"2023-06-21"}]
[null,null,"Version:",null,{"$f":"release_version","v":"1.0.9"},null,null,null,null,null,"Visit our website for data documentation, additional resources and updates:"]
[null,null,null,null,null,null,null,null,null,null,"https://www.agora-energiewende.de/en/publications/business-opportunity-analyser-boa"]
[]
[]
[]
[]
[null,"What functionalities does the PTX Business Analyzer provide to users? "]
[]
[null,"Get an impression of total costs of delivered hydrogen and various derivative molecules of your country of interest to a potential demand country"]
[null,"Analyze the cost components of flexibly selectable process chains and production routes"]
[null,"Compare costs between various production pathways, supply and demand countries on a global scale"]
[null,"Access comprehensive additional context information on relevant aspects for PTX trade such as potential sustainability issues and certification"]
[null,"If required, adjust data points according to your own level of knowledge"]
[]
[]
[null,null,null,null,null,null,null,null,null,null,null,null,null,null,null,null,"Agora Energiewende and \nAgora Industry (2023, forthcoming): \nLevelised cost of hydrogen: Making the application of the LCOH concept more consistent and more useful. "]
[]
[]
[]
[]
[]
[]
[]
[]
[]
[]
[null,"What's in | What's out in the tool's calculations and assumptions?"]
[null,"Information on key points in our assumptions that should be kept in mind when interpreting the results of the tool. "]
[null,"Note that this overview is not comprehensive in the sense that it shows all assumptions at a glance. "]
[null,"Rather, the issues listed are aspects that have emerged in discussions with stakeholders (deep-dive country workshops) prior to the publication of the tool and which we believe require detailed explanation. "]

{"sheet":"b_Info","index":2,"n_rows":82,"n_cols":12,"rows_kept":82,"cut":false,"hidden":false,"merged":[[1,10,1,11],[2,10,2,11],[4,1,10,6],[89,15,89,16],[89,17,89,18],[100,15,100,16],[100,17,100,18],[100,19,100,20],[89,19,89,20],[90,15,90,16],[90,17,90,18],[90,19,90,20],[99,15,99,16],[99,17,99,18],[99,19,99,20]]}
[]
[null,"SPECIFICATION ON SELECTION OPTIONS",null,null,null,null,null,null,null,null,"YOUR SETTINGS"]
[null,null,null,null,null,null,null,null,null,null,"can be re-adjusted on the dashboard"]
[null,"Learn more about the selection options in the dashboard ",null,null,null,null,null,null,null,null,"Supply country:",{"$f":"sel_region_name","v":"Morocco"}]
[null,"Below you will find clarifications on the options you can select in the dashboard menu. \nFor each option, we also note key assumptions that are (not) used in calculations by default and seem important to us for understanding the results. \n\nNote that for various options (e.g. carbon & water sources) you can go into 'Advanced user' mode and show interfaces where you can edit input data according to your own knowledge.",null,null,null,null,null,null,null,null,"Demand country:",{"$f":"sel_country_name","v":"Germany"}]
[null,null,null,null,null,null,null,null,null,null,"RE generation:","[various]"]
[null,null,null,null,null,null,null,null,null,null,"Process chain:",{"$f":"sel_chain","v":"Hydrogen (AEL)"}]
[null,null,null,null,null,null,null,null,null,null,"CO2 source:",{"$f":"sel_secproc_co2","v":"DAC"}]
[null,null,null,null,null,null,null,null,null,null,"Water source:",{"$f":"sel_secproc_water","v":"Water desalination"}]
[null,null,null,null,null,null,null,null,null,null,"Transport mode:",{"$f":"sel_transport","v":"Ship"}]
[null,null,null,null,null,null,null,null,null,null,"Scenario:",{"$f":"sel_scenario","v":"2030 (medium)"}]
[]
[]
[]
[]
[null,"Product (and electrolyzer type)"]
[null,"In the selection menu on the dashboard you can combine each type of electrolyser with each product option."]
[]
[null,"The PTX BOA calculates the landing costs of the corresponding, various PTX products. The tool does not perform a reconversion to hydrogen as landing product by default. "]
[null,"The costs refer to the selected PTX product which is landed in the demand country in the respective molecule form (except for LOHC)."]
[]
[null,"Electrolyser types"]
[null,"AEL","Alkaline electrolyser.  This is the most common technology to date. "]
[null,"PEM","Polymer Electrolyte Membrane Electrolyser. Compared to AEL, PEM is more expensive but can ramp up and down quicker. "]
[null,"SEOC","Solid oxide electrolyser cells. This technology is the most expensive one but efficiency is higher compared to AEL and PEM. "]
[]
[null,"Products"]
[null,"Green Iron","Green Iron is produced in supply country and exported to demand country"]
[null,"Hydrogen","Hydrogen is produced in supply country and exported to demand country"]
[null,"LOHC","Liquid Organic Hydrogen Carriers (LOHC is the only product where a reconversion to hydrogen as landing product is included in the product chain calculations by default)"]
[null,"Methane","Methane (optional including reconversion of methane to hydrogen)  is produced in supply country and exported to demand country"]
[]
[null,"Methanol","Methanol is produced in supply country and exported to demand country"]
[null,"Ammonia","Ammonia (optional including reconversion of ammonia to hydrogen in demand country)  is produced in supply country and exported to demand country"]
[null,"FT e-fuels","Synthetic Fuels using Fischer-Tropsch is produced in supply country and exported to demand country"]
[]
[]
[]
[null,"Renewable electricity source"]
[null,"For your own selection, you can choose from four renewable electricity sources below."]
[null,"The calculation of costs for other supply countries uses by default Wind-PV-Hybrid system as renewable electricity source."]
[]
[null,"PV tilted","Photovoltaic tilted"]
[null,"Wind-PV-Hybrid","mixture of Wind Onshore and photovoltaic capacities: with PV and Wind assumed as perfect compliments. Please note that optimal locations for hybrid power plants are scarce and relatively low total costs based on hybrid powerplants will only account for a limited amount of production potential. "]
[null,"Wind Onshore","Wind power plants onshore"]
[null,"Wind Offshore","Wind power plants offshore"]
[]
[]
[]
[null,"Data year (and cost reduction pathway)"]
[null,"To cover uncertainty and developments over time, we cover two data years with three cost reduction pathways each."]
[]
[null,"2030 or 2040 (low)","Scenarios with high costs reduction mainly for transformation technologies to produce derivatives"]
[null,"2030 or 2040 (medium)","Scenarios with medium costs reduction mainly for transformation technologies to produce derivatives"]
[null,"2030 or 2040 (high)","Scenarios with low costs reduction mainly for transformation technologies to produce derivatives"]
[]
[]
[]
[null,"Carbon source "]
[null,"If your production process requires carbon, you can either provide it by using Direct Air Capture (DAC) or a carbon source with a fixed specific cost. "]
[]
[null,"Direct Air Capture","The tool caculates costs of CO2 based on investment and operating costs for Direct Air Caputure plants"]
[null,"Specific cost of CO2","The tool uses a predefined value for costs of CO2, which is 0,03 US$/kgCO2"]
[]
[]
[]
[null,"Water source"]
[null,"If your production process requires water, you can either provide it by using water from water desalination or by using a water source with a fixed specific cost."]
[]
[null,"Water desalination","The tool caculates costs of water based on investment and operating costs for sea water desalination plants"]
[null,"Specific cost of water","The tool uses a predefined value for costs of CO2, which is 0,00085 US$/kgH2O"]
[]
[]
[]
[null,"Mode of transportation"]
[null,"This option lets you choose between transportation of the molecule you have choosen by ship or by pipeline. "]
[]
[null,"Ship","The ship option is considered feasible in the tool for all distances and all product options. Even if you choose ship as the mode of transportation, results for other supply countries might refer to transport via pipeline if feasible. "]
[null,"Pipeline","A pipeline option is only considered feasible in the tool "]
[null,null,null,"* if the distance between supply and demand country is < 6000km."]
[null,null,null,"* if the product options hydrogen or methane (+ ATR) are selected."]
[null,null,"If there is an existing natural gas pipeline between supply and demand country, the tool assumes costs for a retrofitted pipeline. Otherwise higher costs for new pipelines are considered.   "]

{"sheet":"b_dashboard","index":3,"n_rows":42,"n_cols":13,"rows_kept":42,"cut":false,"hidden":false,"merged":[[19,7,19,8],[22,7,22,8],[23,7,23,8],[24,7,24,8],[20,7,20,8],[26,2,26,3],[51,3,51,4],[29,5,29,8],[30,5,30,8],[51,7,51,10],[33,5,33,8],[27,5,27,8],[31,5,31,8],[32,5,32,8]]}
[null,null,"PTX BUSINESS OPPORTUNITY ANALYSER - DASHBOARD"]
[]
[null,null,"Welcome to our dashboard! "]
[null,null,"Here you will find your central selection options, a first look at your results and links to more detailed result sheets."]
[]
[null,null,"What are the key functions of this sheet?"]
[null,null,"Dropdown selection","   All pink fields are drop-down menus where you can make your selections. These will show immediately affect the results. "]
[]
[null,null,"Navigation button (fast)","   These buttons direct you to the result sheets of our tool. The information provided there is more detailed than in the dashboard. "]
[]
[null,null,"Calculate results (slow)","   These buttons let you calculate results for different parameter settings and compare them (e.g. costs for different molecules). Be patient as these calculations may take some seconds to complete. "]
[]
[null,null,"Additional functionalities","   The information and options provided in the tool can be tailored to different user profiles. With these buttons, you can select your preferred user profile to access additional information and customization options, if desired."]
[]
[]
[null,null,"Configure the main settings for your PTX business opportunity",null,null,null,null,null,null,null,null,null,"Your results overview"]
[]
[null,null,null,"Step 1: Choose from options in the dropdown menus below.",null,"Step 2: Use the buttons below to compare costs for different settings. "]
[null,null,null,"The graphs on the right hand side will change to reflect your choices. \n",null,"Note that for each button, only the parameter to the left will be varied, and all other settings remain unchanged. "]
[null,null,null,null,null,null,null,{"$f":"\"INFOBOX - \"&sel_country_name","v":"INFOBOX - Germany"}]
[null,"More info","Supply country / region","Morocco",null,null,null,null,{"$f":"VLOOKUP(sel_country_name,context_data_infobox,2,FALSE)","v":"2,8-3,3 Mt"}]
[null,"More info","Demand country","Germany",null,null,null,"Projected H2 demand [2030]:",{"$f":"VLOOKUP(sel_country_name,context_data_infobox,2,FALSE)","v":"2,8-3,3 Mt"}]
[null,"More info","Product (electrolyzer type)","Hydrogen (AEL)",null,null,null,{"$f":"VLOOKUP(sel_country_name,context_data_infobox,3,FALSE)","v":"High reliance on H2 imports projected"}]
[null,"More info","Renewable electricity source\n(for selected supply country)","Wind-PV-Hybrid",null,null,null,{"$f":"VLOOKUP(sel_country_name,context_data_infobox,4,FALSE)","v":"LNG import infrastructure in development \n(8 terminals in development)"}]
[null,"More info","Data year (cost reduction pathway)","2030 (medium)",null,null,null,{"$f":"VLOOKUP(sel_country_name,context_data_infobox,5,FALSE)","v":"Plans to connect to Spain & Portugal via France with Europe's first offshore green H2 pipeline (H2Med)"}]
[]
[null,null,"Select options for water, carbon and transportation",null,null,"Potential sustainability issues"]
[null,null,null,null,null,"The main issue here lies with the electricity supply: \nto secure that existing RES-E plants are not withdrawn from the existing electricity system, electricity \nshould be sourced from new, additional RES-E plants. Beyond this, the points below may also apply. "]
[]
[null,"More info","Carbon source","DAC",null,{"$f":"VLOOKUP(sel_secproc_co2,context_data_carbonsource,2,FALSE)","v":"How are additional energy demands of DAC sourced (preferably from RES-E plants or excess heat)? Are there any potential land conflicts if deploying this technology? "}]
[null,"More info","Water source","Water desalination",null,{"$f":"VLOOKUP(sel_secproc_water,context_data_watersource,2,FALSE)","v":"How is brine disposal managed? Can chemicals be reduced to a minimum? How are additional energy requirements of desalination plants sourced?"}]
[null,"More info","Mode of transportation\n(for selected supply country)","Ship",null,"If the pipeline option doesn't show up in the dropdown menu, the tool does not consider a pipeline connection feasible for your selected option. To know why, please go to 'more info'."]
[null,null,"For shipping option:  \nUse the product as ship fuel?",true,null,{"$f":"IF(AND(sel_chain_flow_out=\"DRI-S\",sel_ship_own_fuel=TRUE()),\"Warning: Green Iron ships must use bunker fuel as energy carrier. Please change setting to the left to 'FALSE'.\",\"\")","v":""}]
[null,null,"Unit for delivered costs","USD/MWh",null,{"$f":"IF(AND(sel_chain_flow_out=\"DRI-S\",selOutputUnit=\"USD/MWh\"),\"Warning: The output of your chosen process chain is Green Iron. Please select USD/t as unit. \",\"The output of your chosen process chain is \"&VLOOKUP(sel_chain_flow_out,flow_short_names,2,FALSE)&\". \nCosts are shown in \"&selOutputUnit2&\".\")","v":"The output of your chosen process chain is H2. \nCosts are shown in USD/MWh H2."}]
[]
[null,null,"Customize additional functionalities "]
[]
[null,null,"Basic user"]
[]
[null,null,"Extended user:"]
[]
[null,null,"Advanced user:"]

{"sheet":"_release","index":4,"n_rows":4,"n_cols":2,"rows_kept":4,"cut":false,"hidden":true,"merged":[]}
["version","1.0.9"]
["date",{"$f":"TODAY()","v":"2023-06-21"}]
["author","Oeko-Institut"]
["title",{"$f":"\"PTX-BusinessOpportunityAnalyzer-\"&release_version","v":"PTX-BusinessOpportunityAnalyzer-1.0.9"}]

{"sheet":"_todo_dev","index":5,"n_rows":9,"n_cols":2,"rows_kept":9,"cut":false,"hidden":true,"merged":[]}
["Manage results sets:"]
[null,"Name of current outputs set"]
[null,"save active outputs set to storage"]
[null,"delete active outputs set from storage"]
[]
[]
[]
["2030 (medium)"]
["PTX-BusinessOpportunityAnalyzer-1.0.9"]

{"sheet":"_dims","index":6,"n_rows":80,"n_cols":79,"rows_kept":80,"cut":false,"hidden":true,"merged":[]}
["parameter_code","parameter_name","unit","per_flow","per_transformation_process","per_transport_process","per_re_generation_process","per_process","per_region","per_import_country","has_global_default",null,"process_code","process_name","process_class","main_flow_code_out","main_flow_code_in","is_transformation","is_re_generation","is_transport","is_secondary","is_secondary_all",null,"flow_code","flow_name","unit","secondary_process",null,"source_region_code","region_name","country_code","is_coastal",null,null,"target_country_code","target_country_name","is_import","is_export",null,"process_code","process_name","main_flow_code_out",null,"chain","ELY","DERIV","PRE_SHP","PRE_PPL","POST_SHP","POST_PPL","SHP","SHP-OWN","PPLS","PPL","PPLX","PPLR","FLOW_OUT","CAN_PIPELINE",null,"default_scenario",null,"none","ship","pipeline","both",null,"BOOL",null,"name","code",null,"name","code",null,"output_unit","use_conversion",null,"label strings:"]
["CALOR","calorific values","various (kWh per mass or volume)",true,false,false,false,false,false,false,false,null,"AEL-EL","AEL electrolysis","ELEC","H2-G","EL",true,false,false,false,false,null,"BFUEL-L","bunker fuel","kwh bunker fuel (l)",false,null,"DZA","Algeria","DZA",true,null,null,"CHN","China",true,true,null,"PV-FIX","PV tilted","EL",null,"Ammonia (AEL)","AEL-EL","NH3SYN",null,null,null,null,"NH3-SB","NH3-S",null,null,null,null,{"$f":"IF(chains[[#This Row],[POST_SHP]]=\"\",VLOOKUP(chains[[#This Row],[DERIV]],process[],4,FALSE),VLOOKUP(chains[[#This Row],[POST_SHP]],process[],4,FALSE))","v":"NH3-L"},{"$f":"chains[[#This Row],[PPL]]<>\"\"","v":false},null,"2030 (high)",null,null,"Ship","Pipeline","Ship",null,true,null,"Water desalination","DESAL",null,"DAC","DAC",null,"USD/MWh",false,null,"cost unit",{"$f":"selOutputUnit&\" \"&VLOOKUP(sel_chain_flow_out,flow_short_names,2,FALSE)","v":"USD/MWh H2"}]
["CAPEX","CAPEX","USD2021/kW",false,true,false,true,true,true,false,true,null,"PEM-EL","PEM electrolysis","ELEC","H2-G","EL",true,false,false,false,false,null,"CH3OH-L","methanol (liquid)","kWh CH3OH (l)",false,null,"ARG","Argentina","ARG",true,null,null,"FRA","France",true,false,null,"WIND-OFF","Wind Offshore","EL",null,"Ammonia (AEL) + reconv. to H2","AEL-EL","NH3SYN",null,null,"NH3-REC","NH3-REC","NH3-SB","NH3-S",null,null,null,null,{"$f":"IF(chains[[#This Row],[POST_SHP]]=\"\",VLOOKUP(chains[[#This Row],[DERIV]],process[],4,FALSE),VLOOKUP(chains[[#This Row],[POST_SHP]],process[],4,FALSE))","v":"H2-G"},{"$f":"chains[[#This Row],[PPL]]<>\"\"","v":false},null,"2030 (medium)",null,null,null,null,"Pipeline",null,false,null,"Specific costs","",null,"Specific costs","",null,"USD/t",true,null,"cost unit",{"$f":"\"total cost (\"&b_dashboard!$D$34&\")\"","v":"total cost (USD/MWh)"}]
["CAP-T","transport capacity","kWh/a",false,false,false,false,false,true,true,false,null,"SOEC-EL","SOEC (high-temp) electrolysis","ELEC","H2-G","EL",true,false,false,false,false,null,"CH4-G","methane (gas)","kWh CH4 (g)",false,null,"ARG-CBA","Argentina (Autonomous City of Buenos Aires)","ARG",true,null,null,"DEU","Germany",true,false,null,"WIND-ON","Wind Onshore","EL",null,"Ammonia (PEM)","PEM-EL","NH3SYN",null,null,null,null,"NH3-SB","NH3-S",null,null,null,null,{"$f":"IF(chains[[#This Row],[POST_SHP]]=\"\",VLOOKUP(chains[[#This Row],[DERIV]],process[],4,FALSE),VLOOKUP(chains[[#This Row],[POST_SHP]],process[],4,FALSE))","v":"NH3-L"},{"$f":"chains[[#This Row],[PPL]]<>\"\"","v":false},null,"2030 (low)"]
["CONV","conversion factors","various (input per main output)",true,true,true,false,true,false,false,false,null,"CH3OHREC","Methanol reconversion","PROC","H2-G","CH3OH-L",true,false,false,false,false,null,"CH4-L","methane (liquid)","kWh CH4 (l)",false,null,"ARG-BA","Argentina (Buenos Aires)","ARG",true,null,null,"IND","India",true,true,null,"RES-HYBR","Wind-PV-Hybrid","EL",null,"Ammonia (PEM) + reconv. to H2","PEM-EL","NH3SYN",null,null,"NH3-REC","NH3-REC","NH3-SB","NH3-S",null,null,null,null,{"$f":"IF(chains[[#This Row],[POST_SHP]]=\"\",VLOOKUP(chains[[#This Row],[DERIV]],process[],4,FALSE),VLOOKUP(chains[[#This Row],[POST_SHP]],process[],4,FALSE))","v":"H2-G"},{"$f":"chains[[#This Row],[PPL]]<>\"\"","v":false},null,"2040 (high)"]
["DST-S-C","distance between RE site and coast","km",false,false,false,false,false,true,false,false,null,"CH3OHSYN","Methanol Synthesis","PROC","CH3OH-L","H2-G",true,false,false,false,false,null,"CHX-L","FT e-fuels","kwh CHx (l)",false,null,"ARG-CAT","Argentina (Catamarca)","ARG",true,null,null,"JPN","Japan",true,false,null,null,null,null,null,"Ammonia (SEOC)","SOEC-EL","NH3SYN",null,null,null,null,"NH3-SB","NH3-S",null,null,null,null,{"$f":"IF(chains[[#This Row],[POST_SHP]]=\"\",VLOOKUP(chains[[#This Row],[DERIV]],process[],4,FALSE),VLOOKUP(chains[[#This Row],[POST_SHP]],process[],4,FALSE))","v":"NH3-L"},{"$f":"chains[[#This Row],[PPL]]<>\"\"","v":false},null,"2040 (medium)"]
["DST-S-D","shipping distance","km",false,false,false,false,false,true,true,false,null,"CH4SYN","Methane Synthesis","PROC","CH4-G","H2-G",true,false,false,false,false,null,"CO2-G","carbon dioxide","kg CO2 (g)",true,null,"ARG-CHA","Argentina (Chaco)","ARG",true,null,null,"NLD","Netherlands",true,false,null,null,null,null,null,"Ammonia (SEOC) + reconv. to H2","SOEC-EL","NH3SYN",null,null,"NH3-REC","NH3-REC","NH3-SB","NH3-S",null,null,null,null,{"$f":"IF(chains[[#This Row],[POST_SHP]]=\"\",VLOOKUP(chains[[#This Row],[DERIV]],process[],4,FALSE),VLOOKUP(chains[[#This Row],[POST_SHP]],process[],4,FALSE))","v":"H2-G"},{"$f":"chains[[#This Row],[PPL]]<>\"\"","v":false},null,"2040 (low)"]
["DST-S-DP","pipeline distance","km",false,false,false,false,false,true,true,false,null,"DRI","Green iron reduction","PROC","DRI-S","H2-G",true,false,false,false,false,null,"C-S","carbon","kg C (s)",false,null,"ARG-CHU","Argentina (Chubut)","ARG",true,null,null,"KOR","South Korea",true,false,null,null,null,null,null,"Green Iron (AEL)","AEL-EL","DRI",null,null,null,null,"DRI-SB",null,null,null,null,null,{"$f":"IF(chains[[#This Row],[POST_SHP]]=\"\",VLOOKUP(chains[[#This Row],[DERIV]],process[],4,FALSE),VLOOKUP(chains[[#This Row],[POST_SHP]],process[],4,FALSE))","v":"DRI-S"},{"$f":"chains[[#This Row],[PPL]]<>\"\"","v":false}]
["EFF","efficiency","various (output per main input)",false,true,false,false,true,false,false,false,null,"EFUELSYN","FT e-fuels Synthesis (Fischer-Tropsch)","PROC","CHX-L","H2-G",true,false,false,false,false,null,"DRI-S","Green iron","kg DRI (s)",false,null,"ARG-CRB","Argentina (Córdoba)","ARG",true,null,null,"ESP","Spain",true,true,null,null,null,null,null,"Green Iron (PEM)","PEM-EL","DRI",null,null,null,null,"DRI-SB",null,null,null,null,null,{"$f":"IF(chains[[#This Row],[POST_SHP]]=\"\",VLOOKUP(chains[[#This Row],[DERIV]],process[],4,FALSE),VLOOKUP(chains[[#This Row],[POST_SHP]],process[],4,FALSE))","v":"DRI-S"},{"$f":"chains[[#This Row],[PPL]]<>\"\"","v":false}]
["FLH","full load hours","h",false,false,false,true,false,true,false,false,null,"NH3SYN","Ammonia Synthesis (Haber-Bosch)","PROC","NH3-L","H2-G",true,false,false,false,false,null,"EL","electricity","kWh (el.)",false,null,"ARG-COR","Argentina (Corrientes)","ARG",true,null,null,"USA","USA",true,true,null,null,null,null,null,"Green Iron (SEOC)","SOEC-EL","DRI",null,null,null,null,"DRI-SB",null,null,null,null,null,{"$f":"IF(chains[[#This Row],[POST_SHP]]=\"\",VLOOKUP(chains[[#This Row],[DERIV]],process[],4,FALSE),VLOOKUP(chains[[#This Row],[POST_SHP]],process[],4,FALSE))","v":"DRI-S"},{"$f":"chains[[#This Row],[PPL]]<>\"\"","v":false}]
["LIFETIME","lifetime / amortization period","years",false,true,false,true,true,false,false,false,null,"DAC","Direct Air Capture","PROV_C","CO2-G",null,false,false,false,true,true,null,"H2-G","hydrogen (gas)","kWh H2 (g)",false,null,"ARG-RIO","Argentina (Entre Ríos)","ARG",true,null,null,null,null,null,null,null,null,null,null,null,"Hydrogen (AEL)","AEL-EL",null,"H2-LIQ","H2-COMP","H2-RGAS",null,"H2-SB","H2-S","H2-P-S","H2-P-L","H2-P-SR","H2-P-LR",{"$f":"IF(chains[[#This Row],[POST_SHP]]=\"\",VLOOKUP(chains[[#This Row],[DERIV]],process[],4,FALSE),VLOOKUP(chains[[#This Row],[POST_SHP]],process[],4,FALSE))","v":"H2-G"},{"$f":"chains[[#This Row],[PPL]]<>\"\"","v":true}]
["LOSS-T","losses (own fuel, transport)","fraction/km",false,false,true,false,true,false,false,false,null,"DESAL","Sea Water desalination","PROV_H2O","H2O-L",null,false,false,false,true,true,null,"H2-L","hydrogen (liquid)","kWh H2 (l)",false,null,"ARG-FOR","Argentina (Formosa)","ARG",true,null,null,null,null,null,null,null,null,null,null,null,"Hydrogen (PEM)","PEM-EL",null,"H2-LIQ","H2-COMP","H2-RGAS",null,"H2-SB","H2-S","H2-P-S","H2-P-L","H2-P-SR","H2-P-LR",{"$f":"IF(chains[[#This Row],[POST_SHP]]=\"\",VLOOKUP(chains[[#This Row],[DERIV]],process[],4,FALSE),VLOOKUP(chains[[#This Row],[POST_SHP]],process[],4,FALSE))","v":"H2-G"},{"$f":"chains[[#This Row],[PPL]]<>\"\"","v":true}]
["OPEX-F","OPEX (fix)","USD2021/kW",false,true,false,true,true,true,false,true,null,"PV-FIX","PV tilted","RE-GEN","EL",null,false,true,false,false,false,null,"H2O-L","water","kg H2O (l)",true,null,"ARG-JUJ","Argentina (Jujuy)","ARG",true,null,null,null,null,null,null,null,null,null,null,null,"Hydrogen (SEOC)","SOEC-EL",null,"H2-LIQ","H2-COMP","H2-RGAS",null,"H2-SB","H2-S","H2-P-S","H2-P-L","H2-P-SR","H2-P-LR",{"$f":"IF(chains[[#This Row],[POST_SHP]]=\"\",VLOOKUP(chains[[#This Row],[DERIV]],process[],4,FALSE),VLOOKUP(chains[[#This Row],[POST_SHP]],process[],4,FALSE))","v":"H2-G"},{"$f":"chains[[#This Row],[PPL]]<>\"\"","v":true}]
["OPEX-T","levelized costs","USD2021/(kWh*km)",false,false,true,false,true,false,false,false,null,"PV-TRK","PV tracking","RE-GEN","EL",null,false,true,false,false,false,null,"HEAT","heat","kWh (heat)",false,null,"ARG-PAM","Argentina (La Pampa)","ARG",true,null,null,null,null,null,null,null,null,null,null,null,"LOHC (AEL)","AEL-EL",null,"LOHC-CON",null,"LOHC-REC",null,"LOHC-SB","LOHC-S",null,null,null,null,{"$f":"IF(chains[[#This Row],[POST_SHP]]=\"\",VLOOKUP(chains[[#This Row],[DERIV]],process[],4,FALSE),VLOOKUP(chains[[#This Row],[POST_SHP]],process[],4,FALSE))","v":"H2-G"},{"$f":"chains[[#This Row],[PPL]]<>\"\"","v":false}]
["RE-POT","RE potential","MWel",false,false,false,true,false,true,false,false,null,"RES-HYBR","Wind-PV-Hybrid","RE-GEN","EL",null,false,true,false,false,false,null,"LOHC-L","hydrogen (LOHC)","kWh H2 (l)",false,null,"ARG-LAR","Argentina (La Rioja)","ARG",true,null,null,null,null,null,null,null,null,null,null,null,"LOHC (PEM)","PEM-EL",null,"LOHC-CON",null,"LOHC-REC",null,"LOHC-SB","LOHC-S",null,null,null,null,{"$f":"IF(chains[[#This Row],[POST_SHP]]=\"\",VLOOKUP(chains[[#This Row],[DERIV]],process[],4,FALSE),VLOOKUP(chains[[#This Row],[POST_SHP]],process[],4,FALSE))","v":"H2-G"},{"$f":"chains[[#This Row],[PPL]]<>\"\"","v":false}]
["SEASHARE","sea share of pipeline distance","fraction",false,false,false,false,false,true,true,false,null,"WIND-OFF","Wind Offshore","RE-GEN","EL",null,false,true,false,false,false,null,"N2-G","nitrogen","kg N2 (g)",false,null,"ARG-MEN","Argentina (Mendoza)","ARG",true,null,null,null,null,null,null,null,null,null,null,null,"LOHC (SEOC)","SOEC-EL",null,"LOHC-CON",null,"LOHC-REC",null,"LOHC-SB","LOHC-S",null,null,null,null,{"$f":"IF(chains[[#This Row],[POST_SHP]]=\"\",VLOOKUP(chains[[#This Row],[DERIV]],process[],4,FALSE),VLOOKUP(chains[[#This Row],[POST_SHP]],process[],4,FALSE))","v":"H2-G"},{"$f":"chains[[#This Row],[PPL]]<>\"\"","v":false}]
["SPECCOST","specific costs","various (USD2021 per flow)",true,false,false,false,false,true,false,true,null,"WIND-ON","Wind Onshore","RE-GEN","EL",null,false,true,false,false,false,null,"NH3-L","ammonia (liquid)","kWh NH3 (l)",false,null,"ARG-MIS","Argentina (Misiones)","ARG",true,null,null,null,null,null,null,null,null,null,null,null,"Methane (AEL)","AEL-EL","CH4SYN","CH4-LIQ","CH4-COMP","CH4-RGAS",null,"CH4-SB","CH4-S","CH4-P-S","CH4-P-L","CH4-P-SR","CH4-P-LR",{"$f":"IF(chains[[#This Row],[POST_SHP]]=\"\",VLOOKUP(chains[[#This Row],[DERIV]],process[],4,FALSE),VLOOKUP(chains[[#This Row],[POST_SHP]],process[],4,FALSE))","v":"CH4-G"},{"$f":"chains[[#This Row],[PPL]]<>\"\"","v":true}]
["WACC","interest rate","fraction",false,true,false,true,true,true,false,true,null,"NH3-REC","Ammonia reconversion","TRANSP","H2-G","NH3-L",true,false,true,false,false,null,null,null,null,null,null,"ARG-NEU","Argentina (Neuquén)","ARG",true,null,null,null,null,null,null,null,null,null,null,null,"Methane (AEL) + reconv. to H2","AEL-EL","CH4SYN","CH4-LIQ","CH4-COMP","REGASATR","ATR","CH4-SB","CH4-S","CH4-P-S","CH4-P-L","CH4-P-SR","CH4-P-LR",{"$f":"IF(chains[[#This Row],[POST_SHP]]=\"\",VLOOKUP(chains[[#This Row],[DERIV]],process[],4,FALSE),VLOOKUP(chains[[#This Row],[POST_SHP]],process[],4,FALSE))","v":"H2-G"},{"$f":"chains[[#This Row],[PPL]]<>\"\"","v":true}]
[null,null,null,null,null,null,null,null,null,null,null,null,"ATR","Autothermal-Reactor (Blue Hydrogen)","TRANSP-P","H2-G","CH4-G",true,false,true,false,false,null,null,null,null,null,null,"ARG-NEG","Argentina (Río Negro)","ARG",true,null,null,null,null,null,null,null,null,null,null,null,"Methane (PEM)","PEM-EL","CH4SYN","CH4-LIQ","CH4-COMP","CH4-RGAS",null,"CH4-SB","CH4-S","CH4-P-S","CH4-P-L","CH4-P-SR","CH4-P-LR",{"$f":"IF(chains[[#This Row],[POST_SHP]]=\"\",VLOOKUP(chains[[#This Row],[DERIV]],process[],4,FALSE),VLOOKUP(chains[[#This Row],[POST_SHP]],process[],4,FALSE))","v":"CH4-G"},{"$f":"chains[[#This Row],[PPL]]<>\"\"","v":true}]
[null,null,null,null,null,null,null,null,null,null,null,null,"CH4-COMP","Methane compression","TRANSP-P","CH4-G","CH4-G",true,false,true,false,false,null,null,null,null,null,null,"ARG-SAT","Argentina (Salta)","ARG",true,null,null,null,null,null,null,null,null,null,null,null,"Methane (PEM) + reconv. to H2","PEM-EL","CH4SYN","CH4-LIQ","CH4-COMP","REGASATR","ATR","CH4-SB","CH4-S","CH4-P-S","CH4-P-L","CH4-P-SR","CH4-P-LR",{"$f":"IF(chains[[#This Row],[POST_SHP]]=\"\",VLOOKUP(chains[[#This Row],[DERIV]],process[],4,FALSE),VLOOKUP(chains[[#This Row],[POST_SHP]],process[],4,FALSE))","v":"H2-G"},{"$f":"chains[[#This Row],[PPL]]<>\"\"","v":true}]
[null,null,null,null,null,null,null,null,null,null,null,null,"CH4-P-L","Methane land pipeline new","TRANSP-P","CH4-G","CH4-G",false,false,true,false,false,null,"flow_code","flow_short_name",null,null,null,"ARG-SAJ","Argentina (San Juan)","ARG",true,null,null,null,null,null,null,null,null,null,null,null,"Methane (SEOC)","SOEC-EL","CH4SYN","CH4-LIQ","CH4-COMP","CH4-RGAS",null,"CH4-SB","CH4-S","CH4-P-S","CH4-P-L","CH4-P-SR","CH4-P-LR",{"$f":"IF(chains[[#This Row],[POST_SHP]]=\"\",VLOOKUP(chains[[#This Row],[DERIV]],process[],4,FALSE),VLOOKUP(chains[[#This Row],[POST_SHP]],process[],4,FALSE))","v":"CH4-G"},{"$f":"chains[[#This Row],[PPL]]<>\"\"","v":true}]
[null,null,null,null,null,null,null,null,null,null,null,null,"CH4-P-LR","Methane land pipeline retrofitted","TRANSP-P","CH4-G","CH4-G",false,false,true,false,false,null,"BFUEL-L","bunker fuel",null,null,null,"ARG-SAL","Argentina (San Luis)","ARG",true,null,null,null,null,null,null,null,null,null,null,null,"Methane (SEOC) + reconv. to H2","SOEC-EL","CH4SYN","CH4-LIQ","CH4-COMP","REGASATR","ATR","CH4-SB","CH4-S","CH4-P-S","CH4-P-L","CH4-P-SR","CH4-P-LR",{"$f":"IF(chains[[#This Row],[POST_SHP]]=\"\",VLOOKUP(chains[[#This Row],[DERIV]],process[],4,FALSE),VLOOKUP(chains[[#This Row],[POST_SHP]],process[],4,FALSE))","v":"H2-G"},{"$f":"chains[[#This Row],[PPL]]<>\"\"","v":true}]
[null,null,null,null,null,null,null,null,null,null,null,null,"CH4-P-S","Methane sea pipeline","TRANSP-P","CH4-G","CH4-G",false,false,true,false,false,null,"CH3OH-L","CH3OH",null,null,null,"ARG-CRU","Argentina (Santa Cruz)","ARG",true,null,null,null,null,null,null,null,null,null,null,null,"Methanol (AEL)","AEL-EL","CH3OHSYN",null,null,null,null,"CH3OH-SB","CH3OH-S",null,null,null,null,{"$f":"IF(chains[[#This Row],[POST_SHP]]=\"\",VLOOKUP(chains[[#This Row],[DERIV]],process[],4,FALSE),VLOOKUP(chains[[#This Row],[POST_SHP]],process[],4,FALSE))","v":"CH3OH-L"},{"$f":"chains[[#This Row],[PPL]]<>\"\"","v":false}]
[null,null,null,null,null,null,null,null,null,null,null,null,"CH4-P-SR","Methane sea pipeline retrofitted","TRANSP-P","CH4-G","CH4-G",false,false,true,false,false,null,"CH4-G","CH4",null,null,null,"ARG-SAF","Argentina (Santa Fe)","ARG",true,null,null,null,null,null,null,null,null,null,null,null,"Methanol (PEM)","PEM-EL","CH3OHSYN",null,null,null,null,"CH3OH-SB","CH3OH-S",null,null,null,null,{"$f":"IF(chains[[#This Row],[POST_SHP]]=\"\",VLOOKUP(chains[[#This Row],[DERIV]],process[],4,FALSE),VLOOKUP(chains[[#This Row],[POST_SHP]],process[],4,FALSE))","v":"CH3OH-L"},{"$f":"chains[[#This Row],[PPL]]<>\"\"","v":false}]
[null,null,null,null,null,null,null,null,null,null,null,null,"H2-COMP","Hydrogen compression","TRANSP-P","H2-G","H2-G",true,false,true,false,false,null,"CH4-L","CH4",null,null,null,"ARG-EST","Argentina (Santiago del Estero)","ARG",true,null,null,null,null,null,null,null,null,null,null,null,"Methanol (SEOC)","SOEC-EL","CH3OHSYN",null,null,null,null,"CH3OH-SB","CH3OH-S",null,null,null,null,{"$f":"IF(chains[[#This Row],[POST_SHP]]=\"\",VLOOKUP(chains[[#This Row],[DERIV]],process[],4,FALSE),VLOOKUP(chains[[#This Row],[POST_SHP]],process[],4,FALSE))","v":"CH3OH-L"},{"$f":"chains[[#This Row],[PPL]]<>\"\"","v":false}]
[null,null,null,null,null,null,null,null,null,null,null,null,"H2-P-L","Hydrogen land pipeline new","TRANSP-P","H2-G","H2-G",false,false,true,false,false,null,"CHX-L","FT e-fuels",null,null,null,"ARG-FUE","Argentina (Tierra del Fuego, Antártida e Islas del Atlántico Sur)","ARG",true,null,null,null,null,null,null,null,null,null,null,null,"FT e-fuels (AEL)","AEL-EL","EFUELSYN",null,null,null,null,"SYN-SB","SYN-S",null,null,null,null,{"$f":"IF(chains[[#This Row],[POST_SHP]]=\"\",VLOOKUP(chains[[#This Row],[DERIV]],process[],4,FALSE),VLOOKUP(chains[[#This Row],[POST_SHP]],process[],4,FALSE))","v":"CHX-L"},{"$f":"chains[[#This Row],[PPL]]<>\"\"","v":false}]
[null,null,null,null,null,null,null,null,null,null,null,null,"H2-P-LR","Hydrogen land pipeline retrofitted","TRANSP-P","H2-G","H2-G",false,false,true,false,false,null,"CO2-G","CO2",null,null,null,"ARG-TUC","Argentina (Tucumán)","ARG",true,null,null,null,null,null,null,null,null,null,null,null,"FT e-fuels (PEM)","PEM-EL","EFUELSYN",null,null,null,null,"SYN-SB","SYN-S",null,null,null,null,{"$f":"IF(chains[[#This Row],[POST_SHP]]=\"\",VLOOKUP(chains[[#This Row],[DERIV]],process[],4,FALSE),VLOOKUP(chains[[#This Row],[POST_SHP]],process[],4,FALSE))","v":"CHX-L"},{"$f":"chains[[#This Row],[PPL]]<>\"\"","v":false}]
[null,null,null,null,null,null,null,null,null,null,null,null,"H2-P-S","Hydrogen sea pipeline","TRANSP-P","H2-G","H2-G",false,false,true,false,false,null,"C-S","C",null,null,null,"AUS","Australia","AUS",true,null,null,null,null,null,null,null,null,null,null,null,"FT e-fuels (SEOC)","SOEC-EL","EFUELSYN",null,null,null,null,"SYN-SB","SYN-S",null,null,null,null,{"$f":"IF(chains[[#This Row],[POST_SHP]]=\"\",VLOOKUP(chains[[#This Row],[DERIV]],process[],4,FALSE),VLOOKUP(chains[[#This Row],[POST_SHP]],process[],4,FALSE))","v":"CHX-L"},{"$f":"chains[[#This Row],[PPL]]<>\"\"","v":false}]
[null,null,null,null,null,null,null,null,null,null,null,null,"H2-P-SR","Hydrogen sea pipeline retrofitted","TRANSP-P","H2-G","H2-G",false,false,true,false,false,null,"DRI-S","Green iron",null,null,null,"BRA","Brazil","BRA",true]
[null,null,null,null,null,null,null,null,null,null,null,null,"CH3OH-S","Methanol ship (own fuel consumption)","TRANSP-S","CH3OH-L","CH3OH-L",false,false,true,false,false,null,"EL","electricity",null,null,null,"CHL","Chile","CHL",true]
[null,null,null,null,null,null,null,null,null,null,null,null,"CH3OH-SB","Methanol ship (bunker fuel consumption)","TRANSP-S","CH3OH-L","CH3OH-L",false,false,true,false,false,null,"H2-G","H2",null,null,null,"CHN","China","CHN",true]
[null,null,null,null,null,null,null,null,null,null,null,null,"CH4-LIQ","Methane Liquefaction","TRANSP-S","CH4-L","CH4-G",true,false,true,false,false,null,"H2-L","H2",null,null,null,"COL","Colombia","COL",true]
[null,null,null,null,null,null,null,null,null,null,null,null,"CH4-RGAS","Methane Regasification","TRANSP-S","CH4-G","CH4-L",true,false,true,false,false,null,"H2O-L","H2O",null,null,null,"CRI","Costa Rica","CRI",true]
[null,null,null,null,null,null,null,null,null,null,null,null,"CH4-S","LNG ship (own fuel consumption)","TRANSP-S","CH4-L","CH4-L",false,false,true,false,false,null,"HEAT","heat",null,null,null,"DNK","Denmark","DNK",true]
[null,null,null,null,null,null,null,null,null,null,null,null,"CH4-SB","LNG ship (bunker fuel consumption)","TRANSP-S","CH4-L","CH4-L",false,false,true,false,false,null,"LOHC-L","H2 (LOHC)",null,null,null,"EGY","Egypt","EGY",true]
[null,null,null,null,null,null,null,null,null,null,null,null,"DRI-SB","Green iron ship (bunker fuel consumption)","TRANSP-S","DRI-S","DRI-S",false,false,true,false,false,null,"N2-G","N2",null,null,null,"IND","India","IND",true]
[null,null,null,null,null,null,null,null,null,null,null,null,"H2-LIQ","Hydrogen Liquefaction","TRANSP-S","H2-L","H2-G",true,false,true,false,false,null,"NH3-L","NH3",null,null,null,"IDN","Indonesia","IDN",true]
[null,null,null,null,null,null,null,null,null,null,null,null,"H2-RGAS","Hydrogen Regasification","TRANSP-S","H2-G","H2-L",true,false,true,false,false,null,null,null,null,null,null,"JOR","Jordan","JOR",true]
[null,null,null,null,null,null,null,null,null,null,null,null,"H2-S","Hydrogen ship (own fuel consumption)","TRANSP-S","H2-L","H2-L",false,false,true,false,false,null,null,null,null,null,null,"KAZ","Kazakhstan","KAZ",true]
[null,null,null,null,null,null,null,null,null,null,null,null,"H2-SB","Hydrogen ship (bunker fuel consumption)","TRANSP-S","H2-L","H2-L",false,false,true,false,false,null,null,null,null,null,null,"KEN","Kenya","KEN",true]
[null,null,null,null,null,null,null,null,null,null,null,null,"LOHC-CON","LOHC conversion","TRANSP-S","LOHC-L","H2-G",true,false,true,false,false,null,null,null,null,null,null,"MRT","Mauritania","MRT",true]
[null,null,null,null,null,null,null,null,null,null,null,null,"LOHC-REC","LOHC reconversion","TRANSP-S","H2-G","LOHC-L",true,false,true,false,false,null,null,null,null,null,null,"MEX","Mexico","MEX",true]
[null,null,null,null,null,null,null,null,null,null,null,null,"LOHC-S","LOHC ship (own fuel consumption)","TRANSP-S","LOHC-L","LOHC-L",false,false,true,false,false,null,null,null,null,null,null,"MAR","Morocco","MAR",true]
[null,null,null,null,null,null,null,null,null,null,null,null,"LOHC-SB","LOHC ship (bunker fuel consumption)","TRANSP-S","LOHC-L","LOHC-L",false,false,true,false,false,null,null,null,null,null,null,"MAR-BEN","Morocco (Béni Mellal-Khénifra)","MAR",true]
[null,null,null,null,null,null,null,null,null,null,null,null,"NH3-S","Ammonia ship (own fuel consumption)","TRANSP-S","NH3-L","NH3-L",false,false,true,false,false,null,null,null,null,null,null,"MAR-CAS","Morocco (Casablanca)","MAR",true]
[null,null,null,null,null,null,null,null,null,null,null,null,"NH3-SB","Ammonia ship (bunker fuel consumption)","TRANSP-S","NH3-L","NH3-L",false,false,true,false,false,null,null,null,null,null,null,"MAR-DAK","Morocco (Dakhla-Oued Ed-Dahab)","MAR",true]
[null,null,null,null,null,null,null,null,null,null,null,null,"REGASATR","Autothermal-Reactor (Blue Hydrogen) incl. Regasification","TRANSP-S","H2-G","CH4-L",true,false,true,false,false,null,null,null,null,null,null,"MAR-DRA","Morocco (Drâa-Tafilalet)","MAR",true]
[null,null,null,null,null,null,null,null,null,null,null,null,"SYN-S","FT e-fuels ship (own fuel consumption)","TRANSP-S","CHX-L","CHX-L",false,false,true,false,false,null,null,null,null,null,null,"MAR-FES","Morocco (Fès-Meknès)","MAR",true]
[null,null,null,null,null,null,null,null,null,null,null,null,"SYN-SB","FT e-fuels ship (bunker fuel consumption)","TRANSP-S","CHX-L","CHX-L",false,false,true,false,false,null,null,null,null,null,null,"MAR-GUE","Morocco (Guelmim-Oued Noun)","MAR",true]
[null,null,null,null,null,null,null,null,null,null,null,null,null,null,null,null,null,null,null,null,null,null,null,null,null,null,null,null,"MAR-LOR","Morocco (L´oriental)","MAR",true]
[null,null,null,null,null,null,null,null,null,null,null,null,null,null,null,null,null,null,null,null,null,null,null,null,null,null,null,null,"MAR-LAA","Morocco (Laâyoune-Sakia El Hamra)","MAR",true]
[null,null,null,null,null,null,null,null,null,null,null,null,null,null,null,null,null,null,null,null,null,null,null,null,null,null,null,null,"MAR-MAR","Morocco (Marrakech-Safi)","MAR",true]
[null,null,null,null,null,null,null,null,null,null,null,null,"process_class","process_class_name","comment",null,null,null,null,null,null,null,null,null,null,null,null,null,"MAR-RAB","Morocco (Rabat-Salé-Kénitra)","MAR",true]
[null,null,null,null,null,null,null,null,null,null,null,null,"ELEC","Electrolysis",null,null,null,null,null,null,null,null,null,null,null,null,null,null,"MAR-SOU","Morocco (Souss-Massa)","MAR",true]
[null,null,null,null,null,null,null,null,null,null,null,null,"PROC","Processing","all primary processes except electrolysis",null,null,null,null,null,null,null,null,null,null,null,null,null,"MAR-TAN","Morocco (Tangier)","MAR",true]
[null,null,null,null,null,null,null,null,null,null,null,null,"PROV_C","Provision of carbon","one class per flow type",null,null,null,null,null,null,null,null,null,null,null,null,null,"NAM","Namibia","NAM",true]
[null,null,null,null,null,null,null,null,null,null,null,null,"PROV_H2O","Provision of water","one class per flow type",null,null,null,null,null,null,null,null,null,null,null,null,null,"NOR","Norway","NOR",true]
[null,null,null,null,null,null,null,null,null,null,null,null,"RE-GEN","Electricity generation",null,null,null,null,null,null,null,null,null,null,null,null,null,null,"PER","Peru","PER",true]
[null,null,null,null,null,null,null,null,null,null,null,null,"TRANSP","Transportation","inland and international",null,null,null,null,null,null,null,null,null,null,null,null,null,"PRT","Portugal","PRT",true]
[null,null,null,null,null,null,null,null,null,null,null,null,"TRANSP-P","Transportation (Pipeline)",null,null,null,null,null,null,null,null,null,null,null,null,null,null,"RUS","Russia","RUS",true]
[null,null,null,null,null,null,null,null,null,null,null,null,"TRANSP-S","Transportation (Ship)",null,null,null,null,null,null,null,null,null,null,null,null,null,null,"SAU","Saudi Arabia","SAU",true]
[null,null,null,null,null,null,null,null,null,null,null,null,null,null,null,null,null,null,null,null,null,null,null,null,null,null,null,null,"ZAF","South Africa","ZAF",true]
[null,null,null,null,null,null,null,null,null,null,null,null,null,null,null,null,null,null,null,null,null,null,null,null,null,null,null,null,"ZAF-EC","South Africa (East Cape)","ZAF",true]
[null,null,null,null,null,null,null,null,null,null,null,null,null,null,null,null,null,null,null,null,null,null,null,null,null,null,null,null,"ZAF-FRS","South Africa (Free State)","ZAF",true]
[null,null,null,null,null,null,null,null,null,null,null,null,"CO2-G","H2O-L",null,null,null,null,null,null,null,null,null,null,null,null,null,null,"ZAF-GAU","South Africa (Gauteng)","ZAF",true]
[null,null,null,null,null,null,null,null,null,null,null,null,"DAC","Water desalination",null,null,null,null,null,null,null,null,null,null,null,null,null,null,"ZAF-KWA","South Africa (KwaZulu-Natal)","ZAF",true]
[null,null,null,null,null,null,null,null,null,null,null,null,null,null,null,null,null,null,null,null,null,null,null,null,null,null,null,null,"ZAF-LIM","South Africa (Limpopo)","ZAF",true]
[null,null,null,null,null,null,null,null,null,null,null,null,null,null,null,null,null,null,null,null,null,null,null,null,null,null,null,null,"ZAF-MPU","South Africa (Mpumalanga)","ZAF",true]
[null,null,null,null,null,null,null,null,null,null,null,null,null,null,null,null,null,null,null,null,null,null,null,null,null,null,null,null,"ZAF-NW","South Africa (North West)","ZAF",true]
[null,null,null,null,null,null,null,null,null,null,null,null,null,null,null,null,null,null,null,null,null,null,null,null,null,null,null,null,"ZAF-NC","South Africa (Northern Cape)","ZAF",true]
[null,null,null,null,null,null,null,null,null,null,null,null,null,null,null,null,null,null,null,null,null,null,null,null,null,null,null,null,"ZAF-WC","South Africa (Western Cape)","ZAF",true]
[null,null,null,null,null,null,null,null,null,null,null,null,null,null,null,null,null,null,null,null,null,null,null,null,null,null,null,null,"ESP","Spain","ESP",true]
[null,null,null,null,null,null,null,null,null,null,null,null,null,null,null,null,null,null,null,null,null,null,null,null,null,null,null,null,"SWE","Sweden","SWE",true]
[null,null,null,null,null,null,null,null,null,null,null,null,null,null,null,null,null,null,null,null,null,null,null,null,null,null,null,null,"THA","Thailand","THA",true]
[null,null,null,null,null,null,null,null,null,null,null,null,null,null,null,null,null,null,null,null,null,null,null,null,null,null,null,null,"TUN","Tunisia","TUN",true]
[null,null,null,null,null,null,null,null,null,null,null,null,null,null,null,null,null,null,null,null,null,null,null,null,null,null,null,null,"UKR","Ukraine","UKR",true]
[null,null,null,null,null,null,null,null,null,null,null,null,null,null,null,null,null,null,null,null,null,null,null,null,null,null,null,null,"ARE","United Arab Emirates","ARE",true]
[null,null,null,null,null,null,null,null,null,null,null,null,null,null,null,null,null,null,null,null,null,null,null,null,null,null,null,null,"URY","Uruguay","URY",true]
[null,null,null,null,null,null,null,null,null,null,null,null,null,null,null,null,null,null,null,null,null,null,null,null,null,null,null,null,"USA","USA","USA",true]
[null,null,null,null,null,null,null,null,null,null,null,null,null,null,null,null,null,null,null,null,null,null,null,null,null,null,null,null,"VNM","Vietnam","VNM",true]

{"sheet":"_input","index":7,"n_rows":2136,"n_cols":9,"rows_kept":2136,"cut":false,"hidden":true,"merged":[]}
["key","parameter_code","process_code","flow_code","source_region_code","target_country_code","value","unit","source"]
["CALOR,,CH3OH-L,,","CALOR","","CH3OH-L","","",5.5277777777777768,"kWh CH3OH (l)/kg","Wikipedia with conversions"]
["CALOR,,CH4-G,,","CALOR","","CH4-G","","",13.5,"kWh CH4 (g)/kg","Wikipedia with conversions"]
["CALOR,,CH4-L,,","CALOR","","CH4-L","","",13.5,"kWh CH4 (l)/kg","Wikipedia with conversions"]
["CALOR,,CHX-L,,","CALOR","","CHX-L","","",11.944444444444445,"kwh CHx (l)/kg","Wikipedia with conversions"]
["CALOR,,DRI-S,,","CALOR","","DRI-S","","",1,"kg DRI (s)/kg","no conversion necessary"]
["CALOR,,H2-G,,","CALOR","","H2-G","","",33.33,"kWh H2 (g)/kg","Linde"]
["CALOR,,H2-L,,","CALOR","","H2-L","","",33.33,"kWh H2 (l)/kg","Linde"]
["CALOR,,LOHC-L,,","CALOR","","LOHC-L","","",33.33,"kWh H2 (l)/kg","Linde"]
["CALOR,,NH3-L,,","CALOR","","NH3-L","","",5.1999999999999993,"kWh NH3 (l)/kg","Wikipedia with conversions"]
["CAPEX,AEL-EL,,,","CAPEX","AEL-EL","","","",650.6426539852938,"USD2021/kW"]
["CAPEX,ATR,,,","CAPEX","ATR","","","",1000.0341055522356,"USD2021/kW","Oni et al. 2022"]
["CAPEX,CH3OHSYN,,,","CAPEX","CH3OHSYN","","","",953.53718155258355,"USD2021/kW"]
["CAPEX,CH4-COMP,,,","CAPEX","CH4-COMP","","","",144.49043833783671,"USD2021/kW","DNV GL 2020"]
["CAPEX,CH4-LIQ,,,","CAPEX","CH4-LIQ","","","",439.99368256303694,"USD2021/kW","Hank et al. 2020"]
["CAPEX,CH4SYN,,,","CAPEX","CH4SYN","","","",847.89448030598192,"USD2021/kW","Öko-Institut 2020"]
["CAPEX,DAC,,,","CAPEX","DAC","","","",1.0377410418368698,"USD2021/ kg CO2 (g)*a","average low and high"]
["CAPEX,DESAL,,,","CAPEX","DESAL","","","",2.3667276243093918E-3,"USD2021/l*a","Fraunhofer IEE"]
["CAPEX,DRI,,,","CAPEX","DRI","","","",4125.6284525730507,"USD2021/kg DRI (s)/a*h","Agora Industry Transformation 2021"]
["CAPEX,EFUELSYN,,,","CAPEX","EFUELSYN","","","",953.53718155258355,"USD2021/kW"]
["CAPEX,H2-COMP,,,","CAPEX","H2-COMP","","","",144.49043833783671,"USD2021/kW","DNV GL 2020"]
["CAPEX,H2-LIQ,,,","CAPEX","H2-LIQ","","","",1457.3621055108172,"USD2021/kW","IEA 2019"]
["CAPEX,H2-RGAS,,,","CAPEX","H2-RGAS","","","",318.14227153381154,"USD2021/kW","DNV GL 2020"]
["CAPEX,LOHC-CON,,,","CAPEX","LOHC-CON","","","",200.97923345856316,"USD2021/kW"]
["CAPEX,LOHC-REC,,,","CAPEX","LOHC-REC","","","",458.97706001032537,"USD2021/kW"]
["CAPEX,NH3-REC,,,","CAPEX","NH3-REC","","","",411.40348625658612,"USD2021/kW","NGN; Equinor 2018"]
["CAPEX,NH3SYN,,,","CAPEX","NH3SYN","","","",1484.6664443263917,"USD2021/kW"]
["CAPEX,PEM-EL,,,","CAPEX","PEM-EL","","","",924.60772108052163,"USD2021/kW"]
["CAPEX,PV-FIX,,ARE,","CAPEX","PV-FIX","","ARE","",748.32170696054584,"USD2021/kW"]
["CAPEX,PV-FIX,,ARG,","CAPEX","PV-FIX","","ARG","",726.01426568983027,"USD2021/kW"]
["CAPEX,PV-FIX,,ARG-BA,","CAPEX","PV-FIX","","ARG-BA","",726.01426568983027,"USD2021/kW"]
["CAPEX,PV-FIX,,ARG-CAT,","CAPEX","PV-FIX","","ARG-CAT","",726.01426568983027,"USD2021/kW"]
["CAPEX,PV-FIX,,ARG-CBA,","CAPEX","PV-FIX","","ARG-CBA","",726.01426568983027,"USD2021/kW"]
["CAPEX,PV-FIX,,ARG-CHA,","CAPEX","PV-FIX","","ARG-CHA","",726.01426568983027,"USD2021/kW"]
["CAPEX,PV-FIX,,ARG-CHU,","CAPEX","PV-FIX","","ARG-CHU","",726.01426568983027,"USD2021/kW"]
["CAPEX,PV-FIX,,ARG-COR,","CAPEX","PV-FIX","","ARG-COR","",726.01426568983027,"USD2021/kW"]
["CAPEX,PV-FIX,,ARG-CRB,","CAPEX","PV-FIX","","ARG-CRB","",726.01426568983027,"USD2021/kW"]
["CAPEX,PV-FIX,,ARG-CRU,","CAPEX","PV-FIX","","ARG-CRU","",726.01426568983027,"USD2021/kW"]
["CAPEX,PV-FIX,,ARG-EST,","CAPEX","PV-FIX","","ARG-EST","",726.01426568983027,"USD2021/kW"]
["CAPEX,PV-FIX,,ARG-FOR,","CAPEX","PV-FIX","","ARG-FOR","",726.01426568983027,"USD2021/kW"]
["CAPEX,PV-FIX,,ARG-FUE,","CAPEX","PV-FIX","","ARG-FUE","",726.01426568983027,"USD2021/kW"]
["CAPEX,PV-FIX,,ARG-JUJ,","CAPEX","PV-FIX","","ARG-JUJ","",726.01426568983027,"USD2021/kW"]
["CAPEX,PV-FIX,,ARG-LAR,","CAPEX","PV-FIX","","ARG-LAR","",726.01426568983027,"USD2021/kW"]
["CAPEX,PV-FIX,,ARG-MEN,","CAPEX","PV-FIX","","ARG-MEN","",726.01426568983027,"USD2021/kW"]
["CAPEX,PV-FIX,,ARG-MIS,","CAPEX","PV-FIX","","ARG-MIS","",726.01426568983027,"USD2021/kW"]
["CAPEX,PV-FIX,,ARG-NEG,","CAPEX","PV-FIX","","ARG-NEG","",726.01426568983027,"USD2021/kW"]
["CAPEX,PV-FIX,,ARG-NEU,","CAPEX","PV-FIX","","ARG-NEU","",726.01426568983027,"USD2021/kW"]
["CAPEX,PV-FIX,,ARG-PAM,","CAPEX","PV-FIX","","ARG-PAM","",726.01426568983027,"USD2021/kW"]
["CAPEX,PV-FIX,,ARG-RIO,","CAPEX","PV-FIX","","ARG-RIO","",726.01426568983027,"USD2021/kW"]
["CAPEX,PV-FIX,,ARG-SAF,","CAPEX","PV-FIX","","ARG-SAF","",726.01426568983027,"USD2021/kW"]
["CAPEX,PV-FIX,,ARG-SAJ,","CAPEX","PV-FIX","","ARG-SAJ","",726.01426568983027,"USD2021/kW"]
["CAPEX,PV-FIX,,ARG-SAL,","CAPEX","PV-FIX","","ARG-SAL","",726.01426568983027,"USD2021/kW"]
["CAPEX,PV-FIX,,ARG-SAT,","CAPEX","PV-FIX","","ARG-SAT","",726.01426568983027,"USD2021/kW"]
["CAPEX,PV-FIX,,ARG-TUC,","CAPEX","PV-FIX","","ARG-TUC","",726.01426568983027,"USD2021/kW"]
["CAPEX,PV-FIX,,AUS,","CAPEX","PV-FIX","","AUS","",820.26320505860349,"USD2021/kW"]
["CAPEX,PV-FIX,,BRA,","CAPEX","PV-FIX","","BRA","",710.7708474881747,"USD2021/kW"]
["CAPEX,PV-FIX,,CHL,","CAPEX","PV-FIX","","CHL","",808.18000770363255,"USD2021/kW"]
["CAPEX,PV-FIX,,CHN,","CAPEX","PV-FIX","","CHN","",470.31522012425313,"USD2021/kW"]
["CAPEX,PV-FIX,,COL,","CAPEX","PV-FIX","","COL","",748.32170696054584,"USD2021/kW"]
["CAPEX,PV-FIX,,CRI,","CAPEX","PV-FIX","","CRI","",748.32170696054584,"USD2021/kW"]
["CAPEX,PV-FIX,,DNK,","CAPEX","PV-FIX","","DNK","",648.77475028997765,"USD2021/kW"]
["CAPEX,PV-FIX,,DZA,","CAPEX","PV-FIX","","DZA","",748.32170696054584,"USD2021/kW"]
["CAPEX,PV-FIX,,EGY,","CAPEX","PV-FIX","","EGY","",748.32170696054584,"USD2021/kW"]
["CAPEX,PV-FIX,,ESP,","CAPEX","PV-FIX","","ESP","",705.10103949853442,"USD2021/kW"]
["CAPEX,PV-FIX,,IDN,","CAPEX","PV-FIX","","IDN","",867.38767474299016,"USD2021/kW"]
["CAPEX,PV-FIX,,IND,","CAPEX","PV-FIX","","IND","",486.11632435767666,"USD2021/kW"]
["CAPEX,PV-FIX,,JOR,","CAPEX","PV-FIX","","JOR","",748.32170696054584,"USD2021/kW"]
["CAPEX,PV-FIX,,KAZ,","CAPEX","PV-FIX","","KAZ","",748.32170696054584,"USD2021/kW"]
["CAPEX,PV-FIX,,KEN,","CAPEX","PV-FIX","","KEN","",748.32170696054584,"USD2021/kW"]
["CAPEX,PV-FIX,,MAR,","CAPEX","PV-FIX","","MAR","",748.32170696054584,"USD2021/kW"]
["CAPEX,PV-FIX,,MAR-BEN,","CAPEX","PV-FIX","","MAR-BEN","",748.32170696054584,"USD2021/kW"]
["CAPEX,PV-FIX,,MAR-CAS,","CAPEX","PV-FIX","","MAR-CAS","",748.32170696054584,"USD2021/kW"]
["CAPEX,PV-FIX,,MAR-DAK,","CAPEX","PV-FIX","","MAR-DAK","",748.32170696054584,"USD2021/kW"]
["CAPEX,PV-FIX,,MAR-DRA,","CAPEX","PV-FIX","","MAR-DRA","",748.32170696054584,"USD2021/kW"]
["CAPEX,PV-FIX,,MAR-FES,","CAPEX","PV-FIX","","MAR-FES","",748.32170696054584,"USD2021/kW"]
["CAPEX,PV-FIX,,MAR-GUE,","CAPEX","PV-FIX","","MAR-GUE","",748.32170696054584,"USD2021/kW"]
["CAPEX,PV-FIX,,MAR-LAA,","CAPEX","PV-FIX","","MAR-LAA","",748.32170696054584,"USD2021/kW"]
["CAPEX,PV-FIX,,MAR-LOR,","CAPEX","PV-FIX","","MAR-LOR","",748.32170696054584,"USD2021/kW"]
["CAPEX,PV-FIX,,MAR-MAR,","CAPEX","PV-FIX","","MAR-MAR","",748.32170696054584,"USD2021/kW"]
["CAPEX,PV-FIX,,MAR-RAB,","CAPEX","PV-FIX","","MAR-RAB","",748.32170696054584,"USD2021/kW"]
["CAPEX,PV-FIX,,MAR-SOU,","CAPEX","PV-FIX","","MAR-SOU","",748.32170696054584,"USD2021/kW"]
["CAPEX,PV-FIX,,MAR-TAN,","CAPEX","PV-FIX","","MAR-TAN","",748.32170696054584,"USD2021/kW"]
["CAPEX,PV-FIX,,MEX,","CAPEX","PV-FIX","","MEX","",681.95706918016708,"USD2021/kW"]
["CAPEX,PV-FIX,,MRT,","CAPEX","PV-FIX","","MRT","",748.32170696054584,"USD2021/kW"]
["CAPEX,PV-FIX,,NAM,","CAPEX","PV-FIX","","NAM","",748.32170696054584,"USD2021/kW"]
["CAPEX,PV-FIX,,NOR,","CAPEX","PV-FIX","","NOR","",689.52714068546084,"USD2021/kW"]
["CAPEX,PV-FIX,,PER,","CAPEX","PV-FIX","","PER","",748.32170696054584,"USD2021/kW"]
["CAPEX,PV-FIX,,PRT,","CAPEX","PV-FIX","","PRT","",756.68699743706418,"USD2021/kW"]
["CAPEX,PV-FIX,,RUS,","CAPEX","PV-FIX","","RUS","",1342.350278465309,"USD2021/kW"]
["CAPEX,PV-FIX,,SAU,","CAPEX","PV-FIX","","SAU","",776.11306087697903,"USD2021/kW"]
["CAPEX,PV-FIX,,SWE,","CAPEX","PV-FIX","","SWE","",689.52714068546084,"USD2021/kW"]
["CAPEX,PV-FIX,,THA,","CAPEX","PV-FIX","","THA","",825.65417003235973,"USD2021/kW"]
["CAPEX,PV-FIX,,TUN,","CAPEX","PV-FIX","","TUN","",748.32170696054584,"USD2021/kW"]
["CAPEX,PV-FIX,,UKR,","CAPEX","PV-FIX","","UKR","",689.52714068546084,"USD2021/kW"]
["CAPEX,PV-FIX,,URY,","CAPEX","PV-FIX","","URY","",748.32170696054584,"USD2021/kW"]
["CAPEX,PV-FIX,,USA,","CAPEX","PV-FIX","","USA","",893.97070892392617,"USD2021/kW"]
["CAPEX,PV-FIX,,VNM,","CAPEX","PV-FIX","","VNM","",825.65417003235973,"USD2021/kW"]
["CAPEX,PV-FIX,,ZAF,","CAPEX","PV-FIX","","ZAF","",748.32170696054584,"USD2021/kW"]
["CAPEX,PV-FIX,,ZAF-EC,","CAPEX","PV-FIX","","ZAF-EC","",748.32170696054584,"USD2021/kW"]
["CAPEX,PV-FIX,,ZAF-FRS,","CAPEX","PV-FIX","","ZAF-FRS","",748.32170696054584,"USD2021/kW"]
["CAPEX,PV-FIX,,ZAF-GAU,","CAPEX","PV-FIX","","ZAF-GAU","",748.32170696054584,"USD2021/kW"]
["CAPEX,PV-FIX,,ZAF-KWA,","CAPEX","PV-FIX","","ZAF-KWA","",748.32170696054584,"USD2021/kW"]
["CAPEX,PV-FIX,,ZAF-LIM,","CAPEX","PV-FIX","","ZAF-LIM","",748.32170696054584,"USD2021/kW"]
["CAPEX,PV-FIX,,ZAF-MPU,","CAPEX","PV-FIX","","ZAF-MPU","",748.32170696054584,"USD2021/kW"]
["CAPEX,PV-FIX,,ZAF-NC,","CAPEX","PV-FIX","","ZAF-NC","",748.32170696054584,"USD2021/kW"]
["CAPEX,PV-FIX,,ZAF-NW,","CAPEX","PV-FIX","","ZAF-NW","",748.32170696054584,"USD2021/kW"]
["CAPEX,PV-FIX,,ZAF-WC,","CAPEX","PV-FIX","","ZAF-WC","",748.32170696054584,"USD2021/kW"]
["CAPEX,REGASATR,,,","CAPEX","REGASATR","","","",1000.0341055522356,"USD2021/kW","combined values"]
["CAPEX,RES-HYBR,,ARE,","CAPEX","RES-HYBR","","ARE","",1129.0342332707282,"USD2021/kW","calculated. PV:  WIND-ON: "]
["CAPEX,RES-HYBR,,ARG,","CAPEX","RES-HYBR","","ARG","",1218.0417054231007,"USD2021/kW","calculated. PV:  WIND-ON: "]
["CAPEX,RES-HYBR,,ARG-BA,","CAPEX","RES-HYBR","","ARG-BA","",1218.0417054231007,"USD2021/kW","calculated. PV:  WIND-ON: "]
["CAPEX,RES-HYBR,,ARG-CAT,","CAPEX","RES-HYBR","","ARG-CAT","",1218.0417054231007,"USD2021/kW","calculated. PV:  WIND-ON: "]
["CAPEX,RES-HYBR,,ARG-CBA,","CAPEX","RES-HYBR","","ARG-CBA","",1218.0417054231007,"USD2021/kW","calculated. PV:  WIND-ON: "]
["CAPEX,RES-HYBR,,ARG-CHA,","CAPEX","RES-HYBR","","ARG-CHA","",1218.0417054231007,"USD2021/kW","calculated. PV:  WIND-ON: "]
["CAPEX,RES-HYBR,,ARG-CHU,","CAPEX","RES-HYBR","","ARG-CHU","",1218.0417054231007,"USD2021/kW","calculated. PV:  WIND-ON: "]
["CAPEX,RES-HYBR,,ARG-COR,","CAPEX","RES-HYBR","","ARG-COR","",1218.0417054231007,"USD2021/kW","calculated. PV:  WIND-ON: "]
["CAPEX,RES-HYBR,,ARG-CRB,","CAPEX","RES-HYBR","","ARG-CRB","",1218.0417054231007,"USD2021/kW","calculated. PV:  WIND-ON: "]
["CAPEX,RES-HYBR,,ARG-CRU,","CAPEX","RES-HYBR","","ARG-CRU","",1218.0417054231007,"USD2021/kW","calculated. PV:  WIND-ON: "]
["CAPEX,RES-HYBR,,ARG-EST,","CAPEX","RES-HYBR","","ARG-EST","",1218.0417054231007,"USD2021/kW","calculated. PV:  WIND-ON: "]
["CAPEX,RES-HYBR,,ARG-FOR,","CAPEX","RES-HYBR","","ARG-FOR","",1218.0417054231007,"USD2021/kW","calculated. PV:  WIND-ON: "]
["CAPEX,RES-HYBR,,ARG-FUE,","CAPEX","RES-HYBR","","ARG-FUE","",1218.0417054231007,"USD2021/kW","calculated. PV:  WIND-ON: "]
["CAPEX,RES-HYBR,,ARG-JUJ,","CAPEX","RES-HYBR","","ARG-JUJ","",1218.0417054231007,"USD2021/kW","calculated. PV:  WIND-ON: "]
["CAPEX,RES-HYBR,,ARG-LAR,","CAPEX","RES-HYBR","","ARG-LAR","",1218.0417054231007,"USD2021/kW","calculated. PV:  WIND-ON: "]
["CAPEX,RES-HYBR,,ARG-MEN,","CAPEX","RES-HYBR","","ARG-MEN","",1218.0417054231007,"USD2021/kW","calculated. PV:  WIND-ON: "]
["CAPEX,RES-HYBR,,ARG-MIS,","CAPEX","RES-HYBR","","ARG-MIS","",1218.0417054231007,"USD2021/kW","calculated. PV:  WIND-ON: "]
["CAPEX,RES-HYBR,,ARG-NEG,","CAPEX","RES-HYBR","","ARG-NEG","",1218.0417054231007,"USD2021/kW","calculated. PV:  WIND-ON: "]
["CAPEX,RES-HYBR,,ARG-NEU,","CAPEX","RES-HYBR","","ARG-NEU","",1218.0417054231007,"USD2021/kW","calculated. PV:  WIND-ON: "]
["CAPEX,RES-HYBR,,ARG-PAM,","CAPEX","RES-HYBR","","ARG-PAM","",1218.0417054231007,"USD2021/kW","calculated. PV:  WIND-ON: "]
["CAPEX,RES-HYBR,,ARG-RIO,","CAPEX","RES-HYBR","","ARG-RIO","",1218.0417054231007,"USD2021/kW","calculated. PV:  WIND-ON: "]
["CAPEX,RES-HYBR,,ARG-SAF,","CAPEX","RES-HYBR","","ARG-SAF","",1218.0417054231007,"USD2021/kW","calculated. PV:  WIND-ON: "]
["CAPEX,RES-HYBR,,ARG-SAJ,","CAPEX","RES-HYBR","","ARG-SAJ","",1218.0417054231007,"USD2021/kW","calculated. PV:  WIND-ON: "]
["CAPEX,RES-HYBR,,ARG-SAL,","CAPEX","RES-HYBR","","ARG-SAL","",1218.0417054231007,"USD2021/kW","calculated. PV:  WIND-ON: "]
["CAPEX,RES-HYBR,,ARG-SAT,","CAPEX","RES-HYBR","","ARG-SAT","",1218.0417054231007,"USD2021/kW","calculated. PV:  WIND-ON: "]
["CAPEX,RES-HYBR,,ARG-TUC,","CAPEX","RES-HYBR","","ARG-TUC","",1218.0417054231007,"USD2021/kW","calculated. PV:  WIND-ON: "]
["CAPEX,RES-HYBR,,AUS,","CAPEX","RES-HYBR","","AUS","",1265.1661751074873,"USD2021/kW","calculated. PV:  WIND-ON: "]
["CAPEX,RES-HYBR,,BRA,","CAPEX","RES-HYBR","","BRA","",917.26528572403788,"USD2021/kW","calculated. PV:  WIND-ON: "]
["CAPEX,RES-HYBR,,CHL,","CAPEX","RES-HYBR","","CHL","",1259.124576430002,"USD2021/kW","calculated. PV:  WIND-ON: "]
["CAPEX,RES-HYBR,,CHN,","CAPEX","RES-HYBR","","CHN","",800.45761033238978,"USD2021/kW","calculated. PV:  WIND-ON: "]
["CAPEX,RES-HYBR,,COL,","CAPEX","RES-HYBR","","COL","",1186.6608534802729,"USD2021/kW","calculated. PV:  WIND-ON: "]
["CAPEX,RES-HYBR,,CRI,","CAPEX","RES-HYBR","","CRI","",1147.6006982752831,"USD2021/kW","calculated. PV:  WIND-ON: "]
["CAPEX,RES-HYBR,,DNK,","CAPEX","RES-HYBR","","DNK","",1117.3708673132146,"USD2021/kW","calculated. PV:  WIND-ON: "]
["CAPEX,RES-HYBR,,DZA,","CAPEX","RES-HYBR","","DZA","",1298.5753742333741,"USD2021/kW","calculated. PV:  WIND-ON: "]
["CAPEX,RES-HYBR,,EGY,","CAPEX","RES-HYBR","","EGY","",1107.0476299758607,"USD2021/kW","calculated. PV:  WIND-ON: "]
["CAPEX,RES-HYBR,,ESP,","CAPEX","RES-HYBR","","ESP","",924.96002931080898,"USD2021/kW","calculated. PV:  WIND-ON: "]
["CAPEX,RES-HYBR,,IDN,","CAPEX","RES-HYBR","","IDN","",1533.0240021148766,"USD2021/kW","calculated. PV:  WIND-ON: "]
["CAPEX,RES-HYBR,,IND,","CAPEX","RES-HYBR","","IND","",695.49359886878108,"USD2021/kW","calculated. PV:  WIND-ON: "]
["CAPEX,RES-HYBR,,JOR,","CAPEX","RES-HYBR","","JOR","",1298.5753742333741,"USD2021/kW","calculated. PV:  WIND-ON: "]
["CAPEX,RES-HYBR,,KAZ,","CAPEX","RES-HYBR","","KAZ","",1107.0476299758607,"USD2021/kW","calculated. PV:  WIND-ON: "]
["CAPEX,RES-HYBR,,KEN,","CAPEX","RES-HYBR","","KEN","",1298.5753742333741,"USD2021/kW","calculated. PV:  WIND-ON: "]
["CAPEX,RES-HYBR,,MAR,","CAPEX","RES-HYBR","","MAR","",1229.1954260584585,"USD2021/kW","calculated. PV:  WIND-ON: "]
["CAPEX,RES-HYBR,,MAR-BEN,","CAPEX","RES-HYBR","","MAR-BEN","",1229.1954260584585,"USD2021/kW","calculated. PV:  WIND-ON: "]
["CAPEX,RES-HYBR,,MAR-CAS,","CAPEX","RES-HYBR","","MAR-CAS","",1229.1954260584585,"USD2021/kW","calculated. PV:  WIND-ON: "]
["CAPEX,RES-HYBR,,MAR-DAK,","CAPEX","RES-HYBR","","MAR-DAK","",1229.1954260584585,"USD2021/kW","calculated. PV:  WIND-ON: "]
["CAPEX,RES-HYBR,,MAR-DRA,","CAPEX","RES-HYBR","","MAR-DRA","",1229.1954260584585,"USD2021/kW","calculated. PV:  WIND-ON: "]
["CAPEX,RES-HYBR,,MAR-FES,","CAPEX","RES-HYBR","","MAR-FES","",1229.1954260584585,"USD2021/kW","calculated. PV:  WIND-ON: "]
["CAPEX,RES-HYBR,,MAR-GUE,","CAPEX","RES-HYBR","","MAR-GUE","",1229.1954260584585,"USD2021/kW","calculated. PV:  WIND-ON: "]
["CAPEX,RES-HYBR,,MAR-LAA,","CAPEX","RES-HYBR","","MAR-LAA","",1229.1954260584585,"USD2021/kW","calculated. PV:  WIND-ON: "]
["CAPEX,RES-HYBR,,MAR-LOR,","CAPEX","RES-HYBR","","MAR-LOR","",1229.1954260584585,"USD2021/kW","calculated. PV:  WIND-ON: "]
["CAPEX,RES-HYBR,,MAR-MAR,","CAPEX","RES-HYBR","","MAR-MAR","",1229.1954260584585,"USD2021/kW","calculated. PV:  WIND-ON: "]
["CAPEX,RES-HYBR,,MAR-RAB,","CAPEX","RES-HYBR","","MAR-RAB","",1229.1954260584585,"USD2021/kW","calculated. PV:  WIND-ON: "]
["CAPEX,RES-HYBR,,MAR-SOU,","CAPEX","RES-HYBR","","MAR-SOU","",1229.1954260584585,"USD2021/kW","calculated. PV:  WIND-ON: "]
["CAPEX,RES-HYBR,,MAR-TAN,","CAPEX","RES-HYBR","","MAR-TAN","",1229.1954260584585,"USD2021/kW","calculated. PV:  WIND-ON: "]
["CAPEX,RES-HYBR,,MEX,","CAPEX","RES-HYBR","","MEX","",1059.9061510378335,"USD2021/kW","calculated. PV:  WIND-ON: "]
["CAPEX,RES-HYBR,,MRT,","CAPEX","RES-HYBR","","MRT","",1298.5753742333741,"USD2021/kW","calculated. PV:  WIND-ON: "]
["CAPEX,RES-HYBR,,NAM,","CAPEX","RES-HYBR","","NAM","",1298.5753742333741,"USD2021/kW","calculated. PV:  WIND-ON: "]
["CAPEX,RES-HYBR,,NOR,","CAPEX","RES-HYBR","","NOR","",1077.650346838318,"USD2021/kW","calculated. PV:  WIND-ON: "]
["CAPEX,RES-HYBR,,PER,","CAPEX","RES-HYBR","","PER","",984.89983389326267,"USD2021/kW","calculated. PV:  WIND-ON: "]
["CAPEX,RES-HYBR,,PRT,","CAPEX","RES-HYBR","","PRT","",1233.3780712967177,"USD2021/kW","calculated. PV:  WIND-ON: "]
["CAPEX,RES-HYBR,,RUS,","CAPEX","RES-HYBR","","RUS","",1404.0619157282422,"USD2021/kW","calculated. PV:  WIND-ON: "]
["CAPEX,RES-HYBR,,SAU,","CAPEX","RES-HYBR","","SAU","",1142.9299102289447,"USD2021/kW","calculated. PV:  WIND-ON: "]
["CAPEX,RES-HYBR,,SWE,","CAPEX","RES-HYBR","","SWE","",1137.7470625109563,"USD2021/kW","calculated. PV:  WIND-ON: "]
["CAPEX,RES-HYBR,,THA,","CAPEX","RES-HYBR","","THA","",1167.7004648066352,"USD2021/kW","calculated. PV:  WIND-ON: "]
["CAPEX,RES-HYBR,,TUN,","CAPEX","RES-HYBR","","TUN","",1298.5753742333741,"USD2021/kW","calculated. PV:  WIND-ON: "]
["CAPEX,RES-HYBR,,UKR,","CAPEX","RES-HYBR","","UKR","",1077.650346838318,"USD2021/kW","calculated. PV:  WIND-ON: "]
["CAPEX,RES-HYBR,,URY,","CAPEX","RES-HYBR","","URY","",1473.4910182236545,"USD2021/kW","calculated. PV:  WIND-ON: "]
["CAPEX,RES-HYBR,,USA,","CAPEX","RES-HYBR","","USA","",1122.077935922249,"USD2021/kW","calculated. PV:  WIND-ON: "]
["CAPEX,RES-HYBR,,VNM,","CAPEX","RES-HYBR","","VNM","",1512.1572497595614,"USD2021/kW","calculated. PV:  WIND-ON: "]
["CAPEX,RES-HYBR,,ZAF,","CAPEX","RES-HYBR","","ZAF","",1229.1954260584585,"USD2021/kW","calculated. PV:  WIND-ON: "]
["CAPEX,RES-HYBR,,ZAF-EC,","CAPEX","RES-HYBR","","ZAF-EC","",1229.1954260584585,"USD2021/kW","calculated. PV:  WIND-ON: "]
["CAPEX,RES-HYBR,,ZAF-FRS,","CAPEX","RES-HYBR","","ZAF-FRS","",1229.1954260584585,"USD2021/kW","calculated. PV:  WIND-ON: "]
["CAPEX,RES-HYBR,,ZAF-GAU,","CAPEX","RES-HYBR","","ZAF-GAU","",1229.1954260584585,"USD2021/kW","calculated. PV:  WIND-ON: "]
["CAPEX,RES-HYBR,,ZAF-KWA,","CAPEX","RES-HYBR","","ZAF-KWA","",1229.1954260584585,"USD2021/kW","calculated. PV:  WIND-ON: "]
["CAPEX,RES-HYBR,,ZAF-LIM,","CAPEX","RES-HYBR","","ZAF-LIM","",1229.1954260584585,"USD2021/kW","calculated. PV:  WIND-ON: "]
["CAPEX,RES-HYBR,,ZAF-MPU,","CAPEX","RES-HYBR","","ZAF-MPU","",1229.1954260584585,"USD2021/kW","calculated. PV:  WIND-ON: "]
["CAPEX,RES-HYBR,,ZAF-NC,","CAPEX","RES-HYBR","","ZAF-NC","",1229.1954260584585,"USD2021/kW","calculated. PV:  WIND-ON: "]
["CAPEX,RES-HYBR,,ZAF-NW,","CAPEX","RES-HYBR","","ZAF-NW","",1229.1954260584585,"USD2021/kW","calculated. PV:  WIND-ON: "]
["CAPEX,RES-HYBR,,ZAF-WC,","CAPEX","RES-HYBR","","ZAF-WC","",1229.1954260584585,"USD2021/kW","calculated. PV:  WIND-ON: "]
["CAPEX,SOEC-EL,,,","CAPEX","SOEC-EL","","","",2831.6970271597133,"USD2021/kW"]
["CAPEX,WIND-OFF,,ARE,","CAPEX","WIND-OFF","","ARE","",3316.6422675294375,"USD2021/kW"]
["CAPEX,WIND-OFF,,ARG,","CAPEX","WIND-OFF","","ARG","",3316.6422675294375,"USD2021/kW"]
["CAPEX,WIND-OFF,,ARG-BA,","CAPEX","WIND-OFF","","ARG-BA","",3316.6422675294375,"USD2021/kW"]
["CAPEX,WIND-OFF,,ARG-CAT,","CAPEX","WIND-OFF","","ARG-CAT","",3316.6422675294375,"USD2021/kW"]
["CAPEX,WIND-OFF,,ARG-CBA,","CAPEX","WIND-OFF","","ARG-CBA","",3316.6422675294375,"USD2021/kW"]
["CAPEX,WIND-OFF,,ARG-CHA,","CAPEX","WIND-OFF","","ARG-CHA","",3316.6422675294375,"USD2021/kW"]
["CAPEX,WIND-OFF,,ARG-CHU,","CAPEX","WIND-OFF","","ARG-CHU","",3316.6422675294375,"USD2021/kW"]
["CAPEX,WIND-OFF,,ARG-COR,","CAPEX","WIND-OFF","","ARG-COR","",3316.6422675294375,"USD2021/kW"]
["CAPEX,WIND-OFF,,ARG-CRB,","CAPEX","WIND-OFF","","ARG-CRB","",3316.6422675294375,"USD2021/kW"]
["CAPEX,WIND-OFF,,ARG-CRU,","CAPEX","WIND-OFF","","ARG-CRU","",3316.6422675294375,"USD2021/kW"]
["CAPEX,WIND-OFF,,ARG-EST,","CAPEX","WIND-OFF","","ARG-EST","",3316.6422675294375,"USD2021/kW"]
["CAPEX,WIND-OFF,,ARG-FOR,","CAPEX","WIND-OFF","","ARG-FOR","",3316.6422675294375,"USD2021/kW"]
["CAPEX,WIND-OFF,,ARG-FUE,","CAPEX","WIND-OFF","","ARG-FUE","",3316.6422675294375,"USD2021/kW"]
["CAPEX,WIND-OFF,,ARG-JUJ,","CAPEX","WIND-OFF","","ARG-JUJ","",3316.6422675294375,"USD2021/kW"]
["CAPEX,WIND-OFF,,ARG-LAR,","CAPEX","WIND-OFF","","ARG-LAR","",3316.6422675294375,"USD2021/kW"]
["CAPEX,WIND-OFF,,ARG-MEN,","CAPEX","WIND-OFF","","ARG-MEN","",3316.6422675294375,"USD2021/kW"]
["CAPEX,WIND-OFF,,ARG-MIS,","CAPEX","WIND-OFF","","ARG-MIS","",3316.6422675294375,"USD2021/kW"]
["CAPEX,WIND-OFF,,ARG-NEG,","CAPEX","WIND-OFF","","ARG-NEG","",3316.6422675294375,"USD2021/kW"]
["CAPEX,WIND-OFF,,ARG-NEU,","CAPEX","WIND-OFF","","ARG-NEU","",3316.6422675294375,"USD2021/kW"]
["CAPEX,WIND-OFF,,ARG-PAM,","CAPEX","WIND-OFF","","ARG-PAM","",3316.6422675294375,"USD2021/kW"]
["CAPEX,WIND-OFF,,ARG-RIO,","CAPEX","WIND-OFF","","ARG-RIO","",3316.6422675294375,"USD2021/kW"]
["CAPEX,WIND-OFF,,ARG-SAF,","CAPEX","WIND-OFF","","ARG-SAF","",3316.6422675294375,"USD2021/kW"]
["CAPEX,WIND-OFF,,ARG-SAJ,","CAPEX","WIND-OFF","","ARG-SAJ","",3316.6422675294375,"USD2021/kW"]
["CAPEX,WIND-OFF,,ARG-SAL,","CAPEX","WIND-OFF","","ARG-SAL","",3316.6422675294375,"USD2021/kW"]
["CAPEX,WIND-OFF,,ARG-SAT,","CAPEX","WIND-OFF","","ARG-SAT","",3316.6422675294375,"USD2021/kW"]
["CAPEX,WIND-OFF,,ARG-TUC,","CAPEX","WIND-OFF","","ARG-TUC","",3316.6422675294375,"USD2021/kW"]
["CAPEX,WIND-OFF,,AUS,","CAPEX","WIND-OFF","","AUS","",3316.6422675294375,"USD2021/kW"]
["CAPEX,WIND-OFF,,BRA,","CAPEX","WIND-OFF","","BRA","",3316.6422675294375,"USD2021/kW"]
["CAPEX,WIND-OFF,,CHL,","CAPEX","WIND-OFF","","CHL","",3316.6422675294375,"USD2021/kW"]
["CAPEX,WIND-OFF,,CHN,","CAPEX","WIND-OFF","","CHN","",2763.8685562745313,"USD2021/kW"]
["CAPEX,WIND-OFF,,COL,","CAPEX","WIND-OFF","","COL","",3317,"USD2021/kW"]
["CAPEX,WIND-OFF,,CRI,","CAPEX","WIND-OFF","","CRI","",3316.6422675294375,"USD2021/kW"]
["CAPEX,WIND-OFF,,DNK,","CAPEX","WIND-OFF","","DNK","",2214.3840130599938,"USD2021/kW"]
["CAPEX,WIND-OFF,,DZA,","CAPEX","WIND-OFF","","DZA","",3316.6422675294375,"USD2021/kW"]
["CAPEX,WIND-OFF,,EGY,","CAPEX","WIND-OFF","","EGY","",3316.6422675294375,"USD2021/kW"]
["CAPEX,WIND-OFF,,ESP,","CAPEX","WIND-OFF","","ESP","",3316.6422675294375,"USD2021/kW"]
["CAPEX,WIND-OFF,,IDN,","CAPEX","WIND-OFF","","IDN","",3316.6422675294375,"USD2021/kW"]
["CAPEX,WIND-OFF,,IND,","CAPEX","WIND-OFF","","IND","",3316.6422675294375,"USD2021/kW"]
["CAPEX,WIND-OFF,,JOR,","CAPEX","WIND-OFF","","JOR","",3316.6422675294375,"USD2021/kW"]
["CAPEX,WIND-OFF,,KAZ,","CAPEX","WIND-OFF","","KAZ","",3316.6422675294375,"USD2021/kW"]
["CAPEX,WIND-OFF,,KEN,","CAPEX","WIND-OFF","","KEN","",3316.6422675294375,"USD2021/kW"]
["CAPEX,WIND-OFF,,MAR,","CAPEX","WIND-OFF","","MAR","",3316.6422675294375,"USD2021/kW"]
["CAPEX,WIND-OFF,,MAR-BEN,","CAPEX","WIND-OFF","","MAR-BEN","",3316.6422675294375,"USD2021/kW"]
["CAPEX,WIND-OFF,,MAR-CAS,","CAPEX","WIND-OFF","","MAR-CAS","",3316.6422675294375,"USD2021/kW"]
["CAPEX,WIND-OFF,,MAR-DAK,","CAPEX","WIND-OFF","","MAR-DAK","",3316.6422675294375,"USD2021/kW"]
["CAPEX,WIND-OFF,,MAR-DRA,","CAPEX","WIND-OFF","","MAR-DRA","",3316.6422675294375,"USD2021/kW"]
["CAPEX,WIND-OFF,,MAR-FES,","CAPEX","WIND-OFF","","MAR-FES","",3316.6422675294375,"USD2021/kW"]
["CAPEX,WIND-OFF,,MAR-GUE,","CAPEX","WIND-OFF","","MAR-GUE","",3316.6422675294375,"USD2021/kW"]
["CAPEX,WIND-OFF,,MAR-LAA,","CAPEX","WIND-OFF","","MAR-LAA","",3316.6422675294375,"USD2021/kW"]
["CAPEX,WIND-OFF,,MAR-LOR,","CAPEX","WIND-OFF","","MAR-LOR","",3316.6422675294375,"USD2021/kW"]
["CAPEX,WIND-OFF,,MAR-MAR,","CAPEX","WIND-OFF","","MAR-MAR","",3316.6422675294375,"USD2021/kW"]
["CAPEX,WIND-OFF,,MAR-RAB,","CAPEX","WIND-OFF","","MAR-RAB","",3316.6422675294375,"USD2021/kW"]
["CAPEX,WIND-OFF,,MAR-SOU,","CAPEX","WIND-OFF","","MAR-SOU","",3316.6422675294375,"USD2021/kW"]
["CAPEX,WIND-OFF,,MAR-TAN,","CAPEX","WIND-OFF","","MAR-TAN","",3316.6422675294375,"USD2021/kW"]
["CAPEX,WIND-OFF,,MEX,","CAPEX","WIND-OFF","","MEX","",3316.6422675294375,"USD2021/kW"]
["CAPEX,WIND-OFF,,MRT,","CAPEX","WIND-OFF","","MRT","",3316.6422675294375,"USD2021/kW"]
["CAPEX,WIND-OFF,,NAM,","CAPEX","WIND-OFF","","NAM","",3316.6422675294375,"USD2021/kW"]
["CAPEX,WIND-OFF,,NOR,","CAPEX","WIND-OFF","","NOR","",3316.6422675294375,"USD2021/kW"]
["CAPEX,WIND-OFF,,PER,","CAPEX","WIND-OFF","","PER","",3316.6422675294375,"USD2021/kW"]
["CAPEX,WIND-OFF,,PRT,","CAPEX","WIND-OFF","","PRT","",3316.6422675294375,"USD2021/kW"]
["CAPEX,WIND-OFF,,RUS,","CAPEX","WIND-OFF","","RUS","",3316.6422675294375,"USD2021/kW"]
["CAPEX,WIND-OFF,,SAU,","CAPEX","WIND-OFF","","SAU","",3316.6422675294375,"USD2021/kW"]
["CAPEX,WIND-OFF,,SWE,","CAPEX","WIND-OFF","","SWE","",3316.6422675294375,"USD2021/kW"]
["CAPEX,WIND-OFF,,THA,","CAPEX","WIND-OFF","","THA","",3316.6422675294375,"USD2021/kW"]
["CAPEX,WIND-OFF,,TUN,","CAPEX","WIND-OFF","","TUN","",3316.6422675294375,"USD2021/kW"]
["CAPEX,WIND-OFF,,UKR,","CAPEX","WIND-OFF","","UKR","",3316.6422675294375,"USD2021/kW"]
["CAPEX,WIND-OFF,,URY,","CAPEX","WIND-OFF","","URY","",3316.6422675294375,"USD2021/kW"]
["CAPEX,WIND-OFF,,USA,","CAPEX","WIND-OFF","","USA","",3316.6422675294375,"USD2021/kW"]
["CAPEX,WIND-OFF,,VNM,","CAPEX","WIND-OFF","","VNM","",3316.6422675294375,"USD2021/kW"]
["CAPEX,WIND-OFF,,ZAF,","CAPEX","WIND-OFF","","ZAF","",3316.6422675294375,"USD2021/kW"]
["CAPEX,WIND-OFF,,ZAF-EC,","CAPEX","WIND-OFF","","ZAF-EC","",3316.6422675294375,"USD2021/kW"]
["CAPEX,WIND-OFF,,ZAF-FRS,","CAPEX","WIND-OFF","","ZAF-FRS","",3316.6422675294375,"USD2021/kW"]
["CAPEX,WIND-OFF,,ZAF-GAU,","CAPEX","WIND-OFF","","ZAF-GAU","",3316.6422675294375,"USD2021/kW"]
["CAPEX,WIND-OFF,,ZAF-KWA,","CAPEX","WIND-OFF","","ZAF-KWA","",3316.6422675294375,"USD2021/kW"]
["CAPEX,WIND-OFF,,ZAF-LIM,","CAPEX","WIND-OFF","","ZAF-LIM","",3316.6422675294375,"USD2021/kW"]
["CAPEX,WIND-OFF,,ZAF-MPU,","CAPEX","WIND-OFF","","ZAF-MPU","",3316.6422675294375,"USD2021/kW"]
["CAPEX,WIND-OFF,,ZAF-NC,","CAPEX","WIND-OFF","","ZAF-NC","",3316.6422675294375,"USD2021/kW"]
["CAPEX,WIND-OFF,,ZAF-NW,","CAPEX","WIND-OFF","","ZAF-NW","",3316.6422675294375,"USD2021/kW"]
["CAPEX,WIND-OFF,,ZAF-WC,","CAPEX","WIND-OFF","","ZAF-WC","",3316.6422675294375,"USD2021/kW"]
["CAPEX,WIND-ON,,ARE,","CAPEX","WIND-ON","","ARE","",1509.7467595809105,"USD2021/kW"]
["CAPEX,WIND-ON,,ARG,","CAPEX","WIND-ON","","ARG","",1710.0691451563712,"USD2021/kW"]
["CAPEX,WIND-ON,,ARG-BA,","CAPEX","WIND-ON","","ARG-BA","",1710.0691451563712,"USD2021/kW"]
["CAPEX,WIND-ON,,ARG-CAT,","CAPEX","WIND-ON","","ARG-CAT","",1710.0691451563712,"USD2021/kW"]
["CAPEX,WIND-ON,,ARG-CBA,","CAPEX","WIND-ON","","ARG-CBA","",1710.0691451563712,"USD2021/kW"]
["CAPEX,WIND-ON,,ARG-CHA,","CAPEX","WIND-ON","","ARG-CHA","",1710.0691451563712,"USD2021/kW"]
["CAPEX,WIND-ON,,ARG-CHU,","CAPEX","WIND-ON","","ARG-CHU","",1710.0691451563712,"USD2021/kW"]
["CAPEX,WIND-ON,,ARG-COR,","CAPEX","WIND-ON","","ARG-COR","",1710.0691451563712,"USD2021/kW"]
["CAPEX,WIND-ON,,ARG-CRB,","CAPEX","WIND-ON","","ARG-CRB","",1710.0691451563712,"USD2021/kW"]
["CAPEX,WIND-ON,,ARG-CRU,","CAPEX","WIND-ON","","ARG-CRU","",1710.0691451563712,"USD2021/kW"]
["CAPEX,WIND-ON,,ARG-EST,","CAPEX","WIND-ON","","ARG-EST","",1710.0691451563712,"USD2021/kW"]
["CAPEX,WIND-ON,,ARG-FOR,","CAPEX","WIND-ON","","ARG-FOR","",1710.0691451563712,"USD2021/kW"]
["CAPEX,WIND-ON,,ARG-FUE,","CAPEX","WIND-ON","","ARG-FUE","",1710.0691451563712,"USD2021/kW"]
["CAPEX,WIND-ON,,ARG-JUJ,","CAPEX","WIND-ON","","ARG-JUJ","",1710.0691451563712,"USD2021/kW"]
["CAPEX,WIND-ON,,ARG-LAR,","CAPEX","WIND-ON","","ARG-LAR","",1710.0691451563712,"USD2021/kW"]
["CAPEX,WIND-ON,,ARG-MEN,","CAPEX","WIND-ON","","ARG-MEN","",1710.0691451563712,"USD2021/kW"]
["CAPEX,WIND-ON,,ARG-MIS,","CAPEX","WIND-ON","","ARG-MIS","",1710.0691451563712,"USD2021/kW"]
["CAPEX,WIND-ON,,ARG-NEG,","CAPEX","WIND-ON","","ARG-NEG","",1710.0691451563712,"USD2021/kW"]
["CAPEX,WIND-ON,,ARG-NEU,","CAPEX","WIND-ON","","ARG-NEU","",1710.0691451563712,"USD2021/kW"]
["CAPEX,WIND-ON,,ARG-PAM,","CAPEX","WIND-ON","","ARG-PAM","",1710.0691451563712,"USD2021/kW"]
["CAPEX,WIND-ON,,ARG-RIO,","CAPEX","WIND-ON","","ARG-RIO","",1710.0691451563712,"USD2021/kW"]
["CAPEX,WIND-ON,,ARG-SAF,","CAPEX","WIND-ON","","ARG-SAF","",1710.0691451563712,"USD2021/kW"]
["CAPEX,WIND-ON,,ARG-SAJ,","CAPEX","WIND-ON","","ARG-SAJ","",1710.0691451563712,"USD2021/kW"]
["CAPEX,WIND-ON,,ARG-SAL,","CAPEX","WIND-ON","","ARG-SAL","",1710.0691451563712,"USD2021/kW"]
["CAPEX,WIND-ON,,ARG-SAT,","CAPEX","WIND-ON","","ARG-SAT","",1710.0691451563712,"USD2021/kW"]
["CAPEX,WIND-ON,,ARG-TUC,","CAPEX","WIND-ON","","ARG-TUC","",1710.0691451563712,"USD2021/kW"]
["CAPEX,WIND-ON,,AUS,","CAPEX","WIND-ON","","AUS","",1710.0691451563712,"USD2021/kW"]
["CAPEX,WIND-ON,,BRA,","CAPEX","WIND-ON","","BRA","",1123.7597239599011,"USD2021/kW"]
["CAPEX,WIND-ON,,CHL,","CAPEX","WIND-ON","","CHL","",1710.0691451563712,"USD2021/kW"]
["CAPEX,WIND-ON,,CHN,","CAPEX","WIND-ON","","CHN","",1130.6000005405265,"USD2021/kW"]
["CAPEX,WIND-ON,,COL,","CAPEX","WIND-ON","","COL","",1625,"USD2021/kW"]
["CAPEX,WIND-ON,,CRI,","CAPEX","WIND-ON","","CRI","",1546.8796895900205,"USD2021/kW"]
["CAPEX,WIND-ON,,DNK,","CAPEX","WIND-ON","","DNK","",1585.9669843364518,"USD2021/kW"]
["CAPEX,WIND-ON,,DZA,","CAPEX","WIND-ON","","DZA","",1848.8290415062024,"USD2021/kW"]
["CAPEX,WIND-ON,,EGY,","CAPEX","WIND-ON","","EGY","",1465.7735529911754,"USD2021/kW"]
["CAPEX,WIND-ON,,ESP,","CAPEX","WIND-ON","","ESP","",1144.8190191230835,"USD2021/kW"]
["CAPEX,WIND-ON,,IDN,","CAPEX","WIND-ON","","IDN","",2198.6603294867632,"USD2021/kW"]
["CAPEX,WIND-ON,,IND,","CAPEX","WIND-ON","","IND","",904.87087337988555,"USD2021/kW"]
["CAPEX,WIND-ON,,JOR,","CAPEX","WIND-ON","","JOR","",1848.8290415062024,"USD2021/kW"]
["CAPEX,WIND-ON,,KAZ,","CAPEX","WIND-ON","","KAZ","",1465.7735529911754,"USD2021/kW"]
["CAPEX,WIND-ON,,KEN,","CAPEX","WIND-ON","","KEN","",1848.8290415062024,"USD2021/kW"]
["CAPEX,WIND-ON,,MAR,","CAPEX","WIND-ON","","MAR","",1710.0691451563712,"USD2021/kW"]
["CAPEX,WIND-ON,,MAR-BEN,","CAPEX","WIND-ON","","MAR-BEN","",1710.0691451563712,"USD2021/kW"]
["CAPEX,WIND-ON,,MAR-CAS,","CAPEX","WIND-ON","","MAR-CAS","",1710.0691451563712,"USD2021/kW"]
["CAPEX,WIND-ON,,MAR-DAK,","CAPEX","WIND-ON","","MAR-DAK","",1710.0691451563712,"USD2021/kW"]
["CAPEX,WIND-ON,,MAR-DRA,","CAPEX","WIND-ON","","MAR-DRA","",1710.0691451563712,"USD2021/kW"]
["CAPEX,WIND-ON,,MAR-FES,","CAPEX","WIND-ON","","MAR-FES","",1710.0691451563712,"USD2021/kW"]
["CAPEX,WIND-ON,,MAR-GUE,","CAPEX","WIND-ON","","MAR-GUE","",1710.0691451563712,"USD2021/kW"]
["CAPEX,WIND-ON,,MAR-LAA,","CAPEX","WIND-ON","","MAR-LAA","",1710.0691451563712,"USD2021/kW"]
["CAPEX,WIND-ON,,MAR-LOR,","CAPEX","WIND-ON","","MAR-LOR","",1710.0691451563712,"USD2021/kW"]
["CAPEX,WIND-ON,,MAR-MAR,","CAPEX","WIND-ON","","MAR-MAR","",1710.0691451563712,"USD2021/kW"]
["CAPEX,WIND-ON,,MAR-RAB,","CAPEX","WIND-ON","","MAR-RAB","",1710.0691451563712,"USD2021/kW"]
["CAPEX,WIND-ON,,MAR-SOU,","CAPEX","WIND-ON","","MAR-SOU","",1710.0691451563712,"USD2021/kW"]
["CAPEX,WIND-ON,,MAR-TAN,","CAPEX","WIND-ON","","MAR-TAN","",1710.0691451563712,"USD2021/kW"]
["CAPEX,WIND-ON,,MEX,","CAPEX","WIND-ON","","MEX","",1437.8552328955,"USD2021/kW"]
["CAPEX,WIND-ON,,MRT,","CAPEX","WIND-ON","","MRT","",1848.8290415062024,"USD2021/kW"]
["CAPEX,WIND-ON,,NAM,","CAPEX","WIND-ON","","NAM","",1848.8290415062024,"USD2021/kW"]
["CAPEX,WIND-ON,,NOR,","CAPEX","WIND-ON","","NOR","",1465.7735529911754,"USD2021/kW"]
["CAPEX,WIND-ON,,PER,","CAPEX","WIND-ON","","PER","",1221.4779608259794,"USD2021/kW"]
["CAPEX,WIND-ON,,PRT,","CAPEX","WIND-ON","","PRT","",1710.0691451563712,"USD2021/kW"]
["CAPEX,WIND-ON,,RUS,","CAPEX","WIND-ON","","RUS","",1465.7735529911754,"USD2021/kW"]
["CAPEX,WIND-ON,,SAU,","CAPEX","WIND-ON","","SAU","",1509.7467595809105,"USD2021/kW"]
["CAPEX,WIND-ON,,SWE,","CAPEX","WIND-ON","","SWE","",1585.9669843364518,"USD2021/kW"]
["CAPEX,WIND-ON,,THA,","CAPEX","WIND-ON","","THA","",1509.7467595809105,"USD2021/kW"]
["CAPEX,WIND-ON,,TUN,","CAPEX","WIND-ON","","TUN","",1848.8290415062024,"USD2021/kW"]
["CAPEX,WIND-ON,,UKR,","CAPEX","WIND-ON","","UKR","",1465.7735529911754,"USD2021/kW"]
["CAPEX,WIND-ON,,URY,","CAPEX","WIND-ON","","URY","",2198.6603294867632,"USD2021/kW"]
["CAPEX,WIND-ON,,USA,","CAPEX","WIND-ON","","USA","",1350.1851629205719,"USD2021/kW"]
["CAPEX,WIND-ON,,VNM,","CAPEX","WIND-ON","","VNM","",2198.6603294867632,"USD2021/kW"]
["CAPEX,WIND-ON,,ZAF,","CAPEX","WIND-ON","","ZAF","",1710.0691451563712,"USD2021/kW"]
["CAPEX,WIND-ON,,ZAF-EC,","CAPEX","WIND-ON","","ZAF-EC","",1710.0691451563712,"USD2021/kW"]
["CAPEX,WIND-ON,,ZAF-FRS,","CAPEX","WIND-ON","","ZAF-FRS","",1710.0691451563712,"USD2021/kW"]
["CAPEX,WIND-ON,,ZAF-GAU,","CAPEX","WIND-ON","","ZAF-GAU","",1710.0691451563712,"USD2021/kW"]
["CAPEX,WIND-ON,,ZAF-KWA,","CAPEX","WIND-ON","","ZAF-KWA","",1710.0691451563712,"USD2021/kW"]
["CAPEX,WIND-ON,,ZAF-LIM,","CAPEX","WIND-ON","","ZAF-LIM","",1710.0691451563712,"USD2021/kW"]
["CAPEX,WIND-ON,,ZAF-MPU,","CAPEX","WIND-ON","","ZAF-MPU","",1710.0691451563712,"USD2021/kW"]
["CAPEX,WIND-ON,,ZAF-NC,","CAPEX","WIND-ON","","ZAF-NC","",1710.0691451563712,"USD2021/kW"]
["CAPEX,WIND-ON,,ZAF-NW,","CAPEX","WIND-ON","","ZAF-NW","",1710.0691451563712,"USD2021/kW"]
["CAPEX,WIND-ON,,ZAF-WC,","CAPEX","WIND-ON","","ZAF-WC","",1710.0691451563712,"USD2021/kW"]
["CAP-T,,,DNK,DEU","CAP-T","","","DNK","DEU",1,"kWh/a"]
["CAP-T,,,DZA,ESP","CAP-T","","","DZA","ESP",1,"kWh/a"]
["CAP-T,,,ESP,FRA","CAP-T","","","ESP","FRA",1,"kWh/a"]
["CAP-T,,,KAZ,CHN","CAP-T","","","KAZ","CHN",1,"kWh/a"]
["CAP-T,,,MAR,ESP","CAP-T","","","MAR","ESP",1,"kWh/a"]
["CAP-T,,,MAR-BEN,ESP","CAP-T","","","MAR-BEN","ESP",1,"kWh/a"]
["CAP-T,,,MAR-CAS,ESP","CAP-T","","","MAR-CAS","ESP",1,"kWh/a"]
["CAP-T,,,MAR-DAK,ESP","CAP-T","","","MAR-DAK","ESP",1,"kWh/a"]
["CAP-T,,,MAR-DRA,ESP","CAP-T","","","MAR-DRA","ESP",1,"kWh/a"]
["CAP-T,,,MAR-FES,ESP","CAP-T","","","MAR-FES","ESP",1,"kWh/a"]
["CAP-T,,,MAR-GUE,ESP","CAP-T","","","MAR-GUE","ESP",1,"kWh/a"]
["CAP-T,,,MAR-LAA,ESP","CAP-T","","","MAR-LAA","ESP",1,"kWh/a"]
["CAP-T,,,MAR-LOR,ESP","CAP-T","","","MAR-LOR","ESP",1,"kWh/a"]
["CAP-T,,,MAR-MAR,ESP","CAP-T","","","MAR-MAR","ESP",1,"kWh/a"]
["CAP-T,,,MAR-RAB,ESP","CAP-T","","","MAR-RAB","ESP",1,"kWh/a"]
["CAP-T,,,MAR-SOU,ESP","CAP-T","","","MAR-SOU","ESP",1,"kWh/a"]
["CAP-T,,,MAR-TAN,ESP","CAP-T","","","MAR-TAN","ESP",1,"kWh/a"]
["CAP-T,,,MEX,USA","CAP-T","","","MEX","USA",1,"kWh/a"]
["CAP-T,,,NOR,DEU","CAP-T","","","NOR","DEU",1,"kWh/a"]
["CAP-T,,,PRT,ESP","CAP-T","","","PRT","ESP",1,"kWh/a"]
["CAP-T,,,RUS,CHN","CAP-T","","","RUS","CHN",1,"kWh/a"]
["CAP-T,,,RUS,DEU","CAP-T","","","RUS","DEU",1,"kWh/a"]
["CONV,AEL-EL,H2O-L,,","CONV","AEL-EL","H2O-L","","",0.3,"kg H2O (l)/H2-G"]
["CONV,ATR,EL,,","CONV","ATR","EL","","",0.10771077107710771,"kWh (el.)/H2-G","Oni et al. 2022"]
["CONV,CH3OH-SB,BFUEL-L,,","CONV","CH3OH-SB","BFUEL-L","","",3.0509883673175369E-6,"kwh bunker fuel (l)/(km*CH3OH-L)","calc_shipping"]
["CONV,CH3OHSYN,CO2-G,,","CONV","CH3OHSYN","CO2-G","","",0.26448241206030154,"kg CO2 (g)/kWh CH3OH (l)","Frotier Economics 2021"]
["CONV,CH3OHSYN,EL,,","CONV","CH3OHSYN","EL","","",3.9989420788151285E-2,"kWh (el.)/kWh CH3OH (l)","Fasihi & Breyer 2018"]
["CONV,CH4-COMP,EL,,","CONV","CH4-COMP","EL","","",0.02,"kWh (el.)/CH4-G","DNV GL 2020"]
["CONV,CH4-LIQ,EL,,","CONV","CH4-LIQ","EL","","",0.10526315789473685,"kWh (el.)/CH4-L","Pospíšil et al. 2019"]
["CONV,CH4-SB,BFUEL-L,,","CONV","CH4-SB","BFUEL-L","","",3.3002590965851548E-6,"kwh bunker fuel (l)/(km*CH4-L)","calc_shipping"]
["CONV,CH4SYN,CO2-G,,","CONV","CH4SYN","CO2-G","","",0.20196,"kg CO2 (g)/kWh CH4 (g)"]
["CONV,CH4SYN,H2O-L,,","CONV","CH4SYN","H2O-L","","",-0.14263322884012539,"kg H2O (l)/kWh CH4 (g)","Fasihi & Breyer 2018"]
["CONV,CH4SYN,HEAT,,","CONV","CH4SYN","HEAT","","",-0.18495297805642633,"kWh (heat)/kWh CH4 (g)","Fasihi & Breyer 2018"]
["CONV,DAC,EL,,","CONV","DAC","EL","","",0.46249999999999997,"kWh (el.)/kg CO2 (g)","average low and high"]
["CONV,DAC,H2O-L,,","CONV","DAC","H2O-L","","",-1.4,"kg H2O (l)/kg CO2 (g)","Fasihi et al. 2019"]
["CONV,DAC,HEAT,,","CONV","DAC","HEAT","","",1.85,"kWh (heat)/kg CO2 (g)","average low and high"]
["CONV,DESAL,EL,,","CONV","DESAL","EL","","",3.0000000000000001E-3,"kWh (el.)/kg H2O (l)"]
["CONV,DRI,EL,,","CONV","DRI","EL","","",0.10829670329670329,"kWh (el.)/kg DRI (s)","Agora Industry Transformation 2021"]
["CONV,EFUELSYN,CO2-G,,","CONV","EFUELSYN","CO2-G","","",0.26455813953488377,"kg CO2 (g)/kwh CHx (l)","Frontier Economics 2021"]
["CONV,EFUELSYN,EL,,","CONV","EFUELSYN","EL","","",8.5778781038374718E-2,"kWh (el.)/kwh CHx (l)","Fasihi & Breyer 2018"]
["CONV,EFUELSYN,H2O-L,,","CONV","EFUELSYN","H2O-L","","",-0.24830699774266365,"kg H2O (l)/kwh CHx (l)","Fasihi & Breyer 2018"]
["CONV,EFUELSYN,HEAT,,","CONV","EFUELSYN","HEAT","","",-0.40397350993377484,"kWh (heat)/kwh CHx (l)","Fasihi & Breyer 2018"]
["CONV,H2-COMP,EL,,","CONV","H2-COMP","EL","","",0.02,"kWh (el.)/H2-G","DNV GL 2020"]
["CONV,H2-LIQ,EL,,","CONV","H2-LIQ","EL","","",0.30010003334444812,"kWh (el.)/H2-L","DNV GL 2020"]
["CONV,H2-SB,BFUEL-L,,","CONV","H2-SB","BFUEL-L","","",7.9560265731287527E-6,"kwh bunker fuel (l)/(km*H2-L)","calc_shipping"]
["CONV,LOHC-CON,EL,,","CONV","LOHC-CON","EL","","",0.01,"kWh (el.)/LOHC-L","DNV GL 2020"]
["CONV,LOHC-REC,EL,,","CONV","LOHC-REC","EL","","",2.8502850285028507E-2,"kWh (el.)/H2-G","Staiß et al. 2022 nach Wasserscheid"]
["CONV,LOHC-REC,HEAT,,","CONV","LOHC-REC","HEAT","","",0.40540540540540537,"kWh (heat)/H2-G","DNV GL 2020"]
["CONV,LOHC-SB,BFUEL-L,,","CONV","LOHC-SB","BFUEL-L","","",9.9204160904178207E-6,"kwh bunker fuel (l)/(km*LOHC-L)","calc_shipping"]
["CONV,NH3-REC,EL,,","CONV","NH3-REC","EL","","",7.6699999999999989E-3,"kWh (el.)/H2-G","NGN; Equinor 2018"]
["CONV,NH3-SB,BFUEL-L,,","CONV","NH3-SB","BFUEL-L","","",5.3436561034163411E-6,"kwh bunker fuel (l)/(km*NH3-L)","calc_shipping"]
["CONV,NH3SYN,EL,,","CONV","NH3SYN","EL","","",0.14192307692307693,"kWh (el.)/kWh NH3 (l)","Fasihi et al. 2021"]
["CONV,NH3SYN,N2-G,,","CONV","NH3SYN","N2-G","","",0.15980769230769232,"kg N2 (g)/kWh NH3 (l)","Fasihi et al. 2021"]
["CONV,PEM-EL,H2O-L,,","CONV","PEM-EL","H2O-L","","",0.3,"kg H2O (l)/H2-G"]
["CONV,REGASATR,EL,,","CONV","REGASATR","EL","","",0.10771077107710771,"kWh (el.)/H2-G","combined values"]
["CONV,SOEC-EL,H2O-L,,","CONV","SOEC-EL","H2O-L","","",0.3,"kg H2O (l)/H2-G"]
["CONV,SYN-S,CHX-L,,","CONV","SYN-S","CHX-L","","",1.2641936395012889E-6,"kwh CHx (l)/(km*CHX-L)","calc_shipping"]
["CONV,SYN-SB,BFUEL-L,,","CONV","SYN-SB","BFUEL-L","","",1.2641936395012889E-6,"kwh bunker fuel (l)/(km*CHX-L)","calc_shipping"]
["DST-S-D,,,ARE,CHN","DST-S-D","","","ARE","CHN",10367.799999999999,null,"CERDI"]
["DST-S-D,,,ARE,DEU","DST-S-D","","","ARE","DEU",12441.9,null,"CERDI"]
["DST-S-D,,,ARE,ESP","DST-S-D","","","ARE","ESP",8992.74,null,"CERDI"]
["DST-S-D,,,ARE,FRA","DST-S-D","","","ARE","FRA",7580.97,null,"CERDI"]
["DST-S-D,,,ARE,IND","DST-S-D","","","ARE","IND",1804.27,null,"CERDI"]
["DST-S-D,,,ARE,JPN","DST-S-D","","","ARE","JPN",11276.3,null,"CERDI"]
["DST-S-D,,,ARE,KOR","DST-S-D","","","ARE","KOR",10955.6,null,"CERDI"]
["DST-S-D,,,ARE,NLD","DST-S-D","","","ARE","NLD",11975.9,null,"CERDI"]
["DST-S-D,,,ARE,USA","DST-S-D","","","ARE","USA",18373.3,null,"CERDI"]
["DST-S-D,,,ARG,CHN","DST-S-D","","","ARG","CHN",19486.8,null,"CERDI"]
["DST-S-D,,,ARG,DEU","DST-S-D","","","ARG","DEU",12728.796,null,"SEA-DISTANCES.ORG"]
["DST-S-D,,,ARG,ESP","DST-S-D","","","ARG","ESP",11766,null,"CERDI"]
["DST-S-D,,,ARG,FRA","DST-S-D","","","ARG","FRA",13195.9,null,"CERDI"]
["DST-S-D,,,ARG,IND","DST-S-D","","","ARG","IND",16155.2,null,"CERDI"]
["DST-S-D,,,ARG,JPN","DST-S-D","","","ARG","JPN",18848.2,null,"CERDI"]
["DST-S-D,,,ARG,KOR","DST-S-D","","","ARG","KOR",19350,null,"CERDI"]
["DST-S-D,,,ARG,NLD","DST-S-D","","","ARG","NLD",13750.5,null,"CERDI"]
["DST-S-D,,,ARG,USA","DST-S-D","","","ARG","USA",12589.7,null,"CERDI"]
["DST-S-D,,,ARG-BA,CHN","DST-S-D","","","ARG-BA","CHN",19486.8,null,"CERDI"]
["DST-S-D,,,ARG-BA,DEU","DST-S-D","","","ARG-BA","DEU",12728.796,null,"SEA-DISTANCES.ORG"]
["DST-S-D,,,ARG-BA,ESP","DST-S-D","","","ARG-BA","ESP",11766,null,"CERDI"]
["DST-S-D,,,ARG-BA,FRA","DST-S-D","","","ARG-BA","FRA",13195.9,null,"CERDI"]
["DST-S-D,,,ARG-BA,IND","DST-S-D","","","ARG-BA","IND",16155.2,null,"CERDI"]
["DST-S-D,,,ARG-BA,JPN","DST-S-D","","","ARG-BA","JPN",18848.2,null,"CERDI"]
["DST-S-D,,,ARG-BA,KOR","DST-S-D","","","ARG-BA","KOR",19350,null,"CERDI"]
["DST-S-D,,,ARG-BA,NLD","DST-S-D","","","ARG-BA","NLD",13750.5,null,"CERDI"]
["DST-S-D,,,ARG-BA,USA","DST-S-D","","","ARG-BA","USA",12589.7,null,"CERDI"]
["DST-S-D,,,ARG-CAT,CHN","DST-S-D","","","ARG-CAT","CHN",19486.8,null,"CERDI"]
["DST-S-D,,,ARG-CAT,DEU","DST-S-D","","","ARG-CAT","DEU",12728.796,null,"SEA-DISTANCES.ORG"]
["DST-S-D,,,ARG-CAT,ESP","DST-S-D","","","ARG-CAT","ESP",11766,null,"CERDI"]
["DST-S-D,,,ARG-CAT,FRA","DST-S-D","","","ARG-CAT","FRA",13195.9,null,"CERDI"]
["DST-S-D,,,ARG-CAT,IND","DST-S-D","","","ARG-CAT","IND",16155.2,null,"CERDI"]
["DST-S-D,,,ARG-CAT,JPN","DST-S-D","","","ARG-CAT","JPN",18848.2,null,"CERDI"]
["DST-S-D,,,ARG-CAT,KOR","DST-S-D","","","ARG-CAT","KOR",19350,null,"CERDI"]
["DST-S-D,,,ARG-CAT,NLD","DST-S-D","","","ARG-CAT","NLD",13750.5,null,"CERDI"]
["DST-S-D,,,ARG-CAT,USA","DST-S-D","","","ARG-CAT","USA",12589.7,null,"CERDI"]
["DST-S-D,,,ARG-CBA,CHN","DST-S-D","","","ARG-CBA","CHN",19486.8,null,"CERDI"]
["DST-S-D,,,ARG-CBA,DEU","DST-S-D","","","ARG-CBA","DEU",12728.796,null,"SEA-DISTANCES.ORG"]
["DST-S-D,,,ARG-CBA,ESP","DST-S-D","","","ARG-CBA","ESP",11766,null,"CERDI"]
["DST-S-D,,,ARG-CBA,FRA","DST-S-D","","","ARG-CBA","FRA",13195.9,null,"CERDI"]
["DST-S-D,,,ARG-CBA,IND","DST-S-D","","","ARG-CBA","IND",16155.2,null,"CERDI"]
["DST-S-D,,,ARG-CBA,JPN","DST-S-D","","","ARG-CBA","JPN",18848.2,null,"CERDI"]
["DST-S-D,,,ARG-CBA,KOR","DST-S-D","","","ARG-CBA","KOR",19350,null,"CERDI"]
["DST-S-D,,,ARG-CBA,NLD","DST-S-D","","","ARG-CBA","NLD",13750.5,null,"CERDI"]
["DST-S-D,,,ARG-CBA,USA","DST-S-D","","","ARG-CBA","USA",12589.7,null,"CERDI"]
["DST-S-D,,,ARG-CHA,CHN","DST-S-D","","","ARG-CHA","CHN",19486.8,null,"CERDI"]
["DST-S-D,,,ARG-CHA,DEU","DST-S-D","","","ARG-CHA","DEU",12728.796,null,"SEA-DISTANCES.ORG"]
["DST-S-D,,,ARG-CHA,ESP","DST-S-D","","","ARG-CHA","ESP",11766,null,"CERDI"]
["DST-S-D,,,ARG-CHA,FRA","DST-S-D","","","ARG-CHA","FRA",13195.9,null,"CERDI"]
["DST-S-D,,,ARG-CHA,IND","DST-S-D","","","ARG-CHA","IND",16155.2,null,"CERDI"]
["DST-S-D,,,ARG-CHA,JPN","DST-S-D","","","ARG-CHA","JPN",18848.2,null,"CERDI"]
["DST-S-D,,,ARG-CHA,KOR","DST-S-D","","","ARG-CHA","KOR",19350,null,"CERDI"]
["DST-S-D,,,ARG-CHA,NLD","DST-S-D","","","ARG-CHA","NLD",13750.5,null,"CERDI"]
["DST-S-D,,,ARG-CHA,USA","DST-S-D","","","ARG-CHA","USA",12589.7,null,"CERDI"]
["DST-S-D,,,ARG-CHU,CHN","DST-S-D","","","ARG-CHU","CHN",19486.8,null,"CERDI"]
["DST-S-D,,,ARG-CHU,DEU","DST-S-D","","","ARG-CHU","DEU",12728.796,null,"SEA-DISTANCES.ORG"]
["DST-S-D,,,ARG-CHU,ESP","DST-S-D","","","ARG-CHU","ESP",11766,null,"CERDI"]
["DST-S-D,,,ARG-CHU,FRA","DST-S-D","","","ARG-CHU","FRA",13195.9,null,"CERDI"]
["DST-S-D,,,ARG-CHU,IND","DST-S-D","","","ARG-CHU","IND",16155.2,null,"CERDI"]
["DST-S-D,,,ARG-CHU,JPN","DST-S-D","","","ARG-CHU","JPN",18848.2,null,"CERDI"]
["DST-S-D,,,ARG-CHU,KOR","DST-S-D","","","ARG-CHU","KOR",19350,null,"CERDI"]
["DST-S-D,,,ARG-CHU,NLD","DST-S-D","","","ARG-CHU","NLD",13750.5,null,"CERDI"]
["DST-S-D,,,ARG-CHU,USA","DST-S-D","","","ARG-CHU","USA",12589.7,null,"CERDI"]
["DST-S-D,,,ARG-COR,CHN","DST-S-D","","","ARG-COR","CHN",19486.8,null,"CERDI"]
["DST-S-D,,,ARG-COR,DEU","DST-S-D","","","ARG-COR","DEU",12728.796,null,"SEA-DISTANCES.ORG"]
["DST-S-D,,,ARG-COR,ESP","DST-S-D","","","ARG-COR","ESP",11766,null,"CERDI"]
["DST-S-D,,,ARG-COR,FRA","DST-S-D","","","ARG-COR","FRA",13195.9,null,"CERDI"]
["DST-S-D,,,ARG-COR,IND","DST-S-D","","","ARG-COR","IND",16155.2,null,"CERDI"]
["DST-S-D,,,ARG-COR,JPN","DST-S-D","","","ARG-COR","JPN",18848.2,null,"CERDI"]
["DST-S-D,,,ARG-COR,KOR","DST-S-D","","","ARG-COR","KOR",19350,null,"CERDI"]
["DST-S-D,,,ARG-COR,NLD","DST-S-D","","","ARG-COR","NLD",13750.5,null,"CERDI"]
["DST-S-D,,,ARG-COR,USA","DST-S-D","","","ARG-COR","USA",12589.7,null,"CERDI"]
["DST-S-D,,,ARG-CRB,CHN","DST-S-D","","","ARG-CRB","CHN",19486.8,null,"CERDI"]
["DST-S-D,,,ARG-CRB,DEU","DST-S-D","","","ARG-CRB","DEU",12728.796,null,"SEA-DISTANCES.ORG"]
["DST-S-D,,,ARG-CRB,ESP","DST-S-D","","","ARG-CRB","ESP",11766,null,"CERDI"]
["DST-S-D,,,ARG-CRB,FRA","DST-S-D","","","ARG-CRB","FRA",13195.9,null,"CERDI"]
["DST-S-D,,,ARG-CRB,IND","DST-S-D","","","ARG-CRB","IND",16155.2,null,"CERDI"]
["DST-S-D,,,ARG-CRB,JPN","DST-S-D","","","ARG-CRB","JPN",18848.2,null,"CERDI"]
["DST-S-D,,,ARG-CRB,KOR","DST-S-D","","","ARG-CRB","KOR",19350,null,"CERDI"]
["DST-S-D,,,ARG-CRB,NLD","DST-S-D","","","ARG-CRB","NLD",13750.5,null,"CERDI"]
["DST-S-D,,,ARG-CRB,USA","DST-S-D","","","ARG-CRB","USA",12589.7,null,"CERDI"]
["DST-S-D,,,ARG-CRU,CHN","DST-S-D","","","ARG-CRU","CHN",19486.8,null,"CERDI"]
["DST-S-D,,,ARG-CRU,DEU","DST-S-D","","","ARG-CRU","DEU",12728.796,null,"SEA-DISTANCES.ORG"]
["DST-S-D,,,ARG-CRU,ESP","DST-S-D","","","ARG-CRU","ESP",11766,null,"CERDI"]
["DST-S-D,,,ARG-CRU,FRA","DST-S-D","","","ARG-CRU","FRA",13195.9,null,"CERDI"]
["DST-S-D,,,ARG-CRU,IND","DST-S-D","","","ARG-CRU","IND",16155.2,null,"CERDI"]
["DST-S-D,,,ARG-CRU,JPN","DST-S-D","","","ARG-CRU","JPN",18848.2,null,"CERDI"]
["DST-S-D,,,ARG-CRU,KOR","DST-S-D","","","ARG-CRU","KOR",19350,null,"CERDI"]
["DST-S-D,,,ARG-CRU,NLD","DST-S-D","","","ARG-CRU","NLD",13750.5,null,"CERDI"]
["DST-S-D,,,ARG-CRU,USA","DST-S-D","","","ARG-CRU","USA",12589.7,null,"CERDI"]
["DST-S-D,,,ARG-EST,CHN","DST-S-D","","","ARG-EST","CHN",19486.8,null,"CERDI"]
["DST-S-D,,,ARG-EST,DEU","DST-S-D","","","ARG-EST","DEU",12728.796,null,"SEA-DISTANCES.ORG"]
["DST-S-D,,,ARG-EST,ESP","DST-S-D","","","ARG-EST","ESP",11766,null,"CERDI"]
["DST-S-D,,,ARG-EST,FRA","DST-S-D","","","ARG-EST","FRA",13195.9,null,"CERDI"]
["DST-S-D,,,ARG-EST,IND","DST-S-D","","","ARG-EST","IND",16155.2,null,"CERDI"]
["DST-S-D,,,ARG-EST,JPN","DST-S-D","","","ARG-EST","JPN",18848.2,null,"CERDI"]
["DST-S-D,,,ARG-EST,KOR","DST-S-D","","","ARG-EST","KOR",19350,null,"CERDI"]
["DST-S-D,,,ARG-EST,NLD","DST-S-D","","","ARG-EST","NLD",13750.5,null,"CERDI"]
["DST-S-D,,,ARG-EST,USA","DST-S-D","","","ARG-EST","USA",12589.7,null,"CERDI"]
["DST-S-D,,,ARG-FOR,CHN","DST-S-D","","","ARG-FOR","CHN",19486.8,null,"CERDI"]
["DST-S-D,,,ARG-FOR,DEU","DST-S-D","","","ARG-FOR","DEU",12728.796,null,"SEA-DISTANCES.ORG"]
["DST-S-D,,,ARG-FOR,ESP","DST-S-D","","","ARG-FOR","ESP",11766,null,"CERDI"]
["DST-S-D,,,ARG-FOR,FRA","DST-S-D","","","ARG-FOR","FRA",13195.9,null,"CERDI"]
["DST-S-D,,,ARG-FOR,IND","DST-S-D","","","ARG-FOR","IND",16155.2,null,"CERDI"]
["DST-S-D,,,ARG-FOR,JPN","DST-S-D","","","ARG-FOR","JPN",18848.2,null,"CERDI"]
["DST-S-D,,,ARG-FOR,KOR","DST-S-D","","","ARG-FOR","KOR",19350,null,"CERDI"]
["DST-S-D,,,ARG-FOR,NLD","DST-S-D","","","ARG-FOR","NLD",13750.5,null,"CERDI"]
["DST-S-D,,,ARG-FOR,USA","DST-S-D","","","ARG-FOR","USA",12589.7,null,"CERDI"]
["DST-S-D,,,ARG-FUE,CHN","DST-S-D","","","ARG-FUE","CHN",19486.8,null,"CERDI"]
["DST-S-D,,,ARG-FUE,DEU","DST-S-D","","","ARG-FUE","DEU",12728.796,null,"SEA-DISTANCES.ORG"]
["DST-S-D,,,ARG-FUE,ESP","DST-S-D","","","ARG-FUE","ESP",11766,null,"CERDI"]
["DST-S-D,,,ARG-FUE,FRA","DST-S-D","","","ARG-FUE","FRA",13195.9,null,"CERDI"]
["DST-S-D,,,ARG-FUE,IND","DST-S-D","","","ARG-FUE","IND",16155.2,null,"CERDI"]
["DST-S-D,,,ARG-FUE,JPN","DST-S-D","","","ARG-FUE","JPN",18848.2,null,"CERDI"]
["DST-S-D,,,ARG-FUE,KOR","DST-S-D","","","ARG-FUE","KOR",19350,null,"CERDI"]
["DST-S-D,,,ARG-FUE,NLD","DST-S-D","","","ARG-FUE","NLD",13750.5,null,"CERDI"]
["DST-S-D,,,ARG-FUE,USA","DST-S-D","","","ARG-FUE","USA",12589.7,null,"CERDI"]
["DST-S-D,,,ARG-JUJ,CHN","DST-S-D","","","ARG-JUJ","CHN",19486.8,null,"CERDI"]
["DST-S-D,,,ARG-JUJ,DEU","DST-S-D","","","ARG-JUJ","DEU",12728.796,null,"SEA-DISTANCES.ORG"]
["DST-S-D,,,ARG-JUJ,ESP","DST-S-D","","","ARG-JUJ","ESP",11766,null,"CERDI"]
["DST-S-D,,,ARG-JUJ,FRA","DST-S-D","","","ARG-JUJ","FRA",13195.9,null,"CERDI"]
["DST-S-D,,,ARG-JUJ,IND","DST-S-D","","","ARG-JUJ","IND",16155.2,null,"CERDI"]
["DST-S-D,,,ARG-JUJ,JPN","DST-S-D","","","ARG-JUJ","JPN",18848.2,null,"CERDI"]
["DST-S-D,,,ARG-JUJ,KOR","DST-S-D","","","ARG-JUJ","KOR",19350,null,"CERDI"]
["DST-S-D,,,ARG-JUJ,NLD","DST-S-D","","","ARG-JUJ","NLD",13750.5,null,"CERDI"]
["DST-S-D,,,ARG-JUJ,USA","DST-S-D","","","ARG-JUJ","USA",12589.7,null,"CERDI"]
["DST-S-D,,,ARG-LAR,CHN","DST-S-D","","","ARG-LAR","CHN",19486.8,null,"CERDI"]
["DST-S-D,,,ARG-LAR,DEU","DST-S-D","","","ARG-LAR","DEU",12728.796,null,"SEA-DISTANCES.ORG"]
["DST-S-D,,,ARG-LAR,ESP","DST-S-D","","","ARG-LAR","ESP",11766,null,"CERDI"]
["DST-S-D,,,ARG-LAR,FRA","DST-S-D","","","ARG-LAR","FRA",13195.9,null,"CERDI"]
["DST-S-D,,,ARG-LAR,IND","DST-S-D","","","ARG-LAR","IND",16155.2,null,"CERDI"]
["DST-S-D,,,ARG-LAR,JPN","DST-S-D","","","ARG-LAR","JPN",18848.2,null,"CERDI"]
["DST-S-D,,,ARG-LAR,KOR","DST-S-D","","","ARG-LAR","KOR",19350,null,"CERDI"]
["DST-S-D,,,ARG-LAR,NLD","DST-S-D","","","ARG-LAR","NLD",13750.5,null,"CERDI"]
["DST-S-D,,,ARG-LAR,USA","DST-S-D","","","ARG-LAR","USA",12589.7,null,"CERDI"]
["DST-S-D,,,ARG-MEN,CHN","DST-S-D","","","ARG-MEN","CHN",19486.8,null,"CERDI"]
["DST-S-D,,,ARG-MEN,DEU","DST-S-D","","","ARG-MEN","DEU",12728.796,null,"SEA-DISTANCES.ORG"]
["DST-S-D,,,ARG-MEN,ESP","DST-S-D","","","ARG-MEN","ESP",11766,null,"CERDI"]
["DST-S-D,,,ARG-MEN,FRA","DST-S-D","","","ARG-MEN","FRA",13195.9,null,"CERDI"]
["DST-S-D,,,ARG-MEN,IND","DST-S-D","","","ARG-MEN","IND",16155.2,null,"CERDI"]
["DST-S-D,,,ARG-MEN,JPN","DST-S-D","","","ARG-MEN","JPN",18848.2,null,"CERDI"]
["DST-S-D,,,ARG-MEN,KOR","DST-S-D","","","ARG-MEN","KOR",19350,null,"CERDI"]
["DST-S-D,,,ARG-MEN,NLD","DST-S-D","","","ARG-MEN","NLD",13750.5,null,"CERDI"]
["DST-S-D,,,ARG-MEN,USA","DST-S-D","","","ARG-MEN","USA",12589.7,null,"CERDI"]
["DST-S-D,,,ARG-MIS,CHN","DST-S-D","","","ARG-MIS","CHN",19486.8,null,"CERDI"]
["DST-S-D,,,ARG-MIS,DEU","DST-S-D","","","ARG-MIS","DEU",12728.796,null,"SEA-DISTANCES.ORG"]
["DST-S-D,,,ARG-MIS,ESP","DST-S-D","","","ARG-MIS","ESP",11766,null,"CERDI"]
["DST-S-D,,,ARG-MIS,FRA","DST-S-D","","","ARG-MIS","FRA",13195.9,null,"CERDI"]
["DST-S-D,,,ARG-MIS,IND","DST-S-D","","","ARG-MIS","IND",16155.2,null,"CERDI"]
["DST-S-D,,,ARG-MIS,JPN","DST-S-D","","","ARG-MIS","JPN",18848.2,null,"CERDI"]
["DST-S-D,,,ARG-MIS,KOR","DST-S-D","","","ARG-MIS","KOR",19350,null,"CERDI"]
["DST-S-D,,,ARG-MIS,NLD","DST-S-D","","","ARG-MIS","NLD",13750.5,null,"CERDI"]
["DST-S-D,,,ARG-MIS,USA","DST-S-D","","","ARG-MIS","USA",12589.7,null,"CERDI"]
["DST-S-D,,,ARG-NEG,CHN","DST-S-D","","","ARG-NEG","CHN",19486.8,null,"CERDI"]
["DST-S-D,,,ARG-NEG,DEU","DST-S-D","","","ARG-NEG","DEU",12728.796,null,"SEA-DISTANCES.ORG"]
["DST-S-D,,,ARG-NEG,ESP","DST-S-D","","","ARG-NEG","ESP",11766,null,"CERDI"]
["DST-S-D,,,ARG-NEG,FRA","DST-S-D","","","ARG-NEG","FRA",13195.9,null,"CERDI"]
["DST-S-D,,,ARG-NEG,IND","DST-S-D","","","ARG-NEG","IND",16155.2,null,"CERDI"]
["DST-S-D,,,ARG-NEG,JPN","DST-S-D","","","ARG-NEG","JPN",18848.2,null,"CERDI"]
["DST-S-D,,,ARG-NEG,KOR","DST-S-D","","","ARG-NEG","KOR",19350,null,"CERDI"]
["DST-S-D,,,ARG-NEG,NLD","DST-S-D","","","ARG-NEG","NLD",13750.5,null,"CERDI"]
["DST-S-D,,,ARG-NEG,USA","DST-S-D","","","ARG-NEG","USA",12589.7,null,"CERDI"]
["DST-S-D,,,ARG-NEU,CHN","DST-S-D","","","ARG-NEU","CHN",19486.8,null,"CERDI"]
["DST-S-D,,,ARG-NEU,DEU","DST-S-D","","","ARG-NEU","DEU",12728.796,null,"SEA-DISTANCES.ORG"]
["DST-S-D,,,ARG-NEU,ESP","DST-S-D","","","ARG-NEU","ESP",11766,null,"CERDI"]
["DST-S-D,,,ARG-NEU,FRA","DST-S-D","","","ARG-NEU","FRA",13195.9,null,"CERDI"]
["DST-S-D,,,ARG-NEU,IND","DST-S-D","","","ARG-NEU","IND",16155.2,null,"CERDI"]
["DST-S-D,,,ARG-NEU,JPN","DST-S-D","","","ARG-NEU","JPN",18848.2,null,"CERDI"]
["DST-S-D,,,ARG-NEU,KOR","DST-S-D","","","ARG-NEU","KOR",19350,null,"CERDI"]
["DST-S-D,,,ARG-NEU,NLD","DST-S-D","","","ARG-NEU","NLD",13750.5,null,"CERDI"]
["DST-S-D,,,ARG-NEU,USA","DST-S-D","","","ARG-NEU","USA",12589.7,null,"CERDI"]
["DST-S-D,,,ARG-PAM,CHN","DST-S-D","","","ARG-PAM","CHN",19486.8,null,"CERDI"]
["DST-S-D,,,ARG-PAM,DEU","DST-S-D","","","ARG-PAM","DEU",12728.796,null,"SEA-DISTANCES.ORG"]
["DST-S-D,,,ARG-PAM,ESP","DST-S-D","","","ARG-PAM","ESP",11766,null,"CERDI"]
["DST-S-D,,,ARG-PAM,FRA","DST-S-D","","","ARG-PAM","FRA",13195.9,null,"CERDI"]
["DST-S-D,,,ARG-PAM,IND","DST-S-D","","","ARG-PAM","IND",16155.2,null,"CERDI"]
["DST-S-D,,,ARG-PAM,JPN","DST-S-D","","","ARG-PAM","JPN",18848.2,null,"CERDI"]
["DST-S-D,,,ARG-PAM,KOR","DST-S-D","","","ARG-PAM","KOR",19350,null,"CERDI"]
["DST-S-D,,,ARG-PAM,NLD","DST-S-D","","","ARG-PAM","NLD",13750.5,null,"CERDI"]
["DST-S-D,,,ARG-PAM,USA","DST-S-D","","","ARG-PAM","USA",12589.7,null,"CERDI"]
["DST-S-D,,,ARG-RIO,CHN","DST-S-D","","","ARG-RIO","CHN",19486.8,null,"CERDI"]
["DST-S-D,,,ARG-RIO,DEU","DST-S-D","","","ARG-RIO","DEU",12728.796,null,"SEA-DISTANCES.ORG"]
["DST-S-D,,,ARG-RIO,ESP","DST-S-D","","","ARG-RIO","ESP",11766,null,"CERDI"]
["DST-S-D,,,ARG-RIO,FRA","DST-S-D","","","ARG-RIO","FRA",13195.9,null,"CERDI"]
["DST-S-D,,,ARG-RIO,IND","DST-S-D","","","ARG-RIO","IND",16155.2,null,"CERDI"]
["DST-S-D,,,ARG-RIO,JPN","DST-S-D","","","ARG-RIO","JPN",18848.2,null,"CERDI"]
["DST-S-D,,,ARG-RIO,KOR","DST-S-D","","","ARG-RIO","KOR",19350,null,"CERDI"]
["DST-S-D,,,ARG-RIO,NLD","DST-S-D","","","ARG-RIO","NLD",13750.5,null,"CERDI"]
["DST-S-D,,,ARG-RIO,USA","DST-S-D","","","ARG-RIO","USA",12589.7,null,"CERDI"]
["DST-S-D,,,ARG-SAF,CHN","DST-S-D","","","ARG-SAF","CHN",19486.8,null,"CERDI"]
["DST-S-D,,,ARG-SAF,DEU","DST-S-D","","","ARG-SAF","DEU",12728.796,null,"SEA-DISTANCES.ORG"]
["DST-S-D,,,ARG-SAF,ESP","DST-S-D","","","ARG-SAF","ESP",11766,null,"CERDI"]
["DST-S-D,,,ARG-SAF,FRA","DST-S-D","","","ARG-SAF","FRA",13195.9,null,"CERDI"]
["DST-S-D,,,ARG-SAF,IND","DST-S-D","","","ARG-SAF","IND",16155.2,null,"CERDI"]
["DST-S-D,,,ARG-SAF,JPN","DST-S-D","","","ARG-SAF","JPN",18848.2,null,"CERDI"]
["DST-S-D,,,ARG-SAF,KOR","DST-S-D","","","ARG-SAF","KOR",19350,null,"CERDI"]
["DST-S-D,,,ARG-SAF,NLD","DST-S-D","","","ARG-SAF","NLD",13750.5,null,"CERDI"]
["DST-S-D,,,ARG-SAF,USA","DST-S-D","","","ARG-SAF","USA",12589.7,null,"CERDI"]
["DST-S-D,,,ARG-SAJ,CHN","DST-S-D","","","ARG-SAJ","CHN",19486.8,null,"CERDI"]
["DST-S-D,,,ARG-SAJ,DEU","DST-S-D","","","ARG-SAJ","DEU",12728.796,null,"SEA-DISTANCES.ORG"]
["DST-S-D,,,ARG-SAJ,ESP","DST-S-D","","","ARG-SAJ","ESP",11766,null,"CERDI"]
["DST-S-D,,,ARG-SAJ,FRA","DST-S-D","","","ARG-SAJ","FRA",13195.9,null,"CERDI"]
["DST-S-D,,,ARG-SAJ,IND","DST-S-D","","","ARG-SAJ","IND",16155.2,null,"CERDI"]
["DST-S-D,,,ARG-SAJ,JPN","DST-S-D","","","ARG-SAJ","JPN",18848.2,null,"CERDI"]
["DST-S-D,,,ARG-SAJ,KOR","DST-S-D","","","ARG-SAJ","KOR",19350,null,"CERDI"]
["DST-S-D,,,ARG-SAJ,NLD","DST-S-D","","","ARG-SAJ","NLD",13750.5,null,"CERDI"]
["DST-S-D,,,ARG-SAJ,USA","DST-S-D","","","ARG-SAJ","USA",12589.7,null,"CERDI"]
["DST-S-D,,,ARG-SAL,CHN","DST-S-D","","","ARG-SAL","CHN",19486.8,null,"CERDI"]
["DST-S-D,,,ARG-SAL,DEU","DST-S-D","","","ARG-SAL","DEU",12728.796,null,"SEA-DISTANCES.ORG"]
["DST-S-D,,,ARG-SAL,ESP","DST-S-D","","","ARG-SAL","ESP",11766,null,"CERDI"]
["DST-S-D,,,ARG-SAL,FRA","DST-S-D","","","ARG-SAL","FRA",13195.9,null,"CERDI"]
["DST-S-D,,,ARG-SAL,IND","DST-S-D","","","ARG-SAL","IND",16155.2,null,"CERDI"]
["DST-S-D,,,ARG-SAL,JPN","DST-S-D","","","ARG-SAL","JPN",18848.2,null,"CERDI"]
["DST-S-D,,,ARG-SAL,KOR","DST-S-D","","","ARG-SAL","KOR",19350,null,"CERDI"]
["DST-S-D,,,ARG-SAL,NLD","DST-S-D","","","ARG-SAL","NLD",13750.5,null,"CERDI"]
["DST-S-D,,,ARG-SAL,USA","DST-S-D","","","ARG-SAL","USA",12589.7,null,"CERDI"]
["DST-S-D,,,ARG-SAT,CHN","DST-S-D","","","ARG-SAT","CHN",19486.8,null,"CERDI"]
["DST-S-D,,,ARG-SAT,DEU","DST-S-D","","","ARG-SAT","DEU",12728.796,null,"SEA-DISTANCES.ORG"]
["DST-S-D,,,ARG-SAT,ESP","DST-S-D","","","ARG-SAT","ESP",11766,null,"CERDI"]
["DST-S-D,,,ARG-SAT,FRA","DST-S-D","","","ARG-SAT","FRA",13195.9,null,"CERDI"]
["DST-S-D,,,ARG-SAT,IND","DST-S-D","","","ARG-SAT","IND",16155.2,null,"CERDI"]
["DST-S-D,,,ARG-SAT,JPN","DST-S-D","","","ARG-SAT","JPN",18848.2,null,"CERDI"]
["DST-S-D,,,ARG-SAT,KOR","DST-S-D","","","ARG-SAT","KOR",19350,null,"CERDI"]
["DST-S-D,,,ARG-SAT,NLD","DST-S-D","","","ARG-SAT","NLD",13750.5,null,"CERDI"]
["DST-S-D,,,ARG-SAT,USA","DST-S-D","","","ARG-SAT","USA",12589.7,null,"CERDI"]
["DST-S-D,,,ARG-TUC,CHN","DST-S-D","","","ARG-TUC","CHN",19486.8,null,"CERDI"]
["DST-S-D,,,ARG-TUC,DEU","DST-S-D","","","ARG-TUC","DEU",12728.796,null,"SEA-DISTANCES.ORG"]
["DST-S-D,,,ARG-TUC,ESP","DST-S-D","","","ARG-TUC","ESP",11766,null,"CERDI"]
["DST-S-D,,,ARG-TUC,FRA","DST-S-D","","","ARG-TUC","FRA",13195.9,null,"CERDI"]
["DST-S-D,,,ARG-TUC,IND","DST-S-D","","","ARG-TUC","IND",16155.2,null,"CERDI"]
["DST-S-D,,,ARG-TUC,JPN","DST-S-D","","","ARG-TUC","JPN",18848.2,null,"CERDI"]
["DST-S-D,,,ARG-TUC,KOR","DST-S-D","","","ARG-TUC","KOR",19350,null,"CERDI"]
["DST-S-D,,,ARG-TUC,NLD","DST-S-D","","","ARG-TUC","NLD",13750.5,null,"CERDI"]
["DST-S-D,,,ARG-TUC,USA","DST-S-D","","","ARG-TUC","USA",12589.7,null,"CERDI"]
["DST-S-D,,,AUS,CHN","DST-S-D","","","AUS","CHN",10024.9,null,"CERDI"]
["DST-S-D,,,AUS,DEU","DST-S-D","","","AUS","DEU",21212.3,null,"CERDI"]
["DST-S-D,,,AUS,ESP","DST-S-D","","","AUS","ESP",17760.900000000001,null,"CERDI"]
["DST-S-D,,,AUS,FRA","DST-S-D","","","AUS","FRA",16854,null,"CERDI"]
["DST-S-D,,,AUS,IND","DST-S-D","","","AUS","IND",10647.6,null,"CERDI"]
["DST-S-D,,,AUS,JPN","DST-S-D","","","AUS","JPN",9845.85,null,"CERDI"]
["DST-S-D,,,AUS,KOR","DST-S-D","","","AUS","KOR",10153.5,null,"CERDI"]
["DST-S-D,,,AUS,NLD","DST-S-D","","","AUS","NLD",20628.3,null,"CERDI"]
["DST-S-D,,,AUS,USA","DST-S-D","","","AUS","USA",12771.9,null,"CERDI"]
["DST-S-D,,,BRA,CHN","DST-S-D","","","BRA","CHN",21462,null,"CERDI"]
["DST-S-D,,,BRA,DEU","DST-S-D","","","BRA","DEU",10409.5,null,"CERDI"]
["DST-S-D,,,BRA,ESP","DST-S-D","","","BRA","ESP",8824.26,null,"CERDI"]
["DST-S-D,,,BRA,FRA","DST-S-D","","","BRA","FRA",9895.24,null,"CERDI"]
["DST-S-D,,,BRA,IND","DST-S-D","","","BRA","IND",15751.1,null,"CERDI"]
["DST-S-D,,,BRA,JPN","DST-S-D","","","BRA","JPN",22369.4,null,"CERDI"]
["DST-S-D,,,BRA,KOR","DST-S-D","","","BRA","KOR",22048.5,null,"CERDI"]
["DST-S-D,,,BRA,NLD","DST-S-D","","","BRA","NLD",10110.1,null,"CERDI"]
["DST-S-D,,,BRA,USA","DST-S-D","","","BRA","USA",9777.43,null,"CERDI"]
["DST-S-D,,,CHL,CHN","DST-S-D","","","CHL","CHN",18238,null,"CERDI"]
["DST-S-D,,,CHL,DEU","DST-S-D","","","CHL","DEU",12511.9,null,"CERDI"]
["DST-S-D,,,CHL,ESP","DST-S-D","","","CHL","ESP",13257.8,null,"CERDI"]
["DST-S-D,,,CHL,FRA","DST-S-D","","","CHL","FRA",14328.9,null,"CERDI"]
["DST-S-D,,,CHL,IND","DST-S-D","","","CHL","IND",20076.400000000001,null,"CERDI"]
["DST-S-D,,,CHL,JPN","DST-S-D","","","CHL","JPN",16934.8,null,"CERDI"]
["DST-S-D,,,CHL,KOR","DST-S-D","","","CHL","KOR",17656.2,null,"CERDI"]
["DST-S-D,,,CHL,NLD","DST-S-D","","","CHL","NLD",12212.5,null,"CERDI"]
["DST-S-D,,,CHL,USA","DST-S-D","","","CHL","USA",8511.36,null,"CERDI"]
["DST-S-D,,,CHN,DEU","DST-S-D","","","CHN","DEU",20484.900000000001,null,"CERDI"]
["DST-S-D,,,CHN,ESP","DST-S-D","","","CHN","ESP",16840.5,null,"CERDI"]
["DST-S-D,,,CHN,FRA","DST-S-D","","","CHN","FRA",15425.3,null,"CERDI"]
["DST-S-D,,,CHN,IND","DST-S-D","","","CHN","IND",8761.85,null,"CERDI"]
["DST-S-D,,,CHN,JPN","DST-S-D","","","CHN","JPN",1458.02,null,"CERDI"]
["DST-S-D,,,CHN,KOR","DST-S-D","","","CHN","KOR",659.33900000000006,null,"CERDI"]
["DST-S-D,,,CHN,NLD","DST-S-D","","","CHN","NLD",19901,null,"CERDI"]
["DST-S-D,,,CHN,USA","DST-S-D","","","CHN","USA",10401.4,null,"CERDI"]
["DST-S-D,,,COL,CHN","DST-S-D","","","COL","CHN",16752,"km","CERDI"]
["DST-S-D,,,COL,DEU","DST-S-D","","","COL","DEU",9250.74,"km","SEA-DISTANCES.ORG"]
["DST-S-D,,,COL,ESP","DST-S-D","","","COL","ESP",7282,"km","CERDI"]
["DST-S-D,,,COL,FRA","DST-S-D","","","COL","FRA",8323,"km","CERDI"]
["DST-S-D,,,COL,IND","DST-S-D","","","COL","IND",17936,"km","CERDI"]
["DST-S-D,,,COL,JPN","DST-S-D","","","COL","JPN",15390,"km","CERDI"]
["DST-S-D,,,COL,KOR","DST-S-D","","","COL","KOR",16112,"km","CERDI"]
["DST-S-D,,,COL,NLD","DST-S-D","","","COL","NLD",8361.7800000000007,"km","SEA-DISTANCES.ORG"]
["DST-S-D,,,COL,USA","DST-S-D","","","COL","USA",2242,"km","CERDI"]
["DST-S-D,,,CRI,CHN","DST-S-D","","","CRI","CHN",16735.5,null,"CERDI"]
["DST-S-D,,,CRI,DEU","DST-S-D","","","CRI","DEU",7422.6,null,"CERDI"]
["DST-S-D,,,CRI,ESP","DST-S-D","","","CRI","ESP",8028.79,null,"CERDI"]
["DST-S-D,,,CRI,FRA","DST-S-D","","","CRI","FRA",9099.84,null,"CERDI"]
["DST-S-D,,,CRI,IND","DST-S-D","","","CRI","IND",18692.900000000001,null,"CERDI"]
["DST-S-D,,,CRI,JPN","DST-S-D","","","CRI","JPN",15373.2,null,"CERDI"]
["DST-S-D,,,CRI,KOR","DST-S-D","","","CRI","KOR",16095.6,null,"CERDI"]
["DST-S-D,,,CRI,NLD","DST-S-D","","","CRI","NLD",7150.86,null,"CERDI"]
["DST-S-D,,,CRI,USA","DST-S-D","","","CRI","USA",2590.9699999999998,null,"CERDI"]
["DST-S-D,,,DNK,CHN","DST-S-D","","","DNK","CHN",21206.9,null,"CERDI"]
["DST-S-D,,,DNK,DEU","DST-S-D","","","DNK","DEU",814.84100000000001,null,"CERDI"]
["DST-S-D,,,DNK,ESP","DST-S-D","","","DNK","ESP",2403.9,null,"SEA-DISTANCES.ORG"]
["DST-S-D,,,DNK,FRA","DST-S-D","","","DNK","FRA",1859.4080000000001,null,"SEA-DISTANCES.ORG"]
["DST-S-D,,,DNK,IND","DST-S-D","","","DNK","IND",13318,null,"CERDI"]
["DST-S-D,,,DNK,JPN","DST-S-D","","","DNK","JPN",22113.599999999999,null,"CERDI"]
["DST-S-D,,,DNK,KOR","DST-S-D","","","DNK","KOR",21793,null,"CERDI"]
["DST-S-D,,,DNK,NLD","DST-S-D","","","DNK","NLD",1117.3499999999999,null,"CERDI"]
["DST-S-D,,,DNK,USA","DST-S-D","","","DNK","USA",8659.0300000000007,null,"CERDI"]
["DST-S-D,,,DZA,CHN","DST-S-D","","","DZA","CHN",16414.7,null,"CERDI"]
["DST-S-D,,,DZA,DEU","DST-S-D","","","DZA","DEU",3174.14,null,"CERDI"]
["DST-S-D,,,DZA,ESP","DST-S-D","","","DZA","ESP",449.37400000000002,null,"CERDI"]
["DST-S-D,,,DZA,FRA","DST-S-D","","","DZA","FRA",863.68899999999996,null,"CERDI"]
["DST-S-D,,,DZA,IND","DST-S-D","","","DZA","IND",8829.52,null,"CERDI"]
["DST-S-D,,,DZA,JPN","DST-S-D","","","DZA","JPN",17389.099999999999,null,"CERDI"]
["DST-S-D,,,DZA,KOR","DST-S-D","","","DZA","KOR",17085.5,null,"CERDI"]
["DST-S-D,,,DZA,NLD","DST-S-D","","","DZA","NLD",2860.67,null,"CERDI"]
["DST-S-D,,,DZA,USA","DST-S-D","","","DZA","USA",9072.02,null,"CERDI"]
["DST-S-D,,,EGY,CHN","DST-S-D","","","EGY","CHN",13389.8,null,"CERDI"]
["DST-S-D,,,EGY,DEU","DST-S-D","","","EGY","DEU",6629.18,null,"CERDI"]
["DST-S-D,,,EGY,ESP","DST-S-D","","","EGY","ESP",3408.43,null,"CERDI"]
["DST-S-D,,,EGY,FRA","DST-S-D","","","EGY","FRA",2024.05,null,"CERDI"]
["DST-S-D,,,EGY,IND","DST-S-D","","","EGY","IND",5810.46,null,"CERDI"]
["DST-S-D,,,EGY,JPN","DST-S-D","","","EGY","JPN",14387.6,null,"CERDI"]
["DST-S-D,,,EGY,KOR","DST-S-D","","","EGY","KOR",14066.7,null,"CERDI"]
["DST-S-D,,,EGY,NLD","DST-S-D","","","EGY","NLD",6261.57,null,"CERDI"]
["DST-S-D,,,EGY,USA","DST-S-D","","","EGY","USA",12612.9,null,"CERDI"]
["DST-S-D,,,ESP,CHN","DST-S-D","","","ESP","CHN",16838.3,null,"CERDI"]
["DST-S-D,,,ESP,DEU","DST-S-D","","","ESP","DEU",2697.76,null,"CERDI"]
["DST-S-D,,,ESP,FRA","DST-S-D","","","ESP","FRA",342.62,null,"SEA-DISTANCES.ORG"]
["DST-S-D,,,ESP,IND","DST-S-D","","","ESP","IND",9253.6200000000008,null,"CERDI"]
["DST-S-D,,,ESP,JPN","DST-S-D","","","ESP","JPN",17812.599999999999,null,"CERDI"]
["DST-S-D,,,ESP,KOR","DST-S-D","","","ESP","KOR",17509,null,"CERDI"]
["DST-S-D,,,ESP,NLD","DST-S-D","","","ESP","NLD",1427.89,null,"SEA-DISTANCES.ORG"]
["DST-S-D,,,ESP,USA","DST-S-D","","","ESP","USA",8601.06,null,"CERDI"]
["DST-S-D,,,IDN,CHN","DST-S-D","","","IDN","CHN",4900.57,null,"CERDI"]
["DST-S-D,,,IDN,DEU","DST-S-D","","","IDN","DEU",16946.8,null,"CERDI"]
["DST-S-D,,,IDN,ESP","DST-S-D","","","IDN","ESP",13236.9,null,"CERDI"]
["DST-S-D,,,IDN,FRA","DST-S-D","","","IDN","FRA",11693.4,null,"CERDI"]
["DST-S-D,,,IDN,IND","DST-S-D","","","IDN","IND",5100.03,null,"CERDI"]
["DST-S-D,,,IDN,JPN","DST-S-D","","","IDN","JPN",5807.96,null,"CERDI"]
["DST-S-D,,,IDN,KOR","DST-S-D","","","IDN","KOR",5487.17,null,"CERDI"]
["DST-S-D,,,IDN,NLD","DST-S-D","","","IDN","NLD",16421,null,"CERDI"]
["DST-S-D,,,IDN,USA","DST-S-D","","","IDN","USA",13999.4,null,"CERDI"]
["DST-S-D,,,IND,CHN","DST-S-D","","","IND","CHN",8761.3799999999992,null,"CERDI"]
["DST-S-D,,,IND,DEU","DST-S-D","","","IND","DEU",12687.7,null,"CERDI"]
["DST-S-D,,,IND,ESP","DST-S-D","","","IND","ESP",9254.24,null,"CERDI"]
["DST-S-D,,,IND,FRA","DST-S-D","","","IND","FRA",8441.42,null,"SEA-DISTANCES.ORG"]
["DST-S-D,,,IND,JPN","DST-S-D","","","IND","JPN",9668.61,null,"CERDI"]
["DST-S-D,,,IND,KOR","DST-S-D","","","IND","KOR",9347.85,null,"CERDI"]
["DST-S-D,,,IND,NLD","DST-S-D","","","IND","NLD",12221.7,null,"CERDI"]
["DST-S-D,,,IND,USA","DST-S-D","","","IND","USA",18312.2,null,"CERDI"]
["DST-S-D,,,JOR,CHN","DST-S-D","","","JOR","CHN",13090.6,null,"CERDI"]
["DST-S-D,,,JOR,DEU","DST-S-D","","","JOR","DEU",7488.73,null,"CERDI"]
["DST-S-D,,,JOR,ESP","DST-S-D","","","JOR","ESP",3457.7,null,"SEA-DISTANCES.ORG"]
["DST-S-D,,,JOR,FRA","DST-S-D","","","JOR","FRA",3516.95,null,"SEA-DISTANCES.ORG"]
["DST-S-D,,,JOR,IND","DST-S-D","","","JOR","IND",5511.15,null,"CERDI"]
["DST-S-D,,,JOR,JPN","DST-S-D","","","JOR","JPN",14049.3,null,"CERDI"]
["DST-S-D,,,JOR,KOR","DST-S-D","","","JOR","KOR",13728.5,null,"CERDI"]
["DST-S-D,,,JOR,NLD","DST-S-D","","","JOR","NLD",7079.06,null,"CERDI"]
["DST-S-D,,,JOR,USA","DST-S-D","","","JOR","USA",13472.2,null,"CERDI"]
["DST-S-D,,,KAZ,CHN","DST-S-D","","","KAZ","CHN",2252.4699999999998,null,"CERDI"]
["DST-S-D,,,KAZ,DEU","DST-S-D","","","KAZ","DEU",6601.17,null,"CERDI"]
["DST-S-D,,,KAZ,ESP","DST-S-D","","","KAZ","ESP",3900.92,null,"CERDI"]
["DST-S-D,,,KAZ,FRA","DST-S-D","","","KAZ","FRA",3529.3,null,"CERDI"]
["DST-S-D,,,KAZ,IND","DST-S-D","","","KAZ","IND",8331.77,null,"CERDI"]
["DST-S-D,,,KAZ,JPN","DST-S-D","","","KAZ","JPN",2136.6799999999998,null,"CERDI"]
["DST-S-D,,,KAZ,KOR","DST-S-D","","","KAZ","KOR",1579.54,null,"CERDI"]
["DST-S-D,,,KAZ,NLD","DST-S-D","","","KAZ","NLD",6287.68,null,"CERDI"]
["DST-S-D,,,KAZ,USA","DST-S-D","","","KAZ","USA",8226.75,null,"CERDI"]
["DST-S-D,,,KEN,CHN","DST-S-D","","","KEN","CHN",11244.6,null,"CERDI"]
["DST-S-D,,,KEN,DEU","DST-S-D","","","KEN","DEU",12814.1,null,"CERDI"]
["DST-S-D,,,KEN,ESP","DST-S-D","","","KEN","ESP",9223.33,null,"CERDI"]
["DST-S-D,,,KEN,FRA","DST-S-D","","","KEN","FRA",7736.75,null,"CERDI"]
["DST-S-D,,,KEN,IND","DST-S-D","","","KEN","IND",4305.05,null,"CERDI"]
["DST-S-D,,,KEN,JPN","DST-S-D","","","KEN","JPN",12152,null,"CERDI"]
["DST-S-D,,,KEN,KOR","DST-S-D","","","KEN","KOR",11831.2,null,"CERDI"]
["DST-S-D,,,KEN,NLD","DST-S-D","","","KEN","NLD",12343.5,null,"CERDI"]
["DST-S-D,,,KEN,USA","DST-S-D","","","KEN","USA",18739.400000000001,null,"CERDI"]
["DST-S-D,,,MAR,CHN","DST-S-D","","","MAR","CHN",16917.900000000001,null,"CERDI"]
["DST-S-D,,,MAR,DEU","DST-S-D","","","MAR","DEU",2668.15,null,"CERDI"]
["DST-S-D,,,MAR,ESP","DST-S-D","","","MAR","ESP",38.352499999999999,null,"CERDI"]
["DST-S-D,,,MAR,FRA","DST-S-D","","","MAR","FRA",1104.08,null,"CERDI"]
["DST-S-D,,,MAR,IND","DST-S-D","","","MAR","IND",9333.25,null,"CERDI"]
["DST-S-D,,,MAR,JPN","DST-S-D","","","MAR","JPN",17892.3,null,"CERDI"]
["DST-S-D,,,MAR,KOR","DST-S-D","","","MAR","KOR",17588.7,null,"CERDI"]
["DST-S-D,,,MAR,NLD","DST-S-D","","","MAR","NLD",2354.6799999999998,null,"CERDI"]
["DST-S-D,,,MAR,USA","DST-S-D","","","MAR","USA",8558.2999999999993,null,"CERDI"]
["DST-S-D,,,MAR-BEN,CHN","DST-S-D","","","MAR-BEN","CHN",16917.900000000001,null,"CERDI"]
["DST-S-D,,,MAR-BEN,DEU","DST-S-D","","","MAR-BEN","DEU",2668.15,null,"CERDI"]
["DST-S-D,,,MAR-BEN,ESP","DST-S-D","","","MAR-BEN","ESP",38.352499999999999,null,"CERDI"]
["DST-S-D,,,MAR-BEN,FRA","DST-S-D","","","MAR-BEN","FRA",1104.08,null,"CERDI"]
["DST-S-D,,,MAR-BEN,IND","DST-S-D","","","MAR-BEN","IND",9333.25,null,"CERDI"]
["DST-S-D,,,MAR-BEN,JPN","DST-S-D","","","MAR-BEN","JPN",17892.3,null,"CERDI"]
["DST-S-D,,,MAR-BEN,KOR","DST-S-D","","","MAR-BEN","KOR",17588.7,null,"CERDI"]
["DST-S-D,,,MAR-BEN,NLD","DST-S-D","","","MAR-BEN","NLD",2354.6799999999998,null,"CERDI"]
["DST-S-D,,,MAR-BEN,USA","DST-S-D","","","MAR-BEN","USA",8558.2999999999993,null,"CERDI"]
["DST-S-D,,,MAR-CAS,CHN","DST-S-D","","","MAR-CAS","CHN",16917.900000000001,null,"CERDI"]
["DST-S-D,,,MAR-CAS,DEU","DST-S-D","","","MAR-CAS","DEU",2668.15,null,"CERDI"]
["DST-S-D,,,MAR-CAS,ESP","DST-S-D","","","MAR-CAS","ESP",38.352499999999999,null,"CERDI"]
["DST-S-D,,,MAR-CAS,FRA","DST-S-D","","","MAR-CAS","FRA",1104.08,null,"CERDI"]
["DST-S-D,,,MAR-CAS,IND","DST-S-D","","","MAR-CAS","IND",9333.25,null,"CERDI"]
["DST-S-D,,,MAR-CAS,JPN","DST-S-D","","","MAR-CAS","JPN",17892.3,null,"CERDI"]
["DST-S-D,,,MAR-CAS,KOR","DST-S-D","","","MAR-CAS","KOR",17588.7,null,"CERDI"]
["DST-S-D,,,MAR-CAS,NLD","DST-S-D","","","MAR-CAS","NLD",2354.6799999999998,null,"CERDI"]
["DST-S-D,,,MAR-CAS,USA","DST-S-D","","","MAR-CAS","USA",8558.2999999999993,null,"CERDI"]
["DST-S-D,,,MAR-DAK,CHN","DST-S-D","","","MAR-DAK","CHN",16917.900000000001,null,"CERDI"]
["DST-S-D,,,MAR-DAK,DEU","DST-S-D","","","MAR-DAK","DEU",2668.15,null,"CERDI"]
["DST-S-D,,,MAR-DAK,ESP","DST-S-D","","","MAR-DAK","ESP",38.352499999999999,null,"CERDI"]
["DST-S-D,,,MAR-DAK,FRA","DST-S-D","","","MAR-DAK","FRA",1104.08,null,"CERDI"]
["DST-S-D,,,MAR-DAK,IND","DST-S-D","","","MAR-DAK","IND",9333.25,null,"CERDI"]
["DST-S-D,,,MAR-DAK,JPN","DST-S-D","","","MAR-DAK","JPN",17892.3,null,"CERDI"]
["DST-S-D,,,MAR-DAK,KOR","DST-S-D","","","MAR-DAK","KOR",17588.7,null,"CERDI"]
["DST-S-D,,,MAR-DAK,NLD","DST-S-D","","","MAR-DAK","NLD",2354.6799999999998,null,"CERDI"]
["DST-S-D,,,MAR-DAK,USA","DST-S-D","","","MAR-DAK","USA",8558.2999999999993,null,"CERDI"]
["DST-S-D,,,MAR-DRA,CHN","DST-S-D","","","MAR-DRA","CHN",16917.900000000001,null,"CERDI"]
["DST-S-D,,,MAR-DRA,DEU","DST-S-D","","","MAR-DRA","DEU",2668.15,null,"CERDI"]
["DST-S-D,,,MAR-DRA,ESP","DST-S-D","","","MAR-DRA","ESP",38.352499999999999,null,"CERDI"]
["DST-S-D,,,MAR-DRA,FRA","DST-S-D","","","MAR-DRA","FRA",1104.08,null,"CERDI"]
["DST-S-D,,,MAR-DRA,IND","DST-S-D","","","MAR-DRA","IND",9333.25,null,"CERDI"]
["DST-S-D,,,MAR-DRA,JPN","DST-S-D","","","MAR-DRA","JPN",17892.3,null,"CERDI"]
["DST-S-D,,,MAR-DRA,KOR","DST-S-D","","","MAR-DRA","KOR",17588.7,null,"CERDI"]
["DST-S-D,,,MAR-DRA,NLD","DST-S-D","","","MAR-DRA","NLD",2354.6799999999998,null,"CERDI"]
["DST-S-D,,,MAR-DRA,USA","DST-S-D","","","MAR-DRA","USA",8558.2999999999993,null,"CERDI"]
["DST-S-D,,,MAR-FES,CHN","DST-S-D","","","MAR-FES","CHN",16917.900000000001,null,"CERDI"]
["DST-S-D,,,MAR-FES,DEU","DST-S-D","","","MAR-FES","DEU",2668.15,null,"CERDI"]
["DST-S-D,,,MAR-FES,ESP","DST-S-D","","","MAR-FES","ESP",38.352499999999999,null,"CERDI"]
["DST-S-D,,,MAR-FES,FRA","DST-S-D","","","MAR-FES","FRA",1104.08,null,"CERDI"]
["DST-S-D,,,MAR-FES,IND","DST-S-D","","","MAR-FES","IND",9333.25,null,"CERDI"]
["DST-S-D,,,MAR-FES,JPN","DST-S-D","","","MAR-FES","JPN",17892.3,null,"CERDI"]
["DST-S-D,,,MAR-FES,KOR","DST-S-D","","","MAR-FES","KOR",17588.7,null,"CERDI"]
["DST-S-D,,,MAR-FES,NLD","DST-S-D","","","MAR-FES","NLD",2354.6799999999998,null,"CERDI"]
["DST-S-D,,,MAR-FES,USA","DST-S-D","","","MAR-FES","USA",8558.2999999999993,null,"CERDI"]
["DST-S-D,,,MAR-GUE,CHN","DST-S-D","","","MAR-GUE","CHN",16917.900000000001,null,"CERDI"]
["DST-S-D,,,MAR-GUE,DEU","DST-S-D","","","MAR-GUE","DEU",2668.15,null,"CERDI"]
["DST-S-D,,,MAR-GUE,ESP","DST-S-D","","","MAR-GUE","ESP",38.352499999999999,null,"CERDI"]
["DST-S-D,,,MAR-GUE,FRA","DST-S-D","","","MAR-GUE","FRA",1104.08,null,"CERDI"]
["DST-S-D,,,MAR-GUE,IND","DST-S-D","","","MAR-GUE","IND",9333.25,null,"CERDI"]
["DST-S-D,,,MAR-GUE,JPN","DST-S-D","","","MAR-GUE","JPN",17892.3,null,"CERDI"]
["DST-S-D,,,MAR-GUE,KOR","DST-S-D","","","MAR-GUE","KOR",17588.7,null,"CERDI"]
["DST-S-D,,,MAR-GUE,NLD","DST-S-D","","","MAR-GUE","NLD",2354.6799999999998,null,"CERDI"]
["DST-S-D,,,MAR-GUE,USA","DST-S-D","","","MAR-GUE","USA",8558.2999999999993,null,"CERDI"]
["DST-S-D,,,MAR-LAA,CHN","DST-S-D","","","MAR-LAA","CHN",16917.900000000001,null,"CERDI"]
["DST-S-D,,,MAR-LAA,DEU","DST-S-D","","","MAR-LAA","DEU",2668.15,null,"CERDI"]
["DST-S-D,,,MAR-LAA,ESP","DST-S-D","","","MAR-LAA","ESP",38.352499999999999,null,"CERDI"]
["DST-S-D,,,MAR-LAA,FRA","DST-S-D","","","MAR-LAA","FRA",1104.08,null,"CERDI"]
["DST-S-D,,,MAR-LAA,IND","DST-S-D","","","MAR-LAA","IND",9333.25,null,"CERDI"]
["DST-S-D,,,MAR-LAA,JPN","DST-S-D","","","MAR-LAA","JPN",17892.3,null,"CERDI"]
["DST-S-D,,,MAR-LAA,KOR","DST-S-D","","","MAR-LAA","KOR",17588.7,null,"CERDI"]
["DST-S-D,,,MAR-LAA,NLD","DST-S-D","","","MAR-LAA","NLD",2354.6799999999998,null,"CERDI"]
["DST-S-D,,,MAR-LAA,USA","DST-S-D","","","MAR-LAA","USA",8558.2999999999993,null,"CERDI"]
["DST-S-D,,,MAR-LOR,CHN","DST-S-D","","","MAR-LOR","CHN",16917.900000000001,null,"CERDI"]
["DST-S-D,,,MAR-LOR,DEU","DST-S-D","","","MAR-LOR","DEU",2668.15,null,"CERDI"]
["DST-S-D,,,MAR-LOR,ESP","DST-S-D","","","MAR-LOR","ESP",38.352499999999999,null,"CERDI"]
["DST-S-D,,,MAR-LOR,FRA","DST-S-D","","","MAR-LOR","FRA",1104.08,null,"CERDI"]
["DST-S-D,,,MAR-LOR,IND","DST-S-D","","","MAR-LOR","IND",9333.25,null,"CERDI"]
["DST-S-D,,,MAR-LOR,JPN","DST-S-D","","","MAR-LOR","JPN",17892.3,null,"CERDI"]
["DST-S-D,,,MAR-LOR,KOR","DST-S-D","","","MAR-LOR","KOR",17588.7,null,"CERDI"]
["DST-S-D,,,MAR-LOR,NLD","DST-S-D","","","MAR-LOR","NLD",2354.6799999999998,null,"CERDI"]
["DST-S-D,,,MAR-LOR,USA","DST-S-D","","","MAR-LOR","USA",8558.2999999999993,null,"CERDI"]
["DST-S-D,,,MAR-MAR,CHN","DST-S-D","","","MAR-MAR","CHN",16917.900000000001,null,"CERDI"]
["DST-S-D,,,MAR-MAR,DEU","DST-S-D","","","MAR-MAR","DEU",2668.15,null,"CERDI"]
["DST-S-D,,,MAR-MAR,ESP","DST-S-D","","","MAR-MAR","ESP",38.352499999999999,null,"CERDI"]
["DST-S-D,,,MAR-MAR,FRA","DST-S-D","","","MAR-MAR","FRA",1104.08,null,"CERDI"]
["DST-S-D,,,MAR-MAR,IND","DST-S-D","","","MAR-MAR","IND",9333.25,null,"CERDI"]
["DST-S-D,,,MAR-MAR,JPN","DST-S-D","","","MAR-MAR","JPN",17892.3,null,"CERDI"]
["DST-S-D,,,MAR-MAR,KOR","DST-S-D","","","MAR-MAR","KOR",17588.7,null,"CERDI"]
["DST-S-D,,,MAR-MAR,NLD","DST-S-D","","","MAR-MAR","NLD",2354.6799999999998,null,"CERDI"]
["DST-S-D,,,MAR-MAR,USA","DST-S-D","","","MAR-MAR","USA",8558.2999999999993,null,"CERDI"]
["DST-S-D,,,MAR-RAB,CHN","DST-S-D","","","MAR-RAB","CHN",16917.900000000001,null,"CERDI"]
["DST-S-D,,,MAR-RAB,DEU","DST-S-D","","","MAR-RAB","DEU",2668.15,null,"CERDI"]
["DST-S-D,,,MAR-RAB,ESP","DST-S-D","","","MAR-RAB","ESP",38.352499999999999,null,"CERDI"]
["DST-S-D,,,MAR-RAB,FRA","DST-S-D","","","MAR-RAB","FRA",1104.08,null,"CERDI"]
["DST-S-D,,,MAR-RAB,IND","DST-S-D","","","MAR-RAB","IND",9333.25,null,"CERDI"]
["DST-S-D,,,MAR-RAB,JPN","DST-S-D","","","MAR-RAB","JPN",17892.3,null,"CERDI"]
["DST-S-D,,,MAR-RAB,KOR","DST-S-D","","","MAR-RAB","KOR",17588.7,null,"CERDI"]
["DST-S-D,,,MAR-RAB,NLD","DST-S-D","","","MAR-RAB","NLD",2354.6799999999998,null,"CERDI"]
["DST-S-D,,,MAR-RAB,USA","DST-S-D","","","MAR-RAB","USA",8558.2999999999993,null,"CERDI"]
["DST-S-D,,,MAR-SOU,CHN","DST-S-D","","","MAR-SOU","CHN",16917.900000000001,null,"CERDI"]
["DST-S-D,,,MAR-SOU,DEU","DST-S-D","","","MAR-SOU","DEU",2668.15,null,"CERDI"]
["DST-S-D,,,MAR-SOU,ESP","DST-S-D","","","MAR-SOU","ESP",38.352499999999999,null,"CERDI"]
["DST-S-D,,,MAR-SOU,FRA","DST-S-D","","","MAR-SOU","FRA",1104.08,null,"CERDI"]
["DST-S-D,,,MAR-SOU,IND","DST-S-D","","","MAR-SOU","IND",9333.25,null,"CERDI"]
["DST-S-D,,,MAR-SOU,JPN","DST-S-D","","","MAR-SOU","JPN",17892.3,null,"CERDI"]
["DST-S-D,,,MAR-SOU,KOR","DST-S-D","","","MAR-SOU","KOR",17588.7,null,"CERDI"]
["DST-S-D,,,MAR-SOU,NLD","DST-S-D","","","MAR-SOU","NLD",2354.6799999999998,null,"CERDI"]
["DST-S-D,,,MAR-SOU,USA","DST-S-D","","","MAR-SOU","USA",8558.2999999999993,null,"CERDI"]
["DST-S-D,,,MAR-TAN,CHN","DST-S-D","","","MAR-TAN","CHN",16917.900000000001,null,"CERDI"]
["DST-S-D,,,MAR-TAN,DEU","DST-S-D","","","MAR-TAN","DEU",2668.15,null,"CERDI"]
["DST-S-D,,,MAR-TAN,ESP","DST-S-D","","","MAR-TAN","ESP",38.352499999999999,null,"CERDI"]
["DST-S-D,,,MAR-TAN,FRA","DST-S-D","","","MAR-TAN","FRA",1104.08,null,"CERDI"]
["DST-S-D,,,MAR-TAN,IND","DST-S-D","","","MAR-TAN","IND",9333.25,null,"CERDI"]
["DST-S-D,,,MAR-TAN,JPN","DST-S-D","","","MAR-TAN","JPN",17892.3,null,"CERDI"]
["DST-S-D,,,MAR-TAN,KOR","DST-S-D","","","MAR-TAN","KOR",17588.7,null,"CERDI"]
["DST-S-D,,,MAR-TAN,NLD","DST-S-D","","","MAR-TAN","NLD",2354.6799999999998,null,"CERDI"]
["DST-S-D,,,MAR-TAN,USA","DST-S-D","","","MAR-TAN","USA",8558.2999999999993,null,"CERDI"]
["DST-S-D,,,MEX,CHN","DST-S-D","","","MEX","CHN",13223.2,null,"CERDI"]
["DST-S-D,,,MEX,DEU","DST-S-D","","","MEX","DEU",10256.299999999999,null,"CERDI"]
["DST-S-D,,,MEX,ESP","DST-S-D","","","MEX","ESP",10695.5,null,"CERDI"]
["DST-S-D,,,MEX,FRA","DST-S-D","","","MEX","FRA",11766.6,null,"CERDI"]
["DST-S-D,,,MEX,IND","DST-S-D","","","MEX","IND",20448.3,null,"CERDI"]
["DST-S-D,,,MEX,JPN","DST-S-D","","","MEX","JPN",11860.6,null,"CERDI"]
["DST-S-D,,,MEX,KOR","DST-S-D","","","MEX","KOR",12583,null,"CERDI"]
["DST-S-D,,,MEX,NLD","DST-S-D","","","MEX","NLD",9956.94,null,"CERDI"]
["DST-S-D,,,MEX,USA","DST-S-D","","","MEX","USA",1231.58,null,"SEA-DISTANCES.ORG"]
["DST-S-D,,,MRT,CHN","DST-S-D","","","MRT","CHN",19545.900000000001,null,"CERDI"]
["DST-S-D,,,MRT,DEU","DST-S-D","","","MRT","DEU",4171.75,null,"CERDI"]
["DST-S-D,,,MRT,ESP","DST-S-D","","","MRT","ESP",2012.1,null,"CERDI"]
["DST-S-D,,,MRT,FRA","DST-S-D","","","MRT","FRA",3083.36,null,"CERDI"]
["DST-S-D,,,MRT,IND","DST-S-D","","","MRT","IND",11940.3,null,"CERDI"]
["DST-S-D,,,MRT,JPN","DST-S-D","","","MRT","JPN",20452.599999999999,null,"CERDI"]
["DST-S-D,,,MRT,KOR","DST-S-D","","","MRT","KOR",20132,null,"CERDI"]
["DST-S-D,,,MRT,NLD","DST-S-D","","","MRT","NLD",3858.24,null,"CERDI"]
["DST-S-D,,,MRT,USA","DST-S-D","","","MRT","USA",7511.88,null,"CERDI"]
["DST-S-D,,,NAM,CHN","DST-S-D","","","NAM","CHN",16002.4,null,"CERDI"]
["DST-S-D,,,NAM,DEU","DST-S-D","","","NAM","DEU",10723.8,null,"CERDI"]
["DST-S-D,,,NAM,ESP","DST-S-D","","","NAM","ESP",8564.51,null,"CERDI"]
["DST-S-D,,,NAM,FRA","DST-S-D","","","NAM","FRA",9635.7099999999991,null,"CERDI"]
["DST-S-D,,,NAM,IND","DST-S-D","","","NAM","IND",10561.3,null,"CERDI"]
["DST-S-D,,,NAM,JPN","DST-S-D","","","NAM","JPN",16976.900000000001,null,"CERDI"]
["DST-S-D,,,NAM,KOR","DST-S-D","","","NAM","KOR",16673.3,null,"CERDI"]
["DST-S-D,,,NAM,NLD","DST-S-D","","","NAM","NLD",10410.4,null,"CERDI"]
["DST-S-D,,,NAM,USA","DST-S-D","","","NAM","USA",12721.7,null,"CERDI"]
["DST-S-D,,,NOR,CHN","DST-S-D","","","NOR","CHN",21062.6,null,"CERDI"]
["DST-S-D,,,NOR,DEU","DST-S-D","","","NOR","DEU",605.048,null,"CERDI"]
["DST-S-D,,,NOR,ESP","DST-S-D","","","NOR","ESP",2363.15,null,"SEA-DISTANCES.ORG"]
["DST-S-D,,,NOR,FRA","DST-S-D","","","NOR","FRA",1818.66,null,"SEA-DISTANCES.ORG"]
["DST-S-D,,,NOR,IND","DST-S-D","","","NOR","IND",13108.2,null,"CERDI"]
["DST-S-D,,,NOR,JPN","DST-S-D","","","NOR","JPN",21969.200000000001,null,"CERDI"]
["DST-S-D,,,NOR,KOR","DST-S-D","","","NOR","KOR",21648.7,null,"CERDI"]
["DST-S-D,,,NOR,NLD","DST-S-D","","","NOR","NLD",808.45699999999999,null,"CERDI"]
["DST-S-D,,,NOR,USA","DST-S-D","","","NOR","USA",7940.34,null,"CERDI"]
["DST-S-D,,,PER,CHN","DST-S-D","","","PER","CHN",16633.3,null,"CERDI"]
["DST-S-D,,,PER,DEU","DST-S-D","","","PER","DEU",12282.46,null,"SEA-DISTANCES.ORG"]
["DST-S-D,,,PER,ESP","DST-S-D","","","PER","ESP",11517.59,null,"SEA-DISTANCES.ORG"]
["DST-S-D,,,PER,FRA","DST-S-D","","","PER","FRA",10735.1,null,"CERDI"]
["DST-S-D,,,PER,IND","DST-S-D","","","PER","IND",20364.8,null,"CERDI"]
["DST-S-D,,,PER,JPN","DST-S-D","","","PER","JPN",15271,null,"CERDI"]
["DST-S-D,,,PER,KOR","DST-S-D","","","PER","KOR",15993.2,null,"CERDI"]
["DST-S-D,,,PER,NLD","DST-S-D","","","PER","NLD",11445.36,null,"SEA-DISTANCES.ORG"]
["DST-S-D,,,PER,USA","DST-S-D","","","PER","USA",4729.2,null,"CERDI"]
["DST-S-D,,,PRT,CHN","DST-S-D","","","PRT","CHN",17380,null,"CERDI"]
["DST-S-D,,,PRT,DEU","DST-S-D","","","PRT","DEU",2479.8200000000002,null,"SEA-DISTANCES.ORG"]
["DST-S-D,,,PRT,ESP","DST-S-D","","","PRT","ESP",1085.27,null,"SEA-DISTANCES.ORG"]
["DST-S-D,,,PRT,FRA","DST-S-D","","","PRT","FRA",1729.71,null,"CERDI"]
["DST-S-D,,,PRT,IND","DST-S-D","","","PRT","IND",9795.41,null,"CERDI"]
["DST-S-D,,,PRT,JPN","DST-S-D","","","PRT","JPN",18354.400000000001,null,"CERDI"]
["DST-S-D,,,PRT,KOR","DST-S-D","","","PRT","KOR",18050.8,null,"CERDI"]
["DST-S-D,,,PRT,NLD","DST-S-D","","","PRT","NLD",1721.53,null,"CERDI"]
["DST-S-D,,,PRT,USA","DST-S-D","","","PRT","USA",7944.32,null,"CERDI"]
["DST-S-D,,,RUS,CHN","DST-S-D","","","RUS","CHN",2252.4699999999998,null,"CERDI"]
["DST-S-D,,,RUS,DEU","DST-S-D","","","RUS","DEU",6601.17,null,"CERDI"]
["DST-S-D,,,RUS,ESP","DST-S-D","","","RUS","ESP",3900.92,null,"CERDI"]
["DST-S-D,,,RUS,FRA","DST-S-D","","","RUS","FRA",3529.3,null,"CERDI"]
["DST-S-D,,,RUS,IND","DST-S-D","","","RUS","IND",8331.77,null,"CERDI"]
["DST-S-D,,,RUS,JPN","DST-S-D","","","RUS","JPN",2136.6799999999998,null,"CERDI"]
["DST-S-D,,,RUS,KOR","DST-S-D","","","RUS","KOR",1579.54,null,"CERDI"]
["DST-S-D,,,RUS,NLD","DST-S-D","","","RUS","NLD",7921,null,"SEA-DISTANCES.ORG"]
["DST-S-D,,,RUS,USA","DST-S-D","","","RUS","USA",8226.75,null,"CERDI"]
["DST-S-D,,,SAU,CHN","DST-S-D","","","SAU","CHN",12014.2,null,"CERDI"]
["DST-S-D,,,SAU,DEU","DST-S-D","","","SAU","DEU",8624.76,null,"SEA-DISTANCES.ORG"]
["DST-S-D,,,SAU,ESP","DST-S-D","","","SAU","ESP",4279.97,null,"SEA-DISTANCES.ORG"]
["DST-S-D,,,SAU,FRA","DST-S-D","","","SAU","FRA",3364.12,null,"CERDI"]
["DST-S-D,,,SAU,IND","DST-S-D","","","SAU","IND",4376.12,null,"CERDI"]
["DST-S-D,,,SAU,JPN","DST-S-D","","","SAU","JPN",12921.6,null,"CERDI"]
["DST-S-D,,,SAU,KOR","DST-S-D","","","SAU","KOR",12600.8,null,"CERDI"]
["DST-S-D,,,SAU,NLD","DST-S-D","","","SAU","NLD",7402.44,null,"SEA-DISTANCES.ORG"]
["DST-S-D,,,SAU,USA","DST-S-D","","","SAU","USA",14233.2,null,"CERDI"]
["DST-S-D,,,SWE,CHN","DST-S-D","","","SWE","CHN",21022.6,null,"CERDI"]
["DST-S-D,,,SWE,DEU","DST-S-D","","","SWE","DEU",602.49,null,"CERDI"]
["DST-S-D,,,SWE,ESP","DST-S-D","","","SWE","ESP",3104.64,null,"CERDI"]
["DST-S-D,,,SWE,FRA","DST-S-D","","","SWE","FRA",4175.91,null,"CERDI"]
["DST-S-D,,,SWE,IND","DST-S-D","","","SWE","IND",13105.7,null,"CERDI"]
["DST-S-D,,,SWE,JPN","DST-S-D","","","SWE","JPN",21929.3,null,"CERDI"]
["DST-S-D,,,SWE,KOR","DST-S-D","","","SWE","KOR",21608.7,null,"CERDI"]
["DST-S-D,,,SWE,NLD","DST-S-D","","","SWE","NLD",821.91899999999998,null,"CERDI"]
["DST-S-D,,,SWE,USA","DST-S-D","","","SWE","USA",8160.7,null,"CERDI"]
["DST-S-D,,,THA,CHN","DST-S-D","","","THA","CHN",4046.29,null,"CERDI"]
["DST-S-D,,,THA,DEU","DST-S-D","","","THA","DEU",18076.400000000001,null,"CERDI"]
["DST-S-D,,,THA,ESP","DST-S-D","","","THA","ESP",14281.2,null,"CERDI"]
["DST-S-D,,,THA,FRA","DST-S-D","","","THA","FRA",12690.1,null,"CERDI"]
["DST-S-D,,,THA,IND","DST-S-D","","","THA","IND",6056.68,null,"CERDI"]
["DST-S-D,,,THA,JPN","DST-S-D","","","THA","JPN",5539.33,null,"SEA-DISTANCES.ORG"]
["DST-S-D,,,THA,KOR","DST-S-D","","","THA","KOR",4632.9399999999996,null,"CERDI"]
["DST-S-D,,,THA,NLD","DST-S-D","","","THA","NLD",17505.099999999999,null,"CERDI"]
["DST-S-D,,,THA,USA","DST-S-D","","","THA","USA",14109.5,null,"CERDI"]
["DST-S-D,,,TUN,CHN","DST-S-D","","","TUN","CHN",15188.8,null,"CERDI"]
["DST-S-D,,,TUN,DEU","DST-S-D","","","TUN","DEU",4114.37,null,"CERDI"]
["DST-S-D,,,TUN,ESP","DST-S-D","","","TUN","ESP",1414.33,null,"CERDI"]
["DST-S-D,,,TUN,FRA","DST-S-D","","","TUN","FRA",754.12400000000002,null,"CERDI"]
["DST-S-D,,,TUN,IND","DST-S-D","","","TUN","IND",7609.79,null,"CERDI"]
["DST-S-D,,,TUN,JPN","DST-S-D","","","TUN","JPN",16218.3,null,"CERDI"]
["DST-S-D,,,TUN,KOR","DST-S-D","","","TUN","KOR",15930.7,null,"CERDI"]
["DST-S-D,,,TUN,NLD","DST-S-D","","","TUN","NLD",3800.89,null,"CERDI"]
["DST-S-D,,,TUN,USA","DST-S-D","","","TUN","USA",10017.6,null,"CERDI"]
["DST-S-D,,,UKR,CHN","DST-S-D","","","UKR","CHN",15605.7,null,"CERDI"]
["DST-S-D,,,UKR,DEU","DST-S-D","","","UKR","DEU",6650.36,null,"CERDI"]
["DST-S-D,,,UKR,ESP","DST-S-D","","","UKR","ESP",3912.3,null,"CERDI"]
["DST-S-D,,,UKR,FRA","DST-S-D","","","UKR","FRA",3171.22,null,"CERDI"]
["DST-S-D,,,UKR,IND","DST-S-D","","","UKR","IND",8000.83,null,"CERDI"]
["DST-S-D,,,UKR,JPN","DST-S-D","","","UKR","JPN",16513.099999999999,null,"CERDI"]
["DST-S-D,,,UKR,KOR","DST-S-D","","","UKR","KOR",16192.3,null,"CERDI"]
["DST-S-D,,,UKR,NLD","DST-S-D","","","UKR","NLD",6336.87,null,"CERDI"]
["DST-S-D,,,UKR,USA","DST-S-D","","","UKR","USA",12553.3,null,"CERDI"]
["DST-S-D,,,URY,CHN","DST-S-D","","","URY","CHN",21524.1,null,"CERDI"]
["DST-S-D,,,URY,DEU","DST-S-D","","","URY","DEU",12547.2,null,"CERDI"]
["DST-S-D,,,URY,ESP","DST-S-D","","","URY","ESP",10706.9,null,"CERDI"]
["DST-S-D,,,URY,FRA","DST-S-D","","","URY","FRA",11777.9,null,"CERDI"]
["DST-S-D,,,URY,IND","DST-S-D","","","URY","IND",15885.2,null,"CERDI"]
["DST-S-D,,,URY,JPN","DST-S-D","","","URY","JPN",20938.400000000001,null,"CERDI"]
["DST-S-D,,,URY,KOR","DST-S-D","","","URY","KOR",21620.9,null,"CERDI"]
["DST-S-D,,,URY,NLD","DST-S-D","","","URY","NLD",12233.8,null,"CERDI"]
["DST-S-D,,,URY,USA","DST-S-D","","","URY","USA",11454,null,"CERDI"]
["DST-S-D,,,USA,CHN","DST-S-D","","","USA","CHN",10402.299999999999,null,"CERDI"]
["DST-S-D,,,USA,DEU","DST-S-D","","","USA","DEU",8323.27,null,"CERDI"]
["DST-S-D,,,USA,ESP","DST-S-D","","","USA","ESP",8604.8700000000008,null,"CERDI"]
["DST-S-D,,,USA,FRA","DST-S-D","","","USA","FRA",9676.0499999999993,null,"CERDI"]
["DST-S-D,,,USA,IND","DST-S-D","","","USA","IND",18311.5,null,"CERDI"]
["DST-S-D,,,USA,JPN","DST-S-D","","","USA","JPN",8904.7099999999991,null,"CERDI"]
["DST-S-D,,,USA,KOR","DST-S-D","","","USA","KOR",9754.8799999999992,null,"CERDI"]
["DST-S-D,,,USA,NLD","DST-S-D","","","USA","NLD",8053.45,null,"CERDI"]
["DST-S-D,,,VNM,CHN","DST-S-D","","","VNM","CHN",2839.27,null,"CERDI"]
["DST-S-D,,,VNM,DEU","DST-S-D","","","VNM","DEU",18266.27,null,"SEA-DISTANCES.ORG"]
["DST-S-D,,,VNM,ESP","DST-S-D","","","VNM","ESP",17590.400000000001,null,"CERDI"]
["DST-S-D,,,VNM,FRA","DST-S-D","","","VNM","FRA",14534.49,null,"SEA-DISTANCES.ORG"]
["DST-S-D,,,VNM,IND","DST-S-D","","","VNM","IND",3746.62,null,"CERDI"]
["DST-S-D,,,VNM,JPN","DST-S-D","","","VNM","JPN",17066.7,null,"CERDI"]
["DST-S-D,,,VNM,KOR","DST-S-D","","","VNM","KOR",3425.83,null,"CERDI"]
["DST-S-D,,,VNM,NLD","DST-S-D","","","VNM","NLD",13891,null,"CERDI"]
["DST-S-D,,,VNM,USA","DST-S-D","","","VNM","USA",12906.4,null,"CERDI"]
["DST-S-D,,,ZAF,CHN","DST-S-D","","","ZAF","CHN",12852.2,null,"CERDI"]
["DST-S-D,,,ZAF,DEU","DST-S-D","","","ZAF","DEU",11789.832,null,"SEA-DISTANCES.ORG"]
["DST-S-D,,,ZAF,ESP","DST-S-D","","","ZAF","ESP",11662.6,null,"CERDI"]
["DST-S-D,,,ZAF,FRA","DST-S-D","","","ZAF","FRA",10912.4,null,"CERDI"]
["DST-S-D,,,ZAF,IND","DST-S-D","","","ZAF","IND",7432.11,null,"CERDI"]
["DST-S-D,,,ZAF,JPN","DST-S-D","","","ZAF","JPN",13881.4,null,"CERDI"]
["DST-S-D,,,ZAF,KOR","DST-S-D","","","ZAF","KOR",13593.9,null,"CERDI"]
["DST-S-D,,,ZAF,NLD","DST-S-D","","","ZAF","NLD",13501.1,null,"CERDI"]
["DST-S-D,,,ZAF,USA","DST-S-D","","","ZAF","USA",15010.8,null,"CERDI"]
["DST-S-D,,,ZAF-EC,CHN","DST-S-D","","","ZAF-EC","CHN",12852.2,null,"CERDI"]
["DST-S-D,,,ZAF-EC,DEU","DST-S-D","","","ZAF-EC","DEU",11789.832,null,"SEA-DISTANCES.ORG"]
["DST-S-D,,,ZAF-EC,ESP","DST-S-D","","","ZAF-EC","ESP",11662.6,null,"CERDI"]
["DST-S-D,,,ZAF-EC,FRA","DST-S-D","","","ZAF-EC","FRA",10912.4,null,"CERDI"]
["DST-S-D,,,ZAF-EC,IND","DST-S-D","","","ZAF-EC","IND",7432.11,null,"CERDI"]
["DST-S-D,,,ZAF-EC,JPN","DST-S-D","","","ZAF-EC","JPN",13881.4,null,"CERDI"]
["DST-S-D,,,ZAF-EC,KOR","DST-S-D","","","ZAF-EC","KOR",13593.9,null,"CERDI"]
["DST-S-D,,,ZAF-EC,NLD","DST-S-D","","","ZAF-EC","NLD",13501.1,null,"CERDI"]
["DST-S-D,,,ZAF-EC,USA","DST-S-D","","","ZAF-EC","USA",15010.8,null,"CERDI"]
["DST-S-D,,,ZAF-FRS,CHN","DST-S-D","","","ZAF-FRS","CHN",12852.2,null,"CERDI"]
["DST-S-D,,,ZAF-FRS,DEU","DST-S-D","","","ZAF-FRS","DEU",11789.832,null,"SEA-DISTANCES.ORG"]
["DST-S-D,,,ZAF-FRS,ESP","DST-S-D","","","ZAF-FRS","ESP",11662.6,null,"CERDI"]
["DST-S-D,,,ZAF-FRS,FRA","DST-S-D","","","ZAF-FRS","FRA",10912.4,null,"CERDI"]
["DST-S-D,,,ZAF-FRS,IND","DST-S-D","","","ZAF-FRS","IND",7432.11,null,"CERDI"]
["DST-S-D,,,ZAF-FRS,JPN","DST-S-D","","","ZAF-FRS","JPN",13881.4,null,"CERDI"]
["DST-S-D,,,ZAF-FRS,KOR","DST-S-D","","","ZAF-FRS","KOR",13593.9,null,"CERDI"]
["DST-S-D,,,ZAF-FRS,NLD","DST-S-D","","","ZAF-FRS","NLD",13501.1,null,"CERDI"]
["DST-S-D,,,ZAF-FRS,USA","DST-S-D","","","ZAF-FRS","USA",15010.8,null,"CERDI"]
["DST-S-D,,,ZAF-GAU,CHN","DST-S-D","","","ZAF-GAU","CHN",12852.2,null,"CERDI"]
["DST-S-D,,,ZAF-GAU,DEU","DST-S-D","","","ZAF-GAU","DEU",11789.832,null,"SEA-DISTANCES.ORG"]
["DST-S-D,,,ZAF-GAU,ESP","DST-S-D","","","ZAF-GAU","ESP",11662.6,null,"CERDI"]
["DST-S-D,,,ZAF-GAU,FRA","DST-S-D","","","ZAF-GAU","FRA",10912.4,null,"CERDI"]
["DST-S-D,,,ZAF-GAU,IND","DST-S-D","","","ZAF-GAU","IND",7432.11,null,"CERDI"]
["DST-S-D,,,ZAF-GAU,JPN","DST-S-D","","","ZAF-GAU","JPN",13881.4,null,"CERDI"]
["DST-S-D,,,ZAF-GAU,KOR","DST-S-D","","","ZAF-GAU","KOR",13593.9,null,"CERDI"]
["DST-S-D,,,ZAF-GAU,NLD","DST-S-D","","","ZAF-GAU","NLD",13501.1,null,"CERDI"]
["DST-S-D,,,ZAF-GAU,USA","DST-S-D","","","ZAF-GAU","USA",15010.8,null,"CERDI"]
["DST-S-D,,,ZAF-KWA,CHN","DST-S-D","","","ZAF-KWA","CHN",12852.2,null,"CERDI"]
["DST-S-D,,,ZAF-KWA,DEU","DST-S-D","","","ZAF-KWA","DEU",11789.832,null,"SEA-DISTANCES.ORG"]
["DST-S-D,,,ZAF-KWA,ESP","DST-S-D","","","ZAF-KWA","ESP",11662.6,null,"CERDI"]
["DST-S-D,,,ZAF-KWA,FRA","DST-S-D","","","ZAF-KWA","FRA",10912.4,null,"CERDI"]
["DST-S-D,,,ZAF-KWA,IND","DST-S-D","","","ZAF-KWA","IND",7432.11,null,"CERDI"]
["DST-S-D,,,ZAF-KWA,JPN","DST-S-D","","","ZAF-KWA","JPN",13881.4,null,"CERDI"]
["DST-S-D,,,ZAF-KWA,KOR","DST-S-D","","","ZAF-KWA","KOR",13593.9,null,"CERDI"]
["DST-S-D,,,ZAF-KWA,NLD","DST-S-D","","","ZAF-KWA","NLD",13501.1,null,"CERDI"]
["DST-S-D,,,ZAF-KWA,USA","DST-S-D","","","ZAF-KWA","USA",15010.8,null,"CERDI"]
["DST-S-D,,,ZAF-LIM,CHN","DST-S-D","","","ZAF-LIM","CHN",12852.2,null,"CERDI"]
["DST-S-D,,,ZAF-LIM,DEU","DST-S-D","","","ZAF-LIM","DEU",11789.832,null,"SEA-DISTANCES.ORG"]
["DST-S-D,,,ZAF-LIM,ESP","DST-S-D","","","ZAF-LIM","ESP",11662.6,null,"CERDI"]
["DST-S-D,,,ZAF-LIM,FRA","DST-S-D","","","ZAF-LIM","FRA",10912.4,null,"CERDI"]
["DST-S-D,,,ZAF-LIM,IND","DST-S-D","","","ZAF-LIM","IND",7432.11,null,"CERDI"]
["DST-S-D,,,ZAF-LIM,JPN","DST-S-D","","","ZAF-LIM","JPN",13881.4,null,"CERDI"]
["DST-S-D,,,ZAF-LIM,KOR","DST-S-D","","","ZAF-LIM","KOR",13593.9,null,"CERDI"]
["DST-S-D,,,ZAF-LIM,NLD","DST-S-D","","","ZAF-LIM","NLD",13501.1,null,"CERDI"]
["DST-S-D,,,ZAF-LIM,USA","DST-S-D","","","ZAF-LIM","USA",15010.8,null,"CERDI"]
["DST-S-D,,,ZAF-MPU,CHN","DST-S-D","","","ZAF-MPU","CHN",12852.2,null,"CERDI"]
["DST-S-D,,,ZAF-MPU,DEU","DST-S-D","","","ZAF-MPU","DEU",11789.832,null,"SEA-DISTANCES.ORG"]
["DST-S-D,,,ZAF-MPU,ESP","DST-S-D","","","ZAF-MPU","ESP",11662.6,null,"CERDI"]
["DST-S-D,,,ZAF-MPU,FRA","DST-S-D","","","ZAF-MPU","FRA",10912.4,null,"CERDI"]
["DST-S-D,,,ZAF-MPU,IND","DST-S-D","","","ZAF-MPU","IND",7432.11,null,"CERDI"]
["DST-S-D,,,ZAF-MPU,JPN","DST-S-D","","","ZAF-MPU","JPN",13881.4,null,"CERDI"]
["DST-S-D,,,ZAF-MPU,KOR","DST-S-D","","","ZAF-MPU","KOR",13593.9,null,"CERDI"]
["DST-S-D,,,ZAF-MPU,NLD","DST-S-D","","","ZAF-MPU","NLD",13501.1,null,"CERDI"]
["DST-S-D,,,ZAF-MPU,USA","DST-S-D","","","ZAF-MPU","USA",15010.8,null,"CERDI"]
["DST-S-D,,,ZAF-NC,CHN","DST-S-D","","","ZAF-NC","CHN",12852.2,null,"CERDI"]
["DST-S-D,,,ZAF-NC,DEU","DST-S-D","","","ZAF-NC","DEU",11789.832,null,"SEA-DISTANCES.ORG"]
["DST-S-D,,,ZAF-NC,ESP","DST-S-D","","","ZAF-NC","ESP",11662.6,null,"CERDI"]
["DST-S-D,,,ZAF-NC,FRA","DST-S-D","","","ZAF-NC","FRA",10912.4,null,"CERDI"]
["DST-S-D,,,ZAF-NC,IND","DST-S-D","","","ZAF-NC","IND",7432.11,null,"CERDI"]
["DST-S-D,,,ZAF-NC,JPN","DST-S-D","","","ZAF-NC","JPN",13881.4,null,"CERDI"]
["DST-S-D,,,ZAF-NC,KOR","DST-S-D","","","ZAF-NC","KOR",13593.9,null,"CERDI"]
["DST-S-D,,,ZAF-NC,NLD","DST-S-D","","","ZAF-NC","NLD",13501.1,null,"CERDI"]
["DST-S-D,,,ZAF-NC,USA","DST-S-D","","","ZAF-NC","USA",15010.8,null,"CERDI"]
["DST-S-D,,,ZAF-NW,CHN","DST-S-D","","","ZAF-NW","CHN",12852.2,null,"CERDI"]
["DST-S-D,,,ZAF-NW,DEU","DST-S-D","","","ZAF-NW","DEU",11789.832,null,"SEA-DISTANCES.ORG"]
["DST-S-D,,,ZAF-NW,ESP","DST-S-D","","","ZAF-NW","ESP",11662.6,null,"CERDI"]
["DST-S-D,,,ZAF-NW,FRA","DST-S-D","","","ZAF-NW","FRA",10912.4,null,"CERDI"]
["DST-S-D,,,ZAF-NW,IND","DST-S-D","","","ZAF-NW","IND",7432.11,null,"CERDI"]
["DST-S-D,,,ZAF-NW,JPN","DST-S-D","","","ZAF-NW","JPN",13881.4,null,"CERDI"]
["DST-S-D,,,ZAF-NW,KOR","DST-S-D","","","ZAF-NW","KOR",13593.9,null,"CERDI"]
["DST-S-D,,,ZAF-NW,NLD","DST-S-D","","","ZAF-NW","NLD",13501.1,null,"CERDI"]
["DST-S-D,,,ZAF-NW,USA","DST-S-D","","","ZAF-NW","USA",15010.8,null,"CERDI"]
["DST-S-D,,,ZAF-WC,CHN","DST-S-D","","","ZAF-WC","CHN",12852.2,null,"CERDI"]
["DST-S-D,,,ZAF-WC,DEU","DST-S-D","","","ZAF-WC","DEU",11789.832,null,"SEA-DISTANCES.ORG"]
["DST-S-D,,,ZAF-WC,ESP","DST-S-D","","","ZAF-WC","ESP",11662.6,null,"CERDI"]
["DST-S-D,,,ZAF-WC,FRA","DST-S-D","","","ZAF-WC","FRA",10912.4,null,"CERDI"]
["DST-S-D,,,ZAF-WC,IND","DST-S-D","","","ZAF-WC","IND",7432.11,null,"CERDI"]
["DST-S-D,,,ZAF-WC,JPN","DST-S-D","","","ZAF-WC","JPN",13881.4,null,"CERDI"]
["DST-S-D,,,ZAF-WC,KOR","DST-S-D","","","ZAF-WC","KOR",13593.9,null,"CERDI"]
["DST-S-D,,,ZAF-WC,NLD","DST-S-D","","","ZAF-WC","NLD",13501.1,null,"CERDI"]
["DST-S-D,,,ZAF-WC,USA","DST-S-D","","","ZAF-WC","USA",15010.8,null,"CERDI"]
["DST-S-DP,,,ARE,CHN","DST-S-DP","","","ARE","CHN",4500,"km","Research Susanne Krieger"]
["DST-S-DP,,,ARE,DEU","DST-S-DP","","","ARE","DEU",5500,"km","Research Susanne Krieger"]
["DST-S-DP,,,ARE,ESP","DST-S-DP","","","ARE","ESP",6000,"km","Research Susanne Krieger"]
["DST-S-DP,,,ARE,FRA","DST-S-DP","","","ARE","FRA",6000,"km","Research Susanne Krieger"]
["DST-S-DP,,,ARE,IND","DST-S-DP","","","ARE","IND",2000,"km","Research Susanne Krieger"]
["DST-S-DP,,,ARE,NLD","DST-S-DP","","","ARE","NLD",6000,"km","Research Susanne Krieger"]
["DST-S-DP,,,CHN,IND","DST-S-DP","","","CHN","IND",3500,"km","Research Susanne Krieger"]
["DST-S-DP,,,CHN,JPN","DST-S-DP","","","CHN","JPN",3500,"km","Research Susanne Krieger"]
["DST-S-DP,,,CHN,KOR","DST-S-DP","","","CHN","KOR",2000,"km","Research Susanne Krieger"]
["DST-S-DP,,,COL,USA","DST-S-DP","","","COL","USA",4500,"km","Research Susanne Krieger"]
["DST-S-DP,,,CRI,USA","DST-S-DP","","","CRI","USA",3500,"km","Research Susanne Krieger"]
["DST-S-DP,,,DNK,DEU","DST-S-DP","","","DNK","DEU",500,"km","Research Susanne Krieger"]
["DST-S-DP,,,DNK,ESP","DST-S-DP","","","DNK","ESP",2000,"km","Research Susanne Krieger"]
["DST-S-DP,,,DNK,FRA","DST-S-DP","","","DNK","FRA",1000,"km","Research Susanne Krieger"]
["DST-S-DP,,,DNK,NLD","DST-S-DP","","","DNK","NLD",500,"km","Research Susanne Krieger"]
["DST-S-DP,,,DZA,DEU","DST-S-DP","","","DZA","DEU",3000,"km","Research Susanne Krieger"]
["DST-S-DP,,,DZA,ESP","DST-S-DP","","","DZA","ESP",1000,"km","Research Susanne Krieger"]
["DST-S-DP,,,DZA,FRA","DST-S-DP","","","DZA","FRA",2000,"km","Research Susanne Krieger"]
["DST-S-DP,,,DZA,NLD","DST-S-DP","","","DZA","NLD",3000,"km","Research Susanne Krieger"]
["DST-S-DP,,,EGY,DEU","DST-S-DP","","","EGY","DEU",5000,"km","Research Susanne Krieger"]
["DST-S-DP,,,EGY,ESP","DST-S-DP","","","EGY","ESP",4500,"km","Research Susanne Krieger"]
["DST-S-DP,,,EGY,FRA","DST-S-DP","","","EGY","FRA",4000,"km","Research Susanne Krieger"]
["DST-S-DP,,,EGY,IND","DST-S-DP","","","EGY","IND",5000,"km","Research Susanne Krieger"]
["DST-S-DP,,,EGY,NLD","DST-S-DP","","","EGY","NLD",5000,"km","Research Susanne Krieger"]
["DST-S-DP,,,ESP,DEU","DST-S-DP","","","ESP","DEU",1500,"km","Research Susanne Krieger"]
["DST-S-DP,,,ESP,FRA","DST-S-DP","","","ESP","FRA",100,"km","Research Susanne Krieger"]
["DST-S-DP,,,ESP,NLD","DST-S-DP","","","ESP","NLD",1500,"km","Research Susanne Krieger"]
["DST-S-DP,,,IDN,CHN","DST-S-DP","","","IDN","CHN",4000,"km","Research Susanne Krieger"]
["DST-S-DP,,,IDN,IND","DST-S-DP","","","IDN","IND",5000,"km","Research Susanne Krieger"]
["DST-S-DP,,,IDN,JPN","DST-S-DP","","","IDN","JPN",5500,"km","Research Susanne Krieger"]
["DST-S-DP,,,IDN,KOR","DST-S-DP","","","IDN","KOR",5500,"km","Research Susanne Krieger"]
["DST-S-DP,,,IND,CHN","DST-S-DP","","","IND","CHN",3000,"km","Research Susanne Krieger"]
["DST-S-DP,,,JOR,DEU","DST-S-DP","","","JOR","DEU",3500,"km","Research Susanne Krieger"]
["DST-S-DP,,,JOR,ESP","DST-S-DP","","","JOR","ESP",4000,"km","Research Susanne Krieger"]
["DST-S-DP,,,JOR,FRA","DST-S-DP","","","JOR","FRA",4000,"km","Research Susanne Krieger"]
["DST-S-DP,,,JOR,IND","DST-S-DP","","","JOR","IND",4500,"km","Research Susanne Krieger"]
["DST-S-DP,,,JOR,NLD","DST-S-DP","","","JOR","NLD",4000,"km","Research Susanne Krieger"]
["DST-S-DP,,,KAZ,CHN","DST-S-DP","","","KAZ","CHN",1500,"km","Research Susanne Krieger"]
["DST-S-DP,,,KAZ,DEU","DST-S-DP","","","KAZ","DEU",3500,"km","Research Susanne Krieger"]
["DST-S-DP,,,KAZ,ESP","DST-S-DP","","","KAZ","ESP",5000,"km","Research Susanne Krieger"]
["DST-S-DP,,,KAZ,FRA","DST-S-DP","","","KAZ","FRA",4000,"km","Research Susanne Krieger"]
["DST-S-DP,,,KAZ,IND","DST-S-DP","","","KAZ","IND",3000,"km","Research Susanne Krieger"]
["DST-S-DP,,,KAZ,NLD","DST-S-DP","","","KAZ","NLD",4000,"km","Research Susanne Krieger"]
["DST-S-DP,,,KEN,IND","DST-S-DP","","","KEN","IND",5000,"km","Research Susanne Krieger"]
["DST-S-DP,,,MAR,DEU","DST-S-DP","","","MAR","DEU",2500,"km","Research Susanne Krieger"]
["DST-S-DP,,,MAR,ESP","DST-S-DP","","","MAR","ESP",250,"km","Research Susanne Krieger"]
["DST-S-DP,,,MAR,FRA","DST-S-DP","","","MAR","FRA",2000,"km","Research Susanne Krieger"]
["DST-S-DP,,,MAR,NLD","DST-S-DP","","","MAR","NLD",2500,"km","Research Susanne Krieger"]
["DST-S-DP,,,MAR-BEN,DEU","DST-S-DP","","","MAR-BEN","DEU",2500,"km","Research Susanne Krieger"]
["DST-S-DP,,,MAR-BEN,ESP","DST-S-DP","","","MAR-BEN","ESP",250,"km","Research Susanne Krieger"]
["DST-S-DP,,,MAR-BEN,FRA","DST-S-DP","","","MAR-BEN","FRA",2000,"km","Research Susanne Krieger"]
["DST-S-DP,,,MAR-BEN,NLD","DST-S-DP","","","MAR-BEN","NLD",2500,"km","Research Susanne Krieger"]
["DST-S-DP,,,MAR-CAS,DEU","DST-S-DP","","","MAR-CAS","DEU",2500,"km","Research Susanne Krieger"]
["DST-S-DP,,,MAR-CAS,ESP","DST-S-DP","","","MAR-CAS","ESP",250,"km","Research Susanne Krieger"]
["DST-S-DP,,,MAR-CAS,FRA","DST-S-DP","","","MAR-CAS","FRA",2000,"km","Research Susanne Krieger"]
["DST-S-DP,,,MAR-CAS,NLD","DST-S-DP","","","MAR-CAS","NLD",2500,"km","Research Susanne Krieger"]
["DST-S-DP,,,MAR-DAK,DEU","DST-S-DP","","","MAR-DAK","DEU",2500,"km","Research Susanne Krieger"]
["DST-S-DP,,,MAR-DAK,ESP","DST-S-DP","","","MAR-DAK","ESP",250,"km","Research Susanne Krieger"]
["DST-S-DP,,,MAR-DAK,FRA","DST-S-DP","","","MAR-DAK","FRA",2000,"km","Research Susanne Krieger"]
["DST-S-DP,,,MAR-DAK,NLD","DST-S-DP","","","MAR-DAK","NLD",2500,"km","Research Susanne Krieger"]
["DST-S-DP,,,MAR-DRA,DEU","DST-S-DP","","","MAR-DRA","DEU",2500,"km","Research Susanne Krieger"]
["DST-S-DP,,,MAR-DRA,ESP","DST-S-DP","","","MAR-DRA","ESP",250,"km","Research Susanne Krieger"]
["DST-S-DP,,,MAR-DRA,FRA","DST-S-DP","","","MAR-DRA","FRA",2000,"km","Research Susanne Krieger"]
["DST-S-DP,,,MAR-DRA,NLD","DST-S-DP","","","MAR-DRA","NLD",2500,"km","Research Susanne Krieger"]
["DST-S-DP,,,MAR-FES,DEU","DST-S-DP","","","MAR-FES","DEU",2500,"km","Research Susanne Krieger"]
["DST-S-DP,,,MAR-FES,ESP","DST-S-DP","","","MAR-FES","ESP",250,"km","Research Susanne Krieger"]
["DST-S-DP,,,MAR-FES,FRA","DST-S-DP","","","MAR-FES","FRA",2000,"km","Research Susanne Krieger"]
["DST-S-DP,,,MAR-FES,NLD","DST-S-DP","","","MAR-FES","NLD",2500,"km","Research Susanne Krieger"]
["DST-S-DP,,,MAR-GUE,DEU","DST-S-DP","","","MAR-GUE","DEU",2500,"km","Research Susanne Krieger"]
["DST-S-DP,,,MAR-GUE,ESP","DST-S-DP","","","MAR-GUE","ESP",250,"km","Research Susanne Krieger"]
["DST-S-DP,,,MAR-GUE,FRA","DST-S-DP","","","MAR-GUE","FRA",2000,"km","Research Susanne Krieger"]
["DST-S-DP,,,MAR-GUE,NLD","DST-S-DP","","","MAR-GUE","NLD",2500,"km","Research Susanne Krieger"]
["DST-S-DP,,,MAR-LAA,DEU","DST-S-DP","","","MAR-LAA","DEU",2500,"km","Research Susanne Krieger"]
["DST-S-DP,,,MAR-LAA,ESP","DST-S-DP","","","MAR-LAA","ESP",250,"km","Research Susanne Krieger"]
["DST-S-DP,,,MAR-LAA,FRA","DST-S-DP","","","MAR-LAA","FRA",2000,"km","Research Susanne Krieger"]
["DST-S-DP,,,MAR-LAA,NLD","DST-S-DP","","","MAR-LAA","NLD",2500,"km","Research Susanne Krieger"]
["DST-S-DP,,,MAR-LOR,DEU","DST-S-DP","","","MAR-LOR","DEU",2500,"km","Research Susanne Krieger"]
["DST-S-DP,,,MAR-LOR,ESP","DST-S-DP","","","MAR-LOR","ESP",250,"km","Research Susanne Krieger"]
["DST-S-DP,,,MAR-LOR,FRA","DST-S-DP","","","MAR-LOR","FRA",2000,"km","Research Susanne Krieger"]
["DST-S-DP,,,MAR-LOR,NLD","DST-S-DP","","","MAR-LOR","NLD",2500,"km","Research Susanne Krieger"]
["DST-S-DP,,,MAR-MAR,DEU","DST-S-DP","","","MAR-MAR","DEU",2500,"km","Research Susanne Krieger"]
["DST-S-DP,,,MAR-MAR,ESP","DST-S-DP","","","MAR-MAR","ESP",250,"km","Research Susanne Krieger"]
["DST-S-DP,,,MAR-MAR,FRA","DST-S-DP","","","MAR-MAR","FRA",2000,"km","Research Susanne Krieger"]
["DST-S-DP,,,MAR-MAR,NLD","DST-S-DP","","","MAR-MAR","NLD",2500,"km","Research Susanne Krieger"]
["DST-S-DP,,,MAR-RAB,DEU","DST-S-DP","","","MAR-RAB","DEU",2500,"km","Research Susanne Krieger"]
["DST-S-DP,,,MAR-RAB,ESP","DST-S-DP","","","MAR-RAB","ESP",250,"km","Research Susanne Krieger"]
["DST-S-DP,,,MAR-RAB,FRA","DST-S-DP","","","MAR-RAB","FRA",2000,"km","Research Susanne Krieger"]
["DST-S-DP,,,MAR-RAB,NLD","DST-S-DP","","","MAR-RAB","NLD",2500,"km","Research Susanne Krieger"]
["DST-S-DP,,,MAR-SOU,DEU","DST-S-DP","","","MAR-SOU","DEU",2500,"km","Research Susanne Krieger"]
["DST-S-DP,,,MAR-SOU,ESP","DST-S-DP","","","MAR-SOU","ESP",250,"km","Research Susanne Krieger"]
["DST-S-DP,,,MAR-SOU,FRA","DST-S-DP","","","MAR-SOU","FRA",2000,"km","Research Susanne Krieger"]
["DST-S-DP,,,MAR-SOU,NLD","DST-S-DP","","","MAR-SOU","NLD",2500,"km","Research Susanne Krieger"]
["DST-S-DP,,,MAR-TAN,DEU","DST-S-DP","","","MAR-TAN","DEU",2500,"km","Research Susanne Krieger"]
["DST-S-DP,,,MAR-TAN,ESP","DST-S-DP","","","MAR-TAN","ESP",250,"km","Research Susanne Krieger"]
["DST-S-DP,,,MAR-TAN,FRA","DST-S-DP","","","MAR-TAN","FRA",2000,"km","Research Susanne Krieger"]
["DST-S-DP,,,MAR-TAN,NLD","DST-S-DP","","","MAR-TAN","NLD",2500,"km","Research Susanne Krieger"]
["DST-S-DP,,,MEX,USA","DST-S-DP","","","MEX","USA",500,"km","Research Susanne Krieger"]
["DST-S-DP,,,MRT,DEU","DST-S-DP","","","MRT","DEU",5000,"km","Research Susanne Krieger"]
["DST-S-DP,,,MRT,ESP","DST-S-DP","","","MRT","ESP",3000,"km","Research Susanne Krieger"]
["DST-S-DP,,,MRT,FRA","DST-S-DP","","","MRT","FRA",4000,"km","Research Susanne Krieger"]
["DST-S-DP,,,MRT,NLD","DST-S-DP","","","MRT","NLD",5000,"km","Research Susanne Krieger"]
["DST-S-DP,,,NOR,DEU","DST-S-DP","","","NOR","DEU",500,"km","Research Susanne Krieger"]
["DST-S-DP,,,NOR,ESP","DST-S-DP","","","NOR","ESP",2000,"km","Research Susanne Krieger"]
["DST-S-DP,,,NOR,FRA","DST-S-DP","","","NOR","FRA",1000,"km","Research Susanne Krieger"]
["DST-S-DP,,,NOR,NLD","DST-S-DP","","","NOR","NLD",1000,"km","Research Susanne Krieger"]
["DST-S-DP,,,PER,USA","DST-S-DP","","","PER","USA",5500,"km","Research Susanne Krieger"]
["DST-S-DP,,,PRT,DEU","DST-S-DP","","","PRT","DEU",2000,"km","Research Susanne Krieger"]
["DST-S-DP,,,PRT,ESP","DST-S-DP","","","PRT","ESP",250,"km","Research Susanne Krieger"]
["DST-S-DP,,,PRT,FRA","DST-S-DP","","","PRT","FRA",1000,"km","Research Susanne Krieger"]
["DST-S-DP,,,PRT,NLD","DST-S-DP","","","PRT","NLD",2000,"km","Research Susanne Krieger"]
["DST-S-DP,,,RUS,CHN","DST-S-DP","","","RUS","CHN",4000,"km","Research Susanne Krieger"]
["DST-S-DP,,,RUS,DEU","DST-S-DP","","","RUS","DEU",1000,"km","Research Susanne Krieger"]
["DST-S-DP,,,RUS,ESP","DST-S-DP","","","RUS","ESP",5000,"km","Research Susanne Krieger"]
["DST-S-DP,,,RUS,FRA","DST-S-DP","","","RUS","FRA",4000,"km","Research Susanne Krieger"]
["DST-S-DP,,,RUS,IND","DST-S-DP","","","RUS","IND",4000,"km","Research Susanne Krieger"]
["DST-S-DP,,,RUS,JPN","DST-S-DP","","","RUS","JPN",4000,"km","Research Susanne Krieger"]
["DST-S-DP,,,RUS,KOR","DST-S-DP","","","RUS","KOR",3000,"km","Research Susanne Krieger"]
["DST-S-DP,,,RUS,NLD","DST-S-DP","","","RUS","NLD",4000,"km","Research Susanne Krieger"]
["DST-S-DP,,,SAU,DEU","DST-S-DP","","","SAU","DEU",4500,"km","Research Susanne Krieger"]
["DST-S-DP,,,SAU,ESP","DST-S-DP","","","SAU","ESP",5000,"km","Research Susanne Krieger"]
["DST-S-DP,,,SAU,FRA","DST-S-DP","","","SAU","FRA",5000,"km","Research Susanne Krieger"]
["DST-S-DP,,,SAU,IND","DST-S-DP","","","SAU","IND",3500,"km","Research Susanne Krieger"]
["DST-S-DP,,,SAU,NLD","DST-S-DP","","","SAU","NLD",5000,"km","Research Susanne Krieger"]
["DST-S-DP,,,SWE,DEU","DST-S-DP","","","SWE","DEU",1000,"km","Research Susanne Krieger"]
["DST-S-DP,,,SWE,ESP","DST-S-DP","","","SWE","ESP",3000,"km","Research Susanne Krieger"]
["DST-S-DP,,,SWE,FRA","DST-S-DP","","","SWE","FRA",2000,"km","Research Susanne Krieger"]
["DST-S-DP,,,SWE,NLD","DST-S-DP","","","SWE","NLD",2000,"km","Research Susanne Krieger"]
["DST-S-DP,,,THA,CHN","DST-S-DP","","","THA","CHN",1500,"km","Research Susanne Krieger"]
["DST-S-DP,,,THA,IND","DST-S-DP","","","THA","IND",2500,"km","Research Susanne Krieger"]
["DST-S-DP,,,THA,JPN","DST-S-DP","","","THA","JPN",5000,"km","Research Susanne Krieger"]
["DST-S-DP,,,THA,KOR","DST-S-DP","","","THA","KOR",5000,"km","Research Susanne Krieger"]
["DST-S-DP,,,TUN,DEU","DST-S-DP","","","TUN","DEU",2000,"km","Research Susanne Krieger"]
["DST-S-DP,,,TUN,ESP","DST-S-DP","","","TUN","ESP",1500,"km","Research Susanne Krieger"]
["DST-S-DP,,,TUN,FRA","DST-S-DP","","","TUN","FRA",1000,"km","Research Susanne Krieger"]
["DST-S-DP,,,TUN,NLD","DST-S-DP","","","TUN","NLD",2500,"km","Research Susanne Krieger"]
["DST-S-DP,,,UKR,DEU","DST-S-DP","","","UKR","DEU",1500,"km","Research Susanne Krieger"]
["DST-S-DP,,,UKR,ESP","DST-S-DP","","","UKR","ESP",3000,"km","Research Susanne Krieger"]
["DST-S-DP,,,UKR,FRA","DST-S-DP","","","UKR","FRA",2000,"km","Research Susanne Krieger"]
["DST-S-DP,,,UKR,NLD","DST-S-DP","","","UKR","NLD",2000,"km","Research Susanne Krieger"]
["DST-S-DP,,,VNM,CHN","DST-S-DP","","","VNM","CHN",1000,"km","Research Susanne Krieger"]
["DST-S-DP,,,VNM,IND","DST-S-DP","","","VNM","IND",3500,"km","Research Susanne Krieger"]
["DST-S-DP,,,VNM,JPN","DST-S-DP","","","VNM","JPN",4000,"km","Research Susanne Krieger"]
["DST-S-DP,,,VNM,KOR","DST-S-DP","","","VNM","KOR",5000,"km","Research Susanne Krieger"]
["EFF,AEL-EL,,,","EFF","AEL-EL","","","",0.69,"various (output per main input)"]
["EFF,ATR,,,","EFF","ATR","","","",0.79991999999999996,"various (output per main input)","Oni et al. 2022"]
["EFF,CH3OHSYN,,,","EFF","CH3OHSYN","","","",0.80300000000000005,"various (output per main input)","Frontier Economics 2021"]
["EFF,CH4-RGAS,,,","EFF","CH4-RGAS","","","",0.98,"various (output per main input)","Pospíšil et al. 2019"]
["EFF,CH4SYN,,,","EFF","CH4SYN","","","",0.83,"various (output per main input)","Öko-Institut 2020"]
["EFF,DESAL,,,","EFF","DESAL","","","",1,"various (output per main input)"]
["EFF,DRI,,,","EFF","DRI","","","",0.35759897828863341,"kg DRI (s)/kwhh2","Agora Industry Transformation 2021"]
["EFF,EFUELSYN,,,","EFF","EFUELSYN","","","",0.73,"various (output per main input)","Frontier Economics 2021"]
["EFF,H2-LIQ,,,","EFF","H2-LIQ","","","",1,"various (output per main input)"]
["EFF,H2-RGAS,,,","EFF","H2-RGAS","","","",0.99654654654654651,"various (output per main input)","DNV GL 2020"]
["EFF,LOHC-REC,,,","EFF","LOHC-REC","","","",0.9,"various (output per main input)","DNV GL 2020"]
["EFF,NH3-REC,,,","EFF","NH3-REC","","","",0.74661016949152537,"various (output per main input)","NGN; Equinor 2018"]
["EFF,NH3SYN,,,","EFF","NH3SYN","","","",0.81899999999999995,"various (output per main input)","Frotier Economics 2021"]
["EFF,PEM-EL,,,","EFF","PEM-EL","","","",0.67,"various (output per main input)"]
["EFF,REGASATR,,,","EFF","REGASATR","","","",0.77991999999999995,"various (output per main input)","combined values"]
["EFF,SOEC-EL,,,","EFF","SOEC-EL","","","",0.73,"various (output per main input)"]
["FLH,AEL-EL,,,","FLH","AEL-EL","","","",3861.9141914191418,"h","average of PTX Atlas"]
["FLH,DRI,,,","FLH","DRI","","","",7884,"0"]
["FLH,NH3SYN,,,","FLH","NH3SYN","","","",8000,"h","Fasihi et al. 2021"]
["FLH,PEM-EL,,,","FLH","PEM-EL","","","",3861.9141914191418,"h","average of PTX Atlas"]
["FLH,PV-FIX,,ARE,","FLH","PV-FIX","","ARE","",1662,"h"]
["FLH,PV-FIX,,ARG,","FLH","PV-FIX","","ARG","",1494,"h"]
["FLH,PV-FIX,,ARG-BA,","FLH","PV-FIX","","ARG-BA","",1501.409990284945,"h"]
["FLH,PV-FIX,,ARG-CAT,","FLH","PV-FIX","","ARG-CAT","",2184.2849520000136,"h"]
["FLH,PV-FIX,,ARG-CBA,","FLH","PV-FIX","","ARG-CBA","",1472.2464967200012,"h"]
["FLH,PV-FIX,,ARG-CHA,","FLH","PV-FIX","","ARG-CHA","",1462.293405359997,"h"]
["FLH,PV-FIX,,ARG-CHU,","FLH","PV-FIX","","ARG-CHU","",1565.6552791200011,"h"]
["FLH,PV-FIX,,ARG-COR,","FLH","PV-FIX","","ARG-COR","",1411.9226517600005,"h"]
["FLH,PV-FIX,,ARG-CRB,","FLH","PV-FIX","","ARG-CRB","",1571.8333939199993,"h"]
["FLH,PV-FIX,,ARG-CRU,","FLH","PV-FIX","","ARG-CRU","",1419.2559755999985,"h"]
["FLH,PV-FIX,,ARG-EST,","FLH","PV-FIX","","ARG-EST","",1553.4726681600023,"h"]
["FLH,PV-FIX,,ARG-FOR,","FLH","PV-FIX","","ARG-FOR","",1449.92262888,"h"]
["FLH,PV-FIX,,ARG-FUE,","FLH","PV-FIX","","ARG-FUE","",919.59809255999858,"h"]
["FLH,PV-FIX,,ARG-JUJ,","FLH","PV-FIX","","ARG-JUJ","",2038.9844970000051,"h"]
["FLH,PV-FIX,,ARG-LAR,","FLH","PV-FIX","","ARG-LAR","",1927.5699347999985,"h"]
["FLH,PV-FIX,,ARG-MEN,","FLH","PV-FIX","","ARG-MEN","",1738.9096295999984,"h"]
["FLH,PV-FIX,,ARG-MIS,","FLH","PV-FIX","","ARG-MIS","",1441.0558828799994,"h"]
["FLH,PV-FIX,,ARG-NEG,","FLH","PV-FIX","","ARG-NEG","",1598.6654748000003,"h"]
["FLH,PV-FIX,,ARG-NEU,","FLH","PV-FIX","","ARG-NEU","",1672.0413458399996,"h"]
["FLH,PV-FIX,,ARG-PAM,","FLH","PV-FIX","","ARG-PAM","",1585.1219047199993,"h"]
["FLH,PV-FIX,,ARG-RIO,","FLH","PV-FIX","","ARG-RIO","",1444.5405770399989,"h"]
["FLH,PV-FIX,,ARG-SAF,","FLH","PV-FIX","","ARG-SAF","",1463.6960647199994,"h"]
["FLH,PV-FIX,,ARG-SAJ,","FLH","PV-FIX","","ARG-SAJ","",1798.3159226999983,"h"]
["FLH,PV-FIX,,ARG-SAL,","FLH","PV-FIX","","ARG-SAL","",1674.9613511999978,"h"]
["FLH,PV-FIX,,ARG-SAT,","FLH","PV-FIX","","ARG-SAT","",1564.1549919000008,"h"]
["FLH,PV-FIX,,ARG-TUC,","FLH","PV-FIX","","ARG-TUC","",1670.31158688,"h"]
["FLH,PV-FIX,,AUS,","FLH","PV-FIX","","AUS","",1557,"h"]
["FLH,PV-FIX,,BRA,","FLH","PV-FIX","","BRA","",1346,"h"]
["FLH,PV-FIX,,CHL,","FLH","PV-FIX","","CHL","",1939,"h"]
["FLH,PV-FIX,,CHN,","FLH","PV-FIX","","CHN","",1845.4554144000026,"h"]
["FLH,PV-FIX,,COL,","FLH","PV-FIX","","COL","",1300,"h"]
["FLH,PV-FIX,,CRI,","FLH","PV-FIX","","CRI","",1336.1040323999978,"h"]
["FLH,PV-FIX,,DNK,","FLH","PV-FIX","","DNK","",957.75962760000073,"h"]
["FLH,PV-FIX,,DZA,","FLH","PV-FIX","","DZA","",1699,"h"]
["FLH,PV-FIX,,EGY,","FLH","PV-FIX","","EGY","",1744,"h"]
["FLH,PV-FIX,,ESP,","FLH","PV-FIX","","ESP","",1567.2650796000021,"h"]
["FLH,PV-FIX,,IDN,","FLH","PV-FIX","","IDN","",1506,"h"]
["FLH,PV-FIX,,IND,","FLH","PV-FIX","","IND","",1562,"h"]
["FLH,PV-FIX,,JOR,","FLH","PV-FIX","","JOR","",1792,"h"]
["FLH,PV-FIX,,KAZ,","FLH","PV-FIX","","KAZ","",1425,"h"]
["FLH,PV-FIX,,KEN,","FLH","PV-FIX","","KEN","",1418,"h"]
["FLH,PV-FIX,,MAR,","FLH","PV-FIX","","MAR","",1631,"h"]
["FLH,PV-FIX,,MAR-BEN,","FLH","PV-FIX","","MAR-BEN","",1745.3384668799999,"h"]
["FLH,PV-FIX,,MAR-CAS,","FLH","PV-FIX","","MAR-CAS","",1665.7276233599982,"h"]
["FLH,PV-FIX,,MAR-DAK,","FLH","PV-FIX","","MAR-DAK","",1728.1917287999981,"h"]
["FLH,PV-FIX,,MAR-DRA,","FLH","PV-FIX","","MAR-DRA","",1808.0709587999988,"h"]
["FLH,PV-FIX,,MAR-FES,","FLH","PV-FIX","","MAR-FES","",1678.0894264800027,"h"]
["FLH,PV-FIX,,MAR-GUE,","FLH","PV-FIX","","MAR-GUE","",1758.0457144800002,"h"]
["FLH,PV-FIX,,MAR-LAA,","FLH","PV-FIX","","MAR-LAA","",1742.770432080001,"h"]
["FLH,PV-FIX,,MAR-LOR,","FLH","PV-FIX","","MAR-LOR","",1709.8854897600017,"h"]
["FLH,PV-FIX,,MAR-MAR,","FLH","PV-FIX","","MAR-MAR","",1734.1491045599982,"h"]
["FLH,PV-FIX,,MAR-RAB,","FLH","PV-FIX","","MAR-RAB","",1620.7182007199983,"h"]
["FLH,PV-FIX,,MAR-SOU,","FLH","PV-FIX","","MAR-SOU","",1800.775983599998,"h"]
["FLH,PV-FIX,,MAR-TAN,","FLH","PV-FIX","","MAR-TAN","",1615.309697519999,"h"]
["FLH,PV-FIX,,MEX,","FLH","PV-FIX","","MEX","",1731,"h"]
["FLH,PV-FIX,,MRT,","FLH","PV-FIX","","MRT","",1657,"h"]
["FLH,PV-FIX,,NAM,","FLH","PV-FIX","","NAM","",1859.5896948000045,"h"]
["FLH,PV-FIX,,NOR,","FLH","PV-FIX","","NOR","",845.30347200000051,"h"]
["FLH,PV-FIX,,PER,","FLH","PV-FIX","","PER","",1746,"h"]
["FLH,PV-FIX,,PRT,","FLH","PV-FIX","","PRT","",1445.5080791999967,"h"]
["FLH,PV-FIX,,RUS,","FLH","PV-FIX","","RUS","",1173,"h"]
["FLH,PV-FIX,,SAU,","FLH","PV-FIX","","SAU","",1723,"h"]
["FLH,PV-FIX,,SWE,","FLH","PV-FIX","","SWE","",886.08134879999852,"h"]
["FLH,PV-FIX,,THA,","FLH","PV-FIX","","THA","",1254.531981600001,"h"]
["FLH,PV-FIX,,TUN,","FLH","PV-FIX","","TUN","",1611,"h"]
["FLH,PV-FIX,,UKR,","FLH","PV-FIX","","UKR","",1398.7297331999989,"h"]
["FLH,PV-FIX,,URY,","FLH","PV-FIX","","URY","",1338,"h"]
["FLH,PV-FIX,,USA,","FLH","PV-FIX","","USA","",1593,"h"]
["FLH,PV-FIX,,VNM,","FLH","PV-FIX","","VNM","",1266.9854976000001,"h"]
["FLH,PV-FIX,,ZAF,","FLH","PV-FIX","","ZAF","",1603,"h"]
["FLH,PV-FIX,,ZAF-EC,","FLH","PV-FIX","","ZAF-EC","",1725.7083537599988,"h"]
["FLH,PV-FIX,,ZAF-FRS,","FLH","PV-FIX","","ZAF-FRS","",1808.769283199998,"h"]
["FLH,PV-FIX,,ZAF-GAU,","FLH","PV-FIX","","ZAF-GAU","",1770.0387314399968,"h"]
["FLH,PV-FIX,,ZAF-KWA,","FLH","PV-FIX","","ZAF-KWA","",1694.9134799999979,"h"]
["FLH,PV-FIX,,ZAF-LIM,","FLH","PV-FIX","","ZAF-LIM","",1711.457395919999,"h"]
["FLH,PV-FIX,,ZAF-MPU,","FLH","PV-FIX","","ZAF-MPU","",1752.2448955200002,"h"]
["FLH,PV-FIX,,ZAF-NC,","FLH","PV-FIX","","ZAF-NC","",1814.9242226399974,"h"]
["FLH,PV-FIX,,ZAF-NW,","FLH","PV-FIX","","ZAF-NW","",1786.6500962399978,"h"]
["FLH,PV-FIX,,ZAF-WC,","FLH","PV-FIX","","ZAF-WC","",1664.7200798400002,"h"]
["FLH,RES-HYBR,,ARE,","FLH","RES-HYBR","","ARE","",3116.3347803479924,"h"]
["FLH,RES-HYBR,,ARG,","FLH","RES-HYBR","","ARG","",5660.92,"h"]
["FLH,RES-HYBR,,ARG-BA,","FLH","RES-HYBR","","ARG-BA","",4945.8767126930315,"h"]
["FLH,RES-HYBR,,ARG-CAT,","FLH","RES-HYBR","","ARG-CAT","",4818.1134165187877,"h"]
["FLH,RES-HYBR,,ARG-CBA,","FLH","RES-HYBR","","ARG-CBA","",4796.3272366469528,"h"]
["FLH,RES-HYBR,,ARG-CHA,","FLH","RES-HYBR","","ARG-CHA","",4353.1801274671416,"h"]
["FLH,RES-HYBR,,ARG-CHU,","FLH","RES-HYBR","","ARG-CHU","",6390.4146064505558,"h"]
["FLH,RES-HYBR,,ARG-COR,","FLH","RES-HYBR","","ARG-COR","",4296.9749353692923,"h"]
["FLH,RES-HYBR,,ARG-CRB,","FLH","RES-HYBR","","ARG-CRB","",4058.0540031422247,"h"]
["FLH,RES-HYBR,,ARG-CRU,","FLH","RES-HYBR","","ARG-CRU","",6369.4767112831887,"h"]
["FLH,RES-HYBR,,ARG-EST,","FLH","RES-HYBR","","ARG-EST","",4886.4479918271754,"h"]
["FLH,RES-HYBR,,ARG-FOR,","FLH","RES-HYBR","","ARG-FOR","",4947.3662874337479,"h"]
["FLH,RES-HYBR,,ARG-FUE,","FLH","RES-HYBR","","ARG-FUE","",4348.7759583573197,"h"]
["FLH,RES-HYBR,,ARG-JUJ,","FLH","RES-HYBR","","ARG-JUJ","",5341.5292254807428,"h"]
["FLH,RES-HYBR,,ARG-LAR,","FLH","RES-HYBR","","ARG-LAR","",4993.6358442638966,"h"]
["FLH,RES-HYBR,,ARG-MEN,","FLH","RES-HYBR","","ARG-MEN","",4634.7425576878331,"h"]
["FLH,RES-HYBR,,ARG-MIS,","FLH","RES-HYBR","","ARG-MIS","",3199.5290500507745,"h"]
["FLH,RES-HYBR,,ARG-NEG,","FLH","RES-HYBR","","ARG-NEG","",5871.0170147807694,"h"]
["FLH,RES-HYBR,,ARG-NEU,","FLH","RES-HYBR","","ARG-NEU","",5150.2668537210066,"h"]
["FLH,RES-HYBR,,ARG-PAM,","FLH","RES-HYBR","","ARG-PAM","",5140.6823491886607,"h"]
["FLH,RES-HYBR,,ARG-RIO,","FLH","RES-HYBR","","ARG-RIO","",4336.8044520469111,"h"]
["FLH,RES-HYBR,,ARG-SAF,","FLH","RES-HYBR","","ARG-SAF","",4440.5215244686588,"h"]
["FLH,RES-HYBR,,ARG-SAJ,","FLH","RES-HYBR","","ARG-SAJ","",4214.2631306310104,"h"]
["FLH,RES-HYBR,,ARG-SAL,","FLH","RES-HYBR","","ARG-SAL","",5055.8296990927674,"h"]
["FLH,RES-HYBR,,ARG-SAT,","FLH","RES-HYBR","","ARG-SAT","",4747.3079047460951,"h"]
["FLH,RES-HYBR,,ARG-TUC,","FLH","RES-HYBR","","ARG-TUC","",3565.3259655172683,"h"]
["FLH,RES-HYBR,,AUS,","FLH","RES-HYBR","","AUS","",4753.97,"h"]
["FLH,RES-HYBR,,BRA,","FLH","RES-HYBR","","BRA","",5155.55,"h"]
["FLH,RES-HYBR,,CHL,","FLH","RES-HYBR","","CHL","",3450.29,"h"]
["FLH,RES-HYBR,,CHN,","FLH","RES-HYBR","","CHN","",5183.707028904495,"h"]
["FLH,RES-HYBR,,COL,","FLH","RES-HYBR","","COL","",5503,"h"]
["FLH,RES-HYBR,,CRI,","FLH","RES-HYBR","","CRI","",3421.5147964974931,"h"]
["FLH,RES-HYBR,,DNK,","FLH","RES-HYBR","","DNK","",5197.0268387719998,"h"]
["FLH,RES-HYBR,,DZA,","FLH","RES-HYBR","","DZA","",4270.91,"h"]
["FLH,RES-HYBR,,EGY,","FLH","RES-HYBR","","EGY","",4644.3599999999997,"h"]
["FLH,RES-HYBR,,ESP,","FLH","RES-HYBR","","ESP","",5668.5234185745076,"h"]
["FLH,RES-HYBR,,IDN,","FLH","RES-HYBR","","IDN","",2496.284437136494,"h"]
["FLH,RES-HYBR,,IND,","FLH","RES-HYBR","","IND","",4890.74,"h"]
["FLH,RES-HYBR,,JOR,","FLH","RES-HYBR","","JOR","",2376.5,"h"]
["FLH,RES-HYBR,,KAZ,","FLH","RES-HYBR","","KAZ","",5289.962108140493,"h"]
["FLH,RES-HYBR,,KEN,","FLH","RES-HYBR","","KEN","",3668.54,"h"]
["FLH,RES-HYBR,,MAR,","FLH","RES-HYBR","","MAR","",4739.42,"h"]
["FLH,RES-HYBR,,MAR-BEN,","FLH","RES-HYBR","","MAR-BEN","",3352.6974508185135,"h"]
["FLH,RES-HYBR,,MAR-CAS,","FLH","RES-HYBR","","MAR-CAS","",4107.461264954989,"h"]
["FLH,RES-HYBR,,MAR-DAK,","FLH","RES-HYBR","","MAR-DAK","",6342.17431498525,"h"]
["FLH,RES-HYBR,,MAR-DRA,","FLH","RES-HYBR","","MAR-DRA","",4442.5500678171611,"h"]
["FLH,RES-HYBR,,MAR-FES,","FLH","RES-HYBR","","MAR-FES","",3693.5166831944407,"h"]
["FLH,RES-HYBR,,MAR-GUE,","FLH","RES-HYBR","","MAR-GUE","",5015.1834420732221,"h"]
["FLH,RES-HYBR,,MAR-LAA,","FLH","RES-HYBR","","MAR-LAA","",5823.2278770450366,"h"]
["FLH,RES-HYBR,,MAR-LOR,","FLH","RES-HYBR","","MAR-LOR","",4805.6356254658413,"h"]
["FLH,RES-HYBR,,MAR-MAR,","FLH","RES-HYBR","","MAR-MAR","",3574.4335757714989,"h"]
["FLH,RES-HYBR,,MAR-RAB,","FLH","RES-HYBR","","MAR-RAB","",3447.3598533759478,"h"]
["FLH,RES-HYBR,,MAR-SOU,","FLH","RES-HYBR","","MAR-SOU","",4479.2641726234597,"h"]
["FLH,RES-HYBR,,MAR-TAN,","FLH","RES-HYBR","","MAR-TAN","",4503.3511393000135,"h"]
["FLH,RES-HYBR,,MEX,","FLH","RES-HYBR","","MEX","",4219.5,"h"]
["FLH,RES-HYBR,,MRT,","FLH","RES-HYBR","","MRT","",6214.79,"h"]
["FLH,RES-HYBR,,NAM,","FLH","RES-HYBR","","NAM","",6766.4489765195067,"h"]
["FLH,RES-HYBR,,NOR,","FLH","RES-HYBR","","NOR","",4955.9832041924956,"h"]
["FLH,RES-HYBR,,PER,","FLH","RES-HYBR","","PER","",2965.29,"h"]
["FLH,RES-HYBR,,PRT,","FLH","RES-HYBR","","PRT","",5677.7820377284897,"h"]
["FLH,RES-HYBR,,RUS,","FLH","RES-HYBR","","RUS","",3549.23,"h"]
["FLH,RES-HYBR,,SAU,","FLH","RES-HYBR","","SAU","",3830.5299999999997,"h"]
["FLH,RES-HYBR,,SWE,","FLH","RES-HYBR","","SWE","",3823.9828340194917,"h"]
["FLH,RES-HYBR,,THA,","FLH","RES-HYBR","","THA","",3569.5369351590002,"h"]
["FLH,RES-HYBR,,TUN,","FLH","RES-HYBR","","TUN","",4306.8,"h"]
["FLH,RES-HYBR,,UKR,","FLH","RES-HYBR","","UKR","",5019.1641120944814,"h"]
["FLH,RES-HYBR,,URY,","FLH","RES-HYBR","","URY","",4775.3099999999995,"h"]
["FLH,RES-HYBR,,USA,","FLH","RES-HYBR","","USA","",5067.28,"h"]
["FLH,RES-HYBR,,VNM,","FLH","RES-HYBR","","VNM","",4699.5574412419974,"h"]
["FLH,RES-HYBR,,ZAF,","FLH","RES-HYBR","","ZAF","",4382.46,"h"]
["FLH,RES-HYBR,,ZAF-EC,","FLH","RES-HYBR","","ZAF-EC","",5288.7578237093758,"h"]
["FLH,RES-HYBR,,ZAF-FRS,","FLH","RES-HYBR","","ZAF-FRS","",4425.6106106284642,"h"]
["FLH,RES-HYBR,,ZAF-GAU,","FLH","RES-HYBR","","ZAF-GAU","",3757.1990000000001,"h"]
["FLH,RES-HYBR,,ZAF-KWA,","FLH","RES-HYBR","","ZAF-KWA","",4268.4057445788794,"h"]
["FLH,RES-HYBR,,ZAF-LIM,","FLH","RES-HYBR","","ZAF-LIM","",4233.3590689024513,"h"]
["FLH,RES-HYBR,,ZAF-MPU,","FLH","RES-HYBR","","ZAF-MPU","",4233.3590689024513,"h"]
["FLH,RES-HYBR,,ZAF-NC,","FLH","RES-HYBR","","ZAF-NC","",5250.5102949318216,"h"]
["FLH,RES-HYBR,,ZAF-NW,","FLH","RES-HYBR","","ZAF-NW","",4461.2336445282735,"h"]
["FLH,RES-HYBR,,ZAF-WC,","FLH","RES-HYBR","","ZAF-WC","",4751.4057997393265,"h"]
["FLH,SOEC-EL,,,","FLH","SOEC-EL","","","",5519.7223140495871,"h","average of PTX Atlas"]
["FLH,WIND-OFF,,ARE,","FLH","WIND-OFF","","ARE","",2453,"h","Bosch et al. 2018"]
["FLH,WIND-OFF,,ARG,","FLH","WIND-OFF","","ARG","",5369,"h","Bosch et al. 2018"]
["FLH,WIND-OFF,,ARG-BA,","FLH","WIND-OFF","","ARG-BA","",3854.4,"h","Bosch et al. 2018"]
["FLH,WIND-OFF,,ARG-CBA,","FLH","WIND-OFF","","ARG-CBA","",3854.4,"h","Bosch et al. 2018"]
["FLH,WIND-OFF,,ARG-CHU,","FLH","WIND-OFF","","ARG-CHU","",5763.0835753699857,"h","Bosch et al. 2018"]
["FLH,WIND-OFF,,ARG-CRU,","FLH","WIND-OFF","","ARG-CRU","",5854.9926980599967,"h","Bosch et al. 2018"]
["FLH,WIND-OFF,,ARG-FUE,","FLH","WIND-OFF","","ARG-FUE","",3854.4,"h","Bosch et al. 2018"]
["FLH,WIND-OFF,,ARG-NEG,","FLH","WIND-OFF","","ARG-NEG","",4738.1899020500086,"h","Bosch et al. 2018"]
["FLH,WIND-OFF,,AUS,","FLH","WIND-OFF","","AUS","",4205,"h","Bosch et al. 2018"]
["FLH,WIND-OFF,,BRA,","FLH","WIND-OFF","","BRA","",3854,"h","Bosch et al. 2018"]
["FLH,WIND-OFF,,CHL,","FLH","WIND-OFF","","CHL","",6034,"h","Bosch et al. 2018"]
["FLH,WIND-OFF,,CHN,","FLH","WIND-OFF","","CHN","",3592,"h","Bosch et al. 2018"]
["FLH,WIND-OFF,,COL,","FLH","WIND-OFF","","COL","",4269,"h"]
["FLH,WIND-OFF,,CRI,","FLH","WIND-OFF","","CRI","",2803,"h","Bosch et al. 2018"]
["FLH,WIND-OFF,,DNK,","FLH","WIND-OFF","","DNK","",4730.4000000000005,"h","Bosch et al. 2018"]
["FLH,WIND-OFF,,DZA,","FLH","WIND-OFF","","DZA","",3066,"h","Bosch et al. 2018"]
["FLH,WIND-OFF,,EGY,","FLH","WIND-OFF","","EGY","",3066,"h","Bosch et al. 2018"]
["FLH,WIND-OFF,,ESP,","FLH","WIND-OFF","","ESP","",4277,"h","Bosch et al. 2018"]
["FLH,WIND-OFF,,IDN,","FLH","WIND-OFF","","IDN","",2453,"h","Bosch et al. 2018"]
["FLH,WIND-OFF,,IND,","FLH","WIND-OFF","","IND","",3567,"h","Bosch et al. 2018"]
["FLH,WIND-OFF,,KAZ,","FLH","WIND-OFF","","KAZ","",3697,"h","Bosch et al. 2018"]
["FLH,WIND-OFF,,KEN,","FLH","WIND-OFF","","KEN","",3329,"h","Bosch et al. 2018"]
["FLH,WIND-OFF,,MAR,","FLH","WIND-OFF","","MAR","",4643,"h","Bosch et al. 2018"]
["FLH,WIND-OFF,,MAR-CAS,","FLH","WIND-OFF","","MAR-CAS","",4642.8,"h","Bosch et al. 2018"]
["FLH,WIND-OFF,,MAR-DAK,","FLH","WIND-OFF","","MAR-DAK","",5181.7820854799875,"h","Bosch et al. 2018"]
["FLH,WIND-OFF,,MAR-GUE,","FLH","WIND-OFF","","MAR-GUE","",4642.8,"h","Bosch et al. 2018"]
["FLH,WIND-OFF,,MAR-LAA,","FLH","WIND-OFF","","MAR-LAA","",4642.8,"h","Bosch et al. 2018"]
["FLH,WIND-OFF,,MAR-LOR,","FLH","WIND-OFF","","MAR-LOR","",4642.8,"h","Bosch et al. 2018"]
["FLH,WIND-OFF,,MAR-MAR,","FLH","WIND-OFF","","MAR-MAR","",4642.8,"h","Bosch et al. 2018"]
["FLH,WIND-OFF,,MAR-RAB,","FLH","WIND-OFF","","MAR-RAB","",4642.8,"h","Bosch et al. 2018"]
["FLH,WIND-OFF,,MAR-SOU,","FLH","WIND-OFF","","MAR-SOU","",4642.8,"h","Bosch et al. 2018"]
["FLH,WIND-OFF,,MAR-TAN,","FLH","WIND-OFF","","MAR-TAN","",4642.8,"h","Bosch et al. 2018"]
["FLH,WIND-OFF,,MEX,","FLH","WIND-OFF","","MEX","",4042,"h","Bosch et al. 2018"]
["FLH,WIND-OFF,,MRT,","FLH","WIND-OFF","","MRT","",4750,"h","Bosch et al. 2018"]
["FLH,WIND-OFF,,NAM,","FLH","WIND-OFF","","NAM","",5116,"h","Bosch et al. 2018"]
["FLH,WIND-OFF,,NOR,","FLH","WIND-OFF","","NOR","",4730,"h","Bosch et al. 2018"]
["FLH,WIND-OFF,,PER,","FLH","WIND-OFF","","PER","",3854,"h","Bosch et al. 2018"]
["FLH,WIND-OFF,,PRT,","FLH","WIND-OFF","","PRT","",4408,"h","Bosch et al. 2018"]
["FLH,WIND-OFF,,RUS,","FLH","WIND-OFF","","RUS","",4522,"h","Bosch et al. 2018"]
["FLH,WIND-OFF,,SAU,","FLH","WIND-OFF","","SAU","",2453,"h","Bosch et al. 2018"]
["FLH,WIND-OFF,,SWE,","FLH","WIND-OFF","","SWE","",4730,"h","Bosch et al. 2018"]
["FLH,WIND-OFF,,THA,","FLH","WIND-OFF","","THA","",2453,"h","Bosch et al. 2018"]
["FLH,WIND-OFF,,TUN,","FLH","WIND-OFF","","TUN","",3066,"h","Bosch et al. 2018"]
["FLH,WIND-OFF,,UKR,","FLH","WIND-OFF","","UKR","",3066,"h","Bosch et al. 2018"]
["FLH,WIND-OFF,,URY,","FLH","WIND-OFF","","URY","",3854,"h","Bosch et al. 2018"]
["FLH,WIND-OFF,,USA,","FLH","WIND-OFF","","USA","",4030,"h","Bosch et al. 2018"]
["FLH,WIND-OFF,,VNM,","FLH","WIND-OFF","","VNM","",3578,"h","Bosch et al. 2018"]
["FLH,WIND-OFF,,ZAF,","FLH","WIND-OFF","","ZAF","",4117,"h","Bosch et al. 2018"]
["FLH,WIND-OFF,,ZAF-EC,","FLH","WIND-OFF","","ZAF-EC","",4117.2,"h","Bosch et al. 2018"]
["FLH,WIND-OFF,,ZAF-KWA,","FLH","WIND-OFF","","ZAF-KWA","",4117.2,"h","Bosch et al. 2018"]
["FLH,WIND-OFF,,ZAF-NC,","FLH","WIND-OFF","","ZAF-NC","",4117.2,"h","Bosch et al. 2018"]
["FLH,WIND-OFF,,ZAF-WC,","FLH","WIND-OFF","","ZAF-WC","",4117.2,"h","Bosch et al. 2018"]
["FLH,WIND-ON,,ARE,","FLH","WIND-ON","","ARE","",1642.3104587999985,"h"]
["FLH,WIND-ON,,ARG,","FLH","WIND-ON","","ARG","",5369,"h"]
["FLH,WIND-ON,,ARG-BA,","FLH","WIND-ON","","ARG-BA","",3756.6367058000046,"h"]
["FLH,WIND-ON,,ARG-CAT,","FLH","WIND-ON","","ARG-CAT","",2884.1487291833364,"h"]
["FLH,WIND-ON,,ARG-CBA,","FLH","WIND-ON","","ARG-CBA","",3601.8171951299964,"h"]
["FLH,WIND-ON,,ARG-CHA,","FLH","WIND-ON","","ARG-CHA","",3079.6049933000008,"h"]
["FLH,WIND-ON,,ARG-CHU,","FLH","WIND-ON","","ARG-CHU","",5763.0835753699857,"h"]
["FLH,WIND-ON,,ARG-COR,","FLH","WIND-ON","","ARG-COR","",3045.2758197400012,"h"]
["FLH,WIND-ON,,ARG-CRB,","FLH","WIND-ON","","ARG-CRB","",2605.2082556500004,"h"]
["FLH,WIND-ON,,ARG-CRU,","FLH","WIND-ON","","ARG-CRU","",5854.9926980599967,"h"]
["FLH,WIND-ON,,ARG-EST,","FLH","WIND-ON","","ARG-EST","",3710.4766984999937,"h"]
["FLH,WIND-ON,,ARG-FOR,","FLH","WIND-ON","","ARG-FOR","",3781.7001483800022,"h"]
["FLH,WIND-ON,,ARG-FUE,","FLH","WIND-ON","","ARG-FUE","",3710.4766984999937,"h"]
["FLH,WIND-ON,,ARG-JUJ,","FLH","WIND-ON","","ARG-JUJ","",3773.9698333333426,"h"]
["FLH,WIND-ON,,ARG-LAR,","FLH","WIND-ON","","ARG-LAR","",3188.6275809666754,"h"]
["FLH,WIND-ON,,ARG-MEN,","FLH","WIND-ON","","ARG-MEN","",3077.1630279499932,"h"]
["FLH,WIND-ON,,ARG-MIS,","FLH","WIND-ON","","ARG-MIS","",1777.2726296600022,"h"]
["FLH,WIND-ON,,ARG-NEG,","FLH","WIND-ON","","ARG-NEG","",4738.1899020500086,"h"]
["FLH,WIND-ON,,ARG-NEU,","FLH","WIND-ON","","ARG-NEU","",3956.5844284999962,"h"]
["FLH,WIND-ON,,ARG-PAM,","FLH","WIND-ON","","ARG-PAM","",3897.7887775199929,"h"]
["FLH,WIND-ON,,ARG-RIO,","FLH","WIND-ON","","ARG-RIO","",3070.126660369996,"h"]
["FLH,WIND-ON,,ARG-SAF,","FLH","WIND-ON","","ARG-SAF","",3158.174208530002,"h"]
["FLH,WIND-ON,,ARG-SAJ,","FLH","WIND-ON","","ARG-SAJ","",2534.5746024499945,"h"]
["FLH,WIND-ON,,ARG-SAL,","FLH","WIND-ON","","ARG-SAL","",3657.6108475499996,"h"]
["FLH,WIND-ON,,ARG-SAT,","FLH","WIND-ON","","ARG-SAT","",3418.5372058749972,"h"]
["FLH,WIND-ON,,ARG-TUC,","FLH","WIND-ON","","ARG-TUC","",1908.3186970833303,"h"]
["FLH,WIND-ON,,AUS,","FLH","WIND-ON","","AUS","",3971,"h"]
["FLH,WIND-ON,,BRA,","FLH","WIND-ON","","BRA","",3517,"h"]
["FLH,WIND-ON,,CHL,","FLH","WIND-ON","","CHL","",6034,"h"]
["FLH,WIND-ON,,CHN,","FLH","WIND-ON","","CHN","",3250,"h"]
["FLH,WIND-ON,,COL,","FLH","WIND-ON","","COL","",4269,"h"]
["FLH,WIND-ON,,CRI,","FLH","WIND-ON","","CRI","",2191.2308093499951,"h"]
["FLH,WIND-ON,,DNK,","FLH","WIND-ON","","DNK","",4400,"h"]
["FLH,WIND-ON,,DZA,","FLH","WIND-ON","","DZA","",2738,"h"]
["FLH,WIND-ON,,EGY,","FLH","WIND-ON","","EGY","",3045,"h"]
["FLH,WIND-ON,,ESP,","FLH","WIND-ON","","ESP","",4276.5734962500064,"h"]
["FLH,WIND-ON,,IDN,","FLH","WIND-ON","","IDN","",1150.7783336499949,"h"]
["FLH,WIND-ON,,IND,","FLH","WIND-ON","","IND","",3567,"h"]
["FLH,WIND-ON,,JOR,","FLH","WIND-ON","","JOR","",667,"h"]
["FLH,WIND-ON,,KAZ,","FLH","WIND-ON","","KAZ","",3697,"h"]
["FLH,WIND-ON,,KEN,","FLH","WIND-ON","","KEN","",2364,"h"]
["FLH,WIND-ON,,MAR,","FLH","WIND-ON","","MAR","",3289,"h"]
["FLH,WIND-ON,,MAR-BEN,","FLH","WIND-ON","","MAR-BEN","",1563.4934093166669,"h"]
["FLH,WIND-ON,,MAR-CAS,","FLH","WIND-ON","","MAR-CAS","",2513.2012449499989,"h"]
["FLH,WIND-ON,,MAR-DAK,","FLH","WIND-ON","","MAR-DAK","",5181.7820854799875,"h"]
["FLH,WIND-ON,,MAR-DRA,","FLH","WIND-ON","","MAR-DRA","",2724.0904536999979,"h"]
["FLH,WIND-ON,,MAR-FES,","FLH","WIND-ON","","MAR-FES","",2050.2642833200007,"h"]
["FLH,WIND-ON,,MAR-GUE,","FLH","WIND-ON","","MAR-GUE","",3542.2692728499992,"h"]
["FLH,WIND-ON,,MAR-LAA,","FLH","WIND-ON","","MAR-LAA","",4616.7798365699955,"h"]
["FLH,WIND-ON,,MAR-LOR,","FLH","WIND-ON","","MAR-LOR","",3320.8164008250001,"h"]
["FLH,WIND-ON,,MAR-MAR,","FLH","WIND-ON","","MAR-MAR","",1820.4342362250004,"h"]
["FLH,WIND-ON,,MAR-RAB,","FLH","WIND-ON","","MAR-RAB","",1826.0421998500019,"h"]
["FLH,WIND-ON,,MAR-SOU,","FLH","WIND-ON","","MAR-SOU","",2799.5123925999974,"h"]
["FLH,WIND-ON,,MAR-TAN,","FLH","WIND-ON","","MAR-TAN","",2979.4188451500013,"h"]
["FLH,WIND-ON,,MEX,","FLH","WIND-ON","","MEX","",4042,"h"]
["FLH,WIND-ON,,MRT,","FLH","WIND-ON","","MRT","",4750,"h"]
["FLH,WIND-ON,,NAM,","FLH","WIND-ON","","NAM","",5116.1308995500021,"h"]
["FLH,WIND-ON,,NOR,","FLH","WIND-ON","","NOR","",4263.9575632499955,"h"]
["FLH,WIND-ON,,PER,","FLH","WIND-ON","","PER","",1448,"h"]
["FLH,WIND-ON,,PRT,","FLH","WIND-ON","","PRT","",4407.8754648499926,"h"]
["FLH,WIND-ON,,RUS,","FLH","WIND-ON","","RUS","",4522,"h"]
["FLH,WIND-ON,,SAU,","FLH","WIND-ON","","SAU","",2282,"h"]
["FLH,WIND-ON,,SWE,","FLH","WIND-ON","","SWE","",3056.1689955499933,"h"]
["FLH,WIND-ON,,THA,","FLH","WIND-ON","","THA","",2425.4030030999993,"h"]
["FLH,WIND-ON,,TUN,","FLH","WIND-ON","","TUN","",2843,"h"]
["FLH,WIND-ON,,UKR,","FLH","WIND-ON","","UKR","",2769,"h"]
["FLH,WIND-ON,,URY,","FLH","WIND-ON","","URY","",3594,"h"]
["FLH,WIND-ON,,USA,","FLH","WIND-ON","","USA","",3503,"h"]
["FLH,WIND-ON,,VNM,","FLH","WIND-ON","","VNM","",3577.9190809999977,"h"]
["FLH,WIND-ON,,ZAF,","FLH","WIND-ON","","ZAF","",3070,"h"]
["FLH,WIND-ON,,ZAF-EC,","FLH","WIND-ON","","ZAF-EC","",3914.4857524666741,"h"]
["FLH,WIND-ON,,ZAF-FRS,","FLH","WIND-ON","","ZAF-FRS","",2775.7070136400025,"h"]
["FLH,WIND-ON,,ZAF-GAU,","FLH","WIND-ON","","ZAF-GAU","",2069.9309253700035,"h"]
["FLH,WIND-ON,,ZAF-KWA,","FLH","WIND-ON","","ZAF-KWA","",2682.3634953500023,"h"]
["FLH,WIND-ON,,ZAF-LIM,","FLH","WIND-ON","","ZAF-LIM","",2627.5496087499969,"h"]
["FLH,WIND-ON,,ZAF-MPU,","FLH","WIND-ON","","ZAF-MPU","",2612.1821174166703,"h"]
["FLH,WIND-ON,,ZAF-NC,","FLH","WIND-ON","","ZAF-NC","",3748.8309036749974,"h"]
["FLH,WIND-ON,,ZAF-NW,","FLH","WIND-ON","","ZAF-NW","",3092.6134290333307,"h"]
["FLH,WIND-ON,,ZAF-WC,","FLH","WIND-ON","","ZAF-WC","",3346.6670672599976,"h"]
["LIFETIME,AEL-EL,,,","LIFETIME","AEL-EL","","","",20,"years"]
["LIFETIME,ATR,,,","LIFETIME","ATR","","","",25,"years","Oni et al. 2022"]
["LIFETIME,CH3OH-S,,,","LIFETIME","CH3OH-S","","","",30,"years","UNSW Sydney 2021"]
["LIFETIME,CH3OH-SB,,,","LIFETIME","CH3OH-SB","","","",30,"years","UNSW Sydney 2021"]
["LIFETIME,CH3OHSYN,,,","LIFETIME","CH3OHSYN","","","",30,"years","Öko-Institut 2020"]
["LIFETIME,CH4-COMP,,,","LIFETIME","CH4-COMP","","","",20,"years","DNV GL 2020"]
["LIFETIME,CH4-LIQ,,,","LIFETIME","CH4-LIQ","","","",30,"years","UNSW Sydney 2021"]
["LIFETIME,CH4-P-L,,,","LIFETIME","CH4-P-L","","","",40,"years"]
["LIFETIME,CH4-P-LR,,,","LIFETIME","CH4-P-LR","","","",40,"years"]
["LIFETIME,CH4-P-S,,,","LIFETIME","CH4-P-S","","","",40,"years"]
["LIFETIME,CH4-P-SR,,,","LIFETIME","CH4-P-SR","","","",40,"years"]
["LIFETIME,CH4-S,,,","LIFETIME","CH4-S","","","",30,"years","UNSW Sydney 2021"]
["LIFETIME,CH4-SB,,,","LIFETIME","CH4-SB","","","",30,"years","UNSW Sydney 2021"]
["LIFETIME,CH4SYN,,,","LIFETIME","CH4SYN","","","",30,"years","Öko-Institut 2020"]
["LIFETIME,DAC,,,","LIFETIME","DAC","","","",25,"years","Fasihi et al. 2019"]
["LIFETIME,DESAL,,,","LIFETIME","DESAL","","","",20,"years","PTX Atlas"]
["LIFETIME,DRI,,,","LIFETIME","DRI","","","",15,"years","Agora Industry Transformation 2021"]
["LIFETIME,EFUELSYN,,,","LIFETIME","EFUELSYN","","","",30,"years","Öko-Institut 2020"]
["LIFETIME,EL-TRANS,,,","LIFETIME","EL-TRANS","","","",20,"years","DUMMY"]
["LIFETIME,H2-COMP,,,","LIFETIME","H2-COMP","","","",20,"years","DNV GL 2020"]
["LIFETIME,H2-LIQ,,,","LIFETIME","H2-LIQ","","","",30,"years","IEA 2015"]
["LIFETIME,H2-P-L,,,","LIFETIME","H2-P-L","","","",30,"years"]
["LIFETIME,H2-P-LR,,,","LIFETIME","H2-P-LR","","","",30,"years"]
["LIFETIME,H2-P-S,,,","LIFETIME","H2-P-S","","","",30,"years"]
["LIFETIME,H2-P-SR,,,","LIFETIME","H2-P-SR","","","",30,"years"]
["LIFETIME,H2-RGAS,,,","LIFETIME","H2-RGAS","","","",30,"years"]
["LIFETIME,H2-S,,,","LIFETIME","H2-S","","","",30,"years","UNSW Sydney 2021"]
["LIFETIME,H2-SB,,,","LIFETIME","H2-SB","","","",30,"years","UNSW Sydney 2021"]
["LIFETIME,LOHC-CON,,,","LIFETIME","LOHC-CON","","","",20,"years","DNV GL 2020"]
["LIFETIME,LOHC-REC,,,","LIFETIME","LOHC-REC","","","",30,"years","IEA 2019"]
["LIFETIME,LOHC-S,,,","LIFETIME","LOHC-S","","","",30,"years","UNSW Sydney 2021"]
["LIFETIME,LOHC-SB,,,","LIFETIME","LOHC-SB","","","",30,"years","UNSW Sydney 2021"]
["LIFETIME,NH3-REC,,,","LIFETIME","NH3-REC","","","",25,"years","NGN; Equinor 2018"]
["LIFETIME,NH3-S,,,","LIFETIME","NH3-S","","","",30,"years","UNSW Sydney 2021"]
["LIFETIME,NH3-SB,,,","LIFETIME","NH3-SB","","","",30,"years","UNSW Sydney 2021"]
["LIFETIME,NH3SYN,,,","LIFETIME","NH3SYN","","","",30,"years","Fasihi et al. 2021"]
["LIFETIME,PEM-EL,,,","LIFETIME","PEM-EL","","","",20,"years"]
["LIFETIME,PV-FIX,,,","LIFETIME","PV-FIX","","","",20,"years"]
["LIFETIME,REGASATR,,,","LIFETIME","REGASATR","","","",25,"years","combined values"]
["LIFETIME,RES-HYBR,,,","LIFETIME","RES-HYBR","","","",20,"years"]
["LIFETIME,SOEC-EL,,,","LIFETIME","SOEC-EL","","","",20,"years"]
["LIFETIME,SYN-S,,,","LIFETIME","SYN-S","","","",30,"years","UNSW Sydney 2021"]
["LIFETIME,SYN-SB,,,","LIFETIME","SYN-SB","","","",30,"years","UNSW Sydney 2021"]
["LIFETIME,WIND-OFF,,,","LIFETIME","WIND-OFF","","","",20,"years"]
["LIFETIME,WIND-ON,,,","LIFETIME","WIND-ON","","","",20,"years"]
["LOSS-T,CH3OH-S,,,","LOSS-T","CH3OH-S","","","",3.0509883673175365E-6,"fraction/km","calc_shipping"]
["LOSS-T,CH3OH-SB,,,","LOSS-T","CH3OH-SB","","","",4.7996160307175429E-7,"fraction/km","calc_shipping"]
["LOSS-T,CH4-P-L,,,","LOSS-T","CH4-P-L","","","",5.6666666666666669E-6,"fraction/km"]
["LOSS-T,CH4-P-LR,,,","LOSS-T","CH4-P-LR","","","",5.6666666666666669E-6,"fraction/km"]
["LOSS-T,CH4-P-S,,,","LOSS-T","CH4-P-S","","","",5.6666666666666669E-6,"fraction/km"]
["LOSS-T,CH4-P-SR,,,","LOSS-T","CH4-P-SR","","","",5.6666666666666669E-6,"fraction/km"]
["LOSS-T,CH4-S,,,","LOSS-T","CH4-S","","","",3.3002590965851543E-6,"fraction/km","calc_shipping"]
["LOSS-T,CH4-SB,,,","LOSS-T","CH4-SB","","","",2.3075077070757413E-6,"fraction/km","calc_shipping"]
["LOSS-T,H2-P-L,,,","LOSS-T","H2-P-L","","","",1.6866666666666666E-5,"fraction/km"]
["LOSS-T,H2-P-LR,,,","LOSS-T","H2-P-LR","","","",1.6866666666666666E-5,"fraction/km"]
["LOSS-T,H2-P-S,,,","LOSS-T","H2-P-S","","","",1.6866666666666666E-5,"fraction/km"]
["LOSS-T,H2-P-SR,,,","LOSS-T","H2-P-SR","","","",1.6866666666666666E-5,"fraction/km"]
["LOSS-T,H2-S,,,","LOSS-T","H2-S","","","",9.2511936896845982E-6,"fraction/km","calc_shipping"]
["LOSS-T,H2-SB,,,","LOSS-T","H2-SB","","","",4.6150154141514826E-6,"fraction/km","calc_shipping"]
["LOSS-T,LOHC-S,,,","LOSS-T","LOHC-S","","","",1.1535367546997468E-5,"fraction/km","calc_shipping"]
["LOSS-T,NH3-S,,,","LOSS-T","NH3-S","","","",5.3436561034163411E-6,"fraction/km","calc_shipping"]
["LOSS-T,NH3-SB,,,","LOSS-T","NH3-SB","","","",9.2300308283029658E-7,"fraction/km","calc_shipping"]
["OPEX-F,AEL-EL,,,","OPEX-F","AEL-EL","","","",13.012853079705877,"USD2021/kW"]
["OPEX-F,ATR,,,","OPEX-F","ATR","","","",48.829790310167752,"USD2021/kW","Oni et al. 2022"]
["OPEX-F,CH3OHSYN,,,","OPEX-F","CH3OHSYN","","","",28.606115446577505,"USD2021/kW","Öko-Institut 2020"]
["OPEX-F,CH4-COMP,,,","OPEX-F","CH4-COMP","","","",5.7796175335134681,"USD2021/kW","DNV GL 2020"]
["OPEX-F,CH4-LIQ,,,","OPEX-F","CH4-LIQ","","","",8.7998736512607394,"USD2021/kW","Hank et al. 2020"]
["OPEX-F,CH4SYN,,,","OPEX-F","CH4SYN","","","",25.436834409179458,"USD2021/kW","Öko-Institut 2020"]
["OPEX-F,DAC,,,","OPEX-F","DAC","","","",4.150964167347479E-2,"USD2021/ kg CO2 (g)*a","average low and high"]
["OPEX-F,DESAL,,,","OPEX-F","DESAL","","","",9.4669104972375679E-5,"USD2021/kW"]
["OPEX-F,DRI,,,","OPEX-F","DRI","","","",123.76885357719151,"USD2021/kg DRI (s)/a*h","Agora Industry Transformation 2021"]
["OPEX-F,EFUELSYN,,,","OPEX-F","EFUELSYN","","","",28.606115446577505,"USD2021/kW","Öko-Institut 2020"]
["OPEX-F,H2-COMP,,,","OPEX-F","H2-COMP","","","",5.7796175335134681,"USD2021/kW","DNV GL 2020"]
["OPEX-F,H2-LIQ,,,","OPEX-F","H2-LIQ","","","",58.294484220432686,"USD2021/kW","IEA 2019"]
["OPEX-F,H2-RGAS,,,","OPEX-F","H2-RGAS","","","",7.9535567883452885,"USD2021/kW","DNV GL 2020"]
["OPEX-F,LOHC-CON,,,","OPEX-F","LOHC-CON","","","",8.0391693383425267,"USD2021/kW","DNV GL 2020"]
["OPEX-F,LOHC-REC,,,","OPEX-F","LOHC-REC","","","",14.916754450335576,"USD2021/kW","DNV GL 2021"]
["OPEX-F,NH3-REC,,,","OPEX-F","NH3-REC","","","",12.342104587697584,"USD2021/kW","NGN; Equinor 2018"]
["OPEX-F,NH3SYN,,,","OPEX-F","NH3SYN","","","",74.233322216319593,"USD2021/kW","Fasihi et al. 2021"]
["OPEX-F,PEM-EL,,,","OPEX-F","PEM-EL","","","",18.492154421610433,"USD2021/kW"]
["OPEX-F,PV-FIX,,ARE,","OPEX-F","PV-FIX","","ARE","",20.953007794895285,"USD2021/kW"]
["OPEX-F,PV-FIX,,ARG,","OPEX-F","PV-FIX","","ARG","",20.328399439315248,"USD2021/kW"]
["OPEX-F,PV-FIX,,ARG-BA,","OPEX-F","PV-FIX","","ARG-BA","",20.328399439315248,"USD2021/kW"]
["OPEX-F,PV-FIX,,ARG-CAT,","OPEX-F","PV-FIX","","ARG-CAT","",20.328399439315248,"USD2021/kW"]
["OPEX-F,PV-FIX,,ARG-CBA,","OPEX-F","PV-FIX","","ARG-CBA","",20.328399439315248,"USD2021/kW"]
["OPEX-F,PV-FIX,,ARG-CHA,","OPEX-F","PV-FIX","","ARG-CHA","",20.328399439315248,"USD2021/kW"]
["OPEX-F,PV-FIX,,ARG-CHU,","OPEX-F","PV-FIX","","ARG-CHU","",20.328399439315248,"USD2021/kW"]
["OPEX-F,PV-FIX,,ARG-COR,","OPEX-F","PV-FIX","","ARG-COR","",20.328399439315248,"USD2021/kW"]
["OPEX-F,PV-FIX,,ARG-CRB,","OPEX-F","PV-FIX","","ARG-CRB","",20.328399439315248,"USD2021/kW"]
["OPEX-F,PV-FIX,,ARG-CRU,","OPEX-F","PV-FIX","","ARG-CRU","",20.328399439315248,"USD2021/kW"]
["OPEX-F,PV-FIX,,ARG-EST,","OPEX-F","PV-FIX","","ARG-EST","",20.328399439315248,"USD2021/kW"]
["OPEX-F,PV-FIX,,ARG-FOR,","OPEX-F","PV-FIX","","ARG-FOR","",20.328399439315248,"USD2021/kW"]
["OPEX-F,PV-FIX,,ARG-FUE,","OPEX-F","PV-FIX","","ARG-FUE","",20.328399439315248,"USD2021/kW"]
["OPEX-F,PV-FIX,,ARG-JUJ,","OPEX-F","PV-FIX","","ARG-JUJ","",20.328399439315248,"USD2021/kW"]
["OPEX-F,PV-FIX,,ARG-LAR,","OPEX-F","PV-FIX","","ARG-LAR","",20.328399439315248,"USD2021/kW"]
["OPEX-F,PV-FIX,,ARG-MEN,","OPEX-F","PV-FIX","","ARG-MEN","",20.328399439315248,"USD2021/kW"]
["OPEX-F,PV-FIX,,ARG-MIS,","OPEX-F","PV-FIX","","ARG-MIS","",20.328399439315248,"USD2021/kW"]
["OPEX-F,PV-FIX,,ARG-NEG,","OPEX-F","PV-FIX","","ARG-NEG","",20.328399439315248,"USD2021/kW"]
["OPEX-F,PV-FIX,,ARG-NEU,","OPEX-F","PV-FIX","","ARG-NEU","",20.328399439315248,"USD2021/kW"]
["OPEX-F,PV-FIX,,ARG-PAM,","OPEX-F","PV-FIX","","ARG-PAM","",20.328399439315248,"USD2021/kW"]
["OPEX-F,PV-FIX,,ARG-RIO,","OPEX-F","PV-FIX","","ARG-RIO","",20.328399439315248,"USD2021/kW"]
["OPEX-F,PV-FIX,,ARG-SAF,","OPEX-F","PV-FIX","","ARG-SAF","",20.328399439315248,"USD2021/kW"]
["OPEX-F,PV-FIX,,ARG-SAJ,","OPEX-F","PV-FIX","","ARG-SAJ","",20.328399439315248,"USD2021/kW"]
["OPEX-F,PV-FIX,,ARG-SAL,","OPEX-F","PV-FIX","","ARG-SAL","",20.328399439315248,"USD2021/kW"]
["OPEX-F,PV-FIX,,ARG-SAT,","OPEX-F","PV-FIX","","ARG-SAT","",20.328399439315248,"USD2021/kW"]
["OPEX-F,PV-FIX,,ARG-TUC,","OPEX-F","PV-FIX","","ARG-TUC","",20.328399439315248,"USD2021/kW"]
["OPEX-F,PV-FIX,,AUS,","OPEX-F","PV-FIX","","AUS","",22.967369741640898,"USD2021/kW"]
["OPEX-F,PV-FIX,,BRA,","OPEX-F","PV-FIX","","BRA","",19.901583729668893,"USD2021/kW"]
["OPEX-F,PV-FIX,,CHL,","OPEX-F","PV-FIX","","CHL","",22.629040215701711,"USD2021/kW"]
["OPEX-F,PV-FIX,,CHN,","OPEX-F","PV-FIX","","CHN","",13.168826163479087,"USD2021/kW"]
["OPEX-F,PV-FIX,,COL,","OPEX-F","PV-FIX","","COL","",12.72146901832928,"USD2021/kW"]
["OPEX-F,PV-FIX,,CRI,","OPEX-F","PV-FIX","","CRI","",20.953007794895285,"USD2021/kW"]
["OPEX-F,PV-FIX,,DNK,","OPEX-F","PV-FIX","","DNK","",18.165693008119373,"USD2021/kW"]
["OPEX-F,PV-FIX,,DZA,","OPEX-F","PV-FIX","","DZA","",20.953007794895285,"USD2021/kW"]
["OPEX-F,PV-FIX,,EGY,","OPEX-F","PV-FIX","","EGY","",20.953007794895285,"USD2021/kW"]
["OPEX-F,PV-FIX,,ESP,","OPEX-F","PV-FIX","","ESP","",19.742829105958965,"USD2021/kW"]
["OPEX-F,PV-FIX,,IDN,","OPEX-F","PV-FIX","","IDN","",24.286854892803724,"USD2021/kW"]
["OPEX-F,PV-FIX,,IND,","OPEX-F","PV-FIX","","IND","",13.611257082014946,"USD2021/kW"]
["OPEX-F,PV-FIX,,JOR,","OPEX-F","PV-FIX","","JOR","",20.953007794895285,"USD2021/kW"]
["OPEX-F,PV-FIX,,KAZ,","OPEX-F","PV-FIX","","KAZ","",20.953007794895285,"USD2021/kW"]
["OPEX-F,PV-FIX,,KEN,","OPEX-F","PV-FIX","","KEN","",20.953007794895285,"USD2021/kW"]
["OPEX-F,PV-FIX,,MAR,","OPEX-F","PV-FIX","","MAR","",20.953007794895285,"USD2021/kW"]
["OPEX-F,PV-FIX,,MAR-BEN,","OPEX-F","PV-FIX","","MAR-BEN","",20.953007794895285,"USD2021/kW"]
["OPEX-F,PV-FIX,,MAR-CAS,","OPEX-F","PV-FIX","","MAR-CAS","",20.953007794895285,"USD2021/kW"]
["OPEX-F,PV-FIX,,MAR-DAK,","OPEX-F","PV-FIX","","MAR-DAK","",20.953007794895285,"USD2021/kW"]
["OPEX-F,PV-FIX,,MAR-DRA,","OPEX-F","PV-FIX","","MAR-DRA","",20.953007794895285,"USD2021/kW"]
["OPEX-F,PV-FIX,,MAR-FES,","OPEX-F","PV-FIX","","MAR-FES","",20.953007794895285,"USD2021/kW"]
["OPEX-F,PV-FIX,,MAR-GUE,","OPEX-F","PV-FIX","","MAR-GUE","",20.953007794895285,"USD2021/kW"]
["OPEX-F,PV-FIX,,MAR-LAA,","OPEX-F","PV-FIX","","MAR-LAA","",20.953007794895285,"USD2021/kW"]
["OPEX-F,PV-FIX,,MAR-LOR,","OPEX-F","PV-FIX","","MAR-LOR","",20.953007794895285,"USD2021/kW"]
["OPEX-F,PV-FIX,,MAR-MAR,","OPEX-F","PV-FIX","","MAR-MAR","",20.953007794895285,"USD2021/kW"]
["OPEX-F,PV-FIX,,MAR-RAB,","OPEX-F","PV-FIX","","MAR-RAB","",20.953007794895285,"USD2021/kW"]
["OPEX-F,PV-FIX,,MAR-SOU,","OPEX-F","PV-FIX","","MAR-SOU","",20.953007794895285,"USD2021/kW"]
["OPEX-F,PV-FIX,,MAR-TAN,","OPEX-F","PV-FIX","","MAR-TAN","",20.953007794895285,"USD2021/kW"]
["OPEX-F,PV-FIX,,MEX,","OPEX-F","PV-FIX","","MEX","",19.094797937044678,"USD2021/kW"]
["OPEX-F,PV-FIX,,MRT,","OPEX-F","PV-FIX","","MRT","",20.953007794895285,"USD2021/kW"]
["OPEX-F,PV-FIX,,NAM,","OPEX-F","PV-FIX","","NAM","",20.953007794895285,"USD2021/kW"]
["OPEX-F,PV-FIX,,NOR,","OPEX-F","PV-FIX","","NOR","",19.306759939192904,"USD2021/kW"]
["OPEX-F,PV-FIX,,PER,","OPEX-F","PV-FIX","","PER","",20.953007794895285,"USD2021/kW"]
["OPEX-F,PV-FIX,,PRT,","OPEX-F","PV-FIX","","PRT","",21.187235928237797,"USD2021/kW"]
["OPEX-F,PV-FIX,,RUS,","OPEX-F","PV-FIX","","RUS","",37.58580779702865,"USD2021/kW"]
["OPEX-F,PV-FIX,,SAU,","OPEX-F","PV-FIX","","SAU","",21.731165704555412,"USD2021/kW"]
["OPEX-F,PV-FIX,,SWE,","OPEX-F","PV-FIX","","SWE","",19.306759939192904,"USD2021/kW"]
["OPEX-F,PV-FIX,,THA,","OPEX-F","PV-FIX","","THA","",23.118316760906072,"USD2021/kW"]
["OPEX-F,PV-FIX,,TUN,","OPEX-F","PV-FIX","","TUN","",20.953007794895285,"USD2021/kW"]
["OPEX-F,PV-FIX,,UKR,","OPEX-F","PV-FIX","","UKR","",19.306759939192904,"USD2021/kW"]
["OPEX-F,PV-FIX,,URY,","OPEX-F","PV-FIX","","URY","",20.953007794895285,"USD2021/kW"]
["OPEX-F,PV-FIX,,USA,","OPEX-F","PV-FIX","","USA","",25.031179849869932,"USD2021/kW"]
["OPEX-F,PV-FIX,,VNM,","OPEX-F","PV-FIX","","VNM","",23.118316760906072,"USD2021/kW"]
["OPEX-F,PV-FIX,,ZAF,","OPEX-F","PV-FIX","","ZAF","",20.953007794895285,"USD2021/kW"]
["OPEX-F,PV-FIX,,ZAF-EC,","OPEX-F","PV-FIX","","ZAF-EC","",20.953007794895285,"USD2021/kW"]
["OPEX-F,PV-FIX,,ZAF-FRS,","OPEX-F","PV-FIX","","ZAF-FRS","",20.953007794895285,"USD2021/kW"]
["OPEX-F,PV-FIX,,ZAF-GAU,","OPEX-F","PV-FIX","","ZAF-GAU","",20.953007794895285,"USD2021/kW"]
["OPEX-F,PV-FIX,,ZAF-KWA,","OPEX-F","PV-FIX","","ZAF-KWA","",20.953007794895285,"USD2021/kW"]
["OPEX-F,PV-FIX,,ZAF-LIM,","OPEX-F","PV-FIX","","ZAF-LIM","",20.953007794895285,"USD2021/kW"]
["OPEX-F,PV-FIX,,ZAF-MPU,","OPEX-F","PV-FIX","","ZAF-MPU","",20.953007794895285,"USD2021/kW"]
["OPEX-F,PV-FIX,,ZAF-NC,","OPEX-F","PV-FIX","","ZAF-NC","",20.953007794895285,"USD2021/kW"]
["OPEX-F,PV-FIX,,ZAF-NW,","OPEX-F","PV-FIX","","ZAF-NW","",20.953007794895285,"USD2021/kW"]
["OPEX-F,PV-FIX,,ZAF-WC,","OPEX-F","PV-FIX","","ZAF-WC","",20.953007794895285,"USD2021/kW"]
["OPEX-F,REGASATR,,,","OPEX-F","REGASATR","","","",48.829790310167752,"USD2021/kW","combined values"]
["OPEX-F,RES-HYBR,,ARE,","OPEX-F","RES-HYBR","","ARE","",22.580684665414566,"USD2021/kW"]
["OPEX-F,RES-HYBR,,ARG,","OPEX-F","RES-HYBR","","ARG","",24.360834108462015,"USD2021/kW"]
["OPEX-F,RES-HYBR,,ARG-BA,","OPEX-F","RES-HYBR","","ARG-BA","",24.360834108462015,"USD2021/kW"]
["OPEX-F,RES-HYBR,,ARG-CAT,","OPEX-F","RES-HYBR","","ARG-CAT","",24.360834108462015,"USD2021/kW"]
["OPEX-F,RES-HYBR,,ARG-CBA,","OPEX-F","RES-HYBR","","ARG-CBA","",24.360834108462015,"USD2021/kW"]
["OPEX-F,RES-HYBR,,ARG-CHA,","OPEX-F","RES-HYBR","","ARG-CHA","",24.360834108462015,"USD2021/kW"]
["OPEX-F,RES-HYBR,,ARG-CHU,","OPEX-F","RES-HYBR","","ARG-CHU","",24.360834108462015,"USD2021/kW"]
["OPEX-F,RES-HYBR,,ARG-COR,","OPEX-F","RES-HYBR","","ARG-COR","",24.360834108462015,"USD2021/kW"]
["OPEX-F,RES-HYBR,,ARG-CRB,","OPEX-F","RES-HYBR","","ARG-CRB","",24.360834108462015,"USD2021/kW"]
["OPEX-F,RES-HYBR,,ARG-CRU,","OPEX-F","RES-HYBR","","ARG-CRU","",24.360834108462015,"USD2021/kW"]
["OPEX-F,RES-HYBR,,ARG-EST,","OPEX-F","RES-HYBR","","ARG-EST","",24.360834108462015,"USD2021/kW"]
["OPEX-F,RES-HYBR,,ARG-FOR,","OPEX-F","RES-HYBR","","ARG-FOR","",24.360834108462015,"USD2021/kW"]
["OPEX-F,RES-HYBR,,ARG-FUE,","OPEX-F","RES-HYBR","","ARG-FUE","",24.360834108462015,"USD2021/kW"]
["OPEX-F,RES-HYBR,,ARG-JUJ,","OPEX-F","RES-HYBR","","ARG-JUJ","",24.360834108462015,"USD2021/kW"]
["OPEX-F,RES-HYBR,,ARG-LAR,","OPEX-F","RES-HYBR","","ARG-LAR","",24.360834108462015,"USD2021/kW"]
["OPEX-F,RES-HYBR,,ARG-MEN,","OPEX-F","RES-HYBR","","ARG-MEN","",24.360834108462015,"USD2021/kW"]
["OPEX-F,RES-HYBR,,ARG-MIS,","OPEX-F","RES-HYBR","","ARG-MIS","",24.360834108462015,"USD2021/kW"]
["OPEX-F,RES-HYBR,,ARG-NEG,","OPEX-F","RES-HYBR","","ARG-NEG","",24.360834108462015,"USD2021/kW"]
["OPEX-F,RES-HYBR,,ARG-NEU,","OPEX-F","RES-HYBR","","ARG-NEU","",24.360834108462015,"USD2021/kW"]
["OPEX-F,RES-HYBR,,ARG-PAM,","OPEX-F","RES-HYBR","","ARG-PAM","",24.360834108462015,"USD2021/kW"]
["OPEX-F,RES-HYBR,,ARG-RIO,","OPEX-F","RES-HYBR","","ARG-RIO","",24.360834108462015,"USD2021/kW"]
["OPEX-F,RES-HYBR,,ARG-SAF,","OPEX-F","RES-HYBR","","ARG-SAF","",24.360834108462015,"USD2021/kW"]
["OPEX-F,RES-HYBR,,ARG-SAJ,","OPEX-F","RES-HYBR","","ARG-SAJ","",24.360834108462015,"USD2021/kW"]
["OPEX-F,RES-HYBR,,ARG-SAL,","OPEX-F","RES-HYBR","","ARG-SAL","",24.360834108462015,"USD2021/kW"]
["OPEX-F,RES-HYBR,,ARG-SAT,","OPEX-F","RES-HYBR","","ARG-SAT","",24.360834108462015,"USD2021/kW"]
["OPEX-F,RES-HYBR,,ARG-TUC,","OPEX-F","RES-HYBR","","ARG-TUC","",24.360834108462015,"USD2021/kW"]
["OPEX-F,RES-HYBR,,AUS,","OPEX-F","RES-HYBR","","AUS","",25.303323502149748,"USD2021/kW"]
["OPEX-F,RES-HYBR,,BRA,","OPEX-F","RES-HYBR","","BRA","",18.345305714480759,"USD2021/kW"]
["OPEX-F,RES-HYBR,,CHL,","OPEX-F","RES-HYBR","","CHL","",25.182491528600039,"USD2021/kW"]
["OPEX-F,RES-HYBR,,CHN,","OPEX-F","RES-HYBR","","CHN","",16.009152206647794,"USD2021/kW"]
["OPEX-F,RES-HYBR,,CRI,","OPEX-F","RES-HYBR","","CRI","",22.952013965505664,"USD2021/kW"]
["OPEX-F,RES-HYBR,,DNK,","OPEX-F","RES-HYBR","","DNK","",22.347417346264294,"USD2021/kW"]
["OPEX-F,RES-HYBR,,DZA,","OPEX-F","RES-HYBR","","DZA","",25.971507484667484,"USD2021/kW"]
["OPEX-F,RES-HYBR,,EGY,","OPEX-F","RES-HYBR","","EGY","",22.140952599517213,"USD2021/kW"]
["OPEX-F,RES-HYBR,,ESP,","OPEX-F","RES-HYBR","","ESP","",18.49920058621618,"USD2021/kW"]
["OPEX-F,RES-HYBR,,IDN,","OPEX-F","RES-HYBR","","IDN","",30.660480042297532,"USD2021/kW"]
["OPEX-F,RES-HYBR,,IND,","OPEX-F","RES-HYBR","","IND","",13.909871977375621,"USD2021/kW"]
["OPEX-F,RES-HYBR,,JOR,","OPEX-F","RES-HYBR","","JOR","",25.971507484667484,"USD2021/kW"]
["OPEX-F,RES-HYBR,,KAZ,","OPEX-F","RES-HYBR","","KAZ","",22.140952599517213,"USD2021/kW"]
["OPEX-F,RES-HYBR,,KEN,","OPEX-F","RES-HYBR","","KEN","",25.971507484667484,"USD2021/kW"]
["OPEX-F,RES-HYBR,,MAR,","OPEX-F","RES-HYBR","","MAR","",24.583908521169171,"USD2021/kW"]
["OPEX-F,RES-HYBR,,MAR-BEN,","OPEX-F","RES-HYBR","","MAR-BEN","",24.583908521169171,"USD2021/kW"]
["OPEX-F,RES-HYBR,,MAR-CAS,","OPEX-F","RES-HYBR","","MAR-CAS","",24.583908521169171,"USD2021/kW"]
["OPEX-F,RES-HYBR,,MAR-DAK,","OPEX-F","RES-HYBR","","MAR-DAK","",24.583908521169171,"USD2021/kW"]
["OPEX-F,RES-HYBR,,MAR-DRA,","OPEX-F","RES-HYBR","","MAR-DRA","",24.583908521169171,"USD2021/kW"]
["OPEX-F,RES-HYBR,,MAR-FES,","OPEX-F","RES-HYBR","","MAR-FES","",24.583908521169171,"USD2021/kW"]
["OPEX-F,RES-HYBR,,MAR-GUE,","OPEX-F","RES-HYBR","","MAR-GUE","",24.583908521169171,"USD2021/kW"]
["OPEX-F,RES-HYBR,,MAR-LAA,","OPEX-F","RES-HYBR","","MAR-LAA","",24.583908521169171,"USD2021/kW"]
["OPEX-F,RES-HYBR,,MAR-LOR,","OPEX-F","RES-HYBR","","MAR-LOR","",24.583908521169171,"USD2021/kW"]
["OPEX-F,RES-HYBR,,MAR-MAR,","OPEX-F","RES-HYBR","","MAR-MAR","",24.583908521169171,"USD2021/kW"]
["OPEX-F,RES-HYBR,,MAR-RAB,","OPEX-F","RES-HYBR","","MAR-RAB","",24.583908521169171,"USD2021/kW"]
["OPEX-F,RES-HYBR,,MAR-SOU,","OPEX-F","RES-HYBR","","MAR-SOU","",24.583908521169171,"USD2021/kW"]
["OPEX-F,RES-HYBR,,MAR-TAN,","OPEX-F","RES-HYBR","","MAR-TAN","",24.583908521169171,"USD2021/kW"]
["OPEX-F,RES-HYBR,,MEX,","OPEX-F","RES-HYBR","","MEX","",21.198123020756672,"USD2021/kW"]
["OPEX-F,RES-HYBR,,MRT,","OPEX-F","RES-HYBR","","MRT","",25.971507484667484,"USD2021/kW"]
["OPEX-F,RES-HYBR,,NAM,","OPEX-F","RES-HYBR","","NAM","",25.971507484667484,"USD2021/kW"]
["OPEX-F,RES-HYBR,,NOR,","OPEX-F","RES-HYBR","","NOR","",21.553006936766362,"USD2021/kW"]
["OPEX-F,RES-HYBR,,PER,","OPEX-F","RES-HYBR","","PER","",19.697996677865255,"USD2021/kW"]
["OPEX-F,RES-HYBR,,PRT,","OPEX-F","RES-HYBR","","PRT","",24.667561425934355,"USD2021/kW"]
["OPEX-F,RES-HYBR,,RUS,","OPEX-F","RES-HYBR","","RUS","",28.081238314564843,"USD2021/kW"]
["OPEX-F,RES-HYBR,,SAU,","OPEX-F","RES-HYBR","","SAU","",22.858598204578893,"USD2021/kW"]
["OPEX-F,RES-HYBR,,SWE,","OPEX-F","RES-HYBR","","SWE","",22.754941250219126,"USD2021/kW"]
["OPEX-F,RES-HYBR,,THA,","OPEX-F","RES-HYBR","","THA","",23.354009296132705,"USD2021/kW"]
["OPEX-F,RES-HYBR,,TUN,","OPEX-F","RES-HYBR","","TUN","",25.971507484667484,"USD2021/kW"]
["OPEX-F,RES-HYBR,,UKR,","OPEX-F","RES-HYBR","","UKR","",21.553006936766362,"USD2021/kW"]
["OPEX-F,RES-HYBR,,URY,","OPEX-F","RES-HYBR","","URY","",29.46982036447309,"USD2021/kW"]
["OPEX-F,RES-HYBR,,USA,","OPEX-F","RES-HYBR","","USA","",22.441558718444981,"USD2021/kW"]
["OPEX-F,RES-HYBR,,VNM,","OPEX-F","RES-HYBR","","VNM","",30.24314499519123,"USD2021/kW"]
["OPEX-F,RES-HYBR,,ZAF,","OPEX-F","RES-HYBR","","ZAF","",24.583908521169171,"USD2021/kW"]
["OPEX-F,RES-HYBR,,ZAF-EC,","OPEX-F","RES-HYBR","","ZAF-EC","",24.583908521169171,"USD2021/kW"]
["OPEX-F,RES-HYBR,,ZAF-FRS,","OPEX-F","RES-HYBR","","ZAF-FRS","",24.583908521169171,"USD2021/kW"]
["OPEX-F,RES-HYBR,,ZAF-GAU,","OPEX-F","RES-HYBR","","ZAF-GAU","",24.583908521169171,"USD2021/kW"]
["OPEX-F,RES-HYBR,,ZAF-KWA,","OPEX-F","RES-HYBR","","ZAF-KWA","",24.583908521169171,"USD2021/kW"]
["OPEX-F,RES-HYBR,,ZAF-LIM,","OPEX-F","RES-HYBR","","ZAF-LIM","",24.583908521169171,"USD2021/kW"]
["OPEX-F,RES-HYBR,,ZAF-MPU,","OPEX-F","RES-HYBR","","ZAF-MPU","",24.583908521169171,"USD2021/kW"]
["OPEX-F,RES-HYBR,,ZAF-NC,","OPEX-F","RES-HYBR","","ZAF-NC","",24.583908521169171,"USD2021/kW"]
["OPEX-F,RES-HYBR,,ZAF-NW,","OPEX-F","RES-HYBR","","ZAF-NW","",24.583908521169171,"USD2021/kW"]
["OPEX-F,RES-HYBR,,ZAF-WC,","OPEX-F","RES-HYBR","","ZAF-WC","",24.583908521169171,"USD2021/kW"]
["OPEX-F,SOEC-EL,,,","OPEX-F","SOEC-EL","","","",84.950910814791399,"USD2021/kW"]
["OPEX-F,WIND-OFF,,ARE,","OPEX-F","WIND-OFF","","ARE","",112.76583709600088,"USD2021/kW"]
["OPEX-F,WIND-OFF,,ARG,","OPEX-F","WIND-OFF","","ARG","",112.76583709600088,"USD2021/kW"]
["OPEX-F,WIND-OFF,,ARG-BA,","OPEX-F","WIND-OFF","","ARG-BA","",112.76583709600088,"USD2021/kW"]
["OPEX-F,WIND-OFF,,ARG-CAT,","OPEX-F","WIND-OFF","","ARG-CAT","",112.76583709600088,"USD2021/kW"]
["OPEX-F,WIND-OFF,,ARG-CBA,","OPEX-F","WIND-OFF","","ARG-CBA","",112.76583709600088,"USD2021/kW"]
["OPEX-F,WIND-OFF,,ARG-CHA,","OPEX-F","WIND-OFF","","ARG-CHA","",112.76583709600088,"USD2021/kW"]
["OPEX-F,WIND-OFF,,ARG-CHU,","OPEX-F","WIND-OFF","","ARG-CHU","",112.76583709600088,"USD2021/kW"]
["OPEX-F,WIND-OFF,,ARG-COR,","OPEX-F","WIND-OFF","","ARG-COR","",112.76583709600088,"USD2021/kW"]
["OPEX-F,WIND-OFF,,ARG-CRB,","OPEX-F","WIND-OFF","","ARG-CRB","",112.76583709600088,"USD2021/kW"]
["OPEX-F,WIND-OFF,,ARG-CRU,","OPEX-F","WIND-OFF","","ARG-CRU","",112.76583709600088,"USD2021/kW"]
["OPEX-F,WIND-OFF,,ARG-EST,","OPEX-F","WIND-OFF","","ARG-EST","",112.76583709600088,"USD2021/kW"]
["OPEX-F,WIND-OFF,,ARG-FOR,","OPEX-F","WIND-OFF","","ARG-FOR","",112.76583709600088,"USD2021/kW"]
["OPEX-F,WIND-OFF,,ARG-FUE,","OPEX-F","WIND-OFF","","ARG-FUE","",112.76583709600088,"USD2021/kW"]
["OPEX-F,WIND-OFF,,ARG-JUJ,","OPEX-F","WIND-OFF","","ARG-JUJ","",112.76583709600088,"USD2021/kW"]
["OPEX-F,WIND-OFF,,ARG-LAR,","OPEX-F","WIND-OFF","","ARG-LAR","",112.76583709600088,"USD2021/kW"]
["OPEX-F,WIND-OFF,,ARG-MEN,","OPEX-F","WIND-OFF","","ARG-MEN","",112.76583709600088,"USD2021/kW"]
["OPEX-F,WIND-OFF,,ARG-MIS,","OPEX-F","WIND-OFF","","ARG-MIS","",112.76583709600088,"USD2021/kW"]
["OPEX-F,WIND-OFF,,ARG-NEG,","OPEX-F","WIND-OFF","","ARG-NEG","",112.76583709600088,"USD2021/kW"]
["OPEX-F,WIND-OFF,,ARG-NEU,","OPEX-F","WIND-OFF","","ARG-NEU","",112.76583709600088,"USD2021/kW"]
["OPEX-F,WIND-OFF,,ARG-PAM,","OPEX-F","WIND-OFF","","ARG-PAM","",112.76583709600088,"USD2021/kW"]
["OPEX-F,WIND-OFF,,ARG-RIO,","OPEX-F","WIND-OFF","","ARG-RIO","",112.76583709600088,"USD2021/kW"]
["OPEX-F,WIND-OFF,,ARG-SAF,","OPEX-F","WIND-OFF","","ARG-SAF","",112.76583709600088,"USD2021/kW"]
["OPEX-F,WIND-OFF,,ARG-SAJ,","OPEX-F","WIND-OFF","","ARG-SAJ","",112.76583709600088,"USD2021/kW"]
["OPEX-F,WIND-OFF,,ARG-SAL,","OPEX-F","WIND-OFF","","ARG-SAL","",112.76583709600088,"USD2021/kW"]
["OPEX-F,WIND-OFF,,ARG-SAT,","OPEX-F","WIND-OFF","","ARG-SAT","",112.76583709600088,"USD2021/kW"]
["OPEX-F,WIND-OFF,,ARG-TUC,","OPEX-F","WIND-OFF","","ARG-TUC","",112.76583709600088,"USD2021/kW"]
["OPEX-F,WIND-OFF,,AUS,","OPEX-F","WIND-OFF","","AUS","",112.76583709600088,"USD2021/kW"]
["OPEX-F,WIND-OFF,,BRA,","OPEX-F","WIND-OFF","","BRA","",112.76583709600088,"USD2021/kW"]
["OPEX-F,WIND-OFF,,CHL,","OPEX-F","WIND-OFF","","CHL","",112.76583709600088,"USD2021/kW"]
["OPEX-F,WIND-OFF,,CHN,","OPEX-F","WIND-OFF","","CHN","",93.971530913334078,"USD2021/kW"]
["OPEX-F,WIND-OFF,,COL,","OPEX-F","WIND-OFF","","COL","",112.77800000000001,"USD2021/kW"]
["OPEX-F,WIND-OFF,,CRI,","OPEX-F","WIND-OFF","","CRI","",112.76583709600088,"USD2021/kW"]
["OPEX-F,WIND-OFF,,DNK,","OPEX-F","WIND-OFF","","DNK","",75.289056444039801,"USD2021/kW"]
["OPEX-F,WIND-OFF,,DZA,","OPEX-F","WIND-OFF","","DZA","",112.76583709600088,"USD2021/kW"]
["OPEX-F,WIND-OFF,,EGY,","OPEX-F","WIND-OFF","","EGY","",112.76583709600088,"USD2021/kW"]
["OPEX-F,WIND-OFF,,ESP,","OPEX-F","WIND-OFF","","ESP","",112.76583709600088,"USD2021/kW"]
["OPEX-F,WIND-OFF,,IDN,","OPEX-F","WIND-OFF","","IDN","",112.76583709600088,"USD2021/kW"]
["OPEX-F,WIND-OFF,,IND,","OPEX-F","WIND-OFF","","IND","",112.76583709600088,"USD2021/kW"]
["OPEX-F,WIND-OFF,,JOR,","OPEX-F","WIND-OFF","","JOR","",112.76583709600088,"USD2021/kW"]
["OPEX-F,WIND-OFF,,KAZ,","OPEX-F","WIND-OFF","","KAZ","",112.76583709600088,"USD2021/kW"]
["OPEX-F,WIND-OFF,,KEN,","OPEX-F","WIND-OFF","","KEN","",112.76583709600088,"USD2021/kW"]
["OPEX-F,WIND-OFF,,MAR,","OPEX-F","WIND-OFF","","MAR","",112.76583709600088,"USD2021/kW"]
["OPEX-F,WIND-OFF,,MAR-BEN,","OPEX-F","WIND-OFF","","MAR-BEN","",112.76583709600088,"USD2021/kW"]
["OPEX-F,WIND-OFF,,MAR-CAS,","OPEX-F","WIND-OFF","","MAR-CAS","",112.76583709600088,"USD2021/kW"]
["OPEX-F,WIND-OFF,,MAR-DAK,","OPEX-F","WIND-OFF","","MAR-DAK","",112.76583709600088,"USD2021/kW"]
["OPEX-F,WIND-OFF,,MAR-DRA,","OPEX-F","WIND-OFF","","MAR-DRA","",112.76583709600088,"USD2021/kW"]
["OPEX-F,WIND-OFF,,MAR-FES,","OPEX-F","WIND-OFF","","MAR-FES","",112.76583709600088,"USD2021/kW"]
["OPEX-F,WIND-OFF,,MAR-GUE,","OPEX-F","WIND-OFF","","MAR-GUE","",112.76583709600088,"USD2021/kW"]
["OPEX-F,WIND-OFF,,MAR-LAA,","OPEX-F","WIND-OFF","","MAR-LAA","",112.76583709600088,"USD2021/kW"]
["OPEX-F,WIND-OFF,,MAR-LOR,","OPEX-F","WIND-OFF","","MAR-LOR","",112.76583709600088,"USD2021/kW"]
["OPEX-F,WIND-OFF,,MAR-MAR,","OPEX-F","WIND-OFF","","MAR-MAR","",112.76583709600088,"USD2021/kW"]
["OPEX-F,WIND-OFF,,MAR-RAB,","OPEX-F","WIND-OFF","","MAR-RAB","",112.76583709600088,"USD2021/kW"]
["OPEX-F,WIND-OFF,,MAR-SOU,","OPEX-F","WIND-OFF","","MAR-SOU","",112.76583709600088,"USD2021/kW"]
["OPEX-F,WIND-OFF,,MAR-TAN,","OPEX-F","WIND-OFF","","MAR-TAN","",112.76583709600088,"USD2021/kW"]
["OPEX-F,WIND-OFF,,MEX,","OPEX-F","WIND-OFF","","MEX","",112.76583709600088,"USD2021/kW"]
["OPEX-F,WIND-OFF,,MRT,","OPEX-F","WIND-OFF","","MRT","",112.76583709600088,"USD2021/kW"]
["OPEX-F,WIND-OFF,,NAM,","OPEX-F","WIND-OFF","","NAM","",112.76583709600088,"USD2021/kW"]
["OPEX-F,WIND-OFF,,NOR,","OPEX-F","WIND-OFF","","NOR","",112.76583709600088,"USD2021/kW"]
["OPEX-F,WIND-OFF,,PER,","OPEX-F","WIND-OFF","","PER","",112.76583709600088,"USD2021/kW"]
["OPEX-F,WIND-OFF,,PRT,","OPEX-F","WIND-OFF","","PRT","",112.76583709600088,"USD2021/kW"]
["OPEX-F,WIND-OFF,,RUS,","OPEX-F","WIND-OFF","","RUS","",112.76583709600088,"USD2021/kW"]
["OPEX-F,WIND-OFF,,SAU,","OPEX-F","WIND-OFF","","SAU","",112.76583709600088,"USD2021/kW"]
["OPEX-F,WIND-OFF,,SWE,","OPEX-F","WIND-OFF","","SWE","",112.76583709600088,"USD2021/kW"]
["OPEX-F,WIND-OFF,,THA,","OPEX-F","WIND-OFF","","THA","",112.76583709600088,"USD2021/kW"]
["OPEX-F,WIND-OFF,,TUN,","OPEX-F","WIND-OFF","","TUN","",112.76583709600088,"USD2021/kW"]
["OPEX-F,WIND-OFF,,UKR,","OPEX-F","WIND-OFF","","UKR","",112.76583709600088,"USD2021/kW"]
["OPEX-F,WIND-OFF,,URY,","OPEX-F","WIND-OFF","","URY","",112.76583709600088,"USD2021/kW"]
["OPEX-F,WIND-OFF,,USA,","OPEX-F","WIND-OFF","","USA","",112.76583709600088,"USD2021/kW"]
["OPEX-F,WIND-OFF,,VNM,","OPEX-F","WIND-OFF","","VNM","",112.76583709600088,"USD2021/kW"]
["OPEX-F,WIND-OFF,,ZAF,","OPEX-F","WIND-OFF","","ZAF","",112.76583709600088,"USD2021/kW"]
["OPEX-F,WIND-OFF,,ZAF-EC,","OPEX-F","WIND-OFF","","ZAF-EC","",112.76583709600088,"USD2021/kW"]
["OPEX-F,WIND-OFF,,ZAF-FRS,","OPEX-F","WIND-OFF","","ZAF-FRS","",112.76583709600088,"USD2021/kW"]
["OPEX-F,WIND-OFF,,ZAF-GAU,","OPEX-F","WIND-OFF","","ZAF-GAU","",112.76583709600088,"USD2021/kW"]
["OPEX-F,WIND-OFF,,ZAF-KWA,","OPEX-F","WIND-OFF","","ZAF-KWA","",112.76583709600088,"USD2021/kW"]
["OPEX-F,WIND-OFF,,ZAF-LIM,","OPEX-F","WIND-OFF","","ZAF-LIM","",112.76583709600088,"USD2021/kW"]
["OPEX-F,WIND-OFF,,ZAF-MPU,","OPEX-F","WIND-OFF","","ZAF-MPU","",112.76583709600088,"USD2021/kW"]
["OPEX-F,WIND-OFF,,ZAF-NC,","OPEX-F","WIND-OFF","","ZAF-NC","",112.76583709600088,"USD2021/kW"]
["OPEX-F,WIND-OFF,,ZAF-NW,","OPEX-F","WIND-OFF","","ZAF-NW","",112.76583709600088,"USD2021/kW"]
["OPEX-F,WIND-OFF,,ZAF-WC,","OPEX-F","WIND-OFF","","ZAF-WC","",112.76583709600088,"USD2021/kW"]
["OPEX-F,WIND-ON,,ARE,","OPEX-F","WIND-ON","","ARE","",42.272909268265494,"USD2021/kW"]
["OPEX-F,WIND-ON,,ARG,","OPEX-F","WIND-ON","","ARG","",47.881936064378394,"USD2021/kW"]
["OPEX-F,WIND-ON,,ARG-BA,","OPEX-F","WIND-ON","","ARG-BA","",47.881936064378394,"USD2021/kW"]
["OPEX-F,WIND-ON,,ARG-CAT,","OPEX-F","WIND-ON","","ARG-CAT","",47.881936064378394,"USD2021/kW"]
["OPEX-F,WIND-ON,,ARG-CBA,","OPEX-F","WIND-ON","","ARG-CBA","",47.881936064378394,"USD2021/kW"]
["OPEX-F,WIND-ON,,ARG-CHA,","OPEX-F","WIND-ON","","ARG-CHA","",47.881936064378394,"USD2021/kW"]
["OPEX-F,WIND-ON,,ARG-CHU,","OPEX-F","WIND-ON","","ARG-CHU","",47.881936064378394,"USD2021/kW"]
["OPEX-F,WIND-ON,,ARG-COR,","OPEX-F","WIND-ON","","ARG-COR","",47.881936064378394,"USD2021/kW"]
["OPEX-F,WIND-ON,,ARG-CRB,","OPEX-F","WIND-ON","","ARG-CRB","",47.881936064378394,"USD2021/kW"]
["OPEX-F,WIND-ON,,ARG-CRU,","OPEX-F","WIND-ON","","ARG-CRU","",47.881936064378394,"USD2021/kW"]
["OPEX-F,WIND-ON,,ARG-EST,","OPEX-F","WIND-ON","","ARG-EST","",47.881936064378394,"USD2021/kW"]
["OPEX-F,WIND-ON,,ARG-FOR,","OPEX-F","WIND-ON","","ARG-FOR","",47.881936064378394,"USD2021/kW"]
["OPEX-F,WIND-ON,,ARG-FUE,","OPEX-F","WIND-ON","","ARG-FUE","",47.881936064378394,"USD2021/kW"]
["OPEX-F,WIND-ON,,ARG-JUJ,","OPEX-F","WIND-ON","","ARG-JUJ","",47.881936064378394,"USD2021/kW"]
["OPEX-F,WIND-ON,,ARG-LAR,","OPEX-F","WIND-ON","","ARG-LAR","",47.881936064378394,"USD2021/kW"]
["OPEX-F,WIND-ON,,ARG-MEN,","OPEX-F","WIND-ON","","ARG-MEN","",47.881936064378394,"USD2021/kW"]
["OPEX-F,WIND-ON,,ARG-MIS,","OPEX-F","WIND-ON","","ARG-MIS","",47.881936064378394,"USD2021/kW"]
["OPEX-F,WIND-ON,,ARG-NEG,","OPEX-F","WIND-ON","","ARG-NEG","",47.881936064378394,"USD2021/kW"]
["OPEX-F,WIND-ON,,ARG-NEU,","OPEX-F","WIND-ON","","ARG-NEU","",47.881936064378394,"USD2021/kW"]
["OPEX-F,WIND-ON,,ARG-PAM,","OPEX-F","WIND-ON","","ARG-PAM","",47.881936064378394,"USD2021/kW"]
["OPEX-F,WIND-ON,,ARG-RIO,","OPEX-F","WIND-ON","","ARG-RIO","",47.881936064378394,"USD2021/kW"]
["OPEX-F,WIND-ON,,ARG-SAF,","OPEX-F","WIND-ON","","ARG-SAF","",47.881936064378394,"USD2021/kW"]
["OPEX-F,WIND-ON,,ARG-SAJ,","OPEX-F","WIND-ON","","ARG-SAJ","",47.881936064378394,"USD2021/kW"]
["OPEX-F,WIND-ON,,ARG-SAL,","OPEX-F","WIND-ON","","ARG-SAL","",47.881936064378394,"USD2021/kW"]
["OPEX-F,WIND-ON,,ARG-SAT,","OPEX-F","WIND-ON","","ARG-SAT","",47.881936064378394,"USD2021/kW"]
["OPEX-F,WIND-ON,,ARG-TUC,","OPEX-F","WIND-ON","","ARG-TUC","",47.881936064378394,"USD2021/kW"]
["OPEX-F,WIND-ON,,AUS,","OPEX-F","WIND-ON","","AUS","",47.881936064378394,"USD2021/kW"]
["OPEX-F,WIND-ON,,BRA,","OPEX-F","WIND-ON","","BRA","",31.465272270877229,"USD2021/kW"]
["OPEX-F,WIND-ON,,CHL,","OPEX-F","WIND-ON","","CHL","",47.881936064378394,"USD2021/kW"]
["OPEX-F,WIND-ON,,CHN,","OPEX-F","WIND-ON","","CHN","",31.656800015134742,"USD2021/kW"]
["OPEX-F,WIND-ON,,COL,","OPEX-F","WIND-ON","","COL","",45.5,"USD2021/kW"]
["OPEX-F,WIND-ON,,CRI,","OPEX-F","WIND-ON","","CRI","",43.312631308520572,"USD2021/kW"]
["OPEX-F,WIND-ON,,DNK,","OPEX-F","WIND-ON","","DNK","",44.407075561420648,"USD2021/kW"]
["OPEX-F,WIND-ON,,DZA,","OPEX-F","WIND-ON","","DZA","",51.767213162173668,"USD2021/kW"]
["OPEX-F,WIND-ON,,EGY,","OPEX-F","WIND-ON","","EGY","",41.041659483752909,"USD2021/kW"]
["OPEX-F,WIND-ON,,ESP,","OPEX-F","WIND-ON","","ESP","",32.054932535446341,"USD2021/kW"]
["OPEX-F,WIND-ON,,IDN,","OPEX-F","WIND-ON","","IDN","",61.562489225629371,"USD2021/kW"]
["OPEX-F,WIND-ON,,IND,","OPEX-F","WIND-ON","","IND","",25.336384454636796,"USD2021/kW"]
["OPEX-F,WIND-ON,,JOR,","OPEX-F","WIND-ON","","JOR","",51.767213162173668,"USD2021/kW"]
["OPEX-F,WIND-ON,,KAZ,","OPEX-F","WIND-ON","","KAZ","",41.041659483752909,"USD2021/kW"]
["OPEX-F,WIND-ON,,KEN,","OPEX-F","WIND-ON","","KEN","",51.767213162173668,"USD2021/kW"]
["OPEX-F,WIND-ON,,MAR,","OPEX-F","WIND-ON","","MAR","",47.881936064378394,"USD2021/kW"]
["OPEX-F,WIND-ON,,MAR-BEN,","OPEX-F","WIND-ON","","MAR-BEN","",47.881936064378394,"USD2021/kW"]
["OPEX-F,WIND-ON,,MAR-CAS,","OPEX-F","WIND-ON","","MAR-CAS","",47.881936064378394,"USD2021/kW"]
["OPEX-F,WIND-ON,,MAR-DAK,","OPEX-F","WIND-ON","","MAR-DAK","",47.881936064378394,"USD2021/kW"]
["OPEX-F,WIND-ON,,MAR-DRA,","OPEX-F","WIND-ON","","MAR-DRA","",47.881936064378394,"USD2021/kW"]
["OPEX-F,WIND-ON,,MAR-FES,","OPEX-F","WIND-ON","","MAR-FES","",47.881936064378394,"USD2021/kW"]
["OPEX-F,WIND-ON,,MAR-GUE,","OPEX-F","WIND-ON","","MAR-GUE","",47.881936064378394,"USD2021/kW"]
["OPEX-F,WIND-ON,,MAR-LAA,","OPEX-F","WIND-ON","","MAR-LAA","",47.881936064378394,"USD2021/kW"]
["OPEX-F,WIND-ON,,MAR-LOR,","OPEX-F","WIND-ON","","MAR-LOR","",47.881936064378394,"USD2021/kW"]
["OPEX-F,WIND-ON,,MAR-MAR,","OPEX-F","WIND-ON","","MAR-MAR","",47.881936064378394,"USD2021/kW"]
["OPEX-F,WIND-ON,,MAR-RAB,","OPEX-F","WIND-ON","","MAR-RAB","",47.881936064378394,"USD2021/kW"]
["OPEX-F,WIND-ON,,MAR-SOU,","OPEX-F","WIND-ON","","MAR-SOU","",47.881936064378394,"USD2021/kW"]
["OPEX-F,WIND-ON,,MAR-TAN,","OPEX-F","WIND-ON","","MAR-TAN","",47.881936064378394,"USD2021/kW"]
["OPEX-F,WIND-ON,,MEX,","OPEX-F","WIND-ON","","MEX","",40.259946521073999,"USD2021/kW"]
["OPEX-F,WIND-ON,,MRT,","OPEX-F","WIND-ON","","MRT","",51.767213162173668,"USD2021/kW"]
["OPEX-F,WIND-ON,,NAM,","OPEX-F","WIND-ON","","NAM","",51.767213162173668,"USD2021/kW"]
["OPEX-F,WIND-ON,,NOR,","OPEX-F","WIND-ON","","NOR","",41.041659483752909,"USD2021/kW"]
["OPEX-F,WIND-ON,,PER,","OPEX-F","WIND-ON","","PER","",34.201382903127424,"USD2021/kW"]
["OPEX-F,WIND-ON,,PRT,","OPEX-F","WIND-ON","","PRT","",47.881936064378394,"USD2021/kW"]
["OPEX-F,WIND-ON,,RUS,","OPEX-F","WIND-ON","","RUS","",41.041659483752909,"USD2021/kW"]
["OPEX-F,WIND-ON,,SAU,","OPEX-F","WIND-ON","","SAU","",42.272909268265494,"USD2021/kW"]
["OPEX-F,WIND-ON,,SWE,","OPEX-F","WIND-ON","","SWE","",44.407075561420648,"USD2021/kW"]
["OPEX-F,WIND-ON,,THA,","OPEX-F","WIND-ON","","THA","",42.272909268265494,"USD2021/kW"]
["OPEX-F,WIND-ON,,TUN,","OPEX-F","WIND-ON","","TUN","",51.767213162173668,"USD2021/kW"]
["OPEX-F,WIND-ON,,UKR,","OPEX-F","WIND-ON","","UKR","",41.041659483752909,"USD2021/kW"]
["OPEX-F,WIND-ON,,URY,","OPEX-F","WIND-ON","","URY","",61.562489225629371,"USD2021/kW"]
["OPEX-F,WIND-ON,,USA,","OPEX-F","WIND-ON","","USA","",37.805184561776016,"USD2021/kW"]
["OPEX-F,WIND-ON,,VNM,","OPEX-F","WIND-ON","","VNM","",61.562489225629371,"USD2021/kW"]
["OPEX-F,WIND-ON,,ZAF,","OPEX-F","WIND-ON","","ZAF","",47.881936064378394,"USD2021/kW"]
["OPEX-F,WIND-ON,,ZAF-EC,","OPEX-F","WIND-ON","","ZAF-EC","",47.881936064378394,"USD2021/kW"]
["OPEX-F,WIND-ON,,ZAF-FRS,","OPEX-F","WIND-ON","","ZAF-FRS","",47.881936064378394,"USD2021/kW"]
["OPEX-F,WIND-ON,,ZAF-GAU,","OPEX-F","WIND-ON","","ZAF-GAU","",47.881936064378394,"USD2021/kW"]
["OPEX-F,WIND-ON,,ZAF-KWA,","OPEX-F","WIND-ON","","ZAF-KWA","",47.881936064378394,"USD2021/kW"]
["OPEX-F,WIND-ON,,ZAF-LIM,","OPEX-F","WIND-ON","","ZAF-LIM","",47.881936064378394,"USD2021/kW"]
["OPEX-F,WIND-ON,,ZAF-MPU,","OPEX-F","WIND-ON","","ZAF-MPU","",47.881936064378394,"USD2021/kW"]
["OPEX-F,WIND-ON,,ZAF-NC,","OPEX-F","WIND-ON","","ZAF-NC","",47.881936064378394,"USD2021/kW"]
["OPEX-F,WIND-ON,,ZAF-NW,","OPEX-F","WIND-ON","","ZAF-NW","",47.881936064378394,"USD2021/kW"]
["OPEX-F,WIND-ON,,ZAF-WC,","OPEX-F","WIND-ON","","ZAF-WC","",47.881936064378394,"USD2021/kW"]
["OPEX-O,ATR,,,","OPEX-O","ATR","","","",9.1464146414641494E-3,"USD2021/kWh","George et al. (2022)"]
["OPEX-O,CH3OH-S,,,","OPEX-O","CH3OH-S","","","",1.0849036835729676E-4,"USD2021/kWh","UNSW Sydney 2021"]
["OPEX-O,CH3OH-SB,,,","OPEX-O","CH3OH-SB","","","",1.0849036835729676E-4,"USD2021/kWh","UNSW Sydney 2021"]
["OPEX-O,CH4-S,,,","OPEX-O","CH4-S","","","",3.3042876189725266E-4,"USD2021/kWh","UNSW Sydney 2021"]
["OPEX-O,CH4-SB,,,","OPEX-O","CH4-SB","","","",3.3042876189725266E-4,"USD2021/kWh","UNSW Sydney 2021"]
["OPEX-O,DRI,,,","OPEX-O","DRI","","","",0.26656892307692304,"USD2021/kg DRI (s)","Agora Industry Transformation 2021"]
["OPEX-O,H2-S,,,","OPEX-O","H2-S","","","",1.9557894682818507E-3,"USD2021/kWh","UNSW Sydney 2021"]
["OPEX-O,H2-SB,,,","OPEX-O","H2-SB","","","",1.9557894682818507E-3,"USD2021/kWh","UNSW Sydney 2021"]
["OPEX-O,LOHC-S,,,","OPEX-O","LOHC-S","","","",1.5378717307752301E-2,"USD2021/kWh","UNSW Sydney 2021"]
["OPEX-O,LOHC-SB,,,","OPEX-O","LOHC-SB","","","",1.5378717307752301E-2,"USD2021/kWh","UNSW Sydney 2021"]
["OPEX-O,NH3-S,,,","OPEX-O","NH3-S","","","",4.2087134757005104E-4,"USD2021/kWh","UNSW Sydney 2021"]
["OPEX-O,NH3-SB,,,","OPEX-O","NH3-SB","","","",4.2087134757005104E-4,"USD2021/kWh","UNSW Sydney 2021"]
["OPEX-O,REGASATR,,,","OPEX-O","REGASATR","","","",9.1464146414641494E-3,"USD2021/kWh","combined values"]
["OPEX-O,SYN-S,,,","OPEX-O","SYN-S","","","",4.5028839113694242E-5,"USD2021/kWh","UNSW Sydney 2021"]
["OPEX-O,SYN-SB,,,","OPEX-O","SYN-SB","","","",4.5028839113694242E-5,"USD2021/kWh","UNSW Sydney 2021"]
["OPEX-T,CH3OH-S,,,","OPEX-T","CH3OH-S","","","",1.0848168982211098E-7,"USD2021/(kWh*km)","calc_shipping"]
["OPEX-T,CH3OH-SB,,,","OPEX-T","CH3OH-SB","","","",1.0848168982211098E-7,"USD2021/(kWh*km)","calc_shipping"]
["OPEX-T,CH4-P-L,,,","OPEX-T","CH4-P-L","","","",2.7651437055456481E-6,"USD2021/(kWh*km)"]
["OPEX-T,CH4-P-LR,,,","OPEX-T","CH4-P-LR","","","",8.624381235013173E-7,"USD2021/(kWh*km)"]
["OPEX-T,CH4-P-S,,,","OPEX-T","CH4-P-S","","","",3.3181724466547807E-6,"USD2021/(kWh*km)"]
["OPEX-T,CH4-P-SR,,,","OPEX-T","CH4-P-SR","","","",8.624381235013173E-7,"USD2021/(kWh*km)"]
["OPEX-T,CH4-S,,,","OPEX-T","CH4-S","","","",2.5415563823913519E-7,"USD2021/(kWh*km)","calc_shipping"]
["OPEX-T,CH4-SB,,,","OPEX-T","CH4-SB","","","",2.5415563823913519E-7,"USD2021/(kWh*km)","calc_shipping"]
["OPEX-T,DRI-SB,,,","OPEX-T","DRI-SB","","","",3.262896862987803E-7,"USD2021/(kg*km)","calc_shipping"]
["OPEX-T,H2-P-L,,,","OPEX-T","H2-P-L","","","",8.8738982865209894E-6,"USD2021/(kWh*km)","Guidehouse 2022"]
["OPEX-T,H2-P-LR,,,","OPEX-T","H2-P-LR","","","",3.0424794125214817E-6,"USD2021/(kWh*km)","Guidehouse 2022"]
["OPEX-T,H2-P-S,,,","OPEX-T","H2-P-S","","","",1.5212397062607411E-5,"USD2021/(kWh*km)","Guidehouse 2022"]
["OPEX-T,H2-P-SR,,,","OPEX-T","H2-P-SR","","","",3.8030992656518527E-6,"USD2021/(kWh*km)","Guidehouse 2022"]
["OPEX-T,H2-S,,,","OPEX-T","H2-S","","","",1.5043330904926455E-6,"USD2021/(kWh*km)","calc_shipping"]
["OPEX-T,H2-SB,,,","OPEX-T","H2-SB","","","",1.5043330904926455E-6,"USD2021/(kWh*km)","calc_shipping"]
["OPEX-T,LOHC-S,,,","OPEX-T","LOHC-S","","","",1.3493717175603379E-6,"USD2021/(kWh*km)","calc_shipping"]
["OPEX-T,LOHC-SB,,,","OPEX-T","LOHC-SB","","","",1.3493717175603379E-6,"USD2021/(kWh*km)","calc_shipping"]
["OPEX-T,NH3-S,,,","OPEX-T","NH3-S","","","",3.2372129273508194E-7,"USD2021/(kWh*km)","calc_shipping"]
["OPEX-T,NH3-SB,,,","OPEX-T","NH3-SB","","","",3.2372129273508194E-7,"USD2021/(kWh*km)","calc_shipping"]
["OPEX-T,SYN-S,,,","OPEX-T","SYN-S","","","",4.502523709472666E-8,"USD2021/(kWh*km)","calc_shipping"]
["OPEX-T,SYN-SB,,,","OPEX-T","SYN-SB","","","",4.502523709472666E-8,"USD2021/(kWh*km)","calc_shipping"]
["SEASHARE,,,ARE,CHN","SEASHARE","","","ARE","CHN",0.11111111111111099,null,"Research Susanne Krieger"]
["SEASHARE,,,ARE,IND","SEASHARE","","","ARE","IND",0.65,null,"Research Susanne Krieger"]
["SEASHARE,,,CHN,JPN","SEASHARE","","","CHN","JPN",0.28571428571428598,null,"Research Susanne Krieger"]
["SEASHARE,,,CHN,KOR","SEASHARE","","","CHN","KOR",0.4,null,"Research Susanne Krieger"]
["SEASHARE,,,COL,USA","SEASHARE","","","COL","USA",0.64444444444444404,"km","Research Susanne Krieger"]
["SEASHARE,,,CRI,USA","SEASHARE","","","CRI","USA",0.14285714285714299,null,"Research Susanne Krieger"]
["SEASHARE,,,DNK,FRA","SEASHARE","","","DNK","FRA",0.5,null,"Research Susanne Krieger"]
["SEASHARE,,,DNK,NLD","SEASHARE","","","DNK","NLD",1,null,"Research Susanne Krieger"]
["SEASHARE,,,DZA,DEU","SEASHARE","","","DZA","DEU",0.1,null,"Research Susanne Krieger"]
["SEASHARE,,,DZA,ESP","SEASHARE","","","DZA","ESP",0.27741832232496999,null,"Research Susanne Krieger"]
["SEASHARE,,,DZA,FRA","SEASHARE","","","DZA","FRA",0.15,null,"Research Susanne Krieger"]
["SEASHARE,,,DZA,NLD","SEASHARE","","","DZA","NLD",0.133333333333333,null,"Research Susanne Krieger"]
["SEASHARE,,,EGY,ESP","SEASHARE","","","EGY","ESP",0.155555555555556,null,"Research Susanne Krieger"]
["SEASHARE,,,EGY,FRA","SEASHARE","","","EGY","FRA",0.17499999999999999,null,"Research Susanne Krieger"]
["SEASHARE,,,EGY,IND","SEASHARE","","","EGY","IND",0.52,null,"Research Susanne Krieger"]
["SEASHARE,,,IDN,CHN","SEASHARE","","","IDN","CHN",0.5,null,"Research Susanne Krieger"]
["SEASHARE,,,IDN,IND","SEASHARE","","","IDN","IND",0.4,null,"Research Susanne Krieger"]
["SEASHARE,,,IDN,JPN","SEASHARE","","","IDN","JPN",0.90909090909090906,null,"Research Susanne Krieger"]
["SEASHARE,,,IDN,KOR","SEASHARE","","","IDN","KOR",0.90909090909090906,null,"Research Susanne Krieger"]
["SEASHARE,,,KEN,IND","SEASHARE","","","KEN","IND",0.86,null,"Research Susanne Krieger"]
["SEASHARE,,,MAR,ESP","SEASHARE","","","MAR","ESP",0.18,null,"Research Susanne Krieger"]
["SEASHARE,,,MAR-BEN,ESP","SEASHARE","","","MAR-BEN","ESP",0.18,null,"Research Susanne Krieger"]
["SEASHARE,,,MAR-CAS,ESP","SEASHARE","","","MAR-CAS","ESP",0.18,null,"Research Susanne Krieger"]
["SEASHARE,,,MAR-DAK,ESP","SEASHARE","","","MAR-DAK","ESP",0.18,null,"Research Susanne Krieger"]
["SEASHARE,,,MAR-DRA,ESP","SEASHARE","","","MAR-DRA","ESP",0.18,null,"Research Susanne Krieger"]
["SEASHARE,,,MAR-FES,ESP","SEASHARE","","","MAR-FES","ESP",0.18,null,"Research Susanne Krieger"]
["SEASHARE,,,MAR-GUE,ESP","SEASHARE","","","MAR-GUE","ESP",0.18,null,"Research Susanne Krieger"]
["SEASHARE,,,MAR-LAA,ESP","SEASHARE","","","MAR-LAA","ESP",0.18,null,"Research Susanne Krieger"]
["SEASHARE,,,MAR-LOR,ESP","SEASHARE","","","MAR-LOR","ESP",0.18,null,"Research Susanne Krieger"]
["SEASHARE,,,MAR-MAR,ESP","SEASHARE","","","MAR-MAR","ESP",0.18,null,"Research Susanne Krieger"]
["SEASHARE,,,MAR-RAB,ESP","SEASHARE","","","MAR-RAB","ESP",0.18,null,"Research Susanne Krieger"]
["SEASHARE,,,MAR-SOU,ESP","SEASHARE","","","MAR-SOU","ESP",0.18,null,"Research Susanne Krieger"]
["SEASHARE,,,MAR-TAN,ESP","SEASHARE","","","MAR-TAN","ESP",0.18,null,"Research Susanne Krieger"]
["SEASHARE,,,MEX,USA","SEASHARE","","","MEX","USA",1,null,"Research Susanne Krieger"]
["SEASHARE,,,NOR,DEU","SEASHARE","","","NOR","DEU",1,null,"Research Susanne Krieger"]
["SEASHARE,,,NOR,ESP","SEASHARE","","","NOR","ESP",0.45,null,"Research Susanne Krieger"]
["SEASHARE,,,NOR,FRA","SEASHARE","","","NOR","FRA",0.9,null,"Research Susanne Krieger"]
["SEASHARE,,,NOR,NLD","SEASHARE","","","NOR","NLD",1,null,"Research Susanne Krieger"]
["SEASHARE,,,PER,USA","SEASHARE","","","PER","USA",0.58181818181818201,null,"Research Susanne Krieger"]
["SEASHARE,,,RUS,DEU","SEASHARE","","","RUS","DEU",1,null,"Research Susanne Krieger"]
["SEASHARE,,,RUS,JPN","SEASHARE","","","RUS","JPN",0.17499999999999999,null,"Research Susanne Krieger"]
["SEASHARE,,,SAU,IND","SEASHARE","","","SAU","IND",0.74285714285714299,null,"Research Susanne Krieger"]
["SEASHARE,,,SWE,DEU","SEASHARE","","","SWE","DEU",0.3,null,"Research Susanne Krieger"]
["SEASHARE,,,SWE,ESP","SEASHARE","","","SWE","ESP",0.1,null,"Research Susanne Krieger"]
["SEASHARE,,,SWE,FRA","SEASHARE","","","SWE","FRA",0.15,null,"Research Susanne Krieger"]
["SEASHARE,,,SWE,NLD","SEASHARE","","","SWE","NLD",0.15,null,"Research Susanne Krieger"]
["SEASHARE,,,THA,JPN","SEASHARE","","","THA","JPN",0.18,null,"Research Susanne Krieger"]
["SEASHARE,,,THA,KOR","SEASHARE","","","THA","KOR",0.16,null,"Research Susanne Krieger"]
["SEASHARE,,,TUN,DEU","SEASHARE","","","TUN","DEU",0.35,null,"Research Susanne Krieger"]
["SEASHARE,,,TUN,ESP","SEASHARE","","","TUN","ESP",0.46666666666666701,null,"Research Susanne Krieger"]
["SEASHARE,,,TUN,FRA","SEASHARE","","","TUN","FRA",0.7,null,"Research Susanne Krieger"]
["SEASHARE,,,TUN,NLD","SEASHARE","","","TUN","NLD",0.28000000000000003,null,"Research Susanne Krieger"]
["SEASHARE,,,VNM,JPN","SEASHARE","","","VNM","JPN",0.22500000000000001,null,"Research Susanne Krieger"]
["SEASHARE,,,VNM,KOR","SEASHARE","","","VNM","KOR",0.16,null,"Research Susanne Krieger"]
["SPECCOST,,BFUEL-L,,","SPECCOST","","BFUEL-L","","",2.7940534453652541E-3,"USD2021 / kwh bunker fuel (l)"]
["SPECCOST,,CO2-G,,","SPECCOST","","CO2-G","","",3.8577660276243091E-2,"USD2021 / kg CO2 (g)"]
["SPECCOST,,EL,,","SPECCOST","","EL","","",7.0000000000000007E-2,"USD2021 / kWh (el.)","dummy mh! Auf Null gesetzt bis bug in Rechner behoben ist. Korrekter Wert ist 0,08"]
["SPECCOST,,H2O-L,,","SPECCOST","","H2O-L","","",1.190463995027624E-3,"USD2021 / kg H2O (l)"]
["SPECCOST,,HEAT,,","SPECCOST","","HEAT","","",0.05,"USD2021 / kWh (heat)"]
["SPECCOST,,N2-G,,","SPECCOST","","N2-G","","",0.01,"USD2021 / kg N2 (g)"]
["WACC,,,ARE,","WACC","","","ARE","",5.5673211551852057E-2,"fraction"]
["WACC,,,ARG,","WACC","","","ARG","",0.15031035355923136,"fraction"]
["WACC,,,ARG-BA,","WACC","","","ARG-BA","",0.15031035355923136,"fraction"]
["WACC,,,ARG-CAT,","WACC","","","ARG-CAT","",0.15031035355923136,"fraction"]
["WACC,,,ARG-CBA,","WACC","","","ARG-CBA","",0.15031035355923136,"fraction"]
["WACC,,,ARG-CHA,","WACC","","","ARG-CHA","",0.15031035355923136,"fraction"]
["WACC,,,ARG-CHU,","WACC","","","ARG-CHU","",0.15031035355923136,"fraction"]
["WACC,,,ARG-COR,","WACC","","","ARG-COR","",0.15031035355923136,"fraction"]
["WACC,,,ARG-CRB,","WACC","","","ARG-CRB","",0.15031035355923136,"fraction"]
["WACC,,,ARG-CRU,","WACC","","","ARG-CRU","",0.15031035355923136,"fraction"]
["WACC,,,ARG-EST,","WACC","","","ARG-EST","",0.15031035355923136,"fraction"]
["WACC,,,ARG-FOR,","WACC","","","ARG-FOR","",0.15031035355923136,"fraction"]
["WACC,,,ARG-FUE,","WACC","","","ARG-FUE","",0.15031035355923136,"fraction"]
["WACC,,,ARG-JUJ,","WACC","","","ARG-JUJ","",0.15031035355923136,"fraction"]
["WACC,,,ARG-LAR,","WACC","","","ARG-LAR","",0.15031035355923136,"fraction"]
["WACC,,,ARG-MEN,","WACC","","","ARG-MEN","",0.15031035355923136,"fraction"]
["WACC,,,ARG-MIS,","WACC","","","ARG-MIS","",0.15031035355923136,"fraction"]
["WACC,,,ARG-NEG,","WACC","","","ARG-NEG","",0.15031035355923136,"fraction"]
["WACC,,,ARG-NEU,","WACC","","","ARG-NEU","",0.15031035355923136,"fraction"]
["WACC,,,ARG-PAM,","WACC","","","ARG-PAM","",0.15031035355923136,"fraction"]
["WACC,,,ARG-RIO,","WACC","","","ARG-RIO","",0.15031035355923136,"fraction"]
["WACC,,,ARG-SAF,","WACC","","","ARG-SAF","",0.15031035355923136,"fraction"]
["WACC,,,ARG-SAJ,","WACC","","","ARG-SAJ","",0.15031035355923136,"fraction"]
["WACC,,,ARG-SAL,","WACC","","","ARG-SAL","",0.15031035355923136,"fraction"]
["WACC,,,ARG-SAT,","WACC","","","ARG-SAT","",0.15031035355923136,"fraction"]
["WACC,,,ARG-TUC,","WACC","","","ARG-TUC","",0.15031035355923136,"fraction"]
["WACC,,,AUS,","WACC","","","AUS","",5.0299999999999997E-2,"fraction"]
["WACC,,,BRA,","WACC","","","BRA","",8.2832353577576984E-2,"fraction"]
["WACC,,,CHL,","WACC","","","CHL","",5.5673211551852057E-2,"fraction"]
["WACC,,,CHN,","WACC","","","CHN","",5.5673211551852057E-2,"fraction"]
["WACC,,,COL,","WACC","","","COL","",7.0913593408014244E-2,"fraction"]
["WACC,,,CRI,","WACC","","","CRI","",0.10395003232720652,"fraction"]
["WACC,,,DNK,","WACC","","","DNK","",5.0299999999999997E-2,"fraction"]
["WACC,,,DZA,","WACC","","","DZA","",9.1999999999999998E-2,"fraction"]
["WACC,,,EGY,","WACC","","","EGY","",0.11336853373134342,"fraction"]
["WACC,,,ESP,","WACC","","","ESP","",6.4274782725559448E-2,"fraction"]
["WACC,,,IDN,","WACC","","","IDN","",7.0913593408014244E-2,"fraction"]
["WACC,,,IND,","WACC","","","IND","",7.237045402218821E-2,"fraction"]
["WACC,,,JOR,","WACC","","","JOR","",9.9049682988621379E-2,"fraction"]
["WACC,,,KAZ,","WACC","","","KAZ","",7.3401485154905771E-2,"fraction"]
["WACC,,,KEN,","WACC","","","KEN","",0.10989380084781369,"fraction"]
["WACC,,,MAR,","WACC","","","MAR","",7.731973992583685E-2,"fraction"]
["WACC,,,MAR-BEN,","WACC","","","MAR-BEN","",7.731973992583685E-2,"fraction"]
["WACC,,,MAR-CAS,","WACC","","","MAR-CAS","",7.731973992583685E-2,"fraction"]
["WACC,,,MAR-DAK,","WACC","","","MAR-DAK","",7.731973992583685E-2,"fraction"]
["WACC,,,MAR-DRA,","WACC","","","MAR-DRA","",7.731973992583685E-2,"fraction"]
["WACC,,,MAR-FES,","WACC","","","MAR-FES","",7.731973992583685E-2,"fraction"]
["WACC,,,MAR-GUE,","WACC","","","MAR-GUE","",7.731973992583685E-2,"fraction"]
["WACC,,,MAR-LAA,","WACC","","","MAR-LAA","",7.731973992583685E-2,"fraction"]
["WACC,,,MAR-LOR,","WACC","","","MAR-LOR","",7.731973992583685E-2,"fraction"]
["WACC,,,MAR-MAR,","WACC","","","MAR-MAR","",7.731973992583685E-2,"fraction"]
["WACC,,,MAR-RAB,","WACC","","","MAR-RAB","",7.731973992583685E-2,"fraction"]
["WACC,,,MAR-SOU,","WACC","","","MAR-SOU","",7.731973992583685E-2,"fraction"]
["WACC,,,MAR-TAN,","WACC","","","MAR-TAN","",7.731973992583685E-2,"fraction"]
["WACC,,,MEX,","WACC","","","MEX","",6.4274782725559448E-2,"fraction"]
["WACC,,,MRT,","WACC","","","MRT","",9.1999999999999998E-2,"fraction"]
["WACC,,,NAM,","WACC","","","NAM","",8.3993056414234241E-2,"fraction"]
["WACC,,,NOR,","WACC","","","NOR","",5.0299999999999997E-2,"fraction"]
["WACC,,,PER,","WACC","","","PER","",6.4274782725559448E-2,"fraction"]
["WACC,,,PRT,","WACC","","","PRT","",7.3401485154905771E-2,"fraction"]
["WACC,,,RUS,","WACC","","","RUS","",7.5170549034228915E-2,"fraction"]
["WACC,,,SAU,","WACC","","","SAU","",5.5673211551852057E-2,"fraction"]
["WACC,,,SWE,","WACC","","","SWE","",5.0299999999999997E-2,"fraction"]
["WACC,,,THA,","WACC","","","THA","",6.4274782725559448E-2,"fraction"]
["WACC,,,TUN,","WACC","","","TUN","",0.11482300617243665,"fraction"]
["WACC,,,UKR,","WACC","","","UKR","",0.1266281397634636,"fraction"]
["WACC,,,URY,","WACC","","","URY","",7.731973992583685E-2,"fraction"]
["WACC,,,USA,","WACC","","","USA","",5.0299999999999997E-2,"fraction"]
["WACC,,,VNM,","WACC","","","VNM","",8.9280207439799461E-2,"fraction"]
["WACC,,,ZAF,","WACC","","","ZAF","",7.8066629268261314E-2,"fraction"]
["WACC,,,ZAF-EC,","WACC","","","ZAF-EC","",7.8066629268261314E-2,"fraction"]
["WACC,,,ZAF-FRS,","WACC","","","ZAF-FRS","",7.8066629268261314E-2,"fraction"]
["WACC,,,ZAF-GAU,","WACC","","","ZAF-GAU","",7.8066629268261314E-2,"fraction"]
["WACC,,,ZAF-KWA,","WACC","","","ZAF-KWA","",7.8066629268261314E-2,"fraction"]
["WACC,,,ZAF-LIM,","WACC","","","ZAF-LIM","",7.8066629268261314E-2,"fraction"]
["WACC,,,ZAF-MPU,","WACC","","","ZAF-MPU","",7.8066629268261314E-2,"fraction"]
["WACC,,,ZAF-NC,","WACC","","","ZAF-NC","",7.8066629268261314E-2,"fraction"]
["WACC,,,ZAF-NW,","WACC","","","ZAF-NW","",7.8066629268261314E-2,"fraction"]
["WACC,,,ZAF-WC,","WACC","","","ZAF-WC","",7.8066629268261314E-2,"fraction"]

{"sheet":"_data_storage","index":8,"n_rows":106,"n_cols":5,"rows_kept":106,"cut":false,"hidden":true,"merged":[]}
["res","ely","deriv","factor_cost_storage","source"]
["PV-FIX,AEL-EL,","AEL-EL",null,9.5899999999999999E-2,"PTX Atlas / öko"]
["PV-FIX,AEL-EL,CH3OHSYN","AEL-EL","CH3OHSYN",6.6400000000000001E-2,"PTX Atlas / öko"]
["PV-FIX,AEL-EL,CH4SYN","AEL-EL","CH4SYN",7.2999999999999995E-2,"PTX Atlas / öko"]
["PV-FIX,AEL-EL,DRI","AEL-EL","DRI",7.2999999999999995E-2,"PTX Atlas / öko"]
["PV-FIX,AEL-EL,EFUELSYN","AEL-EL","EFUELSYN",6.3100000000000003E-2,"PTX Atlas / öko"]
["PV-FIX,AEL-EL,LOHC-CON","AEL-EL","LOHC-CON",7.2999999999999995E-2,"PTX Atlas / öko"]
["PV-FIX,AEL-EL,NH3SYN","AEL-EL","NH3SYN",4.82E-2,"PTX Atlas / öko"]
["PV-FIX,PEM-EL,","PEM-EL",null,9.5899999999999999E-2,"PTX Atlas / öko"]
["PV-FIX,PEM-EL,CH3OHSYN","PEM-EL","CH3OHSYN",6.6400000000000001E-2,"PTX Atlas / öko"]
["PV-FIX,PEM-EL,CH4SYN","PEM-EL","CH4SYN",7.2999999999999995E-2,"PTX Atlas / öko"]
["PV-FIX,PEM-EL,DRI","PEM-EL","DRI",7.2999999999999995E-2,"PTX Atlas / öko"]
["PV-FIX,PEM-EL,EFUELSYN","PEM-EL","EFUELSYN",6.3100000000000003E-2,"PTX Atlas / öko"]
["PV-FIX,PEM-EL,LOHC-CON","PEM-EL","LOHC-CON",7.2999999999999995E-2,"PTX Atlas / öko"]
["PV-FIX,PEM-EL,NH3SYN","PEM-EL","NH3SYN",4.82E-2,"PTX Atlas / öko"]
["PV-FIX,SOEC-EL,","SOEC-EL",null,0.1027,"PTX Atlas / öko"]
["PV-FIX,SOEC-EL,CH3OHSYN","SOEC-EL","CH3OHSYN",0.49259999999999998,"PTX Atlas / öko"]
["PV-FIX,SOEC-EL,CH4SYN","SOEC-EL","CH4SYN",0.46489999999999998,"PTX Atlas / öko"]
["PV-FIX,SOEC-EL,DRI","SOEC-EL","DRI",0.46489999999999998,"PTX Atlas / öko"]
["PV-FIX,SOEC-EL,EFUELSYN","SOEC-EL","EFUELSYN",0.51559999999999995,"PTX Atlas / öko"]
["PV-FIX,SOEC-EL,LOHC-CON","SOEC-EL","LOHC-CON",0.46489999999999998,"PTX Atlas / öko"]
["PV-FIX,SOEC-EL,NH3SYN","SOEC-EL","NH3SYN",0.2427,"PTX Atlas / öko"]
["PV-TRK,AEL-EL,","AEL-EL",null,9.5899999999999999E-2,"PTX Atlas / öko"]
["PV-TRK,AEL-EL,CH3OHSYN","AEL-EL","CH3OHSYN",6.6400000000000001E-2,"PTX Atlas / öko"]
["PV-TRK,AEL-EL,CH4SYN","AEL-EL","CH4SYN",7.2999999999999995E-2,"PTX Atlas / öko"]
["PV-TRK,AEL-EL,DRI","AEL-EL","DRI",7.2999999999999995E-2,"PTX Atlas / öko"]
["PV-TRK,AEL-EL,EFUELSYN","AEL-EL","EFUELSYN",6.3100000000000003E-2,"PTX Atlas / öko"]
["PV-TRK,AEL-EL,LOHC-CON","AEL-EL","LOHC-CON",7.2999999999999995E-2,"PTX Atlas / öko"]
["PV-TRK,AEL-EL,NH3SYN","AEL-EL","NH3SYN",4.82E-2,"PTX Atlas / öko"]
["PV-TRK,PEM-EL,","PEM-EL",null,9.5899999999999999E-2,"PTX Atlas / öko"]
["PV-TRK,PEM-EL,CH3OHSYN","PEM-EL","CH3OHSYN",6.6400000000000001E-2,"PTX Atlas / öko"]
["PV-TRK,PEM-EL,CH4SYN","PEM-EL","CH4SYN",7.2999999999999995E-2,"PTX Atlas / öko"]
["PV-TRK,PEM-EL,DRI","PEM-EL","DRI",7.2999999999999995E-2,"PTX Atlas / öko"]
["PV-TRK,PEM-EL,EFUELSYN","PEM-EL","EFUELSYN",6.3100000000000003E-2,"PTX Atlas / öko"]
["PV-TRK,PEM-EL,LOHC-CON","PEM-EL","LOHC-CON",7.2999999999999995E-2,"PTX Atlas / öko"]
["PV-TRK,PEM-EL,NH3SYN","PEM-EL","NH3SYN",4.82E-2,"PTX Atlas / öko"]
["PV-TRK,SOEC-EL,","SOEC-EL",null,0.1027,"PTX Atlas / öko"]
["PV-TRK,SOEC-EL,CH3OHSYN","SOEC-EL","CH3OHSYN",0.49259999999999998,"PTX Atlas / öko"]
["PV-TRK,SOEC-EL,CH4SYN","SOEC-EL","CH4SYN",0.46489999999999998,"PTX Atlas / öko"]
["PV-TRK,SOEC-EL,DRI","SOEC-EL","DRI",0.46489999999999998,"PTX Atlas / öko"]
["PV-TRK,SOEC-EL,EFUELSYN","SOEC-EL","EFUELSYN",0.51559999999999995,"PTX Atlas / öko"]
["PV-TRK,SOEC-EL,LOHC-CON","SOEC-EL","LOHC-CON",0.46489999999999998,"PTX Atlas / öko"]
["PV-TRK,SOEC-EL,NH3SYN","SOEC-EL","NH3SYN",0.2427,"PTX Atlas / öko"]
["RES-HYBR,AEL-EL,","AEL-EL",null,3.8399999999999997E-2,"PTX Atlas / öko"]
["RES-HYBR,AEL-EL,CH3OHSYN","AEL-EL","CH3OHSYN",3.9699999999999999E-2,"PTX Atlas / öko"]
["RES-HYBR,AEL-EL,CH4SYN","AEL-EL","CH4SYN",3.9100000000000003E-2,"PTX Atlas / öko"]
["RES-HYBR,AEL-EL,DRI","AEL-EL","DRI",3.9100000000000003E-2,"PTX Atlas / öko"]
["RES-HYBR,AEL-EL,EFUELSYN","AEL-EL","EFUELSYN",3.6999999999999998E-2,"PTX Atlas / öko"]
["RES-HYBR,AEL-EL,LOHC-CON","AEL-EL","LOHC-CON",3.9100000000000003E-2,"PTX Atlas / öko"]
["RES-HYBR,AEL-EL,NH3SYN","AEL-EL","NH3SYN",2.1299999999999999E-2,"PTX Atlas / öko"]
["RES-HYBR,PEM-EL,","PEM-EL",null,3.8399999999999997E-2,"PTX Atlas / öko"]
["RES-HYBR,PEM-EL,CH3OHSYN","PEM-EL","CH3OHSYN",3.9699999999999999E-2,"PTX Atlas / öko"]
["RES-HYBR,PEM-EL,CH4SYN","PEM-EL","CH4SYN",3.9100000000000003E-2,"PTX Atlas / öko"]
["RES-HYBR,PEM-EL,DRI","PEM-EL","DRI",3.9100000000000003E-2,"PTX Atlas / öko"]
["RES-HYBR,PEM-EL,EFUELSYN","PEM-EL","EFUELSYN",3.6999999999999998E-2,"PTX Atlas / öko"]
["RES-HYBR,PEM-EL,LOHC-CON","PEM-EL","LOHC-CON",3.9100000000000003E-2,"PTX Atlas / öko"]
["RES-HYBR,PEM-EL,NH3SYN","PEM-EL","NH3SYN",2.1299999999999999E-2,"PTX Atlas / öko"]
["RES-HYBR,SOEC-EL,","SOEC-EL",null,4.3099999999999999E-2,"PTX Atlas / öko"]
["RES-HYBR,SOEC-EL,CH3OHSYN","SOEC-EL","CH3OHSYN",0.12180000000000001,"PTX Atlas / öko"]
["RES-HYBR,SOEC-EL,CH4SYN","SOEC-EL","CH4SYN",0.12089999999999999,"PTX Atlas / öko"]
["RES-HYBR,SOEC-EL,DRI","SOEC-EL","DRI",0.12089999999999999,"PTX Atlas / öko"]
["RES-HYBR,SOEC-EL,EFUELSYN","SOEC-EL","EFUELSYN",0.12740000000000001,"PTX Atlas / öko"]
["RES-HYBR,SOEC-EL,LOHC-CON","SOEC-EL","LOHC-CON",0.12089999999999999,"PTX Atlas / öko"]
["RES-HYBR,SOEC-EL,NH3SYN","SOEC-EL","NH3SYN",9.0700000000000003E-2,"PTX Atlas / öko"]
["WIND-OFF,AEL-EL,","AEL-EL",null,6.4999999999999997E-3,"PTX Atlas / öko"]
["WIND-OFF,AEL-EL,CH3OHSYN","AEL-EL","CH3OHSYN",3.3799999999999997E-2,"PTX Atlas / öko"]
["WIND-OFF,AEL-EL,CH4SYN","AEL-EL","CH4SYN",2.6700000000000002E-2,"PTX Atlas / öko"]
["WIND-OFF,AEL-EL,DRI","AEL-EL","DRI",2.6700000000000002E-2,"PTX Atlas / öko"]
["WIND-OFF,AEL-EL,EFUELSYN","AEL-EL","EFUELSYN",2.98E-2,"PTX Atlas / öko"]
["WIND-OFF,AEL-EL,LOHC-CON","AEL-EL","LOHC-CON",2.6700000000000002E-2,"PTX Atlas / öko"]
["WIND-OFF,AEL-EL,NH3SYN","AEL-EL","NH3SYN",4.7000000000000002E-3,"PTX Atlas / öko"]
["WIND-OFF,PEM-EL,","PEM-EL",null,6.4999999999999997E-3,"PTX Atlas / öko"]
["WIND-OFF,PEM-EL,CH3OHSYN","PEM-EL","CH3OHSYN",3.3799999999999997E-2,"PTX Atlas / öko"]
["WIND-OFF,PEM-EL,CH4SYN","PEM-EL","CH4SYN",2.6700000000000002E-2,"PTX Atlas / öko"]
["WIND-OFF,PEM-EL,DRI","PEM-EL","DRI",2.6700000000000002E-2,"PTX Atlas / öko"]
["WIND-OFF,PEM-EL,EFUELSYN","PEM-EL","EFUELSYN",2.98E-2,"PTX Atlas / öko"]
["WIND-OFF,PEM-EL,LOHC-CON","PEM-EL","LOHC-CON",2.6700000000000002E-2,"PTX Atlas / öko"]
["WIND-OFF,PEM-EL,NH3SYN","PEM-EL","NH3SYN",4.7000000000000002E-3,"PTX Atlas / öko"]
["WIND-OFF,SOEC-EL,","SOEC-EL",null,6.7999999999999996E-3,"PTX Atlas / öko"]
["WIND-OFF,SOEC-EL,CH3OHSYN","SOEC-EL","CH3OHSYN",2.2200000000000001E-2,"PTX Atlas / öko"]
["WIND-OFF,SOEC-EL,CH4SYN","SOEC-EL","CH4SYN",1.8700000000000001E-2,"PTX Atlas / öko"]
["WIND-OFF,SOEC-EL,DRI","SOEC-EL","DRI",1.8700000000000001E-2,"PTX Atlas / öko"]
["WIND-OFF,SOEC-EL,EFUELSYN","SOEC-EL","EFUELSYN",2.23E-2,"PTX Atlas / öko"]
["WIND-OFF,SOEC-EL,LOHC-CON","SOEC-EL","LOHC-CON",1.8700000000000001E-2,"PTX Atlas / öko"]
["WIND-OFF,SOEC-EL,NH3SYN","SOEC-EL","NH3SYN",4.7000000000000002E-3,"PTX Atlas / öko"]
["WIND-ON,AEL-EL,","AEL-EL",null,6.4999999999999997E-3,"PTX Atlas / öko"]
["WIND-ON,AEL-EL,CH3OHSYN","AEL-EL","CH3OHSYN",3.3799999999999997E-2,"PTX Atlas / öko"]
["WIND-ON,AEL-EL,CH4SYN","AEL-EL","CH4SYN",2.6700000000000002E-2,"PTX Atlas / öko"]
["WIND-ON,AEL-EL,DRI","AEL-EL","DRI",2.6700000000000002E-2,"PTX Atlas / öko"]
["WIND-ON,AEL-EL,EFUELSYN","AEL-EL","EFUELSYN",2.98E-2,"PTX Atlas / öko"]
["WIND-ON,AEL-EL,LOHC-CON","AEL-EL","LOHC-CON",2.6700000000000002E-2,"PTX Atlas / öko"]
["WIND-ON,AEL-EL,NH3SYN","AEL-EL","NH3SYN",4.7000000000000002E-3,"PTX Atlas / öko"]
["WIND-ON,PEM-EL,","PEM-EL",null,6.4999999999999997E-3,"PTX Atlas / öko"]
["WIND-ON,PEM-EL,CH3OHSYN","PEM-EL","CH3OHSYN",3.3799999999999997E-2,"PTX Atlas / öko"]
["WIND-ON,PEM-EL,CH4SYN","PEM-EL","CH4SYN",2.6700000000000002E-2,"PTX Atlas / öko"]
["WIND-ON,PEM-EL,DRI","PEM-EL","DRI",2.6700000000000002E-2,"PTX Atlas / öko"]
["WIND-ON,PEM-EL,EFUELSYN","PEM-EL","EFUELSYN",2.98E-2,"PTX Atlas / öko"]
["WIND-ON,PEM-EL,LOHC-CON","PEM-EL","LOHC-CON",2.6700000000000002E-2,"PTX Atlas / öko"]
["WIND-ON,PEM-EL,NH3SYN","PEM-EL","NH3SYN",4.7000000000000002E-3,"PTX Atlas / öko"]
["WIND-ON,SOEC-EL,","SOEC-EL",null,6.7999999999999996E-3,"PTX Atlas / öko"]
["WIND-ON,SOEC-EL,CH3OHSYN","SOEC-EL","CH3OHSYN",2.2200000000000001E-2,"PTX Atlas / öko"]
["WIND-ON,SOEC-EL,CH4SYN","SOEC-EL","CH4SYN",1.8700000000000001E-2,"PTX Atlas / öko"]
["WIND-ON,SOEC-EL,DRI","SOEC-EL","DRI",1.8700000000000001E-2,"PTX Atlas / öko"]
["WIND-ON,SOEC-EL,EFUELSYN","SOEC-EL","EFUELSYN",2.23E-2,"PTX Atlas / öko"]
["WIND-ON,SOEC-EL,LOHC-CON","SOEC-EL","LOHC-CON",1.8700000000000001E-2,"PTX Atlas / öko"]
["WIND-ON,SOEC-EL,NH3SYN","SOEC-EL","NH3SYN",4.7000000000000002E-3,"PTX Atlas / öko"]

{"sheet":"_data_flh","index":9,"n_rows":22753,"n_cols":8,"rows_kept":4500,"cut":true,"hidden":true,"merged":[],"bounds":{"rows_first":2000,"rows_last":500,"rows_between":2000,"halvings":0}}
["key","region","process_res","process_ely","process_deriv","process_flh","value","source"]
["ARE,PV-FIX,AEL-EL,,AEL-EL","ARE","PV-FIX","AEL-EL",null,"AEL-EL",2744.5499999999997,"PTX Atlas"]
["ARE,PV-FIX,AEL-EL,,H2-COMP","ARE","PV-FIX","AEL-EL",null,"H2-COMP",6657.5999999999995]
["ARE,PV-FIX,AEL-EL,,H2-LIQ","ARE","PV-FIX","AEL-EL",null,"H2-LIQ",2803.45,"öko"]
["ARE,PV-FIX,AEL-EL,,H2-RGAS","ARE","PV-FIX","AEL-EL",null,"H2-RGAS",6657.5999999999995,"öko"]
["ARE,PV-FIX,AEL-EL,CH3OHSYN,AEL-EL","ARE","PV-FIX","AEL-EL","CH3OHSYN","AEL-EL",2889.9,"PTX Atlas"]
["ARE,PV-FIX,AEL-EL,CH3OHSYN,CH3OHREC","ARE","PV-FIX","AEL-EL","CH3OHSYN","CH3OHREC",6657.5999999999995,"öko"]
["ARE,PV-FIX,AEL-EL,CH3OHSYN,CH3OHSYN","ARE","PV-FIX","AEL-EL","CH3OHSYN","CH3OHSYN",7812.8,"PTX Atlas"]
["ARE,PV-FIX,AEL-EL,CH4SYN,AEL-EL","ARE","PV-FIX","AEL-EL","CH4SYN","AEL-EL",2842.4,"PTX Atlas"]
["ARE,PV-FIX,AEL-EL,CH4SYN,ATR","ARE","PV-FIX","AEL-EL","CH4SYN","ATR",6657.5999999999995]
["ARE,PV-FIX,AEL-EL,CH4SYN,CH4-LIQ","ARE","PV-FIX","AEL-EL","CH4SYN","CH4-LIQ",7832.75,"PTX Atlas"]
["ARE,PV-FIX,AEL-EL,CH4SYN,CH4-RGAS","ARE","PV-FIX","AEL-EL","CH4SYN","CH4-RGAS",6657.5999999999995,"öko"]
["ARE,PV-FIX,AEL-EL,CH4SYN,CH4SYN","ARE","PV-FIX","AEL-EL","CH4SYN","CH4SYN",7832.75,"PTX Atlas"]
["ARE,PV-FIX,AEL-EL,DRI,AEL-EL","ARE","PV-FIX","AEL-EL","DRI","AEL-EL",2861.4,"PTX Atlas"]
["ARE,PV-FIX,AEL-EL,DRI,DRI","ARE","PV-FIX","AEL-EL","DRI","DRI",6657.5999999999995,"öko"]
["ARE,PV-FIX,AEL-EL,EFUELSYN,AEL-EL","ARE","PV-FIX","AEL-EL","EFUELSYN","AEL-EL",2861.4,"PTX Atlas"]
["ARE,PV-FIX,AEL-EL,EFUELSYN,EFUELSYN","ARE","PV-FIX","AEL-EL","EFUELSYN","EFUELSYN",7809,"PTX Atlas"]
["ARE,PV-FIX,AEL-EL,LOHC-CON,AEL-EL","ARE","PV-FIX","AEL-EL","LOHC-CON","AEL-EL",2744.5499999999997,"PTX Atlas"]
["ARE,PV-FIX,AEL-EL,LOHC-CON,LOHC-CON","ARE","PV-FIX","AEL-EL","LOHC-CON","LOHC-CON",2744.5499999999997,"PTX Atlas"]
["ARE,PV-FIX,AEL-EL,LOHC-CON,LOHC-REC","ARE","PV-FIX","AEL-EL","LOHC-CON","LOHC-REC",6657.5999999999995,"öko"]
["ARE,PV-FIX,AEL-EL,NH3SYN,AEL-EL","ARE","PV-FIX","AEL-EL","NH3SYN","AEL-EL",2779.7,"PTX Atlas"]
["ARE,PV-FIX,AEL-EL,NH3SYN,NH3-REC","ARE","PV-FIX","AEL-EL","NH3SYN","NH3-REC",6657.5999999999995,"öko"]
["ARE,PV-FIX,AEL-EL,NH3SYN,NH3SYN","ARE","PV-FIX","AEL-EL","NH3SYN","NH3SYN",7752.95,"PTX Atlas"]
["ARE,PV-FIX,PEM-EL,,H2-COMP","ARE","PV-FIX","PEM-EL",null,"H2-COMP",7008]
["ARE,PV-FIX,PEM-EL,,H2-LIQ","ARE","PV-FIX","PEM-EL",null,"H2-LIQ",2951,"öko"]
["ARE,PV-FIX,PEM-EL,,H2-RGAS","ARE","PV-FIX","PEM-EL",null,"H2-RGAS",7008,"öko"]
["ARE,PV-FIX,PEM-EL,,PEM-EL","ARE","PV-FIX","PEM-EL",null,"PEM-EL",2889,"PTX Atlas"]
["ARE,PV-FIX,PEM-EL,CH3OHSYN,CH3OHREC","ARE","PV-FIX","PEM-EL","CH3OHSYN","CH3OHREC",7008,"öko"]
["ARE,PV-FIX,PEM-EL,CH3OHSYN,CH3OHSYN","ARE","PV-FIX","PEM-EL","CH3OHSYN","CH3OHSYN",8224,"PTX Atlas"]
["ARE,PV-FIX,PEM-EL,CH3OHSYN,PEM-EL","ARE","PV-FIX","PEM-EL","CH3OHSYN","PEM-EL",3042,"PTX Atlas"]
["ARE,PV-FIX,PEM-EL,CH4SYN,ATR","ARE","PV-FIX","PEM-EL","CH4SYN","ATR",7008]
["ARE,PV-FIX,PEM-EL,CH4SYN,CH4-LIQ","ARE","PV-FIX","PEM-EL","CH4SYN","CH4-LIQ",8245,"PTX Atlas"]
["ARE,PV-FIX,PEM-EL,CH4SYN,CH4-RGAS","ARE","PV-FIX","PEM-EL","CH4SYN","CH4-RGAS",7008,"öko"]
["ARE,PV-FIX,PEM-EL,CH4SYN,CH4SYN","ARE","PV-FIX","PEM-EL","CH4SYN","CH4SYN",8245,"PTX Atlas"]
["ARE,PV-FIX,PEM-EL,CH4SYN,PEM-EL","ARE","PV-FIX","PEM-EL","CH4SYN","PEM-EL",2992,"PTX Atlas"]
["ARE,PV-FIX,PEM-EL,DRI,DRI","ARE","PV-FIX","PEM-EL","DRI","DRI",7008,"öko"]
["ARE,PV-FIX,PEM-EL,DRI,PEM-EL","ARE","PV-FIX","PEM-EL","DRI","PEM-EL",3012,"PTX Atlas"]
["ARE,PV-FIX,PEM-EL,EFUELSYN,EFUELSYN","ARE","PV-FIX","PEM-EL","EFUELSYN","EFUELSYN",8220,"PTX Atlas"]
["ARE,PV-FIX,PEM-EL,EFUELSYN,PEM-EL","ARE","PV-FIX","PEM-EL","EFUELSYN","PEM-EL",3012,"PTX Atlas"]
["ARE,PV-FIX,PEM-EL,LOHC-CON,LOHC-CON","ARE","PV-FIX","PEM-EL","LOHC-CON","LOHC-CON",2889,"PTX Atlas"]
["ARE,PV-FIX,PEM-EL,LOHC-CON,LOHC-REC","ARE","PV-FIX","PEM-EL","LOHC-CON","LOHC-REC",7008,"öko"]
["ARE,PV-FIX,PEM-EL,LOHC-CON,PEM-EL","ARE","PV-FIX","PEM-EL","LOHC-CON","PEM-EL",2889,"PTX Atlas"]
["ARE,PV-FIX,PEM-EL,NH3SYN,NH3-REC","ARE","PV-FIX","PEM-EL","NH3SYN","NH3-REC",7008,"öko"]
["ARE,PV-FIX,PEM-EL,NH3SYN,NH3SYN","ARE","PV-FIX","PEM-EL","NH3SYN","NH3SYN",8161,"PTX Atlas"]
["ARE,PV-FIX,PEM-EL,NH3SYN,PEM-EL","ARE","PV-FIX","PEM-EL","NH3SYN","PEM-EL",2926,"PTX Atlas"]
["ARE,PV-FIX,SOEC-EL,,H2-COMP","ARE","PV-FIX","SOEC-EL",null,"H2-COMP",7008]
["ARE,PV-FIX,SOEC-EL,,H2-LIQ","ARE","PV-FIX","SOEC-EL",null,"H2-LIQ",2937,"öko"]
["ARE,PV-FIX,SOEC-EL,,H2-RGAS","ARE","PV-FIX","SOEC-EL",null,"H2-RGAS",7008,"öko"]
["ARE,PV-FIX,SOEC-EL,,SOEC-EL","ARE","PV-FIX","SOEC-EL",null,"SOEC-EL",2866,"PTX Atlas"]
["ARE,PV-FIX,SOEC-EL,CH3OHSYN,CH3OHREC","ARE","PV-FIX","SOEC-EL","CH3OHSYN","CH3OHREC",7008,"öko"]
["ARE,PV-FIX,SOEC-EL,CH3OHSYN,CH3OHSYN","ARE","PV-FIX","SOEC-EL","CH3OHSYN","CH3OHSYN",8232,"PTX Atlas"]
["ARE,PV-FIX,SOEC-EL,CH3OHSYN,SOEC-EL","ARE","PV-FIX","SOEC-EL","CH3OHSYN","SOEC-EL",8232,"PTX Atlas"]
["ARE,PV-FIX,SOEC-EL,CH4SYN,ATR","ARE","PV-FIX","SOEC-EL","CH4SYN","ATR",7008]
["ARE,PV-FIX,SOEC-EL,CH4SYN,CH4-LIQ","ARE","PV-FIX","SOEC-EL","CH4SYN","CH4-LIQ",7852,"PTX Atlas"]
["ARE,PV-FIX,SOEC-EL,CH4SYN,CH4-RGAS","ARE","PV-FIX","SOEC-EL","CH4SYN","CH4-RGAS",7008,"öko"]
["ARE,PV-FIX,SOEC-EL,CH4SYN,CH4SYN","ARE","PV-FIX","SOEC-EL","CH4SYN","CH4SYN",7852,"PTX Atlas"]
["ARE,PV-FIX,SOEC-EL,CH4SYN,SOEC-EL","ARE","PV-FIX","SOEC-EL","CH4SYN","SOEC-EL",7852,"PTX Atlas"]
["ARE,PV-FIX,SOEC-EL,DRI,DRI","ARE","PV-FIX","SOEC-EL","DRI","DRI",7008,"öko"]
["ARE,PV-FIX,SOEC-EL,DRI,SOEC-EL","ARE","PV-FIX","SOEC-EL","DRI","SOEC-EL",8271,"PTX Atlas"]
["ARE,PV-FIX,SOEC-EL,EFUELSYN,EFUELSYN","ARE","PV-FIX","SOEC-EL","EFUELSYN","EFUELSYN",8271,"PTX Atlas"]
["ARE,PV-FIX,SOEC-EL,EFUELSYN,SOEC-EL","ARE","PV-FIX","SOEC-EL","EFUELSYN","SOEC-EL",8271,"PTX Atlas"]
["ARE,PV-FIX,SOEC-EL,LOHC-CON,LOHC-CON","ARE","PV-FIX","SOEC-EL","LOHC-CON","LOHC-CON",2866,"PTX Atlas"]
["ARE,PV-FIX,SOEC-EL,LOHC-CON,LOHC-REC","ARE","PV-FIX","SOEC-EL","LOHC-CON","LOHC-REC",7008,"öko"]
["ARE,PV-FIX,SOEC-EL,LOHC-CON,SOEC-EL","ARE","PV-FIX","SOEC-EL","LOHC-CON","SOEC-EL",2866,"PTX Atlas"]
["ARE,PV-FIX,SOEC-EL,NH3SYN,NH3-REC","ARE","PV-FIX","SOEC-EL","NH3SYN","NH3-REC",7008,"öko"]
["ARE,PV-FIX,SOEC-EL,NH3SYN,NH3SYN","ARE","PV-FIX","SOEC-EL","NH3SYN","NH3SYN",4809,"PTX Atlas"]
["ARE,PV-FIX,SOEC-EL,NH3SYN,SOEC-EL","ARE","PV-FIX","SOEC-EL","NH3SYN","SOEC-EL",4809,"PTX Atlas"]
["ARE,PV-TRK,AEL-EL,,H2-COMP","ARE","PV-TRK","AEL-EL",null,"H2-COMP",6657.5999999999995]
["ARE,PV-TRK,AEL-EL,,H2-RGAS","ARE","PV-TRK","AEL-EL",null,"H2-RGAS",6657.5999999999995,"öko"]
["ARE,PV-TRK,AEL-EL,CH3OHSYN,CH3OHREC","ARE","PV-TRK","AEL-EL","CH3OHSYN","CH3OHREC",6657.5999999999995,"öko"]
["ARE,PV-TRK,AEL-EL,CH4SYN,ATR","ARE","PV-TRK","AEL-EL","CH4SYN","ATR",6657.5999999999995]
["ARE,PV-TRK,AEL-EL,CH4SYN,CH4-RGAS","ARE","PV-TRK","AEL-EL","CH4SYN","CH4-RGAS",6657.5999999999995,"öko"]
["ARE,PV-TRK,AEL-EL,DRI,DRI","ARE","PV-TRK","AEL-EL","DRI","DRI",6657.5999999999995,"öko"]
["ARE,PV-TRK,AEL-EL,LOHC-CON,LOHC-REC","ARE","PV-TRK","AEL-EL","LOHC-CON","LOHC-REC",6657.5999999999995,"öko"]
["ARE,PV-TRK,AEL-EL,NH3SYN,NH3-REC","ARE","PV-TRK","AEL-EL","NH3SYN","NH3-REC",6657.5999999999995,"öko"]
["ARE,PV-TRK,PEM-EL,,H2-COMP","ARE","PV-TRK","PEM-EL",null,"H2-COMP",7008]
["ARE,PV-TRK,PEM-EL,,H2-RGAS","ARE","PV-TRK","PEM-EL",null,"H2-RGAS",7008,"öko"]
["ARE,PV-TRK,PEM-EL,CH3OHSYN,CH3OHREC","ARE","PV-TRK","PEM-EL","CH3OHSYN","CH3OHREC",7008,"öko"]
["ARE,PV-TRK,PEM-EL,CH4SYN,ATR","ARE","PV-TRK","PEM-EL","CH4SYN","ATR",7008]
["ARE,PV-TRK,PEM-EL,CH4SYN,CH4-RGAS","ARE","PV-TRK","PEM-EL","CH4SYN","CH4-RGAS",7008,"öko"]
["ARE,PV-TRK,PEM-EL,DRI,DRI","ARE","PV-TRK","PEM-EL","DRI","DRI",7008,"öko"]
["ARE,PV-TRK,PEM-EL,LOHC-CON,LOHC-REC","ARE","PV-TRK","PEM-EL","LOHC-CON","LOHC-REC",7008,"öko"]
["ARE,PV-TRK,PEM-EL,NH3SYN,NH3-REC","ARE","PV-TRK","PEM-EL","NH3SYN","NH3-REC",7008,"öko"]
["ARE,PV-TRK,SOEC-EL,,H2-COMP","ARE","PV-TRK","SOEC-EL",null,"H2-COMP",7008]
["ARE,PV-TRK,SOEC-EL,,H2-RGAS","ARE","PV-TRK","SOEC-EL",null,"H2-RGAS",7008,"öko"]
["ARE,PV-TRK,SOEC-EL,CH3OHSYN,CH3OHREC","ARE","PV-TRK","SOEC-EL","CH3OHSYN","CH3OHREC",7008,"öko"]
["ARE,PV-TRK,SOEC-EL,CH4SYN,ATR","ARE","PV-TRK","SOEC-EL","CH4SYN","ATR",7008]
["ARE,PV-TRK,SOEC-EL,CH4SYN,CH4-RGAS","ARE","PV-TRK","SOEC-EL","CH4SYN","CH4-RGAS",7008,"öko"]
["ARE,PV-TRK,SOEC-EL,DRI,DRI","ARE","PV-TRK","SOEC-EL","DRI","DRI",7008,"öko"]
["ARE,PV-TRK,SOEC-EL,LOHC-CON,LOHC-REC","ARE","PV-TRK","SOEC-EL","LOHC-CON","LOHC-REC",7008,"öko"]
["ARE,PV-TRK,SOEC-EL,NH3SYN,NH3-REC","ARE","PV-TRK","SOEC-EL","NH3SYN","NH3-REC",7008,"öko"]
["ARE,RES-HYBR,AEL-EL,,AEL-EL","ARE","RES-HYBR","AEL-EL",null,"AEL-EL",2960.5180413305925,"PTX Atlas"]
["ARE,RES-HYBR,AEL-EL,,H2-COMP","ARE","RES-HYBR","AEL-EL",null,"H2-COMP",6657.5999999999995]
["ARE,RES-HYBR,AEL-EL,,H2-LIQ","ARE","RES-HYBR","AEL-EL",null,"H2-LIQ",2960.5180413305925,"öko"]
["ARE,RES-HYBR,AEL-EL,,H2-RGAS","ARE","RES-HYBR","AEL-EL",null,"H2-RGAS",6657.5999999999995,"öko"]
["ARE,RES-HYBR,AEL-EL,CH3OHSYN,AEL-EL","ARE","RES-HYBR","AEL-EL","CH3OHSYN","AEL-EL",2960.5180413305925,"PTX Atlas"]
["ARE,RES-HYBR,AEL-EL,CH3OHSYN,CH3OHREC","ARE","RES-HYBR","AEL-EL","CH3OHSYN","CH3OHREC",6657.5999999999995,"öko"]
["ARE,RES-HYBR,AEL-EL,CH3OHSYN,CH3OHSYN","ARE","RES-HYBR","AEL-EL","CH3OHSYN","CH3OHSYN",7425.8340610088462,"PTX Atlas"]
["ARE,RES-HYBR,AEL-EL,CH4SYN,AEL-EL","ARE","RES-HYBR","AEL-EL","CH4SYN","AEL-EL",2960.5180413305925,"PTX Atlas"]
["ARE,RES-HYBR,AEL-EL,CH4SYN,ATR","ARE","RES-HYBR","AEL-EL","CH4SYN","ATR",6657.5999999999995]
["ARE,RES-HYBR,AEL-EL,CH4SYN,CH4-LIQ","ARE","RES-HYBR","AEL-EL","CH4SYN","CH4-LIQ",7438.2448855443708,"PTX Atlas"]
["ARE,RES-HYBR,AEL-EL,CH4SYN,CH4-RGAS","ARE","RES-HYBR","AEL-EL","CH4SYN","CH4-RGAS",6657.5999999999995,"öko"]
["ARE,RES-HYBR,AEL-EL,CH4SYN,CH4SYN","ARE","RES-HYBR","AEL-EL","CH4SYN","CH4SYN",7438.2448855443708,"PTX Atlas"]
["ARE,RES-HYBR,AEL-EL,DRI,AEL-EL","ARE","RES-HYBR","AEL-EL","DRI","AEL-EL",2960.5180413305925,"PTX Atlas"]
["ARE,RES-HYBR,AEL-EL,DRI,DRI","ARE","RES-HYBR","AEL-EL","DRI","DRI",6657.5999999999995,"öko"]
["ARE,RES-HYBR,AEL-EL,EFUELSYN,AEL-EL","ARE","RES-HYBR","AEL-EL","EFUELSYN","AEL-EL",2960.5180413305925,"PTX Atlas"]
["ARE,RES-HYBR,AEL-EL,EFUELSYN,EFUELSYN","ARE","RES-HYBR","AEL-EL","EFUELSYN","EFUELSYN",7416.0243296628896,"PTX Atlas"]
["ARE,RES-HYBR,AEL-EL,LOHC-CON,AEL-EL","ARE","RES-HYBR","AEL-EL","LOHC-CON","AEL-EL",2960.5180413305925,"PTX Atlas"]
["ARE,RES-HYBR,AEL-EL,LOHC-CON,LOHC-CON","ARE","RES-HYBR","AEL-EL","LOHC-CON","LOHC-CON",2960.5180413305925,"PTX Atlas"]
["ARE,RES-HYBR,AEL-EL,LOHC-CON,LOHC-REC","ARE","RES-HYBR","AEL-EL","LOHC-CON","LOHC-REC",6657.5999999999995,"öko"]
["ARE,RES-HYBR,AEL-EL,NH3SYN,AEL-EL","ARE","RES-HYBR","AEL-EL","NH3SYN","AEL-EL",2960.5180413305925,"PTX Atlas"]
["ARE,RES-HYBR,AEL-EL,NH3SYN,NH3-REC","ARE","RES-HYBR","AEL-EL","NH3SYN","NH3-REC",6657.5999999999995,"öko"]
["ARE,RES-HYBR,AEL-EL,NH3SYN,NH3SYN","ARE","RES-HYBR","AEL-EL","NH3SYN","NH3SYN",7208.3004066938447,"PTX Atlas"]
["ARE,RES-HYBR,PEM-EL,,H2-COMP","ARE","RES-HYBR","PEM-EL",null,"H2-COMP",7008]
["ARE,RES-HYBR,PEM-EL,,H2-LIQ","ARE","RES-HYBR","PEM-EL",null,"H2-LIQ",3116.3347803479924,"öko"]
["ARE,RES-HYBR,PEM-EL,,H2-RGAS","ARE","RES-HYBR","PEM-EL",null,"H2-RGAS",7008,"öko"]
["ARE,RES-HYBR,PEM-EL,,PEM-EL","ARE","RES-HYBR","PEM-EL",null,"PEM-EL",3116.3347803479924,"PTX Atlas"]
["ARE,RES-HYBR,PEM-EL,CH3OHSYN,CH3OHREC","ARE","RES-HYBR","PEM-EL","CH3OHSYN","CH3OHREC",7008,"öko"]
["ARE,RES-HYBR,PEM-EL,CH3OHSYN,CH3OHSYN","ARE","RES-HYBR","PEM-EL","CH3OHSYN","CH3OHSYN",7816.667432640892,"PTX Atlas"]
["ARE,RES-HYBR,PEM-EL,CH3OHSYN,PEM-EL","ARE","RES-HYBR","PEM-EL","CH3OHSYN","PEM-EL",3116.3347803479924,"PTX Atlas"]
["ARE,RES-HYBR,PEM-EL,CH4SYN,ATR","ARE","RES-HYBR","PEM-EL","CH4SYN","ATR",7008]
["ARE,RES-HYBR,PEM-EL,CH4SYN,CH4-LIQ","ARE","RES-HYBR","PEM-EL","CH4SYN","CH4-LIQ",7829.7314584677597,"PTX Atlas"]
["ARE,RES-HYBR,PEM-EL,CH4SYN,CH4-RGAS","ARE","RES-HYBR","PEM-EL","CH4SYN","CH4-RGAS",7008,"öko"]
["ARE,RES-HYBR,PEM-EL,CH4SYN,CH4SYN","ARE","RES-HYBR","PEM-EL","CH4SYN","CH4SYN",7829.7314584677597,"PTX Atlas"]
["ARE,RES-HYBR,PEM-EL,CH4SYN,PEM-EL","ARE","RES-HYBR","PEM-EL","CH4SYN","PEM-EL",3116.3347803479924,"PTX Atlas"]
["ARE,RES-HYBR,PEM-EL,DRI,DRI","ARE","RES-HYBR","PEM-EL","DRI","DRI",7008,"öko"]
["ARE,RES-HYBR,PEM-EL,DRI,PEM-EL","ARE","RES-HYBR","PEM-EL","DRI","PEM-EL",3116.3347803479924,"PTX Atlas"]
["ARE,RES-HYBR,PEM-EL,EFUELSYN,EFUELSYN","ARE","RES-HYBR","PEM-EL","EFUELSYN","EFUELSYN",7806.3413996451472,"PTX Atlas"]
["ARE,RES-HYBR,PEM-EL,EFUELSYN,PEM-EL","ARE","RES-HYBR","PEM-EL","EFUELSYN","PEM-EL",3116.3347803479924,"PTX Atlas"]
["ARE,RES-HYBR,PEM-EL,LOHC-CON,LOHC-CON","ARE","RES-HYBR","PEM-EL","LOHC-CON","LOHC-CON",3116.3347803479924,"PTX Atlas"]
["ARE,RES-HYBR,PEM-EL,LOHC-CON,LOHC-REC","ARE","RES-HYBR","PEM-EL","LOHC-CON","LOHC-REC",7008,"öko"]
["ARE,RES-HYBR,PEM-EL,LOHC-CON,PEM-EL","ARE","RES-HYBR","PEM-EL","LOHC-CON","PEM-EL",3116.3347803479924,"PTX Atlas"]
["ARE,RES-HYBR,PEM-EL,NH3SYN,NH3-REC","ARE","RES-HYBR","PEM-EL","NH3SYN","NH3-REC",7008,"öko"]
["ARE,RES-HYBR,PEM-EL,NH3SYN,NH3SYN","ARE","RES-HYBR","PEM-EL","NH3SYN","NH3SYN",7587.6846386251,"PTX Atlas"]
["ARE,RES-HYBR,PEM-EL,NH3SYN,PEM-EL","ARE","RES-HYBR","PEM-EL","NH3SYN","PEM-EL",3116.3347803479924,"PTX Atlas"]
["ARE,RES-HYBR,SOEC-EL,,H2-COMP","ARE","RES-HYBR","SOEC-EL",null,"H2-COMP",7008]
["ARE,RES-HYBR,SOEC-EL,,H2-LIQ","ARE","RES-HYBR","SOEC-EL",null,"H2-LIQ",3116.3347803479924,"öko"]
["ARE,RES-HYBR,SOEC-EL,,H2-RGAS","ARE","RES-HYBR","SOEC-EL",null,"H2-RGAS",7008,"öko"]
["ARE,RES-HYBR,SOEC-EL,,SOEC-EL","ARE","RES-HYBR","SOEC-EL",null,"SOEC-EL",3116.3347803479924,"PTX Atlas"]
["ARE,RES-HYBR,SOEC-EL,CH3OHSYN,CH3OHREC","ARE","RES-HYBR","SOEC-EL","CH3OHSYN","CH3OHREC",7008,"öko"]
["ARE,RES-HYBR,SOEC-EL,CH3OHSYN,CH3OHSYN","ARE","RES-HYBR","SOEC-EL","CH3OHSYN","CH3OHSYN",6813.9092857754331,"PTX Atlas"]
["ARE,RES-HYBR,SOEC-EL,CH3OHSYN,SOEC-EL","ARE","RES-HYBR","SOEC-EL","CH3OHSYN","SOEC-EL",6813.9092857754331,"PTX Atlas"]
["ARE,RES-HYBR,SOEC-EL,CH4SYN,ATR","ARE","RES-HYBR","SOEC-EL","CH4SYN","ATR",7008]
["ARE,RES-HYBR,SOEC-EL,CH4SYN,CH4-LIQ","ARE","RES-HYBR","SOEC-EL","CH4SYN","CH4-LIQ",6746.0157690839496,"PTX Atlas"]
["ARE,RES-HYBR,SOEC-EL,CH4SYN,CH4-RGAS","ARE","RES-HYBR","SOEC-EL","CH4SYN","CH4-RGAS",7008,"öko"]
["ARE,RES-HYBR,SOEC-EL,CH4SYN,CH4SYN","ARE","RES-HYBR","SOEC-EL","CH4SYN","CH4SYN",6746.0157690839496,"PTX Atlas"]
["ARE,RES-HYBR,SOEC-EL,CH4SYN,SOEC-EL","ARE","RES-HYBR","SOEC-EL","CH4SYN","SOEC-EL",6746.0157690839496,"PTX Atlas"]
["ARE,RES-HYBR,SOEC-EL,DRI,DRI","ARE","RES-HYBR","SOEC-EL","DRI","DRI",7008,"öko"]
["ARE,RES-HYBR,SOEC-EL,DRI,SOEC-EL","ARE","RES-HYBR","SOEC-EL","DRI","SOEC-EL",6965.6998549493692,"PTX Atlas"]
["ARE,RES-HYBR,SOEC-EL,EFUELSYN,EFUELSYN","ARE","RES-HYBR","SOEC-EL","EFUELSYN","EFUELSYN",6965.6998549493692,"PTX Atlas"]
["ARE,RES-HYBR,SOEC-EL,EFUELSYN,SOEC-EL","ARE","RES-HYBR","SOEC-EL","EFUELSYN","SOEC-EL",6965.6998549493692,"PTX Atlas"]
["ARE,RES-HYBR,SOEC-EL,LOHC-CON,LOHC-CON","ARE","RES-HYBR","SOEC-EL","LOHC-CON","LOHC-CON",3116.3347803479924,"PTX Atlas"]
["ARE,RES-HYBR,SOEC-EL,LOHC-CON,LOHC-REC","ARE","RES-HYBR","SOEC-EL","LOHC-CON","LOHC-REC",7008,"öko"]
["ARE,RES-HYBR,SOEC-EL,LOHC-CON,SOEC-EL","ARE","RES-HYBR","SOEC-EL","LOHC-CON","SOEC-EL",3116.3347803479924,"PTX Atlas"]
["ARE,RES-HYBR,SOEC-EL,NH3SYN,NH3-REC","ARE","RES-HYBR","SOEC-EL","NH3SYN","NH3-REC",7008,"öko"]
["ARE,RES-HYBR,SOEC-EL,NH3SYN,NH3SYN","ARE","RES-HYBR","SOEC-EL","NH3SYN","NH3SYN",4799.8891506486252,"PTX Atlas"]
["ARE,RES-HYBR,SOEC-EL,NH3SYN,SOEC-EL","ARE","RES-HYBR","SOEC-EL","NH3SYN","SOEC-EL",4799.8891506486252,"PTX Atlas"]
["ARE,WIND-OFF,AEL-EL,,AEL-EL","ARE","WIND-OFF","AEL-EL",null,"AEL-EL",3364.489028579746,"PTX Atlas"]
["ARE,WIND-OFF,AEL-EL,,H2-COMP","ARE","WIND-OFF","AEL-EL",null,"H2-COMP",6657.5999999999995]
["ARE,WIND-OFF,AEL-EL,,H2-LIQ","ARE","WIND-OFF","AEL-EL",null,"H2-LIQ",3581.6449164299329,"öko"]
["ARE,WIND-OFF,AEL-EL,,H2-RGAS","ARE","WIND-OFF","AEL-EL",null,"H2-RGAS",6657.5999999999995,"öko"]
["ARE,WIND-OFF,AEL-EL,CH3OHSYN,AEL-EL","ARE","WIND-OFF","AEL-EL","CH3OHSYN","AEL-EL",3752.1054669414393,"PTX Atlas"]
["ARE,WIND-OFF,AEL-EL,CH3OHSYN,CH3OHREC","ARE","WIND-OFF","AEL-EL","CH3OHSYN","CH3OHREC",6657.5999999999995,"öko"]
["ARE,WIND-OFF,AEL-EL,CH3OHSYN,CH3OHSYN","ARE","WIND-OFF","AEL-EL","CH3OHSYN","CH3OHSYN",4555.2165117565846,"PTX Atlas"]
["ARE,WIND-OFF,AEL-EL,CH4SYN,AEL-EL","ARE","WIND-OFF","AEL-EL","CH4SYN","AEL-EL",3665.0618373599686,"PTX Atlas"]
["ARE,WIND-OFF,AEL-EL,CH4SYN,ATR","ARE","WIND-OFF","AEL-EL","CH4SYN","ATR",6657.5999999999995]
["ARE,WIND-OFF,AEL-EL,CH4SYN,CH4-LIQ","ARE","WIND-OFF","AEL-EL","CH4SYN","CH4-LIQ",4539.289660722764,"PTX Atlas"]
["ARE,WIND-OFF,AEL-EL,CH4SYN,CH4-RGAS","ARE","WIND-OFF","AEL-EL","CH4SYN","CH4-RGAS",6657.5999999999995,"öko"]
["ARE,WIND-OFF,AEL-EL,CH4SYN,CH4SYN","ARE","WIND-OFF","AEL-EL","CH4SYN","CH4SYN",4539.289660722764,"PTX Atlas"]
["ARE,WIND-OFF,AEL-EL,DRI,AEL-EL","ARE","WIND-OFF","AEL-EL","DRI","AEL-EL",3724.6998603528527,"PTX Atlas"]
["ARE,WIND-OFF,AEL-EL,DRI,DRI","ARE","WIND-OFF","AEL-EL","DRI","DRI",6657.5999999999995,"öko"]
["ARE,WIND-OFF,AEL-EL,EFUELSYN,AEL-EL","ARE","WIND-OFF","AEL-EL","EFUELSYN","AEL-EL",3724.6998603528527,"PTX Atlas"]
["ARE,WIND-OFF,AEL-EL,EFUELSYN,EFUELSYN","ARE","WIND-OFF","AEL-EL","EFUELSYN","EFUELSYN",4517.9868613380331,"PTX Atlas"]
["ARE,WIND-OFF,AEL-EL,LOHC-CON,AEL-EL","ARE","WIND-OFF","AEL-EL","LOHC-CON","AEL-EL",3364.489028579746,"PTX Atlas"]
["ARE,WIND-OFF,AEL-EL,LOHC-CON,LOHC-CON","ARE","WIND-OFF","AEL-EL","LOHC-CON","LOHC-CON",3364.489028579746,"PTX Atlas"]
["ARE,WIND-OFF,AEL-EL,LOHC-CON,LOHC-REC","ARE","WIND-OFF","AEL-EL","LOHC-CON","LOHC-REC",6657.5999999999995,"öko"]
["ARE,WIND-OFF,AEL-EL,NH3SYN,AEL-EL","ARE","WIND-OFF","AEL-EL","NH3SYN","AEL-EL",3605.1961926741023,"PTX Atlas"]
["ARE,WIND-OFF,AEL-EL,NH3SYN,NH3-REC","ARE","WIND-OFF","AEL-EL","NH3SYN","NH3-REC",6657.5999999999995,"öko"]
["ARE,WIND-OFF,AEL-EL,NH3SYN,NH3SYN","ARE","WIND-OFF","AEL-EL","NH3SYN","NH3SYN",3850.871730871087,"PTX Atlas"]
["ARE,WIND-OFF,PEM-EL,,H2-COMP","ARE","WIND-OFF","PEM-EL",null,"H2-COMP",7008]
["ARE,WIND-OFF,PEM-EL,,H2-LIQ","ARE","WIND-OFF","PEM-EL",null,"H2-LIQ",3770.1525436104562,"öko"]
["ARE,WIND-OFF,PEM-EL,,H2-RGAS","ARE","WIND-OFF","PEM-EL",null,"H2-RGAS",7008,"öko"]
["ARE,WIND-OFF,PEM-EL,,PEM-EL","ARE","WIND-OFF","PEM-EL",null,"PEM-EL",3541.5673985049957,"PTX Atlas"]
["ARE,WIND-OFF,PEM-EL,CH3OHSYN,CH3OHREC","ARE","WIND-OFF","PEM-EL","CH3OHSYN","CH3OHREC",7008,"öko"]
["ARE,WIND-OFF,PEM-EL,CH3OHSYN,CH3OHSYN","ARE","WIND-OFF","PEM-EL","CH3OHSYN","CH3OHSYN",4794.9647492174581,"PTX Atlas"]
["ARE,WIND-OFF,PEM-EL,CH3OHSYN,PEM-EL","ARE","WIND-OFF","PEM-EL","CH3OHSYN","PEM-EL",3949.5847020436199,"PTX Atlas"]
["ARE,WIND-OFF,PEM-EL,CH4SYN,ATR","ARE","WIND-OFF","PEM-EL","CH4SYN","ATR",7008]
["ARE,WIND-OFF,PEM-EL,CH4SYN,CH4-LIQ","ARE","WIND-OFF","PEM-EL","CH4SYN","CH4-LIQ",4778.1996428660677,"PTX Atlas"]
["ARE,WIND-OFF,PEM-EL,CH4SYN,CH4-RGAS","ARE","WIND-OFF","PEM-EL","CH4SYN","CH4-RGAS",7008,"öko"]
["ARE,WIND-OFF,PEM-EL,CH4SYN,CH4SYN","ARE","WIND-OFF","PEM-EL","CH4SYN","CH4SYN",4778.1996428660677,"PTX Atlas"]
["ARE,WIND-OFF,PEM-EL,CH4SYN,PEM-EL","ARE","WIND-OFF","PEM-EL","CH4SYN","PEM-EL",3857.959828799967,"PTX Atlas"]
["ARE,WIND-OFF,PEM-EL,DRI,DRI","ARE","WIND-OFF","PEM-EL","DRI","DRI",7008,"öko"]
["ARE,WIND-OFF,PEM-EL,DRI,PEM-EL","ARE","WIND-OFF","PEM-EL","DRI","PEM-EL",3920.7366951082663,"PTX Atlas"]
["ARE,WIND-OFF,PEM-EL,EFUELSYN,EFUELSYN","ARE","WIND-OFF","PEM-EL","EFUELSYN","EFUELSYN",4755.7756435137189,"PTX Atlas"]
["ARE,WIND-OFF,PEM-EL,EFUELSYN,PEM-EL","ARE","WIND-OFF","PEM-EL","EFUELSYN","PEM-EL",3920.7366951082663,"PTX Atlas"]
["ARE,WIND-OFF,PEM-EL,LOHC-CON,LOHC-CON","ARE","WIND-OFF","PEM-EL","LOHC-CON","LOHC-CON",3541.5673985049957,"PTX Atlas"]
["ARE,WIND-OFF,PEM-EL,LOHC-CON,LOHC-REC","ARE","WIND-OFF","PEM-EL","LOHC-CON","LOHC-REC",7008,"öko"]
["ARE,WIND-OFF,PEM-EL,LOHC-CON,PEM-EL","ARE","WIND-OFF","PEM-EL","LOHC-CON","PEM-EL",3541.5673985049957,"PTX Atlas"]
["ARE,WIND-OFF,PEM-EL,NH3SYN,NH3-REC","ARE","WIND-OFF","PEM-EL","NH3SYN","NH3-REC",7008,"öko"]
["ARE,WIND-OFF,PEM-EL,NH3SYN,NH3SYN","ARE","WIND-OFF","PEM-EL","NH3SYN","NH3SYN",4053.5491903906186,"PTX Atlas"]
["ARE,WIND-OFF,PEM-EL,NH3SYN,PEM-EL","ARE","WIND-OFF","PEM-EL","NH3SYN","PEM-EL",3794.9433607095825,"PTX Atlas"]
["ARE,WIND-OFF,SOEC-EL,,H2-COMP","ARE","WIND-OFF","SOEC-EL",null,"H2-COMP",7008]
["ARE,WIND-OFF,SOEC-EL,,H2-LIQ","ARE","WIND-OFF","SOEC-EL",null,"H2-LIQ",3707.5273095371567,"öko"]
["ARE,WIND-OFF,SOEC-EL,,H2-RGAS","ARE","WIND-OFF","SOEC-EL",null,"H2-RGAS",7008,"öko"]
["ARE,WIND-OFF,SOEC-EL,,SOEC-EL","ARE","WIND-OFF","SOEC-EL",null,"SOEC-EL",3487.1578062793378,"PTX Atlas"]
["ARE,WIND-OFF,SOEC-EL,CH3OHSYN,CH3OHREC","ARE","WIND-OFF","SOEC-EL","CH3OHSYN","CH3OHREC",7008,"öko"]
["ARE,WIND-OFF,SOEC-EL,CH3OHSYN,CH3OHSYN","ARE","WIND-OFF","SOEC-EL","CH3OHSYN","CH3OHSYN",4143.3029084212103,"PTX Atlas"]
["ARE,WIND-OFF,SOEC-EL,CH3OHSYN,SOEC-EL","ARE","WIND-OFF","SOEC-EL","CH3OHSYN","SOEC-EL",4143.3029084212103,"PTX Atlas"]
["ARE,WIND-OFF,SOEC-EL,CH4SYN,ATR","ARE","WIND-OFF","SOEC-EL","CH4SYN","ATR",7008]
["ARE,WIND-OFF,SOEC-EL,CH4SYN,CH4-LIQ","ARE","WIND-OFF","SOEC-EL","CH4SYN","CH4-LIQ",4141.1172245676371,"PTX Atlas"]
["ARE,WIND-OFF,SOEC-EL,CH4SYN,CH4-RGAS","ARE","WIND-OFF","SOEC-EL","CH4SYN","CH4-RGAS",7008,"öko"]
["ARE,WIND-OFF,SOEC-EL,CH4SYN,CH4SYN","ARE","WIND-OFF","SOEC-EL","CH4SYN","CH4SYN",4141.1172245676371,"PTX Atlas"]
["ARE,WIND-OFF,SOEC-EL,CH4SYN,SOEC-EL","ARE","WIND-OFF","SOEC-EL","CH4SYN","SOEC-EL",4141.1172245676371,"PTX Atlas"]
["ARE,WIND-OFF,SOEC-EL,DRI,DRI","ARE","WIND-OFF","SOEC-EL","DRI","DRI",7008,"öko"]
["ARE,WIND-OFF,SOEC-EL,DRI,SOEC-EL","ARE","WIND-OFF","SOEC-EL","DRI","SOEC-EL",4153.6524109909551,"PTX Atlas"]
["ARE,WIND-OFF,SOEC-EL,EFUELSYN,EFUELSYN","ARE","WIND-OFF","SOEC-EL","EFUELSYN","EFUELSYN",4153.6524109909551,"PTX Atlas"]
["ARE,WIND-OFF,SOEC-EL,EFUELSYN,SOEC-EL","ARE","WIND-OFF","SOEC-EL","EFUELSYN","SOEC-EL",4153.6524109909551,"PTX Atlas"]
["ARE,WIND-OFF,SOEC-EL,LOHC-CON,LOHC-CON","ARE","WIND-OFF","SOEC-EL","LOHC-CON","LOHC-CON",3487.1578062793378,"PTX Atlas"]
["ARE,WIND-OFF,SOEC-EL,LOHC-CON,LOHC-REC","ARE","WIND-OFF","SOEC-EL","LOHC-CON","LOHC-REC",7008,"öko"]
["ARE,WIND-OFF,SOEC-EL,LOHC-CON,SOEC-EL","ARE","WIND-OFF","SOEC-EL","LOHC-CON","SOEC-EL",3487.1578062793378,"PTX Atlas"]
["ARE,WIND-OFF,SOEC-EL,NH3SYN,NH3-REC","ARE","WIND-OFF","SOEC-EL","NH3SYN","NH3-REC",7008,"öko"]
["ARE,WIND-OFF,SOEC-EL,NH3SYN,NH3SYN","ARE","WIND-OFF","SOEC-EL","NH3SYN","NH3SYN",3833.9556109829082,"PTX Atlas"]
["ARE,WIND-OFF,SOEC-EL,NH3SYN,SOEC-EL","ARE","WIND-OFF","SOEC-EL","NH3SYN","SOEC-EL",3833.9556109829082,"PTX Atlas"]
["ARE,WIND-ON,AEL-EL,,AEL-EL","ARE","WIND-ON","AEL-EL",null,"AEL-EL",2698.1152523917567,"PTX Atlas"]
["ARE,WIND-ON,AEL-EL,,H2-COMP","ARE","WIND-ON","AEL-EL",null,"H2-COMP",6657.5999999999995]
["ARE,WIND-ON,AEL-EL,,H2-LIQ","ARE","WIND-ON","AEL-EL",null,"H2-LIQ",2927.5324609381291,"öko"]
["ARE,WIND-ON,AEL-EL,,H2-RGAS","ARE","WIND-ON","AEL-EL",null,"H2-RGAS",6657.5999999999995,"öko"]
["ARE,WIND-ON,AEL-EL,CH3OHSYN,AEL-EL","ARE","WIND-ON","AEL-EL","CH3OHSYN","AEL-EL",3087.0679744771965,"PTX Atlas"]
["ARE,WIND-ON,AEL-EL,CH3OHSYN,CH3OHREC","ARE","WIND-ON","AEL-EL","CH3OHSYN","CH3OHREC",6657.5999999999995,"öko"]
["ARE,WIND-ON,AEL-EL,CH3OHSYN,CH3OHSYN","ARE","WIND-ON","AEL-EL","CH3OHSYN","CH3OHSYN",4101.8557452801524,"PTX Atlas"]
["ARE,WIND-ON,AEL-EL,CH4SYN,AEL-EL","ARE","WIND-ON","AEL-EL","CH4SYN","AEL-EL",2998.5008839374068,"PTX Atlas"]
["ARE,WIND-ON,AEL-EL,CH4SYN,ATR","ARE","WIND-ON","AEL-EL","CH4SYN","ATR",6657.5999999999995]
["ARE,WIND-ON,AEL-EL,CH4SYN,CH4-LIQ","ARE","WIND-ON","AEL-EL","CH4SYN","CH4-LIQ",4079.4107011705046,"PTX Atlas"]
["ARE,WIND-ON,AEL-EL,CH4SYN,CH4-RGAS","ARE","WIND-ON","AEL-EL","CH4SYN","CH4-RGAS",6657.5999999999995,"öko"]
["ARE,WIND-ON,AEL-EL,CH4SYN,CH4SYN","ARE","WIND-ON","AEL-EL","CH4SYN","CH4SYN",4079.4107011705046,"PTX Atlas"]
["ARE,WIND-ON,AEL-EL,DRI,AEL-EL","ARE","WIND-ON","AEL-EL","DRI","AEL-EL",3060.7566659958429,"PTX Atlas"]
["ARE,WIND-ON,AEL-EL,DRI,DRI","ARE","WIND-ON","AEL-EL","DRI","DRI",6657.5999999999995,"öko"]
["ARE,WIND-ON,AEL-EL,EFUELSYN,AEL-EL","ARE","WIND-ON","AEL-EL","EFUELSYN","AEL-EL",3060.7566659958429,"PTX Atlas"]
["ARE,WIND-ON,AEL-EL,EFUELSYN,EFUELSYN","ARE","WIND-ON","AEL-EL","EFUELSYN","EFUELSYN",4061.1887750136225,"PTX Atlas"]
["ARE,WIND-ON,AEL-EL,LOHC-CON,AEL-EL","ARE","WIND-ON","AEL-EL","LOHC-CON","AEL-EL",2698.1152523917567,"PTX Atlas"]
["ARE,WIND-ON,AEL-EL,LOHC-CON,LOHC-CON","ARE","WIND-ON","AEL-EL","LOHC-CON","LOHC-CON",2698.1152523917567,"PTX Atlas"]
["ARE,WIND-ON,AEL-EL,LOHC-CON,LOHC-REC","ARE","WIND-ON","AEL-EL","LOHC-CON","LOHC-REC",6657.5999999999995,"öko"]
["ARE,WIND-ON,AEL-EL,NH3SYN,AEL-EL","ARE","WIND-ON","AEL-EL","NH3SYN","AEL-EL",2959.8877184497751,"PTX Atlas"]
["ARE,WIND-ON,AEL-EL,NH3SYN,NH3-REC","ARE","WIND-ON","AEL-EL","NH3SYN","NH3-REC",6657.5999999999995,"öko"]
["ARE,WIND-ON,AEL-EL,NH3SYN,NH3SYN","ARE","WIND-ON","AEL-EL","NH3SYN","NH3SYN",3278.8297567665663,"PTX Atlas"]
["ARE,WIND-ON,PEM-EL,,H2-COMP","ARE","WIND-ON","PEM-EL",null,"H2-COMP",7008]
["ARE,WIND-ON,PEM-EL,,H2-LIQ","ARE","WIND-ON","PEM-EL",null,"H2-LIQ",3081.6131167769781,"öko"]
["ARE,WIND-ON,PEM-EL,,H2-RGAS","ARE","WIND-ON","PEM-EL",null,"H2-RGAS",7008,"öko"]
["ARE,WIND-ON,PEM-EL,,PEM-EL","ARE","WIND-ON","PEM-EL",null,"PEM-EL",2840.1213183071127,"PTX Atlas"]
["ARE,WIND-ON,PEM-EL,CH3OHSYN,CH3OHREC","ARE","WIND-ON","PEM-EL","CH3OHSYN","CH3OHREC",7008,"öko"]
["ARE,WIND-ON,PEM-EL,CH3OHSYN,CH3OHSYN","ARE","WIND-ON","PEM-EL","CH3OHSYN","CH3OHSYN",4317.7428897685813,"PTX Atlas"]
["ARE,WIND-ON,PEM-EL,CH3OHSYN,PEM-EL","ARE","WIND-ON","PEM-EL","CH3OHSYN","PEM-EL",3249.5452362917854,"PTX Atlas"]
["ARE,WIND-ON,PEM-EL,CH4SYN,ATR","ARE","WIND-ON","PEM-EL","CH4SYN","ATR",7008]
["ARE,WIND-ON,PEM-EL,CH4SYN,CH4-LIQ","ARE","WIND-ON","PEM-EL","CH4SYN","CH4-LIQ",4294.1165275478998,"PTX Atlas"]
["ARE,WIND-ON,PEM-EL,CH4SYN,CH4-RGAS","ARE","WIND-ON","PEM-EL","CH4SYN","CH4-RGAS",7008,"öko"]
["ARE,WIND-ON,PEM-EL,CH4SYN,CH4SYN","ARE","WIND-ON","PEM-EL","CH4SYN","CH4SYN",4294.1165275478998,"PTX Atlas"]
["ARE,WIND-ON,PEM-EL,CH4SYN,PEM-EL","ARE","WIND-ON","PEM-EL","CH4SYN","PEM-EL",3156.3167199341124,"PTX Atlas"]
["ARE,WIND-ON,PEM-EL,DRI,DRI","ARE","WIND-ON","PEM-EL","DRI","DRI",7008,"öko"]
["ARE,WIND-ON,PEM-EL,DRI,PEM-EL","ARE","WIND-ON","PEM-EL","DRI","PEM-EL",3221.8491221008876,"PTX Atlas"]
["ARE,WIND-ON,PEM-EL,EFUELSYN,EFUELSYN","ARE","WIND-ON","PEM-EL","EFUELSYN","EFUELSYN",4274.9355526459185,"PTX Atlas"]
["ARE,WIND-ON,PEM-EL,EFUELSYN,PEM-EL","ARE","WIND-ON","PEM-EL","EFUELSYN","PEM-EL",3221.8491221008876,"PTX Atlas"]
["ARE,WIND-ON,PEM-EL,LOHC-CON,LOHC-CON","ARE","WIND-ON","PEM-EL","LOHC-CON","LOHC-CON",2840.1213183071127,"PTX Atlas"]
["ARE,WIND-ON,PEM-EL,LOHC-CON,LOHC-REC","ARE","WIND-ON","PEM-EL","LOHC-CON","LOHC-REC",7008,"öko"]
["ARE,WIND-ON,PEM-EL,LOHC-CON,PEM-EL","ARE","WIND-ON","PEM-EL","LOHC-CON","PEM-EL",2840.1213183071127,"PTX Atlas"]
["ARE,WIND-ON,PEM-EL,NH3SYN,NH3-REC","ARE","WIND-ON","PEM-EL","NH3SYN","NH3-REC",7008,"öko"]
["ARE,WIND-ON,PEM-EL,NH3SYN,NH3SYN","ARE","WIND-ON","PEM-EL","NH3SYN","NH3SYN",3451.3997439648069,"PTX Atlas"]
["ARE,WIND-ON,PEM-EL,NH3SYN,PEM-EL","ARE","WIND-ON","PEM-EL","NH3SYN","PEM-EL",3115.6712825787108,"PTX Atlas"]
["ARE,WIND-ON,SOEC-EL,,H2-COMP","ARE","WIND-ON","SOEC-EL",null,"H2-COMP",7008]
["ARE,WIND-ON,SOEC-EL,,H2-LIQ","ARE","WIND-ON","SOEC-EL",null,"H2-LIQ",3011.7012002928977,"öko"]
["ARE,WIND-ON,SOEC-EL,,H2-RGAS","ARE","WIND-ON","SOEC-EL",null,"H2-RGAS",7008,"öko"]
["ARE,WIND-ON,SOEC-EL,,SOEC-EL","ARE","WIND-ON","SOEC-EL",null,"SOEC-EL",2778.7845876153465,"PTX Atlas"]
["ARE,WIND-ON,SOEC-EL,CH3OHSYN,CH3OHREC","ARE","WIND-ON","SOEC-EL","CH3OHSYN","CH3OHREC",7008,"öko"]
["ARE,WIND-ON,SOEC-EL,CH3OHSYN,CH3OHSYN","ARE","WIND-ON","SOEC-EL","CH3OHSYN","CH3OHSYN",3487.849414039249,"PTX Atlas"]
["ARE,WIND-ON,SOEC-EL,CH3OHSYN,SOEC-EL","ARE","WIND-ON","SOEC-EL","CH3OHSYN","SOEC-EL",3487.849414039249,"PTX Atlas"]
["ARE,WIND-ON,SOEC-EL,CH4SYN,ATR","ARE","WIND-ON","SOEC-EL","CH4SYN","ATR",7008]
["ARE,WIND-ON,SOEC-EL,CH4SYN,CH4-LIQ","ARE","WIND-ON","SOEC-EL","CH4SYN","CH4-LIQ",3485.9003267038497,"PTX Atlas"]
["ARE,WIND-ON,SOEC-EL,CH4SYN,CH4-RGAS","ARE","WIND-ON","SOEC-EL","CH4SYN","CH4-RGAS",7008,"öko"]
["ARE,WIND-ON,SOEC-EL,CH4SYN,CH4SYN","ARE","WIND-ON","SOEC-EL","CH4SYN","CH4SYN",3485.9003267038497,"PTX Atlas"]
["ARE,WIND-ON,SOEC-EL,CH4SYN,SOEC-EL","ARE","WIND-ON","SOEC-EL","CH4SYN","SOEC-EL",3485.9003267038497,"PTX Atlas"]
["ARE,WIND-ON,SOEC-EL,DRI,DRI","ARE","WIND-ON","SOEC-EL","DRI","DRI",7008,"öko"]
["ARE,WIND-ON,SOEC-EL,DRI,SOEC-EL","ARE","WIND-ON","SOEC-EL","DRI","SOEC-EL",3498.7738212791132,"PTX Atlas"]
["ARE,WIND-ON,SOEC-EL,EFUELSYN,EFUELSYN","ARE","WIND-ON","SOEC-EL","EFUELSYN","EFUELSYN",3498.7738212791132,"PTX Atlas"]
["ARE,WIND-ON,SOEC-EL,EFUELSYN,SOEC-EL","ARE","WIND-ON","SOEC-EL","EFUELSYN","SOEC-EL",3498.7738212791132,"PTX Atlas"]
["ARE,WIND-ON,SOEC-EL,LOHC-CON,LOHC-CON","ARE","WIND-ON","SOEC-EL","LOHC-CON","LOHC-CON",2778.7845876153465,"PTX Atlas"]
["ARE,WIND-ON,SOEC-EL,LOHC-CON,LOHC-REC","ARE","WIND-ON","SOEC-EL","LOHC-CON","LOHC-REC",7008,"öko"]
["ARE,WIND-ON,SOEC-EL,LOHC-CON,SOEC-EL","ARE","WIND-ON","SOEC-EL","LOHC-CON","SOEC-EL",2778.7845876153465,"PTX Atlas"]
["ARE,WIND-ON,SOEC-EL,NH3SYN,NH3-REC","ARE","WIND-ON","SOEC-EL","NH3SYN","NH3-REC",7008,"öko"]
["ARE,WIND-ON,SOEC-EL,NH3SYN,NH3SYN","ARE","WIND-ON","SOEC-EL","NH3SYN","NH3SYN",3166.3191280165165,"PTX Atlas"]
["ARE,WIND-ON,SOEC-EL,NH3SYN,SOEC-EL","ARE","WIND-ON","SOEC-EL","NH3SYN","SOEC-EL",3166.3191280165165,"PTX Atlas"]
["ARG,PV-FIX,AEL-EL,,AEL-EL","ARG","PV-FIX","AEL-EL",null,"AEL-EL",2544.1,"PTX Atlas"]
["ARG,PV-FIX,AEL-EL,,H2-COMP","ARG","PV-FIX","AEL-EL",null,"H2-COMP",6657.5999999999995]
["ARG,PV-FIX,AEL-EL,,H2-LIQ","ARG","PV-FIX","AEL-EL",null,"H2-LIQ",2592.5499999999997,"öko"]
["ARG,PV-FIX,AEL-EL,,H2-RGAS","ARG","PV-FIX","AEL-EL",null,"H2-RGAS",6657.5999999999995,"öko"]
["ARG,PV-FIX,AEL-EL,CH3OHSYN,AEL-EL","ARG","PV-FIX","AEL-EL","CH3OHSYN","AEL-EL",2654.2999999999997,"PTX Atlas"]
["ARG,PV-FIX,AEL-EL,CH3OHSYN,CH3OHREC","ARG","PV-FIX","AEL-EL","CH3OHSYN","CH3OHREC",6657.5999999999995,"öko"]
["ARG,PV-FIX,AEL-EL,CH3OHSYN,CH3OHSYN","ARG","PV-FIX","AEL-EL","CH3OHSYN","CH3OHSYN",6694.65,"PTX Atlas"]
["ARG,PV-FIX,AEL-EL,CH4SYN,AEL-EL","ARG","PV-FIX","AEL-EL","CH4SYN","AEL-EL",2626.75,"PTX Atlas"]
["ARG,PV-FIX,AEL-EL,CH4SYN,ATR","ARG","PV-FIX","AEL-EL","CH4SYN","ATR",6657.5999999999995]
["ARG,PV-FIX,AEL-EL,CH4SYN,CH4-LIQ","ARG","PV-FIX","AEL-EL","CH4SYN","CH4-LIQ",6700.3499999999995,"PTX Atlas"]
["ARG,PV-FIX,AEL-EL,CH4SYN,CH4-RGAS","ARG","PV-FIX","AEL-EL","CH4SYN","CH4-RGAS",6657.5999999999995,"öko"]
["ARG,PV-FIX,AEL-EL,CH4SYN,CH4SYN","ARG","PV-FIX","AEL-EL","CH4SYN","CH4SYN",6700.3499999999995,"PTX Atlas"]
["ARG,PV-FIX,AEL-EL,DRI,AEL-EL","ARG","PV-FIX","AEL-EL","DRI","AEL-EL",2636.25,"PTX Atlas"]
["ARG,PV-FIX,AEL-EL,DRI,DRI","ARG","PV-FIX","AEL-EL","DRI","DRI",6657.5999999999995,"öko"]
["ARG,PV-FIX,AEL-EL,EFUELSYN,AEL-EL","ARG","PV-FIX","AEL-EL","EFUELSYN","AEL-EL",2636.25,"PTX Atlas"]
["ARG,PV-FIX,AEL-EL,EFUELSYN,EFUELSYN","ARG","PV-FIX","AEL-EL","EFUELSYN","EFUELSYN",6688,"PTX Atlas"]
["ARG,PV-FIX,AEL-EL,LOHC-CON,AEL-EL","ARG","PV-FIX","AEL-EL","LOHC-CON","AEL-EL",2544.1,"PTX Atlas"]
["ARG,PV-FIX,AEL-EL,LOHC-CON,LOHC-CON","ARG","PV-FIX","AEL-EL","LOHC-CON","LOHC-CON",2544.1,"PTX Atlas"]
["ARG,PV-FIX,AEL-EL,LOHC-CON,LOHC-REC","ARG","PV-FIX","AEL-EL","LOHC-CON","LOHC-REC",6657.5999999999995,"öko"]
["ARG,PV-FIX,AEL-EL,NH3SYN,AEL-EL","ARG","PV-FIX","AEL-EL","NH3SYN","AEL-EL",2557.4,"PTX Atlas"]
["ARG,PV-FIX,AEL-EL,NH3SYN,NH3-REC","ARG","PV-FIX","AEL-EL","NH3SYN","NH3-REC",6657.5999999999995,"öko"]
["ARG,PV-FIX,AEL-EL,NH3SYN,NH3SYN","ARG","PV-FIX","AEL-EL","NH3SYN","NH3SYN",6580.65,"PTX Atlas"]
["ARG,PV-FIX,PEM-EL,,H2-COMP","ARG","PV-FIX","PEM-EL",null,"H2-COMP",7008]
["ARG,PV-FIX,PEM-EL,,H2-LIQ","ARG","PV-FIX","PEM-EL",null,"H2-LIQ",2729,"öko"]
["ARG,PV-FIX,PEM-EL,,H2-RGAS","ARG","PV-FIX","PEM-EL",null,"H2-RGAS",7008,"öko"]
["ARG,PV-FIX,PEM-EL,,PEM-EL","ARG","PV-FIX","PEM-EL",null,"PEM-EL",2678,"PTX Atlas"]
["ARG,PV-FIX,PEM-EL,CH3OHSYN,CH3OHREC","ARG","PV-FIX","PEM-EL","CH3OHSYN","CH3OHREC",7008,"öko"]
["ARG,PV-FIX,PEM-EL,CH3OHSYN,CH3OHSYN","ARG","PV-FIX","PEM-EL","CH3OHSYN","CH3OHSYN",7047,"PTX Atlas"]
["ARG,PV-FIX,PEM-EL,CH3OHSYN,PEM-EL","ARG","PV-FIX","PEM-EL","CH3OHSYN","PEM-EL",2794,"PTX Atlas"]
["ARG,PV-FIX,PEM-EL,CH4SYN,ATR","ARG","PV-FIX","PEM-EL","CH4SYN","ATR",7008]
["ARG,PV-FIX,PEM-EL,CH4SYN,CH4-LIQ","ARG","PV-FIX","PEM-EL","CH4SYN","CH4-LIQ",7053,"PTX Atlas"]
["ARG,PV-FIX,PEM-EL,CH4SYN,CH4-RGAS","ARG","PV-FIX","PEM-EL","CH4SYN","CH4-RGAS",7008,"öko"]
["ARG,PV-FIX,PEM-EL,CH4SYN,CH4SYN","ARG","PV-FIX","PEM-EL","CH4SYN","CH4SYN",7053,"PTX Atlas"]
["ARG,PV-FIX,PEM-EL,CH4SYN,PEM-EL","ARG","PV-FIX","PEM-EL","CH4SYN","PEM-EL",2765,"PTX Atlas"]
["ARG,PV-FIX,PEM-EL,DRI,DRI","ARG","PV-FIX","PEM-EL","DRI","DRI",7008,"öko"]
["ARG,PV-FIX,PEM-EL,DRI,PEM-EL","ARG","PV-FIX","PEM-EL","DRI","PEM-EL",2775,"PTX Atlas"]
["ARG,PV-FIX,PEM-EL,EFUELSYN,EFUELSYN","ARG","PV-FIX","PEM-EL","EFUELSYN","EFUELSYN",7040,"PTX Atlas"]
["ARG,PV-FIX,PEM-EL,EFUELSYN,PEM-EL","ARG","PV-FIX","PEM-EL","EFUELSYN","PEM-EL",2775,"PTX Atlas"]
["ARG,PV-FIX,PEM-EL,LOHC-CON,LOHC-CON","ARG","PV-FIX","PEM-EL","LOHC-CON","LOHC-CON",2678,"PTX Atlas"]
["ARG,PV-FIX,PEM-EL,LOHC-CON,LOHC-REC","ARG","PV-FIX","PEM-EL","LOHC-CON","LOHC-REC",7008,"öko"]
["ARG,PV-FIX,PEM-EL,LOHC-CON,PEM-EL","ARG","PV-FIX","PEM-EL","LOHC-CON","PEM-EL",2678,"PTX Atlas"]
["ARG,PV-FIX,PEM-EL,NH3SYN,NH3-REC","ARG","PV-FIX","PEM-EL","NH3SYN","NH3-REC",7008,"öko"]
["ARG,PV-FIX,PEM-EL,NH3SYN,NH3SYN","ARG","PV-FIX","PEM-EL","NH3SYN","NH3SYN",6927,"PTX Atlas"]
["ARG,PV-FIX,PEM-EL,NH3SYN,PEM-EL","ARG","PV-FIX","PEM-EL","NH3SYN","PEM-EL",2692,"PTX Atlas"]
["ARG,PV-FIX,SOEC-EL,,H2-COMP","ARG","PV-FIX","SOEC-EL",null,"H2-COMP",7008]
["ARG,PV-FIX,SOEC-EL,,H2-LIQ","ARG","PV-FIX","SOEC-EL",null,"H2-LIQ",2701,"öko"]
["ARG,PV-FIX,SOEC-EL,,H2-RGAS","ARG","PV-FIX","SOEC-EL",null,"H2-RGAS",7008,"öko"]
["ARG,PV-FIX,SOEC-EL,,SOEC-EL","ARG","PV-FIX","SOEC-EL",null,"SOEC-EL",2643,"PTX Atlas"]
["ARG,PV-FIX,SOEC-EL,CH3OHSYN,CH3OHREC","ARG","PV-FIX","SOEC-EL","CH3OHSYN","CH3OHREC",7008,"öko"]
["ARG,PV-FIX,SOEC-EL,CH3OHSYN,CH3OHSYN","ARG","PV-FIX","SOEC-EL","CH3OHSYN","CH3OHSYN",6294,"PTX Atlas"]
["ARG,PV-FIX,SOEC-EL,CH3OHSYN,SOEC-EL","ARG","PV-FIX","SOEC-EL","CH3OHSYN","SOEC-EL",6294,"PTX Atlas"]
["ARG,PV-FIX,SOEC-EL,CH4SYN,ATR","ARG","PV-FIX","SOEC-EL","CH4SYN","ATR",7008]
["ARG,PV-FIX,SOEC-EL,CH4SYN,CH4-LIQ","ARG","PV-FIX","SOEC-EL","CH4SYN","CH4-LIQ",6049,"PTX Atlas"]
["ARG,PV-FIX,SOEC-EL,CH4SYN,CH4-RGAS","ARG","PV-FIX","SOEC-EL","CH4SYN","CH4-RGAS",7008,"öko"]
["ARG,PV-FIX,SOEC-EL,CH4SYN,CH4SYN","ARG","PV-FIX","SOEC-EL","CH4SYN","CH4SYN",6049,"PTX Atlas"]
["ARG,PV-FIX,SOEC-EL,CH4SYN,SOEC-EL","ARG","PV-FIX","SOEC-EL","CH4SYN","SOEC-EL",6049,"PTX Atlas"]
["ARG,PV-FIX,SOEC-EL,DRI,DRI","ARG","PV-FIX","SOEC-EL","DRI","DRI",7008,"öko"]
["ARG,PV-FIX,SOEC-EL,DRI,SOEC-EL","ARG","PV-FIX","SOEC-EL","DRI","SOEC-EL",6722,"PTX Atlas"]
["ARG,PV-FIX,SOEC-EL,EFUELSYN,EFUELSYN","ARG","PV-FIX","SOEC-EL","EFUELSYN","EFUELSYN",6722,"PTX Atlas"]
["ARG,PV-FIX,SOEC-EL,EFUELSYN,SOEC-EL","ARG","PV-FIX","SOEC-EL","EFUELSYN","SOEC-EL",6722,"PTX Atlas"]
["ARG,PV-FIX,SOEC-EL,LOHC-CON,LOHC-CON","ARG","PV-FIX","SOEC-EL","LOHC-CON","LOHC-CON",2643,"PTX Atlas"]
["ARG,PV-FIX,SOEC-EL,LOHC-CON,LOHC-REC","ARG","PV-FIX","SOEC-EL","LOHC-CON","LOHC-REC",7008,"öko"]
["ARG,PV-FIX,SOEC-EL,LOHC-CON,SOEC-EL","ARG","PV-FIX","SOEC-EL","LOHC-CON","SOEC-EL",2643,"PTX Atlas"]
["ARG,PV-FIX,SOEC-EL,NH3SYN,NH3-REC","ARG","PV-FIX","SOEC-EL","NH3SYN","NH3-REC",7008,"öko"]
["ARG,PV-FIX,SOEC-EL,NH3SYN,NH3SYN","ARG","PV-FIX","SOEC-EL","NH3SYN","NH3SYN",4013,"PTX Atlas"]
["ARG,PV-FIX,SOEC-EL,NH3SYN,SOEC-EL","ARG","PV-FIX","SOEC-EL","NH3SYN","SOEC-EL",4013,"PTX Atlas"]
["ARG,PV-TRK,AEL-EL,,H2-COMP","ARG","PV-TRK","AEL-EL",null,"H2-COMP",6657.5999999999995]
["ARG,PV-TRK,AEL-EL,,H2-RGAS","ARG","PV-TRK","AEL-EL",null,"H2-RGAS",6657.5999999999995,"öko"]
["ARG,PV-TRK,AEL-EL,CH3OHSYN,CH3OHREC","ARG","PV-TRK","AEL-EL","CH3OHSYN","CH3OHREC",6657.5999999999995,"öko"]
["ARG,PV-TRK,AEL-EL,CH4SYN,ATR","ARG","PV-TRK","AEL-EL","CH4SYN","ATR",6657.5999999999995]
["ARG,PV-TRK,AEL-EL,CH4SYN,CH4-RGAS","ARG","PV-TRK","AEL-EL","CH4SYN","CH4-RGAS",6657.5999999999995,"öko"]
["ARG,PV-TRK,AEL-EL,DRI,DRI","ARG","PV-TRK","AEL-EL","DRI","DRI",6657.5999999999995,"öko"]
["ARG,PV-TRK,AEL-EL,LOHC-CON,LOHC-REC","ARG","PV-TRK","AEL-EL","LOHC-CON","LOHC-REC",6657.5999999999995,"öko"]
["ARG,PV-TRK,AEL-EL,NH3SYN,NH3-REC","ARG","PV-TRK","AEL-EL","NH3SYN","NH3-REC",6657.5999999999995,"öko"]
["ARG,PV-TRK,PEM-EL,,H2-COMP","ARG","PV-TRK","PEM-EL",null,"H2-COMP",7008]
["ARG,PV-TRK,PEM-EL,,H2-RGAS","ARG","PV-TRK","PEM-EL",null,"H2-RGAS",7008,"öko"]
["ARG,PV-TRK,PEM-EL,CH3OHSYN,CH3OHREC","ARG","PV-TRK","PEM-EL","CH3OHSYN","CH3OHREC",7008,"öko"]
["ARG,PV-TRK,PEM-EL,CH4SYN,ATR","ARG","PV-TRK","PEM-EL","CH4SYN","ATR",7008]
["ARG,PV-TRK,PEM-EL,CH4SYN,CH4-RGAS","ARG","PV-TRK","PEM-EL","CH4SYN","CH4-RGAS",7008,"öko"]
["ARG,PV-TRK,PEM-EL,DRI,DRI","ARG","PV-TRK","PEM-EL","DRI","DRI",7008,"öko"]
["ARG,PV-TRK,PEM-EL,LOHC-CON,LOHC-REC","ARG","PV-TRK","PEM-EL","LOHC-CON","LOHC-REC",7008,"öko"]
["ARG,PV-TRK,PEM-EL,NH3SYN,NH3-REC","ARG","PV-TRK","PEM-EL","NH3SYN","NH3-REC",7008,"öko"]
["ARG,PV-TRK,SOEC-EL,,H2-COMP","ARG","PV-TRK","SOEC-EL",null,"H2-COMP",7008]
["ARG,PV-TRK,SOEC-EL,,H2-RGAS","ARG","PV-TRK","SOEC-EL",null,"H2-RGAS",7008,"öko"]
["ARG,PV-TRK,SOEC-EL,CH3OHSYN,CH3OHREC","ARG","PV-TRK","SOEC-EL","CH3OHSYN","CH3OHREC",7008,"öko"]
["ARG,PV-TRK,SOEC-EL,CH4SYN,ATR","ARG","PV-TRK","SOEC-EL","CH4SYN","ATR",7008]
["ARG,PV-TRK,SOEC-EL,CH4SYN,CH4-RGAS","ARG","PV-TRK","SOEC-EL","CH4SYN","CH4-RGAS",7008,"öko"]
["ARG,PV-TRK,SOEC-EL,DRI,DRI","ARG","PV-TRK","SOEC-EL","DRI","DRI",7008,"öko"]
["ARG,PV-TRK,SOEC-EL,LOHC-CON,LOHC-REC","ARG","PV-TRK","SOEC-EL","LOHC-CON","LOHC-REC",7008,"öko"]
["ARG,PV-TRK,SOEC-EL,NH3SYN,NH3-REC","ARG","PV-TRK","SOEC-EL","NH3SYN","NH3-REC",7008,"öko"]
["ARG,RES-HYBR,AEL-EL,,AEL-EL","ARG","RES-HYBR","AEL-EL",null,"AEL-EL",5785.0249999999996,"PTX Atlas"]
["ARG,RES-HYBR,AEL-EL,,H2-COMP","ARG","RES-HYBR","AEL-EL",null,"H2-COMP",6657.5999999999995]
["ARG,RES-HYBR,AEL-EL,,H2-LIQ","ARG","RES-HYBR","AEL-EL",null,"H2-LIQ",5989.75,"öko"]
["ARG,RES-HYBR,AEL-EL,,H2-RGAS","ARG","RES-HYBR","AEL-EL",null,"H2-RGAS",6657.5999999999995,"öko"]
["ARG,RES-HYBR,AEL-EL,CH3OHSYN,AEL-EL","ARG","RES-HYBR","AEL-EL","CH3OHSYN","AEL-EL",6254.7999999999993,"PTX Atlas"]
["ARG,RES-HYBR,AEL-EL,CH3OHSYN,CH3OHREC","ARG","RES-HYBR","AEL-EL","CH3OHSYN","CH3OHREC",6657.5999999999995,"öko"]
["ARG,RES-HYBR,AEL-EL,CH3OHSYN,CH3OHSYN","ARG","RES-HYBR","AEL-EL","CH3OHSYN","CH3OHSYN",6633.375,"PTX Atlas"]
["ARG,RES-HYBR,AEL-EL,CH4SYN,AEL-EL","ARG","RES-HYBR","AEL-EL","CH4SYN","AEL-EL",6151.7249999999995,"PTX Atlas"]
["ARG,RES-HYBR,AEL-EL,CH4SYN,ATR","ARG","RES-HYBR","AEL-EL","CH4SYN","ATR",6657.5999999999995]
["ARG,RES-HYBR,AEL-EL,CH4SYN,CH4-LIQ","ARG","RES-HYBR","AEL-EL","CH4SYN","CH4-LIQ",6652.8499999999995,"PTX Atlas"]
["ARG,RES-HYBR,AEL-EL,CH4SYN,CH4-RGAS","ARG","RES-HYBR","AEL-EL","CH4SYN","CH4-RGAS",6657.5999999999995,"öko"]
["ARG,RES-HYBR,AEL-EL,CH4SYN,CH4SYN","ARG","RES-HYBR","AEL-EL","CH4SYN","CH4SYN",6652.8499999999995,"PTX Atlas"]
["ARG,RES-HYBR,AEL-EL,DRI,AEL-EL","ARG","RES-HYBR","AEL-EL","DRI","AEL-EL",6220.5999999999995,"PTX Atlas"]
["ARG,RES-HYBR,AEL-EL,DRI,DRI","ARG","RES-HYBR","AEL-EL","DRI","DRI",6657.5999999999995,"öko"]
["ARG,RES-HYBR,AEL-EL,EFUELSYN,AEL-EL","ARG","RES-HYBR","AEL-EL","EFUELSYN","AEL-EL",6220.5999999999995,"PTX Atlas"]
["ARG,RES-HYBR,AEL-EL,EFUELSYN,EFUELSYN","ARG","RES-HYBR","AEL-EL","EFUELSYN","EFUELSYN",6615.7999999999993,"PTX Atlas"]
["ARG,RES-HYBR,AEL-EL,LOHC-CON,AEL-EL","ARG","RES-HYBR","AEL-EL","LOHC-CON","AEL-EL",5785.0249999999996,"PTX Atlas"]
["ARG,RES-HYBR,AEL-EL,LOHC-CON,LOHC-CON","ARG","RES-HYBR","AEL-EL","LOHC-CON","LOHC-CON",5785.0249999999996,"PTX Atlas"]
["ARG,RES-HYBR,AEL-EL,LOHC-CON,LOHC-REC","ARG","RES-HYBR","AEL-EL","LOHC-CON","LOHC-REC",6657.5999999999995,"öko"]
["ARG,RES-HYBR,AEL-EL,NH3SYN,AEL-EL","ARG","RES-HYBR","AEL-EL","NH3SYN","AEL-EL",6019.6749999999993,"PTX Atlas"]
["ARG,RES-HYBR,AEL-EL,NH3SYN,NH3-REC","ARG","RES-HYBR","AEL-EL","NH3SYN","NH3-REC",6657.5999999999995,"öko"]
["ARG,RES-HYBR,AEL-EL,NH3SYN,NH3SYN","ARG","RES-HYBR","AEL-EL","NH3SYN","NH3SYN",6209.6749999999993,"PTX Atlas"]
["ARG,RES-HYBR,PEM-EL,,H2-COMP","ARG","RES-HYBR","PEM-EL",null,"H2-COMP",7008]
["ARG,RES-HYBR,PEM-EL,,H2-LIQ","ARG","RES-HYBR","PEM-EL",null,"H2-LIQ",6305,"öko"]
["ARG,RES-HYBR,PEM-EL,,H2-RGAS","ARG","RES-HYBR","PEM-EL",null,"H2-RGAS",7008,"öko"]
["ARG,RES-HYBR,PEM-EL,,PEM-EL","ARG","RES-HYBR","PEM-EL",null,"PEM-EL",6089.5,"PTX Atlas"]
["ARG,RES-HYBR,PEM-EL,CH3OHSYN,CH3OHREC","ARG","RES-HYBR","PEM-EL","CH3OHSYN","CH3OHREC",7008,"öko"]
["ARG,RES-HYBR,PEM-EL,CH3OHSYN,CH3OHSYN","ARG","RES-HYBR","PEM-EL","CH3OHSYN","CH3OHSYN",6982.5,"PTX Atlas"]
["ARG,RES-HYBR,PEM-EL,CH3OHSYN,PEM-EL","ARG","RES-HYBR","PEM-EL","CH3OHSYN","PEM-EL",6584,"PTX Atlas"]
["ARG,RES-HYBR,PEM-EL,CH4SYN,ATR","ARG","RES-HYBR","PEM-EL","CH4SYN","ATR",7008]
["ARG,RES-HYBR,PEM-EL,CH4SYN,CH4-LIQ","ARG","RES-HYBR","PEM-EL","CH4SYN","CH4-LIQ",7003,"PTX Atlas"]
["ARG,RES-HYBR,PEM-EL,CH4SYN,CH4-RGAS","ARG","RES-HYBR","PEM-EL","CH4SYN","CH4-RGAS",7008,"öko"]
["ARG,RES-HYBR,PEM-EL,CH4SYN,CH4SYN","ARG","RES-HYBR","PEM-EL","CH4SYN","CH4SYN",7003,"PTX Atlas"]
["ARG,RES-HYBR,PEM-EL,CH4SYN,PEM-EL","ARG","RES-HYBR","PEM-EL","CH4SYN","PEM-EL",6475.5,"PTX Atlas"]
["ARG,RES-HYBR,PEM-EL,DRI,DRI","ARG","RES-HYBR","PEM-EL","DRI","DRI",7008,"öko"]
["ARG,RES-HYBR,PEM-EL,DRI,PEM-EL","ARG","RES-HYBR","PEM-EL","DRI","PEM-EL",6548,"PTX Atlas"]
["ARG,RES-HYBR,PEM-EL,EFUELSYN,EFUELSYN","ARG","RES-HYBR","PEM-EL","EFUELSYN","EFUELSYN",6964,"PTX Atlas"]
["ARG,RES-HYBR,PEM-EL,EFUELSYN,PEM-EL","ARG","RES-HYBR","PEM-EL","EFUELSYN","PEM-EL",6548,"PTX Atlas"]
["ARG,RES-HYBR,PEM-EL,LOHC-CON,LOHC-CON","ARG","RES-HYBR","PEM-EL","LOHC-CON","LOHC-CON",6089.5,"PTX Atlas"]
["ARG,RES-HYBR,PEM-EL,LOHC-CON,LOHC-REC","ARG","RES-HYBR","PEM-EL","LOHC-CON","LOHC-REC",7008,"öko"]
["ARG,RES-HYBR,PEM-EL,LOHC-CON,PEM-EL","ARG","RES-HYBR","PEM-EL","LOHC-CON","PEM-EL",6089.5,"PTX Atlas"]
["ARG,RES-HYBR,PEM-EL,NH3SYN,NH3-REC","ARG","RES-HYBR","PEM-EL","NH3SYN","NH3-REC",7008,"öko"]
["ARG,RES-HYBR,PEM-EL,NH3SYN,NH3SYN","ARG","RES-HYBR","PEM-EL","NH3SYN","NH3SYN",6536.5,"PTX Atlas"]
["ARG,RES-HYBR,PEM-EL,NH3SYN,PEM-EL","ARG","RES-HYBR","PEM-EL","NH3SYN","PEM-EL",6336.5,"PTX Atlas"]
["ARG,RES-HYBR,SOEC-EL,,H2-COMP","ARG","RES-HYBR","SOEC-EL",null,"H2-COMP",7008]
["ARG,RES-HYBR,SOEC-EL,,H2-LIQ","ARG","RES-HYBR","SOEC-EL",null,"H2-LIQ",6246.5,"öko"]
["ARG,RES-HYBR,SOEC-EL,,H2-RGAS","ARG","RES-HYBR","SOEC-EL",null,"H2-RGAS",7008,"öko"]
["ARG,RES-HYBR,SOEC-EL,,SOEC-EL","ARG","RES-HYBR","SOEC-EL",null,"SOEC-EL",6028.5,"PTX Atlas"]
["ARG,RES-HYBR,SOEC-EL,CH3OHSYN,CH3OHREC","ARG","RES-HYBR","SOEC-EL","CH3OHSYN","CH3OHREC",7008,"öko"]
["ARG,RES-HYBR,SOEC-EL,CH3OHSYN,CH3OHSYN","ARG","RES-HYBR","SOEC-EL","CH3OHSYN","CH3OHSYN",6723.5,"PTX Atlas"]
["ARG,RES-HYBR,SOEC-EL,CH3OHSYN,SOEC-EL","ARG","RES-HYBR","SOEC-EL","CH3OHSYN","SOEC-EL",6723.5,"PTX Atlas"]
["ARG,RES-HYBR,SOEC-EL,CH4SYN,ATR","ARG","RES-HYBR","SOEC-EL","CH4SYN","ATR",7008]
["ARG,RES-HYBR,SOEC-EL,CH4SYN,CH4-LIQ","ARG","RES-HYBR","SOEC-EL","CH4SYN","CH4-LIQ",6723,"PTX Atlas"]
["ARG,RES-HYBR,SOEC-EL,CH4SYN,CH4-RGAS","ARG","RES-HYBR","SOEC-EL","CH4SYN","CH4-RGAS",7008,"öko"]
["ARG,RES-HYBR,SOEC-EL,CH4SYN,CH4SYN","ARG","RES-HYBR","SOEC-EL","CH4SYN","CH4SYN",6723,"PTX Atlas"]
["ARG,RES-HYBR,SOEC-EL,CH4SYN,SOEC-EL","ARG","RES-HYBR","SOEC-EL","CH4SYN","SOEC-EL",6723,"PTX Atlas"]
["ARG,RES-HYBR,SOEC-EL,DRI,DRI","ARG","RES-HYBR","SOEC-EL","DRI","DRI",7008,"öko"]
["ARG,RES-HYBR,SOEC-EL,DRI,SOEC-EL","ARG","RES-HYBR","SOEC-EL","DRI","SOEC-EL",6732.5,"PTX Atlas"]
["ARG,RES-HYBR,SOEC-EL,EFUELSYN,EFUELSYN","ARG","RES-HYBR","SOEC-EL","EFUELSYN","EFUELSYN",6732.5,"PTX Atlas"]
["ARG,RES-HYBR,SOEC-EL,EFUELSYN,SOEC-EL","ARG","RES-HYBR","SOEC-EL","EFUELSYN","SOEC-EL",6732.5,"PTX Atlas"]
["ARG,RES-HYBR,SOEC-EL,LOHC-CON,LOHC-CON","ARG","RES-HYBR","SOEC-EL","LOHC-CON","LOHC-CON",6028.5,"PTX Atlas"]
["ARG,RES-HYBR,SOEC-EL,LOHC-CON,LOHC-REC","ARG","RES-HYBR","SOEC-EL","LOHC-CON","LOHC-REC",7008,"öko"]
["ARG,RES-HYBR,SOEC-EL,LOHC-CON,SOEC-EL","ARG","RES-HYBR","SOEC-EL","LOHC-CON","SOEC-EL",6028.5,"PTX Atlas"]
["ARG,RES-HYBR,SOEC-EL,NH3SYN,NH3-REC","ARG","RES-HYBR","SOEC-EL","NH3SYN","NH3-REC",7008,"öko"]
["ARG,RES-HYBR,SOEC-EL,NH3SYN,NH3SYN","ARG","RES-HYBR","SOEC-EL","NH3SYN","NH3SYN",6384.5,"PTX Atlas"]
["ARG,RES-HYBR,SOEC-EL,NH3SYN,SOEC-EL","ARG","RES-HYBR","SOEC-EL","NH3SYN","SOEC-EL",6384.5,"PTX Atlas"]
["ARG,WIND-OFF,AEL-EL,,AEL-EL","ARG","WIND-OFF","AEL-EL",null,"AEL-EL",5767.45,"PTX Atlas"]
["ARG,WIND-OFF,AEL-EL,,H2-COMP","ARG","WIND-OFF","AEL-EL",null,"H2-COMP",6657.5999999999995]
["ARG,WIND-OFF,AEL-EL,,H2-LIQ","ARG","WIND-OFF","AEL-EL",null,"H2-LIQ",5902.3499999999995,"öko"]
["ARG,WIND-OFF,AEL-EL,,H2-RGAS","ARG","WIND-OFF","AEL-EL",null,"H2-RGAS",6657.5999999999995,"öko"]
["ARG,WIND-OFF,AEL-EL,CH3OHSYN,AEL-EL","ARG","WIND-OFF","AEL-EL","CH3OHSYN","AEL-EL",6121.3249999999998,"PTX Atlas"]
["ARG,WIND-OFF,AEL-EL,CH3OHSYN,CH3OHREC","ARG","WIND-OFF","AEL-EL","CH3OHSYN","CH3OHREC",6657.5999999999995,"öko"]
["ARG,WIND-OFF,AEL-EL,CH3OHSYN,CH3OHSYN","ARG","WIND-OFF","AEL-EL","CH3OHSYN","CH3OHSYN",6163.125,"PTX Atlas"]
["ARG,WIND-OFF,AEL-EL,CH4SYN,AEL-EL","ARG","WIND-OFF","AEL-EL","CH4SYN","AEL-EL",6048.65,"PTX Atlas"]
["ARG,WIND-OFF,AEL-EL,CH4SYN,ATR","ARG","WIND-OFF","AEL-EL","CH4SYN","ATR",6657.5999999999995]
["ARG,WIND-OFF,AEL-EL,CH4SYN,CH4-LIQ","ARG","WIND-OFF","AEL-EL","CH4SYN","CH4-LIQ",6134.15,"PTX Atlas"]
["ARG,WIND-OFF,AEL-EL,CH4SYN,CH4-RGAS","ARG","WIND-OFF","AEL-EL","CH4SYN","CH4-RGAS",6657.5999999999995,"öko"]
["ARG,WIND-OFF,AEL-EL,CH4SYN,CH4SYN","ARG","WIND-OFF","AEL-EL","CH4SYN","CH4SYN",6134.15,"PTX Atlas"]
["ARG,WIND-OFF,AEL-EL,DRI,AEL-EL","ARG","WIND-OFF","AEL-EL","DRI","AEL-EL",6089.0249999999996,"PTX Atlas"]
["ARG,WIND-OFF,AEL-EL,DRI,DRI","ARG","WIND-OFF","AEL-EL","DRI","DRI",6657.5999999999995,"öko"]
["ARG,WIND-OFF,AEL-EL,EFUELSYN,AEL-EL","ARG","WIND-OFF","AEL-EL","EFUELSYN","AEL-EL",6089.0249999999996,"PTX Atlas"]
["ARG,WIND-OFF,AEL-EL,EFUELSYN,EFUELSYN","ARG","WIND-OFF","AEL-EL","EFUELSYN","EFUELSYN",6138.9,"PTX Atlas"]
["ARG,WIND-OFF,AEL-EL,LOHC-CON,AEL-EL","ARG","WIND-OFF","AEL-EL","LOHC-CON","AEL-EL",5767.45,"PTX Atlas"]
["ARG,WIND-OFF,AEL-EL,LOHC-CON,LOHC-CON","ARG","WIND-OFF","AEL-EL","LOHC-CON","LOHC-CON",5767.45,"PTX Atlas"]
["ARG,WIND-OFF,AEL-EL,LOHC-CON,LOHC-REC","ARG","WIND-OFF","AEL-EL","LOHC-CON","LOHC-REC",6657.5999999999995,"öko"]
["ARG,WIND-OFF,AEL-EL,NH3SYN,AEL-EL","ARG","WIND-OFF","AEL-EL","NH3SYN","AEL-EL",5899.0249999999996,"PTX Atlas"]
["ARG,WIND-OFF,AEL-EL,NH3SYN,NH3-REC","ARG","WIND-OFF","AEL-EL","NH3SYN","NH3-REC",6657.5999999999995,"öko"]
["ARG,WIND-OFF,AEL-EL,NH3SYN,NH3SYN","ARG","WIND-OFF","AEL-EL","NH3SYN","NH3SYN",5923.7249999999995,"PTX Atlas"]
["ARG,WIND-OFF,PEM-EL,,H2-COMP","ARG","WIND-OFF","PEM-EL",null,"H2-COMP",7008]
["ARG,WIND-OFF,PEM-EL,,H2-LIQ","ARG","WIND-OFF","PEM-EL",null,"H2-LIQ",6213,"öko"]
["ARG,WIND-OFF,PEM-EL,,H2-RGAS","ARG","WIND-OFF","PEM-EL",null,"H2-RGAS",7008,"öko"]
["ARG,WIND-OFF,PEM-EL,,PEM-EL","ARG","WIND-OFF","PEM-EL",null,"PEM-EL",6071,"PTX Atlas"]
["ARG,WIND-OFF,PEM-EL,CH3OHSYN,CH3OHREC","ARG","WIND-OFF","PEM-EL","CH3OHSYN","CH3OHREC",7008,"öko"]
["ARG,WIND-OFF,PEM-EL,CH3OHSYN,CH3OHSYN","ARG","WIND-OFF","PEM-EL","CH3OHSYN","CH3OHSYN",6487.5,"PTX Atlas"]
["ARG,WIND-OFF,PEM-EL,CH3OHSYN,PEM-EL","ARG","WIND-OFF","PEM-EL","CH3OHSYN","PEM-EL",6443.5,"PTX Atlas"]
["ARG,WIND-OFF,PEM-EL,CH4SYN,ATR","ARG","WIND-OFF","PEM-EL","CH4SYN","ATR",7008]
["ARG,WIND-OFF,PEM-EL,CH4SYN,CH4-LIQ","ARG","WIND-OFF","PEM-EL","CH4SYN","CH4-LIQ",6457,"PTX Atlas"]
["ARG,WIND-OFF,PEM-EL,CH4SYN,CH4-RGAS","ARG","WIND-OFF","PEM-EL","CH4SYN","CH4-RGAS",7008,"öko"]
["ARG,WIND-OFF,PEM-EL,CH4SYN,CH4SYN","ARG","WIND-OFF","PEM-EL","CH4SYN","CH4SYN",6457,"PTX Atlas"]
["ARG,WIND-OFF,PEM-EL,CH4SYN,PEM-EL","ARG","WIND-OFF","PEM-EL","CH4SYN","PEM-EL",6367,"PTX Atlas"]
["ARG,WIND-OFF,PEM-EL,DRI,DRI","ARG","WIND-OFF","PEM-EL","DRI","DRI",7008,"öko"]
["ARG,WIND-OFF,PEM-EL,DRI,PEM-EL","ARG","WIND-OFF","PEM-EL","DRI","PEM-EL",6409.5,"PTX Atlas"]
["ARG,WIND-OFF,PEM-EL,EFUELSYN,EFUELSYN","ARG","WIND-OFF","PEM-EL","EFUELSYN","EFUELSYN",6462,"PTX Atlas"]
["ARG,WIND-OFF,PEM-EL,EFUELSYN,PEM-EL","ARG","WIND-OFF","PEM-EL","EFUELSYN","PEM-EL",6409.5,"PTX Atlas"]
["ARG,WIND-OFF,PEM-EL,LOHC-CON,LOHC-CON","ARG","WIND-OFF","PEM-EL","LOHC-CON","LOHC-CON",6071,"PTX Atlas"]
["ARG,WIND-OFF,PEM-EL,LOHC-CON,LOHC-REC","ARG","WIND-OFF","PEM-EL","LOHC-CON","LOHC-REC",7008,"öko"]
["ARG,WIND-OFF,PEM-EL,LOHC-CON,PEM-EL","ARG","WIND-OFF","PEM-EL","LOHC-CON","PEM-EL",6071,"PTX Atlas"]
["ARG,WIND-OFF,PEM-EL,NH3SYN,NH3-REC","ARG","WIND-OFF","PEM-EL","NH3SYN","NH3-REC",7008,"öko"]
["ARG,WIND-OFF,PEM-EL,NH3SYN,NH3SYN","ARG","WIND-OFF","PEM-EL","NH3SYN","NH3SYN",6235.5,"PTX Atlas"]
["ARG,WIND-OFF,PEM-EL,NH3SYN,PEM-EL","ARG","WIND-OFF","PEM-EL","NH3SYN","PEM-EL",6209.5,"PTX Atlas"]
["ARG,WIND-OFF,SOEC-EL,,H2-COMP","ARG","WIND-OFF","SOEC-EL",null,"H2-COMP",7008]
["ARG,WIND-OFF,SOEC-EL,,H2-LIQ","ARG","WIND-OFF","SOEC-EL",null,"H2-LIQ",6181.5,"öko"]
["ARG,WIND-OFF,SOEC-EL,,H2-RGAS","ARG","WIND-OFF","SOEC-EL",null,"H2-RGAS",7008,"öko"]
["ARG,WIND-OFF,SOEC-EL,,SOEC-EL","ARG","WIND-OFF","SOEC-EL",null,"SOEC-EL",6047,"PTX Atlas"]
["ARG,WIND-OFF,SOEC-EL,CH3OHSYN,CH3OHREC","ARG","WIND-OFF","SOEC-EL","CH3OHSYN","CH3OHREC",7008,"öko"]
["ARG,WIND-OFF,SOEC-EL,CH3OHSYN,CH3OHSYN","ARG","WIND-OFF","SOEC-EL","CH3OHSYN","CH3OHSYN",6472.5,"PTX Atlas"]
["ARG,WIND-OFF,SOEC-EL,CH3OHSYN,SOEC-EL","ARG","WIND-OFF","SOEC-EL","CH3OHSYN","SOEC-EL",6472.5,"PTX Atlas"]
["ARG,WIND-OFF,SOEC-EL,CH4SYN,ATR","ARG","WIND-OFF","SOEC-EL","CH4SYN","ATR",7008]
["ARG,WIND-OFF,SOEC-EL,CH4SYN,CH4-LIQ","ARG","WIND-OFF","SOEC-EL","CH4SYN","CH4-LIQ",6465.5,"PTX Atlas"]
["ARG,WIND-OFF,SOEC-EL,CH4SYN,CH4-RGAS","ARG","WIND-OFF","SOEC-EL","CH4SYN","CH4-RGAS",7008,"öko"]
["ARG,WIND-OFF,SOEC-EL,CH4SYN,CH4SYN","ARG","WIND-OFF","SOEC-EL","CH4SYN","CH4SYN",6465.5,"PTX Atlas"]
["ARG,WIND-OFF,SOEC-EL,CH4SYN,SOEC-EL","ARG","WIND-OFF","SOEC-EL","CH4SYN","SOEC-EL",6465.5,"PTX Atlas"]
["ARG,WIND-OFF,SOEC-EL,DRI,DRI","ARG","WIND-OFF","SOEC-EL","DRI","DRI",7008,"öko"]
["ARG,WIND-OFF,SOEC-EL,DRI,SOEC-EL","ARG","WIND-OFF","SOEC-EL","DRI","SOEC-EL",6478.5,"PTX Atlas"]
["ARG,WIND-OFF,SOEC-EL,EFUELSYN,EFUELSYN","ARG","WIND-OFF","SOEC-EL","EFUELSYN","EFUELSYN",6478.5,"PTX Atlas"]
["ARG,WIND-OFF,SOEC-EL,EFUELSYN,SOEC-EL","ARG","WIND-OFF","SOEC-EL","EFUELSYN","SOEC-EL",6478.5,"PTX Atlas"]
["ARG,WIND-OFF,SOEC-EL,LOHC-CON,LOHC-CON","ARG","WIND-OFF","SOEC-EL","LOHC-CON","LOHC-CON",6047,"PTX Atlas"]
["ARG,WIND-OFF,SOEC-EL,LOHC-CON,LOHC-REC","ARG","WIND-OFF","SOEC-EL","LOHC-CON","LOHC-REC",7008,"öko"]
["ARG,WIND-OFF,SOEC-EL,LOHC-CON,SOEC-EL","ARG","WIND-OFF","SOEC-EL","LOHC-CON","SOEC-EL",6047,"PTX Atlas"]
["ARG,WIND-OFF,SOEC-EL,NH3SYN,NH3-REC","ARG","WIND-OFF","SOEC-EL","NH3SYN","NH3-REC",7008,"öko"]
["ARG,WIND-OFF,SOEC-EL,NH3SYN,NH3SYN","ARG","WIND-OFF","SOEC-EL","NH3SYN","NH3SYN",6215.5,"PTX Atlas"]
["ARG,WIND-OFF,SOEC-EL,NH3SYN,SOEC-EL","ARG","WIND-OFF","SOEC-EL","NH3SYN","SOEC-EL",6215.5,"PTX Atlas"]
["ARG,WIND-ON,AEL-EL,,AEL-EL","ARG","WIND-ON","AEL-EL",null,"AEL-EL",5767.45,"PTX Atlas"]
["ARG,WIND-ON,AEL-EL,,H2-COMP","ARG","WIND-ON","AEL-EL",null,"H2-COMP",6657.5999999999995]
["ARG,WIND-ON,AEL-EL,,H2-LIQ","ARG","WIND-ON","AEL-EL",null,"H2-LIQ",5902.3499999999995,"öko"]
["ARG,WIND-ON,AEL-EL,,H2-RGAS","ARG","WIND-ON","AEL-EL",null,"H2-RGAS",6657.5999999999995,"öko"]
["ARG,WIND-ON,AEL-EL,CH3OHSYN,AEL-EL","ARG","WIND-ON","AEL-EL","CH3OHSYN","AEL-EL",6121.3249999999998,"PTX Atlas"]
["ARG,WIND-ON,AEL-EL,CH3OHSYN,CH3OHREC","ARG","WIND-ON","AEL-EL","CH3OHSYN","CH3OHREC",6657.5999999999995,"öko"]
["ARG,WIND-ON,AEL-EL,CH3OHSYN,CH3OHSYN","ARG","WIND-ON","AEL-EL","CH3OHSYN","CH3OHSYN",6163.125,"PTX Atlas"]
["ARG,WIND-ON,AEL-EL,CH4SYN,AEL-EL","ARG","WIND-ON","AEL-EL","CH4SYN","AEL-EL",6048.65,"PTX Atlas"]
["ARG,WIND-ON,AEL-EL,CH4SYN,ATR","ARG","WIND-ON","AEL-EL","CH4SYN","ATR",6657.5999999999995]
["ARG,WIND-ON,AEL-EL,CH4SYN,CH4-LIQ","ARG","WIND-ON","AEL-EL","CH4SYN","CH4-LIQ",6134.15,"PTX Atlas"]
["ARG,WIND-ON,AEL-EL,CH4SYN,CH4-RGAS","ARG","WIND-ON","AEL-EL","CH4SYN","CH4-RGAS",6657.5999999999995,"öko"]
["ARG,WIND-ON,AEL-EL,CH4SYN,CH4SYN","ARG","WIND-ON","AEL-EL","CH4SYN","CH4SYN",6134.15,"PTX Atlas"]
["ARG,WIND-ON,AEL-EL,DRI,AEL-EL","ARG","WIND-ON","AEL-EL","DRI","AEL-EL",6089.0249999999996,"PTX Atlas"]
["ARG,WIND-ON,AEL-EL,DRI,DRI","ARG","WIND-ON","AEL-EL","DRI","DRI",6657.5999999999995,"öko"]
["ARG,WIND-ON,AEL-EL,EFUELSYN,AEL-EL","ARG","WIND-ON","AEL-EL","EFUELSYN","AEL-EL",6089.0249999999996,"PTX Atlas"]
["ARG,WIND-ON,AEL-EL,EFUELSYN,EFUELSYN","ARG","WIND-ON","AEL-EL","EFUELSYN","EFUELSYN",6138.9,"PTX Atlas"]
["ARG,WIND-ON,AEL-EL,LOHC-CON,AEL-EL","ARG","WIND-ON","AEL-EL","LOHC-CON","AEL-EL",5767.45,"PTX Atlas"]
["ARG,WIND-ON,AEL-EL,LOHC-CON,LOHC-CON","ARG","WIND-ON","AEL-EL","LOHC-CON","LOHC-CON",5767.45,"PTX Atlas"]
["ARG,WIND-ON,AEL-EL,LOHC-CON,LOHC-REC","ARG","WIND-ON","AEL-EL","LOHC-CON","LOHC-REC",6657.5999999999995,"öko"]
["ARG,WIND-ON,AEL-EL,NH3SYN,AEL-EL","ARG","WIND-ON","AEL-EL","NH3SYN","AEL-EL",5899.0249999999996,"PTX Atlas"]
["ARG,WIND-ON,AEL-EL,NH3SYN,NH3-REC","ARG","WIND-ON","AEL-EL","NH3SYN","NH3-REC",6657.5999999999995,"öko"]
["ARG,WIND-ON,AEL-EL,NH3SYN,NH3SYN","ARG","WIND-ON","AEL-EL","NH3SYN","NH3SYN",5923.7249999999995,"PTX Atlas"]
["ARG,WIND-ON,PEM-EL,,H2-COMP","ARG","WIND-ON","PEM-EL",null,"H2-COMP",7008]
["ARG,WIND-ON,PEM-EL,,H2-LIQ","ARG","WIND-ON","PEM-EL",null,"H2-LIQ",6213,"öko"]
["ARG,WIND-ON,PEM-EL,,H2-RGAS","ARG","WIND-ON","PEM-EL",null,"H2-RGAS",7008,"öko"]
["ARG,WIND-ON,PEM-EL,,PEM-EL","ARG","WIND-ON","PEM-EL",null,"PEM-EL",6071,"PTX Atlas"]
["ARG,WIND-ON,PEM-EL,CH3OHSYN,CH3OHREC","ARG","WIND-ON","PEM-EL","CH3OHSYN","CH3OHREC",7008,"öko"]
["ARG,WIND-ON,PEM-EL,CH3OHSYN,CH3OHSYN","ARG","WIND-ON","PEM-EL","CH3OHSYN","CH3OHSYN",6487.5,"PTX Atlas"]
["ARG,WIND-ON,PEM-EL,CH3OHSYN,PEM-EL","ARG","WIND-ON","PEM-EL","CH3OHSYN","PEM-EL",6443.5,"PTX Atlas"]
["ARG,WIND-ON,PEM-EL,CH4SYN,ATR","ARG","WIND-ON","PEM-EL","CH4SYN","ATR",7008]
["ARG,WIND-ON,PEM-EL,CH4SYN,CH4-LIQ","ARG","WIND-ON","PEM-EL","CH4SYN","CH4-LIQ",6457,"PTX Atlas"]
["ARG,WIND-ON,PEM-EL,CH4SYN,CH4-RGAS","ARG","WIND-ON","PEM-EL","CH4SYN","CH4-RGAS",7008,"öko"]
["ARG,WIND-ON,PEM-EL,CH4SYN,CH4SYN","ARG","WIND-ON","PEM-EL","CH4SYN","CH4SYN",6457,"PTX Atlas"]
["ARG,WIND-ON,PEM-EL,CH4SYN,PEM-EL","ARG","WIND-ON","PEM-EL","CH4SYN","PEM-EL",6367,"PTX Atlas"]
["ARG,WIND-ON,PEM-EL,DRI,DRI","ARG","WIND-ON","PEM-EL","DRI","DRI",7008,"öko"]
["ARG,WIND-ON,PEM-EL,DRI,PEM-EL","ARG","WIND-ON","PEM-EL","DRI","PEM-EL",6409.5,"PTX Atlas"]
["ARG,WIND-ON,PEM-EL,EFUELSYN,EFUELSYN","ARG","WIND-ON","PEM-EL","EFUELSYN","EFUELSYN",6462,"PTX Atlas"]
["ARG,WIND-ON,PEM-EL,EFUELSYN,PEM-EL","ARG","WIND-ON","PEM-EL","EFUELSYN","PEM-EL",6409.5,"PTX Atlas"]
["ARG,WIND-ON,PEM-EL,LOHC-CON,LOHC-CON","ARG","WIND-ON","PEM-EL","LOHC-CON","LOHC-CON",6071,"PTX Atlas"]
["ARG,WIND-ON,PEM-EL,LOHC-CON,LOHC-REC","ARG","WIND-ON","PEM-EL","LOHC-CON","LOHC-REC",7008,"öko"]
["ARG,WIND-ON,PEM-EL,LOHC-CON,PEM-EL","ARG","WIND-ON","PEM-EL","LOHC-CON","PEM-EL",6071,"PTX Atlas"]
["ARG,WIND-ON,PEM-EL,NH3SYN,NH3-REC","ARG","WIND-ON","PEM-EL","NH3SYN","NH3-REC",7008,"öko"]
["ARG,WIND-ON,PEM-EL,NH3SYN,NH3SYN","ARG","WIND-ON","PEM-EL","NH3SYN","NH3SYN",6235.5,"PTX Atlas"]
["ARG,WIND-ON,PEM-EL,NH3SYN,PEM-EL","ARG","WIND-ON","PEM-EL","NH3SYN","PEM-EL",6209.5,"PTX Atlas"]
["ARG,WIND-ON,SOEC-EL,,H2-COMP","ARG","WIND-ON","SOEC-EL",null,"H2-COMP",7008]
["ARG,WIND-ON,SOEC-EL,,H2-LIQ","ARG","WIND-ON","SOEC-EL",null,"H2-LIQ",6181.5,"öko"]
["ARG,WIND-ON,SOEC-EL,,H2-RGAS","ARG","WIND-ON","SOEC-EL",null,"H2-RGAS",7008,"öko"]
["ARG,WIND-ON,SOEC-EL,,SOEC-EL","ARG","WIND-ON","SOEC-EL",null,"SOEC-EL",6047,"PTX Atlas"]
["ARG,WIND-ON,SOEC-EL,CH3OHSYN,CH3OHREC","ARG","WIND-ON","SOEC-EL","CH3OHSYN","CH3OHREC",7008,"öko"]
["ARG,WIND-ON,SOEC-EL,CH3OHSYN,CH3OHSYN","ARG","WIND-ON","SOEC-EL","CH3OHSYN","CH3OHSYN",6472.5,"PTX Atlas"]
["ARG,WIND-ON,SOEC-EL,CH3OHSYN,SOEC-EL","ARG","WIND-ON","SOEC-EL","CH3OHSYN","SOEC-EL",6472.5,"PTX Atlas"]
["ARG,WIND-ON,SOEC-EL,CH4SYN,ATR","ARG","WIND-ON","SOEC-EL","CH4SYN","ATR",7008]
["ARG,WIND-ON,SOEC-EL,CH4SYN,CH4-LIQ","ARG","WIND-ON","SOEC-EL","CH4SYN","CH4-LIQ",6465.5,"PTX Atlas"]
["ARG,WIND-ON,SOEC-EL,CH4SYN,CH4-RGAS","ARG","WIND-ON","SOEC-EL","CH4SYN","CH4-RGAS",7008,"öko"]
["ARG,WIND-ON,SOEC-EL,CH4SYN,CH4SYN","ARG","WIND-ON","SOEC-EL","CH4SYN","CH4SYN",6465.5,"PTX Atlas"]
["ARG,WIND-ON,SOEC-EL,CH4SYN,SOEC-EL","ARG","WIND-ON","SOEC-EL","CH4SYN","SOEC-EL",6465.5,"PTX Atlas"]
["ARG,WIND-ON,SOEC-EL,DRI,DRI","ARG","WIND-ON","SOEC-EL","DRI","DRI",7008,"öko"]
["ARG,WIND-ON,SOEC-EL,DRI,SOEC-EL","ARG","WIND-ON","SOEC-EL","DRI","SOEC-EL",6478.5,"PTX Atlas"]
["ARG,WIND-ON,SOEC-EL,EFUELSYN,EFUELSYN","ARG","WIND-ON","SOEC-EL","EFUELSYN","EFUELSYN",6478.5,"PTX Atlas"]
["ARG,WIND-ON,SOEC-EL,EFUELSYN,SOEC-EL","ARG","WIND-ON","SOEC-EL","EFUELSYN","SOEC-EL",6478.5,"PTX Atlas"]
["ARG,WIND-ON,SOEC-EL,LOHC-CON,LOHC-CON","ARG","WIND-ON","SOEC-EL","LOHC-CON","LOHC-CON",6047,"PTX Atlas"]
["ARG,WIND-ON,SOEC-EL,LOHC-CON,LOHC-REC","ARG","WIND-ON","SOEC-EL","LOHC-CON","LOHC-REC",7008,"öko"]
["ARG,WIND-ON,SOEC-EL,LOHC-CON,SOEC-EL","ARG","WIND-ON","SOEC-EL","LOHC-CON","SOEC-EL",6047,"PTX Atlas"]
["ARG,WIND-ON,SOEC-EL,NH3SYN,NH3-REC","ARG","WIND-ON","SOEC-EL","NH3SYN","NH3-REC",7008,"öko"]
["ARG,WIND-ON,SOEC-EL,NH3SYN,NH3SYN","ARG","WIND-ON","SOEC-EL","NH3SYN","NH3SYN",6215.5,"PTX Atlas"]
["ARG,WIND-ON,SOEC-EL,NH3SYN,SOEC-EL","ARG","WIND-ON","SOEC-EL","NH3SYN","SOEC-EL",6215.5,"PTX Atlas"]
["ARG-BA,PV-FIX,AEL-EL,,AEL-EL","ARG-BA","PV-FIX","AEL-EL",null,"AEL-EL",2627.1574412698751,"PTX Atlas"]
["ARG-BA,PV-FIX,AEL-EL,,H2-COMP","ARG-BA","PV-FIX","AEL-EL",null,"H2-COMP",6657.5999999999995]
["ARG-BA,PV-FIX,AEL-EL,,H2-LIQ","ARG-BA","PV-FIX","AEL-EL",null,"H2-LIQ",2685.5346632735545,"öko"]
["ARG-BA,PV-FIX,AEL-EL,,H2-RGAS","ARG-BA","PV-FIX","AEL-EL",null,"H2-RGAS",6657.5999999999995,"öko"]
["ARG-BA,PV-FIX,AEL-EL,CH3OHSYN,AEL-EL","ARG-BA","PV-FIX","AEL-EL","CH3OHSYN","AEL-EL",2760.2468075299962,"PTX Atlas"]
["ARG-BA,PV-FIX,AEL-EL,CH3OHSYN,CH3OHREC","ARG-BA","PV-FIX","AEL-EL","CH3OHSYN","CH3OHREC",6657.5999999999995,"öko"]
["ARG-BA,PV-FIX,AEL-EL,CH3OHSYN,CH3OHSYN","ARG-BA","PV-FIX","AEL-EL","CH3OHSYN","CH3OHSYN",7345.2725838534125,"PTX Atlas"]
["ARG-BA,PV-FIX,AEL-EL,CH4SYN,AEL-EL","ARG-BA","PV-FIX","AEL-EL","CH4SYN","AEL-EL",2719.494475853086,"PTX Atlas"]
["ARG-BA,PV-FIX,AEL-EL,CH4SYN,ATR","ARG-BA","PV-FIX","AEL-EL","CH4SYN","ATR",6657.5999999999995]
["ARG-BA,PV-FIX,AEL-EL,CH4SYN,CH4-LIQ","ARG-BA","PV-FIX","AEL-EL","CH4SYN","CH4-LIQ",7350.9429751123052,"PTX Atlas"]
["ARG-BA,PV-FIX,AEL-EL,CH4SYN,CH4-RGAS","ARG-BA","PV-FIX","AEL-EL","CH4SYN","CH4-RGAS",6657.5999999999995,"öko"]
["ARG-BA,PV-FIX,AEL-EL,CH4SYN,CH4SYN","ARG-BA","PV-FIX","AEL-EL","CH4SYN","CH4SYN",7350.9429751123052,"PTX Atlas"]
["ARG-BA,PV-FIX,AEL-EL,DRI,AEL-EL","ARG-BA","PV-FIX","AEL-EL","DRI","AEL-EL",2734.7960440805596,"PTX Atlas"]
["ARG-BA,PV-FIX,AEL-EL,DRI,DRI","ARG-BA","PV-FIX","AEL-EL","DRI","DRI",6657.5999999999995,"öko"]
["ARG-BA,PV-FIX,AEL-EL,EFUELSYN,AEL-EL","ARG-BA","PV-FIX","AEL-EL","EFUELSYN","AEL-EL",2734.7960440805596,"PTX Atlas"]
["ARG-BA,PV-FIX,AEL-EL,EFUELSYN,EFUELSYN","ARG-BA","PV-FIX","AEL-EL","EFUELSYN","EFUELSYN",7340.5492668244897,"PTX Atlas"]
["ARG-BA,PV-FIX,AEL-EL,LOHC-CON,AEL-EL","ARG-BA","PV-FIX","AEL-EL","LOHC-CON","AEL-EL",2627.1574412698751,"PTX Atlas"]
["ARG-BA,PV-FIX,AEL-EL,LOHC-CON,LOHC-CON","ARG-BA","PV-FIX","AEL-EL","LOHC-CON","LOHC-CON",2627.1574412698751,"PTX Atlas"]
["ARG-BA,PV-FIX,AEL-EL,LOHC-CON,LOHC-REC","ARG-BA","PV-FIX","AEL-EL","LOHC-CON","LOHC-REC",6657.5999999999995,"öko"]
["ARG-BA,PV-FIX,AEL-EL,NH3SYN,AEL-EL","ARG-BA","PV-FIX","AEL-EL","NH3SYN","AEL-EL",2645.8027424858169,"PTX Atlas"]
["ARG-BA,PV-FIX,AEL-EL,NH3SYN,NH3-REC","ARG-BA","PV-FIX","AEL-EL","NH3SYN","NH3-REC",6657.5999999999995,"öko"]
["ARG-BA,PV-FIX,AEL-EL,NH3SYN,NH3SYN","ARG-BA","PV-FIX","AEL-EL","NH3SYN","NH3SYN",7256.383885772033,"PTX Atlas"]
["ARG-BA,PV-FIX,PEM-EL,,H2-COMP","ARG-BA","PV-FIX","PEM-EL",null,"H2-COMP",7008]
["ARG-BA,PV-FIX,PEM-EL,,H2-LIQ","ARG-BA","PV-FIX","PEM-EL",null,"H2-LIQ",2826.878592919531,"öko"]
["ARG-BA,PV-FIX,PEM-EL,,H2-RGAS","ARG-BA","PV-FIX","PEM-EL",null,"H2-RGAS",7008,"öko"]
["ARG-BA,PV-FIX,PEM-EL,,PEM-EL","ARG-BA","PV-FIX","PEM-EL",null,"PEM-EL",2765.4288855472373,"PTX Atlas"]
["ARG-BA,PV-FIX,PEM-EL,CH3OHSYN,CH3OHREC","ARG-BA","PV-FIX","PEM-EL","CH3OHSYN","CH3OHREC",7008,"öko"]
["ARG-BA,PV-FIX,PEM-EL,CH3OHSYN,CH3OHSYN","ARG-BA","PV-FIX","PEM-EL","CH3OHSYN","CH3OHSYN",7731.8658777404353,"PTX Atlas"]
["ARG-BA,PV-FIX,PEM-EL,CH3OHSYN,PEM-EL","ARG-BA","PV-FIX","PEM-EL","CH3OHSYN","PEM-EL",2905.522955294733,"PTX Atlas"]
["ARG-BA,PV-FIX,PEM-EL,CH4SYN,ATR","ARG-BA","PV-FIX","PEM-EL","CH4SYN","ATR",7008]
["ARG-BA,PV-FIX,PEM-EL,CH4SYN,CH4-LIQ","ARG-BA","PV-FIX","PEM-EL","CH4SYN","CH4-LIQ",7737.8347106445326,"PTX Atlas"]
["ARG-BA,PV-FIX,PEM-EL,CH4SYN,CH4-RGAS","ARG-BA","PV-FIX","PEM-EL","CH4SYN","CH4-RGAS",7008,"öko"]
["ARG-BA,PV-FIX,PEM-EL,CH4SYN,CH4SYN","ARG-BA","PV-FIX","PEM-EL","CH4SYN","CH4SYN",7737.8347106445326,"PTX Atlas"]
["ARG-BA,PV-FIX,PEM-EL,CH4SYN,PEM-EL","ARG-BA","PV-FIX","PEM-EL","CH4SYN","PEM-EL",2862.6257640558802,"PTX Atlas"]
["ARG-BA,PV-FIX,PEM-EL,DRI,DRI","ARG-BA","PV-FIX","PEM-EL","DRI","DRI",7008,"öko"]
["ARG-BA,PV-FIX,PEM-EL,DRI,PEM-EL","ARG-BA","PV-FIX","PEM-EL","DRI","PEM-EL",2878.7326779795367,"PTX Atlas"]
["ARG-BA,PV-FIX,PEM-EL,EFUELSYN,EFUELSYN","ARG-BA","PV-FIX","PEM-EL","EFUELSYN","EFUELSYN",7726.8939650784114,"PTX Atlas"]
["ARG-BA,PV-FIX,PEM-EL,EFUELSYN,PEM-EL","ARG-BA","PV-FIX","PEM-EL","EFUELSYN","PEM-EL",2878.7326779795367,"PTX Atlas"]
["ARG-BA,PV-FIX,PEM-EL,LOHC-CON,LOHC-CON","ARG-BA","PV-FIX","PEM-EL","LOHC-CON","LOHC-CON",2765.4288855472373,"PTX Atlas"]
["ARG-BA,PV-FIX,PEM-EL,LOHC-CON,LOHC-REC","ARG-BA","PV-FIX","PEM-EL","LOHC-CON","LOHC-REC",7008,"öko"]
["ARG-BA,PV-FIX,PEM-EL,LOHC-CON,PEM-EL","ARG-BA","PV-FIX","PEM-EL","LOHC-CON","PEM-EL",2765.4288855472373,"PTX Atlas"]
["ARG-BA,PV-FIX,PEM-EL,NH3SYN,NH3-REC","ARG-BA","PV-FIX","PEM-EL","NH3SYN","NH3-REC",7008,"öko"]
["ARG-BA,PV-FIX,PEM-EL,NH3SYN,NH3SYN","ARG-BA","PV-FIX","PEM-EL","NH3SYN","NH3SYN",7638.2988271284557,"PTX Atlas"]
["ARG-BA,PV-FIX,PEM-EL,NH3SYN,PEM-EL","ARG-BA","PV-FIX","PEM-EL","NH3SYN","PEM-EL",2785.0555184061232,"PTX Atlas"]
["ARG-BA,PV-FIX,SOEC-EL,,H2-COMP","ARG-BA","PV-FIX","SOEC-EL",null,"H2-COMP",7008]
["ARG-BA,PV-FIX,SOEC-EL,,H2-LIQ","ARG-BA","PV-FIX","SOEC-EL",null,"H2-LIQ",2803.6217617636221,"öko"]
["ARG-BA,PV-FIX,SOEC-EL,,H2-RGAS","ARG-BA","PV-FIX","SOEC-EL",null,"H2-RGAS",7008,"öko"]
["ARG-BA,PV-FIX,SOEC-EL,,SOEC-EL","ARG-BA","PV-FIX","SOEC-EL",null,"SOEC-EL",2736.8289309011907,"PTX Atlas"]
["ARG-BA,PV-FIX,SOEC-EL,CH3OHSYN,CH3OHREC","ARG-BA","PV-FIX","SOEC-EL","CH3OHSYN","CH3OHREC",7008,"öko"]
["ARG-BA,PV-FIX,SOEC-EL,CH3OHSYN,CH3OHSYN","ARG-BA","PV-FIX","SOEC-EL","CH3OHSYN","CH3OHSYN",7283.7538227727873,"PTX Atlas"]
["ARG-BA,PV-FIX,SOEC-EL,CH3OHSYN,SOEC-EL","ARG-BA","PV-FIX","SOEC-EL","CH3OHSYN","SOEC-EL",7283.7538227727873,"PTX Atlas"]
["ARG-BA,PV-FIX,SOEC-EL,CH4SYN,ATR","ARG-BA","PV-FIX","SOEC-EL","CH4SYN","ATR",7008]
["ARG-BA,PV-FIX,SOEC-EL,CH4SYN,CH4-LIQ","ARG-BA","PV-FIX","SOEC-EL","CH4SYN","CH4-LIQ",6968.9999653680306,"PTX Atlas"]
["ARG-BA,PV-FIX,SOEC-EL,CH4SYN,CH4-RGAS","ARG-BA","PV-FIX","SOEC-EL","CH4SYN","CH4-RGAS",7008,"öko"]
["ARG-BA,PV-FIX,SOEC-EL,CH4SYN,CH4SYN","ARG-BA","PV-FIX","SOEC-EL","CH4SYN","CH4SYN",6968.9999653680306,"PTX Atlas"]
["ARG-BA,PV-FIX,SOEC-EL,CH4SYN,SOEC-EL","ARG-BA","PV-FIX","SOEC-EL","CH4SYN","SOEC-EL",6968.9999653680306,"PTX Atlas"]
["ARG-BA,PV-FIX,SOEC-EL,DRI,DRI","ARG-BA","PV-FIX","SOEC-EL","DRI","DRI",7008,"öko"]
["ARG-BA,PV-FIX,SOEC-EL,DRI,SOEC-EL","ARG-BA","PV-FIX","SOEC-EL","DRI","SOEC-EL",7596.4645902008606,"PTX Atlas"]
["ARG-BA,PV-FIX,SOEC-EL,EFUELSYN,EFUELSYN","ARG-BA","PV-FIX","SOEC-EL","EFUELSYN","EFUELSYN",7596.4645902008606,"PTX Atlas"]
["ARG-BA,PV-FIX,SOEC-EL,EFUELSYN,SOEC-EL","ARG-BA","PV-FIX","SOEC-EL","EFUELSYN","SOEC-EL",7596.4645902008606,"PTX Atlas"]
["ARG-BA,PV-FIX,SOEC-EL,LOHC-CON,LOHC-CON","ARG-BA","PV-FIX","SOEC-EL","LOHC-CON","LOHC-CON",2736.8289309011907,"PTX Atlas"]
["ARG-BA,PV-FIX,SOEC-EL,LOHC-CON,LOHC-REC","ARG-BA","PV-FIX","SOEC-EL","LOHC-CON","LOHC-REC",7008,"öko"]
["ARG-BA,PV-FIX,SOEC-EL,LOHC-CON,SOEC-EL","ARG-BA","PV-FIX","SOEC-EL","LOHC-CON","SOEC-EL",2736.8289309011907,"PTX Atlas"]
["ARG-BA,PV-FIX,SOEC-EL,NH3SYN,NH3-REC","ARG-BA","PV-FIX","SOEC-EL","NH3SYN","NH3-REC",7008,"öko"]
["ARG-BA,PV-FIX,SOEC-EL,NH3SYN,NH3SYN","ARG-BA","PV-FIX","SOEC-EL","NH3SYN","NH3SYN",4371.7463871671398,"PTX Atlas"]
["ARG-BA,PV-FIX,SOEC-EL,NH3SYN,SOEC-EL","ARG-BA","PV-FIX","SOEC-EL","NH3SYN","SOEC-EL",4371.7463871671398,"PTX Atlas"]
["ARG-BA,PV-TRK,AEL-EL,,H2-COMP","ARG-BA","PV-TRK","AEL-EL",null,"H2-COMP",6657.5999999999995]
["ARG-BA,PV-TRK,AEL-EL,,H2-RGAS","ARG-BA","PV-TRK","AEL-EL",null,"H2-RGAS",6657.5999999999995,"öko"]
["ARG-BA,PV-TRK,AEL-EL,CH3OHSYN,CH3OHREC","ARG-BA","PV-TRK","AEL-EL","CH3OHSYN","CH3OHREC",6657.5999999999995,"öko"]
["ARG-BA,PV-TRK,AEL-EL,CH4SYN,ATR","ARG-BA","PV-TRK","AEL-EL","CH4SYN","ATR",6657.5999999999995]
["ARG-BA,PV-TRK,AEL-EL,CH4SYN,CH4-RGAS","ARG-BA","PV-TRK","AEL-EL","CH4SYN","CH4-RGAS",6657.5999999999995,"öko"]
["ARG-BA,PV-TRK,AEL-EL,DRI,DRI","ARG-BA","PV-TRK","AEL-EL","DRI","DRI",6657.5999999999995,"öko"]
["ARG-BA,PV-TRK,AEL-EL,LOHC-CON,LOHC-REC","ARG-BA","PV-TRK","AEL-EL","LOHC-CON","LOHC-REC",6657.5999999999995,"öko"]
["ARG-BA,PV-TRK,AEL-EL,NH3SYN,NH3-REC","ARG-BA","PV-TRK","AEL-EL","NH3SYN","NH3-REC",6657.5999999999995,"öko"]
["ARG-BA,PV-TRK,PEM-EL,,H2-COMP","ARG-BA","PV-TRK","PEM-EL",null,"H2-COMP",7008]
["ARG-BA,PV-TRK,PEM-EL,,H2-RGAS","ARG-BA","PV-TRK","PEM-EL",null,"H2-RGAS",7008,"öko"]
["ARG-BA,PV-TRK,PEM-EL,CH3OHSYN,CH3OHREC","ARG-BA","PV-TRK","PEM-EL","CH3OHSYN","CH3OHREC",7008,"öko"]
["ARG-BA,PV-TRK,PEM-EL,CH4SYN,ATR","ARG-BA","PV-TRK","PEM-EL","CH4SYN","ATR",7008]
["ARG-BA,PV-TRK,PEM-EL,CH4SYN,CH4-RGAS","ARG-BA","PV-TRK","PEM-EL","CH4SYN","CH4-RGAS",7008,"öko"]
["ARG-BA,PV-TRK,PEM-EL,DRI,DRI","ARG-BA","PV-TRK","PEM-EL","DRI","DRI",7008,"öko"]
["ARG-BA,PV-TRK,PEM-EL,LOHC-CON,LOHC-REC","ARG-BA","PV-TRK","PEM-EL","LOHC-CON","LOHC-REC",7008,"öko"]
["ARG-BA,PV-TRK,PEM-EL,NH3SYN,NH3-REC","ARG-BA","PV-TRK","PEM-EL","NH3SYN","NH3-REC",7008,"öko"]
["ARG-BA,PV-TRK,SOEC-EL,,H2-COMP","ARG-BA","PV-TRK","SOEC-EL",null,"H2-COMP",7008]
["ARG-BA,PV-TRK,SOEC-EL,,H2-RGAS","ARG-BA","PV-TRK","SOEC-EL",null,"H2-RGAS",7008,"öko"]
["ARG-BA,PV-TRK,SOEC-EL,CH3OHSYN,CH3OHREC","ARG-BA","PV-TRK","SOEC-EL","CH3OHSYN","CH3OHREC",7008,"öko"]
["ARG-BA,PV-TRK,SOEC-EL,CH4SYN,ATR","ARG-BA","PV-TRK","SOEC-EL","CH4SYN","ATR",7008]
["ARG-BA,PV-TRK,SOEC-EL,CH4SYN,CH4-RGAS","ARG-BA","PV-TRK","SOEC-EL","CH4SYN","CH4-RGAS",7008,"öko"]
["ARG-BA,PV-TRK,SOEC-EL,DRI,DRI","ARG-BA","PV-TRK","SOEC-EL","DRI","DRI",7008,"öko"]
["ARG-BA,PV-TRK,SOEC-EL,LOHC-CON,LOHC-REC","ARG-BA","PV-TRK","SOEC-EL","LOHC-CON","LOHC-REC",7008,"öko"]
["ARG-BA,PV-TRK,SOEC-EL,NH3SYN,NH3-REC","ARG-BA","PV-TRK","SOEC-EL","NH3SYN","NH3-REC",7008,"öko"]
["ARG-BA,RES-HYBR,AEL-EL,,AEL-EL","ARG-BA","RES-HYBR","AEL-EL",null,"AEL-EL",5017.6321656366445,"PTX Atlas"]
["ARG-BA,RES-HYBR,AEL-EL,,H2-COMP","ARG-BA","RES-HYBR","AEL-EL",null,"H2-COMP",6657.5999999999995]
["ARG-BA,RES-HYBR,AEL-EL,,H2-LIQ","ARG-BA","RES-HYBR","AEL-EL",null,"H2-LIQ",4956.970490253364,"öko"]
["ARG-BA,RES-HYBR,AEL-EL,,H2-RGAS","ARG-BA","RES-HYBR","AEL-EL",null,"H2-RGAS",6657.5999999999995,"öko"]
["ARG-BA,RES-HYBR,AEL-EL,CH3OHSYN,AEL-EL","ARG-BA","RES-HYBR","AEL-EL","CH3OHSYN","AEL-EL",5053.6514527704603,"PTX Atlas"]
["ARG-BA,RES-HYBR,AEL-EL,CH3OHSYN,CH3OHREC","ARG-BA","RES-HYBR","AEL-EL","CH3OHSYN","CH3OHREC",6657.5999999999995,"öko"]
["ARG-BA,RES-HYBR,AEL-EL,CH3OHSYN,CH3OHSYN","ARG-BA","RES-HYBR","AEL-EL","CH3OHSYN","CH3OHSYN",6605.212166305977,"PTX Atlas"]
["ARG-BA,RES-HYBR,AEL-EL,CH4SYN,AEL-EL","ARG-BA","RES-HYBR","AEL-EL","CH4SYN","AEL-EL",4938.9666441569962,"PTX Atlas"]
["ARG-BA,RES-HYBR,AEL-EL,CH4SYN,ATR","ARG-BA","RES-HYBR","AEL-EL","CH4SYN","ATR",6657.5999999999995]
["ARG-BA,RES-HYBR,AEL-EL,CH4SYN,CH4-LIQ","ARG-BA","RES-HYBR","AEL-EL","CH4SYN","CH4-LIQ",6606.7151892591291,"PTX Atlas"]
["ARG-BA,RES-HYBR,AEL-EL,CH4SYN,CH4-RGAS","ARG-BA","RES-HYBR","AEL-EL","CH4SYN","CH4-RGAS",6657.5999999999995,"öko"]
["ARG-BA,RES-HYBR,AEL-EL,CH4SYN,CH4SYN","ARG-BA","RES-HYBR","AEL-EL","CH4SYN","CH4SYN",6606.7151892591291,"PTX Atlas"]
["ARG-BA,RES-HYBR,AEL-EL,DRI,AEL-EL","ARG-BA","RES-HYBR","AEL-EL","DRI","AEL-EL",5026.434535439028,"PTX Atlas"]
["ARG-BA,RES-HYBR,AEL-EL,DRI,DRI","ARG-BA","RES-HYBR","AEL-EL","DRI","DRI",6657.5999999999995,"öko"]
["ARG-BA,RES-HYBR,AEL-EL,EFUELSYN,AEL-EL","ARG-BA","RES-HYBR","AEL-EL","EFUELSYN","AEL-EL",5026.434535439028,"PTX Atlas"]
["ARG-BA,RES-HYBR,AEL-EL,EFUELSYN,EFUELSYN","ARG-BA","RES-HYBR","AEL-EL","EFUELSYN","EFUELSYN",6580.0898139547671,"PTX Atlas"]
["ARG-BA,RES-HYBR,AEL-EL,LOHC-CON,AEL-EL","ARG-BA","RES-HYBR","AEL-EL","LOHC-CON","AEL-EL",5017.6321656366445,"PTX Atlas"]
["ARG-BA,RES-HYBR,AEL-EL,LOHC-CON,LOHC-CON","ARG-BA","RES-HYBR","AEL-EL","LOHC-CON","LOHC-CON",5017.6321656366445,"PTX Atlas"]
["ARG-BA,RES-HYBR,AEL-EL,LOHC-CON,LOHC-REC","ARG-BA","RES-HYBR","AEL-EL","LOHC-CON","LOHC-REC",6657.5999999999995,"öko"]
["ARG-BA,RES-HYBR,AEL-EL,NH3SYN,AEL-EL","ARG-BA","RES-HYBR","AEL-EL","NH3SYN","AEL-EL",5024.8382631664545,"PTX Atlas"]
["ARG-BA,RES-HYBR,AEL-EL,NH3SYN,NH3-REC","ARG-BA","RES-HYBR","AEL-EL","NH3SYN","NH3-REC",6657.5999999999995,"öko"]
["ARG-BA,RES-HYBR,AEL-EL,NH3SYN,NH3SYN","ARG-BA","RES-HYBR","AEL-EL","NH3SYN","NH3SYN",6218.0862438592649,"PTX Atlas"]
["ARG-BA,RES-HYBR,PEM-EL,,H2-COMP","ARG-BA","RES-HYBR","PEM-EL",null,"H2-COMP",7008]
["ARG-BA,RES-HYBR,PEM-EL,,H2-LIQ","ARG-BA","RES-HYBR","PEM-EL",null,"H2-LIQ",5217.8636739509093,"öko"]
["ARG-BA,RES-HYBR,PEM-EL,,H2-RGAS","ARG-BA","RES-HYBR","PEM-EL",null,"H2-RGAS",7008,"öko"]
["ARG-BA,RES-HYBR,PEM-EL,,PEM-EL","ARG-BA","RES-HYBR","PEM-EL",null,"PEM-EL",5281.7180690912046,"PTX Atlas"]
["ARG-BA,RES-HYBR,PEM-EL,CH3OHSYN,CH3OHREC","ARG-BA","RES-HYBR","PEM-EL","CH3OHSYN","CH3OHREC",7008,"öko"]
["ARG-BA,RES-HYBR,PEM-EL,CH3OHSYN,CH3OHSYN","ARG-BA","RES-HYBR","PEM-EL","CH3OHSYN","CH3OHSYN",6952.8549119010286,"PTX Atlas"]
["ARG-BA,RES-HYBR,PEM-EL,CH3OHSYN,PEM-EL","ARG-BA","RES-HYBR","PEM-EL","CH3OHSYN","PEM-EL",5319.6331081794324,"PTX Atlas"]
["ARG-BA,RES-HYBR,PEM-EL,CH4SYN,ATR","ARG-BA","RES-HYBR","PEM-EL","CH4SYN","ATR",7008]
["ARG-BA,RES-HYBR,PEM-EL,CH4SYN,CH4-LIQ","ARG-BA","RES-HYBR","PEM-EL","CH4SYN","CH4-LIQ",6954.4370413253992,"PTX Atlas"]
["ARG-BA,RES-HYBR,PEM-EL,CH4SYN,CH4-RGAS","ARG-BA","RES-HYBR","PEM-EL","CH4SYN","CH4-RGAS",7008,"öko"]
["ARG-BA,RES-HYBR,PEM-EL,CH4SYN,CH4SYN","ARG-BA","RES-HYBR","PEM-EL","CH4SYN","CH4SYN",6954.4370413253992,"PTX Atlas"]
["ARG-BA,RES-HYBR,PEM-EL,CH4SYN,PEM-EL","ARG-BA","RES-HYBR","PEM-EL","CH4SYN","PEM-EL",5198.912257007365,"PTX Atlas"]
["ARG-BA,RES-HYBR,PEM-EL,DRI,DRI","ARG-BA","RES-HYBR","PEM-EL","DRI","DRI",7008,"öko"]
["ARG-BA,RES-HYBR,PEM-EL,DRI,PEM-EL","ARG-BA","RES-HYBR","PEM-EL","DRI","PEM-EL",5290.9837215147663,"PTX Atlas"]
["ARG-BA,RES-HYBR,PEM-EL,EFUELSYN,EFUELSYN","ARG-BA","RES-HYBR","PEM-EL","EFUELSYN","EFUELSYN",6926.4103304787022,"PTX Atlas"]
["ARG-BA,RES-HYBR,PEM-EL,EFUELSYN,PEM-EL","ARG-BA","RES-HYBR","PEM-EL","EFUELSYN","PEM-EL",5290.9837215147663,"PTX Atlas"]
["ARG-BA,RES-HYBR,PEM-EL,LOHC-CON,LOHC-CON","ARG-BA","RES-HYBR","PEM-EL","LOHC-CON","LOHC-CON",5281.7180690912046,"PTX Atlas"]
["ARG-BA,RES-HYBR,PEM-EL,LOHC-CON,LOHC-REC","ARG-BA","RES-HYBR","PEM-EL","LOHC-CON","LOHC-REC",7008,"öko"]
["ARG-BA,RES-HYBR,PEM-EL,LOHC-CON,PEM-EL","ARG-BA","RES-HYBR","PEM-EL","LOHC-CON","PEM-EL",5281.7180690912046,"PTX Atlas"]
["ARG-BA,RES-HYBR,PEM-EL,NH3SYN,NH3-REC","ARG-BA","RES-HYBR","PEM-EL","NH3SYN","NH3-REC",7008,"öko"]
["ARG-BA,RES-HYBR,PEM-EL,NH3SYN,NH3SYN","ARG-BA","RES-HYBR","PEM-EL","NH3SYN","NH3SYN",6545.3539409044897,"PTX Atlas"]
["ARG-BA,RES-HYBR,PEM-EL,NH3SYN,PEM-EL","ARG-BA","RES-HYBR","PEM-EL","NH3SYN","PEM-EL",5289.303434912058,"PTX Atlas"]
["ARG-BA,RES-HYBR,SOEC-EL,,H2-COMP","ARG-BA","RES-HYBR","SOEC-EL",null,"H2-COMP",7008]
["ARG-BA,RES-HYBR,SOEC-EL,,H2-LIQ","ARG-BA","RES-HYBR","SOEC-EL",null,"H2-LIQ",5001.3864479775702,"öko"]
["ARG-BA,RES-HYBR,SOEC-EL,,H2-RGAS","ARG-BA","RES-HYBR","SOEC-EL",null,"H2-RGAS",7008,"öko"]
["ARG-BA,RES-HYBR,SOEC-EL,,SOEC-EL","ARG-BA","RES-HYBR","SOEC-EL",null,"SOEC-EL",5124.9774328024687,"PTX Atlas"]
["ARG-BA,RES-HYBR,SOEC-EL,CH3OHSYN,CH3OHREC","ARG-BA","RES-HYBR","SOEC-EL","CH3OHSYN","CH3OHREC",7008,"öko"]
["ARG-BA,RES-HYBR,SOEC-EL,CH3OHSYN,CH3OHSYN","ARG-BA","RES-HYBR","SOEC-EL","CH3OHSYN","CH3OHSYN",6330.004507382946,"PTX Atlas"]
["ARG-BA,RES-HYBR,SOEC-EL,CH3OHSYN,SOEC-EL","ARG-BA","RES-HYBR","SOEC-EL","CH3OHSYN","SOEC-EL",6330.004507382946,"PTX Atlas"]
["ARG-BA,RES-HYBR,SOEC-EL,CH4SYN,ATR","ARG-BA","RES-HYBR","SOEC-EL","CH4SYN","ATR",7008]
["ARG-BA,RES-HYBR,SOEC-EL,CH4SYN,CH4-LIQ","ARG-BA","RES-HYBR","SOEC-EL","CH4SYN","CH4-LIQ",6337.2874307040356,"PTX Atlas"]
["ARG-BA,RES-HYBR,SOEC-EL,CH4SYN,CH4-RGAS","ARG-BA","RES-HYBR","SOEC-EL","CH4SYN","CH4-RGAS",7008,"öko"]
["ARG-BA,RES-HYBR,SOEC-EL,CH4SYN,CH4SYN","ARG-BA","RES-HYBR","SOEC-EL","CH4SYN","CH4SYN",6337.2874307040356,"PTX Atlas"]
["ARG-BA,RES-HYBR,SOEC-EL,CH4SYN,SOEC-EL","ARG-BA","RES-HYBR","SOEC-EL","CH4SYN","SOEC-EL",6337.2874307040356,"PTX Atlas"]
["ARG-BA,RES-HYBR,SOEC-EL,DRI,DRI","ARG-BA","RES-HYBR","SOEC-EL","DRI","DRI",7008,"öko"]
["ARG-BA,RES-HYBR,SOEC-EL,DRI,SOEC-EL","ARG-BA","RES-HYBR","SOEC-EL","DRI","SOEC-EL",6359.9592961247199,"PTX Atlas"]
["ARG-BA,RES-HYBR,SOEC-EL,EFUELSYN,EFUELSYN","ARG-BA","RES-HYBR","SOEC-EL","EFUELSYN","EFUELSYN",6359.9592961247199,"PTX Atlas"]
["ARG-BA,RES-HYBR,SOEC-EL,EFUELSYN,SOEC-EL","ARG-BA","RES-HYBR","SOEC-EL","EFUELSYN","SOEC-EL",6359.9592961247199,"PTX Atlas"]
["ARG-BA,RES-HYBR,SOEC-EL,LOHC-CON,LOHC-CON","ARG-BA","RES-HYBR","SOEC-EL","LOHC-CON","LOHC-CON",5124.9774328024687,"PTX Atlas"]
["ARG-BA,RES-HYBR,SOEC-EL,LOHC-CON,LOHC-REC","ARG-BA","RES-HYBR","SOEC-EL","LOHC-CON","LOHC-REC",7008,"öko"]
["ARG-BA,RES-HYBR,SOEC-EL,LOHC-CON,SOEC-EL","ARG-BA","RES-HYBR","SOEC-EL","LOHC-CON","SOEC-EL",5124.9774328024687,"PTX Atlas"]
["ARG-BA,RES-HYBR,SOEC-EL,NH3SYN,NH3-REC","ARG-BA","RES-HYBR","SOEC-EL","NH3SYN","NH3-REC",7008,"öko"]
["ARG-BA,RES-HYBR,SOEC-EL,NH3SYN,NH3SYN","ARG-BA","RES-HYBR","SOEC-EL","NH3SYN","NH3SYN",5899.8804878140309,"PTX Atlas"]
["ARG-BA,RES-HYBR,SOEC-EL,NH3SYN,SOEC-EL","ARG-BA","RES-HYBR","SOEC-EL","NH3SYN","SOEC-EL",5899.8804878140309,"PTX Atlas"]
["ARG-BA,WIND-OFF,AEL-EL,,AEL-EL","ARG-BA","WIND-OFF","AEL-EL",null,"AEL-EL",4516.8660022816293,"PTX Atlas"]
["ARG-BA,WIND-OFF,AEL-EL,,H2-COMP","ARG-BA","WIND-OFF","AEL-EL",null,"H2-COMP",6657.5999999999995]
["ARG-BA,WIND-OFF,AEL-EL,,H2-LIQ","ARG-BA","WIND-OFF","AEL-EL",null,"H2-LIQ",4712.818079084077,"öko"]
["ARG-BA,WIND-OFF,AEL-EL,,H2-RGAS","ARG-BA","WIND-OFF","AEL-EL",null,"H2-RGAS",6657.5999999999995,"öko"]
["ARG-BA,WIND-OFF,AEL-EL,CH3OHSYN,AEL-EL","ARG-BA","WIND-OFF","AEL-EL","CH3OHSYN","AEL-EL",4902.1715715056016,"PTX Atlas"]
["ARG-BA,WIND-OFF,AEL-EL,CH3OHSYN,CH3OHREC","ARG-BA","WIND-OFF","AEL-EL","CH3OHSYN","CH3OHREC",6657.5999999999995,"öko"]
["ARG-BA,WIND-OFF,AEL-EL,CH3OHSYN,CH3OHSYN","ARG-BA","WIND-OFF","AEL-EL","CH3OHSYN","CH3OHSYN",5339.224716665135,"PTX Atlas"]
["ARG-BA,WIND-OFF,AEL-EL,CH4SYN,AEL-EL","ARG-BA","WIND-OFF","AEL-EL","CH4SYN","AEL-EL",4817.7625013732513,"PTX Atlas"]
["ARG-BA,WIND-OFF,AEL-EL,CH4SYN,ATR","ARG-BA","WIND-OFF","AEL-EL","CH4SYN","ATR",6657.5999999999995]
["ARG-BA,WIND-OFF,AEL-EL,CH4SYN,CH4-LIQ","ARG-BA","WIND-OFF","AEL-EL","CH4SYN","CH4-LIQ",5334.56994127285,"PTX Atlas"]
["ARG-BA,WIND-OFF,AEL-EL,CH4SYN,CH4-RGAS","ARG-BA","WIND-OFF","AEL-EL","CH4SYN","CH4-RGAS",6657.5999999999995,"öko"]
["ARG-BA,WIND-OFF,AEL-EL,CH4SYN,CH4SYN","ARG-BA","WIND-OFF","AEL-EL","CH4SYN","CH4SYN",5334.56994127285,"PTX Atlas"]
["ARG-BA,WIND-OFF,AEL-EL,DRI,AEL-EL","ARG-BA","WIND-OFF","AEL-EL","DRI","AEL-EL",4872.8735676075748,"PTX Atlas"]
["ARG-BA,WIND-OFF,AEL-EL,DRI,DRI","ARG-BA","WIND-OFF","AEL-EL","DRI","DRI",6657.5999999999995,"öko"]
["ARG-BA,WIND-OFF,AEL-EL,EFUELSYN,AEL-EL","ARG-BA","WIND-OFF","AEL-EL","EFUELSYN","AEL-EL",4872.8735676075748,"PTX Atlas"]
["ARG-BA,WIND-OFF,AEL-EL,EFUELSYN,EFUELSYN","ARG-BA","WIND-OFF","AEL-EL","EFUELSYN","EFUELSYN",5307.9393101313253,"PTX Atlas"]
["ARG-BA,WIND-OFF,AEL-EL,LOHC-CON,AEL-EL","ARG-BA","WIND-OFF","AEL-EL","LOHC-CON","AEL-EL",4516.8660022816293,"PTX Atlas"]
["ARG-BA,WIND-OFF,AEL-EL,LOHC-CON,LOHC-CON","ARG-BA","WIND-OFF","AEL-EL","LOHC-CON","LOHC-CON",4516.8660022816293,"PTX Atlas"]
["ARG-BA,WIND-OFF,AEL-EL,LOHC-CON,LOHC-REC","ARG-BA","WIND-OFF","AEL-EL","LOHC-CON","LOHC-REC",6657.5999999999995,"öko"]
["ARG-BA,WIND-OFF,AEL-EL,NH3SYN,AEL-EL","ARG-BA","WIND-OFF","AEL-EL","NH3SYN","AEL-EL",4721.1444085310004,"PTX Atlas"]
["ARG-BA,WIND-OFF,AEL-EL,NH3SYN,NH3-REC","ARG-BA","WIND-OFF","AEL-EL","NH3SYN","NH3-REC",6657.5999999999995,"öko"]
["ARG-BA,WIND-OFF,AEL-EL,NH3SYN,NH3SYN","ARG-BA","WIND-OFF","AEL-EL","NH3SYN","NH3SYN",4840.1183406642231,"PTX Atlas"]
["ARG-BA,WIND-OFF,PEM-EL,,H2-COMP","ARG-BA","WIND-OFF","PEM-EL",null,"H2-COMP",7008]
["ARG-BA,WIND-OFF,PEM-EL,,H2-LIQ","ARG-BA","WIND-OFF","PEM-EL",null,"H2-LIQ",4960.8611358779763,"öko"]
["ARG-BA,WIND-OFF,PEM-EL,,H2-RGAS","ARG-BA","WIND-OFF","PEM-EL",null,"H2-RGAS",7008,"öko"]
["ARG-BA,WIND-OFF,PEM-EL,,PEM-EL","ARG-BA","WIND-OFF","PEM-EL",null,"PEM-EL",4754.5957918753993,"PTX Atlas"]
["ARG-BA,WIND-OFF,PEM-EL,CH3OHSYN,CH3OHREC","ARG-BA","WIND-OFF","PEM-EL","CH3OHSYN","CH3OHREC",7008,"öko"]
["ARG-BA,WIND-OFF,PEM-EL,CH3OHSYN,CH3OHSYN","ARG-BA","WIND-OFF","PEM-EL","CH3OHSYN","CH3OHSYN",5620.2365438580373,"PTX Atlas"]
["ARG-BA,WIND-OFF,PEM-EL,CH3OHSYN,PEM-EL","ARG-BA","WIND-OFF","PEM-EL","CH3OHSYN","PEM-EL",5160.1806015848442,"PTX Atlas"]
["ARG-BA,WIND-OFF,PEM-EL,CH4SYN,ATR","ARG-BA","WIND-OFF","PEM-EL","CH4SYN","ATR",7008]
["ARG-BA,WIND-OFF,PEM-EL,CH4SYN,CH4-LIQ","ARG-BA","WIND-OFF","PEM-EL","CH4SYN","CH4-LIQ",5615.3367802872108,"PTX Atlas"]
["ARG-BA,WIND-OFF,PEM-EL,CH4SYN,CH4-RGAS","ARG-BA","WIND-OFF","PEM-EL","CH4SYN","CH4-RGAS",7008,"öko"]
["ARG-BA,WIND-OFF,PEM-EL,CH4SYN,CH4SYN","ARG-BA","WIND-OFF","PEM-EL","CH4SYN","CH4SYN",5615.3367802872108,"PTX Atlas"]
["ARG-BA,WIND-OFF,PEM-EL,CH4SYN,PEM-EL","ARG-BA","WIND-OFF","PEM-EL","CH4SYN","PEM-EL",5071.328948813949,"PTX Atlas"]
["ARG-BA,WIND-OFF,PEM-EL,DRI,DRI","ARG-BA","WIND-OFF","PEM-EL","DRI","DRI",7008,"öko"]
["ARG-BA,WIND-OFF,PEM-EL,DRI,PEM-EL","ARG-BA","WIND-OFF","PEM-EL","DRI","PEM-EL",5129.3405974816578,"PTX Atlas"]
["ARG-BA,WIND-OFF,PEM-EL,EFUELSYN,EFUELSYN","ARG-BA","WIND-OFF","PEM-EL","EFUELSYN","EFUELSYN",5587.3045369803431,"PTX Atlas"]
["ARG-BA,WIND-OFF,PEM-EL,EFUELSYN,PEM-EL","ARG-BA","WIND-OFF","PEM-EL","EFUELSYN","PEM-EL",5129.3405974816578,"PTX Atlas"]
["ARG-BA,WIND-OFF,PEM-EL,LOHC-CON,LOHC-CON","ARG-BA","WIND-OFF","PEM-EL","LOHC-CON","LOHC-CON",4754.5957918753993,"PTX Atlas"]
["ARG-BA,WIND-OFF,PEM-EL,LOHC-CON,LOHC-REC","ARG-BA","WIND-OFF","PEM-EL","LOHC-CON","LOHC-REC",7008,"öko"]
["ARG-BA,WIND-OFF,PEM-EL,LOHC-CON,PEM-EL","ARG-BA","WIND-OFF","PEM-EL","LOHC-CON","PEM-EL",4754.5957918753993,"PTX Atlas"]
["ARG-BA,WIND-OFF,PEM-EL,NH3SYN,NH3-REC","ARG-BA","WIND-OFF","PEM-EL","NH3SYN","NH3-REC",7008,"öko"]
["ARG-BA,WIND-OFF,PEM-EL,NH3SYN,NH3SYN","ARG-BA","WIND-OFF","PEM-EL","NH3SYN","NH3SYN",5094.8614112254982,"PTX Atlas"]
["ARG-BA,WIND-OFF,PEM-EL,NH3SYN,PEM-EL","ARG-BA","WIND-OFF","PEM-EL","NH3SYN","PEM-EL",4969.6256931905273,"PTX Atlas"]
["ARG-BA,WIND-OFF,SOEC-EL,,H2-COMP","ARG-BA","WIND-OFF","SOEC-EL",null,"H2-COMP",7008]
["ARG-BA,WIND-OFF,SOEC-EL,,H2-LIQ","ARG-BA","WIND-OFF","SOEC-EL",null,"H2-LIQ",4910.8369454305202,"öko"]
["ARG-BA,WIND-OFF,SOEC-EL,,H2-RGAS","ARG-BA","WIND-OFF","SOEC-EL",null,"H2-RGAS",7008,"öko"]
["ARG-BA,WIND-OFF,SOEC-EL,,SOEC-EL","ARG-BA","WIND-OFF","SOEC-EL",null,"SOEC-EL",4712.1654748662013,"PTX Atlas"]
["ARG-BA,WIND-OFF,SOEC-EL,CH3OHSYN,CH3OHREC","ARG-BA","WIND-OFF","SOEC-EL","CH3OHSYN","CH3OHREC",7008,"öko"]
["ARG-BA,WIND-OFF,SOEC-EL,CH3OHSYN,CH3OHSYN","ARG-BA","WIND-OFF","SOEC-EL","CH3OHSYN","CH3OHSYN",5276.7951634422498,"PTX Atlas"]
["ARG-BA,WIND-OFF,SOEC-EL,CH3OHSYN,SOEC-EL","ARG-BA","WIND-OFF","SOEC-EL","CH3OHSYN","SOEC-EL",5276.7951634422498,"PTX Atlas"]
["ARG-BA,WIND-OFF,SOEC-EL,CH4SYN,ATR","ARG-BA","WIND-OFF","SOEC-EL","CH4SYN","ATR",7008]
["ARG-BA,WIND-OFF,SOEC-EL,CH4SYN,CH4-LIQ","ARG-BA","WIND-OFF","SOEC-EL","CH4SYN","CH4-LIQ",5274.2003272640413,"PTX Atlas"]
["ARG-BA,WIND-OFF,SOEC-EL,CH4SYN,CH4-RGAS","ARG-BA","WIND-OFF","SOEC-EL","CH4SYN","CH4-RGAS",7008,"öko"]
["ARG-BA,WIND-OFF,SOEC-EL,CH4SYN,CH4SYN","ARG-BA","WIND-OFF","SOEC-EL","CH4SYN","CH4SYN",5274.2003272640413,"PTX Atlas"]
["ARG-BA,WIND-OFF,SOEC-EL,CH4SYN,SOEC-EL","ARG-BA","WIND-OFF","SOEC-EL","CH4SYN","SOEC-EL",5274.2003272640413,"PTX Atlas"]
["ARG-BA,WIND-OFF,SOEC-EL,DRI,DRI","ARG-BA","WIND-OFF","SOEC-EL","DRI","DRI",7008,"öko"]
["ARG-BA,WIND-OFF,SOEC-EL,DRI,SOEC-EL","ARG-BA","WIND-OFF","SOEC-EL","DRI","SOEC-EL",5286.1504688697978,"PTX Atlas"]
["ARG-BA,WIND-OFF,SOEC-EL,EFUELSYN,EFUELSYN","ARG-BA","WIND-OFF","SOEC-EL","EFUELSYN","EFUELSYN",5286.1504688697978,"PTX Atlas"]
["ARG-BA,WIND-OFF,SOEC-EL,EFUELSYN,SOEC-EL","ARG-BA","WIND-OFF","SOEC-EL","EFUELSYN","SOEC-EL",5286.1504688697978,"PTX Atlas"]
["ARG-BA,WIND-OFF,SOEC-EL,LOHC-CON,LOHC-CON","ARG-BA","WIND-OFF","SOEC-EL","LOHC-CON","LOHC-CON",4712.1654748662013,"PTX Atlas"]
["ARG-BA,WIND-OFF,SOEC-EL,LOHC-CON,LOHC-REC","ARG-BA","WIND-OFF","SOEC-EL","LOHC-CON","LOHC-REC",7008,"öko"]
["ARG-BA,WIND-OFF,SOEC-EL,LOHC-CON,SOEC-EL","ARG-BA","WIND-OFF","SOEC-EL","LOHC-CON","SOEC-EL",4712.1654748662013,"PTX Atlas"]
["ARG-BA,WIND-OFF,SOEC-EL,NH3SYN,NH3-REC","ARG-BA","WIND-OFF","SOEC-EL","NH3SYN","NH3-REC",7008,"öko"]
["ARG-BA,WIND-OFF,SOEC-EL,NH3SYN,NH3SYN","ARG-BA","WIND-OFF","SOEC-EL","NH3SYN","NH3SYN",4988.5162153556921,"PTX Atlas"]
["ARG-BA,WIND-OFF,SOEC-EL,NH3SYN,SOEC-EL","ARG-BA","WIND-OFF","SOEC-EL","NH3SYN","SOEC-EL",4988.5162153556921,"PTX Atlas"]
["ARG-BA,WIND-ON,AEL-EL,,AEL-EL","ARG-BA","WIND-ON","AEL-EL",null,"AEL-EL",4436.4863154171044,"PTX Atlas"]
["ARG-BA,WIND-ON,AEL-EL,,H2-COMP","ARG-BA","WIND-ON","AEL-EL",null,"H2-COMP",6657.5999999999995]
["ARG-BA,WIND-ON,AEL-EL,,H2-LIQ","ARG-BA","WIND-ON","AEL-EL",null,"H2-LIQ",4633.9173836704804,"öko"]
["ARG-BA,WIND-ON,AEL-EL,,H2-RGAS","ARG-BA","WIND-ON","AEL-EL",null,"H2-RGAS",6657.5999999999995,"öko"]
["ARG-BA,WIND-ON,AEL-EL,CH3OHSYN,AEL-EL","ARG-BA","WIND-ON","AEL-EL","CH3OHSYN","AEL-EL",4821.9530705567222,"PTX Atlas"]
["ARG-BA,WIND-ON,AEL-EL,CH3OHSYN,CH3OHREC","ARG-BA","WIND-ON","AEL-EL","CH3OHSYN","CH3OHREC",6657.5999999999995,"öko"]
["ARG-BA,WIND-ON,AEL-EL,CH3OHSYN,CH3OHSYN","ARG-BA","WIND-ON","AEL-EL","CH3OHSYN","CH3OHSYN",5284.5391966938987,"PTX Atlas"]
["ARG-BA,WIND-ON,AEL-EL,CH4SYN,AEL-EL","ARG-BA","WIND-ON","AEL-EL","CH4SYN","AEL-EL",4737.360236718242,"PTX Atlas"]
["ARG-BA,WIND-ON,AEL-EL,CH4SYN,ATR","ARG-BA","WIND-ON","AEL-EL","CH4SYN","ATR",6657.5999999999995]
["ARG-BA,WIND-ON,AEL-EL,CH4SYN,CH4-LIQ","ARG-BA","WIND-ON","AEL-EL","CH4SYN","CH4-LIQ",5279.0981804003659,"PTX Atlas"]
["ARG-BA,WIND-ON,AEL-EL,CH4SYN,CH4-RGAS","ARG-BA","WIND-ON","AEL-EL","CH4SYN","CH4-RGAS",6657.5999999999995,"öko"]
["ARG-BA,WIND-ON,AEL-EL,CH4SYN,CH4SYN","ARG-BA","WIND-ON","AEL-EL","CH4SYN","CH4SYN",5279.0981804003659,"PTX Atlas"]
["ARG-BA,WIND-ON,AEL-EL,DRI,AEL-EL","ARG-BA","WIND-ON","AEL-EL","DRI","AEL-EL",4792.7870636584857,"PTX Atlas"]
["ARG-BA,WIND-ON,AEL-EL,DRI,DRI","ARG-BA","WIND-ON","AEL-EL","DRI","DRI",6657.5999999999995,"öko"]
["ARG-BA,WIND-ON,AEL-EL,EFUELSYN,AEL-EL","ARG-BA","WIND-ON","AEL-EL","EFUELSYN","AEL-EL",4792.7870636584857,"PTX Atlas"]
["ARG-BA,WIND-ON,AEL-EL,EFUELSYN,EFUELSYN","ARG-BA","WIND-ON","AEL-EL","EFUELSYN","EFUELSYN",5252.8391719639567,"PTX Atlas"]
["ARG-BA,WIND-ON,AEL-EL,LOHC-CON,AEL-EL","ARG-BA","WIND-ON","AEL-EL","LOHC-CON","AEL-EL",4436.4863154171044,"PTX Atlas"]
["ARG-BA,WIND-ON,AEL-EL,LOHC-CON,LOHC-CON","ARG-BA","WIND-ON","AEL-EL","LOHC-CON","LOHC-CON",4436.4863154171044,"PTX Atlas"]
["ARG-BA,WIND-ON,AEL-EL,LOHC-CON,LOHC-REC","ARG-BA","WIND-ON","AEL-EL","LOHC-CON","LOHC-REC",6657.5999999999995,"öko"]
["ARG-BA,WIND-ON,AEL-EL,NH3SYN,AEL-EL","ARG-BA","WIND-ON","AEL-EL","NH3SYN","AEL-EL",4643.3056715598404,"PTX Atlas"]
["ARG-BA,WIND-ON,AEL-EL,NH3SYN,NH3-REC","ARG-BA","WIND-ON","AEL-EL","NH3SYN","NH3-REC",6657.5999999999995,"öko"]
["ARG-BA,WIND-ON,AEL-EL,NH3SYN,NH3SYN","ARG-BA","WIND-ON","AEL-EL","NH3SYN","NH3SYN",4771.1171938680227,"PTX Atlas"]
["ARG-BA,WIND-ON,PEM-EL,,H2-COMP","ARG-BA","WIND-ON","PEM-EL",null,"H2-COMP",7008]
["ARG-BA,WIND-ON,PEM-EL,,H2-LIQ","ARG-BA","WIND-ON","PEM-EL",null,"H2-LIQ",4877.8077722847165,"öko"]
["ARG-BA,WIND-ON,PEM-EL,,H2-RGAS","ARG-BA","WIND-ON","PEM-EL",null,"H2-RGAS",7008,"öko"]
["ARG-BA,WIND-ON,PEM-EL,,PEM-EL","ARG-BA","WIND-ON","PEM-EL",null,"PEM-EL",4669.9855951758991,"PTX Atlas"]
["ARG-BA,WIND-ON,PEM-EL,CH3OHSYN,CH3OHREC","ARG-BA","WIND-ON","PEM-EL","CH3OHSYN","CH3OHREC",7008,"öko"]
["ARG-BA,WIND-ON,PEM-EL,CH3OHSYN,CH3OHSYN","ARG-BA","WIND-ON","PEM-EL","CH3OHSYN","CH3OHSYN",5562.6728386251571,"PTX Atlas"]
["ARG-BA,WIND-ON,PEM-EL,CH3OHSYN,PEM-EL","ARG-BA","WIND-ON","PEM-EL","CH3OHSYN","PEM-EL",5075.7400742702339,"PTX Atlas"]
["ARG-BA,WIND-ON,PEM-EL,CH4SYN,ATR","ARG-BA","WIND-ON","PEM-EL","CH4SYN","ATR",7008]
["ARG-BA,WIND-ON,PEM-EL,CH4SYN,CH4-LIQ","ARG-BA","WIND-ON","PEM-EL","CH4SYN","CH4-LIQ",5556.9454530530174,"PTX Atlas"]
["ARG-BA,WIND-ON,PEM-EL,CH4SYN,CH4-RGAS","ARG-BA","WIND-ON","PEM-EL","CH4SYN","CH4-RGAS",7008,"öko"]
["ARG-BA,WIND-ON,PEM-EL,CH4SYN,CH4SYN","ARG-BA","WIND-ON","PEM-EL","CH4SYN","CH4SYN",5556.9454530530174,"PTX Atlas"]
["ARG-BA,WIND-ON,PEM-EL,CH4SYN,PEM-EL","ARG-BA","WIND-ON","PEM-EL","CH4SYN","PEM-EL",4986.6949860192026,"PTX Atlas"]
["ARG-BA,WIND-ON,PEM-EL,DRI,DRI","ARG-BA","WIND-ON","PEM-EL","DRI","DRI",7008,"öko"]
["ARG-BA,WIND-ON,PEM-EL,DRI,PEM-EL","ARG-BA","WIND-ON","PEM-EL","DRI","PEM-EL",5045.0390143773539,"PTX Atlas"]
["ARG-BA,WIND-ON,PEM-EL,EFUELSYN,EFUELSYN","ARG-BA","WIND-ON","PEM-EL","EFUELSYN","EFUELSYN",5529.3043915410071,"PTX Atlas"]
["ARG-BA,WIND-ON,PEM-EL,EFUELSYN,PEM-EL","ARG-BA","WIND-ON","PEM-EL","EFUELSYN","PEM-EL",5045.0390143773539,"PTX Atlas"]
["ARG-BA,WIND-ON,PEM-EL,LOHC-CON,LOHC-CON","ARG-BA","WIND-ON","PEM-EL","LOHC-CON","LOHC-CON",4669.9855951758991,"PTX Atlas"]
["ARG-BA,WIND-ON,PEM-EL,LOHC-CON,LOHC-REC","ARG-BA","WIND-ON","PEM-EL","LOHC-CON","LOHC-REC",7008,"öko"]
["ARG-BA,WIND-ON,PEM-EL,LOHC-CON,PEM-EL","ARG-BA","WIND-ON","PEM-EL","LOHC-CON","PEM-EL",4669.9855951758991,"PTX Atlas"]
["ARG-BA,WIND-ON,PEM-EL,NH3SYN,NH3-REC","ARG-BA","WIND-ON","PEM-EL","NH3SYN","NH3-REC",7008,"öko"]
["ARG-BA,WIND-ON,PEM-EL,NH3SYN,NH3SYN","ARG-BA","WIND-ON","PEM-EL","NH3SYN","NH3SYN",5022.2286251242349,"PTX Atlas"]
["ARG-BA,WIND-ON,PEM-EL,NH3SYN,PEM-EL","ARG-BA","WIND-ON","PEM-EL","NH3SYN","PEM-EL",4887.6901805893058,"PTX Atlas"]
["ARG-BA,WIND-ON,SOEC-EL,,H2-COMP","ARG-BA","WIND-ON","SOEC-EL",null,"H2-COMP",7008]
["ARG-BA,WIND-ON,SOEC-EL,,H2-LIQ","ARG-BA","WIND-ON","SOEC-EL",null,"H2-LIQ",4826.9046438127034,"öko"]
["ARG-BA,WIND-ON,SOEC-EL,,H2-RGAS","ARG-BA","WIND-ON","SOEC-EL",null,"H2-RGAS",7008,"öko"]
["ARG-BA,WIND-ON,SOEC-EL,,SOEC-EL","ARG-BA","WIND-ON","SOEC-EL",null,"SOEC-EL",4626.7197092402675,"PTX Atlas"]
["ARG-BA,WIND-ON,SOEC-EL,CH3OHSYN,CH3OHREC","ARG-BA","WIND-ON","SOEC-EL","CH3OHSYN","CH3OHREC",7008,"öko"]
["ARG-BA,WIND-ON,SOEC-EL,CH3OHSYN,CH3OHSYN","ARG-BA","WIND-ON","SOEC-EL","CH3OHSYN","CH3OHSYN",5197.7327085328343,"PTX Atlas"]
["ARG-BA,WIND-ON,SOEC-EL,CH3OHSYN,SOEC-EL","ARG-BA","WIND-ON","SOEC-EL","CH3OHSYN","SOEC-EL",5197.7327085328343,"PTX Atlas"]
["ARG-BA,WIND-ON,SOEC-EL,CH4SYN,ATR","ARG-BA","WIND-ON","SOEC-EL","CH4SYN","ATR",7008]
["ARG-BA,WIND-ON,SOEC-EL,CH4SYN,CH4-LIQ","ARG-BA","WIND-ON","SOEC-EL","CH4SYN","CH4-LIQ",5195.1664112238359,"PTX Atlas"]
["ARG-BA,WIND-ON,SOEC-EL,CH4SYN,CH4-RGAS","ARG-BA","WIND-ON","SOEC-EL","CH4SYN","CH4-RGAS",7008,"öko"]
["ARG-BA,WIND-ON,SOEC-EL,CH4SYN,CH4SYN","ARG-BA","WIND-ON","SOEC-EL","CH4SYN","CH4SYN",5195.1664112238359,"PTX Atlas"]
["ARG-BA,WIND-ON,SOEC-EL,CH4SYN,SOEC-EL","ARG-BA","WIND-ON","SOEC-EL","CH4SYN","SOEC-EL",5195.1664112238359,"PTX Atlas"]
["ARG-BA,WIND-ON,SOEC-EL,DRI,DRI","ARG-BA","WIND-ON","SOEC-EL","DRI","DRI",7008,"öko"]
["ARG-BA,WIND-ON,SOEC-EL,DRI,SOEC-EL","ARG-BA","WIND-ON","SOEC-EL","DRI","SOEC-EL",5207.1573604127971,"PTX Atlas"]
["ARG-BA,WIND-ON,SOEC-EL,EFUELSYN,EFUELSYN","ARG-BA","WIND-ON","SOEC-EL","EFUELSYN","EFUELSYN",5207.1573604127971,"PTX Atlas"]
["ARG-BA,WIND-ON,SOEC-EL,EFUELSYN,SOEC-EL","ARG-BA","WIND-ON","SOEC-EL","EFUELSYN","SOEC-EL",5207.1573604127971,"PTX Atlas"]
["ARG-BA,WIND-ON,SOEC-EL,LOHC-CON,LOHC-CON","ARG-BA","WIND-ON","SOEC-EL","LOHC-CON","LOHC-CON",4626.7197092402675,"PTX Atlas"]
["ARG-BA,WIND-ON,SOEC-EL,LOHC-CON,LOHC-REC","ARG-BA","WIND-ON","SOEC-EL","LOHC-CON","LOHC-REC",7008,"öko"]
["ARG-BA,WIND-ON,SOEC-EL,LOHC-CON,SOEC-EL","ARG-BA","WIND-ON","SOEC-EL","LOHC-CON","SOEC-EL",4626.7197092402675,"PTX Atlas"]
["ARG-BA,WIND-ON,SOEC-EL,NH3SYN,NH3-REC","ARG-BA","WIND-ON","SOEC-EL","NH3SYN","NH3-REC",7008,"öko"]
["ARG-BA,WIND-ON,SOEC-EL,NH3SYN,NH3SYN","ARG-BA","WIND-ON","SOEC-EL","NH3SYN","NH3SYN",4907.9842176123839,"PTX Atlas"]
["ARG-BA,WIND-ON,SOEC-EL,NH3SYN,SOEC-EL","ARG-BA","WIND-ON","SOEC-EL","NH3SYN","SOEC-EL",4907.9842176123839,"PTX Atlas"]
["ARG-CAT,PV-FIX,AEL-EL,,AEL-EL","ARG-CAT","PV-FIX","AEL-EL",null,"AEL-EL",3021.1784653685831,"PTX Atlas"]
["ARG-CAT,PV-FIX,AEL-EL,,H2-COMP","ARG-CAT","PV-FIX","AEL-EL",null,"H2-COMP",6657.5999999999995]
["ARG-CAT,PV-FIX,AEL-EL,,H2-LIQ","ARG-CAT","PV-FIX","AEL-EL",null,"H2-LIQ",3049.7116753900495,"öko"]
["ARG-CAT,PV-FIX,AEL-EL,,H2-RGAS","ARG-CAT","PV-FIX","AEL-EL",null,"H2-RGAS",6657.5999999999995,"öko"]
["ARG-CAT,PV-FIX,AEL-EL,CH3OHSYN,AEL-EL","ARG-CAT","PV-FIX","AEL-EL","CH3OHSYN","AEL-EL",3153.8894456475628,"PTX Atlas"]
["ARG-CAT,PV-FIX,AEL-EL,CH3OHSYN,CH3OHREC","ARG-CAT","PV-FIX","AEL-EL","CH3OHSYN","CH3OHREC",6657.5999999999995,"öko"]
["ARG-CAT,PV-FIX,AEL-EL,CH3OHSYN,CH3OHSYN","ARG-CAT","PV-FIX","AEL-EL","CH3OHSYN","CH3OHSYN",7905.9,"PTX Atlas"]
["ARG-CAT,PV-FIX,AEL-EL,CH4SYN,AEL-EL","ARG-CAT","PV-FIX","AEL-EL","CH4SYN","AEL-EL",3098.8079750923189,"PTX Atlas"]
["ARG-CAT,PV-FIX,AEL-EL,CH4SYN,ATR","ARG-CAT","PV-FIX","AEL-EL","CH4SYN","ATR",6657.5999999999995]
["ARG-CAT,PV-FIX,AEL-EL,CH4SYN,CH4-LIQ","ARG-CAT","PV-FIX","AEL-EL","CH4SYN","CH4-LIQ",7905.9,"PTX Atlas"]
["ARG-CAT,PV-FIX,AEL-EL,CH4SYN,CH4-RGAS","ARG-CAT","PV-FIX","AEL-EL","CH4SYN","CH4-RGAS",6657.5999999999995,"öko"]
["ARG-CAT,PV-FIX,AEL-EL,CH4SYN,CH4SYN","ARG-CAT","PV-FIX","AEL-EL","CH4SYN","CH4SYN",7905.9,"PTX Atlas"]
["ARG-CAT,PV-FIX,AEL-EL,DRI,AEL-EL","ARG-CAT","PV-FIX","AEL-EL","DRI","AEL-EL",3123.3363586307164,"PTX Atlas"]
["ARG-CAT,PV-FIX,AEL-EL,DRI,DRI","ARG-CAT","PV-FIX","AEL-EL","DRI","DRI",6657.5999999999995,"öko"]
["ARG-CAT,PV-FIX,AEL-EL,EFUELSYN,AEL-EL","ARG-CAT","PV-FIX","AEL-EL","EFUELSYN","AEL-EL",3123.3363586307164,"PTX Atlas"]
["ARG-CAT,PV-FIX,AEL-EL,EFUELSYN,EFUELSYN","ARG-CAT","PV-FIX","AEL-EL","EFUELSYN","EFUELSYN",7905.9,"PTX Atlas"]
["ARG-CAT,PV-FIX,AEL-EL,LOHC-CON,AEL-EL","ARG-CAT","PV-FIX","AEL-EL","LOHC-CON","AEL-EL",3021.1784653685831,"PTX Atlas"]
["ARG-CAT,PV-FIX,AEL-EL,LOHC-CON,LOHC-CON","ARG-CAT","PV-FIX","AEL-EL","LOHC-CON","LOHC-CON",3021.1784653685831,"PTX Atlas"]
["ARG-CAT,PV-FIX,AEL-EL,LOHC-CON,LOHC-REC","ARG-CAT","PV-FIX","AEL-EL","LOHC-CON","LOHC-REC",6657.5999999999995,"öko"]
["ARG-CAT,PV-FIX,AEL-EL,NH3SYN,AEL-EL","ARG-CAT","PV-FIX","AEL-EL","NH3SYN","AEL-EL",3017.0547719684978,"PTX Atlas"]
["ARG-CAT,PV-FIX,AEL-EL,NH3SYN,NH3-REC","ARG-CAT","PV-FIX","AEL-EL","NH3SYN","NH3-REC",6657.5999999999995,"öko"]
["ARG-CAT,PV-FIX,AEL-EL,NH3SYN,NH3SYN","ARG-CAT","PV-FIX","AEL-EL","NH3SYN","NH3SYN",7905.9,"PTX Atlas"]
["ARG-CAT,PV-FIX,PEM-EL,,H2-COMP","ARG-CAT","PV-FIX","PEM-EL",null,"H2-COMP",7008]
["ARG-CAT,PV-FIX,PEM-EL,,H2-LIQ","ARG-CAT","PV-FIX","PEM-EL",null,"H2-LIQ",3210.2228162000524,"öko"]
["ARG-CAT,PV-FIX,PEM-EL,,H2-RGAS","ARG-CAT","PV-FIX","PEM-EL",null,"H2-RGAS",7008,"öko"]
["ARG-CAT,PV-FIX,PEM-EL,,PEM-EL","ARG-CAT","PV-FIX","PEM-EL",null,"PEM-EL",3180.1878582827194,"PTX Atlas"]
["ARG-CAT,PV-FIX,PEM-EL,CH3OHSYN,CH3OHREC","ARG-CAT","PV-FIX","PEM-EL","CH3OHSYN","CH3OHREC",7008,"öko"]
["ARG-CAT,PV-FIX,PEM-EL,CH3OHSYN,CH3OHSYN","ARG-CAT","PV-FIX","PEM-EL","CH3OHSYN","CH3OHSYN",8322,"PTX Atlas"]
["ARG-CAT,PV-FIX,PEM-EL,CH3OHSYN,PEM-EL","ARG-CAT","PV-FIX","PEM-EL","CH3OHSYN","PEM-EL",3319.8836269974345,"PTX Atlas"]
["ARG-CAT,PV-FIX,PEM-EL,CH4SYN,ATR","ARG-CAT","PV-FIX","PEM-EL","CH4SYN","ATR",7008]
["ARG-CAT,PV-FIX,PEM-EL,CH4SYN,CH4-LIQ","ARG-CAT","PV-FIX","PEM-EL","CH4SYN","CH4-LIQ",8322,"PTX Atlas"]
["ARG-CAT,PV-FIX,PEM-EL,CH4SYN,CH4-RGAS","ARG-CAT","PV-FIX","PEM-EL","CH4SYN","CH4-RGAS",7008,"öko"]
["ARG-CAT,PV-FIX,PEM-EL,CH4SYN,CH4SYN","ARG-CAT","PV-FIX","PEM-EL","CH4SYN","CH4SYN",8322,"PTX Atlas"]
["ARG-CAT,PV-FIX,PEM-EL,CH4SYN,PEM-EL","ARG-CAT","PV-FIX","PEM-EL","CH4SYN","PEM-EL",3261.9031316761252,"PTX Atlas"]
["ARG-CAT,PV-FIX,PEM-EL,DRI,DRI","ARG-CAT","PV-FIX","PEM-EL","DRI","DRI",7008,"öko"]
["ARG-CAT,PV-FIX,PEM-EL,DRI,PEM-EL","ARG-CAT","PV-FIX","PEM-EL","DRI","PEM-EL",3287.7224827691753,"PTX Atlas"]
["ARG-CAT,PV-FIX,PEM-EL,EFUELSYN,EFUELSYN","ARG-CAT","PV-FIX","PEM-EL","EFUELSYN","EFUELSYN",8322,"PTX Atlas"]
["ARG-CAT,PV-FIX,PEM-EL,EFUELSYN,PEM-EL","ARG-CAT","PV-FIX","PEM-EL","EFUELSYN","PEM-EL",3287.7224827691753,"PTX Atlas"]
["ARG-CAT,PV-FIX,PEM-EL,LOHC-CON,LOHC-CON","ARG-CAT","PV-FIX","PEM-EL","LOHC-CON","LOHC-CON",3180.1878582827194,"PTX Atlas"]
["ARG-CAT,PV-FIX,PEM-EL,LOHC-CON,LOHC-REC","ARG-CAT","PV-FIX","PEM-EL","LOHC-CON","LOHC-REC",7008,"öko"]
["ARG-CAT,PV-FIX,PEM-EL,LOHC-CON,PEM-EL","ARG-CAT","PV-FIX","PEM-EL","LOHC-CON","PEM-EL",3180.1878582827194,"PTX Atlas"]
["ARG-CAT,PV-FIX,PEM-EL,NH3SYN,NH3-REC","ARG-CAT","PV-FIX","PEM-EL","NH3SYN","NH3-REC",7008,"öko"]
["ARG-CAT,PV-FIX,PEM-EL,NH3SYN,NH3SYN","ARG-CAT","PV-FIX","PEM-EL","NH3SYN","NH3SYN",8322,"PTX Atlas"]
["ARG-CAT,PV-FIX,PEM-EL,NH3SYN,PEM-EL","ARG-CAT","PV-FIX","PEM-EL","NH3SYN","PEM-EL",3175.847128387893,"PTX Atlas"]
["ARG-CAT,PV-FIX,SOEC-EL,,H2-COMP","ARG-CAT","PV-FIX","SOEC-EL",null,"H2-COMP",7008]
["ARG-CAT,PV-FIX,SOEC-EL,,H2-LIQ","ARG-CAT","PV-FIX","SOEC-EL",null,"H2-LIQ",3200.7477072995771,"öko"]
["ARG-CAT,PV-FIX,SOEC-EL,,H2-RGAS","ARG-CAT","PV-FIX","SOEC-EL",null,"H2-RGAS",7008,"öko"]
["ARG-CAT,PV-FIX,SOEC-EL,,SOEC-EL","ARG-CAT","PV-FIX","SOEC-EL",null,"SOEC-EL",3167.1565912461292,"PTX Atlas"]
["ARG-CAT,PV-FIX,SOEC-EL,CH3OHSYN,CH3OHREC","ARG-CAT","PV-FIX","SOEC-EL","CH3OHSYN","CH3OHREC",7008,"öko"]
["ARG-CAT,PV-FIX,SOEC-EL,CH3OHSYN,CH3OHSYN","ARG-CAT","PV-FIX","SOEC-EL","CH3OHSYN","CH3OHSYN",8322,"PTX Atlas"]
["ARG-CAT,PV-FIX,SOEC-EL,CH3OHSYN,SOEC-EL","ARG-CAT","PV-FIX","SOEC-EL","CH3OHSYN","SOEC-EL",8322,"PTX Atlas"]
["ARG-CAT,PV-FIX,SOEC-EL,CH4SYN,ATR","ARG-CAT","PV-FIX","SOEC-EL","CH4SYN","ATR",7008]
["ARG-CAT,PV-FIX,SOEC-EL,CH4SYN,CH4-LIQ","ARG-CAT","PV-FIX","SOEC-EL","CH4SYN","CH4-LIQ",8322,"PTX Atlas"]
["ARG-CAT,PV-FIX,SOEC-EL,CH4SYN,CH4-RGAS","ARG-CAT","PV-FIX","SOEC-EL","CH4SYN","CH4-RGAS",7008,"öko"]
["ARG-CAT,PV-FIX,SOEC-EL,CH4SYN,CH4SYN","ARG-CAT","PV-FIX","SOEC-EL","CH4SYN","CH4SYN",8322,"PTX Atlas"]
["ARG-CAT,PV-FIX,SOEC-EL,CH4SYN,SOEC-EL","ARG-CAT","PV-FIX","SOEC-EL","CH4SYN","SOEC-EL",8322,"PTX Atlas"]
["ARG-CAT,PV-FIX,SOEC-EL,DRI,DRI","ARG-CAT","PV-FIX","SOEC-EL","DRI","DRI",7008,"öko"]
["ARG-CAT,PV-FIX,SOEC-EL,DRI,SOEC-EL","ARG-CAT","PV-FIX","SOEC-EL","DRI","SOEC-EL",8322,"PTX Atlas"]
["ARG-CAT,PV-FIX,SOEC-EL,EFUELSYN,EFUELSYN","ARG-CAT","PV-FIX","SOEC-EL","EFUELSYN","EFUELSYN",8322,"PTX Atlas"]
["ARG-CAT,PV-FIX,SOEC-EL,EFUELSYN,SOEC-EL","ARG-CAT","PV-FIX","SOEC-EL","EFUELSYN","SOEC-EL",8322,"PTX Atlas"]
["ARG-CAT,PV-FIX,SOEC-EL,LOHC-CON,LOHC-CON","ARG-CAT","PV-FIX","SOEC-EL","LOHC-CON","LOHC-CON",3167.1565912461292,"PTX Atlas"]
["ARG-CAT,PV-FIX,SOEC-EL,LOHC-CON,LOHC-REC","ARG-CAT","PV-FIX","SOEC-EL","LOHC-CON","LOHC-REC",7008,"öko"]
["ARG-CAT,PV-FIX,SOEC-EL,LOHC-CON,SOEC-EL","ARG-CAT","PV-FIX","SOEC-EL","LOHC-CON","SOEC-EL",3167.1565912461292,"PTX Atlas"]
["ARG-CAT,PV-FIX,SOEC-EL,NH3SYN,NH3-REC","ARG-CAT","PV-FIX","SOEC-EL","NH3SYN","NH3-REC",7008,"öko"]
["ARG-CAT,PV-FIX,SOEC-EL,NH3SYN,NH3SYN","ARG-CAT","PV-FIX","SOEC-EL","NH3SYN","NH3SYN",5053.2472355006412,"PTX Atlas"]
["ARG-CAT,PV-FIX,SOEC-EL,NH3SYN,SOEC-EL","ARG-CAT","PV-FIX","SOEC-EL","NH3SYN","SOEC-EL",5053.2472355006412,"PTX Atlas"]
["ARG-CAT,PV-TRK,AEL-EL,,H2-COMP","ARG-CAT","PV-TRK","AEL-EL",null,"H2-COMP",6657.5999999999995]
["ARG-CAT,PV-TRK,AEL-EL,,H2-RGAS","ARG-CAT","PV-TRK","AEL-EL",null,"H2-RGAS",6657.5999999999995,"öko"]
["ARG-CAT,PV-TRK,AEL-EL,CH3OHSYN,CH3OHREC","ARG-CAT","PV-TRK","AEL-EL","CH3OHSYN","CH3OHREC",6657.5999999999995,"öko"]
["ARG-CAT,PV-TRK,AEL-EL,CH4SYN,ATR","ARG-CAT","PV-TRK","AEL-EL","CH4SYN","ATR",6657.5999999999995]
["ARG-CAT,PV-TRK,AEL-EL,CH4SYN,CH4-RGAS","ARG-CAT","PV-TRK","AEL-EL","CH4SYN","CH4-RGAS",6657.5999999999995,"öko"]
["ARG-CAT,PV-TRK,AEL-EL,DRI,DRI","ARG-CAT","PV-TRK","AEL-EL","DRI","DRI",6657.5999999999995,"öko"]
["ARG-CAT,PV-TRK,AEL-EL,LOHC-CON,LOHC-REC","ARG-CAT","PV-TRK","AEL-EL","LOHC-CON","LOHC-REC",6657.5999999999995,"öko"]
["ARG-CAT,PV-TRK,AEL-EL,NH3SYN,NH3-REC","ARG-CAT","PV-TRK","AEL-EL","NH3SYN","NH3-REC",6657.5999999999995,"öko"]
["ARG-CAT,PV-TRK,PEM-EL,,H2-COMP","ARG-CAT","PV-TRK","PEM-EL",null,"H2-COMP",7008]
["ARG-CAT,PV-TRK,PEM-EL,,H2-RGAS","ARG-CAT","PV-TRK","PEM-EL",null,"H2-RGAS",7008,"öko"]
["ARG-CAT,PV-TRK,PEM-EL,CH3OHSYN,CH3OHREC","ARG-CAT","PV-TRK","PEM-EL","CH3OHSYN","CH3OHREC",7008,"öko"]
["ARG-CAT,PV-TRK,PEM-EL,CH4SYN,ATR","ARG-CAT","PV-TRK","PEM-EL","CH4SYN","ATR",7008]
["ARG-CAT,PV-TRK,PEM-EL,CH4SYN,CH4-RGAS","ARG-CAT","PV-TRK","PEM-EL","CH4SYN","CH4-RGAS",7008,"öko"]
["ARG-CAT,PV-TRK,PEM-EL,DRI,DRI","ARG-CAT","PV-TRK","PEM-EL","DRI","DRI",7008,"öko"]
["ARG-CAT,PV-TRK,PEM-EL,LOHC-CON,LOHC-REC","ARG-CAT","PV-TRK","PEM-EL","LOHC-CON","LOHC-REC",7008,"öko"]
["ARG-CAT,PV-TRK,PEM-EL,NH3SYN,NH3-REC","ARG-CAT","PV-TRK","PEM-EL","NH3SYN","NH3-REC",7008,"öko"]
["ARG-CAT,PV-TRK,SOEC-EL,,H2-COMP","ARG-CAT","PV-TRK","SOEC-EL",null,"H2-COMP",7008]
["ARG-CAT,PV-TRK,SOEC-EL,,H2-RGAS","ARG-CAT","PV-TRK","SOEC-EL",null,"H2-RGAS",7008,"öko"]
["ARG-CAT,PV-TRK,SOEC-EL,CH3OHSYN,CH3OHREC","ARG-CAT","PV-TRK","SOEC-EL","CH3OHSYN","CH3OHREC",7008,"öko"]
["ARG-CAT,PV-TRK,SOEC-EL,CH4SYN,ATR","ARG-CAT","PV-TRK","SOEC-EL","CH4SYN","ATR",7008]
["ARG-CAT,PV-TRK,SOEC-EL,CH4SYN,CH4-RGAS","ARG-CAT","PV-TRK","SOEC-EL","CH4SYN","CH4-RGAS",7008,"öko"]
["ARG-CAT,PV-TRK,SOEC-EL,DRI,DRI","ARG-CAT","PV-TRK","SOEC-EL","DRI","DRI",7008,"öko"]
["ARG-CAT,PV-TRK,SOEC-EL,LOHC-CON,LOHC-REC","ARG-CAT","PV-TRK","SOEC-EL","LOHC-CON","LOHC-REC",7008,"öko"]
["ARG-CAT,PV-TRK,SOEC-EL,NH3SYN,NH3-REC","ARG-CAT","PV-TRK","SOEC-EL","NH3SYN","NH3-REC",7008,"öko"]
["ARG-CAT,RES-HYBR,AEL-EL,,AEL-EL","ARG-CAT","RES-HYBR","AEL-EL",null,"AEL-EL",4872.1159921515782,"PTX Atlas"]
["ARG-CAT,RES-HYBR,AEL-EL,,H2-COMP","ARG-CAT","RES-HYBR","AEL-EL",null,"H2-COMP",6657.5999999999995]
["ARG-CAT,RES-HYBR,AEL-EL,,H2-LIQ","ARG-CAT","RES-HYBR","AEL-EL",null,"H2-LIQ",4803.0296223104042,"öko"]
["ARG-CAT,RES-HYBR,AEL-EL,,H2-RGAS","ARG-CAT","RES-HYBR","AEL-EL",null,"H2-RGAS",6657.5999999999995,"öko"]
["ARG-CAT,RES-HYBR,AEL-EL,CH3OHSYN,AEL-EL","ARG-CAT","RES-HYBR","AEL-EL","CH3OHSYN","AEL-EL",4894.6202157144271,"PTX Atlas"]
["ARG-CAT,RES-HYBR,AEL-EL,CH3OHSYN,CH3OHREC","ARG-CAT","RES-HYBR","AEL-EL","CH3OHSYN","CH3OHREC",6657.5999999999995,"öko"]
["ARG-CAT,RES-HYBR,AEL-EL,CH3OHSYN,CH3OHSYN","ARG-CAT","RES-HYBR","AEL-EL","CH3OHSYN","CH3OHSYN",6662.5190562582638,"PTX Atlas"]
["ARG-CAT,RES-HYBR,AEL-EL,CH4SYN,AEL-EL","ARG-CAT","RES-HYBR","AEL-EL","CH4SYN","AEL-EL",4783.096568140877,"PTX Atlas"]
["ARG-CAT,RES-HYBR,AEL-EL,CH4SYN,ATR","ARG-CAT","RES-HYBR","AEL-EL","CH4SYN","ATR",6657.5999999999995]
["ARG-CAT,RES-HYBR,AEL-EL,CH4SYN,CH4-LIQ","ARG-CAT","RES-HYBR","AEL-EL","CH4SYN","CH4-LIQ",6664.7838090518426,"PTX Atlas"]
["ARG-CAT,RES-HYBR,AEL-EL,CH4SYN,CH4-RGAS","ARG-CAT","RES-HYBR","AEL-EL","CH4SYN","CH4-RGAS",6657.5999999999995,"öko"]
["ARG-CAT,RES-HYBR,AEL-EL,CH4SYN,CH4SYN","ARG-CAT","RES-HYBR","AEL-EL","CH4SYN","CH4SYN",6664.7838090518426,"PTX Atlas"]
["ARG-CAT,RES-HYBR,AEL-EL,DRI,AEL-EL","ARG-CAT","RES-HYBR","AEL-EL","DRI","AEL-EL",4867.7291974751961,"PTX Atlas"]
["ARG-CAT,RES-HYBR,AEL-EL,DRI,DRI","ARG-CAT","RES-HYBR","AEL-EL","DRI","DRI",6657.5999999999995,"öko"]
["ARG-CAT,RES-HYBR,AEL-EL,EFUELSYN,AEL-EL","ARG-CAT","RES-HYBR","AEL-EL","EFUELSYN","AEL-EL",4867.7291974751961,"PTX Atlas"]
["ARG-CAT,RES-HYBR,AEL-EL,EFUELSYN,EFUELSYN","ARG-CAT","RES-HYBR","AEL-EL","EFUELSYN","EFUELSYN",6638.466037655633,"PTX Atlas"]
["ARG-CAT,RES-HYBR,AEL-EL,LOHC-CON,AEL-EL","ARG-CAT","RES-HYBR","AEL-EL","LOHC-CON","AEL-EL",4872.1159921515782,"PTX Atlas"]
["ARG-CAT,RES-HYBR,AEL-EL,LOHC-CON,LOHC-CON","ARG-CAT","RES-HYBR","AEL-EL","LOHC-CON","LOHC-CON",4872.1159921515782,"PTX Atlas"]
["ARG-CAT,RES-HYBR,AEL-EL,LOHC-CON,LOHC-REC","ARG-CAT","RES-HYBR","AEL-EL","LOHC-CON","LOHC-REC",6657.5999999999995,"öko"]
["ARG-CAT,RES-HYBR,AEL-EL,NH3SYN,AEL-EL","ARG-CAT","RES-HYBR","AEL-EL","NH3SYN","AEL-EL",4867.2982493677264,"PTX Atlas"]
["ARG-CAT,RES-HYBR,AEL-EL,NH3SYN,NH3-REC","ARG-CAT","RES-HYBR","AEL-EL","NH3SYN","NH3-REC",6657.5999999999995,"öko"]
["ARG-CAT,RES-HYBR,AEL-EL,NH3SYN,NH3SYN","ARG-CAT","RES-HYBR","AEL-EL","NH3SYN","NH3SYN",6287.2363535809936,"PTX Atlas"]
["ARG-CAT,RES-HYBR,PEM-EL,,H2-COMP","ARG-CAT","RES-HYBR","PEM-EL",null,"H2-COMP",7008]
["ARG-CAT,RES-HYBR,PEM-EL,,H2-LIQ","ARG-CAT","RES-HYBR","PEM-EL",null,"H2-LIQ",5055.8206550635832,"öko"]
["ARG-CAT,RES-HYBR,PEM-EL,,H2-RGAS","ARG-CAT","RES-HYBR","PEM-EL",null,"H2-RGAS",7008,"öko"]
["ARG-CAT,RES-HYBR,PEM-EL,,PEM-EL","ARG-CAT","RES-HYBR","PEM-EL",null,"PEM-EL",5128.5431496332403,"PTX Atlas"]
["ARG-CAT,RES-HYBR,PEM-EL,CH3OHSYN,CH3OHREC","ARG-CAT","RES-HYBR","PEM-EL","CH3OHSYN","CH3OHREC",7008,"öko"]
["ARG-CAT,RES-HYBR,PEM-EL,CH3OHSYN,CH3OHSYN","ARG-CAT","RES-HYBR","PEM-EL","CH3OHSYN","CH3OHSYN",7013.1779539560675,"PTX Atlas"]
["ARG-CAT,RES-HYBR,PEM-EL,CH3OHSYN,PEM-EL","ARG-CAT","RES-HYBR","PEM-EL","CH3OHSYN","PEM-EL",5152.2318060151865,"PTX Atlas"]
["ARG-CAT,RES-HYBR,PEM-EL,CH4SYN,ATR","ARG-CAT","RES-HYBR","PEM-EL","CH4SYN","ATR",7008]
["ARG-CAT,RES-HYBR,PEM-EL,CH4SYN,CH4-LIQ","ARG-CAT","RES-HYBR","PEM-EL","CH4SYN","CH4-LIQ",7015.5619042650978,"PTX Atlas"]
["ARG-CAT,RES-HYBR,PEM-EL,CH4SYN,CH4-RGAS","ARG-CAT","RES-HYBR","PEM-EL","CH4SYN","CH4-RGAS",7008,"öko"]
["ARG-CAT,RES-HYBR,PEM-EL,CH4SYN,CH4SYN","ARG-CAT","RES-HYBR","PEM-EL","CH4SYN","CH4SYN",7015.5619042650978,"PTX Atlas"]
["ARG-CAT,RES-HYBR,PEM-EL,CH4SYN,PEM-EL","ARG-CAT","RES-HYBR","PEM-EL","CH4SYN","PEM-EL",5034.8384927798706,"PTX Atlas"]
["ARG-CAT,RES-HYBR,PEM-EL,DRI,DRI","ARG-CAT","RES-HYBR","PEM-EL","DRI","DRI",7008,"öko"]
["ARG-CAT,RES-HYBR,PEM-EL,DRI,PEM-EL","ARG-CAT","RES-HYBR","PEM-EL","DRI","PEM-EL",5123.9254710265222,"PTX Atlas"]
["ARG-CAT,RES-HYBR,PEM-EL,EFUELSYN,EFUELSYN","ARG-CAT","RES-HYBR","PEM-EL","EFUELSYN","EFUELSYN",6987.8589870059295,"PTX Atlas"]
["ARG-CAT,RES-HYBR,PEM-EL,EFUELSYN,PEM-EL","ARG-CAT","RES-HYBR","PEM-EL","EFUELSYN","PEM-EL",5123.9254710265222,"PTX Atlas"]
["ARG-CAT,RES-HYBR,PEM-EL,LOHC-CON,LOHC-CON","ARG-CAT","RES-HYBR","PEM-EL","LOHC-CON","LOHC-CON",5128.5431496332403,"PTX Atlas"]
["ARG-CAT,RES-HYBR,PEM-EL,LOHC-CON,LOHC-REC","ARG-CAT","RES-HYBR","PEM-EL","LOHC-CON","LOHC-REC",7008,"öko"]
["ARG-CAT,RES-HYBR,PEM-EL,LOHC-CON,PEM-EL","ARG-CAT","RES-HYBR","PEM-EL","LOHC-CON","PEM-EL",5128.5431496332403,"PTX Atlas"]
["ARG-CAT,RES-HYBR,PEM-EL,NH3SYN,NH3-REC","ARG-CAT","RES-HYBR","PEM-EL","NH3SYN","NH3-REC",7008,"öko"]
["ARG-CAT,RES-HYBR,PEM-EL,NH3SYN,NH3SYN","ARG-CAT","RES-HYBR","PEM-EL","NH3SYN","NH3SYN",6618.1435300852572,"PTX Atlas"]
["ARG-CAT,RES-HYBR,PEM-EL,NH3SYN,PEM-EL","ARG-CAT","RES-HYBR","PEM-EL","NH3SYN","PEM-EL",5123.4718414397121,"PTX Atlas"]
["ARG-CAT,RES-HYBR,SOEC-EL,,H2-COMP","ARG-CAT","RES-HYBR","SOEC-EL",null,"H2-COMP",7008]
["ARG-CAT,RES-HYBR,SOEC-EL,,H2-LIQ","ARG-CAT","RES-HYBR","SOEC-EL",null,"H2-LIQ",4845.0987374130791,"öko"]
["ARG-CAT,RES-HYBR,SOEC-EL,,H2-RGAS","ARG-CAT","RES-HYBR","SOEC-EL",null,"H2-RGAS",7008,"öko"]
["ARG-CAT,RES-HYBR,SOEC-EL,,SOEC-EL","ARG-CAT","RES-HYBR","SOEC-EL",null,"SOEC-EL",4972.2905065006516,"PTX Atlas"]
["ARG-CAT,RES-HYBR,SOEC-EL,CH3OHSYN,CH3OHREC","ARG-CAT","RES-HYBR","SOEC-EL","CH3OHSYN","CH3OHREC",7008,"öko"]
["ARG-CAT,RES-HYBR,SOEC-EL,CH3OHSYN,CH3OHSYN","ARG-CAT","RES-HYBR","SOEC-EL","CH3OHSYN","CH3OHSYN",6363.7972663401815,"PTX Atlas"]
["ARG-CAT,RES-HYBR,SOEC-EL,CH3OHSYN,SOEC-EL","ARG-CAT","RES-HYBR","SOEC-EL","CH3OHSYN","SOEC-EL",6363.7972663401815,"PTX Atlas"]
["ARG-CAT,RES-HYBR,SOEC-EL,CH4SYN,ATR","ARG-CAT","RES-HYBR","SOEC-EL","CH4SYN","ATR",7008]
["ARG-CAT,RES-HYBR,SOEC-EL,CH4SYN,CH4-LIQ","ARG-CAT","RES-HYBR","SOEC-EL","CH4SYN","CH4-LIQ",6365.8303565741771,"PTX Atlas"]
["ARG-CAT,RES-HYBR,SOEC-EL,CH4SYN,CH4-RGAS","ARG-CAT","RES-HYBR","SOEC-EL","CH4SYN","CH4-RGAS",7008,"öko"]
["ARG-CAT,RES-HYBR,SOEC-EL,CH4SYN,CH4SYN","ARG-CAT","RES-HYBR","SOEC-EL","CH4SYN","CH4SYN",6365.8303565741771,"PTX Atlas"]
["ARG-CAT,RES-HYBR,SOEC-EL,CH4SYN,SOEC-EL","ARG-CAT","RES-HYBR","SOEC-EL","CH4SYN","SOEC-EL",6365.8303565741771,"PTX Atlas"]
["ARG-CAT,RES-HYBR,SOEC-EL,DRI,DRI","ARG-CAT","RES-HYBR","SOEC-EL","DRI","DRI",7008,"öko"]
["ARG-CAT,RES-HYBR,SOEC-EL,DRI,SOEC-EL","ARG-CAT","RES-HYBR","SOEC-EL","DRI","SOEC-EL",6402.2602726990408,"PTX Atlas"]
["ARG-CAT,RES-HYBR,SOEC-EL,EFUELSYN,EFUELSYN","ARG-CAT","RES-HYBR","SOEC-EL","EFUELSYN","EFUELSYN",6402.2602726990408,"PTX Atlas"]
["ARG-CAT,RES-HYBR,SOEC-EL,EFUELSYN,SOEC-EL","ARG-CAT","RES-HYBR","SOEC-EL","EFUELSYN","SOEC-EL",6402.2602726990408,"PTX Atlas"]
["ARG-CAT,RES-HYBR,SOEC-EL,LOHC-CON,LOHC-CON","ARG-CAT","RES-HYBR","SOEC-EL","LOHC-CON","LOHC-CON",4972.2905065006516,"PTX Atlas"]
["ARG-CAT,RES-HYBR,SOEC-EL,LOHC-CON,LOHC-REC","ARG-CAT","RES-HYBR","SOEC-EL","LOHC-CON","LOHC-REC",7008,"öko"]
["ARG-CAT,RES-HYBR,SOEC-EL,LOHC-CON,SOEC-EL","ARG-CAT","RES-HYBR","SOEC-EL","LOHC-CON","SOEC-EL",4972.2905065006516,"PTX Atlas"]
["ARG-CAT,RES-HYBR,SOEC-EL,NH3SYN,NH3-REC","ARG-CAT","RES-HYBR","SOEC-EL","NH3SYN","NH3-REC",7008,"öko"]
["ARG-CAT,RES-HYBR,SOEC-EL,NH3SYN,NH3SYN","ARG-CAT","RES-HYBR","SOEC-EL","NH3SYN","NH3SYN",5823.0642550102111,"PTX Atlas"]
["ARG-CAT,RES-HYBR,SOEC-EL,NH3SYN,SOEC-EL","ARG-CAT","RES-HYBR","SOEC-EL","NH3SYN","SOEC-EL",5823.0642550102111,"PTX Atlas"]
["ARG-CAT,WIND-OFF,AEL-EL,,AEL-EL","ARG-CAT","WIND-OFF","AEL-EL",null,"AEL-EL",1347.8293246014512,"PTX Atlas"]
["ARG-CAT,WIND-OFF,AEL-EL,,H2-COMP","ARG-CAT","WIND-OFF","AEL-EL",null,"H2-COMP",6657.5999999999995]
["ARG-CAT,WIND-OFF,AEL-EL,,H2-LIQ","ARG-CAT","WIND-OFF","AEL-EL",null,"H2-LIQ",1602.0918817851802,"öko"]
["ARG-CAT,WIND-OFF,AEL-EL,,H2-RGAS","ARG-CAT","WIND-OFF","AEL-EL",null,"H2-RGAS",6657.5999999999995,"öko"]
["ARG-CAT,WIND-OFF,AEL-EL,CH3OHSYN,AEL-EL","ARG-CAT","WIND-OFF","AEL-EL","CH3OHSYN","AEL-EL",1739.4897839541527,"PTX Atlas"]
["ARG-CAT,WIND-OFF,AEL-EL,CH3OHSYN,CH3OHREC","ARG-CAT","WIND-OFF","AEL-EL","CH3OHSYN","CH3OHREC",6657.5999999999995,"öko"]
["ARG-CAT,WIND-OFF,AEL-EL,CH3OHSYN,CH3OHSYN","ARG-CAT","WIND-OFF","AEL-EL","CH3OHSYN","CH3OHSYN",3183.2021531666219,"PTX Atlas"]
["ARG-CAT,WIND-OFF,AEL-EL,CH4SYN,AEL-EL","ARG-CAT","WIND-OFF","AEL-EL","CH4SYN","AEL-EL",1647.8356753367241,"PTX Atlas"]
["ARG-CAT,WIND-OFF,AEL-EL,CH4SYN,ATR","ARG-CAT","WIND-OFF","AEL-EL","CH4SYN","ATR",6657.5999999999995]
["ARG-CAT,WIND-OFF,AEL-EL,CH4SYN,CH4-LIQ","ARG-CAT","WIND-OFF","AEL-EL","CH4SYN","CH4-LIQ",3147.5491697601155,"PTX Atlas"]
["ARG-CAT,WIND-OFF,AEL-EL,CH4SYN,CH4-RGAS","ARG-CAT","WIND-OFF","AEL-EL","CH4SYN","CH4-RGAS",6657.5999999999995,"öko"]
["ARG-CAT,WIND-OFF,AEL-EL,CH4SYN,CH4SYN","ARG-CAT","WIND-OFF","AEL-EL","CH4SYN","CH4SYN",3147.5491697601155,"PTX Atlas"]
["ARG-CAT,WIND-OFF,AEL-EL,DRI,AEL-EL","ARG-CAT","WIND-OFF","AEL-EL","DRI","AEL-EL",1715.3958726570888,"PTX Atlas"]
["ARG-CAT,WIND-OFF,AEL-EL,DRI,DRI","ARG-CAT","WIND-OFF","AEL-EL","DRI","DRI",6657.5999999999995,"öko"]
["ARG-CAT,WIND-OFF,AEL-EL,EFUELSYN,AEL-EL","ARG-CAT","WIND-OFF","AEL-EL","EFUELSYN","AEL-EL",1715.3958726570888,"PTX Atlas"]
["ARG-CAT,WIND-OFF,AEL-EL,EFUELSYN,EFUELSYN","ARG-CAT","WIND-OFF","AEL-EL","EFUELSYN","EFUELSYN",3135.5700759497704,"PTX Atlas"]
["ARG-CAT,WIND-OFF,AEL-EL,LOHC-CON,AEL-EL","ARG-CAT","WIND-OFF","AEL-EL","LOHC-CON","AEL-EL",1347.8293246014512,"PTX Atlas"]
["ARG-CAT,WIND-OFF,AEL-EL,LOHC-CON,LOHC-CON","ARG-CAT","WIND-OFF","AEL-EL","LOHC-CON","LOHC-CON",1347.8293246014512,"PTX Atlas"]
["ARG-CAT,WIND-OFF,AEL-EL,LOHC-CON,LOHC-REC","ARG-CAT","WIND-OFF","AEL-EL","LOHC-CON","LOHC-REC",6657.5999999999995,"öko"]
["ARG-CAT,WIND-OFF,AEL-EL,NH3SYN,AEL-EL","ARG-CAT","WIND-OFF","AEL-EL","NH3SYN","AEL-EL",1652.2868149245321,"PTX Atlas"]
["ARG-CAT,WIND-OFF,AEL-EL,NH3SYN,NH3-REC","ARG-CAT","WIND-OFF","AEL-EL","NH3SYN","NH3-REC",6657.5999999999995,"öko"]
["ARG-CAT,WIND-OFF,AEL-EL,NH3SYN,NH3SYN","ARG-CAT","WIND-OFF","AEL-EL","NH3SYN","NH3SYN",2119.690163733098,"PTX Atlas"]
["ARG-CAT,WIND-OFF,PEM-EL,,H2-COMP","ARG-CAT","WIND-OFF","PEM-EL",null,"H2-COMP",7008]
["ARG-CAT,WIND-OFF,PEM-EL,,H2-LIQ","ARG-CAT","WIND-OFF","PEM-EL",null,"H2-LIQ",1686.412507142295,"öko"]
["ARG-CAT,WIND-OFF,PEM-EL,,H2-RGAS","ARG-CAT","WIND-OFF","PEM-EL",null,"H2-RGAS",7008,"öko"]
["ARG-CAT,WIND-OFF,PEM-EL,,PEM-EL","ARG-CAT","WIND-OFF","PEM-EL",null,"PEM-EL",1418.7677101067909,"PTX Atlas"]
["ARG-CAT,WIND-OFF,PEM-EL,CH3OHSYN,CH3OHREC","ARG-CAT","WIND-OFF","PEM-EL","CH3OHSYN","CH3OHREC",7008,"öko"]
["ARG-CAT,WIND-OFF,PEM-EL,CH3OHSYN,CH3OHSYN","ARG-CAT","WIND-OFF","PEM-EL","CH3OHSYN","CH3OHSYN",3350.7391085964441,"PTX Atlas"]
["ARG-CAT,WIND-OFF,PEM-EL,CH3OHSYN,PEM-EL","ARG-CAT","WIND-OFF","PEM-EL","CH3OHSYN","PEM-EL",1831.0418778464768,"PTX Atlas"]
["ARG-CAT,WIND-OFF,PEM-EL,CH4SYN,ATR","ARG-CAT","WIND-OFF","PEM-EL","CH4SYN","ATR",7008]
["ARG-CAT,WIND-OFF,PEM-EL,CH4SYN,CH4-LIQ","ARG-CAT","WIND-OFF","PEM-EL","CH4SYN","CH4-LIQ",3313.2096523790692,"PTX Atlas"]
["ARG-CAT,WIND-OFF,PEM-EL,CH4SYN,CH4-RGAS","ARG-CAT","WIND-OFF","PEM-EL","CH4SYN","CH4-RGAS",7008,"öko"]
["ARG-CAT,WIND-OFF,PEM-EL,CH4SYN,CH4SYN","ARG-CAT","WIND-OFF","PEM-EL","CH4SYN","CH4SYN",3313.2096523790692,"PTX Atlas"]
["ARG-CAT,WIND-OFF,PEM-EL,CH4SYN,PEM-EL","ARG-CAT","WIND-OFF","PEM-EL","CH4SYN","PEM-EL",1734.563868775499,"PTX Atlas"]
["ARG-CAT,WIND-OFF,PEM-EL,DRI,DRI","ARG-CAT","WIND-OFF","PEM-EL","DRI","DRI",7008,"öko"]
["ARG-CAT,WIND-OFF,PEM-EL,DRI,PEM-EL","ARG-CAT","WIND-OFF","PEM-EL","DRI","PEM-EL",1805.6798659548303,"PTX Atlas"]
["ARG-CAT,WIND-OFF,PEM-EL,EFUELSYN,EFUELSYN","ARG-CAT","WIND-OFF","PEM-EL","EFUELSYN","EFUELSYN",3300.6000799471267,"PTX Atlas"]
["ARG-CAT,WIND-OFF,PEM-EL,EFUELSYN,PEM-EL","ARG-CAT","WIND-OFF","PEM-EL","EFUELSYN","PEM-EL",1805.6798659548303,"PTX Atlas"]
["ARG-CAT,WIND-OFF,PEM-EL,LOHC-CON,LOHC-CON","ARG-CAT","WIND-OFF","PEM-EL","LOHC-CON","LOHC-CON",1418.7677101067909,"PTX Atlas"]
["ARG-CAT,WIND-OFF,PEM-EL,LOHC-CON,LOHC-REC","ARG-CAT","WIND-OFF","PEM-EL","LOHC-CON","LOHC-REC",7008,"öko"]
["ARG-CAT,WIND-OFF,PEM-EL,LOHC-CON,PEM-EL","ARG-CAT","WIND-OFF","PEM-EL","LOHC-CON","PEM-EL",1418.7677101067909,"PTX Atlas"]
["ARG-CAT,WIND-OFF,PEM-EL,NH3SYN,NH3-REC","ARG-CAT","WIND-OFF","PEM-EL","NH3SYN","NH3-REC",7008,"öko"]
["ARG-CAT,WIND-OFF,PEM-EL,NH3SYN,NH3SYN","ARG-CAT","WIND-OFF","PEM-EL","NH3SYN","NH3SYN",2231.2528039295771,"PTX Atlas"]
["ARG-CAT,WIND-OFF,PEM-EL,NH3SYN,PEM-EL","ARG-CAT","WIND-OFF","PEM-EL","NH3SYN","PEM-EL",1739.2492788679283,"PTX Atlas"]
["ARG-CAT,WIND-OFF,SOEC-EL,,H2-COMP","ARG-CAT","WIND-OFF","SOEC-EL",null,"H2-COMP",7008]
["ARG-CAT,WIND-OFF,SOEC-EL,,H2-LIQ","ARG-CAT","WIND-OFF","SOEC-EL",null,"H2-LIQ",1601.7354467237706,"öko"]
["ARG-CAT,WIND-OFF,SOEC-EL,,H2-RGAS","ARG-CAT","WIND-OFF","SOEC-EL",null,"H2-RGAS",7008,"öko"]
["ARG-CAT,WIND-OFF,SOEC-EL,,SOEC-EL","ARG-CAT","WIND-OFF","SOEC-EL",null,"SOEC-EL",1343.394386252327,"PTX Atlas"]
["ARG-CAT,WIND-OFF,SOEC-EL,CH3OHSYN,CH3OHREC","ARG-CAT","WIND-OFF","SOEC-EL","CH3OHSYN","CH3OHREC",7008,"öko"]
["ARG-CAT,WIND-OFF,SOEC-EL,CH3OHSYN,CH3OHSYN","ARG-CAT","WIND-OFF","SOEC-EL","CH3OHSYN","CH3OHSYN",2159.6914621343913,"PTX Atlas"]
["ARG-CAT,WIND-OFF,SOEC-EL,CH3OHSYN,SOEC-EL","ARG-CAT","WIND-OFF","SOEC-EL","CH3OHSYN","SOEC-EL",2159.6914621343913,"PTX Atlas"]
["ARG-CAT,WIND-OFF,SOEC-EL,CH4SYN,ATR","ARG-CAT","WIND-OFF","SOEC-EL","CH4SYN","ATR",7008]
["ARG-CAT,WIND-OFF,SOEC-EL,CH4SYN,CH4-LIQ","ARG-CAT","WIND-OFF","SOEC-EL","CH4SYN","CH4-LIQ",2158.2217948489274,"PTX Atlas"]
["ARG-CAT,WIND-OFF,SOEC-EL,CH4SYN,CH4-RGAS","ARG-CAT","WIND-OFF","SOEC-EL","CH4SYN","CH4-RGAS",7008,"öko"]
["ARG-CAT,WIND-OFF,SOEC-EL,CH4SYN,CH4SYN","ARG-CAT","WIND-OFF","SOEC-EL","CH4SYN","CH4SYN",2158.2217948489274,"PTX Atlas"]
["ARG-CAT,WIND-OFF,SOEC-EL,CH4SYN,SOEC-EL","ARG-CAT","WIND-OFF","SOEC-EL","CH4SYN","SOEC-EL",2158.2217948489274,"PTX Atlas"]
["ARG-CAT,WIND-OFF,SOEC-EL,DRI,DRI","ARG-CAT","WIND-OFF","SOEC-EL","DRI","DRI",7008,"öko"]
["ARG-CAT,WIND-OFF,SOEC-EL,DRI,SOEC-EL","ARG-CAT","WIND-OFF","SOEC-EL","DRI","SOEC-EL",2171.7808097029783,"PTX Atlas"]
["ARG-CAT,WIND-OFF,SOEC-EL,EFUELSYN,EFUELSYN","ARG-CAT","WIND-OFF","SOEC-EL","EFUELSYN","EFUELSYN",2171.7808097029783,"PTX Atlas"]
["ARG-CAT,WIND-OFF,SOEC-EL,EFUELSYN,SOEC-EL","ARG-CAT","WIND-OFF","SOEC-EL","EFUELSYN","SOEC-EL",2171.7808097029783,"PTX Atlas"]
["ARG-CAT,WIND-OFF,SOEC-EL,LOHC-CON,LOHC-CON","ARG-CAT","WIND-OFF","SOEC-EL","LOHC-CON","LOHC-CON",1343.394386252327,"PTX Atlas"]
["ARG-CAT,WIND-OFF,SOEC-EL,LOHC-CON,LOHC-REC","ARG-CAT","WIND-OFF","SOEC-EL","LOHC-CON","LOHC-REC",7008,"öko"]
["ARG-CAT,WIND-OFF,SOEC-EL,LOHC-CON,SOEC-EL","ARG-CAT","WIND-OFF","SOEC-EL","LOHC-CON","SOEC-EL",1343.394386252327,"PTX Atlas"]
["ARG-CAT,WIND-OFF,SOEC-EL,NH3SYN,NH3-REC","ARG-CAT","WIND-OFF","SOEC-EL","NH3SYN","NH3-REC",7008,"öko"]
["ARG-CAT,WIND-OFF,SOEC-EL,NH3SYN,NH3SYN","ARG-CAT","WIND-OFF","SOEC-EL","NH3SYN","NH3SYN",1813.4745533305361,"PTX Atlas"]
["ARG-CAT,WIND-OFF,SOEC-EL,NH3SYN,SOEC-EL","ARG-CAT","WIND-OFF","SOEC-EL","NH3SYN","SOEC-EL",1813.4745533305361,"PTX Atlas"]
["ARG-CAT,WIND-ON,AEL-EL,,AEL-EL","ARG-CAT","WIND-ON","AEL-EL",null,"AEL-EL",3719.13824600729,"PTX Atlas"]
["ARG-CAT,WIND-ON,AEL-EL,,H2-COMP","ARG-CAT","WIND-ON","AEL-EL",null,"H2-COMP",6657.5999999999995]
["ARG-CAT,WIND-ON,AEL-EL,,H2-LIQ","ARG-CAT","WIND-ON","AEL-EL",null,"H2-LIQ",3929.7685652578152,"öko"]
["ARG-CAT,WIND-ON,AEL-EL,,H2-RGAS","ARG-CAT","WIND-ON","AEL-EL",null,"H2-RGAS",6657.5999999999995,"öko"]
["ARG-CAT,WIND-ON,AEL-EL,CH3OHSYN,AEL-EL","ARG-CAT","WIND-ON","AEL-EL","CH3OHSYN","AEL-EL",4106.0435039566937,"PTX Atlas"]
["ARG-CAT,WIND-ON,AEL-EL,CH3OHSYN,CH3OHREC","ARG-CAT","WIND-ON","AEL-EL","CH3OHSYN","CH3OHREC",6657.5999999999995,"öko"]
["ARG-CAT,WIND-ON,AEL-EL,CH3OHSYN,CH3OHSYN","ARG-CAT","WIND-ON","AEL-EL","CH3OHSYN","CH3OHSYN",4796.4985771508573,"PTX Atlas"]
["ARG-CAT,WIND-ON,AEL-EL,CH4SYN,AEL-EL","ARG-CAT","WIND-ON","AEL-EL","CH4SYN","AEL-EL",4019.8106719425296,"PTX Atlas"]
["ARG-CAT,WIND-ON,AEL-EL,CH4SYN,ATR","ARG-CAT","WIND-ON","AEL-EL","CH4SYN","ATR",6657.5999999999995]
["ARG-CAT,WIND-ON,AEL-EL,CH4SYN,CH4-LIQ","ARG-CAT","WIND-ON","AEL-EL","CH4SYN","CH4-LIQ",4784.0407582968564,"PTX Atlas"]
["ARG-CAT,WIND-ON,AEL-EL,CH4SYN,CH4-RGAS","ARG-CAT","WIND-ON","AEL-EL","CH4SYN","CH4-RGAS",6657.5999999999995,"öko"]
["ARG-CAT,WIND-ON,AEL-EL,CH4SYN,CH4SYN","ARG-CAT","WIND-ON","AEL-EL","CH4SYN","CH4SYN",4784.0407582968564,"PTX Atlas"]
["ARG-CAT,WIND-ON,AEL-EL,DRI,AEL-EL","ARG-CAT","WIND-ON","AEL-EL","DRI","AEL-EL",4078.0555035506586,"PTX Atlas"]
["ARG-CAT,WIND-ON,AEL-EL,DRI,DRI","ARG-CAT","WIND-ON","AEL-EL","DRI","DRI",6657.5999999999995,"öko"]
["ARG-CAT,WIND-ON,AEL-EL,EFUELSYN,AEL-EL","ARG-CAT","WIND-ON","AEL-EL","EFUELSYN","AEL-EL",4078.0555035506586,"PTX Atlas"]
["ARG-CAT,WIND-ON,AEL-EL,EFUELSYN,EFUELSYN","ARG-CAT","WIND-ON","AEL-EL","EFUELSYN","EFUELSYN",4761.0982946301647,"PTX Atlas"]
["ARG-CAT,WIND-ON,AEL-EL,LOHC-CON,AEL-EL","ARG-CAT","WIND-ON","AEL-EL","LOHC-CON","AEL-EL",3719.13824600729,"PTX Atlas"]
["ARG-CAT,WIND-ON,AEL-EL,LOHC-CON,LOHC-CON","ARG-CAT","WIND-ON","AEL-EL","LOHC-CON","LOHC-CON",3719.13824600729,"PTX Atlas"]
["ARG-CAT,WIND-ON,AEL-EL,LOHC-CON,LOHC-REC","ARG-CAT","WIND-ON","AEL-EL","LOHC-CON","LOHC-REC",6657.5999999999995,"öko"]
["ARG-CAT,WIND-ON,AEL-EL,NH3SYN,AEL-EL","ARG-CAT","WIND-ON","AEL-EL","NH3SYN","AEL-EL",3948.6342953740777,"PTX Atlas"]
["ARG-CAT,WIND-ON,AEL-EL,NH3SYN,NH3-REC","ARG-CAT","WIND-ON","AEL-EL","NH3SYN","NH3-REC",6657.5999999999995,"öko"]
["ARG-CAT,WIND-ON,AEL-EL,NH3SYN,NH3SYN","ARG-CAT","WIND-ON","AEL-EL","NH3SYN","NH3SYN",4155.316842160466,"PTX Atlas"]
["ARG-CAT,WIND-ON,PEM-EL,,H2-COMP","ARG-CAT","WIND-ON","PEM-EL",null,"H2-COMP",7008]
["ARG-CAT,WIND-ON,PEM-EL,,H2-LIQ","ARG-CAT","WIND-ON","PEM-EL",null,"H2-LIQ",4136.5984897450689,"öko"]
["ARG-CAT,WIND-ON,PEM-EL,,H2-RGAS","ARG-CAT","WIND-ON","PEM-EL",null,"H2-RGAS",7008,"öko"]
["ARG-CAT,WIND-ON,PEM-EL,,PEM-EL","ARG-CAT","WIND-ON","PEM-EL",null,"PEM-EL",3914.8823642182001,"PTX Atlas"]
["ARG-CAT,WIND-ON,PEM-EL,CH3OHSYN,CH3OHREC","ARG-CAT","WIND-ON","PEM-EL","CH3OHSYN","CH3OHREC",7008,"öko"]
["ARG-CAT,WIND-ON,PEM-EL,CH3OHSYN,CH3OHSYN","ARG-CAT","WIND-ON","PEM-EL","CH3OHSYN","CH3OHSYN",5048.9458706851128,"PTX Atlas"]
["ARG-CAT,WIND-ON,PEM-EL,CH3OHSYN,PEM-EL","ARG-CAT","WIND-ON","PEM-EL","CH3OHSYN","PEM-EL",4322.1510567965197,"PTX Atlas"]
["ARG-CAT,WIND-ON,PEM-EL,CH4SYN,ATR","ARG-CAT","WIND-ON","PEM-EL","CH4SYN","ATR",7008]
["ARG-CAT,WIND-ON,PEM-EL,CH4SYN,CH4-LIQ","ARG-CAT","WIND-ON","PEM-EL","CH4SYN","CH4-LIQ",5035.8323771545856,"PTX Atlas"]
["ARG-CAT,WIND-ON,PEM-EL,CH4SYN,CH4-RGAS","ARG-CAT","WIND-ON","PEM-EL","CH4SYN","CH4-RGAS",7008,"öko"]
["ARG-CAT,WIND-ON,PEM-EL,CH4SYN,CH4SYN","ARG-CAT","WIND-ON","PEM-EL","CH4SYN","CH4SYN",5035.8323771545856,"PTX Atlas"]
["ARG-CAT,WIND-ON,PEM-EL,CH4SYN,PEM-EL","ARG-CAT","WIND-ON","PEM-EL","CH4SYN","PEM-EL",4231.3796546763469,"PTX Atlas"]
["ARG-CAT,WIND-ON,PEM-EL,DRI,DRI","ARG-CAT","WIND-ON","PEM-EL","DRI","DRI",7008,"öko"]
["ARG-CAT,WIND-ON,PEM-EL,DRI,PEM-EL","ARG-CAT","WIND-ON","PEM-EL","DRI","PEM-EL",4292.6900037375353,"PTX Atlas"]
["ARG-CAT,WIND-ON,PEM-EL,EFUELSYN,EFUELSYN","ARG-CAT","WIND-ON","PEM-EL","EFUELSYN","EFUELSYN",5011.6824154001733,"PTX Atlas"]
["ARG-CAT,WIND-ON,PEM-EL,EFUELSYN,PEM-EL","ARG-CAT","WIND-ON","PEM-EL","EFUELSYN","PEM-EL",4292.6900037375353,"PTX Atlas"]
["ARG-CAT,WIND-ON,PEM-EL,LOHC-CON,LOHC-CON","ARG-CAT","WIND-ON","PEM-EL","LOHC-CON","LOHC-CON",3914.8823642182001,"PTX Atlas"]
["ARG-CAT,WIND-ON,PEM-EL,LOHC-CON,LOHC-REC","ARG-CAT","WIND-ON","PEM-EL","LOHC-CON","LOHC-REC",7008,"öko"]
["ARG-CAT,WIND-ON,PEM-EL,LOHC-CON,PEM-EL","ARG-CAT","WIND-ON","PEM-EL","LOHC-CON","PEM-EL",3914.8823642182001,"PTX Atlas"]
["ARG-CAT,WIND-ON,PEM-EL,NH3SYN,NH3-REC","ARG-CAT","WIND-ON","PEM-EL","NH3SYN","NH3-REC",7008,"öko"]
["ARG-CAT,WIND-ON,PEM-EL,NH3SYN,NH3SYN","ARG-CAT","WIND-ON","PEM-EL","NH3SYN","NH3SYN",4374.0177285899645,"PTX Atlas"]
["ARG-CAT,WIND-ON,PEM-EL,NH3SYN,PEM-EL","ARG-CAT","WIND-ON","PEM-EL","NH3SYN","PEM-EL",4156.4571530253452,"PTX Atlas"]
["ARG-CAT,WIND-ON,SOEC-EL,,H2-COMP","ARG-CAT","WIND-ON","SOEC-EL",null,"H2-COMP",7008]
["ARG-CAT,WIND-ON,SOEC-EL,,H2-LIQ","ARG-CAT","WIND-ON","SOEC-EL",null,"H2-LIQ",4077.8512837499607,"öko"]
["ARG-CAT,WIND-ON,SOEC-EL,,H2-RGAS","ARG-CAT","WIND-ON","SOEC-EL",null,"H2-RGAS",7008,"öko"]
["ARG-CAT,WIND-ON,SOEC-EL,,SOEC-EL","ARG-CAT","WIND-ON","SOEC-EL",null,"SOEC-EL",3864.159448035035,"PTX Atlas"]
["ARG-CAT,WIND-ON,SOEC-EL,CH3OHSYN,CH3OHREC","ARG-CAT","WIND-ON","SOEC-EL","CH3OHSYN","CH3OHREC",7008,"öko"]
["ARG-CAT,WIND-ON,SOEC-EL,CH3OHSYN,CH3OHSYN","ARG-CAT","WIND-ON","SOEC-EL","CH3OHSYN","CH3OHSYN",4492.1402683972947,"PTX Atlas"]
["ARG-CAT,WIND-ON,SOEC-EL,CH3OHSYN,SOEC-EL","ARG-CAT","WIND-ON","SOEC-EL","CH3OHSYN","SOEC-EL",4492.1402683972947,"PTX Atlas"]
["ARG-CAT,WIND-ON,SOEC-EL,CH4SYN,ATR","ARG-CAT","WIND-ON","SOEC-EL","CH4SYN","ATR",7008]
["ARG-CAT,WIND-ON,SOEC-EL,CH4SYN,CH4-LIQ","ARG-CAT","WIND-ON","SOEC-EL","CH4SYN","CH4-LIQ",4489.8286660682115,"PTX Atlas"]
["ARG-CAT,WIND-ON,SOEC-EL,CH4SYN,CH4-RGAS","ARG-CAT","WIND-ON","SOEC-EL","CH4SYN","CH4-RGAS",7008,"öko"]
["ARG-CAT,WIND-ON,SOEC-EL,CH4SYN,CH4SYN","ARG-CAT","WIND-ON","SOEC-EL","CH4SYN","CH4SYN",4489.8286660682115,"PTX Atlas"]
["ARG-CAT,WIND-ON,SOEC-EL,CH4SYN,SOEC-EL","ARG-CAT","WIND-ON","SOEC-EL","CH4SYN","SOEC-EL",4489.8286660682115,"PTX Atlas"]
["ARG-CAT,WIND-ON,SOEC-EL,DRI,DRI","ARG-CAT","WIND-ON","SOEC-EL","DRI","DRI",7008,"öko"]
["ARG-CAT,WIND-ON,SOEC-EL,DRI,SOEC-EL","ARG-CAT","WIND-ON","SOEC-EL","DRI","SOEC-EL",4502.1838023070468,"PTX Atlas"]
["ARG-CAT,WIND-ON,SOEC-EL,EFUELSYN,EFUELSYN","ARG-CAT","WIND-ON","SOEC-EL","EFUELSYN","EFUELSYN",4502.1838023070468,"PTX Atlas"]
["ARG-CAT,WIND-ON,SOEC-EL,EFUELSYN,SOEC-EL","ARG-CAT","WIND-ON","SOEC-EL","EFUELSYN","SOEC-EL",4502.1838023070468,"PTX Atlas"]
["ARG-CAT,WIND-ON,SOEC-EL,LOHC-CON,LOHC-CON","ARG-CAT","WIND-ON","SOEC-EL","LOHC-CON","LOHC-CON",3864.159448035035,"PTX Atlas"]
["ARG-CAT,WIND-ON,SOEC-EL,LOHC-CON,LOHC-REC","ARG-CAT","WIND-ON","SOEC-EL","LOHC-CON","LOHC-REC",7008,"öko"]
["ARG-CAT,WIND-ON,SOEC-EL,LOHC-CON,SOEC-EL","ARG-CAT","WIND-ON","SOEC-EL","LOHC-CON","SOEC-EL",3864.159448035035,"PTX Atlas"]
["ARG-CAT,WIND-ON,SOEC-EL,NH3SYN,NH3-REC","ARG-CAT","WIND-ON","SOEC-EL","NH3SYN","NH3-REC",7008,"öko"]
["ARG-CAT,WIND-ON,SOEC-EL,NH3SYN,NH3SYN","ARG-CAT","WIND-ON","SOEC-EL","NH3SYN","NH3SYN",4189.2768506100092,"PTX Atlas"]
["ARG-CAT,WIND-ON,SOEC-EL,NH3SYN,SOEC-EL","ARG-CAT","WIND-ON","SOEC-EL","NH3SYN","SOEC-EL",4189.2768506100092,"PTX Atlas"]
["ARG-CBA,PV-FIX,AEL-EL,,AEL-EL","ARG-CBA","PV-FIX","AEL-EL",null,"AEL-EL",2610.3300127580801,"PTX Atlas"]
["ARG-CBA,PV-FIX,AEL-EL,,H2-COMP","ARG-CBA","PV-FIX","AEL-EL",null,"H2-COMP",6657.5999999999995]
["ARG-CBA,PV-FIX,AEL-EL,,H2-LIQ","ARG-CBA","PV-FIX","AEL-EL",null,"H2-LIQ",2669.9817809088449,"öko"]
["ARG-CBA,PV-FIX,AEL-EL,,H2-RGAS","ARG-CBA","PV-FIX","AEL-EL",null,"H2-RGAS",6657.5999999999995,"öko"]
["ARG-CBA,PV-FIX,AEL-EL,CH3OHSYN,AEL-EL","ARG-CBA","PV-FIX","AEL-EL","CH3OHSYN","AEL-EL",2743.4355387220189,"PTX Atlas"]
["ARG-CBA,PV-FIX,AEL-EL,CH3OHSYN,CH3OHREC","ARG-CBA","PV-FIX","AEL-EL","CH3OHSYN","CH3OHREC",6657.5999999999995,"öko"]
["ARG-CBA,PV-FIX,AEL-EL,CH3OHSYN,CH3OHSYN","ARG-CBA","PV-FIX","AEL-EL","CH3OHSYN","CH3OHSYN",7300.738854181579,"PTX Atlas"]
["ARG-CBA,PV-FIX,AEL-EL,CH4SYN,AEL-EL","ARG-CBA","PV-FIX","AEL-EL","CH4SYN","AEL-EL",2703.2951605840408,"PTX Atlas"]
["ARG-CBA,PV-FIX,AEL-EL,CH4SYN,ATR","ARG-CBA","PV-FIX","AEL-EL","CH4SYN","ATR",6657.5999999999995]
["ARG-CBA,PV-FIX,AEL-EL,CH4SYN,CH4-LIQ","ARG-CBA","PV-FIX","AEL-EL","CH4SYN","CH4-LIQ",7305.9370025312355,"PTX Atlas"]
["ARG-CBA,PV-FIX,AEL-EL,CH4SYN,CH4-RGAS","ARG-CBA","PV-FIX","AEL-EL","CH4SYN","CH4-RGAS",6657.5999999999995,"öko"]
["ARG-CBA,PV-FIX,AEL-EL,CH4SYN,CH4SYN","ARG-CBA","PV-FIX","AEL-EL","CH4SYN","CH4SYN",7305.9370025312355,"PTX Atlas"]
["ARG-CBA,PV-FIX,AEL-EL,DRI,AEL-EL","ARG-CBA","PV-FIX","AEL-EL","DRI","AEL-EL",2718.2026798508241,"PTX Atlas"]
["ARG-CBA,PV-FIX,AEL-EL,DRI,DRI","ARG-CBA","PV-FIX","AEL-EL","DRI","DRI",6657.5999999999995,"öko"]
["ARG-CBA,PV-FIX,AEL-EL,EFUELSYN,AEL-EL","ARG-CBA","PV-FIX","AEL-EL","EFUELSYN","AEL-EL",2718.2026798508241,"PTX Atlas"]
["ARG-CBA,PV-FIX,AEL-EL,EFUELSYN,EFUELSYN","ARG-CBA","PV-FIX","AEL-EL","EFUELSYN","EFUELSYN",7295.6572921850766,"PTX Atlas"]
["ARG-CBA,PV-FIX,AEL-EL,LOHC-CON,AEL-EL","ARG-CBA","PV-FIX","AEL-EL","LOHC-CON","AEL-EL",2610.3300127580801,"PTX Atlas"]
["ARG-CBA,PV-FIX,AEL-EL,LOHC-CON,LOHC-CON","ARG-CBA","PV-FIX","AEL-EL","LOHC-CON","LOHC-CON",2610.3300127580801,"PTX Atlas"]
["ARG-CBA,PV-FIX,AEL-EL,LOHC-CON,LOHC-REC","ARG-CBA","PV-FIX","AEL-EL","LOHC-CON","LOHC-REC",6657.5999999999995,"öko"]
["ARG-CBA,PV-FIX,AEL-EL,NH3SYN,AEL-EL","ARG-CBA","PV-FIX","AEL-EL","NH3SYN","AEL-EL",2629.9477078458031,"PTX Atlas"]
["ARG-CBA,PV-FIX,AEL-EL,NH3SYN,NH3-REC","ARG-CBA","PV-FIX","AEL-EL","NH3SYN","NH3-REC",6657.5999999999995,"öko"]
["ARG-CBA,PV-FIX,AEL-EL,NH3SYN,NH3SYN","ARG-CBA","PV-FIX","AEL-EL","NH3SYN","NH3SYN",7206.3979664341841,"PTX Atlas"]
["ARG-CBA,PV-FIX,PEM-EL,,H2-COMP","ARG-CBA","PV-FIX","PEM-EL",null,"H2-COMP",7008]
["ARG-CBA,PV-FIX,PEM-EL,,H2-LIQ","ARG-CBA","PV-FIX","PEM-EL",null,"H2-LIQ",2810.5071377987838,"öko"]
["ARG-CBA,PV-FIX,PEM-EL,,H2-RGAS","ARG-CBA","PV-FIX","PEM-EL",null,"H2-RGAS",7008,"öko"]
["ARG-CBA,PV-FIX,PEM-EL,,PEM-EL","ARG-CBA","PV-FIX","PEM-EL",null,"PEM-EL",2747.7158029032425,"PTX Atlas"]
["ARG-CBA,PV-FIX,PEM-EL,CH3OHSYN,CH3OHREC","ARG-CBA","PV-FIX","PEM-EL","CH3OHSYN","CH3OHREC",7008,"öko"]
["ARG-CBA,PV-FIX,PEM-EL,CH3OHSYN,CH3OHSYN","ARG-CBA","PV-FIX","PEM-EL","CH3OHSYN","CH3OHSYN",7684.9882675595582,"PTX Atlas"]
["ARG-CBA,PV-FIX,PEM-EL,CH3OHSYN,PEM-EL","ARG-CBA","PV-FIX","PEM-EL","CH3OHSYN","PEM-EL",2887.8268828652831,"PTX Atlas"]
["ARG-CBA,PV-FIX,PEM-EL,CH4SYN,ATR","ARG-CBA","PV-FIX","PEM-EL","CH4SYN","ATR",7008]
["ARG-CBA,PV-FIX,PEM-EL,CH4SYN,CH4-LIQ","ARG-CBA","PV-FIX","PEM-EL","CH4SYN","CH4-LIQ",7690.4600026644575,"PTX Atlas"]
["ARG-CBA,PV-FIX,PEM-EL,CH4SYN,CH4-RGAS","ARG-CBA","PV-FIX","PEM-EL","CH4SYN","CH4-RGAS",7008,"öko"]
["ARG-CBA,PV-FIX,PEM-EL,CH4SYN,CH4SYN","ARG-CBA","PV-FIX","PEM-EL","CH4SYN","CH4SYN",7690.4600026644575,"PTX Atlas"]
["ARG-CBA,PV-FIX,PEM-EL,CH4SYN,PEM-EL","ARG-CBA","PV-FIX","PEM-EL","CH4SYN","PEM-EL",2845.5738532463588,"PTX Atlas"]
["ARG-CBA,PV-FIX,PEM-EL,DRI,DRI","ARG-CBA","PV-FIX","PEM-EL","DRI","DRI",7008,"öko"]
["ARG-CBA,PV-FIX,PEM-EL,DRI,PEM-EL","ARG-CBA","PV-FIX","PEM-EL","DRI","PEM-EL",2861.2659787903413,"PTX Atlas"]
["ARG-CBA,PV-FIX,PEM-EL,EFUELSYN,EFUELSYN","ARG-CBA","PV-FIX","PEM-EL","EFUELSYN","EFUELSYN",7679.6392549316606,"PTX Atlas"]
["ARG-CBA,PV-FIX,PEM-EL,EFUELSYN,PEM-EL","ARG-CBA","PV-FIX","PEM-EL","EFUELSYN","PEM-EL",2861.2659787903413,"PTX Atlas"]
["ARG-CBA,PV-FIX,PEM-EL,LOHC-CON,LOHC-CON","ARG-CBA","PV-FIX","PEM-EL","LOHC-CON","LOHC-CON",2747.7158029032425,"PTX Atlas"]
["ARG-CBA,PV-FIX,PEM-EL,LOHC-CON,LOHC-REC","ARG-CBA","PV-FIX","PEM-EL","LOHC-CON","LOHC-REC",7008,"öko"]
["ARG-CBA,PV-FIX,PEM-EL,LOHC-CON,PEM-EL","ARG-CBA","PV-FIX","PEM-EL","LOHC-CON","PEM-EL",2747.7158029032425,"PTX Atlas"]
["ARG-CBA,PV-FIX,PEM-EL,NH3SYN,NH3-REC","ARG-CBA","PV-FIX","PEM-EL","NH3SYN","NH3-REC",7008,"öko"]
["ARG-CBA,PV-FIX,PEM-EL,NH3SYN,NH3SYN","ARG-CBA","PV-FIX","PEM-EL","NH3SYN","NH3SYN",7585.6820699307218,"PTX Atlas"]
["ARG-CBA,PV-FIX,PEM-EL,NH3SYN,PEM-EL","ARG-CBA","PV-FIX","PEM-EL","NH3SYN","PEM-EL",2768.3660082587403,"PTX Atlas"]
["ARG-CBA,PV-FIX,SOEC-EL,,H2-COMP","ARG-CBA","PV-FIX","SOEC-EL",null,"H2-COMP",7008]
["ARG-CBA,PV-FIX,SOEC-EL,,H2-LIQ","ARG-CBA","PV-FIX","SOEC-EL",null,"H2-LIQ",2786.6617315876401,"öko"]
["ARG-CBA,PV-FIX,SOEC-EL,,H2-RGAS","ARG-CBA","PV-FIX","SOEC-EL",null,"H2-RGAS",7008,"öko"]
["ARG-CBA,PV-FIX,SOEC-EL,,SOEC-EL","ARG-CBA","PV-FIX","SOEC-EL",null,"SOEC-EL",2718.4509573966893,"PTX Atlas"]
["ARG-CBA,PV-FIX,SOEC-EL,CH3OHSYN,CH3OHREC","ARG-CBA","PV-FIX","SOEC-EL","CH3OHSYN","CH3OHREC",7008,"öko"]
["ARG-CBA,PV-FIX,SOEC-EL,CH3OHSYN,CH3OHSYN","ARG-CBA","PV-FIX","SOEC-EL","CH3OHSYN","CH3OHSYN",7220.8545819097171,"PTX Atlas"]
["ARG-CBA,PV-FIX,SOEC-EL,CH3OHSYN,SOEC-EL","ARG-CBA","PV-FIX","SOEC-EL","CH3OHSYN","SOEC-EL",7220.8545819097171,"PTX Atlas"]
["ARG-CBA,PV-FIX,SOEC-EL,CH4SYN,ATR","ARG-CBA","PV-FIX","SOEC-EL","CH4SYN","ATR",7008]
["ARG-CBA,PV-FIX,SOEC-EL,CH4SYN,CH4-LIQ","ARG-CBA","PV-FIX","SOEC-EL","CH4SYN","CH4-LIQ",6901.4414410812496,"PTX Atlas"]
["ARG-CBA,PV-FIX,SOEC-EL,CH4SYN,CH4-RGAS","ARG-CBA","PV-FIX","SOEC-EL","CH4SYN","CH4-RGAS",7008,"öko"]
["ARG-CBA,PV-FIX,SOEC-EL,CH4SYN,CH4SYN","ARG-CBA","PV-FIX","SOEC-EL","CH4SYN","CH4SYN",6901.4414410812496,"PTX Atlas"]
["ARG-CBA,PV-FIX,SOEC-EL,CH4SYN,SOEC-EL","ARG-CBA","PV-FIX","SOEC-EL","CH4SYN","SOEC-EL",6901.4414410812496,"PTX Atlas"]
["ARG-CBA,PV-FIX,SOEC-EL,DRI,DRI","ARG-CBA","PV-FIX","SOEC-EL","DRI","DRI",7008,"öko"]
["ARG-CBA,PV-FIX,SOEC-EL,DRI,SOEC-EL","ARG-CBA","PV-FIX","SOEC-EL","DRI","SOEC-EL",7540.2640937698989,"PTX Atlas"]
["ARG-CBA,PV-FIX,SOEC-EL,EFUELSYN,EFUELSYN","ARG-CBA","PV-FIX","SOEC-EL","EFUELSYN","EFUELSYN",7540.2640937698989,"PTX Atlas"]
["ARG-CBA,PV-FIX,SOEC-EL,EFUELSYN,SOEC-EL","ARG-CBA","PV-FIX","SOEC-EL","EFUELSYN","SOEC-EL",7540.2640937698989,"PTX Atlas"]
["ARG-CBA,PV-FIX,SOEC-EL,LOHC-CON,LOHC-CON","ARG-CBA","PV-FIX","SOEC-EL","LOHC-CON","LOHC-CON",2718.4509573966893,"PTX Atlas"]
["ARG-CBA,PV-FIX,SOEC-EL,LOHC-CON,LOHC-REC","ARG-CBA","PV-FIX","SOEC-EL","LOHC-CON","LOHC-REC",7008,"öko"]
["ARG-CBA,PV-FIX,SOEC-EL,LOHC-CON,SOEC-EL","ARG-CBA","PV-FIX","SOEC-EL","LOHC-CON","SOEC-EL",2718.4509573966893,"PTX Atlas"]
["ARG-CBA,PV-FIX,SOEC-EL,NH3SYN,NH3-REC","ARG-CBA","PV-FIX","SOEC-EL","NH3SYN","NH3-REC",7008,"öko"]
["ARG-CBA,PV-FIX,SOEC-EL,NH3SYN,NH3SYN","ARG-CBA","PV-FIX","SOEC-EL","NH3SYN","NH3SYN",4342.6415777669517,"PTX Atlas"]
["ARG-CBA,PV-FIX,SOEC-EL,NH3SYN,SOEC-EL","ARG-CBA","PV-FIX","SOEC-EL","NH3SYN","SOEC-EL",4342.6415777669517,"PTX Atlas"]
["ARG-CBA,PV-TRK,AEL-EL,,H2-COMP","ARG-CBA","PV-TRK","AEL-EL",null,"H2-COMP",6657.5999999999995]
["ARG-CBA,PV-TRK,AEL-EL,,H2-RGAS","ARG-CBA","PV-TRK","AEL-EL",null,"H2-RGAS",6657.5999999999995,"öko"]
["ARG-CBA,PV-TRK,AEL-EL,CH3OHSYN,CH3OHREC","ARG-CBA","PV-TRK","AEL-EL","CH3OHSYN","CH3OHREC",6657.5999999999995,"öko"]
["ARG-CBA,PV-TRK,AEL-EL,CH4SYN,ATR","ARG-CBA","PV-TRK","AEL-EL","CH4SYN","ATR",6657.5999999999995]
["ARG-CBA,PV-TRK,AEL-EL,CH4SYN,CH4-RGAS","ARG-CBA","PV-TRK","AEL-EL","CH4SYN","CH4-RGAS",6657.5999999999995,"öko"]
["ARG-CBA,PV-TRK,AEL-EL,DRI,DRI","ARG-CBA","PV-TRK","AEL-EL","DRI","DRI",6657.5999999999995,"öko"]
["ARG-CBA,PV-TRK,AEL-EL,LOHC-CON,LOHC-REC","ARG-CBA","PV-TRK","AEL-EL","LOHC-CON","LOHC-REC",6657.5999999999995,"öko"]
["ARG-CBA,PV-TRK,AEL-EL,NH3SYN,NH3-REC","ARG-CBA","PV-TRK","AEL-EL","NH3SYN","NH3-REC",6657.5999999999995,"öko"]
["ARG-CBA,PV-TRK,PEM-EL,,H2-COMP","ARG-CBA","PV-TRK","PEM-EL",null,"H2-COMP",7008]
["ARG-CBA,PV-TRK,PEM-EL,,H2-RGAS","ARG-CBA","PV-TRK","PEM-EL",null,"H2-RGAS",7008,"öko"]
["ARG-CBA,PV-TRK,PEM-EL,CH3OHSYN,CH3OHREC","ARG-CBA","PV-TRK","PEM-EL","CH3OHSYN","CH3OHREC",7008,"öko"]
["ARG-CBA,PV-TRK,PEM-EL,CH4SYN,ATR","ARG-CBA","PV-TRK","PEM-EL","CH4SYN","ATR",7008]
["ARG-CBA,PV-TRK,PEM-EL,CH4SYN,CH4-RGAS","ARG-CBA","PV-TRK","PEM-EL","CH4SYN","CH4-RGAS",7008,"öko"]
["ARG-CBA,PV-TRK,PEM-EL,DRI,DRI","ARG-CBA","PV-TRK","PEM-EL","DRI","DRI",7008,"öko"]
["ARG-CBA,PV-TRK,PEM-EL,LOHC-CON,LOHC-REC","ARG-CBA","PV-TRK","PEM-EL","LOHC-CON","LOHC-REC",7008,"öko"]
["ARG-CBA,PV-TRK,PEM-EL,NH3SYN,NH3-REC","ARG-CBA","PV-TRK","PEM-EL","NH3SYN","NH3-REC",7008,"öko"]
["ARG-CBA,PV-TRK,SOEC-EL,,H2-COMP","ARG-CBA","PV-TRK","SOEC-EL",null,"H2-COMP",7008]
["ARG-CBA,PV-TRK,SOEC-EL,,H2-RGAS","ARG-CBA","PV-TRK","SOEC-EL",null,"H2-RGAS",7008,"öko"]
["ARG-CBA,PV-TRK,SOEC-EL,CH3OHSYN,CH3OHREC","ARG-CBA","PV-TRK","SOEC-EL","CH3OHSYN","CH3OHREC",7008,"öko"]
["ARG-CBA,PV-TRK,SOEC-EL,CH4SYN,ATR","ARG-CBA","PV-TRK","SOEC-EL","CH4SYN","ATR",7008]
["ARG-CBA,PV-TRK,SOEC-EL,CH4SYN,CH4-RGAS","ARG-CBA","PV-TRK","SOEC-EL","CH4SYN","CH4-RGAS",7008,"öko"]
["ARG-CBA,PV-TRK,SOEC-EL,DRI,DRI","ARG-CBA","PV-TRK","SOEC-EL","DRI","DRI",7008,"öko"]
["ARG-CBA,PV-TRK,SOEC-EL,LOHC-CON,LOHC-REC","ARG-CBA","PV-TRK","SOEC-EL","LOHC-CON","LOHC-REC",7008,"öko"]
["ARG-CBA,PV-TRK,SOEC-EL,NH3SYN,NH3-REC","ARG-CBA","PV-TRK","SOEC-EL","NH3SYN","NH3-REC",7008,"öko"]
["ARG-CBA,RES-HYBR,AEL-EL,,AEL-EL","ARG-CBA","RES-HYBR","AEL-EL",null,"AEL-EL",4847.3025940573143,"PTX Atlas"]
["ARG-CBA,RES-HYBR,AEL-EL,,H2-COMP","ARG-CBA","RES-HYBR","AEL-EL",null,"H2-COMP",6657.5999999999995]
["ARG-CBA,RES-HYBR,AEL-EL,,H2-LIQ","ARG-CBA","RES-HYBR","AEL-EL",null,"H2-LIQ",4776.7796464639932,"öko"]
["ARG-CBA,RES-HYBR,AEL-EL,,H2-RGAS","ARG-CBA","RES-HYBR","AEL-EL",null,"H2-RGAS",6657.5999999999995,"öko"]
["ARG-CBA,RES-HYBR,AEL-EL,CH3OHSYN,AEL-EL","ARG-CBA","RES-HYBR","AEL-EL","CH3OHSYN","AEL-EL",4867.5022308197822,"PTX Atlas"]
["ARG-CBA,RES-HYBR,AEL-EL,CH3OHSYN,CH3OHREC","ARG-CBA","RES-HYBR","AEL-EL","CH3OHSYN","CH3OHREC",6657.5999999999995,"öko"]
["ARG-CBA,RES-HYBR,AEL-EL,CH3OHSYN,CH3OHSYN","ARG-CBA","RES-HYBR","AEL-EL","CH3OHSYN","CH3OHSYN",6672.2910193320195,"PTX Atlas"]
["ARG-CBA,RES-HYBR,AEL-EL,CH4SYN,AEL-EL","ARG-CBA","RES-HYBR","AEL-EL","CH4SYN","AEL-EL",4756.5176239964449,"PTX Atlas"]
["ARG-CBA,RES-HYBR,AEL-EL,CH4SYN,ATR","ARG-CBA","RES-HYBR","AEL-EL","CH4SYN","ATR",6657.5999999999995]
["ARG-CBA,RES-HYBR,AEL-EL,CH4SYN,CH4-LIQ","ARG-CBA","RES-HYBR","AEL-EL","CH4SYN","CH4-LIQ",6674.6856621942961,"PTX Atlas"]
["ARG-CBA,RES-HYBR,AEL-EL,CH4SYN,CH4-RGAS","ARG-CBA","RES-HYBR","AEL-EL","CH4SYN","CH4-RGAS",6657.5999999999995,"öko"]
["ARG-CBA,RES-HYBR,AEL-EL,CH4SYN,CH4SYN","ARG-CBA","RES-HYBR","AEL-EL","CH4SYN","CH4SYN",6674.6856621942961,"PTX Atlas"]
["ARG-CBA,RES-HYBR,AEL-EL,DRI,AEL-EL","ARG-CBA","RES-HYBR","AEL-EL","DRI","AEL-EL",4840.6667848493898,"PTX Atlas"]
["ARG-CBA,RES-HYBR,AEL-EL,DRI,DRI","ARG-CBA","RES-HYBR","AEL-EL","DRI","DRI",6657.5999999999995,"öko"]
["ARG-CBA,RES-HYBR,AEL-EL,EFUELSYN,AEL-EL","ARG-CBA","RES-HYBR","AEL-EL","EFUELSYN","AEL-EL",4840.6667848493898,"PTX Atlas"]
["ARG-CBA,RES-HYBR,AEL-EL,EFUELSYN,EFUELSYN","ARG-CBA","RES-HYBR","AEL-EL","EFUELSYN","EFUELSYN",6648.4203433746334,"PTX Atlas"]
["ARG-CBA,RES-HYBR,AEL-EL,LOHC-CON,AEL-EL","ARG-CBA","RES-HYBR","AEL-EL","LOHC-CON","AEL-EL",4847.3025940573143,"PTX Atlas"]
["ARG-CBA,RES-HYBR,AEL-EL,LOHC-CON,LOHC-CON","ARG-CBA","RES-HYBR","AEL-EL","LOHC-CON","LOHC-CON",4847.3025940573143,"PTX Atlas"]
["ARG-CBA,RES-HYBR,AEL-EL,LOHC-CON,LOHC-REC","ARG-CBA","RES-HYBR","AEL-EL","LOHC-CON","LOHC-REC",6657.5999999999995,"öko"]
["ARG-CBA,RES-HYBR,AEL-EL,NH3SYN,AEL-EL","ARG-CBA","RES-HYBR","AEL-EL","NH3SYN","AEL-EL",4840.4345476599237,"PTX Atlas"]
["ARG-CBA,RES-HYBR,AEL-EL,NH3SYN,NH3-REC","ARG-CBA","RES-HYBR","AEL-EL","NH3SYN","NH3-REC",6657.5999999999995,"öko"]
["ARG-CBA,RES-HYBR,AEL-EL,NH3SYN,NH3SYN","ARG-CBA","RES-HYBR","AEL-EL","NH3SYN","NH3SYN",6299.0278208776754,"PTX Atlas"]
["ARG-CBA,RES-HYBR,PEM-EL,,H2-COMP","ARG-CBA","RES-HYBR","PEM-EL",null,"H2-COMP",7008]
["ARG-CBA,RES-HYBR,PEM-EL,,H2-LIQ","ARG-CBA","RES-HYBR","PEM-EL",null,"H2-LIQ",5028.1891015410456,"öko"]
["ARG-CBA,RES-HYBR,PEM-EL,,H2-RGAS","ARG-CBA","RES-HYBR","PEM-EL",null,"H2-RGAS",7008,"öko"]
["ARG-CBA,RES-HYBR,PEM-EL,,PEM-EL","ARG-CBA","RES-HYBR","PEM-EL",null,"PEM-EL",5102.4237832182262,"PTX Atlas"]
["ARG-CBA,RES-HYBR,PEM-EL,CH3OHSYN,CH3OHREC","ARG-CBA","RES-HYBR","PEM-EL","CH3OHSYN","CH3OHREC",7008,"öko"]
["ARG-CBA,RES-HYBR,PEM-EL,CH3OHSYN,CH3OHSYN","ARG-CBA","RES-HYBR","PEM-EL","CH3OHSYN","CH3OHSYN",7023.4642308758102,"PTX Atlas"]
["ARG-CBA,RES-HYBR,PEM-EL,CH3OHSYN,PEM-EL","ARG-CBA","RES-HYBR","PEM-EL","CH3OHSYN","PEM-EL",5123.6865587576658,"PTX Atlas"]
["ARG-CBA,RES-HYBR,PEM-EL,CH4SYN,ATR","ARG-CBA","RES-HYBR","PEM-EL","CH4SYN","ATR",7008]
["ARG-CBA,RES-HYBR,PEM-EL,CH4SYN,CH4-LIQ","ARG-CBA","RES-HYBR","PEM-EL","CH4SYN","CH4-LIQ",7025.9849075729435,"PTX Atlas"]
["ARG-CBA,RES-HYBR,PEM-EL,CH4SYN,CH4-RGAS","ARG-CBA","RES-HYBR","PEM-EL","CH4SYN","CH4-RGAS",7008,"öko"]
["ARG-CBA,RES-HYBR,PEM-EL,CH4SYN,CH4SYN","ARG-CBA","RES-HYBR","PEM-EL","CH4SYN","CH4SYN",7025.9849075729435,"PTX Atlas"]
["ARG-CBA,RES-HYBR,PEM-EL,CH4SYN,PEM-EL","ARG-CBA","RES-HYBR","PEM-EL","CH4SYN","PEM-EL",5006.860656838363,"PTX Atlas"]
["ARG-CBA,RES-HYBR,PEM-EL,DRI,DRI","ARG-CBA","RES-HYBR","PEM-EL","DRI","DRI",7008,"öko"]
["ARG-CBA,RES-HYBR,PEM-EL,DRI,PEM-EL","ARG-CBA","RES-HYBR","PEM-EL","DRI","PEM-EL",5095.4387208940952,"PTX Atlas"]
["ARG-CBA,RES-HYBR,PEM-EL,EFUELSYN,EFUELSYN","ARG-CBA","RES-HYBR","PEM-EL","EFUELSYN","EFUELSYN",6998.3372035522461,"PTX Atlas"]
["ARG-CBA,RES-HYBR,PEM-EL,EFUELSYN,PEM-EL","ARG-CBA","RES-HYBR","PEM-EL","EFUELSYN","PEM-EL",5095.4387208940952,"PTX Atlas"]
["ARG-CBA,RES-HYBR,PEM-EL,LOHC-CON,LOHC-CON","ARG-CBA","RES-HYBR","PEM-EL","LOHC-CON","LOHC-CON",5102.4237832182262,"PTX Atlas"]
["ARG-CBA,RES-HYBR,PEM-EL,LOHC-CON,LOHC-REC","ARG-CBA","RES-HYBR","PEM-EL","LOHC-CON","LOHC-REC",7008,"öko"]
["ARG-CBA,RES-HYBR,PEM-EL,LOHC-CON,PEM-EL","ARG-CBA","RES-HYBR","PEM-EL","LOHC-CON","PEM-EL",5102.4237832182262,"PTX Atlas"]
["ARG-CBA,RES-HYBR,PEM-EL,NH3SYN,NH3-REC","ARG-CBA","RES-HYBR","PEM-EL","NH3SYN","NH3-REC",7008,"öko"]
["ARG-CBA,RES-HYBR,PEM-EL,NH3SYN,NH3SYN","ARG-CBA","RES-HYBR","PEM-EL","NH3SYN","NH3SYN",6630.555600923869,"PTX Atlas"]
["ARG-CBA,RES-HYBR,PEM-EL,NH3SYN,PEM-EL","ARG-CBA","RES-HYBR","PEM-EL","NH3SYN","PEM-EL",5095.1942606946568,"PTX Atlas"]
["ARG-CBA,RES-HYBR,SOEC-EL,,H2-COMP","ARG-CBA","RES-HYBR","SOEC-EL",null,"H2-COMP",7008]
["ARG-CBA,RES-HYBR,SOEC-EL,,H2-LIQ","ARG-CBA","RES-HYBR","SOEC-EL",null,"H2-LIQ",4818.4485782823094,"öko"]
["ARG-CBA,RES-HYBR,SOEC-EL,,H2-RGAS","ARG-CBA","RES-HYBR","SOEC-EL",null,"H2-RGAS",7008,"öko"]
["ARG-CBA,RES-HYBR,SOEC-EL,,SOEC-EL","ARG-CBA","RES-HYBR","SOEC-EL",null,"SOEC-EL",4946.2543526121954,"PTX Atlas"]
["ARG-CBA,RES-HYBR,SOEC-EL,CH3OHSYN,CH3OHREC","ARG-CBA","RES-HYBR","SOEC-EL","CH3OHSYN","CH3OHREC",7008,"öko"]
["ARG-CBA,RES-HYBR,SOEC-EL,CH3OHSYN,CH3OHSYN","ARG-CBA","RES-HYBR","SOEC-EL","CH3OHSYN","CH3OHSYN",6369.559602997525,"PTX Atlas"]
["ARG-CBA,RES-HYBR,SOEC-EL,CH3OHSYN,SOEC-EL","ARG-CBA","RES-HYBR","SOEC-EL","CH3OHSYN","SOEC-EL",6369.559602997525,"PTX Atlas"]
["ARG-CBA,RES-HYBR,SOEC-EL,CH4SYN,ATR","ARG-CBA","RES-HYBR","SOEC-EL","CH4SYN","ATR",7008]
["ARG-CBA,RES-HYBR,SOEC-EL,CH4SYN,CH4-LIQ","ARG-CBA","RES-HYBR","SOEC-EL","CH4SYN","CH4-LIQ",6370.6974924081433,"PTX Atlas"]
["ARG-CBA,RES-HYBR,SOEC-EL,CH4SYN,CH4-RGAS","ARG-CBA","RES-HYBR","SOEC-EL","CH4SYN","CH4-RGAS",7008,"öko"]
["ARG-CBA,RES-HYBR,SOEC-EL,CH4SYN,CH4SYN","ARG-CBA","RES-HYBR","SOEC-EL","CH4SYN","CH4SYN",6370.6974924081433,"PTX Atlas"]
["ARG-CBA,RES-HYBR,SOEC-EL,CH4SYN,SOEC-EL","ARG-CBA","RES-HYBR","SOEC-EL","CH4SYN","SOEC-EL",6370.6974924081433,"PTX Atlas"]
["ARG-CBA,RES-HYBR,SOEC-EL,DRI,DRI","ARG-CBA","RES-HYBR","SOEC-EL","DRI","DRI",7008,"öko"]
["ARG-CBA,RES-HYBR,SOEC-EL,DRI,SOEC-EL","ARG-CBA","RES-HYBR","SOEC-EL","DRI","SOEC-EL",6409.4734294662676,"PTX Atlas"]
["ARG-CBA,RES-HYBR,SOEC-EL,EFUELSYN,EFUELSYN","ARG-CBA","RES-HYBR","SOEC-EL","EFUELSYN","EFUELSYN",6409.4734294662676,"PTX Atlas"]
["ARG-CBA,RES-HYBR,SOEC-EL,EFUELSYN,SOEC-EL","ARG-CBA","RES-HYBR","SOEC-EL","EFUELSYN","SOEC-EL",6409.4734294662676,"PTX Atlas"]
["ARG-CBA,RES-HYBR,SOEC-EL,LOHC-CON,LOHC-CON","ARG-CBA","RES-HYBR","SOEC-EL","LOHC-CON","LOHC-CON",4946.2543526121954,"PTX Atlas"]
["ARG-CBA,RES-HYBR,SOEC-EL,LOHC-CON,LOHC-REC","ARG-CBA","RES-HYBR","SOEC-EL","LOHC-CON","LOHC-REC",7008,"öko"]
["ARG-CBA,RES-HYBR,SOEC-EL,LOHC-CON,SOEC-EL","ARG-CBA","RES-HYBR","SOEC-EL","LOHC-CON","SOEC-EL",4946.2543526121954,"PTX Atlas"]
["ARG-CBA,RES-HYBR,SOEC-EL,NH3SYN,NH3-REC","ARG-CBA","RES-HYBR","SOEC-EL","NH3SYN","NH3-REC",7008,"öko"]
["ARG-CBA,RES-HYBR,SOEC-EL,NH3SYN,NH3SYN","ARG-CBA","RES-HYBR","SOEC-EL","NH3SYN","NH3SYN",5809.9655614491257,"PTX Atlas"]
["ARG-CBA,RES-HYBR,SOEC-EL,NH3SYN,SOEC-EL","ARG-CBA","RES-HYBR","SOEC-EL","NH3SYN","SOEC-EL",5809.9655614491257,"PTX Atlas"]
["ARG-CBA,WIND-OFF,AEL-EL,,AEL-EL","ARG-CBA","WIND-OFF","AEL-EL",null,"AEL-EL",4516.8660022816293,"PTX Atlas"]
["ARG-CBA,WIND-OFF,AEL-EL,,H2-COMP","ARG-CBA","WIND-OFF","AEL-EL",null,"H2-COMP",6657.5999999999995]
["ARG-CBA,WIND-OFF,AEL-EL,,H2-LIQ","ARG-CBA","WIND-OFF","AEL-EL",null,"H2-LIQ",4712.818079084077,"öko"]
["ARG-CBA,WIND-OFF,AEL-EL,,H2-RGAS","ARG-CBA","WIND-OFF","AEL-EL",null,"H2-RGAS",6657.5999999999995,"öko"]
["ARG-CBA,WIND-OFF,AEL-EL,CH3OHSYN,AEL-EL","ARG-CBA","WIND-OFF","AEL-EL","CH3OHSYN","AEL-EL",4902.1715715056016,"PTX Atlas"]
["ARG-CBA,WIND-OFF,AEL-EL,CH3OHSYN,CH3OHREC","ARG-CBA","WIND-OFF","AEL-EL","CH3OHSYN","CH3OHREC",6657.5999999999995,"öko"]
["ARG-CBA,WIND-OFF,AEL-EL,CH3OHSYN,CH3OHSYN","ARG-CBA","WIND-OFF","AEL-EL","CH3OHSYN","CH3OHSYN",5339.224716665135,"PTX Atlas"]
["ARG-CBA,WIND-OFF,AEL-EL,CH4SYN,AEL-EL","ARG-CBA","WIND-OFF","AEL-EL","CH4SYN","AEL-EL",4817.7625013732513,"PTX Atlas"]
["ARG-CBA,WIND-OFF,AEL-EL,CH4SYN,ATR","ARG-CBA","WIND-OFF","AEL-EL","CH4SYN","ATR",6657.5999999999995]
["ARG-CBA,WIND-OFF,AEL-EL,CH4SYN,CH4-LIQ","ARG-CBA","WIND-OFF","AEL-EL","CH4SYN","CH4-LIQ",5334.56994127285,"PTX Atlas"]
["ARG-CBA,WIND-OFF,AEL-EL,CH4SYN,CH4-RGAS","ARG-CBA","WIND-OFF","AEL-EL","CH4SYN","CH4-RGAS",6657.5999999999995,"öko"]
["ARG-CBA,WIND-OFF,AEL-EL,CH4SYN,CH4SYN","ARG-CBA","WIND-OFF","AEL-EL","CH4SYN","CH4SYN",5334.56994127285,"PTX Atlas"]
["ARG-CBA,WIND-OFF,AEL-EL,DRI,AEL-EL","ARG-CBA","WIND-OFF","AEL-EL","DRI","AEL-EL",4872.8735676075748,"PTX Atlas"]
["ARG-CBA,WIND-OFF,AEL-EL,DRI,DRI","ARG-CBA","WIND-OFF","AEL-EL","DRI","DRI",6657.5999999999995,"öko"]
["ARG-CBA,WIND-OFF,AEL-EL,EFUELSYN,AEL-EL","ARG-CBA","WIND-OFF","AEL-EL","EFUELSYN","AEL-EL",4872.8735676075748,"PTX Atlas"]
["ARG-CBA,WIND-OFF,AEL-EL,EFUELSYN,EFUELSYN","ARG-CBA","WIND-OFF","AEL-EL","EFUELSYN","EFUELSYN",5307.9393101313253,"PTX Atlas"]
["ARG-CBA,WIND-OFF,AEL-EL,LOHC-CON,AEL-EL","ARG-CBA","WIND-OFF","AEL-EL","LOHC-CON","AEL-EL",4516.8660022816293,"PTX Atlas"]
["ARG-CBA,WIND-OFF,AEL-EL,LOHC-CON,LOHC-CON","ARG-CBA","WIND-OFF","AEL-EL","LOHC-CON","LOHC-CON",4516.8660022816293,"PTX Atlas"]
["ARG-CBA,WIND-OFF,AEL-EL,LOHC-CON,LOHC-REC","ARG-CBA","WIND-OFF","AEL-EL","LOHC-CON","LOHC-REC",6657.5999999999995,"öko"]
["ARG-CBA,WIND-OFF,AEL-EL,NH3SYN,AEL-EL","ARG-CBA","WIND-OFF","AEL-EL","NH3SYN","AEL-EL",4721.1444085310004,"PTX Atlas"]
["ARG-CBA,WIND-OFF,AEL-EL,NH3SYN,NH3-REC","ARG-CBA","WIND-OFF","AEL-EL","NH3SYN","NH3-REC",6657.5999999999995,"öko"]
["ARG-CBA,WIND-OFF,AEL-EL,NH3SYN,NH3SYN","ARG-CBA","WIND-OFF","AEL-EL","NH3SYN","NH3SYN",4840.1183406642231,"PTX Atlas"]
["ARG-CBA,WIND-OFF,PEM-EL,,H2-COMP","ARG-CBA","WIND-OFF","PEM-EL",null,"H2-COMP",7008]
["ARG-CBA,WIND-OFF,PEM-EL,,H2-LIQ","ARG-CBA","WIND-OFF","PEM-EL",null,"H2-LIQ",4960.8611358779763,"öko"]
["ARG-CBA,WIND-OFF,PEM-EL,,H2-RGAS","ARG-CBA","WIND-OFF","PEM-EL",null,"H2-RGAS",7008,"öko"]
["ARG-CBA,WIND-OFF,PEM-EL,,PEM-EL","ARG-CBA","WIND-OFF","PEM-EL",null,"PEM-EL",4754.5957918753993,"PTX Atlas"]
["ARG-CBA,WIND-OFF,PEM-EL,CH3OHSYN,CH3OHREC","ARG-CBA","WIND-OFF","PEM-EL","CH3OHSYN","CH3OHREC",7008,"öko"]
["ARG-CBA,WIND-OFF,PEM-EL,CH3OHSYN,CH3OHSYN","ARG-CBA","WIND-OFF","PEM-EL","CH3OHSYN","CH3OHSYN",5620.2365438580373,"PTX Atlas"]
["ARG-CBA,WIND-OFF,PEM-EL,CH3OHSYN,PEM-EL","ARG-CBA","WIND-OFF","PEM-EL","CH3OHSYN","PEM-EL",5160.1806015848442,"PTX Atlas"]
["ARG-CBA,WIND-OFF,PEM-EL,CH4SYN,ATR","ARG-CBA","WIND-OFF","PEM-EL","CH4SYN","ATR",7008]
["ARG-CBA,WIND-OFF,PEM-EL,CH4SYN,CH4-LIQ","ARG-CBA","WIND-OFF","PEM-EL","CH4SYN","CH4-LIQ",5615.3367802872108,"PTX Atlas"]
["ARG-CBA,WIND-OFF,PEM-EL,CH4SYN,CH4-RGAS","ARG-CBA","WIND-OFF","PEM-EL","CH4SYN","CH4-RGAS",7008,"öko"]
["ARG-CBA,WIND-OFF,PEM-EL,CH4SYN,CH4SYN","ARG-CBA","WIND-OFF","PEM-EL","CH4SYN","CH4SYN",5615.3367802872108,"PTX Atlas"]
["ARG-CBA,WIND-OFF,PEM-EL,CH4SYN,PEM-EL","ARG-CBA","WIND-OFF","PEM-EL","CH4SYN","PEM-EL",5071.328948813949,"PTX Atlas"]
["ARG-CBA,WIND-OFF,PEM-EL,DRI,DRI","ARG-CBA","WIND-OFF","PEM-EL","DRI","DRI",7008,"öko"]
["ARG-CBA,WIND-OFF,PEM-EL,DRI,PEM-EL","ARG-CBA","WIND-OFF","PEM-EL","DRI","PEM-EL",5129.3405974816578,"PTX Atlas"]
["ARG-CBA,WIND-OFF,PEM-EL,EFUELSYN,EFUELSYN","ARG-CBA","WIND-OFF","PEM-EL","EFUELSYN","EFUELSYN",5587.3045369803431,"PTX Atlas"]
["ARG-CBA,WIND-OFF,PEM-EL,EFUELSYN,PEM-EL","ARG-CBA","WIND-OFF","PEM-EL","EFUELSYN","PEM-EL",5129.3405974816578,"PTX Atlas"]
["ARG-CBA,WIND-OFF,PEM-EL,LOHC-CON,LOHC-CON","ARG-CBA","WIND-OFF","PEM-EL","LOHC-CON","LOHC-CON",4754.5957918753993,"PTX Atlas"]
["ARG-CBA,WIND-OFF,PEM-EL,LOHC-CON,LOHC-REC","ARG-CBA","WIND-OFF","PEM-EL","LOHC-CON","LOHC-REC",7008,"öko"]
["ARG-CBA,WIND-OFF,PEM-EL,LOHC-CON,PEM-EL","ARG-CBA","WIND-OFF","PEM-EL","LOHC-CON","PEM-EL",4754.5957918753993,"PTX Atlas"]
["ARG-CBA,WIND-OFF,PEM-EL,NH3SYN,NH3-REC","ARG-CBA","WIND-OFF","PEM-EL","NH3SYN","NH3-REC",7008,"öko"]
["ARG-CBA,WIND-OFF,PEM-EL,NH3SYN,NH3SYN","ARG-CBA","WIND-OFF","PEM-EL","NH3SYN","NH3SYN",5094.8614112254982,"PTX Atlas"]
["ARG-CBA,WIND-OFF,PEM-EL,NH3SYN,PEM-EL","ARG-CBA","WIND-OFF","PEM-EL","NH3SYN","PEM-EL",4969.6256931905273,"PTX Atlas"]
["ARG-CBA,WIND-OFF,SOEC-EL,,H2-COMP","ARG-CBA","WIND-OFF","SOEC-EL",null,"H2-COMP",7008]
["ARG-CBA,WIND-OFF,SOEC-EL,,H2-LIQ","ARG-CBA","WIND-OFF","SOEC-EL",null,"H2-LIQ",4910.8369454305202,"öko"]
["ARG-CBA,WIND-OFF,SOEC-EL,,H2-RGAS","ARG-CBA","WIND-OFF","SOEC-EL",null,"H2-RGAS",7008,"öko"]
["ARG-CBA,WIND-OFF,SOEC-EL,,SOEC-EL","ARG-CBA","WIND-OFF","SOEC-EL",null,"SOEC-EL",4712.1654748662013,"PTX Atlas"]
["ARG-CBA,WIND-OFF,SOEC-EL,CH3OHSYN,CH3OHREC","ARG-CBA","WIND-OFF","SOEC-EL","CH3OHSYN","CH3OHREC",7008,"öko"]
["ARG-CBA,WIND-OFF,SOEC-EL,CH3OHSYN,CH3OHSYN","ARG-CBA","WIND-OFF","SOEC-EL","CH3OHSYN","CH3OHSYN",5276.7951634422498,"PTX Atlas"]
["ARG-CBA,WIND-OFF,SOEC-EL,CH3OHSYN,SOEC-EL","ARG-CBA","WIND-OFF","SOEC-EL","CH3OHSYN","SOEC-EL",5276.7951634422498,"PTX Atlas"]
["ARG-CBA,WIND-OFF,SOEC-EL,CH4SYN,ATR","ARG-CBA","WIND-OFF","SOEC-EL","CH4SYN","ATR",7008]
["ARG-CBA,WIND-OFF,SOEC-EL,CH4SYN,CH4-LIQ","ARG-CBA","WIND-OFF","SOEC-EL","CH4SYN","CH4-LIQ",5274.2003272640413,"PTX Atlas"]
["ARG-CBA,WIND-OFF,SOEC-EL,CH4SYN,CH4-RGAS","ARG-CBA","WIND-OFF","SOEC-EL","CH4SYN","CH4-RGAS",7008,"öko"]
["ARG-CBA,WIND-OFF,SOEC-EL,CH4SYN,CH4SYN","ARG-CBA","WIND-OFF","SOEC-EL","CH4SYN","CH4SYN",5274.2003272640413,"PTX Atlas"]
["ARG-CBA,WIND-OFF,SOEC-EL,CH4SYN,SOEC-EL","ARG-CBA","WIND-OFF","SOEC-EL","CH4SYN","SOEC-EL",5274.2003272640413,"PTX Atlas"]
["ARG-CBA,WIND-OFF,SOEC-EL,DRI,DRI","ARG-CBA","WIND-OFF","SOEC-EL","DRI","DRI",7008,"öko"]
["ARG-CBA,WIND-OFF,SOEC-EL,DRI,SOEC-EL","ARG-CBA","WIND-OFF","SOEC-EL","DRI","SOEC-EL",5286.1504688697978,"PTX Atlas"]
["ARG-CBA,WIND-OFF,SOEC-EL,EFUELSYN,EFUELSYN","ARG-CBA","WIND-OFF","SOEC-EL","EFUELSYN","EFUELSYN",5286.1504688697978,"PTX Atlas"]
["ARG-CBA,WIND-OFF,SOEC-EL,EFUELSYN,SOEC-EL","ARG-CBA","WIND-OFF","SOEC-EL","EFUELSYN","SOEC-EL",5286.1504688697978,"PTX Atlas"]
["ARG-CBA,WIND-OFF,SOEC-EL,LOHC-CON,LOHC-CON","ARG-CBA","WIND-OFF","SOEC-EL","LOHC-CON","LOHC-CON",4712.1654748662013,"PTX Atlas"]
["ARG-CBA,WIND-OFF,SOEC-EL,LOHC-CON,LOHC-REC","ARG-CBA","WIND-OFF","SOEC-EL","LOHC-CON","LOHC-REC",7008,"öko"]
["ARG-CBA,WIND-OFF,SOEC-EL,LOHC-CON,SOEC-EL","ARG-CBA","WIND-OFF","SOEC-EL","LOHC-CON","SOEC-EL",4712.1654748662013,"PTX Atlas"]
["ARG-CBA,WIND-OFF,SOEC-EL,NH3SYN,NH3-REC","ARG-CBA","WIND-OFF","SOEC-EL","NH3SYN","NH3-REC",7008,"öko"]
["ARG-CBA,WIND-OFF,SOEC-EL,NH3SYN,NH3SYN","ARG-CBA","WIND-OFF","SOEC-EL","NH3SYN","NH3SYN",4988.5162153556921,"PTX Atlas"]
["ARG-CBA,WIND-OFF,SOEC-EL,NH3SYN,SOEC-EL","ARG-CBA","WIND-OFF","SOEC-EL","NH3SYN","SOEC-EL",4988.5162153556921,"PTX Atlas"]
["ARG-CBA,WIND-ON,AEL-EL,,AEL-EL","ARG-CBA","WIND-ON","AEL-EL",null,"AEL-EL",4309.1957623520993,"PTX Atlas"]
["ARG-CBA,WIND-ON,AEL-EL,,H2-COMP","ARG-CBA","WIND-ON","AEL-EL",null,"H2-COMP",6657.5999999999995]
["ARG-CBA,WIND-ON,AEL-EL,,H2-LIQ","ARG-CBA","WIND-ON","AEL-EL",null,"H2-LIQ",4508.9689850366622,"öko"]
["ARG-CBA,WIND-ON,AEL-EL,,H2-RGAS","ARG-CBA","WIND-ON","AEL-EL",null,"H2-RGAS",6657.5999999999995,"öko"]
["ARG-CBA,WIND-ON,AEL-EL,CH3OHSYN,AEL-EL","ARG-CBA","WIND-ON","AEL-EL","CH3OHSYN","AEL-EL",4694.9177740764244,"PTX Atlas"]
["ARG-CBA,WIND-ON,AEL-EL,CH3OHSYN,CH3OHREC","ARG-CBA","WIND-ON","AEL-EL","CH3OHSYN","CH3OHREC",6657.5999999999995,"öko"]
["ARG-CBA,WIND-ON,AEL-EL,CH3OHSYN,CH3OHSYN","ARG-CBA","WIND-ON","AEL-EL","CH3OHSYN","CH3OHSYN",5197.9383357883526,"PTX Atlas"]
["ARG-CBA,WIND-ON,AEL-EL,CH4SYN,AEL-EL","ARG-CBA","WIND-ON","AEL-EL","CH4SYN","AEL-EL",4610.0339291044229,"PTX Atlas"]
["ARG-CBA,WIND-ON,AEL-EL,CH4SYN,ATR","ARG-CBA","WIND-ON","AEL-EL","CH4SYN","ATR",6657.5999999999995]
["ARG-CBA,WIND-ON,AEL-EL,CH4SYN,CH4-LIQ","ARG-CBA","WIND-ON","AEL-EL","CH4SYN","CH4-LIQ",5191.2522158739166,"PTX Atlas"]
["ARG-CBA,WIND-ON,AEL-EL,CH4SYN,CH4-RGAS","ARG-CBA","WIND-ON","AEL-EL","CH4SYN","CH4-RGAS",6657.5999999999995,"öko"]
["ARG-CBA,WIND-ON,AEL-EL,CH4SYN,CH4SYN","ARG-CBA","WIND-ON","AEL-EL","CH4SYN","CH4SYN",5191.2522158739166,"PTX Atlas"]
["ARG-CBA,WIND-ON,AEL-EL,DRI,AEL-EL","ARG-CBA","WIND-ON","AEL-EL","DRI","AEL-EL",4665.9607997305848,"PTX Atlas"]
["ARG-CBA,WIND-ON,AEL-EL,DRI,DRI","ARG-CBA","WIND-ON","AEL-EL","DRI","DRI",6657.5999999999995,"öko"]
["ARG-CBA,WIND-ON,AEL-EL,EFUELSYN,AEL-EL","ARG-CBA","WIND-ON","AEL-EL","EFUELSYN","AEL-EL",4665.9607997305848,"PTX Atlas"]
["ARG-CBA,WIND-ON,AEL-EL,EFUELSYN,EFUELSYN","ARG-CBA","WIND-ON","AEL-EL","EFUELSYN","EFUELSYN",5165.5817150755765,"PTX Atlas"]
["ARG-CBA,WIND-ON,AEL-EL,LOHC-CON,AEL-EL","ARG-CBA","WIND-ON","AEL-EL","LOHC-CON","AEL-EL",4309.1957623520993,"PTX Atlas"]
["ARG-CBA,WIND-ON,AEL-EL,LOHC-CON,LOHC-CON","ARG-CBA","WIND-ON","AEL-EL","LOHC-CON","LOHC-CON",4309.1957623520993,"PTX Atlas"]
["ARG-CBA,WIND-ON,AEL-EL,LOHC-CON,LOHC-REC","ARG-CBA","WIND-ON","AEL-EL","LOHC-CON","LOHC-REC",6657.5999999999995,"öko"]
["ARG-CBA,WIND-ON,AEL-EL,NH3SYN,AEL-EL","ARG-CBA","WIND-ON","AEL-EL","NH3SYN","AEL-EL",4520.039007239041,"PTX Atlas"]
["ARG-CBA,WIND-ON,AEL-EL,NH3SYN,NH3-REC","ARG-CBA","WIND-ON","AEL-EL","NH3SYN","NH3-REC",6657.5999999999995,"öko"]
["ARG-CBA,WIND-ON,AEL-EL,NH3SYN,NH3SYN","ARG-CBA","WIND-ON","AEL-EL","NH3SYN","NH3SYN",4661.8458781858471,"PTX Atlas"]
["ARG-CBA,WIND-ON,PEM-EL,,H2-COMP","ARG-CBA","WIND-ON","PEM-EL",null,"H2-COMP",7008]
["ARG-CBA,WIND-ON,PEM-EL,,H2-LIQ","ARG-CBA","WIND-ON","PEM-EL",null,"H2-LIQ",4746.283142143855,"öko"]
["ARG-CBA,WIND-ON,PEM-EL,,H2-RGAS","ARG-CBA","WIND-ON","PEM-EL",null,"H2-RGAS",7008,"öko"]
["ARG-CBA,WIND-ON,PEM-EL,,PEM-EL","ARG-CBA","WIND-ON","PEM-EL",null,"PEM-EL",4535.9955393179998,"PTX Atlas"]
["ARG-CBA,WIND-ON,PEM-EL,CH3OHSYN,CH3OHREC","ARG-CBA","WIND-ON","PEM-EL","CH3OHSYN","CH3OHREC",7008,"öko"]
["ARG-CBA,WIND-ON,PEM-EL,CH3OHSYN,CH3OHSYN","ARG-CBA","WIND-ON","PEM-EL","CH3OHSYN","CH3OHSYN",5471.5140376719501,"PTX Atlas"]
["ARG-CBA,WIND-ON,PEM-EL,CH3OHSYN,PEM-EL","ARG-CBA","WIND-ON","PEM-EL","CH3OHSYN","PEM-EL",4942.0187095541314,"PTX Atlas"]
["ARG-CBA,WIND-ON,PEM-EL,CH4SYN,ATR","ARG-CBA","WIND-ON","PEM-EL","CH4SYN","ATR",7008]
["ARG-CBA,WIND-ON,PEM-EL,CH4SYN,CH4-LIQ","ARG-CBA","WIND-ON","PEM-EL","CH4SYN","CH4-LIQ",5464.4760167093864,"PTX Atlas"]
["ARG-CBA,WIND-ON,PEM-EL,CH4SYN,CH4-RGAS","ARG-CBA","WIND-ON","PEM-EL","CH4SYN","CH4-RGAS",7008,"öko"]
["ARG-CBA,WIND-ON,PEM-EL,CH4SYN,CH4SYN","ARG-CBA","WIND-ON","PEM-EL","CH4SYN","CH4SYN",5464.4760167093864,"PTX Atlas"]
["ARG-CBA,WIND-ON,PEM-EL,CH4SYN,PEM-EL","ARG-CBA","WIND-ON","PEM-EL","CH4SYN","PEM-EL",4852.6672937941294,"PTX Atlas"]
["ARG-CBA,WIND-ON,PEM-EL,DRI,DRI","ARG-CBA","WIND-ON","PEM-EL","DRI","DRI",7008,"öko"]
["ARG-CBA,WIND-ON,PEM-EL,DRI,PEM-EL","ARG-CBA","WIND-ON","PEM-EL","DRI","PEM-EL",4911.537683926932,"PTX Atlas"]
["ARG-CBA,WIND-ON,PEM-EL,EFUELSYN,EFUELSYN","ARG-CBA","WIND-ON","PEM-EL","EFUELSYN","EFUELSYN",5437.4544369216601,"PTX Atlas"]
["ARG-CBA,WIND-ON,PEM-EL,EFUELSYN,PEM-EL","ARG-CBA","WIND-ON","PEM-EL","EFUELSYN","PEM-EL",4911.537683926932,"PTX Atlas"]
["ARG-CBA,WIND-ON,PEM-EL,LOHC-CON,LOHC-CON","ARG-CBA","WIND-ON","PEM-EL","LOHC-CON","LOHC-CON",4535.9955393179998,"PTX Atlas"]
["ARG-CBA,WIND-ON,PEM-EL,LOHC-CON,LOHC-REC","ARG-CBA","WIND-ON","PEM-EL","LOHC-CON","LOHC-REC",7008,"öko"]
["ARG-CBA,WIND-ON,PEM-EL,LOHC-CON,PEM-EL","ARG-CBA","WIND-ON","PEM-EL","LOHC-CON","PEM-EL",4535.9955393179998,"PTX Atlas"]
["ARG-CBA,WIND-ON,PEM-EL,NH3SYN,NH3-REC","ARG-CBA","WIND-ON","PEM-EL","NH3SYN","NH3-REC",7008,"öko"]
["ARG-CBA,WIND-ON,PEM-EL,NH3SYN,NH3SYN","ARG-CBA","WIND-ON","PEM-EL","NH3SYN","NH3SYN",4907.2061875640502,"PTX Atlas"]
["ARG-CBA,WIND-ON,PEM-EL,NH3SYN,PEM-EL","ARG-CBA","WIND-ON","PEM-EL","NH3SYN","PEM-EL",4757.9357970937272,"PTX Atlas"]
["ARG-CBA,WIND-ON,SOEC-EL,,H2-COMP","ARG-CBA","WIND-ON","SOEC-EL",null,"H2-COMP",7008]
["ARG-CBA,WIND-ON,SOEC-EL,,H2-LIQ","ARG-CBA","WIND-ON","SOEC-EL",null,"H2-LIQ",4693.9881134092248,"öko"]
["ARG-CBA,WIND-ON,SOEC-EL,,H2-RGAS","ARG-CBA","WIND-ON","SOEC-EL",null,"H2-RGAS",7008,"öko"]
["ARG-CBA,WIND-ON,SOEC-EL,,SOEC-EL","ARG-CBA","WIND-ON","SOEC-EL",null,"SOEC-EL",4491.4064331146783,"PTX Atlas"]
["ARG-CBA,WIND-ON,SOEC-EL,CH3OHSYN,CH3OHREC","ARG-CBA","WIND-ON","SOEC-EL","CH3OHSYN","CH3OHREC",7008,"öko"]
["ARG-CBA,WIND-ON,SOEC-EL,CH3OHSYN,CH3OHSYN","ARG-CBA","WIND-ON","SOEC-EL","CH3OHSYN","CH3OHSYN",5072.5281449836039,"PTX Atlas"]
["ARG-CBA,WIND-ON,SOEC-EL,CH3OHSYN,SOEC-EL","ARG-CBA","WIND-ON","SOEC-EL","CH3OHSYN","SOEC-EL",5072.5281449836039,"PTX Atlas"]
["ARG-CBA,WIND-ON,SOEC-EL,CH4SYN,ATR","ARG-CBA","WIND-ON","SOEC-EL","CH4SYN","ATR",7008]
["ARG-CBA,WIND-ON,SOEC-EL,CH4SYN,CH4-LIQ","ARG-CBA","WIND-ON","SOEC-EL","CH4SYN","CH4-LIQ",5070.0070422826884,"PTX Atlas"]
["ARG-CBA,WIND-ON,SOEC-EL,CH4SYN,CH4-RGAS","ARG-CBA","WIND-ON","SOEC-EL","CH4SYN","CH4-RGAS",7008,"öko"]
["ARG-CBA,WIND-ON,SOEC-EL,CH4SYN,CH4SYN","ARG-CBA","WIND-ON","SOEC-EL","CH4SYN","CH4SYN",5070.0070422826884,"PTX Atlas"]
["ARG-CBA,WIND-ON,SOEC-EL,CH4SYN,SOEC-EL","ARG-CBA","WIND-ON","SOEC-EL","CH4SYN","SOEC-EL",5070.0070422826884,"PTX Atlas"]
["ARG-CBA,WIND-ON,SOEC-EL,DRI,DRI","ARG-CBA","WIND-ON","SOEC-EL","DRI","DRI",7008,"öko"]
["ARG-CBA,WIND-ON,SOEC-EL,DRI,SOEC-EL","ARG-CBA","WIND-ON","SOEC-EL","DRI","SOEC-EL",5082.0626150107291,"PTX Atlas"]
["ARG-CBA,WIND-ON,SOEC-EL,EFUELSYN,EFUELSYN","ARG-CBA","WIND-ON","SOEC-EL","EFUELSYN","EFUELSYN",5082.0626150107291,"PTX Atlas"]
["ARG-CBA,WIND-ON,SOEC-EL,EFUELSYN,SOEC-EL","ARG-CBA","WIND-ON","SOEC-EL","EFUELSYN","SOEC-EL",5082.0626150107291,"PTX Atlas"]
["ARG-CBA,WIND-ON,SOEC-EL,LOHC-CON,LOHC-CON","ARG-CBA","WIND-ON","SOEC-EL","LOHC-CON","LOHC-CON",4491.4064331146783,"PTX Atlas"]
["ARG-CBA,WIND-ON,SOEC-EL,LOHC-CON,LOHC-REC","ARG-CBA","WIND-ON","SOEC-EL","LOHC-CON","LOHC-REC",7008,"öko"]
["ARG-CBA,WIND-ON,SOEC-EL,LOHC-CON,SOEC-EL","ARG-CBA","WIND-ON","SOEC-EL","LOHC-CON","SOEC-EL",4491.4064331146783,"PTX Atlas"]
["ARG-CBA,WIND-ON,SOEC-EL,NH3SYN,NH3-REC","ARG-CBA","WIND-ON","SOEC-EL","NH3SYN","NH3-REC",7008,"öko"]
["ARG-CBA,WIND-ON,SOEC-EL,NH3SYN,NH3SYN","ARG-CBA","WIND-ON","SOEC-EL","NH3SYN","NH3SYN",4780.4524626124821,"PTX Atlas"]
["ARG-CBA,WIND-ON,SOEC-EL,NH3SYN,SOEC-EL","ARG-CBA","WIND-ON","SOEC-EL","NH3SYN","SOEC-EL",4780.4524626124821,"PTX Atlas"]
["ARG-CHA,PV-FIX,AEL-EL,,AEL-EL","ARG-CHA","PV-FIX","AEL-EL",null,"AEL-EL",2604.5870473976761,"PTX Atlas"]
["ARG-CHA,PV-FIX,AEL-EL,,H2-COMP","ARG-CHA","PV-FIX","AEL-EL",null,"H2-COMP",6657.5999999999995]
["ARG-CHA,PV-FIX,AEL-EL,,H2-LIQ","ARG-CHA","PV-FIX","AEL-EL",null,"H2-LIQ",2664.673800273993,"öko"]
["ARG-CHA,PV-FIX,AEL-EL,,H2-RGAS","ARG-CHA","PV-FIX","AEL-EL",null,"H2-RGAS",6657.5999999999995,"öko"]
["ARG-CHA,PV-FIX,AEL-EL,CH3OHSYN,AEL-EL","ARG-CHA","PV-FIX","AEL-EL","CH3OHSYN","AEL-EL",2737.6980884419017,"PTX Atlas"]
["ARG-CHA,PV-FIX,AEL-EL,CH3OHSYN,CH3OHREC","ARG-CHA","PV-FIX","AEL-EL","CH3OHSYN","CH3OHREC",6657.5999999999995,"öko"]
["ARG-CHA,PV-FIX,AEL-EL,CH3OHSYN,CH3OHSYN","ARG-CHA","PV-FIX","AEL-EL","CH3OHSYN","CH3OHSYN",7285.5401167930559,"PTX Atlas"]
["ARG-CHA,PV-FIX,AEL-EL,CH4SYN,AEL-EL","ARG-CHA","PV-FIX","AEL-EL","CH4SYN","AEL-EL",2697.7665614646221,"PTX Atlas"]
["ARG-CHA,PV-FIX,AEL-EL,CH4SYN,ATR","ARG-CHA","PV-FIX","AEL-EL","CH4SYN","ATR",6657.5999999999995]
["ARG-CHA,PV-FIX,AEL-EL,CH4SYN,CH4-LIQ","ARG-CHA","PV-FIX","AEL-EL","CH4SYN","CH4-LIQ",7290.5770952606035,"PTX Atlas"]
["ARG-CHA,PV-FIX,AEL-EL,CH4SYN,CH4-RGAS","ARG-CHA","PV-FIX","AEL-EL","CH4SYN","CH4-RGAS",6657.5999999999995,"öko"]
["ARG-CHA,PV-FIX,AEL-EL,CH4SYN,CH4SYN","ARG-CHA","PV-FIX","AEL-EL","CH4SYN","CH4SYN",7290.5770952606035,"PTX Atlas"]
["ARG-CHA,PV-FIX,AEL-EL,DRI,AEL-EL","ARG-CHA","PV-FIX","AEL-EL","DRI","AEL-EL",2712.5395973473305,"PTX Atlas"]
["ARG-CHA,PV-FIX,AEL-EL,DRI,DRI","ARG-CHA","PV-FIX","AEL-EL","DRI","DRI",6657.5999999999995,"öko"]
["ARG-CHA,PV-FIX,AEL-EL,EFUELSYN,AEL-EL","ARG-CHA","PV-FIX","AEL-EL","EFUELSYN","AEL-EL",2712.5395973473305,"PTX Atlas"]
["ARG-CHA,PV-FIX,AEL-EL,EFUELSYN,EFUELSYN","ARG-CHA","PV-FIX","AEL-EL","EFUELSYN","EFUELSYN",7280.3362908132049,"PTX Atlas"]
["ARG-CHA,PV-FIX,AEL-EL,LOHC-CON,AEL-EL","ARG-CHA","PV-FIX","AEL-EL","LOHC-CON","AEL-EL",2604.5870473976761,"PTX Atlas"]
["ARG-CHA,PV-FIX,AEL-EL,LOHC-CON,LOHC-CON","ARG-CHA","PV-FIX","AEL-EL","LOHC-CON","LOHC-CON",2604.5870473976761,"PTX Atlas"]
["ARG-CHA,PV-FIX,AEL-EL,LOHC-CON,LOHC-REC","ARG-CHA","PV-FIX","AEL-EL","LOHC-CON","LOHC-REC",6657.5999999999995,"öko"]
["ARG-CHA,PV-FIX,AEL-EL,NH3SYN,AEL-EL","ARG-CHA","PV-FIX","AEL-EL","NH3SYN","AEL-EL",2624.536606876824,"PTX Atlas"]
["ARG-CHA,PV-FIX,AEL-EL,NH3SYN,NH3-REC","ARG-CHA","PV-FIX","AEL-EL","NH3SYN","NH3-REC",6657.5999999999995,"öko"]
["ARG-CHA,PV-FIX,AEL-EL,NH3SYN,NH3SYN","ARG-CHA","PV-FIX","AEL-EL","NH3SYN","NH3SYN",7189.3384731750684,"PTX Atlas"]
["ARG-CHA,PV-FIX,PEM-EL,,H2-COMP","ARG-CHA","PV-FIX","PEM-EL",null,"H2-COMP",7008]
["ARG-CHA,PV-FIX,PEM-EL,,H2-LIQ","ARG-CHA","PV-FIX","PEM-EL",null,"H2-LIQ",2804.9197897620979,"öko"]
["ARG-CHA,PV-FIX,PEM-EL,,H2-RGAS","ARG-CHA","PV-FIX","PEM-EL",null,"H2-RGAS",7008,"öko"]
["ARG-CHA,PV-FIX,PEM-EL,,PEM-EL","ARG-CHA","PV-FIX","PEM-EL",null,"PEM-EL",2741.6705762080801,"PTX Atlas"]
["ARG-CHA,PV-FIX,PEM-EL,CH3OHSYN,CH3OHREC","ARG-CHA","PV-FIX","PEM-EL","CH3OHSYN","CH3OHREC",7008,"öko"]
["ARG-CHA,PV-FIX,PEM-EL,CH3OHSYN,CH3OHSYN","ARG-CHA","PV-FIX","PEM-EL","CH3OHSYN","CH3OHSYN",7668.9895966242684,"PTX Atlas"]
["ARG-CHA,PV-FIX,PEM-EL,CH3OHSYN,PEM-EL","ARG-CHA","PV-FIX","PEM-EL","CH3OHSYN","PEM-EL",2881.7874615177916,"PTX Atlas"]
["ARG-CHA,PV-FIX,PEM-EL,CH4SYN,ATR","ARG-CHA","PV-FIX","PEM-EL","CH4SYN","ATR",7008]
["ARG-CHA,PV-FIX,PEM-EL,CH4SYN,CH4-LIQ","ARG-CHA","PV-FIX","PEM-EL","CH4SYN","CH4-LIQ",7674.2916792216884,"PTX Atlas"]
["ARG-CHA,PV-FIX,PEM-EL,CH4SYN,CH4-RGAS","ARG-CHA","PV-FIX","PEM-EL","CH4SYN","CH4-RGAS",7008,"öko"]
["ARG-CHA,PV-FIX,PEM-EL,CH4SYN,CH4SYN","ARG-CHA","PV-FIX","PEM-EL","CH4SYN","CH4SYN",7674.2916792216884,"PTX Atlas"]
["ARG-CHA,PV-FIX,PEM-EL,CH4SYN,PEM-EL","ARG-CHA","PV-FIX","PEM-EL","CH4SYN","PEM-EL",2839.7542752259183,"PTX Atlas"]
["ARG-CHA,PV-FIX,PEM-EL,DRI,DRI","ARG-CHA","PV-FIX","PEM-EL","DRI","DRI",7008,"öko"]
["ARG-CHA,PV-FIX,PEM-EL,DRI,PEM-EL","ARG-CHA","PV-FIX","PEM-EL","DRI","PEM-EL",2855.3048393129802,"PTX Atlas"]
["ARG-CHA,PV-FIX,PEM-EL,EFUELSYN,EFUELSYN","ARG-CHA","PV-FIX","PEM-EL","EFUELSYN","EFUELSYN",7663.5118850665331,"PTX Atlas"]
["ARG-CHA,PV-FIX,PEM-EL,EFUELSYN,PEM-EL","ARG-CHA","PV-FIX","PEM-EL","EFUELSYN","PEM-EL",2855.3048393129802,"PTX Atlas"]
["ARG-CHA,PV-FIX,PEM-EL,LOHC-CON,LOHC-CON","ARG-CHA","PV-FIX","PEM-EL","LOHC-CON","LOHC-CON",2741.6705762080801,"PTX Atlas"]
["ARG-CHA,PV-FIX,PEM-EL,LOHC-CON,LOHC-REC","ARG-CHA","PV-FIX","PEM-EL","LOHC-CON","LOHC-REC",7008,"öko"]
["ARG-CHA,PV-FIX,PEM-EL,LOHC-CON,PEM-EL","ARG-CHA","PV-FIX","PEM-EL","LOHC-CON","PEM-EL",2741.6705762080801,"PTX Atlas"]
["ARG-CHA,PV-FIX,PEM-EL,NH3SYN,NH3-REC","ARG-CHA","PV-FIX","PEM-EL","NH3SYN","NH3-REC",7008,"öko"]
["ARG-CHA,PV-FIX,PEM-EL,NH3SYN,NH3SYN","ARG-CHA","PV-FIX","PEM-EL","NH3SYN","NH3SYN",7567.7247086053358,"PTX Atlas"]
["ARG-CHA,PV-FIX,PEM-EL,NH3SYN,PEM-EL","ARG-CHA","PV-FIX","PEM-EL","NH3SYN","PEM-EL",2762.6701125019199,"PTX Atlas"]
["ARG-CHA,PV-FIX,SOEC-EL,,H2-COMP","ARG-CHA","PV-FIX","SOEC-EL",null,"H2-COMP",7008]
["ARG-CHA,PV-FIX,SOEC-EL,,H2-LIQ","ARG-CHA","PV-FIX","SOEC-EL",null,"H2-LIQ",2780.8735111388769,"öko"]
["ARG-CHA,PV-FIX,SOEC-EL,,H2-RGAS","ARG-CHA","PV-FIX","SOEC-EL",null,"H2-RGAS",7008,"öko"]
["ARG-CHA,PV-FIX,SOEC-EL,,SOEC-EL","ARG-CHA","PV-FIX","SOEC-EL",null,"SOEC-EL",2712.1788127753771,"PTX Atlas"]
["ARG-CHA,PV-FIX,SOEC-EL,CH3OHSYN,CH3OHREC","ARG-CHA","PV-FIX","SOEC-EL","CH3OHSYN","CH3OHREC",7008,"öko"]
["ARG-CHA,PV-FIX,SOEC-EL,CH3OHSYN,CH3OHSYN","ARG-CHA","PV-FIX","SOEC-EL","CH3OHSYN","CH3OHSYN",7199.3879531126231,"PTX Atlas"]
["ARG-CHA,PV-FIX,SOEC-EL,CH3OHSYN,SOEC-EL","ARG-CHA","PV-FIX","SOEC-EL","CH3OHSYN","SOEC-EL",7199.3879531126231,"PTX Atlas"]
["ARG-CHA,PV-FIX,SOEC-EL,CH4SYN,ATR","ARG-CHA","PV-FIX","SOEC-EL","CH4SYN","ATR",7008]
["ARG-CHA,PV-FIX,SOEC-EL,CH4SYN,CH4-LIQ","ARG-CHA","PV-FIX","SOEC-EL","CH4SYN","CH4-LIQ",6878.3846641942137,"PTX Atlas"]
["ARG-CHA,PV-FIX,SOEC-EL,CH4SYN,CH4-RGAS","ARG-CHA","PV-FIX","SOEC-EL","CH4SYN","CH4-RGAS",7008,"öko"]
["ARG-CHA,PV-FIX,SOEC-EL,CH4SYN,CH4SYN","ARG-CHA","PV-FIX","SOEC-EL","CH4SYN","CH4SYN",6878.3846641942137,"PTX Atlas"]
["ARG-CHA,PV-FIX,SOEC-EL,CH4SYN,SOEC-EL","ARG-CHA","PV-FIX","SOEC-EL","CH4SYN","SOEC-EL",6878.3846641942137,"PTX Atlas"]
["ARG-CHA,PV-FIX,SOEC-EL,DRI,DRI","ARG-CHA","PV-FIX","SOEC-EL","DRI","DRI",7008,"öko"]
["ARG-CHA,PV-FIX,SOEC-EL,DRI,SOEC-EL","ARG-CHA","PV-FIX","SOEC-EL","DRI","SOEC-EL",7521.0836525031746,"PTX Atlas"]
["ARG-CHA,PV-FIX,SOEC-EL,EFUELSYN,EFUELSYN","ARG-CHA","PV-FIX","SOEC-EL","EFUELSYN","EFUELSYN",7521.0836525031746,"PTX Atlas"]
["ARG-CHA,PV-FIX,SOEC-EL,EFUELSYN,SOEC-EL","ARG-CHA","PV-FIX","SOEC-EL","EFUELSYN","SOEC-EL",7521.0836525031746,"PTX Atlas"]
["ARG-CHA,PV-FIX,SOEC-EL,LOHC-CON,LOHC-CON","ARG-CHA","PV-FIX","SOEC-EL","LOHC-CON","LOHC-CON",2712.1788127753771,"PTX Atlas"]
["ARG-CHA,PV-FIX,SOEC-EL,LOHC-CON,LOHC-REC","ARG-CHA","PV-FIX","SOEC-EL","LOHC-CON","LOHC-REC",7008,"öko"]
["ARG-CHA,PV-FIX,SOEC-EL,LOHC-CON,SOEC-EL","ARG-CHA","PV-FIX","SOEC-EL","LOHC-CON","SOEC-EL",2712.1788127753771,"PTX Atlas"]
["ARG-CHA,PV-FIX,SOEC-EL,NH3SYN,NH3-REC","ARG-CHA","PV-FIX","SOEC-EL","NH3SYN","NH3-REC",7008,"öko"]
["ARG-CHA,PV-FIX,SOEC-EL,NH3SYN,NH3SYN","ARG-CHA","PV-FIX","SOEC-EL","NH3SYN","NH3SYN",4332.7085144893817,"PTX Atlas"]
["ARG-CHA,PV-FIX,SOEC-EL,NH3SYN,SOEC-EL","ARG-CHA","PV-FIX","SOEC-EL","NH3SYN","SOEC-EL",4332.7085144893817,"PTX Atlas"]
["ARG-CHA,PV-TRK,AEL-EL,,H2-COMP","ARG-CHA","PV-TRK","AEL-EL",null,"H2-COMP",6657.5999999999995]
["ARG-CHA,PV-TRK,AEL-EL,,H2-RGAS","ARG-CHA","PV-TRK","AEL-EL",null,"H2-RGAS",6657.5999999999995,"öko"]
["ARG-CHA,PV-TRK,AEL-EL,CH3OHSYN,CH3OHREC","ARG-CHA","PV-TRK","AEL-EL","CH3OHSYN","CH3OHREC",6657.5999999999995,"öko"]
["ARG-CHA,PV-TRK,AEL-EL,CH4SYN,ATR","ARG-CHA","PV-TRK","AEL-EL","CH4SYN","ATR",6657.5999999999995]
["ARG-CHA,PV-TRK,AEL-EL,CH4SYN,CH4-RGAS","ARG-CHA","PV-TRK","AEL-EL","CH4SYN","CH4-RGAS",6657.5999999999995,"öko"]
["ARG-CHA,PV-TRK,AEL-EL,DRI,DRI","ARG-CHA","PV-TRK","AEL-EL","DRI","DRI",6657.5999999999995,"öko"]
["ARG-CHA,PV-TRK,AEL-EL,LOHC-CON,LOHC-REC","ARG-CHA","PV-TRK","AEL-EL","LOHC-CON","LOHC-REC",6657.5999999999995,"öko"]
["ARG-CHA,PV-TRK,AEL-EL,NH3SYN,NH3-REC","ARG-CHA","PV-TRK","AEL-EL","NH3SYN","NH3-REC",6657.5999999999995,"öko"]
["ARG-CHA,PV-TRK,PEM-EL,,H2-COMP","ARG-CHA","PV-TRK","PEM-EL",null,"H2-COMP",7008]
["ARG-CHA,PV-TRK,PEM-EL,,H2-RGAS","ARG-CHA","PV-TRK","PEM-EL",null,"H2-RGAS",7008,"öko"]
["ARG-CHA,PV-TRK,PEM-EL,CH3OHSYN,CH3OHREC","ARG-CHA","PV-TRK","PEM-EL","CH3OHSYN","CH3OHREC",7008,"öko"]
["ARG-CHA,PV-TRK,PEM-EL,CH4SYN,ATR","ARG-CHA","PV-TRK","PEM-EL","CH4SYN","ATR",7008]
["ARG-CHA,PV-TRK,PEM-EL,CH4SYN,CH4-RGAS","ARG-CHA","PV-TRK","PEM-EL","CH4SYN","CH4-RGAS",7008,"öko"]
["ARG-CHA,PV-TRK,PEM-EL,DRI,DRI","ARG-CHA","PV-TRK","PEM-EL","DRI","DRI",7008,"öko"]
["ARG-CHA,PV-TRK,PEM-EL,LOHC-CON,LOHC-REC","ARG-CHA","PV-TRK","PEM-EL","LOHC-CON","LOHC-REC",7008,"öko"]
["ARG-CHA,PV-TRK,PEM-EL,NH3SYN,NH3-REC","ARG-CHA","PV-TRK","PEM-EL","NH3SYN","NH3-REC",7008,"öko"]
["ARG-CHA,PV-TRK,SOEC-EL,,H2-COMP","ARG-CHA","PV-TRK","SOEC-EL",null,"H2-COMP",7008]
["ARG-CHA,PV-TRK,SOEC-EL,,H2-RGAS","ARG-CHA","PV-TRK","SOEC-EL",null,"H2-RGAS",7008,"öko"]
["ARG-CHA,PV-TRK,SOEC-EL,CH3OHSYN,CH3OHREC","ARG-CHA","PV-TRK","SOEC-EL","CH3OHSYN","CH3OHREC",7008,"öko"]
["ARG-CHA,PV-TRK,SOEC-EL,CH4SYN,ATR","ARG-CHA","PV-TRK","SOEC-EL","CH4SYN","ATR",7008]
["ARG-CHA,PV-TRK,SOEC-EL,CH4SYN,CH4-RGAS","ARG-CHA","PV-TRK","SOEC-EL","CH4SYN","CH4-RGAS",7008,"öko"]
["ARG-CHA,PV-TRK,SOEC-EL,DRI,DRI","ARG-CHA","PV-TRK","SOEC-EL","DRI","DRI",7008,"öko"]
["ARG-CHA,PV-TRK,SOEC-EL,LOHC-CON,LOHC-REC","ARG-CHA","PV-TRK","SOEC-EL","LOHC-CON","LOHC-REC",7008,"öko"]
["ARG-CHA,PV-TRK,SOEC-EL,NH3SYN,NH3-REC","ARG-CHA","PV-TRK","SOEC-EL","NH3SYN","NH3-REC",7008,"öko"]
["ARG-CHA,RES-HYBR,AEL-EL,,AEL-EL","ARG-CHA","RES-HYBR","AEL-EL",null,"AEL-EL",4342.5796137510606,"PTX Atlas"]
["ARG-CHA,RES-HYBR,AEL-EL,,H2-COMP","ARG-CHA","RES-HYBR","AEL-EL",null,"H2-COMP",6657.5999999999995]
["ARG-CHA,RES-HYBR,AEL-EL,,H2-LIQ","ARG-CHA","RES-HYBR","AEL-EL",null,"H2-LIQ",4242.8356057551728,"öko"]
["ARG-CHA,RES-HYBR,AEL-EL,,H2-RGAS","ARG-CHA","RES-HYBR","AEL-EL",null,"H2-RGAS",6657.5999999999995,"öko"]
["ARG-CHA,RES-HYBR,AEL-EL,CH3OHSYN,AEL-EL","ARG-CHA","RES-HYBR","AEL-EL","CH3OHSYN","AEL-EL",4315.9022402046548,"PTX Atlas"]
["ARG-CHA,RES-HYBR,AEL-EL,CH3OHSYN,CH3OHREC","ARG-CHA","RES-HYBR","AEL-EL","CH3OHSYN","CH3OHREC",6657.5999999999995,"öko"]
["ARG-CHA,RES-HYBR,AEL-EL,CH3OHSYN,CH3OHSYN","ARG-CHA","RES-HYBR","AEL-EL","CH3OHSYN","CH3OHSYN",6871.0600193412811,"PTX Atlas"]
["ARG-CHA,RES-HYBR,AEL-EL,CH4SYN,AEL-EL","ARG-CHA","RES-HYBR","AEL-EL","CH4SYN","AEL-EL",4215.8821233282515,"PTX Atlas"]
["ARG-CHA,RES-HYBR,AEL-EL,CH4SYN,ATR","ARG-CHA","RES-HYBR","AEL-EL","CH4SYN","ATR",6657.5999999999995]
["ARG-CHA,RES-HYBR,AEL-EL,CH4SYN,CH4-LIQ","ARG-CHA","RES-HYBR","AEL-EL","CH4SYN","CH4-LIQ",6876.0967228490554,"PTX Atlas"]
["ARG-CHA,RES-HYBR,AEL-EL,CH4SYN,CH4-RGAS","ARG-CHA","RES-HYBR","AEL-EL","CH4SYN","CH4-RGAS",6657.5999999999995,"öko"]
["ARG-CHA,RES-HYBR,AEL-EL,CH4SYN,CH4SYN","ARG-CHA","RES-HYBR","AEL-EL","CH4SYN","CH4SYN",6876.0967228490554,"PTX Atlas"]
["ARG-CHA,RES-HYBR,AEL-EL,DRI,AEL-EL","ARG-CHA","RES-HYBR","AEL-EL","DRI","AEL-EL",4290.1971755324748,"PTX Atlas"]
["ARG-CHA,RES-HYBR,AEL-EL,DRI,DRI","ARG-CHA","RES-HYBR","AEL-EL","DRI","DRI",6657.5999999999995,"öko"]
["ARG-CHA,RES-HYBR,AEL-EL,EFUELSYN,AEL-EL","ARG-CHA","RES-HYBR","AEL-EL","EFUELSYN","AEL-EL",4290.1971755324748,"PTX Atlas"]
["ARG-CHA,RES-HYBR,AEL-EL,EFUELSYN,EFUELSYN","ARG-CHA","RES-HYBR","AEL-EL","EFUELSYN","EFUELSYN",6850.8983284650658,"PTX Atlas"]
["ARG-CHA,RES-HYBR,AEL-EL,LOHC-CON,AEL-EL","ARG-CHA","RES-HYBR","AEL-EL","LOHC-CON","AEL-EL",4342.5796137510606,"PTX Atlas"]
["ARG-CHA,RES-HYBR,AEL-EL,LOHC-CON,LOHC-CON","ARG-CHA","RES-HYBR","AEL-EL","LOHC-CON","LOHC-CON",4342.5796137510606,"PTX Atlas"]
["ARG-CHA,RES-HYBR,AEL-EL,LOHC-CON,LOHC-REC","ARG-CHA","RES-HYBR","AEL-EL","LOHC-CON","LOHC-REC",6657.5999999999995,"öko"]
["ARG-CHA,RES-HYBR,AEL-EL,NH3SYN,AEL-EL","ARG-CHA","RES-HYBR","AEL-EL","NH3SYN","AEL-EL",4294.0068662713447,"PTX Atlas"]
["ARG-CHA,RES-HYBR,AEL-EL,NH3SYN,NH3-REC","ARG-CHA","RES-HYBR","AEL-EL","NH3SYN","NH3-REC",6657.5999999999995,"öko"]
["ARG-CHA,RES-HYBR,AEL-EL,NH3SYN,NH3SYN","ARG-CHA","RES-HYBR","AEL-EL","NH3SYN","NH3SYN",6538.8750394470799,"PTX Atlas"]
["ARG-CHA,RES-HYBR,PEM-EL,,H2-COMP","ARG-CHA","RES-HYBR","PEM-EL",null,"H2-COMP",7008]
["ARG-CHA,RES-HYBR,PEM-EL,,H2-LIQ","ARG-CHA","RES-HYBR","PEM-EL",null,"H2-LIQ",4466.1427429001824,"öko"]
["ARG-CHA,RES-HYBR,PEM-EL,,H2-RGAS","ARG-CHA","RES-HYBR","PEM-EL",null,"H2-RGAS",7008,"öko"]
["ARG-CHA,RES-HYBR,PEM-EL,,PEM-EL","ARG-CHA","RES-HYBR","PEM-EL",null,"PEM-EL",4571.1364355274327,"PTX Atlas"]
["ARG-CHA,RES-HYBR,PEM-EL,CH3OHSYN,CH3OHREC","ARG-CHA","RES-HYBR","PEM-EL","CH3OHSYN","CH3OHREC",7008,"öko"]
["ARG-CHA,RES-HYBR,PEM-EL,CH3OHSYN,CH3OHSYN","ARG-CHA","RES-HYBR","PEM-EL","CH3OHSYN","CH3OHSYN",7232.6947572013487,"PTX Atlas"]
["ARG-CHA,RES-HYBR,PEM-EL,CH3OHSYN,PEM-EL","ARG-CHA","RES-HYBR","PEM-EL","CH3OHSYN","PEM-EL",4543.0549896891107,"PTX Atlas"]
["ARG-CHA,RES-HYBR,PEM-EL,CH4SYN,ATR","ARG-CHA","RES-HYBR","PEM-EL","CH4SYN","ATR",7008]
["ARG-CHA,RES-HYBR,PEM-EL,CH4SYN,CH4-LIQ","ARG-CHA","RES-HYBR","PEM-EL","CH4SYN","CH4-LIQ",7237.9965503674275,"PTX Atlas"]
["ARG-CHA,RES-HYBR,PEM-EL,CH4SYN,CH4-RGAS","ARG-CHA","RES-HYBR","PEM-EL","CH4SYN","CH4-RGAS",7008,"öko"]
["ARG-CHA,RES-HYBR,PEM-EL,CH4SYN,CH4SYN","ARG-CHA","RES-HYBR","PEM-EL","CH4SYN","CH4SYN",7237.9965503674275,"PTX Atlas"]
["ARG-CHA,RES-HYBR,PEM-EL,CH4SYN,PEM-EL","ARG-CHA","RES-HYBR","PEM-EL","CH4SYN","PEM-EL",4437.7706561350014,"PTX Atlas"]
["ARG-CHA,RES-HYBR,PEM-EL,DRI,DRI","ARG-CHA","RES-HYBR","PEM-EL","DRI","DRI",7008,"öko"]
["ARG-CHA,RES-HYBR,PEM-EL,DRI,PEM-EL","ARG-CHA","RES-HYBR","PEM-EL","DRI","PEM-EL",4515.9970268762891,"PTX Atlas"]
["ARG-CHA,RES-HYBR,PEM-EL,EFUELSYN,EFUELSYN","ARG-CHA","RES-HYBR","PEM-EL","EFUELSYN","EFUELSYN",7211.4719247000685,"PTX Atlas"]
["ARG-CHA,RES-HYBR,PEM-EL,EFUELSYN,PEM-EL","ARG-CHA","RES-HYBR","PEM-EL","EFUELSYN","PEM-EL",4515.9970268762891,"PTX Atlas"]
["ARG-CHA,RES-HYBR,PEM-EL,LOHC-CON,LOHC-CON","ARG-CHA","RES-HYBR","PEM-EL","LOHC-CON","LOHC-CON",4571.1364355274327,"PTX Atlas"]
["ARG-CHA,RES-HYBR,PEM-EL,LOHC-CON,LOHC-REC","ARG-CHA","RES-HYBR","PEM-EL","LOHC-CON","LOHC-REC",7008,"öko"]
["ARG-CHA,RES-HYBR,PEM-EL,LOHC-CON,PEM-EL","ARG-CHA","RES-HYBR","PEM-EL","LOHC-CON","PEM-EL",4571.1364355274327,"PTX Atlas"]
["ARG-CHA,RES-HYBR,PEM-EL,NH3SYN,NH3-REC","ARG-CHA","RES-HYBR","PEM-EL","NH3SYN","NH3-REC",7008,"öko"]
["ARG-CHA,RES-HYBR,PEM-EL,NH3SYN,NH3SYN","ARG-CHA","RES-HYBR","PEM-EL","NH3SYN","NH3SYN",6883.0263573127158,"PTX Atlas"]
["ARG-CHA,RES-HYBR,PEM-EL,NH3SYN,PEM-EL","ARG-CHA","RES-HYBR","PEM-EL","NH3SYN","PEM-EL",4520.0072276540477,"PTX Atlas"]
["ARG-CHA,RES-HYBR,SOEC-EL,,H2-COMP","ARG-CHA","RES-HYBR","SOEC-EL",null,"H2-COMP",7008]
["ARG-CHA,RES-HYBR,SOEC-EL,,H2-LIQ","ARG-CHA","RES-HYBR","SOEC-EL",null,"H2-LIQ",4353.1801274671416,"öko"]
["ARG-CHA,RES-HYBR,SOEC-EL,,H2-RGAS","ARG-CHA","RES-HYBR","SOEC-EL",null,"H2-RGAS",7008,"öko"]
["ARG-CHA,RES-HYBR,SOEC-EL,,SOEC-EL","ARG-CHA","RES-HYBR","SOEC-EL",null,"SOEC-EL",4416.6596096280855,"PTX Atlas"]
["ARG-CHA,RES-HYBR,SOEC-EL,CH3OHSYN,CH3OHREC","ARG-CHA","RES-HYBR","SOEC-EL","CH3OHSYN","CH3OHREC",7008,"öko"]
["ARG-CHA,RES-HYBR,SOEC-EL,CH3OHSYN,CH3OHSYN","ARG-CHA","RES-HYBR","SOEC-EL","CH3OHSYN","CH3OHSYN",6486.7698182277745,"PTX Atlas"]
["ARG-CHA,RES-HYBR,SOEC-EL,CH3OHSYN,SOEC-EL","ARG-CHA","RES-HYBR","SOEC-EL","CH3OHSYN","SOEC-EL",6486.7698182277745,"PTX Atlas"]
["ARG-CHA,RES-HYBR,SOEC-EL,CH4SYN,ATR","ARG-CHA","RES-HYBR","SOEC-EL","CH4SYN","ATR",7008]
["ARG-CHA,RES-HYBR,SOEC-EL,CH4SYN,CH4-LIQ","ARG-CHA","RES-HYBR","SOEC-EL","CH4SYN","CH4-LIQ",6469.6986567929162,"PTX Atlas"]
["ARG-CHA,RES-HYBR,SOEC-EL,CH4SYN,CH4-RGAS","ARG-CHA","RES-HYBR","SOEC-EL","CH4SYN","CH4-RGAS",7008,"öko"]
["ARG-CHA,RES-HYBR,SOEC-EL,CH4SYN,CH4SYN","ARG-CHA","RES-HYBR","SOEC-EL","CH4SYN","CH4SYN",6469.6986567929162,"PTX Atlas"]
["ARG-CHA,RES-HYBR,SOEC-EL,CH4SYN,SOEC-EL","ARG-CHA","RES-HYBR","SOEC-EL","CH4SYN","SOEC-EL",6469.6986567929162,"PTX Atlas"]
["ARG-CHA,RES-HYBR,SOEC-EL,DRI,DRI","ARG-CHA","RES-HYBR","SOEC-EL","DRI","DRI",7008,"öko"]
["ARG-CHA,RES-HYBR,SOEC-EL,DRI,SOEC-EL","ARG-CHA","RES-HYBR","SOEC-EL","DRI","SOEC-EL",6556.1944052528352,"PTX Atlas"]
["ARG-CHA,RES-HYBR,SOEC-EL,EFUELSYN,EFUELSYN","ARG-CHA","RES-HYBR","SOEC-EL","EFUELSYN","EFUELSYN",6556.1944052528352,"PTX Atlas"]
["ARG-CHA,RES-HYBR,SOEC-EL,EFUELSYN,SOEC-EL","ARG-CHA","RES-HYBR","SOEC-EL","EFUELSYN","SOEC-EL",6556.1944052528352,"PTX Atlas"]
["ARG-CHA,RES-HYBR,SOEC-EL,LOHC-CON,LOHC-CON","ARG-CHA","RES-HYBR","SOEC-EL","LOHC-CON","LOHC-CON",4416.6596096280855,"PTX Atlas"]
["ARG-CHA,RES-HYBR,SOEC-EL,LOHC-CON,LOHC-REC","ARG-CHA","RES-HYBR","SOEC-EL","LOHC-CON","LOHC-REC",7008,"öko"]
["ARG-CHA,RES-HYBR,SOEC-EL,LOHC-CON,SOEC-EL","ARG-CHA","RES-HYBR","SOEC-EL","LOHC-CON","SOEC-EL",4416.6596096280855,"PTX Atlas"]
["ARG-CHA,RES-HYBR,SOEC-EL,NH3SYN,NH3-REC","ARG-CHA","RES-HYBR","SOEC-EL","NH3SYN","NH3-REC",7008,"öko"]
["ARG-CHA,RES-HYBR,SOEC-EL,NH3SYN,NH3SYN","ARG-CHA","RES-HYBR","SOEC-EL","NH3SYN","NH3SYN",5543.5283879852304,"PTX Atlas"]
["ARG-CHA,RES-HYBR,SOEC-EL,NH3SYN,SOEC-EL","ARG-CHA","RES-HYBR","SOEC-EL","NH3SYN","SOEC-EL",5543.5283879852304,"PTX Atlas"]
["ARG-CHA,WIND-OFF,AEL-EL,,AEL-EL","ARG-CHA","WIND-OFF","AEL-EL",null,"AEL-EL",1347.8293246014512,"PTX Atlas"]
["ARG-CHA,WIND-OFF,AEL-EL,,H2-COMP","ARG-CHA","WIND-OFF","AEL-EL",null,"H2-COMP",6657.5999999999995]
["ARG-CHA,WIND-OFF,AEL-EL,,H2-LIQ","ARG-CHA","WIND-OFF","AEL-EL",null,"H2-LIQ",1602.0918817851802,"öko"]
["ARG-CHA,WIND-OFF,AEL-EL,,H2-RGAS","ARG-CHA","WIND-OFF","AEL-EL",null,"H2-RGAS",6657.5999999999995,"öko"]
["ARG-CHA,WIND-OFF,AEL-EL,CH3OHSYN,AEL-EL","ARG-CHA","WIND-OFF","AEL-EL","CH3OHSYN","AEL-EL",1739.4897839541527,"PTX Atlas"]
["ARG-CHA,WIND-OFF,AEL-EL,CH3OHSYN,CH3OHREC","ARG-CHA","WIND-OFF","AEL-EL","CH3OHSYN","CH3OHREC",6657.5999999999995,"öko"]
["ARG-CHA,WIND-OFF,AEL-EL,CH3OHSYN,CH3OHSYN","ARG-CHA","WIND-OFF","AEL-EL","CH3OHSYN","CH3OHSYN",3183.2021531666219,"PTX Atlas"]
["ARG-CHA,WIND-OFF,AEL-EL,CH4SYN,AEL-EL","ARG-CHA","WIND-OFF","AEL-EL","CH4SYN","AEL-EL",1647.8356753367241,"PTX Atlas"]
["ARG-CHA,WIND-OFF,AEL-EL,CH4SYN,ATR","ARG-CHA","WIND-OFF","AEL-EL","CH4SYN","ATR",6657.5999999999995]
["ARG-CHA,WIND-OFF,AEL-EL,CH4SYN,CH4-LIQ","ARG-CHA","WIND-OFF","AEL-EL","CH4SYN","CH4-LIQ",3147.5491697601155,"PTX Atlas"]
["ARG-CHA,WIND-OFF,AEL-EL,CH4SYN,CH4-RGAS","ARG-CHA","WIND-OFF","AEL-EL","CH4SYN","CH4-RGAS",6657.5999999999995,"öko"]
["ARG-CHA,WIND-OFF,AEL-EL,CH4SYN,CH4SYN","ARG-CHA","WIND-OFF","AEL-EL","CH4SYN","CH4SYN",3147.5491697601155,"PTX Atlas"]
["ARG-CHA,WIND-OFF,AEL-EL,DRI,AEL-EL","ARG-CHA","WIND-OFF","AEL-EL","DRI","AEL-EL",1715.3958726570888,"PTX Atlas"]
["ARG-CHA,WIND-OFF,AEL-EL,DRI,DRI","ARG-CHA","WIND-OFF","AEL-EL","DRI","DRI",6657.5999999999995,"öko"]
["ARG-CHA,WIND-OFF,AEL-EL,EFUELSYN,AEL-EL","ARG-CHA","WIND-OFF","AEL-EL","EFUELSYN","AEL-EL",1715.3958726570888,"PTX Atlas"]
["ARG-CHA,WIND-OFF,AEL-EL,EFUELSYN,EFUELSYN","ARG-CHA","WIND-OFF","AEL-EL","EFUELSYN","EFUELSYN",3135.5700759497704,"PTX Atlas"]
["ARG-CHA,WIND-OFF,AEL-EL,LOHC-CON,AEL-EL","ARG-CHA","WIND-OFF","AEL-EL","LOHC-CON","AEL-EL",1347.8293246014512,"PTX Atlas"]
["ARG-CHA,WIND-OFF,AEL-EL,LOHC-CON,LOHC-CON","ARG-CHA","WIND-OFF","AEL-EL","LOHC-CON","LOHC-CON",1347.8293246014512,"PTX Atlas"]
["ARG-CHA,WIND-OFF,AEL-EL,LOHC-CON,LOHC-REC","ARG-CHA","WIND-OFF","AEL-EL","LOHC-CON","LOHC-REC",6657.5999999999995,"öko"]
["ARG-CHA,WIND-OFF,AEL-EL,NH3SYN,AEL-EL","ARG-CHA","WIND-OFF","AEL-EL","NH3SYN","AEL-EL",1652.2868149245321,"PTX Atlas"]
["ARG-CHA,WIND-OFF,AEL-EL,NH3SYN,NH3-REC","ARG-CHA","WIND-OFF","AEL-EL","NH3SYN","NH3-REC",6657.5999999999995,"öko"]
["ARG-CHA,WIND-OFF,AEL-EL,NH3SYN,NH3SYN","ARG-CHA","WIND-OFF","AEL-EL","NH3SYN","NH3SYN",2119.690163733098,"PTX Atlas"]
["ARG-CHA,WIND-OFF,PEM-EL,,H2-COMP","ARG-CHA","WIND-OFF","PEM-EL",null,"H2-COMP",7008]
["ARG-CHA,WIND-OFF,PEM-EL,,H2-LIQ","ARG-CHA","WIND-OFF","PEM-EL",null,"H2-LIQ",1686.412507142295,"öko"]
["ARG-CHA,WIND-OFF,PEM-EL,,H2-RGAS","ARG-CHA","WIND-OFF","PEM-EL",null,"H2-RGAS",7008,"öko"]
["ARG-CHA,WIND-OFF,PEM-EL,,PEM-EL","ARG-CHA","WIND-OFF","PEM-EL",null,"PEM-EL",1418.7677101067909,"PTX Atlas"]
["ARG-CHA,WIND-OFF,PEM-EL,CH3OHSYN,CH3OHREC","ARG-CHA","WIND-OFF","PEM-EL","CH3OHSYN","CH3OHREC",7008,"öko"]
["ARG-CHA,WIND-OFF,PEM-EL,CH3OHSYN,CH3OHSYN","ARG-CHA","WIND-OFF","PEM-EL","CH3OHSYN","CH3OHSYN",3350.7391085964441,"PTX Atlas"]
["ARG-CHA,WIND-OFF,PEM-EL,CH3OHSYN,PEM-EL","ARG-CHA","WIND-OFF","PEM-EL","CH3OHSYN","PEM-EL",1831.0418778464768,"PTX Atlas"]
["ARG-CHA,WIND-OFF,PEM-EL,CH4SYN,ATR","ARG-CHA","WIND-OFF","PEM-EL","CH4SYN","ATR",7008]
["ARG-CHA,WIND-OFF,PEM-EL,CH4SYN,CH4-LIQ","ARG-CHA","WIND-OFF","PEM-EL","CH4SYN","CH4-LIQ",3313.2096523790692,"PTX Atlas"]
["ARG-CHA,WIND-OFF,PEM-EL,CH4SYN,CH4-RGAS","ARG-CHA","WIND-OFF","PEM-EL","CH4SYN","CH4-RGAS",7008,"öko"]
["ARG-CHA,WIND-OFF,PEM-EL,CH4SYN,CH4SYN","ARG-CHA","WIND-OFF","PEM-EL","CH4SYN","CH4SYN",3313.2096523790692,"PTX Atlas"]
["ARG-CHA,WIND-OFF,PEM-EL,CH4SYN,PEM-EL","ARG-CHA","WIND-OFF","PEM-EL","CH4SYN","PEM-EL",1734.563868775499,"PTX Atlas"]
["ARG-CHA,WIND-OFF,PEM-EL,DRI,DRI","ARG-CHA","WIND-OFF","PEM-EL","DRI","DRI",7008,"öko"]
["ARG-CHA,WIND-OFF,PEM-EL,DRI,PEM-EL","ARG-CHA","WIND-OFF","PEM-EL","DRI","PEM-EL",1805.6798659548303,"PTX Atlas"]
["ARG-CHA,WIND-OFF,PEM-EL,EFUELSYN,EFUELSYN","ARG-CHA","WIND-OFF","PEM-EL","EFUELSYN","EFUELSYN",3300.6000799471267,"PTX Atlas"]
["ARG-CHA,WIND-OFF,PEM-EL,EFUELSYN,PEM-EL","ARG-CHA","WIND-OFF","PEM-EL","EFUELSYN","PEM-EL",1805.6798659548303,"PTX Atlas"]
["ARG-CHA,WIND-OFF,PEM-EL,LOHC-CON,LOHC-CON","ARG-CHA","WIND-OFF","PEM-EL","LOHC-CON","LOHC-CON",1418.7677101067909,"PTX Atlas"]
["ARG-CHA,WIND-OFF,PEM-EL,LOHC-CON,LOHC-REC","ARG-CHA","WIND-OFF","PEM-EL","LOHC-CON","LOHC-REC",7008,"öko"]
["ARG-CHA,WIND-OFF,PEM-EL,LOHC-CON,PEM-EL","ARG-CHA","WIND-OFF","PEM-EL","LOHC-CON","PEM-EL",1418.7677101067909,"PTX Atlas"]
["ARG-CHA,WIND-OFF,PEM-EL,NH3SYN,NH3-REC","ARG-CHA","WIND-OFF","PEM-EL","NH3SYN","NH3-REC",7008,"öko"]
["ARG-CHA,WIND-OFF,PEM-EL,NH3SYN,NH3SYN","ARG-CHA","WIND-OFF","PEM-EL","NH3SYN","NH3SYN",2231.2528039295771,"PTX Atlas"]
["ARG-CHA,WIND-OFF,PEM-EL,NH3SYN,PEM-EL","ARG-CHA","WIND-OFF","PEM-EL","NH3SYN","PEM-EL",1739.2492788679283,"PTX Atlas"]
["ARG-CHA,WIND-OFF,SOEC-EL,,H2-COMP","ARG-CHA","WIND-OFF","SOEC-EL",null,"H2-COMP",7008]
["ARG-CHA,WIND-OFF,SOEC-EL,,H2-LIQ","ARG-CHA","WIND-OFF","SOEC-EL",null,"H2-LIQ",1601.7354467237706,"öko"]
["ARG-CHA,WIND-OFF,SOEC-EL,,H2-RGAS","ARG-CHA","WIND-OFF","SOEC-EL",null,"H2-RGAS",7008,"öko"]
["ARG-CHA,WIND-OFF,SOEC-EL,,SOEC-EL","ARG-CHA","WIND-OFF","SOEC-EL",null,"SOEC-EL",1343.394386252327,"PTX Atlas"]
["ARG-CHA,WIND-OFF,SOEC-EL,CH3OHSYN,CH3OHREC","ARG-CHA","WIND-OFF","SOEC-EL","CH3OHSYN","CH3OHREC",7008,"öko"]
["ARG-CHA,WIND-OFF,SOEC-EL,CH3OHSYN,CH3OHSYN","ARG-CHA","WIND-OFF","SOEC-EL","CH3OHSYN","CH3OHSYN",2159.6914621343913,"PTX Atlas"]
["ARG-CHA,WIND-OFF,SOEC-EL,CH3OHSYN,SOEC-EL","ARG-CHA","WIND-OFF","SOEC-EL","CH3OHSYN","SOEC-EL",2159.6914621343913,"PTX Atlas"]
["ARG-CHA,WIND-OFF,SOEC-EL,CH4SYN,ATR","ARG-CHA","WIND-OFF","SOEC-EL","CH4SYN","ATR",7008]
["ARG-CHA,WIND-OFF,SOEC-EL,CH4SYN,CH4-LIQ","ARG-CHA","WIND-OFF","SOEC-EL","CH4SYN","CH4-LIQ",2158.2217948489274,"PTX Atlas"]
["ARG-CHA,WIND-OFF,SOEC-EL,CH4SYN,CH4-RGAS","ARG-CHA","WIND-OFF","SOEC-EL","CH4SYN","CH4-RGAS",7008,"öko"]
["ARG-CHA,WIND-OFF,SOEC-EL,CH4SYN,CH4SYN","ARG-CHA","WIND-OFF","SOEC-EL","CH4SYN","CH4SYN",2158.2217948489274,"PTX Atlas"]
["ARG-CHA,WIND-OFF,SOEC-EL,CH4SYN,SOEC-EL","ARG-CHA","WIND-OFF","SOEC-EL","CH4SYN","SOEC-EL",2158.2217948489274,"PTX Atlas"]
["ARG-CHA,WIND-OFF,SOEC-EL,DRI,DRI","ARG-CHA","WIND-OFF","SOEC-EL","DRI","DRI",7008,"öko"]
["ARG-CHA,WIND-OFF,SOEC-EL,DRI,SOEC-EL","ARG-CHA","WIND-OFF","SOEC-EL","DRI","SOEC-EL",2171.7808097029783,"PTX Atlas"]
["ARG-CHA,WIND-OFF,SOEC-EL,EFUELSYN,EFUELSYN","ARG-CHA","WIND-OFF","SOEC-EL","EFUELSYN","EFUELSYN",2171.7808097029783,"PTX Atlas"]
["ARG-CHA,WIND-OFF,SOEC-EL,EFUELSYN,SOEC-EL","ARG-CHA","WIND-OFF","SOEC-EL","EFUELSYN","SOEC-EL",2171.7808097029783,"PTX Atlas"]
["ARG-CHA,WIND-OFF,SOEC-EL,LOHC-CON,LOHC-CON","ARG-CHA","WIND-OFF","SOEC-EL","LOHC-CON","LOHC-CON",1343.394386252327,"PTX Atlas"]
["ARG-CHA,WIND-OFF,SOEC-EL,LOHC-CON,LOHC-REC","ARG-CHA","WIND-OFF","SOEC-EL","LOHC-CON","LOHC-REC",7008,"öko"]
["ARG-CHA,WIND-OFF,SOEC-EL,LOHC-CON,SOEC-EL","ARG-CHA","WIND-OFF","SOEC-EL","LOHC-CON","SOEC-EL",1343.394386252327,"PTX Atlas"]
["ARG-CHA,WIND-OFF,SOEC-EL,NH3SYN,NH3-REC","ARG-CHA","WIND-OFF","SOEC-EL","NH3SYN","NH3-REC",7008,"öko"]
["ARG-CHA,WIND-OFF,SOEC-EL,NH3SYN,NH3SYN","ARG-CHA","WIND-OFF","SOEC-EL","NH3SYN","NH3SYN",1813.4745533305361,"PTX Atlas"]
["ARG-CHA,WIND-OFF,SOEC-EL,NH3SYN,SOEC-EL","ARG-CHA","WIND-OFF","SOEC-EL","NH3SYN","SOEC-EL",1813.4745533305361,"PTX Atlas"]
["ARG-CHA,WIND-ON,AEL-EL,,AEL-EL","ARG-CHA","WIND-ON","AEL-EL",null,"AEL-EL",3879.8398000411353,"PTX Atlas"]
["ARG-CHA,WIND-ON,AEL-EL,,H2-COMP","ARG-CHA","WIND-ON","AEL-EL",null,"H2-COMP",6657.5999999999995]
["ARG-CHA,WIND-ON,AEL-EL,,H2-LIQ","ARG-CHA","WIND-ON","AEL-EL",null,"H2-LIQ",4087.5132002759456,"öko"]
["ARG-CHA,WIND-ON,AEL-EL,,H2-RGAS","ARG-CHA","WIND-ON","AEL-EL",null,"H2-RGAS",6657.5999999999995,"öko"]
["ARG-CHA,WIND-ON,AEL-EL,CH3OHSYN,AEL-EL","ARG-CHA","WIND-ON","AEL-EL","CH3OHSYN","AEL-EL",4266.4228021054641,"PTX Atlas"]
["ARG-CHA,WIND-ON,AEL-EL,CH3OHSYN,CH3OHREC","ARG-CHA","WIND-ON","AEL-EL","CH3OHSYN","CH3OHREC",6657.5999999999995,"öko"]
["ARG-CHA,WIND-ON,AEL-EL,CH3OHSYN,CH3OHSYN","ARG-CHA","WIND-ON","AEL-EL","CH3OHSYN","CH3OHSYN",4905.8302800391539,"PTX Atlas"]
["ARG-CHA,WIND-ON,AEL-EL,CH4SYN,AEL-EL","ARG-CHA","WIND-ON","AEL-EL","CH4SYN","AEL-EL",4180.557365316412,"PTX Atlas"]
["ARG-CHA,WIND-ON,AEL-EL,CH4SYN,ATR","ARG-CHA","WIND-ON","AEL-EL","CH4SYN","ATR",6657.5999999999995]
["ARG-CHA,WIND-ON,AEL-EL,CH4SYN,CH4-LIQ","ARG-CHA","WIND-ON","AEL-EL","CH4SYN","CH4-LIQ",4894.9443774192678,"PTX Atlas"]
["ARG-CHA,WIND-ON,AEL-EL,CH4SYN,CH4-RGAS","ARG-CHA","WIND-ON","AEL-EL","CH4SYN","CH4-RGAS",6657.5999999999995,"öko"]
["ARG-CHA,WIND-ON,AEL-EL,CH4SYN,CH4SYN","ARG-CHA","WIND-ON","AEL-EL","CH4SYN","CH4SYN",4894.9443774192678,"PTX Atlas"]
["ARG-CHA,WIND-ON,AEL-EL,DRI,AEL-EL","ARG-CHA","WIND-ON","AEL-EL","DRI","AEL-EL",4238.1709026495373,"PTX Atlas"]
["ARG-CHA,WIND-ON,AEL-EL,DRI,DRI","ARG-CHA","WIND-ON","AEL-EL","DRI","DRI",6657.5999999999995,"öko"]
["ARG-CHA,WIND-ON,AEL-EL,EFUELSYN,AEL-EL","ARG-CHA","WIND-ON","AEL-EL","EFUELSYN","AEL-EL",4238.1709026495373,"PTX Atlas"]
["ARG-CHA,WIND-ON,AEL-EL,EFUELSYN,EFUELSYN","ARG-CHA","WIND-ON","AEL-EL","EFUELSYN","EFUELSYN",4871.2589356625185,"PTX Atlas"]
["ARG-CHA,WIND-ON,AEL-EL,LOHC-CON,AEL-EL","ARG-CHA","WIND-ON","AEL-EL","LOHC-CON","AEL-EL",3879.8398000411353,"PTX Atlas"]
["ARG-CHA,WIND-ON,AEL-EL,LOHC-CON,LOHC-CON","ARG-CHA","WIND-ON","AEL-EL","LOHC-CON","LOHC-CON",3879.8398000411353,"PTX Atlas"]
["ARG-CHA,WIND-ON,AEL-EL,LOHC-CON,LOHC-REC","ARG-CHA","WIND-ON","AEL-EL","LOHC-CON","LOHC-REC",6657.5999999999995,"öko"]
["ARG-CHA,WIND-ON,AEL-EL,NH3SYN,AEL-EL","ARG-CHA","WIND-ON","AEL-EL","NH3SYN","AEL-EL",4104.2557774082143,"PTX Atlas"]
["ARG-CHA,WIND-ON,AEL-EL,NH3SYN,NH3-REC","ARG-CHA","WIND-ON","AEL-EL","NH3SYN","NH3-REC",6657.5999999999995,"öko"]
["ARG-CHA,WIND-ON,AEL-EL,NH3SYN,NH3SYN","ARG-CHA","WIND-ON","AEL-EL","NH3SYN","NH3SYN",4293.2695010076704,"PTX Atlas"]
["ARG-CHA,WIND-ON,PEM-EL,,H2-COMP","ARG-CHA","WIND-ON","PEM-EL",null,"H2-COMP",7008]
["ARG-CHA,WIND-ON,PEM-EL,,H2-LIQ","ARG-CHA","WIND-ON","PEM-EL",null,"H2-LIQ",4302.6454739746796,"öko"]
["ARG-CHA,WIND-ON,PEM-EL,,H2-RGAS","ARG-CHA","WIND-ON","PEM-EL",null,"H2-RGAS",7008,"öko"]
["ARG-CHA,WIND-ON,PEM-EL,,PEM-EL","ARG-CHA","WIND-ON","PEM-EL",null,"PEM-EL",4084.0418947801422,"PTX Atlas"]
["ARG-CHA,WIND-ON,PEM-EL,CH3OHSYN,CH3OHREC","ARG-CHA","WIND-ON","PEM-EL","CH3OHSYN","CH3OHREC",7008,"öko"]
["ARG-CHA,WIND-ON,PEM-EL,CH3OHSYN,CH3OHSYN","ARG-CHA","WIND-ON","PEM-EL","CH3OHSYN","CH3OHSYN",5164.0318737254256,"PTX Atlas"]
["ARG-CHA,WIND-ON,PEM-EL,CH3OHSYN,PEM-EL","ARG-CHA","WIND-ON","PEM-EL","CH3OHSYN","PEM-EL",4490.9713706373313,"PTX Atlas"]
["ARG-CHA,WIND-ON,PEM-EL,CH4SYN,ATR","ARG-CHA","WIND-ON","PEM-EL","CH4SYN","ATR",7008]
["ARG-CHA,WIND-ON,PEM-EL,CH4SYN,CH4-LIQ","ARG-CHA","WIND-ON","PEM-EL","CH4SYN","CH4-LIQ",5152.5730288623872,"PTX Atlas"]
["ARG-CHA,WIND-ON,PEM-EL,CH4SYN,CH4-RGAS","ARG-CHA","WIND-ON","PEM-EL","CH4SYN","CH4-RGAS",7008,"öko"]
["ARG-CHA,WIND-ON,PEM-EL,CH4SYN,CH4SYN","ARG-CHA","WIND-ON","PEM-EL","CH4SYN","CH4SYN",5152.5730288623872,"PTX Atlas"]
["ARG-CHA,WIND-ON,PEM-EL,CH4SYN,PEM-EL","ARG-CHA","WIND-ON","PEM-EL","CH4SYN","PEM-EL",4400.5867003330659,"PTX Atlas"]
["ARG-CHA,WIND-ON,PEM-EL,DRI,DRI","ARG-CHA","WIND-ON","PEM-EL","DRI","DRI",7008,"öko"]
["ARG-CHA,WIND-ON,PEM-EL,DRI,PEM-EL","ARG-CHA","WIND-ON","PEM-EL","DRI","PEM-EL",4461.2325291047764,"PTX Atlas"]
["ARG-CHA,WIND-ON,PEM-EL,EFUELSYN,EFUELSYN","ARG-CHA","WIND-ON","PEM-EL","EFUELSYN","EFUELSYN",5127.6409849079146,"PTX Atlas"]
["ARG-CHA,WIND-ON,PEM-EL,EFUELSYN,PEM-EL","ARG-CHA","WIND-ON","PEM-EL","EFUELSYN","PEM-EL",4461.2325291047764,"PTX Atlas"]
["ARG-CHA,WIND-ON,PEM-EL,LOHC-CON,LOHC-CON","ARG-CHA","WIND-ON","PEM-EL","LOHC-CON","LOHC-CON",4084.0418947801422,"PTX Atlas"]
["ARG-CHA,WIND-ON,PEM-EL,LOHC-CON,LOHC-REC","ARG-CHA","WIND-ON","PEM-EL","LOHC-CON","LOHC-REC",7008,"öko"]
["ARG-CHA,WIND-ON,PEM-EL,LOHC-CON,PEM-EL","ARG-CHA","WIND-ON","PEM-EL","LOHC-CON","PEM-EL",4084.0418947801422,"PTX Atlas"]
["ARG-CHA,WIND-ON,PEM-EL,NH3SYN,NH3-REC","ARG-CHA","WIND-ON","PEM-EL","NH3SYN","NH3-REC",7008,"öko"]
["ARG-CHA,WIND-ON,PEM-EL,NH3SYN,NH3SYN","ARG-CHA","WIND-ON","PEM-EL","NH3SYN","NH3SYN",4519.2310536922851,"PTX Atlas"]
["ARG-CHA,WIND-ON,PEM-EL,NH3SYN,PEM-EL","ARG-CHA","WIND-ON","PEM-EL","NH3SYN","PEM-EL",4320.2692393770676,"PTX Atlas"]
["ARG-CHA,WIND-ON,SOEC-EL,,H2-COMP","ARG-CHA","WIND-ON","SOEC-EL",null,"H2-COMP",7008]
["ARG-CHA,WIND-ON,SOEC-EL,,H2-LIQ","ARG-CHA","WIND-ON","SOEC-EL",null,"H2-LIQ",4245.6555117802836,"öko"]
["ARG-CHA,WIND-ON,SOEC-EL,,H2-RGAS","ARG-CHA","WIND-ON","SOEC-EL",null,"H2-RGAS",7008,"öko"]
["ARG-CHA,WIND-ON,SOEC-EL,,SOEC-EL","ARG-CHA","WIND-ON","SOEC-EL",null,"SOEC-EL",4034.9895153982297,"PTX Atlas"]
["ARG-CHA,WIND-ON,SOEC-EL,CH3OHSYN,CH3OHREC","ARG-CHA","WIND-ON","SOEC-EL","CH3OHSYN","CH3OHREC",7008,"öko"]
["ARG-CHA,WIND-ON,SOEC-EL,CH3OHSYN,CH3OHSYN","ARG-CHA","WIND-ON","SOEC-EL","CH3OHSYN","CH3OHSYN",4650.2083060482546,"PTX Atlas"]
["ARG-CHA,WIND-ON,SOEC-EL,CH3OHSYN,SOEC-EL","ARG-CHA","WIND-ON","SOEC-EL","CH3OHSYN","SOEC-EL",4650.2083060482546,"PTX Atlas"]
["ARG-CHA,WIND-ON,SOEC-EL,CH4SYN,ATR","ARG-CHA","WIND-ON","SOEC-EL","CH4SYN","ATR",7008]
["ARG-CHA,WIND-ON,SOEC-EL,CH4SYN,CH4-LIQ","ARG-CHA","WIND-ON","SOEC-EL","CH4SYN","CH4-LIQ",4647.8396465096776,"PTX Atlas"]
["ARG-CHA,WIND-ON,SOEC-EL,CH4SYN,CH4-RGAS","ARG-CHA","WIND-ON","SOEC-EL","CH4SYN","CH4-RGAS",7008,"öko"]
["ARG-CHA,WIND-ON,SOEC-EL,CH4SYN,CH4SYN","ARG-CHA","WIND-ON","SOEC-EL","CH4SYN","CH4SYN",4647.8396465096776,"PTX Atlas"]
["ARG-CHA,WIND-ON,SOEC-EL,CH4SYN,SOEC-EL","ARG-CHA","WIND-ON","SOEC-EL","CH4SYN","SOEC-EL",4647.8396465096776,"PTX Atlas"]
["ARG-CHA,WIND-ON,SOEC-EL,DRI,DRI","ARG-CHA","WIND-ON","SOEC-EL","DRI","DRI",7008,"öko"]
["ARG-CHA,WIND-ON,SOEC-EL,DRI,SOEC-EL","ARG-CHA","WIND-ON","SOEC-EL","DRI","SOEC-EL",4660.1131969363114,"PTX Atlas"]
["ARG-CHA,WIND-ON,SOEC-EL,EFUELSYN,EFUELSYN","ARG-CHA","WIND-ON","SOEC-EL","EFUELSYN","EFUELSYN",4660.1131969363114,"PTX Atlas"]
["ARG-CHA,WIND-ON,SOEC-EL,EFUELSYN,SOEC-EL","ARG-CHA","WIND-ON","SOEC-EL","EFUELSYN","SOEC-EL",4660.1131969363114,"PTX Atlas"]
["ARG-CHA,WIND-ON,SOEC-EL,LOHC-CON,LOHC-CON","ARG-CHA","WIND-ON","SOEC-EL","LOHC-CON","LOHC-CON",4034.9895153982297,"PTX Atlas"]
["ARG-CHA,WIND-ON,SOEC-EL,LOHC-CON,LOHC-REC","ARG-CHA","WIND-ON","SOEC-EL","LOHC-CON","LOHC-REC",7008,"öko"]
["ARG-CHA,WIND-ON,SOEC-EL,LOHC-CON,SOEC-EL","ARG-CHA","WIND-ON","SOEC-EL","LOHC-CON","SOEC-EL",4034.9895153982297,"PTX Atlas"]
["ARG-CHA,WIND-ON,SOEC-EL,NH3SYN,NH3-REC","ARG-CHA","WIND-ON","SOEC-EL","NH3SYN","NH3-REC",7008,"öko"]
["ARG-CHA,WIND-ON,SOEC-EL,NH3SYN,NH3SYN","ARG-CHA","WIND-ON","SOEC-EL","NH3SYN","NH3SYN",4350.2829168393064,"PTX Atlas"]
["ARG-CHA,WIND-ON,SOEC-EL,NH3SYN,SOEC-EL","ARG-CHA","WIND-ON","SOEC-EL","NH3SYN","SOEC-EL",4350.2829168393064,"PTX Atlas"]
["ARG-CHU,PV-FIX,AEL-EL,,AEL-EL","ARG-CHU","PV-FIX","AEL-EL",null,"AEL-EL",2664.2271771944856,"PTX Atlas"]
["ARG-CHU,PV-FIX,AEL-EL,,H2-COMP","ARG-CHU","PV-FIX","AEL-EL",null,"H2-COMP",6657.5999999999995]
["ARG-CHU,PV-FIX,AEL-EL,,H2-LIQ","ARG-CHU","PV-FIX","AEL-EL",null,"H2-LIQ",2719.7966565259503,"öko"]
["ARG-CHU,PV-FIX,AEL-EL,,H2-RGAS","ARG-CHU","PV-FIX","AEL-EL",null,"H2-RGAS",6657.5999999999995,"öko"]
["ARG-CHU,PV-FIX,AEL-EL,CH3OHSYN,AEL-EL","ARG-CHU","PV-FIX","AEL-EL","CH3OHSYN","AEL-EL",2797.2809446729666,"PTX Atlas"]
["ARG-CHU,PV-FIX,AEL-EL,CH3OHSYN,CH3OHREC","ARG-CHU","PV-FIX","AEL-EL","CH3OHSYN","CH3OHREC",6657.5999999999995,"öko"]
["ARG-CHU,PV-FIX,AEL-EL,CH3OHSYN,CH3OHSYN","ARG-CHU","PV-FIX","AEL-EL","CH3OHSYN","CH3OHSYN",7443.3775080559262,"PTX Atlas"]
["ARG-CHU,PV-FIX,AEL-EL,CH4SYN,AEL-EL","ARG-CHU","PV-FIX","AEL-EL","CH4SYN","AEL-EL",2755.1805189559936,"PTX Atlas"]
["ARG-CHU,PV-FIX,AEL-EL,CH4SYN,ATR","ARG-CHU","PV-FIX","AEL-EL","CH4SYN","ATR",6657.5999999999995]
["ARG-CHU,PV-FIX,AEL-EL,CH4SYN,CH4-LIQ","ARG-CHU","PV-FIX","AEL-EL","CH4SYN","CH4-LIQ",7450.0882198798636,"PTX Atlas"]
["ARG-CHU,PV-FIX,AEL-EL,CH4SYN,CH4-RGAS","ARG-CHU","PV-FIX","AEL-EL","CH4SYN","CH4-RGAS",6657.5999999999995,"öko"]
["ARG-CHU,PV-FIX,AEL-EL,CH4SYN,CH4SYN","ARG-CHU","PV-FIX","AEL-EL","CH4SYN","CH4SYN",7450.0882198798636,"PTX Atlas"]
["ARG-CHU,PV-FIX,AEL-EL,DRI,AEL-EL","ARG-CHU","PV-FIX","AEL-EL","DRI","AEL-EL",2771.3501515406506,"PTX Atlas"]
["ARG-CHU,PV-FIX,AEL-EL,DRI,DRI","ARG-CHU","PV-FIX","AEL-EL","DRI","DRI",6657.5999999999995,"öko"]
["ARG-CHU,PV-FIX,AEL-EL,EFUELSYN,AEL-EL","ARG-CHU","PV-FIX","AEL-EL","EFUELSYN","AEL-EL",2771.3501515406506,"PTX Atlas"]
["ARG-CHU,PV-FIX,AEL-EL,EFUELSYN,EFUELSYN","ARG-CHU","PV-FIX","AEL-EL","EFUELSYN","EFUELSYN",7439.4433815046305,"PTX Atlas"]
["ARG-CHU,PV-FIX,AEL-EL,LOHC-CON,AEL-EL","ARG-CHU","PV-FIX","AEL-EL","LOHC-CON","AEL-EL",2664.2271771944856,"PTX Atlas"]
["ARG-CHU,PV-FIX,AEL-EL,LOHC-CON,LOHC-CON","ARG-CHU","PV-FIX","AEL-EL","LOHC-CON","LOHC-CON",2664.2271771944856,"PTX Atlas"]
["ARG-CHU,PV-FIX,AEL-EL,LOHC-CON,LOHC-REC","ARG-CHU","PV-FIX","AEL-EL","LOHC-CON","LOHC-REC",6657.5999999999995,"öko"]
["ARG-CHU,PV-FIX,AEL-EL,NH3SYN,AEL-EL","ARG-CHU","PV-FIX","AEL-EL","NH3SYN","AEL-EL",2680.7303576451318,"PTX Atlas"]
["ARG-CHU,PV-FIX,AEL-EL,NH3SYN,NH3-REC","ARG-CHU","PV-FIX","AEL-EL","NH3SYN","NH3-REC",6657.5999999999995,"öko"]
["ARG-CHU,PV-FIX,AEL-EL,NH3SYN,NH3SYN","ARG-CHU","PV-FIX","AEL-EL","NH3SYN","NH3SYN",7366.4996309379731,"PTX Atlas"]
["ARG-CHU,PV-FIX,PEM-EL,,H2-COMP","ARG-CHU","PV-FIX","PEM-EL",null,"H2-COMP",7008]
["ARG-CHU,PV-FIX,PEM-EL,,H2-LIQ","ARG-CHU","PV-FIX","PEM-EL",null,"H2-LIQ",2862.9438489746849,"öko"]
["ARG-CHU,PV-FIX,PEM-EL,,H2-RGAS","ARG-CHU","PV-FIX","PEM-EL",null,"H2-RGAS",7008,"öko"]
["ARG-CHU,PV-FIX,PEM-EL,,PEM-EL","ARG-CHU","PV-FIX","PEM-EL",null,"PEM-EL",2804.449660204722,"PTX Atlas"]
["ARG-CHU,PV-FIX,PEM-EL,CH3OHSYN,CH3OHREC","ARG-CHU","PV-FIX","PEM-EL","CH3OHSYN","CH3OHREC",7008,"öko"]
["ARG-CHU,PV-FIX,PEM-EL,CH3OHSYN,CH3OHSYN","ARG-CHU","PV-FIX","PEM-EL","CH3OHSYN","CH3OHSYN",7835.1342190062387,"PTX Atlas"]
["ARG-CHU,PV-FIX,PEM-EL,CH3OHSYN,PEM-EL","ARG-CHU","PV-FIX","PEM-EL","CH3OHSYN","PEM-EL",2944.5062575504912,"PTX Atlas"]
["ARG-CHU,PV-FIX,PEM-EL,CH4SYN,ATR","ARG-CHU","PV-FIX","PEM-EL","CH4SYN","ATR",7008]
["ARG-CHU,PV-FIX,PEM-EL,CH4SYN,CH4-LIQ","ARG-CHU","PV-FIX","PEM-EL","CH4SYN","CH4-LIQ",7842.1981261893316,"PTX Atlas"]
["ARG-CHU,PV-FIX,PEM-EL,CH4SYN,CH4-RGAS","ARG-CHU","PV-FIX","PEM-EL","CH4SYN","CH4-RGAS",7008,"öko"]
["ARG-CHU,PV-FIX,PEM-EL,CH4SYN,CH4SYN","ARG-CHU","PV-FIX","PEM-EL","CH4SYN","CH4SYN",7842.1981261893316,"PTX Atlas"]
["ARG-CHU,PV-FIX,PEM-EL,CH4SYN,PEM-EL","ARG-CHU","PV-FIX","PEM-EL","CH4SYN","PEM-EL",2900.1900199536776,"PTX Atlas"]
["ARG-CHU,PV-FIX,PEM-EL,DRI,DRI","ARG-CHU","PV-FIX","PEM-EL","DRI","DRI",7008,"öko"]
["ARG-CHU,PV-FIX,PEM-EL,DRI,PEM-EL","ARG-CHU","PV-FIX","PEM-EL","DRI","PEM-EL",2917.2106858322641,"PTX Atlas"]
["ARG-CHU,PV-FIX,PEM-EL,EFUELSYN,EFUELSYN","ARG-CHU","PV-FIX","PEM-EL","EFUELSYN","EFUELSYN",7830.9930331627693,"PTX Atlas"]
["ARG-CHU,PV-FIX,PEM-EL,EFUELSYN,PEM-EL","ARG-CHU","PV-FIX","PEM-EL","EFUELSYN","PEM-EL",2917.2106858322641,"PTX Atlas"]
["ARG-CHU,PV-FIX,PEM-EL,LOHC-CON,LOHC-CON","ARG-CHU","PV-FIX","PEM-EL","LOHC-CON","LOHC-CON",2804.449660204722,"PTX Atlas"]
["ARG-CHU,PV-FIX,PEM-EL,LOHC-CON,LOHC-REC","ARG-CHU","PV-FIX","PEM-EL","LOHC-CON","LOHC-REC",7008,"öko"]
["ARG-CHU,PV-FIX,PEM-EL,LOHC-CON,PEM-EL","ARG-CHU","PV-FIX","PEM-EL","LOHC-CON","PEM-EL",2804.449660204722,"PTX Atlas"]
["ARG-CHU,PV-FIX,PEM-EL,NH3SYN,NH3-REC","ARG-CHU","PV-FIX","PEM-EL","NH3SYN","NH3-REC",7008,"öko"]
["ARG-CHU,PV-FIX,PEM-EL,NH3SYN,NH3SYN","ARG-CHU","PV-FIX","PEM-EL","NH3SYN","NH3SYN",7754.2101378294465,"PTX Atlas"]
["ARG-CHU,PV-FIX,PEM-EL,NH3SYN,PEM-EL","ARG-CHU","PV-FIX","PEM-EL","NH3SYN","PEM-EL",2821.8214291001382,"PTX Atlas"]
["ARG-CHU,PV-FIX,SOEC-EL,,H2-COMP","ARG-CHU","PV-FIX","SOEC-EL",null,"H2-COMP",7008]
["ARG-CHU,PV-FIX,SOEC-EL,,H2-LIQ","ARG-CHU","PV-FIX","SOEC-EL",null,"H2-LIQ",2840.9836105723321,"öko"]
["ARG-CHU,PV-FIX,SOEC-EL,,H2-RGAS","ARG-CHU","PV-FIX","SOEC-EL",null,"H2-RGAS",7008,"öko"]
["ARG-CHU,PV-FIX,SOEC-EL,,SOEC-EL","ARG-CHU","PV-FIX","SOEC-EL",null,"SOEC-EL",2777.3144170920141,"PTX Atlas"]
["ARG-CHU,PV-FIX,SOEC-EL,CH3OHSYN,CH3OHREC","ARG-CHU","PV-FIX","SOEC-EL","CH3OHSYN","CH3OHREC",7008,"öko"]
["ARG-CHU,PV-FIX,SOEC-EL,CH3OHSYN,CH3OHSYN","ARG-CHU","PV-FIX","SOEC-EL","CH3OHSYN","CH3OHSYN",7422.3167794965757,"PTX Atlas"]
["ARG-CHU,PV-FIX,SOEC-EL,CH3OHSYN,SOEC-EL","ARG-CHU","PV-FIX","SOEC-EL","CH3OHSYN","SOEC-EL",7422.3167794965757,"PTX Atlas"]
["ARG-CHU,PV-FIX,SOEC-EL,CH4SYN,ATR","ARG-CHU","PV-FIX","SOEC-EL","CH4SYN","ATR",7008]
["ARG-CHU,PV-FIX,SOEC-EL,CH4SYN,CH4-LIQ","ARG-CHU","PV-FIX","SOEC-EL","CH4SYN","CH4-LIQ",7117.8270219210817,"PTX Atlas"]
["ARG-CHU,PV-FIX,SOEC-EL,CH4SYN,CH4-RGAS","ARG-CHU","PV-FIX","SOEC-EL","CH4SYN","CH4-RGAS",7008,"öko"]
["ARG-CHU,PV-FIX,SOEC-EL,CH4SYN,CH4SYN","ARG-CHU","PV-FIX","SOEC-EL","CH4SYN","CH4SYN",7117.8270219210817,"PTX Atlas"]
["ARG-CHU,PV-FIX,SOEC-EL,CH4SYN,SOEC-EL","ARG-CHU","PV-FIX","SOEC-EL","CH4SYN","SOEC-EL",7117.8270219210817,"PTX Atlas"]
["ARG-CHU,PV-FIX,SOEC-EL,DRI,DRI","ARG-CHU","PV-FIX","SOEC-EL","DRI","DRI",7008,"öko"]
["ARG-CHU,PV-FIX,SOEC-EL,DRI,SOEC-EL","ARG-CHU","PV-FIX","SOEC-EL","DRI","SOEC-EL",7720.2706464897037,"PTX Atlas"]
["ARG-CHU,PV-FIX,SOEC-EL,EFUELSYN,EFUELSYN","ARG-CHU","PV-FIX","SOEC-EL","EFUELSYN","EFUELSYN",7720.2706464897037,"PTX Atlas"]
["ARG-CHU,PV-FIX,SOEC-EL,EFUELSYN,SOEC-EL","ARG-CHU","PV-FIX","SOEC-EL","EFUELSYN","SOEC-EL",7720.2706464897037,"PTX Atlas"]
["ARG-CHU,PV-FIX,SOEC-EL,LOHC-CON,LOHC-CON","ARG-CHU","PV-FIX","SOEC-EL","LOHC-CON","LOHC-CON",2777.3144170920141,"PTX Atlas"]
["ARG-CHU,PV-FIX,SOEC-EL,LOHC-CON,LOHC-REC","ARG-CHU","PV-FIX","SOEC-EL","LOHC-CON","LOHC-REC",7008,"öko"]
["ARG-CHU,PV-FIX,SOEC-EL,LOHC-CON,SOEC-EL","ARG-CHU","PV-FIX","SOEC-EL","LOHC-CON","SOEC-EL",2777.3144170920141,"PTX Atlas"]
["ARG-CHU,PV-FIX,SOEC-EL,NH3SYN,NH3-REC","ARG-CHU","PV-FIX","SOEC-EL","NH3SYN","NH3-REC",7008,"öko"]
["ARG-CHU,PV-FIX,SOEC-EL,NH3SYN,NH3SYN","ARG-CHU","PV-FIX","SOEC-EL","NH3SYN","NH3SYN",4435.8623985853328,"PTX Atlas"]
["ARG-CHU,PV-FIX,SOEC-EL,NH3SYN,SOEC-EL","ARG-CHU","PV-FIX","SOEC-EL","NH3SYN","SOEC-EL",4435.8623985853328,"PTX Atlas"]
["ARG-CHU,PV-TRK,AEL-EL,,H2-COMP","ARG-CHU","PV-TRK","AEL-EL",null,"H2-COMP",6657.5999999999995]
["ARG-CHU,PV-TRK,AEL-EL,,H2-RGAS","ARG-CHU","PV-TRK","AEL-EL",null,"H2-RGAS",6657.5999999999995,"öko"]
["ARG-CHU,PV-TRK,AEL-EL,CH3OHSYN,CH3OHREC","ARG-CHU","PV-TRK","AEL-EL","CH3OHSYN","CH3OHREC",6657.5999999999995,"öko"]
["ARG-CHU,PV-TRK,AEL-EL,CH4SYN,ATR","ARG-CHU","PV-TRK","AEL-EL","CH4SYN","ATR",6657.5999999999995]
["ARG-CHU,PV-TRK,AEL-EL,CH4SYN,CH4-RGAS","ARG-CHU","PV-TRK","AEL-EL","CH4SYN","CH4-RGAS",6657.5999999999995,"öko"]
["ARG-CHU,PV-TRK,AEL-EL,DRI,DRI","ARG-CHU","PV-TRK","AEL-EL","DRI","DRI",6657.5999999999995,"öko"]
["ARG-CHU,PV-TRK,AEL-EL,LOHC-CON,LOHC-REC","ARG-CHU","PV-TRK","AEL-EL","LOHC-CON","LOHC-REC",6657.5999999999995,"öko"]
["ARG-CHU,PV-TRK,AEL-EL,NH3SYN,NH3-REC","ARG-CHU","PV-TRK","AEL-EL","NH3SYN","NH3-REC",6657.5999999999995,"öko"]
["ARG-CHU,PV-TRK,PEM-EL,,H2-COMP","ARG-CHU","PV-TRK","PEM-EL",null,"H2-COMP",7008]
["ARG-CHU,PV-TRK,PEM-EL,,H2-RGAS","ARG-CHU","PV-TRK","PEM-EL",null,"H2-RGAS",7008,"öko"]
["ARG-CHU,PV-TRK,PEM-EL,CH3OHSYN,CH3OHREC","ARG-CHU","PV-TRK","PEM-EL","CH3OHSYN","CH3OHREC",7008,"öko"]
["ARG-CHU,PV-TRK,PEM-EL,CH4SYN,ATR","ARG-CHU","PV-TRK","PEM-EL","CH4SYN","ATR",7008]
["ARG-CHU,PV-TRK,PEM-EL,CH4SYN,CH4-RGAS","ARG-CHU","PV-TRK","PEM-EL","CH4SYN","CH4-RGAS",7008,"öko"]
["ARG-CHU,PV-TRK,PEM-EL,DRI,DRI","ARG-CHU","PV-TRK","PEM-EL","DRI","DRI",7008,"öko"]
["ARG-CHU,PV-TRK,PEM-EL,LOHC-CON,LOHC-REC","ARG-CHU","PV-TRK","PEM-EL","LOHC-CON","LOHC-REC",7008,"öko"]
["ARG-CHU,PV-TRK,PEM-EL,NH3SYN,NH3-REC","ARG-CHU","PV-TRK","PEM-EL","NH3SYN","NH3-REC",7008,"öko"]
["ARG-CHU,PV-TRK,SOEC-EL,,H2-COMP","ARG-CHU","PV-TRK","SOEC-EL",null,"H2-COMP",7008]
["ARG-CHU,PV-TRK,SOEC-EL,,H2-RGAS","ARG-CHU","PV-TRK","SOEC-EL",null,"H2-RGAS",7008,"öko"]
["ARG-CHU,PV-TRK,SOEC-EL,CH3OHSYN,CH3OHREC","ARG-CHU","PV-TRK","SOEC-EL","CH3OHSYN","CH3OHREC",7008,"öko"]
["ARG-CHU,PV-TRK,SOEC-EL,CH4SYN,ATR","ARG-CHU","PV-TRK","SOEC-EL","CH4SYN","ATR",7008]
["ARG-CHU,PV-TRK,SOEC-EL,CH4SYN,CH4-RGAS","ARG-CHU","PV-TRK","SOEC-EL","CH4SYN","CH4-RGAS",7008,"öko"]
["ARG-CHU,PV-TRK,SOEC-EL,DRI,DRI","ARG-CHU","PV-TRK","SOEC-EL","DRI","DRI",7008,"öko"]
["ARG-CHU,PV-TRK,SOEC-EL,LOHC-CON,LOHC-REC","ARG-CHU","PV-TRK","SOEC-EL","LOHC-CON","LOHC-REC",7008,"öko"]
["ARG-CHU,PV-TRK,SOEC-EL,NH3SYN,NH3-REC","ARG-CHU","PV-TRK","SOEC-EL","NH3SYN","NH3-REC",7008,"öko"]
["ARG-CHU,RES-HYBR,AEL-EL,,AEL-EL","ARG-CHU","RES-HYBR","AEL-EL",null,"AEL-EL",6662.8904913696924,"PTX Atlas"]
["ARG-CHU,RES-HYBR,AEL-EL,,H2-COMP","ARG-CHU","RES-HYBR","AEL-EL",null,"H2-COMP",6657.5999999999995]
["ARG-CHU,RES-HYBR,AEL-EL,,H2-LIQ","ARG-CHU","RES-HYBR","AEL-EL",null,"H2-LIQ",6697.4814491930456,"öko"]
["ARG-CHU,RES-HYBR,AEL-EL,,H2-RGAS","ARG-CHU","RES-HYBR","AEL-EL",null,"H2-RGAS",6657.5999999999995,"öko"]
["ARG-CHU,RES-HYBR,AEL-EL,CH3OHSYN,AEL-EL","ARG-CHU","RES-HYBR","AEL-EL","CH3OHSYN","AEL-EL",6851.7159603210084,"PTX Atlas"]
["ARG-CHU,RES-HYBR,AEL-EL,CH3OHSYN,CH3OHREC","ARG-CHU","RES-HYBR","AEL-EL","CH3OHSYN","CH3OHREC",6657.5999999999995,"öko"]
["ARG-CHU,RES-HYBR,AEL-EL,CH3OHSYN,CH3OHSYN","ARG-CHU","RES-HYBR","AEL-EL","CH3OHSYN","CH3OHSYN",6070.8938761280278,"PTX Atlas"]
["ARG-CHU,RES-HYBR,AEL-EL,CH4SYN,AEL-EL","ARG-CHU","RES-HYBR","AEL-EL","CH4SYN","AEL-EL",6701.2899251803447,"PTX Atlas"]
["ARG-CHU,RES-HYBR,AEL-EL,CH4SYN,ATR","ARG-CHU","RES-HYBR","AEL-EL","CH4SYN","ATR",6657.5999999999995]
["ARG-CHU,RES-HYBR,AEL-EL,CH4SYN,CH4-LIQ","ARG-CHU","RES-HYBR","AEL-EL","CH4SYN","CH4-LIQ",6070.8938761280278,"PTX Atlas"]
["ARG-CHU,RES-HYBR,AEL-EL,CH4SYN,CH4-RGAS","ARG-CHU","RES-HYBR","AEL-EL","CH4SYN","CH4-RGAS",6657.5999999999995,"öko"]
["ARG-CHU,RES-HYBR,AEL-EL,CH4SYN,CH4SYN","ARG-CHU","RES-HYBR","AEL-EL","CH4SYN","CH4SYN",6070.8938761280278,"PTX Atlas"]
["ARG-CHU,RES-HYBR,AEL-EL,DRI,AEL-EL","ARG-CHU","RES-HYBR","AEL-EL","DRI","AEL-EL",6820.8143103447346,"PTX Atlas"]
["ARG-CHU,RES-HYBR,AEL-EL,DRI,DRI","ARG-CHU","RES-HYBR","AEL-EL","DRI","DRI",6657.5999999999995,"öko"]
["ARG-CHU,RES-HYBR,AEL-EL,EFUELSYN,AEL-EL","ARG-CHU","RES-HYBR","AEL-EL","EFUELSYN","AEL-EL",6820.8143103447346,"PTX Atlas"]
["ARG-CHU,RES-HYBR,AEL-EL,EFUELSYN,EFUELSYN","ARG-CHU","RES-HYBR","AEL-EL","EFUELSYN","EFUELSYN",6070.8938761280278,"PTX Atlas"]
["ARG-CHU,RES-HYBR,AEL-EL,LOHC-CON,AEL-EL","ARG-CHU","RES-HYBR","AEL-EL","LOHC-CON","AEL-EL",6662.8904913696924,"PTX Atlas"]
["ARG-CHU,RES-HYBR,AEL-EL,LOHC-CON,LOHC-CON","ARG-CHU","RES-HYBR","AEL-EL","LOHC-CON","LOHC-CON",6662.8904913696924,"PTX Atlas"]
["ARG-CHU,RES-HYBR,AEL-EL,LOHC-CON,LOHC-REC","ARG-CHU","RES-HYBR","AEL-EL","LOHC-CON","LOHC-REC",6657.5999999999995,"öko"]
["ARG-CHU,RES-HYBR,AEL-EL,NH3SYN,AEL-EL","ARG-CHU","RES-HYBR","AEL-EL","NH3SYN","AEL-EL",6806.0424628842147,"PTX Atlas"]
["ARG-CHU,RES-HYBR,AEL-EL,NH3SYN,NH3-REC","ARG-CHU","RES-HYBR","AEL-EL","NH3SYN","NH3-REC",6657.5999999999995,"öko"]
["ARG-CHU,RES-HYBR,AEL-EL,NH3SYN,NH3SYN","ARG-CHU","RES-HYBR","AEL-EL","NH3SYN","NH3SYN",6070.8938761280278,"PTX Atlas"]
["ARG-CHU,RES-HYBR,PEM-EL,,H2-COMP","ARG-CHU","RES-HYBR","PEM-EL",null,"H2-COMP",7008]
["ARG-CHU,RES-HYBR,PEM-EL,,H2-LIQ","ARG-CHU","RES-HYBR","PEM-EL",null,"H2-LIQ",7049.9804728347854,"öko"]
["ARG-CHU,RES-HYBR,PEM-EL,,H2-RGAS","ARG-CHU","RES-HYBR","PEM-EL",null,"H2-RGAS",7008,"öko"]
["ARG-CHU,RES-HYBR,PEM-EL,,PEM-EL","ARG-CHU","RES-HYBR","PEM-EL",null,"PEM-EL",7013.5689382838873,"PTX Atlas"]
["ARG-CHU,RES-HYBR,PEM-EL,CH3OHSYN,CH3OHREC","ARG-CHU","RES-HYBR","PEM-EL","CH3OHSYN","CH3OHREC",7008,"öko"]
["ARG-CHU,RES-HYBR,PEM-EL,CH3OHSYN,CH3OHSYN","ARG-CHU","RES-HYBR","PEM-EL","CH3OHSYN","CH3OHSYN",6390.4146064505558,"PTX Atlas"]
["ARG-CHU,RES-HYBR,PEM-EL,CH3OHSYN,PEM-EL","ARG-CHU","RES-HYBR","PEM-EL","CH3OHSYN","PEM-EL",7212.3325898115891,"PTX Atlas"]
["ARG-CHU,RES-HYBR,PEM-EL,CH4SYN,ATR","ARG-CHU","RES-HYBR","PEM-EL","CH4SYN","ATR",7008]
["ARG-CHU,RES-HYBR,PEM-EL,CH4SYN,CH4-LIQ","ARG-CHU","RES-HYBR","PEM-EL","CH4SYN","CH4-LIQ",6390.4146064505558,"PTX Atlas"]
["ARG-CHU,RES-HYBR,PEM-EL,CH4SYN,CH4-RGAS","ARG-CHU","RES-HYBR","PEM-EL","CH4SYN","CH4-RGAS",7008,"öko"]
["ARG-CHU,RES-HYBR,PEM-EL,CH4SYN,CH4SYN","ARG-CHU","RES-HYBR","PEM-EL","CH4SYN","CH4SYN",6390.4146064505558,"PTX Atlas"]
["ARG-CHU,RES-HYBR,PEM-EL,CH4SYN,PEM-EL","ARG-CHU","RES-HYBR","PEM-EL","CH4SYN","PEM-EL",7053.9893949266789,"PTX Atlas"]
["ARG-CHU,RES-HYBR,PEM-EL,DRI,DRI","ARG-CHU","RES-HYBR","PEM-EL","DRI","DRI",7008,"öko"]
["ARG-CHU,RES-HYBR,PEM-EL,DRI,PEM-EL","ARG-CHU","RES-HYBR","PEM-EL","DRI","PEM-EL",7179.8045372049837,"PTX Atlas"]
["ARG-CHU,RES-HYBR,PEM-EL,EFUELSYN,EFUELSYN","ARG-CHU","RES-HYBR","PEM-EL","EFUELSYN","EFUELSYN",6390.4146064505558,"PTX Atlas"]
["ARG-CHU,RES-HYBR,PEM-EL,EFUELSYN,PEM-EL","ARG-CHU","RES-HYBR","PEM-EL","EFUELSYN","PEM-EL",7179.8045372049837,"PTX Atlas"]
["ARG-CHU,RES-HYBR,PEM-EL,LOHC-CON,LOHC-CON","ARG-CHU","RES-HYBR","PEM-EL","LOHC-CON","LOHC-CON",7013.5689382838873,"PTX Atlas"]
["ARG-CHU,RES-HYBR,PEM-EL,LOHC-CON,LOHC-REC","ARG-CHU","RES-HYBR","PEM-EL","LOHC-CON","LOHC-REC",7008,"öko"]
["ARG-CHU,RES-HYBR,PEM-EL,LOHC-CON,PEM-EL","ARG-CHU","RES-HYBR","PEM-EL","LOHC-CON","PEM-EL",7013.5689382838873,"PTX Atlas"]
["ARG-CHU,RES-HYBR,PEM-EL,NH3SYN,NH3-REC","ARG-CHU","RES-HYBR","PEM-EL","NH3SYN","NH3-REC",7008,"öko"]
["ARG-CHU,RES-HYBR,PEM-EL,NH3SYN,NH3SYN","ARG-CHU","RES-HYBR","PEM-EL","NH3SYN","NH3SYN",6390.4146064505558,"PTX Atlas"]
["ARG-CHU,RES-HYBR,PEM-EL,NH3SYN,PEM-EL","ARG-CHU","RES-HYBR","PEM-EL","NH3SYN","PEM-EL",7164.2552240886471,"PTX Atlas"]
["ARG-CHU,RES-HYBR,SOEC-EL,,H2-COMP","ARG-CHU","RES-HYBR","SOEC-EL",null,"H2-COMP",7008]
["ARG-CHU,RES-HYBR,SOEC-EL,,H2-LIQ","ARG-CHU","RES-HYBR","SOEC-EL",null,"H2-LIQ",6768.4316557899829,"öko"]
["ARG-CHU,RES-HYBR,SOEC-EL,,H2-RGAS","ARG-CHU","RES-HYBR","SOEC-EL",null,"H2-RGAS",7008,"öko"]
["ARG-CHU,RES-HYBR,SOEC-EL,,SOEC-EL","ARG-CHU","RES-HYBR","SOEC-EL",null,"SOEC-EL",6851.3108754175919,"PTX Atlas"]
["ARG-CHU,RES-HYBR,SOEC-EL,CH3OHSYN,CH3OHREC","ARG-CHU","RES-HYBR","SOEC-EL","CH3OHSYN","CH3OHREC",7008,"öko"]
["ARG-CHU,RES-HYBR,SOEC-EL,CH3OHSYN,CH3OHSYN","ARG-CHU","RES-HYBR","SOEC-EL","CH3OHSYN","CH3OHSYN",6390.4146064505558,"PTX Atlas"]
["ARG-CHU,RES-HYBR,SOEC-EL,CH3OHSYN,SOEC-EL","ARG-CHU","RES-HYBR","SOEC-EL","CH3OHSYN","SOEC-EL",6390.4146064505558,"PTX Atlas"]
["ARG-CHU,RES-HYBR,SOEC-EL,CH4SYN,ATR","ARG-CHU","RES-HYBR","SOEC-EL","CH4SYN","ATR",7008]
["ARG-CHU,RES-HYBR,SOEC-EL,CH4SYN,CH4-LIQ","ARG-CHU","RES-HYBR","SOEC-EL","CH4SYN","CH4-LIQ",6390.4146064505558,"PTX Atlas"]
["ARG-CHU,RES-HYBR,SOEC-EL,CH4SYN,CH4-RGAS","ARG-CHU","RES-HYBR","SOEC-EL","CH4SYN","CH4-RGAS",7008,"öko"]
["ARG-CHU,RES-HYBR,SOEC-EL,CH4SYN,CH4SYN","ARG-CHU","RES-HYBR","SOEC-EL","CH4SYN","CH4SYN",6390.4146064505558,"PTX Atlas"]
["ARG-CHU,RES-HYBR,SOEC-EL,CH4SYN,SOEC-EL","ARG-CHU","RES-HYBR","SOEC-EL","CH4SYN","SOEC-EL",6390.4146064505558,"PTX Atlas"]
["ARG-CHU,RES-HYBR,SOEC-EL,DRI,DRI","ARG-CHU","RES-HYBR","SOEC-EL","DRI","DRI",7008,"öko"]
["ARG-CHU,RES-HYBR,SOEC-EL,DRI,SOEC-EL","ARG-CHU","RES-HYBR","SOEC-EL","DRI","SOEC-EL",6390.4146064505558,"PTX Atlas"]
["ARG-CHU,RES-HYBR,SOEC-EL,EFUELSYN,EFUELSYN","ARG-CHU","RES-HYBR","SOEC-EL","EFUELSYN","EFUELSYN",6390.4146064505558,"PTX Atlas"]
["ARG-CHU,RES-HYBR,SOEC-EL,EFUELSYN,SOEC-EL","ARG-CHU","RES-HYBR","SOEC-EL","EFUELSYN","SOEC-EL",6390.4146064505558,"PTX Atlas"]
["ARG-CHU,RES-HYBR,SOEC-EL,LOHC-CON,LOHC-CON","ARG-CHU","RES-HYBR","SOEC-EL","LOHC-CON","LOHC-CON",6851.3108754175919,"PTX Atlas"]
["ARG-CHU,RES-HYBR,SOEC-EL,LOHC-CON,LOHC-REC","ARG-CHU","RES-HYBR","SOEC-EL","LOHC-CON","LOHC-REC",7008,"öko"]
["ARG-CHU,RES-HYBR,SOEC-EL,LOHC-CON,SOEC-EL","ARG-CHU","RES-HYBR","SOEC-EL","LOHC-CON","SOEC-EL",6851.3108754175919,"PTX Atlas"]
["ARG-CHU,RES-HYBR,SOEC-EL,NH3SYN,NH3-REC","ARG-CHU","RES-HYBR","SOEC-EL","NH3SYN","NH3-REC",7008,"öko"]
["ARG-CHU,RES-HYBR,SOEC-EL,NH3SYN,NH3SYN","ARG-CHU","RES-HYBR","SOEC-EL","NH3SYN","NH3SYN",6768.3925132824734,"PTX Atlas"]
["ARG-CHU,RES-HYBR,SOEC-EL,NH3SYN,SOEC-EL","ARG-CHU","RES-HYBR","SOEC-EL","NH3SYN","SOEC-EL",6768.3925132824734,"PTX Atlas"]
["ARG-CHU,WIND-OFF,AEL-EL,,AEL-EL","ARG-CHU","WIND-OFF","AEL-EL",null,"AEL-EL",6086.1603818045687,"PTX Atlas"]
["ARG-CHU,WIND-OFF,AEL-EL,,H2-COMP","ARG-CHU","WIND-OFF","AEL-EL",null,"H2-COMP",6657.5999999999995]
["ARG-CHU,WIND-OFF,AEL-EL,,H2-LIQ","ARG-CHU","WIND-OFF","AEL-EL",null,"H2-LIQ",6253.2373402550857,"öko"]
["ARG-CHU,WIND-OFF,AEL-EL,,H2-RGAS","ARG-CHU","WIND-OFF","AEL-EL",null,"H2-RGAS",6657.5999999999995,"öko"]
["ARG-CHU,WIND-OFF,AEL-EL,CH3OHSYN,AEL-EL","ARG-CHU","WIND-OFF","AEL-EL","CH3OHSYN","AEL-EL",6468.3190346700994,"PTX Atlas"]
["ARG-CHU,WIND-OFF,AEL-EL,CH3OHSYN,CH3OHREC","ARG-CHU","WIND-OFF","AEL-EL","CH3OHSYN","CH3OHREC",6657.5999999999995,"öko"]
["ARG-CHU,WIND-OFF,AEL-EL,CH3OHSYN,CH3OHSYN","ARG-CHU","WIND-OFF","AEL-EL","CH3OHSYN","CH3OHSYN",6406.8785292109806,"PTX Atlas"]
["ARG-CHU,WIND-OFF,AEL-EL,CH4SYN,AEL-EL","ARG-CHU","WIND-OFF","AEL-EL","CH4SYN","AEL-EL",6387.4976788277527,"PTX Atlas"]
["ARG-CHU,WIND-OFF,AEL-EL,CH4SYN,ATR","ARG-CHU","WIND-OFF","AEL-EL","CH4SYN","ATR",6657.5999999999995]
["ARG-CHU,WIND-OFF,AEL-EL,CH4SYN,CH4-LIQ","ARG-CHU","WIND-OFF","AEL-EL","CH4SYN","CH4-LIQ",6417.5739433430426,"PTX Atlas"]
["ARG-CHU,WIND-OFF,AEL-EL,CH4SYN,CH4-RGAS","ARG-CHU","WIND-OFF","AEL-EL","CH4SYN","CH4-RGAS",6657.5999999999995,"öko"]
["ARG-CHU,WIND-OFF,AEL-EL,CH4SYN,CH4SYN","ARG-CHU","WIND-OFF","AEL-EL","CH4SYN","CH4SYN",6417.5739433430426,"PTX Atlas"]
["ARG-CHU,WIND-OFF,AEL-EL,DRI,AEL-EL","ARG-CHU","WIND-OFF","AEL-EL","DRI","AEL-EL",6436.4439847799167,"PTX Atlas"]
["ARG-CHU,WIND-OFF,AEL-EL,DRI,DRI","ARG-CHU","WIND-OFF","AEL-EL","DRI","DRI",6657.5999999999995,"öko"]
["ARG-CHU,WIND-OFF,AEL-EL,EFUELSYN,AEL-EL","ARG-CHU","WIND-OFF","AEL-EL","EFUELSYN","AEL-EL",6436.4439847799167,"PTX Atlas"]
["ARG-CHU,WIND-OFF,AEL-EL,EFUELSYN,EFUELSYN","ARG-CHU","WIND-OFF","AEL-EL","EFUELSYN","EFUELSYN",6383.6879290918414,"PTX Atlas"]
["ARG-CHU,WIND-OFF,AEL-EL,LOHC-CON,AEL-EL","ARG-CHU","WIND-OFF","AEL-EL","LOHC-CON","AEL-EL",6086.1603818045687,"PTX Atlas"]
["ARG-CHU,WIND-OFF,AEL-EL,LOHC-CON,LOHC-CON","ARG-CHU","WIND-OFF","AEL-EL","LOHC-CON","LOHC-CON",6086.1603818045687,"PTX Atlas"]
["ARG-CHU,WIND-OFF,AEL-EL,LOHC-CON,LOHC-REC","ARG-CHU","WIND-OFF","AEL-EL","LOHC-CON","LOHC-REC",6657.5999999999995,"öko"]
["ARG-CHU,WIND-OFF,AEL-EL,NH3SYN,AEL-EL","ARG-CHU","WIND-OFF","AEL-EL","NH3SYN","AEL-EL",6240.8305034007926,"PTX Atlas"]
["ARG-CHU,WIND-OFF,AEL-EL,NH3SYN,NH3-REC","ARG-CHU","WIND-OFF","AEL-EL","NH3SYN","NH3-REC",6657.5999999999995,"öko"]
["ARG-CHU,WIND-OFF,AEL-EL,NH3SYN,NH3SYN","ARG-CHU","WIND-OFF","AEL-EL","NH3SYN","NH3SYN",6187.2635719018099,"PTX Atlas"]
["ARG-CHU,WIND-OFF,PEM-EL,,H2-COMP","ARG-CHU","WIND-OFF","PEM-EL",null,"H2-COMP",7008]
["ARG-CHU,WIND-OFF,PEM-EL,,H2-LIQ","ARG-CHU","WIND-OFF","PEM-EL",null,"H2-LIQ",6582.3550950053541,"öko"]
["ARG-CHU,WIND-OFF,PEM-EL,,H2-RGAS","ARG-CHU","WIND-OFF","PEM-EL",null,"H2-RGAS",7008,"öko"]
["ARG-CHU,WIND-OFF,PEM-EL,,PEM-EL","ARG-CHU","WIND-OFF","PEM-EL",null,"PEM-EL",6406.484612425862,"PTX Atlas"]
["ARG-CHU,WIND-OFF,PEM-EL,CH3OHSYN,CH3OHREC","ARG-CHU","WIND-OFF","PEM-EL","CH3OHSYN","CH3OHREC",7008,"öko"]
["ARG-CHU,WIND-OFF,PEM-EL,CH3OHSYN,CH3OHSYN","ARG-CHU","WIND-OFF","PEM-EL","CH3OHSYN","CH3OHSYN",6744.0826623273479,"PTX Atlas"]
["ARG-CHU,WIND-OFF,PEM-EL,CH3OHSYN,PEM-EL","ARG-CHU","WIND-OFF","PEM-EL","CH3OHSYN","PEM-EL",6808.7568786001048,"PTX Atlas"]
["ARG-CHU,WIND-OFF,PEM-EL,CH4SYN,ATR","ARG-CHU","WIND-OFF","PEM-EL","CH4SYN","ATR",7008]
["ARG-CHU,WIND-OFF,PEM-EL,CH4SYN,CH4-LIQ","ARG-CHU","WIND-OFF","PEM-EL","CH4SYN","CH4-LIQ",6755.3409929926765,"PTX Atlas"]
["ARG-CHU,WIND-OFF,PEM-EL,CH4SYN,CH4-RGAS","ARG-CHU","WIND-OFF","PEM-EL","CH4SYN","CH4-RGAS",7008,"öko"]
["ARG-CHU,WIND-OFF,PEM-EL,CH4SYN,CH4SYN","ARG-CHU","WIND-OFF","PEM-EL","CH4SYN","CH4SYN",6755.3409929926765,"PTX Atlas"]
["ARG-CHU,WIND-OFF,PEM-EL,CH4SYN,PEM-EL","ARG-CHU","WIND-OFF","PEM-EL","CH4SYN","PEM-EL",6723.6817671871086,"PTX Atlas"]
["ARG-CHU,WIND-OFF,PEM-EL,DRI,DRI","ARG-CHU","WIND-OFF","PEM-EL","DRI","DRI",7008,"öko"]
["ARG-CHU,WIND-OFF,PEM-EL,DRI,PEM-EL","ARG-CHU","WIND-OFF","PEM-EL","DRI","PEM-EL",6775.204194505176,"PTX Atlas"]
["ARG-CHU,WIND-OFF,PEM-EL,EFUELSYN,EFUELSYN","ARG-CHU","WIND-OFF","PEM-EL","EFUELSYN","EFUELSYN",6719.6715043072018,"PTX Atlas"]
["ARG-CHU,WIND-OFF,PEM-EL,EFUELSYN,PEM-EL","ARG-CHU","WIND-OFF","PEM-EL","EFUELSYN","PEM-EL",6775.204194505176,"PTX Atlas"]
["ARG-CHU,WIND-OFF,PEM-EL,LOHC-CON,LOHC-CON","ARG-CHU","WIND-OFF","PEM-EL","LOHC-CON","LOHC-CON",6406.484612425862,"PTX Atlas"]
["ARG-CHU,WIND-OFF,PEM-EL,LOHC-CON,LOHC-REC","ARG-CHU","WIND-OFF","PEM-EL","LOHC-CON","LOHC-REC",7008,"öko"]
["ARG-CHU,WIND-OFF,PEM-EL,LOHC-CON,PEM-EL","ARG-CHU","WIND-OFF","PEM-EL","LOHC-CON","PEM-EL",6406.484612425862,"PTX Atlas"]
["ARG-CHU,WIND-OFF,PEM-EL,NH3SYN,NH3-REC","ARG-CHU","WIND-OFF","PEM-EL","NH3SYN","NH3-REC",7008,"öko"]
["ARG-CHU,WIND-OFF,PEM-EL,NH3SYN,NH3SYN","ARG-CHU","WIND-OFF","PEM-EL","NH3SYN","NH3SYN",6512.9090230545371,"PTX Atlas"]
["ARG-CHU,WIND-OFF,PEM-EL,NH3SYN,PEM-EL","ARG-CHU","WIND-OFF","PEM-EL","NH3SYN","PEM-EL",6569.2952667376767,"PTX Atlas"]
["ARG-CHU,WIND-OFF,SOEC-EL,,H2-COMP","ARG-CHU","WIND-OFF","SOEC-EL",null,"H2-COMP",7008]
["ARG-CHU,WIND-OFF,SOEC-EL,,H2-LIQ","ARG-CHU","WIND-OFF","SOEC-EL",null,"H2-LIQ",6549.4908681717461,"öko"]
["ARG-CHU,WIND-OFF,SOEC-EL,,H2-RGAS","ARG-CHU","WIND-OFF","SOEC-EL",null,"H2-RGAS",7008,"öko"]
["ARG-CHU,WIND-OFF,SOEC-EL,,SOEC-EL","ARG-CHU","WIND-OFF","SOEC-EL",null,"SOEC-EL",6380.3675415999514,"PTX Atlas"]
["ARG-CHU,WIND-OFF,SOEC-EL,CH3OHSYN,CH3OHREC","ARG-CHU","WIND-OFF","SOEC-EL","CH3OHSYN","CH3OHREC",7008,"öko"]
["ARG-CHU,WIND-OFF,SOEC-EL,CH3OHSYN,CH3OHSYN","ARG-CHU","WIND-OFF","SOEC-EL","CH3OHSYN","CH3OHSYN",6820.3725392754022,"PTX Atlas"]
["ARG-CHU,WIND-OFF,SOEC-EL,CH3OHSYN,SOEC-EL","ARG-CHU","WIND-OFF","SOEC-EL","CH3OHSYN","SOEC-EL",6820.3725392754022,"PTX Atlas"]
["ARG-CHU,WIND-OFF,SOEC-EL,CH4SYN,ATR","ARG-CHU","WIND-OFF","SOEC-EL","CH4SYN","ATR",7008]
["ARG-CHU,WIND-OFF,SOEC-EL,CH4SYN,CH4-LIQ","ARG-CHU","WIND-OFF","SOEC-EL","CH4SYN","CH4-LIQ",6817.2205239292034,"PTX Atlas"]
["ARG-CHU,WIND-OFF,SOEC-EL,CH4SYN,CH4-RGAS","ARG-CHU","WIND-OFF","SOEC-EL","CH4SYN","CH4-RGAS",7008,"öko"]
["ARG-CHU,WIND-OFF,SOEC-EL,CH4SYN,CH4SYN","ARG-CHU","WIND-OFF","SOEC-EL","CH4SYN","CH4SYN",6817.2205239292034,"PTX Atlas"]
["ARG-CHU,WIND-OFF,SOEC-EL,CH4SYN,SOEC-EL","ARG-CHU","WIND-OFF","SOEC-EL","CH4SYN","SOEC-EL",6817.2205239292034,"PTX Atlas"]
["ARG-CHU,WIND-OFF,SOEC-EL,DRI,DRI","ARG-CHU","WIND-OFF","SOEC-EL","DRI","DRI",7008,"öko"]
["ARG-CHU,WIND-OFF,SOEC-EL,DRI,SOEC-EL","ARG-CHU","WIND-OFF","SOEC-EL","DRI","SOEC-EL",6828.3739578907425,"PTX Atlas"]
["ARG-CHU,WIND-OFF,SOEC-EL,EFUELSYN,EFUELSYN","ARG-CHU","WIND-OFF","SOEC-EL","EFUELSYN","EFUELSYN",6828.3739578907425,"PTX Atlas"]
["ARG-CHU,WIND-OFF,SOEC-EL,EFUELSYN,SOEC-EL","ARG-CHU","WIND-OFF","SOEC-EL","EFUELSYN","SOEC-EL",6828.3739578907425,"PTX Atlas"]
["ARG-CHU,WIND-OFF,SOEC-EL,LOHC-CON,LOHC-CON","ARG-CHU","WIND-OFF","SOEC-EL","LOHC-CON","LOHC-CON",6380.3675415999514,"PTX Atlas"]
["ARG-CHU,WIND-OFF,SOEC-EL,LOHC-CON,LOHC-REC","ARG-CHU","WIND-OFF","SOEC-EL","LOHC-CON","LOHC-REC",7008,"öko"]
["ARG-CHU,WIND-OFF,SOEC-EL,LOHC-CON,SOEC-EL","ARG-CHU","WIND-OFF","SOEC-EL","LOHC-CON","SOEC-EL",6380.3675415999514,"PTX Atlas"]
["ARG-CHU,WIND-OFF,SOEC-EL,NH3SYN,NH3-REC","ARG-CHU","WIND-OFF","SOEC-EL","NH3SYN","NH3-REC",7008,"öko"]
["ARG-CHU,WIND-OFF,SOEC-EL,NH3SYN,NH3SYN","ARG-CHU","WIND-OFF","SOEC-EL","NH3SYN","NH3SYN",6560.7842392823313,"PTX Atlas"]
["ARG-CHU,WIND-OFF,SOEC-EL,NH3SYN,SOEC-EL","ARG-CHU","WIND-OFF","SOEC-EL","NH3SYN","SOEC-EL",6560.7842392823313,"PTX Atlas"]
["ARG-CHU,WIND-ON,AEL-EL,,AEL-EL","ARG-CHU","WIND-ON","AEL-EL",null,"AEL-EL",6086.1603818045687,"PTX Atlas"]
["ARG-CHU,WIND-ON,AEL-EL,,H2-COMP","ARG-CHU","WIND-ON","AEL-EL",null,"H2-COMP",6657.5999999999995]
["ARG-CHU,WIND-ON,AEL-EL,,H2-LIQ","ARG-CHU","WIND-ON","AEL-EL",null,"H2-LIQ",6253.2373402550857,"öko"]
["ARG-CHU,WIND-ON,AEL-EL,,H2-RGAS","ARG-CHU","WIND-ON","AEL-EL",null,"H2-RGAS",6657.5999999999995,"öko"]
["ARG-CHU,WIND-ON,AEL-EL,CH3OHSYN,AEL-EL","ARG-CHU","WIND-ON","AEL-EL","CH3OHSYN","AEL-EL",6468.3190346700994,"PTX Atlas"]
["ARG-CHU,WIND-ON,AEL-EL,CH3OHSYN,CH3OHREC","ARG-CHU","WIND-ON","AEL-EL","CH3OHSYN","CH3OHREC",6657.5999999999995,"öko"]
["ARG-CHU,WIND-ON,AEL-EL,CH3OHSYN,CH3OHSYN","ARG-CHU","WIND-ON","AEL-EL","CH3OHSYN","CH3OHSYN",6406.8785292109806,"PTX Atlas"]
["ARG-CHU,WIND-ON,AEL-EL,CH4SYN,AEL-EL","ARG-CHU","WIND-ON","AEL-EL","CH4SYN","AEL-EL",6387.4976788277527,"PTX Atlas"]
["ARG-CHU,WIND-ON,AEL-EL,CH4SYN,ATR","ARG-CHU","WIND-ON","AEL-EL","CH4SYN","ATR",6657.5999999999995]
["ARG-CHU,WIND-ON,AEL-EL,CH4SYN,CH4-LIQ","ARG-CHU","WIND-ON","AEL-EL","CH4SYN","CH4-LIQ",6417.5739433430426,"PTX Atlas"]
["ARG-CHU,WIND-ON,AEL-EL,CH4SYN,CH4-RGAS","ARG-CHU","WIND-ON","AEL-EL","CH4SYN","CH4-RGAS",6657.5999999999995,"öko"]
["ARG-CHU,WIND-ON,AEL-EL,CH4SYN,CH4SYN","ARG-CHU","WIND-ON","AEL-EL","CH4SYN","CH4SYN",6417.5739433430426,"PTX Atlas"]
["ARG-CHU,WIND-ON,AEL-EL,DRI,AEL-EL","ARG-CHU","WIND-ON","AEL-EL","DRI","AEL-EL",6436.4439847799167,"PTX Atlas"]
["ARG-CHU,WIND-ON,AEL-EL,DRI,DRI","ARG-CHU","WIND-ON","AEL-EL","DRI","DRI",6657.5999999999995,"öko"]
["ARG-CHU,WIND-ON,AEL-EL,EFUELSYN,AEL-EL","ARG-CHU","WIND-ON","AEL-EL","EFUELSYN","AEL-EL",6436.4439847799167,"PTX Atlas"]
["ARG-CHU,WIND-ON,AEL-EL,EFUELSYN,EFUELSYN","ARG-CHU","WIND-ON","AEL-EL","EFUELSYN","EFUELSYN",6383.6879290918414,"PTX Atlas"]
["ARG-CHU,WIND-ON,AEL-EL,LOHC-CON,AEL-EL","ARG-CHU","WIND-ON","AEL-EL","LOHC-CON","AEL-EL",6086.1603818045687,"PTX Atlas"]
["ARG-CHU,WIND-ON,AEL-EL,LOHC-CON,LOHC-CON","ARG-CHU","WIND-ON","AEL-EL","LOHC-CON","LOHC-CON",6086.1603818045687,"PTX Atlas"]
["ARG-CHU,WIND-ON,AEL-EL,LOHC-CON,LOHC-REC","ARG-CHU","WIND-ON","AEL-EL","LOHC-CON","LOHC-REC",6657.5999999999995,"öko"]
["ARG-CHU,WIND-ON,AEL-EL,NH3SYN,AEL-EL","ARG-CHU","WIND-ON","AEL-EL","NH3SYN","AEL-EL",6240.8305034007926,"PTX Atlas"]
["ARG-CHU,WIND-ON,AEL-EL,NH3SYN,NH3-REC","ARG-CHU","WIND-ON","AEL-EL","NH3SYN","NH3-REC",6657.5999999999995,"öko"]
["ARG-CHU,WIND-ON,AEL-EL,NH3SYN,NH3SYN","ARG-CHU","WIND-ON","AEL-EL","NH3SYN","NH3SYN",6187.2635719018099,"PTX Atlas"]
["ARG-CHU,WIND-ON,PEM-EL,,H2-COMP","ARG-CHU","WIND-ON","PEM-EL",null,"H2-COMP",7008]
["ARG-CHU,WIND-ON,PEM-EL,,H2-LIQ","ARG-CHU","WIND-ON","PEM-EL",null,"H2-LIQ",6582.3550950053541,"öko"]
["ARG-CHU,WIND-ON,PEM-EL,,H2-RGAS","ARG-CHU","WIND-ON","PEM-EL",null,"H2-RGAS",7008,"öko"]
["ARG-CHU,WIND-ON,PEM-EL,,PEM-EL","ARG-CHU","WIND-ON","PEM-EL",null,"PEM-EL",6406.484612425862,"PTX Atlas"]
["ARG-CHU,WIND-ON,PEM-EL,CH3OHSYN,CH3OHREC","ARG-CHU","WIND-ON","PEM-EL","CH3OHSYN","CH3OHREC",7008,"öko"]
["ARG-CHU,WIND-ON,PEM-EL,CH3OHSYN,CH3OHSYN","ARG-CHU","WIND-ON","PEM-EL","CH3OHSYN","CH3OHSYN",6744.0826623273479,"PTX Atlas"]
["ARG-CHU,WIND-ON,PEM-EL,CH3OHSYN,PEM-EL","ARG-CHU","WIND-ON","PEM-EL","CH3OHSYN","PEM-EL",6808.7568786001048,"PTX Atlas"]
["ARG-CHU,WIND-ON,PEM-EL,CH4SYN,ATR","ARG-CHU","WIND-ON","PEM-EL","CH4SYN","ATR",7008]
["ARG-CHU,WIND-ON,PEM-EL,CH4SYN,CH4-LIQ","ARG-CHU","WIND-ON","PEM-EL","CH4SYN","CH4-LIQ",6755.3409929926765,"PTX Atlas"]
["ARG-CHU,WIND-ON,PEM-EL,CH4SYN,CH4-RGAS","ARG-CHU","WIND-ON","PEM-EL","CH4SYN","CH4-RGAS",7008,"öko"]
["ARG-CHU,WIND-ON,PEM-EL,CH4SYN,CH4SYN","ARG-CHU","WIND-ON","PEM-EL","CH4SYN","CH4SYN",6755.3409929926765,"PTX Atlas"]
["ARG-CHU,WIND-ON,PEM-EL,CH4SYN,PEM-EL","ARG-CHU","WIND-ON","PEM-EL","CH4SYN","PEM-EL",6723.6817671871086,"PTX Atlas"]
["ARG-CHU,WIND-ON,PEM-EL,DRI,DRI","ARG-CHU","WIND-ON","PEM-EL","DRI","DRI",7008,"öko"]
["ARG-CHU,WIND-ON,PEM-EL,DRI,PEM-EL","ARG-CHU","WIND-ON","PEM-EL","DRI","PEM-EL",6775.204194505176,"PTX Atlas"]
["ARG-CHU,WIND-ON,PEM-EL,EFUELSYN,EFUELSYN","ARG-CHU","WIND-ON","PEM-EL","EFUELSYN","EFUELSYN",6719.6715043072018,"PTX Atlas"]
["ARG-CHU,WIND-ON,PEM-EL,EFUELSYN,PEM-EL","ARG-CHU","WIND-ON","PEM-EL","EFUELSYN","PEM-EL",6775.204194505176,"PTX Atlas"]
["ARG-CHU,WIND-ON,PEM-EL,LOHC-CON,LOHC-CON","ARG-CHU","WIND-ON","PEM-EL","LOHC-CON","LOHC-CON",6406.484612425862,"PTX Atlas"]
["ARG-CHU,WIND-ON,PEM-EL,LOHC-CON,LOHC-REC","ARG-CHU","WIND-ON","PEM-EL","LOHC-CON","LOHC-REC",7008,"öko"]
["ARG-CHU,WIND-ON,PEM-EL,LOHC-CON,PEM-EL","ARG-CHU","WIND-ON","PEM-EL","LOHC-CON","PEM-EL",6406.484612425862,"PTX Atlas"]
["ARG-CHU,WIND-ON,PEM-EL,NH3SYN,NH3-REC","ARG-CHU","WIND-ON","PEM-EL","NH3SYN","NH3-REC",7008,"öko"]
["ARG-CHU,WIND-ON,PEM-EL,NH3SYN,NH3SYN","ARG-CHU","WIND-ON","PEM-EL","NH3SYN","NH3SYN",6512.9090230545371,"PTX Atlas"]
["ARG-CHU,WIND-ON,PEM-EL,NH3SYN,PEM-EL","ARG-CHU","WIND-ON","PEM-EL","NH3SYN","PEM-EL",6569.2952667376767,"PTX Atlas"]
["ARG-CHU,WIND-ON,SOEC-EL,,H2-COMP","ARG-CHU","WIND-ON","SOEC-EL",null,"H2-COMP",7008]
["ARG-CHU,WIND-ON,SOEC-EL,,H2-LIQ","ARG-CHU","WIND-ON","SOEC-EL",null,"H2-LIQ",6549.4908681717461,"öko"]
["ARG-CHU,WIND-ON,SOEC-EL,,H2-RGAS","ARG-CHU","WIND-ON","SOEC-EL",null,"H2-RGAS",7008,"öko"]
["ARG-CHU,WIND-ON,SOEC-EL,,SOEC-EL","ARG-CHU","WIND-ON","SOEC-EL",null,"SOEC-EL",6380.3675415999514,"PTX Atlas"]
["ARG-CHU,WIND-ON,SOEC-EL,CH3OHSYN,CH3OHREC","ARG-CHU","WIND-ON","SOEC-EL","CH3OHSYN","CH3OHREC",7008,"öko"]
["ARG-CHU,WIND-ON,SOEC-EL,CH4SYN,CH4SYN","ARG-CHU","WIND-ON","SOEC-EL","CH4SYN","CH4SYN",6817.2205239292034,"PTX Atlas"]
["ARG-CHU,WIND-ON,SOEC-EL,NH3SYN,SOEC-EL","ARG-CHU","WIND-ON","SOEC-EL","NH3SYN","SOEC-EL",6560.7842392823313,"PTX Atlas"]
["ARG-COR,PV-FIX,AEL-EL,CH3OHSYN,AEL-EL","ARG-COR","PV-FIX","AEL-EL","CH3OHSYN","AEL-EL",2708.6619142625564,"PTX Atlas"]
["ARG-COR,PV-FIX,AEL-EL,EFUELSYN,EFUELSYN","ARG-COR","PV-FIX","AEL-EL","EFUELSYN","EFUELSYN",7202.7995379497788,"PTX Atlas"]
["ARG-COR,PV-FIX,PEM-EL,CH4SYN,CH4-LIQ","ARG-COR","PV-FIX","PEM-EL","CH4SYN","CH4-LIQ",7592.4667861504204,"PTX Atlas"]
["ARG-COR,PV-FIX,PEM-EL,DRI,PEM-EL","ARG-COR","PV-FIX","PEM-EL","DRI","PEM-EL",2825.1366154990196,"PTX Atlas"]
["ARG-COR,PV-FIX,SOEC-EL,,H2-RGAS","ARG-COR","PV-FIX","SOEC-EL",null,"H2-RGAS",7008,"öko"]
["ARG-COR,PV-FIX,SOEC-EL,CH4SYN,SOEC-EL","ARG-COR","PV-FIX","SOEC-EL","CH4SYN","SOEC-EL",6761.6985829176065,"PTX Atlas"]
["ARG-COR,PV-TRK,AEL-EL,NH3SYN,NH3-REC","ARG-COR","PV-TRK","AEL-EL","NH3SYN","NH3-REC",6657.5999999999995,"öko"]
["ARG-COR,PV-TRK,PEM-EL,CH4SYN,CH4-RGAS","ARG-COR","PV-TRK","PEM-EL","CH4SYN","CH4-RGAS",7008,"öko"]
["ARG-COR,RES-HYBR,AEL-EL,,H2-RGAS","ARG-COR","RES-HYBR","AEL-EL",null,"H2-RGAS",6657.5999999999995,"öko"]
["ARG-COR,RES-HYBR,AEL-EL,CH3OHSYN,AEL-EL","ARG-COR","RES-HYBR","AEL-EL","CH3OHSYN","AEL-EL",4245.9417625405313,"PTX Atlas"]
["ARG-COR,RES-HYBR,AEL-EL,NH3SYN,AEL-EL","ARG-COR","RES-HYBR","AEL-EL","NH3SYN","AEL-EL",4224.7024024402035,"PTX Atlas"]
["ARG-COR,RES-HYBR,PEM-EL,,H2-RGAS","ARG-COR","RES-HYBR","PEM-EL",null,"H2-RGAS",7008,"öko"]
["ARG-COR,RES-HYBR,PEM-EL,DRI,PEM-EL","ARG-COR","RES-HYBR","PEM-EL","DRI","PEM-EL",4442.505332928311,"PTX Atlas"]
["ARG-COR,RES-HYBR,SOEC-EL,CH4SYN,ATR","ARG-COR","RES-HYBR","SOEC-EL","CH4SYN","ATR",7008]
["ARG-COR,RES-HYBR,SOEC-EL,LOHC-CON,SOEC-EL","ARG-COR","RES-HYBR","SOEC-EL","LOHC-CON","SOEC-EL",4349.4900994432519,"PTX Atlas"]
["ARG-COR,WIND-OFF,AEL-EL,,H2-COMP","ARG-COR","WIND-OFF","AEL-EL",null,"H2-COMP",6657.5999999999995]
["ARG-COR,WIND-OFF,AEL-EL,LOHC-CON,AEL-EL","ARG-COR","WIND-OFF","AEL-EL","LOHC-CON","AEL-EL",1347.8293246014512,"PTX Atlas"]
["ARG-COR,WIND-OFF,PEM-EL,CH3OHSYN,CH3OHSYN","ARG-COR","WIND-OFF","PEM-EL","CH3OHSYN","CH3OHSYN",3350.7391085964441,"PTX Atlas"]
["ARG-COR,WIND-OFF,PEM-EL,CH4SYN,CH4SYN","ARG-COR","WIND-OFF","PEM-EL","CH4SYN","CH4SYN",3313.2096523790692,"PTX Atlas"]
["ARG-COR,WIND-OFF,PEM-EL,NH3SYN,PEM-EL","ARG-COR","WIND-OFF","PEM-EL","NH3SYN","PEM-EL",1739.2492788679283,"PTX Atlas"]
["ARG-COR,WIND-OFF,SOEC-EL,EFUELSYN,EFUELSYN","ARG-COR","WIND-OFF","SOEC-EL","EFUELSYN","EFUELSYN",2171.7808097029783,"PTX Atlas"]
["ARG-COR,WIND-OFF,SOEC-EL,LOHC-CON,LOHC-CON","ARG-COR","WIND-OFF","SOEC-EL","LOHC-CON","LOHC-CON",1343.394386252327,"PTX Atlas"]
["ARG-COR,WIND-ON,AEL-EL,CH4SYN,CH4-LIQ","ARG-COR","WIND-ON","AEL-EL","CH4SYN","CH4-LIQ",4875.4656996368412,"PTX Atlas"]
["ARG-COR,WIND-ON,AEL-EL,EFUELSYN,AEL-EL","ARG-COR","WIND-ON","AEL-EL","EFUELSYN","AEL-EL",4210.0488603597423,"PTX Atlas"]
["ARG-COR,WIND-ON,PEM-EL,CH4SYN,ATR","ARG-COR","WIND-ON","PEM-EL","CH4SYN","ATR",7008]
["ARG-COR,WIND-ON,PEM-EL,LOHC-CON,PEM-EL","ARG-COR","WIND-ON","PEM-EL","LOHC-CON","PEM-EL",4054.3313766228798,"PTX Atlas"]
["ARG-COR,WIND-ON,SOEC-EL,,H2-LIQ","ARG-COR","WIND-ON","SOEC-EL",null,"H2-LIQ",4216.1830336574221,"öko"]
["ARG-COR,WIND-ON,SOEC-EL,DRI,DRI","ARG-COR","WIND-ON","SOEC-EL","DRI","DRI",7008,"öko"]
["ARG-CRB,PV-FIX,AEL-EL,CH3OHSYN,CH3OHREC","ARG-CRB","PV-FIX","AEL-EL","CH3OHSYN","CH3OHREC",6657.5999999999995,"öko"]
["ARG-CRB,PV-FIX,AEL-EL,EFUELSYN,AEL-EL","ARG-CRB","PV-FIX","AEL-EL","EFUELSYN","AEL-EL",2774.8653582802413,"PTX Atlas"]
["ARG-CRB,PV-FIX,PEM-EL,,H2-COMP","ARG-CRB","PV-FIX","PEM-EL",null,"H2-COMP",7008]
["ARG-CRB,PV-FIX,PEM-EL,EFUELSYN,PEM-EL","ARG-CRB","PV-FIX","PEM-EL","EFUELSYN","PEM-EL",2920.9109034528856,"PTX Atlas"]
["ARG-CRB,PV-FIX,PEM-EL,NH3SYN,NH3SYN","ARG-CRB","PV-FIX","PEM-EL","NH3SYN","NH3SYN",7765.3566887612578,"PTX Atlas"]
["ARG-CRB,PV-FIX,SOEC-EL,CH4SYN,CH4-RGAS","ARG-CRB","PV-FIX","SOEC-EL","CH4SYN","CH4-RGAS",7008,"öko"]
["ARG-CRB,PV-TRK,AEL-EL,CH3OHSYN,CH3OHREC","ARG-CRB","PV-TRK","AEL-EL","CH3OHSYN","CH3OHREC",6657.5999999999995,"öko"]
["ARG-CRB,PV-TRK,AEL-EL,CH4SYN,ATR","ARG-CRB","PV-TRK","AEL-EL","CH4SYN","ATR",6657.5999999999995]
["ARG-CRB,PV-TRK,SOEC-EL,CH3OHSYN,CH3OHREC","ARG-CRB","PV-TRK","SOEC-EL","CH3OHSYN","CH3OHREC",7008,"öko"]
["ARG-CRB,PV-TRK,SOEC-EL,NH3SYN,NH3-REC","ARG-CRB","PV-TRK","SOEC-EL","NH3SYN","NH3-REC",7008,"öko"]
["ARG-CRB,RES-HYBR,AEL-EL,CH4SYN,CH4SYN","ARG-CRB","RES-HYBR","AEL-EL","CH4SYN","CH4SYN",7010.2320122278488,"PTX Atlas"]
["ARG-CRB,RES-HYBR,PEM-EL,CH3OHSYN,CH3OHREC","ARG-CRB","RES-HYBR","PEM-EL","CH3OHSYN","CH3OHREC",7008,"öko"]
["ARG-CRB,RES-HYBR,PEM-EL,EFUELSYN,PEM-EL","ARG-CRB","RES-HYBR","PEM-EL","EFUELSYN","PEM-EL",4130.1017386406374,"PTX Atlas"]
["ARG-CRB,RES-HYBR,PEM-EL,NH3SYN,NH3SYN","ARG-CRB","RES-HYBR","PEM-EL","NH3SYN","NH3SYN",7051.1662690822568,"PTX Atlas"]
["ARG-CRB,RES-HYBR,SOEC-EL,DRI,SOEC-EL","ARG-CRB","RES-HYBR","SOEC-EL","DRI","SOEC-EL",6653.9073137748001,"PTX Atlas"]
["ARG-CRB,WIND-OFF,AEL-EL,,H2-LIQ","ARG-CRB","WIND-OFF","AEL-EL",null,"H2-LIQ",1602.0918817851802,"öko"]
["ARG-CRB,WIND-OFF,AEL-EL,CH4SYN,AEL-EL","ARG-CRB","WIND-OFF","AEL-EL","CH4SYN","AEL-EL",1647.8356753367241,"PTX Atlas"]
["ARG-CRB,WIND-OFF,AEL-EL,NH3SYN,AEL-EL","ARG-CRB","WIND-OFF","AEL-EL","NH3SYN","AEL-EL",1652.2868149245321,"PTX Atlas"]
["ARG-CRB,WIND-OFF,PEM-EL,DRI,DRI","ARG-CRB","WIND-OFF","PEM-EL","DRI","DRI",7008,"öko"]
["ARG-CRB,WIND-OFF,PEM-EL,LOHC-CON,LOHC-REC","ARG-CRB","WIND-OFF","PEM-EL","LOHC-CON","LOHC-REC",7008,"öko"]
["ARG-CRB,WIND-OFF,SOEC-EL,CH3OHSYN,SOEC-EL","ARG-CRB","WIND-OFF","SOEC-EL","CH3OHSYN","SOEC-EL",2159.6914621343913,"PTX Atlas"]
["ARG-CRB,WIND-OFF,SOEC-EL,CH4SYN,SOEC-EL","ARG-CRB","WIND-OFF","SOEC-EL","CH4SYN","SOEC-EL",2158.2217948489274,"PTX Atlas"]
["ARG-CRB,WIND-ON,AEL-EL,CH3OHSYN,AEL-EL","ARG-CRB","WIND-ON","AEL-EL","CH3OHSYN","AEL-EL",3877.1622369748402,"PTX Atlas"]
["ARG-CRB,WIND-ON,AEL-EL,EFUELSYN,EFUELSYN","ARG-CRB","WIND-ON","AEL-EL","EFUELSYN","EFUELSYN",4603.8853165085748,"PTX Atlas"]
["ARG-CRB,WIND-ON,AEL-EL,NH3SYN,NH3-REC","ARG-CRB","WIND-ON","AEL-EL","NH3SYN","NH3-REC",6657.5999999999995,"öko"]
["ARG-CRB,WIND-ON,PEM-EL,CH4SYN,CH4SYN","ARG-CRB","WIND-ON","PEM-EL","CH4SYN","CH4SYN",4869.2289028933164,"PTX Atlas"]
["ARG-CRB,WIND-ON,SOEC-EL,,SOEC-EL","ARG-CRB","WIND-ON","SOEC-EL",null,"SOEC-EL",3620.363629572144,"PTX Atlas"]
["ARG-CRB,WIND-ON,SOEC-EL,CH4SYN,CH4-LIQ","ARG-CRB","WIND-ON","SOEC-EL","CH4SYN","CH4-LIQ",4264.3272839201263,"PTX Atlas"]
["ARG-CRB,WIND-ON,SOEC-EL,NH3SYN,NH3-REC","ARG-CRB","WIND-ON","SOEC-EL","NH3SYN","NH3-REC",7008,"öko"]
["ARG-CRU,PV-FIX,AEL-EL,DRI,AEL-EL","ARG-CRU","PV-FIX","AEL-EL","DRI","AEL-EL",2688.0522791208973,"PTX Atlas"]
["ARG-CRU,PV-FIX,AEL-EL,LOHC-CON,LOHC-CON","ARG-CRU","PV-FIX","AEL-EL","LOHC-CON","LOHC-CON",2579.7543135893943,"PTX Atlas"]
["ARG-CRU,PV-FIX,PEM-EL,CH3OHSYN,PEM-EL","ARG-CRU","PV-FIX","PEM-EL","CH3OHSYN","PEM-EL",2855.6728441961627,"PTX Atlas"]
["ARG-CRU,PV-FIX,PEM-EL,NH3SYN,PEM-EL","ARG-CRU","PV-FIX","PEM-EL","NH3SYN","PEM-EL",2738.0409089019722,"PTX Atlas"]
["ARG-CRU,PV-FIX,SOEC-EL,CH4SYN,CH4-LIQ","ARG-CRU","PV-FIX","SOEC-EL","CH4SYN","CH4-LIQ",6778.6865523336874,"PTX Atlas"]
["ARG-CRU,PV-FIX,SOEC-EL,LOHC-CON,LOHC-CON","ARG-CRU","PV-FIX","SOEC-EL","LOHC-CON","LOHC-CON",2685.0578938748431,"PTX Atlas"]
["ARG-CRU,PV-FIX,SOEC-EL,NH3SYN,SOEC-EL","ARG-CRU","PV-FIX","SOEC-EL","NH3SYN","SOEC-EL",4289.7576866864865,"PTX Atlas"]
["ARG-CRU,PV-TRK,PEM-EL,CH3OHSYN,CH3OHREC","ARG-CRU","PV-TRK","PEM-EL","CH3OHSYN","CH3OHREC",7008,"öko"]
["ARG-CRU,RES-HYBR,AEL-EL,,H2-COMP","ARG-CRU","RES-HYBR","AEL-EL",null,"H2-COMP",6657.5999999999995]
["ARG-CRU,RES-HYBR,AEL-EL,CH3OHSYN,CH3OHSYN","ARG-CRU","RES-HYBR","AEL-EL","CH3OHSYN","CH3OHSYN",6051.0028757190294,"PTX Atlas"]
["ARG-CRU,RES-HYBR,AEL-EL,LOHC-CON,LOHC-CON","ARG-CRU","RES-HYBR","AEL-EL","LOHC-CON","LOHC-CON",6639.0432482504211,"PTX Atlas"]
["ARG-CRU,RES-HYBR,PEM-EL,CH4SYN,CH4SYN","ARG-CRU","RES-HYBR","PEM-EL","CH4SYN","CH4SYN",6369.4767112831887,"PTX Atlas"]
["ARG-CRU,RES-HYBR,PEM-EL,EFUELSYN,PEM-EL","ARG-CRU","RES-HYBR","PEM-EL","EFUELSYN","PEM-EL",7152.4269707183121,"PTX Atlas"]
["ARG-CRU,RES-HYBR,SOEC-EL,CH3OHSYN,CH3OHSYN","ARG-CRU","RES-HYBR","SOEC-EL","CH3OHSYN","CH3OHSYN",6369.4767112831887,"PTX Atlas"]
["ARG-CRU,RES-HYBR,SOEC-EL,NH3SYN,NH3SYN","ARG-CRU","RES-HYBR","SOEC-EL","NH3SYN","NH3SYN",6755.8038412791702,"PTX Atlas"]
["ARG-CRU,WIND-OFF,AEL-EL,CH4SYN,CH4-LIQ","ARG-CRU","WIND-OFF","AEL-EL","CH4SYN","CH4-LIQ",6469.7239953393491,"PTX Atlas"]
["ARG-CRU,WIND-OFF,AEL-EL,EFUELSYN,AEL-EL","ARG-CRU","WIND-OFF","AEL-EL","EFUELSYN","AEL-EL",6511.73482248648,"PTX Atlas"]
["ARG-CRU,WIND-OFF,PEM-EL,,PEM-EL","ARG-CRU","WIND-OFF","PEM-EL",null,"PEM-EL",6486.0282592814183,"PTX Atlas"]
["ARG-CRU,WIND-OFF,PEM-EL,CH4SYN,CH4-LIQ","ARG-CRU","WIND-OFF","PEM-EL","CH4SYN","CH4-LIQ",6810.2357845677361,"PTX Atlas"]
["ARG-CRU,WIND-OFF,SOEC-EL,,H2-LIQ","ARG-CRU","WIND-OFF","SOEC-EL",null,"H2-LIQ",6628.3972130343282,"öko"]
["ARG-CRU,WIND-OFF,SOEC-EL,DRI,SOEC-EL","ARG-CRU","WIND-OFF","SOEC-EL","DRI","SOEC-EL",6902.6368738066858,"PTX Atlas"]
["ARG-CRU,WIND-OFF,SOEC-EL,LOHC-CON,SOEC-EL","ARG-CRU","WIND-OFF","SOEC-EL","LOHC-CON","SOEC-EL",6460.6967226133329,"PTX Atlas"]
["ARG-CRU,WIND-ON,AEL-EL,CH4SYN,CH4SYN","ARG-CRU","WIND-ON","AEL-EL","CH4SYN","CH4SYN",6469.7239953393491,"PTX Atlas"]
["ARG-CRU,WIND-ON,PEM-EL,,H2-COMP","ARG-CRU","WIND-ON","PEM-EL",null,"H2-COMP",7008]
["ARG-CRU,WIND-ON,PEM-EL,CH3OHSYN,CH3OHSYN","ARG-CRU","WIND-ON","PEM-EL","CH3OHSYN","CH3OHSYN",6798.1993907992564,"PTX Atlas"]
["ARG-CRU,WIND-ON,PEM-EL,LOHC-CON,LOHC-CON","ARG-CRU","WIND-ON","PEM-EL","LOHC-CON","LOHC-CON",6486.0282592814183,"PTX Atlas"]
["ARG-CRU,WIND-ON,SOEC-EL,CH4SYN,CH4-RGAS","ARG-CRU","WIND-ON","SOEC-EL","CH4SYN","CH4-RGAS",7008,"öko"]
["ARG-CRU,WIND-ON,SOEC-EL,DRI,SOEC-EL","ARG-CRU","WIND-ON","SOEC-EL","DRI","SOEC-EL",6902.6368738066858,"PTX Atlas"]
["ARG-EST,PV-FIX,AEL-EL,CH3OHSYN,AEL-EL","ARG-EST","PV-FIX","AEL-EL","CH3OHSYN","AEL-EL",2790.2582898879537,"PTX Atlas"]
["ARG-EST,PV-FIX,AEL-EL,NH3SYN,AEL-EL","ARG-EST","PV-FIX","AEL-EL","NH3SYN","AEL-EL",2674.1071553066854,"PTX Atlas"]
["ARG-EST,PV-FIX,PEM-EL,,H2-RGAS","ARG-EST","PV-FIX","PEM-EL",null,"H2-RGAS",7008,"öko"]
["ARG-EST,PV-FIX,PEM-EL,DRI,PEM-EL","ARG-EST","PV-FIX","PEM-EL","DRI","PEM-EL",2909.9142348599748,"PTX Atlas"]
["ARG-EST,PV-FIX,PEM-EL,LOHC-CON,PEM-EL","ARG-EST","PV-FIX","PEM-EL","LOHC-CON","PEM-EL",2797.050286248596,"PTX Atlas"]
["ARG-EST,PV-FIX,SOEC-EL,CH4SYN,ATR","ARG-EST","PV-FIX","SOEC-EL","CH4SYN","ATR",7008]
["ARG-EST,PV-TRK,AEL-EL,,H2-COMP","ARG-EST","PV-TRK","AEL-EL",null,"H2-COMP",6657.5999999999995]
["ARG-EST,PV-TRK,PEM-EL,CH4SYN,ATR","ARG-EST","PV-TRK","PEM-EL","CH4SYN","ATR",7008]
["ARG-EST,PV-TRK,SOEC-EL,,H2-RGAS","ARG-EST","PV-TRK","SOEC-EL",null,"H2-RGAS",7008,"öko"]
["ARG-EST,RES-HYBR,AEL-EL,CH4SYN,ATR","ARG-EST","RES-HYBR","AEL-EL","CH4SYN","ATR",6657.5999999999995]
["ARG-EST,RES-HYBR,AEL-EL,NH3SYN,AEL-EL","ARG-EST","RES-HYBR","AEL-EL","NH3SYN","AEL-EL",4951.5589898102062,"PTX Atlas"]
["ARG-EST,RES-HYBR,PEM-EL,,H2-RGAS","ARG-EST","RES-HYBR","PEM-EL",null,"H2-RGAS",7008,"öko"]
["ARG-EST,RES-HYBR,PEM-EL,LOHC-CON,LOHC-REC","ARG-EST","RES-HYBR","PEM-EL","LOHC-CON","LOHC-REC",7008,"öko"]
["ARG-EST,RES-HYBR,SOEC-EL,CH3OHSYN,SOEC-EL","ARG-EST","RES-HYBR","SOEC-EL","CH3OHSYN","SOEC-EL",6345.7231096693004,"PTX Atlas"]
["ARG-EST,RES-HYBR,SOEC-EL,CH4SYN,SOEC-EL","ARG-EST","RES-HYBR","SOEC-EL","CH4SYN","SOEC-EL",6350.5640885942485,"PTX Atlas"]
["ARG-EST,RES-HYBR,SOEC-EL,LOHC-CON,SOEC-EL","ARG-EST","RES-HYBR","SOEC-EL","LOHC-CON","SOEC-EL",5053.9555587997729,"PTX Atlas"]
["ARG-EST,WIND-OFF,AEL-EL,CH3OHSYN,CH3OHSYN","ARG-EST","WIND-OFF","AEL-EL","CH3OHSYN","CH3OHSYN",3183.2021531666219,"PTX Atlas"]
["ARG-EST,WIND-OFF,AEL-EL,NH3SYN,NH3SYN","ARG-EST","WIND-OFF","AEL-EL","NH3SYN","NH3SYN",2119.690163733098,"PTX Atlas"]
["ARG-EST,WIND-OFF,PEM-EL,CH4SYN,CH4SYN","ARG-EST","WIND-OFF","PEM-EL","CH4SYN","CH4SYN",3313.2096523790692,"PTX Atlas"]
["ARG-EST,WIND-OFF,PEM-EL,EFUELSYN,PEM-EL","ARG-EST","WIND-OFF","PEM-EL","EFUELSYN","PEM-EL",1805.6798659548303,"PTX Atlas"]
["ARG-EST,WIND-OFF,SOEC-EL,CH4SYN,CH4-LIQ","ARG-EST","WIND-OFF","SOEC-EL","CH4SYN","CH4-LIQ",2158.2217948489274,"PTX Atlas"]
["ARG-EST,WIND-OFF,SOEC-EL,NH3SYN,NH3-REC","ARG-EST","WIND-OFF","SOEC-EL","NH3SYN","NH3-REC",7008,"öko"]
["ARG-EST,WIND-ON,AEL-EL,,H2-LIQ","ARG-EST","WIND-ON","AEL-EL",null,"H2-LIQ",4596.6635584381092,"öko"]
["ARG-EST,WIND-ON,AEL-EL,NH3SYN,NH3-REC","ARG-EST","WIND-ON","AEL-EL","NH3SYN","NH3-REC",6657.5999999999995,"öko"]
["ARG-EST,WIND-ON,PEM-EL,CH4SYN,ATR","ARG-EST","WIND-ON","PEM-EL","CH4SYN","ATR",7008]
["ARG-EST,WIND-ON,PEM-EL,DRI,DRI","ARG-EST","WIND-ON","PEM-EL","DRI","DRI",7008,"öko"]
["ARG-EST,WIND-ON,SOEC-EL,,H2-LIQ","ARG-EST","WIND-ON","SOEC-EL",null,"H2-LIQ",4787.2750907469135,"öko"]
["ARG-EST,WIND-ON,SOEC-EL,LOHC-CON,LOHC-CON","ARG-EST","WIND-ON","SOEC-EL","LOHC-CON","LOHC-CON",4586.3755576103176,"PTX Atlas"]
["ARG-EST,WIND-ON,SOEC-EL,NH3SYN,SOEC-EL","ARG-EST","WIND-ON","SOEC-EL","NH3SYN","SOEC-EL",4869.9601551650721,"PTX Atlas"]
["ARG-FOR,PV-FIX,AEL-EL,CH4SYN,CH4-RGAS","ARG-FOR","PV-FIX","AEL-EL","CH4SYN","CH4-RGAS",6657.5999999999995,"öko"]
["ARG-FOR,PV-FIX,AEL-EL,EFUELSYN,EFUELSYN","ARG-FOR","PV-FIX","AEL-EL","EFUELSYN","EFUELSYN",7261.2936962497952,"PTX Atlas"]
["ARG-FOR,PV-FIX,PEM-EL,CH4SYN,ATR","ARG-FOR","PV-FIX","PEM-EL","CH4SYN","ATR",7008]
["ARG-FOR,PV-FIX,PEM-EL,NH3SYN,NH3SYN","ARG-FOR","PV-FIX","PEM-EL","NH3SYN","NH3SYN",7545.4053612697389,"PTX Atlas"]
["ARG-FOR,PV-FIX,SOEC-EL,,SOEC-EL","ARG-FOR","PV-FIX","SOEC-EL",null,"SOEC-EL",2704.3831142979911,"PTX Atlas"]
["ARG-FOR,PV-FIX,SOEC-EL,EFUELSYN,EFUELSYN","ARG-FOR","PV-FIX","SOEC-EL","EFUELSYN","EFUELSYN",7497.2441293725151,"PTX Atlas"]
["ARG-FOR,PV-TRK,AEL-EL,NH3SYN,NH3-REC","ARG-FOR","PV-TRK","AEL-EL","NH3SYN","NH3-REC",6657.5999999999995,"öko"]
["ARG-FOR,PV-TRK,PEM-EL,CH4SYN,CH4-RGAS","ARG-FOR","PV-TRK","PEM-EL","CH4SYN","CH4-RGAS",7008,"öko"]
["ARG-FOR,PV-TRK,SOEC-EL,NH3SYN,NH3-REC","ARG-FOR","PV-TRK","SOEC-EL","NH3SYN","NH3-REC",7008,"öko"]
["ARG-FOR,RES-HYBR,AEL-EL,EFUELSYN,AEL-EL","ARG-FOR","RES-HYBR","AEL-EL","EFUELSYN","AEL-EL",5028.2848591996599,"PTX Atlas"]
["ARG-FOR,RES-HYBR,PEM-EL,,PEM-EL","ARG-FOR","RES-HYBR","PEM-EL",null,"PEM-EL",5283.5039144612601,"PTX Atlas"]
["ARG-FOR,RES-HYBR,PEM-EL,CH4SYN,CH4-RGAS","ARG-FOR","RES-HYBR","PEM-EL","CH4SYN","CH4-RGAS",7008,"öko"]
["ARG-FOR,RES-HYBR,SOEC-EL,,H2-RGAS","ARG-FOR","RES-HYBR","SOEC-EL",null,"H2-RGAS",7008,"öko"]
["ARG-FOR,RES-HYBR,SOEC-EL,,SOEC-EL","ARG-FOR","RES-HYBR","SOEC-EL",null,"SOEC-EL",5126.7575887272706,"PTX Atlas"]
["ARG-FOR,RES-HYBR,SOEC-EL,LOHC-CON,SOEC-EL","ARG-FOR","RES-HYBR","SOEC-EL","LOHC-CON","SOEC-EL",5126.7575887272706,"PTX Atlas"]
["ARG-FOR,WIND-OFF,AEL-EL,CH4SYN,AEL-EL","ARG-FOR","WIND-OFF","AEL-EL","CH4SYN","AEL-EL",1647.8356753367241,"PTX Atlas"]
["ARG-FOR,WIND-OFF,AEL-EL,DRI,AEL-EL","ARG-FOR","WIND-OFF","AEL-EL","DRI","AEL-EL",1715.3958726570888,"PTX Atlas"]
["ARG-FOR,WIND-OFF,PEM-EL,CH3OHSYN,CH3OHSYN","ARG-FOR","WIND-OFF","PEM-EL","CH3OHSYN","CH3OHSYN",3350.7391085964441,"PTX Atlas"]
["ARG-FOR,WIND-OFF,PEM-EL,DRI,DRI","ARG-FOR","WIND-OFF","PEM-EL","DRI","DRI",7008,"öko"]
["ARG-FOR,WIND-OFF,SOEC-EL,,H2-COMP","ARG-FOR","WIND-OFF","SOEC-EL",null,"H2-COMP",7008]
["ARG-FOR,WIND-OFF,SOEC-EL,EFUELSYN,SOEC-EL","ARG-FOR","WIND-OFF","SOEC-EL","EFUELSYN","SOEC-EL",2171.7808097029783,"PTX Atlas"]
["ARG-FOR,WIND-ON,AEL-EL,CH3OHSYN,AEL-EL","ARG-FOR","WIND-ON","AEL-EL","CH3OHSYN","AEL-EL",4842.5185783870202,"PTX Atlas"]
["ARG-FOR,WIND-ON,AEL-EL,CH4SYN,CH4-LIQ","ARG-FOR","WIND-ON","AEL-EL","CH4SYN","CH4-LIQ",5293.3194001824522,"PTX Atlas"]
["ARG-FOR,WIND-ON,AEL-EL,NH3SYN,NH3-REC","ARG-FOR","WIND-ON","AEL-EL","NH3SYN","NH3-REC",6657.5999999999995,"öko"]
["ARG-FOR,WIND-ON,PEM-EL,DRI,PEM-EL","ARG-FOR","WIND-ON","PEM-EL","DRI","PEM-EL",5066.6512964186613,"PTX Atlas"]
["ARG-FOR,WIND-ON,PEM-EL,LOHC-CON,PEM-EL","ARG-FOR","WIND-ON","PEM-EL","LOHC-CON","PEM-EL",4691.6769960642741,"PTX Atlas"]
["ARG-FOR,WIND-ON,SOEC-EL,CH4SYN,CH4SYN","ARG-FOR","WIND-ON","SOEC-EL","CH4SYN","CH4SYN",5215.4282286345078,"PTX Atlas"]
["ARG-FOR,WIND-ON,SOEC-EL,DRI,SOEC-EL","ARG-FOR","WIND-ON","SOEC-EL","DRI","SOEC-EL",5227.4087160389427,"PTX Atlas"]
["ARG-FUE,PV-FIX,AEL-EL,,H2-LIQ","ARG-FUE","PV-FIX","AEL-EL",null,"H2-LIQ",2375.2545528487303,"öko"]
["ARG-FUE,PV-FIX,AEL-EL,LOHC-CON,LOHC-CON","ARG-FUE","PV-FIX","AEL-EL","LOHC-CON","LOHC-CON",2291.4501264217292,"PTX Atlas"]
["ARG-FUE,PV-FIX,PEM-EL,,H2-COMP","ARG-FUE","PV-FIX","PEM-EL",null,"H2-COMP",7008]
["ARG-FUE,PV-FIX,PEM-EL,CH4SYN,PEM-EL","ARG-FUE","PV-FIX","PEM-EL","CH4SYN","PEM-EL",2522.4400258201222,"PTX Atlas"]
["ARG-FUE,PV-FIX,SOEC-EL,CH3OHSYN,CH3OHREC","ARG-FUE","PV-FIX","SOEC-EL","CH3OHSYN","CH3OHREC",7008,"öko"]
["ARG-FUE,PV-FIX,SOEC-EL,CH4SYN,CH4-RGAS","ARG-FUE","PV-FIX","SOEC-EL","CH4SYN","CH4-RGAS",7008,"öko"]
["ARG-FUE,PV-FIX,SOEC-EL,NH3SYN,NH3-REC","ARG-FUE","PV-FIX","SOEC-EL","NH3SYN","NH3-REC",7008,"öko"]
["ARG-FUE,PV-TRK,PEM-EL,LOHC-CON,LOHC-REC","ARG-FUE","PV-TRK","PEM-EL","LOHC-CON","LOHC-REC",7008,"öko"]
["ARG-FUE,RES-HYBR,AEL-EL,,H2-COMP","ARG-FUE","RES-HYBR","AEL-EL",null,"H2-COMP",6657.5999999999995]
["ARG-FUE,RES-HYBR,AEL-EL,CH3OHSYN,CH3OHSYN","ARG-FUE","RES-HYBR","AEL-EL","CH3OHSYN","CH3OHSYN",6873.0354633229672,"PTX Atlas"]
["ARG-FUE,RES-HYBR,AEL-EL,NH3SYN,NH3SYN","ARG-FUE","RES-HYBR","AEL-EL","NH3SYN","NH3SYN",6541.2587348141897,"PTX Atlas"]
["ARG-FUE,RES-HYBR,PEM-EL,,H2-COMP","ARG-FUE","RES-HYBR","PEM-EL",null,"H2-COMP",7008]
["ARG-FUE,RES-HYBR,PEM-EL,EFUELSYN,PEM-EL","ARG-FUE","RES-HYBR","PEM-EL","EFUELSYN","PEM-EL",4510.2383089316791,"PTX Atlas"]
["ARG-FUE,RES-HYBR,PEM-EL,NH3SYN,NH3SYN","ARG-FUE","RES-HYBR","PEM-EL","NH3SYN","NH3SYN",6885.5355103307265,"PTX Atlas"]
["ARG-FUE,RES-HYBR,SOEC-EL,EFUELSYN,SOEC-EL","ARG-FUE","RES-HYBR","SOEC-EL","EFUELSYN","SOEC-EL",6557.6525756344909,"PTX Atlas"]
["ARG-FUE,WIND-OFF,AEL-EL,,H2-RGAS","ARG-FUE","WIND-OFF","AEL-EL",null,"H2-RGAS",6657.5999999999995,"öko"]
["ARG-FUE,WIND-OFF,AEL-EL,EFUELSYN,AEL-EL","ARG-FUE","WIND-OFF","AEL-EL","EFUELSYN","AEL-EL",4872.8735676075748,"PTX Atlas"]
["ARG-FUE,WIND-OFF,AEL-EL,NH3SYN,AEL-EL","ARG-FUE","WIND-OFF","AEL-EL","NH3SYN","AEL-EL",4721.1444085310004,"PTX Atlas"]
["ARG-FUE,WIND-OFF,PEM-EL,DRI,DRI","ARG-FUE","WIND-OFF","PEM-EL","DRI","DRI",7008,"öko"]
["ARG-FUE,WIND-OFF,SOEC-EL,,H2-LIQ","ARG-FUE","WIND-OFF","SOEC-EL",null,"H2-LIQ",4910.8369454305202,"öko"]
["ARG-FUE,WIND-OFF,SOEC-EL,CH3OHSYN,SOEC-EL","ARG-FUE","WIND-OFF","SOEC-EL","CH3OHSYN","SOEC-EL",5276.7951634422498,"PTX Atlas"]
["ARG-FUE,WIND-OFF,SOEC-EL,LOHC-CON,LOHC-REC","ARG-FUE","WIND-OFF","SOEC-EL","LOHC-CON","LOHC-REC",7008,"öko"]
["ARG-FUE,WIND-ON,AEL-EL,,H2-LIQ","ARG-FUE","WIND-ON","AEL-EL",null,"H2-LIQ",4596.6635584381092,"öko"]
["ARG-FUE,WIND-ON,AEL-EL,LOHC-CON,AEL-EL","ARG-FUE","WIND-ON","AEL-EL","LOHC-CON","AEL-EL",4398.5341682150183,"PTX Atlas"]
["ARG-FUE,WIND-ON,PEM-EL,CH3OHSYN,CH3OHSYN","ARG-FUE","WIND-ON","PEM-EL","CH3OHSYN","CH3OHSYN",5535.4935063869279,"PTX Atlas"]
["ARG-FUE,WIND-ON,PEM-EL,CH4SYN,CH4SYN","ARG-FUE","WIND-ON","PEM-EL","CH4SYN","CH4SYN",5529.375350046118,"PTX Atlas"]
["ARG-FUE,WIND-ON,SOEC-EL,,SOEC-EL","ARG-FUE","WIND-ON","SOEC-EL",null,"SOEC-EL",4586.3755576103176,"PTX Atlas"]
["ARG-FUE,WIND-ON,SOEC-EL,EFUELSYN,EFUELSYN","ARG-FUE","WIND-ON","SOEC-EL","EFUELSYN","EFUELSYN",5169.8599013524836,"PTX Atlas"]
["ARG-FUE,WIND-ON,SOEC-EL,NH3SYN,NH3-REC","ARG-FUE","WIND-ON","SOEC-EL","NH3SYN","NH3-REC",7008,"öko"]
["ARG-JUJ,PV-FIX,AEL-EL,CH3OHSYN,CH3OHSYN","ARG-JUJ","PV-FIX","AEL-EL","CH3OHSYN","CH3OHSYN",7905.9,"PTX Atlas"]
["ARG-JUJ,PV-FIX,PEM-EL,,H2-RGAS","ARG-JUJ","PV-FIX","PEM-EL",null,"H2-RGAS",7008,"öko"]
["ARG-JUJ,PV-FIX,PEM-EL,CH4SYN,ATR","ARG-JUJ","PV-FIX","PEM-EL","CH4SYN","ATR",7008]
["ARG-JUJ,PV-FIX,PEM-EL,LOHC-CON,PEM-EL","ARG-JUJ","PV-FIX","PEM-EL","LOHC-CON","PEM-EL",3091.9364640561039,"PTX Atlas"]
["ARG-JUJ,PV-FIX,SOEC-EL,CH4SYN,SOEC-EL","ARG-JUJ","PV-FIX","SOEC-EL","CH4SYN","SOEC-EL",8214.3151155227442,"PTX Atlas"]
["ARG-JUJ,PV-FIX,SOEC-EL,LOHC-CON,LOHC-CON","ARG-JUJ","PV-FIX","SOEC-EL","LOHC-CON","LOHC-CON",3075.59252995712,"PTX Atlas"]
["ARG-JUJ,PV-TRK,AEL-EL,DRI,DRI","ARG-JUJ","PV-TRK","AEL-EL","DRI","DRI",6657.5999999999995,"öko"]
["ARG-JUJ,PV-TRK,SOEC-EL,CH4SYN,CH4-RGAS","ARG-JUJ","PV-TRK","SOEC-EL","CH4SYN","CH4-RGAS",7008,"öko"]
["ARG-JUJ,RES-HYBR,AEL-EL,,H2-LIQ","ARG-JUJ","RES-HYBR","AEL-EL",null,"H2-LIQ",5433.6887109486706,"öko"]
["ARG-JUJ,RES-HYBR,AEL-EL,DRI,DRI","ARG-JUJ","RES-HYBR","AEL-EL","DRI","DRI",6657.5999999999995,"öko"]
["ARG-JUJ,RES-HYBR,AEL-EL,LOHC-CON,LOHC-REC","ARG-JUJ","RES-HYBR","AEL-EL","LOHC-CON","LOHC-REC",6657.5999999999995,"öko"]
["ARG-JUJ,RES-HYBR,PEM-EL,CH4SYN,ATR","ARG-JUJ","RES-HYBR","PEM-EL","CH4SYN","ATR",7008]
["ARG-JUJ,RES-HYBR,SOEC-EL,,H2-COMP","ARG-JUJ","RES-HYBR","SOEC-EL",null,"H2-COMP",7008]
["ARG-JUJ,RES-HYBR,SOEC-EL,CH4SYN,SOEC-EL","ARG-JUJ","RES-HYBR","SOEC-EL","CH4SYN","SOEC-EL",6248.8967842429956,"PTX Atlas"]
["ARG-JUJ,RES-HYBR,SOEC-EL,LOHC-CON,LOHC-CON","ARG-JUJ","RES-HYBR","SOEC-EL","LOHC-CON","LOHC-CON",5597.8124947498191,"PTX Atlas"]
["ARG-JUJ,WIND-OFF,AEL-EL,CH4SYN,CH4-LIQ","ARG-JUJ","WIND-OFF","AEL-EL","CH4SYN","CH4-LIQ",3147.5491697601155,"PTX Atlas"]
["ARG-JUJ,WIND-OFF,PEM-EL,,H2-COMP","ARG-JUJ","WIND-OFF","PEM-EL",null,"H2-COMP",7008]
["ARG-JUJ,WIND-OFF,PEM-EL,CH3OHSYN,CH3OHREC","ARG-JUJ","WIND-OFF","PEM-EL","CH3OHSYN","CH3OHREC",7008,"öko"]
["ARG-JUJ,WIND-OFF,PEM-EL,NH3SYN,NH3-REC","ARG-JUJ","WIND-OFF","PEM-EL","NH3SYN","NH3-REC",7008,"öko"]
["ARG-JUJ,WIND-OFF,SOEC-EL,CH4SYN,CH4-LIQ","ARG-JUJ","WIND-OFF","SOEC-EL","CH4SYN","CH4-LIQ",2158.2217948489274,"PTX Atlas"]
["ARG-JUJ,WIND-OFF,SOEC-EL,DRI,SOEC-EL","ARG-JUJ","WIND-OFF","SOEC-EL","DRI","SOEC-EL",2171.7808097029783,"PTX Atlas"]
["ARG-JUJ,WIND-ON,AEL-EL,,H2-LIQ","ARG-JUJ","WIND-ON","AEL-EL",null,"H2-LIQ",4647.9062311951475,"öko"]
["ARG-JUJ,WIND-ON,AEL-EL,CH4SYN,AEL-EL","ARG-JUJ","WIND-ON","AEL-EL","CH4SYN","AEL-EL",4751.6153077920899,"PTX Atlas"]
["ARG-JUJ,WIND-ON,PEM-EL,,H2-COMP","ARG-JUJ","WIND-ON","PEM-EL",null,"H2-COMP",7008]
["ARG-JUJ,WIND-ON,PEM-EL,CH4SYN,CH4-RGAS","ARG-JUJ","WIND-ON","PEM-EL","CH4SYN","CH4-RGAS",7008,"öko"]
["ARG-JUJ,WIND-ON,PEM-EL,LOHC-CON,LOHC-REC","ARG-JUJ","WIND-ON","PEM-EL","LOHC-CON","LOHC-REC",7008,"öko"]
["ARG-JUJ,WIND-ON,SOEC-EL,CH3OHSYN,SOEC-EL","ARG-JUJ","WIND-ON","SOEC-EL","CH3OHSYN","SOEC-EL",5211.750235512236,"PTX Atlas"]
["ARG-JUJ,WIND-ON,SOEC-EL,NH3SYN,SOEC-EL","ARG-JUJ","WIND-ON","SOEC-EL","NH3SYN","SOEC-EL",4922.262289958675,"PTX Atlas"]
["ARG-LAR,PV-FIX,AEL-EL,CH3OHSYN,AEL-EL","ARG-LAR","PV-FIX","AEL-EL","CH3OHSYN","AEL-EL",3005.9063121596846,"PTX Atlas"]
["ARG-LAR,PV-FIX,AEL-EL,EFUELSYN,EFUELSYN","ARG-LAR","PV-FIX","AEL-EL","EFUELSYN","EFUELSYN",7905.9,"PTX Atlas"]
["ARG-LAR,PV-FIX,PEM-EL,CH4SYN,CH4-LIQ","ARG-LAR","PV-FIX","PEM-EL","CH4SYN","CH4-LIQ",8322,"PTX Atlas"]
["ARG-LAR,PV-FIX,PEM-EL,DRI,PEM-EL","ARG-LAR","PV-FIX","PEM-EL","DRI","PEM-EL",3133.9698477223337,"PTX Atlas"]
["ARG-LAR,PV-FIX,SOEC-EL,CH4SYN,ATR","ARG-LAR","PV-FIX","SOEC-EL","CH4SYN","ATR",7008]
["ARG-LAR,PV-FIX,SOEC-EL,LOHC-CON,SOEC-EL","ARG-LAR","PV-FIX","SOEC-EL","LOHC-CON","SOEC-EL",3005.3823588893897,"PTX Atlas"]
["ARG-LAR,PV-FIX,SOEC-EL,NH3SYN,NH3-REC","ARG-LAR","PV-FIX","SOEC-EL","NH3SYN","NH3-REC",7008,"öko"]
["ARG-LAR,PV-TRK,PEM-EL,CH4SYN,CH4-RGAS","ARG-LAR","PV-TRK","PEM-EL","CH4SYN","CH4-RGAS",7008,"öko"]
["ARG-LAR,PV-TRK,SOEC-EL,,H2-RGAS","ARG-LAR","PV-TRK","SOEC-EL",null,"H2-RGAS",7008,"öko"]
["ARG-LAR,RES-HYBR,AEL-EL,CH3OHSYN,AEL-EL","ARG-LAR","RES-HYBR","AEL-EL","CH3OHSYN","AEL-EL",5113.0988371278445,"PTX Atlas"]
["ARG-LAR,RES-HYBR,AEL-EL,NH3SYN,AEL-EL","ARG-LAR","RES-HYBR","AEL-EL","NH3SYN","AEL-EL",5083.7282141303695,"PTX Atlas"]
["ARG-LAR,RES-HYBR,PEM-EL,,H2-RGAS","ARG-LAR","RES-HYBR","PEM-EL",null,"H2-RGAS",7008,"öko"]
["ARG-LAR,RES-HYBR,PEM-EL,EFUELSYN,EFUELSYN","ARG-LAR","RES-HYBR","PEM-EL","EFUELSYN","EFUELSYN",6903.4402400081617,"PTX Atlas"]
["ARG-LAR,RES-HYBR,SOEC-EL,CH4SYN,ATR","ARG-LAR","RES-HYBR","SOEC-EL","CH4SYN","ATR",7008]
["ARG-LAR,RES-HYBR,SOEC-EL,LOHC-CON,SOEC-EL","ARG-LAR","RES-HYBR","SOEC-EL","LOHC-CON","SOEC-EL",5182.0532536427072,"PTX Atlas"]
["ARG-LAR,WIND-OFF,AEL-EL,,H2-COMP","ARG-LAR","WIND-OFF","AEL-EL",null,"H2-COMP",6657.5999999999995]
["ARG-LAR,WIND-OFF,AEL-EL,LOHC-CON,AEL-EL","ARG-LAR","WIND-OFF","AEL-EL","LOHC-CON","AEL-EL",1347.8293246014512,"PTX Atlas"]
["ARG-LAR,WIND-OFF,PEM-EL,CH3OHSYN,CH3OHSYN","ARG-LAR","WIND-OFF","PEM-EL","CH3OHSYN","CH3OHSYN",3350.7391085964441,"PTX Atlas"]
["ARG-LAR,WIND-OFF,PEM-EL,CH4SYN,CH4SYN","ARG-LAR","WIND-OFF","PEM-EL","CH4SYN","CH4SYN",3313.2096523790692,"PTX Atlas"]
["ARG-LAR,WIND-OFF,PEM-EL,NH3SYN,PEM-EL","ARG-LAR","WIND-OFF","PEM-EL","NH3SYN","PEM-EL",1739.2492788679283,"PTX Atlas"]
["ARG-LAR,WIND-OFF,SOEC-EL,DRI,DRI","ARG-LAR","WIND-OFF","SOEC-EL","DRI","DRI",7008,"öko"]
["ARG-LAR,WIND-OFF,SOEC-EL,NH3SYN,NH3SYN","ARG-LAR","WIND-OFF","SOEC-EL","NH3SYN","NH3SYN",1813.4745533305361,"PTX Atlas"]
["ARG-LAR,WIND-ON,AEL-EL,CH4SYN,CH4-LIQ","ARG-LAR","WIND-ON","AEL-EL","CH4SYN","CH4-LIQ",4956.8047613418194,"PTX Atlas"]
["ARG-LAR,WIND-ON,AEL-EL,EFUELSYN,AEL-EL","ARG-LAR","WIND-ON","AEL-EL","EFUELSYN","AEL-EL",4327.4808831402252,"PTX Atlas"]
["ARG-LAR,WIND-ON,PEM-EL,CH4SYN,ATR","ARG-LAR","WIND-ON","PEM-EL","CH4SYN","ATR",7008]
["ARG-LAR,WIND-ON,PEM-EL,LOHC-CON,PEM-EL","ARG-LAR","WIND-ON","PEM-EL","LOHC-CON","PEM-EL",4178.396556850912,"PTX Atlas"]
["ARG-LAR,WIND-ON,SOEC-EL,,H2-LIQ","ARG-LAR","WIND-ON","SOEC-EL",null,"H2-LIQ",4339.2542063217634,"öko"]
["ARG-LAR,WIND-ON,SOEC-EL,DRI,DRI","ARG-LAR","WIND-ON","SOEC-EL","DRI","DRI",7008,"öko"]
["ARG-LAR,WIND-ON,SOEC-EL,NH3SYN,SOEC-EL","ARG-LAR","WIND-ON","SOEC-EL","NH3SYN","SOEC-EL",4440.0896981654487,"PTX Atlas"]
["ARG-MEN,PV-FIX,AEL-EL,CH4SYN,CH4SYN","ARG-MEN","PV-FIX","AEL-EL","CH4SYN","CH4SYN",7717.4594979433004,"PTX Atlas"]
["ARG-MEN,PV-FIX,PEM-EL,,H2-COMP","ARG-MEN","PV-FIX","PEM-EL",null,"H2-COMP",7008]
["ARG-MEN,PV-FIX,PEM-EL,EFUELSYN,PEM-EL","ARG-MEN","PV-FIX","PEM-EL","EFUELSYN","PEM-EL",3020.976773263269,"PTX Atlas"]
["ARG-MEN,PV-FIX,PEM-EL,NH3SYN,NH3SYN","ARG-MEN","PV-FIX","PEM-EL","NH3SYN","NH3SYN",8066.7955306719341,"PTX Atlas"]
["ARG-MEN,PV-FIX,SOEC-EL,CH4SYN,CH4-RGAS","ARG-MEN","PV-FIX","SOEC-EL","CH4SYN","CH4-RGAS",7008,"öko"]
["ARG-MEN,PV-FIX,SOEC-EL,EFUELSYN,EFUELSYN","ARG-MEN","PV-FIX","SOEC-EL","EFUELSYN","EFUELSYN",8054.1463011370652,"PTX Atlas"]
["ARG-MEN,PV-TRK,AEL-EL,CH4SYN,ATR","ARG-MEN","PV-TRK","AEL-EL","CH4SYN","ATR",6657.5999999999995]
["ARG-MEN,PV-TRK,SOEC-EL,CH4SYN,ATR","ARG-MEN","PV-TRK","SOEC-EL","CH4SYN","ATR",7008]
["ARG-MEN,RES-HYBR,AEL-EL,,AEL-EL","ARG-MEN","RES-HYBR","AEL-EL",null,"AEL-EL",4663.2655123599488,"PTX Atlas"]
["ARG-MEN,RES-HYBR,AEL-EL,CH4SYN,CH4SYN","ARG-MEN","RES-HYBR","AEL-EL","CH4SYN","CH4SYN",6748.1261538516828,"PTX Atlas"]
["ARG-MEN,RES-HYBR,PEM-EL,CH3OHSYN,CH3OHREC","ARG-MEN","RES-HYBR","PEM-EL","CH3OHSYN","CH3OHREC",7008,"öko"]
["ARG-MEN,RES-HYBR,PEM-EL,EFUELSYN,PEM-EL","ARG-MEN","RES-HYBR","PEM-EL","EFUELSYN","PEM-EL",4884.1569632929077,"PTX Atlas"]
["ARG-MEN,RES-HYBR,PEM-EL,NH3SYN,NH3SYN","ARG-MEN","RES-HYBR","PEM-EL","NH3SYN","NH3SYN",6722.6139835073936,"PTX Atlas"]
["ARG-MEN,RES-HYBR,SOEC-EL,DRI,SOEC-EL","ARG-MEN","RES-HYBR","SOEC-EL","DRI","SOEC-EL",6462.972281829133,"PTX Atlas"]
["ARG-MEN,WIND-OFF,AEL-EL,,H2-LIQ","ARG-MEN","WIND-OFF","AEL-EL",null,"H2-LIQ",1602.0918817851802,"öko"]
["ARG-MEN,WIND-OFF,AEL-EL,CH3OHSYN,AEL-EL","ARG-MEN","WIND-OFF","AEL-EL","CH3OHSYN","AEL-EL",1739.4897839541527,"PTX Atlas"]
["ARG-MEN,WIND-OFF,PEM-EL,,H2-LIQ","ARG-MEN","WIND-OFF","PEM-EL",null,"H2-LIQ",1686.412507142295,"öko"]
["ARG-MEN,WIND-OFF,PEM-EL,,H2-RGAS","ARG-MEN","WIND-OFF","PEM-EL",null,"H2-RGAS",7008,"öko"]
["ARG-MEN,WIND-OFF,PEM-EL,LOHC-CON,LOHC-REC","ARG-MEN","WIND-OFF","PEM-EL","LOHC-CON","LOHC-REC",7008,"öko"]
["ARG-MEN,WIND-OFF,SOEC-EL,CH3OHSYN,SOEC-EL","ARG-MEN","WIND-OFF","SOEC-EL","CH3OHSYN","SOEC-EL",2159.6914621343913,"PTX Atlas"]
["ARG-MEN,WIND-OFF,SOEC-EL,CH4SYN,SOEC-EL","ARG-MEN","WIND-OFF","SOEC-EL","CH4SYN","SOEC-EL",2158.2217948489274,"PTX Atlas"]
["ARG-MEN,WIND-ON,AEL-EL,CH3OHSYN,AEL-EL","ARG-MEN","WIND-ON","AEL-EL","CH3OHSYN","AEL-EL",4264.4190766648499,"PTX Atlas"]
["ARG-MEN,WIND-ON,AEL-EL,CH4SYN,ATR","ARG-MEN","WIND-ON","AEL-EL","CH4SYN","ATR",6657.5999999999995]
["ARG-MEN,WIND-ON,AEL-EL,NH3SYN,NH3SYN","ARG-MEN","WIND-ON","AEL-EL","NH3SYN","NH3SYN",4291.5459665158551,"PTX Atlas"]
["ARG-MEN,WIND-ON,PEM-EL,CH4SYN,CH4SYN","ARG-MEN","WIND-ON","PEM-EL","CH4SYN","CH4SYN",5151.1145101103994,"PTX Atlas"]
["ARG-MEN,WIND-ON,SOEC-EL,,SOEC-EL","ARG-MEN","WIND-ON","SOEC-EL",null,"SOEC-EL",4032.8552215339441,"PTX Atlas"]
["ARG-MEN,WIND-ON,SOEC-EL,CH4SYN,CH4-LIQ","ARG-MEN","WIND-ON","SOEC-EL","CH4SYN","CH4-LIQ",4645.8655100403112,"PTX Atlas"]
["ARG-MEN,WIND-ON,SOEC-EL,NH3SYN,NH3-REC","ARG-MEN","WIND-ON","SOEC-EL","NH3SYN","NH3-REC",7008,"öko"]
["ARG-MIS,PV-FIX,AEL-EL,DRI,AEL-EL","ARG-MIS","PV-FIX","AEL-EL","DRI","AEL-EL",2700.4559303112455,"PTX Atlas"]
["ARG-MIS,PV-FIX,AEL-EL,LOHC-CON,LOHC-CON","ARG-MIS","PV-FIX","AEL-EL","LOHC-CON","LOHC-CON",2592.3329294023829,"PTX Atlas"]
["ARG-MIS,PV-FIX,PEM-EL,CH3OHSYN,PEM-EL","ARG-MIS","PV-FIX","PEM-EL","CH3OHSYN","PEM-EL",2868.9007771707602,"PTX Atlas"]
["ARG-MIS,PV-FIX,PEM-EL,DRI,DRI","ARG-MIS","PV-FIX","PEM-EL","DRI","DRI",7008,"öko"]
["ARG-MIS,PV-FIX,SOEC-EL,,H2-LIQ","ARG-MIS","PV-FIX","SOEC-EL",null,"H2-LIQ",2768.5228295814104,"öko"]
["ARG-MIS,PV-FIX,SOEC-EL,LOHC-CON,LOHC-CON","ARG-MIS","PV-FIX","SOEC-EL","LOHC-CON","LOHC-CON",2698.7955524821791,"PTX Atlas"]
["ARG-MIS,PV-FIX,SOEC-EL,NH3SYN,SOEC-EL","ARG-MIS","PV-FIX","SOEC-EL","NH3SYN","SOEC-EL",4311.5137271592539,"PTX Atlas"]
["ARG-MIS,PV-TRK,PEM-EL,CH3OHSYN,CH3OHREC","ARG-MIS","PV-TRK","PEM-EL","CH3OHSYN","CH3OHREC",7008,"öko"]
["ARG-MIS,RES-HYBR,AEL-EL,,H2-COMP","ARG-MIS","RES-HYBR","AEL-EL",null,"H2-COMP",6657.5999999999995]
["ARG-MIS,RES-HYBR,AEL-EL,CH3OHSYN,CH3OHSYN","ARG-MIS","RES-HYBR","AEL-EL","CH3OHSYN","CH3OHSYN",7388.5181416385758,"PTX Atlas"]
["ARG-MIS,RES-HYBR,PEM-EL,,H2-RGAS","ARG-MIS","RES-HYBR","PEM-EL",null,"H2-RGAS",7008,"öko"]
["ARG-MIS,RES-HYBR,PEM-EL,CH4SYN,PEM-EL","ARG-MIS","RES-HYBR","PEM-EL","CH4SYN","PEM-EL",3199.5290500507745,"PTX Atlas"]
["ARG-MIS,RES-HYBR,SOEC-EL,,H2-COMP","ARG-MIS","RES-HYBR","SOEC-EL",null,"H2-COMP",7008]
["ARG-MIS,RES-HYBR,SOEC-EL,CH3OHSYN,CH3OHSYN","ARG-MIS","RES-HYBR","SOEC-EL","CH3OHSYN","CH3OHSYN",6791.904813545355,"PTX Atlas"]
["ARG-MIS,RES-HYBR,SOEC-EL,NH3SYN,NH3SYN","ARG-MIS","RES-HYBR","SOEC-EL","NH3SYN","NH3SYN",4849.9087617638324,"PTX Atlas"]
["ARG-MIS,RES-HYBR,SOEC-EL,NH3SYN,SOEC-EL","ARG-MIS","RES-HYBR","SOEC-EL","NH3SYN","SOEC-EL",4849.9087617638324,"PTX Atlas"]
["ARG-MIS,WIND-OFF,AEL-EL,EFUELSYN,AEL-EL","ARG-MIS","WIND-OFF","AEL-EL","EFUELSYN","AEL-EL",1715.3958726570888,"PTX Atlas"]
["ARG-MIS,WIND-OFF,PEM-EL,,PEM-EL","ARG-MIS","WIND-OFF","PEM-EL",null,"PEM-EL",1418.7677101067909,"PTX Atlas"]
["ARG-MIS,WIND-OFF,PEM-EL,CH4SYN,PEM-EL","ARG-MIS","WIND-OFF","PEM-EL","CH4SYN","PEM-EL",1734.563868775499,"PTX Atlas"]
["ARG-MIS,WIND-OFF,SOEC-EL,,H2-RGAS","ARG-MIS","WIND-OFF","SOEC-EL",null,"H2-RGAS",7008,"öko"]
["ARG-MIS,WIND-OFF,SOEC-EL,DRI,SOEC-EL","ARG-MIS","WIND-OFF","SOEC-EL","DRI","SOEC-EL",2171.7808097029783,"PTX Atlas"]
["ARG-MIS,WIND-OFF,SOEC-EL,LOHC-CON,SOEC-EL","ARG-MIS","WIND-OFF","SOEC-EL","LOHC-CON","SOEC-EL",1343.394386252327,"PTX Atlas"]
["ARG-MIS,WIND-ON,AEL-EL,CH4SYN,CH4SYN","ARG-MIS","WIND-ON","AEL-EL","CH4SYN","CH4SYN",4155.9894348357393,"PTX Atlas"]
["ARG-MIS,WIND-ON,PEM-EL,,H2-COMP","ARG-MIS","WIND-ON","PEM-EL",null,"H2-COMP",7008]
["ARG-MIS,WIND-ON,PEM-EL,CH3OHSYN,CH3OHSYN","ARG-MIS","WIND-ON","PEM-EL","CH3OHSYN","CH3OHSYN",4397.2095514082957,"PTX Atlas"]
["ARG-MIS,WIND-ON,PEM-EL,LOHC-CON,LOHC-CON","ARG-MIS","WIND-ON","PEM-EL","LOHC-CON","LOHC-CON",2956.9256457072925,"PTX Atlas"]
["ARG-MIS,WIND-ON,SOEC-EL,CH4SYN,CH4-RGAS","ARG-MIS","WIND-ON","SOEC-EL","CH4SYN","CH4-RGAS",7008,"öko"]
["ARG-MIS,WIND-ON,SOEC-EL,EFUELSYN,SOEC-EL","ARG-MIS","WIND-ON","SOEC-EL","EFUELSYN","SOEC-EL",3607.8237616230535,"PTX Atlas"]
["ARG-NEG,PV-FIX,AEL-EL,CH3OHSYN,AEL-EL","ARG-NEG","PV-FIX","AEL-EL","CH3OHSYN","AEL-EL",2816.309641346244,"PTX Atlas"]
["ARG-NEG,PV-FIX,AEL-EL,CH4SYN,CH4-LIQ","ARG-NEG","PV-FIX","AEL-EL","CH4SYN","CH4-LIQ",7501.0305378282064,"PTX Atlas"]
["ARG-NEG,PV-FIX,AEL-EL,NH3SYN,NH3-REC","ARG-NEG","PV-FIX","AEL-EL","NH3SYN","NH3-REC",6657.5999999999995,"öko"]
["ARG-NEG,PV-FIX,PEM-EL,DRI,PEM-EL","ARG-NEG","PV-FIX","PEM-EL","DRI","PEM-EL",2936.9812649926462,"PTX Atlas"]
["ARG-NEG,PV-FIX,PEM-EL,LOHC-CON,PEM-EL","ARG-NEG","PV-FIX","PEM-EL","LOHC-CON","PEM-EL",2824.4991211128327,"PTX Atlas"]
["ARG-NEG,PV-FIX,SOEC-EL,CH4SYN,ATR","ARG-NEG","PV-FIX","SOEC-EL","CH4SYN","ATR",7008]
["ARG-NEG,PV-FIX,SOEC-EL,LOHC-CON,SOEC-EL","ARG-NEG","PV-FIX","SOEC-EL","LOHC-CON","SOEC-EL",2798.116468815841,"PTX Atlas"]
["ARG-NEG,PV-TRK,AEL-EL,LOHC-CON,LOHC-REC","ARG-NEG","PV-TRK","AEL-EL","LOHC-CON","LOHC-REC",6657.5999999999995,"öko"]
["ARG-NEG,PV-TRK,SOEC-EL,,H2-RGAS","ARG-NEG","PV-TRK","SOEC-EL",null,"H2-RGAS",7008,"öko"]
["ARG-NEG,RES-HYBR,AEL-EL,CH4SYN,ATR","ARG-NEG","RES-HYBR","AEL-EL","CH4SYN","ATR",6657.5999999999995]
["ARG-NEG,RES-HYBR,AEL-EL,NH3SYN,AEL-EL","ARG-NEG","RES-HYBR","AEL-EL","NH3SYN","AEL-EL",6165.5932399157473,"PTX Atlas"]
["ARG-NEG,RES-HYBR,PEM-EL,,H2-RGAS","ARG-NEG","RES-HYBR","PEM-EL",null,"H2-RGAS",7008,"öko"]
["ARG-NEG,RES-HYBR,PEM-EL,LOHC-CON,LOHC-REC","ARG-NEG","RES-HYBR","PEM-EL","LOHC-CON","LOHC-REC",7008,"öko"]
["ARG-NEG,RES-HYBR,PEM-EL,LOHC-CON,PEM-EL","ARG-NEG","RES-HYBR","PEM-EL","LOHC-CON","PEM-EL",6390.8651833480571,"PTX Atlas"]
["ARG-NEG,RES-HYBR,SOEC-EL,EFUELSYN,EFUELSYN","ARG-NEG","RES-HYBR","SOEC-EL","EFUELSYN","EFUELSYN",6053.6558473376572,"PTX Atlas"]
["ARG-NEG,RES-HYBR,SOEC-EL,LOHC-CON,LOHC-REC","ARG-NEG","RES-HYBR","SOEC-EL","LOHC-CON","LOHC-REC",7008,"öko"]
["ARG-NEG,WIND-OFF,AEL-EL,CH3OHSYN,CH3OHSYN","ARG-NEG","WIND-OFF","AEL-EL","CH3OHSYN","CH3OHSYN",5833.5872556366903,"PTX Atlas"]
["ARG-NEG,WIND-OFF,AEL-EL,NH3SYN,NH3SYN","ARG-NEG","WIND-OFF","AEL-EL","NH3SYN","NH3SYN",5463.895569811184,"PTX Atlas"]
["ARG-NEG,WIND-OFF,PEM-EL,CH4SYN,CH4SYN","ARG-NEG","WIND-OFF","PEM-EL","CH4SYN","CH4SYN",6143.2001854554865,"PTX Atlas"]
["ARG-NEG,WIND-OFF,PEM-EL,EFUELSYN,PEM-EL","ARG-NEG","WIND-OFF","PEM-EL","EFUELSYN","PEM-EL",5891.435292470127,"PTX Atlas"]
["ARG-NEG,WIND-OFF,SOEC-EL,CH4SYN,CH4-LIQ","ARG-NEG","WIND-OFF","SOEC-EL","CH4SYN","CH4-LIQ",5988.6747881277515,"PTX Atlas"]
["ARG-NEG,WIND-OFF,SOEC-EL,NH3SYN,NH3-REC","ARG-NEG","WIND-OFF","SOEC-EL","NH3SYN","NH3-REC",7008,"öko"]
["ARG-NEG,WIND-ON,AEL-EL,,H2-COMP","ARG-NEG","WIND-ON","AEL-EL",null,"H2-COMP",6657.5999999999995]
["ARG-NEG,WIND-ON,AEL-EL,EFUELSYN,AEL-EL","ARG-NEG","WIND-ON","AEL-EL","EFUELSYN","AEL-EL",5596.8635278466209,"PTX Atlas"]
["ARG-NEG,WIND-ON,PEM-EL,CH4SYN,ATR","ARG-NEG","WIND-ON","PEM-EL","CH4SYN","ATR",7008]
["ARG-NEG,WIND-ON,PEM-EL,DRI,DRI","ARG-NEG","WIND-ON","PEM-EL","DRI","DRI",7008,"öko"]
["ARG-NEG,WIND-ON,SOEC-EL,,H2-LIQ","ARG-NEG","WIND-ON","SOEC-EL",null,"H2-LIQ",5669.5932990563961,"öko"]
["ARG-NEG,WIND-ON,SOEC-EL,CH3OHSYN,SOEC-EL","ARG-NEG","WIND-ON","SOEC-EL","CH3OHSYN","SOEC-EL",5991.5276185217936,"PTX Atlas"]
["ARG-NEG,WIND-ON,SOEC-EL,NH3SYN,SOEC-EL","ARG-NEG","WIND-ON","SOEC-EL","NH3SYN","SOEC-EL",5716.5334837984883,"PTX Atlas"]
["ARG-NEU,PV-FIX,AEL-EL,CH4SYN,CH4-RGAS","ARG-NEU","PV-FIX","AEL-EL","CH4SYN","CH4-RGAS",6657.5999999999995,"öko"]
["ARG-NEU,PV-FIX,AEL-EL,NH3SYN,NH3SYN","ARG-NEU","PV-FIX","AEL-EL","NH3SYN","NH3SYN",7548.844223429769,"PTX Atlas"]
["ARG-NEU,PV-FIX,PEM-EL,CH3OHSYN,CH3OHSYN","ARG-NEU","PV-FIX","PEM-EL","CH3OHSYN","CH3OHSYN",8006.139950993429,"PTX Atlas"]
["ARG-NEU,PV-FIX,PEM-EL,NH3SYN,NH3SYN","ARG-NEU","PV-FIX","PEM-EL","NH3SYN","NH3SYN",7946.1518141365996,"PTX Atlas"]
["ARG-NEU,PV-FIX,SOEC-EL,,SOEC-EL","ARG-NEU","PV-FIX","SOEC-EL",null,"SOEC-EL",2844.3557786173178,"PTX Atlas"]
["ARG-NEU,PV-FIX,SOEC-EL,EFUELSYN,EFUELSYN","ARG-NEU","PV-FIX","SOEC-EL","EFUELSYN","EFUELSYN",7925.2855137821598,"PTX Atlas"]
["ARG-NEU,PV-TRK,AEL-EL,NH3SYN,NH3-REC","ARG-NEU","PV-TRK","AEL-EL","NH3SYN","NH3-REC",6657.5999999999995,"öko"]
["ARG-NEU,PV-TRK,PEM-EL,CH4SYN,CH4-RGAS","ARG-NEU","PV-TRK","PEM-EL","CH4SYN","CH4-RGAS",7008,"öko"]
["ARG-NEU,PV-TRK,SOEC-EL,NH3SYN,NH3-REC","ARG-NEU","PV-TRK","SOEC-EL","NH3SYN","NH3-REC",7008,"öko"]
["ARG-NEU,RES-HYBR,AEL-EL,CH3OHSYN,CH3OHSYN","ARG-NEU","RES-HYBR","AEL-EL","CH3OHSYN","CH3OHSYN",6513.535106696866,"PTX Atlas"]
["ARG-NEU,RES-HYBR,AEL-EL,LOHC-CON,AEL-EL","ARG-NEU","RES-HYBR","AEL-EL","LOHC-CON","AEL-EL",5250.4225844115454,"PTX Atlas"]
["ARG-NEU,RES-HYBR,PEM-EL,CH4SYN,CH4-RGAS","ARG-NEU","RES-HYBR","PEM-EL","CH4SYN","CH4-RGAS",7008,"öko"]
["ARG-NEU,RES-HYBR,PEM-EL,EFUELSYN,EFUELSYN","ARG-NEU","RES-HYBR","PEM-EL","EFUELSYN","EFUELSYN",6828.1074535988573,"PTX Atlas"]
["ARG-NEU,RES-HYBR,SOEC-EL,,SOEC-EL","ARG-NEU","RES-HYBR","SOEC-EL",null,"SOEC-EL",5369.2393087437049,"PTX Atlas"]
["ARG-NEU,RES-HYBR,SOEC-EL,LOHC-CON,SOEC-EL","ARG-NEU","RES-HYBR","SOEC-EL","LOHC-CON","SOEC-EL",5369.2393087437049,"PTX Atlas"]
["ARG-NEU,WIND-OFF,AEL-EL,CH4SYN,AEL-EL","ARG-NEU","WIND-OFF","AEL-EL","CH4SYN","AEL-EL",1647.8356753367241,"PTX Atlas"]
["ARG-NEU,WIND-OFF,AEL-EL,DRI,AEL-EL","ARG-NEU","WIND-OFF","AEL-EL","DRI","AEL-EL",1715.3958726570888,"PTX Atlas"]
["ARG-NEU,WIND-OFF,PEM-EL,CH3OHSYN,CH3OHREC","ARG-NEU","WIND-OFF","PEM-EL","CH3OHSYN","CH3OHREC",7008,"öko"]
["ARG-NEU,WIND-OFF,PEM-EL,LOHC-CON,LOHC-REC","ARG-NEU","WIND-OFF","PEM-EL","LOHC-CON","LOHC-REC",7008,"öko"]
["ARG-NEU,WIND-OFF,SOEC-EL,,H2-COMP","ARG-NEU","WIND-OFF","SOEC-EL",null,"H2-COMP",7008]
["ARG-NEU,WIND-OFF,SOEC-EL,EFUELSYN,SOEC-EL","ARG-NEU","WIND-OFF","SOEC-EL","EFUELSYN","SOEC-EL",2171.7808097029783,"PTX Atlas"]
["ARG-NEU,WIND-ON,AEL-EL,CH3OHSYN,AEL-EL","ARG-NEU","WIND-ON","AEL-EL","CH3OHSYN","AEL-EL",4986.0177812887823,"PTX Atlas"]
["ARG-NEU,WIND-ON,AEL-EL,CH4SYN,CH4-LIQ","ARG-NEU","WIND-ON","AEL-EL","CH4SYN","CH4-LIQ",5392.550292988979,"PTX Atlas"]
["ARG-NEU,WIND-ON,AEL-EL,NH3SYN,NH3-REC","ARG-NEU","WIND-ON","AEL-EL","NH3SYN","NH3-REC",6657.5999999999995,"öko"]
["ARG-NEU,WIND-ON,PEM-EL,CH4SYN,CH4-LIQ","ARG-NEU","WIND-ON","PEM-EL","CH4SYN","CH4-LIQ",5676.3687294620831,"PTX Atlas"]
["ARG-NEU,WIND-ON,PEM-EL,NH3SYN,NH3-REC","ARG-NEU","WIND-ON","PEM-EL","NH3SYN","NH3-REC",7008,"öko"]
["ARG-NEU,WIND-ON,SOEC-EL,CH4SYN,CH4-LIQ","ARG-NEU","WIND-ON","SOEC-EL","CH4SYN","CH4-LIQ",5356.8083818388386,"PTX Atlas"]
["ARG-NEU,WIND-ON,SOEC-EL,DRI,SOEC-EL","ARG-NEU","WIND-ON","SOEC-EL","DRI","SOEC-EL",5368.7158704263802,"PTX Atlas"]
["ARG-PAM,PV-FIX,AEL-EL,,H2-LIQ","ARG-PAM","PV-FIX","AEL-EL",null,"H2-LIQ",2730.1782021154868,"öko"]
["ARG-PAM,PV-FIX,AEL-EL,LOHC-CON,LOHC-CON","ARG-PAM","PV-FIX","AEL-EL","LOHC-CON","LOHC-CON",2675.4594820594839,"PTX Atlas"]
["ARG-PAM,PV-FIX,PEM-EL,,H2-COMP","ARG-PAM","PV-FIX","PEM-EL",null,"H2-COMP",7008]
["ARG-PAM,PV-FIX,PEM-EL,CH4SYN,PEM-EL","ARG-PAM","PV-FIX","PEM-EL","CH4SYN","PEM-EL",2911.5721667034941,"PTX Atlas"]
["ARG-PAM,PV-FIX,SOEC-EL,CH3OHSYN,SOEC-EL","ARG-PAM","PV-FIX","SOEC-EL","CH3OHSYN","SOEC-EL",7464.302009067198,"PTX Atlas"]
["ARG-PAM,PV-FIX,SOEC-EL,CH4SYN,CH4SYN","ARG-PAM","PV-FIX","SOEC-EL","CH4SYN","CH4SYN",7162.9223221617922,"PTX Atlas"]
["ARG-PAM,PV-FIX,SOEC-EL,NH3SYN,SOEC-EL","ARG-PAM","PV-FIX","SOEC-EL","NH3SYN","SOEC-EL",4455.2898525181436,"PTX Atlas"]
["ARG-PAM,PV-TRK,PEM-EL,LOHC-CON,LOHC-REC","ARG-PAM","PV-TRK","PEM-EL","LOHC-CON","LOHC-REC",7008,"öko"]
["ARG-PAM,PV-TRK,PEM-EL,NH3SYN,NH3-REC","ARG-PAM","PV-TRK","PEM-EL","NH3SYN","NH3-REC",7008,"öko"]
["ARG-PAM,RES-HYBR,AEL-EL,CH3OHSYN,CH3OHSYN","ARG-PAM","RES-HYBR","AEL-EL","CH3OHSYN","CH3OHSYN",6517.8341359402357,"PTX Atlas"]
["ARG-PAM,RES-HYBR,AEL-EL,CH4SYN,CH4SYN","ARG-PAM","RES-HYBR","AEL-EL","CH4SYN","CH4SYN",6518.1757199602562,"PTX Atlas"]
["ARG-PAM,RES-HYBR,PEM-EL,,H2-COMP","ARG-PAM","RES-HYBR","PEM-EL",null,"H2-COMP",7008]
["ARG-PAM,RES-HYBR,PEM-EL,DRI,PEM-EL","ARG-PAM","RES-HYBR","PEM-EL","DRI","PEM-EL",5545.7038938389478,"PTX Atlas"]
["ARG-PAM,RES-HYBR,PEM-EL,NH3SYN,PEM-EL","ARG-PAM","RES-HYBR","PEM-EL","NH3SYN","PEM-EL",5542.1532758664371,"PTX Atlas"]
["ARG-PAM,RES-HYBR,SOEC-EL,CH4SYN,CH4SYN","ARG-PAM","RES-HYBR","SOEC-EL","CH4SYN","CH4SYN",6293.7669282743136,"PTX Atlas"]
["ARG-PAM,WIND-OFF,AEL-EL,,H2-RGAS","ARG-PAM","WIND-OFF","AEL-EL",null,"H2-RGAS",6657.5999999999995,"öko"]
["ARG-PAM,WIND-OFF,AEL-EL,EFUELSYN,AEL-EL","ARG-PAM","WIND-OFF","AEL-EL","EFUELSYN","AEL-EL",1715.3958726570888,"PTX Atlas"]
["ARG-PAM,WIND-OFF,AEL-EL,NH3SYN,AEL-EL","ARG-PAM","WIND-OFF","AEL-EL","NH3SYN","AEL-EL",1652.2868149245321,"PTX Atlas"]
["ARG-PAM,WIND-OFF,PEM-EL,DRI,DRI","ARG-PAM","WIND-OFF","PEM-EL","DRI","DRI",7008,"öko"]
["ARG-PAM,WIND-OFF,SOEC-EL,,H2-LIQ","ARG-PAM","WIND-OFF","SOEC-EL",null,"H2-LIQ",1601.7354467237706,"öko"]
["ARG-PAM,WIND-OFF,SOEC-EL,CH4SYN,SOEC-EL","ARG-PAM","WIND-OFF","SOEC-EL","CH4SYN","SOEC-EL",2158.2217948489274,"PTX Atlas"]
["ARG-PAM,WIND-OFF,SOEC-EL,LOHC-CON,SOEC-EL","ARG-PAM","WIND-OFF","SOEC-EL","LOHC-CON","SOEC-EL",1343.394386252327,"PTX Atlas"]
["ARG-PAM,WIND-ON,AEL-EL,,H2-COMP","ARG-PAM","WIND-ON","AEL-EL",null,"H2-COMP",6657.5999999999995]
["ARG-PAM,WIND-ON,AEL-EL,LOHC-CON,AEL-EL","ARG-PAM","WIND-ON","AEL-EL","LOHC-CON","AEL-EL",4552.5396810281418,"PTX Atlas"]
["ARG-PAM,WIND-ON,PEM-EL,CH3OHSYN,CH3OHSYN","ARG-PAM","WIND-ON","PEM-EL","CH3OHSYN","CH3OHSYN",5645.7841567940995,"PTX Atlas"]
["ARG-PAM,WIND-ON,PEM-EL,CH4SYN,CH4SYN","ARG-PAM","WIND-ON","PEM-EL","CH4SYN","CH4SYN",5641.2517039525137,"PTX Atlas"]
["ARG-PAM,WIND-ON,SOEC-EL,,SOEC-EL","ARG-PAM","WIND-ON","SOEC-EL",null,"SOEC-EL",4750.087553342657,"PTX Atlas"]
["ARG-PAM,WIND-ON,SOEC-EL,EFUELSYN,EFUELSYN","ARG-PAM","WIND-ON","SOEC-EL","EFUELSYN","EFUELSYN",5321.2087638720304,"PTX Atlas"]
["ARG-PAM,WIND-ON,SOEC-EL,NH3SYN,NH3SYN","ARG-PAM","WIND-ON","SOEC-EL","NH3SYN","NH3SYN",5024.2574918942764,"PTX Atlas"]
["ARG-RIO,PV-FIX,AEL-EL,CH4SYN,CH4-LIQ","ARG-RIO","PV-FIX","AEL-EL","CH4SYN","CH4-LIQ",7263.1804014170812,"PTX Atlas"]
["ARG-RIO,PV-FIX,PEM-EL,,H2-RGAS","ARG-RIO","PV-FIX","PEM-EL",null,"H2-RGAS",7008,"öko"]
["ARG-RIO,PV-FIX,PEM-EL,CH4SYN,ATR","ARG-RIO","PV-FIX","PEM-EL","CH4SYN","ATR",7008]
["ARG-RIO,PV-FIX,PEM-EL,LOHC-CON,PEM-EL","ARG-RIO","PV-FIX","PEM-EL","LOHC-CON","PEM-EL",2730.8880094865549,"PTX Atlas"]
["ARG-RIO,PV-FIX,SOEC-EL,CH4SYN,SOEC-EL","ARG-RIO","PV-FIX","SOEC-EL","CH4SYN","SOEC-EL",6837.2594512445085,"PTX Atlas"]
["ARG-RIO,PV-FIX,SOEC-EL,DRI,DRI","ARG-RIO","PV-FIX","SOEC-EL","DRI","DRI",7008,"öko"]
["ARG-RIO,PV-TRK,AEL-EL,DRI,DRI","ARG-RIO","PV-TRK","AEL-EL","DRI","DRI",6657.5999999999995,"öko"]
["ARG-RIO,PV-TRK,SOEC-EL,CH3OHSYN,CH3OHREC","ARG-RIO","PV-TRK","SOEC-EL","CH3OHSYN","CH3OHREC",7008,"öko"]
["ARG-RIO,PV-TRK,SOEC-EL,LOHC-CON,LOHC-REC","ARG-RIO","PV-TRK","SOEC-EL","LOHC-CON","LOHC-REC",7008,"öko"]
["ARG-RIO,RES-HYBR,AEL-EL,DRI,DRI","ARG-RIO","RES-HYBR","AEL-EL","DRI","DRI",6657.5999999999995,"öko"]
["ARG-RIO,RES-HYBR,AEL-EL,LOHC-CON,LOHC-REC","ARG-RIO","RES-HYBR","AEL-EL","LOHC-CON","LOHC-REC",6657.5999999999995,"öko"]
["ARG-RIO,RES-HYBR,PEM-EL,CH4SYN,ATR","ARG-RIO","RES-HYBR","PEM-EL","CH4SYN","ATR",7008]
["ARG-RIO,RES-HYBR,SOEC-EL,,H2-COMP","ARG-RIO","RES-HYBR","SOEC-EL",null,"H2-COMP",7008]
["ARG-RIO,RES-HYBR,SOEC-EL,CH4SYN,SOEC-EL","ARG-RIO","RES-HYBR","SOEC-EL","CH4SYN","SOEC-EL",6473.3570602905511,"PTX Atlas"]
["ARG-RIO,RES-HYBR,SOEC-EL,LOHC-CON,LOHC-CON","ARG-RIO","RES-HYBR","SOEC-EL","LOHC-CON","LOHC-CON",4397.0894230337981,"PTX Atlas"]
["ARG-RIO,WIND-OFF,AEL-EL,,H2-RGAS","ARG-RIO","WIND-OFF","AEL-EL",null,"H2-RGAS",6657.5999999999995,"öko"]
["ARG-RIO,WIND-OFF,AEL-EL,NH3SYN,NH3SYN","ARG-RIO","WIND-OFF","AEL-EL","NH3SYN","NH3SYN",2119.690163733098,"PTX Atlas"]
["ARG-RIO,WIND-OFF,PEM-EL,CH3OHSYN,CH3OHREC","ARG-RIO","WIND-OFF","PEM-EL","CH3OHSYN","CH3OHREC",7008,"öko"]
["ARG-RIO,WIND-OFF,PEM-EL,NH3SYN,NH3-REC","ARG-RIO","WIND-OFF","PEM-EL","NH3SYN","NH3-REC",7008,"öko"]
["ARG-RIO,WIND-OFF,PEM-EL,NH3SYN,NH3SYN","ARG-RIO","WIND-OFF","PEM-EL","NH3SYN","NH3SYN",2231.2528039295771,"PTX Atlas"]
["ARG-RIO,WIND-OFF,SOEC-EL,DRI,SOEC-EL","ARG-RIO","WIND-OFF","SOEC-EL","DRI","SOEC-EL",2171.7808097029783,"PTX Atlas"]
["ARG-RIO,WIND-ON,AEL-EL,,H2-LIQ","ARG-RIO","WIND-ON","AEL-EL",null,"H2-LIQ",4079.8636313282263,"öko"]
["ARG-RIO,WIND-ON,AEL-EL,CH4SYN,AEL-EL","ARG-RIO","WIND-ON","AEL-EL","CH4SYN","AEL-EL",4172.7622164421582,"PTX Atlas"]
["ARG-RIO,WIND-ON,PEM-EL,,H2-LIQ","ARG-RIO","WIND-ON","PEM-EL",null,"H2-LIQ",4294.5932961349754,"öko"]
["ARG-RIO,WIND-ON,PEM-EL,DRI,DRI","ARG-RIO","WIND-ON","PEM-EL","DRI","DRI",7008,"öko"]
["ARG-RIO,WIND-ON,PEM-EL,LOHC-CON,LOHC-REC","ARG-RIO","WIND-ON","PEM-EL","LOHC-CON","LOHC-REC",7008,"öko"]
["ARG-RIO,WIND-ON,SOEC-EL,CH3OHSYN,SOEC-EL","ARG-RIO","WIND-ON","SOEC-EL","CH3OHSYN","SOEC-EL",4642.5430542170106,"PTX Atlas"]
["ARG-RIO,WIND-ON,SOEC-EL,NH3SYN,SOEC-EL","ARG-RIO","WIND-ON","SOEC-EL","NH3SYN","SOEC-EL",4342.4751901012123,"PTX Atlas"]
["ARG-SAF,PV-FIX,AEL-EL,CH3OHSYN,AEL-EL","ARG-SAF","PV-FIX","AEL-EL","CH3OHSYN","AEL-EL",2738.5066501286051,"PTX Atlas"]
["ARG-SAF,PV-FIX,AEL-EL,EFUELSYN,EFUELSYN","ARG-SAF","PV-FIX","AEL-EL","EFUELSYN","EFUELSYN",7282.4954336565252,"PTX Atlas"]
["ARG-SAF,PV-FIX,PEM-EL,CH4SYN,CH4-LIQ","ARG-SAF","PV-FIX","PEM-EL","CH4SYN","CH4-LIQ",7676.5702326270812,"PTX Atlas"]
["ARG-SAF,PV-FIX,PEM-EL,CH4SYN,CH4SYN","ARG-SAF","PV-FIX","PEM-EL","CH4SYN","CH4SYN",7676.5702326270812,"PTX Atlas"]
["ARG-SAF,PV-FIX,SOEC-EL,,SOEC-EL","ARG-SAF","PV-FIX","SOEC-EL",null,"SOEC-EL",2713.062727334398,"PTX Atlas"]
["ARG-SAF,PV-FIX,SOEC-EL,CH4SYN,CH4-LIQ","ARG-SAF","PV-FIX","SOEC-EL","CH4SYN","CH4-LIQ",6881.6339867154602,"PTX Atlas"]
["ARG-SAF,PV-FIX,SOEC-EL,NH3SYN,NH3-REC","ARG-SAF","PV-FIX","SOEC-EL","NH3SYN","NH3-REC",7008,"öko"]
["ARG-SAF,PV-TRK,PEM-EL,CH4SYN,CH4-RGAS","ARG-SAF","PV-TRK","PEM-EL","CH4SYN","CH4-RGAS",7008,"öko"]
["ARG-SAF,PV-TRK,SOEC-EL,,H2-RGAS","ARG-SAF","PV-TRK","SOEC-EL",null,"H2-RGAS",7008,"öko"]
["ARG-SAF,RES-HYBR,AEL-EL,CH3OHSYN,AEL-EL","ARG-SAF","RES-HYBR","AEL-EL","CH3OHSYN","AEL-EL",4424.6189908464839,"PTX Atlas"]
["ARG-SAF,RES-HYBR,AEL-EL,NH3SYN,AEL-EL","ARG-SAF","RES-HYBR","AEL-EL","NH3SYN","AEL-EL",4401.7041885919416,"PTX Atlas"]
["ARG-SAF,RES-HYBR,PEM-EL,CH3OHSYN,PEM-EL","ARG-SAF","RES-HYBR","PEM-EL","CH3OHSYN","PEM-EL",4657.4936745752466,"PTX Atlas"]
["ARG-SAF,RES-HYBR,PEM-EL,EFUELSYN,EFUELSYN","ARG-SAF","RES-HYBR","PEM-EL","EFUELSYN","EFUELSYN",7169.4644650800947,"PTX Atlas"]
["ARG-SAF,RES-HYBR,SOEC-EL,CH4SYN,ATR","ARG-SAF","RES-HYBR","SOEC-EL","CH4SYN","ATR",7008]
["ARG-SAF,RES-HYBR,SOEC-EL,LOHC-CON,SOEC-EL","ARG-SAF","RES-HYBR","SOEC-EL","LOHC-CON","SOEC-EL",4521.0392698779351,"PTX Atlas"]
["ARG-SAF,WIND-OFF,AEL-EL,,H2-COMP","ARG-SAF","WIND-OFF","AEL-EL",null,"H2-COMP",6657.5999999999995]
["ARG-SAF,WIND-OFF,AEL-EL,LOHC-CON,AEL-EL","ARG-SAF","WIND-OFF","AEL-EL","LOHC-CON","AEL-EL",1347.8293246014512,"PTX Atlas"]
["ARG-SAF,WIND-OFF,AEL-EL,LOHC-CON,LOHC-CON","ARG-SAF","WIND-OFF","AEL-EL","LOHC-CON","LOHC-CON",1347.8293246014512,"PTX Atlas"]
["ARG-SAF,WIND-OFF,PEM-EL,CH4SYN,CH4SYN","ARG-SAF","WIND-OFF","PEM-EL","CH4SYN","CH4SYN",3313.2096523790692,"PTX Atlas"]
["ARG-SAF,WIND-OFF,SOEC-EL,,H2-COMP","ARG-SAF","WIND-OFF","SOEC-EL",null,"H2-COMP",7008]
["ARG-SAF,WIND-OFF,SOEC-EL,CH3OHSYN,CH3OHSYN","ARG-SAF","WIND-OFF","SOEC-EL","CH3OHSYN","CH3OHSYN",2159.6914621343913,"PTX Atlas"]
["ARG-SAF,WIND-OFF,SOEC-EL,NH3SYN,NH3SYN","ARG-SAF","WIND-OFF","SOEC-EL","NH3SYN","NH3SYN",1813.4745533305361,"PTX Atlas"]
["ARG-SAF,WIND-ON,AEL-EL,CH4SYN,CH4-LIQ","ARG-SAF","WIND-ON","AEL-EL","CH4SYN","CH4-LIQ",4939.5252475182369,"PTX Atlas"]
["ARG-SAF,WIND-ON,AEL-EL,EFUELSYN,AEL-EL","ARG-SAF","WIND-ON","AEL-EL","EFUELSYN","AEL-EL",4302.5338500858425,"PTX Atlas"]
["ARG-SAF,WIND-ON,PEM-EL,CH4SYN,ATR","ARG-SAF","WIND-ON","PEM-EL","CH4SYN","ATR",7008]
["ARG-SAF,WIND-ON,PEM-EL,LOHC-CON,PEM-EL","ARG-SAF","WIND-ON","PEM-EL","LOHC-CON","PEM-EL",4152.0403885863798,"PTX Atlas"]
["ARG-SAF,WIND-ON,SOEC-EL,CH4SYN,CH4-LIQ","ARG-SAF","WIND-ON","SOEC-EL","CH4SYN","CH4-LIQ",4711.3566628975423,"PTX Atlas"]
["ARG-SAF,WIND-ON,SOEC-EL,DRI,SOEC-EL","ARG-SAF","WIND-ON","SOEC-EL","DRI","SOEC-EL",4723.597417582032,"PTX Atlas"]
["ARG-SAJ,PV-FIX,AEL-EL,CH3OHSYN,CH3OHSYN","ARG-SAJ","PV-FIX","AEL-EL","CH3OHSYN","CH3OHSYN",7798.6588869275347,"PTX Atlas"]
["ARG-SAJ,PV-FIX,AEL-EL,CH4SYN,CH4SYN","ARG-SAJ","PV-FIX","AEL-EL","CH4SYN","CH4SYN",7809.1370602507004,"PTX Atlas"]
["ARG-SAJ,PV-FIX,PEM-EL,,H2-COMP","ARG-SAJ","PV-FIX","PEM-EL",null,"H2-COMP",7008]
["ARG-SAJ,PV-FIX,PEM-EL,CH3OHSYN,CH3OHSYN","ARG-SAJ","PV-FIX","PEM-EL","CH3OHSYN","CH3OHSYN",8209.1146178184572,"PTX Atlas"]
["ARG-SAJ,PV-FIX,PEM-EL,LOHC-CON,LOHC-CON","ARG-SAJ","PV-FIX","PEM-EL","LOHC-CON","LOHC-CON",2945.7611666111907,"PTX Atlas"]
["ARG-SAJ,PV-FIX,SOEC-EL,CH4SYN,CH4-RGAS","ARG-SAJ","PV-FIX","SOEC-EL","CH4SYN","CH4-RGAS",7008,"öko"]
["ARG-SAJ,PV-FIX,SOEC-EL,LOHC-CON,LOHC-REC","ARG-SAJ","PV-FIX","SOEC-EL","LOHC-CON","LOHC-REC",7008,"öko"]
["ARG-SAJ,PV-TRK,AEL-EL,CH4SYN,CH4-RGAS","ARG-SAJ","PV-TRK","AEL-EL","CH4SYN","CH4-RGAS",6657.5999999999995,"öko"]
["ARG-SAJ,PV-TRK,SOEC-EL,CH4SYN,ATR","ARG-SAJ","PV-TRK","SOEC-EL","CH4SYN","ATR",7008]
["ARG-SAJ,RES-HYBR,AEL-EL,,AEL-EL","ARG-SAJ","RES-HYBR","AEL-EL",null,"AEL-EL",4184.3599182912467,"PTX Atlas"]
["ARG-SAJ,RES-HYBR,AEL-EL,CH4SYN,CH4SYN","ARG-SAJ","RES-HYBR","AEL-EL","CH4SYN","CH4SYN",6939.2347171993379,"PTX Atlas"]
["ARG-SAJ,RES-HYBR,PEM-EL,CH3OHSYN,CH3OHREC","ARG-SAJ","RES-HYBR","PEM-EL","CH3OHSYN","CH3OHREC",7008,"öko"]
["ARG-SAJ,RES-HYBR,PEM-EL,EFUELSYN,PEM-EL","ARG-SAJ","RES-HYBR","PEM-EL","EFUELSYN","PEM-EL",4334.354637008114,"PTX Atlas"]
["ARG-SAJ,RES-HYBR,PEM-EL,NH3SYN,NH3SYN","ARG-SAJ","RES-HYBR","PEM-EL","NH3SYN","NH3SYN",6962.170457635063,"PTX Atlas"]
["ARG-SAJ,RES-HYBR,SOEC-EL,DRI,SOEC-EL","ARG-SAJ","RES-HYBR","SOEC-EL","DRI","SOEC-EL",6602.1882454628285,"PTX Atlas"]
["ARG-SAJ,RES-HYBR,SOEC-EL,EFUELSYN,SOEC-EL","ARG-SAJ","RES-HYBR","SOEC-EL","EFUELSYN","SOEC-EL",6602.1882454628285,"PTX Atlas"]
["ARG-SAJ,WIND-OFF,AEL-EL,CH4SYN,ATR","ARG-SAJ","WIND-OFF","AEL-EL","CH4SYN","ATR",6657.5999999999995]
["ARG-SAJ,WIND-OFF,AEL-EL,DRI,DRI","ARG-SAJ","WIND-OFF","AEL-EL","DRI","DRI",6657.5999999999995,"öko"]
["ARG-SAJ,WIND-OFF,PEM-EL,,H2-RGAS","ARG-SAJ","WIND-OFF","PEM-EL",null,"H2-RGAS",7008,"öko"]
["ARG-SAJ,WIND-OFF,PEM-EL,LOHC-CON,LOHC-REC","ARG-SAJ","WIND-OFF","PEM-EL","LOHC-CON","LOHC-REC",7008,"öko"]
["ARG-SAJ,WIND-OFF,SOEC-EL,CH3OHSYN,SOEC-EL","ARG-SAJ","WIND-OFF","SOEC-EL","CH3OHSYN","SOEC-EL",2159.6914621343913,"PTX Atlas"]
["ARG-SAJ,WIND-OFF,SOEC-EL,CH4SYN,SOEC-EL","ARG-SAJ","WIND-OFF","SOEC-EL","CH4SYN","SOEC-EL",2158.2217948489274,"PTX Atlas"]
["ARG-SAJ,WIND-ON,AEL-EL,,AEL-EL","ARG-SAJ","WIND-ON","AEL-EL",null,"AEL-EL",3431.7230246535182,"PTX Atlas"]
["ARG-SAJ,WIND-ON,AEL-EL,LOHC-CON,AEL-EL","ARG-SAJ","WIND-ON","AEL-EL","LOHC-CON","AEL-EL",3431.7230246535182,"PTX Atlas"]
["ARG-SAJ,WIND-ON,AEL-EL,NH3SYN,NH3SYN","ARG-SAJ","WIND-ON","AEL-EL","NH3SYN","NH3SYN",3908.5880894904071,"PTX Atlas"]
["ARG-SAJ,WIND-ON,PEM-EL,CH4SYN,CH4SYN","ARG-SAJ","WIND-ON","PEM-EL","CH4SYN","CH4SYN",4827.0413641907971,"PTX Atlas"]
["ARG-SAJ,WIND-ON,SOEC-EL,,SOEC-EL","ARG-SAJ","WIND-ON","SOEC-EL",null,"SOEC-EL",3558.629349584764,"PTX Atlas"]
["ARG-SAJ,WIND-ON,SOEC-EL,CH4SYN,CH4-LIQ","ARG-SAJ","WIND-ON","SOEC-EL","CH4SYN","CH4-LIQ",4207.2255438212069,"PTX Atlas"]
["ARG-SAJ,WIND-ON,SOEC-EL,NH3SYN,NH3-REC","ARG-SAJ","WIND-ON","SOEC-EL","NH3SYN","NH3-REC",7008,"öko"]
["ARG-SAL,PV-FIX,AEL-EL,,H2-LIQ","ARG-SAL","PV-FIX","AEL-EL",null,"H2-LIQ",2778.0895519577984,"öko"]
["ARG-SAL,PV-FIX,AEL-EL,NH3SYN,NH3-REC","ARG-SAL","PV-FIX","AEL-EL","NH3SYN","NH3-REC",6657.5999999999995,"öko"]
["ARG-SAL,PV-FIX,PEM-EL,CH4SYN,ATR","ARG-SAL","PV-FIX","PEM-EL","CH4SYN","ATR",7008]
["ARG-SAL,PV-FIX,PEM-EL,DRI,DRI","ARG-SAL","PV-FIX","PEM-EL","DRI","DRI",7008,"öko"]
["ARG-SAL,PV-FIX,SOEC-EL,,H2-LIQ","ARG-SAL","PV-FIX","SOEC-EL",null,"H2-LIQ",2904.5505586393228,"öko"]
["ARG-SAL,PV-FIX,SOEC-EL,LOHC-CON,LOHC-CON","ARG-SAL","PV-FIX","SOEC-EL","LOHC-CON","LOHC-CON",2846.1958798733467,"PTX Atlas"]
["ARG-SAL,PV-FIX,SOEC-EL,NH3SYN,SOEC-EL","ARG-SAL","PV-FIX","SOEC-EL","NH3SYN","SOEC-EL",4544.9485198035281,"PTX Atlas"]
["ARG-SAL,PV-TRK,PEM-EL,CH3OHSYN,CH3OHREC","ARG-SAL","PV-TRK","PEM-EL","CH3OHSYN","CH3OHREC",7008,"öko"]
["ARG-SAL,RES-HYBR,AEL-EL,,H2-COMP","ARG-SAL","RES-HYBR","AEL-EL",null,"H2-COMP",6657.5999999999995]
["ARG-SAL,RES-HYBR,AEL-EL,CH3OHSYN,CH3OHREC","ARG-SAL","RES-HYBR","AEL-EL","CH3OHSYN","CH3OHREC",6657.5999999999995,"öko"]
["ARG-SAL,RES-HYBR,AEL-EL,LOHC-CON,LOHC-REC","ARG-SAL","RES-HYBR","AEL-EL","LOHC-CON","LOHC-REC",6657.5999999999995,"öko"]
["ARG-SAL,RES-HYBR,PEM-EL,CH4SYN,PEM-EL","ARG-SAL","RES-HYBR","PEM-EL","CH4SYN","PEM-EL",5340.114002006615,"PTX Atlas"]
["ARG-SAL,RES-HYBR,PEM-EL,DRI,DRI","ARG-SAL","RES-HYBR","PEM-EL","DRI","DRI",7008,"öko"]
["ARG-SAL,RES-HYBR,SOEC-EL,CH3OHSYN,CH3OHSYN","ARG-SAL","RES-HYBR","SOEC-EL","CH3OHSYN","CH3OHSYN",6300.9224871369497,"PTX Atlas"]
["ARG-SAL,RES-HYBR,SOEC-EL,CH4SYN,CH4SYN","ARG-SAL","RES-HYBR","SOEC-EL","CH4SYN","CH4SYN",6312.7234124453944,"PTX Atlas"]
["ARG-SAL,RES-HYBR,SOEC-EL,NH3SYN,SOEC-EL","ARG-SAL","RES-HYBR","SOEC-EL","NH3SYN","SOEC-EL",5965.9884738606524,"PTX Atlas"]
["ARG-SAL,WIND-OFF,AEL-EL,EFUELSYN,AEL-EL","ARG-SAL","WIND-OFF","AEL-EL","EFUELSYN","AEL-EL",1715.3958726570888,"PTX Atlas"]
["ARG-SAL,WIND-OFF,AEL-EL,LOHC-CON,LOHC-REC","ARG-SAL","WIND-OFF","AEL-EL","LOHC-CON","LOHC-REC",6657.5999999999995,"öko"]
["ARG-SAL,WIND-OFF,PEM-EL,CH4SYN,CH4-RGAS","ARG-SAL","WIND-OFF","PEM-EL","CH4SYN","CH4-RGAS",7008,"öko"]
["ARG-SAL,WIND-OFF,SOEC-EL,,H2-RGAS","ARG-SAL","WIND-OFF","SOEC-EL",null,"H2-RGAS",7008,"öko"]
["ARG-SAL,WIND-OFF,SOEC-EL,DRI,SOEC-EL","ARG-SAL","WIND-OFF","SOEC-EL","DRI","SOEC-EL",2171.7808097029783,"PTX Atlas"]
["ARG-SAL,WIND-OFF,SOEC-EL,LOHC-CON,SOEC-EL","ARG-SAL","WIND-OFF","SOEC-EL","LOHC-CON","SOEC-EL",1343.394386252327,"PTX Atlas"]
["ARG-SAL,WIND-ON,AEL-EL,CH4SYN,CH4SYN","ARG-SAL","WIND-ON","AEL-EL","CH4SYN","CH4SYN",5222.9100294794353,"PTX Atlas"]
["ARG-SAL,WIND-ON,PEM-EL,,H2-COMP","ARG-SAL","WIND-ON","PEM-EL",null,"H2-COMP",7008]
["ARG-SAL,WIND-ON,PEM-EL,CH3OHSYN,CH3OHSYN","ARG-SAL","WIND-ON","PEM-EL","CH3OHSYN","CH3OHSYN",5504.3657269286632,"PTX Atlas"]
["ARG-SAL,WIND-ON,PEM-EL,LOHC-CON,LOHC-CON","ARG-SAL","WIND-ON","PEM-EL","LOHC-CON","LOHC-CON",4584.2827001023197,"PTX Atlas"]
["ARG-SAL,WIND-ON,SOEC-EL,,H2-COMP","ARG-SAL","WIND-ON","SOEC-EL",null,"H2-COMP",7008]
["ARG-SAL,WIND-ON,SOEC-EL,EFUELSYN,SOEC-EL","ARG-SAL","WIND-ON","SOEC-EL","EFUELSYN","SOEC-EL",5127.1440954670798,"PTX Atlas"]
["ARG-SAT,PV-FIX,AEL-EL,CH3OHSYN,AEL-EL","ARG-SAT","PV-FIX","AEL-EL","CH3OHSYN","AEL-EL",2796.4161054969454,"PTX Atlas"]
["ARG-SAT,PV-FIX,AEL-EL,CH4SYN,CH4-LIQ","ARG-SAT","PV-FIX","AEL-EL","CH4SYN","CH4-LIQ",7447.7729319210766,"PTX Atlas"]
["ARG-SAT,PV-FIX,AEL-EL,NH3SYN,NH3-REC","ARG-SAT","PV-FIX","AEL-EL","NH3SYN","NH3-REC",6657.5999999999995,"öko"]
["ARG-SAT,PV-FIX,PEM-EL,DRI,PEM-EL","ARG-SAT","PV-FIX","PEM-EL","DRI","PEM-EL",2916.3121286854403,"PTX Atlas"]
["ARG-SAT,PV-FIX,PEM-EL,LOHC-CON,PEM-EL","ARG-SAT","PV-FIX","PEM-EL","LOHC-CON","PEM-EL",2803.5384281035876,"PTX Atlas"]
["ARG-SAT,PV-FIX,SOEC-EL,EFUELSYN,EFUELSYN","ARG-SAT","PV-FIX","SOEC-EL","EFUELSYN","EFUELSYN",7717.3794672705444,"PTX Atlas"]
["ARG-SAT,PV-TRK,AEL-EL,,H2-RGAS","ARG-SAT","PV-TRK","AEL-EL",null,"H2-RGAS",6657.5999999999995,"öko"]
["ARG-SAT,PV-TRK,AEL-EL,LOHC-CON,LOHC-REC","ARG-SAT","PV-TRK","AEL-EL","LOHC-CON","LOHC-REC",6657.5999999999995,"öko"]
["ARG-SAT,PV-TRK,SOEC-EL,,H2-RGAS","ARG-SAT","PV-TRK","SOEC-EL",null,"H2-RGAS",7008,"öko"]
["ARG-SAT,RES-HYBR,AEL-EL,CH4SYN,ATR","ARG-SAT","RES-HYBR","AEL-EL","CH4SYN","ATR",6657.5999999999995]
["ARG-SAT,RES-HYBR,AEL-EL,CH4SYN,CH4-LIQ","ARG-SAT","RES-HYBR","AEL-EL","CH4SYN","CH4-LIQ",6696.9650259229984,"PTX Atlas"]
["ARG-SAT,RES-HYBR,PEM-EL,,H2-RGAS","ARG-SAT","RES-HYBR","PEM-EL",null,"H2-RGAS",7008,"öko"]
["ARG-SAT,RES-HYBR,PEM-EL,CH4SYN,ATR","ARG-SAT","RES-HYBR","PEM-EL","CH4SYN","ATR",7008]
["ARG-SAT,RES-HYBR,PEM-EL,NH3SYN,PEM-EL","ARG-SAT","RES-HYBR","PEM-EL","NH3SYN","PEM-EL",5031.5691495439332,"PTX Atlas"]
["ARG-SAT,RES-HYBR,SOEC-EL,DRI,DRI","ARG-SAT","RES-HYBR","SOEC-EL","DRI","DRI",7008,"öko"]
["ARG-SAT,RES-HYBR,SOEC-EL,LOHC-CON,LOHC-REC","ARG-SAT","RES-HYBR","SOEC-EL","LOHC-CON","LOHC-REC",7008,"öko"]
["ARG-SAT,WIND-OFF,AEL-EL,CH3OHSYN,CH3OHSYN","ARG-SAT","WIND-OFF","AEL-EL","CH3OHSYN","CH3OHSYN",3183.2021531666219,"PTX Atlas"]
["ARG-SAT,WIND-OFF,AEL-EL,NH3SYN,NH3SYN","ARG-SAT","WIND-OFF","AEL-EL","NH3SYN","NH3SYN",2119.690163733098,"PTX Atlas"]
["ARG-SAT,WIND-OFF,PEM-EL,CH4SYN,CH4SYN","ARG-SAT","WIND-OFF","PEM-EL","CH4SYN","CH4SYN",3313.2096523790692,"PTX Atlas"]
["ARG-SAT,WIND-OFF,PEM-EL,EFUELSYN,PEM-EL","ARG-SAT","WIND-OFF","PEM-EL","EFUELSYN","PEM-EL",1805.6798659548303,"PTX Atlas"]
["ARG-SAT,WIND-OFF,SOEC-EL,CH4SYN,CH4SYN","ARG-SAT","WIND-OFF","SOEC-EL","CH4SYN","CH4SYN",2158.2217948489274,"PTX Atlas"]
["ARG-SAT,WIND-OFF,SOEC-EL,NH3SYN,NH3SYN","ARG-SAT","WIND-OFF","SOEC-EL","NH3SYN","NH3SYN",1813.4745533305361,"PTX Atlas"]
["ARG-SAT,WIND-ON,AEL-EL,,H2-RGAS","ARG-SAT","WIND-ON","AEL-EL",null,"H2-RGAS",6657.5999999999995,"öko"]
["ARG-SAT,WIND-ON,AEL-EL,EFUELSYN,AEL-EL","ARG-SAT","WIND-ON","AEL-EL","EFUELSYN","AEL-EL",4515.8200572016767,"PTX Atlas"]
["ARG-SAT,WIND-ON,AEL-EL,NH3SYN,AEL-EL","ARG-SAT","WIND-ON","AEL-EL","NH3SYN","AEL-EL",4374.1122256955277,"PTX Atlas"]
["ARG-SAT,WIND-ON,PEM-EL,DRI,DRI","ARG-SAT","WIND-ON","PEM-EL","DRI","DRI",7008,"öko"]
["ARG-SAT,WIND-ON,SOEC-EL,,H2-LIQ","ARG-SAT","WIND-ON","SOEC-EL",null,"H2-LIQ",4536.6375304062476,"öko"]
["ARG-SAT,WIND-ON,SOEC-EL,CH3OHSYN,SOEC-EL","ARG-SAT","WIND-ON","SOEC-EL","CH3OHSYN","SOEC-EL",4924.3072200971301,"PTX Atlas"]
["ARG-SAT,WIND-ON,SOEC-EL,NH3SYN,NH3-REC","ARG-SAT","WIND-ON","SOEC-EL","NH3SYN","NH3-REC",7008,"öko"]
["ARG-TUC,PV-FIX,AEL-EL,CH4SYN,CH4SYN","ARG-TUC","PV-FIX","AEL-EL","CH4SYN","CH4SYN",7611.596953632682,"PTX Atlas"]
["ARG-TUC,PV-FIX,AEL-EL,LOHC-CON,AEL-EL","ARG-TUC","PV-FIX","AEL-EL","LOHC-CON","AEL-EL",2724.6141995249232,"PTX Atlas"]
["ARG-TUC,PV-FIX,PEM-EL,CH3OHSYN,CH3OHSYN","ARG-TUC","PV-FIX","PEM-EL","CH3OHSYN","CH3OHSYN",8003.3595239484612,"PTX Atlas"]
["ARG-TUC,PV-FIX,PEM-EL,NH3SYN,NH3SYN","ARG-TUC","PV-FIX","PEM-EL","NH3SYN","NH3SYN",7943.0309840821956,"PTX Atlas"]
["ARG-TUC,PV-FIX,SOEC-EL,,SOEC-EL","ARG-TUC","PV-FIX","SOEC-EL",null,"SOEC-EL",2843.2657355377651,"PTX Atlas"]
["ARG-TUC,PV-FIX,SOEC-EL,EFUELSYN,EFUELSYN","ARG-TUC","PV-FIX","SOEC-EL","EFUELSYN","EFUELSYN",7921.952123286902,"PTX Atlas"]
["ARG-TUC,PV-TRK,AEL-EL,NH3SYN,NH3-REC","ARG-TUC","PV-TRK","AEL-EL","NH3SYN","NH3-REC",6657.5999999999995,"öko"]
["ARG-TUC,PV-TRK,PEM-EL,CH3OHSYN,CH3OHREC","ARG-TUC","PV-TRK","PEM-EL","CH3OHSYN","CH3OHREC",7008,"öko"]
["ARG-TUC,RES-HYBR,AEL-EL,,AEL-EL","ARG-TUC","RES-HYBR","AEL-EL",null,"AEL-EL",3445.2520842947497,"PTX Atlas"]
["ARG-TUC,RES-HYBR,AEL-EL,CH3OHSYN,CH3OHREC","ARG-TUC","RES-HYBR","AEL-EL","CH3OHSYN","CH3OHREC",6657.5999999999995,"öko"]
["ARG-TUC,RES-HYBR,AEL-EL,LOHC-CON,AEL-EL","ARG-TUC","RES-HYBR","AEL-EL","LOHC-CON","AEL-EL",3445.2520842947497,"PTX Atlas"]
["ARG-TUC,RES-HYBR,PEM-EL,CH4SYN,CH4-RGAS","ARG-TUC","RES-HYBR","PEM-EL","CH4SYN","CH4-RGAS",7008,"öko"]
["ARG-TUC,RES-HYBR,PEM-EL,EFUELSYN,EFUELSYN","ARG-TUC","RES-HYBR","PEM-EL","EFUELSYN","EFUELSYN",7590.3959290180228,"PTX Atlas"]
["ARG-TUC,RES-HYBR,SOEC-EL,,SOEC-EL","ARG-TUC","RES-HYBR","SOEC-EL",null,"SOEC-EL",3565.3259655172683,"PTX Atlas"]
["ARG-TUC,RES-HYBR,SOEC-EL,LOHC-CON,SOEC-EL","ARG-TUC","RES-HYBR","SOEC-EL","LOHC-CON","SOEC-EL",3565.3259655172683,"PTX Atlas"]
["ARG-TUC,WIND-OFF,AEL-EL,CH3OHSYN,CH3OHSYN","ARG-TUC","WIND-OFF","AEL-EL","CH3OHSYN","CH3OHSYN",3183.2021531666219,"PTX Atlas"]
["ARG-TUC,WIND-OFF,AEL-EL,DRI,DRI","ARG-TUC","WIND-OFF","AEL-EL","DRI","DRI",6657.5999999999995,"öko"]
["ARG-TUC,WIND-OFF,PEM-EL,CH3OHSYN,PEM-EL","ARG-TUC","WIND-OFF","PEM-EL","CH3OHSYN","PEM-EL",1831.0418778464768,"PTX Atlas"]
["ARG-TUC,WIND-OFF,PEM-EL,LOHC-CON,LOHC-REC","ARG-TUC","WIND-OFF","PEM-EL","LOHC-CON","LOHC-REC",7008,"öko"]
["ARG-TUC,WIND-OFF,SOEC-EL,,H2-COMP","ARG-TUC","WIND-OFF","SOEC-EL",null,"H2-COMP",7008]
["ARG-TUC,WIND-OFF,SOEC-EL,EFUELSYN,SOEC-EL","ARG-TUC","WIND-OFF","SOEC-EL","EFUELSYN","SOEC-EL",2171.7808097029783,"PTX Atlas"]
["ARG-TUC,WIND-OFF,SOEC-EL,LOHC-CON,LOHC-CON","ARG-TUC","WIND-OFF","SOEC-EL","LOHC-CON","LOHC-CON",1343.394386252327,"PTX Atlas"]
["ARG-TUC,WIND-ON,AEL-EL,CH4SYN,CH4-LIQ","ARG-TUC","WIND-ON","AEL-EL","CH4SYN","CH4-LIQ",4230.3461366518131,"PTX Atlas"]
["ARG-TUC,WIND-ON,AEL-EL,EFUELSYN,EFUELSYN","ARG-TUC","WIND-ON","AEL-EL","EFUELSYN","EFUELSYN",4211.1130467253142,"PTX Atlas"]
["ARG-TUC,WIND-ON,PEM-EL,CH3OHSYN,CH3OHREC","ARG-TUC","WIND-ON","PEM-EL","CH3OHSYN","CH3OHREC",7008,"öko"]
["ARG-TUC,WIND-ON,PEM-EL,NH3SYN,NH3-REC","ARG-TUC","WIND-ON","PEM-EL","NH3SYN","NH3-REC",7008,"öko"]
["ARG-TUC,WIND-ON,SOEC-EL,CH4SYN,CH4-LIQ","ARG-TUC","WIND-ON","SOEC-EL","CH4SYN","CH4-LIQ",3700.9470161850736,"PTX Atlas"]
["ARG-TUC,WIND-ON,SOEC-EL,DRI,SOEC-EL","ARG-TUC","WIND-ON","SOEC-EL","DRI","SOEC-EL",3713.709475699523,"PTX Atlas"]
["AUS,PV-FIX,AEL-EL,,H2-LIQ","AUS","PV-FIX","AEL-EL",null,"H2-LIQ",2729.8249999999998,"öko"]
["AUS,PV-FIX,AEL-EL,LOHC-CON,LOHC-CON","AUS","PV-FIX","AEL-EL","LOHC-CON","LOHC-CON",2689.9249999999997,"PTX Atlas"]
["AUS,PV-FIX,PEM-EL,,H2-COMP","AUS","PV-FIX","PEM-EL",null,"H2-COMP",7008]
["AUS,PV-FIX,PEM-EL,DRI,PEM-EL","AUS","PV-FIX","PEM-EL","DRI","PEM-EL",2930,"PTX Atlas"]
["AUS,PV-FIX,SOEC-EL,CH3OHSYN,CH3OHSYN","AUS","PV-FIX","SOEC-EL","CH3OHSYN","CH3OHSYN",7558,"PTX Atlas"]
["AUS,PV-FIX,SOEC-EL,CH4SYN,CH4SYN","AUS","PV-FIX","SOEC-EL","CH4SYN","CH4SYN",6993.5,"PTX Atlas"]
["AUS,PV-FIX,SOEC-EL,NH3SYN,SOEC-EL","AUS","PV-FIX","SOEC-EL","NH3SYN","SOEC-EL",4408,"PTX Atlas"]
["AUS,PV-TRK,AEL-EL,CH4SYN,CH4-RGAS","AUS","PV-TRK","AEL-EL","CH4SYN","CH4-RGAS",6657.5999999999995,"öko"]
["AUS,PV-TRK,PEM-EL,NH3SYN,NH3-REC","AUS","PV-TRK","PEM-EL","NH3SYN","NH3-REC",7008,"öko"]
["AUS,RES-HYBR,AEL-EL,CH3OHSYN,CH3OHSYN","AUS","RES-HYBR","AEL-EL","CH3OHSYN","CH3OHSYN",6506.5499999999993,"PTX Atlas"]
["AUS,RES-HYBR,AEL-EL,CH4SYN,CH4SYN","AUS","RES-HYBR","AEL-EL","CH4SYN","CH4SYN",6490.875,"PTX Atlas"]
["AUS,RES-HYBR,AEL-EL,NH3SYN,NH3-REC","AUS","RES-HYBR","AEL-EL","NH3SYN","NH3-REC",6657.5999999999995,"öko"]
["AUS,RES-HYBR,PEM-EL,LOHC-CON,LOHC-CON","AUS","RES-HYBR","PEM-EL","LOHC-CON","LOHC-CON",5744,"PTX Atlas"]
["AUS,RES-HYBR,PEM-EL,NH3SYN,PEM-EL","AUS","RES-HYBR","PEM-EL","NH3SYN","PEM-EL",5780.5,"PTX Atlas"]
["AUS,RES-HYBR,SOEC-EL,CH4SYN,CH4SYN","AUS","RES-HYBR","SOEC-EL","CH4SYN","CH4SYN",6340.5,"PTX Atlas"]
["AUS,WIND-OFF,AEL-EL,,H2-RGAS","AUS","WIND-OFF","AEL-EL",null,"H2-RGAS",6657.5999999999995,"öko"]
["AUS,WIND-OFF,AEL-EL,EFUELSYN,AEL-EL","AUS","WIND-OFF","AEL-EL","EFUELSYN","AEL-EL",5159.9169944212545,"PTX Atlas"]
["AUS,WIND-OFF,AEL-EL,NH3SYN,AEL-EL","AUS","WIND-OFF","AEL-EL","NH3SYN","AEL-EL",5000.1314624952247,"PTX Atlas"]
["AUS,WIND-OFF,PEM-EL,DRI,DRI","AUS","WIND-OFF","PEM-EL","DRI","DRI",7008,"öko"]
["AUS,WIND-OFF,PEM-EL,LOHC-CON,PEM-EL","AUS","WIND-OFF","PEM-EL","LOHC-CON","PEM-EL",5057.8528902179996,"PTX Atlas"]
["AUS,WIND-OFF,SOEC-EL,CH4SYN,ATR","AUS","WIND-OFF","SOEC-EL","CH4SYN","ATR",7008]
["AUS,WIND-OFF,SOEC-EL,LOHC-CON,SOEC-EL","AUS","WIND-OFF","SOEC-EL","LOHC-CON","SOEC-EL",5018.4173920129169,"PTX Atlas"]
["AUS,WIND-ON,AEL-EL,,H2-COMP","AUS","WIND-ON","AEL-EL",null,"H2-COMP",6657.5999999999995]
["AUS,WIND-ON,AEL-EL,LOHC-CON,AEL-EL","AUS","WIND-ON","AEL-EL","LOHC-CON","AEL-EL",4534.3499999999995,"PTX Atlas"]
["AUS,WIND-ON,PEM-EL,CH3OHSYN,CH3OHSYN","AUS","WIND-ON","PEM-EL","CH3OHSYN","CH3OHSYN",5377.5,"PTX Atlas"]
["AUS,WIND-ON,PEM-EL,CH4SYN,CH4SYN","AUS","WIND-ON","PEM-EL","CH4SYN","CH4SYN",5384.5,"PTX Atlas"]
["AUS,WIND-ON,SOEC-EL,,SOEC-EL","AUS","WIND-ON","SOEC-EL",null,"SOEC-EL",4732.5,"PTX Atlas"]
["AUS,WIND-ON,SOEC-EL,LOHC-CON,LOHC-CON","AUS","WIND-ON","SOEC-EL","LOHC-CON","LOHC-CON",4732.5,"PTX Atlas"]
["AUS,WIND-ON,SOEC-EL,NH3SYN,NH3SYN","AUS","WIND-ON","SOEC-EL","NH3SYN","NH3SYN",5010,"PTX Atlas"]
["BRA,PV-FIX,AEL-EL,CH4SYN,CH4-LIQ","BRA","PV-FIX","AEL-EL","CH4SYN","CH4-LIQ",7288.4,"PTX Atlas"]
["BRA,PV-FIX,PEM-EL,,H2-RGAS","BRA","PV-FIX","PEM-EL",null,"H2-RGAS",7008,"öko"]
["BRA,PV-FIX,PEM-EL,CH4SYN,ATR","BRA","PV-FIX","PEM-EL","CH4SYN","ATR",7008]
["BRA,PV-FIX,PEM-EL,LOHC-CON,PEM-EL","BRA","PV-FIX","PEM-EL","LOHC-CON","PEM-EL",2746.5,"PTX Atlas"]
["BRA,PV-FIX,SOEC-EL,,H2-LIQ","BRA","PV-FIX","SOEC-EL",null,"H2-LIQ",2794,"öko"]
["BRA,PV-FIX,SOEC-EL,DRI,DRI","BRA","PV-FIX","SOEC-EL","DRI","DRI",7008,"öko"]
["BRA,PV-TRK,AEL-EL,CH4SYN,ATR","BRA","PV-TRK","AEL-EL","CH4SYN","ATR",6657.5999999999995]
["BRA,PV-TRK,PEM-EL,CH4SYN,ATR","BRA","PV-TRK","PEM-EL","CH4SYN","ATR",7008]
["BRA,PV-TRK,SOEC-EL,LOHC-CON,LOHC-REC","BRA","PV-TRK","SOEC-EL","LOHC-CON","LOHC-REC",7008,"öko"]
["BRA,RES-HYBR,AEL-EL,DRI,DRI","BRA","RES-HYBR","AEL-EL","DRI","DRI",6657.5999999999995,"öko"]
["BRA,RES-HYBR,AEL-EL,LOHC-CON,LOHC-REC","BRA","RES-HYBR","AEL-EL","LOHC-CON","LOHC-REC",6657.5999999999995,"öko"]
["BRA,RES-HYBR,PEM-EL,CH4SYN,ATR","BRA","RES-HYBR","PEM-EL","CH4SYN","ATR",7008]
["BRA,RES-HYBR,SOEC-EL,,H2-COMP","BRA","RES-HYBR","SOEC-EL",null,"H2-COMP",7008]
["BRA,RES-HYBR,SOEC-EL,CH3OHSYN,CH3OHSYN","BRA","RES-HYBR","SOEC-EL","CH3OHSYN","CH3OHSYN",6430,"PTX Atlas"]
["BRA,RES-HYBR,SOEC-EL,LOHC-CON,LOHC-REC","BRA","RES-HYBR","SOEC-EL","LOHC-CON","LOHC-REC",7008,"öko"]
["BRA,WIND-OFF,AEL-EL,CH4SYN,CH4-RGAS","BRA","WIND-OFF","AEL-EL","CH4SYN","CH4-RGAS",6657.5999999999995,"öko"]
["BRA,WIND-OFF,AEL-EL,CH4SYN,CH4SYN","BRA","WIND-OFF","AEL-EL","CH4SYN","CH4SYN",5334.56994127285,"PTX Atlas"]
["BRA,WIND-OFF,PEM-EL,CH3OHSYN,CH3OHREC","BRA","WIND-OFF","PEM-EL","CH3OHSYN","CH3OHREC",7008,"öko"]
["BRA,WIND-OFF,PEM-EL,CH4SYN,CH4-RGAS","BRA","WIND-OFF","PEM-EL","CH4SYN","CH4-RGAS",7008,"öko"]
["BRA,WIND-OFF,PEM-EL,NH3SYN,NH3SYN","BRA","WIND-OFF","PEM-EL","NH3SYN","NH3SYN",5094.8614112254982,"PTX Atlas"]
["BRA,WIND-OFF,SOEC-EL,DRI,SOEC-EL","BRA","WIND-OFF","SOEC-EL","DRI","SOEC-EL",5286.1504688697978,"PTX Atlas"]
["BRA,WIND-ON,AEL-EL,,H2-RGAS","BRA","WIND-ON","AEL-EL",null,"H2-RGAS",6657.5999999999995,"öko"]
["BRA,WIND-ON,AEL-EL,CH4SYN,ATR","BRA","WIND-ON","AEL-EL","CH4SYN","ATR",6657.5999999999995]
["BRA,WIND-ON,PEM-EL,,H2-LIQ","BRA","WIND-ON","PEM-EL",null,"H2-LIQ",4484,"öko"]
["BRA,WIND-ON,PEM-EL,DRI,DRI","BRA","WIND-ON","PEM-EL","DRI","DRI",7008,"öko"]
["BRA,WIND-ON,PEM-EL,LOHC-CON,LOHC-REC","BRA","WIND-ON","PEM-EL","LOHC-CON","LOHC-REC",7008,"öko"]
["BRA,WIND-ON,SOEC-EL,CH3OHSYN,SOEC-EL","BRA","WIND-ON","SOEC-EL","CH3OHSYN","SOEC-EL",4816,"PTX Atlas"]
["BRA,WIND-ON,SOEC-EL,NH3SYN,SOEC-EL","BRA","WIND-ON","SOEC-EL","NH3SYN","SOEC-EL",4521,"PTX Atlas"]
["CHL,PV-FIX,AEL-EL,CH3OHSYN,AEL-EL","CHL","PV-FIX","AEL-EL","CH3OHSYN","AEL-EL",2930.75,"PTX Atlas"]
["CHL,PV-FIX,AEL-EL,DRI,AEL-EL","CHL","PV-FIX","AEL-EL","DRI","AEL-EL",2907,"PTX Atlas"]
["CHL,PV-FIX,AEL-EL,NH3SYN,NH3SYN","CHL","PV-FIX","AEL-EL","NH3SYN","NH3SYN",7535.4,"PTX Atlas"]
["CHL,PV-FIX,PEM-EL,EFUELSYN,EFUELSYN","CHL","PV-FIX","PEM-EL","EFUELSYN","EFUELSYN",7966.5,"PTX Atlas"]
["CHL,PV-FIX,SOEC-EL,,SOEC-EL","CHL","PV-FIX","SOEC-EL",null,"SOEC-EL",2940.5,"PTX Atlas"]
["CHL,PV-FIX,SOEC-EL,CH4SYN,CH4-LIQ","CHL","PV-FIX","SOEC-EL","CH4SYN","CH4-LIQ",6786,"PTX Atlas"]
["CHL,PV-FIX,SOEC-EL,NH3SYN,NH3-REC","CHL","PV-FIX","SOEC-EL","NH3SYN","NH3-REC",7008,"öko"]
["CHL,PV-TRK,PEM-EL,CH4SYN,CH4-RGAS","CHL","PV-TRK","PEM-EL","CH4SYN","CH4-RGAS",7008,"öko"]
["CHL,PV-TRK,SOEC-EL,,H2-RGAS","CHL","PV-TRK","SOEC-EL",null,"H2-RGAS",7008,"öko"]
["CHL,RES-HYBR,AEL-EL,CH4SYN,ATR","CHL","RES-HYBR","AEL-EL","CH4SYN","ATR",6657.5999999999995]
["CHL,RES-HYBR,AEL-EL,NH3SYN,NH3-REC","CHL","RES-HYBR","AEL-EL","NH3SYN","NH3-REC",6657.5999999999995,"öko"]
["CHL,RES-HYBR,PEM-EL,,PEM-EL","CHL","RES-HYBR","PEM-EL",null,"PEM-EL",3450.5,"PTX Atlas"]
["CHL,RES-HYBR,PEM-EL,EFUELSYN,EFUELSYN","CHL","RES-HYBR","PEM-EL","EFUELSYN","EFUELSYN",7711.5,"PTX Atlas"]
["CHL,RES-HYBR,SOEC-EL,CH4SYN,ATR","CHL","RES-HYBR","SOEC-EL","CH4SYN","ATR",7008]
["CHL,RES-HYBR,SOEC-EL,CH4SYN,CH4-LIQ","CHL","RES-HYBR","SOEC-EL","CH4SYN","CH4-LIQ",6560.5,"PTX Atlas"]
["CHL,WIND-OFF,AEL-EL,,H2-COMP","CHL","WIND-OFF","AEL-EL",null,"H2-COMP",6657.5999999999995]
["CHL,WIND-OFF,AEL-EL,CH3OHSYN,CH3OHSYN","CHL","WIND-OFF","AEL-EL","CH3OHSYN","CH3OHSYN",6571.625,"PTX Atlas"]
["CHL,WIND-OFF,AEL-EL,LOHC-CON,LOHC-CON","CHL","WIND-OFF","AEL-EL","LOHC-CON","LOHC-CON",6278.0749999999998,"PTX Atlas"]
["CHL,WIND-OFF,PEM-EL,CH4SYN,PEM-EL","CHL","WIND-OFF","PEM-EL","CH4SYN","PEM-EL",6842.5,"PTX Atlas"]
["CHL,WIND-OFF,SOEC-EL,,H2-COMP","CHL","WIND-OFF","SOEC-EL",null,"H2-COMP",7008]
["CHL,WIND-OFF,SOEC-EL,CH3OHSYN,CH3OHSYN","CHL","WIND-OFF","SOEC-EL","CH3OHSYN","CH3OHSYN",6927,"PTX Atlas"]
["CHL,WIND-OFF,SOEC-EL,NH3SYN,NH3SYN","CHL","WIND-OFF","SOEC-EL","NH3SYN","NH3SYN",6702,"PTX Atlas"]
["CHL,WIND-ON,AEL-EL,CH4SYN,CH4-LIQ","CHL","WIND-ON","AEL-EL","CH4SYN","CH4-LIQ",6541.2249999999995,"PTX Atlas"]
["CHL,WIND-ON,AEL-EL,EFUELSYN,AEL-EL","CHL","WIND-ON","AEL-EL","EFUELSYN","AEL-EL",6539.7999999999993,"PTX Atlas"]
["CHL,WIND-ON,PEM-EL,CH4SYN,ATR","CHL","WIND-ON","PEM-EL","CH4SYN","ATR",7008]
["CHL,WIND-ON,PEM-EL,EFUELSYN,PEM-EL","CHL","WIND-ON","PEM-EL","EFUELSYN","PEM-EL",6884,"PTX Atlas"]
["CHL,WIND-ON,SOEC-EL,,H2-RGAS","CHL","WIND-ON","SOEC-EL",null,"H2-RGAS",7008,"öko"]
["CHL,WIND-ON,SOEC-EL,DRI,SOEC-EL","CHL","WIND-ON","SOEC-EL","DRI","SOEC-EL",6931.5,"PTX Atlas"]
["CHL,WIND-ON,SOEC-EL,LOHC-CON,SOEC-EL","CHL","WIND-ON","SOEC-EL","LOHC-CON","SOEC-EL",6596.5,"PTX Atlas"]
["CHN,PV-FIX,AEL-EL,CH4SYN,CH4SYN","CHN","PV-FIX","AEL-EL","CH4SYN","CH4SYN",7881.8841289861884,"PTX Atlas"]
["CHN,PV-FIX,PEM-EL,,H2-COMP","CHN","PV-FIX","PEM-EL",null,"H2-COMP",7008]
["CHN,PV-FIX,PEM-EL,CH3OHSYN,CH3OHSYN","CHN","PV-FIX","PEM-EL","CH3OHSYN","CH3OHSYN",8284.8869772278886,"PTX Atlas"]
["CHN,PV-FIX,PEM-EL,LOHC-CON,LOHC-CON","CHN","PV-FIX","PEM-EL","LOHC-CON","LOHC-CON",2974.3923630218219,"PTX Atlas"]
["CHN,PV-FIX,SOEC-EL,,H2-RGAS","CHN","PV-FIX","SOEC-EL",null,"H2-RGAS",7008,"öko"]
["CHN,PV-FIX,SOEC-EL,EFUELSYN,SOEC-EL","CHN","PV-FIX","SOEC-EL","EFUELSYN","SOEC-EL",8259.4689585564265,"PTX Atlas"]
["CHN,PV-TRK,AEL-EL,CH4SYN,CH4-RGAS","CHN","PV-TRK","AEL-EL","CH4SYN","CH4-RGAS",6657.5999999999995,"öko"]
["CHN,PV-TRK,SOEC-EL,CH4SYN,ATR","CHN","PV-TRK","SOEC-EL","CH4SYN","ATR",7008]
["CHN,RES-HYBR,AEL-EL,,AEL-EL","CHN","RES-HYBR","AEL-EL",null,"AEL-EL",5288.5093157270494,"PTX Atlas"]
["CHN,RES-HYBR,AEL-EL,CH4SYN,CH4SYN","CHN","RES-HYBR","AEL-EL","CH4SYN","CH4SYN",6498.6209351125426,"PTX Atlas"]
["CHN,RES-HYBR,PEM-EL,CH3OHSYN,CH3OHREC","CHN","RES-HYBR","PEM-EL","CH3OHSYN","CH3OHREC",7008,"öko"]
["CHN,RES-HYBR,PEM-EL,CH3OHSYN,CH3OHSYN","CHN","RES-HYBR","PEM-EL","CH3OHSYN","CH3OHSYN",6840.5640694103859,"PTX Atlas"]
["CHN,RES-HYBR,PEM-EL,NH3SYN,NH3SYN","CHN","RES-HYBR","PEM-EL","NH3SYN","NH3SYN",6409.8567243317802,"PTX Atlas"]
["CHN,RES-HYBR,SOEC-EL,CH3OHSYN,CH3OHREC","CHN","RES-HYBR","SOEC-EL","CH3OHSYN","CH3OHREC",7008,"öko"]
["CHN,RES-HYBR,SOEC-EL,EFUELSYN,SOEC-EL","CHN","RES-HYBR","SOEC-EL","EFUELSYN","SOEC-EL",6281.2163790587419,"PTX Atlas"]
["CHN,WIND-OFF,AEL-EL,CH4SYN,ATR","CHN","WIND-OFF","AEL-EL","CH4SYN","ATR",6657.5999999999995]
["CHN,WIND-OFF,AEL-EL,DRI,DRI","CHN","WIND-OFF","AEL-EL","DRI","DRI",6657.5999999999995,"öko"]
["CHN,WIND-OFF,PEM-EL,,H2-RGAS","CHN","WIND-OFF","PEM-EL",null,"H2-RGAS",7008,"öko"]
["CHN,WIND-OFF,PEM-EL,LOHC-CON,LOHC-REC","CHN","WIND-OFF","PEM-EL","LOHC-CON","LOHC-REC",7008,"öko"]
["CHN,WIND-OFF,SOEC-EL,CH3OHSYN,SOEC-EL","CHN","WIND-OFF","SOEC-EL","CH3OHSYN","SOEC-EL",5064.2653656258053,"PTX Atlas"]
["CHN,WIND-OFF,SOEC-EL,LOHC-CON,SOEC-EL","CHN","WIND-OFF","SOEC-EL","LOHC-CON","SOEC-EL",4482.4765370061641,"PTX Atlas"]
["CHN,WIND-ON,AEL-EL,CH3OHSYN,CH3OHREC","CHN","WIND-ON","AEL-EL","CH3OHSYN","CH3OHREC",6657.5999999999995,"öko"]
["CHN,WIND-ON,AEL-EL,LOHC-CON,AEL-EL","CHN","WIND-ON","AEL-EL","LOHC-CON","AEL-EL",3942.5,"PTX Atlas"]
["CHN,WIND-ON,AEL-EL,NH3SYN,NH3SYN","CHN","WIND-ON","AEL-EL","NH3SYN","NH3SYN",4566.6499999999996,"PTX Atlas"]
["CHN,WIND-ON,PEM-EL,CH4SYN,CH4SYN","CHN","WIND-ON","PEM-EL","CH4SYN","CH4SYN",5443,"PTX Atlas"]
["CHN,WIND-ON,PEM-EL,EFUELSYN,PEM-EL","CHN","WIND-ON","PEM-EL","EFUELSYN","PEM-EL",4442,"PTX Atlas"]
["CHN,WIND-ON,SOEC-EL,CH4SYN,CH4-LIQ","CHN","WIND-ON","SOEC-EL","CH4SYN","CH4-LIQ",4696,"PTX Atlas"]
["CHN,WIND-ON,SOEC-EL,NH3SYN,NH3-REC","CHN","WIND-ON","SOEC-EL","NH3SYN","NH3-REC",7008,"öko"]
["COL,PV-FIX,AEL-EL,CH3OHSYN,CH3OHREC","COL","PV-FIX","AEL-EL","CH3OHSYN","CH3OHREC",6657.5999999999995,"öko"]
["COL,PV-FIX,AEL-EL,LOHC-CON,LOHC-REC","COL","PV-FIX","AEL-EL","LOHC-CON","LOHC-REC",6657.5999999999995,"öko"]
["COL,PV-FIX,PEM-EL,CH4SYN,ATR","COL","PV-FIX","PEM-EL","CH4SYN","ATR",7008]
["COL,PV-FIX,PEM-EL,DRI,DRI","COL","PV-FIX","PEM-EL","DRI","DRI",7008,"öko"]
["COL,PV-FIX,SOEC-EL,,H2-LIQ","COL","PV-FIX","SOEC-EL",null,"H2-LIQ",2775,"öko"]
["COL,PV-FIX,SOEC-EL,LOHC-CON,LOHC-CON","COL","PV-FIX","SOEC-EL","LOHC-CON","LOHC-CON",2680,"PTX Atlas"]
["COL,PV-FIX,SOEC-EL,NH3SYN,SOEC-EL","COL","PV-FIX","SOEC-EL","NH3SYN","SOEC-EL",4535.5,"PTX Atlas"]
["COL,PV-TRK,PEM-EL,CH3OHSYN,CH3OHREC","COL","PV-TRK","PEM-EL","CH3OHSYN","CH3OHREC",7008,"öko"]
["COL,RES-HYBR,AEL-EL,,H2-COMP","COL","RES-HYBR","AEL-EL",null,"H2-COMP",6657.5999999999995]
["COL,RES-HYBR,AEL-EL,,H2-RGAS","COL","RES-HYBR","AEL-EL",null,"H2-RGAS",6657.5999999999995,"öko"]
["COL,RES-HYBR,AEL-EL,LOHC-CON,LOHC-REC","COL","RES-HYBR","AEL-EL","LOHC-CON","LOHC-REC",6657.5999999999995,"öko"]
["COL,RES-HYBR,PEM-EL,,H2-LIQ","COL","RES-HYBR","PEM-EL",null,"H2-LIQ",5924.2257818209519,"öko"]
["COL,RES-HYBR,PEM-EL,DRI,DRI","COL","RES-HYBR","PEM-EL","DRI","DRI",7008,"öko"]
["COL,RES-HYBR,SOEC-EL,CH3OHSYN,CH3OHSYN","COL","RES-HYBR","SOEC-EL","CH3OHSYN","CH3OHSYN",6182.6984116826743,"PTX Atlas"]
["COL,RES-HYBR,SOEC-EL,CH4SYN,CH4SYN","COL","RES-HYBR","SOEC-EL","CH4SYN","CH4SYN",6212.8658948621833,"PTX Atlas"]
["COL,WIND-OFF,AEL-EL,CH3OHSYN,CH3OHREC","COL","WIND-OFF","AEL-EL","CH3OHSYN","CH3OHREC",6657.5999999999995,"öko"]
["COL,WIND-OFF,AEL-EL,EFUELSYN,EFUELSYN","COL","WIND-OFF","AEL-EL","EFUELSYN","EFUELSYN",5541.6110319276295,"PTX Atlas"]
["COL,WIND-OFF,PEM-EL,CH3OHSYN,CH3OHREC","COL","WIND-OFF","PEM-EL","CH3OHSYN","CH3OHREC",7008,"öko"]
["COL,WIND-OFF,PEM-EL,CH4SYN,CH4-RGAS","COL","WIND-OFF","PEM-EL","CH4SYN","CH4-RGAS",7008,"öko"]
["COL,WIND-OFF,SOEC-EL,,H2-RGAS","COL","WIND-OFF","SOEC-EL",null,"H2-RGAS",7008,"öko"]
["COL,WIND-OFF,SOEC-EL,DRI,SOEC-EL","COL","WIND-OFF","SOEC-EL","DRI","SOEC-EL",5621.1488241755687,"PTX Atlas"]
["COL,WIND-OFF,SOEC-EL,LOHC-CON,SOEC-EL","COL","WIND-OFF","SOEC-EL","LOHC-CON","SOEC-EL",5074.5286165586331,"PTX Atlas"]
["COL,WIND-ON,AEL-EL,CH4SYN,CH4SYN","COL","WIND-ON","AEL-EL","CH4SYN","CH4SYN",6094.25,"PTX Atlas"]
["COL,WIND-ON,AEL-EL,EFUELSYN,AEL-EL","COL","WIND-ON","AEL-EL","EFUELSYN","AEL-EL",5634.45,"PTX Atlas"]
["COL,WIND-ON,PEM-EL,CH3OHSYN,PEM-EL","COL","WIND-ON","PEM-EL","CH3OHSYN","PEM-EL",5969,"PTX Atlas"]
["COL,WIND-ON,PEM-EL,LOHC-CON,LOHC-REC","COL","WIND-ON","PEM-EL","LOHC-CON","LOHC-REC",7008,"öko"]
["COL,WIND-ON,SOEC-EL,,H2-COMP","COL","WIND-ON","SOEC-EL",null,"H2-COMP",7008]
["COL,WIND-ON,SOEC-EL,EFUELSYN,SOEC-EL","COL","WIND-ON","SOEC-EL","EFUELSYN","SOEC-EL",6303,"PTX Atlas"]
["CRI,PV-FIX,AEL-EL,CH3OHSYN,AEL-EL","CRI","PV-FIX","AEL-EL","CH3OHSYN","AEL-EL",2664.9563414760755]
["CRI,PV-FIX,AEL-EL,CH4SYN,CH4-LIQ","CRI","PV-FIX","AEL-EL","CH4SYN","CH4-LIQ",7095.8378934289349]
["CRI,PV-FIX,AEL-EL,NH3SYN,NH3-REC","CRI","PV-FIX","AEL-EL","NH3SYN","NH3-REC",6657.5999999999995,"öko"]
["CRI,PV-FIX,PEM-EL,DRI,DRI","CRI","PV-FIX","PEM-EL","DRI","DRI",7008,"öko"]
["CRI,PV-FIX,PEM-EL,NH3SYN,NH3-REC","CRI","PV-FIX","PEM-EL","NH3SYN","NH3-REC",7008,"öko"]
["CRI,PV-FIX,SOEC-EL,CH4SYN,CH4-LIQ","CRI","PV-FIX","SOEC-EL","CH4SYN","CH4-LIQ",6586.0613937030685]
["CRI,PV-TRK,AEL-EL,,H2-RGAS","CRI","PV-TRK","AEL-EL",null,"H2-RGAS",6657.5999999999995,"öko"]
["CRI,PV-TRK,AEL-EL,LOHC-CON,LOHC-REC","CRI","PV-TRK","AEL-EL","LOHC-CON","LOHC-REC",6657.5999999999995,"öko"]
["CRI,PV-TRK,SOEC-EL,,H2-RGAS","CRI","PV-TRK","SOEC-EL",null,"H2-RGAS",7008,"öko"]
["CRI,PV-TRK,SOEC-EL,LOHC-CON,LOHC-REC","CRI","PV-TRK","SOEC-EL","LOHC-CON","LOHC-REC",7008,"öko"]
["CRI,RES-HYBR,AEL-EL,CH4SYN,CH4-LIQ","CRI","RES-HYBR","AEL-EL","CH4SYN","CH4-LIQ",7299.5400864606718]
["CRI,RES-HYBR,AEL-EL,NH3SYN,AEL-EL","CRI","RES-HYBR","AEL-EL","NH3SYN","AEL-EL",3250.4390566726183]
["CRI,RES-HYBR,PEM-EL,CH4SYN,CH4-LIQ","CRI","RES-HYBR","PEM-EL","CH4SYN","CH4-LIQ",7683.7264068007089]
["CRI,RES-HYBR,PEM-EL,NH3SYN,NH3-REC","CRI","RES-HYBR","PEM-EL","NH3SYN","NH3-REC",7008,"öko"]
["CRI,RES-HYBR,SOEC-EL,DRI,DRI","CRI","RES-HYBR","SOEC-EL","DRI","DRI",7008,"öko"]
["CRI,RES-HYBR,SOEC-EL,LOHC-CON,LOHC-REC","CRI","RES-HYBR","SOEC-EL","LOHC-CON","LOHC-REC",7008,"öko"]
["CRI,WIND-OFF,AEL-EL,CH3OHSYN,CH3OHSYN","CRI","WIND-OFF","AEL-EL","CH3OHSYN","CH3OHSYN",4751.2185629837222]
["CRI,WIND-OFF,AEL-EL,NH3SYN,NH3SYN","CRI","WIND-OFF","AEL-EL","NH3SYN","NH3SYN",4098.1833833193714]
["CRI,WIND-OFF,PEM-EL,CH4SYN,CH4SYN","CRI","WIND-OFF","PEM-EL","CH4SYN","CH4SYN",4987.483927221354]
["CRI,WIND-OFF,PEM-EL,LOHC-CON,LOHC-REC","CRI","WIND-OFF","PEM-EL","LOHC-CON","LOHC-REC",7008,"öko"]
["CRI,WIND-OFF,SOEC-EL,CH4SYN,CH4-RGAS","CRI","WIND-OFF","SOEC-EL","CH4SYN","CH4-RGAS",7008,"öko"]
["CRI,WIND-OFF,SOEC-EL,CH4SYN,CH4SYN","CRI","WIND-OFF","SOEC-EL","CH4SYN","CH4SYN",4424.3880002417382]
["CRI,WIND-ON,AEL-EL,,H2-RGAS","CRI","WIND-ON","AEL-EL",null,"H2-RGAS",6657.5999999999995,"öko"]
["CRI,WIND-ON,AEL-EL,EFUELSYN,AEL-EL","CRI","WIND-ON","AEL-EL","EFUELSYN","AEL-EL",3510.4255543224349]
["CRI,WIND-ON,AEL-EL,NH3SYN,AEL-EL","CRI","WIND-ON","AEL-EL","NH3SYN","AEL-EL",3396.9358675963304]
["CRI,WIND-ON,PEM-EL,DRI,DRI","CRI","WIND-ON","PEM-EL","DRI","DRI",7008,"öko"]
["CRI,WIND-ON,SOEC-EL,,H2-LIQ","CRI","WIND-ON","SOEC-EL",null,"H2-LIQ",3482.9634342788954,"öko"]
["CRI,WIND-ON,SOEC-EL,CH3OHSYN,CH3OHREC","CRI","WIND-ON","SOEC-EL","CH3OHSYN","CH3OHREC",7008,"öko"]
["DNK,PV-FIX,AEL-EL,,AEL-EL","DNK","PV-FIX","AEL-EL",null,"AEL-EL",2313.46945347375]
["DNK,PV-FIX,AEL-EL,CH4SYN,CH4SYN","DNK","PV-FIX","AEL-EL","CH4SYN","CH4SYN",6511.9655301707053]
["DNK,PV-FIX,AEL-EL,LOHC-CON,AEL-EL","DNK","PV-FIX","AEL-EL","LOHC-CON","AEL-EL",2313.46945347375]
["DNK,PV-FIX,PEM-EL,CH3OHSYN,CH3OHSYN","DNK","PV-FIX","PEM-EL","CH3OHSYN","CH3OHSYN",6857.9983584089332]
["DNK,PV-FIX,PEM-EL,NH3SYN,NH3SYN","DNK","PV-FIX","PEM-EL","NH3SYN","NH3SYN",6657.4451763079869]
["DNK,PV-FIX,SOEC-EL,,SOEC-EL","DNK","PV-FIX","SOEC-EL",null,"SOEC-EL",2394.2365066126799]
["DNK,PV-FIX,SOEC-EL,EFUELSYN,EFUELSYN","DNK","PV-FIX","SOEC-EL","EFUELSYN","EFUELSYN",6548.8047753804094]
["DNK,PV-TRK,AEL-EL,CH3OHSYN,CH3OHREC","DNK","PV-TRK","AEL-EL","CH3OHSYN","CH3OHREC",6657.5999999999995,"öko"]
["DNK,PV-TRK,PEM-EL,,H2-RGAS","DNK","PV-TRK","PEM-EL",null,"H2-RGAS",7008,"öko"]
["DNK,RES-HYBR,AEL-EL,,AEL-EL","DNK","RES-HYBR","AEL-EL",null,"AEL-EL",5303.6799306180774]
["DNK,RES-HYBR,AEL-EL,CH3OHSYN,CH3OHREC","DNK","RES-HYBR","AEL-EL","CH3OHSYN","CH3OHREC",6657.5999999999995,"öko"]
["DNK,RES-HYBR,AEL-EL,LOHC-CON,AEL-EL","DNK","RES-HYBR","AEL-EL","LOHC-CON","AEL-EL",5303.6799306180774]
["DNK,RES-HYBR,PEM-EL,CH4SYN,CH4-RGAS","DNK","RES-HYBR","PEM-EL","CH4SYN","CH4-RGAS",7008,"öko"]
["DNK,RES-HYBR,PEM-EL,EFUELSYN,EFUELSYN","DNK","RES-HYBR","PEM-EL","EFUELSYN","EFUELSYN",6805.6179096793094]
["DNK,RES-HYBR,SOEC-EL,,SOEC-EL","DNK","RES-HYBR","SOEC-EL",null,"SOEC-EL",5425.1210729525592]
["DNK,RES-HYBR,SOEC-EL,NH3SYN,NH3SYN","DNK","RES-HYBR","SOEC-EL","NH3SYN","NH3SYN",6050.8816527125919]
["DNK,WIND-OFF,AEL-EL,CH4SYN,ATR","DNK","WIND-OFF","AEL-EL","CH4SYN","ATR",6657.5999999999995]
["DNK,WIND-OFF,AEL-EL,DRI,DRI","DNK","WIND-OFF","AEL-EL","DRI","DRI",6657.5999999999995,"öko"]
["DNK,WIND-OFF,PEM-EL,CH3OHSYN,PEM-EL","DNK","WIND-OFF","PEM-EL","CH3OHSYN","PEM-EL",5916.8030387981098]
["DNK,WIND-OFF,PEM-EL,CH4SYN,ATR","DNK","WIND-OFF","PEM-EL","CH4SYN","ATR",7008]
["DNK,WIND-OFF,SOEC-EL,,H2-COMP","DNK","WIND-OFF","SOEC-EL",null,"H2-COMP",7008]
["DNK,WIND-OFF,SOEC-EL,CH3OHSYN,CH3OHSYN","DNK","WIND-OFF","SOEC-EL","CH3OHSYN","CH3OHSYN",5985.2278228304003]
["DNK,WIND-OFF,SOEC-EL,LOHC-CON,LOHC-CON","DNK","WIND-OFF","SOEC-EL","LOHC-CON","LOHC-CON",5477.7952677329904]
["DNK,WIND-ON,AEL-EL,CH4SYN,AEL-EL","DNK","WIND-ON","AEL-EL","CH4SYN","AEL-EL",5266.4736046021662]
["DNK,WIND-ON,AEL-EL,NH3SYN,NH3SYN","DNK","WIND-ON","AEL-EL","NH3SYN","NH3SYN",5225.201781234382]
["DNK,WIND-ON,PEM-EL,CH3OHSYN,CH3OHREC","DNK","WIND-ON","PEM-EL","CH3OHSYN","CH3OHREC",7008,"öko"]
["DNK,WIND-ON,PEM-EL,NH3SYN,NH3-REC","DNK","WIND-ON","PEM-EL","NH3SYN","NH3-REC",7008,"öko"]
["DNK,WIND-ON,SOEC-EL,CH4SYN,CH4-LIQ","DNK","WIND-ON","SOEC-EL","CH4SYN","CH4-LIQ",5715.2749140442629]
["DNK,WIND-ON,SOEC-EL,DRI,SOEC-EL","DNK","WIND-ON","SOEC-EL","DRI","SOEC-EL",5726.9973156011747]
["DZA,PV-FIX,AEL-EL,,H2-LIQ","DZA","PV-FIX","AEL-EL",null,"H2-LIQ",2768.2999999999997,"öko"]
["DZA,PV-FIX,AEL-EL,LOHC-CON,LOHC-CON","DZA","PV-FIX","AEL-EL","LOHC-CON","LOHC-CON",2713.2,"PTX Atlas"]
["DZA,PV-FIX,PEM-EL,CH3OHSYN,CH3OHSYN","DZA","PV-FIX","PEM-EL","CH3OHSYN","CH3OHSYN",8058,"PTX Atlas"]
["DZA,PV-FIX,PEM-EL,DRI,DRI","DZA","PV-FIX","PEM-EL","DRI","DRI",7008,"öko"]
["DZA,PV-FIX,PEM-EL,LOHC-CON,LOHC-REC","DZA","PV-FIX","PEM-EL","LOHC-CON","LOHC-REC",7008,"öko"]
["DZA,PV-FIX,SOEC-EL,CH4SYN,CH4SYN","DZA","PV-FIX","SOEC-EL","CH4SYN","CH4SYN",7729,"PTX Atlas"]
["DZA,PV-FIX,SOEC-EL,NH3SYN,SOEC-EL","DZA","PV-FIX","SOEC-EL","NH3SYN","SOEC-EL",4726,"PTX Atlas"]
["DZA,PV-TRK,AEL-EL,CH4SYN,CH4-RGAS","DZA","PV-TRK","AEL-EL","CH4SYN","CH4-RGAS",6657.5999999999995,"öko"]
["DZA,PV-TRK,PEM-EL,NH3SYN,NH3-REC","DZA","PV-TRK","PEM-EL","NH3SYN","NH3-REC",7008,"öko"]
["DZA,RES-HYBR,AEL-EL,CH4SYN,AEL-EL","DZA","RES-HYBR","AEL-EL","CH4SYN","AEL-EL",2807.25,"PTX Atlas"]
["DZA,RES-HYBR,AEL-EL,DRI,AEL-EL","DZA","RES-HYBR","AEL-EL","DRI","AEL-EL",2829.1,"PTX Atlas"]
["DZA,RES-HYBR,PEM-EL,,H2-LIQ","DZA","RES-HYBR","PEM-EL",null,"H2-LIQ",2921,"öko"]
["DZA,RES-HYBR,PEM-EL,LOHC-CON,LOHC-CON","DZA","RES-HYBR","PEM-EL","LOHC-CON","LOHC-CON",3017,"PTX Atlas"]
["DZA,RES-HYBR,SOEC-EL,CH3OHSYN,CH3OHSYN","DZA","RES-HYBR","SOEC-EL","CH3OHSYN","CH3OHSYN",5822,"PTX Atlas"]
["DZA,RES-HYBR,SOEC-EL,CH4SYN,CH4SYN","DZA","RES-HYBR","SOEC-EL","CH4SYN","CH4SYN",5982,"PTX Atlas"]
["DZA,WIND-OFF,AEL-EL,,H2-RGAS","DZA","WIND-OFF","AEL-EL",null,"H2-RGAS",6657.5999999999995,"öko"]
["DZA,WIND-OFF,AEL-EL,CH3OHSYN,AEL-EL","DZA","WIND-OFF","AEL-EL","CH3OHSYN","AEL-EL",4255.2593876882602,"PTX Atlas"]
["DZA,WIND-OFF,AEL-EL,LOHC-CON,AEL-EL","DZA","WIND-OFF","AEL-EL","LOHC-CON","AEL-EL",3868.6539545743194,"PTX Atlas"]
["DZA,WIND-OFF,PEM-EL,,PEM-EL","DZA","WIND-OFF","PEM-EL",null,"PEM-EL",4072.267320604547,"PTX Atlas"]
["DZA,WIND-OFF,PEM-EL,EFUELSYN,EFUELSYN","DZA","WIND-OFF","PEM-EL","EFUELSYN","EFUELSYN",5119.5695344053674,"PTX Atlas"]
["DZA,WIND-OFF,SOEC-EL,CH4SYN,ATR","DZA","WIND-OFF","SOEC-EL","CH4SYN","ATR",7008]
["DZA,WIND-OFF,SOEC-EL,LOHC-CON,SOEC-EL","DZA","WIND-OFF","SOEC-EL","LOHC-CON","SOEC-EL",4023.0986612860902,"PTX Atlas"]
["DZA,WIND-ON,AEL-EL,,H2-COMP","DZA","WIND-ON","AEL-EL",null,"H2-COMP",6657.5999999999995]
["DZA,WIND-ON,AEL-EL,LOHC-CON,AEL-EL","DZA","WIND-ON","AEL-EL","LOHC-CON","AEL-EL",2866.15,"PTX Atlas"]
["DZA,WIND-ON,PEM-EL,CH3OHSYN,CH3OHSYN","DZA","WIND-ON","PEM-EL","CH3OHSYN","CH3OHSYN",7873,"PTX Atlas"]
["DZA,WIND-ON,PEM-EL,EFUELSYN,EFUELSYN","DZA","WIND-ON","PEM-EL","EFUELSYN","EFUELSYN",7873,"PTX Atlas"]
["DZA,WIND-ON,SOEC-EL,CH3OHSYN,CH3OHREC","DZA","WIND-ON","SOEC-EL","CH3OHSYN","CH3OHREC",7008,"öko"]
["DZA,WIND-ON,SOEC-EL,EFUELSYN,SOEC-EL","DZA","WIND-ON","SOEC-EL","EFUELSYN","SOEC-EL",5863,"PTX Atlas"]
["DZA,WIND-ON,SOEC-EL,NH3SYN,NH3SYN","DZA","WIND-ON","SOEC-EL","NH3SYN","NH3SYN",5552,"PTX Atlas"]
["EGY,PV-FIX,AEL-EL,CH4SYN,CH4-LIQ","EGY","PV-FIX","AEL-EL","CH4SYN","CH4-LIQ",7781.9250000000002,"PTX Atlas"]
["EGY,PV-FIX,AEL-EL,EFUELSYN,AEL-EL","EGY","PV-FIX","AEL-EL","EFUELSYN","AEL-EL",2869.95,"PTX Atlas"]
["EGY,PV-FIX,PEM-EL,CH4SYN,ATR","EGY","PV-FIX","PEM-EL","CH4SYN","ATR",7008]
["EGY,PV-FIX,PEM-EL,LOHC-CON,PEM-EL","EGY","PV-FIX","PEM-EL","LOHC-CON","PEM-EL",2904.5,"PTX Atlas"]
["EGY,PV-FIX,SOEC-EL,,H2-LIQ","EGY","PV-FIX","SOEC-EL",null,"H2-LIQ",2941.5,"öko"]
["EGY,PV-FIX,SOEC-EL,DRI,SOEC-EL","EGY","PV-FIX","SOEC-EL","DRI","SOEC-EL",8012,"PTX Atlas"]
["EGY,PV-TRK,AEL-EL,LOHC-CON,LOHC-REC","EGY","PV-TRK","AEL-EL","LOHC-CON","LOHC-REC",6657.5999999999995,"öko"]
["EGY,PV-TRK,PEM-EL,CH4SYN,ATR","EGY","PV-TRK","PEM-EL","CH4SYN","ATR",7008]
["EGY,PV-TRK,SOEC-EL,LOHC-CON,LOHC-REC","EGY","PV-TRK","SOEC-EL","LOHC-CON","LOHC-REC",7008,"öko"]
["EGY,RES-HYBR,AEL-EL,DRI,DRI","EGY","RES-HYBR","AEL-EL","DRI","DRI",6657.5999999999995,"öko"]
["EGY,RES-HYBR,AEL-EL,LOHC-CON,LOHC-REC","EGY","RES-HYBR","AEL-EL","LOHC-CON","LOHC-REC",6657.5999999999995,"öko"]
["EGY,RES-HYBR,PEM-EL,CH4SYN,ATR","EGY","RES-HYBR","PEM-EL","CH4SYN","ATR",7008]
["EGY,RES-HYBR,PEM-EL,NH3SYN,NH3-REC","EGY","RES-HYBR","PEM-EL","NH3SYN","NH3-REC",7008,"öko"]
["EGY,RES-HYBR,SOEC-EL,,H2-RGAS","EGY","RES-HYBR","SOEC-EL",null,"H2-RGAS",7008,"öko"]
["EGY,RES-HYBR,SOEC-EL,LOHC-CON,LOHC-REC","EGY","RES-HYBR","SOEC-EL","LOHC-CON","LOHC-REC",7008,"öko"]
["EGY,WIND-OFF,AEL-EL,,AEL-EL","EGY","WIND-OFF","AEL-EL",null,"AEL-EL",3868.6539545743194,"PTX Atlas"]
["EGY,WIND-OFF,AEL-EL,CH4SYN,CH4SYN","EGY","WIND-OFF","AEL-EL","CH4SYN","CH4SYN",4887.2247834634263,"PTX Atlas"]
["EGY,WIND-OFF,PEM-EL,CH3OHSYN,CH3OHREC","EGY","WIND-OFF","PEM-EL","CH3OHSYN","CH3OHREC",7008,"öko"]
["EGY,WIND-OFF,PEM-EL,CH4SYN,CH4-RGAS","EGY","WIND-OFF","PEM-EL","CH4SYN","CH4-RGAS",7008,"öko"]
["EGY,WIND-OFF,PEM-EL,NH3SYN,NH3SYN","EGY","WIND-OFF","PEM-EL","NH3SYN","NH3SYN",4509.1232870058784,"PTX Atlas"]
["EGY,WIND-OFF,SOEC-EL,CH3OHSYN,SOEC-EL","EGY","WIND-OFF","SOEC-EL","CH3OHSYN","SOEC-EL",4639.2057699929155,"PTX Atlas"]
["EGY,WIND-ON,AEL-EL,,H2-RGAS","EGY","WIND-ON","AEL-EL",null,"H2-RGAS",6657.5999999999995,"öko"]
["EGY,WIND-ON,AEL-EL,CH4SYN,ATR","EGY","WIND-ON","AEL-EL","CH4SYN","ATR",6657.5999999999995]
["EGY,WIND-ON,PEM-EL,,H2-LIQ","EGY","WIND-ON","PEM-EL",null,"H2-LIQ",4377,"öko"]
["EGY,WIND-ON,PEM-EL,DRI,DRI","EGY","WIND-ON","PEM-EL","DRI","DRI",7008,"öko"]
["EGY,WIND-ON,PEM-EL,LOHC-CON,LOHC-REC","EGY","WIND-ON","PEM-EL","LOHC-CON","LOHC-REC",7008,"öko"]
["EGY,WIND-ON,SOEC-EL,CH3OHSYN,SOEC-EL","EGY","WIND-ON","SOEC-EL","CH3OHSYN","SOEC-EL",6639.5,"PTX Atlas"]
["EGY,WIND-ON,SOEC-EL,CH4SYN,SOEC-EL","EGY","WIND-ON","SOEC-EL","CH4SYN","SOEC-EL",6720.5,"PTX Atlas"]
["ESP,PV-FIX,AEL-EL,CH3OHSYN,AEL-EL","ESP","PV-FIX","AEL-EL","CH3OHSYN","AEL-EL",2798.2089126661099]
["ESP,PV-FIX,AEL-EL,LOHC-CON,AEL-EL","ESP","PV-FIX","AEL-EL","LOHC-CON","AEL-EL",2665.156037189779]
["ESP,PV-FIX,AEL-EL,NH3SYN,NH3SYN","ESP","PV-FIX","AEL-EL","NH3SYN","NH3SYN",7369.2588119244401]
["ESP,PV-FIX,PEM-EL,EFUELSYN,EFUELSYN","ESP","PV-FIX","PEM-EL","EFUELSYN","EFUELSYN",7833.601453683691]
["ESP,PV-FIX,SOEC-EL,,SOEC-EL","ESP","PV-FIX","SOEC-EL",null,"SOEC-EL",2778.3288658754946]
["ESP,PV-FIX,SOEC-EL,CH4SYN,CH4-LIQ","ESP","PV-FIX","SOEC-EL","CH4SYN","CH4-LIQ",7121.556196019611]
["ESP,PV-FIX,SOEC-EL,NH3SYN,NH3-REC","ESP","PV-FIX","SOEC-EL","NH3SYN","NH3-REC",7008,"öko"]
["ESP,PV-TRK,PEM-EL,CH4SYN,CH4-RGAS","ESP","PV-TRK","PEM-EL","CH4SYN","CH4-RGAS",7008,"öko"]
["ESP,RES-HYBR,AEL-EL,,AEL-EL","ESP","RES-HYBR","AEL-EL",null,"AEL-EL",5840.6915776139895]
["ESP,RES-HYBR,AEL-EL,CH3OHSYN,CH3OHREC","ESP","RES-HYBR","AEL-EL","CH3OHSYN","CH3OHREC",6657.5999999999995,"öko"]
["ESP,RES-HYBR,AEL-EL,NH3SYN,NH3-REC","ESP","RES-HYBR","AEL-EL","NH3SYN","NH3-REC",6657.5999999999995,"öko"]
["ESP,RES-HYBR,AEL-EL,NH3SYN,NH3SYN","ESP","RES-HYBR","AEL-EL","NH3SYN","NH3SYN",5826.9637501690568]
["ESP,RES-HYBR,PEM-EL,EFUELSYN,EFUELSYN","ESP","RES-HYBR","PEM-EL","EFUELSYN","EFUELSYN",6578.8483111043488]
["ESP,RES-HYBR,PEM-EL,NH3SYN,NH3-REC","ESP","RES-HYBR","PEM-EL","NH3SYN","NH3-REC",7008,"öko"]
["ESP,RES-HYBR,SOEC-EL,CH4SYN,CH4-LIQ","ESP","RES-HYBR","SOEC-EL","CH4SYN","CH4-LIQ",6175.844731791929]
["ESP,WIND-OFF,AEL-EL,,H2-COMP","ESP","WIND-OFF","AEL-EL",null,"H2-COMP",6657.5999999999995]
["ESP,WIND-OFF,AEL-EL,CH4SYN,CH4-LIQ","ESP","WIND-OFF","AEL-EL","CH4SYN","CH4-LIQ",5574.1149302415388]
["ESP,WIND-OFF,AEL-EL,LOHC-CON,LOHC-REC","ESP","WIND-OFF","AEL-EL","LOHC-CON","LOHC-REC",6657.5999999999995,"öko"]
["ESP,WIND-OFF,PEM-EL,CH4SYN,PEM-EL","ESP","WIND-OFF","PEM-EL","CH4SYN","PEM-EL",5436.8057493548276]
["ESP,WIND-OFF,SOEC-EL,,H2-COMP","ESP","WIND-OFF","SOEC-EL",null,"H2-COMP",7008]
["ESP,WIND-OFF,SOEC-EL,CH3OHSYN,CH3OHSYN","ESP","WIND-OFF","SOEC-EL","CH3OHSYN","CH3OHSYN",5618.2123925194028]
["ESP,WIND-OFF,SOEC-EL,NH3SYN,NH3SYN","ESP","WIND-OFF","SOEC-EL","NH3SYN","NH3SYN",5336.2794052676345]
["ESP,WIND-ON,AEL-EL,CH4SYN,CH4-LIQ","ESP","WIND-ON","AEL-EL","CH4SYN","CH4-LIQ",5574.1149302415388]
["ESP,WIND-ON,AEL-EL,EFUELSYN,AEL-EL","ESP","WIND-ON","AEL-EL","EFUELSYN","AEL-EL",5218.712971356189]
["ESP,WIND-ON,PEM-EL,CH4SYN,ATR","ESP","WIND-ON","PEM-EL","CH4SYN","ATR",7008]
["ESP,WIND-ON,PEM-EL,CH4SYN,CH4-RGAS","ESP","WIND-ON","PEM-EL","CH4SYN","CH4-RGAS",7008,"öko"]
["ESP,WIND-ON,SOEC-EL,,H2-RGAS","ESP","WIND-ON","SOEC-EL",null,"H2-RGAS",7008,"öko"]
["ESP,WIND-ON,SOEC-EL,DRI,SOEC-EL","ESP","WIND-ON","SOEC-EL","DRI","SOEC-EL",5627.2682375563372]
["ESP,WIND-ON,SOEC-EL,LOHC-CON,SOEC-EL","ESP","WIND-ON","SOEC-EL","LOHC-CON","SOEC-EL",5081.1479023636221]
["IDN,PV-FIX,AEL-EL,CH4SYN,CH4SYN","IDN","PV-FIX","AEL-EL","CH4SYN","CH4SYN",7656.05,"PTX Atlas"]
["IDN,PV-FIX,PEM-EL,,H2-COMP","IDN","PV-FIX","PEM-EL",null,"H2-COMP",7008]
["IDN,PV-FIX,PEM-EL,CH3OHSYN,CH3OHSYN","IDN","PV-FIX","PEM-EL","CH3OHSYN","CH3OHSYN",8056,"PTX Atlas"]
["IDN,PV-FIX,PEM-EL,NH3SYN,NH3SYN","IDN","PV-FIX","PEM-EL","NH3SYN","NH3SYN",7994,"PTX Atlas"]
["IDN,PV-FIX,SOEC-EL,CH4SYN,CH4SYN","IDN","PV-FIX","SOEC-EL","CH4SYN","CH4SYN",6818,"PTX Atlas"]
["IDN,PV-FIX,SOEC-EL,EFUELSYN,SOEC-EL","IDN","PV-FIX","SOEC-EL","EFUELSYN","SOEC-EL",7525,"PTX Atlas"]
["IDN,PV-TRK,AEL-EL,CH4SYN,CH4-RGAS","IDN","PV-TRK","AEL-EL","CH4SYN","CH4-RGAS",6657.5999999999995,"öko"]
["IDN,PV-TRK,SOEC-EL,CH4SYN,ATR","IDN","PV-TRK","SOEC-EL","CH4SYN","ATR",7008]
["IDN,RES-HYBR,AEL-EL,,AEL-EL","IDN","RES-HYBR","AEL-EL",null,"AEL-EL",2371.4702152796694,"PTX Atlas"]
["IDN,RES-HYBR,AEL-EL,CH4SYN,CH4SYN","IDN","RES-HYBR","AEL-EL","CH4SYN","CH4SYN",7720.058745318197,"PTX Atlas"]
["IDN,RES-HYBR,AEL-EL,LOHC-CON,LOHC-REC","IDN","RES-HYBR","AEL-EL","LOHC-CON","LOHC-REC",6657.5999999999995,"öko"]
["IDN,RES-HYBR,PEM-EL,CH3OHSYN,PEM-EL","IDN","RES-HYBR","PEM-EL","CH3OHSYN","PEM-EL",2496.284437136494,"PTX Atlas"]
["IDN,RES-HYBR,PEM-EL,NH3SYN,PEM-EL","IDN","RES-HYBR","PEM-EL","NH3SYN","PEM-EL",2496.284437136494,"PTX Atlas"]
["IDN,RES-HYBR,SOEC-EL,CH3OHSYN,CH3OHREC","IDN","RES-HYBR","SOEC-EL","CH3OHSYN","CH3OHREC",7008,"öko"]
["IDN,RES-HYBR,SOEC-EL,EFUELSYN,SOEC-EL","IDN","RES-HYBR","SOEC-EL","EFUELSYN","SOEC-EL",7170.991482736732,"PTX Atlas"]
["IDN,WIND-OFF,AEL-EL,CH4SYN,ATR","IDN","WIND-OFF","AEL-EL","CH4SYN","ATR",6657.5999999999995]
["IDN,WIND-OFF,AEL-EL,DRI,DRI","IDN","WIND-OFF","AEL-EL","DRI","DRI",6657.5999999999995,"öko"]
["IDN,WIND-OFF,PEM-EL,,H2-RGAS","IDN","WIND-OFF","PEM-EL",null,"H2-RGAS",7008,"öko"]
["IDN,WIND-OFF,PEM-EL,LOHC-CON,LOHC-CON","IDN","WIND-OFF","PEM-EL","LOHC-CON","LOHC-CON",3541.5673985049957,"PTX Atlas"]
["IDN,WIND-OFF,SOEC-EL,CH4SYN,ATR","IDN","WIND-OFF","SOEC-EL","CH4SYN","ATR",7008]
["IDN,WIND-OFF,SOEC-EL,DRI,DRI","IDN","WIND-OFF","SOEC-EL","DRI","DRI",7008,"öko"]
["IDN,WIND-ON,AEL-EL,CH3OHSYN,CH3OHREC","IDN","WIND-ON","AEL-EL","CH3OHSYN","CH3OHREC",6657.5999999999995,"öko"]
["IDN,WIND-ON,AEL-EL,CH3OHSYN,CH3OHSYN","IDN","WIND-ON","AEL-EL","CH3OHSYN","CH3OHSYN",3826.9090992372448,"PTX Atlas"]
["IDN,WIND-ON,AEL-EL,NH3SYN,NH3SYN","IDN","WIND-ON","AEL-EL","NH3SYN","NH3SYN",2931.9073192601045,"PTX Atlas"]
["IDN,WIND-ON,PEM-EL,CH4SYN,CH4SYN","IDN","WIND-ON","PEM-EL","CH4SYN","CH4SYN",4000.537905830859,"PTX Atlas"]
["IDN,WIND-ON,PEM-EL,EFUELSYN,PEM-EL","IDN","WIND-ON","PEM-EL","EFUELSYN","PEM-EL",2797.9994898247883,"PTX Atlas"]
["IDN,WIND-ON,SOEC-EL,,SOEC-EL","IDN","WIND-ON","SOEC-EL",null,"SOEC-EL",2349.1822598003118,"PTX Atlas"]
["IDN,WIND-ON,SOEC-EL,NH3SYN,NH3SYN","IDN","WIND-ON","SOEC-EL","NH3SYN","NH3SYN",2761.4221335232041,"PTX Atlas"]
["IND,PV-FIX,AEL-EL,,H2-RGAS","IND","PV-FIX","AEL-EL",null,"H2-RGAS",6657.5999999999995,"öko"]
["IND,PV-FIX,AEL-EL,LOHC-CON,LOHC-REC","IND","PV-FIX","AEL-EL","LOHC-CON","LOHC-REC",6657.5999999999995,"öko"]
["IND,PV-FIX,PEM-EL,CH4SYN,ATR","IND","PV-FIX","PEM-EL","CH4SYN","ATR",7008]
["IND,PV-FIX,PEM-EL,DRI,DRI","IND","PV-FIX","PEM-EL","DRI","DRI",7008,"öko"]
["IND,PV-FIX,SOEC-EL,,H2-LIQ","IND","PV-FIX","SOEC-EL",null,"H2-LIQ",2807,"öko"]
["IND,PV-FIX,SOEC-EL,LOHC-CON,LOHC-CON","IND","PV-FIX","SOEC-EL","LOHC-CON","LOHC-CON",2778,"PTX Atlas"]
["IND,PV-TRK,AEL-EL,,H2-RGAS","IND","PV-TRK","AEL-EL",null,"H2-RGAS",6657.5999999999995,"öko"]
["IND,PV-TRK,PEM-EL,CH4SYN,ATR","IND","PV-TRK","PEM-EL","CH4SYN","ATR",7008]
["IND,PV-TRK,SOEC-EL,,H2-COMP","IND","PV-TRK","SOEC-EL",null,"H2-COMP",7008]
["IND,RES-HYBR,AEL-EL,,H2-RGAS","IND","RES-HYBR","AEL-EL",null,"H2-RGAS",6657.5999999999995,"öko"]
["IND,RES-HYBR,AEL-EL,LOHC-CON,LOHC-REC","IND","RES-HYBR","AEL-EL","LOHC-CON","LOHC-REC",6657.5999999999995,"öko"]
["IND,RES-HYBR,PEM-EL,,H2-LIQ","IND","RES-HYBR","PEM-EL",null,"H2-LIQ",5800,"öko"]
["IND,RES-HYBR,PEM-EL,DRI,DRI","IND","RES-HYBR","PEM-EL","DRI","DRI",7008,"öko"]
["IND,RES-HYBR,SOEC-EL,CH3OHSYN,CH3OHSYN","IND","RES-HYBR","SOEC-EL","CH3OHSYN","CH3OHSYN",6314,"PTX Atlas"]
["IND,RES-HYBR,SOEC-EL,CH4SYN,CH4-LIQ","IND","RES-HYBR","SOEC-EL","CH4SYN","CH4-LIQ",6322,"PTX Atlas"]
["IND,WIND-OFF,AEL-EL,,AEL-EL","IND","WIND-OFF","AEL-EL",null,"AEL-EL",5413.0999999999995,"PTX Atlas"]
["IND,WIND-OFF,AEL-EL,EFUELSYN,EFUELSYN","IND","WIND-OFF","AEL-EL","EFUELSYN","EFUELSYN",6199.7,"PTX Atlas"]
["IND,WIND-OFF,PEM-EL,CH3OHSYN,CH3OHREC","IND","WIND-OFF","PEM-EL","CH3OHSYN","CH3OHREC",7008,"öko"]
["IND,WIND-OFF,PEM-EL,CH4SYN,CH4-RGAS","IND","WIND-OFF","PEM-EL","CH4SYN","CH4-RGAS",7008,"öko"]
["IND,WIND-OFF,SOEC-EL,,H2-RGAS","IND","WIND-OFF","SOEC-EL",null,"H2-RGAS",7008,"öko"]
["IND,WIND-OFF,SOEC-EL,,SOEC-EL","IND","WIND-OFF","SOEC-EL",null,"SOEC-EL",5534,"PTX Atlas"]
["IND,WIND-OFF,SOEC-EL,LOHC-CON,SOEC-EL","IND","WIND-OFF","SOEC-EL","LOHC-CON","SOEC-EL",5534,"PTX Atlas"]
["IND,WIND-ON,AEL-EL,CH3OHSYN,CH3OHSYN","IND","WIND-ON","AEL-EL","CH3OHSYN","CH3OHSYN",6232.95,"PTX Atlas"]
["IND,WIND-ON,AEL-EL,DRI,DRI","IND","WIND-ON","AEL-EL","DRI","DRI",6657.5999999999995,"öko"]
["IND,WIND-ON,PEM-EL,CH3OHSYN,PEM-EL","IND","WIND-ON","PEM-EL","CH3OHSYN","PEM-EL",5828,"PTX Atlas"]
["IND,WIND-ON,PEM-EL,LOHC-CON,LOHC-REC","IND","WIND-ON","PEM-EL","LOHC-CON","LOHC-REC",7008,"öko"]
["IND,WIND-ON,SOEC-EL,,H2-COMP","IND","WIND-ON","SOEC-EL",null,"H2-COMP",7008]
["IND,WIND-ON,SOEC-EL,EFUELSYN,SOEC-EL","IND","WIND-ON","SOEC-EL","EFUELSYN","SOEC-EL",6325,"PTX Atlas"]
["JOR,PV-FIX,AEL-EL,CH3OHSYN,AEL-EL","JOR","PV-FIX","AEL-EL","CH3OHSYN","AEL-EL",2911.75,"PTX Atlas"]
["JOR,PV-FIX,AEL-EL,CH4SYN,CH4-LIQ","JOR","PV-FIX","AEL-EL","CH4SYN","CH4-LIQ",7722.55,"PTX Atlas"]
["JOR,PV-FIX,AEL-EL,NH3SYN,AEL-EL","JOR","PV-FIX","AEL-EL","NH3SYN","AEL-EL",2753.1,"PTX Atlas"]
["JOR,PV-FIX,PEM-EL,EFUELSYN,EFUELSYN","JOR","PV-FIX","PEM-EL","EFUELSYN","EFUELSYN",8128,"PTX Atlas"]
["JOR,PV-FIX,PEM-EL,NH3SYN,NH3-REC","JOR","PV-FIX","PEM-EL","NH3SYN","NH3-REC",7008,"öko"]
["JOR,PV-FIX,SOEC-EL,CH4SYN,CH4-LIQ","JOR","PV-FIX","SOEC-EL","CH4SYN","CH4-LIQ",8140,"PTX Atlas"]
["JOR,PV-FIX,SOEC-EL,DRI,SOEC-EL","JOR","PV-FIX","SOEC-EL","DRI","SOEC-EL",8127,"PTX Atlas"]
["JOR,PV-TRK,AEL-EL,LOHC-CON,LOHC-REC","JOR","PV-TRK","AEL-EL","LOHC-CON","LOHC-REC",6657.5999999999995,"öko"]
["JOR,PV-TRK,SOEC-EL,,H2-RGAS","JOR","PV-TRK","SOEC-EL",null,"H2-RGAS",7008,"öko"]
["JOR,PV-TRK,SOEC-EL,LOHC-CON,LOHC-REC","JOR","PV-TRK","SOEC-EL","LOHC-CON","LOHC-REC",7008,"öko"]
["JOR,RES-HYBR,AEL-EL,EFUELSYN,EFUELSYN","JOR","RES-HYBR","AEL-EL","EFUELSYN","EFUELSYN",7697.85,"PTX Atlas"]
["JOR,RES-HYBR,PEM-EL,,PEM-EL","JOR","RES-HYBR","PEM-EL",null,"PEM-EL",2897,"PTX Atlas"]
["JOR,RES-HYBR,PEM-EL,CH4SYN,CH4-LIQ","JOR","RES-HYBR","PEM-EL","CH4SYN","CH4-LIQ",8103,"PTX Atlas"]
["JOR,RES-HYBR,PEM-EL,NH3SYN,NH3-REC","JOR","RES-HYBR","PEM-EL","NH3SYN","NH3-REC",7008,"öko"]
["JOR,RES-HYBR,SOEC-EL,DRI,DRI","JOR","RES-HYBR","SOEC-EL","DRI","DRI",7008,"öko"]
["JOR,WIND-OFF,AEL-EL,,H2-COMP","JOR","WIND-OFF","AEL-EL",null,"H2-COMP",6657.5999999999995]
["JOR,WIND-OFF,AEL-EL,CH3OHSYN,CH3OHSYN","JOR","WIND-OFF","AEL-EL","CH3OHSYN","CH3OHSYN",3183.2021531666219,"PTX Atlas"]
["JOR,WIND-OFF,AEL-EL,NH3SYN,NH3SYN","JOR","WIND-OFF","AEL-EL","NH3SYN","NH3SYN",2119.690163733098,"PTX Atlas"]
["JOR,WIND-OFF,PEM-EL,,H2-RGAS","JOR","WIND-OFF","PEM-EL",null,"H2-RGAS",7008,"öko"]
["JOR,WIND-OFF,PEM-EL,LOHC-CON,LOHC-CON","JOR","WIND-OFF","PEM-EL","LOHC-CON","LOHC-CON",1418.7677101067909,"PTX Atlas"]
["JOR,WIND-OFF,PEM-EL,NH3SYN,PEM-EL","JOR","WIND-OFF","PEM-EL","NH3SYN","PEM-EL",1739.2492788679283,"PTX Atlas"]
["JOR,WIND-OFF,SOEC-EL,CH4SYN,CH4SYN","JOR","WIND-OFF","SOEC-EL","CH4SYN","CH4SYN",2158.2217948489274,"PTX Atlas"]
["JOR,WIND-ON,AEL-EL,,H2-RGAS","JOR","WIND-ON","AEL-EL",null,"H2-RGAS",6657.5999999999995,"öko"]
["JOR,WIND-ON,AEL-EL,EFUELSYN,AEL-EL","JOR","WIND-ON","AEL-EL","EFUELSYN","AEL-EL",2883.25,"PTX Atlas"]
["JOR,WIND-ON,AEL-EL,NH3SYN,AEL-EL","JOR","WIND-ON","AEL-EL","NH3SYN","AEL-EL",2750.25,"PTX Atlas"]
["JOR,WIND-ON,PEM-EL,DRI,DRI","JOR","WIND-ON","PEM-EL","DRI","DRI",7008,"öko"]
["JOR,WIND-ON,SOEC-EL,,H2-COMP","JOR","WIND-ON","SOEC-EL",null,"H2-COMP",7008]
["JOR,WIND-ON,SOEC-EL,CH4SYN,ATR","JOR","WIND-ON","SOEC-EL","CH4SYN","ATR",7008]
["KAZ,PV-FIX,AEL-EL,,AEL-EL","KAZ","PV-FIX","AEL-EL",null,"AEL-EL",2487.1,"PTX Atlas"]
["KAZ,PV-FIX,AEL-EL,CH4SYN,CH4SYN","KAZ","PV-FIX","AEL-EL","CH4SYN","CH4SYN",6634.7999999999993,"PTX Atlas"]
["KAZ,PV-FIX,AEL-EL,LOHC-CON,AEL-EL","KAZ","PV-FIX","AEL-EL","LOHC-CON","AEL-EL",2487.1,"PTX Atlas"]
["KAZ,PV-FIX,PEM-EL,CH3OHSYN,CH3OHSYN","KAZ","PV-FIX","PEM-EL","CH3OHSYN","CH3OHSYN",6983,"PTX Atlas"]
["KAZ,PV-FIX,PEM-EL,CH4SYN,CH4SYN","KAZ","PV-FIX","PEM-EL","CH4SYN","CH4SYN",6984,"PTX Atlas"]
["KAZ,PV-FIX,SOEC-EL,,H2-COMP","KAZ","PV-FIX","SOEC-EL",null,"H2-COMP",7008]
["KAZ,PV-FIX,SOEC-EL,EFUELSYN,SOEC-EL","KAZ","PV-FIX","SOEC-EL","EFUELSYN","SOEC-EL",7167,"PTX Atlas"]
["KAZ,PV-FIX,SOEC-EL,NH3SYN,NH3SYN","KAZ","PV-FIX","SOEC-EL","NH3SYN","NH3SYN",4128,"PTX Atlas"]
["KAZ,PV-TRK,PEM-EL,,H2-RGAS","KAZ","PV-TRK","PEM-EL",null,"H2-RGAS",7008,"öko"]
["KAZ,RES-HYBR,AEL-EL,,AEL-EL","KAZ","RES-HYBR","AEL-EL",null,"AEL-EL",5409.5286773650578,"PTX Atlas"]
["KAZ,RES-HYBR,AEL-EL,CH3OHSYN,CH3OHREC","KAZ","RES-HYBR","AEL-EL","CH3OHSYN","CH3OHREC",6657.5999999999995,"öko"]
["KAZ,RES-HYBR,AEL-EL,LOHC-CON,AEL-EL","KAZ","RES-HYBR","AEL-EL","LOHC-CON","AEL-EL",5409.5286773650578,"PTX Atlas"]
["KAZ,RES-HYBR,PEM-EL,CH4SYN,CH4-RGAS","KAZ","RES-HYBR","PEM-EL","CH4SYN","CH4-RGAS",7008,"öko"]
["KAZ,RES-HYBR,PEM-EL,LOHC-CON,PEM-EL","KAZ","RES-HYBR","PEM-EL","LOHC-CON","PEM-EL",5694.2407130158508,"PTX Atlas"]
["KAZ,RES-HYBR,SOEC-EL,CH3OHSYN,CH3OHREC","KAZ","RES-HYBR","SOEC-EL","CH3OHSYN","CH3OHREC",7008,"öko"]
["KAZ,RES-HYBR,SOEC-EL,NH3SYN,NH3-REC","KAZ","RES-HYBR","SOEC-EL","NH3SYN","NH3-REC",7008,"öko"]
["KAZ,RES-HYBR,SOEC-EL,NH3SYN,NH3SYN","KAZ","RES-HYBR","SOEC-EL","NH3SYN","NH3SYN",6106.7579293997533,"PTX Atlas"]
["KAZ,WIND-OFF,AEL-EL,DRI,DRI","KAZ","WIND-OFF","AEL-EL","DRI","DRI",6657.5999999999995,"öko"]
["KAZ,WIND-OFF,AEL-EL,LOHC-CON,LOHC-REC","KAZ","WIND-OFF","AEL-EL","LOHC-CON","LOHC-REC",6657.5999999999995,"öko"]
["KAZ,WIND-OFF,PEM-EL,CH4SYN,ATR","KAZ","WIND-OFF","PEM-EL","CH4SYN","ATR",7008]
["KAZ,WIND-OFF,SOEC-EL,,H2-COMP","KAZ","WIND-OFF","SOEC-EL",null,"H2-COMP",7008]
["KAZ,WIND-OFF,SOEC-EL,CH3OHSYN,CH3OHSYN","KAZ","WIND-OFF","SOEC-EL","CH3OHSYN","CH3OHSYN",5090,"PTX Atlas"]
["KAZ,WIND-OFF,SOEC-EL,LOHC-CON,LOHC-REC","KAZ","WIND-OFF","SOEC-EL","LOHC-CON","LOHC-REC",7008,"öko"]
["KAZ,WIND-ON,AEL-EL,CH4SYN,CH4-RGAS","KAZ","WIND-ON","AEL-EL","CH4SYN","CH4-RGAS",6657.5999999999995,"öko"]
["KAZ,WIND-ON,AEL-EL,NH3SYN,NH3SYN","KAZ","WIND-ON","AEL-EL","NH3SYN","NH3SYN",4585.6499999999996,"PTX Atlas"]
["KAZ,WIND-ON,PEM-EL,CH3OHSYN,CH3OHREC","KAZ","WIND-ON","PEM-EL","CH3OHSYN","CH3OHREC",7008,"öko"]
["KAZ,WIND-ON,PEM-EL,NH3SYN,NH3-REC","KAZ","WIND-ON","PEM-EL","NH3SYN","NH3-REC",7008,"öko"]
["KAZ,WIND-ON,SOEC-EL,CH4SYN,CH4-LIQ","KAZ","WIND-ON","SOEC-EL","CH4SYN","CH4-LIQ",5088,"PTX Atlas"]
["KAZ,WIND-ON,SOEC-EL,DRI,SOEC-EL","KAZ","WIND-ON","SOEC-EL","DRI","SOEC-EL",5099.5,"PTX Atlas"]
["KEN,PV-FIX,AEL-EL,CH4SYN,AEL-EL","KEN","PV-FIX","AEL-EL","CH4SYN","AEL-EL",2853.7999999999997,"PTX Atlas"]
["KEN,PV-FIX,AEL-EL,CH4SYN,ATR","KEN","PV-FIX","AEL-EL","CH4SYN","ATR",6657.5999999999995]
["KEN,PV-FIX,PEM-EL,,H2-LIQ","KEN","PV-FIX","PEM-EL",null,"H2-LIQ",2966,"öko"]
["KEN,PV-FIX,PEM-EL,DRI,DRI","KEN","PV-FIX","PEM-EL","DRI","DRI",7008,"öko"]
["KEN,PV-FIX,PEM-EL,LOHC-CON,LOHC-REC","KEN","PV-FIX","PEM-EL","LOHC-CON","LOHC-REC",7008,"öko"]
["KEN,PV-FIX,SOEC-EL,CH4SYN,CH4SYN","KEN","PV-FIX","SOEC-EL","CH4SYN","CH4SYN",6749,"PTX Atlas"]
["KEN,PV-FIX,SOEC-EL,NH3SYN,SOEC-EL","KEN","PV-FIX","SOEC-EL","NH3SYN","SOEC-EL",4545,"PTX Atlas"]
["KEN,PV-TRK,AEL-EL,CH4SYN,CH4-RGAS","KEN","PV-TRK","AEL-EL","CH4SYN","CH4-RGAS",6657.5999999999995,"öko"]
["KEN,PV-TRK,SOEC-EL,,H2-COMP","KEN","PV-TRK","SOEC-EL",null,"H2-COMP",7008]
["KEN,RES-HYBR,AEL-EL,CH4SYN,AEL-EL","KEN","RES-HYBR","AEL-EL","CH4SYN","AEL-EL",4452.6499999999996,"PTX Atlas"]
["KEN,RES-HYBR,AEL-EL,DRI,AEL-EL","KEN","RES-HYBR","AEL-EL","DRI","AEL-EL",4485.8999999999996,"PTX Atlas"]
["KEN,RES-HYBR,PEM-EL,,H2-LIQ","KEN","RES-HYBR","PEM-EL",null,"H2-LIQ",4446,"öko"]
["KEN,RES-HYBR,PEM-EL,LOHC-CON,LOHC-CON","KEN","RES-HYBR","PEM-EL","LOHC-CON","LOHC-CON",4111,"PTX Atlas"]
["KEN,RES-HYBR,PEM-EL,LOHC-CON,LOHC-REC","KEN","RES-HYBR","PEM-EL","LOHC-CON","LOHC-REC",7008,"öko"]
["KEN,RES-HYBR,SOEC-EL,CH4SYN,CH4SYN","KEN","RES-HYBR","SOEC-EL","CH4SYN","CH4SYN",4798,"PTX Atlas"]
["KEN,RES-HYBR,SOEC-EL,EFUELSYN,SOEC-EL","KEN","RES-HYBR","SOEC-EL","EFUELSYN","SOEC-EL",4802,"PTX Atlas"]
["KEN,WIND-OFF,AEL-EL,DRI,AEL-EL","KEN","WIND-OFF","AEL-EL","DRI","AEL-EL",4442.3084273870545,"PTX Atlas"]
["KEN,WIND-OFF,AEL-EL,NH3SYN,NH3-REC","KEN","WIND-OFF","AEL-EL","NH3SYN","NH3-REC",6657.5999999999995,"öko"]
["KEN,WIND-OFF,PEM-EL,,PEM-EL","KEN","WIND-OFF","PEM-EL",null,"PEM-EL",4299.7101443614974,"PTX Atlas"]
["KEN,WIND-OFF,PEM-EL,EFUELSYN,EFUELSYN","KEN","WIND-OFF","PEM-EL","EFUELSYN","EFUELSYN",5275.481201930359,"PTX Atlas"]
["KEN,WIND-OFF,SOEC-EL,CH4SYN,ATR","KEN","WIND-OFF","SOEC-EL","CH4SYN","ATR",7008]
["KEN,WIND-OFF,SOEC-EL,LOHC-CON,SOEC-EL","KEN","WIND-OFF","SOEC-EL","LOHC-CON","SOEC-EL",4252.7875991461278,"PTX Atlas"]
["KEN,WIND-ON,AEL-EL,,H2-COMP","KEN","WIND-ON","AEL-EL",null,"H2-COMP",6657.5999999999995]
["KEN,WIND-ON,AEL-EL,LOHC-CON,AEL-EL","KEN","WIND-ON","AEL-EL","LOHC-CON","AEL-EL",3905.45,"PTX Atlas"]
["KEN,WIND-ON,AEL-EL,NH3SYN,NH3SYN","KEN","WIND-ON","AEL-EL","NH3SYN","NH3SYN",4237.95,"PTX Atlas"]
["KEN,WIND-ON,PEM-EL,CH4SYN,PEM-EL","KEN","WIND-ON","PEM-EL","CH4SYN","PEM-EL",4687,"PTX Atlas"]
["KEN,WIND-ON,SOEC-EL,CH3OHSYN,CH3OHREC","KEN","WIND-ON","SOEC-EL","CH3OHSYN","CH3OHREC",7008,"öko"]
["KEN,WIND-ON,SOEC-EL,CH3OHSYN,CH3OHSYN","KEN","WIND-ON","SOEC-EL","CH3OHSYN","CH3OHSYN",4793,"PTX Atlas"]
["KEN,WIND-ON,SOEC-EL,NH3SYN,NH3SYN","KEN","WIND-ON","SOEC-EL","NH3SYN","NH3SYN",4432,"PTX Atlas"]
["MAR,PV-FIX,AEL-EL,CH4SYN,CH4-LIQ","MAR","PV-FIX","AEL-EL","CH4SYN","CH4-LIQ",7325.45,"PTX Atlas"]
["MAR,PV-FIX,AEL-EL,EFUELSYN,AEL-EL","MAR","PV-FIX","AEL-EL","EFUELSYN","AEL-EL",2744.5499999999997,"PTX Atlas"]
["MAR,PV-FIX,PEM-EL,CH4SYN,ATR","MAR","PV-FIX","PEM-EL","CH4SYN","ATR",7008]
["MAR,PV-FIX,PEM-EL,NH3SYN,NH3-REC","MAR","PV-FIX","PEM-EL","NH3SYN","NH3-REC",7008,"öko"]
["MAR,PV-FIX,SOEC-EL,,H2-RGAS","MAR","PV-FIX","SOEC-EL",null,"H2-RGAS",7008,"öko"]
["MAR,PV-FIX,SOEC-EL,DRI,SOEC-EL","MAR","PV-FIX","SOEC-EL","DRI","SOEC-EL",7671,"PTX Atlas"]
["MAR,PV-TRK,AEL-EL,LOHC-CON,LOHC-REC","MAR","PV-TRK","AEL-EL","LOHC-CON","LOHC-REC",6657.5999999999995,"öko"]
["MAR,PV-TRK,PEM-EL,CH4SYN,ATR","MAR","PV-TRK","PEM-EL","CH4SYN","ATR",7008]
["MAR,PV-TRK,SOEC-EL,LOHC-CON,LOHC-REC","MAR","PV-TRK","SOEC-EL","LOHC-CON","LOHC-REC",7008,"öko"]
["MAR,RES-HYBR,AEL-EL,DRI,DRI","MAR","RES-HYBR","AEL-EL","DRI","DRI",6657.5999999999995,"öko"]
["MAR,RES-HYBR,AEL-EL,LOHC-CON,LOHC-REC","MAR","RES-HYBR","AEL-EL","LOHC-CON","LOHC-REC",6657.5999999999995,"öko"]
["MAR,RES-HYBR,PEM-EL,CH3OHSYN,CH3OHREC","MAR","RES-HYBR","PEM-EL","CH3OHSYN","CH3OHREC",7008,"öko"]
["MAR,RES-HYBR,PEM-EL,DRI,PEM-EL","MAR","RES-HYBR","PEM-EL","DRI","PEM-EL",4812,"PTX Atlas"]
["MAR,RES-HYBR,SOEC-EL,,H2-RGAS","MAR","RES-HYBR","SOEC-EL",null,"H2-RGAS",7008,"öko"]
["MAR,RES-HYBR,SOEC-EL,LOHC-CON,LOHC-REC","MAR","RES-HYBR","SOEC-EL","LOHC-CON","LOHC-REC",7008,"öko"]
["MAR,WIND-OFF,AEL-EL,,AEL-EL","MAR","WIND-OFF","AEL-EL",null,"AEL-EL",5165.0780499889379,"PTX Atlas"]
["MAR,WIND-OFF,AEL-EL,CH4SYN,CH4SYN","MAR","WIND-OFF","AEL-EL","CH4SYN","CH4SYN",5781.9150990822727,"PTX Atlas"]
["MAR,WIND-OFF,PEM-EL,CH3OHSYN,CH3OHREC","MAR","WIND-OFF","PEM-EL","CH3OHSYN","CH3OHREC",7008,"öko"]
["MAR,WIND-OFF,PEM-EL,EFUELSYN,PEM-EL","MAR","WIND-OFF","PEM-EL","EFUELSYN","PEM-EL",5809.1802925666907,"PTX Atlas"]
["MAR,WIND-OFF,SOEC-EL,,H2-RGAS","MAR","WIND-OFF","SOEC-EL",null,"H2-RGAS",7008,"öko"]
["MAR,WIND-OFF,SOEC-EL,EFUELSYN,EFUELSYN","MAR","WIND-OFF","SOEC-EL","EFUELSYN","EFUELSYN",5923.180626426647,"PTX Atlas"]
["MAR,WIND-ON,AEL-EL,,H2-RGAS","MAR","WIND-ON","AEL-EL",null,"H2-RGAS",6657.5999999999995,"öko"]
["MAR,WIND-ON,AEL-EL,CH4SYN,ATR","MAR","WIND-ON","AEL-EL","CH4SYN","ATR",6657.5999999999995]
["MAR,WIND-ON,PEM-EL,,H2-LIQ","MAR","WIND-ON","PEM-EL",null,"H2-LIQ",4708,"öko"]
["MAR,WIND-ON,PEM-EL,,H2-RGAS","MAR","WIND-ON","PEM-EL",null,"H2-RGAS",7008,"öko"]
["MAR,WIND-ON,PEM-EL,LOHC-CON,LOHC-REC","MAR","WIND-ON","PEM-EL","LOHC-CON","LOHC-REC",7008,"öko"]
["MAR,WIND-ON,SOEC-EL,CH3OHSYN,SOEC-EL","MAR","WIND-ON","SOEC-EL","CH3OHSYN","SOEC-EL",6563,"PTX Atlas"]
["MAR,WIND-ON,SOEC-EL,CH4SYN,SOEC-EL","MAR","WIND-ON","SOEC-EL","CH4SYN","SOEC-EL",6599,"PTX Atlas"]
["MAR-BEN,PV-FIX,AEL-EL,CH3OHSYN,CH3OHREC","MAR-BEN","PV-FIX","AEL-EL","CH3OHSYN","CH3OHREC",6657.5999999999995,"öko"]
["MAR-BEN,PV-FIX,AEL-EL,LOHC-CON,AEL-EL","MAR-BEN","PV-FIX","AEL-EL","LOHC-CON","AEL-EL",2767.9049478315887,"PTX Atlas"]
["MAR-BEN,PV-FIX,AEL-EL,NH3SYN,NH3SYN","MAR-BEN","PV-FIX","AEL-EL","NH3SYN","NH3SYN",7674.4747132009297,"PTX Atlas"]
["MAR-BEN,PV-FIX,PEM-EL,EFUELSYN,EFUELSYN","MAR-BEN","PV-FIX","PEM-EL","EFUELSYN","EFUELSYN",8122.1404890371732,"PTX Atlas"]
["MAR-BEN,PV-FIX,SOEC-EL,,SOEC-EL","MAR-BEN","PV-FIX","SOEC-EL",null,"SOEC-EL",2890.5454624914264,"PTX Atlas"]
["MAR-BEN,PV-FIX,SOEC-EL,CH4SYN,CH4-LIQ","MAR-BEN","PV-FIX","SOEC-EL","CH4SYN","CH4-LIQ",7534.0710832567966,"PTX Atlas"]
["MAR-BEN,PV-FIX,SOEC-EL,EFUELSYN,SOEC-EL","MAR-BEN","PV-FIX","SOEC-EL","EFUELSYN","SOEC-EL",8066.535209407105,"PTX Atlas"]
["MAR-BEN,PV-TRK,PEM-EL,DRI,DRI","MAR-BEN","PV-TRK","PEM-EL","DRI","DRI",7008,"öko"]
["MAR-BEN,PV-TRK,SOEC-EL,CH3OHSYN,CH3OHREC","MAR-BEN","PV-TRK","SOEC-EL","CH3OHSYN","CH3OHREC",7008,"öko"]
["MAR-BEN,RES-HYBR,AEL-EL,CH3OHSYN,CH3OHREC","MAR-BEN","RES-HYBR","AEL-EL","CH3OHSYN","CH3OHREC",6657.5999999999995,"öko"]
["MAR-BEN,RES-HYBR,AEL-EL,CH4SYN,CH4-RGAS","MAR-BEN","RES-HYBR","AEL-EL","CH4SYN","CH4-RGAS",6657.5999999999995,"öko"]
["MAR-BEN,RES-HYBR,AEL-EL,NH3SYN,NH3SYN","MAR-BEN","RES-HYBR","AEL-EL","NH3SYN","NH3SYN",7080.3723938248986,"PTX Atlas"]
["MAR-BEN,RES-HYBR,PEM-EL,EFUELSYN,EFUELSYN","MAR-BEN","RES-HYBR","PEM-EL","EFUELSYN","EFUELSYN",7692.6611096987044,"PTX Atlas"]
["MAR-BEN,RES-HYBR,PEM-EL,NH3SYN,NH3-REC","MAR-BEN","RES-HYBR","PEM-EL","NH3SYN","NH3-REC",7008,"öko"]
["MAR-BEN,RES-HYBR,SOEC-EL,CH4SYN,SOEC-EL","MAR-BEN","RES-HYBR","SOEC-EL","CH4SYN","SOEC-EL",6693.2112283142133,"PTX Atlas"]
["MAR-BEN,WIND-OFF,AEL-EL,,H2-LIQ","MAR-BEN","WIND-OFF","AEL-EL",null,"H2-LIQ",1602.0918817851802,"öko"]
["MAR-BEN,WIND-OFF,AEL-EL,CH4SYN,AEL-EL","MAR-BEN","WIND-OFF","AEL-EL","CH4SYN","AEL-EL",1647.8356753367241,"PTX Atlas"]
["MAR-BEN,WIND-OFF,AEL-EL,LOHC-CON,LOHC-REC","MAR-BEN","WIND-OFF","AEL-EL","LOHC-CON","LOHC-REC",6657.5999999999995,"öko"]
["MAR-BEN,WIND-OFF,PEM-EL,CH4SYN,PEM-EL","MAR-BEN","WIND-OFF","PEM-EL","CH4SYN","PEM-EL",1734.563868775499,"PTX Atlas"]
["MAR-BEN,WIND-OFF,SOEC-EL,,H2-COMP","MAR-BEN","WIND-OFF","SOEC-EL",null,"H2-COMP",7008]
["MAR-BEN,WIND-OFF,SOEC-EL,CH3OHSYN,CH3OHSYN","MAR-BEN","WIND-OFF","SOEC-EL","CH3OHSYN","CH3OHSYN",2159.6914621343913,"PTX Atlas"]
["MAR-BEN,WIND-OFF,SOEC-EL,NH3SYN,NH3SYN","MAR-BEN","WIND-OFF","SOEC-EL","NH3SYN","NH3SYN",1813.4745533305361,"PTX Atlas"]
["MAR-BEN,WIND-ON,AEL-EL,CH4SYN,CH4-LIQ","MAR-BEN","WIND-ON","AEL-EL","CH4SYN","CH4-LIQ",4034.689207716428,"PTX Atlas"]
["MAR-BEN,WIND-ON,AEL-EL,EFUELSYN,EFUELSYN","MAR-BEN","WIND-ON","AEL-EL","EFUELSYN","EFUELSYN",4016.7668848552175,"PTX Atlas"]
["MAR-BEN,WIND-ON,AEL-EL,NH3SYN,NH3-REC","MAR-BEN","WIND-ON","AEL-EL","NH3SYN","NH3-REC",6657.5999999999995,"öko"]
["MAR-BEN,WIND-ON,PEM-EL,CH4SYN,CH4-RGAS","MAR-BEN","WIND-ON","PEM-EL","CH4SYN","CH4-RGAS",7008,"öko"]
["MAR-BEN,WIND-ON,SOEC-EL,,H2-RGAS","MAR-BEN","WIND-ON","SOEC-EL",null,"H2-RGAS",7008,"öko"]
["MAR-BEN,WIND-ON,SOEC-EL,DRI,SOEC-EL","MAR-BEN","WIND-ON","SOEC-EL","DRI","SOEC-EL",3435.0893496269919,"PTX Atlas"]
["MAR-BEN,WIND-ON,SOEC-EL,LOHC-CON,SOEC-EL","MAR-BEN","WIND-ON","SOEC-EL","LOHC-CON","SOEC-EL",2709.8979651606724,"PTX Atlas"]
["MAR-CAS,PV-FIX,AEL-EL,CH4SYN,CH4SYN","MAR-CAS","PV-FIX","AEL-EL","CH4SYN","CH4SYN",7604.5228444888508,"PTX Atlas"]
["MAR-CAS,PV-FIX,AEL-EL,LOHC-CON,LOHC-REC","MAR-CAS","PV-FIX","AEL-EL","LOHC-CON","LOHC-REC",6657.5999999999995,"öko"]
["MAR-CAS,PV-FIX,PEM-EL,CH3OHSYN,PEM-EL","MAR-CAS","PV-FIX","PEM-EL","CH3OHSYN","PEM-EL",3005.2290049096937,"PTX Atlas"]
["MAR-CAS,PV-FIX,PEM-EL,LOHC-CON,LOHC-REC","MAR-CAS","PV-FIX","PEM-EL","LOHC-CON","LOHC-REC",7008,"öko"]
["MAR-CAS,PV-FIX,SOEC-EL,CH4SYN,CH4SYN","MAR-CAS","PV-FIX","SOEC-EL","CH4SYN","CH4SYN",7349.6490388450002,"PTX Atlas"]
["MAR-CAS,PV-FIX,SOEC-EL,EFUELSYN,SOEC-EL","MAR-CAS","PV-FIX","SOEC-EL","EFUELSYN","SOEC-EL",7913.118441380042,"PTX Atlas"]
["MAR-CAS,PV-TRK,AEL-EL,CH4SYN,CH4-RGAS","MAR-CAS","PV-TRK","AEL-EL","CH4SYN","CH4-RGAS",6657.5999999999995,"öko"]
["MAR-CAS,PV-TRK,PEM-EL,,H2-RGAS","MAR-CAS","PV-TRK","PEM-EL",null,"H2-RGAS",7008,"öko"]
["MAR-CAS,RES-HYBR,AEL-EL,,AEL-EL","MAR-CAS","RES-HYBR","AEL-EL",null,"AEL-EL",4062.7177935213494,"PTX Atlas"]
["MAR-CAS,RES-HYBR,AEL-EL,EFUELSYN,AEL-EL","MAR-CAS","RES-HYBR","AEL-EL","EFUELSYN","AEL-EL",3984.9694905336814,"PTX Atlas"]
["MAR-CAS,RES-HYBR,AEL-EL,LOHC-CON,LOHC-CON","MAR-CAS","RES-HYBR","AEL-EL","LOHC-CON","LOHC-CON",4062.7177935213494,"PTX Atlas"]
["MAR-CAS,RES-HYBR,PEM-EL,CH3OHSYN,PEM-EL","MAR-CAS","RES-HYBR","PEM-EL","CH3OHSYN","PEM-EL",4221.1029206476742,"PTX Atlas"]
["MAR-CAS,RES-HYBR,PEM-EL,NH3SYN,PEM-EL","MAR-CAS","RES-HYBR","PEM-EL","NH3SYN","PEM-EL",4201.074077549416,"PTX Atlas"]
["MAR-CAS,RES-HYBR,SOEC-EL,CH3OHSYN,CH3OHREC","MAR-CAS","RES-HYBR","SOEC-EL","CH3OHSYN","CH3OHREC",7008,"öko"]
["MAR-CAS,RES-HYBR,SOEC-EL,EFUELSYN,SOEC-EL","MAR-CAS","RES-HYBR","SOEC-EL","EFUELSYN","SOEC-EL",6637.5491304222596,"PTX Atlas"]
["MAR-CAS,WIND-OFF,AEL-EL,CH4SYN,ATR","MAR-CAS","WIND-OFF","AEL-EL","CH4SYN","ATR",6657.5999999999995]
["MAR-CAS,WIND-OFF,AEL-EL,NH3SYN,AEL-EL","MAR-CAS","WIND-OFF","AEL-EL","NH3SYN","AEL-EL",5348.8652799505062,"PTX Atlas"]
["MAR-CAS,WIND-OFF,PEM-EL,,H2-LIQ","MAR-CAS","WIND-OFF","PEM-EL",null,"H2-LIQ",5630.6347190284559,"öko"]
["MAR-CAS,WIND-OFF,PEM-EL,LOHC-CON,PEM-EL","MAR-CAS","WIND-OFF","PEM-EL","LOHC-CON","PEM-EL",5436.9242631462503,"PTX Atlas"]
["MAR-CAS,WIND-OFF,PEM-EL,NH3SYN,NH3-REC","MAR-CAS","WIND-OFF","PEM-EL","NH3SYN","NH3-REC",7008,"öko"]
["MAR-CAS,WIND-OFF,SOEC-EL,DRI,DRI","MAR-CAS","WIND-OFF","SOEC-EL","DRI","DRI",7008,"öko"]
["MAR-CAS,WIND-OFF,SOEC-EL,LOHC-CON,LOHC-REC","MAR-CAS","WIND-OFF","SOEC-EL","LOHC-CON","LOHC-REC",7008,"öko"]
["MAR-CAS,WIND-ON,AEL-EL,CH3OHSYN,CH3OHSYN","MAR-CAS","WIND-ON","AEL-EL","CH3OHSYN","CH3OHSYN",4589.0029498469748,"PTX Atlas"]
["MAR-CAS,WIND-ON,AEL-EL,NH3SYN,NH3SYN","MAR-CAS","WIND-ON","AEL-EL","NH3SYN","NH3SYN",3893.5028144855783,"PTX Atlas"]
["MAR-CAS,WIND-ON,PEM-EL,CH4SYN,CH4SYN","MAR-CAS","WIND-ON","PEM-EL","CH4SYN","CH4SYN",4814.2756455017097,"PTX Atlas"]
["MAR-CAS,WIND-ON,PEM-EL,NH3SYN,PEM-EL","MAR-CAS","WIND-ON","PEM-EL","NH3SYN","PEM-EL",3845.5657032485506,"PTX Atlas"]
["MAR-CAS,WIND-ON,SOEC-EL,CH4SYN,CH4-RGAS","MAR-CAS","WIND-ON","SOEC-EL","CH4SYN","CH4-RGAS",7008,"öko"]
["MAR-CAS,WIND-ON,SOEC-EL,NH3SYN,NH3SYN","MAR-CAS","WIND-ON","SOEC-EL","NH3SYN","NH3SYN",3883.7108177996456,"PTX Atlas"]
["MAR-DAK,PV-FIX,AEL-EL,,H2-RGAS","MAR-DAK","PV-FIX","AEL-EL",null,"H2-RGAS",6657.5999999999995,"öko"]
["MAR-DAK,PV-FIX,AEL-EL,LOHC-CON,LOHC-REC","MAR-DAK","PV-FIX","AEL-EL","LOHC-CON","LOHC-REC",6657.5999999999995,"öko"]
["MAR-DAK,PV-FIX,PEM-EL,CH4SYN,ATR","MAR-DAK","PV-FIX","PEM-EL","CH4SYN","ATR",7008]
["MAR-DAK,PV-FIX,PEM-EL,DRI,DRI","MAR-DAK","PV-FIX","PEM-EL","DRI","DRI",7008,"öko"]
["MAR-DAK,PV-FIX,SOEC-EL,,H2-LIQ","MAR-DAK","PV-FIX","SOEC-EL",null,"H2-LIQ",2935.5066856329736,"öko"]
["MAR-DAK,PV-FIX,SOEC-EL,CH4SYN,CH4-LIQ","MAR-DAK","PV-FIX","SOEC-EL","CH4SYN","CH4-LIQ",7494.3499051874669,"PTX Atlas"]
["MAR-DAK,PV-TRK,AEL-EL,,H2-COMP","MAR-DAK","PV-TRK","AEL-EL",null,"H2-COMP",6657.5999999999995]
["MAR-DAK,PV-TRK,PEM-EL,CH4SYN,ATR","MAR-DAK","PV-TRK","PEM-EL","CH4SYN","ATR",7008]
["MAR-DAK,PV-TRK,SOEC-EL,,H2-COMP","MAR-DAK","PV-TRK","SOEC-EL",null,"H2-COMP",7008]
["MAR-DAK,RES-HYBR,AEL-EL,,H2-RGAS","MAR-DAK","RES-HYBR","AEL-EL",null,"H2-RGAS",6657.5999999999995,"öko"]
["MAR-DAK,RES-HYBR,AEL-EL,LOHC-CON,LOHC-REC","MAR-DAK","RES-HYBR","AEL-EL","LOHC-CON","LOHC-REC",6657.5999999999995,"öko"]
["MAR-DAK,RES-HYBR,PEM-EL,,H2-LIQ","MAR-DAK","RES-HYBR","PEM-EL",null,"H2-LIQ",6988.7969976496915,"öko"]
["MAR-DAK,RES-HYBR,PEM-EL,DRI,DRI","MAR-DAK","RES-HYBR","PEM-EL","DRI","DRI",7008,"öko"]
["MAR-DAK,RES-HYBR,SOEC-EL,CH3OHSYN,CH3OHREC","MAR-DAK","RES-HYBR","SOEC-EL","CH3OHSYN","CH3OHREC",7008,"öko"]
["MAR-DAK,RES-HYBR,SOEC-EL,CH4SYN,SOEC-EL","MAR-DAK","RES-HYBR","SOEC-EL","CH4SYN","SOEC-EL",6342.17431498525,"PTX Atlas"]
["MAR-DAK,WIND-OFF,AEL-EL,,AEL-EL","MAR-DAK","WIND-OFF","AEL-EL",null,"AEL-EL",5608.2219887339124,"PTX Atlas"]
["MAR-DAK,WIND-OFF,AEL-EL,EFUELSYN,EFUELSYN","MAR-DAK","WIND-OFF","AEL-EL","EFUELSYN","EFUELSYN",6056.0619763051727,"PTX Atlas"]
["MAR-DAK,WIND-OFF,AEL-EL,LOHC-CON,AEL-EL","MAR-DAK","WIND-OFF","AEL-EL","LOHC-CON","AEL-EL",5608.2219887339124,"PTX Atlas"]
["MAR-DAK,WIND-OFF,PEM-EL,CH4SYN,CH4-RGAS","MAR-DAK","WIND-OFF","PEM-EL","CH4SYN","CH4-RGAS",7008,"öko"]
["MAR-DAK,WIND-OFF,PEM-EL,EFUELSYN,EFUELSYN","MAR-DAK","WIND-OFF","PEM-EL","EFUELSYN","EFUELSYN",6374.8020803212348,"PTX Atlas"]
["MAR-DAK,WIND-OFF,SOEC-EL,,SOEC-EL","MAR-DAK","WIND-OFF","SOEC-EL",null,"SOEC-EL",5872.3061953697743,"PTX Atlas"]
["MAR-DAK,WIND-OFF,SOEC-EL,DRI,SOEC-EL","MAR-DAK","WIND-OFF","SOEC-EL","DRI","SOEC-EL",6358.6801733998027,"PTX Atlas"]
["MAR-DAK,WIND-ON,AEL-EL,,H2-LIQ","MAR-DAK","WIND-ON","AEL-EL",null,"H2-LIQ",5784.0930446112252,"öko"]
["MAR-DAK,WIND-ON,AEL-EL,DRI,DRI","MAR-DAK","WIND-ON","AEL-EL","DRI","DRI",6657.5999999999995,"öko"]
["MAR-DAK,WIND-ON,PEM-EL,CH3OHSYN,PEM-EL","MAR-DAK","WIND-ON","PEM-EL","CH3OHSYN","PEM-EL",6306.6726890609807,"PTX Atlas"]
["MAR-DAK,WIND-ON,PEM-EL,LOHC-CON,LOHC-REC","MAR-DAK","WIND-ON","PEM-EL","LOHC-CON","LOHC-REC",7008,"öko"]
["MAR-DAK,WIND-ON,SOEC-EL,,H2-COMP","MAR-DAK","WIND-ON","SOEC-EL",null,"H2-COMP",7008]
["MAR-DAK,WIND-ON,SOEC-EL,EFUELSYN,SOEC-EL","MAR-DAK","WIND-ON","SOEC-EL","EFUELSYN","SOEC-EL",6358.6801733998027,"PTX Atlas"]
["MAR-DRA,PV-FIX,AEL-EL,CH3OHSYN,AEL-EL","MAR-DRA","PV-FIX","AEL-EL","CH3OHSYN","AEL-EL",2937.0212383141816,"PTX Atlas"]
["MAR-DRA,PV-FIX,AEL-EL,CH4SYN,CH4SYN","MAR-DRA","PV-FIX","AEL-EL","CH4SYN","CH4SYN",7824.191322740422,"PTX Atlas"]
["MAR-DRA,PV-FIX,AEL-EL,NH3SYN,NH3SYN","MAR-DRA","PV-FIX","AEL-EL","NH3SYN","NH3SYN",7781.9975404641427,"PTX Atlas"]
["MAR-DRA,PV-FIX,PEM-EL,CH3OHSYN,CH3OHREC","MAR-DRA","PV-FIX","PEM-EL","CH3OHSYN","CH3OHREC",7008,"öko"]
["MAR-DRA,PV-FIX,PEM-EL,NH3SYN,NH3-REC","MAR-DRA","PV-FIX","PEM-EL","NH3SYN","NH3-REC",7008,"öko"]
["MAR-DRA,PV-FIX,SOEC-EL,CH4SYN,CH4-LIQ","MAR-DRA","PV-FIX","SOEC-EL","CH4SYN","CH4-LIQ",7679.3936787651091,"PTX Atlas"]
["MAR-DRA,PV-FIX,SOEC-EL,DRI,SOEC-EL","MAR-DRA","PV-FIX","SOEC-EL","DRI","SOEC-EL",8187.425979245917,"PTX Atlas"]
["MAR-DRA,PV-TRK,AEL-EL,LOHC-CON,LOHC-REC","MAR-DRA","PV-TRK","AEL-EL","LOHC-CON","LOHC-REC",6657.5999999999995,"öko"]
["MAR-DRA,PV-TRK,PEM-EL,NH3SYN,NH3-REC","MAR-DRA","PV-TRK","PEM-EL","NH3SYN","NH3-REC",7008,"öko"]
["MAR-DRA,PV-TRK,SOEC-EL,NH3SYN,NH3-REC","MAR-DRA","PV-TRK","SOEC-EL","NH3SYN","NH3-REC",7008,"öko"]
["MAR-DRA,RES-HYBR,AEL-EL,CH4SYN,CH4-RGAS","MAR-DRA","RES-HYBR","AEL-EL","CH4SYN","CH4-RGAS",6657.5999999999995,"öko"]
["MAR-DRA,RES-HYBR,PEM-EL,,PEM-EL","MAR-DRA","RES-HYBR","PEM-EL",null,"PEM-EL",4678.2817098353835,"PTX Atlas"]
["MAR-DRA,RES-HYBR,PEM-EL,CH4SYN,CH4-LIQ","MAR-DRA","RES-HYBR","PEM-EL","CH4SYN","CH4-LIQ",7195.2399409310683,"PTX Atlas"]
["MAR-DRA,RES-HYBR,PEM-EL,NH3SYN,NH3-REC","MAR-DRA","RES-HYBR","PEM-EL","NH3SYN","NH3-REC",7008,"öko"]
["MAR-DRA,RES-HYBR,SOEC-EL,DRI,DRI","MAR-DRA","RES-HYBR","SOEC-EL","DRI","DRI",7008,"öko"]
["MAR-DRA,RES-HYBR,SOEC-EL,DRI,SOEC-EL","MAR-DRA","RES-HYBR","SOEC-EL","DRI","SOEC-EL",6526.6050328243182,"PTX Atlas"]
["MAR-DRA,WIND-OFF,AEL-EL,CH4SYN,CH4SYN","MAR-DRA","WIND-OFF","AEL-EL","CH4SYN","CH4SYN",3147.5491697601155,"PTX Atlas"]
["MAR-DRA,WIND-OFF,AEL-EL,DRI,AEL-EL","MAR-DRA","WIND-OFF","AEL-EL","DRI","AEL-EL",1715.3958726570888,"PTX Atlas"]
["MAR-DRA,WIND-OFF,PEM-EL,,H2-LIQ","MAR-DRA","WIND-OFF","PEM-EL",null,"H2-LIQ",1686.412507142295,"öko"]
["MAR-DRA,WIND-OFF,PEM-EL,LOHC-CON,LOHC-CON","MAR-DRA","WIND-OFF","PEM-EL","LOHC-CON","LOHC-CON",1418.7677101067909,"PTX Atlas"]
["MAR-DRA,WIND-OFF,PEM-EL,NH3SYN,PEM-EL","MAR-DRA","WIND-OFF","PEM-EL","NH3SYN","PEM-EL",1739.2492788679283,"PTX Atlas"]
["MAR-DRA,WIND-OFF,SOEC-EL,CH4SYN,CH4SYN","MAR-DRA","WIND-OFF","SOEC-EL","CH4SYN","CH4SYN",2158.2217948489274,"PTX Atlas"]
["MAR-DRA,WIND-ON,AEL-EL,,H2-RGAS","MAR-DRA","WIND-ON","AEL-EL",null,"H2-RGAS",6657.5999999999995,"öko"]
["MAR-DRA,WIND-ON,AEL-EL,EFUELSYN,AEL-EL","MAR-DRA","WIND-ON","AEL-EL","EFUELSYN","AEL-EL",3946.9377070762703,"PTX Atlas"]
["MAR-DRA,WIND-ON,AEL-EL,NH3SYN,NH3-REC","MAR-DRA","WIND-ON","AEL-EL","NH3SYN","NH3-REC",6657.5999999999995,"öko"]
["MAR-DRA,WIND-ON,PEM-EL,DRI,PEM-EL","MAR-DRA","WIND-ON","PEM-EL","DRI","PEM-EL",4154.671270606601,"PTX Atlas"]
["MAR-DRA,WIND-ON,SOEC-EL,,H2-RGAS","MAR-DRA","WIND-ON","SOEC-EL",null,"H2-RGAS",7008,"öko"]
["MAR-DRA,WIND-ON,SOEC-EL,CH4SYN,ATR","MAR-DRA","WIND-ON","SOEC-EL","CH4SYN","ATR",7008]
["MAR-FES,PV-FIX,AEL-EL,,AEL-EL","MAR-FES","PV-FIX","AEL-EL",null,"AEL-EL",2729.1020377036311,"PTX Atlas"]
["MAR-FES,PV-FIX,AEL-EL,,H2-COMP","MAR-FES","PV-FIX","AEL-EL",null,"H2-COMP",6657.5999999999995]
["MAR-FES,PV-FIX,AEL-EL,LOHC-CON,AEL-EL","MAR-FES","PV-FIX","AEL-EL","LOHC-CON","AEL-EL",2729.1020377036311,"PTX Atlas"]
["MAR-FES,PV-FIX,PEM-EL,CH3OHSYN,CH3OHSYN","MAR-FES","PV-FIX","PEM-EL","CH3OHSYN","CH3OHSYN",8015.8616794946192,"PTX Atlas"]
["MAR-FES,PV-FIX,PEM-EL,LOHC-CON,PEM-EL","MAR-FES","PV-FIX","PEM-EL","LOHC-CON","PEM-EL",2872.7389870564539,"PTX Atlas"]
["MAR-FES,PV-FIX,SOEC-EL,CH3OHSYN,CH3OHREC","MAR-FES","PV-FIX","SOEC-EL","CH3OHSYN","CH3OHREC",7008,"öko"]
["MAR-FES,PV-FIX,SOEC-EL,EFUELSYN,SOEC-EL","MAR-FES","PV-FIX","SOEC-EL","EFUELSYN","SOEC-EL",7936.940672093895,"PTX Atlas"]
["MAR-FES,PV-FIX,SOEC-EL,NH3SYN,NH3SYN","MAR-FES","PV-FIX","SOEC-EL","NH3SYN","NH3SYN",4548.0703006221138,"PTX Atlas"]
["MAR-FES,PV-TRK,PEM-EL,,H2-RGAS","MAR-FES","PV-TRK","PEM-EL",null,"H2-RGAS",7008,"öko"]
["MAR-FES,RES-HYBR,AEL-EL,,AEL-EL","MAR-FES","RES-HYBR","AEL-EL",null,"AEL-EL",3591.2550700602887,"PTX Atlas"]
["MAR-FES,RES-HYBR,AEL-EL,CH3OHSYN,CH3OHREC","MAR-FES","RES-HYBR","AEL-EL","CH3OHSYN","CH3OHREC",6657.5999999999995,"öko"]
["MAR-FES,RES-HYBR,AEL-EL,LOHC-CON,AEL-EL","MAR-FES","RES-HYBR","AEL-EL","LOHC-CON","AEL-EL",3591.2550700602887,"PTX Atlas"]
["MAR-FES,RES-HYBR,PEM-EL,,PEM-EL","MAR-FES","RES-HYBR","PEM-EL",null,"PEM-EL",3780.2684948003039,"PTX Atlas"]
["MAR-FES,RES-HYBR,PEM-EL,EFUELSYN,PEM-EL","MAR-FES","RES-HYBR","PEM-EL","EFUELSYN","PEM-EL",3693.5166831944407,"PTX Atlas"]
["MAR-FES,RES-HYBR,SOEC-EL,CH3OHSYN,CH3OHREC","MAR-FES","RES-HYBR","SOEC-EL","CH3OHSYN","CH3OHREC",7008,"öko"]
["MAR-FES,RES-HYBR,SOEC-EL,CH4SYN,CH4-RGAS","MAR-FES","RES-HYBR","SOEC-EL","CH4SYN","CH4-RGAS",7008,"öko"]
["MAR-FES,RES-HYBR,SOEC-EL,NH3SYN,NH3SYN","MAR-FES","RES-HYBR","SOEC-EL","NH3SYN","NH3SYN",5146.9132236557707,"PTX Atlas"]
["MAR-FES,WIND-OFF,AEL-EL,DRI,DRI","MAR-FES","WIND-OFF","AEL-EL","DRI","DRI",6657.5999999999995,"öko"]
["MAR-FES,WIND-OFF,AEL-EL,LOHC-CON,LOHC-REC","MAR-FES","WIND-OFF","AEL-EL","LOHC-CON","LOHC-REC",6657.5999999999995,"öko"]
["MAR-FES,WIND-OFF,PEM-EL,CH4SYN,ATR","MAR-FES","WIND-OFF","PEM-EL","CH4SYN","ATR",7008]
["MAR-FES,WIND-OFF,SOEC-EL,,H2-LIQ","MAR-FES","WIND-OFF","SOEC-EL",null,"H2-LIQ",1601.7354467237706,"öko"]
["MAR-FES,WIND-OFF,SOEC-EL,DRI,DRI","MAR-FES","WIND-OFF","SOEC-EL","DRI","DRI",7008,"öko"]
["MAR-FES,WIND-OFF,SOEC-EL,LOHC-CON,LOHC-REC","MAR-FES","WIND-OFF","SOEC-EL","LOHC-CON","LOHC-REC",7008,"öko"]
["MAR-FES,WIND-ON,AEL-EL,CH4SYN,CH4-RGAS","MAR-FES","WIND-ON","AEL-EL","CH4SYN","CH4-RGAS",6657.5999999999995,"öko"]
["MAR-FES,WIND-ON,AEL-EL,NH3SYN,NH3SYN","MAR-FES","WIND-ON","AEL-EL","NH3SYN","NH3SYN",3566.7627889145087,"PTX Atlas"]
["MAR-FES,WIND-ON,PEM-EL,CH3OHSYN,CH3OHREC","MAR-FES","WIND-ON","PEM-EL","CH3OHSYN","CH3OHREC",7008,"öko"]
["MAR-FES,WIND-ON,PEM-EL,NH3SYN,NH3-REC","MAR-FES","WIND-ON","PEM-EL","NH3SYN","NH3-REC",7008,"öko"]
["MAR-FES,WIND-ON,PEM-EL,NH3SYN,NH3SYN","MAR-FES","WIND-ON","PEM-EL","NH3SYN","NH3SYN",3754.4871462257984,"PTX Atlas"]
["MAR-FES,WIND-ON,SOEC-EL,CH4SYN,CH4SYN","MAR-FES","WIND-ON","SOEC-EL","CH4SYN","CH4SYN",3815.6988321576086,"PTX Atlas"]
["MAR-GUE,PV-FIX,AEL-EL,,H2-RGAS","MAR-GUE","PV-FIX","AEL-EL",null,"H2-RGAS",6657.5999999999995,"öko"]
["MAR-GUE,PV-FIX,AEL-EL,CH4SYN,ATR","MAR-GUE","PV-FIX","AEL-EL","CH4SYN","ATR",6657.5999999999995]
["MAR-GUE,PV-FIX,PEM-EL,,H2-LIQ","MAR-GUE","PV-FIX","PEM-EL",null,"H2-LIQ",2970.9457031127395,"öko"]
["MAR-GUE,PV-FIX,PEM-EL,DRI,DRI","MAR-GUE","PV-FIX","PEM-EL","DRI","DRI",7008,"öko"]
["MAR-GUE,PV-FIX,PEM-EL,LOHC-CON,LOHC-REC","MAR-GUE","PV-FIX","PEM-EL","LOHC-CON","LOHC-REC",7008,"öko"]
["MAR-GUE,PV-FIX,SOEC-EL,CH4SYN,CH4SYN","MAR-GUE","PV-FIX","SOEC-EL","CH4SYN","CH4SYN",7563.5079850357633,"PTX Atlas"]
["MAR-GUE,PV-FIX,SOEC-EL,NH3SYN,SOEC-EL","MAR-GUE","PV-FIX","SOEC-EL","NH3SYN","SOEC-EL",4627.8656967876741,"PTX Atlas"]
["MAR-GUE,PV-TRK,PEM-EL,,H2-COMP","MAR-GUE","PV-TRK","PEM-EL",null,"H2-COMP",7008]
["MAR-GUE,PV-TRK,SOEC-EL,,H2-COMP","MAR-GUE","PV-TRK","SOEC-EL",null,"H2-COMP",7008]
["MAR-GUE,RES-HYBR,AEL-EL,CH4SYN,AEL-EL","MAR-GUE","RES-HYBR","AEL-EL","CH4SYN","AEL-EL",5023.520232710207,"PTX Atlas"]
["MAR-GUE,RES-HYBR,AEL-EL,DRI,AEL-EL","MAR-GUE","RES-HYBR","AEL-EL","DRI","AEL-EL",5112.5261457748329,"PTX Atlas"]
["MAR-GUE,RES-HYBR,PEM-EL,,H2-LIQ","MAR-GUE","RES-HYBR","PEM-EL",null,"H2-LIQ",5305.765849256848,"öko"]
["MAR-GUE,RES-HYBR,PEM-EL,CH3OHSYN,PEM-EL","MAR-GUE","RES-HYBR","PEM-EL","CH3OHSYN","PEM-EL",5410.4419483894253,"PTX Atlas"]
["MAR-GUE,RES-HYBR,PEM-EL,LOHC-CON,LOHC-REC","MAR-GUE","RES-HYBR","PEM-EL","LOHC-CON","LOHC-REC",7008,"öko"]
["MAR-GUE,RES-HYBR,SOEC-EL,CH4SYN,CH4SYN","MAR-GUE","RES-HYBR","SOEC-EL","CH4SYN","CH4SYN",6321.8039788971655,"PTX Atlas"]
["MAR-GUE,RES-HYBR,SOEC-EL,EFUELSYN,SOEC-EL","MAR-GUE","RES-HYBR","SOEC-EL","EFUELSYN","SOEC-EL",6337.0126250247831,"PTX Atlas"]
["MAR-GUE,WIND-OFF,AEL-EL,CH3OHSYN,CH3OHREC","MAR-GUE","WIND-OFF","AEL-EL","CH3OHSYN","CH3OHREC",6657.5999999999995,"öko"]
["MAR-GUE,WIND-OFF,AEL-EL,NH3SYN,NH3-REC","MAR-GUE","WIND-OFF","AEL-EL","NH3SYN","NH3-REC",6657.5999999999995,"öko"]
["MAR-GUE,WIND-OFF,PEM-EL,,PEM-EL","MAR-GUE","WIND-OFF","PEM-EL",null,"PEM-EL",5436.9242631462503,"PTX Atlas"]
["MAR-GUE,WIND-OFF,PEM-EL,EFUELSYN,EFUELSYN","MAR-GUE","WIND-OFF","PEM-EL","EFUELSYN","EFUELSYN",6055.0395395553196,"PTX Atlas"]
["MAR-GUE,WIND-OFF,SOEC-EL,CH4SYN,ATR","MAR-GUE","WIND-OFF","SOEC-EL","CH4SYN","ATR",7008]
["MAR-GUE,WIND-OFF,SOEC-EL,LOHC-CON,SOEC-EL","MAR-GUE","WIND-OFF","SOEC-EL","LOHC-CON","SOEC-EL",5401.2322884463119,"PTX Atlas"]
["MAR-GUE,WIND-ON,AEL-EL,,H2-COMP","MAR-GUE","WIND-ON","AEL-EL",null,"H2-COMP",6657.5999999999995]
["MAR-GUE,WIND-ON,AEL-EL,DRI,DRI","MAR-GUE","WIND-ON","AEL-EL","DRI","DRI",6657.5999999999995,"öko"]
["MAR-GUE,WIND-ON,AEL-EL,LOHC-CON,LOHC-REC","MAR-GUE","WIND-ON","AEL-EL","LOHC-CON","LOHC-REC",6657.5999999999995,"öko"]
["MAR-GUE,WIND-ON,PEM-EL,CH4SYN,PEM-EL","MAR-GUE","WIND-ON","PEM-EL","CH4SYN","PEM-EL",4801.1164875330414,"PTX Atlas"]
["MAR-GUE,WIND-ON,PEM-EL,LOHC-CON,LOHC-CON","MAR-GUE","WIND-ON","PEM-EL","LOHC-CON","LOHC-CON",4484.4592090584028,"PTX Atlas"]
["MAR-GUE,WIND-ON,SOEC-EL,CH3OHSYN,CH3OHSYN","MAR-GUE","WIND-ON","SOEC-EL","CH3OHSYN","CH3OHSYN",5024.3709612600214,"PTX Atlas"]
["MAR-GUE,WIND-ON,SOEC-EL,NH3SYN,NH3SYN","MAR-GUE","WIND-ON","SOEC-EL","NH3SYN","NH3SYN",4731.4001758425493,"PTX Atlas"]
["MAR-LAA,PV-FIX,AEL-EL,CH4SYN,CH4-LIQ","MAR-LAA","PV-FIX","AEL-EL","CH4SYN","CH4-LIQ",7723.4176034140655,"PTX Atlas"]
["MAR-LAA,PV-FIX,AEL-EL,LOHC-CON,LOHC-CON","MAR-LAA","PV-FIX","AEL-EL","LOHC-CON","LOHC-CON",2766.4231835869668,"PTX Atlas"]
["MAR-LAA,PV-FIX,PEM-EL,CH4SYN,CH4-LIQ","MAR-LAA","PV-FIX","PEM-EL","CH4SYN","CH4-LIQ",8129.9132667516478,"PTX Atlas"]
["MAR-LAA,PV-FIX,PEM-EL,NH3SYN,NH3-REC","MAR-LAA","PV-FIX","PEM-EL","NH3SYN","NH3-REC",7008,"öko"]
["MAR-LAA,PV-FIX,SOEC-EL,,H2-RGAS","MAR-LAA","PV-FIX","SOEC-EL",null,"H2-RGAS",7008,"öko"]
["MAR-LAA,PV-FIX,SOEC-EL,DRI,SOEC-EL","MAR-LAA","PV-FIX","SOEC-EL","DRI","SOEC-EL",8061.5863911082788,"PTX Atlas"]
["MAR-LAA,PV-TRK,AEL-EL,LOHC-CON,LOHC-REC","MAR-LAA","PV-TRK","AEL-EL","LOHC-CON","LOHC-REC",6657.5999999999995,"öko"]
["MAR-LAA,PV-TRK,PEM-EL,CH4SYN,ATR","MAR-LAA","PV-TRK","PEM-EL","CH4SYN","ATR",7008]
["MAR-LAA,PV-TRK,SOEC-EL,LOHC-CON,LOHC-REC","MAR-LAA","PV-TRK","SOEC-EL","LOHC-CON","LOHC-REC",7008,"öko"]
["MAR-LAA,RES-HYBR,AEL-EL,DRI,DRI","MAR-LAA","RES-HYBR","AEL-EL","DRI","DRI",6657.5999999999995,"öko"]
["MAR-LAA,RES-HYBR,AEL-EL,NH3SYN,AEL-EL","MAR-LAA","RES-HYBR","AEL-EL","NH3SYN","AEL-EL",6106.6662895023119,"PTX Atlas"]
["MAR-LAA,RES-HYBR,PEM-EL,CH4SYN,CH4-LIQ","MAR-LAA","RES-HYBR","PEM-EL","CH4SYN","CH4-LIQ",6534.6923159086155,"PTX Atlas"]
["MAR-LAA,RES-HYBR,PEM-EL,DRI,PEM-EL","MAR-LAA","RES-HYBR","PEM-EL","DRI","PEM-EL",6438.1735246064127,"PTX Atlas"]
["MAR-LAA,RES-HYBR,SOEC-EL,,H2-RGAS","MAR-LAA","RES-HYBR","SOEC-EL",null,"H2-RGAS",7008,"öko"]
["MAR-LAA,RES-HYBR,SOEC-EL,LOHC-CON,LOHC-REC","MAR-LAA","RES-HYBR","SOEC-EL","LOHC-CON","LOHC-REC",7008,"öko"]
["MAR-LAA,WIND-OFF,AEL-EL,,AEL-EL","MAR-LAA","WIND-OFF","AEL-EL",null,"AEL-EL",5165.0780499889379,"PTX Atlas"]
["MAR-LAA,WIND-OFF,AEL-EL,CH4SYN,CH4SYN","MAR-LAA","WIND-OFF","AEL-EL","CH4SYN","CH4SYN",5781.9150990822727,"PTX Atlas"]
["MAR-LAA,WIND-OFF,PEM-EL,,H2-COMP","MAR-LAA","WIND-OFF","PEM-EL",null,"H2-COMP",7008]
["MAR-LAA,WIND-OFF,PEM-EL,LOHC-CON,LOHC-CON","MAR-LAA","WIND-OFF","PEM-EL","LOHC-CON","LOHC-CON",5436.9242631462503,"PTX Atlas"]
["MAR-LAA,WIND-OFF,PEM-EL,NH3SYN,PEM-EL","MAR-LAA","WIND-OFF","PEM-EL","NH3SYN","PEM-EL",5630.3845052110591,"PTX Atlas"]
["MAR-LAA,WIND-OFF,SOEC-EL,EFUELSYN,EFUELSYN","MAR-LAA","WIND-OFF","SOEC-EL","EFUELSYN","EFUELSYN",5923.180626426647,"PTX Atlas"]
["MAR-LAA,WIND-OFF,SOEC-EL,EFUELSYN,SOEC-EL","MAR-LAA","WIND-OFF","SOEC-EL","EFUELSYN","SOEC-EL",5923.180626426647,"PTX Atlas"]
["MAR-LAA,WIND-ON,AEL-EL,CH4SYN,ATR","MAR-LAA","WIND-ON","AEL-EL","CH4SYN","ATR",6657.5999999999995]
["MAR-LAA,WIND-ON,AEL-EL,DRI,DRI","MAR-LAA","WIND-ON","AEL-EL","DRI","DRI",6657.5999999999995,"öko"]
["MAR-LAA,WIND-ON,PEM-EL,,H2-RGAS","MAR-LAA","WIND-ON","PEM-EL",null,"H2-RGAS",7008,"öko"]
["MAR-LAA,WIND-ON,PEM-EL,NH3SYN,NH3SYN","MAR-LAA","WIND-ON","PEM-EL","NH3SYN","NH3SYN",5661.2679756792913,"PTX Atlas"]
["MAR-LAA,WIND-ON,SOEC-EL,CH4SYN,ATR","MAR-LAA","WIND-ON","SOEC-EL","CH4SYN","ATR",7008]
["MAR-LAA,WIND-ON,SOEC-EL,DRI,DRI","MAR-LAA","WIND-ON","SOEC-EL","DRI","DRI",7008,"öko"]
["MAR-LOR,PV-FIX,AEL-EL,CH3OHSYN,CH3OHREC","MAR-LOR","PV-FIX","AEL-EL","CH3OHSYN","CH3OHREC",6657.5999999999995,"öko"]
["MAR-LOR,PV-FIX,AEL-EL,LOHC-CON,AEL-EL","MAR-LOR","PV-FIX","AEL-EL","LOHC-CON","AEL-EL",2747.4484673112224,"PTX Atlas"]
["MAR-LOR,PV-FIX,AEL-EL,NH3SYN,NH3SYN","MAR-LOR","PV-FIX","AEL-EL","NH3SYN","NH3SYN",7613.7086856102896,"PTX Atlas"]
["MAR-LOR,PV-FIX,PEM-EL,EFUELSYN,EFUELSYN","MAR-LOR","PV-FIX","PEM-EL","EFUELSYN","EFUELSYN",8064.6946911284222,"PTX Atlas"]
["MAR-LOR,PV-FIX,SOEC-EL,,SOEC-EL","MAR-LOR","PV-FIX","SOEC-EL",null,"SOEC-EL",2868.2040419508421,"PTX Atlas"]
["MAR-LOR,PV-FIX,SOEC-EL,CH4SYN,ATR","MAR-LOR","PV-FIX","SOEC-EL","CH4SYN","ATR",7008]
["MAR-LOR,PV-FIX,SOEC-EL,NH3SYN,NH3SYN","MAR-LOR","PV-FIX","SOEC-EL","NH3SYN","NH3SYN",4579.8023823557332,"PTX Atlas"]
["MAR-LOR,PV-TRK,AEL-EL,CH4SYN,ATR","MAR-LOR","PV-TRK","AEL-EL","CH4SYN","ATR",6657.5999999999995]
["MAR-LOR,PV-TRK,SOEC-EL,CH3OHSYN,CH3OHREC","MAR-LOR","PV-TRK","SOEC-EL","CH3OHSYN","CH3OHREC",7008,"öko"]
["MAR-LOR,RES-HYBR,AEL-EL,CH3OHSYN,CH3OHREC","MAR-LOR","RES-HYBR","AEL-EL","CH3OHSYN","CH3OHREC",6657.5999999999995,"öko"]
["MAR-LOR,RES-HYBR,AEL-EL,CH4SYN,CH4-RGAS","MAR-LOR","RES-HYBR","AEL-EL","CH4SYN","CH4-RGAS",6657.5999999999995,"öko"]
["MAR-LOR,RES-HYBR,AEL-EL,NH3SYN,NH3SYN","MAR-LOR","RES-HYBR","AEL-EL","NH3SYN","NH3SYN",6293.9897847011434,"PTX Atlas"]
["MAR-LOR,RES-HYBR,PEM-EL,EFUELSYN,EFUELSYN","MAR-LOR","RES-HYBR","PEM-EL","EFUELSYN","EFUELSYN",6993.8602684348734,"PTX Atlas"]
["MAR-LOR,RES-HYBR,SOEC-EL,,SOEC-EL","MAR-LOR","RES-HYBR","SOEC-EL",null,"SOEC-EL",4957.3785903247226,"PTX Atlas"]
["MAR-LOR,RES-HYBR,SOEC-EL,CH4SYN,CH4-RGAS","MAR-LOR","RES-HYBR","SOEC-EL","CH4SYN","CH4-RGAS",7008,"öko"]
["MAR-LOR,WIND-OFF,AEL-EL,,H2-LIQ","MAR-LOR","WIND-OFF","AEL-EL",null,"H2-LIQ",5349.1029830770331,"öko"]
["MAR-LOR,WIND-OFF,AEL-EL,CH4SYN,AEL-EL","MAR-LOR","WIND-OFF","AEL-EL","CH4SYN","AEL-EL",5466.1566248807221,"PTX Atlas"]
["MAR-LOR,WIND-OFF,AEL-EL,LOHC-CON,LOHC-REC","MAR-LOR","WIND-OFF","AEL-EL","LOHC-CON","LOHC-REC",6657.5999999999995,"öko"]
["MAR-LOR,WIND-OFF,PEM-EL,CH4SYN,PEM-EL","MAR-LOR","WIND-OFF","PEM-EL","CH4SYN","PEM-EL",5753.8490788218132,"PTX Atlas"]
["MAR-LOR,WIND-OFF,PEM-EL,DRI,DRI","MAR-LOR","WIND-OFF","PEM-EL","DRI","DRI",7008,"öko"]
["MAR-LOR,WIND-OFF,SOEC-EL,CH3OHSYN,CH3OHSYN","MAR-LOR","WIND-OFF","SOEC-EL","CH3OHSYN","CH3OHSYN",5914.3845568915858,"PTX Atlas"]
["MAR-LOR,WIND-OFF,SOEC-EL,DRI,DRI","MAR-LOR","WIND-OFF","SOEC-EL","DRI","DRI",7008,"öko"]
["MAR-LOR,WIND-ON,AEL-EL,,AEL-EL","MAR-LOR","WIND-ON","AEL-EL",null,"AEL-EL",4078.1606275425838,"PTX Atlas"]
["MAR-LOR,WIND-ON,AEL-EL,EFUELSYN,EFUELSYN","MAR-LOR","WIND-ON","AEL-EL","EFUELSYN","EFUELSYN",5007.2075244547914,"PTX Atlas"]
["MAR-LOR,WIND-ON,AEL-EL,NH3SYN,NH3-REC","MAR-LOR","WIND-ON","AEL-EL","NH3SYN","NH3-REC",6657.5999999999995,"öko"]
["MAR-LOR,WIND-ON,PEM-EL,CH4SYN,CH4-RGAS","MAR-LOR","WIND-ON","PEM-EL","CH4SYN","CH4-RGAS",7008,"öko"]
["MAR-LOR,WIND-ON,SOEC-EL,,H2-RGAS","MAR-LOR","WIND-ON","SOEC-EL",null,"H2-RGAS",7008,"öko"]
["MAR-LOR,WIND-ON,SOEC-EL,DRI,SOEC-EL","MAR-LOR","WIND-ON","SOEC-EL","DRI","SOEC-EL",4855.0129190826328,"PTX Atlas"]
["MAR-LOR,WIND-ON,SOEC-EL,LOHC-CON,SOEC-EL","MAR-LOR","WIND-ON","SOEC-EL","LOHC-CON","SOEC-EL",4245.8098806727412,"PTX Atlas"]
["MAR-MAR,PV-FIX,AEL-EL,CH4SYN,CH4-RGAS","MAR-MAR","PV-FIX","AEL-EL","CH4SYN","CH4-RGAS",6657.5999999999995,"öko"]
["MAR-MAR,PV-FIX,PEM-EL,,H2-LIQ","MAR-MAR","PV-FIX","PEM-EL",null,"H2-LIQ",2957.5309084835535,"öko"]
["MAR-MAR,PV-FIX,PEM-EL,CH3OHSYN,PEM-EL","MAR-MAR","PV-FIX","PEM-EL","CH3OHSYN","PEM-EL",3046.7463726540327,"PTX Atlas"]
["MAR-MAR,PV-FIX,PEM-EL,LOHC-CON,LOHC-REC","MAR-MAR","PV-FIX","PEM-EL","LOHC-CON","LOHC-REC",7008,"öko"]
["MAR-MAR,PV-FIX,SOEC-EL,,H2-COMP","MAR-MAR","PV-FIX","SOEC-EL",null,"H2-COMP",7008]
["MAR-MAR,PV-FIX,SOEC-EL,EFUELSYN,SOEC-EL","MAR-MAR","PV-FIX","SOEC-EL","EFUELSYN","SOEC-EL",8044.9723703827058,"PTX Atlas"]
["MAR-MAR,PV-TRK,AEL-EL,CH4SYN,CH4-RGAS","MAR-MAR","PV-TRK","AEL-EL","CH4SYN","CH4-RGAS",6657.5999999999995,"öko"]
["MAR-MAR,PV-TRK,PEM-EL,,H2-RGAS","MAR-MAR","PV-TRK","PEM-EL",null,"H2-RGAS",7008,"öko"]
["MAR-MAR,PV-TRK,SOEC-EL,CH4SYN,ATR","MAR-MAR","PV-TRK","SOEC-EL","CH4SYN","ATR",7008]
["MAR-MAR,RES-HYBR,AEL-EL,DRI,AEL-EL","MAR-MAR","RES-HYBR","AEL-EL","DRI","AEL-EL",3395.7118969829239,"PTX Atlas"]
["MAR-MAR,RES-HYBR,AEL-EL,LOHC-CON,LOHC-CON","MAR-MAR","RES-HYBR","AEL-EL","LOHC-CON","LOHC-CON",3455.625208920319,"PTX Atlas"]
["MAR-MAR,RES-HYBR,PEM-EL,CH3OHSYN,PEM-EL","MAR-MAR","RES-HYBR","PEM-EL","CH3OHSYN","PEM-EL",3574.4335757714989,"PTX Atlas"]
["MAR-MAR,RES-HYBR,PEM-EL,NH3SYN,PEM-EL","MAR-MAR","RES-HYBR","PEM-EL","NH3SYN","PEM-EL",3574.4335757714989,"PTX Atlas"]
["MAR-MAR,RES-HYBR,SOEC-EL,CH3OHSYN,CH3OHREC","MAR-MAR","RES-HYBR","SOEC-EL","CH3OHSYN","CH3OHREC",7008,"öko"]
["MAR-MAR,RES-HYBR,SOEC-EL,EFUELSYN,SOEC-EL","MAR-MAR","RES-HYBR","SOEC-EL","EFUELSYN","SOEC-EL",6814.0285456282118,"PTX Atlas"]
["MAR-MAR,WIND-OFF,AEL-EL,CH4SYN,ATR","MAR-MAR","WIND-OFF","AEL-EL","CH4SYN","ATR",6657.5999999999995]
["MAR-MAR,WIND-OFF,AEL-EL,NH3SYN,AEL-EL","MAR-MAR","WIND-OFF","AEL-EL","NH3SYN","AEL-EL",5348.8652799505062,"PTX Atlas"]
["MAR-MAR,WIND-OFF,PEM-EL,,PEM-EL","MAR-MAR","WIND-OFF","PEM-EL",null,"PEM-EL",5436.9242631462503,"PTX Atlas"]
["MAR-MAR,WIND-OFF,PEM-EL,CH4SYN,CH4-LIQ","MAR-MAR","WIND-OFF","PEM-EL","CH4SYN","CH4-LIQ",6086.226420086603,"PTX Atlas"]
["MAR-MAR,WIND-OFF,PEM-EL,NH3SYN,NH3-REC","MAR-MAR","WIND-OFF","PEM-EL","NH3SYN","NH3-REC",7008,"öko"]
["MAR-MAR,WIND-OFF,SOEC-EL,DRI,DRI","MAR-MAR","WIND-OFF","SOEC-EL","DRI","DRI",7008,"öko"]
["MAR-MAR,WIND-OFF,SOEC-EL,LOHC-CON,LOHC-REC","MAR-MAR","WIND-OFF","SOEC-EL","LOHC-CON","LOHC-REC",7008,"öko"]
["MAR-MAR,WIND-ON,AEL-EL,CH3OHSYN,CH3OHSYN","MAR-MAR","WIND-ON","AEL-EL","CH3OHSYN","CH3OHSYN",4201.4922342859354,"PTX Atlas"]
["MAR-MAR,WIND-ON,AEL-EL,NH3SYN,NH3SYN","MAR-MAR","WIND-ON","AEL-EL","NH3SYN","NH3SYN",3404.5491795271473,"PTX Atlas"]
["MAR-MAR,WIND-ON,PEM-EL,CH3OHSYN,PEM-EL","MAR-MAR","WIND-ON","PEM-EL","CH3OHSYN","PEM-EL",3403.3950611787013,"PTX Atlas"]
["MAR-MAR,WIND-ON,PEM-EL,LOHC-CON,LOHC-CON","MAR-MAR","WIND-ON","PEM-EL","LOHC-CON","LOHC-CON",2994.2802791739205,"PTX Atlas"]
["MAR-MAR,WIND-ON,SOEC-EL,CH4SYN,CH4-RGAS","MAR-MAR","WIND-ON","SOEC-EL","CH4SYN","CH4-RGAS",7008,"öko"]
["MAR-MAR,WIND-ON,SOEC-EL,NH3SYN,NH3SYN","MAR-MAR","WIND-ON","SOEC-EL","NH3SYN","NH3SYN",3313.0476497894715,"PTX Atlas"]
["MAR-RAB,PV-FIX,AEL-EL,,H2-RGAS","MAR-RAB","PV-FIX","AEL-EL",null,"H2-RGAS",6657.5999999999995,"öko"]
["MAR-RAB,PV-FIX,AEL-EL,LOHC-CON,LOHC-REC","MAR-RAB","PV-FIX","AEL-EL","LOHC-CON","LOHC-REC",6657.5999999999995,"öko"]
["MAR-RAB,PV-FIX,AEL-EL,NH3SYN,AEL-EL","MAR-RAB","PV-FIX","AEL-EL","NH3SYN","AEL-EL",2710.6658839703364,"PTX Atlas"]
["MAR-RAB,PV-FIX,PEM-EL,LOHC-CON,LOHC-REC","MAR-RAB","PV-FIX","PEM-EL","LOHC-CON","LOHC-REC",7008,"öko"]
["MAR-RAB,PV-FIX,SOEC-EL,,H2-RGAS","MAR-RAB","PV-FIX","SOEC-EL",null,"H2-RGAS",7008,"öko"]
["MAR-RAB,PV-FIX,SOEC-EL,CH4SYN,ATR","MAR-RAB","PV-FIX","SOEC-EL","CH4SYN","ATR",7008]
["MAR-RAB,PV-TRK,AEL-EL,,H2-COMP","MAR-RAB","PV-TRK","AEL-EL",null,"H2-COMP",6657.5999999999995]
["MAR-RAB,PV-TRK,PEM-EL,CH4SYN,ATR","MAR-RAB","PV-TRK","PEM-EL","CH4SYN","ATR",7008]
["MAR-RAB,PV-TRK,SOEC-EL,,H2-COMP","MAR-RAB","PV-TRK","SOEC-EL",null,"H2-COMP",7008]
["MAR-RAB,RES-HYBR,AEL-EL,,H2-RGAS","MAR-RAB","RES-HYBR","AEL-EL",null,"H2-RGAS",6657.5999999999995,"öko"]
["MAR-RAB,RES-HYBR,AEL-EL,LOHC-CON,LOHC-REC","MAR-RAB","RES-HYBR","AEL-EL","LOHC-CON","LOHC-REC",6657.5999999999995,"öko"]
["MAR-RAB,RES-HYBR,PEM-EL,,H2-RGAS","MAR-RAB","RES-HYBR","PEM-EL",null,"H2-RGAS",7008,"öko"]
["MAR-RAB,RES-HYBR,PEM-EL,DRI,PEM-EL","MAR-RAB","RES-HYBR","PEM-EL","DRI","PEM-EL",3447.3598533759482,"PTX Atlas"]
["MAR-RAB,RES-HYBR,SOEC-EL,CH3OHSYN,SOEC-EL","MAR-RAB","RES-HYBR","SOEC-EL","CH3OHSYN","SOEC-EL",6726.3547937061358,"PTX Atlas"]
["MAR-RAB,RES-HYBR,SOEC-EL,CH4SYN,SOEC-EL","MAR-RAB","RES-HYBR","SOEC-EL","CH4SYN","SOEC-EL",6672.0631989521553,"PTX Atlas"]
["MAR-RAB,WIND-OFF,AEL-EL,,AEL-EL","MAR-RAB","WIND-OFF","AEL-EL",null,"AEL-EL",5165.0780499889379,"PTX Atlas"]
["MAR-RAB,WIND-OFF,AEL-EL,CH3OHSYN,CH3OHREC","MAR-RAB","WIND-OFF","AEL-EL","CH3OHSYN","CH3OHREC",6657.5999999999995,"öko"]
["MAR-RAB,WIND-OFF,AEL-EL,LOHC-CON,AEL-EL","MAR-RAB","WIND-OFF","AEL-EL","LOHC-CON","AEL-EL",5165.0780499889379,"PTX Atlas"]
["MAR-RAB,WIND-OFF,PEM-EL,CH4SYN,CH4-RGAS","MAR-RAB","WIND-OFF","PEM-EL","CH4SYN","CH4-RGAS",7008,"öko"]
["MAR-RAB,WIND-OFF,SOEC-EL,,H2-COMP","MAR-RAB","WIND-OFF","SOEC-EL",null,"H2-COMP",7008]
["MAR-RAB,WIND-OFF,SOEC-EL,CH3OHSYN,CH3OHREC","MAR-RAB","WIND-OFF","SOEC-EL","CH3OHSYN","CH3OHREC",7008,"öko"]
["MAR-RAB,WIND-OFF,SOEC-EL,NH3SYN,NH3-REC","MAR-RAB","WIND-OFF","SOEC-EL","NH3SYN","NH3-REC",7008,"öko"]
["MAR-RAB,WIND-ON,AEL-EL,CH4SYN,ATR","MAR-RAB","WIND-ON","AEL-EL","CH4SYN","ATR",6657.5999999999995]
["MAR-RAB,WIND-ON,AEL-EL,DRI,DRI","MAR-RAB","WIND-ON","AEL-EL","DRI","DRI",6657.5999999999995,"öko"]
["MAR-RAB,WIND-ON,PEM-EL,CH3OHSYN,PEM-EL","MAR-RAB","WIND-ON","PEM-EL","CH3OHSYN","PEM-EL",3408.2387953176876,"PTX Atlas"]
["MAR-RAB,WIND-ON,PEM-EL,LOHC-CON,LOHC-REC","MAR-RAB","WIND-ON","PEM-EL","LOHC-CON","LOHC-REC",7008,"öko"]
["MAR-RAB,WIND-ON,SOEC-EL,,H2-COMP","MAR-RAB","WIND-ON","SOEC-EL",null,"H2-COMP",7008]
["MAR-RAB,WIND-ON,SOEC-EL,CH4SYN,CH4-RGAS","MAR-RAB","WIND-ON","SOEC-EL","CH4SYN","CH4-RGAS",7008,"öko"]
["MAR-RAB,WIND-ON,SOEC-EL,LOHC-CON,LOHC-REC","MAR-RAB","WIND-ON","SOEC-EL","LOHC-CON","LOHC-REC",7008,"öko"]
["MAR-SOU,PV-FIX,AEL-EL,CH4SYN,CH4-RGAS","MAR-SOU","PV-FIX","AEL-EL","CH4SYN","CH4-RGAS",6657.5999999999995,"öko"]
["MAR-SOU,PV-FIX,AEL-EL,NH3SYN,NH3SYN","MAR-SOU","PV-FIX","AEL-EL","NH3SYN","NH3SYN",7769.4940301728675,"PTX Atlas"]
["MAR-SOU,PV-FIX,PEM-EL,CH3OHSYN,CH3OHREC","MAR-SOU","PV-FIX","PEM-EL","CH3OHSYN","CH3OHREC",7008,"öko"]
["MAR-SOU,PV-FIX,PEM-EL,NH3SYN,NH3-REC","MAR-SOU","PV-FIX","PEM-EL","NH3SYN","NH3-REC",7008,"öko"]
["MAR-SOU,PV-FIX,SOEC-EL,CH4SYN,CH4-LIQ","MAR-SOU","PV-FIX","SOEC-EL","CH4SYN","CH4-LIQ",7662.4945456717678,"PTX Atlas"]
["MAR-SOU,PV-FIX,SOEC-EL,DRI,SOEC-EL","MAR-SOU","PV-FIX","SOEC-EL","DRI","SOEC-EL",8173.3679506088929,"PTX Atlas"]
["MAR-SOU,PV-TRK,AEL-EL,NH3SYN,NH3-REC","MAR-SOU","PV-TRK","AEL-EL","NH3SYN","NH3-REC",6657.5999999999995,"öko"]
["MAR-SOU,PV-TRK,SOEC-EL,CH3OHSYN,CH3OHREC","MAR-SOU","PV-TRK","SOEC-EL","CH3OHSYN","CH3OHREC",7008,"öko"]
["MAR-SOU,PV-TRK,SOEC-EL,NH3SYN,NH3-REC","MAR-SOU","PV-TRK","SOEC-EL","NH3SYN","NH3-REC",7008,"öko"]
["MAR-SOU,RES-HYBR,AEL-EL,CH4SYN,CH4-RGAS","MAR-SOU","RES-HYBR","AEL-EL","CH4SYN","CH4-RGAS",6657.5999999999995,"öko"]
["MAR-SOU,RES-HYBR,PEM-EL,,PEM-EL","MAR-SOU","RES-HYBR","PEM-EL",null,"PEM-EL",4722.2981074634345,"PTX Atlas"]
["MAR-SOU,RES-HYBR,PEM-EL,CH4SYN,CH4-LIQ","MAR-SOU","RES-HYBR","PEM-EL","CH4SYN","CH4-LIQ",7177.675079257664,"PTX Atlas"]
["MAR-SOU,RES-HYBR,PEM-EL,NH3SYN,NH3-REC","MAR-SOU","RES-HYBR","PEM-EL","NH3SYN","NH3-REC",7008,"öko"]
["MAR-SOU,RES-HYBR,SOEC-EL,,H2-RGAS","MAR-SOU","RES-HYBR","SOEC-EL",null,"H2-RGAS",7008,"öko"]
["MAR-SOU,RES-HYBR,SOEC-EL,LOHC-CON,SOEC-EL","MAR-SOU","RES-HYBR","SOEC-EL","LOHC-CON","SOEC-EL",4567.3397023235866,"PTX Atlas"]
["MAR-SOU,WIND-OFF,AEL-EL,CH4SYN,AEL-EL","MAR-SOU","WIND-OFF","AEL-EL","CH4SYN","AEL-EL",5466.1566248807221,"PTX Atlas"]
["MAR-SOU,WIND-OFF,AEL-EL,DRI,AEL-EL","MAR-SOU","WIND-OFF","AEL-EL","DRI","AEL-EL",5518.7212779383563,"PTX Atlas"]
["MAR-SOU,WIND-OFF,PEM-EL,,H2-LIQ","MAR-SOU","WIND-OFF","PEM-EL",null,"H2-LIQ",5630.6347190284559,"öko"]
["MAR-SOU,WIND-OFF,PEM-EL,LOHC-CON,LOHC-CON","MAR-SOU","WIND-OFF","PEM-EL","LOHC-CON","LOHC-CON",5436.9242631462503,"PTX Atlas"]
["MAR-SOU,WIND-OFF,PEM-EL,NH3SYN,PEM-EL","MAR-SOU","WIND-OFF","PEM-EL","NH3SYN","PEM-EL",5630.3845052110591,"PTX Atlas"]
["MAR-SOU,WIND-OFF,SOEC-EL,CH4SYN,CH4SYN","MAR-SOU","WIND-OFF","SOEC-EL","CH4SYN","CH4SYN",5911.5595725307703,"PTX Atlas"]
["MAR-SOU,WIND-ON,AEL-EL,,H2-RGAS","MAR-SOU","WIND-ON","AEL-EL",null,"H2-RGAS",6657.5999999999995,"öko"]
["MAR-SOU,WIND-ON,AEL-EL,CH3OHSYN,CH3OHREC","MAR-SOU","WIND-ON","AEL-EL","CH3OHSYN","CH3OHREC",6657.5999999999995,"öko"]
["MAR-SOU,WIND-ON,AEL-EL,NH3SYN,NH3-REC","MAR-SOU","WIND-ON","AEL-EL","NH3SYN","NH3-REC",6657.5999999999995,"öko"]
["MAR-SOU,WIND-ON,PEM-EL,DRI,PEM-EL","MAR-SOU","WIND-ON","PEM-EL","DRI","PEM-EL",4219.707835731534,"PTX Atlas"]
["MAR-SOU,WIND-ON,PEM-EL,EFUELSYN,EFUELSYN","MAR-SOU","WIND-ON","PEM-EL","EFUELSYN","EFUELSYN",4961.4701156668598,"PTX Atlas"]
["MAR-SOU,WIND-ON,SOEC-EL,CH4SYN,ATR","MAR-SOU","WIND-ON","SOEC-EL","CH4SYN","ATR",7008]
["MAR-SOU,WIND-ON,SOEC-EL,DRI,DRI","MAR-SOU","WIND-ON","SOEC-EL","DRI","DRI",7008,"öko"]
["MAR-TAN,PV-FIX,AEL-EL,,H2-COMP","MAR-TAN","PV-FIX","AEL-EL",null,"H2-COMP",6657.5999999999995]
["MAR-TAN,PV-FIX,AEL-EL,LOHC-CON,AEL-EL","MAR-TAN","PV-FIX","AEL-EL","LOHC-CON","AEL-EL",2692.877934486648,"PTX Atlas"]
["MAR-TAN,PV-FIX,PEM-EL,,PEM-EL","MAR-TAN","PV-FIX","PEM-EL",null,"PEM-EL",2834.6083520912084,"PTX Atlas"]
["MAR-TAN,PV-FIX,PEM-EL,CH4SYN,PEM-EL","MAR-TAN","PV-FIX","PEM-EL","CH4SYN","PEM-EL",2929.2229858420037,"PTX Atlas"]
["MAR-TAN,PV-FIX,SOEC-EL,CH3OHSYN,CH3OHREC","MAR-TAN","PV-FIX","SOEC-EL","CH3OHSYN","CH3OHREC",7008,"öko"]
["MAR-TAN,PV-FIX,SOEC-EL,EFUELSYN,SOEC-EL","MAR-TAN","PV-FIX","SOEC-EL","EFUELSYN","SOEC-EL",7815.9588725198337,"PTX Atlas"]
["MAR-TAN,PV-FIX,SOEC-EL,NH3SYN,NH3SYN","MAR-TAN","PV-FIX","SOEC-EL","NH3SYN","NH3SYN",4485.4169000098918,"PTX Atlas"]
["MAR-TAN,PV-TRK,PEM-EL,,H2-RGAS","MAR-TAN","PV-TRK","PEM-EL",null,"H2-RGAS",7008,"öko"]
["MAR-TAN,RES-HYBR,AEL-EL,,AEL-EL","MAR-TAN","RES-HYBR","AEL-EL",null,"AEL-EL",4513.6170843286664,"PTX Atlas"]
["MAR-TAN,RES-HYBR,AEL-EL,CH3OHSYN,CH3OHREC","MAR-TAN","RES-HYBR","AEL-EL","CH3OHSYN","CH3OHREC",6657.5999999999995,"öko"]
["MAR-TAN,RES-HYBR,AEL-EL,NH3SYN,NH3SYN","MAR-TAN","RES-HYBR","AEL-EL","NH3SYN","NH3SYN",6457.5970648157418,"PTX Atlas"]
["MAR-TAN,RES-HYBR,PEM-EL,,H2-COMP","MAR-TAN","RES-HYBR","PEM-EL",null,"H2-COMP",7008]
["MAR-TAN,RES-HYBR,PEM-EL,EFUELSYN,PEM-EL","MAR-TAN","RES-HYBR","PEM-EL","EFUELSYN","PEM-EL",4712.3547231949169,"PTX Atlas"]
["MAR-TAN,RES-HYBR,SOEC-EL,CH3OHSYN,CH3OHREC","MAR-TAN","RES-HYBR","SOEC-EL","CH3OHSYN","CH3OHREC",7008,"öko"]
["MAR-TAN,RES-HYBR,SOEC-EL,CH4SYN,CH4-RGAS","MAR-TAN","RES-HYBR","SOEC-EL","CH4SYN","CH4-RGAS",7008,"öko"]
["MAR-TAN,RES-HYBR,SOEC-EL,NH3SYN,NH3SYN","MAR-TAN","RES-HYBR","SOEC-EL","NH3SYN","NH3SYN",5633.8170056928293,"PTX Atlas"]
["MAR-TAN,WIND-OFF,AEL-EL,DRI,DRI","MAR-TAN","WIND-OFF","AEL-EL","DRI","DRI",6657.5999999999995,"öko"]
["MAR-TAN,WIND-OFF,AEL-EL,LOHC-CON,LOHC-REC","MAR-TAN","WIND-OFF","AEL-EL","LOHC-CON","LOHC-REC",6657.5999999999995,"öko"]
["MAR-TAN,WIND-OFF,PEM-EL,CH4SYN,CH4-LIQ","MAR-TAN","WIND-OFF","PEM-EL","CH4SYN","CH4-LIQ",6086.226420086603,"PTX Atlas"]
["MAR-TAN,WIND-OFF,SOEC-EL,,H2-LIQ","MAR-TAN","WIND-OFF","SOEC-EL",null,"H2-LIQ",5587.6986156205376,"öko"]
["MAR-TAN,WIND-OFF,SOEC-EL,DRI,DRI","MAR-TAN","WIND-OFF","SOEC-EL","DRI","DRI",7008,"öko"]
["MAR-TAN,WIND-OFF,SOEC-EL,LOHC-CON,LOHC-REC","MAR-TAN","WIND-OFF","SOEC-EL","LOHC-CON","LOHC-REC",7008,"öko"]
["MAR-TAN,WIND-ON,AEL-EL,CH4SYN,CH4-RGAS","MAR-TAN","WIND-ON","AEL-EL","CH4SYN","CH4-RGAS",6657.5999999999995,"öko"]
["MAR-TAN,WIND-ON,AEL-EL,CH4SYN,CH4SYN","MAR-TAN","WIND-ON","AEL-EL","CH4SYN","CH4SYN",4838.0978677103894,"PTX Atlas"]
["MAR-TAN,WIND-ON,PEM-EL,CH3OHSYN,CH3OHREC","MAR-TAN","WIND-ON","PEM-EL","CH3OHSYN","CH3OHREC",7008,"öko"]
["MAR-TAN,WIND-ON,PEM-EL,NH3SYN,NH3-REC","MAR-TAN","WIND-ON","PEM-EL","NH3SYN","NH3-REC",7008,"öko"]
["MAR-TAN,WIND-ON,PEM-EL,NH3SYN,PEM-EL","MAR-TAN","WIND-ON","PEM-EL","NH3SYN","PEM-EL",4236.3031305078312,"PTX Atlas"]
["MAR-TAN,WIND-ON,SOEC-EL,EFUELSYN,EFUELSYN","MAR-TAN","WIND-ON","SOEC-EL","EFUELSYN","EFUELSYN",4579.1624133987571,"PTX Atlas"]
["MEX,PV-FIX,AEL-EL,,H2-RGAS","MEX","PV-FIX","AEL-EL",null,"H2-RGAS",6657.5999999999995,"öko"]
["MEX,PV-FIX,AEL-EL,CH4SYN,ATR","MEX","PV-FIX","AEL-EL","CH4SYN","ATR",6657.5999999999995]
["MEX,PV-FIX,PEM-EL,,H2-LIQ","MEX","PV-FIX","PEM-EL",null,"H2-LIQ",2966.5,"öko"]
["MEX,PV-FIX,PEM-EL,DRI,DRI","MEX","PV-FIX","PEM-EL","DRI","DRI",7008,"öko"]
["MEX,PV-FIX,PEM-EL,LOHC-CON,LOHC-REC","MEX","PV-FIX","PEM-EL","LOHC-CON","LOHC-REC",7008,"öko"]
["MEX,PV-FIX,SOEC-EL,CH3OHSYN,SOEC-EL","MEX","PV-FIX","SOEC-EL","CH3OHSYN","SOEC-EL",7782,"PTX Atlas"]
["MEX,PV-TRK,AEL-EL,,H2-COMP","MEX","PV-TRK","AEL-EL",null,"H2-COMP",6657.5999999999995]
["MEX,PV-TRK,AEL-EL,DRI,DRI","MEX","PV-TRK","AEL-EL","DRI","DRI",6657.5999999999995,"öko"]
["MEX,PV-TRK,SOEC-EL,,H2-COMP","MEX","PV-TRK","SOEC-EL",null,"H2-COMP",7008]
["MEX,PV-TRK,SOEC-EL,DRI,DRI","MEX","PV-TRK","SOEC-EL","DRI","DRI",7008,"öko"]
["MEX,RES-HYBR,AEL-EL,DRI,AEL-EL","MEX","RES-HYBR","AEL-EL","DRI","AEL-EL",3955.8,"PTX Atlas"]
["MEX,RES-HYBR,PEM-EL,,H2-LIQ","MEX","RES-HYBR","PEM-EL",null,"H2-LIQ",4123,"öko"]
["MEX,RES-HYBR,PEM-EL,CH3OHSYN,PEM-EL","MEX","RES-HYBR","PEM-EL","CH3OHSYN","PEM-EL",4186,"PTX Atlas"]
["MEX,RES-HYBR,PEM-EL,LOHC-CON,LOHC-REC","MEX","RES-HYBR","PEM-EL","LOHC-CON","LOHC-REC",7008,"öko"]
["MEX,RES-HYBR,SOEC-EL,CH4SYN,SOEC-EL","MEX","RES-HYBR","SOEC-EL","CH4SYN","SOEC-EL",6362,"PTX Atlas"]
["MEX,RES-HYBR,SOEC-EL,LOHC-CON,LOHC-CON","MEX","RES-HYBR","SOEC-EL","LOHC-CON","LOHC-CON",4092,"PTX Atlas"]
["MEX,WIND-OFF,AEL-EL,CH3OHSYN,CH3OHREC","MEX","WIND-OFF","AEL-EL","CH3OHSYN","CH3OHREC",6657.5999999999995,"öko"]
["MEX,WIND-OFF,AEL-EL,NH3SYN,NH3-REC","MEX","WIND-OFF","AEL-EL","NH3SYN","NH3-REC",6657.5999999999995,"öko"]
["MEX,WIND-OFF,PEM-EL,,PEM-EL","MEX","WIND-OFF","PEM-EL",null,"PEM-EL",5026,"PTX Atlas"]
["MEX,WIND-OFF,PEM-EL,EFUELSYN,EFUELSYN","MEX","WIND-OFF","PEM-EL","EFUELSYN","EFUELSYN",5772,"PTX Atlas"]
["MEX,WIND-OFF,SOEC-EL,CH4SYN,ATR","MEX","WIND-OFF","SOEC-EL","CH4SYN","ATR",7008]
["MEX,WIND-OFF,SOEC-EL,EFUELSYN,SOEC-EL","MEX","WIND-OFF","SOEC-EL","EFUELSYN","SOEC-EL",5606,"PTX Atlas"]
["MEX,WIND-ON,AEL-EL,,H2-LIQ","MEX","WIND-ON","AEL-EL",null,"H2-LIQ",5098.6499999999996,"öko"]
["MEX,WIND-ON,AEL-EL,CH4SYN,AEL-EL","MEX","WIND-ON","AEL-EL","CH4SYN","AEL-EL",5159.45,"PTX Atlas"]
["MEX,WIND-ON,AEL-EL,LOHC-CON,LOHC-REC","MEX","WIND-ON","AEL-EL","LOHC-CON","LOHC-REC",6657.5999999999995,"öko"]
["MEX,WIND-ON,PEM-EL,CH4SYN,PEM-EL","MEX","WIND-ON","PEM-EL","CH4SYN","PEM-EL",5431,"PTX Atlas"]
["MEX,WIND-ON,SOEC-EL,,H2-COMP","MEX","WIND-ON","SOEC-EL",null,"H2-COMP",7008]
["MEX,WIND-ON,SOEC-EL,CH3OHSYN,CH3OHSYN","MEX","WIND-ON","SOEC-EL","CH3OHSYN","CH3OHSYN",5590,"PTX Atlas"]
["MEX,WIND-ON,SOEC-EL,NH3SYN,NH3SYN","MEX","WIND-ON","SOEC-EL","NH3SYN","NH3SYN",5331,"PTX Atlas"]
["MRT,PV-FIX,AEL-EL,,H2-LIQ","MRT","PV-FIX","AEL-EL",null,"H2-LIQ",6528.4,"öko"]
["MRT,PV-FIX,AEL-EL,EFUELSYN,EFUELSYN","MRT","PV-FIX","AEL-EL","EFUELSYN","EFUELSYN",6811.5,"PTX Atlas"]
["MRT,PV-FIX,PEM-EL,CH4SYN,CH4-LIQ","MRT","PV-FIX","PEM-EL","CH4SYN","CH4-LIQ",7166,"PTX Atlas"]
["MRT,PV-FIX,PEM-EL,NH3SYN,NH3-REC","MRT","PV-FIX","PEM-EL","NH3SYN","NH3-REC",7008,"öko"]
["MRT,PV-FIX,SOEC-EL,,H2-RGAS","MRT","PV-FIX","SOEC-EL",null,"H2-RGAS",7008,"öko"]
["MRT,PV-FIX,SOEC-EL,DRI,SOEC-EL","MRT","PV-FIX","SOEC-EL","DRI","SOEC-EL",7169,"PTX Atlas"]
["MRT,PV-FIX,SOEC-EL,LOHC-CON,SOEC-EL","MRT","PV-FIX","SOEC-EL","LOHC-CON","SOEC-EL",6623,"PTX Atlas"]
["MRT,PV-TRK,PEM-EL,CH4SYN,ATR","MRT","PV-TRK","PEM-EL","CH4SYN","ATR",7008]
["MRT,PV-TRK,SOEC-EL,LOHC-CON,LOHC-REC","MRT","PV-TRK","SOEC-EL","LOHC-CON","LOHC-REC",7008,"öko"]
["MRT,RES-HYBR,AEL-EL,CH3OHSYN,AEL-EL","MRT","RES-HYBR","AEL-EL","CH3OHSYN","AEL-EL",6759.25,"PTX Atlas"]
["MRT,RES-HYBR,AEL-EL,NH3SYN,AEL-EL","MRT","RES-HYBR","AEL-EL","NH3SYN","AEL-EL",6524.5999999999995,"PTX Atlas"]
["MRT,RES-HYBR,PEM-EL,CH4SYN,CH4-LIQ","MRT","RES-HYBR","PEM-EL","CH4SYN","CH4-LIQ",7166,"PTX Atlas"]
["MRT,RES-HYBR,PEM-EL,DRI,PEM-EL","MRT","RES-HYBR","PEM-EL","DRI","PEM-EL",7085,"PTX Atlas"]
["MRT,RES-HYBR,SOEC-EL,,H2-RGAS","MRT","RES-HYBR","SOEC-EL",null,"H2-RGAS",7008,"öko"]
["MRT,RES-HYBR,SOEC-EL,LOHC-CON,LOHC-REC","MRT","RES-HYBR","SOEC-EL","LOHC-CON","LOHC-REC",7008,"öko"]
["MRT,WIND-OFF,AEL-EL,,AEL-EL","MRT","WIND-OFF","AEL-EL",null,"AEL-EL",6332.7,"PTX Atlas"]
["MRT,WIND-OFF,AEL-EL,CH4SYN,AEL-EL","MRT","WIND-OFF","AEL-EL","CH4SYN","AEL-EL",6696.5499999999993,"PTX Atlas"]
["MRT,WIND-OFF,PEM-EL,CH3OHSYN,CH3OHSYN","MRT","WIND-OFF","PEM-EL","CH3OHSYN","CH3OHSYN",7194,"PTX Atlas"]
["MRT,WIND-OFF,PEM-EL,CH3OHSYN,PEM-EL","MRT","WIND-OFF","PEM-EL","CH3OHSYN","PEM-EL",7115,"PTX Atlas"]
["MRT,WIND-OFF,PEM-EL,NH3SYN,PEM-EL","MRT","WIND-OFF","PEM-EL","NH3SYN","PEM-EL",6868,"PTX Atlas"]
["MRT,WIND-OFF,SOEC-EL,CH3OHSYN,CH3OHREC","MRT","WIND-OFF","SOEC-EL","CH3OHSYN","CH3OHREC",7008,"öko"]
["MRT,WIND-OFF,SOEC-EL,EFUELSYN,SOEC-EL","MRT","WIND-OFF","SOEC-EL","EFUELSYN","SOEC-EL",7169,"PTX Atlas"]
["MRT,WIND-ON,AEL-EL,CH4SYN,ATR","MRT","WIND-ON","AEL-EL","CH4SYN","ATR",6657.5999999999995]
["MRT,WIND-ON,AEL-EL,DRI,DRI","MRT","WIND-ON","AEL-EL","DRI","DRI",6657.5999999999995,"öko"]
["MRT,WIND-ON,PEM-EL,CH3OHSYN,CH3OHSYN","MRT","WIND-ON","PEM-EL","CH3OHSYN","CH3OHSYN",7194,"PTX Atlas"]
["MRT,WIND-ON,PEM-EL,LOHC-CON,PEM-EL","MRT","WIND-ON","PEM-EL","LOHC-CON","PEM-EL",6666,"PTX Atlas"]
["MRT,WIND-ON,SOEC-EL,CH4SYN,ATR","MRT","WIND-ON","SOEC-EL","CH4SYN","ATR",7008]
["MRT,WIND-ON,SOEC-EL,DRI,DRI","MRT","WIND-ON","SOEC-EL","DRI","DRI",7008,"öko"]
["NAM,PV-FIX,AEL-EL,CH3OHSYN,CH3OHREC","NAM","PV-FIX","AEL-EL","CH3OHSYN","CH3OHREC",6657.5999999999995,"öko"]
["NAM,PV-FIX,AEL-EL,LOHC-CON,AEL-EL","NAM","PV-FIX","AEL-EL","LOHC-CON","AEL-EL",2833.828269601232]
["NAM,PV-FIX,AEL-EL,NH3SYN,NH3SYN","NAM","PV-FIX","AEL-EL","NH3SYN","NH3SYN",7870.300108753826]
["NAM,PV-FIX,PEM-EL,EFUELSYN,EFUELSYN","NAM","PV-FIX","PEM-EL","EFUELSYN","EFUELSYN",8307.2660689766071]
["NAM,PV-FIX,SOEC-EL,,SOEC-EL","NAM","PV-FIX","SOEC-EL",null,"SOEC-EL",2962.5432166320538]
["NAM,PV-FIX,SOEC-EL,CH4SYN,CH4-RGAS","NAM","PV-FIX","SOEC-EL","CH4SYN","CH4-RGAS",7008,"öko"]
["NAM,PV-FIX,SOEC-EL,NH3SYN,NH3SYN","NAM","PV-FIX","SOEC-EL","NH3SYN","NH3SYN",4729.2053454950146]
["NAM,PV-TRK,AEL-EL,CH4SYN,ATR","NAM","PV-TRK","AEL-EL","CH4SYN","ATR",6657.5999999999995]
["NAM,PV-TRK,SOEC-EL,CH3OHSYN,CH3OHREC","NAM","PV-TRK","SOEC-EL","CH3OHSYN","CH3OHREC",7008,"öko"]
["NAM,RES-HYBR,AEL-EL,CH3OHSYN,CH3OHREC","NAM","RES-HYBR","AEL-EL","CH3OHSYN","CH3OHREC",6657.5999999999995,"öko"]
["NAM,RES-HYBR,AEL-EL,CH4SYN,CH4-RGAS","NAM","RES-HYBR","AEL-EL","CH4SYN","CH4-RGAS",6657.5999999999995,"öko"]
["NAM,RES-HYBR,AEL-EL,NH3SYN,NH3SYN","NAM","RES-HYBR","AEL-EL","NH3SYN","NH3SYN",6428.126527693531]
["NAM,RES-HYBR,PEM-EL,CH4SYN,CH4SYN","NAM","RES-HYBR","PEM-EL","CH4SYN","CH4SYN",6766.4489765195067]
["NAM,RES-HYBR,PEM-EL,NH3SYN,NH3SYN","NAM","RES-HYBR","PEM-EL","NH3SYN","NH3SYN",6766.4489765195067]
["NAM,RES-HYBR,SOEC-EL,CH4SYN,CH4-RGAS","NAM","RES-HYBR","SOEC-EL","CH4SYN","CH4-RGAS",7008,"öko"]
["NAM,WIND-OFF,AEL-EL,,H2-LIQ","NAM","WIND-OFF","AEL-EL",null,"H2-LIQ",5731.1086984208587,"öko"]
["NAM,WIND-OFF,AEL-EL,CH4SYN,AEL-EL","NAM","WIND-OFF","AEL-EL","CH4SYN","AEL-EL",5855.4323399273062]
["NAM,WIND-OFF,AEL-EL,LOHC-CON,LOHC-REC","NAM","WIND-OFF","AEL-EL","LOHC-CON","LOHC-REC",6657.5999999999995,"öko"]
["NAM,WIND-OFF,PEM-EL,,H2-LIQ","NAM","WIND-OFF","PEM-EL",null,"H2-LIQ",6032.7459983377466,"öko"]
["NAM,WIND-OFF,PEM-EL,DRI,DRI","NAM","WIND-OFF","PEM-EL","DRI","DRI",7008,"öko"]
["NAM,WIND-OFF,SOEC-EL,CH4SYN,CH4-LIQ","NAM","WIND-OFF","SOEC-EL","CH4SYN","CH4-LIQ",6294.2102890434671]
["NAM,WIND-OFF,SOEC-EL,CH4SYN,SOEC-EL","NAM","WIND-OFF","SOEC-EL","CH4SYN","SOEC-EL",6294.2102890434671]
["NAM,WIND-ON,AEL-EL,,AEL-EL","NAM","WIND-ON","AEL-EL",null,"AEL-EL",5554.2444523740833]
["NAM,WIND-ON,AEL-EL,EFUELSYN,EFUELSYN","NAM","WIND-ON","AEL-EL","EFUELSYN","EFUELSYN",6019.0604672501104]
["NAM,WIND-ON,PEM-EL,CH3OHSYN,CH3OHREC","NAM","WIND-ON","PEM-EL","CH3OHSYN","CH3OHREC",7008,"öko"]
["NAM,WIND-ON,PEM-EL,CH4SYN,CH4-RGAS","NAM","WIND-ON","PEM-EL","CH4SYN","CH4-RGAS",7008,"öko"]
["NAM,WIND-ON,SOEC-EL,,H2-RGAS","NAM","WIND-ON","SOEC-EL",null,"H2-RGAS",7008,"öko"]
["NAM,WIND-ON,SOEC-EL,DRI,DRI","NAM","WIND-ON","SOEC-EL","DRI","DRI",7008,"öko"]
["NAM,WIND-ON,SOEC-EL,NH3SYN,NH3-REC","NAM","WIND-ON","SOEC-EL","NH3SYN","NH3-REC",7008,"öko"]
["NOR,PV-FIX,AEL-EL,DRI,AEL-EL","NOR","PV-FIX","AEL-EL","DRI","AEL-EL",2361.4863647322513]
["NOR,PV-FIX,AEL-EL,DRI,DRI","NOR","PV-FIX","AEL-EL","DRI","DRI",6657.5999999999995,"öko"]
["NOR,PV-FIX,PEM-EL,CH3OHSYN,PEM-EL","NOR","PV-FIX","PEM-EL","CH3OHSYN","PEM-EL",2507.4050671497776]
["NOR,PV-FIX,PEM-EL,LOHC-CON,LOHC-REC","NOR","PV-FIX","PEM-EL","LOHC-CON","LOHC-REC",7008,"öko"]
["NOR,PV-FIX,SOEC-EL,,H2-COMP","NOR","PV-FIX","SOEC-EL",null,"H2-COMP",7008]
["NOR,PV-FIX,SOEC-EL,EFUELSYN,SOEC-EL","NOR","PV-FIX","SOEC-EL","EFUELSYN","SOEC-EL",6332.0923380531258]
["NOR,PV-FIX,SOEC-EL,NH3SYN,SOEC-EL","NOR","PV-FIX","SOEC-EL","NH3SYN","SOEC-EL",3716.9601175324674]
["NOR,PV-TRK,PEM-EL,CH3OHSYN,CH3OHREC","NOR","PV-TRK","PEM-EL","CH3OHSYN","CH3OHREC",7008,"öko"]
["NOR,RES-HYBR,AEL-EL,,H2-COMP","NOR","RES-HYBR","AEL-EL",null,"H2-COMP",6657.5999999999995]
["NOR,RES-HYBR,AEL-EL,DRI,AEL-EL","NOR","RES-HYBR","AEL-EL","DRI","AEL-EL",5038.988642894612]
["NOR,RES-HYBR,AEL-EL,LOHC-CON,LOHC-CON","NOR","RES-HYBR","AEL-EL","LOHC-CON","LOHC-CON",5029.142967364518]
["NOR,RES-HYBR,PEM-EL,CH3OHSYN,PEM-EL","NOR","RES-HYBR","PEM-EL","CH3OHSYN","PEM-EL",5332.8750946339369]
["NOR,RES-HYBR,PEM-EL,NH3SYN,PEM-EL","NOR","RES-HYBR","PEM-EL","NH3SYN","PEM-EL",5302.4212523131146]
["NOR,RES-HYBR,SOEC-EL,CH3OHSYN,CH3OHREC","NOR","RES-HYBR","SOEC-EL","CH3OHSYN","CH3OHREC",7008,"öko"]
["NOR,RES-HYBR,SOEC-EL,LOHC-CON,LOHC-REC","NOR","RES-HYBR","SOEC-EL","LOHC-CON","LOHC-REC",7008,"öko"]
["NOR,RES-HYBR,SOEC-EL,NH3SYN,SOEC-EL","NOR","RES-HYBR","SOEC-EL","NH3SYN","SOEC-EL",5905.9569012058237]
["NOR,WIND-OFF,AEL-EL,CH4SYN,CH4-RGAS","NOR","WIND-OFF","AEL-EL","CH4SYN","CH4-RGAS",6657.5999999999995,"öko"]
["NOR,WIND-OFF,PEM-EL,,PEM-EL","NOR","WIND-OFF","PEM-EL",null,"PEM-EL",5512.7385377319006]
["NOR,WIND-OFF,PEM-EL,CH4SYN,CH4-LIQ","NOR","WIND-OFF","PEM-EL","CH4SYN","CH4-LIQ",6138.5474911754245]
["NOR,WIND-OFF,PEM-EL,NH3SYN,NH3-REC","NOR","WIND-OFF","PEM-EL","NH3SYN","NH3-REC",7008,"öko"]
["NOR,WIND-OFF,SOEC-EL,DRI,DRI","NOR","WIND-OFF","SOEC-EL","DRI","DRI",7008,"öko"]
["NOR,WIND-OFF,SOEC-EL,LOHC-CON,LOHC-REC","NOR","WIND-OFF","SOEC-EL","LOHC-CON","LOHC-REC",7008,"öko"]
["NOR,WIND-ON,AEL-EL,CH3OHSYN,AEL-EL","NOR","WIND-ON","AEL-EL","CH3OHSYN","AEL-EL",5238.2291281278285]
["NOR,WIND-ON,PEM-EL,,H2-COMP","NOR","WIND-ON","PEM-EL",null,"H2-COMP",7008]
["NOR,WIND-ON,PEM-EL,CH4SYN,PEM-EL","NOR","WIND-ON","PEM-EL","CH4SYN","PEM-EL",5425.8841001522178]
["NOR,WIND-ON,PEM-EL,LOHC-CON,LOHC-CON","NOR","WIND-ON","PEM-EL","LOHC-CON","LOHC-CON",5109.0513804469165]
["NOR,WIND-ON,SOEC-EL,CH4SYN,CH4-RGAS","NOR","WIND-ON","SOEC-EL","CH4SYN","CH4-RGAS",7008,"öko"]
["NOR,WIND-ON,SOEC-EL,CH4SYN,CH4SYN","NOR","WIND-ON","SOEC-EL","CH4SYN","CH4SYN",5605.2953290477781]
["PER,PV-FIX,AEL-EL,,H2-RGAS","PER","PV-FIX","AEL-EL",null,"H2-RGAS",6657.5999999999995,"öko"]
["PER,PV-FIX,AEL-EL,CH4SYN,ATR","PER","PV-FIX","AEL-EL","CH4SYN","ATR",6657.5999999999995]
["PER,PV-FIX,PEM-EL,,H2-RGAS","PER","PV-FIX","PEM-EL",null,"H2-RGAS",7008,"öko"]
["PER,PV-FIX,PEM-EL,DRI,PEM-EL","PER","PV-FIX","PEM-EL","DRI","PEM-EL",3004.5,"PTX Atlas"]
["PER,PV-FIX,SOEC-EL,,H2-RGAS","PER","PV-FIX","SOEC-EL",null,"H2-RGAS",7008,"öko"]
["PER,PV-FIX,SOEC-EL,CH4SYN,ATR","PER","PV-FIX","SOEC-EL","CH4SYN","ATR",7008]
["PER,PV-TRK,AEL-EL,,H2-COMP","PER","PV-TRK","AEL-EL",null,"H2-COMP",6657.5999999999995]
["PER,PV-TRK,PEM-EL,CH4SYN,ATR","PER","PV-TRK","PEM-EL","CH4SYN","ATR",7008]
["PER,PV-TRK,SOEC-EL,,H2-COMP","PER","PV-TRK","SOEC-EL",null,"H2-COMP",7008]
["PER,RES-HYBR,AEL-EL,,H2-RGAS","PER","RES-HYBR","AEL-EL",null,"H2-RGAS",6657.5999999999995,"öko"]
["PER,RES-HYBR,AEL-EL,CH4SYN,CH4-LIQ","PER","RES-HYBR","AEL-EL","CH4SYN","CH4-LIQ",7790.95,"PTX Atlas"]
["PER,RES-HYBR,PEM-EL,,H2-RGAS","PER","RES-HYBR","PEM-EL",null,"H2-RGAS",7008,"öko"]
["PER,RES-HYBR,PEM-EL,DRI,PEM-EL","PER","RES-HYBR","PEM-EL","DRI","PEM-EL",3023,"PTX Atlas"]
["PER,RES-HYBR,PEM-EL,LOHC-CON,PEM-EL","PER","RES-HYBR","PEM-EL","LOHC-CON","PEM-EL",2998,"PTX Atlas"]
["PER,RES-HYBR,SOEC-EL,CH4SYN,SOEC-EL","PER","RES-HYBR","SOEC-EL","CH4SYN","SOEC-EL",7184,"PTX Atlas"]
["PER,WIND-OFF,AEL-EL,,AEL-EL","PER","WIND-OFF","AEL-EL",null,"AEL-EL",4516.8660022816293,"PTX Atlas"]
["PER,WIND-OFF,AEL-EL,CH3OHSYN,CH3OHREC","PER","WIND-OFF","AEL-EL","CH3OHSYN","CH3OHREC",6657.5999999999995,"öko"]
["PER,WIND-OFF,AEL-EL,LOHC-CON,AEL-EL","PER","WIND-OFF","AEL-EL","LOHC-CON","AEL-EL",4516.8660022816293,"PTX Atlas"]
["PER,WIND-OFF,PEM-EL,CH4SYN,ATR","PER","WIND-OFF","PEM-EL","CH4SYN","ATR",7008]
["PER,WIND-OFF,PEM-EL,EFUELSYN,PEM-EL","PER","WIND-OFF","PEM-EL","EFUELSYN","PEM-EL",5129.3405974816578,"PTX Atlas"]
["PER,WIND-OFF,SOEC-EL,CH3OHSYN,CH3OHREC","PER","WIND-OFF","SOEC-EL","CH3OHSYN","CH3OHREC",7008,"öko"]
["PER,WIND-OFF,SOEC-EL,NH3SYN,NH3-REC","PER","WIND-OFF","SOEC-EL","NH3SYN","NH3-REC",7008,"öko"]
["PER,WIND-ON,AEL-EL,CH4SYN,ATR","PER","WIND-ON","AEL-EL","CH4SYN","ATR",6657.5999999999995]
["PER,WIND-ON,AEL-EL,DRI,DRI","PER","WIND-ON","AEL-EL","DRI","DRI",6657.5999999999995,"öko"]
["PER,WIND-ON,PEM-EL,CH3OHSYN,PEM-EL","PER","WIND-ON","PEM-EL","CH3OHSYN","PEM-EL",3051,"PTX Atlas"]
["PER,WIND-ON,PEM-EL,CH4SYN,ATR","PER","WIND-ON","PEM-EL","CH4SYN","ATR",7008]
["PER,WIND-ON,SOEC-EL,CH3OHSYN,CH3OHSYN","PER","WIND-ON","SOEC-EL","CH3OHSYN","CH3OHSYN",7438,"PTX Atlas"]
["PER,WIND-ON,SOEC-EL,CH3OHSYN,SOEC-EL","PER","WIND-ON","SOEC-EL","CH3OHSYN","SOEC-EL",7438,"PTX Atlas"]
["PER,WIND-ON,SOEC-EL,LOHC-CON,LOHC-REC","PER","WIND-ON","SOEC-EL","LOHC-CON","LOHC-REC",7008,"öko"]
["PRT,PV-FIX,AEL-EL,CH4SYN,CH4-RGAS","PRT","PV-FIX","AEL-EL","CH4SYN","CH4-RGAS",6657.5999999999995,"öko"]
["PRT,PV-FIX,AEL-EL,NH3SYN,NH3SYN","PRT","PV-FIX","AEL-EL","NH3SYN","NH3SYN",7160.5686017731805]
["PRT,PV-FIX,PEM-EL,CH3OHSYN,CH3OHREC","PRT","PV-FIX","PEM-EL","CH3OHSYN","CH3OHREC",7008,"öko"]
["PRT,PV-FIX,PEM-EL,NH3SYN,NH3-REC","PRT","PV-FIX","PEM-EL","NH3SYN","NH3-REC",7008,"öko"]
["PRT,PV-FIX,SOEC-EL,CH4SYN,CH4-LIQ","PRT","PV-FIX","SOEC-EL","CH4SYN","CH4-LIQ",6839.5007128419293]
["PRT,PV-FIX,SOEC-EL,EFUELSYN,EFUELSYN","PRT","PV-FIX","SOEC-EL","EFUELSYN","EFUELSYN",7488.7369221347108]
["PRT,PV-TRK,AEL-EL,NH3SYN,NH3-REC","PRT","PV-TRK","AEL-EL","NH3SYN","NH3-REC",6657.5999999999995,"öko"]
["PRT,PV-TRK,SOEC-EL,CH3OHSYN,CH3OHREC","PRT","PV-TRK","SOEC-EL","CH3OHSYN","CH3OHREC",7008,"öko"]
["PRT,PV-TRK,SOEC-EL,NH3SYN,NH3-REC","PRT","PV-TRK","SOEC-EL","NH3SYN","NH3-REC",7008,"öko"]
["PRT,RES-HYBR,AEL-EL,CH4SYN,CH4-RGAS","PRT","RES-HYBR","AEL-EL","CH4SYN","CH4-RGAS",6657.5999999999995,"öko"]
["PRT,RES-HYBR,AEL-EL,EFUELSYN,EFUELSYN","PRT","RES-HYBR","AEL-EL","EFUELSYN","EFUELSYN",6245.6755474047241]
["PRT,RES-HYBR,PEM-EL,CH4SYN,CH4-LIQ","PRT","RES-HYBR","PEM-EL","CH4SYN","CH4-LIQ",6604.2769091336413]
["PRT,RES-HYBR,PEM-EL,NH3SYN,NH3-REC","PRT","RES-HYBR","PEM-EL","NH3SYN","NH3-REC",7008,"öko"]
["PRT,RES-HYBR,SOEC-EL,CH4SYN,CH4SYN","PRT","RES-HYBR","SOEC-EL","CH4SYN","CH4SYN",6173.7763123938294]
["PRT,RES-HYBR,SOEC-EL,EFUELSYN,EFUELSYN","PRT","RES-HYBR","SOEC-EL","EFUELSYN","EFUELSYN",6117.6337540009317]
["PRT,WIND-OFF,AEL-EL,CH4SYN,AEL-EL","PRT","WIND-OFF","AEL-EL","CH4SYN","AEL-EL",5272.9505263787078]
["PRT,WIND-OFF,AEL-EL,DRI,AEL-EL","PRT","WIND-OFF","AEL-EL","DRI","AEL-EL",5326.2739502783415]
["PRT,WIND-OFF,PEM-EL,,H2-LIQ","PRT","WIND-OFF","PEM-EL",null,"H2-LIQ",5431.0580476974292,"öko"]
["PRT,WIND-OFF,PEM-EL,LOHC-CON,LOHC-CON","PRT","WIND-OFF","PEM-EL","LOHC-CON","LOHC-CON",5233.6065323840485]
["PRT,WIND-OFF,PEM-EL,NH3SYN,PEM-EL","PRT","WIND-OFF","PEM-EL","NH3SYN","PEM-EL",5433.4940222579953]
["PRT,WIND-OFF,SOEC-EL,EFUELSYN,EFUELSYN","PRT","WIND-OFF","SOEC-EL","EFUELSYN","EFUELSYN",5733.360720743518]
["PRT,WIND-ON,AEL-EL,CH3OHSYN,AEL-EL","PRT","WIND-ON","AEL-EL","CH3OHSYN","AEL-EL",5356.3192397646408]
["PRT,WIND-ON,AEL-EL,CH3OHSYN,CH3OHREC","PRT","WIND-ON","AEL-EL","CH3OHSYN","CH3OHREC",6657.5999999999995,"öko"]
["PRT,WIND-ON,AEL-EL,NH3SYN,NH3-REC","PRT","WIND-ON","AEL-EL","NH3SYN","NH3-REC",6657.5999999999995,"öko"]
["PRT,WIND-ON,PEM-EL,,PEM-EL","PRT","WIND-ON","PEM-EL",null,"PEM-EL",5233.6065323840485]
["PRT,WIND-ON,PEM-EL,EFUELSYN,EFUELSYN","PRT","WIND-ON","PEM-EL","EFUELSYN","EFUELSYN",5915.6655821056574]
["PRT,WIND-ON,SOEC-EL,CH4SYN,ATR","PRT","WIND-ON","SOEC-EL","CH4SYN","ATR",7008]
["PRT,WIND-ON,SOEC-EL,LOHC-CON,SOEC-EL","PRT","WIND-ON","SOEC-EL","LOHC-CON","SOEC-EL",5195.9066912017606]
["RUS,PV-FIX,AEL-EL,,H2-COMP","RUS","PV-FIX","AEL-EL",null,"H2-COMP",6657.5999999999995]
["RUS,PV-FIX,AEL-EL,LOHC-CON,LOHC-CON","RUS","PV-FIX","AEL-EL","LOHC-CON","LOHC-CON",2092.85,"PTX Atlas"]
["RUS,PV-FIX,PEM-EL,CH3OHSYN,PEM-EL","RUS","PV-FIX","PEM-EL","CH3OHSYN","PEM-EL",2293,"PTX Atlas"]
["RUS,PV-FIX,PEM-EL,CH4SYN,PEM-EL","RUS","PV-FIX","PEM-EL","CH4SYN","PEM-EL",2277,"PTX Atlas"]
["RUS,PV-FIX,SOEC-EL,CH3OHSYN,CH3OHREC","RUS","PV-FIX","SOEC-EL","CH3OHSYN","CH3OHREC",7008,"öko"]
["RUS,PV-FIX,SOEC-EL,EFUELSYN,SOEC-EL","RUS","PV-FIX","SOEC-EL","EFUELSYN","SOEC-EL",6224,"PTX Atlas"]
["RUS,PV-FIX,SOEC-EL,NH3SYN,NH3SYN","RUS","PV-FIX","SOEC-EL","NH3SYN","NH3SYN",3910,"PTX Atlas"]
["RUS,PV-TRK,PEM-EL,,H2-RGAS","RUS","PV-TRK","PEM-EL",null,"H2-RGAS",7008,"öko"]
["RUS,PV-TRK,SOEC-EL,DRI,DRI","RUS","PV-TRK","SOEC-EL","DRI","DRI",7008,"öko"]
["RUS,RES-HYBR,AEL-EL,CH3OHSYN,CH3OHSYN","RUS","RES-HYBR","AEL-EL","CH3OHSYN","CH3OHSYN",6155.0499999999993,"PTX Atlas"]
["RUS,RES-HYBR,AEL-EL,LOHC-CON,LOHC-CON","RUS","RES-HYBR","AEL-EL","LOHC-CON","LOHC-CON",4175.25,"PTX Atlas"]
["RUS,RES-HYBR,PEM-EL,,H2-COMP","RUS","RES-HYBR","PEM-EL",null,"H2-COMP",7008]
["RUS,RES-HYBR,PEM-EL,EFUELSYN,PEM-EL","RUS","RES-HYBR","PEM-EL","EFUELSYN","PEM-EL",3568.5,"PTX Atlas"]
["RUS,RES-HYBR,SOEC-EL,CH3OHSYN,CH3OHREC","RUS","RES-HYBR","SOEC-EL","CH3OHSYN","CH3OHREC",7008,"öko"]
["RUS,RES-HYBR,SOEC-EL,CH4SYN,CH4-RGAS","RUS","RES-HYBR","SOEC-EL","CH4SYN","CH4-RGAS",7008,"öko"]
["RUS,RES-HYBR,SOEC-EL,NH3SYN,NH3SYN","RUS","RES-HYBR","SOEC-EL","NH3SYN","NH3SYN",4761,"PTX Atlas"]
["RUS,WIND-OFF,AEL-EL,CH3OHSYN,CH3OHSYN","RUS","WIND-OFF","AEL-EL","CH3OHSYN","CH3OHSYN",5510,"PTX Atlas"]
["RUS,WIND-OFF,AEL-EL,NH3SYN,AEL-EL","RUS","WIND-OFF","AEL-EL","NH3SYN","AEL-EL",5268.2249999999995,"PTX Atlas"]
["RUS,WIND-OFF,PEM-EL,CH4SYN,CH4-LIQ","RUS","WIND-OFF","PEM-EL","CH4SYN","CH4-LIQ",5769,"PTX Atlas"]
["RUS,WIND-OFF,SOEC-EL,,H2-LIQ","RUS","WIND-OFF","SOEC-EL",null,"H2-LIQ",5540.5,"öko"]
["RUS,WIND-OFF,SOEC-EL,,H2-RGAS","RUS","WIND-OFF","SOEC-EL",null,"H2-RGAS",7008,"öko"]
["RUS,WIND-OFF,SOEC-EL,LOHC-CON,LOHC-REC","RUS","WIND-OFF","SOEC-EL","LOHC-CON","LOHC-REC",7008,"öko"]
["RUS,WIND-ON,AEL-EL,,AEL-EL","RUS","WIND-ON","AEL-EL",null,"AEL-EL",5059.2249999999995,"PTX Atlas"]
["RUS,WIND-ON,AEL-EL,CH4SYN,CH4SYN","RUS","WIND-ON","AEL-EL","CH4SYN","CH4SYN",5480.55,"PTX Atlas"]
["RUS,WIND-ON,PEM-EL,CH3OHSYN,CH3OHREC","RUS","WIND-ON","PEM-EL","CH3OHSYN","CH3OHREC",7008,"öko"]
["RUS,WIND-ON,PEM-EL,CH4SYN,CH4SYN","RUS","WIND-ON","PEM-EL","CH4SYN","CH4SYN",5769,"PTX Atlas"]
["RUS,WIND-ON,PEM-EL,NH3SYN,PEM-EL","RUS","WIND-ON","PEM-EL","NH3SYN","PEM-EL",5545.5,"PTX Atlas"]
["RUS,WIND-ON,SOEC-EL,EFUELSYN,EFUELSYN","RUS","WIND-ON","SOEC-EL","EFUELSYN","EFUELSYN",5816,"PTX Atlas"]
["SAU,PV-FIX,AEL-EL,,H2-RGAS","SAU","PV-FIX","AEL-EL",null,"H2-RGAS",6657.5999999999995,"öko"]
["SAU,PV-FIX,AEL-EL,CH4SYN,ATR","SAU","PV-FIX","AEL-EL","CH4SYN","ATR",6657.5999999999995]
["SAU,PV-FIX,PEM-EL,,H2-LIQ","SAU","PV-FIX","PEM-EL",null,"H2-LIQ",2972.5,"öko"]
["SAU,PV-FIX,PEM-EL,DRI,DRI","SAU","PV-FIX","PEM-EL","DRI","DRI",7008,"öko"]
["SAU,PV-FIX,PEM-EL,DRI,PEM-EL","SAU","PV-FIX","PEM-EL","DRI","PEM-EL",3037,"PTX Atlas"]
["SAU,PV-FIX,SOEC-EL,CH4SYN,SOEC-EL","SAU","PV-FIX","SOEC-EL","CH4SYN","SOEC-EL",7758.5,"PTX Atlas"]
["SAU,PV-FIX,SOEC-EL,DRI,DRI","SAU","PV-FIX","SOEC-EL","DRI","DRI",7008,"öko"]
["SAU,PV-TRK,AEL-EL,DRI,DRI","SAU","PV-TRK","AEL-EL","DRI","DRI",6657.5999999999995,"öko"]
["SAU,PV-TRK,SOEC-EL,,H2-COMP","SAU","PV-TRK","SOEC-EL",null,"H2-COMP",7008]
["SAU,PV-TRK,SOEC-EL,DRI,DRI","SAU","PV-TRK","SOEC-EL","DRI","DRI",7008,"öko"]
["SAU,RES-HYBR,AEL-EL,DRI,AEL-EL","SAU","RES-HYBR","AEL-EL","DRI","AEL-EL",3279.3999999999996,"PTX Atlas"]
["SAU,RES-HYBR,PEM-EL,,H2-LIQ","SAU","RES-HYBR","PEM-EL",null,"H2-LIQ",3451.5,"öko"]
["SAU,RES-HYBR,PEM-EL,CH4SYN,CH4-RGAS","SAU","RES-HYBR","PEM-EL","CH4SYN","CH4-RGAS",7008,"öko"]
["SAU,RES-HYBR,PEM-EL,LOHC-CON,PEM-EL","SAU","RES-HYBR","PEM-EL","LOHC-CON","PEM-EL",3588.5,"PTX Atlas"]
["SAU,RES-HYBR,SOEC-EL,CH4SYN,SOEC-EL","SAU","RES-HYBR","SOEC-EL","CH4SYN","SOEC-EL",6602.5,"PTX Atlas"]
["SAU,RES-HYBR,SOEC-EL,LOHC-CON,LOHC-CON","SAU","RES-HYBR","SOEC-EL","LOHC-CON","LOHC-CON",3439,"PTX Atlas"]
["SAU,WIND-OFF,AEL-EL,CH3OHSYN,CH3OHREC","SAU","WIND-OFF","AEL-EL","CH3OHSYN","CH3OHREC",6657.5999999999995,"öko"]
["SAU,WIND-OFF,AEL-EL,NH3SYN,NH3-REC","SAU","WIND-OFF","AEL-EL","NH3SYN","NH3-REC",6657.5999999999995,"öko"]
["SAU,WIND-OFF,PEM-EL,,PEM-EL","SAU","WIND-OFF","PEM-EL",null,"PEM-EL",3541.5673985049957,"PTX Atlas"]
["SAU,WIND-OFF,PEM-EL,EFUELSYN,EFUELSYN","SAU","WIND-OFF","PEM-EL","EFUELSYN","EFUELSYN",4755.7756435137189,"PTX Atlas"]
["SAU,WIND-OFF,SOEC-EL,CH4SYN,ATR","SAU","WIND-OFF","SOEC-EL","CH4SYN","ATR",7008]
["SAU,WIND-OFF,SOEC-EL,CH4SYN,CH4-RGAS","SAU","WIND-OFF","SOEC-EL","CH4SYN","CH4-RGAS",7008,"öko"]
["SAU,WIND-ON,AEL-EL,,H2-LIQ","SAU","WIND-ON","AEL-EL",null,"H2-LIQ",3278.9249999999997,"öko"]
["SAU,WIND-ON,AEL-EL,CH4SYN,AEL-EL","SAU","WIND-ON","AEL-EL","CH4SYN","AEL-EL",3220.9749999999999,"PTX Atlas"]
["SAU,WIND-ON,AEL-EL,LOHC-CON,LOHC-REC","SAU","WIND-ON","AEL-EL","LOHC-CON","LOHC-REC",6657.5999999999995,"öko"]
["SAU,WIND-ON,PEM-EL,CH4SYN,PEM-EL","SAU","WIND-ON","PEM-EL","CH4SYN","PEM-EL",3390.5,"PTX Atlas"]
["SAU,WIND-ON,SOEC-EL,,H2-COMP","SAU","WIND-ON","SOEC-EL",null,"H2-COMP",7008]
["SAU,WIND-ON,SOEC-EL,CH3OHSYN,CH3OHSYN","SAU","WIND-ON","SOEC-EL","CH3OHSYN","CH3OHSYN",6601.5,"PTX Atlas"]
["SAU,WIND-ON,SOEC-EL,LOHC-CON,LOHC-CON","SAU","WIND-ON","SOEC-EL","LOHC-CON","LOHC-CON",3439,"PTX Atlas"]
["SWE,PV-FIX,AEL-EL,CH4SYN,CH4-RGAS","SWE","PV-FIX","AEL-EL","CH4SYN","CH4-RGAS",6657.5999999999995,"öko"]
["SWE,PV-FIX,AEL-EL,EFUELSYN,EFUELSYN","SWE","PV-FIX","AEL-EL","EFUELSYN","EFUELSYN",6393.3610396344675]
["SWE,PV-FIX,PEM-EL,CH4SYN,CH4-LIQ","SWE","PV-FIX","PEM-EL","CH4SYN","CH4-LIQ",6738.2626039211473]
["SWE,PV-FIX,PEM-EL,CH4SYN,CH4-RGAS","SWE","PV-FIX","PEM-EL","CH4SYN","CH4-RGAS",7008,"öko"]
["SWE,PV-FIX,SOEC-EL,,H2-RGAS","SWE","PV-FIX","SOEC-EL",null,"H2-RGAS",7008,"öko"]
["SWE,PV-FIX,SOEC-EL,DRI,SOEC-EL","SWE","PV-FIX","SOEC-EL","DRI","SOEC-EL",6410.6747244348217]
["SWE,PV-FIX,SOEC-EL,LOHC-CON,SOEC-EL","SWE","PV-FIX","SOEC-EL","LOHC-CON","SOEC-EL",2349.0669693725267]
["SWE,PV-TRK,PEM-EL,LOHC-CON,LOHC-REC","SWE","PV-TRK","PEM-EL","LOHC-CON","LOHC-REC",7008,"öko"]
["SWE,PV-TRK,SOEC-EL,NH3SYN,NH3-REC","SWE","PV-TRK","SOEC-EL","NH3SYN","NH3-REC",7008,"öko"]
["SWE,RES-HYBR,AEL-EL,CH3OHSYN,AEL-EL","SWE","RES-HYBR","AEL-EL","CH3OHSYN","AEL-EL",3657.1927145134214]
["SWE,RES-HYBR,AEL-EL,NH3SYN,AEL-EL","SWE","RES-HYBR","AEL-EL","NH3SYN","AEL-EL",3641.4740073954058]
["SWE,RES-HYBR,PEM-EL,CH4SYN,CH4-LIQ","SWE","RES-HYBR","PEM-EL","CH4SYN","CH4-LIQ",7491.1765558827201]
["SWE,RES-HYBR,PEM-EL,DRI,PEM-EL","SWE","RES-HYBR","PEM-EL","DRI","PEM-EL",3824.0395034424128]
["SWE,RES-HYBR,SOEC-EL,,H2-RGAS","SWE","RES-HYBR","SOEC-EL",null,"H2-RGAS",7008,"öko"]
["SWE,RES-HYBR,SOEC-EL,LOHC-CON,LOHC-REC","SWE","RES-HYBR","SOEC-EL","LOHC-CON","LOHC-REC",7008,"öko"]
["SWE,RES-HYBR,SOEC-EL,NH3SYN,SOEC-EL","SWE","RES-HYBR","SOEC-EL","NH3SYN","SOEC-EL",5225.3545171640981]
["SWE,WIND-OFF,AEL-EL,DRI,AEL-EL","SWE","WIND-OFF","AEL-EL","DRI","AEL-EL",5590.4821346417766]
["SWE,WIND-OFF,AEL-EL,LOHC-CON,LOHC-CON","SWE","WIND-OFF","AEL-EL","LOHC-CON","LOHC-CON",5237.101610845305]
["SWE,WIND-OFF,PEM-EL,CH3OHSYN,PEM-EL","SWE","WIND-OFF","PEM-EL","CH3OHSYN","PEM-EL",5916.8030387981098]
["SWE,WIND-OFF,PEM-EL,NH3SYN,PEM-EL","SWE","WIND-OFF","PEM-EL","NH3SYN","PEM-EL",5703.8021509911177]
["SWE,WIND-OFF,SOEC-EL,CH3OHSYN,CH3OHREC","SWE","WIND-OFF","SOEC-EL","CH3OHSYN","CH3OHREC",7008,"öko"]
["SWE,WIND-OFF,SOEC-EL,EFUELSYN,SOEC-EL","SWE","WIND-OFF","SOEC-EL","EFUELSYN","SOEC-EL",5993.9617550440762]
["SWE,WIND-ON,AEL-EL,,H2-RGAS","SWE","WIND-ON","AEL-EL",null,"H2-RGAS",6657.5999999999995,"öko"]
["SWE,WIND-ON,AEL-EL,EFUELSYN,AEL-EL","SWE","WIND-ON","AEL-EL","EFUELSYN","AEL-EL",4218.9724177609532]
["SWE,WIND-ON,PEM-EL,,PEM-EL","SWE","WIND-ON","PEM-EL",null,"PEM-EL",4063.758981896493]
["SWE,WIND-ON,PEM-EL,LOHC-CON,PEM-EL","SWE","WIND-ON","PEM-EL","LOHC-CON","PEM-EL",4063.758981896493]
["SWE,WIND-ON,SOEC-EL,CH4SYN,ATR","SWE","WIND-ON","SOEC-EL","CH4SYN","ATR",7008]
["SWE,WIND-ON,SOEC-EL,DRI,DRI","SWE","WIND-ON","SOEC-EL","DRI","DRI",7008,"öko"]
["THA,PV-FIX,AEL-EL,CH3OHSYN,CH3OHREC","THA","PV-FIX","AEL-EL","CH3OHSYN","CH3OHREC",6657.5999999999995,"öko"]
["THA,PV-FIX,AEL-EL,CH3OHSYN,CH3OHSYN","THA","PV-FIX","AEL-EL","CH3OHSYN","CH3OHSYN",6968.2807643989754]
["THA,PV-FIX,PEM-EL,,H2-LIQ","THA","PV-FIX","PEM-EL",null,"H2-LIQ",2688.2891529923718,"öko"]
["THA,PV-FIX,PEM-EL,CH3OHSYN,CH3OHSYN","THA","PV-FIX","PEM-EL","CH3OHSYN","CH3OHSYN",7335.032383577869]
["THA,PV-FIX,PEM-EL,LOHC-CON,LOHC-CON","THA","PV-FIX","PEM-EL","LOHC-CON","LOHC-CON",2615.482152962431]
["THA,PV-FIX,SOEC-EL,CH4SYN,CH4-RGAS","THA","PV-FIX","SOEC-EL","CH4SYN","CH4-RGAS",7008,"öko"]
["THA,PV-FIX,SOEC-EL,NH3SYN,NH3SYN","THA","PV-FIX","SOEC-EL","NH3SYN","NH3SYN",4125.3651581188315]
["THA,PV-TRK,AEL-EL,CH4SYN,ATR","THA","PV-TRK","AEL-EL","CH4SYN","ATR",6657.5999999999995]
["THA,PV-TRK,SOEC-EL,CH3OHSYN,CH3OHREC","THA","PV-TRK","SOEC-EL","CH3OHSYN","CH3OHREC",7008,"öko"]
["THA,RES-HYBR,AEL-EL,CH3OHSYN,CH3OHREC","THA","RES-HYBR","AEL-EL","CH3OHSYN","CH3OHREC",6657.5999999999995,"öko"]
["THA,RES-HYBR,AEL-EL,CH4SYN,ATR","THA","RES-HYBR","AEL-EL","CH4SYN","ATR",6657.5999999999995]
["THA,RES-HYBR,PEM-EL,,H2-COMP","THA","RES-HYBR","PEM-EL",null,"H2-COMP",7008]
["THA,RES-HYBR,PEM-EL,EFUELSYN,PEM-EL","THA","RES-HYBR","PEM-EL","EFUELSYN","PEM-EL",3569.5369351590002]
["THA,RES-HYBR,PEM-EL,NH3SYN,NH3SYN","THA","RES-HYBR","PEM-EL","NH3SYN","NH3SYN",7329.4852992816413]
["THA,RES-HYBR,SOEC-EL,CH4SYN,CH4-RGAS","THA","RES-HYBR","SOEC-EL","CH4SYN","CH4-RGAS",7008,"öko"]
["THA,RES-HYBR,SOEC-EL,EFUELSYN,EFUELSYN","THA","RES-HYBR","SOEC-EL","EFUELSYN","EFUELSYN",6815.6497677322477]
["THA,WIND-OFF,AEL-EL,CH4SYN,AEL-EL","THA","WIND-OFF","AEL-EL","CH4SYN","AEL-EL",3665.0618373599686]
["THA,WIND-OFF,AEL-EL,LOHC-CON,LOHC-REC","THA","WIND-OFF","AEL-EL","LOHC-CON","LOHC-REC",6657.5999999999995,"öko"]
["THA,WIND-OFF,PEM-EL,CH3OHSYN,PEM-EL","THA","WIND-OFF","PEM-EL","CH3OHSYN","PEM-EL",3949.5847020436199]
["THA,WIND-OFF,PEM-EL,DRI,PEM-EL","THA","WIND-OFF","PEM-EL","DRI","PEM-EL",3920.7366951082663]
["THA,WIND-OFF,SOEC-EL,CH3OHSYN,SOEC-EL","THA","WIND-OFF","SOEC-EL","CH3OHSYN","SOEC-EL",4143.3029084212103]
["THA,WIND-OFF,SOEC-EL,CH4SYN,SOEC-EL","THA","WIND-OFF","SOEC-EL","CH4SYN","SOEC-EL",4141.1172245676371]
["THA,WIND-ON,AEL-EL,,AEL-EL","THA","WIND-ON","AEL-EL",null,"AEL-EL",3341.9635802520188]
["THA,WIND-ON,AEL-EL,EFUELSYN,EFUELSYN","THA","WIND-ON","AEL-EL","EFUELSYN","EFUELSYN",4502.5457049519473]
["THA,WIND-ON,PEM-EL,CH3OHSYN,CH3OHREC","THA","WIND-ON","PEM-EL","CH3OHSYN","CH3OHREC",7008,"öko"]
["THA,WIND-ON,PEM-EL,CH4SYN,CH4-RGAS","THA","WIND-ON","PEM-EL","CH4SYN","CH4-RGAS",7008,"öko"]
["THA,WIND-ON,PEM-EL,EFUELSYN,PEM-EL","THA","WIND-ON","PEM-EL","EFUELSYN","PEM-EL",3897.1121821468982]
["THA,WIND-ON,SOEC-EL,CH3OHSYN,CH3OHREC","THA","WIND-ON","SOEC-EL","CH3OHSYN","CH3OHREC",7008,"öko"]
["THA,WIND-ON,SOEC-EL,NH3SYN,NH3-REC","THA","WIND-ON","SOEC-EL","NH3SYN","NH3-REC",7008,"öko"]
["TUN,PV-FIX,AEL-EL,,H2-LIQ","TUN","PV-FIX","AEL-EL",null,"H2-LIQ",2670.45,"öko"]
["TUN,PV-FIX,AEL-EL,DRI,DRI","TUN","PV-FIX","AEL-EL","DRI","DRI",6657.5999999999995,"öko"]
["TUN,PV-FIX,PEM-EL,CH3OHSYN,PEM-EL","TUN","PV-FIX","PEM-EL","CH3OHSYN","PEM-EL",2909,"PTX Atlas"]
["TUN,PV-FIX,PEM-EL,LOHC-CON,LOHC-REC","TUN","PV-FIX","PEM-EL","LOHC-CON","LOHC-REC",7008,"öko"]
["TUN,PV-FIX,SOEC-EL,,H2-COMP","TUN","PV-FIX","SOEC-EL",null,"H2-COMP",7008]
["TUN,PV-FIX,SOEC-EL,DRI,SOEC-EL","TUN","PV-FIX","SOEC-EL","DRI","SOEC-EL",7773,"PTX Atlas"]
["TUN,PV-TRK,AEL-EL,DRI,DRI","TUN","PV-TRK","AEL-EL","DRI","DRI",6657.5999999999995,"öko"]
["TUN,PV-TRK,PEM-EL,CH3OHSYN,CH3OHREC","TUN","PV-TRK","PEM-EL","CH3OHSYN","CH3OHREC",7008,"öko"]
["TUN,RES-HYBR,AEL-EL,,H2-COMP","TUN","RES-HYBR","AEL-EL",null,"H2-COMP",6657.5999999999995]
["TUN,RES-HYBR,AEL-EL,DRI,AEL-EL","TUN","RES-HYBR","AEL-EL","DRI","AEL-EL",3135.4749999999999,"PTX Atlas"]
["TUN,RES-HYBR,AEL-EL,LOHC-CON,LOHC-CON","TUN","RES-HYBR","AEL-EL","LOHC-CON","LOHC-CON",3695.5,"PTX Atlas"]
["TUN,RES-HYBR,PEM-EL,CH3OHSYN,PEM-EL","TUN","RES-HYBR","PEM-EL","CH3OHSYN","PEM-EL",3327,"PTX Atlas"]
["TUN,RES-HYBR,PEM-EL,CH4SYN,PEM-EL","TUN","RES-HYBR","PEM-EL","CH4SYN","PEM-EL",3260,"PTX Atlas"]
["TUN,RES-HYBR,SOEC-EL,CH4SYN,CH4-RGAS","TUN","RES-HYBR","SOEC-EL","CH4SYN","CH4-RGAS",7008,"öko"]
["TUN,RES-HYBR,SOEC-EL,LOHC-CON,LOHC-CON","TUN","RES-HYBR","SOEC-EL","LOHC-CON","LOHC-CON",3507,"PTX Atlas"]
["TUN,RES-HYBR,SOEC-EL,NH3SYN,SOEC-EL","TUN","RES-HYBR","SOEC-EL","NH3SYN","SOEC-EL",5568.5,"PTX Atlas"]
["TUN,WIND-OFF,AEL-EL,CH4SYN,CH4-RGAS","TUN","WIND-OFF","AEL-EL","CH4SYN","CH4-RGAS",6657.5999999999995,"öko"]
["TUN,WIND-OFF,PEM-EL,,PEM-EL","TUN","WIND-OFF","PEM-EL",null,"PEM-EL",4072.267320604547,"PTX Atlas"]
["TUN,WIND-OFF,PEM-EL,CH4SYN,CH4-LIQ","TUN","WIND-OFF","PEM-EL","CH4SYN","CH4-LIQ",5144.4471404878177,"PTX Atlas"]
["TUN,WIND-OFF,PEM-EL,NH3SYN,NH3-REC","TUN","WIND-OFF","PEM-EL","NH3SYN","NH3-REC",7008,"öko"]
["TUN,WIND-OFF,SOEC-EL,DRI,DRI","TUN","WIND-OFF","SOEC-EL","DRI","DRI",7008,"öko"]
["TUN,WIND-OFF,SOEC-EL,LOHC-CON,SOEC-EL","TUN","WIND-OFF","SOEC-EL","LOHC-CON","SOEC-EL",4023.0986612860902,"PTX Atlas"]
["TUN,WIND-ON,AEL-EL,CH4SYN,AEL-EL","TUN","WIND-ON","AEL-EL","CH4SYN","AEL-EL",3097,"PTX Atlas"]
["TUN,WIND-ON,PEM-EL,,H2-COMP","TUN","WIND-ON","PEM-EL",null,"H2-COMP",7008]
["TUN,WIND-ON,PEM-EL,,H2-LIQ","TUN","WIND-ON","PEM-EL",null,"H2-LIQ",3320.5,"öko"]
["TUN,WIND-ON,PEM-EL,LOHC-CON,LOHC-CON","TUN","WIND-ON","PEM-EL","LOHC-CON","LOHC-CON",3890,"PTX Atlas"]
["TUN,WIND-ON,PEM-EL,NH3SYN,PEM-EL","TUN","WIND-ON","PEM-EL","NH3SYN","PEM-EL",3422.5,"PTX Atlas"]
["TUN,WIND-ON,SOEC-EL,CH4SYN,CH4SYN","TUN","WIND-ON","SOEC-EL","CH4SYN","CH4SYN",5979.5,"PTX Atlas"]
["UKR,PV-FIX,AEL-EL,,H2-RGAS","UKR","PV-FIX","AEL-EL",null,"H2-RGAS",6657.5999999999995,"öko"]
["UKR,PV-FIX,AEL-EL,CH4SYN,CH4-LIQ","UKR","PV-FIX","AEL-EL","CH4SYN","CH4-LIQ",7192.4837416637693,"PTX Atlas"]
["UKR,PV-FIX,AEL-EL,NH3SYN,NH3-REC","UKR","PV-FIX","AEL-EL","NH3SYN","NH3-REC",6657.5999999999995,"öko"]
["UKR,PV-FIX,PEM-EL,DRI,PEM-EL","UKR","PV-FIX","PEM-EL","DRI","PEM-EL",2817.2350676476985,"PTX Atlas"]
["UKR,PV-FIX,SOEC-EL,,H2-RGAS","UKR","PV-FIX","SOEC-EL",null,"H2-RGAS",7008,"öko"]
["UKR,PV-FIX,SOEC-EL,CH4SYN,ATR","UKR","PV-FIX","SOEC-EL","CH4SYN","ATR",7008]
["UKR,PV-TRK,AEL-EL,,H2-COMP","UKR","PV-TRK","AEL-EL",null,"H2-COMP",6657.5999999999995]
["UKR,PV-TRK,PEM-EL,CH4SYN,ATR","UKR","PV-TRK","PEM-EL","CH4SYN","ATR",7008]
["UKR,PV-TRK,SOEC-EL,,H2-COMP","UKR","PV-TRK","SOEC-EL",null,"H2-COMP",7008]
["UKR,RES-HYBR,AEL-EL,CH3OHSYN,CH3OHREC","UKR","RES-HYBR","AEL-EL","CH3OHSYN","CH3OHREC",6657.5999999999995,"öko"]
["UKR,RES-HYBR,AEL-EL,CH4SYN,CH4-LIQ","UKR","RES-HYBR","AEL-EL","CH4SYN","CH4-LIQ",6573.405950542905,"PTX Atlas"]
["UKR,RES-HYBR,PEM-EL,,H2-RGAS","UKR","RES-HYBR","PEM-EL",null,"H2-RGAS",7008,"öko"]
["UKR,RES-HYBR,PEM-EL,DRI,PEM-EL","UKR","RES-HYBR","PEM-EL","DRI","PEM-EL",5386.8114364646226,"PTX Atlas"]
["UKR,RES-HYBR,PEM-EL,LOHC-CON,PEM-EL","UKR","RES-HYBR","PEM-EL","LOHC-CON","PEM-EL",5369.5820475321725,"PTX Atlas"]
["UKR,RES-HYBR,SOEC-EL,CH4SYN,SOEC-EL","UKR","RES-HYBR","SOEC-EL","CH4SYN","SOEC-EL",6320.914678348945,"PTX Atlas"]
["UKR,WIND-OFF,AEL-EL,,AEL-EL","UKR","WIND-OFF","AEL-EL",null,"AEL-EL",3868.6539545743194,"PTX Atlas"]
["UKR,WIND-OFF,AEL-EL,CH3OHSYN,CH3OHREC","UKR","WIND-OFF","AEL-EL","CH3OHSYN","CH3OHREC",6657.5999999999995,"öko"]
["UKR,WIND-OFF,AEL-EL,LOHC-CON,LOHC-CON","UKR","WIND-OFF","AEL-EL","LOHC-CON","LOHC-CON",3868.6539545743194,"PTX Atlas"]
["UKR,WIND-OFF,PEM-EL,CH4SYN,CH4SYN","UKR","WIND-OFF","PEM-EL","CH4SYN","CH4SYN",5144.4471404878177,"PTX Atlas"]
["UKR,WIND-OFF,PEM-EL,EFUELSYN,PEM-EL","UKR","WIND-OFF","PEM-EL","EFUELSYN","PEM-EL",4449.500902396625,"PTX Atlas"]
["UKR,WIND-OFF,SOEC-EL,CH3OHSYN,CH3OHREC","UKR","WIND-OFF","SOEC-EL","CH3OHSYN","CH3OHREC",7008,"öko"]
["UKR,WIND-OFF,SOEC-EL,NH3SYN,NH3-REC","UKR","WIND-OFF","SOEC-EL","NH3SYN","NH3-REC",7008,"öko"]
["UKR,WIND-OFF,SOEC-EL,NH3SYN,NH3SYN","UKR","WIND-OFF","SOEC-EL","NH3SYN","NH3SYN",4339.0758753960017,"PTX Atlas"]
["UKR,WIND-ON,AEL-EL,DRI,DRI","UKR","WIND-ON","AEL-EL","DRI","DRI",6657.5999999999995,"öko"]
["UKR,WIND-ON,PEM-EL,,PEM-EL","UKR","WIND-ON","PEM-EL",null,"PEM-EL",3835,"PTX Atlas"]
["UKR,WIND-ON,PEM-EL,CH4SYN,CH4-LIQ","UKR","WIND-ON","PEM-EL","CH4SYN","CH4-LIQ",4868,"PTX Atlas"]
["UKR,WIND-ON,SOEC-EL,,H2-LIQ","UKR","WIND-ON","SOEC-EL",null,"H2-LIQ",4096,"öko"]
["UKR,WIND-ON,SOEC-EL,CH3OHSYN,SOEC-EL","UKR","WIND-ON","SOEC-EL","CH3OHSYN","SOEC-EL",4446,"PTX Atlas"]
["UKR,WIND-ON,SOEC-EL,LOHC-CON,LOHC-REC","UKR","WIND-ON","SOEC-EL","LOHC-CON","LOHC-REC",7008,"öko"]
["URY,PV-FIX,AEL-EL,CH4SYN,CH4-RGAS","URY","PV-FIX","AEL-EL","CH4SYN","CH4-RGAS",6657.5999999999995,"öko"]
["URY,PV-FIX,AEL-EL,NH3SYN,NH3SYN","URY","PV-FIX","AEL-EL","NH3SYN","NH3SYN",6131.2999999999993,"PTX Atlas"]
["URY,PV-FIX,PEM-EL,CH3OHSYN,CH3OHREC","URY","PV-FIX","PEM-EL","CH3OHSYN","CH3OHREC",7008,"öko"]
["URY,PV-FIX,PEM-EL,DRI,DRI","URY","PV-FIX","PEM-EL","DRI","DRI",7008,"öko"]
["URY,PV-FIX,SOEC-EL,CH4SYN,CH4-RGAS","URY","PV-FIX","SOEC-EL","CH4SYN","CH4-RGAS",7008,"öko"]
["URY,PV-FIX,SOEC-EL,EFUELSYN,EFUELSYN","URY","PV-FIX","SOEC-EL","EFUELSYN","EFUELSYN",6343,"PTX Atlas"]
["URY,PV-TRK,AEL-EL,NH3SYN,NH3-REC","URY","PV-TRK","AEL-EL","NH3SYN","NH3-REC",6657.5999999999995,"öko"]
["URY,PV-TRK,PEM-EL,,H2-COMP","URY","PV-TRK","PEM-EL",null,"H2-COMP",7008]
["URY,PV-TRK,SOEC-EL,NH3SYN,NH3-REC","URY","PV-TRK","SOEC-EL","NH3SYN","NH3-REC",7008,"öko"]
["URY,RES-HYBR,AEL-EL,CH4SYN,CH4-RGAS","URY","RES-HYBR","AEL-EL","CH4SYN","CH4-RGAS",6657.5999999999995,"öko"]
["URY,RES-HYBR,AEL-EL,EFUELSYN,EFUELSYN","URY","RES-HYBR","AEL-EL","EFUELSYN","EFUELSYN",6412.0249999999996,"PTX Atlas"]
["URY,RES-HYBR,PEM-EL,CH4SYN,CH4-LIQ","URY","RES-HYBR","PEM-EL","CH4SYN","CH4-LIQ",6803.5,"PTX Atlas"]
["URY,RES-HYBR,PEM-EL,NH3SYN,NH3SYN","URY","RES-HYBR","PEM-EL","NH3SYN","NH3SYN",6194.5,"PTX Atlas"]
["URY,RES-HYBR,SOEC-EL,,SOEC-EL","URY","RES-HYBR","SOEC-EL",null,"SOEC-EL",5683,"PTX Atlas"]
["URY,RES-HYBR,SOEC-EL,EFUELSYN,EFUELSYN","URY","RES-HYBR","SOEC-EL","EFUELSYN","EFUELSYN",6313,"PTX Atlas"]
["URY,WIND-OFF,AEL-EL,CH4SYN,AEL-EL","URY","WIND-OFF","AEL-EL","CH4SYN","AEL-EL",4817.7625013732513,"PTX Atlas"]
["URY,WIND-OFF,AEL-EL,DRI,AEL-EL","URY","WIND-OFF","AEL-EL","DRI","AEL-EL",4872.8735676075748,"PTX Atlas"]
["URY,WIND-OFF,PEM-EL,,H2-LIQ","URY","WIND-OFF","PEM-EL",null,"H2-LIQ",4960.8611358779763,"öko"]
["URY,WIND-OFF,PEM-EL,LOHC-CON,LOHC-CON","URY","WIND-OFF","PEM-EL","LOHC-CON","LOHC-CON",4754.5957918753993,"PTX Atlas"]
["URY,WIND-OFF,PEM-EL,LOHC-CON,LOHC-REC","URY","WIND-OFF","PEM-EL","LOHC-CON","LOHC-REC",7008,"öko"]
["URY,WIND-OFF,SOEC-EL,CH4SYN,SOEC-EL","URY","WIND-OFF","SOEC-EL","CH4SYN","SOEC-EL",5274.2003272640413,"PTX Atlas"]
["URY,WIND-OFF,SOEC-EL,LOHC-CON,LOHC-CON","URY","WIND-OFF","SOEC-EL","LOHC-CON","LOHC-CON",4712.1654748662013,"PTX Atlas"]
["URY,WIND-ON,AEL-EL,CH3OHSYN,CH3OHREC","URY","WIND-ON","AEL-EL","CH3OHSYN","CH3OHREC",6657.5999999999995,"öko"]
["URY,WIND-ON,AEL-EL,NH3SYN,NH3-REC","URY","WIND-ON","AEL-EL","NH3SYN","NH3-REC",6657.5999999999995,"öko"]
["URY,WIND-ON,PEM-EL,,PEM-EL","URY","WIND-ON","PEM-EL",null,"PEM-EL",4547.5,"PTX Atlas"]
["URY,WIND-ON,PEM-EL,EFUELSYN,EFUELSYN","URY","WIND-ON","PEM-EL","EFUELSYN","EFUELSYN",5663,"PTX Atlas"]
["URY,WIND-ON,SOEC-EL,CH4SYN,ATR","URY","WIND-ON","SOEC-EL","CH4SYN","ATR",7008]
["URY,WIND-ON,SOEC-EL,NH3SYN,NH3-REC","URY","WIND-ON","SOEC-EL","NH3SYN","NH3-REC",7008,"öko"]
["USA,PV-FIX,AEL-EL,,H2-LIQ","USA","PV-FIX","AEL-EL",null,"H2-LIQ",2671.875,"öko"]
["USA,PV-FIX,AEL-EL,LOHC-CON,LOHC-CON","USA","PV-FIX","AEL-EL","LOHC-CON","LOHC-CON",2628.1749999999997,"PTX Atlas"]
["USA,PV-FIX,PEM-EL,CH3OHSYN,PEM-EL","USA","PV-FIX","PEM-EL","CH3OHSYN","PEM-EL",2889,"PTX Atlas"]
["USA,PV-FIX,PEM-EL,CH4SYN,PEM-EL","USA","PV-FIX","PEM-EL","CH4SYN","PEM-EL",2850,"PTX Atlas"]
["USA,PV-FIX,SOEC-EL,CH3OHSYN,CH3OHREC","USA","PV-FIX","SOEC-EL","CH3OHSYN","CH3OHREC",7008,"öko"]
["USA,PV-FIX,SOEC-EL,CH3OHSYN,CH3OHSYN","USA","PV-FIX","SOEC-EL","CH3OHSYN","CH3OHSYN",7046,"PTX Atlas"]
["USA,PV-FIX,SOEC-EL,NH3SYN,NH3SYN","USA","PV-FIX","SOEC-EL","NH3SYN","NH3SYN",4276,"PTX Atlas"]
["USA,PV-TRK,AEL-EL,LOHC-CON,LOHC-REC","USA","PV-TRK","AEL-EL","LOHC-CON","LOHC-REC",6657.5999999999995,"öko"]
["USA,PV-TRK,PEM-EL,NH3SYN,NH3-REC","USA","PV-TRK","PEM-EL","NH3SYN","NH3-REC",7008,"öko"]
["USA,RES-HYBR,AEL-EL,CH3OHSYN,CH3OHSYN","USA","RES-HYBR","AEL-EL","CH3OHSYN","CH3OHSYN",6268.0999999999995,"PTX Atlas"]
["USA,RES-HYBR,AEL-EL,LOHC-CON,LOHC-CON","USA","RES-HYBR","AEL-EL","LOHC-CON","LOHC-CON",5447.3,"PTX Atlas"]
["USA,RES-HYBR,PEM-EL,,H2-COMP","USA","RES-HYBR","PEM-EL",null,"H2-COMP",7008]
["USA,RES-HYBR,PEM-EL,EFUELSYN,PEM-EL","USA","RES-HYBR","PEM-EL","EFUELSYN","PEM-EL",6118.5,"PTX Atlas"]
["USA,RES-HYBR,SOEC-EL,CH3OHSYN,CH3OHREC","USA","RES-HYBR","SOEC-EL","CH3OHSYN","CH3OHREC",7008,"öko"]
["USA,RES-HYBR,SOEC-EL,CH4SYN,CH4-RGAS","USA","RES-HYBR","SOEC-EL","CH4SYN","CH4-RGAS",7008,"öko"]
["USA,WIND-OFF,AEL-EL,,H2-LIQ","USA","WIND-OFF","AEL-EL",null,"H2-LIQ",4854.214724415845,"öko"]
["USA,WIND-OFF,AEL-EL,EFUELSYN,AEL-EL","USA","WIND-OFF","AEL-EL","EFUELSYN","AEL-EL",5016.3952810144146,"PTX Atlas"]
["USA,WIND-OFF,AEL-EL,NH3SYN,AEL-EL","USA","WIND-OFF","AEL-EL","NH3SYN","AEL-EL",4860.637935513113,"PTX Atlas"]
["USA,WIND-OFF,PEM-EL,CH4SYN,CH4-LIQ","USA","WIND-OFF","PEM-EL","CH4SYN","CH4-LIQ",5719.9789224648539,"PTX Atlas"]
["USA,WIND-OFF,PEM-EL,DRI,PEM-EL","USA","WIND-OFF","PEM-EL","DRI","PEM-EL",5280.4160852783316,"PTX Atlas"]
["USA,WIND-OFF,SOEC-EL,,H2-RGAS","USA","WIND-OFF","SOEC-EL",null,"H2-RGAS",7008,"öko"]
["USA,WIND-OFF,SOEC-EL,LOHC-CON,LOHC-REC","USA","WIND-OFF","SOEC-EL","LOHC-CON","LOHC-REC",7008,"öko"]
["USA,WIND-ON,AEL-EL,,AEL-EL","USA","WIND-ON","AEL-EL",null,"AEL-EL",4313.95,"PTX Atlas"]
["USA,WIND-ON,AEL-EL,CH4SYN,CH4SYN","USA","WIND-ON","AEL-EL","CH4SYN","CH4SYN",5191.75,"PTX Atlas"]
["USA,WIND-ON,PEM-EL,CH3OHSYN,CH3OHSYN","USA","WIND-ON","PEM-EL","CH3OHSYN","CH3OHSYN",5463,"PTX Atlas"]
["USA,WIND-ON,PEM-EL,CH4SYN,CH4SYN","USA","WIND-ON","PEM-EL","CH4SYN","CH4SYN",5465,"PTX Atlas"]
["USA,WIND-ON,PEM-EL,NH3SYN,PEM-EL","USA","WIND-ON","PEM-EL","NH3SYN","PEM-EL",4778,"PTX Atlas"]
["USA,WIND-ON,SOEC-EL,EFUELSYN,EFUELSYN","USA","WIND-ON","SOEC-EL","EFUELSYN","EFUELSYN",5120,"PTX Atlas"]
["VNM,PV-FIX,AEL-EL,,H2-RGAS","VNM","PV-FIX","AEL-EL",null,"H2-RGAS",6657.5999999999995,"öko"]
["VNM,PV-FIX,AEL-EL,CH4SYN,ATR","VNM","PV-FIX","AEL-EL","CH4SYN","ATR",6657.5999999999995]
["VNM,PV-FIX,PEM-EL,,H2-LIQ","VNM","PV-FIX","PEM-EL",null,"H2-LIQ",2695.2801596711661,"öko"]
["VNM,PV-FIX,PEM-EL,CH4SYN,CH4-RGAS","VNM","PV-FIX","PEM-EL","CH4SYN","CH4-RGAS",7008,"öko"]
["VNM,PV-FIX,PEM-EL,LOHC-CON,PEM-EL","VNM","PV-FIX","PEM-EL","LOHC-CON","PEM-EL",2623.0460669916292]
["VNM,PV-FIX,SOEC-EL,CH4SYN,ATR","VNM","PV-FIX","SOEC-EL","CH4SYN","ATR",7008]
["VNM,PV-FIX,SOEC-EL,DRI,DRI","VNM","PV-FIX","SOEC-EL","DRI","DRI",7008,"öko"]
["VNM,PV-TRK,AEL-EL,DRI,DRI","VNM","PV-TRK","AEL-EL","DRI","DRI",6657.5999999999995,"öko"]
["VNM,PV-TRK,SOEC-EL,,H2-COMP","VNM","PV-TRK","SOEC-EL",null,"H2-COMP",7008]
["VNM,PV-TRK,SOEC-EL,DRI,DRI","VNM","PV-TRK","SOEC-EL","DRI","DRI",7008,"öko"]
["VNM,RES-HYBR,AEL-EL,DRI,AEL-EL","VNM","RES-HYBR","AEL-EL","DRI","AEL-EL",4720.4610329291418]
["VNM,RES-HYBR,AEL-EL,LOHC-CON,AEL-EL","VNM","RES-HYBR","AEL-EL","LOHC-CON","AEL-EL",4737.086508859752]
["VNM,RES-HYBR,PEM-EL,CH4SYN,ATR","VNM","RES-HYBR","PEM-EL","CH4SYN","ATR",7008]
["VNM,RES-HYBR,PEM-EL,LOHC-CON,PEM-EL","VNM","RES-HYBR","PEM-EL","LOHC-CON","PEM-EL",4986.4068514313185]
["VNM,RES-HYBR,SOEC-EL,CH4SYN,SOEC-EL","VNM","RES-HYBR","SOEC-EL","CH4SYN","SOEC-EL",6392.3163233198429]
["VNM,RES-HYBR,SOEC-EL,LOHC-CON,LOHC-CON","VNM","RES-HYBR","SOEC-EL","LOHC-CON","LOHC-CON",4830.6070340028855]
["VNM,WIND-OFF,AEL-EL,CH3OHSYN,CH3OHREC","VNM","WIND-OFF","AEL-EL","CH3OHSYN","CH3OHREC",6657.5999999999995,"öko"]
["VNM,WIND-OFF,AEL-EL,CH4SYN,CH4-RGAS","VNM","WIND-OFF","AEL-EL","CH4SYN","CH4-RGAS",6657.5999999999995,"öko"]
["VNM,WIND-OFF,PEM-EL,CH3OHSYN,CH3OHSYN","VNM","WIND-OFF","PEM-EL","CH3OHSYN","CH3OHSYN",5457.4426624318039]
["VNM,WIND-OFF,PEM-EL,EFUELSYN,PEM-EL","VNM","WIND-OFF","PEM-EL","EFUELSYN","PEM-EL",4890.9302681186555]
["VNM,WIND-OFF,PEM-EL,NH3SYN,NH3SYN","VNM","WIND-OFF","PEM-EL","NH3SYN","NH3SYN",4889.4511944858004]
["VNM,WIND-OFF,SOEC-EL,CH4SYN,CH4-RGAS","VNM","WIND-OFF","SOEC-EL","CH4SYN","CH4-RGAS",7008,"öko"]
["VNM,WIND-ON,AEL-EL,,H2-LIQ","VNM","WIND-ON","AEL-EL",null,"H2-LIQ",4489.6818094217215,"öko"]
["VNM,WIND-ON,AEL-EL,CH4SYN,AEL-EL","VNM","WIND-ON","AEL-EL","CH4SYN","AEL-EL",4590.3796967797116]
["VNM,WIND-ON,AEL-EL,LOHC-CON,LOHC-REC","VNM","WIND-ON","AEL-EL","LOHC-CON","LOHC-REC",6657.5999999999995,"öko"]
["VNM,WIND-ON,PEM-EL,CH4SYN,PEM-EL","VNM","WIND-ON","PEM-EL","CH4SYN","PEM-EL",4831.9786281891702]
["VNM,WIND-ON,PEM-EL,LOHC-CON,PEM-EL","VNM","WIND-ON","PEM-EL","LOHC-CON","PEM-EL",4515.3126833050901]
["VNM,WIND-ON,SOEC-EL,CH3OHSYN,SOEC-EL","VNM","WIND-ON","SOEC-EL","CH3OHSYN","SOEC-EL",5053.2014274636531]
["VNM,WIND-ON,SOEC-EL,NH3SYN,SOEC-EL","VNM","WIND-ON","SOEC-EL","NH3SYN","SOEC-EL",4760.7665171977405]
["ZAF,PV-FIX,AEL-EL,,AEL-EL","ZAF","PV-FIX","AEL-EL",null,"AEL-EL",2640.0499999999997,"PTX Atlas"]
["ZAF,PV-FIX,AEL-EL,EFUELSYN,EFUELSYN","ZAF","PV-FIX","AEL-EL","EFUELSYN","EFUELSYN",7174.4,"PTX Atlas"]
["ZAF,PV-FIX,AEL-EL,NH3SYN,NH3-REC","ZAF","PV-FIX","AEL-EL","NH3SYN","NH3-REC",6657.5999999999995,"öko"]
["ZAF,PV-FIX,PEM-EL,CH4SYN,CH4-RGAS","ZAF","PV-FIX","PEM-EL","CH4SYN","CH4-RGAS",7008,"öko"]
["ZAF,PV-FIX,SOEC-EL,,H2-RGAS","ZAF","PV-FIX","SOEC-EL",null,"H2-RGAS",7008,"öko"]
["ZAF,PV-FIX,SOEC-EL,LOHC-CON,LOHC-CON","ZAF","PV-FIX","SOEC-EL","LOHC-CON","LOHC-CON",2752,"PTX Atlas"]
["ZAF,PV-FIX,SOEC-EL,NH3SYN,NH3-REC","ZAF","PV-FIX","SOEC-EL","NH3SYN","NH3-REC",7008,"öko"]
["ZAF,PV-TRK,PEM-EL,CH4SYN,CH4-RGAS","ZAF","PV-TRK","PEM-EL","CH4SYN","CH4-RGAS",7008,"öko"]
["ZAF,PV-TRK,SOEC-EL,NH3SYN,NH3-REC","ZAF","PV-TRK","SOEC-EL","NH3SYN","NH3-REC",7008,"öko"]
["ZAF,RES-HYBR,AEL-EL,CH3OHSYN,AEL-EL","ZAF","RES-HYBR","AEL-EL","CH3OHSYN","AEL-EL",3539.7,"PTX Atlas"]
["ZAF,RES-HYBR,AEL-EL,NH3SYN,AEL-EL","ZAF","RES-HYBR","AEL-EL","NH3SYN","AEL-EL",3580.0749999999998,"PTX Atlas"]
["ZAF,RES-HYBR,PEM-EL,CH4SYN,CH4-LIQ","ZAF","RES-HYBR","PEM-EL","CH4SYN","CH4-LIQ",7288.5,"PTX Atlas"]
["ZAF,RES-HYBR,PEM-EL,DRI,PEM-EL","ZAF","RES-HYBR","PEM-EL","DRI","PEM-EL",3704,"PTX Atlas"]
["ZAF,RES-HYBR,SOEC-EL,,H2-LIQ","ZAF","RES-HYBR","SOEC-EL",null,"H2-LIQ",3482,"öko"]
["ZAF,RES-HYBR,SOEC-EL,CH4SYN,CH4-LIQ","ZAF","RES-HYBR","SOEC-EL","CH4SYN","CH4-LIQ",5862.5,"PTX Atlas"]
["ZAF,WIND-OFF,AEL-EL,,H2-COMP","ZAF","WIND-OFF","AEL-EL",null,"H2-COMP",6657.5999999999995]
["ZAF,WIND-OFF,AEL-EL,DRI,AEL-EL","ZAF","WIND-OFF","AEL-EL","DRI","AEL-EL",5088.1561377178359,"PTX Atlas"]
["ZAF,WIND-OFF,AEL-EL,LOHC-CON,LOHC-CON","ZAF","WIND-OFF","AEL-EL","LOHC-CON","LOHC-CON",4732.9366848507316,"PTX Atlas"]
["ZAF,WIND-OFF,PEM-EL,CH3OHSYN,PEM-EL","ZAF","WIND-OFF","PEM-EL","CH3OHSYN","PEM-EL",5387.1673327488234,"PTX Atlas"]
["ZAF,WIND-OFF,PEM-EL,NH3SYN,PEM-EL","ZAF","WIND-OFF","PEM-EL","NH3SYN","PEM-EL",5189.878630530704,"PTX Atlas"]
["ZAF,WIND-OFF,SOEC-EL,CH3OHSYN,CH3OHREC","ZAF","WIND-OFF","SOEC-EL","CH3OHSYN","CH3OHREC",7008,"öko"]
["ZAF,WIND-OFF,SOEC-EL,NH3SYN,SOEC-EL","ZAF","WIND-OFF","SOEC-EL","NH3SYN","SOEC-EL",5204.9963286755892,"PTX Atlas"]
["ZAF,WIND-ON,AEL-EL,CH4SYN,CH4-LIQ","ZAF","WIND-ON","AEL-EL","CH4SYN","CH4-LIQ",5749.4,"PTX Atlas"]
["ZAF,WIND-ON,AEL-EL,EFUELSYN,AEL-EL","ZAF","WIND-ON","AEL-EL","EFUELSYN","AEL-EL",4158.1499999999996,"PTX Atlas"]
["ZAF,WIND-ON,PEM-EL,,PEM-EL","ZAF","WIND-ON","PEM-EL",null,"PEM-EL",4149,"PTX Atlas"]
["ZAF,WIND-ON,PEM-EL,LOHC-CON,PEM-EL","ZAF","WIND-ON","PEM-EL","LOHC-CON","PEM-EL",4149,"PTX Atlas"]
["ZAF,WIND-ON,PEM-EL,NH3SYN,NH3-REC","ZAF","WIND-ON","PEM-EL","NH3SYN","NH3-REC",7008,"öko"]
["ZAF,WIND-ON,SOEC-EL,DRI,DRI","ZAF","WIND-ON","SOEC-EL","DRI","DRI",7008,"öko"]
["ZAF,WIND-ON,SOEC-EL,LOHC-CON,LOHC-REC","ZAF","WIND-ON","SOEC-EL","LOHC-CON","LOHC-REC",7008,"öko"]
["ZAF-EC,PV-FIX,AEL-EL,CH4SYN,ATR","ZAF-EC","PV-FIX","AEL-EL","CH4SYN","ATR",6657.5999999999995]
["ZAF-EC,PV-FIX,PEM-EL,,H2-COMP","ZAF-EC","PV-FIX","PEM-EL",null,"H2-COMP",7008]
["ZAF-EC,PV-FIX,PEM-EL,CH4SYN,PEM-EL","ZAF-EC","PV-FIX","PEM-EL","CH4SYN","PEM-EL",2993.7731411758755,"PTX Atlas"]
["ZAF-EC,PV-FIX,PEM-EL,LOHC-CON,LOHC-CON","ZAF-EC","PV-FIX","PEM-EL","LOHC-CON","LOHC-CON",2901.6613791028876,"PTX Atlas"]
["ZAF-EC,PV-FIX,SOEC-EL,CH4SYN,CH4-RGAS","ZAF-EC","PV-FIX","SOEC-EL","CH4SYN","CH4-RGAS",7008,"öko"]
["ZAF-EC,PV-FIX,SOEC-EL,NH3SYN,NH3SYN","ZAF-EC","PV-FIX","SOEC-EL","NH3SYN","NH3SYN",4595.5934068384304,"PTX Atlas"]
["ZAF-EC,PV-TRK,AEL-EL,CH4SYN,ATR","ZAF-EC","PV-TRK","AEL-EL","CH4SYN","ATR",6657.5999999999995]
["ZAF-EC,PV-TRK,SOEC-EL,CH3OHSYN,CH3OHREC","ZAF-EC","PV-TRK","SOEC-EL","CH3OHSYN","CH3OHREC",7008,"öko"]
["ZAF-EC,RES-HYBR,AEL-EL,CH3OHSYN,AEL-EL","ZAF-EC","RES-HYBR","AEL-EL","CH3OHSYN","AEL-EL",5480.447010500201,"PTX Atlas"]
["ZAF-EC,RES-HYBR,AEL-EL,CH4SYN,CH4SYN","ZAF-EC","RES-HYBR","AEL-EL","CH4SYN","CH4SYN",6450.8751830451602,"PTX Atlas"]
["ZAF-EC,RES-HYBR,PEM-EL,,H2-COMP","ZAF-EC","RES-HYBR","PEM-EL",null,"H2-COMP",7008]
["ZAF-EC,RES-HYBR,PEM-EL,CH3OHSYN,CH3OHSYN","ZAF-EC","RES-HYBR","PEM-EL","CH3OHSYN","CH3OHSYN",6790.964664082836,"PTX Atlas"]
["ZAF-EC,RES-HYBR,PEM-EL,NH3SYN,NH3SYN","ZAF-EC","RES-HYBR","PEM-EL","NH3SYN","NH3SYN",6350.0069519328899,"PTX Atlas"]
["ZAF-EC,RES-HYBR,SOEC-EL,CH4SYN,CH4-RGAS","ZAF-EC","RES-HYBR","SOEC-EL","CH4SYN","CH4-RGAS",7008,"öko"]
["ZAF-EC,RES-HYBR,SOEC-EL,EFUELSYN,EFUELSYN","ZAF-EC","RES-HYBR","SOEC-EL","EFUELSYN","EFUELSYN",6246.4352537808318,"PTX Atlas"]
["ZAF-EC,WIND-OFF,AEL-EL,CH4SYN,AEL-EL","ZAF-EC","WIND-OFF","AEL-EL","CH4SYN","AEL-EL",5033.8938758757413,"PTX Atlas"]
["ZAF-EC,WIND-OFF,AEL-EL,DRI,DRI","ZAF-EC","WIND-OFF","AEL-EL","DRI","DRI",6657.5999999999995,"öko"]
["ZAF-EC,WIND-OFF,PEM-EL,,H2-RGAS","ZAF-EC","WIND-OFF","PEM-EL",null,"H2-RGAS",7008,"öko"]
["ZAF-EC,WIND-OFF,PEM-EL,DRI,PEM-EL","ZAF-EC","WIND-OFF","PEM-EL","DRI","PEM-EL",5355.9538291766694,"PTX Atlas"]
["ZAF-EC,WIND-OFF,SOEC-EL,CH3OHSYN,SOEC-EL","ZAF-EC","WIND-OFF","SOEC-EL","CH3OHSYN","SOEC-EL",5489.3249612586951,"PTX Atlas"]
["ZAF-EC,WIND-OFF,SOEC-EL,CH4SYN,SOEC-EL","ZAF-EC","WIND-OFF","SOEC-EL","CH4SYN","SOEC-EL",5486.6534090196183,"PTX Atlas"]
["ZAF-EC,WIND-ON,AEL-EL,,AEL-EL","ZAF-EC","WIND-ON","AEL-EL",null,"AEL-EL",4566.2677128910364,"PTX Atlas"]
["ZAF-EC,WIND-ON,AEL-EL,EFUELSYN,EFUELSYN","ZAF-EC","WIND-ON","AEL-EL","EFUELSYN","EFUELSYN",5341.8040984437093,"PTX Atlas"]
["ZAF-EC,WIND-ON,AEL-EL,LOHC-CON,AEL-EL","ZAF-EC","WIND-ON","AEL-EL","LOHC-CON","AEL-EL",4566.2677128910364,"PTX Atlas"]
["ZAF-EC,WIND-ON,PEM-EL,CH4SYN,PEM-EL","ZAF-EC","WIND-ON","PEM-EL","CH4SYN","PEM-EL",5123.3453562025516,"PTX Atlas"]
["ZAF-EC,WIND-ON,PEM-EL,EFUELSYN,PEM-EL","ZAF-EC","WIND-ON","PEM-EL","EFUELSYN","PEM-EL",5181.1527228442892,"PTX Atlas"]
["ZAF-EC,WIND-ON,SOEC-EL,CH3OHSYN,CH3OHREC","ZAF-EC","WIND-ON","SOEC-EL","CH3OHSYN","CH3OHREC",7008,"öko"]
["ZAF-EC,WIND-ON,SOEC-EL,NH3SYN,NH3-REC","ZAF-EC","WIND-ON","SOEC-EL","NH3SYN","NH3-REC",7008,"öko"]
["ZAF-FRS,PV-FIX,AEL-EL,,H2-LIQ","ZAF-FRS","PV-FIX","AEL-EL",null,"H2-LIQ",2849.4492819307061,"öko"]
["ZAF-FRS,PV-FIX,AEL-EL,DRI,DRI","ZAF-FRS","PV-FIX","AEL-EL","DRI","DRI",6657.5999999999995,"öko"]
["ZAF-FRS,PV-FIX,PEM-EL,CH3OHSYN,PEM-EL","ZAF-FRS","PV-FIX","PEM-EL","CH3OHSYN","PEM-EL",3092.0250387017518,"PTX Atlas"]
["ZAF-FRS,PV-FIX,PEM-EL,LOHC-CON,LOHC-REC","ZAF-FRS","PV-FIX","PEM-EL","LOHC-CON","LOHC-REC",7008,"öko"]
["ZAF-FRS,PV-FIX,PEM-EL,NH3SYN,NH3SYN","ZAF-FRS","PV-FIX","PEM-EL","NH3SYN","NH3SYN",8192.8362748373584,"PTX Atlas"]
["ZAF-FRS,PV-FIX,SOEC-EL,LOHC-CON,LOHC-CON","ZAF-FRS","PV-FIX","SOEC-EL","LOHC-CON","LOHC-CON",2930.5176921250904,"PTX Atlas"]
["ZAF-FRS,PV-TRK,AEL-EL,DRI,DRI","ZAF-FRS","PV-TRK","AEL-EL","DRI","DRI",6657.5999999999995,"öko"]
["ZAF-FRS,PV-TRK,PEM-EL,CH3OHSYN,CH3OHREC","ZAF-FRS","PV-TRK","PEM-EL","CH3OHSYN","CH3OHREC",7008,"öko"]
["ZAF-FRS,RES-HYBR,AEL-EL,,H2-COMP","ZAF-FRS","RES-HYBR","AEL-EL",null,"H2-COMP",6657.5999999999995]
["ZAF-FRS,RES-HYBR,AEL-EL,,H2-LIQ","ZAF-FRS","RES-HYBR","AEL-EL",null,"H2-LIQ",4330.1064556569754,"öko"]
["ZAF-FRS,RES-HYBR,AEL-EL,LOHC-CON,LOHC-CON","ZAF-FRS","RES-HYBR","AEL-EL","LOHC-CON","LOHC-CON",4425.0744073961459,"PTX Atlas"]
["ZAF-FRS,RES-HYBR,PEM-EL,,H2-COMP","ZAF-FRS","RES-HYBR","PEM-EL",null,"H2-COMP",7008]
["ZAF-FRS,RES-HYBR,PEM-EL,DRI,DRI","ZAF-FRS","RES-HYBR","PEM-EL","DRI","DRI",7008,"öko"]
["ZAF-FRS,RES-HYBR,SOEC-EL,CH3OHSYN,CH3OHSYN","ZAF-FRS","RES-HYBR","SOEC-EL","CH3OHSYN","CH3OHSYN",6467.6123142190436,"PTX Atlas"]
["ZAF-FRS,RES-HYBR,SOEC-EL,LOHC-CON,LOHC-CON","ZAF-FRS","RES-HYBR","SOEC-EL","LOHC-CON","LOHC-CON",4503.2195855806112,"PTX Atlas"]
["ZAF-FRS,RES-HYBR,SOEC-EL,NH3SYN,SOEC-EL","ZAF-FRS","RES-HYBR","SOEC-EL","NH3SYN","SOEC-EL",5587.0763945193239,"PTX Atlas"]
["ZAF-FRS,WIND-OFF,AEL-EL,CH4SYN,CH4-RGAS","ZAF-FRS","WIND-OFF","AEL-EL","CH4SYN","CH4-RGAS",6657.5999999999995,"öko"]
["ZAF-FRS,WIND-OFF,PEM-EL,,PEM-EL","ZAF-FRS","WIND-OFF","PEM-EL",null,"PEM-EL",1418.7677101067909,"PTX Atlas"]
["ZAF-FRS,WIND-OFF,PEM-EL,CH4SYN,CH4-LIQ","ZAF-FRS","WIND-OFF","PEM-EL","CH4SYN","CH4-LIQ",3313.2096523790692,"PTX Atlas"]
["ZAF-FRS,WIND-OFF,PEM-EL,NH3SYN,NH3SYN","ZAF-FRS","WIND-OFF","PEM-EL","NH3SYN","NH3SYN",2231.2528039295771,"PTX Atlas"]
["ZAF-FRS,WIND-OFF,SOEC-EL,DRI,SOEC-EL","ZAF-FRS","WIND-OFF","SOEC-EL","DRI","SOEC-EL",2171.7808097029783,"PTX Atlas"]
["ZAF-FRS,WIND-OFF,SOEC-EL,LOHC-CON,SOEC-EL","ZAF-FRS","WIND-OFF","SOEC-EL","LOHC-CON","SOEC-EL",1343.394386252327,"PTX Atlas"]
["ZAF-FRS,WIND-ON,AEL-EL,CH4SYN,AEL-EL","ZAF-FRS","WIND-ON","AEL-EL","CH4SYN","AEL-EL",3930.6262844471385,"PTX Atlas"]
["ZAF-FRS,WIND-ON,AEL-EL,DRI,AEL-EL","ZAF-FRS","WIND-ON","AEL-EL","DRI","AEL-EL",3989.221366452733,"PTX Atlas"]
["ZAF-FRS,WIND-ON,PEM-EL,,H2-LIQ","ZAF-FRS","WIND-ON","PEM-EL",null,"H2-LIQ",4044.4734309139631,"öko"]
["ZAF-FRS,WIND-ON,PEM-EL,LOHC-CON,LOHC-CON","ZAF-FRS","WIND-ON","PEM-EL","LOHC-CON","LOHC-CON",3821.0304235932999,"PTX Atlas"]
["ZAF-FRS,WIND-ON,PEM-EL,NH3SYN,PEM-EL","ZAF-FRS","WIND-ON","PEM-EL","NH3SYN","PEM-EL",4065.5720450397007,"PTX Atlas"]
["ZAF-FRS,WIND-ON,SOEC-EL,LOHC-CON,SOEC-EL","ZAF-FRS","WIND-ON","SOEC-EL","LOHC-CON","SOEC-EL",3769.380671540101,"PTX Atlas"]
["ZAF-GAU,PV-FIX,AEL-EL,CH3OHSYN,AEL-EL","ZAF-GAU","PV-FIX","AEL-EL","CH3OHSYN","AEL-EL",2915.0975961383465,"PTX Atlas"]
["ZAF-GAU,PV-FIX,AEL-EL,EFUELSYN,EFUELSYN","ZAF-GAU","PV-FIX","AEL-EL","EFUELSYN","EFUELSYN",7754.0550976158338,"PTX Atlas"]
["ZAF-GAU,PV-FIX,AEL-EL,NH3SYN,NH3-REC","ZAF-GAU","PV-FIX","AEL-EL","NH3SYN","NH3-REC",6657.5999999999995,"öko"]
["ZAF-GAU,PV-FIX,PEM-EL,DRI,PEM-EL","ZAF-GAU","PV-FIX","PEM-EL","DRI","PEM-EL",3039.6207212751306,"PTX Atlas"]
["ZAF-GAU,PV-FIX,SOEC-EL,,H2-RGAS","ZAF-GAU","PV-FIX","SOEC-EL",null,"H2-RGAS",7008,"öko"]
["ZAF-GAU,PV-FIX,SOEC-EL,CH4SYN,ATR","ZAF-GAU","PV-FIX","SOEC-EL","CH4SYN","ATR",7008]
["ZAF-GAU,PV-TRK,AEL-EL,,H2-COMP","ZAF-GAU","PV-TRK","AEL-EL",null,"H2-COMP",6657.5999999999995]
["ZAF-GAU,PV-TRK,AEL-EL,DRI,DRI","ZAF-GAU","PV-TRK","AEL-EL","DRI","DRI",6657.5999999999995,"öko"]
["ZAF-GAU,PV-TRK,SOEC-EL,,H2-RGAS","ZAF-GAU","PV-TRK","SOEC-EL",null,"H2-RGAS",7008,"öko"]
["ZAF-GAU,RES-HYBR,AEL-EL,CH3OHSYN,AEL-EL","ZAF-GAU","RES-HYBR","AEL-EL","CH3OHSYN","AEL-EL",3574.0646483356359,"PTX Atlas"]
["ZAF-GAU,RES-HYBR,AEL-EL,CH4SYN,CH4-LIQ","ZAF-GAU","RES-HYBR","AEL-EL","CH4SYN","CH4-LIQ",7146.9710860724654,"PTX Atlas"]
["ZAF-GAU,RES-HYBR,PEM-EL,,H2-RGAS","ZAF-GAU","RES-HYBR","PEM-EL",null,"H2-RGAS",7008,"öko"]
["ZAF-GAU,RES-HYBR,PEM-EL,DRI,PEM-EL","ZAF-GAU","RES-HYBR","PEM-EL","DRI","PEM-EL",3757.1990000000001,"PTX Atlas"]
["ZAF-GAU,RES-HYBR,PEM-EL,LOHC-CON,PEM-EL","ZAF-GAU","RES-HYBR","PEM-EL","LOHC-CON","PEM-EL",3856.616977030169,"PTX Atlas"]
["ZAF-GAU,RES-HYBR,SOEC-EL,CH4SYN,SOEC-EL","ZAF-GAU","RES-HYBR","SOEC-EL","CH4SYN","SOEC-EL",6602.8436651848269,"PTX Atlas"]
["ZAF-GAU,WIND-OFF,AEL-EL,,H2-COMP","ZAF-GAU","WIND-OFF","AEL-EL",null,"H2-COMP",6657.5999999999995]
["ZAF-GAU,WIND-OFF,AEL-EL,CH3OHSYN,CH3OHSYN","ZAF-GAU","WIND-OFF","AEL-EL","CH3OHSYN","CH3OHSYN",3183.2021531666219,"PTX Atlas"]
["ZAF-GAU,WIND-OFF,AEL-EL,LOHC-CON,LOHC-CON","ZAF-GAU","WIND-OFF","AEL-EL","LOHC-CON","LOHC-CON",1347.8293246014512,"PTX Atlas"]
["ZAF-GAU,WIND-OFF,PEM-EL,CH4SYN,CH4SYN","ZAF-GAU","WIND-OFF","PEM-EL","CH4SYN","CH4SYN",3313.2096523790692,"PTX Atlas"]
["ZAF-GAU,WIND-OFF,PEM-EL,EFUELSYN,PEM-EL","ZAF-GAU","WIND-OFF","PEM-EL","EFUELSYN","PEM-EL",1805.6798659548303,"PTX Atlas"]
["ZAF-GAU,WIND-OFF,SOEC-EL,CH3OHSYN,CH3OHREC","ZAF-GAU","WIND-OFF","SOEC-EL","CH3OHSYN","CH3OHREC",7008,"öko"]
["ZAF-GAU,WIND-OFF,SOEC-EL,CH4SYN,CH4-RGAS","ZAF-GAU","WIND-OFF","SOEC-EL","CH4SYN","CH4-RGAS",7008,"öko"]
["ZAF-GAU,WIND-OFF,SOEC-EL,NH3SYN,NH3SYN","ZAF-GAU","WIND-OFF","SOEC-EL","NH3SYN","NH3SYN",1813.4745533305361,"PTX Atlas"]
["ZAF-GAU,WIND-ON,AEL-EL,CH4SYN,CH4-RGAS","ZAF-GAU","WIND-ON","AEL-EL","CH4SYN","CH4-RGAS",6657.5999999999995,"öko"]
["ZAF-GAU,WIND-ON,AEL-EL,NH3SYN,AEL-EL","ZAF-GAU","WIND-ON","AEL-EL","NH3SYN","AEL-EL",3300.3573936300627,"PTX Atlas"]
["ZAF-GAU,WIND-ON,PEM-EL,CH4SYN,CH4-LIQ","ZAF-GAU","WIND-ON","PEM-EL","CH4SYN","CH4-LIQ",4549.5224731009166,"PTX Atlas"]
["ZAF-GAU,WIND-ON,SOEC-EL,,H2-LIQ","ZAF-GAU","WIND-ON","SOEC-EL",null,"H2-LIQ",3378.8243651965104,"öko"]
["ZAF-GAU,WIND-ON,SOEC-EL,CH3OHSYN,SOEC-EL","ZAF-GAU","WIND-ON","SOEC-EL","CH3OHSYN","SOEC-EL",3833.6716792686898,"PTX Atlas"]
["ZAF-GAU,WIND-ON,SOEC-EL,LOHC-CON,LOHC-REC","ZAF-GAU","WIND-ON","SOEC-EL","LOHC-CON","LOHC-REC",7008,"öko"]
["ZAF-KWA,PV-FIX,AEL-EL,CH4SYN,CH4-RGAS","ZAF-KWA","PV-FIX","AEL-EL","CH4SYN","CH4-RGAS",6657.5999999999995,"öko"]
["ZAF-KWA,PV-FIX,AEL-EL,NH3SYN,NH3SYN","ZAF-KWA","PV-FIX","AEL-EL","NH3SYN","NH3SYN",7588.0468193279667,"PTX Atlas"]
["ZAF-KWA,PV-FIX,PEM-EL,CH4SYN,CH4-LIQ","ZAF-KWA","PV-FIX","PEM-EL","CH4SYN","CH4-LIQ",8052.1719246673156,"PTX Atlas"]
["ZAF-KWA,PV-FIX,PEM-EL,NH3SYN,NH3SYN","ZAF-KWA","PV-FIX","PEM-EL","NH3SYN","NH3SYN",7987.4177045557535,"PTX Atlas"]
["ZAF-KWA,PV-FIX,PEM-EL,NH3SYN,PEM-EL","ZAF-KWA","PV-FIX","PEM-EL","NH3SYN","PEM-EL",2895.7925413201201,"PTX Atlas"]
["ZAF-KWA,PV-FIX,SOEC-EL,EFUELSYN,EFUELSYN","ZAF-KWA","PV-FIX","SOEC-EL","EFUELSYN","EFUELSYN",7969.3620333309918,"PTX Atlas"]
["ZAF-KWA,PV-TRK,AEL-EL,CH4SYN,ATR","ZAF-KWA","PV-TRK","AEL-EL","CH4SYN","ATR",6657.5999999999995]
["ZAF-KWA,PV-TRK,PEM-EL,,H2-COMP","ZAF-KWA","PV-TRK","PEM-EL",null,"H2-COMP",7008]
["ZAF-KWA,PV-TRK,SOEC-EL,NH3SYN,NH3-REC","ZAF-KWA","PV-TRK","SOEC-EL","NH3SYN","NH3-REC",7008,"öko"]
["ZAF-KWA,RES-HYBR,AEL-EL,CH4SYN,CH4-RGAS","ZAF-KWA","RES-HYBR","AEL-EL","CH4SYN","CH4-RGAS",6657.5999999999995,"öko"]
["ZAF-KWA,RES-HYBR,AEL-EL,EFUELSYN,EFUELSYN","ZAF-KWA","RES-HYBR","AEL-EL","EFUELSYN","EFUELSYN",6889.6325227741954,"PTX Atlas"]
["ZAF-KWA,RES-HYBR,PEM-EL,CH4SYN,CH4-RGAS","ZAF-KWA","RES-HYBR","PEM-EL","CH4SYN","CH4-RGAS",7008,"öko"]
["ZAF-KWA,RES-HYBR,PEM-EL,NH3SYN,NH3SYN","ZAF-KWA","RES-HYBR","PEM-EL","NH3SYN","NH3SYN",6931.3242072294415,"PTX Atlas"]
["ZAF-KWA,RES-HYBR,SOEC-EL,,SOEC-EL","ZAF-KWA","RES-HYBR","SOEC-EL",null,"SOEC-EL",4315.3477278910241,"PTX Atlas"]
["ZAF-KWA,RES-HYBR,SOEC-EL,EFUELSYN,EFUELSYN","ZAF-KWA","RES-HYBR","SOEC-EL","EFUELSYN","EFUELSYN",6584.2622407896415,"PTX Atlas"]
["ZAF-KWA,WIND-OFF,AEL-EL,CH4SYN,AEL-EL","ZAF-KWA","WIND-OFF","AEL-EL","CH4SYN","AEL-EL",5033.8938758757413,"PTX Atlas"]
["ZAF-KWA,WIND-OFF,AEL-EL,DRI,AEL-EL","ZAF-KWA","WIND-OFF","AEL-EL","DRI","AEL-EL",5088.1561377178359,"PTX Atlas"]
["ZAF-KWA,WIND-OFF,PEM-EL,,H2-LIQ","ZAF-KWA","WIND-OFF","PEM-EL",null,"H2-LIQ",5184.1189969281359,"öko"]
["ZAF-KWA,WIND-OFF,PEM-EL,DRI,PEM-EL","ZAF-KWA","WIND-OFF","PEM-EL","DRI","PEM-EL",5355.9538291766694,"PTX Atlas"]
["ZAF-KWA,WIND-OFF,SOEC-EL,,H2-COMP","ZAF-KWA","WIND-OFF","SOEC-EL",null,"H2-COMP",7008]
["ZAF-KWA,WIND-OFF,SOEC-EL,CH4SYN,SOEC-EL","ZAF-KWA","WIND-OFF","SOEC-EL","CH4SYN","SOEC-EL",5486.6534090196183,"PTX Atlas"]
["ZAF-KWA,WIND-OFF,SOEC-EL,LOHC-CON,LOHC-CON","ZAF-KWA","WIND-OFF","SOEC-EL","LOHC-CON","LOHC-CON",4941.8544127262376,"PTX Atlas"]
["ZAF-KWA,WIND-ON,AEL-EL,CH3OHSYN,CH3OHREC","ZAF-KWA","WIND-ON","AEL-EL","CH3OHSYN","CH3OHREC",6657.5999999999995,"öko"]
["ZAF-KWA,WIND-ON,AEL-EL,NH3SYN,NH3-REC","ZAF-KWA","WIND-ON","AEL-EL","NH3SYN","NH3-REC",6657.5999999999995,"öko"]
["ZAF-KWA,WIND-ON,PEM-EL,,PEM-EL","ZAF-KWA","WIND-ON","PEM-EL",null,"PEM-EL",3740.2453650724242,"PTX Atlas"]
["ZAF-KWA,WIND-ON,PEM-EL,EFUELSYN,EFUELSYN","ZAF-KWA","WIND-ON","PEM-EL","EFUELSYN","EFUELSYN",4891.9690505262179,"PTX Atlas"]
["ZAF-KWA,WIND-ON,SOEC-EL,,H2-COMP","ZAF-KWA","WIND-ON","SOEC-EL",null,"H2-COMP",7008]
["ZAF-KWA,WIND-ON,SOEC-EL,NH3SYN,NH3-REC","ZAF-KWA","WIND-ON","SOEC-EL","NH3SYN","NH3-REC",7008,"öko"]
["ZAF-LIM,PV-FIX,AEL-EL,,H2-LIQ","ZAF-LIM","PV-FIX","AEL-EL",null,"H2-LIQ",2797.5528816526216,"öko"]
["ZAF-LIM,PV-FIX,AEL-EL,LOHC-CON,LOHC-CON","ZAF-LIM","PV-FIX","AEL-EL","LOHC-CON","LOHC-CON",2748.3554621633903,"PTX Atlas"]
["ZAF-LIM,PV-FIX,AEL-EL,LOHC-CON,LOHC-REC","ZAF-LIM","PV-FIX","AEL-EL","LOHC-CON","LOHC-REC",6657.5999999999995,"öko"]
["ZAF-LIM,PV-FIX,PEM-EL,CH4SYN,PEM-EL","ZAF-LIM","PV-FIX","PEM-EL","CH4SYN","PEM-EL",2985.4405982486442,"PTX Atlas"]
["ZAF-LIM,PV-FIX,PEM-EL,LOHC-CON,LOHC-CON","ZAF-LIM","PV-FIX","PEM-EL","LOHC-CON","LOHC-CON",2893.0057496456739,"PTX Atlas"]
["ZAF-LIM,PV-FIX,SOEC-EL,CH3OHSYN,CH3OHSYN","ZAF-LIM","PV-FIX","SOEC-EL","CH3OHSYN","CH3OHSYN",7736.7798750281972,"PTX Atlas"]
["ZAF-LIM,PV-FIX,SOEC-EL,NH3SYN,NH3SYN","ZAF-LIM","PV-FIX","SOEC-EL","NH3SYN","NH3SYN",4581.371125451612,"PTX Atlas"]
["ZAF-LIM,PV-TRK,PEM-EL,CH3OHSYN,CH3OHREC","ZAF-LIM","PV-TRK","PEM-EL","CH3OHSYN","CH3OHREC",7008,"öko"]
["ZAF-LIM,PV-TRK,PEM-EL,NH3SYN,NH3-REC","ZAF-LIM","PV-TRK","PEM-EL","NH3SYN","NH3-REC",7008,"öko"]
["ZAF-LIM,RES-HYBR,AEL-EL,CH3OHSYN,CH3OHSYN","ZAF-LIM","RES-HYBR","AEL-EL","CH3OHSYN","CH3OHSYN",6924.8045016984734,"PTX Atlas"]
["ZAF-LIM,RES-HYBR,AEL-EL,LOHC-CON,LOHC-CON","ZAF-LIM","RES-HYBR","AEL-EL","LOHC-CON","LOHC-CON",4206.1092621918406,"PTX Atlas"]
["ZAF-LIM,RES-HYBR,PEM-EL,,H2-COMP","ZAF-LIM","RES-HYBR","PEM-EL",null,"H2-COMP",7008]
["ZAF-LIM,RES-HYBR,PEM-EL,EFUELSYN,PEM-EL","ZAF-LIM","RES-HYBR","PEM-EL","EFUELSYN","PEM-EL",4359.3237332555036,"PTX Atlas"]
["ZAF-LIM,RES-HYBR,SOEC-EL,,H2-COMP","ZAF-LIM","RES-HYBR","SOEC-EL",null,"H2-COMP",7008]
["ZAF-LIM,RES-HYBR,SOEC-EL,CH4SYN,CH4SYN","ZAF-LIM","RES-HYBR","SOEC-EL","CH4SYN","CH4SYN",6496.4672491406718,"PTX Atlas"]
["ZAF-LIM,RES-HYBR,SOEC-EL,NH3SYN,SOEC-EL","ZAF-LIM","RES-HYBR","SOEC-EL","NH3SYN","SOEC-EL",5471.4873354676693,"PTX Atlas"]
["ZAF-LIM,WIND-OFF,AEL-EL,CH3OHSYN,AEL-EL","ZAF-LIM","WIND-OFF","AEL-EL","CH3OHSYN","AEL-EL",1739.4897839541527,"PTX Atlas"]
["ZAF-LIM,WIND-OFF,AEL-EL,NH3SYN,AEL-EL","ZAF-LIM","WIND-OFF","AEL-EL","NH3SYN","AEL-EL",1652.2868149245321,"PTX Atlas"]
["ZAF-LIM,WIND-OFF,PEM-EL,CH4SYN,CH4-LIQ","ZAF-LIM","WIND-OFF","PEM-EL","CH4SYN","CH4-LIQ",3313.2096523790692,"PTX Atlas"]
["ZAF-LIM,WIND-OFF,PEM-EL,DRI,PEM-EL","ZAF-LIM","WIND-OFF","PEM-EL","DRI","PEM-EL",1805.6798659548303,"PTX Atlas"]
["ZAF-LIM,WIND-OFF,SOEC-EL,,H2-RGAS","ZAF-LIM","WIND-OFF","SOEC-EL",null,"H2-RGAS",7008,"öko"]
["ZAF-LIM,WIND-OFF,SOEC-EL,NH3SYN,NH3SYN","ZAF-LIM","WIND-OFF","SOEC-EL","NH3SYN","NH3SYN",1813.4745533305361,"PTX Atlas"]
["ZAF-LIM,WIND-ON,AEL-EL,,H2-COMP","ZAF-LIM","WIND-ON","AEL-EL",null,"H2-COMP",6657.5999999999995]
["ZAF-LIM,WIND-ON,AEL-EL,DRI,AEL-EL","ZAF-LIM","WIND-ON","AEL-EL","DRI","AEL-EL",3867.852618714579,"PTX Atlas"]
["ZAF-LIM,WIND-ON,PEM-EL,CH3OHSYN,CH3OHSYN","ZAF-LIM","WIND-ON","PEM-EL","CH3OHSYN","CH3OHSYN",4897.8585300578179,"PTX Atlas"]
["ZAF-LIM,WIND-ON,PEM-EL,CH4SYN,CH4SYN","ZAF-LIM","WIND-ON","PEM-EL","CH4SYN","CH4SYN",4882.5727787353862,"PTX Atlas"]
["ZAF-LIM,WIND-ON,PEM-EL,NH3SYN,PEM-EL","ZAF-LIM","WIND-ON","PEM-EL","NH3SYN","PEM-EL",3941.4011789220385,"PTX Atlas"]
["ZAF-LIM,WIND-ON,SOEC-EL,EFUELSYN,EFUELSYN","ZAF-LIM","WIND-ON","SOEC-EL","EFUELSYN","EFUELSYN",4294.8507504062363,"PTX Atlas"]
["ZAF-LIM,WIND-ON,SOEC-EL,EFUELSYN,SOEC-EL","ZAF-LIM","WIND-ON","SOEC-EL","EFUELSYN","SOEC-EL",4294.8507504062363,"PTX Atlas"]
["ZAF-MPU,PV-FIX,AEL-EL,CH4SYN,AEL-EL","ZAF-MPU","PV-FIX","AEL-EL","CH4SYN","AEL-EL",2858.8246182221797,"PTX Atlas"]
["ZAF-MPU,PV-FIX,AEL-EL,EFUELSYN,AEL-EL","ZAF-MPU","PV-FIX","AEL-EL","EFUELSYN","AEL-EL",2877.5153974676182,"PTX Atlas"]
["ZAF-MPU,PV-FIX,PEM-EL,,PEM-EL","ZAF-MPU","PV-FIX","PEM-EL",null,"PEM-EL",2917.7789253849887,"PTX Atlas"]
["ZAF-MPU,PV-FIX,PEM-EL,LOHC-CON,PEM-EL","ZAF-MPU","PV-FIX","PEM-EL","LOHC-CON","PEM-EL",2917.7789253849887,"PTX Atlas"]
["ZAF-MPU,PV-FIX,SOEC-EL,CH4SYN,ATR","ZAF-MPU","PV-FIX","SOEC-EL","CH4SYN","ATR",7008]
["ZAF-MPU,PV-FIX,SOEC-EL,DRI,DRI","ZAF-MPU","PV-FIX","SOEC-EL","DRI","DRI",7008,"öko"]
["ZAF-MPU,PV-TRK,AEL-EL,DRI,DRI","ZAF-MPU","PV-TRK","AEL-EL","DRI","DRI",6657.5999999999995,"öko"]
["ZAF-MPU,PV-TRK,SOEC-EL,,H2-COMP","ZAF-MPU","PV-TRK","SOEC-EL",null,"H2-COMP",7008]
["ZAF-MPU,RES-HYBR,AEL-EL,,H2-RGAS","ZAF-MPU","RES-HYBR","AEL-EL",null,"H2-RGAS",6657.5999999999995,"öko"]
["ZAF-MPU,RES-HYBR,AEL-EL,DRI,DRI","ZAF-MPU","RES-HYBR","AEL-EL","DRI","DRI",6657.5999999999995,"öko"]
["ZAF-MPU,RES-HYBR,PEM-EL,,H2-RGAS","ZAF-MPU","RES-HYBR","PEM-EL",null,"H2-RGAS",7008,"öko"]
["ZAF-MPU,RES-HYBR,PEM-EL,CH4SYN,ATR","ZAF-MPU","RES-HYBR","PEM-EL","CH4SYN","ATR",7008]
["ZAF-MPU,RES-HYBR,PEM-EL,LOHC-CON,PEM-EL","ZAF-MPU","RES-HYBR","PEM-EL","LOHC-CON","PEM-EL",4427.4834338861483,"PTX Atlas"]
["ZAF-MPU,RES-HYBR,SOEC-EL,,H2-LIQ","ZAF-MPU","RES-HYBR","SOEC-EL",null,"H2-LIQ",4233.3590689024513,"öko"]
["ZAF-MPU,RES-HYBR,SOEC-EL,LOHC-CON,LOHC-CON","ZAF-MPU","RES-HYBR","SOEC-EL","LOHC-CON","LOHC-CON",4273.4642656889173,"PTX Atlas"]
["ZAF-MPU,WIND-OFF,AEL-EL,CH3OHSYN,CH3OHREC","ZAF-MPU","WIND-OFF","AEL-EL","CH3OHSYN","CH3OHREC",6657.5999999999995,"öko"]
["ZAF-MPU,WIND-OFF,AEL-EL,DRI,AEL-EL","ZAF-MPU","WIND-OFF","AEL-EL","DRI","AEL-EL",1715.3958726570888,"PTX Atlas"]
["ZAF-MPU,WIND-OFF,PEM-EL,CH3OHSYN,CH3OHREC","ZAF-MPU","WIND-OFF","PEM-EL","CH3OHSYN","CH3OHREC",7008,"öko"]
["ZAF-MPU,WIND-OFF,PEM-EL,EFUELSYN,PEM-EL","ZAF-MPU","WIND-OFF","PEM-EL","EFUELSYN","PEM-EL",1805.6798659548303,"PTX Atlas"]
["ZAF-MPU,WIND-OFF,PEM-EL,NH3SYN,NH3SYN","ZAF-MPU","WIND-OFF","PEM-EL","NH3SYN","NH3SYN",2231.2528039295771,"PTX Atlas"]
["ZAF-MPU,WIND-OFF,SOEC-EL,CH4SYN,CH4-RGAS","ZAF-MPU","WIND-OFF","SOEC-EL","CH4SYN","CH4-RGAS",7008,"öko"]
["ZAF-MPU,WIND-ON,AEL-EL,,H2-LIQ","ZAF-MPU","WIND-ON","AEL-EL",null,"H2-LIQ",3710.2756055200639,"öko"]
["ZAF-MPU,WIND-ON,AEL-EL,CH4SYN,AEL-EL","ZAF-MPU","WIND-ON","AEL-EL","CH4SYN","AEL-EL",3796.140513571469,"PTX Atlas"]
["ZAF-MPU,WIND-ON,AEL-EL,LOHC-CON,LOHC-REC","ZAF-MPU","WIND-ON","AEL-EL","LOHC-CON","LOHC-REC",6657.5999999999995,"öko"]
["ZAF-MPU,WIND-ON,PEM-EL,CH4SYN,CH4SYN","ZAF-MPU","WIND-ON","PEM-EL","CH4SYN","CH4SYN",4873.3941987524204,"PTX Atlas"]
["ZAF-MPU,WIND-ON,PEM-EL,DRI,PEM-EL","ZAF-MPU","WIND-ON","PEM-EL","DRI","PEM-EL",4058.172375101361,"PTX Atlas"]
["ZAF-MPU,WIND-ON,SOEC-EL,CH3OHSYN,SOEC-EL","ZAF-MPU","WIND-ON","SOEC-EL","CH3OHSYN","SOEC-EL",4272.1973117321759,"PTX Atlas"]
["ZAF-MPU,WIND-ON,SOEC-EL,CH4SYN,SOEC-EL","ZAF-MPU","WIND-ON","SOEC-EL","CH4SYN","SOEC-EL",4269.9651013633011,"PTX Atlas"]
["ZAF-NC,PV-FIX,AEL-EL,,AEL-EL","ZAF-NC","PV-FIX","AEL-EL",null,"AEL-EL",2808.0561501518123,"PTX Atlas"]
["ZAF-NC,PV-FIX,AEL-EL,EFUELSYN,EFUELSYN","ZAF-NC","PV-FIX","AEL-EL","EFUELSYN","EFUELSYN",7823.148271523165,"PTX Atlas"]
["ZAF-NC,PV-FIX,AEL-EL,NH3SYN,NH3-REC","ZAF-NC","PV-FIX","AEL-EL","NH3SYN","NH3-REC",6657.5999999999995,"öko"]
["ZAF-NC,PV-FIX,PEM-EL,CH4SYN,CH4-RGAS","ZAF-NC","PV-FIX","PEM-EL","CH4SYN","CH4-RGAS",7008,"öko"]
["ZAF-NC,PV-FIX,PEM-EL,NH3SYN,NH3-REC","ZAF-NC","PV-FIX","PEM-EL","NH3SYN","NH3-REC",7008,"öko"]
["ZAF-NC,PV-FIX,SOEC-EL,EFUELSYN,EFUELSYN","ZAF-NC","PV-FIX","SOEC-EL","EFUELSYN","EFUELSYN",8200.632793070281,"PTX Atlas"]
["ZAF-NC,PV-FIX,SOEC-EL,NH3SYN,NH3-REC","ZAF-NC","PV-FIX","SOEC-EL","NH3SYN","NH3-REC",7008,"öko"]
["ZAF-NC,PV-TRK,PEM-EL,CH4SYN,CH4-RGAS","ZAF-NC","PV-TRK","PEM-EL","CH4SYN","CH4-RGAS",7008,"öko"]
["ZAF-NC,PV-TRK,SOEC-EL,NH3SYN,NH3-REC","ZAF-NC","PV-TRK","SOEC-EL","NH3SYN","NH3-REC",7008,"öko"]
["ZAF-NC,RES-HYBR,AEL-EL,CH3OHSYN,AEL-EL","ZAF-NC","RES-HYBR","AEL-EL","CH3OHSYN","AEL-EL",5432.8390354559815,"PTX Atlas"]
["ZAF-NC,RES-HYBR,AEL-EL,EFUELSYN,EFUELSYN","ZAF-NC","RES-HYBR","AEL-EL","EFUELSYN","EFUELSYN",6440.8999317579655,"PTX Atlas"]
["ZAF-NC,RES-HYBR,AEL-EL,NH3SYN,NH3-REC","ZAF-NC","RES-HYBR","AEL-EL","NH3SYN","NH3-REC",6657.5999999999995,"öko"]
["ZAF-NC,RES-HYBR,PEM-EL,EFUELSYN,PEM-EL","ZAF-NC","RES-HYBR","PEM-EL","EFUELSYN","PEM-EL",5689.3105869971123,"PTX Atlas"]
["ZAF-NC,RES-HYBR,SOEC-EL,,SOEC-EL","ZAF-NC","RES-HYBR","SOEC-EL",null,"SOEC-EL",5489.0379001914562,"PTX Atlas"]
["ZAF-NC,RES-HYBR,SOEC-EL,CH4SYN,CH4-LIQ","ZAF-NC","RES-HYBR","SOEC-EL","CH4SYN","CH4-LIQ",6269.2308446909528,"PTX Atlas"]
["ZAF-NC,WIND-OFF,AEL-EL,,H2-COMP","ZAF-NC","WIND-OFF","AEL-EL",null,"H2-COMP",6657.5999999999995]
["ZAF-NC,WIND-OFF,AEL-EL,DRI,AEL-EL","ZAF-NC","WIND-OFF","AEL-EL","DRI","AEL-EL",5088.1561377178359,"PTX Atlas"]
["ZAF-NC,WIND-OFF,AEL-EL,LOHC-CON,LOHC-CON","ZAF-NC","WIND-OFF","AEL-EL","LOHC-CON","LOHC-CON",4732.9366848507316,"PTX Atlas"]
["ZAF-NC,WIND-OFF,PEM-EL,CH3OHSYN,PEM-EL","ZAF-NC","WIND-OFF","PEM-EL","CH3OHSYN","PEM-EL",5387.1673327488234,"PTX Atlas"]
["ZAF-NC,WIND-OFF,PEM-EL,NH3SYN,PEM-EL","ZAF-NC","WIND-OFF","PEM-EL","NH3SYN","PEM-EL",5189.878630530704,"PTX Atlas"]
["ZAF-NC,WIND-OFF,SOEC-EL,,H2-RGAS","ZAF-NC","WIND-OFF","SOEC-EL",null,"H2-RGAS",7008,"öko"]
["ZAF-NC,WIND-OFF,SOEC-EL,LOHC-CON,LOHC-CON","ZAF-NC","WIND-OFF","SOEC-EL","LOHC-CON","LOHC-CON",4941.8544127262376,"PTX Atlas"]
["ZAF-NC,WIND-ON,AEL-EL,CH4SYN,CH4-LIQ","ZAF-NC","WIND-ON","AEL-EL","CH4SYN","CH4-LIQ",5274.6690989906238,"PTX Atlas"]
["ZAF-NC,WIND-ON,AEL-EL,EFUELSYN,AEL-EL","ZAF-NC","WIND-ON","AEL-EL","EFUELSYN","AEL-EL",4786.3926453051999,"PTX Atlas"]
["ZAF-NC,WIND-ON,PEM-EL,,PEM-EL","ZAF-NC","WIND-ON","PEM-EL",null,"PEM-EL",4663.2299875769659,"PTX Atlas"]
["ZAF-NC,WIND-ON,PEM-EL,CH4SYN,CH4-LIQ","ZAF-NC","WIND-ON","PEM-EL","CH4SYN","CH4-LIQ",5552.2832620953941,"PTX Atlas"]
["ZAF-NC,WIND-ON,PEM-EL,NH3SYN,NH3-REC","ZAF-NC","WIND-ON","PEM-EL","NH3SYN","NH3-REC",7008,"öko"]
["ZAF-NC,WIND-ON,SOEC-EL,DRI,DRI","ZAF-NC","WIND-ON","SOEC-EL","DRI","DRI",7008,"öko"]
["ZAF-NW,PV-FIX,AEL-EL,,AEL-EL","ZAF-NW","PV-FIX","AEL-EL",null,"AEL-EL",2791.7418893219178,"PTX Atlas"]
["ZAF-NW,PV-FIX,AEL-EL,CH4SYN,AEL-EL","ZAF-NW","PV-FIX","AEL-EL","CH4SYN","AEL-EL",2877.9355211089314,"PTX Atlas"]
["ZAF-NW,PV-FIX,PEM-EL,,H2-COMP","ZAF-NW","PV-FIX","PEM-EL",null,"H2-COMP",7008]
["ZAF-NW,PV-FIX,PEM-EL,CH4SYN,PEM-EL","ZAF-NW","PV-FIX","PEM-EL","CH4SYN","PEM-EL",3029.4058116936121,"PTX Atlas"]
["ZAF-NW,PV-FIX,PEM-EL,LOHC-CON,LOHC-CON","ZAF-NW","PV-FIX","PEM-EL","LOHC-CON","LOHC-CON",2938.6756729704393,"PTX Atlas"]
["ZAF-NW,PV-FIX,SOEC-EL,CH4SYN,CH4-RGAS","ZAF-NW","PV-FIX","SOEC-EL","CH4SYN","CH4-RGAS",7008,"öko"]
["ZAF-NW,PV-FIX,SOEC-EL,NH3SYN,NH3SYN","ZAF-NW","PV-FIX","SOEC-EL","NH3SYN","NH3SYN",4656.4125194542048,"PTX Atlas"]
["ZAF-NW,PV-TRK,AEL-EL,CH4SYN,CH4-RGAS","ZAF-NW","PV-TRK","AEL-EL","CH4SYN","CH4-RGAS",6657.5999999999995,"öko"]
["ZAF-NW,PV-TRK,PEM-EL,CH3OHSYN,CH3OHREC","ZAF-NW","PV-TRK","PEM-EL","CH3OHSYN","CH3OHREC",7008,"öko"]
["ZAF-NW,PV-TRK,PEM-EL,CH4SYN,ATR","ZAF-NW","PV-TRK","PEM-EL","CH4SYN","ATR",7008]
["ZAF-NW,PV-TRK,PEM-EL,CH4SYN,CH4-RGAS","ZAF-NW","PV-TRK","PEM-EL","CH4SYN","CH4-RGAS",7008,"öko"]
["ZAF-NW,PV-TRK,PEM-EL,DRI,DRI","ZAF-NW","PV-TRK","PEM-EL","DRI","DRI",7008,"öko"]
["ZAF-NW,PV-TRK,PEM-EL,LOHC-CON,LOHC-REC","ZAF-NW","PV-TRK","PEM-EL","LOHC-CON","LOHC-REC",7008,"öko"]
["ZAF-NW,PV-TRK,PEM-EL,NH3SYN,NH3-REC","ZAF-NW","PV-TRK","PEM-EL","NH3SYN","NH3-REC",7008,"öko"]
["ZAF-NW,PV-TRK,SOEC-EL,,H2-COMP","ZAF-NW","PV-TRK","SOEC-EL",null,"H2-COMP",7008]
["ZAF-NW,PV-TRK,SOEC-EL,,H2-RGAS","ZAF-NW","PV-TRK","SOEC-EL",null,"H2-RGAS",7008,"öko"]
["ZAF-NW,PV-TRK,SOEC-EL,CH3OHSYN,CH3OHREC","ZAF-NW","PV-TRK","SOEC-EL","CH3OHSYN","CH3OHREC",7008,"öko"]
["ZAF-NW,PV-TRK,SOEC-EL,CH4SYN,ATR","ZAF-NW","PV-TRK","SOEC-EL","CH4SYN","ATR",7008]
["ZAF-NW,PV-TRK,SOEC-EL,CH4SYN,CH4-RGAS","ZAF-NW","PV-TRK","SOEC-EL","CH4SYN","CH4-RGAS",7008,"öko"]
["ZAF-NW,PV-TRK,SOEC-EL,DRI,DRI","ZAF-NW","PV-TRK","SOEC-EL","DRI","DRI",7008,"öko"]
["ZAF-NW,PV-TRK,SOEC-EL,LOHC-CON,LOHC-REC","ZAF-NW","PV-TRK","SOEC-EL","LOHC-CON","LOHC-REC",7008,"öko"]
["ZAF-NW,PV-TRK,SOEC-EL,NH3SYN,NH3-REC","ZAF-NW","PV-TRK","SOEC-EL","NH3SYN","NH3-REC",7008,"öko"]
["ZAF-NW,RES-HYBR,AEL-EL,,AEL-EL","ZAF-NW","RES-HYBR","AEL-EL",null,"AEL-EL",4465.6473085050802,"PTX Atlas"]
["ZAF-NW,RES-HYBR,AEL-EL,,H2-COMP","ZAF-NW","RES-HYBR","AEL-EL",null,"H2-COMP",6657.5999999999995]
["ZAF-NW,RES-HYBR,AEL-EL,,H2-LIQ","ZAF-NW","RES-HYBR","AEL-EL",null,"H2-LIQ",4373.028334799943,"öko"]
["ZAF-NW,RES-HYBR,AEL-EL,,H2-RGAS","ZAF-NW","RES-HYBR","AEL-EL",null,"H2-RGAS",6657.5999999999995,"öko"]
["ZAF-NW,RES-HYBR,AEL-EL,CH3OHSYN,AEL-EL","ZAF-NW","RES-HYBR","AEL-EL","CH3OHSYN","AEL-EL",4450.400057661177,"PTX Atlas"]
["ZAF-NW,RES-HYBR,AEL-EL,CH3OHSYN,CH3OHREC","ZAF-NW","RES-HYBR","AEL-EL","CH3OHSYN","CH3OHREC",6657.5999999999995,"öko"]
["ZAF-NW,RES-HYBR,AEL-EL,CH3OHSYN,CH3OHSYN","ZAF-NW","RES-HYBR","AEL-EL","CH3OHSYN","CH3OHSYN",6822.5937446238941,"PTX Atlas"]
["ZAF-NW,RES-HYBR,AEL-EL,CH4SYN,AEL-EL","ZAF-NW","RES-HYBR","AEL-EL","CH4SYN","AEL-EL",4347.7064455119726,"PTX Atlas"]
["ZAF-NW,RES-HYBR,AEL-EL,CH4SYN,ATR","ZAF-NW","RES-HYBR","AEL-EL","CH4SYN","ATR",6657.5999999999995]
["ZAF-NW,RES-HYBR,AEL-EL,CH4SYN,CH4-LIQ","ZAF-NW","RES-HYBR","AEL-EL","CH4SYN","CH4-LIQ",6826.9862287762417,"PTX Atlas"]
["ZAF-NW,RES-HYBR,AEL-EL,CH4SYN,CH4-RGAS","ZAF-NW","RES-HYBR","AEL-EL","CH4SYN","CH4-RGAS",6657.5999999999995,"öko"]
["ZAF-NW,RES-HYBR,AEL-EL,CH4SYN,CH4SYN","ZAF-NW","RES-HYBR","AEL-EL","CH4SYN","CH4SYN",6826.9862287762417,"PTX Atlas"]
["ZAF-NW,RES-HYBR,AEL-EL,DRI,AEL-EL","ZAF-NW","RES-HYBR","AEL-EL","DRI","AEL-EL",4424.4193696748389,"PTX Atlas"]
["ZAF-NW,RES-HYBR,AEL-EL,DRI,DRI","ZAF-NW","RES-HYBR","AEL-EL","DRI","DRI",6657.5999999999995,"öko"]
["ZAF-NW,RES-HYBR,AEL-EL,EFUELSYN,AEL-EL","ZAF-NW","RES-HYBR","AEL-EL","EFUELSYN","AEL-EL",4424.4193696748389,"PTX Atlas"]
["ZAF-NW,RES-HYBR,AEL-EL,EFUELSYN,EFUELSYN","ZAF-NW","RES-HYBR","AEL-EL","EFUELSYN","EFUELSYN",6801.5276839019853,"PTX Atlas"]
["ZAF-NW,RES-HYBR,AEL-EL,LOHC-CON,AEL-EL","ZAF-NW","RES-HYBR","AEL-EL","LOHC-CON","AEL-EL",4465.6473085050802,"PTX Atlas"]
["ZAF-NW,RES-HYBR,AEL-EL,LOHC-CON,LOHC-CON","ZAF-NW","RES-HYBR","AEL-EL","LOHC-CON","LOHC-CON",4465.6473085050802,"PTX Atlas"]
["ZAF-NW,RES-HYBR,AEL-EL,LOHC-CON,LOHC-REC","ZAF-NW","RES-HYBR","AEL-EL","LOHC-CON","LOHC-REC",6657.5999999999995,"öko"]
["ZAF-NW,RES-HYBR,AEL-EL,NH3SYN,AEL-EL","ZAF-NW","RES-HYBR","AEL-EL","NH3SYN","AEL-EL",4427.2435083942619,"PTX Atlas"]
["ZAF-NW,RES-HYBR,AEL-EL,NH3SYN,NH3-REC","ZAF-NW","RES-HYBR","AEL-EL","NH3SYN","NH3-REC",6657.5999999999995,"öko"]
["ZAF-NW,RES-HYBR,AEL-EL,NH3SYN,NH3SYN","ZAF-NW","RES-HYBR","AEL-EL","NH3SYN","NH3SYN",6480.392573947709,"PTX Atlas"]
["ZAF-NW,RES-HYBR,PEM-EL,,H2-COMP","ZAF-NW","RES-HYBR","PEM-EL",null,"H2-COMP",7008]
["ZAF-NW,RES-HYBR,PEM-EL,,H2-LIQ","ZAF-NW","RES-HYBR","PEM-EL",null,"H2-LIQ",4603.1877208420456,"öko"]
["ZAF-NW,RES-HYBR,PEM-EL,,H2-RGAS","ZAF-NW","RES-HYBR","PEM-EL",null,"H2-RGAS",7008,"öko"]
["ZAF-NW,RES-HYBR,PEM-EL,,PEM-EL","ZAF-NW","RES-HYBR","PEM-EL",null,"PEM-EL",4700.6813773737686,"PTX Atlas"]
["ZAF-NW,RES-HYBR,PEM-EL,CH3OHSYN,CH3OHREC","ZAF-NW","RES-HYBR","PEM-EL","CH3OHSYN","CH3OHREC",7008,"öko"]
["ZAF-NW,RES-HYBR,PEM-EL,CH3OHSYN,CH3OHSYN","ZAF-NW","RES-HYBR","PEM-EL","CH3OHSYN","CH3OHSYN",7181.6776259198887,"PTX Atlas"]
["ZAF-NW,RES-HYBR,PEM-EL,CH3OHSYN,PEM-EL","ZAF-NW","RES-HYBR","PEM-EL","CH3OHSYN","PEM-EL",4684.6316396433449,"PTX Atlas"]
["ZAF-NW,RES-HYBR,PEM-EL,CH4SYN,ATR","ZAF-NW","RES-HYBR","PEM-EL","CH4SYN","ATR",7008]
["ZAF-NW,RES-HYBR,PEM-EL,CH4SYN,CH4-LIQ","ZAF-NW","RES-HYBR","PEM-EL","CH4SYN","CH4-LIQ",7186.301293448676,"PTX Atlas"]
["ZAF-NW,RES-HYBR,PEM-EL,CH4SYN,CH4-RGAS","ZAF-NW","RES-HYBR","PEM-EL","CH4SYN","CH4-RGAS",7008,"öko"]
["ZAF-NW,RES-HYBR,PEM-EL,CH4SYN,CH4SYN","ZAF-NW","RES-HYBR","PEM-EL","CH4SYN","CH4SYN",7186.301293448676,"PTX Atlas"]
["ZAF-NW,RES-HYBR,PEM-EL,CH4SYN,PEM-EL","ZAF-NW","RES-HYBR","PEM-EL","CH4SYN","PEM-EL",4576.5331005389189,"PTX Atlas"]
["ZAF-NW,RES-HYBR,PEM-EL,DRI,DRI","ZAF-NW","RES-HYBR","PEM-EL","DRI","DRI",7008,"öko"]
["ZAF-NW,RES-HYBR,PEM-EL,DRI,PEM-EL","ZAF-NW","RES-HYBR","PEM-EL","DRI","PEM-EL",4657.2835470261462,"PTX Atlas"]
["ZAF-NW,RES-HYBR,PEM-EL,EFUELSYN,EFUELSYN","ZAF-NW","RES-HYBR","PEM-EL","EFUELSYN","EFUELSYN",7159.5028251599852,"PTX Atlas"]
["ZAF-NW,RES-HYBR,PEM-EL,EFUELSYN,PEM-EL","ZAF-NW","RES-HYBR","PEM-EL","EFUELSYN","PEM-EL",4657.2835470261462,"PTX Atlas"]
["ZAF-NW,RES-HYBR,PEM-EL,LOHC-CON,LOHC-CON","ZAF-NW","RES-HYBR","PEM-EL","LOHC-CON","LOHC-CON",4700.6813773737686,"PTX Atlas"]
["ZAF-NW,RES-HYBR,PEM-EL,LOHC-CON,LOHC-REC","ZAF-NW","RES-HYBR","PEM-EL","LOHC-CON","LOHC-REC",7008,"öko"]
["ZAF-NW,RES-HYBR,PEM-EL,LOHC-CON,PEM-EL","ZAF-NW","RES-HYBR","PEM-EL","LOHC-CON","PEM-EL",4700.6813773737686,"PTX Atlas"]
["ZAF-NW,RES-HYBR,PEM-EL,NH3SYN,NH3-REC","ZAF-NW","RES-HYBR","PEM-EL","NH3SYN","NH3-REC",7008,"öko"]
["ZAF-NW,RES-HYBR,PEM-EL,NH3SYN,NH3SYN","ZAF-NW","RES-HYBR","PEM-EL","NH3SYN","NH3SYN",6821.4658673133781,"PTX Atlas"]
["ZAF-NW,RES-HYBR,PEM-EL,NH3SYN,PEM-EL","ZAF-NW","RES-HYBR","PEM-EL","NH3SYN","PEM-EL",4660.2563246255395,"PTX Atlas"]
["ZAF-NW,RES-HYBR,SOEC-EL,,H2-COMP","ZAF-NW","RES-HYBR","SOEC-EL",null,"H2-COMP",7008]
["ZAF-NW,RES-HYBR,SOEC-EL,,H2-LIQ","ZAF-NW","RES-HYBR","SOEC-EL",null,"H2-LIQ",4461.2336445282735,"öko"]
["ZAF-NW,RES-HYBR,SOEC-EL,,H2-RGAS","ZAF-NW","RES-HYBR","SOEC-EL",null,"H2-RGAS",7008,"öko"]
["ZAF-NW,RES-HYBR,SOEC-EL,,SOEC-EL","ZAF-NW","RES-HYBR","SOEC-EL",null,"SOEC-EL",4545.7918400118788,"PTX Atlas"]
["ZAF-NW,RES-HYBR,SOEC-EL,CH3OHSYN,CH3OHREC","ZAF-NW","RES-HYBR","SOEC-EL","CH3OHSYN","CH3OHREC",7008,"öko"]
["ZAF-NW,RES-HYBR,SOEC-EL,CH3OHSYN,CH3OHSYN","ZAF-NW","RES-HYBR","SOEC-EL","CH3OHSYN","CH3OHSYN",6458.1901982127383,"PTX Atlas"]
["ZAF-NW,RES-HYBR,SOEC-EL,CH3OHSYN,SOEC-EL","ZAF-NW","RES-HYBR","SOEC-EL","CH3OHSYN","SOEC-EL",6458.1901982127383,"PTX Atlas"]
["ZAF-NW,RES-HYBR,SOEC-EL,CH4SYN,ATR","ZAF-NW","RES-HYBR","SOEC-EL","CH4SYN","ATR",7008]
["ZAF-NW,RES-HYBR,SOEC-EL,CH4SYN,CH4-LIQ","ZAF-NW","RES-HYBR","SOEC-EL","CH4SYN","CH4-LIQ",6445.5589889866187,"PTX Atlas"]
["ZAF-NW,RES-HYBR,SOEC-EL,CH4SYN,CH4-RGAS","ZAF-NW","RES-HYBR","SOEC-EL","CH4SYN","CH4-RGAS",7008,"öko"]
["ZAF-NW,RES-HYBR,SOEC-EL,CH4SYN,CH4SYN","ZAF-NW","RES-HYBR","SOEC-EL","CH4SYN","CH4SYN",6445.5589889866187,"PTX Atlas"]
["ZAF-NW,RES-HYBR,SOEC-EL,CH4SYN,SOEC-EL","ZAF-NW","RES-HYBR","SOEC-EL","CH4SYN","SOEC-EL",6445.5589889866187,"PTX Atlas"]
["ZAF-NW,RES-HYBR,SOEC-EL,DRI,DRI","ZAF-NW","RES-HYBR","SOEC-EL","DRI","DRI",7008,"öko"]
["ZAF-NW,RES-HYBR,SOEC-EL,DRI,SOEC-EL","ZAF-NW","RES-HYBR","SOEC-EL","DRI","SOEC-EL",6520.4191127326558,"PTX Atlas"]
["ZAF-NW,RES-HYBR,SOEC-EL,EFUELSYN,EFUELSYN","ZAF-NW","RES-HYBR","SOEC-EL","EFUELSYN","EFUELSYN",6520.4191127326558,"PTX Atlas"]
["ZAF-NW,RES-HYBR,SOEC-EL,EFUELSYN,SOEC-EL","ZAF-NW","RES-HYBR","SOEC-EL","EFUELSYN","SOEC-EL",6520.4191127326558,"PTX Atlas"]
["ZAF-NW,RES-HYBR,SOEC-EL,LOHC-CON,LOHC-CON","ZAF-NW","RES-HYBR","SOEC-EL","LOHC-CON","LOHC-CON",4545.7918400118788,"PTX Atlas"]
["ZAF-NW,RES-HYBR,SOEC-EL,LOHC-CON,LOHC-REC","ZAF-NW","RES-HYBR","SOEC-EL","LOHC-CON","LOHC-REC",7008,"öko"]
["ZAF-NW,RES-HYBR,SOEC-EL,LOHC-CON,SOEC-EL","ZAF-NW","RES-HYBR","SOEC-EL","LOHC-CON","SOEC-EL",4545.7918400118788,"PTX Atlas"]
["ZAF-NW,RES-HYBR,SOEC-EL,NH3SYN,NH3-REC","ZAF-NW","RES-HYBR","SOEC-EL","NH3SYN","NH3-REC",7008,"öko"]
["ZAF-NW,RES-HYBR,SOEC-EL,NH3SYN,NH3SYN","ZAF-NW","RES-HYBR","SOEC-EL","NH3SYN","NH3SYN",5608.4943396347517,"PTX Atlas"]
["ZAF-NW,RES-HYBR,SOEC-EL,NH3SYN,SOEC-EL","ZAF-NW","RES-HYBR","SOEC-EL","NH3SYN","SOEC-EL",5608.4943396347517,"PTX Atlas"]
["ZAF-NW,WIND-OFF,AEL-EL,,AEL-EL","ZAF-NW","WIND-OFF","AEL-EL",null,"AEL-EL",1347.8293246014512,"PTX Atlas"]
["ZAF-NW,WIND-OFF,AEL-EL,,H2-COMP","ZAF-NW","WIND-OFF","AEL-EL",null,"H2-COMP",6657.5999999999995]
["ZAF-NW,WIND-OFF,AEL-EL,,H2-LIQ","ZAF-NW","WIND-OFF","AEL-EL",null,"H2-LIQ",1602.0918817851802,"öko"]
["ZAF-NW,WIND-OFF,AEL-EL,,H2-RGAS","ZAF-NW","WIND-OFF","AEL-EL",null,"H2-RGAS",6657.5999999999995,"öko"]
["ZAF-NW,WIND-OFF,AEL-EL,CH3OHSYN,AEL-EL","ZAF-NW","WIND-OFF","AEL-EL","CH3OHSYN","AEL-EL",1739.4897839541527,"PTX Atlas"]
["ZAF-NW,WIND-OFF,AEL-EL,CH3OHSYN,CH3OHREC","ZAF-NW","WIND-OFF","AEL-EL","CH3OHSYN","CH3OHREC",6657.5999999999995,"öko"]
["ZAF-NW,WIND-OFF,AEL-EL,CH3OHSYN,CH3OHSYN","ZAF-NW","WIND-OFF","AEL-EL","CH3OHSYN","CH3OHSYN",3183.2021531666219,"PTX Atlas"]
["ZAF-NW,WIND-OFF,AEL-EL,CH4SYN,AEL-EL","ZAF-NW","WIND-OFF","AEL-EL","CH4SYN","AEL-EL",1647.8356753367241,"PTX Atlas"]
["ZAF-NW,WIND-OFF,AEL-EL,CH4SYN,ATR","ZAF-NW","WIND-OFF","AEL-EL","CH4SYN","ATR",6657.5999999999995]
["ZAF-NW,WIND-OFF,AEL-EL,CH4SYN,CH4-LIQ","ZAF-NW","WIND-OFF","AEL-EL","CH4SYN","CH4-LIQ",3147.5491697601155,"PTX Atlas"]
["ZAF-NW,WIND-OFF,AEL-EL,CH4SYN,CH4-RGAS","ZAF-NW","WIND-OFF","AEL-EL","CH4SYN","CH4-RGAS",6657.5999999999995,"öko"]
["ZAF-NW,WIND-OFF,AEL-EL,CH4SYN,CH4SYN","ZAF-NW","WIND-OFF","AEL-EL","CH4SYN","CH4SYN",3147.5491697601155,"PTX Atlas"]
["ZAF-NW,WIND-OFF,AEL-EL,DRI,AEL-EL","ZAF-NW","WIND-OFF","AEL-EL","DRI","AEL-EL",1715.3958726570888,"PTX Atlas"]
["ZAF-NW,WIND-OFF,AEL-EL,DRI,DRI","ZAF-NW","WIND-OFF","AEL-EL","DRI","DRI",6657.5999999999995,"öko"]
["ZAF-NW,WIND-OFF,AEL-EL,EFUELSYN,AEL-EL","ZAF-NW","WIND-OFF","AEL-EL","EFUELSYN","AEL-EL",1715.3958726570888,"PTX Atlas"]
["ZAF-NW,WIND-OFF,AEL-EL,EFUELSYN,EFUELSYN","ZAF-NW","WIND-OFF","AEL-EL","EFUELSYN","EFUELSYN",3135.5700759497704,"PTX Atlas"]
["ZAF-NW,WIND-OFF,AEL-EL,LOHC-CON,AEL-EL","ZAF-NW","WIND-OFF","AEL-EL","LOHC-CON","AEL-EL",1347.8293246014512,"PTX Atlas"]
["ZAF-NW,WIND-OFF,AEL-EL,LOHC-CON,LOHC-CON","ZAF-NW","WIND-OFF","AEL-EL","LOHC-CON","LOHC-CON",1347.8293246014512,"PTX Atlas"]
["ZAF-NW,WIND-OFF,AEL-EL,LOHC-CON,LOHC-REC","ZAF-NW","WIND-OFF","AEL-EL","LOHC-CON","LOHC-REC",6657.5999999999995,"öko"]
["ZAF-NW,WIND-OFF,AEL-EL,NH3SYN,AEL-EL","ZAF-NW","WIND-OFF","AEL-EL","NH3SYN","AEL-EL",1652.2868149245321,"PTX Atlas"]
["ZAF-NW,WIND-OFF,AEL-EL,NH3SYN,NH3-REC","ZAF-NW","WIND-OFF","AEL-EL","NH3SYN","NH3-REC",6657.5999999999995,"öko"]
["ZAF-NW,WIND-OFF,AEL-EL,NH3SYN,NH3SYN","ZAF-NW","WIND-OFF","AEL-EL","NH3SYN","NH3SYN",2119.690163733098,"PTX Atlas"]
["ZAF-NW,WIND-OFF,PEM-EL,,H2-COMP","ZAF-NW","WIND-OFF","PEM-EL",null,"H2-COMP",7008]
["ZAF-NW,WIND-OFF,PEM-EL,,H2-LIQ","ZAF-NW","WIND-OFF","PEM-EL",null,"H2-LIQ",1686.412507142295,"öko"]
["ZAF-NW,WIND-OFF,PEM-EL,,H2-RGAS","ZAF-NW","WIND-OFF","PEM-EL",null,"H2-RGAS",7008,"öko"]
["ZAF-NW,WIND-OFF,PEM-EL,,PEM-EL","ZAF-NW","WIND-OFF","PEM-EL",null,"PEM-EL",1418.7677101067909,"PTX Atlas"]
["ZAF-NW,WIND-OFF,PEM-EL,CH3OHSYN,CH3OHREC","ZAF-NW","WIND-OFF","PEM-EL","CH3OHSYN","CH3OHREC",7008,"öko"]
["ZAF-NW,WIND-OFF,PEM-EL,CH3OHSYN,CH3OHSYN","ZAF-NW","WIND-OFF","PEM-EL","CH3OHSYN","CH3OHSYN",3350.7391085964441,"PTX Atlas"]
["ZAF-NW,WIND-OFF,PEM-EL,CH3OHSYN,PEM-EL","ZAF-NW","WIND-OFF","PEM-EL","CH3OHSYN","PEM-EL",1831.0418778464768,"PTX Atlas"]
["ZAF-NW,WIND-OFF,PEM-EL,CH4SYN,ATR","ZAF-NW","WIND-OFF","PEM-EL","CH4SYN","ATR",7008]
["ZAF-NW,WIND-OFF,PEM-EL,CH4SYN,CH4-LIQ","ZAF-NW","WIND-OFF","PEM-EL","CH4SYN","CH4-LIQ",3313.2096523790692,"PTX Atlas"]
["ZAF-NW,WIND-OFF,PEM-EL,CH4SYN,CH4-RGAS","ZAF-NW","WIND-OFF","PEM-EL","CH4SYN","CH4-RGAS",7008,"öko"]
["ZAF-NW,WIND-OFF,PEM-EL,CH4SYN,CH4SYN","ZAF-NW","WIND-OFF","PEM-EL","CH4SYN","CH4SYN",3313.2096523790692,"PTX Atlas"]
["ZAF-NW,WIND-OFF,PEM-EL,CH4SYN,PEM-EL","ZAF-NW","WIND-OFF","PEM-EL","CH4SYN","PEM-EL",1734.563868775499,"PTX Atlas"]
["ZAF-NW,WIND-OFF,PEM-EL,DRI,DRI","ZAF-NW","WIND-OFF","PEM-EL","DRI","DRI",7008,"öko"]
["ZAF-NW,WIND-OFF,PEM-EL,DRI,PEM-EL","ZAF-NW","WIND-OFF","PEM-EL","DRI","PEM-EL",1805.6798659548303,"PTX Atlas"]
["ZAF-NW,WIND-OFF,PEM-EL,EFUELSYN,EFUELSYN","ZAF-NW","WIND-OFF","PEM-EL","EFUELSYN","EFUELSYN",3300.6000799471267,"PTX Atlas"]
["ZAF-NW,WIND-OFF,PEM-EL,EFUELSYN,PEM-EL","ZAF-NW","WIND-OFF","PEM-EL","EFUELSYN","PEM-EL",1805.6798659548303,"PTX Atlas"]
["ZAF-NW,WIND-OFF,PEM-EL,LOHC-CON,LOHC-CON","ZAF-NW","WIND-OFF","PEM-EL","LOHC-CON","LOHC-CON",1418.7677101067909,"PTX Atlas"]
["ZAF-NW,WIND-OFF,PEM-EL,LOHC-CON,LOHC-REC","ZAF-NW","WIND-OFF","PEM-EL","LOHC-CON","LOHC-REC",7008,"öko"]
["ZAF-NW,WIND-OFF,PEM-EL,LOHC-CON,PEM-EL","ZAF-NW","WIND-OFF","PEM-EL","LOHC-CON","PEM-EL",1418.7677101067909,"PTX Atlas"]
["ZAF-NW,WIND-OFF,PEM-EL,NH3SYN,NH3-REC","ZAF-NW","WIND-OFF","PEM-EL","NH3SYN","NH3-REC",7008,"öko"]
["ZAF-NW,WIND-OFF,PEM-EL,NH3SYN,NH3SYN","ZAF-NW","WIND-OFF","PEM-EL","NH3SYN","NH3SYN",2231.2528039295771,"PTX Atlas"]
["ZAF-NW,WIND-OFF,PEM-EL,NH3SYN,PEM-EL","ZAF-NW","WIND-OFF","PEM-EL","NH3SYN","PEM-EL",1739.2492788679283,"PTX Atlas"]
["ZAF-NW,WIND-OFF,SOEC-EL,,H2-COMP","ZAF-NW","WIND-OFF","SOEC-EL",null,"H2-COMP",7008]
["ZAF-NW,WIND-OFF,SOEC-EL,,H2-LIQ","ZAF-NW","WIND-OFF","SOEC-EL",null,"H2-LIQ",1601.7354467237706,"öko"]
["ZAF-NW,WIND-OFF,SOEC-EL,,H2-RGAS","ZAF-NW","WIND-OFF","SOEC-EL",null,"H2-RGAS",7008,"öko"]
["ZAF-NW,WIND-OFF,SOEC-EL,,SOEC-EL","ZAF-NW","WIND-OFF","SOEC-EL",null,"SOEC-EL",1343.394386252327,"PTX Atlas"]
["ZAF-NW,WIND-OFF,SOEC-EL,CH3OHSYN,CH3OHREC","ZAF-NW","WIND-OFF","SOEC-EL","CH3OHSYN","CH3OHREC",7008,"öko"]
["ZAF-NW,WIND-OFF,SOEC-EL,CH3OHSYN,CH3OHSYN","ZAF-NW","WIND-OFF","SOEC-EL","CH3OHSYN","CH3OHSYN",2159.6914621343913,"PTX Atlas"]
["ZAF-NW,WIND-OFF,SOEC-EL,CH3OHSYN,SOEC-EL","ZAF-NW","WIND-OFF","SOEC-EL","CH3OHSYN","SOEC-EL",2159.6914621343913,"PTX Atlas"]
["ZAF-NW,WIND-OFF,SOEC-EL,CH4SYN,ATR","ZAF-NW","WIND-OFF","SOEC-EL","CH4SYN","ATR",7008]
["ZAF-NW,WIND-OFF,SOEC-EL,CH4SYN,CH4-LIQ","ZAF-NW","WIND-OFF","SOEC-EL","CH4SYN","CH4-LIQ",2158.2217948489274,"PTX Atlas"]
["ZAF-NW,WIND-OFF,SOEC-EL,CH4SYN,CH4-RGAS","ZAF-NW","WIND-OFF","SOEC-EL","CH4SYN","CH4-RGAS",7008,"öko"]
["ZAF-NW,WIND-OFF,SOEC-EL,CH4SYN,CH4SYN","ZAF-NW","WIND-OFF","SOEC-EL","CH4SYN","CH4SYN",2158.2217948489274,"PTX Atlas"]
["ZAF-NW,WIND-OFF,SOEC-EL,CH4SYN,SOEC-EL","ZAF-NW","WIND-OFF","SOEC-EL","CH4SYN","SOEC-EL",2158.2217948489274,"PTX Atlas"]
["ZAF-NW,WIND-OFF,SOEC-EL,DRI,DRI","ZAF-NW","WIND-OFF","SOEC-EL","DRI","DRI",7008,"öko"]
["ZAF-NW,WIND-OFF,SOEC-EL,DRI,SOEC-EL","ZAF-NW","WIND-OFF","SOEC-EL","DRI","SOEC-EL",2171.7808097029783,"PTX Atlas"]
["ZAF-NW,WIND-OFF,SOEC-EL,EFUELSYN,EFUELSYN","ZAF-NW","WIND-OFF","SOEC-EL","EFUELSYN","EFUELSYN",2171.7808097029783,"PTX Atlas"]
["ZAF-NW,WIND-OFF,SOEC-EL,EFUELSYN,SOEC-EL","ZAF-NW","WIND-OFF","SOEC-EL","EFUELSYN","SOEC-EL",2171.7808097029783,"PTX Atlas"]
["ZAF-NW,WIND-OFF,SOEC-EL,LOHC-CON,LOHC-CON","ZAF-NW","WIND-OFF","SOEC-EL","LOHC-CON","LOHC-CON",1343.394386252327,"PTX Atlas"]
["ZAF-NW,WIND-OFF,SOEC-EL,LOHC-CON,LOHC-REC","ZAF-NW","WIND-OFF","SOEC-EL","LOHC-CON","LOHC-REC",7008,"öko"]
["ZAF-NW,WIND-OFF,SOEC-EL,LOHC-CON,SOEC-EL","ZAF-NW","WIND-OFF","SOEC-EL","LOHC-CON","SOEC-EL",1343.394386252327,"PTX Atlas"]
["ZAF-NW,WIND-OFF,SOEC-EL,NH3SYN,NH3-REC","ZAF-NW","WIND-OFF","SOEC-EL","NH3SYN","NH3-REC",7008,"öko"]
["ZAF-NW,WIND-OFF,SOEC-EL,NH3SYN,NH3SYN","ZAF-NW","WIND-OFF","SOEC-EL","NH3SYN","NH3SYN",1813.4745533305361,"PTX Atlas"]
["ZAF-NW,WIND-OFF,SOEC-EL,NH3SYN,SOEC-EL","ZAF-NW","WIND-OFF","SOEC-EL","NH3SYN","SOEC-EL",1813.4745533305361,"PTX Atlas"]
["ZAF-NW,WIND-ON,AEL-EL,,AEL-EL","ZAF-NW","WIND-ON","AEL-EL",null,"AEL-EL",3890.5351637704234,"PTX Atlas"]
["ZAF-NW,WIND-ON,AEL-EL,,H2-COMP","ZAF-NW","WIND-ON","AEL-EL",null,"H2-COMP",6657.5999999999995]
["ZAF-NW,WIND-ON,AEL-EL,,H2-LIQ","ZAF-NW","WIND-ON","AEL-EL",null,"H2-LIQ",4098.0117686190206,"öko"]
["ZAF-NW,WIND-ON,AEL-EL,,H2-RGAS","ZAF-NW","WIND-ON","AEL-EL",null,"H2-RGAS",6657.5999999999995,"öko"]
["ZAF-NW,WIND-ON,AEL-EL,CH3OHSYN,AEL-EL","ZAF-NW","WIND-ON","AEL-EL","CH3OHSYN","AEL-EL",4277.0967183513994,"PTX Atlas"]
["ZAF-NW,WIND-ON,AEL-EL,CH3OHSYN,CH3OHREC","ZAF-NW","WIND-ON","AEL-EL","CH3OHSYN","CH3OHREC",6657.5999999999995,"öko"]
["ZAF-NW,WIND-ON,AEL-EL,CH3OHSYN,CH3OHSYN","ZAF-NW","WIND-ON","AEL-EL","CH3OHSYN","CH3OHSYN",4913.1067643056758,"PTX Atlas"]
["ZAF-NW,WIND-ON,AEL-EL,CH4SYN,AEL-EL","ZAF-NW","WIND-ON","AEL-EL","CH4SYN","AEL-EL",4191.2557332584674,"PTX Atlas"]
["ZAF-NW,WIND-ON,AEL-EL,CH4SYN,ATR","ZAF-NW","WIND-ON","AEL-EL","CH4SYN","ATR",6657.5999999999995]
["ZAF-NW,WIND-ON,AEL-EL,CH4SYN,CH4-LIQ","ZAF-NW","WIND-ON","AEL-EL","CH4SYN","CH4-LIQ",4902.3254793167562,"PTX Atlas"]
["ZAF-NW,WIND-ON,AEL-EL,CH4SYN,CH4-RGAS","ZAF-NW","WIND-ON","AEL-EL","CH4SYN","CH4-RGAS",6657.5999999999995,"öko"]
["ZAF-NW,WIND-ON,AEL-EL,CH4SYN,CH4SYN","ZAF-NW","WIND-ON","AEL-EL","CH4SYN","CH4SYN",4902.3254793167562,"PTX Atlas"]
["ZAF-NW,WIND-ON,AEL-EL,DRI,AEL-EL","ZAF-NW","WIND-ON","AEL-EL","DRI","AEL-EL",4248.8272553047336,"PTX Atlas"]
["ZAF-NW,WIND-ON,AEL-EL,DRI,DRI","ZAF-NW","WIND-ON","AEL-EL","DRI","DRI",6657.5999999999995,"öko"]
["ZAF-NW,WIND-ON,AEL-EL,EFUELSYN,AEL-EL","ZAF-NW","WIND-ON","AEL-EL","EFUELSYN","AEL-EL",4248.8272553047336,"PTX Atlas"]
["ZAF-NW,WIND-ON,AEL-EL,EFUELSYN,EFUELSYN","ZAF-NW","WIND-ON","AEL-EL","EFUELSYN","EFUELSYN",4878.5905892459332,"PTX Atlas"]
["ZAF-NW,WIND-ON,AEL-EL,LOHC-CON,AEL-EL","ZAF-NW","WIND-ON","AEL-EL","LOHC-CON","AEL-EL",3890.5351637704234,"PTX Atlas"]
["ZAF-NW,WIND-ON,AEL-EL,LOHC-CON,LOHC-CON","ZAF-NW","WIND-ON","AEL-EL","LOHC-CON","LOHC-CON",3890.5351637704234,"PTX Atlas"]
["ZAF-NW,WIND-ON,AEL-EL,LOHC-CON,LOHC-REC","ZAF-NW","WIND-ON","AEL-EL","LOHC-CON","LOHC-REC",6657.5999999999995,"öko"]
["ZAF-NW,WIND-ON,AEL-EL,NH3SYN,AEL-EL","ZAF-NW","WIND-ON","AEL-EL","NH3SYN","AEL-EL",4114.6130409981815,"PTX Atlas"]
["ZAF-NW,WIND-ON,AEL-EL,NH3SYN,NH3-REC","ZAF-NW","WIND-ON","AEL-EL","NH3SYN","NH3-REC",6657.5999999999995,"öko"]
["ZAF-NW,WIND-ON,AEL-EL,NH3SYN,NH3SYN","ZAF-NW","WIND-ON","AEL-EL","NH3SYN","NH3SYN",4302.4508301657097,"PTX Atlas"]
["ZAF-NW,WIND-ON,PEM-EL,,H2-COMP","ZAF-NW","WIND-ON","PEM-EL",null,"H2-COMP",7008]
["ZAF-NW,WIND-ON,PEM-EL,,H2-LIQ","ZAF-NW","WIND-ON","PEM-EL",null,"H2-LIQ",4313.6965985463376,"öko"]
["ZAF-NW,WIND-ON,PEM-EL,,H2-RGAS","ZAF-NW","WIND-ON","PEM-EL",null,"H2-RGAS",7008,"öko"]
["ZAF-NW,WIND-ON,PEM-EL,,PEM-EL","ZAF-NW","WIND-ON","PEM-EL",null,"PEM-EL",4095.3001723899201,"PTX Atlas"]
["ZAF-NW,WIND-ON,PEM-EL,CH3OHSYN,CH3OHREC","ZAF-NW","WIND-ON","PEM-EL","CH3OHSYN","CH3OHREC",7008,"öko"]
["ZAF-NW,WIND-ON,PEM-EL,CH3OHSYN,CH3OHSYN","ZAF-NW","WIND-ON","PEM-EL","CH3OHSYN","CH3OHSYN",5171.6913308480798,"PTX Atlas"]
["ZAF-NW,WIND-ON,PEM-EL,CH3OHSYN,PEM-EL","ZAF-NW","WIND-ON","PEM-EL","CH3OHSYN","PEM-EL",4502.207071948842,"PTX Atlas"]
["ZAF-NW,WIND-ON,PEM-EL,CH4SYN,ATR","ZAF-NW","WIND-ON","PEM-EL","CH4SYN","ATR",7008]
["ZAF-NW,WIND-ON,PEM-EL,CH4SYN,CH4-LIQ","ZAF-NW","WIND-ON","PEM-EL","CH4SYN","CH4-LIQ",5160.3426098071122,"PTX Atlas"]
["ZAF-NW,WIND-ON,PEM-EL,CH4SYN,CH4-RGAS","ZAF-NW","WIND-ON","PEM-EL","CH4SYN","CH4-RGAS",7008,"öko"]
["ZAF-NW,WIND-ON,PEM-EL,CH4SYN,CH4SYN","ZAF-NW","WIND-ON","PEM-EL","CH4SYN","CH4SYN",5160.3426098071122,"PTX Atlas"]
["ZAF-NW,WIND-ON,PEM-EL,CH4SYN,PEM-EL","ZAF-NW","WIND-ON","PEM-EL","CH4SYN","PEM-EL",4411.8481402720709,"PTX Atlas"]
["ZAF-NW,WIND-ON,PEM-EL,DRI,DRI","ZAF-NW","WIND-ON","PEM-EL","DRI","DRI",7008,"öko"]
["ZAF-NW,WIND-ON,PEM-EL,DRI,PEM-EL","ZAF-NW","WIND-ON","PEM-EL","DRI","PEM-EL",4472.4497424260353,"PTX Atlas"]
["ZAF-NW,WIND-ON,PEM-EL,EFUELSYN,EFUELSYN","ZAF-NW","WIND-ON","PEM-EL","EFUELSYN","EFUELSYN",5135.3585149957198,"PTX Atlas"]
["ZAF-NW,WIND-ON,PEM-EL,EFUELSYN,PEM-EL","ZAF-NW","WIND-ON","PEM-EL","EFUELSYN","PEM-EL",4472.4497424260353,"PTX Atlas"]
["ZAF-NW,WIND-ON,PEM-EL,LOHC-CON,LOHC-CON","ZAF-NW","WIND-ON","PEM-EL","LOHC-CON","LOHC-CON",4095.3001723899201,"PTX Atlas"]
["ZAF-NW,WIND-ON,PEM-EL,LOHC-CON,LOHC-REC","ZAF-NW","WIND-ON","PEM-EL","LOHC-CON","LOHC-REC",7008,"öko"]
["ZAF-NW,WIND-ON,PEM-EL,LOHC-CON,PEM-EL","ZAF-NW","WIND-ON","PEM-EL","LOHC-CON","PEM-EL",4095.3001723899201,"PTX Atlas"]
["ZAF-NW,WIND-ON,PEM-EL,NH3SYN,NH3-REC","ZAF-NW","WIND-ON","PEM-EL","NH3SYN","NH3-REC",7008,"öko"]
["ZAF-NW,WIND-ON,PEM-EL,NH3SYN,NH3SYN","ZAF-NW","WIND-ON","PEM-EL","NH3SYN","NH3SYN",4528.8956107007471,"PTX Atlas"]
["ZAF-NW,WIND-ON,PEM-EL,NH3SYN,PEM-EL","ZAF-NW","WIND-ON","PEM-EL","NH3SYN","PEM-EL",4331.1716221033494,"PTX Atlas"]
["ZAF-NW,WIND-ON,SOEC-EL,,H2-COMP","ZAF-NW","WIND-ON","SOEC-EL",null,"H2-COMP",7008]
["ZAF-NW,WIND-ON,SOEC-EL,,H2-LIQ","ZAF-NW","WIND-ON","SOEC-EL",null,"H2-LIQ",4256.8235883112593,"öko"]
["ZAF-NW,WIND-ON,SOEC-EL,,H2-RGAS","ZAF-NW","WIND-ON","SOEC-EL",null,"H2-RGAS",7008,"öko"]
["ZAF-NW,WIND-ON,SOEC-EL,,SOEC-EL","ZAF-NW","WIND-ON","SOEC-EL",null,"SOEC-EL",4046.3589742521458,"PTX Atlas"]
["ZAF-NW,WIND-ON,SOEC-EL,CH3OHSYN,CH3OHREC","ZAF-NW","WIND-ON","SOEC-EL","CH3OHSYN","CH3OHREC",7008,"öko"]
["ZAF-NW,WIND-ON,SOEC-EL,CH3OHSYN,CH3OHSYN","ZAF-NW","WIND-ON","SOEC-EL","CH3OHSYN","CH3OHSYN",4660.7283981955643,"PTX Atlas"]
["ZAF-NW,WIND-ON,SOEC-EL,CH3OHSYN,SOEC-EL","ZAF-NW","WIND-ON","SOEC-EL","CH3OHSYN","SOEC-EL",4660.7283981955643,"PTX Atlas"]
["ZAF-NW,WIND-ON,SOEC-EL,CH4SYN,ATR","ZAF-NW","WIND-ON","SOEC-EL","CH4SYN","ATR",7008]
["ZAF-NW,WIND-ON,SOEC-EL,CH4SYN,CH4-LIQ","ZAF-NW","WIND-ON","SOEC-EL","CH4SYN","CH4-LIQ",4658.3559412599261,"PTX Atlas"]
["ZAF-NW,WIND-ON,SOEC-EL,CH4SYN,CH4-RGAS","ZAF-NW","WIND-ON","SOEC-EL","CH4SYN","CH4-RGAS",7008,"öko"]
["ZAF-NW,WIND-ON,SOEC-EL,CH4SYN,CH4SYN","ZAF-NW","WIND-ON","SOEC-EL","CH4SYN","CH4SYN",4658.3559412599261,"PTX Atlas"]
["ZAF-NW,WIND-ON,SOEC-EL,CH4SYN,SOEC-EL","ZAF-NW","WIND-ON","SOEC-EL","CH4SYN","SOEC-EL",4658.3559412599261,"PTX Atlas"]
["ZAF-NW,WIND-ON,SOEC-EL,DRI,DRI","ZAF-NW","WIND-ON","SOEC-EL","DRI","DRI",7008,"öko"]
["ZAF-NW,WIND-ON,SOEC-EL,DRI,SOEC-EL","ZAF-NW","WIND-ON","SOEC-EL","DRI","SOEC-EL",4670.6240618079137,"PTX Atlas"]
["ZAF-NW,WIND-ON,SOEC-EL,EFUELSYN,EFUELSYN","ZAF-NW","WIND-ON","SOEC-EL","EFUELSYN","EFUELSYN",4670.6240618079137,"PTX Atlas"]
["ZAF-NW,WIND-ON,SOEC-EL,EFUELSYN,SOEC-EL","ZAF-NW","WIND-ON","SOEC-EL","EFUELSYN","SOEC-EL",4670.6240618079137,"PTX Atlas"]
["ZAF-NW,WIND-ON,SOEC-EL,LOHC-CON,LOHC-CON","ZAF-NW","WIND-ON","SOEC-EL","LOHC-CON","LOHC-CON",4046.3589742521458,"PTX Atlas"]
["ZAF-NW,WIND-ON,SOEC-EL,LOHC-CON,LOHC-REC","ZAF-NW","WIND-ON","SOEC-EL","LOHC-CON","LOHC-REC",7008,"öko"]
["ZAF-NW,WIND-ON,SOEC-EL,LOHC-CON,SOEC-EL","ZAF-NW","WIND-ON","SOEC-EL","LOHC-CON","SOEC-EL",4046.3589742521458,"PTX Atlas"]
["ZAF-NW,WIND-ON,SOEC-EL,NH3SYN,NH3-REC","ZAF-NW","WIND-ON","SOEC-EL","NH3SYN","NH3-REC",7008,"öko"]
["ZAF-NW,WIND-ON,SOEC-EL,NH3SYN,NH3SYN","ZAF-NW","WIND-ON","SOEC-EL","NH3SYN","NH3SYN",4360.9985471348391,"PTX Atlas"]
["ZAF-NW,WIND-ON,SOEC-EL,NH3SYN,SOEC-EL","ZAF-NW","WIND-ON","SOEC-EL","NH3SYN","SOEC-EL",4360.9985471348391,"PTX Atlas"]
["ZAF-WC,PV-FIX,AEL-EL,,AEL-EL","ZAF-WC","PV-FIX","AEL-EL",null,"AEL-EL",2721.3878821847434,"PTX Atlas"]
["ZAF-WC,PV-FIX,AEL-EL,,H2-COMP","ZAF-WC","PV-FIX","AEL-EL",null,"H2-COMP",6657.5999999999995]
["ZAF-WC,PV-FIX,AEL-EL,,H2-LIQ","ZAF-WC","PV-FIX","AEL-EL",null,"H2-LIQ",2772.6278850154476,"öko"]
["ZAF-WC,PV-FIX,AEL-EL,,H2-RGAS","ZAF-WC","PV-FIX","AEL-EL",null,"H2-RGAS",6657.5999999999995,"öko"]
["ZAF-WC,PV-FIX,AEL-EL,CH3OHSYN,AEL-EL","ZAF-WC","PV-FIX","AEL-EL","CH3OHSYN","AEL-EL",2854.3867571368928,"PTX Atlas"]
["ZAF-WC,PV-FIX,AEL-EL,CH3OHSYN,CH3OHREC","ZAF-WC","PV-FIX","AEL-EL","CH3OHSYN","CH3OHREC",6657.5999999999995,"öko"]
["ZAF-WC,PV-FIX,AEL-EL,CH3OHSYN,CH3OHSYN","ZAF-WC","PV-FIX","AEL-EL","CH3OHSYN","CH3OHSYN",7594.6531103919133,"PTX Atlas"]
["ZAF-WC,PV-FIX,AEL-EL,CH4SYN,AEL-EL","ZAF-WC","PV-FIX","AEL-EL","CH4SYN","AEL-EL",2810.2076005144754,"PTX Atlas"]
["ZAF-WC,PV-FIX,AEL-EL,CH4SYN,ATR","ZAF-WC","PV-FIX","AEL-EL","CH4SYN","ATR",6657.5999999999995]
["ZAF-WC,PV-FIX,AEL-EL,CH4SYN,CH4-LIQ","ZAF-WC","PV-FIX","AEL-EL","CH4SYN","CH4-LIQ",7602.9679732957165,"PTX Atlas"]
["ZAF-WC,PV-FIX,AEL-EL,CH4SYN,CH4-RGAS","ZAF-WC","PV-FIX","AEL-EL","CH4SYN","CH4-RGAS",6657.5999999999995,"öko"]
["ZAF-WC,PV-FIX,AEL-EL,CH4SYN,CH4SYN","ZAF-WC","PV-FIX","AEL-EL","CH4SYN","CH4SYN",7602.9679732957165,"PTX Atlas"]
["ZAF-WC,PV-FIX,AEL-EL,DRI,AEL-EL","ZAF-WC","PV-FIX","AEL-EL","DRI","AEL-EL",2827.7157689531364,"PTX Atlas"]
["ZAF-WC,PV-FIX,AEL-EL,DRI,DRI","ZAF-WC","PV-FIX","AEL-EL","DRI","DRI",6657.5999999999995,"öko"]
["ZAF-WC,PV-FIX,AEL-EL,EFUELSYN,AEL-EL","ZAF-WC","PV-FIX","AEL-EL","EFUELSYN","AEL-EL",2827.7157689531364,"PTX Atlas"]
["ZAF-WC,PV-FIX,AEL-EL,EFUELSYN,EFUELSYN","ZAF-WC","PV-FIX","AEL-EL","EFUELSYN","EFUELSYN",7591.9358979336812,"PTX Atlas"]
["ZAF-WC,PV-FIX,AEL-EL,LOHC-CON,AEL-EL","ZAF-WC","PV-FIX","AEL-EL","LOHC-CON","AEL-EL",2721.3878821847434,"PTX Atlas"]
["ZAF-WC,PV-FIX,AEL-EL,LOHC-CON,LOHC-CON","ZAF-WC","PV-FIX","AEL-EL","LOHC-CON","LOHC-CON",2721.3878821847434,"PTX Atlas"]
["ZAF-WC,PV-FIX,AEL-EL,LOHC-CON,LOHC-REC","ZAF-WC","PV-FIX","AEL-EL","LOHC-CON","LOHC-REC",6657.5999999999995,"öko"]
["ZAF-WC,PV-FIX,AEL-EL,NH3SYN,AEL-EL","ZAF-WC","PV-FIX","AEL-EL","NH3SYN","AEL-EL",2734.5879602510722,"PTX Atlas"]
["ZAF-WC,PV-FIX,AEL-EL,NH3SYN,NH3-REC","ZAF-WC","PV-FIX","AEL-EL","NH3SYN","NH3-REC",6657.5999999999995,"öko"]
["ZAF-WC,PV-FIX,AEL-EL,NH3SYN,NH3SYN","ZAF-WC","PV-FIX","AEL-EL","NH3SYN","NH3SYN",7536.2956509855267,"PTX Atlas"]
["ZAF-WC,PV-FIX,PEM-EL,,H2-COMP","ZAF-WC","PV-FIX","PEM-EL",null,"H2-COMP",7008]
["ZAF-WC,PV-FIX,PEM-EL,,H2-LIQ","ZAF-WC","PV-FIX","PEM-EL",null,"H2-LIQ",2918.5556684373132,"öko"]
["ZAF-WC,PV-FIX,PEM-EL,,H2-RGAS","ZAF-WC","PV-FIX","PEM-EL",null,"H2-RGAS",7008,"öko"]
["ZAF-WC,PV-FIX,PEM-EL,,PEM-EL","ZAF-WC","PV-FIX","PEM-EL",null,"PEM-EL",2864.6188233523617,"PTX Atlas"]
["ZAF-WC,PV-FIX,PEM-EL,CH3OHSYN,CH3OHREC","ZAF-WC","PV-FIX","PEM-EL","CH3OHSYN","CH3OHREC",7008,"öko"]
["ZAF-WC,PV-FIX,PEM-EL,CH3OHSYN,CH3OHSYN","ZAF-WC","PV-FIX","PEM-EL","CH3OHSYN","CH3OHSYN",7994.3716951493825,"PTX Atlas"]
["ZAF-WC,PV-FIX,PEM-EL,CH3OHSYN,PEM-EL","ZAF-WC","PV-FIX","PEM-EL","CH3OHSYN","PEM-EL",3004.6176390914661,"PTX Atlas"]
["ZAF-WC,PV-FIX,PEM-EL,CH4SYN,ATR","ZAF-WC","PV-FIX","PEM-EL","CH4SYN","ATR",7008]
["ZAF-WC,PV-FIX,PEM-EL,CH4SYN,CH4-LIQ","ZAF-WC","PV-FIX","PEM-EL","CH4SYN","CH4-LIQ",8003.1241824165436,"PTX Atlas"]
["ZAF-WC,PV-FIX,PEM-EL,CH4SYN,CH4-RGAS","ZAF-WC","PV-FIX","PEM-EL","CH4SYN","CH4-RGAS",7008,"öko"]
["ZAF-WC,PV-FIX,PEM-EL,CH4SYN,CH4SYN","ZAF-WC","PV-FIX","PEM-EL","CH4SYN","CH4SYN",8003.1241824165436,"PTX Atlas"]
["ZAF-WC,PV-FIX,PEM-EL,CH4SYN,PEM-EL","ZAF-WC","PV-FIX","PEM-EL","CH4SYN","PEM-EL",2958.113263699448,"PTX Atlas"]
["ZAF-WC,PV-FIX,PEM-EL,DRI,DRI","ZAF-WC","PV-FIX","PEM-EL","DRI","DRI",7008,"öko"]
["ZAF-WC,PV-FIX,PEM-EL,DRI,PEM-EL","ZAF-WC","PV-FIX","PEM-EL","DRI","PEM-EL",2976.5429146875122,"PTX Atlas"]
["ZAF-WC,PV-FIX,PEM-EL,EFUELSYN,EFUELSYN","ZAF-WC","PV-FIX","PEM-EL","EFUELSYN","EFUELSYN",7991.5114715091395,"PTX Atlas"]
["ZAF-WC,PV-FIX,PEM-EL,EFUELSYN,PEM-EL","ZAF-WC","PV-FIX","PEM-EL","EFUELSYN","PEM-EL",2976.5429146875122,"PTX Atlas"]
["ZAF-WC,PV-FIX,PEM-EL,LOHC-CON,LOHC-CON","ZAF-WC","PV-FIX","PEM-EL","LOHC-CON","LOHC-CON",2864.6188233523617,"PTX Atlas"]
["ZAF-WC,PV-FIX,PEM-EL,LOHC-CON,LOHC-REC","ZAF-WC","PV-FIX","PEM-EL","LOHC-CON","LOHC-REC",7008,"öko"]
["ZAF-WC,PV-FIX,PEM-EL,LOHC-CON,PEM-EL","ZAF-WC","PV-FIX","PEM-EL","LOHC-CON","PEM-EL",2864.6188233523617,"PTX Atlas"]
["ZAF-WC,PV-FIX,PEM-EL,NH3SYN,NH3-REC","ZAF-WC","PV-FIX","PEM-EL","NH3SYN","NH3-REC",7008,"öko"]
["ZAF-WC,PV-FIX,PEM-EL,NH3SYN,NH3SYN","ZAF-WC","PV-FIX","PEM-EL","NH3SYN","NH3SYN",7932.9427905110797,"PTX Atlas"]
["ZAF-WC,PV-FIX,PEM-EL,NH3SYN,PEM-EL","ZAF-WC","PV-FIX","PEM-EL","NH3SYN","PEM-EL",2878.5136423695494,"PTX Atlas"]
["ZAF-WC,PV-FIX,SOEC-EL,,H2-COMP","ZAF-WC","PV-FIX","SOEC-EL",null,"H2-COMP",7008]
["ZAF-WC,PV-FIX,SOEC-EL,,H2-LIQ","ZAF-WC","PV-FIX","SOEC-EL",null,"H2-LIQ",2898.5947471066893,"öko"]
["ZAF-WC,PV-FIX,SOEC-EL,,H2-RGAS","ZAF-WC","PV-FIX","SOEC-EL",null,"H2-RGAS",7008,"öko"]
["ZAF-WC,PV-FIX,SOEC-EL,,SOEC-EL","ZAF-WC","PV-FIX","SOEC-EL",null,"SOEC-EL",2839.7421327155407,"PTX Atlas"]
["ZAF-WC,PV-FIX,SOEC-EL,CH3OHSYN,CH3OHREC","ZAF-WC","PV-FIX","SOEC-EL","CH3OHSYN","CH3OHREC",7008,"öko"]
["ZAF-WC,PV-FIX,SOEC-EL,CH3OHSYN,CH3OHSYN","ZAF-WC","PV-FIX","SOEC-EL","CH3OHSYN","CH3OHSYN",7635.9777645107133,"PTX Atlas"]
["ZAF-WC,PV-FIX,SOEC-EL,CH3OHSYN,SOEC-EL","ZAF-WC","PV-FIX","SOEC-EL","CH3OHSYN","SOEC-EL",7635.9777645107133,"PTX Atlas"]
["ZAF-WC,PV-FIX,SOEC-EL,CH4SYN,ATR","ZAF-WC","PV-FIX","SOEC-EL","CH4SYN","ATR",7008]
["ZAF-WC,PV-FIX,SOEC-EL,CH4SYN,CH4-LIQ","ZAF-WC","PV-FIX","SOEC-EL","CH4SYN","CH4-LIQ",7347.3150196639917,"PTX Atlas"]
["ZAF-WC,PV-FIX,SOEC-EL,CH4SYN,CH4-RGAS","ZAF-WC","PV-FIX","SOEC-EL","CH4SYN","CH4-RGAS",7008,"öko"]
["ZAF-WC,PV-FIX,SOEC-EL,CH4SYN,CH4SYN","ZAF-WC","PV-FIX","SOEC-EL","CH4SYN","CH4SYN",7347.3150196639917,"PTX Atlas"]
["ZAF-WC,PV-FIX,SOEC-EL,CH4SYN,SOEC-EL","ZAF-WC","PV-FIX","SOEC-EL","CH4SYN","SOEC-EL",7347.3150196639917,"PTX Atlas"]
["ZAF-WC,PV-FIX,SOEC-EL,DRI,DRI","ZAF-WC","PV-FIX","SOEC-EL","DRI","DRI",7008,"öko"]
["ZAF-WC,PV-FIX,SOEC-EL,DRI,SOEC-EL","ZAF-WC","PV-FIX","SOEC-EL","DRI","SOEC-EL",7911.1768205699827,"PTX Atlas"]
["ZAF-WC,PV-FIX,SOEC-EL,EFUELSYN,EFUELSYN","ZAF-WC","PV-FIX","SOEC-EL","EFUELSYN","EFUELSYN",7911.1768205699827,"PTX Atlas"]
["ZAF-WC,PV-FIX,SOEC-EL,EFUELSYN,SOEC-EL","ZAF-WC","PV-FIX","SOEC-EL","EFUELSYN","SOEC-EL",7911.1768205699827,"PTX Atlas"]
["ZAF-WC,PV-FIX,SOEC-EL,LOHC-CON,LOHC-CON","ZAF-WC","PV-FIX","SOEC-EL","LOHC-CON","LOHC-CON",2839.7421327155407,"PTX Atlas"]
["ZAF-WC,PV-FIX,SOEC-EL,LOHC-CON,LOHC-REC","ZAF-WC","PV-FIX","SOEC-EL","LOHC-CON","LOHC-REC",7008,"öko"]
["ZAF-WC,PV-FIX,SOEC-EL,LOHC-CON,SOEC-EL","ZAF-WC","PV-FIX","SOEC-EL","LOHC-CON","SOEC-EL",2839.7421327155407,"PTX Atlas"]
["ZAF-WC,PV-FIX,SOEC-EL,NH3SYN,NH3-REC","ZAF-WC","PV-FIX","SOEC-EL","NH3SYN","NH3-REC",7008,"öko"]
["ZAF-WC,PV-FIX,SOEC-EL,NH3SYN,NH3SYN","ZAF-WC","PV-FIX","SOEC-EL","NH3SYN","NH3SYN",4534.7278564154276,"PTX Atlas"]
["ZAF-WC,PV-FIX,SOEC-EL,NH3SYN,SOEC-EL","ZAF-WC","PV-FIX","SOEC-EL","NH3SYN","SOEC-EL",4534.7278564154276,"PTX Atlas"]
["ZAF-WC,PV-TRK,AEL-EL,,H2-COMP","ZAF-WC","PV-TRK","AEL-EL",null,"H2-COMP",6657.5999999999995]
["ZAF-WC,PV-TRK,AEL-EL,,H2-RGAS","ZAF-WC","PV-TRK","AEL-EL",null,"H2-RGAS",6657.5999999999995,"öko"]
["ZAF-WC,PV-TRK,AEL-EL,CH3OHSYN,CH3OHREC","ZAF-WC","PV-TRK","AEL-EL","CH3OHSYN","CH3OHREC",6657.5999999999995,"öko"]
["ZAF-WC,PV-TRK,AEL-EL,CH4SYN,ATR","ZAF-WC","PV-TRK","AEL-EL","CH4SYN","ATR",6657.5999999999995]
["ZAF-WC,PV-TRK,AEL-EL,CH4SYN,CH4-RGAS","ZAF-WC","PV-TRK","AEL-EL","CH4SYN","CH4-RGAS",6657.5999999999995,"öko"]
["ZAF-WC,PV-TRK,AEL-EL,DRI,DRI","ZAF-WC","PV-TRK","AEL-EL","DRI","DRI",6657.5999999999995,"öko"]
["ZAF-WC,PV-TRK,AEL-EL,LOHC-CON,LOHC-REC","ZAF-WC","PV-TRK","AEL-EL","LOHC-CON","LOHC-REC",6657.5999999999995,"öko"]
["ZAF-WC,PV-TRK,AEL-EL,NH3SYN,NH3-REC","ZAF-WC","PV-TRK","AEL-EL","NH3SYN","NH3-REC",6657.5999999999995,"öko"]
["ZAF-WC,PV-TRK,PEM-EL,,H2-COMP","ZAF-WC","PV-TRK","PEM-EL",null,"H2-COMP",7008]
["ZAF-WC,PV-TRK,PEM-EL,,H2-RGAS","ZAF-WC","PV-TRK","PEM-EL",null,"H2-RGAS",7008,"öko"]
["ZAF-WC,PV-TRK,PEM-EL,CH3OHSYN,CH3OHREC","ZAF-WC","PV-TRK","PEM-EL","CH3OHSYN","CH3OHREC",7008,"öko"]
["ZAF-WC,PV-TRK,PEM-EL,CH4SYN,ATR","ZAF-WC","PV-TRK","PEM-EL","CH4SYN","ATR",7008]
["ZAF-WC,PV-TRK,PEM-EL,CH4SYN,CH4-RGAS","ZAF-WC","PV-TRK","PEM-EL","CH4SYN","CH4-RGAS",7008,"öko"]
["ZAF-WC,PV-TRK,PEM-EL,DRI,DRI","ZAF-WC","PV-TRK","PEM-EL","DRI","DRI",7008,"öko"]
["ZAF-WC,PV-TRK,PEM-EL,LOHC-CON,LOHC-REC","ZAF-WC","PV-TRK","PEM-EL","LOHC-CON","LOHC-REC",7008,"öko"]
["ZAF-WC,PV-TRK,PEM-EL,NH3SYN,NH3-REC","ZAF-WC","PV-TRK","PEM-EL","NH3SYN","NH3-REC",7008,"öko"]
["ZAF-WC,PV-TRK,SOEC-EL,,H2-COMP","ZAF-WC","PV-TRK","SOEC-EL",null,"H2-COMP",7008]
["ZAF-WC,PV-TRK,SOEC-EL,,H2-RGAS","ZAF-WC","PV-TRK","SOEC-EL",null,"H2-RGAS",7008,"öko"]
["ZAF-WC,PV-TRK,SOEC-EL,CH3OHSYN,CH3OHREC","ZAF-WC","PV-TRK","SOEC-EL","CH3OHSYN","CH3OHREC",7008,"öko"]
["ZAF-WC,PV-TRK,SOEC-EL,CH4SYN,ATR","ZAF-WC","PV-TRK","SOEC-EL","CH4SYN","ATR",7008]
["ZAF-WC,PV-TRK,SOEC-EL,CH4SYN,CH4-RGAS","ZAF-WC","PV-TRK","SOEC-EL","CH4SYN","CH4-RGAS",7008,"öko"]
["ZAF-WC,PV-TRK,SOEC-EL,DRI,DRI","ZAF-WC","PV-TRK","SOEC-EL","DRI","DRI",7008,"öko"]
["ZAF-WC,PV-TRK,SOEC-EL,LOHC-CON,LOHC-REC","ZAF-WC","PV-TRK","SOEC-EL","LOHC-CON","LOHC-REC",7008,"öko"]
["ZAF-WC,PV-TRK,SOEC-EL,NH3SYN,NH3-REC","ZAF-WC","PV-TRK","SOEC-EL","NH3SYN","NH3-REC",7008,"öko"]
["ZAF-WC,RES-HYBR,AEL-EL,,AEL-EL","ZAF-WC","RES-HYBR","AEL-EL",null,"AEL-EL",4796.139264666268,"PTX Atlas"]
["ZAF-WC,RES-HYBR,AEL-EL,,H2-COMP","ZAF-WC","RES-HYBR","AEL-EL",null,"H2-COMP",6657.5999999999995]
["ZAF-WC,RES-HYBR,AEL-EL,,H2-LIQ","ZAF-WC","RES-HYBR","AEL-EL",null,"H2-LIQ",4722.6542036030496,"öko"]
["ZAF-WC,RES-HYBR,AEL-EL,,H2-RGAS","ZAF-WC","RES-HYBR","AEL-EL",null,"H2-RGAS",6657.5999999999995,"öko"]
["ZAF-WC,RES-HYBR,AEL-EL,CH3OHSYN,AEL-EL","ZAF-WC","RES-HYBR","AEL-EL","CH3OHSYN","AEL-EL",4811.5870196779879,"PTX Atlas"]
["ZAF-WC,RES-HYBR,AEL-EL,CH3OHSYN,CH3OHREC","ZAF-WC","RES-HYBR","AEL-EL","CH3OHSYN","CH3OHREC",6657.5999999999995,"öko"]
["ZAF-WC,RES-HYBR,AEL-EL,CH3OHSYN,CH3OHSYN","ZAF-WC","RES-HYBR","AEL-EL","CH3OHSYN","CH3OHSYN",6692.4400599285691,"PTX Atlas"]
["ZAF-WC,RES-HYBR,AEL-EL,CH4SYN,AEL-EL","ZAF-WC","RES-HYBR","AEL-EL","CH4SYN","AEL-EL",4701.7138736611696,"PTX Atlas"]
["ZAF-WC,RES-HYBR,AEL-EL,CH4SYN,ATR","ZAF-WC","RES-HYBR","AEL-EL","CH4SYN","ATR",6657.5999999999995]
["ZAF-WC,RES-HYBR,AEL-EL,CH4SYN,CH4-LIQ","ZAF-WC","RES-HYBR","AEL-EL","CH4SYN","CH4-LIQ",6695.1025261798168,"PTX Atlas"]
["ZAF-WC,RES-HYBR,AEL-EL,CH4SYN,CH4-RGAS","ZAF-WC","RES-HYBR","AEL-EL","CH4SYN","CH4-RGAS",6657.5999999999995,"öko"]
["ZAF-WC,RES-HYBR,AEL-EL,CH4SYN,CH4SYN","ZAF-WC","RES-HYBR","AEL-EL","CH4SYN","CH4SYN",6695.1025261798168,"PTX Atlas"]
["ZAF-WC,RES-HYBR,AEL-EL,DRI,AEL-EL","ZAF-WC","RES-HYBR","AEL-EL","DRI","AEL-EL",4784.8661594763344,"PTX Atlas"]
["ZAF-WC,RES-HYBR,AEL-EL,DRI,DRI","ZAF-WC","RES-HYBR","AEL-EL","DRI","DRI",6657.5999999999995,"öko"]
["ZAF-WC,RES-HYBR,AEL-EL,EFUELSYN,AEL-EL","ZAF-WC","RES-HYBR","AEL-EL","EFUELSYN","AEL-EL",4784.8661594763344,"PTX Atlas"]
["ZAF-WC,RES-HYBR,AEL-EL,EFUELSYN,EFUELSYN","ZAF-WC","RES-HYBR","AEL-EL","EFUELSYN","EFUELSYN",6668.9453605619456,"PTX Atlas"]
["ZAF-WC,RES-HYBR,AEL-EL,LOHC-CON,AEL-EL","ZAF-WC","RES-HYBR","AEL-EL","LOHC-CON","AEL-EL",4796.139264666268,"PTX Atlas"]
["ZAF-WC,RES-HYBR,AEL-EL,LOHC-CON,LOHC-CON","ZAF-WC","RES-HYBR","AEL-EL","LOHC-CON","LOHC-CON",4796.139264666268,"PTX Atlas"]
["ZAF-WC,RES-HYBR,AEL-EL,LOHC-CON,LOHC-REC","ZAF-WC","RES-HYBR","AEL-EL","LOHC-CON","LOHC-REC",6657.5999999999995,"öko"]
["ZAF-WC,RES-HYBR,AEL-EL,NH3SYN,AEL-EL","ZAF-WC","RES-HYBR","AEL-EL","NH3SYN","AEL-EL",4785.0436490043767,"PTX Atlas"]
["ZAF-WC,RES-HYBR,AEL-EL,NH3SYN,NH3-REC","ZAF-WC","RES-HYBR","AEL-EL","NH3SYN","NH3-REC",6657.5999999999995,"öko"]
["ZAF-WC,RES-HYBR,AEL-EL,NH3SYN,NH3SYN","ZAF-WC","RES-HYBR","AEL-EL","NH3SYN","NH3SYN",6323.3409247505097,"PTX Atlas"]
["ZAF-WC,RES-HYBR,PEM-EL,,H2-COMP","ZAF-WC","RES-HYBR","PEM-EL",null,"H2-COMP",7008]
["ZAF-WC,RES-HYBR,PEM-EL,,H2-LIQ","ZAF-WC","RES-HYBR","PEM-EL",null,"H2-LIQ",4971.2149511611051,"öko"]
["ZAF-WC,RES-HYBR,PEM-EL,,H2-RGAS","ZAF-WC","RES-HYBR","PEM-EL",null,"H2-RGAS",7008,"öko"]
["ZAF-WC,RES-HYBR,PEM-EL,,PEM-EL","ZAF-WC","RES-HYBR","PEM-EL",null,"PEM-EL",5048.5676470171247,"PTX Atlas"]
["ZAF-WC,RES-HYBR,PEM-EL,CH3OHSYN,CH3OHREC","ZAF-WC","RES-HYBR","PEM-EL","CH3OHSYN","CH3OHREC",7008,"öko"]
["ZAF-WC,RES-HYBR,PEM-EL,CH3OHSYN,CH3OHSYN","ZAF-WC","RES-HYBR","PEM-EL","CH3OHSYN","CH3OHSYN",7044.6737472932309,"PTX Atlas"]
["ZAF-WC,RES-HYBR,PEM-EL,CH3OHSYN,PEM-EL","ZAF-WC","RES-HYBR","PEM-EL","CH3OHSYN","PEM-EL",5064.8284417663035,"PTX Atlas"]
["ZAF-WC,RES-HYBR,PEM-EL,CH4SYN,ATR","ZAF-WC","RES-HYBR","PEM-EL","CH4SYN","ATR",7008]
["ZAF-WC,RES-HYBR,PEM-EL,CH4SYN,CH4-LIQ","ZAF-WC","RES-HYBR","PEM-EL","CH4SYN","CH4-LIQ",7047.4763433471762,"PTX Atlas"]
["ZAF-WC,RES-HYBR,PEM-EL,CH4SYN,CH4-RGAS","ZAF-WC","RES-HYBR","PEM-EL","CH4SYN","CH4-RGAS",7008,"öko"]
["ZAF-WC,RES-HYBR,PEM-EL,CH4SYN,CH4SYN","ZAF-WC","RES-HYBR","PEM-EL","CH4SYN","CH4SYN",7047.4763433471762,"PTX Atlas"]
["ZAF-WC,RES-HYBR,PEM-EL,CH4SYN,PEM-EL","ZAF-WC","RES-HYBR","PEM-EL","CH4SYN","PEM-EL",4949.1724985907049,"PTX Atlas"]
["ZAF-WC,RES-HYBR,PEM-EL,DRI,DRI","ZAF-WC","RES-HYBR","PEM-EL","DRI","DRI",7008,"öko"]
["ZAF-WC,RES-HYBR,PEM-EL,DRI,PEM-EL","ZAF-WC","RES-HYBR","PEM-EL","DRI","PEM-EL",5036.7012205014044,"PTX Atlas"]
["ZAF-WC,RES-HYBR,PEM-EL,EFUELSYN,EFUELSYN","ZAF-WC","RES-HYBR","PEM-EL","EFUELSYN","EFUELSYN",7019.9424848020481,"PTX Atlas"]
["ZAF-WC,RES-HYBR,PEM-EL,EFUELSYN,PEM-EL","ZAF-WC","RES-HYBR","PEM-EL","EFUELSYN","PEM-EL",5036.7012205014044,"PTX Atlas"]
["ZAF-WC,RES-HYBR,PEM-EL,LOHC-CON,LOHC-CON","ZAF-WC","RES-HYBR","PEM-EL","LOHC-CON","LOHC-CON",5048.5676470171247,"PTX Atlas"]
["ZAF-WC,RES-HYBR,PEM-EL,LOHC-CON,LOHC-REC","ZAF-WC","RES-HYBR","PEM-EL","LOHC-CON","LOHC-REC",7008,"öko"]
["ZAF-WC,RES-HYBR,PEM-EL,LOHC-CON,PEM-EL","ZAF-WC","RES-HYBR","PEM-EL","LOHC-CON","PEM-EL",5048.5676470171247,"PTX Atlas"]
["ZAF-WC,RES-HYBR,PEM-EL,NH3SYN,NH3-REC","ZAF-WC","RES-HYBR","PEM-EL","NH3SYN","NH3-REC",7008,"öko"]
["ZAF-WC,RES-HYBR,PEM-EL,NH3SYN,NH3SYN","ZAF-WC","RES-HYBR","PEM-EL","NH3SYN","NH3SYN",6656.1483418426424,"PTX Atlas"]
["ZAF-WC,RES-HYBR,PEM-EL,NH3SYN,PEM-EL","ZAF-WC","RES-HYBR","PEM-EL","NH3SYN","PEM-EL",5036.8880515835544,"PTX Atlas"]
["ZAF-WC,RES-HYBR,SOEC-EL,,H2-COMP","ZAF-WC","RES-HYBR","SOEC-EL",null,"H2-COMP",7008]
["ZAF-WC,RES-HYBR,SOEC-EL,,H2-LIQ","ZAF-WC","RES-HYBR","SOEC-EL",null,"H2-LIQ",4763.4979880910123,"öko"]
["ZAF-WC,RES-HYBR,SOEC-EL,,H2-RGAS","ZAF-WC","RES-HYBR","SOEC-EL",null,"H2-RGAS",7008,"öko"]
["ZAF-WC,RES-HYBR,SOEC-EL,,SOEC-EL","ZAF-WC","RES-HYBR","SOEC-EL",null,"SOEC-EL",4892.5697942775996,"PTX Atlas"]
["ZAF-WC,RES-HYBR,SOEC-EL,CH3OHSYN,CH3OHREC","ZAF-WC","RES-HYBR","SOEC-EL","CH3OHSYN","CH3OHREC",7008,"öko"]
["ZAF-WC,RES-HYBR,SOEC-EL,CH3OHSYN,CH3OHSYN","ZAF-WC","RES-HYBR","SOEC-EL","CH3OHSYN","CH3OHSYN",6381.4411005393686,"PTX Atlas"]
["ZAF-WC,RES-HYBR,SOEC-EL,CH3OHSYN,SOEC-EL","ZAF-WC","RES-HYBR","SOEC-EL","CH3OHSYN","SOEC-EL",6381.4411005393686,"PTX Atlas"]
["ZAF-WC,RES-HYBR,SOEC-EL,CH4SYN,ATR","ZAF-WC","RES-HYBR","SOEC-EL","CH4SYN","ATR",7008]
["ZAF-WC,RES-HYBR,SOEC-EL,CH4SYN,CH4-LIQ","ZAF-WC","RES-HYBR","SOEC-EL","CH4SYN","CH4-LIQ",6380.7331543081455,"PTX Atlas"]
["ZAF-WC,RES-HYBR,SOEC-EL,CH4SYN,CH4-RGAS","ZAF-WC","RES-HYBR","SOEC-EL","CH4SYN","CH4-RGAS",7008,"öko"]
["ZAF-WC,RES-HYBR,SOEC-EL,CH4SYN,CH4SYN","ZAF-WC","RES-HYBR","SOEC-EL","CH4SYN","CH4SYN",6380.7331543081455,"PTX Atlas"]
["ZAF-WC,RES-HYBR,SOEC-EL,CH4SYN,SOEC-EL","ZAF-WC","RES-HYBR","SOEC-EL","CH4SYN","SOEC-EL",6380.7331543081455,"PTX Atlas"]
["ZAF-WC,RES-HYBR,SOEC-EL,DRI,DRI","ZAF-WC","RES-HYBR","SOEC-EL","DRI","DRI",7008,"öko"]
["ZAF-WC,RES-HYBR,SOEC-EL,DRI,SOEC-EL","ZAF-WC","RES-HYBR","SOEC-EL","DRI","SOEC-EL",6424.346407130548,"PTX Atlas"]
["ZAF-WC,RES-HYBR,SOEC-EL,EFUELSYN,EFUELSYN","ZAF-WC","RES-HYBR","SOEC-EL","EFUELSYN","EFUELSYN",6424.346407130548,"PTX Atlas"]
["ZAF-WC,RES-HYBR,SOEC-EL,EFUELSYN,SOEC-EL","ZAF-WC","RES-HYBR","SOEC-EL","EFUELSYN","SOEC-EL",6424.346407130548,"PTX Atlas"]
["ZAF-WC,RES-HYBR,SOEC-EL,LOHC-CON,LOHC-CON","ZAF-WC","RES-HYBR","SOEC-EL","LOHC-CON","LOHC-CON",4892.5697942775996,"PTX Atlas"]
["ZAF-WC,RES-HYBR,SOEC-EL,LOHC-CON,LOHC-REC","ZAF-WC","RES-HYBR","SOEC-EL","LOHC-CON","LOHC-REC",7008,"öko"]
["ZAF-WC,RES-HYBR,SOEC-EL,LOHC-CON,SOEC-EL","ZAF-WC","RES-HYBR","SOEC-EL","LOHC-CON","SOEC-EL",4892.5697942775996,"PTX Atlas"]
["ZAF-WC,RES-HYBR,SOEC-EL,NH3SYN,NH3-REC","ZAF-WC","RES-HYBR","SOEC-EL","NH3SYN","NH3-REC",7008,"öko"]
["ZAF-WC,RES-HYBR,SOEC-EL,NH3SYN,NH3SYN","ZAF-WC","RES-HYBR","SOEC-EL","NH3SYN","NH3SYN",5782.9570569826137,"PTX Atlas"]
["ZAF-WC,RES-HYBR,SOEC-EL,NH3SYN,SOEC-EL","ZAF-WC","RES-HYBR","SOEC-EL","NH3SYN","SOEC-EL",5782.9570569826137,"PTX Atlas"]
["ZAF-WC,WIND-OFF,AEL-EL,,AEL-EL","ZAF-WC","WIND-OFF","AEL-EL",null,"AEL-EL",4732.9366848507316,"PTX Atlas"]
["ZAF-WC,WIND-OFF,AEL-EL,,H2-COMP","ZAF-WC","WIND-OFF","AEL-EL",null,"H2-COMP",6657.5999999999995]
["ZAF-WC,WIND-OFF,AEL-EL,,H2-LIQ","ZAF-WC","WIND-OFF","AEL-EL",null,"H2-LIQ",4924.913047081729,"öko"]
["ZAF-WC,WIND-OFF,AEL-EL,,H2-RGAS","ZAF-WC","WIND-OFF","AEL-EL",null,"H2-RGAS",6657.5999999999995,"öko"]
["ZAF-WC,WIND-OFF,AEL-EL,CH3OHSYN,AEL-EL","ZAF-WC","WIND-OFF","AEL-EL","CH3OHSYN","AEL-EL",5117.8089661113818,"PTX Atlas"]
["ZAF-WC,WIND-OFF,AEL-EL,CH3OHSYN,CH3OHREC","ZAF-WC","WIND-OFF","AEL-EL","CH3OHSYN","CH3OHREC",6657.5999999999995,"öko"]
["ZAF-WC,WIND-OFF,AEL-EL,CH3OHSYN,CH3OHSYN","ZAF-WC","WIND-OFF","AEL-EL","CH3OHSYN","CH3OHSYN",5486.2262550854884,"PTX Atlas"]
["ZAF-WC,WIND-OFF,AEL-EL,CH4SYN,AEL-EL","ZAF-WC","WIND-OFF","AEL-EL","CH4SYN","AEL-EL",5033.8938758757413,"PTX Atlas"]
["ZAF-WC,WIND-OFF,AEL-EL,CH4SYN,ATR","ZAF-WC","WIND-OFF","AEL-EL","CH4SYN","ATR",6657.5999999999995]
["ZAF-WC,WIND-OFF,AEL-EL,CH4SYN,CH4-LIQ","ZAF-WC","WIND-OFF","AEL-EL","CH4SYN","CH4-LIQ",5483.6849938759906,"PTX Atlas"]
["ZAF-WC,WIND-OFF,AEL-EL,CH4SYN,CH4-RGAS","ZAF-WC","WIND-OFF","AEL-EL","CH4SYN","CH4-RGAS",6657.5999999999995,"öko"]
["ZAF-WC,WIND-OFF,AEL-EL,CH4SYN,CH4SYN","ZAF-WC","WIND-OFF","AEL-EL","CH4SYN","CH4SYN",5483.6849938759906,"PTX Atlas"]
["ZAF-WC,WIND-OFF,AEL-EL,DRI,AEL-EL","ZAF-WC","WIND-OFF","AEL-EL","DRI","AEL-EL",5088.1561377178359,"PTX Atlas"]
["ZAF-WC,WIND-OFF,AEL-EL,DRI,DRI","ZAF-WC","WIND-OFF","AEL-EL","DRI","DRI",6657.5999999999995,"öko"]
["ZAF-WC,WIND-OFF,AEL-EL,EFUELSYN,AEL-EL","ZAF-WC","WIND-OFF","AEL-EL","EFUELSYN","AEL-EL",5088.1561377178359,"PTX Atlas"]
["ZAF-WC,WIND-OFF,AEL-EL,EFUELSYN,EFUELSYN","ZAF-WC","WIND-OFF","AEL-EL","EFUELSYN","EFUELSYN",5456.0553942800689,"PTX Atlas"]
["ZAF-WC,WIND-OFF,AEL-EL,LOHC-CON,AEL-EL","ZAF-WC","WIND-OFF","AEL-EL","LOHC-CON","AEL-EL",4732.9366848507316,"PTX Atlas"]
["ZAF-WC,WIND-OFF,AEL-EL,LOHC-CON,LOHC-CON","ZAF-WC","WIND-OFF","AEL-EL","LOHC-CON","LOHC-CON",4732.9366848507316,"PTX Atlas"]
["ZAF-WC,WIND-OFF,AEL-EL,LOHC-CON,LOHC-REC","ZAF-WC","WIND-OFF","AEL-EL","LOHC-CON","LOHC-REC",6657.5999999999995,"öko"]
["ZAF-WC,WIND-OFF,AEL-EL,NH3SYN,AEL-EL","ZAF-WC","WIND-OFF","AEL-EL","NH3SYN","AEL-EL",4930.3846990041684,"PTX Atlas"]
["ZAF-WC,WIND-OFF,AEL-EL,NH3SYN,NH3-REC","ZAF-WC","WIND-OFF","AEL-EL","NH3SYN","NH3-REC",6657.5999999999995,"öko"]
["ZAF-WC,WIND-OFF,AEL-EL,NH3SYN,NH3SYN","ZAF-WC","WIND-OFF","AEL-EL","NH3SYN","NH3SYN",5025.6020800004371,"PTX Atlas"]
["ZAF-WC,WIND-OFF,PEM-EL,,H2-COMP","ZAF-WC","WIND-OFF","PEM-EL",null,"H2-COMP",7008]
["ZAF-WC,WIND-OFF,PEM-EL,,H2-LIQ","ZAF-WC","WIND-OFF","PEM-EL",null,"H2-LIQ",5184.1189969281359,"öko"]
["ZAF-WC,WIND-OFF,PEM-EL,,H2-RGAS","ZAF-WC","WIND-OFF","PEM-EL",null,"H2-RGAS",7008,"öko"]
["ZAF-WC,WIND-OFF,PEM-EL,,PEM-EL","ZAF-WC","WIND-OFF","PEM-EL",null,"PEM-EL",4982.0386156323493,"PTX Atlas"]
["ZAF-WC,WIND-OFF,PEM-EL,CH3OHSYN,CH3OHREC","ZAF-WC","WIND-OFF","PEM-EL","CH3OHSYN","CH3OHREC",7008,"öko"]
["ZAF-WC,WIND-OFF,PEM-EL,CH3OHSYN,CH3OHSYN","ZAF-WC","WIND-OFF","PEM-EL","CH3OHSYN","CH3OHSYN",5774.9750053531461,"PTX Atlas"]
["ZAF-WC,WIND-OFF,PEM-EL,CH3OHSYN,PEM-EL","ZAF-WC","WIND-OFF","PEM-EL","CH3OHSYN","PEM-EL",5387.1673327488234,"PTX Atlas"]
["ZAF-WC,WIND-OFF,PEM-EL,CH4SYN,ATR","ZAF-WC","WIND-OFF","PEM-EL","CH4SYN","ATR",7008]
["ZAF-WC,WIND-OFF,PEM-EL,CH4SYN,CH4-LIQ","ZAF-WC","WIND-OFF","PEM-EL","CH4SYN","CH4-LIQ",5772.2999935536745,"PTX Atlas"]
["ZAF-WC,WIND-OFF,PEM-EL,CH4SYN,CH4-RGAS","ZAF-WC","WIND-OFF","PEM-EL","CH4SYN","CH4-RGAS",7008,"öko"]
["ZAF-WC,WIND-OFF,PEM-EL,CH4SYN,CH4SYN","ZAF-WC","WIND-OFF","PEM-EL","CH4SYN","CH4SYN",5772.2999935536745,"PTX Atlas"]
["ZAF-WC,WIND-OFF,PEM-EL,CH4SYN,PEM-EL","ZAF-WC","WIND-OFF","PEM-EL","CH4SYN","PEM-EL",5298.8356588165698,"PTX Atlas"]
["ZAF-WC,WIND-OFF,PEM-EL,DRI,DRI","ZAF-WC","WIND-OFF","PEM-EL","DRI","DRI",7008,"öko"]
["ZAF-WC,WIND-OFF,PEM-EL,DRI,PEM-EL","ZAF-WC","WIND-OFF","PEM-EL","DRI","PEM-EL",5355.9538291766694,"PTX Atlas"]
["ZAF-WC,WIND-OFF,PEM-EL,EFUELSYN,EFUELSYN","ZAF-WC","WIND-OFF","PEM-EL","EFUELSYN","EFUELSYN",5743.2162045053356,"PTX Atlas"]
["ZAF-WC,WIND-OFF,PEM-EL,EFUELSYN,PEM-EL","ZAF-WC","WIND-OFF","PEM-EL","EFUELSYN","PEM-EL",5355.9538291766694,"PTX Atlas"]
["ZAF-WC,WIND-OFF,PEM-EL,LOHC-CON,LOHC-CON","ZAF-WC","WIND-OFF","PEM-EL","LOHC-CON","LOHC-CON",4982.0386156323493,"PTX Atlas"]
["ZAF-WC,WIND-OFF,PEM-EL,LOHC-CON,LOHC-REC","ZAF-WC","WIND-OFF","PEM-EL","LOHC-CON","LOHC-REC",7008,"öko"]
["ZAF-WC,WIND-OFF,PEM-EL,LOHC-CON,PEM-EL","ZAF-WC","WIND-OFF","PEM-EL","LOHC-CON","PEM-EL",4982.0386156323493,"PTX Atlas"]
["ZAF-WC,WIND-OFF,PEM-EL,NH3SYN,NH3-REC","ZAF-WC","WIND-OFF","PEM-EL","NH3SYN","NH3-REC",7008,"öko"]
["ZAF-WC,WIND-OFF,PEM-EL,NH3SYN,NH3SYN","ZAF-WC","WIND-OFF","PEM-EL","NH3SYN","NH3SYN",5290.107452632039,"PTX Atlas"]
["ZAF-WC,WIND-OFF,PEM-EL,NH3SYN,PEM-EL","ZAF-WC","WIND-OFF","PEM-EL","NH3SYN","PEM-EL",5189.878630530704,"PTX Atlas"]
["ZAF-WC,WIND-OFF,SOEC-EL,,H2-COMP","ZAF-WC","WIND-OFF","SOEC-EL",null,"H2-COMP",7008]
["ZAF-WC,WIND-OFF,SOEC-EL,,H2-LIQ","ZAF-WC","WIND-OFF","SOEC-EL",null,"H2-LIQ",5136.457502160526,"öko"]
["ZAF-WC,WIND-OFF,SOEC-EL,,H2-RGAS","ZAF-WC","WIND-OFF","SOEC-EL",null,"H2-RGAS",7008,"öko"]
["ZAF-WC,WIND-OFF,SOEC-EL,,SOEC-EL","ZAF-WC","WIND-OFF","SOEC-EL",null,"SOEC-EL",4941.8544127262376,"PTX Atlas"]
["ZAF-WC,WIND-OFF,SOEC-EL,CH3OHSYN,CH3OHREC","ZAF-WC","WIND-OFF","SOEC-EL","CH3OHSYN","CH3OHREC",7008,"öko"]
["ZAF-WC,WIND-OFF,SOEC-EL,CH3OHSYN,CH3OHSYN","ZAF-WC","WIND-OFF","SOEC-EL","CH3OHSYN","CH3OHSYN",5489.3249612586951,"PTX Atlas"]
["ZAF-WC,WIND-OFF,SOEC-EL,CH3OHSYN,SOEC-EL","ZAF-WC","WIND-OFF","SOEC-EL","CH3OHSYN","SOEC-EL",5489.3249612586951,"PTX Atlas"]
["ZAF-WC,WIND-OFF,SOEC-EL,CH4SYN,ATR","ZAF-WC","WIND-OFF","SOEC-EL","CH4SYN","ATR",7008]
["ZAF-WC,WIND-OFF,SOEC-EL,CH4SYN,CH4-LIQ","ZAF-WC","WIND-OFF","SOEC-EL","CH4SYN","CH4-LIQ",5486.6534090196183,"PTX Atlas"]
["ZAF-WC,WIND-OFF,SOEC-EL,CH4SYN,CH4-RGAS","ZAF-WC","WIND-OFF","SOEC-EL","CH4SYN","CH4-RGAS",7008,"öko"]
["ZAF-WC,WIND-OFF,SOEC-EL,CH4SYN,CH4SYN","ZAF-WC","WIND-OFF","SOEC-EL","CH4SYN","CH4SYN",5486.6534090196183,"PTX Atlas"]
["ZAF-WC,WIND-OFF,SOEC-EL,CH4SYN,SOEC-EL","ZAF-WC","WIND-OFF","SOEC-EL","CH4SYN","SOEC-EL",5486.6534090196183,"PTX Atlas"]
["ZAF-WC,WIND-OFF,SOEC-EL,DRI,DRI","ZAF-WC","WIND-OFF","SOEC-EL","DRI","DRI",7008,"öko"]
["ZAF-WC,WIND-OFF,SOEC-EL,DRI,SOEC-EL","ZAF-WC","WIND-OFF","SOEC-EL","DRI","SOEC-EL",5498.4938547220809,"PTX Atlas"]
["ZAF-WC,WIND-OFF,SOEC-EL,EFUELSYN,EFUELSYN","ZAF-WC","WIND-OFF","SOEC-EL","EFUELSYN","EFUELSYN",5498.4938547220809,"PTX Atlas"]
["ZAF-WC,WIND-OFF,SOEC-EL,EFUELSYN,SOEC-EL","ZAF-WC","WIND-OFF","SOEC-EL","EFUELSYN","SOEC-EL",5498.4938547220809,"PTX Atlas"]
["ZAF-WC,WIND-OFF,SOEC-EL,LOHC-CON,LOHC-CON","ZAF-WC","WIND-OFF","SOEC-EL","LOHC-CON","LOHC-CON",4941.8544127262376,"PTX Atlas"]
["ZAF-WC,WIND-OFF,SOEC-EL,LOHC-CON,LOHC-REC","ZAF-WC","WIND-OFF","SOEC-EL","LOHC-CON","LOHC-REC",7008,"öko"]
["ZAF-WC,WIND-OFF,SOEC-EL,LOHC-CON,SOEC-EL","ZAF-WC","WIND-OFF","SOEC-EL","LOHC-CON","SOEC-EL",4941.8544127262376,"PTX Atlas"]
["ZAF-WC,WIND-OFF,SOEC-EL,NH3SYN,NH3-REC","ZAF-WC","WIND-OFF","SOEC-EL","NH3SYN","NH3-REC",7008,"öko"]
["ZAF-WC,WIND-OFF,SOEC-EL,NH3SYN,NH3SYN","ZAF-WC","WIND-OFF","SOEC-EL","NH3SYN","NH3SYN",5204.9963286755892,"PTX Atlas"]
["ZAF-WC,WIND-OFF,SOEC-EL,NH3SYN,SOEC-EL","ZAF-WC","WIND-OFF","SOEC-EL","NH3SYN","SOEC-EL",5204.9963286755892,"PTX Atlas"]
["ZAF-WC,WIND-ON,AEL-EL,,AEL-EL","ZAF-WC","WIND-ON","AEL-EL",null,"AEL-EL",4099.414703423392,"PTX Atlas"]
["ZAF-WC,WIND-ON,AEL-EL,,H2-COMP","ZAF-WC","WIND-ON","AEL-EL",null,"H2-COMP",6657.5999999999995]
["ZAF-WC,WIND-ON,AEL-EL,,H2-LIQ","ZAF-WC","WIND-ON","AEL-EL",null,"H2-LIQ",4303.0479111965396,"öko"]
["ZAF-WC,WIND-ON,AEL-EL,,H2-RGAS","ZAF-WC","WIND-ON","AEL-EL",null,"H2-RGAS",6657.5999999999995,"öko"]
["ZAF-WC,WIND-ON,AEL-EL,CH3OHSYN,AEL-EL","ZAF-WC","WIND-ON","AEL-EL","CH3OHSYN","AEL-EL",4485.5573904873136,"PTX Atlas"]
["ZAF-WC,WIND-ON,AEL-EL,CH3OHSYN,CH3OHREC","ZAF-WC","WIND-ON","AEL-EL","CH3OHSYN","CH3OHREC",6657.5999999999995,"öko"]
["ZAF-WC,WIND-ON,AEL-EL,CH3OHSYN,CH3OHSYN","ZAF-WC","WIND-ON","AEL-EL","CH3OHSYN","CH3OHSYN",5055.21588021362,"PTX Atlas"]
["ZAF-WC,WIND-ON,AEL-EL,CH4SYN,AEL-EL","ZAF-WC","WIND-ON","AEL-EL","CH4SYN","AEL-EL",4400.1939449300344,"PTX Atlas"]
["ZAF-WC,WIND-ON,AEL-EL,CH4SYN,ATR","ZAF-WC","WIND-ON","AEL-EL","CH4SYN","ATR",6657.5999999999995]
["ZAF-WC,WIND-ON,AEL-EL,CH4SYN,CH4-LIQ","ZAF-WC","WIND-ON","AEL-EL","CH4SYN","CH4-LIQ",5046.4777686173229,"PTX Atlas"]
["ZAF-WC,WIND-ON,AEL-EL,CH4SYN,CH4-RGAS","ZAF-WC","WIND-ON","AEL-EL","CH4SYN","CH4-RGAS",6657.5999999999995,"öko"]
["ZAF-WC,WIND-ON,AEL-EL,CH4SYN,CH4SYN","ZAF-WC","WIND-ON","AEL-EL","CH4SYN","CH4SYN",5046.4777686173229,"PTX Atlas"]
["ZAF-WC,WIND-ON,AEL-EL,DRI,AEL-EL","ZAF-WC","WIND-ON","AEL-EL","DRI","AEL-EL",4456.9449120143945,"PTX Atlas"]
["ZAF-WC,WIND-ON,AEL-EL,DRI,DRI","ZAF-WC","WIND-ON","AEL-EL","DRI","DRI",6657.5999999999995,"öko"]
["ZAF-WC,WIND-ON,AEL-EL,EFUELSYN,AEL-EL","ZAF-WC","WIND-ON","AEL-EL","EFUELSYN","AEL-EL",4456.9449120143945,"PTX Atlas"]
["ZAF-WC,WIND-ON,AEL-EL,EFUELSYN,EFUELSYN","ZAF-WC","WIND-ON","AEL-EL","EFUELSYN","EFUELSYN",5021.7771571982748,"PTX Atlas"]
["ZAF-WC,WIND-ON,AEL-EL,LOHC-CON,AEL-EL","ZAF-WC","WIND-ON","AEL-EL","LOHC-CON","AEL-EL",4099.414703423392,"PTX Atlas"]
["ZAF-WC,WIND-ON,AEL-EL,LOHC-CON,LOHC-CON","ZAF-WC","WIND-ON","AEL-EL","LOHC-CON","LOHC-CON",4099.414703423392,"PTX Atlas"]
["ZAF-WC,WIND-ON,AEL-EL,LOHC-CON,LOHC-REC","ZAF-WC","WIND-ON","AEL-EL","LOHC-CON","LOHC-REC",6657.5999999999995,"öko"]
["ZAF-WC,WIND-ON,AEL-EL,NH3SYN,AEL-EL","ZAF-WC","WIND-ON","AEL-EL","NH3SYN","AEL-EL",4316.8895138228136,"PTX Atlas"]
["ZAF-WC,WIND-ON,AEL-EL,NH3SYN,NH3-REC","ZAF-WC","WIND-ON","AEL-EL","NH3SYN","NH3-REC",6657.5999999999995,"öko"]
["ZAF-WC,WIND-ON,AEL-EL,NH3SYN,NH3SYN","ZAF-WC","WIND-ON","AEL-EL","NH3SYN","NH3SYN",4481.7614040251146,"PTX Atlas"]
["ZAF-WC,WIND-ON,PEM-EL,,H2-COMP","ZAF-WC","WIND-ON","PEM-EL",null,"H2-COMP",7008]
["ZAF-WC,WIND-ON,PEM-EL,,H2-LIQ","ZAF-WC","WIND-ON","PEM-EL",null,"H2-LIQ",4529.524117048989,"öko"]
["ZAF-WC,WIND-ON,PEM-EL,,H2-RGAS","ZAF-WC","WIND-ON","PEM-EL",null,"H2-RGAS",7008,"öko"]
["ZAF-WC,WIND-ON,PEM-EL,,PEM-EL","ZAF-WC","WIND-ON","PEM-EL",null,"PEM-EL",4315.1733720246229,"PTX Atlas"]
["ZAF-WC,WIND-ON,PEM-EL,CH3OHSYN,CH3OHREC","ZAF-WC","WIND-ON","PEM-EL","CH3OHSYN","CH3OHREC",7008,"öko"]
["ZAF-WC,WIND-ON,PEM-EL,CH3OHSYN,CH3OHSYN","ZAF-WC","WIND-ON","PEM-EL","CH3OHSYN","CH3OHSYN",5321.279873909074,"PTX Atlas"]
["ZAF-WC,WIND-ON,PEM-EL,CH3OHSYN,PEM-EL","ZAF-WC","WIND-ON","PEM-EL","CH3OHSYN","PEM-EL",4721.6393584076986,"PTX Atlas"]
["ZAF-WC,WIND-ON,PEM-EL,CH4SYN,ATR","ZAF-WC","WIND-ON","PEM-EL","CH4SYN","ATR",7008]
["ZAF-WC,WIND-ON,PEM-EL,CH4SYN,CH4-LIQ","ZAF-WC","WIND-ON","PEM-EL","CH4SYN","CH4-LIQ",5312.0818617024452,"PTX Atlas"]
["ZAF-WC,WIND-ON,PEM-EL,CH4SYN,CH4-RGAS","ZAF-WC","WIND-ON","PEM-EL","CH4SYN","CH4-RGAS",7008,"öko"]
["ZAF-WC,WIND-ON,PEM-EL,CH4SYN,CH4SYN","ZAF-WC","WIND-ON","PEM-EL","CH4SYN","CH4SYN",5312.0818617024452,"PTX Atlas"]
["ZAF-WC,WIND-ON,PEM-EL,CH4SYN,PEM-EL","ZAF-WC","WIND-ON","PEM-EL","CH4SYN","PEM-EL",4631.7830999263524,"PTX Atlas"]
["ZAF-WC,WIND-ON,PEM-EL,DRI,DRI","ZAF-WC","WIND-ON","PEM-EL","DRI","DRI",7008,"öko"]
["ZAF-WC,WIND-ON,PEM-EL,DRI,PEM-EL","ZAF-WC","WIND-ON","PEM-EL","DRI","PEM-EL",4691.520960015152,"PTX Atlas"]
["ZAF-WC,WIND-ON,PEM-EL,EFUELSYN,EFUELSYN","ZAF-WC","WIND-ON","PEM-EL","EFUELSYN","EFUELSYN",5286.0812181034471,"PTX Atlas"]
["ZAF-WC,WIND-ON,PEM-EL,EFUELSYN,PEM-EL","ZAF-WC","WIND-ON","PEM-EL","EFUELSYN","PEM-EL",4691.520960015152,"PTX Atlas"]
["ZAF-WC,WIND-ON,PEM-EL,LOHC-CON,LOHC-CON","ZAF-WC","WIND-ON","PEM-EL","LOHC-CON","LOHC-CON",4315.1733720246229,"PTX Atlas"]
["ZAF-WC,WIND-ON,PEM-EL,LOHC-CON,LOHC-REC","ZAF-WC","WIND-ON","PEM-EL","LOHC-CON","LOHC-REC",7008,"öko"]
["ZAF-WC,WIND-ON,PEM-EL,LOHC-CON,PEM-EL","ZAF-WC","WIND-ON","PEM-EL","LOHC-CON","PEM-EL",4315.1733720246229,"PTX Atlas"]
["ZAF-WC,WIND-ON,PEM-EL,NH3SYN,NH3-REC","ZAF-WC","WIND-ON","PEM-EL","NH3SYN","NH3-REC",7008,"öko"]
["ZAF-WC,WIND-ON,PEM-EL,NH3SYN,NH3SYN","ZAF-WC","WIND-ON","PEM-EL","NH3SYN","NH3SYN",4717.6435831843319,"PTX Atlas"]
["ZAF-WC,WIND-ON,PEM-EL,NH3SYN,PEM-EL","ZAF-WC","WIND-ON","PEM-EL","NH3SYN","PEM-EL",4544.0942250766457,"PTX Atlas"]
["ZAF-WC,WIND-ON,SOEC-EL,,H2-COMP","ZAF-WC","WIND-ON","SOEC-EL",null,"H2-COMP",7008]
["ZAF-WC,WIND-ON,SOEC-EL,,H2-LIQ","ZAF-WC","WIND-ON","SOEC-EL",null,"H2-LIQ",4474.9351685851707,"öko"]
["ZAF-WC,WIND-ON,SOEC-EL,,H2-RGAS","ZAF-WC","WIND-ON","SOEC-EL",null,"H2-RGAS",7008,"öko"]
["ZAF-WC,WIND-ON,SOEC-EL,,SOEC-EL","ZAF-WC","WIND-ON","SOEC-EL",null,"SOEC-EL",4268.4035340838091,"PTX Atlas"]
["ZAF-WC,WIND-ON,SOEC-EL,CH3OHSYN,CH3OHREC","ZAF-WC","WIND-ON","SOEC-EL","CH3OHSYN","CH3OHREC",7008,"öko"]
["ZAF-WC,WIND-ON,SOEC-EL,CH3OHSYN,CH3OHSYN","ZAF-WC","WIND-ON","SOEC-EL","CH3OHSYN","CH3OHSYN",4866.1848988304409,"PTX Atlas"]
["ZAF-WC,WIND-ON,SOEC-EL,CH3OHSYN,SOEC-EL","ZAF-WC","WIND-ON","SOEC-EL","CH3OHSYN","SOEC-EL",4866.1848988304409,"PTX Atlas"]
["ZAF-WC,WIND-ON,SOEC-EL,CH4SYN,ATR","ZAF-WC","WIND-ON","SOEC-EL","CH4SYN","ATR",7008]
["ZAF-WC,WIND-ON,SOEC-EL,CH4SYN,CH4-LIQ","ZAF-WC","WIND-ON","SOEC-EL","CH4SYN","CH4-LIQ",4863.7382790547181,"PTX Atlas"]
["ZAF-WC,WIND-ON,SOEC-EL,CH4SYN,CH4-RGAS","ZAF-WC","WIND-ON","SOEC-EL","CH4SYN","CH4-RGAS",7008,"öko"]
["ZAF-WC,WIND-ON,SOEC-EL,CH4SYN,CH4SYN","ZAF-WC","WIND-ON","SOEC-EL","CH4SYN","CH4SYN",4863.7382790547181,"PTX Atlas"]
["ZAF-WC,WIND-ON,SOEC-EL,CH4SYN,SOEC-EL","ZAF-WC","WIND-ON","SOEC-EL","CH4SYN","SOEC-EL",4863.7382790547181,"PTX Atlas"]
["ZAF-WC,WIND-ON,SOEC-EL,DRI,DRI","ZAF-WC","WIND-ON","SOEC-EL","DRI","DRI",7008,"öko"]
["ZAF-WC,WIND-ON,SOEC-EL,DRI,SOEC-EL","ZAF-WC","WIND-ON","SOEC-EL","DRI","SOEC-EL",4875.9003545367632,"PTX Atlas"]
["ZAF-WC,WIND-ON,SOEC-EL,EFUELSYN,EFUELSYN","ZAF-WC","WIND-ON","SOEC-EL","EFUELSYN","EFUELSYN",4875.9003545367632,"PTX Atlas"]
["ZAF-WC,WIND-ON,SOEC-EL,EFUELSYN,SOEC-EL","ZAF-WC","WIND-ON","SOEC-EL","EFUELSYN","SOEC-EL",4875.9003545367632,"PTX Atlas"]
["ZAF-WC,WIND-ON,SOEC-EL,LOHC-CON,LOHC-CON","ZAF-WC","WIND-ON","SOEC-EL","LOHC-CON","LOHC-CON",4268.4035340838091,"PTX Atlas"]
["ZAF-WC,WIND-ON,SOEC-EL,LOHC-CON,LOHC-REC","ZAF-WC","WIND-ON","SOEC-EL","LOHC-CON","LOHC-REC",7008,"öko"]
["ZAF-WC,WIND-ON,SOEC-EL,LOHC-CON,SOEC-EL","ZAF-WC","WIND-ON","SOEC-EL","LOHC-CON","SOEC-EL",4268.4035340838091,"PTX Atlas"]
["ZAF-WC,WIND-ON,SOEC-EL,NH3SYN,NH3-REC","ZAF-WC","WIND-ON","SOEC-EL","NH3SYN","NH3-REC",7008,"öko"]
["ZAF-WC,WIND-ON,SOEC-EL,NH3SYN,NH3SYN","ZAF-WC","WIND-ON","SOEC-EL","NH3SYN","NH3SYN",4570.2738910946591,"PTX Atlas"]
["ZAF-WC,WIND-ON,SOEC-EL,NH3SYN,SOEC-EL","ZAF-WC","WIND-ON","SOEC-EL","NH3SYN","SOEC-EL",4570.2738910946591,"PTX Atlas"]

{"sheet":"_calc","index":10,"n_rows":1150,"n_cols":76,"rows_kept":1150,"cut":false,"hidden":true,"merged":[]}
[null,null,null,"wacc","RES",null,null,null,null,null,"RES","SECOND",null,null,"TRANSP-LOC",null,"ELY",null,"SECOND",null,null,null,null,"DERIV",null,"SECOND",null,null,null,"SECOND",null,null,null,null,null,null,"PRE_SHP",null,"PRE_PPL",null,null,"TRANSP",null,null,null,"IS_SHIP","SHP",null,"PPLS","PPL","PPLX","PPLR",null,"POST_SHP",null,null,"POST_PPL",null,null,null,"STORAGE",null,null,"SCALE","UNIT CONVERT",null,"OUTPUT Variable","Water","Electrolysis","Electricity generation","Transportation (Pipeline)","Transportation (Ship)","Carbon","Derivate production","Heat","Electricity and H2 storage"]
[null,"PROCESS →",null,null,"PV-FIX","PV-TRK","RES-HYBR","WIND-OFF","WIND-ON",null,null,null,"DESAL","DAC",null,null,{"$f":"INDEX(chains[ELY],sel_chain_index)","v":"AEL-EL"},null,"DESAL",null,null,null,null,{"$f":"IF(INDEX(chains[DERIV],sel_chain_index)=\"\",\"\",INDEX(chains[DERIV],sel_chain_index))","v":""},null,"DESAL",null,null,null,"DAC",null,null,null,null,null,null,{"$f":"IF(INDEX(chains[PRE_SHP],sel_chain_index)=\"\",\"\",INDEX(chains[PRE_SHP],sel_chain_index))","v":"H2-LIQ"},null,{"$f":"IF(INDEX(chains[PRE_PPL],sel_chain_index)=\"\",\"\",INDEX(chains[PRE_PPL],sel_chain_index))","v":"H2-COMP"},null,null,null,null,null,null,null,{"$f":"IF(INDEX(IF(sel_ship_own_fuel,chains[SHP-OWN],chains[SHP]),sel_chain_index)=\"\",\"\",INDEX(IF(sel_ship_own_fuel,chains[SHP-OWN],chains[SHP]),sel_chain_index))","v":"H2-S"},null,{"$f":"IF(INDEX(chains[PPLS],sel_chain_index)=\"\",\"\",INDEX(chains[PPLS],sel_chain_index))","v":"H2-P-S"},{"$f":"IF(INDEX(chains[PPL],sel_chain_index)=\"\",\"\",INDEX(chains[PPL],sel_chain_index))","v":"H2-P-L"},{"$f":"IF(INDEX(chains[PPLX],sel_chain_index)=\"\",\"\",INDEX(chains[PPLX],sel_chain_index))","v":"H2-P-SR"},{"$f":"IF(INDEX(chains[PPLR],sel_chain_index)=\"\",\"\",INDEX(chains[PPLR],sel_chain_index))","v":"H2-P-LR"},null,{"$f":"IF(INDEX(chains[POST_SHP],sel_chain_index)=\"\",\"\",INDEX(chains[POST_SHP],sel_chain_index))","v":"H2-RGAS"},null,null,{"$f":"IF(INDEX(chains[POST_PPL],sel_chain_index)=\"\",\"\",INDEX(chains[POST_PPL],sel_chain_index))","v":""}]
["eff",null,null,null,null,null,null,null,null,null,null,null,null,null,null,null,{"$f":"IF(Q2=\"\",0,IF(\"EFF,\"&Q2&\",,,\"=VLOOKUP(\"EFF,\"&Q2&\",,,\",data[],1),VLOOKUP(\"EFF,\"&Q2&\",,,\",data[],7),1))","v":0.69},null,{"$f":"IF(S2=\"\",\"\",IF(\"EFF,\"&S2&\",,,\"=VLOOKUP(\"EFF,\"&S2&\",,,\",data[],1),VLOOKUP(\"EFF,\"&S2&\",,,\",data[],7),0))","v":1},null,null,null,null,{"$f":"IF(X2=\"\",0,IF(\"EFF,\"&X2&\",,,\"=VLOOKUP(\"EFF,\"&X2&\",,,\",data[],1),VLOOKUP(\"EFF,\"&X2&\",,,\",data[],7),1))","v":0},null,{"$f":"IF(Z2=\"\",0,IF(\"EFF,\"&Z2&\",,,\"=VLOOKUP(\"EFF,\"&Z2&\",,,\",data[],1),VLOOKUP(\"EFF,\"&Z2&\",,,\",data[],7),1))","v":1},null,null,null,{"$f":"IF(AD2=\"\",0,IF(\"EFF,\"&AD2&\",,,\"=VLOOKUP(\"EFF,\"&AD2&\",,,\",data[],1),VLOOKUP(\"EFF,\"&AD2&\",,,\",data[],7),1))","v":1},null,null,null,null,null,null,{"$f":"IF(AK2=\"\",1,IF(\"EFF,\"&AK2&\",,,\"=VLOOKUP(\"EFF,\"&AK2&\",,,\",data[],1),VLOOKUP(\"EFF,\"&AK2&\",,,\",data[],7),1))","v":1},null,{"$f":"IF(AM2=\"\",1,IF(\"EFF,\"&AM2&\",,,\"=VLOOKUP(\"EFF,\"&AM2&\",,,\",data[],1),VLOOKUP(\"EFF,\"&AM2&\",,,\",data[],7),1))","v":1},null,null,null,null,null,null,null,null,null,null,null,null,null,null,{"$f":"IF(BB2=\"\",1,IF(\"EFF,\"&BB2&\",,,\"=VLOOKUP(\"EFF,\"&BB2&\",,,\",data[],1),VLOOKUP(\"EFF,\"&BB2&\",,,\",data[],7),1))","v":0.99654654654654651},null,null,{"$f":"IF(BE2=\"\",1,IF(\"EFF,\"&BE2&\",,,\"=VLOOKUP(\"EFF,\"&BE2&\",,,\",data[],1),VLOOKUP(\"EFF,\"&BE2&\",,,\",data[],7),1))","v":1}]
["loss-t",null,null,null,null,null,null,null,null,null,null,null,null,null,0,null,null,null,null,null,null,null,null,null,null,null,null,null,null,null,null,null,null,null,null,null,null,null,null,null,null,null,null,null,null,null,{"$f":"IF(\"LOSS-T,\"&AU2&\",,,\"=VLOOKUP(\"LOSS-T,\"&AU2&\",,,\",data[],1),VLOOKUP(\"LOSS-T,\"&AU2&\",,,\",data[],7),0)","v":9.2511936896845982E-6},null,{"$f":"IF(\"LOSS-T,\"&AW2&\",,,\"=VLOOKUP(\"LOSS-T,\"&AW2&\",,,\",data[],1),VLOOKUP(\"LOSS-T,\"&AW2&\",,,\",data[],7),0)","v":1.6866666666666666E-5},{"$f":"IF(\"LOSS-T,\"&AX2&\",,,\"=VLOOKUP(\"LOSS-T,\"&AX2&\",,,\",data[],1),VLOOKUP(\"LOSS-T,\"&AX2&\",,,\",data[],7),0)","v":1.6866666666666666E-5},{"$f":"IF(\"LOSS-T,\"&AY2&\",,,\"=VLOOKUP(\"LOSS-T,\"&AY2&\",,,\",data[],1),VLOOKUP(\"LOSS-T,\"&AY2&\",,,\",data[],7),0)","v":1.6866666666666666E-5},{"$f":"IF(\"LOSS-T,\"&AZ2&\",,,\"=VLOOKUP(\"LOSS-T,\"&AZ2&\",,,\",data[],1),VLOOKUP(\"LOSS-T,\"&AZ2&\",,,\",data[],7),0)","v":1.6866666666666666E-5}]
[null,"FLOW →",null,null,null,null,null,null,null,null,null,null,null,null,null,null,null,"H2O-L",null,"HEAT","EL","EL",null,null,"H2O-L",null,"HEAT","EL","CO2-G",null,"HEAT","EL","EL","HEAT","N2-G",null,null,"EL",null,"EL",null,null,null,null,null,null,null,"BFUEL-L",null,null,null,null,null,null,"HEAT","EL",null,"HEAT","EL",null,null,null,null,null,{"$f":"INDEX(chains[FLOW_OUT],sel_chain_index)","v":"H2-G"}]
["conv",null,null,null,null,null,null,null,null,null,null,null,null,null,null,null,null,{"$f":"IF(\"CONV,\"&$Q2&\",\"&R5&\",,\"=VLOOKUP(\"CONV,\"&$Q2&\",\"&R5&\",,\",data[],1),VLOOKUP(\"CONV,\"&$Q2&\",\"&R5&\",,\",data[],7),0)","v":0.3},null,{"$f":"IF(\"CONV,\"&$S2&\",\"&T5&\",,\"=VLOOKUP(\"CONV,\"&$S2&\",\"&T5&\",,\",data[],1),VLOOKUP(\"CONV,\"&$S2&\",\"&T5&\",,\",data[],7),0)","v":0},{"$f":"IF(\"CONV,\"&$S2&\",\"&U5&\",,\"=VLOOKUP(\"CONV,\"&$S2&\",\"&U5&\",,\",data[],1),VLOOKUP(\"CONV,\"&$S2&\",\"&U5&\",,\",data[],7),0)","v":3.0000000000000001E-3},{"$f":"IF(\"CONV,\"&$Q2&\",\"&V5&\",,\"=VLOOKUP(\"CONV,\"&$Q2&\",\"&V5&\",,\",data[],1),VLOOKUP(\"CONV,\"&$Q2&\",\"&V5&\",,\",data[],7),0)","v":0},null,null,{"$f":"IF(\"CONV,\"&$X2&\",\"&Y5&\",,\"=VLOOKUP(\"CONV,\"&$X2&\",\"&Y5&\",,\",data[],1),VLOOKUP(\"CONV,\"&$X2&\",\"&Y5&\",,\",data[],7),0)","v":0},null,{"$f":"IF(\"CONV,\"&$Z2&\",\"&AA5&\",,\"=VLOOKUP(\"CONV,\"&$Z2&\",\"&AA5&\",,\",data[],1),VLOOKUP(\"CONV,\"&$Z2&\",\"&AA5&\",,\",data[],7),0)","v":0},{"$f":"IF(\"CONV,\"&$Z2&\",\"&AB5&\",,\"=VLOOKUP(\"CONV,\"&$Z2&\",\"&AB5&\",,\",data[],1),VLOOKUP(\"CONV,\"&$Z2&\",\"&AB5&\",,\",data[],7),0)","v":3.0000000000000001E-3},{"$f":"IF(\"CONV,\"&$X2&\",\"&AC5&\",,\"=VLOOKUP(\"CONV,\"&$X2&\",\"&AC5&\",,\",data[],1),VLOOKUP(\"CONV,\"&$X2&\",\"&AC5&\",,\",data[],7),0)","v":0},null,{"$f":"IF(\"CONV,\"&$AD2&\",\"&AE5&\",,\"=VLOOKUP(\"CONV,\"&$AD2&\",\"&AE5&\",,\",data[],1),VLOOKUP(\"CONV,\"&$AD2&\",\"&AE5&\",,\",data[],7),0)","v":1.85},{"$f":"IF(\"CONV,\"&$AD2&\",\"&AF5&\",,\"=VLOOKUP(\"CONV,\"&$AD2&\",\"&AF5&\",,\",data[],1),VLOOKUP(\"CONV,\"&$AD2&\",\"&AF5&\",,\",data[],7),0)","v":0.46249999999999997},{"$f":"IF(\"CONV,\"&$X2&\",\"&AG5&\",,\"=VLOOKUP(\"CONV,\"&$X2&\",\"&AG5&\",,\",data[],1),VLOOKUP(\"CONV,\"&$X2&\",\"&AG5&\",,\",data[],7),0)","v":0},{"$f":"IF(\"CONV,\"&$X2&\",\"&AH5&\",,\"=VLOOKUP(\"CONV,\"&$X2&\",\"&AH5&\",,\",data[],1),VLOOKUP(\"CONV,\"&$X2&\",\"&AH5&\",,\",data[],7),0)","v":0},{"$f":"IF(\"CONV,\"&$X2&\",\"&AI5&\",,\"=VLOOKUP(\"CONV,\"&$X2&\",\"&AI5&\",,\",data[],1),VLOOKUP(\"CONV,\"&$X2&\",\"&AI5&\",,\",data[],7),0)","v":0},null,null,{"$f":"IF(\"CONV,\"&$AK2&\",\"&AL5&\",,\"=VLOOKUP(\"CONV,\"&$AK2&\",\"&AL5&\",,\",data[],1),VLOOKUP(\"CONV,\"&$AK2&\",\"&AL5&\",,\",data[],7),0)","v":0.30010003334444812},null,{"$f":"IF(\"CONV,\"&$AM2&\",\"&AN5&\",,\"=VLOOKUP(\"CONV,\"&$AM2&\",\"&AN5&\",,\",data[],1),VLOOKUP(\"CONV,\"&$AM2&\",\"&AN5&\",,\",data[],7),0)","v":0.02},null,null,null,null,null,null,null,{"$f":"IF(\"CONV,\"&$AU2&\",\"&AV5&\",,\"=VLOOKUP(\"CONV,\"&$AU2&\",\"&AV5&\",,\",data[],1),VLOOKUP(\"CONV,\"&$AU2&\",\"&AV5&\",,\",data[],7),0)","v":0},null,null,null,null,null,null,{"$f":"IF(\"CONV,\"&$BB2&\",\"&BC5&\",,\"=VLOOKUP(\"CONV,\"&$BB2&\",\"&BC5&\",,\",data[],1),VLOOKUP(\"CONV,\"&$BB2&\",\"&BC5&\",,\",data[],7),0)","v":0},{"$f":"IF(\"CONV,\"&$BB2&\",\"&BD5&\",,\"=VLOOKUP(\"CONV,\"&$BB2&\",\"&BD5&\",,\",data[],1),VLOOKUP(\"CONV,\"&$BB2&\",\"&BD5&\",,\",data[],7),0)","v":0},null,{"$f":"IF(\"CONV,\"&$BE2&\",\"&BF5&\",,\"=VLOOKUP(\"CONV,\"&$BE2&\",\"&BF5&\",,\",data[],1),VLOOKUP(\"CONV,\"&$BE2&\",\"&BF5&\",,\",data[],7),0)","v":0},{"$f":"IF(\"CONV,\"&$BE2&\",\"&BG5&\",,\"=VLOOKUP(\"CONV,\"&$BE2&\",\"&BG5&\",,\",data[],1),VLOOKUP(\"CONV,\"&$BE2&\",\"&BG5&\",,\",data[],7),0)","v":0},null,null,null,null,null,{"$f":"IF(VLOOKUP(selOutputUnit,tabOutputUnit[],2,FALSE),IF(\"CALOR,,\"&BM5&\",,\"=VLOOKUP(\"CALOR,,\"&BM5&\",,\",data[],1),VLOOKUP(\"CALOR,,\"&BM5&\",,\",data[],7),0),1)*1000","v":1000}]
[null,null,null,null,null,null,null,null,null,null,null,null,{"$f":"VLOOKUP(sel_secproc_water,tabSelWater[],2,FALSE)","v":"DESAL"},{"$f":"VLOOKUP(sel_secproc_co2,tabSelCo2[],2,FALSE)","v":"DAC"}]
["output",null,null,null,null,null,null,null,null,null,"Electricity generation",null,null,null,null,null,"Electrolysis","Water","Water","Heat","Water","Electrolysis",null,"Derivate production","Water","Water","Heat","Water","Carbon","Carbon","Heat","Carbon","Derivate production","Heat","Derivate production",null,"Transportation (Ship)","Transportation (Ship)","Transportation (Pipeline)","Transportation (Pipeline)",null,null,null,null,null,null,"Transportation (Ship)","Transportation (Ship)","Transportation (Pipeline)","Transportation (Pipeline)","Transportation (Pipeline)","Transportation (Pipeline)",null,"Transportation (Ship)","Heat","Transportation (Ship)","Transportation (Pipeline)","Heat","Transportation (Pipeline)"]
[]
[]
[null,"REGION ↓"]
[]
["dist/sel",null,null,null,null,null,null,null,null,null,null,null,null,null,"DST-S-C","EFF",null,null,null,null,null,null,null,null,null,null,null,null,null,null,null,null,null,null,null,null,null,null,null,null,null,"DST-S-D","DST-S-DP","SEASHARE","CAP-T",null,"DIST",null,null,null,null,null,"DIST_SUM",null,null,null,null,null,null,null,"storage_cost_factor"]
[null,"ARE",null,null,null,null,null,null,null,{"$f":"IF($B257=sel_region_code,MATCH(sel_res_gen,$E$2:$I$2,0),MATCH(\"RES-HYBR\",$E$2:$I$2,0))","v":3},{"$f":"IF(INDEX($E257:$I257,J14)>0,INDEX($E$2:$I$2,J14),\"\")","v":"RES-HYBR"},null,{"$f":"$M$7=$M$2","v":true},{"$f":"$N$7=$N$2","v":true},0,{"$f":"MAX(0,(1-$O14*O$4))","v":1},null,null,null,null,null,null,null,null,null,null,null,null,null,null,null,null,null,null,null,null,{"$f":"AND($AT14,AK$2<>\"\")","v":false},null,{"$f":"AND(NOT(AT14),AM$2<>\"\")","v":true},null,null,{"$f":"IF(\"DST-S-D,,,\"&$B14&\",\"&sel_country_code=VLOOKUP(\"DST-S-D,,,\"&$B14&\",\"&sel_country_code,data[],1),VLOOKUP(\"DST-S-D,,,\"&$B14&\",\"&sel_country_code,data[],7),0)","v":12441.9},{"$f":"IF(\"DST-S-DP,,,\"&$B14&\",\"&sel_country_code=VLOOKUP(\"DST-S-DP,,,\"&$B14&\",\"&sel_country_code,data[],1),VLOOKUP(\"DST-S-DP,,,\"&$B14&\",\"&sel_country_code,data[],7),0)","v":5500},{"$f":"IF(\"SEASHARE,,,\"&$B14&\",\"&sel_country_code=VLOOKUP(\"SEASHARE,,,\"&$B14&\",\"&sel_country_code,data[],1),VLOOKUP(\"SEASHARE,,,\"&$B14&\",\"&sel_country_code,data[],7),0)","v":0},{"$f":"IF(\"CAP-T,,,\"&$B14&\",\"&sel_country_code=VLOOKUP(\"CAP-T,,,\"&$B14&\",\"&sel_country_code,data[],1),VLOOKUP(\"CAP-T,,,\"&$B14&\",\"&sel_country_code,data[],7),0)","v":0},{"$f":"IF(can_use_pipeline=FALSE, TRUE,IF(LEFT($B14,3)=LEFT(sel_region_code,3),LEFT(sel_transport,4)=\"Ship\",$AQ14=0))","v":false},{"$f":"IF(NOT($AT14),0,$AP14)","v":0},null,{"$f":"IF($AT14,0,IF($AS14>0,0,$AQ14*$AR14))","v":0},{"$f":"IF($AT14,0,IF($AS14>0,0,$AQ14*(1-$AR14)))","v":5500},{"$f":"IF($AT14,0,IF($AS14=0,0,$AQ14*$AR14))","v":0},{"$f":"IF($AT14,0,IF($AS14=0,0,$AQ14*(1-$AR14)))","v":0},{"$f":"SUM(AU14:AZ14)","v":5500},{"$f":"AND($AT14,BB$2<>\"\")","v":false},null,null,{"$f":"AND(NOT($AT14),BE$2<>\"\")","v":false},null,null,null,{"$f":"IFERROR(VLOOKUP(K14&\",\"&sel_chain_ely_proc_code&\",\"&sel_chain_deriv_proc_code,data_storage[],4,FALSE),0)","v":3.8399999999999997E-2}]
[null,"ARG",null,null,null,null,null,null,null,{"$f":"IF($B258=sel_region_code,MATCH(sel_res_gen,$E$2:$I$2,0),MATCH(\"RES-HYBR\",$E$2:$I$2,0))","v":3},{"$f":"IF(INDEX($E258:$I258,J15)>0,INDEX($E$2:$I$2,J15),\"\")","v":"RES-HYBR"},null,{"$f":"$M$7=$M$2","v":true},{"$f":"$N$7=$N$2","v":true},0,{"$f":"MAX(0,(1-$O15*O$4))","v":1},null,null,null,null,null,null,null,null,null,null,null,null,null,null,null,null,null,null,null,null,true,null,{"$f":"AND(NOT(AT15),AM$2<>\"\")","v":false},null,null,{"$f":"IF(\"DST-S-D,,,\"&$B15&\",\"&sel_country_code=VLOOKUP(\"DST-S-D,,,\"&$B15&\",\"&sel_country_code,data[],1),VLOOKUP(\"DST-S-D,,,\"&$B15&\",\"&sel_country_code,data[],7),0)","v":12728.796},{"$f":"IF(\"DST-S-DP,,,\"&$B15&\",\"&sel_country_code=VLOOKUP(\"DST-S-DP,,,\"&$B15&\",\"&sel_country_code,data[],1),VLOOKUP(\"DST-S-DP,,,\"&$B15&\",\"&sel_country_code,data[],7),0)","v":0},{"$f":"IF(\"SEASHARE,,,\"&$B15&\",\"&sel_country_code=VLOOKUP(\"SEASHARE,,,\"&$B15&\",\"&sel_country_code,data[],1),VLOOKUP(\"SEASHARE,,,\"&$B15&\",\"&sel_country_code,data[],7),0)","v":0},{"$f":"IF(\"CAP-T,,,\"&$B15&\",\"&sel_country_code=VLOOKUP(\"CAP-T,,,\"&$B15&\",\"&sel_country_code,data[],1),VLOOKUP(\"CAP-T,,,\"&$B15&\",\"&sel_country_code,data[],7),0)","v":0},{"$f":"IF(can_use_pipeline=FALSE, TRUE,IF(LEFT($B15,3)=LEFT(sel_region_code,3),LEFT(sel_transport,4)=\"Ship\",$AQ15=0))","v":true},12728.796,null,0,0,0,0,{"$f":"SUM(AU15:AZ15)","v":12728.796},{"$f":"AND($AT15,BB$2<>\"\")","v":true},null,null,{"$f":"AND(NOT($AT15),BE$2<>\"\")","v":false},null,null,null,{"$f":"IFERROR(VLOOKUP(K15&\",\"&sel_chain_ely_proc_code&\",\"&sel_chain_deriv_proc_code,data_storage[],4,FALSE),0)","v":3.8399999999999997E-2}]
[null,"ARG-BA",null,null,null,null,null,null,null,{"$f":"IF($B259=sel_region_code,MATCH(sel_res_gen,$E$2:$I$2,0),MATCH(\"RES-HYBR\",$E$2:$I$2,0))","v":3},{"$f":"IF(INDEX($E259:$I259,J16)>0,INDEX($E$2:$I$2,J16),\"\")","v":"RES-HYBR"},null,true,true,0,{"$f":"MAX(0,(1-$O16*O$4))","v":1},null,null,null,null,null,null,null,null,null,null,null,null,null,null,null,null,null,null,null,null,true,null,false,null,null,{"$f":"IF(\"DST-S-D,,,\"&$B16&\",\"&sel_country_code=VLOOKUP(\"DST-S-D,,,\"&$B16&\",\"&sel_country_code,data[],1),VLOOKUP(\"DST-S-D,,,\"&$B16&\",\"&sel_country_code,data[],7),0)","v":12728.796},{"$f":"IF(\"DST-S-DP,,,\"&$B16&\",\"&sel_country_code=VLOOKUP(\"DST-S-DP,,,\"&$B16&\",\"&sel_country_code,data[],1),VLOOKUP(\"DST-S-DP,,,\"&$B16&\",\"&sel_country_code,data[],7),0)","v":0},{"$f":"IF(\"SEASHARE,,,\"&$B16&\",\"&sel_country_code=VLOOKUP(\"SEASHARE,,,\"&$B16&\",\"&sel_country_code,data[],1),VLOOKUP(\"SEASHARE,,,\"&$B16&\",\"&sel_country_code,data[],7),0)","v":0},{"$f":"IF(\"CAP-T,,,\"&$B16&\",\"&sel_country_code=VLOOKUP(\"CAP-T,,,\"&$B16&\",\"&sel_country_code,data[],1),VLOOKUP(\"CAP-T,,,\"&$B16&\",\"&sel_country_code,data[],7),0)","v":0},{"$f":"IF(can_use_pipeline=FALSE, TRUE,IF(LEFT($B16,3)=LEFT(sel_region_code,3),LEFT(sel_transport,4)=\"Ship\",$AQ16=0))","v":true},12728.796,null,0,0,0,0,12728.796,true,null,null,false,null,null,null,{"$f":"IFERROR(VLOOKUP(K16&\",\"&sel_chain_ely_proc_code&\",\"&sel_chain_deriv_proc_code,data_storage[],4,FALSE),0)","v":3.8399999999999997E-2}]
[null,"ARG-CAT",null,null,null,null,null,null,null,{"$f":"IF($B260=sel_region_code,MATCH(sel_res_gen,$E$2:$I$2,0),MATCH(\"RES-HYBR\",$E$2:$I$2,0))","v":3},{"$f":"IF(INDEX($E260:$I260,J17)>0,INDEX($E$2:$I$2,J17),\"\")","v":"RES-HYBR"},null,true,true,0,1,null,null,null,null,null,null,null,null,null,null,null,null,null,null,null,null,null,null,null,null,true,null,false,null,null,{"$f":"IF(\"DST-S-D,,,\"&$B17&\",\"&sel_country_code=VLOOKUP(\"DST-S-D,,,\"&$B17&\",\"&sel_country_code,data[],1),VLOOKUP(\"DST-S-D,,,\"&$B17&\",\"&sel_country_code,data[],7),0)","v":12728.796},{"$f":"IF(\"DST-S-DP,,,\"&$B17&\",\"&sel_country_code=VLOOKUP(\"DST-S-DP,,,\"&$B17&\",\"&sel_country_code,data[],1),VLOOKUP(\"DST-S-DP,,,\"&$B17&\",\"&sel_country_code,data[],7),0)","v":0},{"$f":"IF(\"SEASHARE,,,\"&$B17&\",\"&sel_country_code=VLOOKUP(\"SEASHARE,,,\"&$B17&\",\"&sel_country_code,data[],1),VLOOKUP(\"SEASHARE,,,\"&$B17&\",\"&sel_country_code,data[],7),0)","v":0},{"$f":"IF(\"CAP-T,,,\"&$B17&\",\"&sel_country_code=VLOOKUP(\"CAP-T,,,\"&$B17&\",\"&sel_country_code,data[],1),VLOOKUP(\"CAP-T,,,\"&$B17&\",\"&sel_country_code,data[],7),0)","v":0},{"$f":"IF(can_use_pipeline=FALSE, TRUE,IF(LEFT($B17,3)=LEFT(sel_region_code,3),LEFT(sel_transport,4)=\"Ship\",$AQ17=0))","v":true},12728.796,null,0,0,0,0,12728.796,true,null,null,false,null,null,null,{"$f":"IFERROR(VLOOKUP(K17&\",\"&sel_chain_ely_proc_code&\",\"&sel_chain_deriv_proc_code,data_storage[],4,FALSE),0)","v":3.8399999999999997E-2}]
[null,"ARG-CBA",null,null,null,null,null,null,null,{"$f":"IF($B261=sel_region_code,MATCH(sel_res_gen,$E$2:$I$2,0),MATCH(\"RES-HYBR\",$E$2:$I$2,0))","v":3},{"$f":"IF(INDEX($E261:$I261,J18)>0,INDEX($E$2:$I$2,J18),\"\")","v":"RES-HYBR"},null,true,true,0,1,null,null,null,null,null,null,null,null,null,null,null,null,null,null,null,null,null,null,null,null,true,null,false,null,null,{"$f":"IF(\"DST-S-D,,,\"&$B18&\",\"&sel_country_code=VLOOKUP(\"DST-S-D,,,\"&$B18&\",\"&sel_country_code,data[],1),VLOOKUP(\"DST-S-D,,,\"&$B18&\",\"&sel_country_code,data[],7),0)","v":12728.796},{"$f":"IF(\"DST-S-DP,,,\"&$B18&\",\"&sel_country_code=VLOOKUP(\"DST-S-DP,,,\"&$B18&\",\"&sel_country_code,data[],1),VLOOKUP(\"DST-S-DP,,,\"&$B18&\",\"&sel_country_code,data[],7),0)","v":0},{"$f":"IF(\"SEASHARE,,,\"&$B18&\",\"&sel_country_code=VLOOKUP(\"SEASHARE,,,\"&$B18&\",\"&sel_country_code,data[],1),VLOOKUP(\"SEASHARE,,,\"&$B18&\",\"&sel_country_code,data[],7),0)","v":0},{"$f":"IF(\"CAP-T,,,\"&$B18&\",\"&sel_country_code=VLOOKUP(\"CAP-T,,,\"&$B18&\",\"&sel_country_code,data[],1),VLOOKUP(\"CAP-T,,,\"&$B18&\",\"&sel_country_code,data[],7),0)","v":0},{"$f":"IF(can_use_pipeline=FALSE, TRUE,IF(LEFT($B18,3)=LEFT(sel_region_code,3),LEFT(sel_transport,4)=\"Ship\",$AQ18=0))","v":true},12728.796,null,0,0,0,0,12728.796,true,null,null,false,null,null,null,{"$f":"IFERROR(VLOOKUP(K18&\",\"&sel_chain_ely_proc_code&\",\"&sel_chain_deriv_proc_code,data_storage[],4,FALSE),0)","v":3.8399999999999997E-2}]
[null,"ARG-CHA",null,null,null,null,null,null,null,{"$f":"IF($B262=sel_region_code,MATCH(sel_res_gen,$E$2:$I$2,0),MATCH(\"RES-HYBR\",$E$2:$I$2,0))","v":3},{"$f":"IF(INDEX($E262:$I262,J19)>0,INDEX($E$2:$I$2,J19),\"\")","v":"RES-HYBR"},null,true,true,0,1,null,null,null,null,null,null,null,null,null,null,null,null,null,null,null,null,null,null,null,null,true,null,false,null,null,{"$f":"IF(\"DST-S-D,,,\"&$B19&\",\"&sel_country_code=VLOOKUP(\"DST-S-D,,,\"&$B19&\",\"&sel_country_code,data[],1),VLOOKUP(\"DST-S-D,,,\"&$B19&\",\"&sel_country_code,data[],7),0)","v":12728.796},{"$f":"IF(\"DST-S-DP,,,\"&$B19&\",\"&sel_country_code=VLOOKUP(\"DST-S-DP,,,\"&$B19&\",\"&sel_country_code,data[],1),VLOOKUP(\"DST-S-DP,,,\"&$B19&\",\"&sel_country_code,data[],7),0)","v":0},{"$f":"IF(\"SEASHARE,,,\"&$B19&\",\"&sel_country_code=VLOOKUP(\"SEASHARE,,,\"&$B19&\",\"&sel_country_code,data[],1),VLOOKUP(\"SEASHARE,,,\"&$B19&\",\"&sel_country_code,data[],7),0)","v":0},{"$f":"IF(\"CAP-T,,,\"&$B19&\",\"&sel_country_code=VLOOKUP(\"CAP-T,,,\"&$B19&\",\"&sel_country_code,data[],1),VLOOKUP(\"CAP-T,,,\"&$B19&\",\"&sel_country_code,data[],7),0)","v":0},{"$f":"IF(can_use_pipeline=FALSE, TRUE,IF(LEFT($B19,3)=LEFT(sel_region_code,3),LEFT(sel_transport,4)=\"Ship\",$AQ19=0))","v":true},12728.796,null,0,0,0,0,12728.796,true,null,null,false,null,null,null,{"$f":"IFERROR(VLOOKUP(K19&\",\"&sel_chain_ely_proc_code&\",\"&sel_chain_deriv_proc_code,data_storage[],4,FALSE),0)","v":3.8399999999999997E-2}]
[null,"ARG-CHU",null,null,null,null,null,null,null,{"$f":"IF($B263=sel_region_code,MATCH(sel_res_gen,$E$2:$I$2,0),MATCH(\"RES-HYBR\",$E$2:$I$2,0))","v":3},{"$f":"IF(INDEX($E263:$I263,J20)>0,INDEX($E$2:$I$2,J20),\"\")","v":"RES-HYBR"},null,true,true,0,1,null,null,null,null,null,null,null,null,null,null,null,null,null,null,null,null,null,null,null,null,true,null,false,null,null,{"$f":"IF(\"DST-S-D,,,\"&$B20&\",\"&sel_country_code=VLOOKUP(\"DST-S-D,,,\"&$B20&\",\"&sel_country_code,data[],1),VLOOKUP(\"DST-S-D,,,\"&$B20&\",\"&sel_country_code,data[],7),0)","v":12728.796},{"$f":"IF(\"DST-S-DP,,,\"&$B20&\",\"&sel_country_code=VLOOKUP(\"DST-S-DP,,,\"&$B20&\",\"&sel_country_code,data[],1),VLOOKUP(\"DST-S-DP,,,\"&$B20&\",\"&sel_country_code,data[],7),0)","v":0},{"$f":"IF(\"SEASHARE,,,\"&$B20&\",\"&sel_country_code=VLOOKUP(\"SEASHARE,,,\"&$B20&\",\"&sel_country_code,data[],1),VLOOKUP(\"SEASHARE,,,\"&$B20&\",\"&sel_country_code,data[],7),0)","v":0},{"$f":"IF(\"CAP-T,,,\"&$B20&\",\"&sel_country_code=VLOOKUP(\"CAP-T,,,\"&$B20&\",\"&sel_country_code,data[],1),VLOOKUP(\"CAP-T,,,\"&$B20&\",\"&sel_country_code,data[],7),0)","v":0},{"$f":"IF(can_use_pipeline=FALSE, TRUE,IF(LEFT($B20,3)=LEFT(sel_region_code,3),LEFT(sel_transport,4)=\"Ship\",$AQ20=0))","v":true},12728.796,null,0,0,0,0,12728.796,true,null,null,false,null,null,null,{"$f":"IFERROR(VLOOKUP(K20&\",\"&sel_chain_ely_proc_code&\",\"&sel_chain_deriv_proc_code,data_storage[],4,FALSE),0)","v":3.8399999999999997E-2}]
[null,"ARG-COR",null,null,null,null,null,null,null,{"$f":"IF($B264=sel_region_code,MATCH(sel_res_gen,$E$2:$I$2,0),MATCH(\"RES-HYBR\",$E$2:$I$2,0))","v":3},{"$f":"IF(INDEX($E264:$I264,J21)>0,INDEX($E$2:$I$2,J21),\"\")","v":"RES-HYBR"},null,true,true,0,1,null,null,null,null,null,null,null,null,null,null,null,null,null,null,null,null,null,null,null,null,true,null,false,null,null,{"$f":"IF(\"DST-S-D,,,\"&$B21&\",\"&sel_country_code=VLOOKUP(\"DST-S-D,,,\"&$B21&\",\"&sel_country_code,data[],1),VLOOKUP(\"DST-S-D,,,\"&$B21&\",\"&sel_country_code,data[],7),0)","v":12728.796},{"$f":"IF(\"DST-S-DP,,,\"&$B21&\",\"&sel_country_code=VLOOKUP(\"DST-S-DP,,,\"&$B21&\",\"&sel_country_code,data[],1),VLOOKUP(\"DST-S-DP,,,\"&$B21&\",\"&sel_country_code,data[],7),0)","v":0},{"$f":"IF(\"SEASHARE,,,\"&$B21&\",\"&sel_country_code=VLOOKUP(\"SEASHARE,,,\"&$B21&\",\"&sel_country_code,data[],1),VLOOKUP(\"SEASHARE,,,\"&$B21&\",\"&sel_country_code,data[],7),0)","v":0},{"$f":"IF(\"CAP-T,,,\"&$B21&\",\"&sel_country_code=VLOOKUP(\"CAP-T,,,\"&$B21&\",\"&sel_country_code,data[],1),VLOOKUP(\"CAP-T,,,\"&$B21&\",\"&sel_country_code,data[],7),0)","v":0},{"$f":"IF(can_use_pipeline=FALSE, TRUE,IF(LEFT($B21,3)=LEFT(sel_region_code,3),LEFT(sel_transport,4)=\"Ship\",$AQ21=0))","v":true},12728.796,null,0,0,0,0,12728.796,true,null,null,false,null,null,null,{"$f":"IFERROR(VLOOKUP(K21&\",\"&sel_chain_ely_proc_code&\",\"&sel_chain_deriv_proc_code,data_storage[],4,FALSE),0)","v":3.8399999999999997E-2}]
[null,"ARG-CRB",null,null,null,null,null,null,null,{"$f":"IF($B265=sel_region_code,MATCH(sel_res_gen,$E$2:$I$2,0),MATCH(\"RES-HYBR\",$E$2:$I$2,0))","v":3},{"$f":"IF(INDEX($E265:$I265,J22)>0,INDEX($E$2:$I$2,J22),\"\")","v":"RES-HYBR"},null,true,true,0,1,null,null,null,null,null,null,null,null,null,null,null,null,null,null,null,null,null,null,null,null,true,null,false,null,null,{"$f":"IF(\"DST-S-D,,,\"&$B22&\",\"&sel_country_code=VLOOKUP(\"DST-S-D,,,\"&$B22&\",\"&sel_country_code,data[],1),VLOOKUP(\"DST-S-D,,,\"&$B22&\",\"&sel_country_code,data[],7),0)","v":12728.796},{"$f":"IF(\"DST-S-DP,,,\"&$B22&\",\"&sel_country_code=VLOOKUP(\"DST-S-DP,,,\"&$B22&\",\"&sel_country_code,data[],1),VLOOKUP(\"DST-S-DP,,,\"&$B22&\",\"&sel_country_code,data[],7),0)","v":0},{"$f":"IF(\"SEASHARE,,,\"&$B22&\",\"&sel_country_code=VLOOKUP(\"SEASHARE,,,\"&$B22&\",\"&sel_country_code,data[],1),VLOOKUP(\"SEASHARE,,,\"&$B22&\",\"&sel_country_code,data[],7),0)","v":0},{"$f":"IF(\"CAP-T,,,\"&$B22&\",\"&sel_country_code=VLOOKUP(\"CAP-T,,,\"&$B22&\",\"&sel_country_code,data[],1),VLOOKUP(\"CAP-T,,,\"&$B22&\",\"&sel_country_code,data[],7),0)","v":0},{"$f":"IF(can_use_pipeline=FALSE, TRUE,IF(LEFT($B22,3)=LEFT(sel_region_code,3),LEFT(sel_transport,4)=\"Ship\",$AQ22=0))","v":true},12728.796,null,0,0,0,0,12728.796,true,null,null,false,null,null,null,{"$f":"IFERROR(VLOOKUP(K22&\",\"&sel_chain_ely_proc_code&\",\"&sel_chain_deriv_proc_code,data_storage[],4,FALSE),0)","v":3.8399999999999997E-2}]
[null,"ARG-CRU",null,null,null,null,null,null,null,{"$f":"IF($B266=sel_region_code,MATCH(sel_res_gen,$E$2:$I$2,0),MATCH(\"RES-HYBR\",$E$2:$I$2,0))","v":3},{"$f":"IF(INDEX($E266:$I266,J23)>0,INDEX($E$2:$I$2,J23),\"\")","v":"RES-HYBR"},null,true,true,0,1,null,null,null,null,null,null,null,null,null,null,null,null,null,null,null,null,null,null,null,null,true,null,false,null,null,{"$f":"IF(\"DST-S-D,,,\"&$B23&\",\"&sel_country_code=VLOOKUP(\"DST-S-D,,,\"&$B23&\",\"&sel_country_code,data[],1),VLOOKUP(\"DST-S-D,,,\"&$B23&\",\"&sel_country_code,data[],7),0)","v":12728.796},{"$f":"IF(\"DST-S-DP,,,\"&$B23&\",\"&sel_country_code=VLOOKUP(\"DST-S-DP,,,\"&$B23&\",\"&sel_country_code,data[],1),VLOOKUP(\"DST-S-DP,,,\"&$B23&\",\"&sel_country_code,data[],7),0)","v":0},{"$f":"IF(\"SEASHARE,,,\"&$B23&\",\"&sel_country_code=VLOOKUP(\"SEASHARE,,,\"&$B23&\",\"&sel_country_code,data[],1),VLOOKUP(\"SEASHARE,,,\"&$B23&\",\"&sel_country_code,data[],7),0)","v":0},{"$f":"IF(\"CAP-T,,,\"&$B23&\",\"&sel_country_code=VLOOKUP(\"CAP-T,,,\"&$B23&\",\"&sel_country_code,data[],1),VLOOKUP(\"CAP-T,,,\"&$B23&\",\"&sel_country_code,data[],7),0)","v":0},{"$f":"IF(can_use_pipeline=FALSE, TRUE,IF(LEFT($B23,3)=LEFT(sel_region_code,3),LEFT(sel_transport,4)=\"Ship\",$AQ23=0))","v":true},12728.796,null,0,0,0,0,12728.796,true,null,null,false,null,null,null,{"$f":"IFERROR(VLOOKUP(K23&\",\"&sel_chain_ely_proc_code&\",\"&sel_chain_deriv_proc_code,data_storage[],4,FALSE),0)","v":3.8399999999999997E-2}]
[null,"ARG-EST",null,null,null,null,null,null,null,{"$f":"IF($B267=sel_region_code,MATCH(sel_res_gen,$E$2:$I$2,0),MATCH(\"RES-HYBR\",$E$2:$I$2,0))","v":3},{"$f":"IF(INDEX($E267:$I267,J24)>0,INDEX($E$2:$I$2,J24),\"\")","v":"RES-HYBR"},null,true,true,0,1,null,null,null,null,null,null,null,null,null,null,null,null,null,null,null,null,null,null,null,null,true,null,false,null,null,{"$f":"IF(\"DST-S-D,,,\"&$B24&\",\"&sel_country_code=VLOOKUP(\"DST-S-D,,,\"&$B24&\",\"&sel_country_code,data[],1),VLOOKUP(\"DST-S-D,,,\"&$B24&\",\"&sel_country_code,data[],7),0)","v":12728.796},{"$f":"IF(\"DST-S-DP,,,\"&$B24&\",\"&sel_country_code=VLOOKUP(\"DST-S-DP,,,\"&$B24&\",\"&sel_country_code,data[],1),VLOOKUP(\"DST-S-DP,,,\"&$B24&\",\"&sel_country_code,data[],7),0)","v":0},{"$f":"IF(\"SEASHARE,,,\"&$B24&\",\"&sel_country_code=VLOOKUP(\"SEASHARE,,,\"&$B24&\",\"&sel_country_code,data[],1),VLOOKUP(\"SEASHARE,,,\"&$B24&\",\"&sel_country_code,data[],7),0)","v":0},{"$f":"IF(\"CAP-T,,,\"&$B24&\",\"&sel_country_code=VLOOKUP(\"CAP-T,,,\"&$B24&\",\"&sel_country_code,data[],1),VLOOKUP(\"CAP-T,,,\"&$B24&\",\"&sel_country_code,data[],7),0)","v":0},{"$f":"IF(can_use_pipeline=FALSE, TRUE,IF(LEFT($B24,3)=LEFT(sel_region_code,3),LEFT(sel_transport,4)=\"Ship\",$AQ24=0))","v":true},12728.796,null,0,0,0,0,12728.796,true,null,null,false,null,null,null,{"$f":"IFERROR(VLOOKUP(K24&\",\"&sel_chain_ely_proc_code&\",\"&sel_chain_deriv_proc_code,data_storage[],4,FALSE),0)","v":3.8399999999999997E-2}]
[null,"ARG-FOR",null,null,null,null,null,null,null,{"$f":"IF($B268=sel_region_code,MATCH(sel_res_gen,$E$2:$I$2,0),MATCH(\"RES-HYBR\",$E$2:$I$2,0))","v":3},{"$f":"IF(INDEX($E268:$I268,J25)>0,INDEX($E$2:$I$2,J25),\"\")","v":"RES-HYBR"},null,true,true,0,1,null,null,null,null,null,null,null,null,null,null,null,null,null,null,null,null,null,null,null,null,true,null,false,null,null,{"$f":"IF(\"DST-S-D,,,\"&$B25&\",\"&sel_country_code=VLOOKUP(\"DST-S-D,,,\"&$B25&\",\"&sel_country_code,data[],1),VLOOKUP(\"DST-S-D,,,\"&$B25&\",\"&sel_country_code,data[],7),0)","v":12728.796},{"$f":"IF(\"DST-S-DP,,,\"&$B25&\",\"&sel_country_code=VLOOKUP(\"DST-S-DP,,,\"&$B25&\",\"&sel_country_code,data[],1),VLOOKUP(\"DST-S-DP,,,\"&$B25&\",\"&sel_country_code,data[],7),0)","v":0},{"$f":"IF(\"SEASHARE,,,\"&$B25&\",\"&sel_country_code=VLOOKUP(\"SEASHARE,,,\"&$B25&\",\"&sel_country_code,data[],1),VLOOKUP(\"SEASHARE,,,\"&$B25&\",\"&sel_country_code,data[],7),0)","v":0},{"$f":"IF(\"CAP-T,,,\"&$B25&\",\"&sel_country_code=VLOOKUP(\"CAP-T,,,\"&$B25&\",\"&sel_country_code,data[],1),VLOOKUP(\"CAP-T,,,\"&$B25&\",\"&sel_country_code,data[],7),0)","v":0},{"$f":"IF(can_use_pipeline=FALSE, TRUE,IF(LEFT($B25,3)=LEFT(sel_region_code,3),LEFT(sel_transport,4)=\"Ship\",$AQ25=0))","v":true},12728.796,null,0,0,0,0,12728.796,true,null,null,false,null,null,null,{"$f":"IFERROR(VLOOKUP(K25&\",\"&sel_chain_ely_proc_code&\",\"&sel_chain_deriv_proc_code,data_storage[],4,FALSE),0)","v":3.8399999999999997E-2}]
[null,"ARG-FUE",null,null,null,null,null,null,null,{"$f":"IF($B269=sel_region_code,MATCH(sel_res_gen,$E$2:$I$2,0),MATCH(\"RES-HYBR\",$E$2:$I$2,0))","v":3},{"$f":"IF(INDEX($E269:$I269,J26)>0,INDEX($E$2:$I$2,J26),\"\")","v":"RES-HYBR"},null,true,true,0,1,null,null,null,null,null,null,null,null,null,null,null,null,null,null,null,null,null,null,null,null,true,null,false,null,null,{"$f":"IF(\"DST-S-D,,,\"&$B26&\",\"&sel_country_code=VLOOKUP(\"DST-S-D,,,\"&$B26&\",\"&sel_country_code,data[],1),VLOOKUP(\"DST-S-D,,,\"&$B26&\",\"&sel_country_code,data[],7),0)","v":12728.796},{"$f":"IF(\"DST-S-DP,,,\"&$B26&\",\"&sel_country_code=VLOOKUP(\"DST-S-DP,,,\"&$B26&\",\"&sel_country_code,data[],1),VLOOKUP(\"DST-S-DP,,,\"&$B26&\",\"&sel_country_code,data[],7),0)","v":0},{"$f":"IF(\"SEASHARE,,,\"&$B26&\",\"&sel_country_code=VLOOKUP(\"SEASHARE,,,\"&$B26&\",\"&sel_country_code,data[],1),VLOOKUP(\"SEASHARE,,,\"&$B26&\",\"&sel_country_code,data[],7),0)","v":0},{"$f":"IF(\"CAP-T,,,\"&$B26&\",\"&sel_country_code=VLOOKUP(\"CAP-T,,,\"&$B26&\",\"&sel_country_code,data[],1),VLOOKUP(\"CAP-T,,,\"&$B26&\",\"&sel_country_code,data[],7),0)","v":0},{"$f":"IF(can_use_pipeline=FALSE, TRUE,IF(LEFT($B26,3)=LEFT(sel_region_code,3),LEFT(sel_transport,4)=\"Ship\",$AQ26=0))","v":true},12728.796,null,0,0,0,0,12728.796,true,null,null,false,null,null,null,{"$f":"IFERROR(VLOOKUP(K26&\",\"&sel_chain_ely_proc_code&\",\"&sel_chain_deriv_proc_code,data_storage[],4,FALSE),0)","v":3.8399999999999997E-2}]
[null,"ARG-JUJ",null,null,null,null,null,null,null,{"$f":"IF($B270=sel_region_code,MATCH(sel_res_gen,$E$2:$I$2,0),MATCH(\"RES-HYBR\",$E$2:$I$2,0))","v":3},{"$f":"IF(INDEX($E270:$I270,J27)>0,INDEX($E$2:$I$2,J27),\"\")","v":"RES-HYBR"},null,true,true,0,1,null,null,null,null,null,null,null,null,null,null,null,null,null,null,null,null,null,null,null,null,true,null,false,null,null,{"$f":"IF(\"DST-S-D,,,\"&$B27&\",\"&sel_country_code=VLOOKUP(\"DST-S-D,,,\"&$B27&\",\"&sel_country_code,data[],1),VLOOKUP(\"DST-S-D,,,\"&$B27&\",\"&sel_country_code,data[],7),0)","v":12728.796},{"$f":"IF(\"DST-S-DP,,,\"&$B27&\",\"&sel_country_code=VLOOKUP(\"DST-S-DP,,,\"&$B27&\",\"&sel_country_code,data[],1),VLOOKUP(\"DST-S-DP,,,\"&$B27&\",\"&sel_country_code,data[],7),0)","v":0},{"$f":"IF(\"SEASHARE,,,\"&$B27&\",\"&sel_country_code=VLOOKUP(\"SEASHARE,,,\"&$B27&\",\"&sel_country_code,data[],1),VLOOKUP(\"SEASHARE,,,\"&$B27&\",\"&sel_country_code,data[],7),0)","v":0},{"$f":"IF(\"CAP-T,,,\"&$B27&\",\"&sel_country_code=VLOOKUP(\"CAP-T,,,\"&$B27&\",\"&sel_country_code,data[],1),VLOOKUP(\"CAP-T,,,\"&$B27&\",\"&sel_country_code,data[],7),0)","v":0},{"$f":"IF(can_use_pipeline=FALSE, TRUE,IF(LEFT($B27,3)=LEFT(sel_region_code,3),LEFT(sel_transport,4)=\"Ship\",$AQ27=0))","v":true},12728.796,null,0,0,0,0,12728.796,true,null,null,false,null,null,null,{"$f":"IFERROR(VLOOKUP(K27&\",\"&sel_chain_ely_proc_code&\",\"&sel_chain_deriv_proc_code,data_storage[],4,FALSE),0)","v":3.8399999999999997E-2}]
[null,"ARG-LAR",null,null,null,null,null,null,null,{"$f":"IF($B271=sel_region_code,MATCH(sel_res_gen,$E$2:$I$2,0),MATCH(\"RES-HYBR\",$E$2:$I$2,0))","v":3},{"$f":"IF(INDEX($E271:$I271,J28)>0,INDEX($E$2:$I$2,J28),\"\")","v":"RES-HYBR"},null,true,true,0,1,null,null,null,null,null,null,null,null,null,null,null,null,null,null,null,null,null,null,null,null,true,null,false,null,null,{"$f":"IF(\"DST-S-D,,,\"&$B28&\",\"&sel_country_code=VLOOKUP(\"DST-S-D,,,\"&$B28&\",\"&sel_country_code,data[],1),VLOOKUP(\"DST-S-D,,,\"&$B28&\",\"&sel_country_code,data[],7),0)","v":12728.796},{"$f":"IF(\"DST-S-DP,,,\"&$B28&\",\"&sel_country_code=VLOOKUP(\"DST-S-DP,,,\"&$B28&\",\"&sel_country_code,data[],1),VLOOKUP(\"DST-S-DP,,,\"&$B28&\",\"&sel_country_code,data[],7),0)","v":0},{"$f":"IF(\"SEASHARE,,,\"&$B28&\",\"&sel_country_code=VLOOKUP(\"SEASHARE,,,\"&$B28&\",\"&sel_country_code,data[],1),VLOOKUP(\"SEASHARE,,,\"&$B28&\",\"&sel_country_code,data[],7),0)","v":0},{"$f":"IF(\"CAP-T,,,\"&$B28&\",\"&sel_country_code=VLOOKUP(\"CAP-T,,,\"&$B28&\",\"&sel_country_code,data[],1),VLOOKUP(\"CAP-T,,,\"&$B28&\",\"&sel_country_code,data[],7),0)","v":0},{"$f":"IF(can_use_pipeline=FALSE, TRUE,IF(LEFT($B28,3)=LEFT(sel_region_code,3),LEFT(sel_transport,4)=\"Ship\",$AQ28=0))","v":true},12728.796,null,0,0,0,0,12728.796,true,null,null,false,null,null,null,{"$f":"IFERROR(VLOOKUP(K28&\",\"&sel_chain_ely_proc_code&\",\"&sel_chain_deriv_proc_code,data_storage[],4,FALSE),0)","v":3.8399999999999997E-2}]
[null,"ARG-MEN",null,null,null,null,null,null,null,{"$f":"IF($B272=sel_region_code,MATCH(sel_res_gen,$E$2:$I$2,0),MATCH(\"RES-HYBR\",$E$2:$I$2,0))","v":3},{"$f":"IF(INDEX($E272:$I272,J29)>0,INDEX($E$2:$I$2,J29),\"\")","v":"RES-HYBR"},null,true,true,0,1,null,null,null,null,null,null,null,null,null,null,null,null,null,null,null,null,null,null,null,null,true,null,false,null,null,{"$f":"IF(\"DST-S-D,,,\"&$B29&\",\"&sel_country_code=VLOOKUP(\"DST-S-D,,,\"&$B29&\",\"&sel_country_code,data[],1),VLOOKUP(\"DST-S-D,,,\"&$B29&\",\"&sel_country_code,data[],7),0)","v":12728.796},{"$f":"IF(\"DST-S-DP,,,\"&$B29&\",\"&sel_country_code=VLOOKUP(\"DST-S-DP,,,\"&$B29&\",\"&sel_country_code,data[],1),VLOOKUP(\"DST-S-DP,,,\"&$B29&\",\"&sel_country_code,data[],7),0)","v":0},{"$f":"IF(\"SEASHARE,,,\"&$B29&\",\"&sel_country_code=VLOOKUP(\"SEASHARE,,,\"&$B29&\",\"&sel_country_code,data[],1),VLOOKUP(\"SEASHARE,,,\"&$B29&\",\"&sel_country_code,data[],7),0)","v":0},{"$f":"IF(\"CAP-T,,,\"&$B29&\",\"&sel_country_code=VLOOKUP(\"CAP-T,,,\"&$B29&\",\"&sel_country_code,data[],1),VLOOKUP(\"CAP-T,,,\"&$B29&\",\"&sel_country_code,data[],7),0)","v":0},{"$f":"IF(can_use_pipeline=FALSE, TRUE,IF(LEFT($B29,3)=LEFT(sel_region_code,3),LEFT(sel_transport,4)=\"Ship\",$AQ29=0))","v":true},12728.796,null,0,0,0,0,12728.796,true,null,null,false,null,null,null,{"$f":"IFERROR(VLOOKUP(K29&\",\"&sel_chain_ely_proc_code&\",\"&sel_chain_deriv_proc_code,data_storage[],4,FALSE),0)","v":3.8399999999999997E-2}]
[null,"ARG-MIS",null,null,null,null,null,null,null,{"$f":"IF($B273=sel_region_code,MATCH(sel_res_gen,$E$2:$I$2,0),MATCH(\"RES-HYBR\",$E$2:$I$2,0))","v":3},{"$f":"IF(INDEX($E273:$I273,J30)>0,INDEX($E$2:$I$2,J30),\"\")","v":"RES-HYBR"},null,true,true,0,1,null,null,null,null,null,null,null,null,null,null,null,null,null,null,null,null,null,null,null,null,true,null,false,null,null,{"$f":"IF(\"DST-S-D,,,\"&$B30&\",\"&sel_country_code=VLOOKUP(\"DST-S-D,,,\"&$B30&\",\"&sel_country_code,data[],1),VLOOKUP(\"DST-S-D,,,\"&$B30&\",\"&sel_country_code,data[],7),0)","v":12728.796},{"$f":"IF(\"DST-S-DP,,,\"&$B30&\",\"&sel_country_code=VLOOKUP(\"DST-S-DP,,,\"&$B30&\",\"&sel_country_code,data[],1),VLOOKUP(\"DST-S-DP,,,\"&$B30&\",\"&sel_country_code,data[],7),0)","v":0},{"$f":"IF(\"SEASHARE,,,\"&$B30&\",\"&sel_country_code=VLOOKUP(\"SEASHARE,,,\"&$B30&\",\"&sel_country_code,data[],1),VLOOKUP(\"SEASHARE,,,\"&$B30&\",\"&sel_country_code,data[],7),0)","v":0},{"$f":"IF(\"CAP-T,,,\"&$B30&\",\"&sel_country_code=VLOOKUP(\"CAP-T,,,\"&$B30&\",\"&sel_country_code,data[],1),VLOOKUP(\"CAP-T,,,\"&$B30&\",\"&sel_country_code,data[],7),0)","v":0},{"$f":"IF(can_use_pipeline=FALSE, TRUE,IF(LEFT($B30,3)=LEFT(sel_region_code,3),LEFT(sel_transport,4)=\"Ship\",$AQ30=0))","v":true},12728.796,null,0,0,0,0,12728.796,true,null,null,false,null,null,null,{"$f":"IFERROR(VLOOKUP(K30&\",\"&sel_chain_ely_proc_code&\",\"&sel_chain_deriv_proc_code,data_storage[],4,FALSE),0)","v":3.8399999999999997E-2}]
[null,"ARG-NEG",null,null,null,null,null,null,null,{"$f":"IF($B274=sel_region_code,MATCH(sel_res_gen,$E$2:$I$2,0),MATCH(\"RES-HYBR\",$E$2:$I$2,0))","v":3},{"$f":"IF(INDEX($E274:$I274,J31)>0,INDEX($E$2:$I$2,J31),\"\")","v":"RES-HYBR"},null,true,true,0,1,null,null,null,null,null,null,null,null,null,null,null,null,null,null,null,null,null,null,null,null,true,null,false,null,null,{"$f":"IF(\"DST-S-D,,,\"&$B31&\",\"&sel_country_code=VLOOKUP(\"DST-S-D,,,\"&$B31&\",\"&sel_country_code,data[],1),VLOOKUP(\"DST-S-D,,,\"&$B31&\",\"&sel_country_code,data[],7),0)","v":12728.796},{"$f":"IF(\"DST-S-DP,,,\"&$B31&\",\"&sel_country_code=VLOOKUP(\"DST-S-DP,,,\"&$B31&\",\"&sel_country_code,data[],1),VLOOKUP(\"DST-S-DP,,,\"&$B31&\",\"&sel_country_code,data[],7),0)","v":0},{"$f":"IF(\"SEASHARE,,,\"&$B31&\",\"&sel_country_code=VLOOKUP(\"SEASHARE,,,\"&$B31&\",\"&sel_country_code,data[],1),VLOOKUP(\"SEASHARE,,,\"&$B31&\",\"&sel_country_code,data[],7),0)","v":0},{"$f":"IF(\"CAP-T,,,\"&$B31&\",\"&sel_country_code=VLOOKUP(\"CAP-T,,,\"&$B31&\",\"&sel_country_code,data[],1),VLOOKUP(\"CAP-T,,,\"&$B31&\",\"&sel_country_code,data[],7),0)","v":0},{"$f":"IF(can_use_pipeline=FALSE, TRUE,IF(LEFT($B31,3)=LEFT(sel_region_code,3),LEFT(sel_transport,4)=\"Ship\",$AQ31=0))","v":true},12728.796,null,0,0,0,0,12728.796,true,null,null,false,null,null,null,{"$f":"IFERROR(VLOOKUP(K31&\",\"&sel_chain_ely_proc_code&\",\"&sel_chain_deriv_proc_code,data_storage[],4,FALSE),0)","v":3.8399999999999997E-2}]
[null,"ARG-NEU",null,null,null,null,null,null,null,{"$f":"IF($B275=sel_region_code,MATCH(sel_res_gen,$E$2:$I$2,0),MATCH(\"RES-HYBR\",$E$2:$I$2,0))","v":3},{"$f":"IF(INDEX($E275:$I275,J32)>0,INDEX($E$2:$I$2,J32),\"\")","v":"RES-HYBR"},null,true,true,0,1,null,null,null,null,null,null,null,null,null,null,null,null,null,null,null,null,null,null,null,null,true,null,false,null,null,{"$f":"IF(\"DST-S-D,,,\"&$B32&\",\"&sel_country_code=VLOOKUP(\"DST-S-D,,,\"&$B32&\",\"&sel_country_code,data[],1),VLOOKUP(\"DST-S-D,,,\"&$B32&\",\"&sel_country_code,data[],7),0)","v":12728.796},{"$f":"IF(\"DST-S-DP,,,\"&$B32&\",\"&sel_country_code=VLOOKUP(\"DST-S-DP,,,\"&$B32&\",\"&sel_country_code,data[],1),VLOOKUP(\"DST-S-DP,,,\"&$B32&\",\"&sel_country_code,data[],7),0)","v":0},{"$f":"IF(\"SEASHARE,,,\"&$B32&\",\"&sel_country_code=VLOOKUP(\"SEASHARE,,,\"&$B32&\",\"&sel_country_code,data[],1),VLOOKUP(\"SEASHARE,,,\"&$B32&\",\"&sel_country_code,data[],7),0)","v":0},{"$f":"IF(\"CAP-T,,,\"&$B32&\",\"&sel_country_code=VLOOKUP(\"CAP-T,,,\"&$B32&\",\"&sel_country_code,data[],1),VLOOKUP(\"CAP-T,,,\"&$B32&\",\"&sel_country_code,data[],7),0)","v":0},{"$f":"IF(can_use_pipeline=FALSE, TRUE,IF(LEFT($B32,3)=LEFT(sel_region_code,3),LEFT(sel_transport,4)=\"Ship\",$AQ32=0))","v":true},12728.796,null,0,0,0,0,12728.796,true,null,null,false,null,null,null,{"$f":"IFERROR(VLOOKUP(K32&\",\"&sel_chain_ely_proc_code&\",\"&sel_chain_deriv_proc_code,data_storage[],4,FALSE),0)","v":3.8399999999999997E-2}]
[null,"ARG-PAM",null,null,null,null,null,null,null,{"$f":"IF($B276=sel_region_code,MATCH(sel_res_gen,$E$2:$I$2,0),MATCH(\"RES-HYBR\",$E$2:$I$2,0))","v":3},{"$f":"IF(INDEX($E276:$I276,J33)>0,INDEX($E$2:$I$2,J33),\"\")","v":"RES-HYBR"},null,true,true,0,1,null,null,null,null,null,null,null,null,null,null,null,null,null,null,null,null,null,null,null,null,true,null,false,null,null,{"$f":"IF(\"DST-S-D,,,\"&$B33&\",\"&sel_country_code=VLOOKUP(\"DST-S-D,,,\"&$B33&\",\"&sel_country_code,data[],1),VLOOKUP(\"DST-S-D,,,\"&$B33&\",\"&sel_country_code,data[],7),0)","v":12728.796},{"$f":"IF(\"DST-S-DP,,,\"&$B33&\",\"&sel_country_code=VLOOKUP(\"DST-S-DP,,,\"&$B33&\",\"&sel_country_code,data[],1),VLOOKUP(\"DST-S-DP,,,\"&$B33&\",\"&sel_country_code,data[],7),0)","v":0},{"$f":"IF(\"SEASHARE,,,\"&$B33&\",\"&sel_country_code=VLOOKUP(\"SEASHARE,,,\"&$B33&\",\"&sel_country_code,data[],1),VLOOKUP(\"SEASHARE,,,\"&$B33&\",\"&sel_country_code,data[],7),0)","v":0},{"$f":"IF(\"CAP-T,,,\"&$B33&\",\"&sel_country_code=VLOOKUP(\"CAP-T,,,\"&$B33&\",\"&sel_country_code,data[],1),VLOOKUP(\"CAP-T,,,\"&$B33&\",\"&sel_country_code,data[],7),0)","v":0},{"$f":"IF(can_use_pipeline=FALSE, TRUE,IF(LEFT($B33,3)=LEFT(sel_region_code,3),LEFT(sel_transport,4)=\"Ship\",$AQ33=0))","v":true},12728.796,null,0,0,0,0,12728.796,true,null,null,false,null,null,null,{"$f":"IFERROR(VLOOKUP(K33&\",\"&sel_chain_ely_proc_code&\",\"&sel_chain_deriv_proc_code,data_storage[],4,FALSE),0)","v":3.8399999999999997E-2}]
[null,"ARG-RIO",null,null,null,null,null,null,null,{"$f":"IF($B277=sel_region_code,MATCH(sel_res_gen,$E$2:$I$2,0),MATCH(\"RES-HYBR\",$E$2:$I$2,0))","v":3},{"$f":"IF(INDEX($E277:$I277,J34)>0,INDEX($E$2:$I$2,J34),\"\")","v":"RES-HYBR"},null,true,true,0,1,null,null,null,null,null,null,null,null,null,null,null,null,null,null,null,null,null,null,null,null,true,null,false,null,null,{"$f":"IF(\"DST-S-D,,,\"&$B34&\",\"&sel_country_code=VLOOKUP(\"DST-S-D,,,\"&$B34&\",\"&sel_country_code,data[],1),VLOOKUP(\"DST-S-D,,,\"&$B34&\",\"&sel_country_code,data[],7),0)","v":12728.796},{"$f":"IF(\"DST-S-DP,,,\"&$B34&\",\"&sel_country_code=VLOOKUP(\"DST-S-DP,,,\"&$B34&\",\"&sel_country_code,data[],1),VLOOKUP(\"DST-S-DP,,,\"&$B34&\",\"&sel_country_code,data[],7),0)","v":0},{"$f":"IF(\"SEASHARE,,,\"&$B34&\",\"&sel_country_code=VLOOKUP(\"SEASHARE,,,\"&$B34&\",\"&sel_country_code,data[],1),VLOOKUP(\"SEASHARE,,,\"&$B34&\",\"&sel_country_code,data[],7),0)","v":0},{"$f":"IF(\"CAP-T,,,\"&$B34&\",\"&sel_country_code=VLOOKUP(\"CAP-T,,,\"&$B34&\",\"&sel_country_code,data[],1),VLOOKUP(\"CAP-T,,,\"&$B34&\",\"&sel_country_code,data[],7),0)","v":0},{"$f":"IF(can_use_pipeline=FALSE, TRUE,IF(LEFT($B34,3)=LEFT(sel_region_code,3),LEFT(sel_transport,4)=\"Ship\",$AQ34=0))","v":true},12728.796,null,0,0,0,0,12728.796,true,null,null,false,null,null,null,{"$f":"IFERROR(VLOOKUP(K34&\",\"&sel_chain_ely_proc_code&\",\"&sel_chain_deriv_proc_code,data_storage[],4,FALSE),0)","v":3.8399999999999997E-2}]
[null,"ARG-SAF",null,null,null,null,null,null,null,{"$f":"IF($B278=sel_region_code,MATCH(sel_res_gen,$E$2:$I$2,0),MATCH(\"RES-HYBR\",$E$2:$I$2,0))","v":3},{"$f":"IF(INDEX($E278:$I278,J35)>0,INDEX($E$2:$I$2,J35),\"\")","v":"RES-HYBR"},null,true,true,0,1,null,null,null,null,null,null,null,null,null,null,null,null,null,null,null,null,null,null,null,null,true,null,false,null,null,{"$f":"IF(\"DST-S-D,,,\"&$B35&\",\"&sel_country_code=VLOOKUP(\"DST-S-D,,,\"&$B35&\",\"&sel_country_code,data[],1),VLOOKUP(\"DST-S-D,,,\"&$B35&\",\"&sel_country_code,data[],7),0)","v":12728.796},{"$f":"IF(\"DST-S-DP,,,\"&$B35&\",\"&sel_country_code=VLOOKUP(\"DST-S-DP,,,\"&$B35&\",\"&sel_country_code,data[],1),VLOOKUP(\"DST-S-DP,,,\"&$B35&\",\"&sel_country_code,data[],7),0)","v":0},{"$f":"IF(\"SEASHARE,,,\"&$B35&\",\"&sel_country_code=VLOOKUP(\"SEASHARE,,,\"&$B35&\",\"&sel_country_code,data[],1),VLOOKUP(\"SEASHARE,,,\"&$B35&\",\"&sel_country_code,data[],7),0)","v":0},{"$f":"IF(\"CAP-T,,,\"&$B35&\",\"&sel_country_code=VLOOKUP(\"CAP-T,,,\"&$B35&\",\"&sel_country_code,data[],1),VLOOKUP(\"CAP-T,,,\"&$B35&\",\"&sel_country_code,data[],7),0)","v":0},{"$f":"IF(can_use_pipeline=FALSE, TRUE,IF(LEFT($B35,3)=LEFT(sel_region_code,3),LEFT(sel_transport,4)=\"Ship\",$AQ35=0))","v":true},12728.796,null,0,0,0,0,12728.796,true,null,null,false,null,null,null,{"$f":"IFERROR(VLOOKUP(K35&\",\"&sel_chain_ely_proc_code&\",\"&sel_chain_deriv_proc_code,data_storage[],4,FALSE),0)","v":3.8399999999999997E-2}]
[null,"ARG-SAJ",null,null,null,null,null,null,null,{"$f":"IF($B279=sel_region_code,MATCH(sel_res_gen,$E$2:$I$2,0),MATCH(\"RES-HYBR\",$E$2:$I$2,0))","v":3},{"$f":"IF(INDEX($E279:$I279,J36)>0,INDEX($E$2:$I$2,J36),\"\")","v":"RES-HYBR"},null,true,true,0,1,null,null,null,null,null,null,null,null,null,null,null,null,null,null,null,null,null,null,null,null,true,null,false,null,null,{"$f":"IF(\"DST-S-D,,,\"&$B36&\",\"&sel_country_code=VLOOKUP(\"DST-S-D,,,\"&$B36&\",\"&sel_country_code,data[],1),VLOOKUP(\"DST-S-D,,,\"&$B36&\",\"&sel_country_code,data[],7),0)","v":12728.796},{"$f":"IF(\"DST-S-DP,,,\"&$B36&\",\"&sel_country_code=VLOOKUP(\"DST-S-DP,,,\"&$B36&\",\"&sel_country_code,data[],1),VLOOKUP(\"DST-S-DP,,,\"&$B36&\",\"&sel_country_code,data[],7),0)","v":0},{"$f":"IF(\"SEASHARE,,,\"&$B36&\",\"&sel_country_code=VLOOKUP(\"SEASHARE,,,\"&$B36&\",\"&sel_country_code,data[],1),VLOOKUP(\"SEASHARE,,,\"&$B36&\",\"&sel_country_code,data[],7),0)","v":0},{"$f":"IF(\"CAP-T,,,\"&$B36&\",\"&sel_country_code=VLOOKUP(\"CAP-T,,,\"&$B36&\",\"&sel_country_code,data[],1),VLOOKUP(\"CAP-T,,,\"&$B36&\",\"&sel_country_code,data[],7),0)","v":0},{"$f":"IF(can_use_pipeline=FALSE, TRUE,IF(LEFT($B36,3)=LEFT(sel_region_code,3),LEFT(sel_transport,4)=\"Ship\",$AQ36=0))","v":true},12728.796,null,0,0,0,0,12728.796,true,null,null,false,null,null,null,{"$f":"IFERROR(VLOOKUP(K36&\",\"&sel_chain_ely_proc_code&\",\"&sel_chain_deriv_proc_code,data_storage[],4,FALSE),0)","v":3.8399999999999997E-2}]
[null,"ARG-SAL",null,null,null,null,null,null,null,{"$f":"IF($B280=sel_region_code,MATCH(sel_res_gen,$E$2:$I$2,0),MATCH(\"RES-HYBR\",$E$2:$I$2,0))","v":3},{"$f":"IF(INDEX($E280:$I280,J37)>0,INDEX($E$2:$I$2,J37),\"\")","v":"RES-HYBR"},null,true,true,0,1,null,null,null,null,null,null,null,null,null,null,null,null,null,null,null,null,null,null,null,null,true,null,false,null,null,{"$f":"IF(\"DST-S-D,,,\"&$B37&\",\"&sel_country_code=VLOOKUP(\"DST-S-D,,,\"&$B37&\",\"&sel_country_code,data[],1),VLOOKUP(\"DST-S-D,,,\"&$B37&\",\"&sel_country_code,data[],7),0)","v":12728.796},{"$f":"IF(\"DST-S-DP,,,\"&$B37&\",\"&sel_country_code=VLOOKUP(\"DST-S-DP,,,\"&$B37&\",\"&sel_country_code,data[],1),VLOOKUP(\"DST-S-DP,,,\"&$B37&\",\"&sel_country_code,data[],7),0)","v":0},{"$f":"IF(\"SEASHARE,,,\"&$B37&\",\"&sel_country_code=VLOOKUP(\"SEASHARE,,,\"&$B37&\",\"&sel_country_code,data[],1),VLOOKUP(\"SEASHARE,,,\"&$B37&\",\"&sel_country_code,data[],7),0)","v":0},{"$f":"IF(\"CAP-T,,,\"&$B37&\",\"&sel_country_code=VLOOKUP(\"CAP-T,,,\"&$B37&\",\"&sel_country_code,data[],1),VLOOKUP(\"CAP-T,,,\"&$B37&\",\"&sel_country_code,data[],7),0)","v":0},{"$f":"IF(can_use_pipeline=FALSE, TRUE,IF(LEFT($B37,3)=LEFT(sel_region_code,3),LEFT(sel_transport,4)=\"Ship\",$AQ37=0))","v":true},12728.796,null,0,0,0,0,12728.796,true,null,null,false,null,null,null,{"$f":"IFERROR(VLOOKUP(K37&\",\"&sel_chain_ely_proc_code&\",\"&sel_chain_deriv_proc_code,data_storage[],4,FALSE),0)","v":3.8399999999999997E-2}]
[null,"ARG-SAT",null,null,null,null,null,null,null,{"$f":"IF($B281=sel_region_code,MATCH(sel_res_gen,$E$2:$I$2,0),MATCH(\"RES-HYBR\",$E$2:$I$2,0))","v":3},{"$f":"IF(INDEX($E281:$I281,J38)>0,INDEX($E$2:$I$2,J38),\"\")","v":"RES-HYBR"},null,true,true,0,1,null,null,null,null,null,null,null,null,null,null,null,null,null,null,null,null,null,null,null,null,true,null,false,null,null,{"$f":"IF(\"DST-S-D,,,\"&$B38&\",\"&sel_country_code=VLOOKUP(\"DST-S-D,,,\"&$B38&\",\"&sel_country_code,data[],1),VLOOKUP(\"DST-S-D,,,\"&$B38&\",\"&sel_country_code,data[],7),0)","v":12728.796},{"$f":"IF(\"DST-S-DP,,,\"&$B38&\",\"&sel_country_code=VLOOKUP(\"DST-S-DP,,,\"&$B38&\",\"&sel_country_code,data[],1),VLOOKUP(\"DST-S-DP,,,\"&$B38&\",\"&sel_country_code,data[],7),0)","v":0},{"$f":"IF(\"SEASHARE,,,\"&$B38&\",\"&sel_country_code=VLOOKUP(\"SEASHARE,,,\"&$B38&\",\"&sel_country_code,data[],1),VLOOKUP(\"SEASHARE,,,\"&$B38&\",\"&sel_country_code,data[],7),0)","v":0},{"$f":"IF(\"CAP-T,,,\"&$B38&\",\"&sel_country_code=VLOOKUP(\"CAP-T,,,\"&$B38&\",\"&sel_country_code,data[],1),VLOOKUP(\"CAP-T,,,\"&$B38&\",\"&sel_country_code,data[],7),0)","v":0},{"$f":"IF(can_use_pipeline=FALSE, TRUE,IF(LEFT($B38,3)=LEFT(sel_region_code,3),LEFT(sel_transport,4)=\"Ship\",$AQ38=0))","v":true},12728.796,null,0,0,0,0,12728.796,true,null,null,false,null,null,null,{"$f":"IFERROR(VLOOKUP(K38&\",\"&sel_chain_ely_proc_code&\",\"&sel_chain_deriv_proc_code,data_storage[],4,FALSE),0)","v":3.8399999999999997E-2}]
[null,"ARG-TUC",null,null,null,null,null,null,null,{"$f":"IF($B282=sel_region_code,MATCH(sel_res_gen,$E$2:$I$2,0),MATCH(\"RES-HYBR\",$E$2:$I$2,0))","v":3},{"$f":"IF(INDEX($E282:$I282,J39)>0,INDEX($E$2:$I$2,J39),\"\")","v":"RES-HYBR"},null,true,true,0,1,null,null,null,null,null,null,null,null,null,null,null,null,null,null,null,null,null,null,null,null,true,null,false,null,null,{"$f":"IF(\"DST-S-D,,,\"&$B39&\",\"&sel_country_code=VLOOKUP(\"DST-S-D,,,\"&$B39&\",\"&sel_country_code,data[],1),VLOOKUP(\"DST-S-D,,,\"&$B39&\",\"&sel_country_code,data[],7),0)","v":12728.796},{"$f":"IF(\"DST-S-DP,,,\"&$B39&\",\"&sel_country_code=VLOOKUP(\"DST-S-DP,,,\"&$B39&\",\"&sel_country_code,data[],1),VLOOKUP(\"DST-S-DP,,,\"&$B39&\",\"&sel_country_code,data[],7),0)","v":0},{"$f":"IF(\"SEASHARE,,,\"&$B39&\",\"&sel_country_code=VLOOKUP(\"SEASHARE,,,\"&$B39&\",\"&sel_country_code,data[],1),VLOOKUP(\"SEASHARE,,,\"&$B39&\",\"&sel_country_code,data[],7),0)","v":0},{"$f":"IF(\"CAP-T,,,\"&$B39&\",\"&sel_country_code=VLOOKUP(\"CAP-T,,,\"&$B39&\",\"&sel_country_code,data[],1),VLOOKUP(\"CAP-T,,,\"&$B39&\",\"&sel_country_code,data[],7),0)","v":0},{"$f":"IF(can_use_pipeline=FALSE, TRUE,IF(LEFT($B39,3)=LEFT(sel_region_code,3),LEFT(sel_transport,4)=\"Ship\",$AQ39=0))","v":true},12728.796,null,0,0,0,0,12728.796,true,null,null,false,null,null,null,{"$f":"IFERROR(VLOOKUP(K39&\",\"&sel_chain_ely_proc_code&\",\"&sel_chain_deriv_proc_code,data_storage[],4,FALSE),0)","v":3.8399999999999997E-2}]
[null,"AUS",null,null,null,null,null,null,null,{"$f":"IF($B283=sel_region_code,MATCH(sel_res_gen,$E$2:$I$2,0),MATCH(\"RES-HYBR\",$E$2:$I$2,0))","v":3},{"$f":"IF(INDEX($E283:$I283,J40)>0,INDEX($E$2:$I$2,J40),\"\")","v":"RES-HYBR"},null,true,true,0,1,null,null,null,null,null,null,null,null,null,null,null,null,null,null,null,null,null,null,null,null,true,null,false,null,null,{"$f":"IF(\"DST-S-D,,,\"&$B40&\",\"&sel_country_code=VLOOKUP(\"DST-S-D,,,\"&$B40&\",\"&sel_country_code,data[],1),VLOOKUP(\"DST-S-D,,,\"&$B40&\",\"&sel_country_code,data[],7),0)","v":21212.3},{"$f":"IF(\"DST-S-DP,,,\"&$B40&\",\"&sel_country_code=VLOOKUP(\"DST-S-DP,,,\"&$B40&\",\"&sel_country_code,data[],1),VLOOKUP(\"DST-S-DP,,,\"&$B40&\",\"&sel_country_code,data[],7),0)","v":0},{"$f":"IF(\"SEASHARE,,,\"&$B40&\",\"&sel_country_code=VLOOKUP(\"SEASHARE,,,\"&$B40&\",\"&sel_country_code,data[],1),VLOOKUP(\"SEASHARE,,,\"&$B40&\",\"&sel_country_code,data[],7),0)","v":0},{"$f":"IF(\"CAP-T,,,\"&$B40&\",\"&sel_country_code=VLOOKUP(\"CAP-T,,,\"&$B40&\",\"&sel_country_code,data[],1),VLOOKUP(\"CAP-T,,,\"&$B40&\",\"&sel_country_code,data[],7),0)","v":0},{"$f":"IF(can_use_pipeline=FALSE, TRUE,IF(LEFT($B40,3)=LEFT(sel_region_code,3),LEFT(sel_transport,4)=\"Ship\",$AQ40=0))","v":true},21212.3,null,0,0,0,0,21212.3,true,null,null,false,null,null,null,{"$f":"IFERROR(VLOOKUP(K40&\",\"&sel_chain_ely_proc_code&\",\"&sel_chain_deriv_proc_code,data_storage[],4,FALSE),0)","v":3.8399999999999997E-2}]
[null,"BRA",null,null,null,null,null,null,null,{"$f":"IF($B284=sel_region_code,MATCH(sel_res_gen,$E$2:$I$2,0),MATCH(\"RES-HYBR\",$E$2:$I$2,0))","v":3},{"$f":"IF(INDEX($E284:$I284,J41)>0,INDEX($E$2:$I$2,J41),\"\")","v":"RES-HYBR"},null,true,true,0,1,null,null,null,null,null,null,null,null,null,null,null,null,null,null,null,null,null,null,null,null,true,null,false,null,null,{"$f":"IF(\"DST-S-D,,,\"&$B41&\",\"&sel_country_code=VLOOKUP(\"DST-S-D,,,\"&$B41&\",\"&sel_country_code,data[],1),VLOOKUP(\"DST-S-D,,,\"&$B41&\",\"&sel_country_code,data[],7),0)","v":10409.5},{"$f":"IF(\"DST-S-DP,,,\"&$B41&\",\"&sel_country_code=VLOOKUP(\"DST-S-DP,,,\"&$B41&\",\"&sel_country_code,data[],1),VLOOKUP(\"DST-S-DP,,,\"&$B41&\",\"&sel_country_code,data[],7),0)","v":0},{"$f":"IF(\"SEASHARE,,,\"&$B41&\",\"&sel_country_code=VLOOKUP(\"SEASHARE,,,\"&$B41&\",\"&sel_country_code,data[],1),VLOOKUP(\"SEASHARE,,,\"&$B41&\",\"&sel_country_code,data[],7),0)","v":0},{"$f":"IF(\"CAP-T,,,\"&$B41&\",\"&sel_country_code=VLOOKUP(\"CAP-T,,,\"&$B41&\",\"&sel_country_code,data[],1),VLOOKUP(\"CAP-T,,,\"&$B41&\",\"&sel_country_code,data[],7),0)","v":0},{"$f":"IF(can_use_pipeline=FALSE, TRUE,IF(LEFT($B41,3)=LEFT(sel_region_code,3),LEFT(sel_transport,4)=\"Ship\",$AQ41=0))","v":true},10409.5,null,0,0,0,0,10409.5,true,null,null,false,null,null,null,{"$f":"IFERROR(VLOOKUP(K41&\",\"&sel_chain_ely_proc_code&\",\"&sel_chain_deriv_proc_code,data_storage[],4,FALSE),0)","v":3.8399999999999997E-2}]
[null,"CHL",null,null,null,null,null,null,null,{"$f":"IF($B285=sel_region_code,MATCH(sel_res_gen,$E$2:$I$2,0),MATCH(\"RES-HYBR\",$E$2:$I$2,0))","v":3},{"$f":"IF(INDEX($E285:$I285,J42)>0,INDEX($E$2:$I$2,J42),\"\")","v":"RES-HYBR"},null,true,true,0,1,null,null,null,null,null,null,null,null,null,null,null,null,null,null,null,null,null,null,null,null,true,null,false,null,null,{"$f":"IF(\"DST-S-D,,,\"&$B42&\",\"&sel_country_code=VLOOKUP(\"DST-S-D,,,\"&$B42&\",\"&sel_country_code,data[],1),VLOOKUP(\"DST-S-D,,,\"&$B42&\",\"&sel_country_code,data[],7),0)","v":12511.9},{"$f":"IF(\"DST-S-DP,,,\"&$B42&\",\"&sel_country_code=VLOOKUP(\"DST-S-DP,,,\"&$B42&\",\"&sel_country_code,data[],1),VLOOKUP(\"DST-S-DP,,,\"&$B42&\",\"&sel_country_code,data[],7),0)","v":0},{"$f":"IF(\"SEASHARE,,,\"&$B42&\",\"&sel_country_code=VLOOKUP(\"SEASHARE,,,\"&$B42&\",\"&sel_country_code,data[],1),VLOOKUP(\"SEASHARE,,,\"&$B42&\",\"&sel_country_code,data[],7),0)","v":0},{"$f":"IF(\"CAP-T,,,\"&$B42&\",\"&sel_country_code=VLOOKUP(\"CAP-T,,,\"&$B42&\",\"&sel_country_code,data[],1),VLOOKUP(\"CAP-T,,,\"&$B42&\",\"&sel_country_code,data[],7),0)","v":0},{"$f":"IF(can_use_pipeline=FALSE, TRUE,IF(LEFT($B42,3)=LEFT(sel_region_code,3),LEFT(sel_transport,4)=\"Ship\",$AQ42=0))","v":true},12511.9,null,0,0,0,0,12511.9,true,null,null,false,null,null,null,{"$f":"IFERROR(VLOOKUP(K42&\",\"&sel_chain_ely_proc_code&\",\"&sel_chain_deriv_proc_code,data_storage[],4,FALSE),0)","v":3.8399999999999997E-2}]
[null,"CHN",null,null,null,null,null,null,null,{"$f":"IF($B286=sel_region_code,MATCH(sel_res_gen,$E$2:$I$2,0),MATCH(\"RES-HYBR\",$E$2:$I$2,0))","v":3},{"$f":"IF(INDEX($E286:$I286,J43)>0,INDEX($E$2:$I$2,J43),\"\")","v":"RES-HYBR"},null,true,true,0,1,null,null,null,null,null,null,null,null,null,null,null,null,null,null,null,null,null,null,null,null,true,null,false,null,null,{"$f":"IF(\"DST-S-D,,,\"&$B43&\",\"&sel_country_code=VLOOKUP(\"DST-S-D,,,\"&$B43&\",\"&sel_country_code,data[],1),VLOOKUP(\"DST-S-D,,,\"&$B43&\",\"&sel_country_code,data[],7),0)","v":20484.900000000001},{"$f":"IF(\"DST-S-DP,,,\"&$B43&\",\"&sel_country_code=VLOOKUP(\"DST-S-DP,,,\"&$B43&\",\"&sel_country_code,data[],1),VLOOKUP(\"DST-S-DP,,,\"&$B43&\",\"&sel_country_code,data[],7),0)","v":0},{"$f":"IF(\"SEASHARE,,,\"&$B43&\",\"&sel_country_code=VLOOKUP(\"SEASHARE,,,\"&$B43&\",\"&sel_country_code,data[],1),VLOOKUP(\"SEASHARE,,,\"&$B43&\",\"&sel_country_code,data[],7),0)","v":0},{"$f":"IF(\"CAP-T,,,\"&$B43&\",\"&sel_country_code=VLOOKUP(\"CAP-T,,,\"&$B43&\",\"&sel_country_code,data[],1),VLOOKUP(\"CAP-T,,,\"&$B43&\",\"&sel_country_code,data[],7),0)","v":0},{"$f":"IF(can_use_pipeline=FALSE, TRUE,IF(LEFT($B43,3)=LEFT(sel_region_code,3),LEFT(sel_transport,4)=\"Ship\",$AQ43=0))","v":true},20484.900000000001,null,0,0,0,0,20484.900000000001,true,null,null,false,null,null,null,{"$f":"IFERROR(VLOOKUP(K43&\",\"&sel_chain_ely_proc_code&\",\"&sel_chain_deriv_proc_code,data_storage[],4,FALSE),0)","v":3.8399999999999997E-2}]
[null,"COL",null,null,null,null,null,null,null,{"$f":"IF($B287=sel_region_code,MATCH(sel_res_gen,$E$2:$I$2,0),MATCH(\"RES-HYBR\",$E$2:$I$2,0))","v":3},{"$f":"IF(INDEX($E287:$I287,J44)>0,INDEX($E$2:$I$2,J44),\"\")","v":"RES-HYBR"},null,true,true,0,1,null,null,null,null,null,null,null,null,null,null,null,null,null,null,null,null,null,null,null,null,true,null,false,null,null,{"$f":"IF(\"DST-S-D,,,\"&$B44&\",\"&sel_country_code=VLOOKUP(\"DST-S-D,,,\"&$B44&\",\"&sel_country_code,data[],1),VLOOKUP(\"DST-S-D,,,\"&$B44&\",\"&sel_country_code,data[],7),0)","v":9250.74},{"$f":"IF(\"DST-S-DP,,,\"&$B44&\",\"&sel_country_code=VLOOKUP(\"DST-S-DP,,,\"&$B44&\",\"&sel_country_code,data[],1),VLOOKUP(\"DST-S-DP,,,\"&$B44&\",\"&sel_country_code,data[],7),0)","v":0},{"$f":"IF(\"SEASHARE,,,\"&$B44&\",\"&sel_country_code=VLOOKUP(\"SEASHARE,,,\"&$B44&\",\"&sel_country_code,data[],1),VLOOKUP(\"SEASHARE,,,\"&$B44&\",\"&sel_country_code,data[],7),0)","v":0},{"$f":"IF(\"CAP-T,,,\"&$B44&\",\"&sel_country_code=VLOOKUP(\"CAP-T,,,\"&$B44&\",\"&sel_country_code,data[],1),VLOOKUP(\"CAP-T,,,\"&$B44&\",\"&sel_country_code,data[],7),0)","v":0},{"$f":"IF(can_use_pipeline=FALSE, TRUE,IF(LEFT($B44,3)=LEFT(sel_region_code,3),LEFT(sel_transport,4)=\"Ship\",$AQ44=0))","v":true},9250.74,null,0,0,0,0,9250.74,true,null,null,false,null,null,null,{"$f":"IFERROR(VLOOKUP(K44&\",\"&sel_chain_ely_proc_code&\",\"&sel_chain_deriv_proc_code,data_storage[],4,FALSE),0)","v":3.8399999999999997E-2}]
[null,"CRI",null,null,null,null,null,null,null,{"$f":"IF($B288=sel_region_code,MATCH(sel_res_gen,$E$2:$I$2,0),MATCH(\"RES-HYBR\",$E$2:$I$2,0))","v":3},{"$f":"IF(INDEX($E288:$I288,J45)>0,INDEX($E$2:$I$2,J45),\"\")","v":"RES-HYBR"},null,true,true,0,1,null,null,null,null,null,null,null,null,null,null,null,null,null,null,null,null,null,null,null,null,true,null,false,null,null,{"$f":"IF(\"DST-S-D,,,\"&$B45&\",\"&sel_country_code=VLOOKUP(\"DST-S-D,,,\"&$B45&\",\"&sel_country_code,data[],1),VLOOKUP(\"DST-S-D,,,\"&$B45&\",\"&sel_country_code,data[],7),0)","v":7422.6},{"$f":"IF(\"DST-S-DP,,,\"&$B45&\",\"&sel_country_code=VLOOKUP(\"DST-S-DP,,,\"&$B45&\",\"&sel_country_code,data[],1),VLOOKUP(\"DST-S-DP,,,\"&$B45&\",\"&sel_country_code,data[],7),0)","v":0},{"$f":"IF(\"SEASHARE,,,\"&$B45&\",\"&sel_country_code=VLOOKUP(\"SEASHARE,,,\"&$B45&\",\"&sel_country_code,data[],1),VLOOKUP(\"SEASHARE,,,\"&$B45&\",\"&sel_country_code,data[],7),0)","v":0},{"$f":"IF(\"CAP-T,,,\"&$B45&\",\"&sel_country_code=VLOOKUP(\"CAP-T,,,\"&$B45&\",\"&sel_country_code,data[],1),VLOOKUP(\"CAP-T,,,\"&$B45&\",\"&sel_country_code,data[],7),0)","v":0},{"$f":"IF(can_use_pipeline=FALSE, TRUE,IF(LEFT($B45,3)=LEFT(sel_region_code,3),LEFT(sel_transport,4)=\"Ship\",$AQ45=0))","v":true},7422.6,null,0,0,0,0,7422.6,true,null,null,false,null,null,null,{"$f":"IFERROR(VLOOKUP(K45&\",\"&sel_chain_ely_proc_code&\",\"&sel_chain_deriv_proc_code,data_storage[],4,FALSE),0)","v":3.8399999999999997E-2}]
[null,"DNK",null,null,null,null,null,null,null,{"$f":"IF($B289=sel_region_code,MATCH(sel_res_gen,$E$2:$I$2,0),MATCH(\"RES-HYBR\",$E$2:$I$2,0))","v":3},{"$f":"IF(INDEX($E289:$I289,J46)>0,INDEX($E$2:$I$2,J46),\"\")","v":"RES-HYBR"},null,true,true,0,1,null,null,null,null,null,null,null,null,null,null,null,null,null,null,null,null,null,null,null,null,{"$f":"AND($AT46,AK$2<>\"\")","v":false},null,true,null,null,{"$f":"IF(\"DST-S-D,,,\"&$B46&\",\"&sel_country_code=VLOOKUP(\"DST-S-D,,,\"&$B46&\",\"&sel_country_code,data[],1),VLOOKUP(\"DST-S-D,,,\"&$B46&\",\"&sel_country_code,data[],7),0)","v":814.84100000000001},{"$f":"IF(\"DST-S-DP,,,\"&$B46&\",\"&sel_country_code=VLOOKUP(\"DST-S-DP,,,\"&$B46&\",\"&sel_country_code,data[],1),VLOOKUP(\"DST-S-DP,,,\"&$B46&\",\"&sel_country_code,data[],7),0)","v":500},{"$f":"IF(\"SEASHARE,,,\"&$B46&\",\"&sel_country_code=VLOOKUP(\"SEASHARE,,,\"&$B46&\",\"&sel_country_code,data[],1),VLOOKUP(\"SEASHARE,,,\"&$B46&\",\"&sel_country_code,data[],7),0)","v":0},{"$f":"IF(\"CAP-T,,,\"&$B46&\",\"&sel_country_code=VLOOKUP(\"CAP-T,,,\"&$B46&\",\"&sel_country_code,data[],1),VLOOKUP(\"CAP-T,,,\"&$B46&\",\"&sel_country_code,data[],7),0)","v":1},{"$f":"IF(can_use_pipeline=FALSE, TRUE,IF(LEFT($B46,3)=LEFT(sel_region_code,3),LEFT(sel_transport,4)=\"Ship\",$AQ46=0))","v":false},{"$f":"IF(NOT($AT46),0,$AP46)","v":0},null,{"$f":"IF($AT46,0,IF($AS46>0,0,$AQ46*$AR46))","v":0},{"$f":"IF($AT46,0,IF($AS46>0,0,$AQ46*(1-$AR46)))","v":0},{"$f":"IF($AT46,0,IF($AS46=0,0,$AQ46*$AR46))","v":0},{"$f":"IF($AT46,0,IF($AS46=0,0,$AQ46*(1-$AR46)))","v":500},500,false,null,null,false,null,null,null,{"$f":"IFERROR(VLOOKUP(K46&\",\"&sel_chain_ely_proc_code&\",\"&sel_chain_deriv_proc_code,data_storage[],4,FALSE),0)","v":3.8399999999999997E-2}]
[null,"DZA",null,null,null,null,null,null,null,{"$f":"IF($B290=sel_region_code,MATCH(sel_res_gen,$E$2:$I$2,0),MATCH(\"RES-HYBR\",$E$2:$I$2,0))","v":3},{"$f":"IF(INDEX($E290:$I290,J47)>0,INDEX($E$2:$I$2,J47),\"\")","v":"RES-HYBR"},null,true,true,0,1,null,null,null,null,null,null,null,null,null,null,null,null,null,null,null,null,null,null,null,null,false,null,true,null,null,{"$f":"IF(\"DST-S-D,,,\"&$B47&\",\"&sel_country_code=VLOOKUP(\"DST-S-D,,,\"&$B47&\",\"&sel_country_code,data[],1),VLOOKUP(\"DST-S-D,,,\"&$B47&\",\"&sel_country_code,data[],7),0)","v":3174.14},{"$f":"IF(\"DST-S-DP,,,\"&$B47&\",\"&sel_country_code=VLOOKUP(\"DST-S-DP,,,\"&$B47&\",\"&sel_country_code,data[],1),VLOOKUP(\"DST-S-DP,,,\"&$B47&\",\"&sel_country_code,data[],7),0)","v":3000},{"$f":"IF(\"SEASHARE,,,\"&$B47&\",\"&sel_country_code=VLOOKUP(\"SEASHARE,,,\"&$B47&\",\"&sel_country_code,data[],1),VLOOKUP(\"SEASHARE,,,\"&$B47&\",\"&sel_country_code,data[],7),0)","v":0.1},{"$f":"IF(\"CAP-T,,,\"&$B47&\",\"&sel_country_code=VLOOKUP(\"CAP-T,,,\"&$B47&\",\"&sel_country_code,data[],1),VLOOKUP(\"CAP-T,,,\"&$B47&\",\"&sel_country_code,data[],7),0)","v":0},{"$f":"IF(can_use_pipeline=FALSE, TRUE,IF(LEFT($B47,3)=LEFT(sel_region_code,3),LEFT(sel_transport,4)=\"Ship\",$AQ47=0))","v":false},0,null,300,2700,0,0,3000,false,null,null,false,null,null,null,{"$f":"IFERROR(VLOOKUP(K47&\",\"&sel_chain_ely_proc_code&\",\"&sel_chain_deriv_proc_code,data_storage[],4,FALSE),0)","v":3.8399999999999997E-2}]
[null,"EGY",null,null,null,null,null,null,null,{"$f":"IF($B291=sel_region_code,MATCH(sel_res_gen,$E$2:$I$2,0),MATCH(\"RES-HYBR\",$E$2:$I$2,0))","v":3},{"$f":"IF(INDEX($E291:$I291,J48)>0,INDEX($E$2:$I$2,J48),\"\")","v":"RES-HYBR"},null,true,true,0,1,null,null,null,null,null,null,null,null,null,null,null,null,null,null,null,null,null,null,null,null,false,null,true,null,null,{"$f":"IF(\"DST-S-D,,,\"&$B48&\",\"&sel_country_code=VLOOKUP(\"DST-S-D,,,\"&$B48&\",\"&sel_country_code,data[],1),VLOOKUP(\"DST-S-D,,,\"&$B48&\",\"&sel_country_code,data[],7),0)","v":6629.18},{"$f":"IF(\"DST-S-DP,,,\"&$B48&\",\"&sel_country_code=VLOOKUP(\"DST-S-DP,,,\"&$B48&\",\"&sel_country_code,data[],1),VLOOKUP(\"DST-S-DP,,,\"&$B48&\",\"&sel_country_code,data[],7),0)","v":5000},{"$f":"IF(\"SEASHARE,,,\"&$B48&\",\"&sel_country_code=VLOOKUP(\"SEASHARE,,,\"&$B48&\",\"&sel_country_code,data[],1),VLOOKUP(\"SEASHARE,,,\"&$B48&\",\"&sel_country_code,data[],7),0)","v":0},{"$f":"IF(\"CAP-T,,,\"&$B48&\",\"&sel_country_code=VLOOKUP(\"CAP-T,,,\"&$B48&\",\"&sel_country_code,data[],1),VLOOKUP(\"CAP-T,,,\"&$B48&\",\"&sel_country_code,data[],7),0)","v":0},{"$f":"IF(can_use_pipeline=FALSE, TRUE,IF(LEFT($B48,3)=LEFT(sel_region_code,3),LEFT(sel_transport,4)=\"Ship\",$AQ48=0))","v":false},0,null,0,5000,0,0,5000,false,null,null,false,null,null,null,{"$f":"IFERROR(VLOOKUP(K48&\",\"&sel_chain_ely_proc_code&\",\"&sel_chain_deriv_proc_code,data_storage[],4,FALSE),0)","v":3.8399999999999997E-2}]
[null,"ESP",null,null,null,null,null,null,null,{"$f":"IF($B292=sel_region_code,MATCH(sel_res_gen,$E$2:$I$2,0),MATCH(\"RES-HYBR\",$E$2:$I$2,0))","v":3},{"$f":"IF(INDEX($E292:$I292,J49)>0,INDEX($E$2:$I$2,J49),\"\")","v":"RES-HYBR"},null,true,true,0,1,null,null,null,null,null,null,null,null,null,null,null,null,null,null,null,null,null,null,null,null,false,null,true,null,null,{"$f":"IF(\"DST-S-D,,,\"&$B49&\",\"&sel_country_code=VLOOKUP(\"DST-S-D,,,\"&$B49&\",\"&sel_country_code,data[],1),VLOOKUP(\"DST-S-D,,,\"&$B49&\",\"&sel_country_code,data[],7),0)","v":2697.76},{"$f":"IF(\"DST-S-DP,,,\"&$B49&\",\"&sel_country_code=VLOOKUP(\"DST-S-DP,,,\"&$B49&\",\"&sel_country_code,data[],1),VLOOKUP(\"DST-S-DP,,,\"&$B49&\",\"&sel_country_code,data[],7),0)","v":1500},{"$f":"IF(\"SEASHARE,,,\"&$B49&\",\"&sel_country_code=VLOOKUP(\"SEASHARE,,,\"&$B49&\",\"&sel_country_code,data[],1),VLOOKUP(\"SEASHARE,,,\"&$B49&\",\"&sel_country_code,data[],7),0)","v":0},{"$f":"IF(\"CAP-T,,,\"&$B49&\",\"&sel_country_code=VLOOKUP(\"CAP-T,,,\"&$B49&\",\"&sel_country_code,data[],1),VLOOKUP(\"CAP-T,,,\"&$B49&\",\"&sel_country_code,data[],7),0)","v":0},{"$f":"IF(can_use_pipeline=FALSE, TRUE,IF(LEFT($B49,3)=LEFT(sel_region_code,3),LEFT(sel_transport,4)=\"Ship\",$AQ49=0))","v":false},0,null,0,1500,0,0,1500,false,null,null,false,null,null,null,{"$f":"IFERROR(VLOOKUP(K49&\",\"&sel_chain_ely_proc_code&\",\"&sel_chain_deriv_proc_code,data_storage[],4,FALSE),0)","v":3.8399999999999997E-2}]
[null,"IDN",null,null,null,null,null,null,null,{"$f":"IF($B293=sel_region_code,MATCH(sel_res_gen,$E$2:$I$2,0),MATCH(\"RES-HYBR\",$E$2:$I$2,0))","v":3},{"$f":"IF(INDEX($E293:$I293,J50)>0,INDEX($E$2:$I$2,J50),\"\")","v":"RES-HYBR"},null,true,true,0,1,null,null,null,null,null,null,null,null,null,null,null,null,null,null,null,null,null,null,null,null,true,null,false,null,null,{"$f":"IF(\"DST-S-D,,,\"&$B50&\",\"&sel_country_code=VLOOKUP(\"DST-S-D,,,\"&$B50&\",\"&sel_country_code,data[],1),VLOOKUP(\"DST-S-D,,,\"&$B50&\",\"&sel_country_code,data[],7),0)","v":16946.8},{"$f":"IF(\"DST-S-DP,,,\"&$B50&\",\"&sel_country_code=VLOOKUP(\"DST-S-DP,,,\"&$B50&\",\"&sel_country_code,data[],1),VLOOKUP(\"DST-S-DP,,,\"&$B50&\",\"&sel_country_code,data[],7),0)","v":0},{"$f":"IF(\"SEASHARE,,,\"&$B50&\",\"&sel_country_code=VLOOKUP(\"SEASHARE,,,\"&$B50&\",\"&sel_country_code,data[],1),VLOOKUP(\"SEASHARE,,,\"&$B50&\",\"&sel_country_code,data[],7),0)","v":0},{"$f":"IF(\"CAP-T,,,\"&$B50&\",\"&sel_country_code=VLOOKUP(\"CAP-T,,,\"&$B50&\",\"&sel_country_code,data[],1),VLOOKUP(\"CAP-T,,,\"&$B50&\",\"&sel_country_code,data[],7),0)","v":0},{"$f":"IF(can_use_pipeline=FALSE, TRUE,IF(LEFT($B50,3)=LEFT(sel_region_code,3),LEFT(sel_transport,4)=\"Ship\",$AQ50=0))","v":true},16946.8,null,0,0,0,0,16946.8,true,null,null,false,null,null,null,{"$f":"IFERROR(VLOOKUP(K50&\",\"&sel_chain_ely_proc_code&\",\"&sel_chain_deriv_proc_code,data_storage[],4,FALSE),0)","v":3.8399999999999997E-2}]
[null,"IND",null,null,null,null,null,null,null,{"$f":"IF($B294=sel_region_code,MATCH(sel_res_gen,$E$2:$I$2,0),MATCH(\"RES-HYBR\",$E$2:$I$2,0))","v":3},{"$f":"IF(INDEX($E294:$I294,J51)>0,INDEX($E$2:$I$2,J51),\"\")","v":"RES-HYBR"},null,true,true,0,1,null,null,null,null,null,null,null,null,null,null,null,null,null,null,null,null,null,null,null,null,true,null,false,null,null,{"$f":"IF(\"DST-S-D,,,\"&$B51&\",\"&sel_country_code=VLOOKUP(\"DST-S-D,,,\"&$B51&\",\"&sel_country_code,data[],1),VLOOKUP(\"DST-S-D,,,\"&$B51&\",\"&sel_country_code,data[],7),0)","v":12687.7},{"$f":"IF(\"DST-S-DP,,,\"&$B51&\",\"&sel_country_code=VLOOKUP(\"DST-S-DP,,,\"&$B51&\",\"&sel_country_code,data[],1),VLOOKUP(\"DST-S-DP,,,\"&$B51&\",\"&sel_country_code,data[],7),0)","v":0},{"$f":"IF(\"SEASHARE,,,\"&$B51&\",\"&sel_country_code=VLOOKUP(\"SEASHARE,,,\"&$B51&\",\"&sel_country_code,data[],1),VLOOKUP(\"SEASHARE,,,\"&$B51&\",\"&sel_country_code,data[],7),0)","v":0},{"$f":"IF(\"CAP-T,,,\"&$B51&\",\"&sel_country_code=VLOOKUP(\"CAP-T,,,\"&$B51&\",\"&sel_country_code,data[],1),VLOOKUP(\"CAP-T,,,\"&$B51&\",\"&sel_country_code,data[],7),0)","v":0},{"$f":"IF(can_use_pipeline=FALSE, TRUE,IF(LEFT($B51,3)=LEFT(sel_region_code,3),LEFT(sel_transport,4)=\"Ship\",$AQ51=0))","v":true},12687.7,null,0,0,0,0,12687.7,true,null,null,false,null,null,null,{"$f":"IFERROR(VLOOKUP(K51&\",\"&sel_chain_ely_proc_code&\",\"&sel_chain_deriv_proc_code,data_storage[],4,FALSE),0)","v":3.8399999999999997E-2}]
[null,"JOR",null,null,null,null,null,null,null,{"$f":"IF($B295=sel_region_code,MATCH(sel_res_gen,$E$2:$I$2,0),MATCH(\"RES-HYBR\",$E$2:$I$2,0))","v":3},{"$f":"IF(INDEX($E295:$I295,J52)>0,INDEX($E$2:$I$2,J52),\"\")","v":"RES-HYBR"},null,true,true,0,1,null,null,null,null,null,null,null,null,null,null,null,null,null,null,null,null,null,null,null,null,false,null,true,null,null,{"$f":"IF(\"DST-S-D,,,\"&$B52&\",\"&sel_country_code=VLOOKUP(\"DST-S-D,,,\"&$B52&\",\"&sel_country_code,data[],1),VLOOKUP(\"DST-S-D,,,\"&$B52&\",\"&sel_country_code,data[],7),0)","v":7488.73},{"$f":"IF(\"DST-S-DP,,,\"&$B52&\",\"&sel_country_code=VLOOKUP(\"DST-S-DP,,,\"&$B52&\",\"&sel_country_code,data[],1),VLOOKUP(\"DST-S-DP,,,\"&$B52&\",\"&sel_country_code,data[],7),0)","v":3500},{"$f":"IF(\"SEASHARE,,,\"&$B52&\",\"&sel_country_code=VLOOKUP(\"SEASHARE,,,\"&$B52&\",\"&sel_country_code,data[],1),VLOOKUP(\"SEASHARE,,,\"&$B52&\",\"&sel_country_code,data[],7),0)","v":0},{"$f":"IF(\"CAP-T,,,\"&$B52&\",\"&sel_country_code=VLOOKUP(\"CAP-T,,,\"&$B52&\",\"&sel_country_code,data[],1),VLOOKUP(\"CAP-T,,,\"&$B52&\",\"&sel_country_code,data[],7),0)","v":0},{"$f":"IF(can_use_pipeline=FALSE, TRUE,IF(LEFT($B52,3)=LEFT(sel_region_code,3),LEFT(sel_transport,4)=\"Ship\",$AQ52=0))","v":false},0,null,0,3500,0,0,3500,false,null,null,false,null,null,null,{"$f":"IFERROR(VLOOKUP(K52&\",\"&sel_chain_ely_proc_code&\",\"&sel_chain_deriv_proc_code,data_storage[],4,FALSE),0)","v":3.8399999999999997E-2}]
[null,"KAZ",null,null,null,null,null,null,null,{"$f":"IF($B296=sel_region_code,MATCH(sel_res_gen,$E$2:$I$2,0),MATCH(\"RES-HYBR\",$E$2:$I$2,0))","v":3},{"$f":"IF(INDEX($E296:$I296,J53)>0,INDEX($E$2:$I$2,J53),\"\")","v":"RES-HYBR"},null,true,true,0,1,null,null,null,null,null,null,null,null,null,null,null,null,null,null,null,null,null,null,null,null,false,null,true,null,null,{"$f":"IF(\"DST-S-D,,,\"&$B53&\",\"&sel_country_code=VLOOKUP(\"DST-S-D,,,\"&$B53&\",\"&sel_country_code,data[],1),VLOOKUP(\"DST-S-D,,,\"&$B53&\",\"&sel_country_code,data[],7),0)","v":6601.17},{"$f":"IF(\"DST-S-DP,,,\"&$B53&\",\"&sel_country_code=VLOOKUP(\"DST-S-DP,,,\"&$B53&\",\"&sel_country_code,data[],1),VLOOKUP(\"DST-S-DP,,,\"&$B53&\",\"&sel_country_code,data[],7),0)","v":3500},{"$f":"IF(\"SEASHARE,,,\"&$B53&\",\"&sel_country_code=VLOOKUP(\"SEASHARE,,,\"&$B53&\",\"&sel_country_code,data[],1),VLOOKUP(\"SEASHARE,,,\"&$B53&\",\"&sel_country_code,data[],7),0)","v":0},{"$f":"IF(\"CAP-T,,,\"&$B53&\",\"&sel_country_code=VLOOKUP(\"CAP-T,,,\"&$B53&\",\"&sel_country_code,data[],1),VLOOKUP(\"CAP-T,,,\"&$B53&\",\"&sel_country_code,data[],7),0)","v":0},{"$f":"IF(can_use_pipeline=FALSE, TRUE,IF(LEFT($B53,3)=LEFT(sel_region_code,3),LEFT(sel_transport,4)=\"Ship\",$AQ53=0))","v":false},0,null,0,3500,0,0,3500,false,null,null,false,null,null,null,{"$f":"IFERROR(VLOOKUP(K53&\",\"&sel_chain_ely_proc_code&\",\"&sel_chain_deriv_proc_code,data_storage[],4,FALSE),0)","v":3.8399999999999997E-2}]
[null,"KEN",null,null,null,null,null,null,null,{"$f":"IF($B297=sel_region_code,MATCH(sel_res_gen,$E$2:$I$2,0),MATCH(\"RES-HYBR\",$E$2:$I$2,0))","v":3},{"$f":"IF(INDEX($E297:$I297,J54)>0,INDEX($E$2:$I$2,J54),\"\")","v":"RES-HYBR"},null,true,true,0,1,null,null,null,null,null,null,null,null,null,null,null,null,null,null,null,null,null,null,null,null,true,null,false,null,null,{"$f":"IF(\"DST-S-D,,,\"&$B54&\",\"&sel_country_code=VLOOKUP(\"DST-S-D,,,\"&$B54&\",\"&sel_country_code,data[],1),VLOOKUP(\"DST-S-D,,,\"&$B54&\",\"&sel_country_code,data[],7),0)","v":12814.1},{"$f":"IF(\"DST-S-DP,,,\"&$B54&\",\"&sel_country_code=VLOOKUP(\"DST-S-DP,,,\"&$B54&\",\"&sel_country_code,data[],1),VLOOKUP(\"DST-S-DP,,,\"&$B54&\",\"&sel_country_code,data[],7),0)","v":0},{"$f":"IF(\"SEASHARE,,,\"&$B54&\",\"&sel_country_code=VLOOKUP(\"SEASHARE,,,\"&$B54&\",\"&sel_country_code,data[],1),VLOOKUP(\"SEASHARE,,,\"&$B54&\",\"&sel_country_code,data[],7),0)","v":0},{"$f":"IF(\"CAP-T,,,\"&$B54&\",\"&sel_country_code=VLOOKUP(\"CAP-T,,,\"&$B54&\",\"&sel_country_code,data[],1),VLOOKUP(\"CAP-T,,,\"&$B54&\",\"&sel_country_code,data[],7),0)","v":0},{"$f":"IF(can_use_pipeline=FALSE, TRUE,IF(LEFT($B54,3)=LEFT(sel_region_code,3),LEFT(sel_transport,4)=\"Ship\",$AQ54=0))","v":true},12814.1,null,0,0,0,0,12814.1,true,null,null,false,null,null,null,{"$f":"IFERROR(VLOOKUP(K54&\",\"&sel_chain_ely_proc_code&\",\"&sel_chain_deriv_proc_code,data_storage[],4,FALSE),0)","v":3.8399999999999997E-2}]
[null,"MAR",null,null,null,null,null,null,null,{"$f":"IF($B298=sel_region_code,MATCH(sel_res_gen,$E$2:$I$2,0),MATCH(\"RES-HYBR\",$E$2:$I$2,0))","v":3},{"$f":"IF(INDEX($E298:$I298,J55)>0,INDEX($E$2:$I$2,J55),\"\")","v":"RES-HYBR"},null,true,true,0,1,null,null,null,null,null,null,null,null,null,null,null,null,null,null,null,null,null,null,null,null,true,null,false,null,null,{"$f":"IF(\"DST-S-D,,,\"&$B55&\",\"&sel_country_code=VLOOKUP(\"DST-S-D,,,\"&$B55&\",\"&sel_country_code,data[],1),VLOOKUP(\"DST-S-D,,,\"&$B55&\",\"&sel_country_code,data[],7),0)","v":2668.15},{"$f":"IF(\"DST-S-DP,,,\"&$B55&\",\"&sel_country_code=VLOOKUP(\"DST-S-DP,,,\"&$B55&\",\"&sel_country_code,data[],1),VLOOKUP(\"DST-S-DP,,,\"&$B55&\",\"&sel_country_code,data[],7),0)","v":2500},{"$f":"IF(\"SEASHARE,,,\"&$B55&\",\"&sel_country_code=VLOOKUP(\"SEASHARE,,,\"&$B55&\",\"&sel_country_code,data[],1),VLOOKUP(\"SEASHARE,,,\"&$B55&\",\"&sel_country_code,data[],7),0)","v":0},{"$f":"IF(\"CAP-T,,,\"&$B55&\",\"&sel_country_code=VLOOKUP(\"CAP-T,,,\"&$B55&\",\"&sel_country_code,data[],1),VLOOKUP(\"CAP-T,,,\"&$B55&\",\"&sel_country_code,data[],7),0)","v":0},{"$f":"IF(can_use_pipeline=FALSE, TRUE,IF(LEFT($B55,3)=LEFT(sel_region_code,3),LEFT(sel_transport,4)=\"Ship\",$AQ55=0))","v":true},2668.15,null,0,0,0,0,2668.15,true,null,null,false,null,null,null,{"$f":"IFERROR(VLOOKUP(K55&\",\"&sel_chain_ely_proc_code&\",\"&sel_chain_deriv_proc_code,data_storage[],4,FALSE),0)","v":3.8399999999999997E-2}]
[null,"MAR-BEN",null,null,null,null,null,null,null,{"$f":"IF($B299=sel_region_code,MATCH(sel_res_gen,$E$2:$I$2,0),MATCH(\"RES-HYBR\",$E$2:$I$2,0))","v":3},{"$f":"IF(INDEX($E299:$I299,J56)>0,INDEX($E$2:$I$2,J56),\"\")","v":"RES-HYBR"},null,true,true,0,1,null,null,null,null,null,null,null,null,null,null,null,null,null,null,null,null,null,null,null,null,true,null,false,null,null,{"$f":"IF(\"DST-S-D,,,\"&$B56&\",\"&sel_country_code=VLOOKUP(\"DST-S-D,,,\"&$B56&\",\"&sel_country_code,data[],1),VLOOKUP(\"DST-S-D,,,\"&$B56&\",\"&sel_country_code,data[],7),0)","v":2668.15},{"$f":"IF(\"DST-S-DP,,,\"&$B56&\",\"&sel_country_code=VLOOKUP(\"DST-S-DP,,,\"&$B56&\",\"&sel_country_code,data[],1),VLOOKUP(\"DST-S-DP,,,\"&$B56&\",\"&sel_country_code,data[],7),0)","v":2500},{"$f":"IF(\"SEASHARE,,,\"&$B56&\",\"&sel_country_code=VLOOKUP(\"SEASHARE,,,\"&$B56&\",\"&sel_country_code,data[],1),VLOOKUP(\"SEASHARE,,,\"&$B56&\",\"&sel_country_code,data[],7),0)","v":0},{"$f":"IF(\"CAP-T,,,\"&$B56&\",\"&sel_country_code=VLOOKUP(\"CAP-T,,,\"&$B56&\",\"&sel_country_code,data[],1),VLOOKUP(\"CAP-T,,,\"&$B56&\",\"&sel_country_code,data[],7),0)","v":0},{"$f":"IF(can_use_pipeline=FALSE, TRUE,IF(LEFT($B56,3)=LEFT(sel_region_code,3),LEFT(sel_transport,4)=\"Ship\",$AQ56=0))","v":true},2668.15,null,0,0,0,0,2668.15,true,null,null,false,null,null,null,{"$f":"IFERROR(VLOOKUP(K56&\",\"&sel_chain_ely_proc_code&\",\"&sel_chain_deriv_proc_code,data_storage[],4,FALSE),0)","v":3.8399999999999997E-2}]
[null,"MAR-CAS",null,null,null,null,null,null,null,{"$f":"IF($B300=sel_region_code,MATCH(sel_res_gen,$E$2:$I$2,0),MATCH(\"RES-HYBR\",$E$2:$I$2,0))","v":3},{"$f":"IF(INDEX($E300:$I300,J57)>0,INDEX($E$2:$I$2,J57),\"\")","v":"RES-HYBR"},null,true,true,0,1,null,null,null,null,null,null,null,null,null,null,null,null,null,null,null,null,null,null,null,null,true,null,false,null,null,{"$f":"IF(\"DST-S-D,,,\"&$B57&\",\"&sel_country_code=VLOOKUP(\"DST-S-D,,,\"&$B57&\",\"&sel_country_code,data[],1),VLOOKUP(\"DST-S-D,,,\"&$B57&\",\"&sel_country_code,data[],7),0)","v":2668.15},{"$f":"IF(\"DST-S-DP,,,\"&$B57&\",\"&sel_country_code=VLOOKUP(\"DST-S-DP,,,\"&$B57&\",\"&sel_country_code,data[],1),VLOOKUP(\"DST-S-DP,,,\"&$B57&\",\"&sel_country_code,data[],7),0)","v":2500},{"$f":"IF(\"SEASHARE,,,\"&$B57&\",\"&sel_country_code=VLOOKUP(\"SEASHARE,,,\"&$B57&\",\"&sel_country_code,data[],1),VLOOKUP(\"SEASHARE,,,\"&$B57&\",\"&sel_country_code,data[],7),0)","v":0},{"$f":"IF(\"CAP-T,,,\"&$B57&\",\"&sel_country_code=VLOOKUP(\"CAP-T,,,\"&$B57&\",\"&sel_country_code,data[],1),VLOOKUP(\"CAP-T,,,\"&$B57&\",\"&sel_country_code,data[],7),0)","v":0},{"$f":"IF(can_use_pipeline=FALSE, TRUE,IF(LEFT($B57,3)=LEFT(sel_region_code,3),LEFT(sel_transport,4)=\"Ship\",$AQ57=0))","v":true},2668.15,null,0,0,0,0,2668.15,true,null,null,false,null,null,null,{"$f":"IFERROR(VLOOKUP(K57&\",\"&sel_chain_ely_proc_code&\",\"&sel_chain_deriv_proc_code,data_storage[],4,FALSE),0)","v":3.8399999999999997E-2}]
[null,"MAR-DAK",null,null,null,null,null,null,null,{"$f":"IF($B301=sel_region_code,MATCH(sel_res_gen,$E$2:$I$2,0),MATCH(\"RES-HYBR\",$E$2:$I$2,0))","v":3},{"$f":"IF(INDEX($E301:$I301,J58)>0,INDEX($E$2:$I$2,J58),\"\")","v":"RES-HYBR"},null,true,true,0,1,null,null,null,null,null,null,null,null,null,null,null,null,null,null,null,null,null,null,null,null,true,null,false,null,null,{"$f":"IF(\"DST-S-D,,,\"&$B58&\",\"&sel_country_code=VLOOKUP(\"DST-S-D,,,\"&$B58&\",\"&sel_country_code,data[],1),VLOOKUP(\"DST-S-D,,,\"&$B58&\",\"&sel_country_code,data[],7),0)","v":2668.15},{"$f":"IF(\"DST-S-DP,,,\"&$B58&\",\"&sel_country_code=VLOOKUP(\"DST-S-DP,,,\"&$B58&\",\"&sel_country_code,data[],1),VLOOKUP(\"DST-S-DP,,,\"&$B58&\",\"&sel_country_code,data[],7),0)","v":2500},{"$f":"IF(\"SEASHARE,,,\"&$B58&\",\"&sel_country_code=VLOOKUP(\"SEASHARE,,,\"&$B58&\",\"&sel_country_code,data[],1),VLOOKUP(\"SEASHARE,,,\"&$B58&\",\"&sel_country_code,data[],7),0)","v":0},{"$f":"IF(\"CAP-T,,,\"&$B58&\",\"&sel_country_code=VLOOKUP(\"CAP-T,,,\"&$B58&\",\"&sel_country_code,data[],1),VLOOKUP(\"CAP-T,,,\"&$B58&\",\"&sel_country_code,data[],7),0)","v":0},{"$f":"IF(can_use_pipeline=FALSE, TRUE,IF(LEFT($B58,3)=LEFT(sel_region_code,3),LEFT(sel_transport,4)=\"Ship\",$AQ58=0))","v":true},2668.15,null,0,0,0,0,2668.15,true,null,null,false,null,null,null,{"$f":"IFERROR(VLOOKUP(K58&\",\"&sel_chain_ely_proc_code&\",\"&sel_chain_deriv_proc_code,data_storage[],4,FALSE),0)","v":3.8399999999999997E-2}]
[null,"MAR-DRA",null,null,null,null,null,null,null,{"$f":"IF($B302=sel_region_code,MATCH(sel_res_gen,$E$2:$I$2,0),MATCH(\"RES-HYBR\",$E$2:$I$2,0))","v":3},{"$f":"IF(INDEX($E302:$I302,J59)>0,INDEX($E$2:$I$2,J59),\"\")","v":"RES-HYBR"},null,true,true,0,1,null,null,null,null,null,null,null,null,null,null,null,null,null,null,null,null,null,null,null,null,true,null,false,null,null,{"$f":"IF(\"DST-S-D,,,\"&$B59&\",\"&sel_country_code=VLOOKUP(\"DST-S-D,,,\"&$B59&\",\"&sel_country_code,data[],1),VLOOKUP(\"DST-S-D,,,\"&$B59&\",\"&sel_country_code,data[],7),0)","v":2668.15},{"$f":"IF(\"DST-S-DP,,,\"&$B59&\",\"&sel_country_code=VLOOKUP(\"DST-S-DP,,,\"&$B59&\",\"&sel_country_code,data[],1),VLOOKUP(\"DST-S-DP,,,\"&$B59&\",\"&sel_country_code,data[],7),0)","v":2500},{"$f":"IF(\"SEASHARE,,,\"&$B59&\",\"&sel_country_code=VLOOKUP(\"SEASHARE,,,\"&$B59&\",\"&sel_country_code,data[],1),VLOOKUP(\"SEASHARE,,,\"&$B59&\",\"&sel_country_code,data[],7),0)","v":0},{"$f":"IF(\"CAP-T,,,\"&$B59&\",\"&sel_country_code=VLOOKUP(\"CAP-T,,,\"&$B59&\",\"&sel_country_code,data[],1),VLOOKUP(\"CAP-T,,,\"&$B59&\",\"&sel_country_code,data[],7),0)","v":0},{"$f":"IF(can_use_pipeline=FALSE, TRUE,IF(LEFT($B59,3)=LEFT(sel_region_code,3),LEFT(sel_transport,4)=\"Ship\",$AQ59=0))","v":true},2668.15,null,0,0,0,0,2668.15,true,null,null,false,null,null,null,{"$f":"IFERROR(VLOOKUP(K59&\",\"&sel_chain_ely_proc_code&\",\"&sel_chain_deriv_proc_code,data_storage[],4,FALSE),0)","v":3.8399999999999997E-2}]
[null,"MAR-FES",null,null,null,null,null,null,null,{"$f":"IF($B303=sel_region_code,MATCH(sel_res_gen,$E$2:$I$2,0),MATCH(\"RES-HYBR\",$E$2:$I$2,0))","v":3},{"$f":"IF(INDEX($E303:$I303,J60)>0,INDEX($E$2:$I$2,J60),\"\")","v":"RES-HYBR"},null,true,true,0,1,null,null,null,null,null,null,null,null,null,null,null,null,null,null,null,null,null,null,null,null,true,null,false,null,null,{"$f":"IF(\"DST-S-D,,,\"&$B60&\",\"&sel_country_code=VLOOKUP(\"DST-S-D,,,\"&$B60&\",\"&sel_country_code,data[],1),VLOOKUP(\"DST-S-D,,,\"&$B60&\",\"&sel_country_code,data[],7),0)","v":2668.15},{"$f":"IF(\"DST-S-DP,,,\"&$B60&\",\"&sel_country_code=VLOOKUP(\"DST-S-DP,,,\"&$B60&\",\"&sel_country_code,data[],1),VLOOKUP(\"DST-S-DP,,,\"&$B60&\",\"&sel_country_code,data[],7),0)","v":2500},{"$f":"IF(\"SEASHARE,,,\"&$B60&\",\"&sel_country_code=VLOOKUP(\"SEASHARE,,,\"&$B60&\",\"&sel_country_code,data[],1),VLOOKUP(\"SEASHARE,,,\"&$B60&\",\"&sel_country_code,data[],7),0)","v":0},{"$f":"IF(\"CAP-T,,,\"&$B60&\",\"&sel_country_code=VLOOKUP(\"CAP-T,,,\"&$B60&\",\"&sel_country_code,data[],1),VLOOKUP(\"CAP-T,,,\"&$B60&\",\"&sel_country_code,data[],7),0)","v":0},{"$f":"IF(can_use_pipeline=FALSE, TRUE,IF(LEFT($B60,3)=LEFT(sel_region_code,3),LEFT(sel_transport,4)=\"Ship\",$AQ60=0))","v":true},2668.15,null,0,0,0,0,2668.15,true,null,null,false,null,null,null,{"$f":"IFERROR(VLOOKUP(K60&\",\"&sel_chain_ely_proc_code&\",\"&sel_chain_deriv_proc_code,data_storage[],4,FALSE),0)","v":3.8399999999999997E-2}]
[null,"MAR-GUE",null,null,null,null,null,null,null,{"$f":"IF($B304=sel_region_code,MATCH(sel_res_gen,$E$2:$I$2,0),MATCH(\"RES-HYBR\",$E$2:$I$2,0))","v":3},{"$f":"IF(INDEX($E304:$I304,J61)>0,INDEX($E$2:$I$2,J61),\"\")","v":"RES-HYBR"},null,true,true,0,1,null,null,null,null,null,null,null,null,null,null,null,null,null,null,null,null,null,null,null,null,true,null,false,null,null,{"$f":"IF(\"DST-S-D,,,\"&$B61&\",\"&sel_country_code=VLOOKUP(\"DST-S-D,,,\"&$B61&\",\"&sel_country_code,data[],1),VLOOKUP(\"DST-S-D,,,\"&$B61&\",\"&sel_country_code,data[],7),0)","v":2668.15},{"$f":"IF(\"DST-S-DP,,,\"&$B61&\",\"&sel_country_code=VLOOKUP(\"DST-S-DP,,,\"&$B61&\",\"&sel_country_code,data[],1),VLOOKUP(\"DST-S-DP,,,\"&$B61&\",\"&sel_country_code,data[],7),0)","v":2500},{"$f":"IF(\"SEASHARE,,,\"&$B61&\",\"&sel_country_code=VLOOKUP(\"SEASHARE,,,\"&$B61&\",\"&sel_country_code,data[],1),VLOOKUP(\"SEASHARE,,,\"&$B61&\",\"&sel_country_code,data[],7),0)","v":0},{"$f":"IF(\"CAP-T,,,\"&$B61&\",\"&sel_country_code=VLOOKUP(\"CAP-T,,,\"&$B61&\",\"&sel_country_code,data[],1),VLOOKUP(\"CAP-T,,,\"&$B61&\",\"&sel_country_code,data[],7),0)","v":0},{"$f":"IF(can_use_pipeline=FALSE, TRUE,IF(LEFT($B61,3)=LEFT(sel_region_code,3),LEFT(sel_transport,4)=\"Ship\",$AQ61=0))","v":true},2668.15,null,0,0,0,0,2668.15,true,null,null,false,null,null,null,{"$f":"IFERROR(VLOOKUP(K61&\",\"&sel_chain_ely_proc_code&\",\"&sel_chain_deriv_proc_code,data_storage[],4,FALSE),0)","v":3.8399999999999997E-2}]
[null,"MAR-LAA",null,null,null,null,null,null,null,{"$f":"IF($B305=sel_region_code,MATCH(sel_res_gen,$E$2:$I$2,0),MATCH(\"RES-HYBR\",$E$2:$I$2,0))","v":3},{"$f":"IF(INDEX($E305:$I305,J62)>0,INDEX($E$2:$I$2,J62),\"\")","v":"RES-HYBR"},null,true,true,0,1,null,null,null,null,null,null,null,null,null,null,null,null,null,null,null,null,null,null,null,null,true,null,false,null,null,{"$f":"IF(\"DST-S-D,,,\"&$B62&\",\"&sel_country_code=VLOOKUP(\"DST-S-D,,,\"&$B62&\",\"&sel_country_code,data[],1),VLOOKUP(\"DST-S-D,,,\"&$B62&\",\"&sel_country_code,data[],7),0)","v":2668.15},{"$f":"IF(\"DST-S-DP,,,\"&$B62&\",\"&sel_country_code=VLOOKUP(\"DST-S-DP,,,\"&$B62&\",\"&sel_country_code,data[],1),VLOOKUP(\"DST-S-DP,,,\"&$B62&\",\"&sel_country_code,data[],7),0)","v":2500},{"$f":"IF(\"SEASHARE,,,\"&$B62&\",\"&sel_country_code=VLOOKUP(\"SEASHARE,,,\"&$B62&\",\"&sel_country_code,data[],1),VLOOKUP(\"SEASHARE,,,\"&$B62&\",\"&sel_country_code,data[],7),0)","v":0},{"$f":"IF(\"CAP-T,,,\"&$B62&\",\"&sel_country_code=VLOOKUP(\"CAP-T,,,\"&$B62&\",\"&sel_country_code,data[],1),VLOOKUP(\"CAP-T,,,\"&$B62&\",\"&sel_country_code,data[],7),0)","v":0},{"$f":"IF(can_use_pipeline=FALSE, TRUE,IF(LEFT($B62,3)=LEFT(sel_region_code,3),LEFT(sel_transport,4)=\"Ship\",$AQ62=0))","v":true},2668.15,null,0,0,0,0,2668.15,true,null,null,false,null,null,null,{"$f":"IFERROR(VLOOKUP(K62&\",\"&sel_chain_ely_proc_code&\",\"&sel_chain_deriv_proc_code,data_storage[],4,FALSE),0)","v":3.8399999999999997E-2}]
[null,"MAR-LOR",null,null,null,null,null,null,null,{"$f":"IF($B306=sel_region_code,MATCH(sel_res_gen,$E$2:$I$2,0),MATCH(\"RES-HYBR\",$E$2:$I$2,0))","v":3},{"$f":"IF(INDEX($E306:$I306,J63)>0,INDEX($E$2:$I$2,J63),\"\")","v":"RES-HYBR"},null,true,true,0,1,null,null,null,null,null,null,null,null,null,null,null,null,null,null,null,null,null,null,null,null,true,null,false,null,null,{"$f":"IF(\"DST-S-D,,,\"&$B63&\",\"&sel_country_code=VLOOKUP(\"DST-S-D,,,\"&$B63&\",\"&sel_country_code,data[],1),VLOOKUP(\"DST-S-D,,,\"&$B63&\",\"&sel_country_code,data[],7),0)","v":2668.15},{"$f":"IF(\"DST-S-DP,,,\"&$B63&\",\"&sel_country_code=VLOOKUP(\"DST-S-DP,,,\"&$B63&\",\"&sel_country_code,data[],1),VLOOKUP(\"DST-S-DP,,,\"&$B63&\",\"&sel_country_code,data[],7),0)","v":2500},{"$f":"IF(\"SEASHARE,,,\"&$B63&\",\"&sel_country_code=VLOOKUP(\"SEASHARE,,,\"&$B63&\",\"&sel_country_code,data[],1),VLOOKUP(\"SEASHARE,,,\"&$B63&\",\"&sel_country_code,data[],7),0)","v":0},{"$f":"IF(\"CAP-T,,,\"&$B63&\",\"&sel_country_code=VLOOKUP(\"CAP-T,,,\"&$B63&\",\"&sel_country_code,data[],1),VLOOKUP(\"CAP-T,,,\"&$B63&\",\"&sel_country_code,data[],7),0)","v":0},{"$f":"IF(can_use_pipeline=FALSE, TRUE,IF(LEFT($B63,3)=LEFT(sel_region_code,3),LEFT(sel_transport,4)=\"Ship\",$AQ63=0))","v":true},2668.15,null,0,0,0,0,2668.15,true,null,null,false,null,null,null,{"$f":"IFERROR(VLOOKUP(K63&\",\"&sel_chain_ely_proc_code&\",\"&sel_chain_deriv_proc_code,data_storage[],4,FALSE),0)","v":3.8399999999999997E-2}]
[null,"MAR-MAR",null,null,null,null,null,null,null,{"$f":"IF($B307=sel_region_code,MATCH(sel_res_gen,$E$2:$I$2,0),MATCH(\"RES-HYBR\",$E$2:$I$2,0))","v":3},{"$f":"IF(INDEX($E307:$I307,J64)>0,INDEX($E$2:$I$2,J64),\"\")","v":"RES-HYBR"},null,true,true,0,1,null,null,null,null,null,null,null,null,null,null,null,null,null,null,null,null,null,null,null,null,true,null,false,null,null,{"$f":"IF(\"DST-S-D,,,\"&$B64&\",\"&sel_country_code=VLOOKUP(\"DST-S-D,,,\"&$B64&\",\"&sel_country_code,data[],1),VLOOKUP(\"DST-S-D,,,\"&$B64&\",\"&sel_country_code,data[],7),0)","v":2668.15},{"$f":"IF(\"DST-S-DP,,,\"&$B64&\",\"&sel_country_code=VLOOKUP(\"DST-S-DP,,,\"&$B64&\",\"&sel_country_code,data[],1),VLOOKUP(\"DST-S-DP,,,\"&$B64&\",\"&sel_country_code,data[],7),0)","v":2500},{"$f":"IF(\"SEASHARE,,,\"&$B64&\",\"&sel_country_code=VLOOKUP(\"SEASHARE,,,\"&$B64&\",\"&sel_country_code,data[],1),VLOOKUP(\"SEASHARE,,,\"&$B64&\",\"&sel_country_code,data[],7),0)","v":0},{"$f":"IF(\"CAP-T,,,\"&$B64&\",\"&sel_country_code=VLOOKUP(\"CAP-T,,,\"&$B64&\",\"&sel_country_code,data[],1),VLOOKUP(\"CAP-T,,,\"&$B64&\",\"&sel_country_code,data[],7),0)","v":0},{"$f":"IF(can_use_pipeline=FALSE, TRUE,IF(LEFT($B64,3)=LEFT(sel_region_code,3),LEFT(sel_transport,4)=\"Ship\",$AQ64=0))","v":true},2668.15,null,0,0,0,0,2668.15,true,null,null,false,null,null,null,{"$f":"IFERROR(VLOOKUP(K64&\",\"&sel_chain_ely_proc_code&\",\"&sel_chain_deriv_proc_code,data_storage[],4,FALSE),0)","v":3.8399999999999997E-2}]
[null,"MAR-RAB",null,null,null,null,null,null,null,{"$f":"IF($B308=sel_region_code,MATCH(sel_res_gen,$E$2:$I$2,0),MATCH(\"RES-HYBR\",$E$2:$I$2,0))","v":3},{"$f":"IF(INDEX($E308:$I308,J65)>0,INDEX($E$2:$I$2,J65),\"\")","v":"RES-HYBR"},null,true,true,0,1,null,null,null,null,null,null,null,null,null,null,null,null,null,null,null,null,null,null,null,null,true,null,false,null,null,{"$f":"IF(\"DST-S-D,,,\"&$B65&\",\"&sel_country_code=VLOOKUP(\"DST-S-D,,,\"&$B65&\",\"&sel_country_code,data[],1),VLOOKUP(\"DST-S-D,,,\"&$B65&\",\"&sel_country_code,data[],7),0)","v":2668.15},{"$f":"IF(\"DST-S-DP,,,\"&$B65&\",\"&sel_country_code=VLOOKUP(\"DST-S-DP,,,\"&$B65&\",\"&sel_country_code,data[],1),VLOOKUP(\"DST-S-DP,,,\"&$B65&\",\"&sel_country_code,data[],7),0)","v":2500},{"$f":"IF(\"SEASHARE,,,\"&$B65&\",\"&sel_country_code=VLOOKUP(\"SEASHARE,,,\"&$B65&\",\"&sel_country_code,data[],1),VLOOKUP(\"SEASHARE,,,\"&$B65&\",\"&sel_country_code,data[],7),0)","v":0},{"$f":"IF(\"CAP-T,,,\"&$B65&\",\"&sel_country_code=VLOOKUP(\"CAP-T,,,\"&$B65&\",\"&sel_country_code,data[],1),VLOOKUP(\"CAP-T,,,\"&$B65&\",\"&sel_country_code,data[],7),0)","v":0},{"$f":"IF(can_use_pipeline=FALSE, TRUE,IF(LEFT($B65,3)=LEFT(sel_region_code,3),LEFT(sel_transport,4)=\"Ship\",$AQ65=0))","v":true},2668.15,null,0,0,0,0,2668.15,true,null,null,false,null,null,null,{"$f":"IFERROR(VLOOKUP(K65&\",\"&sel_chain_ely_proc_code&\",\"&sel_chain_deriv_proc_code,data_storage[],4,FALSE),0)","v":3.8399999999999997E-2}]
[null,"MAR-SOU",null,null,null,null,null,null,null,{"$f":"IF($B309=sel_region_code,MATCH(sel_res_gen,$E$2:$I$2,0),MATCH(\"RES-HYBR\",$E$2:$I$2,0))","v":3},{"$f":"IF(INDEX($E309:$I309,J66)>0,INDEX($E$2:$I$2,J66),\"\")","v":"RES-HYBR"},null,true,true,0,1,null,null,null,null,null,null,null,null,null,null,null,null,null,null,null,null,null,null,null,null,true,null,false,null,null,{"$f":"IF(\"DST-S-D,,,\"&$B66&\",\"&sel_country_code=VLOOKUP(\"DST-S-D,,,\"&$B66&\",\"&sel_country_code,data[],1),VLOOKUP(\"DST-S-D,,,\"&$B66&\",\"&sel_country_code,data[],7),0)","v":2668.15},{"$f":"IF(\"DST-S-DP,,,\"&$B66&\",\"&sel_country_code=VLOOKUP(\"DST-S-DP,,,\"&$B66&\",\"&sel_country_code,data[],1),VLOOKUP(\"DST-S-DP,,,\"&$B66&\",\"&sel_country_code,data[],7),0)","v":2500},{"$f":"IF(\"SEASHARE,,,\"&$B66&\",\"&sel_country_code=VLOOKUP(\"SEASHARE,,,\"&$B66&\",\"&sel_country_code,data[],1),VLOOKUP(\"SEASHARE,,,\"&$B66&\",\"&sel_country_code,data[],7),0)","v":0},{"$f":"IF(\"CAP-T,,,\"&$B66&\",\"&sel_country_code=VLOOKUP(\"CAP-T,,,\"&$B66&\",\"&sel_country_code,data[],1),VLOOKUP(\"CAP-T,,,\"&$B66&\",\"&sel_country_code,data[],7),0)","v":0},{"$f":"IF(can_use_pipeline=FALSE, TRUE,IF(LEFT($B66,3)=LEFT(sel_region_code,3),LEFT(sel_transport,4)=\"Ship\",$AQ66=0))","v":true},2668.15,null,0,0,0,0,2668.15,true,null,null,false,null,null,null,{"$f":"IFERROR(VLOOKUP(K66&\",\"&sel_chain_ely_proc_code&\",\"&sel_chain_deriv_proc_code,data_storage[],4,FALSE),0)","v":3.8399999999999997E-2}]
[null,"MAR-TAN",null,null,null,null,null,null,null,{"$f":"IF($B310=sel_region_code,MATCH(sel_res_gen,$E$2:$I$2,0),MATCH(\"RES-HYBR\",$E$2:$I$2,0))","v":3},{"$f":"IF(INDEX($E310:$I310,J67)>0,INDEX($E$2:$I$2,J67),\"\")","v":"RES-HYBR"},null,true,true,0,1,null,null,null,null,null,null,null,null,null,null,null,null,null,null,null,null,null,null,null,null,true,null,false,null,null,{"$f":"IF(\"DST-S-D,,,\"&$B67&\",\"&sel_country_code=VLOOKUP(\"DST-S-D,,,\"&$B67&\",\"&sel_country_code,data[],1),VLOOKUP(\"DST-S-D,,,\"&$B67&\",\"&sel_country_code,data[],7),0)","v":2668.15},{"$f":"IF(\"DST-S-DP,,,\"&$B67&\",\"&sel_country_code=VLOOKUP(\"DST-S-DP,,,\"&$B67&\",\"&sel_country_code,data[],1),VLOOKUP(\"DST-S-DP,,,\"&$B67&\",\"&sel_country_code,data[],7),0)","v":2500},{"$f":"IF(\"SEASHARE,,,\"&$B67&\",\"&sel_country_code=VLOOKUP(\"SEASHARE,,,\"&$B67&\",\"&sel_country_code,data[],1),VLOOKUP(\"SEASHARE,,,\"&$B67&\",\"&sel_country_code,data[],7),0)","v":0},{"$f":"IF(\"CAP-T,,,\"&$B67&\",\"&sel_country_code=VLOOKUP(\"CAP-T,,,\"&$B67&\",\"&sel_country_code,data[],1),VLOOKUP(\"CAP-T,,,\"&$B67&\",\"&sel_country_code,data[],7),0)","v":0},{"$f":"IF(can_use_pipeline=FALSE, TRUE,IF(LEFT($B67,3)=LEFT(sel_region_code,3),LEFT(sel_transport,4)=\"Ship\",$AQ67=0))","v":true},2668.15,null,0,0,0,0,2668.15,true,null,null,false,null,null,null,{"$f":"IFERROR(VLOOKUP(K67&\",\"&sel_chain_ely_proc_code&\",\"&sel_chain_deriv_proc_code,data_storage[],4,FALSE),0)","v":3.8399999999999997E-2}]
[null,"MEX",null,null,null,null,null,null,null,{"$f":"IF($B311=sel_region_code,MATCH(sel_res_gen,$E$2:$I$2,0),MATCH(\"RES-HYBR\",$E$2:$I$2,0))","v":3},{"$f":"IF(INDEX($E311:$I311,J68)>0,INDEX($E$2:$I$2,J68),\"\")","v":"RES-HYBR"},null,true,true,0,1,null,null,null,null,null,null,null,null,null,null,null,null,null,null,null,null,null,null,null,null,true,null,false,null,null,{"$f":"IF(\"DST-S-D,,,\"&$B68&\",\"&sel_country_code=VLOOKUP(\"DST-S-D,,,\"&$B68&\",\"&sel_country_code,data[],1),VLOOKUP(\"DST-S-D,,,\"&$B68&\",\"&sel_country_code,data[],7),0)","v":10256.299999999999},{"$f":"IF(\"DST-S-DP,,,\"&$B68&\",\"&sel_country_code=VLOOKUP(\"DST-S-DP,,,\"&$B68&\",\"&sel_country_code,data[],1),VLOOKUP(\"DST-S-DP,,,\"&$B68&\",\"&sel_country_code,data[],7),0)","v":0},{"$f":"IF(\"SEASHARE,,,\"&$B68&\",\"&sel_country_code=VLOOKUP(\"SEASHARE,,,\"&$B68&\",\"&sel_country_code,data[],1),VLOOKUP(\"SEASHARE,,,\"&$B68&\",\"&sel_country_code,data[],7),0)","v":0},{"$f":"IF(\"CAP-T,,,\"&$B68&\",\"&sel_country_code=VLOOKUP(\"CAP-T,,,\"&$B68&\",\"&sel_country_code,data[],1),VLOOKUP(\"CAP-T,,,\"&$B68&\",\"&sel_country_code,data[],7),0)","v":0},{"$f":"IF(can_use_pipeline=FALSE, TRUE,IF(LEFT($B68,3)=LEFT(sel_region_code,3),LEFT(sel_transport,4)=\"Ship\",$AQ68=0))","v":true},10256.299999999999,null,0,0,0,0,10256.299999999999,true,null,null,false,null,null,null,{"$f":"IFERROR(VLOOKUP(K68&\",\"&sel_chain_ely_proc_code&\",\"&sel_chain_deriv_proc_code,data_storage[],4,FALSE),0)","v":3.8399999999999997E-2}]
[null,"MRT",null,null,null,null,null,null,null,{"$f":"IF($B312=sel_region_code,MATCH(sel_res_gen,$E$2:$I$2,0),MATCH(\"RES-HYBR\",$E$2:$I$2,0))","v":3},{"$f":"IF(INDEX($E312:$I312,J69)>0,INDEX($E$2:$I$2,J69),\"\")","v":"RES-HYBR"},null,true,true,0,1,null,null,null,null,null,null,null,null,null,null,null,null,null,null,null,null,null,null,null,null,false,null,true,null,null,{"$f":"IF(\"DST-S-D,,,\"&$B69&\",\"&sel_country_code=VLOOKUP(\"DST-S-D,,,\"&$B69&\",\"&sel_country_code,data[],1),VLOOKUP(\"DST-S-D,,,\"&$B69&\",\"&sel_country_code,data[],7),0)","v":4171.75},{"$f":"IF(\"DST-S-DP,,,\"&$B69&\",\"&sel_country_code=VLOOKUP(\"DST-S-DP,,,\"&$B69&\",\"&sel_country_code,data[],1),VLOOKUP(\"DST-S-DP,,,\"&$B69&\",\"&sel_country_code,data[],7),0)","v":5000},{"$f":"IF(\"SEASHARE,,,\"&$B69&\",\"&sel_country_code=VLOOKUP(\"SEASHARE,,,\"&$B69&\",\"&sel_country_code,data[],1),VLOOKUP(\"SEASHARE,,,\"&$B69&\",\"&sel_country_code,data[],7),0)","v":0},{"$f":"IF(\"CAP-T,,,\"&$B69&\",\"&sel_country_code=VLOOKUP(\"CAP-T,,,\"&$B69&\",\"&sel_country_code,data[],1),VLOOKUP(\"CAP-T,,,\"&$B69&\",\"&sel_country_code,data[],7),0)","v":0},{"$f":"IF(can_use_pipeline=FALSE, TRUE,IF(LEFT($B69,3)=LEFT(sel_region_code,3),LEFT(sel_transport,4)=\"Ship\",$AQ69=0))","v":false},0,null,0,5000,0,0,5000,false,null,null,false,null,null,null,{"$f":"IFERROR(VLOOKUP(K69&\",\"&sel_chain_ely_proc_code&\",\"&sel_chain_deriv_proc_code,data_storage[],4,FALSE),0)","v":3.8399999999999997E-2}]
[null,"NAM",null,null,null,null,null,null,null,{"$f":"IF($B313=sel_region_code,MATCH(sel_res_gen,$E$2:$I$2,0),MATCH(\"RES-HYBR\",$E$2:$I$2,0))","v":3},{"$f":"IF(INDEX($E313:$I313,J70)>0,INDEX($E$2:$I$2,J70),\"\")","v":"RES-HYBR"},null,true,true,0,1,null,null,null,null,null,null,null,null,null,null,null,null,null,null,null,null,null,null,null,null,true,null,false,null,null,{"$f":"IF(\"DST-S-D,,,\"&$B70&\",\"&sel_country_code=VLOOKUP(\"DST-S-D,,,\"&$B70&\",\"&sel_country_code,data[],1),VLOOKUP(\"DST-S-D,,,\"&$B70&\",\"&sel_country_code,data[],7),0)","v":10723.8},{"$f":"IF(\"DST-S-DP,,,\"&$B70&\",\"&sel_country_code=VLOOKUP(\"DST-S-DP,,,\"&$B70&\",\"&sel_country_code,data[],1),VLOOKUP(\"DST-S-DP,,,\"&$B70&\",\"&sel_country_code,data[],7),0)","v":0},{"$f":"IF(\"SEASHARE,,,\"&$B70&\",\"&sel_country_code=VLOOKUP(\"SEASHARE,,,\"&$B70&\",\"&sel_country_code,data[],1),VLOOKUP(\"SEASHARE,,,\"&$B70&\",\"&sel_country_code,data[],7),0)","v":0},{"$f":"IF(\"CAP-T,,,\"&$B70&\",\"&sel_country_code=VLOOKUP(\"CAP-T,,,\"&$B70&\",\"&sel_country_code,data[],1),VLOOKUP(\"CAP-T,,,\"&$B70&\",\"&sel_country_code,data[],7),0)","v":0},{"$f":"IF(can_use_pipeline=FALSE, TRUE,IF(LEFT($B70,3)=LEFT(sel_region_code,3),LEFT(sel_transport,4)=\"Ship\",$AQ70=0))","v":true},10723.8,null,0,0,0,0,10723.8,true,null,null,false,null,null,null,{"$f":"IFERROR(VLOOKUP(K70&\",\"&sel_chain_ely_proc_code&\",\"&sel_chain_deriv_proc_code,data_storage[],4,FALSE),0)","v":3.8399999999999997E-2}]
[null,"NOR",null,null,null,null,null,null,null,{"$f":"IF($B314=sel_region_code,MATCH(sel_res_gen,$E$2:$I$2,0),MATCH(\"RES-HYBR\",$E$2:$I$2,0))","v":3},{"$f":"IF(INDEX($E314:$I314,J71)>0,INDEX($E$2:$I$2,J71),\"\")","v":"RES-HYBR"},null,true,true,0,1,null,null,null,null,null,null,null,null,null,null,null,null,null,null,null,null,null,null,null,null,false,null,true,null,null,{"$f":"IF(\"DST-S-D,,,\"&$B71&\",\"&sel_country_code=VLOOKUP(\"DST-S-D,,,\"&$B71&\",\"&sel_country_code,data[],1),VLOOKUP(\"DST-S-D,,,\"&$B71&\",\"&sel_country_code,data[],7),0)","v":605.048},{"$f":"IF(\"DST-S-DP,,,\"&$B71&\",\"&sel_country_code=VLOOKUP(\"DST-S-DP,,,\"&$B71&\",\"&sel_country_code,data[],1),VLOOKUP(\"DST-S-DP,,,\"&$B71&\",\"&sel_country_code,data[],7),0)","v":500},{"$f":"IF(\"SEASHARE,,,\"&$B71&\",\"&sel_country_code=VLOOKUP(\"SEASHARE,,,\"&$B71&\",\"&sel_country_code,data[],1),VLOOKUP(\"SEASHARE,,,\"&$B71&\",\"&sel_country_code,data[],7),0)","v":1},{"$f":"IF(\"CAP-T,,,\"&$B71&\",\"&sel_country_code=VLOOKUP(\"CAP-T,,,\"&$B71&\",\"&sel_country_code,data[],1),VLOOKUP(\"CAP-T,,,\"&$B71&\",\"&sel_country_code,data[],7),0)","v":1},{"$f":"IF(can_use_pipeline=FALSE, TRUE,IF(LEFT($B71,3)=LEFT(sel_region_code,3),LEFT(sel_transport,4)=\"Ship\",$AQ71=0))","v":false},0,null,0,0,500,0,500,false,null,null,false,null,null,null,{"$f":"IFERROR(VLOOKUP(K71&\",\"&sel_chain_ely_proc_code&\",\"&sel_chain_deriv_proc_code,data_storage[],4,FALSE),0)","v":3.8399999999999997E-2}]
[null,"PER",null,null,null,null,null,null,null,{"$f":"IF($B315=sel_region_code,MATCH(sel_res_gen,$E$2:$I$2,0),MATCH(\"RES-HYBR\",$E$2:$I$2,0))","v":3},{"$f":"IF(INDEX($E315:$I315,J72)>0,INDEX($E$2:$I$2,J72),\"\")","v":"RES-HYBR"},null,true,true,0,1,null,null,null,null,null,null,null,null,null,null,null,null,null,null,null,null,null,null,null,null,true,null,false,null,null,{"$f":"IF(\"DST-S-D,,,\"&$B72&\",\"&sel_country_code=VLOOKUP(\"DST-S-D,,,\"&$B72&\",\"&sel_country_code,data[],1),VLOOKUP(\"DST-S-D,,,\"&$B72&\",\"&sel_country_code,data[],7),0)","v":12282.46},{"$f":"IF(\"DST-S-DP,,,\"&$B72&\",\"&sel_country_code=VLOOKUP(\"DST-S-DP,,,\"&$B72&\",\"&sel_country_code,data[],1),VLOOKUP(\"DST-S-DP,,,\"&$B72&\",\"&sel_country_code,data[],7),0)","v":0},{"$f":"IF(\"SEASHARE,,,\"&$B72&\",\"&sel_country_code=VLOOKUP(\"SEASHARE,,,\"&$B72&\",\"&sel_country_code,data[],1),VLOOKUP(\"SEASHARE,,,\"&$B72&\",\"&sel_country_code,data[],7),0)","v":0},{"$f":"IF(\"CAP-T,,,\"&$B72&\",\"&sel_country_code=VLOOKUP(\"CAP-T,,,\"&$B72&\",\"&sel_country_code,data[],1),VLOOKUP(\"CAP-T,,,\"&$B72&\",\"&sel_country_code,data[],7),0)","v":0},{"$f":"IF(can_use_pipeline=FALSE, TRUE,IF(LEFT($B72,3)=LEFT(sel_region_code,3),LEFT(sel_transport,4)=\"Ship\",$AQ72=0))","v":true},12282.46,null,0,0,0,0,12282.46,true,null,null,false,null,null,null,{"$f":"IFERROR(VLOOKUP(K72&\",\"&sel_chain_ely_proc_code&\",\"&sel_chain_deriv_proc_code,data_storage[],4,FALSE),0)","v":3.8399999999999997E-2}]
[null,"PRT",null,null,null,null,null,null,null,{"$f":"IF($B316=sel_region_code,MATCH(sel_res_gen,$E$2:$I$2,0),MATCH(\"RES-HYBR\",$E$2:$I$2,0))","v":3},{"$f":"IF(INDEX($E316:$I316,J73)>0,INDEX($E$2:$I$2,J73),\"\")","v":"RES-HYBR"},null,true,true,0,1,null,null,null,null,null,null,null,null,null,null,null,null,null,null,null,null,null,null,null,null,false,null,true,null,null,{"$f":"IF(\"DST-S-D,,,\"&$B73&\",\"&sel_country_code=VLOOKUP(\"DST-S-D,,,\"&$B73&\",\"&sel_country_code,data[],1),VLOOKUP(\"DST-S-D,,,\"&$B73&\",\"&sel_country_code,data[],7),0)","v":2479.8200000000002},{"$f":"IF(\"DST-S-DP,,,\"&$B73&\",\"&sel_country_code=VLOOKUP(\"DST-S-DP,,,\"&$B73&\",\"&sel_country_code,data[],1),VLOOKUP(\"DST-S-DP,,,\"&$B73&\",\"&sel_country_code,data[],7),0)","v":2000},{"$f":"IF(\"SEASHARE,,,\"&$B73&\",\"&sel_country_code=VLOOKUP(\"SEASHARE,,,\"&$B73&\",\"&sel_country_code,data[],1),VLOOKUP(\"SEASHARE,,,\"&$B73&\",\"&sel_country_code,data[],7),0)","v":0},{"$f":"IF(\"CAP-T,,,\"&$B73&\",\"&sel_country_code=VLOOKUP(\"CAP-T,,,\"&$B73&\",\"&sel_country_code,data[],1),VLOOKUP(\"CAP-T,,,\"&$B73&\",\"&sel_country_code,data[],7),0)","v":0},{"$f":"IF(can_use_pipeline=FALSE, TRUE,IF(LEFT($B73,3)=LEFT(sel_region_code,3),LEFT(sel_transport,4)=\"Ship\",$AQ73=0))","v":false},0,null,0,2000,0,0,2000,false,null,null,false,null,null,null,{"$f":"IFERROR(VLOOKUP(K73&\",\"&sel_chain_ely_proc_code&\",\"&sel_chain_deriv_proc_code,data_storage[],4,FALSE),0)","v":3.8399999999999997E-2}]
[null,"RUS",null,null,null,null,null,null,null,{"$f":"IF($B317=sel_region_code,MATCH(sel_res_gen,$E$2:$I$2,0),MATCH(\"RES-HYBR\",$E$2:$I$2,0))","v":3},{"$f":"IF(INDEX($E317:$I317,J74)>0,INDEX($E$2:$I$2,J74),\"\")","v":"RES-HYBR"},null,true,true,0,1,null,null,null,null,null,null,null,null,null,null,null,null,null,null,null,null,null,null,null,null,false,null,true,null,null,{"$f":"IF(\"DST-S-D,,,\"&$B74&\",\"&sel_country_code=VLOOKUP(\"DST-S-D,,,\"&$B74&\",\"&sel_country_code,data[],1),VLOOKUP(\"DST-S-D,,,\"&$B74&\",\"&sel_country_code,data[],7),0)","v":6601.17},{"$f":"IF(\"DST-S-DP,,,\"&$B74&\",\"&sel_country_code=VLOOKUP(\"DST-S-DP,,,\"&$B74&\",\"&sel_country_code,data[],1),VLOOKUP(\"DST-S-DP,,,\"&$B74&\",\"&sel_country_code,data[],7),0)","v":1000},{"$f":"IF(\"SEASHARE,,,\"&$B74&\",\"&sel_country_code=VLOOKUP(\"SEASHARE,,,\"&$B74&\",\"&sel_country_code,data[],1),VLOOKUP(\"SEASHARE,,,\"&$B74&\",\"&sel_country_code,data[],7),0)","v":1},{"$f":"IF(\"CAP-T,,,\"&$B74&\",\"&sel_country_code=VLOOKUP(\"CAP-T,,,\"&$B74&\",\"&sel_country_code,data[],1),VLOOKUP(\"CAP-T,,,\"&$B74&\",\"&sel_country_code,data[],7),0)","v":1},{"$f":"IF(can_use_pipeline=FALSE, TRUE,IF(LEFT($B74,3)=LEFT(sel_region_code,3),LEFT(sel_transport,4)=\"Ship\",$AQ74=0))","v":false},0,null,0,0,1000,0,1000,false,null,null,false,null,null,null,{"$f":"IFERROR(VLOOKUP(K74&\",\"&sel_chain_ely_proc_code&\",\"&sel_chain_deriv_proc_code,data_storage[],4,FALSE),0)","v":3.8399999999999997E-2}]
[null,"SAU",null,null,null,null,null,null,null,{"$f":"IF($B318=sel_region_code,MATCH(sel_res_gen,$E$2:$I$2,0),MATCH(\"RES-HYBR\",$E$2:$I$2,0))","v":3},{"$f":"IF(INDEX($E318:$I318,J75)>0,INDEX($E$2:$I$2,J75),\"\")","v":"RES-HYBR"},null,true,true,0,1,null,null,null,null,null,null,null,null,null,null,null,null,null,null,null,null,null,null,null,null,false,null,true,null,null,{"$f":"IF(\"DST-S-D,,,\"&$B75&\",\"&sel_country_code=VLOOKUP(\"DST-S-D,,,\"&$B75&\",\"&sel_country_code,data[],1),VLOOKUP(\"DST-S-D,,,\"&$B75&\",\"&sel_country_code,data[],7),0)","v":8624.76},{"$f":"IF(\"DST-S-DP,,,\"&$B75&\",\"&sel_country_code=VLOOKUP(\"DST-S-DP,,,\"&$B75&\",\"&sel_country_code,data[],1),VLOOKUP(\"DST-S-DP,,,\"&$B75&\",\"&sel_country_code,data[],7),0)","v":4500},{"$f":"IF(\"SEASHARE,,,\"&$B75&\",\"&sel_country_code=VLOOKUP(\"SEASHARE,,,\"&$B75&\",\"&sel_country_code,data[],1),VLOOKUP(\"SEASHARE,,,\"&$B75&\",\"&sel_country_code,data[],7),0)","v":0},{"$f":"IF(\"CAP-T,,,\"&$B75&\",\"&sel_country_code=VLOOKUP(\"CAP-T,,,\"&$B75&\",\"&sel_country_code,data[],1),VLOOKUP(\"CAP-T,,,\"&$B75&\",\"&sel_country_code,data[],7),0)","v":0},{"$f":"IF(can_use_pipeline=FALSE, TRUE,IF(LEFT($B75,3)=LEFT(sel_region_code,3),LEFT(sel_transport,4)=\"Ship\",$AQ75=0))","v":false},0,null,0,4500,0,0,4500,false,null,null,false,null,null,null,{"$f":"IFERROR(VLOOKUP(K75&\",\"&sel_chain_ely_proc_code&\",\"&sel_chain_deriv_proc_code,data_storage[],4,FALSE),0)","v":3.8399999999999997E-2}]
[null,"SWE",null,null,null,null,null,null,null,{"$f":"IF($B319=sel_region_code,MATCH(sel_res_gen,$E$2:$I$2,0),MATCH(\"RES-HYBR\",$E$2:$I$2,0))","v":3},{"$f":"IF(INDEX($E319:$I319,J76)>0,INDEX($E$2:$I$2,J76),\"\")","v":"RES-HYBR"},null,true,true,0,1,null,null,null,null,null,null,null,null,null,null,null,null,null,null,null,null,null,null,null,null,false,null,true,null,null,{"$f":"IF(\"DST-S-D,,,\"&$B76&\",\"&sel_country_code=VLOOKUP(\"DST-S-D,,,\"&$B76&\",\"&sel_country_code,data[],1),VLOOKUP(\"DST-S-D,,,\"&$B76&\",\"&sel_country_code,data[],7),0)","v":602.49},{"$f":"IF(\"DST-S-DP,,,\"&$B76&\",\"&sel_country_code=VLOOKUP(\"DST-S-DP,,,\"&$B76&\",\"&sel_country_code,data[],1),VLOOKUP(\"DST-S-DP,,,\"&$B76&\",\"&sel_country_code,data[],7),0)","v":1000},{"$f":"IF(\"SEASHARE,,,\"&$B76&\",\"&sel_country_code=VLOOKUP(\"SEASHARE,,,\"&$B76&\",\"&sel_country_code,data[],1),VLOOKUP(\"SEASHARE,,,\"&$B76&\",\"&sel_country_code,data[],7),0)","v":0.3},{"$f":"IF(\"CAP-T,,,\"&$B76&\",\"&sel_country_code=VLOOKUP(\"CAP-T,,,\"&$B76&\",\"&sel_country_code,data[],1),VLOOKUP(\"CAP-T,,,\"&$B76&\",\"&sel_country_code,data[],7),0)","v":0},{"$f":"IF(can_use_pipeline=FALSE, TRUE,IF(LEFT($B76,3)=LEFT(sel_region_code,3),LEFT(sel_transport,4)=\"Ship\",$AQ76=0))","v":false},0,null,300,700,0,0,1000,false,null,null,false,null,null,null,{"$f":"IFERROR(VLOOKUP(K76&\",\"&sel_chain_ely_proc_code&\",\"&sel_chain_deriv_proc_code,data_storage[],4,FALSE),0)","v":3.8399999999999997E-2}]
[null,"THA",null,null,null,null,null,null,null,{"$f":"IF($B320=sel_region_code,MATCH(sel_res_gen,$E$2:$I$2,0),MATCH(\"RES-HYBR\",$E$2:$I$2,0))","v":3},{"$f":"IF(INDEX($E320:$I320,J77)>0,INDEX($E$2:$I$2,J77),\"\")","v":"RES-HYBR"},null,true,true,0,1,null,null,null,null,null,null,null,null,null,null,null,null,null,null,null,null,null,null,null,null,true,null,false,null,null,{"$f":"IF(\"DST-S-D,,,\"&$B77&\",\"&sel_country_code=VLOOKUP(\"DST-S-D,,,\"&$B77&\",\"&sel_country_code,data[],1),VLOOKUP(\"DST-S-D,,,\"&$B77&\",\"&sel_country_code,data[],7),0)","v":18076.400000000001},{"$f":"IF(\"DST-S-DP,,,\"&$B77&\",\"&sel_country_code=VLOOKUP(\"DST-S-DP,,,\"&$B77&\",\"&sel_country_code,data[],1),VLOOKUP(\"DST-S-DP,,,\"&$B77&\",\"&sel_country_code,data[],7),0)","v":0},{"$f":"IF(\"SEASHARE,,,\"&$B77&\",\"&sel_country_code=VLOOKUP(\"SEASHARE,,,\"&$B77&\",\"&sel_country_code,data[],1),VLOOKUP(\"SEASHARE,,,\"&$B77&\",\"&sel_country_code,data[],7),0)","v":0},{"$f":"IF(\"CAP-T,,,\"&$B77&\",\"&sel_country_code=VLOOKUP(\"CAP-T,,,\"&$B77&\",\"&sel_country_code,data[],1),VLOOKUP(\"CAP-T,,,\"&$B77&\",\"&sel_country_code,data[],7),0)","v":0},{"$f":"IF(can_use_pipeline=FALSE, TRUE,IF(LEFT($B77,3)=LEFT(sel_region_code,3),LEFT(sel_transport,4)=\"Ship\",$AQ77=0))","v":true},18076.400000000001,null,0,0,0,0,18076.400000000001,true,null,null,false,null,null,null,{"$f":"IFERROR(VLOOKUP(K77&\",\"&sel_chain_ely_proc_code&\",\"&sel_chain_deriv_proc_code,data_storage[],4,FALSE),0)","v":3.8399999999999997E-2}]
[null,"TUN",null,null,null,null,null,null,null,{"$f":"IF($B321=sel_region_code,MATCH(sel_res_gen,$E$2:$I$2,0),MATCH(\"RES-HYBR\",$E$2:$I$2,0))","v":3},{"$f":"IF(INDEX($E321:$I321,J78)>0,INDEX($E$2:$I$2,J78),\"\")","v":"RES-HYBR"},null,true,true,0,1,null,null,null,null,null,null,null,null,null,null,null,null,null,null,null,null,null,null,null,null,{"$f":"AND($AT78,AK$2<>\"\")","v":false},null,true,null,null,{"$f":"IF(\"DST-S-D,,,\"&$B78&\",\"&sel_country_code=VLOOKUP(\"DST-S-D,,,\"&$B78&\",\"&sel_country_code,data[],1),VLOOKUP(\"DST-S-D,,,\"&$B78&\",\"&sel_country_code,data[],7),0)","v":4114.37},{"$f":"IF(\"DST-S-DP,,,\"&$B78&\",\"&sel_country_code=VLOOKUP(\"DST-S-DP,,,\"&$B78&\",\"&sel_country_code,data[],1),VLOOKUP(\"DST-S-DP,,,\"&$B78&\",\"&sel_country_code,data[],7),0)","v":2000},{"$f":"IF(\"SEASHARE,,,\"&$B78&\",\"&sel_country_code=VLOOKUP(\"SEASHARE,,,\"&$B78&\",\"&sel_country_code,data[],1),VLOOKUP(\"SEASHARE,,,\"&$B78&\",\"&sel_country_code,data[],7),0)","v":0.35},{"$f":"IF(\"CAP-T,,,\"&$B78&\",\"&sel_country_code=VLOOKUP(\"CAP-T,,,\"&$B78&\",\"&sel_country_code,data[],1),VLOOKUP(\"CAP-T,,,\"&$B78&\",\"&sel_country_code,data[],7),0)","v":0},{"$f":"IF(can_use_pipeline=FALSE, TRUE,IF(LEFT($B78,3)=LEFT(sel_region_code,3),LEFT(sel_transport,4)=\"Ship\",$AQ78=0))","v":false},{"$f":"IF(NOT($AT78),0,$AP78)","v":0},null,{"$f":"IF($AT78,0,IF($AS78>0,0,$AQ78*$AR78))","v":700},{"$f":"IF($AT78,0,IF($AS78>0,0,$AQ78*(1-$AR78)))","v":1300},{"$f":"IF($AT78,0,IF($AS78=0,0,$AQ78*$AR78))","v":0},{"$f":"IF($AT78,0,IF($AS78=0,0,$AQ78*(1-$AR78)))","v":0},2000,false,null,null,false,null,null,null,{"$f":"IFERROR(VLOOKUP(K78&\",\"&sel_chain_ely_proc_code&\",\"&sel_chain_deriv_proc_code,data_storage[],4,FALSE),0)","v":3.8399999999999997E-2}]
[null,"UKR",null,null,null,null,null,null,null,{"$f":"IF($B322=sel_region_code,MATCH(sel_res_gen,$E$2:$I$2,0),MATCH(\"RES-HYBR\",$E$2:$I$2,0))","v":3},{"$f":"IF(INDEX($E322:$I322,J79)>0,INDEX($E$2:$I$2,J79),\"\")","v":"RES-HYBR"},null,{"$f":"$M$7=$M$2","v":true},{"$f":"$N$7=$N$2","v":true},0,1,null,null,null,null,null,null,null,null,null,null,null,null,null,null,null,null,null,null,null,null,false,null,{"$f":"AND(NOT(AT79),AM$2<>\"\")","v":true},null,null,{"$f":"IF(\"DST-S-D,,,\"&$B79&\",\"&sel_country_code=VLOOKUP(\"DST-S-D,,,\"&$B79&\",\"&sel_country_code,data[],1),VLOOKUP(\"DST-S-D,,,\"&$B79&\",\"&sel_country_code,data[],7),0)","v":6650.36},{"$f":"IF(\"DST-S-DP,,,\"&$B79&\",\"&sel_country_code=VLOOKUP(\"DST-S-DP,,,\"&$B79&\",\"&sel_country_code,data[],1),VLOOKUP(\"DST-S-DP,,,\"&$B79&\",\"&sel_country_code,data[],7),0)","v":1500},{"$f":"IF(\"SEASHARE,,,\"&$B79&\",\"&sel_country_code=VLOOKUP(\"SEASHARE,,,\"&$B79&\",\"&sel_country_code,data[],1),VLOOKUP(\"SEASHARE,,,\"&$B79&\",\"&sel_country_code,data[],7),0)","v":0},{"$f":"IF(\"CAP-T,,,\"&$B79&\",\"&sel_country_code=VLOOKUP(\"CAP-T,,,\"&$B79&\",\"&sel_country_code,data[],1),VLOOKUP(\"CAP-T,,,\"&$B79&\",\"&sel_country_code,data[],7),0)","v":0},{"$f":"IF(can_use_pipeline=FALSE, TRUE,IF(LEFT($B79,3)=LEFT(sel_region_code,3),LEFT(sel_transport,4)=\"Ship\",$AQ79=0))","v":false},0,null,0,1500,0,0,{"$f":"SUM(AU79:AZ79)","v":1500},{"$f":"AND($AT79,BB$2<>\"\")","v":false},null,null,{"$f":"AND(NOT($AT79),BE$2<>\"\")","v":false},null,null,null,{"$f":"IFERROR(VLOOKUP(K79&\",\"&sel_chain_ely_proc_code&\",\"&sel_chain_deriv_proc_code,data_storage[],4,FALSE),0)","v":3.8399999999999997E-2}]
[null,"URY",null,null,null,null,null,null,null,{"$f":"IF($B323=sel_region_code,MATCH(sel_res_gen,$E$2:$I$2,0),MATCH(\"RES-HYBR\",$E$2:$I$2,0))","v":3},{"$f":"IF(INDEX($E323:$I323,J80)>0,INDEX($E$2:$I$2,J80),\"\")","v":"RES-HYBR"},null,true,true,0,{"$f":"MAX(0,(1-$O80*O$4))","v":1},null,null,null,null,null,null,null,null,null,null,null,null,null,null,null,null,null,null,null,null,true,null,false,null,null,{"$f":"IF(\"DST-S-D,,,\"&$B80&\",\"&sel_country_code=VLOOKUP(\"DST-S-D,,,\"&$B80&\",\"&sel_country_code,data[],1),VLOOKUP(\"DST-S-D,,,\"&$B80&\",\"&sel_country_code,data[],7),0)","v":12547.2},{"$f":"IF(\"DST-S-DP,,,\"&$B80&\",\"&sel_country_code=VLOOKUP(\"DST-S-DP,,,\"&$B80&\",\"&sel_country_code,data[],1),VLOOKUP(\"DST-S-DP,,,\"&$B80&\",\"&sel_country_code,data[],7),0)","v":0},{"$f":"IF(\"SEASHARE,,,\"&$B80&\",\"&sel_country_code=VLOOKUP(\"SEASHARE,,,\"&$B80&\",\"&sel_country_code,data[],1),VLOOKUP(\"SEASHARE,,,\"&$B80&\",\"&sel_country_code,data[],7),0)","v":0},{"$f":"IF(\"CAP-T,,,\"&$B80&\",\"&sel_country_code=VLOOKUP(\"CAP-T,,,\"&$B80&\",\"&sel_country_code,data[],1),VLOOKUP(\"CAP-T,,,\"&$B80&\",\"&sel_country_code,data[],7),0)","v":0},{"$f":"IF(can_use_pipeline=FALSE, TRUE,IF(LEFT($B80,3)=LEFT(sel_region_code,3),LEFT(sel_transport,4)=\"Ship\",$AQ80=0))","v":true},12547.2,null,0,0,0,0,12547.2,true,null,null,false,null,null,null,{"$f":"IFERROR(VLOOKUP(K80&\",\"&sel_chain_ely_proc_code&\",\"&sel_chain_deriv_proc_code,data_storage[],4,FALSE),0)","v":3.8399999999999997E-2}]
[null,"USA",null,null,null,null,null,null,null,{"$f":"IF($B324=sel_region_code,MATCH(sel_res_gen,$E$2:$I$2,0),MATCH(\"RES-HYBR\",$E$2:$I$2,0))","v":3},{"$f":"IF(INDEX($E324:$I324,J81)>0,INDEX($E$2:$I$2,J81),\"\")","v":"RES-HYBR"},null,true,true,0,1,null,null,null,null,null,null,null,null,null,null,null,null,null,null,null,null,null,null,null,null,true,null,false,null,null,{"$f":"IF(\"DST-S-D,,,\"&$B81&\",\"&sel_country_code=VLOOKUP(\"DST-S-D,,,\"&$B81&\",\"&sel_country_code,data[],1),VLOOKUP(\"DST-S-D,,,\"&$B81&\",\"&sel_country_code,data[],7),0)","v":8323.27},{"$f":"IF(\"DST-S-DP,,,\"&$B81&\",\"&sel_country_code=VLOOKUP(\"DST-S-DP,,,\"&$B81&\",\"&sel_country_code,data[],1),VLOOKUP(\"DST-S-DP,,,\"&$B81&\",\"&sel_country_code,data[],7),0)","v":0},{"$f":"IF(\"SEASHARE,,,\"&$B81&\",\"&sel_country_code=VLOOKUP(\"SEASHARE,,,\"&$B81&\",\"&sel_country_code,data[],1),VLOOKUP(\"SEASHARE,,,\"&$B81&\",\"&sel_country_code,data[],7),0)","v":0},{"$f":"IF(\"CAP-T,,,\"&$B81&\",\"&sel_country_code=VLOOKUP(\"CAP-T,,,\"&$B81&\",\"&sel_country_code,data[],1),VLOOKUP(\"CAP-T,,,\"&$B81&\",\"&sel_country_code,data[],7),0)","v":0},{"$f":"IF(can_use_pipeline=FALSE, TRUE,IF(LEFT($B81,3)=LEFT(sel_region_code,3),LEFT(sel_transport,4)=\"Ship\",$AQ81=0))","v":true},8323.27,null,0,0,0,0,8323.27,true,null,null,false,null,null,null,{"$f":"IFERROR(VLOOKUP(K81&\",\"&sel_chain_ely_proc_code&\",\"&sel_chain_deriv_proc_code,data_storage[],4,FALSE),0)","v":3.8399999999999997E-2}]
[null,"VNM",null,null,null,null,null,null,null,{"$f":"IF($B325=sel_region_code,MATCH(sel_res_gen,$E$2:$I$2,0),MATCH(\"RES-HYBR\",$E$2:$I$2,0))","v":3},{"$f":"IF(INDEX($E325:$I325,J82)>0,INDEX($E$2:$I$2,J82),\"\")","v":"RES-HYBR"},null,true,true,0,1,null,null,null,null,null,null,null,null,null,null,null,null,null,null,null,null,null,null,null,null,true,null,false,null,null,{"$f":"IF(\"DST-S-D,,,\"&$B82&\",\"&sel_country_code=VLOOKUP(\"DST-S-D,,,\"&$B82&\",\"&sel_country_code,data[],1),VLOOKUP(\"DST-S-D,,,\"&$B82&\",\"&sel_country_code,data[],7),0)","v":18266.27},{"$f":"IF(\"DST-S-DP,,,\"&$B82&\",\"&sel_country_code=VLOOKUP(\"DST-S-DP,,,\"&$B82&\",\"&sel_country_code,data[],1),VLOOKUP(\"DST-S-DP,,,\"&$B82&\",\"&sel_country_code,data[],7),0)","v":0},{"$f":"IF(\"SEASHARE,,,\"&$B82&\",\"&sel_country_code=VLOOKUP(\"SEASHARE,,,\"&$B82&\",\"&sel_country_code,data[],1),VLOOKUP(\"SEASHARE,,,\"&$B82&\",\"&sel_country_code,data[],7),0)","v":0},{"$f":"IF(\"CAP-T,,,\"&$B82&\",\"&sel_country_code=VLOOKUP(\"CAP-T,,,\"&$B82&\",\"&sel_country_code,data[],1),VLOOKUP(\"CAP-T,,,\"&$B82&\",\"&sel_country_code,data[],7),0)","v":0},{"$f":"IF(can_use_pipeline=FALSE, TRUE,IF(LEFT($B82,3)=LEFT(sel_region_code,3),LEFT(sel_transport,4)=\"Ship\",$AQ82=0))","v":true},18266.27,null,0,0,0,0,18266.27,true,null,null,false,null,null,null,{"$f":"IFERROR(VLOOKUP(K82&\",\"&sel_chain_ely_proc_code&\",\"&sel_chain_deriv_proc_code,data_storage[],4,FALSE),0)","v":3.8399999999999997E-2}]
[null,"ZAF",null,null,null,null,null,null,null,{"$f":"IF($B326=sel_region_code,MATCH(sel_res_gen,$E$2:$I$2,0),MATCH(\"RES-HYBR\",$E$2:$I$2,0))","v":3},{"$f":"IF(INDEX($E326:$I326,J83)>0,INDEX($E$2:$I$2,J83),\"\")","v":"RES-HYBR"},null,true,true,0,1,null,null,null,null,null,null,null,null,null,null,null,null,null,null,null,null,null,null,null,null,true,null,false,null,null,{"$f":"IF(\"DST-S-D,,,\"&$B83&\",\"&sel_country_code=VLOOKUP(\"DST-S-D,,,\"&$B83&\",\"&sel_country_code,data[],1),VLOOKUP(\"DST-S-D,,,\"&$B83&\",\"&sel_country_code,data[],7),0)","v":11789.832},{"$f":"IF(\"DST-S-DP,,,\"&$B83&\",\"&sel_country_code=VLOOKUP(\"DST-S-DP,,,\"&$B83&\",\"&sel_country_code,data[],1),VLOOKUP(\"DST-S-DP,,,\"&$B83&\",\"&sel_country_code,data[],7),0)","v":0},{"$f":"IF(\"SEASHARE,,,\"&$B83&\",\"&sel_country_code=VLOOKUP(\"SEASHARE,,,\"&$B83&\",\"&sel_country_code,data[],1),VLOOKUP(\"SEASHARE,,,\"&$B83&\",\"&sel_country_code,data[],7),0)","v":0},{"$f":"IF(\"CAP-T,,,\"&$B83&\",\"&sel_country_code=VLOOKUP(\"CAP-T,,,\"&$B83&\",\"&sel_country_code,data[],1),VLOOKUP(\"CAP-T,,,\"&$B83&\",\"&sel_country_code,data[],7),0)","v":0},{"$f":"IF(can_use_pipeline=FALSE, TRUE,IF(LEFT($B83,3)=LEFT(sel_region_code,3),LEFT(sel_transport,4)=\"Ship\",$AQ83=0))","v":true},11789.832,null,0,0,0,0,11789.832,true,null,null,false,null,null,null,{"$f":"IFERROR(VLOOKUP(K83&\",\"&sel_chain_ely_proc_code&\",\"&sel_chain_deriv_proc_code,data_storage[],4,FALSE),0)","v":3.8399999999999997E-2}]
[null,"ZAF-EC",null,null,null,null,null,null,null,{"$f":"IF($B327=sel_region_code,MATCH(sel_res_gen,$E$2:$I$2,0),MATCH(\"RES-HYBR\",$E$2:$I$2,0))","v":3},{"$f":"IF(INDEX($E327:$I327,J84)>0,INDEX($E$2:$I$2,J84),\"\")","v":"RES-HYBR"},null,true,true,0,1,null,null,null,null,null,null,null,null,null,null,null,null,null,null,null,null,null,null,null,null,true,null,false,null,null,{"$f":"IF(\"DST-S-D,,,\"&$B84&\",\"&sel_country_code=VLOOKUP(\"DST-S-D,,,\"&$B84&\",\"&sel_country_code,data[],1),VLOOKUP(\"DST-S-D,,,\"&$B84&\",\"&sel_country_code,data[],7),0)","v":11789.832},{"$f":"IF(\"DST-S-DP,,,\"&$B84&\",\"&sel_country_code=VLOOKUP(\"DST-S-DP,,,\"&$B84&\",\"&sel_country_code,data[],1),VLOOKUP(\"DST-S-DP,,,\"&$B84&\",\"&sel_country_code,data[],7),0)","v":0},{"$f":"IF(\"SEASHARE,,,\"&$B84&\",\"&sel_country_code=VLOOKUP(\"SEASHARE,,,\"&$B84&\",\"&sel_country_code,data[],1),VLOOKUP(\"SEASHARE,,,\"&$B84&\",\"&sel_country_code,data[],7),0)","v":0},{"$f":"IF(\"CAP-T,,,\"&$B84&\",\"&sel_country_code=VLOOKUP(\"CAP-T,,,\"&$B84&\",\"&sel_country_code,data[],1),VLOOKUP(\"CAP-T,,,\"&$B84&\",\"&sel_country_code,data[],7),0)","v":0},{"$f":"IF(can_use_pipeline=FALSE, TRUE,IF(LEFT($B84,3)=LEFT(sel_region_code,3),LEFT(sel_transport,4)=\"Ship\",$AQ84=0))","v":true},11789.832,null,0,0,0,0,11789.832,true,null,null,false,null,null,null,{"$f":"IFERROR(VLOOKUP(K84&\",\"&sel_chain_ely_proc_code&\",\"&sel_chain_deriv_proc_code,data_storage[],4,FALSE),0)","v":3.8399999999999997E-2}]
[null,"ZAF-FRS",null,null,null,null,null,null,null,{"$f":"IF($B328=sel_region_code,MATCH(sel_res_gen,$E$2:$I$2,0),MATCH(\"RES-HYBR\",$E$2:$I$2,0))","v":3},{"$f":"IF(INDEX($E328:$I328,J85)>0,INDEX($E$2:$I$2,J85),\"\")","v":"RES-HYBR"},null,true,true,0,1,null,null,null,null,null,null,null,null,null,null,null,null,null,null,null,null,null,null,null,null,true,null,false,null,null,{"$f":"IF(\"DST-S-D,,,\"&$B85&\",\"&sel_country_code=VLOOKUP(\"DST-S-D,,,\"&$B85&\",\"&sel_country_code,data[],1),VLOOKUP(\"DST-S-D,,,\"&$B85&\",\"&sel_country_code,data[],7),0)","v":11789.832},{"$f":"IF(\"DST-S-DP,,,\"&$B85&\",\"&sel_country_code=VLOOKUP(\"DST-S-DP,,,\"&$B85&\",\"&sel_country_code,data[],1),VLOOKUP(\"DST-S-DP,,,\"&$B85&\",\"&sel_country_code,data[],7),0)","v":0},{"$f":"IF(\"SEASHARE,,,\"&$B85&\",\"&sel_country_code=VLOOKUP(\"SEASHARE,,,\"&$B85&\",\"&sel_country_code,data[],1),VLOOKUP(\"SEASHARE,,,\"&$B85&\",\"&sel_country_code,data[],7),0)","v":0},{"$f":"IF(\"CAP-T,,,\"&$B85&\",\"&sel_country_code=VLOOKUP(\"CAP-T,,,\"&$B85&\",\"&sel_country_code,data[],1),VLOOKUP(\"CAP-T,,,\"&$B85&\",\"&sel_country_code,data[],7),0)","v":0},{"$f":"IF(can_use_pipeline=FALSE, TRUE,IF(LEFT($B85,3)=LEFT(sel_region_code,3),LEFT(sel_transport,4)=\"Ship\",$AQ85=0))","v":true},11789.832,null,0,0,0,0,11789.832,true,null,null,false,null,null,null,{"$f":"IFERROR(VLOOKUP(K85&\",\"&sel_chain_ely_proc_code&\",\"&sel_chain_deriv_proc_code,data_storage[],4,FALSE),0)","v":3.8399999999999997E-2}]
[null,"ZAF-GAU",null,null,null,null,null,null,null,{"$f":"IF($B329=sel_region_code,MATCH(sel_res_gen,$E$2:$I$2,0),MATCH(\"RES-HYBR\",$E$2:$I$2,0))","v":3},{"$f":"IF(INDEX($E329:$I329,J86)>0,INDEX($E$2:$I$2,J86),\"\")","v":"RES-HYBR"},null,true,true,0,1,null,null,null,null,null,null,null,null,null,null,null,null,null,null,null,null,null,null,null,null,true,null,false,null,null,{"$f":"IF(\"DST-S-D,,,\"&$B86&\",\"&sel_country_code=VLOOKUP(\"DST-S-D,,,\"&$B86&\",\"&sel_country_code,data[],1),VLOOKUP(\"DST-S-D,,,\"&$B86&\",\"&sel_country_code,data[],7),0)","v":11789.832},{"$f":"IF(\"DST-S-DP,,,\"&$B86&\",\"&sel_country_code=VLOOKUP(\"DST-S-DP,,,\"&$B86&\",\"&sel_country_code,data[],1),VLOOKUP(\"DST-S-DP,,,\"&$B86&\",\"&sel_country_code,data[],7),0)","v":0},{"$f":"IF(\"SEASHARE,,,\"&$B86&\",\"&sel_country_code=VLOOKUP(\"SEASHARE,,,\"&$B86&\",\"&sel_country_code,data[],1),VLOOKUP(\"SEASHARE,,,\"&$B86&\",\"&sel_country_code,data[],7),0)","v":0},{"$f":"IF(\"CAP-T,,,\"&$B86&\",\"&sel_country_code=VLOOKUP(\"CAP-T,,,\"&$B86&\",\"&sel_country_code,data[],1),VLOOKUP(\"CAP-T,,,\"&$B86&\",\"&sel_country_code,data[],7),0)","v":0},{"$f":"IF(can_use_pipeline=FALSE, TRUE,IF(LEFT($B86,3)=LEFT(sel_region_code,3),LEFT(sel_transport,4)=\"Ship\",$AQ86=0))","v":true},11789.832,null,0,0,0,0,11789.832,true,null,null,false,null,null,null,{"$f":"IFERROR(VLOOKUP(K86&\",\"&sel_chain_ely_proc_code&\",\"&sel_chain_deriv_proc_code,data_storage[],4,FALSE),0)","v":3.8399999999999997E-2}]
[null,"ZAF-KWA",null,null,null,null,null,null,null,{"$f":"IF($B330=sel_region_code,MATCH(sel_res_gen,$E$2:$I$2,0),MATCH(\"RES-HYBR\",$E$2:$I$2,0))","v":3},{"$f":"IF(INDEX($E330:$I330,J87)>0,INDEX($E$2:$I$2,J87),\"\")","v":"RES-HYBR"},null,true,true,0,1,null,null,null,null,null,null,null,null,null,null,null,null,null,null,null,null,null,null,null,null,true,null,false,null,null,{"$f":"IF(\"DST-S-D,,,\"&$B87&\",\"&sel_country_code=VLOOKUP(\"DST-S-D,,,\"&$B87&\",\"&sel_country_code,data[],1),VLOOKUP(\"DST-S-D,,,\"&$B87&\",\"&sel_country_code,data[],7),0)","v":11789.832},{"$f":"IF(\"DST-S-DP,,,\"&$B87&\",\"&sel_country_code=VLOOKUP(\"DST-S-DP,,,\"&$B87&\",\"&sel_country_code,data[],1),VLOOKUP(\"DST-S-DP,,,\"&$B87&\",\"&sel_country_code,data[],7),0)","v":0},{"$f":"IF(\"SEASHARE,,,\"&$B87&\",\"&sel_country_code=VLOOKUP(\"SEASHARE,,,\"&$B87&\",\"&sel_country_code,data[],1),VLOOKUP(\"SEASHARE,,,\"&$B87&\",\"&sel_country_code,data[],7),0)","v":0},{"$f":"IF(\"CAP-T,,,\"&$B87&\",\"&sel_country_code=VLOOKUP(\"CAP-T,,,\"&$B87&\",\"&sel_country_code,data[],1),VLOOKUP(\"CAP-T,,,\"&$B87&\",\"&sel_country_code,data[],7),0)","v":0},{"$f":"IF(can_use_pipeline=FALSE, TRUE,IF(LEFT($B87,3)=LEFT(sel_region_code,3),LEFT(sel_transport,4)=\"Ship\",$AQ87=0))","v":true},11789.832,null,0,0,0,0,11789.832,true,null,null,false,null,null,null,{"$f":"IFERROR(VLOOKUP(K87&\",\"&sel_chain_ely_proc_code&\",\"&sel_chain_deriv_proc_code,data_storage[],4,FALSE),0)","v":3.8399999999999997E-2}]
[null,"ZAF-LIM",null,null,null,null,null,null,null,{"$f":"IF($B331=sel_region_code,MATCH(sel_res_gen,$E$2:$I$2,0),MATCH(\"RES-HYBR\",$E$2:$I$2,0))","v":3},{"$f":"IF(INDEX($E331:$I331,J88)>0,INDEX($E$2:$I$2,J88),\"\")","v":"RES-HYBR"},null,true,true,0,1,null,null,null,null,null,null,null,null,null,null,null,null,null,null,null,null,null,null,null,null,true,null,false,null,null,{"$f":"IF(\"DST-S-D,,,\"&$B88&\",\"&sel_country_code=VLOOKUP(\"DST-S-D,,,\"&$B88&\",\"&sel_country_code,data[],1),VLOOKUP(\"DST-S-D,,,\"&$B88&\",\"&sel_country_code,data[],7),0)","v":11789.832},{"$f":"IF(\"DST-S-DP,,,\"&$B88&\",\"&sel_country_code=VLOOKUP(\"DST-S-DP,,,\"&$B88&\",\"&sel_country_code,data[],1),VLOOKUP(\"DST-S-DP,,,\"&$B88&\",\"&sel_country_code,data[],7),0)","v":0},{"$f":"IF(\"SEASHARE,,,\"&$B88&\",\"&sel_country_code=VLOOKUP(\"SEASHARE,,,\"&$B88&\",\"&sel_country_code,data[],1),VLOOKUP(\"SEASHARE,,,\"&$B88&\",\"&sel_country_code,data[],7),0)","v":0},{"$f":"IF(\"CAP-T,,,\"&$B88&\",\"&sel_country_code=VLOOKUP(\"CAP-T,,,\"&$B88&\",\"&sel_country_code,data[],1),VLOOKUP(\"CAP-T,,,\"&$B88&\",\"&sel_country_code,data[],7),0)","v":0},{"$f":"IF(can_use_pipeline=FALSE, TRUE,IF(LEFT($B88,3)=LEFT(sel_region_code,3),LEFT(sel_transport,4)=\"Ship\",$AQ88=0))","v":true},11789.832,null,0,0,0,0,11789.832,true,null,null,false,null,null,null,{"$f":"IFERROR(VLOOKUP(K88&\",\"&sel_chain_ely_proc_code&\",\"&sel_chain_deriv_proc_code,data_storage[],4,FALSE),0)","v":3.8399999999999997E-2}]
[null,"ZAF-MPU",null,null,null,null,null,null,null,{"$f":"IF($B332=sel_region_code,MATCH(sel_res_gen,$E$2:$I$2,0),MATCH(\"RES-HYBR\",$E$2:$I$2,0))","v":3},{"$f":"IF(INDEX($E332:$I332,J89)>0,INDEX($E$2:$I$2,J89),\"\")","v":"RES-HYBR"},null,true,true,0,1,null,null,null,null,null,null,null,null,null,null,null,null,null,null,null,null,null,null,null,null,true,null,false,null,null,{"$f":"IF(\"DST-S-D,,,\"&$B89&\",\"&sel_country_code=VLOOKUP(\"DST-S-D,,,\"&$B89&\",\"&sel_country_code,data[],1),VLOOKUP(\"DST-S-D,,,\"&$B89&\",\"&sel_country_code,data[],7),0)","v":11789.832},{"$f":"IF(\"DST-S-DP,,,\"&$B89&\",\"&sel_country_code=VLOOKUP(\"DST-S-DP,,,\"&$B89&\",\"&sel_country_code,data[],1),VLOOKUP(\"DST-S-DP,,,\"&$B89&\",\"&sel_country_code,data[],7),0)","v":0},{"$f":"IF(\"SEASHARE,,,\"&$B89&\",\"&sel_country_code=VLOOKUP(\"SEASHARE,,,\"&$B89&\",\"&sel_country_code,data[],1),VLOOKUP(\"SEASHARE,,,\"&$B89&\",\"&sel_country_code,data[],7),0)","v":0},{"$f":"IF(\"CAP-T,,,\"&$B89&\",\"&sel_country_code=VLOOKUP(\"CAP-T,,,\"&$B89&\",\"&sel_country_code,data[],1),VLOOKUP(\"CAP-T,,,\"&$B89&\",\"&sel_country_code,data[],7),0)","v":0},{"$f":"IF(can_use_pipeline=FALSE, TRUE,IF(LEFT($B89,3)=LEFT(sel_region_code,3),LEFT(sel_transport,4)=\"Ship\",$AQ89=0))","v":true},11789.832,null,0,0,0,0,11789.832,true,null,null,false,null,null,null,{"$f":"IFERROR(VLOOKUP(K89&\",\"&sel_chain_ely_proc_code&\",\"&sel_chain_deriv_proc_code,data_storage[],4,FALSE),0)","v":3.8399999999999997E-2}]
[null,"ZAF-NC",null,null,null,null,null,null,null,{"$f":"IF($B333=sel_region_code,MATCH(sel_res_gen,$E$2:$I$2,0),MATCH(\"RES-HYBR\",$E$2:$I$2,0))","v":3},{"$f":"IF(INDEX($E333:$I333,J90)>0,INDEX($E$2:$I$2,J90),\"\")","v":"RES-HYBR"},null,true,true,0,1,null,null,null,null,null,null,null,null,null,null,null,null,null,null,null,null,null,null,null,null,true,null,false,null,null,{"$f":"IF(\"DST-S-D,,,\"&$B90&\",\"&sel_country_code=VLOOKUP(\"DST-S-D,,,\"&$B90&\",\"&sel_country_code,data[],1),VLOOKUP(\"DST-S-D,,,\"&$B90&\",\"&sel_country_code,data[],7),0)","v":11789.832},{"$f":"IF(\"DST-S-DP,,,\"&$B90&\",\"&sel_country_code=VLOOKUP(\"DST-S-DP,,,\"&$B90&\",\"&sel_country_code,data[],1),VLOOKUP(\"DST-S-DP,,,\"&$B90&\",\"&sel_country_code,data[],7),0)","v":0},{"$f":"IF(\"SEASHARE,,,\"&$B90&\",\"&sel_country_code=VLOOKUP(\"SEASHARE,,,\"&$B90&\",\"&sel_country_code,data[],1),VLOOKUP(\"SEASHARE,,,\"&$B90&\",\"&sel_country_code,data[],7),0)","v":0},{"$f":"IF(\"CAP-T,,,\"&$B90&\",\"&sel_country_code=VLOOKUP(\"CAP-T,,,\"&$B90&\",\"&sel_country_code,data[],1),VLOOKUP(\"CAP-T,,,\"&$B90&\",\"&sel_country_code,data[],7),0)","v":0},{"$f":"IF(can_use_pipeline=FALSE, TRUE,IF(LEFT($B90,3)=LEFT(sel_region_code,3),LEFT(sel_transport,4)=\"Ship\",$AQ90=0))","v":true},11789.832,null,0,0,0,0,11789.832,true,null,null,false,null,null,null,{"$f":"IFERROR(VLOOKUP(K90&\",\"&sel_chain_ely_proc_code&\",\"&sel_chain_deriv_proc_code,data_storage[],4,FALSE),0)","v":3.8399999999999997E-2}]
[null,"ZAF-NW",null,null,null,null,null,null,null,{"$f":"IF($B334=sel_region_code,MATCH(sel_res_gen,$E$2:$I$2,0),MATCH(\"RES-HYBR\",$E$2:$I$2,0))","v":3},{"$f":"IF(INDEX($E334:$I334,J91)>0,INDEX($E$2:$I$2,J91),\"\")","v":"RES-HYBR"},null,true,true,0,1,null,null,null,null,null,null,null,null,null,null,null,null,null,null,null,null,null,null,null,null,true,null,false,null,null,{"$f":"IF(\"DST-S-D,,,\"&$B91&\",\"&sel_country_code=VLOOKUP(\"DST-S-D,,,\"&$B91&\",\"&sel_country_code,data[],1),VLOOKUP(\"DST-S-D,,,\"&$B91&\",\"&sel_country_code,data[],7),0)","v":11789.832},{"$f":"IF(\"DST-S-DP,,,\"&$B91&\",\"&sel_country_code=VLOOKUP(\"DST-S-DP,,,\"&$B91&\",\"&sel_country_code,data[],1),VLOOKUP(\"DST-S-DP,,,\"&$B91&\",\"&sel_country_code,data[],7),0)","v":0},{"$f":"IF(\"SEASHARE,,,\"&$B91&\",\"&sel_country_code=VLOOKUP(\"SEASHARE,,,\"&$B91&\",\"&sel_country_code,data[],1),VLOOKUP(\"SEASHARE,,,\"&$B91&\",\"&sel_country_code,data[],7),0)","v":0},{"$f":"IF(\"CAP-T,,,\"&$B91&\",\"&sel_country_code=VLOOKUP(\"CAP-T,,,\"&$B91&\",\"&sel_country_code,data[],1),VLOOKUP(\"CAP-T,,,\"&$B91&\",\"&sel_country_code,data[],7),0)","v":0},{"$f":"IF(can_use_pipeline=FALSE, TRUE,IF(LEFT($B91,3)=LEFT(sel_region_code,3),LEFT(sel_transport,4)=\"Ship\",$AQ91=0))","v":true},11789.832,null,0,0,0,0,11789.832,true,null,null,false,null,null,null,{"$f":"IFERROR(VLOOKUP(K91&\",\"&sel_chain_ely_proc_code&\",\"&sel_chain_deriv_proc_code,data_storage[],4,FALSE),0)","v":3.8399999999999997E-2}]
[null,"ZAF-WC",null,null,null,null,null,null,null,{"$f":"IF($B335=sel_region_code,MATCH(sel_res_gen,$E$2:$I$2,0),MATCH(\"RES-HYBR\",$E$2:$I$2,0))","v":3},{"$f":"IF(INDEX($E335:$I335,J92)>0,INDEX($E$2:$I$2,J92),\"\")","v":"RES-HYBR"},null,true,true,0,1,null,null,null,null,null,null,null,null,null,null,null,null,null,null,null,null,null,null,null,null,true,null,false,null,null,{"$f":"IF(\"DST-S-D,,,\"&$B92&\",\"&sel_country_code=VLOOKUP(\"DST-S-D,,,\"&$B92&\",\"&sel_country_code,data[],1),VLOOKUP(\"DST-S-D,,,\"&$B92&\",\"&sel_country_code,data[],7),0)","v":11789.832},{"$f":"IF(\"DST-S-DP,,,\"&$B92&\",\"&sel_country_code=VLOOKUP(\"DST-S-DP,,,\"&$B92&\",\"&sel_country_code,data[],1),VLOOKUP(\"DST-S-DP,,,\"&$B92&\",\"&sel_country_code,data[],7),0)","v":0},{"$f":"IF(\"SEASHARE,,,\"&$B92&\",\"&sel_country_code=VLOOKUP(\"SEASHARE,,,\"&$B92&\",\"&sel_country_code,data[],1),VLOOKUP(\"SEASHARE,,,\"&$B92&\",\"&sel_country_code,data[],7),0)","v":0},{"$f":"IF(\"CAP-T,,,\"&$B92&\",\"&sel_country_code=VLOOKUP(\"CAP-T,,,\"&$B92&\",\"&sel_country_code,data[],1),VLOOKUP(\"CAP-T,,,\"&$B92&\",\"&sel_country_code,data[],7),0)","v":0},{"$f":"IF(can_use_pipeline=FALSE, TRUE,IF(LEFT($B92,3)=LEFT(sel_region_code,3),LEFT(sel_transport,4)=\"Ship\",$AQ92=0))","v":true},11789.832,null,0,0,0,0,11789.832,true,null,null,false,null,null,null,{"$f":"IFERROR(VLOOKUP(K92&\",\"&sel_chain_ely_proc_code&\",\"&sel_chain_deriv_proc_code,data_storage[],4,FALSE),0)","v":3.8399999999999997E-2}]
[null,null,null,null,null,null,null,null,null,null,"START"]
["product_out"]
[null,"ARE",null,null,{"$f":"IF(E$2=$K14,$K95,0)","v":0},0,1,0,0,null,1,null,null,null,null,{"$f":"K95*P14","v":1},{"$f":"P95*Q$3","v":0.69},null,{"$f":"IF($M14,Q95*MAX(0,R$6)/S$3,0)","v":0.20699999999999999},null,null,null,null,{"$f":"$Q95*X$3","v":0},null,{"$f":"IF($M14,$X95*MAX(0,Y$6)/Z$3,0)","v":0},null,null,null,{"$f":"IF($N14,$X95*MAX(0,AC$6)/AD$3,0)","v":0},null,null,null,null,null,null,{"$f":"IF($X$2=\"\",$Q95,$X95)*IF($AT14,AK$3,0)","v":0},null,{"$f":"IF($X$2=\"\",$Q95,$X95)*IF(NOT($AT14),AM$3,0)","v":0.69},null,{"$f":"AK95+AM95","v":0.69},null,null,null,null,null,{"$f":"$AO95*MAX(0,1-AU14*AU$4)","v":0.69},null,{"$f":"$AU95*MAX(0,1-AW14*AW$4)","v":0.69},{"$f":"$AW95*MAX(0,1-AX14*AX$4)","v":0.62599099999999996},{"$f":"$AX95*MAX(0,1-AY14*AY$4)","v":0.62599099999999996},{"$f":"$AY95*MAX(0,1-AZ14*AZ$4)","v":0.62599099999999996},{"$f":"AZ95","v":0.62599099999999996},{"$f":"IF(AT14,BA95*BB$3,0)","v":0},null,null,{"$f":"IF(NOT(AT14),BA95*BE$3,0)","v":0.62599099999999996},null,null,null,null,null,{"$f":"BB95+BE95","v":0.62599099999999996},{"$f":"(K95+K176)/BK95","v":1.620504128653607}]
[null,"ARG",null,null,0,0,1,0,0,null,1,null,null,null,null,1,0.69,null,{"$f":"IF($M15,Q96*MAX(0,R$6)/S$3,0)","v":0.20699999999999999},null,null,null,null,{"$f":"$Q96*X$3","v":0},null,0,null,null,null,0,null,null,null,null,null,null,{"$f":"IF($X$2=\"\",$Q96,$X96)*IF($AT15,AK$3,0)","v":0.69},null,{"$f":"IF($X$2=\"\",$Q96,$X96)*IF(NOT($AT15),AM$3,0)","v":0},null,{"$f":"AK96+AM96","v":0.69},null,null,null,null,null,{"$f":"$AO96*MAX(0,1-AU15*AU$4)","v":0.60874797550958692},null,{"$f":"$AU96*MAX(0,1-AW15*AW$4)","v":0.60874797550958692},{"$f":"$AW96*MAX(0,1-AX15*AX$4)","v":0.60874797550958692},{"$f":"$AX96*MAX(0,1-AY15*AY$4)","v":0.60874797550958692},{"$f":"$AY96*MAX(0,1-AZ15*AZ$4)","v":0.60874797550958692},{"$f":"AZ96","v":0.60874797550958692},{"$f":"IF(AT15,BA96*BB$3,0)","v":0.60664569271128055},null,null,{"$f":"IF(NOT(AT15),BA96*BE$3,0)","v":0},null,null,null,null,null,{"$f":"BB96+BE96","v":0.60664569271128055},1.9907666658113772]
[null,"ARG-BA",null,null,0,0,1,0,0,null,1,null,null,null,null,1,0.69,null,0.20699999999999999,null,null,null,null,0,null,0,null,null,null,0,null,null,null,null,null,null,0.69,null,0,null,0.69,null,null,null,null,null,0.60874797550958692,null,0.60874797550958692,0.60874797550958692,0.60874797550958692,0.60874797550958692,0.60874797550958692,0.60664569271128055,null,null,0,null,null,null,null,null,0.60664569271128055,1.9907666658113772]
[null,"ARG-CAT",null,null,0,0,1,0,0,null,1,null,null,null,null,1,0.69,null,0.20699999999999999,null,null,null,null,0,null,0,null,null,null,0,null,null,null,null,null,null,0.69,null,0,null,0.69,null,null,null,null,null,0.60874797550958692,null,0.60874797550958692,0.60874797550958692,0.60874797550958692,0.60874797550958692,0.60874797550958692,0.60664569271128055,null,null,0,null,null,null,null,null,0.60664569271128055,1.9907666658113772]
[null,"ARG-CBA",null,null,0,0,1,0,0,null,1,null,null,null,null,1,0.69,null,0.20699999999999999,null,null,null,null,0,null,0,null,null,null,0,null,null,null,null,null,null,0.69,null,0,null,0.69,null,null,null,null,null,0.60874797550958692,null,0.60874797550958692,0.60874797550958692,0.60874797550958692,0.60874797550958692,0.60874797550958692,0.60664569271128055,null,null,0,null,null,null,null,null,0.60664569271128055,1.9907666658113772]
[null,"ARG-CHA",null,null,0,0,1,0,0,null,1,null,null,null,null,1,0.69,null,0.20699999999999999,null,null,null,null,0,null,0,null,null,null,0,null,null,null,null,null,null,0.69,null,0,null,0.69,null,null,null,null,null,0.60874797550958692,null,0.60874797550958692,0.60874797550958692,0.60874797550958692,0.60874797550958692,0.60874797550958692,0.60664569271128055,null,null,0,null,null,null,null,null,0.60664569271128055,1.9907666658113772]
[null,"ARG-CHU",null,null,0,0,1,0,0,null,1,null,null,null,null,1,0.69,null,0.20699999999999999,null,null,null,null,0,null,0,null,null,null,0,null,null,null,null,null,null,0.69,null,0,null,0.69,null,null,null,null,null,0.60874797550958692,null,0.60874797550958692,0.60874797550958692,0.60874797550958692,0.60874797550958692,0.60874797550958692,0.60664569271128055,null,null,0,null,null,null,null,null,0.60664569271128055,1.9907666658113772]
[null,"ARG-COR",null,null,0,0,1,0,0,null,1,null,null,null,null,1,0.69,null,0.20699999999999999,null,null,null,null,0,null,0,null,null,null,0,null,null,null,null,null,null,0.69,null,0,null,0.69,null,null,null,null,null,0.60874797550958692,null,0.60874797550958692,0.60874797550958692,0.60874797550958692,0.60874797550958692,0.60874797550958692,0.60664569271128055,null,null,0,null,null,null,null,null,0.60664569271128055,1.9907666658113772]
[null,"ARG-CRB",null,null,0,0,1,0,0,null,1,null,null,null,null,1,0.69,null,0.20699999999999999,null,null,null,null,0,null,0,null,null,null,0,null,null,null,null,null,null,0.69,null,0,null,0.69,null,null,null,null,null,0.60874797550958692,null,0.60874797550958692,0.60874797550958692,0.60874797550958692,0.60874797550958692,0.60874797550958692,0.60664569271128055,null,null,0,null,null,null,null,null,0.60664569271128055,1.9907666658113772]
[null,"ARG-CRU",null,null,0,0,1,0,0,null,1,null,null,null,null,1,0.69,null,0.20699999999999999,null,null,null,null,0,null,0,null,null,null,0,null,null,null,null,null,null,0.69,null,0,null,0.69,null,null,null,null,null,0.60874797550958692,null,0.60874797550958692,0.60874797550958692,0.60874797550958692,0.60874797550958692,0.60874797550958692,0.60664569271128055,null,null,0,null,null,null,null,null,0.60664569271128055,1.9907666658113772]
[null,"ARG-EST",null,null,{"$f":"IF(E$2=$K24,$K105,0)","v":0},0,1,0,0,null,1,null,null,null,null,1,0.69,null,0.20699999999999999,null,null,null,null,0,null,0,null,null,null,0,null,null,null,null,null,null,0.69,null,0,null,0.69,null,null,null,null,null,0.60874797550958692,null,0.60874797550958692,0.60874797550958692,0.60874797550958692,0.60874797550958692,0.60874797550958692,0.60664569271128055,null,null,0,null,null,null,null,null,0.60664569271128055,1.9907666658113772]
[null,"ARG-FOR",null,null,0,0,1,0,0,null,1,null,null,null,null,1,0.69,null,0.20699999999999999,null,null,null,null,0,null,0,null,null,null,0,null,null,null,null,null,null,0.69,null,0,null,0.69,null,null,null,null,null,0.60874797550958692,null,0.60874797550958692,0.60874797550958692,0.60874797550958692,0.60874797550958692,0.60874797550958692,0.60664569271128055,null,null,0,null,null,null,null,null,0.60664569271128055,1.9907666658113772]
[null,"ARG-FUE",null,null,0,0,1,0,0,null,1,null,null,null,null,1,0.69,null,0.20699999999999999,null,null,null,null,0,null,0,null,null,null,0,null,null,null,null,null,null,0.69,null,0,null,0.69,null,null,null,null,null,0.60874797550958692,null,0.60874797550958692,0.60874797550958692,0.60874797550958692,0.60874797550958692,0.60874797550958692,0.60664569271128055,null,null,0,null,null,null,null,null,0.60664569271128055,1.9907666658113772]
[null,"ARG-JUJ",null,null,0,0,1,0,0,null,1,null,null,null,null,1,0.69,null,0.20699999999999999,null,null,null,null,0,null,0,null,null,null,0,null,null,null,null,null,null,0.69,null,0,null,0.69,null,null,null,null,null,0.60874797550958692,null,0.60874797550958692,0.60874797550958692,0.60874797550958692,0.60874797550958692,0.60874797550958692,0.60664569271128055,null,null,0,null,null,null,null,null,0.60664569271128055,1.9907666658113772]
[null,"ARG-LAR",null,null,0,0,1,0,0,null,1,null,null,null,null,1,0.69,null,0.20699999999999999,null,null,null,null,0,null,0,null,null,null,0,null,null,null,null,null,null,0.69,null,0,null,0.69,null,null,null,null,null,0.60874797550958692,null,0.60874797550958692,0.60874797550958692,0.60874797550958692,0.60874797550958692,0.60874797550958692,0.60664569271128055,null,null,0,null,null,null,null,null,0.60664569271128055,1.9907666658113772]
[null,"ARG-MEN",null,null,0,0,1,0,0,null,1,null,null,null,null,1,0.69,null,0.20699999999999999,null,null,null,null,0,null,0,null,null,null,0,null,null,null,null,null,null,0.69,null,0,null,0.69,null,null,null,null,null,0.60874797550958692,null,0.60874797550958692,0.60874797550958692,0.60874797550958692,0.60874797550958692,0.60874797550958692,0.60664569271128055,null,null,0,null,null,null,null,null,0.60664569271128055,1.9907666658113772]
[null,"ARG-MIS",null,null,0,0,1,0,0,null,1,null,null,null,null,1,0.69,null,0.20699999999999999,null,null,null,null,0,null,0,null,null,null,0,null,null,null,null,null,null,0.69,null,0,null,0.69,null,null,null,null,null,0.60874797550958692,null,0.60874797550958692,0.60874797550958692,0.60874797550958692,0.60874797550958692,0.60874797550958692,0.60664569271128055,null,null,0,null,null,null,null,null,0.60664569271128055,1.9907666658113772]
[null,"ARG-NEG",null,null,0,0,1,0,0,null,1,null,null,null,null,1,0.69,null,0.20699999999999999,null,null,null,null,0,null,0,null,null,null,0,null,null,null,null,null,null,0.69,null,0,null,0.69,null,null,null,null,null,0.60874797550958692,null,0.60874797550958692,0.60874797550958692,0.60874797550958692,0.60874797550958692,0.60874797550958692,0.60664569271128055,null,null,0,null,null,null,null,null,0.60664569271128055,1.9907666658113772]
[null,"ARG-NEU",null,null,0,0,1,0,0,null,1,null,null,null,null,1,0.69,null,0.20699999999999999,null,null,null,null,0,null,0,null,null,null,0,null,null,null,null,null,null,0.69,null,0,null,0.69,null,null,null,null,null,0.60874797550958692,null,0.60874797550958692,0.60874797550958692,0.60874797550958692,0.60874797550958692,0.60874797550958692,0.60664569271128055,null,null,0,null,null,null,null,null,0.60664569271128055,1.9907666658113772]
[null,"ARG-PAM",null,null,0,0,1,0,0,null,1,null,null,null,null,1,0.69,null,0.20699999999999999,null,null,null,null,0,null,0,null,null,null,0,null,null,null,null,null,null,0.69,null,0,null,0.69,null,null,null,null,null,0.60874797550958692,null,0.60874797550958692,0.60874797550958692,0.60874797550958692,0.60874797550958692,0.60874797550958692,0.60664569271128055,null,null,0,null,null,null,null,null,0.60664569271128055,1.9907666658113772]
[null,"ARG-RIO",null,null,{"$f":"IF(E$2=$K34,$K115,0)","v":0},0,1,0,0,null,1,null,null,null,null,1,0.69,null,0.20699999999999999,null,null,null,null,0,null,0,null,null,null,0,null,null,null,null,null,null,0.69,null,0,null,0.69,null,null,null,null,null,0.60874797550958692,null,0.60874797550958692,0.60874797550958692,0.60874797550958692,0.60874797550958692,0.60874797550958692,0.60664569271128055,null,null,0,null,null,null,null,null,0.60664569271128055,1.9907666658113772]
[null,"ARG-SAF",null,null,0,0,1,0,0,null,1,null,null,null,null,1,0.69,null,0.20699999999999999,null,null,null,null,0,null,0,null,null,null,0,null,null,null,null,null,null,0.69,null,0,null,0.69,null,null,null,null,null,0.60874797550958692,null,0.60874797550958692,0.60874797550958692,0.60874797550958692,0.60874797550958692,0.60874797550958692,0.60664569271128055,null,null,0,null,null,null,null,null,0.60664569271128055,1.9907666658113772]
[null,"ARG-SAJ",null,null,0,0,1,0,0,null,1,null,null,null,null,1,0.69,null,0.20699999999999999,null,null,null,null,0,null,0,null,null,null,0,null,null,null,null,null,null,0.69,null,0,null,0.69,null,null,null,null,null,0.60874797550958692,null,0.60874797550958692,0.60874797550958692,0.60874797550958692,0.60874797550958692,0.60874797550958692,0.60664569271128055,null,null,0,null,null,null,null,null,0.60664569271128055,1.9907666658113772]
[null,"ARG-SAL",null,null,0,0,1,0,0,null,1,null,null,null,null,1,0.69,null,0.20699999999999999,null,null,null,null,0,null,0,null,null,null,0,null,null,null,null,null,null,0.69,null,0,null,0.69,null,null,null,null,null,0.60874797550958692,null,0.60874797550958692,0.60874797550958692,0.60874797550958692,0.60874797550958692,0.60874797550958692,0.60664569271128055,null,null,0,null,null,null,null,null,0.60664569271128055,1.9907666658113772]
[null,"ARG-SAT",null,null,0,0,1,0,0,null,1,null,null,null,null,1,0.69,null,0.20699999999999999,null,null,null,null,0,null,0,null,null,null,0,null,null,null,null,null,null,0.69,null,0,null,0.69,null,null,null,null,null,0.60874797550958692,null,0.60874797550958692,0.60874797550958692,0.60874797550958692,0.60874797550958692,0.60874797550958692,0.60664569271128055,null,null,0,null,null,null,null,null,0.60664569271128055,1.9907666658113772]
[null,"ARG-TUC",null,null,0,0,1,0,0,null,1,null,null,null,null,1,0.69,null,0.20699999999999999,null,null,null,null,0,null,0,null,null,null,0,null,null,null,null,null,null,0.69,null,0,null,0.69,null,null,null,null,null,0.60874797550958692,null,0.60874797550958692,0.60874797550958692,0.60874797550958692,0.60874797550958692,0.60874797550958692,0.60664569271128055,null,null,0,null,null,null,null,null,0.60664569271128055,1.9907666658113772]
[null,"AUS",null,null,0,0,1,0,0,null,1,null,null,null,null,1,0.69,null,0.20699999999999999,null,null,null,null,0,null,0,null,null,null,0,null,null,null,null,null,null,0.69,null,0,null,0.69,null,null,null,null,null,0.55459502382644932,null,0.55459502382644932,0.55459502382644932,0.55459502382644932,0.55459502382644932,0.55459502382644932,0.55267975572614769,null,null,0,null,null,null,null,null,0.55267975572614769,2.185153355980852]
[null,"BRA",null,null,0,0,1,0,0,null,1,null,null,null,null,1,0.69,null,0.20699999999999999,null,null,null,null,0,null,0,null,null,null,0,null,null,null,null,null,null,0.69,null,0,null,0.69,null,null,null,null,null,0.6235527925081874,null,0.6235527925081874,0.6235527925081874,0.6235527925081874,0.6235527925081874,0.6235527925081874,0.62139938196348943,null,null,0,null,null,null,null,null,0.62139938196348943,1.9435005216639041]
[null,"CHL",null,null,0,0,1,0,0,null,1,null,null,null,null,1,0.69,null,0.20699999999999999,null,null,null,null,0,null,0,null,null,null,0,null,null,null,null,null,null,0.69,null,0,null,0.69,null,null,null,null,null,0.61013249287508431,null,0.61013249287508431,0.61013249287508431,0.61013249287508431,0.61013249287508431,0.61013249287508431,0.60802542871050069,null,null,0,null,null,null,null,null,0.60802542871050069,1.9862492027166301]
[null,"CHN",null,null,0,0,1,0,0,null,1,null,null,null,null,1,0.69,null,0.20699999999999999,null,null,null,null,0,null,0,null,null,null,0,null,null,null,null,null,null,0.69,null,0,null,0.69,null,null,null,null,null,0.55923825344646416,null,0.55923825344646416,0.55923825344646416,0.55923825344646416,0.55923825344646416,0.55923825344646416,0.55730695016879617,null,null,0,null,null,null,null,null,0.55730695016879617,2.1670105184259523]
[null,"COL",null,null,{"$f":"IF(E$2=$K44,$K125,0)","v":0},0,1,0,0,null,1,null,null,null,null,1,0.69,null,0.20699999999999999,null,null,null,null,0,null,0,null,null,null,0,null,null,null,null,null,null,0.69,null,0,null,0.69,null,null,null,null,null,0.6309495326160901,null,0.6309495326160901,0.6309495326160901,0.6309495326160901,0.6309495326160901,0.6309495326160901,0.62877057777372225,null,null,0,null,null,null,null,null,0.62877057777372225,1.9207164993052277]
[null,"CRI",null,null,0,0,1,0,0,null,1,null,null,null,null,1,0.69,null,0.20699999999999999,null,null,null,null,0,null,0,null,null,null,0,null,null,null,null,null,null,0.69,null,0,null,0.69,null,null,null,null,null,0.6426191419060735,null,0.6426191419060735,0.6426191419060735,0.6426191419060735,0.6426191419060735,0.6426191419060735,0.64039988661120262,null,null,0,null,null,null,null,null,0.64039988661120262,1.8858373467215772]
[null,"DNK",null,null,0,0,1,0,0,null,1,null,null,null,null,{"$f":"K127*P46","v":1},{"$f":"P127*Q$3","v":0.69},null,0.20699999999999999,null,null,null,null,0,null,{"$f":"IF($M46,$X127*MAX(0,Y$6)/Z$3,0)","v":0},null,null,null,{"$f":"IF($N46,$X127*MAX(0,AC$6)/AD$3,0)","v":0},null,null,null,null,null,null,0,null,0.69,null,0.69,null,null,null,null,null,0.69,null,0.69,0.69,0.69,0.68418099999999993,0.68418099999999993,0,null,null,0.68418099999999993,null,null,null,null,null,0.68418099999999993,{"$f":"(K127+K208)/BK127","v":1.4826792910063276}]
[null,"DZA",null,null,0,0,1,0,0,null,1,null,null,null,null,1,0.69,null,0.20699999999999999,null,null,null,null,0,null,0,null,null,null,0,null,null,null,null,null,null,0,null,0.69,null,0.69,null,null,null,null,null,0.69,null,0.68650860000000002,0.65524499835600003,0.65524499835600003,0.65524499835600003,0.65524499835600003,0,null,null,0.65524499835600003,null,null,null,null,null,0.65524499835600003,1.5481552740504196]
[null,"EGY",null,null,0,0,1,0,0,null,1,null,null,null,null,1,0.69,null,0.20699999999999999,null,null,null,null,0,null,0,null,null,null,0,null,null,null,null,null,null,0,null,0.69,null,0.69,null,null,null,null,null,0.69,null,0.69,0.63180999999999987,0.63180999999999987,0.63180999999999987,0.63180999999999987,0,null,null,0.63180999999999987,null,null,null,null,null,0.63180999999999987,1.6055792089393968]
[null,"ESP",null,null,0,0,1,0,0,null,1,null,null,null,null,1,0.69,null,0.20699999999999999,null,null,null,null,0,null,0,null,null,null,0,null,null,null,null,null,null,0,null,0.69,null,0.69,null,null,null,null,null,0.69,null,0.69,0.672543,0.672543,0.672543,0.672543,0,null,null,0.672543,null,null,null,null,null,0.672543,1.5083362699485385]
[null,"IDN",null,null,0,0,1,0,0,null,1,null,null,null,null,1,0.69,null,0.20699999999999999,null,null,null,null,0,null,0,null,null,null,0,null,null,null,null,null,null,0.69,null,0,null,0.69,null,null,null,null,null,0.58182309083796058,null,0.58182309083796058,0.58182309083796058,0.58182309083796058,0.58182309083796058,0.58182309083796058,0.57981379187560722,null,null,0,null,null,null,null,null,0.57981379187560722,2.0828928872163948]
[null,"IND",null,null,0,0,1,0,0,null,1,null,null,null,null,1,0.69,null,0.20699999999999999,null,null,null,null,0,null,0,null,null,null,0,null,null,null,null,null,null,0.69,null,0,null,0.69,null,null,null,null,null,0.60901030457813821,null,0.60901030457813821,0.60901030457813821,0.60901030457813821,0.60901030457813821,0.60901030457813821,0.60690711583860402,null,null,0,null,null,null,null,null,0.60690711583860402,1.9899091500005293]
[null,"JOR",null,null,0,0,1,0,0,null,1,null,null,null,null,1,0.69,null,0.20699999999999999,null,null,null,null,0,null,0,null,null,null,0,null,null,null,null,null,null,0,null,0.69,null,0.69,null,null,null,null,null,0.69,null,0.69,0.64926700000000004,0.64926700000000004,0.64926700000000004,0.64926700000000004,0,null,null,0.64926700000000004,null,null,null,null,null,0.64926700000000004,1.5624096096059095]
[null,"KAZ",null,null,0,0,1,0,0,null,1,null,null,null,null,1,0.69,null,0.20699999999999999,null,null,null,null,0,null,0,null,null,null,0,null,null,null,null,null,null,0,null,0.69,null,0.69,null,null,null,null,null,0.69,null,0.69,0.64926700000000004,0.64926700000000004,0.64926700000000004,0.64926700000000004,0,null,null,0.64926700000000004,null,null,null,null,null,0.64926700000000004,1.5624096096059095]
[null,"KEN",null,null,{"$f":"IF(E$2=$K54,$K135,0)","v":0},0,1,0,0,null,1,null,null,null,null,1,0.69,null,0.20699999999999999,null,null,null,null,0,null,0,null,null,null,0,null,null,null,null,null,null,0.69,null,0,null,0.69,null,null,null,null,null,0.60820345246929863,null,0.60820345246929863,0.60820345246929863,0.60820345246929863,0.60820345246929863,0.60820345246929863,0.60610305015596622,null,null,0,null,null,null,null,null,0.60610305015596622,1.9925489942624426]
[null,"MAR",null,null,0,0,1,0,0,null,1,null,null,null,null,1,0.69,null,0.20699999999999999,null,null,null,null,0,null,0,null,null,null,0,null,null,null,null,null,null,0.69,null,0,null,0.69,null,null,null,null,null,0.67296833501423881,null,0.67296833501423881,0.67296833501423881,0.67296833501423881,0.67296833501423881,0.67296833501423881,0.67064427019361905,null,null,0,null,null,null,null,null,0.67064427019361905,1.8007907868339825]
[null,"MAR-BEN",null,null,0,0,1,0,0,null,1,null,null,null,null,1,0.69,null,0.20699999999999999,null,null,null,null,0,null,0,null,null,null,0,null,null,null,null,null,null,0.69,null,0,null,0.69,null,null,null,null,null,0.67296833501423881,null,0.67296833501423881,0.67296833501423881,0.67296833501423881,0.67296833501423881,0.67296833501423881,0.67064427019361905,null,null,0,null,null,null,null,null,0.67064427019361905,1.8007907868339825]
[null,"MAR-CAS",null,null,0,0,1,0,0,null,1,null,null,null,null,1,0.69,null,0.20699999999999999,null,null,null,null,0,null,0,null,null,null,0,null,null,null,null,null,null,0.69,null,0,null,0.69,null,null,null,null,null,0.67296833501423881,null,0.67296833501423881,0.67296833501423881,0.67296833501423881,0.67296833501423881,0.67296833501423881,0.67064427019361905,null,null,0,null,null,null,null,null,0.67064427019361905,1.8007907868339825]
[null,"MAR-DAK",null,null,0,0,1,0,0,null,1,null,null,null,null,1,0.69,null,0.20699999999999999,null,null,null,null,0,null,0,null,null,null,0,null,null,null,null,null,null,0.69,null,0,null,0.69,null,null,null,null,null,0.67296833501423881,null,0.67296833501423881,0.67296833501423881,0.67296833501423881,0.67296833501423881,0.67296833501423881,0.67064427019361905,null,null,0,null,null,null,null,null,0.67064427019361905,1.8007907868339825]
[null,"MAR-DRA",null,null,0,0,1,0,0,null,1,null,null,null,null,1,0.69,null,0.20699999999999999,null,null,null,null,0,null,0,null,null,null,0,null,null,null,null,null,null,0.69,null,0,null,0.69,null,null,null,null,null,0.67296833501423881,null,0.67296833501423881,0.67296833501423881,0.67296833501423881,0.67296833501423881,0.67296833501423881,0.67064427019361905,null,null,0,null,null,null,null,null,0.67064427019361905,1.8007907868339825]
[null,"MAR-FES",null,null,0,0,1,0,0,null,1,null,null,null,null,1,0.69,null,0.20699999999999999,null,null,null,null,0,null,0,null,null,null,0,null,null,null,null,null,null,0.69,null,0,null,0.69,null,null,null,null,null,0.67296833501423881,null,0.67296833501423881,0.67296833501423881,0.67296833501423881,0.67296833501423881,0.67296833501423881,0.67064427019361905,null,null,0,null,null,null,null,null,0.67064427019361905,1.8007907868339825]
[null,"MAR-GUE",null,null,0,0,1,0,0,null,1,null,null,null,null,1,0.69,null,0.20699999999999999,null,null,null,null,0,null,0,null,null,null,0,null,null,null,null,null,null,0.69,null,0,null,0.69,null,null,null,null,null,0.67296833501423881,null,0.67296833501423881,0.67296833501423881,0.67296833501423881,0.67296833501423881,0.67296833501423881,0.67064427019361905,null,null,0,null,null,null,null,null,0.67064427019361905,1.8007907868339825]
[null,"MAR-LAA",null,null,0,0,1,0,0,null,1,null,null,null,null,1,0.69,null,0.20699999999999999,null,null,null,null,0,null,0,null,null,null,0,null,null,null,null,null,null,0.69,null,0,null,0.69,null,null,null,null,null,0.67296833501423881,null,0.67296833501423881,0.67296833501423881,0.67296833501423881,0.67296833501423881,0.67296833501423881,0.67064427019361905,null,null,0,null,null,null,null,null,0.67064427019361905,1.8007907868339825]
[null,"MAR-LOR",null,null,0,0,1,0,0,null,1,null,null,null,null,1,0.69,null,0.20699999999999999,null,null,null,null,0,null,0,null,null,null,0,null,null,null,null,null,null,0.69,null,0,null,0.69,null,null,null,null,null,0.67296833501423881,null,0.67296833501423881,0.67296833501423881,0.67296833501423881,0.67296833501423881,0.67296833501423881,0.67064427019361905,null,null,0,null,null,null,null,null,0.67064427019361905,1.8007907868339825]
[null,"MAR-MAR",null,null,{"$f":"IF(E$2=$K64,$K145,0)","v":0},0,1,0,0,null,1,null,null,null,null,1,0.69,null,0.20699999999999999,null,null,null,null,0,null,0,null,null,null,0,null,null,null,null,null,null,0.69,null,0,null,0.69,null,null,null,null,null,0.67296833501423881,null,0.67296833501423881,0.67296833501423881,0.67296833501423881,0.67296833501423881,0.67296833501423881,0.67064427019361905,null,null,0,null,null,null,null,null,0.67064427019361905,1.8007907868339825]
[null,"MAR-RAB",null,null,0,0,1,0,0,null,1,null,null,null,null,1,0.69,null,0.20699999999999999,null,null,null,null,0,null,0,null,null,null,0,null,null,null,null,null,null,0.69,null,0,null,0.69,null,null,null,null,null,0.67296833501423881,null,0.67296833501423881,0.67296833501423881,0.67296833501423881,0.67296833501423881,0.67296833501423881,0.67064427019361905,null,null,0,null,null,null,null,null,0.67064427019361905,1.8007907868339825]
[null,"MAR-SOU",null,null,0,0,1,0,0,null,1,null,null,null,null,1,0.69,null,0.20699999999999999,null,null,null,null,0,null,0,null,null,null,0,null,null,null,null,null,null,0.69,null,0,null,0.69,null,null,null,null,null,0.67296833501423881,null,0.67296833501423881,0.67296833501423881,0.67296833501423881,0.67296833501423881,0.67296833501423881,0.67064427019361905,null,null,0,null,null,null,null,null,0.67064427019361905,1.8007907868339825]
[null,"MAR-TAN",null,null,0,0,1,0,0,null,1,null,null,null,null,1,0.69,null,0.20699999999999999,null,null,null,null,0,null,0,null,null,null,0,null,null,null,null,null,null,0.69,null,0,null,0.69,null,null,null,null,null,0.67296833501423881,null,0.67296833501423881,0.67296833501423881,0.67296833501423881,0.67296833501423881,0.67296833501423881,0.67064427019361905,null,null,0,null,null,null,null,null,0.67064427019361905,1.8007907868339825]
[null,"MEX",null,null,0,0,1,0,0,null,1,null,null,null,null,1,0.69,null,0.20699999999999999,null,null,null,null,0,null,0,null,null,null,0,null,null,null,null,null,null,0.69,null,0,null,0.69,null,null,null,null,null,0.62453071769073654,null,0.62453071769073654,0.62453071769073654,0.62453071769073654,0.62453071769073654,0.62453071769073654,0.62237392992693963,null,null,0,null,null,null,null,null,0.62237392992693963,1.9404572796766082]
[null,"MRT",null,null,0,0,1,0,0,null,1,null,null,null,null,1,0.69,null,0.20699999999999999,null,null,null,null,0,null,0,null,null,null,0,null,null,null,null,null,null,0,null,0.69,null,0.69,null,null,null,null,null,0.69,null,0.69,0.63180999999999987,0.63180999999999987,0.63180999999999987,0.63180999999999987,0,null,null,0.63180999999999987,null,null,null,null,null,0.63180999999999987,1.6055792089393968]
[null,"NAM",null,null,0,0,1,0,0,null,1,null,null,null,null,1,0.69,null,0.20699999999999999,null,null,null,null,0,null,0,null,null,null,0,null,null,null,null,null,null,0.69,null,0,null,0.69,null,null,null,null,null,0.62154651388628657,null,0.62154651388628657,0.62154651388628657,0.62154651388628657,0.62154651388628657,0.62154651388628657,0.61940003193142401,null,null,0,null,null,null,null,null,0.61940003193142401,1.94977391144432]
[null,"NOR",null,null,0,0,1,0,0,null,1,null,null,null,null,1,0.69,null,0.20699999999999999,null,null,null,null,0,null,0,null,null,null,0,null,null,null,null,null,null,0,null,0.69,null,0.69,null,null,null,null,null,0.69,null,0.69,0.69,0.68418099999999993,0.68418099999999993,0.68418099999999993,0,null,null,0.68418099999999993,null,null,null,null,null,0.68418099999999993,1.4826792910063276]
[null,"PER",null,null,0,0,1,0,0,null,1,null,null,null,null,1,0.69,null,0.20699999999999999,null,null,null,null,0,null,0,null,null,null,0,null,null,null,null,null,null,0.69,null,0,null,0.69,null,null,null,null,null,0.61159708265239554,null,0.61159708265239554,0.61159708265239554,0.61159708265239554,0.61159708265239554,0.61159708265239554,0.60948496059518753,null,null,0,null,null,null,null,null,0.60948496059518753,1.9814927374554239]
[null,"PRT",null,null,0,0,1,0,0,null,1,null,null,null,null,1,0.69,null,0.20699999999999999,null,null,null,null,0,null,0,null,null,null,0,null,null,null,null,null,null,0,null,0.69,null,0.69,null,null,null,null,null,0.69,null,0.69,0.66672399999999998,0.66672399999999998,0.66672399999999998,0.66672399999999998,0,null,null,0.66672399999999998,null,null,null,null,null,0.66672399999999998,1.521500650944019]
[null,"RUS",null,null,{"$f":"IF(E$2=$K74,$K155,0)","v":0},0,1,0,0,null,1,null,null,null,null,1,0.69,null,0.20699999999999999,null,null,null,null,0,null,0,null,null,null,0,null,null,null,null,null,null,0,null,0.69,null,0.69,null,null,null,null,null,0.69,null,0.69,0.69,0.67836199999999991,0.67836199999999991,0.67836199999999991,0,null,null,0.67836199999999991,null,null,null,null,null,0.67836199999999991,1.4953977374911922]
[null,"SAU",null,null,0,0,1,0,0,null,1,null,null,null,null,1,0.69,null,0.20699999999999999,null,null,null,null,0,null,0,null,null,null,0,null,null,null,null,null,null,0,null,0.69,null,0.69,null,null,null,null,null,0.69,null,0.69,0.637629,0.637629,0.637629,0.637629,0,null,null,0.637629,null,null,null,null,null,0.637629,1.5909266987542914]
[null,"SWE",null,null,0,0,1,0,0,null,1,null,null,null,null,1,0.69,null,0.20699999999999999,null,null,null,null,0,null,0,null,null,null,0,null,null,null,null,null,null,0,null,0.69,null,0.69,null,null,null,null,null,0.69,null,0.68650860000000002,0.6784032217960001,0.6784032217960001,0.6784032217960001,0.6784032217960001,0,null,null,0.6784032217960001,null,null,null,null,null,0.6784032217960001,1.4953068726802752]
[null,"THA",null,null,0,0,1,0,0,null,1,null,null,null,null,1,0.69,null,0.20699999999999999,null,null,null,null,0,null,0,null,null,null,0,null,null,null,null,null,null,0.69,null,0,null,0.69,null,null,null,null,null,0.57461248844757185,null,0.57461248844757185,0.57461248844757185,0.57461248844757185,0.57461248844757185,0.57461248844757185,0.57262809096494505,null,null,0,null,null,null,null,null,0.57262809096494505,2.1090303498254355]
[null,"TUN",null,null,0,0,1,0,0,null,1,null,null,null,null,{"$f":"K159*P78","v":1},{"$f":"P159*Q$3","v":0.69},null,0.20699999999999999,null,null,null,null,0,null,{"$f":"IF($M78,$X159*MAX(0,Y$6)/Z$3,0)","v":0},null,null,null,{"$f":"IF($N78,$X159*MAX(0,AC$6)/AD$3,0)","v":0},null,null,null,null,null,null,0,null,0.69,null,0.69,null,null,null,null,null,0.69,null,0.68185339999999994,0.66690262778266662,0.66690262778266662,0.66690262778266662,0.66690262778266662,0,null,null,0.66690262778266662,null,null,null,null,null,0.66690262778266662,{"$f":"(K159+K240)/BK159","v":1.5210931217541765}]
[null,"UKR",null,null,0,0,1,0,0,null,1,null,null,null,null,1,0.69,null,{"$f":"IF($M79,Q160*MAX(0,R$6)/S$3,0)","v":0.20699999999999999},null,null,null,null,{"$f":"$Q160*X$3","v":0},null,0,null,null,null,0,null,null,null,null,null,null,{"$f":"IF($X$2=\"\",$Q160,$X160)*IF($AT79,AK$3,0)","v":0},null,{"$f":"IF($X$2=\"\",$Q160,$X160)*IF(NOT($AT79),AM$3,0)","v":0.69},null,{"$f":"AK160+AM160","v":0.69},null,null,null,null,null,{"$f":"$AO160*MAX(0,1-AU79*AU$4)","v":0.69},null,{"$f":"$AU160*MAX(0,1-AW79*AW$4)","v":0.69},{"$f":"$AW160*MAX(0,1-AX79*AX$4)","v":0.672543},{"$f":"$AX160*MAX(0,1-AY79*AY$4)","v":0.672543},{"$f":"$AY160*MAX(0,1-AZ79*AZ$4)","v":0.672543},{"$f":"AZ160","v":0.672543},{"$f":"IF(AT79,BA160*BB$3,0)","v":0},null,null,{"$f":"IF(NOT(AT79),BA160*BE$3,0)","v":0.672543},null,null,null,null,null,{"$f":"BB160+BE160","v":0.672543},1.5083362699485385]
[null,"URY",null,null,0,0,1,0,0,null,1,null,null,null,null,1,0.69,null,0.20699999999999999,null,null,null,null,0,null,0,null,null,null,0,null,null,null,null,null,null,0.69,null,0,null,0.69,null,null,null,null,null,0.6099071615503846,null,0.6099071615503846,0.6099071615503846,0.6099071615503846,0.6099071615503846,0.6099071615503846,0.60780087555704243,null,null,0,null,null,null,null,null,0.60780087555704243,1.9869830261445993]
[null,"USA",null,null,0,0,1,0,0,null,1,null,null,null,null,1,0.69,null,0.20699999999999999,null,null,null,null,0,null,0,null,null,null,0,null,null,null,null,null,null,0.69,null,0,null,0.69,null,null,null,null,null,0.63686987379793658,null,0.63686987379793658,0.63686987379793658,0.63686987379793658,0.63686987379793658,0.63686987379793658,0.63467047333286863,null,null,0,null,null,null,null,null,0.63467047333286863,1.9028615222411116]
[null,"VNM",null,null,0,0,1,0,0,null,1,null,null,null,null,1,0.69,null,0.20699999999999999,null,null,null,null,0,null,0,null,null,null,0,null,null,null,null,null,null,0.69,null,0,null,0.69,null,null,null,null,null,0.57340048678692812,null,0.57340048678692812,0.57340048678692812,0.57340048678692812,0.57340048678692812,0.57340048678692812,0.57142027489562186,null,null,0,null,null,null,null,null,0.57142027489562186,2.1134882258566536]
[null,"ZAF",null,null,0,0,1,0,0,null,1,null,null,null,null,1,0.69,null,0.20699999999999999,null,null,null,null,0,null,0,null,null,null,0,null,null,null,null,null,null,0.69,null,0,null,0.69,null,null,null,null,null,0.61474168661341921,null,0.61474168661341921,0.61474168661341921,0.61474168661341921,0.61474168661341921,0.61474168661341921,0.61261870481280223,null,null,0,null,null,null,null,null,0.61261870481280223,1.9713567566904489]
[null,"ZAF-EC",null,null,{"$f":"IF(E$2=$K84,$K165,0)","v":0},0,1,0,0,null,1,null,null,null,null,1,0.69,null,0.20699999999999999,null,null,null,null,0,null,0,null,null,null,0,null,null,null,null,null,null,0.69,null,0,null,0.69,null,null,null,null,null,0.61474168661341921,null,0.61474168661341921,0.61474168661341921,0.61474168661341921,0.61474168661341921,0.61474168661341921,0.61261870481280223,null,null,0,null,null,null,null,null,0.61261870481280223,1.9713567566904489]
[null,"ZAF-FRS",null,null,0,0,1,0,0,null,1,null,null,null,null,1,0.69,null,0.20699999999999999,null,null,null,null,0,null,0,null,null,null,0,null,null,null,null,null,null,0.69,null,0,null,0.69,null,null,null,null,null,0.61474168661341921,null,0.61474168661341921,0.61474168661341921,0.61474168661341921,0.61474168661341921,0.61474168661341921,0.61261870481280223,null,null,0,null,null,null,null,null,0.61261870481280223,1.9713567566904489]
[null,"ZAF-GAU",null,null,0,0,1,0,0,null,1,null,null,null,null,1,0.69,null,0.20699999999999999,null,null,null,null,0,null,0,null,null,null,0,null,null,null,null,null,null,0.69,null,0,null,0.69,null,null,null,null,null,0.61474168661341921,null,0.61474168661341921,0.61474168661341921,0.61474168661341921,0.61474168661341921,0.61474168661341921,0.61261870481280223,null,null,0,null,null,null,null,null,0.61261870481280223,1.9713567566904489]
[null,"ZAF-KWA",null,null,0,0,1,0,0,null,1,null,null,null,null,1,0.69,null,0.20699999999999999,null,null,null,null,0,null,0,null,null,null,0,null,null,null,null,null,null,0.69,null,0,null,0.69,null,null,null,null,null,0.61474168661341921,null,0.61474168661341921,0.61474168661341921,0.61474168661341921,0.61474168661341921,0.61474168661341921,0.61261870481280223,null,null,0,null,null,null,null,null,0.61261870481280223,1.9713567566904489]
[null,"ZAF-LIM",null,null,0,0,1,0,0,null,1,null,null,null,null,1,0.69,null,0.20699999999999999,null,null,null,null,0,null,0,null,null,null,0,null,null,null,null,null,null,0.69,null,0,null,0.69,null,null,null,null,null,0.61474168661341921,null,0.61474168661341921,0.61474168661341921,0.61474168661341921,0.61474168661341921,0.61474168661341921,0.61261870481280223,null,null,0,null,null,null,null,null,0.61261870481280223,1.9713567566904489]
[null,"ZAF-MPU",null,null,0,0,1,0,0,null,1,null,null,null,null,1,0.69,null,0.20699999999999999,null,null,null,null,0,null,0,null,null,null,0,null,null,null,null,null,null,0.69,null,0,null,0.69,null,null,null,null,null,0.61474168661341921,null,0.61474168661341921,0.61474168661341921,0.61474168661341921,0.61474168661341921,0.61474168661341921,0.61261870481280223,null,null,0,null,null,null,null,null,0.61261870481280223,1.9713567566904489]
[null,"ZAF-NC",null,null,0,0,1,0,0,null,1,null,null,null,null,1,0.69,null,0.20699999999999999,null,null,null,null,0,null,0,null,null,null,0,null,null,null,null,null,null,0.69,null,0,null,0.69,null,null,null,null,null,0.61474168661341921,null,0.61474168661341921,0.61474168661341921,0.61474168661341921,0.61474168661341921,0.61474168661341921,0.61261870481280223,null,null,0,null,null,null,null,null,0.61261870481280223,1.9713567566904489]
[null,"ZAF-NW",null,null,0,0,1,0,0,null,1,null,null,null,null,1,0.69,null,0.20699999999999999,null,null,null,null,0,null,0,null,null,null,0,null,null,null,null,null,null,0.69,null,0,null,0.69,null,null,null,null,null,0.61474168661341921,null,0.61474168661341921,0.61474168661341921,0.61474168661341921,0.61474168661341921,0.61474168661341921,0.61261870481280223,null,null,0,null,null,null,null,null,0.61261870481280223,1.9713567566904489]
[null,"ZAF-WC",null,null,0,0,1,0,0,null,1,null,null,null,null,1,0.69,null,0.20699999999999999,null,null,null,null,0,null,0,null,null,null,0,null,null,null,null,null,null,0.69,null,0,null,0.69,null,null,null,null,null,0.61474168661341921,null,0.61474168661341921,0.61474168661341921,0.61474168661341921,0.61474168661341921,0.61474168661341921,0.61261870481280223,null,null,0,null,null,null,null,null,0.61261870481280223,1.9713567566904489]
[]
["flow"]
[null,"ARE",null,null,null,null,null,null,null,null,{"$f":"U176+V176+AB176+AF176+AG176+AL176+AN176","v":1.4421E-2},null,null,null,null,null,null,{"$f":"IF($M14,0,$Q95*R$6)","v":0},null,{"$f":"$S95*T$6","v":0},{"$f":"$S95*U$6","v":6.2100000000000002E-4},{"$f":"$Q95*$V$6","v":0},null,null,{"$f":"IF($M14,0,$X95*Y$6)","v":0},null,{"$f":"$Z95*AA$6","v":0},{"$f":"$Z95*AB$6","v":0},{"$f":"IF($N14,0,$X95*AC$6)","v":0},null,{"$f":"$AD95*AE$6","v":0},{"$f":"$AD95*AF$6","v":0},{"$f":"$X95*AG$6","v":0},{"$f":"$X95*AH$6","v":0},{"$f":"$X95*AI$6","v":0},null,null,{"$f":"$AK95*AL$6","v":0},null,{"$f":"$AM95*AN$6","v":1.38E-2},null,null,null,null,null,null,null,{"$f":"AU14*AU95*AV$6","v":0},null,null,null,null,null,null,{"$f":"$BB95*BC$6","v":0},{"$f":"$BB95*BD$6","v":0},null,{"$f":"$BE95*BF$6","v":0},{"$f":"$BE95*BG$6","v":0}]
[null,"ARG",null,null,null,null,null,null,null,null,{"$f":"U177+V177+AB177+AF177+AG177+AL177+AN177","v":0.2076900230076692},null,null,null,null,null,null,0,null,{"$f":"$S96*T$6","v":0},6.2100000000000002E-4,0,null,null,0,null,{"$f":"$Z96*AA$6","v":0},0,0,null,{"$f":"$AD96*AE$6","v":0},0,{"$f":"$X96*AG$6","v":0},0,0,null,null,{"$f":"$AK96*AL$6","v":0.20706902300766919},null,{"$f":"$AM96*AN$6","v":0},null,null,null,null,null,null,null,{"$f":"AU15*AU96*AV$6","v":0},null,null,null,null,null,null,{"$f":"$BB96*BC$6","v":0},0,null,{"$f":"$BE96*BF$6","v":0},0]
[null,"ARG-BA",null,null,null,null,null,null,null,null,0.2076900230076692,null,null,null,null,null,null,0,null,{"$f":"$S97*T$6","v":0},6.2100000000000002E-4,0,null,null,0,null,{"$f":"$Z97*AA$6","v":0},0,0,null,{"$f":"$AD97*AE$6","v":0},0,0,0,0,null,null,0.20706902300766919,null,0,null,null,null,null,null,null,null,0,null,null,null,null,null,null,0,0,null,0,0]
[null,"ARG-CAT",null,null,null,null,null,null,null,null,0.2076900230076692,null,null,null,null,null,null,0,null,{"$f":"$S98*T$6","v":0},6.2100000000000002E-4,0,null,null,0,null,{"$f":"$Z98*AA$6","v":0},0,0,null,{"$f":"$AD98*AE$6","v":0},0,0,0,0,null,null,0.20706902300766919,null,0,null,null,null,null,null,null,null,0,null,null,null,null,null,null,0,0,null,0,0]
[null,"ARG-CBA",null,null,null,null,null,null,null,null,0.2076900230076692,null,null,null,null,null,null,0,null,{"$f":"$S99*T$6","v":0},6.2100000000000002E-4,0,null,null,0,null,{"$f":"$Z99*AA$6","v":0},0,0,null,{"$f":"$AD99*AE$6","v":0},0,0,0,0,null,null,0.20706902300766919,null,0,null,null,null,null,null,null,null,0,null,null,null,null,null,null,0,0,null,0,0]
[null,"ARG-CHA",null,null,null,null,null,null,null,null,0.2076900230076692,null,null,null,null,null,null,0,null,{"$f":"$S100*T$6","v":0},6.2100000000000002E-4,0,null,null,0,null,{"$f":"$Z100*AA$6","v":0},0,0,null,{"$f":"$AD100*AE$6","v":0},0,0,0,0,null,null,0.20706902300766919,null,0,null,null,null,null,null,null,null,0,null,null,null,null,null,null,0,0,null,0,0]
[null,"ARG-CHU",null,null,null,null,null,null,null,null,0.2076900230076692,null,null,null,null,null,null,0,null,{"$f":"$S101*T$6","v":0},6.2100000000000002E-4,0,null,null,0,null,{"$f":"$Z101*AA$6","v":0},0,0,null,{"$f":"$AD101*AE$6","v":0},0,0,0,0,null,null,0.20706902300766919,null,0,null,null,null,null,null,null,null,0,null,null,null,null,null,null,0,0,null,0,0]
[null,"ARG-COR",null,null,null,null,null,null,null,null,0.2076900230076692,null,null,null,null,null,null,0,null,{"$f":"$S102*T$6","v":0},6.2100000000000002E-4,0,null,null,0,null,{"$f":"$Z102*AA$6","v":0},0,0,null,{"$f":"$AD102*AE$6","v":0},0,0,0,0,null,null,0.20706902300766919,null,0,null,null,null,null,null,null,null,0,null,null,null,null,null,null,0,0,null,0,0]
[null,"ARG-CRB",null,null,null,null,null,null,null,null,0.2076900230076692,null,null,null,null,null,null,0,null,{"$f":"$S103*T$6","v":0},6.2100000000000002E-4,0,null,null,0,null,{"$f":"$Z103*AA$6","v":0},0,0,null,{"$f":"$AD103*AE$6","v":0},0,0,0,0,null,null,0.20706902300766919,null,0,null,null,null,null,null,null,null,0,null,null,null,null,null,null,0,0,null,0,0]
[null,"ARG-CRU",null,null,null,null,null,null,null,null,0.2076900230076692,null,null,null,null,null,null,0,null,{"$f":"$S104*T$6","v":0},6.2100000000000002E-4,0,null,null,0,null,{"$f":"$Z104*AA$6","v":0},0,0,null,{"$f":"$AD104*AE$6","v":0},0,0,0,0,null,null,0.20706902300766919,null,0,null,null,null,null,null,null,null,0,null,null,null,null,null,null,0,0,null,0,0]
[null,"ARG-EST",null,null,null,null,null,null,null,null,0.2076900230076692,null,null,null,null,null,null,0,null,{"$f":"$S105*T$6","v":0},6.2100000000000002E-4,0,null,null,0,null,{"$f":"$Z105*AA$6","v":0},0,0,null,{"$f":"$AD105*AE$6","v":0},0,0,0,0,null,null,0.20706902300766919,null,0,null,null,null,null,null,null,null,0,null,null,null,null,null,null,0,0,null,0,0]
[null,"ARG-FOR",null,null,null,null,null,null,null,null,0.2076900230076692,null,null,null,null,null,null,0,null,{"$f":"$S106*T$6","v":0},6.2100000000000002E-4,0,null,null,0,null,{"$f":"$Z106*AA$6","v":0},0,0,null,{"$f":"$AD106*AE$6","v":0},0,0,0,0,null,null,0.20706902300766919,null,0,null,null,null,null,null,null,null,0,null,null,null,null,null,null,0,0,null,0,0]
[null,"ARG-FUE",null,null,null,null,null,null,null,null,0.2076900230076692,null,null,null,null,null,null,0,null,{"$f":"$S107*T$6","v":0},6.2100000000000002E-4,0,null,null,0,null,{"$f":"$Z107*AA$6","v":0},0,0,null,{"$f":"$AD107*AE$6","v":0},0,0,0,0,null,null,0.20706902300766919,null,0,null,null,null,null,null,null,null,0,null,null,null,null,null,null,0,0,null,0,0]
[null,"ARG-JUJ",null,null,null,null,null,null,null,null,0.2076900230076692,null,null,null,null,null,null,0,null,{"$f":"$S108*T$6","v":0},6.2100000000000002E-4,0,null,null,0,null,{"$f":"$Z108*AA$6","v":0},0,0,null,{"$f":"$AD108*AE$6","v":0},0,0,0,0,null,null,0.20706902300766919,null,0,null,null,null,null,null,null,null,0,null,null,null,null,null,null,0,0,null,0,0]
[null,"ARG-LAR",null,null,null,null,null,null,null,null,0.2076900230076692,null,null,null,null,null,null,0,null,{"$f":"$S109*T$6","v":0},6.2100000000000002E-4,0,null,null,0,null,{"$f":"$Z109*AA$6","v":0},0,0,null,{"$f":"$AD109*AE$6","v":0},0,0,0,0,null,null,0.20706902300766919,null,0,null,null,null,null,null,null,null,0,null,null,null,null,null,null,0,0,null,0,0]
[null,"ARG-MEN",null,null,null,null,null,null,null,null,0.2076900230076692,null,null,null,null,null,null,0,null,{"$f":"$S110*T$6","v":0},6.2100000000000002E-4,0,null,null,0,null,{"$f":"$Z110*AA$6","v":0},0,0,null,{"$f":"$AD110*AE$6","v":0},0,0,0,0,null,null,0.20706902300766919,null,0,null,null,null,null,null,null,null,0,null,null,null,null,null,null,0,0,null,0,0]
[null,"ARG-MIS",null,null,null,null,null,null,null,null,0.2076900230076692,null,null,null,null,null,null,0,null,{"$f":"$S111*T$6","v":0},6.2100000000000002E-4,0,null,null,0,null,{"$f":"$Z111*AA$6","v":0},0,0,null,{"$f":"$AD111*AE$6","v":0},0,0,0,0,null,null,0.20706902300766919,null,0,null,null,null,null,null,null,null,0,null,null,null,null,null,null,0,0,null,0,0]
[null,"ARG-NEG",null,null,null,null,null,null,null,null,0.2076900230076692,null,null,null,null,null,null,0,null,{"$f":"$S112*T$6","v":0},6.2100000000000002E-4,0,null,null,0,null,{"$f":"$Z112*AA$6","v":0},0,0,null,{"$f":"$AD112*AE$6","v":0},0,0,0,0,null,null,0.20706902300766919,null,0,null,null,null,null,null,null,null,0,null,null,null,null,null,null,0,0,null,0,0]
[null,"ARG-NEU",null,null,null,null,null,null,null,null,0.2076900230076692,null,null,null,null,null,null,0,null,{"$f":"$S113*T$6","v":0},6.2100000000000002E-4,0,null,null,0,null,{"$f":"$Z113*AA$6","v":0},0,0,null,{"$f":"$AD113*AE$6","v":0},0,0,0,0,null,null,0.20706902300766919,null,0,null,null,null,null,null,null,null,0,null,null,null,null,null,null,0,0,null,0,0]
[null,"ARG-PAM",null,null,null,null,null,null,null,null,0.2076900230076692,null,null,null,null,null,null,0,null,{"$f":"$S114*T$6","v":0},6.2100000000000002E-4,0,null,null,0,null,{"$f":"$Z114*AA$6","v":0},0,0,null,{"$f":"$AD114*AE$6","v":0},0,0,0,0,null,null,0.20706902300766919,null,0,null,null,null,null,null,null,null,0,null,null,null,null,null,null,0,0,null,0,0]
[null,"ARG-RIO",null,null,null,null,null,null,null,null,0.2076900230076692,null,null,null,null,null,null,0,null,{"$f":"$S115*T$6","v":0},6.2100000000000002E-4,0,null,null,0,null,{"$f":"$Z115*AA$6","v":0},0,0,null,{"$f":"$AD115*AE$6","v":0},0,0,0,0,null,null,0.20706902300766919,null,0,null,null,null,null,null,null,null,0,null,null,null,null,null,null,0,0,null,0,0]
[null,"ARG-SAF",null,null,null,null,null,null,null,null,0.2076900230076692,null,null,null,null,null,null,0,null,{"$f":"$S116*T$6","v":0},6.2100000000000002E-4,0,null,null,0,null,{"$f":"$Z116*AA$6","v":0},0,0,null,{"$f":"$AD116*AE$6","v":0},0,0,0,0,null,null,0.20706902300766919,null,0,null,null,null,null,null,null,null,0,null,null,null,null,null,null,0,0,null,0,0]
[null,"ARG-SAJ",null,null,null,null,null,null,null,null,0.2076900230076692,null,null,null,null,null,null,0,null,{"$f":"$S117*T$6","v":0},6.2100000000000002E-4,0,null,null,0,null,{"$f":"$Z117*AA$6","v":0},0,0,null,{"$f":"$AD117*AE$6","v":0},0,0,0,0,null,null,0.20706902300766919,null,0,null,null,null,null,null,null,null,0,null,null,null,null,null,null,0,0,null,0,0]
[null,"ARG-SAL",null,null,null,null,null,null,null,null,0.2076900230076692,null,null,null,null,null,null,0,null,{"$f":"$S118*T$6","v":0},6.2100000000000002E-4,0,null,null,0,null,{"$f":"$Z118*AA$6","v":0},0,0,null,{"$f":"$AD118*AE$6","v":0},0,0,0,0,null,null,0.20706902300766919,null,0,null,null,null,null,null,null,null,0,null,null,null,null,null,null,0,0,null,0,0]
[null,"ARG-SAT",null,null,null,null,null,null,null,null,0.2076900230076692,null,null,null,null,null,null,0,null,{"$f":"$S119*T$6","v":0},6.2100000000000002E-4,0,null,null,0,null,{"$f":"$Z119*AA$6","v":0},0,0,null,{"$f":"$AD119*AE$6","v":0},0,0,0,0,null,null,0.20706902300766919,null,0,null,null,null,null,null,null,null,0,null,null,null,null,null,null,0,0,null,0,0]
[null,"ARG-TUC",null,null,null,null,null,null,null,null,0.2076900230076692,null,null,null,null,null,null,0,null,{"$f":"$S120*T$6","v":0},6.2100000000000002E-4,0,null,null,0,null,{"$f":"$Z120*AA$6","v":0},0,0,null,{"$f":"$AD120*AE$6","v":0},0,0,0,0,null,null,0.20706902300766919,null,0,null,null,null,null,null,null,null,0,null,null,null,null,null,null,0,0,null,0,0]
[null,"AUS",null,null,null,null,null,null,null,null,0.2076900230076692,null,null,null,null,null,null,0,null,{"$f":"$S121*T$6","v":0},6.2100000000000002E-4,0,null,null,0,null,{"$f":"$Z121*AA$6","v":0},0,0,null,{"$f":"$AD121*AE$6","v":0},0,0,0,0,null,null,0.20706902300766919,null,0,null,null,null,null,null,null,null,0,null,null,null,null,null,null,0,0,null,0,0]
[null,"BRA",null,null,null,null,null,null,null,null,0.2076900230076692,null,null,null,null,null,null,0,null,{"$f":"$S122*T$6","v":0},6.2100000000000002E-4,0,null,null,0,null,{"$f":"$Z122*AA$6","v":0},0,0,null,{"$f":"$AD122*AE$6","v":0},0,0,0,0,null,null,0.20706902300766919,null,0,null,null,null,null,null,null,null,0,null,null,null,null,null,null,0,0,null,0,0]
[null,"CHL",null,null,null,null,null,null,null,null,0.2076900230076692,null,null,null,null,null,null,0,null,{"$f":"$S123*T$6","v":0},6.2100000000000002E-4,0,null,null,0,null,{"$f":"$Z123*AA$6","v":0},0,0,null,{"$f":"$AD123*AE$6","v":0},0,0,0,0,null,null,0.20706902300766919,null,0,null,null,null,null,null,null,null,0,null,null,null,null,null,null,0,0,null,0,0]
[null,"CHN",null,null,null,null,null,null,null,null,0.2076900230076692,null,null,null,null,null,null,0,null,{"$f":"$S124*T$6","v":0},6.2100000000000002E-4,0,null,null,0,null,{"$f":"$Z124*AA$6","v":0},0,0,null,{"$f":"$AD124*AE$6","v":0},0,0,0,0,null,null,0.20706902300766919,null,0,null,null,null,null,null,null,null,0,null,null,null,null,null,null,0,0,null,0,0]
[null,"COL",null,null,null,null,null,null,null,null,0.2076900230076692,null,null,null,null,null,null,0,null,{"$f":"$S125*T$6","v":0},6.2100000000000002E-4,0,null,null,0,null,{"$f":"$Z125*AA$6","v":0},0,0,null,{"$f":"$AD125*AE$6","v":0},0,0,0,0,null,null,0.20706902300766919,null,0,null,null,null,null,null,null,null,0,null,null,null,null,null,null,0,0,null,0,0]
[null,"CRI",null,null,null,null,null,null,null,null,0.2076900230076692,null,null,null,null,null,null,0,null,{"$f":"$S126*T$6","v":0},6.2100000000000002E-4,0,null,null,0,null,{"$f":"$Z126*AA$6","v":0},0,0,null,{"$f":"$AD126*AE$6","v":0},0,0,0,0,null,null,0.20706902300766919,null,0,null,null,null,null,null,null,null,0,null,null,null,null,null,null,0,0,null,0,0]
[null,"DNK",null,null,null,null,null,null,null,null,1.4421E-2,null,null,null,null,null,null,{"$f":"IF($M46,0,$Q127*R$6)","v":0},null,{"$f":"$S127*T$6","v":0},6.2100000000000002E-4,{"$f":"$Q127*$V$6","v":0},null,null,{"$f":"IF($M46,0,$X127*Y$6)","v":0},null,{"$f":"$Z127*AA$6","v":0},0,{"$f":"IF($N46,0,$X127*AC$6)","v":0},null,{"$f":"$AD127*AE$6","v":0},0,0,0,0,null,null,0,null,1.38E-2,null,null,null,null,null,null,null,0,null,null,null,null,null,null,0,0,null,0,0]
[null,"DZA",null,null,null,null,null,null,null,null,1.4421E-2,null,null,null,null,null,null,0,null,{"$f":"$S128*T$6","v":0},6.2100000000000002E-4,0,null,null,0,null,{"$f":"$Z128*AA$6","v":0},0,0,null,{"$f":"$AD128*AE$6","v":0},0,0,0,0,null,null,0,null,1.38E-2,null,null,null,null,null,null,null,0,null,null,null,null,null,null,0,0,null,0,0]
[null,"EGY",null,null,null,null,null,null,null,null,1.4421E-2,null,null,null,null,null,null,0,null,{"$f":"$S129*T$6","v":0},6.2100000000000002E-4,0,null,null,0,null,{"$f":"$Z129*AA$6","v":0},0,0,null,{"$f":"$AD129*AE$6","v":0},0,0,0,0,null,null,0,null,1.38E-2,null,null,null,null,null,null,null,0,null,null,null,null,null,null,0,0,null,0,0]
[null,"ESP",null,null,null,null,null,null,null,null,1.4421E-2,null,null,null,null,null,null,0,null,{"$f":"$S130*T$6","v":0},6.2100000000000002E-4,0,null,null,0,null,{"$f":"$Z130*AA$6","v":0},0,0,null,{"$f":"$AD130*AE$6","v":0},0,0,0,0,null,null,0,null,1.38E-2,null,null,null,null,null,null,null,0,null,null,null,null,null,null,0,0,null,0,0]
[null,"IDN",null,null,null,null,null,null,null,null,0.2076900230076692,null,null,null,null,null,null,0,null,{"$f":"$S131*T$6","v":0},6.2100000000000002E-4,0,null,null,0,null,{"$f":"$Z131*AA$6","v":0},0,0,null,{"$f":"$AD131*AE$6","v":0},0,0,0,0,null,null,0.20706902300766919,null,0,null,null,null,null,null,null,null,0,null,null,null,null,null,null,0,0,null,0,0]
[null,"IND",null,null,null,null,null,null,null,null,0.2076900230076692,null,null,null,null,null,null,0,null,{"$f":"$S132*T$6","v":0},6.2100000000000002E-4,0,null,null,0,null,{"$f":"$Z132*AA$6","v":0},0,0,null,{"$f":"$AD132*AE$6","v":0},0,0,0,0,null,null,0.20706902300766919,null,0,null,null,null,null,null,null,null,0,null,null,null,null,null,null,0,0,null,0,0]
[null,"JOR",null,null,null,null,null,null,null,null,1.4421E-2,null,null,null,null,null,null,0,null,{"$f":"$S133*T$6","v":0},6.2100000000000002E-4,0,null,null,0,null,{"$f":"$Z133*AA$6","v":0},0,0,null,{"$f":"$AD133*AE$6","v":0},0,0,0,0,null,null,0,null,1.38E-2,null,null,null,null,null,null,null,0,null,null,null,null,null,null,0,0,null,0,0]
[null,"KAZ",null,null,null,null,null,null,null,null,1.4421E-2,null,null,null,null,null,null,0,null,{"$f":"$S134*T$6","v":0},6.2100000000000002E-4,0,null,null,0,null,{"$f":"$Z134*AA$6","v":0},0,0,null,{"$f":"$AD134*AE$6","v":0},0,0,0,0,null,null,0,null,1.38E-2,null,null,null,null,null,null,null,0,null,null,null,null,null,null,0,0,null,0,0]
[null,"KEN",null,null,null,null,null,null,null,null,0.2076900230076692,null,null,null,null,null,null,0,null,{"$f":"$S135*T$6","v":0},6.2100000000000002E-4,0,null,null,0,null,{"$f":"$Z135*AA$6","v":0},0,0,null,{"$f":"$AD135*AE$6","v":0},0,0,0,0,null,null,0.20706902300766919,null,0,null,null,null,null,null,null,null,0,null,null,null,null,null,null,0,0,null,0,0]
[null,"MAR",null,null,null,null,null,null,null,null,0.2076900230076692,null,null,null,null,null,null,0,null,{"$f":"$S136*T$6","v":0},6.2100000000000002E-4,0,null,null,0,null,{"$f":"$Z136*AA$6","v":0},0,0,null,{"$f":"$AD136*AE$6","v":0},0,0,0,0,null,null,0.20706902300766919,null,0,null,null,null,null,null,null,null,0,null,null,null,null,null,null,0,0,null,0,0]
[null,"MAR-BEN",null,null,null,null,null,null,null,null,0.2076900230076692,null,null,null,null,null,null,0,null,{"$f":"$S137*T$6","v":0},6.2100000000000002E-4,0,null,null,0,null,{"$f":"$Z137*AA$6","v":0},0,0,null,{"$f":"$AD137*AE$6","v":0},0,0,0,0,null,null,0.20706902300766919,null,0,null,null,null,null,null,null,null,0,null,null,null,null,null,null,0,0,null,0,0]
[null,"MAR-CAS",null,null,null,null,null,null,null,null,0.2076900230076692,null,null,null,null,null,null,0,null,{"$f":"$S138*T$6","v":0},6.2100000000000002E-4,0,null,null,0,null,{"$f":"$Z138*AA$6","v":0},0,0,null,{"$f":"$AD138*AE$6","v":0},0,0,0,0,null,null,0.20706902300766919,null,0,null,null,null,null,null,null,null,0,null,null,null,null,null,null,0,0,null,0,0]
[null,"MAR-DAK",null,null,null,null,null,null,null,null,0.2076900230076692,null,null,null,null,null,null,0,null,{"$f":"$S139*T$6","v":0},6.2100000000000002E-4,0,null,null,0,null,{"$f":"$Z139*AA$6","v":0},0,0,null,{"$f":"$AD139*AE$6","v":0},0,0,0,0,null,null,0.20706902300766919,null,0,null,null,null,null,null,null,null,0,null,null,null,null,null,null,0,0,null,0,0]
[null,"MAR-DRA",null,null,null,null,null,null,null,null,0.2076900230076692,null,null,null,null,null,null,0,null,{"$f":"$S140*T$6","v":0},6.2100000000000002E-4,0,null,null,0,null,{"$f":"$Z140*AA$6","v":0},0,0,null,{"$f":"$AD140*AE$6","v":0},0,0,0,0,null,null,0.20706902300766919,null,0,null,null,null,null,null,null,null,0,null,null,null,null,null,null,0,0,null,0,0]
[null,"MAR-FES",null,null,null,null,null,null,null,null,0.2076900230076692,null,null,null,null,null,null,0,null,{"$f":"$S141*T$6","v":0},6.2100000000000002E-4,0,null,null,0,null,{"$f":"$Z141*AA$6","v":0},0,0,null,{"$f":"$AD141*AE$6","v":0},0,0,0,0,null,null,0.20706902300766919,null,0,null,null,null,null,null,null,null,0,null,null,null,null,null,null,0,0,null,0,0]
[null,"MAR-GUE",null,null,null,null,null,null,null,null,0.2076900230076692,null,null,null,null,null,null,0,null,{"$f":"$S142*T$6","v":0},6.2100000000000002E-4,0,null,null,0,null,{"$f":"$Z142*AA$6","v":0},0,0,null,{"$f":"$AD142*AE$6","v":0},0,0,0,0,null,null,0.20706902300766919,null,0,null,null,null,null,null,null,null,0,null,null,null,null,null,null,0,0,null,0,0]
[null,"MAR-LAA",null,null,null,null,null,null,null,null,0.2076900230076692,null,null,null,null,null,null,0,null,{"$f":"$S143*T$6","v":0},6.2100000000000002E-4,0,null,null,0,null,{"$f":"$Z143*AA$6","v":0},0,0,null,{"$f":"$AD143*AE$6","v":0},0,0,0,0,null,null,0.20706902300766919,null,0,null,null,null,null,null,null,null,0,null,null,null,null,null,null,0,0,null,0,0]
[null,"MAR-LOR",null,null,null,null,null,null,null,null,0.2076900230076692,null,null,null,null,null,null,0,null,{"$f":"$S144*T$6","v":0},6.2100000000000002E-4,0,null,null,0,null,{"$f":"$Z144*AA$6","v":0},0,0,null,{"$f":"$AD144*AE$6","v":0},0,0,0,0,null,null,0.20706902300766919,null,0,null,null,null,null,null,null,null,0,null,null,null,null,null,null,0,0,null,0,0]
[null,"MAR-MAR",null,null,null,null,null,null,null,null,0.2076900230076692,null,null,null,null,null,null,0,null,{"$f":"$S145*T$6","v":0},6.2100000000000002E-4,0,null,null,0,null,{"$f":"$Z145*AA$6","v":0},0,0,null,{"$f":"$AD145*AE$6","v":0},0,0,0,0,null,null,0.20706902300766919,null,0,null,null,null,null,null,null,null,0,null,null,null,null,null,null,0,0,null,0,0]
[null,"MAR-RAB",null,null,null,null,null,null,null,null,0.2076900230076692,null,null,null,null,null,null,0,null,{"$f":"$S146*T$6","v":0},6.2100000000000002E-4,0,null,null,0,null,{"$f":"$Z146*AA$6","v":0},0,0,null,{"$f":"$AD146*AE$6","v":0},0,0,0,0,null,null,0.20706902300766919,null,0,null,null,null,null,null,null,null,0,null,null,null,null,null,null,0,0,null,0,0]
[null,"MAR-SOU",null,null,null,null,null,null,null,null,0.2076900230076692,null,null,null,null,null,null,0,null,{"$f":"$S147*T$6","v":0},6.2100000000000002E-4,0,null,null,0,null,{"$f":"$Z147*AA$6","v":0},0,0,null,{"$f":"$AD147*AE$6","v":0},0,0,0,0,null,null,0.20706902300766919,null,0,null,null,null,null,null,null,null,0,null,null,null,null,null,null,0,0,null,0,0]
[null,"MAR-TAN",null,null,null,null,null,null,null,null,0.2076900230076692,null,null,null,null,null,null,0,null,{"$f":"$S148*T$6","v":0},6.2100000000000002E-4,0,null,null,0,null,{"$f":"$Z148*AA$6","v":0},0,0,null,{"$f":"$AD148*AE$6","v":0},0,0,0,0,null,null,0.20706902300766919,null,0,null,null,null,null,null,null,null,0,null,null,null,null,null,null,0,0,null,0,0]
[null,"MEX",null,null,null,null,null,null,null,null,0.2076900230076692,null,null,null,null,null,null,0,null,{"$f":"$S149*T$6","v":0},6.2100000000000002E-4,0,null,null,0,null,{"$f":"$Z149*AA$6","v":0},0,0,null,{"$f":"$AD149*AE$6","v":0},0,0,0,0,null,null,0.20706902300766919,null,0,null,null,null,null,null,null,null,0,null,null,null,null,null,null,0,0,null,0,0]
[null,"MRT",null,null,null,null,null,null,null,null,1.4421E-2,null,null,null,null,null,null,0,null,{"$f":"$S150*T$6","v":0},6.2100000000000002E-4,0,null,null,0,null,{"$f":"$Z150*AA$6","v":0},0,0,null,{"$f":"$AD150*AE$6","v":0},0,0,0,0,null,null,0,null,1.38E-2,null,null,null,null,null,null,null,0,null,null,null,null,null,null,0,0,null,0,0]
[null,"NAM",null,null,null,null,null,null,null,null,0.2076900230076692,null,null,null,null,null,null,0,null,{"$f":"$S151*T$6","v":0},6.2100000000000002E-4,0,null,null,0,null,{"$f":"$Z151*AA$6","v":0},0,0,null,{"$f":"$AD151*AE$6","v":0},0,0,0,0,null,null,0.20706902300766919,null,0,null,null,null,null,null,null,null,0,null,null,null,null,null,null,0,0,null,0,0]
[null,"NOR",null,null,null,null,null,null,null,null,1.4421E-2,null,null,null,null,null,null,0,null,{"$f":"$S152*T$6","v":0},6.2100000000000002E-4,0,null,null,0,null,{"$f":"$Z152*AA$6","v":0},0,0,null,{"$f":"$AD152*AE$6","v":0},0,0,0,0,null,null,0,null,1.38E-2,null,null,null,null,null,null,null,0,null,null,null,null,null,null,0,0,null,0,0]
[null,"PER",null,null,null,null,null,null,null,null,0.2076900230076692,null,null,null,null,null,null,0,null,{"$f":"$S153*T$6","v":0},6.2100000000000002E-4,0,null,null,0,null,{"$f":"$Z153*AA$6","v":0},0,0,null,{"$f":"$AD153*AE$6","v":0},0,0,0,0,null,null,0.20706902300766919,null,0,null,null,null,null,null,null,null,0,null,null,null,null,null,null,0,0,null,0,0]
[null,"PRT",null,null,null,null,null,null,null,null,1.4421E-2,null,null,null,null,null,null,0,null,{"$f":"$S154*T$6","v":0},6.2100000000000002E-4,0,null,null,0,null,{"$f":"$Z154*AA$6","v":0},0,0,null,{"$f":"$AD154*AE$6","v":0},0,0,0,0,null,null,0,null,1.38E-2,null,null,null,null,null,null,null,0,null,null,null,null,null,null,0,0,null,0,0]
[null,"RUS",null,null,null,null,null,null,null,null,1.4421E-2,null,null,null,null,null,null,0,null,{"$f":"$S155*T$6","v":0},6.2100000000000002E-4,0,null,null,0,null,{"$f":"$Z155*AA$6","v":0},0,0,null,{"$f":"$AD155*AE$6","v":0},0,0,0,0,null,null,0,null,1.38E-2,null,null,null,null,null,null,null,0,null,null,null,null,null,null,0,0,null,0,0]
[null,"SAU",null,null,null,null,null,null,null,null,1.4421E-2,null,null,null,null,null,null,0,null,{"$f":"$S156*T$6","v":0},6.2100000000000002E-4,0,null,null,0,null,{"$f":"$Z156*AA$6","v":0},0,0,null,{"$f":"$AD156*AE$6","v":0},0,0,0,0,null,null,0,null,1.38E-2,null,null,null,null,null,null,null,0,null,null,null,null,null,null,0,0,null,0,0]
[null,"SWE",null,null,null,null,null,null,null,null,1.4421E-2,null,null,null,null,null,null,0,null,{"$f":"$S157*T$6","v":0},6.2100000000000002E-4,0,null,null,0,null,{"$f":"$Z157*AA$6","v":0},0,0,null,{"$f":"$AD157*AE$6","v":0},0,0,0,0,null,null,0,null,1.38E-2,null,null,null,null,null,null,null,0,null,null,null,null,null,null,0,0,null,0,0]
[null,"THA",null,null,null,null,null,null,null,null,0.2076900230076692,null,null,null,null,null,null,0,null,{"$f":"$S158*T$6","v":0},6.2100000000000002E-4,0,null,null,0,null,{"$f":"$Z158*AA$6","v":0},0,0,null,{"$f":"$AD158*AE$6","v":0},0,0,0,0,null,null,0.20706902300766919,null,0,null,null,null,null,null,null,null,0,null,null,null,null,null,null,0,0,null,0,0]
[null,"TUN",null,null,null,null,null,null,null,null,1.4421E-2,null,null,null,null,null,null,{"$f":"IF($M78,0,$Q159*R$6)","v":0},null,{"$f":"$S159*T$6","v":0},6.2100000000000002E-4,{"$f":"$Q159*$V$6","v":0},null,null,{"$f":"IF($M78,0,$X159*Y$6)","v":0},null,{"$f":"$Z159*AA$6","v":0},0,{"$f":"IF($N78,0,$X159*AC$6)","v":0},null,{"$f":"$AD159*AE$6","v":0},0,0,0,0,null,null,0,null,1.38E-2,null,null,null,null,null,null,null,0,null,null,null,null,null,null,0,0,null,0,0]
[null,"UKR",null,null,null,null,null,null,null,null,{"$f":"U241+V241+AB241+AF241+AG241+AL241+AN241","v":1.4421E-2},null,null,null,null,null,null,0,null,{"$f":"$S160*T$6","v":0},6.2100000000000002E-4,0,null,null,0,null,{"$f":"$Z160*AA$6","v":0},0,0,null,{"$f":"$AD160*AE$6","v":0},0,{"$f":"$X160*AG$6","v":0},0,0,null,null,{"$f":"$AK160*AL$6","v":0},null,{"$f":"$AM160*AN$6","v":1.38E-2},null,null,null,null,null,null,null,{"$f":"AU79*AU160*AV$6","v":0},null,null,null,null,null,null,{"$f":"$BB160*BC$6","v":0},0,null,{"$f":"$BE160*BF$6","v":0},0]
[null,"URY",null,null,null,null,null,null,null,null,0.2076900230076692,null,null,null,null,null,null,0,null,{"$f":"$S161*T$6","v":0},6.2100000000000002E-4,0,null,null,0,null,{"$f":"$Z161*AA$6","v":0},0,0,null,{"$f":"$AD161*AE$6","v":0},0,0,0,0,null,null,0.20706902300766919,null,0,null,null,null,null,null,null,null,0,null,null,null,null,null,null,0,0,null,0,0]
[null,"USA",null,null,null,null,null,null,null,null,0.2076900230076692,null,null,null,null,null,null,0,null,{"$f":"$S162*T$6","v":0},6.2100000000000002E-4,0,null,null,0,null,{"$f":"$Z162*AA$6","v":0},0,0,null,{"$f":"$AD162*AE$6","v":0},0,0,0,0,null,null,0.20706902300766919,null,0,null,null,null,null,null,null,null,0,null,null,null,null,null,null,0,0,null,0,0]
[null,"VNM",null,null,null,null,null,null,null,null,0.2076900230076692,null,null,null,null,null,null,0,null,{"$f":"$S163*T$6","v":0},6.2100000000000002E-4,0,null,null,0,null,{"$f":"$Z163*AA$6","v":0},0,0,null,{"$f":"$AD163*AE$6","v":0},0,0,0,0,null,null,0.20706902300766919,null,0,null,null,null,null,null,null,null,0,null,null,null,null,null,null,0,0,null,0,0]
[null,"ZAF",null,null,null,null,null,null,null,null,0.2076900230076692,null,null,null,null,null,null,0,null,{"$f":"$S164*T$6","v":0},6.2100000000000002E-4,0,null,null,0,null,{"$f":"$Z164*AA$6","v":0},0,0,null,{"$f":"$AD164*AE$6","v":0},0,0,0,0,null,null,0.20706902300766919,null,0,null,null,null,null,null,null,null,0,null,null,null,null,null,null,0,0,null,0,0]
[null,"ZAF-EC",null,null,null,null,null,null,null,null,0.2076900230076692,null,null,null,null,null,null,0,null,{"$f":"$S165*T$6","v":0},6.2100000000000002E-4,0,null,null,0,null,{"$f":"$Z165*AA$6","v":0},0,0,null,{"$f":"$AD165*AE$6","v":0},0,0,0,0,null,null,0.20706902300766919,null,0,null,null,null,null,null,null,null,0,null,null,null,null,null,null,0,0,null,0,0]
[null,"ZAF-FRS",null,null,null,null,null,null,null,null,0.2076900230076692,null,null,null,null,null,null,0,null,{"$f":"$S166*T$6","v":0},6.2100000000000002E-4,0,null,null,0,null,{"$f":"$Z166*AA$6","v":0},0,0,null,{"$f":"$AD166*AE$6","v":0},0,0,0,0,null,null,0.20706902300766919,null,0,null,null,null,null,null,null,null,0,null,null,null,null,null,null,0,0,null,0,0]
[null,"ZAF-GAU",null,null,null,null,null,null,null,null,0.2076900230076692,null,null,null,null,null,null,0,null,{"$f":"$S167*T$6","v":0},6.2100000000000002E-4,0,null,null,0,null,{"$f":"$Z167*AA$6","v":0},0,0,null,{"$f":"$AD167*AE$6","v":0},0,0,0,0,null,null,0.20706902300766919,null,0,null,null,null,null,null,null,null,0,null,null,null,null,null,null,0,0,null,0,0]
[null,"ZAF-KWA",null,null,null,null,null,null,null,null,0.2076900230076692,null,null,null,null,null,null,0,null,{"$f":"$S168*T$6","v":0},6.2100000000000002E-4,0,null,null,0,null,{"$f":"$Z168*AA$6","v":0},0,0,null,{"$f":"$AD168*AE$6","v":0},0,0,0,0,null,null,0.20706902300766919,null,0,null,null,null,null,null,null,null,0,null,null,null,null,null,null,0,0,null,0,0]
[null,"ZAF-LIM",null,null,null,null,null,null,null,null,0.2076900230076692,null,null,null,null,null,null,0,null,{"$f":"$S169*T$6","v":0},6.2100000000000002E-4,0,null,null,0,null,{"$f":"$Z169*AA$6","v":0},0,0,null,{"$f":"$AD169*AE$6","v":0},0,0,0,0,null,null,0.20706902300766919,null,0,null,null,null,null,null,null,null,0,null,null,null,null,null,null,0,0,null,0,0]
[null,"ZAF-MPU",null,null,null,null,null,null,null,null,0.2076900230076692,null,null,null,null,null,null,0,null,{"$f":"$S170*T$6","v":0},6.2100000000000002E-4,0,null,null,0,null,{"$f":"$Z170*AA$6","v":0},0,0,null,{"$f":"$AD170*AE$6","v":0},0,0,0,0,null,null,0.20706902300766919,null,0,null,null,null,null,null,null,null,0,null,null,null,null,null,null,0,0,null,0,0]
[null,"ZAF-NC",null,null,null,null,null,null,null,null,0.2076900230076692,null,null,null,null,null,null,0,null,{"$f":"$S171*T$6","v":0},6.2100000000000002E-4,0,null,null,0,null,{"$f":"$Z171*AA$6","v":0},0,0,null,{"$f":"$AD171*AE$6","v":0},0,0,0,0,null,null,0.20706902300766919,null,0,null,null,null,null,null,null,null,0,null,null,null,null,null,null,0,0,null,0,0]
[null,"ZAF-NW",null,null,null,null,null,null,null,null,0.2076900230076692,null,null,null,null,null,null,0,null,{"$f":"$S172*T$6","v":0},6.2100000000000002E-4,0,null,null,0,null,{"$f":"$Z172*AA$6","v":0},0,0,null,{"$f":"$AD172*AE$6","v":0},0,0,0,0,null,null,0.20706902300766919,null,0,null,null,null,null,null,null,null,0,null,null,null,null,null,null,0,0,null,0,0]
[null,"ZAF-WC",null,null,null,null,null,null,null,null,0.2076900230076692,null,null,null,null,null,null,0,null,{"$f":"$S173*T$6","v":0},6.2100000000000002E-4,0,null,null,0,null,{"$f":"$Z173*AA$6","v":0},0,0,null,{"$f":"$AD173*AE$6","v":0},0,0,0,0,null,null,0.20706902300766919,null,0,null,null,null,null,null,null,null,0,null,null,null,null,null,null,0,0,null,0,0]
[]
["flh",null,null,null,null,null,null,null,null,null,null,null,null,null,null,null,{"$f":"IF(\"FLH,\"&Q$2&\",,,\"=VLOOKUP(\"FLH,\"&Q$2&\",,,\",data[],1),VLOOKUP(\"FLH,\"&Q$2&\",,,\",data[],7),7000)","v":3861.9141914191418},null,null,null,null,null,null,{"$f":"IF(\"FLH,\"&X$2&\",,,\"=VLOOKUP(\"FLH,\"&X$2&\",,,\",data[],1),VLOOKUP(\"FLH,\"&X$2&\",,,\",data[],7),7000)","v":7000},null,null,null,null,null,null,null,null,null,null,null,null,{"$f":"IF(\"FLH,\"&AK$2&\",,,\"=VLOOKUP(\"FLH,\"&AK$2&\",,,\",data[],1),VLOOKUP(\"FLH,\"&AK$2&\",,,\",data[],7),7000)","v":7000},null,{"$f":"IF(\"FLH,\"&AM$2&\",,,\"=VLOOKUP(\"FLH,\"&AM$2&\",,,\",data[],1),VLOOKUP(\"FLH,\"&AM$2&\",,,\",data[],7),7000)","v":7000},null,null,null,null,null,null,null,null,null,null,null,null,null,null,{"$f":"IF(\"FLH,\"&BB$2&\",,,\"=VLOOKUP(\"FLH,\"&BB$2&\",,,\",data[],1),VLOOKUP(\"FLH,\"&BB$2&\",,,\",data[],7),7000)","v":7000},null,null,{"$f":"IF(\"FLH,\"&BE$2&\",,,\"=VLOOKUP(\"FLH,\"&BE$2&\",,,\",data[],1),VLOOKUP(\"FLH,\"&BE$2&\",,,\",data[],7),7000)","v":7000}]
[null,"ARE",null,null,{"$f":"IF(\"FLH,\"&E$2&\",,\"&$B257&\",\"=VLOOKUP(\"FLH,\"&E$2&\",,\"&$B257&\",\",data[],1),VLOOKUP(\"FLH,\"&E$2&\",,\"&$B257&\",\",data[],7),0)","v":1662},{"$f":"IF(\"FLH,\"&F$2&\",,\"&$B257&\",\"=VLOOKUP(\"FLH,\"&F$2&\",,\"&$B257&\",\",data[],1),VLOOKUP(\"FLH,\"&F$2&\",,\"&$B257&\",\",data[],7),0)","v":0},{"$f":"IF(\"FLH,\"&G$2&\",,\"&$B257&\",\"=VLOOKUP(\"FLH,\"&G$2&\",,\"&$B257&\",\",data[],1),VLOOKUP(\"FLH,\"&G$2&\",,\"&$B257&\",\",data[],7),0)","v":3116.3347803479924},{"$f":"IF(\"FLH,\"&H$2&\",,\"&$B257&\",\"=VLOOKUP(\"FLH,\"&H$2&\",,\"&$B257&\",\",data[],1),VLOOKUP(\"FLH,\"&H$2&\",,\"&$B257&\",\",data[],7),0)","v":2453},{"$f":"IF(\"FLH,\"&I$2&\",,\"&$B257&\",\"=VLOOKUP(\"FLH,\"&I$2&\",,\"&$B257&\",\",data[],1),VLOOKUP(\"FLH,\"&I$2&\",,\"&$B257&\",\",data[],7),0)","v":1642.3104587999985},null,{"$f":"INDEX(E257:I257,J14)","v":3116.3347803479924},null,null,null,null,null,{"$f":"IF(\"FLH,\"&Q$2&\",,\"&$B257&\",\"=VLOOKUP(\"FLH,\"&Q$2&\",,\"&$B257&\",\",data[],1),VLOOKUP(\"FLH,\"&Q$2&\",,\"&$B257&\",\",data[],7),IF($B257&\",\"&$K14&\",\"&$Q$2&\",\"&$X$2&\",\"&Q$2=VLOOKUP($B257&\",\"&$K14&\",\"&$Q$2&\",\"&$X$2&\",\"&Q$2,data_flh_2[],1),VLOOKUP($B257&\",\"&$K14&\",\"&$Q$2&\",\"&$X$2&\",\"&Q$2,data_flh_2[],7),Q$256))","v":2960.5180413305925},null,null,null,null,null,null,{"$f":"IF(X$2<>\"\",IF(\"FLH,\"&X$2&\",,\"&$B257&\",\"=VLOOKUP(\"FLH,\"&X$2&\",,\"&$B257&\",\",data[],1),VLOOKUP(\"FLH,\"&X$2&\",,\"&$B257&\",\",data[],7),IF($B257&\",\"&$K14&\",\"&$Q$2&\",\"&$X$2&\",\"&X$2=VLOOKUP($B257&\",\"&$K14&\",\"&$Q$2&\",\"&$X$2&\",\"&X$2,data_flh_2[],1),VLOOKUP($B257&\",\"&$K14&\",\"&$Q$2&\",\"&$X$2&\",\"&X$2,data_flh_2[],7),X$256)),0)","v":0},null,null,null,null,null,null,null,null,null,null,null,null,{"$f":"IF(AK14,IF(\"FLH,\"&AK$2&\",,\"&$B257&\",\"=VLOOKUP(\"FLH,\"&AK$2&\",,\"&$B257&\",\",data[],1),VLOOKUP(\"FLH,\"&AK$2&\",,\"&$B257&\",\",data[],7),IF($B257&\",\"&$K14&\",\"&$Q$2&\",\"&$X$2&\",\"&AK$2=VLOOKUP($B257&\",\"&$K14&\",\"&$Q$2&\",\"&$X$2&\",\"&AK$2,data_flh_2[],1),VLOOKUP($B257&\",\"&$K14&\",\"&$Q$2&\",\"&$X$2&\",\"&AK$2,data_flh_2[],7),AK$256)),0)","v":0},null,{"$f":"IF(AM14,IF(\"FLH,\"&AM$2&\",,\"&$B257&\",\"=VLOOKUP(\"FLH,\"&AM$2&\",,\"&$B257&\",\",data[],1),VLOOKUP(\"FLH,\"&AM$2&\",,\"&$B257&\",\",data[],7),IF($B257&\",\"&$K14&\",\"&$Q$2&\",\"&$X$2&\",\"&AM$2=VLOOKUP($B257&\",\"&$K14&\",\"&$Q$2&\",\"&$X$2&\",\"&AM$2,data_flh_2[],1),VLOOKUP($B257&\",\"&$K14&\",\"&$Q$2&\",\"&$X$2&\",\"&AM$2,data_flh_2[],7),AM$256)),0)","v":6657.5999999999995},null,null,null,null,null,null,null,null,null,null,null,null,null,null,{"$f":"IF(BB14,IF(\"FLH,\"&BB$2&\",,\"&$B257&\",\"=VLOOKUP(\"FLH,\"&BB$2&\",,\"&$B257&\",\",data[],1),VLOOKUP(\"FLH,\"&BB$2&\",,\"&$B257&\",\",data[],7),IF($B257&\",\"&$K14&\",\"&$Q$2&\",\"&$X$2&\",\"&BB$2=VLOOKUP($B257&\",\"&$K14&\",\"&$Q$2&\",\"&$X$2&\",\"&BB$2,data_flh_2[],1),VLOOKUP($B257&\",\"&$K14&\",\"&$Q$2&\",\"&$X$2&\",\"&BB$2,data_flh_2[],7),BB$256)),0)","v":0},null,null,{"$f":"IF(BE14,IF(\"FLH,\"&BE$2&\",,\"&$B257&\",\"=VLOOKUP(\"FLH,\"&BE$2&\",,\"&$B257&\",\",data[],1),VLOOKUP(\"FLH,\"&BE$2&\",,\"&$B257&\",\",data[],7),IF($B257&\",\"&$K14&\",\"&$Q$2&\",\"&$X$2&\",\"&BE$2=VLOOKUP($B257&\",\"&$K14&\",\"&$Q$2&\",\"&$X$2&\",\"&BE$2,data_flh_2[],1),VLOOKUP($B257&\",\"&$K14&\",\"&$Q$2&\",\"&$X$2&\",\"&BE$2,data_flh_2[],7),BE$256)),0)","v":0}]
[null,"ARG",null,null,{"$f":"IF(\"FLH,\"&E$2&\",,\"&$B258&\",\"=VLOOKUP(\"FLH,\"&E$2&\",,\"&$B258&\",\",data[],1),VLOOKUP(\"FLH,\"&E$2&\",,\"&$B258&\",\",data[],7),0)","v":1494},{"$f":"IF(\"FLH,\"&F$2&\",,\"&$B258&\",\"=VLOOKUP(\"FLH,\"&F$2&\",,\"&$B258&\",\",data[],1),VLOOKUP(\"FLH,\"&F$2&\",,\"&$B258&\",\",data[],7),0)","v":0},{"$f":"IF(\"FLH,\"&G$2&\",,\"&$B258&\",\"=VLOOKUP(\"FLH,\"&G$2&\",,\"&$B258&\",\",data[],1),VLOOKUP(\"FLH,\"&G$2&\",,\"&$B258&\",\",data[],7),0)","v":5660.92},{"$f":"IF(\"FLH,\"&H$2&\",,\"&$B258&\",\"=VLOOKUP(\"FLH,\"&H$2&\",,\"&$B258&\",\",data[],1),VLOOKUP(\"FLH,\"&H$2&\",,\"&$B258&\",\",data[],7),0)","v":5369},{"$f":"IF(\"FLH,\"&I$2&\",,\"&$B258&\",\"=VLOOKUP(\"FLH,\"&I$2&\",,\"&$B258&\",\",data[],1),VLOOKUP(\"FLH,\"&I$2&\",,\"&$B258&\",\",data[],7),0)","v":5369},null,{"$f":"INDEX(E258:I258,J15)","v":5660.92},null,null,null,null,null,{"$f":"IF(\"FLH,\"&Q$2&\",,\"&$B258&\",\"=VLOOKUP(\"FLH,\"&Q$2&\",,\"&$B258&\",\",data[],1),VLOOKUP(\"FLH,\"&Q$2&\",,\"&$B258&\",\",data[],7),IF($B258&\",\"&$K15&\",\"&$Q$2&\",\"&$X$2&\",\"&Q$2=VLOOKUP($B258&\",\"&$K15&\",\"&$Q$2&\",\"&$X$2&\",\"&Q$2,data_flh_2[],1),VLOOKUP($B258&\",\"&$K15&\",\"&$Q$2&\",\"&$X$2&\",\"&Q$2,data_flh_2[],7),Q$256))","v":5785.0249999999996},null,null,null,null,null,null,{"$f":"IF(X$2<>\"\",IF(\"FLH,\"&X$2&\",,\"&$B258&\",\"=VLOOKUP(\"FLH,\"&X$2&\",,\"&$B258&\",\",data[],1),VLOOKUP(\"FLH,\"&X$2&\",,\"&$B258&\",\",data[],7),IF($B258&\",\"&$K15&\",\"&$Q$2&\",\"&$X$2&\",\"&X$2=VLOOKUP($B258&\",\"&$K15&\",\"&$Q$2&\",\"&$X$2&\",\"&X$2,data_flh_2[],1),VLOOKUP($B258&\",\"&$K15&\",\"&$Q$2&\",\"&$X$2&\",\"&X$2,data_flh_2[],7),X$256)),0)","v":0},null,null,null,null,null,null,null,null,null,null,null,null,{"$f":"IF(AK15,IF(\"FLH,\"&AK$2&\",,\"&$B258&\",\"=VLOOKUP(\"FLH,\"&AK$2&\",,\"&$B258&\",\",data[],1),VLOOKUP(\"FLH,\"&AK$2&\",,\"&$B258&\",\",data[],7),IF($B258&\",\"&$K15&\",\"&$Q$2&\",\"&$X$2&\",\"&AK$2=VLOOKUP($B258&\",\"&$K15&\",\"&$Q$2&\",\"&$X$2&\",\"&AK$2,data_flh_2[],1),VLOOKUP($B258&\",\"&$K15&\",\"&$Q$2&\",\"&$X$2&\",\"&AK$2,data_flh_2[],7),AK$256)),0)","v":5989.75},null,{"$f":"IF(AM15,IF(\"FLH,\"&AM$2&\",,\"&$B258&\",\"=VLOOKUP(\"FLH,\"&AM$2&\",,\"&$B258&\",\",data[],1),VLOOKUP(\"FLH,\"&AM$2&\",,\"&$B258&\",\",data[],7),IF($B258&\",\"&$K15&\",\"&$Q$2&\",\"&$X$2&\",\"&AM$2=VLOOKUP($B258&\",\"&$K15&\",\"&$Q$2&\",\"&$X$2&\",\"&AM$2,data_flh_2[],1),VLOOKUP($B258&\",\"&$K15&\",\"&$Q$2&\",\"&$X$2&\",\"&AM$2,data_flh_2[],7),AM$256)),0)","v":0},null,null,null,null,null,null,null,null,null,null,null,null,null,null,{"$f":"IF(BB15,IF(\"FLH,\"&BB$2&\",,\"&$B258&\",\"=VLOOKUP(\"FLH,\"&BB$2&\",,\"&$B258&\",\",data[],1),VLOOKUP(\"FLH,\"&BB$2&\",,\"&$B258&\",\",data[],7),IF($B258&\",\"&$K15&\",\"&$Q$2&\",\"&$X$2&\",\"&BB$2=VLOOKUP($B258&\",\"&$K15&\",\"&$Q$2&\",\"&$X$2&\",\"&BB$2,data_flh_2[],1),VLOOKUP($B258&\",\"&$K15&\",\"&$Q$2&\",\"&$X$2&\",\"&BB$2,data_flh_2[],7),BB$256)),0)","v":6657.5999999999995},null,null,{"$f":"IF(BE15,IF(\"FLH,\"&BE$2&\",,\"&$B258&\",\"=VLOOKUP(\"FLH,\"&BE$2&\",,\"&$B258&\",\",data[],1),VLOOKUP(\"FLH,\"&BE$2&\",,\"&$B258&\",\",data[],7),IF($B258&\",\"&$K15&\",\"&$Q$2&\",\"&$X$2&\",\"&BE$2=VLOOKUP($B258&\",\"&$K15&\",\"&$Q$2&\",\"&$X$2&\",\"&BE$2,data_flh_2[],1),VLOOKUP($B258&\",\"&$K15&\",\"&$Q$2&\",\"&$X$2&\",\"&BE$2,data_flh_2[],7),BE$256)),0)","v":0}]
[null,"ARG-BA",null,null,{"$f":"IF(\"FLH,\"&E$2&\",,\"&$B259&\",\"=VLOOKUP(\"FLH,\"&E$2&\",,\"&$B259&\",\",data[],1),VLOOKUP(\"FLH,\"&E$2&\",,\"&$B259&\",\",data[],7),0)","v":1501.409990284945},{"$f":"IF(\"FLH,\"&F$2&\",,\"&$B259&\",\"=VLOOKUP(\"FLH,\"&F$2&\",,\"&$B259&\",\",data[],1),VLOOKUP(\"FLH,\"&F$2&\",,\"&$B259&\",\",data[],7),0)","v":0},{"$f":"IF(\"FLH,\"&G$2&\",,\"&$B259&\",\"=VLOOKUP(\"FLH,\"&G$2&\",,\"&$B259&\",\",data[],1),VLOOKUP(\"FLH,\"&G$2&\",,\"&$B259&\",\",data[],7),0)","v":4945.8767126930315},{"$f":"IF(\"FLH,\"&H$2&\",,\"&$B259&\",\"=VLOOKUP(\"FLH,\"&H$2&\",,\"&$B259&\",\",data[],1),VLOOKUP(\"FLH,\"&H$2&\",,\"&$B259&\",\",data[],7),0)","v":3854.4},{"$f":"IF(\"FLH,\"&I$2&\",,\"&$B259&\",\"=VLOOKUP(\"FLH,\"&I$2&\",,\"&$B259&\",\",data[],1),VLOOKUP(\"FLH,\"&I$2&\",,\"&$B259&\",\",data[],7),0)","v":3756.6367058000046},null,{"$f":"INDEX(E259:I259,J16)","v":4945.8767126930315},null,null,null,null,null,{"$f":"IF(\"FLH,\"&Q$2&\",,\"&$B259&\",\"=VLOOKUP(\"FLH,\"&Q$2&\",,\"&$B259&\",\",data[],1),VLOOKUP(\"FLH,\"&Q$2&\",,\"&$B259&\",\",data[],7),IF($B259&\",\"&$K16&\",\"&$Q$2&\",\"&$X$2&\",\"&Q$2=VLOOKUP($B259&\",\"&$K16&\",\"&$Q$2&\",\"&$X$2&\",\"&Q$2,data_flh_2[],1),VLOOKUP($B259&\",\"&$K16&\",\"&$Q$2&\",\"&$X$2&\",\"&Q$2,data_flh_2[],7),Q$256))","v":5017.6321656366445},null,null,null,null,null,null,{"$f":"IF(X$2<>\"\",IF(\"FLH,\"&X$2&\",,\"&$B259&\",\"=VLOOKUP(\"FLH,\"&X$2&\",,\"&$B259&\",\",data[],1),VLOOKUP(\"FLH,\"&X$2&\",,\"&$B259&\",\",data[],7),IF($B259&\",\"&$K16&\",\"&$Q$2&\",\"&$X$2&\",\"&X$2=VLOOKUP($B259&\",\"&$K16&\",\"&$Q$2&\",\"&$X$2&\",\"&X$2,data_flh_2[],1),VLOOKUP($B259&\",\"&$K16&\",\"&$Q$2&\",\"&$X$2&\",\"&X$2,data_flh_2[],7),X$256)),0)","v":0},null,null,null,null,null,null,null,null,null,null,null,null,{"$f":"IF(AK16,IF(\"FLH,\"&AK$2&\",,\"&$B259&\",\"=VLOOKUP(\"FLH,\"&AK$2&\",,\"&$B259&\",\",data[],1),VLOOKUP(\"FLH,\"&AK$2&\",,\"&$B259&\",\",data[],7),IF($B259&\",\"&$K16&\",\"&$Q$2&\",\"&$X$2&\",\"&AK$2=VLOOKUP($B259&\",\"&$K16&\",\"&$Q$2&\",\"&$X$2&\",\"&AK$2,data_flh_2[],1),VLOOKUP($B259&\",\"&$K16&\",\"&$Q$2&\",\"&$X$2&\",\"&AK$2,data_flh_2[],7),AK$256)),0)","v":4956.970490253364},null,{"$f":"IF(AM16,IF(\"FLH,\"&AM$2&\",,\"&$B259&\",\"=VLOOKUP(\"FLH,\"&AM$2&\",,\"&$B259&\",\",data[],1),VLOOKUP(\"FLH,\"&AM$2&\",,\"&$B259&\",\",data[],7),IF($B259&\",\"&$K16&\",\"&$Q$2&\",\"&$X$2&\",\"&AM$2=VLOOKUP($B259&\",\"&$K16&\",\"&$Q$2&\",\"&$X$2&\",\"&AM$2,data_flh_2[],1),VLOOKUP($B259&\",\"&$K16&\",\"&$Q$2&\",\"&$X$2&\",\"&AM$2,data_flh_2[],7),AM$256)),0)","v":0},null,null,null,null,null,null,null,null,null,null,null,null,null,null,{"$f":"IF(BB16,IF(\"FLH,\"&BB$2&\",,\"&$B259&\",\"=VLOOKUP(\"FLH,\"&BB$2&\",,\"&$B259&\",\",data[],1),VLOOKUP(\"FLH,\"&BB$2&\",,\"&$B259&\",\",data[],7),IF($B259&\",\"&$K16&\",\"&$Q$2&\",\"&$X$2&\",\"&BB$2=VLOOKUP($B259&\",\"&$K16&\",\"&$Q$2&\",\"&$X$2&\",\"&BB$2,data_flh_2[],1),VLOOKUP($B259&\",\"&$K16&\",\"&$Q$2&\",\"&$X$2&\",\"&BB$2,data_flh_2[],7),BB$256)),0)","v":6657.5999999999995},null,null,{"$f":"IF(BE16,IF(\"FLH,\"&BE$2&\",,\"&$B259&\",\"=VLOOKUP(\"FLH,\"&BE$2&\",,\"&$B259&\",\",data[],1),VLOOKUP(\"FLH,\"&BE$2&\",,\"&$B259&\",\",data[],7),IF($B259&\",\"&$K16&\",\"&$Q$2&\",\"&$X$2&\",\"&BE$2=VLOOKUP($B259&\",\"&$K16&\",\"&$Q$2&\",\"&$X$2&\",\"&BE$2,data_flh_2[],1),VLOOKUP($B259&\",\"&$K16&\",\"&$Q$2&\",\"&$X$2&\",\"&BE$2,data_flh_2[],7),BE$256)),0)","v":0}]
[null,"ARG-CAT",null,null,{"$f":"IF(\"FLH,\"&E$2&\",,\"&$B260&\",\"=VLOOKUP(\"FLH,\"&E$2&\",,\"&$B260&\",\",data[],1),VLOOKUP(\"FLH,\"&E$2&\",,\"&$B260&\",\",data[],7),0)","v":2184.2849520000136},{"$f":"IF(\"FLH,\"&F$2&\",,\"&$B260&\",\"=VLOOKUP(\"FLH,\"&F$2&\",,\"&$B260&\",\",data[],1),VLOOKUP(\"FLH,\"&F$2&\",,\"&$B260&\",\",data[],7),0)","v":0},{"$f":"IF(\"FLH,\"&G$2&\",,\"&$B260&\",\"=VLOOKUP(\"FLH,\"&G$2&\",,\"&$B260&\",\",data[],1),VLOOKUP(\"FLH,\"&G$2&\",,\"&$B260&\",\",data[],7),0)","v":4818.1134165187877},{"$f":"IF(\"FLH,\"&H$2&\",,\"&$B260&\",\"=VLOOKUP(\"FLH,\"&H$2&\",,\"&$B260&\",\",data[],1),VLOOKUP(\"FLH,\"&H$2&\",,\"&$B260&\",\",data[],7),0)","v":0},{"$f":"IF(\"FLH,\"&I$2&\",,\"&$B260&\",\"=VLOOKUP(\"FLH,\"&I$2&\",,\"&$B260&\",\",data[],1),VLOOKUP(\"FLH,\"&I$2&\",,\"&$B260&\",\",data[],7),0)","v":2884.1487291833364},null,{"$f":"INDEX(E260:I260,J17)","v":4818.1134165187877},null,null,null,null,null,{"$f":"IF(\"FLH,\"&Q$2&\",,\"&$B260&\",\"=VLOOKUP(\"FLH,\"&Q$2&\",,\"&$B260&\",\",data[],1),VLOOKUP(\"FLH,\"&Q$2&\",,\"&$B260&\",\",data[],7),IF($B260&\",\"&$K17&\",\"&$Q$2&\",\"&$X$2&\",\"&Q$2=VLOOKUP($B260&\",\"&$K17&\",\"&$Q$2&\",\"&$X$2&\",\"&Q$2,data_flh_2[],1),VLOOKUP($B260&\",\"&$K17&\",\"&$Q$2&\",\"&$X$2&\",\"&Q$2,data_flh_2[],7),Q$256))","v":4872.1159921515782},null,null,null,null,null,null,{"$f":"IF(X$2<>\"\",IF(\"FLH,\"&X$2&\",,\"&$B260&\",\"=VLOOKUP(\"FLH,\"&X$2&\",,\"&$B260&\",\",data[],1),VLOOKUP(\"FLH,\"&X$2&\",,\"&$B260&\",\",data[],7),IF($B260&\",\"&$K17&\",\"&$Q$2&\",\"&$X$2&\",\"&X$2=VLOOKUP($B260&\",\"&$K17&\",\"&$Q$2&\",\"&$X$2&\",\"&X$2,data_flh_2[],1),VLOOKUP($B260&\",\"&$K17&\",\"&$Q$2&\",\"&$X$2&\",\"&X$2,data_flh_2[],7),X$256)),0)","v":0},null,null,null,null,null,null,null,null,null,null,null,null,{"$f":"IF(AK17,IF(\"FLH,\"&AK$2&\",,\"&$B260&\",\"=VLOOKUP(\"FLH,\"&AK$2&\",,\"&$B260&\",\",data[],1),VLOOKUP(\"FLH,\"&AK$2&\",,\"&$B260&\",\",data[],7),IF($B260&\",\"&$K17&\",\"&$Q$2&\",\"&$X$2&\",\"&AK$2=VLOOKUP($B260&\",\"&$K17&\",\"&$Q$2&\",\"&$X$2&\",\"&AK$2,data_flh_2[],1),VLOOKUP($B260&\",\"&$K17&\",\"&$Q$2&\",\"&$X$2&\",\"&AK$2,data_flh_2[],7),AK$256)),0)","v":4803.0296223104042},null,{"$f":"IF(AM17,IF(\"FLH,\"&AM$2&\",,\"&$B260&\",\"=VLOOKUP(\"FLH,\"&AM$2&\",,\"&$B260&\",\",data[],1),VLOOKUP(\"FLH,\"&AM$2&\",,\"&$B260&\",\",data[],7),IF($B260&\",\"&$K17&\",\"&$Q$2&\",\"&$X$2&\",\"&AM$2=VLOOKUP($B260&\",\"&$K17&\",\"&$Q$2&\",\"&$X$2&\",\"&AM$2,data_flh_2[],1),VLOOKUP($B260&\",\"&$K17&\",\"&$Q$2&\",\"&$X$2&\",\"&AM$2,data_flh_2[],7),AM$256)),0)","v":0},null,null,null,null,null,null,null,null,null,null,null,null,null,null,{"$f":"IF(BB17,IF(\"FLH,\"&BB$2&\",,\"&$B260&\",\"=VLOOKUP(\"FLH,\"&BB$2&\",,\"&$B260&\",\",data[],1),VLOOKUP(\"FLH,\"&BB$2&\",,\"&$B260&\",\",data[],7),IF($B260&\",\"&$K17&\",\"&$Q$2&\",\"&$X$2&\",\"&BB$2=VLOOKUP($B260&\",\"&$K17&\",\"&$Q$2&\",\"&$X$2&\",\"&BB$2,data_flh_2[],1),VLOOKUP($B260&\",\"&$K17&\",\"&$Q$2&\",\"&$X$2&\",\"&BB$2,data_flh_2[],7),BB$256)),0)","v":6657.5999999999995},null,null,{"$f":"IF(BE17,IF(\"FLH,\"&BE$2&\",,\"&$B260&\",\"=VLOOKUP(\"FLH,\"&BE$2&\",,\"&$B260&\",\",data[],1),VLOOKUP(\"FLH,\"&BE$2&\",,\"&$B260&\",\",data[],7),IF($B260&\",\"&$K17&\",\"&$Q$2&\",\"&$X$2&\",\"&BE$2=VLOOKUP($B260&\",\"&$K17&\",\"&$Q$2&\",\"&$X$2&\",\"&BE$2,data_flh_2[],1),VLOOKUP($B260&\",\"&$K17&\",\"&$Q$2&\",\"&$X$2&\",\"&BE$2,data_flh_2[],7),BE$256)),0)","v":0}]
[null,"ARG-CBA",null,null,{"$f":"IF(\"FLH,\"&E$2&\",,\"&$B261&\",\"=VLOOKUP(\"FLH,\"&E$2&\",,\"&$B261&\",\",data[],1),VLOOKUP(\"FLH,\"&E$2&\",,\"&$B261&\",\",data[],7),0)","v":1472.2464967200012},{"$f":"IF(\"FLH,\"&F$2&\",,\"&$B261&\",\"=VLOOKUP(\"FLH,\"&F$2&\",,\"&$B261&\",\",data[],1),VLOOKUP(\"FLH,\"&F$2&\",,\"&$B261&\",\",data[],7),0)","v":0},{"$f":"IF(\"FLH,\"&G$2&\",,\"&$B261&\",\"=VLOOKUP(\"FLH,\"&G$2&\",,\"&$B261&\",\",data[],1),VLOOKUP(\"FLH,\"&G$2&\",,\"&$B261&\",\",data[],7),0)","v":4796.3272366469528},{"$f":"IF(\"FLH,\"&H$2&\",,\"&$B261&\",\"=VLOOKUP(\"FLH,\"&H$2&\",,\"&$B261&\",\",data[],1),VLOOKUP(\"FLH,\"&H$2&\",,\"&$B261&\",\",data[],7),0)","v":3854.4},{"$f":"IF(\"FLH,\"&I$2&\",,\"&$B261&\",\"=VLOOKUP(\"FLH,\"&I$2&\",,\"&$B261&\",\",data[],1),VLOOKUP(\"FLH,\"&I$2&\",,\"&$B261&\",\",data[],7),0)","v":3601.8171951299964},null,{"$f":"INDEX(E261:I261,J18)","v":4796.3272366469528},null,null,null,null,null,{"$f":"IF(\"FLH,\"&Q$2&\",,\"&$B261&\",\"=VLOOKUP(\"FLH,\"&Q$2&\",,\"&$B261&\",\",data[],1),VLOOKUP(\"FLH,\"&Q$2&\",,\"&$B261&\",\",data[],7),IF($B261&\",\"&$K18&\",\"&$Q$2&\",\"&$X$2&\",\"&Q$2=VLOOKUP($B261&\",\"&$K18&\",\"&$Q$2&\",\"&$X$2&\",\"&Q$2,data_flh_2[],1),VLOOKUP($B261&\",\"&$K18&\",\"&$Q$2&\",\"&$X$2&\",\"&Q$2,data_flh_2[],7),Q$256))","v":4847.3025940573143},null,null,null,null,null,null,{"$f":"IF(X$2<>\"\",IF(\"FLH,\"&X$2&\",,\"&$B261&\",\"=VLOOKUP(\"FLH,\"&X$2&\",,\"&$B261&\",\",data[],1),VLOOKUP(\"FLH,\"&X$2&\",,\"&$B261&\",\",data[],7),IF($B261&\",\"&$K18&\",\"&$Q$2&\",\"&$X$2&\",\"&X$2=VLOOKUP($B261&\",\"&$K18&\",\"&$Q$2&\",\"&$X$2&\",\"&X$2,data_flh_2[],1),VLOOKUP($B261&\",\"&$K18&\",\"&$Q$2&\",\"&$X$2&\",\"&X$2,data_flh_2[],7),X$256)),0)","v":0},null,null,null,null,null,null,null,null,null,null,null,null,{"$f":"IF(AK18,IF(\"FLH,\"&AK$2&\",,\"&$B261&\",\"=VLOOKUP(\"FLH,\"&AK$2&\",,\"&$B261&\",\",data[],1),VLOOKUP(\"FLH,\"&AK$2&\",,\"&$B261&\",\",data[],7),IF($B261&\",\"&$K18&\",\"&$Q$2&\",\"&$X$2&\",\"&AK$2=VLOOKUP($B261&\",\"&$K18&\",\"&$Q$2&\",\"&$X$2&\",\"&AK$2,data_flh_2[],1),VLOOKUP($B261&\",\"&$K18&\",\"&$Q$2&\",\"&$X$2&\",\"&AK$2,data_flh_2[],7),AK$256)),0)","v":4776.7796464639932},null,{"$f":"IF(AM18,IF(\"FLH,\"&AM$2&\",,\"&$B261&\",\"=VLOOKUP(\"FLH,\"&AM$2&\",,\"&$B261&\",\",data[],1),VLOOKUP(\"FLH,\"&AM$2&\",,\"&$B261&\",\",data[],7),IF($B261&\",\"&$K18&\",\"&$Q$2&\",\"&$X$2&\",\"&AM$2=VLOOKUP($B261&\",\"&$K18&\",\"&$Q$2&\",\"&$X$2&\",\"&AM$2,data_flh_2[],1),VLOOKUP($B261&\",\"&$K18&\",\"&$Q$2&\",\"&$X$2&\",\"&AM$2,data_flh_2[],7),AM$256)),0)","v":0},null,null,null,null,null,null,null,null,null,null,null,null,null,null,{"$f":"IF(BB18,IF(\"FLH,\"&BB$2&\",,\"&$B261&\",\"=VLOOKUP(\"FLH,\"&BB$2&\",,\"&$B261&\",\",data[],1),VLOOKUP(\"FLH,\"&BB$2&\",,\"&$B261&\",\",data[],7),IF($B261&\",\"&$K18&\",\"&$Q$2&\",\"&$X$2&\",\"&BB$2=VLOOKUP($B261&\",\"&$K18&\",\"&$Q$2&\",\"&$X$2&\",\"&BB$2,data_flh_2[],1),VLOOKUP($B261&\",\"&$K18&\",\"&$Q$2&\",\"&$X$2&\",\"&BB$2,data_flh_2[],7),BB$256)),0)","v":6657.5999999999995},null,null,{"$f":"IF(BE18,IF(\"FLH,\"&BE$2&\",,\"&$B261&\",\"=VLOOKUP(\"FLH,\"&BE$2&\",,\"&$B261&\",\",data[],1),VLOOKUP(\"FLH,\"&BE$2&\",,\"&$B261&\",\",data[],7),IF($B261&\",\"&$K18&\",\"&$Q$2&\",\"&$X$2&\",\"&BE$2=VLOOKUP($B261&\",\"&$K18&\",\"&$Q$2&\",\"&$X$2&\",\"&BE$2,data_flh_2[],1),VLOOKUP($B261&\",\"&$K18&\",\"&$Q$2&\",\"&$X$2&\",\"&BE$2,data_flh_2[],7),BE$256)),0)","v":0}]
[null,"ARG-CHA",null,null,{"$f":"IF(\"FLH,\"&E$2&\",,\"&$B262&\",\"=VLOOKUP(\"FLH,\"&E$2&\",,\"&$B262&\",\",data[],1),VLOOKUP(\"FLH,\"&E$2&\",,\"&$B262&\",\",data[],7),0)","v":1462.293405359997},{"$f":"IF(\"FLH,\"&F$2&\",,\"&$B262&\",\"=VLOOKUP(\"FLH,\"&F$2&\",,\"&$B262&\",\",data[],1),VLOOKUP(\"FLH,\"&F$2&\",,\"&$B262&\",\",data[],7),0)","v":0},{"$f":"IF(\"FLH,\"&G$2&\",,\"&$B262&\",\"=VLOOKUP(\"FLH,\"&G$2&\",,\"&$B262&\",\",data[],1),VLOOKUP(\"FLH,\"&G$2&\",,\"&$B262&\",\",data[],7),0)","v":4353.1801274671416},{"$f":"IF(\"FLH,\"&H$2&\",,\"&$B262&\",\"=VLOOKUP(\"FLH,\"&H$2&\",,\"&$B262&\",\",data[],1),VLOOKUP(\"FLH,\"&H$2&\",,\"&$B262&\",\",data[],7),0)","v":0},{"$f":"IF(\"FLH,\"&I$2&\",,\"&$B262&\",\"=VLOOKUP(\"FLH,\"&I$2&\",,\"&$B262&\",\",data[],1),VLOOKUP(\"FLH,\"&I$2&\",,\"&$B262&\",\",data[],7),0)","v":3079.6049933000008},null,{"$f":"INDEX(E262:I262,J19)","v":4353.1801274671416},null,null,null,null,null,{"$f":"IF(\"FLH,\"&Q$2&\",,\"&$B262&\",\"=VLOOKUP(\"FLH,\"&Q$2&\",,\"&$B262&\",\",data[],1),VLOOKUP(\"FLH,\"&Q$2&\",,\"&$B262&\",\",data[],7),IF($B262&\",\"&$K19&\",\"&$Q$2&\",\"&$X$2&\",\"&Q$2=VLOOKUP($B262&\",\"&$K19&\",\"&$Q$2&\",\"&$X$2&\",\"&Q$2,data_flh_2[],1),VLOOKUP($B262&\",\"&$K19&\",\"&$Q$2&\",\"&$X$2&\",\"&Q$2,data_flh_2[],7),Q$256))","v":4342.5796137510606},null,null,null,null,null,null,{"$f":"IF(X$2<>\"\",IF(\"FLH,\"&X$2&\",,\"&$B262&\",\"=VLOOKUP(\"FLH,\"&X$2&\",,\"&$B262&\",\",data[],1),VLOOKUP(\"FLH,\"&X$2&\",,\"&$B262&\",\",data[],7),IF($B262&\",\"&$K19&\",\"&$Q$2&\",\"&$X$2&\",\"&X$2=VLOOKUP($B262&\",\"&$K19&\",\"&$Q$2&\",\"&$X$2&\",\"&X$2,data_flh_2[],1),VLOOKUP($B262&\",\"&$K19&\",\"&$Q$2&\",\"&$X$2&\",\"&X$2,data_flh_2[],7),X$256)),0)","v":0},null,null,null,null,null,null,null,null,null,null,null,null,{"$f":"IF(AK19,IF(\"FLH,\"&AK$2&\",,\"&$B262&\",\"=VLOOKUP(\"FLH,\"&AK$2&\",,\"&$B262&\",\",data[],1),VLOOKUP(\"FLH,\"&AK$2&\",,\"&$B262&\",\",data[],7),IF($B262&\",\"&$K19&\",\"&$Q$2&\",\"&$X$2&\",\"&AK$2=VLOOKUP($B262&\",\"&$K19&\",\"&$Q$2&\",\"&$X$2&\",\"&AK$2,data_flh_2[],1),VLOOKUP($B262&\",\"&$K19&\",\"&$Q$2&\",\"&$X$2&\",\"&AK$2,data_flh_2[],7),AK$256)),0)","v":4242.8356057551728},null,{"$f":"IF(AM19,IF(\"FLH,\"&AM$2&\",,\"&$B262&\",\"=VLOOKUP(\"FLH,\"&AM$2&\",,\"&$B262&\",\",data[],1),VLOOKUP(\"FLH,\"&AM$2&\",,\"&$B262&\",\",data[],7),IF($B262&\",\"&$K19&\",\"&$Q$2&\",\"&$X$2&\",\"&AM$2=VLOOKUP($B262&\",\"&$K19&\",\"&$Q$2&\",\"&$X$2&\",\"&AM$2,data_flh_2[],1),VLOOKUP($B262&\",\"&$K19&\",\"&$Q$2&\",\"&$X$2&\",\"&AM$2,data_flh_2[],7),AM$256)),0)","v":0},null,null,null,null,null,null,null,null,null,null,null,null,null,null,{"$f":"IF(BB19,IF(\"FLH,\"&BB$2&\",,\"&$B262&\",\"=VLOOKUP(\"FLH,\"&BB$2&\",,\"&$B262&\",\",data[],1),VLOOKUP(\"FLH,\"&BB$2&\",,\"&$B262&\",\",data[],7),IF($B262&\",\"&$K19&\",\"&$Q$2&\",\"&$X$2&\",\"&BB$2=VLOOKUP($B262&\",\"&$K19&\",\"&$Q$2&\",\"&$X$2&\",\"&BB$2,data_flh_2[],1),VLOOKUP($B262&\",\"&$K19&\",\"&$Q$2&\",\"&$X$2&\",\"&BB$2,data_flh_2[],7),BB$256)),0)","v":6657.5999999999995},null,null,{"$f":"IF(BE19,IF(\"FLH,\"&BE$2&\",,\"&$B262&\",\"=VLOOKUP(\"FLH,\"&BE$2&\",,\"&$B262&\",\",data[],1),VLOOKUP(\"FLH,\"&BE$2&\",,\"&$B262&\",\",data[],7),IF($B262&\",\"&$K19&\",\"&$Q$2&\",\"&$X$2&\",\"&BE$2=VLOOKUP($B262&\",\"&$K19&\",\"&$Q$2&\",\"&$X$2&\",\"&BE$2,data_flh_2[],1),VLOOKUP($B262&\",\"&$K19&\",\"&$Q$2&\",\"&$X$2&\",\"&BE$2,data_flh_2[],7),BE$256)),0)","v":0}]
[null,"ARG-CHU",null,null,{"$f":"IF(\"FLH,\"&E$2&\",,\"&$B263&\",\"=VLOOKUP(\"FLH,\"&E$2&\",,\"&$B263&\",\",data[],1),VLOOKUP(\"FLH,\"&E$2&\",,\"&$B263&\",\",data[],7),0)","v":1565.6552791200011},{"$f":"IF(\"FLH,\"&F$2&\",,\"&$B263&\",\"=VLOOKUP(\"FLH,\"&F$2&\",,\"&$B263&\",\",data[],1),VLOOKUP(\"FLH,\"&F$2&\",,\"&$B263&\",\",data[],7),0)","v":0},{"$f":"IF(\"FLH,\"&G$2&\",,\"&$B263&\",\"=VLOOKUP(\"FLH,\"&G$2&\",,\"&$B263&\",\",data[],1),VLOOKUP(\"FLH,\"&G$2&\",,\"&$B263&\",\",data[],7),0)","v":6390.4146064505558},{"$f":"IF(\"FLH,\"&H$2&\",,\"&$B263&\",\"=VLOOKUP(\"FLH,\"&H$2&\",,\"&$B263&\",\",data[],1),VLOOKUP(\"FLH,\"&H$2&\",,\"&$B263&\",\",data[],7),0)","v":5763.0835753699857},{"$f":"IF(\"FLH,\"&I$2&\",,\"&$B263&\",\"=VLOOKUP(\"FLH,\"&I$2&\",,\"&$B263&\",\",data[],1),VLOOKUP(\"FLH,\"&I$2&\",,\"&$B263&\",\",data[],7),0)","v":5763.0835753699857},null,{"$f":"INDEX(E263:I263,J20)","v":6390.4146064505558},null,null,null,null,null,{"$f":"IF(\"FLH,\"&Q$2&\",,\"&$B263&\",\"=VLOOKUP(\"FLH,\"&Q$2&\",,\"&$B263&\",\",data[],1),VLOOKUP(\"FLH,\"&Q$2&\",,\"&$B263&\",\",data[],7),IF($B263&\",\"&$K20&\",\"&$Q$2&\",\"&$X$2&\",\"&Q$2=VLOOKUP($B263&\",\"&$K20&\",\"&$Q$2&\",\"&$X$2&\",\"&Q$2,data_flh_2[],1),VLOOKUP($B263&\",\"&$K20&\",\"&$Q$2&\",\"&$X$2&\",\"&Q$2,data_flh_2[],7),Q$256))","v":6662.8904913696924},null,null,null,null,null,null,{"$f":"IF(X$2<>\"\",IF(\"FLH,\"&X$2&\",,\"&$B263&\",\"=VLOOKUP(\"FLH,\"&X$2&\",,\"&$B263&\",\",data[],1),VLOOKUP(\"FLH,\"&X$2&\",,\"&$B263&\",\",data[],7),IF($B263&\",\"&$K20&\",\"&$Q$2&\",\"&$X$2&\",\"&X$2=VLOOKUP($B263&\",\"&$K20&\",\"&$Q$2&\",\"&$X$2&\",\"&X$2,data_flh_2[],1),VLOOKUP($B263&\",\"&$K20&\",\"&$Q$2&\",\"&$X$2&\",\"&X$2,data_flh_2[],7),X$256)),0)","v":0},null,null,null,null,null,null,null,null,null,null,null,null,{"$f":"IF(AK20,IF(\"FLH,\"&AK$2&\",,\"&$B263&\",\"=VLOOKUP(\"FLH,\"&AK$2&\",,\"&$B263&\",\",data[],1),VLOOKUP(\"FLH,\"&AK$2&\",,\"&$B263&\",\",data[],7),IF($B263&\",\"&$K20&\",\"&$Q$2&\",\"&$X$2&\",\"&AK$2=VLOOKUP($B263&\",\"&$K20&\",\"&$Q$2&\",\"&$X$2&\",\"&AK$2,data_flh_2[],1),VLOOKUP($B263&\",\"&$K20&\",\"&$Q$2&\",\"&$X$2&\",\"&AK$2,data_flh_2[],7),AK$256)),0)","v":6697.4814491930456},null,{"$f":"IF(AM20,IF(\"FLH,\"&AM$2&\",,\"&$B263&\",\"=VLOOKUP(\"FLH,\"&AM$2&\",,\"&$B263&\",\",data[],1),VLOOKUP(\"FLH,\"&AM$2&\",,\"&$B263&\",\",data[],7),IF($B263&\",\"&$K20&\",\"&$Q$2&\",\"&$X$2&\",\"&AM$2=VLOOKUP($B263&\",\"&$K20&\",\"&$Q$2&\",\"&$X$2&\",\"&AM$2,data_flh_2[],1),VLOOKUP($B263&\",\"&$K20&\",\"&$Q$2&\",\"&$X$2&\",\"&AM$2,data_flh_2[],7),AM$256)),0)","v":0},null,null,null,null,null,null,null,null,null,null,null,null,null,null,{"$f":"IF(BB20,IF(\"FLH,\"&BB$2&\",,\"&$B263&\",\"=VLOOKUP(\"FLH,\"&BB$2&\",,\"&$B263&\",\",data[],1),VLOOKUP(\"FLH,\"&BB$2&\",,\"&$B263&\",\",data[],7),IF($B263&\",\"&$K20&\",\"&$Q$2&\",\"&$X$2&\",\"&BB$2=VLOOKUP($B263&\",\"&$K20&\",\"&$Q$2&\",\"&$X$2&\",\"&BB$2,data_flh_2[],1),VLOOKUP($B263&\",\"&$K20&\",\"&$Q$2&\",\"&$X$2&\",\"&BB$2,data_flh_2[],7),BB$256)),0)","v":6657.5999999999995},null,null,{"$f":"IF(BE20,IF(\"FLH,\"&BE$2&\",,\"&$B263&\",\"=VLOOKUP(\"FLH,\"&BE$2&\",,\"&$B263&\",\",data[],1),VLOOKUP(\"FLH,\"&BE$2&\",,\"&$B263&\",\",data[],7),IF($B263&\",\"&$K20&\",\"&$Q$2&\",\"&$X$2&\",\"&BE$2=VLOOKUP($B263&\",\"&$K20&\",\"&$Q$2&\",\"&$X$2&\",\"&BE$2,data_flh_2[],1),VLOOKUP($B263&\",\"&$K20&\",\"&$Q$2&\",\"&$X$2&\",\"&BE$2,data_flh_2[],7),BE$256)),0)","v":0}]
[null,"ARG-COR",null,null,{"$f":"IF(\"FLH,\"&E$2&\",,\"&$B264&\",\"=VLOOKUP(\"FLH,\"&E$2&\",,\"&$B264&\",\",data[],1),VLOOKUP(\"FLH,\"&E$2&\",,\"&$B264&\",\",data[],7),0)","v":1411.9226517600005},{"$f":"IF(\"FLH,\"&F$2&\",,\"&$B264&\",\"=VLOOKUP(\"FLH,\"&F$2&\",,\"&$B264&\",\",data[],1),VLOOKUP(\"FLH,\"&F$2&\",,\"&$B264&\",\",data[],7),0)","v":0},{"$f":"IF(\"FLH,\"&G$2&\",,\"&$B264&\",\"=VLOOKUP(\"FLH,\"&G$2&\",,\"&$B264&\",\",data[],1),VLOOKUP(\"FLH,\"&G$2&\",,\"&$B264&\",\",data[],7),0)","v":4296.9749353692923},{"$f":"IF(\"FLH,\"&H$2&\",,\"&$B264&\",\"=VLOOKUP(\"FLH,\"&H$2&\",,\"&$B264&\",\",data[],1),VLOOKUP(\"FLH,\"&H$2&\",,\"&$B264&\",\",data[],7),0)","v":0},{"$f":"IF(\"FLH,\"&I$2&\",,\"&$B264&\",\"=VLOOKUP(\"FLH,\"&I$2&\",,\"&$B264&\",\",data[],1),VLOOKUP(\"FLH,\"&I$2&\",,\"&$B264&\",\",data[],7),0)","v":3045.2758197400012},null,{"$f":"INDEX(E264:I264,J21)","v":4296.9749353692923},null,null,null,null,null,{"$f":"IF(\"FLH,\"&Q$2&\",,\"&$B264&\",\"=VLOOKUP(\"FLH,\"&Q$2&\",,\"&$B264&\",\",data[],1),VLOOKUP(\"FLH,\"&Q$2&\",,\"&$B264&\",\",data[],7),IF($B264&\",\"&$K21&\",\"&$Q$2&\",\"&$X$2&\",\"&Q$2=VLOOKUP($B264&\",\"&$K21&\",\"&$Q$2&\",\"&$X$2&\",\"&Q$2,data_flh_2[],1),VLOOKUP($B264&\",\"&$K21&\",\"&$Q$2&\",\"&$X$2&\",\"&Q$2,data_flh_2[],7),Q$256))","v":4278.5646366099108},null,null,null,null,null,null,{"$f":"IF(X$2<>\"\",IF(\"FLH,\"&X$2&\",,\"&$B264&\",\"=VLOOKUP(\"FLH,\"&X$2&\",,\"&$B264&\",\",data[],1),VLOOKUP(\"FLH,\"&X$2&\",,\"&$B264&\",\",data[],7),IF($B264&\",\"&$K21&\",\"&$Q$2&\",\"&$X$2&\",\"&X$2=VLOOKUP($B264&\",\"&$K21&\",\"&$Q$2&\",\"&$X$2&\",\"&X$2,data_flh_2[],1),VLOOKUP($B264&\",\"&$K21&\",\"&$Q$2&\",\"&$X$2&\",\"&X$2,data_flh_2[],7),X$256)),0)","v":0},null,null,null,null,null,null,null,null,null,null,null,null,{"$f":"IF(AK21,IF(\"FLH,\"&AK$2&\",,\"&$B264&\",\"=VLOOKUP(\"FLH,\"&AK$2&\",,\"&$B264&\",\",data[],1),VLOOKUP(\"FLH,\"&AK$2&\",,\"&$B264&\",\",data[],7),IF($B264&\",\"&$K21&\",\"&$Q$2&\",\"&$X$2&\",\"&AK$2=VLOOKUP($B264&\",\"&$K21&\",\"&$Q$2&\",\"&$X$2&\",\"&AK$2,data_flh_2[],1),VLOOKUP($B264&\",\"&$K21&\",\"&$Q$2&\",\"&$X$2&\",\"&AK$2,data_flh_2[],7),AK$256)),0)","v":4175.114465854057},null,{"$f":"IF(AM21,IF(\"FLH,\"&AM$2&\",,\"&$B264&\",\"=VLOOKUP(\"FLH,\"&AM$2&\",,\"&$B264&\",\",data[],1),VLOOKUP(\"FLH,\"&AM$2&\",,\"&$B264&\",\",data[],7),IF($B264&\",\"&$K21&\",\"&$Q$2&\",\"&$X$2&\",\"&AM$2=VLOOKUP($B264&\",\"&$K21&\",\"&$Q$2&\",\"&$X$2&\",\"&AM$2,data_flh_2[],1),VLOOKUP($B264&\",\"&$K21&\",\"&$Q$2&\",\"&$X$2&\",\"&AM$2,data_flh_2[],7),AM$256)),0)","v":0},null,null,null,null,null,null,null,null,null,null,null,null,null,null,{"$f":"IF(BB21,IF(\"FLH,\"&BB$2&\",,\"&$B264&\",\"=VLOOKUP(\"FLH,\"&BB$2&\",,\"&$B264&\",\",data[],1),VLOOKUP(\"FLH,\"&BB$2&\",,\"&$B264&\",\",data[],7),IF($B264&\",\"&$K21&\",\"&$Q$2&\",\"&$X$2&\",\"&BB$2=VLOOKUP($B264&\",\"&$K21&\",\"&$Q$2&\",\"&$X$2&\",\"&BB$2,data_flh_2[],1),VLOOKUP($B264&\",\"&$K21&\",\"&$Q$2&\",\"&$X$2&\",\"&BB$2,data_flh_2[],7),BB$256)),0)","v":6657.5999999999995},null,null,{"$f":"IF(BE21,IF(\"FLH,\"&BE$2&\",,\"&$B264&\",\"=VLOOKUP(\"FLH,\"&BE$2&\",,\"&$B264&\",\",data[],1),VLOOKUP(\"FLH,\"&BE$2&\",,\"&$B264&\",\",data[],7),IF($B264&\",\"&$K21&\",\"&$Q$2&\",\"&$X$2&\",\"&BE$2=VLOOKUP($B264&\",\"&$K21&\",\"&$Q$2&\",\"&$X$2&\",\"&BE$2,data_flh_2[],1),VLOOKUP($B264&\",\"&$K21&\",\"&$Q$2&\",\"&$X$2&\",\"&BE$2,data_flh_2[],7),BE$256)),0)","v":0}]
[null,"ARG-CRB",null,null,{"$f":"IF(\"FLH,\"&E$2&\",,\"&$B265&\",\"=VLOOKUP(\"FLH,\"&E$2&\",,\"&$B265&\",\",data[],1),VLOOKUP(\"FLH,\"&E$2&\",,\"&$B265&\",\",data[],7),0)","v":1571.8333939199993},{"$f":"IF(\"FLH,\"&F$2&\",,\"&$B265&\",\"=VLOOKUP(\"FLH,\"&F$2&\",,\"&$B265&\",\",data[],1),VLOOKUP(\"FLH,\"&F$2&\",,\"&$B265&\",\",data[],7),0)","v":0},{"$f":"IF(\"FLH,\"&G$2&\",,\"&$B265&\",\"=VLOOKUP(\"FLH,\"&G$2&\",,\"&$B265&\",\",data[],1),VLOOKUP(\"FLH,\"&G$2&\",,\"&$B265&\",\",data[],7),0)","v":4058.0540031422247},{"$f":"IF(\"FLH,\"&H$2&\",,\"&$B265&\",\"=VLOOKUP(\"FLH,\"&H$2&\",,\"&$B265&\",\",data[],1),VLOOKUP(\"FLH,\"&H$2&\",,\"&$B265&\",\",data[],7),0)","v":0},{"$f":"IF(\"FLH,\"&I$2&\",,\"&$B265&\",\"=VLOOKUP(\"FLH,\"&I$2&\",,\"&$B265&\",\",data[],1),VLOOKUP(\"FLH,\"&I$2&\",,\"&$B265&\",\",data[],7),0)","v":2605.2082556500004},null,{"$f":"INDEX(E265:I265,J22)","v":4058.0540031422247},null,null,null,null,null,{"$f":"IF(\"FLH,\"&Q$2&\",,\"&$B265&\",\"=VLOOKUP(\"FLH,\"&Q$2&\",,\"&$B265&\",\",data[],1),VLOOKUP(\"FLH,\"&Q$2&\",,\"&$B265&\",\",data[],7),IF($B265&\",\"&$K22&\",\"&$Q$2&\",\"&$X$2&\",\"&Q$2=VLOOKUP($B265&\",\"&$K22&\",\"&$Q$2&\",\"&$X$2&\",\"&Q$2,data_flh_2[],1),VLOOKUP($B265&\",\"&$K22&\",\"&$Q$2&\",\"&$X$2&\",\"&Q$2,data_flh_2[],7),Q$256))","v":4006.4453279803606},null,null,null,null,null,null,{"$f":"IF(X$2<>\"\",IF(\"FLH,\"&X$2&\",,\"&$B265&\",\"=VLOOKUP(\"FLH,\"&X$2&\",,\"&$B265&\",\",data[],1),VLOOKUP(\"FLH,\"&X$2&\",,\"&$B265&\",\",data[],7),IF($B265&\",\"&$K22&\",\"&$Q$2&\",\"&$X$2&\",\"&X$2=VLOOKUP($B265&\",\"&$K22&\",\"&$Q$2&\",\"&$X$2&\",\"&X$2,data_flh_2[],1),VLOOKUP($B265&\",\"&$K22&\",\"&$Q$2&\",\"&$X$2&\",\"&X$2,data_flh_2[],7),X$256)),0)","v":0},null,null,null,null,null,null,null,null,null,null,null,null,{"$f":"IF(AK22,IF(\"FLH,\"&AK$2&\",,\"&$B265&\",\"=VLOOKUP(\"FLH,\"&AK$2&\",,\"&$B265&\",\",data[],1),VLOOKUP(\"FLH,\"&AK$2&\",,\"&$B265&\",\",data[],7),IF($B265&\",\"&$K22&\",\"&$Q$2&\",\"&$X$2&\",\"&AK$2=VLOOKUP($B265&\",\"&$K22&\",\"&$Q$2&\",\"&$X$2&\",\"&AK$2,data_flh_2[],1),VLOOKUP($B265&\",\"&$K22&\",\"&$Q$2&\",\"&$X$2&\",\"&AK$2,data_flh_2[],7),AK$256)),0)","v":3887.2407432896703},null,{"$f":"IF(AM22,IF(\"FLH,\"&AM$2&\",,\"&$B265&\",\"=VLOOKUP(\"FLH,\"&AM$2&\",,\"&$B265&\",\",data[],1),VLOOKUP(\"FLH,\"&AM$2&\",,\"&$B265&\",\",data[],7),IF($B265&\",\"&$K22&\",\"&$Q$2&\",\"&$X$2&\",\"&AM$2=VLOOKUP($B265&\",\"&$K22&\",\"&$Q$2&\",\"&$X$2&\",\"&AM$2,data_flh_2[],1),VLOOKUP($B265&\",\"&$K22&\",\"&$Q$2&\",\"&$X$2&\",\"&AM$2,data_flh_2[],7),AM$256)),0)","v":0},null,null,null,null,null,null,null,null,null,null,null,null,null,null,{"$f":"IF(BB22,IF(\"FLH,\"&BB$2&\",,\"&$B265&\",\"=VLOOKUP(\"FLH,\"&BB$2&\",,\"&$B265&\",\",data[],1),VLOOKUP(\"FLH,\"&BB$2&\",,\"&$B265&\",\",data[],7),IF($B265&\",\"&$K22&\",\"&$Q$2&\",\"&$X$2&\",\"&BB$2=VLOOKUP($B265&\",\"&$K22&\",\"&$Q$2&\",\"&$X$2&\",\"&BB$2,data_flh_2[],1),VLOOKUP($B265&\",\"&$K22&\",\"&$Q$2&\",\"&$X$2&\",\"&BB$2,data_flh_2[],7),BB$256)),0)","v":6657.5999999999995},null,null,{"$f":"IF(BE22,IF(\"FLH,\"&BE$2&\",,\"&$B265&\",\"=VLOOKUP(\"FLH,\"&BE$2&\",,\"&$B265&\",\",data[],1),VLOOKUP(\"FLH,\"&BE$2&\",,\"&$B265&\",\",data[],7),IF($B265&\",\"&$K22&\",\"&$Q$2&\",\"&$X$2&\",\"&BE$2=VLOOKUP($B265&\",\"&$K22&\",\"&$Q$2&\",\"&$X$2&\",\"&BE$2,data_flh_2[],1),VLOOKUP($B265&\",\"&$K22&\",\"&$Q$2&\",\"&$X$2&\",\"&BE$2,data_flh_2[],7),BE$256)),0)","v":0}]
[null,"ARG-CRU",null,null,{"$f":"IF(\"FLH,\"&E$2&\",,\"&$B266&\",\"=VLOOKUP(\"FLH,\"&E$2&\",,\"&$B266&\",\",data[],1),VLOOKUP(\"FLH,\"&E$2&\",,\"&$B266&\",\",data[],7),0)","v":1419.2559755999985},{"$f":"IF(\"FLH,\"&F$2&\",,\"&$B266&\",\"=VLOOKUP(\"FLH,\"&F$2&\",,\"&$B266&\",\",data[],1),VLOOKUP(\"FLH,\"&F$2&\",,\"&$B266&\",\",data[],7),0)","v":0},{"$f":"IF(\"FLH,\"&G$2&\",,\"&$B266&\",\"=VLOOKUP(\"FLH,\"&G$2&\",,\"&$B266&\",\",data[],1),VLOOKUP(\"FLH,\"&G$2&\",,\"&$B266&\",\",data[],7),0)","v":6369.4767112831887},{"$f":"IF(\"FLH,\"&H$2&\",,\"&$B266&\",\"=VLOOKUP(\"FLH,\"&H$2&\",,\"&$B266&\",\",data[],1),VLOOKUP(\"FLH,\"&H$2&\",,\"&$B266&\",\",data[],7),0)","v":5854.9926980599967},{"$f":"IF(\"FLH,\"&I$2&\",,\"&$B266&\",\"=VLOOKUP(\"FLH,\"&I$2&\",,\"&$B266&\",\",data[],1),VLOOKUP(\"FLH,\"&I$2&\",,\"&$B266&\",\",data[],7),0)","v":5854.9926980599967},null,{"$f":"INDEX(E266:I266,J23)","v":6369.4767112831887},null,null,null,null,null,{"$f":"IF(\"FLH,\"&Q$2&\",,\"&$B266&\",\"=VLOOKUP(\"FLH,\"&Q$2&\",,\"&$B266&\",\",data[],1),VLOOKUP(\"FLH,\"&Q$2&\",,\"&$B266&\",\",data[],7),IF($B266&\",\"&$K23&\",\"&$Q$2&\",\"&$X$2&\",\"&Q$2=VLOOKUP($B266&\",\"&$K23&\",\"&$Q$2&\",\"&$X$2&\",\"&Q$2,data_flh_2[],1),VLOOKUP($B266&\",\"&$K23&\",\"&$Q$2&\",\"&$X$2&\",\"&Q$2,data_flh_2[],7),Q$256))","v":6639.0432482504211},null,null,null,null,null,null,{"$f":"IF(X$2<>\"\",IF(\"FLH,\"&X$2&\",,\"&$B266&\",\"=VLOOKUP(\"FLH,\"&X$2&\",,\"&$B266&\",\",data[],1),VLOOKUP(\"FLH,\"&X$2&\",,\"&$B266&\",\",data[],7),IF($B266&\",\"&$K23&\",\"&$Q$2&\",\"&$X$2&\",\"&X$2=VLOOKUP($B266&\",\"&$K23&\",\"&$Q$2&\",\"&$X$2&\",\"&X$2,data_flh_2[],1),VLOOKUP($B266&\",\"&$K23&\",\"&$Q$2&\",\"&$X$2&\",\"&X$2,data_flh_2[],7),X$256)),0)","v":0},null,null,null,null,null,null,null,null,null,null,null,null,{"$f":"IF(AK23,IF(\"FLH,\"&AK$2&\",,\"&$B266&\",\"=VLOOKUP(\"FLH,\"&AK$2&\",,\"&$B266&\",\",data[],1),VLOOKUP(\"FLH,\"&AK$2&\",,\"&$B266&\",\",data[],7),IF($B266&\",\"&$K23&\",\"&$Q$2&\",\"&$X$2&\",\"&AK$2=VLOOKUP($B266&\",\"&$K23&\",\"&$Q$2&\",\"&$X$2&\",\"&AK$2,data_flh_2[],1),VLOOKUP($B266&\",\"&$K23&\",\"&$Q$2&\",\"&$X$2&\",\"&AK$2,data_flh_2[],7),AK$256)),0)","v":6672.2535641002305},null,{"$f":"IF(AM23,IF(\"FLH,\"&AM$2&\",,\"&$B266&\",\"=VLOOKUP(\"FLH,\"&AM$2&\",,\"&$B266&\",\",data[],1),VLOOKUP(\"FLH,\"&AM$2&\",,\"&$B266&\",\",data[],7),IF($B266&\",\"&$K23&\",\"&$Q$2&\",\"&$X$2&\",\"&AM$2=VLOOKUP($B266&\",\"&$K23&\",\"&$Q$2&\",\"&$X$2&\",\"&AM$2,data_flh_2[],1),VLOOKUP($B266&\",\"&$K23&\",\"&$Q$2&\",\"&$X$2&\",\"&AM$2,data_flh_2[],7),AM$256)),0)","v":0},null,null,null,null,null,null,null,null,null,null,null,null,null,null,{"$f":"IF(BB23,IF(\"FLH,\"&BB$2&\",,\"&$B266&\",\"=VLOOKUP(\"FLH,\"&BB$2&\",,\"&$B266&\",\",data[],1),VLOOKUP(\"FLH,\"&BB$2&\",,\"&$B266&\",\",data[],7),IF($B266&\",\"&$K23&\",\"&$Q$2&\",\"&$X$2&\",\"&BB$2=VLOOKUP($B266&\",\"&$K23&\",\"&$Q$2&\",\"&$X$2&\",\"&BB$2,data_flh_2[],1),VLOOKUP($B266&\",\"&$K23&\",\"&$Q$2&\",\"&$X$2&\",\"&BB$2,data_flh_2[],7),BB$256)),0)","v":6657.5999999999995},null,null,{"$f":"IF(BE23,IF(\"FLH,\"&BE$2&\",,\"&$B266&\",\"=VLOOKUP(\"FLH,\"&BE$2&\",,\"&$B266&\",\",data[],1),VLOOKUP(\"FLH,\"&BE$2&\",,\"&$B266&\",\",data[],7),IF($B266&\",\"&$K23&\",\"&$Q$2&\",\"&$X$2&\",\"&BE$2=VLOOKUP($B266&\",\"&$K23&\",\"&$Q$2&\",\"&$X$2&\",\"&BE$2,data_flh_2[],1),VLOOKUP($B266&\",\"&$K23&\",\"&$Q$2&\",\"&$X$2&\",\"&BE$2,data_flh_2[],7),BE$256)),0)","v":0}]
[null,"ARG-EST",null,null,{"$f":"IF(\"FLH,\"&E$2&\",,\"&$B267&\",\"=VLOOKUP(\"FLH,\"&E$2&\",,\"&$B267&\",\",data[],1),VLOOKUP(\"FLH,\"&E$2&\",,\"&$B267&\",\",data[],7),0)","v":1553.4726681600023},{"$f":"IF(\"FLH,\"&F$2&\",,\"&$B267&\",\"=VLOOKUP(\"FLH,\"&F$2&\",,\"&$B267&\",\",data[],1),VLOOKUP(\"FLH,\"&F$2&\",,\"&$B267&\",\",data[],7),0)","v":0},{"$f":"IF(\"FLH,\"&G$2&\",,\"&$B267&\",\"=VLOOKUP(\"FLH,\"&G$2&\",,\"&$B267&\",\",data[],1),VLOOKUP(\"FLH,\"&G$2&\",,\"&$B267&\",\",data[],7),0)","v":4886.4479918271754},{"$f":"IF(\"FLH,\"&H$2&\",,\"&$B267&\",\"=VLOOKUP(\"FLH,\"&H$2&\",,\"&$B267&\",\",data[],1),VLOOKUP(\"FLH,\"&H$2&\",,\"&$B267&\",\",data[],7),0)","v":0},{"$f":"IF(\"FLH,\"&I$2&\",,\"&$B267&\",\"=VLOOKUP(\"FLH,\"&I$2&\",,\"&$B267&\",\",data[],1),VLOOKUP(\"FLH,\"&I$2&\",,\"&$B267&\",\",data[],7),0)","v":3710.4766984999937},null,{"$f":"INDEX(E267:I267,J24)","v":4886.4479918271754},null,null,null,null,null,{"$f":"IF(\"FLH,\"&Q$2&\",,\"&$B267&\",\"=VLOOKUP(\"FLH,\"&Q$2&\",,\"&$B267&\",\",data[],1),VLOOKUP(\"FLH,\"&Q$2&\",,\"&$B267&\",\",data[],7),IF($B267&\",\"&$K24&\",\"&$Q$2&\",\"&$X$2&\",\"&Q$2=VLOOKUP($B267&\",\"&$K24&\",\"&$Q$2&\",\"&$X$2&\",\"&Q$2,data_flh_2[],1),VLOOKUP($B267&\",\"&$K24&\",\"&$Q$2&\",\"&$X$2&\",\"&Q$2,data_flh_2[],7),Q$256))","v":4949.9457461839274},null,null,null,null,null,null,{"$f":"IF(X$2<>\"\",IF(\"FLH,\"&X$2&\",,\"&$B267&\",\"=VLOOKUP(\"FLH,\"&X$2&\",,\"&$B267&\",\",data[],1),VLOOKUP(\"FLH,\"&X$2&\",,\"&$B267&\",\",data[],7),IF($B267&\",\"&$K24&\",\"&$Q$2&\",\"&$X$2&\",\"&X$2=VLOOKUP($B267&\",\"&$K24&\",\"&$Q$2&\",\"&$X$2&\",\"&X$2,data_flh_2[],1),VLOOKUP($B267&\",\"&$K24&\",\"&$Q$2&\",\"&$X$2&\",\"&X$2,data_flh_2[],7),X$256)),0)","v":0},null,null,null,null,null,null,null,null,null,null,null,null,{"$f":"IF(AK24,IF(\"FLH,\"&AK$2&\",,\"&$B267&\",\"=VLOOKUP(\"FLH,\"&AK$2&\",,\"&$B267&\",\",data[],1),VLOOKUP(\"FLH,\"&AK$2&\",,\"&$B267&\",\",data[],7),IF($B267&\",\"&$K24&\",\"&$Q$2&\",\"&$X$2&\",\"&AK$2=VLOOKUP($B267&\",\"&$K24&\",\"&$Q$2&\",\"&$X$2&\",\"&AK$2,data_flh_2[],1),VLOOKUP($B267&\",\"&$K24&\",\"&$Q$2&\",\"&$X$2&\",\"&AK$2,data_flh_2[],7),AK$256)),0)","v":4885.3653489899989},null,{"$f":"IF(AM24,IF(\"FLH,\"&AM$2&\",,\"&$B267&\",\"=VLOOKUP(\"FLH,\"&AM$2&\",,\"&$B267&\",\",data[],1),VLOOKUP(\"FLH,\"&AM$2&\",,\"&$B267&\",\",data[],7),IF($B267&\",\"&$K24&\",\"&$Q$2&\",\"&$X$2&\",\"&AM$2=VLOOKUP($B267&\",\"&$K24&\",\"&$Q$2&\",\"&$X$2&\",\"&AM$2,data_flh_2[],1),VLOOKUP($B267&\",\"&$K24&\",\"&$Q$2&\",\"&$X$2&\",\"&AM$2,data_flh_2[],7),AM$256)),0)","v":0},null,null,null,null,null,null,null,null,null,null,null,null,null,null,{"$f":"IF(BB24,IF(\"FLH,\"&BB$2&\",,\"&$B267&\",\"=VLOOKUP(\"FLH,\"&BB$2&\",,\"&$B267&\",\",data[],1),VLOOKUP(\"FLH,\"&BB$2&\",,\"&$B267&\",\",data[],7),IF($B267&\",\"&$K24&\",\"&$Q$2&\",\"&$X$2&\",\"&BB$2=VLOOKUP($B267&\",\"&$K24&\",\"&$Q$2&\",\"&$X$2&\",\"&BB$2,data_flh_2[],1),VLOOKUP($B267&\",\"&$K24&\",\"&$Q$2&\",\"&$X$2&\",\"&BB$2,data_flh_2[],7),BB$256)),0)","v":6657.5999999999995},null,null,{"$f":"IF(BE24,IF(\"FLH,\"&BE$2&\",,\"&$B267&\",\"=VLOOKUP(\"FLH,\"&BE$2&\",,\"&$B267&\",\",data[],1),VLOOKUP(\"FLH,\"&BE$2&\",,\"&$B267&\",\",data[],7),IF($B267&\",\"&$K24&\",\"&$Q$2&\",\"&$X$2&\",\"&BE$2=VLOOKUP($B267&\",\"&$K24&\",\"&$Q$2&\",\"&$X$2&\",\"&BE$2,data_flh_2[],1),VLOOKUP($B267&\",\"&$K24&\",\"&$Q$2&\",\"&$X$2&\",\"&BE$2,data_flh_2[],7),BE$256)),0)","v":0}]
[null,"ARG-FOR",null,null,{"$f":"IF(\"FLH,\"&E$2&\",,\"&$B268&\",\"=VLOOKUP(\"FLH,\"&E$2&\",,\"&$B268&\",\",data[],1),VLOOKUP(\"FLH,\"&E$2&\",,\"&$B268&\",\",data[],7),0)","v":1449.92262888},{"$f":"IF(\"FLH,\"&F$2&\",,\"&$B268&\",\"=VLOOKUP(\"FLH,\"&F$2&\",,\"&$B268&\",\",data[],1),VLOOKUP(\"FLH,\"&F$2&\",,\"&$B268&\",\",data[],7),0)","v":0},{"$f":"IF(\"FLH,\"&G$2&\",,\"&$B268&\",\"=VLOOKUP(\"FLH,\"&G$2&\",,\"&$B268&\",\",data[],1),VLOOKUP(\"FLH,\"&G$2&\",,\"&$B268&\",\",data[],7),0)","v":4947.3662874337479},{"$f":"IF(\"FLH,\"&H$2&\",,\"&$B268&\",\"=VLOOKUP(\"FLH,\"&H$2&\",,\"&$B268&\",\",data[],1),VLOOKUP(\"FLH,\"&H$2&\",,\"&$B268&\",\",data[],7),0)","v":0},{"$f":"IF(\"FLH,\"&I$2&\",,\"&$B268&\",\"=VLOOKUP(\"FLH,\"&I$2&\",,\"&$B268&\",\",data[],1),VLOOKUP(\"FLH,\"&I$2&\",,\"&$B268&\",\",data[],7),0)","v":3781.7001483800022},null,{"$f":"INDEX(E268:I268,J25)","v":4947.3662874337479},null,null,null,null,null,{"$f":"IF(\"FLH,\"&Q$2&\",,\"&$B268&\",\"=VLOOKUP(\"FLH,\"&Q$2&\",,\"&$B268&\",\",data[],1),VLOOKUP(\"FLH,\"&Q$2&\",,\"&$B268&\",\",data[],7),IF($B268&\",\"&$K25&\",\"&$Q$2&\",\"&$X$2&\",\"&Q$2=VLOOKUP($B268&\",\"&$K25&\",\"&$Q$2&\",\"&$X$2&\",\"&Q$2,data_flh_2[],1),VLOOKUP($B268&\",\"&$K25&\",\"&$Q$2&\",\"&$X$2&\",\"&Q$2,data_flh_2[],7),Q$256))","v":5019.3287187381966},null,null,null,null,null,null,{"$f":"IF(X$2<>\"\",IF(\"FLH,\"&X$2&\",,\"&$B268&\",\"=VLOOKUP(\"FLH,\"&X$2&\",,\"&$B268&\",\",data[],1),VLOOKUP(\"FLH,\"&X$2&\",,\"&$B268&\",\",data[],7),IF($B268&\",\"&$K25&\",\"&$Q$2&\",\"&$X$2&\",\"&X$2=VLOOKUP($B268&\",\"&$K25&\",\"&$Q$2&\",\"&$X$2&\",\"&X$2,data_flh_2[],1),VLOOKUP($B268&\",\"&$K25&\",\"&$Q$2&\",\"&$X$2&\",\"&X$2,data_flh_2[],7),X$256)),0)","v":0},null,null,null,null,null,null,null,null,null,null,null,null,{"$f":"IF(AK25,IF(\"FLH,\"&AK$2&\",,\"&$B268&\",\"=VLOOKUP(\"FLH,\"&AK$2&\",,\"&$B268&\",\",data[],1),VLOOKUP(\"FLH,\"&AK$2&\",,\"&$B268&\",\",data[],7),IF($B268&\",\"&$K25&\",\"&$Q$2&\",\"&$X$2&\",\"&AK$2=VLOOKUP($B268&\",\"&$K25&\",\"&$Q$2&\",\"&$X$2&\",\"&AK$2,data_flh_2[],1),VLOOKUP($B268&\",\"&$K25&\",\"&$Q$2&\",\"&$X$2&\",\"&AK$2,data_flh_2[],7),AK$256)),0)","v":4958.765265711716},null,{"$f":"IF(AM25,IF(\"FLH,\"&AM$2&\",,\"&$B268&\",\"=VLOOKUP(\"FLH,\"&AM$2&\",,\"&$B268&\",\",data[],1),VLOOKUP(\"FLH,\"&AM$2&\",,\"&$B268&\",\",data[],7),IF($B268&\",\"&$K25&\",\"&$Q$2&\",\"&$X$2&\",\"&AM$2=VLOOKUP($B268&\",\"&$K25&\",\"&$Q$2&\",\"&$X$2&\",\"&AM$2,data_flh_2[],1),VLOOKUP($B268&\",\"&$K25&\",\"&$Q$2&\",\"&$X$2&\",\"&AM$2,data_flh_2[],7),AM$256)),0)","v":0},null,null,null,null,null,null,null,null,null,null,null,null,null,null,{"$f":"IF(BB25,IF(\"FLH,\"&BB$2&\",,\"&$B268&\",\"=VLOOKUP(\"FLH,\"&BB$2&\",,\"&$B268&\",\",data[],1),VLOOKUP(\"FLH,\"&BB$2&\",,\"&$B268&\",\",data[],7),IF($B268&\",\"&$K25&\",\"&$Q$2&\",\"&$X$2&\",\"&BB$2=VLOOKUP($B268&\",\"&$K25&\",\"&$Q$2&\",\"&$X$2&\",\"&BB$2,data_flh_2[],1),VLOOKUP($B268&\",\"&$K25&\",\"&$Q$2&\",\"&$X$2&\",\"&BB$2,data_flh_2[],7),BB$256)),0)","v":6657.5999999999995},null,null,{"$f":"IF(BE25,IF(\"FLH,\"&BE$2&\",,\"&$B268&\",\"=VLOOKUP(\"FLH,\"&BE$2&\",,\"&$B268&\",\",data[],1),VLOOKUP(\"FLH,\"&BE$2&\",,\"&$B268&\",\",data[],7),IF($B268&\",\"&$K25&\",\"&$Q$2&\",\"&$X$2&\",\"&BE$2=VLOOKUP($B268&\",\"&$K25&\",\"&$Q$2&\",\"&$X$2&\",\"&BE$2,data_flh_2[],1),VLOOKUP($B268&\",\"&$K25&\",\"&$Q$2&\",\"&$X$2&\",\"&BE$2,data_flh_2[],7),BE$256)),0)","v":0}]
[null,"ARG-FUE",null,null,{"$f":"IF(\"FLH,\"&E$2&\",,\"&$B269&\",\"=VLOOKUP(\"FLH,\"&E$2&\",,\"&$B269&\",\",data[],1),VLOOKUP(\"FLH,\"&E$2&\",,\"&$B269&\",\",data[],7),0)","v":919.59809255999858},{"$f":"IF(\"FLH,\"&F$2&\",,\"&$B269&\",\"=VLOOKUP(\"FLH,\"&F$2&\",,\"&$B269&\",\",data[],1),VLOOKUP(\"FLH,\"&F$2&\",,\"&$B269&\",\",data[],7),0)","v":0},{"$f":"IF(\"FLH,\"&G$2&\",,\"&$B269&\",\"=VLOOKUP(\"FLH,\"&G$2&\",,\"&$B269&\",\",data[],1),VLOOKUP(\"FLH,\"&G$2&\",,\"&$B269&\",\",data[],7),0)","v":4348.7759583573197},{"$f":"IF(\"FLH,\"&H$2&\",,\"&$B269&\",\"=VLOOKUP(\"FLH,\"&H$2&\",,\"&$B269&\",\",data[],1),VLOOKUP(\"FLH,\"&H$2&\",,\"&$B269&\",\",data[],7),0)","v":3854.4},{"$f":"IF(\"FLH,\"&I$2&\",,\"&$B269&\",\"=VLOOKUP(\"FLH,\"&I$2&\",,\"&$B269&\",\",data[],1),VLOOKUP(\"FLH,\"&I$2&\",,\"&$B269&\",\",data[],7),0)","v":3710.4766984999937},null,{"$f":"INDEX(E269:I269,J26)","v":4348.7759583573197},null,null,null,null,null,{"$f":"IF(\"FLH,\"&Q$2&\",,\"&$B269&\",\"=VLOOKUP(\"FLH,\"&Q$2&\",,\"&$B269&\",\",data[],1),VLOOKUP(\"FLH,\"&Q$2&\",,\"&$B269&\",\",data[],7),IF($B269&\",\"&$K26&\",\"&$Q$2&\",\"&$X$2&\",\"&Q$2=VLOOKUP($B269&\",\"&$K26&\",\"&$Q$2&\",\"&$X$2&\",\"&Q$2,data_flh_2[],1),VLOOKUP($B269&\",\"&$K26&\",\"&$Q$2&\",\"&$X$2&\",\"&Q$2,data_flh_2[],7),Q$256))","v":4337.5634795761216},null,null,null,null,null,null,{"$f":"IF(X$2<>\"\",IF(\"FLH,\"&X$2&\",,\"&$B269&\",\"=VLOOKUP(\"FLH,\"&X$2&\",,\"&$B269&\",\",data[],1),VLOOKUP(\"FLH,\"&X$2&\",,\"&$B269&\",\",data[],7),IF($B269&\",\"&$K26&\",\"&$Q$2&\",\"&$X$2&\",\"&X$2=VLOOKUP($B269&\",\"&$K26&\",\"&$Q$2&\",\"&$X$2&\",\"&X$2,data_flh_2[],1),VLOOKUP($B269&\",\"&$K26&\",\"&$Q$2&\",\"&$X$2&\",\"&X$2,data_flh_2[],7),X$256)),0)","v":0},null,null,null,null,null,null,null,null,null,null,null,null,{"$f":"IF(AK26,IF(\"FLH,\"&AK$2&\",,\"&$B269&\",\"=VLOOKUP(\"FLH,\"&AK$2&\",,\"&$B269&\",\",data[],1),VLOOKUP(\"FLH,\"&AK$2&\",,\"&$B269&\",\",data[],7),IF($B269&\",\"&$K26&\",\"&$Q$2&\",\"&$X$2&\",\"&AK$2=VLOOKUP($B269&\",\"&$K26&\",\"&$Q$2&\",\"&$X$2&\",\"&AK$2,data_flh_2[],1),VLOOKUP($B269&\",\"&$K26&\",\"&$Q$2&\",\"&$X$2&\",\"&AK$2,data_flh_2[],7),AK$256)),0)","v":4237.5290612652052},null,{"$f":"IF(AM26,IF(\"FLH,\"&AM$2&\",,\"&$B269&\",\"=VLOOKUP(\"FLH,\"&AM$2&\",,\"&$B269&\",\",data[],1),VLOOKUP(\"FLH,\"&AM$2&\",,\"&$B269&\",\",data[],7),IF($B269&\",\"&$K26&\",\"&$Q$2&\",\"&$X$2&\",\"&AM$2=VLOOKUP($B269&\",\"&$K26&\",\"&$Q$2&\",\"&$X$2&\",\"&AM$2,data_flh_2[],1),VLOOKUP($B269&\",\"&$K26&\",\"&$Q$2&\",\"&$X$2&\",\"&AM$2,data_flh_2[],7),AM$256)),0)","v":0},null,null,null,null,null,null,null,null,null,null,null,null,null,null,{"$f":"IF(BB26,IF(\"FLH,\"&BB$2&\",,\"&$B269&\",\"=VLOOKUP(\"FLH,\"&BB$2&\",,\"&$B269&\",\",data[],1),VLOOKUP(\"FLH,\"&BB$2&\",,\"&$B269&\",\",data[],7),IF($B269&\",\"&$K26&\",\"&$Q$2&\",\"&$X$2&\",\"&BB$2=VLOOKUP($B269&\",\"&$K26&\",\"&$Q$2&\",\"&$X$2&\",\"&BB$2,data_flh_2[],1),VLOOKUP($B269&\",\"&$K26&\",\"&$Q$2&\",\"&$X$2&\",\"&BB$2,data_flh_2[],7),BB$256)),0)","v":6657.5999999999995},null,null,{"$f":"IF(BE26,IF(\"FLH,\"&BE$2&\",,\"&$B269&\",\"=VLOOKUP(\"FLH,\"&BE$2&\",,\"&$B269&\",\",data[],1),VLOOKUP(\"FLH,\"&BE$2&\",,\"&$B269&\",\",data[],7),IF($B269&\",\"&$K26&\",\"&$Q$2&\",\"&$X$2&\",\"&BE$2=VLOOKUP($B269&\",\"&$K26&\",\"&$Q$2&\",\"&$X$2&\",\"&BE$2,data_flh_2[],1),VLOOKUP($B269&\",\"&$K26&\",\"&$Q$2&\",\"&$X$2&\",\"&BE$2,data_flh_2[],7),BE$256)),0)","v":0}]
[null,"ARG-JUJ",null,null,{"$f":"IF(\"FLH,\"&E$2&\",,\"&$B270&\",\"=VLOOKUP(\"FLH,\"&E$2&\",,\"&$B270&\",\",data[],1),VLOOKUP(\"FLH,\"&E$2&\",,\"&$B270&\",\",data[],7),0)","v":2038.9844970000051},{"$f":"IF(\"FLH,\"&F$2&\",,\"&$B270&\",\"=VLOOKUP(\"FLH,\"&F$2&\",,\"&$B270&\",\",data[],1),VLOOKUP(\"FLH,\"&F$2&\",,\"&$B270&\",\",data[],7),0)","v":0},{"$f":"IF(\"FLH,\"&G$2&\",,\"&$B270&\",\"=VLOOKUP(\"FLH,\"&G$2&\",,\"&$B270&\",\",data[],1),VLOOKUP(\"FLH,\"&G$2&\",,\"&$B270&\",\",data[],7),0)","v":5341.5292254807428},{"$f":"IF(\"FLH,\"&H$2&\",,\"&$B270&\",\"=VLOOKUP(\"FLH,\"&H$2&\",,\"&$B270&\",\",data[],1),VLOOKUP(\"FLH,\"&H$2&\",,\"&$B270&\",\",data[],7),0)","v":0},{"$f":"IF(\"FLH,\"&I$2&\",,\"&$B270&\",\"=VLOOKUP(\"FLH,\"&I$2&\",,\"&$B270&\",\",data[],1),VLOOKUP(\"FLH,\"&I$2&\",,\"&$B270&\",\",data[],7),0)","v":3773.9698333333426},null,{"$f":"INDEX(E270:I270,J27)","v":5341.5292254807428},null,null,null,null,null,{"$f":"IF(\"FLH,\"&Q$2&\",,\"&$B270&\",\"=VLOOKUP(\"FLH,\"&Q$2&\",,\"&$B270&\",\",data[],1),VLOOKUP(\"FLH,\"&Q$2&\",,\"&$B270&\",\",data[],7),IF($B270&\",\"&$K27&\",\"&$Q$2&\",\"&$X$2&\",\"&Q$2=VLOOKUP($B270&\",\"&$K27&\",\"&$Q$2&\",\"&$X$2&\",\"&Q$2,data_flh_2[],1),VLOOKUP($B270&\",\"&$K27&\",\"&$Q$2&\",\"&$X$2&\",\"&Q$2,data_flh_2[],7),Q$256))","v":5468.261113187431},null,null,null,null,null,null,{"$f":"IF(X$2<>\"\",IF(\"FLH,\"&X$2&\",,\"&$B270&\",\"=VLOOKUP(\"FLH,\"&X$2&\",,\"&$B270&\",\",data[],1),VLOOKUP(\"FLH,\"&X$2&\",,\"&$B270&\",\",data[],7),IF($B270&\",\"&$K27&\",\"&$Q$2&\",\"&$X$2&\",\"&X$2=VLOOKUP($B270&\",\"&$K27&\",\"&$Q$2&\",\"&$X$2&\",\"&X$2,data_flh_2[],1),VLOOKUP($B270&\",\"&$K27&\",\"&$Q$2&\",\"&$X$2&\",\"&X$2,data_flh_2[],7),X$256)),0)","v":0},null,null,null,null,null,null,null,null,null,null,null,null,{"$f":"IF(AK27,IF(\"FLH,\"&AK$2&\",,\"&$B270&\",\"=VLOOKUP(\"FLH,\"&AK$2&\",,\"&$B270&\",\",data[],1),VLOOKUP(\"FLH,\"&AK$2&\",,\"&$B270&\",\",data[],7),IF($B270&\",\"&$K27&\",\"&$Q$2&\",\"&$X$2&\",\"&AK$2=VLOOKUP($B270&\",\"&$K27&\",\"&$Q$2&\",\"&$X$2&\",\"&AK$2,data_flh_2[],1),VLOOKUP($B270&\",\"&$K27&\",\"&$Q$2&\",\"&$X$2&\",\"&AK$2,data_flh_2[],7),AK$256)),0)","v":5433.6887109486706},null,{"$f":"IF(AM27,IF(\"FLH,\"&AM$2&\",,\"&$B270&\",\"=VLOOKUP(\"FLH,\"&AM$2&\",,\"&$B270&\",\",data[],1),VLOOKUP(\"FLH,\"&AM$2&\",,\"&$B270&\",\",data[],7),IF($B270&\",\"&$K27&\",\"&$Q$2&\",\"&$X$2&\",\"&AM$2=VLOOKUP($B270&\",\"&$K27&\",\"&$Q$2&\",\"&$X$2&\",\"&AM$2,data_flh_2[],1),VLOOKUP($B270&\",\"&$K27&\",\"&$Q$2&\",\"&$X$2&\",\"&AM$2,data_flh_2[],7),AM$256)),0)","v":0},null,null,null,null,null,null,null,null,null,null,null,null,null,null,{"$f":"IF(BB27,IF(\"FLH,\"&BB$2&\",,\"&$B270&\",\"=VLOOKUP(\"FLH,\"&BB$2&\",,\"&$B270&\",\",data[],1),VLOOKUP(\"FLH,\"&BB$2&\",,\"&$B270&\",\",data[],7),IF($B270&\",\"&$K27&\",\"&$Q$2&\",\"&$X$2&\",\"&BB$2=VLOOKUP($B270&\",\"&$K27&\",\"&$Q$2&\",\"&$X$2&\",\"&BB$2,data_flh_2[],1),VLOOKUP($B270&\",\"&$K27&\",\"&$Q$2&\",\"&$X$2&\",\"&BB$2,data_flh_2[],7),BB$256)),0)","v":6657.5999999999995},null,null,{"$f":"IF(BE27,IF(\"FLH,\"&BE$2&\",,\"&$B270&\",\"=VLOOKUP(\"FLH,\"&BE$2&\",,\"&$B270&\",\",data[],1),VLOOKUP(\"FLH,\"&BE$2&\",,\"&$B270&\",\",data[],7),IF($B270&\",\"&$K27&\",\"&$Q$2&\",\"&$X$2&\",\"&BE$2=VLOOKUP($B270&\",\"&$K27&\",\"&$Q$2&\",\"&$X$2&\",\"&BE$2,data_flh_2[],1),VLOOKUP($B270&\",\"&$K27&\",\"&$Q$2&\",\"&$X$2&\",\"&BE$2,data_flh_2[],7),BE$256)),0)","v":0}]
[null,"ARG-LAR",null,null,{"$f":"IF(\"FLH,\"&E$2&\",,\"&$B271&\",\"=VLOOKUP(\"FLH,\"&E$2&\",,\"&$B271&\",\",data[],1),VLOOKUP(\"FLH,\"&E$2&\",,\"&$B271&\",\",data[],7),0)","v":1927.5699347999985},{"$f":"IF(\"FLH,\"&F$2&\",,\"&$B271&\",\"=VLOOKUP(\"FLH,\"&F$2&\",,\"&$B271&\",\",data[],1),VLOOKUP(\"FLH,\"&F$2&\",,\"&$B271&\",\",data[],7),0)","v":0},{"$f":"IF(\"FLH,\"&G$2&\",,\"&$B271&\",\"=VLOOKUP(\"FLH,\"&G$2&\",,\"&$B271&\",\",data[],1),VLOOKUP(\"FLH,\"&G$2&\",,\"&$B271&\",\",data[],7),0)","v":4993.6358442638966},{"$f":"IF(\"FLH,\"&H$2&\",,\"&$B271&\",\"=VLOOKUP(\"FLH,\"&H$2&\",,\"&$B271&\",\",data[],1),VLOOKUP(\"FLH,\"&H$2&\",,\"&$B271&\",\",data[],7),0)","v":0},{"$f":"IF(\"FLH,\"&I$2&\",,\"&$B271&\",\"=VLOOKUP(\"FLH,\"&I$2&\",,\"&$B271&\",\",data[],1),VLOOKUP(\"FLH,\"&I$2&\",,\"&$B271&\",\",data[],7),0)","v":3188.6275809666754},null,{"$f":"INDEX(E271:I271,J28)","v":4993.6358442638966},null,null,null,null,null,{"$f":"IF(\"FLH,\"&Q$2&\",,\"&$B271&\",\"=VLOOKUP(\"FLH,\"&Q$2&\",,\"&$B271&\",\",data[],1),VLOOKUP(\"FLH,\"&Q$2&\",,\"&$B271&\",\",data[],7),IF($B271&\",\"&$K28&\",\"&$Q$2&\",\"&$X$2&\",\"&Q$2=VLOOKUP($B271&\",\"&$K28&\",\"&$Q$2&\",\"&$X$2&\",\"&Q$2,data_flh_2[],1),VLOOKUP($B271&\",\"&$K28&\",\"&$Q$2&\",\"&$X$2&\",\"&Q$2,data_flh_2[],7),Q$256))","v":5072.0274910803782},null,null,null,null,null,null,{"$f":"IF(X$2<>\"\",IF(\"FLH,\"&X$2&\",,\"&$B271&\",\"=VLOOKUP(\"FLH,\"&X$2&\",,\"&$B271&\",\",data[],1),VLOOKUP(\"FLH,\"&X$2&\",,\"&$B271&\",\",data[],7),IF($B271&\",\"&$K28&\",\"&$Q$2&\",\"&$X$2&\",\"&X$2=VLOOKUP($B271&\",\"&$K28&\",\"&$Q$2&\",\"&$X$2&\",\"&X$2,data_flh_2[],1),VLOOKUP($B271&\",\"&$K28&\",\"&$Q$2&\",\"&$X$2&\",\"&X$2,data_flh_2[],7),X$256)),0)","v":0},null,null,null,null,null,null,null,null,null,null,null,null,{"$f":"IF(AK28,IF(\"FLH,\"&AK$2&\",,\"&$B271&\",\"=VLOOKUP(\"FLH,\"&AK$2&\",,\"&$B271&\",\",data[],1),VLOOKUP(\"FLH,\"&AK$2&\",,\"&$B271&\",\",data[],7),IF($B271&\",\"&$K28&\",\"&$Q$2&\",\"&$X$2&\",\"&AK$2=VLOOKUP($B271&\",\"&$K28&\",\"&$Q$2&\",\"&$X$2&\",\"&AK$2,data_flh_2[],1),VLOOKUP($B271&\",\"&$K28&\",\"&$Q$2&\",\"&$X$2&\",\"&AK$2,data_flh_2[],7),AK$256)),0)","v":5014.5150463690279},null,{"$f":"IF(AM28,IF(\"FLH,\"&AM$2&\",,\"&$B271&\",\"=VLOOKUP(\"FLH,\"&AM$2&\",,\"&$B271&\",\",data[],1),VLOOKUP(\"FLH,\"&AM$2&\",,\"&$B271&\",\",data[],7),IF($B271&\",\"&$K28&\",\"&$Q$2&\",\"&$X$2&\",\"&AM$2=VLOOKUP($B271&\",\"&$K28&\",\"&$Q$2&\",\"&$X$2&\",\"&AM$2,data_flh_2[],1),VLOOKUP($B271&\",\"&$K28&\",\"&$Q$2&\",\"&$X$2&\",\"&AM$2,data_flh_2[],7),AM$256)),0)","v":0},null,null,null,null,null,null,null,null,null,null,null,null,null,null,{"$f":"IF(BB28,IF(\"FLH,\"&BB$2&\",,\"&$B271&\",\"=VLOOKUP(\"FLH,\"&BB$2&\",,\"&$B271&\",\",data[],1),VLOOKUP(\"FLH,\"&BB$2&\",,\"&$B271&\",\",data[],7),IF($B271&\",\"&$K28&\",\"&$Q$2&\",\"&$X$2&\",\"&BB$2=VLOOKUP($B271&\",\"&$K28&\",\"&$Q$2&\",\"&$X$2&\",\"&BB$2,data_flh_2[],1),VLOOKUP($B271&\",\"&$K28&\",\"&$Q$2&\",\"&$X$2&\",\"&BB$2,data_flh_2[],7),BB$256)),0)","v":6657.5999999999995},null,null,{"$f":"IF(BE28,IF(\"FLH,\"&BE$2&\",,\"&$B271&\",\"=VLOOKUP(\"FLH,\"&BE$2&\",,\"&$B271&\",\",data[],1),VLOOKUP(\"FLH,\"&BE$2&\",,\"&$B271&\",\",data[],7),IF($B271&\",\"&$K28&\",\"&$Q$2&\",\"&$X$2&\",\"&BE$2=VLOOKUP($B271&\",\"&$K28&\",\"&$Q$2&\",\"&$X$2&\",\"&BE$2,data_flh_2[],1),VLOOKUP($B271&\",\"&$K28&\",\"&$Q$2&\",\"&$X$2&\",\"&BE$2,data_flh_2[],7),BE$256)),0)","v":0}]
[null,"ARG-MEN",null,null,{"$f":"IF(\"FLH,\"&E$2&\",,\"&$B272&\",\"=VLOOKUP(\"FLH,\"&E$2&\",,\"&$B272&\",\",data[],1),VLOOKUP(\"FLH,\"&E$2&\",,\"&$B272&\",\",data[],7),0)","v":1738.9096295999984},{"$f":"IF(\"FLH,\"&F$2&\",,\"&$B272&\",\"=VLOOKUP(\"FLH,\"&F$2&\",,\"&$B272&\",\",data[],1),VLOOKUP(\"FLH,\"&F$2&\",,\"&$B272&\",\",data[],7),0)","v":0},{"$f":"IF(\"FLH,\"&G$2&\",,\"&$B272&\",\"=VLOOKUP(\"FLH,\"&G$2&\",,\"&$B272&\",\",data[],1),VLOOKUP(\"FLH,\"&G$2&\",,\"&$B272&\",\",data[],7),0)","v":4634.7425576878331},{"$f":"IF(\"FLH,\"&H$2&\",,\"&$B272&\",\"=VLOOKUP(\"FLH,\"&H$2&\",,\"&$B272&\",\",data[],1),VLOOKUP(\"FLH,\"&H$2&\",,\"&$B272&\",\",data[],7),0)","v":0},{"$f":"IF(\"FLH,\"&I$2&\",,\"&$B272&\",\"=VLOOKUP(\"FLH,\"&I$2&\",,\"&$B272&\",\",data[],1),VLOOKUP(\"FLH,\"&I$2&\",,\"&$B272&\",\",data[],7),0)","v":3077.1630279499932},null,{"$f":"INDEX(E272:I272,J29)","v":4634.7425576878331},null,null,null,null,null,{"$f":"IF(\"FLH,\"&Q$2&\",,\"&$B272&\",\"=VLOOKUP(\"FLH,\"&Q$2&\",,\"&$B272&\",\",data[],1),VLOOKUP(\"FLH,\"&Q$2&\",,\"&$B272&\",\",data[],7),IF($B272&\",\"&$K29&\",\"&$Q$2&\",\"&$X$2&\",\"&Q$2=VLOOKUP($B272&\",\"&$K29&\",\"&$Q$2&\",\"&$X$2&\",\"&Q$2,data_flh_2[],1),VLOOKUP($B272&\",\"&$K29&\",\"&$Q$2&\",\"&$X$2&\",\"&Q$2,data_flh_2[],7),Q$256))","v":4663.2655123599488},null,null,null,null,null,null,{"$f":"IF(X$2<>\"\",IF(\"FLH,\"&X$2&\",,\"&$B272&\",\"=VLOOKUP(\"FLH,\"&X$2&\",,\"&$B272&\",\",data[],1),VLOOKUP(\"FLH,\"&X$2&\",,\"&$B272&\",\",data[],7),IF($B272&\",\"&$K29&\",\"&$Q$2&\",\"&$X$2&\",\"&X$2=VLOOKUP($B272&\",\"&$K29&\",\"&$Q$2&\",\"&$X$2&\",\"&X$2,data_flh_2[],1),VLOOKUP($B272&\",\"&$K29&\",\"&$Q$2&\",\"&$X$2&\",\"&X$2,data_flh_2[],7),X$256)),0)","v":0},null,null,null,null,null,null,null,null,null,null,null,null,{"$f":"IF(AK29,IF(\"FLH,\"&AK$2&\",,\"&$B272&\",\"=VLOOKUP(\"FLH,\"&AK$2&\",,\"&$B272&\",\",data[],1),VLOOKUP(\"FLH,\"&AK$2&\",,\"&$B272&\",\",data[],7),IF($B272&\",\"&$K29&\",\"&$Q$2&\",\"&$X$2&\",\"&AK$2=VLOOKUP($B272&\",\"&$K29&\",\"&$Q$2&\",\"&$X$2&\",\"&AK$2,data_flh_2[],1),VLOOKUP($B272&\",\"&$K29&\",\"&$Q$2&\",\"&$X$2&\",\"&AK$2,data_flh_2[],7),AK$256)),0)","v":4582.0876929053793},null,{"$f":"IF(AM29,IF(\"FLH,\"&AM$2&\",,\"&$B272&\",\"=VLOOKUP(\"FLH,\"&AM$2&\",,\"&$B272&\",\",data[],1),VLOOKUP(\"FLH,\"&AM$2&\",,\"&$B272&\",\",data[],7),IF($B272&\",\"&$K29&\",\"&$Q$2&\",\"&$X$2&\",\"&AM$2=VLOOKUP($B272&\",\"&$K29&\",\"&$Q$2&\",\"&$X$2&\",\"&AM$2,data_flh_2[],1),VLOOKUP($B272&\",\"&$K29&\",\"&$Q$2&\",\"&$X$2&\",\"&AM$2,data_flh_2[],7),AM$256)),0)","v":0},null,null,null,null,null,null,null,null,null,null,null,null,null,null,{"$f":"IF(BB29,IF(\"FLH,\"&BB$2&\",,\"&$B272&\",\"=VLOOKUP(\"FLH,\"&BB$2&\",,\"&$B272&\",\",data[],1),VLOOKUP(\"FLH,\"&BB$2&\",,\"&$B272&\",\",data[],7),IF($B272&\",\"&$K29&\",\"&$Q$2&\",\"&$X$2&\",\"&BB$2=VLOOKUP($B272&\",\"&$K29&\",\"&$Q$2&\",\"&$X$2&\",\"&BB$2,data_flh_2[],1),VLOOKUP($B272&\",\"&$K29&\",\"&$Q$2&\",\"&$X$2&\",\"&BB$2,data_flh_2[],7),BB$256)),0)","v":6657.5999999999995},null,null,{"$f":"IF(BE29,IF(\"FLH,\"&BE$2&\",,\"&$B272&\",\"=VLOOKUP(\"FLH,\"&BE$2&\",,\"&$B272&\",\",data[],1),VLOOKUP(\"FLH,\"&BE$2&\",,\"&$B272&\",\",data[],7),IF($B272&\",\"&$K29&\",\"&$Q$2&\",\"&$X$2&\",\"&BE$2=VLOOKUP($B272&\",\"&$K29&\",\"&$Q$2&\",\"&$X$2&\",\"&BE$2,data_flh_2[],1),VLOOKUP($B272&\",\"&$K29&\",\"&$Q$2&\",\"&$X$2&\",\"&BE$2,data_flh_2[],7),BE$256)),0)","v":0}]
[null,"ARG-MIS",null,null,{"$f":"IF(\"FLH,\"&E$2&\",,\"&$B273&\",\"=VLOOKUP(\"FLH,\"&E$2&\",,\"&$B273&\",\",data[],1),VLOOKUP(\"FLH,\"&E$2&\",,\"&$B273&\",\",data[],7),0)","v":1441.0558828799994},{"$f":"IF(\"FLH,\"&F$2&\",,\"&$B273&\",\"=VLOOKUP(\"FLH,\"&F$2&\",,\"&$B273&\",\",data[],1),VLOOKUP(\"FLH,\"&F$2&\",,\"&$B273&\",\",data[],7),0)","v":0},{"$f":"IF(\"FLH,\"&G$2&\",,\"&$B273&\",\"=VLOOKUP(\"FLH,\"&G$2&\",,\"&$B273&\",\",data[],1),VLOOKUP(\"FLH,\"&G$2&\",,\"&$B273&\",\",data[],7),0)","v":3199.5290500507745},{"$f":"IF(\"FLH,\"&H$2&\",,\"&$B273&\",\"=VLOOKUP(\"FLH,\"&H$2&\",,\"&$B273&\",\",data[],1),VLOOKUP(\"FLH,\"&H$2&\",,\"&$B273&\",\",data[],7),0)","v":0},{"$f":"IF(\"FLH,\"&I$2&\",,\"&$B273&\",\"=VLOOKUP(\"FLH,\"&I$2&\",,\"&$B273&\",\",data[],1),VLOOKUP(\"FLH,\"&I$2&\",,\"&$B273&\",\",data[],7),0)","v":1777.2726296600022},null,{"$f":"INDEX(E273:I273,J30)","v":3199.5290500507745},null,null,null,null,null,{"$f":"IF(\"FLH,\"&Q$2&\",,\"&$B273&\",\"=VLOOKUP(\"FLH,\"&Q$2&\",,\"&$B273&\",\",data[],1),VLOOKUP(\"FLH,\"&Q$2&\",,\"&$B273&\",\",data[],7),IF($B273&\",\"&$K30&\",\"&$Q$2&\",\"&$X$2&\",\"&Q$2=VLOOKUP($B273&\",\"&$K30&\",\"&$Q$2&\",\"&$X$2&\",\"&Q$2,data_flh_2[],1),VLOOKUP($B273&\",\"&$K30&\",\"&$Q$2&\",\"&$X$2&\",\"&Q$2,data_flh_2[],7),Q$256))","v":3039.5525975482356},null,null,null,null,null,null,{"$f":"IF(X$2<>\"\",IF(\"FLH,\"&X$2&\",,\"&$B273&\",\"=VLOOKUP(\"FLH,\"&X$2&\",,\"&$B273&\",\",data[],1),VLOOKUP(\"FLH,\"&X$2&\",,\"&$B273&\",\",data[],7),IF($B273&\",\"&$K30&\",\"&$Q$2&\",\"&$X$2&\",\"&X$2=VLOOKUP($B273&\",\"&$K30&\",\"&$Q$2&\",\"&$X$2&\",\"&X$2,data_flh_2[],1),VLOOKUP($B273&\",\"&$K30&\",\"&$Q$2&\",\"&$X$2&\",\"&X$2,data_flh_2[],7),X$256)),0)","v":0},null,null,null,null,null,null,null,null,null,null,null,null,{"$f":"IF(AK30,IF(\"FLH,\"&AK$2&\",,\"&$B273&\",\"=VLOOKUP(\"FLH,\"&AK$2&\",,\"&$B273&\",\",data[],1),VLOOKUP(\"FLH,\"&AK$2&\",,\"&$B273&\",\",data[],7),IF($B273&\",\"&$K30&\",\"&$Q$2&\",\"&$X$2&\",\"&AK$2=VLOOKUP($B273&\",\"&$K30&\",\"&$Q$2&\",\"&$X$2&\",\"&AK$2,data_flh_2[],1),VLOOKUP($B273&\",\"&$K30&\",\"&$Q$2&\",\"&$X$2&\",\"&AK$2,data_flh_2[],7),AK$256)),0)","v":3039.5525975482356},null,{"$f":"IF(AM30,IF(\"FLH,\"&AM$2&\",,\"&$B273&\",\"=VLOOKUP(\"FLH,\"&AM$2&\",,\"&$B273&\",\",data[],1),VLOOKUP(\"FLH,\"&AM$2&\",,\"&$B273&\",\",data[],7),IF($B273&\",\"&$K30&\",\"&$Q$2&\",\"&$X$2&\",\"&AM$2=VLOOKUP($B273&\",\"&$K30&\",\"&$Q$2&\",\"&$X$2&\",\"&AM$2,data_flh_2[],1),VLOOKUP($B273&\",\"&$K30&\",\"&$Q$2&\",\"&$X$2&\",\"&AM$2,data_flh_2[],7),AM$256)),0)","v":0},null,null,null,null,null,null,null,null,null,null,null,null,null,null,{"$f":"IF(BB30,IF(\"FLH,\"&BB$2&\",,\"&$B273&\",\"=VLOOKUP(\"FLH,\"&BB$2&\",,\"&$B273&\",\",data[],1),VLOOKUP(\"FLH,\"&BB$2&\",,\"&$B273&\",\",data[],7),IF($B273&\",\"&$K30&\",\"&$Q$2&\",\"&$X$2&\",\"&BB$2=VLOOKUP($B273&\",\"&$K30&\",\"&$Q$2&\",\"&$X$2&\",\"&BB$2,data_flh_2[],1),VLOOKUP($B273&\",\"&$K30&\",\"&$Q$2&\",\"&$X$2&\",\"&BB$2,data_flh_2[],7),BB$256)),0)","v":6657.5999999999995},null,null,{"$f":"IF(BE30,IF(\"FLH,\"&BE$2&\",,\"&$B273&\",\"=VLOOKUP(\"FLH,\"&BE$2&\",,\"&$B273&\",\",data[],1),VLOOKUP(\"FLH,\"&BE$2&\",,\"&$B273&\",\",data[],7),IF($B273&\",\"&$K30&\",\"&$Q$2&\",\"&$X$2&\",\"&BE$2=VLOOKUP($B273&\",\"&$K30&\",\"&$Q$2&\",\"&$X$2&\",\"&BE$2,data_flh_2[],1),VLOOKUP($B273&\",\"&$K30&\",\"&$Q$2&\",\"&$X$2&\",\"&BE$2,data_flh_2[],7),BE$256)),0)","v":0}]
[null,"ARG-NEG",null,null,{"$f":"IF(\"FLH,\"&E$2&\",,\"&$B274&\",\"=VLOOKUP(\"FLH,\"&E$2&\",,\"&$B274&\",\",data[],1),VLOOKUP(\"FLH,\"&E$2&\",,\"&$B274&\",\",data[],7),0)","v":1598.6654748000003},{"$f":"IF(\"FLH,\"&F$2&\",,\"&$B274&\",\"=VLOOKUP(\"FLH,\"&F$2&\",,\"&$B274&\",\",data[],1),VLOOKUP(\"FLH,\"&F$2&\",,\"&$B274&\",\",data[],7),0)","v":0},{"$f":"IF(\"FLH,\"&G$2&\",,\"&$B274&\",\"=VLOOKUP(\"FLH,\"&G$2&\",,\"&$B274&\",\",data[],1),VLOOKUP(\"FLH,\"&G$2&\",,\"&$B274&\",\",data[],7),0)","v":5871.0170147807694},{"$f":"IF(\"FLH,\"&H$2&\",,\"&$B274&\",\"=VLOOKUP(\"FLH,\"&H$2&\",,\"&$B274&\",\",data[],1),VLOOKUP(\"FLH,\"&H$2&\",,\"&$B274&\",\",data[],7),0)","v":4738.1899020500086},{"$f":"IF(\"FLH,\"&I$2&\",,\"&$B274&\",\"=VLOOKUP(\"FLH,\"&I$2&\",,\"&$B274&\",\",data[],1),VLOOKUP(\"FLH,\"&I$2&\",,\"&$B274&\",\",data[],7),0)","v":4738.1899020500086},null,{"$f":"INDEX(E274:I274,J31)","v":5871.0170147807694},null,null,null,null,null,{"$f":"IF(\"FLH,\"&Q$2&\",,\"&$B274&\",\"=VLOOKUP(\"FLH,\"&Q$2&\",,\"&$B274&\",\",data[],1),VLOOKUP(\"FLH,\"&Q$2&\",,\"&$B274&\",\",data[],7),IF($B274&\",\"&$K31&\",\"&$Q$2&\",\"&$X$2&\",\"&Q$2=VLOOKUP($B274&\",\"&$K31&\",\"&$Q$2&\",\"&$X$2&\",\"&Q$2,data_flh_2[],1),VLOOKUP($B274&\",\"&$K31&\",\"&$Q$2&\",\"&$X$2&\",\"&Q$2,data_flh_2[],7),Q$256))","v":6071.3219241806537},null,null,null,null,null,null,{"$f":"IF(X$2<>\"\",IF(\"FLH,\"&X$2&\",,\"&$B274&\",\"=VLOOKUP(\"FLH,\"&X$2&\",,\"&$B274&\",\",data[],1),VLOOKUP(\"FLH,\"&X$2&\",,\"&$B274&\",\",data[],7),IF($B274&\",\"&$K31&\",\"&$Q$2&\",\"&$X$2&\",\"&X$2=VLOOKUP($B274&\",\"&$K31&\",\"&$Q$2&\",\"&$X$2&\",\"&X$2,data_flh_2[],1),VLOOKUP($B274&\",\"&$K31&\",\"&$Q$2&\",\"&$X$2&\",\"&X$2,data_flh_2[],7),X$256)),0)","v":0},null,null,null,null,null,null,null,null,null,null,null,null,{"$f":"IF(AK31,IF(\"FLH,\"&AK$2&\",,\"&$B274&\",\"=VLOOKUP(\"FLH,\"&AK$2&\",,\"&$B274&\",\",data[],1),VLOOKUP(\"FLH,\"&AK$2&\",,\"&$B274&\",\",data[],7),IF($B274&\",\"&$K31&\",\"&$Q$2&\",\"&$X$2&\",\"&AK$2=VLOOKUP($B274&\",\"&$K31&\",\"&$Q$2&\",\"&$X$2&\",\"&AK$2,data_flh_2[],1),VLOOKUP($B274&\",\"&$K31&\",\"&$Q$2&\",\"&$X$2&\",\"&AK$2,data_flh_2[],7),AK$256)),0)","v":6071.6638751060018},null,{"$f":"IF(AM31,IF(\"FLH,\"&AM$2&\",,\"&$B274&\",\"=VLOOKUP(\"FLH,\"&AM$2&\",,\"&$B274&\",\",data[],1),VLOOKUP(\"FLH,\"&AM$2&\",,\"&$B274&\",\",data[],7),IF($B274&\",\"&$K31&\",\"&$Q$2&\",\"&$X$2&\",\"&AM$2=VLOOKUP($B274&\",\"&$K31&\",\"&$Q$2&\",\"&$X$2&\",\"&AM$2,data_flh_2[],1),VLOOKUP($B274&\",\"&$K31&\",\"&$Q$2&\",\"&$X$2&\",\"&AM$2,data_flh_2[],7),AM$256)),0)","v":0},null,null,null,null,null,null,null,null,null,null,null,null,null,null,{"$f":"IF(BB31,IF(\"FLH,\"&BB$2&\",,\"&$B274&\",\"=VLOOKUP(\"FLH,\"&BB$2&\",,\"&$B274&\",\",data[],1),VLOOKUP(\"FLH,\"&BB$2&\",,\"&$B274&\",\",data[],7),IF($B274&\",\"&$K31&\",\"&$Q$2&\",\"&$X$2&\",\"&BB$2=VLOOKUP($B274&\",\"&$K31&\",\"&$Q$2&\",\"&$X$2&\",\"&BB$2,data_flh_2[],1),VLOOKUP($B274&\",\"&$K31&\",\"&$Q$2&\",\"&$X$2&\",\"&BB$2,data_flh_2[],7),BB$256)),0)","v":6657.5999999999995},null,null,{"$f":"IF(BE31,IF(\"FLH,\"&BE$2&\",,\"&$B274&\",\"=VLOOKUP(\"FLH,\"&BE$2&\",,\"&$B274&\",\",data[],1),VLOOKUP(\"FLH,\"&BE$2&\",,\"&$B274&\",\",data[],7),IF($B274&\",\"&$K31&\",\"&$Q$2&\",\"&$X$2&\",\"&BE$2=VLOOKUP($B274&\",\"&$K31&\",\"&$Q$2&\",\"&$X$2&\",\"&BE$2,data_flh_2[],1),VLOOKUP($B274&\",\"&$K31&\",\"&$Q$2&\",\"&$X$2&\",\"&BE$2,data_flh_2[],7),BE$256)),0)","v":0}]
[null,"ARG-NEU",null,null,{"$f":"IF(\"FLH,\"&E$2&\",,\"&$B275&\",\"=VLOOKUP(\"FLH,\"&E$2&\",,\"&$B275&\",\",data[],1),VLOOKUP(\"FLH,\"&E$2&\",,\"&$B275&\",\",data[],7),0)","v":1672.0413458399996},{"$f":"IF(\"FLH,\"&F$2&\",,\"&$B275&\",\"=VLOOKUP(\"FLH,\"&F$2&\",,\"&$B275&\",\",data[],1),VLOOKUP(\"FLH,\"&F$2&\",,\"&$B275&\",\",data[],7),0)","v":0},{"$f":"IF(\"FLH,\"&G$2&\",,\"&$B275&\",\"=VLOOKUP(\"FLH,\"&G$2&\",,\"&$B275&\",\",data[],1),VLOOKUP(\"FLH,\"&G$2&\",,\"&$B275&\",\",data[],7),0)","v":5150.2668537210066},{"$f":"IF(\"FLH,\"&H$2&\",,\"&$B275&\",\"=VLOOKUP(\"FLH,\"&H$2&\",,\"&$B275&\",\",data[],1),VLOOKUP(\"FLH,\"&H$2&\",,\"&$B275&\",\",data[],7),0)","v":0},{"$f":"IF(\"FLH,\"&I$2&\",,\"&$B275&\",\"=VLOOKUP(\"FLH,\"&I$2&\",,\"&$B275&\",\",data[],1),VLOOKUP(\"FLH,\"&I$2&\",,\"&$B275&\",\",data[],7),0)","v":3956.5844284999962},null,{"$f":"INDEX(E275:I275,J32)","v":5150.2668537210066},null,null,null,null,null,{"$f":"IF(\"FLH,\"&Q$2&\",,\"&$B275&\",\"=VLOOKUP(\"FLH,\"&Q$2&\",,\"&$B275&\",\",data[],1),VLOOKUP(\"FLH,\"&Q$2&\",,\"&$B275&\",\",data[],7),IF($B275&\",\"&$K32&\",\"&$Q$2&\",\"&$X$2&\",\"&Q$2=VLOOKUP($B275&\",\"&$K32&\",\"&$Q$2&\",\"&$X$2&\",\"&Q$2,data_flh_2[],1),VLOOKUP($B275&\",\"&$K32&\",\"&$Q$2&\",\"&$X$2&\",\"&Q$2,data_flh_2[],7),Q$256))","v":5250.4225844115454},null,null,null,null,null,null,{"$f":"IF(X$2<>\"\",IF(\"FLH,\"&X$2&\",,\"&$B275&\",\"=VLOOKUP(\"FLH,\"&X$2&\",,\"&$B275&\",\",data[],1),VLOOKUP(\"FLH,\"&X$2&\",,\"&$B275&\",\",data[],7),IF($B275&\",\"&$K32&\",\"&$Q$2&\",\"&$X$2&\",\"&X$2=VLOOKUP($B275&\",\"&$K32&\",\"&$Q$2&\",\"&$X$2&\",\"&X$2,data_flh_2[],1),VLOOKUP($B275&\",\"&$K32&\",\"&$Q$2&\",\"&$X$2&\",\"&X$2,data_flh_2[],7),X$256)),0)","v":0},null,null,null,null,null,null,null,null,null,null,null,null,{"$f":"IF(AK32,IF(\"FLH,\"&AK$2&\",,\"&$B275&\",\"=VLOOKUP(\"FLH,\"&AK$2&\",,\"&$B275&\",\",data[],1),VLOOKUP(\"FLH,\"&AK$2&\",,\"&$B275&\",\",data[],7),IF($B275&\",\"&$K32&\",\"&$Q$2&\",\"&$X$2&\",\"&AK$2=VLOOKUP($B275&\",\"&$K32&\",\"&$Q$2&\",\"&$X$2&\",\"&AK$2,data_flh_2[],1),VLOOKUP($B275&\",\"&$K32&\",\"&$Q$2&\",\"&$X$2&\",\"&AK$2,data_flh_2[],7),AK$256)),0)","v":5203.2383672649239},null,{"$f":"IF(AM32,IF(\"FLH,\"&AM$2&\",,\"&$B275&\",\"=VLOOKUP(\"FLH,\"&AM$2&\",,\"&$B275&\",\",data[],1),VLOOKUP(\"FLH,\"&AM$2&\",,\"&$B275&\",\",data[],7),IF($B275&\",\"&$K32&\",\"&$Q$2&\",\"&$X$2&\",\"&AM$2=VLOOKUP($B275&\",\"&$K32&\",\"&$Q$2&\",\"&$X$2&\",\"&AM$2,data_flh_2[],1),VLOOKUP($B275&\",\"&$K32&\",\"&$Q$2&\",\"&$X$2&\",\"&AM$2,data_flh_2[],7),AM$256)),0)","v":0},null,null,null,null,null,null,null,null,null,null,null,null,null,null,{"$f":"IF(BB32,IF(\"FLH,\"&BB$2&\",,\"&$B275&\",\"=VLOOKUP(\"FLH,\"&BB$2&\",,\"&$B275&\",\",data[],1),VLOOKUP(\"FLH,\"&BB$2&\",,\"&$B275&\",\",data[],7),IF($B275&\",\"&$K32&\",\"&$Q$2&\",\"&$X$2&\",\"&BB$2=VLOOKUP($B275&\",\"&$K32&\",\"&$Q$2&\",\"&$X$2&\",\"&BB$2,data_flh_2[],1),VLOOKUP($B275&\",\"&$K32&\",\"&$Q$2&\",\"&$X$2&\",\"&BB$2,data_flh_2[],7),BB$256)),0)","v":6657.5999999999995},null,null,{"$f":"IF(BE32,IF(\"FLH,\"&BE$2&\",,\"&$B275&\",\"=VLOOKUP(\"FLH,\"&BE$2&\",,\"&$B275&\",\",data[],1),VLOOKUP(\"FLH,\"&BE$2&\",,\"&$B275&\",\",data[],7),IF($B275&\",\"&$K32&\",\"&$Q$2&\",\"&$X$2&\",\"&BE$2=VLOOKUP($B275&\",\"&$K32&\",\"&$Q$2&\",\"&$X$2&\",\"&BE$2,data_flh_2[],1),VLOOKUP($B275&\",\"&$K32&\",\"&$Q$2&\",\"&$X$2&\",\"&BE$2,data_flh_2[],7),BE$256)),0)","v":0}]
[null,"ARG-PAM",null,null,{"$f":"IF(\"FLH,\"&E$2&\",,\"&$B276&\",\"=VLOOKUP(\"FLH,\"&E$2&\",,\"&$B276&\",\",data[],1),VLOOKUP(\"FLH,\"&E$2&\",,\"&$B276&\",\",data[],7),0)","v":1585.1219047199993},{"$f":"IF(\"FLH,\"&F$2&\",,\"&$B276&\",\"=VLOOKUP(\"FLH,\"&F$2&\",,\"&$B276&\",\",data[],1),VLOOKUP(\"FLH,\"&F$2&\",,\"&$B276&\",\",data[],7),0)","v":0},{"$f":"IF(\"FLH,\"&G$2&\",,\"&$B276&\",\"=VLOOKUP(\"FLH,\"&G$2&\",,\"&$B276&\",\",data[],1),VLOOKUP(\"FLH,\"&G$2&\",,\"&$B276&\",\",data[],7),0)","v":5140.6823491886607},{"$f":"IF(\"FLH,\"&H$2&\",,\"&$B276&\",\"=VLOOKUP(\"FLH,\"&H$2&\",,\"&$B276&\",\",data[],1),VLOOKUP(\"FLH,\"&H$2&\",,\"&$B276&\",\",data[],7),0)","v":0},{"$f":"IF(\"FLH,\"&I$2&\",,\"&$B276&\",\"=VLOOKUP(\"FLH,\"&I$2&\",,\"&$B276&\",\",data[],1),VLOOKUP(\"FLH,\"&I$2&\",,\"&$B276&\",\",data[],7),0)","v":3897.7887775199929},null,{"$f":"INDEX(E276:I276,J33)","v":5140.6823491886607},null,null,null,null,null,{"$f":"IF(\"FLH,\"&Q$2&\",,\"&$B276&\",\"=VLOOKUP(\"FLH,\"&Q$2&\",,\"&$B276&\",\",data[],1),VLOOKUP(\"FLH,\"&Q$2&\",,\"&$B276&\",\",data[],7),IF($B276&\",\"&$K33&\",\"&$Q$2&\",\"&$X$2&\",\"&Q$2=VLOOKUP($B276&\",\"&$K33&\",\"&$Q$2&\",\"&$X$2&\",\"&Q$2,data_flh_2[],1),VLOOKUP($B276&\",\"&$K33&\",\"&$Q$2&\",\"&$X$2&\",\"&Q$2,data_flh_2[],7),Q$256))","v":5239.5063004234189},null,null,null,null,null,null,{"$f":"IF(X$2<>\"\",IF(\"FLH,\"&X$2&\",,\"&$B276&\",\"=VLOOKUP(\"FLH,\"&X$2&\",,\"&$B276&\",\",data[],1),VLOOKUP(\"FLH,\"&X$2&\",,\"&$B276&\",\",data[],7),IF($B276&\",\"&$K33&\",\"&$Q$2&\",\"&$X$2&\",\"&X$2=VLOOKUP($B276&\",\"&$K33&\",\"&$Q$2&\",\"&$X$2&\",\"&X$2,data_flh_2[],1),VLOOKUP($B276&\",\"&$K33&\",\"&$Q$2&\",\"&$X$2&\",\"&X$2,data_flh_2[],7),X$256)),0)","v":0},null,null,null,null,null,null,null,null,null,null,null,null,{"$f":"IF(AK33,IF(\"FLH,\"&AK$2&\",,\"&$B276&\",\"=VLOOKUP(\"FLH,\"&AK$2&\",,\"&$B276&\",\",data[],1),VLOOKUP(\"FLH,\"&AK$2&\",,\"&$B276&\",\",data[],7),IF($B276&\",\"&$K33&\",\"&$Q$2&\",\"&$X$2&\",\"&AK$2=VLOOKUP($B276&\",\"&$K33&\",\"&$Q$2&\",\"&$X$2&\",\"&AK$2,data_flh_2[],1),VLOOKUP($B276&\",\"&$K33&\",\"&$Q$2&\",\"&$X$2&\",\"&AK$2,data_flh_2[],7),AK$256)),0)","v":5191.6900823451278},null,{"$f":"IF(AM33,IF(\"FLH,\"&AM$2&\",,\"&$B276&\",\"=VLOOKUP(\"FLH,\"&AM$2&\",,\"&$B276&\",\",data[],1),VLOOKUP(\"FLH,\"&AM$2&\",,\"&$B276&\",\",data[],7),IF($B276&\",\"&$K33&\",\"&$Q$2&\",\"&$X$2&\",\"&AM$2=VLOOKUP($B276&\",\"&$K33&\",\"&$Q$2&\",\"&$X$2&\",\"&AM$2,data_flh_2[],1),VLOOKUP($B276&\",\"&$K33&\",\"&$Q$2&\",\"&$X$2&\",\"&AM$2,data_flh_2[],7),AM$256)),0)","v":0},null,null,null,null,null,null,null,null,null,null,null,null,null,null,{"$f":"IF(BB33,IF(\"FLH,\"&BB$2&\",,\"&$B276&\",\"=VLOOKUP(\"FLH,\"&BB$2&\",,\"&$B276&\",\",data[],1),VLOOKUP(\"FLH,\"&BB$2&\",,\"&$B276&\",\",data[],7),IF($B276&\",\"&$K33&\",\"&$Q$2&\",\"&$X$2&\",\"&BB$2=VLOOKUP($B276&\",\"&$K33&\",\"&$Q$2&\",\"&$X$2&\",\"&BB$2,data_flh_2[],1),VLOOKUP($B276&\",\"&$K33&\",\"&$Q$2&\",\"&$X$2&\",\"&BB$2,data_flh_2[],7),BB$256)),0)","v":6657.5999999999995},null,null,{"$f":"IF(BE33,IF(\"FLH,\"&BE$2&\",,\"&$B276&\",\"=VLOOKUP(\"FLH,\"&BE$2&\",,\"&$B276&\",\",data[],1),VLOOKUP(\"FLH,\"&BE$2&\",,\"&$B276&\",\",data[],7),IF($B276&\",\"&$K33&\",\"&$Q$2&\",\"&$X$2&\",\"&BE$2=VLOOKUP($B276&\",\"&$K33&\",\"&$Q$2&\",\"&$X$2&\",\"&BE$2,data_flh_2[],1),VLOOKUP($B276&\",\"&$K33&\",\"&$Q$2&\",\"&$X$2&\",\"&BE$2,data_flh_2[],7),BE$256)),0)","v":0}]
[null,"ARG-RIO",null,null,{"$f":"IF(\"FLH,\"&E$2&\",,\"&$B277&\",\"=VLOOKUP(\"FLH,\"&E$2&\",,\"&$B277&\",\",data[],1),VLOOKUP(\"FLH,\"&E$2&\",,\"&$B277&\",\",data[],7),0)","v":1444.5405770399989},{"$f":"IF(\"FLH,\"&F$2&\",,\"&$B277&\",\"=VLOOKUP(\"FLH,\"&F$2&\",,\"&$B277&\",\",data[],1),VLOOKUP(\"FLH,\"&F$2&\",,\"&$B277&\",\",data[],7),0)","v":0},{"$f":"IF(\"FLH,\"&G$2&\",,\"&$B277&\",\"=VLOOKUP(\"FLH,\"&G$2&\",,\"&$B277&\",\",data[],1),VLOOKUP(\"FLH,\"&G$2&\",,\"&$B277&\",\",data[],7),0)","v":4336.8044520469111},{"$f":"IF(\"FLH,\"&H$2&\",,\"&$B277&\",\"=VLOOKUP(\"FLH,\"&H$2&\",,\"&$B277&\",\",data[],1),VLOOKUP(\"FLH,\"&H$2&\",,\"&$B277&\",\",data[],7),0)","v":0},{"$f":"IF(\"FLH,\"&I$2&\",,\"&$B277&\",\"=VLOOKUP(\"FLH,\"&I$2&\",,\"&$B277&\",\",data[],1),VLOOKUP(\"FLH,\"&I$2&\",,\"&$B277&\",\",data[],7),0)","v":3070.126660369996},null,{"$f":"INDEX(E277:I277,J34)","v":4336.8044520469111},null,null,null,null,null,{"$f":"IF(\"FLH,\"&Q$2&\",,\"&$B277&\",\"=VLOOKUP(\"FLH,\"&Q$2&\",,\"&$B277&\",\",data[],1),VLOOKUP(\"FLH,\"&Q$2&\",,\"&$B277&\",\",data[],7),IF($B277&\",\"&$K34&\",\"&$Q$2&\",\"&$X$2&\",\"&Q$2=VLOOKUP($B277&\",\"&$K34&\",\"&$Q$2&\",\"&$X$2&\",\"&Q$2,data_flh_2[],1),VLOOKUP($B277&\",\"&$K34&\",\"&$Q$2&\",\"&$X$2&\",\"&Q$2,data_flh_2[],7),Q$256))","v":4323.9285167870657},null,null,null,null,null,null,{"$f":"IF(X$2<>\"\",IF(\"FLH,\"&X$2&\",,\"&$B277&\",\"=VLOOKUP(\"FLH,\"&X$2&\",,\"&$B277&\",\",data[],1),VLOOKUP(\"FLH,\"&X$2&\",,\"&$B277&\",\",data[],7),IF($B277&\",\"&$K34&\",\"&$Q$2&\",\"&$X$2&\",\"&X$2=VLOOKUP($B277&\",\"&$K34&\",\"&$Q$2&\",\"&$X$2&\",\"&X$2,data_flh_2[],1),VLOOKUP($B277&\",\"&$K34&\",\"&$Q$2&\",\"&$X$2&\",\"&X$2,data_flh_2[],7),X$256)),0)","v":0},null,null,null,null,null,null,null,null,null,null,null,null,{"$f":"IF(AK34,IF(\"FLH,\"&AK$2&\",,\"&$B277&\",\"=VLOOKUP(\"FLH,\"&AK$2&\",,\"&$B277&\",\",data[],1),VLOOKUP(\"FLH,\"&AK$2&\",,\"&$B277&\",\",data[],7),IF($B277&\",\"&$K34&\",\"&$Q$2&\",\"&$X$2&\",\"&AK$2=VLOOKUP($B277&\",\"&$K34&\",\"&$Q$2&\",\"&$X$2&\",\"&AK$2,data_flh_2[],1),VLOOKUP($B277&\",\"&$K34&\",\"&$Q$2&\",\"&$X$2&\",\"&AK$2,data_flh_2[],7),AK$256)),0)","v":4223.1046989702972},null,{"$f":"IF(AM34,IF(\"FLH,\"&AM$2&\",,\"&$B277&\",\"=VLOOKUP(\"FLH,\"&AM$2&\",,\"&$B277&\",\",data[],1),VLOOKUP(\"FLH,\"&AM$2&\",,\"&$B277&\",\",data[],7),IF($B277&\",\"&$K34&\",\"&$Q$2&\",\"&$X$2&\",\"&AM$2=VLOOKUP($B277&\",\"&$K34&\",\"&$Q$2&\",\"&$X$2&\",\"&AM$2,data_flh_2[],1),VLOOKUP($B277&\",\"&$K34&\",\"&$Q$2&\",\"&$X$2&\",\"&AM$2,data_flh_2[],7),AM$256)),0)","v":0},null,null,null,null,null,null,null,null,null,null,null,null,null,null,{"$f":"IF(BB34,IF(\"FLH,\"&BB$2&\",,\"&$B277&\",\"=VLOOKUP(\"FLH,\"&BB$2&\",,\"&$B277&\",\",data[],1),VLOOKUP(\"FLH,\"&BB$2&\",,\"&$B277&\",\",data[],7),IF($B277&\",\"&$K34&\",\"&$Q$2&\",\"&$X$2&\",\"&BB$2=VLOOKUP($B277&\",\"&$K34&\",\"&$Q$2&\",\"&$X$2&\",\"&BB$2,data_flh_2[],1),VLOOKUP($B277&\",\"&$K34&\",\"&$Q$2&\",\"&$X$2&\",\"&BB$2,data_flh_2[],7),BB$256)),0)","v":6657.5999999999995},null,null,{"$f":"IF(BE34,IF(\"FLH,\"&BE$2&\",,\"&$B277&\",\"=VLOOKUP(\"FLH,\"&BE$2&\",,\"&$B277&\",\",data[],1),VLOOKUP(\"FLH,\"&BE$2&\",,\"&$B277&\",\",data[],7),IF($B277&\",\"&$K34&\",\"&$Q$2&\",\"&$X$2&\",\"&BE$2=VLOOKUP($B277&\",\"&$K34&\",\"&$Q$2&\",\"&$X$2&\",\"&BE$2,data_flh_2[],1),VLOOKUP($B277&\",\"&$K34&\",\"&$Q$2&\",\"&$X$2&\",\"&BE$2,data_flh_2[],7),BE$256)),0)","v":0}]
[null,"ARG-SAF",null,null,{"$f":"IF(\"FLH,\"&E$2&\",,\"&$B278&\",\"=VLOOKUP(\"FLH,\"&E$2&\",,\"&$B278&\",\",data[],1),VLOOKUP(\"FLH,\"&E$2&\",,\"&$B278&\",\",data[],7),0)","v":1463.6960647199994},{"$f":"IF(\"FLH,\"&F$2&\",,\"&$B278&\",\"=VLOOKUP(\"FLH,\"&F$2&\",,\"&$B278&\",\",data[],1),VLOOKUP(\"FLH,\"&F$2&\",,\"&$B278&\",\",data[],7),0)","v":0},{"$f":"IF(\"FLH,\"&G$2&\",,\"&$B278&\",\"=VLOOKUP(\"FLH,\"&G$2&\",,\"&$B278&\",\",data[],1),VLOOKUP(\"FLH,\"&G$2&\",,\"&$B278&\",\",data[],7),0)","v":4440.5215244686588},{"$f":"IF(\"FLH,\"&H$2&\",,\"&$B278&\",\"=VLOOKUP(\"FLH,\"&H$2&\",,\"&$B278&\",\",data[],1),VLOOKUP(\"FLH,\"&H$2&\",,\"&$B278&\",\",data[],7),0)","v":0},{"$f":"IF(\"FLH,\"&I$2&\",,\"&$B278&\",\"=VLOOKUP(\"FLH,\"&I$2&\",,\"&$B278&\",\",data[],1),VLOOKUP(\"FLH,\"&I$2&\",,\"&$B278&\",\",data[],7),0)","v":3158.174208530002},null,{"$f":"INDEX(E278:I278,J35)","v":4440.5215244686588},null,null,null,null,null,{"$f":"IF(\"FLH,\"&Q$2&\",,\"&$B278&\",\"=VLOOKUP(\"FLH,\"&Q$2&\",,\"&$B278&\",\",data[],1),VLOOKUP(\"FLH,\"&Q$2&\",,\"&$B278&\",\",data[],7),IF($B278&\",\"&$K35&\",\"&$Q$2&\",\"&$X$2&\",\"&Q$2=VLOOKUP($B278&\",\"&$K35&\",\"&$Q$2&\",\"&$X$2&\",\"&Q$2,data_flh_2[],1),VLOOKUP($B278&\",\"&$K35&\",\"&$Q$2&\",\"&$X$2&\",\"&Q$2,data_flh_2[],7),Q$256))","v":4442.0572122404383},null,null,null,null,null,null,{"$f":"IF(X$2<>\"\",IF(\"FLH,\"&X$2&\",,\"&$B278&\",\"=VLOOKUP(\"FLH,\"&X$2&\",,\"&$B278&\",\",data[],1),VLOOKUP(\"FLH,\"&X$2&\",,\"&$B278&\",\",data[],7),IF($B278&\",\"&$K35&\",\"&$Q$2&\",\"&$X$2&\",\"&X$2=VLOOKUP($B278&\",\"&$K35&\",\"&$Q$2&\",\"&$X$2&\",\"&X$2,data_flh_2[],1),VLOOKUP($B278&\",\"&$K35&\",\"&$Q$2&\",\"&$X$2&\",\"&X$2,data_flh_2[],7),X$256)),0)","v":0},null,null,null,null,null,null,null,null,null,null,null,null,{"$f":"IF(AK35,IF(\"FLH,\"&AK$2&\",,\"&$B278&\",\"=VLOOKUP(\"FLH,\"&AK$2&\",,\"&$B278&\",\",data[],1),VLOOKUP(\"FLH,\"&AK$2&\",,\"&$B278&\",\",data[],7),IF($B278&\",\"&$K35&\",\"&$Q$2&\",\"&$X$2&\",\"&AK$2=VLOOKUP($B278&\",\"&$K35&\",\"&$Q$2&\",\"&$X$2&\",\"&AK$2,data_flh_2[],1),VLOOKUP($B278&\",\"&$K35&\",\"&$Q$2&\",\"&$X$2&\",\"&AK$2,data_flh_2[],7),AK$256)),0)","v":4348.072484141805},null,{"$f":"IF(AM35,IF(\"FLH,\"&AM$2&\",,\"&$B278&\",\"=VLOOKUP(\"FLH,\"&AM$2&\",,\"&$B278&\",\",data[],1),VLOOKUP(\"FLH,\"&AM$2&\",,\"&$B278&\",\",data[],7),IF($B278&\",\"&$K35&\",\"&$Q$2&\",\"&$X$2&\",\"&AM$2=VLOOKUP($B278&\",\"&$K35&\",\"&$Q$2&\",\"&$X$2&\",\"&AM$2,data_flh_2[],1),VLOOKUP($B278&\",\"&$K35&\",\"&$Q$2&\",\"&$X$2&\",\"&AM$2,data_flh_2[],7),AM$256)),0)","v":0},null,null,null,null,null,null,null,null,null,null,null,null,null,null,{"$f":"IF(BB35,IF(\"FLH,\"&BB$2&\",,\"&$B278&\",\"=VLOOKUP(\"FLH,\"&BB$2&\",,\"&$B278&\",\",data[],1),VLOOKUP(\"FLH,\"&BB$2&\",,\"&$B278&\",\",data[],7),IF($B278&\",\"&$K35&\",\"&$Q$2&\",\"&$X$2&\",\"&BB$2=VLOOKUP($B278&\",\"&$K35&\",\"&$Q$2&\",\"&$X$2&\",\"&BB$2,data_flh_2[],1),VLOOKUP($B278&\",\"&$K35&\",\"&$Q$2&\",\"&$X$2&\",\"&BB$2,data_flh_2[],7),BB$256)),0)","v":6657.5999999999995},null,null,{"$f":"IF(BE35,IF(\"FLH,\"&BE$2&\",,\"&$B278&\",\"=VLOOKUP(\"FLH,\"&BE$2&\",,\"&$B278&\",\",data[],1),VLOOKUP(\"FLH,\"&BE$2&\",,\"&$B278&\",\",data[],7),IF($B278&\",\"&$K35&\",\"&$Q$2&\",\"&$X$2&\",\"&BE$2=VLOOKUP($B278&\",\"&$K35&\",\"&$Q$2&\",\"&$X$2&\",\"&BE$2,data_flh_2[],1),VLOOKUP($B278&\",\"&$K35&\",\"&$Q$2&\",\"&$X$2&\",\"&BE$2,data_flh_2[],7),BE$256)),0)","v":0}]
[null,"ARG-SAJ",null,null,{"$f":"IF(\"FLH,\"&E$2&\",,\"&$B279&\",\"=VLOOKUP(\"FLH,\"&E$2&\",,\"&$B279&\",\",data[],1),VLOOKUP(\"FLH,\"&E$2&\",,\"&$B279&\",\",data[],7),0)","v":1798.3159226999983},{"$f":"IF(\"FLH,\"&F$2&\",,\"&$B279&\",\"=VLOOKUP(\"FLH,\"&F$2&\",,\"&$B279&\",\",data[],1),VLOOKUP(\"FLH,\"&F$2&\",,\"&$B279&\",\",data[],7),0)","v":0},{"$f":"IF(\"FLH,\"&G$2&\",,\"&$B279&\",\"=VLOOKUP(\"FLH,\"&G$2&\",,\"&$B279&\",\",data[],1),VLOOKUP(\"FLH,\"&G$2&\",,\"&$B279&\",\",data[],7),0)","v":4214.2631306310104},{"$f":"IF(\"FLH,\"&H$2&\",,\"&$B279&\",\"=VLOOKUP(\"FLH,\"&H$2&\",,\"&$B279&\",\",data[],1),VLOOKUP(\"FLH,\"&H$2&\",,\"&$B279&\",\",data[],7),0)","v":0},{"$f":"IF(\"FLH,\"&I$2&\",,\"&$B279&\",\"=VLOOKUP(\"FLH,\"&I$2&\",,\"&$B279&\",\",data[],1),VLOOKUP(\"FLH,\"&I$2&\",,\"&$B279&\",\",data[],7),0)","v":2534.5746024499945},null,{"$f":"INDEX(E279:I279,J36)","v":4214.2631306310104},null,null,null,null,null,{"$f":"IF(\"FLH,\"&Q$2&\",,\"&$B279&\",\"=VLOOKUP(\"FLH,\"&Q$2&\",,\"&$B279&\",\",data[],1),VLOOKUP(\"FLH,\"&Q$2&\",,\"&$B279&\",\",data[],7),IF($B279&\",\"&$K36&\",\"&$Q$2&\",\"&$X$2&\",\"&Q$2=VLOOKUP($B279&\",\"&$K36&\",\"&$Q$2&\",\"&$X$2&\",\"&Q$2,data_flh_2[],1),VLOOKUP($B279&\",\"&$K36&\",\"&$Q$2&\",\"&$X$2&\",\"&Q$2,data_flh_2[],7),Q$256))","v":4184.3599182912467},null,null,null,null,null,null,{"$f":"IF(X$2<>\"\",IF(\"FLH,\"&X$2&\",,\"&$B279&\",\"=VLOOKUP(\"FLH,\"&X$2&\",,\"&$B279&\",\",data[],1),VLOOKUP(\"FLH,\"&X$2&\",,\"&$B279&\",\",data[],7),IF($B279&\",\"&$K36&\",\"&$Q$2&\",\"&$X$2&\",\"&X$2=VLOOKUP($B279&\",\"&$K36&\",\"&$Q$2&\",\"&$X$2&\",\"&X$2,data_flh_2[],1),VLOOKUP($B279&\",\"&$K36&\",\"&$Q$2&\",\"&$X$2&\",\"&X$2,data_flh_2[],7),X$256)),0)","v":0},null,null,null,null,null,null,null,null,null,null,null,null,{"$f":"IF(AK36,IF(\"FLH,\"&AK$2&\",,\"&$B279&\",\"=VLOOKUP(\"FLH,\"&AK$2&\",,\"&$B279&\",\",data[],1),VLOOKUP(\"FLH,\"&AK$2&\",,\"&$B279&\",\",data[],7),IF($B279&\",\"&$K36&\",\"&$Q$2&\",\"&$X$2&\",\"&AK$2=VLOOKUP($B279&\",\"&$K36&\",\"&$Q$2&\",\"&$X$2&\",\"&AK$2,data_flh_2[],1),VLOOKUP($B279&\",\"&$K36&\",\"&$Q$2&\",\"&$X$2&\",\"&AK$2,data_flh_2[],7),AK$256)),0)","v":4075.4557423253937},null,{"$f":"IF(AM36,IF(\"FLH,\"&AM$2&\",,\"&$B279&\",\"=VLOOKUP(\"FLH,\"&AM$2&\",,\"&$B279&\",\",data[],1),VLOOKUP(\"FLH,\"&AM$2&\",,\"&$B279&\",\",data[],7),IF($B279&\",\"&$K36&\",\"&$Q$2&\",\"&$X$2&\",\"&AM$2=VLOOKUP($B279&\",\"&$K36&\",\"&$Q$2&\",\"&$X$2&\",\"&AM$2,data_flh_2[],1),VLOOKUP($B279&\",\"&$K36&\",\"&$Q$2&\",\"&$X$2&\",\"&AM$2,data_flh_2[],7),AM$256)),0)","v":0},null,null,null,null,null,null,null,null,null,null,null,null,null,null,{"$f":"IF(BB36,IF(\"FLH,\"&BB$2&\",,\"&$B279&\",\"=VLOOKUP(\"FLH,\"&BB$2&\",,\"&$B279&\",\",data[],1),VLOOKUP(\"FLH,\"&BB$2&\",,\"&$B279&\",\",data[],7),IF($B279&\",\"&$K36&\",\"&$Q$2&\",\"&$X$2&\",\"&BB$2=VLOOKUP($B279&\",\"&$K36&\",\"&$Q$2&\",\"&$X$2&\",\"&BB$2,data_flh_2[],1),VLOOKUP($B279&\",\"&$K36&\",\"&$Q$2&\",\"&$X$2&\",\"&BB$2,data_flh_2[],7),BB$256)),0)","v":6657.5999999999995},null,null,{"$f":"IF(BE36,IF(\"FLH,\"&BE$2&\",,\"&$B279&\",\"=VLOOKUP(\"FLH,\"&BE$2&\",,\"&$B279&\",\",data[],1),VLOOKUP(\"FLH,\"&BE$2&\",,\"&$B279&\",\",data[],7),IF($B279&\",\"&$K36&\",\"&$Q$2&\",\"&$X$2&\",\"&BE$2=VLOOKUP($B279&\",\"&$K36&\",\"&$Q$2&\",\"&$X$2&\",\"&BE$2,data_flh_2[],1),VLOOKUP($B279&\",\"&$K36&\",\"&$Q$2&\",\"&$X$2&\",\"&BE$2,data_flh_2[],7),BE$256)),0)","v":0}]
[null,"ARG-SAL",null,null,{"$f":"IF(\"FLH,\"&E$2&\",,\"&$B280&\",\"=VLOOKUP(\"FLH,\"&E$2&\",,\"&$B280&\",\",data[],1),VLOOKUP(\"FLH,\"&E$2&\",,\"&$B280&\",\",data[],7),0)","v":1674.9613511999978},{"$f":"IF(\"FLH,\"&F$2&\",,\"&$B280&\",\"=VLOOKUP(\"FLH,\"&F$2&\",,\"&$B280&\",\",data[],1),VLOOKUP(\"FLH,\"&F$2&\",,\"&$B280&\",\",data[],7),0)","v":0},{"$f":"IF(\"FLH,\"&G$2&\",,\"&$B280&\",\"=VLOOKUP(\"FLH,\"&G$2&\",,\"&$B280&\",\",data[],1),VLOOKUP(\"FLH,\"&G$2&\",,\"&$B280&\",\",data[],7),0)","v":5055.8296990927674},{"$f":"IF(\"FLH,\"&H$2&\",,\"&$B280&\",\"=VLOOKUP(\"FLH,\"&H$2&\",,\"&$B280&\",\",data[],1),VLOOKUP(\"FLH,\"&H$2&\",,\"&$B280&\",\",data[],7),0)","v":0},{"$f":"IF(\"FLH,\"&I$2&\",,\"&$B280&\",\"=VLOOKUP(\"FLH,\"&I$2&\",,\"&$B280&\",\",data[],1),VLOOKUP(\"FLH,\"&I$2&\",,\"&$B280&\",\",data[],7),0)","v":3657.6108475499996},null,{"$f":"INDEX(E280:I280,J37)","v":5055.8296990927674},null,null,null,null,null,{"$f":"IF(\"FLH,\"&Q$2&\",,\"&$B280&\",\"=VLOOKUP(\"FLH,\"&Q$2&\",,\"&$B280&\",\",data[],1),VLOOKUP(\"FLH,\"&Q$2&\",,\"&$B280&\",\",data[],7),IF($B280&\",\"&$K37&\",\"&$Q$2&\",\"&$X$2&\",\"&Q$2=VLOOKUP($B280&\",\"&$K37&\",\"&$Q$2&\",\"&$X$2&\",\"&Q$2,data_flh_2[],1),VLOOKUP($B280&\",\"&$K37&\",\"&$Q$2&\",\"&$X$2&\",\"&Q$2,data_flh_2[],7),Q$256))","v":5142.8632634812429},null,null,null,null,null,null,{"$f":"IF(X$2<>\"\",IF(\"FLH,\"&X$2&\",,\"&$B280&\",\"=VLOOKUP(\"FLH,\"&X$2&\",,\"&$B280&\",\",data[],1),VLOOKUP(\"FLH,\"&X$2&\",,\"&$B280&\",\",data[],7),IF($B280&\",\"&$K37&\",\"&$Q$2&\",\"&$X$2&\",\"&X$2=VLOOKUP($B280&\",\"&$K37&\",\"&$Q$2&\",\"&$X$2&\",\"&X$2,data_flh_2[],1),VLOOKUP($B280&\",\"&$K37&\",\"&$Q$2&\",\"&$X$2&\",\"&X$2,data_flh_2[],7),X$256)),0)","v":0},null,null,null,null,null,null,null,null,null,null,null,null,{"$f":"IF(AK37,IF(\"FLH,\"&AK$2&\",,\"&$B280&\",\"=VLOOKUP(\"FLH,\"&AK$2&\",,\"&$B280&\",\",data[],1),VLOOKUP(\"FLH,\"&AK$2&\",,\"&$B280&\",\",data[],7),IF($B280&\",\"&$K37&\",\"&$Q$2&\",\"&$X$2&\",\"&AK$2=VLOOKUP($B280&\",\"&$K37&\",\"&$Q$2&\",\"&$X$2&\",\"&AK$2,data_flh_2[],1),VLOOKUP($B280&\",\"&$K37&\",\"&$Q$2&\",\"&$X$2&\",\"&AK$2,data_flh_2[],7),AK$256)),0)","v":5089.4518731398202},null,{"$f":"IF(AM37,IF(\"FLH,\"&AM$2&\",,\"&$B280&\",\"=VLOOKUP(\"FLH,\"&AM$2&\",,\"&$B280&\",\",data[],1),VLOOKUP(\"FLH,\"&AM$2&\",,\"&$B280&\",\",data[],7),IF($B280&\",\"&$K37&\",\"&$Q$2&\",\"&$X$2&\",\"&AM$2=VLOOKUP($B280&\",\"&$K37&\",\"&$Q$2&\",\"&$X$2&\",\"&AM$2,data_flh_2[],1),VLOOKUP($B280&\",\"&$K37&\",\"&$Q$2&\",\"&$X$2&\",\"&AM$2,data_flh_2[],7),AM$256)),0)","v":0},null,null,null,null,null,null,null,null,null,null,null,null,null,null,{"$f":"IF(BB37,IF(\"FLH,\"&BB$2&\",,\"&$B280&\",\"=VLOOKUP(\"FLH,\"&BB$2&\",,\"&$B280&\",\",data[],1),VLOOKUP(\"FLH,\"&BB$2&\",,\"&$B280&\",\",data[],7),IF($B280&\",\"&$K37&\",\"&$Q$2&\",\"&$X$2&\",\"&BB$2=VLOOKUP($B280&\",\"&$K37&\",\"&$Q$2&\",\"&$X$2&\",\"&BB$2,data_flh_2[],1),VLOOKUP($B280&\",\"&$K37&\",\"&$Q$2&\",\"&$X$2&\",\"&BB$2,data_flh_2[],7),BB$256)),0)","v":6657.5999999999995},null,null,{"$f":"IF(BE37,IF(\"FLH,\"&BE$2&\",,\"&$B280&\",\"=VLOOKUP(\"FLH,\"&BE$2&\",,\"&$B280&\",\",data[],1),VLOOKUP(\"FLH,\"&BE$2&\",,\"&$B280&\",\",data[],7),IF($B280&\",\"&$K37&\",\"&$Q$2&\",\"&$X$2&\",\"&BE$2=VLOOKUP($B280&\",\"&$K37&\",\"&$Q$2&\",\"&$X$2&\",\"&BE$2,data_flh_2[],1),VLOOKUP($B280&\",\"&$K37&\",\"&$Q$2&\",\"&$X$2&\",\"&BE$2,data_flh_2[],7),BE$256)),0)","v":0}]
[null,"ARG-SAT",null,null,{"$f":"IF(\"FLH,\"&E$2&\",,\"&$B281&\",\"=VLOOKUP(\"FLH,\"&E$2&\",,\"&$B281&\",\",data[],1),VLOOKUP(\"FLH,\"&E$2&\",,\"&$B281&\",\",data[],7),0)","v":1564.1549919000008},{"$f":"IF(\"FLH,\"&F$2&\",,\"&$B281&\",\"=VLOOKUP(\"FLH,\"&F$2&\",,\"&$B281&\",\",data[],1),VLOOKUP(\"FLH,\"&F$2&\",,\"&$B281&\",\",data[],7),0)","v":0},{"$f":"IF(\"FLH,\"&G$2&\",,\"&$B281&\",\"=VLOOKUP(\"FLH,\"&G$2&\",,\"&$B281&\",\",data[],1),VLOOKUP(\"FLH,\"&G$2&\",,\"&$B281&\",\",data[],7),0)","v":4747.3079047460951},{"$f":"IF(\"FLH,\"&H$2&\",,\"&$B281&\",\"=VLOOKUP(\"FLH,\"&H$2&\",,\"&$B281&\",\",data[],1),VLOOKUP(\"FLH,\"&H$2&\",,\"&$B281&\",\",data[],7),0)","v":0},{"$f":"IF(\"FLH,\"&I$2&\",,\"&$B281&\",\"=VLOOKUP(\"FLH,\"&I$2&\",,\"&$B281&\",\",data[],1),VLOOKUP(\"FLH,\"&I$2&\",,\"&$B281&\",\",data[],7),0)","v":3418.5372058749972},null,{"$f":"INDEX(E281:I281,J38)","v":4747.3079047460951},null,null,null,null,null,{"$f":"IF(\"FLH,\"&Q$2&\",,\"&$B281&\",\"=VLOOKUP(\"FLH,\"&Q$2&\",,\"&$B281&\",\",data[],1),VLOOKUP(\"FLH,\"&Q$2&\",,\"&$B281&\",\",data[],7),IF($B281&\",\"&$K38&\",\"&$Q$2&\",\"&$X$2&\",\"&Q$2=VLOOKUP($B281&\",\"&$K38&\",\"&$Q$2&\",\"&$X$2&\",\"&Q$2,data_flh_2[],1),VLOOKUP($B281&\",\"&$K38&\",\"&$Q$2&\",\"&$X$2&\",\"&Q$2,data_flh_2[],7),Q$256))","v":4791.4719617974897},null,null,null,null,null,null,{"$f":"IF(X$2<>\"\",IF(\"FLH,\"&X$2&\",,\"&$B281&\",\"=VLOOKUP(\"FLH,\"&X$2&\",,\"&$B281&\",\",data[],1),VLOOKUP(\"FLH,\"&X$2&\",,\"&$B281&\",\",data[],7),IF($B281&\",\"&$K38&\",\"&$Q$2&\",\"&$X$2&\",\"&X$2=VLOOKUP($B281&\",\"&$K38&\",\"&$Q$2&\",\"&$X$2&\",\"&X$2,data_flh_2[],1),VLOOKUP($B281&\",\"&$K38&\",\"&$Q$2&\",\"&$X$2&\",\"&X$2,data_flh_2[],7),X$256)),0)","v":0},null,null,null,null,null,null,null,null,null,null,null,null,{"$f":"IF(AK38,IF(\"FLH,\"&AK$2&\",,\"&$B281&\",\"=VLOOKUP(\"FLH,\"&AK$2&\",,\"&$B281&\",\",data[],1),VLOOKUP(\"FLH,\"&AK$2&\",,\"&$B281&\",\",data[],7),IF($B281&\",\"&$K38&\",\"&$Q$2&\",\"&$X$2&\",\"&AK$2=VLOOKUP($B281&\",\"&$K38&\",\"&$Q$2&\",\"&$X$2&\",\"&AK$2,data_flh_2[],1),VLOOKUP($B281&\",\"&$K38&\",\"&$Q$2&\",\"&$X$2&\",\"&AK$2,data_flh_2[],7),AK$256)),0)","v":4717.7166860930383},null,{"$f":"IF(AM38,IF(\"FLH,\"&AM$2&\",,\"&$B281&\",\"=VLOOKUP(\"FLH,\"&AM$2&\",,\"&$B281&\",\",data[],1),VLOOKUP(\"FLH,\"&AM$2&\",,\"&$B281&\",\",data[],7),IF($B281&\",\"&$K38&\",\"&$Q$2&\",\"&$X$2&\",\"&AM$2=VLOOKUP($B281&\",\"&$K38&\",\"&$Q$2&\",\"&$X$2&\",\"&AM$2,data_flh_2[],1),VLOOKUP($B281&\",\"&$K38&\",\"&$Q$2&\",\"&$X$2&\",\"&AM$2,data_flh_2[],7),AM$256)),0)","v":0},null,null,null,null,null,null,null,null,null,null,null,null,null,null,{"$f":"IF(BB38,IF(\"FLH,\"&BB$2&\",,\"&$B281&\",\"=VLOOKUP(\"FLH,\"&BB$2&\",,\"&$B281&\",\",data[],1),VLOOKUP(\"FLH,\"&BB$2&\",,\"&$B281&\",\",data[],7),IF($B281&\",\"&$K38&\",\"&$Q$2&\",\"&$X$2&\",\"&BB$2=VLOOKUP($B281&\",\"&$K38&\",\"&$Q$2&\",\"&$X$2&\",\"&BB$2,data_flh_2[],1),VLOOKUP($B281&\",\"&$K38&\",\"&$Q$2&\",\"&$X$2&\",\"&BB$2,data_flh_2[],7),BB$256)),0)","v":6657.5999999999995},null,null,{"$f":"IF(BE38,IF(\"FLH,\"&BE$2&\",,\"&$B281&\",\"=VLOOKUP(\"FLH,\"&BE$2&\",,\"&$B281&\",\",data[],1),VLOOKUP(\"FLH,\"&BE$2&\",,\"&$B281&\",\",data[],7),IF($B281&\",\"&$K38&\",\"&$Q$2&\",\"&$X$2&\",\"&BE$2=VLOOKUP($B281&\",\"&$K38&\",\"&$Q$2&\",\"&$X$2&\",\"&BE$2,data_flh_2[],1),VLOOKUP($B281&\",\"&$K38&\",\"&$Q$2&\",\"&$X$2&\",\"&BE$2,data_flh_2[],7),BE$256)),0)","v":0}]
[null,"ARG-TUC",null,null,{"$f":"IF(\"FLH,\"&E$2&\",,\"&$B282&\",\"=VLOOKUP(\"FLH,\"&E$2&\",,\"&$B282&\",\",data[],1),VLOOKUP(\"FLH,\"&E$2&\",,\"&$B282&\",\",data[],7),0)","v":1670.31158688},{"$f":"IF(\"FLH,\"&F$2&\",,\"&$B282&\",\"=VLOOKUP(\"FLH,\"&F$2&\",,\"&$B282&\",\",data[],1),VLOOKUP(\"FLH,\"&F$2&\",,\"&$B282&\",\",data[],7),0)","v":0},{"$f":"IF(\"FLH,\"&G$2&\",,\"&$B282&\",\"=VLOOKUP(\"FLH,\"&G$2&\",,\"&$B282&\",\",data[],1),VLOOKUP(\"FLH,\"&G$2&\",,\"&$B282&\",\",data[],7),0)","v":3565.3259655172683},{"$f":"IF(\"FLH,\"&H$2&\",,\"&$B282&\",\"=VLOOKUP(\"FLH,\"&H$2&\",,\"&$B282&\",\",data[],1),VLOOKUP(\"FLH,\"&H$2&\",,\"&$B282&\",\",data[],7),0)","v":0},{"$f":"IF(\"FLH,\"&I$2&\",,\"&$B282&\",\"=VLOOKUP(\"FLH,\"&I$2&\",,\"&$B282&\",\",data[],1),VLOOKUP(\"FLH,\"&I$2&\",,\"&$B282&\",\",data[],7),0)","v":1908.3186970833303},null,{"$f":"INDEX(E282:I282,J39)","v":3565.3259655172683},null,null,null,null,null,{"$f":"IF(\"FLH,\"&Q$2&\",,\"&$B282&\",\"=VLOOKUP(\"FLH,\"&Q$2&\",,\"&$B282&\",\",data[],1),VLOOKUP(\"FLH,\"&Q$2&\",,\"&$B282&\",\",data[],7),IF($B282&\",\"&$K39&\",\"&$Q$2&\",\"&$X$2&\",\"&Q$2=VLOOKUP($B282&\",\"&$K39&\",\"&$Q$2&\",\"&$X$2&\",\"&Q$2,data_flh_2[],1),VLOOKUP($B282&\",\"&$K39&\",\"&$Q$2&\",\"&$X$2&\",\"&Q$2,data_flh_2[],7),Q$256))","v":3445.2520842947497},null,null,null,null,null,null,{"$f":"IF(X$2<>\"\",IF(\"FLH,\"&X$2&\",,\"&$B282&\",\"=VLOOKUP(\"FLH,\"&X$2&\",,\"&$B282&\",\",data[],1),VLOOKUP(\"FLH,\"&X$2&\",,\"&$B282&\",\",data[],7),IF($B282&\",\"&$K39&\",\"&$Q$2&\",\"&$X$2&\",\"&X$2=VLOOKUP($B282&\",\"&$K39&\",\"&$Q$2&\",\"&$X$2&\",\"&X$2,data_flh_2[],1),VLOOKUP($B282&\",\"&$K39&\",\"&$Q$2&\",\"&$X$2&\",\"&X$2,data_flh_2[],7),X$256)),0)","v":0},null,null,null,null,null,null,null,null,null,null,null,null,{"$f":"IF(AK39,IF(\"FLH,\"&AK$2&\",,\"&$B282&\",\"=VLOOKUP(\"FLH,\"&AK$2&\",,\"&$B282&\",\",data[],1),VLOOKUP(\"FLH,\"&AK$2&\",,\"&$B282&\",\",data[],7),IF($B282&\",\"&$K39&\",\"&$Q$2&\",\"&$X$2&\",\"&AK$2=VLOOKUP($B282&\",\"&$K39&\",\"&$Q$2&\",\"&$X$2&\",\"&AK$2,data_flh_2[],1),VLOOKUP($B282&\",\"&$K39&\",\"&$Q$2&\",\"&$X$2&\",\"&AK$2,data_flh_2[],7),AK$256)),0)","v":3387.0596672414049},null,{"$f":"IF(AM39,IF(\"FLH,\"&AM$2&\",,\"&$B282&\",\"=VLOOKUP(\"FLH,\"&AM$2&\",,\"&$B282&\",\",data[],1),VLOOKUP(\"FLH,\"&AM$2&\",,\"&$B282&\",\",data[],7),IF($B282&\",\"&$K39&\",\"&$Q$2&\",\"&$X$2&\",\"&AM$2=VLOOKUP($B282&\",\"&$K39&\",\"&$Q$2&\",\"&$X$2&\",\"&AM$2,data_flh_2[],1),VLOOKUP($B282&\",\"&$K39&\",\"&$Q$2&\",\"&$X$2&\",\"&AM$2,data_flh_2[],7),AM$256)),0)","v":0},null,null,null,null,null,null,null,null,null,null,null,null,null,null,{"$f":"IF(BB39,IF(\"FLH,\"&BB$2&\",,\"&$B282&\",\"=VLOOKUP(\"FLH,\"&BB$2&\",,\"&$B282&\",\",data[],1),VLOOKUP(\"FLH,\"&BB$2&\",,\"&$B282&\",\",data[],7),IF($B282&\",\"&$K39&\",\"&$Q$2&\",\"&$X$2&\",\"&BB$2=VLOOKUP($B282&\",\"&$K39&\",\"&$Q$2&\",\"&$X$2&\",\"&BB$2,data_flh_2[],1),VLOOKUP($B282&\",\"&$K39&\",\"&$Q$2&\",\"&$X$2&\",\"&BB$2,data_flh_2[],7),BB$256)),0)","v":6657.5999999999995},null,null,{"$f":"IF(BE39,IF(\"FLH,\"&BE$2&\",,\"&$B282&\",\"=VLOOKUP(\"FLH,\"&BE$2&\",,\"&$B282&\",\",data[],1),VLOOKUP(\"FLH,\"&BE$2&\",,\"&$B282&\",\",data[],7),IF($B282&\",\"&$K39&\",\"&$Q$2&\",\"&$X$2&\",\"&BE$2=VLOOKUP($B282&\",\"&$K39&\",\"&$Q$2&\",\"&$X$2&\",\"&BE$2,data_flh_2[],1),VLOOKUP($B282&\",\"&$K39&\",\"&$Q$2&\",\"&$X$2&\",\"&BE$2,data_flh_2[],7),BE$256)),0)","v":0}]
[null,"AUS",null,null,{"$f":"IF(\"FLH,\"&E$2&\",,\"&$B283&\",\"=VLOOKUP(\"FLH,\"&E$2&\",,\"&$B283&\",\",data[],1),VLOOKUP(\"FLH,\"&E$2&\",,\"&$B283&\",\",data[],7),0)","v":1557},{"$f":"IF(\"FLH,\"&F$2&\",,\"&$B283&\",\"=VLOOKUP(\"FLH,\"&F$2&\",,\"&$B283&\",\",data[],1),VLOOKUP(\"FLH,\"&F$2&\",,\"&$B283&\",\",data[],7),0)","v":0},{"$f":"IF(\"FLH,\"&G$2&\",,\"&$B283&\",\"=VLOOKUP(\"FLH,\"&G$2&\",,\"&$B283&\",\",data[],1),VLOOKUP(\"FLH,\"&G$2&\",,\"&$B283&\",\",data[],7),0)","v":4753.97},{"$f":"IF(\"FLH,\"&H$2&\",,\"&$B283&\",\"=VLOOKUP(\"FLH,\"&H$2&\",,\"&$B283&\",\",data[],1),VLOOKUP(\"FLH,\"&H$2&\",,\"&$B283&\",\",data[],7),0)","v":4205},{"$f":"IF(\"FLH,\"&I$2&\",,\"&$B283&\",\"=VLOOKUP(\"FLH,\"&I$2&\",,\"&$B283&\",\",data[],1),VLOOKUP(\"FLH,\"&I$2&\",,\"&$B283&\",\",data[],7),0)","v":3971},null,{"$f":"INDEX(E283:I283,J40)","v":4753.97},null,null,null,null,null,{"$f":"IF(\"FLH,\"&Q$2&\",,\"&$B283&\",\"=VLOOKUP(\"FLH,\"&Q$2&\",,\"&$B283&\",\",data[],1),VLOOKUP(\"FLH,\"&Q$2&\",,\"&$B283&\",\",data[],7),IF($B283&\",\"&$K40&\",\"&$Q$2&\",\"&$X$2&\",\"&Q$2=VLOOKUP($B283&\",\"&$K40&\",\"&$Q$2&\",\"&$X$2&\",\"&Q$2,data_flh_2[],1),VLOOKUP($B283&\",\"&$K40&\",\"&$Q$2&\",\"&$X$2&\",\"&Q$2,data_flh_2[],7),Q$256))","v":5456.8},null,null,null,null,null,null,{"$f":"IF(X$2<>\"\",IF(\"FLH,\"&X$2&\",,\"&$B283&\",\"=VLOOKUP(\"FLH,\"&X$2&\",,\"&$B283&\",\",data[],1),VLOOKUP(\"FLH,\"&X$2&\",,\"&$B283&\",\",data[],7),IF($B283&\",\"&$K40&\",\"&$Q$2&\",\"&$X$2&\",\"&X$2=VLOOKUP($B283&\",\"&$K40&\",\"&$Q$2&\",\"&$X$2&\",\"&X$2,data_flh_2[],1),VLOOKUP($B283&\",\"&$K40&\",\"&$Q$2&\",\"&$X$2&\",\"&X$2,data_flh_2[],7),X$256)),0)","v":0},null,null,null,null,null,null,null,null,null,null,null,null,{"$f":"IF(AK40,IF(\"FLH,\"&AK$2&\",,\"&$B283&\",\"=VLOOKUP(\"FLH,\"&AK$2&\",,\"&$B283&\",\",data[],1),VLOOKUP(\"FLH,\"&AK$2&\",,\"&$B283&\",\",data[],7),IF($B283&\",\"&$K40&\",\"&$Q$2&\",\"&$X$2&\",\"&AK$2=VLOOKUP($B283&\",\"&$K40&\",\"&$Q$2&\",\"&$X$2&\",\"&AK$2,data_flh_2[],1),VLOOKUP($B283&\",\"&$K40&\",\"&$Q$2&\",\"&$X$2&\",\"&AK$2,data_flh_2[],7),AK$256)),0)","v":5391.7249999999995},null,{"$f":"IF(AM40,IF(\"FLH,\"&AM$2&\",,\"&$B283&\",\"=VLOOKUP(\"FLH,\"&AM$2&\",,\"&$B283&\",\",data[],1),VLOOKUP(\"FLH,\"&AM$2&\",,\"&$B283&\",\",data[],7),IF($B283&\",\"&$K40&\",\"&$Q$2&\",\"&$X$2&\",\"&AM$2=VLOOKUP($B283&\",\"&$K40&\",\"&$Q$2&\",\"&$X$2&\",\"&AM$2,data_flh_2[],1),VLOOKUP($B283&\",\"&$K40&\",\"&$Q$2&\",\"&$X$2&\",\"&AM$2,data_flh_2[],7),AM$256)),0)","v":0},null,null,null,null,null,null,null,null,null,null,null,null,null,null,{"$f":"IF(BB40,IF(\"FLH,\"&BB$2&\",,\"&$B283&\",\"=VLOOKUP(\"FLH,\"&BB$2&\",,\"&$B283&\",\",data[],1),VLOOKUP(\"FLH,\"&BB$2&\",,\"&$B283&\",\",data[],7),IF($B283&\",\"&$K40&\",\"&$Q$2&\",\"&$X$2&\",\"&BB$2=VLOOKUP($B283&\",\"&$K40&\",\"&$Q$2&\",\"&$X$2&\",\"&BB$2,data_flh_2[],1),VLOOKUP($B283&\",\"&$K40&\",\"&$Q$2&\",\"&$X$2&\",\"&BB$2,data_flh_2[],7),BB$256)),0)","v":6657.5999999999995},null,null,{"$f":"IF(BE40,IF(\"FLH,\"&BE$2&\",,\"&$B283&\",\"=VLOOKUP(\"FLH,\"&BE$2&\",,\"&$B283&\",\",data[],1),VLOOKUP(\"FLH,\"&BE$2&\",,\"&$B283&\",\",data[],7),IF($B283&\",\"&$K40&\",\"&$Q$2&\",\"&$X$2&\",\"&BE$2=VLOOKUP($B283&\",\"&$K40&\",\"&$Q$2&\",\"&$X$2&\",\"&BE$2,data_flh_2[],1),VLOOKUP($B283&\",\"&$K40&\",\"&$Q$2&\",\"&$X$2&\",\"&BE$2,data_flh_2[],7),BE$256)),0)","v":0}]
[null,"BRA",null,null,{"$f":"IF(\"FLH,\"&E$2&\",,\"&$B284&\",\"=VLOOKUP(\"FLH,\"&E$2&\",,\"&$B284&\",\",data[],1),VLOOKUP(\"FLH,\"&E$2&\",,\"&$B284&\",\",data[],7),0)","v":1346},{"$f":"IF(\"FLH,\"&F$2&\",,\"&$B284&\",\"=VLOOKUP(\"FLH,\"&F$2&\",,\"&$B284&\",\",data[],1),VLOOKUP(\"FLH,\"&F$2&\",,\"&$B284&\",\",data[],7),0)","v":0},{"$f":"IF(\"FLH,\"&G$2&\",,\"&$B284&\",\"=VLOOKUP(\"FLH,\"&G$2&\",,\"&$B284&\",\",data[],1),VLOOKUP(\"FLH,\"&G$2&\",,\"&$B284&\",\",data[],7),0)","v":5155.55},{"$f":"IF(\"FLH,\"&H$2&\",,\"&$B284&\",\"=VLOOKUP(\"FLH,\"&H$2&\",,\"&$B284&\",\",data[],1),VLOOKUP(\"FLH,\"&H$2&\",,\"&$B284&\",\",data[],7),0)","v":3854},{"$f":"IF(\"FLH,\"&I$2&\",,\"&$B284&\",\"=VLOOKUP(\"FLH,\"&I$2&\",,\"&$B284&\",\",data[],1),VLOOKUP(\"FLH,\"&I$2&\",,\"&$B284&\",\",data[],7),0)","v":3517},null,{"$f":"INDEX(E284:I284,J41)","v":5155.55},null,null,null,null,null,{"$f":"IF(\"FLH,\"&Q$2&\",,\"&$B284&\",\"=VLOOKUP(\"FLH,\"&Q$2&\",,\"&$B284&\",\",data[],1),VLOOKUP(\"FLH,\"&Q$2&\",,\"&$B284&\",\",data[],7),IF($B284&\",\"&$K41&\",\"&$Q$2&\",\"&$X$2&\",\"&Q$2=VLOOKUP($B284&\",\"&$K41&\",\"&$Q$2&\",\"&$X$2&\",\"&Q$2,data_flh_2[],1),VLOOKUP($B284&\",\"&$K41&\",\"&$Q$2&\",\"&$X$2&\",\"&Q$2,data_flh_2[],7),Q$256))","v":5533.2749999999996},null,null,null,null,null,null,{"$f":"IF(X$2<>\"\",IF(\"FLH,\"&X$2&\",,\"&$B284&\",\"=VLOOKUP(\"FLH,\"&X$2&\",,\"&$B284&\",\",data[],1),VLOOKUP(\"FLH,\"&X$2&\",,\"&$B284&\",\",data[],7),IF($B284&\",\"&$K41&\",\"&$Q$2&\",\"&$X$2&\",\"&X$2=VLOOKUP($B284&\",\"&$K41&\",\"&$Q$2&\",\"&$X$2&\",\"&X$2,data_flh_2[],1),VLOOKUP($B284&\",\"&$K41&\",\"&$Q$2&\",\"&$X$2&\",\"&X$2,data_flh_2[],7),X$256)),0)","v":0},null,null,null,null,null,null,null,null,null,null,null,null,{"$f":"IF(AK41,IF(\"FLH,\"&AK$2&\",,\"&$B284&\",\"=VLOOKUP(\"FLH,\"&AK$2&\",,\"&$B284&\",\",data[],1),VLOOKUP(\"FLH,\"&AK$2&\",,\"&$B284&\",\",data[],7),IF($B284&\",\"&$K41&\",\"&$Q$2&\",\"&$X$2&\",\"&AK$2=VLOOKUP($B284&\",\"&$K41&\",\"&$Q$2&\",\"&$X$2&\",\"&AK$2,data_flh_2[],1),VLOOKUP($B284&\",\"&$K41&\",\"&$Q$2&\",\"&$X$2&\",\"&AK$2,data_flh_2[],7),AK$256)),0)","v":5713.7749999999996},null,{"$f":"IF(AM41,IF(\"FLH,\"&AM$2&\",,\"&$B284&\",\"=VLOOKUP(\"FLH,\"&AM$2&\",,\"&$B284&\",\",data[],1),VLOOKUP(\"FLH,\"&AM$2&\",,\"&$B284&\",\",data[],7),IF($B284&\",\"&$K41&\",\"&$Q$2&\",\"&$X$2&\",\"&AM$2=VLOOKUP($B284&\",\"&$K41&\",\"&$Q$2&\",\"&$X$2&\",\"&AM$2,data_flh_2[],1),VLOOKUP($B284&\",\"&$K41&\",\"&$Q$2&\",\"&$X$2&\",\"&AM$2,data_flh_2[],7),AM$256)),0)","v":0},null,null,null,null,null,null,null,null,null,null,null,null,null,null,{"$f":"IF(BB41,IF(\"FLH,\"&BB$2&\",,\"&$B284&\",\"=VLOOKUP(\"FLH,\"&BB$2&\",,\"&$B284&\",\",data[],1),VLOOKUP(\"FLH,\"&BB$2&\",,\"&$B284&\",\",data[],7),IF($B284&\",\"&$K41&\",\"&$Q$2&\",\"&$X$2&\",\"&BB$2=VLOOKUP($B284&\",\"&$K41&\",\"&$Q$2&\",\"&$X$2&\",\"&BB$2,data_flh_2[],1),VLOOKUP($B284&\",\"&$K41&\",\"&$Q$2&\",\"&$X$2&\",\"&BB$2,data_flh_2[],7),BB$256)),0)","v":6657.5999999999995},null,null,{"$f":"IF(BE41,IF(\"FLH,\"&BE$2&\",,\"&$B284&\",\"=VLOOKUP(\"FLH,\"&BE$2&\",,\"&$B284&\",\",data[],1),VLOOKUP(\"FLH,\"&BE$2&\",,\"&$B284&\",\",data[],7),IF($B284&\",\"&$K41&\",\"&$Q$2&\",\"&$X$2&\",\"&BE$2=VLOOKUP($B284&\",\"&$K41&\",\"&$Q$2&\",\"&$X$2&\",\"&BE$2,data_flh_2[],1),VLOOKUP($B284&\",\"&$K41&\",\"&$Q$2&\",\"&$X$2&\",\"&BE$2,data_flh_2[],7),BE$256)),0)","v":0}]
[null,"CHL",null,null,{"$f":"IF(\"FLH,\"&E$2&\",,\"&$B285&\",\"=VLOOKUP(\"FLH,\"&E$2&\",,\"&$B285&\",\",data[],1),VLOOKUP(\"FLH,\"&E$2&\",,\"&$B285&\",\",data[],7),0)","v":1939},{"$f":"IF(\"FLH,\"&F$2&\",,\"&$B285&\",\"=VLOOKUP(\"FLH,\"&F$2&\",,\"&$B285&\",\",data[],1),VLOOKUP(\"FLH,\"&F$2&\",,\"&$B285&\",\",data[],7),0)","v":0},{"$f":"IF(\"FLH,\"&G$2&\",,\"&$B285&\",\"=VLOOKUP(\"FLH,\"&G$2&\",,\"&$B285&\",\",data[],1),VLOOKUP(\"FLH,\"&G$2&\",,\"&$B285&\",\",data[],7),0)","v":3450.29},{"$f":"IF(\"FLH,\"&H$2&\",,\"&$B285&\",\"=VLOOKUP(\"FLH,\"&H$2&\",,\"&$B285&\",\",data[],1),VLOOKUP(\"FLH,\"&H$2&\",,\"&$B285&\",\",data[],7),0)","v":6034},{"$f":"IF(\"FLH,\"&I$2&\",,\"&$B285&\",\"=VLOOKUP(\"FLH,\"&I$2&\",,\"&$B285&\",\",data[],1),VLOOKUP(\"FLH,\"&I$2&\",,\"&$B285&\",\",data[],7),0)","v":6034},null,{"$f":"INDEX(E285:I285,J42)","v":3450.29},null,null,null,null,null,{"$f":"IF(\"FLH,\"&Q$2&\",,\"&$B285&\",\"=VLOOKUP(\"FLH,\"&Q$2&\",,\"&$B285&\",\",data[],1),VLOOKUP(\"FLH,\"&Q$2&\",,\"&$B285&\",\",data[],7),IF($B285&\",\"&$K42&\",\"&$Q$2&\",\"&$X$2&\",\"&Q$2=VLOOKUP($B285&\",\"&$K42&\",\"&$Q$2&\",\"&$X$2&\",\"&Q$2,data_flh_2[],1),VLOOKUP($B285&\",\"&$K42&\",\"&$Q$2&\",\"&$X$2&\",\"&Q$2,data_flh_2[],7),Q$256))","v":3277.9749999999999},null,null,null,null,null,null,{"$f":"IF(X$2<>\"\",IF(\"FLH,\"&X$2&\",,\"&$B285&\",\"=VLOOKUP(\"FLH,\"&X$2&\",,\"&$B285&\",\",data[],1),VLOOKUP(\"FLH,\"&X$2&\",,\"&$B285&\",\",data[],7),IF($B285&\",\"&$K42&\",\"&$Q$2&\",\"&$X$2&\",\"&X$2=VLOOKUP($B285&\",\"&$K42&\",\"&$Q$2&\",\"&$X$2&\",\"&X$2,data_flh_2[],1),VLOOKUP($B285&\",\"&$K42&\",\"&$Q$2&\",\"&$X$2&\",\"&X$2,data_flh_2[],7),X$256)),0)","v":0},null,null,null,null,null,null,null,null,null,null,null,null,{"$f":"IF(AK42,IF(\"FLH,\"&AK$2&\",,\"&$B285&\",\"=VLOOKUP(\"FLH,\"&AK$2&\",,\"&$B285&\",\",data[],1),VLOOKUP(\"FLH,\"&AK$2&\",,\"&$B285&\",\",data[],7),IF($B285&\",\"&$K42&\",\"&$Q$2&\",\"&$X$2&\",\"&AK$2=VLOOKUP($B285&\",\"&$K42&\",\"&$Q$2&\",\"&$X$2&\",\"&AK$2,data_flh_2[],1),VLOOKUP($B285&\",\"&$K42&\",\"&$Q$2&\",\"&$X$2&\",\"&AK$2,data_flh_2[],7),AK$256)),0)","v":3299.8249999999998},null,{"$f":"IF(AM42,IF(\"FLH,\"&AM$2&\",,\"&$B285&\",\"=VLOOKUP(\"FLH,\"&AM$2&\",,\"&$B285&\",\",data[],1),VLOOKUP(\"FLH,\"&AM$2&\",,\"&$B285&\",\",data[],7),IF($B285&\",\"&$K42&\",\"&$Q$2&\",\"&$X$2&\",\"&AM$2=VLOOKUP($B285&\",\"&$K42&\",\"&$Q$2&\",\"&$X$2&\",\"&AM$2,data_flh_2[],1),VLOOKUP($B285&\",\"&$K42&\",\"&$Q$2&\",\"&$X$2&\",\"&AM$2,data_flh_2[],7),AM$256)),0)","v":0},null,null,null,null,null,null,null,null,null,null,null,null,null,null,{"$f":"IF(BB42,IF(\"FLH,\"&BB$2&\",,\"&$B285&\",\"=VLOOKUP(\"FLH,\"&BB$2&\",,\"&$B285&\",\",data[],1),VLOOKUP(\"FLH,\"&BB$2&\",,\"&$B285&\",\",data[],7),IF($B285&\",\"&$K42&\",\"&$Q$2&\",\"&$X$2&\",\"&BB$2=VLOOKUP($B285&\",\"&$K42&\",\"&$Q$2&\",\"&$X$2&\",\"&BB$2,data_flh_2[],1),VLOOKUP($B285&\",\"&$K42&\",\"&$Q$2&\",\"&$X$2&\",\"&BB$2,data_flh_2[],7),BB$256)),0)","v":6657.5999999999995},null,null,{"$f":"IF(BE42,IF(\"FLH,\"&BE$2&\",,\"&$B285&\",\"=VLOOKUP(\"FLH,\"&BE$2&\",,\"&$B285&\",\",data[],1),VLOOKUP(\"FLH,\"&BE$2&\",,\"&$B285&\",\",data[],7),IF($B285&\",\"&$K42&\",\"&$Q$2&\",\"&$X$2&\",\"&BE$2=VLOOKUP($B285&\",\"&$K42&\",\"&$Q$2&\",\"&$X$2&\",\"&BE$2,data_flh_2[],1),VLOOKUP($B285&\",\"&$K42&\",\"&$Q$2&\",\"&$X$2&\",\"&BE$2,data_flh_2[],7),BE$256)),0)","v":0}]
[null,"CHN",null,null,{"$f":"IF(\"FLH,\"&E$2&\",,\"&$B286&\",\"=VLOOKUP(\"FLH,\"&E$2&\",,\"&$B286&\",\",data[],1),VLOOKUP(\"FLH,\"&E$2&\",,\"&$B286&\",\",data[],7),0)","v":1845.4554144000026},{"$f":"IF(\"FLH,\"&F$2&\",,\"&$B286&\",\"=VLOOKUP(\"FLH,\"&F$2&\",,\"&$B286&\",\",data[],1),VLOOKUP(\"FLH,\"&F$2&\",,\"&$B286&\",\",data[],7),0)","v":0},{"$f":"IF(\"FLH,\"&G$2&\",,\"&$B286&\",\"=VLOOKUP(\"FLH,\"&G$2&\",,\"&$B286&\",\",data[],1),VLOOKUP(\"FLH,\"&G$2&\",,\"&$B286&\",\",data[],7),0)","v":5183.707028904495},{"$f":"IF(\"FLH,\"&H$2&\",,\"&$B286&\",\"=VLOOKUP(\"FLH,\"&H$2&\",,\"&$B286&\",\",data[],1),VLOOKUP(\"FLH,\"&H$2&\",,\"&$B286&\",\",data[],7),0)","v":3592},{"$f":"IF(\"FLH,\"&I$2&\",,\"&$B286&\",\"=VLOOKUP(\"FLH,\"&I$2&\",,\"&$B286&\",\",data[],1),VLOOKUP(\"FLH,\"&I$2&\",,\"&$B286&\",\",data[],7),0)","v":3250},null,{"$f":"INDEX(E286:I286,J43)","v":5183.707028904495},null,null,null,null,null,{"$f":"IF(\"FLH,\"&Q$2&\",,\"&$B286&\",\"=VLOOKUP(\"FLH,\"&Q$2&\",,\"&$B286&\",\",data[],1),VLOOKUP(\"FLH,\"&Q$2&\",,\"&$B286&\",\",data[],7),IF($B286&\",\"&$K43&\",\"&$Q$2&\",\"&$X$2&\",\"&Q$2=VLOOKUP($B286&\",\"&$K43&\",\"&$Q$2&\",\"&$X$2&\",\"&Q$2,data_flh_2[],1),VLOOKUP($B286&\",\"&$K43&\",\"&$Q$2&\",\"&$X$2&\",\"&Q$2,data_flh_2[],7),Q$256))","v":5288.5093157270494},null,null,null,null,null,null,{"$f":"IF(X$2<>\"\",IF(\"FLH,\"&X$2&\",,\"&$B286&\",\"=VLOOKUP(\"FLH,\"&X$2&\",,\"&$B286&\",\",data[],1),VLOOKUP(\"FLH,\"&X$2&\",,\"&$B286&\",\",data[],7),IF($B286&\",\"&$K43&\",\"&$Q$2&\",\"&$X$2&\",\"&X$2=VLOOKUP($B286&\",\"&$K43&\",\"&$Q$2&\",\"&$X$2&\",\"&X$2,data_flh_2[],1),VLOOKUP($B286&\",\"&$K43&\",\"&$Q$2&\",\"&$X$2&\",\"&X$2,data_flh_2[],7),X$256)),0)","v":0},null,null,null,null,null,null,null,null,null,null,null,null,{"$f":"IF(AK43,IF(\"FLH,\"&AK$2&\",,\"&$B286&\",\"=VLOOKUP(\"FLH,\"&AK$2&\",,\"&$B286&\",\",data[],1),VLOOKUP(\"FLH,\"&AK$2&\",,\"&$B286&\",\",data[],7),IF($B286&\",\"&$K43&\",\"&$Q$2&\",\"&$X$2&\",\"&AK$2=VLOOKUP($B286&\",\"&$K43&\",\"&$Q$2&\",\"&$X$2&\",\"&AK$2,data_flh_2[],1),VLOOKUP($B286&\",\"&$K43&\",\"&$Q$2&\",\"&$X$2&\",\"&AK$2,data_flh_2[],7),AK$256)),0)","v":5243.5301392061419},null,{"$f":"IF(AM43,IF(\"FLH,\"&AM$2&\",,\"&$B286&\",\"=VLOOKUP(\"FLH,\"&AM$2&\",,\"&$B286&\",\",data[],1),VLOOKUP(\"FLH,\"&AM$2&\",,\"&$B286&\",\",data[],7),IF($B286&\",\"&$K43&\",\"&$Q$2&\",\"&$X$2&\",\"&AM$2=VLOOKUP($B286&\",\"&$K43&\",\"&$Q$2&\",\"&$X$2&\",\"&AM$2,data_flh_2[],1),VLOOKUP($B286&\",\"&$K43&\",\"&$Q$2&\",\"&$X$2&\",\"&AM$2,data_flh_2[],7),AM$256)),0)","v":0},null,null,null,null,null,null,null,null,null,null,null,null,null,null,{"$f":"IF(BB43,IF(\"FLH,\"&BB$2&\",,\"&$B286&\",\"=VLOOKUP(\"FLH,\"&BB$2&\",,\"&$B286&\",\",data[],1),VLOOKUP(\"FLH,\"&BB$2&\",,\"&$B286&\",\",data[],7),IF($B286&\",\"&$K43&\",\"&$Q$2&\",\"&$X$2&\",\"&BB$2=VLOOKUP($B286&\",\"&$K43&\",\"&$Q$2&\",\"&$X$2&\",\"&BB$2,data_flh_2[],1),VLOOKUP($B286&\",\"&$K43&\",\"&$Q$2&\",\"&$X$2&\",\"&BB$2,data_flh_2[],7),BB$256)),0)","v":6657.5999999999995},null,null,{"$f":"IF(BE43,IF(\"FLH,\"&BE$2&\",,\"&$B286&\",\"=VLOOKUP(\"FLH,\"&BE$2&\",,\"&$B286&\",\",data[],1),VLOOKUP(\"FLH,\"&BE$2&\",,\"&$B286&\",\",data[],7),IF($B286&\",\"&$K43&\",\"&$Q$2&\",\"&$X$2&\",\"&BE$2=VLOOKUP($B286&\",\"&$K43&\",\"&$Q$2&\",\"&$X$2&\",\"&BE$2,data_flh_2[],1),VLOOKUP($B286&\",\"&$K43&\",\"&$Q$2&\",\"&$X$2&\",\"&BE$2,data_flh_2[],7),BE$256)),0)","v":0}]
[null,"COL",null,null,{"$f":"IF(\"FLH,\"&E$2&\",,\"&$B287&\",\"=VLOOKUP(\"FLH,\"&E$2&\",,\"&$B287&\",\",data[],1),VLOOKUP(\"FLH,\"&E$2&\",,\"&$B287&\",\",data[],7),0)","v":1300},{"$f":"IF(\"FLH,\"&F$2&\",,\"&$B287&\",\"=VLOOKUP(\"FLH,\"&F$2&\",,\"&$B287&\",\",data[],1),VLOOKUP(\"FLH,\"&F$2&\",,\"&$B287&\",\",data[],7),0)","v":0},{"$f":"IF(\"FLH,\"&G$2&\",,\"&$B287&\",\"=VLOOKUP(\"FLH,\"&G$2&\",,\"&$B287&\",\",data[],1),VLOOKUP(\"FLH,\"&G$2&\",,\"&$B287&\",\",data[],7),0)","v":5503},{"$f":"IF(\"FLH,\"&H$2&\",,\"&$B287&\",\"=VLOOKUP(\"FLH,\"&H$2&\",,\"&$B287&\",\",data[],1),VLOOKUP(\"FLH,\"&H$2&\",,\"&$B287&\",\",data[],7),0)","v":4269},{"$f":"IF(\"FLH,\"&I$2&\",,\"&$B287&\",\"=VLOOKUP(\"FLH,\"&I$2&\",,\"&$B287&\",\",data[],1),VLOOKUP(\"FLH,\"&I$2&\",,\"&$B287&\",\",data[],7),0)","v":4269},null,{"$f":"INDEX(E287:I287,J44)","v":5503},null,null,null,null,null,{"$f":"IF(\"FLH,\"&Q$2&\",,\"&$B287&\",\"=VLOOKUP(\"FLH,\"&Q$2&\",,\"&$B287&\",\",data[],1),VLOOKUP(\"FLH,\"&Q$2&\",,\"&$B287&\",\",data[],7),IF($B287&\",\"&$K44&\",\"&$Q$2&\",\"&$X$2&\",\"&Q$2=VLOOKUP($B287&\",\"&$K44&\",\"&$Q$2&\",\"&$X$2&\",\"&Q$2,data_flh_2[],1),VLOOKUP($B287&\",\"&$K44&\",\"&$Q$2&\",\"&$X$2&\",\"&Q$2,data_flh_2[],7),Q$256))","v":5651.9520625250479},null,null,null,null,null,null,{"$f":"IF(X$2<>\"\",IF(\"FLH,\"&X$2&\",,\"&$B287&\",\"=VLOOKUP(\"FLH,\"&X$2&\",,\"&$B287&\",\",data[],1),VLOOKUP(\"FLH,\"&X$2&\",,\"&$B287&\",\",data[],7),IF($B287&\",\"&$K44&\",\"&$Q$2&\",\"&$X$2&\",\"&X$2=VLOOKUP($B287&\",\"&$K44&\",\"&$Q$2&\",\"&$X$2&\",\"&X$2,data_flh_2[],1),VLOOKUP($B287&\",\"&$K44&\",\"&$Q$2&\",\"&$X$2&\",\"&X$2,data_flh_2[],7),X$256)),0)","v":0},null,null,null,null,null,null,null,null,null,null,null,null,{"$f":"IF(AK44,IF(\"FLH,\"&AK$2&\",,\"&$B287&\",\"=VLOOKUP(\"FLH,\"&AK$2&\",,\"&$B287&\",\",data[],1),VLOOKUP(\"FLH,\"&AK$2&\",,\"&$B287&\",\",data[],7),IF($B287&\",\"&$K44&\",\"&$Q$2&\",\"&$X$2&\",\"&AK$2=VLOOKUP($B287&\",\"&$K44&\",\"&$Q$2&\",\"&$X$2&\",\"&AK$2,data_flh_2[],1),VLOOKUP($B287&\",\"&$K44&\",\"&$Q$2&\",\"&$X$2&\",\"&AK$2,data_flh_2[],7),AK$256)),0)","v":5628.0144927299043},null,{"$f":"IF(AM44,IF(\"FLH,\"&AM$2&\",,\"&$B287&\",\"=VLOOKUP(\"FLH,\"&AM$2&\",,\"&$B287&\",\",data[],1),VLOOKUP(\"FLH,\"&AM$2&\",,\"&$B287&\",\",data[],7),IF($B287&\",\"&$K44&\",\"&$Q$2&\",\"&$X$2&\",\"&AM$2=VLOOKUP($B287&\",\"&$K44&\",\"&$Q$2&\",\"&$X$2&\",\"&AM$2,data_flh_2[],1),VLOOKUP($B287&\",\"&$K44&\",\"&$Q$2&\",\"&$X$2&\",\"&AM$2,data_flh_2[],7),AM$256)),0)","v":0},null,null,null,null,null,null,null,null,null,null,null,null,null,null,{"$f":"IF(BB44,IF(\"FLH,\"&BB$2&\",,\"&$B287&\",\"=VLOOKUP(\"FLH,\"&BB$2&\",,\"&$B287&\",\",data[],1),VLOOKUP(\"FLH,\"&BB$2&\",,\"&$B287&\",\",data[],7),IF($B287&\",\"&$K44&\",\"&$Q$2&\",\"&$X$2&\",\"&BB$2=VLOOKUP($B287&\",\"&$K44&\",\"&$Q$2&\",\"&$X$2&\",\"&BB$2,data_flh_2[],1),VLOOKUP($B287&\",\"&$K44&\",\"&$Q$2&\",\"&$X$2&\",\"&BB$2,data_flh_2[],7),BB$256)),0)","v":6657.5999999999995},null,null,{"$f":"IF(BE44,IF(\"FLH,\"&BE$2&\",,\"&$B287&\",\"=VLOOKUP(\"FLH,\"&BE$2&\",,\"&$B287&\",\",data[],1),VLOOKUP(\"FLH,\"&BE$2&\",,\"&$B287&\",\",data[],7),IF($B287&\",\"&$K44&\",\"&$Q$2&\",\"&$X$2&\",\"&BE$2=VLOOKUP($B287&\",\"&$K44&\",\"&$Q$2&\",\"&$X$2&\",\"&BE$2,data_flh_2[],1),VLOOKUP($B287&\",\"&$K44&\",\"&$Q$2&\",\"&$X$2&\",\"&BE$2,data_flh_2[],7),BE$256)),0)","v":0}]
[null,"CRI",null,null,{"$f":"IF(\"FLH,\"&E$2&\",,\"&$B288&\",\"=VLOOKUP(\"FLH,\"&E$2&\",,\"&$B288&\",\",data[],1),VLOOKUP(\"FLH,\"&E$2&\",,\"&$B288&\",\",data[],7),0)","v":1336.1040323999978},{"$f":"IF(\"FLH,\"&F$2&\",,\"&$B288&\",\"=VLOOKUP(\"FLH,\"&F$2&\",,\"&$B288&\",\",data[],1),VLOOKUP(\"FLH,\"&F$2&\",,\"&$B288&\",\",data[],7),0)","v":0},{"$f":"IF(\"FLH,\"&G$2&\",,\"&$B288&\",\"=VLOOKUP(\"FLH,\"&G$2&\",,\"&$B288&\",\",data[],1),VLOOKUP(\"FLH,\"&G$2&\",,\"&$B288&\",\",data[],7),0)","v":3421.5147964974931},{"$f":"IF(\"FLH,\"&H$2&\",,\"&$B288&\",\"=VLOOKUP(\"FLH,\"&H$2&\",,\"&$B288&\",\",data[],1),VLOOKUP(\"FLH,\"&H$2&\",,\"&$B288&\",\",data[],7),0)","v":2803},{"$f":"IF(\"FLH,\"&I$2&\",,\"&$B288&\",\"=VLOOKUP(\"FLH,\"&I$2&\",,\"&$B288&\",\",data[],1),VLOOKUP(\"FLH,\"&I$2&\",,\"&$B288&\",\",data[],7),0)","v":2191.2308093499951},null,{"$f":"INDEX(E288:I288,J45)","v":3421.5147964974931},null,null,null,null,null,{"$f":"IF(\"FLH,\"&Q$2&\",,\"&$B288&\",\"=VLOOKUP(\"FLH,\"&Q$2&\",,\"&$B288&\",\",data[],1),VLOOKUP(\"FLH,\"&Q$2&\",,\"&$B288&\",\",data[],7),IF($B288&\",\"&$K45&\",\"&$Q$2&\",\"&$X$2&\",\"&Q$2=VLOOKUP($B288&\",\"&$K45&\",\"&$Q$2&\",\"&$X$2&\",\"&Q$2,data_flh_2[],1),VLOOKUP($B288&\",\"&$K45&\",\"&$Q$2&\",\"&$X$2&\",\"&Q$2,data_flh_2[],7),Q$256))","v":3281.4581650174027},null,null,null,null,null,null,{"$f":"IF(X$2<>\"\",IF(\"FLH,\"&X$2&\",,\"&$B288&\",\"=VLOOKUP(\"FLH,\"&X$2&\",,\"&$B288&\",\",data[],1),VLOOKUP(\"FLH,\"&X$2&\",,\"&$B288&\",\",data[],7),IF($B288&\",\"&$K45&\",\"&$Q$2&\",\"&$X$2&\",\"&X$2=VLOOKUP($B288&\",\"&$K45&\",\"&$Q$2&\",\"&$X$2&\",\"&X$2,data_flh_2[],1),VLOOKUP($B288&\",\"&$K45&\",\"&$Q$2&\",\"&$X$2&\",\"&X$2,data_flh_2[],7),X$256)),0)","v":0},null,null,null,null,null,null,null,null,null,null,null,null,{"$f":"IF(AK45,IF(\"FLH,\"&AK$2&\",,\"&$B288&\",\"=VLOOKUP(\"FLH,\"&AK$2&\",,\"&$B288&\",\",data[],1),VLOOKUP(\"FLH,\"&AK$2&\",,\"&$B288&\",\",data[],7),IF($B288&\",\"&$K45&\",\"&$Q$2&\",\"&$X$2&\",\"&AK$2=VLOOKUP($B288&\",\"&$K45&\",\"&$Q$2&\",\"&$X$2&\",\"&AK$2,data_flh_2[],1),VLOOKUP($B288&\",\"&$K45&\",\"&$Q$2&\",\"&$X$2&\",\"&AK$2,data_flh_2[],7),AK$256)),0)","v":3250.4390566726183},null,{"$f":"IF(AM45,IF(\"FLH,\"&AM$2&\",,\"&$B288&\",\"=VLOOKUP(\"FLH,\"&AM$2&\",,\"&$B288&\",\",data[],1),VLOOKUP(\"FLH,\"&AM$2&\",,\"&$B288&\",\",data[],7),IF($B288&\",\"&$K45&\",\"&$Q$2&\",\"&$X$2&\",\"&AM$2=VLOOKUP($B288&\",\"&$K45&\",\"&$Q$2&\",\"&$X$2&\",\"&AM$2,data_flh_2[],1),VLOOKUP($B288&\",\"&$K45&\",\"&$Q$2&\",\"&$X$2&\",\"&AM$2,data_flh_2[],7),AM$256)),0)","v":0},null,null,null,null,null,null,null,null,null,null,null,null,null,null,{"$f":"IF(BB45,IF(\"FLH,\"&BB$2&\",,\"&$B288&\",\"=VLOOKUP(\"FLH,\"&BB$2&\",,\"&$B288&\",\",data[],1),VLOOKUP(\"FLH,\"&BB$2&\",,\"&$B288&\",\",data[],7),IF($B288&\",\"&$K45&\",\"&$Q$2&\",\"&$X$2&\",\"&BB$2=VLOOKUP($B288&\",\"&$K45&\",\"&$Q$2&\",\"&$X$2&\",\"&BB$2,data_flh_2[],1),VLOOKUP($B288&\",\"&$K45&\",\"&$Q$2&\",\"&$X$2&\",\"&BB$2,data_flh_2[],7),BB$256)),0)","v":6657.5999999999995},null,null,{"$f":"IF(BE45,IF(\"FLH,\"&BE$2&\",,\"&$B288&\",\"=VLOOKUP(\"FLH,\"&BE$2&\",,\"&$B288&\",\",data[],1),VLOOKUP(\"FLH,\"&BE$2&\",,\"&$B288&\",\",data[],7),IF($B288&\",\"&$K45&\",\"&$Q$2&\",\"&$X$2&\",\"&BE$2=VLOOKUP($B288&\",\"&$K45&\",\"&$Q$2&\",\"&$X$2&\",\"&BE$2,data_flh_2[],1),VLOOKUP($B288&\",\"&$K45&\",\"&$Q$2&\",\"&$X$2&\",\"&BE$2,data_flh_2[],7),BE$256)),0)","v":0}]
[null,"DNK",null,null,{"$f":"IF(\"FLH,\"&E$2&\",,\"&$B289&\",\"=VLOOKUP(\"FLH,\"&E$2&\",,\"&$B289&\",\",data[],1),VLOOKUP(\"FLH,\"&E$2&\",,\"&$B289&\",\",data[],7),0)","v":957.75962760000073},{"$f":"IF(\"FLH,\"&F$2&\",,\"&$B289&\",\"=VLOOKUP(\"FLH,\"&F$2&\",,\"&$B289&\",\",data[],1),VLOOKUP(\"FLH,\"&F$2&\",,\"&$B289&\",\",data[],7),0)","v":0},{"$f":"IF(\"FLH,\"&G$2&\",,\"&$B289&\",\"=VLOOKUP(\"FLH,\"&G$2&\",,\"&$B289&\",\",data[],1),VLOOKUP(\"FLH,\"&G$2&\",,\"&$B289&\",\",data[],7),0)","v":5197.0268387719998},{"$f":"IF(\"FLH,\"&H$2&\",,\"&$B289&\",\"=VLOOKUP(\"FLH,\"&H$2&\",,\"&$B289&\",\",data[],1),VLOOKUP(\"FLH,\"&H$2&\",,\"&$B289&\",\",data[],7),0)","v":4730.4000000000005},{"$f":"IF(\"FLH,\"&I$2&\",,\"&$B289&\",\"=VLOOKUP(\"FLH,\"&I$2&\",,\"&$B289&\",\",data[],1),VLOOKUP(\"FLH,\"&I$2&\",,\"&$B289&\",\",data[],7),0)","v":4400},null,{"$f":"INDEX(E289:I289,J46)","v":5197.0268387719998},null,null,null,null,null,{"$f":"IF(\"FLH,\"&Q$2&\",,\"&$B289&\",\"=VLOOKUP(\"FLH,\"&Q$2&\",,\"&$B289&\",\",data[],1),VLOOKUP(\"FLH,\"&Q$2&\",,\"&$B289&\",\",data[],7),IF($B289&\",\"&$K46&\",\"&$Q$2&\",\"&$X$2&\",\"&Q$2=VLOOKUP($B289&\",\"&$K46&\",\"&$Q$2&\",\"&$X$2&\",\"&Q$2,data_flh_2[],1),VLOOKUP($B289&\",\"&$K46&\",\"&$Q$2&\",\"&$X$2&\",\"&Q$2,data_flh_2[],7),Q$256))","v":5303.6799306180774},null,null,null,null,null,null,{"$f":"IF(X$2<>\"\",IF(\"FLH,\"&X$2&\",,\"&$B289&\",\"=VLOOKUP(\"FLH,\"&X$2&\",,\"&$B289&\",\",data[],1),VLOOKUP(\"FLH,\"&X$2&\",,\"&$B289&\",\",data[],7),IF($B289&\",\"&$K46&\",\"&$Q$2&\",\"&$X$2&\",\"&X$2=VLOOKUP($B289&\",\"&$K46&\",\"&$Q$2&\",\"&$X$2&\",\"&X$2,data_flh_2[],1),VLOOKUP($B289&\",\"&$K46&\",\"&$Q$2&\",\"&$X$2&\",\"&X$2,data_flh_2[],7),X$256)),0)","v":0},null,null,null,null,null,null,null,null,null,null,null,null,{"$f":"IF(AK46,IF(\"FLH,\"&AK$2&\",,\"&$B289&\",\"=VLOOKUP(\"FLH,\"&AK$2&\",,\"&$B289&\",\",data[],1),VLOOKUP(\"FLH,\"&AK$2&\",,\"&$B289&\",\",data[],7),IF($B289&\",\"&$K46&\",\"&$Q$2&\",\"&$X$2&\",\"&AK$2=VLOOKUP($B289&\",\"&$K46&\",\"&$Q$2&\",\"&$X$2&\",\"&AK$2,data_flh_2[],1),VLOOKUP($B289&\",\"&$K46&\",\"&$Q$2&\",\"&$X$2&\",\"&AK$2,data_flh_2[],7),AK$256)),0)","v":0},null,{"$f":"IF(AM46,IF(\"FLH,\"&AM$2&\",,\"&$B289&\",\"=VLOOKUP(\"FLH,\"&AM$2&\",,\"&$B289&\",\",data[],1),VLOOKUP(\"FLH,\"&AM$2&\",,\"&$B289&\",\",data[],7),IF($B289&\",\"&$K46&\",\"&$Q$2&\",\"&$X$2&\",\"&AM$2=VLOOKUP($B289&\",\"&$K46&\",\"&$Q$2&\",\"&$X$2&\",\"&AM$2,data_flh_2[],1),VLOOKUP($B289&\",\"&$K46&\",\"&$Q$2&\",\"&$X$2&\",\"&AM$2,data_flh_2[],7),AM$256)),0)","v":6657.5999999999995},null,null,null,null,null,null,null,null,null,null,null,null,null,null,{"$f":"IF(BB46,IF(\"FLH,\"&BB$2&\",,\"&$B289&\",\"=VLOOKUP(\"FLH,\"&BB$2&\",,\"&$B289&\",\",data[],1),VLOOKUP(\"FLH,\"&BB$2&\",,\"&$B289&\",\",data[],7),IF($B289&\",\"&$K46&\",\"&$Q$2&\",\"&$X$2&\",\"&BB$2=VLOOKUP($B289&\",\"&$K46&\",\"&$Q$2&\",\"&$X$2&\",\"&BB$2,data_flh_2[],1),VLOOKUP($B289&\",\"&$K46&\",\"&$Q$2&\",\"&$X$2&\",\"&BB$2,data_flh_2[],7),BB$256)),0)","v":0},null,null,{"$f":"IF(BE46,IF(\"FLH,\"&BE$2&\",,\"&$B289&\",\"=VLOOKUP(\"FLH,\"&BE$2&\",,\"&$B289&\",\",data[],1),VLOOKUP(\"FLH,\"&BE$2&\",,\"&$B289&\",\",data[],7),IF($B289&\",\"&$K46&\",\"&$Q$2&\",\"&$X$2&\",\"&BE$2=VLOOKUP($B289&\",\"&$K46&\",\"&$Q$2&\",\"&$X$2&\",\"&BE$2,data_flh_2[],1),VLOOKUP($B289&\",\"&$K46&\",\"&$Q$2&\",\"&$X$2&\",\"&BE$2,data_flh_2[],7),BE$256)),0)","v":0}]
[null,"DZA",null,null,{"$f":"IF(\"FLH,\"&E$2&\",,\"&$B290&\",\"=VLOOKUP(\"FLH,\"&E$2&\",,\"&$B290&\",\",data[],1),VLOOKUP(\"FLH,\"&E$2&\",,\"&$B290&\",\",data[],7),0)","v":1699},{"$f":"IF(\"FLH,\"&F$2&\",,\"&$B290&\",\"=VLOOKUP(\"FLH,\"&F$2&\",,\"&$B290&\",\",data[],1),VLOOKUP(\"FLH,\"&F$2&\",,\"&$B290&\",\",data[],7),0)","v":0},{"$f":"IF(\"FLH,\"&G$2&\",,\"&$B290&\",\"=VLOOKUP(\"FLH,\"&G$2&\",,\"&$B290&\",\",data[],1),VLOOKUP(\"FLH,\"&G$2&\",,\"&$B290&\",\",data[],7),0)","v":4270.91},{"$f":"IF(\"FLH,\"&H$2&\",,\"&$B290&\",\"=VLOOKUP(\"FLH,\"&H$2&\",,\"&$B290&\",\",data[],1),VLOOKUP(\"FLH,\"&H$2&\",,\"&$B290&\",\",data[],7),0)","v":3066},{"$f":"IF(\"FLH,\"&I$2&\",,\"&$B290&\",\"=VLOOKUP(\"FLH,\"&I$2&\",,\"&$B290&\",\",data[],1),VLOOKUP(\"FLH,\"&I$2&\",,\"&$B290&\",\",data[],7),0)","v":2738},null,{"$f":"INDEX(E290:I290,J47)","v":4270.91},null,null,null,null,null,{"$f":"IF(\"FLH,\"&Q$2&\",,\"&$B290&\",\"=VLOOKUP(\"FLH,\"&Q$2&\",,\"&$B290&\",\",data[],1),VLOOKUP(\"FLH,\"&Q$2&\",,\"&$B290&\",\",data[],7),IF($B290&\",\"&$K47&\",\"&$Q$2&\",\"&$X$2&\",\"&Q$2=VLOOKUP($B290&\",\"&$K47&\",\"&$Q$2&\",\"&$X$2&\",\"&Q$2,data_flh_2[],1),VLOOKUP($B290&\",\"&$K47&\",\"&$Q$2&\",\"&$X$2&\",\"&Q$2,data_flh_2[],7),Q$256))","v":2866.15},null,null,null,null,null,null,{"$f":"IF(X$2<>\"\",IF(\"FLH,\"&X$2&\",,\"&$B290&\",\"=VLOOKUP(\"FLH,\"&X$2&\",,\"&$B290&\",\",data[],1),VLOOKUP(\"FLH,\"&X$2&\",,\"&$B290&\",\",data[],7),IF($B290&\",\"&$K47&\",\"&$Q$2&\",\"&$X$2&\",\"&X$2=VLOOKUP($B290&\",\"&$K47&\",\"&$Q$2&\",\"&$X$2&\",\"&X$2,data_flh_2[],1),VLOOKUP($B290&\",\"&$K47&\",\"&$Q$2&\",\"&$X$2&\",\"&X$2,data_flh_2[],7),X$256)),0)","v":0},null,null,null,null,null,null,null,null,null,null,null,null,{"$f":"IF(AK47,IF(\"FLH,\"&AK$2&\",,\"&$B290&\",\"=VLOOKUP(\"FLH,\"&AK$2&\",,\"&$B290&\",\",data[],1),VLOOKUP(\"FLH,\"&AK$2&\",,\"&$B290&\",\",data[],7),IF($B290&\",\"&$K47&\",\"&$Q$2&\",\"&$X$2&\",\"&AK$2=VLOOKUP($B290&\",\"&$K47&\",\"&$Q$2&\",\"&$X$2&\",\"&AK$2,data_flh_2[],1),VLOOKUP($B290&\",\"&$K47&\",\"&$Q$2&\",\"&$X$2&\",\"&AK$2,data_flh_2[],7),AK$256)),0)","v":0},null,{"$f":"IF(AM47,IF(\"FLH,\"&AM$2&\",,\"&$B290&\",\"=VLOOKUP(\"FLH,\"&AM$2&\",,\"&$B290&\",\",data[],1),VLOOKUP(\"FLH,\"&AM$2&\",,\"&$B290&\",\",data[],7),IF($B290&\",\"&$K47&\",\"&$Q$2&\",\"&$X$2&\",\"&AM$2=VLOOKUP($B290&\",\"&$K47&\",\"&$Q$2&\",\"&$X$2&\",\"&AM$2,data_flh_2[],1),VLOOKUP($B290&\",\"&$K47&\",\"&$Q$2&\",\"&$X$2&\",\"&AM$2,data_flh_2[],7),AM$256)),0)","v":6657.5999999999995},null,null,null,null,null,null,null,null,null,null,null,null,null,null,{"$f":"IF(BB47,IF(\"FLH,\"&BB$2&\",,\"&$B290&\",\"=VLOOKUP(\"FLH,\"&BB$2&\",,\"&$B290&\",\",data[],1),VLOOKUP(\"FLH,\"&BB$2&\",,\"&$B290&\",\",data[],7),IF($B290&\",\"&$K47&\",\"&$Q$2&\",\"&$X$2&\",\"&BB$2=VLOOKUP($B290&\",\"&$K47&\",\"&$Q$2&\",\"&$X$2&\",\"&BB$2,data_flh_2[],1),VLOOKUP($B290&\",\"&$K47&\",\"&$Q$2&\",\"&$X$2&\",\"&BB$2,data_flh_2[],7),BB$256)),0)","v":0},null,null,{"$f":"IF(BE47,IF(\"FLH,\"&BE$2&\",,\"&$B290&\",\"=VLOOKUP(\"FLH,\"&BE$2&\",,\"&$B290&\",\",data[],1),VLOOKUP(\"FLH,\"&BE$2&\",,\"&$B290&\",\",data[],7),IF($B290&\",\"&$K47&\",\"&$Q$2&\",\"&$X$2&\",\"&BE$2=VLOOKUP($B290&\",\"&$K47&\",\"&$Q$2&\",\"&$X$2&\",\"&BE$2,data_flh_2[],1),VLOOKUP($B290&\",\"&$K47&\",\"&$Q$2&\",\"&$X$2&\",\"&BE$2,data_flh_2[],7),BE$256)),0)","v":0}]
[null,"EGY",null,null,{"$f":"IF(\"FLH,\"&E$2&\",,\"&$B291&\",\"=VLOOKUP(\"FLH,\"&E$2&\",,\"&$B291&\",\",data[],1),VLOOKUP(\"FLH,\"&E$2&\",,\"&$B291&\",\",data[],7),0)","v":1744},{"$f":"IF(\"FLH,\"&F$2&\",,\"&$B291&\",\"=VLOOKUP(\"FLH,\"&F$2&\",,\"&$B291&\",\",data[],1),VLOOKUP(\"FLH,\"&F$2&\",,\"&$B291&\",\",data[],7),0)","v":0},{"$f":"IF(\"FLH,\"&G$2&\",,\"&$B291&\",\"=VLOOKUP(\"FLH,\"&G$2&\",,\"&$B291&\",\",data[],1),VLOOKUP(\"FLH,\"&G$2&\",,\"&$B291&\",\",data[],7),0)","v":4644.3599999999997},{"$f":"IF(\"FLH,\"&H$2&\",,\"&$B291&\",\"=VLOOKUP(\"FLH,\"&H$2&\",,\"&$B291&\",\",data[],1),VLOOKUP(\"FLH,\"&H$2&\",,\"&$B291&\",\",data[],7),0)","v":3066},{"$f":"IF(\"FLH,\"&I$2&\",,\"&$B291&\",\"=VLOOKUP(\"FLH,\"&I$2&\",,\"&$B291&\",\",data[],1),VLOOKUP(\"FLH,\"&I$2&\",,\"&$B291&\",\",data[],7),0)","v":3045},null,{"$f":"INDEX(E291:I291,J48)","v":4644.3599999999997},null,null,null,null,null,{"$f":"IF(\"FLH,\"&Q$2&\",,\"&$B291&\",\"=VLOOKUP(\"FLH,\"&Q$2&\",,\"&$B291&\",\",data[],1),VLOOKUP(\"FLH,\"&Q$2&\",,\"&$B291&\",\",data[],7),IF($B291&\",\"&$K48&\",\"&$Q$2&\",\"&$X$2&\",\"&Q$2=VLOOKUP($B291&\",\"&$K48&\",\"&$Q$2&\",\"&$X$2&\",\"&Q$2,data_flh_2[],1),VLOOKUP($B291&\",\"&$K48&\",\"&$Q$2&\",\"&$X$2&\",\"&Q$2,data_flh_2[],7),Q$256))","v":4607.0249999999996},null,null,null,null,null,null,{"$f":"IF(X$2<>\"\",IF(\"FLH,\"&X$2&\",,\"&$B291&\",\"=VLOOKUP(\"FLH,\"&X$2&\",,\"&$B291&\",\",data[],1),VLOOKUP(\"FLH,\"&X$2&\",,\"&$B291&\",\",data[],7),IF($B291&\",\"&$K48&\",\"&$Q$2&\",\"&$X$2&\",\"&X$2=VLOOKUP($B291&\",\"&$K48&\",\"&$Q$2&\",\"&$X$2&\",\"&X$2,data_flh_2[],1),VLOOKUP($B291&\",\"&$K48&\",\"&$Q$2&\",\"&$X$2&\",\"&X$2,data_flh_2[],7),X$256)),0)","v":0},null,null,null,null,null,null,null,null,null,null,null,null,{"$f":"IF(AK48,IF(\"FLH,\"&AK$2&\",,\"&$B291&\",\"=VLOOKUP(\"FLH,\"&AK$2&\",,\"&$B291&\",\",data[],1),VLOOKUP(\"FLH,\"&AK$2&\",,\"&$B291&\",\",data[],7),IF($B291&\",\"&$K48&\",\"&$Q$2&\",\"&$X$2&\",\"&AK$2=VLOOKUP($B291&\",\"&$K48&\",\"&$Q$2&\",\"&$X$2&\",\"&AK$2,data_flh_2[],1),VLOOKUP($B291&\",\"&$K48&\",\"&$Q$2&\",\"&$X$2&\",\"&AK$2,data_flh_2[],7),AK$256)),0)","v":0},null,{"$f":"IF(AM48,IF(\"FLH,\"&AM$2&\",,\"&$B291&\",\"=VLOOKUP(\"FLH,\"&AM$2&\",,\"&$B291&\",\",data[],1),VLOOKUP(\"FLH,\"&AM$2&\",,\"&$B291&\",\",data[],7),IF($B291&\",\"&$K48&\",\"&$Q$2&\",\"&$X$2&\",\"&AM$2=VLOOKUP($B291&\",\"&$K48&\",\"&$Q$2&\",\"&$X$2&\",\"&AM$2,data_flh_2[],1),VLOOKUP($B291&\",\"&$K48&\",\"&$Q$2&\",\"&$X$2&\",\"&AM$2,data_flh_2[],7),AM$256)),0)","v":6657.5999999999995},null,null,null,null,null,null,null,null,null,null,null,null,null,null,{"$f":"IF(BB48,IF(\"FLH,\"&BB$2&\",,\"&$B291&\",\"=VLOOKUP(\"FLH,\"&BB$2&\",,\"&$B291&\",\",data[],1),VLOOKUP(\"FLH,\"&BB$2&\",,\"&$B291&\",\",data[],7),IF($B291&\",\"&$K48&\",\"&$Q$2&\",\"&$X$2&\",\"&BB$2=VLOOKUP($B291&\",\"&$K48&\",\"&$Q$2&\",\"&$X$2&\",\"&BB$2,data_flh_2[],1),VLOOKUP($B291&\",\"&$K48&\",\"&$Q$2&\",\"&$X$2&\",\"&BB$2,data_flh_2[],7),BB$256)),0)","v":0},null,null,{"$f":"IF(BE48,IF(\"FLH,\"&BE$2&\",,\"&$B291&\",\"=VLOOKUP(\"FLH,\"&BE$2&\",,\"&$B291&\",\",data[],1),VLOOKUP(\"FLH,\"&BE$2&\",,\"&$B291&\",\",data[],7),IF($B291&\",\"&$K48&\",\"&$Q$2&\",\"&$X$2&\",\"&BE$2=VLOOKUP($B291&\",\"&$K48&\",\"&$Q$2&\",\"&$X$2&\",\"&BE$2,data_flh_2[],1),VLOOKUP($B291&\",\"&$K48&\",\"&$Q$2&\",\"&$X$2&\",\"&BE$2,data_flh_2[],7),BE$256)),0)","v":0}]
[null,"ESP",null,null,{"$f":"IF(\"FLH,\"&E$2&\",,\"&$B292&\",\"=VLOOKUP(\"FLH,\"&E$2&\",,\"&$B292&\",\",data[],1),VLOOKUP(\"FLH,\"&E$2&\",,\"&$B292&\",\",data[],7),0)","v":1567.2650796000021},{"$f":"IF(\"FLH,\"&F$2&\",,\"&$B292&\",\"=VLOOKUP(\"FLH,\"&F$2&\",,\"&$B292&\",\",data[],1),VLOOKUP(\"FLH,\"&F$2&\",,\"&$B292&\",\",data[],7),0)","v":0},{"$f":"IF(\"FLH,\"&G$2&\",,\"&$B292&\",\"=VLOOKUP(\"FLH,\"&G$2&\",,\"&$B292&\",\",data[],1),VLOOKUP(\"FLH,\"&G$2&\",,\"&$B292&\",\",data[],7),0)","v":5668.5234185745076},{"$f":"IF(\"FLH,\"&H$2&\",,\"&$B292&\",\"=VLOOKUP(\"FLH,\"&H$2&\",,\"&$B292&\",\",data[],1),VLOOKUP(\"FLH,\"&H$2&\",,\"&$B292&\",\",data[],7),0)","v":4277},{"$f":"IF(\"FLH,\"&I$2&\",,\"&$B292&\",\"=VLOOKUP(\"FLH,\"&I$2&\",,\"&$B292&\",\",data[],1),VLOOKUP(\"FLH,\"&I$2&\",,\"&$B292&\",\",data[],7),0)","v":4276.5734962500064},null,{"$f":"INDEX(E292:I292,J49)","v":5668.5234185745076},null,null,null,null,null,{"$f":"IF(\"FLH,\"&Q$2&\",,\"&$B292&\",\"=VLOOKUP(\"FLH,\"&Q$2&\",,\"&$B292&\",\",data[],1),VLOOKUP(\"FLH,\"&Q$2&\",,\"&$B292&\",\",data[],7),IF($B292&\",\"&$K49&\",\"&$Q$2&\",\"&$X$2&\",\"&Q$2=VLOOKUP($B292&\",\"&$K49&\",\"&$Q$2&\",\"&$X$2&\",\"&Q$2,data_flh_2[],1),VLOOKUP($B292&\",\"&$K49&\",\"&$Q$2&\",\"&$X$2&\",\"&Q$2,data_flh_2[],7),Q$256))","v":5840.6915776139895},null,null,null,null,null,null,{"$f":"IF(X$2<>\"\",IF(\"FLH,\"&X$2&\",,\"&$B292&\",\"=VLOOKUP(\"FLH,\"&X$2&\",,\"&$B292&\",\",data[],1),VLOOKUP(\"FLH,\"&X$2&\",,\"&$B292&\",\",data[],7),IF($B292&\",\"&$K49&\",\"&$Q$2&\",\"&$X$2&\",\"&X$2=VLOOKUP($B292&\",\"&$K49&\",\"&$Q$2&\",\"&$X$2&\",\"&X$2,data_flh_2[],1),VLOOKUP($B292&\",\"&$K49&\",\"&$Q$2&\",\"&$X$2&\",\"&X$2,data_flh_2[],7),X$256)),0)","v":0},null,null,null,null,null,null,null,null,null,null,null,null,{"$f":"IF(AK49,IF(\"FLH,\"&AK$2&\",,\"&$B292&\",\"=VLOOKUP(\"FLH,\"&AK$2&\",,\"&$B292&\",\",data[],1),VLOOKUP(\"FLH,\"&AK$2&\",,\"&$B292&\",\",data[],7),IF($B292&\",\"&$K49&\",\"&$Q$2&\",\"&$X$2&\",\"&AK$2=VLOOKUP($B292&\",\"&$K49&\",\"&$Q$2&\",\"&$X$2&\",\"&AK$2,data_flh_2[],1),VLOOKUP($B292&\",\"&$K49&\",\"&$Q$2&\",\"&$X$2&\",\"&AK$2,data_flh_2[],7),AK$256)),0)","v":0},null,{"$f":"IF(AM49,IF(\"FLH,\"&AM$2&\",,\"&$B292&\",\"=VLOOKUP(\"FLH,\"&AM$2&\",,\"&$B292&\",\",data[],1),VLOOKUP(\"FLH,\"&AM$2&\",,\"&$B292&\",\",data[],7),IF($B292&\",\"&$K49&\",\"&$Q$2&\",\"&$X$2&\",\"&AM$2=VLOOKUP($B292&\",\"&$K49&\",\"&$Q$2&\",\"&$X$2&\",\"&AM$2,data_flh_2[],1),VLOOKUP($B292&\",\"&$K49&\",\"&$Q$2&\",\"&$X$2&\",\"&AM$2,data_flh_2[],7),AM$256)),0)","v":6657.5999999999995},null,null,null,null,null,null,null,null,null,null,null,null,null,null,{"$f":"IF(BB49,IF(\"FLH,\"&BB$2&\",,\"&$B292&\",\"=VLOOKUP(\"FLH,\"&BB$2&\",,\"&$B292&\",\",data[],1),VLOOKUP(\"FLH,\"&BB$2&\",,\"&$B292&\",\",data[],7),IF($B292&\",\"&$K49&\",\"&$Q$2&\",\"&$X$2&\",\"&BB$2=VLOOKUP($B292&\",\"&$K49&\",\"&$Q$2&\",\"&$X$2&\",\"&BB$2,data_flh_2[],1),VLOOKUP($B292&\",\"&$K49&\",\"&$Q$2&\",\"&$X$2&\",\"&BB$2,data_flh_2[],7),BB$256)),0)","v":0},null,null,{"$f":"IF(BE49,IF(\"FLH,\"&BE$2&\",,\"&$B292&\",\"=VLOOKUP(\"FLH,\"&BE$2&\",,\"&$B292&\",\",data[],1),VLOOKUP(\"FLH,\"&BE$2&\",,\"&$B292&\",\",data[],7),IF($B292&\",\"&$K49&\",\"&$Q$2&\",\"&$X$2&\",\"&BE$2=VLOOKUP($B292&\",\"&$K49&\",\"&$Q$2&\",\"&$X$2&\",\"&BE$2,data_flh_2[],1),VLOOKUP($B292&\",\"&$K49&\",\"&$Q$2&\",\"&$X$2&\",\"&BE$2,data_flh_2[],7),BE$256)),0)","v":0}]
[null,"IDN",null,null,{"$f":"IF(\"FLH,\"&E$2&\",,\"&$B293&\",\"=VLOOKUP(\"FLH,\"&E$2&\",,\"&$B293&\",\",data[],1),VLOOKUP(\"FLH,\"&E$2&\",,\"&$B293&\",\",data[],7),0)","v":1506},{"$f":"IF(\"FLH,\"&F$2&\",,\"&$B293&\",\"=VLOOKUP(\"FLH,\"&F$2&\",,\"&$B293&\",\",data[],1),VLOOKUP(\"FLH,\"&F$2&\",,\"&$B293&\",\",data[],7),0)","v":0},{"$f":"IF(\"FLH,\"&G$2&\",,\"&$B293&\",\"=VLOOKUP(\"FLH,\"&G$2&\",,\"&$B293&\",\",data[],1),VLOOKUP(\"FLH,\"&G$2&\",,\"&$B293&\",\",data[],7),0)","v":2496.284437136494},{"$f":"IF(\"FLH,\"&H$2&\",,\"&$B293&\",\"=VLOOKUP(\"FLH,\"&H$2&\",,\"&$B293&\",\",data[],1),VLOOKUP(\"FLH,\"&H$2&\",,\"&$B293&\",\",data[],7),0)","v":2453},{"$f":"IF(\"FLH,\"&I$2&\",,\"&$B293&\",\"=VLOOKUP(\"FLH,\"&I$2&\",,\"&$B293&\",\",data[],1),VLOOKUP(\"FLH,\"&I$2&\",,\"&$B293&\",\",data[],7),0)","v":1150.7783336499949},null,{"$f":"INDEX(E293:I293,J50)","v":2496.284437136494},null,null,null,null,null,{"$f":"IF(\"FLH,\"&Q$2&\",,\"&$B293&\",\"=VLOOKUP(\"FLH,\"&Q$2&\",,\"&$B293&\",\",data[],1),VLOOKUP(\"FLH,\"&Q$2&\",,\"&$B293&\",\",data[],7),IF($B293&\",\"&$K50&\",\"&$Q$2&\",\"&$X$2&\",\"&Q$2=VLOOKUP($B293&\",\"&$K50&\",\"&$Q$2&\",\"&$X$2&\",\"&Q$2,data_flh_2[],1),VLOOKUP($B293&\",\"&$K50&\",\"&$Q$2&\",\"&$X$2&\",\"&Q$2,data_flh_2[],7),Q$256))","v":2371.4702152796694},null,null,null,null,null,null,{"$f":"IF(X$2<>\"\",IF(\"FLH,\"&X$2&\",,\"&$B293&\",\"=VLOOKUP(\"FLH,\"&X$2&\",,\"&$B293&\",\",data[],1),VLOOKUP(\"FLH,\"&X$2&\",,\"&$B293&\",\",data[],7),IF($B293&\",\"&$K50&\",\"&$Q$2&\",\"&$X$2&\",\"&X$2=VLOOKUP($B293&\",\"&$K50&\",\"&$Q$2&\",\"&$X$2&\",\"&X$2,data_flh_2[],1),VLOOKUP($B293&\",\"&$K50&\",\"&$Q$2&\",\"&$X$2&\",\"&X$2,data_flh_2[],7),X$256)),0)","v":0},null,null,null,null,null,null,null,null,null,null,null,null,{"$f":"IF(AK50,IF(\"FLH,\"&AK$2&\",,\"&$B293&\",\"=VLOOKUP(\"FLH,\"&AK$2&\",,\"&$B293&\",\",data[],1),VLOOKUP(\"FLH,\"&AK$2&\",,\"&$B293&\",\",data[],7),IF($B293&\",\"&$K50&\",\"&$Q$2&\",\"&$X$2&\",\"&AK$2=VLOOKUP($B293&\",\"&$K50&\",\"&$Q$2&\",\"&$X$2&\",\"&AK$2,data_flh_2[],1),VLOOKUP($B293&\",\"&$K50&\",\"&$Q$2&\",\"&$X$2&\",\"&AK$2,data_flh_2[],7),AK$256)),0)","v":2371.4702152796694},null,{"$f":"IF(AM50,IF(\"FLH,\"&AM$2&\",,\"&$B293&\",\"=VLOOKUP(\"FLH,\"&AM$2&\",,\"&$B293&\",\",data[],1),VLOOKUP(\"FLH,\"&AM$2&\",,\"&$B293&\",\",data[],7),IF($B293&\",\"&$K50&\",\"&$Q$2&\",\"&$X$2&\",\"&AM$2=VLOOKUP($B293&\",\"&$K50&\",\"&$Q$2&\",\"&$X$2&\",\"&AM$2,data_flh_2[],1),VLOOKUP($B293&\",\"&$K50&\",\"&$Q$2&\",\"&$X$2&\",\"&AM$2,data_flh_2[],7),AM$256)),0)","v":0},null,null,null,null,null,null,null,null,null,null,null,null,null,null,{"$f":"IF(BB50,IF(\"FLH,\"&BB$2&\",,\"&$B293&\",\"=VLOOKUP(\"FLH,\"&BB$2&\",,\"&$B293&\",\",data[],1),VLOOKUP(\"FLH,\"&BB$2&\",,\"&$B293&\",\",data[],7),IF($B293&\",\"&$K50&\",\"&$Q$2&\",\"&$X$2&\",\"&BB$2=VLOOKUP($B293&\",\"&$K50&\",\"&$Q$2&\",\"&$X$2&\",\"&BB$2,data_flh_2[],1),VLOOKUP($B293&\",\"&$K50&\",\"&$Q$2&\",\"&$X$2&\",\"&BB$2,data_flh_2[],7),BB$256)),0)","v":6657.5999999999995},null,null,{"$f":"IF(BE50,IF(\"FLH,\"&BE$2&\",,\"&$B293&\",\"=VLOOKUP(\"FLH,\"&BE$2&\",,\"&$B293&\",\",data[],1),VLOOKUP(\"FLH,\"&BE$2&\",,\"&$B293&\",\",data[],7),IF($B293&\",\"&$K50&\",\"&$Q$2&\",\"&$X$2&\",\"&BE$2=VLOOKUP($B293&\",\"&$K50&\",\"&$Q$2&\",\"&$X$2&\",\"&BE$2,data_flh_2[],1),VLOOKUP($B293&\",\"&$K50&\",\"&$Q$2&\",\"&$X$2&\",\"&BE$2,data_flh_2[],7),BE$256)),0)","v":0}]
[null,"IND",null,null,{"$f":"IF(\"FLH,\"&E$2&\",,\"&$B294&\",\"=VLOOKUP(\"FLH,\"&E$2&\",,\"&$B294&\",\",data[],1),VLOOKUP(\"FLH,\"&E$2&\",,\"&$B294&\",\",data[],7),0)","v":1562},{"$f":"IF(\"FLH,\"&F$2&\",,\"&$B294&\",\"=VLOOKUP(\"FLH,\"&F$2&\",,\"&$B294&\",\",data[],1),VLOOKUP(\"FLH,\"&F$2&\",,\"&$B294&\",\",data[],7),0)","v":0},{"$f":"IF(\"FLH,\"&G$2&\",,\"&$B294&\",\"=VLOOKUP(\"FLH,\"&G$2&\",,\"&$B294&\",\",data[],1),VLOOKUP(\"FLH,\"&G$2&\",,\"&$B294&\",\",data[],7),0)","v":4890.74},{"$f":"IF(\"FLH,\"&H$2&\",,\"&$B294&\",\"=VLOOKUP(\"FLH,\"&H$2&\",,\"&$B294&\",\",data[],1),VLOOKUP(\"FLH,\"&H$2&\",,\"&$B294&\",\",data[],7),0)","v":3567},{"$f":"IF(\"FLH,\"&I$2&\",,\"&$B294&\",\"=VLOOKUP(\"FLH,\"&I$2&\",,\"&$B294&\",\",data[],1),VLOOKUP(\"FLH,\"&I$2&\",,\"&$B294&\",\",data[],7),0)","v":3567},null,{"$f":"INDEX(E294:I294,J51)","v":4890.74},null,null,null,null,null,{"$f":"IF(\"FLH,\"&Q$2&\",,\"&$B294&\",\"=VLOOKUP(\"FLH,\"&Q$2&\",,\"&$B294&\",\",data[],1),VLOOKUP(\"FLH,\"&Q$2&\",,\"&$B294&\",\",data[],7),IF($B294&\",\"&$K51&\",\"&$Q$2&\",\"&$X$2&\",\"&Q$2=VLOOKUP($B294&\",\"&$K51&\",\"&$Q$2&\",\"&$X$2&\",\"&Q$2,data_flh_2[],1),VLOOKUP($B294&\",\"&$K51&\",\"&$Q$2&\",\"&$X$2&\",\"&Q$2,data_flh_2[],7),Q$256))","v":5413.0999999999995},null,null,null,null,null,null,{"$f":"IF(X$2<>\"\",IF(\"FLH,\"&X$2&\",,\"&$B294&\",\"=VLOOKUP(\"FLH,\"&X$2&\",,\"&$B294&\",\",data[],1),VLOOKUP(\"FLH,\"&X$2&\",,\"&$B294&\",\",data[],7),IF($B294&\",\"&$K51&\",\"&$Q$2&\",\"&$X$2&\",\"&X$2=VLOOKUP($B294&\",\"&$K51&\",\"&$Q$2&\",\"&$X$2&\",\"&X$2,data_flh_2[],1),VLOOKUP($B294&\",\"&$K51&\",\"&$Q$2&\",\"&$X$2&\",\"&X$2,data_flh_2[],7),X$256)),0)","v":0},null,null,null,null,null,null,null,null,null,null,null,null,{"$f":"IF(AK51,IF(\"FLH,\"&AK$2&\",,\"&$B294&\",\"=VLOOKUP(\"FLH,\"&AK$2&\",,\"&$B294&\",\",data[],1),VLOOKUP(\"FLH,\"&AK$2&\",,\"&$B294&\",\",data[],7),IF($B294&\",\"&$K51&\",\"&$Q$2&\",\"&$X$2&\",\"&AK$2=VLOOKUP($B294&\",\"&$K51&\",\"&$Q$2&\",\"&$X$2&\",\"&AK$2,data_flh_2[],1),VLOOKUP($B294&\",\"&$K51&\",\"&$Q$2&\",\"&$X$2&\",\"&AK$2,data_flh_2[],7),AK$256)),0)","v":5510},null,{"$f":"IF(AM51,IF(\"FLH,\"&AM$2&\",,\"&$B294&\",\"=VLOOKUP(\"FLH,\"&AM$2&\",,\"&$B294&\",\",data[],1),VLOOKUP(\"FLH,\"&AM$2&\",,\"&$B294&\",\",data[],7),IF($B294&\",\"&$K51&\",\"&$Q$2&\",\"&$X$2&\",\"&AM$2=VLOOKUP($B294&\",\"&$K51&\",\"&$Q$2&\",\"&$X$2&\",\"&AM$2,data_flh_2[],1),VLOOKUP($B294&\",\"&$K51&\",\"&$Q$2&\",\"&$X$2&\",\"&AM$2,data_flh_2[],7),AM$256)),0)","v":0},null,null,null,null,null,null,null,null,null,null,null,null,null,null,{"$f":"IF(BB51,IF(\"FLH,\"&BB$2&\",,\"&$B294&\",\"=VLOOKUP(\"FLH,\"&BB$2&\",,\"&$B294&\",\",data[],1),VLOOKUP(\"FLH,\"&BB$2&\",,\"&$B294&\",\",data[],7),IF($B294&\",\"&$K51&\",\"&$Q$2&\",\"&$X$2&\",\"&BB$2=VLOOKUP($B294&\",\"&$K51&\",\"&$Q$2&\",\"&$X$2&\",\"&BB$2,data_flh_2[],1),VLOOKUP($B294&\",\"&$K51&\",\"&$Q$2&\",\"&$X$2&\",\"&BB$2,data_flh_2[],7),BB$256)),0)","v":6657.5999999999995},null,null,{"$f":"IF(BE51,IF(\"FLH,\"&BE$2&\",,\"&$B294&\",\"=VLOOKUP(\"FLH,\"&BE$2&\",,\"&$B294&\",\",data[],1),VLOOKUP(\"FLH,\"&BE$2&\",,\"&$B294&\",\",data[],7),IF($B294&\",\"&$K51&\",\"&$Q$2&\",\"&$X$2&\",\"&BE$2=VLOOKUP($B294&\",\"&$K51&\",\"&$Q$2&\",\"&$X$2&\",\"&BE$2,data_flh_2[],1),VLOOKUP($B294&\",\"&$K51&\",\"&$Q$2&\",\"&$X$2&\",\"&BE$2,data_flh_2[],7),BE$256)),0)","v":0}]
[null,"JOR",null,null,{"$f":"IF(\"FLH,\"&E$2&\",,\"&$B295&\",\"=VLOOKUP(\"FLH,\"&E$2&\",,\"&$B295&\",\",data[],1),VLOOKUP(\"FLH,\"&E$2&\",,\"&$B295&\",\",data[],7),0)","v":1792},{"$f":"IF(\"FLH,\"&F$2&\",,\"&$B295&\",\"=VLOOKUP(\"FLH,\"&F$2&\",,\"&$B295&\",\",data[],1),VLOOKUP(\"FLH,\"&F$2&\",,\"&$B295&\",\",data[],7),0)","v":0},{"$f":"IF(\"FLH,\"&G$2&\",,\"&$B295&\",\"=VLOOKUP(\"FLH,\"&G$2&\",,\"&$B295&\",\",data[],1),VLOOKUP(\"FLH,\"&G$2&\",,\"&$B295&\",\",data[],7),0)","v":2376.5},{"$f":"IF(\"FLH,\"&H$2&\",,\"&$B295&\",\"=VLOOKUP(\"FLH,\"&H$2&\",,\"&$B295&\",\",data[],1),VLOOKUP(\"FLH,\"&H$2&\",,\"&$B295&\",\",data[],7),0)","v":0},{"$f":"IF(\"FLH,\"&I$2&\",,\"&$B295&\",\"=VLOOKUP(\"FLH,\"&I$2&\",,\"&$B295&\",\",data[],1),VLOOKUP(\"FLH,\"&I$2&\",,\"&$B295&\",\",data[],7),0)","v":667},null,{"$f":"INDEX(E295:I295,J52)","v":2376.5},null,null,null,null,null,{"$f":"IF(\"FLH,\"&Q$2&\",,\"&$B295&\",\"=VLOOKUP(\"FLH,\"&Q$2&\",,\"&$B295&\",\",data[],1),VLOOKUP(\"FLH,\"&Q$2&\",,\"&$B295&\",\",data[],7),IF($B295&\",\"&$K52&\",\"&$Q$2&\",\"&$X$2&\",\"&Q$2=VLOOKUP($B295&\",\"&$K52&\",\"&$Q$2&\",\"&$X$2&\",\"&Q$2,data_flh_2[],1),VLOOKUP($B295&\",\"&$K52&\",\"&$Q$2&\",\"&$X$2&\",\"&Q$2,data_flh_2[],7),Q$256))","v":2752.15},null,null,null,null,null,null,{"$f":"IF(X$2<>\"\",IF(\"FLH,\"&X$2&\",,\"&$B295&\",\"=VLOOKUP(\"FLH,\"&X$2&\",,\"&$B295&\",\",data[],1),VLOOKUP(\"FLH,\"&X$2&\",,\"&$B295&\",\",data[],7),IF($B295&\",\"&$K52&\",\"&$Q$2&\",\"&$X$2&\",\"&X$2=VLOOKUP($B295&\",\"&$K52&\",\"&$Q$2&\",\"&$X$2&\",\"&X$2,data_flh_2[],1),VLOOKUP($B295&\",\"&$K52&\",\"&$Q$2&\",\"&$X$2&\",\"&X$2,data_flh_2[],7),X$256)),0)","v":0},null,null,null,null,null,null,null,null,null,null,null,null,{"$f":"IF(AK52,IF(\"FLH,\"&AK$2&\",,\"&$B295&\",\"=VLOOKUP(\"FLH,\"&AK$2&\",,\"&$B295&\",\",data[],1),VLOOKUP(\"FLH,\"&AK$2&\",,\"&$B295&\",\",data[],7),IF($B295&\",\"&$K52&\",\"&$Q$2&\",\"&$X$2&\",\"&AK$2=VLOOKUP($B295&\",\"&$K52&\",\"&$Q$2&\",\"&$X$2&\",\"&AK$2,data_flh_2[],1),VLOOKUP($B295&\",\"&$K52&\",\"&$Q$2&\",\"&$X$2&\",\"&AK$2,data_flh_2[],7),AK$256)),0)","v":0},null,{"$f":"IF(AM52,IF(\"FLH,\"&AM$2&\",,\"&$B295&\",\"=VLOOKUP(\"FLH,\"&AM$2&\",,\"&$B295&\",\",data[],1),VLOOKUP(\"FLH,\"&AM$2&\",,\"&$B295&\",\",data[],7),IF($B295&\",\"&$K52&\",\"&$Q$2&\",\"&$X$2&\",\"&AM$2=VLOOKUP($B295&\",\"&$K52&\",\"&$Q$2&\",\"&$X$2&\",\"&AM$2,data_flh_2[],1),VLOOKUP($B295&\",\"&$K52&\",\"&$Q$2&\",\"&$X$2&\",\"&AM$2,data_flh_2[],7),AM$256)),0)","v":6657.5999999999995},null,null,null,null,null,null,null,null,null,null,null,null,null,null,{"$f":"IF(BB52,IF(\"FLH,\"&BB$2&\",,\"&$B295&\",\"=VLOOKUP(\"FLH,\"&BB$2&\",,\"&$B295&\",\",data[],1),VLOOKUP(\"FLH,\"&BB$2&\",,\"&$B295&\",\",data[],7),IF($B295&\",\"&$K52&\",\"&$Q$2&\",\"&$X$2&\",\"&BB$2=VLOOKUP($B295&\",\"&$K52&\",\"&$Q$2&\",\"&$X$2&\",\"&BB$2,data_flh_2[],1),VLOOKUP($B295&\",\"&$K52&\",\"&$Q$2&\",\"&$X$2&\",\"&BB$2,data_flh_2[],7),BB$256)),0)","v":0},null,null,{"$f":"IF(BE52,IF(\"FLH,\"&BE$2&\",,\"&$B295&\",\"=VLOOKUP(\"FLH,\"&BE$2&\",,\"&$B295&\",\",data[],1),VLOOKUP(\"FLH,\"&BE$2&\",,\"&$B295&\",\",data[],7),IF($B295&\",\"&$K52&\",\"&$Q$2&\",\"&$X$2&\",\"&BE$2=VLOOKUP($B295&\",\"&$K52&\",\"&$Q$2&\",\"&$X$2&\",\"&BE$2,data_flh_2[],1),VLOOKUP($B295&\",\"&$K52&\",\"&$Q$2&\",\"&$X$2&\",\"&BE$2,data_flh_2[],7),BE$256)),0)","v":0}]
[null,"KAZ",null,null,{"$f":"IF(\"FLH,\"&E$2&\",,\"&$B296&\",\"=VLOOKUP(\"FLH,\"&E$2&\",,\"&$B296&\",\",data[],1),VLOOKUP(\"FLH,\"&E$2&\",,\"&$B296&\",\",data[],7),0)","v":1425},{"$f":"IF(\"FLH,\"&F$2&\",,\"&$B296&\",\"=VLOOKUP(\"FLH,\"&F$2&\",,\"&$B296&\",\",data[],1),VLOOKUP(\"FLH,\"&F$2&\",,\"&$B296&\",\",data[],7),0)","v":0},{"$f":"IF(\"FLH,\"&G$2&\",,\"&$B296&\",\"=VLOOKUP(\"FLH,\"&G$2&\",,\"&$B296&\",\",data[],1),VLOOKUP(\"FLH,\"&G$2&\",,\"&$B296&\",\",data[],7),0)","v":5289.962108140493},{"$f":"IF(\"FLH,\"&H$2&\",,\"&$B296&\",\"=VLOOKUP(\"FLH,\"&H$2&\",,\"&$B296&\",\",data[],1),VLOOKUP(\"FLH,\"&H$2&\",,\"&$B296&\",\",data[],7),0)","v":3697},{"$f":"IF(\"FLH,\"&I$2&\",,\"&$B296&\",\"=VLOOKUP(\"FLH,\"&I$2&\",,\"&$B296&\",\",data[],1),VLOOKUP(\"FLH,\"&I$2&\",,\"&$B296&\",\",data[],7),0)","v":3697},null,{"$f":"INDEX(E296:I296,J53)","v":5289.962108140493},null,null,null,null,null,{"$f":"IF(\"FLH,\"&Q$2&\",,\"&$B296&\",\"=VLOOKUP(\"FLH,\"&Q$2&\",,\"&$B296&\",\",data[],1),VLOOKUP(\"FLH,\"&Q$2&\",,\"&$B296&\",\",data[],7),IF($B296&\",\"&$K53&\",\"&$Q$2&\",\"&$X$2&\",\"&Q$2=VLOOKUP($B296&\",\"&$K53&\",\"&$Q$2&\",\"&$X$2&\",\"&Q$2,data_flh_2[],1),VLOOKUP($B296&\",\"&$K53&\",\"&$Q$2&\",\"&$X$2&\",\"&Q$2,data_flh_2[],7),Q$256))","v":5409.5286773650578},null,null,null,null,null,null,{"$f":"IF(X$2<>\"\",IF(\"FLH,\"&X$2&\",,\"&$B296&\",\"=VLOOKUP(\"FLH,\"&X$2&\",,\"&$B296&\",\",data[],1),VLOOKUP(\"FLH,\"&X$2&\",,\"&$B296&\",\",data[],7),IF($B296&\",\"&$K53&\",\"&$Q$2&\",\"&$X$2&\",\"&X$2=VLOOKUP($B296&\",\"&$K53&\",\"&$Q$2&\",\"&$X$2&\",\"&X$2,data_flh_2[],1),VLOOKUP($B296&\",\"&$K53&\",\"&$Q$2&\",\"&$X$2&\",\"&X$2,data_flh_2[],7),X$256)),0)","v":0},null,null,null,null,null,null,null,null,null,null,null,null,{"$f":"IF(AK53,IF(\"FLH,\"&AK$2&\",,\"&$B296&\",\"=VLOOKUP(\"FLH,\"&AK$2&\",,\"&$B296&\",\",data[],1),VLOOKUP(\"FLH,\"&AK$2&\",,\"&$B296&\",\",data[],7),IF($B296&\",\"&$K53&\",\"&$Q$2&\",\"&$X$2&\",\"&AK$2=VLOOKUP($B296&\",\"&$K53&\",\"&$Q$2&\",\"&$X$2&\",\"&AK$2,data_flh_2[],1),VLOOKUP($B296&\",\"&$K53&\",\"&$Q$2&\",\"&$X$2&\",\"&AK$2,data_flh_2[],7),AK$256)),0)","v":0},null,{"$f":"IF(AM53,IF(\"FLH,\"&AM$2&\",,\"&$B296&\",\"=VLOOKUP(\"FLH,\"&AM$2&\",,\"&$B296&\",\",data[],1),VLOOKUP(\"FLH,\"&AM$2&\",,\"&$B296&\",\",data[],7),IF($B296&\",\"&$K53&\",\"&$Q$2&\",\"&$X$2&\",\"&AM$2=VLOOKUP($B296&\",\"&$K53&\",\"&$Q$2&\",\"&$X$2&\",\"&AM$2,data_flh_2[],1),VLOOKUP($B296&\",\"&$K53&\",\"&$Q$2&\",\"&$X$2&\",\"&AM$2,data_flh_2[],7),AM$256)),0)","v":6657.5999999999995},null,null,null,null,null,null,null,null,null,null,null,null,null,null,{"$f":"IF(BB53,IF(\"FLH,\"&BB$2&\",,\"&$B296&\",\"=VLOOKUP(\"FLH,\"&BB$2&\",,\"&$B296&\",\",data[],1),VLOOKUP(\"FLH,\"&BB$2&\",,\"&$B296&\",\",data[],7),IF($B296&\",\"&$K53&\",\"&$Q$2&\",\"&$X$2&\",\"&BB$2=VLOOKUP($B296&\",\"&$K53&\",\"&$Q$2&\",\"&$X$2&\",\"&BB$2,data_flh_2[],1),VLOOKUP($B296&\",\"&$K53&\",\"&$Q$2&\",\"&$X$2&\",\"&BB$2,data_flh_2[],7),BB$256)),0)","v":0},null,null,{"$f":"IF(BE53,IF(\"FLH,\"&BE$2&\",,\"&$B296&\",\"=VLOOKUP(\"FLH,\"&BE$2&\",,\"&$B296&\",\",data[],1),VLOOKUP(\"FLH,\"&BE$2&\",,\"&$B296&\",\",data[],7),IF($B296&\",\"&$K53&\",\"&$Q$2&\",\"&$X$2&\",\"&BE$2=VLOOKUP($B296&\",\"&$K53&\",\"&$Q$2&\",\"&$X$2&\",\"&BE$2,data_flh_2[],1),VLOOKUP($B296&\",\"&$K53&\",\"&$Q$2&\",\"&$X$2&\",\"&BE$2,data_flh_2[],7),BE$256)),0)","v":0}]
[null,"KEN",null,null,{"$f":"IF(\"FLH,\"&E$2&\",,\"&$B297&\",\"=VLOOKUP(\"FLH,\"&E$2&\",,\"&$B297&\",\",data[],1),VLOOKUP(\"FLH,\"&E$2&\",,\"&$B297&\",\",data[],7),0)","v":1418},{"$f":"IF(\"FLH,\"&F$2&\",,\"&$B297&\",\"=VLOOKUP(\"FLH,\"&F$2&\",,\"&$B297&\",\",data[],1),VLOOKUP(\"FLH,\"&F$2&\",,\"&$B297&\",\",data[],7),0)","v":0},{"$f":"IF(\"FLH,\"&G$2&\",,\"&$B297&\",\"=VLOOKUP(\"FLH,\"&G$2&\",,\"&$B297&\",\",data[],1),VLOOKUP(\"FLH,\"&G$2&\",,\"&$B297&\",\",data[],7),0)","v":3668.54},{"$f":"IF(\"FLH,\"&H$2&\",,\"&$B297&\",\"=VLOOKUP(\"FLH,\"&H$2&\",,\"&$B297&\",\",data[],1),VLOOKUP(\"FLH,\"&H$2&\",,\"&$B297&\",\",data[],7),0)","v":3329},{"$f":"IF(\"FLH,\"&I$2&\",,\"&$B297&\",\"=VLOOKUP(\"FLH,\"&I$2&\",,\"&$B297&\",\",data[],1),VLOOKUP(\"FLH,\"&I$2&\",,\"&$B297&\",\",data[],7),0)","v":2364},null,{"$f":"INDEX(E297:I297,J54)","v":3668.54},null,null,null,null,null,{"$f":"IF(\"FLH,\"&Q$2&\",,\"&$B297&\",\"=VLOOKUP(\"FLH,\"&Q$2&\",,\"&$B297&\",\",data[],1),VLOOKUP(\"FLH,\"&Q$2&\",,\"&$B297&\",\",data[],7),IF($B297&\",\"&$K54&\",\"&$Q$2&\",\"&$X$2&\",\"&Q$2=VLOOKUP($B297&\",\"&$K54&\",\"&$Q$2&\",\"&$X$2&\",\"&Q$2,data_flh_2[],1),VLOOKUP($B297&\",\"&$K54&\",\"&$Q$2&\",\"&$X$2&\",\"&Q$2,data_flh_2[],7),Q$256))","v":3905.45},null,null,null,null,null,null,{"$f":"IF(X$2<>\"\",IF(\"FLH,\"&X$2&\",,\"&$B297&\",\"=VLOOKUP(\"FLH,\"&X$2&\",,\"&$B297&\",\",data[],1),VLOOKUP(\"FLH,\"&X$2&\",,\"&$B297&\",\",data[],7),IF($B297&\",\"&$K54&\",\"&$Q$2&\",\"&$X$2&\",\"&X$2=VLOOKUP($B297&\",\"&$K54&\",\"&$Q$2&\",\"&$X$2&\",\"&X$2,data_flh_2[],1),VLOOKUP($B297&\",\"&$K54&\",\"&$Q$2&\",\"&$X$2&\",\"&X$2,data_flh_2[],7),X$256)),0)","v":0},null,null,null,null,null,null,null,null,null,null,null,null,{"$f":"IF(AK54,IF(\"FLH,\"&AK$2&\",,\"&$B297&\",\"=VLOOKUP(\"FLH,\"&AK$2&\",,\"&$B297&\",\",data[],1),VLOOKUP(\"FLH,\"&AK$2&\",,\"&$B297&\",\",data[],7),IF($B297&\",\"&$K54&\",\"&$Q$2&\",\"&$X$2&\",\"&AK$2=VLOOKUP($B297&\",\"&$K54&\",\"&$Q$2&\",\"&$X$2&\",\"&AK$2,data_flh_2[],1),VLOOKUP($B297&\",\"&$K54&\",\"&$Q$2&\",\"&$X$2&\",\"&AK$2,data_flh_2[],7),AK$256)),0)","v":4223.7},null,{"$f":"IF(AM54,IF(\"FLH,\"&AM$2&\",,\"&$B297&\",\"=VLOOKUP(\"FLH,\"&AM$2&\",,\"&$B297&\",\",data[],1),VLOOKUP(\"FLH,\"&AM$2&\",,\"&$B297&\",\",data[],7),IF($B297&\",\"&$K54&\",\"&$Q$2&\",\"&$X$2&\",\"&AM$2=VLOOKUP($B297&\",\"&$K54&\",\"&$Q$2&\",\"&$X$2&\",\"&AM$2,data_flh_2[],1),VLOOKUP($B297&\",\"&$K54&\",\"&$Q$2&\",\"&$X$2&\",\"&AM$2,data_flh_2[],7),AM$256)),0)","v":0},null,null,null,null,null,null,null,null,null,null,null,null,null,null,{"$f":"IF(BB54,IF(\"FLH,\"&BB$2&\",,\"&$B297&\",\"=VLOOKUP(\"FLH,\"&BB$2&\",,\"&$B297&\",\",data[],1),VLOOKUP(\"FLH,\"&BB$2&\",,\"&$B297&\",\",data[],7),IF($B297&\",\"&$K54&\",\"&$Q$2&\",\"&$X$2&\",\"&BB$2=VLOOKUP($B297&\",\"&$K54&\",\"&$Q$2&\",\"&$X$2&\",\"&BB$2,data_flh_2[],1),VLOOKUP($B297&\",\"&$K54&\",\"&$Q$2&\",\"&$X$2&\",\"&BB$2,data_flh_2[],7),BB$256)),0)","v":6657.5999999999995},null,null,{"$f":"IF(BE54,IF(\"FLH,\"&BE$2&\",,\"&$B297&\",\"=VLOOKUP(\"FLH,\"&BE$2&\",,\"&$B297&\",\",data[],1),VLOOKUP(\"FLH,\"&BE$2&\",,\"&$B297&\",\",data[],7),IF($B297&\",\"&$K54&\",\"&$Q$2&\",\"&$X$2&\",\"&BE$2=VLOOKUP($B297&\",\"&$K54&\",\"&$Q$2&\",\"&$X$2&\",\"&BE$2,data_flh_2[],1),VLOOKUP($B297&\",\"&$K54&\",\"&$Q$2&\",\"&$X$2&\",\"&BE$2,data_flh_2[],7),BE$256)),0)","v":0}]
[null,"MAR",null,null,{"$f":"IF(\"FLH,\"&E$2&\",,\"&$B298&\",\"=VLOOKUP(\"FLH,\"&E$2&\",,\"&$B298&\",\",data[],1),VLOOKUP(\"FLH,\"&E$2&\",,\"&$B298&\",\",data[],7),0)","v":1631},{"$f":"IF(\"FLH,\"&F$2&\",,\"&$B298&\",\"=VLOOKUP(\"FLH,\"&F$2&\",,\"&$B298&\",\",data[],1),VLOOKUP(\"FLH,\"&F$2&\",,\"&$B298&\",\",data[],7),0)","v":0},{"$f":"IF(\"FLH,\"&G$2&\",,\"&$B298&\",\"=VLOOKUP(\"FLH,\"&G$2&\",,\"&$B298&\",\",data[],1),VLOOKUP(\"FLH,\"&G$2&\",,\"&$B298&\",\",data[],7),0)","v":4739.42},{"$f":"IF(\"FLH,\"&H$2&\",,\"&$B298&\",\"=VLOOKUP(\"FLH,\"&H$2&\",,\"&$B298&\",\",data[],1),VLOOKUP(\"FLH,\"&H$2&\",,\"&$B298&\",\",data[],7),0)","v":4643},{"$f":"IF(\"FLH,\"&I$2&\",,\"&$B298&\",\"=VLOOKUP(\"FLH,\"&I$2&\",,\"&$B298&\",\",data[],1),VLOOKUP(\"FLH,\"&I$2&\",,\"&$B298&\",\",data[],7),0)","v":3289},null,{"$f":"INDEX(E298:I298,J55)","v":4739.42},null,null,null,null,null,{"$f":"IF(\"FLH,\"&Q$2&\",,\"&$B298&\",\"=VLOOKUP(\"FLH,\"&Q$2&\",,\"&$B298&\",\",data[],1),VLOOKUP(\"FLH,\"&Q$2&\",,\"&$B298&\",\",data[],7),IF($B298&\",\"&$K55&\",\"&$Q$2&\",\"&$X$2&\",\"&Q$2=VLOOKUP($B298&\",\"&$K55&\",\"&$Q$2&\",\"&$X$2&\",\"&Q$2,data_flh_2[],1),VLOOKUP($B298&\",\"&$K55&\",\"&$Q$2&\",\"&$X$2&\",\"&Q$2,data_flh_2[],7),Q$256))","v":4501.0999999999995},null,null,null,null,null,null,{"$f":"IF(X$2<>\"\",IF(\"FLH,\"&X$2&\",,\"&$B298&\",\"=VLOOKUP(\"FLH,\"&X$2&\",,\"&$B298&\",\",data[],1),VLOOKUP(\"FLH,\"&X$2&\",,\"&$B298&\",\",data[],7),IF($B298&\",\"&$K55&\",\"&$Q$2&\",\"&$X$2&\",\"&X$2=VLOOKUP($B298&\",\"&$K55&\",\"&$Q$2&\",\"&$X$2&\",\"&X$2,data_flh_2[],1),VLOOKUP($B298&\",\"&$K55&\",\"&$Q$2&\",\"&$X$2&\",\"&X$2,data_flh_2[],7),X$256)),0)","v":0},null,null,null,null,null,null,null,null,null,null,null,null,{"$f":"IF(AK55,IF(\"FLH,\"&AK$2&\",,\"&$B298&\",\"=VLOOKUP(\"FLH,\"&AK$2&\",,\"&$B298&\",\",data[],1),VLOOKUP(\"FLH,\"&AK$2&\",,\"&$B298&\",\",data[],7),IF($B298&\",\"&$K55&\",\"&$Q$2&\",\"&$X$2&\",\"&AK$2=VLOOKUP($B298&\",\"&$K55&\",\"&$Q$2&\",\"&$X$2&\",\"&AK$2,data_flh_2[],1),VLOOKUP($B298&\",\"&$K55&\",\"&$Q$2&\",\"&$X$2&\",\"&AK$2,data_flh_2[],7),AK$256)),0)","v":4472.5999999999995},null,{"$f":"IF(AM55,IF(\"FLH,\"&AM$2&\",,\"&$B298&\",\"=VLOOKUP(\"FLH,\"&AM$2&\",,\"&$B298&\",\",data[],1),VLOOKUP(\"FLH,\"&AM$2&\",,\"&$B298&\",\",data[],7),IF($B298&\",\"&$K55&\",\"&$Q$2&\",\"&$X$2&\",\"&AM$2=VLOOKUP($B298&\",\"&$K55&\",\"&$Q$2&\",\"&$X$2&\",\"&AM$2,data_flh_2[],1),VLOOKUP($B298&\",\"&$K55&\",\"&$Q$2&\",\"&$X$2&\",\"&AM$2,data_flh_2[],7),AM$256)),0)","v":0},null,null,null,null,null,null,null,null,null,null,null,null,null,null,{"$f":"IF(BB55,IF(\"FLH,\"&BB$2&\",,\"&$B298&\",\"=VLOOKUP(\"FLH,\"&BB$2&\",,\"&$B298&\",\",data[],1),VLOOKUP(\"FLH,\"&BB$2&\",,\"&$B298&\",\",data[],7),IF($B298&\",\"&$K55&\",\"&$Q$2&\",\"&$X$2&\",\"&BB$2=VLOOKUP($B298&\",\"&$K55&\",\"&$Q$2&\",\"&$X$2&\",\"&BB$2,data_flh_2[],1),VLOOKUP($B298&\",\"&$K55&\",\"&$Q$2&\",\"&$X$2&\",\"&BB$2,data_flh_2[],7),BB$256)),0)","v":6657.5999999999995},null,null,{"$f":"IF(BE55,IF(\"FLH,\"&BE$2&\",,\"&$B298&\",\"=VLOOKUP(\"FLH,\"&BE$2&\",,\"&$B298&\",\",data[],1),VLOOKUP(\"FLH,\"&BE$2&\",,\"&$B298&\",\",data[],7),IF($B298&\",\"&$K55&\",\"&$Q$2&\",\"&$X$2&\",\"&BE$2=VLOOKUP($B298&\",\"&$K55&\",\"&$Q$2&\",\"&$X$2&\",\"&BE$2,data_flh_2[],1),VLOOKUP($B298&\",\"&$K55&\",\"&$Q$2&\",\"&$X$2&\",\"&BE$2,data_flh_2[],7),BE$256)),0)","v":0}]
[null,"MAR-BEN",null,null,{"$f":"IF(\"FLH,\"&E$2&\",,\"&$B299&\",\"=VLOOKUP(\"FLH,\"&E$2&\",,\"&$B299&\",\",data[],1),VLOOKUP(\"FLH,\"&E$2&\",,\"&$B299&\",\",data[],7),0)","v":1745.3384668799999},{"$f":"IF(\"FLH,\"&F$2&\",,\"&$B299&\",\"=VLOOKUP(\"FLH,\"&F$2&\",,\"&$B299&\",\",data[],1),VLOOKUP(\"FLH,\"&F$2&\",,\"&$B299&\",\",data[],7),0)","v":0},{"$f":"IF(\"FLH,\"&G$2&\",,\"&$B299&\",\"=VLOOKUP(\"FLH,\"&G$2&\",,\"&$B299&\",\",data[],1),VLOOKUP(\"FLH,\"&G$2&\",,\"&$B299&\",\",data[],7),0)","v":3352.6974508185135},{"$f":"IF(\"FLH,\"&H$2&\",,\"&$B299&\",\"=VLOOKUP(\"FLH,\"&H$2&\",,\"&$B299&\",\",data[],1),VLOOKUP(\"FLH,\"&H$2&\",,\"&$B299&\",\",data[],7),0)","v":0},{"$f":"IF(\"FLH,\"&I$2&\",,\"&$B299&\",\"=VLOOKUP(\"FLH,\"&I$2&\",,\"&$B299&\",\",data[],1),VLOOKUP(\"FLH,\"&I$2&\",,\"&$B299&\",\",data[],7),0)","v":1563.4934093166669},null,{"$f":"INDEX(E299:I299,J56)","v":3352.6974508185135},null,null,null,null,null,{"$f":"IF(\"FLH,\"&Q$2&\",,\"&$B299&\",\"=VLOOKUP(\"FLH,\"&Q$2&\",,\"&$B299&\",\",data[],1),VLOOKUP(\"FLH,\"&Q$2&\",,\"&$B299&\",\",data[],7),IF($B299&\",\"&$K56&\",\"&$Q$2&\",\"&$X$2&\",\"&Q$2=VLOOKUP($B299&\",\"&$K56&\",\"&$Q$2&\",\"&$X$2&\",\"&Q$2,data_flh_2[],1),VLOOKUP($B299&\",\"&$K56&\",\"&$Q$2&\",\"&$X$2&\",\"&Q$2,data_flh_2[],7),Q$256))","v":3203.0785590392743},null,null,null,null,null,null,{"$f":"IF(X$2<>\"\",IF(\"FLH,\"&X$2&\",,\"&$B299&\",\"=VLOOKUP(\"FLH,\"&X$2&\",,\"&$B299&\",\",data[],1),VLOOKUP(\"FLH,\"&X$2&\",,\"&$B299&\",\",data[],7),IF($B299&\",\"&$K56&\",\"&$Q$2&\",\"&$X$2&\",\"&X$2=VLOOKUP($B299&\",\"&$K56&\",\"&$Q$2&\",\"&$X$2&\",\"&X$2,data_flh_2[],1),VLOOKUP($B299&\",\"&$K56&\",\"&$Q$2&\",\"&$X$2&\",\"&X$2,data_flh_2[],7),X$256)),0)","v":0},null,null,null,null,null,null,null,null,null,null,null,null,{"$f":"IF(AK56,IF(\"FLH,\"&AK$2&\",,\"&$B299&\",\"=VLOOKUP(\"FLH,\"&AK$2&\",,\"&$B299&\",\",data[],1),VLOOKUP(\"FLH,\"&AK$2&\",,\"&$B299&\",\",data[],7),IF($B299&\",\"&$K56&\",\"&$Q$2&\",\"&$X$2&\",\"&AK$2=VLOOKUP($B299&\",\"&$K56&\",\"&$Q$2&\",\"&$X$2&\",\"&AK$2,data_flh_2[],1),VLOOKUP($B299&\",\"&$K56&\",\"&$Q$2&\",\"&$X$2&\",\"&AK$2,data_flh_2[],7),AK$256)),0)","v":3185.0625782775878},null,{"$f":"IF(AM56,IF(\"FLH,\"&AM$2&\",,\"&$B299&\",\"=VLOOKUP(\"FLH,\"&AM$2&\",,\"&$B299&\",\",data[],1),VLOOKUP(\"FLH,\"&AM$2&\",,\"&$B299&\",\",data[],7),IF($B299&\",\"&$K56&\",\"&$Q$2&\",\"&$X$2&\",\"&AM$2=VLOOKUP($B299&\",\"&$K56&\",\"&$Q$2&\",\"&$X$2&\",\"&AM$2,data_flh_2[],1),VLOOKUP($B299&\",\"&$K56&\",\"&$Q$2&\",\"&$X$2&\",\"&AM$2,data_flh_2[],7),AM$256)),0)","v":0},null,null,null,null,null,null,null,null,null,null,null,null,null,null,{"$f":"IF(BB56,IF(\"FLH,\"&BB$2&\",,\"&$B299&\",\"=VLOOKUP(\"FLH,\"&BB$2&\",,\"&$B299&\",\",data[],1),VLOOKUP(\"FLH,\"&BB$2&\",,\"&$B299&\",\",data[],7),IF($B299&\",\"&$K56&\",\"&$Q$2&\",\"&$X$2&\",\"&BB$2=VLOOKUP($B299&\",\"&$K56&\",\"&$Q$2&\",\"&$X$2&\",\"&BB$2,data_flh_2[],1),VLOOKUP($B299&\",\"&$K56&\",\"&$Q$2&\",\"&$X$2&\",\"&BB$2,data_flh_2[],7),BB$256)),0)","v":6657.5999999999995},null,null,{"$f":"IF(BE56,IF(\"FLH,\"&BE$2&\",,\"&$B299&\",\"=VLOOKUP(\"FLH,\"&BE$2&\",,\"&$B299&\",\",data[],1),VLOOKUP(\"FLH,\"&BE$2&\",,\"&$B299&\",\",data[],7),IF($B299&\",\"&$K56&\",\"&$Q$2&\",\"&$X$2&\",\"&BE$2=VLOOKUP($B299&\",\"&$K56&\",\"&$Q$2&\",\"&$X$2&\",\"&BE$2,data_flh_2[],1),VLOOKUP($B299&\",\"&$K56&\",\"&$Q$2&\",\"&$X$2&\",\"&BE$2,data_flh_2[],7),BE$256)),0)","v":0}]
[null,"MAR-CAS",null,null,{"$f":"IF(\"FLH,\"&E$2&\",,\"&$B300&\",\"=VLOOKUP(\"FLH,\"&E$2&\",,\"&$B300&\",\",data[],1),VLOOKUP(\"FLH,\"&E$2&\",,\"&$B300&\",\",data[],7),0)","v":1665.7276233599982},{"$f":"IF(\"FLH,\"&F$2&\",,\"&$B300&\",\"=VLOOKUP(\"FLH,\"&F$2&\",,\"&$B300&\",\",data[],1),VLOOKUP(\"FLH,\"&F$2&\",,\"&$B300&\",\",data[],7),0)","v":0},{"$f":"IF(\"FLH,\"&G$2&\",,\"&$B300&\",\"=VLOOKUP(\"FLH,\"&G$2&\",,\"&$B300&\",\",data[],1),VLOOKUP(\"FLH,\"&G$2&\",,\"&$B300&\",\",data[],7),0)","v":4107.461264954989},{"$f":"IF(\"FLH,\"&H$2&\",,\"&$B300&\",\"=VLOOKUP(\"FLH,\"&H$2&\",,\"&$B300&\",\",data[],1),VLOOKUP(\"FLH,\"&H$2&\",,\"&$B300&\",\",data[],7),0)","v":4642.8},{"$f":"IF(\"FLH,\"&I$2&\",,\"&$B300&\",\"=VLOOKUP(\"FLH,\"&I$2&\",,\"&$B300&\",\",data[],1),VLOOKUP(\"FLH,\"&I$2&\",,\"&$B300&\",\",data[],7),0)","v":2513.2012449499989},null,{"$f":"INDEX(E300:I300,J57)","v":4107.461264954989},null,null,null,null,null,{"$f":"IF(\"FLH,\"&Q$2&\",,\"&$B300&\",\"=VLOOKUP(\"FLH,\"&Q$2&\",,\"&$B300&\",\",data[],1),VLOOKUP(\"FLH,\"&Q$2&\",,\"&$B300&\",\",data[],7),IF($B300&\",\"&$K57&\",\"&$Q$2&\",\"&$X$2&\",\"&Q$2=VLOOKUP($B300&\",\"&$K57&\",\"&$Q$2&\",\"&$X$2&\",\"&Q$2,data_flh_2[],1),VLOOKUP($B300&\",\"&$K57&\",\"&$Q$2&\",\"&$X$2&\",\"&Q$2,data_flh_2[],7),Q$256))","v":4062.7177935213494},null,null,null,null,null,null,{"$f":"IF(X$2<>\"\",IF(\"FLH,\"&X$2&\",,\"&$B300&\",\"=VLOOKUP(\"FLH,\"&X$2&\",,\"&$B300&\",\",data[],1),VLOOKUP(\"FLH,\"&X$2&\",,\"&$B300&\",\",data[],7),IF($B300&\",\"&$K57&\",\"&$Q$2&\",\"&$X$2&\",\"&X$2=VLOOKUP($B300&\",\"&$K57&\",\"&$Q$2&\",\"&$X$2&\",\"&X$2,data_flh_2[],1),VLOOKUP($B300&\",\"&$K57&\",\"&$Q$2&\",\"&$X$2&\",\"&X$2,data_flh_2[],7),X$256)),0)","v":0},null,null,null,null,null,null,null,null,null,null,null,null,{"$f":"IF(AK57,IF(\"FLH,\"&AK$2&\",,\"&$B300&\",\"=VLOOKUP(\"FLH,\"&AK$2&\",,\"&$B300&\",\",data[],1),VLOOKUP(\"FLH,\"&AK$2&\",,\"&$B300&\",\",data[],7),IF($B300&\",\"&$K57&\",\"&$Q$2&\",\"&$X$2&\",\"&AK$2=VLOOKUP($B300&\",\"&$K57&\",\"&$Q$2&\",\"&$X$2&\",\"&AK$2,data_flh_2[],1),VLOOKUP($B300&\",\"&$K57&\",\"&$Q$2&\",\"&$X$2&\",\"&AK$2,data_flh_2[],7),AK$256)),0)","v":3946.7711169876793},null,{"$f":"IF(AM57,IF(\"FLH,\"&AM$2&\",,\"&$B300&\",\"=VLOOKUP(\"FLH,\"&AM$2&\",,\"&$B300&\",\",data[],1),VLOOKUP(\"FLH,\"&AM$2&\",,\"&$B300&\",\",data[],7),IF($B300&\",\"&$K57&\",\"&$Q$2&\",\"&$X$2&\",\"&AM$2=VLOOKUP($B300&\",\"&$K57&\",\"&$Q$2&\",\"&$X$2&\",\"&AM$2,data_flh_2[],1),VLOOKUP($B300&\",\"&$K57&\",\"&$Q$2&\",\"&$X$2&\",\"&AM$2,data_flh_2[],7),AM$256)),0)","v":0},null,null,null,null,null,null,null,null,null,null,null,null,null,null,{"$f":"IF(BB57,IF(\"FLH,\"&BB$2&\",,\"&$B300&\",\"=VLOOKUP(\"FLH,\"&BB$2&\",,\"&$B300&\",\",data[],1),VLOOKUP(\"FLH,\"&BB$2&\",,\"&$B300&\",\",data[],7),IF($B300&\",\"&$K57&\",\"&$Q$2&\",\"&$X$2&\",\"&BB$2=VLOOKUP($B300&\",\"&$K57&\",\"&$Q$2&\",\"&$X$2&\",\"&BB$2,data_flh_2[],1),VLOOKUP($B300&\",\"&$K57&\",\"&$Q$2&\",\"&$X$2&\",\"&BB$2,data_flh_2[],7),BB$256)),0)","v":6657.5999999999995},null,null,{"$f":"IF(BE57,IF(\"FLH,\"&BE$2&\",,\"&$B300&\",\"=VLOOKUP(\"FLH,\"&BE$2&\",,\"&$B300&\",\",data[],1),VLOOKUP(\"FLH,\"&BE$2&\",,\"&$B300&\",\",data[],7),IF($B300&\",\"&$K57&\",\"&$Q$2&\",\"&$X$2&\",\"&BE$2=VLOOKUP($B300&\",\"&$K57&\",\"&$Q$2&\",\"&$X$2&\",\"&BE$2,data_flh_2[],1),VLOOKUP($B300&\",\"&$K57&\",\"&$Q$2&\",\"&$X$2&\",\"&BE$2,data_flh_2[],7),BE$256)),0)","v":0}]
[null,"MAR-DAK",null,null,{"$f":"IF(\"FLH,\"&E$2&\",,\"&$B301&\",\"=VLOOKUP(\"FLH,\"&E$2&\",,\"&$B301&\",\",data[],1),VLOOKUP(\"FLH,\"&E$2&\",,\"&$B301&\",\",data[],7),0)","v":1728.1917287999981},{"$f":"IF(\"FLH,\"&F$2&\",,\"&$B301&\",\"=VLOOKUP(\"FLH,\"&F$2&\",,\"&$B301&\",\",data[],1),VLOOKUP(\"FLH,\"&F$2&\",,\"&$B301&\",\",data[],7),0)","v":0},{"$f":"IF(\"FLH,\"&G$2&\",,\"&$B301&\",\"=VLOOKUP(\"FLH,\"&G$2&\",,\"&$B301&\",\",data[],1),VLOOKUP(\"FLH,\"&G$2&\",,\"&$B301&\",\",data[],7),0)","v":6342.17431498525},{"$f":"IF(\"FLH,\"&H$2&\",,\"&$B301&\",\"=VLOOKUP(\"FLH,\"&H$2&\",,\"&$B301&\",\",data[],1),VLOOKUP(\"FLH,\"&H$2&\",,\"&$B301&\",\",data[],7),0)","v":5181.7820854799875},{"$f":"IF(\"FLH,\"&I$2&\",,\"&$B301&\",\"=VLOOKUP(\"FLH,\"&I$2&\",,\"&$B301&\",\",data[],1),VLOOKUP(\"FLH,\"&I$2&\",,\"&$B301&\",\",data[],7),0)","v":5181.7820854799875},null,{"$f":"INDEX(E301:I301,J58)","v":6342.17431498525},null,null,null,null,null,{"$f":"IF(\"FLH,\"&Q$2&\",,\"&$B301&\",\"=VLOOKUP(\"FLH,\"&Q$2&\",,\"&$B301&\",\",data[],1),VLOOKUP(\"FLH,\"&Q$2&\",,\"&$B301&\",\",data[],7),IF($B301&\",\"&$K58&\",\"&$Q$2&\",\"&$X$2&\",\"&Q$2=VLOOKUP($B301&\",\"&$K58&\",\"&$Q$2&\",\"&$X$2&\",\"&Q$2,data_flh_2[],1),VLOOKUP($B301&\",\"&$K58&\",\"&$Q$2&\",\"&$X$2&\",\"&Q$2,data_flh_2[],7),Q$256))","v":6607.9471482341023},null,null,null,null,null,null,{"$f":"IF(X$2<>\"\",IF(\"FLH,\"&X$2&\",,\"&$B301&\",\"=VLOOKUP(\"FLH,\"&X$2&\",,\"&$B301&\",\",data[],1),VLOOKUP(\"FLH,\"&X$2&\",,\"&$B301&\",\",data[],7),IF($B301&\",\"&$K58&\",\"&$Q$2&\",\"&$X$2&\",\"&X$2=VLOOKUP($B301&\",\"&$K58&\",\"&$Q$2&\",\"&$X$2&\",\"&X$2,data_flh_2[],1),VLOOKUP($B301&\",\"&$K58&\",\"&$Q$2&\",\"&$X$2&\",\"&X$2,data_flh_2[],7),X$256)),0)","v":0},null,null,null,null,null,null,null,null,null,null,null,null,{"$f":"IF(AK58,IF(\"FLH,\"&AK$2&\",,\"&$B301&\",\"=VLOOKUP(\"FLH,\"&AK$2&\",,\"&$B301&\",\",data[],1),VLOOKUP(\"FLH,\"&AK$2&\",,\"&$B301&\",\",data[],7),IF($B301&\",\"&$K58&\",\"&$Q$2&\",\"&$X$2&\",\"&AK$2=VLOOKUP($B301&\",\"&$K58&\",\"&$Q$2&\",\"&$X$2&\",\"&AK$2,data_flh_2[],1),VLOOKUP($B301&\",\"&$K58&\",\"&$Q$2&\",\"&$X$2&\",\"&AK$2,data_flh_2[],7),AK$256)),0)","v":6639.3571477672067},null,{"$f":"IF(AM58,IF(\"FLH,\"&AM$2&\",,\"&$B301&\",\"=VLOOKUP(\"FLH,\"&AM$2&\",,\"&$B301&\",\",data[],1),VLOOKUP(\"FLH,\"&AM$2&\",,\"&$B301&\",\",data[],7),IF($B301&\",\"&$K58&\",\"&$Q$2&\",\"&$X$2&\",\"&AM$2=VLOOKUP($B301&\",\"&$K58&\",\"&$Q$2&\",\"&$X$2&\",\"&AM$2,data_flh_2[],1),VLOOKUP($B301&\",\"&$K58&\",\"&$Q$2&\",\"&$X$2&\",\"&AM$2,data_flh_2[],7),AM$256)),0)","v":0},null,null,null,null,null,null,null,null,null,null,null,null,null,null,{"$f":"IF(BB58,IF(\"FLH,\"&BB$2&\",,\"&$B301&\",\"=VLOOKUP(\"FLH,\"&BB$2&\",,\"&$B301&\",\",data[],1),VLOOKUP(\"FLH,\"&BB$2&\",,\"&$B301&\",\",data[],7),IF($B301&\",\"&$K58&\",\"&$Q$2&\",\"&$X$2&\",\"&BB$2=VLOOKUP($B301&\",\"&$K58&\",\"&$Q$2&\",\"&$X$2&\",\"&BB$2,data_flh_2[],1),VLOOKUP($B301&\",\"&$K58&\",\"&$Q$2&\",\"&$X$2&\",\"&BB$2,data_flh_2[],7),BB$256)),0)","v":6657.5999999999995},null,null,{"$f":"IF(BE58,IF(\"FLH,\"&BE$2&\",,\"&$B301&\",\"=VLOOKUP(\"FLH,\"&BE$2&\",,\"&$B301&\",\",data[],1),VLOOKUP(\"FLH,\"&BE$2&\",,\"&$B301&\",\",data[],7),IF($B301&\",\"&$K58&\",\"&$Q$2&\",\"&$X$2&\",\"&BE$2=VLOOKUP($B301&\",\"&$K58&\",\"&$Q$2&\",\"&$X$2&\",\"&BE$2,data_flh_2[],1),VLOOKUP($B301&\",\"&$K58&\",\"&$Q$2&\",\"&$X$2&\",\"&BE$2,data_flh_2[],7),BE$256)),0)","v":0}]
[null,"MAR-DRA",null,null,{"$f":"IF(\"FLH,\"&E$2&\",,\"&$B302&\",\"=VLOOKUP(\"FLH,\"&E$2&\",,\"&$B302&\",\",data[],1),VLOOKUP(\"FLH,\"&E$2&\",,\"&$B302&\",\",data[],7),0)","v":1808.0709587999988},{"$f":"IF(\"FLH,\"&F$2&\",,\"&$B302&\",\"=VLOOKUP(\"FLH,\"&F$2&\",,\"&$B302&\",\",data[],1),VLOOKUP(\"FLH,\"&F$2&\",,\"&$B302&\",\",data[],7),0)","v":0},{"$f":"IF(\"FLH,\"&G$2&\",,\"&$B302&\",\"=VLOOKUP(\"FLH,\"&G$2&\",,\"&$B302&\",\",data[],1),VLOOKUP(\"FLH,\"&G$2&\",,\"&$B302&\",\",data[],7),0)","v":4442.5500678171611},{"$f":"IF(\"FLH,\"&H$2&\",,\"&$B302&\",\"=VLOOKUP(\"FLH,\"&H$2&\",,\"&$B302&\",\",data[],1),VLOOKUP(\"FLH,\"&H$2&\",,\"&$B302&\",\",data[],7),0)","v":0},{"$f":"IF(\"FLH,\"&I$2&\",,\"&$B302&\",\"=VLOOKUP(\"FLH,\"&I$2&\",,\"&$B302&\",\",data[],1),VLOOKUP(\"FLH,\"&I$2&\",,\"&$B302&\",\",data[],7),0)","v":2724.0904536999979},null,{"$f":"INDEX(E302:I302,J59)","v":4442.5500678171611},null,null,null,null,null,{"$f":"IF(\"FLH,\"&Q$2&\",,\"&$B302&\",\"=VLOOKUP(\"FLH,\"&Q$2&\",,\"&$B302&\",\",data[],1),VLOOKUP(\"FLH,\"&Q$2&\",,\"&$B302&\",\",data[],7),IF($B302&\",\"&$K59&\",\"&$Q$2&\",\"&$X$2&\",\"&Q$2=VLOOKUP($B302&\",\"&$K59&\",\"&$Q$2&\",\"&$X$2&\",\"&Q$2,data_flh_2[],1),VLOOKUP($B302&\",\"&$K59&\",\"&$Q$2&\",\"&$X$2&\",\"&Q$2,data_flh_2[],7),Q$256))","v":4444.3676243436139},null,null,null,null,null,null,{"$f":"IF(X$2<>\"\",IF(\"FLH,\"&X$2&\",,\"&$B302&\",\"=VLOOKUP(\"FLH,\"&X$2&\",,\"&$B302&\",\",data[],1),VLOOKUP(\"FLH,\"&X$2&\",,\"&$B302&\",\",data[],7),IF($B302&\",\"&$K59&\",\"&$Q$2&\",\"&$X$2&\",\"&X$2=VLOOKUP($B302&\",\"&$K59&\",\"&$Q$2&\",\"&$X$2&\",\"&X$2,data_flh_2[],1),VLOOKUP($B302&\",\"&$K59&\",\"&$Q$2&\",\"&$X$2&\",\"&X$2,data_flh_2[],7),X$256)),0)","v":0},null,null,null,null,null,null,null,null,null,null,null,null,{"$f":"IF(AK59,IF(\"FLH,\"&AK$2&\",,\"&$B302&\",\"=VLOOKUP(\"FLH,\"&AK$2&\",,\"&$B302&\",\",data[],1),VLOOKUP(\"FLH,\"&AK$2&\",,\"&$B302&\",\",data[],7),IF($B302&\",\"&$K59&\",\"&$Q$2&\",\"&$X$2&\",\"&AK$2=VLOOKUP($B302&\",\"&$K59&\",\"&$Q$2&\",\"&$X$2&\",\"&AK$2,data_flh_2[],1),VLOOKUP($B302&\",\"&$K59&\",\"&$Q$2&\",\"&$X$2&\",\"&AK$2,data_flh_2[],7),AK$256)),0)","v":4350.5166581188323},null,{"$f":"IF(AM59,IF(\"FLH,\"&AM$2&\",,\"&$B302&\",\"=VLOOKUP(\"FLH,\"&AM$2&\",,\"&$B302&\",\",data[],1),VLOOKUP(\"FLH,\"&AM$2&\",,\"&$B302&\",\",data[],7),IF($B302&\",\"&$K59&\",\"&$Q$2&\",\"&$X$2&\",\"&AM$2=VLOOKUP($B302&\",\"&$K59&\",\"&$Q$2&\",\"&$X$2&\",\"&AM$2,data_flh_2[],1),VLOOKUP($B302&\",\"&$K59&\",\"&$Q$2&\",\"&$X$2&\",\"&AM$2,data_flh_2[],7),AM$256)),0)","v":0},null,null,null,null,null,null,null,null,null,null,null,null,null,null,{"$f":"IF(BB59,IF(\"FLH,\"&BB$2&\",,\"&$B302&\",\"=VLOOKUP(\"FLH,\"&BB$2&\",,\"&$B302&\",\",data[],1),VLOOKUP(\"FLH,\"&BB$2&\",,\"&$B302&\",\",data[],7),IF($B302&\",\"&$K59&\",\"&$Q$2&\",\"&$X$2&\",\"&BB$2=VLOOKUP($B302&\",\"&$K59&\",\"&$Q$2&\",\"&$X$2&\",\"&BB$2,data_flh_2[],1),VLOOKUP($B302&\",\"&$K59&\",\"&$Q$2&\",\"&$X$2&\",\"&BB$2,data_flh_2[],7),BB$256)),0)","v":6657.5999999999995},null,null,{"$f":"IF(BE59,IF(\"FLH,\"&BE$2&\",,\"&$B302&\",\"=VLOOKUP(\"FLH,\"&BE$2&\",,\"&$B302&\",\",data[],1),VLOOKUP(\"FLH,\"&BE$2&\",,\"&$B302&\",\",data[],7),IF($B302&\",\"&$K59&\",\"&$Q$2&\",\"&$X$2&\",\"&BE$2=VLOOKUP($B302&\",\"&$K59&\",\"&$Q$2&\",\"&$X$2&\",\"&BE$2,data_flh_2[],1),VLOOKUP($B302&\",\"&$K59&\",\"&$Q$2&\",\"&$X$2&\",\"&BE$2,data_flh_2[],7),BE$256)),0)","v":0}]
[null,"MAR-FES",null,null,{"$f":"IF(\"FLH,\"&E$2&\",,\"&$B303&\",\"=VLOOKUP(\"FLH,\"&E$2&\",,\"&$B303&\",\",data[],1),VLOOKUP(\"FLH,\"&E$2&\",,\"&$B303&\",\",data[],7),0)","v":1678.0894264800027},{"$f":"IF(\"FLH,\"&F$2&\",,\"&$B303&\",\"=VLOOKUP(\"FLH,\"&F$2&\",,\"&$B303&\",\",data[],1),VLOOKUP(\"FLH,\"&F$2&\",,\"&$B303&\",\",data[],7),0)","v":0},{"$f":"IF(\"FLH,\"&G$2&\",,\"&$B303&\",\"=VLOOKUP(\"FLH,\"&G$2&\",,\"&$B303&\",\",data[],1),VLOOKUP(\"FLH,\"&G$2&\",,\"&$B303&\",\",data[],7),0)","v":3693.5166831944407},{"$f":"IF(\"FLH,\"&H$2&\",,\"&$B303&\",\"=VLOOKUP(\"FLH,\"&H$2&\",,\"&$B303&\",\",data[],1),VLOOKUP(\"FLH,\"&H$2&\",,\"&$B303&\",\",data[],7),0)","v":0},{"$f":"IF(\"FLH,\"&I$2&\",,\"&$B303&\",\"=VLOOKUP(\"FLH,\"&I$2&\",,\"&$B303&\",\",data[],1),VLOOKUP(\"FLH,\"&I$2&\",,\"&$B303&\",\",data[],7),0)","v":2050.2642833200007},null,{"$f":"INDEX(E303:I303,J60)","v":3693.5166831944407},null,null,null,null,null,{"$f":"IF(\"FLH,\"&Q$2&\",,\"&$B303&\",\"=VLOOKUP(\"FLH,\"&Q$2&\",,\"&$B303&\",\",data[],1),VLOOKUP(\"FLH,\"&Q$2&\",,\"&$B303&\",\",data[],7),IF($B303&\",\"&$K60&\",\"&$Q$2&\",\"&$X$2&\",\"&Q$2=VLOOKUP($B303&\",\"&$K60&\",\"&$Q$2&\",\"&$X$2&\",\"&Q$2,data_flh_2[],1),VLOOKUP($B303&\",\"&$K60&\",\"&$Q$2&\",\"&$X$2&\",\"&Q$2,data_flh_2[],7),Q$256))","v":3591.2550700602887},null,null,null,null,null,null,{"$f":"IF(X$2<>\"\",IF(\"FLH,\"&X$2&\",,\"&$B303&\",\"=VLOOKUP(\"FLH,\"&X$2&\",,\"&$B303&\",\",data[],1),VLOOKUP(\"FLH,\"&X$2&\",,\"&$B303&\",\",data[],7),IF($B303&\",\"&$K60&\",\"&$Q$2&\",\"&$X$2&\",\"&X$2=VLOOKUP($B303&\",\"&$K60&\",\"&$Q$2&\",\"&$X$2&\",\"&X$2,data_flh_2[],1),VLOOKUP($B303&\",\"&$K60&\",\"&$Q$2&\",\"&$X$2&\",\"&X$2,data_flh_2[],7),X$256)),0)","v":0},null,null,null,null,null,null,null,null,null,null,null,null,{"$f":"IF(AK60,IF(\"FLH,\"&AK$2&\",,\"&$B303&\",\"=VLOOKUP(\"FLH,\"&AK$2&\",,\"&$B303&\",\",data[],1),VLOOKUP(\"FLH,\"&AK$2&\",,\"&$B303&\",\",data[],7),IF($B303&\",\"&$K60&\",\"&$Q$2&\",\"&$X$2&\",\"&AK$2=VLOOKUP($B303&\",\"&$K60&\",\"&$Q$2&\",\"&$X$2&\",\"&AK$2,data_flh_2[],1),VLOOKUP($B303&\",\"&$K60&\",\"&$Q$2&\",\"&$X$2&\",\"&AK$2,data_flh_2[],7),AK$256)),0)","v":3508.8408490347183},null,{"$f":"IF(AM60,IF(\"FLH,\"&AM$2&\",,\"&$B303&\",\"=VLOOKUP(\"FLH,\"&AM$2&\",,\"&$B303&\",\",data[],1),VLOOKUP(\"FLH,\"&AM$2&\",,\"&$B303&\",\",data[],7),IF($B303&\",\"&$K60&\",\"&$Q$2&\",\"&$X$2&\",\"&AM$2=VLOOKUP($B303&\",\"&$K60&\",\"&$Q$2&\",\"&$X$2&\",\"&AM$2,data_flh_2[],1),VLOOKUP($B303&\",\"&$K60&\",\"&$Q$2&\",\"&$X$2&\",\"&AM$2,data_flh_2[],7),AM$256)),0)","v":0},null,null,null,null,null,null,null,null,null,null,null,null,null,null,{"$f":"IF(BB60,IF(\"FLH,\"&BB$2&\",,\"&$B303&\",\"=VLOOKUP(\"FLH,\"&BB$2&\",,\"&$B303&\",\",data[],1),VLOOKUP(\"FLH,\"&BB$2&\",,\"&$B303&\",\",data[],7),IF($B303&\",\"&$K60&\",\"&$Q$2&\",\"&$X$2&\",\"&BB$2=VLOOKUP($B303&\",\"&$K60&\",\"&$Q$2&\",\"&$X$2&\",\"&BB$2,data_flh_2[],1),VLOOKUP($B303&\",\"&$K60&\",\"&$Q$2&\",\"&$X$2&\",\"&BB$2,data_flh_2[],7),BB$256)),0)","v":6657.5999999999995},null,null,{"$f":"IF(BE60,IF(\"FLH,\"&BE$2&\",,\"&$B303&\",\"=VLOOKUP(\"FLH,\"&BE$2&\",,\"&$B303&\",\",data[],1),VLOOKUP(\"FLH,\"&BE$2&\",,\"&$B303&\",\",data[],7),IF($B303&\",\"&$K60&\",\"&$Q$2&\",\"&$X$2&\",\"&BE$2=VLOOKUP($B303&\",\"&$K60&\",\"&$Q$2&\",\"&$X$2&\",\"&BE$2,data_flh_2[],1),VLOOKUP($B303&\",\"&$K60&\",\"&$Q$2&\",\"&$X$2&\",\"&BE$2,data_flh_2[],7),BE$256)),0)","v":0}]
[null,"MAR-GUE",null,null,{"$f":"IF(\"FLH,\"&E$2&\",,\"&$B304&\",\"=VLOOKUP(\"FLH,\"&E$2&\",,\"&$B304&\",\",data[],1),VLOOKUP(\"FLH,\"&E$2&\",,\"&$B304&\",\",data[],7),0)","v":1758.0457144800002},{"$f":"IF(\"FLH,\"&F$2&\",,\"&$B304&\",\"=VLOOKUP(\"FLH,\"&F$2&\",,\"&$B304&\",\",data[],1),VLOOKUP(\"FLH,\"&F$2&\",,\"&$B304&\",\",data[],7),0)","v":0},{"$f":"IF(\"FLH,\"&G$2&\",,\"&$B304&\",\"=VLOOKUP(\"FLH,\"&G$2&\",,\"&$B304&\",\",data[],1),VLOOKUP(\"FLH,\"&G$2&\",,\"&$B304&\",\",data[],7),0)","v":5015.1834420732221},{"$f":"IF(\"FLH,\"&H$2&\",,\"&$B304&\",\"=VLOOKUP(\"FLH,\"&H$2&\",,\"&$B304&\",\",data[],1),VLOOKUP(\"FLH,\"&H$2&\",,\"&$B304&\",\",data[],7),0)","v":4642.8},{"$f":"IF(\"FLH,\"&I$2&\",,\"&$B304&\",\"=VLOOKUP(\"FLH,\"&I$2&\",,\"&$B304&\",\",data[],1),VLOOKUP(\"FLH,\"&I$2&\",,\"&$B304&\",\",data[],7),0)","v":3542.2692728499992},null,{"$f":"INDEX(E304:I304,J61)","v":5015.1834420732221},null,null,null,null,null,{"$f":"IF(\"FLH,\"&Q$2&\",,\"&$B304&\",\"=VLOOKUP(\"FLH,\"&Q$2&\",,\"&$B304&\",\",data[],1),VLOOKUP(\"FLH,\"&Q$2&\",,\"&$B304&\",\",data[],7),IF($B304&\",\"&$K61&\",\"&$Q$2&\",\"&$X$2&\",\"&Q$2=VLOOKUP($B304&\",\"&$K61&\",\"&$Q$2&\",\"&$X$2&\",\"&Q$2,data_flh_2[],1),VLOOKUP($B304&\",\"&$K61&\",\"&$Q$2&\",\"&$X$2&\",\"&Q$2,data_flh_2[],7),Q$256))","v":5096.5691558221206},null,null,null,null,null,null,{"$f":"IF(X$2<>\"\",IF(\"FLH,\"&X$2&\",,\"&$B304&\",\"=VLOOKUP(\"FLH,\"&X$2&\",,\"&$B304&\",\",data[],1),VLOOKUP(\"FLH,\"&X$2&\",,\"&$B304&\",\",data[],7),IF($B304&\",\"&$K61&\",\"&$Q$2&\",\"&$X$2&\",\"&X$2=VLOOKUP($B304&\",\"&$K61&\",\"&$Q$2&\",\"&$X$2&\",\"&X$2,data_flh_2[],1),VLOOKUP($B304&\",\"&$K61&\",\"&$Q$2&\",\"&$X$2&\",\"&X$2,data_flh_2[],7),X$256)),0)","v":0},null,null,null,null,null,null,null,null,null,null,null,null,{"$f":"IF(AK61,IF(\"FLH,\"&AK$2&\",,\"&$B304&\",\"=VLOOKUP(\"FLH,\"&AK$2&\",,\"&$B304&\",\",data[],1),VLOOKUP(\"FLH,\"&AK$2&\",,\"&$B304&\",\",data[],7),IF($B304&\",\"&$K61&\",\"&$Q$2&\",\"&$X$2&\",\"&AK$2=VLOOKUP($B304&\",\"&$K61&\",\"&$Q$2&\",\"&$X$2&\",\"&AK$2,data_flh_2[],1),VLOOKUP($B304&\",\"&$K61&\",\"&$Q$2&\",\"&$X$2&\",\"&AK$2,data_flh_2[],7),AK$256)),0)","v":5040.4775567940051},null,{"$f":"IF(AM61,IF(\"FLH,\"&AM$2&\",,\"&$B304&\",\"=VLOOKUP(\"FLH,\"&AM$2&\",,\"&$B304&\",\",data[],1),VLOOKUP(\"FLH,\"&AM$2&\",,\"&$B304&\",\",data[],7),IF($B304&\",\"&$K61&\",\"&$Q$2&\",\"&$X$2&\",\"&AM$2=VLOOKUP($B304&\",\"&$K61&\",\"&$Q$2&\",\"&$X$2&\",\"&AM$2,data_flh_2[],1),VLOOKUP($B304&\",\"&$K61&\",\"&$Q$2&\",\"&$X$2&\",\"&AM$2,data_flh_2[],7),AM$256)),0)","v":0},null,null,null,null,null,null,null,null,null,null,null,null,null,null,{"$f":"IF(BB61,IF(\"FLH,\"&BB$2&\",,\"&$B304&\",\"=VLOOKUP(\"FLH,\"&BB$2&\",,\"&$B304&\",\",data[],1),VLOOKUP(\"FLH,\"&BB$2&\",,\"&$B304&\",\",data[],7),IF($B304&\",\"&$K61&\",\"&$Q$2&\",\"&$X$2&\",\"&BB$2=VLOOKUP($B304&\",\"&$K61&\",\"&$Q$2&\",\"&$X$2&\",\"&BB$2,data_flh_2[],1),VLOOKUP($B304&\",\"&$K61&\",\"&$Q$2&\",\"&$X$2&\",\"&BB$2,data_flh_2[],7),BB$256)),0)","v":6657.5999999999995},null,null,{"$f":"IF(BE61,IF(\"FLH,\"&BE$2&\",,\"&$B304&\",\"=VLOOKUP(\"FLH,\"&BE$2&\",,\"&$B304&\",\",data[],1),VLOOKUP(\"FLH,\"&BE$2&\",,\"&$B304&\",\",data[],7),IF($B304&\",\"&$K61&\",\"&$Q$2&\",\"&$X$2&\",\"&BE$2=VLOOKUP($B304&\",\"&$K61&\",\"&$Q$2&\",\"&$X$2&\",\"&BE$2,data_flh_2[],1),VLOOKUP($B304&\",\"&$K61&\",\"&$Q$2&\",\"&$X$2&\",\"&BE$2,data_flh_2[],7),BE$256)),0)","v":0}]
[null,"MAR-LAA",null,null,{"$f":"IF(\"FLH,\"&E$2&\",,\"&$B305&\",\"=VLOOKUP(\"FLH,\"&E$2&\",,\"&$B305&\",\",data[],1),VLOOKUP(\"FLH,\"&E$2&\",,\"&$B305&\",\",data[],7),0)","v":1742.770432080001},{"$f":"IF(\"FLH,\"&F$2&\",,\"&$B305&\",\"=VLOOKUP(\"FLH,\"&F$2&\",,\"&$B305&\",\",data[],1),VLOOKUP(\"FLH,\"&F$2&\",,\"&$B305&\",\",data[],7),0)","v":0},{"$f":"IF(\"FLH,\"&G$2&\",,\"&$B305&\",\"=VLOOKUP(\"FLH,\"&G$2&\",,\"&$B305&\",\",data[],1),VLOOKUP(\"FLH,\"&G$2&\",,\"&$B305&\",\",data[],7),0)","v":5823.2278770450366},{"$f":"IF(\"FLH,\"&H$2&\",,\"&$B305&\",\"=VLOOKUP(\"FLH,\"&H$2&\",,\"&$B305&\",\",data[],1),VLOOKUP(\"FLH,\"&H$2&\",,\"&$B305&\",\",data[],7),0)","v":4642.8},{"$f":"IF(\"FLH,\"&I$2&\",,\"&$B305&\",\"=VLOOKUP(\"FLH,\"&I$2&\",,\"&$B305&\",\",data[],1),VLOOKUP(\"FLH,\"&I$2&\",,\"&$B305&\",\",data[],7),0)","v":4616.7798365699955},null,{"$f":"INDEX(E305:I305,J62)","v":5823.2278770450366},null,null,null,null,null,{"$f":"IF(\"FLH,\"&Q$2&\",,\"&$B305&\",\"=VLOOKUP(\"FLH,\"&Q$2&\",,\"&$B305&\",\",data[],1),VLOOKUP(\"FLH,\"&Q$2&\",,\"&$B305&\",\",data[],7),IF($B305&\",\"&$K62&\",\"&$Q$2&\",\"&$X$2&\",\"&Q$2=VLOOKUP($B305&\",\"&$K62&\",\"&$Q$2&\",\"&$X$2&\",\"&Q$2,data_flh_2[],1),VLOOKUP($B305&\",\"&$K62&\",\"&$Q$2&\",\"&$X$2&\",\"&Q$2,data_flh_2[],7),Q$256))","v":6016.8924231761512},null,null,null,null,null,null,{"$f":"IF(X$2<>\"\",IF(\"FLH,\"&X$2&\",,\"&$B305&\",\"=VLOOKUP(\"FLH,\"&X$2&\",,\"&$B305&\",\",data[],1),VLOOKUP(\"FLH,\"&X$2&\",,\"&$B305&\",\",data[],7),IF($B305&\",\"&$K62&\",\"&$Q$2&\",\"&$X$2&\",\"&X$2=VLOOKUP($B305&\",\"&$K62&\",\"&$Q$2&\",\"&$X$2&\",\"&X$2,data_flh_2[],1),VLOOKUP($B305&\",\"&$K62&\",\"&$Q$2&\",\"&$X$2&\",\"&X$2,data_flh_2[],7),X$256)),0)","v":0},null,null,null,null,null,null,null,null,null,null,null,null,{"$f":"IF(AK62,IF(\"FLH,\"&AK$2&\",,\"&$B305&\",\"=VLOOKUP(\"FLH,\"&AK$2&\",,\"&$B305&\",\",data[],1),VLOOKUP(\"FLH,\"&AK$2&\",,\"&$B305&\",\",data[],7),IF($B305&\",\"&$K62&\",\"&$Q$2&\",\"&$X$2&\",\"&AK$2=VLOOKUP($B305&\",\"&$K62&\",\"&$Q$2&\",\"&$X$2&\",\"&AK$2,data_flh_2[],1),VLOOKUP($B305&\",\"&$K62&\",\"&$Q$2&\",\"&$X$2&\",\"&AK$2,data_flh_2[],7),AK$256)),0)","v":6014.0831648271187},null,{"$f":"IF(AM62,IF(\"FLH,\"&AM$2&\",,\"&$B305&\",\"=VLOOKUP(\"FLH,\"&AM$2&\",,\"&$B305&\",\",data[],1),VLOOKUP(\"FLH,\"&AM$2&\",,\"&$B305&\",\",data[],7),IF($B305&\",\"&$K62&\",\"&$Q$2&\",\"&$X$2&\",\"&AM$2=VLOOKUP($B305&\",\"&$K62&\",\"&$Q$2&\",\"&$X$2&\",\"&AM$2,data_flh_2[],1),VLOOKUP($B305&\",\"&$K62&\",\"&$Q$2&\",\"&$X$2&\",\"&AM$2,data_flh_2[],7),AM$256)),0)","v":0},null,null,null,null,null,null,null,null,null,null,null,null,null,null,{"$f":"IF(BB62,IF(\"FLH,\"&BB$2&\",,\"&$B305&\",\"=VLOOKUP(\"FLH,\"&BB$2&\",,\"&$B305&\",\",data[],1),VLOOKUP(\"FLH,\"&BB$2&\",,\"&$B305&\",\",data[],7),IF($B305&\",\"&$K62&\",\"&$Q$2&\",\"&$X$2&\",\"&BB$2=VLOOKUP($B305&\",\"&$K62&\",\"&$Q$2&\",\"&$X$2&\",\"&BB$2,data_flh_2[],1),VLOOKUP($B305&\",\"&$K62&\",\"&$Q$2&\",\"&$X$2&\",\"&BB$2,data_flh_2[],7),BB$256)),0)","v":6657.5999999999995},null,null,{"$f":"IF(BE62,IF(\"FLH,\"&BE$2&\",,\"&$B305&\",\"=VLOOKUP(\"FLH,\"&BE$2&\",,\"&$B305&\",\",data[],1),VLOOKUP(\"FLH,\"&BE$2&\",,\"&$B305&\",\",data[],7),IF($B305&\",\"&$K62&\",\"&$Q$2&\",\"&$X$2&\",\"&BE$2=VLOOKUP($B305&\",\"&$K62&\",\"&$Q$2&\",\"&$X$2&\",\"&BE$2,data_flh_2[],1),VLOOKUP($B305&\",\"&$K62&\",\"&$Q$2&\",\"&$X$2&\",\"&BE$2,data_flh_2[],7),BE$256)),0)","v":0}]
[null,"MAR-LOR",null,null,{"$f":"IF(\"FLH,\"&E$2&\",,\"&$B306&\",\"=VLOOKUP(\"FLH,\"&E$2&\",,\"&$B306&\",\",data[],1),VLOOKUP(\"FLH,\"&E$2&\",,\"&$B306&\",\",data[],7),0)","v":1709.8854897600017},{"$f":"IF(\"FLH,\"&F$2&\",,\"&$B306&\",\"=VLOOKUP(\"FLH,\"&F$2&\",,\"&$B306&\",\",data[],1),VLOOKUP(\"FLH,\"&F$2&\",,\"&$B306&\",\",data[],7),0)","v":0},{"$f":"IF(\"FLH,\"&G$2&\",,\"&$B306&\",\"=VLOOKUP(\"FLH,\"&G$2&\",,\"&$B306&\",\",data[],1),VLOOKUP(\"FLH,\"&G$2&\",,\"&$B306&\",\",data[],7),0)","v":4805.6356254658413},{"$f":"IF(\"FLH,\"&H$2&\",,\"&$B306&\",\"=VLOOKUP(\"FLH,\"&H$2&\",,\"&$B306&\",\",data[],1),VLOOKUP(\"FLH,\"&H$2&\",,\"&$B306&\",\",data[],7),0)","v":4642.8},{"$f":"IF(\"FLH,\"&I$2&\",,\"&$B306&\",\"=VLOOKUP(\"FLH,\"&I$2&\",,\"&$B306&\",\",data[],1),VLOOKUP(\"FLH,\"&I$2&\",,\"&$B306&\",\",data[],7),0)","v":3320.8164008250001},null,{"$f":"INDEX(E306:I306,J63)","v":4805.6356254658413},null,null,null,null,null,{"$f":"IF(\"FLH,\"&Q$2&\",,\"&$B306&\",\"=VLOOKUP(\"FLH,\"&Q$2&\",,\"&$B306&\",\",data[],1),VLOOKUP(\"FLH,\"&Q$2&\",,\"&$B306&\",\",data[],7),IF($B306&\",\"&$K63&\",\"&$Q$2&\",\"&$X$2&\",\"&Q$2=VLOOKUP($B306&\",\"&$K63&\",\"&$Q$2&\",\"&$X$2&\",\"&Q$2,data_flh_2[],1),VLOOKUP($B306&\",\"&$K63&\",\"&$Q$2&\",\"&$X$2&\",\"&Q$2,data_flh_2[],7),Q$256))","v":4857.9043956920232},null,null,null,null,null,null,{"$f":"IF(X$2<>\"\",IF(\"FLH,\"&X$2&\",,\"&$B306&\",\"=VLOOKUP(\"FLH,\"&X$2&\",,\"&$B306&\",\",data[],1),VLOOKUP(\"FLH,\"&X$2&\",,\"&$B306&\",\",data[],7),IF($B306&\",\"&$K63&\",\"&$Q$2&\",\"&$X$2&\",\"&X$2=VLOOKUP($B306&\",\"&$K63&\",\"&$Q$2&\",\"&$X$2&\",\"&X$2,data_flh_2[],1),VLOOKUP($B306&\",\"&$K63&\",\"&$Q$2&\",\"&$X$2&\",\"&X$2,data_flh_2[],7),X$256)),0)","v":0},null,null,null,null,null,null,null,null,null,null,null,null,{"$f":"IF(AK63,IF(\"FLH,\"&AK$2&\",,\"&$B306&\",\"=VLOOKUP(\"FLH,\"&AK$2&\",,\"&$B306&\",\",data[],1),VLOOKUP(\"FLH,\"&AK$2&\",,\"&$B306&\",\",data[],7),IF($B306&\",\"&$K63&\",\"&$Q$2&\",\"&$X$2&\",\"&AK$2=VLOOKUP($B306&\",\"&$K63&\",\"&$Q$2&\",\"&$X$2&\",\"&AK$2,data_flh_2[],1),VLOOKUP($B306&\",\"&$K63&\",\"&$Q$2&\",\"&$X$2&\",\"&AK$2,data_flh_2[],7),AK$256)),0)","v":4787.9952419975962},null,{"$f":"IF(AM63,IF(\"FLH,\"&AM$2&\",,\"&$B306&\",\"=VLOOKUP(\"FLH,\"&AM$2&\",,\"&$B306&\",\",data[],1),VLOOKUP(\"FLH,\"&AM$2&\",,\"&$B306&\",\",data[],7),IF($B306&\",\"&$K63&\",\"&$Q$2&\",\"&$X$2&\",\"&AM$2=VLOOKUP($B306&\",\"&$K63&\",\"&$Q$2&\",\"&$X$2&\",\"&AM$2,data_flh_2[],1),VLOOKUP($B306&\",\"&$K63&\",\"&$Q$2&\",\"&$X$2&\",\"&AM$2,data_flh_2[],7),AM$256)),0)","v":0},null,null,null,null,null,null,null,null,null,null,null,null,null,null,{"$f":"IF(BB63,IF(\"FLH,\"&BB$2&\",,\"&$B306&\",\"=VLOOKUP(\"FLH,\"&BB$2&\",,\"&$B306&\",\",data[],1),VLOOKUP(\"FLH,\"&BB$2&\",,\"&$B306&\",\",data[],7),IF($B306&\",\"&$K63&\",\"&$Q$2&\",\"&$X$2&\",\"&BB$2=VLOOKUP($B306&\",\"&$K63&\",\"&$Q$2&\",\"&$X$2&\",\"&BB$2,data_flh_2[],1),VLOOKUP($B306&\",\"&$K63&\",\"&$Q$2&\",\"&$X$2&\",\"&BB$2,data_flh_2[],7),BB$256)),0)","v":6657.5999999999995},null,null,{"$f":"IF(BE63,IF(\"FLH,\"&BE$2&\",,\"&$B306&\",\"=VLOOKUP(\"FLH,\"&BE$2&\",,\"&$B306&\",\",data[],1),VLOOKUP(\"FLH,\"&BE$2&\",,\"&$B306&\",\",data[],7),IF($B306&\",\"&$K63&\",\"&$Q$2&\",\"&$X$2&\",\"&BE$2=VLOOKUP($B306&\",\"&$K63&\",\"&$Q$2&\",\"&$X$2&\",\"&BE$2,data_flh_2[],1),VLOOKUP($B306&\",\"&$K63&\",\"&$Q$2&\",\"&$X$2&\",\"&BE$2,data_flh_2[],7),BE$256)),0)","v":0}]
[null,"MAR-MAR",null,null,{"$f":"IF(\"FLH,\"&E$2&\",,\"&$B307&\",\"=VLOOKUP(\"FLH,\"&E$2&\",,\"&$B307&\",\",data[],1),VLOOKUP(\"FLH,\"&E$2&\",,\"&$B307&\",\",data[],7),0)","v":1734.1491045599982},{"$f":"IF(\"FLH,\"&F$2&\",,\"&$B307&\",\"=VLOOKUP(\"FLH,\"&F$2&\",,\"&$B307&\",\",data[],1),VLOOKUP(\"FLH,\"&F$2&\",,\"&$B307&\",\",data[],7),0)","v":0},{"$f":"IF(\"FLH,\"&G$2&\",,\"&$B307&\",\"=VLOOKUP(\"FLH,\"&G$2&\",,\"&$B307&\",\",data[],1),VLOOKUP(\"FLH,\"&G$2&\",,\"&$B307&\",\",data[],7),0)","v":3574.4335757714989},{"$f":"IF(\"FLH,\"&H$2&\",,\"&$B307&\",\"=VLOOKUP(\"FLH,\"&H$2&\",,\"&$B307&\",\",data[],1),VLOOKUP(\"FLH,\"&H$2&\",,\"&$B307&\",\",data[],7),0)","v":4642.8},{"$f":"IF(\"FLH,\"&I$2&\",,\"&$B307&\",\"=VLOOKUP(\"FLH,\"&I$2&\",,\"&$B307&\",\",data[],1),VLOOKUP(\"FLH,\"&I$2&\",,\"&$B307&\",\",data[],7),0)","v":1820.4342362250004},null,{"$f":"INDEX(E307:I307,J64)","v":3574.4335757714989},null,null,null,null,null,{"$f":"IF(\"FLH,\"&Q$2&\",,\"&$B307&\",\"=VLOOKUP(\"FLH,\"&Q$2&\",,\"&$B307&\",\",data[],1),VLOOKUP(\"FLH,\"&Q$2&\",,\"&$B307&\",\",data[],7),IF($B307&\",\"&$K64&\",\"&$Q$2&\",\"&$X$2&\",\"&Q$2=VLOOKUP($B307&\",\"&$K64&\",\"&$Q$2&\",\"&$X$2&\",\"&Q$2,data_flh_2[],1),VLOOKUP($B307&\",\"&$K64&\",\"&$Q$2&\",\"&$X$2&\",\"&Q$2,data_flh_2[],7),Q$256))","v":3455.625208920319},null,null,null,null,null,null,{"$f":"IF(X$2<>\"\",IF(\"FLH,\"&X$2&\",,\"&$B307&\",\"=VLOOKUP(\"FLH,\"&X$2&\",,\"&$B307&\",\",data[],1),VLOOKUP(\"FLH,\"&X$2&\",,\"&$B307&\",\",data[],7),IF($B307&\",\"&$K64&\",\"&$Q$2&\",\"&$X$2&\",\"&X$2=VLOOKUP($B307&\",\"&$K64&\",\"&$Q$2&\",\"&$X$2&\",\"&X$2,data_flh_2[],1),VLOOKUP($B307&\",\"&$K64&\",\"&$Q$2&\",\"&$X$2&\",\"&X$2,data_flh_2[],7),X$256)),0)","v":0},null,null,null,null,null,null,null,null,null,null,null,null,{"$f":"IF(AK64,IF(\"FLH,\"&AK$2&\",,\"&$B307&\",\"=VLOOKUP(\"FLH,\"&AK$2&\",,\"&$B307&\",\",data[],1),VLOOKUP(\"FLH,\"&AK$2&\",,\"&$B307&\",\",data[],7),IF($B307&\",\"&$K64&\",\"&$Q$2&\",\"&$X$2&\",\"&AK$2=VLOOKUP($B307&\",\"&$K64&\",\"&$Q$2&\",\"&$X$2&\",\"&AK$2,data_flh_2[],1),VLOOKUP($B307&\",\"&$K64&\",\"&$Q$2&\",\"&$X$2&\",\"&AK$2,data_flh_2[],7),AK$256)),0)","v":3395.7118969829239},null,{"$f":"IF(AM64,IF(\"FLH,\"&AM$2&\",,\"&$B307&\",\"=VLOOKUP(\"FLH,\"&AM$2&\",,\"&$B307&\",\",data[],1),VLOOKUP(\"FLH,\"&AM$2&\",,\"&$B307&\",\",data[],7),IF($B307&\",\"&$K64&\",\"&$Q$2&\",\"&$X$2&\",\"&AM$2=VLOOKUP($B307&\",\"&$K64&\",\"&$Q$2&\",\"&$X$2&\",\"&AM$2,data_flh_2[],1),VLOOKUP($B307&\",\"&$K64&\",\"&$Q$2&\",\"&$X$2&\",\"&AM$2,data_flh_2[],7),AM$256)),0)","v":0},null,null,null,null,null,null,null,null,null,null,null,null,null,null,{"$f":"IF(BB64,IF(\"FLH,\"&BB$2&\",,\"&$B307&\",\"=VLOOKUP(\"FLH,\"&BB$2&\",,\"&$B307&\",\",data[],1),VLOOKUP(\"FLH,\"&BB$2&\",,\"&$B307&\",\",data[],7),IF($B307&\",\"&$K64&\",\"&$Q$2&\",\"&$X$2&\",\"&BB$2=VLOOKUP($B307&\",\"&$K64&\",\"&$Q$2&\",\"&$X$2&\",\"&BB$2,data_flh_2[],1),VLOOKUP($B307&\",\"&$K64&\",\"&$Q$2&\",\"&$X$2&\",\"&BB$2,data_flh_2[],7),BB$256)),0)","v":6657.5999999999995},null,null,{"$f":"IF(BE64,IF(\"FLH,\"&BE$2&\",,\"&$B307&\",\"=VLOOKUP(\"FLH,\"&BE$2&\",,\"&$B307&\",\",data[],1),VLOOKUP(\"FLH,\"&BE$2&\",,\"&$B307&\",\",data[],7),IF($B307&\",\"&$K64&\",\"&$Q$2&\",\"&$X$2&\",\"&BE$2=VLOOKUP($B307&\",\"&$K64&\",\"&$Q$2&\",\"&$X$2&\",\"&BE$2,data_flh_2[],1),VLOOKUP($B307&\",\"&$K64&\",\"&$Q$2&\",\"&$X$2&\",\"&BE$2,data_flh_2[],7),BE$256)),0)","v":0}]
[null,"MAR-RAB",null,null,{"$f":"IF(\"FLH,\"&E$2&\",,\"&$B308&\",\"=VLOOKUP(\"FLH,\"&E$2&\",,\"&$B308&\",\",data[],1),VLOOKUP(\"FLH,\"&E$2&\",,\"&$B308&\",\",data[],7),0)","v":1620.7182007199983},{"$f":"IF(\"FLH,\"&F$2&\",,\"&$B308&\",\"=VLOOKUP(\"FLH,\"&F$2&\",,\"&$B308&\",\",data[],1),VLOOKUP(\"FLH,\"&F$2&\",,\"&$B308&\",\",data[],7),0)","v":0},{"$f":"IF(\"FLH,\"&G$2&\",,\"&$B308&\",\"=VLOOKUP(\"FLH,\"&G$2&\",,\"&$B308&\",\",data[],1),VLOOKUP(\"FLH,\"&G$2&\",,\"&$B308&\",\",data[],7),0)","v":3447.3598533759478},{"$f":"IF(\"FLH,\"&H$2&\",,\"&$B308&\",\"=VLOOKUP(\"FLH,\"&H$2&\",,\"&$B308&\",\",data[],1),VLOOKUP(\"FLH,\"&H$2&\",,\"&$B308&\",\",data[],7),0)","v":4642.8},{"$f":"IF(\"FLH,\"&I$2&\",,\"&$B308&\",\"=VLOOKUP(\"FLH,\"&I$2&\",,\"&$B308&\",\",data[],1),VLOOKUP(\"FLH,\"&I$2&\",,\"&$B308&\",\",data[],7),0)","v":1826.0421998500019},null,{"$f":"INDEX(E308:I308,J65)","v":3447.3598533759478},null,null,null,null,null,{"$f":"IF(\"FLH,\"&Q$2&\",,\"&$B308&\",\"=VLOOKUP(\"FLH,\"&Q$2&\",,\"&$B308&\",\",data[],1),VLOOKUP(\"FLH,\"&Q$2&\",,\"&$B308&\",\",data[],7),IF($B308&\",\"&$K65&\",\"&$Q$2&\",\"&$X$2&\",\"&Q$2=VLOOKUP($B308&\",\"&$K65&\",\"&$Q$2&\",\"&$X$2&\",\"&Q$2,data_flh_2[],1),VLOOKUP($B308&\",\"&$K65&\",\"&$Q$2&\",\"&$X$2&\",\"&Q$2,data_flh_2[],7),Q$256))","v":3310.8944263934982},null,null,null,null,null,null,{"$f":"IF(X$2<>\"\",IF(\"FLH,\"&X$2&\",,\"&$B308&\",\"=VLOOKUP(\"FLH,\"&X$2&\",,\"&$B308&\",\",data[],1),VLOOKUP(\"FLH,\"&X$2&\",,\"&$B308&\",\",data[],7),IF($B308&\",\"&$K65&\",\"&$Q$2&\",\"&$X$2&\",\"&X$2=VLOOKUP($B308&\",\"&$K65&\",\"&$Q$2&\",\"&$X$2&\",\"&X$2,data_flh_2[],1),VLOOKUP($B308&\",\"&$K65&\",\"&$Q$2&\",\"&$X$2&\",\"&X$2,data_flh_2[],7),X$256)),0)","v":0},null,null,null,null,null,null,null,null,null,null,null,null,{"$f":"IF(AK65,IF(\"FLH,\"&AK$2&\",,\"&$B308&\",\"=VLOOKUP(\"FLH,\"&AK$2&\",,\"&$B308&\",\",data[],1),VLOOKUP(\"FLH,\"&AK$2&\",,\"&$B308&\",\",data[],7),IF($B308&\",\"&$K65&\",\"&$Q$2&\",\"&$X$2&\",\"&AK$2=VLOOKUP($B308&\",\"&$K65&\",\"&$Q$2&\",\"&$X$2&\",\"&AK$2,data_flh_2[],1),VLOOKUP($B308&\",\"&$K65&\",\"&$Q$2&\",\"&$X$2&\",\"&AK$2,data_flh_2[],7),AK$256)),0)","v":3274.9918607071504},null,{"$f":"IF(AM65,IF(\"FLH,\"&AM$2&\",,\"&$B308&\",\"=VLOOKUP(\"FLH,\"&AM$2&\",,\"&$B308&\",\",data[],1),VLOOKUP(\"FLH,\"&AM$2&\",,\"&$B308&\",\",data[],7),IF($B308&\",\"&$K65&\",\"&$Q$2&\",\"&$X$2&\",\"&AM$2=VLOOKUP($B308&\",\"&$K65&\",\"&$Q$2&\",\"&$X$2&\",\"&AM$2,data_flh_2[],1),VLOOKUP($B308&\",\"&$K65&\",\"&$Q$2&\",\"&$X$2&\",\"&AM$2,data_flh_2[],7),AM$256)),0)","v":0},null,null,null,null,null,null,null,null,null,null,null,null,null,null,{"$f":"IF(BB65,IF(\"FLH,\"&BB$2&\",,\"&$B308&\",\"=VLOOKUP(\"FLH,\"&BB$2&\",,\"&$B308&\",\",data[],1),VLOOKUP(\"FLH,\"&BB$2&\",,\"&$B308&\",\",data[],7),IF($B308&\",\"&$K65&\",\"&$Q$2&\",\"&$X$2&\",\"&BB$2=VLOOKUP($B308&\",\"&$K65&\",\"&$Q$2&\",\"&$X$2&\",\"&BB$2,data_flh_2[],1),VLOOKUP($B308&\",\"&$K65&\",\"&$Q$2&\",\"&$X$2&\",\"&BB$2,data_flh_2[],7),BB$256)),0)","v":6657.5999999999995},null,null,{"$f":"IF(BE65,IF(\"FLH,\"&BE$2&\",,\"&$B308&\",\"=VLOOKUP(\"FLH,\"&BE$2&\",,\"&$B308&\",\",data[],1),VLOOKUP(\"FLH,\"&BE$2&\",,\"&$B308&\",\",data[],7),IF($B308&\",\"&$K65&\",\"&$Q$2&\",\"&$X$2&\",\"&BE$2=VLOOKUP($B308&\",\"&$K65&\",\"&$Q$2&\",\"&$X$2&\",\"&BE$2,data_flh_2[],1),VLOOKUP($B308&\",\"&$K65&\",\"&$Q$2&\",\"&$X$2&\",\"&BE$2,data_flh_2[],7),BE$256)),0)","v":0}]
[null,"MAR-SOU",null,null,{"$f":"IF(\"FLH,\"&E$2&\",,\"&$B309&\",\"=VLOOKUP(\"FLH,\"&E$2&\",,\"&$B309&\",\",data[],1),VLOOKUP(\"FLH,\"&E$2&\",,\"&$B309&\",\",data[],7),0)","v":1800.775983599998},{"$f":"IF(\"FLH,\"&F$2&\",,\"&$B309&\",\"=VLOOKUP(\"FLH,\"&F$2&\",,\"&$B309&\",\",data[],1),VLOOKUP(\"FLH,\"&F$2&\",,\"&$B309&\",\",data[],7),0)","v":0},{"$f":"IF(\"FLH,\"&G$2&\",,\"&$B309&\",\"=VLOOKUP(\"FLH,\"&G$2&\",,\"&$B309&\",\",data[],1),VLOOKUP(\"FLH,\"&G$2&\",,\"&$B309&\",\",data[],7),0)","v":4479.2641726234597},{"$f":"IF(\"FLH,\"&H$2&\",,\"&$B309&\",\"=VLOOKUP(\"FLH,\"&H$2&\",,\"&$B309&\",\",data[],1),VLOOKUP(\"FLH,\"&H$2&\",,\"&$B309&\",\",data[],7),0)","v":4642.8},{"$f":"IF(\"FLH,\"&I$2&\",,\"&$B309&\",\"=VLOOKUP(\"FLH,\"&I$2&\",,\"&$B309&\",\",data[],1),VLOOKUP(\"FLH,\"&I$2&\",,\"&$B309&\",\",data[],7),0)","v":2799.5123925999974},null,{"$f":"INDEX(E309:I309,J66)","v":4479.2641726234597},null,null,null,null,null,{"$f":"IF(\"FLH,\"&Q$2&\",,\"&$B309&\",\"=VLOOKUP(\"FLH,\"&Q$2&\",,\"&$B309&\",\",data[],1),VLOOKUP(\"FLH,\"&Q$2&\",,\"&$B309&\",\",data[],7),IF($B309&\",\"&$K66&\",\"&$Q$2&\",\"&$X$2&\",\"&Q$2=VLOOKUP($B309&\",\"&$K66&\",\"&$Q$2&\",\"&$X$2&\",\"&Q$2,data_flh_2[],1),VLOOKUP($B309&\",\"&$K66&\",\"&$Q$2&\",\"&$X$2&\",\"&Q$2,data_flh_2[],7),Q$256))","v":4486.183202090263},null,null,null,null,null,null,{"$f":"IF(X$2<>\"\",IF(\"FLH,\"&X$2&\",,\"&$B309&\",\"=VLOOKUP(\"FLH,\"&X$2&\",,\"&$B309&\",\",data[],1),VLOOKUP(\"FLH,\"&X$2&\",,\"&$B309&\",\",data[],7),IF($B309&\",\"&$K66&\",\"&$Q$2&\",\"&$X$2&\",\"&X$2=VLOOKUP($B309&\",\"&$K66&\",\"&$Q$2&\",\"&$X$2&\",\"&X$2,data_flh_2[],1),VLOOKUP($B309&\",\"&$K66&\",\"&$Q$2&\",\"&$X$2&\",\"&X$2,data_flh_2[],7),X$256)),0)","v":0},null,null,null,null,null,null,null,null,null,null,null,null,{"$f":"IF(AK66,IF(\"FLH,\"&AK$2&\",,\"&$B309&\",\"=VLOOKUP(\"FLH,\"&AK$2&\",,\"&$B309&\",\",data[],1),VLOOKUP(\"FLH,\"&AK$2&\",,\"&$B309&\",\",data[],7),IF($B309&\",\"&$K66&\",\"&$Q$2&\",\"&$X$2&\",\"&AK$2=VLOOKUP($B309&\",\"&$K66&\",\"&$Q$2&\",\"&$X$2&\",\"&AK$2,data_flh_2[],1),VLOOKUP($B309&\",\"&$K66&\",\"&$Q$2&\",\"&$X$2&\",\"&AK$2,data_flh_2[],7),AK$256)),0)","v":4394.7531589674209},null,{"$f":"IF(AM66,IF(\"FLH,\"&AM$2&\",,\"&$B309&\",\"=VLOOKUP(\"FLH,\"&AM$2&\",,\"&$B309&\",\",data[],1),VLOOKUP(\"FLH,\"&AM$2&\",,\"&$B309&\",\",data[],7),IF($B309&\",\"&$K66&\",\"&$Q$2&\",\"&$X$2&\",\"&AM$2=VLOOKUP($B309&\",\"&$K66&\",\"&$Q$2&\",\"&$X$2&\",\"&AM$2,data_flh_2[],1),VLOOKUP($B309&\",\"&$K66&\",\"&$Q$2&\",\"&$X$2&\",\"&AM$2,data_flh_2[],7),AM$256)),0)","v":0},null,null,null,null,null,null,null,null,null,null,null,null,null,null,{"$f":"IF(BB66,IF(\"FLH,\"&BB$2&\",,\"&$B309&\",\"=VLOOKUP(\"FLH,\"&BB$2&\",,\"&$B309&\",\",data[],1),VLOOKUP(\"FLH,\"&BB$2&\",,\"&$B309&\",\",data[],7),IF($B309&\",\"&$K66&\",\"&$Q$2&\",\"&$X$2&\",\"&BB$2=VLOOKUP($B309&\",\"&$K66&\",\"&$Q$2&\",\"&$X$2&\",\"&BB$2,data_flh_2[],1),VLOOKUP($B309&\",\"&$K66&\",\"&$Q$2&\",\"&$X$2&\",\"&BB$2,data_flh_2[],7),BB$256)),0)","v":6657.5999999999995},null,null,{"$f":"IF(BE66,IF(\"FLH,\"&BE$2&\",,\"&$B309&\",\"=VLOOKUP(\"FLH,\"&BE$2&\",,\"&$B309&\",\",data[],1),VLOOKUP(\"FLH,\"&BE$2&\",,\"&$B309&\",\",data[],7),IF($B309&\",\"&$K66&\",\"&$Q$2&\",\"&$X$2&\",\"&BE$2=VLOOKUP($B309&\",\"&$K66&\",\"&$Q$2&\",\"&$X$2&\",\"&BE$2,data_flh_2[],1),VLOOKUP($B309&\",\"&$K66&\",\"&$Q$2&\",\"&$X$2&\",\"&BE$2,data_flh_2[],7),BE$256)),0)","v":0}]
[null,"MAR-TAN",null,null,{"$f":"IF(\"FLH,\"&E$2&\",,\"&$B310&\",\"=VLOOKUP(\"FLH,\"&E$2&\",,\"&$B310&\",\",data[],1),VLOOKUP(\"FLH,\"&E$2&\",,\"&$B310&\",\",data[],7),0)","v":1615.309697519999},{"$f":"IF(\"FLH,\"&F$2&\",,\"&$B310&\",\"=VLOOKUP(\"FLH,\"&F$2&\",,\"&$B310&\",\",data[],1),VLOOKUP(\"FLH,\"&F$2&\",,\"&$B310&\",\",data[],7),0)","v":0},{"$f":"IF(\"FLH,\"&G$2&\",,\"&$B310&\",\"=VLOOKUP(\"FLH,\"&G$2&\",,\"&$B310&\",\",data[],1),VLOOKUP(\"FLH,\"&G$2&\",,\"&$B310&\",\",data[],7),0)","v":4503.3511393000135},{"$f":"IF(\"FLH,\"&H$2&\",,\"&$B310&\",\"=VLOOKUP(\"FLH,\"&H$2&\",,\"&$B310&\",\",data[],1),VLOOKUP(\"FLH,\"&H$2&\",,\"&$B310&\",\",data[],7),0)","v":4642.8},{"$f":"IF(\"FLH,\"&I$2&\",,\"&$B310&\",\"=VLOOKUP(\"FLH,\"&I$2&\",,\"&$B310&\",\",data[],1),VLOOKUP(\"FLH,\"&I$2&\",,\"&$B310&\",\",data[],7),0)","v":2979.4188451500013},null,{"$f":"INDEX(E310:I310,J67)","v":4503.3511393000135},null,null,null,null,null,{"$f":"IF(\"FLH,\"&Q$2&\",,\"&$B310&\",\"=VLOOKUP(\"FLH,\"&Q$2&\",,\"&$B310&\",\",data[],1),VLOOKUP(\"FLH,\"&Q$2&\",,\"&$B310&\",\",data[],7),IF($B310&\",\"&$K67&\",\"&$Q$2&\",\"&$X$2&\",\"&Q$2=VLOOKUP($B310&\",\"&$K67&\",\"&$Q$2&\",\"&$X$2&\",\"&Q$2,data_flh_2[],1),VLOOKUP($B310&\",\"&$K67&\",\"&$Q$2&\",\"&$X$2&\",\"&Q$2,data_flh_2[],7),Q$256))","v":4513.6170843286664},null,null,null,null,null,null,{"$f":"IF(X$2<>\"\",IF(\"FLH,\"&X$2&\",,\"&$B310&\",\"=VLOOKUP(\"FLH,\"&X$2&\",,\"&$B310&\",\",data[],1),VLOOKUP(\"FLH,\"&X$2&\",,\"&$B310&\",\",data[],7),IF($B310&\",\"&$K67&\",\"&$Q$2&\",\"&$X$2&\",\"&X$2=VLOOKUP($B310&\",\"&$K67&\",\"&$Q$2&\",\"&$X$2&\",\"&X$2,data_flh_2[],1),VLOOKUP($B310&\",\"&$K67&\",\"&$Q$2&\",\"&$X$2&\",\"&X$2,data_flh_2[],7),X$256)),0)","v":0},null,null,null,null,null,null,null,null,null,null,null,null,{"$f":"IF(AK67,IF(\"FLH,\"&AK$2&\",,\"&$B310&\",\"=VLOOKUP(\"FLH,\"&AK$2&\",,\"&$B310&\",\",data[],1),VLOOKUP(\"FLH,\"&AK$2&\",,\"&$B310&\",\",data[],7),IF($B310&\",\"&$K67&\",\"&$Q$2&\",\"&$X$2&\",\"&AK$2=VLOOKUP($B310&\",\"&$K67&\",\"&$Q$2&\",\"&$X$2&\",\"&AK$2,data_flh_2[],1),VLOOKUP($B310&\",\"&$K67&\",\"&$Q$2&\",\"&$X$2&\",\"&AK$2,data_flh_2[],7),AK$256)),0)","v":4423.7753325284802},null,{"$f":"IF(AM67,IF(\"FLH,\"&AM$2&\",,\"&$B310&\",\"=VLOOKUP(\"FLH,\"&AM$2&\",,\"&$B310&\",\",data[],1),VLOOKUP(\"FLH,\"&AM$2&\",,\"&$B310&\",\",data[],7),IF($B310&\",\"&$K67&\",\"&$Q$2&\",\"&$X$2&\",\"&AM$2=VLOOKUP($B310&\",\"&$K67&\",\"&$Q$2&\",\"&$X$2&\",\"&AM$2,data_flh_2[],1),VLOOKUP($B310&\",\"&$K67&\",\"&$Q$2&\",\"&$X$2&\",\"&AM$2,data_flh_2[],7),AM$256)),0)","v":0},null,null,null,null,null,null,null,null,null,null,null,null,null,null,{"$f":"IF(BB67,IF(\"FLH,\"&BB$2&\",,\"&$B310&\",\"=VLOOKUP(\"FLH,\"&BB$2&\",,\"&$B310&\",\",data[],1),VLOOKUP(\"FLH,\"&BB$2&\",,\"&$B310&\",\",data[],7),IF($B310&\",\"&$K67&\",\"&$Q$2&\",\"&$X$2&\",\"&BB$2=VLOOKUP($B310&\",\"&$K67&\",\"&$Q$2&\",\"&$X$2&\",\"&BB$2,data_flh_2[],1),VLOOKUP($B310&\",\"&$K67&\",\"&$Q$2&\",\"&$X$2&\",\"&BB$2,data_flh_2[],7),BB$256)),0)","v":6657.5999999999995},null,null,{"$f":"IF(BE67,IF(\"FLH,\"&BE$2&\",,\"&$B310&\",\"=VLOOKUP(\"FLH,\"&BE$2&\",,\"&$B310&\",\",data[],1),VLOOKUP(\"FLH,\"&BE$2&\",,\"&$B310&\",\",data[],7),IF($B310&\",\"&$K67&\",\"&$Q$2&\",\"&$X$2&\",\"&BE$2=VLOOKUP($B310&\",\"&$K67&\",\"&$Q$2&\",\"&$X$2&\",\"&BE$2,data_flh_2[],1),VLOOKUP($B310&\",\"&$K67&\",\"&$Q$2&\",\"&$X$2&\",\"&BE$2,data_flh_2[],7),BE$256)),0)","v":0}]
[null,"MEX",null,null,{"$f":"IF(\"FLH,\"&E$2&\",,\"&$B311&\",\"=VLOOKUP(\"FLH,\"&E$2&\",,\"&$B311&\",\",data[],1),VLOOKUP(\"FLH,\"&E$2&\",,\"&$B311&\",\",data[],7),0)","v":1731},{"$f":"IF(\"FLH,\"&F$2&\",,\"&$B311&\",\"=VLOOKUP(\"FLH,\"&F$2&\",,\"&$B311&\",\",data[],1),VLOOKUP(\"FLH,\"&F$2&\",,\"&$B311&\",\",data[],7),0)","v":0},{"$f":"IF(\"FLH,\"&G$2&\",,\"&$B311&\",\"=VLOOKUP(\"FLH,\"&G$2&\",,\"&$B311&\",\",data[],1),VLOOKUP(\"FLH,\"&G$2&\",,\"&$B311&\",\",data[],7),0)","v":4219.5},{"$f":"IF(\"FLH,\"&H$2&\",,\"&$B311&\",\"=VLOOKUP(\"FLH,\"&H$2&\",,\"&$B311&\",\",data[],1),VLOOKUP(\"FLH,\"&H$2&\",,\"&$B311&\",\",data[],7),0)","v":4042},{"$f":"IF(\"FLH,\"&I$2&\",,\"&$B311&\",\"=VLOOKUP(\"FLH,\"&I$2&\",,\"&$B311&\",\",data[],1),VLOOKUP(\"FLH,\"&I$2&\",,\"&$B311&\",\",data[],7),0)","v":4042},null,{"$f":"INDEX(E311:I311,J68)","v":4219.5},null,null,null,null,null,{"$f":"IF(\"FLH,\"&Q$2&\",,\"&$B311&\",\"=VLOOKUP(\"FLH,\"&Q$2&\",,\"&$B311&\",\",data[],1),VLOOKUP(\"FLH,\"&Q$2&\",,\"&$B311&\",\",data[],7),IF($B311&\",\"&$K68&\",\"&$Q$2&\",\"&$X$2&\",\"&Q$2=VLOOKUP($B311&\",\"&$K68&\",\"&$Q$2&\",\"&$X$2&\",\"&Q$2,data_flh_2[],1),VLOOKUP($B311&\",\"&$K68&\",\"&$Q$2&\",\"&$X$2&\",\"&Q$2,data_flh_2[],7),Q$256))","v":4009},null,null,null,null,null,null,{"$f":"IF(X$2<>\"\",IF(\"FLH,\"&X$2&\",,\"&$B311&\",\"=VLOOKUP(\"FLH,\"&X$2&\",,\"&$B311&\",\",data[],1),VLOOKUP(\"FLH,\"&X$2&\",,\"&$B311&\",\",data[],7),IF($B311&\",\"&$K68&\",\"&$Q$2&\",\"&$X$2&\",\"&X$2=VLOOKUP($B311&\",\"&$K68&\",\"&$Q$2&\",\"&$X$2&\",\"&X$2,data_flh_2[],1),VLOOKUP($B311&\",\"&$K68&\",\"&$Q$2&\",\"&$X$2&\",\"&X$2,data_flh_2[],7),X$256)),0)","v":0},null,null,null,null,null,null,null,null,null,null,null,null,{"$f":"IF(AK68,IF(\"FLH,\"&AK$2&\",,\"&$B311&\",\"=VLOOKUP(\"FLH,\"&AK$2&\",,\"&$B311&\",\",data[],1),VLOOKUP(\"FLH,\"&AK$2&\",,\"&$B311&\",\",data[],7),IF($B311&\",\"&$K68&\",\"&$Q$2&\",\"&$X$2&\",\"&AK$2=VLOOKUP($B311&\",\"&$K68&\",\"&$Q$2&\",\"&$X$2&\",\"&AK$2,data_flh_2[],1),VLOOKUP($B311&\",\"&$K68&\",\"&$Q$2&\",\"&$X$2&\",\"&AK$2,data_flh_2[],7),AK$256)),0)","v":3916.85},null,{"$f":"IF(AM68,IF(\"FLH,\"&AM$2&\",,\"&$B311&\",\"=VLOOKUP(\"FLH,\"&AM$2&\",,\"&$B311&\",\",data[],1),VLOOKUP(\"FLH,\"&AM$2&\",,\"&$B311&\",\",data[],7),IF($B311&\",\"&$K68&\",\"&$Q$2&\",\"&$X$2&\",\"&AM$2=VLOOKUP($B311&\",\"&$K68&\",\"&$Q$2&\",\"&$X$2&\",\"&AM$2,data_flh_2[],1),VLOOKUP($B311&\",\"&$K68&\",\"&$Q$2&\",\"&$X$2&\",\"&AM$2,data_flh_2[],7),AM$256)),0)","v":0},null,null,null,null,null,null,null,null,null,null,null,null,null,null,{"$f":"IF(BB68,IF(\"FLH,\"&BB$2&\",,\"&$B311&\",\"=VLOOKUP(\"FLH,\"&BB$2&\",,\"&$B311&\",\",data[],1),VLOOKUP(\"FLH,\"&BB$2&\",,\"&$B311&\",\",data[],7),IF($B311&\",\"&$K68&\",\"&$Q$2&\",\"&$X$2&\",\"&BB$2=VLOOKUP($B311&\",\"&$K68&\",\"&$Q$2&\",\"&$X$2&\",\"&BB$2,data_flh_2[],1),VLOOKUP($B311&\",\"&$K68&\",\"&$Q$2&\",\"&$X$2&\",\"&BB$2,data_flh_2[],7),BB$256)),0)","v":6657.5999999999995},null,null,{"$f":"IF(BE68,IF(\"FLH,\"&BE$2&\",,\"&$B311&\",\"=VLOOKUP(\"FLH,\"&BE$2&\",,\"&$B311&\",\",data[],1),VLOOKUP(\"FLH,\"&BE$2&\",,\"&$B311&\",\",data[],7),IF($B311&\",\"&$K68&\",\"&$Q$2&\",\"&$X$2&\",\"&BE$2=VLOOKUP($B311&\",\"&$K68&\",\"&$Q$2&\",\"&$X$2&\",\"&BE$2,data_flh_2[],1),VLOOKUP($B311&\",\"&$K68&\",\"&$Q$2&\",\"&$X$2&\",\"&BE$2,data_flh_2[],7),BE$256)),0)","v":0}]
[null,"MRT",null,null,{"$f":"IF(\"FLH,\"&E$2&\",,\"&$B312&\",\"=VLOOKUP(\"FLH,\"&E$2&\",,\"&$B312&\",\",data[],1),VLOOKUP(\"FLH,\"&E$2&\",,\"&$B312&\",\",data[],7),0)","v":1657},{"$f":"IF(\"FLH,\"&F$2&\",,\"&$B312&\",\"=VLOOKUP(\"FLH,\"&F$2&\",,\"&$B312&\",\",data[],1),VLOOKUP(\"FLH,\"&F$2&\",,\"&$B312&\",\",data[],7),0)","v":0},{"$f":"IF(\"FLH,\"&G$2&\",,\"&$B312&\",\"=VLOOKUP(\"FLH,\"&G$2&\",,\"&$B312&\",\",data[],1),VLOOKUP(\"FLH,\"&G$2&\",,\"&$B312&\",\",data[],7),0)","v":6214.79},{"$f":"IF(\"FLH,\"&H$2&\",,\"&$B312&\",\"=VLOOKUP(\"FLH,\"&H$2&\",,\"&$B312&\",\",data[],1),VLOOKUP(\"FLH,\"&H$2&\",,\"&$B312&\",\",data[],7),0)","v":4750},{"$f":"IF(\"FLH,\"&I$2&\",,\"&$B312&\",\"=VLOOKUP(\"FLH,\"&I$2&\",,\"&$B312&\",\",data[],1),VLOOKUP(\"FLH,\"&I$2&\",,\"&$B312&\",\",data[],7),0)","v":4750},null,{"$f":"INDEX(E312:I312,J69)","v":6214.79},null,null,null,null,null,{"$f":"IF(\"FLH,\"&Q$2&\",,\"&$B312&\",\"=VLOOKUP(\"FLH,\"&Q$2&\",,\"&$B312&\",\",data[],1),VLOOKUP(\"FLH,\"&Q$2&\",,\"&$B312&\",\",data[],7),IF($B312&\",\"&$K69&\",\"&$Q$2&\",\"&$X$2&\",\"&Q$2=VLOOKUP($B312&\",\"&$K69&\",\"&$Q$2&\",\"&$X$2&\",\"&Q$2,data_flh_2[],1),VLOOKUP($B312&\",\"&$K69&\",\"&$Q$2&\",\"&$X$2&\",\"&Q$2,data_flh_2[],7),Q$256))","v":6332.7},null,null,null,null,null,null,{"$f":"IF(X$2<>\"\",IF(\"FLH,\"&X$2&\",,\"&$B312&\",\"=VLOOKUP(\"FLH,\"&X$2&\",,\"&$B312&\",\",data[],1),VLOOKUP(\"FLH,\"&X$2&\",,\"&$B312&\",\",data[],7),IF($B312&\",\"&$K69&\",\"&$Q$2&\",\"&$X$2&\",\"&X$2=VLOOKUP($B312&\",\"&$K69&\",\"&$Q$2&\",\"&$X$2&\",\"&X$2,data_flh_2[],1),VLOOKUP($B312&\",\"&$K69&\",\"&$Q$2&\",\"&$X$2&\",\"&X$2,data_flh_2[],7),X$256)),0)","v":0},null,null,null,null,null,null,null,null,null,null,null,null,{"$f":"IF(AK69,IF(\"FLH,\"&AK$2&\",,\"&$B312&\",\"=VLOOKUP(\"FLH,\"&AK$2&\",,\"&$B312&\",\",data[],1),VLOOKUP(\"FLH,\"&AK$2&\",,\"&$B312&\",\",data[],7),IF($B312&\",\"&$K69&\",\"&$Q$2&\",\"&$X$2&\",\"&AK$2=VLOOKUP($B312&\",\"&$K69&\",\"&$Q$2&\",\"&$X$2&\",\"&AK$2,data_flh_2[],1),VLOOKUP($B312&\",\"&$K69&\",\"&$Q$2&\",\"&$X$2&\",\"&AK$2,data_flh_2[],7),AK$256)),0)","v":0},null,{"$f":"IF(AM69,IF(\"FLH,\"&AM$2&\",,\"&$B312&\",\"=VLOOKUP(\"FLH,\"&AM$2&\",,\"&$B312&\",\",data[],1),VLOOKUP(\"FLH,\"&AM$2&\",,\"&$B312&\",\",data[],7),IF($B312&\",\"&$K69&\",\"&$Q$2&\",\"&$X$2&\",\"&AM$2=VLOOKUP($B312&\",\"&$K69&\",\"&$Q$2&\",\"&$X$2&\",\"&AM$2,data_flh_2[],1),VLOOKUP($B312&\",\"&$K69&\",\"&$Q$2&\",\"&$X$2&\",\"&AM$2,data_flh_2[],7),AM$256)),0)","v":6657.5999999999995},null,null,null,null,null,null,null,null,null,null,null,null,null,null,{"$f":"IF(BB69,IF(\"FLH,\"&BB$2&\",,\"&$B312&\",\"=VLOOKUP(\"FLH,\"&BB$2&\",,\"&$B312&\",\",data[],1),VLOOKUP(\"FLH,\"&BB$2&\",,\"&$B312&\",\",data[],7),IF($B312&\",\"&$K69&\",\"&$Q$2&\",\"&$X$2&\",\"&BB$2=VLOOKUP($B312&\",\"&$K69&\",\"&$Q$2&\",\"&$X$2&\",\"&BB$2,data_flh_2[],1),VLOOKUP($B312&\",\"&$K69&\",\"&$Q$2&\",\"&$X$2&\",\"&BB$2,data_flh_2[],7),BB$256)),0)","v":0},null,null,{"$f":"IF(BE69,IF(\"FLH,\"&BE$2&\",,\"&$B312&\",\"=VLOOKUP(\"FLH,\"&BE$2&\",,\"&$B312&\",\",data[],1),VLOOKUP(\"FLH,\"&BE$2&\",,\"&$B312&\",\",data[],7),IF($B312&\",\"&$K69&\",\"&$Q$2&\",\"&$X$2&\",\"&BE$2=VLOOKUP($B312&\",\"&$K69&\",\"&$Q$2&\",\"&$X$2&\",\"&BE$2,data_flh_2[],1),VLOOKUP($B312&\",\"&$K69&\",\"&$Q$2&\",\"&$X$2&\",\"&BE$2,data_flh_2[],7),BE$256)),0)","v":0}]
[null,"NAM",null,null,{"$f":"IF(\"FLH,\"&E$2&\",,\"&$B313&\",\"=VLOOKUP(\"FLH,\"&E$2&\",,\"&$B313&\",\",data[],1),VLOOKUP(\"FLH,\"&E$2&\",,\"&$B313&\",\",data[],7),0)","v":1859.5896948000045},{"$f":"IF(\"FLH,\"&F$2&\",,\"&$B313&\",\"=VLOOKUP(\"FLH,\"&F$2&\",,\"&$B313&\",\",data[],1),VLOOKUP(\"FLH,\"&F$2&\",,\"&$B313&\",\",data[],7),0)","v":0},{"$f":"IF(\"FLH,\"&G$2&\",,\"&$B313&\",\"=VLOOKUP(\"FLH,\"&G$2&\",,\"&$B313&\",\",data[],1),VLOOKUP(\"FLH,\"&G$2&\",,\"&$B313&\",\",data[],7),0)","v":6766.4489765195067},{"$f":"IF(\"FLH,\"&H$2&\",,\"&$B313&\",\"=VLOOKUP(\"FLH,\"&H$2&\",,\"&$B313&\",\",data[],1),VLOOKUP(\"FLH,\"&H$2&\",,\"&$B313&\",\",data[],7),0)","v":5116},{"$f":"IF(\"FLH,\"&I$2&\",,\"&$B313&\",\"=VLOOKUP(\"FLH,\"&I$2&\",,\"&$B313&\",\",data[],1),VLOOKUP(\"FLH,\"&I$2&\",,\"&$B313&\",\",data[],7),0)","v":5116.1308995500021},null,{"$f":"INDEX(E313:I313,J70)","v":6766.4489765195067},null,null,null,null,null,{"$f":"IF(\"FLH,\"&Q$2&\",,\"&$B313&\",\"=VLOOKUP(\"FLH,\"&Q$2&\",,\"&$B313&\",\",data[],1),VLOOKUP(\"FLH,\"&Q$2&\",,\"&$B313&\",\",data[],7),IF($B313&\",\"&$K70&\",\"&$Q$2&\",\"&$X$2&\",\"&Q$2=VLOOKUP($B313&\",\"&$K70&\",\"&$Q$2&\",\"&$X$2&\",\"&Q$2,data_flh_2[],1),VLOOKUP($B313&\",\"&$K70&\",\"&$Q$2&\",\"&$X$2&\",\"&Q$2,data_flh_2[],7),Q$256))","v":7091.1753295807785},null,null,null,null,null,null,{"$f":"IF(X$2<>\"\",IF(\"FLH,\"&X$2&\",,\"&$B313&\",\"=VLOOKUP(\"FLH,\"&X$2&\",,\"&$B313&\",\",data[],1),VLOOKUP(\"FLH,\"&X$2&\",,\"&$B313&\",\",data[],7),IF($B313&\",\"&$K70&\",\"&$Q$2&\",\"&$X$2&\",\"&X$2=VLOOKUP($B313&\",\"&$K70&\",\"&$Q$2&\",\"&$X$2&\",\"&X$2,data_flh_2[],1),VLOOKUP($B313&\",\"&$K70&\",\"&$Q$2&\",\"&$X$2&\",\"&X$2,data_flh_2[],7),X$256)),0)","v":0},null,null,null,null,null,null,null,null,null,null,null,null,{"$f":"IF(AK70,IF(\"FLH,\"&AK$2&\",,\"&$B313&\",\"=VLOOKUP(\"FLH,\"&AK$2&\",,\"&$B313&\",\",data[],1),VLOOKUP(\"FLH,\"&AK$2&\",,\"&$B313&\",\",data[],7),IF($B313&\",\"&$K70&\",\"&$Q$2&\",\"&$X$2&\",\"&AK$2=VLOOKUP($B313&\",\"&$K70&\",\"&$Q$2&\",\"&$X$2&\",\"&AK$2,data_flh_2[],1),VLOOKUP($B313&\",\"&$K70&\",\"&$Q$2&\",\"&$X$2&\",\"&AK$2,data_flh_2[],7),AK$256)),0)","v":7150.5619428729515},null,{"$f":"IF(AM70,IF(\"FLH,\"&AM$2&\",,\"&$B313&\",\"=VLOOKUP(\"FLH,\"&AM$2&\",,\"&$B313&\",\",data[],1),VLOOKUP(\"FLH,\"&AM$2&\",,\"&$B313&\",\",data[],7),IF($B313&\",\"&$K70&\",\"&$Q$2&\",\"&$X$2&\",\"&AM$2=VLOOKUP($B313&\",\"&$K70&\",\"&$Q$2&\",\"&$X$2&\",\"&AM$2,data_flh_2[],1),VLOOKUP($B313&\",\"&$K70&\",\"&$Q$2&\",\"&$X$2&\",\"&AM$2,data_flh_2[],7),AM$256)),0)","v":0},null,null,null,null,null,null,null,null,null,null,null,null,null,null,{"$f":"IF(BB70,IF(\"FLH,\"&BB$2&\",,\"&$B313&\",\"=VLOOKUP(\"FLH,\"&BB$2&\",,\"&$B313&\",\",data[],1),VLOOKUP(\"FLH,\"&BB$2&\",,\"&$B313&\",\",data[],7),IF($B313&\",\"&$K70&\",\"&$Q$2&\",\"&$X$2&\",\"&BB$2=VLOOKUP($B313&\",\"&$K70&\",\"&$Q$2&\",\"&$X$2&\",\"&BB$2,data_flh_2[],1),VLOOKUP($B313&\",\"&$K70&\",\"&$Q$2&\",\"&$X$2&\",\"&BB$2,data_flh_2[],7),BB$256)),0)","v":6657.5999999999995},null,null,{"$f":"IF(BE70,IF(\"FLH,\"&BE$2&\",,\"&$B313&\",\"=VLOOKUP(\"FLH,\"&BE$2&\",,\"&$B313&\",\",data[],1),VLOOKUP(\"FLH,\"&BE$2&\",,\"&$B313&\",\",data[],7),IF($B313&\",\"&$K70&\",\"&$Q$2&\",\"&$X$2&\",\"&BE$2=VLOOKUP($B313&\",\"&$K70&\",\"&$Q$2&\",\"&$X$2&\",\"&BE$2,data_flh_2[],1),VLOOKUP($B313&\",\"&$K70&\",\"&$Q$2&\",\"&$X$2&\",\"&BE$2,data_flh_2[],7),BE$256)),0)","v":0}]
[null,"NOR",null,null,{"$f":"IF(\"FLH,\"&E$2&\",,\"&$B314&\",\"=VLOOKUP(\"FLH,\"&E$2&\",,\"&$B314&\",\",data[],1),VLOOKUP(\"FLH,\"&E$2&\",,\"&$B314&\",\",data[],7),0)","v":845.30347200000051},{"$f":"IF(\"FLH,\"&F$2&\",,\"&$B314&\",\"=VLOOKUP(\"FLH,\"&F$2&\",,\"&$B314&\",\",data[],1),VLOOKUP(\"FLH,\"&F$2&\",,\"&$B314&\",\",data[],7),0)","v":0},{"$f":"IF(\"FLH,\"&G$2&\",,\"&$B314&\",\"=VLOOKUP(\"FLH,\"&G$2&\",,\"&$B314&\",\",data[],1),VLOOKUP(\"FLH,\"&G$2&\",,\"&$B314&\",\",data[],7),0)","v":4955.9832041924956},{"$f":"IF(\"FLH,\"&H$2&\",,\"&$B314&\",\"=VLOOKUP(\"FLH,\"&H$2&\",,\"&$B314&\",\",data[],1),VLOOKUP(\"FLH,\"&H$2&\",,\"&$B314&\",\",data[],7),0)","v":4730},{"$f":"IF(\"FLH,\"&I$2&\",,\"&$B314&\",\"=VLOOKUP(\"FLH,\"&I$2&\",,\"&$B314&\",\",data[],1),VLOOKUP(\"FLH,\"&I$2&\",,\"&$B314&\",\",data[],7),0)","v":4263.9575632499955},null,{"$f":"INDEX(E314:I314,J71)","v":4955.9832041924956},null,null,null,null,null,{"$f":"IF(\"FLH,\"&Q$2&\",,\"&$B314&\",\"=VLOOKUP(\"FLH,\"&Q$2&\",,\"&$B314&\",\",data[],1),VLOOKUP(\"FLH,\"&Q$2&\",,\"&$B314&\",\",data[],7),IF($B314&\",\"&$K71&\",\"&$Q$2&\",\"&$X$2&\",\"&Q$2=VLOOKUP($B314&\",\"&$K71&\",\"&$Q$2&\",\"&$X$2&\",\"&Q$2,data_flh_2[],1),VLOOKUP($B314&\",\"&$K71&\",\"&$Q$2&\",\"&$X$2&\",\"&Q$2,data_flh_2[],7),Q$256))","v":5029.142967364518},null,null,null,null,null,null,{"$f":"IF(X$2<>\"\",IF(\"FLH,\"&X$2&\",,\"&$B314&\",\"=VLOOKUP(\"FLH,\"&X$2&\",,\"&$B314&\",\",data[],1),VLOOKUP(\"FLH,\"&X$2&\",,\"&$B314&\",\",data[],7),IF($B314&\",\"&$K71&\",\"&$Q$2&\",\"&$X$2&\",\"&X$2=VLOOKUP($B314&\",\"&$K71&\",\"&$Q$2&\",\"&$X$2&\",\"&X$2,data_flh_2[],1),VLOOKUP($B314&\",\"&$K71&\",\"&$Q$2&\",\"&$X$2&\",\"&X$2,data_flh_2[],7),X$256)),0)","v":0},null,null,null,null,null,null,null,null,null,null,null,null,{"$f":"IF(AK71,IF(\"FLH,\"&AK$2&\",,\"&$B314&\",\"=VLOOKUP(\"FLH,\"&AK$2&\",,\"&$B314&\",\",data[],1),VLOOKUP(\"FLH,\"&AK$2&\",,\"&$B314&\",\",data[],7),IF($B314&\",\"&$K71&\",\"&$Q$2&\",\"&$X$2&\",\"&AK$2=VLOOKUP($B314&\",\"&$K71&\",\"&$Q$2&\",\"&$X$2&\",\"&AK$2,data_flh_2[],1),VLOOKUP($B314&\",\"&$K71&\",\"&$Q$2&\",\"&$X$2&\",\"&AK$2,data_flh_2[],7),AK$256)),0)","v":0},null,{"$f":"IF(AM71,IF(\"FLH,\"&AM$2&\",,\"&$B314&\",\"=VLOOKUP(\"FLH,\"&AM$2&\",,\"&$B314&\",\",data[],1),VLOOKUP(\"FLH,\"&AM$2&\",,\"&$B314&\",\",data[],7),IF($B314&\",\"&$K71&\",\"&$Q$2&\",\"&$X$2&\",\"&AM$2=VLOOKUP($B314&\",\"&$K71&\",\"&$Q$2&\",\"&$X$2&\",\"&AM$2,data_flh_2[],1),VLOOKUP($B314&\",\"&$K71&\",\"&$Q$2&\",\"&$X$2&\",\"&AM$2,data_flh_2[],7),AM$256)),0)","v":6657.5999999999995},null,null,null,null,null,null,null,null,null,null,null,null,null,null,{"$f":"IF(BB71,IF(\"FLH,\"&BB$2&\",,\"&$B314&\",\"=VLOOKUP(\"FLH,\"&BB$2&\",,\"&$B314&\",\",data[],1),VLOOKUP(\"FLH,\"&BB$2&\",,\"&$B314&\",\",data[],7),IF($B314&\",\"&$K71&\",\"&$Q$2&\",\"&$X$2&\",\"&BB$2=VLOOKUP($B314&\",\"&$K71&\",\"&$Q$2&\",\"&$X$2&\",\"&BB$2,data_flh_2[],1),VLOOKUP($B314&\",\"&$K71&\",\"&$Q$2&\",\"&$X$2&\",\"&BB$2,data_flh_2[],7),BB$256)),0)","v":0},null,null,{"$f":"IF(BE71,IF(\"FLH,\"&BE$2&\",,\"&$B314&\",\"=VLOOKUP(\"FLH,\"&BE$2&\",,\"&$B314&\",\",data[],1),VLOOKUP(\"FLH,\"&BE$2&\",,\"&$B314&\",\",data[],7),IF($B314&\",\"&$K71&\",\"&$Q$2&\",\"&$X$2&\",\"&BE$2=VLOOKUP($B314&\",\"&$K71&\",\"&$Q$2&\",\"&$X$2&\",\"&BE$2,data_flh_2[],1),VLOOKUP($B314&\",\"&$K71&\",\"&$Q$2&\",\"&$X$2&\",\"&BE$2,data_flh_2[],7),BE$256)),0)","v":0}]
[null,"PER",null,null,{"$f":"IF(\"FLH,\"&E$2&\",,\"&$B315&\",\"=VLOOKUP(\"FLH,\"&E$2&\",,\"&$B315&\",\",data[],1),VLOOKUP(\"FLH,\"&E$2&\",,\"&$B315&\",\",data[],7),0)","v":1746},{"$f":"IF(\"FLH,\"&F$2&\",,\"&$B315&\",\"=VLOOKUP(\"FLH,\"&F$2&\",,\"&$B315&\",\",data[],1),VLOOKUP(\"FLH,\"&F$2&\",,\"&$B315&\",\",data[],7),0)","v":0},{"$f":"IF(\"FLH,\"&G$2&\",,\"&$B315&\",\"=VLOOKUP(\"FLH,\"&G$2&\",,\"&$B315&\",\",data[],1),VLOOKUP(\"FLH,\"&G$2&\",,\"&$B315&\",\",data[],7),0)","v":2965.29},{"$f":"IF(\"FLH,\"&H$2&\",,\"&$B315&\",\"=VLOOKUP(\"FLH,\"&H$2&\",,\"&$B315&\",\",data[],1),VLOOKUP(\"FLH,\"&H$2&\",,\"&$B315&\",\",data[],7),0)","v":3854},{"$f":"IF(\"FLH,\"&I$2&\",,\"&$B315&\",\"=VLOOKUP(\"FLH,\"&I$2&\",,\"&$B315&\",\",data[],1),VLOOKUP(\"FLH,\"&I$2&\",,\"&$B315&\",\",data[],7),0)","v":1448},null,{"$f":"INDEX(E315:I315,J72)","v":2965.29},null,null,null,null,null,{"$f":"IF(\"FLH,\"&Q$2&\",,\"&$B315&\",\"=VLOOKUP(\"FLH,\"&Q$2&\",,\"&$B315&\",\",data[],1),VLOOKUP(\"FLH,\"&Q$2&\",,\"&$B315&\",\",data[],7),IF($B315&\",\"&$K72&\",\"&$Q$2&\",\"&$X$2&\",\"&Q$2=VLOOKUP($B315&\",\"&$K72&\",\"&$Q$2&\",\"&$X$2&\",\"&Q$2,data_flh_2[],1),VLOOKUP($B315&\",\"&$K72&\",\"&$Q$2&\",\"&$X$2&\",\"&Q$2,data_flh_2[],7),Q$256))","v":2848.1},null,null,null,null,null,null,{"$f":"IF(X$2<>\"\",IF(\"FLH,\"&X$2&\",,\"&$B315&\",\"=VLOOKUP(\"FLH,\"&X$2&\",,\"&$B315&\",\",data[],1),VLOOKUP(\"FLH,\"&X$2&\",,\"&$B315&\",\",data[],7),IF($B315&\",\"&$K72&\",\"&$Q$2&\",\"&$X$2&\",\"&X$2=VLOOKUP($B315&\",\"&$K72&\",\"&$Q$2&\",\"&$X$2&\",\"&X$2,data_flh_2[],1),VLOOKUP($B315&\",\"&$K72&\",\"&$Q$2&\",\"&$X$2&\",\"&X$2,data_flh_2[],7),X$256)),0)","v":0},null,null,null,null,null,null,null,null,null,null,null,null,{"$f":"IF(AK72,IF(\"FLH,\"&AK$2&\",,\"&$B315&\",\"=VLOOKUP(\"FLH,\"&AK$2&\",,\"&$B315&\",\",data[],1),VLOOKUP(\"FLH,\"&AK$2&\",,\"&$B315&\",\",data[],7),IF($B315&\",\"&$K72&\",\"&$Q$2&\",\"&$X$2&\",\"&AK$2=VLOOKUP($B315&\",\"&$K72&\",\"&$Q$2&\",\"&$X$2&\",\"&AK$2,data_flh_2[],1),VLOOKUP($B315&\",\"&$K72&\",\"&$Q$2&\",\"&$X$2&\",\"&AK$2,data_flh_2[],7),AK$256)),0)","v":2829.1},null,{"$f":"IF(AM72,IF(\"FLH,\"&AM$2&\",,\"&$B315&\",\"=VLOOKUP(\"FLH,\"&AM$2&\",,\"&$B315&\",\",data[],1),VLOOKUP(\"FLH,\"&AM$2&\",,\"&$B315&\",\",data[],7),IF($B315&\",\"&$K72&\",\"&$Q$2&\",\"&$X$2&\",\"&AM$2=VLOOKUP($B315&\",\"&$K72&\",\"&$Q$2&\",\"&$X$2&\",\"&AM$2,data_flh_2[],1),VLOOKUP($B315&\",\"&$K72&\",\"&$Q$2&\",\"&$X$2&\",\"&AM$2,data_flh_2[],7),AM$256)),0)","v":0},null,null,null,null,null,null,null,null,null,null,null,null,null,null,{"$f":"IF(BB72,IF(\"FLH,\"&BB$2&\",,\"&$B315&\",\"=VLOOKUP(\"FLH,\"&BB$2&\",,\"&$B315&\",\",data[],1),VLOOKUP(\"FLH,\"&BB$2&\",,\"&$B315&\",\",data[],7),IF($B315&\",\"&$K72&\",\"&$Q$2&\",\"&$X$2&\",\"&BB$2=VLOOKUP($B315&\",\"&$K72&\",\"&$Q$2&\",\"&$X$2&\",\"&BB$2,data_flh_2[],1),VLOOKUP($B315&\",\"&$K72&\",\"&$Q$2&\",\"&$X$2&\",\"&BB$2,data_flh_2[],7),BB$256)),0)","v":6657.5999999999995},null,null,{"$f":"IF(BE72,IF(\"FLH,\"&BE$2&\",,\"&$B315&\",\"=VLOOKUP(\"FLH,\"&BE$2&\",,\"&$B315&\",\",data[],1),VLOOKUP(\"FLH,\"&BE$2&\",,\"&$B315&\",\",data[],7),IF($B315&\",\"&$K72&\",\"&$Q$2&\",\"&$X$2&\",\"&BE$2=VLOOKUP($B315&\",\"&$K72&\",\"&$Q$2&\",\"&$X$2&\",\"&BE$2,data_flh_2[],1),VLOOKUP($B315&\",\"&$K72&\",\"&$Q$2&\",\"&$X$2&\",\"&BE$2,data_flh_2[],7),BE$256)),0)","v":0}]
[null,"PRT",null,null,{"$f":"IF(\"FLH,\"&E$2&\",,\"&$B316&\",\"=VLOOKUP(\"FLH,\"&E$2&\",,\"&$B316&\",\",data[],1),VLOOKUP(\"FLH,\"&E$2&\",,\"&$B316&\",\",data[],7),0)","v":1445.5080791999967},{"$f":"IF(\"FLH,\"&F$2&\",,\"&$B316&\",\"=VLOOKUP(\"FLH,\"&F$2&\",,\"&$B316&\",\",data[],1),VLOOKUP(\"FLH,\"&F$2&\",,\"&$B316&\",\",data[],7),0)","v":0},{"$f":"IF(\"FLH,\"&G$2&\",,\"&$B316&\",\"=VLOOKUP(\"FLH,\"&G$2&\",,\"&$B316&\",\",data[],1),VLOOKUP(\"FLH,\"&G$2&\",,\"&$B316&\",\",data[],7),0)","v":5677.7820377284897},{"$f":"IF(\"FLH,\"&H$2&\",,\"&$B316&\",\"=VLOOKUP(\"FLH,\"&H$2&\",,\"&$B316&\",\",data[],1),VLOOKUP(\"FLH,\"&H$2&\",,\"&$B316&\",\",data[],7),0)","v":4408},{"$f":"IF(\"FLH,\"&I$2&\",,\"&$B316&\",\"=VLOOKUP(\"FLH,\"&I$2&\",,\"&$B316&\",\",data[],1),VLOOKUP(\"FLH,\"&I$2&\",,\"&$B316&\",\",data[],7),0)","v":4407.8754648499926},null,{"$f":"INDEX(E316:I316,J73)","v":5677.7820377284897},null,null,null,null,null,{"$f":"IF(\"FLH,\"&Q$2&\",,\"&$B316&\",\"=VLOOKUP(\"FLH,\"&Q$2&\",,\"&$B316&\",\",data[],1),VLOOKUP(\"FLH,\"&Q$2&\",,\"&$B316&\",\",data[],7),IF($B316&\",\"&$K73&\",\"&$Q$2&\",\"&$X$2&\",\"&Q$2=VLOOKUP($B316&\",\"&$K73&\",\"&$Q$2&\",\"&$X$2&\",\"&Q$2,data_flh_2[],1),VLOOKUP($B316&\",\"&$K73&\",\"&$Q$2&\",\"&$X$2&\",\"&Q$2,data_flh_2[],7),Q$256))","v":5851.2366940236789},null,null,null,null,null,null,{"$f":"IF(X$2<>\"\",IF(\"FLH,\"&X$2&\",,\"&$B316&\",\"=VLOOKUP(\"FLH,\"&X$2&\",,\"&$B316&\",\",data[],1),VLOOKUP(\"FLH,\"&X$2&\",,\"&$B316&\",\",data[],7),IF($B316&\",\"&$K73&\",\"&$Q$2&\",\"&$X$2&\",\"&X$2=VLOOKUP($B316&\",\"&$K73&\",\"&$Q$2&\",\"&$X$2&\",\"&X$2,data_flh_2[],1),VLOOKUP($B316&\",\"&$K73&\",\"&$Q$2&\",\"&$X$2&\",\"&X$2,data_flh_2[],7),X$256)),0)","v":0},null,null,null,null,null,null,null,null,null,null,null,null,{"$f":"IF(AK73,IF(\"FLH,\"&AK$2&\",,\"&$B316&\",\"=VLOOKUP(\"FLH,\"&AK$2&\",,\"&$B316&\",\",data[],1),VLOOKUP(\"FLH,\"&AK$2&\",,\"&$B316&\",\",data[],7),IF($B316&\",\"&$K73&\",\"&$Q$2&\",\"&$X$2&\",\"&AK$2=VLOOKUP($B316&\",\"&$K73&\",\"&$Q$2&\",\"&$X$2&\",\"&AK$2,data_flh_2[],1),VLOOKUP($B316&\",\"&$K73&\",\"&$Q$2&\",\"&$X$2&\",\"&AK$2,data_flh_2[],7),AK$256)),0)","v":0},null,{"$f":"IF(AM73,IF(\"FLH,\"&AM$2&\",,\"&$B316&\",\"=VLOOKUP(\"FLH,\"&AM$2&\",,\"&$B316&\",\",data[],1),VLOOKUP(\"FLH,\"&AM$2&\",,\"&$B316&\",\",data[],7),IF($B316&\",\"&$K73&\",\"&$Q$2&\",\"&$X$2&\",\"&AM$2=VLOOKUP($B316&\",\"&$K73&\",\"&$Q$2&\",\"&$X$2&\",\"&AM$2,data_flh_2[],1),VLOOKUP($B316&\",\"&$K73&\",\"&$Q$2&\",\"&$X$2&\",\"&AM$2,data_flh_2[],7),AM$256)),0)","v":6657.5999999999995},null,null,null,null,null,null,null,null,null,null,null,null,null,null,{"$f":"IF(BB73,IF(\"FLH,\"&BB$2&\",,\"&$B316&\",\"=VLOOKUP(\"FLH,\"&BB$2&\",,\"&$B316&\",\",data[],1),VLOOKUP(\"FLH,\"&BB$2&\",,\"&$B316&\",\",data[],7),IF($B316&\",\"&$K73&\",\"&$Q$2&\",\"&$X$2&\",\"&BB$2=VLOOKUP($B316&\",\"&$K73&\",\"&$Q$2&\",\"&$X$2&\",\"&BB$2,data_flh_2[],1),VLOOKUP($B316&\",\"&$K73&\",\"&$Q$2&\",\"&$X$2&\",\"&BB$2,data_flh_2[],7),BB$256)),0)","v":0},null,null,{"$f":"IF(BE73,IF(\"FLH,\"&BE$2&\",,\"&$B316&\",\"=VLOOKUP(\"FLH,\"&BE$2&\",,\"&$B316&\",\",data[],1),VLOOKUP(\"FLH,\"&BE$2&\",,\"&$B316&\",\",data[],7),IF($B316&\",\"&$K73&\",\"&$Q$2&\",\"&$X$2&\",\"&BE$2=VLOOKUP($B316&\",\"&$K73&\",\"&$Q$2&\",\"&$X$2&\",\"&BE$2,data_flh_2[],1),VLOOKUP($B316&\",\"&$K73&\",\"&$Q$2&\",\"&$X$2&\",\"&BE$2,data_flh_2[],7),BE$256)),0)","v":0}]
[null,"RUS",null,null,{"$f":"IF(\"FLH,\"&E$2&\",,\"&$B317&\",\"=VLOOKUP(\"FLH,\"&E$2&\",,\"&$B317&\",\",data[],1),VLOOKUP(\"FLH,\"&E$2&\",,\"&$B317&\",\",data[],7),0)","v":1173},{"$f":"IF(\"FLH,\"&F$2&\",,\"&$B317&\",\"=VLOOKUP(\"FLH,\"&F$2&\",,\"&$B317&\",\",data[],1),VLOOKUP(\"FLH,\"&F$2&\",,\"&$B317&\",\",data[],7),0)","v":0},{"$f":"IF(\"FLH,\"&G$2&\",,\"&$B317&\",\"=VLOOKUP(\"FLH,\"&G$2&\",,\"&$B317&\",\",data[],1),VLOOKUP(\"FLH,\"&G$2&\",,\"&$B317&\",\",data[],7),0)","v":3549.23},{"$f":"IF(\"FLH,\"&H$2&\",,\"&$B317&\",\"=VLOOKUP(\"FLH,\"&H$2&\",,\"&$B317&\",\",data[],1),VLOOKUP(\"FLH,\"&H$2&\",,\"&$B317&\",\",data[],7),0)","v":4522},{"$f":"IF(\"FLH,\"&I$2&\",,\"&$B317&\",\"=VLOOKUP(\"FLH,\"&I$2&\",,\"&$B317&\",\",data[],1),VLOOKUP(\"FLH,\"&I$2&\",,\"&$B317&\",\",data[],7),0)","v":4522},null,{"$f":"INDEX(E317:I317,J74)","v":3549.23},null,null,null,null,null,{"$f":"IF(\"FLH,\"&Q$2&\",,\"&$B317&\",\"=VLOOKUP(\"FLH,\"&Q$2&\",,\"&$B317&\",\",data[],1),VLOOKUP(\"FLH,\"&Q$2&\",,\"&$B317&\",\",data[],7),IF($B317&\",\"&$K74&\",\"&$Q$2&\",\"&$X$2&\",\"&Q$2=VLOOKUP($B317&\",\"&$K74&\",\"&$Q$2&\",\"&$X$2&\",\"&Q$2,data_flh_2[],1),VLOOKUP($B317&\",\"&$K74&\",\"&$Q$2&\",\"&$X$2&\",\"&Q$2,data_flh_2[],7),Q$256))","v":4175.25},null,null,null,null,null,null,{"$f":"IF(X$2<>\"\",IF(\"FLH,\"&X$2&\",,\"&$B317&\",\"=VLOOKUP(\"FLH,\"&X$2&\",,\"&$B317&\",\",data[],1),VLOOKUP(\"FLH,\"&X$2&\",,\"&$B317&\",\",data[],7),IF($B317&\",\"&$K74&\",\"&$Q$2&\",\"&$X$2&\",\"&X$2=VLOOKUP($B317&\",\"&$K74&\",\"&$Q$2&\",\"&$X$2&\",\"&X$2,data_flh_2[],1),VLOOKUP($B317&\",\"&$K74&\",\"&$Q$2&\",\"&$X$2&\",\"&X$2,data_flh_2[],7),X$256)),0)","v":0},null,null,null,null,null,null,null,null,null,null,null,null,{"$f":"IF(AK74,IF(\"FLH,\"&AK$2&\",,\"&$B317&\",\"=VLOOKUP(\"FLH,\"&AK$2&\",,\"&$B317&\",\",data[],1),VLOOKUP(\"FLH,\"&AK$2&\",,\"&$B317&\",\",data[],7),IF($B317&\",\"&$K74&\",\"&$Q$2&\",\"&$X$2&\",\"&AK$2=VLOOKUP($B317&\",\"&$K74&\",\"&$Q$2&\",\"&$X$2&\",\"&AK$2,data_flh_2[],1),VLOOKUP($B317&\",\"&$K74&\",\"&$Q$2&\",\"&$X$2&\",\"&AK$2,data_flh_2[],7),AK$256)),0)","v":0},null,{"$f":"IF(AM74,IF(\"FLH,\"&AM$2&\",,\"&$B317&\",\"=VLOOKUP(\"FLH,\"&AM$2&\",,\"&$B317&\",\",data[],1),VLOOKUP(\"FLH,\"&AM$2&\",,\"&$B317&\",\",data[],7),IF($B317&\",\"&$K74&\",\"&$Q$2&\",\"&$X$2&\",\"&AM$2=VLOOKUP($B317&\",\"&$K74&\",\"&$Q$2&\",\"&$X$2&\",\"&AM$2,data_flh_2[],1),VLOOKUP($B317&\",\"&$K74&\",\"&$Q$2&\",\"&$X$2&\",\"&AM$2,data_flh_2[],7),AM$256)),0)","v":6657.5999999999995},null,null,null,null,null,null,null,null,null,null,null,null,null,null,{"$f":"IF(BB74,IF(\"FLH,\"&BB$2&\",,\"&$B317&\",\"=VLOOKUP(\"FLH,\"&BB$2&\",,\"&$B317&\",\",data[],1),VLOOKUP(\"FLH,\"&BB$2&\",,\"&$B317&\",\",data[],7),IF($B317&\",\"&$K74&\",\"&$Q$2&\",\"&$X$2&\",\"&BB$2=VLOOKUP($B317&\",\"&$K74&\",\"&$Q$2&\",\"&$X$2&\",\"&BB$2,data_flh_2[],1),VLOOKUP($B317&\",\"&$K74&\",\"&$Q$2&\",\"&$X$2&\",\"&BB$2,data_flh_2[],7),BB$256)),0)","v":0},null,null,{"$f":"IF(BE74,IF(\"FLH,\"&BE$2&\",,\"&$B317&\",\"=VLOOKUP(\"FLH,\"&BE$2&\",,\"&$B317&\",\",data[],1),VLOOKUP(\"FLH,\"&BE$2&\",,\"&$B317&\",\",data[],7),IF($B317&\",\"&$K74&\",\"&$Q$2&\",\"&$X$2&\",\"&BE$2=VLOOKUP($B317&\",\"&$K74&\",\"&$Q$2&\",\"&$X$2&\",\"&BE$2,data_flh_2[],1),VLOOKUP($B317&\",\"&$K74&\",\"&$Q$2&\",\"&$X$2&\",\"&BE$2,data_flh_2[],7),BE$256)),0)","v":0}]
[null,"SAU",null,null,{"$f":"IF(\"FLH,\"&E$2&\",,\"&$B318&\",\"=VLOOKUP(\"FLH,\"&E$2&\",,\"&$B318&\",\",data[],1),VLOOKUP(\"FLH,\"&E$2&\",,\"&$B318&\",\",data[],7),0)","v":1723},{"$f":"IF(\"FLH,\"&F$2&\",,\"&$B318&\",\"=VLOOKUP(\"FLH,\"&F$2&\",,\"&$B318&\",\",data[],1),VLOOKUP(\"FLH,\"&F$2&\",,\"&$B318&\",\",data[],7),0)","v":0},{"$f":"IF(\"FLH,\"&G$2&\",,\"&$B318&\",\"=VLOOKUP(\"FLH,\"&G$2&\",,\"&$B318&\",\",data[],1),VLOOKUP(\"FLH,\"&G$2&\",,\"&$B318&\",\",data[],7),0)","v":3830.5299999999997},{"$f":"IF(\"FLH,\"&H$2&\",,\"&$B318&\",\"=VLOOKUP(\"FLH,\"&H$2&\",,\"&$B318&\",\",data[],1),VLOOKUP(\"FLH,\"&H$2&\",,\"&$B318&\",\",data[],7),0)","v":2453},{"$f":"IF(\"FLH,\"&I$2&\",,\"&$B318&\",\"=VLOOKUP(\"FLH,\"&I$2&\",,\"&$B318&\",\",data[],1),VLOOKUP(\"FLH,\"&I$2&\",,\"&$B318&\",\",data[],7),0)","v":2282},null,{"$f":"INDEX(E318:I318,J75)","v":3830.5299999999997},null,null,null,null,null,{"$f":"IF(\"FLH,\"&Q$2&\",,\"&$B318&\",\"=VLOOKUP(\"FLH,\"&Q$2&\",,\"&$B318&\",\",data[],1),VLOOKUP(\"FLH,\"&Q$2&\",,\"&$B318&\",\",data[],7),IF($B318&\",\"&$K75&\",\"&$Q$2&\",\"&$X$2&\",\"&Q$2=VLOOKUP($B318&\",\"&$K75&\",\"&$Q$2&\",\"&$X$2&\",\"&Q$2,data_flh_2[],1),VLOOKUP($B318&\",\"&$K75&\",\"&$Q$2&\",\"&$X$2&\",\"&Q$2,data_flh_2[],7),Q$256))","v":3409.0749999999998},null,null,null,null,null,null,{"$f":"IF(X$2<>\"\",IF(\"FLH,\"&X$2&\",,\"&$B318&\",\"=VLOOKUP(\"FLH,\"&X$2&\",,\"&$B318&\",\",data[],1),VLOOKUP(\"FLH,\"&X$2&\",,\"&$B318&\",\",data[],7),IF($B318&\",\"&$K75&\",\"&$Q$2&\",\"&$X$2&\",\"&X$2=VLOOKUP($B318&\",\"&$K75&\",\"&$Q$2&\",\"&$X$2&\",\"&X$2,data_flh_2[],1),VLOOKUP($B318&\",\"&$K75&\",\"&$Q$2&\",\"&$X$2&\",\"&X$2,data_flh_2[],7),X$256)),0)","v":0},null,null,null,null,null,null,null,null,null,null,null,null,{"$f":"IF(AK75,IF(\"FLH,\"&AK$2&\",,\"&$B318&\",\"=VLOOKUP(\"FLH,\"&AK$2&\",,\"&$B318&\",\",data[],1),VLOOKUP(\"FLH,\"&AK$2&\",,\"&$B318&\",\",data[],7),IF($B318&\",\"&$K75&\",\"&$Q$2&\",\"&$X$2&\",\"&AK$2=VLOOKUP($B318&\",\"&$K75&\",\"&$Q$2&\",\"&$X$2&\",\"&AK$2,data_flh_2[],1),VLOOKUP($B318&\",\"&$K75&\",\"&$Q$2&\",\"&$X$2&\",\"&AK$2,data_flh_2[],7),AK$256)),0)","v":0},null,{"$f":"IF(AM75,IF(\"FLH,\"&AM$2&\",,\"&$B318&\",\"=VLOOKUP(\"FLH,\"&AM$2&\",,\"&$B318&\",\",data[],1),VLOOKUP(\"FLH,\"&AM$2&\",,\"&$B318&\",\",data[],7),IF($B318&\",\"&$K75&\",\"&$Q$2&\",\"&$X$2&\",\"&AM$2=VLOOKUP($B318&\",\"&$K75&\",\"&$Q$2&\",\"&$X$2&\",\"&AM$2,data_flh_2[],1),VLOOKUP($B318&\",\"&$K75&\",\"&$Q$2&\",\"&$X$2&\",\"&AM$2,data_flh_2[],7),AM$256)),0)","v":6657.5999999999995},null,null,null,null,null,null,null,null,null,null,null,null,null,null,{"$f":"IF(BB75,IF(\"FLH,\"&BB$2&\",,\"&$B318&\",\"=VLOOKUP(\"FLH,\"&BB$2&\",,\"&$B318&\",\",data[],1),VLOOKUP(\"FLH,\"&BB$2&\",,\"&$B318&\",\",data[],7),IF($B318&\",\"&$K75&\",\"&$Q$2&\",\"&$X$2&\",\"&BB$2=VLOOKUP($B318&\",\"&$K75&\",\"&$Q$2&\",\"&$X$2&\",\"&BB$2,data_flh_2[],1),VLOOKUP($B318&\",\"&$K75&\",\"&$Q$2&\",\"&$X$2&\",\"&BB$2,data_flh_2[],7),BB$256)),0)","v":0},null,null,{"$f":"IF(BE75,IF(\"FLH,\"&BE$2&\",,\"&$B318&\",\"=VLOOKUP(\"FLH,\"&BE$2&\",,\"&$B318&\",\",data[],1),VLOOKUP(\"FLH,\"&BE$2&\",,\"&$B318&\",\",data[],7),IF($B318&\",\"&$K75&\",\"&$Q$2&\",\"&$X$2&\",\"&BE$2=VLOOKUP($B318&\",\"&$K75&\",\"&$Q$2&\",\"&$X$2&\",\"&BE$2,data_flh_2[],1),VLOOKUP($B318&\",\"&$K75&\",\"&$Q$2&\",\"&$X$2&\",\"&BE$2,data_flh_2[],7),BE$256)),0)","v":0}]
[null,"SWE",null,null,{"$f":"IF(\"FLH,\"&E$2&\",,\"&$B319&\",\"=VLOOKUP(\"FLH,\"&E$2&\",,\"&$B319&\",\",data[],1),VLOOKUP(\"FLH,\"&E$2&\",,\"&$B319&\",\",data[],7),0)","v":886.08134879999852},{"$f":"IF(\"FLH,\"&F$2&\",,\"&$B319&\",\"=VLOOKUP(\"FLH,\"&F$2&\",,\"&$B319&\",\",data[],1),VLOOKUP(\"FLH,\"&F$2&\",,\"&$B319&\",\",data[],7),0)","v":0},{"$f":"IF(\"FLH,\"&G$2&\",,\"&$B319&\",\"=VLOOKUP(\"FLH,\"&G$2&\",,\"&$B319&\",\",data[],1),VLOOKUP(\"FLH,\"&G$2&\",,\"&$B319&\",\",data[],7),0)","v":3823.9828340194917},{"$f":"IF(\"FLH,\"&H$2&\",,\"&$B319&\",\"=VLOOKUP(\"FLH,\"&H$2&\",,\"&$B319&\",\",data[],1),VLOOKUP(\"FLH,\"&H$2&\",,\"&$B319&\",\",data[],7),0)","v":4730},{"$f":"IF(\"FLH,\"&I$2&\",,\"&$B319&\",\"=VLOOKUP(\"FLH,\"&I$2&\",,\"&$B319&\",\",data[],1),VLOOKUP(\"FLH,\"&I$2&\",,\"&$B319&\",\",data[],7),0)","v":3056.1689955499933},null,{"$f":"INDEX(E319:I319,J76)","v":3823.9828340194917},null,null,null,null,null,{"$f":"IF(\"FLH,\"&Q$2&\",,\"&$B319&\",\"=VLOOKUP(\"FLH,\"&Q$2&\",,\"&$B319&\",\",data[],1),VLOOKUP(\"FLH,\"&Q$2&\",,\"&$B319&\",\",data[],7),IF($B319&\",\"&$K76&\",\"&$Q$2&\",\"&$X$2&\",\"&Q$2=VLOOKUP($B319&\",\"&$K76&\",\"&$Q$2&\",\"&$X$2&\",\"&Q$2,data_flh_2[],1),VLOOKUP($B319&\",\"&$K76&\",\"&$Q$2&\",\"&$X$2&\",\"&Q$2,data_flh_2[],7),Q$256))","v":3739.8496633893096},null,null,null,null,null,null,{"$f":"IF(X$2<>\"\",IF(\"FLH,\"&X$2&\",,\"&$B319&\",\"=VLOOKUP(\"FLH,\"&X$2&\",,\"&$B319&\",\",data[],1),VLOOKUP(\"FLH,\"&X$2&\",,\"&$B319&\",\",data[],7),IF($B319&\",\"&$K76&\",\"&$Q$2&\",\"&$X$2&\",\"&X$2=VLOOKUP($B319&\",\"&$K76&\",\"&$Q$2&\",\"&$X$2&\",\"&X$2,data_flh_2[],1),VLOOKUP($B319&\",\"&$K76&\",\"&$Q$2&\",\"&$X$2&\",\"&X$2,data_flh_2[],7),X$256)),0)","v":0},null,null,null,null,null,null,null,null,null,null,null,null,{"$f":"IF(AK76,IF(\"FLH,\"&AK$2&\",,\"&$B319&\",\"=VLOOKUP(\"FLH,\"&AK$2&\",,\"&$B319&\",\",data[],1),VLOOKUP(\"FLH,\"&AK$2&\",,\"&$B319&\",\",data[],7),IF($B319&\",\"&$K76&\",\"&$Q$2&\",\"&$X$2&\",\"&AK$2=VLOOKUP($B319&\",\"&$K76&\",\"&$Q$2&\",\"&$X$2&\",\"&AK$2,data_flh_2[],1),VLOOKUP($B319&\",\"&$K76&\",\"&$Q$2&\",\"&$X$2&\",\"&AK$2,data_flh_2[],7),AK$256)),0)","v":0},null,{"$f":"IF(AM76,IF(\"FLH,\"&AM$2&\",,\"&$B319&\",\"=VLOOKUP(\"FLH,\"&AM$2&\",,\"&$B319&\",\",data[],1),VLOOKUP(\"FLH,\"&AM$2&\",,\"&$B319&\",\",data[],7),IF($B319&\",\"&$K76&\",\"&$Q$2&\",\"&$X$2&\",\"&AM$2=VLOOKUP($B319&\",\"&$K76&\",\"&$Q$2&\",\"&$X$2&\",\"&AM$2,data_flh_2[],1),VLOOKUP($B319&\",\"&$K76&\",\"&$Q$2&\",\"&$X$2&\",\"&AM$2,data_flh_2[],7),AM$256)),0)","v":6657.5999999999995},null,null,null,null,null,null,null,null,null,null,null,null,null,null,{"$f":"IF(BB76,IF(\"FLH,\"&BB$2&\",,\"&$B319&\",\"=VLOOKUP(\"FLH,\"&BB$2&\",,\"&$B319&\",\",data[],1),VLOOKUP(\"FLH,\"&BB$2&\",,\"&$B319&\",\",data[],7),IF($B319&\",\"&$K76&\",\"&$Q$2&\",\"&$X$2&\",\"&BB$2=VLOOKUP($B319&\",\"&$K76&\",\"&$Q$2&\",\"&$X$2&\",\"&BB$2,data_flh_2[],1),VLOOKUP($B319&\",\"&$K76&\",\"&$Q$2&\",\"&$X$2&\",\"&BB$2,data_flh_2[],7),BB$256)),0)","v":0},null,null,{"$f":"IF(BE76,IF(\"FLH,\"&BE$2&\",,\"&$B319&\",\"=VLOOKUP(\"FLH,\"&BE$2&\",,\"&$B319&\",\",data[],1),VLOOKUP(\"FLH,\"&BE$2&\",,\"&$B319&\",\",data[],7),IF($B319&\",\"&$K76&\",\"&$Q$2&\",\"&$X$2&\",\"&BE$2=VLOOKUP($B319&\",\"&$K76&\",\"&$Q$2&\",\"&$X$2&\",\"&BE$2,data_flh_2[],1),VLOOKUP($B319&\",\"&$K76&\",\"&$Q$2&\",\"&$X$2&\",\"&BE$2,data_flh_2[],7),BE$256)),0)","v":0}]
[null,"THA",null,null,{"$f":"IF(\"FLH,\"&E$2&\",,\"&$B320&\",\"=VLOOKUP(\"FLH,\"&E$2&\",,\"&$B320&\",\",data[],1),VLOOKUP(\"FLH,\"&E$2&\",,\"&$B320&\",\",data[],7),0)","v":1254.531981600001},{"$f":"IF(\"FLH,\"&F$2&\",,\"&$B320&\",\"=VLOOKUP(\"FLH,\"&F$2&\",,\"&$B320&\",\",data[],1),VLOOKUP(\"FLH,\"&F$2&\",,\"&$B320&\",\",data[],7),0)","v":0},{"$f":"IF(\"FLH,\"&G$2&\",,\"&$B320&\",\"=VLOOKUP(\"FLH,\"&G$2&\",,\"&$B320&\",\",data[],1),VLOOKUP(\"FLH,\"&G$2&\",,\"&$B320&\",\",data[],7),0)","v":3569.5369351590002},{"$f":"IF(\"FLH,\"&H$2&\",,\"&$B320&\",\"=VLOOKUP(\"FLH,\"&H$2&\",,\"&$B320&\",\",data[],1),VLOOKUP(\"FLH,\"&H$2&\",,\"&$B320&\",\",data[],7),0)","v":2453},{"$f":"IF(\"FLH,\"&I$2&\",,\"&$B320&\",\"=VLOOKUP(\"FLH,\"&I$2&\",,\"&$B320&\",\",data[],1),VLOOKUP(\"FLH,\"&I$2&\",,\"&$B320&\",\",data[],7),0)","v":2425.4030030999993},null,{"$f":"INDEX(E320:I320,J77)","v":3569.5369351590002},null,null,null,null,null,{"$f":"IF(\"FLH,\"&Q$2&\",,\"&$B320&\",\"=VLOOKUP(\"FLH,\"&Q$2&\",,\"&$B320&\",\",data[],1),VLOOKUP(\"FLH,\"&Q$2&\",,\"&$B320&\",\",data[],7),IF($B320&\",\"&$K77&\",\"&$Q$2&\",\"&$X$2&\",\"&Q$2=VLOOKUP($B320&\",\"&$K77&\",\"&$Q$2&\",\"&$X$2&\",\"&Q$2,data_flh_2[],1),VLOOKUP($B320&\",\"&$K77&\",\"&$Q$2&\",\"&$X$2&\",\"&Q$2,data_flh_2[],7),Q$256))","v":3450.04817368251},null,null,null,null,null,null,{"$f":"IF(X$2<>\"\",IF(\"FLH,\"&X$2&\",,\"&$B320&\",\"=VLOOKUP(\"FLH,\"&X$2&\",,\"&$B320&\",\",data[],1),VLOOKUP(\"FLH,\"&X$2&\",,\"&$B320&\",\",data[],7),IF($B320&\",\"&$K77&\",\"&$Q$2&\",\"&$X$2&\",\"&X$2=VLOOKUP($B320&\",\"&$K77&\",\"&$Q$2&\",\"&$X$2&\",\"&X$2,data_flh_2[],1),VLOOKUP($B320&\",\"&$K77&\",\"&$Q$2&\",\"&$X$2&\",\"&X$2,data_flh_2[],7),X$256)),0)","v":0},null,null,null,null,null,null,null,null,null,null,null,null,{"$f":"IF(AK77,IF(\"FLH,\"&AK$2&\",,\"&$B320&\",\"=VLOOKUP(\"FLH,\"&AK$2&\",,\"&$B320&\",\",data[],1),VLOOKUP(\"FLH,\"&AK$2&\",,\"&$B320&\",\",data[],7),IF($B320&\",\"&$K77&\",\"&$Q$2&\",\"&$X$2&\",\"&AK$2=VLOOKUP($B320&\",\"&$K77&\",\"&$Q$2&\",\"&$X$2&\",\"&AK$2,data_flh_2[],1),VLOOKUP($B320&\",\"&$K77&\",\"&$Q$2&\",\"&$X$2&\",\"&AK$2,data_flh_2[],7),AK$256)),0)","v":3391.0600884010501},null,{"$f":"IF(AM77,IF(\"FLH,\"&AM$2&\",,\"&$B320&\",\"=VLOOKUP(\"FLH,\"&AM$2&\",,\"&$B320&\",\",data[],1),VLOOKUP(\"FLH,\"&AM$2&\",,\"&$B320&\",\",data[],7),IF($B320&\",\"&$K77&\",\"&$Q$2&\",\"&$X$2&\",\"&AM$2=VLOOKUP($B320&\",\"&$K77&\",\"&$Q$2&\",\"&$X$2&\",\"&AM$2,data_flh_2[],1),VLOOKUP($B320&\",\"&$K77&\",\"&$Q$2&\",\"&$X$2&\",\"&AM$2,data_flh_2[],7),AM$256)),0)","v":0},null,null,null,null,null,null,null,null,null,null,null,null,null,null,{"$f":"IF(BB77,IF(\"FLH,\"&BB$2&\",,\"&$B320&\",\"=VLOOKUP(\"FLH,\"&BB$2&\",,\"&$B320&\",\",data[],1),VLOOKUP(\"FLH,\"&BB$2&\",,\"&$B320&\",\",data[],7),IF($B320&\",\"&$K77&\",\"&$Q$2&\",\"&$X$2&\",\"&BB$2=VLOOKUP($B320&\",\"&$K77&\",\"&$Q$2&\",\"&$X$2&\",\"&BB$2,data_flh_2[],1),VLOOKUP($B320&\",\"&$K77&\",\"&$Q$2&\",\"&$X$2&\",\"&BB$2,data_flh_2[],7),BB$256)),0)","v":6657.5999999999995},null,null,{"$f":"IF(BE77,IF(\"FLH,\"&BE$2&\",,\"&$B320&\",\"=VLOOKUP(\"FLH,\"&BE$2&\",,\"&$B320&\",\",data[],1),VLOOKUP(\"FLH,\"&BE$2&\",,\"&$B320&\",\",data[],7),IF($B320&\",\"&$K77&\",\"&$Q$2&\",\"&$X$2&\",\"&BE$2=VLOOKUP($B320&\",\"&$K77&\",\"&$Q$2&\",\"&$X$2&\",\"&BE$2,data_flh_2[],1),VLOOKUP($B320&\",\"&$K77&\",\"&$Q$2&\",\"&$X$2&\",\"&BE$2,data_flh_2[],7),BE$256)),0)","v":0}]
[null,"TUN",null,null,{"$f":"IF(\"FLH,\"&E$2&\",,\"&$B321&\",\"=VLOOKUP(\"FLH,\"&E$2&\",,\"&$B321&\",\",data[],1),VLOOKUP(\"FLH,\"&E$2&\",,\"&$B321&\",\",data[],7),0)","v":1611},{"$f":"IF(\"FLH,\"&F$2&\",,\"&$B321&\",\"=VLOOKUP(\"FLH,\"&F$2&\",,\"&$B321&\",\",data[],1),VLOOKUP(\"FLH,\"&F$2&\",,\"&$B321&\",\",data[],7),0)","v":0},{"$f":"IF(\"FLH,\"&G$2&\",,\"&$B321&\",\"=VLOOKUP(\"FLH,\"&G$2&\",,\"&$B321&\",\",data[],1),VLOOKUP(\"FLH,\"&G$2&\",,\"&$B321&\",\",data[],7),0)","v":4306.8},{"$f":"IF(\"FLH,\"&H$2&\",,\"&$B321&\",\"=VLOOKUP(\"FLH,\"&H$2&\",,\"&$B321&\",\",data[],1),VLOOKUP(\"FLH,\"&H$2&\",,\"&$B321&\",\",data[],7),0)","v":3066},{"$f":"IF(\"FLH,\"&I$2&\",,\"&$B321&\",\"=VLOOKUP(\"FLH,\"&I$2&\",,\"&$B321&\",\",data[],1),VLOOKUP(\"FLH,\"&I$2&\",,\"&$B321&\",\",data[],7),0)","v":2843},null,{"$f":"INDEX(E321:I321,J78)","v":4306.8},null,null,null,null,null,{"$f":"IF(\"FLH,\"&Q$2&\",,\"&$B321&\",\"=VLOOKUP(\"FLH,\"&Q$2&\",,\"&$B321&\",\",data[],1),VLOOKUP(\"FLH,\"&Q$2&\",,\"&$B321&\",\",data[],7),IF($B321&\",\"&$K78&\",\"&$Q$2&\",\"&$X$2&\",\"&Q$2=VLOOKUP($B321&\",\"&$K78&\",\"&$Q$2&\",\"&$X$2&\",\"&Q$2,data_flh_2[],1),VLOOKUP($B321&\",\"&$K78&\",\"&$Q$2&\",\"&$X$2&\",\"&Q$2,data_flh_2[],7),Q$256))","v":3695.5},null,null,null,null,null,null,{"$f":"IF(X$2<>\"\",IF(\"FLH,\"&X$2&\",,\"&$B321&\",\"=VLOOKUP(\"FLH,\"&X$2&\",,\"&$B321&\",\",data[],1),VLOOKUP(\"FLH,\"&X$2&\",,\"&$B321&\",\",data[],7),IF($B321&\",\"&$K78&\",\"&$Q$2&\",\"&$X$2&\",\"&X$2=VLOOKUP($B321&\",\"&$K78&\",\"&$Q$2&\",\"&$X$2&\",\"&X$2,data_flh_2[],1),VLOOKUP($B321&\",\"&$K78&\",\"&$Q$2&\",\"&$X$2&\",\"&X$2,data_flh_2[],7),X$256)),0)","v":0},null,null,null,null,null,null,null,null,null,null,null,null,{"$f":"IF(AK78,IF(\"FLH,\"&AK$2&\",,\"&$B321&\",\"=VLOOKUP(\"FLH,\"&AK$2&\",,\"&$B321&\",\",data[],1),VLOOKUP(\"FLH,\"&AK$2&\",,\"&$B321&\",\",data[],7),IF($B321&\",\"&$K78&\",\"&$Q$2&\",\"&$X$2&\",\"&AK$2=VLOOKUP($B321&\",\"&$K78&\",\"&$Q$2&\",\"&$X$2&\",\"&AK$2,data_flh_2[],1),VLOOKUP($B321&\",\"&$K78&\",\"&$Q$2&\",\"&$X$2&\",\"&AK$2,data_flh_2[],7),AK$256)),0)","v":0},null,{"$f":"IF(AM78,IF(\"FLH,\"&AM$2&\",,\"&$B321&\",\"=VLOOKUP(\"FLH,\"&AM$2&\",,\"&$B321&\",\",data[],1),VLOOKUP(\"FLH,\"&AM$2&\",,\"&$B321&\",\",data[],7),IF($B321&\",\"&$K78&\",\"&$Q$2&\",\"&$X$2&\",\"&AM$2=VLOOKUP($B321&\",\"&$K78&\",\"&$Q$2&\",\"&$X$2&\",\"&AM$2,data_flh_2[],1),VLOOKUP($B321&\",\"&$K78&\",\"&$Q$2&\",\"&$X$2&\",\"&AM$2,data_flh_2[],7),AM$256)),0)","v":6657.5999999999995},null,null,null,null,null,null,null,null,null,null,null,null,null,null,{"$f":"IF(BB78,IF(\"FLH,\"&BB$2&\",,\"&$B321&\",\"=VLOOKUP(\"FLH,\"&BB$2&\",,\"&$B321&\",\",data[],1),VLOOKUP(\"FLH,\"&BB$2&\",,\"&$B321&\",\",data[],7),IF($B321&\",\"&$K78&\",\"&$Q$2&\",\"&$X$2&\",\"&BB$2=VLOOKUP($B321&\",\"&$K78&\",\"&$Q$2&\",\"&$X$2&\",\"&BB$2,data_flh_2[],1),VLOOKUP($B321&\",\"&$K78&\",\"&$Q$2&\",\"&$X$2&\",\"&BB$2,data_flh_2[],7),BB$256)),0)","v":0},null,null,{"$f":"IF(BE78,IF(\"FLH,\"&BE$2&\",,\"&$B321&\",\"=VLOOKUP(\"FLH,\"&BE$2&\",,\"&$B321&\",\",data[],1),VLOOKUP(\"FLH,\"&BE$2&\",,\"&$B321&\",\",data[],7),IF($B321&\",\"&$K78&\",\"&$Q$2&\",\"&$X$2&\",\"&BE$2=VLOOKUP($B321&\",\"&$K78&\",\"&$Q$2&\",\"&$X$2&\",\"&BE$2,data_flh_2[],1),VLOOKUP($B321&\",\"&$K78&\",\"&$Q$2&\",\"&$X$2&\",\"&BE$2,data_flh_2[],7),BE$256)),0)","v":0}]
[null,"UKR",null,null,{"$f":"IF(\"FLH,\"&E$2&\",,\"&$B322&\",\"=VLOOKUP(\"FLH,\"&E$2&\",,\"&$B322&\",\",data[],1),VLOOKUP(\"FLH,\"&E$2&\",,\"&$B322&\",\",data[],7),0)","v":1398.7297331999989},{"$f":"IF(\"FLH,\"&F$2&\",,\"&$B322&\",\"=VLOOKUP(\"FLH,\"&F$2&\",,\"&$B322&\",\",data[],1),VLOOKUP(\"FLH,\"&F$2&\",,\"&$B322&\",\",data[],7),0)","v":0},{"$f":"IF(\"FLH,\"&G$2&\",,\"&$B322&\",\"=VLOOKUP(\"FLH,\"&G$2&\",,\"&$B322&\",\",data[],1),VLOOKUP(\"FLH,\"&G$2&\",,\"&$B322&\",\",data[],7),0)","v":5019.1641120944814},{"$f":"IF(\"FLH,\"&H$2&\",,\"&$B322&\",\"=VLOOKUP(\"FLH,\"&H$2&\",,\"&$B322&\",\",data[],1),VLOOKUP(\"FLH,\"&H$2&\",,\"&$B322&\",\",data[],7),0)","v":3066},{"$f":"IF(\"FLH,\"&I$2&\",,\"&$B322&\",\"=VLOOKUP(\"FLH,\"&I$2&\",,\"&$B322&\",\",data[],1),VLOOKUP(\"FLH,\"&I$2&\",,\"&$B322&\",\",data[],7),0)","v":2769},null,{"$f":"INDEX(E322:I322,J79)","v":5019.1641120944814},null,null,null,null,null,{"$f":"IF(\"FLH,\"&Q$2&\",,\"&$B322&\",\"=VLOOKUP(\"FLH,\"&Q$2&\",,\"&$B322&\",\",data[],1),VLOOKUP(\"FLH,\"&Q$2&\",,\"&$B322&\",\",data[],7),IF($B322&\",\"&$K79&\",\"&$Q$2&\",\"&$X$2&\",\"&Q$2=VLOOKUP($B322&\",\"&$K79&\",\"&$Q$2&\",\"&$X$2&\",\"&Q$2,data_flh_2[],1),VLOOKUP($B322&\",\"&$K79&\",\"&$Q$2&\",\"&$X$2&\",\"&Q$2,data_flh_2[],7),Q$256))","v":5101.1029451555632},null,null,null,null,null,null,{"$f":"IF(X$2<>\"\",IF(\"FLH,\"&X$2&\",,\"&$B322&\",\"=VLOOKUP(\"FLH,\"&X$2&\",,\"&$B322&\",\",data[],1),VLOOKUP(\"FLH,\"&X$2&\",,\"&$B322&\",\",data[],7),IF($B322&\",\"&$K79&\",\"&$Q$2&\",\"&$X$2&\",\"&X$2=VLOOKUP($B322&\",\"&$K79&\",\"&$Q$2&\",\"&$X$2&\",\"&X$2,data_flh_2[],1),VLOOKUP($B322&\",\"&$K79&\",\"&$Q$2&\",\"&$X$2&\",\"&X$2,data_flh_2[],7),X$256)),0)","v":0},null,null,null,null,null,null,null,null,null,null,null,null,{"$f":"IF(AK79,IF(\"FLH,\"&AK$2&\",,\"&$B322&\",\"=VLOOKUP(\"FLH,\"&AK$2&\",,\"&$B322&\",\",data[],1),VLOOKUP(\"FLH,\"&AK$2&\",,\"&$B322&\",\",data[],7),IF($B322&\",\"&$K79&\",\"&$Q$2&\",\"&$X$2&\",\"&AK$2=VLOOKUP($B322&\",\"&$K79&\",\"&$Q$2&\",\"&$X$2&\",\"&AK$2,data_flh_2[],1),VLOOKUP($B322&\",\"&$K79&\",\"&$Q$2&\",\"&$X$2&\",\"&AK$2,data_flh_2[],7),AK$256)),0)","v":0},null,{"$f":"IF(AM79,IF(\"FLH,\"&AM$2&\",,\"&$B322&\",\"=VLOOKUP(\"FLH,\"&AM$2&\",,\"&$B322&\",\",data[],1),VLOOKUP(\"FLH,\"&AM$2&\",,\"&$B322&\",\",data[],7),IF($B322&\",\"&$K79&\",\"&$Q$2&\",\"&$X$2&\",\"&AM$2=VLOOKUP($B322&\",\"&$K79&\",\"&$Q$2&\",\"&$X$2&\",\"&AM$2,data_flh_2[],1),VLOOKUP($B322&\",\"&$K79&\",\"&$Q$2&\",\"&$X$2&\",\"&AM$2,data_flh_2[],7),AM$256)),0)","v":6657.5999999999995},null,null,null,null,null,null,null,null,null,null,null,null,null,null,{"$f":"IF(BB79,IF(\"FLH,\"&BB$2&\",,\"&$B322&\",\"=VLOOKUP(\"FLH,\"&BB$2&\",,\"&$B322&\",\",data[],1),VLOOKUP(\"FLH,\"&BB$2&\",,\"&$B322&\",\",data[],7),IF($B322&\",\"&$K79&\",\"&$Q$2&\",\"&$X$2&\",\"&BB$2=VLOOKUP($B322&\",\"&$K79&\",\"&$Q$2&\",\"&$X$2&\",\"&BB$2,data_flh_2[],1),VLOOKUP($B322&\",\"&$K79&\",\"&$Q$2&\",\"&$X$2&\",\"&BB$2,data_flh_2[],7),BB$256)),0)","v":0},null,null,{"$f":"IF(BE79,IF(\"FLH,\"&BE$2&\",,\"&$B322&\",\"=VLOOKUP(\"FLH,\"&BE$2&\",,\"&$B322&\",\",data[],1),VLOOKUP(\"FLH,\"&BE$2&\",,\"&$B322&\",\",data[],7),IF($B322&\",\"&$K79&\",\"&$Q$2&\",\"&$X$2&\",\"&BE$2=VLOOKUP($B322&\",\"&$K79&\",\"&$Q$2&\",\"&$X$2&\",\"&BE$2,data_flh_2[],1),VLOOKUP($B322&\",\"&$K79&\",\"&$Q$2&\",\"&$X$2&\",\"&BE$2,data_flh_2[],7),BE$256)),0)","v":0}]
[null,"URY",null,null,{"$f":"IF(\"FLH,\"&E$2&\",,\"&$B323&\",\"=VLOOKUP(\"FLH,\"&E$2&\",,\"&$B323&\",\",data[],1),VLOOKUP(\"FLH,\"&E$2&\",,\"&$B323&\",\",data[],7),0)","v":1338},{"$f":"IF(\"FLH,\"&F$2&\",,\"&$B323&\",\"=VLOOKUP(\"FLH,\"&F$2&\",,\"&$B323&\",\",data[],1),VLOOKUP(\"FLH,\"&F$2&\",,\"&$B323&\",\",data[],7),0)","v":0},{"$f":"IF(\"FLH,\"&G$2&\",,\"&$B323&\",\"=VLOOKUP(\"FLH,\"&G$2&\",,\"&$B323&\",\",data[],1),VLOOKUP(\"FLH,\"&G$2&\",,\"&$B323&\",\",data[],7),0)","v":4775.3099999999995},{"$f":"IF(\"FLH,\"&H$2&\",,\"&$B323&\",\"=VLOOKUP(\"FLH,\"&H$2&\",,\"&$B323&\",\",data[],1),VLOOKUP(\"FLH,\"&H$2&\",,\"&$B323&\",\",data[],7),0)","v":3854},{"$f":"IF(\"FLH,\"&I$2&\",,\"&$B323&\",\"=VLOOKUP(\"FLH,\"&I$2&\",,\"&$B323&\",\",data[],1),VLOOKUP(\"FLH,\"&I$2&\",,\"&$B323&\",\",data[],7),0)","v":3594},null,{"$f":"INDEX(E323:I323,J80)","v":4775.3099999999995},null,null,null,null,null,{"$f":"IF(\"FLH,\"&Q$2&\",,\"&$B323&\",\"=VLOOKUP(\"FLH,\"&Q$2&\",,\"&$B323&\",\",data[],1),VLOOKUP(\"FLH,\"&Q$2&\",,\"&$B323&\",\",data[],7),IF($B323&\",\"&$K80&\",\"&$Q$2&\",\"&$X$2&\",\"&Q$2=VLOOKUP($B323&\",\"&$K80&\",\"&$Q$2&\",\"&$X$2&\",\"&Q$2,data_flh_2[],1),VLOOKUP($B323&\",\"&$K80&\",\"&$Q$2&\",\"&$X$2&\",\"&Q$2,data_flh_2[],7),Q$256))","v":5444.45},null,null,null,null,null,null,{"$f":"IF(X$2<>\"\",IF(\"FLH,\"&X$2&\",,\"&$B323&\",\"=VLOOKUP(\"FLH,\"&X$2&\",,\"&$B323&\",\",data[],1),VLOOKUP(\"FLH,\"&X$2&\",,\"&$B323&\",\",data[],7),IF($B323&\",\"&$K80&\",\"&$Q$2&\",\"&$X$2&\",\"&X$2=VLOOKUP($B323&\",\"&$K80&\",\"&$Q$2&\",\"&$X$2&\",\"&X$2,data_flh_2[],1),VLOOKUP($B323&\",\"&$K80&\",\"&$Q$2&\",\"&$X$2&\",\"&X$2,data_flh_2[],7),X$256)),0)","v":0},null,null,null,null,null,null,null,null,null,null,null,null,{"$f":"IF(AK80,IF(\"FLH,\"&AK$2&\",,\"&$B323&\",\"=VLOOKUP(\"FLH,\"&AK$2&\",,\"&$B323&\",\",data[],1),VLOOKUP(\"FLH,\"&AK$2&\",,\"&$B323&\",\",data[],7),IF($B323&\",\"&$K80&\",\"&$Q$2&\",\"&$X$2&\",\"&AK$2=VLOOKUP($B323&\",\"&$K80&\",\"&$Q$2&\",\"&$X$2&\",\"&AK$2,data_flh_2[],1),VLOOKUP($B323&\",\"&$K80&\",\"&$Q$2&\",\"&$X$2&\",\"&AK$2,data_flh_2[],7),AK$256)),0)","v":5521.4},null,{"$f":"IF(AM80,IF(\"FLH,\"&AM$2&\",,\"&$B323&\",\"=VLOOKUP(\"FLH,\"&AM$2&\",,\"&$B323&\",\",data[],1),VLOOKUP(\"FLH,\"&AM$2&\",,\"&$B323&\",\",data[],7),IF($B323&\",\"&$K80&\",\"&$Q$2&\",\"&$X$2&\",\"&AM$2=VLOOKUP($B323&\",\"&$K80&\",\"&$Q$2&\",\"&$X$2&\",\"&AM$2,data_flh_2[],1),VLOOKUP($B323&\",\"&$K80&\",\"&$Q$2&\",\"&$X$2&\",\"&AM$2,data_flh_2[],7),AM$256)),0)","v":0},null,null,null,null,null,null,null,null,null,null,null,null,null,null,{"$f":"IF(BB80,IF(\"FLH,\"&BB$2&\",,\"&$B323&\",\"=VLOOKUP(\"FLH,\"&BB$2&\",,\"&$B323&\",\",data[],1),VLOOKUP(\"FLH,\"&BB$2&\",,\"&$B323&\",\",data[],7),IF($B323&\",\"&$K80&\",\"&$Q$2&\",\"&$X$2&\",\"&BB$2=VLOOKUP($B323&\",\"&$K80&\",\"&$Q$2&\",\"&$X$2&\",\"&BB$2,data_flh_2[],1),VLOOKUP($B323&\",\"&$K80&\",\"&$Q$2&\",\"&$X$2&\",\"&BB$2,data_flh_2[],7),BB$256)),0)","v":6657.5999999999995},null,null,{"$f":"IF(BE80,IF(\"FLH,\"&BE$2&\",,\"&$B323&\",\"=VLOOKUP(\"FLH,\"&BE$2&\",,\"&$B323&\",\",data[],1),VLOOKUP(\"FLH,\"&BE$2&\",,\"&$B323&\",\",data[],7),IF($B323&\",\"&$K80&\",\"&$Q$2&\",\"&$X$2&\",\"&BE$2=VLOOKUP($B323&\",\"&$K80&\",\"&$Q$2&\",\"&$X$2&\",\"&BE$2,data_flh_2[],1),VLOOKUP($B323&\",\"&$K80&\",\"&$Q$2&\",\"&$X$2&\",\"&BE$2,data_flh_2[],7),BE$256)),0)","v":0}]
[null,"USA",null,null,{"$f":"IF(\"FLH,\"&E$2&\",,\"&$B324&\",\"=VLOOKUP(\"FLH,\"&E$2&\",,\"&$B324&\",\",data[],1),VLOOKUP(\"FLH,\"&E$2&\",,\"&$B324&\",\",data[],7),0)","v":1593},{"$f":"IF(\"FLH,\"&F$2&\",,\"&$B324&\",\"=VLOOKUP(\"FLH,\"&F$2&\",,\"&$B324&\",\",data[],1),VLOOKUP(\"FLH,\"&F$2&\",,\"&$B324&\",\",data[],7),0)","v":0},{"$f":"IF(\"FLH,\"&G$2&\",,\"&$B324&\",\"=VLOOKUP(\"FLH,\"&G$2&\",,\"&$B324&\",\",data[],1),VLOOKUP(\"FLH,\"&G$2&\",,\"&$B324&\",\",data[],7),0)","v":5067.28},{"$f":"IF(\"FLH,\"&H$2&\",,\"&$B324&\",\"=VLOOKUP(\"FLH,\"&H$2&\",,\"&$B324&\",\",data[],1),VLOOKUP(\"FLH,\"&H$2&\",,\"&$B324&\",\",data[],7),0)","v":4030},{"$f":"IF(\"FLH,\"&I$2&\",,\"&$B324&\",\"=VLOOKUP(\"FLH,\"&I$2&\",,\"&$B324&\",\",data[],1),VLOOKUP(\"FLH,\"&I$2&\",,\"&$B324&\",\",data[],7),0)","v":3503},null,{"$f":"INDEX(E324:I324,J81)","v":5067.28},null,null,null,null,null,{"$f":"IF(\"FLH,\"&Q$2&\",,\"&$B324&\",\"=VLOOKUP(\"FLH,\"&Q$2&\",,\"&$B324&\",\",data[],1),VLOOKUP(\"FLH,\"&Q$2&\",,\"&$B324&\",\",data[],7),IF($B324&\",\"&$K81&\",\"&$Q$2&\",\"&$X$2&\",\"&Q$2=VLOOKUP($B324&\",\"&$K81&\",\"&$Q$2&\",\"&$X$2&\",\"&Q$2,data_flh_2[],1),VLOOKUP($B324&\",\"&$K81&\",\"&$Q$2&\",\"&$X$2&\",\"&Q$2,data_flh_2[],7),Q$256))","v":5447.3},null,null,null,null,null,null,{"$f":"IF(X$2<>\"\",IF(\"FLH,\"&X$2&\",,\"&$B324&\",\"=VLOOKUP(\"FLH,\"&X$2&\",,\"&$B324&\",\",data[],1),VLOOKUP(\"FLH,\"&X$2&\",,\"&$B324&\",\",data[],7),IF($B324&\",\"&$K81&\",\"&$Q$2&\",\"&$X$2&\",\"&X$2=VLOOKUP($B324&\",\"&$K81&\",\"&$Q$2&\",\"&$X$2&\",\"&X$2,data_flh_2[],1),VLOOKUP($B324&\",\"&$K81&\",\"&$Q$2&\",\"&$X$2&\",\"&X$2,data_flh_2[],7),X$256)),0)","v":0},null,null,null,null,null,null,null,null,null,null,null,null,{"$f":"IF(AK81,IF(\"FLH,\"&AK$2&\",,\"&$B324&\",\"=VLOOKUP(\"FLH,\"&AK$2&\",,\"&$B324&\",\",data[],1),VLOOKUP(\"FLH,\"&AK$2&\",,\"&$B324&\",\",data[],7),IF($B324&\",\"&$K81&\",\"&$Q$2&\",\"&$X$2&\",\"&AK$2=VLOOKUP($B324&\",\"&$K81&\",\"&$Q$2&\",\"&$X$2&\",\"&AK$2,data_flh_2[],1),VLOOKUP($B324&\",\"&$K81&\",\"&$Q$2&\",\"&$X$2&\",\"&AK$2,data_flh_2[],7),AK$256)),0)","v":5612.125},null,{"$f":"IF(AM81,IF(\"FLH,\"&AM$2&\",,\"&$B324&\",\"=VLOOKUP(\"FLH,\"&AM$2&\",,\"&$B324&\",\",data[],1),VLOOKUP(\"FLH,\"&AM$2&\",,\"&$B324&\",\",data[],7),IF($B324&\",\"&$K81&\",\"&$Q$2&\",\"&$X$2&\",\"&AM$2=VLOOKUP($B324&\",\"&$K81&\",\"&$Q$2&\",\"&$X$2&\",\"&AM$2,data_flh_2[],1),VLOOKUP($B324&\",\"&$K81&\",\"&$Q$2&\",\"&$X$2&\",\"&AM$2,data_flh_2[],7),AM$256)),0)","v":0},null,null,null,null,null,null,null,null,null,null,null,null,null,null,{"$f":"IF(BB81,IF(\"FLH,\"&BB$2&\",,\"&$B324&\",\"=VLOOKUP(\"FLH,\"&BB$2&\",,\"&$B324&\",\",data[],1),VLOOKUP(\"FLH,\"&BB$2&\",,\"&$B324&\",\",data[],7),IF($B324&\",\"&$K81&\",\"&$Q$2&\",\"&$X$2&\",\"&BB$2=VLOOKUP($B324&\",\"&$K81&\",\"&$Q$2&\",\"&$X$2&\",\"&BB$2,data_flh_2[],1),VLOOKUP($B324&\",\"&$K81&\",\"&$Q$2&\",\"&$X$2&\",\"&BB$2,data_flh_2[],7),BB$256)),0)","v":6657.5999999999995},null,null,{"$f":"IF(BE81,IF(\"FLH,\"&BE$2&\",,\"&$B324&\",\"=VLOOKUP(\"FLH,\"&BE$2&\",,\"&$B324&\",\",data[],1),VLOOKUP(\"FLH,\"&BE$2&\",,\"&$B324&\",\",data[],7),IF($B324&\",\"&$K81&\",\"&$Q$2&\",\"&$X$2&\",\"&BE$2=VLOOKUP($B324&\",\"&$K81&\",\"&$Q$2&\",\"&$X$2&\",\"&BE$2,data_flh_2[],1),VLOOKUP($B324&\",\"&$K81&\",\"&$Q$2&\",\"&$X$2&\",\"&BE$2,data_flh_2[],7),BE$256)),0)","v":0}]
[null,"VNM",null,null,{"$f":"IF(\"FLH,\"&E$2&\",,\"&$B325&\",\"=VLOOKUP(\"FLH,\"&E$2&\",,\"&$B325&\",\",data[],1),VLOOKUP(\"FLH,\"&E$2&\",,\"&$B325&\",\",data[],7),0)","v":1266.9854976000001},{"$f":"IF(\"FLH,\"&F$2&\",,\"&$B325&\",\"=VLOOKUP(\"FLH,\"&F$2&\",,\"&$B325&\",\",data[],1),VLOOKUP(\"FLH,\"&F$2&\",,\"&$B325&\",\",data[],7),0)","v":0},{"$f":"IF(\"FLH,\"&G$2&\",,\"&$B325&\",\"=VLOOKUP(\"FLH,\"&G$2&\",,\"&$B325&\",\",data[],1),VLOOKUP(\"FLH,\"&G$2&\",,\"&$B325&\",\",data[],7),0)","v":4699.5574412419974},{"$f":"IF(\"FLH,\"&H$2&\",,\"&$B325&\",\"=VLOOKUP(\"FLH,\"&H$2&\",,\"&$B325&\",\",data[],1),VLOOKUP(\"FLH,\"&H$2&\",,\"&$B325&\",\",data[],7),0)","v":3578},{"$f":"IF(\"FLH,\"&I$2&\",,\"&$B325&\",\"=VLOOKUP(\"FLH,\"&I$2&\",,\"&$B325&\",\",data[],1),VLOOKUP(\"FLH,\"&I$2&\",,\"&$B325&\",\",data[],7),0)","v":3577.9190809999977},null,{"$f":"INDEX(E325:I325,J82)","v":4699.5574412419974},null,null,null,null,null,{"$f":"IF(\"FLH,\"&Q$2&\",,\"&$B325&\",\"=VLOOKUP(\"FLH,\"&Q$2&\",,\"&$B325&\",\",data[],1),VLOOKUP(\"FLH,\"&Q$2&\",,\"&$B325&\",\",data[],7),IF($B325&\",\"&$K82&\",\"&$Q$2&\",\"&$X$2&\",\"&Q$2=VLOOKUP($B325&\",\"&$K82&\",\"&$Q$2&\",\"&$X$2&\",\"&Q$2,data_flh_2[],1),VLOOKUP($B325&\",\"&$K82&\",\"&$Q$2&\",\"&$X$2&\",\"&Q$2,data_flh_2[],7),Q$256))","v":4737.086508859752},null,null,null,null,null,null,{"$f":"IF(X$2<>\"\",IF(\"FLH,\"&X$2&\",,\"&$B325&\",\"=VLOOKUP(\"FLH,\"&X$2&\",,\"&$B325&\",\",data[],1),VLOOKUP(\"FLH,\"&X$2&\",,\"&$B325&\",\",data[],7),IF($B325&\",\"&$K82&\",\"&$Q$2&\",\"&$X$2&\",\"&X$2=VLOOKUP($B325&\",\"&$K82&\",\"&$Q$2&\",\"&$X$2&\",\"&X$2,data_flh_2[],1),VLOOKUP($B325&\",\"&$K82&\",\"&$Q$2&\",\"&$X$2&\",\"&X$2,data_flh_2[],7),X$256)),0)","v":0},null,null,null,null,null,null,null,null,null,null,null,null,{"$f":"IF(AK82,IF(\"FLH,\"&AK$2&\",,\"&$B325&\",\"=VLOOKUP(\"FLH,\"&AK$2&\",,\"&$B325&\",\",data[],1),VLOOKUP(\"FLH,\"&AK$2&\",,\"&$B325&\",\",data[],7),IF($B325&\",\"&$K82&\",\"&$Q$2&\",\"&$X$2&\",\"&AK$2=VLOOKUP($B325&\",\"&$K82&\",\"&$Q$2&\",\"&$X$2&\",\"&AK$2,data_flh_2[],1),VLOOKUP($B325&\",\"&$K82&\",\"&$Q$2&\",\"&$X$2&\",\"&AK$2,data_flh_2[],7),AK$256)),0)","v":4660.1825740545191},null,{"$f":"IF(AM82,IF(\"FLH,\"&AM$2&\",,\"&$B325&\",\"=VLOOKUP(\"FLH,\"&AM$2&\",,\"&$B325&\",\",data[],1),VLOOKUP(\"FLH,\"&AM$2&\",,\"&$B325&\",\",data[],7),IF($B325&\",\"&$K82&\",\"&$Q$2&\",\"&$X$2&\",\"&AM$2=VLOOKUP($B325&\",\"&$K82&\",\"&$Q$2&\",\"&$X$2&\",\"&AM$2,data_flh_2[],1),VLOOKUP($B325&\",\"&$K82&\",\"&$Q$2&\",\"&$X$2&\",\"&AM$2,data_flh_2[],7),AM$256)),0)","v":0},null,null,null,null,null,null,null,null,null,null,null,null,null,null,{"$f":"IF(BB82,IF(\"FLH,\"&BB$2&\",,\"&$B325&\",\"=VLOOKUP(\"FLH,\"&BB$2&\",,\"&$B325&\",\",data[],1),VLOOKUP(\"FLH,\"&BB$2&\",,\"&$B325&\",\",data[],7),IF($B325&\",\"&$K82&\",\"&$Q$2&\",\"&$X$2&\",\"&BB$2=VLOOKUP($B325&\",\"&$K82&\",\"&$Q$2&\",\"&$X$2&\",\"&BB$2,data_flh_2[],1),VLOOKUP($B325&\",\"&$K82&\",\"&$Q$2&\",\"&$X$2&\",\"&BB$2,data_flh_2[],7),BB$256)),0)","v":6657.5999999999995},null,null,{"$f":"IF(BE82,IF(\"FLH,\"&BE$2&\",,\"&$B325&\",\"=VLOOKUP(\"FLH,\"&BE$2&\",,\"&$B325&\",\",data[],1),VLOOKUP(\"FLH,\"&BE$2&\",,\"&$B325&\",\",data[],7),IF($B325&\",\"&$K82&\",\"&$Q$2&\",\"&$X$2&\",\"&BE$2=VLOOKUP($B325&\",\"&$K82&\",\"&$Q$2&\",\"&$X$2&\",\"&BE$2,data_flh_2[],1),VLOOKUP($B325&\",\"&$K82&\",\"&$Q$2&\",\"&$X$2&\",\"&BE$2,data_flh_2[],7),BE$256)),0)","v":0}]
[null,"ZAF",null,null,{"$f":"IF(\"FLH,\"&E$2&\",,\"&$B326&\",\"=VLOOKUP(\"FLH,\"&E$2&\",,\"&$B326&\",\",data[],1),VLOOKUP(\"FLH,\"&E$2&\",,\"&$B326&\",\",data[],7),0)","v":1603},{"$f":"IF(\"FLH,\"&F$2&\",,\"&$B326&\",\"=VLOOKUP(\"FLH,\"&F$2&\",,\"&$B326&\",\",data[],1),VLOOKUP(\"FLH,\"&F$2&\",,\"&$B326&\",\",data[],7),0)","v":0},{"$f":"IF(\"FLH,\"&G$2&\",,\"&$B326&\",\"=VLOOKUP(\"FLH,\"&G$2&\",,\"&$B326&\",\",data[],1),VLOOKUP(\"FLH,\"&G$2&\",,\"&$B326&\",\",data[],7),0)","v":4382.46},{"$f":"IF(\"FLH,\"&H$2&\",,\"&$B326&\",\"=VLOOKUP(\"FLH,\"&H$2&\",,\"&$B326&\",\",data[],1),VLOOKUP(\"FLH,\"&H$2&\",,\"&$B326&\",\",data[],7),0)","v":4117},{"$f":"IF(\"FLH,\"&I$2&\",,\"&$B326&\",\"=VLOOKUP(\"FLH,\"&I$2&\",,\"&$B326&\",\",data[],1),VLOOKUP(\"FLH,\"&I$2&\",,\"&$B326&\",\",data[],7),0)","v":3070},null,{"$f":"INDEX(E326:I326,J83)","v":4382.46},null,null,null,null,null,{"$f":"IF(\"FLH,\"&Q$2&\",,\"&$B326&\",\"=VLOOKUP(\"FLH,\"&Q$2&\",,\"&$B326&\",\",data[],1),VLOOKUP(\"FLH,\"&Q$2&\",,\"&$B326&\",\",data[],7),IF($B326&\",\"&$K83&\",\"&$Q$2&\",\"&$X$2&\",\"&Q$2=VLOOKUP($B326&\",\"&$K83&\",\"&$Q$2&\",\"&$X$2&\",\"&Q$2,data_flh_2[],1),VLOOKUP($B326&\",\"&$K83&\",\"&$Q$2&\",\"&$X$2&\",\"&Q$2,data_flh_2[],7),Q$256))","v":3621.4},null,null,null,null,null,null,{"$f":"IF(X$2<>\"\",IF(\"FLH,\"&X$2&\",,\"&$B326&\",\"=VLOOKUP(\"FLH,\"&X$2&\",,\"&$B326&\",\",data[],1),VLOOKUP(\"FLH,\"&X$2&\",,\"&$B326&\",\",data[],7),IF($B326&\",\"&$K83&\",\"&$Q$2&\",\"&$X$2&\",\"&X$2=VLOOKUP($B326&\",\"&$K83&\",\"&$Q$2&\",\"&$X$2&\",\"&X$2,data_flh_2[],1),VLOOKUP($B326&\",\"&$K83&\",\"&$Q$2&\",\"&$X$2&\",\"&X$2,data_flh_2[],7),X$256)),0)","v":0},null,null,null,null,null,null,null,null,null,null,null,null,{"$f":"IF(AK83,IF(\"FLH,\"&AK$2&\",,\"&$B326&\",\"=VLOOKUP(\"FLH,\"&AK$2&\",,\"&$B326&\",\",data[],1),VLOOKUP(\"FLH,\"&AK$2&\",,\"&$B326&\",\",data[],7),IF($B326&\",\"&$K83&\",\"&$Q$2&\",\"&$X$2&\",\"&AK$2=VLOOKUP($B326&\",\"&$K83&\",\"&$Q$2&\",\"&$X$2&\",\"&AK$2,data_flh_2[],1),VLOOKUP($B326&\",\"&$K83&\",\"&$Q$2&\",\"&$X$2&\",\"&AK$2,data_flh_2[],7),AK$256)),0)","v":3515.4749999999999},null,{"$f":"IF(AM83,IF(\"FLH,\"&AM$2&\",,\"&$B326&\",\"=VLOOKUP(\"FLH,\"&AM$2&\",,\"&$B326&\",\",data[],1),VLOOKUP(\"FLH,\"&AM$2&\",,\"&$B326&\",\",data[],7),IF($B326&\",\"&$K83&\",\"&$Q$2&\",\"&$X$2&\",\"&AM$2=VLOOKUP($B326&\",\"&$K83&\",\"&$Q$2&\",\"&$X$2&\",\"&AM$2,data_flh_2[],1),VLOOKUP($B326&\",\"&$K83&\",\"&$Q$2&\",\"&$X$2&\",\"&AM$2,data_flh_2[],7),AM$256)),0)","v":0},null,null,null,null,null,null,null,null,null,null,null,null,null,null,{"$f":"IF(BB83,IF(\"FLH,\"&BB$2&\",,\"&$B326&\",\"=VLOOKUP(\"FLH,\"&BB$2&\",,\"&$B326&\",\",data[],1),VLOOKUP(\"FLH,\"&BB$2&\",,\"&$B326&\",\",data[],7),IF($B326&\",\"&$K83&\",\"&$Q$2&\",\"&$X$2&\",\"&BB$2=VLOOKUP($B326&\",\"&$K83&\",\"&$Q$2&\",\"&$X$2&\",\"&BB$2,data_flh_2[],1),VLOOKUP($B326&\",\"&$K83&\",\"&$Q$2&\",\"&$X$2&\",\"&BB$2,data_flh_2[],7),BB$256)),0)","v":6657.5999999999995},null,null,{"$f":"IF(BE83,IF(\"FLH,\"&BE$2&\",,\"&$B326&\",\"=VLOOKUP(\"FLH,\"&BE$2&\",,\"&$B326&\",\",data[],1),VLOOKUP(\"FLH,\"&BE$2&\",,\"&$B326&\",\",data[],7),IF($B326&\",\"&$K83&\",\"&$Q$2&\",\"&$X$2&\",\"&BE$2=VLOOKUP($B326&\",\"&$K83&\",\"&$Q$2&\",\"&$X$2&\",\"&BE$2,data_flh_2[],1),VLOOKUP($B326&\",\"&$K83&\",\"&$Q$2&\",\"&$X$2&\",\"&BE$2,data_flh_2[],7),BE$256)),0)","v":0}]
[null,"ZAF-EC",null,null,{"$f":"IF(\"FLH,\"&E$2&\",,\"&$B327&\",\"=VLOOKUP(\"FLH,\"&E$2&\",,\"&$B327&\",\",data[],1),VLOOKUP(\"FLH,\"&E$2&\",,\"&$B327&\",\",data[],7),0)","v":1725.7083537599988},{"$f":"IF(\"FLH,\"&F$2&\",,\"&$B327&\",\"=VLOOKUP(\"FLH,\"&F$2&\",,\"&$B327&\",\",data[],1),VLOOKUP(\"FLH,\"&F$2&\",,\"&$B327&\",\",data[],7),0)","v":0},{"$f":"IF(\"FLH,\"&G$2&\",,\"&$B327&\",\"=VLOOKUP(\"FLH,\"&G$2&\",,\"&$B327&\",\",data[],1),VLOOKUP(\"FLH,\"&G$2&\",,\"&$B327&\",\",data[],7),0)","v":5288.7578237093758},{"$f":"IF(\"FLH,\"&H$2&\",,\"&$B327&\",\"=VLOOKUP(\"FLH,\"&H$2&\",,\"&$B327&\",\",data[],1),VLOOKUP(\"FLH,\"&H$2&\",,\"&$B327&\",\",data[],7),0)","v":4117.2},{"$f":"IF(\"FLH,\"&I$2&\",,\"&$B327&\",\"=VLOOKUP(\"FLH,\"&I$2&\",,\"&$B327&\",\",data[],1),VLOOKUP(\"FLH,\"&I$2&\",,\"&$B327&\",\",data[],7),0)","v":3914.4857524666741},null,{"$f":"INDEX(E327:I327,J84)","v":5288.7578237093758},null,null,null,null,null,{"$f":"IF(\"FLH,\"&Q$2&\",,\"&$B327&\",\"=VLOOKUP(\"FLH,\"&Q$2&\",,\"&$B327&\",\",data[],1),VLOOKUP(\"FLH,\"&Q$2&\",,\"&$B327&\",\",data[],7),IF($B327&\",\"&$K84&\",\"&$Q$2&\",\"&$X$2&\",\"&Q$2=VLOOKUP($B327&\",\"&$K84&\",\"&$Q$2&\",\"&$X$2&\",\"&Q$2,data_flh_2[],1),VLOOKUP($B327&\",\"&$K84&\",\"&$Q$2&\",\"&$X$2&\",\"&Q$2,data_flh_2[],7),Q$256))","v":5408.1570560352147},null,null,null,null,null,null,{"$f":"IF(X$2<>\"\",IF(\"FLH,\"&X$2&\",,\"&$B327&\",\"=VLOOKUP(\"FLH,\"&X$2&\",,\"&$B327&\",\",data[],1),VLOOKUP(\"FLH,\"&X$2&\",,\"&$B327&\",\",data[],7),IF($B327&\",\"&$K84&\",\"&$Q$2&\",\"&$X$2&\",\"&X$2=VLOOKUP($B327&\",\"&$K84&\",\"&$Q$2&\",\"&$X$2&\",\"&X$2,data_flh_2[],1),VLOOKUP($B327&\",\"&$K84&\",\"&$Q$2&\",\"&$X$2&\",\"&X$2,data_flh_2[],7),X$256)),0)","v":0},null,null,null,null,null,null,null,null,null,null,null,null,{"$f":"IF(AK84,IF(\"FLH,\"&AK$2&\",,\"&$B327&\",\"=VLOOKUP(\"FLH,\"&AK$2&\",,\"&$B327&\",\",data[],1),VLOOKUP(\"FLH,\"&AK$2&\",,\"&$B327&\",\",data[],7),IF($B327&\",\"&$K84&\",\"&$Q$2&\",\"&$X$2&\",\"&AK$2=VLOOKUP($B327&\",\"&$K84&\",\"&$Q$2&\",\"&$X$2&\",\"&AK$2,data_flh_2[],1),VLOOKUP($B327&\",\"&$K84&\",\"&$Q$2&\",\"&$X$2&\",\"&AK$2,data_flh_2[],7),AK$256)),0)","v":5370.1049147058775},null,{"$f":"IF(AM84,IF(\"FLH,\"&AM$2&\",,\"&$B327&\",\"=VLOOKUP(\"FLH,\"&AM$2&\",,\"&$B327&\",\",data[],1),VLOOKUP(\"FLH,\"&AM$2&\",,\"&$B327&\",\",data[],7),IF($B327&\",\"&$K84&\",\"&$Q$2&\",\"&$X$2&\",\"&AM$2=VLOOKUP($B327&\",\"&$K84&\",\"&$Q$2&\",\"&$X$2&\",\"&AM$2,data_flh_2[],1),VLOOKUP($B327&\",\"&$K84&\",\"&$Q$2&\",\"&$X$2&\",\"&AM$2,data_flh_2[],7),AM$256)),0)","v":0},null,null,null,null,null,null,null,null,null,null,null,null,null,null,{"$f":"IF(BB84,IF(\"FLH,\"&BB$2&\",,\"&$B327&\",\"=VLOOKUP(\"FLH,\"&BB$2&\",,\"&$B327&\",\",data[],1),VLOOKUP(\"FLH,\"&BB$2&\",,\"&$B327&\",\",data[],7),IF($B327&\",\"&$K84&\",\"&$Q$2&\",\"&$X$2&\",\"&BB$2=VLOOKUP($B327&\",\"&$K84&\",\"&$Q$2&\",\"&$X$2&\",\"&BB$2,data_flh_2[],1),VLOOKUP($B327&\",\"&$K84&\",\"&$Q$2&\",\"&$X$2&\",\"&BB$2,data_flh_2[],7),BB$256)),0)","v":6657.5999999999995},null,null,{"$f":"IF(BE84,IF(\"FLH,\"&BE$2&\",,\"&$B327&\",\"=VLOOKUP(\"FLH,\"&BE$2&\",,\"&$B327&\",\",data[],1),VLOOKUP(\"FLH,\"&BE$2&\",,\"&$B327&\",\",data[],7),IF($B327&\",\"&$K84&\",\"&$Q$2&\",\"&$X$2&\",\"&BE$2=VLOOKUP($B327&\",\"&$K84&\",\"&$Q$2&\",\"&$X$2&\",\"&BE$2,data_flh_2[],1),VLOOKUP($B327&\",\"&$K84&\",\"&$Q$2&\",\"&$X$2&\",\"&BE$2,data_flh_2[],7),BE$256)),0)","v":0}]
[null,"ZAF-FRS",null,null,{"$f":"IF(\"FLH,\"&E$2&\",,\"&$B328&\",\"=VLOOKUP(\"FLH,\"&E$2&\",,\"&$B328&\",\",data[],1),VLOOKUP(\"FLH,\"&E$2&\",,\"&$B328&\",\",data[],7),0)","v":1808.769283199998},{"$f":"IF(\"FLH,\"&F$2&\",,\"&$B328&\",\"=VLOOKUP(\"FLH,\"&F$2&\",,\"&$B328&\",\",data[],1),VLOOKUP(\"FLH,\"&F$2&\",,\"&$B328&\",\",data[],7),0)","v":0},{"$f":"IF(\"FLH,\"&G$2&\",,\"&$B328&\",\"=VLOOKUP(\"FLH,\"&G$2&\",,\"&$B328&\",\",data[],1),VLOOKUP(\"FLH,\"&G$2&\",,\"&$B328&\",\",data[],7),0)","v":4425.6106106284642},{"$f":"IF(\"FLH,\"&H$2&\",,\"&$B328&\",\"=VLOOKUP(\"FLH,\"&H$2&\",,\"&$B328&\",\",data[],1),VLOOKUP(\"FLH,\"&H$2&\",,\"&$B328&\",\",data[],7),0)","v":0},{"$f":"IF(\"FLH,\"&I$2&\",,\"&$B328&\",\"=VLOOKUP(\"FLH,\"&I$2&\",,\"&$B328&\",\",data[],1),VLOOKUP(\"FLH,\"&I$2&\",,\"&$B328&\",\",data[],7),0)","v":2775.7070136400025},null,{"$f":"INDEX(E328:I328,J85)","v":4425.6106106284642},null,null,null,null,null,{"$f":"IF(\"FLH,\"&Q$2&\",,\"&$B328&\",\"=VLOOKUP(\"FLH,\"&Q$2&\",,\"&$B328&\",\",data[],1),VLOOKUP(\"FLH,\"&Q$2&\",,\"&$B328&\",\",data[],7),IF($B328&\",\"&$K85&\",\"&$Q$2&\",\"&$X$2&\",\"&Q$2=VLOOKUP($B328&\",\"&$K85&\",\"&$Q$2&\",\"&$X$2&\",\"&Q$2,data_flh_2[],1),VLOOKUP($B328&\",\"&$K85&\",\"&$Q$2&\",\"&$X$2&\",\"&Q$2,data_flh_2[],7),Q$256))","v":4425.0744073961459},null,null,null,null,null,null,{"$f":"IF(X$2<>\"\",IF(\"FLH,\"&X$2&\",,\"&$B328&\",\"=VLOOKUP(\"FLH,\"&X$2&\",,\"&$B328&\",\",data[],1),VLOOKUP(\"FLH,\"&X$2&\",,\"&$B328&\",\",data[],7),IF($B328&\",\"&$K85&\",\"&$Q$2&\",\"&$X$2&\",\"&X$2=VLOOKUP($B328&\",\"&$K85&\",\"&$Q$2&\",\"&$X$2&\",\"&X$2,data_flh_2[],1),VLOOKUP($B328&\",\"&$K85&\",\"&$Q$2&\",\"&$X$2&\",\"&X$2,data_flh_2[],7),X$256)),0)","v":0},null,null,null,null,null,null,null,null,null,null,null,null,{"$f":"IF(AK85,IF(\"FLH,\"&AK$2&\",,\"&$B328&\",\"=VLOOKUP(\"FLH,\"&AK$2&\",,\"&$B328&\",\",data[],1),VLOOKUP(\"FLH,\"&AK$2&\",,\"&$B328&\",\",data[],7),IF($B328&\",\"&$K85&\",\"&$Q$2&\",\"&$X$2&\",\"&AK$2=VLOOKUP($B328&\",\"&$K85&\",\"&$Q$2&\",\"&$X$2&\",\"&AK$2,data_flh_2[],1),VLOOKUP($B328&\",\"&$K85&\",\"&$Q$2&\",\"&$X$2&\",\"&AK$2,data_flh_2[],7),AK$256)),0)","v":4330.1064556569754},null,{"$f":"IF(AM85,IF(\"FLH,\"&AM$2&\",,\"&$B328&\",\"=VLOOKUP(\"FLH,\"&AM$2&\",,\"&$B328&\",\",data[],1),VLOOKUP(\"FLH,\"&AM$2&\",,\"&$B328&\",\",data[],7),IF($B328&\",\"&$K85&\",\"&$Q$2&\",\"&$X$2&\",\"&AM$2=VLOOKUP($B328&\",\"&$K85&\",\"&$Q$2&\",\"&$X$2&\",\"&AM$2,data_flh_2[],1),VLOOKUP($B328&\",\"&$K85&\",\"&$Q$2&\",\"&$X$2&\",\"&AM$2,data_flh_2[],7),AM$256)),0)","v":0},null,null,null,null,null,null,null,null,null,null,null,null,null,null,{"$f":"IF(BB85,IF(\"FLH,\"&BB$2&\",,\"&$B328&\",\"=VLOOKUP(\"FLH,\"&BB$2&\",,\"&$B328&\",\",data[],1),VLOOKUP(\"FLH,\"&BB$2&\",,\"&$B328&\",\",data[],7),IF($B328&\",\"&$K85&\",\"&$Q$2&\",\"&$X$2&\",\"&BB$2=VLOOKUP($B328&\",\"&$K85&\",\"&$Q$2&\",\"&$X$2&\",\"&BB$2,data_flh_2[],1),VLOOKUP($B328&\",\"&$K85&\",\"&$Q$2&\",\"&$X$2&\",\"&BB$2,data_flh_2[],7),BB$256)),0)","v":6657.5999999999995},null,null,{"$f":"IF(BE85,IF(\"FLH,\"&BE$2&\",,\"&$B328&\",\"=VLOOKUP(\"FLH,\"&BE$2&\",,\"&$B328&\",\",data[],1),VLOOKUP(\"FLH,\"&BE$2&\",,\"&$B328&\",\",data[],7),IF($B328&\",\"&$K85&\",\"&$Q$2&\",\"&$X$2&\",\"&BE$2=VLOOKUP($B328&\",\"&$K85&\",\"&$Q$2&\",\"&$X$2&\",\"&BE$2,data_flh_2[],1),VLOOKUP($B328&\",\"&$K85&\",\"&$Q$2&\",\"&$X$2&\",\"&BE$2,data_flh_2[],7),BE$256)),0)","v":0}]
[null,"ZAF-GAU",null,null,{"$f":"IF(\"FLH,\"&E$2&\",,\"&$B329&\",\"=VLOOKUP(\"FLH,\"&E$2&\",,\"&$B329&\",\",data[],1),VLOOKUP(\"FLH,\"&E$2&\",,\"&$B329&\",\",data[],7),0)","v":1770.0387314399968},{"$f":"IF(\"FLH,\"&F$2&\",,\"&$B329&\",\"=VLOOKUP(\"FLH,\"&F$2&\",,\"&$B329&\",\",data[],1),VLOOKUP(\"FLH,\"&F$2&\",,\"&$B329&\",\",data[],7),0)","v":0},{"$f":"IF(\"FLH,\"&G$2&\",,\"&$B329&\",\"=VLOOKUP(\"FLH,\"&G$2&\",,\"&$B329&\",\",data[],1),VLOOKUP(\"FLH,\"&G$2&\",,\"&$B329&\",\",data[],7),0)","v":3757.1990000000001},{"$f":"IF(\"FLH,\"&H$2&\",,\"&$B329&\",\"=VLOOKUP(\"FLH,\"&H$2&\",,\"&$B329&\",\",data[],1),VLOOKUP(\"FLH,\"&H$2&\",,\"&$B329&\",\",data[],7),0)","v":0},{"$f":"IF(\"FLH,\"&I$2&\",,\"&$B329&\",\"=VLOOKUP(\"FLH,\"&I$2&\",,\"&$B329&\",\",data[],1),VLOOKUP(\"FLH,\"&I$2&\",,\"&$B329&\",\",data[],7),0)","v":2069.9309253700035},null,{"$f":"INDEX(E329:I329,J86)","v":3757.1990000000001},null,null,null,null,null,{"$f":"IF(\"FLH,\"&Q$2&\",,\"&$B329&\",\"=VLOOKUP(\"FLH,\"&Q$2&\",,\"&$B329&\",\",data[],1),VLOOKUP(\"FLH,\"&Q$2&\",,\"&$B329&\",\",data[],7),IF($B329&\",\"&$K86&\",\"&$Q$2&\",\"&$X$2&\",\"&Q$2=VLOOKUP($B329&\",\"&$K86&\",\"&$Q$2&\",\"&$X$2&\",\"&Q$2,data_flh_2[],1),VLOOKUP($B329&\",\"&$K86&\",\"&$Q$2&\",\"&$X$2&\",\"&Q$2,data_flh_2[],7),Q$256))","v":3663.78612817866},null,null,null,null,null,null,{"$f":"IF(X$2<>\"\",IF(\"FLH,\"&X$2&\",,\"&$B329&\",\"=VLOOKUP(\"FLH,\"&X$2&\",,\"&$B329&\",\",data[],1),VLOOKUP(\"FLH,\"&X$2&\",,\"&$B329&\",\",data[],7),IF($B329&\",\"&$K86&\",\"&$Q$2&\",\"&$X$2&\",\"&X$2=VLOOKUP($B329&\",\"&$K86&\",\"&$Q$2&\",\"&$X$2&\",\"&X$2,data_flh_2[],1),VLOOKUP($B329&\",\"&$K86&\",\"&$Q$2&\",\"&$X$2&\",\"&X$2,data_flh_2[],7),X$256)),0)","v":0},null,null,null,null,null,null,null,null,null,null,null,null,{"$f":"IF(AK86,IF(\"FLH,\"&AK$2&\",,\"&$B329&\",\"=VLOOKUP(\"FLH,\"&AK$2&\",,\"&$B329&\",\",data[],1),VLOOKUP(\"FLH,\"&AK$2&\",,\"&$B329&\",\",data[],7),IF($B329&\",\"&$K86&\",\"&$Q$2&\",\"&$X$2&\",\"&AK$2=VLOOKUP($B329&\",\"&$K86&\",\"&$Q$2&\",\"&$X$2&\",\"&AK$2,data_flh_2[],1),VLOOKUP($B329&\",\"&$K86&\",\"&$Q$2&\",\"&$X$2&\",\"&AK$2,data_flh_2[],7),AK$256)),0)","v":3569.33905},null,{"$f":"IF(AM86,IF(\"FLH,\"&AM$2&\",,\"&$B329&\",\"=VLOOKUP(\"FLH,\"&AM$2&\",,\"&$B329&\",\",data[],1),VLOOKUP(\"FLH,\"&AM$2&\",,\"&$B329&\",\",data[],7),IF($B329&\",\"&$K86&\",\"&$Q$2&\",\"&$X$2&\",\"&AM$2=VLOOKUP($B329&\",\"&$K86&\",\"&$Q$2&\",\"&$X$2&\",\"&AM$2,data_flh_2[],1),VLOOKUP($B329&\",\"&$K86&\",\"&$Q$2&\",\"&$X$2&\",\"&AM$2,data_flh_2[],7),AM$256)),0)","v":0},null,null,null,null,null,null,null,null,null,null,null,null,null,null,{"$f":"IF(BB86,IF(\"FLH,\"&BB$2&\",,\"&$B329&\",\"=VLOOKUP(\"FLH,\"&BB$2&\",,\"&$B329&\",\",data[],1),VLOOKUP(\"FLH,\"&BB$2&\",,\"&$B329&\",\",data[],7),IF($B329&\",\"&$K86&\",\"&$Q$2&\",\"&$X$2&\",\"&BB$2=VLOOKUP($B329&\",\"&$K86&\",\"&$Q$2&\",\"&$X$2&\",\"&BB$2,data_flh_2[],1),VLOOKUP($B329&\",\"&$K86&\",\"&$Q$2&\",\"&$X$2&\",\"&BB$2,data_flh_2[],7),BB$256)),0)","v":6657.5999999999995},null,null,{"$f":"IF(BE86,IF(\"FLH,\"&BE$2&\",,\"&$B329&\",\"=VLOOKUP(\"FLH,\"&BE$2&\",,\"&$B329&\",\",data[],1),VLOOKUP(\"FLH,\"&BE$2&\",,\"&$B329&\",\",data[],7),IF($B329&\",\"&$K86&\",\"&$Q$2&\",\"&$X$2&\",\"&BE$2=VLOOKUP($B329&\",\"&$K86&\",\"&$Q$2&\",\"&$X$2&\",\"&BE$2,data_flh_2[],1),VLOOKUP($B329&\",\"&$K86&\",\"&$Q$2&\",\"&$X$2&\",\"&BE$2,data_flh_2[],7),BE$256)),0)","v":0}]
[null,"ZAF-KWA",null,null,{"$f":"IF(\"FLH,\"&E$2&\",,\"&$B330&\",\"=VLOOKUP(\"FLH,\"&E$2&\",,\"&$B330&\",\",data[],1),VLOOKUP(\"FLH,\"&E$2&\",,\"&$B330&\",\",data[],7),0)","v":1694.9134799999979},{"$f":"IF(\"FLH,\"&F$2&\",,\"&$B330&\",\"=VLOOKUP(\"FLH,\"&F$2&\",,\"&$B330&\",\",data[],1),VLOOKUP(\"FLH,\"&F$2&\",,\"&$B330&\",\",data[],7),0)","v":0},{"$f":"IF(\"FLH,\"&G$2&\",,\"&$B330&\",\"=VLOOKUP(\"FLH,\"&G$2&\",,\"&$B330&\",\",data[],1),VLOOKUP(\"FLH,\"&G$2&\",,\"&$B330&\",\",data[],7),0)","v":4268.4057445788794},{"$f":"IF(\"FLH,\"&H$2&\",,\"&$B330&\",\"=VLOOKUP(\"FLH,\"&H$2&\",,\"&$B330&\",\",data[],1),VLOOKUP(\"FLH,\"&H$2&\",,\"&$B330&\",\",data[],7),0)","v":4117.2},{"$f":"IF(\"FLH,\"&I$2&\",,\"&$B330&\",\"=VLOOKUP(\"FLH,\"&I$2&\",,\"&$B330&\",\",data[],1),VLOOKUP(\"FLH,\"&I$2&\",,\"&$B330&\",\",data[],7),0)","v":2682.3634953500023},null,{"$f":"INDEX(E330:I330,J87)","v":4268.4057445788794},null,null,null,null,null,{"$f":"IF(\"FLH,\"&Q$2&\",,\"&$B330&\",\"=VLOOKUP(\"FLH,\"&Q$2&\",,\"&$B330&\",\",data[],1),VLOOKUP(\"FLH,\"&Q$2&\",,\"&$B330&\",\",data[],7),IF($B330&\",\"&$K87&\",\"&$Q$2&\",\"&$X$2&\",\"&Q$2=VLOOKUP($B330&\",\"&$K87&\",\"&$Q$2&\",\"&$X$2&\",\"&Q$2,data_flh_2[],1),VLOOKUP($B330&\",\"&$K87&\",\"&$Q$2&\",\"&$X$2&\",\"&Q$2,data_flh_2[],7),Q$256))","v":4246.0257193475072},null,null,null,null,null,null,{"$f":"IF(X$2<>\"\",IF(\"FLH,\"&X$2&\",,\"&$B330&\",\"=VLOOKUP(\"FLH,\"&X$2&\",,\"&$B330&\",\",data[],1),VLOOKUP(\"FLH,\"&X$2&\",,\"&$B330&\",\",data[],7),IF($B330&\",\"&$K87&\",\"&$Q$2&\",\"&$X$2&\",\"&X$2=VLOOKUP($B330&\",\"&$K87&\",\"&$Q$2&\",\"&$X$2&\",\"&X$2,data_flh_2[],1),VLOOKUP($B330&\",\"&$K87&\",\"&$Q$2&\",\"&$X$2&\",\"&X$2,data_flh_2[],7),X$256)),0)","v":0},null,null,null,null,null,null,null,null,null,null,null,null,{"$f":"IF(AK87,IF(\"FLH,\"&AK$2&\",,\"&$B330&\",\"=VLOOKUP(\"FLH,\"&AK$2&\",,\"&$B330&\",\",data[],1),VLOOKUP(\"FLH,\"&AK$2&\",,\"&$B330&\",\",data[],7),IF($B330&\",\"&$K87&\",\"&$Q$2&\",\"&$X$2&\",\"&AK$2=VLOOKUP($B330&\",\"&$K87&\",\"&$Q$2&\",\"&$X$2&\",\"&AK$2,data_flh_2[],1),VLOOKUP($B330&\",\"&$K87&\",\"&$Q$2&\",\"&$X$2&\",\"&AK$2,data_flh_2[],7),AK$256)),0)","v":4140.6917000175672},null,{"$f":"IF(AM87,IF(\"FLH,\"&AM$2&\",,\"&$B330&\",\"=VLOOKUP(\"FLH,\"&AM$2&\",,\"&$B330&\",\",data[],1),VLOOKUP(\"FLH,\"&AM$2&\",,\"&$B330&\",\",data[],7),IF($B330&\",\"&$K87&\",\"&$Q$2&\",\"&$X$2&\",\"&AM$2=VLOOKUP($B330&\",\"&$K87&\",\"&$Q$2&\",\"&$X$2&\",\"&AM$2,data_flh_2[],1),VLOOKUP($B330&\",\"&$K87&\",\"&$Q$2&\",\"&$X$2&\",\"&AM$2,data_flh_2[],7),AM$256)),0)","v":0},null,null,null,null,null,null,null,null,null,null,null,null,null,null,{"$f":"IF(BB87,IF(\"FLH,\"&BB$2&\",,\"&$B330&\",\"=VLOOKUP(\"FLH,\"&BB$2&\",,\"&$B330&\",\",data[],1),VLOOKUP(\"FLH,\"&BB$2&\",,\"&$B330&\",\",data[],7),IF($B330&\",\"&$K87&\",\"&$Q$2&\",\"&$X$2&\",\"&BB$2=VLOOKUP($B330&\",\"&$K87&\",\"&$Q$2&\",\"&$X$2&\",\"&BB$2,data_flh_2[],1),VLOOKUP($B330&\",\"&$K87&\",\"&$Q$2&\",\"&$X$2&\",\"&BB$2,data_flh_2[],7),BB$256)),0)","v":6657.5999999999995},null,null,{"$f":"IF(BE87,IF(\"FLH,\"&BE$2&\",,\"&$B330&\",\"=VLOOKUP(\"FLH,\"&BE$2&\",,\"&$B330&\",\",data[],1),VLOOKUP(\"FLH,\"&BE$2&\",,\"&$B330&\",\",data[],7),IF($B330&\",\"&$K87&\",\"&$Q$2&\",\"&$X$2&\",\"&BE$2=VLOOKUP($B330&\",\"&$K87&\",\"&$Q$2&\",\"&$X$2&\",\"&BE$2,data_flh_2[],1),VLOOKUP($B330&\",\"&$K87&\",\"&$Q$2&\",\"&$X$2&\",\"&BE$2,data_flh_2[],7),BE$256)),0)","v":0}]
[null,"ZAF-LIM",null,null,{"$f":"IF(\"FLH,\"&E$2&\",,\"&$B331&\",\"=VLOOKUP(\"FLH,\"&E$2&\",,\"&$B331&\",\",data[],1),VLOOKUP(\"FLH,\"&E$2&\",,\"&$B331&\",\",data[],7),0)","v":1711.457395919999},{"$f":"IF(\"FLH,\"&F$2&\",,\"&$B331&\",\"=VLOOKUP(\"FLH,\"&F$2&\",,\"&$B331&\",\",data[],1),VLOOKUP(\"FLH,\"&F$2&\",,\"&$B331&\",\",data[],7),0)","v":0},{"$f":"IF(\"FLH,\"&G$2&\",,\"&$B331&\",\"=VLOOKUP(\"FLH,\"&G$2&\",,\"&$B331&\",\",data[],1),VLOOKUP(\"FLH,\"&G$2&\",,\"&$B331&\",\",data[],7),0)","v":4233.3590689024513},{"$f":"IF(\"FLH,\"&H$2&\",,\"&$B331&\",\"=VLOOKUP(\"FLH,\"&H$2&\",,\"&$B331&\",\",data[],1),VLOOKUP(\"FLH,\"&H$2&\",,\"&$B331&\",\",data[],7),0)","v":0},{"$f":"IF(\"FLH,\"&I$2&\",,\"&$B331&\",\"=VLOOKUP(\"FLH,\"&I$2&\",,\"&$B331&\",\",data[],1),VLOOKUP(\"FLH,\"&I$2&\",,\"&$B331&\",\",data[],7),0)","v":2627.5496087499969},null,{"$f":"INDEX(E331:I331,J88)","v":4233.3590689024513},null,null,null,null,null,{"$f":"IF(\"FLH,\"&Q$2&\",,\"&$B331&\",\"=VLOOKUP(\"FLH,\"&Q$2&\",,\"&$B331&\",\",data[],1),VLOOKUP(\"FLH,\"&Q$2&\",,\"&$B331&\",\",data[],7),IF($B331&\",\"&$K88&\",\"&$Q$2&\",\"&$X$2&\",\"&Q$2=VLOOKUP($B331&\",\"&$K88&\",\"&$Q$2&\",\"&$X$2&\",\"&Q$2,data_flh_2[],1),VLOOKUP($B331&\",\"&$K88&\",\"&$Q$2&\",\"&$X$2&\",\"&Q$2,data_flh_2[],7),Q$256))","v":4206.1092621918406},null,null,null,null,null,null,{"$f":"IF(X$2<>\"\",IF(\"FLH,\"&X$2&\",,\"&$B331&\",\"=VLOOKUP(\"FLH,\"&X$2&\",,\"&$B331&\",\",data[],1),VLOOKUP(\"FLH,\"&X$2&\",,\"&$B331&\",\",data[],7),IF($B331&\",\"&$K88&\",\"&$Q$2&\",\"&$X$2&\",\"&X$2=VLOOKUP($B331&\",\"&$K88&\",\"&$Q$2&\",\"&$X$2&\",\"&X$2,data_flh_2[],1),VLOOKUP($B331&\",\"&$K88&\",\"&$Q$2&\",\"&$X$2&\",\"&X$2,data_flh_2[],7),X$256)),0)","v":0},null,null,null,null,null,null,null,null,null,null,null,null,{"$f":"IF(AK88,IF(\"FLH,\"&AK$2&\",,\"&$B331&\",\"=VLOOKUP(\"FLH,\"&AK$2&\",,\"&$B331&\",\",data[],1),VLOOKUP(\"FLH,\"&AK$2&\",,\"&$B331&\",\",data[],7),IF($B331&\",\"&$K88&\",\"&$Q$2&\",\"&$X$2&\",\"&AK$2=VLOOKUP($B331&\",\"&$K88&\",\"&$Q$2&\",\"&$X$2&\",\"&AK$2,data_flh_2[],1),VLOOKUP($B331&\",\"&$K88&\",\"&$Q$2&\",\"&$X$2&\",\"&AK$2,data_flh_2[],7),AK$256)),0)","v":4098.4642698111102},null,{"$f":"IF(AM88,IF(\"FLH,\"&AM$2&\",,\"&$B331&\",\"=VLOOKUP(\"FLH,\"&AM$2&\",,\"&$B331&\",\",data[],1),VLOOKUP(\"FLH,\"&AM$2&\",,\"&$B331&\",\",data[],7),IF($B331&\",\"&$K88&\",\"&$Q$2&\",\"&$X$2&\",\"&AM$2=VLOOKUP($B331&\",\"&$K88&\",\"&$Q$2&\",\"&$X$2&\",\"&AM$2,data_flh_2[],1),VLOOKUP($B331&\",\"&$K88&\",\"&$Q$2&\",\"&$X$2&\",\"&AM$2,data_flh_2[],7),AM$256)),0)","v":0},null,null,null,null,null,null,null,null,null,null,null,null,null,null,{"$f":"IF(BB88,IF(\"FLH,\"&BB$2&\",,\"&$B331&\",\"=VLOOKUP(\"FLH,\"&BB$2&\",,\"&$B331&\",\",data[],1),VLOOKUP(\"FLH,\"&BB$2&\",,\"&$B331&\",\",data[],7),IF($B331&\",\"&$K88&\",\"&$Q$2&\",\"&$X$2&\",\"&BB$2=VLOOKUP($B331&\",\"&$K88&\",\"&$Q$2&\",\"&$X$2&\",\"&BB$2,data_flh_2[],1),VLOOKUP($B331&\",\"&$K88&\",\"&$Q$2&\",\"&$X$2&\",\"&BB$2,data_flh_2[],7),BB$256)),0)","v":6657.5999999999995},null,null,{"$f":"IF(BE88,IF(\"FLH,\"&BE$2&\",,\"&$B331&\",\"=VLOOKUP(\"FLH,\"&BE$2&\",,\"&$B331&\",\",data[],1),VLOOKUP(\"FLH,\"&BE$2&\",,\"&$B331&\",\",data[],7),IF($B331&\",\"&$K88&\",\"&$Q$2&\",\"&$X$2&\",\"&BE$2=VLOOKUP($B331&\",\"&$K88&\",\"&$Q$2&\",\"&$X$2&\",\"&BE$2,data_flh_2[],1),VLOOKUP($B331&\",\"&$K88&\",\"&$Q$2&\",\"&$X$2&\",\"&BE$2,data_flh_2[],7),BE$256)),0)","v":0}]
[null,"ZAF-MPU",null,null,{"$f":"IF(\"FLH,\"&E$2&\",,\"&$B332&\",\"=VLOOKUP(\"FLH,\"&E$2&\",,\"&$B332&\",\",data[],1),VLOOKUP(\"FLH,\"&E$2&\",,\"&$B332&\",\",data[],7),0)","v":1752.2448955200002},{"$f":"IF(\"FLH,\"&F$2&\",,\"&$B332&\",\"=VLOOKUP(\"FLH,\"&F$2&\",,\"&$B332&\",\",data[],1),VLOOKUP(\"FLH,\"&F$2&\",,\"&$B332&\",\",data[],7),0)","v":0},{"$f":"IF(\"FLH,\"&G$2&\",,\"&$B332&\",\"=VLOOKUP(\"FLH,\"&G$2&\",,\"&$B332&\",\",data[],1),VLOOKUP(\"FLH,\"&G$2&\",,\"&$B332&\",\",data[],7),0)","v":4233.3590689024513},{"$f":"IF(\"FLH,\"&H$2&\",,\"&$B332&\",\"=VLOOKUP(\"FLH,\"&H$2&\",,\"&$B332&\",\",data[],1),VLOOKUP(\"FLH,\"&H$2&\",,\"&$B332&\",\",data[],7),0)","v":0},{"$f":"IF(\"FLH,\"&I$2&\",,\"&$B332&\",\"=VLOOKUP(\"FLH,\"&I$2&\",,\"&$B332&\",\",data[],1),VLOOKUP(\"FLH,\"&I$2&\",,\"&$B332&\",\",data[],7),0)","v":2612.1821174166703},null,{"$f":"INDEX(E332:I332,J89)","v":4233.3590689024513},null,null,null,null,null,{"$f":"IF(\"FLH,\"&Q$2&\",,\"&$B332&\",\"=VLOOKUP(\"FLH,\"&Q$2&\",,\"&$B332&\",\",data[],1),VLOOKUP(\"FLH,\"&Q$2&\",,\"&$B332&\",\",data[],7),IF($B332&\",\"&$K89&\",\"&$Q$2&\",\"&$X$2&\",\"&Q$2=VLOOKUP($B332&\",\"&$K89&\",\"&$Q$2&\",\"&$X$2&\",\"&Q$2,data_flh_2[],1),VLOOKUP($B332&\",\"&$K89&\",\"&$Q$2&\",\"&$X$2&\",\"&Q$2,data_flh_2[],7),Q$256))","v":4206.1092621918406},null,null,null,null,null,null,{"$f":"IF(X$2<>\"\",IF(\"FLH,\"&X$2&\",,\"&$B332&\",\"=VLOOKUP(\"FLH,\"&X$2&\",,\"&$B332&\",\",data[],1),VLOOKUP(\"FLH,\"&X$2&\",,\"&$B332&\",\",data[],7),IF($B332&\",\"&$K89&\",\"&$Q$2&\",\"&$X$2&\",\"&X$2=VLOOKUP($B332&\",\"&$K89&\",\"&$Q$2&\",\"&$X$2&\",\"&X$2,data_flh_2[],1),VLOOKUP($B332&\",\"&$K89&\",\"&$Q$2&\",\"&$X$2&\",\"&X$2,data_flh_2[],7),X$256)),0)","v":0},null,null,null,null,null,null,null,null,null,null,null,null,{"$f":"IF(AK89,IF(\"FLH,\"&AK$2&\",,\"&$B332&\",\"=VLOOKUP(\"FLH,\"&AK$2&\",,\"&$B332&\",\",data[],1),VLOOKUP(\"FLH,\"&AK$2&\",,\"&$B332&\",\",data[],7),IF($B332&\",\"&$K89&\",\"&$Q$2&\",\"&$X$2&\",\"&AK$2=VLOOKUP($B332&\",\"&$K89&\",\"&$Q$2&\",\"&$X$2&\",\"&AK$2,data_flh_2[],1),VLOOKUP($B332&\",\"&$K89&\",\"&$Q$2&\",\"&$X$2&\",\"&AK$2,data_flh_2[],7),AK$256)),0)","v":4098.4642698111102},null,{"$f":"IF(AM89,IF(\"FLH,\"&AM$2&\",,\"&$B332&\",\"=VLOOKUP(\"FLH,\"&AM$2&\",,\"&$B332&\",\",data[],1),VLOOKUP(\"FLH,\"&AM$2&\",,\"&$B332&\",\",data[],7),IF($B332&\",\"&$K89&\",\"&$Q$2&\",\"&$X$2&\",\"&AM$2=VLOOKUP($B332&\",\"&$K89&\",\"&$Q$2&\",\"&$X$2&\",\"&AM$2,data_flh_2[],1),VLOOKUP($B332&\",\"&$K89&\",\"&$Q$2&\",\"&$X$2&\",\"&AM$2,data_flh_2[],7),AM$256)),0)","v":0},null,null,null,null,null,null,null,null,null,null,null,null,null,null,{"$f":"IF(BB89,IF(\"FLH,\"&BB$2&\",,\"&$B332&\",\"=VLOOKUP(\"FLH,\"&BB$2&\",,\"&$B332&\",\",data[],1),VLOOKUP(\"FLH,\"&BB$2&\",,\"&$B332&\",\",data[],7),IF($B332&\",\"&$K89&\",\"&$Q$2&\",\"&$X$2&\",\"&BB$2=VLOOKUP($B332&\",\"&$K89&\",\"&$Q$2&\",\"&$X$2&\",\"&BB$2,data_flh_2[],1),VLOOKUP($B332&\",\"&$K89&\",\"&$Q$2&\",\"&$X$2&\",\"&BB$2,data_flh_2[],7),BB$256)),0)","v":6657.5999999999995},null,null,{"$f":"IF(BE89,IF(\"FLH,\"&BE$2&\",,\"&$B332&\",\"=VLOOKUP(\"FLH,\"&BE$2&\",,\"&$B332&\",\",data[],1),VLOOKUP(\"FLH,\"&BE$2&\",,\"&$B332&\",\",data[],7),IF($B332&\",\"&$K89&\",\"&$Q$2&\",\"&$X$2&\",\"&BE$2=VLOOKUP($B332&\",\"&$K89&\",\"&$Q$2&\",\"&$X$2&\",\"&BE$2,data_flh_2[],1),VLOOKUP($B332&\",\"&$K89&\",\"&$Q$2&\",\"&$X$2&\",\"&BE$2,data_flh_2[],7),BE$256)),0)","v":0}]
[null,"ZAF-NC",null,null,{"$f":"IF(\"FLH,\"&E$2&\",,\"&$B333&\",\"=VLOOKUP(\"FLH,\"&E$2&\",,\"&$B333&\",\",data[],1),VLOOKUP(\"FLH,\"&E$2&\",,\"&$B333&\",\",data[],7),0)","v":1814.9242226399974},{"$f":"IF(\"FLH,\"&F$2&\",,\"&$B333&\",\"=VLOOKUP(\"FLH,\"&F$2&\",,\"&$B333&\",\",data[],1),VLOOKUP(\"FLH,\"&F$2&\",,\"&$B333&\",\",data[],7),0)","v":0},{"$f":"IF(\"FLH,\"&G$2&\",,\"&$B333&\",\"=VLOOKUP(\"FLH,\"&G$2&\",,\"&$B333&\",\",data[],1),VLOOKUP(\"FLH,\"&G$2&\",,\"&$B333&\",\",data[],7),0)","v":5250.5102949318216},{"$f":"IF(\"FLH,\"&H$2&\",,\"&$B333&\",\"=VLOOKUP(\"FLH,\"&H$2&\",,\"&$B333&\",\",data[],1),VLOOKUP(\"FLH,\"&H$2&\",,\"&$B333&\",\",data[],7),0)","v":4117.2},{"$f":"IF(\"FLH,\"&I$2&\",,\"&$B333&\",\"=VLOOKUP(\"FLH,\"&I$2&\",,\"&$B333&\",\",data[],1),VLOOKUP(\"FLH,\"&I$2&\",,\"&$B333&\",\",data[],7),0)","v":3748.8309036749974},null,{"$f":"INDEX(E333:I333,J90)","v":5250.5102949318216},null,null,null,null,null,{"$f":"IF(\"FLH,\"&Q$2&\",,\"&$B333&\",\"=VLOOKUP(\"FLH,\"&Q$2&\",,\"&$B333&\",\",data[],1),VLOOKUP(\"FLH,\"&Q$2&\",,\"&$B333&\",\",data[],7),IF($B333&\",\"&$K90&\",\"&$Q$2&\",\"&$X$2&\",\"&Q$2=VLOOKUP($B333&\",\"&$K90&\",\"&$Q$2&\",\"&$X$2&\",\"&Q$2,data_flh_2[],1),VLOOKUP($B333&\",\"&$K90&\",\"&$Q$2&\",\"&$X$2&\",\"&Q$2,data_flh_2[],7),Q$256))","v":5364.5949830484678},null,null,null,null,null,null,{"$f":"IF(X$2<>\"\",IF(\"FLH,\"&X$2&\",,\"&$B333&\",\"=VLOOKUP(\"FLH,\"&X$2&\",,\"&$B333&\",\",data[],1),VLOOKUP(\"FLH,\"&X$2&\",,\"&$B333&\",\",data[],7),IF($B333&\",\"&$K90&\",\"&$Q$2&\",\"&$X$2&\",\"&X$2=VLOOKUP($B333&\",\"&$K90&\",\"&$Q$2&\",\"&$X$2&\",\"&X$2,data_flh_2[],1),VLOOKUP($B333&\",\"&$K90&\",\"&$Q$2&\",\"&$X$2&\",\"&X$2,data_flh_2[],7),X$256)),0)","v":0},null,null,null,null,null,null,null,null,null,null,null,null,{"$f":"IF(AK90,IF(\"FLH,\"&AK$2&\",,\"&$B333&\",\"=VLOOKUP(\"FLH,\"&AK$2&\",,\"&$B333&\",\",data[],1),VLOOKUP(\"FLH,\"&AK$2&\",,\"&$B333&\",\",data[],7),IF($B333&\",\"&$K90&\",\"&$Q$2&\",\"&$X$2&\",\"&AK$2=VLOOKUP($B333&\",\"&$K90&\",\"&$Q$2&\",\"&$X$2&\",\"&AK$2,data_flh_2[],1),VLOOKUP($B333&\",\"&$K90&\",\"&$Q$2&\",\"&$X$2&\",\"&AK$2,data_flh_2[],7),AK$256)),0)","v":5324.0208048480645},null,{"$f":"IF(AM90,IF(\"FLH,\"&AM$2&\",,\"&$B333&\",\"=VLOOKUP(\"FLH,\"&AM$2&\",,\"&$B333&\",\",data[],1),VLOOKUP(\"FLH,\"&AM$2&\",,\"&$B333&\",\",data[],7),IF($B333&\",\"&$K90&\",\"&$Q$2&\",\"&$X$2&\",\"&AM$2=VLOOKUP($B333&\",\"&$K90&\",\"&$Q$2&\",\"&$X$2&\",\"&AM$2,data_flh_2[],1),VLOOKUP($B333&\",\"&$K90&\",\"&$Q$2&\",\"&$X$2&\",\"&AM$2,data_flh_2[],7),AM$256)),0)","v":0},null,null,null,null,null,null,null,null,null,null,null,null,null,null,{"$f":"IF(BB90,IF(\"FLH,\"&BB$2&\",,\"&$B333&\",\"=VLOOKUP(\"FLH,\"&BB$2&\",,\"&$B333&\",\",data[],1),VLOOKUP(\"FLH,\"&BB$2&\",,\"&$B333&\",\",data[],7),IF($B333&\",\"&$K90&\",\"&$Q$2&\",\"&$X$2&\",\"&BB$2=VLOOKUP($B333&\",\"&$K90&\",\"&$Q$2&\",\"&$X$2&\",\"&BB$2,data_flh_2[],1),VLOOKUP($B333&\",\"&$K90&\",\"&$Q$2&\",\"&$X$2&\",\"&BB$2,data_flh_2[],7),BB$256)),0)","v":6657.5999999999995},null,null,{"$f":"IF(BE90,IF(\"FLH,\"&BE$2&\",,\"&$B333&\",\"=VLOOKUP(\"FLH,\"&BE$2&\",,\"&$B333&\",\",data[],1),VLOOKUP(\"FLH,\"&BE$2&\",,\"&$B333&\",\",data[],7),IF($B333&\",\"&$K90&\",\"&$Q$2&\",\"&$X$2&\",\"&BE$2=VLOOKUP($B333&\",\"&$K90&\",\"&$Q$2&\",\"&$X$2&\",\"&BE$2,data_flh_2[],1),VLOOKUP($B333&\",\"&$K90&\",\"&$Q$2&\",\"&$X$2&\",\"&BE$2,data_flh_2[],7),BE$256)),0)","v":0}]
[null,"ZAF-NW",null,null,{"$f":"IF(\"FLH,\"&E$2&\",,\"&$B334&\",\"=VLOOKUP(\"FLH,\"&E$2&\",,\"&$B334&\",\",data[],1),VLOOKUP(\"FLH,\"&E$2&\",,\"&$B334&\",\",data[],7),0)","v":1786.6500962399978},{"$f":"IF(\"FLH,\"&F$2&\",,\"&$B334&\",\"=VLOOKUP(\"FLH,\"&F$2&\",,\"&$B334&\",\",data[],1),VLOOKUP(\"FLH,\"&F$2&\",,\"&$B334&\",\",data[],7),0)","v":0},{"$f":"IF(\"FLH,\"&G$2&\",,\"&$B334&\",\"=VLOOKUP(\"FLH,\"&G$2&\",,\"&$B334&\",\",data[],1),VLOOKUP(\"FLH,\"&G$2&\",,\"&$B334&\",\",data[],7),0)","v":4461.2336445282735},{"$f":"IF(\"FLH,\"&H$2&\",,\"&$B334&\",\"=VLOOKUP(\"FLH,\"&H$2&\",,\"&$B334&\",\",data[],1),VLOOKUP(\"FLH,\"&H$2&\",,\"&$B334&\",\",data[],7),0)","v":0},{"$f":"IF(\"FLH,\"&I$2&\",,\"&$B334&\",\"=VLOOKUP(\"FLH,\"&I$2&\",,\"&$B334&\",\",data[],1),VLOOKUP(\"FLH,\"&I$2&\",,\"&$B334&\",\",data[],7),0)","v":3092.6134290333307},null,{"$f":"INDEX(E334:I334,J91)","v":4461.2336445282735},null,null,null,null,null,{"$f":"IF(\"FLH,\"&Q$2&\",,\"&$B334&\",\"=VLOOKUP(\"FLH,\"&Q$2&\",,\"&$B334&\",\",data[],1),VLOOKUP(\"FLH,\"&Q$2&\",,\"&$B334&\",\",data[],7),IF($B334&\",\"&$K91&\",\"&$Q$2&\",\"&$X$2&\",\"&Q$2=VLOOKUP($B334&\",\"&$K91&\",\"&$Q$2&\",\"&$X$2&\",\"&Q$2,data_flh_2[],1),VLOOKUP($B334&\",\"&$K91&\",\"&$Q$2&\",\"&$X$2&\",\"&Q$2,data_flh_2[],7),Q$256))","v":4465.6473085050802},null,null,null,null,null,null,{"$f":"IF(X$2<>\"\",IF(\"FLH,\"&X$2&\",,\"&$B334&\",\"=VLOOKUP(\"FLH,\"&X$2&\",,\"&$B334&\",\",data[],1),VLOOKUP(\"FLH,\"&X$2&\",,\"&$B334&\",\",data[],7),IF($B334&\",\"&$K91&\",\"&$Q$2&\",\"&$X$2&\",\"&X$2=VLOOKUP($B334&\",\"&$K91&\",\"&$Q$2&\",\"&$X$2&\",\"&X$2,data_flh_2[],1),VLOOKUP($B334&\",\"&$K91&\",\"&$Q$2&\",\"&$X$2&\",\"&X$2,data_flh_2[],7),X$256)),0)","v":0},null,null,null,null,null,null,null,null,null,null,null,null,{"$f":"IF(AK91,IF(\"FLH,\"&AK$2&\",,\"&$B334&\",\"=VLOOKUP(\"FLH,\"&AK$2&\",,\"&$B334&\",\",data[],1),VLOOKUP(\"FLH,\"&AK$2&\",,\"&$B334&\",\",data[],7),IF($B334&\",\"&$K91&\",\"&$Q$2&\",\"&$X$2&\",\"&AK$2=VLOOKUP($B334&\",\"&$K91&\",\"&$Q$2&\",\"&$X$2&\",\"&AK$2,data_flh_2[],1),VLOOKUP($B334&\",\"&$K91&\",\"&$Q$2&\",\"&$X$2&\",\"&AK$2,data_flh_2[],7),AK$256)),0)","v":4373.028334799943},null,{"$f":"IF(AM91,IF(\"FLH,\"&AM$2&\",,\"&$B334&\",\"=VLOOKUP(\"FLH,\"&AM$2&\",,\"&$B334&\",\",data[],1),VLOOKUP(\"FLH,\"&AM$2&\",,\"&$B334&\",\",data[],7),IF($B334&\",\"&$K91&\",\"&$Q$2&\",\"&$X$2&\",\"&AM$2=VLOOKUP($B334&\",\"&$K91&\",\"&$Q$2&\",\"&$X$2&\",\"&AM$2,data_flh_2[],1),VLOOKUP($B334&\",\"&$K91&\",\"&$Q$2&\",\"&$X$2&\",\"&AM$2,data_flh_2[],7),AM$256)),0)","v":0},null,null,null,null,null,null,null,null,null,null,null,null,null,null,{"$f":"IF(BB91,IF(\"FLH,\"&BB$2&\",,\"&$B334&\",\"=VLOOKUP(\"FLH,\"&BB$2&\",,\"&$B334&\",\",data[],1),VLOOKUP(\"FLH,\"&BB$2&\",,\"&$B334&\",\",data[],7),IF($B334&\",\"&$K91&\",\"&$Q$2&\",\"&$X$2&\",\"&BB$2=VLOOKUP($B334&\",\"&$K91&\",\"&$Q$2&\",\"&$X$2&\",\"&BB$2,data_flh_2[],1),VLOOKUP($B334&\",\"&$K91&\",\"&$Q$2&\",\"&$X$2&\",\"&BB$2,data_flh_2[],7),BB$256)),0)","v":6657.5999999999995},null,null,{"$f":"IF(BE91,IF(\"FLH,\"&BE$2&\",,\"&$B334&\",\"=VLOOKUP(\"FLH,\"&BE$2&\",,\"&$B334&\",\",data[],1),VLOOKUP(\"FLH,\"&BE$2&\",,\"&$B334&\",\",data[],7),IF($B334&\",\"&$K91&\",\"&$Q$2&\",\"&$X$2&\",\"&BE$2=VLOOKUP($B334&\",\"&$K91&\",\"&$Q$2&\",\"&$X$2&\",\"&BE$2,data_flh_2[],1),VLOOKUP($B334&\",\"&$K91&\",\"&$Q$2&\",\"&$X$2&\",\"&BE$2,data_flh_2[],7),BE$256)),0)","v":0}]
[null,"ZAF-WC",null,null,{"$f":"IF(\"FLH,\"&E$2&\",,\"&$B335&\",\"=VLOOKUP(\"FLH,\"&E$2&\",,\"&$B335&\",\",data[],1),VLOOKUP(\"FLH,\"&E$2&\",,\"&$B335&\",\",data[],7),0)","v":1664.7200798400002},{"$f":"IF(\"FLH,\"&F$2&\",,\"&$B335&\",\"=VLOOKUP(\"FLH,\"&F$2&\",,\"&$B335&\",\",data[],1),VLOOKUP(\"FLH,\"&F$2&\",,\"&$B335&\",\",data[],7),0)","v":0},{"$f":"IF(\"FLH,\"&G$2&\",,\"&$B335&\",\"=VLOOKUP(\"FLH,\"&G$2&\",,\"&$B335&\",\",data[],1),VLOOKUP(\"FLH,\"&G$2&\",,\"&$B335&\",\",data[],7),0)","v":4751.4057997393265},{"$f":"IF(\"FLH,\"&H$2&\",,\"&$B335&\",\"=VLOOKUP(\"FLH,\"&H$2&\",,\"&$B335&\",\",data[],1),VLOOKUP(\"FLH,\"&H$2&\",,\"&$B335&\",\",data[],7),0)","v":4117.2},{"$f":"IF(\"FLH,\"&I$2&\",,\"&$B335&\",\"=VLOOKUP(\"FLH,\"&I$2&\",,\"&$B335&\",\",data[],1),VLOOKUP(\"FLH,\"&I$2&\",,\"&$B335&\",\",data[],7),0)","v":3346.6670672599976},null,{"$f":"INDEX(E335:I335,J92)","v":4751.4057997393265},null,null,null,null,null,{"$f":"IF(\"FLH,\"&Q$2&\",,\"&$B335&\",\"=VLOOKUP(\"FLH,\"&Q$2&\",,\"&$B335&\",\",data[],1),VLOOKUP(\"FLH,\"&Q$2&\",,\"&$B335&\",\",data[],7),IF($B335&\",\"&$K92&\",\"&$Q$2&\",\"&$X$2&\",\"&Q$2=VLOOKUP($B335&\",\"&$K92&\",\"&$Q$2&\",\"&$X$2&\",\"&Q$2,data_flh_2[],1),VLOOKUP($B335&\",\"&$K92&\",\"&$Q$2&\",\"&$X$2&\",\"&Q$2,data_flh_2[],7),Q$256))","v":4796.139264666268},null,null,null,null,null,null,{"$f":"IF(X$2<>\"\",IF(\"FLH,\"&X$2&\",,\"&$B335&\",\"=VLOOKUP(\"FLH,\"&X$2&\",,\"&$B335&\",\",data[],1),VLOOKUP(\"FLH,\"&X$2&\",,\"&$B335&\",\",data[],7),IF($B335&\",\"&$K92&\",\"&$Q$2&\",\"&$X$2&\",\"&X$2=VLOOKUP($B335&\",\"&$K92&\",\"&$Q$2&\",\"&$X$2&\",\"&X$2,data_flh_2[],1),VLOOKUP($B335&\",\"&$K92&\",\"&$Q$2&\",\"&$X$2&\",\"&X$2,data_flh_2[],7),X$256)),0)","v":0},null,null,null,null,null,null,null,null,null,null,null,null,{"$f":"IF(AK92,IF(\"FLH,\"&AK$2&\",,\"&$B335&\",\"=VLOOKUP(\"FLH,\"&AK$2&\",,\"&$B335&\",\",data[],1),VLOOKUP(\"FLH,\"&AK$2&\",,\"&$B335&\",\",data[],7),IF($B335&\",\"&$K92&\",\"&$Q$2&\",\"&$X$2&\",\"&AK$2=VLOOKUP($B335&\",\"&$K92&\",\"&$Q$2&\",\"&$X$2&\",\"&AK$2,data_flh_2[],1),VLOOKUP($B335&\",\"&$K92&\",\"&$Q$2&\",\"&$X$2&\",\"&AK$2,data_flh_2[],7),AK$256)),0)","v":4722.6542036030496},null,{"$f":"IF(AM92,IF(\"FLH,\"&AM$2&\",,\"&$B335&\",\"=VLOOKUP(\"FLH,\"&AM$2&\",,\"&$B335&\",\",data[],1),VLOOKUP(\"FLH,\"&AM$2&\",,\"&$B335&\",\",data[],7),IF($B335&\",\"&$K92&\",\"&$Q$2&\",\"&$X$2&\",\"&AM$2=VLOOKUP($B335&\",\"&$K92&\",\"&$Q$2&\",\"&$X$2&\",\"&AM$2,data_flh_2[],1),VLOOKUP($B335&\",\"&$K92&\",\"&$Q$2&\",\"&$X$2&\",\"&AM$2,data_flh_2[],7),AM$256)),0)","v":0},null,null,null,null,null,null,null,null,null,null,null,null,null,null,{"$f":"IF(BB92,IF(\"FLH,\"&BB$2&\",,\"&$B335&\",\"=VLOOKUP(\"FLH,\"&BB$2&\",,\"&$B335&\",\",data[],1),VLOOKUP(\"FLH,\"&BB$2&\",,\"&$B335&\",\",data[],7),IF($B335&\",\"&$K92&\",\"&$Q$2&\",\"&$X$2&\",\"&BB$2=VLOOKUP($B335&\",\"&$K92&\",\"&$Q$2&\",\"&$X$2&\",\"&BB$2,data_flh_2[],1),VLOOKUP($B335&\",\"&$K92&\",\"&$Q$2&\",\"&$X$2&\",\"&BB$2,data_flh_2[],7),BB$256)),0)","v":6657.5999999999995},null,null,{"$f":"IF(BE92,IF(\"FLH,\"&BE$2&\",,\"&$B335&\",\"=VLOOKUP(\"FLH,\"&BE$2&\",,\"&$B335&\",\",data[],1),VLOOKUP(\"FLH,\"&BE$2&\",,\"&$B335&\",\",data[],7),IF($B335&\",\"&$K92&\",\"&$Q$2&\",\"&$X$2&\",\"&BE$2=VLOOKUP($B335&\",\"&$K92&\",\"&$Q$2&\",\"&$X$2&\",\"&BE$2,data_flh_2[],1),VLOOKUP($B335&\",\"&$K92&\",\"&$Q$2&\",\"&$X$2&\",\"&BE$2,data_flh_2[],7),BE$256)),0)","v":0}]
[]
["cap"]
[null,"ARE",null,null,null,null,null,null,null,null,{"$f":"K95/K257","v":3.2088978575284287E-4},null,null,null,null,null,{"$f":"IF(Q95>0,Q95/Q257,0)","v":2.3306731807311748E-4},null,{"$f":"IF(S95>0,S95,0)","v":0.20699999999999999},null,null,null,null,{"$f":"IF(X95>0,X95/X257,0)","v":0},null,{"$f":"IF(Z95>0,Z95,0)","v":0},null,null,null,{"$f":"IF(AD95>0,AD95,0)","v":0},null,null,null,null,null,null,{"$f":"IF(AK14,AK95/AK257,0)","v":0},null,{"$f":"IF(AM14,AM95/AM257,0)","v":1.0364095169430426E-4},null,null,null,null,null,null,null,{"$f":"AU95*SIGN(AU14)","v":0},null,{"$f":"AW95*SIGN(AW14)","v":0},0.62599099999999996,0,0,null,{"$f":"IF(BB14,BB95/BB257,0)","v":0},null,null,{"$f":"IF(BE14,BE95/BE257,0)","v":0}]
[null,"ARG",null,null,null,null,null,null,null,null,{"$f":"K96/K258","v":1.7664973184570705E-4},null,null,null,null,null,{"$f":"IF(Q96>0,Q96/Q258,0)","v":1.1927346899970181E-4},null,{"$f":"IF(S96>0,S96,0)","v":0.20699999999999999},null,null,null,null,{"$f":"IF(X96>0,X96/X258,0)","v":0},null,{"$f":"IF(Z96>0,Z96,0)","v":0},null,null,null,{"$f":"IF(AD96>0,AD96,0)","v":0},null,null,null,null,null,null,{"$f":"IF(AK15,AK96/AK258,0)","v":1.1519679452397846E-4},null,{"$f":"IF(AM15,AM96/AM258,0)","v":0},null,null,null,null,null,null,null,{"$f":"AU96*SIGN(AU15)","v":0.60874797550958692},null,0,0,0,0,null,{"$f":"IF(BB15,BB96/BB258,0)","v":9.1120778164996478E-5},null,null,0]
[null,"ARG-BA",null,null,null,null,null,null,null,null,2.0218862258204162E-4,null,null,null,null,null,{"$f":"IF(Q97>0,Q97/Q259,0)","v":1.3751506232869738E-4},null,0.20699999999999999,null,null,null,null,0,null,0,null,null,null,0,null,null,null,null,null,null,1.391979236827638E-4,null,0,null,null,null,null,null,null,null,{"$f":"AU97*SIGN(AU16)","v":0.60874797550958692},null,0,0,0,0,null,9.1120778164996478E-5,null,null,0]
[null,"ARG-CAT",null,null,null,null,null,null,null,null,2.0755011631140181E-4,null,null,null,null,null,1.4162224403349818E-4,null,0.20699999999999999,null,null,null,null,0,null,0,null,null,null,0,null,null,null,null,null,null,1.4365932635412081E-4,null,0,null,null,null,null,null,null,null,{"$f":"AU98*SIGN(AU17)","v":0.60874797550958692},null,0,0,0,0,null,9.1120778164996478E-5,null,null,0]
[null,"ARG-CBA",null,null,null,null,null,null,null,null,2.0849286353094758E-4,null,null,null,null,null,1.4234720994020977E-4,null,0.20699999999999999,null,null,null,null,0,null,0,null,null,null,0,null,null,null,null,null,null,1.4444878162022228E-4,null,0,null,null,null,null,null,null,null,{"$f":"AU99*SIGN(AU18)","v":0.60874797550958692},null,0,0,0,0,null,9.1120778164996478E-5,null,null,0]
[null,"ARG-CHA",null,null,null,null,null,null,null,null,2.2971711960420092E-4,null,null,null,null,null,1.5889173288039903E-4,null,0.20699999999999999,null,null,null,null,0,null,0,null,null,null,0,null,null,null,null,null,null,1.6262708813512665E-4,null,0,null,null,null,null,null,null,null,{"$f":"AU100*SIGN(AU19)","v":0.60874797550958692},null,0,0,0,0,null,9.1120778164996478E-5,null,null,0]
[null,"ARG-CHU",null,null,null,null,null,null,null,null,1.5648436941643643E-4,null,null,null,null,null,1.0355865834711571E-4,null,0.20699999999999999,null,null,null,null,0,null,0,null,null,null,0,null,null,null,null,null,null,1.030238015938268E-4,null,0,null,null,null,null,null,null,null,{"$f":"AU101*SIGN(AU20)","v":0.60874797550958692},null,0,0,0,0,null,9.1120778164996478E-5,null,null,0]
[null,"ARG-COR",null,null,null,null,null,null,null,null,2.3272186015533685E-4,null,null,null,null,null,1.6126903730656652E-4,null,0.20699999999999999,null,null,null,null,0,null,0,null,null,null,0,null,null,null,null,null,null,1.6526493001404557E-4,null,0,null,null,null,null,null,null,null,{"$f":"AU102*SIGN(AU21)","v":0.60874797550958692},null,0,0,0,0,null,9.1120778164996478E-5,null,null,0]
[null,"ARG-CRB",null,null,null,null,null,null,null,null,2.4642353187653046E-4,null,null,null,null,null,1.7222249238774145E-4,null,0.20699999999999999,null,null,null,null,0,null,0,null,null,null,0,null,null,null,null,null,null,1.7750379911280487E-4,null,0,null,null,null,null,null,null,null,{"$f":"AU103*SIGN(AU22)","v":0.60874797550958692},null,0,0,0,0,null,9.1120778164996478E-5,null,null,0]
[null,"ARG-CRU",null,null,null,null,null,null,null,null,1.5699876855323976E-4,null,null,null,null,null,1.0393063792464898E-4,null,0.20699999999999999,null,null,null,null,0,null,0,null,null,null,0,null,null,null,null,null,null,1.0341333604473829E-4,null,0,null,null,null,null,null,null,null,{"$f":"AU104*SIGN(AU23)","v":0.60874797550958692},null,0,0,0,0,null,9.1120778164996478E-5,null,null,0]
[null,"ARG-EST",null,null,null,null,null,null,null,null,2.0464762986786091E-4,null,null,null,null,null,1.3939546721940198E-4,null,0.20699999999999999,null,null,null,null,0,null,0,null,null,null,0,null,null,null,null,null,null,1.4123815737601911E-4,null,0,null,null,null,null,null,null,null,{"$f":"AU105*SIGN(AU24)","v":0.60874797550958692},null,0,0,0,0,null,9.1120778164996478E-5,null,null,0]
[null,"ARG-FOR",null,null,null,null,null,null,null,null,2.0212774674476563E-4,null,null,null,null,null,1.3746858168983567E-4,null,0.20699999999999999,null,null,null,null,0,null,0,null,null,null,0,null,null,null,null,null,null,1.3914754238744277E-4,null,0,null,null,null,null,null,null,null,{"$f":"AU106*SIGN(AU25)","v":0.60874797550958692},null,0,0,0,0,null,9.1120778164996478E-5,null,null,0]
[null,"ARG-FUE",null,null,null,null,null,null,null,null,2.2994976277824483E-4,null,null,null,null,null,1.5907548171892775E-4,null,0.20699999999999999,null,null,null,null,0,null,0,null,null,null,0,null,null,null,null,null,null,1.628307416950164E-4,null,0,null,null,null,null,null,null,null,{"$f":"AU107*SIGN(AU26)","v":0.60874797550958692},null,0,0,0,0,null,9.1120778164996478E-5,null,null,0]
[null,"ARG-JUJ",null,null,null,null,null,null,null,null,1.8721230527574226E-4,null,null,null,null,null,1.2618270885711259E-4,null,0.20699999999999999,null,null,null,null,0,null,0,null,null,null,0,null,null,null,null,null,null,1.2698555929596718E-4,null,0,null,null,null,null,null,null,null,{"$f":"AU108*SIGN(AU27)","v":0.60874797550958692},null,0,0,0,0,null,9.1120778164996478E-5,null,null,0]
[null,"ARG-LAR",null,null,null,null,null,null,null,null,2.0025489066221813E-4,null,null,null,null,null,1.3604027210290711E-4,null,0.20699999999999999,null,null,null,null,0,null,0,null,null,null,0,null,null,null,null,null,null,1.3760054434368957E-4,null,0,null,null,null,null,null,null,null,{"$f":"AU109*SIGN(AU28)","v":0.60874797550958692},null,0,0,0,0,null,9.1120778164996478E-5,null,null,0]
[null,"ARG-MEN",null,null,null,null,null,null,null,null,2.1576171438934832E-4,null,null,null,null,null,1.479649825151839E-4,null,0.20699999999999999,null,null,null,null,0,null,0,null,null,null,0,null,null,null,null,null,null,1.5058638032361388E-4,null,0,null,null,null,null,null,null,null,{"$f":"AU110*SIGN(AU29)","v":0.60874797550958692},null,0,0,0,0,null,9.1120778164996478E-5,null,null,0]
[null,"ARG-MIS",null,null,null,null,null,null,null,null,3.1254599797558662E-4,null,null,null,null,null,2.270070932664787E-4,null,0.20699999999999999,null,null,null,null,0,null,0,null,null,null,0,null,null,null,null,null,null,2.270070932664787E-4,null,0,null,null,null,null,null,null,null,{"$f":"AU111*SIGN(AU30)","v":0.60874797550958692},null,0,0,0,0,null,9.1120778164996478E-5,null,null,0]
[null,"ARG-NEG",null,null,null,null,null,null,null,null,1.7032824082819341E-4,null,null,null,null,null,1.1364905511794582E-4,null,0.20699999999999999,null,null,null,null,0,null,0,null,null,null,0,null,null,null,null,null,null,1.1364265450019721E-4,null,0,null,null,null,null,null,null,null,{"$f":"AU112*SIGN(AU31)","v":0.60874797550958692},null,0,0,0,0,null,9.1120778164996478E-5,null,null,0]
[null,"ARG-NEU",null,null,null,null,null,null,null,null,1.9416469639384063E-4,null,null,null,null,null,1.3141799329612124E-4,null,0.20699999999999999,null,null,null,null,0,null,0,null,null,null,0,null,null,null,null,null,null,1.3260972327175887E-4,null,0,null,null,null,null,null,null,null,{"$f":"AU113*SIGN(AU32)","v":0.60874797550958692},null,0,0,0,0,null,9.1120778164996478E-5,null,null,0]
[null,"ARG-PAM",null,null,null,null,null,null,null,null,1.9452670522578138E-4,null,null,null,null,null,1.3169179698175744E-4,null,0.20699999999999999,null,null,null,null,0,null,0,null,null,null,0,null,null,null,null,null,null,1.329046975177535E-4,null,0,null,null,null,null,null,null,null,{"$f":"AU114*SIGN(AU33)","v":0.60874797550958692},null,0,0,0,0,null,9.1120778164996478E-5,null,null,0]
[null,"ARG-RIO",null,null,null,null,null,null,null,null,2.3058452624674235E-4,null,null,null,null,null,1.5957710617119791E-4,null,0.20699999999999999,null,null,null,null,0,null,0,null,null,null,0,null,null,null,null,null,null,1.6338690351869322E-4,null,0,null,null,null,null,null,null,null,{"$f":"AU115*SIGN(AU34)","v":0.60874797550958692},null,0,0,0,0,null,9.1120778164996478E-5,null,null,0]
[null,"ARG-SAF",null,null,null,null,null,null,null,null,2.2519877327239335E-4,null,null,null,null,null,1.5533343381950385E-4,null,0.20699999999999999,null,null,null,null,0,null,0,null,null,null,0,null,null,null,null,null,null,1.5869100676599871E-4,null,0,null,null,null,null,null,null,null,{"$f":"AU116*SIGN(AU35)","v":0.60874797550958692},null,0,0,0,0,null,9.1120778164996478E-5,null,null,0]
[null,"ARG-SAJ",null,null,null,null,null,null,null,null,2.3728940718760195E-4,null,null,null,null,null,1.648997728383205E-4,null,0.20699999999999999,null,null,null,null,0,null,0,null,null,null,0,null,null,null,null,null,null,1.6930621840253291E-4,null,0,null,null,null,null,null,null,null,{"$f":"AU117*SIGN(AU36)","v":0.60874797550958692},null,0,0,0,0,null,9.1120778164996478E-5,null,null,0]
[null,"ARG-SAL",null,null,null,null,null,null,null,null,1.9779147232341367E-4,null,null,null,null,null,1.3416650699224185E-4,null,0.20699999999999999,null,null,null,null,0,null,0,null,null,null,0,null,null,null,null,null,null,1.3557452102878819E-4,null,0,null,null,null,null,null,null,null,{"$f":"AU118*SIGN(AU37)","v":0.60874797550958692},null,0,0,0,0,null,9.1120778164996478E-5,null,null,0]
[null,"ARG-SAT",null,null,null,null,null,null,null,null,2.1064570069286121E-4,null,null,null,null,null,1.4400585154236212E-4,null,0.20699999999999999,null,null,null,null,0,null,0,null,null,null,0,null,null,null,null,null,null,1.4625719302602318E-4,null,0,null,null,null,null,null,null,null,{"$f":"AU119*SIGN(AU38)","v":0.60874797550958692},null,0,0,0,0,null,9.1120778164996478E-5,null,null,0]
[null,"ARG-TUC",null,null,null,null,null,null,null,null,2.80479263234748E-4,null,null,null,null,null,2.0027562080156012E-4,null,0.20699999999999999,null,null,null,null,0,null,0,null,null,null,0,null,null,null,null,null,null,2.0371651750734327E-4,null,0,null,null,null,null,null,null,null,{"$f":"AU120*SIGN(AU39)","v":0.60874797550958692},null,0,0,0,0,null,9.1120778164996478E-5,null,null,0]
[null,"AUS",null,null,null,null,null,null,null,null,2.1035050704989723E-4,null,null,null,null,null,1.2644773493622634E-4,null,0.20699999999999999,null,null,null,null,0,null,0,null,null,null,0,null,null,null,null,null,null,1.2797388590849866E-4,null,0,null,null,null,null,null,null,null,{"$f":"AU121*SIGN(AU40)","v":0.55459502382644932},null,0,0,0,0,null,8.3014863573381954E-5,null,null,0]
[null,"BRA",null,null,null,null,null,null,null,null,1.9396572625617054E-4,null,null,null,null,null,1.2470010979031404E-4,null,0.20699999999999999,null,null,null,null,0,null,0,null,null,null,0,null,null,null,null,null,null,1.2076079299587401E-4,null,0,null,null,null,null,null,null,null,{"$f":"AU122*SIGN(AU41)","v":0.6235527925081874},null,0,0,0,0,null,9.3336845404273227E-5,null,null,0]
[null,"CHL",null,null,null,null,null,null,null,null,2.8983070988235774E-4,null,null,null,null,null,2.1049580915046635E-4,null,0.20699999999999999,null,null,null,null,0,null,0,null,null,null,0,null,null,null,null,null,null,2.0910199783321843E-4,null,0,null,null,null,null,null,null,null,{"$f":"AU123*SIGN(AU42)","v":0.61013249287508431},null,0,0,0,0,null,9.1328020414338613E-5,null,null,0]
[null,"CHN",null,null,null,null,null,null,null,null,1.9291213689816422E-4,null,null,null,null,null,1.3047154856058729E-4,null,0.20699999999999999,null,null,null,null,0,null,0,null,null,null,0,null,null,null,null,null,null,1.3159073785822927E-4,null,0,null,null,null,null,null,null,null,{"$f":"AU124*SIGN(AU43)","v":0.55923825344646416},null,0,0,0,0,null,8.3709887972962664E-5,null,null,0]
[null,"COL",null,null,null,null,null,null,null,null,1.8171906232963838E-4,null,null,null,null,null,1.2208171484238276E-4,null,0.20699999999999999,null,null,null,null,0,null,0,null,null,null,0,null,null,null,null,null,null,1.2260096360649402E-4,null,0,null,null,null,null,null,null,null,{"$f":"AU125*SIGN(AU44)","v":0.6309495326160901},null,0,0,0,0,null,9.4444030547603081E-5,null,null,0]
[null,"CRI",null,null,null,null,null,null,null,null,2.9226820852087834E-4,null,null,null,null,null,2.1027237444495674E-4,null,0.20699999999999999,null,null,null,null,0,null,0,null,null,null,0,null,null,null,null,null,null,2.122790146099011E-4,null,0,null,null,null,null,null,null,null,{"$f":"AU126*SIGN(AU45)","v":0.6426191419060735},null,0,0,0,0,null,9.6190802483057353E-5,null,null,0]
[null,"DNK",null,null,null,null,null,null,null,null,1.9241770939868553E-4,null,null,null,null,null,1.3009834851018039E-4,null,0.20699999999999999,null,null,null,null,0,null,0,null,null,null,0,null,null,null,null,null,null,0,null,1.0364095169430426E-4,null,null,null,null,null,null,null,{"$f":"AU127*SIGN(AU46)","v":0},null,0,0,0,0.68418099999999993,null,0,null,null,0]
[null,"DZA",null,null,null,null,null,null,null,null,2.3414213832649249E-4,null,null,null,null,null,2.4074106379638188E-4,null,0.20699999999999999,null,null,null,null,0,null,0,null,null,null,0,null,null,null,null,null,null,0,null,1.0364095169430426E-4,null,null,null,null,null,null,null,{"$f":"AU128*SIGN(AU47)","v":0},null,0.68650860000000002,0.65524499835600003,0,0,null,0,null,null,0]
[null,"EGY",null,null,null,null,null,null,null,null,2.1531491960140902E-4,null,null,null,null,null,1.4977127321861723E-4,null,0.20699999999999999,null,null,null,null,0,null,0,null,null,null,0,null,null,null,null,null,null,0,null,1.0364095169430426E-4,null,null,null,null,null,null,null,{"$f":"AU129*SIGN(AU48)","v":0},null,0,0.63180999999999987,0,0,null,0,null,null,0]
[null,"ESP",null,null,null,null,null,null,null,null,1.7641278445162974E-4,null,null,null,null,null,1.1813669508669303E-4,null,0.20699999999999999,null,null,null,null,0,null,0,null,null,null,0,null,null,null,null,null,null,0,null,1.0364095169430426E-4,null,null,null,null,null,null,null,{"$f":"AU130*SIGN(AU49)","v":0},null,0,0.672543,0,0,null,0,null,null,0]
[null,"IDN",null,null,null,null,null,null,null,null,4.0059537491933701E-4,null,null,null,null,null,2.9095874599404476E-4,null,0.20699999999999999,null,null,null,null,0,null,0,null,null,null,0,null,null,null,null,null,null,2.9095874599404476E-4,null,0,null,null,null,null,null,null,null,{"$f":"AU131*SIGN(AU50)","v":0.58182309083796058},null,0,0,0,0,null,8.7090511877494487E-5,null,null,0]
[null,"IND",null,null,null,null,null,null,null,null,2.0446803551200842E-4,null,null,null,null,null,1.274685485211801E-4,null,0.20699999999999999,null,null,null,null,0,null,0,null,null,null,0,null,null,null,null,null,null,1.2522686025408347E-4,null,0,null,null,null,null,null,null,null,{"$f":"AU132*SIGN(AU51)","v":0.60901030457813821},null,0,0,0,0,null,9.1160045037040992E-5,null,null,0]
[null,"JOR",null,null,null,null,null,null,null,null,4.2078687144961075E-4,null,null,null,null,null,2.5071307886561414E-4,null,0.20699999999999999,null,null,null,null,0,null,0,null,null,null,0,null,null,null,null,null,null,0,null,1.0364095169430426E-4,null,null,null,null,null,null,null,{"$f":"AU133*SIGN(AU52)","v":0},null,0,0.64926700000000004,0,0,null,0,null,null,0]
[null,"KAZ",null,null,null,null,null,null,null,null,1.8903727088349904E-4,null,null,null,null,null,1.2755270212119367E-4,null,0.20699999999999999,null,null,null,null,0,null,0,null,null,null,0,null,null,null,null,null,null,0,null,1.0364095169430426E-4,null,null,null,null,null,null,null,{"$f":"AU134*SIGN(AU53)","v":0},null,0,0.64926700000000004,0,0,null,0,null,null,0]
[null,"KEN",null,null,null,null,null,null,null,null,2.7258800503742635E-4,null,null,null,null,null,1.7667618328233621E-4,null,0.20699999999999999,null,null,null,null,0,null,0,null,null,null,0,null,null,null,null,null,null,1.6336387527523261E-4,null,0,null,null,null,null,null,null,null,{"$f":"AU135*SIGN(AU54)","v":0.60820345246929863},null,0,0,0,0,null,9.1039270931862279E-5,null,null,0]
[null,"MAR",null,null,null,null,null,null,null,null,2.1099628224550683E-4,null,null,null,null,null,1.5329586101175269E-4,null,0.20699999999999999,null,null,null,null,0,null,0,null,null,null,0,null,null,null,null,null,null,1.542726825560077E-4,null,0,null,null,null,null,null,null,null,{"$f":"AU136*SIGN(AU55)","v":0.67296833501423881},null,0,0,0,0,null,1.0073363827709973E-4,null,null,0]
[null,"MAR-BEN",null,null,null,null,null,null,null,null,2.9826729511661253E-4,null,null,null,null,null,2.1541775741115677E-4,null,0.20699999999999999,null,null,null,null,0,null,0,null,null,null,0,null,null,null,null,null,null,2.1663624592680274E-4,null,0,null,null,null,null,null,null,null,{"$f":"AU137*SIGN(AU56)","v":0.67296833501423881},null,0,0,0,0,null,1.0073363827709973E-4,null,null,0]
[null,"MAR-CAS",null,null,null,null,null,null,null,null,2.4345938658802138E-4,null,null,null,null,null,1.6983704876088486E-4,null,0.20699999999999999,null,null,null,null,0,null,0,null,null,null,0,null,null,null,null,null,null,1.7482645421978087E-4,null,0,null,null,null,null,null,null,null,{"$f":"AU138*SIGN(AU57)","v":0.67296833501423881},null,0,0,0,0,null,1.0073363827709973E-4,null,null,0]
[null,"MAR-DAK",null,null,null,null,null,null,null,null,1.5767463181155493E-4,null,null,null,null,null,1.0441972136299464E-4,null,0.20699999999999999,null,null,null,null,0,null,0,null,null,null,0,null,null,null,null,null,null,1.0392572422949782E-4,null,0,null,null,null,null,null,null,null,{"$f":"AU139*SIGN(AU58)","v":0.67296833501423881},null,0,0,0,0,null,1.0073363827709973E-4,null,null,0]
[null,"MAR-DRA",null,null,null,null,null,null,null,null,2.2509594371129915E-4,null,null,null,null,null,1.5525268346852959E-4,null,0.20699999999999999,null,null,null,null,0,null,0,null,null,null,0,null,null,null,null,null,null,1.5860185219894243E-4,null,0,null,null,null,null,null,null,null,{"$f":"AU140*SIGN(AU59)","v":0.67296833501423881},null,0,0,0,0,null,1.0073363827709973E-4,null,null,0]
[null,"MAR-FES",null,null,null,null,null,null,null,null,2.7074468203975248E-4,null,null,null,null,null,1.9213338694664661E-4,null,0.20699999999999999,null,null,null,null,0,null,0,null,null,null,0,null,null,null,null,null,null,1.9664613748150443E-4,null,0,null,null,null,null,null,null,null,{"$f":"AU141*SIGN(AU60)","v":0.67296833501423881},null,0,0,0,0,null,1.0073363827709973E-4,null,null,0]
[null,"MAR-GUE",null,null,null,null,null,null,null,null,1.9939450102878208E-4,null,null,null,null,null,1.3538519323568306E-4,null,0.20699999999999999,null,null,null,null,0,null,0,null,null,null,0,null,null,null,null,null,null,1.3689179095142611E-4,null,0,null,null,null,null,null,null,null,{"$f":"AU142*SIGN(AU61)","v":0.67296833501423881},null,0,0,0,0,null,1.0073363827709973E-4,null,null,0]
[null,"MAR-LAA",null,null,null,null,null,null,null,null,1.7172606346764575E-4,null,null,null,null,null,1.1467713754399618E-4,null,0.20699999999999999,null,null,null,null,0,null,0,null,null,null,0,null,null,null,null,null,null,1.1473070476235005E-4,null,0,null,null,null,null,null,null,null,{"$f":"AU143*SIGN(AU62)","v":0.67296833501423881},null,0,0,0,0,null,1.0073363827709973E-4,null,null,0]
[null,"MAR-LOR",null,null,null,null,null,null,null,null,2.0808901838101042E-4,null,null,null,null,null,1.4203655399474104E-4,null,0.20699999999999999,null,null,null,null,0,null,0,null,null,null,0,null,null,null,null,null,null,1.441104188967668E-4,null,0,null,null,null,null,null,null,null,{"$f":"AU144*SIGN(AU63)","v":0.67296833501423881},null,0,0,0,0,null,1.0073363827709973E-4,null,null,0]
[null,"MAR-MAR",null,null,null,null,null,null,null,null,2.7976460572054745E-4,null,null,null,null,null,1.9967443176963762E-4,null,0.20699999999999999,null,null,null,null,0,null,0,null,null,null,0,null,null,null,null,null,null,2.031974504707134E-4,null,0,null,null,null,null,null,null,null,{"$f":"AU145*SIGN(AU64)","v":0.67296833501423881},null,0,0,0,0,null,1.0073363827709973E-4,null,null,0]
[null,"MAR-RAB",null,null,null,null,null,null,null,null,2.9007705680064559E-4,null,null,null,null,null,2.0840289998361723E-4,null,0.20699999999999999,null,null,null,null,0,null,0,null,null,null,0,null,null,null,null,null,null,2.1068754651836362E-4,null,0,null,null,null,null,null,null,null,{"$f":"AU146*SIGN(AU65)","v":0.67296833501423881},null,0,0,0,0,null,1.0073363827709973E-4,null,null,0]
[null,"MAR-SOU",null,null,null,null,null,null,null,null,2.2325095405442677E-4,null,null,null,null,null,1.5380557790829982E-4,null,0.20699999999999999,null,null,null,null,0,null,0,null,null,null,0,null,null,null,null,null,null,1.5700540509131132E-4,null,0,null,null,null,null,null,null,null,{"$f":"AU147*SIGN(AU66)","v":0.67296833501423881},null,0,0,0,0,null,1.0073363827709973E-4,null,null,0]
[null,"MAR-TAN",null,null,null,null,null,null,null,null,2.2205685700880896E-4,null,null,null,null,null,1.5287074359845198E-4,null,0.20699999999999999,null,null,null,null,0,null,0,null,null,null,0,null,null,null,null,null,null,1.5597537129120417E-4,null,0,null,null,null,null,null,null,null,{"$f":"AU148*SIGN(AU67)","v":0.67296833501423881},null,0,0,0,0,null,1.0073363827709973E-4,null,null,0]
[null,"MEX",null,null,null,null,null,null,null,null,2.369949046095509E-4,null,null,null,null,null,1.7211274632077824E-4,null,0.20699999999999999,null,null,null,null,0,null,0,null,null,null,0,null,null,null,null,null,null,1.7616196688665636E-4,null,0,null,null,null,null,null,null,null,{"$f":"AU149*SIGN(AU68)","v":0.62453071769073654},null,0,0,0,0,null,9.3483226677322108E-5,null,null,0]
[null,"MRT",null,null,null,null,null,null,null,null,1.6090648276128396E-4,null,null,null,null,null,1.0895826424747737E-4,null,0.20699999999999999,null,null,null,null,0,null,0,null,null,null,0,null,null,null,null,null,null,0,null,1.0364095169430426E-4,null,null,null,null,null,null,null,{"$f":"AU150*SIGN(AU69)","v":0},null,0,0.63180999999999987,0,0,null,0,null,null,0]
[null,"NAM",null,null,null,null,null,null,null,null,1.477880057132087E-4,null,null,null,null,null,9.730403888360661E-5,null,0.20699999999999999,null,null,null,null,0,null,0,null,null,null,0,null,null,null,null,null,null,9.6495912560792655E-5,null,0,null,null,null,null,null,null,null,{"$f":"AU151*SIGN(AU70)","v":0.62154651388628657},null,0,0,0,0,null,9.3036534476601793E-5,null,null,0]
[null,"NOR",null,null,null,null,null,null,null,null,2.0177630932123695E-4,null,null,null,null,null,1.3720031513870224E-4,null,0.20699999999999999,null,null,null,null,0,null,0,null,null,null,0,null,null,null,null,null,null,0,null,1.0364095169430426E-4,null,null,null,null,null,null,null,{"$f":"AU152*SIGN(AU71)","v":0},null,0,0,0.68418099999999993,0,null,0,null,null,0]
[null,"PER",null,null,null,null,null,null,null,null,3.372351439488212E-4,null,null,null,null,null,2.4226677434078858E-4,null,0.20699999999999999,null,null,null,null,0,null,0,null,null,null,0,null,null,null,null,null,null,2.4389381782192215E-4,null,0,null,null,null,null,null,null,null,{"$f":"AU153*SIGN(AU72)","v":0.61159708265239554},null,0,0,0,0,null,9.1547248347030098E-5,null,null,0]
[null,"PRT",null,null,null,null,null,null,null,null,1.7612511247438973E-4,null,null,null,null,null,1.1792378877866116E-4,null,0.20699999999999999,null,null,null,null,0,null,0,null,null,null,0,null,null,null,null,null,null,0,null,1.0364095169430426E-4,null,null,null,null,null,null,null,{"$f":"AU154*SIGN(AU73)","v":0},null,0,0.66672399999999998,0,0,null,0,null,null,0]
[null,"RUS",null,null,null,null,null,null,null,null,2.8175125308869812E-4,null,null,null,null,null,1.6525956529549128E-4,null,0.20699999999999999,null,null,null,null,0,null,0,null,null,null,0,null,null,null,null,null,null,0,null,1.0364095169430426E-4,null,null,null,null,null,null,null,{"$f":"AU155*SIGN(AU74)","v":0},null,0,0,0.67836199999999991,0,null,0,null,null,0]
[null,"SAU",null,null,null,null,null,null,null,null,2.6106047988137414E-4,null,null,null,null,null,2.0240094453774117E-4,null,0.20699999999999999,null,null,null,null,0,null,0,null,null,null,0,null,null,null,null,null,null,0,null,1.0364095169430426E-4,null,null,null,null,null,null,null,{"$f":"AU156*SIGN(AU75)","v":0},null,0,0.637629,0,0,null,0,null,null,0]
[null,"SWE",null,null,null,null,null,null,null,null,2.6150745006061466E-4,null,null,null,null,null,1.8449939492345112E-4,null,0.20699999999999999,null,null,null,null,0,null,0,null,null,null,0,null,null,null,null,null,null,0,null,1.0364095169430426E-4,null,null,null,null,null,null,null,{"$f":"AU157*SIGN(AU76)","v":0},null,0.68650860000000002,0.6784032217960001,0,0,null,0,null,null,0]
[null,"THA",null,null,null,null,null,null,null,null,2.8014838287573467E-4,null,null,null,null,null,1.9999720736174772E-4,null,0.20699999999999999,null,null,null,null,0,null,0,null,null,null,0,null,null,null,null,null,null,2.0347619387816516E-4,null,0,null,null,null,null,null,null,null,{"$f":"AU158*SIGN(AU77)","v":0.57461248844757185},null,0,0,0,0,null,8.6011188861593533E-5,null,null,0]
[null,"TUN",null,null,null,null,null,null,null,null,2.3219095384043837E-4,null,null,null,null,null,1.8671357055878769E-4,null,0.20699999999999999,null,null,null,null,0,null,0,null,null,null,0,null,null,null,null,null,null,0,null,1.0364095169430426E-4,null,null,null,null,null,null,null,{"$f":"AU159*SIGN(AU78)","v":0},null,0.68185339999999994,0.66690262778266662,0,0,null,0,null,null,0]
[null,"UKR",null,null,null,null,null,null,null,null,{"$f":"K160/K322","v":1.9923636240352043E-4},null,null,null,null,null,{"$f":"IF(Q160>0,Q160/Q322,0)","v":1.3526486475935211E-4},null,{"$f":"IF(S160>0,S160,0)","v":0.20699999999999999},null,null,null,null,{"$f":"IF(X160>0,X160/X322,0)","v":0},null,{"$f":"IF(Z160>0,Z160,0)","v":0},null,null,null,{"$f":"IF(AD160>0,AD160,0)","v":0},null,null,null,null,null,null,{"$f":"IF(AK79,AK160/AK322,0)","v":0},null,{"$f":"IF(AM79,AM160/AM322,0)","v":1.0364095169430426E-4},null,null,null,null,null,null,null,{"$f":"AU160*SIGN(AU79)","v":0},null,0,0.672543,0,0,null,{"$f":"IF(BB79,BB160/BB322,0)","v":0},null,null,0]
[null,"URY",null,null,null,null,null,null,null,null,2.0941048853372873E-4,null,null,null,null,null,1.2673456455656676E-4,null,0.20699999999999999,null,null,null,null,0,null,0,null,null,null,0,null,null,null,null,null,null,1.2496830514000071E-4,null,0,null,null,null,null,null,null,null,{"$f":"AU161*SIGN(AU80)","v":0.6099071615503846},null,0,0,0,0,null,9.1294291570091703E-5,null,null,0]
[null,"USA",null,null,null,null,null,null,null,null,1.9734453197770796E-4,null,null,null,null,null,1.2666825766893689E-4,null,0.20699999999999999,null,null,null,null,0,null,0,null,null,null,0,null,null,null,null,null,null,1.2294808116355212E-4,null,0,null,null,null,null,null,null,null,{"$f":"AU162*SIGN(AU81)","v":0.63686987379793658},null,0,0,0,0,null,9.5330220099265308E-5,null,null,0]
[null,"VNM",null,null,null,null,null,null,null,null,2.1278599368193283E-4,null,null,null,null,null,1.4565915119124298E-4,null,0.20699999999999999,null,null,null,null,0,null,0,null,null,null,0,null,null,null,null,null,null,1.4806286857548507E-4,null,0,null,null,null,null,null,null,null,{"$f":"AU163*SIGN(AU82)","v":0.57340048678692812},null,0,0,0,0,null,8.5829769721164066E-5,null,null,0]
[null,"ZAF",null,null,null,null,null,null,null,null,2.2818234507559682E-4,null,null,null,null,null,1.9053404760589824E-4,null,0.20699999999999999,null,null,null,null,0,null,0,null,null,null,0,null,null,null,null,null,null,1.9627504106841892E-4,null,0,null,null,null,null,null,null,null,{"$f":"AU164*SIGN(AU83)","v":0.61474168661341921},null,0,0,0,0,null,9.2017950134102726E-5,null,null,0]
[null,"ZAF-EC",null,null,null,null,null,null,null,null,1.8908031589516612E-4,null,null,null,null,null,1.2758505214451876E-4,null,0.20699999999999999,null,null,null,null,0,null,0,null,null,null,0,null,null,null,null,null,null,1.2848910979568664E-4,null,0,null,null,null,null,null,null,null,{"$f":"AU165*SIGN(AU84)","v":0.61474168661341921},null,0,0,0,0,null,9.2017950134102726E-5,null,null,0]
[null,"ZAF-FRS",null,null,null,null,null,null,null,null,2.2595752043761341E-4,null,null,null,null,null,1.5592958139793581E-4,null,0.20699999999999999,null,null,null,null,0,null,0,null,null,null,0,null,null,null,null,null,null,1.5934943102809034E-4,null,0,null,null,null,null,null,null,null,{"$f":"AU166*SIGN(AU85)","v":0.61474168661341921},null,0,0,0,0,null,9.2017950134102726E-5,null,null,0]
[null,"ZAF-GAU",null,null,null,null,null,null,null,null,2.6615571866169451E-4,null,null,null,null,null,1.8832977031413471E-4,null,0.20699999999999999,null,null,null,null,0,null,0,null,null,null,0,null,null,null,null,null,null,1.9331310092270444E-4,null,0,null,null,null,null,null,null,null,{"$f":"AU167*SIGN(AU86)","v":0.61474168661341921},null,0,0,0,0,null,9.2017950134102726E-5,null,null,0]
[null,"ZAF-KWA",null,null,null,null,null,null,null,null,2.3427950851908993E-4,null,null,null,null,null,1.6250490355155769E-4,null,0.20699999999999999,null,null,null,null,0,null,0,null,null,null,0,null,null,null,null,null,null,1.6663882510187188E-4,null,0,null,null,null,null,null,null,null,{"$f":"AU168*SIGN(AU87)","v":0.61474168661341921},null,0,0,0,0,null,9.2017950134102726E-5,null,null,0]
[null,"ZAF-LIM",null,null,null,null,null,null,null,null,2.3621903640204606E-4,null,null,null,null,null,1.6404709364122293E-4,null,0.20699999999999999,null,null,null,null,0,null,0,null,null,null,0,null,null,null,null,null,null,1.6835574365805088E-4,null,0,null,null,null,null,null,null,null,{"$f":"AU169*SIGN(AU88)","v":0.61474168661341921},null,0,0,0,0,null,9.2017950134102726E-5,null,null,0]
[null,"ZAF-MPU",null,null,null,null,null,null,null,null,2.3621903640204606E-4,null,null,null,null,null,1.6404709364122293E-4,null,0.20699999999999999,null,null,null,null,0,null,0,null,null,null,0,null,null,null,null,null,null,1.6835574365805088E-4,null,0,null,null,null,null,null,null,null,{"$f":"AU170*SIGN(AU89)","v":0.61474168661341921},null,0,0,0,0,null,9.2017950134102726E-5,null,null,0]
[null,"ZAF-NC",null,null,null,null,null,null,null,null,1.9045767817373361E-4,null,null,null,null,null,1.2862107991010025E-4,null,0.20699999999999999,null,null,null,null,0,null,0,null,null,null,0,null,null,null,null,null,null,1.2960129670636984E-4,null,0,null,null,null,null,null,null,null,{"$f":"AU171*SIGN(AU90)","v":0.61474168661341921},null,0,0,0,0,null,9.2017950134102726E-5,null,null,0]
[null,"ZAF-NW",null,null,null,null,null,null,null,null,2.2415324542046912E-4,null,null,null,null,null,1.5451287402071712E-4,null,0.20699999999999999,null,null,null,null,0,null,0,null,null,null,0,null,null,null,null,null,null,1.5778539427908052E-4,null,0,null,null,null,null,null,null,null,{"$f":"AU172*SIGN(AU91)","v":0.61474168661341921},null,0,0,0,0,null,9.2017950134102726E-5,null,null,0]
[null,"ZAF-WC",null,null,null,null,null,null,null,null,2.1046402731058299E-4,null,null,null,null,null,1.4386571405115622E-4,null,0.20699999999999999,null,null,null,null,0,null,0,null,null,null,0,null,null,null,null,null,null,1.4610428167143361E-4,null,0,null,null,null,null,null,null,null,{"$f":"AU173*SIGN(AU92)","v":0.61474168661341921},null,0,0,0,0,null,9.2017950134102726E-5,null,null,0]
[]
["lifetime"]
[null,"(DEFAULT)",null,null,{"$f":"IF(\"LIFETIME,\"&E$2&\",,,\"=VLOOKUP(\"LIFETIME,\"&E$2&\",,,\",data[],1),VLOOKUP(\"LIFETIME,\"&E$2&\",,,\",data[],7),0)","v":20},{"$f":"IF(\"LIFETIME,\"&F$2&\",,,\"=VLOOKUP(\"LIFETIME,\"&F$2&\",,,\",data[],1),VLOOKUP(\"LIFETIME,\"&F$2&\",,,\",data[],7),0)","v":0},{"$f":"IF(\"LIFETIME,\"&G$2&\",,,\"=VLOOKUP(\"LIFETIME,\"&G$2&\",,,\",data[],1),VLOOKUP(\"LIFETIME,\"&G$2&\",,,\",data[],7),0)","v":20},{"$f":"IF(\"LIFETIME,\"&H$2&\",,,\"=VLOOKUP(\"LIFETIME,\"&H$2&\",,,\",data[],1),VLOOKUP(\"LIFETIME,\"&H$2&\",,,\",data[],7),0)","v":20},{"$f":"IF(\"LIFETIME,\"&I$2&\",,,\"=VLOOKUP(\"LIFETIME,\"&I$2&\",,,\",data[],1),VLOOKUP(\"LIFETIME,\"&I$2&\",,,\",data[],7),0)","v":20},null,null,null,null,null,null,null,{"$f":"IF(\"LIFETIME,\"&Q$2&\",,,\"=VLOOKUP(\"LIFETIME,\"&Q$2&\",,,\",data[],1),VLOOKUP(\"LIFETIME,\"&Q$2&\",,,\",data[],7),99)","v":20},null,{"$f":"IF(\"LIFETIME,\"&S$2&\",,,\"=VLOOKUP(\"LIFETIME,\"&S$2&\",,,\",data[],1),VLOOKUP(\"LIFETIME,\"&S$2&\",,,\",data[],7),0)","v":20},null,null,null,null,{"$f":"IF(\"LIFETIME,\"&X$2&\",,,\"=VLOOKUP(\"LIFETIME,\"&X$2&\",,,\",data[],1),VLOOKUP(\"LIFETIME,\"&X$2&\",,,\",data[],7),99)","v":99},null,{"$f":"IF(\"LIFETIME,\"&Z$2&\",,,\"=VLOOKUP(\"LIFETIME,\"&Z$2&\",,,\",data[],1),VLOOKUP(\"LIFETIME,\"&Z$2&\",,,\",data[],7),0)","v":20},null,null,null,{"$f":"IF(\"LIFETIME,\"&AD$2&\",,,\"=VLOOKUP(\"LIFETIME,\"&AD$2&\",,,\",data[],1),VLOOKUP(\"LIFETIME,\"&AD$2&\",,,\",data[],7),0)","v":25},null,null,null,null,null,null,{"$f":"IF(\"LIFETIME,\"&AK$2&\",,,\"=VLOOKUP(\"LIFETIME,\"&AK$2&\",,,\",data[],1),VLOOKUP(\"LIFETIME,\"&AK$2&\",,,\",data[],7),99)","v":30},null,{"$f":"IF(\"LIFETIME,\"&AM$2&\",,,\"=VLOOKUP(\"LIFETIME,\"&AM$2&\",,,\",data[],1),VLOOKUP(\"LIFETIME,\"&AM$2&\",,,\",data[],7),99)","v":20},null,null,null,null,null,null,null,null,null,null,null,null,null,null,{"$f":"IF(BB$2=\"\",0,IF(\"LIFETIME,\"&BB$2&\",,,\"=VLOOKUP(\"LIFETIME,\"&BB$2&\",,,\",data[],1),VLOOKUP(\"LIFETIME,\"&BB$2&\",,,\",data[],7),99))","v":30},null,null,{"$f":"IF(BE$2=\"\",0,IF(\"LIFETIME,\"&BE$2&\",,,\"=VLOOKUP(\"LIFETIME,\"&BE$2&\",,,\",data[],1),VLOOKUP(\"LIFETIME,\"&BE$2&\",,,\",data[],7),99))","v":0}]
[null,"ARE",null,null,null,null,null,null,null,null,{"$f":"IF(\"LIFETIME,\"&$K14&\",,\"&$B420&\",\"=VLOOKUP(\"LIFETIME,\"&$K14&\",,\"&$B420&\",\",data[],1),VLOOKUP(\"LIFETIME,\"&$K14&\",,\"&$B420&\",\",data[],7),INDEX($E$419:$I$419,$J14))","v":20},null,null,null,null,null,{"$f":"IF(\"LIFETIME,\"&Q$2&\",,\"&$B420&\",\"=VLOOKUP(\"LIFETIME,\"&Q$2&\",,\"&$B420&\",\",data[],1),VLOOKUP(\"LIFETIME,\"&Q$2&\",,\"&$B420&\",\",data[],7),Q$419)","v":20},null,{"$f":"IF(\"LIFETIME,\"&S$2&\",,\"&$B420&\",\"=VLOOKUP(\"LIFETIME,\"&S$2&\",,\"&$B420&\",\",data[],1),VLOOKUP(\"LIFETIME,\"&S$2&\",,\"&$B420&\",\",data[],7),S$419)","v":20},null,null,null,null,{"$f":"IF(\"LIFETIME,\"&X$2&\",,\"&$B420&\",\"=VLOOKUP(\"LIFETIME,\"&X$2&\",,\"&$B420&\",\",data[],1),VLOOKUP(\"LIFETIME,\"&X$2&\",,\"&$B420&\",\",data[],7),X$419)","v":99},null,{"$f":"IF(\"LIFETIME,\"&Z$2&\",,\"&$B420&\",\"=VLOOKUP(\"LIFETIME,\"&Z$2&\",,\"&$B420&\",\",data[],1),VLOOKUP(\"LIFETIME,\"&Z$2&\",,\"&$B420&\",\",data[],7),Z$419)","v":20},null,null,null,{"$f":"IF(\"LIFETIME,\"&AD$2&\",,\"&$B420&\",\"=VLOOKUP(\"LIFETIME,\"&AD$2&\",,\"&$B420&\",\",data[],1),VLOOKUP(\"LIFETIME,\"&AD$2&\",,\"&$B420&\",\",data[],7),AD$419)","v":25},null,null,null,null,null,null,{"$f":"IF(\"LIFETIME,\"&AK$2&\",,\"&$B420&\",\"=VLOOKUP(\"LIFETIME,\"&AK$2&\",,\"&$B420&\",\",data[],1),VLOOKUP(\"LIFETIME,\"&AK$2&\",,\"&$B420&\",\",data[],7),AK$419)","v":30},null,{"$f":"IF(\"LIFETIME,\"&AM$2&\",,\"&$B420&\",\"=VLOOKUP(\"LIFETIME,\"&AM$2&\",,\"&$B420&\",\",data[],1),VLOOKUP(\"LIFETIME,\"&AM$2&\",,\"&$B420&\",\",data[],7),AM$419)","v":20},null,null,null,null,null,null,null,null,null,null,null,null,null,null,{"$f":"IF(NOT(BB14),0,IF(\"LIFETIME,\"&BB$2&\",,\"&$B420&\",\"=VLOOKUP(\"LIFETIME,\"&BB$2&\",,\"&$B420&\",\",data[],1),VLOOKUP(\"LIFETIME,\"&BB$2&\",,\"&$B420&\",\",data[],7),BB$419))","v":0},null,null,{"$f":"IF(NOT(BE14),0,IF(\"LIFETIME,\"&BE$2&\",,\"&$B420&\",\"=VLOOKUP(\"LIFETIME,\"&BE$2&\",,\"&$B420&\",\",data[],1),VLOOKUP(\"LIFETIME,\"&BE$2&\",,\"&$B420&\",\",data[],7),BE$419))","v":0}]
[null,"ARG",null,null,null,null,null,null,null,null,{"$f":"IF(\"LIFETIME,\"&$K15&\",,\"&$B421&\",\"=VLOOKUP(\"LIFETIME,\"&$K15&\",,\"&$B421&\",\",data[],1),VLOOKUP(\"LIFETIME,\"&$K15&\",,\"&$B421&\",\",data[],7),INDEX($E$419:$I$419,$J15))","v":20},null,null,null,null,null,{"$f":"IF(\"LIFETIME,\"&Q$2&\",,\"&$B421&\",\"=VLOOKUP(\"LIFETIME,\"&Q$2&\",,\"&$B421&\",\",data[],1),VLOOKUP(\"LIFETIME,\"&Q$2&\",,\"&$B421&\",\",data[],7),Q$419)","v":20},null,{"$f":"IF(\"LIFETIME,\"&S$2&\",,\"&$B421&\",\"=VLOOKUP(\"LIFETIME,\"&S$2&\",,\"&$B421&\",\",data[],1),VLOOKUP(\"LIFETIME,\"&S$2&\",,\"&$B421&\",\",data[],7),S$419)","v":20},null,null,null,null,{"$f":"IF(\"LIFETIME,\"&X$2&\",,\"&$B421&\",\"=VLOOKUP(\"LIFETIME,\"&X$2&\",,\"&$B421&\",\",data[],1),VLOOKUP(\"LIFETIME,\"&X$2&\",,\"&$B421&\",\",data[],7),X$419)","v":99},null,{"$f":"IF(\"LIFETIME,\"&Z$2&\",,\"&$B421&\",\"=VLOOKUP(\"LIFETIME,\"&Z$2&\",,\"&$B421&\",\",data[],1),VLOOKUP(\"LIFETIME,\"&Z$2&\",,\"&$B421&\",\",data[],7),Z$419)","v":20},null,null,null,{"$f":"IF(\"LIFETIME,\"&AD$2&\",,\"&$B421&\",\"=VLOOKUP(\"LIFETIME,\"&AD$2&\",,\"&$B421&\",\",data[],1),VLOOKUP(\"LIFETIME,\"&AD$2&\",,\"&$B421&\",\",data[],7),AD$419)","v":25},null,null,null,null,null,null,{"$f":"IF(\"LIFETIME,\"&AK$2&\",,\"&$B421&\",\"=VLOOKUP(\"LIFETIME,\"&AK$2&\",,\"&$B421&\",\",data[],1),VLOOKUP(\"LIFETIME,\"&AK$2&\",,\"&$B421&\",\",data[],7),AK$419)","v":30},null,{"$f":"IF(\"LIFETIME,\"&AM$2&\",,\"&$B421&\",\"=VLOOKUP(\"LIFETIME,\"&AM$2&\",,\"&$B421&\",\",data[],1),VLOOKUP(\"LIFETIME,\"&AM$2&\",,\"&$B421&\",\",data[],7),AM$419)","v":20},null,null,null,null,null,null,null,null,null,null,null,null,null,null,{"$f":"IF(NOT(BB15),0,IF(\"LIFETIME,\"&BB$2&\",,\"&$B421&\",\"=VLOOKUP(\"LIFETIME,\"&BB$2&\",,\"&$B421&\",\",data[],1),VLOOKUP(\"LIFETIME,\"&BB$2&\",,\"&$B421&\",\",data[],7),BB$419))","v":30},null,null,{"$f":"IF(NOT(BE15),0,IF(\"LIFETIME,\"&BE$2&\",,\"&$B421&\",\"=VLOOKUP(\"LIFETIME,\"&BE$2&\",,\"&$B421&\",\",data[],1),VLOOKUP(\"LIFETIME,\"&BE$2&\",,\"&$B421&\",\",data[],7),BE$419))","v":0}]
[null,"ARG-BA",null,null,null,null,null,null,null,null,{"$f":"IF(\"LIFETIME,\"&$K16&\",,\"&$B422&\",\"=VLOOKUP(\"LIFETIME,\"&$K16&\",,\"&$B422&\",\",data[],1),VLOOKUP(\"LIFETIME,\"&$K16&\",,\"&$B422&\",\",data[],7),INDEX($E$419:$I$419,$J16))","v":20},null,null,null,null,null,{"$f":"IF(\"LIFETIME,\"&Q$2&\",,\"&$B422&\",\"=VLOOKUP(\"LIFETIME,\"&Q$2&\",,\"&$B422&\",\",data[],1),VLOOKUP(\"LIFETIME,\"&Q$2&\",,\"&$B422&\",\",data[],7),Q$419)","v":20},null,{"$f":"IF(\"LIFETIME,\"&S$2&\",,\"&$B422&\",\"=VLOOKUP(\"LIFETIME,\"&S$2&\",,\"&$B422&\",\",data[],1),VLOOKUP(\"LIFETIME,\"&S$2&\",,\"&$B422&\",\",data[],7),S$419)","v":20},null,null,null,null,{"$f":"IF(\"LIFETIME,\"&X$2&\",,\"&$B422&\",\"=VLOOKUP(\"LIFETIME,\"&X$2&\",,\"&$B422&\",\",data[],1),VLOOKUP(\"LIFETIME,\"&X$2&\",,\"&$B422&\",\",data[],7),X$419)","v":99},null,{"$f":"IF(\"LIFETIME,\"&Z$2&\",,\"&$B422&\",\"=VLOOKUP(\"LIFETIME,\"&Z$2&\",,\"&$B422&\",\",data[],1),VLOOKUP(\"LIFETIME,\"&Z$2&\",,\"&$B422&\",\",data[],7),Z$419)","v":20},null,null,null,{"$f":"IF(\"LIFETIME,\"&AD$2&\",,\"&$B422&\",\"=VLOOKUP(\"LIFETIME,\"&AD$2&\",,\"&$B422&\",\",data[],1),VLOOKUP(\"LIFETIME,\"&AD$2&\",,\"&$B422&\",\",data[],7),AD$419)","v":25},null,null,null,null,null,null,{"$f":"IF(\"LIFETIME,\"&AK$2&\",,\"&$B422&\",\"=VLOOKUP(\"LIFETIME,\"&AK$2&\",,\"&$B422&\",\",data[],1),VLOOKUP(\"LIFETIME,\"&AK$2&\",,\"&$B422&\",\",data[],7),AK$419)","v":30},null,{"$f":"IF(\"LIFETIME,\"&AM$2&\",,\"&$B422&\",\"=VLOOKUP(\"LIFETIME,\"&AM$2&\",,\"&$B422&\",\",data[],1),VLOOKUP(\"LIFETIME,\"&AM$2&\",,\"&$B422&\",\",data[],7),AM$419)","v":20},null,null,null,null,null,null,null,null,null,null,null,null,null,null,{"$f":"IF(NOT(BB16),0,IF(\"LIFETIME,\"&BB$2&\",,\"&$B422&\",\"=VLOOKUP(\"LIFETIME,\"&BB$2&\",,\"&$B422&\",\",data[],1),VLOOKUP(\"LIFETIME,\"&BB$2&\",,\"&$B422&\",\",data[],7),BB$419))","v":30},null,null,{"$f":"IF(NOT(BE16),0,IF(\"LIFETIME,\"&BE$2&\",,\"&$B422&\",\"=VLOOKUP(\"LIFETIME,\"&BE$2&\",,\"&$B422&\",\",data[],1),VLOOKUP(\"LIFETIME,\"&BE$2&\",,\"&$B422&\",\",data[],7),BE$419))","v":0}]
[null,"ARG-CAT",null,null,null,null,null,null,null,null,{"$f":"IF(\"LIFETIME,\"&$K17&\",,\"&$B423&\",\"=VLOOKUP(\"LIFETIME,\"&$K17&\",,\"&$B423&\",\",data[],1),VLOOKUP(\"LIFETIME,\"&$K17&\",,\"&$B423&\",\",data[],7),INDEX($E$419:$I$419,$J17))","v":20},null,null,null,null,null,{"$f":"IF(\"LIFETIME,\"&Q$2&\",,\"&$B423&\",\"=VLOOKUP(\"LIFETIME,\"&Q$2&\",,\"&$B423&\",\",data[],1),VLOOKUP(\"LIFETIME,\"&Q$2&\",,\"&$B423&\",\",data[],7),Q$419)","v":20},null,{"$f":"IF(\"LIFETIME,\"&S$2&\",,\"&$B423&\",\"=VLOOKUP(\"LIFETIME,\"&S$2&\",,\"&$B423&\",\",data[],1),VLOOKUP(\"LIFETIME,\"&S$2&\",,\"&$B423&\",\",data[],7),S$419)","v":20},null,null,null,null,{"$f":"IF(\"LIFETIME,\"&X$2&\",,\"&$B423&\",\"=VLOOKUP(\"LIFETIME,\"&X$2&\",,\"&$B423&\",\",data[],1),VLOOKUP(\"LIFETIME,\"&X$2&\",,\"&$B423&\",\",data[],7),X$419)","v":99},null,{"$f":"IF(\"LIFETIME,\"&Z$2&\",,\"&$B423&\",\"=VLOOKUP(\"LIFETIME,\"&Z$2&\",,\"&$B423&\",\",data[],1),VLOOKUP(\"LIFETIME,\"&Z$2&\",,\"&$B423&\",\",data[],7),Z$419)","v":20},null,null,null,{"$f":"IF(\"LIFETIME,\"&AD$2&\",,\"&$B423&\",\"=VLOOKUP(\"LIFETIME,\"&AD$2&\",,\"&$B423&\",\",data[],1),VLOOKUP(\"LIFETIME,\"&AD$2&\",,\"&$B423&\",\",data[],7),AD$419)","v":25},null,null,null,null,null,null,{"$f":"IF(\"LIFETIME,\"&AK$2&\",,\"&$B423&\",\"=VLOOKUP(\"LIFETIME,\"&AK$2&\",,\"&$B423&\",\",data[],1),VLOOKUP(\"LIFETIME,\"&AK$2&\",,\"&$B423&\",\",data[],7),AK$419)","v":30},null,{"$f":"IF(\"LIFETIME,\"&AM$2&\",,\"&$B423&\",\"=VLOOKUP(\"LIFETIME,\"&AM$2&\",,\"&$B423&\",\",data[],1),VLOOKUP(\"LIFETIME,\"&AM$2&\",,\"&$B423&\",\",data[],7),AM$419)","v":20},null,null,null,null,null,null,null,null,null,null,null,null,null,null,{"$f":"IF(NOT(BB17),0,IF(\"LIFETIME,\"&BB$2&\",,\"&$B423&\",\"=VLOOKUP(\"LIFETIME,\"&BB$2&\",,\"&$B423&\",\",data[],1),VLOOKUP(\"LIFETIME,\"&BB$2&\",,\"&$B423&\",\",data[],7),BB$419))","v":30},null,null,{"$f":"IF(NOT(BE17),0,IF(\"LIFETIME,\"&BE$2&\",,\"&$B423&\",\"=VLOOKUP(\"LIFETIME,\"&BE$2&\",,\"&$B423&\",\",data[],1),VLOOKUP(\"LIFETIME,\"&BE$2&\",,\"&$B423&\",\",data[],7),BE$419))","v":0}]
[null,"ARG-CBA",null,null,null,null,null,null,null,null,{"$f":"IF(\"LIFETIME,\"&$K18&\",,\"&$B424&\",\"=VLOOKUP(\"LIFETIME,\"&$K18&\",,\"&$B424&\",\",data[],1),VLOOKUP(\"LIFETIME,\"&$K18&\",,\"&$B424&\",\",data[],7),INDEX($E$419:$I$419,$J18))","v":20},null,null,null,null,null,{"$f":"IF(\"LIFETIME,\"&Q$2&\",,\"&$B424&\",\"=VLOOKUP(\"LIFETIME,\"&Q$2&\",,\"&$B424&\",\",data[],1),VLOOKUP(\"LIFETIME,\"&Q$2&\",,\"&$B424&\",\",data[],7),Q$419)","v":20},null,{"$f":"IF(\"LIFETIME,\"&S$2&\",,\"&$B424&\",\"=VLOOKUP(\"LIFETIME,\"&S$2&\",,\"&$B424&\",\",data[],1),VLOOKUP(\"LIFETIME,\"&S$2&\",,\"&$B424&\",\",data[],7),S$419)","v":20},null,null,null,null,{"$f":"IF(\"LIFETIME,\"&X$2&\",,\"&$B424&\",\"=VLOOKUP(\"LIFETIME,\"&X$2&\",,\"&$B424&\",\",data[],1),VLOOKUP(\"LIFETIME,\"&X$2&\",,\"&$B424&\",\",data[],7),X$419)","v":99},null,{"$f":"IF(\"LIFETIME,\"&Z$2&\",,\"&$B424&\",\"=VLOOKUP(\"LIFETIME,\"&Z$2&\",,\"&$B424&\",\",data[],1),VLOOKUP(\"LIFETIME,\"&Z$2&\",,\"&$B424&\",\",data[],7),Z$419)","v":20},null,null,null,{"$f":"IF(\"LIFETIME,\"&AD$2&\",,\"&$B424&\",\"=VLOOKUP(\"LIFETIME,\"&AD$2&\",,\"&$B424&\",\",data[],1),VLOOKUP(\"LIFETIME,\"&AD$2&\",,\"&$B424&\",\",data[],7),AD$419)","v":25},null,null,null,null,null,null,{"$f":"IF(\"LIFETIME,\"&AK$2&\",,\"&$B424&\",\"=VLOOKUP(\"LIFETIME,\"&AK$2&\",,\"&$B424&\",\",data[],1),VLOOKUP(\"LIFETIME,\"&AK$2&\",,\"&$B424&\",\",data[],7),AK$419)","v":30},null,{"$f":"IF(\"LIFETIME,\"&AM$2&\",,\"&$B424&\",\"=VLOOKUP(\"LIFETIME,\"&AM$2&\",,\"&$B424&\",\",data[],1),VLOOKUP(\"LIFETIME,\"&AM$2&\",,\"&$B424&\",\",data[],7),AM$419)","v":20},null,null,null,null,null,null,null,null,null,null,null,null,null,null,{"$f":"IF(NOT(BB18),0,IF(\"LIFETIME,\"&BB$2&\",,\"&$B424&\",\"=VLOOKUP(\"LIFETIME,\"&BB$2&\",,\"&$B424&\",\",data[],1),VLOOKUP(\"LIFETIME,\"&BB$2&\",,\"&$B424&\",\",data[],7),BB$419))","v":30},null,null,{"$f":"IF(NOT(BE18),0,IF(\"LIFETIME,\"&BE$2&\",,\"&$B424&\",\"=VLOOKUP(\"LIFETIME,\"&BE$2&\",,\"&$B424&\",\",data[],1),VLOOKUP(\"LIFETIME,\"&BE$2&\",,\"&$B424&\",\",data[],7),BE$419))","v":0}]
[null,"ARG-CHA",null,null,null,null,null,null,null,null,{"$f":"IF(\"LIFETIME,\"&$K19&\",,\"&$B425&\",\"=VLOOKUP(\"LIFETIME,\"&$K19&\",,\"&$B425&\",\",data[],1),VLOOKUP(\"LIFETIME,\"&$K19&\",,\"&$B425&\",\",data[],7),INDEX($E$419:$I$419,$J19))","v":20},null,null,null,null,null,{"$f":"IF(\"LIFETIME,\"&Q$2&\",,\"&$B425&\",\"=VLOOKUP(\"LIFETIME,\"&Q$2&\",,\"&$B425&\",\",data[],1),VLOOKUP(\"LIFETIME,\"&Q$2&\",,\"&$B425&\",\",data[],7),Q$419)","v":20},null,{"$f":"IF(\"LIFETIME,\"&S$2&\",,\"&$B425&\",\"=VLOOKUP(\"LIFETIME,\"&S$2&\",,\"&$B425&\",\",data[],1),VLOOKUP(\"LIFETIME,\"&S$2&\",,\"&$B425&\",\",data[],7),S$419)","v":20},null,null,null,null,{"$f":"IF(\"LIFETIME,\"&X$2&\",,\"&$B425&\",\"=VLOOKUP(\"LIFETIME,\"&X$2&\",,\"&$B425&\",\",data[],1),VLOOKUP(\"LIFETIME,\"&X$2&\",,\"&$B425&\",\",data[],7),X$419)","v":99},null,{"$f":"IF(\"LIFETIME,\"&Z$2&\",,\"&$B425&\",\"=VLOOKUP(\"LIFETIME,\"&Z$2&\",,\"&$B425&\",\",data[],1),VLOOKUP(\"LIFETIME,\"&Z$2&\",,\"&$B425&\",\",data[],7),Z$419)","v":20},null,null,null,{"$f":"IF(\"LIFETIME,\"&AD$2&\",,\"&$B425&\",\"=VLOOKUP(\"LIFETIME,\"&AD$2&\",,\"&$B425&\",\",data[],1),VLOOKUP(\"LIFETIME,\"&AD$2&\",,\"&$B425&\",\",data[],7),AD$419)","v":25},null,null,null,null,null,null,{"$f":"IF(\"LIFETIME,\"&AK$2&\",,\"&$B425&\",\"=VLOOKUP(\"LIFETIME,\"&AK$2&\",,\"&$B425&\",\",data[],1),VLOOKUP(\"LIFETIME,\"&AK$2&\",,\"&$B425&\",\",data[],7),AK$419)","v":30},null,{"$f":"IF(\"LIFETIME,\"&AM$2&\",,\"&$B425&\",\"=VLOOKUP(\"LIFETIME,\"&AM$2&\",,\"&$B425&\",\",data[],1),VLOOKUP(\"LIFETIME,\"&AM$2&\",,\"&$B425&\",\",data[],7),AM$419)","v":20},null,null,null,null,null,null,null,null,null,null,null,null,null,null,{"$f":"IF(NOT(BB19),0,IF(\"LIFETIME,\"&BB$2&\",,\"&$B425&\",\"=VLOOKUP(\"LIFETIME,\"&BB$2&\",,\"&$B425&\",\",data[],1),VLOOKUP(\"LIFETIME,\"&BB$2&\",,\"&$B425&\",\",data[],7),BB$419))","v":30},null,null,{"$f":"IF(NOT(BE19),0,IF(\"LIFETIME,\"&BE$2&\",,\"&$B425&\",\"=VLOOKUP(\"LIFETIME,\"&BE$2&\",,\"&$B425&\",\",data[],1),VLOOKUP(\"LIFETIME,\"&BE$2&\",,\"&$B425&\",\",data[],7),BE$419))","v":0}]
[null,"ARG-CHU",null,null,null,null,null,null,null,null,{"$f":"IF(\"LIFETIME,\"&$K20&\",,\"&$B426&\",\"=VLOOKUP(\"LIFETIME,\"&$K20&\",,\"&$B426&\",\",data[],1),VLOOKUP(\"LIFETIME,\"&$K20&\",,\"&$B426&\",\",data[],7),INDEX($E$419:$I$419,$J20))","v":20},null,null,null,null,null,{"$f":"IF(\"LIFETIME,\"&Q$2&\",,\"&$B426&\",\"=VLOOKUP(\"LIFETIME,\"&Q$2&\",,\"&$B426&\",\",data[],1),VLOOKUP(\"LIFETIME,\"&Q$2&\",,\"&$B426&\",\",data[],7),Q$419)","v":20},null,{"$f":"IF(\"LIFETIME,\"&S$2&\",,\"&$B426&\",\"=VLOOKUP(\"LIFETIME,\"&S$2&\",,\"&$B426&\",\",data[],1),VLOOKUP(\"LIFETIME,\"&S$2&\",,\"&$B426&\",\",data[],7),S$419)","v":20},null,null,null,null,{"$f":"IF(\"LIFETIME,\"&X$2&\",,\"&$B426&\",\"=VLOOKUP(\"LIFETIME,\"&X$2&\",,\"&$B426&\",\",data[],1),VLOOKUP(\"LIFETIME,\"&X$2&\",,\"&$B426&\",\",data[],7),X$419)","v":99},null,{"$f":"IF(\"LIFETIME,\"&Z$2&\",,\"&$B426&\",\"=VLOOKUP(\"LIFETIME,\"&Z$2&\",,\"&$B426&\",\",data[],1),VLOOKUP(\"LIFETIME,\"&Z$2&\",,\"&$B426&\",\",data[],7),Z$419)","v":20},null,null,null,{"$f":"IF(\"LIFETIME,\"&AD$2&\",,\"&$B426&\",\"=VLOOKUP(\"LIFETIME,\"&AD$2&\",,\"&$B426&\",\",data[],1),VLOOKUP(\"LIFETIME,\"&AD$2&\",,\"&$B426&\",\",data[],7),AD$419)","v":25},null,null,null,null,null,null,{"$f":"IF(\"LIFETIME,\"&AK$2&\",,\"&$B426&\",\"=VLOOKUP(\"LIFETIME,\"&AK$2&\",,\"&$B426&\",\",data[],1),VLOOKUP(\"LIFETIME,\"&AK$2&\",,\"&$B426&\",\",data[],7),AK$419)","v":30},null,{"$f":"IF(\"LIFETIME,\"&AM$2&\",,\"&$B426&\",\"=VLOOKUP(\"LIFETIME,\"&AM$2&\",,\"&$B426&\",\",data[],1),VLOOKUP(\"LIFETIME,\"&AM$2&\",,\"&$B426&\",\",data[],7),AM$419)","v":20},null,null,null,null,null,null,null,null,null,null,null,null,null,null,{"$f":"IF(NOT(BB20),0,IF(\"LIFETIME,\"&BB$2&\",,\"&$B426&\",\"=VLOOKUP(\"LIFETIME,\"&BB$2&\",,\"&$B426&\",\",data[],1),VLOOKUP(\"LIFETIME,\"&BB$2&\",,\"&$B426&\",\",data[],7),BB$419))","v":30},null,null,{"$f":"IF(NOT(BE20),0,IF(\"LIFETIME,\"&BE$2&\",,\"&$B426&\",\"=VLOOKUP(\"LIFETIME,\"&BE$2&\",,\"&$B426&\",\",data[],1),VLOOKUP(\"LIFETIME,\"&BE$2&\",,\"&$B426&\",\",data[],7),BE$419))","v":0}]
[null,"ARG-COR",null,null,null,null,null,null,null,null,{"$f":"IF(\"LIFETIME,\"&$K21&\",,\"&$B427&\",\"=VLOOKUP(\"LIFETIME,\"&$K21&\",,\"&$B427&\",\",data[],1),VLOOKUP(\"LIFETIME,\"&$K21&\",,\"&$B427&\",\",data[],7),INDEX($E$419:$I$419,$J21))","v":20},null,null,null,null,null,{"$f":"IF(\"LIFETIME,\"&Q$2&\",,\"&$B427&\",\"=VLOOKUP(\"LIFETIME,\"&Q$2&\",,\"&$B427&\",\",data[],1),VLOOKUP(\"LIFETIME,\"&Q$2&\",,\"&$B427&\",\",data[],7),Q$419)","v":20},null,{"$f":"IF(\"LIFETIME,\"&S$2&\",,\"&$B427&\",\"=VLOOKUP(\"LIFETIME,\"&S$2&\",,\"&$B427&\",\",data[],1),VLOOKUP(\"LIFETIME,\"&S$2&\",,\"&$B427&\",\",data[],7),S$419)","v":20},null,null,null,null,{"$f":"IF(\"LIFETIME,\"&X$2&\",,\"&$B427&\",\"=VLOOKUP(\"LIFETIME,\"&X$2&\",,\"&$B427&\",\",data[],1),VLOOKUP(\"LIFETIME,\"&X$2&\",,\"&$B427&\",\",data[],7),X$419)","v":99},null,{"$f":"IF(\"LIFETIME,\"&Z$2&\",,\"&$B427&\",\"=VLOOKUP(\"LIFETIME,\"&Z$2&\",,\"&$B427&\",\",data[],1),VLOOKUP(\"LIFETIME,\"&Z$2&\",,\"&$B427&\",\",data[],7),Z$419)","v":20},null,null,null,{"$f":"IF(\"LIFETIME,\"&AD$2&\",,\"&$B427&\",\"=VLOOKUP(\"LIFETIME,\"&AD$2&\",,\"&$B427&\",\",data[],1),VLOOKUP(\"LIFETIME,\"&AD$2&\",,\"&$B427&\",\",data[],7),AD$419)","v":25},null,null,null,null,null,null,{"$f":"IF(\"LIFETIME,\"&AK$2&\",,\"&$B427&\",\"=VLOOKUP(\"LIFETIME,\"&AK$2&\",,\"&$B427&\",\",data[],1),VLOOKUP(\"LIFETIME,\"&AK$2&\",,\"&$B427&\",\",data[],7),AK$419)","v":30},null,{"$f":"IF(\"LIFETIME,\"&AM$2&\",,\"&$B427&\",\"=VLOOKUP(\"LIFETIME,\"&AM$2&\",,\"&$B427&\",\",data[],1),VLOOKUP(\"LIFETIME,\"&AM$2&\",,\"&$B427&\",\",data[],7),AM$419)","v":20},null,null,null,null,null,null,null,null,null,null,null,null,null,null,{"$f":"IF(NOT(BB21),0,IF(\"LIFETIME,\"&BB$2&\",,\"&$B427&\",\"=VLOOKUP(\"LIFETIME,\"&BB$2&\",,\"&$B427&\",\",data[],1),VLOOKUP(\"LIFETIME,\"&BB$2&\",,\"&$B427&\",\",data[],7),BB$419))","v":30},null,null,{"$f":"IF(NOT(BE21),0,IF(\"LIFETIME,\"&BE$2&\",,\"&$B427&\",\"=VLOOKUP(\"LIFETIME,\"&BE$2&\",,\"&$B427&\",\",data[],1),VLOOKUP(\"LIFETIME,\"&BE$2&\",,\"&$B427&\",\",data[],7),BE$419))","v":0}]
[null,"ARG-CRB",null,null,null,null,null,null,null,null,{"$f":"IF(\"LIFETIME,\"&$K22&\",,\"&$B428&\",\"=VLOOKUP(\"LIFETIME,\"&$K22&\",,\"&$B428&\",\",data[],1),VLOOKUP(\"LIFETIME,\"&$K22&\",,\"&$B428&\",\",data[],7),INDEX($E$419:$I$419,$J22))","v":20},null,null,null,null,null,{"$f":"IF(\"LIFETIME,\"&Q$2&\",,\"&$B428&\",\"=VLOOKUP(\"LIFETIME,\"&Q$2&\",,\"&$B428&\",\",data[],1),VLOOKUP(\"LIFETIME,\"&Q$2&\",,\"&$B428&\",\",data[],7),Q$419)","v":20},null,{"$f":"IF(\"LIFETIME,\"&S$2&\",,\"&$B428&\",\"=VLOOKUP(\"LIFETIME,\"&S$2&\",,\"&$B428&\",\",data[],1),VLOOKUP(\"LIFETIME,\"&S$2&\",,\"&$B428&\",\",data[],7),S$419)","v":20},null,null,null,null,{"$f":"IF(\"LIFETIME,\"&X$2&\",,\"&$B428&\",\"=VLOOKUP(\"LIFETIME,\"&X$2&\",,\"&$B428&\",\",data[],1),VLOOKUP(\"LIFETIME,\"&X$2&\",,\"&$B428&\",\",data[],7),X$419)","v":99},null,{"$f":"IF(\"LIFETIME,\"&Z$2&\",,\"&$B428&\",\"=VLOOKUP(\"LIFETIME,\"&Z$2&\",,\"&$B428&\",\",data[],1),VLOOKUP(\"LIFETIME,\"&Z$2&\",,\"&$B428&\",\",data[],7),Z$419)","v":20},null,null,null,{"$f":"IF(\"LIFETIME,\"&AD$2&\",,\"&$B428&\",\"=VLOOKUP(\"LIFETIME,\"&AD$2&\",,\"&$B428&\",\",data[],1),VLOOKUP(\"LIFETIME,\"&AD$2&\",,\"&$B428&\",\",data[],7),AD$419)","v":25},null,null,null,null,null,null,{"$f":"IF(\"LIFETIME,\"&AK$2&\",,\"&$B428&\",\"=VLOOKUP(\"LIFETIME,\"&AK$2&\",,\"&$B428&\",\",data[],1),VLOOKUP(\"LIFETIME,\"&AK$2&\",,\"&$B428&\",\",data[],7),AK$419)","v":30},null,{"$f":"IF(\"LIFETIME,\"&AM$2&\",,\"&$B428&\",\"=VLOOKUP(\"LIFETIME,\"&AM$2&\",,\"&$B428&\",\",data[],1),VLOOKUP(\"LIFETIME,\"&AM$2&\",,\"&$B428&\",\",data[],7),AM$419)","v":20},null,null,null,null,null,null,null,null,null,null,null,null,null,null,{"$f":"IF(NOT(BB22),0,IF(\"LIFETIME,\"&BB$2&\",,\"&$B428&\",\"=VLOOKUP(\"LIFETIME,\"&BB$2&\",,\"&$B428&\",\",data[],1),VLOOKUP(\"LIFETIME,\"&BB$2&\",,\"&$B428&\",\",data[],7),BB$419))","v":30},null,null,{"$f":"IF(NOT(BE22),0,IF(\"LIFETIME,\"&BE$2&\",,\"&$B428&\",\"=VLOOKUP(\"LIFETIME,\"&BE$2&\",,\"&$B428&\",\",data[],1),VLOOKUP(\"LIFETIME,\"&BE$2&\",,\"&$B428&\",\",data[],7),BE$419))","v":0}]
[null,"ARG-CRU",null,null,null,null,null,null,null,null,{"$f":"IF(\"LIFETIME,\"&$K23&\",,\"&$B429&\",\"=VLOOKUP(\"LIFETIME,\"&$K23&\",,\"&$B429&\",\",data[],1),VLOOKUP(\"LIFETIME,\"&$K23&\",,\"&$B429&\",\",data[],7),INDEX($E$419:$I$419,$J23))","v":20},null,null,null,null,null,{"$f":"IF(\"LIFETIME,\"&Q$2&\",,\"&$B429&\",\"=VLOOKUP(\"LIFETIME,\"&Q$2&\",,\"&$B429&\",\",data[],1),VLOOKUP(\"LIFETIME,\"&Q$2&\",,\"&$B429&\",\",data[],7),Q$419)","v":20},null,{"$f":"IF(\"LIFETIME,\"&S$2&\",,\"&$B429&\",\"=VLOOKUP(\"LIFETIME,\"&S$2&\",,\"&$B429&\",\",data[],1),VLOOKUP(\"LIFETIME,\"&S$2&\",,\"&$B429&\",\",data[],7),S$419)","v":20},null,null,null,null,{"$f":"IF(\"LIFETIME,\"&X$2&\",,\"&$B429&\",\"=VLOOKUP(\"LIFETIME,\"&X$2&\",,\"&$B429&\",\",data[],1),VLOOKUP(\"LIFETIME,\"&X$2&\",,\"&$B429&\",\",data[],7),X$419)","v":99},null,{"$f":"IF(\"LIFETIME,\"&Z$2&\",,\"&$B429&\",\"=VLOOKUP(\"LIFETIME,\"&Z$2&\",,\"&$B429&\",\",data[],1),VLOOKUP(\"LIFETIME,\"&Z$2&\",,\"&$B429&\",\",data[],7),Z$419)","v":20},null,null,null,{"$f":"IF(\"LIFETIME,\"&AD$2&\",,\"&$B429&\",\"=VLOOKUP(\"LIFETIME,\"&AD$2&\",,\"&$B429&\",\",data[],1),VLOOKUP(\"LIFETIME,\"&AD$2&\",,\"&$B429&\",\",data[],7),AD$419)","v":25},null,null,null,null,null,null,{"$f":"IF(\"LIFETIME,\"&AK$2&\",,\"&$B429&\",\"=VLOOKUP(\"LIFETIME,\"&AK$2&\",,\"&$B429&\",\",data[],1),VLOOKUP(\"LIFETIME,\"&AK$2&\",,\"&$B429&\",\",data[],7),AK$419)","v":30},null,{"$f":"IF(\"LIFETIME,\"&AM$2&\",,\"&$B429&\",\"=VLOOKUP(\"LIFETIME,\"&AM$2&\",,\"&$B429&\",\",data[],1),VLOOKUP(\"LIFETIME,\"&AM$2&\",,\"&$B429&\",\",data[],7),AM$419)","v":20},null,null,null,null,null,null,null,null,null,null,null,null,null,null,{"$f":"IF(NOT(BB23),0,IF(\"LIFETIME,\"&BB$2&\",,\"&$B429&\",\"=VLOOKUP(\"LIFETIME,\"&BB$2&\",,\"&$B429&\",\",data[],1),VLOOKUP(\"LIFETIME,\"&BB$2&\",,\"&$B429&\",\",data[],7),BB$419))","v":30},null,null,{"$f":"IF(NOT(BE23),0,IF(\"LIFETIME,\"&BE$2&\",,\"&$B429&\",\"=VLOOKUP(\"LIFETIME,\"&BE$2&\",,\"&$B429&\",\",data[],1),VLOOKUP(\"LIFETIME,\"&BE$2&\",,\"&$B429&\",\",data[],7),BE$419))","v":0}]
[null,"ARG-EST",null,null,null,null,null,null,null,null,{"$f":"IF(\"LIFETIME,\"&$K24&\",,\"&$B430&\",\"=VLOOKUP(\"LIFETIME,\"&$K24&\",,\"&$B430&\",\",data[],1),VLOOKUP(\"LIFETIME,\"&$K24&\",,\"&$B430&\",\",data[],7),INDEX($E$419:$I$419,$J24))","v":20},null,null,null,null,null,{"$f":"IF(\"LIFETIME,\"&Q$2&\",,\"&$B430&\",\"=VLOOKUP(\"LIFETIME,\"&Q$2&\",,\"&$B430&\",\",data[],1),VLOOKUP(\"LIFETIME,\"&Q$2&\",,\"&$B430&\",\",data[],7),Q$419)","v":20},null,{"$f":"IF(\"LIFETIME,\"&S$2&\",,\"&$B430&\",\"=VLOOKUP(\"LIFETIME,\"&S$2&\",,\"&$B430&\",\",data[],1),VLOOKUP(\"LIFETIME,\"&S$2&\",,\"&$B430&\",\",data[],7),S$419)","v":20},null,null,null,null,{"$f":"IF(\"LIFETIME,\"&X$2&\",,\"&$B430&\",\"=VLOOKUP(\"LIFETIME,\"&X$2&\",,\"&$B430&\",\",data[],1),VLOOKUP(\"LIFETIME,\"&X$2&\",,\"&$B430&\",\",data[],7),X$419)","v":99},null,{"$f":"IF(\"LIFETIME,\"&Z$2&\",,\"&$B430&\",\"=VLOOKUP(\"LIFETIME,\"&Z$2&\",,\"&$B430&\",\",data[],1),VLOOKUP(\"LIFETIME,\"&Z$2&\",,\"&$B430&\",\",data[],7),Z$419)","v":20},null,null,null,{"$f":"IF(\"LIFETIME,\"&AD$2&\",,\"&$B430&\",\"=VLOOKUP(\"LIFETIME,\"&AD$2&\",,\"&$B430&\",\",data[],1),VLOOKUP(\"LIFETIME,\"&AD$2&\",,\"&$B430&\",\",data[],7),AD$419)","v":25},null,null,null,null,null,null,{"$f":"IF(\"LIFETIME,\"&AK$2&\",,\"&$B430&\",\"=VLOOKUP(\"LIFETIME,\"&AK$2&\",,\"&$B430&\",\",data[],1),VLOOKUP(\"LIFETIME,\"&AK$2&\",,\"&$B430&\",\",data[],7),AK$419)","v":30},null,{"$f":"IF(\"LIFETIME,\"&AM$2&\",,\"&$B430&\",\"=VLOOKUP(\"LIFETIME,\"&AM$2&\",,\"&$B430&\",\",data[],1),VLOOKUP(\"LIFETIME,\"&AM$2&\",,\"&$B430&\",\",data[],7),AM$419)","v":20},null,null,null,null,null,null,null,null,null,null,null,null,null,null,{"$f":"IF(NOT(BB24),0,IF(\"LIFETIME,\"&BB$2&\",,\"&$B430&\",\"=VLOOKUP(\"LIFETIME,\"&BB$2&\",,\"&$B430&\",\",data[],1),VLOOKUP(\"LIFETIME,\"&BB$2&\",,\"&$B430&\",\",data[],7),BB$419))","v":30},null,null,{"$f":"IF(NOT(BE24),0,IF(\"LIFETIME,\"&BE$2&\",,\"&$B430&\",\"=VLOOKUP(\"LIFETIME,\"&BE$2&\",,\"&$B430&\",\",data[],1),VLOOKUP(\"LIFETIME,\"&BE$2&\",,\"&$B430&\",\",data[],7),BE$419))","v":0}]
[null,"ARG-FOR",null,null,null,null,null,null,null,null,{"$f":"IF(\"LIFETIME,\"&$K25&\",,\"&$B431&\",\"=VLOOKUP(\"LIFETIME,\"&$K25&\",,\"&$B431&\",\",data[],1),VLOOKUP(\"LIFETIME,\"&$K25&\",,\"&$B431&\",\",data[],7),INDEX($E$419:$I$419,$J25))","v":20},null,null,null,null,null,{"$f":"IF(\"LIFETIME,\"&Q$2&\",,\"&$B431&\",\"=VLOOKUP(\"LIFETIME,\"&Q$2&\",,\"&$B431&\",\",data[],1),VLOOKUP(\"LIFETIME,\"&Q$2&\",,\"&$B431&\",\",data[],7),Q$419)","v":20},null,{"$f":"IF(\"LIFETIME,\"&S$2&\",,\"&$B431&\",\"=VLOOKUP(\"LIFETIME,\"&S$2&\",,\"&$B431&\",\",data[],1),VLOOKUP(\"LIFETIME,\"&S$2&\",,\"&$B431&\",\",data[],7),S$419)","v":20},null,null,null,null,{"$f":"IF(\"LIFETIME,\"&X$2&\",,\"&$B431&\",\"=VLOOKUP(\"LIFETIME,\"&X$2&\",,\"&$B431&\",\",data[],1),VLOOKUP(\"LIFETIME,\"&X$2&\",,\"&$B431&\",\",data[],7),X$419)","v":99},null,{"$f":"IF(\"LIFETIME,\"&Z$2&\",,\"&$B431&\",\"=VLOOKUP(\"LIFETIME,\"&Z$2&\",,\"&$B431&\",\",data[],1),VLOOKUP(\"LIFETIME,\"&Z$2&\",,\"&$B431&\",\",data[],7),Z$419)","v":20},null,null,null,{"$f":"IF(\"LIFETIME,\"&AD$2&\",,\"&$B431&\",\"=VLOOKUP(\"LIFETIME,\"&AD$2&\",,\"&$B431&\",\",data[],1),VLOOKUP(\"LIFETIME,\"&AD$2&\",,\"&$B431&\",\",data[],7),AD$419)","v":25},null,null,null,null,null,null,{"$f":"IF(\"LIFETIME,\"&AK$2&\",,\"&$B431&\",\"=VLOOKUP(\"LIFETIME,\"&AK$2&\",,\"&$B431&\",\",data[],1),VLOOKUP(\"LIFETIME,\"&AK$2&\",,\"&$B431&\",\",data[],7),AK$419)","v":30},null,{"$f":"IF(\"LIFETIME,\"&AM$2&\",,\"&$B431&\",\"=VLOOKUP(\"LIFETIME,\"&AM$2&\",,\"&$B431&\",\",data[],1),VLOOKUP(\"LIFETIME,\"&AM$2&\",,\"&$B431&\",\",data[],7),AM$419)","v":20},null,null,null,null,null,null,null,null,null,null,null,null,null,null,{"$f":"IF(NOT(BB25),0,IF(\"LIFETIME,\"&BB$2&\",,\"&$B431&\",\"=VLOOKUP(\"LIFETIME,\"&BB$2&\",,\"&$B431&\",\",data[],1),VLOOKUP(\"LIFETIME,\"&BB$2&\",,\"&$B431&\",\",data[],7),BB$419))","v":30},null,null,{"$f":"IF(NOT(BE25),0,IF(\"LIFETIME,\"&BE$2&\",,\"&$B431&\",\"=VLOOKUP(\"LIFETIME,\"&BE$2&\",,\"&$B431&\",\",data[],1),VLOOKUP(\"LIFETIME,\"&BE$2&\",,\"&$B431&\",\",data[],7),BE$419))","v":0}]
[null,"ARG-FUE",null,null,null,null,null,null,null,null,{"$f":"IF(\"LIFETIME,\"&$K26&\",,\"&$B432&\",\"=VLOOKUP(\"LIFETIME,\"&$K26&\",,\"&$B432&\",\",data[],1),VLOOKUP(\"LIFETIME,\"&$K26&\",,\"&$B432&\",\",data[],7),INDEX($E$419:$I$419,$J26))","v":20},null,null,null,null,null,{"$f":"IF(\"LIFETIME,\"&Q$2&\",,\"&$B432&\",\"=VLOOKUP(\"LIFETIME,\"&Q$2&\",,\"&$B432&\",\",data[],1),VLOOKUP(\"LIFETIME,\"&Q$2&\",,\"&$B432&\",\",data[],7),Q$419)","v":20},null,{"$f":"IF(\"LIFETIME,\"&S$2&\",,\"&$B432&\",\"=VLOOKUP(\"LIFETIME,\"&S$2&\",,\"&$B432&\",\",data[],1),VLOOKUP(\"LIFETIME,\"&S$2&\",,\"&$B432&\",\",data[],7),S$419)","v":20},null,null,null,null,{"$f":"IF(\"LIFETIME,\"&X$2&\",,\"&$B432&\",\"=VLOOKUP(\"LIFETIME,\"&X$2&\",,\"&$B432&\",\",data[],1),VLOOKUP(\"LIFETIME,\"&X$2&\",,\"&$B432&\",\",data[],7),X$419)","v":99},null,{"$f":"IF(\"LIFETIME,\"&Z$2&\",,\"&$B432&\",\"=VLOOKUP(\"LIFETIME,\"&Z$2&\",,\"&$B432&\",\",data[],1),VLOOKUP(\"LIFETIME,\"&Z$2&\",,\"&$B432&\",\",data[],7),Z$419)","v":20},null,null,null,{"$f":"IF(\"LIFETIME,\"&AD$2&\",,\"&$B432&\",\"=VLOOKUP(\"LIFETIME,\"&AD$2&\",,\"&$B432&\",\",data[],1),VLOOKUP(\"LIFETIME,\"&AD$2&\",,\"&$B432&\",\",data[],7),AD$419)","v":25},null,null,null,null,null,null,{"$f":"IF(\"LIFETIME,\"&AK$2&\",,\"&$B432&\",\"=VLOOKUP(\"LIFETIME,\"&AK$2&\",,\"&$B432&\",\",data[],1),VLOOKUP(\"LIFETIME,\"&AK$2&\",,\"&$B432&\",\",data[],7),AK$419)","v":30},null,{"$f":"IF(\"LIFETIME,\"&AM$2&\",,\"&$B432&\",\"=VLOOKUP(\"LIFETIME,\"&AM$2&\",,\"&$B432&\",\",data[],1),VLOOKUP(\"LIFETIME,\"&AM$2&\",,\"&$B432&\",\",data[],7),AM$419)","v":20},null,null,null,null,null,null,null,null,null,null,null,null,null,null,{"$f":"IF(NOT(BB26),0,IF(\"LIFETIME,\"&BB$2&\",,\"&$B432&\",\"=VLOOKUP(\"LIFETIME,\"&BB$2&\",,\"&$B432&\",\",data[],1),VLOOKUP(\"LIFETIME,\"&BB$2&\",,\"&$B432&\",\",data[],7),BB$419))","v":30},null,null,{"$f":"IF(NOT(BE26),0,IF(\"LIFETIME,\"&BE$2&\",,\"&$B432&\",\"=VLOOKUP(\"LIFETIME,\"&BE$2&\",,\"&$B432&\",\",data[],1),VLOOKUP(\"LIFETIME,\"&BE$2&\",,\"&$B432&\",\",data[],7),BE$419))","v":0}]
[null,"ARG-JUJ",null,null,null,null,null,null,null,null,{"$f":"IF(\"LIFETIME,\"&$K27&\",,\"&$B433&\",\"=VLOOKUP(\"LIFETIME,\"&$K27&\",,\"&$B433&\",\",data[],1),VLOOKUP(\"LIFETIME,\"&$K27&\",,\"&$B433&\",\",data[],7),INDEX($E$419:$I$419,$J27))","v":20},null,null,null,null,null,{"$f":"IF(\"LIFETIME,\"&Q$2&\",,\"&$B433&\",\"=VLOOKUP(\"LIFETIME,\"&Q$2&\",,\"&$B433&\",\",data[],1),VLOOKUP(\"LIFETIME,\"&Q$2&\",,\"&$B433&\",\",data[],7),Q$419)","v":20},null,{"$f":"IF(\"LIFETIME,\"&S$2&\",,\"&$B433&\",\"=VLOOKUP(\"LIFETIME,\"&S$2&\",,\"&$B433&\",\",data[],1),VLOOKUP(\"LIFETIME,\"&S$2&\",,\"&$B433&\",\",data[],7),S$419)","v":20},null,null,null,null,{"$f":"IF(\"LIFETIME,\"&X$2&\",,\"&$B433&\",\"=VLOOKUP(\"LIFETIME,\"&X$2&\",,\"&$B433&\",\",data[],1),VLOOKUP(\"LIFETIME,\"&X$2&\",,\"&$B433&\",\",data[],7),X$419)","v":99},null,{"$f":"IF(\"LIFETIME,\"&Z$2&\",,\"&$B433&\",\"=VLOOKUP(\"LIFETIME,\"&Z$2&\",,\"&$B433&\",\",data[],1),VLOOKUP(\"LIFETIME,\"&Z$2&\",,\"&$B433&\",\",data[],7),Z$419)","v":20},null,null,null,{"$f":"IF(\"LIFETIME,\"&AD$2&\",,\"&$B433&\",\"=VLOOKUP(\"LIFETIME,\"&AD$2&\",,\"&$B433&\",\",data[],1),VLOOKUP(\"LIFETIME,\"&AD$2&\",,\"&$B433&\",\",data[],7),AD$419)","v":25},null,null,null,null,null,null,{"$f":"IF(\"LIFETIME,\"&AK$2&\",,\"&$B433&\",\"=VLOOKUP(\"LIFETIME,\"&AK$2&\",,\"&$B433&\",\",data[],1),VLOOKUP(\"LIFETIME,\"&AK$2&\",,\"&$B433&\",\",data[],7),AK$419)","v":30},null,{"$f":"IF(\"LIFETIME,\"&AM$2&\",,\"&$B433&\",\"=VLOOKUP(\"LIFETIME,\"&AM$2&\",,\"&$B433&\",\",data[],1),VLOOKUP(\"LIFETIME,\"&AM$2&\",,\"&$B433&\",\",data[],7),AM$419)","v":20},null,null,null,null,null,null,null,null,null,null,null,null,null,null,{"$f":"IF(NOT(BB27),0,IF(\"LIFETIME,\"&BB$2&\",,\"&$B433&\",\"=VLOOKUP(\"LIFETIME,\"&BB$2&\",,\"&$B433&\",\",data[],1),VLOOKUP(\"LIFETIME,\"&BB$2&\",,\"&$B433&\",\",data[],7),BB$419))","v":30},null,null,{"$f":"IF(NOT(BE27),0,IF(\"LIFETIME,\"&BE$2&\",,\"&$B433&\",\"=VLOOKUP(\"LIFETIME,\"&BE$2&\",,\"&$B433&\",\",data[],1),VLOOKUP(\"LIFETIME,\"&BE$2&\",,\"&$B433&\",\",data[],7),BE$419))","v":0}]
[null,"ARG-LAR",null,null,null,null,null,null,null,null,{"$f":"IF(\"LIFETIME,\"&$K28&\",,\"&$B434&\",\"=VLOOKUP(\"LIFETIME,\"&$K28&\",,\"&$B434&\",\",data[],1),VLOOKUP(\"LIFETIME,\"&$K28&\",,\"&$B434&\",\",data[],7),INDEX($E$419:$I$419,$J28))","v":20},null,null,null,null,null,{"$f":"IF(\"LIFETIME,\"&Q$2&\",,\"&$B434&\",\"=VLOOKUP(\"LIFETIME,\"&Q$2&\",,\"&$B434&\",\",data[],1),VLOOKUP(\"LIFETIME,\"&Q$2&\",,\"&$B434&\",\",data[],7),Q$419)","v":20},null,{"$f":"IF(\"LIFETIME,\"&S$2&\",,\"&$B434&\",\"=VLOOKUP(\"LIFETIME,\"&S$2&\",,\"&$B434&\",\",data[],1),VLOOKUP(\"LIFETIME,\"&S$2&\",,\"&$B434&\",\",data[],7),S$419)","v":20},null,null,null,null,{"$f":"IF(\"LIFETIME,\"&X$2&\",,\"&$B434&\",\"=VLOOKUP(\"LIFETIME,\"&X$2&\",,\"&$B434&\",\",data[],1),VLOOKUP(\"LIFETIME,\"&X$2&\",,\"&$B434&\",\",data[],7),X$419)","v":99},null,{"$f":"IF(\"LIFETIME,\"&Z$2&\",,\"&$B434&\",\"=VLOOKUP(\"LIFETIME,\"&Z$2&\",,\"&$B434&\",\",data[],1),VLOOKUP(\"LIFETIME,\"&Z$2&\",,\"&$B434&\",\",data[],7),Z$419)","v":20},null,null,null,{"$f":"IF(\"LIFETIME,\"&AD$2&\",,\"&$B434&\",\"=VLOOKUP(\"LIFETIME,\"&AD$2&\",,\"&$B434&\",\",data[],1),VLOOKUP(\"LIFETIME,\"&AD$2&\",,\"&$B434&\",\",data[],7),AD$419)","v":25},null,null,null,null,null,null,{"$f":"IF(\"LIFETIME,\"&AK$2&\",,\"&$B434&\",\"=VLOOKUP(\"LIFETIME,\"&AK$2&\",,\"&$B434&\",\",data[],1),VLOOKUP(\"LIFETIME,\"&AK$2&\",,\"&$B434&\",\",data[],7),AK$419)","v":30},null,{"$f":"IF(\"LIFETIME,\"&AM$2&\",,\"&$B434&\",\"=VLOOKUP(\"LIFETIME,\"&AM$2&\",,\"&$B434&\",\",data[],1),VLOOKUP(\"LIFETIME,\"&AM$2&\",,\"&$B434&\",\",data[],7),AM$419)","v":20},null,null,null,null,null,null,null,null,null,null,null,null,null,null,{"$f":"IF(NOT(BB28),0,IF(\"LIFETIME,\"&BB$2&\",,\"&$B434&\",\"=VLOOKUP(\"LIFETIME,\"&BB$2&\",,\"&$B434&\",\",data[],1),VLOOKUP(\"LIFETIME,\"&BB$2&\",,\"&$B434&\",\",data[],7),BB$419))","v":30},null,null,{"$f":"IF(NOT(BE28),0,IF(\"LIFETIME,\"&BE$2&\",,\"&$B434&\",\"=VLOOKUP(\"LIFETIME,\"&BE$2&\",,\"&$B434&\",\",data[],1),VLOOKUP(\"LIFETIME,\"&BE$2&\",,\"&$B434&\",\",data[],7),BE$419))","v":0}]
[null,"ARG-MEN",null,null,null,null,null,null,null,null,{"$f":"IF(\"LIFETIME,\"&$K29&\",,\"&$B435&\",\"=VLOOKUP(\"LIFETIME,\"&$K29&\",,\"&$B435&\",\",data[],1),VLOOKUP(\"LIFETIME,\"&$K29&\",,\"&$B435&\",\",data[],7),INDEX($E$419:$I$419,$J29))","v":20},null,null,null,null,null,{"$f":"IF(\"LIFETIME,\"&Q$2&\",,\"&$B435&\",\"=VLOOKUP(\"LIFETIME,\"&Q$2&\",,\"&$B435&\",\",data[],1),VLOOKUP(\"LIFETIME,\"&Q$2&\",,\"&$B435&\",\",data[],7),Q$419)","v":20},null,{"$f":"IF(\"LIFETIME,\"&S$2&\",,\"&$B435&\",\"=VLOOKUP(\"LIFETIME,\"&S$2&\",,\"&$B435&\",\",data[],1),VLOOKUP(\"LIFETIME,\"&S$2&\",,\"&$B435&\",\",data[],7),S$419)","v":20},null,null,null,null,{"$f":"IF(\"LIFETIME,\"&X$2&\",,\"&$B435&\",\"=VLOOKUP(\"LIFETIME,\"&X$2&\",,\"&$B435&\",\",data[],1),VLOOKUP(\"LIFETIME,\"&X$2&\",,\"&$B435&\",\",data[],7),X$419)","v":99},null,{"$f":"IF(\"LIFETIME,\"&Z$2&\",,\"&$B435&\",\"=VLOOKUP(\"LIFETIME,\"&Z$2&\",,\"&$B435&\",\",data[],1),VLOOKUP(\"LIFETIME,\"&Z$2&\",,\"&$B435&\",\",data[],7),Z$419)","v":20},null,null,null,{"$f":"IF(\"LIFETIME,\"&AD$2&\",,\"&$B435&\",\"=VLOOKUP(\"LIFETIME,\"&AD$2&\",,\"&$B435&\",\",data[],1),VLOOKUP(\"LIFETIME,\"&AD$2&\",,\"&$B435&\",\",data[],7),AD$419)","v":25},null,null,null,null,null,null,{"$f":"IF(\"LIFETIME,\"&AK$2&\",,\"&$B435&\",\"=VLOOKUP(\"LIFETIME,\"&AK$2&\",,\"&$B435&\",\",data[],1),VLOOKUP(\"LIFETIME,\"&AK$2&\",,\"&$B435&\",\",data[],7),AK$419)","v":30},null,{"$f":"IF(\"LIFETIME,\"&AM$2&\",,\"&$B435&\",\"=VLOOKUP(\"LIFETIME,\"&AM$2&\",,\"&$B435&\",\",data[],1),VLOOKUP(\"LIFETIME,\"&AM$2&\",,\"&$B435&\",\",data[],7),AM$419)","v":20},null,null,null,null,null,null,null,null,null,null,null,null,null,null,{"$f":"IF(NOT(BB29),0,IF(\"LIFETIME,\"&BB$2&\",,\"&$B435&\",\"=VLOOKUP(\"LIFETIME,\"&BB$2&\",,\"&$B435&\",\",data[],1),VLOOKUP(\"LIFETIME,\"&BB$2&\",,\"&$B435&\",\",data[],7),BB$419))","v":30},null,null,{"$f":"IF(NOT(BE29),0,IF(\"LIFETIME,\"&BE$2&\",,\"&$B435&\",\"=VLOOKUP(\"LIFETIME,\"&BE$2&\",,\"&$B435&\",\",data[],1),VLOOKUP(\"LIFETIME,\"&BE$2&\",,\"&$B435&\",\",data[],7),BE$419))","v":0}]
[null,"ARG-MIS",null,null,null,null,null,null,null,null,{"$f":"IF(\"LIFETIME,\"&$K30&\",,\"&$B436&\",\"=VLOOKUP(\"LIFETIME,\"&$K30&\",,\"&$B436&\",\",data[],1),VLOOKUP(\"LIFETIME,\"&$K30&\",,\"&$B436&\",\",data[],7),INDEX($E$419:$I$419,$J30))","v":20},null,null,null,null,null,{"$f":"IF(\"LIFETIME,\"&Q$2&\",,\"&$B436&\",\"=VLOOKUP(\"LIFETIME,\"&Q$2&\",,\"&$B436&\",\",data[],1),VLOOKUP(\"LIFETIME,\"&Q$2&\",,\"&$B436&\",\",data[],7),Q$419)","v":20},null,{"$f":"IF(\"LIFETIME,\"&S$2&\",,\"&$B436&\",\"=VLOOKUP(\"LIFETIME,\"&S$2&\",,\"&$B436&\",\",data[],1),VLOOKUP(\"LIFETIME,\"&S$2&\",,\"&$B436&\",\",data[],7),S$419)","v":20},null,null,null,null,{"$f":"IF(\"LIFETIME,\"&X$2&\",,\"&$B436&\",\"=VLOOKUP(\"LIFETIME,\"&X$2&\",,\"&$B436&\",\",data[],1),VLOOKUP(\"LIFETIME,\"&X$2&\",,\"&$B436&\",\",data[],7),X$419)","v":99},null,{"$f":"IF(\"LIFETIME,\"&Z$2&\",,\"&$B436&\",\"=VLOOKUP(\"LIFETIME,\"&Z$2&\",,\"&$B436&\",\",data[],1),VLOOKUP(\"LIFETIME,\"&Z$2&\",,\"&$B436&\",\",data[],7),Z$419)","v":20},null,null,null,{"$f":"IF(\"LIFETIME,\"&AD$2&\",,\"&$B436&\",\"=VLOOKUP(\"LIFETIME,\"&AD$2&\",,\"&$B436&\",\",data[],1),VLOOKUP(\"LIFETIME,\"&AD$2&\",,\"&$B436&\",\",data[],7),AD$419)","v":25},null,null,null,null,null,null,{"$f":"IF(\"LIFETIME,\"&AK$2&\",,\"&$B436&\",\"=VLOOKUP(\"LIFETIME,\"&AK$2&\",,\"&$B436&\",\",data[],1),VLOOKUP(\"LIFETIME,\"&AK$2&\",,\"&$B436&\",\",data[],7),AK$419)","v":30},null,{"$f":"IF(\"LIFETIME,\"&AM$2&\",,\"&$B436&\",\"=VLOOKUP(\"LIFETIME,\"&AM$2&\",,\"&$B436&\",\",data[],1),VLOOKUP(\"LIFETIME,\"&AM$2&\",,\"&$B436&\",\",data[],7),AM$419)","v":20},null,null,null,null,null,null,null,null,null,null,null,null,null,null,{"$f":"IF(NOT(BB30),0,IF(\"LIFETIME,\"&BB$2&\",,\"&$B436&\",\"=VLOOKUP(\"LIFETIME,\"&BB$2&\",,\"&$B436&\",\",data[],1),VLOOKUP(\"LIFETIME,\"&BB$2&\",,\"&$B436&\",\",data[],7),BB$419))","v":30},null,null,{"$f":"IF(NOT(BE30),0,IF(\"LIFETIME,\"&BE$2&\",,\"&$B436&\",\"=VLOOKUP(\"LIFETIME,\"&BE$2&\",,\"&$B436&\",\",data[],1),VLOOKUP(\"LIFETIME,\"&BE$2&\",,\"&$B436&\",\",data[],7),BE$419))","v":0}]
[null,"ARG-NEG",null,null,null,null,null,null,null,null,{"$f":"IF(\"LIFETIME,\"&$K31&\",,\"&$B437&\",\"=VLOOKUP(\"LIFETIME,\"&$K31&\",,\"&$B437&\",\",data[],1),VLOOKUP(\"LIFETIME,\"&$K31&\",,\"&$B437&\",\",data[],7),INDEX($E$419:$I$419,$J31))","v":20},null,null,null,null,null,{"$f":"IF(\"LIFETIME,\"&Q$2&\",,\"&$B437&\",\"=VLOOKUP(\"LIFETIME,\"&Q$2&\",,\"&$B437&\",\",data[],1),VLOOKUP(\"LIFETIME,\"&Q$2&\",,\"&$B437&\",\",data[],7),Q$419)","v":20},null,{"$f":"IF(\"LIFETIME,\"&S$2&\",,\"&$B437&\",\"=VLOOKUP(\"LIFETIME,\"&S$2&\",,\"&$B437&\",\",data[],1),VLOOKUP(\"LIFETIME,\"&S$2&\",,\"&$B437&\",\",data[],7),S$419)","v":20},null,null,null,null,{"$f":"IF(\"LIFETIME,\"&X$2&\",,\"&$B437&\",\"=VLOOKUP(\"LIFETIME,\"&X$2&\",,\"&$B437&\",\",data[],1),VLOOKUP(\"LIFETIME,\"&X$2&\",,\"&$B437&\",\",data[],7),X$419)","v":99},null,{"$f":"IF(\"LIFETIME,\"&Z$2&\",,\"&$B437&\",\"=VLOOKUP(\"LIFETIME,\"&Z$2&\",,\"&$B437&\",\",data[],1),VLOOKUP(\"LIFETIME,\"&Z$2&\",,\"&$B437&\",\",data[],7),Z$419)","v":20},null,null,null,{"$f":"IF(\"LIFETIME,\"&AD$2&\",,\"&$B437&\",\"=VLOOKUP(\"LIFETIME,\"&AD$2&\",,\"&$B437&\",\",data[],1),VLOOKUP(\"LIFETIME,\"&AD$2&\",,\"&$B437&\",\",data[],7),AD$419)","v":25},null,null,null,null,null,null,{"$f":"IF(\"LIFETIME,\"&AK$2&\",,\"&$B437&\",\"=VLOOKUP(\"LIFETIME,\"&AK$2&\",,\"&$B437&\",\",data[],1),VLOOKUP(\"LIFETIME,\"&AK$2&\",,\"&$B437&\",\",data[],7),AK$419)","v":30},null,{"$f":"IF(\"LIFETIME,\"&AM$2&\",,\"&$B437&\",\"=VLOOKUP(\"LIFETIME,\"&AM$2&\",,\"&$B437&\",\",data[],1),VLOOKUP(\"LIFETIME,\"&AM$2&\",,\"&$B437&\",\",data[],7),AM$419)","v":20},null,null,null,null,null,null,null,null,null,null,null,null,null,null,{"$f":"IF(NOT(BB31),0,IF(\"LIFETIME,\"&BB$2&\",,\"&$B437&\",\"=VLOOKUP(\"LIFETIME,\"&BB$2&\",,\"&$B437&\",\",data[],1),VLOOKUP(\"LIFETIME,\"&BB$2&\",,\"&$B437&\",\",data[],7),BB$419))","v":30},null,null,{"$f":"IF(NOT(BE31),0,IF(\"LIFETIME,\"&BE$2&\",,\"&$B437&\",\"=VLOOKUP(\"LIFETIME,\"&BE$2&\",,\"&$B437&\",\",data[],1),VLOOKUP(\"LIFETIME,\"&BE$2&\",,\"&$B437&\",\",data[],7),BE$419))","v":0}]
[null,"ARG-NEU",null,null,null,null,null,null,null,null,{"$f":"IF(\"LIFETIME,\"&$K32&\",,\"&$B438&\",\"=VLOOKUP(\"LIFETIME,\"&$K32&\",,\"&$B438&\",\",data[],1),VLOOKUP(\"LIFETIME,\"&$K32&\",,\"&$B438&\",\",data[],7),INDEX($E$419:$I$419,$J32))","v":20},null,null,null,null,null,{"$f":"IF(\"LIFETIME,\"&Q$2&\",,\"&$B438&\",\"=VLOOKUP(\"LIFETIME,\"&Q$2&\",,\"&$B438&\",\",data[],1),VLOOKUP(\"LIFETIME,\"&Q$2&\",,\"&$B438&\",\",data[],7),Q$419)","v":20},null,{"$f":"IF(\"LIFETIME,\"&S$2&\",,\"&$B438&\",\"=VLOOKUP(\"LIFETIME,\"&S$2&\",,\"&$B438&\",\",data[],1),VLOOKUP(\"LIFETIME,\"&S$2&\",,\"&$B438&\",\",data[],7),S$419)","v":20},null,null,null,null,{"$f":"IF(\"LIFETIME,\"&X$2&\",,\"&$B438&\",\"=VLOOKUP(\"LIFETIME,\"&X$2&\",,\"&$B438&\",\",data[],1),VLOOKUP(\"LIFETIME,\"&X$2&\",,\"&$B438&\",\",data[],7),X$419)","v":99},null,{"$f":"IF(\"LIFETIME,\"&Z$2&\",,\"&$B438&\",\"=VLOOKUP(\"LIFETIME,\"&Z$2&\",,\"&$B438&\",\",data[],1),VLOOKUP(\"LIFETIME,\"&Z$2&\",,\"&$B438&\",\",data[],7),Z$419)","v":20},null,null,null,{"$f":"IF(\"LIFETIME,\"&AD$2&\",,\"&$B438&\",\"=VLOOKUP(\"LIFETIME,\"&AD$2&\",,\"&$B438&\",\",data[],1),VLOOKUP(\"LIFETIME,\"&AD$2&\",,\"&$B438&\",\",data[],7),AD$419)","v":25},null,null,null,null,null,null,{"$f":"IF(\"LIFETIME,\"&AK$2&\",,\"&$B438&\",\"=VLOOKUP(\"LIFETIME,\"&AK$2&\",,\"&$B438&\",\",data[],1),VLOOKUP(\"LIFETIME,\"&AK$2&\",,\"&$B438&\",\",data[],7),AK$419)","v":30},null,{"$f":"IF(\"LIFETIME,\"&AM$2&\",,\"&$B438&\",\"=VLOOKUP(\"LIFETIME,\"&AM$2&\",,\"&$B438&\",\",data[],1),VLOOKUP(\"LIFETIME,\"&AM$2&\",,\"&$B438&\",\",data[],7),AM$419)","v":20},null,null,null,null,null,null,null,null,null,null,null,null,null,null,{"$f":"IF(NOT(BB32),0,IF(\"LIFETIME,\"&BB$2&\",,\"&$B438&\",\"=VLOOKUP(\"LIFETIME,\"&BB$2&\",,\"&$B438&\",\",data[],1),VLOOKUP(\"LIFETIME,\"&BB$2&\",,\"&$B438&\",\",data[],7),BB$419))","v":30},null,null,{"$f":"IF(NOT(BE32),0,IF(\"LIFETIME,\"&BE$2&\",,\"&$B438&\",\"=VLOOKUP(\"LIFETIME,\"&BE$2&\",,\"&$B438&\",\",data[],1),VLOOKUP(\"LIFETIME,\"&BE$2&\",,\"&$B438&\",\",data[],7),BE$419))","v":0}]
[null,"ARG-PAM",null,null,null,null,null,null,null,null,{"$f":"IF(\"LIFETIME,\"&$K33&\",,\"&$B439&\",\"=VLOOKUP(\"LIFETIME,\"&$K33&\",,\"&$B439&\",\",data[],1),VLOOKUP(\"LIFETIME,\"&$K33&\",,\"&$B439&\",\",data[],7),INDEX($E$419:$I$419,$J33))","v":20},null,null,null,null,null,{"$f":"IF(\"LIFETIME,\"&Q$2&\",,\"&$B439&\",\"=VLOOKUP(\"LIFETIME,\"&Q$2&\",,\"&$B439&\",\",data[],1),VLOOKUP(\"LIFETIME,\"&Q$2&\",,\"&$B439&\",\",data[],7),Q$419)","v":20},null,{"$f":"IF(\"LIFETIME,\"&S$2&\",,\"&$B439&\",\"=VLOOKUP(\"LIFETIME,\"&S$2&\",,\"&$B439&\",\",data[],1),VLOOKUP(\"LIFETIME,\"&S$2&\",,\"&$B439&\",\",data[],7),S$419)","v":20},null,null,null,null,{"$f":"IF(\"LIFETIME,\"&X$2&\",,\"&$B439&\",\"=VLOOKUP(\"LIFETIME,\"&X$2&\",,\"&$B439&\",\",data[],1),VLOOKUP(\"LIFETIME,\"&X$2&\",,\"&$B439&\",\",data[],7),X$419)","v":99},null,{"$f":"IF(\"LIFETIME,\"&Z$2&\",,\"&$B439&\",\"=VLOOKUP(\"LIFETIME,\"&Z$2&\",,\"&$B439&\",\",data[],1),VLOOKUP(\"LIFETIME,\"&Z$2&\",,\"&$B439&\",\",data[],7),Z$419)","v":20},null,null,null,{"$f":"IF(\"LIFETIME,\"&AD$2&\",,\"&$B439&\",\"=VLOOKUP(\"LIFETIME,\"&AD$2&\",,\"&$B439&\",\",data[],1),VLOOKUP(\"LIFETIME,\"&AD$2&\",,\"&$B439&\",\",data[],7),AD$419)","v":25},null,null,null,null,null,null,{"$f":"IF(\"LIFETIME,\"&AK$2&\",,\"&$B439&\",\"=VLOOKUP(\"LIFETIME,\"&AK$2&\",,\"&$B439&\",\",data[],1),VLOOKUP(\"LIFETIME,\"&AK$2&\",,\"&$B439&\",\",data[],7),AK$419)","v":30},null,{"$f":"IF(\"LIFETIME,\"&AM$2&\",,\"&$B439&\",\"=VLOOKUP(\"LIFETIME,\"&AM$2&\",,\"&$B439&\",\",data[],1),VLOOKUP(\"LIFETIME,\"&AM$2&\",,\"&$B439&\",\",data[],7),AM$419)","v":20},null,null,null,null,null,null,null,null,null,null,null,null,null,null,{"$f":"IF(NOT(BB33),0,IF(\"LIFETIME,\"&BB$2&\",,\"&$B439&\",\"=VLOOKUP(\"LIFETIME,\"&BB$2&\",,\"&$B439&\",\",data[],1),VLOOKUP(\"LIFETIME,\"&BB$2&\",,\"&$B439&\",\",data[],7),BB$419))","v":30},null,null,{"$f":"IF(NOT(BE33),0,IF(\"LIFETIME,\"&BE$2&\",,\"&$B439&\",\"=VLOOKUP(\"LIFETIME,\"&BE$2&\",,\"&$B439&\",\",data[],1),VLOOKUP(\"LIFETIME,\"&BE$2&\",,\"&$B439&\",\",data[],7),BE$419))","v":0}]
[null,"ARG-RIO",null,null,null,null,null,null,null,null,{"$f":"IF(\"LIFETIME,\"&$K34&\",,\"&$B440&\",\"=VLOOKUP(\"LIFETIME,\"&$K34&\",,\"&$B440&\",\",data[],1),VLOOKUP(\"LIFETIME,\"&$K34&\",,\"&$B440&\",\",data[],7),INDEX($E$419:$I$419,$J34))","v":20},null,null,null,null,null,{"$f":"IF(\"LIFETIME,\"&Q$2&\",,\"&$B440&\",\"=VLOOKUP(\"LIFETIME,\"&Q$2&\",,\"&$B440&\",\",data[],1),VLOOKUP(\"LIFETIME,\"&Q$2&\",,\"&$B440&\",\",data[],7),Q$419)","v":20},null,{"$f":"IF(\"LIFETIME,\"&S$2&\",,\"&$B440&\",\"=VLOOKUP(\"LIFETIME,\"&S$2&\",,\"&$B440&\",\",data[],1),VLOOKUP(\"LIFETIME,\"&S$2&\",,\"&$B440&\",\",data[],7),S$419)","v":20},null,null,null,null,{"$f":"IF(\"LIFETIME,\"&X$2&\",,\"&$B440&\",\"=VLOOKUP(\"LIFETIME,\"&X$2&\",,\"&$B440&\",\",data[],1),VLOOKUP(\"LIFETIME,\"&X$2&\",,\"&$B440&\",\",data[],7),X$419)","v":99},null,{"$f":"IF(\"LIFETIME,\"&Z$2&\",,\"&$B440&\",\"=VLOOKUP(\"LIFETIME,\"&Z$2&\",,\"&$B440&\",\",data[],1),VLOOKUP(\"LIFETIME,\"&Z$2&\",,\"&$B440&\",\",data[],7),Z$419)","v":20},null,null,null,{"$f":"IF(\"LIFETIME,\"&AD$2&\",,\"&$B440&\",\"=VLOOKUP(\"LIFETIME,\"&AD$2&\",,\"&$B440&\",\",data[],1),VLOOKUP(\"LIFETIME,\"&AD$2&\",,\"&$B440&\",\",data[],7),AD$419)","v":25},null,null,null,null,null,null,{"$f":"IF(\"LIFETIME,\"&AK$2&\",,\"&$B440&\",\"=VLOOKUP(\"LIFETIME,\"&AK$2&\",,\"&$B440&\",\",data[],1),VLOOKUP(\"LIFETIME,\"&AK$2&\",,\"&$B440&\",\",data[],7),AK$419)","v":30},null,{"$f":"IF(\"LIFETIME,\"&AM$2&\",,\"&$B440&\",\"=VLOOKUP(\"LIFETIME,\"&AM$2&\",,\"&$B440&\",\",data[],1),VLOOKUP(\"LIFETIME,\"&AM$2&\",,\"&$B440&\",\",data[],7),AM$419)","v":20},null,null,null,null,null,null,null,null,null,null,null,null,null,null,{"$f":"IF(NOT(BB34),0,IF(\"LIFETIME,\"&BB$2&\",,\"&$B440&\",\"=VLOOKUP(\"LIFETIME,\"&BB$2&\",,\"&$B440&\",\",data[],1),VLOOKUP(\"LIFETIME,\"&BB$2&\",,\"&$B440&\",\",data[],7),BB$419))","v":30},null,null,{"$f":"IF(NOT(BE34),0,IF(\"LIFETIME,\"&BE$2&\",,\"&$B440&\",\"=VLOOKUP(\"LIFETIME,\"&BE$2&\",,\"&$B440&\",\",data[],1),VLOOKUP(\"LIFETIME,\"&BE$2&\",,\"&$B440&\",\",data[],7),BE$419))","v":0}]
[null,"ARG-SAF",null,null,null,null,null,null,null,null,{"$f":"IF(\"LIFETIME,\"&$K35&\",,\"&$B441&\",\"=VLOOKUP(\"LIFETIME,\"&$K35&\",,\"&$B441&\",\",data[],1),VLOOKUP(\"LIFETIME,\"&$K35&\",,\"&$B441&\",\",data[],7),INDEX($E$419:$I$419,$J35))","v":20},null,null,null,null,null,{"$f":"IF(\"LIFETIME,\"&Q$2&\",,\"&$B441&\",\"=VLOOKUP(\"LIFETIME,\"&Q$2&\",,\"&$B441&\",\",data[],1),VLOOKUP(\"LIFETIME,\"&Q$2&\",,\"&$B441&\",\",data[],7),Q$419)","v":20},null,{"$f":"IF(\"LIFETIME,\"&S$2&\",,\"&$B441&\",\"=VLOOKUP(\"LIFETIME,\"&S$2&\",,\"&$B441&\",\",data[],1),VLOOKUP(\"LIFETIME,\"&S$2&\",,\"&$B441&\",\",data[],7),S$419)","v":20},null,null,null,null,{"$f":"IF(\"LIFETIME,\"&X$2&\",,\"&$B441&\",\"=VLOOKUP(\"LIFETIME,\"&X$2&\",,\"&$B441&\",\",data[],1),VLOOKUP(\"LIFETIME,\"&X$2&\",,\"&$B441&\",\",data[],7),X$419)","v":99},null,{"$f":"IF(\"LIFETIME,\"&Z$2&\",,\"&$B441&\",\"=VLOOKUP(\"LIFETIME,\"&Z$2&\",,\"&$B441&\",\",data[],1),VLOOKUP(\"LIFETIME,\"&Z$2&\",,\"&$B441&\",\",data[],7),Z$419)","v":20},null,null,null,{"$f":"IF(\"LIFETIME,\"&AD$2&\",,\"&$B441&\",\"=VLOOKUP(\"LIFETIME,\"&AD$2&\",,\"&$B441&\",\",data[],1),VLOOKUP(\"LIFETIME,\"&AD$2&\",,\"&$B441&\",\",data[],7),AD$419)","v":25},null,null,null,null,null,null,{"$f":"IF(\"LIFETIME,\"&AK$2&\",,\"&$B441&\",\"=VLOOKUP(\"LIFETIME,\"&AK$2&\",,\"&$B441&\",\",data[],1),VLOOKUP(\"LIFETIME,\"&AK$2&\",,\"&$B441&\",\",data[],7),AK$419)","v":30},null,{"$f":"IF(\"LIFETIME,\"&AM$2&\",,\"&$B441&\",\"=VLOOKUP(\"LIFETIME,\"&AM$2&\",,\"&$B441&\",\",data[],1),VLOOKUP(\"LIFETIME,\"&AM$2&\",,\"&$B441&\",\",data[],7),AM$419)","v":20},null,null,null,null,null,null,null,null,null,null,null,null,null,null,{"$f":"IF(NOT(BB35),0,IF(\"LIFETIME,\"&BB$2&\",,\"&$B441&\",\"=VLOOKUP(\"LIFETIME,\"&BB$2&\",,\"&$B441&\",\",data[],1),VLOOKUP(\"LIFETIME,\"&BB$2&\",,\"&$B441&\",\",data[],7),BB$419))","v":30},null,null,{"$f":"IF(NOT(BE35),0,IF(\"LIFETIME,\"&BE$2&\",,\"&$B441&\",\"=VLOOKUP(\"LIFETIME,\"&BE$2&\",,\"&$B441&\",\",data[],1),VLOOKUP(\"LIFETIME,\"&BE$2&\",,\"&$B441&\",\",data[],7),BE$419))","v":0}]
[null,"ARG-SAJ",null,null,null,null,null,null,null,null,{"$f":"IF(\"LIFETIME,\"&$K36&\",,\"&$B442&\",\"=VLOOKUP(\"LIFETIME,\"&$K36&\",,\"&$B442&\",\",data[],1),VLOOKUP(\"LIFETIME,\"&$K36&\",,\"&$B442&\",\",data[],7),INDEX($E$419:$I$419,$J36))","v":20},null,null,null,null,null,{"$f":"IF(\"LIFETIME,\"&Q$2&\",,\"&$B442&\",\"=VLOOKUP(\"LIFETIME,\"&Q$2&\",,\"&$B442&\",\",data[],1),VLOOKUP(\"LIFETIME,\"&Q$2&\",,\"&$B442&\",\",data[],7),Q$419)","v":20},null,{"$f":"IF(\"LIFETIME,\"&S$2&\",,\"&$B442&\",\"=VLOOKUP(\"LIFETIME,\"&S$2&\",,\"&$B442&\",\",data[],1),VLOOKUP(\"LIFETIME,\"&S$2&\",,\"&$B442&\",\",data[],7),S$419)","v":20},null,null,null,null,{"$f":"IF(\"LIFETIME,\"&X$2&\",,\"&$B442&\",\"=VLOOKUP(\"LIFETIME,\"&X$2&\",,\"&$B442&\",\",data[],1),VLOOKUP(\"LIFETIME,\"&X$2&\",,\"&$B442&\",\",data[],7),X$419)","v":99},null,{"$f":"IF(\"LIFETIME,\"&Z$2&\",,\"&$B442&\",\"=VLOOKUP(\"LIFETIME,\"&Z$2&\",,\"&$B442&\",\",data[],1),VLOOKUP(\"LIFETIME,\"&Z$2&\",,\"&$B442&\",\",data[],7),Z$419)","v":20},null,null,null,{"$f":"IF(\"LIFETIME,\"&AD$2&\",,\"&$B442&\",\"=VLOOKUP(\"LIFETIME,\"&AD$2&\",,\"&$B442&\",\",data[],1),VLOOKUP(\"LIFETIME,\"&AD$2&\",,\"&$B442&\",\",data[],7),AD$419)","v":25},null,null,null,null,null,null,{"$f":"IF(\"LIFETIME,\"&AK$2&\",,\"&$B442&\",\"=VLOOKUP(\"LIFETIME,\"&AK$2&\",,\"&$B442&\",\",data[],1),VLOOKUP(\"LIFETIME,\"&AK$2&\",,\"&$B442&\",\",data[],7),AK$419)","v":30},null,{"$f":"IF(\"LIFETIME,\"&AM$2&\",,\"&$B442&\",\"=VLOOKUP(\"LIFETIME,\"&AM$2&\",,\"&$B442&\",\",data[],1),VLOOKUP(\"LIFETIME,\"&AM$2&\",,\"&$B442&\",\",data[],7),AM$419)","v":20},null,null,null,null,null,null,null,null,null,null,null,null,null,null,{"$f":"IF(NOT(BB36),0,IF(\"LIFETIME,\"&BB$2&\",,\"&$B442&\",\"=VLOOKUP(\"LIFETIME,\"&BB$2&\",,\"&$B442&\",\",data[],1),VLOOKUP(\"LIFETIME,\"&BB$2&\",,\"&$B442&\",\",data[],7),BB$419))","v":30},null,null,{"$f":"IF(NOT(BE36),0,IF(\"LIFETIME,\"&BE$2&\",,\"&$B442&\",\"=VLOOKUP(\"LIFETIME,\"&BE$2&\",,\"&$B442&\",\",data[],1),VLOOKUP(\"LIFETIME,\"&BE$2&\",,\"&$B442&\",\",data[],7),BE$419))","v":0}]
[null,"ARG-SAL",null,null,null,null,null,null,null,null,{"$f":"IF(\"LIFETIME,\"&$K37&\",,\"&$B443&\",\"=VLOOKUP(\"LIFETIME,\"&$K37&\",,\"&$B443&\",\",data[],1),VLOOKUP(\"LIFETIME,\"&$K37&\",,\"&$B443&\",\",data[],7),INDEX($E$419:$I$419,$J37))","v":20},null,null,null,null,null,{"$f":"IF(\"LIFETIME,\"&Q$2&\",,\"&$B443&\",\"=VLOOKUP(\"LIFETIME,\"&Q$2&\",,\"&$B443&\",\",data[],1),VLOOKUP(\"LIFETIME,\"&Q$2&\",,\"&$B443&\",\",data[],7),Q$419)","v":20},null,{"$f":"IF(\"LIFETIME,\"&S$2&\",,\"&$B443&\",\"=VLOOKUP(\"LIFETIME,\"&S$2&\",,\"&$B443&\",\",data[],1),VLOOKUP(\"LIFETIME,\"&S$2&\",,\"&$B443&\",\",data[],7),S$419)","v":20},null,null,null,null,{"$f":"IF(\"LIFETIME,\"&X$2&\",,\"&$B443&\",\"=VLOOKUP(\"LIFETIME,\"&X$2&\",,\"&$B443&\",\",data[],1),VLOOKUP(\"LIFETIME,\"&X$2&\",,\"&$B443&\",\",data[],7),X$419)","v":99},null,{"$f":"IF(\"LIFETIME,\"&Z$2&\",,\"&$B443&\",\"=VLOOKUP(\"LIFETIME,\"&Z$2&\",,\"&$B443&\",\",data[],1),VLOOKUP(\"LIFETIME,\"&Z$2&\",,\"&$B443&\",\",data[],7),Z$419)","v":20},null,null,null,{"$f":"IF(\"LIFETIME,\"&AD$2&\",,\"&$B443&\",\"=VLOOKUP(\"LIFETIME,\"&AD$2&\",,\"&$B443&\",\",data[],1),VLOOKUP(\"LIFETIME,\"&AD$2&\",,\"&$B443&\",\",data[],7),AD$419)","v":25},null,null,null,null,null,null,{"$f":"IF(\"LIFETIME,\"&AK$2&\",,\"&$B443&\",\"=VLOOKUP(\"LIFETIME,\"&AK$2&\",,\"&$B443&\",\",data[],1),VLOOKUP(\"LIFETIME,\"&AK$2&\",,\"&$B443&\",\",data[],7),AK$419)","v":30},null,{"$f":"IF(\"LIFETIME,\"&AM$2&\",,\"&$B443&\",\"=VLOOKUP(\"LIFETIME,\"&AM$2&\",,\"&$B443&\",\",data[],1),VLOOKUP(\"LIFETIME,\"&AM$2&\",,\"&$B443&\",\",data[],7),AM$419)","v":20},null,null,null,null,null,null,null,null,null,null,null,null,null,null,{"$f":"IF(NOT(BB37),0,IF(\"LIFETIME,\"&BB$2&\",,\"&$B443&\",\"=VLOOKUP(\"LIFETIME,\"&BB$2&\",,\"&$B443&\",\",data[],1),VLOOKUP(\"LIFETIME,\"&BB$2&\",,\"&$B443&\",\",data[],7),BB$419))","v":30},null,null,{"$f":"IF(NOT(BE37),0,IF(\"LIFETIME,\"&BE$2&\",,\"&$B443&\",\"=VLOOKUP(\"LIFETIME,\"&BE$2&\",,\"&$B443&\",\",data[],1),VLOOKUP(\"LIFETIME,\"&BE$2&\",,\"&$B443&\",\",data[],7),BE$419))","v":0}]
[null,"ARG-SAT",null,null,null,null,null,null,null,null,{"$f":"IF(\"LIFETIME,\"&$K38&\",,\"&$B444&\",\"=VLOOKUP(\"LIFETIME,\"&$K38&\",,\"&$B444&\",\",data[],1),VLOOKUP(\"LIFETIME,\"&$K38&\",,\"&$B444&\",\",data[],7),INDEX($E$419:$I$419,$J38))","v":20},null,null,null,null,null,{"$f":"IF(\"LIFETIME,\"&Q$2&\",,\"&$B444&\",\"=VLOOKUP(\"LIFETIME,\"&Q$2&\",,\"&$B444&\",\",data[],1),VLOOKUP(\"LIFETIME,\"&Q$2&\",,\"&$B444&\",\",data[],7),Q$419)","v":20},null,{"$f":"IF(\"LIFETIME,\"&S$2&\",,\"&$B444&\",\"=VLOOKUP(\"LIFETIME,\"&S$2&\",,\"&$B444&\",\",data[],1),VLOOKUP(\"LIFETIME,\"&S$2&\",,\"&$B444&\",\",data[],7),S$419)","v":20},null,null,null,null,{"$f":"IF(\"LIFETIME,\"&X$2&\",,\"&$B444&\",\"=VLOOKUP(\"LIFETIME,\"&X$2&\",,\"&$B444&\",\",data[],1),VLOOKUP(\"LIFETIME,\"&X$2&\",,\"&$B444&\",\",data[],7),X$419)","v":99},null,{"$f":"IF(\"LIFETIME,\"&Z$2&\",,\"&$B444&\",\"=VLOOKUP(\"LIFETIME,\"&Z$2&\",,\"&$B444&\",\",data[],1),VLOOKUP(\"LIFETIME,\"&Z$2&\",,\"&$B444&\",\",data[],7),Z$419)","v":20},null,null,null,{"$f":"IF(\"LIFETIME,\"&AD$2&\",,\"&$B444&\",\"=VLOOKUP(\"LIFETIME,\"&AD$2&\",,\"&$B444&\",\",data[],1),VLOOKUP(\"LIFETIME,\"&AD$2&\",,\"&$B444&\",\",data[],7),AD$419)","v":25},null,null,null,null,null,null,{"$f":"IF(\"LIFETIME,\"&AK$2&\",,\"&$B444&\",\"=VLOOKUP(\"LIFETIME,\"&AK$2&\",,\"&$B444&\",\",data[],1),VLOOKUP(\"LIFETIME,\"&AK$2&\",,\"&$B444&\",\",data[],7),AK$419)","v":30},null,{"$f":"IF(\"LIFETIME,\"&AM$2&\",,\"&$B444&\",\"=VLOOKUP(\"LIFETIME,\"&AM$2&\",,\"&$B444&\",\",data[],1),VLOOKUP(\"LIFETIME,\"&AM$2&\",,\"&$B444&\",\",data[],7),AM$419)","v":20},null,null,null,null,null,null,null,null,null,null,null,null,null,null,{"$f":"IF(NOT(BB38),0,IF(\"LIFETIME,\"&BB$2&\",,\"&$B444&\",\"=VLOOKUP(\"LIFETIME,\"&BB$2&\",,\"&$B444&\",\",data[],1),VLOOKUP(\"LIFETIME,\"&BB$2&\",,\"&$B444&\",\",data[],7),BB$419))","v":30},null,null,{"$f":"IF(NOT(BE38),0,IF(\"LIFETIME,\"&BE$2&\",,\"&$B444&\",\"=VLOOKUP(\"LIFETIME,\"&BE$2&\",,\"&$B444&\",\",data[],1),VLOOKUP(\"LIFETIME,\"&BE$2&\",,\"&$B444&\",\",data[],7),BE$419))","v":0}]
[null,"ARG-TUC",null,null,null,null,null,null,null,null,{"$f":"IF(\"LIFETIME,\"&$K39&\",,\"&$B445&\",\"=VLOOKUP(\"LIFETIME,\"&$K39&\",,\"&$B445&\",\",data[],1),VLOOKUP(\"LIFETIME,\"&$K39&\",,\"&$B445&\",\",data[],7),INDEX($E$419:$I$419,$J39))","v":20},null,null,null,null,null,{"$f":"IF(\"LIFETIME,\"&Q$2&\",,\"&$B445&\",\"=VLOOKUP(\"LIFETIME,\"&Q$2&\",,\"&$B445&\",\",data[],1),VLOOKUP(\"LIFETIME,\"&Q$2&\",,\"&$B445&\",\",data[],7),Q$419)","v":20},null,{"$f":"IF(\"LIFETIME,\"&S$2&\",,\"&$B445&\",\"=VLOOKUP(\"LIFETIME,\"&S$2&\",,\"&$B445&\",\",data[],1),VLOOKUP(\"LIFETIME,\"&S$2&\",,\"&$B445&\",\",data[],7),S$419)","v":20},null,null,null,null,{"$f":"IF(\"LIFETIME,\"&X$2&\",,\"&$B445&\",\"=VLOOKUP(\"LIFETIME,\"&X$2&\",,\"&$B445&\",\",data[],1),VLOOKUP(\"LIFETIME,\"&X$2&\",,\"&$B445&\",\",data[],7),X$419)","v":99},null,{"$f":"IF(\"LIFETIME,\"&Z$2&\",,\"&$B445&\",\"=VLOOKUP(\"LIFETIME,\"&Z$2&\",,\"&$B445&\",\",data[],1),VLOOKUP(\"LIFETIME,\"&Z$2&\",,\"&$B445&\",\",data[],7),Z$419)","v":20},null,null,null,{"$f":"IF(\"LIFETIME,\"&AD$2&\",,\"&$B445&\",\"=VLOOKUP(\"LIFETIME,\"&AD$2&\",,\"&$B445&\",\",data[],1),VLOOKUP(\"LIFETIME,\"&AD$2&\",,\"&$B445&\",\",data[],7),AD$419)","v":25},null,null,null,null,null,null,{"$f":"IF(\"LIFETIME,\"&AK$2&\",,\"&$B445&\",\"=VLOOKUP(\"LIFETIME,\"&AK$2&\",,\"&$B445&\",\",data[],1),VLOOKUP(\"LIFETIME,\"&AK$2&\",,\"&$B445&\",\",data[],7),AK$419)","v":30},null,{"$f":"IF(\"LIFETIME,\"&AM$2&\",,\"&$B445&\",\"=VLOOKUP(\"LIFETIME,\"&AM$2&\",,\"&$B445&\",\",data[],1),VLOOKUP(\"LIFETIME,\"&AM$2&\",,\"&$B445&\",\",data[],7),AM$419)","v":20},null,null,null,null,null,null,null,null,null,null,null,null,null,null,{"$f":"IF(NOT(BB39),0,IF(\"LIFETIME,\"&BB$2&\",,\"&$B445&\",\"=VLOOKUP(\"LIFETIME,\"&BB$2&\",,\"&$B445&\",\",data[],1),VLOOKUP(\"LIFETIME,\"&BB$2&\",,\"&$B445&\",\",data[],7),BB$419))","v":30},null,null,{"$f":"IF(NOT(BE39),0,IF(\"LIFETIME,\"&BE$2&\",,\"&$B445&\",\"=VLOOKUP(\"LIFETIME,\"&BE$2&\",,\"&$B445&\",\",data[],1),VLOOKUP(\"LIFETIME,\"&BE$2&\",,\"&$B445&\",\",data[],7),BE$419))","v":0}]
[null,"AUS",null,null,null,null,null,null,null,null,{"$f":"IF(\"LIFETIME,\"&$K40&\",,\"&$B446&\",\"=VLOOKUP(\"LIFETIME,\"&$K40&\",,\"&$B446&\",\",data[],1),VLOOKUP(\"LIFETIME,\"&$K40&\",,\"&$B446&\",\",data[],7),INDEX($E$419:$I$419,$J40))","v":20},null,null,null,null,null,{"$f":"IF(\"LIFETIME,\"&Q$2&\",,\"&$B446&\",\"=VLOOKUP(\"LIFETIME,\"&Q$2&\",,\"&$B446&\",\",data[],1),VLOOKUP(\"LIFETIME,\"&Q$2&\",,\"&$B446&\",\",data[],7),Q$419)","v":20},null,{"$f":"IF(\"LIFETIME,\"&S$2&\",,\"&$B446&\",\"=VLOOKUP(\"LIFETIME,\"&S$2&\",,\"&$B446&\",\",data[],1),VLOOKUP(\"LIFETIME,\"&S$2&\",,\"&$B446&\",\",data[],7),S$419)","v":20},null,null,null,null,{"$f":"IF(\"LIFETIME,\"&X$2&\",,\"&$B446&\",\"=VLOOKUP(\"LIFETIME,\"&X$2&\",,\"&$B446&\",\",data[],1),VLOOKUP(\"LIFETIME,\"&X$2&\",,\"&$B446&\",\",data[],7),X$419)","v":99},null,{"$f":"IF(\"LIFETIME,\"&Z$2&\",,\"&$B446&\",\"=VLOOKUP(\"LIFETIME,\"&Z$2&\",,\"&$B446&\",\",data[],1),VLOOKUP(\"LIFETIME,\"&Z$2&\",,\"&$B446&\",\",data[],7),Z$419)","v":20},null,null,null,{"$f":"IF(\"LIFETIME,\"&AD$2&\",,\"&$B446&\",\"=VLOOKUP(\"LIFETIME,\"&AD$2&\",,\"&$B446&\",\",data[],1),VLOOKUP(\"LIFETIME,\"&AD$2&\",,\"&$B446&\",\",data[],7),AD$419)","v":25},null,null,null,null,null,null,{"$f":"IF(\"LIFETIME,\"&AK$2&\",,\"&$B446&\",\"=VLOOKUP(\"LIFETIME,\"&AK$2&\",,\"&$B446&\",\",data[],1),VLOOKUP(\"LIFETIME,\"&AK$2&\",,\"&$B446&\",\",data[],7),AK$419)","v":30},null,{"$f":"IF(\"LIFETIME,\"&AM$2&\",,\"&$B446&\",\"=VLOOKUP(\"LIFETIME,\"&AM$2&\",,\"&$B446&\",\",data[],1),VLOOKUP(\"LIFETIME,\"&AM$2&\",,\"&$B446&\",\",data[],7),AM$419)","v":20},null,null,null,null,null,null,null,null,null,null,null,null,null,null,{"$f":"IF(NOT(BB40),0,IF(\"LIFETIME,\"&BB$2&\",,\"&$B446&\",\"=VLOOKUP(\"LIFETIME,\"&BB$2&\",,\"&$B446&\",\",data[],1),VLOOKUP(\"LIFETIME,\"&BB$2&\",,\"&$B446&\",\",data[],7),BB$419))","v":30},null,null,{"$f":"IF(NOT(BE40),0,IF(\"LIFETIME,\"&BE$2&\",,\"&$B446&\",\"=VLOOKUP(\"LIFETIME,\"&BE$2&\",,\"&$B446&\",\",data[],1),VLOOKUP(\"LIFETIME,\"&BE$2&\",,\"&$B446&\",\",data[],7),BE$419))","v":0}]
[null,"BRA",null,null,null,null,null,null,null,null,{"$f":"IF(\"LIFETIME,\"&$K41&\",,\"&$B447&\",\"=VLOOKUP(\"LIFETIME,\"&$K41&\",,\"&$B447&\",\",data[],1),VLOOKUP(\"LIFETIME,\"&$K41&\",,\"&$B447&\",\",data[],7),INDEX($E$419:$I$419,$J41))","v":20},null,null,null,null,null,{"$f":"IF(\"LIFETIME,\"&Q$2&\",,\"&$B447&\",\"=VLOOKUP(\"LIFETIME,\"&Q$2&\",,\"&$B447&\",\",data[],1),VLOOKUP(\"LIFETIME,\"&Q$2&\",,\"&$B447&\",\",data[],7),Q$419)","v":20},null,{"$f":"IF(\"LIFETIME,\"&S$2&\",,\"&$B447&\",\"=VLOOKUP(\"LIFETIME,\"&S$2&\",,\"&$B447&\",\",data[],1),VLOOKUP(\"LIFETIME,\"&S$2&\",,\"&$B447&\",\",data[],7),S$419)","v":20},null,null,null,null,{"$f":"IF(\"LIFETIME,\"&X$2&\",,\"&$B447&\",\"=VLOOKUP(\"LIFETIME,\"&X$2&\",,\"&$B447&\",\",data[],1),VLOOKUP(\"LIFETIME,\"&X$2&\",,\"&$B447&\",\",data[],7),X$419)","v":99},null,{"$f":"IF(\"LIFETIME,\"&Z$2&\",,\"&$B447&\",\"=VLOOKUP(\"LIFETIME,\"&Z$2&\",,\"&$B447&\",\",data[],1),VLOOKUP(\"LIFETIME,\"&Z$2&\",,\"&$B447&\",\",data[],7),Z$419)","v":20},null,null,null,{"$f":"IF(\"LIFETIME,\"&AD$2&\",,\"&$B447&\",\"=VLOOKUP(\"LIFETIME,\"&AD$2&\",,\"&$B447&\",\",data[],1),VLOOKUP(\"LIFETIME,\"&AD$2&\",,\"&$B447&\",\",data[],7),AD$419)","v":25},null,null,null,null,null,null,{"$f":"IF(\"LIFETIME,\"&AK$2&\",,\"&$B447&\",\"=VLOOKUP(\"LIFETIME,\"&AK$2&\",,\"&$B447&\",\",data[],1),VLOOKUP(\"LIFETIME,\"&AK$2&\",,\"&$B447&\",\",data[],7),AK$419)","v":30},null,{"$f":"IF(\"LIFETIME,\"&AM$2&\",,\"&$B447&\",\"=VLOOKUP(\"LIFETIME,\"&AM$2&\",,\"&$B447&\",\",data[],1),VLOOKUP(\"LIFETIME,\"&AM$2&\",,\"&$B447&\",\",data[],7),AM$419)","v":20},null,null,null,null,null,null,null,null,null,null,null,null,null,null,{"$f":"IF(NOT(BB41),0,IF(\"LIFETIME,\"&BB$2&\",,\"&$B447&\",\"=VLOOKUP(\"LIFETIME,\"&BB$2&\",,\"&$B447&\",\",data[],1),VLOOKUP(\"LIFETIME,\"&BB$2&\",,\"&$B447&\",\",data[],7),BB$419))","v":30},null,null,{"$f":"IF(NOT(BE41),0,IF(\"LIFETIME,\"&BE$2&\",,\"&$B447&\",\"=VLOOKUP(\"LIFETIME,\"&BE$2&\",,\"&$B447&\",\",data[],1),VLOOKUP(\"LIFETIME,\"&BE$2&\",,\"&$B447&\",\",data[],7),BE$419))","v":0}]
[null,"CHL",null,null,null,null,null,null,null,null,{"$f":"IF(\"LIFETIME,\"&$K42&\",,\"&$B448&\",\"=VLOOKUP(\"LIFETIME,\"&$K42&\",,\"&$B448&\",\",data[],1),VLOOKUP(\"LIFETIME,\"&$K42&\",,\"&$B448&\",\",data[],7),INDEX($E$419:$I$419,$J42))","v":20},null,null,null,null,null,{"$f":"IF(\"LIFETIME,\"&Q$2&\",,\"&$B448&\",\"=VLOOKUP(\"LIFETIME,\"&Q$2&\",,\"&$B448&\",\",data[],1),VLOOKUP(\"LIFETIME,\"&Q$2&\",,\"&$B448&\",\",data[],7),Q$419)","v":20},null,{"$f":"IF(\"LIFETIME,\"&S$2&\",,\"&$B448&\",\"=VLOOKUP(\"LIFETIME,\"&S$2&\",,\"&$B448&\",\",data[],1),VLOOKUP(\"LIFETIME,\"&S$2&\",,\"&$B448&\",\",data[],7),S$419)","v":20},null,null,null,null,{"$f":"IF(\"LIFETIME,\"&X$2&\",,\"&$B448&\",\"=VLOOKUP(\"LIFETIME,\"&X$2&\",,\"&$B448&\",\",data[],1),VLOOKUP(\"LIFETIME,\"&X$2&\",,\"&$B448&\",\",data[],7),X$419)","v":99},null,{"$f":"IF(\"LIFETIME,\"&Z$2&\",,\"&$B448&\",\"=VLOOKUP(\"LIFETIME,\"&Z$2&\",,\"&$B448&\",\",data[],1),VLOOKUP(\"LIFETIME,\"&Z$2&\",,\"&$B448&\",\",data[],7),Z$419)","v":20},null,null,null,{"$f":"IF(\"LIFETIME,\"&AD$2&\",,\"&$B448&\",\"=VLOOKUP(\"LIFETIME,\"&AD$2&\",,\"&$B448&\",\",data[],1),VLOOKUP(\"LIFETIME,\"&AD$2&\",,\"&$B448&\",\",data[],7),AD$419)","v":25},null,null,null,null,null,null,{"$f":"IF(\"LIFETIME,\"&AK$2&\",,\"&$B448&\",\"=VLOOKUP(\"LIFETIME,\"&AK$2&\",,\"&$B448&\",\",data[],1),VLOOKUP(\"LIFETIME,\"&AK$2&\",,\"&$B448&\",\",data[],7),AK$419)","v":30},null,{"$f":"IF(\"LIFETIME,\"&AM$2&\",,\"&$B448&\",\"=VLOOKUP(\"LIFETIME,\"&AM$2&\",,\"&$B448&\",\",data[],1),VLOOKUP(\"LIFETIME,\"&AM$2&\",,\"&$B448&\",\",data[],7),AM$419)","v":20},null,null,null,null,null,null,null,null,null,null,null,null,null,null,{"$f":"IF(NOT(BB42),0,IF(\"LIFETIME,\"&BB$2&\",,\"&$B448&\",\"=VLOOKUP(\"LIFETIME,\"&BB$2&\",,\"&$B448&\",\",data[],1),VLOOKUP(\"LIFETIME,\"&BB$2&\",,\"&$B448&\",\",data[],7),BB$419))","v":30},null,null,{"$f":"IF(NOT(BE42),0,IF(\"LIFETIME,\"&BE$2&\",,\"&$B448&\",\"=VLOOKUP(\"LIFETIME,\"&BE$2&\",,\"&$B448&\",\",data[],1),VLOOKUP(\"LIFETIME,\"&BE$2&\",,\"&$B448&\",\",data[],7),BE$419))","v":0}]
[null,"CHN",null,null,null,null,null,null,null,null,{"$f":"IF(\"LIFETIME,\"&$K43&\",,\"&$B449&\",\"=VLOOKUP(\"LIFETIME,\"&$K43&\",,\"&$B449&\",\",data[],1),VLOOKUP(\"LIFETIME,\"&$K43&\",,\"&$B449&\",\",data[],7),INDEX($E$419:$I$419,$J43))","v":20},null,null,null,null,null,{"$f":"IF(\"LIFETIME,\"&Q$2&\",,\"&$B449&\",\"=VLOOKUP(\"LIFETIME,\"&Q$2&\",,\"&$B449&\",\",data[],1),VLOOKUP(\"LIFETIME,\"&Q$2&\",,\"&$B449&\",\",data[],7),Q$419)","v":20},null,{"$f":"IF(\"LIFETIME,\"&S$2&\",,\"&$B449&\",\"=VLOOKUP(\"LIFETIME,\"&S$2&\",,\"&$B449&\",\",data[],1),VLOOKUP(\"LIFETIME,\"&S$2&\",,\"&$B449&\",\",data[],7),S$419)","v":20},null,null,null,null,{"$f":"IF(\"LIFETIME,\"&X$2&\",,\"&$B449&\",\"=VLOOKUP(\"LIFETIME,\"&X$2&\",,\"&$B449&\",\",data[],1),VLOOKUP(\"LIFETIME,\"&X$2&\",,\"&$B449&\",\",data[],7),X$419)","v":99},null,{"$f":"IF(\"LIFETIME,\"&Z$2&\",,\"&$B449&\",\"=VLOOKUP(\"LIFETIME,\"&Z$2&\",,\"&$B449&\",\",data[],1),VLOOKUP(\"LIFETIME,\"&Z$2&\",,\"&$B449&\",\",data[],7),Z$419)","v":20},null,null,null,{"$f":"IF(\"LIFETIME,\"&AD$2&\",,\"&$B449&\",\"=VLOOKUP(\"LIFETIME,\"&AD$2&\",,\"&$B449&\",\",data[],1),VLOOKUP(\"LIFETIME,\"&AD$2&\",,\"&$B449&\",\",data[],7),AD$419)","v":25},null,null,null,null,null,null,{"$f":"IF(\"LIFETIME,\"&AK$2&\",,\"&$B449&\",\"=VLOOKUP(\"LIFETIME,\"&AK$2&\",,\"&$B449&\",\",data[],1),VLOOKUP(\"LIFETIME,\"&AK$2&\",,\"&$B449&\",\",data[],7),AK$419)","v":30},null,{"$f":"IF(\"LIFETIME,\"&AM$2&\",,\"&$B449&\",\"=VLOOKUP(\"LIFETIME,\"&AM$2&\",,\"&$B449&\",\",data[],1),VLOOKUP(\"LIFETIME,\"&AM$2&\",,\"&$B449&\",\",data[],7),AM$419)","v":20},null,null,null,null,null,null,null,null,null,null,null,null,null,null,{"$f":"IF(NOT(BB43),0,IF(\"LIFETIME,\"&BB$2&\",,\"&$B449&\",\"=VLOOKUP(\"LIFETIME,\"&BB$2&\",,\"&$B449&\",\",data[],1),VLOOKUP(\"LIFETIME,\"&BB$2&\",,\"&$B449&\",\",data[],7),BB$419))","v":30},null,null,{"$f":"IF(NOT(BE43),0,IF(\"LIFETIME,\"&BE$2&\",,\"&$B449&\",\"=VLOOKUP(\"LIFETIME,\"&BE$2&\",,\"&$B449&\",\",data[],1),VLOOKUP(\"LIFETIME,\"&BE$2&\",,\"&$B449&\",\",data[],7),BE$419))","v":0}]
[null,"COL",null,null,null,null,null,null,null,null,{"$f":"IF(\"LIFETIME,\"&$K44&\",,\"&$B450&\",\"=VLOOKUP(\"LIFETIME,\"&$K44&\",,\"&$B450&\",\",data[],1),VLOOKUP(\"LIFETIME,\"&$K44&\",,\"&$B450&\",\",data[],7),INDEX($E$419:$I$419,$J44))","v":20},null,null,null,null,null,{"$f":"IF(\"LIFETIME,\"&Q$2&\",,\"&$B450&\",\"=VLOOKUP(\"LIFETIME,\"&Q$2&\",,\"&$B450&\",\",data[],1),VLOOKUP(\"LIFETIME,\"&Q$2&\",,\"&$B450&\",\",data[],7),Q$419)","v":20},null,{"$f":"IF(\"LIFETIME,\"&S$2&\",,\"&$B450&\",\"=VLOOKUP(\"LIFETIME,\"&S$2&\",,\"&$B450&\",\",data[],1),VLOOKUP(\"LIFETIME,\"&S$2&\",,\"&$B450&\",\",data[],7),S$419)","v":20},null,null,null,null,{"$f":"IF(\"LIFETIME,\"&X$2&\",,\"&$B450&\",\"=VLOOKUP(\"LIFETIME,\"&X$2&\",,\"&$B450&\",\",data[],1),VLOOKUP(\"LIFETIME,\"&X$2&\",,\"&$B450&\",\",data[],7),X$419)","v":99},null,{"$f":"IF(\"LIFETIME,\"&Z$2&\",,\"&$B450&\",\"=VLOOKUP(\"LIFETIME,\"&Z$2&\",,\"&$B450&\",\",data[],1),VLOOKUP(\"LIFETIME,\"&Z$2&\",,\"&$B450&\",\",data[],7),Z$419)","v":20},null,null,null,{"$f":"IF(\"LIFETIME,\"&AD$2&\",,\"&$B450&\",\"=VLOOKUP(\"LIFETIME,\"&AD$2&\",,\"&$B450&\",\",data[],1),VLOOKUP(\"LIFETIME,\"&AD$2&\",,\"&$B450&\",\",data[],7),AD$419)","v":25},null,null,null,null,null,null,{"$f":"IF(\"LIFETIME,\"&AK$2&\",,\"&$B450&\",\"=VLOOKUP(\"LIFETIME,\"&AK$2&\",,\"&$B450&\",\",data[],1),VLOOKUP(\"LIFETIME,\"&AK$2&\",,\"&$B450&\",\",data[],7),AK$419)","v":30},null,{"$f":"IF(\"LIFETIME,\"&AM$2&\",,\"&$B450&\",\"=VLOOKUP(\"LIFETIME,\"&AM$2&\",,\"&$B450&\",\",data[],1),VLOOKUP(\"LIFETIME,\"&AM$2&\",,\"&$B450&\",\",data[],7),AM$419)","v":20},null,null,null,null,null,null,null,null,null,null,null,null,null,null,{"$f":"IF(NOT(BB44),0,IF(\"LIFETIME,\"&BB$2&\",,\"&$B450&\",\"=VLOOKUP(\"LIFETIME,\"&BB$2&\",,\"&$B450&\",\",data[],1),VLOOKUP(\"LIFETIME,\"&BB$2&\",,\"&$B450&\",\",data[],7),BB$419))","v":30},null,null,{"$f":"IF(NOT(BE44),0,IF(\"LIFETIME,\"&BE$2&\",,\"&$B450&\",\"=VLOOKUP(\"LIFETIME,\"&BE$2&\",,\"&$B450&\",\",data[],1),VLOOKUP(\"LIFETIME,\"&BE$2&\",,\"&$B450&\",\",data[],7),BE$419))","v":0}]
[null,"CRI",null,null,null,null,null,null,null,null,{"$f":"IF(\"LIFETIME,\"&$K45&\",,\"&$B451&\",\"=VLOOKUP(\"LIFETIME,\"&$K45&\",,\"&$B451&\",\",data[],1),VLOOKUP(\"LIFETIME,\"&$K45&\",,\"&$B451&\",\",data[],7),INDEX($E$419:$I$419,$J45))","v":20},null,null,null,null,null,{"$f":"IF(\"LIFETIME,\"&Q$2&\",,\"&$B451&\",\"=VLOOKUP(\"LIFETIME,\"&Q$2&\",,\"&$B451&\",\",data[],1),VLOOKUP(\"LIFETIME,\"&Q$2&\",,\"&$B451&\",\",data[],7),Q$419)","v":20},null,{"$f":"IF(\"LIFETIME,\"&S$2&\",,\"&$B451&\",\"=VLOOKUP(\"LIFETIME,\"&S$2&\",,\"&$B451&\",\",data[],1),VLOOKUP(\"LIFETIME,\"&S$2&\",,\"&$B451&\",\",data[],7),S$419)","v":20},null,null,null,null,{"$f":"IF(\"LIFETIME,\"&X$2&\",,\"&$B451&\",\"=VLOOKUP(\"LIFETIME,\"&X$2&\",,\"&$B451&\",\",data[],1),VLOOKUP(\"LIFETIME,\"&X$2&\",,\"&$B451&\",\",data[],7),X$419)","v":99},null,{"$f":"IF(\"LIFETIME,\"&Z$2&\",,\"&$B451&\",\"=VLOOKUP(\"LIFETIME,\"&Z$2&\",,\"&$B451&\",\",data[],1),VLOOKUP(\"LIFETIME,\"&Z$2&\",,\"&$B451&\",\",data[],7),Z$419)","v":20},null,null,null,{"$f":"IF(\"LIFETIME,\"&AD$2&\",,\"&$B451&\",\"=VLOOKUP(\"LIFETIME,\"&AD$2&\",,\"&$B451&\",\",data[],1),VLOOKUP(\"LIFETIME,\"&AD$2&\",,\"&$B451&\",\",data[],7),AD$419)","v":25},null,null,null,null,null,null,{"$f":"IF(\"LIFETIME,\"&AK$2&\",,\"&$B451&\",\"=VLOOKUP(\"LIFETIME,\"&AK$2&\",,\"&$B451&\",\",data[],1),VLOOKUP(\"LIFETIME,\"&AK$2&\",,\"&$B451&\",\",data[],7),AK$419)","v":30},null,{"$f":"IF(\"LIFETIME,\"&AM$2&\",,\"&$B451&\",\"=VLOOKUP(\"LIFETIME,\"&AM$2&\",,\"&$B451&\",\",data[],1),VLOOKUP(\"LIFETIME,\"&AM$2&\",,\"&$B451&\",\",data[],7),AM$419)","v":20},null,null,null,null,null,null,null,null,null,null,null,null,null,null,{"$f":"IF(NOT(BB45),0,IF(\"LIFETIME,\"&BB$2&\",,\"&$B451&\",\"=VLOOKUP(\"LIFETIME,\"&BB$2&\",,\"&$B451&\",\",data[],1),VLOOKUP(\"LIFETIME,\"&BB$2&\",,\"&$B451&\",\",data[],7),BB$419))","v":30},null,null,{"$f":"IF(NOT(BE45),0,IF(\"LIFETIME,\"&BE$2&\",,\"&$B451&\",\"=VLOOKUP(\"LIFETIME,\"&BE$2&\",,\"&$B451&\",\",data[],1),VLOOKUP(\"LIFETIME,\"&BE$2&\",,\"&$B451&\",\",data[],7),BE$419))","v":0}]
[null,"DNK",null,null,null,null,null,null,null,null,{"$f":"IF(\"LIFETIME,\"&$K46&\",,\"&$B452&\",\"=VLOOKUP(\"LIFETIME,\"&$K46&\",,\"&$B452&\",\",data[],1),VLOOKUP(\"LIFETIME,\"&$K46&\",,\"&$B452&\",\",data[],7),INDEX($E$419:$I$419,$J46))","v":20},null,null,null,null,null,{"$f":"IF(\"LIFETIME,\"&Q$2&\",,\"&$B452&\",\"=VLOOKUP(\"LIFETIME,\"&Q$2&\",,\"&$B452&\",\",data[],1),VLOOKUP(\"LIFETIME,\"&Q$2&\",,\"&$B452&\",\",data[],7),Q$419)","v":20},null,{"$f":"IF(\"LIFETIME,\"&S$2&\",,\"&$B452&\",\"=VLOOKUP(\"LIFETIME,\"&S$2&\",,\"&$B452&\",\",data[],1),VLOOKUP(\"LIFETIME,\"&S$2&\",,\"&$B452&\",\",data[],7),S$419)","v":20},null,null,null,null,{"$f":"IF(\"LIFETIME,\"&X$2&\",,\"&$B452&\",\"=VLOOKUP(\"LIFETIME,\"&X$2&\",,\"&$B452&\",\",data[],1),VLOOKUP(\"LIFETIME,\"&X$2&\",,\"&$B452&\",\",data[],7),X$419)","v":99},null,{"$f":"IF(\"LIFETIME,\"&Z$2&\",,\"&$B452&\",\"=VLOOKUP(\"LIFETIME,\"&Z$2&\",,\"&$B452&\",\",data[],1),VLOOKUP(\"LIFETIME,\"&Z$2&\",,\"&$B452&\",\",data[],7),Z$419)","v":20},null,null,null,{"$f":"IF(\"LIFETIME,\"&AD$2&\",,\"&$B452&\",\"=VLOOKUP(\"LIFETIME,\"&AD$2&\",,\"&$B452&\",\",data[],1),VLOOKUP(\"LIFETIME,\"&AD$2&\",,\"&$B452&\",\",data[],7),AD$419)","v":25},null,null,null,null,null,null,{"$f":"IF(\"LIFETIME,\"&AK$2&\",,\"&$B452&\",\"=VLOOKUP(\"LIFETIME,\"&AK$2&\",,\"&$B452&\",\",data[],1),VLOOKUP(\"LIFETIME,\"&AK$2&\",,\"&$B452&\",\",data[],7),AK$419)","v":30},null,{"$f":"IF(\"LIFETIME,\"&AM$2&\",,\"&$B452&\",\"=VLOOKUP(\"LIFETIME,\"&AM$2&\",,\"&$B452&\",\",data[],1),VLOOKUP(\"LIFETIME,\"&AM$2&\",,\"&$B452&\",\",data[],7),AM$419)","v":20},null,null,null,null,null,null,null,null,null,null,null,null,null,null,{"$f":"IF(NOT(BB46),0,IF(\"LIFETIME,\"&BB$2&\",,\"&$B452&\",\"=VLOOKUP(\"LIFETIME,\"&BB$2&\",,\"&$B452&\",\",data[],1),VLOOKUP(\"LIFETIME,\"&BB$2&\",,\"&$B452&\",\",data[],7),BB$419))","v":0},null,null,{"$f":"IF(NOT(BE46),0,IF(\"LIFETIME,\"&BE$2&\",,\"&$B452&\",\"=VLOOKUP(\"LIFETIME,\"&BE$2&\",,\"&$B452&\",\",data[],1),VLOOKUP(\"LIFETIME,\"&BE$2&\",,\"&$B452&\",\",data[],7),BE$419))","v":0}]
[null,"DZA",null,null,null,null,null,null,null,null,{"$f":"IF(\"LIFETIME,\"&$K47&\",,\"&$B453&\",\"=VLOOKUP(\"LIFETIME,\"&$K47&\",,\"&$B453&\",\",data[],1),VLOOKUP(\"LIFETIME,\"&$K47&\",,\"&$B453&\",\",data[],7),INDEX($E$419:$I$419,$J47))","v":20},null,null,null,null,null,{"$f":"IF(\"LIFETIME,\"&Q$2&\",,\"&$B453&\",\"=VLOOKUP(\"LIFETIME,\"&Q$2&\",,\"&$B453&\",\",data[],1),VLOOKUP(\"LIFETIME,\"&Q$2&\",,\"&$B453&\",\",data[],7),Q$419)","v":20},null,{"$f":"IF(\"LIFETIME,\"&S$2&\",,\"&$B453&\",\"=VLOOKUP(\"LIFETIME,\"&S$2&\",,\"&$B453&\",\",data[],1),VLOOKUP(\"LIFETIME,\"&S$2&\",,\"&$B453&\",\",data[],7),S$419)","v":20},null,null,null,null,{"$f":"IF(\"LIFETIME,\"&X$2&\",,\"&$B453&\",\"=VLOOKUP(\"LIFETIME,\"&X$2&\",,\"&$B453&\",\",data[],1),VLOOKUP(\"LIFETIME,\"&X$2&\",,\"&$B453&\",\",data[],7),X$419)","v":99},null,{"$f":"IF(\"LIFETIME,\"&Z$2&\",,\"&$B453&\",\"=VLOOKUP(\"LIFETIME,\"&Z$2&\",,\"&$B453&\",\",data[],1),VLOOKUP(\"LIFETIME,\"&Z$2&\",,\"&$B453&\",\",data[],7),Z$419)","v":20},null,null,null,{"$f":"IF(\"LIFETIME,\"&AD$2&\",,\"&$B453&\",\"=VLOOKUP(\"LIFETIME,\"&AD$2&\",,\"&$B453&\",\",data[],1),VLOOKUP(\"LIFETIME,\"&AD$2&\",,\"&$B453&\",\",data[],7),AD$419)","v":25},null,null,null,null,null,null,{"$f":"IF(\"LIFETIME,\"&AK$2&\",,\"&$B453&\",\"=VLOOKUP(\"LIFETIME,\"&AK$2&\",,\"&$B453&\",\",data[],1),VLOOKUP(\"LIFETIME,\"&AK$2&\",,\"&$B453&\",\",data[],7),AK$419)","v":30},null,{"$f":"IF(\"LIFETIME,\"&AM$2&\",,\"&$B453&\",\"=VLOOKUP(\"LIFETIME,\"&AM$2&\",,\"&$B453&\",\",data[],1),VLOOKUP(\"LIFETIME,\"&AM$2&\",,\"&$B453&\",\",data[],7),AM$419)","v":20},null,null,null,null,null,null,null,null,null,null,null,null,null,null,{"$f":"IF(NOT(BB47),0,IF(\"LIFETIME,\"&BB$2&\",,\"&$B453&\",\"=VLOOKUP(\"LIFETIME,\"&BB$2&\",,\"&$B453&\",\",data[],1),VLOOKUP(\"LIFETIME,\"&BB$2&\",,\"&$B453&\",\",data[],7),BB$419))","v":0},null,null,{"$f":"IF(NOT(BE47),0,IF(\"LIFETIME,\"&BE$2&\",,\"&$B453&\",\"=VLOOKUP(\"LIFETIME,\"&BE$2&\",,\"&$B453&\",\",data[],1),VLOOKUP(\"LIFETIME,\"&BE$2&\",,\"&$B453&\",\",data[],7),BE$419))","v":0}]
[null,"EGY",null,null,null,null,null,null,null,null,{"$f":"IF(\"LIFETIME,\"&$K48&\",,\"&$B454&\",\"=VLOOKUP(\"LIFETIME,\"&$K48&\",,\"&$B454&\",\",data[],1),VLOOKUP(\"LIFETIME,\"&$K48&\",,\"&$B454&\",\",data[],7),INDEX($E$419:$I$419,$J48))","v":20},null,null,null,null,null,{"$f":"IF(\"LIFETIME,\"&Q$2&\",,\"&$B454&\",\"=VLOOKUP(\"LIFETIME,\"&Q$2&\",,\"&$B454&\",\",data[],1),VLOOKUP(\"LIFETIME,\"&Q$2&\",,\"&$B454&\",\",data[],7),Q$419)","v":20},null,{"$f":"IF(\"LIFETIME,\"&S$2&\",,\"&$B454&\",\"=VLOOKUP(\"LIFETIME,\"&S$2&\",,\"&$B454&\",\",data[],1),VLOOKUP(\"LIFETIME,\"&S$2&\",,\"&$B454&\",\",data[],7),S$419)","v":20},null,null,null,null,{"$f":"IF(\"LIFETIME,\"&X$2&\",,\"&$B454&\",\"=VLOOKUP(\"LIFETIME,\"&X$2&\",,\"&$B454&\",\",data[],1),VLOOKUP(\"LIFETIME,\"&X$2&\",,\"&$B454&\",\",data[],7),X$419)","v":99},null,{"$f":"IF(\"LIFETIME,\"&Z$2&\",,\"&$B454&\",\"=VLOOKUP(\"LIFETIME,\"&Z$2&\",,\"&$B454&\",\",data[],1),VLOOKUP(\"LIFETIME,\"&Z$2&\",,\"&$B454&\",\",data[],7),Z$419)","v":20},null,null,null,{"$f":"IF(\"LIFETIME,\"&AD$2&\",,\"&$B454&\",\"=VLOOKUP(\"LIFETIME,\"&AD$2&\",,\"&$B454&\",\",data[],1),VLOOKUP(\"LIFETIME,\"&AD$2&\",,\"&$B454&\",\",data[],7),AD$419)","v":25},null,null,null,null,null,null,{"$f":"IF(\"LIFETIME,\"&AK$2&\",,\"&$B454&\",\"=VLOOKUP(\"LIFETIME,\"&AK$2&\",,\"&$B454&\",\",data[],1),VLOOKUP(\"LIFETIME,\"&AK$2&\",,\"&$B454&\",\",data[],7),AK$419)","v":30},null,{"$f":"IF(\"LIFETIME,\"&AM$2&\",,\"&$B454&\",\"=VLOOKUP(\"LIFETIME,\"&AM$2&\",,\"&$B454&\",\",data[],1),VLOOKUP(\"LIFETIME,\"&AM$2&\",,\"&$B454&\",\",data[],7),AM$419)","v":20},null,null,null,null,null,null,null,null,null,null,null,null,null,null,{"$f":"IF(NOT(BB48),0,IF(\"LIFETIME,\"&BB$2&\",,\"&$B454&\",\"=VLOOKUP(\"LIFETIME,\"&BB$2&\",,\"&$B454&\",\",data[],1),VLOOKUP(\"LIFETIME,\"&BB$2&\",,\"&$B454&\",\",data[],7),BB$419))","v":0},null,null,{"$f":"IF(NOT(BE48),0,IF(\"LIFETIME,\"&BE$2&\",,\"&$B454&\",\"=VLOOKUP(\"LIFETIME,\"&BE$2&\",,\"&$B454&\",\",data[],1),VLOOKUP(\"LIFETIME,\"&BE$2&\",,\"&$B454&\",\",data[],7),BE$419))","v":0}]
[null,"ESP",null,null,null,null,null,null,null,null,{"$f":"IF(\"LIFETIME,\"&$K49&\",,\"&$B455&\",\"=VLOOKUP(\"LIFETIME,\"&$K49&\",,\"&$B455&\",\",data[],1),VLOOKUP(\"LIFETIME,\"&$K49&\",,\"&$B455&\",\",data[],7),INDEX($E$419:$I$419,$J49))","v":20},null,null,null,null,null,{"$f":"IF(\"LIFETIME,\"&Q$2&\",,\"&$B455&\",\"=VLOOKUP(\"LIFETIME,\"&Q$2&\",,\"&$B455&\",\",data[],1),VLOOKUP(\"LIFETIME,\"&Q$2&\",,\"&$B455&\",\",data[],7),Q$419)","v":20},null,{"$f":"IF(\"LIFETIME,\"&S$2&\",,\"&$B455&\",\"=VLOOKUP(\"LIFETIME,\"&S$2&\",,\"&$B455&\",\",data[],1),VLOOKUP(\"LIFETIME,\"&S$2&\",,\"&$B455&\",\",data[],7),S$419)","v":20},null,null,null,null,{"$f":"IF(\"LIFETIME,\"&X$2&\",,\"&$B455&\",\"=VLOOKUP(\"LIFETIME,\"&X$2&\",,\"&$B455&\",\",data[],1),VLOOKUP(\"LIFETIME,\"&X$2&\",,\"&$B455&\",\",data[],7),X$419)","v":99},null,{"$f":"IF(\"LIFETIME,\"&Z$2&\",,\"&$B455&\",\"=VLOOKUP(\"LIFETIME,\"&Z$2&\",,\"&$B455&\",\",data[],1),VLOOKUP(\"LIFETIME,\"&Z$2&\",,\"&$B455&\",\",data[],7),Z$419)","v":20},null,null,null,{"$f":"IF(\"LIFETIME,\"&AD$2&\",,\"&$B455&\",\"=VLOOKUP(\"LIFETIME,\"&AD$2&\",,\"&$B455&\",\",data[],1),VLOOKUP(\"LIFETIME,\"&AD$2&\",,\"&$B455&\",\",data[],7),AD$419)","v":25},null,null,null,null,null,null,{"$f":"IF(\"LIFETIME,\"&AK$2&\",,\"&$B455&\",\"=VLOOKUP(\"LIFETIME,\"&AK$2&\",,\"&$B455&\",\",data[],1),VLOOKUP(\"LIFETIME,\"&AK$2&\",,\"&$B455&\",\",data[],7),AK$419)","v":30},null,{"$f":"IF(\"LIFETIME,\"&AM$2&\",,\"&$B455&\",\"=VLOOKUP(\"LIFETIME,\"&AM$2&\",,\"&$B455&\",\",data[],1),VLOOKUP(\"LIFETIME,\"&AM$2&\",,\"&$B455&\",\",data[],7),AM$419)","v":20},null,null,null,null,null,null,null,null,null,null,null,null,null,null,{"$f":"IF(NOT(BB49),0,IF(\"LIFETIME,\"&BB$2&\",,\"&$B455&\",\"=VLOOKUP(\"LIFETIME,\"&BB$2&\",,\"&$B455&\",\",data[],1),VLOOKUP(\"LIFETIME,\"&BB$2&\",,\"&$B455&\",\",data[],7),BB$419))","v":0},null,null,{"$f":"IF(NOT(BE49),0,IF(\"LIFETIME,\"&BE$2&\",,\"&$B455&\",\"=VLOOKUP(\"LIFETIME,\"&BE$2&\",,\"&$B455&\",\",data[],1),VLOOKUP(\"LIFETIME,\"&BE$2&\",,\"&$B455&\",\",data[],7),BE$419))","v":0}]
[null,"IDN",null,null,null,null,null,null,null,null,{"$f":"IF(\"LIFETIME,\"&$K50&\",,\"&$B456&\",\"=VLOOKUP(\"LIFETIME,\"&$K50&\",,\"&$B456&\",\",data[],1),VLOOKUP(\"LIFETIME,\"&$K50&\",,\"&$B456&\",\",data[],7),INDEX($E$419:$I$419,$J50))","v":20},null,null,null,null,null,{"$f":"IF(\"LIFETIME,\"&Q$2&\",,\"&$B456&\",\"=VLOOKUP(\"LIFETIME,\"&Q$2&\",,\"&$B456&\",\",data[],1),VLOOKUP(\"LIFETIME,\"&Q$2&\",,\"&$B456&\",\",data[],7),Q$419)","v":20},null,{"$f":"IF(\"LIFETIME,\"&S$2&\",,\"&$B456&\",\"=VLOOKUP(\"LIFETIME,\"&S$2&\",,\"&$B456&\",\",data[],1),VLOOKUP(\"LIFETIME,\"&S$2&\",,\"&$B456&\",\",data[],7),S$419)","v":20},null,null,null,null,{"$f":"IF(\"LIFETIME,\"&X$2&\",,\"&$B456&\",\"=VLOOKUP(\"LIFETIME,\"&X$2&\",,\"&$B456&\",\",data[],1),VLOOKUP(\"LIFETIME,\"&X$2&\",,\"&$B456&\",\",data[],7),X$419)","v":99},null,{"$f":"IF(\"LIFETIME,\"&Z$2&\",,\"&$B456&\",\"=VLOOKUP(\"LIFETIME,\"&Z$2&\",,\"&$B456&\",\",data[],1),VLOOKUP(\"LIFETIME,\"&Z$2&\",,\"&$B456&\",\",data[],7),Z$419)","v":20},null,null,null,{"$f":"IF(\"LIFETIME,\"&AD$2&\",,\"&$B456&\",\"=VLOOKUP(\"LIFETIME,\"&AD$2&\",,\"&$B456&\",\",data[],1),VLOOKUP(\"LIFETIME,\"&AD$2&\",,\"&$B456&\",\",data[],7),AD$419)","v":25},null,null,null,null,null,null,{"$f":"IF(\"LIFETIME,\"&AK$2&\",,\"&$B456&\",\"=VLOOKUP(\"LIFETIME,\"&AK$2&\",,\"&$B456&\",\",data[],1),VLOOKUP(\"LIFETIME,\"&AK$2&\",,\"&$B456&\",\",data[],7),AK$419)","v":30},null,{"$f":"IF(\"LIFETIME,\"&AM$2&\",,\"&$B456&\",\"=VLOOKUP(\"LIFETIME,\"&AM$2&\",,\"&$B456&\",\",data[],1),VLOOKUP(\"LIFETIME,\"&AM$2&\",,\"&$B456&\",\",data[],7),AM$419)","v":20},null,null,null,null,null,null,null,null,null,null,null,null,null,null,{"$f":"IF(NOT(BB50),0,IF(\"LIFETIME,\"&BB$2&\",,\"&$B456&\",\"=VLOOKUP(\"LIFETIME,\"&BB$2&\",,\"&$B456&\",\",data[],1),VLOOKUP(\"LIFETIME,\"&BB$2&\",,\"&$B456&\",\",data[],7),BB$419))","v":30},null,null,{"$f":"IF(NOT(BE50),0,IF(\"LIFETIME,\"&BE$2&\",,\"&$B456&\",\"=VLOOKUP(\"LIFETIME,\"&BE$2&\",,\"&$B456&\",\",data[],1),VLOOKUP(\"LIFETIME,\"&BE$2&\",,\"&$B456&\",\",data[],7),BE$419))","v":0}]
[null,"IND",null,null,null,null,null,null,null,null,{"$f":"IF(\"LIFETIME,\"&$K51&\",,\"&$B457&\",\"=VLOOKUP(\"LIFETIME,\"&$K51&\",,\"&$B457&\",\",data[],1),VLOOKUP(\"LIFETIME,\"&$K51&\",,\"&$B457&\",\",data[],7),INDEX($E$419:$I$419,$J51))","v":20},null,null,null,null,null,{"$f":"IF(\"LIFETIME,\"&Q$2&\",,\"&$B457&\",\"=VLOOKUP(\"LIFETIME,\"&Q$2&\",,\"&$B457&\",\",data[],1),VLOOKUP(\"LIFETIME,\"&Q$2&\",,\"&$B457&\",\",data[],7),Q$419)","v":20},null,{"$f":"IF(\"LIFETIME,\"&S$2&\",,\"&$B457&\",\"=VLOOKUP(\"LIFETIME,\"&S$2&\",,\"&$B457&\",\",data[],1),VLOOKUP(\"LIFETIME,\"&S$2&\",,\"&$B457&\",\",data[],7),S$419)","v":20},null,null,null,null,{"$f":"IF(\"LIFETIME,\"&X$2&\",,\"&$B457&\",\"=VLOOKUP(\"LIFETIME,\"&X$2&\",,\"&$B457&\",\",data[],1),VLOOKUP(\"LIFETIME,\"&X$2&\",,\"&$B457&\",\",data[],7),X$419)","v":99},null,{"$f":"IF(\"LIFETIME,\"&Z$2&\",,\"&$B457&\",\"=VLOOKUP(\"LIFETIME,\"&Z$2&\",,\"&$B457&\",\",data[],1),VLOOKUP(\"LIFETIME,\"&Z$2&\",,\"&$B457&\",\",data[],7),Z$419)","v":20},null,null,null,{"$f":"IF(\"LIFETIME,\"&AD$2&\",,\"&$B457&\",\"=VLOOKUP(\"LIFETIME,\"&AD$2&\",,\"&$B457&\",\",data[],1),VLOOKUP(\"LIFETIME,\"&AD$2&\",,\"&$B457&\",\",data[],7),AD$419)","v":25},null,null,null,null,null,null,{"$f":"IF(\"LIFETIME,\"&AK$2&\",,\"&$B457&\",\"=VLOOKUP(\"LIFETIME,\"&AK$2&\",,\"&$B457&\",\",data[],1),VLOOKUP(\"LIFETIME,\"&AK$2&\",,\"&$B457&\",\",data[],7),AK$419)","v":30},null,{"$f":"IF(\"LIFETIME,\"&AM$2&\",,\"&$B457&\",\"=VLOOKUP(\"LIFETIME,\"&AM$2&\",,\"&$B457&\",\",data[],1),VLOOKUP(\"LIFETIME,\"&AM$2&\",,\"&$B457&\",\",data[],7),AM$419)","v":20},null,null,null,null,null,null,null,null,null,null,null,null,null,null,{"$f":"IF(NOT(BB51),0,IF(\"LIFETIME,\"&BB$2&\",,\"&$B457&\",\"=VLOOKUP(\"LIFETIME,\"&BB$2&\",,\"&$B457&\",\",data[],1),VLOOKUP(\"LIFETIME,\"&BB$2&\",,\"&$B457&\",\",data[],7),BB$419))","v":30},null,null,{"$f":"IF(NOT(BE51),0,IF(\"LIFETIME,\"&BE$2&\",,\"&$B457&\",\"=VLOOKUP(\"LIFETIME,\"&BE$2&\",,\"&$B457&\",\",data[],1),VLOOKUP(\"LIFETIME,\"&BE$2&\",,\"&$B457&\",\",data[],7),BE$419))","v":0}]
[null,"JOR",null,null,null,null,null,null,null,null,{"$f":"IF(\"LIFETIME,\"&$K52&\",,\"&$B458&\",\"=VLOOKUP(\"LIFETIME,\"&$K52&\",,\"&$B458&\",\",data[],1),VLOOKUP(\"LIFETIME,\"&$K52&\",,\"&$B458&\",\",data[],7),INDEX($E$419:$I$419,$J52))","v":20},null,null,null,null,null,{"$f":"IF(\"LIFETIME,\"&Q$2&\",,\"&$B458&\",\"=VLOOKUP(\"LIFETIME,\"&Q$2&\",,\"&$B458&\",\",data[],1),VLOOKUP(\"LIFETIME,\"&Q$2&\",,\"&$B458&\",\",data[],7),Q$419)","v":20},null,{"$f":"IF(\"LIFETIME,\"&S$2&\",,\"&$B458&\",\"=VLOOKUP(\"LIFETIME,\"&S$2&\",,\"&$B458&\",\",data[],1),VLOOKUP(\"LIFETIME,\"&S$2&\",,\"&$B458&\",\",data[],7),S$419)","v":20},null,null,null,null,{"$f":"IF(\"LIFETIME,\"&X$2&\",,\"&$B458&\",\"=VLOOKUP(\"LIFETIME,\"&X$2&\",,\"&$B458&\",\",data[],1),VLOOKUP(\"LIFETIME,\"&X$2&\",,\"&$B458&\",\",data[],7),X$419)","v":99},null,{"$f":"IF(\"LIFETIME,\"&Z$2&\",,\"&$B458&\",\"=VLOOKUP(\"LIFETIME,\"&Z$2&\",,\"&$B458&\",\",data[],1),VLOOKUP(\"LIFETIME,\"&Z$2&\",,\"&$B458&\",\",data[],7),Z$419)","v":20},null,null,null,{"$f":"IF(\"LIFETIME,\"&AD$2&\",,\"&$B458&\",\"=VLOOKUP(\"LIFETIME,\"&AD$2&\",,\"&$B458&\",\",data[],1),VLOOKUP(\"LIFETIME,\"&AD$2&\",,\"&$B458&\",\",data[],7),AD$419)","v":25},null,null,null,null,null,null,{"$f":"IF(\"LIFETIME,\"&AK$2&\",,\"&$B458&\",\"=VLOOKUP(\"LIFETIME,\"&AK$2&\",,\"&$B458&\",\",data[],1),VLOOKUP(\"LIFETIME,\"&AK$2&\",,\"&$B458&\",\",data[],7),AK$419)","v":30},null,{"$f":"IF(\"LIFETIME,\"&AM$2&\",,\"&$B458&\",\"=VLOOKUP(\"LIFETIME,\"&AM$2&\",,\"&$B458&\",\",data[],1),VLOOKUP(\"LIFETIME,\"&AM$2&\",,\"&$B458&\",\",data[],7),AM$419)","v":20},null,null,null,null,null,null,null,null,null,null,null,null,null,null,{"$f":"IF(NOT(BB52),0,IF(\"LIFETIME,\"&BB$2&\",,\"&$B458&\",\"=VLOOKUP(\"LIFETIME,\"&BB$2&\",,\"&$B458&\",\",data[],1),VLOOKUP(\"LIFETIME,\"&BB$2&\",,\"&$B458&\",\",data[],7),BB$419))","v":0},null,null,{"$f":"IF(NOT(BE52),0,IF(\"LIFETIME,\"&BE$2&\",,\"&$B458&\",\"=VLOOKUP(\"LIFETIME,\"&BE$2&\",,\"&$B458&\",\",data[],1),VLOOKUP(\"LIFETIME,\"&BE$2&\",,\"&$B458&\",\",data[],7),BE$419))","v":0}]
[null,"KAZ",null,null,null,null,null,null,null,null,{"$f":"IF(\"LIFETIME,\"&$K53&\",,\"&$B459&\",\"=VLOOKUP(\"LIFETIME,\"&$K53&\",,\"&$B459&\",\",data[],1),VLOOKUP(\"LIFETIME,\"&$K53&\",,\"&$B459&\",\",data[],7),INDEX($E$419:$I$419,$J53))","v":20},null,null,null,null,null,{"$f":"IF(\"LIFETIME,\"&Q$2&\",,\"&$B459&\",\"=VLOOKUP(\"LIFETIME,\"&Q$2&\",,\"&$B459&\",\",data[],1),VLOOKUP(\"LIFETIME,\"&Q$2&\",,\"&$B459&\",\",data[],7),Q$419)","v":20},null,{"$f":"IF(\"LIFETIME,\"&S$2&\",,\"&$B459&\",\"=VLOOKUP(\"LIFETIME,\"&S$2&\",,\"&$B459&\",\",data[],1),VLOOKUP(\"LIFETIME,\"&S$2&\",,\"&$B459&\",\",data[],7),S$419)","v":20},null,null,null,null,{"$f":"IF(\"LIFETIME,\"&X$2&\",,\"&$B459&\",\"=VLOOKUP(\"LIFETIME,\"&X$2&\",,\"&$B459&\",\",data[],1),VLOOKUP(\"LIFETIME,\"&X$2&\",,\"&$B459&\",\",data[],7),X$419)","v":99},null,{"$f":"IF(\"LIFETIME,\"&Z$2&\",,\"&$B459&\",\"=VLOOKUP(\"LIFETIME,\"&Z$2&\",,\"&$B459&\",\",data[],1),VLOOKUP(\"LIFETIME,\"&Z$2&\",,\"&$B459&\",\",data[],7),Z$419)","v":20},null,null,null,{"$f":"IF(\"LIFETIME,\"&AD$2&\",,\"&$B459&\",\"=VLOOKUP(\"LIFETIME,\"&AD$2&\",,\"&$B459&\",\",data[],1),VLOOKUP(\"LIFETIME,\"&AD$2&\",,\"&$B459&\",\",data[],7),AD$419)","v":25},null,null,null,null,null,null,{"$f":"IF(\"LIFETIME,\"&AK$2&\",,\"&$B459&\",\"=VLOOKUP(\"LIFETIME,\"&AK$2&\",,\"&$B459&\",\",data[],1),VLOOKUP(\"LIFETIME,\"&AK$2&\",,\"&$B459&\",\",data[],7),AK$419)","v":30},null,{"$f":"IF(\"LIFETIME,\"&AM$2&\",,\"&$B459&\",\"=VLOOKUP(\"LIFETIME,\"&AM$2&\",,\"&$B459&\",\",data[],1),VLOOKUP(\"LIFETIME,\"&AM$2&\",,\"&$B459&\",\",data[],7),AM$419)","v":20},null,null,null,null,null,null,null,null,null,null,null,null,null,null,{"$f":"IF(NOT(BB53),0,IF(\"LIFETIME,\"&BB$2&\",,\"&$B459&\",\"=VLOOKUP(\"LIFETIME,\"&BB$2&\",,\"&$B459&\",\",data[],1),VLOOKUP(\"LIFETIME,\"&BB$2&\",,\"&$B459&\",\",data[],7),BB$419))","v":0},null,null,{"$f":"IF(NOT(BE53),0,IF(\"LIFETIME,\"&BE$2&\",,\"&$B459&\",\"=VLOOKUP(\"LIFETIME,\"&BE$2&\",,\"&$B459&\",\",data[],1),VLOOKUP(\"LIFETIME,\"&BE$2&\",,\"&$B459&\",\",data[],7),BE$419))","v":0}]
[null,"KEN",null,null,null,null,null,null,null,null,{"$f":"IF(\"LIFETIME,\"&$K54&\",,\"&$B460&\",\"=VLOOKUP(\"LIFETIME,\"&$K54&\",,\"&$B460&\",\",data[],1),VLOOKUP(\"LIFETIME,\"&$K54&\",,\"&$B460&\",\",data[],7),INDEX($E$419:$I$419,$J54))","v":20},null,null,null,null,null,{"$f":"IF(\"LIFETIME,\"&Q$2&\",,\"&$B460&\",\"=VLOOKUP(\"LIFETIME,\"&Q$2&\",,\"&$B460&\",\",data[],1),VLOOKUP(\"LIFETIME,\"&Q$2&\",,\"&$B460&\",\",data[],7),Q$419)","v":20},null,{"$f":"IF(\"LIFETIME,\"&S$2&\",,\"&$B460&\",\"=VLOOKUP(\"LIFETIME,\"&S$2&\",,\"&$B460&\",\",data[],1),VLOOKUP(\"LIFETIME,\"&S$2&\",,\"&$B460&\",\",data[],7),S$419)","v":20},null,null,null,null,{"$f":"IF(\"LIFETIME,\"&X$2&\",,\"&$B460&\",\"=VLOOKUP(\"LIFETIME,\"&X$2&\",,\"&$B460&\",\",data[],1),VLOOKUP(\"LIFETIME,\"&X$2&\",,\"&$B460&\",\",data[],7),X$419)","v":99},null,{"$f":"IF(\"LIFETIME,\"&Z$2&\",,\"&$B460&\",\"=VLOOKUP(\"LIFETIME,\"&Z$2&\",,\"&$B460&\",\",data[],1),VLOOKUP(\"LIFETIME,\"&Z$2&\",,\"&$B460&\",\",data[],7),Z$419)","v":20},null,null,null,{"$f":"IF(\"LIFETIME,\"&AD$2&\",,\"&$B460&\",\"=VLOOKUP(\"LIFETIME,\"&AD$2&\",,\"&$B460&\",\",data[],1),VLOOKUP(\"LIFETIME,\"&AD$2&\",,\"&$B460&\",\",data[],7),AD$419)","v":25},null,null,null,null,null,null,{"$f":"IF(\"LIFETIME,\"&AK$2&\",,\"&$B460&\",\"=VLOOKUP(\"LIFETIME,\"&AK$2&\",,\"&$B460&\",\",data[],1),VLOOKUP(\"LIFETIME,\"&AK$2&\",,\"&$B460&\",\",data[],7),AK$419)","v":30},null,{"$f":"IF(\"LIFETIME,\"&AM$2&\",,\"&$B460&\",\"=VLOOKUP(\"LIFETIME,\"&AM$2&\",,\"&$B460&\",\",data[],1),VLOOKUP(\"LIFETIME,\"&AM$2&\",,\"&$B460&\",\",data[],7),AM$419)","v":20},null,null,null,null,null,null,null,null,null,null,null,null,null,null,{"$f":"IF(NOT(BB54),0,IF(\"LIFETIME,\"&BB$2&\",,\"&$B460&\",\"=VLOOKUP(\"LIFETIME,\"&BB$2&\",,\"&$B460&\",\",data[],1),VLOOKUP(\"LIFETIME,\"&BB$2&\",,\"&$B460&\",\",data[],7),BB$419))","v":30},null,null,{"$f":"IF(NOT(BE54),0,IF(\"LIFETIME,\"&BE$2&\",,\"&$B460&\",\"=VLOOKUP(\"LIFETIME,\"&BE$2&\",,\"&$B460&\",\",data[],1),VLOOKUP(\"LIFETIME,\"&BE$2&\",,\"&$B460&\",\",data[],7),BE$419))","v":0}]
[null,"MAR",null,null,null,null,null,null,null,null,{"$f":"IF(\"LIFETIME,\"&$K55&\",,\"&$B461&\",\"=VLOOKUP(\"LIFETIME,\"&$K55&\",,\"&$B461&\",\",data[],1),VLOOKUP(\"LIFETIME,\"&$K55&\",,\"&$B461&\",\",data[],7),INDEX($E$419:$I$419,$J55))","v":20},null,null,null,null,null,{"$f":"IF(\"LIFETIME,\"&Q$2&\",,\"&$B461&\",\"=VLOOKUP(\"LIFETIME,\"&Q$2&\",,\"&$B461&\",\",data[],1),VLOOKUP(\"LIFETIME,\"&Q$2&\",,\"&$B461&\",\",data[],7),Q$419)","v":20},null,{"$f":"IF(\"LIFETIME,\"&S$2&\",,\"&$B461&\",\"=VLOOKUP(\"LIFETIME,\"&S$2&\",,\"&$B461&\",\",data[],1),VLOOKUP(\"LIFETIME,\"&S$2&\",,\"&$B461&\",\",data[],7),S$419)","v":20},null,null,null,null,{"$f":"IF(\"LIFETIME,\"&X$2&\",,\"&$B461&\",\"=VLOOKUP(\"LIFETIME,\"&X$2&\",,\"&$B461&\",\",data[],1),VLOOKUP(\"LIFETIME,\"&X$2&\",,\"&$B461&\",\",data[],7),X$419)","v":99},null,{"$f":"IF(\"LIFETIME,\"&Z$2&\",,\"&$B461&\",\"=VLOOKUP(\"LIFETIME,\"&Z$2&\",,\"&$B461&\",\",data[],1),VLOOKUP(\"LIFETIME,\"&Z$2&\",,\"&$B461&\",\",data[],7),Z$419)","v":20},null,null,null,{"$f":"IF(\"LIFETIME,\"&AD$2&\",,\"&$B461&\",\"=VLOOKUP(\"LIFETIME,\"&AD$2&\",,\"&$B461&\",\",data[],1),VLOOKUP(\"LIFETIME,\"&AD$2&\",,\"&$B461&\",\",data[],7),AD$419)","v":25},null,null,null,null,null,null,{"$f":"IF(\"LIFETIME,\"&AK$2&\",,\"&$B461&\",\"=VLOOKUP(\"LIFETIME,\"&AK$2&\",,\"&$B461&\",\",data[],1),VLOOKUP(\"LIFETIME,\"&AK$2&\",,\"&$B461&\",\",data[],7),AK$419)","v":30},null,{"$f":"IF(\"LIFETIME,\"&AM$2&\",,\"&$B461&\",\"=VLOOKUP(\"LIFETIME,\"&AM$2&\",,\"&$B461&\",\",data[],1),VLOOKUP(\"LIFETIME,\"&AM$2&\",,\"&$B461&\",\",data[],7),AM$419)","v":20},null,null,null,null,null,null,null,null,null,null,null,null,null,null,{"$f":"IF(NOT(BB55),0,IF(\"LIFETIME,\"&BB$2&\",,\"&$B461&\",\"=VLOOKUP(\"LIFETIME,\"&BB$2&\",,\"&$B461&\",\",data[],1),VLOOKUP(\"LIFETIME,\"&BB$2&\",,\"&$B461&\",\",data[],7),BB$419))","v":30},null,null,{"$f":"IF(NOT(BE55),0,IF(\"LIFETIME,\"&BE$2&\",,\"&$B461&\",\"=VLOOKUP(\"LIFETIME,\"&BE$2&\",,\"&$B461&\",\",data[],1),VLOOKUP(\"LIFETIME,\"&BE$2&\",,\"&$B461&\",\",data[],7),BE$419))","v":0}]
[null,"MAR-BEN",null,null,null,null,null,null,null,null,{"$f":"IF(\"LIFETIME,\"&$K56&\",,\"&$B462&\",\"=VLOOKUP(\"LIFETIME,\"&$K56&\",,\"&$B462&\",\",data[],1),VLOOKUP(\"LIFETIME,\"&$K56&\",,\"&$B462&\",\",data[],7),INDEX($E$419:$I$419,$J56))","v":20},null,null,null,null,null,{"$f":"IF(\"LIFETIME,\"&Q$2&\",,\"&$B462&\",\"=VLOOKUP(\"LIFETIME,\"&Q$2&\",,\"&$B462&\",\",data[],1),VLOOKUP(\"LIFETIME,\"&Q$2&\",,\"&$B462&\",\",data[],7),Q$419)","v":20},null,{"$f":"IF(\"LIFETIME,\"&S$2&\",,\"&$B462&\",\"=VLOOKUP(\"LIFETIME,\"&S$2&\",,\"&$B462&\",\",data[],1),VLOOKUP(\"LIFETIME,\"&S$2&\",,\"&$B462&\",\",data[],7),S$419)","v":20},null,null,null,null,{"$f":"IF(\"LIFETIME,\"&X$2&\",,\"&$B462&\",\"=VLOOKUP(\"LIFETIME,\"&X$2&\",,\"&$B462&\",\",data[],1),VLOOKUP(\"LIFETIME,\"&X$2&\",,\"&$B462&\",\",data[],7),X$419)","v":99},null,{"$f":"IF(\"LIFETIME,\"&Z$2&\",,\"&$B462&\",\"=VLOOKUP(\"LIFETIME,\"&Z$2&\",,\"&$B462&\",\",data[],1),VLOOKUP(\"LIFETIME,\"&Z$2&\",,\"&$B462&\",\",data[],7),Z$419)","v":20},null,null,null,{"$f":"IF(\"LIFETIME,\"&AD$2&\",,\"&$B462&\",\"=VLOOKUP(\"LIFETIME,\"&AD$2&\",,\"&$B462&\",\",data[],1),VLOOKUP(\"LIFETIME,\"&AD$2&\",,\"&$B462&\",\",data[],7),AD$419)","v":25},null,null,null,null,null,null,{"$f":"IF(\"LIFETIME,\"&AK$2&\",,\"&$B462&\",\"=VLOOKUP(\"LIFETIME,\"&AK$2&\",,\"&$B462&\",\",data[],1),VLOOKUP(\"LIFETIME,\"&AK$2&\",,\"&$B462&\",\",data[],7),AK$419)","v":30},null,{"$f":"IF(\"LIFETIME,\"&AM$2&\",,\"&$B462&\",\"=VLOOKUP(\"LIFETIME,\"&AM$2&\",,\"&$B462&\",\",data[],1),VLOOKUP(\"LIFETIME,\"&AM$2&\",,\"&$B462&\",\",data[],7),AM$419)","v":20},null,null,null,null,null,null,null,null,null,null,null,null,null,null,{"$f":"IF(NOT(BB56),0,IF(\"LIFETIME,\"&BB$2&\",,\"&$B462&\",\"=VLOOKUP(\"LIFETIME,\"&BB$2&\",,\"&$B462&\",\",data[],1),VLOOKUP(\"LIFETIME,\"&BB$2&\",,\"&$B462&\",\",data[],7),BB$419))","v":30},null,null,{"$f":"IF(NOT(BE56),0,IF(\"LIFETIME,\"&BE$2&\",,\"&$B462&\",\"=VLOOKUP(\"LIFETIME,\"&BE$2&\",,\"&$B462&\",\",data[],1),VLOOKUP(\"LIFETIME,\"&BE$2&\",,\"&$B462&\",\",data[],7),BE$419))","v":0}]
[null,"MAR-CAS",null,null,null,null,null,null,null,null,{"$f":"IF(\"LIFETIME,\"&$K57&\",,\"&$B463&\",\"=VLOOKUP(\"LIFETIME,\"&$K57&\",,\"&$B463&\",\",data[],1),VLOOKUP(\"LIFETIME,\"&$K57&\",,\"&$B463&\",\",data[],7),INDEX($E$419:$I$419,$J57))","v":20},null,null,null,null,null,{"$f":"IF(\"LIFETIME,\"&Q$2&\",,\"&$B463&\",\"=VLOOKUP(\"LIFETIME,\"&Q$2&\",,\"&$B463&\",\",data[],1),VLOOKUP(\"LIFETIME,\"&Q$2&\",,\"&$B463&\",\",data[],7),Q$419)","v":20},null,{"$f":"IF(\"LIFETIME,\"&S$2&\",,\"&$B463&\",\"=VLOOKUP(\"LIFETIME,\"&S$2&\",,\"&$B463&\",\",data[],1),VLOOKUP(\"LIFETIME,\"&S$2&\",,\"&$B463&\",\",data[],7),S$419)","v":20},null,null,null,null,{"$f":"IF(\"LIFETIME,\"&X$2&\",,\"&$B463&\",\"=VLOOKUP(\"LIFETIME,\"&X$2&\",,\"&$B463&\",\",data[],1),VLOOKUP(\"LIFETIME,\"&X$2&\",,\"&$B463&\",\",data[],7),X$419)","v":99},null,{"$f":"IF(\"LIFETIME,\"&Z$2&\",,\"&$B463&\",\"=VLOOKUP(\"LIFETIME,\"&Z$2&\",,\"&$B463&\",\",data[],1),VLOOKUP(\"LIFETIME,\"&Z$2&\",,\"&$B463&\",\",data[],7),Z$419)","v":20},null,null,null,{"$f":"IF(\"LIFETIME,\"&AD$2&\",,\"&$B463&\",\"=VLOOKUP(\"LIFETIME,\"&AD$2&\",,\"&$B463&\",\",data[],1),VLOOKUP(\"LIFETIME,\"&AD$2&\",,\"&$B463&\",\",data[],7),AD$419)","v":25},null,null,null,null,null,null,{"$f":"IF(\"LIFETIME,\"&AK$2&\",,\"&$B463&\",\"=VLOOKUP(\"LIFETIME,\"&AK$2&\",,\"&$B463&\",\",data[],1),VLOOKUP(\"LIFETIME,\"&AK$2&\",,\"&$B463&\",\",data[],7),AK$419)","v":30},null,{"$f":"IF(\"LIFETIME,\"&AM$2&\",,\"&$B463&\",\"=VLOOKUP(\"LIFETIME,\"&AM$2&\",,\"&$B463&\",\",data[],1),VLOOKUP(\"LIFETIME,\"&AM$2&\",,\"&$B463&\",\",data[],7),AM$419)","v":20},null,null,null,null,null,null,null,null,null,null,null,null,null,null,{"$f":"IF(NOT(BB57),0,IF(\"LIFETIME,\"&BB$2&\",,\"&$B463&\",\"=VLOOKUP(\"LIFETIME,\"&BB$2&\",,\"&$B463&\",\",data[],1),VLOOKUP(\"LIFETIME,\"&BB$2&\",,\"&$B463&\",\",data[],7),BB$419))","v":30},null,null,{"$f":"IF(NOT(BE57),0,IF(\"LIFETIME,\"&BE$2&\",,\"&$B463&\",\"=VLOOKUP(\"LIFETIME,\"&BE$2&\",,\"&$B463&\",\",data[],1),VLOOKUP(\"LIFETIME,\"&BE$2&\",,\"&$B463&\",\",data[],7),BE$419))","v":0}]
[null,"MAR-DAK",null,null,null,null,null,null,null,null,{"$f":"IF(\"LIFETIME,\"&$K58&\",,\"&$B464&\",\"=VLOOKUP(\"LIFETIME,\"&$K58&\",,\"&$B464&\",\",data[],1),VLOOKUP(\"LIFETIME,\"&$K58&\",,\"&$B464&\",\",data[],7),INDEX($E$419:$I$419,$J58))","v":20},null,null,null,null,null,{"$f":"IF(\"LIFETIME,\"&Q$2&\",,\"&$B464&\",\"=VLOOKUP(\"LIFETIME,\"&Q$2&\",,\"&$B464&\",\",data[],1),VLOOKUP(\"LIFETIME,\"&Q$2&\",,\"&$B464&\",\",data[],7),Q$419)","v":20},null,{"$f":"IF(\"LIFETIME,\"&S$2&\",,\"&$B464&\",\"=VLOOKUP(\"LIFETIME,\"&S$2&\",,\"&$B464&\",\",data[],1),VLOOKUP(\"LIFETIME,\"&S$2&\",,\"&$B464&\",\",data[],7),S$419)","v":20},null,null,null,null,{"$f":"IF(\"LIFETIME,\"&X$2&\",,\"&$B464&\",\"=VLOOKUP(\"LIFETIME,\"&X$2&\",,\"&$B464&\",\",data[],1),VLOOKUP(\"LIFETIME,\"&X$2&\",,\"&$B464&\",\",data[],7),X$419)","v":99},null,{"$f":"IF(\"LIFETIME,\"&Z$2&\",,\"&$B464&\",\"=VLOOKUP(\"LIFETIME,\"&Z$2&\",,\"&$B464&\",\",data[],1),VLOOKUP(\"LIFETIME,\"&Z$2&\",,\"&$B464&\",\",data[],7),Z$419)","v":20},null,null,null,{"$f":"IF(\"LIFETIME,\"&AD$2&\",,\"&$B464&\",\"=VLOOKUP(\"LIFETIME,\"&AD$2&\",,\"&$B464&\",\",data[],1),VLOOKUP(\"LIFETIME,\"&AD$2&\",,\"&$B464&\",\",data[],7),AD$419)","v":25},null,null,null,null,null,null,{"$f":"IF(\"LIFETIME,\"&AK$2&\",,\"&$B464&\",\"=VLOOKUP(\"LIFETIME,\"&AK$2&\",,\"&$B464&\",\",data[],1),VLOOKUP(\"LIFETIME,\"&AK$2&\",,\"&$B464&\",\",data[],7),AK$419)","v":30},null,{"$f":"IF(\"LIFETIME,\"&AM$2&\",,\"&$B464&\",\"=VLOOKUP(\"LIFETIME,\"&AM$2&\",,\"&$B464&\",\",data[],1),VLOOKUP(\"LIFETIME,\"&AM$2&\",,\"&$B464&\",\",data[],7),AM$419)","v":20},null,null,null,null,null,null,null,null,null,null,null,null,null,null,{"$f":"IF(NOT(BB58),0,IF(\"LIFETIME,\"&BB$2&\",,\"&$B464&\",\"=VLOOKUP(\"LIFETIME,\"&BB$2&\",,\"&$B464&\",\",data[],1),VLOOKUP(\"LIFETIME,\"&BB$2&\",,\"&$B464&\",\",data[],7),BB$419))","v":30},null,null,{"$f":"IF(NOT(BE58),0,IF(\"LIFETIME,\"&BE$2&\",,\"&$B464&\",\"=VLOOKUP(\"LIFETIME,\"&BE$2&\",,\"&$B464&\",\",data[],1),VLOOKUP(\"LIFETIME,\"&BE$2&\",,\"&$B464&\",\",data[],7),BE$419))","v":0}]
[null,"MAR-DRA",null,null,null,null,null,null,null,null,{"$f":"IF(\"LIFETIME,\"&$K59&\",,\"&$B465&\",\"=VLOOKUP(\"LIFETIME,\"&$K59&\",,\"&$B465&\",\",data[],1),VLOOKUP(\"LIFETIME,\"&$K59&\",,\"&$B465&\",\",data[],7),INDEX($E$419:$I$419,$J59))","v":20},null,null,null,null,null,{"$f":"IF(\"LIFETIME,\"&Q$2&\",,\"&$B465&\",\"=VLOOKUP(\"LIFETIME,\"&Q$2&\",,\"&$B465&\",\",data[],1),VLOOKUP(\"LIFETIME,\"&Q$2&\",,\"&$B465&\",\",data[],7),Q$419)","v":20},null,{"$f":"IF(\"LIFETIME,\"&S$2&\",,\"&$B465&\",\"=VLOOKUP(\"LIFETIME,\"&S$2&\",,\"&$B465&\",\",data[],1),VLOOKUP(\"LIFETIME,\"&S$2&\",,\"&$B465&\",\",data[],7),S$419)","v":20},null,null,null,null,{"$f":"IF(\"LIFETIME,\"&X$2&\",,\"&$B465&\",\"=VLOOKUP(\"LIFETIME,\"&X$2&\",,\"&$B465&\",\",data[],1),VLOOKUP(\"LIFETIME,\"&X$2&\",,\"&$B465&\",\",data[],7),X$419)","v":99},null,{"$f":"IF(\"LIFETIME,\"&Z$2&\",,\"&$B465&\",\"=VLOOKUP(\"LIFETIME,\"&Z$2&\",,\"&$B465&\",\",data[],1),VLOOKUP(\"LIFETIME,\"&Z$2&\",,\"&$B465&\",\",data[],7),Z$419)","v":20},null,null,null,{"$f":"IF(\"LIFETIME,\"&AD$2&\",,\"&$B465&\",\"=VLOOKUP(\"LIFETIME,\"&AD$2&\",,\"&$B465&\",\",data[],1),VLOOKUP(\"LIFETIME,\"&AD$2&\",,\"&$B465&\",\",data[],7),AD$419)","v":25},null,null,null,null,null,null,{"$f":"IF(\"LIFETIME,\"&AK$2&\",,\"&$B465&\",\"=VLOOKUP(\"LIFETIME,\"&AK$2&\",,\"&$B465&\",\",data[],1),VLOOKUP(\"LIFETIME,\"&AK$2&\",,\"&$B465&\",\",data[],7),AK$419)","v":30},null,{"$f":"IF(\"LIFETIME,\"&AM$2&\",,\"&$B465&\",\"=VLOOKUP(\"LIFETIME,\"&AM$2&\",,\"&$B465&\",\",data[],1),VLOOKUP(\"LIFETIME,\"&AM$2&\",,\"&$B465&\",\",data[],7),AM$419)","v":20},null,null,null,null,null,null,null,null,null,null,null,null,null,null,{"$f":"IF(NOT(BB59),0,IF(\"LIFETIME,\"&BB$2&\",,\"&$B465&\",\"=VLOOKUP(\"LIFETIME,\"&BB$2&\",,\"&$B465&\",\",data[],1),VLOOKUP(\"LIFETIME,\"&BB$2&\",,\"&$B465&\",\",data[],7),BB$419))","v":30},null,null,{"$f":"IF(NOT(BE59),0,IF(\"LIFETIME,\"&BE$2&\",,\"&$B465&\",\"=VLOOKUP(\"LIFETIME,\"&BE$2&\",,\"&$B465&\",\",data[],1),VLOOKUP(\"LIFETIME,\"&BE$2&\",,\"&$B465&\",\",data[],7),BE$419))","v":0}]
[null,"MAR-FES",null,null,null,null,null,null,null,null,{"$f":"IF(\"LIFETIME,\"&$K60&\",,\"&$B466&\",\"=VLOOKUP(\"LIFETIME,\"&$K60&\",,\"&$B466&\",\",data[],1),VLOOKUP(\"LIFETIME,\"&$K60&\",,\"&$B466&\",\",data[],7),INDEX($E$419:$I$419,$J60))","v":20},null,null,null,null,null,{"$f":"IF(\"LIFETIME,\"&Q$2&\",,\"&$B466&\",\"=VLOOKUP(\"LIFETIME,\"&Q$2&\",,\"&$B466&\",\",data[],1),VLOOKUP(\"LIFETIME,\"&Q$2&\",,\"&$B466&\",\",data[],7),Q$419)","v":20},null,{"$f":"IF(\"LIFETIME,\"&S$2&\",,\"&$B466&\",\"=VLOOKUP(\"LIFETIME,\"&S$2&\",,\"&$B466&\",\",data[],1),VLOOKUP(\"LIFETIME,\"&S$2&\",,\"&$B466&\",\",data[],7),S$419)","v":20},null,null,null,null,{"$f":"IF(\"LIFETIME,\"&X$2&\",,\"&$B466&\",\"=VLOOKUP(\"LIFETIME,\"&X$2&\",,\"&$B466&\",\",data[],1),VLOOKUP(\"LIFETIME,\"&X$2&\",,\"&$B466&\",\",data[],7),X$419)","v":99},null,{"$f":"IF(\"LIFETIME,\"&Z$2&\",,\"&$B466&\",\"=VLOOKUP(\"LIFETIME,\"&Z$2&\",,\"&$B466&\",\",data[],1),VLOOKUP(\"LIFETIME,\"&Z$2&\",,\"&$B466&\",\",data[],7),Z$419)","v":20},null,null,null,{"$f":"IF(\"LIFETIME,\"&AD$2&\",,\"&$B466&\",\"=VLOOKUP(\"LIFETIME,\"&AD$2&\",,\"&$B466&\",\",data[],1),VLOOKUP(\"LIFETIME,\"&AD$2&\",,\"&$B466&\",\",data[],7),AD$419)","v":25},null,null,null,null,null,null,{"$f":"IF(\"LIFETIME,\"&AK$2&\",,\"&$B466&\",\"=VLOOKUP(\"LIFETIME,\"&AK$2&\",,\"&$B466&\",\",data[],1),VLOOKUP(\"LIFETIME,\"&AK$2&\",,\"&$B466&\",\",data[],7),AK$419)","v":30},null,{"$f":"IF(\"LIFETIME,\"&AM$2&\",,\"&$B466&\",\"=VLOOKUP(\"LIFETIME,\"&AM$2&\",,\"&$B466&\",\",data[],1),VLOOKUP(\"LIFETIME,\"&AM$2&\",,\"&$B466&\",\",data[],7),AM$419)","v":20},null,null,null,null,null,null,null,null,null,null,null,null,null,null,{"$f":"IF(NOT(BB60),0,IF(\"LIFETIME,\"&BB$2&\",,\"&$B466&\",\"=VLOOKUP(\"LIFETIME,\"&BB$2&\",,\"&$B466&\",\",data[],1),VLOOKUP(\"LIFETIME,\"&BB$2&\",,\"&$B466&\",\",data[],7),BB$419))","v":30},null,null,{"$f":"IF(NOT(BE60),0,IF(\"LIFETIME,\"&BE$2&\",,\"&$B466&\",\"=VLOOKUP(\"LIFETIME,\"&BE$2&\",,\"&$B466&\",\",data[],1),VLOOKUP(\"LIFETIME,\"&BE$2&\",,\"&$B466&\",\",data[],7),BE$419))","v":0}]
[null,"MAR-GUE",null,null,null,null,null,null,null,null,{"$f":"IF(\"LIFETIME,\"&$K61&\",,\"&$B467&\",\"=VLOOKUP(\"LIFETIME,\"&$K61&\",,\"&$B467&\",\",data[],1),VLOOKUP(\"LIFETIME,\"&$K61&\",,\"&$B467&\",\",data[],7),INDEX($E$419:$I$419,$J61))","v":20},null,null,null,null,null,{"$f":"IF(\"LIFETIME,\"&Q$2&\",,\"&$B467&\",\"=VLOOKUP(\"LIFETIME,\"&Q$2&\",,\"&$B467&\",\",data[],1),VLOOKUP(\"LIFETIME,\"&Q$2&\",,\"&$B467&\",\",data[],7),Q$419)","v":20},null,{"$f":"IF(\"LIFETIME,\"&S$2&\",,\"&$B467&\",\"=VLOOKUP(\"LIFETIME,\"&S$2&\",,\"&$B467&\",\",data[],1),VLOOKUP(\"LIFETIME,\"&S$2&\",,\"&$B467&\",\",data[],7),S$419)","v":20},null,null,null,null,{"$f":"IF(\"LIFETIME,\"&X$2&\",,\"&$B467&\",\"=VLOOKUP(\"LIFETIME,\"&X$2&\",,\"&$B467&\",\",data[],1),VLOOKUP(\"LIFETIME,\"&X$2&\",,\"&$B467&\",\",data[],7),X$419)","v":99},null,{"$f":"IF(\"LIFETIME,\"&Z$2&\",,\"&$B467&\",\"=VLOOKUP(\"LIFETIME,\"&Z$2&\",,\"&$B467&\",\",data[],1),VLOOKUP(\"LIFETIME,\"&Z$2&\",,\"&$B467&\",\",data[],7),Z$419)","v":20},null,null,null,{"$f":"IF(\"LIFETIME,\"&AD$2&\",,\"&$B467&\",\"=VLOOKUP(\"LIFETIME,\"&AD$2&\",,\"&$B467&\",\",data[],1),VLOOKUP(\"LIFETIME,\"&AD$2&\",,\"&$B467&\",\",data[],7),AD$419)","v":25},null,null,null,null,null,null,{"$f":"IF(\"LIFETIME,\"&AK$2&\",,\"&$B467&\",\"=VLOOKUP(\"LIFETIME,\"&AK$2&\",,\"&$B467&\",\",data[],1),VLOOKUP(\"LIFETIME,\"&AK$2&\",,\"&$B467&\",\",data[],7),AK$419)","v":30},null,{"$f":"IF(\"LIFETIME,\"&AM$2&\",,\"&$B467&\",\"=VLOOKUP(\"LIFETIME,\"&AM$2&\",,\"&$B467&\",\",data[],1),VLOOKUP(\"LIFETIME,\"&AM$2&\",,\"&$B467&\",\",data[],7),AM$419)","v":20},null,null,null,null,null,null,null,null,null,null,null,null,null,null,{"$f":"IF(NOT(BB61),0,IF(\"LIFETIME,\"&BB$2&\",,\"&$B467&\",\"=VLOOKUP(\"LIFETIME,\"&BB$2&\",,\"&$B467&\",\",data[],1),VLOOKUP(\"LIFETIME,\"&BB$2&\",,\"&$B467&\",\",data[],7),BB$419))","v":30},null,null,{"$f":"IF(NOT(BE61),0,IF(\"LIFETIME,\"&BE$2&\",,\"&$B467&\",\"=VLOOKUP(\"LIFETIME,\"&BE$2&\",,\"&$B467&\",\",data[],1),VLOOKUP(\"LIFETIME,\"&BE$2&\",,\"&$B467&\",\",data[],7),BE$419))","v":0}]
[null,"MAR-LAA",null,null,null,null,null,null,null,null,{"$f":"IF(\"LIFETIME,\"&$K62&\",,\"&$B468&\",\"=VLOOKUP(\"LIFETIME,\"&$K62&\",,\"&$B468&\",\",data[],1),VLOOKUP(\"LIFETIME,\"&$K62&\",,\"&$B468&\",\",data[],7),INDEX($E$419:$I$419,$J62))","v":20},null,null,null,null,null,{"$f":"IF(\"LIFETIME,\"&Q$2&\",,\"&$B468&\",\"=VLOOKUP(\"LIFETIME,\"&Q$2&\",,\"&$B468&\",\",data[],1),VLOOKUP(\"LIFETIME,\"&Q$2&\",,\"&$B468&\",\",data[],7),Q$419)","v":20},null,{"$f":"IF(\"LIFETIME,\"&S$2&\",,\"&$B468&\",\"=VLOOKUP(\"LIFETIME,\"&S$2&\",,\"&$B468&\",\",data[],1),VLOOKUP(\"LIFETIME,\"&S$2&\",,\"&$B468&\",\",data[],7),S$419)","v":20},null,null,null,null,{"$f":"IF(\"LIFETIME,\"&X$2&\",,\"&$B468&\",\"=VLOOKUP(\"LIFETIME,\"&X$2&\",,\"&$B468&\",\",data[],1),VLOOKUP(\"LIFETIME,\"&X$2&\",,\"&$B468&\",\",data[],7),X$419)","v":99},null,{"$f":"IF(\"LIFETIME,\"&Z$2&\",,\"&$B468&\",\"=VLOOKUP(\"LIFETIME,\"&Z$2&\",,\"&$B468&\",\",data[],1),VLOOKUP(\"LIFETIME,\"&Z$2&\",,\"&$B468&\",\",data[],7),Z$419)","v":20},null,null,null,{"$f":"IF(\"LIFETIME,\"&AD$2&\",,\"&$B468&\",\"=VLOOKUP(\"LIFETIME,\"&AD$2&\",,\"&$B468&\",\",data[],1),VLOOKUP(\"LIFETIME,\"&AD$2&\",,\"&$B468&\",\",data[],7),AD$419)","v":25},null,null,null,null,null,null,{"$f":"IF(\"LIFETIME,\"&AK$2&\",,\"&$B468&\",\"=VLOOKUP(\"LIFETIME,\"&AK$2&\",,\"&$B468&\",\",data[],1),VLOOKUP(\"LIFETIME,\"&AK$2&\",,\"&$B468&\",\",data[],7),AK$419)","v":30},null,{"$f":"IF(\"LIFETIME,\"&AM$2&\",,\"&$B468&\",\"=VLOOKUP(\"LIFETIME,\"&AM$2&\",,\"&$B468&\",\",data[],1),VLOOKUP(\"LIFETIME,\"&AM$2&\",,\"&$B468&\",\",data[],7),AM$419)","v":20},null,null,null,null,null,null,null,null,null,null,null,null,null,null,{"$f":"IF(NOT(BB62),0,IF(\"LIFETIME,\"&BB$2&\",,\"&$B468&\",\"=VLOOKUP(\"LIFETIME,\"&BB$2&\",,\"&$B468&\",\",data[],1),VLOOKUP(\"LIFETIME,\"&BB$2&\",,\"&$B468&\",\",data[],7),BB$419))","v":30},null,null,{"$f":"IF(NOT(BE62),0,IF(\"LIFETIME,\"&BE$2&\",,\"&$B468&\",\"=VLOOKUP(\"LIFETIME,\"&BE$2&\",,\"&$B468&\",\",data[],1),VLOOKUP(\"LIFETIME,\"&BE$2&\",,\"&$B468&\",\",data[],7),BE$419))","v":0}]
[null,"MAR-LOR",null,null,null,null,null,null,null,null,{"$f":"IF(\"LIFETIME,\"&$K63&\",,\"&$B469&\",\"=VLOOKUP(\"LIFETIME,\"&$K63&\",,\"&$B469&\",\",data[],1),VLOOKUP(\"LIFETIME,\"&$K63&\",,\"&$B469&\",\",data[],7),INDEX($E$419:$I$419,$J63))","v":20},null,null,null,null,null,{"$f":"IF(\"LIFETIME,\"&Q$2&\",,\"&$B469&\",\"=VLOOKUP(\"LIFETIME,\"&Q$2&\",,\"&$B469&\",\",data[],1),VLOOKUP(\"LIFETIME,\"&Q$2&\",,\"&$B469&\",\",data[],7),Q$419)","v":20},null,{"$f":"IF(\"LIFETIME,\"&S$2&\",,\"&$B469&\",\"=VLOOKUP(\"LIFETIME,\"&S$2&\",,\"&$B469&\",\",data[],1),VLOOKUP(\"LIFETIME,\"&S$2&\",,\"&$B469&\",\",data[],7),S$419)","v":20},null,null,null,null,{"$f":"IF(\"LIFETIME,\"&X$2&\",,\"&$B469&\",\"=VLOOKUP(\"LIFETIME,\"&X$2&\",,\"&$B469&\",\",data[],1),VLOOKUP(\"LIFETIME,\"&X$2&\",,\"&$B469&\",\",data[],7),X$419)","v":99},null,{"$f":"IF(\"LIFETIME,\"&Z$2&\",,\"&$B469&\",\"=VLOOKUP(\"LIFETIME,\"&Z$2&\",,\"&$B469&\",\",data[],1),VLOOKUP(\"LIFETIME,\"&Z$2&\",,\"&$B469&\",\",data[],7),Z$419)","v":20},null,null,null,{"$f":"IF(\"LIFETIME,\"&AD$2&\",,\"&$B469&\",\"=VLOOKUP(\"LIFETIME,\"&AD$2&\",,\"&$B469&\",\",data[],1),VLOOKUP(\"LIFETIME,\"&AD$2&\",,\"&$B469&\",\",data[],7),AD$419)","v":25},null,null,null,null,null,null,{"$f":"IF(\"LIFETIME,\"&AK$2&\",,\"&$B469&\",\"=VLOOKUP(\"LIFETIME,\"&AK$2&\",,\"&$B469&\",\",data[],1),VLOOKUP(\"LIFETIME,\"&AK$2&\",,\"&$B469&\",\",data[],7),AK$419)","v":30},null,{"$f":"IF(\"LIFETIME,\"&AM$2&\",,\"&$B469&\",\"=VLOOKUP(\"LIFETIME,\"&AM$2&\",,\"&$B469&\",\",data[],1),VLOOKUP(\"LIFETIME,\"&AM$2&\",,\"&$B469&\",\",data[],7),AM$419)","v":20},null,null,null,null,null,null,null,null,null,null,null,null,null,null,{"$f":"IF(NOT(BB63),0,IF(\"LIFETIME,\"&BB$2&\",,\"&$B469&\",\"=VLOOKUP(\"LIFETIME,\"&BB$2&\",,\"&$B469&\",\",data[],1),VLOOKUP(\"LIFETIME,\"&BB$2&\",,\"&$B469&\",\",data[],7),BB$419))","v":30},null,null,{"$f":"IF(NOT(BE63),0,IF(\"LIFETIME,\"&BE$2&\",,\"&$B469&\",\"=VLOOKUP(\"LIFETIME,\"&BE$2&\",,\"&$B469&\",\",data[],1),VLOOKUP(\"LIFETIME,\"&BE$2&\",,\"&$B469&\",\",data[],7),BE$419))","v":0}]
[null,"MAR-MAR",null,null,null,null,null,null,null,null,{"$f":"IF(\"LIFETIME,\"&$K64&\",,\"&$B470&\",\"=VLOOKUP(\"LIFETIME,\"&$K64&\",,\"&$B470&\",\",data[],1),VLOOKUP(\"LIFETIME,\"&$K64&\",,\"&$B470&\",\",data[],7),INDEX($E$419:$I$419,$J64))","v":20},null,null,null,null,null,{"$f":"IF(\"LIFETIME,\"&Q$2&\",,\"&$B470&\",\"=VLOOKUP(\"LIFETIME,\"&Q$2&\",,\"&$B470&\",\",data[],1),VLOOKUP(\"LIFETIME,\"&Q$2&\",,\"&$B470&\",\",data[],7),Q$419)","v":20},null,{"$f":"IF(\"LIFETIME,\"&S$2&\",,\"&$B470&\",\"=VLOOKUP(\"LIFETIME,\"&S$2&\",,\"&$B470&\",\",data[],1),VLOOKUP(\"LIFETIME,\"&S$2&\",,\"&$B470&\",\",data[],7),S$419)","v":20},null,null,null,null,{"$f":"IF(\"LIFETIME,\"&X$2&\",,\"&$B470&\",\"=VLOOKUP(\"LIFETIME,\"&X$2&\",,\"&$B470&\",\",data[],1),VLOOKUP(\"LIFETIME,\"&X$2&\",,\"&$B470&\",\",data[],7),X$419)","v":99},null,{"$f":"IF(\"LIFETIME,\"&Z$2&\",,\"&$B470&\",\"=VLOOKUP(\"LIFETIME,\"&Z$2&\",,\"&$B470&\",\",data[],1),VLOOKUP(\"LIFETIME,\"&Z$2&\",,\"&$B470&\",\",data[],7),Z$419)","v":20},null,null,null,{"$f":"IF(\"LIFETIME,\"&AD$2&\",,\"&$B470&\",\"=VLOOKUP(\"LIFETIME,\"&AD$2&\",,\"&$B470&\",\",data[],1),VLOOKUP(\"LIFETIME,\"&AD$2&\",,\"&$B470&\",\",data[],7),AD$419)","v":25},null,null,null,null,null,null,{"$f":"IF(\"LIFETIME,\"&AK$2&\",,\"&$B470&\",\"=VLOOKUP(\"LIFETIME,\"&AK$2&\",,\"&$B470&\",\",data[],1),VLOOKUP(\"LIFETIME,\"&AK$2&\",,\"&$B470&\",\",data[],7),AK$419)","v":30},null,{"$f":"IF(\"LIFETIME,\"&AM$2&\",,\"&$B470&\",\"=VLOOKUP(\"LIFETIME,\"&AM$2&\",,\"&$B470&\",\",data[],1),VLOOKUP(\"LIFETIME,\"&AM$2&\",,\"&$B470&\",\",data[],7),AM$419)","v":20},null,null,null,null,null,null,null,null,null,null,null,null,null,null,{"$f":"IF(NOT(BB64),0,IF(\"LIFETIME,\"&BB$2&\",,\"&$B470&\",\"=VLOOKUP(\"LIFETIME,\"&BB$2&\",,\"&$B470&\",\",data[],1),VLOOKUP(\"LIFETIME,\"&BB$2&\",,\"&$B470&\",\",data[],7),BB$419))","v":30},null,null,{"$f":"IF(NOT(BE64),0,IF(\"LIFETIME,\"&BE$2&\",,\"&$B470&\",\"=VLOOKUP(\"LIFETIME,\"&BE$2&\",,\"&$B470&\",\",data[],1),VLOOKUP(\"LIFETIME,\"&BE$2&\",,\"&$B470&\",\",data[],7),BE$419))","v":0}]
[null,"MAR-RAB",null,null,null,null,null,null,null,null,{"$f":"IF(\"LIFETIME,\"&$K65&\",,\"&$B471&\",\"=VLOOKUP(\"LIFETIME,\"&$K65&\",,\"&$B471&\",\",data[],1),VLOOKUP(\"LIFETIME,\"&$K65&\",,\"&$B471&\",\",data[],7),INDEX($E$419:$I$419,$J65))","v":20},null,null,null,null,null,{"$f":"IF(\"LIFETIME,\"&Q$2&\",,\"&$B471&\",\"=VLOOKUP(\"LIFETIME,\"&Q$2&\",,\"&$B471&\",\",data[],1),VLOOKUP(\"LIFETIME,\"&Q$2&\",,\"&$B471&\",\",data[],7),Q$419)","v":20},null,{"$f":"IF(\"LIFETIME,\"&S$2&\",,\"&$B471&\",\"=VLOOKUP(\"LIFETIME,\"&S$2&\",,\"&$B471&\",\",data[],1),VLOOKUP(\"LIFETIME,\"&S$2&\",,\"&$B471&\",\",data[],7),S$419)","v":20},null,null,null,null,{"$f":"IF(\"LIFETIME,\"&X$2&\",,\"&$B471&\",\"=VLOOKUP(\"LIFETIME,\"&X$2&\",,\"&$B471&\",\",data[],1),VLOOKUP(\"LIFETIME,\"&X$2&\",,\"&$B471&\",\",data[],7),X$419)","v":99},null,{"$f":"IF(\"LIFETIME,\"&Z$2&\",,\"&$B471&\",\"=VLOOKUP(\"LIFETIME,\"&Z$2&\",,\"&$B471&\",\",data[],1),VLOOKUP(\"LIFETIME,\"&Z$2&\",,\"&$B471&\",\",data[],7),Z$419)","v":20},null,null,null,{"$f":"IF(\"LIFETIME,\"&AD$2&\",,\"&$B471&\",\"=VLOOKUP(\"LIFETIME,\"&AD$2&\",,\"&$B471&\",\",data[],1),VLOOKUP(\"LIFETIME,\"&AD$2&\",,\"&$B471&\",\",data[],7),AD$419)","v":25},null,null,null,null,null,null,{"$f":"IF(\"LIFETIME,\"&AK$2&\",,\"&$B471&\",\"=VLOOKUP(\"LIFETIME,\"&AK$2&\",,\"&$B471&\",\",data[],1),VLOOKUP(\"LIFETIME,\"&AK$2&\",,\"&$B471&\",\",data[],7),AK$419)","v":30},null,{"$f":"IF(\"LIFETIME,\"&AM$2&\",,\"&$B471&\",\"=VLOOKUP(\"LIFETIME,\"&AM$2&\",,\"&$B471&\",\",data[],1),VLOOKUP(\"LIFETIME,\"&AM$2&\",,\"&$B471&\",\",data[],7),AM$419)","v":20},null,null,null,null,null,null,null,null,null,null,null,null,null,null,{"$f":"IF(NOT(BB65),0,IF(\"LIFETIME,\"&BB$2&\",,\"&$B471&\",\"=VLOOKUP(\"LIFETIME,\"&BB$2&\",,\"&$B471&\",\",data[],1),VLOOKUP(\"LIFETIME,\"&BB$2&\",,\"&$B471&\",\",data[],7),BB$419))","v":30},null,null,{"$f":"IF(NOT(BE65),0,IF(\"LIFETIME,\"&BE$2&\",,\"&$B471&\",\"=VLOOKUP(\"LIFETIME,\"&BE$2&\",,\"&$B471&\",\",data[],1),VLOOKUP(\"LIFETIME,\"&BE$2&\",,\"&$B471&\",\",data[],7),BE$419))","v":0}]
[null,"MAR-SOU",null,null,null,null,null,null,null,null,{"$f":"IF(\"LIFETIME,\"&$K66&\",,\"&$B472&\",\"=VLOOKUP(\"LIFETIME,\"&$K66&\",,\"&$B472&\",\",data[],1),VLOOKUP(\"LIFETIME,\"&$K66&\",,\"&$B472&\",\",data[],7),INDEX($E$419:$I$419,$J66))","v":20},null,null,null,null,null,{"$f":"IF(\"LIFETIME,\"&Q$2&\",,\"&$B472&\",\"=VLOOKUP(\"LIFETIME,\"&Q$2&\",,\"&$B472&\",\",data[],1),VLOOKUP(\"LIFETIME,\"&Q$2&\",,\"&$B472&\",\",data[],7),Q$419)","v":20},null,{"$f":"IF(\"LIFETIME,\"&S$2&\",,\"&$B472&\",\"=VLOOKUP(\"LIFETIME,\"&S$2&\",,\"&$B472&\",\",data[],1),VLOOKUP(\"LIFETIME,\"&S$2&\",,\"&$B472&\",\",data[],7),S$419)","v":20},null,null,null,null,{"$f":"IF(\"LIFETIME,\"&X$2&\",,\"&$B472&\",\"=VLOOKUP(\"LIFETIME,\"&X$2&\",,\"&$B472&\",\",data[],1),VLOOKUP(\"LIFETIME,\"&X$2&\",,\"&$B472&\",\",data[],7),X$419)","v":99},null,{"$f":"IF(\"LIFETIME,\"&Z$2&\",,\"&$B472&\",\"=VLOOKUP(\"LIFETIME,\"&Z$2&\",,\"&$B472&\",\",data[],1),VLOOKUP(\"LIFETIME,\"&Z$2&\",,\"&$B472&\",\",data[],7),Z$419)","v":20},null,null,null,{"$f":"IF(\"LIFETIME,\"&AD$2&\",,\"&$B472&\",\"=VLOOKUP(\"LIFETIME,\"&AD$2&\",,\"&$B472&\",\",data[],1),VLOOKUP(\"LIFETIME,\"&AD$2&\",,\"&$B472&\",\",data[],7),AD$419)","v":25},null,null,null,null,null,null,{"$f":"IF(\"LIFETIME,\"&AK$2&\",,\"&$B472&\",\"=VLOOKUP(\"LIFETIME,\"&AK$2&\",,\"&$B472&\",\",data[],1),VLOOKUP(\"LIFETIME,\"&AK$2&\",,\"&$B472&\",\",data[],7),AK$419)","v":30},null,{"$f":"IF(\"LIFETIME,\"&AM$2&\",,\"&$B472&\",\"=VLOOKUP(\"LIFETIME,\"&AM$2&\",,\"&$B472&\",\",data[],1),VLOOKUP(\"LIFETIME,\"&AM$2&\",,\"&$B472&\",\",data[],7),AM$419)","v":20},null,null,null,null,null,null,null,null,null,null,null,null,null,null,{"$f":"IF(NOT(BB66),0,IF(\"LIFETIME,\"&BB$2&\",,\"&$B472&\",\"=VLOOKUP(\"LIFETIME,\"&BB$2&\",,\"&$B472&\",\",data[],1),VLOOKUP(\"LIFETIME,\"&BB$2&\",,\"&$B472&\",\",data[],7),BB$419))","v":30},null,null,{"$f":"IF(NOT(BE66),0,IF(\"LIFETIME,\"&BE$2&\",,\"&$B472&\",\"=VLOOKUP(\"LIFETIME,\"&BE$2&\",,\"&$B472&\",\",data[],1),VLOOKUP(\"LIFETIME,\"&BE$2&\",,\"&$B472&\",\",data[],7),BE$419))","v":0}]
[null,"MAR-TAN",null,null,null,null,null,null,null,null,{"$f":"IF(\"LIFETIME,\"&$K67&\",,\"&$B473&\",\"=VLOOKUP(\"LIFETIME,\"&$K67&\",,\"&$B473&\",\",data[],1),VLOOKUP(\"LIFETIME,\"&$K67&\",,\"&$B473&\",\",data[],7),INDEX($E$419:$I$419,$J67))","v":20},null,null,null,null,null,{"$f":"IF(\"LIFETIME,\"&Q$2&\",,\"&$B473&\",\"=VLOOKUP(\"LIFETIME,\"&Q$2&\",,\"&$B473&\",\",data[],1),VLOOKUP(\"LIFETIME,\"&Q$2&\",,\"&$B473&\",\",data[],7),Q$419)","v":20},null,{"$f":"IF(\"LIFETIME,\"&S$2&\",,\"&$B473&\",\"=VLOOKUP(\"LIFETIME,\"&S$2&\",,\"&$B473&\",\",data[],1),VLOOKUP(\"LIFETIME,\"&S$2&\",,\"&$B473&\",\",data[],7),S$419)","v":20},null,null,null,null,{"$f":"IF(\"LIFETIME,\"&X$2&\",,\"&$B473&\",\"=VLOOKUP(\"LIFETIME,\"&X$2&\",,\"&$B473&\",\",data[],1),VLOOKUP(\"LIFETIME,\"&X$2&\",,\"&$B473&\",\",data[],7),X$419)","v":99},null,{"$f":"IF(\"LIFETIME,\"&Z$2&\",,\"&$B473&\",\"=VLOOKUP(\"LIFETIME,\"&Z$2&\",,\"&$B473&\",\",data[],1),VLOOKUP(\"LIFETIME,\"&Z$2&\",,\"&$B473&\",\",data[],7),Z$419)","v":20},null,null,null,{"$f":"IF(\"LIFETIME,\"&AD$2&\",,\"&$B473&\",\"=VLOOKUP(\"LIFETIME,\"&AD$2&\",,\"&$B473&\",\",data[],1),VLOOKUP(\"LIFETIME,\"&AD$2&\",,\"&$B473&\",\",data[],7),AD$419)","v":25},null,null,null,null,null,null,{"$f":"IF(\"LIFETIME,\"&AK$2&\",,\"&$B473&\",\"=VLOOKUP(\"LIFETIME,\"&AK$2&\",,\"&$B473&\",\",data[],1),VLOOKUP(\"LIFETIME,\"&AK$2&\",,\"&$B473&\",\",data[],7),AK$419)","v":30},null,{"$f":"IF(\"LIFETIME,\"&AM$2&\",,\"&$B473&\",\"=VLOOKUP(\"LIFETIME,\"&AM$2&\",,\"&$B473&\",\",data[],1),VLOOKUP(\"LIFETIME,\"&AM$2&\",,\"&$B473&\",\",data[],7),AM$419)","v":20},null,null,null,null,null,null,null,null,null,null,null,null,null,null,{"$f":"IF(NOT(BB67),0,IF(\"LIFETIME,\"&BB$2&\",,\"&$B473&\",\"=VLOOKUP(\"LIFETIME,\"&BB$2&\",,\"&$B473&\",\",data[],1),VLOOKUP(\"LIFETIME,\"&BB$2&\",,\"&$B473&\",\",data[],7),BB$419))","v":30},null,null,{"$f":"IF(NOT(BE67),0,IF(\"LIFETIME,\"&BE$2&\",,\"&$B473&\",\"=VLOOKUP(\"LIFETIME,\"&BE$2&\",,\"&$B473&\",\",data[],1),VLOOKUP(\"LIFETIME,\"&BE$2&\",,\"&$B473&\",\",data[],7),BE$419))","v":0}]
[null,"MEX",null,null,null,null,null,null,null,null,{"$f":"IF(\"LIFETIME,\"&$K68&\",,\"&$B474&\",\"=VLOOKUP(\"LIFETIME,\"&$K68&\",,\"&$B474&\",\",data[],1),VLOOKUP(\"LIFETIME,\"&$K68&\",,\"&$B474&\",\",data[],7),INDEX($E$419:$I$419,$J68))","v":20},null,null,null,null,null,{"$f":"IF(\"LIFETIME,\"&Q$2&\",,\"&$B474&\",\"=VLOOKUP(\"LIFETIME,\"&Q$2&\",,\"&$B474&\",\",data[],1),VLOOKUP(\"LIFETIME,\"&Q$2&\",,\"&$B474&\",\",data[],7),Q$419)","v":20},null,{"$f":"IF(\"LIFETIME,\"&S$2&\",,\"&$B474&\",\"=VLOOKUP(\"LIFETIME,\"&S$2&\",,\"&$B474&\",\",data[],1),VLOOKUP(\"LIFETIME,\"&S$2&\",,\"&$B474&\",\",data[],7),S$419)","v":20},null,null,null,null,{"$f":"IF(\"LIFETIME,\"&X$2&\",,\"&$B474&\",\"=VLOOKUP(\"LIFETIME,\"&X$2&\",,\"&$B474&\",\",data[],1),VLOOKUP(\"LIFETIME,\"&X$2&\",,\"&$B474&\",\",data[],7),X$419)","v":99},null,{"$f":"IF(\"LIFETIME,\"&Z$2&\",,\"&$B474&\",\"=VLOOKUP(\"LIFETIME,\"&Z$2&\",,\"&$B474&\",\",data[],1),VLOOKUP(\"LIFETIME,\"&Z$2&\",,\"&$B474&\",\",data[],7),Z$419)","v":20},null,null,null,{"$f":"IF(\"LIFETIME,\"&AD$2&\",,\"&$B474&\",\"=VLOOKUP(\"LIFETIME,\"&AD$2&\",,\"&$B474&\",\",data[],1),VLOOKUP(\"LIFETIME,\"&AD$2&\",,\"&$B474&\",\",data[],7),AD$419)","v":25},null,null,null,null,null,null,{"$f":"IF(\"LIFETIME,\"&AK$2&\",,\"&$B474&\",\"=VLOOKUP(\"LIFETIME,\"&AK$2&\",,\"&$B474&\",\",data[],1),VLOOKUP(\"LIFETIME,\"&AK$2&\",,\"&$B474&\",\",data[],7),AK$419)","v":30},null,{"$f":"IF(\"LIFETIME,\"&AM$2&\",,\"&$B474&\",\"=VLOOKUP(\"LIFETIME,\"&AM$2&\",,\"&$B474&\",\",data[],1),VLOOKUP(\"LIFETIME,\"&AM$2&\",,\"&$B474&\",\",data[],7),AM$419)","v":20},null,null,null,null,null,null,null,null,null,null,null,null,null,null,{"$f":"IF(NOT(BB68),0,IF(\"LIFETIME,\"&BB$2&\",,\"&$B474&\",\"=VLOOKUP(\"LIFETIME,\"&BB$2&\",,\"&$B474&\",\",data[],1),VLOOKUP(\"LIFETIME,\"&BB$2&\",,\"&$B474&\",\",data[],7),BB$419))","v":30},null,null,{"$f":"IF(NOT(BE68),0,IF(\"LIFETIME,\"&BE$2&\",,\"&$B474&\",\"=VLOOKUP(\"LIFETIME,\"&BE$2&\",,\"&$B474&\",\",data[],1),VLOOKUP(\"LIFETIME,\"&BE$2&\",,\"&$B474&\",\",data[],7),BE$419))","v":0}]
[null,"MRT",null,null,null,null,null,null,null,null,{"$f":"IF(\"LIFETIME,\"&$K69&\",,\"&$B475&\",\"=VLOOKUP(\"LIFETIME,\"&$K69&\",,\"&$B475&\",\",data[],1),VLOOKUP(\"LIFETIME,\"&$K69&\",,\"&$B475&\",\",data[],7),INDEX($E$419:$I$419,$J69))","v":20},null,null,null,null,null,{"$f":"IF(\"LIFETIME,\"&Q$2&\",,\"&$B475&\",\"=VLOOKUP(\"LIFETIME,\"&Q$2&\",,\"&$B475&\",\",data[],1),VLOOKUP(\"LIFETIME,\"&Q$2&\",,\"&$B475&\",\",data[],7),Q$419)","v":20},null,{"$f":"IF(\"LIFETIME,\"&S$2&\",,\"&$B475&\",\"=VLOOKUP(\"LIFETIME,\"&S$2&\",,\"&$B475&\",\",data[],1),VLOOKUP(\"LIFETIME,\"&S$2&\",,\"&$B475&\",\",data[],7),S$419)","v":20},null,null,null,null,{"$f":"IF(\"LIFETIME,\"&X$2&\",,\"&$B475&\",\"=VLOOKUP(\"LIFETIME,\"&X$2&\",,\"&$B475&\",\",data[],1),VLOOKUP(\"LIFETIME,\"&X$2&\",,\"&$B475&\",\",data[],7),X$419)","v":99},null,{"$f":"IF(\"LIFETIME,\"&Z$2&\",,\"&$B475&\",\"=VLOOKUP(\"LIFETIME,\"&Z$2&\",,\"&$B475&\",\",data[],1),VLOOKUP(\"LIFETIME,\"&Z$2&\",,\"&$B475&\",\",data[],7),Z$419)","v":20},null,null,null,{"$f":"IF(\"LIFETIME,\"&AD$2&\",,\"&$B475&\",\"=VLOOKUP(\"LIFETIME,\"&AD$2&\",,\"&$B475&\",\",data[],1),VLOOKUP(\"LIFETIME,\"&AD$2&\",,\"&$B475&\",\",data[],7),AD$419)","v":25},null,null,null,null,null,null,{"$f":"IF(\"LIFETIME,\"&AK$2&\",,\"&$B475&\",\"=VLOOKUP(\"LIFETIME,\"&AK$2&\",,\"&$B475&\",\",data[],1),VLOOKUP(\"LIFETIME,\"&AK$2&\",,\"&$B475&\",\",data[],7),AK$419)","v":30},null,{"$f":"IF(\"LIFETIME,\"&AM$2&\",,\"&$B475&\",\"=VLOOKUP(\"LIFETIME,\"&AM$2&\",,\"&$B475&\",\",data[],1),VLOOKUP(\"LIFETIME,\"&AM$2&\",,\"&$B475&\",\",data[],7),AM$419)","v":20},null,null,null,null,null,null,null,null,null,null,null,null,null,null,{"$f":"IF(NOT(BB69),0,IF(\"LIFETIME,\"&BB$2&\",,\"&$B475&\",\"=VLOOKUP(\"LIFETIME,\"&BB$2&\",,\"&$B475&\",\",data[],1),VLOOKUP(\"LIFETIME,\"&BB$2&\",,\"&$B475&\",\",data[],7),BB$419))","v":0},null,null,{"$f":"IF(NOT(BE69),0,IF(\"LIFETIME,\"&BE$2&\",,\"&$B475&\",\"=VLOOKUP(\"LIFETIME,\"&BE$2&\",,\"&$B475&\",\",data[],1),VLOOKUP(\"LIFETIME,\"&BE$2&\",,\"&$B475&\",\",data[],7),BE$419))","v":0}]
[null,"NAM",null,null,null,null,null,null,null,null,{"$f":"IF(\"LIFETIME,\"&$K70&\",,\"&$B476&\",\"=VLOOKUP(\"LIFETIME,\"&$K70&\",,\"&$B476&\",\",data[],1),VLOOKUP(\"LIFETIME,\"&$K70&\",,\"&$B476&\",\",data[],7),INDEX($E$419:$I$419,$J70))","v":20},null,null,null,null,null,{"$f":"IF(\"LIFETIME,\"&Q$2&\",,\"&$B476&\",\"=VLOOKUP(\"LIFETIME,\"&Q$2&\",,\"&$B476&\",\",data[],1),VLOOKUP(\"LIFETIME,\"&Q$2&\",,\"&$B476&\",\",data[],7),Q$419)","v":20},null,{"$f":"IF(\"LIFETIME,\"&S$2&\",,\"&$B476&\",\"=VLOOKUP(\"LIFETIME,\"&S$2&\",,\"&$B476&\",\",data[],1),VLOOKUP(\"LIFETIME,\"&S$2&\",,\"&$B476&\",\",data[],7),S$419)","v":20},null,null,null,null,{"$f":"IF(\"LIFETIME,\"&X$2&\",,\"&$B476&\",\"=VLOOKUP(\"LIFETIME,\"&X$2&\",,\"&$B476&\",\",data[],1),VLOOKUP(\"LIFETIME,\"&X$2&\",,\"&$B476&\",\",data[],7),X$419)","v":99},null,{"$f":"IF(\"LIFETIME,\"&Z$2&\",,\"&$B476&\",\"=VLOOKUP(\"LIFETIME,\"&Z$2&\",,\"&$B476&\",\",data[],1),VLOOKUP(\"LIFETIME,\"&Z$2&\",,\"&$B476&\",\",data[],7),Z$419)","v":20},null,null,null,{"$f":"IF(\"LIFETIME,\"&AD$2&\",,\"&$B476&\",\"=VLOOKUP(\"LIFETIME,\"&AD$2&\",,\"&$B476&\",\",data[],1),VLOOKUP(\"LIFETIME,\"&AD$2&\",,\"&$B476&\",\",data[],7),AD$419)","v":25},null,null,null,null,null,null,{"$f":"IF(\"LIFETIME,\"&AK$2&\",,\"&$B476&\",\"=VLOOKUP(\"LIFETIME,\"&AK$2&\",,\"&$B476&\",\",data[],1),VLOOKUP(\"LIFETIME,\"&AK$2&\",,\"&$B476&\",\",data[],7),AK$419)","v":30},null,{"$f":"IF(\"LIFETIME,\"&AM$2&\",,\"&$B476&\",\"=VLOOKUP(\"LIFETIME,\"&AM$2&\",,\"&$B476&\",\",data[],1),VLOOKUP(\"LIFETIME,\"&AM$2&\",,\"&$B476&\",\",data[],7),AM$419)","v":20},null,null,null,null,null,null,null,null,null,null,null,null,null,null,{"$f":"IF(NOT(BB70),0,IF(\"LIFETIME,\"&BB$2&\",,\"&$B476&\",\"=VLOOKUP(\"LIFETIME,\"&BB$2&\",,\"&$B476&\",\",data[],1),VLOOKUP(\"LIFETIME,\"&BB$2&\",,\"&$B476&\",\",data[],7),BB$419))","v":30},null,null,{"$f":"IF(NOT(BE70),0,IF(\"LIFETIME,\"&BE$2&\",,\"&$B476&\",\"=VLOOKUP(\"LIFETIME,\"&BE$2&\",,\"&$B476&\",\",data[],1),VLOOKUP(\"LIFETIME,\"&BE$2&\",,\"&$B476&\",\",data[],7),BE$419))","v":0}]
[null,"NOR",null,null,null,null,null,null,null,null,{"$f":"IF(\"LIFETIME,\"&$K71&\",,\"&$B477&\",\"=VLOOKUP(\"LIFETIME,\"&$K71&\",,\"&$B477&\",\",data[],1),VLOOKUP(\"LIFETIME,\"&$K71&\",,\"&$B477&\",\",data[],7),INDEX($E$419:$I$419,$J71))","v":20},null,null,null,null,null,{"$f":"IF(\"LIFETIME,\"&Q$2&\",,\"&$B477&\",\"=VLOOKUP(\"LIFETIME,\"&Q$2&\",,\"&$B477&\",\",data[],1),VLOOKUP(\"LIFETIME,\"&Q$2&\",,\"&$B477&\",\",data[],7),Q$419)","v":20},null,{"$f":"IF(\"LIFETIME,\"&S$2&\",,\"&$B477&\",\"=VLOOKUP(\"LIFETIME,\"&S$2&\",,\"&$B477&\",\",data[],1),VLOOKUP(\"LIFETIME,\"&S$2&\",,\"&$B477&\",\",data[],7),S$419)","v":20},null,null,null,null,{"$f":"IF(\"LIFETIME,\"&X$2&\",,\"&$B477&\",\"=VLOOKUP(\"LIFETIME,\"&X$2&\",,\"&$B477&\",\",data[],1),VLOOKUP(\"LIFETIME,\"&X$2&\",,\"&$B477&\",\",data[],7),X$419)","v":99},null,{"$f":"IF(\"LIFETIME,\"&Z$2&\",,\"&$B477&\",\"=VLOOKUP(\"LIFETIME,\"&Z$2&\",,\"&$B477&\",\",data[],1),VLOOKUP(\"LIFETIME,\"&Z$2&\",,\"&$B477&\",\",data[],7),Z$419)","v":20},null,null,null,{"$f":"IF(\"LIFETIME,\"&AD$2&\",,\"&$B477&\",\"=VLOOKUP(\"LIFETIME,\"&AD$2&\",,\"&$B477&\",\",data[],1),VLOOKUP(\"LIFETIME,\"&AD$2&\",,\"&$B477&\",\",data[],7),AD$419)","v":25},null,null,null,null,null,null,{"$f":"IF(\"LIFETIME,\"&AK$2&\",,\"&$B477&\",\"=VLOOKUP(\"LIFETIME,\"&AK$2&\",,\"&$B477&\",\",data[],1),VLOOKUP(\"LIFETIME,\"&AK$2&\",,\"&$B477&\",\",data[],7),AK$419)","v":30},null,{"$f":"IF(\"LIFETIME,\"&AM$2&\",,\"&$B477&\",\"=VLOOKUP(\"LIFETIME,\"&AM$2&\",,\"&$B477&\",\",data[],1),VLOOKUP(\"LIFETIME,\"&AM$2&\",,\"&$B477&\",\",data[],7),AM$419)","v":20},null,null,null,null,null,null,null,null,null,null,null,null,null,null,{"$f":"IF(NOT(BB71),0,IF(\"LIFETIME,\"&BB$2&\",,\"&$B477&\",\"=VLOOKUP(\"LIFETIME,\"&BB$2&\",,\"&$B477&\",\",data[],1),VLOOKUP(\"LIFETIME,\"&BB$2&\",,\"&$B477&\",\",data[],7),BB$419))","v":0},null,null,{"$f":"IF(NOT(BE71),0,IF(\"LIFETIME,\"&BE$2&\",,\"&$B477&\",\"=VLOOKUP(\"LIFETIME,\"&BE$2&\",,\"&$B477&\",\",data[],1),VLOOKUP(\"LIFETIME,\"&BE$2&\",,\"&$B477&\",\",data[],7),BE$419))","v":0}]
[null,"PER",null,null,null,null,null,null,null,null,{"$f":"IF(\"LIFETIME,\"&$K72&\",,\"&$B478&\",\"=VLOOKUP(\"LIFETIME,\"&$K72&\",,\"&$B478&\",\",data[],1),VLOOKUP(\"LIFETIME,\"&$K72&\",,\"&$B478&\",\",data[],7),INDEX($E$419:$I$419,$J72))","v":20},null,null,null,null,null,{"$f":"IF(\"LIFETIME,\"&Q$2&\",,\"&$B478&\",\"=VLOOKUP(\"LIFETIME,\"&Q$2&\",,\"&$B478&\",\",data[],1),VLOOKUP(\"LIFETIME,\"&Q$2&\",,\"&$B478&\",\",data[],7),Q$419)","v":20},null,{"$f":"IF(\"LIFETIME,\"&S$2&\",,\"&$B478&\",\"=VLOOKUP(\"LIFETIME,\"&S$2&\",,\"&$B478&\",\",data[],1),VLOOKUP(\"LIFETIME,\"&S$2&\",,\"&$B478&\",\",data[],7),S$419)","v":20},null,null,null,null,{"$f":"IF(\"LIFETIME,\"&X$2&\",,\"&$B478&\",\"=VLOOKUP(\"LIFETIME,\"&X$2&\",,\"&$B478&\",\",data[],1),VLOOKUP(\"LIFETIME,\"&X$2&\",,\"&$B478&\",\",data[],7),X$419)","v":99},null,{"$f":"IF(\"LIFETIME,\"&Z$2&\",,\"&$B478&\",\"=VLOOKUP(\"LIFETIME,\"&Z$2&\",,\"&$B478&\",\",data[],1),VLOOKUP(\"LIFETIME,\"&Z$2&\",,\"&$B478&\",\",data[],7),Z$419)","v":20},null,null,null,{"$f":"IF(\"LIFETIME,\"&AD$2&\",,\"&$B478&\",\"=VLOOKUP(\"LIFETIME,\"&AD$2&\",,\"&$B478&\",\",data[],1),VLOOKUP(\"LIFETIME,\"&AD$2&\",,\"&$B478&\",\",data[],7),AD$419)","v":25},null,null,null,null,null,null,{"$f":"IF(\"LIFETIME,\"&AK$2&\",,\"&$B478&\",\"=VLOOKUP(\"LIFETIME,\"&AK$2&\",,\"&$B478&\",\",data[],1),VLOOKUP(\"LIFETIME,\"&AK$2&\",,\"&$B478&\",\",data[],7),AK$419)","v":30},null,{"$f":"IF(\"LIFETIME,\"&AM$2&\",,\"&$B478&\",\"=VLOOKUP(\"LIFETIME,\"&AM$2&\",,\"&$B478&\",\",data[],1),VLOOKUP(\"LIFETIME,\"&AM$2&\",,\"&$B478&\",\",data[],7),AM$419)","v":20},null,null,null,null,null,null,null,null,null,null,null,null,null,null,{"$f":"IF(NOT(BB72),0,IF(\"LIFETIME,\"&BB$2&\",,\"&$B478&\",\"=VLOOKUP(\"LIFETIME,\"&BB$2&\",,\"&$B478&\",\",data[],1),VLOOKUP(\"LIFETIME,\"&BB$2&\",,\"&$B478&\",\",data[],7),BB$419))","v":30},null,null,{"$f":"IF(NOT(BE72),0,IF(\"LIFETIME,\"&BE$2&\",,\"&$B478&\",\"=VLOOKUP(\"LIFETIME,\"&BE$2&\",,\"&$B478&\",\",data[],1),VLOOKUP(\"LIFETIME,\"&BE$2&\",,\"&$B478&\",\",data[],7),BE$419))","v":0}]
[null,"PRT",null,null,null,null,null,null,null,null,{"$f":"IF(\"LIFETIME,\"&$K73&\",,\"&$B479&\",\"=VLOOKUP(\"LIFETIME,\"&$K73&\",,\"&$B479&\",\",data[],1),VLOOKUP(\"LIFETIME,\"&$K73&\",,\"&$B479&\",\",data[],7),INDEX($E$419:$I$419,$J73))","v":20},null,null,null,null,null,{"$f":"IF(\"LIFETIME,\"&Q$2&\",,\"&$B479&\",\"=VLOOKUP(\"LIFETIME,\"&Q$2&\",,\"&$B479&\",\",data[],1),VLOOKUP(\"LIFETIME,\"&Q$2&\",,\"&$B479&\",\",data[],7),Q$419)","v":20},null,{"$f":"IF(\"LIFETIME,\"&S$2&\",,\"&$B479&\",\"=VLOOKUP(\"LIFETIME,\"&S$2&\",,\"&$B479&\",\",data[],1),VLOOKUP(\"LIFETIME,\"&S$2&\",,\"&$B479&\",\",data[],7),S$419)","v":20},null,null,null,null,{"$f":"IF(\"LIFETIME,\"&X$2&\",,\"&$B479&\",\"=VLOOKUP(\"LIFETIME,\"&X$2&\",,\"&$B479&\",\",data[],1),VLOOKUP(\"LIFETIME,\"&X$2&\",,\"&$B479&\",\",data[],7),X$419)","v":99},null,{"$f":"IF(\"LIFETIME,\"&Z$2&\",,\"&$B479&\",\"=VLOOKUP(\"LIFETIME,\"&Z$2&\",,\"&$B479&\",\",data[],1),VLOOKUP(\"LIFETIME,\"&Z$2&\",,\"&$B479&\",\",data[],7),Z$419)","v":20},null,null,null,{"$f":"IF(\"LIFETIME,\"&AD$2&\",,\"&$B479&\",\"=VLOOKUP(\"LIFETIME,\"&AD$2&\",,\"&$B479&\",\",data[],1),VLOOKUP(\"LIFETIME,\"&AD$2&\",,\"&$B479&\",\",data[],7),AD$419)","v":25},null,null,null,null,null,null,{"$f":"IF(\"LIFETIME,\"&AK$2&\",,\"&$B479&\",\"=VLOOKUP(\"LIFETIME,\"&AK$2&\",,\"&$B479&\",\",data[],1),VLOOKUP(\"LIFETIME,\"&AK$2&\",,\"&$B479&\",\",data[],7),AK$419)","v":30},null,{"$f":"IF(\"LIFETIME,\"&AM$2&\",,\"&$B479&\",\"=VLOOKUP(\"LIFETIME,\"&AM$2&\",,\"&$B479&\",\",data[],1),VLOOKUP(\"LIFETIME,\"&AM$2&\",,\"&$B479&\",\",data[],7),AM$419)","v":20},null,null,null,null,null,null,null,null,null,null,null,null,null,null,{"$f":"IF(NOT(BB73),0,IF(\"LIFETIME,\"&BB$2&\",,\"&$B479&\",\"=VLOOKUP(\"LIFETIME,\"&BB$2&\",,\"&$B479&\",\",data[],1),VLOOKUP(\"LIFETIME,\"&BB$2&\",,\"&$B479&\",\",data[],7),BB$419))","v":0},null,null,{"$f":"IF(NOT(BE73),0,IF(\"LIFETIME,\"&BE$2&\",,\"&$B479&\",\"=VLOOKUP(\"LIFETIME,\"&BE$2&\",,\"&$B479&\",\",data[],1),VLOOKUP(\"LIFETIME,\"&BE$2&\",,\"&$B479&\",\",data[],7),BE$419))","v":0}]
[null,"RUS",null,null,null,null,null,null,null,null,{"$f":"IF(\"LIFETIME,\"&$K74&\",,\"&$B480&\",\"=VLOOKUP(\"LIFETIME,\"&$K74&\",,\"&$B480&\",\",data[],1),VLOOKUP(\"LIFETIME,\"&$K74&\",,\"&$B480&\",\",data[],7),INDEX($E$419:$I$419,$J74))","v":20},null,null,null,null,null,{"$f":"IF(\"LIFETIME,\"&Q$2&\",,\"&$B480&\",\"=VLOOKUP(\"LIFETIME,\"&Q$2&\",,\"&$B480&\",\",data[],1),VLOOKUP(\"LIFETIME,\"&Q$2&\",,\"&$B480&\",\",data[],7),Q$419)","v":20},null,{"$f":"IF(\"LIFETIME,\"&S$2&\",,\"&$B480&\",\"=VLOOKUP(\"LIFETIME,\"&S$2&\",,\"&$B480&\",\",data[],1),VLOOKUP(\"LIFETIME,\"&S$2&\",,\"&$B480&\",\",data[],7),S$419)","v":20},null,null,null,null,{"$f":"IF(\"LIFETIME,\"&X$2&\",,\"&$B480&\",\"=VLOOKUP(\"LIFETIME,\"&X$2&\",,\"&$B480&\",\",data[],1),VLOOKUP(\"LIFETIME,\"&X$2&\",,\"&$B480&\",\",data[],7),X$419)","v":99},null,{"$f":"IF(\"LIFETIME,\"&Z$2&\",,\"&$B480&\",\"=VLOOKUP(\"LIFETIME,\"&Z$2&\",,\"&$B480&\",\",data[],1),VLOOKUP(\"LIFETIME,\"&Z$2&\",,\"&$B480&\",\",data[],7),Z$419)","v":20},null,null,null,{"$f":"IF(\"LIFETIME,\"&AD$2&\",,\"&$B480&\",\"=VLOOKUP(\"LIFETIME,\"&AD$2&\",,\"&$B480&\",\",data[],1),VLOOKUP(\"LIFETIME,\"&AD$2&\",,\"&$B480&\",\",data[],7),AD$419)","v":25},null,null,null,null,null,null,{"$f":"IF(\"LIFETIME,\"&AK$2&\",,\"&$B480&\",\"=VLOOKUP(\"LIFETIME,\"&AK$2&\",,\"&$B480&\",\",data[],1),VLOOKUP(\"LIFETIME,\"&AK$2&\",,\"&$B480&\",\",data[],7),AK$419)","v":30},null,{"$f":"IF(\"LIFETIME,\"&AM$2&\",,\"&$B480&\",\"=VLOOKUP(\"LIFETIME,\"&AM$2&\",,\"&$B480&\",\",data[],1),VLOOKUP(\"LIFETIME,\"&AM$2&\",,\"&$B480&\",\",data[],7),AM$419)","v":20},null,null,null,null,null,null,null,null,null,null,null,null,null,null,{"$f":"IF(NOT(BB74),0,IF(\"LIFETIME,\"&BB$2&\",,\"&$B480&\",\"=VLOOKUP(\"LIFETIME,\"&BB$2&\",,\"&$B480&\",\",data[],1),VLOOKUP(\"LIFETIME,\"&BB$2&\",,\"&$B480&\",\",data[],7),BB$419))","v":0},null,null,{"$f":"IF(NOT(BE74),0,IF(\"LIFETIME,\"&BE$2&\",,\"&$B480&\",\"=VLOOKUP(\"LIFETIME,\"&BE$2&\",,\"&$B480&\",\",data[],1),VLOOKUP(\"LIFETIME,\"&BE$2&\",,\"&$B480&\",\",data[],7),BE$419))","v":0}]
[null,"SAU",null,null,null,null,null,null,null,null,{"$f":"IF(\"LIFETIME,\"&$K75&\",,\"&$B481&\",\"=VLOOKUP(\"LIFETIME,\"&$K75&\",,\"&$B481&\",\",data[],1),VLOOKUP(\"LIFETIME,\"&$K75&\",,\"&$B481&\",\",data[],7),INDEX($E$419:$I$419,$J75))","v":20},null,null,null,null,null,{"$f":"IF(\"LIFETIME,\"&Q$2&\",,\"&$B481&\",\"=VLOOKUP(\"LIFETIME,\"&Q$2&\",,\"&$B481&\",\",data[],1),VLOOKUP(\"LIFETIME,\"&Q$2&\",,\"&$B481&\",\",data[],7),Q$419)","v":20},null,{"$f":"IF(\"LIFETIME,\"&S$2&\",,\"&$B481&\",\"=VLOOKUP(\"LIFETIME,\"&S$2&\",,\"&$B481&\",\",data[],1),VLOOKUP(\"LIFETIME,\"&S$2&\",,\"&$B481&\",\",data[],7),S$419)","v":20},null,null,null,null,{"$f":"IF(\"LIFETIME,\"&X$2&\",,\"&$B481&\",\"=VLOOKUP(\"LIFETIME,\"&X$2&\",,\"&$B481&\",\",data[],1),VLOOKUP(\"LIFETIME,\"&X$2&\",,\"&$B481&\",\",data[],7),X$419)","v":99},null,{"$f":"IF(\"LIFETIME,\"&Z$2&\",,\"&$B481&\",\"=VLOOKUP(\"LIFETIME,\"&Z$2&\",,\"&$B481&\",\",data[],1),VLOOKUP(\"LIFETIME,\"&Z$2&\",,\"&$B481&\",\",data[],7),Z$419)","v":20},null,null,null,{"$f":"IF(\"LIFETIME,\"&AD$2&\",,\"&$B481&\",\"=VLOOKUP(\"LIFETIME,\"&AD$2&\",,\"&$B481&\",\",data[],1),VLOOKUP(\"LIFETIME,\"&AD$2&\",,\"&$B481&\",\",data[],7),AD$419)","v":25},null,null,null,null,null,null,{"$f":"IF(\"LIFETIME,\"&AK$2&\",,\"&$B481&\",\"=VLOOKUP(\"LIFETIME,\"&AK$2&\",,\"&$B481&\",\",data[],1),VLOOKUP(\"LIFETIME,\"&AK$2&\",,\"&$B481&\",\",data[],7),AK$419)","v":30},null,{"$f":"IF(\"LIFETIME,\"&AM$2&\",,\"&$B481&\",\"=VLOOKUP(\"LIFETIME,\"&AM$2&\",,\"&$B481&\",\",data[],1),VLOOKUP(\"LIFETIME,\"&AM$2&\",,\"&$B481&\",\",data[],7),AM$419)","v":20},null,null,null,null,null,null,null,null,null,null,null,null,null,null,{"$f":"IF(NOT(BB75),0,IF(\"LIFETIME,\"&BB$2&\",,\"&$B481&\",\"=VLOOKUP(\"LIFETIME,\"&BB$2&\",,\"&$B481&\",\",data[],1),VLOOKUP(\"LIFETIME,\"&BB$2&\",,\"&$B481&\",\",data[],7),BB$419))","v":0},null,null,{"$f":"IF(NOT(BE75),0,IF(\"LIFETIME,\"&BE$2&\",,\"&$B481&\",\"=VLOOKUP(\"LIFETIME,\"&BE$2&\",,\"&$B481&\",\",data[],1),VLOOKUP(\"LIFETIME,\"&BE$2&\",,\"&$B481&\",\",data[],7),BE$419))","v":0}]
[null,"SWE",null,null,null,null,null,null,null,null,{"$f":"IF(\"LIFETIME,\"&$K76&\",,\"&$B482&\",\"=VLOOKUP(\"LIFETIME,\"&$K76&\",,\"&$B482&\",\",data[],1),VLOOKUP(\"LIFETIME,\"&$K76&\",,\"&$B482&\",\",data[],7),INDEX($E$419:$I$419,$J76))","v":20},null,null,null,null,null,{"$f":"IF(\"LIFETIME,\"&Q$2&\",,\"&$B482&\",\"=VLOOKUP(\"LIFETIME,\"&Q$2&\",,\"&$B482&\",\",data[],1),VLOOKUP(\"LIFETIME,\"&Q$2&\",,\"&$B482&\",\",data[],7),Q$419)","v":20},null,{"$f":"IF(\"LIFETIME,\"&S$2&\",,\"&$B482&\",\"=VLOOKUP(\"LIFETIME,\"&S$2&\",,\"&$B482&\",\",data[],1),VLOOKUP(\"LIFETIME,\"&S$2&\",,\"&$B482&\",\",data[],7),S$419)","v":20},null,null,null,null,{"$f":"IF(\"LIFETIME,\"&X$2&\",,\"&$B482&\",\"=VLOOKUP(\"LIFETIME,\"&X$2&\",,\"&$B482&\",\",data[],1),VLOOKUP(\"LIFETIME,\"&X$2&\",,\"&$B482&\",\",data[],7),X$419)","v":99},null,{"$f":"IF(\"LIFETIME,\"&Z$2&\",,\"&$B482&\",\"=VLOOKUP(\"LIFETIME,\"&Z$2&\",,\"&$B482&\",\",data[],1),VLOOKUP(\"LIFETIME,\"&Z$2&\",,\"&$B482&\",\",data[],7),Z$419)","v":20},null,null,null,{"$f":"IF(\"LIFETIME,\"&AD$2&\",,\"&$B482&\",\"=VLOOKUP(\"LIFETIME,\"&AD$2&\",,\"&$B482&\",\",data[],1),VLOOKUP(\"LIFETIME,\"&AD$2&\",,\"&$B482&\",\",data[],7),AD$419)","v":25},null,null,null,null,null,null,{"$f":"IF(\"LIFETIME,\"&AK$2&\",,\"&$B482&\",\"=VLOOKUP(\"LIFETIME,\"&AK$2&\",,\"&$B482&\",\",data[],1),VLOOKUP(\"LIFETIME,\"&AK$2&\",,\"&$B482&\",\",data[],7),AK$419)","v":30},null,{"$f":"IF(\"LIFETIME,\"&AM$2&\",,\"&$B482&\",\"=VLOOKUP(\"LIFETIME,\"&AM$2&\",,\"&$B482&\",\",data[],1),VLOOKUP(\"LIFETIME,\"&AM$2&\",,\"&$B482&\",\",data[],7),AM$419)","v":20},null,null,null,null,null,null,null,null,null,null,null,null,null,null,{"$f":"IF(NOT(BB76),0,IF(\"LIFETIME,\"&BB$2&\",,\"&$B482&\",\"=VLOOKUP(\"LIFETIME,\"&BB$2&\",,\"&$B482&\",\",data[],1),VLOOKUP(\"LIFETIME,\"&BB$2&\",,\"&$B482&\",\",data[],7),BB$419))","v":0},null,null,{"$f":"IF(NOT(BE76),0,IF(\"LIFETIME,\"&BE$2&\",,\"&$B482&\",\"=VLOOKUP(\"LIFETIME,\"&BE$2&\",,\"&$B482&\",\",data[],1),VLOOKUP(\"LIFETIME,\"&BE$2&\",,\"&$B482&\",\",data[],7),BE$419))","v":0}]
[null,"THA",null,null,null,null,null,null,null,null,{"$f":"IF(\"LIFETIME,\"&$K77&\",,\"&$B483&\",\"=VLOOKUP(\"LIFETIME,\"&$K77&\",,\"&$B483&\",\",data[],1),VLOOKUP(\"LIFETIME,\"&$K77&\",,\"&$B483&\",\",data[],7),INDEX($E$419:$I$419,$J77))","v":20},null,null,null,null,null,{"$f":"IF(\"LIFETIME,\"&Q$2&\",,\"&$B483&\",\"=VLOOKUP(\"LIFETIME,\"&Q$2&\",,\"&$B483&\",\",data[],1),VLOOKUP(\"LIFETIME,\"&Q$2&\",,\"&$B483&\",\",data[],7),Q$419)","v":20},null,{"$f":"IF(\"LIFETIME,\"&S$2&\",,\"&$B483&\",\"=VLOOKUP(\"LIFETIME,\"&S$2&\",,\"&$B483&\",\",data[],1),VLOOKUP(\"LIFETIME,\"&S$2&\",,\"&$B483&\",\",data[],7),S$419)","v":20},null,null,null,null,{"$f":"IF(\"LIFETIME,\"&X$2&\",,\"&$B483&\",\"=VLOOKUP(\"LIFETIME,\"&X$2&\",,\"&$B483&\",\",data[],1),VLOOKUP(\"LIFETIME,\"&X$2&\",,\"&$B483&\",\",data[],7),X$419)","v":99},null,{"$f":"IF(\"LIFETIME,\"&Z$2&\",,\"&$B483&\",\"=VLOOKUP(\"LIFETIME,\"&Z$2&\",,\"&$B483&\",\",data[],1),VLOOKUP(\"LIFETIME,\"&Z$2&\",,\"&$B483&\",\",data[],7),Z$419)","v":20},null,null,null,{"$f":"IF(\"LIFETIME,\"&AD$2&\",,\"&$B483&\",\"=VLOOKUP(\"LIFETIME,\"&AD$2&\",,\"&$B483&\",\",data[],1),VLOOKUP(\"LIFETIME,\"&AD$2&\",,\"&$B483&\",\",data[],7),AD$419)","v":25},null,null,null,null,null,null,{"$f":"IF(\"LIFETIME,\"&AK$2&\",,\"&$B483&\",\"=VLOOKUP(\"LIFETIME,\"&AK$2&\",,\"&$B483&\",\",data[],1),VLOOKUP(\"LIFETIME,\"&AK$2&\",,\"&$B483&\",\",data[],7),AK$419)","v":30},null,{"$f":"IF(\"LIFETIME,\"&AM$2&\",,\"&$B483&\",\"=VLOOKUP(\"LIFETIME,\"&AM$2&\",,\"&$B483&\",\",data[],1),VLOOKUP(\"LIFETIME,\"&AM$2&\",,\"&$B483&\",\",data[],7),AM$419)","v":20},null,null,null,null,null,null,null,null,null,null,null,null,null,null,{"$f":"IF(NOT(BB77),0,IF(\"LIFETIME,\"&BB$2&\",,\"&$B483&\",\"=VLOOKUP(\"LIFETIME,\"&BB$2&\",,\"&$B483&\",\",data[],1),VLOOKUP(\"LIFETIME,\"&BB$2&\",,\"&$B483&\",\",data[],7),BB$419))","v":30},null,null,{"$f":"IF(NOT(BE77),0,IF(\"LIFETIME,\"&BE$2&\",,\"&$B483&\",\"=VLOOKUP(\"LIFETIME,\"&BE$2&\",,\"&$B483&\",\",data[],1),VLOOKUP(\"LIFETIME,\"&BE$2&\",,\"&$B483&\",\",data[],7),BE$419))","v":0}]
[null,"TUN",null,null,null,null,null,null,null,null,{"$f":"IF(\"LIFETIME,\"&$K78&\",,\"&$B484&\",\"=VLOOKUP(\"LIFETIME,\"&$K78&\",,\"&$B484&\",\",data[],1),VLOOKUP(\"LIFETIME,\"&$K78&\",,\"&$B484&\",\",data[],7),INDEX($E$419:$I$419,$J78))","v":20},null,null,null,null,null,{"$f":"IF(\"LIFETIME,\"&Q$2&\",,\"&$B484&\",\"=VLOOKUP(\"LIFETIME,\"&Q$2&\",,\"&$B484&\",\",data[],1),VLOOKUP(\"LIFETIME,\"&Q$2&\",,\"&$B484&\",\",data[],7),Q$419)","v":20},null,{"$f":"IF(\"LIFETIME,\"&S$2&\",,\"&$B484&\",\"=VLOOKUP(\"LIFETIME,\"&S$2&\",,\"&$B484&\",\",data[],1),VLOOKUP(\"LIFETIME,\"&S$2&\",,\"&$B484&\",\",data[],7),S$419)","v":20},null,null,null,null,{"$f":"IF(\"LIFETIME,\"&X$2&\",,\"&$B484&\",\"=VLOOKUP(\"LIFETIME,\"&X$2&\",,\"&$B484&\",\",data[],1),VLOOKUP(\"LIFETIME,\"&X$2&\",,\"&$B484&\",\",data[],7),X$419)","v":99},null,{"$f":"IF(\"LIFETIME,\"&Z$2&\",,\"&$B484&\",\"=VLOOKUP(\"LIFETIME,\"&Z$2&\",,\"&$B484&\",\",data[],1),VLOOKUP(\"LIFETIME,\"&Z$2&\",,\"&$B484&\",\",data[],7),Z$419)","v":20},null,null,null,{"$f":"IF(\"LIFETIME,\"&AD$2&\",,\"&$B484&\",\"=VLOOKUP(\"LIFETIME,\"&AD$2&\",,\"&$B484&\",\",data[],1),VLOOKUP(\"LIFETIME,\"&AD$2&\",,\"&$B484&\",\",data[],7),AD$419)","v":25},null,null,null,null,null,null,{"$f":"IF(\"LIFETIME,\"&AK$2&\",,\"&$B484&\",\"=VLOOKUP(\"LIFETIME,\"&AK$2&\",,\"&$B484&\",\",data[],1),VLOOKUP(\"LIFETIME,\"&AK$2&\",,\"&$B484&\",\",data[],7),AK$419)","v":30},null,{"$f":"IF(\"LIFETIME,\"&AM$2&\",,\"&$B484&\",\"=VLOOKUP(\"LIFETIME,\"&AM$2&\",,\"&$B484&\",\",data[],1),VLOOKUP(\"LIFETIME,\"&AM$2&\",,\"&$B484&\",\",data[],7),AM$419)","v":20},null,null,null,null,null,null,null,null,null,null,null,null,null,null,{"$f":"IF(NOT(BB78),0,IF(\"LIFETIME,\"&BB$2&\",,\"&$B484&\",\"=VLOOKUP(\"LIFETIME,\"&BB$2&\",,\"&$B484&\",\",data[],1),VLOOKUP(\"LIFETIME,\"&BB$2&\",,\"&$B484&\",\",data[],7),BB$419))","v":0},null,null,{"$f":"IF(NOT(BE78),0,IF(\"LIFETIME,\"&BE$2&\",,\"&$B484&\",\"=VLOOKUP(\"LIFETIME,\"&BE$2&\",,\"&$B484&\",\",data[],1),VLOOKUP(\"LIFETIME,\"&BE$2&\",,\"&$B484&\",\",data[],7),BE$419))","v":0}]
[null,"UKR",null,null,null,null,null,null,null,null,{"$f":"IF(\"LIFETIME,\"&$K79&\",,\"&$B485&\",\"=VLOOKUP(\"LIFETIME,\"&$K79&\",,\"&$B485&\",\",data[],1),VLOOKUP(\"LIFETIME,\"&$K79&\",,\"&$B485&\",\",data[],7),INDEX($E$419:$I$419,$J79))","v":20},null,null,null,null,null,{"$f":"IF(\"LIFETIME,\"&Q$2&\",,\"&$B485&\",\"=VLOOKUP(\"LIFETIME,\"&Q$2&\",,\"&$B485&\",\",data[],1),VLOOKUP(\"LIFETIME,\"&Q$2&\",,\"&$B485&\",\",data[],7),Q$419)","v":20},null,{"$f":"IF(\"LIFETIME,\"&S$2&\",,\"&$B485&\",\"=VLOOKUP(\"LIFETIME,\"&S$2&\",,\"&$B485&\",\",data[],1),VLOOKUP(\"LIFETIME,\"&S$2&\",,\"&$B485&\",\",data[],7),S$419)","v":20},null,null,null,null,{"$f":"IF(\"LIFETIME,\"&X$2&\",,\"&$B485&\",\"=VLOOKUP(\"LIFETIME,\"&X$2&\",,\"&$B485&\",\",data[],1),VLOOKUP(\"LIFETIME,\"&X$2&\",,\"&$B485&\",\",data[],7),X$419)","v":99},null,{"$f":"IF(\"LIFETIME,\"&Z$2&\",,\"&$B485&\",\"=VLOOKUP(\"LIFETIME,\"&Z$2&\",,\"&$B485&\",\",data[],1),VLOOKUP(\"LIFETIME,\"&Z$2&\",,\"&$B485&\",\",data[],7),Z$419)","v":20},null,null,null,{"$f":"IF(\"LIFETIME,\"&AD$2&\",,\"&$B485&\",\"=VLOOKUP(\"LIFETIME,\"&AD$2&\",,\"&$B485&\",\",data[],1),VLOOKUP(\"LIFETIME,\"&AD$2&\",,\"&$B485&\",\",data[],7),AD$419)","v":25},null,null,null,null,null,null,{"$f":"IF(\"LIFETIME,\"&AK$2&\",,\"&$B485&\",\"=VLOOKUP(\"LIFETIME,\"&AK$2&\",,\"&$B485&\",\",data[],1),VLOOKUP(\"LIFETIME,\"&AK$2&\",,\"&$B485&\",\",data[],7),AK$419)","v":30},null,{"$f":"IF(\"LIFETIME,\"&AM$2&\",,\"&$B485&\",\"=VLOOKUP(\"LIFETIME,\"&AM$2&\",,\"&$B485&\",\",data[],1),VLOOKUP(\"LIFETIME,\"&AM$2&\",,\"&$B485&\",\",data[],7),AM$419)","v":20},null,null,null,null,null,null,null,null,null,null,null,null,null,null,{"$f":"IF(NOT(BB79),0,IF(\"LIFETIME,\"&BB$2&\",,\"&$B485&\",\"=VLOOKUP(\"LIFETIME,\"&BB$2&\",,\"&$B485&\",\",data[],1),VLOOKUP(\"LIFETIME,\"&BB$2&\",,\"&$B485&\",\",data[],7),BB$419))","v":0},null,null,{"$f":"IF(NOT(BE79),0,IF(\"LIFETIME,\"&BE$2&\",,\"&$B485&\",\"=VLOOKUP(\"LIFETIME,\"&BE$2&\",,\"&$B485&\",\",data[],1),VLOOKUP(\"LIFETIME,\"&BE$2&\",,\"&$B485&\",\",data[],7),BE$419))","v":0}]
[null,"URY",null,null,null,null,null,null,null,null,{"$f":"IF(\"LIFETIME,\"&$K80&\",,\"&$B486&\",\"=VLOOKUP(\"LIFETIME,\"&$K80&\",,\"&$B486&\",\",data[],1),VLOOKUP(\"LIFETIME,\"&$K80&\",,\"&$B486&\",\",data[],7),INDEX($E$419:$I$419,$J80))","v":20},null,null,null,null,null,{"$f":"IF(\"LIFETIME,\"&Q$2&\",,\"&$B486&\",\"=VLOOKUP(\"LIFETIME,\"&Q$2&\",,\"&$B486&\",\",data[],1),VLOOKUP(\"LIFETIME,\"&Q$2&\",,\"&$B486&\",\",data[],7),Q$419)","v":20},null,{"$f":"IF(\"LIFETIME,\"&S$2&\",,\"&$B486&\",\"=VLOOKUP(\"LIFETIME,\"&S$2&\",,\"&$B486&\",\",data[],1),VLOOKUP(\"LIFETIME,\"&S$2&\",,\"&$B486&\",\",data[],7),S$419)","v":20},null,null,null,null,{"$f":"IF(\"LIFETIME,\"&X$2&\",,\"&$B486&\",\"=VLOOKUP(\"LIFETIME,\"&X$2&\",,\"&$B486&\",\",data[],1),VLOOKUP(\"LIFETIME,\"&X$2&\",,\"&$B486&\",\",data[],7),X$419)","v":99},null,{"$f":"IF(\"LIFETIME,\"&Z$2&\",,\"&$B486&\",\"=VLOOKUP(\"LIFETIME,\"&Z$2&\",,\"&$B486&\",\",data[],1),VLOOKUP(\"LIFETIME,\"&Z$2&\",,\"&$B486&\",\",data[],7),Z$419)","v":20},null,null,null,{"$f":"IF(\"LIFETIME,\"&AD$2&\",,\"&$B486&\",\"=VLOOKUP(\"LIFETIME,\"&AD$2&\",,\"&$B486&\",\",data[],1),VLOOKUP(\"LIFETIME,\"&AD$2&\",,\"&$B486&\",\",data[],7),AD$419)","v":25},null,null,null,null,null,null,{"$f":"IF(\"LIFETIME,\"&AK$2&\",,\"&$B486&\",\"=VLOOKUP(\"LIFETIME,\"&AK$2&\",,\"&$B486&\",\",data[],1),VLOOKUP(\"LIFETIME,\"&AK$2&\",,\"&$B486&\",\",data[],7),AK$419)","v":30},null,{"$f":"IF(\"LIFETIME,\"&AM$2&\",,\"&$B486&\",\"=VLOOKUP(\"LIFETIME,\"&AM$2&\",,\"&$B486&\",\",data[],1),VLOOKUP(\"LIFETIME,\"&AM$2&\",,\"&$B486&\",\",data[],7),AM$419)","v":20},null,null,null,null,null,null,null,null,null,null,null,null,null,null,{"$f":"IF(NOT(BB80),0,IF(\"LIFETIME,\"&BB$2&\",,\"&$B486&\",\"=VLOOKUP(\"LIFETIME,\"&BB$2&\",,\"&$B486&\",\",data[],1),VLOOKUP(\"LIFETIME,\"&BB$2&\",,\"&$B486&\",\",data[],7),BB$419))","v":30},null,null,{"$f":"IF(NOT(BE80),0,IF(\"LIFETIME,\"&BE$2&\",,\"&$B486&\",\"=VLOOKUP(\"LIFETIME,\"&BE$2&\",,\"&$B486&\",\",data[],1),VLOOKUP(\"LIFETIME,\"&BE$2&\",,\"&$B486&\",\",data[],7),BE$419))","v":0}]
[null,"USA",null,null,null,null,null,null,null,null,{"$f":"IF(\"LIFETIME,\"&$K81&\",,\"&$B487&\",\"=VLOOKUP(\"LIFETIME,\"&$K81&\",,\"&$B487&\",\",data[],1),VLOOKUP(\"LIFETIME,\"&$K81&\",,\"&$B487&\",\",data[],7),INDEX($E$419:$I$419,$J81))","v":20},null,null,null,null,null,{"$f":"IF(\"LIFETIME,\"&Q$2&\",,\"&$B487&\",\"=VLOOKUP(\"LIFETIME,\"&Q$2&\",,\"&$B487&\",\",data[],1),VLOOKUP(\"LIFETIME,\"&Q$2&\",,\"&$B487&\",\",data[],7),Q$419)","v":20},null,{"$f":"IF(\"LIFETIME,\"&S$2&\",,\"&$B487&\",\"=VLOOKUP(\"LIFETIME,\"&S$2&\",,\"&$B487&\",\",data[],1),VLOOKUP(\"LIFETIME,\"&S$2&\",,\"&$B487&\",\",data[],7),S$419)","v":20},null,null,null,null,{"$f":"IF(\"LIFETIME,\"&X$2&\",,\"&$B487&\",\"=VLOOKUP(\"LIFETIME,\"&X$2&\",,\"&$B487&\",\",data[],1),VLOOKUP(\"LIFETIME,\"&X$2&\",,\"&$B487&\",\",data[],7),X$419)","v":99},null,{"$f":"IF(\"LIFETIME,\"&Z$2&\",,\"&$B487&\",\"=VLOOKUP(\"LIFETIME,\"&Z$2&\",,\"&$B487&\",\",data[],1),VLOOKUP(\"LIFETIME,\"&Z$2&\",,\"&$B487&\",\",data[],7),Z$419)","v":20},null,null,null,{"$f":"IF(\"LIFETIME,\"&AD$2&\",,\"&$B487&\",\"=VLOOKUP(\"LIFETIME,\"&AD$2&\",,\"&$B487&\",\",data[],1),VLOOKUP(\"LIFETIME,\"&AD$2&\",,\"&$B487&\",\",data[],7),AD$419)","v":25},null,null,null,null,null,null,{"$f":"IF(\"LIFETIME,\"&AK$2&\",,\"&$B487&\",\"=VLOOKUP(\"LIFETIME,\"&AK$2&\",,\"&$B487&\",\",data[],1),VLOOKUP(\"LIFETIME,\"&AK$2&\",,\"&$B487&\",\",data[],7),AK$419)","v":30},null,{"$f":"IF(\"LIFETIME,\"&AM$2&\",,\"&$B487&\",\"=VLOOKUP(\"LIFETIME,\"&AM$2&\",,\"&$B487&\",\",data[],1),VLOOKUP(\"LIFETIME,\"&AM$2&\",,\"&$B487&\",\",data[],7),AM$419)","v":20},null,null,null,null,null,null,null,null,null,null,null,null,null,null,{"$f":"IF(NOT(BB81),0,IF(\"LIFETIME,\"&BB$2&\",,\"&$B487&\",\"=VLOOKUP(\"LIFETIME,\"&BB$2&\",,\"&$B487&\",\",data[],1),VLOOKUP(\"LIFETIME,\"&BB$2&\",,\"&$B487&\",\",data[],7),BB$419))","v":30},null,null,{"$f":"IF(NOT(BE81),0,IF(\"LIFETIME,\"&BE$2&\",,\"&$B487&\",\"=VLOOKUP(\"LIFETIME,\"&BE$2&\",,\"&$B487&\",\",data[],1),VLOOKUP(\"LIFETIME,\"&BE$2&\",,\"&$B487&\",\",data[],7),BE$419))","v":0}]
[null,"VNM",null,null,null,null,null,null,null,null,{"$f":"IF(\"LIFETIME,\"&$K82&\",,\"&$B488&\",\"=VLOOKUP(\"LIFETIME,\"&$K82&\",,\"&$B488&\",\",data[],1),VLOOKUP(\"LIFETIME,\"&$K82&\",,\"&$B488&\",\",data[],7),INDEX($E$419:$I$419,$J82))","v":20},null,null,null,null,null,{"$f":"IF(\"LIFETIME,\"&Q$2&\",,\"&$B488&\",\"=VLOOKUP(\"LIFETIME,\"&Q$2&\",,\"&$B488&\",\",data[],1),VLOOKUP(\"LIFETIME,\"&Q$2&\",,\"&$B488&\",\",data[],7),Q$419)","v":20},null,{"$f":"IF(\"LIFETIME,\"&S$2&\",,\"&$B488&\",\"=VLOOKUP(\"LIFETIME,\"&S$2&\",,\"&$B488&\",\",data[],1),VLOOKUP(\"LIFETIME,\"&S$2&\",,\"&$B488&\",\",data[],7),S$419)","v":20},null,null,null,null,{"$f":"IF(\"LIFETIME,\"&X$2&\",,\"&$B488&\",\"=VLOOKUP(\"LIFETIME,\"&X$2&\",,\"&$B488&\",\",data[],1),VLOOKUP(\"LIFETIME,\"&X$2&\",,\"&$B488&\",\",data[],7),X$419)","v":99},null,{"$f":"IF(\"LIFETIME,\"&Z$2&\",,\"&$B488&\",\"=VLOOKUP(\"LIFETIME,\"&Z$2&\",,\"&$B488&\",\",data[],1),VLOOKUP(\"LIFETIME,\"&Z$2&\",,\"&$B488&\",\",data[],7),Z$419)","v":20},null,null,null,{"$f":"IF(\"LIFETIME,\"&AD$2&\",,\"&$B488&\",\"=VLOOKUP(\"LIFETIME,\"&AD$2&\",,\"&$B488&\",\",data[],1),VLOOKUP(\"LIFETIME,\"&AD$2&\",,\"&$B488&\",\",data[],7),AD$419)","v":25},null,null,null,null,null,null,{"$f":"IF(\"LIFETIME,\"&AK$2&\",,\"&$B488&\",\"=VLOOKUP(\"LIFETIME,\"&AK$2&\",,\"&$B488&\",\",data[],1),VLOOKUP(\"LIFETIME,\"&AK$2&\",,\"&$B488&\",\",data[],7),AK$419)","v":30},null,{"$f":"IF(\"LIFETIME,\"&AM$2&\",,\"&$B488&\",\"=VLOOKUP(\"LIFETIME,\"&AM$2&\",,\"&$B488&\",\",data[],1),VLOOKUP(\"LIFETIME,\"&AM$2&\",,\"&$B488&\",\",data[],7),AM$419)","v":20},null,null,null,null,null,null,null,null,null,null,null,null,null,null,{"$f":"IF(NOT(BB82),0,IF(\"LIFETIME,\"&BB$2&\",,\"&$B488&\",\"=VLOOKUP(\"LIFETIME,\"&BB$2&\",,\"&$B488&\",\",data[],1),VLOOKUP(\"LIFETIME,\"&BB$2&\",,\"&$B488&\",\",data[],7),BB$419))","v":30},null,null,{"$f":"IF(NOT(BE82),0,IF(\"LIFETIME,\"&BE$2&\",,\"&$B488&\",\"=VLOOKUP(\"LIFETIME,\"&BE$2&\",,\"&$B488&\",\",data[],1),VLOOKUP(\"LIFETIME,\"&BE$2&\",,\"&$B488&\",\",data[],7),BE$419))","v":0}]
[null,"ZAF",null,null,null,null,null,null,null,null,{"$f":"IF(\"LIFETIME,\"&$K83&\",,\"&$B489&\",\"=VLOOKUP(\"LIFETIME,\"&$K83&\",,\"&$B489&\",\",data[],1),VLOOKUP(\"LIFETIME,\"&$K83&\",,\"&$B489&\",\",data[],7),INDEX($E$419:$I$419,$J83))","v":20},null,null,null,null,null,{"$f":"IF(\"LIFETIME,\"&Q$2&\",,\"&$B489&\",\"=VLOOKUP(\"LIFETIME,\"&Q$2&\",,\"&$B489&\",\",data[],1),VLOOKUP(\"LIFETIME,\"&Q$2&\",,\"&$B489&\",\",data[],7),Q$419)","v":20},null,{"$f":"IF(\"LIFETIME,\"&S$2&\",,\"&$B489&\",\"=VLOOKUP(\"LIFETIME,\"&S$2&\",,\"&$B489&\",\",data[],1),VLOOKUP(\"LIFETIME,\"&S$2&\",,\"&$B489&\",\",data[],7),S$419)","v":20},null,null,null,null,{"$f":"IF(\"LIFETIME,\"&X$2&\",,\"&$B489&\",\"=VLOOKUP(\"LIFETIME,\"&X$2&\",,\"&$B489&\",\",data[],1),VLOOKUP(\"LIFETIME,\"&X$2&\",,\"&$B489&\",\",data[],7),X$419)","v":99},null,{"$f":"IF(\"LIFETIME,\"&Z$2&\",,\"&$B489&\",\"=VLOOKUP(\"LIFETIME,\"&Z$2&\",,\"&$B489&\",\",data[],1),VLOOKUP(\"LIFETIME,\"&Z$2&\",,\"&$B489&\",\",data[],7),Z$419)","v":20},null,null,null,{"$f":"IF(\"LIFETIME,\"&AD$2&\",,\"&$B489&\",\"=VLOOKUP(\"LIFETIME,\"&AD$2&\",,\"&$B489&\",\",data[],1),VLOOKUP(\"LIFETIME,\"&AD$2&\",,\"&$B489&\",\",data[],7),AD$419)","v":25},null,null,null,null,null,null,{"$f":"IF(\"LIFETIME,\"&AK$2&\",,\"&$B489&\",\"=VLOOKUP(\"LIFETIME,\"&AK$2&\",,\"&$B489&\",\",data[],1),VLOOKUP(\"LIFETIME,\"&AK$2&\",,\"&$B489&\",\",data[],7),AK$419)","v":30},null,{"$f":"IF(\"LIFETIME,\"&AM$2&\",,\"&$B489&\",\"=VLOOKUP(\"LIFETIME,\"&AM$2&\",,\"&$B489&\",\",data[],1),VLOOKUP(\"LIFETIME,\"&AM$2&\",,\"&$B489&\",\",data[],7),AM$419)","v":20},null,null,null,null,null,null,null,null,null,null,null,null,null,null,{"$f":"IF(NOT(BB83),0,IF(\"LIFETIME,\"&BB$2&\",,\"&$B489&\",\"=VLOOKUP(\"LIFETIME,\"&BB$2&\",,\"&$B489&\",\",data[],1),VLOOKUP(\"LIFETIME,\"&BB$2&\",,\"&$B489&\",\",data[],7),BB$419))","v":30},null,null,{"$f":"IF(NOT(BE83),0,IF(\"LIFETIME,\"&BE$2&\",,\"&$B489&\",\"=VLOOKUP(\"LIFETIME,\"&BE$2&\",,\"&$B489&\",\",data[],1),VLOOKUP(\"LIFETIME,\"&BE$2&\",,\"&$B489&\",\",data[],7),BE$419))","v":0}]
[null,"ZAF-EC",null,null,null,null,null,null,null,null,{"$f":"IF(\"LIFETIME,\"&$K84&\",,\"&$B490&\",\"=VLOOKUP(\"LIFETIME,\"&$K84&\",,\"&$B490&\",\",data[],1),VLOOKUP(\"LIFETIME,\"&$K84&\",,\"&$B490&\",\",data[],7),INDEX($E$419:$I$419,$J84))","v":20},null,null,null,null,null,{"$f":"IF(\"LIFETIME,\"&Q$2&\",,\"&$B490&\",\"=VLOOKUP(\"LIFETIME,\"&Q$2&\",,\"&$B490&\",\",data[],1),VLOOKUP(\"LIFETIME,\"&Q$2&\",,\"&$B490&\",\",data[],7),Q$419)","v":20},null,{"$f":"IF(\"LIFETIME,\"&S$2&\",,\"&$B490&\",\"=VLOOKUP(\"LIFETIME,\"&S$2&\",,\"&$B490&\",\",data[],1),VLOOKUP(\"LIFETIME,\"&S$2&\",,\"&$B490&\",\",data[],7),S$419)","v":20},null,null,null,null,{"$f":"IF(\"LIFETIME,\"&X$2&\",,\"&$B490&\",\"=VLOOKUP(\"LIFETIME,\"&X$2&\",,\"&$B490&\",\",data[],1),VLOOKUP(\"LIFETIME,\"&X$2&\",,\"&$B490&\",\",data[],7),X$419)","v":99},null,{"$f":"IF(\"LIFETIME,\"&Z$2&\",,\"&$B490&\",\"=VLOOKUP(\"LIFETIME,\"&Z$2&\",,\"&$B490&\",\",data[],1),VLOOKUP(\"LIFETIME,\"&Z$2&\",,\"&$B490&\",\",data[],7),Z$419)","v":20},null,null,null,{"$f":"IF(\"LIFETIME,\"&AD$2&\",,\"&$B490&\",\"=VLOOKUP(\"LIFETIME,\"&AD$2&\",,\"&$B490&\",\",data[],1),VLOOKUP(\"LIFETIME,\"&AD$2&\",,\"&$B490&\",\",data[],7),AD$419)","v":25},null,null,null,null,null,null,{"$f":"IF(\"LIFETIME,\"&AK$2&\",,\"&$B490&\",\"=VLOOKUP(\"LIFETIME,\"&AK$2&\",,\"&$B490&\",\",data[],1),VLOOKUP(\"LIFETIME,\"&AK$2&\",,\"&$B490&\",\",data[],7),AK$419)","v":30},null,{"$f":"IF(\"LIFETIME,\"&AM$2&\",,\"&$B490&\",\"=VLOOKUP(\"LIFETIME,\"&AM$2&\",,\"&$B490&\",\",data[],1),VLOOKUP(\"LIFETIME,\"&AM$2&\",,\"&$B490&\",\",data[],7),AM$419)","v":20},null,null,null,null,null,null,null,null,null,null,null,null,null,null,{"$f":"IF(NOT(BB84),0,IF(\"LIFETIME,\"&BB$2&\",,\"&$B490&\",\"=VLOOKUP(\"LIFETIME,\"&BB$2&\",,\"&$B490&\",\",data[],1),VLOOKUP(\"LIFETIME,\"&BB$2&\",,\"&$B490&\",\",data[],7),BB$419))","v":30},null,null,{"$f":"IF(NOT(BE84),0,IF(\"LIFETIME,\"&BE$2&\",,\"&$B490&\",\"=VLOOKUP(\"LIFETIME,\"&BE$2&\",,\"&$B490&\",\",data[],1),VLOOKUP(\"LIFETIME,\"&BE$2&\",,\"&$B490&\",\",data[],7),BE$419))","v":0}]
[null,"ZAF-FRS",null,null,null,null,null,null,null,null,{"$f":"IF(\"LIFETIME,\"&$K85&\",,\"&$B491&\",\"=VLOOKUP(\"LIFETIME,\"&$K85&\",,\"&$B491&\",\",data[],1),VLOOKUP(\"LIFETIME,\"&$K85&\",,\"&$B491&\",\",data[],7),INDEX($E$419:$I$419,$J85))","v":20},null,null,null,null,null,{"$f":"IF(\"LIFETIME,\"&Q$2&\",,\"&$B491&\",\"=VLOOKUP(\"LIFETIME,\"&Q$2&\",,\"&$B491&\",\",data[],1),VLOOKUP(\"LIFETIME,\"&Q$2&\",,\"&$B491&\",\",data[],7),Q$419)","v":20},null,{"$f":"IF(\"LIFETIME,\"&S$2&\",,\"&$B491&\",\"=VLOOKUP(\"LIFETIME,\"&S$2&\",,\"&$B491&\",\",data[],1),VLOOKUP(\"LIFETIME,\"&S$2&\",,\"&$B491&\",\",data[],7),S$419)","v":20},null,null,null,null,{"$f":"IF(\"LIFETIME,\"&X$2&\",,\"&$B491&\",\"=VLOOKUP(\"LIFETIME,\"&X$2&\",,\"&$B491&\",\",data[],1),VLOOKUP(\"LIFETIME,\"&X$2&\",,\"&$B491&\",\",data[],7),X$419)","v":99},null,{"$f":"IF(\"LIFETIME,\"&Z$2&\",,\"&$B491&\",\"=VLOOKUP(\"LIFETIME,\"&Z$2&\",,\"&$B491&\",\",data[],1),VLOOKUP(\"LIFETIME,\"&Z$2&\",,\"&$B491&\",\",data[],7),Z$419)","v":20},null,null,null,{"$f":"IF(\"LIFETIME,\"&AD$2&\",,\"&$B491&\",\"=VLOOKUP(\"LIFETIME,\"&AD$2&\",,\"&$B491&\",\",data[],1),VLOOKUP(\"LIFETIME,\"&AD$2&\",,\"&$B491&\",\",data[],7),AD$419)","v":25},null,null,null,null,null,null,{"$f":"IF(\"LIFETIME,\"&AK$2&\",,\"&$B491&\",\"=VLOOKUP(\"LIFETIME,\"&AK$2&\",,\"&$B491&\",\",data[],1),VLOOKUP(\"LIFETIME,\"&AK$2&\",,\"&$B491&\",\",data[],7),AK$419)","v":30},null,{"$f":"IF(\"LIFETIME,\"&AM$2&\",,\"&$B491&\",\"=VLOOKUP(\"LIFETIME,\"&AM$2&\",,\"&$B491&\",\",data[],1),VLOOKUP(\"LIFETIME,\"&AM$2&\",,\"&$B491&\",\",data[],7),AM$419)","v":20},null,null,null,null,null,null,null,null,null,null,null,null,null,null,{"$f":"IF(NOT(BB85),0,IF(\"LIFETIME,\"&BB$2&\",,\"&$B491&\",\"=VLOOKUP(\"LIFETIME,\"&BB$2&\",,\"&$B491&\",\",data[],1),VLOOKUP(\"LIFETIME,\"&BB$2&\",,\"&$B491&\",\",data[],7),BB$419))","v":30},null,null,{"$f":"IF(NOT(BE85),0,IF(\"LIFETIME,\"&BE$2&\",,\"&$B491&\",\"=VLOOKUP(\"LIFETIME,\"&BE$2&\",,\"&$B491&\",\",data[],1),VLOOKUP(\"LIFETIME,\"&BE$2&\",,\"&$B491&\",\",data[],7),BE$419))","v":0}]
[null,"ZAF-GAU",null,null,null,null,null,null,null,null,{"$f":"IF(\"LIFETIME,\"&$K86&\",,\"&$B492&\",\"=VLOOKUP(\"LIFETIME,\"&$K86&\",,\"&$B492&\",\",data[],1),VLOOKUP(\"LIFETIME,\"&$K86&\",,\"&$B492&\",\",data[],7),INDEX($E$419:$I$419,$J86))","v":20},null,null,null,null,null,{"$f":"IF(\"LIFETIME,\"&Q$2&\",,\"&$B492&\",\"=VLOOKUP(\"LIFETIME,\"&Q$2&\",,\"&$B492&\",\",data[],1),VLOOKUP(\"LIFETIME,\"&Q$2&\",,\"&$B492&\",\",data[],7),Q$419)","v":20},null,{"$f":"IF(\"LIFETIME,\"&S$2&\",,\"&$B492&\",\"=VLOOKUP(\"LIFETIME,\"&S$2&\",,\"&$B492&\",\",data[],1),VLOOKUP(\"LIFETIME,\"&S$2&\",,\"&$B492&\",\",data[],7),S$419)","v":20},null,null,null,null,{"$f":"IF(\"LIFETIME,\"&X$2&\",,\"&$B492&\",\"=VLOOKUP(\"LIFETIME,\"&X$2&\",,\"&$B492&\",\",data[],1),VLOOKUP(\"LIFETIME,\"&X$2&\",,\"&$B492&\",\",data[],7),X$419)","v":99},null,{"$f":"IF(\"LIFETIME,\"&Z$2&\",,\"&$B492&\",\"=VLOOKUP(\"LIFETIME,\"&Z$2&\",,\"&$B492&\",\",data[],1),VLOOKUP(\"LIFETIME,\"&Z$2&\",,\"&$B492&\",\",data[],7),Z$419)","v":20},null,null,null,{"$f":"IF(\"LIFETIME,\"&AD$2&\",,\"&$B492&\",\"=VLOOKUP(\"LIFETIME,\"&AD$2&\",,\"&$B492&\",\",data[],1),VLOOKUP(\"LIFETIME,\"&AD$2&\",,\"&$B492&\",\",data[],7),AD$419)","v":25},null,null,null,null,null,null,{"$f":"IF(\"LIFETIME,\"&AK$2&\",,\"&$B492&\",\"=VLOOKUP(\"LIFETIME,\"&AK$2&\",,\"&$B492&\",\",data[],1),VLOOKUP(\"LIFETIME,\"&AK$2&\",,\"&$B492&\",\",data[],7),AK$419)","v":30},null,{"$f":"IF(\"LIFETIME,\"&AM$2&\",,\"&$B492&\",\"=VLOOKUP(\"LIFETIME,\"&AM$2&\",,\"&$B492&\",\",data[],1),VLOOKUP(\"LIFETIME,\"&AM$2&\",,\"&$B492&\",\",data[],7),AM$419)","v":20},null,null,null,null,null,null,null,null,null,null,null,null,null,null,{"$f":"IF(NOT(BB86),0,IF(\"LIFETIME,\"&BB$2&\",,\"&$B492&\",\"=VLOOKUP(\"LIFETIME,\"&BB$2&\",,\"&$B492&\",\",data[],1),VLOOKUP(\"LIFETIME,\"&BB$2&\",,\"&$B492&\",\",data[],7),BB$419))","v":30},null,null,{"$f":"IF(NOT(BE86),0,IF(\"LIFETIME,\"&BE$2&\",,\"&$B492&\",\"=VLOOKUP(\"LIFETIME,\"&BE$2&\",,\"&$B492&\",\",data[],1),VLOOKUP(\"LIFETIME,\"&BE$2&\",,\"&$B492&\",\",data[],7),BE$419))","v":0}]
[null,"ZAF-KWA",null,null,null,null,null,null,null,null,{"$f":"IF(\"LIFETIME,\"&$K87&\",,\"&$B493&\",\"=VLOOKUP(\"LIFETIME,\"&$K87&\",,\"&$B493&\",\",data[],1),VLOOKUP(\"LIFETIME,\"&$K87&\",,\"&$B493&\",\",data[],7),INDEX($E$419:$I$419,$J87))","v":20},null,null,null,null,null,{"$f":"IF(\"LIFETIME,\"&Q$2&\",,\"&$B493&\",\"=VLOOKUP(\"LIFETIME,\"&Q$2&\",,\"&$B493&\",\",data[],1),VLOOKUP(\"LIFETIME,\"&Q$2&\",,\"&$B493&\",\",data[],7),Q$419)","v":20},null,{"$f":"IF(\"LIFETIME,\"&S$2&\",,\"&$B493&\",\"=VLOOKUP(\"LIFETIME,\"&S$2&\",,\"&$B493&\",\",data[],1),VLOOKUP(\"LIFETIME,\"&S$2&\",,\"&$B493&\",\",data[],7),S$419)","v":20},null,null,null,null,{"$f":"IF(\"LIFETIME,\"&X$2&\",,\"&$B493&\",\"=VLOOKUP(\"LIFETIME,\"&X$2&\",,\"&$B493&\",\",data[],1),VLOOKUP(\"LIFETIME,\"&X$2&\",,\"&$B493&\",\",data[],7),X$419)","v":99},null,{"$f":"IF(\"LIFETIME,\"&Z$2&\",,\"&$B493&\",\"=VLOOKUP(\"LIFETIME,\"&Z$2&\",,\"&$B493&\",\",data[],1),VLOOKUP(\"LIFETIME,\"&Z$2&\",,\"&$B493&\",\",data[],7),Z$419)","v":20},null,null,null,{"$f":"IF(\"LIFETIME,\"&AD$2&\",,\"&$B493&\",\"=VLOOKUP(\"LIFETIME,\"&AD$2&\",,\"&$B493&\",\",data[],1),VLOOKUP(\"LIFETIME,\"&AD$2&\",,\"&$B493&\",\",data[],7),AD$419)","v":25},null,null,null,null,null,null,{"$f":"IF(\"LIFETIME,\"&AK$2&\",,\"&$B493&\",\"=VLOOKUP(\"LIFETIME,\"&AK$2&\",,\"&$B493&\",\",data[],1),VLOOKUP(\"LIFETIME,\"&AK$2&\",,\"&$B493&\",\",data[],7),AK$419)","v":30},null,{"$f":"IF(\"LIFETIME,\"&AM$2&\",,\"&$B493&\",\"=VLOOKUP(\"LIFETIME,\"&AM$2&\",,\"&$B493&\",\",data[],1),VLOOKUP(\"LIFETIME,\"&AM$2&\",,\"&$B493&\",\",data[],7),AM$419)","v":20},null,null,null,null,null,null,null,null,null,null,null,null,null,null,{"$f":"IF(NOT(BB87),0,IF(\"LIFETIME,\"&BB$2&\",,\"&$B493&\",\"=VLOOKUP(\"LIFETIME,\"&BB$2&\",,\"&$B493&\",\",data[],1),VLOOKUP(\"LIFETIME,\"&BB$2&\",,\"&$B493&\",\",data[],7),BB$419))","v":30},null,null,{"$f":"IF(NOT(BE87),0,IF(\"LIFETIME,\"&BE$2&\",,\"&$B493&\",\"=VLOOKUP(\"LIFETIME,\"&BE$2&\",,\"&$B493&\",\",data[],1),VLOOKUP(\"LIFETIME,\"&BE$2&\",,\"&$B493&\",\",data[],7),BE$419))","v":0}]
[null,"ZAF-LIM",null,null,null,null,null,null,null,null,{"$f":"IF(\"LIFETIME,\"&$K88&\",,\"&$B494&\",\"=VLOOKUP(\"LIFETIME,\"&$K88&\",,\"&$B494&\",\",data[],1),VLOOKUP(\"LIFETIME,\"&$K88&\",,\"&$B494&\",\",data[],7),INDEX($E$419:$I$419,$J88))","v":20},null,null,null,null,null,{"$f":"IF(\"LIFETIME,\"&Q$2&\",,\"&$B494&\",\"=VLOOKUP(\"LIFETIME,\"&Q$2&\",,\"&$B494&\",\",data[],1),VLOOKUP(\"LIFETIME,\"&Q$2&\",,\"&$B494&\",\",data[],7),Q$419)","v":20},null,{"$f":"IF(\"LIFETIME,\"&S$2&\",,\"&$B494&\",\"=VLOOKUP(\"LIFETIME,\"&S$2&\",,\"&$B494&\",\",data[],1),VLOOKUP(\"LIFETIME,\"&S$2&\",,\"&$B494&\",\",data[],7),S$419)","v":20},null,null,null,null,{"$f":"IF(\"LIFETIME,\"&X$2&\",,\"&$B494&\",\"=VLOOKUP(\"LIFETIME,\"&X$2&\",,\"&$B494&\",\",data[],1),VLOOKUP(\"LIFETIME,\"&X$2&\",,\"&$B494&\",\",data[],7),X$419)","v":99},null,{"$f":"IF(\"LIFETIME,\"&Z$2&\",,\"&$B494&\",\"=VLOOKUP(\"LIFETIME,\"&Z$2&\",,\"&$B494&\",\",data[],1),VLOOKUP(\"LIFETIME,\"&Z$2&\",,\"&$B494&\",\",data[],7),Z$419)","v":20},null,null,null,{"$f":"IF(\"LIFETIME,\"&AD$2&\",,\"&$B494&\",\"=VLOOKUP(\"LIFETIME,\"&AD$2&\",,\"&$B494&\",\",data[],1),VLOOKUP(\"LIFETIME,\"&AD$2&\",,\"&$B494&\",\",data[],7),AD$419)","v":25},null,null,null,null,null,null,{"$f":"IF(\"LIFETIME,\"&AK$2&\",,\"&$B494&\",\"=VLOOKUP(\"LIFETIME,\"&AK$2&\",,\"&$B494&\",\",data[],1),VLOOKUP(\"LIFETIME,\"&AK$2&\",,\"&$B494&\",\",data[],7),AK$419)","v":30},null,{"$f":"IF(\"LIFETIME,\"&AM$2&\",,\"&$B494&\",\"=VLOOKUP(\"LIFETIME,\"&AM$2&\",,\"&$B494&\",\",data[],1),VLOOKUP(\"LIFETIME,\"&AM$2&\",,\"&$B494&\",\",data[],7),AM$419)","v":20},null,null,null,null,null,null,null,null,null,null,null,null,null,null,{"$f":"IF(NOT(BB88),0,IF(\"LIFETIME,\"&BB$2&\",,\"&$B494&\",\"=VLOOKUP(\"LIFETIME,\"&BB$2&\",,\"&$B494&\",\",data[],1),VLOOKUP(\"LIFETIME,\"&BB$2&\",,\"&$B494&\",\",data[],7),BB$419))","v":30},null,null,{"$f":"IF(NOT(BE88),0,IF(\"LIFETIME,\"&BE$2&\",,\"&$B494&\",\"=VLOOKUP(\"LIFETIME,\"&BE$2&\",,\"&$B494&\",\",data[],1),VLOOKUP(\"LIFETIME,\"&BE$2&\",,\"&$B494&\",\",data[],7),BE$419))","v":0}]
[null,"ZAF-MPU",null,null,null,null,null,null,null,null,{"$f":"IF(\"LIFETIME,\"&$K89&\",,\"&$B495&\",\"=VLOOKUP(\"LIFETIME,\"&$K89&\",,\"&$B495&\",\",data[],1),VLOOKUP(\"LIFETIME,\"&$K89&\",,\"&$B495&\",\",data[],7),INDEX($E$419:$I$419,$J89))","v":20},null,null,null,null,null,{"$f":"IF(\"LIFETIME,\"&Q$2&\",,\"&$B495&\",\"=VLOOKUP(\"LIFETIME,\"&Q$2&\",,\"&$B495&\",\",data[],1),VLOOKUP(\"LIFETIME,\"&Q$2&\",,\"&$B495&\",\",data[],7),Q$419)","v":20},null,{"$f":"IF(\"LIFETIME,\"&S$2&\",,\"&$B495&\",\"=VLOOKUP(\"LIFETIME,\"&S$2&\",,\"&$B495&\",\",data[],1),VLOOKUP(\"LIFETIME,\"&S$2&\",,\"&$B495&\",\",data[],7),S$419)","v":20},null,null,null,null,{"$f":"IF(\"LIFETIME,\"&X$2&\",,\"&$B495&\",\"=VLOOKUP(\"LIFETIME,\"&X$2&\",,\"&$B495&\",\",data[],1),VLOOKUP(\"LIFETIME,\"&X$2&\",,\"&$B495&\",\",data[],7),X$419)","v":99},null,{"$f":"IF(\"LIFETIME,\"&Z$2&\",,\"&$B495&\",\"=VLOOKUP(\"LIFETIME,\"&Z$2&\",,\"&$B495&\",\",data[],1),VLOOKUP(\"LIFETIME,\"&Z$2&\",,\"&$B495&\",\",data[],7),Z$419)","v":20},null,null,null,{"$f":"IF(\"LIFETIME,\"&AD$2&\",,\"&$B495&\",\"=VLOOKUP(\"LIFETIME,\"&AD$2&\",,\"&$B495&\",\",data[],1),VLOOKUP(\"LIFETIME,\"&AD$2&\",,\"&$B495&\",\",data[],7),AD$419)","v":25},null,null,null,null,null,null,{"$f":"IF(\"LIFETIME,\"&AK$2&\",,\"&$B495&\",\"=VLOOKUP(\"LIFETIME,\"&AK$2&\",,\"&$B495&\",\",data[],1),VLOOKUP(\"LIFETIME,\"&AK$2&\",,\"&$B495&\",\",data[],7),AK$419)","v":30},null,{"$f":"IF(\"LIFETIME,\"&AM$2&\",,\"&$B495&\",\"=VLOOKUP(\"LIFETIME,\"&AM$2&\",,\"&$B495&\",\",data[],1),VLOOKUP(\"LIFETIME,\"&AM$2&\",,\"&$B495&\",\",data[],7),AM$419)","v":20},null,null,null,null,null,null,null,null,null,null,null,null,null,null,{"$f":"IF(NOT(BB89),0,IF(\"LIFETIME,\"&BB$2&\",,\"&$B495&\",\"=VLOOKUP(\"LIFETIME,\"&BB$2&\",,\"&$B495&\",\",data[],1),VLOOKUP(\"LIFETIME,\"&BB$2&\",,\"&$B495&\",\",data[],7),BB$419))","v":30},null,null,{"$f":"IF(NOT(BE89),0,IF(\"LIFETIME,\"&BE$2&\",,\"&$B495&\",\"=VLOOKUP(\"LIFETIME,\"&BE$2&\",,\"&$B495&\",\",data[],1),VLOOKUP(\"LIFETIME,\"&BE$2&\",,\"&$B495&\",\",data[],7),BE$419))","v":0}]
[null,"ZAF-NC",null,null,null,null,null,null,null,null,{"$f":"IF(\"LIFETIME,\"&$K90&\",,\"&$B496&\",\"=VLOOKUP(\"LIFETIME,\"&$K90&\",,\"&$B496&\",\",data[],1),VLOOKUP(\"LIFETIME,\"&$K90&\",,\"&$B496&\",\",data[],7),INDEX($E$419:$I$419,$J90))","v":20},null,null,null,null,null,{"$f":"IF(\"LIFETIME,\"&Q$2&\",,\"&$B496&\",\"=VLOOKUP(\"LIFETIME,\"&Q$2&\",,\"&$B496&\",\",data[],1),VLOOKUP(\"LIFETIME,\"&Q$2&\",,\"&$B496&\",\",data[],7),Q$419)","v":20},null,{"$f":"IF(\"LIFETIME,\"&S$2&\",,\"&$B496&\",\"=VLOOKUP(\"LIFETIME,\"&S$2&\",,\"&$B496&\",\",data[],1),VLOOKUP(\"LIFETIME,\"&S$2&\",,\"&$B496&\",\",data[],7),S$419)","v":20},null,null,null,null,{"$f":"IF(\"LIFETIME,\"&X$2&\",,\"&$B496&\",\"=VLOOKUP(\"LIFETIME,\"&X$2&\",,\"&$B496&\",\",data[],1),VLOOKUP(\"LIFETIME,\"&X$2&\",,\"&$B496&\",\",data[],7),X$419)","v":99},null,{"$f":"IF(\"LIFETIME,\"&Z$2&\",,\"&$B496&\",\"=VLOOKUP(\"LIFETIME,\"&Z$2&\",,\"&$B496&\",\",data[],1),VLOOKUP(\"LIFETIME,\"&Z$2&\",,\"&$B496&\",\",data[],7),Z$419)","v":20},null,null,null,{"$f":"IF(\"LIFETIME,\"&AD$2&\",,\"&$B496&\",\"=VLOOKUP(\"LIFETIME,\"&AD$2&\",,\"&$B496&\",\",data[],1),VLOOKUP(\"LIFETIME,\"&AD$2&\",,\"&$B496&\",\",data[],7),AD$419)","v":25},null,null,null,null,null,null,{"$f":"IF(\"LIFETIME,\"&AK$2&\",,\"&$B496&\",\"=VLOOKUP(\"LIFETIME,\"&AK$2&\",,\"&$B496&\",\",data[],1),VLOOKUP(\"LIFETIME,\"&AK$2&\",,\"&$B496&\",\",data[],7),AK$419)","v":30},null,{"$f":"IF(\"LIFETIME,\"&AM$2&\",,\"&$B496&\",\"=VLOOKUP(\"LIFETIME,\"&AM$2&\",,\"&$B496&\",\",data[],1),VLOOKUP(\"LIFETIME,\"&AM$2&\",,\"&$B496&\",\",data[],7),AM$419)","v":20},null,null,null,null,null,null,null,null,null,null,null,null,null,null,{"$f":"IF(NOT(BB90),0,IF(\"LIFETIME,\"&BB$2&\",,\"&$B496&\",\"=VLOOKUP(\"LIFETIME,\"&BB$2&\",,\"&$B496&\",\",data[],1),VLOOKUP(\"LIFETIME,\"&BB$2&\",,\"&$B496&\",\",data[],7),BB$419))","v":30},null,null,{"$f":"IF(NOT(BE90),0,IF(\"LIFETIME,\"&BE$2&\",,\"&$B496&\",\"=VLOOKUP(\"LIFETIME,\"&BE$2&\",,\"&$B496&\",\",data[],1),VLOOKUP(\"LIFETIME,\"&BE$2&\",,\"&$B496&\",\",data[],7),BE$419))","v":0}]
[null,"ZAF-NW",null,null,null,null,null,null,null,null,{"$f":"IF(\"LIFETIME,\"&$K91&\",,\"&$B497&\",\"=VLOOKUP(\"LIFETIME,\"&$K91&\",,\"&$B497&\",\",data[],1),VLOOKUP(\"LIFETIME,\"&$K91&\",,\"&$B497&\",\",data[],7),INDEX($E$419:$I$419,$J91))","v":20},null,null,null,null,null,{"$f":"IF(\"LIFETIME,\"&Q$2&\",,\"&$B497&\",\"=VLOOKUP(\"LIFETIME,\"&Q$2&\",,\"&$B497&\",\",data[],1),VLOOKUP(\"LIFETIME,\"&Q$2&\",,\"&$B497&\",\",data[],7),Q$419)","v":20},null,{"$f":"IF(\"LIFETIME,\"&S$2&\",,\"&$B497&\",\"=VLOOKUP(\"LIFETIME,\"&S$2&\",,\"&$B497&\",\",data[],1),VLOOKUP(\"LIFETIME,\"&S$2&\",,\"&$B497&\",\",data[],7),S$419)","v":20},null,null,null,null,{"$f":"IF(\"LIFETIME,\"&X$2&\",,\"&$B497&\",\"=VLOOKUP(\"LIFETIME,\"&X$2&\",,\"&$B497&\",\",data[],1),VLOOKUP(\"LIFETIME,\"&X$2&\",,\"&$B497&\",\",data[],7),X$419)","v":99},null,{"$f":"IF(\"LIFETIME,\"&Z$2&\",,\"&$B497&\",\"=VLOOKUP(\"LIFETIME,\"&Z$2&\",,\"&$B497&\",\",data[],1),VLOOKUP(\"LIFETIME,\"&Z$2&\",,\"&$B497&\",\",data[],7),Z$419)","v":20},null,null,null,{"$f":"IF(\"LIFETIME,\"&AD$2&\",,\"&$B497&\",\"=VLOOKUP(\"LIFETIME,\"&AD$2&\",,\"&$B497&\",\",data[],1),VLOOKUP(\"LIFETIME,\"&AD$2&\",,\"&$B497&\",\",data[],7),AD$419)","v":25},null,null,null,null,null,null,{"$f":"IF(\"LIFETIME,\"&AK$2&\",,\"&$B497&\",\"=VLOOKUP(\"LIFETIME,\"&AK$2&\",,\"&$B497&\",\",data[],1),VLOOKUP(\"LIFETIME,\"&AK$2&\",,\"&$B497&\",\",data[],7),AK$419)","v":30},null,{"$f":"IF(\"LIFETIME,\"&AM$2&\",,\"&$B497&\",\"=VLOOKUP(\"LIFETIME,\"&AM$2&\",,\"&$B497&\",\",data[],1),VLOOKUP(\"LIFETIME,\"&AM$2&\",,\"&$B497&\",\",data[],7),AM$419)","v":20},null,null,null,null,null,null,null,null,null,null,null,null,null,null,{"$f":"IF(NOT(BB91),0,IF(\"LIFETIME,\"&BB$2&\",,\"&$B497&\",\"=VLOOKUP(\"LIFETIME,\"&BB$2&\",,\"&$B497&\",\",data[],1),VLOOKUP(\"LIFETIME,\"&BB$2&\",,\"&$B497&\",\",data[],7),BB$419))","v":30},null,null,{"$f":"IF(NOT(BE91),0,IF(\"LIFETIME,\"&BE$2&\",,\"&$B497&\",\"=VLOOKUP(\"LIFETIME,\"&BE$2&\",,\"&$B497&\",\",data[],1),VLOOKUP(\"LIFETIME,\"&BE$2&\",,\"&$B497&\",\",data[],7),BE$419))","v":0}]
[null,"ZAF-WC",null,null,null,null,null,null,null,null,{"$f":"IF(\"LIFETIME,\"&$K92&\",,\"&$B498&\",\"=VLOOKUP(\"LIFETIME,\"&$K92&\",,\"&$B498&\",\",data[],1),VLOOKUP(\"LIFETIME,\"&$K92&\",,\"&$B498&\",\",data[],7),INDEX($E$419:$I$419,$J92))","v":20},null,null,null,null,null,{"$f":"IF(\"LIFETIME,\"&Q$2&\",,\"&$B498&\",\"=VLOOKUP(\"LIFETIME,\"&Q$2&\",,\"&$B498&\",\",data[],1),VLOOKUP(\"LIFETIME,\"&Q$2&\",,\"&$B498&\",\",data[],7),Q$419)","v":20},null,{"$f":"IF(\"LIFETIME,\"&S$2&\",,\"&$B498&\",\"=VLOOKUP(\"LIFETIME,\"&S$2&\",,\"&$B498&\",\",data[],1),VLOOKUP(\"LIFETIME,\"&S$2&\",,\"&$B498&\",\",data[],7),S$419)","v":20},null,null,null,null,{"$f":"IF(\"LIFETIME,\"&X$2&\",,\"&$B498&\",\"=VLOOKUP(\"LIFETIME,\"&X$2&\",,\"&$B498&\",\",data[],1),VLOOKUP(\"LIFETIME,\"&X$2&\",,\"&$B498&\",\",data[],7),X$419)","v":99},null,{"$f":"IF(\"LIFETIME,\"&Z$2&\",,\"&$B498&\",\"=VLOOKUP(\"LIFETIME,\"&Z$2&\",,\"&$B498&\",\",data[],1),VLOOKUP(\"LIFETIME,\"&Z$2&\",,\"&$B498&\",\",data[],7),Z$419)","v":20},null,null,null,{"$f":"IF(\"LIFETIME,\"&AD$2&\",,\"&$B498&\",\"=VLOOKUP(\"LIFETIME,\"&AD$2&\",,\"&$B498&\",\",data[],1),VLOOKUP(\"LIFETIME,\"&AD$2&\",,\"&$B498&\",\",data[],7),AD$419)","v":25},null,null,null,null,null,null,{"$f":"IF(\"LIFETIME,\"&AK$2&\",,\"&$B498&\",\"=VLOOKUP(\"LIFETIME,\"&AK$2&\",,\"&$B498&\",\",data[],1),VLOOKUP(\"LIFETIME,\"&AK$2&\",,\"&$B498&\",\",data[],7),AK$419)","v":30},null,{"$f":"IF(\"LIFETIME,\"&AM$2&\",,\"&$B498&\",\"=VLOOKUP(\"LIFETIME,\"&AM$2&\",,\"&$B498&\",\",data[],1),VLOOKUP(\"LIFETIME,\"&AM$2&\",,\"&$B498&\",\",data[],7),AM$419)","v":20},null,null,null,null,null,null,null,null,null,null,null,null,null,null,{"$f":"IF(NOT(BB92),0,IF(\"LIFETIME,\"&BB$2&\",,\"&$B498&\",\"=VLOOKUP(\"LIFETIME,\"&BB$2&\",,\"&$B498&\",\",data[],1),VLOOKUP(\"LIFETIME,\"&BB$2&\",,\"&$B498&\",\",data[],7),BB$419))","v":30},null,null,{"$f":"IF(NOT(BE92),0,IF(\"LIFETIME,\"&BE$2&\",,\"&$B498&\",\"=VLOOKUP(\"LIFETIME,\"&BE$2&\",,\"&$B498&\",\",data[],1),VLOOKUP(\"LIFETIME,\"&BE$2&\",,\"&$B498&\",\",data[],7),BE$419))","v":0}]
[]
["capex"]
[null,"(DEFAULT)",null,null,{"$f":"IF(\"CAPEX,\"&E$2&\",,,\"=VLOOKUP(\"CAPEX,\"&E$2&\",,,\",data[],1),VLOOKUP(\"CAPEX,\"&E$2&\",,,\",data[],7),0)","v":0},{"$f":"IF(\"CAPEX,\"&F$2&\",,,\"=VLOOKUP(\"CAPEX,\"&F$2&\",,,\",data[],1),VLOOKUP(\"CAPEX,\"&F$2&\",,,\",data[],7),0)","v":0},{"$f":"IF(\"CAPEX,\"&G$2&\",,,\"=VLOOKUP(\"CAPEX,\"&G$2&\",,,\",data[],1),VLOOKUP(\"CAPEX,\"&G$2&\",,,\",data[],7),0)","v":0},{"$f":"IF(\"CAPEX,\"&H$2&\",,,\"=VLOOKUP(\"CAPEX,\"&H$2&\",,,\",data[],1),VLOOKUP(\"CAPEX,\"&H$2&\",,,\",data[],7),0)","v":0},{"$f":"IF(\"CAPEX,\"&I$2&\",,,\"=VLOOKUP(\"CAPEX,\"&I$2&\",,,\",data[],1),VLOOKUP(\"CAPEX,\"&I$2&\",,,\",data[],7),0)","v":0},null,null,null,null,null,null,null,{"$f":"IF(\"CAPEX,\"&Q$2&\",,,\"=VLOOKUP(\"CAPEX,\"&Q$2&\",,,\",data[],1),VLOOKUP(\"CAPEX,\"&Q$2&\",,,\",data[],7),0)","v":650.6426539852938},null,{"$f":"IF(\"CAPEX,\"&S$2&\",,,\"=VLOOKUP(\"CAPEX,\"&S$2&\",,,\",data[],1),VLOOKUP(\"CAPEX,\"&S$2&\",,,\",data[],7),0)","v":2.3667276243093918E-3},null,null,null,null,{"$f":"IF(X$2=\"\",0,IF(\"CAPEX,\"&X$2&\",,,\"=VLOOKUP(\"CAPEX,\"&X$2&\",,,\",data[],1),VLOOKUP(\"CAPEX,\"&X$2&\",,,\",data[],7),0))","v":0},null,{"$f":"IF(\"CAPEX,\"&Z$2&\",,,\"=VLOOKUP(\"CAPEX,\"&Z$2&\",,,\",data[],1),VLOOKUP(\"CAPEX,\"&Z$2&\",,,\",data[],7),0)","v":2.3667276243093918E-3},null,null,null,{"$f":"IF(\"CAPEX,\"&AD$2&\",,,\"=VLOOKUP(\"CAPEX,\"&AD$2&\",,,\",data[],1),VLOOKUP(\"CAPEX,\"&AD$2&\",,,\",data[],7),0)","v":1.0377410418368698},null,null,null,null,null,null,{"$f":"IF(AK$2=\"\",0,IF(\"CAPEX,\"&AK$2&\",,,\"=VLOOKUP(\"CAPEX,\"&AK$2&\",,,\",data[],1),VLOOKUP(\"CAPEX,\"&AK$2&\",,,\",data[],7),0))","v":1457.3621055108172},null,{"$f":"IF(AM$2=\"\",0,IF(\"CAPEX,\"&AM$2&\",,,\"=VLOOKUP(\"CAPEX,\"&AM$2&\",,,\",data[],1),VLOOKUP(\"CAPEX,\"&AM$2&\",,,\",data[],7),0))","v":144.49043833783671},null,null,null,null,null,null,null,null,null,null,null,null,null,null,{"$f":"IF(BB$2=\"\",0,IF(BB$2=\"\",0,IF(\"CAPEX,\"&BB$2&\",,,\"=VLOOKUP(\"CAPEX,\"&BB$2&\",,,\",data[],1),VLOOKUP(\"CAPEX,\"&BB$2&\",,,\",data[],7),0)))","v":318.14227153381154},null,null,{"$f":"IF(BE$2=\"\",0,IF(\"CAPEX,\"&BE$2&\",,,\"=VLOOKUP(\"CAPEX,\"&BE$2&\",,,\",data[],1),VLOOKUP(\"CAPEX,\"&BE$2&\",,,\",data[],7),0))","v":0}]
[null,"ARE",null,null,null,null,null,null,null,null,{"$f":"IF(\"CAPEX,\"&$K14&\",,\"&$B502&\",\"=VLOOKUP(\"CAPEX,\"&$K14&\",,\"&$B502&\",\",data[],1),VLOOKUP(\"CAPEX,\"&$K14&\",,\"&$B502&\",\",data[],7),INDEX($E$501:$I$501,$J14))","v":1129.0342332707282},null,null,null,null,null,{"$f":"IF(\"CAPEX,\"&Q$2&\",,\"&$B502&\",\"=VLOOKUP(\"CAPEX,\"&Q$2&\",,\"&$B502&\",\",data[],1),VLOOKUP(\"CAPEX,\"&Q$2&\",,\"&$B502&\",\",data[],7),Q$501)","v":650.6426539852938},null,{"$f":"IF(\"CAPEX,\"&S$2&\",,\"&$B502&\",\"=VLOOKUP(\"CAPEX,\"&S$2&\",,\"&$B502&\",\",data[],1),VLOOKUP(\"CAPEX,\"&S$2&\",,\"&$B502&\",\",data[],7),S$501)","v":2.3667276243093918E-3},null,null,null,null,{"$f":"IF(X$2=\"\",0,IF(\"CAPEX,\"&X$2&\",,\"&$B502&\",\"=VLOOKUP(\"CAPEX,\"&X$2&\",,\"&$B502&\",\",data[],1),VLOOKUP(\"CAPEX,\"&X$2&\",,\"&$B502&\",\",data[],7),X$501))","v":0},null,{"$f":"IF(\"CAPEX,\"&Z$2&\",,\"&$B502&\",\"=VLOOKUP(\"CAPEX,\"&Z$2&\",,\"&$B502&\",\",data[],1),VLOOKUP(\"CAPEX,\"&Z$2&\",,\"&$B502&\",\",data[],7),Z$501)","v":2.3667276243093918E-3},null,null,null,{"$f":"IF(\"CAPEX,\"&AD$2&\",,\"&$B502&\",\"=VLOOKUP(\"CAPEX,\"&AD$2&\",,\"&$B502&\",\",data[],1),VLOOKUP(\"CAPEX,\"&AD$2&\",,\"&$B502&\",\",data[],7),AD$501)","v":1.0377410418368698},null,null,null,null,null,null,{"$f":"IF(AK$2=\"\",0,IF(\"CAPEX,\"&AK$2&\",,\"&$B502&\",\"=VLOOKUP(\"CAPEX,\"&AK$2&\",,\"&$B502&\",\",data[],1),VLOOKUP(\"CAPEX,\"&AK$2&\",,\"&$B502&\",\",data[],7),AK$501))","v":1457.3621055108172},null,{"$f":"IF(AM$2=\"\",0,IF(\"CAPEX,\"&AM$2&\",,\"&$B502&\",\"=VLOOKUP(\"CAPEX,\"&AM$2&\",,\"&$B502&\",\",data[],1),VLOOKUP(\"CAPEX,\"&AM$2&\",,\"&$B502&\",\",data[],7),AM$501))","v":144.49043833783671},null,null,null,null,null,null,null,null,null,null,null,null,null,null,{"$f":"IF(BB$2=\"\",0,IF(NOT(BB14),0,IF(\"CAPEX,\"&BB$2&\",,\"&$B502&\",\"=VLOOKUP(\"CAPEX,\"&BB$2&\",,\"&$B502&\",\",data[],1),VLOOKUP(\"CAPEX,\"&BB$2&\",,\"&$B502&\",\",data[],7),BB$501)))","v":0},null,null,{"$f":"IF(BE$2=\"\",0,IF(NOT(BE14),0,IF(\"CAPEX,\"&BE$2&\",,\"&$B502&\",\"=VLOOKUP(\"CAPEX,\"&BE$2&\",,\"&$B502&\",\",data[],1),VLOOKUP(\"CAPEX,\"&BE$2&\",,\"&$B502&\",\",data[],7),BE$501)))","v":0}]
[null,"ARG",null,null,null,null,null,null,null,null,{"$f":"IF(\"CAPEX,\"&$K15&\",,\"&$B503&\",\"=VLOOKUP(\"CAPEX,\"&$K15&\",,\"&$B503&\",\",data[],1),VLOOKUP(\"CAPEX,\"&$K15&\",,\"&$B503&\",\",data[],7),INDEX($E$501:$I$501,$J15))","v":1218.0417054231007},null,null,null,null,null,{"$f":"IF(\"CAPEX,\"&Q$2&\",,\"&$B503&\",\"=VLOOKUP(\"CAPEX,\"&Q$2&\",,\"&$B503&\",\",data[],1),VLOOKUP(\"CAPEX,\"&Q$2&\",,\"&$B503&\",\",data[],7),Q$501)","v":650.6426539852938},null,{"$f":"IF(\"CAPEX,\"&S$2&\",,\"&$B503&\",\"=VLOOKUP(\"CAPEX,\"&S$2&\",,\"&$B503&\",\",data[],1),VLOOKUP(\"CAPEX,\"&S$2&\",,\"&$B503&\",\",data[],7),S$501)","v":2.3667276243093918E-3},null,null,null,null,{"$f":"IF(X$2=\"\",0,IF(\"CAPEX,\"&X$2&\",,\"&$B503&\",\"=VLOOKUP(\"CAPEX,\"&X$2&\",,\"&$B503&\",\",data[],1),VLOOKUP(\"CAPEX,\"&X$2&\",,\"&$B503&\",\",data[],7),X$501))","v":0},null,{"$f":"IF(\"CAPEX,\"&Z$2&\",,\"&$B503&\",\"=VLOOKUP(\"CAPEX,\"&Z$2&\",,\"&$B503&\",\",data[],1),VLOOKUP(\"CAPEX,\"&Z$2&\",,\"&$B503&\",\",data[],7),Z$501)","v":2.3667276243093918E-3},null,null,null,{"$f":"IF(\"CAPEX,\"&AD$2&\",,\"&$B503&\",\"=VLOOKUP(\"CAPEX,\"&AD$2&\",,\"&$B503&\",\",data[],1),VLOOKUP(\"CAPEX,\"&AD$2&\",,\"&$B503&\",\",data[],7),AD$501)","v":1.0377410418368698},null,null,null,null,null,null,{"$f":"IF(AK$2=\"\",0,IF(\"CAPEX,\"&AK$2&\",,\"&$B503&\",\"=VLOOKUP(\"CAPEX,\"&AK$2&\",,\"&$B503&\",\",data[],1),VLOOKUP(\"CAPEX,\"&AK$2&\",,\"&$B503&\",\",data[],7),AK$501))","v":1457.3621055108172},null,{"$f":"IF(AM$2=\"\",0,IF(\"CAPEX,\"&AM$2&\",,\"&$B503&\",\"=VLOOKUP(\"CAPEX,\"&AM$2&\",,\"&$B503&\",\",data[],1),VLOOKUP(\"CAPEX,\"&AM$2&\",,\"&$B503&\",\",data[],7),AM$501))","v":144.49043833783671},null,null,null,null,null,null,null,null,null,null,null,null,null,null,{"$f":"IF(BB$2=\"\",0,IF(NOT(BB15),0,IF(\"CAPEX,\"&BB$2&\",,\"&$B503&\",\"=VLOOKUP(\"CAPEX,\"&BB$2&\",,\"&$B503&\",\",data[],1),VLOOKUP(\"CAPEX,\"&BB$2&\",,\"&$B503&\",\",data[],7),BB$501)))","v":318.14227153381154},null,null,{"$f":"IF(BE$2=\"\",0,IF(NOT(BE15),0,IF(\"CAPEX,\"&BE$2&\",,\"&$B503&\",\"=VLOOKUP(\"CAPEX,\"&BE$2&\",,\"&$B503&\",\",data[],1),VLOOKUP(\"CAPEX,\"&BE$2&\",,\"&$B503&\",\",data[],7),BE$501)))","v":0}]
[null,"ARG-BA",null,null,null,null,null,null,null,null,{"$f":"IF(\"CAPEX,\"&$K16&\",,\"&$B504&\",\"=VLOOKUP(\"CAPEX,\"&$K16&\",,\"&$B504&\",\",data[],1),VLOOKUP(\"CAPEX,\"&$K16&\",,\"&$B504&\",\",data[],7),INDEX($E$501:$I$501,$J16))","v":1218.0417054231007},null,null,null,null,null,{"$f":"IF(\"CAPEX,\"&Q$2&\",,\"&$B504&\",\"=VLOOKUP(\"CAPEX,\"&Q$2&\",,\"&$B504&\",\",data[],1),VLOOKUP(\"CAPEX,\"&Q$2&\",,\"&$B504&\",\",data[],7),Q$501)","v":650.6426539852938},null,{"$f":"IF(\"CAPEX,\"&S$2&\",,\"&$B504&\",\"=VLOOKUP(\"CAPEX,\"&S$2&\",,\"&$B504&\",\",data[],1),VLOOKUP(\"CAPEX,\"&S$2&\",,\"&$B504&\",\",data[],7),S$501)","v":2.3667276243093918E-3},null,null,null,null,{"$f":"IF(X$2=\"\",0,IF(\"CAPEX,\"&X$2&\",,\"&$B504&\",\"=VLOOKUP(\"CAPEX,\"&X$2&\",,\"&$B504&\",\",data[],1),VLOOKUP(\"CAPEX,\"&X$2&\",,\"&$B504&\",\",data[],7),X$501))","v":0},null,{"$f":"IF(\"CAPEX,\"&Z$2&\",,\"&$B504&\",\"=VLOOKUP(\"CAPEX,\"&Z$2&\",,\"&$B504&\",\",data[],1),VLOOKUP(\"CAPEX,\"&Z$2&\",,\"&$B504&\",\",data[],7),Z$501)","v":2.3667276243093918E-3},null,null,null,{"$f":"IF(\"CAPEX,\"&AD$2&\",,\"&$B504&\",\"=VLOOKUP(\"CAPEX,\"&AD$2&\",,\"&$B504&\",\",data[],1),VLOOKUP(\"CAPEX,\"&AD$2&\",,\"&$B504&\",\",data[],7),AD$501)","v":1.0377410418368698},null,null,null,null,null,null,{"$f":"IF(AK$2=\"\",0,IF(\"CAPEX,\"&AK$2&\",,\"&$B504&\",\"=VLOOKUP(\"CAPEX,\"&AK$2&\",,\"&$B504&\",\",data[],1),VLOOKUP(\"CAPEX,\"&AK$2&\",,\"&$B504&\",\",data[],7),AK$501))","v":1457.3621055108172},null,{"$f":"IF(AM$2=\"\",0,IF(\"CAPEX,\"&AM$2&\",,\"&$B504&\",\"=VLOOKUP(\"CAPEX,\"&AM$2&\",,\"&$B504&\",\",data[],1),VLOOKUP(\"CAPEX,\"&AM$2&\",,\"&$B504&\",\",data[],7),AM$501))","v":144.49043833783671},null,null,null,null,null,null,null,null,null,null,null,null,null,null,{"$f":"IF(BB$2=\"\",0,IF(NOT(BB16),0,IF(\"CAPEX,\"&BB$2&\",,\"&$B504&\",\"=VLOOKUP(\"CAPEX,\"&BB$2&\",,\"&$B504&\",\",data[],1),VLOOKUP(\"CAPEX,\"&BB$2&\",,\"&$B504&\",\",data[],7),BB$501)))","v":318.14227153381154},null,null,{"$f":"IF(BE$2=\"\",0,IF(NOT(BE16),0,IF(\"CAPEX,\"&BE$2&\",,\"&$B504&\",\"=VLOOKUP(\"CAPEX,\"&BE$2&\",,\"&$B504&\",\",data[],1),VLOOKUP(\"CAPEX,\"&BE$2&\",,\"&$B504&\",\",data[],7),BE$501)))","v":0}]
[null,"ARG-CAT",null,null,null,null,null,null,null,null,{"$f":"IF(\"CAPEX,\"&$K17&\",,\"&$B505&\",\"=VLOOKUP(\"CAPEX,\"&$K17&\",,\"&$B505&\",\",data[],1),VLOOKUP(\"CAPEX,\"&$K17&\",,\"&$B505&\",\",data[],7),INDEX($E$501:$I$501,$J17))","v":1218.0417054231007},null,null,null,null,null,{"$f":"IF(\"CAPEX,\"&Q$2&\",,\"&$B505&\",\"=VLOOKUP(\"CAPEX,\"&Q$2&\",,\"&$B505&\",\",data[],1),VLOOKUP(\"CAPEX,\"&Q$2&\",,\"&$B505&\",\",data[],7),Q$501)","v":650.6426539852938},null,{"$f":"IF(\"CAPEX,\"&S$2&\",,\"&$B505&\",\"=VLOOKUP(\"CAPEX,\"&S$2&\",,\"&$B505&\",\",data[],1),VLOOKUP(\"CAPEX,\"&S$2&\",,\"&$B505&\",\",data[],7),S$501)","v":2.3667276243093918E-3},null,null,null,null,{"$f":"IF(X$2=\"\",0,IF(\"CAPEX,\"&X$2&\",,\"&$B505&\",\"=VLOOKUP(\"CAPEX,\"&X$2&\",,\"&$B505&\",\",data[],1),VLOOKUP(\"CAPEX,\"&X$2&\",,\"&$B505&\",\",data[],7),X$501))","v":0},null,{"$f":"IF(\"CAPEX,\"&Z$2&\",,\"&$B505&\",\"=VLOOKUP(\"CAPEX,\"&Z$2&\",,\"&$B505&\",\",data[],1),VLOOKUP(\"CAPEX,\"&Z$2&\",,\"&$B505&\",\",data[],7),Z$501)","v":2.3667276243093918E-3},null,null,null,{"$f":"IF(\"CAPEX,\"&AD$2&\",,\"&$B505&\",\"=VLOOKUP(\"CAPEX,\"&AD$2&\",,\"&$B505&\",\",data[],1),VLOOKUP(\"CAPEX,\"&AD$2&\",,\"&$B505&\",\",data[],7),AD$501)","v":1.0377410418368698},null,null,null,null,null,null,{"$f":"IF(AK$2=\"\",0,IF(\"CAPEX,\"&AK$2&\",,\"&$B505&\",\"=VLOOKUP(\"CAPEX,\"&AK$2&\",,\"&$B505&\",\",data[],1),VLOOKUP(\"CAPEX,\"&AK$2&\",,\"&$B505&\",\",data[],7),AK$501))","v":1457.3621055108172},null,{"$f":"IF(AM$2=\"\",0,IF(\"CAPEX,\"&AM$2&\",,\"&$B505&\",\"=VLOOKUP(\"CAPEX,\"&AM$2&\",,\"&$B505&\",\",data[],1),VLOOKUP(\"CAPEX,\"&AM$2&\",,\"&$B505&\",\",data[],7),AM$501))","v":144.49043833783671},null,null,null,null,null,null,null,null,null,null,null,null,null,null,{"$f":"IF(BB$2=\"\",0,IF(NOT(BB17),0,IF(\"CAPEX,\"&BB$2&\",,\"&$B505&\",\"=VLOOKUP(\"CAPEX,\"&BB$2&\",,\"&$B505&\",\",data[],1),VLOOKUP(\"CAPEX,\"&BB$2&\",,\"&$B505&\",\",data[],7),BB$501)))","v":318.14227153381154},null,null,{"$f":"IF(BE$2=\"\",0,IF(NOT(BE17),0,IF(\"CAPEX,\"&BE$2&\",,\"&$B505&\",\"=VLOOKUP(\"CAPEX,\"&BE$2&\",,\"&$B505&\",\",data[],1),VLOOKUP(\"CAPEX,\"&BE$2&\",,\"&$B505&\",\",data[],7),BE$501)))","v":0}]
[null,"ARG-CBA",null,null,null,null,null,null,null,null,{"$f":"IF(\"CAPEX,\"&$K18&\",,\"&$B506&\",\"=VLOOKUP(\"CAPEX,\"&$K18&\",,\"&$B506&\",\",data[],1),VLOOKUP(\"CAPEX,\"&$K18&\",,\"&$B506&\",\",data[],7),INDEX($E$501:$I$501,$J18))","v":1218.0417054231007},null,null,null,null,null,{"$f":"IF(\"CAPEX,\"&Q$2&\",,\"&$B506&\",\"=VLOOKUP(\"CAPEX,\"&Q$2&\",,\"&$B506&\",\",data[],1),VLOOKUP(\"CAPEX,\"&Q$2&\",,\"&$B506&\",\",data[],7),Q$501)","v":650.6426539852938},null,{"$f":"IF(\"CAPEX,\"&S$2&\",,\"&$B506&\",\"=VLOOKUP(\"CAPEX,\"&S$2&\",,\"&$B506&\",\",data[],1),VLOOKUP(\"CAPEX,\"&S$2&\",,\"&$B506&\",\",data[],7),S$501)","v":2.3667276243093918E-3},null,null,null,null,{"$f":"IF(X$2=\"\",0,IF(\"CAPEX,\"&X$2&\",,\"&$B506&\",\"=VLOOKUP(\"CAPEX,\"&X$2&\",,\"&$B506&\",\",data[],1),VLOOKUP(\"CAPEX,\"&X$2&\",,\"&$B506&\",\",data[],7),X$501))","v":0},null,{"$f":"IF(\"CAPEX,\"&Z$2&\",,\"&$B506&\",\"=VLOOKUP(\"CAPEX,\"&Z$2&\",,\"&$B506&\",\",data[],1),VLOOKUP(\"CAPEX,\"&Z$2&\",,\"&$B506&\",\",data[],7),Z$501)","v":2.3667276243093918E-3},null,null,null,{"$f":"IF(\"CAPEX,\"&AD$2&\",,\"&$B506&\",\"=VLOOKUP(\"CAPEX,\"&AD$2&\",,\"&$B506&\",\",data[],1),VLOOKUP(\"CAPEX,\"&AD$2&\",,\"&$B506&\",\",data[],7),AD$501)","v":1.0377410418368698},null,null,null,null,null,null,{"$f":"IF(AK$2=\"\",0,IF(\"CAPEX,\"&AK$2&\",,\"&$B506&\",\"=VLOOKUP(\"CAPEX,\"&AK$2&\",,\"&$B506&\",\",data[],1),VLOOKUP(\"CAPEX,\"&AK$2&\",,\"&$B506&\",\",data[],7),AK$501))","v":1457.3621055108172},null,{"$f":"IF(AM$2=\"\",0,IF(\"CAPEX,\"&AM$2&\",,\"&$B506&\",\"=VLOOKUP(\"CAPEX,\"&AM$2&\",,\"&$B506&\",\",data[],1),VLOOKUP(\"CAPEX,\"&AM$2&\",,\"&$B506&\",\",data[],7),AM$501))","v":144.49043833783671},null,null,null,null,null,null,null,null,null,null,null,null,null,null,{"$f":"IF(BB$2=\"\",0,IF(NOT(BB18),0,IF(\"CAPEX,\"&BB$2&\",,\"&$B506&\",\"=VLOOKUP(\"CAPEX,\"&BB$2&\",,\"&$B506&\",\",data[],1),VLOOKUP(\"CAPEX,\"&BB$2&\",,\"&$B506&\",\",data[],7),BB$501)))","v":318.14227153381154},null,null,{"$f":"IF(BE$2=\"\",0,IF(NOT(BE18),0,IF(\"CAPEX,\"&BE$2&\",,\"&$B506&\",\"=VLOOKUP(\"CAPEX,\"&BE$2&\",,\"&$B506&\",\",data[],1),VLOOKUP(\"CAPEX,\"&BE$2&\",,\"&$B506&\",\",data[],7),BE$501)))","v":0}]
[null,"ARG-CHA",null,null,null,null,null,null,null,null,{"$f":"IF(\"CAPEX,\"&$K19&\",,\"&$B507&\",\"=VLOOKUP(\"CAPEX,\"&$K19&\",,\"&$B507&\",\",data[],1),VLOOKUP(\"CAPEX,\"&$K19&\",,\"&$B507&\",\",data[],7),INDEX($E$501:$I$501,$J19))","v":1218.0417054231007},null,null,null,null,null,{"$f":"IF(\"CAPEX,\"&Q$2&\",,\"&$B507&\",\"=VLOOKUP(\"CAPEX,\"&Q$2&\",,\"&$B507&\",\",data[],1),VLOOKUP(\"CAPEX,\"&Q$2&\",,\"&$B507&\",\",data[],7),Q$501)","v":650.6426539852938},null,{"$f":"IF(\"CAPEX,\"&S$2&\",,\"&$B507&\",\"=VLOOKUP(\"CAPEX,\"&S$2&\",,\"&$B507&\",\",data[],1),VLOOKUP(\"CAPEX,\"&S$2&\",,\"&$B507&\",\",data[],7),S$501)","v":2.3667276243093918E-3},null,null,null,null,{"$f":"IF(X$2=\"\",0,IF(\"CAPEX,\"&X$2&\",,\"&$B507&\",\"=VLOOKUP(\"CAPEX,\"&X$2&\",,\"&$B507&\",\",data[],1),VLOOKUP(\"CAPEX,\"&X$2&\",,\"&$B507&\",\",data[],7),X$501))","v":0},null,{"$f":"IF(\"CAPEX,\"&Z$2&\",,\"&$B507&\",\"=VLOOKUP(\"CAPEX,\"&Z$2&\",,\"&$B507&\",\",data[],1),VLOOKUP(\"CAPEX,\"&Z$2&\",,\"&$B507&\",\",data[],7),Z$501)","v":2.3667276243093918E-3},null,null,null,{"$f":"IF(\"CAPEX,\"&AD$2&\",,\"&$B507&\",\"=VLOOKUP(\"CAPEX,\"&AD$2&\",,\"&$B507&\",\",data[],1),VLOOKUP(\"CAPEX,\"&AD$2&\",,\"&$B507&\",\",data[],7),AD$501)","v":1.0377410418368698},null,null,null,null,null,null,{"$f":"IF(AK$2=\"\",0,IF(\"CAPEX,\"&AK$2&\",,\"&$B507&\",\"=VLOOKUP(\"CAPEX,\"&AK$2&\",,\"&$B507&\",\",data[],1),VLOOKUP(\"CAPEX,\"&AK$2&\",,\"&$B507&\",\",data[],7),AK$501))","v":1457.3621055108172},null,{"$f":"IF(AM$2=\"\",0,IF(\"CAPEX,\"&AM$2&\",,\"&$B507&\",\"=VLOOKUP(\"CAPEX,\"&AM$2&\",,\"&$B507&\",\",data[],1),VLOOKUP(\"CAPEX,\"&AM$2&\",,\"&$B507&\",\",data[],7),AM$501))","v":144.49043833783671},null,null,null,null,null,null,null,null,null,null,null,null,null,null,{"$f":"IF(BB$2=\"\",0,IF(NOT(BB19),0,IF(\"CAPEX,\"&BB$2&\",,\"&$B507&\",\"=VLOOKUP(\"CAPEX,\"&BB$2&\",,\"&$B507&\",\",data[],1),VLOOKUP(\"CAPEX,\"&BB$2&\",,\"&$B507&\",\",data[],7),BB$501)))","v":318.14227153381154},null,null,{"$f":"IF(BE$2=\"\",0,IF(NOT(BE19),0,IF(\"CAPEX,\"&BE$2&\",,\"&$B507&\",\"=VLOOKUP(\"CAPEX,\"&BE$2&\",,\"&$B507&\",\",data[],1),VLOOKUP(\"CAPEX,\"&BE$2&\",,\"&$B507&\",\",data[],7),BE$501)))","v":0}]
[null,"ARG-CHU",null,null,null,null,null,null,null,null,{"$f":"IF(\"CAPEX,\"&$K20&\",,\"&$B508&\",\"=VLOOKUP(\"CAPEX,\"&$K20&\",,\"&$B508&\",\",data[],1),VLOOKUP(\"CAPEX,\"&$K20&\",,\"&$B508&\",\",data[],7),INDEX($E$501:$I$501,$J20))","v":1218.0417054231007},null,null,null,null,null,{"$f":"IF(\"CAPEX,\"&Q$2&\",,\"&$B508&\",\"=VLOOKUP(\"CAPEX,\"&Q$2&\",,\"&$B508&\",\",data[],1),VLOOKUP(\"CAPEX,\"&Q$2&\",,\"&$B508&\",\",data[],7),Q$501)","v":650.6426539852938},null,{"$f":"IF(\"CAPEX,\"&S$2&\",,\"&$B508&\",\"=VLOOKUP(\"CAPEX,\"&S$2&\",,\"&$B508&\",\",data[],1),VLOOKUP(\"CAPEX,\"&S$2&\",,\"&$B508&\",\",data[],7),S$501)","v":2.3667276243093918E-3},null,null,null,null,{"$f":"IF(X$2=\"\",0,IF(\"CAPEX,\"&X$2&\",,\"&$B508&\",\"=VLOOKUP(\"CAPEX,\"&X$2&\",,\"&$B508&\",\",data[],1),VLOOKUP(\"CAPEX,\"&X$2&\",,\"&$B508&\",\",data[],7),X$501))","v":0},null,{"$f":"IF(\"CAPEX,\"&Z$2&\",,\"&$B508&\",\"=VLOOKUP(\"CAPEX,\"&Z$2&\",,\"&$B508&\",\",data[],1),VLOOKUP(\"CAPEX,\"&Z$2&\",,\"&$B508&\",\",data[],7),Z$501)","v":2.3667276243093918E-3},null,null,null,{"$f":"IF(\"CAPEX,\"&AD$2&\",,\"&$B508&\",\"=VLOOKUP(\"CAPEX,\"&AD$2&\",,\"&$B508&\",\",data[],1),VLOOKUP(\"CAPEX,\"&AD$2&\",,\"&$B508&\",\",data[],7),AD$501)","v":1.0377410418368698},null,null,null,null,null,null,{"$f":"IF(AK$2=\"\",0,IF(\"CAPEX,\"&AK$2&\",,\"&$B508&\",\"=VLOOKUP(\"CAPEX,\"&AK$2&\",,\"&$B508&\",\",data[],1),VLOOKUP(\"CAPEX,\"&AK$2&\",,\"&$B508&\",\",data[],7),AK$501))","v":1457.3621055108172},null,{"$f":"IF(AM$2=\"\",0,IF(\"CAPEX,\"&AM$2&\",,\"&$B508&\",\"=VLOOKUP(\"CAPEX,\"&AM$2&\",,\"&$B508&\",\",data[],1),VLOOKUP(\"CAPEX,\"&AM$2&\",,\"&$B508&\",\",data[],7),AM$501))","v":144.49043833783671},null,null,null,null,null,null,null,null,null,null,null,null,null,null,{"$f":"IF(BB$2=\"\",0,IF(NOT(BB20),0,IF(\"CAPEX,\"&BB$2&\",,\"&$B508&\",\"=VLOOKUP(\"CAPEX,\"&BB$2&\",,\"&$B508&\",\",data[],1),VLOOKUP(\"CAPEX,\"&BB$2&\",,\"&$B508&\",\",data[],7),BB$501)))","v":318.14227153381154},null,null,{"$f":"IF(BE$2=\"\",0,IF(NOT(BE20),0,IF(\"CAPEX,\"&BE$2&\",,\"&$B508&\",\"=VLOOKUP(\"CAPEX,\"&BE$2&\",,\"&$B508&\",\",data[],1),VLOOKUP(\"CAPEX,\"&BE$2&\",,\"&$B508&\",\",data[],7),BE$501)))","v":0}]
[null,"ARG-COR",null,null,null,null,null,null,null,null,{"$f":"IF(\"CAPEX,\"&$K21&\",,\"&$B509&\",\"=VLOOKUP(\"CAPEX,\"&$K21&\",,\"&$B509&\",\",data[],1),VLOOKUP(\"CAPEX,\"&$K21&\",,\"&$B509&\",\",data[],7),INDEX($E$501:$I$501,$J21))","v":1218.0417054231007},null,null,null,null,null,{"$f":"IF(\"CAPEX,\"&Q$2&\",,\"&$B509&\",\"=VLOOKUP(\"CAPEX,\"&Q$2&\",,\"&$B509&\",\",data[],1),VLOOKUP(\"CAPEX,\"&Q$2&\",,\"&$B509&\",\",data[],7),Q$501)","v":650.6426539852938},null,{"$f":"IF(\"CAPEX,\"&S$2&\",,\"&$B509&\",\"=VLOOKUP(\"CAPEX,\"&S$2&\",,\"&$B509&\",\",data[],1),VLOOKUP(\"CAPEX,\"&S$2&\",,\"&$B509&\",\",data[],7),S$501)","v":2.3667276243093918E-3},null,null,null,null,{"$f":"IF(X$2=\"\",0,IF(\"CAPEX,\"&X$2&\",,\"&$B509&\",\"=VLOOKUP(\"CAPEX,\"&X$2&\",,\"&$B509&\",\",data[],1),VLOOKUP(\"CAPEX,\"&X$2&\",,\"&$B509&\",\",data[],7),X$501))","v":0},null,{"$f":"IF(\"CAPEX,\"&Z$2&\",,\"&$B509&\",\"=VLOOKUP(\"CAPEX,\"&Z$2&\",,\"&$B509&\",\",data[],1),VLOOKUP(\"CAPEX,\"&Z$2&\",,\"&$B509&\",\",data[],7),Z$501)","v":2.3667276243093918E-3},null,null,null,{"$f":"IF(\"CAPEX,\"&AD$2&\",,\"&$B509&\",\"=VLOOKUP(\"CAPEX,\"&AD$2&\",,\"&$B509&\",\",data[],1),VLOOKUP(\"CAPEX,\"&AD$2&\",,\"&$B509&\",\",data[],7),AD$501)","v":1.0377410418368698},null,null,null,null,null,null,{"$f":"IF(AK$2=\"\",0,IF(\"CAPEX,\"&AK$2&\",,\"&$B509&\",\"=VLOOKUP(\"CAPEX,\"&AK$2&\",,\"&$B509&\",\",data[],1),VLOOKUP(\"CAPEX,\"&AK$2&\",,\"&$B509&\",\",data[],7),AK$501))","v":1457.3621055108172},null,{"$f":"IF(AM$2=\"\",0,IF(\"CAPEX,\"&AM$2&\",,\"&$B509&\",\"=VLOOKUP(\"CAPEX,\"&AM$2&\",,\"&$B509&\",\",data[],1),VLOOKUP(\"CAPEX,\"&AM$2&\",,\"&$B509&\",\",data[],7),AM$501))","v":144.49043833783671},null,null,null,null,null,null,null,null,null,null,null,null,null,null,{"$f":"IF(BB$2=\"\",0,IF(NOT(BB21),0,IF(\"CAPEX,\"&BB$2&\",,\"&$B509&\",\"=VLOOKUP(\"CAPEX,\"&BB$2&\",,\"&$B509&\",\",data[],1),VLOOKUP(\"CAPEX,\"&BB$2&\",,\"&$B509&\",\",data[],7),BB$501)))","v":318.14227153381154},null,null,{"$f":"IF(BE$2=\"\",0,IF(NOT(BE21),0,IF(\"CAPEX,\"&BE$2&\",,\"&$B509&\",\"=VLOOKUP(\"CAPEX,\"&BE$2&\",,\"&$B509&\",\",data[],1),VLOOKUP(\"CAPEX,\"&BE$2&\",,\"&$B509&\",\",data[],7),BE$501)))","v":0}]
[null,"ARG-CRB",null,null,null,null,null,null,null,null,{"$f":"IF(\"CAPEX,\"&$K22&\",,\"&$B510&\",\"=VLOOKUP(\"CAPEX,\"&$K22&\",,\"&$B510&\",\",data[],1),VLOOKUP(\"CAPEX,\"&$K22&\",,\"&$B510&\",\",data[],7),INDEX($E$501:$I$501,$J22))","v":1218.0417054231007},null,null,null,null,null,{"$f":"IF(\"CAPEX,\"&Q$2&\",,\"&$B510&\",\"=VLOOKUP(\"CAPEX,\"&Q$2&\",,\"&$B510&\",\",data[],1),VLOOKUP(\"CAPEX,\"&Q$2&\",,\"&$B510&\",\",data[],7),Q$501)","v":650.6426539852938},null,{"$f":"IF(\"CAPEX,\"&S$2&\",,\"&$B510&\",\"=VLOOKUP(\"CAPEX,\"&S$2&\",,\"&$B510&\",\",data[],1),VLOOKUP(\"CAPEX,\"&S$2&\",,\"&$B510&\",\",data[],7),S$501)","v":2.3667276243093918E-3},null,null,null,null,{"$f":"IF(X$2=\"\",0,IF(\"CAPEX,\"&X$2&\",,\"&$B510&\",\"=VLOOKUP(\"CAPEX,\"&X$2&\",,\"&$B510&\",\",data[],1),VLOOKUP(\"CAPEX,\"&X$2&\",,\"&$B510&\",\",data[],7),X$501))","v":0},null,{"$f":"IF(\"CAPEX,\"&Z$2&\",,\"&$B510&\",\"=VLOOKUP(\"CAPEX,\"&Z$2&\",,\"&$B510&\",\",data[],1),VLOOKUP(\"CAPEX,\"&Z$2&\",,\"&$B510&\",\",data[],7),Z$501)","v":2.3667276243093918E-3},null,null,null,{"$f":"IF(\"CAPEX,\"&AD$2&\",,\"&$B510&\",\"=VLOOKUP(\"CAPEX,\"&AD$2&\",,\"&$B510&\",\",data[],1),VLOOKUP(\"CAPEX,\"&AD$2&\",,\"&$B510&\",\",data[],7),AD$501)","v":1.0377410418368698},null,null,null,null,null,null,{"$f":"IF(AK$2=\"\",0,IF(\"CAPEX,\"&AK$2&\",,\"&$B510&\",\"=VLOOKUP(\"CAPEX,\"&AK$2&\",,\"&$B510&\",\",data[],1),VLOOKUP(\"CAPEX,\"&AK$2&\",,\"&$B510&\",\",data[],7),AK$501))","v":1457.3621055108172},null,{"$f":"IF(AM$2=\"\",0,IF(\"CAPEX,\"&AM$2&\",,\"&$B510&\",\"=VLOOKUP(\"CAPEX,\"&AM$2&\",,\"&$B510&\",\",data[],1),VLOOKUP(\"CAPEX,\"&AM$2&\",,\"&$B510&\",\",data[],7),AM$501))","v":144.49043833783671},null,null,null,null,null,null,null,null,null,null,null,null,null,null,{"$f":"IF(BB$2=\"\",0,IF(NOT(BB22),0,IF(\"CAPEX,\"&BB$2&\",,\"&$B510&\",\"=VLOOKUP(\"CAPEX,\"&BB$2&\",,\"&$B510&\",\",data[],1),VLOOKUP(\"CAPEX,\"&BB$2&\",,\"&$B510&\",\",data[],7),BB$501)))","v":318.14227153381154},null,null,{"$f":"IF(BE$2=\"\",0,IF(NOT(BE22),0,IF(\"CAPEX,\"&BE$2&\",,\"&$B510&\",\"=VLOOKUP(\"CAPEX,\"&BE$2&\",,\"&$B510&\",\",data[],1),VLOOKUP(\"CAPEX,\"&BE$2&\",,\"&$B510&\",\",data[],7),BE$501)))","v":0}]
[null,"ARG-CRU",null,null,null,null,null,null,null,null,{"$f":"IF(\"CAPEX,\"&$K23&\",,\"&$B511&\",\"=VLOOKUP(\"CAPEX,\"&$K23&\",,\"&$B511&\",\",data[],1),VLOOKUP(\"CAPEX,\"&$K23&\",,\"&$B511&\",\",data[],7),INDEX($E$501:$I$501,$J23))","v":1218.0417054231007},null,null,null,null,null,{"$f":"IF(\"CAPEX,\"&Q$2&\",,\"&$B511&\",\"=VLOOKUP(\"CAPEX,\"&Q$2&\",,\"&$B511&\",\",data[],1),VLOOKUP(\"CAPEX,\"&Q$2&\",,\"&$B511&\",\",data[],7),Q$501)","v":650.6426539852938},null,{"$f":"IF(\"CAPEX,\"&S$2&\",,\"&$B511&\",\"=VLOOKUP(\"CAPEX,\"&S$2&\",,\"&$B511&\",\",data[],1),VLOOKUP(\"CAPEX,\"&S$2&\",,\"&$B511&\",\",data[],7),S$501)","v":2.3667276243093918E-3},null,null,null,null,{"$f":"IF(X$2=\"\",0,IF(\"CAPEX,\"&X$2&\",,\"&$B511&\",\"=VLOOKUP(\"CAPEX,\"&X$2&\",,\"&$B511&\",\",data[],1),VLOOKUP(\"CAPEX,\"&X$2&\",,\"&$B511&\",\",data[],7),X$501))","v":0},null,{"$f":"IF(\"CAPEX,\"&Z$2&\",,\"&$B511&\",\"=VLOOKUP(\"CAPEX,\"&Z$2&\",,\"&$B511&\",\",data[],1),VLOOKUP(\"CAPEX,\"&Z$2&\",,\"&$B511&\",\",data[],7),Z$501)","v":2.3667276243093918E-3},null,null,null,{"$f":"IF(\"CAPEX,\"&AD$2&\",,\"&$B511&\",\"=VLOOKUP(\"CAPEX,\"&AD$2&\",,\"&$B511&\",\",data[],1),VLOOKUP(\"CAPEX,\"&AD$2&\",,\"&$B511&\",\",data[],7),AD$501)","v":1.0377410418368698},null,null,null,null,null,null,{"$f":"IF(AK$2=\"\",0,IF(\"CAPEX,\"&AK$2&\",,\"&$B511&\",\"=VLOOKUP(\"CAPEX,\"&AK$2&\",,\"&$B511&\",\",data[],1),VLOOKUP(\"CAPEX,\"&AK$2&\",,\"&$B511&\",\",data[],7),AK$501))","v":1457.3621055108172},null,{"$f":"IF(AM$2=\"\",0,IF(\"CAPEX,\"&AM$2&\",,\"&$B511&\",\"=VLOOKUP(\"CAPEX,\"&AM$2&\",,\"&$B511&\",\",data[],1),VLOOKUP(\"CAPEX,\"&AM$2&\",,\"&$B511&\",\",data[],7),AM$501))","v":144.49043833783671},null,null,null,null,null,null,null,null,null,null,null,null,null,null,{"$f":"IF(BB$2=\"\",0,IF(NOT(BB23),0,IF(\"CAPEX,\"&BB$2&\",,\"&$B511&\",\"=VLOOKUP(\"CAPEX,\"&BB$2&\",,\"&$B511&\",\",data[],1),VLOOKUP(\"CAPEX,\"&BB$2&\",,\"&$B511&\",\",data[],7),BB$501)))","v":318.14227153381154},null,null,{"$f":"IF(BE$2=\"\",0,IF(NOT(BE23),0,IF(\"CAPEX,\"&BE$2&\",,\"&$B511&\",\"=VLOOKUP(\"CAPEX,\"&BE$2&\",,\"&$B511&\",\",data[],1),VLOOKUP(\"CAPEX,\"&BE$2&\",,\"&$B511&\",\",data[],7),BE$501)))","v":0}]
[null,"ARG-EST",null,null,null,null,null,null,null,null,{"$f":"IF(\"CAPEX,\"&$K24&\",,\"&$B512&\",\"=VLOOKUP(\"CAPEX,\"&$K24&\",,\"&$B512&\",\",data[],1),VLOOKUP(\"CAPEX,\"&$K24&\",,\"&$B512&\",\",data[],7),INDEX($E$501:$I$501,$J24))","v":1218.0417054231007},null,null,null,null,null,{"$f":"IF(\"CAPEX,\"&Q$2&\",,\"&$B512&\",\"=VLOOKUP(\"CAPEX,\"&Q$2&\",,\"&$B512&\",\",data[],1),VLOOKUP(\"CAPEX,\"&Q$2&\",,\"&$B512&\",\",data[],7),Q$501)","v":650.6426539852938},null,{"$f":"IF(\"CAPEX,\"&S$2&\",,\"&$B512&\",\"=VLOOKUP(\"CAPEX,\"&S$2&\",,\"&$B512&\",\",data[],1),VLOOKUP(\"CAPEX,\"&S$2&\",,\"&$B512&\",\",data[],7),S$501)","v":2.3667276243093918E-3},null,null,null,null,{"$f":"IF(X$2=\"\",0,IF(\"CAPEX,\"&X$2&\",,\"&$B512&\",\"=VLOOKUP(\"CAPEX,\"&X$2&\",,\"&$B512&\",\",data[],1),VLOOKUP(\"CAPEX,\"&X$2&\",,\"&$B512&\",\",data[],7),X$501))","v":0},null,{"$f":"IF(\"CAPEX,\"&Z$2&\",,\"&$B512&\",\"=VLOOKUP(\"CAPEX,\"&Z$2&\",,\"&$B512&\",\",data[],1),VLOOKUP(\"CAPEX,\"&Z$2&\",,\"&$B512&\",\",data[],7),Z$501)","v":2.3667276243093918E-3},null,null,null,{"$f":"IF(\"CAPEX,\"&AD$2&\",,\"&$B512&\",\"=VLOOKUP(\"CAPEX,\"&AD$2&\",,\"&$B512&\",\",data[],1),VLOOKUP(\"CAPEX,\"&AD$2&\",,\"&$B512&\",\",data[],7),AD$501)","v":1.0377410418368698},null,null,null,null,null,null,{"$f":"IF(AK$2=\"\",0,IF(\"CAPEX,\"&AK$2&\",,\"&$B512&\",\"=VLOOKUP(\"CAPEX,\"&AK$2&\",,\"&$B512&\",\",data[],1),VLOOKUP(\"CAPEX,\"&AK$2&\",,\"&$B512&\",\",data[],7),AK$501))","v":1457.3621055108172},null,{"$f":"IF(AM$2=\"\",0,IF(\"CAPEX,\"&AM$2&\",,\"&$B512&\",\"=VLOOKUP(\"CAPEX,\"&AM$2&\",,\"&$B512&\",\",data[],1),VLOOKUP(\"CAPEX,\"&AM$2&\",,\"&$B512&\",\",data[],7),AM$501))","v":144.49043833783671},null,null,null,null,null,null,null,null,null,null,null,null,null,null,{"$f":"IF(BB$2=\"\",0,IF(NOT(BB24),0,IF(\"CAPEX,\"&BB$2&\",,\"&$B512&\",\"=VLOOKUP(\"CAPEX,\"&BB$2&\",,\"&$B512&\",\",data[],1),VLOOKUP(\"CAPEX,\"&BB$2&\",,\"&$B512&\",\",data[],7),BB$501)))","v":318.14227153381154},null,null,{"$f":"IF(BE$2=\"\",0,IF(NOT(BE24),0,IF(\"CAPEX,\"&BE$2&\",,\"&$B512&\",\"=VLOOKUP(\"CAPEX,\"&BE$2&\",,\"&$B512&\",\",data[],1),VLOOKUP(\"CAPEX,\"&BE$2&\",,\"&$B512&\",\",data[],7),BE$501)))","v":0}]
[null,"ARG-FOR",null,null,null,null,null,null,null,null,{"$f":"IF(\"CAPEX,\"&$K25&\",,\"&$B513&\",\"=VLOOKUP(\"CAPEX,\"&$K25&\",,\"&$B513&\",\",data[],1),VLOOKUP(\"CAPEX,\"&$K25&\",,\"&$B513&\",\",data[],7),INDEX($E$501:$I$501,$J25))","v":1218.0417054231007},null,null,null,null,null,{"$f":"IF(\"CAPEX,\"&Q$2&\",,\"&$B513&\",\"=VLOOKUP(\"CAPEX,\"&Q$2&\",,\"&$B513&\",\",data[],1),VLOOKUP(\"CAPEX,\"&Q$2&\",,\"&$B513&\",\",data[],7),Q$501)","v":650.6426539852938},null,{"$f":"IF(\"CAPEX,\"&S$2&\",,\"&$B513&\",\"=VLOOKUP(\"CAPEX,\"&S$2&\",,\"&$B513&\",\",data[],1),VLOOKUP(\"CAPEX,\"&S$2&\",,\"&$B513&\",\",data[],7),S$501)","v":2.3667276243093918E-3},null,null,null,null,{"$f":"IF(X$2=\"\",0,IF(\"CAPEX,\"&X$2&\",,\"&$B513&\",\"=VLOOKUP(\"CAPEX,\"&X$2&\",,\"&$B513&\",\",data[],1),VLOOKUP(\"CAPEX,\"&X$2&\",,\"&$B513&\",\",data[],7),X$501))","v":0},null,{"$f":"IF(\"CAPEX,\"&Z$2&\",,\"&$B513&\",\"=VLOOKUP(\"CAPEX,\"&Z$2&\",,\"&$B513&\",\",data[],1),VLOOKUP(\"CAPEX,\"&Z$2&\",,\"&$B513&\",\",data[],7),Z$501)","v":2.3667276243093918E-3},null,null,null,{"$f":"IF(\"CAPEX,\"&AD$2&\",,\"&$B513&\",\"=VLOOKUP(\"CAPEX,\"&AD$2&\",,\"&$B513&\",\",data[],1),VLOOKUP(\"CAPEX,\"&AD$2&\",,\"&$B513&\",\",data[],7),AD$501)","v":1.0377410418368698},null,null,null,null,null,null,{"$f":"IF(AK$2=\"\",0,IF(\"CAPEX,\"&AK$2&\",,\"&$B513&\",\"=VLOOKUP(\"CAPEX,\"&AK$2&\",,\"&$B513&\",\",data[],1),VLOOKUP(\"CAPEX,\"&AK$2&\",,\"&$B513&\",\",data[],7),AK$501))","v":1457.3621055108172},null,{"$f":"IF(AM$2=\"\",0,IF(\"CAPEX,\"&AM$2&\",,\"&$B513&\",\"=VLOOKUP(\"CAPEX,\"&AM$2&\",,\"&$B513&\",\",data[],1),VLOOKUP(\"CAPEX,\"&AM$2&\",,\"&$B513&\",\",data[],7),AM$501))","v":144.49043833783671},null,null,null,null,null,null,null,null,null,null,null,null,null,null,{"$f":"IF(BB$2=\"\",0,IF(NOT(BB25),0,IF(\"CAPEX,\"&BB$2&\",,\"&$B513&\",\"=VLOOKUP(\"CAPEX,\"&BB$2&\",,\"&$B513&\",\",data[],1),VLOOKUP(\"CAPEX,\"&BB$2&\",,\"&$B513&\",\",data[],7),BB$501)))","v":318.14227153381154},null,null,{"$f":"IF(BE$2=\"\",0,IF(NOT(BE25),0,IF(\"CAPEX,\"&BE$2&\",,\"&$B513&\",\"=VLOOKUP(\"CAPEX,\"&BE$2&\",,\"&$B513&\",\",data[],1),VLOOKUP(\"CAPEX,\"&BE$2&\",,\"&$B513&\",\",data[],7),BE$501)))","v":0}]
[null,"ARG-FUE",null,null,null,null,null,null,null,null,{"$f":"IF(\"CAPEX,\"&$K26&\",,\"&$B514&\",\"=VLOOKUP(\"CAPEX,\"&$K26&\",,\"&$B514&\",\",data[],1),VLOOKUP(\"CAPEX,\"&$K26&\",,\"&$B514&\",\",data[],7),INDEX($E$501:$I$501,$J26))","v":1218.0417054231007},null,null,null,null,null,{"$f":"IF(\"CAPEX,\"&Q$2&\",,\"&$B514&\",\"=VLOOKUP(\"CAPEX,\"&Q$2&\",,\"&$B514&\",\",data[],1),VLOOKUP(\"CAPEX,\"&Q$2&\",,\"&$B514&\",\",data[],7),Q$501)","v":650.6426539852938},null,{"$f":"IF(\"CAPEX,\"&S$2&\",,\"&$B514&\",\"=VLOOKUP(\"CAPEX,\"&S$2&\",,\"&$B514&\",\",data[],1),VLOOKUP(\"CAPEX,\"&S$2&\",,\"&$B514&\",\",data[],7),S$501)","v":2.3667276243093918E-3},null,null,null,null,{"$f":"IF(X$2=\"\",0,IF(\"CAPEX,\"&X$2&\",,\"&$B514&\",\"=VLOOKUP(\"CAPEX,\"&X$2&\",,\"&$B514&\",\",data[],1),VLOOKUP(\"CAPEX,\"&X$2&\",,\"&$B514&\",\",data[],7),X$501))","v":0},null,{"$f":"IF(\"CAPEX,\"&Z$2&\",,\"&$B514&\",\"=VLOOKUP(\"CAPEX,\"&Z$2&\",,\"&$B514&\",\",data[],1),VLOOKUP(\"CAPEX,\"&Z$2&\",,\"&$B514&\",\",data[],7),Z$501)","v":2.3667276243093918E-3},null,null,null,{"$f":"IF(\"CAPEX,\"&AD$2&\",,\"&$B514&\",\"=VLOOKUP(\"CAPEX,\"&AD$2&\",,\"&$B514&\",\",data[],1),VLOOKUP(\"CAPEX,\"&AD$2&\",,\"&$B514&\",\",data[],7),AD$501)","v":1.0377410418368698},null,null,null,null,null,null,{"$f":"IF(AK$2=\"\",0,IF(\"CAPEX,\"&AK$2&\",,\"&$B514&\",\"=VLOOKUP(\"CAPEX,\"&AK$2&\",,\"&$B514&\",\",data[],1),VLOOKUP(\"CAPEX,\"&AK$2&\",,\"&$B514&\",\",data[],7),AK$501))","v":1457.3621055108172},null,{"$f":"IF(AM$2=\"\",0,IF(\"CAPEX,\"&AM$2&\",,\"&$B514&\",\"=VLOOKUP(\"CAPEX,\"&AM$2&\",,\"&$B514&\",\",data[],1),VLOOKUP(\"CAPEX,\"&AM$2&\",,\"&$B514&\",\",data[],7),AM$501))","v":144.49043833783671},null,null,null,null,null,null,null,null,null,null,null,null,null,null,{"$f":"IF(BB$2=\"\",0,IF(NOT(BB26),0,IF(\"CAPEX,\"&BB$2&\",,\"&$B514&\",\"=VLOOKUP(\"CAPEX,\"&BB$2&\",,\"&$B514&\",\",data[],1),VLOOKUP(\"CAPEX,\"&BB$2&\",,\"&$B514&\",\",data[],7),BB$501)))","v":318.14227153381154},null,null,{"$f":"IF(BE$2=\"\",0,IF(NOT(BE26),0,IF(\"CAPEX,\"&BE$2&\",,\"&$B514&\",\"=VLOOKUP(\"CAPEX,\"&BE$2&\",,\"&$B514&\",\",data[],1),VLOOKUP(\"CAPEX,\"&BE$2&\",,\"&$B514&\",\",data[],7),BE$501)))","v":0}]
[null,"ARG-JUJ",null,null,null,null,null,null,null,null,{"$f":"IF(\"CAPEX,\"&$K27&\",,\"&$B515&\",\"=VLOOKUP(\"CAPEX,\"&$K27&\",,\"&$B515&\",\",data[],1),VLOOKUP(\"CAPEX,\"&$K27&\",,\"&$B515&\",\",data[],7),INDEX($E$501:$I$501,$J27))","v":1218.0417054231007},null,null,null,null,null,{"$f":"IF(\"CAPEX,\"&Q$2&\",,\"&$B515&\",\"=VLOOKUP(\"CAPEX,\"&Q$2&\",,\"&$B515&\",\",data[],1),VLOOKUP(\"CAPEX,\"&Q$2&\",,\"&$B515&\",\",data[],7),Q$501)","v":650.6426539852938},null,{"$f":"IF(\"CAPEX,\"&S$2&\",,\"&$B515&\",\"=VLOOKUP(\"CAPEX,\"&S$2&\",,\"&$B515&\",\",data[],1),VLOOKUP(\"CAPEX,\"&S$2&\",,\"&$B515&\",\",data[],7),S$501)","v":2.3667276243093918E-3},null,null,null,null,{"$f":"IF(X$2=\"\",0,IF(\"CAPEX,\"&X$2&\",,\"&$B515&\",\"=VLOOKUP(\"CAPEX,\"&X$2&\",,\"&$B515&\",\",data[],1),VLOOKUP(\"CAPEX,\"&X$2&\",,\"&$B515&\",\",data[],7),X$501))","v":0},null,{"$f":"IF(\"CAPEX,\"&Z$2&\",,\"&$B515&\",\"=VLOOKUP(\"CAPEX,\"&Z$2&\",,\"&$B515&\",\",data[],1),VLOOKUP(\"CAPEX,\"&Z$2&\",,\"&$B515&\",\",data[],7),Z$501)","v":2.3667276243093918E-3},null,null,null,{"$f":"IF(\"CAPEX,\"&AD$2&\",,\"&$B515&\",\"=VLOOKUP(\"CAPEX,\"&AD$2&\",,\"&$B515&\",\",data[],1),VLOOKUP(\"CAPEX,\"&AD$2&\",,\"&$B515&\",\",data[],7),AD$501)","v":1.0377410418368698},null,null,null,null,null,null,{"$f":"IF(AK$2=\"\",0,IF(\"CAPEX,\"&AK$2&\",,\"&$B515&\",\"=VLOOKUP(\"CAPEX,\"&AK$2&\",,\"&$B515&\",\",data[],1),VLOOKUP(\"CAPEX,\"&AK$2&\",,\"&$B515&\",\",data[],7),AK$501))","v":1457.3621055108172},null,{"$f":"IF(AM$2=\"\",0,IF(\"CAPEX,\"&AM$2&\",,\"&$B515&\",\"=VLOOKUP(\"CAPEX,\"&AM$2&\",,\"&$B515&\",\",data[],1),VLOOKUP(\"CAPEX,\"&AM$2&\",,\"&$B515&\",\",data[],7),AM$501))","v":144.49043833783671},null,null,null,null,null,null,null,null,null,null,null,null,null,null,{"$f":"IF(BB$2=\"\",0,IF(NOT(BB27),0,IF(\"CAPEX,\"&BB$2&\",,\"&$B515&\",\"=VLOOKUP(\"CAPEX,\"&BB$2&\",,\"&$B515&\",\",data[],1),VLOOKUP(\"CAPEX,\"&BB$2&\",,\"&$B515&\",\",data[],7),BB$501)))","v":318.14227153381154},null,null,{"$f":"IF(BE$2=\"\",0,IF(NOT(BE27),0,IF(\"CAPEX,\"&BE$2&\",,\"&$B515&\",\"=VLOOKUP(\"CAPEX,\"&BE$2&\",,\"&$B515&\",\",data[],1),VLOOKUP(\"CAPEX,\"&BE$2&\",,\"&$B515&\",\",data[],7),BE$501)))","v":0}]
[null,"ARG-LAR",null,null,null,null,null,null,null,null,{"$f":"IF(\"CAPEX,\"&$K28&\",,\"&$B516&\",\"=VLOOKUP(\"CAPEX,\"&$K28&\",,\"&$B516&\",\",data[],1),VLOOKUP(\"CAPEX,\"&$K28&\",,\"&$B516&\",\",data[],7),INDEX($E$501:$I$501,$J28))","v":1218.0417054231007},null,null,null,null,null,{"$f":"IF(\"CAPEX,\"&Q$2&\",,\"&$B516&\",\"=VLOOKUP(\"CAPEX,\"&Q$2&\",,\"&$B516&\",\",data[],1),VLOOKUP(\"CAPEX,\"&Q$2&\",,\"&$B516&\",\",data[],7),Q$501)","v":650.6426539852938},null,{"$f":"IF(\"CAPEX,\"&S$2&\",,\"&$B516&\",\"=VLOOKUP(\"CAPEX,\"&S$2&\",,\"&$B516&\",\",data[],1),VLOOKUP(\"CAPEX,\"&S$2&\",,\"&$B516&\",\",data[],7),S$501)","v":2.3667276243093918E-3},null,null,null,null,{"$f":"IF(X$2=\"\",0,IF(\"CAPEX,\"&X$2&\",,\"&$B516&\",\"=VLOOKUP(\"CAPEX,\"&X$2&\",,\"&$B516&\",\",data[],1),VLOOKUP(\"CAPEX,\"&X$2&\",,\"&$B516&\",\",data[],7),X$501))","v":0},null,{"$f":"IF(\"CAPEX,\"&Z$2&\",,\"&$B516&\",\"=VLOOKUP(\"CAPEX,\"&Z$2&\",,\"&$B516&\",\",data[],1),VLOOKUP(\"CAPEX,\"&Z$2&\",,\"&$B516&\",\",data[],7),Z$501)","v":2.3667276243093918E-3},null,null,null,{"$f":"IF(\"CAPEX,\"&AD$2&\",,\"&$B516&\",\"=VLOOKUP(\"CAPEX,\"&AD$2&\",,\"&$B516&\",\",data[],1),VLOOKUP(\"CAPEX,\"&AD$2&\",,\"&$B516&\",\",data[],7),AD$501)","v":1.0377410418368698},null,null,null,null,null,null,{"$f":"IF(AK$2=\"\",0,IF(\"CAPEX,\"&AK$2&\",,\"&$B516&\",\"=VLOOKUP(\"CAPEX,\"&AK$2&\",,\"&$B516&\",\",data[],1),VLOOKUP(\"CAPEX,\"&AK$2&\",,\"&$B516&\",\",data[],7),AK$501))","v":1457.3621055108172},null,{"$f":"IF(AM$2=\"\",0,IF(\"CAPEX,\"&AM$2&\",,\"&$B516&\",\"=VLOOKUP(\"CAPEX,\"&AM$2&\",,\"&$B516&\",\",data[],1),VLOOKUP(\"CAPEX,\"&AM$2&\",,\"&$B516&\",\",data[],7),AM$501))","v":144.49043833783671},null,null,null,null,null,null,null,null,null,null,null,null,null,null,{"$f":"IF(BB$2=\"\",0,IF(NOT(BB28),0,IF(\"CAPEX,\"&BB$2&\",,\"&$B516&\",\"=VLOOKUP(\"CAPEX,\"&BB$2&\",,\"&$B516&\",\",data[],1),VLOOKUP(\"CAPEX,\"&BB$2&\",,\"&$B516&\",\",data[],7),BB$501)))","v":318.14227153381154},null,null,{"$f":"IF(BE$2=\"\",0,IF(NOT(BE28),0,IF(\"CAPEX,\"&BE$2&\",,\"&$B516&\",\"=VLOOKUP(\"CAPEX,\"&BE$2&\",,\"&$B516&\",\",data[],1),VLOOKUP(\"CAPEX,\"&BE$2&\",,\"&$B516&\",\",data[],7),BE$501)))","v":0}]
[null,"ARG-MEN",null,null,null,null,null,null,null,null,{"$f":"IF(\"CAPEX,\"&$K29&\",,\"&$B517&\",\"=VLOOKUP(\"CAPEX,\"&$K29&\",,\"&$B517&\",\",data[],1),VLOOKUP(\"CAPEX,\"&$K29&\",,\"&$B517&\",\",data[],7),INDEX($E$501:$I$501,$J29))","v":1218.0417054231007},null,null,null,null,null,{"$f":"IF(\"CAPEX,\"&Q$2&\",,\"&$B517&\",\"=VLOOKUP(\"CAPEX,\"&Q$2&\",,\"&$B517&\",\",data[],1),VLOOKUP(\"CAPEX,\"&Q$2&\",,\"&$B517&\",\",data[],7),Q$501)","v":650.6426539852938},null,{"$f":"IF(\"CAPEX,\"&S$2&\",,\"&$B517&\",\"=VLOOKUP(\"CAPEX,\"&S$2&\",,\"&$B517&\",\",data[],1),VLOOKUP(\"CAPEX,\"&S$2&\",,\"&$B517&\",\",data[],7),S$501)","v":2.3667276243093918E-3},null,null,null,null,{"$f":"IF(X$2=\"\",0,IF(\"CAPEX,\"&X$2&\",,\"&$B517&\",\"=VLOOKUP(\"CAPEX,\"&X$2&\",,\"&$B517&\",\",data[],1),VLOOKUP(\"CAPEX,\"&X$2&\",,\"&$B517&\",\",data[],7),X$501))","v":0},null,{"$f":"IF(\"CAPEX,\"&Z$2&\",,\"&$B517&\",\"=VLOOKUP(\"CAPEX,\"&Z$2&\",,\"&$B517&\",\",data[],1),VLOOKUP(\"CAPEX,\"&Z$2&\",,\"&$B517&\",\",data[],7),Z$501)","v":2.3667276243093918E-3},null,null,null,{"$f":"IF(\"CAPEX,\"&AD$2&\",,\"&$B517&\",\"=VLOOKUP(\"CAPEX,\"&AD$2&\",,\"&$B517&\",\",data[],1),VLOOKUP(\"CAPEX,\"&AD$2&\",,\"&$B517&\",\",data[],7),AD$501)","v":1.0377410418368698},null,null,null,null,null,null,{"$f":"IF(AK$2=\"\",0,IF(\"CAPEX,\"&AK$2&\",,\"&$B517&\",\"=VLOOKUP(\"CAPEX,\"&AK$2&\",,\"&$B517&\",\",data[],1),VLOOKUP(\"CAPEX,\"&AK$2&\",,\"&$B517&\",\",data[],7),AK$501))","v":1457.3621055108172},null,{"$f":"IF(AM$2=\"\",0,IF(\"CAPEX,\"&AM$2&\",,\"&$B517&\",\"=VLOOKUP(\"CAPEX,\"&AM$2&\",,\"&$B517&\",\",data[],1),VLOOKUP(\"CAPEX,\"&AM$2&\",,\"&$B517&\",\",data[],7),AM$501))","v":144.49043833783671},null,null,null,null,null,null,null,null,null,null,null,null,null,null,{"$f":"IF(BB$2=\"\",0,IF(NOT(BB29),0,IF(\"CAPEX,\"&BB$2&\",,\"&$B517&\",\"=VLOOKUP(\"CAPEX,\"&BB$2&\",,\"&$B517&\",\",data[],1),VLOOKUP(\"CAPEX,\"&BB$2&\",,\"&$B517&\",\",data[],7),BB$501)))","v":318.14227153381154},null,null,{"$f":"IF(BE$2=\"\",0,IF(NOT(BE29),0,IF(\"CAPEX,\"&BE$2&\",,\"&$B517&\",\"=VLOOKUP(\"CAPEX,\"&BE$2&\",,\"&$B517&\",\",data[],1),VLOOKUP(\"CAPEX,\"&BE$2&\",,\"&$B517&\",\",data[],7),BE$501)))","v":0}]
[null,"ARG-MIS",null,null,null,null,null,null,null,null,{"$f":"IF(\"CAPEX,\"&$K30&\",,\"&$B518&\",\"=VLOOKUP(\"CAPEX,\"&$K30&\",,\"&$B518&\",\",data[],1),VLOOKUP(\"CAPEX,\"&$K30&\",,\"&$B518&\",\",data[],7),INDEX($E$501:$I$501,$J30))","v":1218.0417054231007},null,null,null,null,null,{"$f":"IF(\"CAPEX,\"&Q$2&\",,\"&$B518&\",\"=VLOOKUP(\"CAPEX,\"&Q$2&\",,\"&$B518&\",\",data[],1),VLOOKUP(\"CAPEX,\"&Q$2&\",,\"&$B518&\",\",data[],7),Q$501)","v":650.6426539852938},null,{"$f":"IF(\"CAPEX,\"&S$2&\",,\"&$B518&\",\"=VLOOKUP(\"CAPEX,\"&S$2&\",,\"&$B518&\",\",data[],1),VLOOKUP(\"CAPEX,\"&S$2&\",,\"&$B518&\",\",data[],7),S$501)","v":2.3667276243093918E-3},null,null,null,null,{"$f":"IF(X$2=\"\",0,IF(\"CAPEX,\"&X$2&\",,\"&$B518&\",\"=VLOOKUP(\"CAPEX,\"&X$2&\",,\"&$B518&\",\",data[],1),VLOOKUP(\"CAPEX,\"&X$2&\",,\"&$B518&\",\",data[],7),X$501))","v":0},null,{"$f":"IF(\"CAPEX,\"&Z$2&\",,\"&$B518&\",\"=VLOOKUP(\"CAPEX,\"&Z$2&\",,\"&$B518&\",\",data[],1),VLOOKUP(\"CAPEX,\"&Z$2&\",,\"&$B518&\",\",data[],7),Z$501)","v":2.3667276243093918E-3},null,null,null,{"$f":"IF(\"CAPEX,\"&AD$2&\",,\"&$B518&\",\"=VLOOKUP(\"CAPEX,\"&AD$2&\",,\"&$B518&\",\",data[],1),VLOOKUP(\"CAPEX,\"&AD$2&\",,\"&$B518&\",\",data[],7),AD$501)","v":1.0377410418368698},null,null,null,null,null,null,{"$f":"IF(AK$2=\"\",0,IF(\"CAPEX,\"&AK$2&\",,\"&$B518&\",\"=VLOOKUP(\"CAPEX,\"&AK$2&\",,\"&$B518&\",\",data[],1),VLOOKUP(\"CAPEX,\"&AK$2&\",,\"&$B518&\",\",data[],7),AK$501))","v":1457.3621055108172},null,{"$f":"IF(AM$2=\"\",0,IF(\"CAPEX,\"&AM$2&\",,\"&$B518&\",\"=VLOOKUP(\"CAPEX,\"&AM$2&\",,\"&$B518&\",\",data[],1),VLOOKUP(\"CAPEX,\"&AM$2&\",,\"&$B518&\",\",data[],7),AM$501))","v":144.49043833783671},null,null,null,null,null,null,null,null,null,null,null,null,null,null,{"$f":"IF(BB$2=\"\",0,IF(NOT(BB30),0,IF(\"CAPEX,\"&BB$2&\",,\"&$B518&\",\"=VLOOKUP(\"CAPEX,\"&BB$2&\",,\"&$B518&\",\",data[],1),VLOOKUP(\"CAPEX,\"&BB$2&\",,\"&$B518&\",\",data[],7),BB$501)))","v":318.14227153381154},null,null,{"$f":"IF(BE$2=\"\",0,IF(NOT(BE30),0,IF(\"CAPEX,\"&BE$2&\",,\"&$B518&\",\"=VLOOKUP(\"CAPEX,\"&BE$2&\",,\"&$B518&\",\",data[],1),VLOOKUP(\"CAPEX,\"&BE$2&\",,\"&$B518&\",\",data[],7),BE$501)))","v":0}]
[null,"ARG-NEG",null,null,null,null,null,null,null,null,{"$f":"IF(\"CAPEX,\"&$K31&\",,\"&$B519&\",\"=VLOOKUP(\"CAPEX,\"&$K31&\",,\"&$B519&\",\",data[],1),VLOOKUP(\"CAPEX,\"&$K31&\",,\"&$B519&\",\",data[],7),INDEX($E$501:$I$501,$J31))","v":1218.0417054231007},null,null,null,null,null,{"$f":"IF(\"CAPEX,\"&Q$2&\",,\"&$B519&\",\"=VLOOKUP(\"CAPEX,\"&Q$2&\",,\"&$B519&\",\",data[],1),VLOOKUP(\"CAPEX,\"&Q$2&\",,\"&$B519&\",\",data[],7),Q$501)","v":650.6426539852938},null,{"$f":"IF(\"CAPEX,\"&S$2&\",,\"&$B519&\",\"=VLOOKUP(\"CAPEX,\"&S$2&\",,\"&$B519&\",\",data[],1),VLOOKUP(\"CAPEX,\"&S$2&\",,\"&$B519&\",\",data[],7),S$501)","v":2.3667276243093918E-3},null,null,null,null,{"$f":"IF(X$2=\"\",0,IF(\"CAPEX,\"&X$2&\",,\"&$B519&\",\"=VLOOKUP(\"CAPEX,\"&X$2&\",,\"&$B519&\",\",data[],1),VLOOKUP(\"CAPEX,\"&X$2&\",,\"&$B519&\",\",data[],7),X$501))","v":0},null,{"$f":"IF(\"CAPEX,\"&Z$2&\",,\"&$B519&\",\"=VLOOKUP(\"CAPEX,\"&Z$2&\",,\"&$B519&\",\",data[],1),VLOOKUP(\"CAPEX,\"&Z$2&\",,\"&$B519&\",\",data[],7),Z$501)","v":2.3667276243093918E-3},null,null,null,{"$f":"IF(\"CAPEX,\"&AD$2&\",,\"&$B519&\",\"=VLOOKUP(\"CAPEX,\"&AD$2&\",,\"&$B519&\",\",data[],1),VLOOKUP(\"CAPEX,\"&AD$2&\",,\"&$B519&\",\",data[],7),AD$501)","v":1.0377410418368698},null,null,null,null,null,null,{"$f":"IF(AK$2=\"\",0,IF(\"CAPEX,\"&AK$2&\",,\"&$B519&\",\"=VLOOKUP(\"CAPEX,\"&AK$2&\",,\"&$B519&\",\",data[],1),VLOOKUP(\"CAPEX,\"&AK$2&\",,\"&$B519&\",\",data[],7),AK$501))","v":1457.3621055108172},null,{"$f":"IF(AM$2=\"\",0,IF(\"CAPEX,\"&AM$2&\",,\"&$B519&\",\"=VLOOKUP(\"CAPEX,\"&AM$2&\",,\"&$B519&\",\",data[],1),VLOOKUP(\"CAPEX,\"&AM$2&\",,\"&$B519&\",\",data[],7),AM$501))","v":144.49043833783671},null,null,null,null,null,null,null,null,null,null,null,null,null,null,{"$f":"IF(BB$2=\"\",0,IF(NOT(BB31),0,IF(\"CAPEX,\"&BB$2&\",,\"&$B519&\",\"=VLOOKUP(\"CAPEX,\"&BB$2&\",,\"&$B519&\",\",data[],1),VLOOKUP(\"CAPEX,\"&BB$2&\",,\"&$B519&\",\",data[],7),BB$501)))","v":318.14227153381154},null,null,{"$f":"IF(BE$2=\"\",0,IF(NOT(BE31),0,IF(\"CAPEX,\"&BE$2&\",,\"&$B519&\",\"=VLOOKUP(\"CAPEX,\"&BE$2&\",,\"&$B519&\",\",data[],1),VLOOKUP(\"CAPEX,\"&BE$2&\",,\"&$B519&\",\",data[],7),BE$501)))","v":0}]
[null,"ARG-NEU",null,null,null,null,null,null,null,null,{"$f":"IF(\"CAPEX,\"&$K32&\",,\"&$B520&\",\"=VLOOKUP(\"CAPEX,\"&$K32&\",,\"&$B520&\",\",data[],1),VLOOKUP(\"CAPEX,\"&$K32&\",,\"&$B520&\",\",data[],7),INDEX($E$501:$I$501,$J32))","v":1218.0417054231007},null,null,null,null,null,{"$f":"IF(\"CAPEX,\"&Q$2&\",,\"&$B520&\",\"=VLOOKUP(\"CAPEX,\"&Q$2&\",,\"&$B520&\",\",data[],1),VLOOKUP(\"CAPEX,\"&Q$2&\",,\"&$B520&\",\",data[],7),Q$501)","v":650.6426539852938},null,{"$f":"IF(\"CAPEX,\"&S$2&\",,\"&$B520&\",\"=VLOOKUP(\"CAPEX,\"&S$2&\",,\"&$B520&\",\",data[],1),VLOOKUP(\"CAPEX,\"&S$2&\",,\"&$B520&\",\",data[],7),S$501)","v":2.3667276243093918E-3},null,null,null,null,{"$f":"IF(X$2=\"\",0,IF(\"CAPEX,\"&X$2&\",,\"&$B520&\",\"=VLOOKUP(\"CAPEX,\"&X$2&\",,\"&$B520&\",\",data[],1),VLOOKUP(\"CAPEX,\"&X$2&\",,\"&$B520&\",\",data[],7),X$501))","v":0},null,{"$f":"IF(\"CAPEX,\"&Z$2&\",,\"&$B520&\",\"=VLOOKUP(\"CAPEX,\"&Z$2&\",,\"&$B520&\",\",data[],1),VLOOKUP(\"CAPEX,\"&Z$2&\",,\"&$B520&\",\",data[],7),Z$501)","v":2.3667276243093918E-3},null,null,null,{"$f":"IF(\"CAPEX,\"&AD$2&\",,\"&$B520&\",\"=VLOOKUP(\"CAPEX,\"&AD$2&\",,\"&$B520&\",\",data[],1),VLOOKUP(\"CAPEX,\"&AD$2&\",,\"&$B520&\",\",data[],7),AD$501)","v":1.0377410418368698},null,null,null,null,null,null,{"$f":"IF(AK$2=\"\",0,IF(\"CAPEX,\"&AK$2&\",,\"&$B520&\",\"=VLOOKUP(\"CAPEX,\"&AK$2&\",,\"&$B520&\",\",data[],1),VLOOKUP(\"CAPEX,\"&AK$2&\",,\"&$B520&\",\",data[],7),AK$501))","v":1457.3621055108172},null,{"$f":"IF(AM$2=\"\",0,IF(\"CAPEX,\"&AM$2&\",,\"&$B520&\",\"=VLOOKUP(\"CAPEX,\"&AM$2&\",,\"&$B520&\",\",data[],1),VLOOKUP(\"CAPEX,\"&AM$2&\",,\"&$B520&\",\",data[],7),AM$501))","v":144.49043833783671},null,null,null,null,null,null,null,null,null,null,null,null,null,null,{"$f":"IF(BB$2=\"\",0,IF(NOT(BB32),0,IF(\"CAPEX,\"&BB$2&\",,\"&$B520&\",\"=VLOOKUP(\"CAPEX,\"&BB$2&\",,\"&$B520&\",\",data[],1),VLOOKUP(\"CAPEX,\"&BB$2&\",,\"&$B520&\",\",data[],7),BB$501)))","v":318.14227153381154},null,null,{"$f":"IF(BE$2=\"\",0,IF(NOT(BE32),0,IF(\"CAPEX,\"&BE$2&\",,\"&$B520&\",\"=VLOOKUP(\"CAPEX,\"&BE$2&\",,\"&$B520&\",\",data[],1),VLOOKUP(\"CAPEX,\"&BE$2&\",,\"&$B520&\",\",data[],7),BE$501)))","v":0}]
[null,"ARG-PAM",null,null,null,null,null,null,null,null,{"$f":"IF(\"CAPEX,\"&$K33&\",,\"&$B521&\",\"=VLOOKUP(\"CAPEX,\"&$K33&\",,\"&$B521&\",\",data[],1),VLOOKUP(\"CAPEX,\"&$K33&\",,\"&$B521&\",\",data[],7),INDEX($E$501:$I$501,$J33))","v":1218.0417054231007},null,null,null,null,null,{"$f":"IF(\"CAPEX,\"&Q$2&\",,\"&$B521&\",\"=VLOOKUP(\"CAPEX,\"&Q$2&\",,\"&$B521&\",\",data[],1),VLOOKUP(\"CAPEX,\"&Q$2&\",,\"&$B521&\",\",data[],7),Q$501)","v":650.6426539852938},null,{"$f":"IF(\"CAPEX,\"&S$2&\",,\"&$B521&\",\"=VLOOKUP(\"CAPEX,\"&S$2&\",,\"&$B521&\",\",data[],1),VLOOKUP(\"CAPEX,\"&S$2&\",,\"&$B521&\",\",data[],7),S$501)","v":2.3667276243093918E-3},null,null,null,null,{"$f":"IF(X$2=\"\",0,IF(\"CAPEX,\"&X$2&\",,\"&$B521&\",\"=VLOOKUP(\"CAPEX,\"&X$2&\",,\"&$B521&\",\",data[],1),VLOOKUP(\"CAPEX,\"&X$2&\",,\"&$B521&\",\",data[],7),X$501))","v":0},null,{"$f":"IF(\"CAPEX,\"&Z$2&\",,\"&$B521&\",\"=VLOOKUP(\"CAPEX,\"&Z$2&\",,\"&$B521&\",\",data[],1),VLOOKUP(\"CAPEX,\"&Z$2&\",,\"&$B521&\",\",data[],7),Z$501)","v":2.3667276243093918E-3},null,null,null,{"$f":"IF(\"CAPEX,\"&AD$2&\",,\"&$B521&\",\"=VLOOKUP(\"CAPEX,\"&AD$2&\",,\"&$B521&\",\",data[],1),VLOOKUP(\"CAPEX,\"&AD$2&\",,\"&$B521&\",\",data[],7),AD$501)","v":1.0377410418368698},null,null,null,null,null,null,{"$f":"IF(AK$2=\"\",0,IF(\"CAPEX,\"&AK$2&\",,\"&$B521&\",\"=VLOOKUP(\"CAPEX,\"&AK$2&\",,\"&$B521&\",\",data[],1),VLOOKUP(\"CAPEX,\"&AK$2&\",,\"&$B521&\",\",data[],7),AK$501))","v":1457.3621055108172},null,{"$f":"IF(AM$2=\"\",0,IF(\"CAPEX,\"&AM$2&\",,\"&$B521&\",\"=VLOOKUP(\"CAPEX,\"&AM$2&\",,\"&$B521&\",\",data[],1),VLOOKUP(\"CAPEX,\"&AM$2&\",,\"&$B521&\",\",data[],7),AM$501))","v":144.49043833783671},null,null,null,null,null,null,null,null,null,null,null,null,null,null,{"$f":"IF(BB$2=\"\",0,IF(NOT(BB33),0,IF(\"CAPEX,\"&BB$2&\",,\"&$B521&\",\"=VLOOKUP(\"CAPEX,\"&BB$2&\",,\"&$B521&\",\",data[],1),VLOOKUP(\"CAPEX,\"&BB$2&\",,\"&$B521&\",\",data[],7),BB$501)))","v":318.14227153381154},null,null,{"$f":"IF(BE$2=\"\",0,IF(NOT(BE33),0,IF(\"CAPEX,\"&BE$2&\",,\"&$B521&\",\"=VLOOKUP(\"CAPEX,\"&BE$2&\",,\"&$B521&\",\",data[],1),VLOOKUP(\"CAPEX,\"&BE$2&\",,\"&$B521&\",\",data[],7),BE$501)))","v":0}]
[null,"ARG-RIO",null,null,null,null,null,null,null,null,{"$f":"IF(\"CAPEX,\"&$K34&\",,\"&$B522&\",\"=VLOOKUP(\"CAPEX,\"&$K34&\",,\"&$B522&\",\",data[],1),VLOOKUP(\"CAPEX,\"&$K34&\",,\"&$B522&\",\",data[],7),INDEX($E$501:$I$501,$J34))","v":1218.0417054231007},null,null,null,null,null,{"$f":"IF(\"CAPEX,\"&Q$2&\",,\"&$B522&\",\"=VLOOKUP(\"CAPEX,\"&Q$2&\",,\"&$B522&\",\",data[],1),VLOOKUP(\"CAPEX,\"&Q$2&\",,\"&$B522&\",\",data[],7),Q$501)","v":650.6426539852938},null,{"$f":"IF(\"CAPEX,\"&S$2&\",,\"&$B522&\",\"=VLOOKUP(\"CAPEX,\"&S$2&\",,\"&$B522&\",\",data[],1),VLOOKUP(\"CAPEX,\"&S$2&\",,\"&$B522&\",\",data[],7),S$501)","v":2.3667276243093918E-3},null,null,null,null,{"$f":"IF(X$2=\"\",0,IF(\"CAPEX,\"&X$2&\",,\"&$B522&\",\"=VLOOKUP(\"CAPEX,\"&X$2&\",,\"&$B522&\",\",data[],1),VLOOKUP(\"CAPEX,\"&X$2&\",,\"&$B522&\",\",data[],7),X$501))","v":0},null,{"$f":"IF(\"CAPEX,\"&Z$2&\",,\"&$B522&\",\"=VLOOKUP(\"CAPEX,\"&Z$2&\",,\"&$B522&\",\",data[],1),VLOOKUP(\"CAPEX,\"&Z$2&\",,\"&$B522&\",\",data[],7),Z$501)","v":2.3667276243093918E-3},null,null,null,{"$f":"IF(\"CAPEX,\"&AD$2&\",,\"&$B522&\",\"=VLOOKUP(\"CAPEX,\"&AD$2&\",,\"&$B522&\",\",data[],1),VLOOKUP(\"CAPEX,\"&AD$2&\",,\"&$B522&\",\",data[],7),AD$501)","v":1.0377410418368698},null,null,null,null,null,null,{"$f":"IF(AK$2=\"\",0,IF(\"CAPEX,\"&AK$2&\",,\"&$B522&\",\"=VLOOKUP(\"CAPEX,\"&AK$2&\",,\"&$B522&\",\",data[],1),VLOOKUP(\"CAPEX,\"&AK$2&\",,\"&$B522&\",\",data[],7),AK$501))","v":1457.3621055108172},null,{"$f":"IF(AM$2=\"\",0,IF(\"CAPEX,\"&AM$2&\",,\"&$B522&\",\"=VLOOKUP(\"CAPEX,\"&AM$2&\",,\"&$B522&\",\",data[],1),VLOOKUP(\"CAPEX,\"&AM$2&\",,\"&$B522&\",\",data[],7),AM$501))","v":144.49043833783671},null,null,null,null,null,null,null,null,null,null,null,null,null,null,{"$f":"IF(BB$2=\"\",0,IF(NOT(BB34),0,IF(\"CAPEX,\"&BB$2&\",,\"&$B522&\",\"=VLOOKUP(\"CAPEX,\"&BB$2&\",,\"&$B522&\",\",data[],1),VLOOKUP(\"CAPEX,\"&BB$2&\",,\"&$B522&\",\",data[],7),BB$501)))","v":318.14227153381154},null,null,{"$f":"IF(BE$2=\"\",0,IF(NOT(BE34),0,IF(\"CAPEX,\"&BE$2&\",,\"&$B522&\",\"=VLOOKUP(\"CAPEX,\"&BE$2&\",,\"&$B522&\",\",data[],1),VLOOKUP(\"CAPEX,\"&BE$2&\",,\"&$B522&\",\",data[],7),BE$501)))","v":0}]
[null,"ARG-SAF",null,null,null,null,null,null,null,null,{"$f":"IF(\"CAPEX,\"&$K35&\",,\"&$B523&\",\"=VLOOKUP(\"CAPEX,\"&$K35&\",,\"&$B523&\",\",data[],1),VLOOKUP(\"CAPEX,\"&$K35&\",,\"&$B523&\",\",data[],7),INDEX($E$501:$I$501,$J35))","v":1218.0417054231007},null,null,null,null,null,{"$f":"IF(\"CAPEX,\"&Q$2&\",,\"&$B523&\",\"=VLOOKUP(\"CAPEX,\"&Q$2&\",,\"&$B523&\",\",data[],1),VLOOKUP(\"CAPEX,\"&Q$2&\",,\"&$B523&\",\",data[],7),Q$501)","v":650.6426539852938},null,{"$f":"IF(\"CAPEX,\"&S$2&\",,\"&$B523&\",\"=VLOOKUP(\"CAPEX,\"&S$2&\",,\"&$B523&\",\",data[],1),VLOOKUP(\"CAPEX,\"&S$2&\",,\"&$B523&\",\",data[],7),S$501)","v":2.3667276243093918E-3},null,null,null,null,{"$f":"IF(X$2=\"\",0,IF(\"CAPEX,\"&X$2&\",,\"&$B523&\",\"=VLOOKUP(\"CAPEX,\"&X$2&\",,\"&$B523&\",\",data[],1),VLOOKUP(\"CAPEX,\"&X$2&\",,\"&$B523&\",\",data[],7),X$501))","v":0},null,{"$f":"IF(\"CAPEX,\"&Z$2&\",,\"&$B523&\",\"=VLOOKUP(\"CAPEX,\"&Z$2&\",,\"&$B523&\",\",data[],1),VLOOKUP(\"CAPEX,\"&Z$2&\",,\"&$B523&\",\",data[],7),Z$501)","v":2.3667276243093918E-3},null,null,null,{"$f":"IF(\"CAPEX,\"&AD$2&\",,\"&$B523&\",\"=VLOOKUP(\"CAPEX,\"&AD$2&\",,\"&$B523&\",\",data[],1),VLOOKUP(\"CAPEX,\"&AD$2&\",,\"&$B523&\",\",data[],7),AD$501)","v":1.0377410418368698},null,null,null,null,null,null,{"$f":"IF(AK$2=\"\",0,IF(\"CAPEX,\"&AK$2&\",,\"&$B523&\",\"=VLOOKUP(\"CAPEX,\"&AK$2&\",,\"&$B523&\",\",data[],1),VLOOKUP(\"CAPEX,\"&AK$2&\",,\"&$B523&\",\",data[],7),AK$501))","v":1457.3621055108172},null,{"$f":"IF(AM$2=\"\",0,IF(\"CAPEX,\"&AM$2&\",,\"&$B523&\",\"=VLOOKUP(\"CAPEX,\"&AM$2&\",,\"&$B523&\",\",data[],1),VLOOKUP(\"CAPEX,\"&AM$2&\",,\"&$B523&\",\",data[],7),AM$501))","v":144.49043833783671},null,null,null,null,null,null,null,null,null,null,null,null,null,null,{"$f":"IF(BB$2=\"\",0,IF(NOT(BB35),0,IF(\"CAPEX,\"&BB$2&\",,\"&$B523&\",\"=VLOOKUP(\"CAPEX,\"&BB$2&\",,\"&$B523&\",\",data[],1),VLOOKUP(\"CAPEX,\"&BB$2&\",,\"&$B523&\",\",data[],7),BB$501)))","v":318.14227153381154},null,null,{"$f":"IF(BE$2=\"\",0,IF(NOT(BE35),0,IF(\"CAPEX,\"&BE$2&\",,\"&$B523&\",\"=VLOOKUP(\"CAPEX,\"&BE$2&\",,\"&$B523&\",\",data[],1),VLOOKUP(\"CAPEX,\"&BE$2&\",,\"&$B523&\",\",data[],7),BE$501)))","v":0}]
[null,"ARG-SAJ",null,null,null,null,null,null,null,null,{"$f":"IF(\"CAPEX,\"&$K36&\",,\"&$B524&\",\"=VLOOKUP(\"CAPEX,\"&$K36&\",,\"&$B524&\",\",data[],1),VLOOKUP(\"CAPEX,\"&$K36&\",,\"&$B524&\",\",data[],7),INDEX($E$501:$I$501,$J36))","v":1218.0417054231007},null,null,null,null,null,{"$f":"IF(\"CAPEX,\"&Q$2&\",,\"&$B524&\",\"=VLOOKUP(\"CAPEX,\"&Q$2&\",,\"&$B524&\",\",data[],1),VLOOKUP(\"CAPEX,\"&Q$2&\",,\"&$B524&\",\",data[],7),Q$501)","v":650.6426539852938},null,{"$f":"IF(\"CAPEX,\"&S$2&\",,\"&$B524&\",\"=VLOOKUP(\"CAPEX,\"&S$2&\",,\"&$B524&\",\",data[],1),VLOOKUP(\"CAPEX,\"&S$2&\",,\"&$B524&\",\",data[],7),S$501)","v":2.3667276243093918E-3},null,null,null,null,{"$f":"IF(X$2=\"\",0,IF(\"CAPEX,\"&X$2&\",,\"&$B524&\",\"=VLOOKUP(\"CAPEX,\"&X$2&\",,\"&$B524&\",\",data[],1),VLOOKUP(\"CAPEX,\"&X$2&\",,\"&$B524&\",\",data[],7),X$501))","v":0},null,{"$f":"IF(\"CAPEX,\"&Z$2&\",,\"&$B524&\",\"=VLOOKUP(\"CAPEX,\"&Z$2&\",,\"&$B524&\",\",data[],1),VLOOKUP(\"CAPEX,\"&Z$2&\",,\"&$B524&\",\",data[],7),Z$501)","v":2.3667276243093918E-3},null,null,null,{"$f":"IF(\"CAPEX,\"&AD$2&\",,\"&$B524&\",\"=VLOOKUP(\"CAPEX,\"&AD$2&\",,\"&$B524&\",\",data[],1),VLOOKUP(\"CAPEX,\"&AD$2&\",,\"&$B524&\",\",data[],7),AD$501)","v":1.0377410418368698},null,null,null,null,null,null,{"$f":"IF(AK$2=\"\",0,IF(\"CAPEX,\"&AK$2&\",,\"&$B524&\",\"=VLOOKUP(\"CAPEX,\"&AK$2&\",,\"&$B524&\",\",data[],1),VLOOKUP(\"CAPEX,\"&AK$2&\",,\"&$B524&\",\",data[],7),AK$501))","v":1457.3621055108172},null,{"$f":"IF(AM$2=\"\",0,IF(\"CAPEX,\"&AM$2&\",,\"&$B524&\",\"=VLOOKUP(\"CAPEX,\"&AM$2&\",,\"&$B524&\",\",data[],1),VLOOKUP(\"CAPEX,\"&AM$2&\",,\"&$B524&\",\",data[],7),AM$501))","v":144.49043833783671},null,null,null,null,null,null,null,null,null,null,null,null,null,null,{"$f":"IF(BB$2=\"\",0,IF(NOT(BB36),0,IF(\"CAPEX,\"&BB$2&\",,\"&$B524&\",\"=VLOOKUP(\"CAPEX,\"&BB$2&\",,\"&$B524&\",\",data[],1),VLOOKUP(\"CAPEX,\"&BB$2&\",,\"&$B524&\",\",data[],7),BB$501)))","v":318.14227153381154},null,null,{"$f":"IF(BE$2=\"\",0,IF(NOT(BE36),0,IF(\"CAPEX,\"&BE$2&\",,\"&$B524&\",\"=VLOOKUP(\"CAPEX,\"&BE$2&\",,\"&$B524&\",\",data[],1),VLOOKUP(\"CAPEX,\"&BE$2&\",,\"&$B524&\",\",data[],7),BE$501)))","v":0}]
[null,"ARG-SAL",null,null,null,null,null,null,null,null,{"$f":"IF(\"CAPEX,\"&$K37&\",,\"&$B525&\",\"=VLOOKUP(\"CAPEX,\"&$K37&\",,\"&$B525&\",\",data[],1),VLOOKUP(\"CAPEX,\"&$K37&\",,\"&$B525&\",\",data[],7),INDEX($E$501:$I$501,$J37))","v":1218.0417054231007},null,null,null,null,null,{"$f":"IF(\"CAPEX,\"&Q$2&\",,\"&$B525&\",\"=VLOOKUP(\"CAPEX,\"&Q$2&\",,\"&$B525&\",\",data[],1),VLOOKUP(\"CAPEX,\"&Q$2&\",,\"&$B525&\",\",data[],7),Q$501)","v":650.6426539852938},null,{"$f":"IF(\"CAPEX,\"&S$2&\",,\"&$B525&\",\"=VLOOKUP(\"CAPEX,\"&S$2&\",,\"&$B525&\",\",data[],1),VLOOKUP(\"CAPEX,\"&S$2&\",,\"&$B525&\",\",data[],7),S$501)","v":2.3667276243093918E-3},null,null,null,null,{"$f":"IF(X$2=\"\",0,IF(\"CAPEX,\"&X$2&\",,\"&$B525&\",\"=VLOOKUP(\"CAPEX,\"&X$2&\",,\"&$B525&\",\",data[],1),VLOOKUP(\"CAPEX,\"&X$2&\",,\"&$B525&\",\",data[],7),X$501))","v":0},null,{"$f":"IF(\"CAPEX,\"&Z$2&\",,\"&$B525&\",\"=VLOOKUP(\"CAPEX,\"&Z$2&\",,\"&$B525&\",\",data[],1),VLOOKUP(\"CAPEX,\"&Z$2&\",,\"&$B525&\",\",data[],7),Z$501)","v":2.3667276243093918E-3},null,null,null,{"$f":"IF(\"CAPEX,\"&AD$2&\",,\"&$B525&\",\"=VLOOKUP(\"CAPEX,\"&AD$2&\",,\"&$B525&\",\",data[],1),VLOOKUP(\"CAPEX,\"&AD$2&\",,\"&$B525&\",\",data[],7),AD$501)","v":1.0377410418368698},null,null,null,null,null,null,{"$f":"IF(AK$2=\"\",0,IF(\"CAPEX,\"&AK$2&\",,\"&$B525&\",\"=VLOOKUP(\"CAPEX,\"&AK$2&\",,\"&$B525&\",\",data[],1),VLOOKUP(\"CAPEX,\"&AK$2&\",,\"&$B525&\",\",data[],7),AK$501))","v":1457.3621055108172},null,{"$f":"IF(AM$2=\"\",0,IF(\"CAPEX,\"&AM$2&\",,\"&$B525&\",\"=VLOOKUP(\"CAPEX,\"&AM$2&\",,\"&$B525&\",\",data[],1),VLOOKUP(\"CAPEX,\"&AM$2&\",,\"&$B525&\",\",data[],7),AM$501))","v":144.49043833783671},null,null,null,null,null,null,null,null,null,null,null,null,null,null,{"$f":"IF(BB$2=\"\",0,IF(NOT(BB37),0,IF(\"CAPEX,\"&BB$2&\",,\"&$B525&\",\"=VLOOKUP(\"CAPEX,\"&BB$2&\",,\"&$B525&\",\",data[],1),VLOOKUP(\"CAPEX,\"&BB$2&\",,\"&$B525&\",\",data[],7),BB$501)))","v":318.14227153381154},null,null,{"$f":"IF(BE$2=\"\",0,IF(NOT(BE37),0,IF(\"CAPEX,\"&BE$2&\",,\"&$B525&\",\"=VLOOKUP(\"CAPEX,\"&BE$2&\",,\"&$B525&\",\",data[],1),VLOOKUP(\"CAPEX,\"&BE$2&\",,\"&$B525&\",\",data[],7),BE$501)))","v":0}]
[null,"ARG-SAT",null,null,null,null,null,null,null,null,{"$f":"IF(\"CAPEX,\"&$K38&\",,\"&$B526&\",\"=VLOOKUP(\"CAPEX,\"&$K38&\",,\"&$B526&\",\",data[],1),VLOOKUP(\"CAPEX,\"&$K38&\",,\"&$B526&\",\",data[],7),INDEX($E$501:$I$501,$J38))","v":1218.0417054231007},null,null,null,null,null,{"$f":"IF(\"CAPEX,\"&Q$2&\",,\"&$B526&\",\"=VLOOKUP(\"CAPEX,\"&Q$2&\",,\"&$B526&\",\",data[],1),VLOOKUP(\"CAPEX,\"&Q$2&\",,\"&$B526&\",\",data[],7),Q$501)","v":650.6426539852938},null,{"$f":"IF(\"CAPEX,\"&S$2&\",,\"&$B526&\",\"=VLOOKUP(\"CAPEX,\"&S$2&\",,\"&$B526&\",\",data[],1),VLOOKUP(\"CAPEX,\"&S$2&\",,\"&$B526&\",\",data[],7),S$501)","v":2.3667276243093918E-3},null,null,null,null,{"$f":"IF(X$2=\"\",0,IF(\"CAPEX,\"&X$2&\",,\"&$B526&\",\"=VLOOKUP(\"CAPEX,\"&X$2&\",,\"&$B526&\",\",data[],1),VLOOKUP(\"CAPEX,\"&X$2&\",,\"&$B526&\",\",data[],7),X$501))","v":0},null,{"$f":"IF(\"CAPEX,\"&Z$2&\",,\"&$B526&\",\"=VLOOKUP(\"CAPEX,\"&Z$2&\",,\"&$B526&\",\",data[],1),VLOOKUP(\"CAPEX,\"&Z$2&\",,\"&$B526&\",\",data[],7),Z$501)","v":2.3667276243093918E-3},null,null,null,{"$f":"IF(\"CAPEX,\"&AD$2&\",,\"&$B526&\",\"=VLOOKUP(\"CAPEX,\"&AD$2&\",,\"&$B526&\",\",data[],1),VLOOKUP(\"CAPEX,\"&AD$2&\",,\"&$B526&\",\",data[],7),AD$501)","v":1.0377410418368698},null,null,null,null,null,null,{"$f":"IF(AK$2=\"\",0,IF(\"CAPEX,\"&AK$2&\",,\"&$B526&\",\"=VLOOKUP(\"CAPEX,\"&AK$2&\",,\"&$B526&\",\",data[],1),VLOOKUP(\"CAPEX,\"&AK$2&\",,\"&$B526&\",\",data[],7),AK$501))","v":1457.3621055108172},null,{"$f":"IF(AM$2=\"\",0,IF(\"CAPEX,\"&AM$2&\",,\"&$B526&\",\"=VLOOKUP(\"CAPEX,\"&AM$2&\",,\"&$B526&\",\",data[],1),VLOOKUP(\"CAPEX,\"&AM$2&\",,\"&$B526&\",\",data[],7),AM$501))","v":144.49043833783671},null,null,null,null,null,null,null,null,null,null,null,null,null,null,{"$f":"IF(BB$2=\"\",0,IF(NOT(BB38),0,IF(\"CAPEX,\"&BB$2&\",,\"&$B526&\",\"=VLOOKUP(\"CAPEX,\"&BB$2&\",,\"&$B526&\",\",data[],1),VLOOKUP(\"CAPEX,\"&BB$2&\",,\"&$B526&\",\",data[],7),BB$501)))","v":318.14227153381154},null,null,{"$f":"IF(BE$2=\"\",0,IF(NOT(BE38),0,IF(\"CAPEX,\"&BE$2&\",,\"&$B526&\",\"=VLOOKUP(\"CAPEX,\"&BE$2&\",,\"&$B526&\",\",data[],1),VLOOKUP(\"CAPEX,\"&BE$2&\",,\"&$B526&\",\",data[],7),BE$501)))","v":0}]
[null,"ARG-TUC",null,null,null,null,null,null,null,null,{"$f":"IF(\"CAPEX,\"&$K39&\",,\"&$B527&\",\"=VLOOKUP(\"CAPEX,\"&$K39&\",,\"&$B527&\",\",data[],1),VLOOKUP(\"CAPEX,\"&$K39&\",,\"&$B527&\",\",data[],7),INDEX($E$501:$I$501,$J39))","v":1218.0417054231007},null,null,null,null,null,{"$f":"IF(\"CAPEX,\"&Q$2&\",,\"&$B527&\",\"=VLOOKUP(\"CAPEX,\"&Q$2&\",,\"&$B527&\",\",data[],1),VLOOKUP(\"CAPEX,\"&Q$2&\",,\"&$B527&\",\",data[],7),Q$501)","v":650.6426539852938},null,{"$f":"IF(\"CAPEX,\"&S$2&\",,\"&$B527&\",\"=VLOOKUP(\"CAPEX,\"&S$2&\",,\"&$B527&\",\",data[],1),VLOOKUP(\"CAPEX,\"&S$2&\",,\"&$B527&\",\",data[],7),S$501)","v":2.3667276243093918E-3},null,null,null,null,{"$f":"IF(X$2=\"\",0,IF(\"CAPEX,\"&X$2&\",,\"&$B527&\",\"=VLOOKUP(\"CAPEX,\"&X$2&\",,\"&$B527&\",\",data[],1),VLOOKUP(\"CAPEX,\"&X$2&\",,\"&$B527&\",\",data[],7),X$501))","v":0},null,{"$f":"IF(\"CAPEX,\"&Z$2&\",,\"&$B527&\",\"=VLOOKUP(\"CAPEX,\"&Z$2&\",,\"&$B527&\",\",data[],1),VLOOKUP(\"CAPEX,\"&Z$2&\",,\"&$B527&\",\",data[],7),Z$501)","v":2.3667276243093918E-3},null,null,null,{"$f":"IF(\"CAPEX,\"&AD$2&\",,\"&$B527&\",\"=VLOOKUP(\"CAPEX,\"&AD$2&\",,\"&$B527&\",\",data[],1),VLOOKUP(\"CAPEX,\"&AD$2&\",,\"&$B527&\",\",data[],7),AD$501)","v":1.0377410418368698},null,null,null,null,null,null,{"$f":"IF(AK$2=\"\",0,IF(\"CAPEX,\"&AK$2&\",,\"&$B527&\",\"=VLOOKUP(\"CAPEX,\"&AK$2&\",,\"&$B527&\",\",data[],1),VLOOKUP(\"CAPEX,\"&AK$2&\",,\"&$B527&\",\",data[],7),AK$501))","v":1457.3621055108172},null,{"$f":"IF(AM$2=\"\",0,IF(\"CAPEX,\"&AM$2&\",,\"&$B527&\",\"=VLOOKUP(\"CAPEX,\"&AM$2&\",,\"&$B527&\",\",data[],1),VLOOKUP(\"CAPEX,\"&AM$2&\",,\"&$B527&\",\",data[],7),AM$501))","v":144.49043833783671},null,null,null,null,null,null,null,null,null,null,null,null,null,null,{"$f":"IF(BB$2=\"\",0,IF(NOT(BB39),0,IF(\"CAPEX,\"&BB$2&\",,\"&$B527&\",\"=VLOOKUP(\"CAPEX,\"&BB$2&\",,\"&$B527&\",\",data[],1),VLOOKUP(\"CAPEX,\"&BB$2&\",,\"&$B527&\",\",data[],7),BB$501)))","v":318.14227153381154},null,null,{"$f":"IF(BE$2=\"\",0,IF(NOT(BE39),0,IF(\"CAPEX,\"&BE$2&\",,\"&$B527&\",\"=VLOOKUP(\"CAPEX,\"&BE$2&\",,\"&$B527&\",\",data[],1),VLOOKUP(\"CAPEX,\"&BE$2&\",,\"&$B527&\",\",data[],7),BE$501)))","v":0}]
[null,"AUS",null,null,null,null,null,null,null,null,{"$f":"IF(\"CAPEX,\"&$K40&\",,\"&$B528&\",\"=VLOOKUP(\"CAPEX,\"&$K40&\",,\"&$B528&\",\",data[],1),VLOOKUP(\"CAPEX,\"&$K40&\",,\"&$B528&\",\",data[],7),INDEX($E$501:$I$501,$J40))","v":1265.1661751074873},null,null,null,null,null,{"$f":"IF(\"CAPEX,\"&Q$2&\",,\"&$B528&\",\"=VLOOKUP(\"CAPEX,\"&Q$2&\",,\"&$B528&\",\",data[],1),VLOOKUP(\"CAPEX,\"&Q$2&\",,\"&$B528&\",\",data[],7),Q$501)","v":650.6426539852938},null,{"$f":"IF(\"CAPEX,\"&S$2&\",,\"&$B528&\",\"=VLOOKUP(\"CAPEX,\"&S$2&\",,\"&$B528&\",\",data[],1),VLOOKUP(\"CAPEX,\"&S$2&\",,\"&$B528&\",\",data[],7),S$501)","v":2.3667276243093918E-3},null,null,null,null,{"$f":"IF(X$2=\"\",0,IF(\"CAPEX,\"&X$2&\",,\"&$B528&\",\"=VLOOKUP(\"CAPEX,\"&X$2&\",,\"&$B528&\",\",data[],1),VLOOKUP(\"CAPEX,\"&X$2&\",,\"&$B528&\",\",data[],7),X$501))","v":0},null,{"$f":"IF(\"CAPEX,\"&Z$2&\",,\"&$B528&\",\"=VLOOKUP(\"CAPEX,\"&Z$2&\",,\"&$B528&\",\",data[],1),VLOOKUP(\"CAPEX,\"&Z$2&\",,\"&$B528&\",\",data[],7),Z$501)","v":2.3667276243093918E-3},null,null,null,{"$f":"IF(\"CAPEX,\"&AD$2&\",,\"&$B528&\",\"=VLOOKUP(\"CAPEX,\"&AD$2&\",,\"&$B528&\",\",data[],1),VLOOKUP(\"CAPEX,\"&AD$2&\",,\"&$B528&\",\",data[],7),AD$501)","v":1.0377410418368698},null,null,null,null,null,null,{"$f":"IF(AK$2=\"\",0,IF(\"CAPEX,\"&AK$2&\",,\"&$B528&\",\"=VLOOKUP(\"CAPEX,\"&AK$2&\",,\"&$B528&\",\",data[],1),VLOOKUP(\"CAPEX,\"&AK$2&\",,\"&$B528&\",\",data[],7),AK$501))","v":1457.3621055108172},null,{"$f":"IF(AM$2=\"\",0,IF(\"CAPEX,\"&AM$2&\",,\"&$B528&\",\"=VLOOKUP(\"CAPEX,\"&AM$2&\",,\"&$B528&\",\",data[],1),VLOOKUP(\"CAPEX,\"&AM$2&\",,\"&$B528&\",\",data[],7),AM$501))","v":144.49043833783671},null,null,null,null,null,null,null,null,null,null,null,null,null,null,{"$f":"IF(BB$2=\"\",0,IF(NOT(BB40),0,IF(\"CAPEX,\"&BB$2&\",,\"&$B528&\",\"=VLOOKUP(\"CAPEX,\"&BB$2&\",,\"&$B528&\",\",data[],1),VLOOKUP(\"CAPEX,\"&BB$2&\",,\"&$B528&\",\",data[],7),BB$501)))","v":318.14227153381154},null,null,{"$f":"IF(BE$2=\"\",0,IF(NOT(BE40),0,IF(\"CAPEX,\"&BE$2&\",,\"&$B528&\",\"=VLOOKUP(\"CAPEX,\"&BE$2&\",,\"&$B528&\",\",data[],1),VLOOKUP(\"CAPEX,\"&BE$2&\",,\"&$B528&\",\",data[],7),BE$501)))","v":0}]
[null,"BRA",null,null,null,null,null,null,null,null,{"$f":"IF(\"CAPEX,\"&$K41&\",,\"&$B529&\",\"=VLOOKUP(\"CAPEX,\"&$K41&\",,\"&$B529&\",\",data[],1),VLOOKUP(\"CAPEX,\"&$K41&\",,\"&$B529&\",\",data[],7),INDEX($E$501:$I$501,$J41))","v":917.26528572403788},null,null,null,null,null,{"$f":"IF(\"CAPEX,\"&Q$2&\",,\"&$B529&\",\"=VLOOKUP(\"CAPEX,\"&Q$2&\",,\"&$B529&\",\",data[],1),VLOOKUP(\"CAPEX,\"&Q$2&\",,\"&$B529&\",\",data[],7),Q$501)","v":650.6426539852938},null,{"$f":"IF(\"CAPEX,\"&S$2&\",,\"&$B529&\",\"=VLOOKUP(\"CAPEX,\"&S$2&\",,\"&$B529&\",\",data[],1),VLOOKUP(\"CAPEX,\"&S$2&\",,\"&$B529&\",\",data[],7),S$501)","v":2.3667276243093918E-3},null,null,null,null,{"$f":"IF(X$2=\"\",0,IF(\"CAPEX,\"&X$2&\",,\"&$B529&\",\"=VLOOKUP(\"CAPEX,\"&X$2&\",,\"&$B529&\",\",data[],1),VLOOKUP(\"CAPEX,\"&X$2&\",,\"&$B529&\",\",data[],7),X$501))","v":0},null,{"$f":"IF(\"CAPEX,\"&Z$2&\",,\"&$B529&\",\"=VLOOKUP(\"CAPEX,\"&Z$2&\",,\"&$B529&\",\",data[],1),VLOOKUP(\"CAPEX,\"&Z$2&\",,\"&$B529&\",\",data[],7),Z$501)","v":2.3667276243093918E-3},null,null,null,{"$f":"IF(\"CAPEX,\"&AD$2&\",,\"&$B529&\",\"=VLOOKUP(\"CAPEX,\"&AD$2&\",,\"&$B529&\",\",data[],1),VLOOKUP(\"CAPEX,\"&AD$2&\",,\"&$B529&\",\",data[],7),AD$501)","v":1.0377410418368698},null,null,null,null,null,null,{"$f":"IF(AK$2=\"\",0,IF(\"CAPEX,\"&AK$2&\",,\"&$B529&\",\"=VLOOKUP(\"CAPEX,\"&AK$2&\",,\"&$B529&\",\",data[],1),VLOOKUP(\"CAPEX,\"&AK$2&\",,\"&$B529&\",\",data[],7),AK$501))","v":1457.3621055108172},null,{"$f":"IF(AM$2=\"\",0,IF(\"CAPEX,\"&AM$2&\",,\"&$B529&\",\"=VLOOKUP(\"CAPEX,\"&AM$2&\",,\"&$B529&\",\",data[],1),VLOOKUP(\"CAPEX,\"&AM$2&\",,\"&$B529&\",\",data[],7),AM$501))","v":144.49043833783671},null,null,null,null,null,null,null,null,null,null,null,null,null,null,{"$f":"IF(BB$2=\"\",0,IF(NOT(BB41),0,IF(\"CAPEX,\"&BB$2&\",,\"&$B529&\",\"=VLOOKUP(\"CAPEX,\"&BB$2&\",,\"&$B529&\",\",data[],1),VLOOKUP(\"CAPEX,\"&BB$2&\",,\"&$B529&\",\",data[],7),BB$501)))","v":318.14227153381154},null,null,{"$f":"IF(BE$2=\"\",0,IF(NOT(BE41),0,IF(\"CAPEX,\"&BE$2&\",,\"&$B529&\",\"=VLOOKUP(\"CAPEX,\"&BE$2&\",,\"&$B529&\",\",data[],1),VLOOKUP(\"CAPEX,\"&BE$2&\",,\"&$B529&\",\",data[],7),BE$501)))","v":0}]
[null,"CHL",null,null,null,null,null,null,null,null,{"$f":"IF(\"CAPEX,\"&$K42&\",,\"&$B530&\",\"=VLOOKUP(\"CAPEX,\"&$K42&\",,\"&$B530&\",\",data[],1),VLOOKUP(\"CAPEX,\"&$K42&\",,\"&$B530&\",\",data[],7),INDEX($E$501:$I$501,$J42))","v":1259.124576430002},null,null,null,null,null,{"$f":"IF(\"CAPEX,\"&Q$2&\",,\"&$B530&\",\"=VLOOKUP(\"CAPEX,\"&Q$2&\",,\"&$B530&\",\",data[],1),VLOOKUP(\"CAPEX,\"&Q$2&\",,\"&$B530&\",\",data[],7),Q$501)","v":650.6426539852938},null,{"$f":"IF(\"CAPEX,\"&S$2&\",,\"&$B530&\",\"=VLOOKUP(\"CAPEX,\"&S$2&\",,\"&$B530&\",\",data[],1),VLOOKUP(\"CAPEX,\"&S$2&\",,\"&$B530&\",\",data[],7),S$501)","v":2.3667276243093918E-3},null,null,null,null,{"$f":"IF(X$2=\"\",0,IF(\"CAPEX,\"&X$2&\",,\"&$B530&\",\"=VLOOKUP(\"CAPEX,\"&X$2&\",,\"&$B530&\",\",data[],1),VLOOKUP(\"CAPEX,\"&X$2&\",,\"&$B530&\",\",data[],7),X$501))","v":0},null,{"$f":"IF(\"CAPEX,\"&Z$2&\",,\"&$B530&\",\"=VLOOKUP(\"CAPEX,\"&Z$2&\",,\"&$B530&\",\",data[],1),VLOOKUP(\"CAPEX,\"&Z$2&\",,\"&$B530&\",\",data[],7),Z$501)","v":2.3667276243093918E-3},null,null,null,{"$f":"IF(\"CAPEX,\"&AD$2&\",,\"&$B530&\",\"=VLOOKUP(\"CAPEX,\"&AD$2&\",,\"&$B530&\",\",data[],1),VLOOKUP(\"CAPEX,\"&AD$2&\",,\"&$B530&\",\",data[],7),AD$501)","v":1.0377410418368698},null,null,null,null,null,null,{"$f":"IF(AK$2=\"\",0,IF(\"CAPEX,\"&AK$2&\",,\"&$B530&\",\"=VLOOKUP(\"CAPEX,\"&AK$2&\",,\"&$B530&\",\",data[],1),VLOOKUP(\"CAPEX,\"&AK$2&\",,\"&$B530&\",\",data[],7),AK$501))","v":1457.3621055108172},null,{"$f":"IF(AM$2=\"\",0,IF(\"CAPEX,\"&AM$2&\",,\"&$B530&\",\"=VLOOKUP(\"CAPEX,\"&AM$2&\",,\"&$B530&\",\",data[],1),VLOOKUP(\"CAPEX,\"&AM$2&\",,\"&$B530&\",\",data[],7),AM$501))","v":144.49043833783671},null,null,null,null,null,null,null,null,null,null,null,null,null,null,{"$f":"IF(BB$2=\"\",0,IF(NOT(BB42),0,IF(\"CAPEX,\"&BB$2&\",,\"&$B530&\",\"=VLOOKUP(\"CAPEX,\"&BB$2&\",,\"&$B530&\",\",data[],1),VLOOKUP(\"CAPEX,\"&BB$2&\",,\"&$B530&\",\",data[],7),BB$501)))","v":318.14227153381154},null,null,{"$f":"IF(BE$2=\"\",0,IF(NOT(BE42),0,IF(\"CAPEX,\"&BE$2&\",,\"&$B530&\",\"=VLOOKUP(\"CAPEX,\"&BE$2&\",,\"&$B530&\",\",data[],1),VLOOKUP(\"CAPEX,\"&BE$2&\",,\"&$B530&\",\",data[],7),BE$501)))","v":0}]
[null,"CHN",null,null,null,null,null,null,null,null,{"$f":"IF(\"CAPEX,\"&$K43&\",,\"&$B531&\",\"=VLOOKUP(\"CAPEX,\"&$K43&\",,\"&$B531&\",\",data[],1),VLOOKUP(\"CAPEX,\"&$K43&\",,\"&$B531&\",\",data[],7),INDEX($E$501:$I$501,$J43))","v":800.45761033238978},null,null,null,null,null,{"$f":"IF(\"CAPEX,\"&Q$2&\",,\"&$B531&\",\"=VLOOKUP(\"CAPEX,\"&Q$2&\",,\"&$B531&\",\",data[],1),VLOOKUP(\"CAPEX,\"&Q$2&\",,\"&$B531&\",\",data[],7),Q$501)","v":650.6426539852938},null,{"$f":"IF(\"CAPEX,\"&S$2&\",,\"&$B531&\",\"=VLOOKUP(\"CAPEX,\"&S$2&\",,\"&$B531&\",\",data[],1),VLOOKUP(\"CAPEX,\"&S$2&\",,\"&$B531&\",\",data[],7),S$501)","v":2.3667276243093918E-3},null,null,null,null,{"$f":"IF(X$2=\"\",0,IF(\"CAPEX,\"&X$2&\",,\"&$B531&\",\"=VLOOKUP(\"CAPEX,\"&X$2&\",,\"&$B531&\",\",data[],1),VLOOKUP(\"CAPEX,\"&X$2&\",,\"&$B531&\",\",data[],7),X$501))","v":0},null,{"$f":"IF(\"CAPEX,\"&Z$2&\",,\"&$B531&\",\"=VLOOKUP(\"CAPEX,\"&Z$2&\",,\"&$B531&\",\",data[],1),VLOOKUP(\"CAPEX,\"&Z$2&\",,\"&$B531&\",\",data[],7),Z$501)","v":2.3667276243093918E-3},null,null,null,{"$f":"IF(\"CAPEX,\"&AD$2&\",,\"&$B531&\",\"=VLOOKUP(\"CAPEX,\"&AD$2&\",,\"&$B531&\",\",data[],1),VLOOKUP(\"CAPEX,\"&AD$2&\",,\"&$B531&\",\",data[],7),AD$501)","v":1.0377410418368698},null,null,null,null,null,null,{"$f":"IF(AK$2=\"\",0,IF(\"CAPEX,\"&AK$2&\",,\"&$B531&\",\"=VLOOKUP(\"CAPEX,\"&AK$2&\",,\"&$B531&\",\",data[],1),VLOOKUP(\"CAPEX,\"&AK$2&\",,\"&$B531&\",\",data[],7),AK$501))","v":1457.3621055108172},null,{"$f":"IF(AM$2=\"\",0,IF(\"CAPEX,\"&AM$2&\",,\"&$B531&\",\"=VLOOKUP(\"CAPEX,\"&AM$2&\",,\"&$B531&\",\",data[],1),VLOOKUP(\"CAPEX,\"&AM$2&\",,\"&$B531&\",\",data[],7),AM$501))","v":144.49043833783671},null,null,null,null,null,null,null,null,null,null,null,null,null,null,{"$f":"IF(BB$2=\"\",0,IF(NOT(BB43),0,IF(\"CAPEX,\"&BB$2&\",,\"&$B531&\",\"=VLOOKUP(\"CAPEX,\"&BB$2&\",,\"&$B531&\",\",data[],1),VLOOKUP(\"CAPEX,\"&BB$2&\",,\"&$B531&\",\",data[],7),BB$501)))","v":318.14227153381154},null,null,{"$f":"IF(BE$2=\"\",0,IF(NOT(BE43),0,IF(\"CAPEX,\"&BE$2&\",,\"&$B531&\",\"=VLOOKUP(\"CAPEX,\"&BE$2&\",,\"&$B531&\",\",data[],1),VLOOKUP(\"CAPEX,\"&BE$2&\",,\"&$B531&\",\",data[],7),BE$501)))","v":0}]
[null,"COL",null,null,null,null,null,null,null,null,{"$f":"IF(\"CAPEX,\"&$K44&\",,\"&$B532&\",\"=VLOOKUP(\"CAPEX,\"&$K44&\",,\"&$B532&\",\",data[],1),VLOOKUP(\"CAPEX,\"&$K44&\",,\"&$B532&\",\",data[],7),INDEX($E$501:$I$501,$J44))","v":1186.6608534802729},null,null,null,null,null,{"$f":"IF(\"CAPEX,\"&Q$2&\",,\"&$B532&\",\"=VLOOKUP(\"CAPEX,\"&Q$2&\",,\"&$B532&\",\",data[],1),VLOOKUP(\"CAPEX,\"&Q$2&\",,\"&$B532&\",\",data[],7),Q$501)","v":650.6426539852938},null,{"$f":"IF(\"CAPEX,\"&S$2&\",,\"&$B532&\",\"=VLOOKUP(\"CAPEX,\"&S$2&\",,\"&$B532&\",\",data[],1),VLOOKUP(\"CAPEX,\"&S$2&\",,\"&$B532&\",\",data[],7),S$501)","v":2.3667276243093918E-3},null,null,null,null,{"$f":"IF(X$2=\"\",0,IF(\"CAPEX,\"&X$2&\",,\"&$B532&\",\"=VLOOKUP(\"CAPEX,\"&X$2&\",,\"&$B532&\",\",data[],1),VLOOKUP(\"CAPEX,\"&X$2&\",,\"&$B532&\",\",data[],7),X$501))","v":0},null,{"$f":"IF(\"CAPEX,\"&Z$2&\",,\"&$B532&\",\"=VLOOKUP(\"CAPEX,\"&Z$2&\",,\"&$B532&\",\",data[],1),VLOOKUP(\"CAPEX,\"&Z$2&\",,\"&$B532&\",\",data[],7),Z$501)","v":2.3667276243093918E-3},null,null,null,{"$f":"IF(\"CAPEX,\"&AD$2&\",,\"&$B532&\",\"=VLOOKUP(\"CAPEX,\"&AD$2&\",,\"&$B532&\",\",data[],1),VLOOKUP(\"CAPEX,\"&AD$2&\",,\"&$B532&\",\",data[],7),AD$501)","v":1.0377410418368698},null,null,null,null,null,null,{"$f":"IF(AK$2=\"\",0,IF(\"CAPEX,\"&AK$2&\",,\"&$B532&\",\"=VLOOKUP(\"CAPEX,\"&AK$2&\",,\"&$B532&\",\",data[],1),VLOOKUP(\"CAPEX,\"&AK$2&\",,\"&$B532&\",\",data[],7),AK$501))","v":1457.3621055108172},null,{"$f":"IF(AM$2=\"\",0,IF(\"CAPEX,\"&AM$2&\",,\"&$B532&\",\"=VLOOKUP(\"CAPEX,\"&AM$2&\",,\"&$B532&\",\",data[],1),VLOOKUP(\"CAPEX,\"&AM$2&\",,\"&$B532&\",\",data[],7),AM$501))","v":144.49043833783671},null,null,null,null,null,null,null,null,null,null,null,null,null,null,{"$f":"IF(BB$2=\"\",0,IF(NOT(BB44),0,IF(\"CAPEX,\"&BB$2&\",,\"&$B532&\",\"=VLOOKUP(\"CAPEX,\"&BB$2&\",,\"&$B532&\",\",data[],1),VLOOKUP(\"CAPEX,\"&BB$2&\",,\"&$B532&\",\",data[],7),BB$501)))","v":318.14227153381154},null,null,{"$f":"IF(BE$2=\"\",0,IF(NOT(BE44),0,IF(\"CAPEX,\"&BE$2&\",,\"&$B532&\",\"=VLOOKUP(\"CAPEX,\"&BE$2&\",,\"&$B532&\",\",data[],1),VLOOKUP(\"CAPEX,\"&BE$2&\",,\"&$B532&\",\",data[],7),BE$501)))","v":0}]
[null,"CRI",null,null,null,null,null,null,null,null,{"$f":"IF(\"CAPEX,\"&$K45&\",,\"&$B533&\",\"=VLOOKUP(\"CAPEX,\"&$K45&\",,\"&$B533&\",\",data[],1),VLOOKUP(\"CAPEX,\"&$K45&\",,\"&$B533&\",\",data[],7),INDEX($E$501:$I$501,$J45))","v":1147.6006982752831},null,null,null,null,null,{"$f":"IF(\"CAPEX,\"&Q$2&\",,\"&$B533&\",\"=VLOOKUP(\"CAPEX,\"&Q$2&\",,\"&$B533&\",\",data[],1),VLOOKUP(\"CAPEX,\"&Q$2&\",,\"&$B533&\",\",data[],7),Q$501)","v":650.6426539852938},null,{"$f":"IF(\"CAPEX,\"&S$2&\",,\"&$B533&\",\"=VLOOKUP(\"CAPEX,\"&S$2&\",,\"&$B533&\",\",data[],1),VLOOKUP(\"CAPEX,\"&S$2&\",,\"&$B533&\",\",data[],7),S$501)","v":2.3667276243093918E-3},null,null,null,null,{"$f":"IF(X$2=\"\",0,IF(\"CAPEX,\"&X$2&\",,\"&$B533&\",\"=VLOOKUP(\"CAPEX,\"&X$2&\",,\"&$B533&\",\",data[],1),VLOOKUP(\"CAPEX,\"&X$2&\",,\"&$B533&\",\",data[],7),X$501))","v":0},null,{"$f":"IF(\"CAPEX,\"&Z$2&\",,\"&$B533&\",\"=VLOOKUP(\"CAPEX,\"&Z$2&\",,\"&$B533&\",\",data[],1),VLOOKUP(\"CAPEX,\"&Z$2&\",,\"&$B533&\",\",data[],7),Z$501)","v":2.3667276243093918E-3},null,null,null,{"$f":"IF(\"CAPEX,\"&AD$2&\",,\"&$B533&\",\"=VLOOKUP(\"CAPEX,\"&AD$2&\",,\"&$B533&\",\",data[],1),VLOOKUP(\"CAPEX,\"&AD$2&\",,\"&$B533&\",\",data[],7),AD$501)","v":1.0377410418368698},null,null,null,null,null,null,{"$f":"IF(AK$2=\"\",0,IF(\"CAPEX,\"&AK$2&\",,\"&$B533&\",\"=VLOOKUP(\"CAPEX,\"&AK$2&\",,\"&$B533&\",\",data[],1),VLOOKUP(\"CAPEX,\"&AK$2&\",,\"&$B533&\",\",data[],7),AK$501))","v":1457.3621055108172},null,{"$f":"IF(AM$2=\"\",0,IF(\"CAPEX,\"&AM$2&\",,\"&$B533&\",\"=VLOOKUP(\"CAPEX,\"&AM$2&\",,\"&$B533&\",\",data[],1),VLOOKUP(\"CAPEX,\"&AM$2&\",,\"&$B533&\",\",data[],7),AM$501))","v":144.49043833783671},null,null,null,null,null,null,null,null,null,null,null,null,null,null,{"$f":"IF(BB$2=\"\",0,IF(NOT(BB45),0,IF(\"CAPEX,\"&BB$2&\",,\"&$B533&\",\"=VLOOKUP(\"CAPEX,\"&BB$2&\",,\"&$B533&\",\",data[],1),VLOOKUP(\"CAPEX,\"&BB$2&\",,\"&$B533&\",\",data[],7),BB$501)))","v":318.14227153381154},null,null,{"$f":"IF(BE$2=\"\",0,IF(NOT(BE45),0,IF(\"CAPEX,\"&BE$2&\",,\"&$B533&\",\"=VLOOKUP(\"CAPEX,\"&BE$2&\",,\"&$B533&\",\",data[],1),VLOOKUP(\"CAPEX,\"&BE$2&\",,\"&$B533&\",\",data[],7),BE$501)))","v":0}]
[null,"DNK",null,null,null,null,null,null,null,null,{"$f":"IF(\"CAPEX,\"&$K46&\",,\"&$B534&\",\"=VLOOKUP(\"CAPEX,\"&$K46&\",,\"&$B534&\",\",data[],1),VLOOKUP(\"CAPEX,\"&$K46&\",,\"&$B534&\",\",data[],7),INDEX($E$501:$I$501,$J46))","v":1117.3708673132146},null,null,null,null,null,{"$f":"IF(\"CAPEX,\"&Q$2&\",,\"&$B534&\",\"=VLOOKUP(\"CAPEX,\"&Q$2&\",,\"&$B534&\",\",data[],1),VLOOKUP(\"CAPEX,\"&Q$2&\",,\"&$B534&\",\",data[],7),Q$501)","v":650.6426539852938},null,{"$f":"IF(\"CAPEX,\"&S$2&\",,\"&$B534&\",\"=VLOOKUP(\"CAPEX,\"&S$2&\",,\"&$B534&\",\",data[],1),VLOOKUP(\"CAPEX,\"&S$2&\",,\"&$B534&\",\",data[],7),S$501)","v":2.3667276243093918E-3},null,null,null,null,{"$f":"IF(X$2=\"\",0,IF(\"CAPEX,\"&X$2&\",,\"&$B534&\",\"=VLOOKUP(\"CAPEX,\"&X$2&\",,\"&$B534&\",\",data[],1),VLOOKUP(\"CAPEX,\"&X$2&\",,\"&$B534&\",\",data[],7),X$501))","v":0},null,{"$f":"IF(\"CAPEX,\"&Z$2&\",,\"&$B534&\",\"=VLOOKUP(\"CAPEX,\"&Z$2&\",,\"&$B534&\",\",data[],1),VLOOKUP(\"CAPEX,\"&Z$2&\",,\"&$B534&\",\",data[],7),Z$501)","v":2.3667276243093918E-3},null,null,null,{"$f":"IF(\"CAPEX,\"&AD$2&\",,\"&$B534&\",\"=VLOOKUP(\"CAPEX,\"&AD$2&\",,\"&$B534&\",\",data[],1),VLOOKUP(\"CAPEX,\"&AD$2&\",,\"&$B534&\",\",data[],7),AD$501)","v":1.0377410418368698},null,null,null,null,null,null,{"$f":"IF(AK$2=\"\",0,IF(\"CAPEX,\"&AK$2&\",,\"&$B534&\",\"=VLOOKUP(\"CAPEX,\"&AK$2&\",,\"&$B534&\",\",data[],1),VLOOKUP(\"CAPEX,\"&AK$2&\",,\"&$B534&\",\",data[],7),AK$501))","v":1457.3621055108172},null,{"$f":"IF(AM$2=\"\",0,IF(\"CAPEX,\"&AM$2&\",,\"&$B534&\",\"=VLOOKUP(\"CAPEX,\"&AM$2&\",,\"&$B534&\",\",data[],1),VLOOKUP(\"CAPEX,\"&AM$2&\",,\"&$B534&\",\",data[],7),AM$501))","v":144.49043833783671},null,null,null,null,null,null,null,null,null,null,null,null,null,null,{"$f":"IF(BB$2=\"\",0,IF(NOT(BB46),0,IF(\"CAPEX,\"&BB$2&\",,\"&$B534&\",\"=VLOOKUP(\"CAPEX,\"&BB$2&\",,\"&$B534&\",\",data[],1),VLOOKUP(\"CAPEX,\"&BB$2&\",,\"&$B534&\",\",data[],7),BB$501)))","v":0},null,null,{"$f":"IF(BE$2=\"\",0,IF(NOT(BE46),0,IF(\"CAPEX,\"&BE$2&\",,\"&$B534&\",\"=VLOOKUP(\"CAPEX,\"&BE$2&\",,\"&$B534&\",\",data[],1),VLOOKUP(\"CAPEX,\"&BE$2&\",,\"&$B534&\",\",data[],7),BE$501)))","v":0}]
[null,"DZA",null,null,null,null,null,null,null,null,{"$f":"IF(\"CAPEX,\"&$K47&\",,\"&$B535&\",\"=VLOOKUP(\"CAPEX,\"&$K47&\",,\"&$B535&\",\",data[],1),VLOOKUP(\"CAPEX,\"&$K47&\",,\"&$B535&\",\",data[],7),INDEX($E$501:$I$501,$J47))","v":1298.5753742333741},null,null,null,null,null,{"$f":"IF(\"CAPEX,\"&Q$2&\",,\"&$B535&\",\"=VLOOKUP(\"CAPEX,\"&Q$2&\",,\"&$B535&\",\",data[],1),VLOOKUP(\"CAPEX,\"&Q$2&\",,\"&$B535&\",\",data[],7),Q$501)","v":650.6426539852938},null,{"$f":"IF(\"CAPEX,\"&S$2&\",,\"&$B535&\",\"=VLOOKUP(\"CAPEX,\"&S$2&\",,\"&$B535&\",\",data[],1),VLOOKUP(\"CAPEX,\"&S$2&\",,\"&$B535&\",\",data[],7),S$501)","v":2.3667276243093918E-3},null,null,null,null,{"$f":"IF(X$2=\"\",0,IF(\"CAPEX,\"&X$2&\",,\"&$B535&\",\"=VLOOKUP(\"CAPEX,\"&X$2&\",,\"&$B535&\",\",data[],1),VLOOKUP(\"CAPEX,\"&X$2&\",,\"&$B535&\",\",data[],7),X$501))","v":0},null,{"$f":"IF(\"CAPEX,\"&Z$2&\",,\"&$B535&\",\"=VLOOKUP(\"CAPEX,\"&Z$2&\",,\"&$B535&\",\",data[],1),VLOOKUP(\"CAPEX,\"&Z$2&\",,\"&$B535&\",\",data[],7),Z$501)","v":2.3667276243093918E-3},null,null,null,{"$f":"IF(\"CAPEX,\"&AD$2&\",,\"&$B535&\",\"=VLOOKUP(\"CAPEX,\"&AD$2&\",,\"&$B535&\",\",data[],1),VLOOKUP(\"CAPEX,\"&AD$2&\",,\"&$B535&\",\",data[],7),AD$501)","v":1.0377410418368698},null,null,null,null,null,null,{"$f":"IF(AK$2=\"\",0,IF(\"CAPEX,\"&AK$2&\",,\"&$B535&\",\"=VLOOKUP(\"CAPEX,\"&AK$2&\",,\"&$B535&\",\",data[],1),VLOOKUP(\"CAPEX,\"&AK$2&\",,\"&$B535&\",\",data[],7),AK$501))","v":1457.3621055108172},null,{"$f":"IF(AM$2=\"\",0,IF(\"CAPEX,\"&AM$2&\",,\"&$B535&\",\"=VLOOKUP(\"CAPEX,\"&AM$2&\",,\"&$B535&\",\",data[],1),VLOOKUP(\"CAPEX,\"&AM$2&\",,\"&$B535&\",\",data[],7),AM$501))","v":144.49043833783671},null,null,null,null,null,null,null,null,null,null,null,null,null,null,{"$f":"IF(BB$2=\"\",0,IF(NOT(BB47),0,IF(\"CAPEX,\"&BB$2&\",,\"&$B535&\",\"=VLOOKUP(\"CAPEX,\"&BB$2&\",,\"&$B535&\",\",data[],1),VLOOKUP(\"CAPEX,\"&BB$2&\",,\"&$B535&\",\",data[],7),BB$501)))","v":0},null,null,{"$f":"IF(BE$2=\"\",0,IF(NOT(BE47),0,IF(\"CAPEX,\"&BE$2&\",,\"&$B535&\",\"=VLOOKUP(\"CAPEX,\"&BE$2&\",,\"&$B535&\",\",data[],1),VLOOKUP(\"CAPEX,\"&BE$2&\",,\"&$B535&\",\",data[],7),BE$501)))","v":0}]
[null,"EGY",null,null,null,null,null,null,null,null,{"$f":"IF(\"CAPEX,\"&$K48&\",,\"&$B536&\",\"=VLOOKUP(\"CAPEX,\"&$K48&\",,\"&$B536&\",\",data[],1),VLOOKUP(\"CAPEX,\"&$K48&\",,\"&$B536&\",\",data[],7),INDEX($E$501:$I$501,$J48))","v":1107.0476299758607},null,null,null,null,null,{"$f":"IF(\"CAPEX,\"&Q$2&\",,\"&$B536&\",\"=VLOOKUP(\"CAPEX,\"&Q$2&\",,\"&$B536&\",\",data[],1),VLOOKUP(\"CAPEX,\"&Q$2&\",,\"&$B536&\",\",data[],7),Q$501)","v":650.6426539852938},null,{"$f":"IF(\"CAPEX,\"&S$2&\",,\"&$B536&\",\"=VLOOKUP(\"CAPEX,\"&S$2&\",,\"&$B536&\",\",data[],1),VLOOKUP(\"CAPEX,\"&S$2&\",,\"&$B536&\",\",data[],7),S$501)","v":2.3667276243093918E-3},null,null,null,null,{"$f":"IF(X$2=\"\",0,IF(\"CAPEX,\"&X$2&\",,\"&$B536&\",\"=VLOOKUP(\"CAPEX,\"&X$2&\",,\"&$B536&\",\",data[],1),VLOOKUP(\"CAPEX,\"&X$2&\",,\"&$B536&\",\",data[],7),X$501))","v":0},null,{"$f":"IF(\"CAPEX,\"&Z$2&\",,\"&$B536&\",\"=VLOOKUP(\"CAPEX,\"&Z$2&\",,\"&$B536&\",\",data[],1),VLOOKUP(\"CAPEX,\"&Z$2&\",,\"&$B536&\",\",data[],7),Z$501)","v":2.3667276243093918E-3},null,null,null,{"$f":"IF(\"CAPEX,\"&AD$2&\",,\"&$B536&\",\"=VLOOKUP(\"CAPEX,\"&AD$2&\",,\"&$B536&\",\",data[],1),VLOOKUP(\"CAPEX,\"&AD$2&\",,\"&$B536&\",\",data[],7),AD$501)","v":1.0377410418368698},null,null,null,null,null,null,{"$f":"IF(AK$2=\"\",0,IF(\"CAPEX,\"&AK$2&\",,\"&$B536&\",\"=VLOOKUP(\"CAPEX,\"&AK$2&\",,\"&$B536&\",\",data[],1),VLOOKUP(\"CAPEX,\"&AK$2&\",,\"&$B536&\",\",data[],7),AK$501))","v":1457.3621055108172},null,{"$f":"IF(AM$2=\"\",0,IF(\"CAPEX,\"&AM$2&\",,\"&$B536&\",\"=VLOOKUP(\"CAPEX,\"&AM$2&\",,\"&$B536&\",\",data[],1),VLOOKUP(\"CAPEX,\"&AM$2&\",,\"&$B536&\",\",data[],7),AM$501))","v":144.49043833783671},null,null,null,null,null,null,null,null,null,null,null,null,null,null,{"$f":"IF(BB$2=\"\",0,IF(NOT(BB48),0,IF(\"CAPEX,\"&BB$2&\",,\"&$B536&\",\"=VLOOKUP(\"CAPEX,\"&BB$2&\",,\"&$B536&\",\",data[],1),VLOOKUP(\"CAPEX,\"&BB$2&\",,\"&$B536&\",\",data[],7),BB$501)))","v":0},null,null,{"$f":"IF(BE$2=\"\",0,IF(NOT(BE48),0,IF(\"CAPEX,\"&BE$2&\",,\"&$B536&\",\"=VLOOKUP(\"CAPEX,\"&BE$2&\",,\"&$B536&\",\",data[],1),VLOOKUP(\"CAPEX,\"&BE$2&\",,\"&$B536&\",\",data[],7),BE$501)))","v":0}]
[null,"ESP",null,null,null,null,null,null,null,null,{"$f":"IF(\"CAPEX,\"&$K49&\",,\"&$B537&\",\"=VLOOKUP(\"CAPEX,\"&$K49&\",,\"&$B537&\",\",data[],1),VLOOKUP(\"CAPEX,\"&$K49&\",,\"&$B537&\",\",data[],7),INDEX($E$501:$I$501,$J49))","v":924.96002931080898},null,null,null,null,null,{"$f":"IF(\"CAPEX,\"&Q$2&\",,\"&$B537&\",\"=VLOOKUP(\"CAPEX,\"&Q$2&\",,\"&$B537&\",\",data[],1),VLOOKUP(\"CAPEX,\"&Q$2&\",,\"&$B537&\",\",data[],7),Q$501)","v":650.6426539852938},null,{"$f":"IF(\"CAPEX,\"&S$2&\",,\"&$B537&\",\"=VLOOKUP(\"CAPEX,\"&S$2&\",,\"&$B537&\",\",data[],1),VLOOKUP(\"CAPEX,\"&S$2&\",,\"&$B537&\",\",data[],7),S$501)","v":2.3667276243093918E-3},null,null,null,null,{"$f":"IF(X$2=\"\",0,IF(\"CAPEX,\"&X$2&\",,\"&$B537&\",\"=VLOOKUP(\"CAPEX,\"&X$2&\",,\"&$B537&\",\",data[],1),VLOOKUP(\"CAPEX,\"&X$2&\",,\"&$B537&\",\",data[],7),X$501))","v":0},null,{"$f":"IF(\"CAPEX,\"&Z$2&\",,\"&$B537&\",\"=VLOOKUP(\"CAPEX,\"&Z$2&\",,\"&$B537&\",\",data[],1),VLOOKUP(\"CAPEX,\"&Z$2&\",,\"&$B537&\",\",data[],7),Z$501)","v":2.3667276243093918E-3},null,null,null,{"$f":"IF(\"CAPEX,\"&AD$2&\",,\"&$B537&\",\"=VLOOKUP(\"CAPEX,\"&AD$2&\",,\"&$B537&\",\",data[],1),VLOOKUP(\"CAPEX,\"&AD$2&\",,\"&$B537&\",\",data[],7),AD$501)","v":1.0377410418368698},null,null,null,null,null,null,{"$f":"IF(AK$2=\"\",0,IF(\"CAPEX,\"&AK$2&\",,\"&$B537&\",\"=VLOOKUP(\"CAPEX,\"&AK$2&\",,\"&$B537&\",\",data[],1),VLOOKUP(\"CAPEX,\"&AK$2&\",,\"&$B537&\",\",data[],7),AK$501))","v":1457.3621055108172},null,{"$f":"IF(AM$2=\"\",0,IF(\"CAPEX,\"&AM$2&\",,\"&$B537&\",\"=VLOOKUP(\"CAPEX,\"&AM$2&\",,\"&$B537&\",\",data[],1),VLOOKUP(\"CAPEX,\"&AM$2&\",,\"&$B537&\",\",data[],7),AM$501))","v":144.49043833783671},null,null,null,null,null,null,null,null,null,null,null,null,null,null,{"$f":"IF(BB$2=\"\",0,IF(NOT(BB49),0,IF(\"CAPEX,\"&BB$2&\",,\"&$B537&\",\"=VLOOKUP(\"CAPEX,\"&BB$2&\",,\"&$B537&\",\",data[],1),VLOOKUP(\"CAPEX,\"&BB$2&\",,\"&$B537&\",\",data[],7),BB$501)))","v":0},null,null,{"$f":"IF(BE$2=\"\",0,IF(NOT(BE49),0,IF(\"CAPEX,\"&BE$2&\",,\"&$B537&\",\"=VLOOKUP(\"CAPEX,\"&BE$2&\",,\"&$B537&\",\",data[],1),VLOOKUP(\"CAPEX,\"&BE$2&\",,\"&$B537&\",\",data[],7),BE$501)))","v":0}]
[null,"IDN",null,null,null,null,null,null,null,null,{"$f":"IF(\"CAPEX,\"&$K50&\",,\"&$B538&\",\"=VLOOKUP(\"CAPEX,\"&$K50&\",,\"&$B538&\",\",data[],1),VLOOKUP(\"CAPEX,\"&$K50&\",,\"&$B538&\",\",data[],7),INDEX($E$501:$I$501,$J50))","v":1533.0240021148766},null,null,null,null,null,{"$f":"IF(\"CAPEX,\"&Q$2&\",,\"&$B538&\",\"=VLOOKUP(\"CAPEX,\"&Q$2&\",,\"&$B538&\",\",data[],1),VLOOKUP(\"CAPEX,\"&Q$2&\",,\"&$B538&\",\",data[],7),Q$501)","v":650.6426539852938},null,{"$f":"IF(\"CAPEX,\"&S$2&\",,\"&$B538&\",\"=VLOOKUP(\"CAPEX,\"&S$2&\",,\"&$B538&\",\",data[],1),VLOOKUP(\"CAPEX,\"&S$2&\",,\"&$B538&\",\",data[],7),S$501)","v":2.3667276243093918E-3},null,null,null,null,{"$f":"IF(X$2=\"\",0,IF(\"CAPEX,\"&X$2&\",,\"&$B538&\",\"=VLOOKUP(\"CAPEX,\"&X$2&\",,\"&$B538&\",\",data[],1),VLOOKUP(\"CAPEX,\"&X$2&\",,\"&$B538&\",\",data[],7),X$501))","v":0},null,{"$f":"IF(\"CAPEX,\"&Z$2&\",,\"&$B538&\",\"=VLOOKUP(\"CAPEX,\"&Z$2&\",,\"&$B538&\",\",data[],1),VLOOKUP(\"CAPEX,\"&Z$2&\",,\"&$B538&\",\",data[],7),Z$501)","v":2.3667276243093918E-3},null,null,null,{"$f":"IF(\"CAPEX,\"&AD$2&\",,\"&$B538&\",\"=VLOOKUP(\"CAPEX,\"&AD$2&\",,\"&$B538&\",\",data[],1),VLOOKUP(\"CAPEX,\"&AD$2&\",,\"&$B538&\",\",data[],7),AD$501)","v":1.0377410418368698},null,null,null,null,null,null,{"$f":"IF(AK$2=\"\",0,IF(\"CAPEX,\"&AK$2&\",,\"&$B538&\",\"=VLOOKUP(\"CAPEX,\"&AK$2&\",,\"&$B538&\",\",data[],1),VLOOKUP(\"CAPEX,\"&AK$2&\",,\"&$B538&\",\",data[],7),AK$501))","v":1457.3621055108172},null,{"$f":"IF(AM$2=\"\",0,IF(\"CAPEX,\"&AM$2&\",,\"&$B538&\",\"=VLOOKUP(\"CAPEX,\"&AM$2&\",,\"&$B538&\",\",data[],1),VLOOKUP(\"CAPEX,\"&AM$2&\",,\"&$B538&\",\",data[],7),AM$501))","v":144.49043833783671},null,null,null,null,null,null,null,null,null,null,null,null,null,null,{"$f":"IF(BB$2=\"\",0,IF(NOT(BB50),0,IF(\"CAPEX,\"&BB$2&\",,\"&$B538&\",\"=VLOOKUP(\"CAPEX,\"&BB$2&\",,\"&$B538&\",\",data[],1),VLOOKUP(\"CAPEX,\"&BB$2&\",,\"&$B538&\",\",data[],7),BB$501)))","v":318.14227153381154},null,null,{"$f":"IF(BE$2=\"\",0,IF(NOT(BE50),0,IF(\"CAPEX,\"&BE$2&\",,\"&$B538&\",\"=VLOOKUP(\"CAPEX,\"&BE$2&\",,\"&$B538&\",\",data[],1),VLOOKUP(\"CAPEX,\"&BE$2&\",,\"&$B538&\",\",data[],7),BE$501)))","v":0}]
[null,"IND",null,null,null,null,null,null,null,null,{"$f":"IF(\"CAPEX,\"&$K51&\",,\"&$B539&\",\"=VLOOKUP(\"CAPEX,\"&$K51&\",,\"&$B539&\",\",data[],1),VLOOKUP(\"CAPEX,\"&$K51&\",,\"&$B539&\",\",data[],7),INDEX($E$501:$I$501,$J51))","v":695.49359886878108},null,null,null,null,null,{"$f":"IF(\"CAPEX,\"&Q$2&\",,\"&$B539&\",\"=VLOOKUP(\"CAPEX,\"&Q$2&\",,\"&$B539&\",\",data[],1),VLOOKUP(\"CAPEX,\"&Q$2&\",,\"&$B539&\",\",data[],7),Q$501)","v":650.6426539852938},null,{"$f":"IF(\"CAPEX,\"&S$2&\",,\"&$B539&\",\"=VLOOKUP(\"CAPEX,\"&S$2&\",,\"&$B539&\",\",data[],1),VLOOKUP(\"CAPEX,\"&S$2&\",,\"&$B539&\",\",data[],7),S$501)","v":2.3667276243093918E-3},null,null,null,null,{"$f":"IF(X$2=\"\",0,IF(\"CAPEX,\"&X$2&\",,\"&$B539&\",\"=VLOOKUP(\"CAPEX,\"&X$2&\",,\"&$B539&\",\",data[],1),VLOOKUP(\"CAPEX,\"&X$2&\",,\"&$B539&\",\",data[],7),X$501))","v":0},null,{"$f":"IF(\"CAPEX,\"&Z$2&\",,\"&$B539&\",\"=VLOOKUP(\"CAPEX,\"&Z$2&\",,\"&$B539&\",\",data[],1),VLOOKUP(\"CAPEX,\"&Z$2&\",,\"&$B539&\",\",data[],7),Z$501)","v":2.3667276243093918E-3},null,null,null,{"$f":"IF(\"CAPEX,\"&AD$2&\",,\"&$B539&\",\"=VLOOKUP(\"CAPEX,\"&AD$2&\",,\"&$B539&\",\",data[],1),VLOOKUP(\"CAPEX,\"&AD$2&\",,\"&$B539&\",\",data[],7),AD$501)","v":1.0377410418368698},null,null,null,null,null,null,{"$f":"IF(AK$2=\"\",0,IF(\"CAPEX,\"&AK$2&\",,\"&$B539&\",\"=VLOOKUP(\"CAPEX,\"&AK$2&\",,\"&$B539&\",\",data[],1),VLOOKUP(\"CAPEX,\"&AK$2&\",,\"&$B539&\",\",data[],7),AK$501))","v":1457.3621055108172},null,{"$f":"IF(AM$2=\"\",0,IF(\"CAPEX,\"&AM$2&\",,\"&$B539&\",\"=VLOOKUP(\"CAPEX,\"&AM$2&\",,\"&$B539&\",\",data[],1),VLOOKUP(\"CAPEX,\"&AM$2&\",,\"&$B539&\",\",data[],7),AM$501))","v":144.49043833783671},null,null,null,null,null,null,null,null,null,null,null,null,null,null,{"$f":"IF(BB$2=\"\",0,IF(NOT(BB51),0,IF(\"CAPEX,\"&BB$2&\",,\"&$B539&\",\"=VLOOKUP(\"CAPEX,\"&BB$2&\",,\"&$B539&\",\",data[],1),VLOOKUP(\"CAPEX,\"&BB$2&\",,\"&$B539&\",\",data[],7),BB$501)))","v":318.14227153381154},null,null,{"$f":"IF(BE$2=\"\",0,IF(NOT(BE51),0,IF(\"CAPEX,\"&BE$2&\",,\"&$B539&\",\"=VLOOKUP(\"CAPEX,\"&BE$2&\",,\"&$B539&\",\",data[],1),VLOOKUP(\"CAPEX,\"&BE$2&\",,\"&$B539&\",\",data[],7),BE$501)))","v":0}]
[null,"JOR",null,null,null,null,null,null,null,null,{"$f":"IF(\"CAPEX,\"&$K52&\",,\"&$B540&\",\"=VLOOKUP(\"CAPEX,\"&$K52&\",,\"&$B540&\",\",data[],1),VLOOKUP(\"CAPEX,\"&$K52&\",,\"&$B540&\",\",data[],7),INDEX($E$501:$I$501,$J52))","v":1298.5753742333741},null,null,null,null,null,{"$f":"IF(\"CAPEX,\"&Q$2&\",,\"&$B540&\",\"=VLOOKUP(\"CAPEX,\"&Q$2&\",,\"&$B540&\",\",data[],1),VLOOKUP(\"CAPEX,\"&Q$2&\",,\"&$B540&\",\",data[],7),Q$501)","v":650.6426539852938},null,{"$f":"IF(\"CAPEX,\"&S$2&\",,\"&$B540&\",\"=VLOOKUP(\"CAPEX,\"&S$2&\",,\"&$B540&\",\",data[],1),VLOOKUP(\"CAPEX,\"&S$2&\",,\"&$B540&\",\",data[],7),S$501)","v":2.3667276243093918E-3},null,null,null,null,{"$f":"IF(X$2=\"\",0,IF(\"CAPEX,\"&X$2&\",,\"&$B540&\",\"=VLOOKUP(\"CAPEX,\"&X$2&\",,\"&$B540&\",\",data[],1),VLOOKUP(\"CAPEX,\"&X$2&\",,\"&$B540&\",\",data[],7),X$501))","v":0},null,{"$f":"IF(\"CAPEX,\"&Z$2&\",,\"&$B540&\",\"=VLOOKUP(\"CAPEX,\"&Z$2&\",,\"&$B540&\",\",data[],1),VLOOKUP(\"CAPEX,\"&Z$2&\",,\"&$B540&\",\",data[],7),Z$501)","v":2.3667276243093918E-3},null,null,null,{"$f":"IF(\"CAPEX,\"&AD$2&\",,\"&$B540&\",\"=VLOOKUP(\"CAPEX,\"&AD$2&\",,\"&$B540&\",\",data[],1),VLOOKUP(\"CAPEX,\"&AD$2&\",,\"&$B540&\",\",data[],7),AD$501)","v":1.0377410418368698},null,null,null,null,null,null,{"$f":"IF(AK$2=\"\",0,IF(\"CAPEX,\"&AK$2&\",,\"&$B540&\",\"=VLOOKUP(\"CAPEX,\"&AK$2&\",,\"&$B540&\",\",data[],1),VLOOKUP(\"CAPEX,\"&AK$2&\",,\"&$B540&\",\",data[],7),AK$501))","v":1457.3621055108172},null,{"$f":"IF(AM$2=\"\",0,IF(\"CAPEX,\"&AM$2&\",,\"&$B540&\",\"=VLOOKUP(\"CAPEX,\"&AM$2&\",,\"&$B540&\",\",data[],1),VLOOKUP(\"CAPEX,\"&AM$2&\",,\"&$B540&\",\",data[],7),AM$501))","v":144.49043833783671},null,null,null,null,null,null,null,null,null,null,null,null,null,null,{"$f":"IF(BB$2=\"\",0,IF(NOT(BB52),0,IF(\"CAPEX,\"&BB$2&\",,\"&$B540&\",\"=VLOOKUP(\"CAPEX,\"&BB$2&\",,\"&$B540&\",\",data[],1),VLOOKUP(\"CAPEX,\"&BB$2&\",,\"&$B540&\",\",data[],7),BB$501)))","v":0},null,null,{"$f":"IF(BE$2=\"\",0,IF(NOT(BE52),0,IF(\"CAPEX,\"&BE$2&\",,\"&$B540&\",\"=VLOOKUP(\"CAPEX,\"&BE$2&\",,\"&$B540&\",\",data[],1),VLOOKUP(\"CAPEX,\"&BE$2&\",,\"&$B540&\",\",data[],7),BE$501)))","v":0}]
[null,"KAZ",null,null,null,null,null,null,null,null,{"$f":"IF(\"CAPEX,\"&$K53&\",,\"&$B541&\",\"=VLOOKUP(\"CAPEX,\"&$K53&\",,\"&$B541&\",\",data[],1),VLOOKUP(\"CAPEX,\"&$K53&\",,\"&$B541&\",\",data[],7),INDEX($E$501:$I$501,$J53))","v":1107.0476299758607},null,null,null,null,null,{"$f":"IF(\"CAPEX,\"&Q$2&\",,\"&$B541&\",\"=VLOOKUP(\"CAPEX,\"&Q$2&\",,\"&$B541&\",\",data[],1),VLOOKUP(\"CAPEX,\"&Q$2&\",,\"&$B541&\",\",data[],7),Q$501)","v":650.6426539852938},null,{"$f":"IF(\"CAPEX,\"&S$2&\",,\"&$B541&\",\"=VLOOKUP(\"CAPEX,\"&S$2&\",,\"&$B541&\",\",data[],1),VLOOKUP(\"CAPEX,\"&S$2&\",,\"&$B541&\",\",data[],7),S$501)","v":2.3667276243093918E-3},null,null,null,null,{"$f":"IF(X$2=\"\",0,IF(\"CAPEX,\"&X$2&\",,\"&$B541&\",\"=VLOOKUP(\"CAPEX,\"&X$2&\",,\"&$B541&\",\",data[],1),VLOOKUP(\"CAPEX,\"&X$2&\",,\"&$B541&\",\",data[],7),X$501))","v":0},null,{"$f":"IF(\"CAPEX,\"&Z$2&\",,\"&$B541&\",\"=VLOOKUP(\"CAPEX,\"&Z$2&\",,\"&$B541&\",\",data[],1),VLOOKUP(\"CAPEX,\"&Z$2&\",,\"&$B541&\",\",data[],7),Z$501)","v":2.3667276243093918E-3},null,null,null,{"$f":"IF(\"CAPEX,\"&AD$2&\",,\"&$B541&\",\"=VLOOKUP(\"CAPEX,\"&AD$2&\",,\"&$B541&\",\",data[],1),VLOOKUP(\"CAPEX,\"&AD$2&\",,\"&$B541&\",\",data[],7),AD$501)","v":1.0377410418368698},null,null,null,null,null,null,{"$f":"IF(AK$2=\"\",0,IF(\"CAPEX,\"&AK$2&\",,\"&$B541&\",\"=VLOOKUP(\"CAPEX,\"&AK$2&\",,\"&$B541&\",\",data[],1),VLOOKUP(\"CAPEX,\"&AK$2&\",,\"&$B541&\",\",data[],7),AK$501))","v":1457.3621055108172},null,{"$f":"IF(AM$2=\"\",0,IF(\"CAPEX,\"&AM$2&\",,\"&$B541&\",\"=VLOOKUP(\"CAPEX,\"&AM$2&\",,\"&$B541&\",\",data[],1),VLOOKUP(\"CAPEX,\"&AM$2&\",,\"&$B541&\",\",data[],7),AM$501))","v":144.49043833783671},null,null,null,null,null,null,null,null,null,null,null,null,null,null,{"$f":"IF(BB$2=\"\",0,IF(NOT(BB53),0,IF(\"CAPEX,\"&BB$2&\",,\"&$B541&\",\"=VLOOKUP(\"CAPEX,\"&BB$2&\",,\"&$B541&\",\",data[],1),VLOOKUP(\"CAPEX,\"&BB$2&\",,\"&$B541&\",\",data[],7),BB$501)))","v":0},null,null,{"$f":"IF(BE$2=\"\",0,IF(NOT(BE53),0,IF(\"CAPEX,\"&BE$2&\",,\"&$B541&\",\"=VLOOKUP(\"CAPEX,\"&BE$2&\",,\"&$B541&\",\",data[],1),VLOOKUP(\"CAPEX,\"&BE$2&\",,\"&$B541&\",\",data[],7),BE$501)))","v":0}]
[null,"KEN",null,null,null,null,null,null,null,null,{"$f":"IF(\"CAPEX,\"&$K54&\",,\"&$B542&\",\"=VLOOKUP(\"CAPEX,\"&$K54&\",,\"&$B542&\",\",data[],1),VLOOKUP(\"CAPEX,\"&$K54&\",,\"&$B542&\",\",data[],7),INDEX($E$501:$I$501,$J54))","v":1298.5753742333741},null,null,null,null,null,{"$f":"IF(\"CAPEX,\"&Q$2&\",,\"&$B542&\",\"=VLOOKUP(\"CAPEX,\"&Q$2&\",,\"&$B542&\",\",data[],1),VLOOKUP(\"CAPEX,\"&Q$2&\",,\"&$B542&\",\",data[],7),Q$501)","v":650.6426539852938},null,{"$f":"IF(\"CAPEX,\"&S$2&\",,\"&$B542&\",\"=VLOOKUP(\"CAPEX,\"&S$2&\",,\"&$B542&\",\",data[],1),VLOOKUP(\"CAPEX,\"&S$2&\",,\"&$B542&\",\",data[],7),S$501)","v":2.3667276243093918E-3},null,null,null,null,{"$f":"IF(X$2=\"\",0,IF(\"CAPEX,\"&X$2&\",,\"&$B542&\",\"=VLOOKUP(\"CAPEX,\"&X$2&\",,\"&$B542&\",\",data[],1),VLOOKUP(\"CAPEX,\"&X$2&\",,\"&$B542&\",\",data[],7),X$501))","v":0},null,{"$f":"IF(\"CAPEX,\"&Z$2&\",,\"&$B542&\",\"=VLOOKUP(\"CAPEX,\"&Z$2&\",,\"&$B542&\",\",data[],1),VLOOKUP(\"CAPEX,\"&Z$2&\",,\"&$B542&\",\",data[],7),Z$501)","v":2.3667276243093918E-3},null,null,null,{"$f":"IF(\"CAPEX,\"&AD$2&\",,\"&$B542&\",\"=VLOOKUP(\"CAPEX,\"&AD$2&\",,\"&$B542&\",\",data[],1),VLOOKUP(\"CAPEX,\"&AD$2&\",,\"&$B542&\",\",data[],7),AD$501)","v":1.0377410418368698},null,null,null,null,null,null,{"$f":"IF(AK$2=\"\",0,IF(\"CAPEX,\"&AK$2&\",,\"&$B542&\",\"=VLOOKUP(\"CAPEX,\"&AK$2&\",,\"&$B542&\",\",data[],1),VLOOKUP(\"CAPEX,\"&AK$2&\",,\"&$B542&\",\",data[],7),AK$501))","v":1457.3621055108172},null,{"$f":"IF(AM$2=\"\",0,IF(\"CAPEX,\"&AM$2&\",,\"&$B542&\",\"=VLOOKUP(\"CAPEX,\"&AM$2&\",,\"&$B542&\",\",data[],1),VLOOKUP(\"CAPEX,\"&AM$2&\",,\"&$B542&\",\",data[],7),AM$501))","v":144.49043833783671},null,null,null,null,null,null,null,null,null,null,null,null,null,null,{"$f":"IF(BB$2=\"\",0,IF(NOT(BB54),0,IF(\"CAPEX,\"&BB$2&\",,\"&$B542&\",\"=VLOOKUP(\"CAPEX,\"&BB$2&\",,\"&$B542&\",\",data[],1),VLOOKUP(\"CAPEX,\"&BB$2&\",,\"&$B542&\",\",data[],7),BB$501)))","v":318.14227153381154},null,null,{"$f":"IF(BE$2=\"\",0,IF(NOT(BE54),0,IF(\"CAPEX,\"&BE$2&\",,\"&$B542&\",\"=VLOOKUP(\"CAPEX,\"&BE$2&\",,\"&$B542&\",\",data[],1),VLOOKUP(\"CAPEX,\"&BE$2&\",,\"&$B542&\",\",data[],7),BE$501)))","v":0}]
[null,"MAR",null,null,null,null,null,null,null,null,{"$f":"IF(\"CAPEX,\"&$K55&\",,\"&$B543&\",\"=VLOOKUP(\"CAPEX,\"&$K55&\",,\"&$B543&\",\",data[],1),VLOOKUP(\"CAPEX,\"&$K55&\",,\"&$B543&\",\",data[],7),INDEX($E$501:$I$501,$J55))","v":1229.1954260584585},null,null,null,null,null,{"$f":"IF(\"CAPEX,\"&Q$2&\",,\"&$B543&\",\"=VLOOKUP(\"CAPEX,\"&Q$2&\",,\"&$B543&\",\",data[],1),VLOOKUP(\"CAPEX,\"&Q$2&\",,\"&$B543&\",\",data[],7),Q$501)","v":650.6426539852938},null,{"$f":"IF(\"CAPEX,\"&S$2&\",,\"&$B543&\",\"=VLOOKUP(\"CAPEX,\"&S$2&\",,\"&$B543&\",\",data[],1),VLOOKUP(\"CAPEX,\"&S$2&\",,\"&$B543&\",\",data[],7),S$501)","v":2.3667276243093918E-3},null,null,null,null,{"$f":"IF(X$2=\"\",0,IF(\"CAPEX,\"&X$2&\",,\"&$B543&\",\"=VLOOKUP(\"CAPEX,\"&X$2&\",,\"&$B543&\",\",data[],1),VLOOKUP(\"CAPEX,\"&X$2&\",,\"&$B543&\",\",data[],7),X$501))","v":0},null,{"$f":"IF(\"CAPEX,\"&Z$2&\",,\"&$B543&\",\"=VLOOKUP(\"CAPEX,\"&Z$2&\",,\"&$B543&\",\",data[],1),VLOOKUP(\"CAPEX,\"&Z$2&\",,\"&$B543&\",\",data[],7),Z$501)","v":2.3667276243093918E-3},null,null,null,{"$f":"IF(\"CAPEX,\"&AD$2&\",,\"&$B543&\",\"=VLOOKUP(\"CAPEX,\"&AD$2&\",,\"&$B543&\",\",data[],1),VLOOKUP(\"CAPEX,\"&AD$2&\",,\"&$B543&\",\",data[],7),AD$501)","v":1.0377410418368698},null,null,null,null,null,null,{"$f":"IF(AK$2=\"\",0,IF(\"CAPEX,\"&AK$2&\",,\"&$B543&\",\"=VLOOKUP(\"CAPEX,\"&AK$2&\",,\"&$B543&\",\",data[],1),VLOOKUP(\"CAPEX,\"&AK$2&\",,\"&$B543&\",\",data[],7),AK$501))","v":1457.3621055108172},null,{"$f":"IF(AM$2=\"\",0,IF(\"CAPEX,\"&AM$2&\",,\"&$B543&\",\"=VLOOKUP(\"CAPEX,\"&AM$2&\",,\"&$B543&\",\",data[],1),VLOOKUP(\"CAPEX,\"&AM$2&\",,\"&$B543&\",\",data[],7),AM$501))","v":144.49043833783671},null,null,null,null,null,null,null,null,null,null,null,null,null,null,{"$f":"IF(BB$2=\"\",0,IF(NOT(BB55),0,IF(\"CAPEX,\"&BB$2&\",,\"&$B543&\",\"=VLOOKUP(\"CAPEX,\"&BB$2&\",,\"&$B543&\",\",data[],1),VLOOKUP(\"CAPEX,\"&BB$2&\",,\"&$B543&\",\",data[],7),BB$501)))","v":318.14227153381154},null,null,{"$f":"IF(BE$2=\"\",0,IF(NOT(BE55),0,IF(\"CAPEX,\"&BE$2&\",,\"&$B543&\",\"=VLOOKUP(\"CAPEX,\"&BE$2&\",,\"&$B543&\",\",data[],1),VLOOKUP(\"CAPEX,\"&BE$2&\",,\"&$B543&\",\",data[],7),BE$501)))","v":0}]
[null,"MAR-BEN",null,null,null,null,null,null,null,null,{"$f":"IF(\"CAPEX,\"&$K56&\",,\"&$B544&\",\"=VLOOKUP(\"CAPEX,\"&$K56&\",,\"&$B544&\",\",data[],1),VLOOKUP(\"CAPEX,\"&$K56&\",,\"&$B544&\",\",data[],7),INDEX($E$501:$I$501,$J56))","v":1229.1954260584585},null,null,null,null,null,{"$f":"IF(\"CAPEX,\"&Q$2&\",,\"&$B544&\",\"=VLOOKUP(\"CAPEX,\"&Q$2&\",,\"&$B544&\",\",data[],1),VLOOKUP(\"CAPEX,\"&Q$2&\",,\"&$B544&\",\",data[],7),Q$501)","v":650.6426539852938},null,{"$f":"IF(\"CAPEX,\"&S$2&\",,\"&$B544&\",\"=VLOOKUP(\"CAPEX,\"&S$2&\",,\"&$B544&\",\",data[],1),VLOOKUP(\"CAPEX,\"&S$2&\",,\"&$B544&\",\",data[],7),S$501)","v":2.3667276243093918E-3},null,null,null,null,{"$f":"IF(X$2=\"\",0,IF(\"CAPEX,\"&X$2&\",,\"&$B544&\",\"=VLOOKUP(\"CAPEX,\"&X$2&\",,\"&$B544&\",\",data[],1),VLOOKUP(\"CAPEX,\"&X$2&\",,\"&$B544&\",\",data[],7),X$501))","v":0},null,{"$f":"IF(\"CAPEX,\"&Z$2&\",,\"&$B544&\",\"=VLOOKUP(\"CAPEX,\"&Z$2&\",,\"&$B544&\",\",data[],1),VLOOKUP(\"CAPEX,\"&Z$2&\",,\"&$B544&\",\",data[],7),Z$501)","v":2.3667276243093918E-3},null,null,null,{"$f":"IF(\"CAPEX,\"&AD$2&\",,\"&$B544&\",\"=VLOOKUP(\"CAPEX,\"&AD$2&\",,\"&$B544&\",\",data[],1),VLOOKUP(\"CAPEX,\"&AD$2&\",,\"&$B544&\",\",data[],7),AD$501)","v":1.0377410418368698},null,null,null,null,null,null,{"$f":"IF(AK$2=\"\",0,IF(\"CAPEX,\"&AK$2&\",,\"&$B544&\",\"=VLOOKUP(\"CAPEX,\"&AK$2&\",,\"&$B544&\",\",data[],1),VLOOKUP(\"CAPEX,\"&AK$2&\",,\"&$B544&\",\",data[],7),AK$501))","v":1457.3621055108172},null,{"$f":"IF(AM$2=\"\",0,IF(\"CAPEX,\"&AM$2&\",,\"&$B544&\",\"=VLOOKUP(\"CAPEX,\"&AM$2&\",,\"&$B544&\",\",data[],1),VLOOKUP(\"CAPEX,\"&AM$2&\",,\"&$B544&\",\",data[],7),AM$501))","v":144.49043833783671},null,null,null,null,null,null,null,null,null,null,null,null,null,null,{"$f":"IF(BB$2=\"\",0,IF(NOT(BB56),0,IF(\"CAPEX,\"&BB$2&\",,\"&$B544&\",\"=VLOOKUP(\"CAPEX,\"&BB$2&\",,\"&$B544&\",\",data[],1),VLOOKUP(\"CAPEX,\"&BB$2&\",,\"&$B544&\",\",data[],7),BB$501)))","v":318.14227153381154},null,null,{"$f":"IF(BE$2=\"\",0,IF(NOT(BE56),0,IF(\"CAPEX,\"&BE$2&\",,\"&$B544&\",\"=VLOOKUP(\"CAPEX,\"&BE$2&\",,\"&$B544&\",\",data[],1),VLOOKUP(\"CAPEX,\"&BE$2&\",,\"&$B544&\",\",data[],7),BE$501)))","v":0}]
[null,"MAR-CAS",null,null,null,null,null,null,null,null,{"$f":"IF(\"CAPEX,\"&$K57&\",,\"&$B545&\",\"=VLOOKUP(\"CAPEX,\"&$K57&\",,\"&$B545&\",\",data[],1),VLOOKUP(\"CAPEX,\"&$K57&\",,\"&$B545&\",\",data[],7),INDEX($E$501:$I$501,$J57))","v":1229.1954260584585},null,null,null,null,null,{"$f":"IF(\"CAPEX,\"&Q$2&\",,\"&$B545&\",\"=VLOOKUP(\"CAPEX,\"&Q$2&\",,\"&$B545&\",\",data[],1),VLOOKUP(\"CAPEX,\"&Q$2&\",,\"&$B545&\",\",data[],7),Q$501)","v":650.6426539852938},null,{"$f":"IF(\"CAPEX,\"&S$2&\",,\"&$B545&\",\"=VLOOKUP(\"CAPEX,\"&S$2&\",,\"&$B545&\",\",data[],1),VLOOKUP(\"CAPEX,\"&S$2&\",,\"&$B545&\",\",data[],7),S$501)","v":2.3667276243093918E-3},null,null,null,null,{"$f":"IF(X$2=\"\",0,IF(\"CAPEX,\"&X$2&\",,\"&$B545&\",\"=VLOOKUP(\"CAPEX,\"&X$2&\",,\"&$B545&\",\",data[],1),VLOOKUP(\"CAPEX,\"&X$2&\",,\"&$B545&\",\",data[],7),X$501))","v":0},null,{"$f":"IF(\"CAPEX,\"&Z$2&\",,\"&$B545&\",\"=VLOOKUP(\"CAPEX,\"&Z$2&\",,\"&$B545&\",\",data[],1),VLOOKUP(\"CAPEX,\"&Z$2&\",,\"&$B545&\",\",data[],7),Z$501)","v":2.3667276243093918E-3},null,null,null,{"$f":"IF(\"CAPEX,\"&AD$2&\",,\"&$B545&\",\"=VLOOKUP(\"CAPEX,\"&AD$2&\",,\"&$B545&\",\",data[],1),VLOOKUP(\"CAPEX,\"&AD$2&\",,\"&$B545&\",\",data[],7),AD$501)","v":1.0377410418368698},null,null,null,null,null,null,{"$f":"IF(AK$2=\"\",0,IF(\"CAPEX,\"&AK$2&\",,\"&$B545&\",\"=VLOOKUP(\"CAPEX,\"&AK$2&\",,\"&$B545&\",\",data[],1),VLOOKUP(\"CAPEX,\"&AK$2&\",,\"&$B545&\",\",data[],7),AK$501))","v":1457.3621055108172},null,{"$f":"IF(AM$2=\"\",0,IF(\"CAPEX,\"&AM$2&\",,\"&$B545&\",\"=VLOOKUP(\"CAPEX,\"&AM$2&\",,\"&$B545&\",\",data[],1),VLOOKUP(\"CAPEX,\"&AM$2&\",,\"&$B545&\",\",data[],7),AM$501))","v":144.49043833783671},null,null,null,null,null,null,null,null,null,null,null,null,null,null,{"$f":"IF(BB$2=\"\",0,IF(NOT(BB57),0,IF(\"CAPEX,\"&BB$2&\",,\"&$B545&\",\"=VLOOKUP(\"CAPEX,\"&BB$2&\",,\"&$B545&\",\",data[],1),VLOOKUP(\"CAPEX,\"&BB$2&\",,\"&$B545&\",\",data[],7),BB$501)))","v":318.14227153381154},null,null,{"$f":"IF(BE$2=\"\",0,IF(NOT(BE57),0,IF(\"CAPEX,\"&BE$2&\",,\"&$B545&\",\"=VLOOKUP(\"CAPEX,\"&BE$2&\",,\"&$B545&\",\",data[],1),VLOOKUP(\"CAPEX,\"&BE$2&\",,\"&$B545&\",\",data[],7),BE$501)))","v":0}]
[null,"MAR-DAK",null,null,null,null,null,null,null,null,{"$f":"IF(\"CAPEX,\"&$K58&\",,\"&$B546&\",\"=VLOOKUP(\"CAPEX,\"&$K58&\",,\"&$B546&\",\",data[],1),VLOOKUP(\"CAPEX,\"&$K58&\",,\"&$B546&\",\",data[],7),INDEX($E$501:$I$501,$J58))","v":1229.1954260584585},null,null,null,null,null,{"$f":"IF(\"CAPEX,\"&Q$2&\",,\"&$B546&\",\"=VLOOKUP(\"CAPEX,\"&Q$2&\",,\"&$B546&\",\",data[],1),VLOOKUP(\"CAPEX,\"&Q$2&\",,\"&$B546&\",\",data[],7),Q$501)","v":650.6426539852938},null,{"$f":"IF(\"CAPEX,\"&S$2&\",,\"&$B546&\",\"=VLOOKUP(\"CAPEX,\"&S$2&\",,\"&$B546&\",\",data[],1),VLOOKUP(\"CAPEX,\"&S$2&\",,\"&$B546&\",\",data[],7),S$501)","v":2.3667276243093918E-3},null,null,null,null,{"$f":"IF(X$2=\"\",0,IF(\"CAPEX,\"&X$2&\",,\"&$B546&\",\"=VLOOKUP(\"CAPEX,\"&X$2&\",,\"&$B546&\",\",data[],1),VLOOKUP(\"CAPEX,\"&X$2&\",,\"&$B546&\",\",data[],7),X$501))","v":0},null,{"$f":"IF(\"CAPEX,\"&Z$2&\",,\"&$B546&\",\"=VLOOKUP(\"CAPEX,\"&Z$2&\",,\"&$B546&\",\",data[],1),VLOOKUP(\"CAPEX,\"&Z$2&\",,\"&$B546&\",\",data[],7),Z$501)","v":2.3667276243093918E-3},null,null,null,{"$f":"IF(\"CAPEX,\"&AD$2&\",,\"&$B546&\",\"=VLOOKUP(\"CAPEX,\"&AD$2&\",,\"&$B546&\",\",data[],1),VLOOKUP(\"CAPEX,\"&AD$2&\",,\"&$B546&\",\",data[],7),AD$501)","v":1.0377410418368698},null,null,null,null,null,null,{"$f":"IF(AK$2=\"\",0,IF(\"CAPEX,\"&AK$2&\",,\"&$B546&\",\"=VLOOKUP(\"CAPEX,\"&AK$2&\",,\"&$B546&\",\",data[],1),VLOOKUP(\"CAPEX,\"&AK$2&\",,\"&$B546&\",\",data[],7),AK$501))","v":1457.3621055108172},null,{"$f":"IF(AM$2=\"\",0,IF(\"CAPEX,\"&AM$2&\",,\"&$B546&\",\"=VLOOKUP(\"CAPEX,\"&AM$2&\",,\"&$B546&\",\",data[],1),VLOOKUP(\"CAPEX,\"&AM$2&\",,\"&$B546&\",\",data[],7),AM$501))","v":144.49043833783671},null,null,null,null,null,null,null,null,null,null,null,null,null,null,{"$f":"IF(BB$2=\"\",0,IF(NOT(BB58),0,IF(\"CAPEX,\"&BB$2&\",,\"&$B546&\",\"=VLOOKUP(\"CAPEX,\"&BB$2&\",,\"&$B546&\",\",data[],1),VLOOKUP(\"CAPEX,\"&BB$2&\",,\"&$B546&\",\",data[],7),BB$501)))","v":318.14227153381154},null,null,{"$f":"IF(BE$2=\"\",0,IF(NOT(BE58),0,IF(\"CAPEX,\"&BE$2&\",,\"&$B546&\",\"=VLOOKUP(\"CAPEX,\"&BE$2&\",,\"&$B546&\",\",data[],1),VLOOKUP(\"CAPEX,\"&BE$2&\",,\"&$B546&\",\",data[],7),BE$501)))","v":0}]
[null,"MAR-DRA",null,null,null,null,null,null,null,null,{"$f":"IF(\"CAPEX,\"&$K59&\",,\"&$B547&\",\"=VLOOKUP(\"CAPEX,\"&$K59&\",,\"&$B547&\",\",data[],1),VLOOKUP(\"CAPEX,\"&$K59&\",,\"&$B547&\",\",data[],7),INDEX($E$501:$I$501,$J59))","v":1229.1954260584585},null,null,null,null,null,{"$f":"IF(\"CAPEX,\"&Q$2&\",,\"&$B547&\",\"=VLOOKUP(\"CAPEX,\"&Q$2&\",,\"&$B547&\",\",data[],1),VLOOKUP(\"CAPEX,\"&Q$2&\",,\"&$B547&\",\",data[],7),Q$501)","v":650.6426539852938},null,{"$f":"IF(\"CAPEX,\"&S$2&\",,\"&$B547&\",\"=VLOOKUP(\"CAPEX,\"&S$2&\",,\"&$B547&\",\",data[],1),VLOOKUP(\"CAPEX,\"&S$2&\",,\"&$B547&\",\",data[],7),S$501)","v":2.3667276243093918E-3},null,null,null,null,{"$f":"IF(X$2=\"\",0,IF(\"CAPEX,\"&X$2&\",,\"&$B547&\",\"=VLOOKUP(\"CAPEX,\"&X$2&\",,\"&$B547&\",\",data[],1),VLOOKUP(\"CAPEX,\"&X$2&\",,\"&$B547&\",\",data[],7),X$501))","v":0},null,{"$f":"IF(\"CAPEX,\"&Z$2&\",,\"&$B547&\",\"=VLOOKUP(\"CAPEX,\"&Z$2&\",,\"&$B547&\",\",data[],1),VLOOKUP(\"CAPEX,\"&Z$2&\",,\"&$B547&\",\",data[],7),Z$501)","v":2.3667276243093918E-3},null,null,null,{"$f":"IF(\"CAPEX,\"&AD$2&\",,\"&$B547&\",\"=VLOOKUP(\"CAPEX,\"&AD$2&\",,\"&$B547&\",\",data[],1),VLOOKUP(\"CAPEX,\"&AD$2&\",,\"&$B547&\",\",data[],7),AD$501)","v":1.0377410418368698},null,null,null,null,null,null,{"$f":"IF(AK$2=\"\",0,IF(\"CAPEX,\"&AK$2&\",,\"&$B547&\",\"=VLOOKUP(\"CAPEX,\"&AK$2&\",,\"&$B547&\",\",data[],1),VLOOKUP(\"CAPEX,\"&AK$2&\",,\"&$B547&\",\",data[],7),AK$501))","v":1457.3621055108172},null,{"$f":"IF(AM$2=\"\",0,IF(\"CAPEX,\"&AM$2&\",,\"&$B547&\",\"=VLOOKUP(\"CAPEX,\"&AM$2&\",,\"&$B547&\",\",data[],1),VLOOKUP(\"CAPEX,\"&AM$2&\",,\"&$B547&\",\",data[],7),AM$501))","v":144.49043833783671},null,null,null,null,null,null,null,null,null,null,null,null,null,null,{"$f":"IF(BB$2=\"\",0,IF(NOT(BB59),0,IF(\"CAPEX,\"&BB$2&\",,\"&$B547&\",\"=VLOOKUP(\"CAPEX,\"&BB$2&\",,\"&$B547&\",\",data[],1),VLOOKUP(\"CAPEX,\"&BB$2&\",,\"&$B547&\",\",data[],7),BB$501)))","v":318.14227153381154},null,null,{"$f":"IF(BE$2=\"\",0,IF(NOT(BE59),0,IF(\"CAPEX,\"&BE$2&\",,\"&$B547&\",\"=VLOOKUP(\"CAPEX,\"&BE$2&\",,\"&$B547&\",\",data[],1),VLOOKUP(\"CAPEX,\"&BE$2&\",,\"&$B547&\",\",data[],7),BE$501)))","v":0}]
[null,"MAR-FES",null,null,null,null,null,null,null,null,{"$f":"IF(\"CAPEX,\"&$K60&\",,\"&$B548&\",\"=VLOOKUP(\"CAPEX,\"&$K60&\",,\"&$B548&\",\",data[],1),VLOOKUP(\"CAPEX,\"&$K60&\",,\"&$B548&\",\",data[],7),INDEX($E$501:$I$501,$J60))","v":1229.1954260584585},null,null,null,null,null,{"$f":"IF(\"CAPEX,\"&Q$2&\",,\"&$B548&\",\"=VLOOKUP(\"CAPEX,\"&Q$2&\",,\"&$B548&\",\",data[],1),VLOOKUP(\"CAPEX,\"&Q$2&\",,\"&$B548&\",\",data[],7),Q$501)","v":650.6426539852938},null,{"$f":"IF(\"CAPEX,\"&S$2&\",,\"&$B548&\",\"=VLOOKUP(\"CAPEX,\"&S$2&\",,\"&$B548&\",\",data[],1),VLOOKUP(\"CAPEX,\"&S$2&\",,\"&$B548&\",\",data[],7),S$501)","v":2.3667276243093918E-3},null,null,null,null,{"$f":"IF(X$2=\"\",0,IF(\"CAPEX,\"&X$2&\",,\"&$B548&\",\"=VLOOKUP(\"CAPEX,\"&X$2&\",,\"&$B548&\",\",data[],1),VLOOKUP(\"CAPEX,\"&X$2&\",,\"&$B548&\",\",data[],7),X$501))","v":0},null,{"$f":"IF(\"CAPEX,\"&Z$2&\",,\"&$B548&\",\"=VLOOKUP(\"CAPEX,\"&Z$2&\",,\"&$B548&\",\",data[],1),VLOOKUP(\"CAPEX,\"&Z$2&\",,\"&$B548&\",\",data[],7),Z$501)","v":2.3667276243093918E-3},null,null,null,{"$f":"IF(\"CAPEX,\"&AD$2&\",,\"&$B548&\",\"=VLOOKUP(\"CAPEX,\"&AD$2&\",,\"&$B548&\",\",data[],1),VLOOKUP(\"CAPEX,\"&AD$2&\",,\"&$B548&\",\",data[],7),AD$501)","v":1.0377410418368698},null,null,null,null,null,null,{"$f":"IF(AK$2=\"\",0,IF(\"CAPEX,\"&AK$2&\",,\"&$B548&\",\"=VLOOKUP(\"CAPEX,\"&AK$2&\",,\"&$B548&\",\",data[],1),VLOOKUP(\"CAPEX,\"&AK$2&\",,\"&$B548&\",\",data[],7),AK$501))","v":1457.3621055108172},null,{"$f":"IF(AM$2=\"\",0,IF(\"CAPEX,\"&AM$2&\",,\"&$B548&\",\"=VLOOKUP(\"CAPEX,\"&AM$2&\",,\"&$B548&\",\",data[],1),VLOOKUP(\"CAPEX,\"&AM$2&\",,\"&$B548&\",\",data[],7),AM$501))","v":144.49043833783671},null,null,null,null,null,null,null,null,null,null,null,null,null,null,{"$f":"IF(BB$2=\"\",0,IF(NOT(BB60),0,IF(\"CAPEX,\"&BB$2&\",,\"&$B548&\",\"=VLOOKUP(\"CAPEX,\"&BB$2&\",,\"&$B548&\",\",data[],1),VLOOKUP(\"CAPEX,\"&BB$2&\",,\"&$B548&\",\",data[],7),BB$501)))","v":318.14227153381154},null,null,{"$f":"IF(BE$2=\"\",0,IF(NOT(BE60),0,IF(\"CAPEX,\"&BE$2&\",,\"&$B548&\",\"=VLOOKUP(\"CAPEX,\"&BE$2&\",,\"&$B548&\",\",data[],1),VLOOKUP(\"CAPEX,\"&BE$2&\",,\"&$B548&\",\",data[],7),BE$501)))","v":0}]
[null,"MAR-GUE",null,null,null,null,null,null,null,null,{"$f":"IF(\"CAPEX,\"&$K61&\",,\"&$B549&\",\"=VLOOKUP(\"CAPEX,\"&$K61&\",,\"&$B549&\",\",data[],1),VLOOKUP(\"CAPEX,\"&$K61&\",,\"&$B549&\",\",data[],7),INDEX($E$501:$I$501,$J61))","v":1229.1954260584585},null,null,null,null,null,{"$f":"IF(\"CAPEX,\"&Q$2&\",,\"&$B549&\",\"=VLOOKUP(\"CAPEX,\"&Q$2&\",,\"&$B549&\",\",data[],1),VLOOKUP(\"CAPEX,\"&Q$2&\",,\"&$B549&\",\",data[],7),Q$501)","v":650.6426539852938},null,{"$f":"IF(\"CAPEX,\"&S$2&\",,\"&$B549&\",\"=VLOOKUP(\"CAPEX,\"&S$2&\",,\"&$B549&\",\",data[],1),VLOOKUP(\"CAPEX,\"&S$2&\",,\"&$B549&\",\",data[],7),S$501)","v":2.3667276243093918E-3},null,null,null,null,{"$f":"IF(X$2=\"\",0,IF(\"CAPEX,\"&X$2&\",,\"&$B549&\",\"=VLOOKUP(\"CAPEX,\"&X$2&\",,\"&$B549&\",\",data[],1),VLOOKUP(\"CAPEX,\"&X$2&\",,\"&$B549&\",\",data[],7),X$501))","v":0},null,{"$f":"IF(\"CAPEX,\"&Z$2&\",,\"&$B549&\",\"=VLOOKUP(\"CAPEX,\"&Z$2&\",,\"&$B549&\",\",data[],1),VLOOKUP(\"CAPEX,\"&Z$2&\",,\"&$B549&\",\",data[],7),Z$501)","v":2.3667276243093918E-3},null,null,null,{"$f":"IF(\"CAPEX,\"&AD$2&\",,\"&$B549&\",\"=VLOOKUP(\"CAPEX,\"&AD$2&\",,\"&$B549&\",\",data[],1),VLOOKUP(\"CAPEX,\"&AD$2&\",,\"&$B549&\",\",data[],7),AD$501)","v":1.0377410418368698},null,null,null,null,null,null,{"$f":"IF(AK$2=\"\",0,IF(\"CAPEX,\"&AK$2&\",,\"&$B549&\",\"=VLOOKUP(\"CAPEX,\"&AK$2&\",,\"&$B549&\",\",data[],1),VLOOKUP(\"CAPEX,\"&AK$2&\",,\"&$B549&\",\",data[],7),AK$501))","v":1457.3621055108172},null,{"$f":"IF(AM$2=\"\",0,IF(\"CAPEX,\"&AM$2&\",,\"&$B549&\",\"=VLOOKUP(\"CAPEX,\"&AM$2&\",,\"&$B549&\",\",data[],1),VLOOKUP(\"CAPEX,\"&AM$2&\",,\"&$B549&\",\",data[],7),AM$501))","v":144.49043833783671},null,null,null,null,null,null,null,null,null,null,null,null,null,null,{"$f":"IF(BB$2=\"\",0,IF(NOT(BB61),0,IF(\"CAPEX,\"&BB$2&\",,\"&$B549&\",\"=VLOOKUP(\"CAPEX,\"&BB$2&\",,\"&$B549&\",\",data[],1),VLOOKUP(\"CAPEX,\"&BB$2&\",,\"&$B549&\",\",data[],7),BB$501)))","v":318.14227153381154},null,null,{"$f":"IF(BE$2=\"\",0,IF(NOT(BE61),0,IF(\"CAPEX,\"&BE$2&\",,\"&$B549&\",\"=VLOOKUP(\"CAPEX,\"&BE$2&\",,\"&$B549&\",\",data[],1),VLOOKUP(\"CAPEX,\"&BE$2&\",,\"&$B549&\",\",data[],7),BE$501)))","v":0}]
[null,"MAR-LAA",null,null,null,null,null,null,null,null,{"$f":"IF(\"CAPEX,\"&$K62&\",,\"&$B550&\",\"=VLOOKUP(\"CAPEX,\"&$K62&\",,\"&$B550&\",\",data[],1),VLOOKUP(\"CAPEX,\"&$K62&\",,\"&$B550&\",\",data[],7),INDEX($E$501:$I$501,$J62))","v":1229.1954260584585},null,null,null,null,null,{"$f":"IF(\"CAPEX,\"&Q$2&\",,\"&$B550&\",\"=VLOOKUP(\"CAPEX,\"&Q$2&\",,\"&$B550&\",\",data[],1),VLOOKUP(\"CAPEX,\"&Q$2&\",,\"&$B550&\",\",data[],7),Q$501)","v":650.6426539852938},null,{"$f":"IF(\"CAPEX,\"&S$2&\",,\"&$B550&\",\"=VLOOKUP(\"CAPEX,\"&S$2&\",,\"&$B550&\",\",data[],1),VLOOKUP(\"CAPEX,\"&S$2&\",,\"&$B550&\",\",data[],7),S$501)","v":2.3667276243093918E-3},null,null,null,null,{"$f":"IF(X$2=\"\",0,IF(\"CAPEX,\"&X$2&\",,\"&$B550&\",\"=VLOOKUP(\"CAPEX,\"&X$2&\",,\"&$B550&\",\",data[],1),VLOOKUP(\"CAPEX,\"&X$2&\",,\"&$B550&\",\",data[],7),X$501))","v":0},null,{"$f":"IF(\"CAPEX,\"&Z$2&\",,\"&$B550&\",\"=VLOOKUP(\"CAPEX,\"&Z$2&\",,\"&$B550&\",\",data[],1),VLOOKUP(\"CAPEX,\"&Z$2&\",,\"&$B550&\",\",data[],7),Z$501)","v":2.3667276243093918E-3},null,null,null,{"$f":"IF(\"CAPEX,\"&AD$2&\",,\"&$B550&\",\"=VLOOKUP(\"CAPEX,\"&AD$2&\",,\"&$B550&\",\",data[],1),VLOOKUP(\"CAPEX,\"&AD$2&\",,\"&$B550&\",\",data[],7),AD$501)","v":1.0377410418368698},null,null,null,null,null,null,{"$f":"IF(AK$2=\"\",0,IF(\"CAPEX,\"&AK$2&\",,\"&$B550&\",\"=VLOOKUP(\"CAPEX,\"&AK$2&\",,\"&$B550&\",\",data[],1),VLOOKUP(\"CAPEX,\"&AK$2&\",,\"&$B550&\",\",data[],7),AK$501))","v":1457.3621055108172},null,{"$f":"IF(AM$2=\"\",0,IF(\"CAPEX,\"&AM$2&\",,\"&$B550&\",\"=VLOOKUP(\"CAPEX,\"&AM$2&\",,\"&$B550&\",\",data[],1),VLOOKUP(\"CAPEX,\"&AM$2&\",,\"&$B550&\",\",data[],7),AM$501))","v":144.49043833783671},null,null,null,null,null,null,null,null,null,null,null,null,null,null,{"$f":"IF(BB$2=\"\",0,IF(NOT(BB62),0,IF(\"CAPEX,\"&BB$2&\",,\"&$B550&\",\"=VLOOKUP(\"CAPEX,\"&BB$2&\",,\"&$B550&\",\",data[],1),VLOOKUP(\"CAPEX,\"&BB$2&\",,\"&$B550&\",\",data[],7),BB$501)))","v":318.14227153381154},null,null,{"$f":"IF(BE$2=\"\",0,IF(NOT(BE62),0,IF(\"CAPEX,\"&BE$2&\",,\"&$B550&\",\"=VLOOKUP(\"CAPEX,\"&BE$2&\",,\"&$B550&\",\",data[],1),VLOOKUP(\"CAPEX,\"&BE$2&\",,\"&$B550&\",\",data[],7),BE$501)))","v":0}]
[null,"MAR-LOR",null,null,null,null,null,null,null,null,{"$f":"IF(\"CAPEX,\"&$K63&\",,\"&$B551&\",\"=VLOOKUP(\"CAPEX,\"&$K63&\",,\"&$B551&\",\",data[],1),VLOOKUP(\"CAPEX,\"&$K63&\",,\"&$B551&\",\",data[],7),INDEX($E$501:$I$501,$J63))","v":1229.1954260584585},null,null,null,null,null,{"$f":"IF(\"CAPEX,\"&Q$2&\",,\"&$B551&\",\"=VLOOKUP(\"CAPEX,\"&Q$2&\",,\"&$B551&\",\",data[],1),VLOOKUP(\"CAPEX,\"&Q$2&\",,\"&$B551&\",\",data[],7),Q$501)","v":650.6426539852938},null,{"$f":"IF(\"CAPEX,\"&S$2&\",,\"&$B551&\",\"=VLOOKUP(\"CAPEX,\"&S$2&\",,\"&$B551&\",\",data[],1),VLOOKUP(\"CAPEX,\"&S$2&\",,\"&$B551&\",\",data[],7),S$501)","v":2.3667276243093918E-3},null,null,null,null,{"$f":"IF(X$2=\"\",0,IF(\"CAPEX,\"&X$2&\",,\"&$B551&\",\"=VLOOKUP(\"CAPEX,\"&X$2&\",,\"&$B551&\",\",data[],1),VLOOKUP(\"CAPEX,\"&X$2&\",,\"&$B551&\",\",data[],7),X$501))","v":0},null,{"$f":"IF(\"CAPEX,\"&Z$2&\",,\"&$B551&\",\"=VLOOKUP(\"CAPEX,\"&Z$2&\",,\"&$B551&\",\",data[],1),VLOOKUP(\"CAPEX,\"&Z$2&\",,\"&$B551&\",\",data[],7),Z$501)","v":2.3667276243093918E-3},null,null,null,{"$f":"IF(\"CAPEX,\"&AD$2&\",,\"&$B551&\",\"=VLOOKUP(\"CAPEX,\"&AD$2&\",,\"&$B551&\",\",data[],1),VLOOKUP(\"CAPEX,\"&AD$2&\",,\"&$B551&\",\",data[],7),AD$501)","v":1.0377410418368698},null,null,null,null,null,null,{"$f":"IF(AK$2=\"\",0,IF(\"CAPEX,\"&AK$2&\",,\"&$B551&\",\"=VLOOKUP(\"CAPEX,\"&AK$2&\",,\"&$B551&\",\",data[],1),VLOOKUP(\"CAPEX,\"&AK$2&\",,\"&$B551&\",\",data[],7),AK$501))","v":1457.3621055108172},null,{"$f":"IF(AM$2=\"\",0,IF(\"CAPEX,\"&AM$2&\",,\"&$B551&\",\"=VLOOKUP(\"CAPEX,\"&AM$2&\",,\"&$B551&\",\",data[],1),VLOOKUP(\"CAPEX,\"&AM$2&\",,\"&$B551&\",\",data[],7),AM$501))","v":144.49043833783671},null,null,null,null,null,null,null,null,null,null,null,null,null,null,{"$f":"IF(BB$2=\"\",0,IF(NOT(BB63),0,IF(\"CAPEX,\"&BB$2&\",,\"&$B551&\",\"=VLOOKUP(\"CAPEX,\"&BB$2&\",,\"&$B551&\",\",data[],1),VLOOKUP(\"CAPEX,\"&BB$2&\",,\"&$B551&\",\",data[],7),BB$501)))","v":318.14227153381154},null,null,{"$f":"IF(BE$2=\"\",0,IF(NOT(BE63),0,IF(\"CAPEX,\"&BE$2&\",,\"&$B551&\",\"=VLOOKUP(\"CAPEX,\"&BE$2&\",,\"&$B551&\",\",data[],1),VLOOKUP(\"CAPEX,\"&BE$2&\",,\"&$B551&\",\",data[],7),BE$501)))","v":0}]
[null,"MAR-MAR",null,null,null,null,null,null,null,null,{"$f":"IF(\"CAPEX,\"&$K64&\",,\"&$B552&\",\"=VLOOKUP(\"CAPEX,\"&$K64&\",,\"&$B552&\",\",data[],1),VLOOKUP(\"CAPEX,\"&$K64&\",,\"&$B552&\",\",data[],7),INDEX($E$501:$I$501,$J64))","v":1229.1954260584585},null,null,null,null,null,{"$f":"IF(\"CAPEX,\"&Q$2&\",,\"&$B552&\",\"=VLOOKUP(\"CAPEX,\"&Q$2&\",,\"&$B552&\",\",data[],1),VLOOKUP(\"CAPEX,\"&Q$2&\",,\"&$B552&\",\",data[],7),Q$501)","v":650.6426539852938},null,{"$f":"IF(\"CAPEX,\"&S$2&\",,\"&$B552&\",\"=VLOOKUP(\"CAPEX,\"&S$2&\",,\"&$B552&\",\",data[],1),VLOOKUP(\"CAPEX,\"&S$2&\",,\"&$B552&\",\",data[],7),S$501)","v":2.3667276243093918E-3},null,null,null,null,{"$f":"IF(X$2=\"\",0,IF(\"CAPEX,\"&X$2&\",,\"&$B552&\",\"=VLOOKUP(\"CAPEX,\"&X$2&\",,\"&$B552&\",\",data[],1),VLOOKUP(\"CAPEX,\"&X$2&\",,\"&$B552&\",\",data[],7),X$501))","v":0},null,{"$f":"IF(\"CAPEX,\"&Z$2&\",,\"&$B552&\",\"=VLOOKUP(\"CAPEX,\"&Z$2&\",,\"&$B552&\",\",data[],1),VLOOKUP(\"CAPEX,\"&Z$2&\",,\"&$B552&\",\",data[],7),Z$501)","v":2.3667276243093918E-3},null,null,null,{"$f":"IF(\"CAPEX,\"&AD$2&\",,\"&$B552&\",\"=VLOOKUP(\"CAPEX,\"&AD$2&\",,\"&$B552&\",\",data[],1),VLOOKUP(\"CAPEX,\"&AD$2&\",,\"&$B552&\",\",data[],7),AD$501)","v":1.0377410418368698},null,null,null,null,null,null,{"$f":"IF(AK$2=\"\",0,IF(\"CAPEX,\"&AK$2&\",,\"&$B552&\",\"=VLOOKUP(\"CAPEX,\"&AK$2&\",,\"&$B552&\",\",data[],1),VLOOKUP(\"CAPEX,\"&AK$2&\",,\"&$B552&\",\",data[],7),AK$501))","v":1457.3621055108172},null,{"$f":"IF(AM$2=\"\",0,IF(\"CAPEX,\"&AM$2&\",,\"&$B552&\",\"=VLOOKUP(\"CAPEX,\"&AM$2&\",,\"&$B552&\",\",data[],1),VLOOKUP(\"CAPEX,\"&AM$2&\",,\"&$B552&\",\",data[],7),AM$501))","v":144.49043833783671},null,null,null,null,null,null,null,null,null,null,null,null,null,null,{"$f":"IF(BB$2=\"\",0,IF(NOT(BB64),0,IF(\"CAPEX,\"&BB$2&\",,\"&$B552&\",\"=VLOOKUP(\"CAPEX,\"&BB$2&\",,\"&$B552&\",\",data[],1),VLOOKUP(\"CAPEX,\"&BB$2&\",,\"&$B552&\",\",data[],7),BB$501)))","v":318.14227153381154},null,null,{"$f":"IF(BE$2=\"\",0,IF(NOT(BE64),0,IF(\"CAPEX,\"&BE$2&\",,\"&$B552&\",\"=VLOOKUP(\"CAPEX,\"&BE$2&\",,\"&$B552&\",\",data[],1),VLOOKUP(\"CAPEX,\"&BE$2&\",,\"&$B552&\",\",data[],7),BE$501)))","v":0}]
[null,"MAR-RAB",null,null,null,null,null,null,null,null,{"$f":"IF(\"CAPEX,\"&$K65&\",,\"&$B553&\",\"=VLOOKUP(\"CAPEX,\"&$K65&\",,\"&$B553&\",\",data[],1),VLOOKUP(\"CAPEX,\"&$K65&\",,\"&$B553&\",\",data[],7),INDEX($E$501:$I$501,$J65))","v":1229.1954260584585},null,null,null,null,null,{"$f":"IF(\"CAPEX,\"&Q$2&\",,\"&$B553&\",\"=VLOOKUP(\"CAPEX,\"&Q$2&\",,\"&$B553&\",\",data[],1),VLOOKUP(\"CAPEX,\"&Q$2&\",,\"&$B553&\",\",data[],7),Q$501)","v":650.6426539852938},null,{"$f":"IF(\"CAPEX,\"&S$2&\",,\"&$B553&\",\"=VLOOKUP(\"CAPEX,\"&S$2&\",,\"&$B553&\",\",data[],1),VLOOKUP(\"CAPEX,\"&S$2&\",,\"&$B553&\",\",data[],7),S$501)","v":2.3667276243093918E-3},null,null,null,null,{"$f":"IF(X$2=\"\",0,IF(\"CAPEX,\"&X$2&\",,\"&$B553&\",\"=VLOOKUP(\"CAPEX,\"&X$2&\",,\"&$B553&\",\",data[],1),VLOOKUP(\"CAPEX,\"&X$2&\",,\"&$B553&\",\",data[],7),X$501))","v":0},null,{"$f":"IF(\"CAPEX,\"&Z$2&\",,\"&$B553&\",\"=VLOOKUP(\"CAPEX,\"&Z$2&\",,\"&$B553&\",\",data[],1),VLOOKUP(\"CAPEX,\"&Z$2&\",,\"&$B553&\",\",data[],7),Z$501)","v":2.3667276243093918E-3},null,null,null,{"$f":"IF(\"CAPEX,\"&AD$2&\",,\"&$B553&\",\"=VLOOKUP(\"CAPEX,\"&AD$2&\",,\"&$B553&\",\",data[],1),VLOOKUP(\"CAPEX,\"&AD$2&\",,\"&$B553&\",\",data[],7),AD$501)","v":1.0377410418368698},null,null,null,null,null,null,{"$f":"IF(AK$2=\"\",0,IF(\"CAPEX,\"&AK$2&\",,\"&$B553&\",\"=VLOOKUP(\"CAPEX,\"&AK$2&\",,\"&$B553&\",\",data[],1),VLOOKUP(\"CAPEX,\"&AK$2&\",,\"&$B553&\",\",data[],7),AK$501))","v":1457.3621055108172},null,{"$f":"IF(AM$2=\"\",0,IF(\"CAPEX,\"&AM$2&\",,\"&$B553&\",\"=VLOOKUP(\"CAPEX,\"&AM$2&\",,\"&$B553&\",\",data[],1),VLOOKUP(\"CAPEX,\"&AM$2&\",,\"&$B553&\",\",data[],7),AM$501))","v":144.49043833783671},null,null,null,null,null,null,null,null,null,null,null,null,null,null,{"$f":"IF(BB$2=\"\",0,IF(NOT(BB65),0,IF(\"CAPEX,\"&BB$2&\",,\"&$B553&\",\"=VLOOKUP(\"CAPEX,\"&BB$2&\",,\"&$B553&\",\",data[],1),VLOOKUP(\"CAPEX,\"&BB$2&\",,\"&$B553&\",\",data[],7),BB$501)))","v":318.14227153381154},null,null,{"$f":"IF(BE$2=\"\",0,IF(NOT(BE65),0,IF(\"CAPEX,\"&BE$2&\",,\"&$B553&\",\"=VLOOKUP(\"CAPEX,\"&BE$2&\",,\"&$B553&\",\",data[],1),VLOOKUP(\"CAPEX,\"&BE$2&\",,\"&$B553&\",\",data[],7),BE$501)))","v":0}]
[null,"MAR-SOU",null,null,null,null,null,null,null,null,{"$f":"IF(\"CAPEX,\"&$K66&\",,\"&$B554&\",\"=VLOOKUP(\"CAPEX,\"&$K66&\",,\"&$B554&\",\",data[],1),VLOOKUP(\"CAPEX,\"&$K66&\",,\"&$B554&\",\",data[],7),INDEX($E$501:$I$501,$J66))","v":1229.1954260584585},null,null,null,null,null,{"$f":"IF(\"CAPEX,\"&Q$2&\",,\"&$B554&\",\"=VLOOKUP(\"CAPEX,\"&Q$2&\",,\"&$B554&\",\",data[],1),VLOOKUP(\"CAPEX,\"&Q$2&\",,\"&$B554&\",\",data[],7),Q$501)","v":650.6426539852938},null,{"$f":"IF(\"CAPEX,\"&S$2&\",,\"&$B554&\",\"=VLOOKUP(\"CAPEX,\"&S$2&\",,\"&$B554&\",\",data[],1),VLOOKUP(\"CAPEX,\"&S$2&\",,\"&$B554&\",\",data[],7),S$501)","v":2.3667276243093918E-3},null,null,null,null,{"$f":"IF(X$2=\"\",0,IF(\"CAPEX,\"&X$2&\",,\"&$B554&\",\"=VLOOKUP(\"CAPEX,\"&X$2&\",,\"&$B554&\",\",data[],1),VLOOKUP(\"CAPEX,\"&X$2&\",,\"&$B554&\",\",data[],7),X$501))","v":0},null,{"$f":"IF(\"CAPEX,\"&Z$2&\",,\"&$B554&\",\"=VLOOKUP(\"CAPEX,\"&Z$2&\",,\"&$B554&\",\",data[],1),VLOOKUP(\"CAPEX,\"&Z$2&\",,\"&$B554&\",\",data[],7),Z$501)","v":2.3667276243093918E-3},null,null,null,{"$f":"IF(\"CAPEX,\"&AD$2&\",,\"&$B554&\",\"=VLOOKUP(\"CAPEX,\"&AD$2&\",,\"&$B554&\",\",data[],1),VLOOKUP(\"CAPEX,\"&AD$2&\",,\"&$B554&\",\",data[],7),AD$501)","v":1.0377410418368698},null,null,null,null,null,null,{"$f":"IF(AK$2=\"\",0,IF(\"CAPEX,\"&AK$2&\",,\"&$B554&\",\"=VLOOKUP(\"CAPEX,\"&AK$2&\",,\"&$B554&\",\",data[],1),VLOOKUP(\"CAPEX,\"&AK$2&\",,\"&$B554&\",\",data[],7),AK$501))","v":1457.3621055108172},null,{"$f":"IF(AM$2=\"\",0,IF(\"CAPEX,\"&AM$2&\",,\"&$B554&\",\"=VLOOKUP(\"CAPEX,\"&AM$2&\",,\"&$B554&\",\",data[],1),VLOOKUP(\"CAPEX,\"&AM$2&\",,\"&$B554&\",\",data[],7),AM$501))","v":144.49043833783671},null,null,null,null,null,null,null,null,null,null,null,null,null,null,{"$f":"IF(BB$2=\"\",0,IF(NOT(BB66),0,IF(\"CAPEX,\"&BB$2&\",,\"&$B554&\",\"=VLOOKUP(\"CAPEX,\"&BB$2&\",,\"&$B554&\",\",data[],1),VLOOKUP(\"CAPEX,\"&BB$2&\",,\"&$B554&\",\",data[],7),BB$501)))","v":318.14227153381154},null,null,{"$f":"IF(BE$2=\"\",0,IF(NOT(BE66),0,IF(\"CAPEX,\"&BE$2&\",,\"&$B554&\",\"=VLOOKUP(\"CAPEX,\"&BE$2&\",,\"&$B554&\",\",data[],1),VLOOKUP(\"CAPEX,\"&BE$2&\",,\"&$B554&\",\",data[],7),BE$501)))","v":0}]
[null,"MAR-TAN",null,null,null,null,null,null,null,null,{"$f":"IF(\"CAPEX,\"&$K67&\",,\"&$B555&\",\"=VLOOKUP(\"CAPEX,\"&$K67&\",,\"&$B555&\",\",data[],1),VLOOKUP(\"CAPEX,\"&$K67&\",,\"&$B555&\",\",data[],7),INDEX($E$501:$I$501,$J67))","v":1229.1954260584585},null,null,null,null,null,{"$f":"IF(\"CAPEX,\"&Q$2&\",,\"&$B555&\",\"=VLOOKUP(\"CAPEX,\"&Q$2&\",,\"&$B555&\",\",data[],1),VLOOKUP(\"CAPEX,\"&Q$2&\",,\"&$B555&\",\",data[],7),Q$501)","v":650.6426539852938},null,{"$f":"IF(\"CAPEX,\"&S$2&\",,\"&$B555&\",\"=VLOOKUP(\"CAPEX,\"&S$2&\",,\"&$B555&\",\",data[],1),VLOOKUP(\"CAPEX,\"&S$2&\",,\"&$B555&\",\",data[],7),S$501)","v":2.3667276243093918E-3},null,null,null,null,{"$f":"IF(X$2=\"\",0,IF(\"CAPEX,\"&X$2&\",,\"&$B555&\",\"=VLOOKUP(\"CAPEX,\"&X$2&\",,\"&$B555&\",\",data[],1),VLOOKUP(\"CAPEX,\"&X$2&\",,\"&$B555&\",\",data[],7),X$501))","v":0},null,{"$f":"IF(\"CAPEX,\"&Z$2&\",,\"&$B555&\",\"=VLOOKUP(\"CAPEX,\"&Z$2&\",,\"&$B555&\",\",data[],1),VLOOKUP(\"CAPEX,\"&Z$2&\",,\"&$B555&\",\",data[],7),Z$501)","v":2.3667276243093918E-3},null,null,null,{"$f":"IF(\"CAPEX,\"&AD$2&\",,\"&$B555&\",\"=VLOOKUP(\"CAPEX,\"&AD$2&\",,\"&$B555&\",\",data[],1),VLOOKUP(\"CAPEX,\"&AD$2&\",,\"&$B555&\",\",data[],7),AD$501)","v":1.0377410418368698},null,null,null,null,null,null,{"$f":"IF(AK$2=\"\",0,IF(\"CAPEX,\"&AK$2&\",,\"&$B555&\",\"=VLOOKUP(\"CAPEX,\"&AK$2&\",,\"&$B555&\",\",data[],1),VLOOKUP(\"CAPEX,\"&AK$2&\",,\"&$B555&\",\",data[],7),AK$501))","v":1457.3621055108172},null,{"$f":"IF(AM$2=\"\",0,IF(\"CAPEX,\"&AM$2&\",,\"&$B555&\",\"=VLOOKUP(\"CAPEX,\"&AM$2&\",,\"&$B555&\",\",data[],1),VLOOKUP(\"CAPEX,\"&AM$2&\",,\"&$B555&\",\",data[],7),AM$501))","v":144.49043833783671},null,null,null,null,null,null,null,null,null,null,null,null,null,null,{"$f":"IF(BB$2=\"\",0,IF(NOT(BB67),0,IF(\"CAPEX,\"&BB$2&\",,\"&$B555&\",\"=VLOOKUP(\"CAPEX,\"&BB$2&\",,\"&$B555&\",\",data[],1),VLOOKUP(\"CAPEX,\"&BB$2&\",,\"&$B555&\",\",data[],7),BB$501)))","v":318.14227153381154},null,null,{"$f":"IF(BE$2=\"\",0,IF(NOT(BE67),0,IF(\"CAPEX,\"&BE$2&\",,\"&$B555&\",\"=VLOOKUP(\"CAPEX,\"&BE$2&\",,\"&$B555&\",\",data[],1),VLOOKUP(\"CAPEX,\"&BE$2&\",,\"&$B555&\",\",data[],7),BE$501)))","v":0}]
[null,"MEX",null,null,null,null,null,null,null,null,{"$f":"IF(\"CAPEX,\"&$K68&\",,\"&$B556&\",\"=VLOOKUP(\"CAPEX,\"&$K68&\",,\"&$B556&\",\",data[],1),VLOOKUP(\"CAPEX,\"&$K68&\",,\"&$B556&\",\",data[],7),INDEX($E$501:$I$501,$J68))","v":1059.9061510378335},null,null,null,null,null,{"$f":"IF(\"CAPEX,\"&Q$2&\",,\"&$B556&\",\"=VLOOKUP(\"CAPEX,\"&Q$2&\",,\"&$B556&\",\",data[],1),VLOOKUP(\"CAPEX,\"&Q$2&\",,\"&$B556&\",\",data[],7),Q$501)","v":650.6426539852938},null,{"$f":"IF(\"CAPEX,\"&S$2&\",,\"&$B556&\",\"=VLOOKUP(\"CAPEX,\"&S$2&\",,\"&$B556&\",\",data[],1),VLOOKUP(\"CAPEX,\"&S$2&\",,\"&$B556&\",\",data[],7),S$501)","v":2.3667276243093918E-3},null,null,null,null,{"$f":"IF(X$2=\"\",0,IF(\"CAPEX,\"&X$2&\",,\"&$B556&\",\"=VLOOKUP(\"CAPEX,\"&X$2&\",,\"&$B556&\",\",data[],1),VLOOKUP(\"CAPEX,\"&X$2&\",,\"&$B556&\",\",data[],7),X$501))","v":0},null,{"$f":"IF(\"CAPEX,\"&Z$2&\",,\"&$B556&\",\"=VLOOKUP(\"CAPEX,\"&Z$2&\",,\"&$B556&\",\",data[],1),VLOOKUP(\"CAPEX,\"&Z$2&\",,\"&$B556&\",\",data[],7),Z$501)","v":2.3667276243093918E-3},null,null,null,{"$f":"IF(\"CAPEX,\"&AD$2&\",,\"&$B556&\",\"=VLOOKUP(\"CAPEX,\"&AD$2&\",,\"&$B556&\",\",data[],1),VLOOKUP(\"CAPEX,\"&AD$2&\",,\"&$B556&\",\",data[],7),AD$501)","v":1.0377410418368698},null,null,null,null,null,null,{"$f":"IF(AK$2=\"\",0,IF(\"CAPEX,\"&AK$2&\",,\"&$B556&\",\"=VLOOKUP(\"CAPEX,\"&AK$2&\",,\"&$B556&\",\",data[],1),VLOOKUP(\"CAPEX,\"&AK$2&\",,\"&$B556&\",\",data[],7),AK$501))","v":1457.3621055108172},null,{"$f":"IF(AM$2=\"\",0,IF(\"CAPEX,\"&AM$2&\",,\"&$B556&\",\"=VLOOKUP(\"CAPEX,\"&AM$2&\",,\"&$B556&\",\",data[],1),VLOOKUP(\"CAPEX,\"&AM$2&\",,\"&$B556&\",\",data[],7),AM$501))","v":144.49043833783671},null,null,null,null,null,null,null,null,null,null,null,null,null,null,{"$f":"IF(BB$2=\"\",0,IF(NOT(BB68),0,IF(\"CAPEX,\"&BB$2&\",,\"&$B556&\",\"=VLOOKUP(\"CAPEX,\"&BB$2&\",,\"&$B556&\",\",data[],1),VLOOKUP(\"CAPEX,\"&BB$2&\",,\"&$B556&\",\",data[],7),BB$501)))","v":318.14227153381154},null,null,{"$f":"IF(BE$2=\"\",0,IF(NOT(BE68),0,IF(\"CAPEX,\"&BE$2&\",,\"&$B556&\",\"=VLOOKUP(\"CAPEX,\"&BE$2&\",,\"&$B556&\",\",data[],1),VLOOKUP(\"CAPEX,\"&BE$2&\",,\"&$B556&\",\",data[],7),BE$501)))","v":0}]
[null,"MRT",null,null,null,null,null,null,null,null,{"$f":"IF(\"CAPEX,\"&$K69&\",,\"&$B557&\",\"=VLOOKUP(\"CAPEX,\"&$K69&\",,\"&$B557&\",\",data[],1),VLOOKUP(\"CAPEX,\"&$K69&\",,\"&$B557&\",\",data[],7),INDEX($E$501:$I$501,$J69))","v":1298.5753742333741},null,null,null,null,null,{"$f":"IF(\"CAPEX,\"&Q$2&\",,\"&$B557&\",\"=VLOOKUP(\"CAPEX,\"&Q$2&\",,\"&$B557&\",\",data[],1),VLOOKUP(\"CAPEX,\"&Q$2&\",,\"&$B557&\",\",data[],7),Q$501)","v":650.6426539852938},null,{"$f":"IF(\"CAPEX,\"&S$2&\",,\"&$B557&\",\"=VLOOKUP(\"CAPEX,\"&S$2&\",,\"&$B557&\",\",data[],1),VLOOKUP(\"CAPEX,\"&S$2&\",,\"&$B557&\",\",data[],7),S$501)","v":2.3667276243093918E-3},null,null,null,null,{"$f":"IF(X$2=\"\",0,IF(\"CAPEX,\"&X$2&\",,\"&$B557&\",\"=VLOOKUP(\"CAPEX,\"&X$2&\",,\"&$B557&\",\",data[],1),VLOOKUP(\"CAPEX,\"&X$2&\",,\"&$B557&\",\",data[],7),X$501))","v":0},null,{"$f":"IF(\"CAPEX,\"&Z$2&\",,\"&$B557&\",\"=VLOOKUP(\"CAPEX,\"&Z$2&\",,\"&$B557&\",\",data[],1),VLOOKUP(\"CAPEX,\"&Z$2&\",,\"&$B557&\",\",data[],7),Z$501)","v":2.3667276243093918E-3},null,null,null,{"$f":"IF(\"CAPEX,\"&AD$2&\",,\"&$B557&\",\"=VLOOKUP(\"CAPEX,\"&AD$2&\",,\"&$B557&\",\",data[],1),VLOOKUP(\"CAPEX,\"&AD$2&\",,\"&$B557&\",\",data[],7),AD$501)","v":1.0377410418368698},null,null,null,null,null,null,{"$f":"IF(AK$2=\"\",0,IF(\"CAPEX,\"&AK$2&\",,\"&$B557&\",\"=VLOOKUP(\"CAPEX,\"&AK$2&\",,\"&$B557&\",\",data[],1),VLOOKUP(\"CAPEX,\"&AK$2&\",,\"&$B557&\",\",data[],7),AK$501))","v":1457.3621055108172},null,{"$f":"IF(AM$2=\"\",0,IF(\"CAPEX,\"&AM$2&\",,\"&$B557&\",\"=VLOOKUP(\"CAPEX,\"&AM$2&\",,\"&$B557&\",\",data[],1),VLOOKUP(\"CAPEX,\"&AM$2&\",,\"&$B557&\",\",data[],7),AM$501))","v":144.49043833783671},null,null,null,null,null,null,null,null,null,null,null,null,null,null,{"$f":"IF(BB$2=\"\",0,IF(NOT(BB69),0,IF(\"CAPEX,\"&BB$2&\",,\"&$B557&\",\"=VLOOKUP(\"CAPEX,\"&BB$2&\",,\"&$B557&\",\",data[],1),VLOOKUP(\"CAPEX,\"&BB$2&\",,\"&$B557&\",\",data[],7),BB$501)))","v":0},null,null,{"$f":"IF(BE$2=\"\",0,IF(NOT(BE69),0,IF(\"CAPEX,\"&BE$2&\",,\"&$B557&\",\"=VLOOKUP(\"CAPEX,\"&BE$2&\",,\"&$B557&\",\",data[],1),VLOOKUP(\"CAPEX,\"&BE$2&\",,\"&$B557&\",\",data[],7),BE$501)))","v":0}]
[null,"NAM",null,null,null,null,null,null,null,null,{"$f":"IF(\"CAPEX,\"&$K70&\",,\"&$B558&\",\"=VLOOKUP(\"CAPEX,\"&$K70&\",,\"&$B558&\",\",data[],1),VLOOKUP(\"CAPEX,\"&$K70&\",,\"&$B558&\",\",data[],7),INDEX($E$501:$I$501,$J70))","v":1298.5753742333741},null,null,null,null,null,{"$f":"IF(\"CAPEX,\"&Q$2&\",,\"&$B558&\",\"=VLOOKUP(\"CAPEX,\"&Q$2&\",,\"&$B558&\",\",data[],1),VLOOKUP(\"CAPEX,\"&Q$2&\",,\"&$B558&\",\",data[],7),Q$501)","v":650.6426539852938},null,{"$f":"IF(\"CAPEX,\"&S$2&\",,\"&$B558&\",\"=VLOOKUP(\"CAPEX,\"&S$2&\",,\"&$B558&\",\",data[],1),VLOOKUP(\"CAPEX,\"&S$2&\",,\"&$B558&\",\",data[],7),S$501)","v":2.3667276243093918E-3},null,null,null,null,{"$f":"IF(X$2=\"\",0,IF(\"CAPEX,\"&X$2&\",,\"&$B558&\",\"=VLOOKUP(\"CAPEX,\"&X$2&\",,\"&$B558&\",\",data[],1),VLOOKUP(\"CAPEX,\"&X$2&\",,\"&$B558&\",\",data[],7),X$501))","v":0},null,{"$f":"IF(\"CAPEX,\"&Z$2&\",,\"&$B558&\",\"=VLOOKUP(\"CAPEX,\"&Z$2&\",,\"&$B558&\",\",data[],1),VLOOKUP(\"CAPEX,\"&Z$2&\",,\"&$B558&\",\",data[],7),Z$501)","v":2.3667276243093918E-3},null,null,null,{"$f":"IF(\"CAPEX,\"&AD$2&\",,\"&$B558&\",\"=VLOOKUP(\"CAPEX,\"&AD$2&\",,\"&$B558&\",\",data[],1),VLOOKUP(\"CAPEX,\"&AD$2&\",,\"&$B558&\",\",data[],7),AD$501)","v":1.0377410418368698},null,null,null,null,null,null,{"$f":"IF(AK$2=\"\",0,IF(\"CAPEX,\"&AK$2&\",,\"&$B558&\",\"=VLOOKUP(\"CAPEX,\"&AK$2&\",,\"&$B558&\",\",data[],1),VLOOKUP(\"CAPEX,\"&AK$2&\",,\"&$B558&\",\",data[],7),AK$501))","v":1457.3621055108172},null,{"$f":"IF(AM$2=\"\",0,IF(\"CAPEX,\"&AM$2&\",,\"&$B558&\",\"=VLOOKUP(\"CAPEX,\"&AM$2&\",,\"&$B558&\",\",data[],1),VLOOKUP(\"CAPEX,\"&AM$2&\",,\"&$B558&\",\",data[],7),AM$501))","v":144.49043833783671},null,null,null,null,null,null,null,null,null,null,null,null,null,null,{"$f":"IF(BB$2=\"\",0,IF(NOT(BB70),0,IF(\"CAPEX,\"&BB$2&\",,\"&$B558&\",\"=VLOOKUP(\"CAPEX,\"&BB$2&\",,\"&$B558&\",\",data[],1),VLOOKUP(\"CAPEX,\"&BB$2&\",,\"&$B558&\",\",data[],7),BB$501)))","v":318.14227153381154},null,null,{"$f":"IF(BE$2=\"\",0,IF(NOT(BE70),0,IF(\"CAPEX,\"&BE$2&\",,\"&$B558&\",\"=VLOOKUP(\"CAPEX,\"&BE$2&\",,\"&$B558&\",\",data[],1),VLOOKUP(\"CAPEX,\"&BE$2&\",,\"&$B558&\",\",data[],7),BE$501)))","v":0}]
[null,"NOR",null,null,null,null,null,null,null,null,{"$f":"IF(\"CAPEX,\"&$K71&\",,\"&$B559&\",\"=VLOOKUP(\"CAPEX,\"&$K71&\",,\"&$B559&\",\",data[],1),VLOOKUP(\"CAPEX,\"&$K71&\",,\"&$B559&\",\",data[],7),INDEX($E$501:$I$501,$J71))","v":1077.650346838318},null,null,null,null,null,{"$f":"IF(\"CAPEX,\"&Q$2&\",,\"&$B559&\",\"=VLOOKUP(\"CAPEX,\"&Q$2&\",,\"&$B559&\",\",data[],1),VLOOKUP(\"CAPEX,\"&Q$2&\",,\"&$B559&\",\",data[],7),Q$501)","v":650.6426539852938},null,{"$f":"IF(\"CAPEX,\"&S$2&\",,\"&$B559&\",\"=VLOOKUP(\"CAPEX,\"&S$2&\",,\"&$B559&\",\",data[],1),VLOOKUP(\"CAPEX,\"&S$2&\",,\"&$B559&\",\",data[],7),S$501)","v":2.3667276243093918E-3},null,null,null,null,{"$f":"IF(X$2=\"\",0,IF(\"CAPEX,\"&X$2&\",,\"&$B559&\",\"=VLOOKUP(\"CAPEX,\"&X$2&\",,\"&$B559&\",\",data[],1),VLOOKUP(\"CAPEX,\"&X$2&\",,\"&$B559&\",\",data[],7),X$501))","v":0},null,{"$f":"IF(\"CAPEX,\"&Z$2&\",,\"&$B559&\",\"=VLOOKUP(\"CAPEX,\"&Z$2&\",,\"&$B559&\",\",data[],1),VLOOKUP(\"CAPEX,\"&Z$2&\",,\"&$B559&\",\",data[],7),Z$501)","v":2.3667276243093918E-3},null,null,null,{"$f":"IF(\"CAPEX,\"&AD$2&\",,\"&$B559&\",\"=VLOOKUP(\"CAPEX,\"&AD$2&\",,\"&$B559&\",\",data[],1),VLOOKUP(\"CAPEX,\"&AD$2&\",,\"&$B559&\",\",data[],7),AD$501)","v":1.0377410418368698},null,null,null,null,null,null,{"$f":"IF(AK$2=\"\",0,IF(\"CAPEX,\"&AK$2&\",,\"&$B559&\",\"=VLOOKUP(\"CAPEX,\"&AK$2&\",,\"&$B559&\",\",data[],1),VLOOKUP(\"CAPEX,\"&AK$2&\",,\"&$B559&\",\",data[],7),AK$501))","v":1457.3621055108172},null,{"$f":"IF(AM$2=\"\",0,IF(\"CAPEX,\"&AM$2&\",,\"&$B559&\",\"=VLOOKUP(\"CAPEX,\"&AM$2&\",,\"&$B559&\",\",data[],1),VLOOKUP(\"CAPEX,\"&AM$2&\",,\"&$B559&\",\",data[],7),AM$501))","v":144.49043833783671},null,null,null,null,null,null,null,null,null,null,null,null,null,null,{"$f":"IF(BB$2=\"\",0,IF(NOT(BB71),0,IF(\"CAPEX,\"&BB$2&\",,\"&$B559&\",\"=VLOOKUP(\"CAPEX,\"&BB$2&\",,\"&$B559&\",\",data[],1),VLOOKUP(\"CAPEX,\"&BB$2&\",,\"&$B559&\",\",data[],7),BB$501)))","v":0},null,null,{"$f":"IF(BE$2=\"\",0,IF(NOT(BE71),0,IF(\"CAPEX,\"&BE$2&\",,\"&$B559&\",\"=VLOOKUP(\"CAPEX,\"&BE$2&\",,\"&$B559&\",\",data[],1),VLOOKUP(\"CAPEX,\"&BE$2&\",,\"&$B559&\",\",data[],7),BE$501)))","v":0}]
[null,"PER",null,null,null,null,null,null,null,null,{"$f":"IF(\"CAPEX,\"&$K72&\",,\"&$B560&\",\"=VLOOKUP(\"CAPEX,\"&$K72&\",,\"&$B560&\",\",data[],1),VLOOKUP(\"CAPEX,\"&$K72&\",,\"&$B560&\",\",data[],7),INDEX($E$501:$I$501,$J72))","v":984.89983389326267},null,null,null,null,null,{"$f":"IF(\"CAPEX,\"&Q$2&\",,\"&$B560&\",\"=VLOOKUP(\"CAPEX,\"&Q$2&\",,\"&$B560&\",\",data[],1),VLOOKUP(\"CAPEX,\"&Q$2&\",,\"&$B560&\",\",data[],7),Q$501)","v":650.6426539852938},null,{"$f":"IF(\"CAPEX,\"&S$2&\",,\"&$B560&\",\"=VLOOKUP(\"CAPEX,\"&S$2&\",,\"&$B560&\",\",data[],1),VLOOKUP(\"CAPEX,\"&S$2&\",,\"&$B560&\",\",data[],7),S$501)","v":2.3667276243093918E-3},null,null,null,null,{"$f":"IF(X$2=\"\",0,IF(\"CAPEX,\"&X$2&\",,\"&$B560&\",\"=VLOOKUP(\"CAPEX,\"&X$2&\",,\"&$B560&\",\",data[],1),VLOOKUP(\"CAPEX,\"&X$2&\",,\"&$B560&\",\",data[],7),X$501))","v":0},null,{"$f":"IF(\"CAPEX,\"&Z$2&\",,\"&$B560&\",\"=VLOOKUP(\"CAPEX,\"&Z$2&\",,\"&$B560&\",\",data[],1),VLOOKUP(\"CAPEX,\"&Z$2&\",,\"&$B560&\",\",data[],7),Z$501)","v":2.3667276243093918E-3},null,null,null,{"$f":"IF(\"CAPEX,\"&AD$2&\",,\"&$B560&\",\"=VLOOKUP(\"CAPEX,\"&AD$2&\",,\"&$B560&\",\",data[],1),VLOOKUP(\"CAPEX,\"&AD$2&\",,\"&$B560&\",\",data[],7),AD$501)","v":1.0377410418368698},null,null,null,null,null,null,{"$f":"IF(AK$2=\"\",0,IF(\"CAPEX,\"&AK$2&\",,\"&$B560&\",\"=VLOOKUP(\"CAPEX,\"&AK$2&\",,\"&$B560&\",\",data[],1),VLOOKUP(\"CAPEX,\"&AK$2&\",,\"&$B560&\",\",data[],7),AK$501))","v":1457.3621055108172},null,{"$f":"IF(AM$2=\"\",0,IF(\"CAPEX,\"&AM$2&\",,\"&$B560&\",\"=VLOOKUP(\"CAPEX,\"&AM$2&\",,\"&$B560&\",\",data[],1),VLOOKUP(\"CAPEX,\"&AM$2&\",,\"&$B560&\",\",data[],7),AM$501))","v":144.49043833783671},null,null,null,null,null,null,null,null,null,null,null,null,null,null,{"$f":"IF(BB$2=\"\",0,IF(NOT(BB72),0,IF(\"CAPEX,\"&BB$2&\",,\"&$B560&\",\"=VLOOKUP(\"CAPEX,\"&BB$2&\",,\"&$B560&\",\",data[],1),VLOOKUP(\"CAPEX,\"&BB$2&\",,\"&$B560&\",\",data[],7),BB$501)))","v":318.14227153381154},null,null,{"$f":"IF(BE$2=\"\",0,IF(NOT(BE72),0,IF(\"CAPEX,\"&BE$2&\",,\"&$B560&\",\"=VLOOKUP(\"CAPEX,\"&BE$2&\",,\"&$B560&\",\",data[],1),VLOOKUP(\"CAPEX,\"&BE$2&\",,\"&$B560&\",\",data[],7),BE$501)))","v":0}]
[null,"PRT",null,null,null,null,null,null,null,null,{"$f":"IF(\"CAPEX,\"&$K73&\",,\"&$B561&\",\"=VLOOKUP(\"CAPEX,\"&$K73&\",,\"&$B561&\",\",data[],1),VLOOKUP(\"CAPEX,\"&$K73&\",,\"&$B561&\",\",data[],7),INDEX($E$501:$I$501,$J73))","v":1233.3780712967177},null,null,null,null,null,{"$f":"IF(\"CAPEX,\"&Q$2&\",,\"&$B561&\",\"=VLOOKUP(\"CAPEX,\"&Q$2&\",,\"&$B561&\",\",data[],1),VLOOKUP(\"CAPEX,\"&Q$2&\",,\"&$B561&\",\",data[],7),Q$501)","v":650.6426539852938},null,{"$f":"IF(\"CAPEX,\"&S$2&\",,\"&$B561&\",\"=VLOOKUP(\"CAPEX,\"&S$2&\",,\"&$B561&\",\",data[],1),VLOOKUP(\"CAPEX,\"&S$2&\",,\"&$B561&\",\",data[],7),S$501)","v":2.3667276243093918E-3},null,null,null,null,{"$f":"IF(X$2=\"\",0,IF(\"CAPEX,\"&X$2&\",,\"&$B561&\",\"=VLOOKUP(\"CAPEX,\"&X$2&\",,\"&$B561&\",\",data[],1),VLOOKUP(\"CAPEX,\"&X$2&\",,\"&$B561&\",\",data[],7),X$501))","v":0},null,{"$f":"IF(\"CAPEX,\"&Z$2&\",,\"&$B561&\",\"=VLOOKUP(\"CAPEX,\"&Z$2&\",,\"&$B561&\",\",data[],1),VLOOKUP(\"CAPEX,\"&Z$2&\",,\"&$B561&\",\",data[],7),Z$501)","v":2.3667276243093918E-3},null,null,null,{"$f":"IF(\"CAPEX,\"&AD$2&\",,\"&$B561&\",\"=VLOOKUP(\"CAPEX,\"&AD$2&\",,\"&$B561&\",\",data[],1),VLOOKUP(\"CAPEX,\"&AD$2&\",,\"&$B561&\",\",data[],7),AD$501)","v":1.0377410418368698},null,null,null,null,null,null,{"$f":"IF(AK$2=\"\",0,IF(\"CAPEX,\"&AK$2&\",,\"&$B561&\",\"=VLOOKUP(\"CAPEX,\"&AK$2&\",,\"&$B561&\",\",data[],1),VLOOKUP(\"CAPEX,\"&AK$2&\",,\"&$B561&\",\",data[],7),AK$501))","v":1457.3621055108172},null,{"$f":"IF(AM$2=\"\",0,IF(\"CAPEX,\"&AM$2&\",,\"&$B561&\",\"=VLOOKUP(\"CAPEX,\"&AM$2&\",,\"&$B561&\",\",data[],1),VLOOKUP(\"CAPEX,\"&AM$2&\",,\"&$B561&\",\",data[],7),AM$501))","v":144.49043833783671},null,null,null,null,null,null,null,null,null,null,null,null,null,null,{"$f":"IF(BB$2=\"\",0,IF(NOT(BB73),0,IF(\"CAPEX,\"&BB$2&\",,\"&$B561&\",\"=VLOOKUP(\"CAPEX,\"&BB$2&\",,\"&$B561&\",\",data[],1),VLOOKUP(\"CAPEX,\"&BB$2&\",,\"&$B561&\",\",data[],7),BB$501)))","v":0},null,null,{"$f":"IF(BE$2=\"\",0,IF(NOT(BE73),0,IF(\"CAPEX,\"&BE$2&\",,\"&$B561&\",\"=VLOOKUP(\"CAPEX,\"&BE$2&\",,\"&$B561&\",\",data[],1),VLOOKUP(\"CAPEX,\"&BE$2&\",,\"&$B561&\",\",data[],7),BE$501)))","v":0}]
[null,"RUS",null,null,null,null,null,null,null,null,{"$f":"IF(\"CAPEX,\"&$K74&\",,\"&$B562&\",\"=VLOOKUP(\"CAPEX,\"&$K74&\",,\"&$B562&\",\",data[],1),VLOOKUP(\"CAPEX,\"&$K74&\",,\"&$B562&\",\",data[],7),INDEX($E$501:$I$501,$J74))","v":1404.0619157282422},null,null,null,null,null,{"$f":"IF(\"CAPEX,\"&Q$2&\",,\"&$B562&\",\"=VLOOKUP(\"CAPEX,\"&Q$2&\",,\"&$B562&\",\",data[],1),VLOOKUP(\"CAPEX,\"&Q$2&\",,\"&$B562&\",\",data[],7),Q$501)","v":650.6426539852938},null,{"$f":"IF(\"CAPEX,\"&S$2&\",,\"&$B562&\",\"=VLOOKUP(\"CAPEX,\"&S$2&\",,\"&$B562&\",\",data[],1),VLOOKUP(\"CAPEX,\"&S$2&\",,\"&$B562&\",\",data[],7),S$501)","v":2.3667276243093918E-3},null,null,null,null,{"$f":"IF(X$2=\"\",0,IF(\"CAPEX,\"&X$2&\",,\"&$B562&\",\"=VLOOKUP(\"CAPEX,\"&X$2&\",,\"&$B562&\",\",data[],1),VLOOKUP(\"CAPEX,\"&X$2&\",,\"&$B562&\",\",data[],7),X$501))","v":0},null,{"$f":"IF(\"CAPEX,\"&Z$2&\",,\"&$B562&\",\"=VLOOKUP(\"CAPEX,\"&Z$2&\",,\"&$B562&\",\",data[],1),VLOOKUP(\"CAPEX,\"&Z$2&\",,\"&$B562&\",\",data[],7),Z$501)","v":2.3667276243093918E-3},null,null,null,{"$f":"IF(\"CAPEX,\"&AD$2&\",,\"&$B562&\",\"=VLOOKUP(\"CAPEX,\"&AD$2&\",,\"&$B562&\",\",data[],1),VLOOKUP(\"CAPEX,\"&AD$2&\",,\"&$B562&\",\",data[],7),AD$501)","v":1.0377410418368698},null,null,null,null,null,null,{"$f":"IF(AK$2=\"\",0,IF(\"CAPEX,\"&AK$2&\",,\"&$B562&\",\"=VLOOKUP(\"CAPEX,\"&AK$2&\",,\"&$B562&\",\",data[],1),VLOOKUP(\"CAPEX,\"&AK$2&\",,\"&$B562&\",\",data[],7),AK$501))","v":1457.3621055108172},null,{"$f":"IF(AM$2=\"\",0,IF(\"CAPEX,\"&AM$2&\",,\"&$B562&\",\"=VLOOKUP(\"CAPEX,\"&AM$2&\",,\"&$B562&\",\",data[],1),VLOOKUP(\"CAPEX,\"&AM$2&\",,\"&$B562&\",\",data[],7),AM$501))","v":144.49043833783671},null,null,null,null,null,null,null,null,null,null,null,null,null,null,{"$f":"IF(BB$2=\"\",0,IF(NOT(BB74),0,IF(\"CAPEX,\"&BB$2&\",,\"&$B562&\",\"=VLOOKUP(\"CAPEX,\"&BB$2&\",,\"&$B562&\",\",data[],1),VLOOKUP(\"CAPEX,\"&BB$2&\",,\"&$B562&\",\",data[],7),BB$501)))","v":0},null,null,{"$f":"IF(BE$2=\"\",0,IF(NOT(BE74),0,IF(\"CAPEX,\"&BE$2&\",,\"&$B562&\",\"=VLOOKUP(\"CAPEX,\"&BE$2&\",,\"&$B562&\",\",data[],1),VLOOKUP(\"CAPEX,\"&BE$2&\",,\"&$B562&\",\",data[],7),BE$501)))","v":0}]
[null,"SAU",null,null,null,null,null,null,null,null,{"$f":"IF(\"CAPEX,\"&$K75&\",,\"&$B563&\",\"=VLOOKUP(\"CAPEX,\"&$K75&\",,\"&$B563&\",\",data[],1),VLOOKUP(\"CAPEX,\"&$K75&\",,\"&$B563&\",\",data[],7),INDEX($E$501:$I$501,$J75))","v":1142.9299102289447},null,null,null,null,null,{"$f":"IF(\"CAPEX,\"&Q$2&\",,\"&$B563&\",\"=VLOOKUP(\"CAPEX,\"&Q$2&\",,\"&$B563&\",\",data[],1),VLOOKUP(\"CAPEX,\"&Q$2&\",,\"&$B563&\",\",data[],7),Q$501)","v":650.6426539852938},null,{"$f":"IF(\"CAPEX,\"&S$2&\",,\"&$B563&\",\"=VLOOKUP(\"CAPEX,\"&S$2&\",,\"&$B563&\",\",data[],1),VLOOKUP(\"CAPEX,\"&S$2&\",,\"&$B563&\",\",data[],7),S$501)","v":2.3667276243093918E-3},null,null,null,null,{"$f":"IF(X$2=\"\",0,IF(\"CAPEX,\"&X$2&\",,\"&$B563&\",\"=VLOOKUP(\"CAPEX,\"&X$2&\",,\"&$B563&\",\",data[],1),VLOOKUP(\"CAPEX,\"&X$2&\",,\"&$B563&\",\",data[],7),X$501))","v":0},null,{"$f":"IF(\"CAPEX,\"&Z$2&\",,\"&$B563&\",\"=VLOOKUP(\"CAPEX,\"&Z$2&\",,\"&$B563&\",\",data[],1),VLOOKUP(\"CAPEX,\"&Z$2&\",,\"&$B563&\",\",data[],7),Z$501)","v":2.3667276243093918E-3},null,null,null,{"$f":"IF(\"CAPEX,\"&AD$2&\",,\"&$B563&\",\"=VLOOKUP(\"CAPEX,\"&AD$2&\",,\"&$B563&\",\",data[],1),VLOOKUP(\"CAPEX,\"&AD$2&\",,\"&$B563&\",\",data[],7),AD$501)","v":1.0377410418368698},null,null,null,null,null,null,{"$f":"IF(AK$2=\"\",0,IF(\"CAPEX,\"&AK$2&\",,\"&$B563&\",\"=VLOOKUP(\"CAPEX,\"&AK$2&\",,\"&$B563&\",\",data[],1),VLOOKUP(\"CAPEX,\"&AK$2&\",,\"&$B563&\",\",data[],7),AK$501))","v":1457.3621055108172},null,{"$f":"IF(AM$2=\"\",0,IF(\"CAPEX,\"&AM$2&\",,\"&$B563&\",\"=VLOOKUP(\"CAPEX,\"&AM$2&\",,\"&$B563&\",\",data[],1),VLOOKUP(\"CAPEX,\"&AM$2&\",,\"&$B563&\",\",data[],7),AM$501))","v":144.49043833783671},null,null,null,null,null,null,null,null,null,null,null,null,null,null,{"$f":"IF(BB$2=\"\",0,IF(NOT(BB75),0,IF(\"CAPEX,\"&BB$2&\",,\"&$B563&\",\"=VLOOKUP(\"CAPEX,\"&BB$2&\",,\"&$B563&\",\",data[],1),VLOOKUP(\"CAPEX,\"&BB$2&\",,\"&$B563&\",\",data[],7),BB$501)))","v":0},null,null,{"$f":"IF(BE$2=\"\",0,IF(NOT(BE75),0,IF(\"CAPEX,\"&BE$2&\",,\"&$B563&\",\"=VLOOKUP(\"CAPEX,\"&BE$2&\",,\"&$B563&\",\",data[],1),VLOOKUP(\"CAPEX,\"&BE$2&\",,\"&$B563&\",\",data[],7),BE$501)))","v":0}]
[null,"SWE",null,null,null,null,null,null,null,null,{"$f":"IF(\"CAPEX,\"&$K76&\",,\"&$B564&\",\"=VLOOKUP(\"CAPEX,\"&$K76&\",,\"&$B564&\",\",data[],1),VLOOKUP(\"CAPEX,\"&$K76&\",,\"&$B564&\",\",data[],7),INDEX($E$501:$I$501,$J76))","v":1137.7470625109563},null,null,null,null,null,{"$f":"IF(\"CAPEX,\"&Q$2&\",,\"&$B564&\",\"=VLOOKUP(\"CAPEX,\"&Q$2&\",,\"&$B564&\",\",data[],1),VLOOKUP(\"CAPEX,\"&Q$2&\",,\"&$B564&\",\",data[],7),Q$501)","v":650.6426539852938},null,{"$f":"IF(\"CAPEX,\"&S$2&\",,\"&$B564&\",\"=VLOOKUP(\"CAPEX,\"&S$2&\",,\"&$B564&\",\",data[],1),VLOOKUP(\"CAPEX,\"&S$2&\",,\"&$B564&\",\",data[],7),S$501)","v":2.3667276243093918E-3},null,null,null,null,{"$f":"IF(X$2=\"\",0,IF(\"CAPEX,\"&X$2&\",,\"&$B564&\",\"=VLOOKUP(\"CAPEX,\"&X$2&\",,\"&$B564&\",\",data[],1),VLOOKUP(\"CAPEX,\"&X$2&\",,\"&$B564&\",\",data[],7),X$501))","v":0},null,{"$f":"IF(\"CAPEX,\"&Z$2&\",,\"&$B564&\",\"=VLOOKUP(\"CAPEX,\"&Z$2&\",,\"&$B564&\",\",data[],1),VLOOKUP(\"CAPEX,\"&Z$2&\",,\"&$B564&\",\",data[],7),Z$501)","v":2.3667276243093918E-3},null,null,null,{"$f":"IF(\"CAPEX,\"&AD$2&\",,\"&$B564&\",\"=VLOOKUP(\"CAPEX,\"&AD$2&\",,\"&$B564&\",\",data[],1),VLOOKUP(\"CAPEX,\"&AD$2&\",,\"&$B564&\",\",data[],7),AD$501)","v":1.0377410418368698},null,null,null,null,null,null,{"$f":"IF(AK$2=\"\",0,IF(\"CAPEX,\"&AK$2&\",,\"&$B564&\",\"=VLOOKUP(\"CAPEX,\"&AK$2&\",,\"&$B564&\",\",data[],1),VLOOKUP(\"CAPEX,\"&AK$2&\",,\"&$B564&\",\",data[],7),AK$501))","v":1457.3621055108172},null,{"$f":"IF(AM$2=\"\",0,IF(\"CAPEX,\"&AM$2&\",,\"&$B564&\",\"=VLOOKUP(\"CAPEX,\"&AM$2&\",,\"&$B564&\",\",data[],1),VLOOKUP(\"CAPEX,\"&AM$2&\",,\"&$B564&\",\",data[],7),AM$501))","v":144.49043833783671},null,null,null,null,null,null,null,null,null,null,null,null,null,null,{"$f":"IF(BB$2=\"\",0,IF(NOT(BB76),0,IF(\"CAPEX,\"&BB$2&\",,\"&$B564&\",\"=VLOOKUP(\"CAPEX,\"&BB$2&\",,\"&$B564&\",\",data[],1),VLOOKUP(\"CAPEX,\"&BB$2&\",,\"&$B564&\",\",data[],7),BB$501)))","v":0},null,null,{"$f":"IF(BE$2=\"\",0,IF(NOT(BE76),0,IF(\"CAPEX,\"&BE$2&\",,\"&$B564&\",\"=VLOOKUP(\"CAPEX,\"&BE$2&\",,\"&$B564&\",\",data[],1),VLOOKUP(\"CAPEX,\"&BE$2&\",,\"&$B564&\",\",data[],7),BE$501)))","v":0}]
[null,"THA",null,null,null,null,null,null,null,null,{"$f":"IF(\"CAPEX,\"&$K77&\",,\"&$B565&\",\"=VLOOKUP(\"CAPEX,\"&$K77&\",,\"&$B565&\",\",data[],1),VLOOKUP(\"CAPEX,\"&$K77&\",,\"&$B565&\",\",data[],7),INDEX($E$501:$I$501,$J77))","v":1167.7004648066352},null,null,null,null,null,{"$f":"IF(\"CAPEX,\"&Q$2&\",,\"&$B565&\",\"=VLOOKUP(\"CAPEX,\"&Q$2&\",,\"&$B565&\",\",data[],1),VLOOKUP(\"CAPEX,\"&Q$2&\",,\"&$B565&\",\",data[],7),Q$501)","v":650.6426539852938},null,{"$f":"IF(\"CAPEX,\"&S$2&\",,\"&$B565&\",\"=VLOOKUP(\"CAPEX,\"&S$2&\",,\"&$B565&\",\",data[],1),VLOOKUP(\"CAPEX,\"&S$2&\",,\"&$B565&\",\",data[],7),S$501)","v":2.3667276243093918E-3},null,null,null,null,{"$f":"IF(X$2=\"\",0,IF(\"CAPEX,\"&X$2&\",,\"&$B565&\",\"=VLOOKUP(\"CAPEX,\"&X$2&\",,\"&$B565&\",\",data[],1),VLOOKUP(\"CAPEX,\"&X$2&\",,\"&$B565&\",\",data[],7),X$501))","v":0},null,{"$f":"IF(\"CAPEX,\"&Z$2&\",,\"&$B565&\",\"=VLOOKUP(\"CAPEX,\"&Z$2&\",,\"&$B565&\",\",data[],1),VLOOKUP(\"CAPEX,\"&Z$2&\",,\"&$B565&\",\",data[],7),Z$501)","v":2.3667276243093918E-3},null,null,null,{"$f":"IF(\"CAPEX,\"&AD$2&\",,\"&$B565&\",\"=VLOOKUP(\"CAPEX,\"&AD$2&\",,\"&$B565&\",\",data[],1),VLOOKUP(\"CAPEX,\"&AD$2&\",,\"&$B565&\",\",data[],7),AD$501)","v":1.0377410418368698},null,null,null,null,null,null,{"$f":"IF(AK$2=\"\",0,IF(\"CAPEX,\"&AK$2&\",,\"&$B565&\",\"=VLOOKUP(\"CAPEX,\"&AK$2&\",,\"&$B565&\",\",data[],1),VLOOKUP(\"CAPEX,\"&AK$2&\",,\"&$B565&\",\",data[],7),AK$501))","v":1457.3621055108172},null,{"$f":"IF(AM$2=\"\",0,IF(\"CAPEX,\"&AM$2&\",,\"&$B565&\",\"=VLOOKUP(\"CAPEX,\"&AM$2&\",,\"&$B565&\",\",data[],1),VLOOKUP(\"CAPEX,\"&AM$2&\",,\"&$B565&\",\",data[],7),AM$501))","v":144.49043833783671},null,null,null,null,null,null,null,null,null,null,null,null,null,null,{"$f":"IF(BB$2=\"\",0,IF(NOT(BB77),0,IF(\"CAPEX,\"&BB$2&\",,\"&$B565&\",\"=VLOOKUP(\"CAPEX,\"&BB$2&\",,\"&$B565&\",\",data[],1),VLOOKUP(\"CAPEX,\"&BB$2&\",,\"&$B565&\",\",data[],7),BB$501)))","v":318.14227153381154},null,null,{"$f":"IF(BE$2=\"\",0,IF(NOT(BE77),0,IF(\"CAPEX,\"&BE$2&\",,\"&$B565&\",\"=VLOOKUP(\"CAPEX,\"&BE$2&\",,\"&$B565&\",\",data[],1),VLOOKUP(\"CAPEX,\"&BE$2&\",,\"&$B565&\",\",data[],7),BE$501)))","v":0}]
[null,"TUN",null,null,null,null,null,null,null,null,{"$f":"IF(\"CAPEX,\"&$K78&\",,\"&$B566&\",\"=VLOOKUP(\"CAPEX,\"&$K78&\",,\"&$B566&\",\",data[],1),VLOOKUP(\"CAPEX,\"&$K78&\",,\"&$B566&\",\",data[],7),INDEX($E$501:$I$501,$J78))","v":1298.5753742333741},null,null,null,null,null,{"$f":"IF(\"CAPEX,\"&Q$2&\",,\"&$B566&\",\"=VLOOKUP(\"CAPEX,\"&Q$2&\",,\"&$B566&\",\",data[],1),VLOOKUP(\"CAPEX,\"&Q$2&\",,\"&$B566&\",\",data[],7),Q$501)","v":650.6426539852938},null,{"$f":"IF(\"CAPEX,\"&S$2&\",,\"&$B566&\",\"=VLOOKUP(\"CAPEX,\"&S$2&\",,\"&$B566&\",\",data[],1),VLOOKUP(\"CAPEX,\"&S$2&\",,\"&$B566&\",\",data[],7),S$501)","v":2.3667276243093918E-3},null,null,null,null,{"$f":"IF(X$2=\"\",0,IF(\"CAPEX,\"&X$2&\",,\"&$B566&\",\"=VLOOKUP(\"CAPEX,\"&X$2&\",,\"&$B566&\",\",data[],1),VLOOKUP(\"CAPEX,\"&X$2&\",,\"&$B566&\",\",data[],7),X$501))","v":0},null,{"$f":"IF(\"CAPEX,\"&Z$2&\",,\"&$B566&\",\"=VLOOKUP(\"CAPEX,\"&Z$2&\",,\"&$B566&\",\",data[],1),VLOOKUP(\"CAPEX,\"&Z$2&\",,\"&$B566&\",\",data[],7),Z$501)","v":2.3667276243093918E-3},null,null,null,{"$f":"IF(\"CAPEX,\"&AD$2&\",,\"&$B566&\",\"=VLOOKUP(\"CAPEX,\"&AD$2&\",,\"&$B566&\",\",data[],1),VLOOKUP(\"CAPEX,\"&AD$2&\",,\"&$B566&\",\",data[],7),AD$501)","v":1.0377410418368698},null,null,null,null,null,null,{"$f":"IF(AK$2=\"\",0,IF(\"CAPEX,\"&AK$2&\",,\"&$B566&\",\"=VLOOKUP(\"CAPEX,\"&AK$2&\",,\"&$B566&\",\",data[],1),VLOOKUP(\"CAPEX,\"&AK$2&\",,\"&$B566&\",\",data[],7),AK$501))","v":1457.3621055108172},null,{"$f":"IF(AM$2=\"\",0,IF(\"CAPEX,\"&AM$2&\",,\"&$B566&\",\"=VLOOKUP(\"CAPEX,\"&AM$2&\",,\"&$B566&\",\",data[],1),VLOOKUP(\"CAPEX,\"&AM$2&\",,\"&$B566&\",\",data[],7),AM$501))","v":144.49043833783671},null,null,null,null,null,null,null,null,null,null,null,null,null,null,{"$f":"IF(BB$2=\"\",0,IF(NOT(BB78),0,IF(\"CAPEX,\"&BB$2&\",,\"&$B566&\",\"=VLOOKUP(\"CAPEX,\"&BB$2&\",,\"&$B566&\",\",data[],1),VLOOKUP(\"CAPEX,\"&BB$2&\",,\"&$B566&\",\",data[],7),BB$501)))","v":0},null,null,{"$f":"IF(BE$2=\"\",0,IF(NOT(BE78),0,IF(\"CAPEX,\"&BE$2&\",,\"&$B566&\",\"=VLOOKUP(\"CAPEX,\"&BE$2&\",,\"&$B566&\",\",data[],1),VLOOKUP(\"CAPEX,\"&BE$2&\",,\"&$B566&\",\",data[],7),BE$501)))","v":0}]
[null,"UKR",null,null,null,null,null,null,null,null,{"$f":"IF(\"CAPEX,\"&$K79&\",,\"&$B567&\",\"=VLOOKUP(\"CAPEX,\"&$K79&\",,\"&$B567&\",\",data[],1),VLOOKUP(\"CAPEX,\"&$K79&\",,\"&$B567&\",\",data[],7),INDEX($E$501:$I$501,$J79))","v":1077.650346838318},null,null,null,null,null,{"$f":"IF(\"CAPEX,\"&Q$2&\",,\"&$B567&\",\"=VLOOKUP(\"CAPEX,\"&Q$2&\",,\"&$B567&\",\",data[],1),VLOOKUP(\"CAPEX,\"&Q$2&\",,\"&$B567&\",\",data[],7),Q$501)","v":650.6426539852938},null,{"$f":"IF(\"CAPEX,\"&S$2&\",,\"&$B567&\",\"=VLOOKUP(\"CAPEX,\"&S$2&\",,\"&$B567&\",\",data[],1),VLOOKUP(\"CAPEX,\"&S$2&\",,\"&$B567&\",\",data[],7),S$501)","v":2.3667276243093918E-3},null,null,null,null,{"$f":"IF(X$2=\"\",0,IF(\"CAPEX,\"&X$2&\",,\"&$B567&\",\"=VLOOKUP(\"CAPEX,\"&X$2&\",,\"&$B567&\",\",data[],1),VLOOKUP(\"CAPEX,\"&X$2&\",,\"&$B567&\",\",data[],7),X$501))","v":0},null,{"$f":"IF(\"CAPEX,\"&Z$2&\",,\"&$B567&\",\"=VLOOKUP(\"CAPEX,\"&Z$2&\",,\"&$B567&\",\",data[],1),VLOOKUP(\"CAPEX,\"&Z$2&\",,\"&$B567&\",\",data[],7),Z$501)","v":2.3667276243093918E-3},null,null,null,{"$f":"IF(\"CAPEX,\"&AD$2&\",,\"&$B567&\",\"=VLOOKUP(\"CAPEX,\"&AD$2&\",,\"&$B567&\",\",data[],1),VLOOKUP(\"CAPEX,\"&AD$2&\",,\"&$B567&\",\",data[],7),AD$501)","v":1.0377410418368698},null,null,null,null,null,null,{"$f":"IF(AK$2=\"\",0,IF(\"CAPEX,\"&AK$2&\",,\"&$B567&\",\"=VLOOKUP(\"CAPEX,\"&AK$2&\",,\"&$B567&\",\",data[],1),VLOOKUP(\"CAPEX,\"&AK$2&\",,\"&$B567&\",\",data[],7),AK$501))","v":1457.3621055108172},null,{"$f":"IF(AM$2=\"\",0,IF(\"CAPEX,\"&AM$2&\",,\"&$B567&\",\"=VLOOKUP(\"CAPEX,\"&AM$2&\",,\"&$B567&\",\",data[],1),VLOOKUP(\"CAPEX,\"&AM$2&\",,\"&$B567&\",\",data[],7),AM$501))","v":144.49043833783671},null,null,null,null,null,null,null,null,null,null,null,null,null,null,{"$f":"IF(BB$2=\"\",0,IF(NOT(BB79),0,IF(\"CAPEX,\"&BB$2&\",,\"&$B567&\",\"=VLOOKUP(\"CAPEX,\"&BB$2&\",,\"&$B567&\",\",data[],1),VLOOKUP(\"CAPEX,\"&BB$2&\",,\"&$B567&\",\",data[],7),BB$501)))","v":0},null,null,{"$f":"IF(BE$2=\"\",0,IF(NOT(BE79),0,IF(\"CAPEX,\"&BE$2&\",,\"&$B567&\",\"=VLOOKUP(\"CAPEX,\"&BE$2&\",,\"&$B567&\",\",data[],1),VLOOKUP(\"CAPEX,\"&BE$2&\",,\"&$B567&\",\",data[],7),BE$501)))","v":0}]
[null,"URY",null,null,null,null,null,null,null,null,{"$f":"IF(\"CAPEX,\"&$K80&\",,\"&$B568&\",\"=VLOOKUP(\"CAPEX,\"&$K80&\",,\"&$B568&\",\",data[],1),VLOOKUP(\"CAPEX,\"&$K80&\",,\"&$B568&\",\",data[],7),INDEX($E$501:$I$501,$J80))","v":1473.4910182236545},null,null,null,null,null,{"$f":"IF(\"CAPEX,\"&Q$2&\",,\"&$B568&\",\"=VLOOKUP(\"CAPEX,\"&Q$2&\",,\"&$B568&\",\",data[],1),VLOOKUP(\"CAPEX,\"&Q$2&\",,\"&$B568&\",\",data[],7),Q$501)","v":650.6426539852938},null,{"$f":"IF(\"CAPEX,\"&S$2&\",,\"&$B568&\",\"=VLOOKUP(\"CAPEX,\"&S$2&\",,\"&$B568&\",\",data[],1),VLOOKUP(\"CAPEX,\"&S$2&\",,\"&$B568&\",\",data[],7),S$501)","v":2.3667276243093918E-3},null,null,null,null,{"$f":"IF(X$2=\"\",0,IF(\"CAPEX,\"&X$2&\",,\"&$B568&\",\"=VLOOKUP(\"CAPEX,\"&X$2&\",,\"&$B568&\",\",data[],1),VLOOKUP(\"CAPEX,\"&X$2&\",,\"&$B568&\",\",data[],7),X$501))","v":0},null,{"$f":"IF(\"CAPEX,\"&Z$2&\",,\"&$B568&\",\"=VLOOKUP(\"CAPEX,\"&Z$2&\",,\"&$B568&\",\",data[],1),VLOOKUP(\"CAPEX,\"&Z$2&\",,\"&$B568&\",\",data[],7),Z$501)","v":2.3667276243093918E-3},null,null,null,{"$f":"IF(\"CAPEX,\"&AD$2&\",,\"&$B568&\",\"=VLOOKUP(\"CAPEX,\"&AD$2&\",,\"&$B568&\",\",data[],1),VLOOKUP(\"CAPEX,\"&AD$2&\",,\"&$B568&\",\",data[],7),AD$501)","v":1.0377410418368698},null,null,null,null,null,null,{"$f":"IF(AK$2=\"\",0,IF(\"CAPEX,\"&AK$2&\",,\"&$B568&\",\"=VLOOKUP(\"CAPEX,\"&AK$2&\",,\"&$B568&\",\",data[],1),VLOOKUP(\"CAPEX,\"&AK$2&\",,\"&$B568&\",\",data[],7),AK$501))","v":1457.3621055108172},null,{"$f":"IF(AM$2=\"\",0,IF(\"CAPEX,\"&AM$2&\",,\"&$B568&\",\"=VLOOKUP(\"CAPEX,\"&AM$2&\",,\"&$B568&\",\",data[],1),VLOOKUP(\"CAPEX,\"&AM$2&\",,\"&$B568&\",\",data[],7),AM$501))","v":144.49043833783671},null,null,null,null,null,null,null,null,null,null,null,null,null,null,{"$f":"IF(BB$2=\"\",0,IF(NOT(BB80),0,IF(\"CAPEX,\"&BB$2&\",,\"&$B568&\",\"=VLOOKUP(\"CAPEX,\"&BB$2&\",,\"&$B568&\",\",data[],1),VLOOKUP(\"CAPEX,\"&BB$2&\",,\"&$B568&\",\",data[],7),BB$501)))","v":318.14227153381154},null,null,{"$f":"IF(BE$2=\"\",0,IF(NOT(BE80),0,IF(\"CAPEX,\"&BE$2&\",,\"&$B568&\",\"=VLOOKUP(\"CAPEX,\"&BE$2&\",,\"&$B568&\",\",data[],1),VLOOKUP(\"CAPEX,\"&BE$2&\",,\"&$B568&\",\",data[],7),BE$501)))","v":0}]
[null,"USA",null,null,null,null,null,null,null,null,{"$f":"IF(\"CAPEX,\"&$K81&\",,\"&$B569&\",\"=VLOOKUP(\"CAPEX,\"&$K81&\",,\"&$B569&\",\",data[],1),VLOOKUP(\"CAPEX,\"&$K81&\",,\"&$B569&\",\",data[],7),INDEX($E$501:$I$501,$J81))","v":1122.077935922249},null,null,null,null,null,{"$f":"IF(\"CAPEX,\"&Q$2&\",,\"&$B569&\",\"=VLOOKUP(\"CAPEX,\"&Q$2&\",,\"&$B569&\",\",data[],1),VLOOKUP(\"CAPEX,\"&Q$2&\",,\"&$B569&\",\",data[],7),Q$501)","v":650.6426539852938},null,{"$f":"IF(\"CAPEX,\"&S$2&\",,\"&$B569&\",\"=VLOOKUP(\"CAPEX,\"&S$2&\",,\"&$B569&\",\",data[],1),VLOOKUP(\"CAPEX,\"&S$2&\",,\"&$B569&\",\",data[],7),S$501)","v":2.3667276243093918E-3},null,null,null,null,{"$f":"IF(X$2=\"\",0,IF(\"CAPEX,\"&X$2&\",,\"&$B569&\",\"=VLOOKUP(\"CAPEX,\"&X$2&\",,\"&$B569&\",\",data[],1),VLOOKUP(\"CAPEX,\"&X$2&\",,\"&$B569&\",\",data[],7),X$501))","v":0},null,{"$f":"IF(\"CAPEX,\"&Z$2&\",,\"&$B569&\",\"=VLOOKUP(\"CAPEX,\"&Z$2&\",,\"&$B569&\",\",data[],1),VLOOKUP(\"CAPEX,\"&Z$2&\",,\"&$B569&\",\",data[],7),Z$501)","v":2.3667276243093918E-3},null,null,null,{"$f":"IF(\"CAPEX,\"&AD$2&\",,\"&$B569&\",\"=VLOOKUP(\"CAPEX,\"&AD$2&\",,\"&$B569&\",\",data[],1),VLOOKUP(\"CAPEX,\"&AD$2&\",,\"&$B569&\",\",data[],7),AD$501)","v":1.0377410418368698},null,null,null,null,null,null,{"$f":"IF(AK$2=\"\",0,IF(\"CAPEX,\"&AK$2&\",,\"&$B569&\",\"=VLOOKUP(\"CAPEX,\"&AK$2&\",,\"&$B569&\",\",data[],1),VLOOKUP(\"CAPEX,\"&AK$2&\",,\"&$B569&\",\",data[],7),AK$501))","v":1457.3621055108172},null,{"$f":"IF(AM$2=\"\",0,IF(\"CAPEX,\"&AM$2&\",,\"&$B569&\",\"=VLOOKUP(\"CAPEX,\"&AM$2&\",,\"&$B569&\",\",data[],1),VLOOKUP(\"CAPEX,\"&AM$2&\",,\"&$B569&\",\",data[],7),AM$501))","v":144.49043833783671},null,null,null,null,null,null,null,null,null,null,null,null,null,null,{"$f":"IF(BB$2=\"\",0,IF(NOT(BB81),0,IF(\"CAPEX,\"&BB$2&\",,\"&$B569&\",\"=VLOOKUP(\"CAPEX,\"&BB$2&\",,\"&$B569&\",\",data[],1),VLOOKUP(\"CAPEX,\"&BB$2&\",,\"&$B569&\",\",data[],7),BB$501)))","v":318.14227153381154},null,null,{"$f":"IF(BE$2=\"\",0,IF(NOT(BE81),0,IF(\"CAPEX,\"&BE$2&\",,\"&$B569&\",\"=VLOOKUP(\"CAPEX,\"&BE$2&\",,\"&$B569&\",\",data[],1),VLOOKUP(\"CAPEX,\"&BE$2&\",,\"&$B569&\",\",data[],7),BE$501)))","v":0}]
[null,"VNM",null,null,null,null,null,null,null,null,{"$f":"IF(\"CAPEX,\"&$K82&\",,\"&$B570&\",\"=VLOOKUP(\"CAPEX,\"&$K82&\",,\"&$B570&\",\",data[],1),VLOOKUP(\"CAPEX,\"&$K82&\",,\"&$B570&\",\",data[],7),INDEX($E$501:$I$501,$J82))","v":1512.1572497595614},null,null,null,null,null,{"$f":"IF(\"CAPEX,\"&Q$2&\",,\"&$B570&\",\"=VLOOKUP(\"CAPEX,\"&Q$2&\",,\"&$B570&\",\",data[],1),VLOOKUP(\"CAPEX,\"&Q$2&\",,\"&$B570&\",\",data[],7),Q$501)","v":650.6426539852938},null,{"$f":"IF(\"CAPEX,\"&S$2&\",,\"&$B570&\",\"=VLOOKUP(\"CAPEX,\"&S$2&\",,\"&$B570&\",\",data[],1),VLOOKUP(\"CAPEX,\"&S$2&\",,\"&$B570&\",\",data[],7),S$501)","v":2.3667276243093918E-3},null,null,null,null,{"$f":"IF(X$2=\"\",0,IF(\"CAPEX,\"&X$2&\",,\"&$B570&\",\"=VLOOKUP(\"CAPEX,\"&X$2&\",,\"&$B570&\",\",data[],1),VLOOKUP(\"CAPEX,\"&X$2&\",,\"&$B570&\",\",data[],7),X$501))","v":0},null,{"$f":"IF(\"CAPEX,\"&Z$2&\",,\"&$B570&\",\"=VLOOKUP(\"CAPEX,\"&Z$2&\",,\"&$B570&\",\",data[],1),VLOOKUP(\"CAPEX,\"&Z$2&\",,\"&$B570&\",\",data[],7),Z$501)","v":2.3667276243093918E-3},null,null,null,{"$f":"IF(\"CAPEX,\"&AD$2&\",,\"&$B570&\",\"=VLOOKUP(\"CAPEX,\"&AD$2&\",,\"&$B570&\",\",data[],1),VLOOKUP(\"CAPEX,\"&AD$2&\",,\"&$B570&\",\",data[],7),AD$501)","v":1.0377410418368698},null,null,null,null,null,null,{"$f":"IF(AK$2=\"\",0,IF(\"CAPEX,\"&AK$2&\",,\"&$B570&\",\"=VLOOKUP(\"CAPEX,\"&AK$2&\",,\"&$B570&\",\",data[],1),VLOOKUP(\"CAPEX,\"&AK$2&\",,\"&$B570&\",\",data[],7),AK$501))","v":1457.3621055108172},null,{"$f":"IF(AM$2=\"\",0,IF(\"CAPEX,\"&AM$2&\",,\"&$B570&\",\"=VLOOKUP(\"CAPEX,\"&AM$2&\",,\"&$B570&\",\",data[],1),VLOOKUP(\"CAPEX,\"&AM$2&\",,\"&$B570&\",\",data[],7),AM$501))","v":144.49043833783671},null,null,null,null,null,null,null,null,null,null,null,null,null,null,{"$f":"IF(BB$2=\"\",0,IF(NOT(BB82),0,IF(\"CAPEX,\"&BB$2&\",,\"&$B570&\",\"=VLOOKUP(\"CAPEX,\"&BB$2&\",,\"&$B570&\",\",data[],1),VLOOKUP(\"CAPEX,\"&BB$2&\",,\"&$B570&\",\",data[],7),BB$501)))","v":318.14227153381154},null,null,{"$f":"IF(BE$2=\"\",0,IF(NOT(BE82),0,IF(\"CAPEX,\"&BE$2&\",,\"&$B570&\",\"=VLOOKUP(\"CAPEX,\"&BE$2&\",,\"&$B570&\",\",data[],1),VLOOKUP(\"CAPEX,\"&BE$2&\",,\"&$B570&\",\",data[],7),BE$501)))","v":0}]
[null,"ZAF",null,null,null,null,null,null,null,null,{"$f":"IF(\"CAPEX,\"&$K83&\",,\"&$B571&\",\"=VLOOKUP(\"CAPEX,\"&$K83&\",,\"&$B571&\",\",data[],1),VLOOKUP(\"CAPEX,\"&$K83&\",,\"&$B571&\",\",data[],7),INDEX($E$501:$I$501,$J83))","v":1229.1954260584585},null,null,null,null,null,{"$f":"IF(\"CAPEX,\"&Q$2&\",,\"&$B571&\",\"=VLOOKUP(\"CAPEX,\"&Q$2&\",,\"&$B571&\",\",data[],1),VLOOKUP(\"CAPEX,\"&Q$2&\",,\"&$B571&\",\",data[],7),Q$501)","v":650.6426539852938},null,{"$f":"IF(\"CAPEX,\"&S$2&\",,\"&$B571&\",\"=VLOOKUP(\"CAPEX,\"&S$2&\",,\"&$B571&\",\",data[],1),VLOOKUP(\"CAPEX,\"&S$2&\",,\"&$B571&\",\",data[],7),S$501)","v":2.3667276243093918E-3},null,null,null,null,{"$f":"IF(X$2=\"\",0,IF(\"CAPEX,\"&X$2&\",,\"&$B571&\",\"=VLOOKUP(\"CAPEX,\"&X$2&\",,\"&$B571&\",\",data[],1),VLOOKUP(\"CAPEX,\"&X$2&\",,\"&$B571&\",\",data[],7),X$501))","v":0},null,{"$f":"IF(\"CAPEX,\"&Z$2&\",,\"&$B571&\",\"=VLOOKUP(\"CAPEX,\"&Z$2&\",,\"&$B571&\",\",data[],1),VLOOKUP(\"CAPEX,\"&Z$2&\",,\"&$B571&\",\",data[],7),Z$501)","v":2.3667276243093918E-3},null,null,null,{"$f":"IF(\"CAPEX,\"&AD$2&\",,\"&$B571&\",\"=VLOOKUP(\"CAPEX,\"&AD$2&\",,\"&$B571&\",\",data[],1),VLOOKUP(\"CAPEX,\"&AD$2&\",,\"&$B571&\",\",data[],7),AD$501)","v":1.0377410418368698},null,null,null,null,null,null,{"$f":"IF(AK$2=\"\",0,IF(\"CAPEX,\"&AK$2&\",,\"&$B571&\",\"=VLOOKUP(\"CAPEX,\"&AK$2&\",,\"&$B571&\",\",data[],1),VLOOKUP(\"CAPEX,\"&AK$2&\",,\"&$B571&\",\",data[],7),AK$501))","v":1457.3621055108172},null,{"$f":"IF(AM$2=\"\",0,IF(\"CAPEX,\"&AM$2&\",,\"&$B571&\",\"=VLOOKUP(\"CAPEX,\"&AM$2&\",,\"&$B571&\",\",data[],1),VLOOKUP(\"CAPEX,\"&AM$2&\",,\"&$B571&\",\",data[],7),AM$501))","v":144.49043833783671},null,null,null,null,null,null,null,null,null,null,null,null,null,null,{"$f":"IF(BB$2=\"\",0,IF(NOT(BB83),0,IF(\"CAPEX,\"&BB$2&\",,\"&$B571&\",\"=VLOOKUP(\"CAPEX,\"&BB$2&\",,\"&$B571&\",\",data[],1),VLOOKUP(\"CAPEX,\"&BB$2&\",,\"&$B571&\",\",data[],7),BB$501)))","v":318.14227153381154},null,null,{"$f":"IF(BE$2=\"\",0,IF(NOT(BE83),0,IF(\"CAPEX,\"&BE$2&\",,\"&$B571&\",\"=VLOOKUP(\"CAPEX,\"&BE$2&\",,\"&$B571&\",\",data[],1),VLOOKUP(\"CAPEX,\"&BE$2&\",,\"&$B571&\",\",data[],7),BE$501)))","v":0}]
[null,"ZAF-EC",null,null,null,null,null,null,null,null,{"$f":"IF(\"CAPEX,\"&$K84&\",,\"&$B572&\",\"=VLOOKUP(\"CAPEX,\"&$K84&\",,\"&$B572&\",\",data[],1),VLOOKUP(\"CAPEX,\"&$K84&\",,\"&$B572&\",\",data[],7),INDEX($E$501:$I$501,$J84))","v":1229.1954260584585},null,null,null,null,null,{"$f":"IF(\"CAPEX,\"&Q$2&\",,\"&$B572&\",\"=VLOOKUP(\"CAPEX,\"&Q$2&\",,\"&$B572&\",\",data[],1),VLOOKUP(\"CAPEX,\"&Q$2&\",,\"&$B572&\",\",data[],7),Q$501)","v":650.6426539852938},null,{"$f":"IF(\"CAPEX,\"&S$2&\",,\"&$B572&\",\"=VLOOKUP(\"CAPEX,\"&S$2&\",,\"&$B572&\",\",data[],1),VLOOKUP(\"CAPEX,\"&S$2&\",,\"&$B572&\",\",data[],7),S$501)","v":2.3667276243093918E-3},null,null,null,null,{"$f":"IF(X$2=\"\",0,IF(\"CAPEX,\"&X$2&\",,\"&$B572&\",\"=VLOOKUP(\"CAPEX,\"&X$2&\",,\"&$B572&\",\",data[],1),VLOOKUP(\"CAPEX,\"&X$2&\",,\"&$B572&\",\",data[],7),X$501))","v":0},null,{"$f":"IF(\"CAPEX,\"&Z$2&\",,\"&$B572&\",\"=VLOOKUP(\"CAPEX,\"&Z$2&\",,\"&$B572&\",\",data[],1),VLOOKUP(\"CAPEX,\"&Z$2&\",,\"&$B572&\",\",data[],7),Z$501)","v":2.3667276243093918E-3},null,null,null,{"$f":"IF(\"CAPEX,\"&AD$2&\",,\"&$B572&\",\"=VLOOKUP(\"CAPEX,\"&AD$2&\",,\"&$B572&\",\",data[],1),VLOOKUP(\"CAPEX,\"&AD$2&\",,\"&$B572&\",\",data[],7),AD$501)","v":1.0377410418368698},null,null,null,null,null,null,{"$f":"IF(AK$2=\"\",0,IF(\"CAPEX,\"&AK$2&\",,\"&$B572&\",\"=VLOOKUP(\"CAPEX,\"&AK$2&\",,\"&$B572&\",\",data[],1),VLOOKUP(\"CAPEX,\"&AK$2&\",,\"&$B572&\",\",data[],7),AK$501))","v":1457.3621055108172},null,{"$f":"IF(AM$2=\"\",0,IF(\"CAPEX,\"&AM$2&\",,\"&$B572&\",\"=VLOOKUP(\"CAPEX,\"&AM$2&\",,\"&$B572&\",\",data[],1),VLOOKUP(\"CAPEX,\"&AM$2&\",,\"&$B572&\",\",data[],7),AM$501))","v":144.49043833783671},null,null,null,null,null,null,null,null,null,null,null,null,null,null,{"$f":"IF(BB$2=\"\",0,IF(NOT(BB84),0,IF(\"CAPEX,\"&BB$2&\",,\"&$B572&\",\"=VLOOKUP(\"CAPEX,\"&BB$2&\",,\"&$B572&\",\",data[],1),VLOOKUP(\"CAPEX,\"&BB$2&\",,\"&$B572&\",\",data[],7),BB$501)))","v":318.14227153381154},null,null,{"$f":"IF(BE$2=\"\",0,IF(NOT(BE84),0,IF(\"CAPEX,\"&BE$2&\",,\"&$B572&\",\"=VLOOKUP(\"CAPEX,\"&BE$2&\",,\"&$B572&\",\",data[],1),VLOOKUP(\"CAPEX,\"&BE$2&\",,\"&$B572&\",\",data[],7),BE$501)))","v":0}]
[null,"ZAF-FRS",null,null,null,null,null,null,null,null,{"$f":"IF(\"CAPEX,\"&$K85&\",,\"&$B573&\",\"=VLOOKUP(\"CAPEX,\"&$K85&\",,\"&$B573&\",\",data[],1),VLOOKUP(\"CAPEX,\"&$K85&\",,\"&$B573&\",\",data[],7),INDEX($E$501:$I$501,$J85))","v":1229.1954260584585},null,null,null,null,null,{"$f":"IF(\"CAPEX,\"&Q$2&\",,\"&$B573&\",\"=VLOOKUP(\"CAPEX,\"&Q$2&\",,\"&$B573&\",\",data[],1),VLOOKUP(\"CAPEX,\"&Q$2&\",,\"&$B573&\",\",data[],7),Q$501)","v":650.6426539852938},null,{"$f":"IF(\"CAPEX,\"&S$2&\",,\"&$B573&\",\"=VLOOKUP(\"CAPEX,\"&S$2&\",,\"&$B573&\",\",data[],1),VLOOKUP(\"CAPEX,\"&S$2&\",,\"&$B573&\",\",data[],7),S$501)","v":2.3667276243093918E-3},null,null,null,null,{"$f":"IF(X$2=\"\",0,IF(\"CAPEX,\"&X$2&\",,\"&$B573&\",\"=VLOOKUP(\"CAPEX,\"&X$2&\",,\"&$B573&\",\",data[],1),VLOOKUP(\"CAPEX,\"&X$2&\",,\"&$B573&\",\",data[],7),X$501))","v":0},null,{"$f":"IF(\"CAPEX,\"&Z$2&\",,\"&$B573&\",\"=VLOOKUP(\"CAPEX,\"&Z$2&\",,\"&$B573&\",\",data[],1),VLOOKUP(\"CAPEX,\"&Z$2&\",,\"&$B573&\",\",data[],7),Z$501)","v":2.3667276243093918E-3},null,null,null,{"$f":"IF(\"CAPEX,\"&AD$2&\",,\"&$B573&\",\"=VLOOKUP(\"CAPEX,\"&AD$2&\",,\"&$B573&\",\",data[],1),VLOOKUP(\"CAPEX,\"&AD$2&\",,\"&$B573&\",\",data[],7),AD$501)","v":1.0377410418368698},null,null,null,null,null,null,{"$f":"IF(AK$2=\"\",0,IF(\"CAPEX,\"&AK$2&\",,\"&$B573&\",\"=VLOOKUP(\"CAPEX,\"&AK$2&\",,\"&$B573&\",\",data[],1),VLOOKUP(\"CAPEX,\"&AK$2&\",,\"&$B573&\",\",data[],7),AK$501))","v":1457.3621055108172},null,{"$f":"IF(AM$2=\"\",0,IF(\"CAPEX,\"&AM$2&\",,\"&$B573&\",\"=VLOOKUP(\"CAPEX,\"&AM$2&\",,\"&$B573&\",\",data[],1),VLOOKUP(\"CAPEX,\"&AM$2&\",,\"&$B573&\",\",data[],7),AM$501))","v":144.49043833783671},null,null,null,null,null,null,null,null,null,null,null,null,null,null,{"$f":"IF(BB$2=\"\",0,IF(NOT(BB85),0,IF(\"CAPEX,\"&BB$2&\",,\"&$B573&\",\"=VLOOKUP(\"CAPEX,\"&BB$2&\",,\"&$B573&\",\",data[],1),VLOOKUP(\"CAPEX,\"&BB$2&\",,\"&$B573&\",\",data[],7),BB$501)))","v":318.14227153381154},null,null,{"$f":"IF(BE$2=\"\",0,IF(NOT(BE85),0,IF(\"CAPEX,\"&BE$2&\",,\"&$B573&\",\"=VLOOKUP(\"CAPEX,\"&BE$2&\",,\"&$B573&\",\",data[],1),VLOOKUP(\"CAPEX,\"&BE$2&\",,\"&$B573&\",\",data[],7),BE$501)))","v":0}]
[null,"ZAF-GAU",null,null,null,null,null,null,null,null,{"$f":"IF(\"CAPEX,\"&$K86&\",,\"&$B574&\",\"=VLOOKUP(\"CAPEX,\"&$K86&\",,\"&$B574&\",\",data[],1),VLOOKUP(\"CAPEX,\"&$K86&\",,\"&$B574&\",\",data[],7),INDEX($E$501:$I$501,$J86))","v":1229.1954260584585},null,null,null,null,null,{"$f":"IF(\"CAPEX,\"&Q$2&\",,\"&$B574&\",\"=VLOOKUP(\"CAPEX,\"&Q$2&\",,\"&$B574&\",\",data[],1),VLOOKUP(\"CAPEX,\"&Q$2&\",,\"&$B574&\",\",data[],7),Q$501)","v":650.6426539852938},null,{"$f":"IF(\"CAPEX,\"&S$2&\",,\"&$B574&\",\"=VLOOKUP(\"CAPEX,\"&S$2&\",,\"&$B574&\",\",data[],1),VLOOKUP(\"CAPEX,\"&S$2&\",,\"&$B574&\",\",data[],7),S$501)","v":2.3667276243093918E-3},null,null,null,null,{"$f":"IF(X$2=\"\",0,IF(\"CAPEX,\"&X$2&\",,\"&$B574&\",\"=VLOOKUP(\"CAPEX,\"&X$2&\",,\"&$B574&\",\",data[],1),VLOOKUP(\"CAPEX,\"&X$2&\",,\"&$B574&\",\",data[],7),X$501))","v":0},null,{"$f":"IF(\"CAPEX,\"&Z$2&\",,\"&$B574&\",\"=VLOOKUP(\"CAPEX,\"&Z$2&\",,\"&$B574&\",\",data[],1),VLOOKUP(\"CAPEX,\"&Z$2&\",,\"&$B574&\",\",data[],7),Z$501)","v":2.3667276243093918E-3},null,null,null,{"$f":"IF(\"CAPEX,\"&AD$2&\",,\"&$B574&\",\"=VLOOKUP(\"CAPEX,\"&AD$2&\",,\"&$B574&\",\",data[],1),VLOOKUP(\"CAPEX,\"&AD$2&\",,\"&$B574&\",\",data[],7),AD$501)","v":1.0377410418368698},null,null,null,null,null,null,{"$f":"IF(AK$2=\"\",0,IF(\"CAPEX,\"&AK$2&\",,\"&$B574&\",\"=VLOOKUP(\"CAPEX,\"&AK$2&\",,\"&$B574&\",\",data[],1),VLOOKUP(\"CAPEX,\"&AK$2&\",,\"&$B574&\",\",data[],7),AK$501))","v":1457.3621055108172},null,{"$f":"IF(AM$2=\"\",0,IF(\"CAPEX,\"&AM$2&\",,\"&$B574&\",\"=VLOOKUP(\"CAPEX,\"&AM$2&\",,\"&$B574&\",\",data[],1),VLOOKUP(\"CAPEX,\"&AM$2&\",,\"&$B574&\",\",data[],7),AM$501))","v":144.49043833783671},null,null,null,null,null,null,null,null,null,null,null,null,null,null,{"$f":"IF(BB$2=\"\",0,IF(NOT(BB86),0,IF(\"CAPEX,\"&BB$2&\",,\"&$B574&\",\"=VLOOKUP(\"CAPEX,\"&BB$2&\",,\"&$B574&\",\",data[],1),VLOOKUP(\"CAPEX,\"&BB$2&\",,\"&$B574&\",\",data[],7),BB$501)))","v":318.14227153381154},null,null,{"$f":"IF(BE$2=\"\",0,IF(NOT(BE86),0,IF(\"CAPEX,\"&BE$2&\",,\"&$B574&\",\"=VLOOKUP(\"CAPEX,\"&BE$2&\",,\"&$B574&\",\",data[],1),VLOOKUP(\"CAPEX,\"&BE$2&\",,\"&$B574&\",\",data[],7),BE$501)))","v":0}]
[null,"ZAF-KWA",null,null,null,null,null,null,null,null,{"$f":"IF(\"CAPEX,\"&$K87&\",,\"&$B575&\",\"=VLOOKUP(\"CAPEX,\"&$K87&\",,\"&$B575&\",\",data[],1),VLOOKUP(\"CAPEX,\"&$K87&\",,\"&$B575&\",\",data[],7),INDEX($E$501:$I$501,$J87))","v":1229.1954260584585},null,null,null,null,null,{"$f":"IF(\"CAPEX,\"&Q$2&\",,\"&$B575&\",\"=VLOOKUP(\"CAPEX,\"&Q$2&\",,\"&$B575&\",\",data[],1),VLOOKUP(\"CAPEX,\"&Q$2&\",,\"&$B575&\",\",data[],7),Q$501)","v":650.6426539852938},null,{"$f":"IF(\"CAPEX,\"&S$2&\",,\"&$B575&\",\"=VLOOKUP(\"CAPEX,\"&S$2&\",,\"&$B575&\",\",data[],1),VLOOKUP(\"CAPEX,\"&S$2&\",,\"&$B575&\",\",data[],7),S$501)","v":2.3667276243093918E-3},null,null,null,null,{"$f":"IF(X$2=\"\",0,IF(\"CAPEX,\"&X$2&\",,\"&$B575&\",\"=VLOOKUP(\"CAPEX,\"&X$2&\",,\"&$B575&\",\",data[],1),VLOOKUP(\"CAPEX,\"&X$2&\",,\"&$B575&\",\",data[],7),X$501))","v":0},null,{"$f":"IF(\"CAPEX,\"&Z$2&\",,\"&$B575&\",\"=VLOOKUP(\"CAPEX,\"&Z$2&\",,\"&$B575&\",\",data[],1),VLOOKUP(\"CAPEX,\"&Z$2&\",,\"&$B575&\",\",data[],7),Z$501)","v":2.3667276243093918E-3},null,null,null,{"$f":"IF(\"CAPEX,\"&AD$2&\",,\"&$B575&\",\"=VLOOKUP(\"CAPEX,\"&AD$2&\",,\"&$B575&\",\",data[],1),VLOOKUP(\"CAPEX,\"&AD$2&\",,\"&$B575&\",\",data[],7),AD$501)","v":1.0377410418368698},null,null,null,null,null,null,{"$f":"IF(AK$2=\"\",0,IF(\"CAPEX,\"&AK$2&\",,\"&$B575&\",\"=VLOOKUP(\"CAPEX,\"&AK$2&\",,\"&$B575&\",\",data[],1),VLOOKUP(\"CAPEX,\"&AK$2&\",,\"&$B575&\",\",data[],7),AK$501))","v":1457.3621055108172},null,{"$f":"IF(AM$2=\"\",0,IF(\"CAPEX,\"&AM$2&\",,\"&$B575&\",\"=VLOOKUP(\"CAPEX,\"&AM$2&\",,\"&$B575&\",\",data[],1),VLOOKUP(\"CAPEX,\"&AM$2&\",,\"&$B575&\",\",data[],7),AM$501))","v":144.49043833783671},null,null,null,null,null,null,null,null,null,null,null,null,null,null,{"$f":"IF(BB$2=\"\",0,IF(NOT(BB87),0,IF(\"CAPEX,\"&BB$2&\",,\"&$B575&\",\"=VLOOKUP(\"CAPEX,\"&BB$2&\",,\"&$B575&\",\",data[],1),VLOOKUP(\"CAPEX,\"&BB$2&\",,\"&$B575&\",\",data[],7),BB$501)))","v":318.14227153381154},null,null,{"$f":"IF(BE$2=\"\",0,IF(NOT(BE87),0,IF(\"CAPEX,\"&BE$2&\",,\"&$B575&\",\"=VLOOKUP(\"CAPEX,\"&BE$2&\",,\"&$B575&\",\",data[],1),VLOOKUP(\"CAPEX,\"&BE$2&\",,\"&$B575&\",\",data[],7),BE$501)))","v":0}]
[null,"ZAF-LIM",null,null,null,null,null,null,null,null,{"$f":"IF(\"CAPEX,\"&$K88&\",,\"&$B576&\",\"=VLOOKUP(\"CAPEX,\"&$K88&\",,\"&$B576&\",\",data[],1),VLOOKUP(\"CAPEX,\"&$K88&\",,\"&$B576&\",\",data[],7),INDEX($E$501:$I$501,$J88))","v":1229.1954260584585},null,null,null,null,null,{"$f":"IF(\"CAPEX,\"&Q$2&\",,\"&$B576&\",\"=VLOOKUP(\"CAPEX,\"&Q$2&\",,\"&$B576&\",\",data[],1),VLOOKUP(\"CAPEX,\"&Q$2&\",,\"&$B576&\",\",data[],7),Q$501)","v":650.6426539852938},null,{"$f":"IF(\"CAPEX,\"&S$2&\",,\"&$B576&\",\"=VLOOKUP(\"CAPEX,\"&S$2&\",,\"&$B576&\",\",data[],1),VLOOKUP(\"CAPEX,\"&S$2&\",,\"&$B576&\",\",data[],7),S$501)","v":2.3667276243093918E-3},null,null,null,null,{"$f":"IF(X$2=\"\",0,IF(\"CAPEX,\"&X$2&\",,\"&$B576&\",\"=VLOOKUP(\"CAPEX,\"&X$2&\",,\"&$B576&\",\",data[],1),VLOOKUP(\"CAPEX,\"&X$2&\",,\"&$B576&\",\",data[],7),X$501))","v":0},null,{"$f":"IF(\"CAPEX,\"&Z$2&\",,\"&$B576&\",\"=VLOOKUP(\"CAPEX,\"&Z$2&\",,\"&$B576&\",\",data[],1),VLOOKUP(\"CAPEX,\"&Z$2&\",,\"&$B576&\",\",data[],7),Z$501)","v":2.3667276243093918E-3},null,null,null,{"$f":"IF(\"CAPEX,\"&AD$2&\",,\"&$B576&\",\"=VLOOKUP(\"CAPEX,\"&AD$2&\",,\"&$B576&\",\",data[],1),VLOOKUP(\"CAPEX,\"&AD$2&\",,\"&$B576&\",\",data[],7),AD$501)","v":1.0377410418368698},null,null,null,null,null,null,{"$f":"IF(AK$2=\"\",0,IF(\"CAPEX,\"&AK$2&\",,\"&$B576&\",\"=VLOOKUP(\"CAPEX,\"&AK$2&\",,\"&$B576&\",\",data[],1),VLOOKUP(\"CAPEX,\"&AK$2&\",,\"&$B576&\",\",data[],7),AK$501))","v":1457.3621055108172},null,{"$f":"IF(AM$2=\"\",0,IF(\"CAPEX,\"&AM$2&\",,\"&$B576&\",\"=VLOOKUP(\"CAPEX,\"&AM$2&\",,\"&$B576&\",\",data[],1),VLOOKUP(\"CAPEX,\"&AM$2&\",,\"&$B576&\",\",data[],7),AM$501))","v":144.49043833783671},null,null,null,null,null,null,null,null,null,null,null,null,null,null,{"$f":"IF(BB$2=\"\",0,IF(NOT(BB88),0,IF(\"CAPEX,\"&BB$2&\",,\"&$B576&\",\"=VLOOKUP(\"CAPEX,\"&BB$2&\",,\"&$B576&\",\",data[],1),VLOOKUP(\"CAPEX,\"&BB$2&\",,\"&$B576&\",\",data[],7),BB$501)))","v":318.14227153381154},null,null,{"$f":"IF(BE$2=\"\",0,IF(NOT(BE88),0,IF(\"CAPEX,\"&BE$2&\",,\"&$B576&\",\"=VLOOKUP(\"CAPEX,\"&BE$2&\",,\"&$B576&\",\",data[],1),VLOOKUP(\"CAPEX,\"&BE$2&\",,\"&$B576&\",\",data[],7),BE$501)))","v":0}]
[null,"ZAF-MPU",null,null,null,null,null,null,null,null,{"$f":"IF(\"CAPEX,\"&$K89&\",,\"&$B577&\",\"=VLOOKUP(\"CAPEX,\"&$K89&\",,\"&$B577&\",\",data[],1),VLOOKUP(\"CAPEX,\"&$K89&\",,\"&$B577&\",\",data[],7),INDEX($E$501:$I$501,$J89))","v":1229.1954260584585},null,null,null,null,null,{"$f":"IF(\"CAPEX,\"&Q$2&\",,\"&$B577&\",\"=VLOOKUP(\"CAPEX,\"&Q$2&\",,\"&$B577&\",\",data[],1),VLOOKUP(\"CAPEX,\"&Q$2&\",,\"&$B577&\",\",data[],7),Q$501)","v":650.6426539852938},null,{"$f":"IF(\"CAPEX,\"&S$2&\",,\"&$B577&\",\"=VLOOKUP(\"CAPEX,\"&S$2&\",,\"&$B577&\",\",data[],1),VLOOKUP(\"CAPEX,\"&S$2&\",,\"&$B577&\",\",data[],7),S$501)","v":2.3667276243093918E-3},null,null,null,null,{"$f":"IF(X$2=\"\",0,IF(\"CAPEX,\"&X$2&\",,\"&$B577&\",\"=VLOOKUP(\"CAPEX,\"&X$2&\",,\"&$B577&\",\",data[],1),VLOOKUP(\"CAPEX,\"&X$2&\",,\"&$B577&\",\",data[],7),X$501))","v":0},null,{"$f":"IF(\"CAPEX,\"&Z$2&\",,\"&$B577&\",\"=VLOOKUP(\"CAPEX,\"&Z$2&\",,\"&$B577&\",\",data[],1),VLOOKUP(\"CAPEX,\"&Z$2&\",,\"&$B577&\",\",data[],7),Z$501)","v":2.3667276243093918E-3},null,null,null,{"$f":"IF(\"CAPEX,\"&AD$2&\",,\"&$B577&\",\"=VLOOKUP(\"CAPEX,\"&AD$2&\",,\"&$B577&\",\",data[],1),VLOOKUP(\"CAPEX,\"&AD$2&\",,\"&$B577&\",\",data[],7),AD$501)","v":1.0377410418368698},null,null,null,null,null,null,{"$f":"IF(AK$2=\"\",0,IF(\"CAPEX,\"&AK$2&\",,\"&$B577&\",\"=VLOOKUP(\"CAPEX,\"&AK$2&\",,\"&$B577&\",\",data[],1),VLOOKUP(\"CAPEX,\"&AK$2&\",,\"&$B577&\",\",data[],7),AK$501))","v":1457.3621055108172},null,{"$f":"IF(AM$2=\"\",0,IF(\"CAPEX,\"&AM$2&\",,\"&$B577&\",\"=VLOOKUP(\"CAPEX,\"&AM$2&\",,\"&$B577&\",\",data[],1),VLOOKUP(\"CAPEX,\"&AM$2&\",,\"&$B577&\",\",data[],7),AM$501))","v":144.49043833783671},null,null,null,null,null,null,null,null,null,null,null,null,null,null,{"$f":"IF(BB$2=\"\",0,IF(NOT(BB89),0,IF(\"CAPEX,\"&BB$2&\",,\"&$B577&\",\"=VLOOKUP(\"CAPEX,\"&BB$2&\",,\"&$B577&\",\",data[],1),VLOOKUP(\"CAPEX,\"&BB$2&\",,\"&$B577&\",\",data[],7),BB$501)))","v":318.14227153381154},null,null,{"$f":"IF(BE$2=\"\",0,IF(NOT(BE89),0,IF(\"CAPEX,\"&BE$2&\",,\"&$B577&\",\"=VLOOKUP(\"CAPEX,\"&BE$2&\",,\"&$B577&\",\",data[],1),VLOOKUP(\"CAPEX,\"&BE$2&\",,\"&$B577&\",\",data[],7),BE$501)))","v":0}]
[null,"ZAF-NC",null,null,null,null,null,null,null,null,{"$f":"IF(\"CAPEX,\"&$K90&\",,\"&$B578&\",\"=VLOOKUP(\"CAPEX,\"&$K90&\",,\"&$B578&\",\",data[],1),VLOOKUP(\"CAPEX,\"&$K90&\",,\"&$B578&\",\",data[],7),INDEX($E$501:$I$501,$J90))","v":1229.1954260584585},null,null,null,null,null,{"$f":"IF(\"CAPEX,\"&Q$2&\",,\"&$B578&\",\"=VLOOKUP(\"CAPEX,\"&Q$2&\",,\"&$B578&\",\",data[],1),VLOOKUP(\"CAPEX,\"&Q$2&\",,\"&$B578&\",\",data[],7),Q$501)","v":650.6426539852938},null,{"$f":"IF(\"CAPEX,\"&S$2&\",,\"&$B578&\",\"=VLOOKUP(\"CAPEX,\"&S$2&\",,\"&$B578&\",\",data[],1),VLOOKUP(\"CAPEX,\"&S$2&\",,\"&$B578&\",\",data[],7),S$501)","v":2.3667276243093918E-3},null,null,null,null,{"$f":"IF(X$2=\"\",0,IF(\"CAPEX,\"&X$2&\",,\"&$B578&\",\"=VLOOKUP(\"CAPEX,\"&X$2&\",,\"&$B578&\",\",data[],1),VLOOKUP(\"CAPEX,\"&X$2&\",,\"&$B578&\",\",data[],7),X$501))","v":0},null,{"$f":"IF(\"CAPEX,\"&Z$2&\",,\"&$B578&\",\"=VLOOKUP(\"CAPEX,\"&Z$2&\",,\"&$B578&\",\",data[],1),VLOOKUP(\"CAPEX,\"&Z$2&\",,\"&$B578&\",\",data[],7),Z$501)","v":2.3667276243093918E-3},null,null,null,{"$f":"IF(\"CAPEX,\"&AD$2&\",,\"&$B578&\",\"=VLOOKUP(\"CAPEX,\"&AD$2&\",,\"&$B578&\",\",data[],1),VLOOKUP(\"CAPEX,\"&AD$2&\",,\"&$B578&\",\",data[],7),AD$501)","v":1.0377410418368698},null,null,null,null,null,null,{"$f":"IF(AK$2=\"\",0,IF(\"CAPEX,\"&AK$2&\",,\"&$B578&\",\"=VLOOKUP(\"CAPEX,\"&AK$2&\",,\"&$B578&\",\",data[],1),VLOOKUP(\"CAPEX,\"&AK$2&\",,\"&$B578&\",\",data[],7),AK$501))","v":1457.3621055108172},null,{"$f":"IF(AM$2=\"\",0,IF(\"CAPEX,\"&AM$2&\",,\"&$B578&\",\"=VLOOKUP(\"CAPEX,\"&AM$2&\",,\"&$B578&\",\",data[],1),VLOOKUP(\"CAPEX,\"&AM$2&\",,\"&$B578&\",\",data[],7),AM$501))","v":144.49043833783671},null,null,null,null,null,null,null,null,null,null,null,null,null,null,{"$f":"IF(BB$2=\"\",0,IF(NOT(BB90),0,IF(\"CAPEX,\"&BB$2&\",,\"&$B578&\",\"=VLOOKUP(\"CAPEX,\"&BB$2&\",,\"&$B578&\",\",data[],1),VLOOKUP(\"CAPEX,\"&BB$2&\",,\"&$B578&\",\",data[],7),BB$501)))","v":318.14227153381154},null,null,{"$f":"IF(BE$2=\"\",0,IF(NOT(BE90),0,IF(\"CAPEX,\"&BE$2&\",,\"&$B578&\",\"=VLOOKUP(\"CAPEX,\"&BE$2&\",,\"&$B578&\",\",data[],1),VLOOKUP(\"CAPEX,\"&BE$2&\",,\"&$B578&\",\",data[],7),BE$501)))","v":0}]
[null,"ZAF-NW",null,null,null,null,null,null,null,null,{"$f":"IF(\"CAPEX,\"&$K91&\",,\"&$B579&\",\"=VLOOKUP(\"CAPEX,\"&$K91&\",,\"&$B579&\",\",data[],1),VLOOKUP(\"CAPEX,\"&$K91&\",,\"&$B579&\",\",data[],7),INDEX($E$501:$I$501,$J91))","v":1229.1954260584585},null,null,null,null,null,{"$f":"IF(\"CAPEX,\"&Q$2&\",,\"&$B579&\",\"=VLOOKUP(\"CAPEX,\"&Q$2&\",,\"&$B579&\",\",data[],1),VLOOKUP(\"CAPEX,\"&Q$2&\",,\"&$B579&\",\",data[],7),Q$501)","v":650.6426539852938},null,{"$f":"IF(\"CAPEX,\"&S$2&\",,\"&$B579&\",\"=VLOOKUP(\"CAPEX,\"&S$2&\",,\"&$B579&\",\",data[],1),VLOOKUP(\"CAPEX,\"&S$2&\",,\"&$B579&\",\",data[],7),S$501)","v":2.3667276243093918E-3},null,null,null,null,{"$f":"IF(X$2=\"\",0,IF(\"CAPEX,\"&X$2&\",,\"&$B579&\",\"=VLOOKUP(\"CAPEX,\"&X$2&\",,\"&$B579&\",\",data[],1),VLOOKUP(\"CAPEX,\"&X$2&\",,\"&$B579&\",\",data[],7),X$501))","v":0},null,{"$f":"IF(\"CAPEX,\"&Z$2&\",,\"&$B579&\",\"=VLOOKUP(\"CAPEX,\"&Z$2&\",,\"&$B579&\",\",data[],1),VLOOKUP(\"CAPEX,\"&Z$2&\",,\"&$B579&\",\",data[],7),Z$501)","v":2.3667276243093918E-3},null,null,null,{"$f":"IF(\"CAPEX,\"&AD$2&\",,\"&$B579&\",\"=VLOOKUP(\"CAPEX,\"&AD$2&\",,\"&$B579&\",\",data[],1),VLOOKUP(\"CAPEX,\"&AD$2&\",,\"&$B579&\",\",data[],7),AD$501)","v":1.0377410418368698},null,null,null,null,null,null,{"$f":"IF(AK$2=\"\",0,IF(\"CAPEX,\"&AK$2&\",,\"&$B579&\",\"=VLOOKUP(\"CAPEX,\"&AK$2&\",,\"&$B579&\",\",data[],1),VLOOKUP(\"CAPEX,\"&AK$2&\",,\"&$B579&\",\",data[],7),AK$501))","v":1457.3621055108172},null,{"$f":"IF(AM$2=\"\",0,IF(\"CAPEX,\"&AM$2&\",,\"&$B579&\",\"=VLOOKUP(\"CAPEX,\"&AM$2&\",,\"&$B579&\",\",data[],1),VLOOKUP(\"CAPEX,\"&AM$2&\",,\"&$B579&\",\",data[],7),AM$501))","v":144.49043833783671},null,null,null,null,null,null,null,null,null,null,null,null,null,null,{"$f":"IF(BB$2=\"\",0,IF(NOT(BB91),0,IF(\"CAPEX,\"&BB$2&\",,\"&$B579&\",\"=VLOOKUP(\"CAPEX,\"&BB$2&\",,\"&$B579&\",\",data[],1),VLOOKUP(\"CAPEX,\"&BB$2&\",,\"&$B579&\",\",data[],7),BB$501)))","v":318.14227153381154},null,null,{"$f":"IF(BE$2=\"\",0,IF(NOT(BE91),0,IF(\"CAPEX,\"&BE$2&\",,\"&$B579&\",\"=VLOOKUP(\"CAPEX,\"&BE$2&\",,\"&$B579&\",\",data[],1),VLOOKUP(\"CAPEX,\"&BE$2&\",,\"&$B579&\",\",data[],7),BE$501)))","v":0}]
[null,"ZAF-WC",null,null,null,null,null,null,null,null,{"$f":"IF(\"CAPEX,\"&$K92&\",,\"&$B580&\",\"=VLOOKUP(\"CAPEX,\"&$K92&\",,\"&$B580&\",\",data[],1),VLOOKUP(\"CAPEX,\"&$K92&\",,\"&$B580&\",\",data[],7),INDEX($E$501:$I$501,$J92))","v":1229.1954260584585},null,null,null,null,null,{"$f":"IF(\"CAPEX,\"&Q$2&\",,\"&$B580&\",\"=VLOOKUP(\"CAPEX,\"&Q$2&\",,\"&$B580&\",\",data[],1),VLOOKUP(\"CAPEX,\"&Q$2&\",,\"&$B580&\",\",data[],7),Q$501)","v":650.6426539852938},null,{"$f":"IF(\"CAPEX,\"&S$2&\",,\"&$B580&\",\"=VLOOKUP(\"CAPEX,\"&S$2&\",,\"&$B580&\",\",data[],1),VLOOKUP(\"CAPEX,\"&S$2&\",,\"&$B580&\",\",data[],7),S$501)","v":2.3667276243093918E-3},null,null,null,null,{"$f":"IF(X$2=\"\",0,IF(\"CAPEX,\"&X$2&\",,\"&$B580&\",\"=VLOOKUP(\"CAPEX,\"&X$2&\",,\"&$B580&\",\",data[],1),VLOOKUP(\"CAPEX,\"&X$2&\",,\"&$B580&\",\",data[],7),X$501))","v":0},null,{"$f":"IF(\"CAPEX,\"&Z$2&\",,\"&$B580&\",\"=VLOOKUP(\"CAPEX,\"&Z$2&\",,\"&$B580&\",\",data[],1),VLOOKUP(\"CAPEX,\"&Z$2&\",,\"&$B580&\",\",data[],7),Z$501)","v":2.3667276243093918E-3},null,null,null,{"$f":"IF(\"CAPEX,\"&AD$2&\",,\"&$B580&\",\"=VLOOKUP(\"CAPEX,\"&AD$2&\",,\"&$B580&\",\",data[],1),VLOOKUP(\"CAPEX,\"&AD$2&\",,\"&$B580&\",\",data[],7),AD$501)","v":1.0377410418368698},null,null,null,null,null,null,{"$f":"IF(AK$2=\"\",0,IF(\"CAPEX,\"&AK$2&\",,\"&$B580&\",\"=VLOOKUP(\"CAPEX,\"&AK$2&\",,\"&$B580&\",\",data[],1),VLOOKUP(\"CAPEX,\"&AK$2&\",,\"&$B580&\",\",data[],7),AK$501))","v":1457.3621055108172},null,{"$f":"IF(AM$2=\"\",0,IF(\"CAPEX,\"&AM$2&\",,\"&$B580&\",\"=VLOOKUP(\"CAPEX,\"&AM$2&\",,\"&$B580&\",\",data[],1),VLOOKUP(\"CAPEX,\"&AM$2&\",,\"&$B580&\",\",data[],7),AM$501))","v":144.49043833783671},null,null,null,null,null,null,null,null,null,null,null,null,null,null,{"$f":"IF(BB$2=\"\",0,IF(NOT(BB92),0,IF(\"CAPEX,\"&BB$2&\",,\"&$B580&\",\"=VLOOKUP(\"CAPEX,\"&BB$2&\",,\"&$B580&\",\",data[],1),VLOOKUP(\"CAPEX,\"&BB$2&\",,\"&$B580&\",\",data[],7),BB$501)))","v":318.14227153381154},null,null,{"$f":"IF(BE$2=\"\",0,IF(NOT(BE92),0,IF(\"CAPEX,\"&BE$2&\",,\"&$B580&\",\"=VLOOKUP(\"CAPEX,\"&BE$2&\",,\"&$B580&\",\",data[],1),VLOOKUP(\"CAPEX,\"&BE$2&\",,\"&$B580&\",\",data[],7),BE$501)))","v":0}]
[]
["capex-ann",null,null,{"$f":"IF(\"WACC,,,,\"=VLOOKUP(\"WACC,,,,\",data[],1),VLOOKUP(\"WACC,,,,\",data[],7),0)","v":0},null,null,null,null,null,null,null,null,null,null,null,null,null,null,null,null,null,null,null,null,null,null,null,null,null,null,null,null,null,null,null,null,null,null,null,null,null,null,null,null,null,null,null,null,null,null,null,null,null,null,null,null,null,null,null,null,null,null,null,null,null,null,"COST-CAPEX"]
[null,"ARE",null,{"$f":"IF(\"WACC,,,\"&$B583&\",\"=VLOOKUP(\"WACC,,,\"&$B583&\",\",data[],1),VLOOKUP(\"WACC,,,\"&$B583&\",\",data[],7),$D$582)","v":5.5673211551852057E-2},null,null,null,null,null,null,{"$f":"-PMT($D583,K420,K338*K502)","v":3.0486204540106296E-2},null,null,null,null,null,{"$f":"-PMT($D583,Q420,Q338*Q502)","v":1.2760399313156577E-2},null,{"$f":"-PMT($D583,S420,S338*S502)","v":4.1224840198506618E-5},null,null,null,null,{"$f":"IF(X$2=\"\",0,-PMT($D583,X420,X338*X502))","v":0},null,{"$f":"-PMT($D583,Z420,Z338*Z502)","v":0},null,null,null,{"$f":"-PMT($D583,AD420,AD338*AD502)","v":0},null,null,null,null,null,null,{"$f":"IFERROR(-PMT($D583,AK420,AK338*AK502),0)","v":0},null,{"$f":"IFERROR(-PMT($D583,AM420,AM338*AM502),0)","v":1.2601169588042944E-3},null,null,null,null,null,null,null,null,null,null,null,null,null,null,{"$f":"IFERROR(-PMT($D583,BB420,BB338*BB502),0)","v":0},null,null,0,null,null,null,null,null,null,null,null,null,null,{"$f":"SUMIF($K$8:$BJ$8,BP$1,$K583:$BJ583)*$BL95*conv_fact_to_mass","v":6.6805023744765157E-2},20.678279770238884,49.403020324220591,2.0420247343287863,0,0,0,0]
[null,"ARG",null,{"$f":"IF(\"WACC,,,\"&$B584&\",\"=VLOOKUP(\"WACC,,,\"&$B584&\",\",data[],1),VLOOKUP(\"WACC,,,\"&$B584&\",\",data[],7),$D$582)","v":0.15031035355923136},null,null,null,null,null,null,3.4434417504665235E-2,null,null,null,null,null,1.2419496260997351E-2,null,7.8403639832239316E-5,null,null,null,null,{"$f":"IF(X$2=\"\",0,-PMT($D584,X421,X339*X503))","v":0},null,0,null,null,null,0,null,null,null,null,null,null,2.5618416539058081E-2,null,0,null,null,null,null,null,null,null,null,null,null,null,null,null,null,4.4236750038775374E-3,null,null,0,null,null,null,null,null,null,null,null,null,null,0.15608335265630313,24.724319162562562,68.550890524919339,0,59.806794414930117,0,0,0]
[null,"ARG-BA",null,{"$f":"IF(\"WACC,,,\"&$B585&\",\"=VLOOKUP(\"WACC,,,\"&$B585&\",\",data[],1),VLOOKUP(\"WACC,,,\"&$B585&\",\",data[],7),$D$582)","v":0.15031035355923136},null,null,null,null,null,null,3.9412725804556063E-2,null,null,null,null,null,1.4318924541604005E-2,null,7.8403639832239316E-5,null,null,null,null,0,null,0,null,null,null,0,null,null,null,null,null,null,3.095598627559714E-2,null,0,null,null,null,null,null,null,null,null,null,null,null,null,null,null,4.4236750038775374E-3,null,null,0,null,null,null,null,null,null,null,null,null,null,0.15608335265630313,28.505637667693705,78.461540740474106,0,70.432650322875688,0,0,0]
[null,"ARG-CAT",null,{"$f":"IF(\"WACC,,,\"&$B586&\",\"=VLOOKUP(\"WACC,,,\"&$B586&\",\",data[],1),VLOOKUP(\"WACC,,,\"&$B586&\",\",data[],7),$D$582)","v":0.15031035355923136},null,null,null,null,null,null,4.045784436543045E-2,null,null,null,null,null,1.4746589874504968E-2,null,7.8403639832239316E-5,null,null,null,null,0,null,0,null,null,null,0,null,null,null,null,null,null,3.1948149924382524E-2,null,0,null,null,null,null,null,null,null,null,null,null,null,null,null,null,4.4236750038775374E-3,null,null,0,null,null,null,null,null,null,null,null,null,null,0.15608335265630313,29.357019556556072,80.542127933283595,0,72.407816641907417,0,0,0]
[null,"ARG-CBA",null,{"$f":"IF(\"WACC,,,\"&$B587&\",\"=VLOOKUP(\"WACC,,,\"&$B587&\",\",data[],1),VLOOKUP(\"WACC,,,\"&$B587&\",\",data[],7),$D$582)","v":0.15031035355923136},null,null,null,null,null,null,4.0641614536038782E-2,null,null,null,null,null,1.4822077838787938E-2,null,7.8403639832239316E-5,null,null,null,null,0,null,0,null,null,null,0,null,null,null,null,null,null,3.2123715520018352E-2,null,0,null,null,null,null,null,null,null,null,null,null,null,null,null,null,4.4236750038775374E-3,null,null,0,null,null,null,null,null,null,null,null,null,null,0.15608335265630313,29.507298479520568,80.90797146310112,0,72.75732677736255,0,0,0]
[null,"ARG-CHA",null,{"$f":"IF(\"WACC,,,\"&$B588&\",\"=VLOOKUP(\"WACC,,,\"&$B588&\",\",data[],1),VLOOKUP(\"WACC,,,\"&$B588&\",\",data[],7),$D$582)","v":0.15031035355923136},null,null,null,null,null,null,4.4778869018206255E-2,null,null,null,null,null,1.6544796583525537E-2,null,7.8403639832239316E-5,null,null,null,null,0,null,0,null,null,null,0,null,null,null,null,null,null,3.6166357767121481E-2,null,0,null,null,null,null,null,null,null,null,null,null,null,null,null,null,4.4236750038775374E-3,null,null,0,null,null,null,null,null,null,null,null,null,null,0.15608335265630313,32.9368295311126,89.144279774178841,0,80.80528420469625,0,0,0]
[null,"ARG-CHU",null,{"$f":"IF(\"WACC,,,\"&$B589&\",\"=VLOOKUP(\"WACC,,,\"&$B589&\",\",data[],1),VLOOKUP(\"WACC,,,\"&$B589&\",\",data[],7),$D$582)","v":0.15031035355923136},null,null,null,null,null,null,3.0503573671690178E-2,null,null,null,null,null,1.0783172325935463E-2,null,7.8403639832239316E-5,null,null,null,null,0,null,0,null,null,null,0,null,null,null,null,null,null,2.2911285627123541E-2,null,0,null,null,null,null,null,null,null,null,null,null,null,null,null,null,4.4236750038775374E-3,null,null,0,null,null,null,null,null,null,null,null,null,null,0.15608335265630313,21.466780018172056,60.725497653722364,0,54.417528435463268,0,0,0]
[null,"ARG-COR",null,{"$f":"IF(\"WACC,,,\"&$B590&\",\"=VLOOKUP(\"WACC,,,\"&$B590&\",\",data[],1),VLOOKUP(\"WACC,,,\"&$B590&\",\",data[],7),$D$582)","v":0.15031035355923136},null,null,null,null,null,null,4.5364584544349162E-2,null,null,null,null,null,1.6792336322913121E-2,null,7.8403639832239316E-5,null,null,null,null,0,null,0,null,null,null,0,null,null,null,null,null,null,3.675298287502976E-2,null,0,null,null,null,null,null,null,null,null,null,null,null,null,null,null,4.4236750038775374E-3,null,null,0,null,null,null,null,null,null,null,null,null,null,0.15608335265630313,33.429623392749036,90.310302719272315,0,81.973117914848061,0,0,0]
[null,"ARG-CRB",null,{"$f":"IF(\"WACC,,,\"&$B591&\",\"=VLOOKUP(\"WACC,,,\"&$B591&\",\",data[],1),VLOOKUP(\"WACC,,,\"&$B591&\",\",data[],7),$D$582)","v":0.15031035355923136},null,null,null,null,null,null,4.8035458027313425E-2,null,null,null,null,null,1.7932878268800474E-2,null,7.8403639832239316E-5,null,null,null,null,0,null,0,null,null,null,0,null,null,null,null,null,null,3.9474763874532803E-2,null,0,null,null,null,null,null,null,null,null,null,null,null,null,null,null,4.4236750038775374E-3,null,null,0,null,null,null,null,null,null,null,null,null,null,0.15608335265630313,35.700176279581221,95.627388617757106,0,87.3915488002975,0,0,0]
[null,"ARG-CRU",null,{"$f":"IF(\"WACC,,,\"&$B592&\",\"=VLOOKUP(\"WACC,,,\"&$B592&\",\",data[],1),VLOOKUP(\"WACC,,,\"&$B592&\",\",data[],7),$D$582)","v":0.15031035355923136},null,null,null,null,null,null,3.0603845743748553E-2,null,null,null,null,null,1.0821905155718028E-2,null,7.8403639832239316E-5,null,null,null,null,0,null,0,null,null,null,0,null,null,null,null,null,null,2.2997913522118364E-2,null,0,null,null,null,null,null,null,null,null,null,null,null,null,null,null,4.4236750038775374E-3,null,null,0,null,null,null,null,null,null,null,null,null,null,0.15608335265630313,21.543888044575734,60.925115952288017,0,54.589984361148382,0,0,0]
[null,"ARG-EST",null,{"$f":"IF(\"WACC,,,\"&$B593&\",\"=VLOOKUP(\"WACC,,,\"&$B593&\",\",data[],1),VLOOKUP(\"WACC,,,\"&$B593&\",\",data[],7),$D$582)","v":0.15031035355923136},null,null,null,null,null,null,3.989206128184325E-2,null,null,null,null,null,1.4514724007362189E-2,null,7.8403639832239316E-5,null,null,null,null,0,null,0,null,null,null,0,null,null,null,null,null,null,3.14097103293507E-2,null,0,null,null,null,null,null,null,null,null,null,null,null,null,null,null,4.4236750038775374E-3,null,null,0,null,null,null,null,null,null,null,null,null,null,{"$f":"SUMIF($K$8:$BJ$8,BP$1,$K593:$BJ593)*$BL105*conv_fact_to_mass","v":0.15608335265630313},28.895428717308775,79.415785830398221,0,71.335909044565085,0,0,0]
[null,"ARG-FOR",null,{"$f":"IF(\"WACC,,,\"&$B594&\",\"=VLOOKUP(\"WACC,,,\"&$B594&\",\",data[],1),VLOOKUP(\"WACC,,,\"&$B594&\",\",data[],7),$D$582)","v":0.15031035355923136},null,null,null,null,null,null,3.9400859248208617E-2,null,null,null,null,null,1.4314084688069157E-2,null,7.8403639832239316E-5,null,null,null,null,0,null,0,null,null,null,0,null,null,null,null,null,null,3.0944782066186238E-2,null,0,null,null,null,null,null,null,null,null,null,null,null,null,null,null,4.4236750038775374E-3,null,null,0,null,null,null,null,null,null,null,null,null,null,0.15608335265630313,28.496002648609121,78.437917195659637,0,70.41034535626369,0,0,0]
[null,"ARG-FUE",null,{"$f":"IF(\"WACC,,,\"&$B595&\",\"=VLOOKUP(\"WACC,,,\"&$B595&\",\",data[],1),VLOOKUP(\"WACC,,,\"&$B595&\",\",data[],7),$D$582)","v":0.15031035355923136},null,null,null,null,null,null,4.4824218264428915E-2,null,null,null,null,null,1.6563929656724537E-2,null,7.8403639832239316E-5,null,null,null,null,0,null,0,null,null,null,0,null,null,null,null,null,null,3.6211647931213946E-2,null,0,null,null,null,null,null,null,null,null,null,null,null,null,null,null,4.4236750038775374E-3,null,null,0,null,null,null,null,null,null,null,null,null,null,0.15608335265630313,32.974919015451697,89.234559541878582,0,80.89544635366066,0,0,0]
[null,"ARG-JUJ",null,{"$f":"IF(\"WACC,,,\"&$B596&\",\"=VLOOKUP(\"WACC,,,\"&$B596&\",\",data[],1),VLOOKUP(\"WACC,,,\"&$B596&\",\",data[],7),$D$582)","v":0.15031035355923136},null,null,null,null,null,null,3.6493385042364081E-2,null,null,null,null,null,1.3138929336056666E-2,null,7.8403639832239316E-5,null,null,null,null,0,null,0,null,null,null,0,null,null,null,null,null,null,2.8240099613294295E-2,null,0,null,null,null,null,null,null,null,null,null,null,null,null,null,null,4.4236750038775374E-3,null,null,0,null,null,null,null,null,null,null,null,null,null,0.15608335265630313,26.156542546672821,72.649814464957927,0,65.025953687441458,0,0,0]
[null,"ARG-LAR",null,{"$f":"IF(\"WACC,,,\"&$B597&\",\"=VLOOKUP(\"WACC,,,\"&$B597&\",\",data[],1),VLOOKUP(\"WACC,,,\"&$B597&\",\",data[],7),$D$582)","v":0.15031035355923136},null,null,null,null,null,null,3.9035782507934137E-2,null,null,null,null,null,1.41653602003589E-2,null,7.8403639832239316E-5,null,null,null,null,0,null,0,null,null,null,0,null,null,null,null,null,null,3.0600747838204937E-2,null,0,null,null,null,null,null,null,null,null,null,null,null,null,null,null,4.4236750038775374E-3,null,null,0,null,null,null,null,null,null,null,null,null,null,0.15608335265630313,28.199926896085667,77.711134590658119,0,69.72545348330037,0,0,0]
[null,"ARG-MEN",null,{"$f":"IF(\"WACC,,,\"&$B598&\",\"=VLOOKUP(\"WACC,,,\"&$B598&\",\",data[],1),VLOOKUP(\"WACC,,,\"&$B598&\",\",data[],7),$D$582)","v":0.15031035355923136},null,null,null,null,null,null,4.2058535142835606E-2,null,null,null,null,null,1.5407035298943631E-2,null,7.8403639832239316E-5,null,null,null,null,0,null,0,null,null,null,0,null,null,null,null,null,null,3.3488645514666245E-2,null,0,null,null,null,null,null,null,null,null,null,null,null,null,null,null,4.4236750038775374E-3,null,null,0,null,null,null,null,null,null,null,null,null,null,0.15608335265630313,30.671812292116208,83.72872977521348,0,75.474583911873665,0,0,0]
[null,"ARG-MIS",null,{"$f":"IF(\"WACC,,,\"&$B599&\",\"=VLOOKUP(\"WACC,,,\"&$B599&\",\",data[],1),VLOOKUP(\"WACC,,,\"&$B599&\",\",data[],7),$D$582)","v":0.15031035355923136},null,null,null,null,null,null,6.0924742263995413E-2,null,null,null,null,null,2.363739203435055E-2,null,7.8403639832239316E-5,null,null,null,null,0,null,0,null,null,null,0,null,null,null,null,null,null,5.0483716119470119E-2,null,0,null,null,null,null,null,null,null,null,null,null,null,null,null,null,4.4236750038775374E-3,null,null,0,null,null,null,null,null,null,null,null,null,null,0.15608335265630313,47.056532128700454,121.28694602231164,0,109.30780395502802,0,0,0]
[null,"ARG-NEG",null,{"$f":"IF(\"WACC,,,\"&$B600&\",\"=VLOOKUP(\"WACC,,,\"&$B600&\",\",data[],1),VLOOKUP(\"WACC,,,\"&$B600&\",\",data[],7),$D$582)","v":0.15031035355923136},null,null,null,null,null,null,3.3202166208981504E-2,null,null,null,null,null,1.1833847266626736E-2,null,7.8403639832239316E-5,null,null,null,null,0,null,0,null,null,null,0,null,null,null,null,null,null,2.527279401845086E-2,null,0,null,null,null,null,null,null,null,null,null,null,null,null,null,null,4.4236750038775374E-3,null,null,0,null,null,null,null,null,null,null,null,null,null,0.15608335265630313,23.558428666703588,66.097765721569274,0,59.118740621951552,0,0,0]
[null,"ARG-NEU",null,{"$f":"IF(\"WACC,,,\"&$B601&\",\"=VLOOKUP(\"WACC,,,\"&$B601&\",\",data[],1),VLOOKUP(\"WACC,,,\"&$B601&\",\",data[],7),$D$582)","v":0.15031035355923136},null,null,null,null,null,null,3.7848617999215822E-2,null,null,null,null,null,1.3684059749893188E-2,null,7.8403639832239316E-5,null,null,null,null,0,null,0,null,null,null,0,null,null,null,null,null,null,2.9490847744014243E-2,null,0,null,null,null,null,null,null,null,null,null,null,null,null,null,null,4.4236750038775374E-3,null,null,0,null,null,null,null,null,null,null,null,null,null,0.15608335265630313,27.241770003058527,75.347767059867351,0,67.515901373404617,0,0,0]
[null,"ARG-PAM",null,{"$f":"IF(\"WACC,,,\"&$B602&\",\"=VLOOKUP(\"WACC,,,\"&$B602&\",\",data[],1),VLOOKUP(\"WACC,,,\"&$B602&\",\",data[],7),$D$582)","v":0.15031035355923136},null,null,null,null,null,null,3.7919184555582366E-2,null,null,null,null,null,1.3712569894508959E-2,null,7.8403639832239316E-5,null,null,null,null,0,null,0,null,null,null,0,null,null,null,null,null,null,2.9556446558056008E-2,null,0,null,null,null,null,null,null,null,null,null,null,null,null,null,null,4.4236750038775374E-3,null,null,0,null,null,null,null,null,null,null,null,null,null,0.15608335265630313,27.298527048597066,75.488248608002976,0,67.646493305715737,0,0,0]
[null,"ARG-RIO",null,{"$f":"IF(\"WACC,,,\"&$B603&\",\"=VLOOKUP(\"WACC,,,\"&$B603&\",\",data[],1),VLOOKUP(\"WACC,,,\"&$B603&\",\",data[],7),$D$582)","v":0.15031035355923136},null,null,null,null,null,null,4.4947953013769179E-2,null,null,null,null,null,1.6616161918112101E-2,null,7.8403639832239316E-5,null,null,null,null,0,null,0,null,null,null,0,null,null,null,null,null,null,3.6335331800378456E-2,null,0,null,null,null,null,null,null,null,null,null,null,null,null,null,null,{"$f":"IFERROR(-PMT($D603,BB440,BB358*BB522),0)","v":4.4236750038775374E-3},null,null,0,null,null,null,null,null,null,null,null,null,null,{"$f":"SUMIF($K$8:$BJ$8,BP$1,$K603:$BJ603)*$BL115*conv_fact_to_mass","v":0.15608335265630313},33.078901260302004,89.480886556267706,0,81.141672077491947,0,0,0]
[null,"ARG-SAF",null,{"$f":"IF(\"WACC,,,\"&$B604&\",\"=VLOOKUP(\"WACC,,,\"&$B604&\",\",data[],1),VLOOKUP(\"WACC,,,\"&$B604&\",\",data[],7),$D$582)","v":0.15031035355923136},null,null,null,null,null,null,4.3898105586558198E-2,null,null,null,null,null,1.6174284329183303E-2,null,7.8403639832239316E-5,null,null,null,null,0,null,0,null,null,null,0,null,null,null,null,null,null,3.5291019417103796E-2,null,0,null,null,null,null,null,null,null,null,null,null,null,null,null,null,4.4236750038775374E-3,null,null,0,null,null,null,null,null,null,null,null,null,null,0.15608335265630313,32.19922608589345,87.390885293988248,0,79.062689796174709,0,0,0]
[null,"ARG-SAJ",null,{"$f":"IF(\"WACC,,,\"&$B605&\",\"=VLOOKUP(\"WACC,,,\"&$B605&\",\",data[],1),VLOOKUP(\"WACC,,,\"&$B605&\",\",data[],7),$D$582)","v":0.15031035355923136},null,null,null,null,null,null,4.6254938692288583E-2,null,null,null,null,null,1.7170391113634449E-2,null,7.8403639832239316E-5,null,null,null,null,0,null,0,null,null,null,0,null,null,null,null,null,null,3.7651718032709662E-2,null,0,null,null,null,null,null,null,null,null,null,null,null,null,null,null,4.4236750038775374E-3,null,null,0,null,null,null,null,null,null,null,null,null,null,0.15608335265630313,34.182242267967354,92.082790077757011,0,83.762289908149938,0,0,0]
[null,"ARG-SAL",null,{"$f":"IF(\"WACC,,,\"&$B606&\",\"=VLOOKUP(\"WACC,,,\"&$B606&\",\",data[],1),VLOOKUP(\"WACC,,,\"&$B606&\",\",data[],7),$D$582)","v":0.15031035355923136},null,null,null,null,null,null,3.8555587181959158E-2,null,null,null,null,null,1.3970252109841697E-2,null,7.8403639832239316E-5,null,null,null,null,0,null,0,null,null,null,0,null,null,null,null,null,null,3.0150184005995326E-2,null,0,null,null,null,null,null,null,null,null,null,null,null,null,null,null,4.4236750038775374E-3,null,null,0,null,null,null,null,null,null,null,null,null,null,0.15608335265630313,27.811512213253916,76.755177742628703,0,68.828486025317247,0,0,0]
[null,"ARG-SAT",null,{"$f":"IF(\"WACC,,,\"&$B607&\",\"=VLOOKUP(\"WACC,,,\"&$B607&\",\",data[],1),VLOOKUP(\"WACC,,,\"&$B607&\",\",data[],7),$D$582)","v":0.15031035355923136},null,null,null,null,null,null,4.1061268123272314E-2,null,null,null,null,null,1.4994785930109713E-2,null,7.8403639832239316E-5,null,null,null,null,0,null,0,null,null,null,0,null,null,null,null,null,null,3.252588501491821E-2,null,0,null,null,null,null,null,null,null,null,null,null,null,null,null,null,4.4236750038775374E-3,null,null,0,null,null,null,null,null,null,null,null,null,null,0.15608335265630313,29.851119990639866,81.74340383575381,0,73.557952401815385,0,0,0]
[null,"ARG-TUC",null,{"$f":"IF(\"WACC,,,\"&$B608&\",\"=VLOOKUP(\"WACC,,,\"&$B608&\",\",data[],1),VLOOKUP(\"WACC,,,\"&$B608&\",\",data[],7),$D$582)","v":0.15031035355923136},null,null,null,null,null,null,5.4673958181051877E-2,null,null,null,null,null,2.0853944674989855E-2,null,7.8403639832239316E-5,null,null,null,null,0,null,0,null,null,null,0,null,null,null,null,null,null,4.5304165128510709E-2,null,0,null,null,null,null,null,null,null,null,null,null,null,null,null,null,4.4236750038775374E-3,null,null,0,null,null,null,null,null,null,null,null,null,null,0.15608335265630313,41.515337909644479,108.84309343480331,0,98.996526498355749,0,0,0]
[null,"AUS",null,{"$f":"IF(\"WACC,,,\"&$B609&\",\"=VLOOKUP(\"WACC,,,\"&$B609&\",\",data[],1),VLOOKUP(\"WACC,,,\"&$B609&\",\",data[],7),$D$582)","v":5.0299999999999997E-2},null,null,null,null,null,null,2.1409181070081822E-2,null,null,null,null,null,6.6185446759865485E-3,null,3.9411915689186618E-5,null,null,null,null,0,null,0,null,null,null,0,null,null,null,null,null,null,1.2173893108949134E-2,null,0,null,null,null,null,null,null,null,null,null,null,null,null,null,null,1.7239231039680337E-3,null,null,0,null,null,null,null,null,null,null,null,null,null,8.6121079833860539E-2,14.462535110441207,46.782343864091018,0,30.368859738461047,0,0,0]
[null,"BRA",null,{"$f":"IF(\"WACC,,,\"&$B610&\",\"=VLOOKUP(\"WACC,,,\"&$B610&\",\",data[],1),VLOOKUP(\"WACC,,,\"&$B610&\",\",data[],7),$D$582)","v":8.2832353577576984E-2},null,null,null,null,null,null,1.8504959184434178E-2,null,null,null,null,null,8.4387387791744449E-3,null,5.0954999564324988E-5,null,null,null,null,0,null,0,null,null,null,0,null,null,null,null,null,null,1.6052561913262806E-2,null,0,null,null,null,null,null,null,null,null,null,null,null,null,null,null,2.7084786763580471E-3,null,null,0,null,null,null,null,null,null,null,null,null,null,9.9031068234649619E-2,16.400693219510952,35.964397828317075,0,36.462092172885804,0,0,0]
[null,"CHL",null,{"$f":"IF(\"WACC,,,\"&$B611&\",\"=VLOOKUP(\"WACC,,,\"&$B611&\",\",data[],1),VLOOKUP(\"WACC,,,\"&$B611&\",\",data[],7),$D$582)","v":5.5673211551852057E-2},null,null,null,null,null,null,3.0708136112444193E-2,null,null,null,null,null,1.152461272010389E-2,null,4.1224840198506618E-5,null,null,null,null,0,null,0,null,null,null,0,null,null,null,null,null,null,2.1123712735971318E-2,null,0,null,null,null,null,null,null,null,null,null,null,null,null,null,null,2.0140489409832475E-3,null,null,0,null,null,null,null,null,null,null,null,null,null,8.1882805976404252E-2,22.890752826924285,60.994010870256034,0,45.957360683498401,0,0,0]
[null,"CHN",null,{"$f":"IF(\"WACC,,,\"&$B612&\",\"=VLOOKUP(\"WACC,,,\"&$B612&\",\",data[],1),VLOOKUP(\"WACC,,,\"&$B612&\",\",data[],7),$D$582)","v":5.5673211551852057E-2},null,null,null,null,null,null,1.2993861857246354E-2,null,null,null,null,null,7.1432969341359703E-3,null,4.1224840198506618E-5,null,null,null,null,0,null,0,null,null,null,0,null,null,null,null,null,null,1.3293440397680188E-2,null,0,null,null,null,null,null,null,null,null,null,null,null,null,null,null,1.8460469246665287E-3,null,null,0,null,null,null,null,null,null,null,null,null,null,8.9334662330592854E-2,15.479599592512505,28.157835319626631,0,32.807428271101692,0,0,0]
[null,"COL",null,{"$f":"IF(\"WACC,,,\"&$B613&\",\"=VLOOKUP(\"WACC,,,\"&$B613&\",\",data[],1),VLOOKUP(\"WACC,,,\"&$B613&\",\",data[],7),$D$582)","v":7.0913593408014244E-2},null,null,null,null,null,null,2.0499544592272847E-2,null,null,null,null,null,7.5511007004078487E-3,null,4.6573163170682752E-5,null,null,null,null,0,null,0,null,null,null,0,null,null,null,null,null,null,1.4531064443033764E-2,null,0,null,null,null,null,null,null,null,null,null,null,null,null,null,null,2.4436103899565399E-3,null,null,0,null,null,null,null,null,null,null,null,null,null,{"$f":"SUMIF($K$8:$BJ$8,BP$1,$K613:$BJ613)*$BL125*conv_fact_to_mass","v":8.9453842926764934E-2},14.503523703188616,39.37381352662171,0,32.603538022065685,0,0,0]
[null,"CRI",null,{"$f":"IF(\"WACC,,,\"&$B614&\",\"=VLOOKUP(\"WACC,,,\"&$B614&\",\",data[],1),VLOOKUP(\"WACC,,,\"&$B614&\",\",data[],7),$D$582)","v":0.10395003232720652},null,null,null,null,null,null,4.0464235282604996E-2,null,null,null,null,null,1.6505310759042484E-2,null,5.910409627845844E-5,null,null,null,null,0,null,0,null,null,null,0,null,null,null,null,null,null,3.3903622504710719E-2,null,0,null,null,null,null,null,null,null,null,null,null,null,null,null,null,3.3537176273932632E-3,null,null,0,null,null,null,null,null,null,null,null,null,null,0.11146071210614472,31.126331448647779,76.308966102465433,0,70.26128346063031,0,0,0]
[null,"DNK",null,{"$f":"IF(\"WACC,,,\"&$B615&\",\"=VLOOKUP(\"WACC,,,\"&$B615&\",\",data[],1),VLOOKUP(\"WACC,,,\"&$B615&\",\",data[],7),$D$582)","v":5.0299999999999997E-2},null,null,null,null,null,null,{"$f":"-PMT($D615,K452,K370*K534)","v":1.729622411990784E-2},null,null,null,null,null,{"$f":"-PMT($D615,Q452,Q370*Q534)","v":6.8096255921149679E-3},null,{"$f":"-PMT($D615,S452,S370*S534)","v":3.9411915689186618E-5},null,null,null,null,0,null,{"$f":"-PMT($D615,Z452,Z370*Z534)","v":0},null,null,null,{"$f":"-PMT($D615,AD452,AD370*AD534)","v":0},null,null,null,null,null,null,{"$f":"IFERROR(-PMT($D615,AK452,AK370*AK534),0)","v":0},null,{"$f":"IFERROR(-PMT($D615,AM452,AM370*AM534),0)","v":1.2047014154516528E-3},null,null,null,null,null,null,null,null,null,null,null,null,null,null,0,null,null,0,null,null,null,null,null,null,null,null,null,null,5.8435231211244366E-2,10.096490844935564,25.644753315191497,1.7861858405361759,0,0,0,0]
[null,"DZA",null,{"$f":"IF(\"WACC,,,\"&$B616&\",\"=VLOOKUP(\"WACC,,,\"&$B616&\",\",data[],1),VLOOKUP(\"WACC,,,\"&$B616&\",\",data[],7),$D$582)","v":9.1999999999999998E-2},null,null,null,null,null,null,3.3783771892541635E-2,null,null,null,null,null,1.7404201352124372E-2,null,5.443522449667358E-5,null,null,null,null,0,null,0,null,null,null,0,null,null,null,null,null,null,0,null,1.6639179003309324E-3,null,null,null,null,null,null,null,null,null,null,null,null,null,null,0,null,null,0,null,null,null,null,null,null,null,null,null,null,8.4274179898643803E-2,26.944406113926792,52.302524632754654,2.5760032729842335,0,0,0,0]
[null,"EGY",null,{"$f":"IF(\"WACC,,,\"&$B617&\",\"=VLOOKUP(\"WACC,,,\"&$B617&\",\",data[],1),VLOOKUP(\"WACC,,,\"&$B617&\",\",data[],7),$D$582)","v":0.11336853373134342},null,null,null,null,null,null,3.0594586566089141E-2,null,null,null,null,null,1.2507635339501336E-2,null,6.2881484167756529E-5,null,null,null,null,0,null,0,null,null,null,0,null,null,null,null,null,null,0,null,1.9220941600507203E-3,null,null,null,null,null,null,null,null,null,null,null,null,null,null,0,null,null,0,null,null,null,null,null,null,null,null,null,null,0.10096120360700173,20.081999254098999,49.122032096609303,3.0860744210012698,0,0,0,0]
[null,"ESP",null,{"$f":"IF(\"WACC,,,\"&$B618&\",\"=VLOOKUP(\"WACC,,,\"&$B618&\",\",data[],1),VLOOKUP(\"WACC,,,\"&$B618&\",\",data[],7),$D$582)","v":6.4274782725559448E-2},null,null,null,null,null,null,1.4723956086120578E-2,null,null,null,null,null,6.9358364039255153E-3,null,4.4206905809053947E-5,null,null,null,null,0,null,0,null,null,null,0,null,null,null,null,null,null,0,null,1.3512695607312728E-3,null,null,null,null,null,null,null,null,null,null,null,null,null,null,0,null,null,0,null,null,null,null,null,null,null,null,null,null,6.6678879413994807E-2,10.461573610470298,22.208677001825198,2.0381688889284084,0,0,0,0]
[null,"IDN",null,{"$f":"IF(\"WACC,,,\"&$B619&\",\"=VLOOKUP(\"WACC,,,\"&$B619&\",\",data[],1),VLOOKUP(\"WACC,,,\"&$B619&\",\",data[],7),$D$582)","v":7.0913593408014244E-2},null,null,null,null,null,null,5.8381062620844769E-2,null,null,null,null,null,1.7996624584623498E-2,null,4.6573163170682752E-5,null,null,null,null,0,null,0,null,null,null,0,null,null,null,null,null,null,3.4485375676768404E-2,null,0,null,null,null,null,null,null,null,null,null,null,null,null,null,null,2.2533481307027937E-3,null,null,0,null,null,null,null,null,null,null,null,null,null,9.7006910303383653E-2,37.48504134121599,121.60150008109251,0,76.522826503989378,0,0,0]
[null,"IND",null,{"$f":"IF(\"WACC,,,\"&$B620&\",\"=VLOOKUP(\"WACC,,,\"&$B620&\",\",data[],1),VLOOKUP(\"WACC,,,\"&$B620&\",\",data[],7),$D$582)","v":7.237045402218821E-2},null,null,null,null,null,null,1.3671564773996631E-2,null,null,null,null,null,7.9734308870132251E-3,null,4.7099715967342478E-5,null,null,null,null,0,null,0,null,null,null,0,null,null,null,null,null,null,1.5058841928192722E-2,null,0,null,null,null,null,null,null,null,null,null,null,null,null,null,null,2.3930541094764213E-3,null,null,0,null,null,null,null,null,null,null,null,null,null,9.3724155765840825E-2,15.866403078964455,27.205171838600815,0,34.72768761021581,0,0,0]
[null,"JOR",null,{"$f":"IF(\"WACC,,,\"&$B621&\",\"=VLOOKUP(\"WACC,,,\"&$B621&\",\",data[],1),VLOOKUP(\"WACC,,,\"&$B621&\",\",data[],7),$D$582)","v":9.9049682988621379E-2},null,null,null,null,null,null,6.3766882062316663E-2,null,null,null,null,null,1.9036423555335625E-2,null,5.7172141967272784E-5,null,null,null,null,0,null,0,null,null,null,0,null,null,null,null,null,null,0,null,1.7475770753075464E-3,null,null,null,null,null,null,null,null,null,null,null,null,null,null,0,null,null,0,null,null,null,null,null,null,null,null,null,null,8.9326304011420304E-2,29.742691095384675,99.629989308770249,2.7304312159875006,0,0,0,0]
[null,"KAZ",null,{"$f":"IF(\"WACC,,,\"&$B622&\",\"=VLOOKUP(\"WACC,,,\"&$B622&\",\",data[],1),VLOOKUP(\"WACC,,,\"&$B622&\",\",data[],7),$D$582)","v":7.3401485154905771E-2},null,null,null,null,null,null,2.0279170034384453E-2,null,null,null,null,null,8.0420843780504465E-3,null,4.7473915962920154E-5,null,null,null,null,0,null,0,null,null,null,0,null,null,null,null,null,null,0,null,1.451132043633554E-3,null,null,null,null,null,null,null,null,null,null,null,null,null,null,0,null,null,0,null,null,null,null,null,null,null,null,null,null,7.4173702506089831E-2,12.565029913527582,31.684370136554474,2.2672626497801267,0,0,0,0]
[null,"KEN",null,{"$f":"IF(\"WACC,,,\"&$B623&\",\"=VLOOKUP(\"WACC,,,\"&$B623&\",\",data[],1),VLOOKUP(\"WACC,,,\"&$B623&\",\",data[],7),$D$582)","v":0.10989380084781369},null,null,null,null,null,null,4.4419903106867574E-2,null,null,null,null,null,1.4425279687884677E-2,null,6.1478367711561785E-5,null,null,null,null,0,null,0,null,null,null,0,null,null,null,null,null,null,2.7362247228547253E-2,null,0,null,null,null,null,null,null,null,null,null,null,null,null,null,null,{"$f":"IFERROR(-PMT($D623,BB460,BB378*BB542),0)","v":3.3287287842725015E-3},null,null,0,null,null,null,null,null,null,null,null,null,null,{"$f":"SUMIF($K$8:$BJ$8,BP$1,$K623:$BJ623)*$BL135*conv_fact_to_mass","v":0.12249865975256906},28.743076534049056,88.508833260824133,0,61.153273387276755,0,0,0]
[null,"MAR",null,{"$f":"IF(\"WACC,,,\"&$B624&\",\"=VLOOKUP(\"WACC,,,\"&$B624&\",\",data[],1),VLOOKUP(\"WACC,,,\"&$B624&\",\",data[],7),$D$582)","v":7.731973992583685E-2},null,null,null,null,null,null,2.5891271359591909E-2,null,null,null,null,null,9.9570479298905432E-3,null,4.8907590040936491E-5,null,null,null,null,0,null,0,null,null,null,0,null,null,null,null,null,null,1.9468330721131334E-2,null,0,null,null,null,null,null,null,null,null,null,null,null,null,null,null,2.7750327241361623E-3,null,null,0,null,null,null,null,null,null,null,null,null,null,8.8072337551971872E-2,17.930560176211269,46.624762923771669,0,40.055643960437493,0,0,0]
[null,"MAR-BEN",null,{"$f":"IF(\"WACC,,,\"&$B625&\",\"=VLOOKUP(\"WACC,,,\"&$B625&\",\",data[],1),VLOOKUP(\"WACC,,,\"&$B625&\",\",data[],7),$D$582)","v":7.731973992583685E-2},null,null,null,null,null,null,3.6600263252838182E-2,null,null,null,null,null,1.3992060329195564E-2,null,4.8907590040936491E-5,null,null,null,null,0,null,0,null,null,null,0,null,null,null,null,null,null,2.7338255950506232E-2,null,0,null,null,null,null,null,null,null,null,null,null,null,null,null,null,2.7750327241361623E-3,null,null,0,null,null,null,null,null,null,null,null,null,null,8.8072337551971872E-2,25.196773329640632,65.909416861409369,0,54.227732806568127,0,0,0]
[null,"MAR-CAS",null,{"$f":"IF(\"WACC,,,\"&$B626&\",\"=VLOOKUP(\"WACC,,,\"&$B626&\",\",data[],1),VLOOKUP(\"WACC,,,\"&$B626&\",\",data[],7),$D$582)","v":7.731973992583685E-2},null,null,null,null,null,null,2.987480621035675E-2,null,null,null,null,null,1.1031450057569649E-2,null,4.8907590040936491E-5,null,null,null,null,0,null,0,null,null,null,0,null,null,null,null,null,null,2.2062099220435692E-2,null,0,null,null,null,null,null,null,null,null,null,null,null,null,null,null,2.7750327241361623E-3,null,null,0,null,null,null,null,null,null,null,null,null,null,8.8072337551971872E-2,19.865333629090628,53.798275782061083,0,44.726478377164987,0,0,0]
[null,"MAR-DAK",null,{"$f":"IF(\"WACC,,,\"&$B627&\",\"=VLOOKUP(\"WACC,,,\"&$B627&\",\",data[],1),VLOOKUP(\"WACC,,,\"&$B627&\",\",data[],7),$D$582)","v":7.731973992583685E-2},null,null,null,null,null,null,1.9348192467233134E-2,null,null,null,null,null,6.7823890584850291E-3,null,4.8907590040936491E-5,null,null,null,null,0,null,0,null,null,null,0,null,null,null,null,null,null,1.3114832361837123E-2,null,0,null,null,null,null,null,null,null,null,null,null,null,null,null,null,2.7750327241361623E-3,null,null,0,null,null,null,null,null,null,null,null,null,null,8.8072337551971872E-2,12.21366372924345,34.842046736884093,0,28.614322650855655,0,0,0]
[null,"MAR-DRA",null,{"$f":"IF(\"WACC,,,\"&$B628&\",\"=VLOOKUP(\"WACC,,,\"&$B628&\",\",data[],1),VLOOKUP(\"WACC,,,\"&$B628&\",\",data[],7),$D$582)","v":7.731973992583685E-2},null,null,null,null,null,null,2.7621435309421336E-2,null,null,null,null,null,1.0084149698091054E-2,null,4.8907590040936491E-5,null,null,null,null,0,null,0,null,null,null,0,null,null,null,null,null,null,2.0014647184682405E-2,null,0,null,null,null,null,null,null,null,null,null,null,null,null,null,null,2.7750327241361623E-3,null,null,0,null,null,null,null,null,null,null,null,null,null,8.8072337551971872E-2,18.159443869377057,49.740426224336794,0,41.039445614695993,0,0,0]
[null,"MAR-FES",null,{"$f":"IF(\"WACC,,,\"&$B629&\",\"=VLOOKUP(\"WACC,,,\"&$B629&\",\",data[],1),VLOOKUP(\"WACC,,,\"&$B629&\",\",data[],7),$D$582)","v":7.731973992583685E-2},null,null,null,null,null,null,3.3222974155066844E-2,null,null,null,null,null,1.2479667292604182E-2,null,4.8907590040936491E-5,null,null,null,null,0,null,0,null,null,null,0,null,null,null,null,null,null,2.4815618527493501E-2,null,0,null,null,null,null,null,null,null,null,null,null,null,null,null,null,2.7750327241361623E-3,null,null,0,null,null,null,null,null,null,null,null,null,null,8.8072337551971872E-2,22.473269883275002,59.82762576966789,0,49.684990576684186,0,0,0]
[null,"MAR-GUE",null,{"$f":"IF(\"WACC,,,\"&$B630&\",\"=VLOOKUP(\"WACC,,,\"&$B630&\",\",data[],1),VLOOKUP(\"WACC,,,\"&$B630&\",\",data[],7),$D$582)","v":7.731973992583685E-2},null,null,null,null,null,null,2.4467621319221432E-2,null,null,null,null,null,8.7936937706481182E-3,null,4.8907590040936491E-5,null,null,null,null,0,null,0,null,null,null,0,null,null,null,null,null,null,1.7274961549221823E-2,null,0,null,null,null,null,null,null,null,null,null,null,null,null,null,null,2.7750327241361623E-3,null,null,0,null,null,null,null,null,null,null,null,null,null,8.8072337551971872E-2,15.835602724422516,44.061067047396683,0,36.105844963537166,0,0,0]
[null,"MAR-LAA",null,{"$f":"IF(\"WACC,,,\"&$B631&\",\"=VLOOKUP(\"WACC,,,\"&$B631&\",\",data[],1),VLOOKUP(\"WACC,,,\"&$B631&\",\",data[],7),$D$582)","v":7.731973992583685E-2},null,null,null,null,null,null,2.1072438155957135E-2,null,null,null,null,null,7.4486404750398229E-3,null,4.8907590040936491E-5,null,null,null,null,0,null,0,null,null,null,0,null,null,null,null,null,null,1.4478359144179715E-2,null,0,null,null,null,null,null,null,null,null,null,null,null,null,null,null,2.7750327241361623E-3,null,null,0,null,null,null,null,null,null,null,null,null,null,8.8072337551971872E-2,13.413443141890411,37.947052487376489,0,31.069749118099587,0,0,0]
[null,"MAR-LOR",null,{"$f":"IF(\"WACC,,,\"&$B632&\",\"=VLOOKUP(\"WACC,,,\"&$B632&\",\",data[],1),VLOOKUP(\"WACC,,,\"&$B632&\",\",data[],7),$D$582)","v":7.731973992583685E-2},null,null,null,null,null,null,2.5534522146626975E-2,null,null,null,null,null,9.2257205549319786E-3,null,4.8907590040936491E-5,null,null,null,null,0,null,0,null,null,null,0,null,null,null,null,null,null,1.8185911134490574E-2,null,0,null,null,null,null,null,null,null,null,null,null,null,null,null,null,2.7750327241361623E-3,null,null,0,null,null,null,null,null,null,null,null,null,null,8.8072337551971872E-2,16.613592577226402,45.982332227854144,0,37.746274583959369,0,0,0]
[null,"MAR-MAR",null,{"$f":"IF(\"WACC,,,\"&$B633&\",\"=VLOOKUP(\"WACC,,,\"&$B633&\",\",data[],1),VLOOKUP(\"WACC,,,\"&$B633&\",\",data[],7),$D$582)","v":7.731973992583685E-2},null,null,null,null,null,null,3.4329805465916845E-2,null,null,null,null,null,1.2969481852817375E-2,null,4.8907590040936491E-5,null,null,null,null,0,null,0,null,null,null,0,null,null,null,null,null,null,2.564235677964816E-2,null,0,null,null,null,null,null,null,null,null,null,null,null,null,null,null,2.7750327241361623E-3,null,null,0,null,null,null,null,null,null,null,null,null,null,{"$f":"SUMIF($K$8:$BJ$8,BP$1,$K633:$BJ633)*$BL145*conv_fact_to_mass","v":8.8072337551971872E-2},23.355323430564059,61.820797396825952,0,51.173773204287521,0,0,0]
[null,"MAR-RAB",null,{"$f":"IF(\"WACC,,,\"&$B634&\",\"=VLOOKUP(\"WACC,,,\"&$B634&\",\",data[],1),VLOOKUP(\"WACC,,,\"&$B634&\",\",data[],7),$D$582)","v":7.731973992583685E-2},null,null,null,null,null,null,3.5595242308954028E-2,null,null,null,null,null,1.353642329394642E-2,null,4.8907590040936491E-5,null,null,null,null,0,null,0,null,null,null,0,null,null,null,null,null,null,2.6587564087725876E-2,null,0,null,null,null,null,null,null,null,null,null,null,null,null,null,null,2.7750327241361623E-3,null,null,0,null,null,null,null,null,null,null,null,null,null,8.8072337551971872E-2,24.376266354423624,64.099584405087583,0,52.875893816322026,0,0,0]
[null,"MAR-SOU",null,{"$f":"IF(\"WACC,,,\"&$B635&\",\"=VLOOKUP(\"WACC,,,\"&$B635&\",\",data[],1),VLOOKUP(\"WACC,,,\"&$B635&\",\",data[],7),$D$582)","v":7.731973992583685E-2},null,null,null,null,null,null,2.7395037349450927E-2,null,null,null,null,null,9.9901556441895339E-3,null,4.8907590040936491E-5,null,null,null,null,0,null,0,null,null,null,0,null,null,null,null,null,null,1.9813184684937042E-2,null,0,null,null,null,null,null,null,null,null,null,null,null,null,null,null,2.7750327241361623E-3,null,null,0,null,null,null,null,null,null,null,null,null,null,8.8072337551971872E-2,17.990180243094024,49.332730863864079,0,40.676653801261992,0,0,0]
[null,"MAR-TAN",null,{"$f":"IF(\"WACC,,,\"&$B636&\",\"=VLOOKUP(\"WACC,,,\"&$B636&\",\",data[],1),VLOOKUP(\"WACC,,,\"&$B636&\",\",data[],7),$D$582)","v":7.731973992583685E-2},null,null,null,null,null,null,2.7248510167508431E-2,null,null,null,null,null,9.9294352178960453E-3,null,4.8907590040936491E-5,null,null,null,null,0,null,0,null,null,null,0,null,null,null,null,null,null,1.9683200307001887E-2,null,0,null,null,null,null,null,null,null,null,null,null,null,null,null,null,2.7750327241361623E-3,null,null,0,null,null,null,null,null,null,null,null,null,null,8.8072337551971872E-2,17.880835458852076,49.068866064601281,0,40.44257913104402,0,0,0]
[null,"MEX",null,{"$f":"IF(\"WACC,,,\"&$B637&\",\"=VLOOKUP(\"WACC,,,\"&$B637&\",\",data[],1),VLOOKUP(\"WACC,,,\"&$B637&\",\",data[],7),$D$582)","v":6.4274782725559448E-2},null,null,null,null,null,null,2.2666158126344732E-2,null,null,null,null,null,1.0104784551787543E-2,null,4.4206905809053947E-5,null,null,null,null,0,null,0,null,null,null,0,null,null,null,null,null,null,1.9512266824081258E-2,null,0,null,null,null,null,null,null,null,null,null,null,null,null,null,null,2.2603889445561086E-3,null,null,0,null,null,null,null,null,null,null,null,null,null,8.5781612189156864E-2,19.607902743079872,43.982711538566747,0,42.248908384145281,0,0,0]
[null,"MRT",null,{"$f":"IF(\"WACC,,,\"&$B638&\",\"=VLOOKUP(\"WACC,,,\"&$B638&\",\",data[],1),VLOOKUP(\"WACC,,,\"&$B638&\",\",data[],7),$D$582)","v":9.1999999999999998E-2},null,null,null,null,null,null,2.3216785959553739E-2,null,null,null,null,null,7.8770590278066654E-3,null,5.443522449667358E-5,null,null,null,null,0,null,0,null,null,null,0,null,null,null,null,null,null,0,null,1.6639179003309324E-3,null,null,null,null,null,null,null,null,null,null,null,null,null,null,0,null,null,0,null,null,null,null,null,null,null,null,null,null,8.7400064685807632E-2,12.647242202634759,37.276388835055585,2.6715519861534403,0,0,0,0]
[null,"NAM",null,{"$f":"IF(\"WACC,,,\"&$B639&\",\"=VLOOKUP(\"WACC,,,\"&$B639&\",\",data[],1),VLOOKUP(\"WACC,,,\"&$B639&\",\",data[],7),$D$582)","v":8.3993056414234241E-2},null,null,null,null,null,null,2.0131244479350961E-2,null,null,null,null,null,6.6410640624957971E-3,null,5.1390506361164351E-5,null,null,null,null,0,null,0,null,null,null,0,null,null,null,null,null,null,1.2965322608869671E-2,null,0,null,null,null,null,null,null,null,null,null,null,null,null,null,null,2.728863671623432E-3,null,null,0,null,null,null,null,null,null,null,null,null,null,0.10019986859891163,12.948573453284736,39.251375290745997,0,30.600114971052822,0,0,0]
[null,"NOR",null,{"$f":"IF(\"WACC,,,\"&$B640&\",\"=VLOOKUP(\"WACC,,,\"&$B640&\",\",data[],1),VLOOKUP(\"WACC,,,\"&$B640&\",\",data[],7),$D$582)","v":5.0299999999999997E-2},null,null,null,null,null,null,1.7492704786526207E-2,null,null,null,null,null,7.1813577029506753E-3,null,3.9411915689186618E-5,null,null,null,null,0,null,0,null,null,null,0,null,null,null,null,null,null,0,null,1.2047014154516528E-3,null,null,null,null,null,null,null,null,null,null,null,null,null,null,0,null,null,0,null,null,null,null,null,null,null,null,null,null,5.8435231211244366E-2,10.647650347473737,25.936071130669667,1.7861858405361759,0,0,0,0]
[null,"PER",null,{"$f":"IF(\"WACC,,,\"&$B641&\",\"=VLOOKUP(\"WACC,,,\"&$B641&\",\",data[],1),VLOOKUP(\"WACC,,,\"&$B641&\",\",data[],7),$D$582)","v":6.4274782725559448E-2},null,null,null,null,null,null,2.9970665329687618E-2,null,null,null,null,null,1.4223545966825695E-2,null,4.4206905809053947E-5,null,null,null,null,0,null,0,null,null,null,0,null,null,null,null,null,null,2.7014464780284426E-2,null,0,null,null,null,null,null,null,null,null,null,null,null,null,null,null,2.2135777232254929E-3,null,null,0,null,null,null,null,null,null,null,null,null,null,8.7595662806016383E-2,28.1838530341285,59.386655687483078,0,57.915153950743353,0,0,0]
[null,"PRT",null,{"$f":"IF(\"WACC,,,\"&$B642&\",\"=VLOOKUP(\"WACC,,,\"&$B642&\",\",data[],1),VLOOKUP(\"WACC,,,\"&$B642&\",\",data[],7),$D$582)","v":7.3401485154905771E-2},null,null,null,null,null,null,2.1050089053635843E-2,null,null,null,null,null,7.4349899591803058E-3,null,4.7473915962920154E-5,null,null,null,null,0,null,0,null,null,null,0,null,null,null,null,null,null,0,null,1.451132043633554E-3,null,null,null,null,null,null,null,null,null,null,null,null,null,null,0,null,null,0,null,null,null,null,null,null,null,null,null,null,7.2231594040444658E-2,11.31234206265508,32.0277241975365,2.2078983489941773,0,0,0,0]
[null,"RUS",null,{"$f":"IF(\"WACC,,,\"&$B643&\",\"=VLOOKUP(\"WACC,,,\"&$B643&\",\",data[],1),VLOOKUP(\"WACC,,,\"&$B643&\",\",data[],7),$D$582)","v":7.5170549034228915E-2},null,null,null,null,null,null,3.8855243833748346E-2,null,null,null,null,null,1.0561039324185829E-2,null,4.8118950682422219E-5,null,null,null,null,0,null,0,null,null,null,0,null,null,null,null,null,null,0,null,1.4708487771647992E-3,null,null,null,null,null,null,null,null,null,null,null,null,null,null,{"$f":"IFERROR(-PMT($D643,BB480,BB398*BB562),0)","v":0},null,null,0,null,null,null,null,null,null,null,null,null,null,{"$f":"SUMIF($K$8:$BJ$8,BP$1,$K643:$BJ643)*$BL155*conv_fact_to_mass","v":7.1956969980944446E-2},15.792954310942999,58.104043718655873,2.1995039335639275,0,0,0,0]
[null,"SAU",null,{"$f":"IF(\"WACC,,,\"&$B644&\",\"=VLOOKUP(\"WACC,,,\"&$B644&\",\",data[],1),VLOOKUP(\"WACC,,,\"&$B644&\",\",data[],7),$D$582)","v":5.5673211551852057E-2},null,null,null,null,null,null,2.5107362084250396E-2,null,null,null,null,null,1.1081420145107558E-2,null,4.1224840198506618E-5,null,null,null,null,0,null,0,null,null,null,0,null,null,null,null,null,null,0,null,1.2601169588042944E-3,null,null,null,null,null,null,null,null,null,null,null,null,null,null,0,null,null,0,null,null,null,null,null,null,null,null,null,null,6.5585698923683336E-2,17.629727168965267,39.943972675125146,2.004753713314813,0,0,0,0]
[null,"SWE",null,{"$f":"IF(\"WACC,,,\"&$B645&\",\"=VLOOKUP(\"WACC,,,\"&$B645&\",\",data[],1),VLOOKUP(\"WACC,,,\"&$B645&\",\",data[],7),$D$582)","v":5.0299999999999997E-2},null,null,null,null,null,null,2.393529081725454E-2,null,null,null,null,null,9.6570926209885444E-3,null,3.9411915689186618E-5,null,null,null,null,0,null,0,null,null,null,0,null,null,null,null,null,null,0,null,1.2047014154516528E-3,null,null,null,null,null,null,null,null,null,null,null,null,null,null,0,null,null,0,null,null,null,null,null,null,null,null,null,null,5.8932908395536311E-2,14.440316966274143,{"$f":"SUMIF($K$8:$BJ$8,BR$1,$K645:$BJ645)*$BL157*conv_fact_to_mass","v":35.790604858641792},1.8013983060525118,0,0,0,0]
[null,"THA",null,{"$f":"IF(\"WACC,,,\"&$B646&\",\"=VLOOKUP(\"WACC,,,\"&$B646&\",\",data[],1),VLOOKUP(\"WACC,,,\"&$B646&\",\",data[],7),$D$582)","v":6.4274782725559448E-2},null,null,null,null,null,null,2.951828121567044E-2,null,null,null,null,null,1.1741888584957536E-2,null,4.4206905809053947E-5,null,null,null,null,0,null,0,null,null,null,0,null,null,null,null,null,null,2.2537678577656612E-2,null,0,null,null,null,null,null,null,null,null,null,null,null,null,null,null,2.0797179057795313E-3,null,null,0,null,null,null,null,null,null,null,null,null,null,9.3233706023169119E-2,24.763999389944281,62.254950958531005,0,51.918836317252776,0,0,0]
[null,"TUN",null,{"$f":"IF(\"WACC,,,\"&$B647&\",\"=VLOOKUP(\"WACC,,,\"&$B647&\",\",data[],1),VLOOKUP(\"WACC,,,\"&$B647&\",\",data[],7),$D$582)","v":0.11482300617243665},null,null,null,null,null,null,{"$f":"-PMT($D647,K484,K402*K566)","v":3.9063950236205694E-2},null,null,null,null,null,{"$f":"-PMT($D647,Q484,Q402*Q566)","v":1.5739180447469015E-2},null,{"$f":"-PMT($D647,S484,S402*S566)","v":6.3472020725510438E-5},null,null,null,null,0,null,{"$f":"-PMT($D647,Z484,Z402*Z566)","v":0},null,null,null,{"$f":"-PMT($D647,AD484,AD402*AD566)","v":0},null,null,null,null,null,null,{"$f":"IFERROR(-PMT($D647,AK484,AK402*AK566),0)","v":0},null,{"$f":"IFERROR(-PMT($D647,AM484,AM402*AM566),0)","v":1.9401450518828388E-3},null,null,null,null,null,null,null,null,null,null,null,null,null,null,0,null,null,0,null,null,null,null,null,null,null,null,null,null,9.6546854149412456E-2,23.940759120692942,59.419906012839917,2.9511412936243859,0,0,0,0]
[null,"UKR",null,{"$f":"IF(\"WACC,,,\"&$B648&\",\"=VLOOKUP(\"WACC,,,\"&$B648&\",\",data[],1),VLOOKUP(\"WACC,,,\"&$B648&\",\",data[],7),$D$582)","v":0.1266281397634636},null,null,null,null,null,null,2.9946889729694424E-2,null,null,null,null,null,1.2275318800058329E-2,null,6.833195902955032E-5,null,null,null,null,{"$f":"IF(X$2=\"\",0,-PMT($D648,X485,X403*X567))","v":0},null,0,null,null,null,0,null,null,null,null,null,null,0,null,2.0886984640046185E-3,null,null,null,null,null,null,null,null,null,null,null,null,null,null,0,null,null,0,null,null,null,null,null,null,null,null,null,null,0.10306757220090829,18.515308571309152,45.16997995144748,3.1504596502439681,0,0,0,0]
[null,"URY",null,{"$f":"IF(\"WACC,,,\"&$B649&\",\"=VLOOKUP(\"WACC,,,\"&$B649&\",\",data[],1),VLOOKUP(\"WACC,,,\"&$B649&\",\",data[],7),$D$582)","v":7.731973992583685E-2},null,null,null,null,null,null,3.080374791914654E-2,null,null,null,null,null,8.2318082519318419E-3,null,4.8907590040936491E-5,null,null,null,null,0,null,0,null,null,null,0,null,null,null,null,null,null,1.5770285794061648E-2,null,0,null,null,null,null,null,null,null,null,null,null,null,null,null,null,2.5149954967071488E-3,null,null,0,null,null,null,null,null,null,null,null,null,null,9.7178551260979462E-2,16.356463271065618,61.206524256981197,0,36.332543553037013,0,0,0]
[null,"USA",null,{"$f":"IF(\"WACC,,,\"&$B650&\",\"=VLOOKUP(\"WACC,,,\"&$B650&\",\",data[],1),VLOOKUP(\"WACC,,,\"&$B650&\",\",data[],7),$D$582)","v":5.0299999999999997E-2},null,null,null,null,null,null,1.7813819188021707E-2,null,null,null,null,null,6.63008730709221E-3,null,3.9411915689186618E-5,null,null,null,null,0,null,0,null,null,null,0,null,null,null,null,null,null,1.1695798618678088E-2,null,0,null,null,null,null,null,null,null,null,null,null,null,null,null,null,1.979669204542019E-3,null,null,0,null,null,null,null,null,null,null,null,null,null,7.4995417882763996E-2,12.616138025764956,33.897231097046912,0,26.022521519451953,0,0,0]
[null,"VNM",null,{"$f":"IF(\"WACC,,,\"&$B651&\",\"=VLOOKUP(\"WACC,,,\"&$B651&\",\",data[],1),VLOOKUP(\"WACC,,,\"&$B651&\",\",data[],7),$D$582)","v":8.9280207439799461E-2},null,null,null,null,null,null,3.5067701316718339E-2,null,null,null,null,null,1.0328746313623908E-2,null,5.3393197587090795E-5,null,null,null,null,0,null,0,null,null,null,0,null,null,null,null,null,null,2.0869426597979353E-2,null,0,null,null,null,null,null,null,null,null,null,null,null,null,null,null,2.6409258628961848E-3,null,null,0,null,null,null,null,null,null,null,null,null,null,0.11284589444115428,21.829683721704445,74.115173840742074,0,49.688853111800448,0,0,0]
[null,"ZAF",null,{"$f":"IF(\"WACC,,,\"&$B652&\",\"=VLOOKUP(\"WACC,,,\"&$B652&\",\",data[],1),VLOOKUP(\"WACC,,,\"&$B652&\",\",data[],7),$D$582)","v":7.8066629268261314E-2},null,null,null,null,null,null,2.8157802227736183E-2,null,null,null,null,null,1.2445458581946265E-2,null,4.9182930822517837E-5,null,null,null,null,0,null,0,null,null,null,0,null,null,null,null,null,null,2.4946498539549722E-2,null,0,null,null,null,null,null,null,null,null,null,null,null,null,null,null,2.5531185407519068E-3,null,null,0,null,null,null,null,null,null,null,null,null,null,9.6957102990809466E-2,24.534438865630904,55.509073675201094,0,54.21155593765269,0,0,0]
[null,"ZAF-EC",null,{"$f":"IF(\"WACC,,,\"&$B653&\",\"=VLOOKUP(\"WACC,,,\"&$B653&\",\",data[],1),VLOOKUP(\"WACC,,,\"&$B653&\",\",data[],7),$D$582)","v":7.8066629268261314E-2},null,null,null,null,null,null,2.3332594545691518E-2,null,null,null,null,null,8.3337046690174256E-3,null,4.9182930822517837E-5,null,null,null,null,0,null,0,null,null,null,0,null,null,null,null,null,null,1.6330927113390827E-2,null,0,null,null,null,null,null,null,null,null,null,null,null,null,null,null,2.5531185407519068E-3,null,null,0,null,null,null,null,null,null,null,null,null,null,{"$f":"SUMIF($K$8:$BJ$8,BP$1,$K653:$BJ653)*$BL165*conv_fact_to_mass","v":9.6957102990809466E-2},16.42870500753024,45.99686790876769,0,37.227190993945193,0,0,0]
[null,"ZAF-FRS",null,{"$f":"IF(\"WACC,,,\"&$B654&\",\"=VLOOKUP(\"WACC,,,\"&$B654&\",\",data[],1),VLOOKUP(\"WACC,,,\"&$B654&\",\",data[],7),$D$582)","v":7.8066629268261314E-2},null,null,null,null,null,null,2.7883257884145637E-2,null,null,null,null,null,1.0185135787395903E-2,null,4.9182930822517837E-5,null,null,null,null,0,null,0,null,null,null,0,null,null,null,null,null,null,2.0253264637120256E-2,null,0,null,null,null,null,null,null,null,null,null,null,null,null,null,null,2.5531185407519068E-3,null,null,0,null,null,null,null,null,null,null,null,null,null,9.6957102990809466E-2,20.078536252292608,54.96784882845273,0,44.959517573369673,0,0,0]
[null,"ZAF-GAU",null,{"$f":"IF(\"WACC,,,\"&$B655&\",\"=VLOOKUP(\"WACC,,,\"&$B655&\",\",data[],1),VLOOKUP(\"WACC,,,\"&$B655&\",\",data[],7),$D$582)","v":7.8066629268261314E-2},null,null,null,null,null,null,3.284373331062973E-2,null,null,null,null,null,1.230147779697648E-2,null,4.9182930822517837E-5,null,null,null,null,0,null,0,null,null,null,0,null,null,null,null,null,null,2.4570036840104486E-2,null,0,null,null,null,null,null,null,null,null,null,null,null,null,null,null,2.5531185407519068E-3,null,null,0,null,null,null,null,null,null,null,null,null,null,9.6957102990809466E-2,24.250601372347123,64.746715576849084,0,53.46941562281615,0,0,0]
[null,"ZAF-KWA",null,{"$f":"IF(\"WACC,,,\"&$B656&\",\"=VLOOKUP(\"WACC,,,\"&$B656&\",\",data[],1),VLOOKUP(\"WACC,,,\"&$B656&\",\",data[],7),$D$582)","v":7.8066629268261314E-2},null,null,null,null,null,null,2.8910194891310498E-2,null,null,null,null,null,1.0614628051661018E-2,null,4.9182930822517837E-5,null,null,null,null,0,null,0,null,null,null,0,null,null,null,null,null,null,2.1179744426022221E-2,null,0,null,null,null,null,null,null,null,null,null,null,null,null,null,null,2.5531185407519068E-3,null,null,0,null,null,null,null,null,null,null,null,null,null,9.6957102990809466E-2,20.925218729397923,56.992308036222646,0,46.785939765158709,0,0,0]
[null,"ZAF-LIM",null,{"$f":"IF(\"WACC,,,\"&$B657&\",\"=VLOOKUP(\"WACC,,,\"&$B657&\",\",data[],1),VLOOKUP(\"WACC,,,\"&$B657&\",\",data[],7),$D$582)","v":7.8066629268261314E-2},null,null,null,null,null,null,2.9149533489243505E-2,null,null,null,null,null,1.0715362083859382E-2,null,4.9182930822517837E-5,null,null,null,null,0,null,0,null,null,null,0,null,null,null,null,null,null,2.1397964256832575E-2,null,0,null,null,null,null,null,null,null,null,null,null,null,null,null,null,2.5531185407519068E-3,null,null,0,null,null,null,null,null,null,null,null,null,null,9.6957102990809466E-2,21.12380144440084,57.464129798394701,0,47.216128903070555,0,0,0]
[null,"ZAF-MPU",null,{"$f":"IF(\"WACC,,,\"&$B658&\",\"=VLOOKUP(\"WACC,,,\"&$B658&\",\",data[],1),VLOOKUP(\"WACC,,,\"&$B658&\",\",data[],7),$D$582)","v":7.8066629268261314E-2},null,null,null,null,null,null,2.9149533489243505E-2,null,null,null,null,null,1.0715362083859382E-2,null,4.9182930822517837E-5,null,null,null,null,0,null,0,null,null,null,0,null,null,null,null,null,null,2.1397964256832575E-2,null,0,null,null,null,null,null,null,null,null,null,null,null,null,null,null,2.5531185407519068E-3,null,null,0,null,null,null,null,null,null,null,null,null,null,9.6957102990809466E-2,21.12380144440084,57.464129798394701,0,47.216128903070555,0,0,0]
[null,"ZAF-NC",null,{"$f":"IF(\"WACC,,,\"&$B659&\",\"=VLOOKUP(\"WACC,,,\"&$B659&\",\",data[],1),VLOOKUP(\"WACC,,,\"&$B659&\",\",data[],7),$D$582)","v":7.8066629268261314E-2},null,null,null,null,null,null,2.3502561659593333E-2,null,null,null,null,null,8.4013767770123211E-3,null,4.9182930822517837E-5,null,null,null,null,0,null,0,null,null,null,0,null,null,null,null,null,null,1.6472285734395489E-2,null,0,null,null,null,null,null,null,null,null,null,null,null,null,null,null,2.5531185407519068E-3,null,null,0,null,null,null,null,null,null,null,null,null,null,9.6957102990809466E-2,16.562110874865468,46.331933727173208,0,37.505859266579165,0,0,0]
[null,"ZAF-NW",null,{"$f":"IF(\"WACC,,,\"&$B660&\",\"=VLOOKUP(\"WACC,,,\"&$B660&\",\",data[],1),VLOOKUP(\"WACC,,,\"&$B660&\",\",data[],7),$D$582)","v":7.8066629268261314E-2},null,null,null,null,null,null,2.7660609549628949E-2,null,null,null,null,null,1.0092598137524621E-2,null,4.9182930822517837E-5,null,null,null,null,0,null,0,null,null,null,0,null,null,null,null,null,null,2.0054476037904653E-2,null,0,null,null,null,null,null,null,null,null,null,null,null,null,null,null,2.5531185407519068E-3,null,null,0,null,null,null,null,null,null,null,null,null,null,9.6957102990809466E-2,19.8961115309706,54.528929529837377,0,44.567634325152973,0,0,0]
[null,"ZAF-WC",null,{"$f":"IF(\"WACC,,,\"&$B661&\",\"=VLOOKUP(\"WACC,,,\"&$B661&\",\",data[],1),VLOOKUP(\"WACC,,,\"&$B661&\",\",data[],7),$D$582)","v":7.8066629268261314E-2},null,null,null,null,null,null,2.5971353984905847E-2,null,null,null,null,null,9.3971382442324339E-3,null,4.9182930822517837E-5,null,null,null,null,0,null,0,null,null,null,0,null,null,null,null,null,null,1.8569810147525855E-2,null,0,null,null,null,null,null,null,null,null,null,null,null,null,null,null,2.5531185407519068E-3,null,null,0,null,null,null,null,null,null,null,null,null,null,9.6957102990809466E-2,18.525111971321827,51.198804158543552,0,41.640828190726886,0,0,0]
[]
["opex-f/opex-t"]
[null,"(DEFAULT)",null,null,{"$f":"IF(\"OPEX-F,\"&E$2&\",,,\"=VLOOKUP(\"OPEX-F,\"&E$2&\",,,\",data[],1),VLOOKUP(\"OPEX-F,\"&E$2&\",,,\",data[],7),0)","v":0},{"$f":"IF(\"OPEX-F,\"&F$2&\",,,\"=VLOOKUP(\"OPEX-F,\"&F$2&\",,,\",data[],1),VLOOKUP(\"OPEX-F,\"&F$2&\",,,\",data[],7),0)","v":0},{"$f":"IF(\"OPEX-F,\"&G$2&\",,,\"=VLOOKUP(\"OPEX-F,\"&G$2&\",,,\",data[],1),VLOOKUP(\"OPEX-F,\"&G$2&\",,,\",data[],7),0)","v":0},{"$f":"IF(\"OPEX-F,\"&H$2&\",,,\"=VLOOKUP(\"OPEX-F,\"&H$2&\",,,\",data[],1),VLOOKUP(\"OPEX-F,\"&H$2&\",,,\",data[],7),0)","v":0},{"$f":"IF(\"OPEX-F,\"&I$2&\",,,\"=VLOOKUP(\"OPEX-F,\"&I$2&\",,,\",data[],1),VLOOKUP(\"OPEX-F,\"&I$2&\",,,\",data[],7),0)","v":0},null,null,null,null,null,null,null,{"$f":"IF(\"OPEX-F,\"&Q$2&\",,,\"=VLOOKUP(\"OPEX-F,\"&Q$2&\",,,\",data[],1),VLOOKUP(\"OPEX-F,\"&Q$2&\",,,\",data[],7),0)","v":13.012853079705877},null,{"$f":"IF(\"OPEX-F,\"&S$2&\",,,\"=VLOOKUP(\"OPEX-F,\"&S$2&\",,,\",data[],1),VLOOKUP(\"OPEX-F,\"&S$2&\",,,\",data[],7),0)","v":9.4669104972375679E-5},null,null,null,null,{"$f":"IF(\"OPEX-F,\"&X$2&\",,,\"=VLOOKUP(\"OPEX-F,\"&X$2&\",,,\",data[],1),VLOOKUP(\"OPEX-F,\"&X$2&\",,,\",data[],7),0)","v":0},null,{"$f":"IF(\"OPEX-F,\"&Z$2&\",,,\"=VLOOKUP(\"OPEX-F,\"&Z$2&\",,,\",data[],1),VLOOKUP(\"OPEX-F,\"&Z$2&\",,,\",data[],7),0)","v":9.4669104972375679E-5},null,null,null,{"$f":"IF(\"OPEX-F,\"&AD$2&\",,,\"=VLOOKUP(\"OPEX-F,\"&AD$2&\",,,\",data[],1),VLOOKUP(\"OPEX-F,\"&AD$2&\",,,\",data[],7),0)","v":4.150964167347479E-2},null,null,null,null,null,null,{"$f":"IF(\"OPEX-F,\"&AK$2&\",,,\"=VLOOKUP(\"OPEX-F,\"&AK$2&\",,,\",data[],1),VLOOKUP(\"OPEX-F,\"&AK$2&\",,,\",data[],7),0)","v":58.294484220432686},null,{"$f":"IF(\"OPEX-F,\"&AM$2&\",,,\"=VLOOKUP(\"OPEX-F,\"&AM$2&\",,,\",data[],1),VLOOKUP(\"OPEX-F,\"&AM$2&\",,,\",data[],7),0)","v":5.7796175335134681},null,null,null,null,null,null,null,{"$f":"IF(\"OPEX-T,\"&AU$2&\",,,\"=VLOOKUP(\"OPEX-T,\"&AU$2&\",,,\",data[],1),VLOOKUP(\"OPEX-T,\"&AU$2&\",,,\",data[],7),0)","v":1.5043330904926455E-6},null,{"$f":"IF(\"OPEX-T,\"&AW$2&\",,,\"=VLOOKUP(\"OPEX-T,\"&AW$2&\",,,\",data[],1),VLOOKUP(\"OPEX-T,\"&AW$2&\",,,\",data[],7),0)","v":1.5212397062607411E-5},{"$f":"IF(\"OPEX-T,\"&AX$2&\",,,\"=VLOOKUP(\"OPEX-T,\"&AX$2&\",,,\",data[],1),VLOOKUP(\"OPEX-T,\"&AX$2&\",,,\",data[],7),0)","v":8.8738982865209894E-6},{"$f":"IF(\"OPEX-T,\"&AY$2&\",,,\"=VLOOKUP(\"OPEX-T,\"&AY$2&\",,,\",data[],1),VLOOKUP(\"OPEX-T,\"&AY$2&\",,,\",data[],7),0)","v":3.8030992656518527E-6},{"$f":"IF(\"OPEX-T,\"&AZ$2&\",,,\"=VLOOKUP(\"OPEX-T,\"&AZ$2&\",,,\",data[],1),VLOOKUP(\"OPEX-T,\"&AZ$2&\",,,\",data[],7),0)","v":3.0424794125214817E-6},null,{"$f":"IF(\"OPEX-F,\"&BB$2&\",,,\"=VLOOKUP(\"OPEX-F,\"&BB$2&\",,,\",data[],1),VLOOKUP(\"OPEX-F,\"&BB$2&\",,,\",data[],7),0)","v":7.9535567883452885},null,null,{"$f":"IF(\"OPEX-F,\"&BE$2&\",,,\"=VLOOKUP(\"OPEX-F,\"&BE$2&\",,,\",data[],1),VLOOKUP(\"OPEX-F,\"&BE$2&\",,,\",data[],7),0)","v":0}]
[null,"ARE",null,null,null,null,null,null,null,null,{"$f":"IF(\"OPEX-F,\"&$K14&\",,\"&$B665&\",\"=VLOOKUP(\"OPEX-F,\"&$K14&\",,\"&$B665&\",\",data[],1),VLOOKUP(\"OPEX-F,\"&$K14&\",,\"&$B665&\",\",data[],7),INDEX($E$664:$I$664,$J14))","v":22.580684665414566},null,null,null,null,null,{"$f":"IF(\"OPEX-F,\"&Q$2&\",,\"&$B665&\",\"=VLOOKUP(\"OPEX-F,\"&Q$2&\",,\"&$B665&\",\",data[],1),VLOOKUP(\"OPEX-F,\"&Q$2&\",,\"&$B665&\",\",data[],7),Q$664)","v":13.012853079705877},null,{"$f":"IF(\"OPEX-F,\"&S$2&\",,\"&$B665&\",\"=VLOOKUP(\"OPEX-F,\"&S$2&\",,\"&$B665&\",\",data[],1),VLOOKUP(\"OPEX-F,\"&S$2&\",,\"&$B665&\",\",data[],7),S$664)","v":9.4669104972375679E-5},null,null,null,null,{"$f":"IF(\"OPEX-F,\"&X$2&\",,\"&$B665&\",\"=VLOOKUP(\"OPEX-F,\"&X$2&\",,\"&$B665&\",\",data[],1),VLOOKUP(\"OPEX-F,\"&X$2&\",,\"&$B665&\",\",data[],7),X$664)","v":0},null,{"$f":"IF(\"OPEX-F,\"&Z$2&\",,\"&$B665&\",\"=VLOOKUP(\"OPEX-F,\"&Z$2&\",,\"&$B665&\",\",data[],1),VLOOKUP(\"OPEX-F,\"&Z$2&\",,\"&$B665&\",\",data[],7),Z$664)","v":9.4669104972375679E-5},null,null,null,{"$f":"IF(\"OPEX-F,\"&AD$2&\",,\"&$B665&\",\"=VLOOKUP(\"OPEX-F,\"&AD$2&\",,\"&$B665&\",\",data[],1),VLOOKUP(\"OPEX-F,\"&AD$2&\",,\"&$B665&\",\",data[],7),AD$664)","v":4.150964167347479E-2},null,null,null,null,null,null,{"$f":"IF(\"OPEX-F,\"&AK$2&\",,\"&$B665&\",\"=VLOOKUP(\"OPEX-F,\"&AK$2&\",,\"&$B665&\",\",data[],1),VLOOKUP(\"OPEX-F,\"&AK$2&\",,\"&$B665&\",\",data[],7),AK$664)","v":58.294484220432686},null,{"$f":"IF(\"OPEX-F,\"&AM$2&\",,\"&$B665&\",\"=VLOOKUP(\"OPEX-F,\"&AM$2&\",,\"&$B665&\",\",data[],1),VLOOKUP(\"OPEX-F,\"&AM$2&\",,\"&$B665&\",\",data[],7),AM$664)","v":5.7796175335134681},null,null,null,null,null,null,null,{"$f":"AU$664*AU14","v":0},null,{"$f":"AW$664*AW14","v":0},4.8806440575865445E-2,0,0,null,{"$f":"IF(\"OPEX-F,\"&BB$2&\",,\"&$B665&\",\"=VLOOKUP(\"OPEX-F,\"&BB$2&\",,\"&$B665&\",\",data[],1),VLOOKUP(\"OPEX-F,\"&BB$2&\",,\"&$B665&\",\",data[],7),BB$664)","v":7.9535567883452885},null,null,{"$f":"IF(\"OPEX-F,\"&BE$2&\",,\"&$B665&\",\"=VLOOKUP(\"OPEX-F,\"&BE$2&\",,\"&$B665&\",\",data[],1),VLOOKUP(\"OPEX-F,\"&BE$2&\",,\"&$B665&\",\",data[],7),BE$664)","v":0}]
[null,"ARG",null,null,null,null,null,null,null,null,{"$f":"IF(\"OPEX-F,\"&$K15&\",,\"&$B666&\",\"=VLOOKUP(\"OPEX-F,\"&$K15&\",,\"&$B666&\",\",data[],1),VLOOKUP(\"OPEX-F,\"&$K15&\",,\"&$B666&\",\",data[],7),INDEX($E$664:$I$664,$J15))","v":24.360834108462015},null,null,null,null,null,{"$f":"IF(\"OPEX-F,\"&Q$2&\",,\"&$B666&\",\"=VLOOKUP(\"OPEX-F,\"&Q$2&\",,\"&$B666&\",\",data[],1),VLOOKUP(\"OPEX-F,\"&Q$2&\",,\"&$B666&\",\",data[],7),Q$664)","v":13.012853079705877},null,{"$f":"IF(\"OPEX-F,\"&S$2&\",,\"&$B666&\",\"=VLOOKUP(\"OPEX-F,\"&S$2&\",,\"&$B666&\",\",data[],1),VLOOKUP(\"OPEX-F,\"&S$2&\",,\"&$B666&\",\",data[],7),S$664)","v":9.4669104972375679E-5},null,null,null,null,{"$f":"IF(\"OPEX-F,\"&X$2&\",,\"&$B666&\",\"=VLOOKUP(\"OPEX-F,\"&X$2&\",,\"&$B666&\",\",data[],1),VLOOKUP(\"OPEX-F,\"&X$2&\",,\"&$B666&\",\",data[],7),X$664)","v":0},null,{"$f":"IF(\"OPEX-F,\"&Z$2&\",,\"&$B666&\",\"=VLOOKUP(\"OPEX-F,\"&Z$2&\",,\"&$B666&\",\",data[],1),VLOOKUP(\"OPEX-F,\"&Z$2&\",,\"&$B666&\",\",data[],7),Z$664)","v":9.4669104972375679E-5},null,null,null,{"$f":"IF(\"OPEX-F,\"&AD$2&\",,\"&$B666&\",\"=VLOOKUP(\"OPEX-F,\"&AD$2&\",,\"&$B666&\",\",data[],1),VLOOKUP(\"OPEX-F,\"&AD$2&\",,\"&$B666&\",\",data[],7),AD$664)","v":4.150964167347479E-2},null,null,null,null,null,null,{"$f":"IF(\"OPEX-F,\"&AK$2&\",,\"&$B666&\",\"=VLOOKUP(\"OPEX-F,\"&AK$2&\",,\"&$B666&\",\",data[],1),VLOOKUP(\"OPEX-F,\"&AK$2&\",,\"&$B666&\",\",data[],7),AK$664)","v":58.294484220432686},null,{"$f":"IF(\"OPEX-F,\"&AM$2&\",,\"&$B666&\",\"=VLOOKUP(\"OPEX-F,\"&AM$2&\",,\"&$B666&\",\",data[],1),VLOOKUP(\"OPEX-F,\"&AM$2&\",,\"&$B666&\",\",data[],7),AM$664)","v":5.7796175335134681},null,null,null,null,null,null,null,1.9148349024930424E-2,null,0,0,0,0,null,{"$f":"IF(\"OPEX-F,\"&BB$2&\",,\"&$B666&\",\"=VLOOKUP(\"OPEX-F,\"&BB$2&\",,\"&$B666&\",\",data[],1),VLOOKUP(\"OPEX-F,\"&BB$2&\",,\"&$B666&\",\",data[],7),BB$664)","v":7.9535567883452885},null,null,{"$f":"IF(\"OPEX-F,\"&BE$2&\",,\"&$B666&\",\"=VLOOKUP(\"OPEX-F,\"&BE$2&\",,\"&$B666&\",\",data[],1),VLOOKUP(\"OPEX-F,\"&BE$2&\",,\"&$B666&\",\",data[],7),BE$664)","v":0}]
[null,"ARG-BA",null,null,null,null,null,null,null,null,{"$f":"IF(\"OPEX-F,\"&$K16&\",,\"&$B667&\",\"=VLOOKUP(\"OPEX-F,\"&$K16&\",,\"&$B667&\",\",data[],1),VLOOKUP(\"OPEX-F,\"&$K16&\",,\"&$B667&\",\",data[],7),INDEX($E$664:$I$664,$J16))","v":24.360834108462015},null,null,null,null,null,{"$f":"IF(\"OPEX-F,\"&Q$2&\",,\"&$B667&\",\"=VLOOKUP(\"OPEX-F,\"&Q$2&\",,\"&$B667&\",\",data[],1),VLOOKUP(\"OPEX-F,\"&Q$2&\",,\"&$B667&\",\",data[],7),Q$664)","v":13.012853079705877},null,{"$f":"IF(\"OPEX-F,\"&S$2&\",,\"&$B667&\",\"=VLOOKUP(\"OPEX-F,\"&S$2&\",,\"&$B667&\",\",data[],1),VLOOKUP(\"OPEX-F,\"&S$2&\",,\"&$B667&\",\",data[],7),S$664)","v":9.4669104972375679E-5},null,null,null,null,{"$f":"IF(\"OPEX-F,\"&X$2&\",,\"&$B667&\",\"=VLOOKUP(\"OPEX-F,\"&X$2&\",,\"&$B667&\",\",data[],1),VLOOKUP(\"OPEX-F,\"&X$2&\",,\"&$B667&\",\",data[],7),X$664)","v":0},null,{"$f":"IF(\"OPEX-F,\"&Z$2&\",,\"&$B667&\",\"=VLOOKUP(\"OPEX-F,\"&Z$2&\",,\"&$B667&\",\",data[],1),VLOOKUP(\"OPEX-F,\"&Z$2&\",,\"&$B667&\",\",data[],7),Z$664)","v":9.4669104972375679E-5},null,null,null,{"$f":"IF(\"OPEX-F,\"&AD$2&\",,\"&$B667&\",\"=VLOOKUP(\"OPEX-F,\"&AD$2&\",,\"&$B667&\",\",data[],1),VLOOKUP(\"OPEX-F,\"&AD$2&\",,\"&$B667&\",\",data[],7),AD$664)","v":4.150964167347479E-2},null,null,null,null,null,null,{"$f":"IF(\"OPEX-F,\"&AK$2&\",,\"&$B667&\",\"=VLOOKUP(\"OPEX-F,\"&AK$2&\",,\"&$B667&\",\",data[],1),VLOOKUP(\"OPEX-F,\"&AK$2&\",,\"&$B667&\",\",data[],7),AK$664)","v":58.294484220432686},null,{"$f":"IF(\"OPEX-F,\"&AM$2&\",,\"&$B667&\",\"=VLOOKUP(\"OPEX-F,\"&AM$2&\",,\"&$B667&\",\",data[],1),VLOOKUP(\"OPEX-F,\"&AM$2&\",,\"&$B667&\",\",data[],7),AM$664)","v":5.7796175335134681},null,null,null,null,null,null,null,1.9148349024930424E-2,null,0,0,0,0,null,{"$f":"IF(\"OPEX-F,\"&BB$2&\",,\"&$B667&\",\"=VLOOKUP(\"OPEX-F,\"&BB$2&\",,\"&$B667&\",\",data[],1),VLOOKUP(\"OPEX-F,\"&BB$2&\",,\"&$B667&\",\",data[],7),BB$664)","v":7.9535567883452885},null,null,{"$f":"IF(\"OPEX-F,\"&BE$2&\",,\"&$B667&\",\"=VLOOKUP(\"OPEX-F,\"&BE$2&\",,\"&$B667&\",\",data[],1),VLOOKUP(\"OPEX-F,\"&BE$2&\",,\"&$B667&\",\",data[],7),BE$664)","v":0}]
[null,"ARG-CAT",null,null,null,null,null,null,null,null,{"$f":"IF(\"OPEX-F,\"&$K17&\",,\"&$B668&\",\"=VLOOKUP(\"OPEX-F,\"&$K17&\",,\"&$B668&\",\",data[],1),VLOOKUP(\"OPEX-F,\"&$K17&\",,\"&$B668&\",\",data[],7),INDEX($E$664:$I$664,$J17))","v":24.360834108462015},null,null,null,null,null,{"$f":"IF(\"OPEX-F,\"&Q$2&\",,\"&$B668&\",\"=VLOOKUP(\"OPEX-F,\"&Q$2&\",,\"&$B668&\",\",data[],1),VLOOKUP(\"OPEX-F,\"&Q$2&\",,\"&$B668&\",\",data[],7),Q$664)","v":13.012853079705877},null,{"$f":"IF(\"OPEX-F,\"&S$2&\",,\"&$B668&\",\"=VLOOKUP(\"OPEX-F,\"&S$2&\",,\"&$B668&\",\",data[],1),VLOOKUP(\"OPEX-F,\"&S$2&\",,\"&$B668&\",\",data[],7),S$664)","v":9.4669104972375679E-5},null,null,null,null,{"$f":"IF(\"OPEX-F,\"&X$2&\",,\"&$B668&\",\"=VLOOKUP(\"OPEX-F,\"&X$2&\",,\"&$B668&\",\",data[],1),VLOOKUP(\"OPEX-F,\"&X$2&\",,\"&$B668&\",\",data[],7),X$664)","v":0},null,{"$f":"IF(\"OPEX-F,\"&Z$2&\",,\"&$B668&\",\"=VLOOKUP(\"OPEX-F,\"&Z$2&\",,\"&$B668&\",\",data[],1),VLOOKUP(\"OPEX-F,\"&Z$2&\",,\"&$B668&\",\",data[],7),Z$664)","v":9.4669104972375679E-5},null,null,null,{"$f":"IF(\"OPEX-F,\"&AD$2&\",,\"&$B668&\",\"=VLOOKUP(\"OPEX-F,\"&AD$2&\",,\"&$B668&\",\",data[],1),VLOOKUP(\"OPEX-F,\"&AD$2&\",,\"&$B668&\",\",data[],7),AD$664)","v":4.150964167347479E-2},null,null,null,null,null,null,{"$f":"IF(\"OPEX-F,\"&AK$2&\",,\"&$B668&\",\"=VLOOKUP(\"OPEX-F,\"&AK$2&\",,\"&$B668&\",\",data[],1),VLOOKUP(\"OPEX-F,\"&AK$2&\",,\"&$B668&\",\",data[],7),AK$664)","v":58.294484220432686},null,{"$f":"IF(\"OPEX-F,\"&AM$2&\",,\"&$B668&\",\"=VLOOKUP(\"OPEX-F,\"&AM$2&\",,\"&$B668&\",\",data[],1),VLOOKUP(\"OPEX-F,\"&AM$2&\",,\"&$B668&\",\",data[],7),AM$664)","v":5.7796175335134681},null,null,null,null,null,null,null,1.9148349024930424E-2,null,0,0,0,0,null,{"$f":"IF(\"OPEX-F,\"&BB$2&\",,\"&$B668&\",\"=VLOOKUP(\"OPEX-F,\"&BB$2&\",,\"&$B668&\",\",data[],1),VLOOKUP(\"OPEX-F,\"&BB$2&\",,\"&$B668&\",\",data[],7),BB$664)","v":7.9535567883452885},null,null,{"$f":"IF(\"OPEX-F,\"&BE$2&\",,\"&$B668&\",\"=VLOOKUP(\"OPEX-F,\"&BE$2&\",,\"&$B668&\",\",data[],1),VLOOKUP(\"OPEX-F,\"&BE$2&\",,\"&$B668&\",\",data[],7),BE$664)","v":0}]
[null,"ARG-CBA",null,null,null,null,null,null,null,null,{"$f":"IF(\"OPEX-F,\"&$K18&\",,\"&$B669&\",\"=VLOOKUP(\"OPEX-F,\"&$K18&\",,\"&$B669&\",\",data[],1),VLOOKUP(\"OPEX-F,\"&$K18&\",,\"&$B669&\",\",data[],7),INDEX($E$664:$I$664,$J18))","v":24.360834108462015},null,null,null,null,null,{"$f":"IF(\"OPEX-F,\"&Q$2&\",,\"&$B669&\",\"=VLOOKUP(\"OPEX-F,\"&Q$2&\",,\"&$B669&\",\",data[],1),VLOOKUP(\"OPEX-F,\"&Q$2&\",,\"&$B669&\",\",data[],7),Q$664)","v":13.012853079705877},null,{"$f":"IF(\"OPEX-F,\"&S$2&\",,\"&$B669&\",\"=VLOOKUP(\"OPEX-F,\"&S$2&\",,\"&$B669&\",\",data[],1),VLOOKUP(\"OPEX-F,\"&S$2&\",,\"&$B669&\",\",data[],7),S$664)","v":9.4669104972375679E-5},null,null,null,null,{"$f":"IF(\"OPEX-F,\"&X$2&\",,\"&$B669&\",\"=VLOOKUP(\"OPEX-F,\"&X$2&\",,\"&$B669&\",\",data[],1),VLOOKUP(\"OPEX-F,\"&X$2&\",,\"&$B669&\",\",data[],7),X$664)","v":0},null,{"$f":"IF(\"OPEX-F,\"&Z$2&\",,\"&$B669&\",\"=VLOOKUP(\"OPEX-F,\"&Z$2&\",,\"&$B669&\",\",data[],1),VLOOKUP(\"OPEX-F,\"&Z$2&\",,\"&$B669&\",\",data[],7),Z$664)","v":9.4669104972375679E-5},null,null,null,{"$f":"IF(\"OPEX-F,\"&AD$2&\",,\"&$B669&\",\"=VLOOKUP(\"OPEX-F,\"&AD$2&\",,\"&$B669&\",\",data[],1),VLOOKUP(\"OPEX-F,\"&AD$2&\",,\"&$B669&\",\",data[],7),AD$664)","v":4.150964167347479E-2},null,null,null,null,null,null,{"$f":"IF(\"OPEX-F,\"&AK$2&\",,\"&$B669&\",\"=VLOOKUP(\"OPEX-F,\"&AK$2&\",,\"&$B669&\",\",data[],1),VLOOKUP(\"OPEX-F,\"&AK$2&\",,\"&$B669&\",\",data[],7),AK$664)","v":58.294484220432686},null,{"$f":"IF(\"OPEX-F,\"&AM$2&\",,\"&$B669&\",\"=VLOOKUP(\"OPEX-F,\"&AM$2&\",,\"&$B669&\",\",data[],1),VLOOKUP(\"OPEX-F,\"&AM$2&\",,\"&$B669&\",\",data[],7),AM$664)","v":5.7796175335134681},null,null,null,null,null,null,null,1.9148349024930424E-2,null,0,0,0,0,null,{"$f":"IF(\"OPEX-F,\"&BB$2&\",,\"&$B669&\",\"=VLOOKUP(\"OPEX-F,\"&BB$2&\",,\"&$B669&\",\",data[],1),VLOOKUP(\"OPEX-F,\"&BB$2&\",,\"&$B669&\",\",data[],7),BB$664)","v":7.9535567883452885},null,null,{"$f":"IF(\"OPEX-F,\"&BE$2&\",,\"&$B669&\",\"=VLOOKUP(\"OPEX-F,\"&BE$2&\",,\"&$B669&\",\",data[],1),VLOOKUP(\"OPEX-F,\"&BE$2&\",,\"&$B669&\",\",data[],7),BE$664)","v":0}]
[null,"ARG-CHA",null,null,null,null,null,null,null,null,{"$f":"IF(\"OPEX-F,\"&$K19&\",,\"&$B670&\",\"=VLOOKUP(\"OPEX-F,\"&$K19&\",,\"&$B670&\",\",data[],1),VLOOKUP(\"OPEX-F,\"&$K19&\",,\"&$B670&\",\",data[],7),INDEX($E$664:$I$664,$J19))","v":24.360834108462015},null,null,null,null,null,{"$f":"IF(\"OPEX-F,\"&Q$2&\",,\"&$B670&\",\"=VLOOKUP(\"OPEX-F,\"&Q$2&\",,\"&$B670&\",\",data[],1),VLOOKUP(\"OPEX-F,\"&Q$2&\",,\"&$B670&\",\",data[],7),Q$664)","v":13.012853079705877},null,{"$f":"IF(\"OPEX-F,\"&S$2&\",,\"&$B670&\",\"=VLOOKUP(\"OPEX-F,\"&S$2&\",,\"&$B670&\",\",data[],1),VLOOKUP(\"OPEX-F,\"&S$2&\",,\"&$B670&\",\",data[],7),S$664)","v":9.4669104972375679E-5},null,null,null,null,{"$f":"IF(\"OPEX-F,\"&X$2&\",,\"&$B670&\",\"=VLOOKUP(\"OPEX-F,\"&X$2&\",,\"&$B670&\",\",data[],1),VLOOKUP(\"OPEX-F,\"&X$2&\",,\"&$B670&\",\",data[],7),X$664)","v":0},null,{"$f":"IF(\"OPEX-F,\"&Z$2&\",,\"&$B670&\",\"=VLOOKUP(\"OPEX-F,\"&Z$2&\",,\"&$B670&\",\",data[],1),VLOOKUP(\"OPEX-F,\"&Z$2&\",,\"&$B670&\",\",data[],7),Z$664)","v":9.4669104972375679E-5},null,null,null,{"$f":"IF(\"OPEX-F,\"&AD$2&\",,\"&$B670&\",\"=VLOOKUP(\"OPEX-F,\"&AD$2&\",,\"&$B670&\",\",data[],1),VLOOKUP(\"OPEX-F,\"&AD$2&\",,\"&$B670&\",\",data[],7),AD$664)","v":4.150964167347479E-2},null,null,null,null,null,null,{"$f":"IF(\"OPEX-F,\"&AK$2&\",,\"&$B670&\",\"=VLOOKUP(\"OPEX-F,\"&AK$2&\",,\"&$B670&\",\",data[],1),VLOOKUP(\"OPEX-F,\"&AK$2&\",,\"&$B670&\",\",data[],7),AK$664)","v":58.294484220432686},null,{"$f":"IF(\"OPEX-F,\"&AM$2&\",,\"&$B670&\",\"=VLOOKUP(\"OPEX-F,\"&AM$2&\",,\"&$B670&\",\",data[],1),VLOOKUP(\"OPEX-F,\"&AM$2&\",,\"&$B670&\",\",data[],7),AM$664)","v":5.7796175335134681},null,null,null,null,null,null,null,1.9148349024930424E-2,null,0,0,0,0,null,{"$f":"IF(\"OPEX-F,\"&BB$2&\",,\"&$B670&\",\"=VLOOKUP(\"OPEX-F,\"&BB$2&\",,\"&$B670&\",\",data[],1),VLOOKUP(\"OPEX-F,\"&BB$2&\",,\"&$B670&\",\",data[],7),BB$664)","v":7.9535567883452885},null,null,{"$f":"IF(\"OPEX-F,\"&BE$2&\",,\"&$B670&\",\"=VLOOKUP(\"OPEX-F,\"&BE$2&\",,\"&$B670&\",\",data[],1),VLOOKUP(\"OPEX-F,\"&BE$2&\",,\"&$B670&\",\",data[],7),BE$664)","v":0}]
[null,"ARG-CHU",null,null,null,null,null,null,null,null,{"$f":"IF(\"OPEX-F,\"&$K20&\",,\"&$B671&\",\"=VLOOKUP(\"OPEX-F,\"&$K20&\",,\"&$B671&\",\",data[],1),VLOOKUP(\"OPEX-F,\"&$K20&\",,\"&$B671&\",\",data[],7),INDEX($E$664:$I$664,$J20))","v":24.360834108462015},null,null,null,null,null,{"$f":"IF(\"OPEX-F,\"&Q$2&\",,\"&$B671&\",\"=VLOOKUP(\"OPEX-F,\"&Q$2&\",,\"&$B671&\",\",data[],1),VLOOKUP(\"OPEX-F,\"&Q$2&\",,\"&$B671&\",\",data[],7),Q$664)","v":13.012853079705877},null,{"$f":"IF(\"OPEX-F,\"&S$2&\",,\"&$B671&\",\"=VLOOKUP(\"OPEX-F,\"&S$2&\",,\"&$B671&\",\",data[],1),VLOOKUP(\"OPEX-F,\"&S$2&\",,\"&$B671&\",\",data[],7),S$664)","v":9.4669104972375679E-5},null,null,null,null,{"$f":"IF(\"OPEX-F,\"&X$2&\",,\"&$B671&\",\"=VLOOKUP(\"OPEX-F,\"&X$2&\",,\"&$B671&\",\",data[],1),VLOOKUP(\"OPEX-F,\"&X$2&\",,\"&$B671&\",\",data[],7),X$664)","v":0},null,{"$f":"IF(\"OPEX-F,\"&Z$2&\",,\"&$B671&\",\"=VLOOKUP(\"OPEX-F,\"&Z$2&\",,\"&$B671&\",\",data[],1),VLOOKUP(\"OPEX-F,\"&Z$2&\",,\"&$B671&\",\",data[],7),Z$664)","v":9.4669104972375679E-5},null,null,null,{"$f":"IF(\"OPEX-F,\"&AD$2&\",,\"&$B671&\",\"=VLOOKUP(\"OPEX-F,\"&AD$2&\",,\"&$B671&\",\",data[],1),VLOOKUP(\"OPEX-F,\"&AD$2&\",,\"&$B671&\",\",data[],7),AD$664)","v":4.150964167347479E-2},null,null,null,null,null,null,{"$f":"IF(\"OPEX-F,\"&AK$2&\",,\"&$B671&\",\"=VLOOKUP(\"OPEX-F,\"&AK$2&\",,\"&$B671&\",\",data[],1),VLOOKUP(\"OPEX-F,\"&AK$2&\",,\"&$B671&\",\",data[],7),AK$664)","v":58.294484220432686},null,{"$f":"IF(\"OPEX-F,\"&AM$2&\",,\"&$B671&\",\"=VLOOKUP(\"OPEX-F,\"&AM$2&\",,\"&$B671&\",\",data[],1),VLOOKUP(\"OPEX-F,\"&AM$2&\",,\"&$B671&\",\",data[],7),AM$664)","v":5.7796175335134681},null,null,null,null,null,null,null,1.9148349024930424E-2,null,0,0,0,0,null,{"$f":"IF(\"OPEX-F,\"&BB$2&\",,\"&$B671&\",\"=VLOOKUP(\"OPEX-F,\"&BB$2&\",,\"&$B671&\",\",data[],1),VLOOKUP(\"OPEX-F,\"&BB$2&\",,\"&$B671&\",\",data[],7),BB$664)","v":7.9535567883452885},null,null,{"$f":"IF(\"OPEX-F,\"&BE$2&\",,\"&$B671&\",\"=VLOOKUP(\"OPEX-F,\"&BE$2&\",,\"&$B671&\",\",data[],1),VLOOKUP(\"OPEX-F,\"&BE$2&\",,\"&$B671&\",\",data[],7),BE$664)","v":0}]
[null,"ARG-COR",null,null,null,null,null,null,null,null,{"$f":"IF(\"OPEX-F,\"&$K21&\",,\"&$B672&\",\"=VLOOKUP(\"OPEX-F,\"&$K21&\",,\"&$B672&\",\",data[],1),VLOOKUP(\"OPEX-F,\"&$K21&\",,\"&$B672&\",\",data[],7),INDEX($E$664:$I$664,$J21))","v":24.360834108462015},null,null,null,null,null,{"$f":"IF(\"OPEX-F,\"&Q$2&\",,\"&$B672&\",\"=VLOOKUP(\"OPEX-F,\"&Q$2&\",,\"&$B672&\",\",data[],1),VLOOKUP(\"OPEX-F,\"&Q$2&\",,\"&$B672&\",\",data[],7),Q$664)","v":13.012853079705877},null,{"$f":"IF(\"OPEX-F,\"&S$2&\",,\"&$B672&\",\"=VLOOKUP(\"OPEX-F,\"&S$2&\",,\"&$B672&\",\",data[],1),VLOOKUP(\"OPEX-F,\"&S$2&\",,\"&$B672&\",\",data[],7),S$664)","v":9.4669104972375679E-5},null,null,null,null,{"$f":"IF(\"OPEX-F,\"&X$2&\",,\"&$B672&\",\"=VLOOKUP(\"OPEX-F,\"&X$2&\",,\"&$B672&\",\",data[],1),VLOOKUP(\"OPEX-F,\"&X$2&\",,\"&$B672&\",\",data[],7),X$664)","v":0},null,{"$f":"IF(\"OPEX-F,\"&Z$2&\",,\"&$B672&\",\"=VLOOKUP(\"OPEX-F,\"&Z$2&\",,\"&$B672&\",\",data[],1),VLOOKUP(\"OPEX-F,\"&Z$2&\",,\"&$B672&\",\",data[],7),Z$664)","v":9.4669104972375679E-5},null,null,null,{"$f":"IF(\"OPEX-F,\"&AD$2&\",,\"&$B672&\",\"=VLOOKUP(\"OPEX-F,\"&AD$2&\",,\"&$B672&\",\",data[],1),VLOOKUP(\"OPEX-F,\"&AD$2&\",,\"&$B672&\",\",data[],7),AD$664)","v":4.150964167347479E-2},null,null,null,null,null,null,{"$f":"IF(\"OPEX-F,\"&AK$2&\",,\"&$B672&\",\"=VLOOKUP(\"OPEX-F,\"&AK$2&\",,\"&$B672&\",\",data[],1),VLOOKUP(\"OPEX-F,\"&AK$2&\",,\"&$B672&\",\",data[],7),AK$664)","v":58.294484220432686},null,{"$f":"IF(\"OPEX-F,\"&AM$2&\",,\"&$B672&\",\"=VLOOKUP(\"OPEX-F,\"&AM$2&\",,\"&$B672&\",\",data[],1),VLOOKUP(\"OPEX-F,\"&AM$2&\",,\"&$B672&\",\",data[],7),AM$664)","v":5.7796175335134681},null,null,null,null,null,null,null,1.9148349024930424E-2,null,0,0,0,0,null,{"$f":"IF(\"OPEX-F,\"&BB$2&\",,\"&$B672&\",\"=VLOOKUP(\"OPEX-F,\"&BB$2&\",,\"&$B672&\",\",data[],1),VLOOKUP(\"OPEX-F,\"&BB$2&\",,\"&$B672&\",\",data[],7),BB$664)","v":7.9535567883452885},null,null,{"$f":"IF(\"OPEX-F,\"&BE$2&\",,\"&$B672&\",\"=VLOOKUP(\"OPEX-F,\"&BE$2&\",,\"&$B672&\",\",data[],1),VLOOKUP(\"OPEX-F,\"&BE$2&\",,\"&$B672&\",\",data[],7),BE$664)","v":0}]
[null,"ARG-CRB",null,null,null,null,null,null,null,null,{"$f":"IF(\"OPEX-F,\"&$K22&\",,\"&$B673&\",\"=VLOOKUP(\"OPEX-F,\"&$K22&\",,\"&$B673&\",\",data[],1),VLOOKUP(\"OPEX-F,\"&$K22&\",,\"&$B673&\",\",data[],7),INDEX($E$664:$I$664,$J22))","v":24.360834108462015},null,null,null,null,null,{"$f":"IF(\"OPEX-F,\"&Q$2&\",,\"&$B673&\",\"=VLOOKUP(\"OPEX-F,\"&Q$2&\",,\"&$B673&\",\",data[],1),VLOOKUP(\"OPEX-F,\"&Q$2&\",,\"&$B673&\",\",data[],7),Q$664)","v":13.012853079705877},null,{"$f":"IF(\"OPEX-F,\"&S$2&\",,\"&$B673&\",\"=VLOOKUP(\"OPEX-F,\"&S$2&\",,\"&$B673&\",\",data[],1),VLOOKUP(\"OPEX-F,\"&S$2&\",,\"&$B673&\",\",data[],7),S$664)","v":9.4669104972375679E-5},null,null,null,null,{"$f":"IF(\"OPEX-F,\"&X$2&\",,\"&$B673&\",\"=VLOOKUP(\"OPEX-F,\"&X$2&\",,\"&$B673&\",\",data[],1),VLOOKUP(\"OPEX-F,\"&X$2&\",,\"&$B673&\",\",data[],7),X$664)","v":0},null,{"$f":"IF(\"OPEX-F,\"&Z$2&\",,\"&$B673&\",\"=VLOOKUP(\"OPEX-F,\"&Z$2&\",,\"&$B673&\",\",data[],1),VLOOKUP(\"OPEX-F,\"&Z$2&\",,\"&$B673&\",\",data[],7),Z$664)","v":9.4669104972375679E-5},null,null,null,{"$f":"IF(\"OPEX-F,\"&AD$2&\",,\"&$B673&\",\"=VLOOKUP(\"OPEX-F,\"&AD$2&\",,\"&$B673&\",\",data[],1),VLOOKUP(\"OPEX-F,\"&AD$2&\",,\"&$B673&\",\",data[],7),AD$664)","v":4.150964167347479E-2},null,null,null,null,null,null,{"$f":"IF(\"OPEX-F,\"&AK$2&\",,\"&$B673&\",\"=VLOOKUP(\"OPEX-F,\"&AK$2&\",,\"&$B673&\",\",data[],1),VLOOKUP(\"OPEX-F,\"&AK$2&\",,\"&$B673&\",\",data[],7),AK$664)","v":58.294484220432686},null,{"$f":"IF(\"OPEX-F,\"&AM$2&\",,\"&$B673&\",\"=VLOOKUP(\"OPEX-F,\"&AM$2&\",,\"&$B673&\",\",data[],1),VLOOKUP(\"OPEX-F,\"&AM$2&\",,\"&$B673&\",\",data[],7),AM$664)","v":5.7796175335134681},null,null,null,null,null,null,null,1.9148349024930424E-2,null,0,0,0,0,null,{"$f":"IF(\"OPEX-F,\"&BB$2&\",,\"&$B673&\",\"=VLOOKUP(\"OPEX-F,\"&BB$2&\",,\"&$B673&\",\",data[],1),VLOOKUP(\"OPEX-F,\"&BB$2&\",,\"&$B673&\",\",data[],7),BB$664)","v":7.9535567883452885},null,null,{"$f":"IF(\"OPEX-F,\"&BE$2&\",,\"&$B673&\",\"=VLOOKUP(\"OPEX-F,\"&BE$2&\",,\"&$B673&\",\",data[],1),VLOOKUP(\"OPEX-F,\"&BE$2&\",,\"&$B673&\",\",data[],7),BE$664)","v":0}]
[null,"ARG-CRU",null,null,null,null,null,null,null,null,{"$f":"IF(\"OPEX-F,\"&$K23&\",,\"&$B674&\",\"=VLOOKUP(\"OPEX-F,\"&$K23&\",,\"&$B674&\",\",data[],1),VLOOKUP(\"OPEX-F,\"&$K23&\",,\"&$B674&\",\",data[],7),INDEX($E$664:$I$664,$J23))","v":24.360834108462015},null,null,null,null,null,{"$f":"IF(\"OPEX-F,\"&Q$2&\",,\"&$B674&\",\"=VLOOKUP(\"OPEX-F,\"&Q$2&\",,\"&$B674&\",\",data[],1),VLOOKUP(\"OPEX-F,\"&Q$2&\",,\"&$B674&\",\",data[],7),Q$664)","v":13.012853079705877},null,{"$f":"IF(\"OPEX-F,\"&S$2&\",,\"&$B674&\",\"=VLOOKUP(\"OPEX-F,\"&S$2&\",,\"&$B674&\",\",data[],1),VLOOKUP(\"OPEX-F,\"&S$2&\",,\"&$B674&\",\",data[],7),S$664)","v":9.4669104972375679E-5},null,null,null,null,{"$f":"IF(\"OPEX-F,\"&X$2&\",,\"&$B674&\",\"=VLOOKUP(\"OPEX-F,\"&X$2&\",,\"&$B674&\",\",data[],1),VLOOKUP(\"OPEX-F,\"&X$2&\",,\"&$B674&\",\",data[],7),X$664)","v":0},null,{"$f":"IF(\"OPEX-F,\"&Z$2&\",,\"&$B674&\",\"=VLOOKUP(\"OPEX-F,\"&Z$2&\",,\"&$B674&\",\",data[],1),VLOOKUP(\"OPEX-F,\"&Z$2&\",,\"&$B674&\",\",data[],7),Z$664)","v":9.4669104972375679E-5},null,null,null,{"$f":"IF(\"OPEX-F,\"&AD$2&\",,\"&$B674&\",\"=VLOOKUP(\"OPEX-F,\"&AD$2&\",,\"&$B674&\",\",data[],1),VLOOKUP(\"OPEX-F,\"&AD$2&\",,\"&$B674&\",\",data[],7),AD$664)","v":4.150964167347479E-2},null,null,null,null,null,null,{"$f":"IF(\"OPEX-F,\"&AK$2&\",,\"&$B674&\",\"=VLOOKUP(\"OPEX-F,\"&AK$2&\",,\"&$B674&\",\",data[],1),VLOOKUP(\"OPEX-F,\"&AK$2&\",,\"&$B674&\",\",data[],7),AK$664)","v":58.294484220432686},null,{"$f":"IF(\"OPEX-F,\"&AM$2&\",,\"&$B674&\",\"=VLOOKUP(\"OPEX-F,\"&AM$2&\",,\"&$B674&\",\",data[],1),VLOOKUP(\"OPEX-F,\"&AM$2&\",,\"&$B674&\",\",data[],7),AM$664)","v":5.7796175335134681},null,null,null,null,null,null,null,1.9148349024930424E-2,null,0,0,0,0,null,{"$f":"IF(\"OPEX-F,\"&BB$2&\",,\"&$B674&\",\"=VLOOKUP(\"OPEX-F,\"&BB$2&\",,\"&$B674&\",\",data[],1),VLOOKUP(\"OPEX-F,\"&BB$2&\",,\"&$B674&\",\",data[],7),BB$664)","v":7.9535567883452885},null,null,{"$f":"IF(\"OPEX-F,\"&BE$2&\",,\"&$B674&\",\"=VLOOKUP(\"OPEX-F,\"&BE$2&\",,\"&$B674&\",\",data[],1),VLOOKUP(\"OPEX-F,\"&BE$2&\",,\"&$B674&\",\",data[],7),BE$664)","v":0}]
[null,"ARG-EST",null,null,null,null,null,null,null,null,{"$f":"IF(\"OPEX-F,\"&$K24&\",,\"&$B675&\",\"=VLOOKUP(\"OPEX-F,\"&$K24&\",,\"&$B675&\",\",data[],1),VLOOKUP(\"OPEX-F,\"&$K24&\",,\"&$B675&\",\",data[],7),INDEX($E$664:$I$664,$J24))","v":24.360834108462015},null,null,null,null,null,{"$f":"IF(\"OPEX-F,\"&Q$2&\",,\"&$B675&\",\"=VLOOKUP(\"OPEX-F,\"&Q$2&\",,\"&$B675&\",\",data[],1),VLOOKUP(\"OPEX-F,\"&Q$2&\",,\"&$B675&\",\",data[],7),Q$664)","v":13.012853079705877},null,{"$f":"IF(\"OPEX-F,\"&S$2&\",,\"&$B675&\",\"=VLOOKUP(\"OPEX-F,\"&S$2&\",,\"&$B675&\",\",data[],1),VLOOKUP(\"OPEX-F,\"&S$2&\",,\"&$B675&\",\",data[],7),S$664)","v":9.4669104972375679E-5},null,null,null,null,{"$f":"IF(\"OPEX-F,\"&X$2&\",,\"&$B675&\",\"=VLOOKUP(\"OPEX-F,\"&X$2&\",,\"&$B675&\",\",data[],1),VLOOKUP(\"OPEX-F,\"&X$2&\",,\"&$B675&\",\",data[],7),X$664)","v":0},null,{"$f":"IF(\"OPEX-F,\"&Z$2&\",,\"&$B675&\",\"=VLOOKUP(\"OPEX-F,\"&Z$2&\",,\"&$B675&\",\",data[],1),VLOOKUP(\"OPEX-F,\"&Z$2&\",,\"&$B675&\",\",data[],7),Z$664)","v":9.4669104972375679E-5},null,null,null,{"$f":"IF(\"OPEX-F,\"&AD$2&\",,\"&$B675&\",\"=VLOOKUP(\"OPEX-F,\"&AD$2&\",,\"&$B675&\",\",data[],1),VLOOKUP(\"OPEX-F,\"&AD$2&\",,\"&$B675&\",\",data[],7),AD$664)","v":4.150964167347479E-2},null,null,null,null,null,null,{"$f":"IF(\"OPEX-F,\"&AK$2&\",,\"&$B675&\",\"=VLOOKUP(\"OPEX-F,\"&AK$2&\",,\"&$B675&\",\",data[],1),VLOOKUP(\"OPEX-F,\"&AK$2&\",,\"&$B675&\",\",data[],7),AK$664)","v":58.294484220432686},null,{"$f":"IF(\"OPEX-F,\"&AM$2&\",,\"&$B675&\",\"=VLOOKUP(\"OPEX-F,\"&AM$2&\",,\"&$B675&\",\",data[],1),VLOOKUP(\"OPEX-F,\"&AM$2&\",,\"&$B675&\",\",data[],7),AM$664)","v":5.7796175335134681},null,null,null,null,null,null,null,1.9148349024930424E-2,null,0,0,0,0,null,{"$f":"IF(\"OPEX-F,\"&BB$2&\",,\"&$B675&\",\"=VLOOKUP(\"OPEX-F,\"&BB$2&\",,\"&$B675&\",\",data[],1),VLOOKUP(\"OPEX-F,\"&BB$2&\",,\"&$B675&\",\",data[],7),BB$664)","v":7.9535567883452885},null,null,{"$f":"IF(\"OPEX-F,\"&BE$2&\",,\"&$B675&\",\"=VLOOKUP(\"OPEX-F,\"&BE$2&\",,\"&$B675&\",\",data[],1),VLOOKUP(\"OPEX-F,\"&BE$2&\",,\"&$B675&\",\",data[],7),BE$664)","v":0}]
[null,"ARG-FOR",null,null,null,null,null,null,null,null,{"$f":"IF(\"OPEX-F,\"&$K25&\",,\"&$B676&\",\"=VLOOKUP(\"OPEX-F,\"&$K25&\",,\"&$B676&\",\",data[],1),VLOOKUP(\"OPEX-F,\"&$K25&\",,\"&$B676&\",\",data[],7),INDEX($E$664:$I$664,$J25))","v":24.360834108462015},null,null,null,null,null,{"$f":"IF(\"OPEX-F,\"&Q$2&\",,\"&$B676&\",\"=VLOOKUP(\"OPEX-F,\"&Q$2&\",,\"&$B676&\",\",data[],1),VLOOKUP(\"OPEX-F,\"&Q$2&\",,\"&$B676&\",\",data[],7),Q$664)","v":13.012853079705877},null,{"$f":"IF(\"OPEX-F,\"&S$2&\",,\"&$B676&\",\"=VLOOKUP(\"OPEX-F,\"&S$2&\",,\"&$B676&\",\",data[],1),VLOOKUP(\"OPEX-F,\"&S$2&\",,\"&$B676&\",\",data[],7),S$664)","v":9.4669104972375679E-5},null,null,null,null,{"$f":"IF(\"OPEX-F,\"&X$2&\",,\"&$B676&\",\"=VLOOKUP(\"OPEX-F,\"&X$2&\",,\"&$B676&\",\",data[],1),VLOOKUP(\"OPEX-F,\"&X$2&\",,\"&$B676&\",\",data[],7),X$664)","v":0},null,{"$f":"IF(\"OPEX-F,\"&Z$2&\",,\"&$B676&\",\"=VLOOKUP(\"OPEX-F,\"&Z$2&\",,\"&$B676&\",\",data[],1),VLOOKUP(\"OPEX-F,\"&Z$2&\",,\"&$B676&\",\",data[],7),Z$664)","v":9.4669104972375679E-5},null,null,null,{"$f":"IF(\"OPEX-F,\"&AD$2&\",,\"&$B676&\",\"=VLOOKUP(\"OPEX-F,\"&AD$2&\",,\"&$B676&\",\",data[],1),VLOOKUP(\"OPEX-F,\"&AD$2&\",,\"&$B676&\",\",data[],7),AD$664)","v":4.150964167347479E-2},null,null,null,null,null,null,{"$f":"IF(\"OPEX-F,\"&AK$2&\",,\"&$B676&\",\"=VLOOKUP(\"OPEX-F,\"&AK$2&\",,\"&$B676&\",\",data[],1),VLOOKUP(\"OPEX-F,\"&AK$2&\",,\"&$B676&\",\",data[],7),AK$664)","v":58.294484220432686},null,{"$f":"IF(\"OPEX-F,\"&AM$2&\",,\"&$B676&\",\"=VLOOKUP(\"OPEX-F,\"&AM$2&\",,\"&$B676&\",\",data[],1),VLOOKUP(\"OPEX-F,\"&AM$2&\",,\"&$B676&\",\",data[],7),AM$664)","v":5.7796175335134681},null,null,null,null,null,null,null,1.9148349024930424E-2,null,0,0,0,0,null,{"$f":"IF(\"OPEX-F,\"&BB$2&\",,\"&$B676&\",\"=VLOOKUP(\"OPEX-F,\"&BB$2&\",,\"&$B676&\",\",data[],1),VLOOKUP(\"OPEX-F,\"&BB$2&\",,\"&$B676&\",\",data[],7),BB$664)","v":7.9535567883452885},null,null,{"$f":"IF(\"OPEX-F,\"&BE$2&\",,\"&$B676&\",\"=VLOOKUP(\"OPEX-F,\"&BE$2&\",,\"&$B676&\",\",data[],1),VLOOKUP(\"OPEX-F,\"&BE$2&\",,\"&$B676&\",\",data[],7),BE$664)","v":0}]
[null,"ARG-FUE",null,null,null,null,null,null,null,null,{"$f":"IF(\"OPEX-F,\"&$K26&\",,\"&$B677&\",\"=VLOOKUP(\"OPEX-F,\"&$K26&\",,\"&$B677&\",\",data[],1),VLOOKUP(\"OPEX-F,\"&$K26&\",,\"&$B677&\",\",data[],7),INDEX($E$664:$I$664,$J26))","v":24.360834108462015},null,null,null,null,null,{"$f":"IF(\"OPEX-F,\"&Q$2&\",,\"&$B677&\",\"=VLOOKUP(\"OPEX-F,\"&Q$2&\",,\"&$B677&\",\",data[],1),VLOOKUP(\"OPEX-F,\"&Q$2&\",,\"&$B677&\",\",data[],7),Q$664)","v":13.012853079705877},null,{"$f":"IF(\"OPEX-F,\"&S$2&\",,\"&$B677&\",\"=VLOOKUP(\"OPEX-F,\"&S$2&\",,\"&$B677&\",\",data[],1),VLOOKUP(\"OPEX-F,\"&S$2&\",,\"&$B677&\",\",data[],7),S$664)","v":9.4669104972375679E-5},null,null,null,null,{"$f":"IF(\"OPEX-F,\"&X$2&\",,\"&$B677&\",\"=VLOOKUP(\"OPEX-F,\"&X$2&\",,\"&$B677&\",\",data[],1),VLOOKUP(\"OPEX-F,\"&X$2&\",,\"&$B677&\",\",data[],7),X$664)","v":0},null,{"$f":"IF(\"OPEX-F,\"&Z$2&\",,\"&$B677&\",\"=VLOOKUP(\"OPEX-F,\"&Z$2&\",,\"&$B677&\",\",data[],1),VLOOKUP(\"OPEX-F,\"&Z$2&\",,\"&$B677&\",\",data[],7),Z$664)","v":9.4669104972375679E-5},null,null,null,{"$f":"IF(\"OPEX-F,\"&AD$2&\",,\"&$B677&\",\"=VLOOKUP(\"OPEX-F,\"&AD$2&\",,\"&$B677&\",\",data[],1),VLOOKUP(\"OPEX-F,\"&AD$2&\",,\"&$B677&\",\",data[],7),AD$664)","v":4.150964167347479E-2},null,null,null,null,null,null,{"$f":"IF(\"OPEX-F,\"&AK$2&\",,\"&$B677&\",\"=VLOOKUP(\"OPEX-F,\"&AK$2&\",,\"&$B677&\",\",data[],1),VLOOKUP(\"OPEX-F,\"&AK$2&\",,\"&$B677&\",\",data[],7),AK$664)","v":58.294484220432686},null,{"$f":"IF(\"OPEX-F,\"&AM$2&\",,\"&$B677&\",\"=VLOOKUP(\"OPEX-F,\"&AM$2&\",,\"&$B677&\",\",data[],1),VLOOKUP(\"OPEX-F,\"&AM$2&\",,\"&$B677&\",\",data[],7),AM$664)","v":5.7796175335134681},null,null,null,null,null,null,null,1.9148349024930424E-2,null,0,0,0,0,null,{"$f":"IF(\"OPEX-F,\"&BB$2&\",,\"&$B677&\",\"=VLOOKUP(\"OPEX-F,\"&BB$2&\",,\"&$B677&\",\",data[],1),VLOOKUP(\"OPEX-F,\"&BB$2&\",,\"&$B677&\",\",data[],7),BB$664)","v":7.9535567883452885},null,null,{"$f":"IF(\"OPEX-F,\"&BE$2&\",,\"&$B677&\",\"=VLOOKUP(\"OPEX-F,\"&BE$2&\",,\"&$B677&\",\",data[],1),VLOOKUP(\"OPEX-F,\"&BE$2&\",,\"&$B677&\",\",data[],7),BE$664)","v":0}]
[null,"ARG-JUJ",null,null,null,null,null,null,null,null,{"$f":"IF(\"OPEX-F,\"&$K27&\",,\"&$B678&\",\"=VLOOKUP(\"OPEX-F,\"&$K27&\",,\"&$B678&\",\",data[],1),VLOOKUP(\"OPEX-F,\"&$K27&\",,\"&$B678&\",\",data[],7),INDEX($E$664:$I$664,$J27))","v":24.360834108462015},null,null,null,null,null,{"$f":"IF(\"OPEX-F,\"&Q$2&\",,\"&$B678&\",\"=VLOOKUP(\"OPEX-F,\"&Q$2&\",,\"&$B678&\",\",data[],1),VLOOKUP(\"OPEX-F,\"&Q$2&\",,\"&$B678&\",\",data[],7),Q$664)","v":13.012853079705877},null,{"$f":"IF(\"OPEX-F,\"&S$2&\",,\"&$B678&\",\"=VLOOKUP(\"OPEX-F,\"&S$2&\",,\"&$B678&\",\",data[],1),VLOOKUP(\"OPEX-F,\"&S$2&\",,\"&$B678&\",\",data[],7),S$664)","v":9.4669104972375679E-5},null,null,null,null,{"$f":"IF(\"OPEX-F,\"&X$2&\",,\"&$B678&\",\"=VLOOKUP(\"OPEX-F,\"&X$2&\",,\"&$B678&\",\",data[],1),VLOOKUP(\"OPEX-F,\"&X$2&\",,\"&$B678&\",\",data[],7),X$664)","v":0},null,{"$f":"IF(\"OPEX-F,\"&Z$2&\",,\"&$B678&\",\"=VLOOKUP(\"OPEX-F,\"&Z$2&\",,\"&$B678&\",\",data[],1),VLOOKUP(\"OPEX-F,\"&Z$2&\",,\"&$B678&\",\",data[],7),Z$664)","v":9.4669104972375679E-5},null,null,null,{"$f":"IF(\"OPEX-F,\"&AD$2&\",,\"&$B678&\",\"=VLOOKUP(\"OPEX-F,\"&AD$2&\",,\"&$B678&\",\",data[],1),VLOOKUP(\"OPEX-F,\"&AD$2&\",,\"&$B678&\",\",data[],7),AD$664)","v":4.150964167347479E-2},null,null,null,null,null,null,{"$f":"IF(\"OPEX-F,\"&AK$2&\",,\"&$B678&\",\"=VLOOKUP(\"OPEX-F,\"&AK$2&\",,\"&$B678&\",\",data[],1),VLOOKUP(\"OPEX-F,\"&AK$2&\",,\"&$B678&\",\",data[],7),AK$664)","v":58.294484220432686},null,{"$f":"IF(\"OPEX-F,\"&AM$2&\",,\"&$B678&\",\"=VLOOKUP(\"OPEX-F,\"&AM$2&\",,\"&$B678&\",\",data[],1),VLOOKUP(\"OPEX-F,\"&AM$2&\",,\"&$B678&\",\",data[],7),AM$664)","v":5.7796175335134681},null,null,null,null,null,null,null,1.9148349024930424E-2,null,0,0,0,0,null,{"$f":"IF(\"OPEX-F,\"&BB$2&\",,\"&$B678&\",\"=VLOOKUP(\"OPEX-F,\"&BB$2&\",,\"&$B678&\",\",data[],1),VLOOKUP(\"OPEX-F,\"&BB$2&\",,\"&$B678&\",\",data[],7),BB$664)","v":7.9535567883452885},null,null,{"$f":"IF(\"OPEX-F,\"&BE$2&\",,\"&$B678&\",\"=VLOOKUP(\"OPEX-F,\"&BE$2&\",,\"&$B678&\",\",data[],1),VLOOKUP(\"OPEX-F,\"&BE$2&\",,\"&$B678&\",\",data[],7),BE$664)","v":0}]
[null,"ARG-LAR",null,null,null,null,null,null,null,null,{"$f":"IF(\"OPEX-F,\"&$K28&\",,\"&$B679&\",\"=VLOOKUP(\"OPEX-F,\"&$K28&\",,\"&$B679&\",\",data[],1),VLOOKUP(\"OPEX-F,\"&$K28&\",,\"&$B679&\",\",data[],7),INDEX($E$664:$I$664,$J28))","v":24.360834108462015},null,null,null,null,null,{"$f":"IF(\"OPEX-F,\"&Q$2&\",,\"&$B679&\",\"=VLOOKUP(\"OPEX-F,\"&Q$2&\",,\"&$B679&\",\",data[],1),VLOOKUP(\"OPEX-F,\"&Q$2&\",,\"&$B679&\",\",data[],7),Q$664)","v":13.012853079705877},null,{"$f":"IF(\"OPEX-F,\"&S$2&\",,\"&$B679&\",\"=VLOOKUP(\"OPEX-F,\"&S$2&\",,\"&$B679&\",\",data[],1),VLOOKUP(\"OPEX-F,\"&S$2&\",,\"&$B679&\",\",data[],7),S$664)","v":9.4669104972375679E-5},null,null,null,null,{"$f":"IF(\"OPEX-F,\"&X$2&\",,\"&$B679&\",\"=VLOOKUP(\"OPEX-F,\"&X$2&\",,\"&$B679&\",\",data[],1),VLOOKUP(\"OPEX-F,\"&X$2&\",,\"&$B679&\",\",data[],7),X$664)","v":0},null,{"$f":"IF(\"OPEX-F,\"&Z$2&\",,\"&$B679&\",\"=VLOOKUP(\"OPEX-F,\"&Z$2&\",,\"&$B679&\",\",data[],1),VLOOKUP(\"OPEX-F,\"&Z$2&\",,\"&$B679&\",\",data[],7),Z$664)","v":9.4669104972375679E-5},null,null,null,{"$f":"IF(\"OPEX-F,\"&AD$2&\",,\"&$B679&\",\"=VLOOKUP(\"OPEX-F,\"&AD$2&\",,\"&$B679&\",\",data[],1),VLOOKUP(\"OPEX-F,\"&AD$2&\",,\"&$B679&\",\",data[],7),AD$664)","v":4.150964167347479E-2},null,null,null,null,null,null,{"$f":"IF(\"OPEX-F,\"&AK$2&\",,\"&$B679&\",\"=VLOOKUP(\"OPEX-F,\"&AK$2&\",,\"&$B679&\",\",data[],1),VLOOKUP(\"OPEX-F,\"&AK$2&\",,\"&$B679&\",\",data[],7),AK$664)","v":58.294484220432686},null,{"$f":"IF(\"OPEX-F,\"&AM$2&\",,\"&$B679&\",\"=VLOOKUP(\"OPEX-F,\"&AM$2&\",,\"&$B679&\",\",data[],1),VLOOKUP(\"OPEX-F,\"&AM$2&\",,\"&$B679&\",\",data[],7),AM$664)","v":5.7796175335134681},null,null,null,null,null,null,null,1.9148349024930424E-2,null,0,0,0,0,null,{"$f":"IF(\"OPEX-F,\"&BB$2&\",,\"&$B679&\",\"=VLOOKUP(\"OPEX-F,\"&BB$2&\",,\"&$B679&\",\",data[],1),VLOOKUP(\"OPEX-F,\"&BB$2&\",,\"&$B679&\",\",data[],7),BB$664)","v":7.9535567883452885},null,null,{"$f":"IF(\"OPEX-F,\"&BE$2&\",,\"&$B679&\",\"=VLOOKUP(\"OPEX-F,\"&BE$2&\",,\"&$B679&\",\",data[],1),VLOOKUP(\"OPEX-F,\"&BE$2&\",,\"&$B679&\",\",data[],7),BE$664)","v":0}]
[null,"ARG-MEN",null,null,null,null,null,null,null,null,{"$f":"IF(\"OPEX-F,\"&$K29&\",,\"&$B680&\",\"=VLOOKUP(\"OPEX-F,\"&$K29&\",,\"&$B680&\",\",data[],1),VLOOKUP(\"OPEX-F,\"&$K29&\",,\"&$B680&\",\",data[],7),INDEX($E$664:$I$664,$J29))","v":24.360834108462015},null,null,null,null,null,{"$f":"IF(\"OPEX-F,\"&Q$2&\",,\"&$B680&\",\"=VLOOKUP(\"OPEX-F,\"&Q$2&\",,\"&$B680&\",\",data[],1),VLOOKUP(\"OPEX-F,\"&Q$2&\",,\"&$B680&\",\",data[],7),Q$664)","v":13.012853079705877},null,{"$f":"IF(\"OPEX-F,\"&S$2&\",,\"&$B680&\",\"=VLOOKUP(\"OPEX-F,\"&S$2&\",,\"&$B680&\",\",data[],1),VLOOKUP(\"OPEX-F,\"&S$2&\",,\"&$B680&\",\",data[],7),S$664)","v":9.4669104972375679E-5},null,null,null,null,{"$f":"IF(\"OPEX-F,\"&X$2&\",,\"&$B680&\",\"=VLOOKUP(\"OPEX-F,\"&X$2&\",,\"&$B680&\",\",data[],1),VLOOKUP(\"OPEX-F,\"&X$2&\",,\"&$B680&\",\",data[],7),X$664)","v":0},null,{"$f":"IF(\"OPEX-F,\"&Z$2&\",,\"&$B680&\",\"=VLOOKUP(\"OPEX-F,\"&Z$2&\",,\"&$B680&\",\",data[],1),VLOOKUP(\"OPEX-F,\"&Z$2&\",,\"&$B680&\",\",data[],7),Z$664)","v":9.4669104972375679E-5},null,null,null,{"$f":"IF(\"OPEX-F,\"&AD$2&\",,\"&$B680&\",\"=VLOOKUP(\"OPEX-F,\"&AD$2&\",,\"&$B680&\",\",data[],1),VLOOKUP(\"OPEX-F,\"&AD$2&\",,\"&$B680&\",\",data[],7),AD$664)","v":4.150964167347479E-2},null,null,null,null,null,null,{"$f":"IF(\"OPEX-F,\"&AK$2&\",,\"&$B680&\",\"=VLOOKUP(\"OPEX-F,\"&AK$2&\",,\"&$B680&\",\",data[],1),VLOOKUP(\"OPEX-F,\"&AK$2&\",,\"&$B680&\",\",data[],7),AK$664)","v":58.294484220432686},null,{"$f":"IF(\"OPEX-F,\"&AM$2&\",,\"&$B680&\",\"=VLOOKUP(\"OPEX-F,\"&AM$2&\",,\"&$B680&\",\",data[],1),VLOOKUP(\"OPEX-F,\"&AM$2&\",,\"&$B680&\",\",data[],7),AM$664)","v":5.7796175335134681},null,null,null,null,null,null,null,1.9148349024930424E-2,null,0,0,0,0,null,{"$f":"IF(\"OPEX-F,\"&BB$2&\",,\"&$B680&\",\"=VLOOKUP(\"OPEX-F,\"&BB$2&\",,\"&$B680&\",\",data[],1),VLOOKUP(\"OPEX-F,\"&BB$2&\",,\"&$B680&\",\",data[],7),BB$664)","v":7.9535567883452885},null,null,{"$f":"IF(\"OPEX-F,\"&BE$2&\",,\"&$B680&\",\"=VLOOKUP(\"OPEX-F,\"&BE$2&\",,\"&$B680&\",\",data[],1),VLOOKUP(\"OPEX-F,\"&BE$2&\",,\"&$B680&\",\",data[],7),BE$664)","v":0}]
[null,"ARG-MIS",null,null,null,null,null,null,null,null,{"$f":"IF(\"OPEX-F,\"&$K30&\",,\"&$B681&\",\"=VLOOKUP(\"OPEX-F,\"&$K30&\",,\"&$B681&\",\",data[],1),VLOOKUP(\"OPEX-F,\"&$K30&\",,\"&$B681&\",\",data[],7),INDEX($E$664:$I$664,$J30))","v":24.360834108462015},null,null,null,null,null,{"$f":"IF(\"OPEX-F,\"&Q$2&\",,\"&$B681&\",\"=VLOOKUP(\"OPEX-F,\"&Q$2&\",,\"&$B681&\",\",data[],1),VLOOKUP(\"OPEX-F,\"&Q$2&\",,\"&$B681&\",\",data[],7),Q$664)","v":13.012853079705877},null,{"$f":"IF(\"OPEX-F,\"&S$2&\",,\"&$B681&\",\"=VLOOKUP(\"OPEX-F,\"&S$2&\",,\"&$B681&\",\",data[],1),VLOOKUP(\"OPEX-F,\"&S$2&\",,\"&$B681&\",\",data[],7),S$664)","v":9.4669104972375679E-5},null,null,null,null,{"$f":"IF(\"OPEX-F,\"&X$2&\",,\"&$B681&\",\"=VLOOKUP(\"OPEX-F,\"&X$2&\",,\"&$B681&\",\",data[],1),VLOOKUP(\"OPEX-F,\"&X$2&\",,\"&$B681&\",\",data[],7),X$664)","v":0},null,{"$f":"IF(\"OPEX-F,\"&Z$2&\",,\"&$B681&\",\"=VLOOKUP(\"OPEX-F,\"&Z$2&\",,\"&$B681&\",\",data[],1),VLOOKUP(\"OPEX-F,\"&Z$2&\",,\"&$B681&\",\",data[],7),Z$664)","v":9.4669104972375679E-5},null,null,null,{"$f":"IF(\"OPEX-F,\"&AD$2&\",,\"&$B681&\",\"=VLOOKUP(\"OPEX-F,\"&AD$2&\",,\"&$B681&\",\",data[],1),VLOOKUP(\"OPEX-F,\"&AD$2&\",,\"&$B681&\",\",data[],7),AD$664)","v":4.150964167347479E-2},null,null,null,null,null,null,{"$f":"IF(\"OPEX-F,\"&AK$2&\",,\"&$B681&\",\"=VLOOKUP(\"OPEX-F,\"&AK$2&\",,\"&$B681&\",\",data[],1),VLOOKUP(\"OPEX-F,\"&AK$2&\",,\"&$B681&\",\",data[],7),AK$664)","v":58.294484220432686},null,{"$f":"IF(\"OPEX-F,\"&AM$2&\",,\"&$B681&\",\"=VLOOKUP(\"OPEX-F,\"&AM$2&\",,\"&$B681&\",\",data[],1),VLOOKUP(\"OPEX-F,\"&AM$2&\",,\"&$B681&\",\",data[],7),AM$664)","v":5.7796175335134681},null,null,null,null,null,null,null,1.9148349024930424E-2,null,0,0,0,0,null,{"$f":"IF(\"OPEX-F,\"&BB$2&\",,\"&$B681&\",\"=VLOOKUP(\"OPEX-F,\"&BB$2&\",,\"&$B681&\",\",data[],1),VLOOKUP(\"OPEX-F,\"&BB$2&\",,\"&$B681&\",\",data[],7),BB$664)","v":7.9535567883452885},null,null,{"$f":"IF(\"OPEX-F,\"&BE$2&\",,\"&$B681&\",\"=VLOOKUP(\"OPEX-F,\"&BE$2&\",,\"&$B681&\",\",data[],1),VLOOKUP(\"OPEX-F,\"&BE$2&\",,\"&$B681&\",\",data[],7),BE$664)","v":0}]
[null,"ARG-NEG",null,null,null,null,null,null,null,null,{"$f":"IF(\"OPEX-F,\"&$K31&\",,\"&$B682&\",\"=VLOOKUP(\"OPEX-F,\"&$K31&\",,\"&$B682&\",\",data[],1),VLOOKUP(\"OPEX-F,\"&$K31&\",,\"&$B682&\",\",data[],7),INDEX($E$664:$I$664,$J31))","v":24.360834108462015},null,null,null,null,null,{"$f":"IF(\"OPEX-F,\"&Q$2&\",,\"&$B682&\",\"=VLOOKUP(\"OPEX-F,\"&Q$2&\",,\"&$B682&\",\",data[],1),VLOOKUP(\"OPEX-F,\"&Q$2&\",,\"&$B682&\",\",data[],7),Q$664)","v":13.012853079705877},null,{"$f":"IF(\"OPEX-F,\"&S$2&\",,\"&$B682&\",\"=VLOOKUP(\"OPEX-F,\"&S$2&\",,\"&$B682&\",\",data[],1),VLOOKUP(\"OPEX-F,\"&S$2&\",,\"&$B682&\",\",data[],7),S$664)","v":9.4669104972375679E-5},null,null,null,null,{"$f":"IF(\"OPEX-F,\"&X$2&\",,\"&$B682&\",\"=VLOOKUP(\"OPEX-F,\"&X$2&\",,\"&$B682&\",\",data[],1),VLOOKUP(\"OPEX-F,\"&X$2&\",,\"&$B682&\",\",data[],7),X$664)","v":0},null,{"$f":"IF(\"OPEX-F,\"&Z$2&\",,\"&$B682&\",\"=VLOOKUP(\"OPEX-F,\"&Z$2&\",,\"&$B682&\",\",data[],1),VLOOKUP(\"OPEX-F,\"&Z$2&\",,\"&$B682&\",\",data[],7),Z$664)","v":9.4669104972375679E-5},null,null,null,{"$f":"IF(\"OPEX-F,\"&AD$2&\",,\"&$B682&\",\"=VLOOKUP(\"OPEX-F,\"&AD$2&\",,\"&$B682&\",\",data[],1),VLOOKUP(\"OPEX-F,\"&AD$2&\",,\"&$B682&\",\",data[],7),AD$664)","v":4.150964167347479E-2},null,null,null,null,null,null,{"$f":"IF(\"OPEX-F,\"&AK$2&\",,\"&$B682&\",\"=VLOOKUP(\"OPEX-F,\"&AK$2&\",,\"&$B682&\",\",data[],1),VLOOKUP(\"OPEX-F,\"&AK$2&\",,\"&$B682&\",\",data[],7),AK$664)","v":58.294484220432686},null,{"$f":"IF(\"OPEX-F,\"&AM$2&\",,\"&$B682&\",\"=VLOOKUP(\"OPEX-F,\"&AM$2&\",,\"&$B682&\",\",data[],1),VLOOKUP(\"OPEX-F,\"&AM$2&\",,\"&$B682&\",\",data[],7),AM$664)","v":5.7796175335134681},null,null,null,null,null,null,null,1.9148349024930424E-2,null,0,0,0,0,null,{"$f":"IF(\"OPEX-F,\"&BB$2&\",,\"&$B682&\",\"=VLOOKUP(\"OPEX-F,\"&BB$2&\",,\"&$B682&\",\",data[],1),VLOOKUP(\"OPEX-F,\"&BB$2&\",,\"&$B682&\",\",data[],7),BB$664)","v":7.9535567883452885},null,null,{"$f":"IF(\"OPEX-F,\"&BE$2&\",,\"&$B682&\",\"=VLOOKUP(\"OPEX-F,\"&BE$2&\",,\"&$B682&\",\",data[],1),VLOOKUP(\"OPEX-F,\"&BE$2&\",,\"&$B682&\",\",data[],7),BE$664)","v":0}]
[null,"ARG-NEU",null,null,null,null,null,null,null,null,{"$f":"IF(\"OPEX-F,\"&$K32&\",,\"&$B683&\",\"=VLOOKUP(\"OPEX-F,\"&$K32&\",,\"&$B683&\",\",data[],1),VLOOKUP(\"OPEX-F,\"&$K32&\",,\"&$B683&\",\",data[],7),INDEX($E$664:$I$664,$J32))","v":24.360834108462015},null,null,null,null,null,{"$f":"IF(\"OPEX-F,\"&Q$2&\",,\"&$B683&\",\"=VLOOKUP(\"OPEX-F,\"&Q$2&\",,\"&$B683&\",\",data[],1),VLOOKUP(\"OPEX-F,\"&Q$2&\",,\"&$B683&\",\",data[],7),Q$664)","v":13.012853079705877},null,{"$f":"IF(\"OPEX-F,\"&S$2&\",,\"&$B683&\",\"=VLOOKUP(\"OPEX-F,\"&S$2&\",,\"&$B683&\",\",data[],1),VLOOKUP(\"OPEX-F,\"&S$2&\",,\"&$B683&\",\",data[],7),S$664)","v":9.4669104972375679E-5},null,null,null,null,{"$f":"IF(\"OPEX-F,\"&X$2&\",,\"&$B683&\",\"=VLOOKUP(\"OPEX-F,\"&X$2&\",,\"&$B683&\",\",data[],1),VLOOKUP(\"OPEX-F,\"&X$2&\",,\"&$B683&\",\",data[],7),X$664)","v":0},null,{"$f":"IF(\"OPEX-F,\"&Z$2&\",,\"&$B683&\",\"=VLOOKUP(\"OPEX-F,\"&Z$2&\",,\"&$B683&\",\",data[],1),VLOOKUP(\"OPEX-F,\"&Z$2&\",,\"&$B683&\",\",data[],7),Z$664)","v":9.4669104972375679E-5},null,null,null,{"$f":"IF(\"OPEX-F,\"&AD$2&\",,\"&$B683&\",\"=VLOOKUP(\"OPEX-F,\"&AD$2&\",,\"&$B683&\",\",data[],1),VLOOKUP(\"OPEX-F,\"&AD$2&\",,\"&$B683&\",\",data[],7),AD$664)","v":4.150964167347479E-2},null,null,null,null,null,null,{"$f":"IF(\"OPEX-F,\"&AK$2&\",,\"&$B683&\",\"=VLOOKUP(\"OPEX-F,\"&AK$2&\",,\"&$B683&\",\",data[],1),VLOOKUP(\"OPEX-F,\"&AK$2&\",,\"&$B683&\",\",data[],7),AK$664)","v":58.294484220432686},null,{"$f":"IF(\"OPEX-F,\"&AM$2&\",,\"&$B683&\",\"=VLOOKUP(\"OPEX-F,\"&AM$2&\",,\"&$B683&\",\",data[],1),VLOOKUP(\"OPEX-F,\"&AM$2&\",,\"&$B683&\",\",data[],7),AM$664)","v":5.7796175335134681},null,null,null,null,null,null,null,1.9148349024930424E-2,null,0,0,0,0,null,{"$f":"IF(\"OPEX-F,\"&BB$2&\",,\"&$B683&\",\"=VLOOKUP(\"OPEX-F,\"&BB$2&\",,\"&$B683&\",\",data[],1),VLOOKUP(\"OPEX-F,\"&BB$2&\",,\"&$B683&\",\",data[],7),BB$664)","v":7.9535567883452885},null,null,{"$f":"IF(\"OPEX-F,\"&BE$2&\",,\"&$B683&\",\"=VLOOKUP(\"OPEX-F,\"&BE$2&\",,\"&$B683&\",\",data[],1),VLOOKUP(\"OPEX-F,\"&BE$2&\",,\"&$B683&\",\",data[],7),BE$664)","v":0}]
[null,"ARG-PAM",null,null,null,null,null,null,null,null,{"$f":"IF(\"OPEX-F,\"&$K33&\",,\"&$B684&\",\"=VLOOKUP(\"OPEX-F,\"&$K33&\",,\"&$B684&\",\",data[],1),VLOOKUP(\"OPEX-F,\"&$K33&\",,\"&$B684&\",\",data[],7),INDEX($E$664:$I$664,$J33))","v":24.360834108462015},null,null,null,null,null,{"$f":"IF(\"OPEX-F,\"&Q$2&\",,\"&$B684&\",\"=VLOOKUP(\"OPEX-F,\"&Q$2&\",,\"&$B684&\",\",data[],1),VLOOKUP(\"OPEX-F,\"&Q$2&\",,\"&$B684&\",\",data[],7),Q$664)","v":13.012853079705877},null,{"$f":"IF(\"OPEX-F,\"&S$2&\",,\"&$B684&\",\"=VLOOKUP(\"OPEX-F,\"&S$2&\",,\"&$B684&\",\",data[],1),VLOOKUP(\"OPEX-F,\"&S$2&\",,\"&$B684&\",\",data[],7),S$664)","v":9.4669104972375679E-5},null,null,null,null,{"$f":"IF(\"OPEX-F,\"&X$2&\",,\"&$B684&\",\"=VLOOKUP(\"OPEX-F,\"&X$2&\",,\"&$B684&\",\",data[],1),VLOOKUP(\"OPEX-F,\"&X$2&\",,\"&$B684&\",\",data[],7),X$664)","v":0},null,{"$f":"IF(\"OPEX-F,\"&Z$2&\",,\"&$B684&\",\"=VLOOKUP(\"OPEX-F,\"&Z$2&\",,\"&$B684&\",\",data[],1),VLOOKUP(\"OPEX-F,\"&Z$2&\",,\"&$B684&\",\",data[],7),Z$664)","v":9.4669104972375679E-5},null,null,null,{"$f":"IF(\"OPEX-F,\"&AD$2&\",,\"&$B684&\",\"=VLOOKUP(\"OPEX-F,\"&AD$2&\",,\"&$B684&\",\",data[],1),VLOOKUP(\"OPEX-F,\"&AD$2&\",,\"&$B684&\",\",data[],7),AD$664)","v":4.150964167347479E-2},null,null,null,null,null,null,{"$f":"IF(\"OPEX-F,\"&AK$2&\",,\"&$B684&\",\"=VLOOKUP(\"OPEX-F,\"&AK$2&\",,\"&$B684&\",\",data[],1),VLOOKUP(\"OPEX-F,\"&AK$2&\",,\"&$B684&\",\",data[],7),AK$664)","v":58.294484220432686},null,{"$f":"IF(\"OPEX-F,\"&AM$2&\",,\"&$B684&\",\"=VLOOKUP(\"OPEX-F,\"&AM$2&\",,\"&$B684&\",\",data[],1),VLOOKUP(\"OPEX-F,\"&AM$2&\",,\"&$B684&\",\",data[],7),AM$664)","v":5.7796175335134681},null,null,null,null,null,null,null,1.9148349024930424E-2,null,0,0,0,0,null,{"$f":"IF(\"OPEX-F,\"&BB$2&\",,\"&$B684&\",\"=VLOOKUP(\"OPEX-F,\"&BB$2&\",,\"&$B684&\",\",data[],1),VLOOKUP(\"OPEX-F,\"&BB$2&\",,\"&$B684&\",\",data[],7),BB$664)","v":7.9535567883452885},null,null,{"$f":"IF(\"OPEX-F,\"&BE$2&\",,\"&$B684&\",\"=VLOOKUP(\"OPEX-F,\"&BE$2&\",,\"&$B684&\",\",data[],1),VLOOKUP(\"OPEX-F,\"&BE$2&\",,\"&$B684&\",\",data[],7),BE$664)","v":0}]
[null,"ARG-RIO",null,null,null,null,null,null,null,null,{"$f":"IF(\"OPEX-F,\"&$K34&\",,\"&$B685&\",\"=VLOOKUP(\"OPEX-F,\"&$K34&\",,\"&$B685&\",\",data[],1),VLOOKUP(\"OPEX-F,\"&$K34&\",,\"&$B685&\",\",data[],7),INDEX($E$664:$I$664,$J34))","v":24.360834108462015},null,null,null,null,null,{"$f":"IF(\"OPEX-F,\"&Q$2&\",,\"&$B685&\",\"=VLOOKUP(\"OPEX-F,\"&Q$2&\",,\"&$B685&\",\",data[],1),VLOOKUP(\"OPEX-F,\"&Q$2&\",,\"&$B685&\",\",data[],7),Q$664)","v":13.012853079705877},null,{"$f":"IF(\"OPEX-F,\"&S$2&\",,\"&$B685&\",\"=VLOOKUP(\"OPEX-F,\"&S$2&\",,\"&$B685&\",\",data[],1),VLOOKUP(\"OPEX-F,\"&S$2&\",,\"&$B685&\",\",data[],7),S$664)","v":9.4669104972375679E-5},null,null,null,null,{"$f":"IF(\"OPEX-F,\"&X$2&\",,\"&$B685&\",\"=VLOOKUP(\"OPEX-F,\"&X$2&\",,\"&$B685&\",\",data[],1),VLOOKUP(\"OPEX-F,\"&X$2&\",,\"&$B685&\",\",data[],7),X$664)","v":0},null,{"$f":"IF(\"OPEX-F,\"&Z$2&\",,\"&$B685&\",\"=VLOOKUP(\"OPEX-F,\"&Z$2&\",,\"&$B685&\",\",data[],1),VLOOKUP(\"OPEX-F,\"&Z$2&\",,\"&$B685&\",\",data[],7),Z$664)","v":9.4669104972375679E-5},null,null,null,{"$f":"IF(\"OPEX-F,\"&AD$2&\",,\"&$B685&\",\"=VLOOKUP(\"OPEX-F,\"&AD$2&\",,\"&$B685&\",\",data[],1),VLOOKUP(\"OPEX-F,\"&AD$2&\",,\"&$B685&\",\",data[],7),AD$664)","v":4.150964167347479E-2},null,null,null,null,null,null,{"$f":"IF(\"OPEX-F,\"&AK$2&\",,\"&$B685&\",\"=VLOOKUP(\"OPEX-F,\"&AK$2&\",,\"&$B685&\",\",data[],1),VLOOKUP(\"OPEX-F,\"&AK$2&\",,\"&$B685&\",\",data[],7),AK$664)","v":58.294484220432686},null,{"$f":"IF(\"OPEX-F,\"&AM$2&\",,\"&$B685&\",\"=VLOOKUP(\"OPEX-F,\"&AM$2&\",,\"&$B685&\",\",data[],1),VLOOKUP(\"OPEX-F,\"&AM$2&\",,\"&$B685&\",\",data[],7),AM$664)","v":5.7796175335134681},null,null,null,null,null,null,null,1.9148349024930424E-2,null,{"$f":"AW$664*AW34","v":0},0,0,0,null,{"$f":"IF(\"OPEX-F,\"&BB$2&\",,\"&$B685&\",\"=VLOOKUP(\"OPEX-F,\"&BB$2&\",,\"&$B685&\",\",data[],1),VLOOKUP(\"OPEX-F,\"&BB$2&\",,\"&$B685&\",\",data[],7),BB$664)","v":7.9535567883452885},null,null,{"$f":"IF(\"OPEX-F,\"&BE$2&\",,\"&$B685&\",\"=VLOOKUP(\"OPEX-F,\"&BE$2&\",,\"&$B685&\",\",data[],1),VLOOKUP(\"OPEX-F,\"&BE$2&\",,\"&$B685&\",\",data[],7),BE$664)","v":0}]
[null,"ARG-SAF",null,null,null,null,null,null,null,null,{"$f":"IF(\"OPEX-F,\"&$K35&\",,\"&$B686&\",\"=VLOOKUP(\"OPEX-F,\"&$K35&\",,\"&$B686&\",\",data[],1),VLOOKUP(\"OPEX-F,\"&$K35&\",,\"&$B686&\",\",data[],7),INDEX($E$664:$I$664,$J35))","v":24.360834108462015},null,null,null,null,null,{"$f":"IF(\"OPEX-F,\"&Q$2&\",,\"&$B686&\",\"=VLOOKUP(\"OPEX-F,\"&Q$2&\",,\"&$B686&\",\",data[],1),VLOOKUP(\"OPEX-F,\"&Q$2&\",,\"&$B686&\",\",data[],7),Q$664)","v":13.012853079705877},null,{"$f":"IF(\"OPEX-F,\"&S$2&\",,\"&$B686&\",\"=VLOOKUP(\"OPEX-F,\"&S$2&\",,\"&$B686&\",\",data[],1),VLOOKUP(\"OPEX-F,\"&S$2&\",,\"&$B686&\",\",data[],7),S$664)","v":9.4669104972375679E-5},null,null,null,null,{"$f":"IF(\"OPEX-F,\"&X$2&\",,\"&$B686&\",\"=VLOOKUP(\"OPEX-F,\"&X$2&\",,\"&$B686&\",\",data[],1),VLOOKUP(\"OPEX-F,\"&X$2&\",,\"&$B686&\",\",data[],7),X$664)","v":0},null,{"$f":"IF(\"OPEX-F,\"&Z$2&\",,\"&$B686&\",\"=VLOOKUP(\"OPEX-F,\"&Z$2&\",,\"&$B686&\",\",data[],1),VLOOKUP(\"OPEX-F,\"&Z$2&\",,\"&$B686&\",\",data[],7),Z$664)","v":9.4669104972375679E-5},null,null,null,{"$f":"IF(\"OPEX-F,\"&AD$2&\",,\"&$B686&\",\"=VLOOKUP(\"OPEX-F,\"&AD$2&\",,\"&$B686&\",\",data[],1),VLOOKUP(\"OPEX-F,\"&AD$2&\",,\"&$B686&\",\",data[],7),AD$664)","v":4.150964167347479E-2},null,null,null,null,null,null,{"$f":"IF(\"OPEX-F,\"&AK$2&\",,\"&$B686&\",\"=VLOOKUP(\"OPEX-F,\"&AK$2&\",,\"&$B686&\",\",data[],1),VLOOKUP(\"OPEX-F,\"&AK$2&\",,\"&$B686&\",\",data[],7),AK$664)","v":58.294484220432686},null,{"$f":"IF(\"OPEX-F,\"&AM$2&\",,\"&$B686&\",\"=VLOOKUP(\"OPEX-F,\"&AM$2&\",,\"&$B686&\",\",data[],1),VLOOKUP(\"OPEX-F,\"&AM$2&\",,\"&$B686&\",\",data[],7),AM$664)","v":5.7796175335134681},null,null,null,null,null,null,null,1.9148349024930424E-2,null,0,0,0,0,null,{"$f":"IF(\"OPEX-F,\"&BB$2&\",,\"&$B686&\",\"=VLOOKUP(\"OPEX-F,\"&BB$2&\",,\"&$B686&\",\",data[],1),VLOOKUP(\"OPEX-F,\"&BB$2&\",,\"&$B686&\",\",data[],7),BB$664)","v":7.9535567883452885},null,null,{"$f":"IF(\"OPEX-F,\"&BE$2&\",,\"&$B686&\",\"=VLOOKUP(\"OPEX-F,\"&BE$2&\",,\"&$B686&\",\",data[],1),VLOOKUP(\"OPEX-F,\"&BE$2&\",,\"&$B686&\",\",data[],7),BE$664)","v":0}]
[null,"ARG-SAJ",null,null,null,null,null,null,null,null,{"$f":"IF(\"OPEX-F,\"&$K36&\",,\"&$B687&\",\"=VLOOKUP(\"OPEX-F,\"&$K36&\",,\"&$B687&\",\",data[],1),VLOOKUP(\"OPEX-F,\"&$K36&\",,\"&$B687&\",\",data[],7),INDEX($E$664:$I$664,$J36))","v":24.360834108462015},null,null,null,null,null,{"$f":"IF(\"OPEX-F,\"&Q$2&\",,\"&$B687&\",\"=VLOOKUP(\"OPEX-F,\"&Q$2&\",,\"&$B687&\",\",data[],1),VLOOKUP(\"OPEX-F,\"&Q$2&\",,\"&$B687&\",\",data[],7),Q$664)","v":13.012853079705877},null,{"$f":"IF(\"OPEX-F,\"&S$2&\",,\"&$B687&\",\"=VLOOKUP(\"OPEX-F,\"&S$2&\",,\"&$B687&\",\",data[],1),VLOOKUP(\"OPEX-F,\"&S$2&\",,\"&$B687&\",\",data[],7),S$664)","v":9.4669104972375679E-5},null,null,null,null,{"$f":"IF(\"OPEX-F,\"&X$2&\",,\"&$B687&\",\"=VLOOKUP(\"OPEX-F,\"&X$2&\",,\"&$B687&\",\",data[],1),VLOOKUP(\"OPEX-F,\"&X$2&\",,\"&$B687&\",\",data[],7),X$664)","v":0},null,{"$f":"IF(\"OPEX-F,\"&Z$2&\",,\"&$B687&\",\"=VLOOKUP(\"OPEX-F,\"&Z$2&\",,\"&$B687&\",\",data[],1),VLOOKUP(\"OPEX-F,\"&Z$2&\",,\"&$B687&\",\",data[],7),Z$664)","v":9.4669104972375679E-5},null,null,null,{"$f":"IF(\"OPEX-F,\"&AD$2&\",,\"&$B687&\",\"=VLOOKUP(\"OPEX-F,\"&AD$2&\",,\"&$B687&\",\",data[],1),VLOOKUP(\"OPEX-F,\"&AD$2&\",,\"&$B687&\",\",data[],7),AD$664)","v":4.150964167347479E-2},null,null,null,null,null,null,{"$f":"IF(\"OPEX-F,\"&AK$2&\",,\"&$B687&\",\"=VLOOKUP(\"OPEX-F,\"&AK$2&\",,\"&$B687&\",\",data[],1),VLOOKUP(\"OPEX-F,\"&AK$2&\",,\"&$B687&\",\",data[],7),AK$664)","v":58.294484220432686},null,{"$f":"IF(\"OPEX-F,\"&AM$2&\",,\"&$B687&\",\"=VLOOKUP(\"OPEX-F,\"&AM$2&\",,\"&$B687&\",\",data[],1),VLOOKUP(\"OPEX-F,\"&AM$2&\",,\"&$B687&\",\",data[],7),AM$664)","v":5.7796175335134681},null,null,null,null,null,null,null,1.9148349024930424E-2,null,0,0,0,0,null,{"$f":"IF(\"OPEX-F,\"&BB$2&\",,\"&$B687&\",\"=VLOOKUP(\"OPEX-F,\"&BB$2&\",,\"&$B687&\",\",data[],1),VLOOKUP(\"OPEX-F,\"&BB$2&\",,\"&$B687&\",\",data[],7),BB$664)","v":7.9535567883452885},null,null,{"$f":"IF(\"OPEX-F,\"&BE$2&\",,\"&$B687&\",\"=VLOOKUP(\"OPEX-F,\"&BE$2&\",,\"&$B687&\",\",data[],1),VLOOKUP(\"OPEX-F,\"&BE$2&\",,\"&$B687&\",\",data[],7),BE$664)","v":0}]
[null,"ARG-SAL",null,null,null,null,null,null,null,null,{"$f":"IF(\"OPEX-F,\"&$K37&\",,\"&$B688&\",\"=VLOOKUP(\"OPEX-F,\"&$K37&\",,\"&$B688&\",\",data[],1),VLOOKUP(\"OPEX-F,\"&$K37&\",,\"&$B688&\",\",data[],7),INDEX($E$664:$I$664,$J37))","v":24.360834108462015},null,null,null,null,null,{"$f":"IF(\"OPEX-F,\"&Q$2&\",,\"&$B688&\",\"=VLOOKUP(\"OPEX-F,\"&Q$2&\",,\"&$B688&\",\",data[],1),VLOOKUP(\"OPEX-F,\"&Q$2&\",,\"&$B688&\",\",data[],7),Q$664)","v":13.012853079705877},null,{"$f":"IF(\"OPEX-F,\"&S$2&\",,\"&$B688&\",\"=VLOOKUP(\"OPEX-F,\"&S$2&\",,\"&$B688&\",\",data[],1),VLOOKUP(\"OPEX-F,\"&S$2&\",,\"&$B688&\",\",data[],7),S$664)","v":9.4669104972375679E-5},null,null,null,null,{"$f":"IF(\"OPEX-F,\"&X$2&\",,\"&$B688&\",\"=VLOOKUP(\"OPEX-F,\"&X$2&\",,\"&$B688&\",\",data[],1),VLOOKUP(\"OPEX-F,\"&X$2&\",,\"&$B688&\",\",data[],7),X$664)","v":0},null,{"$f":"IF(\"OPEX-F,\"&Z$2&\",,\"&$B688&\",\"=VLOOKUP(\"OPEX-F,\"&Z$2&\",,\"&$B688&\",\",data[],1),VLOOKUP(\"OPEX-F,\"&Z$2&\",,\"&$B688&\",\",data[],7),Z$664)","v":9.4669104972375679E-5},null,null,null,{"$f":"IF(\"OPEX-F,\"&AD$2&\",,\"&$B688&\",\"=VLOOKUP(\"OPEX-F,\"&AD$2&\",,\"&$B688&\",\",data[],1),VLOOKUP(\"OPEX-F,\"&AD$2&\",,\"&$B688&\",\",data[],7),AD$664)","v":4.150964167347479E-2},null,null,null,null,null,null,{"$f":"IF(\"OPEX-F,\"&AK$2&\",,\"&$B688&\",\"=VLOOKUP(\"OPEX-F,\"&AK$2&\",,\"&$B688&\",\",data[],1),VLOOKUP(\"OPEX-F,\"&AK$2&\",,\"&$B688&\",\",data[],7),AK$664)","v":58.294484220432686},null,{"$f":"IF(\"OPEX-F,\"&AM$2&\",,\"&$B688&\",\"=VLOOKUP(\"OPEX-F,\"&AM$2&\",,\"&$B688&\",\",data[],1),VLOOKUP(\"OPEX-F,\"&AM$2&\",,\"&$B688&\",\",data[],7),AM$664)","v":5.7796175335134681},null,null,null,null,null,null,null,1.9148349024930424E-2,null,0,0,0,0,null,{"$f":"IF(\"OPEX-F,\"&BB$2&\",,\"&$B688&\",\"=VLOOKUP(\"OPEX-F,\"&BB$2&\",,\"&$B688&\",\",data[],1),VLOOKUP(\"OPEX-F,\"&BB$2&\",,\"&$B688&\",\",data[],7),BB$664)","v":7.9535567883452885},null,null,{"$f":"IF(\"OPEX-F,\"&BE$2&\",,\"&$B688&\",\"=VLOOKUP(\"OPEX-F,\"&BE$2&\",,\"&$B688&\",\",data[],1),VLOOKUP(\"OPEX-F,\"&BE$2&\",,\"&$B688&\",\",data[],7),BE$664)","v":0}]
[null,"ARG-SAT",null,null,null,null,null,null,null,null,{"$f":"IF(\"OPEX-F,\"&$K38&\",,\"&$B689&\",\"=VLOOKUP(\"OPEX-F,\"&$K38&\",,\"&$B689&\",\",data[],1),VLOOKUP(\"OPEX-F,\"&$K38&\",,\"&$B689&\",\",data[],7),INDEX($E$664:$I$664,$J38))","v":24.360834108462015},null,null,null,null,null,{"$f":"IF(\"OPEX-F,\"&Q$2&\",,\"&$B689&\",\"=VLOOKUP(\"OPEX-F,\"&Q$2&\",,\"&$B689&\",\",data[],1),VLOOKUP(\"OPEX-F,\"&Q$2&\",,\"&$B689&\",\",data[],7),Q$664)","v":13.012853079705877},null,{"$f":"IF(\"OPEX-F,\"&S$2&\",,\"&$B689&\",\"=VLOOKUP(\"OPEX-F,\"&S$2&\",,\"&$B689&\",\",data[],1),VLOOKUP(\"OPEX-F,\"&S$2&\",,\"&$B689&\",\",data[],7),S$664)","v":9.4669104972375679E-5},null,null,null,null,{"$f":"IF(\"OPEX-F,\"&X$2&\",,\"&$B689&\",\"=VLOOKUP(\"OPEX-F,\"&X$2&\",,\"&$B689&\",\",data[],1),VLOOKUP(\"OPEX-F,\"&X$2&\",,\"&$B689&\",\",data[],7),X$664)","v":0},null,{"$f":"IF(\"OPEX-F,\"&Z$2&\",,\"&$B689&\",\"=VLOOKUP(\"OPEX-F,\"&Z$2&\",,\"&$B689&\",\",data[],1),VLOOKUP(\"OPEX-F,\"&Z$2&\",,\"&$B689&\",\",data[],7),Z$664)","v":9.4669104972375679E-5},null,null,null,{"$f":"IF(\"OPEX-F,\"&AD$2&\",,\"&$B689&\",\"=VLOOKUP(\"OPEX-F,\"&AD$2&\",,\"&$B689&\",\",data[],1),VLOOKUP(\"OPEX-F,\"&AD$2&\",,\"&$B689&\",\",data[],7),AD$664)","v":4.150964167347479E-2},null,null,null,null,null,null,{"$f":"IF(\"OPEX-F,\"&AK$2&\",,\"&$B689&\",\"=VLOOKUP(\"OPEX-F,\"&AK$2&\",,\"&$B689&\",\",data[],1),VLOOKUP(\"OPEX-F,\"&AK$2&\",,\"&$B689&\",\",data[],7),AK$664)","v":58.294484220432686},null,{"$f":"IF(\"OPEX-F,\"&AM$2&\",,\"&$B689&\",\"=VLOOKUP(\"OPEX-F,\"&AM$2&\",,\"&$B689&\",\",data[],1),VLOOKUP(\"OPEX-F,\"&AM$2&\",,\"&$B689&\",\",data[],7),AM$664)","v":5.7796175335134681},null,null,null,null,null,null,null,1.9148349024930424E-2,null,0,0,0,0,null,{"$f":"IF(\"OPEX-F,\"&BB$2&\",,\"&$B689&\",\"=VLOOKUP(\"OPEX-F,\"&BB$2&\",,\"&$B689&\",\",data[],1),VLOOKUP(\"OPEX-F,\"&BB$2&\",,\"&$B689&\",\",data[],7),BB$664)","v":7.9535567883452885},null,null,{"$f":"IF(\"OPEX-F,\"&BE$2&\",,\"&$B689&\",\"=VLOOKUP(\"OPEX-F,\"&BE$2&\",,\"&$B689&\",\",data[],1),VLOOKUP(\"OPEX-F,\"&BE$2&\",,\"&$B689&\",\",data[],7),BE$664)","v":0}]
[null,"ARG-TUC",null,null,null,null,null,null,null,null,{"$f":"IF(\"OPEX-F,\"&$K39&\",,\"&$B690&\",\"=VLOOKUP(\"OPEX-F,\"&$K39&\",,\"&$B690&\",\",data[],1),VLOOKUP(\"OPEX-F,\"&$K39&\",,\"&$B690&\",\",data[],7),INDEX($E$664:$I$664,$J39))","v":24.360834108462015},null,null,null,null,null,{"$f":"IF(\"OPEX-F,\"&Q$2&\",,\"&$B690&\",\"=VLOOKUP(\"OPEX-F,\"&Q$2&\",,\"&$B690&\",\",data[],1),VLOOKUP(\"OPEX-F,\"&Q$2&\",,\"&$B690&\",\",data[],7),Q$664)","v":13.012853079705877},null,{"$f":"IF(\"OPEX-F,\"&S$2&\",,\"&$B690&\",\"=VLOOKUP(\"OPEX-F,\"&S$2&\",,\"&$B690&\",\",data[],1),VLOOKUP(\"OPEX-F,\"&S$2&\",,\"&$B690&\",\",data[],7),S$664)","v":9.4669104972375679E-5},null,null,null,null,{"$f":"IF(\"OPEX-F,\"&X$2&\",,\"&$B690&\",\"=VLOOKUP(\"OPEX-F,\"&X$2&\",,\"&$B690&\",\",data[],1),VLOOKUP(\"OPEX-F,\"&X$2&\",,\"&$B690&\",\",data[],7),X$664)","v":0},null,{"$f":"IF(\"OPEX-F,\"&Z$2&\",,\"&$B690&\",\"=VLOOKUP(\"OPEX-F,\"&Z$2&\",,\"&$B690&\",\",data[],1),VLOOKUP(\"OPEX-F,\"&Z$2&\",,\"&$B690&\",\",data[],7),Z$664)","v":9.4669104972375679E-5},null,null,null,{"$f":"IF(\"OPEX-F,\"&AD$2&\",,\"&$B690&\",\"=VLOOKUP(\"OPEX-F,\"&AD$2&\",,\"&$B690&\",\",data[],1),VLOOKUP(\"OPEX-F,\"&AD$2&\",,\"&$B690&\",\",data[],7),AD$664)","v":4.150964167347479E-2},null,null,null,null,null,null,{"$f":"IF(\"OPEX-F,\"&AK$2&\",,\"&$B690&\",\"=VLOOKUP(\"OPEX-F,\"&AK$2&\",,\"&$B690&\",\",data[],1),VLOOKUP(\"OPEX-F,\"&AK$2&\",,\"&$B690&\",\",data[],7),AK$664)","v":58.294484220432686},null,{"$f":"IF(\"OPEX-F,\"&AM$2&\",,\"&$B690&\",\"=VLOOKUP(\"OPEX-F,\"&AM$2&\",,\"&$B690&\",\",data[],1),VLOOKUP(\"OPEX-F,\"&AM$2&\",,\"&$B690&\",\",data[],7),AM$664)","v":5.7796175335134681},null,null,null,null,null,null,null,1.9148349024930424E-2,null,0,0,0,0,null,{"$f":"IF(\"OPEX-F,\"&BB$2&\",,\"&$B690&\",\"=VLOOKUP(\"OPEX-F,\"&BB$2&\",,\"&$B690&\",\",data[],1),VLOOKUP(\"OPEX-F,\"&BB$2&\",,\"&$B690&\",\",data[],7),BB$664)","v":7.9535567883452885},null,null,{"$f":"IF(\"OPEX-F,\"&BE$2&\",,\"&$B690&\",\"=VLOOKUP(\"OPEX-F,\"&BE$2&\",,\"&$B690&\",\",data[],1),VLOOKUP(\"OPEX-F,\"&BE$2&\",,\"&$B690&\",\",data[],7),BE$664)","v":0}]
[null,"AUS",null,null,null,null,null,null,null,null,{"$f":"IF(\"OPEX-F,\"&$K40&\",,\"&$B691&\",\"=VLOOKUP(\"OPEX-F,\"&$K40&\",,\"&$B691&\",\",data[],1),VLOOKUP(\"OPEX-F,\"&$K40&\",,\"&$B691&\",\",data[],7),INDEX($E$664:$I$664,$J40))","v":25.303323502149748},null,null,null,null,null,{"$f":"IF(\"OPEX-F,\"&Q$2&\",,\"&$B691&\",\"=VLOOKUP(\"OPEX-F,\"&Q$2&\",,\"&$B691&\",\",data[],1),VLOOKUP(\"OPEX-F,\"&Q$2&\",,\"&$B691&\",\",data[],7),Q$664)","v":13.012853079705877},null,{"$f":"IF(\"OPEX-F,\"&S$2&\",,\"&$B691&\",\"=VLOOKUP(\"OPEX-F,\"&S$2&\",,\"&$B691&\",\",data[],1),VLOOKUP(\"OPEX-F,\"&S$2&\",,\"&$B691&\",\",data[],7),S$664)","v":9.4669104972375679E-5},null,null,null,null,{"$f":"IF(\"OPEX-F,\"&X$2&\",,\"&$B691&\",\"=VLOOKUP(\"OPEX-F,\"&X$2&\",,\"&$B691&\",\",data[],1),VLOOKUP(\"OPEX-F,\"&X$2&\",,\"&$B691&\",\",data[],7),X$664)","v":0},null,{"$f":"IF(\"OPEX-F,\"&Z$2&\",,\"&$B691&\",\"=VLOOKUP(\"OPEX-F,\"&Z$2&\",,\"&$B691&\",\",data[],1),VLOOKUP(\"OPEX-F,\"&Z$2&\",,\"&$B691&\",\",data[],7),Z$664)","v":9.4669104972375679E-5},null,null,null,{"$f":"IF(\"OPEX-F,\"&AD$2&\",,\"&$B691&\",\"=VLOOKUP(\"OPEX-F,\"&AD$2&\",,\"&$B691&\",\",data[],1),VLOOKUP(\"OPEX-F,\"&AD$2&\",,\"&$B691&\",\",data[],7),AD$664)","v":4.150964167347479E-2},null,null,null,null,null,null,{"$f":"IF(\"OPEX-F,\"&AK$2&\",,\"&$B691&\",\"=VLOOKUP(\"OPEX-F,\"&AK$2&\",,\"&$B691&\",\",data[],1),VLOOKUP(\"OPEX-F,\"&AK$2&\",,\"&$B691&\",\",data[],7),AK$664)","v":58.294484220432686},null,{"$f":"IF(\"OPEX-F,\"&AM$2&\",,\"&$B691&\",\"=VLOOKUP(\"OPEX-F,\"&AM$2&\",,\"&$B691&\",\",data[],1),VLOOKUP(\"OPEX-F,\"&AM$2&\",,\"&$B691&\",\",data[],7),AM$664)","v":5.7796175335134681},null,null,null,null,null,null,null,3.1910364815457143E-2,null,0,0,0,0,null,{"$f":"IF(\"OPEX-F,\"&BB$2&\",,\"&$B691&\",\"=VLOOKUP(\"OPEX-F,\"&BB$2&\",,\"&$B691&\",\",data[],1),VLOOKUP(\"OPEX-F,\"&BB$2&\",,\"&$B691&\",\",data[],7),BB$664)","v":7.9535567883452885},null,null,{"$f":"IF(\"OPEX-F,\"&BE$2&\",,\"&$B691&\",\"=VLOOKUP(\"OPEX-F,\"&BE$2&\",,\"&$B691&\",\",data[],1),VLOOKUP(\"OPEX-F,\"&BE$2&\",,\"&$B691&\",\",data[],7),BE$664)","v":0}]
[null,"BRA",null,null,null,null,null,null,null,null,{"$f":"IF(\"OPEX-F,\"&$K41&\",,\"&$B692&\",\"=VLOOKUP(\"OPEX-F,\"&$K41&\",,\"&$B692&\",\",data[],1),VLOOKUP(\"OPEX-F,\"&$K41&\",,\"&$B692&\",\",data[],7),INDEX($E$664:$I$664,$J41))","v":18.345305714480759},null,null,null,null,null,{"$f":"IF(\"OPEX-F,\"&Q$2&\",,\"&$B692&\",\"=VLOOKUP(\"OPEX-F,\"&Q$2&\",,\"&$B692&\",\",data[],1),VLOOKUP(\"OPEX-F,\"&Q$2&\",,\"&$B692&\",\",data[],7),Q$664)","v":13.012853079705877},null,{"$f":"IF(\"OPEX-F,\"&S$2&\",,\"&$B692&\",\"=VLOOKUP(\"OPEX-F,\"&S$2&\",,\"&$B692&\",\",data[],1),VLOOKUP(\"OPEX-F,\"&S$2&\",,\"&$B692&\",\",data[],7),S$664)","v":9.4669104972375679E-5},null,null,null,null,{"$f":"IF(\"OPEX-F,\"&X$2&\",,\"&$B692&\",\"=VLOOKUP(\"OPEX-F,\"&X$2&\",,\"&$B692&\",\",data[],1),VLOOKUP(\"OPEX-F,\"&X$2&\",,\"&$B692&\",\",data[],7),X$664)","v":0},null,{"$f":"IF(\"OPEX-F,\"&Z$2&\",,\"&$B692&\",\"=VLOOKUP(\"OPEX-F,\"&Z$2&\",,\"&$B692&\",\",data[],1),VLOOKUP(\"OPEX-F,\"&Z$2&\",,\"&$B692&\",\",data[],7),Z$664)","v":9.4669104972375679E-5},null,null,null,{"$f":"IF(\"OPEX-F,\"&AD$2&\",,\"&$B692&\",\"=VLOOKUP(\"OPEX-F,\"&AD$2&\",,\"&$B692&\",\",data[],1),VLOOKUP(\"OPEX-F,\"&AD$2&\",,\"&$B692&\",\",data[],7),AD$664)","v":4.150964167347479E-2},null,null,null,null,null,null,{"$f":"IF(\"OPEX-F,\"&AK$2&\",,\"&$B692&\",\"=VLOOKUP(\"OPEX-F,\"&AK$2&\",,\"&$B692&\",\",data[],1),VLOOKUP(\"OPEX-F,\"&AK$2&\",,\"&$B692&\",\",data[],7),AK$664)","v":58.294484220432686},null,{"$f":"IF(\"OPEX-F,\"&AM$2&\",,\"&$B692&\",\"=VLOOKUP(\"OPEX-F,\"&AM$2&\",,\"&$B692&\",\",data[],1),VLOOKUP(\"OPEX-F,\"&AM$2&\",,\"&$B692&\",\",data[],7),AM$664)","v":5.7796175335134681},null,null,null,null,null,null,null,1.5659355305483194E-2,null,0,0,0,0,null,{"$f":"IF(\"OPEX-F,\"&BB$2&\",,\"&$B692&\",\"=VLOOKUP(\"OPEX-F,\"&BB$2&\",,\"&$B692&\",\",data[],1),VLOOKUP(\"OPEX-F,\"&BB$2&\",,\"&$B692&\",\",data[],7),BB$664)","v":7.9535567883452885},null,null,{"$f":"IF(\"OPEX-F,\"&BE$2&\",,\"&$B692&\",\"=VLOOKUP(\"OPEX-F,\"&BE$2&\",,\"&$B692&\",\",data[],1),VLOOKUP(\"OPEX-F,\"&BE$2&\",,\"&$B692&\",\",data[],7),BE$664)","v":0}]
[null,"CHL",null,null,null,null,null,null,null,null,{"$f":"IF(\"OPEX-F,\"&$K42&\",,\"&$B693&\",\"=VLOOKUP(\"OPEX-F,\"&$K42&\",,\"&$B693&\",\",data[],1),VLOOKUP(\"OPEX-F,\"&$K42&\",,\"&$B693&\",\",data[],7),INDEX($E$664:$I$664,$J42))","v":25.182491528600039},null,null,null,null,null,{"$f":"IF(\"OPEX-F,\"&Q$2&\",,\"&$B693&\",\"=VLOOKUP(\"OPEX-F,\"&Q$2&\",,\"&$B693&\",\",data[],1),VLOOKUP(\"OPEX-F,\"&Q$2&\",,\"&$B693&\",\",data[],7),Q$664)","v":13.012853079705877},null,{"$f":"IF(\"OPEX-F,\"&S$2&\",,\"&$B693&\",\"=VLOOKUP(\"OPEX-F,\"&S$2&\",,\"&$B693&\",\",data[],1),VLOOKUP(\"OPEX-F,\"&S$2&\",,\"&$B693&\",\",data[],7),S$664)","v":9.4669104972375679E-5},null,null,null,null,{"$f":"IF(\"OPEX-F,\"&X$2&\",,\"&$B693&\",\"=VLOOKUP(\"OPEX-F,\"&X$2&\",,\"&$B693&\",\",data[],1),VLOOKUP(\"OPEX-F,\"&X$2&\",,\"&$B693&\",\",data[],7),X$664)","v":0},null,{"$f":"IF(\"OPEX-F,\"&Z$2&\",,\"&$B693&\",\"=VLOOKUP(\"OPEX-F,\"&Z$2&\",,\"&$B693&\",\",data[],1),VLOOKUP(\"OPEX-F,\"&Z$2&\",,\"&$B693&\",\",data[],7),Z$664)","v":9.4669104972375679E-5},null,null,null,{"$f":"IF(\"OPEX-F,\"&AD$2&\",,\"&$B693&\",\"=VLOOKUP(\"OPEX-F,\"&AD$2&\",,\"&$B693&\",\",data[],1),VLOOKUP(\"OPEX-F,\"&AD$2&\",,\"&$B693&\",\",data[],7),AD$664)","v":4.150964167347479E-2},null,null,null,null,null,null,{"$f":"IF(\"OPEX-F,\"&AK$2&\",,\"&$B693&\",\"=VLOOKUP(\"OPEX-F,\"&AK$2&\",,\"&$B693&\",\",data[],1),VLOOKUP(\"OPEX-F,\"&AK$2&\",,\"&$B693&\",\",data[],7),AK$664)","v":58.294484220432686},null,{"$f":"IF(\"OPEX-F,\"&AM$2&\",,\"&$B693&\",\"=VLOOKUP(\"OPEX-F,\"&AM$2&\",,\"&$B693&\",\",data[],1),VLOOKUP(\"OPEX-F,\"&AM$2&\",,\"&$B693&\",\",data[],7),AM$664)","v":5.7796175335134681},null,null,null,null,null,null,null,1.8822065194934932E-2,null,0,0,0,0,null,{"$f":"IF(\"OPEX-F,\"&BB$2&\",,\"&$B693&\",\"=VLOOKUP(\"OPEX-F,\"&BB$2&\",,\"&$B693&\",\",data[],1),VLOOKUP(\"OPEX-F,\"&BB$2&\",,\"&$B693&\",\",data[],7),BB$664)","v":7.9535567883452885},null,null,{"$f":"IF(\"OPEX-F,\"&BE$2&\",,\"&$B693&\",\"=VLOOKUP(\"OPEX-F,\"&BE$2&\",,\"&$B693&\",\",data[],1),VLOOKUP(\"OPEX-F,\"&BE$2&\",,\"&$B693&\",\",data[],7),BE$664)","v":0}]
[null,"CHN",null,null,null,null,null,null,null,null,{"$f":"IF(\"OPEX-F,\"&$K43&\",,\"&$B694&\",\"=VLOOKUP(\"OPEX-F,\"&$K43&\",,\"&$B694&\",\",data[],1),VLOOKUP(\"OPEX-F,\"&$K43&\",,\"&$B694&\",\",data[],7),INDEX($E$664:$I$664,$J43))","v":16.009152206647794},null,null,null,null,null,{"$f":"IF(\"OPEX-F,\"&Q$2&\",,\"&$B694&\",\"=VLOOKUP(\"OPEX-F,\"&Q$2&\",,\"&$B694&\",\",data[],1),VLOOKUP(\"OPEX-F,\"&Q$2&\",,\"&$B694&\",\",data[],7),Q$664)","v":13.012853079705877},null,{"$f":"IF(\"OPEX-F,\"&S$2&\",,\"&$B694&\",\"=VLOOKUP(\"OPEX-F,\"&S$2&\",,\"&$B694&\",\",data[],1),VLOOKUP(\"OPEX-F,\"&S$2&\",,\"&$B694&\",\",data[],7),S$664)","v":9.4669104972375679E-5},null,null,null,null,{"$f":"IF(\"OPEX-F,\"&X$2&\",,\"&$B694&\",\"=VLOOKUP(\"OPEX-F,\"&X$2&\",,\"&$B694&\",\",data[],1),VLOOKUP(\"OPEX-F,\"&X$2&\",,\"&$B694&\",\",data[],7),X$664)","v":0},null,{"$f":"IF(\"OPEX-F,\"&Z$2&\",,\"&$B694&\",\"=VLOOKUP(\"OPEX-F,\"&Z$2&\",,\"&$B694&\",\",data[],1),VLOOKUP(\"OPEX-F,\"&Z$2&\",,\"&$B694&\",\",data[],7),Z$664)","v":9.4669104972375679E-5},null,null,null,{"$f":"IF(\"OPEX-F,\"&AD$2&\",,\"&$B694&\",\"=VLOOKUP(\"OPEX-F,\"&AD$2&\",,\"&$B694&\",\",data[],1),VLOOKUP(\"OPEX-F,\"&AD$2&\",,\"&$B694&\",\",data[],7),AD$664)","v":4.150964167347479E-2},null,null,null,null,null,null,{"$f":"IF(\"OPEX-F,\"&AK$2&\",,\"&$B694&\",\"=VLOOKUP(\"OPEX-F,\"&AK$2&\",,\"&$B694&\",\",data[],1),VLOOKUP(\"OPEX-F,\"&AK$2&\",,\"&$B694&\",\",data[],7),AK$664)","v":58.294484220432686},null,{"$f":"IF(\"OPEX-F,\"&AM$2&\",,\"&$B694&\",\"=VLOOKUP(\"OPEX-F,\"&AM$2&\",,\"&$B694&\",\",data[],1),VLOOKUP(\"OPEX-F,\"&AM$2&\",,\"&$B694&\",\",data[],7),AM$664)","v":5.7796175335134681},null,null,null,null,null,null,null,3.0816112925432796E-2,null,0,0,0,0,null,{"$f":"IF(\"OPEX-F,\"&BB$2&\",,\"&$B694&\",\"=VLOOKUP(\"OPEX-F,\"&BB$2&\",,\"&$B694&\",\",data[],1),VLOOKUP(\"OPEX-F,\"&BB$2&\",,\"&$B694&\",\",data[],7),BB$664)","v":7.9535567883452885},null,null,{"$f":"IF(\"OPEX-F,\"&BE$2&\",,\"&$B694&\",\"=VLOOKUP(\"OPEX-F,\"&BE$2&\",,\"&$B694&\",\",data[],1),VLOOKUP(\"OPEX-F,\"&BE$2&\",,\"&$B694&\",\",data[],7),BE$664)","v":0}]
[null,"COL",null,null,null,null,null,null,null,null,{"$f":"IF(\"OPEX-F,\"&$K44&\",,\"&$B695&\",\"=VLOOKUP(\"OPEX-F,\"&$K44&\",,\"&$B695&\",\",data[],1),VLOOKUP(\"OPEX-F,\"&$K44&\",,\"&$B695&\",\",data[],7),INDEX($E$664:$I$664,$J44))","v":0},null,null,null,null,null,{"$f":"IF(\"OPEX-F,\"&Q$2&\",,\"&$B695&\",\"=VLOOKUP(\"OPEX-F,\"&Q$2&\",,\"&$B695&\",\",data[],1),VLOOKUP(\"OPEX-F,\"&Q$2&\",,\"&$B695&\",\",data[],7),Q$664)","v":13.012853079705877},null,{"$f":"IF(\"OPEX-F,\"&S$2&\",,\"&$B695&\",\"=VLOOKUP(\"OPEX-F,\"&S$2&\",,\"&$B695&\",\",data[],1),VLOOKUP(\"OPEX-F,\"&S$2&\",,\"&$B695&\",\",data[],7),S$664)","v":9.4669104972375679E-5},null,null,null,null,{"$f":"IF(\"OPEX-F,\"&X$2&\",,\"&$B695&\",\"=VLOOKUP(\"OPEX-F,\"&X$2&\",,\"&$B695&\",\",data[],1),VLOOKUP(\"OPEX-F,\"&X$2&\",,\"&$B695&\",\",data[],7),X$664)","v":0},null,{"$f":"IF(\"OPEX-F,\"&Z$2&\",,\"&$B695&\",\"=VLOOKUP(\"OPEX-F,\"&Z$2&\",,\"&$B695&\",\",data[],1),VLOOKUP(\"OPEX-F,\"&Z$2&\",,\"&$B695&\",\",data[],7),Z$664)","v":9.4669104972375679E-5},null,null,null,{"$f":"IF(\"OPEX-F,\"&AD$2&\",,\"&$B695&\",\"=VLOOKUP(\"OPEX-F,\"&AD$2&\",,\"&$B695&\",\",data[],1),VLOOKUP(\"OPEX-F,\"&AD$2&\",,\"&$B695&\",\",data[],7),AD$664)","v":4.150964167347479E-2},null,null,null,null,null,null,{"$f":"IF(\"OPEX-F,\"&AK$2&\",,\"&$B695&\",\"=VLOOKUP(\"OPEX-F,\"&AK$2&\",,\"&$B695&\",\",data[],1),VLOOKUP(\"OPEX-F,\"&AK$2&\",,\"&$B695&\",\",data[],7),AK$664)","v":58.294484220432686},null,{"$f":"IF(\"OPEX-F,\"&AM$2&\",,\"&$B695&\",\"=VLOOKUP(\"OPEX-F,\"&AM$2&\",,\"&$B695&\",\",data[],1),VLOOKUP(\"OPEX-F,\"&AM$2&\",,\"&$B695&\",\",data[],7),AM$664)","v":5.7796175335134681},null,null,null,null,null,null,null,1.3916194293543935E-2,null,0,0,0,0,null,{"$f":"IF(\"OPEX-F,\"&BB$2&\",,\"&$B695&\",\"=VLOOKUP(\"OPEX-F,\"&BB$2&\",,\"&$B695&\",\",data[],1),VLOOKUP(\"OPEX-F,\"&BB$2&\",,\"&$B695&\",\",data[],7),BB$664)","v":7.9535567883452885},null,null,{"$f":"IF(\"OPEX-F,\"&BE$2&\",,\"&$B695&\",\"=VLOOKUP(\"OPEX-F,\"&BE$2&\",,\"&$B695&\",\",data[],1),VLOOKUP(\"OPEX-F,\"&BE$2&\",,\"&$B695&\",\",data[],7),BE$664)","v":0}]
[null,"CRI",null,null,null,null,null,null,null,null,{"$f":"IF(\"OPEX-F,\"&$K45&\",,\"&$B696&\",\"=VLOOKUP(\"OPEX-F,\"&$K45&\",,\"&$B696&\",\",data[],1),VLOOKUP(\"OPEX-F,\"&$K45&\",,\"&$B696&\",\",data[],7),INDEX($E$664:$I$664,$J45))","v":22.952013965505664},null,null,null,null,null,{"$f":"IF(\"OPEX-F,\"&Q$2&\",,\"&$B696&\",\"=VLOOKUP(\"OPEX-F,\"&Q$2&\",,\"&$B696&\",\",data[],1),VLOOKUP(\"OPEX-F,\"&Q$2&\",,\"&$B696&\",\",data[],7),Q$664)","v":13.012853079705877},null,{"$f":"IF(\"OPEX-F,\"&S$2&\",,\"&$B696&\",\"=VLOOKUP(\"OPEX-F,\"&S$2&\",,\"&$B696&\",\",data[],1),VLOOKUP(\"OPEX-F,\"&S$2&\",,\"&$B696&\",\",data[],7),S$664)","v":9.4669104972375679E-5},null,null,null,null,{"$f":"IF(\"OPEX-F,\"&X$2&\",,\"&$B696&\",\"=VLOOKUP(\"OPEX-F,\"&X$2&\",,\"&$B696&\",\",data[],1),VLOOKUP(\"OPEX-F,\"&X$2&\",,\"&$B696&\",\",data[],7),X$664)","v":0},null,{"$f":"IF(\"OPEX-F,\"&Z$2&\",,\"&$B696&\",\"=VLOOKUP(\"OPEX-F,\"&Z$2&\",,\"&$B696&\",\",data[],1),VLOOKUP(\"OPEX-F,\"&Z$2&\",,\"&$B696&\",\",data[],7),Z$664)","v":9.4669104972375679E-5},null,null,null,{"$f":"IF(\"OPEX-F,\"&AD$2&\",,\"&$B696&\",\"=VLOOKUP(\"OPEX-F,\"&AD$2&\",,\"&$B696&\",\",data[],1),VLOOKUP(\"OPEX-F,\"&AD$2&\",,\"&$B696&\",\",data[],7),AD$664)","v":4.150964167347479E-2},null,null,null,null,null,null,{"$f":"IF(\"OPEX-F,\"&AK$2&\",,\"&$B696&\",\"=VLOOKUP(\"OPEX-F,\"&AK$2&\",,\"&$B696&\",\",data[],1),VLOOKUP(\"OPEX-F,\"&AK$2&\",,\"&$B696&\",\",data[],7),AK$664)","v":58.294484220432686},null,{"$f":"IF(\"OPEX-F,\"&AM$2&\",,\"&$B696&\",\"=VLOOKUP(\"OPEX-F,\"&AM$2&\",,\"&$B696&\",\",data[],1),VLOOKUP(\"OPEX-F,\"&AM$2&\",,\"&$B696&\",\",data[],7),AM$664)","v":5.7796175335134681},null,null,null,null,null,null,null,1.1166062797490712E-2,null,0,0,0,0,null,{"$f":"IF(\"OPEX-F,\"&BB$2&\",,\"&$B696&\",\"=VLOOKUP(\"OPEX-F,\"&BB$2&\",,\"&$B696&\",\",data[],1),VLOOKUP(\"OPEX-F,\"&BB$2&\",,\"&$B696&\",\",data[],7),BB$664)","v":7.9535567883452885},null,null,{"$f":"IF(\"OPEX-F,\"&BE$2&\",,\"&$B696&\",\"=VLOOKUP(\"OPEX-F,\"&BE$2&\",,\"&$B696&\",\",data[],1),VLOOKUP(\"OPEX-F,\"&BE$2&\",,\"&$B696&\",\",data[],7),BE$664)","v":0}]
[null,"DNK",null,null,null,null,null,null,null,null,{"$f":"IF(\"OPEX-F,\"&$K46&\",,\"&$B697&\",\"=VLOOKUP(\"OPEX-F,\"&$K46&\",,\"&$B697&\",\",data[],1),VLOOKUP(\"OPEX-F,\"&$K46&\",,\"&$B697&\",\",data[],7),INDEX($E$664:$I$664,$J46))","v":22.347417346264294},null,null,null,null,null,{"$f":"IF(\"OPEX-F,\"&Q$2&\",,\"&$B697&\",\"=VLOOKUP(\"OPEX-F,\"&Q$2&\",,\"&$B697&\",\",data[],1),VLOOKUP(\"OPEX-F,\"&Q$2&\",,\"&$B697&\",\",data[],7),Q$664)","v":13.012853079705877},null,{"$f":"IF(\"OPEX-F,\"&S$2&\",,\"&$B697&\",\"=VLOOKUP(\"OPEX-F,\"&S$2&\",,\"&$B697&\",\",data[],1),VLOOKUP(\"OPEX-F,\"&S$2&\",,\"&$B697&\",\",data[],7),S$664)","v":9.4669104972375679E-5},null,null,null,null,{"$f":"IF(\"OPEX-F,\"&X$2&\",,\"&$B697&\",\"=VLOOKUP(\"OPEX-F,\"&X$2&\",,\"&$B697&\",\",data[],1),VLOOKUP(\"OPEX-F,\"&X$2&\",,\"&$B697&\",\",data[],7),X$664)","v":0},null,{"$f":"IF(\"OPEX-F,\"&Z$2&\",,\"&$B697&\",\"=VLOOKUP(\"OPEX-F,\"&Z$2&\",,\"&$B697&\",\",data[],1),VLOOKUP(\"OPEX-F,\"&Z$2&\",,\"&$B697&\",\",data[],7),Z$664)","v":9.4669104972375679E-5},null,null,null,{"$f":"IF(\"OPEX-F,\"&AD$2&\",,\"&$B697&\",\"=VLOOKUP(\"OPEX-F,\"&AD$2&\",,\"&$B697&\",\",data[],1),VLOOKUP(\"OPEX-F,\"&AD$2&\",,\"&$B697&\",\",data[],7),AD$664)","v":4.150964167347479E-2},null,null,null,null,null,null,{"$f":"IF(\"OPEX-F,\"&AK$2&\",,\"&$B697&\",\"=VLOOKUP(\"OPEX-F,\"&AK$2&\",,\"&$B697&\",\",data[],1),VLOOKUP(\"OPEX-F,\"&AK$2&\",,\"&$B697&\",\",data[],7),AK$664)","v":58.294484220432686},null,{"$f":"IF(\"OPEX-F,\"&AM$2&\",,\"&$B697&\",\"=VLOOKUP(\"OPEX-F,\"&AM$2&\",,\"&$B697&\",\",data[],1),VLOOKUP(\"OPEX-F,\"&AM$2&\",,\"&$B697&\",\",data[],7),AM$664)","v":5.7796175335134681},null,null,null,null,null,null,null,{"$f":"AU$664*AU46","v":0},null,0,0,0,1.5212397062607408E-3,null,{"$f":"IF(\"OPEX-F,\"&BB$2&\",,\"&$B697&\",\"=VLOOKUP(\"OPEX-F,\"&BB$2&\",,\"&$B697&\",\",data[],1),VLOOKUP(\"OPEX-F,\"&BB$2&\",,\"&$B697&\",\",data[],7),BB$664)","v":7.9535567883452885},null,null,{"$f":"IF(\"OPEX-F,\"&BE$2&\",,\"&$B697&\",\"=VLOOKUP(\"OPEX-F,\"&BE$2&\",,\"&$B697&\",\",data[],1),VLOOKUP(\"OPEX-F,\"&BE$2&\",,\"&$B697&\",\",data[],7),BE$664)","v":0}]
[null,"DZA",null,null,null,null,null,null,null,null,{"$f":"IF(\"OPEX-F,\"&$K47&\",,\"&$B698&\",\"=VLOOKUP(\"OPEX-F,\"&$K47&\",,\"&$B698&\",\",data[],1),VLOOKUP(\"OPEX-F,\"&$K47&\",,\"&$B698&\",\",data[],7),INDEX($E$664:$I$664,$J47))","v":25.971507484667484},null,null,null,null,null,{"$f":"IF(\"OPEX-F,\"&Q$2&\",,\"&$B698&\",\"=VLOOKUP(\"OPEX-F,\"&Q$2&\",,\"&$B698&\",\",data[],1),VLOOKUP(\"OPEX-F,\"&Q$2&\",,\"&$B698&\",\",data[],7),Q$664)","v":13.012853079705877},null,{"$f":"IF(\"OPEX-F,\"&S$2&\",,\"&$B698&\",\"=VLOOKUP(\"OPEX-F,\"&S$2&\",,\"&$B698&\",\",data[],1),VLOOKUP(\"OPEX-F,\"&S$2&\",,\"&$B698&\",\",data[],7),S$664)","v":9.4669104972375679E-5},null,null,null,null,{"$f":"IF(\"OPEX-F,\"&X$2&\",,\"&$B698&\",\"=VLOOKUP(\"OPEX-F,\"&X$2&\",,\"&$B698&\",\",data[],1),VLOOKUP(\"OPEX-F,\"&X$2&\",,\"&$B698&\",\",data[],7),X$664)","v":0},null,{"$f":"IF(\"OPEX-F,\"&Z$2&\",,\"&$B698&\",\"=VLOOKUP(\"OPEX-F,\"&Z$2&\",,\"&$B698&\",\",data[],1),VLOOKUP(\"OPEX-F,\"&Z$2&\",,\"&$B698&\",\",data[],7),Z$664)","v":9.4669104972375679E-5},null,null,null,{"$f":"IF(\"OPEX-F,\"&AD$2&\",,\"&$B698&\",\"=VLOOKUP(\"OPEX-F,\"&AD$2&\",,\"&$B698&\",\",data[],1),VLOOKUP(\"OPEX-F,\"&AD$2&\",,\"&$B698&\",\",data[],7),AD$664)","v":4.150964167347479E-2},null,null,null,null,null,null,{"$f":"IF(\"OPEX-F,\"&AK$2&\",,\"&$B698&\",\"=VLOOKUP(\"OPEX-F,\"&AK$2&\",,\"&$B698&\",\",data[],1),VLOOKUP(\"OPEX-F,\"&AK$2&\",,\"&$B698&\",\",data[],7),AK$664)","v":58.294484220432686},null,{"$f":"IF(\"OPEX-F,\"&AM$2&\",,\"&$B698&\",\"=VLOOKUP(\"OPEX-F,\"&AM$2&\",,\"&$B698&\",\",data[],1),VLOOKUP(\"OPEX-F,\"&AM$2&\",,\"&$B698&\",\",data[],7),AM$664)","v":5.7796175335134681},null,null,null,null,null,null,null,0,null,4.5637191187822236E-3,2.3959525373606672E-2,0,0,null,{"$f":"IF(\"OPEX-F,\"&BB$2&\",,\"&$B698&\",\"=VLOOKUP(\"OPEX-F,\"&BB$2&\",,\"&$B698&\",\",data[],1),VLOOKUP(\"OPEX-F,\"&BB$2&\",,\"&$B698&\",\",data[],7),BB$664)","v":7.9535567883452885},null,null,{"$f":"IF(\"OPEX-F,\"&BE$2&\",,\"&$B698&\",\"=VLOOKUP(\"OPEX-F,\"&BE$2&\",,\"&$B698&\",\",data[],1),VLOOKUP(\"OPEX-F,\"&BE$2&\",,\"&$B698&\",\",data[],7),BE$664)","v":0}]
[null,"EGY",null,null,null,null,null,null,null,null,{"$f":"IF(\"OPEX-F,\"&$K48&\",,\"&$B699&\",\"=VLOOKUP(\"OPEX-F,\"&$K48&\",,\"&$B699&\",\",data[],1),VLOOKUP(\"OPEX-F,\"&$K48&\",,\"&$B699&\",\",data[],7),INDEX($E$664:$I$664,$J48))","v":22.140952599517213},null,null,null,null,null,{"$f":"IF(\"OPEX-F,\"&Q$2&\",,\"&$B699&\",\"=VLOOKUP(\"OPEX-F,\"&Q$2&\",,\"&$B699&\",\",data[],1),VLOOKUP(\"OPEX-F,\"&Q$2&\",,\"&$B699&\",\",data[],7),Q$664)","v":13.012853079705877},null,{"$f":"IF(\"OPEX-F,\"&S$2&\",,\"&$B699&\",\"=VLOOKUP(\"OPEX-F,\"&S$2&\",,\"&$B699&\",\",data[],1),VLOOKUP(\"OPEX-F,\"&S$2&\",,\"&$B699&\",\",data[],7),S$664)","v":9.4669104972375679E-5},null,null,null,null,{"$f":"IF(\"OPEX-F,\"&X$2&\",,\"&$B699&\",\"=VLOOKUP(\"OPEX-F,\"&X$2&\",,\"&$B699&\",\",data[],1),VLOOKUP(\"OPEX-F,\"&X$2&\",,\"&$B699&\",\",data[],7),X$664)","v":0},null,{"$f":"IF(\"OPEX-F,\"&Z$2&\",,\"&$B699&\",\"=VLOOKUP(\"OPEX-F,\"&Z$2&\",,\"&$B699&\",\",data[],1),VLOOKUP(\"OPEX-F,\"&Z$2&\",,\"&$B699&\",\",data[],7),Z$664)","v":9.4669104972375679E-5},null,null,null,{"$f":"IF(\"OPEX-F,\"&AD$2&\",,\"&$B699&\",\"=VLOOKUP(\"OPEX-F,\"&AD$2&\",,\"&$B699&\",\",data[],1),VLOOKUP(\"OPEX-F,\"&AD$2&\",,\"&$B699&\",\",data[],7),AD$664)","v":4.150964167347479E-2},null,null,null,null,null,null,{"$f":"IF(\"OPEX-F,\"&AK$2&\",,\"&$B699&\",\"=VLOOKUP(\"OPEX-F,\"&AK$2&\",,\"&$B699&\",\",data[],1),VLOOKUP(\"OPEX-F,\"&AK$2&\",,\"&$B699&\",\",data[],7),AK$664)","v":58.294484220432686},null,{"$f":"IF(\"OPEX-F,\"&AM$2&\",,\"&$B699&\",\"=VLOOKUP(\"OPEX-F,\"&AM$2&\",,\"&$B699&\",\",data[],1),VLOOKUP(\"OPEX-F,\"&AM$2&\",,\"&$B699&\",\",data[],7),AM$664)","v":5.7796175335134681},null,null,null,null,null,null,null,0,null,0,4.4369491432604949E-2,0,0,null,{"$f":"IF(\"OPEX-F,\"&BB$2&\",,\"&$B699&\",\"=VLOOKUP(\"OPEX-F,\"&BB$2&\",,\"&$B699&\",\",data[],1),VLOOKUP(\"OPEX-F,\"&BB$2&\",,\"&$B699&\",\",data[],7),BB$664)","v":7.9535567883452885},null,null,{"$f":"IF(\"OPEX-F,\"&BE$2&\",,\"&$B699&\",\"=VLOOKUP(\"OPEX-F,\"&BE$2&\",,\"&$B699&\",\",data[],1),VLOOKUP(\"OPEX-F,\"&BE$2&\",,\"&$B699&\",\",data[],7),BE$664)","v":0}]
[null,"ESP",null,null,null,null,null,null,null,null,{"$f":"IF(\"OPEX-F,\"&$K49&\",,\"&$B700&\",\"=VLOOKUP(\"OPEX-F,\"&$K49&\",,\"&$B700&\",\",data[],1),VLOOKUP(\"OPEX-F,\"&$K49&\",,\"&$B700&\",\",data[],7),INDEX($E$664:$I$664,$J49))","v":18.49920058621618},null,null,null,null,null,{"$f":"IF(\"OPEX-F,\"&Q$2&\",,\"&$B700&\",\"=VLOOKUP(\"OPEX-F,\"&Q$2&\",,\"&$B700&\",\",data[],1),VLOOKUP(\"OPEX-F,\"&Q$2&\",,\"&$B700&\",\",data[],7),Q$664)","v":13.012853079705877},null,{"$f":"IF(\"OPEX-F,\"&S$2&\",,\"&$B700&\",\"=VLOOKUP(\"OPEX-F,\"&S$2&\",,\"&$B700&\",\",data[],1),VLOOKUP(\"OPEX-F,\"&S$2&\",,\"&$B700&\",\",data[],7),S$664)","v":9.4669104972375679E-5},null,null,null,null,{"$f":"IF(\"OPEX-F,\"&X$2&\",,\"&$B700&\",\"=VLOOKUP(\"OPEX-F,\"&X$2&\",,\"&$B700&\",\",data[],1),VLOOKUP(\"OPEX-F,\"&X$2&\",,\"&$B700&\",\",data[],7),X$664)","v":0},null,{"$f":"IF(\"OPEX-F,\"&Z$2&\",,\"&$B700&\",\"=VLOOKUP(\"OPEX-F,\"&Z$2&\",,\"&$B700&\",\",data[],1),VLOOKUP(\"OPEX-F,\"&Z$2&\",,\"&$B700&\",\",data[],7),Z$664)","v":9.4669104972375679E-5},null,null,null,{"$f":"IF(\"OPEX-F,\"&AD$2&\",,\"&$B700&\",\"=VLOOKUP(\"OPEX-F,\"&AD$2&\",,\"&$B700&\",\",data[],1),VLOOKUP(\"OPEX-F,\"&AD$2&\",,\"&$B700&\",\",data[],7),AD$664)","v":4.150964167347479E-2},null,null,null,null,null,null,{"$f":"IF(\"OPEX-F,\"&AK$2&\",,\"&$B700&\",\"=VLOOKUP(\"OPEX-F,\"&AK$2&\",,\"&$B700&\",\",data[],1),VLOOKUP(\"OPEX-F,\"&AK$2&\",,\"&$B700&\",\",data[],7),AK$664)","v":58.294484220432686},null,{"$f":"IF(\"OPEX-F,\"&AM$2&\",,\"&$B700&\",\"=VLOOKUP(\"OPEX-F,\"&AM$2&\",,\"&$B700&\",\",data[],1),VLOOKUP(\"OPEX-F,\"&AM$2&\",,\"&$B700&\",\",data[],7),AM$664)","v":5.7796175335134681},null,null,null,null,null,null,null,0,null,0,1.3310847429781484E-2,0,0,null,{"$f":"IF(\"OPEX-F,\"&BB$2&\",,\"&$B700&\",\"=VLOOKUP(\"OPEX-F,\"&BB$2&\",,\"&$B700&\",\",data[],1),VLOOKUP(\"OPEX-F,\"&BB$2&\",,\"&$B700&\",\",data[],7),BB$664)","v":7.9535567883452885},null,null,{"$f":"IF(\"OPEX-F,\"&BE$2&\",,\"&$B700&\",\"=VLOOKUP(\"OPEX-F,\"&BE$2&\",,\"&$B700&\",\",data[],1),VLOOKUP(\"OPEX-F,\"&BE$2&\",,\"&$B700&\",\",data[],7),BE$664)","v":0}]
[null,"IDN",null,null,null,null,null,null,null,null,{"$f":"IF(\"OPEX-F,\"&$K50&\",,\"&$B701&\",\"=VLOOKUP(\"OPEX-F,\"&$K50&\",,\"&$B701&\",\",data[],1),VLOOKUP(\"OPEX-F,\"&$K50&\",,\"&$B701&\",\",data[],7),INDEX($E$664:$I$664,$J50))","v":30.660480042297532},null,null,null,null,null,{"$f":"IF(\"OPEX-F,\"&Q$2&\",,\"&$B701&\",\"=VLOOKUP(\"OPEX-F,\"&Q$2&\",,\"&$B701&\",\",data[],1),VLOOKUP(\"OPEX-F,\"&Q$2&\",,\"&$B701&\",\",data[],7),Q$664)","v":13.012853079705877},null,{"$f":"IF(\"OPEX-F,\"&S$2&\",,\"&$B701&\",\"=VLOOKUP(\"OPEX-F,\"&S$2&\",,\"&$B701&\",\",data[],1),VLOOKUP(\"OPEX-F,\"&S$2&\",,\"&$B701&\",\",data[],7),S$664)","v":9.4669104972375679E-5},null,null,null,null,{"$f":"IF(\"OPEX-F,\"&X$2&\",,\"&$B701&\",\"=VLOOKUP(\"OPEX-F,\"&X$2&\",,\"&$B701&\",\",data[],1),VLOOKUP(\"OPEX-F,\"&X$2&\",,\"&$B701&\",\",data[],7),X$664)","v":0},null,{"$f":"IF(\"OPEX-F,\"&Z$2&\",,\"&$B701&\",\"=VLOOKUP(\"OPEX-F,\"&Z$2&\",,\"&$B701&\",\",data[],1),VLOOKUP(\"OPEX-F,\"&Z$2&\",,\"&$B701&\",\",data[],7),Z$664)","v":9.4669104972375679E-5},null,null,null,{"$f":"IF(\"OPEX-F,\"&AD$2&\",,\"&$B701&\",\"=VLOOKUP(\"OPEX-F,\"&AD$2&\",,\"&$B701&\",\",data[],1),VLOOKUP(\"OPEX-F,\"&AD$2&\",,\"&$B701&\",\",data[],7),AD$664)","v":4.150964167347479E-2},null,null,null,null,null,null,{"$f":"IF(\"OPEX-F,\"&AK$2&\",,\"&$B701&\",\"=VLOOKUP(\"OPEX-F,\"&AK$2&\",,\"&$B701&\",\",data[],1),VLOOKUP(\"OPEX-F,\"&AK$2&\",,\"&$B701&\",\",data[],7),AK$664)","v":58.294484220432686},null,{"$f":"IF(\"OPEX-F,\"&AM$2&\",,\"&$B701&\",\"=VLOOKUP(\"OPEX-F,\"&AM$2&\",,\"&$B701&\",\",data[],1),VLOOKUP(\"OPEX-F,\"&AM$2&\",,\"&$B701&\",\",data[],7),AM$664)","v":5.7796175335134681},null,null,null,null,null,null,null,2.5493632017960764E-2,null,0,0,0,0,null,{"$f":"IF(\"OPEX-F,\"&BB$2&\",,\"&$B701&\",\"=VLOOKUP(\"OPEX-F,\"&BB$2&\",,\"&$B701&\",\",data[],1),VLOOKUP(\"OPEX-F,\"&BB$2&\",,\"&$B701&\",\",data[],7),BB$664)","v":7.9535567883452885},null,null,{"$f":"IF(\"OPEX-F,\"&BE$2&\",,\"&$B701&\",\"=VLOOKUP(\"OPEX-F,\"&BE$2&\",,\"&$B701&\",\",data[],1),VLOOKUP(\"OPEX-F,\"&BE$2&\",,\"&$B701&\",\",data[],7),BE$664)","v":0}]
[null,"IND",null,null,null,null,null,null,null,null,{"$f":"IF(\"OPEX-F,\"&$K51&\",,\"&$B702&\",\"=VLOOKUP(\"OPEX-F,\"&$K51&\",,\"&$B702&\",\",data[],1),VLOOKUP(\"OPEX-F,\"&$K51&\",,\"&$B702&\",\",data[],7),INDEX($E$664:$I$664,$J51))","v":13.909871977375621},null,null,null,null,null,{"$f":"IF(\"OPEX-F,\"&Q$2&\",,\"&$B702&\",\"=VLOOKUP(\"OPEX-F,\"&Q$2&\",,\"&$B702&\",\",data[],1),VLOOKUP(\"OPEX-F,\"&Q$2&\",,\"&$B702&\",\",data[],7),Q$664)","v":13.012853079705877},null,{"$f":"IF(\"OPEX-F,\"&S$2&\",,\"&$B702&\",\"=VLOOKUP(\"OPEX-F,\"&S$2&\",,\"&$B702&\",\",data[],1),VLOOKUP(\"OPEX-F,\"&S$2&\",,\"&$B702&\",\",data[],7),S$664)","v":9.4669104972375679E-5},null,null,null,null,{"$f":"IF(\"OPEX-F,\"&X$2&\",,\"&$B702&\",\"=VLOOKUP(\"OPEX-F,\"&X$2&\",,\"&$B702&\",\",data[],1),VLOOKUP(\"OPEX-F,\"&X$2&\",,\"&$B702&\",\",data[],7),X$664)","v":0},null,{"$f":"IF(\"OPEX-F,\"&Z$2&\",,\"&$B702&\",\"=VLOOKUP(\"OPEX-F,\"&Z$2&\",,\"&$B702&\",\",data[],1),VLOOKUP(\"OPEX-F,\"&Z$2&\",,\"&$B702&\",\",data[],7),Z$664)","v":9.4669104972375679E-5},null,null,null,{"$f":"IF(\"OPEX-F,\"&AD$2&\",,\"&$B702&\",\"=VLOOKUP(\"OPEX-F,\"&AD$2&\",,\"&$B702&\",\",data[],1),VLOOKUP(\"OPEX-F,\"&AD$2&\",,\"&$B702&\",\",data[],7),AD$664)","v":4.150964167347479E-2},null,null,null,null,null,null,{"$f":"IF(\"OPEX-F,\"&AK$2&\",,\"&$B702&\",\"=VLOOKUP(\"OPEX-F,\"&AK$2&\",,\"&$B702&\",\",data[],1),VLOOKUP(\"OPEX-F,\"&AK$2&\",,\"&$B702&\",\",data[],7),AK$664)","v":58.294484220432686},null,{"$f":"IF(\"OPEX-F,\"&AM$2&\",,\"&$B702&\",\"=VLOOKUP(\"OPEX-F,\"&AM$2&\",,\"&$B702&\",\",data[],1),VLOOKUP(\"OPEX-F,\"&AM$2&\",,\"&$B702&\",\",data[],7),AM$664)","v":5.7796175335134681},null,null,null,null,null,null,null,1.908652695224354E-2,null,0,0,0,0,null,{"$f":"IF(\"OPEX-F,\"&BB$2&\",,\"&$B702&\",\"=VLOOKUP(\"OPEX-F,\"&BB$2&\",,\"&$B702&\",\",data[],1),VLOOKUP(\"OPEX-F,\"&BB$2&\",,\"&$B702&\",\",data[],7),BB$664)","v":7.9535567883452885},null,null,{"$f":"IF(\"OPEX-F,\"&BE$2&\",,\"&$B702&\",\"=VLOOKUP(\"OPEX-F,\"&BE$2&\",,\"&$B702&\",\",data[],1),VLOOKUP(\"OPEX-F,\"&BE$2&\",,\"&$B702&\",\",data[],7),BE$664)","v":0}]
[null,"JOR",null,null,null,null,null,null,null,null,{"$f":"IF(\"OPEX-F,\"&$K52&\",,\"&$B703&\",\"=VLOOKUP(\"OPEX-F,\"&$K52&\",,\"&$B703&\",\",data[],1),VLOOKUP(\"OPEX-F,\"&$K52&\",,\"&$B703&\",\",data[],7),INDEX($E$664:$I$664,$J52))","v":25.971507484667484},null,null,null,null,null,{"$f":"IF(\"OPEX-F,\"&Q$2&\",,\"&$B703&\",\"=VLOOKUP(\"OPEX-F,\"&Q$2&\",,\"&$B703&\",\",data[],1),VLOOKUP(\"OPEX-F,\"&Q$2&\",,\"&$B703&\",\",data[],7),Q$664)","v":13.012853079705877},null,{"$f":"IF(\"OPEX-F,\"&S$2&\",,\"&$B703&\",\"=VLOOKUP(\"OPEX-F,\"&S$2&\",,\"&$B703&\",\",data[],1),VLOOKUP(\"OPEX-F,\"&S$2&\",,\"&$B703&\",\",data[],7),S$664)","v":9.4669104972375679E-5},null,null,null,null,{"$f":"IF(\"OPEX-F,\"&X$2&\",,\"&$B703&\",\"=VLOOKUP(\"OPEX-F,\"&X$2&\",,\"&$B703&\",\",data[],1),VLOOKUP(\"OPEX-F,\"&X$2&\",,\"&$B703&\",\",data[],7),X$664)","v":0},null,{"$f":"IF(\"OPEX-F,\"&Z$2&\",,\"&$B703&\",\"=VLOOKUP(\"OPEX-F,\"&Z$2&\",,\"&$B703&\",\",data[],1),VLOOKUP(\"OPEX-F,\"&Z$2&\",,\"&$B703&\",\",data[],7),Z$664)","v":9.4669104972375679E-5},null,null,null,{"$f":"IF(\"OPEX-F,\"&AD$2&\",,\"&$B703&\",\"=VLOOKUP(\"OPEX-F,\"&AD$2&\",,\"&$B703&\",\",data[],1),VLOOKUP(\"OPEX-F,\"&AD$2&\",,\"&$B703&\",\",data[],7),AD$664)","v":4.150964167347479E-2},null,null,null,null,null,null,{"$f":"IF(\"OPEX-F,\"&AK$2&\",,\"&$B703&\",\"=VLOOKUP(\"OPEX-F,\"&AK$2&\",,\"&$B703&\",\",data[],1),VLOOKUP(\"OPEX-F,\"&AK$2&\",,\"&$B703&\",\",data[],7),AK$664)","v":58.294484220432686},null,{"$f":"IF(\"OPEX-F,\"&AM$2&\",,\"&$B703&\",\"=VLOOKUP(\"OPEX-F,\"&AM$2&\",,\"&$B703&\",\",data[],1),VLOOKUP(\"OPEX-F,\"&AM$2&\",,\"&$B703&\",\",data[],7),AM$664)","v":5.7796175335134681},null,null,null,null,null,null,null,0,null,0,3.1058644002823464E-2,0,0,null,{"$f":"IF(\"OPEX-F,\"&BB$2&\",,\"&$B703&\",\"=VLOOKUP(\"OPEX-F,\"&BB$2&\",,\"&$B703&\",\",data[],1),VLOOKUP(\"OPEX-F,\"&BB$2&\",,\"&$B703&\",\",data[],7),BB$664)","v":7.9535567883452885},null,null,{"$f":"IF(\"OPEX-F,\"&BE$2&\",,\"&$B703&\",\"=VLOOKUP(\"OPEX-F,\"&BE$2&\",,\"&$B703&\",\",data[],1),VLOOKUP(\"OPEX-F,\"&BE$2&\",,\"&$B703&\",\",data[],7),BE$664)","v":0}]
[null,"KAZ",null,null,null,null,null,null,null,null,{"$f":"IF(\"OPEX-F,\"&$K53&\",,\"&$B704&\",\"=VLOOKUP(\"OPEX-F,\"&$K53&\",,\"&$B704&\",\",data[],1),VLOOKUP(\"OPEX-F,\"&$K53&\",,\"&$B704&\",\",data[],7),INDEX($E$664:$I$664,$J53))","v":22.140952599517213},null,null,null,null,null,{"$f":"IF(\"OPEX-F,\"&Q$2&\",,\"&$B704&\",\"=VLOOKUP(\"OPEX-F,\"&Q$2&\",,\"&$B704&\",\",data[],1),VLOOKUP(\"OPEX-F,\"&Q$2&\",,\"&$B704&\",\",data[],7),Q$664)","v":13.012853079705877},null,{"$f":"IF(\"OPEX-F,\"&S$2&\",,\"&$B704&\",\"=VLOOKUP(\"OPEX-F,\"&S$2&\",,\"&$B704&\",\",data[],1),VLOOKUP(\"OPEX-F,\"&S$2&\",,\"&$B704&\",\",data[],7),S$664)","v":9.4669104972375679E-5},null,null,null,null,{"$f":"IF(\"OPEX-F,\"&X$2&\",,\"&$B704&\",\"=VLOOKUP(\"OPEX-F,\"&X$2&\",,\"&$B704&\",\",data[],1),VLOOKUP(\"OPEX-F,\"&X$2&\",,\"&$B704&\",\",data[],7),X$664)","v":0},null,{"$f":"IF(\"OPEX-F,\"&Z$2&\",,\"&$B704&\",\"=VLOOKUP(\"OPEX-F,\"&Z$2&\",,\"&$B704&\",\",data[],1),VLOOKUP(\"OPEX-F,\"&Z$2&\",,\"&$B704&\",\",data[],7),Z$664)","v":9.4669104972375679E-5},null,null,null,{"$f":"IF(\"OPEX-F,\"&AD$2&\",,\"&$B704&\",\"=VLOOKUP(\"OPEX-F,\"&AD$2&\",,\"&$B704&\",\",data[],1),VLOOKUP(\"OPEX-F,\"&AD$2&\",,\"&$B704&\",\",data[],7),AD$664)","v":4.150964167347479E-2},null,null,null,null,null,null,{"$f":"IF(\"OPEX-F,\"&AK$2&\",,\"&$B704&\",\"=VLOOKUP(\"OPEX-F,\"&AK$2&\",,\"&$B704&\",\",data[],1),VLOOKUP(\"OPEX-F,\"&AK$2&\",,\"&$B704&\",\",data[],7),AK$664)","v":58.294484220432686},null,{"$f":"IF(\"OPEX-F,\"&AM$2&\",,\"&$B704&\",\"=VLOOKUP(\"OPEX-F,\"&AM$2&\",,\"&$B704&\",\",data[],1),VLOOKUP(\"OPEX-F,\"&AM$2&\",,\"&$B704&\",\",data[],7),AM$664)","v":5.7796175335134681},null,null,null,null,null,null,null,0,null,0,3.1058644002823464E-2,0,0,null,{"$f":"IF(\"OPEX-F,\"&BB$2&\",,\"&$B704&\",\"=VLOOKUP(\"OPEX-F,\"&BB$2&\",,\"&$B704&\",\",data[],1),VLOOKUP(\"OPEX-F,\"&BB$2&\",,\"&$B704&\",\",data[],7),BB$664)","v":7.9535567883452885},null,null,{"$f":"IF(\"OPEX-F,\"&BE$2&\",,\"&$B704&\",\"=VLOOKUP(\"OPEX-F,\"&BE$2&\",,\"&$B704&\",\",data[],1),VLOOKUP(\"OPEX-F,\"&BE$2&\",,\"&$B704&\",\",data[],7),BE$664)","v":0}]
[null,"KEN",null,null,null,null,null,null,null,null,{"$f":"IF(\"OPEX-F,\"&$K54&\",,\"&$B705&\",\"=VLOOKUP(\"OPEX-F,\"&$K54&\",,\"&$B705&\",\",data[],1),VLOOKUP(\"OPEX-F,\"&$K54&\",,\"&$B705&\",\",data[],7),INDEX($E$664:$I$664,$J54))","v":25.971507484667484},null,null,null,null,null,{"$f":"IF(\"OPEX-F,\"&Q$2&\",,\"&$B705&\",\"=VLOOKUP(\"OPEX-F,\"&Q$2&\",,\"&$B705&\",\",data[],1),VLOOKUP(\"OPEX-F,\"&Q$2&\",,\"&$B705&\",\",data[],7),Q$664)","v":13.012853079705877},null,{"$f":"IF(\"OPEX-F,\"&S$2&\",,\"&$B705&\",\"=VLOOKUP(\"OPEX-F,\"&S$2&\",,\"&$B705&\",\",data[],1),VLOOKUP(\"OPEX-F,\"&S$2&\",,\"&$B705&\",\",data[],7),S$664)","v":9.4669104972375679E-5},null,null,null,null,{"$f":"IF(\"OPEX-F,\"&X$2&\",,\"&$B705&\",\"=VLOOKUP(\"OPEX-F,\"&X$2&\",,\"&$B705&\",\",data[],1),VLOOKUP(\"OPEX-F,\"&X$2&\",,\"&$B705&\",\",data[],7),X$664)","v":0},null,{"$f":"IF(\"OPEX-F,\"&Z$2&\",,\"&$B705&\",\"=VLOOKUP(\"OPEX-F,\"&Z$2&\",,\"&$B705&\",\",data[],1),VLOOKUP(\"OPEX-F,\"&Z$2&\",,\"&$B705&\",\",data[],7),Z$664)","v":9.4669104972375679E-5},null,null,null,{"$f":"IF(\"OPEX-F,\"&AD$2&\",,\"&$B705&\",\"=VLOOKUP(\"OPEX-F,\"&AD$2&\",,\"&$B705&\",\",data[],1),VLOOKUP(\"OPEX-F,\"&AD$2&\",,\"&$B705&\",\",data[],7),AD$664)","v":4.150964167347479E-2},null,null,null,null,null,null,{"$f":"IF(\"OPEX-F,\"&AK$2&\",,\"&$B705&\",\"=VLOOKUP(\"OPEX-F,\"&AK$2&\",,\"&$B705&\",\",data[],1),VLOOKUP(\"OPEX-F,\"&AK$2&\",,\"&$B705&\",\",data[],7),AK$664)","v":58.294484220432686},null,{"$f":"IF(\"OPEX-F,\"&AM$2&\",,\"&$B705&\",\"=VLOOKUP(\"OPEX-F,\"&AM$2&\",,\"&$B705&\",\",data[],1),VLOOKUP(\"OPEX-F,\"&AM$2&\",,\"&$B705&\",\",data[],7),AM$664)","v":5.7796175335134681},null,null,null,null,null,null,null,1.9276674654881809E-2,null,{"$f":"AW$664*AW54","v":0},0,0,0,null,{"$f":"IF(\"OPEX-F,\"&BB$2&\",,\"&$B705&\",\"=VLOOKUP(\"OPEX-F,\"&BB$2&\",,\"&$B705&\",\",data[],1),VLOOKUP(\"OPEX-F,\"&BB$2&\",,\"&$B705&\",\",data[],7),BB$664)","v":7.9535567883452885},null,null,{"$f":"IF(\"OPEX-F,\"&BE$2&\",,\"&$B705&\",\"=VLOOKUP(\"OPEX-F,\"&BE$2&\",,\"&$B705&\",\",data[],1),VLOOKUP(\"OPEX-F,\"&BE$2&\",,\"&$B705&\",\",data[],7),BE$664)","v":0}]
[null,"MAR",null,null,null,null,null,null,null,null,{"$f":"IF(\"OPEX-F,\"&$K55&\",,\"&$B706&\",\"=VLOOKUP(\"OPEX-F,\"&$K55&\",,\"&$B706&\",\",data[],1),VLOOKUP(\"OPEX-F,\"&$K55&\",,\"&$B706&\",\",data[],7),INDEX($E$664:$I$664,$J55))","v":24.583908521169171},null,null,null,null,null,{"$f":"IF(\"OPEX-F,\"&Q$2&\",,\"&$B706&\",\"=VLOOKUP(\"OPEX-F,\"&Q$2&\",,\"&$B706&\",\",data[],1),VLOOKUP(\"OPEX-F,\"&Q$2&\",,\"&$B706&\",\",data[],7),Q$664)","v":13.012853079705877},null,{"$f":"IF(\"OPEX-F,\"&S$2&\",,\"&$B706&\",\"=VLOOKUP(\"OPEX-F,\"&S$2&\",,\"&$B706&\",\",data[],1),VLOOKUP(\"OPEX-F,\"&S$2&\",,\"&$B706&\",\",data[],7),S$664)","v":9.4669104972375679E-5},null,null,null,null,{"$f":"IF(\"OPEX-F,\"&X$2&\",,\"&$B706&\",\"=VLOOKUP(\"OPEX-F,\"&X$2&\",,\"&$B706&\",\",data[],1),VLOOKUP(\"OPEX-F,\"&X$2&\",,\"&$B706&\",\",data[],7),X$664)","v":0},null,{"$f":"IF(\"OPEX-F,\"&Z$2&\",,\"&$B706&\",\"=VLOOKUP(\"OPEX-F,\"&Z$2&\",,\"&$B706&\",\",data[],1),VLOOKUP(\"OPEX-F,\"&Z$2&\",,\"&$B706&\",\",data[],7),Z$664)","v":9.4669104972375679E-5},null,null,null,{"$f":"IF(\"OPEX-F,\"&AD$2&\",,\"&$B706&\",\"=VLOOKUP(\"OPEX-F,\"&AD$2&\",,\"&$B706&\",\",data[],1),VLOOKUP(\"OPEX-F,\"&AD$2&\",,\"&$B706&\",\",data[],7),AD$664)","v":4.150964167347479E-2},null,null,null,null,null,null,{"$f":"IF(\"OPEX-F,\"&AK$2&\",,\"&$B706&\",\"=VLOOKUP(\"OPEX-F,\"&AK$2&\",,\"&$B706&\",\",data[],1),VLOOKUP(\"OPEX-F,\"&AK$2&\",,\"&$B706&\",\",data[],7),AK$664)","v":58.294484220432686},null,{"$f":"IF(\"OPEX-F,\"&AM$2&\",,\"&$B706&\",\"=VLOOKUP(\"OPEX-F,\"&AM$2&\",,\"&$B706&\",\",data[],1),VLOOKUP(\"OPEX-F,\"&AM$2&\",,\"&$B706&\",\",data[],7),AM$664)","v":5.7796175335134681},null,null,null,null,null,null,null,4.0137863353979526E-3,null,0,0,0,0,null,{"$f":"IF(\"OPEX-F,\"&BB$2&\",,\"&$B706&\",\"=VLOOKUP(\"OPEX-F,\"&BB$2&\",,\"&$B706&\",\",data[],1),VLOOKUP(\"OPEX-F,\"&BB$2&\",,\"&$B706&\",\",data[],7),BB$664)","v":7.9535567883452885},null,null,{"$f":"IF(\"OPEX-F,\"&BE$2&\",,\"&$B706&\",\"=VLOOKUP(\"OPEX-F,\"&BE$2&\",,\"&$B706&\",\",data[],1),VLOOKUP(\"OPEX-F,\"&BE$2&\",,\"&$B706&\",\",data[],7),BE$664)","v":0}]
[null,"MAR-BEN",null,null,null,null,null,null,null,null,{"$f":"IF(\"OPEX-F,\"&$K56&\",,\"&$B707&\",\"=VLOOKUP(\"OPEX-F,\"&$K56&\",,\"&$B707&\",\",data[],1),VLOOKUP(\"OPEX-F,\"&$K56&\",,\"&$B707&\",\",data[],7),INDEX($E$664:$I$664,$J56))","v":24.583908521169171},null,null,null,null,null,{"$f":"IF(\"OPEX-F,\"&Q$2&\",,\"&$B707&\",\"=VLOOKUP(\"OPEX-F,\"&Q$2&\",,\"&$B707&\",\",data[],1),VLOOKUP(\"OPEX-F,\"&Q$2&\",,\"&$B707&\",\",data[],7),Q$664)","v":13.012853079705877},null,{"$f":"IF(\"OPEX-F,\"&S$2&\",,\"&$B707&\",\"=VLOOKUP(\"OPEX-F,\"&S$2&\",,\"&$B707&\",\",data[],1),VLOOKUP(\"OPEX-F,\"&S$2&\",,\"&$B707&\",\",data[],7),S$664)","v":9.4669104972375679E-5},null,null,null,null,{"$f":"IF(\"OPEX-F,\"&X$2&\",,\"&$B707&\",\"=VLOOKUP(\"OPEX-F,\"&X$2&\",,\"&$B707&\",\",data[],1),VLOOKUP(\"OPEX-F,\"&X$2&\",,\"&$B707&\",\",data[],7),X$664)","v":0},null,{"$f":"IF(\"OPEX-F,\"&Z$2&\",,\"&$B707&\",\"=VLOOKUP(\"OPEX-F,\"&Z$2&\",,\"&$B707&\",\",data[],1),VLOOKUP(\"OPEX-F,\"&Z$2&\",,\"&$B707&\",\",data[],7),Z$664)","v":9.4669104972375679E-5},null,null,null,{"$f":"IF(\"OPEX-F,\"&AD$2&\",,\"&$B707&\",\"=VLOOKUP(\"OPEX-F,\"&AD$2&\",,\"&$B707&\",\",data[],1),VLOOKUP(\"OPEX-F,\"&AD$2&\",,\"&$B707&\",\",data[],7),AD$664)","v":4.150964167347479E-2},null,null,null,null,null,null,{"$f":"IF(\"OPEX-F,\"&AK$2&\",,\"&$B707&\",\"=VLOOKUP(\"OPEX-F,\"&AK$2&\",,\"&$B707&\",\",data[],1),VLOOKUP(\"OPEX-F,\"&AK$2&\",,\"&$B707&\",\",data[],7),AK$664)","v":58.294484220432686},null,{"$f":"IF(\"OPEX-F,\"&AM$2&\",,\"&$B707&\",\"=VLOOKUP(\"OPEX-F,\"&AM$2&\",,\"&$B707&\",\",data[],1),VLOOKUP(\"OPEX-F,\"&AM$2&\",,\"&$B707&\",\",data[],7),AM$664)","v":5.7796175335134681},null,null,null,null,null,null,null,4.0137863353979526E-3,null,0,0,0,0,null,{"$f":"IF(\"OPEX-F,\"&BB$2&\",,\"&$B707&\",\"=VLOOKUP(\"OPEX-F,\"&BB$2&\",,\"&$B707&\",\",data[],1),VLOOKUP(\"OPEX-F,\"&BB$2&\",,\"&$B707&\",\",data[],7),BB$664)","v":7.9535567883452885},null,null,{"$f":"IF(\"OPEX-F,\"&BE$2&\",,\"&$B707&\",\"=VLOOKUP(\"OPEX-F,\"&BE$2&\",,\"&$B707&\",\",data[],1),VLOOKUP(\"OPEX-F,\"&BE$2&\",,\"&$B707&\",\",data[],7),BE$664)","v":0}]
[null,"MAR-CAS",null,null,null,null,null,null,null,null,{"$f":"IF(\"OPEX-F,\"&$K57&\",,\"&$B708&\",\"=VLOOKUP(\"OPEX-F,\"&$K57&\",,\"&$B708&\",\",data[],1),VLOOKUP(\"OPEX-F,\"&$K57&\",,\"&$B708&\",\",data[],7),INDEX($E$664:$I$664,$J57))","v":24.583908521169171},null,null,null,null,null,{"$f":"IF(\"OPEX-F,\"&Q$2&\",,\"&$B708&\",\"=VLOOKUP(\"OPEX-F,\"&Q$2&\",,\"&$B708&\",\",data[],1),VLOOKUP(\"OPEX-F,\"&Q$2&\",,\"&$B708&\",\",data[],7),Q$664)","v":13.012853079705877},null,{"$f":"IF(\"OPEX-F,\"&S$2&\",,\"&$B708&\",\"=VLOOKUP(\"OPEX-F,\"&S$2&\",,\"&$B708&\",\",data[],1),VLOOKUP(\"OPEX-F,\"&S$2&\",,\"&$B708&\",\",data[],7),S$664)","v":9.4669104972375679E-5},null,null,null,null,{"$f":"IF(\"OPEX-F,\"&X$2&\",,\"&$B708&\",\"=VLOOKUP(\"OPEX-F,\"&X$2&\",,\"&$B708&\",\",data[],1),VLOOKUP(\"OPEX-F,\"&X$2&\",,\"&$B708&\",\",data[],7),X$664)","v":0},null,{"$f":"IF(\"OPEX-F,\"&Z$2&\",,\"&$B708&\",\"=VLOOKUP(\"OPEX-F,\"&Z$2&\",,\"&$B708&\",\",data[],1),VLOOKUP(\"OPEX-F,\"&Z$2&\",,\"&$B708&\",\",data[],7),Z$664)","v":9.4669104972375679E-5},null,null,null,{"$f":"IF(\"OPEX-F,\"&AD$2&\",,\"&$B708&\",\"=VLOOKUP(\"OPEX-F,\"&AD$2&\",,\"&$B708&\",\",data[],1),VLOOKUP(\"OPEX-F,\"&AD$2&\",,\"&$B708&\",\",data[],7),AD$664)","v":4.150964167347479E-2},null,null,null,null,null,null,{"$f":"IF(\"OPEX-F,\"&AK$2&\",,\"&$B708&\",\"=VLOOKUP(\"OPEX-F,\"&AK$2&\",,\"&$B708&\",\",data[],1),VLOOKUP(\"OPEX-F,\"&AK$2&\",,\"&$B708&\",\",data[],7),AK$664)","v":58.294484220432686},null,{"$f":"IF(\"OPEX-F,\"&AM$2&\",,\"&$B708&\",\"=VLOOKUP(\"OPEX-F,\"&AM$2&\",,\"&$B708&\",\",data[],1),VLOOKUP(\"OPEX-F,\"&AM$2&\",,\"&$B708&\",\",data[],7),AM$664)","v":5.7796175335134681},null,null,null,null,null,null,null,4.0137863353979526E-3,null,0,0,0,0,null,{"$f":"IF(\"OPEX-F,\"&BB$2&\",,\"&$B708&\",\"=VLOOKUP(\"OPEX-F,\"&BB$2&\",,\"&$B708&\",\",data[],1),VLOOKUP(\"OPEX-F,\"&BB$2&\",,\"&$B708&\",\",data[],7),BB$664)","v":7.9535567883452885},null,null,{"$f":"IF(\"OPEX-F,\"&BE$2&\",,\"&$B708&\",\"=VLOOKUP(\"OPEX-F,\"&BE$2&\",,\"&$B708&\",\",data[],1),VLOOKUP(\"OPEX-F,\"&BE$2&\",,\"&$B708&\",\",data[],7),BE$664)","v":0}]
[null,"MAR-DAK",null,null,null,null,null,null,null,null,{"$f":"IF(\"OPEX-F,\"&$K58&\",,\"&$B709&\",\"=VLOOKUP(\"OPEX-F,\"&$K58&\",,\"&$B709&\",\",data[],1),VLOOKUP(\"OPEX-F,\"&$K58&\",,\"&$B709&\",\",data[],7),INDEX($E$664:$I$664,$J58))","v":24.583908521169171},null,null,null,null,null,{"$f":"IF(\"OPEX-F,\"&Q$2&\",,\"&$B709&\",\"=VLOOKUP(\"OPEX-F,\"&Q$2&\",,\"&$B709&\",\",data[],1),VLOOKUP(\"OPEX-F,\"&Q$2&\",,\"&$B709&\",\",data[],7),Q$664)","v":13.012853079705877},null,{"$f":"IF(\"OPEX-F,\"&S$2&\",,\"&$B709&\",\"=VLOOKUP(\"OPEX-F,\"&S$2&\",,\"&$B709&\",\",data[],1),VLOOKUP(\"OPEX-F,\"&S$2&\",,\"&$B709&\",\",data[],7),S$664)","v":9.4669104972375679E-5},null,null,null,null,{"$f":"IF(\"OPEX-F,\"&X$2&\",,\"&$B709&\",\"=VLOOKUP(\"OPEX-F,\"&X$2&\",,\"&$B709&\",\",data[],1),VLOOKUP(\"OPEX-F,\"&X$2&\",,\"&$B709&\",\",data[],7),X$664)","v":0},null,{"$f":"IF(\"OPEX-F,\"&Z$2&\",,\"&$B709&\",\"=VLOOKUP(\"OPEX-F,\"&Z$2&\",,\"&$B709&\",\",data[],1),VLOOKUP(\"OPEX-F,\"&Z$2&\",,\"&$B709&\",\",data[],7),Z$664)","v":9.4669104972375679E-5},null,null,null,{"$f":"IF(\"OPEX-F,\"&AD$2&\",,\"&$B709&\",\"=VLOOKUP(\"OPEX-F,\"&AD$2&\",,\"&$B709&\",\",data[],1),VLOOKUP(\"OPEX-F,\"&AD$2&\",,\"&$B709&\",\",data[],7),AD$664)","v":4.150964167347479E-2},null,null,null,null,null,null,{"$f":"IF(\"OPEX-F,\"&AK$2&\",,\"&$B709&\",\"=VLOOKUP(\"OPEX-F,\"&AK$2&\",,\"&$B709&\",\",data[],1),VLOOKUP(\"OPEX-F,\"&AK$2&\",,\"&$B709&\",\",data[],7),AK$664)","v":58.294484220432686},null,{"$f":"IF(\"OPEX-F,\"&AM$2&\",,\"&$B709&\",\"=VLOOKUP(\"OPEX-F,\"&AM$2&\",,\"&$B709&\",\",data[],1),VLOOKUP(\"OPEX-F,\"&AM$2&\",,\"&$B709&\",\",data[],7),AM$664)","v":5.7796175335134681},null,null,null,null,null,null,null,4.0137863353979526E-3,null,0,0,0,0,null,{"$f":"IF(\"OPEX-F,\"&BB$2&\",,\"&$B709&\",\"=VLOOKUP(\"OPEX-F,\"&BB$2&\",,\"&$B709&\",\",data[],1),VLOOKUP(\"OPEX-F,\"&BB$2&\",,\"&$B709&\",\",data[],7),BB$664)","v":7.9535567883452885},null,null,{"$f":"IF(\"OPEX-F,\"&BE$2&\",,\"&$B709&\",\"=VLOOKUP(\"OPEX-F,\"&BE$2&\",,\"&$B709&\",\",data[],1),VLOOKUP(\"OPEX-F,\"&BE$2&\",,\"&$B709&\",\",data[],7),BE$664)","v":0}]
[null,"MAR-DRA",null,null,null,null,null,null,null,null,{"$f":"IF(\"OPEX-F,\"&$K59&\",,\"&$B710&\",\"=VLOOKUP(\"OPEX-F,\"&$K59&\",,\"&$B710&\",\",data[],1),VLOOKUP(\"OPEX-F,\"&$K59&\",,\"&$B710&\",\",data[],7),INDEX($E$664:$I$664,$J59))","v":24.583908521169171},null,null,null,null,null,{"$f":"IF(\"OPEX-F,\"&Q$2&\",,\"&$B710&\",\"=VLOOKUP(\"OPEX-F,\"&Q$2&\",,\"&$B710&\",\",data[],1),VLOOKUP(\"OPEX-F,\"&Q$2&\",,\"&$B710&\",\",data[],7),Q$664)","v":13.012853079705877},null,{"$f":"IF(\"OPEX-F,\"&S$2&\",,\"&$B710&\",\"=VLOOKUP(\"OPEX-F,\"&S$2&\",,\"&$B710&\",\",data[],1),VLOOKUP(\"OPEX-F,\"&S$2&\",,\"&$B710&\",\",data[],7),S$664)","v":9.4669104972375679E-5},null,null,null,null,{"$f":"IF(\"OPEX-F,\"&X$2&\",,\"&$B710&\",\"=VLOOKUP(\"OPEX-F,\"&X$2&\",,\"&$B710&\",\",data[],1),VLOOKUP(\"OPEX-F,\"&X$2&\",,\"&$B710&\",\",data[],7),X$664)","v":0},null,{"$f":"IF(\"OPEX-F,\"&Z$2&\",,\"&$B710&\",\"=VLOOKUP(\"OPEX-F,\"&Z$2&\",,\"&$B710&\",\",data[],1),VLOOKUP(\"OPEX-F,\"&Z$2&\",,\"&$B710&\",\",data[],7),Z$664)","v":9.4669104972375679E-5},null,null,null,{"$f":"IF(\"OPEX-F,\"&AD$2&\",,\"&$B710&\",\"=VLOOKUP(\"OPEX-F,\"&AD$2&\",,\"&$B710&\",\",data[],1),VLOOKUP(\"OPEX-F,\"&AD$2&\",,\"&$B710&\",\",data[],7),AD$664)","v":4.150964167347479E-2},null,null,null,null,null,null,{"$f":"IF(\"OPEX-F,\"&AK$2&\",,\"&$B710&\",\"=VLOOKUP(\"OPEX-F,\"&AK$2&\",,\"&$B710&\",\",data[],1),VLOOKUP(\"OPEX-F,\"&AK$2&\",,\"&$B710&\",\",data[],7),AK$664)","v":58.294484220432686},null,{"$f":"IF(\"OPEX-F,\"&AM$2&\",,\"&$B710&\",\"=VLOOKUP(\"OPEX-F,\"&AM$2&\",,\"&$B710&\",\",data[],1),VLOOKUP(\"OPEX-F,\"&AM$2&\",,\"&$B710&\",\",data[],7),AM$664)","v":5.7796175335134681},null,null,null,null,null,null,null,4.0137863353979526E-3,null,0,0,0,0,null,{"$f":"IF(\"OPEX-F,\"&BB$2&\",,\"&$B710&\",\"=VLOOKUP(\"OPEX-F,\"&BB$2&\",,\"&$B710&\",\",data[],1),VLOOKUP(\"OPEX-F,\"&BB$2&\",,\"&$B710&\",\",data[],7),BB$664)","v":7.9535567883452885},null,null,{"$f":"IF(\"OPEX-F,\"&BE$2&\",,\"&$B710&\",\"=VLOOKUP(\"OPEX-F,\"&BE$2&\",,\"&$B710&\",\",data[],1),VLOOKUP(\"OPEX-F,\"&BE$2&\",,\"&$B710&\",\",data[],7),BE$664)","v":0}]
[null,"MAR-FES",null,null,null,null,null,null,null,null,{"$f":"IF(\"OPEX-F,\"&$K60&\",,\"&$B711&\",\"=VLOOKUP(\"OPEX-F,\"&$K60&\",,\"&$B711&\",\",data[],1),VLOOKUP(\"OPEX-F,\"&$K60&\",,\"&$B711&\",\",data[],7),INDEX($E$664:$I$664,$J60))","v":24.583908521169171},null,null,null,null,null,{"$f":"IF(\"OPEX-F,\"&Q$2&\",,\"&$B711&\",\"=VLOOKUP(\"OPEX-F,\"&Q$2&\",,\"&$B711&\",\",data[],1),VLOOKUP(\"OPEX-F,\"&Q$2&\",,\"&$B711&\",\",data[],7),Q$664)","v":13.012853079705877},null,{"$f":"IF(\"OPEX-F,\"&S$2&\",,\"&$B711&\",\"=VLOOKUP(\"OPEX-F,\"&S$2&\",,\"&$B711&\",\",data[],1),VLOOKUP(\"OPEX-F,\"&S$2&\",,\"&$B711&\",\",data[],7),S$664)","v":9.4669104972375679E-5},null,null,null,null,{"$f":"IF(\"OPEX-F,\"&X$2&\",,\"&$B711&\",\"=VLOOKUP(\"OPEX-F,\"&X$2&\",,\"&$B711&\",\",data[],1),VLOOKUP(\"OPEX-F,\"&X$2&\",,\"&$B711&\",\",data[],7),X$664)","v":0},null,{"$f":"IF(\"OPEX-F,\"&Z$2&\",,\"&$B711&\",\"=VLOOKUP(\"OPEX-F,\"&Z$2&\",,\"&$B711&\",\",data[],1),VLOOKUP(\"OPEX-F,\"&Z$2&\",,\"&$B711&\",\",data[],7),Z$664)","v":9.4669104972375679E-5},null,null,null,{"$f":"IF(\"OPEX-F,\"&AD$2&\",,\"&$B711&\",\"=VLOOKUP(\"OPEX-F,\"&AD$2&\",,\"&$B711&\",\",data[],1),VLOOKUP(\"OPEX-F,\"&AD$2&\",,\"&$B711&\",\",data[],7),AD$664)","v":4.150964167347479E-2},null,null,null,null,null,null,{"$f":"IF(\"OPEX-F,\"&AK$2&\",,\"&$B711&\",\"=VLOOKUP(\"OPEX-F,\"&AK$2&\",,\"&$B711&\",\",data[],1),VLOOKUP(\"OPEX-F,\"&AK$2&\",,\"&$B711&\",\",data[],7),AK$664)","v":58.294484220432686},null,{"$f":"IF(\"OPEX-F,\"&AM$2&\",,\"&$B711&\",\"=VLOOKUP(\"OPEX-F,\"&AM$2&\",,\"&$B711&\",\",data[],1),VLOOKUP(\"OPEX-F,\"&AM$2&\",,\"&$B711&\",\",data[],7),AM$664)","v":5.7796175335134681},null,null,null,null,null,null,null,4.0137863353979526E-3,null,0,0,0,0,null,{"$f":"IF(\"OPEX-F,\"&BB$2&\",,\"&$B711&\",\"=VLOOKUP(\"OPEX-F,\"&BB$2&\",,\"&$B711&\",\",data[],1),VLOOKUP(\"OPEX-F,\"&BB$2&\",,\"&$B711&\",\",data[],7),BB$664)","v":7.9535567883452885},null,null,{"$f":"IF(\"OPEX-F,\"&BE$2&\",,\"&$B711&\",\"=VLOOKUP(\"OPEX-F,\"&BE$2&\",,\"&$B711&\",\",data[],1),VLOOKUP(\"OPEX-F,\"&BE$2&\",,\"&$B711&\",\",data[],7),BE$664)","v":0}]
[null,"MAR-GUE",null,null,null,null,null,null,null,null,{"$f":"IF(\"OPEX-F,\"&$K61&\",,\"&$B712&\",\"=VLOOKUP(\"OPEX-F,\"&$K61&\",,\"&$B712&\",\",data[],1),VLOOKUP(\"OPEX-F,\"&$K61&\",,\"&$B712&\",\",data[],7),INDEX($E$664:$I$664,$J61))","v":24.583908521169171},null,null,null,null,null,{"$f":"IF(\"OPEX-F,\"&Q$2&\",,\"&$B712&\",\"=VLOOKUP(\"OPEX-F,\"&Q$2&\",,\"&$B712&\",\",data[],1),VLOOKUP(\"OPEX-F,\"&Q$2&\",,\"&$B712&\",\",data[],7),Q$664)","v":13.012853079705877},null,{"$f":"IF(\"OPEX-F,\"&S$2&\",,\"&$B712&\",\"=VLOOKUP(\"OPEX-F,\"&S$2&\",,\"&$B712&\",\",data[],1),VLOOKUP(\"OPEX-F,\"&S$2&\",,\"&$B712&\",\",data[],7),S$664)","v":9.4669104972375679E-5},null,null,null,null,{"$f":"IF(\"OPEX-F,\"&X$2&\",,\"&$B712&\",\"=VLOOKUP(\"OPEX-F,\"&X$2&\",,\"&$B712&\",\",data[],1),VLOOKUP(\"OPEX-F,\"&X$2&\",,\"&$B712&\",\",data[],7),X$664)","v":0},null,{"$f":"IF(\"OPEX-F,\"&Z$2&\",,\"&$B712&\",\"=VLOOKUP(\"OPEX-F,\"&Z$2&\",,\"&$B712&\",\",data[],1),VLOOKUP(\"OPEX-F,\"&Z$2&\",,\"&$B712&\",\",data[],7),Z$664)","v":9.4669104972375679E-5},null,null,null,{"$f":"IF(\"OPEX-F,\"&AD$2&\",,\"&$B712&\",\"=VLOOKUP(\"OPEX-F,\"&AD$2&\",,\"&$B712&\",\",data[],1),VLOOKUP(\"OPEX-F,\"&AD$2&\",,\"&$B712&\",\",data[],7),AD$664)","v":4.150964167347479E-2},null,null,null,null,null,null,{"$f":"IF(\"OPEX-F,\"&AK$2&\",,\"&$B712&\",\"=VLOOKUP(\"OPEX-F,\"&AK$2&\",,\"&$B712&\",\",data[],1),VLOOKUP(\"OPEX-F,\"&AK$2&\",,\"&$B712&\",\",data[],7),AK$664)","v":58.294484220432686},null,{"$f":"IF(\"OPEX-F,\"&AM$2&\",,\"&$B712&\",\"=VLOOKUP(\"OPEX-F,\"&AM$2&\",,\"&$B712&\",\",data[],1),VLOOKUP(\"OPEX-F,\"&AM$2&\",,\"&$B712&\",\",data[],7),AM$664)","v":5.7796175335134681},null,null,null,null,null,null,null,4.0137863353979526E-3,null,0,0,0,0,null,{"$f":"IF(\"OPEX-F,\"&BB$2&\",,\"&$B712&\",\"=VLOOKUP(\"OPEX-F,\"&BB$2&\",,\"&$B712&\",\",data[],1),VLOOKUP(\"OPEX-F,\"&BB$2&\",,\"&$B712&\",\",data[],7),BB$664)","v":7.9535567883452885},null,null,{"$f":"IF(\"OPEX-F,\"&BE$2&\",,\"&$B712&\",\"=VLOOKUP(\"OPEX-F,\"&BE$2&\",,\"&$B712&\",\",data[],1),VLOOKUP(\"OPEX-F,\"&BE$2&\",,\"&$B712&\",\",data[],7),BE$664)","v":0}]
[null,"MAR-LAA",null,null,null,null,null,null,null,null,{"$f":"IF(\"OPEX-F,\"&$K62&\",,\"&$B713&\",\"=VLOOKUP(\"OPEX-F,\"&$K62&\",,\"&$B713&\",\",data[],1),VLOOKUP(\"OPEX-F,\"&$K62&\",,\"&$B713&\",\",data[],7),INDEX($E$664:$I$664,$J62))","v":24.583908521169171},null,null,null,null,null,{"$f":"IF(\"OPEX-F,\"&Q$2&\",,\"&$B713&\",\"=VLOOKUP(\"OPEX-F,\"&Q$2&\",,\"&$B713&\",\",data[],1),VLOOKUP(\"OPEX-F,\"&Q$2&\",,\"&$B713&\",\",data[],7),Q$664)","v":13.012853079705877},null,{"$f":"IF(\"OPEX-F,\"&S$2&\",,\"&$B713&\",\"=VLOOKUP(\"OPEX-F,\"&S$2&\",,\"&$B713&\",\",data[],1),VLOOKUP(\"OPEX-F,\"&S$2&\",,\"&$B713&\",\",data[],7),S$664)","v":9.4669104972375679E-5},null,null,null,null,{"$f":"IF(\"OPEX-F,\"&X$2&\",,\"&$B713&\",\"=VLOOKUP(\"OPEX-F,\"&X$2&\",,\"&$B713&\",\",data[],1),VLOOKUP(\"OPEX-F,\"&X$2&\",,\"&$B713&\",\",data[],7),X$664)","v":0},null,{"$f":"IF(\"OPEX-F,\"&Z$2&\",,\"&$B713&\",\"=VLOOKUP(\"OPEX-F,\"&Z$2&\",,\"&$B713&\",\",data[],1),VLOOKUP(\"OPEX-F,\"&Z$2&\",,\"&$B713&\",\",data[],7),Z$664)","v":9.4669104972375679E-5},null,null,null,{"$f":"IF(\"OPEX-F,\"&AD$2&\",,\"&$B713&\",\"=VLOOKUP(\"OPEX-F,\"&AD$2&\",,\"&$B713&\",\",data[],1),VLOOKUP(\"OPEX-F,\"&AD$2&\",,\"&$B713&\",\",data[],7),AD$664)","v":4.150964167347479E-2},null,null,null,null,null,null,{"$f":"IF(\"OPEX-F,\"&AK$2&\",,\"&$B713&\",\"=VLOOKUP(\"OPEX-F,\"&AK$2&\",,\"&$B713&\",\",data[],1),VLOOKUP(\"OPEX-F,\"&AK$2&\",,\"&$B713&\",\",data[],7),AK$664)","v":58.294484220432686},null,{"$f":"IF(\"OPEX-F,\"&AM$2&\",,\"&$B713&\",\"=VLOOKUP(\"OPEX-F,\"&AM$2&\",,\"&$B713&\",\",data[],1),VLOOKUP(\"OPEX-F,\"&AM$2&\",,\"&$B713&\",\",data[],7),AM$664)","v":5.7796175335134681},null,null,null,null,null,null,null,4.0137863353979526E-3,null,0,0,0,0,null,{"$f":"IF(\"OPEX-F,\"&BB$2&\",,\"&$B713&\",\"=VLOOKUP(\"OPEX-F,\"&BB$2&\",,\"&$B713&\",\",data[],1),VLOOKUP(\"OPEX-F,\"&BB$2&\",,\"&$B713&\",\",data[],7),BB$664)","v":7.9535567883452885},null,null,{"$f":"IF(\"OPEX-F,\"&BE$2&\",,\"&$B713&\",\"=VLOOKUP(\"OPEX-F,\"&BE$2&\",,\"&$B713&\",\",data[],1),VLOOKUP(\"OPEX-F,\"&BE$2&\",,\"&$B713&\",\",data[],7),BE$664)","v":0}]
[null,"MAR-LOR",null,null,null,null,null,null,null,null,{"$f":"IF(\"OPEX-F,\"&$K63&\",,\"&$B714&\",\"=VLOOKUP(\"OPEX-F,\"&$K63&\",,\"&$B714&\",\",data[],1),VLOOKUP(\"OPEX-F,\"&$K63&\",,\"&$B714&\",\",data[],7),INDEX($E$664:$I$664,$J63))","v":24.583908521169171},null,null,null,null,null,{"$f":"IF(\"OPEX-F,\"&Q$2&\",,\"&$B714&\",\"=VLOOKUP(\"OPEX-F,\"&Q$2&\",,\"&$B714&\",\",data[],1),VLOOKUP(\"OPEX-F,\"&Q$2&\",,\"&$B714&\",\",data[],7),Q$664)","v":13.012853079705877},null,{"$f":"IF(\"OPEX-F,\"&S$2&\",,\"&$B714&\",\"=VLOOKUP(\"OPEX-F,\"&S$2&\",,\"&$B714&\",\",data[],1),VLOOKUP(\"OPEX-F,\"&S$2&\",,\"&$B714&\",\",data[],7),S$664)","v":9.4669104972375679E-5},null,null,null,null,{"$f":"IF(\"OPEX-F,\"&X$2&\",,\"&$B714&\",\"=VLOOKUP(\"OPEX-F,\"&X$2&\",,\"&$B714&\",\",data[],1),VLOOKUP(\"OPEX-F,\"&X$2&\",,\"&$B714&\",\",data[],7),X$664)","v":0},null,{"$f":"IF(\"OPEX-F,\"&Z$2&\",,\"&$B714&\",\"=VLOOKUP(\"OPEX-F,\"&Z$2&\",,\"&$B714&\",\",data[],1),VLOOKUP(\"OPEX-F,\"&Z$2&\",,\"&$B714&\",\",data[],7),Z$664)","v":9.4669104972375679E-5},null,null,null,{"$f":"IF(\"OPEX-F,\"&AD$2&\",,\"&$B714&\",\"=VLOOKUP(\"OPEX-F,\"&AD$2&\",,\"&$B714&\",\",data[],1),VLOOKUP(\"OPEX-F,\"&AD$2&\",,\"&$B714&\",\",data[],7),AD$664)","v":4.150964167347479E-2},null,null,null,null,null,null,{"$f":"IF(\"OPEX-F,\"&AK$2&\",,\"&$B714&\",\"=VLOOKUP(\"OPEX-F,\"&AK$2&\",,\"&$B714&\",\",data[],1),VLOOKUP(\"OPEX-F,\"&AK$2&\",,\"&$B714&\",\",data[],7),AK$664)","v":58.294484220432686},null,{"$f":"IF(\"OPEX-F,\"&AM$2&\",,\"&$B714&\",\"=VLOOKUP(\"OPEX-F,\"&AM$2&\",,\"&$B714&\",\",data[],1),VLOOKUP(\"OPEX-F,\"&AM$2&\",,\"&$B714&\",\",data[],7),AM$664)","v":5.7796175335134681},null,null,null,null,null,null,null,4.0137863353979526E-3,null,0,0,0,0,null,{"$f":"IF(\"OPEX-F,\"&BB$2&\",,\"&$B714&\",\"=VLOOKUP(\"OPEX-F,\"&BB$2&\",,\"&$B714&\",\",data[],1),VLOOKUP(\"OPEX-F,\"&BB$2&\",,\"&$B714&\",\",data[],7),BB$664)","v":7.9535567883452885},null,null,{"$f":"IF(\"OPEX-F,\"&BE$2&\",,\"&$B714&\",\"=VLOOKUP(\"OPEX-F,\"&BE$2&\",,\"&$B714&\",\",data[],1),VLOOKUP(\"OPEX-F,\"&BE$2&\",,\"&$B714&\",\",data[],7),BE$664)","v":0}]
[null,"MAR-MAR",null,null,null,null,null,null,null,null,{"$f":"IF(\"OPEX-F,\"&$K64&\",,\"&$B715&\",\"=VLOOKUP(\"OPEX-F,\"&$K64&\",,\"&$B715&\",\",data[],1),VLOOKUP(\"OPEX-F,\"&$K64&\",,\"&$B715&\",\",data[],7),INDEX($E$664:$I$664,$J64))","v":24.583908521169171},null,null,null,null,null,{"$f":"IF(\"OPEX-F,\"&Q$2&\",,\"&$B715&\",\"=VLOOKUP(\"OPEX-F,\"&Q$2&\",,\"&$B715&\",\",data[],1),VLOOKUP(\"OPEX-F,\"&Q$2&\",,\"&$B715&\",\",data[],7),Q$664)","v":13.012853079705877},null,{"$f":"IF(\"OPEX-F,\"&S$2&\",,\"&$B715&\",\"=VLOOKUP(\"OPEX-F,\"&S$2&\",,\"&$B715&\",\",data[],1),VLOOKUP(\"OPEX-F,\"&S$2&\",,\"&$B715&\",\",data[],7),S$664)","v":9.4669104972375679E-5},null,null,null,null,{"$f":"IF(\"OPEX-F,\"&X$2&\",,\"&$B715&\",\"=VLOOKUP(\"OPEX-F,\"&X$2&\",,\"&$B715&\",\",data[],1),VLOOKUP(\"OPEX-F,\"&X$2&\",,\"&$B715&\",\",data[],7),X$664)","v":0},null,{"$f":"IF(\"OPEX-F,\"&Z$2&\",,\"&$B715&\",\"=VLOOKUP(\"OPEX-F,\"&Z$2&\",,\"&$B715&\",\",data[],1),VLOOKUP(\"OPEX-F,\"&Z$2&\",,\"&$B715&\",\",data[],7),Z$664)","v":9.4669104972375679E-5},null,null,null,{"$f":"IF(\"OPEX-F,\"&AD$2&\",,\"&$B715&\",\"=VLOOKUP(\"OPEX-F,\"&AD$2&\",,\"&$B715&\",\",data[],1),VLOOKUP(\"OPEX-F,\"&AD$2&\",,\"&$B715&\",\",data[],7),AD$664)","v":4.150964167347479E-2},null,null,null,null,null,null,{"$f":"IF(\"OPEX-F,\"&AK$2&\",,\"&$B715&\",\"=VLOOKUP(\"OPEX-F,\"&AK$2&\",,\"&$B715&\",\",data[],1),VLOOKUP(\"OPEX-F,\"&AK$2&\",,\"&$B715&\",\",data[],7),AK$664)","v":58.294484220432686},null,{"$f":"IF(\"OPEX-F,\"&AM$2&\",,\"&$B715&\",\"=VLOOKUP(\"OPEX-F,\"&AM$2&\",,\"&$B715&\",\",data[],1),VLOOKUP(\"OPEX-F,\"&AM$2&\",,\"&$B715&\",\",data[],7),AM$664)","v":5.7796175335134681},null,null,null,null,null,null,null,4.0137863353979526E-3,null,0,0,0,0,null,{"$f":"IF(\"OPEX-F,\"&BB$2&\",,\"&$B715&\",\"=VLOOKUP(\"OPEX-F,\"&BB$2&\",,\"&$B715&\",\",data[],1),VLOOKUP(\"OPEX-F,\"&BB$2&\",,\"&$B715&\",\",data[],7),BB$664)","v":7.9535567883452885},null,null,{"$f":"IF(\"OPEX-F,\"&BE$2&\",,\"&$B715&\",\"=VLOOKUP(\"OPEX-F,\"&BE$2&\",,\"&$B715&\",\",data[],1),VLOOKUP(\"OPEX-F,\"&BE$2&\",,\"&$B715&\",\",data[],7),BE$664)","v":0}]
[null,"MAR-RAB",null,null,null,null,null,null,null,null,{"$f":"IF(\"OPEX-F,\"&$K65&\",,\"&$B716&\",\"=VLOOKUP(\"OPEX-F,\"&$K65&\",,\"&$B716&\",\",data[],1),VLOOKUP(\"OPEX-F,\"&$K65&\",,\"&$B716&\",\",data[],7),INDEX($E$664:$I$664,$J65))","v":24.583908521169171},null,null,null,null,null,{"$f":"IF(\"OPEX-F,\"&Q$2&\",,\"&$B716&\",\"=VLOOKUP(\"OPEX-F,\"&Q$2&\",,\"&$B716&\",\",data[],1),VLOOKUP(\"OPEX-F,\"&Q$2&\",,\"&$B716&\",\",data[],7),Q$664)","v":13.012853079705877},null,{"$f":"IF(\"OPEX-F,\"&S$2&\",,\"&$B716&\",\"=VLOOKUP(\"OPEX-F,\"&S$2&\",,\"&$B716&\",\",data[],1),VLOOKUP(\"OPEX-F,\"&S$2&\",,\"&$B716&\",\",data[],7),S$664)","v":9.4669104972375679E-5},null,null,null,null,{"$f":"IF(\"OPEX-F,\"&X$2&\",,\"&$B716&\",\"=VLOOKUP(\"OPEX-F,\"&X$2&\",,\"&$B716&\",\",data[],1),VLOOKUP(\"OPEX-F,\"&X$2&\",,\"&$B716&\",\",data[],7),X$664)","v":0},null,{"$f":"IF(\"OPEX-F,\"&Z$2&\",,\"&$B716&\",\"=VLOOKUP(\"OPEX-F,\"&Z$2&\",,\"&$B716&\",\",data[],1),VLOOKUP(\"OPEX-F,\"&Z$2&\",,\"&$B716&\",\",data[],7),Z$664)","v":9.4669104972375679E-5},null,null,null,{"$f":"IF(\"OPEX-F,\"&AD$2&\",,\"&$B716&\",\"=VLOOKUP(\"OPEX-F,\"&AD$2&\",,\"&$B716&\",\",data[],1),VLOOKUP(\"OPEX-F,\"&AD$2&\",,\"&$B716&\",\",data[],7),AD$664)","v":4.150964167347479E-2},null,null,null,null,null,null,{"$f":"IF(\"OPEX-F,\"&AK$2&\",,\"&$B716&\",\"=VLOOKUP(\"OPEX-F,\"&AK$2&\",,\"&$B716&\",\",data[],1),VLOOKUP(\"OPEX-F,\"&AK$2&\",,\"&$B716&\",\",data[],7),AK$664)","v":58.294484220432686},null,{"$f":"IF(\"OPEX-F,\"&AM$2&\",,\"&$B716&\",\"=VLOOKUP(\"OPEX-F,\"&AM$2&\",,\"&$B716&\",\",data[],1),VLOOKUP(\"OPEX-F,\"&AM$2&\",,\"&$B716&\",\",data[],7),AM$664)","v":5.7796175335134681},null,null,null,null,null,null,null,4.0137863353979526E-3,null,0,0,0,0,null,{"$f":"IF(\"OPEX-F,\"&BB$2&\",,\"&$B716&\",\"=VLOOKUP(\"OPEX-F,\"&BB$2&\",,\"&$B716&\",\",data[],1),VLOOKUP(\"OPEX-F,\"&BB$2&\",,\"&$B716&\",\",data[],7),BB$664)","v":7.9535567883452885},null,null,{"$f":"IF(\"OPEX-F,\"&BE$2&\",,\"&$B716&\",\"=VLOOKUP(\"OPEX-F,\"&BE$2&\",,\"&$B716&\",\",data[],1),VLOOKUP(\"OPEX-F,\"&BE$2&\",,\"&$B716&\",\",data[],7),BE$664)","v":0}]
[null,"MAR-SOU",null,null,null,null,null,null,null,null,{"$f":"IF(\"OPEX-F,\"&$K66&\",,\"&$B717&\",\"=VLOOKUP(\"OPEX-F,\"&$K66&\",,\"&$B717&\",\",data[],1),VLOOKUP(\"OPEX-F,\"&$K66&\",,\"&$B717&\",\",data[],7),INDEX($E$664:$I$664,$J66))","v":24.583908521169171},null,null,null,null,null,{"$f":"IF(\"OPEX-F,\"&Q$2&\",,\"&$B717&\",\"=VLOOKUP(\"OPEX-F,\"&Q$2&\",,\"&$B717&\",\",data[],1),VLOOKUP(\"OPEX-F,\"&Q$2&\",,\"&$B717&\",\",data[],7),Q$664)","v":13.012853079705877},null,{"$f":"IF(\"OPEX-F,\"&S$2&\",,\"&$B717&\",\"=VLOOKUP(\"OPEX-F,\"&S$2&\",,\"&$B717&\",\",data[],1),VLOOKUP(\"OPEX-F,\"&S$2&\",,\"&$B717&\",\",data[],7),S$664)","v":9.4669104972375679E-5},null,null,null,null,{"$f":"IF(\"OPEX-F,\"&X$2&\",,\"&$B717&\",\"=VLOOKUP(\"OPEX-F,\"&X$2&\",,\"&$B717&\",\",data[],1),VLOOKUP(\"OPEX-F,\"&X$2&\",,\"&$B717&\",\",data[],7),X$664)","v":0},null,{"$f":"IF(\"OPEX-F,\"&Z$2&\",,\"&$B717&\",\"=VLOOKUP(\"OPEX-F,\"&Z$2&\",,\"&$B717&\",\",data[],1),VLOOKUP(\"OPEX-F,\"&Z$2&\",,\"&$B717&\",\",data[],7),Z$664)","v":9.4669104972375679E-5},null,null,null,{"$f":"IF(\"OPEX-F,\"&AD$2&\",,\"&$B717&\",\"=VLOOKUP(\"OPEX-F,\"&AD$2&\",,\"&$B717&\",\",data[],1),VLOOKUP(\"OPEX-F,\"&AD$2&\",,\"&$B717&\",\",data[],7),AD$664)","v":4.150964167347479E-2},null,null,null,null,null,null,{"$f":"IF(\"OPEX-F,\"&AK$2&\",,\"&$B717&\",\"=VLOOKUP(\"OPEX-F,\"&AK$2&\",,\"&$B717&\",\",data[],1),VLOOKUP(\"OPEX-F,\"&AK$2&\",,\"&$B717&\",\",data[],7),AK$664)","v":58.294484220432686},null,{"$f":"IF(\"OPEX-F,\"&AM$2&\",,\"&$B717&\",\"=VLOOKUP(\"OPEX-F,\"&AM$2&\",,\"&$B717&\",\",data[],1),VLOOKUP(\"OPEX-F,\"&AM$2&\",,\"&$B717&\",\",data[],7),AM$664)","v":5.7796175335134681},null,null,null,null,null,null,null,4.0137863353979526E-3,null,0,0,0,0,null,{"$f":"IF(\"OPEX-F,\"&BB$2&\",,\"&$B717&\",\"=VLOOKUP(\"OPEX-F,\"&BB$2&\",,\"&$B717&\",\",data[],1),VLOOKUP(\"OPEX-F,\"&BB$2&\",,\"&$B717&\",\",data[],7),BB$664)","v":7.9535567883452885},null,null,{"$f":"IF(\"OPEX-F,\"&BE$2&\",,\"&$B717&\",\"=VLOOKUP(\"OPEX-F,\"&BE$2&\",,\"&$B717&\",\",data[],1),VLOOKUP(\"OPEX-F,\"&BE$2&\",,\"&$B717&\",\",data[],7),BE$664)","v":0}]
[null,"MAR-TAN",null,null,null,null,null,null,null,null,{"$f":"IF(\"OPEX-F,\"&$K67&\",,\"&$B718&\",\"=VLOOKUP(\"OPEX-F,\"&$K67&\",,\"&$B718&\",\",data[],1),VLOOKUP(\"OPEX-F,\"&$K67&\",,\"&$B718&\",\",data[],7),INDEX($E$664:$I$664,$J67))","v":24.583908521169171},null,null,null,null,null,{"$f":"IF(\"OPEX-F,\"&Q$2&\",,\"&$B718&\",\"=VLOOKUP(\"OPEX-F,\"&Q$2&\",,\"&$B718&\",\",data[],1),VLOOKUP(\"OPEX-F,\"&Q$2&\",,\"&$B718&\",\",data[],7),Q$664)","v":13.012853079705877},null,{"$f":"IF(\"OPEX-F,\"&S$2&\",,\"&$B718&\",\"=VLOOKUP(\"OPEX-F,\"&S$2&\",,\"&$B718&\",\",data[],1),VLOOKUP(\"OPEX-F,\"&S$2&\",,\"&$B718&\",\",data[],7),S$664)","v":9.4669104972375679E-5},null,null,null,null,{"$f":"IF(\"OPEX-F,\"&X$2&\",,\"&$B718&\",\"=VLOOKUP(\"OPEX-F,\"&X$2&\",,\"&$B718&\",\",data[],1),VLOOKUP(\"OPEX-F,\"&X$2&\",,\"&$B718&\",\",data[],7),X$664)","v":0},null,{"$f":"IF(\"OPEX-F,\"&Z$2&\",,\"&$B718&\",\"=VLOOKUP(\"OPEX-F,\"&Z$2&\",,\"&$B718&\",\",data[],1),VLOOKUP(\"OPEX-F,\"&Z$2&\",,\"&$B718&\",\",data[],7),Z$664)","v":9.4669104972375679E-5},null,null,null,{"$f":"IF(\"OPEX-F,\"&AD$2&\",,\"&$B718&\",\"=VLOOKUP(\"OPEX-F,\"&AD$2&\",,\"&$B718&\",\",data[],1),VLOOKUP(\"OPEX-F,\"&AD$2&\",,\"&$B718&\",\",data[],7),AD$664)","v":4.150964167347479E-2},null,null,null,null,null,null,{"$f":"IF(\"OPEX-F,\"&AK$2&\",,\"&$B718&\",\"=VLOOKUP(\"OPEX-F,\"&AK$2&\",,\"&$B718&\",\",data[],1),VLOOKUP(\"OPEX-F,\"&AK$2&\",,\"&$B718&\",\",data[],7),AK$664)","v":58.294484220432686},null,{"$f":"IF(\"OPEX-F,\"&AM$2&\",,\"&$B718&\",\"=VLOOKUP(\"OPEX-F,\"&AM$2&\",,\"&$B718&\",\",data[],1),VLOOKUP(\"OPEX-F,\"&AM$2&\",,\"&$B718&\",\",data[],7),AM$664)","v":5.7796175335134681},null,null,null,null,null,null,null,4.0137863353979526E-3,null,0,0,0,0,null,{"$f":"IF(\"OPEX-F,\"&BB$2&\",,\"&$B718&\",\"=VLOOKUP(\"OPEX-F,\"&BB$2&\",,\"&$B718&\",\",data[],1),VLOOKUP(\"OPEX-F,\"&BB$2&\",,\"&$B718&\",\",data[],7),BB$664)","v":7.9535567883452885},null,null,{"$f":"IF(\"OPEX-F,\"&BE$2&\",,\"&$B718&\",\"=VLOOKUP(\"OPEX-F,\"&BE$2&\",,\"&$B718&\",\",data[],1),VLOOKUP(\"OPEX-F,\"&BE$2&\",,\"&$B718&\",\",data[],7),BE$664)","v":0}]
[null,"MEX",null,null,null,null,null,null,null,null,{"$f":"IF(\"OPEX-F,\"&$K68&\",,\"&$B719&\",\"=VLOOKUP(\"OPEX-F,\"&$K68&\",,\"&$B719&\",\",data[],1),VLOOKUP(\"OPEX-F,\"&$K68&\",,\"&$B719&\",\",data[],7),INDEX($E$664:$I$664,$J68))","v":21.198123020756672},null,null,null,null,null,{"$f":"IF(\"OPEX-F,\"&Q$2&\",,\"&$B719&\",\"=VLOOKUP(\"OPEX-F,\"&Q$2&\",,\"&$B719&\",\",data[],1),VLOOKUP(\"OPEX-F,\"&Q$2&\",,\"&$B719&\",\",data[],7),Q$664)","v":13.012853079705877},null,{"$f":"IF(\"OPEX-F,\"&S$2&\",,\"&$B719&\",\"=VLOOKUP(\"OPEX-F,\"&S$2&\",,\"&$B719&\",\",data[],1),VLOOKUP(\"OPEX-F,\"&S$2&\",,\"&$B719&\",\",data[],7),S$664)","v":9.4669104972375679E-5},null,null,null,null,{"$f":"IF(\"OPEX-F,\"&X$2&\",,\"&$B719&\",\"=VLOOKUP(\"OPEX-F,\"&X$2&\",,\"&$B719&\",\",data[],1),VLOOKUP(\"OPEX-F,\"&X$2&\",,\"&$B719&\",\",data[],7),X$664)","v":0},null,{"$f":"IF(\"OPEX-F,\"&Z$2&\",,\"&$B719&\",\"=VLOOKUP(\"OPEX-F,\"&Z$2&\",,\"&$B719&\",\",data[],1),VLOOKUP(\"OPEX-F,\"&Z$2&\",,\"&$B719&\",\",data[],7),Z$664)","v":9.4669104972375679E-5},null,null,null,{"$f":"IF(\"OPEX-F,\"&AD$2&\",,\"&$B719&\",\"=VLOOKUP(\"OPEX-F,\"&AD$2&\",,\"&$B719&\",\",data[],1),VLOOKUP(\"OPEX-F,\"&AD$2&\",,\"&$B719&\",\",data[],7),AD$664)","v":4.150964167347479E-2},null,null,null,null,null,null,{"$f":"IF(\"OPEX-F,\"&AK$2&\",,\"&$B719&\",\"=VLOOKUP(\"OPEX-F,\"&AK$2&\",,\"&$B719&\",\",data[],1),VLOOKUP(\"OPEX-F,\"&AK$2&\",,\"&$B719&\",\",data[],7),AK$664)","v":58.294484220432686},null,{"$f":"IF(\"OPEX-F,\"&AM$2&\",,\"&$B719&\",\"=VLOOKUP(\"OPEX-F,\"&AM$2&\",,\"&$B719&\",\",data[],1),VLOOKUP(\"OPEX-F,\"&AM$2&\",,\"&$B719&\",\",data[],7),AM$664)","v":5.7796175335134681},null,null,null,null,null,null,null,1.5428891476019719E-2,null,0,0,0,0,null,{"$f":"IF(\"OPEX-F,\"&BB$2&\",,\"&$B719&\",\"=VLOOKUP(\"OPEX-F,\"&BB$2&\",,\"&$B719&\",\",data[],1),VLOOKUP(\"OPEX-F,\"&BB$2&\",,\"&$B719&\",\",data[],7),BB$664)","v":7.9535567883452885},null,null,{"$f":"IF(\"OPEX-F,\"&BE$2&\",,\"&$B719&\",\"=VLOOKUP(\"OPEX-F,\"&BE$2&\",,\"&$B719&\",\",data[],1),VLOOKUP(\"OPEX-F,\"&BE$2&\",,\"&$B719&\",\",data[],7),BE$664)","v":0}]
[null,"MRT",null,null,null,null,null,null,null,null,{"$f":"IF(\"OPEX-F,\"&$K69&\",,\"&$B720&\",\"=VLOOKUP(\"OPEX-F,\"&$K69&\",,\"&$B720&\",\",data[],1),VLOOKUP(\"OPEX-F,\"&$K69&\",,\"&$B720&\",\",data[],7),INDEX($E$664:$I$664,$J69))","v":25.971507484667484},null,null,null,null,null,{"$f":"IF(\"OPEX-F,\"&Q$2&\",,\"&$B720&\",\"=VLOOKUP(\"OPEX-F,\"&Q$2&\",,\"&$B720&\",\",data[],1),VLOOKUP(\"OPEX-F,\"&Q$2&\",,\"&$B720&\",\",data[],7),Q$664)","v":13.012853079705877},null,{"$f":"IF(\"OPEX-F,\"&S$2&\",,\"&$B720&\",\"=VLOOKUP(\"OPEX-F,\"&S$2&\",,\"&$B720&\",\",data[],1),VLOOKUP(\"OPEX-F,\"&S$2&\",,\"&$B720&\",\",data[],7),S$664)","v":9.4669104972375679E-5},null,null,null,null,{"$f":"IF(\"OPEX-F,\"&X$2&\",,\"&$B720&\",\"=VLOOKUP(\"OPEX-F,\"&X$2&\",,\"&$B720&\",\",data[],1),VLOOKUP(\"OPEX-F,\"&X$2&\",,\"&$B720&\",\",data[],7),X$664)","v":0},null,{"$f":"IF(\"OPEX-F,\"&Z$2&\",,\"&$B720&\",\"=VLOOKUP(\"OPEX-F,\"&Z$2&\",,\"&$B720&\",\",data[],1),VLOOKUP(\"OPEX-F,\"&Z$2&\",,\"&$B720&\",\",data[],7),Z$664)","v":9.4669104972375679E-5},null,null,null,{"$f":"IF(\"OPEX-F,\"&AD$2&\",,\"&$B720&\",\"=VLOOKUP(\"OPEX-F,\"&AD$2&\",,\"&$B720&\",\",data[],1),VLOOKUP(\"OPEX-F,\"&AD$2&\",,\"&$B720&\",\",data[],7),AD$664)","v":4.150964167347479E-2},null,null,null,null,null,null,{"$f":"IF(\"OPEX-F,\"&AK$2&\",,\"&$B720&\",\"=VLOOKUP(\"OPEX-F,\"&AK$2&\",,\"&$B720&\",\",data[],1),VLOOKUP(\"OPEX-F,\"&AK$2&\",,\"&$B720&\",\",data[],7),AK$664)","v":58.294484220432686},null,{"$f":"IF(\"OPEX-F,\"&AM$2&\",,\"&$B720&\",\"=VLOOKUP(\"OPEX-F,\"&AM$2&\",,\"&$B720&\",\",data[],1),VLOOKUP(\"OPEX-F,\"&AM$2&\",,\"&$B720&\",\",data[],7),AM$664)","v":5.7796175335134681},null,null,null,null,null,null,null,0,null,0,4.4369491432604949E-2,0,0,null,{"$f":"IF(\"OPEX-F,\"&BB$2&\",,\"&$B720&\",\"=VLOOKUP(\"OPEX-F,\"&BB$2&\",,\"&$B720&\",\",data[],1),VLOOKUP(\"OPEX-F,\"&BB$2&\",,\"&$B720&\",\",data[],7),BB$664)","v":7.9535567883452885},null,null,{"$f":"IF(\"OPEX-F,\"&BE$2&\",,\"&$B720&\",\"=VLOOKUP(\"OPEX-F,\"&BE$2&\",,\"&$B720&\",\",data[],1),VLOOKUP(\"OPEX-F,\"&BE$2&\",,\"&$B720&\",\",data[],7),BE$664)","v":0}]
[null,"NAM",null,null,null,null,null,null,null,null,{"$f":"IF(\"OPEX-F,\"&$K70&\",,\"&$B721&\",\"=VLOOKUP(\"OPEX-F,\"&$K70&\",,\"&$B721&\",\",data[],1),VLOOKUP(\"OPEX-F,\"&$K70&\",,\"&$B721&\",\",data[],7),INDEX($E$664:$I$664,$J70))","v":25.971507484667484},null,null,null,null,null,{"$f":"IF(\"OPEX-F,\"&Q$2&\",,\"&$B721&\",\"=VLOOKUP(\"OPEX-F,\"&Q$2&\",,\"&$B721&\",\",data[],1),VLOOKUP(\"OPEX-F,\"&Q$2&\",,\"&$B721&\",\",data[],7),Q$664)","v":13.012853079705877},null,{"$f":"IF(\"OPEX-F,\"&S$2&\",,\"&$B721&\",\"=VLOOKUP(\"OPEX-F,\"&S$2&\",,\"&$B721&\",\",data[],1),VLOOKUP(\"OPEX-F,\"&S$2&\",,\"&$B721&\",\",data[],7),S$664)","v":9.4669104972375679E-5},null,null,null,null,{"$f":"IF(\"OPEX-F,\"&X$2&\",,\"&$B721&\",\"=VLOOKUP(\"OPEX-F,\"&X$2&\",,\"&$B721&\",\",data[],1),VLOOKUP(\"OPEX-F,\"&X$2&\",,\"&$B721&\",\",data[],7),X$664)","v":0},null,{"$f":"IF(\"OPEX-F,\"&Z$2&\",,\"&$B721&\",\"=VLOOKUP(\"OPEX-F,\"&Z$2&\",,\"&$B721&\",\",data[],1),VLOOKUP(\"OPEX-F,\"&Z$2&\",,\"&$B721&\",\",data[],7),Z$664)","v":9.4669104972375679E-5},null,null,null,{"$f":"IF(\"OPEX-F,\"&AD$2&\",,\"&$B721&\",\"=VLOOKUP(\"OPEX-F,\"&AD$2&\",,\"&$B721&\",\",data[],1),VLOOKUP(\"OPEX-F,\"&AD$2&\",,\"&$B721&\",\",data[],7),AD$664)","v":4.150964167347479E-2},null,null,null,null,null,null,{"$f":"IF(\"OPEX-F,\"&AK$2&\",,\"&$B721&\",\"=VLOOKUP(\"OPEX-F,\"&AK$2&\",,\"&$B721&\",\",data[],1),VLOOKUP(\"OPEX-F,\"&AK$2&\",,\"&$B721&\",\",data[],7),AK$664)","v":58.294484220432686},null,{"$f":"IF(\"OPEX-F,\"&AM$2&\",,\"&$B721&\",\"=VLOOKUP(\"OPEX-F,\"&AM$2&\",,\"&$B721&\",\",data[],1),VLOOKUP(\"OPEX-F,\"&AM$2&\",,\"&$B721&\",\",data[],7),AM$664)","v":5.7796175335134681},null,null,null,null,null,null,null,1.6132167195825029E-2,null,0,0,0,0,null,{"$f":"IF(\"OPEX-F,\"&BB$2&\",,\"&$B721&\",\"=VLOOKUP(\"OPEX-F,\"&BB$2&\",,\"&$B721&\",\",data[],1),VLOOKUP(\"OPEX-F,\"&BB$2&\",,\"&$B721&\",\",data[],7),BB$664)","v":7.9535567883452885},null,null,{"$f":"IF(\"OPEX-F,\"&BE$2&\",,\"&$B721&\",\"=VLOOKUP(\"OPEX-F,\"&BE$2&\",,\"&$B721&\",\",data[],1),VLOOKUP(\"OPEX-F,\"&BE$2&\",,\"&$B721&\",\",data[],7),BE$664)","v":0}]
[null,"NOR",null,null,null,null,null,null,null,null,{"$f":"IF(\"OPEX-F,\"&$K71&\",,\"&$B722&\",\"=VLOOKUP(\"OPEX-F,\"&$K71&\",,\"&$B722&\",\",data[],1),VLOOKUP(\"OPEX-F,\"&$K71&\",,\"&$B722&\",\",data[],7),INDEX($E$664:$I$664,$J71))","v":21.553006936766362},null,null,null,null,null,{"$f":"IF(\"OPEX-F,\"&Q$2&\",,\"&$B722&\",\"=VLOOKUP(\"OPEX-F,\"&Q$2&\",,\"&$B722&\",\",data[],1),VLOOKUP(\"OPEX-F,\"&Q$2&\",,\"&$B722&\",\",data[],7),Q$664)","v":13.012853079705877},null,{"$f":"IF(\"OPEX-F,\"&S$2&\",,\"&$B722&\",\"=VLOOKUP(\"OPEX-F,\"&S$2&\",,\"&$B722&\",\",data[],1),VLOOKUP(\"OPEX-F,\"&S$2&\",,\"&$B722&\",\",data[],7),S$664)","v":9.4669104972375679E-5},null,null,null,null,{"$f":"IF(\"OPEX-F,\"&X$2&\",,\"&$B722&\",\"=VLOOKUP(\"OPEX-F,\"&X$2&\",,\"&$B722&\",\",data[],1),VLOOKUP(\"OPEX-F,\"&X$2&\",,\"&$B722&\",\",data[],7),X$664)","v":0},null,{"$f":"IF(\"OPEX-F,\"&Z$2&\",,\"&$B722&\",\"=VLOOKUP(\"OPEX-F,\"&Z$2&\",,\"&$B722&\",\",data[],1),VLOOKUP(\"OPEX-F,\"&Z$2&\",,\"&$B722&\",\",data[],7),Z$664)","v":9.4669104972375679E-5},null,null,null,{"$f":"IF(\"OPEX-F,\"&AD$2&\",,\"&$B722&\",\"=VLOOKUP(\"OPEX-F,\"&AD$2&\",,\"&$B722&\",\",data[],1),VLOOKUP(\"OPEX-F,\"&AD$2&\",,\"&$B722&\",\",data[],7),AD$664)","v":4.150964167347479E-2},null,null,null,null,null,null,{"$f":"IF(\"OPEX-F,\"&AK$2&\",,\"&$B722&\",\"=VLOOKUP(\"OPEX-F,\"&AK$2&\",,\"&$B722&\",\",data[],1),VLOOKUP(\"OPEX-F,\"&AK$2&\",,\"&$B722&\",\",data[],7),AK$664)","v":58.294484220432686},null,{"$f":"IF(\"OPEX-F,\"&AM$2&\",,\"&$B722&\",\"=VLOOKUP(\"OPEX-F,\"&AM$2&\",,\"&$B722&\",\",data[],1),VLOOKUP(\"OPEX-F,\"&AM$2&\",,\"&$B722&\",\",data[],7),AM$664)","v":5.7796175335134681},null,null,null,null,null,null,null,0,null,0,0,1.9015496328259264E-3,0,null,{"$f":"IF(\"OPEX-F,\"&BB$2&\",,\"&$B722&\",\"=VLOOKUP(\"OPEX-F,\"&BB$2&\",,\"&$B722&\",\",data[],1),VLOOKUP(\"OPEX-F,\"&BB$2&\",,\"&$B722&\",\",data[],7),BB$664)","v":7.9535567883452885},null,null,{"$f":"IF(\"OPEX-F,\"&BE$2&\",,\"&$B722&\",\"=VLOOKUP(\"OPEX-F,\"&BE$2&\",,\"&$B722&\",\",data[],1),VLOOKUP(\"OPEX-F,\"&BE$2&\",,\"&$B722&\",\",data[],7),BE$664)","v":0}]
[null,"PER",null,null,null,null,null,null,null,null,{"$f":"IF(\"OPEX-F,\"&$K72&\",,\"&$B723&\",\"=VLOOKUP(\"OPEX-F,\"&$K72&\",,\"&$B723&\",\",data[],1),VLOOKUP(\"OPEX-F,\"&$K72&\",,\"&$B723&\",\",data[],7),INDEX($E$664:$I$664,$J72))","v":19.697996677865255},null,null,null,null,null,{"$f":"IF(\"OPEX-F,\"&Q$2&\",,\"&$B723&\",\"=VLOOKUP(\"OPEX-F,\"&Q$2&\",,\"&$B723&\",\",data[],1),VLOOKUP(\"OPEX-F,\"&Q$2&\",,\"&$B723&\",\",data[],7),Q$664)","v":13.012853079705877},null,{"$f":"IF(\"OPEX-F,\"&S$2&\",,\"&$B723&\",\"=VLOOKUP(\"OPEX-F,\"&S$2&\",,\"&$B723&\",\",data[],1),VLOOKUP(\"OPEX-F,\"&S$2&\",,\"&$B723&\",\",data[],7),S$664)","v":9.4669104972375679E-5},null,null,null,null,{"$f":"IF(\"OPEX-F,\"&X$2&\",,\"&$B723&\",\"=VLOOKUP(\"OPEX-F,\"&X$2&\",,\"&$B723&\",\",data[],1),VLOOKUP(\"OPEX-F,\"&X$2&\",,\"&$B723&\",\",data[],7),X$664)","v":0},null,{"$f":"IF(\"OPEX-F,\"&Z$2&\",,\"&$B723&\",\"=VLOOKUP(\"OPEX-F,\"&Z$2&\",,\"&$B723&\",\",data[],1),VLOOKUP(\"OPEX-F,\"&Z$2&\",,\"&$B723&\",\",data[],7),Z$664)","v":9.4669104972375679E-5},null,null,null,{"$f":"IF(\"OPEX-F,\"&AD$2&\",,\"&$B723&\",\"=VLOOKUP(\"OPEX-F,\"&AD$2&\",,\"&$B723&\",\",data[],1),VLOOKUP(\"OPEX-F,\"&AD$2&\",,\"&$B723&\",\",data[],7),AD$664)","v":4.150964167347479E-2},null,null,null,null,null,null,{"$f":"IF(\"OPEX-F,\"&AK$2&\",,\"&$B723&\",\"=VLOOKUP(\"OPEX-F,\"&AK$2&\",,\"&$B723&\",\",data[],1),VLOOKUP(\"OPEX-F,\"&AK$2&\",,\"&$B723&\",\",data[],7),AK$664)","v":58.294484220432686},null,{"$f":"IF(\"OPEX-F,\"&AM$2&\",,\"&$B723&\",\"=VLOOKUP(\"OPEX-F,\"&AM$2&\",,\"&$B723&\",\",data[],1),VLOOKUP(\"OPEX-F,\"&AM$2&\",,\"&$B723&\",\",data[],7),AM$664)","v":5.7796175335134681},null,null,null,null,null,null,null,1.8476911010652297E-2,null,0,0,0,0,null,{"$f":"IF(\"OPEX-F,\"&BB$2&\",,\"&$B723&\",\"=VLOOKUP(\"OPEX-F,\"&BB$2&\",,\"&$B723&\",\",data[],1),VLOOKUP(\"OPEX-F,\"&BB$2&\",,\"&$B723&\",\",data[],7),BB$664)","v":7.9535567883452885},null,null,{"$f":"IF(\"OPEX-F,\"&BE$2&\",,\"&$B723&\",\"=VLOOKUP(\"OPEX-F,\"&BE$2&\",,\"&$B723&\",\",data[],1),VLOOKUP(\"OPEX-F,\"&BE$2&\",,\"&$B723&\",\",data[],7),BE$664)","v":0}]
[null,"PRT",null,null,null,null,null,null,null,null,{"$f":"IF(\"OPEX-F,\"&$K73&\",,\"&$B724&\",\"=VLOOKUP(\"OPEX-F,\"&$K73&\",,\"&$B724&\",\",data[],1),VLOOKUP(\"OPEX-F,\"&$K73&\",,\"&$B724&\",\",data[],7),INDEX($E$664:$I$664,$J73))","v":24.667561425934355},null,null,null,null,null,{"$f":"IF(\"OPEX-F,\"&Q$2&\",,\"&$B724&\",\"=VLOOKUP(\"OPEX-F,\"&Q$2&\",,\"&$B724&\",\",data[],1),VLOOKUP(\"OPEX-F,\"&Q$2&\",,\"&$B724&\",\",data[],7),Q$664)","v":13.012853079705877},null,{"$f":"IF(\"OPEX-F,\"&S$2&\",,\"&$B724&\",\"=VLOOKUP(\"OPEX-F,\"&S$2&\",,\"&$B724&\",\",data[],1),VLOOKUP(\"OPEX-F,\"&S$2&\",,\"&$B724&\",\",data[],7),S$664)","v":9.4669104972375679E-5},null,null,null,null,{"$f":"IF(\"OPEX-F,\"&X$2&\",,\"&$B724&\",\"=VLOOKUP(\"OPEX-F,\"&X$2&\",,\"&$B724&\",\",data[],1),VLOOKUP(\"OPEX-F,\"&X$2&\",,\"&$B724&\",\",data[],7),X$664)","v":0},null,{"$f":"IF(\"OPEX-F,\"&Z$2&\",,\"&$B724&\",\"=VLOOKUP(\"OPEX-F,\"&Z$2&\",,\"&$B724&\",\",data[],1),VLOOKUP(\"OPEX-F,\"&Z$2&\",,\"&$B724&\",\",data[],7),Z$664)","v":9.4669104972375679E-5},null,null,null,{"$f":"IF(\"OPEX-F,\"&AD$2&\",,\"&$B724&\",\"=VLOOKUP(\"OPEX-F,\"&AD$2&\",,\"&$B724&\",\",data[],1),VLOOKUP(\"OPEX-F,\"&AD$2&\",,\"&$B724&\",\",data[],7),AD$664)","v":4.150964167347479E-2},null,null,null,null,null,null,{"$f":"IF(\"OPEX-F,\"&AK$2&\",,\"&$B724&\",\"=VLOOKUP(\"OPEX-F,\"&AK$2&\",,\"&$B724&\",\",data[],1),VLOOKUP(\"OPEX-F,\"&AK$2&\",,\"&$B724&\",\",data[],7),AK$664)","v":58.294484220432686},null,{"$f":"IF(\"OPEX-F,\"&AM$2&\",,\"&$B724&\",\"=VLOOKUP(\"OPEX-F,\"&AM$2&\",,\"&$B724&\",\",data[],1),VLOOKUP(\"OPEX-F,\"&AM$2&\",,\"&$B724&\",\",data[],7),AM$664)","v":5.7796175335134681},null,null,null,null,null,null,null,0,null,0,1.7747796573041978E-2,0,0,null,{"$f":"IF(\"OPEX-F,\"&BB$2&\",,\"&$B724&\",\"=VLOOKUP(\"OPEX-F,\"&BB$2&\",,\"&$B724&\",\",data[],1),VLOOKUP(\"OPEX-F,\"&BB$2&\",,\"&$B724&\",\",data[],7),BB$664)","v":7.9535567883452885},null,null,{"$f":"IF(\"OPEX-F,\"&BE$2&\",,\"&$B724&\",\"=VLOOKUP(\"OPEX-F,\"&BE$2&\",,\"&$B724&\",\",data[],1),VLOOKUP(\"OPEX-F,\"&BE$2&\",,\"&$B724&\",\",data[],7),BE$664)","v":0}]
[null,"RUS",null,null,null,null,null,null,null,null,{"$f":"IF(\"OPEX-F,\"&$K74&\",,\"&$B725&\",\"=VLOOKUP(\"OPEX-F,\"&$K74&\",,\"&$B725&\",\",data[],1),VLOOKUP(\"OPEX-F,\"&$K74&\",,\"&$B725&\",\",data[],7),INDEX($E$664:$I$664,$J74))","v":28.081238314564843},null,null,null,null,null,{"$f":"IF(\"OPEX-F,\"&Q$2&\",,\"&$B725&\",\"=VLOOKUP(\"OPEX-F,\"&Q$2&\",,\"&$B725&\",\",data[],1),VLOOKUP(\"OPEX-F,\"&Q$2&\",,\"&$B725&\",\",data[],7),Q$664)","v":13.012853079705877},null,{"$f":"IF(\"OPEX-F,\"&S$2&\",,\"&$B725&\",\"=VLOOKUP(\"OPEX-F,\"&S$2&\",,\"&$B725&\",\",data[],1),VLOOKUP(\"OPEX-F,\"&S$2&\",,\"&$B725&\",\",data[],7),S$664)","v":9.4669104972375679E-5},null,null,null,null,{"$f":"IF(\"OPEX-F,\"&X$2&\",,\"&$B725&\",\"=VLOOKUP(\"OPEX-F,\"&X$2&\",,\"&$B725&\",\",data[],1),VLOOKUP(\"OPEX-F,\"&X$2&\",,\"&$B725&\",\",data[],7),X$664)","v":0},null,{"$f":"IF(\"OPEX-F,\"&Z$2&\",,\"&$B725&\",\"=VLOOKUP(\"OPEX-F,\"&Z$2&\",,\"&$B725&\",\",data[],1),VLOOKUP(\"OPEX-F,\"&Z$2&\",,\"&$B725&\",\",data[],7),Z$664)","v":9.4669104972375679E-5},null,null,null,{"$f":"IF(\"OPEX-F,\"&AD$2&\",,\"&$B725&\",\"=VLOOKUP(\"OPEX-F,\"&AD$2&\",,\"&$B725&\",\",data[],1),VLOOKUP(\"OPEX-F,\"&AD$2&\",,\"&$B725&\",\",data[],7),AD$664)","v":4.150964167347479E-2},null,null,null,null,null,null,{"$f":"IF(\"OPEX-F,\"&AK$2&\",,\"&$B725&\",\"=VLOOKUP(\"OPEX-F,\"&AK$2&\",,\"&$B725&\",\",data[],1),VLOOKUP(\"OPEX-F,\"&AK$2&\",,\"&$B725&\",\",data[],7),AK$664)","v":58.294484220432686},null,{"$f":"IF(\"OPEX-F,\"&AM$2&\",,\"&$B725&\",\"=VLOOKUP(\"OPEX-F,\"&AM$2&\",,\"&$B725&\",\",data[],1),VLOOKUP(\"OPEX-F,\"&AM$2&\",,\"&$B725&\",\",data[],7),AM$664)","v":5.7796175335134681},null,null,null,null,null,null,null,0,null,{"$f":"AW$664*AW74","v":0},0,3.8030992656518528E-3,0,null,{"$f":"IF(\"OPEX-F,\"&BB$2&\",,\"&$B725&\",\"=VLOOKUP(\"OPEX-F,\"&BB$2&\",,\"&$B725&\",\",data[],1),VLOOKUP(\"OPEX-F,\"&BB$2&\",,\"&$B725&\",\",data[],7),BB$664)","v":7.9535567883452885},null,null,{"$f":"IF(\"OPEX-F,\"&BE$2&\",,\"&$B725&\",\"=VLOOKUP(\"OPEX-F,\"&BE$2&\",,\"&$B725&\",\",data[],1),VLOOKUP(\"OPEX-F,\"&BE$2&\",,\"&$B725&\",\",data[],7),BE$664)","v":0}]
[null,"SAU",null,null,null,null,null,null,null,null,{"$f":"IF(\"OPEX-F,\"&$K75&\",,\"&$B726&\",\"=VLOOKUP(\"OPEX-F,\"&$K75&\",,\"&$B726&\",\",data[],1),VLOOKUP(\"OPEX-F,\"&$K75&\",,\"&$B726&\",\",data[],7),INDEX($E$664:$I$664,$J75))","v":22.858598204578893},null,null,null,null,null,{"$f":"IF(\"OPEX-F,\"&Q$2&\",,\"&$B726&\",\"=VLOOKUP(\"OPEX-F,\"&Q$2&\",,\"&$B726&\",\",data[],1),VLOOKUP(\"OPEX-F,\"&Q$2&\",,\"&$B726&\",\",data[],7),Q$664)","v":13.012853079705877},null,{"$f":"IF(\"OPEX-F,\"&S$2&\",,\"&$B726&\",\"=VLOOKUP(\"OPEX-F,\"&S$2&\",,\"&$B726&\",\",data[],1),VLOOKUP(\"OPEX-F,\"&S$2&\",,\"&$B726&\",\",data[],7),S$664)","v":9.4669104972375679E-5},null,null,null,null,{"$f":"IF(\"OPEX-F,\"&X$2&\",,\"&$B726&\",\"=VLOOKUP(\"OPEX-F,\"&X$2&\",,\"&$B726&\",\",data[],1),VLOOKUP(\"OPEX-F,\"&X$2&\",,\"&$B726&\",\",data[],7),X$664)","v":0},null,{"$f":"IF(\"OPEX-F,\"&Z$2&\",,\"&$B726&\",\"=VLOOKUP(\"OPEX-F,\"&Z$2&\",,\"&$B726&\",\",data[],1),VLOOKUP(\"OPEX-F,\"&Z$2&\",,\"&$B726&\",\",data[],7),Z$664)","v":9.4669104972375679E-5},null,null,null,{"$f":"IF(\"OPEX-F,\"&AD$2&\",,\"&$B726&\",\"=VLOOKUP(\"OPEX-F,\"&AD$2&\",,\"&$B726&\",\",data[],1),VLOOKUP(\"OPEX-F,\"&AD$2&\",,\"&$B726&\",\",data[],7),AD$664)","v":4.150964167347479E-2},null,null,null,null,null,null,{"$f":"IF(\"OPEX-F,\"&AK$2&\",,\"&$B726&\",\"=VLOOKUP(\"OPEX-F,\"&AK$2&\",,\"&$B726&\",\",data[],1),VLOOKUP(\"OPEX-F,\"&AK$2&\",,\"&$B726&\",\",data[],7),AK$664)","v":58.294484220432686},null,{"$f":"IF(\"OPEX-F,\"&AM$2&\",,\"&$B726&\",\"=VLOOKUP(\"OPEX-F,\"&AM$2&\",,\"&$B726&\",\",data[],1),VLOOKUP(\"OPEX-F,\"&AM$2&\",,\"&$B726&\",\",data[],7),AM$664)","v":5.7796175335134681},null,null,null,null,null,null,null,0,null,0,3.9932542289344453E-2,0,0,null,{"$f":"IF(\"OPEX-F,\"&BB$2&\",,\"&$B726&\",\"=VLOOKUP(\"OPEX-F,\"&BB$2&\",,\"&$B726&\",\",data[],1),VLOOKUP(\"OPEX-F,\"&BB$2&\",,\"&$B726&\",\",data[],7),BB$664)","v":7.9535567883452885},null,null,{"$f":"IF(\"OPEX-F,\"&BE$2&\",,\"&$B726&\",\"=VLOOKUP(\"OPEX-F,\"&BE$2&\",,\"&$B726&\",\",data[],1),VLOOKUP(\"OPEX-F,\"&BE$2&\",,\"&$B726&\",\",data[],7),BE$664)","v":0}]
[null,"SWE",null,null,null,null,null,null,null,null,{"$f":"IF(\"OPEX-F,\"&$K76&\",,\"&$B727&\",\"=VLOOKUP(\"OPEX-F,\"&$K76&\",,\"&$B727&\",\",data[],1),VLOOKUP(\"OPEX-F,\"&$K76&\",,\"&$B727&\",\",data[],7),INDEX($E$664:$I$664,$J76))","v":22.754941250219126},null,null,null,null,null,{"$f":"IF(\"OPEX-F,\"&Q$2&\",,\"&$B727&\",\"=VLOOKUP(\"OPEX-F,\"&Q$2&\",,\"&$B727&\",\",data[],1),VLOOKUP(\"OPEX-F,\"&Q$2&\",,\"&$B727&\",\",data[],7),Q$664)","v":13.012853079705877},null,{"$f":"IF(\"OPEX-F,\"&S$2&\",,\"&$B727&\",\"=VLOOKUP(\"OPEX-F,\"&S$2&\",,\"&$B727&\",\",data[],1),VLOOKUP(\"OPEX-F,\"&S$2&\",,\"&$B727&\",\",data[],7),S$664)","v":9.4669104972375679E-5},null,null,null,null,{"$f":"IF(\"OPEX-F,\"&X$2&\",,\"&$B727&\",\"=VLOOKUP(\"OPEX-F,\"&X$2&\",,\"&$B727&\",\",data[],1),VLOOKUP(\"OPEX-F,\"&X$2&\",,\"&$B727&\",\",data[],7),X$664)","v":0},null,{"$f":"IF(\"OPEX-F,\"&Z$2&\",,\"&$B727&\",\"=VLOOKUP(\"OPEX-F,\"&Z$2&\",,\"&$B727&\",\",data[],1),VLOOKUP(\"OPEX-F,\"&Z$2&\",,\"&$B727&\",\",data[],7),Z$664)","v":9.4669104972375679E-5},null,null,null,{"$f":"IF(\"OPEX-F,\"&AD$2&\",,\"&$B727&\",\"=VLOOKUP(\"OPEX-F,\"&AD$2&\",,\"&$B727&\",\",data[],1),VLOOKUP(\"OPEX-F,\"&AD$2&\",,\"&$B727&\",\",data[],7),AD$664)","v":4.150964167347479E-2},null,null,null,null,null,null,{"$f":"IF(\"OPEX-F,\"&AK$2&\",,\"&$B727&\",\"=VLOOKUP(\"OPEX-F,\"&AK$2&\",,\"&$B727&\",\",data[],1),VLOOKUP(\"OPEX-F,\"&AK$2&\",,\"&$B727&\",\",data[],7),AK$664)","v":58.294484220432686},null,{"$f":"IF(\"OPEX-F,\"&AM$2&\",,\"&$B727&\",\"=VLOOKUP(\"OPEX-F,\"&AM$2&\",,\"&$B727&\",\",data[],1),VLOOKUP(\"OPEX-F,\"&AM$2&\",,\"&$B727&\",\",data[],7),AM$664)","v":5.7796175335134681},null,null,null,null,null,null,null,0,null,4.5637191187822236E-3,6.2117288005646924E-3,0,0,null,{"$f":"IF(\"OPEX-F,\"&BB$2&\",,\"&$B727&\",\"=VLOOKUP(\"OPEX-F,\"&BB$2&\",,\"&$B727&\",\",data[],1),VLOOKUP(\"OPEX-F,\"&BB$2&\",,\"&$B727&\",\",data[],7),BB$664)","v":7.9535567883452885},null,null,{"$f":"IF(\"OPEX-F,\"&BE$2&\",,\"&$B727&\",\"=VLOOKUP(\"OPEX-F,\"&BE$2&\",,\"&$B727&\",\",data[],1),VLOOKUP(\"OPEX-F,\"&BE$2&\",,\"&$B727&\",\",data[],7),BE$664)","v":0}]
[null,"THA",null,null,null,null,null,null,null,null,{"$f":"IF(\"OPEX-F,\"&$K77&\",,\"&$B728&\",\"=VLOOKUP(\"OPEX-F,\"&$K77&\",,\"&$B728&\",\",data[],1),VLOOKUP(\"OPEX-F,\"&$K77&\",,\"&$B728&\",\",data[],7),INDEX($E$664:$I$664,$J77))","v":23.354009296132705},null,null,null,null,null,{"$f":"IF(\"OPEX-F,\"&Q$2&\",,\"&$B728&\",\"=VLOOKUP(\"OPEX-F,\"&Q$2&\",,\"&$B728&\",\",data[],1),VLOOKUP(\"OPEX-F,\"&Q$2&\",,\"&$B728&\",\",data[],7),Q$664)","v":13.012853079705877},null,{"$f":"IF(\"OPEX-F,\"&S$2&\",,\"&$B728&\",\"=VLOOKUP(\"OPEX-F,\"&S$2&\",,\"&$B728&\",\",data[],1),VLOOKUP(\"OPEX-F,\"&S$2&\",,\"&$B728&\",\",data[],7),S$664)","v":9.4669104972375679E-5},null,null,null,null,{"$f":"IF(\"OPEX-F,\"&X$2&\",,\"&$B728&\",\"=VLOOKUP(\"OPEX-F,\"&X$2&\",,\"&$B728&\",\",data[],1),VLOOKUP(\"OPEX-F,\"&X$2&\",,\"&$B728&\",\",data[],7),X$664)","v":0},null,{"$f":"IF(\"OPEX-F,\"&Z$2&\",,\"&$B728&\",\"=VLOOKUP(\"OPEX-F,\"&Z$2&\",,\"&$B728&\",\",data[],1),VLOOKUP(\"OPEX-F,\"&Z$2&\",,\"&$B728&\",\",data[],7),Z$664)","v":9.4669104972375679E-5},null,null,null,{"$f":"IF(\"OPEX-F,\"&AD$2&\",,\"&$B728&\",\"=VLOOKUP(\"OPEX-F,\"&AD$2&\",,\"&$B728&\",\",data[],1),VLOOKUP(\"OPEX-F,\"&AD$2&\",,\"&$B728&\",\",data[],7),AD$664)","v":4.150964167347479E-2},null,null,null,null,null,null,{"$f":"IF(\"OPEX-F,\"&AK$2&\",,\"&$B728&\",\"=VLOOKUP(\"OPEX-F,\"&AK$2&\",,\"&$B728&\",\",data[],1),VLOOKUP(\"OPEX-F,\"&AK$2&\",,\"&$B728&\",\",data[],7),AK$664)","v":58.294484220432686},null,{"$f":"IF(\"OPEX-F,\"&AM$2&\",,\"&$B728&\",\"=VLOOKUP(\"OPEX-F,\"&AM$2&\",,\"&$B728&\",\",data[],1),VLOOKUP(\"OPEX-F,\"&AM$2&\",,\"&$B728&\",\",data[],7),AM$664)","v":5.7796175335134681},null,null,null,null,null,null,null,2.7192926676981258E-2,null,0,0,0,0,null,{"$f":"IF(\"OPEX-F,\"&BB$2&\",,\"&$B728&\",\"=VLOOKUP(\"OPEX-F,\"&BB$2&\",,\"&$B728&\",\",data[],1),VLOOKUP(\"OPEX-F,\"&BB$2&\",,\"&$B728&\",\",data[],7),BB$664)","v":7.9535567883452885},null,null,{"$f":"IF(\"OPEX-F,\"&BE$2&\",,\"&$B728&\",\"=VLOOKUP(\"OPEX-F,\"&BE$2&\",,\"&$B728&\",\",data[],1),VLOOKUP(\"OPEX-F,\"&BE$2&\",,\"&$B728&\",\",data[],7),BE$664)","v":0}]
[null,"TUN",null,null,null,null,null,null,null,null,{"$f":"IF(\"OPEX-F,\"&$K78&\",,\"&$B729&\",\"=VLOOKUP(\"OPEX-F,\"&$K78&\",,\"&$B729&\",\",data[],1),VLOOKUP(\"OPEX-F,\"&$K78&\",,\"&$B729&\",\",data[],7),INDEX($E$664:$I$664,$J78))","v":25.971507484667484},null,null,null,null,null,{"$f":"IF(\"OPEX-F,\"&Q$2&\",,\"&$B729&\",\"=VLOOKUP(\"OPEX-F,\"&Q$2&\",,\"&$B729&\",\",data[],1),VLOOKUP(\"OPEX-F,\"&Q$2&\",,\"&$B729&\",\",data[],7),Q$664)","v":13.012853079705877},null,{"$f":"IF(\"OPEX-F,\"&S$2&\",,\"&$B729&\",\"=VLOOKUP(\"OPEX-F,\"&S$2&\",,\"&$B729&\",\",data[],1),VLOOKUP(\"OPEX-F,\"&S$2&\",,\"&$B729&\",\",data[],7),S$664)","v":9.4669104972375679E-5},null,null,null,null,{"$f":"IF(\"OPEX-F,\"&X$2&\",,\"&$B729&\",\"=VLOOKUP(\"OPEX-F,\"&X$2&\",,\"&$B729&\",\",data[],1),VLOOKUP(\"OPEX-F,\"&X$2&\",,\"&$B729&\",\",data[],7),X$664)","v":0},null,{"$f":"IF(\"OPEX-F,\"&Z$2&\",,\"&$B729&\",\"=VLOOKUP(\"OPEX-F,\"&Z$2&\",,\"&$B729&\",\",data[],1),VLOOKUP(\"OPEX-F,\"&Z$2&\",,\"&$B729&\",\",data[],7),Z$664)","v":9.4669104972375679E-5},null,null,null,{"$f":"IF(\"OPEX-F,\"&AD$2&\",,\"&$B729&\",\"=VLOOKUP(\"OPEX-F,\"&AD$2&\",,\"&$B729&\",\",data[],1),VLOOKUP(\"OPEX-F,\"&AD$2&\",,\"&$B729&\",\",data[],7),AD$664)","v":4.150964167347479E-2},null,null,null,null,null,null,{"$f":"IF(\"OPEX-F,\"&AK$2&\",,\"&$B729&\",\"=VLOOKUP(\"OPEX-F,\"&AK$2&\",,\"&$B729&\",\",data[],1),VLOOKUP(\"OPEX-F,\"&AK$2&\",,\"&$B729&\",\",data[],7),AK$664)","v":58.294484220432686},null,{"$f":"IF(\"OPEX-F,\"&AM$2&\",,\"&$B729&\",\"=VLOOKUP(\"OPEX-F,\"&AM$2&\",,\"&$B729&\",\",data[],1),VLOOKUP(\"OPEX-F,\"&AM$2&\",,\"&$B729&\",\",data[],7),AM$664)","v":5.7796175335134681},null,null,null,null,null,null,null,{"$f":"AU$664*AU78","v":0},null,1.0648677943825187E-2,1.1536067772477286E-2,0,0,null,{"$f":"IF(\"OPEX-F,\"&BB$2&\",,\"&$B729&\",\"=VLOOKUP(\"OPEX-F,\"&BB$2&\",,\"&$B729&\",\",data[],1),VLOOKUP(\"OPEX-F,\"&BB$2&\",,\"&$B729&\",\",data[],7),BB$664)","v":7.9535567883452885},null,null,{"$f":"IF(\"OPEX-F,\"&BE$2&\",,\"&$B729&\",\"=VLOOKUP(\"OPEX-F,\"&BE$2&\",,\"&$B729&\",\",data[],1),VLOOKUP(\"OPEX-F,\"&BE$2&\",,\"&$B729&\",\",data[],7),BE$664)","v":0}]
[null,"UKR",null,null,null,null,null,null,null,null,{"$f":"IF(\"OPEX-F,\"&$K79&\",,\"&$B730&\",\"=VLOOKUP(\"OPEX-F,\"&$K79&\",,\"&$B730&\",\",data[],1),VLOOKUP(\"OPEX-F,\"&$K79&\",,\"&$B730&\",\",data[],7),INDEX($E$664:$I$664,$J79))","v":21.553006936766362},null,null,null,null,null,{"$f":"IF(\"OPEX-F,\"&Q$2&\",,\"&$B730&\",\"=VLOOKUP(\"OPEX-F,\"&Q$2&\",,\"&$B730&\",\",data[],1),VLOOKUP(\"OPEX-F,\"&Q$2&\",,\"&$B730&\",\",data[],7),Q$664)","v":13.012853079705877},null,{"$f":"IF(\"OPEX-F,\"&S$2&\",,\"&$B730&\",\"=VLOOKUP(\"OPEX-F,\"&S$2&\",,\"&$B730&\",\",data[],1),VLOOKUP(\"OPEX-F,\"&S$2&\",,\"&$B730&\",\",data[],7),S$664)","v":9.4669104972375679E-5},null,null,null,null,{"$f":"IF(\"OPEX-F,\"&X$2&\",,\"&$B730&\",\"=VLOOKUP(\"OPEX-F,\"&X$2&\",,\"&$B730&\",\",data[],1),VLOOKUP(\"OPEX-F,\"&X$2&\",,\"&$B730&\",\",data[],7),X$664)","v":0},null,{"$f":"IF(\"OPEX-F,\"&Z$2&\",,\"&$B730&\",\"=VLOOKUP(\"OPEX-F,\"&Z$2&\",,\"&$B730&\",\",data[],1),VLOOKUP(\"OPEX-F,\"&Z$2&\",,\"&$B730&\",\",data[],7),Z$664)","v":9.4669104972375679E-5},null,null,null,{"$f":"IF(\"OPEX-F,\"&AD$2&\",,\"&$B730&\",\"=VLOOKUP(\"OPEX-F,\"&AD$2&\",,\"&$B730&\",\",data[],1),VLOOKUP(\"OPEX-F,\"&AD$2&\",,\"&$B730&\",\",data[],7),AD$664)","v":4.150964167347479E-2},null,null,null,null,null,null,{"$f":"IF(\"OPEX-F,\"&AK$2&\",,\"&$B730&\",\"=VLOOKUP(\"OPEX-F,\"&AK$2&\",,\"&$B730&\",\",data[],1),VLOOKUP(\"OPEX-F,\"&AK$2&\",,\"&$B730&\",\",data[],7),AK$664)","v":58.294484220432686},null,{"$f":"IF(\"OPEX-F,\"&AM$2&\",,\"&$B730&\",\"=VLOOKUP(\"OPEX-F,\"&AM$2&\",,\"&$B730&\",\",data[],1),VLOOKUP(\"OPEX-F,\"&AM$2&\",,\"&$B730&\",\",data[],7),AM$664)","v":5.7796175335134681},null,null,null,null,null,null,null,0,null,0,1.3310847429781484E-2,0,0,null,{"$f":"IF(\"OPEX-F,\"&BB$2&\",,\"&$B730&\",\"=VLOOKUP(\"OPEX-F,\"&BB$2&\",,\"&$B730&\",\",data[],1),VLOOKUP(\"OPEX-F,\"&BB$2&\",,\"&$B730&\",\",data[],7),BB$664)","v":7.9535567883452885},null,null,{"$f":"IF(\"OPEX-F,\"&BE$2&\",,\"&$B730&\",\"=VLOOKUP(\"OPEX-F,\"&BE$2&\",,\"&$B730&\",\",data[],1),VLOOKUP(\"OPEX-F,\"&BE$2&\",,\"&$B730&\",\",data[],7),BE$664)","v":0}]
[null,"URY",null,null,null,null,null,null,null,null,{"$f":"IF(\"OPEX-F,\"&$K80&\",,\"&$B731&\",\"=VLOOKUP(\"OPEX-F,\"&$K80&\",,\"&$B731&\",\",data[],1),VLOOKUP(\"OPEX-F,\"&$K80&\",,\"&$B731&\",\",data[],7),INDEX($E$664:$I$664,$J80))","v":29.46982036447309},null,null,null,null,null,{"$f":"IF(\"OPEX-F,\"&Q$2&\",,\"&$B731&\",\"=VLOOKUP(\"OPEX-F,\"&Q$2&\",,\"&$B731&\",\",data[],1),VLOOKUP(\"OPEX-F,\"&Q$2&\",,\"&$B731&\",\",data[],7),Q$664)","v":13.012853079705877},null,{"$f":"IF(\"OPEX-F,\"&S$2&\",,\"&$B731&\",\"=VLOOKUP(\"OPEX-F,\"&S$2&\",,\"&$B731&\",\",data[],1),VLOOKUP(\"OPEX-F,\"&S$2&\",,\"&$B731&\",\",data[],7),S$664)","v":9.4669104972375679E-5},null,null,null,null,{"$f":"IF(\"OPEX-F,\"&X$2&\",,\"&$B731&\",\"=VLOOKUP(\"OPEX-F,\"&X$2&\",,\"&$B731&\",\",data[],1),VLOOKUP(\"OPEX-F,\"&X$2&\",,\"&$B731&\",\",data[],7),X$664)","v":0},null,{"$f":"IF(\"OPEX-F,\"&Z$2&\",,\"&$B731&\",\"=VLOOKUP(\"OPEX-F,\"&Z$2&\",,\"&$B731&\",\",data[],1),VLOOKUP(\"OPEX-F,\"&Z$2&\",,\"&$B731&\",\",data[],7),Z$664)","v":9.4669104972375679E-5},null,null,null,{"$f":"IF(\"OPEX-F,\"&AD$2&\",,\"&$B731&\",\"=VLOOKUP(\"OPEX-F,\"&AD$2&\",,\"&$B731&\",\",data[],1),VLOOKUP(\"OPEX-F,\"&AD$2&\",,\"&$B731&\",\",data[],7),AD$664)","v":4.150964167347479E-2},null,null,null,null,null,null,{"$f":"IF(\"OPEX-F,\"&AK$2&\",,\"&$B731&\",\"=VLOOKUP(\"OPEX-F,\"&AK$2&\",,\"&$B731&\",\",data[],1),VLOOKUP(\"OPEX-F,\"&AK$2&\",,\"&$B731&\",\",data[],7),AK$664)","v":58.294484220432686},null,{"$f":"IF(\"OPEX-F,\"&AM$2&\",,\"&$B731&\",\"=VLOOKUP(\"OPEX-F,\"&AM$2&\",,\"&$B731&\",\",data[],1),VLOOKUP(\"OPEX-F,\"&AM$2&\",,\"&$B731&\",\",data[],7),AM$664)","v":5.7796175335134681},null,null,null,null,null,null,null,1.8875168153029323E-2,null,0,0,0,0,null,{"$f":"IF(\"OPEX-F,\"&BB$2&\",,\"&$B731&\",\"=VLOOKUP(\"OPEX-F,\"&BB$2&\",,\"&$B731&\",\",data[],1),VLOOKUP(\"OPEX-F,\"&BB$2&\",,\"&$B731&\",\",data[],7),BB$664)","v":7.9535567883452885},null,null,{"$f":"IF(\"OPEX-F,\"&BE$2&\",,\"&$B731&\",\"=VLOOKUP(\"OPEX-F,\"&BE$2&\",,\"&$B731&\",\",data[],1),VLOOKUP(\"OPEX-F,\"&BE$2&\",,\"&$B731&\",\",data[],7),BE$664)","v":0}]
[null,"USA",null,null,null,null,null,null,null,null,{"$f":"IF(\"OPEX-F,\"&$K81&\",,\"&$B732&\",\"=VLOOKUP(\"OPEX-F,\"&$K81&\",,\"&$B732&\",\",data[],1),VLOOKUP(\"OPEX-F,\"&$K81&\",,\"&$B732&\",\",data[],7),INDEX($E$664:$I$664,$J81))","v":22.441558718444981},null,null,null,null,null,{"$f":"IF(\"OPEX-F,\"&Q$2&\",,\"&$B732&\",\"=VLOOKUP(\"OPEX-F,\"&Q$2&\",,\"&$B732&\",\",data[],1),VLOOKUP(\"OPEX-F,\"&Q$2&\",,\"&$B732&\",\",data[],7),Q$664)","v":13.012853079705877},null,{"$f":"IF(\"OPEX-F,\"&S$2&\",,\"&$B732&\",\"=VLOOKUP(\"OPEX-F,\"&S$2&\",,\"&$B732&\",\",data[],1),VLOOKUP(\"OPEX-F,\"&S$2&\",,\"&$B732&\",\",data[],7),S$664)","v":9.4669104972375679E-5},null,null,null,null,{"$f":"IF(\"OPEX-F,\"&X$2&\",,\"&$B732&\",\"=VLOOKUP(\"OPEX-F,\"&X$2&\",,\"&$B732&\",\",data[],1),VLOOKUP(\"OPEX-F,\"&X$2&\",,\"&$B732&\",\",data[],7),X$664)","v":0},null,{"$f":"IF(\"OPEX-F,\"&Z$2&\",,\"&$B732&\",\"=VLOOKUP(\"OPEX-F,\"&Z$2&\",,\"&$B732&\",\",data[],1),VLOOKUP(\"OPEX-F,\"&Z$2&\",,\"&$B732&\",\",data[],7),Z$664)","v":9.4669104972375679E-5},null,null,null,{"$f":"IF(\"OPEX-F,\"&AD$2&\",,\"&$B732&\",\"=VLOOKUP(\"OPEX-F,\"&AD$2&\",,\"&$B732&\",\",data[],1),VLOOKUP(\"OPEX-F,\"&AD$2&\",,\"&$B732&\",\",data[],7),AD$664)","v":4.150964167347479E-2},null,null,null,null,null,null,{"$f":"IF(\"OPEX-F,\"&AK$2&\",,\"&$B732&\",\"=VLOOKUP(\"OPEX-F,\"&AK$2&\",,\"&$B732&\",\",data[],1),VLOOKUP(\"OPEX-F,\"&AK$2&\",,\"&$B732&\",\",data[],7),AK$664)","v":58.294484220432686},null,{"$f":"IF(\"OPEX-F,\"&AM$2&\",,\"&$B732&\",\"=VLOOKUP(\"OPEX-F,\"&AM$2&\",,\"&$B732&\",\",data[],1),VLOOKUP(\"OPEX-F,\"&AM$2&\",,\"&$B732&\",\",data[],7),AM$664)","v":5.7796175335134681},null,null,null,null,null,null,null,1.2520970482104722E-2,null,0,0,0,0,null,{"$f":"IF(\"OPEX-F,\"&BB$2&\",,\"&$B732&\",\"=VLOOKUP(\"OPEX-F,\"&BB$2&\",,\"&$B732&\",\",data[],1),VLOOKUP(\"OPEX-F,\"&BB$2&\",,\"&$B732&\",\",data[],7),BB$664)","v":7.9535567883452885},null,null,{"$f":"IF(\"OPEX-F,\"&BE$2&\",,\"&$B732&\",\"=VLOOKUP(\"OPEX-F,\"&BE$2&\",,\"&$B732&\",\",data[],1),VLOOKUP(\"OPEX-F,\"&BE$2&\",,\"&$B732&\",\",data[],7),BE$664)","v":0}]
[null,"VNM",null,null,null,null,null,null,null,null,{"$f":"IF(\"OPEX-F,\"&$K82&\",,\"&$B733&\",\"=VLOOKUP(\"OPEX-F,\"&$K82&\",,\"&$B733&\",\",data[],1),VLOOKUP(\"OPEX-F,\"&$K82&\",,\"&$B733&\",\",data[],7),INDEX($E$664:$I$664,$J82))","v":30.24314499519123},null,null,null,null,null,{"$f":"IF(\"OPEX-F,\"&Q$2&\",,\"&$B733&\",\"=VLOOKUP(\"OPEX-F,\"&Q$2&\",,\"&$B733&\",\",data[],1),VLOOKUP(\"OPEX-F,\"&Q$2&\",,\"&$B733&\",\",data[],7),Q$664)","v":13.012853079705877},null,{"$f":"IF(\"OPEX-F,\"&S$2&\",,\"&$B733&\",\"=VLOOKUP(\"OPEX-F,\"&S$2&\",,\"&$B733&\",\",data[],1),VLOOKUP(\"OPEX-F,\"&S$2&\",,\"&$B733&\",\",data[],7),S$664)","v":9.4669104972375679E-5},null,null,null,null,{"$f":"IF(\"OPEX-F,\"&X$2&\",,\"&$B733&\",\"=VLOOKUP(\"OPEX-F,\"&X$2&\",,\"&$B733&\",\",data[],1),VLOOKUP(\"OPEX-F,\"&X$2&\",,\"&$B733&\",\",data[],7),X$664)","v":0},null,{"$f":"IF(\"OPEX-F,\"&Z$2&\",,\"&$B733&\",\"=VLOOKUP(\"OPEX-F,\"&Z$2&\",,\"&$B733&\",\",data[],1),VLOOKUP(\"OPEX-F,\"&Z$2&\",,\"&$B733&\",\",data[],7),Z$664)","v":9.4669104972375679E-5},null,null,null,{"$f":"IF(\"OPEX-F,\"&AD$2&\",,\"&$B733&\",\"=VLOOKUP(\"OPEX-F,\"&AD$2&\",,\"&$B733&\",\",data[],1),VLOOKUP(\"OPEX-F,\"&AD$2&\",,\"&$B733&\",\",data[],7),AD$664)","v":4.150964167347479E-2},null,null,null,null,null,null,{"$f":"IF(\"OPEX-F,\"&AK$2&\",,\"&$B733&\",\"=VLOOKUP(\"OPEX-F,\"&AK$2&\",,\"&$B733&\",\",data[],1),VLOOKUP(\"OPEX-F,\"&AK$2&\",,\"&$B733&\",\",data[],7),AK$664)","v":58.294484220432686},null,{"$f":"IF(\"OPEX-F,\"&AM$2&\",,\"&$B733&\",\"=VLOOKUP(\"OPEX-F,\"&AM$2&\",,\"&$B733&\",\",data[],1),VLOOKUP(\"OPEX-F,\"&AM$2&\",,\"&$B733&\",\",data[],7),AM$664)","v":5.7796175335134681},null,null,null,null,null,null,null,2.7478554400873097E-2,null,0,0,0,0,null,{"$f":"IF(\"OPEX-F,\"&BB$2&\",,\"&$B733&\",\"=VLOOKUP(\"OPEX-F,\"&BB$2&\",,\"&$B733&\",\",data[],1),VLOOKUP(\"OPEX-F,\"&BB$2&\",,\"&$B733&\",\",data[],7),BB$664)","v":7.9535567883452885},null,null,{"$f":"IF(\"OPEX-F,\"&BE$2&\",,\"&$B733&\",\"=VLOOKUP(\"OPEX-F,\"&BE$2&\",,\"&$B733&\",\",data[],1),VLOOKUP(\"OPEX-F,\"&BE$2&\",,\"&$B733&\",\",data[],7),BE$664)","v":0}]
[null,"ZAF",null,null,null,null,null,null,null,null,{"$f":"IF(\"OPEX-F,\"&$K83&\",,\"&$B734&\",\"=VLOOKUP(\"OPEX-F,\"&$K83&\",,\"&$B734&\",\",data[],1),VLOOKUP(\"OPEX-F,\"&$K83&\",,\"&$B734&\",\",data[],7),INDEX($E$664:$I$664,$J83))","v":24.583908521169171},null,null,null,null,null,{"$f":"IF(\"OPEX-F,\"&Q$2&\",,\"&$B734&\",\"=VLOOKUP(\"OPEX-F,\"&Q$2&\",,\"&$B734&\",\",data[],1),VLOOKUP(\"OPEX-F,\"&Q$2&\",,\"&$B734&\",\",data[],7),Q$664)","v":13.012853079705877},null,{"$f":"IF(\"OPEX-F,\"&S$2&\",,\"&$B734&\",\"=VLOOKUP(\"OPEX-F,\"&S$2&\",,\"&$B734&\",\",data[],1),VLOOKUP(\"OPEX-F,\"&S$2&\",,\"&$B734&\",\",data[],7),S$664)","v":9.4669104972375679E-5},null,null,null,null,{"$f":"IF(\"OPEX-F,\"&X$2&\",,\"&$B734&\",\"=VLOOKUP(\"OPEX-F,\"&X$2&\",,\"&$B734&\",\",data[],1),VLOOKUP(\"OPEX-F,\"&X$2&\",,\"&$B734&\",\",data[],7),X$664)","v":0},null,{"$f":"IF(\"OPEX-F,\"&Z$2&\",,\"&$B734&\",\"=VLOOKUP(\"OPEX-F,\"&Z$2&\",,\"&$B734&\",\",data[],1),VLOOKUP(\"OPEX-F,\"&Z$2&\",,\"&$B734&\",\",data[],7),Z$664)","v":9.4669104972375679E-5},null,null,null,{"$f":"IF(\"OPEX-F,\"&AD$2&\",,\"&$B734&\",\"=VLOOKUP(\"OPEX-F,\"&AD$2&\",,\"&$B734&\",\",data[],1),VLOOKUP(\"OPEX-F,\"&AD$2&\",,\"&$B734&\",\",data[],7),AD$664)","v":4.150964167347479E-2},null,null,null,null,null,null,{"$f":"IF(\"OPEX-F,\"&AK$2&\",,\"&$B734&\",\"=VLOOKUP(\"OPEX-F,\"&AK$2&\",,\"&$B734&\",\",data[],1),VLOOKUP(\"OPEX-F,\"&AK$2&\",,\"&$B734&\",\",data[],7),AK$664)","v":58.294484220432686},null,{"$f":"IF(\"OPEX-F,\"&AM$2&\",,\"&$B734&\",\"=VLOOKUP(\"OPEX-F,\"&AM$2&\",,\"&$B734&\",\",data[],1),VLOOKUP(\"OPEX-F,\"&AM$2&\",,\"&$B734&\",\",data[],7),AM$664)","v":5.7796175335134681},null,null,null,null,null,null,null,1.7735834408949089E-2,null,0,0,0,0,null,{"$f":"IF(\"OPEX-F,\"&BB$2&\",,\"&$B734&\",\"=VLOOKUP(\"OPEX-F,\"&BB$2&\",,\"&$B734&\",\",data[],1),VLOOKUP(\"OPEX-F,\"&BB$2&\",,\"&$B734&\",\",data[],7),BB$664)","v":7.9535567883452885},null,null,{"$f":"IF(\"OPEX-F,\"&BE$2&\",,\"&$B734&\",\"=VLOOKUP(\"OPEX-F,\"&BE$2&\",,\"&$B734&\",\",data[],1),VLOOKUP(\"OPEX-F,\"&BE$2&\",,\"&$B734&\",\",data[],7),BE$664)","v":0}]
[null,"ZAF-EC",null,null,null,null,null,null,null,null,{"$f":"IF(\"OPEX-F,\"&$K84&\",,\"&$B735&\",\"=VLOOKUP(\"OPEX-F,\"&$K84&\",,\"&$B735&\",\",data[],1),VLOOKUP(\"OPEX-F,\"&$K84&\",,\"&$B735&\",\",data[],7),INDEX($E$664:$I$664,$J84))","v":24.583908521169171},null,null,null,null,null,{"$f":"IF(\"OPEX-F,\"&Q$2&\",,\"&$B735&\",\"=VLOOKUP(\"OPEX-F,\"&Q$2&\",,\"&$B735&\",\",data[],1),VLOOKUP(\"OPEX-F,\"&Q$2&\",,\"&$B735&\",\",data[],7),Q$664)","v":13.012853079705877},null,{"$f":"IF(\"OPEX-F,\"&S$2&\",,\"&$B735&\",\"=VLOOKUP(\"OPEX-F,\"&S$2&\",,\"&$B735&\",\",data[],1),VLOOKUP(\"OPEX-F,\"&S$2&\",,\"&$B735&\",\",data[],7),S$664)","v":9.4669104972375679E-5},null,null,null,null,{"$f":"IF(\"OPEX-F,\"&X$2&\",,\"&$B735&\",\"=VLOOKUP(\"OPEX-F,\"&X$2&\",,\"&$B735&\",\",data[],1),VLOOKUP(\"OPEX-F,\"&X$2&\",,\"&$B735&\",\",data[],7),X$664)","v":0},null,{"$f":"IF(\"OPEX-F,\"&Z$2&\",,\"&$B735&\",\"=VLOOKUP(\"OPEX-F,\"&Z$2&\",,\"&$B735&\",\",data[],1),VLOOKUP(\"OPEX-F,\"&Z$2&\",,\"&$B735&\",\",data[],7),Z$664)","v":9.4669104972375679E-5},null,null,null,{"$f":"IF(\"OPEX-F,\"&AD$2&\",,\"&$B735&\",\"=VLOOKUP(\"OPEX-F,\"&AD$2&\",,\"&$B735&\",\",data[],1),VLOOKUP(\"OPEX-F,\"&AD$2&\",,\"&$B735&\",\",data[],7),AD$664)","v":4.150964167347479E-2},null,null,null,null,null,null,{"$f":"IF(\"OPEX-F,\"&AK$2&\",,\"&$B735&\",\"=VLOOKUP(\"OPEX-F,\"&AK$2&\",,\"&$B735&\",\",data[],1),VLOOKUP(\"OPEX-F,\"&AK$2&\",,\"&$B735&\",\",data[],7),AK$664)","v":58.294484220432686},null,{"$f":"IF(\"OPEX-F,\"&AM$2&\",,\"&$B735&\",\"=VLOOKUP(\"OPEX-F,\"&AM$2&\",,\"&$B735&\",\",data[],1),VLOOKUP(\"OPEX-F,\"&AM$2&\",,\"&$B735&\",\",data[],7),AM$664)","v":5.7796175335134681},null,null,null,null,null,null,null,1.7735834408949089E-2,null,0,0,0,0,null,{"$f":"IF(\"OPEX-F,\"&BB$2&\",,\"&$B735&\",\"=VLOOKUP(\"OPEX-F,\"&BB$2&\",,\"&$B735&\",\",data[],1),VLOOKUP(\"OPEX-F,\"&BB$2&\",,\"&$B735&\",\",data[],7),BB$664)","v":7.9535567883452885},null,null,{"$f":"IF(\"OPEX-F,\"&BE$2&\",,\"&$B735&\",\"=VLOOKUP(\"OPEX-F,\"&BE$2&\",,\"&$B735&\",\",data[],1),VLOOKUP(\"OPEX-F,\"&BE$2&\",,\"&$B735&\",\",data[],7),BE$664)","v":0}]
[null,"ZAF-FRS",null,null,null,null,null,null,null,null,{"$f":"IF(\"OPEX-F,\"&$K85&\",,\"&$B736&\",\"=VLOOKUP(\"OPEX-F,\"&$K85&\",,\"&$B736&\",\",data[],1),VLOOKUP(\"OPEX-F,\"&$K85&\",,\"&$B736&\",\",data[],7),INDEX($E$664:$I$664,$J85))","v":24.583908521169171},null,null,null,null,null,{"$f":"IF(\"OPEX-F,\"&Q$2&\",,\"&$B736&\",\"=VLOOKUP(\"OPEX-F,\"&Q$2&\",,\"&$B736&\",\",data[],1),VLOOKUP(\"OPEX-F,\"&Q$2&\",,\"&$B736&\",\",data[],7),Q$664)","v":13.012853079705877},null,{"$f":"IF(\"OPEX-F,\"&S$2&\",,\"&$B736&\",\"=VLOOKUP(\"OPEX-F,\"&S$2&\",,\"&$B736&\",\",data[],1),VLOOKUP(\"OPEX-F,\"&S$2&\",,\"&$B736&\",\",data[],7),S$664)","v":9.4669104972375679E-5},null,null,null,null,{"$f":"IF(\"OPEX-F,\"&X$2&\",,\"&$B736&\",\"=VLOOKUP(\"OPEX-F,\"&X$2&\",,\"&$B736&\",\",data[],1),VLOOKUP(\"OPEX-F,\"&X$2&\",,\"&$B736&\",\",data[],7),X$664)","v":0},null,{"$f":"IF(\"OPEX-F,\"&Z$2&\",,\"&$B736&\",\"=VLOOKUP(\"OPEX-F,\"&Z$2&\",,\"&$B736&\",\",data[],1),VLOOKUP(\"OPEX-F,\"&Z$2&\",,\"&$B736&\",\",data[],7),Z$664)","v":9.4669104972375679E-5},null,null,null,{"$f":"IF(\"OPEX-F,\"&AD$2&\",,\"&$B736&\",\"=VLOOKUP(\"OPEX-F,\"&AD$2&\",,\"&$B736&\",\",data[],1),VLOOKUP(\"OPEX-F,\"&AD$2&\",,\"&$B736&\",\",data[],7),AD$664)","v":4.150964167347479E-2},null,null,null,null,null,null,{"$f":"IF(\"OPEX-F,\"&AK$2&\",,\"&$B736&\",\"=VLOOKUP(\"OPEX-F,\"&AK$2&\",,\"&$B736&\",\",data[],1),VLOOKUP(\"OPEX-F,\"&AK$2&\",,\"&$B736&\",\",data[],7),AK$664)","v":58.294484220432686},null,{"$f":"IF(\"OPEX-F,\"&AM$2&\",,\"&$B736&\",\"=VLOOKUP(\"OPEX-F,\"&AM$2&\",,\"&$B736&\",\",data[],1),VLOOKUP(\"OPEX-F,\"&AM$2&\",,\"&$B736&\",\",data[],7),AM$664)","v":5.7796175335134681},null,null,null,null,null,null,null,1.7735834408949089E-2,null,0,0,0,0,null,{"$f":"IF(\"OPEX-F,\"&BB$2&\",,\"&$B736&\",\"=VLOOKUP(\"OPEX-F,\"&BB$2&\",,\"&$B736&\",\",data[],1),VLOOKUP(\"OPEX-F,\"&BB$2&\",,\"&$B736&\",\",data[],7),BB$664)","v":7.9535567883452885},null,null,{"$f":"IF(\"OPEX-F,\"&BE$2&\",,\"&$B736&\",\"=VLOOKUP(\"OPEX-F,\"&BE$2&\",,\"&$B736&\",\",data[],1),VLOOKUP(\"OPEX-F,\"&BE$2&\",,\"&$B736&\",\",data[],7),BE$664)","v":0}]
[null,"ZAF-GAU",null,null,null,null,null,null,null,null,{"$f":"IF(\"OPEX-F,\"&$K86&\",,\"&$B737&\",\"=VLOOKUP(\"OPEX-F,\"&$K86&\",,\"&$B737&\",\",data[],1),VLOOKUP(\"OPEX-F,\"&$K86&\",,\"&$B737&\",\",data[],7),INDEX($E$664:$I$664,$J86))","v":24.583908521169171},null,null,null,null,null,{"$f":"IF(\"OPEX-F,\"&Q$2&\",,\"&$B737&\",\"=VLOOKUP(\"OPEX-F,\"&Q$2&\",,\"&$B737&\",\",data[],1),VLOOKUP(\"OPEX-F,\"&Q$2&\",,\"&$B737&\",\",data[],7),Q$664)","v":13.012853079705877},null,{"$f":"IF(\"OPEX-F,\"&S$2&\",,\"&$B737&\",\"=VLOOKUP(\"OPEX-F,\"&S$2&\",,\"&$B737&\",\",data[],1),VLOOKUP(\"OPEX-F,\"&S$2&\",,\"&$B737&\",\",data[],7),S$664)","v":9.4669104972375679E-5},null,null,null,null,{"$f":"IF(\"OPEX-F,\"&X$2&\",,\"&$B737&\",\"=VLOOKUP(\"OPEX-F,\"&X$2&\",,\"&$B737&\",\",data[],1),VLOOKUP(\"OPEX-F,\"&X$2&\",,\"&$B737&\",\",data[],7),X$664)","v":0},null,{"$f":"IF(\"OPEX-F,\"&Z$2&\",,\"&$B737&\",\"=VLOOKUP(\"OPEX-F,\"&Z$2&\",,\"&$B737&\",\",data[],1),VLOOKUP(\"OPEX-F,\"&Z$2&\",,\"&$B737&\",\",data[],7),Z$664)","v":9.4669104972375679E-5},null,null,null,{"$f":"IF(\"OPEX-F,\"&AD$2&\",,\"&$B737&\",\"=VLOOKUP(\"OPEX-F,\"&AD$2&\",,\"&$B737&\",\",data[],1),VLOOKUP(\"OPEX-F,\"&AD$2&\",,\"&$B737&\",\",data[],7),AD$664)","v":4.150964167347479E-2},null,null,null,null,null,null,{"$f":"IF(\"OPEX-F,\"&AK$2&\",,\"&$B737&\",\"=VLOOKUP(\"OPEX-F,\"&AK$2&\",,\"&$B737&\",\",data[],1),VLOOKUP(\"OPEX-F,\"&AK$2&\",,\"&$B737&\",\",data[],7),AK$664)","v":58.294484220432686},null,{"$f":"IF(\"OPEX-F,\"&AM$2&\",,\"&$B737&\",\"=VLOOKUP(\"OPEX-F,\"&AM$2&\",,\"&$B737&\",\",data[],1),VLOOKUP(\"OPEX-F,\"&AM$2&\",,\"&$B737&\",\",data[],7),AM$664)","v":5.7796175335134681},null,null,null,null,null,null,null,1.7735834408949089E-2,null,0,0,0,0,null,{"$f":"IF(\"OPEX-F,\"&BB$2&\",,\"&$B737&\",\"=VLOOKUP(\"OPEX-F,\"&BB$2&\",,\"&$B737&\",\",data[],1),VLOOKUP(\"OPEX-F,\"&BB$2&\",,\"&$B737&\",\",data[],7),BB$664)","v":7.9535567883452885},null,null,{"$f":"IF(\"OPEX-F,\"&BE$2&\",,\"&$B737&\",\"=VLOOKUP(\"OPEX-F,\"&BE$2&\",,\"&$B737&\",\",data[],1),VLOOKUP(\"OPEX-F,\"&BE$2&\",,\"&$B737&\",\",data[],7),BE$664)","v":0}]
[null,"ZAF-KWA",null,null,null,null,null,null,null,null,{"$f":"IF(\"OPEX-F,\"&$K87&\",,\"&$B738&\",\"=VLOOKUP(\"OPEX-F,\"&$K87&\",,\"&$B738&\",\",data[],1),VLOOKUP(\"OPEX-F,\"&$K87&\",,\"&$B738&\",\",data[],7),INDEX($E$664:$I$664,$J87))","v":24.583908521169171},null,null,null,null,null,{"$f":"IF(\"OPEX-F,\"&Q$2&\",,\"&$B738&\",\"=VLOOKUP(\"OPEX-F,\"&Q$2&\",,\"&$B738&\",\",data[],1),VLOOKUP(\"OPEX-F,\"&Q$2&\",,\"&$B738&\",\",data[],7),Q$664)","v":13.012853079705877},null,{"$f":"IF(\"OPEX-F,\"&S$2&\",,\"&$B738&\",\"=VLOOKUP(\"OPEX-F,\"&S$2&\",,\"&$B738&\",\",data[],1),VLOOKUP(\"OPEX-F,\"&S$2&\",,\"&$B738&\",\",data[],7),S$664)","v":9.4669104972375679E-5},null,null,null,null,{"$f":"IF(\"OPEX-F,\"&X$2&\",,\"&$B738&\",\"=VLOOKUP(\"OPEX-F,\"&X$2&\",,\"&$B738&\",\",data[],1),VLOOKUP(\"OPEX-F,\"&X$2&\",,\"&$B738&\",\",data[],7),X$664)","v":0},null,{"$f":"IF(\"OPEX-F,\"&Z$2&\",,\"&$B738&\",\"=VLOOKUP(\"OPEX-F,\"&Z$2&\",,\"&$B738&\",\",data[],1),VLOOKUP(\"OPEX-F,\"&Z$2&\",,\"&$B738&\",\",data[],7),Z$664)","v":9.4669104972375679E-5},null,null,null,{"$f":"IF(\"OPEX-F,\"&AD$2&\",,\"&$B738&\",\"=VLOOKUP(\"OPEX-F,\"&AD$2&\",,\"&$B738&\",\",data[],1),VLOOKUP(\"OPEX-F,\"&AD$2&\",,\"&$B738&\",\",data[],7),AD$664)","v":4.150964167347479E-2},null,null,null,null,null,null,{"$f":"IF(\"OPEX-F,\"&AK$2&\",,\"&$B738&\",\"=VLOOKUP(\"OPEX-F,\"&AK$2&\",,\"&$B738&\",\",data[],1),VLOOKUP(\"OPEX-F,\"&AK$2&\",,\"&$B738&\",\",data[],7),AK$664)","v":58.294484220432686},null,{"$f":"IF(\"OPEX-F,\"&AM$2&\",,\"&$B738&\",\"=VLOOKUP(\"OPEX-F,\"&AM$2&\",,\"&$B738&\",\",data[],1),VLOOKUP(\"OPEX-F,\"&AM$2&\",,\"&$B738&\",\",data[],7),AM$664)","v":5.7796175335134681},null,null,null,null,null,null,null,1.7735834408949089E-2,null,0,0,0,0,null,{"$f":"IF(\"OPEX-F,\"&BB$2&\",,\"&$B738&\",\"=VLOOKUP(\"OPEX-F,\"&BB$2&\",,\"&$B738&\",\",data[],1),VLOOKUP(\"OPEX-F,\"&BB$2&\",,\"&$B738&\",\",data[],7),BB$664)","v":7.9535567883452885},null,null,{"$f":"IF(\"OPEX-F,\"&BE$2&\",,\"&$B738&\",\"=VLOOKUP(\"OPEX-F,\"&BE$2&\",,\"&$B738&\",\",data[],1),VLOOKUP(\"OPEX-F,\"&BE$2&\",,\"&$B738&\",\",data[],7),BE$664)","v":0}]
[null,"ZAF-LIM",null,null,null,null,null,null,null,null,{"$f":"IF(\"OPEX-F,\"&$K88&\",,\"&$B739&\",\"=VLOOKUP(\"OPEX-F,\"&$K88&\",,\"&$B739&\",\",data[],1),VLOOKUP(\"OPEX-F,\"&$K88&\",,\"&$B739&\",\",data[],7),INDEX($E$664:$I$664,$J88))","v":24.583908521169171},null,null,null,null,null,{"$f":"IF(\"OPEX-F,\"&Q$2&\",,\"&$B739&\",\"=VLOOKUP(\"OPEX-F,\"&Q$2&\",,\"&$B739&\",\",data[],1),VLOOKUP(\"OPEX-F,\"&Q$2&\",,\"&$B739&\",\",data[],7),Q$664)","v":13.012853079705877},null,{"$f":"IF(\"OPEX-F,\"&S$2&\",,\"&$B739&\",\"=VLOOKUP(\"OPEX-F,\"&S$2&\",,\"&$B739&\",\",data[],1),VLOOKUP(\"OPEX-F,\"&S$2&\",,\"&$B739&\",\",data[],7),S$664)","v":9.4669104972375679E-5},null,null,null,null,{"$f":"IF(\"OPEX-F,\"&X$2&\",,\"&$B739&\",\"=VLOOKUP(\"OPEX-F,\"&X$2&\",,\"&$B739&\",\",data[],1),VLOOKUP(\"OPEX-F,\"&X$2&\",,\"&$B739&\",\",data[],7),X$664)","v":0},null,{"$f":"IF(\"OPEX-F,\"&Z$2&\",,\"&$B739&\",\"=VLOOKUP(\"OPEX-F,\"&Z$2&\",,\"&$B739&\",\",data[],1),VLOOKUP(\"OPEX-F,\"&Z$2&\",,\"&$B739&\",\",data[],7),Z$664)","v":9.4669104972375679E-5},null,null,null,{"$f":"IF(\"OPEX-F,\"&AD$2&\",,\"&$B739&\",\"=VLOOKUP(\"OPEX-F,\"&AD$2&\",,\"&$B739&\",\",data[],1),VLOOKUP(\"OPEX-F,\"&AD$2&\",,\"&$B739&\",\",data[],7),AD$664)","v":4.150964167347479E-2},null,null,null,null,null,null,{"$f":"IF(\"OPEX-F,\"&AK$2&\",,\"&$B739&\",\"=VLOOKUP(\"OPEX-F,\"&AK$2&\",,\"&$B739&\",\",data[],1),VLOOKUP(\"OPEX-F,\"&AK$2&\",,\"&$B739&\",\",data[],7),AK$664)","v":58.294484220432686},null,{"$f":"IF(\"OPEX-F,\"&AM$2&\",,\"&$B739&\",\"=VLOOKUP(\"OPEX-F,\"&AM$2&\",,\"&$B739&\",\",data[],1),VLOOKUP(\"OPEX-F,\"&AM$2&\",,\"&$B739&\",\",data[],7),AM$664)","v":5.7796175335134681},null,null,null,null,null,null,null,1.7735834408949089E-2,null,0,0,0,0,null,{"$f":"IF(\"OPEX-F,\"&BB$2&\",,\"&$B739&\",\"=VLOOKUP(\"OPEX-F,\"&BB$2&\",,\"&$B739&\",\",data[],1),VLOOKUP(\"OPEX-F,\"&BB$2&\",,\"&$B739&\",\",data[],7),BB$664)","v":7.9535567883452885},null,null,{"$f":"IF(\"OPEX-F,\"&BE$2&\",,\"&$B739&\",\"=VLOOKUP(\"OPEX-F,\"&BE$2&\",,\"&$B739&\",\",data[],1),VLOOKUP(\"OPEX-F,\"&BE$2&\",,\"&$B739&\",\",data[],7),BE$664)","v":0}]
[null,"ZAF-MPU",null,null,null,null,null,null,null,null,{"$f":"IF(\"OPEX-F,\"&$K89&\",,\"&$B740&\",\"=VLOOKUP(\"OPEX-F,\"&$K89&\",,\"&$B740&\",\",data[],1),VLOOKUP(\"OPEX-F,\"&$K89&\",,\"&$B740&\",\",data[],7),INDEX($E$664:$I$664,$J89))","v":24.583908521169171},null,null,null,null,null,{"$f":"IF(\"OPEX-F,\"&Q$2&\",,\"&$B740&\",\"=VLOOKUP(\"OPEX-F,\"&Q$2&\",,\"&$B740&\",\",data[],1),VLOOKUP(\"OPEX-F,\"&Q$2&\",,\"&$B740&\",\",data[],7),Q$664)","v":13.012853079705877},null,{"$f":"IF(\"OPEX-F,\"&S$2&\",,\"&$B740&\",\"=VLOOKUP(\"OPEX-F,\"&S$2&\",,\"&$B740&\",\",data[],1),VLOOKUP(\"OPEX-F,\"&S$2&\",,\"&$B740&\",\",data[],7),S$664)","v":9.4669104972375679E-5},null,null,null,null,{"$f":"IF(\"OPEX-F,\"&X$2&\",,\"&$B740&\",\"=VLOOKUP(\"OPEX-F,\"&X$2&\",,\"&$B740&\",\",data[],1),VLOOKUP(\"OPEX-F,\"&X$2&\",,\"&$B740&\",\",data[],7),X$664)","v":0},null,{"$f":"IF(\"OPEX-F,\"&Z$2&\",,\"&$B740&\",\"=VLOOKUP(\"OPEX-F,\"&Z$2&\",,\"&$B740&\",\",data[],1),VLOOKUP(\"OPEX-F,\"&Z$2&\",,\"&$B740&\",\",data[],7),Z$664)","v":9.4669104972375679E-5},null,null,null,{"$f":"IF(\"OPEX-F,\"&AD$2&\",,\"&$B740&\",\"=VLOOKUP(\"OPEX-F,\"&AD$2&\",,\"&$B740&\",\",data[],1),VLOOKUP(\"OPEX-F,\"&AD$2&\",,\"&$B740&\",\",data[],7),AD$664)","v":4.150964167347479E-2},null,null,null,null,null,null,{"$f":"IF(\"OPEX-F,\"&AK$2&\",,\"&$B740&\",\"=VLOOKUP(\"OPEX-F,\"&AK$2&\",,\"&$B740&\",\",data[],1),VLOOKUP(\"OPEX-F,\"&AK$2&\",,\"&$B740&\",\",data[],7),AK$664)","v":58.294484220432686},null,{"$f":"IF(\"OPEX-F,\"&AM$2&\",,\"&$B740&\",\"=VLOOKUP(\"OPEX-F,\"&AM$2&\",,\"&$B740&\",\",data[],1),VLOOKUP(\"OPEX-F,\"&AM$2&\",,\"&$B740&\",\",data[],7),AM$664)","v":5.7796175335134681},null,null,null,null,null,null,null,1.7735834408949089E-2,null,0,0,0,0,null,{"$f":"IF(\"OPEX-F,\"&BB$2&\",,\"&$B740&\",\"=VLOOKUP(\"OPEX-F,\"&BB$2&\",,\"&$B740&\",\",data[],1),VLOOKUP(\"OPEX-F,\"&BB$2&\",,\"&$B740&\",\",data[],7),BB$664)","v":7.9535567883452885},null,null,{"$f":"IF(\"OPEX-F,\"&BE$2&\",,\"&$B740&\",\"=VLOOKUP(\"OPEX-F,\"&BE$2&\",,\"&$B740&\",\",data[],1),VLOOKUP(\"OPEX-F,\"&BE$2&\",,\"&$B740&\",\",data[],7),BE$664)","v":0}]
[null,"ZAF-NC",null,null,null,null,null,null,null,null,{"$f":"IF(\"OPEX-F,\"&$K90&\",,\"&$B741&\",\"=VLOOKUP(\"OPEX-F,\"&$K90&\",,\"&$B741&\",\",data[],1),VLOOKUP(\"OPEX-F,\"&$K90&\",,\"&$B741&\",\",data[],7),INDEX($E$664:$I$664,$J90))","v":24.583908521169171},null,null,null,null,null,{"$f":"IF(\"OPEX-F,\"&Q$2&\",,\"&$B741&\",\"=VLOOKUP(\"OPEX-F,\"&Q$2&\",,\"&$B741&\",\",data[],1),VLOOKUP(\"OPEX-F,\"&Q$2&\",,\"&$B741&\",\",data[],7),Q$664)","v":13.012853079705877},null,{"$f":"IF(\"OPEX-F,\"&S$2&\",,\"&$B741&\",\"=VLOOKUP(\"OPEX-F,\"&S$2&\",,\"&$B741&\",\",data[],1),VLOOKUP(\"OPEX-F,\"&S$2&\",,\"&$B741&\",\",data[],7),S$664)","v":9.4669104972375679E-5},null,null,null,null,{"$f":"IF(\"OPEX-F,\"&X$2&\",,\"&$B741&\",\"=VLOOKUP(\"OPEX-F,\"&X$2&\",,\"&$B741&\",\",data[],1),VLOOKUP(\"OPEX-F,\"&X$2&\",,\"&$B741&\",\",data[],7),X$664)","v":0},null,{"$f":"IF(\"OPEX-F,\"&Z$2&\",,\"&$B741&\",\"=VLOOKUP(\"OPEX-F,\"&Z$2&\",,\"&$B741&\",\",data[],1),VLOOKUP(\"OPEX-F,\"&Z$2&\",,\"&$B741&\",\",data[],7),Z$664)","v":9.4669104972375679E-5},null,null,null,{"$f":"IF(\"OPEX-F,\"&AD$2&\",,\"&$B741&\",\"=VLOOKUP(\"OPEX-F,\"&AD$2&\",,\"&$B741&\",\",data[],1),VLOOKUP(\"OPEX-F,\"&AD$2&\",,\"&$B741&\",\",data[],7),AD$664)","v":4.150964167347479E-2},null,null,null,null,null,null,{"$f":"IF(\"OPEX-F,\"&AK$2&\",,\"&$B741&\",\"=VLOOKUP(\"OPEX-F,\"&AK$2&\",,\"&$B741&\",\",data[],1),VLOOKUP(\"OPEX-F,\"&AK$2&\",,\"&$B741&\",\",data[],7),AK$664)","v":58.294484220432686},null,{"$f":"IF(\"OPEX-F,\"&AM$2&\",,\"&$B741&\",\"=VLOOKUP(\"OPEX-F,\"&AM$2&\",,\"&$B741&\",\",data[],1),VLOOKUP(\"OPEX-F,\"&AM$2&\",,\"&$B741&\",\",data[],7),AM$664)","v":5.7796175335134681},null,null,null,null,null,null,null,1.7735834408949089E-2,null,0,0,0,0,null,{"$f":"IF(\"OPEX-F,\"&BB$2&\",,\"&$B741&\",\"=VLOOKUP(\"OPEX-F,\"&BB$2&\",,\"&$B741&\",\",data[],1),VLOOKUP(\"OPEX-F,\"&BB$2&\",,\"&$B741&\",\",data[],7),BB$664)","v":7.9535567883452885},null,null,{"$f":"IF(\"OPEX-F,\"&BE$2&\",,\"&$B741&\",\"=VLOOKUP(\"OPEX-F,\"&BE$2&\",,\"&$B741&\",\",data[],1),VLOOKUP(\"OPEX-F,\"&BE$2&\",,\"&$B741&\",\",data[],7),BE$664)","v":0}]
[null,"ZAF-NW",null,null,null,null,null,null,null,null,{"$f":"IF(\"OPEX-F,\"&$K91&\",,\"&$B742&\",\"=VLOOKUP(\"OPEX-F,\"&$K91&\",,\"&$B742&\",\",data[],1),VLOOKUP(\"OPEX-F,\"&$K91&\",,\"&$B742&\",\",data[],7),INDEX($E$664:$I$664,$J91))","v":24.583908521169171},null,null,null,null,null,{"$f":"IF(\"OPEX-F,\"&Q$2&\",,\"&$B742&\",\"=VLOOKUP(\"OPEX-F,\"&Q$2&\",,\"&$B742&\",\",data[],1),VLOOKUP(\"OPEX-F,\"&Q$2&\",,\"&$B742&\",\",data[],7),Q$664)","v":13.012853079705877},null,{"$f":"IF(\"OPEX-F,\"&S$2&\",,\"&$B742&\",\"=VLOOKUP(\"OPEX-F,\"&S$2&\",,\"&$B742&\",\",data[],1),VLOOKUP(\"OPEX-F,\"&S$2&\",,\"&$B742&\",\",data[],7),S$664)","v":9.4669104972375679E-5},null,null,null,null,{"$f":"IF(\"OPEX-F,\"&X$2&\",,\"&$B742&\",\"=VLOOKUP(\"OPEX-F,\"&X$2&\",,\"&$B742&\",\",data[],1),VLOOKUP(\"OPEX-F,\"&X$2&\",,\"&$B742&\",\",data[],7),X$664)","v":0},null,{"$f":"IF(\"OPEX-F,\"&Z$2&\",,\"&$B742&\",\"=VLOOKUP(\"OPEX-F,\"&Z$2&\",,\"&$B742&\",\",data[],1),VLOOKUP(\"OPEX-F,\"&Z$2&\",,\"&$B742&\",\",data[],7),Z$664)","v":9.4669104972375679E-5},null,null,null,{"$f":"IF(\"OPEX-F,\"&AD$2&\",,\"&$B742&\",\"=VLOOKUP(\"OPEX-F,\"&AD$2&\",,\"&$B742&\",\",data[],1),VLOOKUP(\"OPEX-F,\"&AD$2&\",,\"&$B742&\",\",data[],7),AD$664)","v":4.150964167347479E-2},null,null,null,null,null,null,{"$f":"IF(\"OPEX-F,\"&AK$2&\",,\"&$B742&\",\"=VLOOKUP(\"OPEX-F,\"&AK$2&\",,\"&$B742&\",\",data[],1),VLOOKUP(\"OPEX-F,\"&AK$2&\",,\"&$B742&\",\",data[],7),AK$664)","v":58.294484220432686},null,{"$f":"IF(\"OPEX-F,\"&AM$2&\",,\"&$B742&\",\"=VLOOKUP(\"OPEX-F,\"&AM$2&\",,\"&$B742&\",\",data[],1),VLOOKUP(\"OPEX-F,\"&AM$2&\",,\"&$B742&\",\",data[],7),AM$664)","v":5.7796175335134681},null,null,null,null,null,null,null,1.7735834408949089E-2,null,0,0,0,0,null,{"$f":"IF(\"OPEX-F,\"&BB$2&\",,\"&$B742&\",\"=VLOOKUP(\"OPEX-F,\"&BB$2&\",,\"&$B742&\",\",data[],1),VLOOKUP(\"OPEX-F,\"&BB$2&\",,\"&$B742&\",\",data[],7),BB$664)","v":7.9535567883452885},null,null,{"$f":"IF(\"OPEX-F,\"&BE$2&\",,\"&$B742&\",\"=VLOOKUP(\"OPEX-F,\"&BE$2&\",,\"&$B742&\",\",data[],1),VLOOKUP(\"OPEX-F,\"&BE$2&\",,\"&$B742&\",\",data[],7),BE$664)","v":0}]
[null,"ZAF-WC",null,null,null,null,null,null,null,null,{"$f":"IF(\"OPEX-F,\"&$K92&\",,\"&$B743&\",\"=VLOOKUP(\"OPEX-F,\"&$K92&\",,\"&$B743&\",\",data[],1),VLOOKUP(\"OPEX-F,\"&$K92&\",,\"&$B743&\",\",data[],7),INDEX($E$664:$I$664,$J92))","v":24.583908521169171},null,null,null,null,null,{"$f":"IF(\"OPEX-F,\"&Q$2&\",,\"&$B743&\",\"=VLOOKUP(\"OPEX-F,\"&Q$2&\",,\"&$B743&\",\",data[],1),VLOOKUP(\"OPEX-F,\"&Q$2&\",,\"&$B743&\",\",data[],7),Q$664)","v":13.012853079705877},null,{"$f":"IF(\"OPEX-F,\"&S$2&\",,\"&$B743&\",\"=VLOOKUP(\"OPEX-F,\"&S$2&\",,\"&$B743&\",\",data[],1),VLOOKUP(\"OPEX-F,\"&S$2&\",,\"&$B743&\",\",data[],7),S$664)","v":9.4669104972375679E-5},null,null,null,null,{"$f":"IF(\"OPEX-F,\"&X$2&\",,\"&$B743&\",\"=VLOOKUP(\"OPEX-F,\"&X$2&\",,\"&$B743&\",\",data[],1),VLOOKUP(\"OPEX-F,\"&X$2&\",,\"&$B743&\",\",data[],7),X$664)","v":0},null,{"$f":"IF(\"OPEX-F,\"&Z$2&\",,\"&$B743&\",\"=VLOOKUP(\"OPEX-F,\"&Z$2&\",,\"&$B743&\",\",data[],1),VLOOKUP(\"OPEX-F,\"&Z$2&\",,\"&$B743&\",\",data[],7),Z$664)","v":9.4669104972375679E-5},null,null,null,{"$f":"IF(\"OPEX-F,\"&AD$2&\",,\"&$B743&\",\"=VLOOKUP(\"OPEX-F,\"&AD$2&\",,\"&$B743&\",\",data[],1),VLOOKUP(\"OPEX-F,\"&AD$2&\",,\"&$B743&\",\",data[],7),AD$664)","v":4.150964167347479E-2},null,null,null,null,null,null,{"$f":"IF(\"OPEX-F,\"&AK$2&\",,\"&$B743&\",\"=VLOOKUP(\"OPEX-F,\"&AK$2&\",,\"&$B743&\",\",data[],1),VLOOKUP(\"OPEX-F,\"&AK$2&\",,\"&$B743&\",\",data[],7),AK$664)","v":58.294484220432686},null,{"$f":"IF(\"OPEX-F,\"&AM$2&\",,\"&$B743&\",\"=VLOOKUP(\"OPEX-F,\"&AM$2&\",,\"&$B743&\",\",data[],1),VLOOKUP(\"OPEX-F,\"&AM$2&\",,\"&$B743&\",\",data[],7),AM$664)","v":5.7796175335134681},null,null,null,null,null,null,null,1.7735834408949089E-2,null,0,0,0,0,null,{"$f":"IF(\"OPEX-F,\"&BB$2&\",,\"&$B743&\",\"=VLOOKUP(\"OPEX-F,\"&BB$2&\",,\"&$B743&\",\",data[],1),VLOOKUP(\"OPEX-F,\"&BB$2&\",,\"&$B743&\",\",data[],7),BB$664)","v":7.9535567883452885},null,null,{"$f":"IF(\"OPEX-F,\"&BE$2&\",,\"&$B743&\",\"=VLOOKUP(\"OPEX-F,\"&BE$2&\",,\"&$B743&\",\",data[],1),VLOOKUP(\"OPEX-F,\"&BE$2&\",,\"&$B743&\",\",data[],7),BE$664)","v":0}]
[]
["opex-o"]
[null,"(DEFAULT)",null,null,{"$f":"IF(\"OPEX-O,\"&E$2&\",,,\"=VLOOKUP(\"OPEX-O,\"&E$2&\",,,\",data[],1),VLOOKUP(\"OPEX-O,\"&E$2&\",,,\",data[],7),0)","v":0},{"$f":"IF(\"OPEX-O,\"&F$2&\",,,\"=VLOOKUP(\"OPEX-O,\"&F$2&\",,,\",data[],1),VLOOKUP(\"OPEX-O,\"&F$2&\",,,\",data[],7),0)","v":0},{"$f":"IF(\"OPEX-O,\"&G$2&\",,,\"=VLOOKUP(\"OPEX-O,\"&G$2&\",,,\",data[],1),VLOOKUP(\"OPEX-O,\"&G$2&\",,,\",data[],7),0)","v":0},{"$f":"IF(\"OPEX-O,\"&H$2&\",,,\"=VLOOKUP(\"OPEX-O,\"&H$2&\",,,\",data[],1),VLOOKUP(\"OPEX-O,\"&H$2&\",,,\",data[],7),0)","v":0},{"$f":"IF(\"OPEX-O,\"&I$2&\",,,\"=VLOOKUP(\"OPEX-O,\"&I$2&\",,,\",data[],1),VLOOKUP(\"OPEX-O,\"&I$2&\",,,\",data[],7),0)","v":0},null,null,null,null,null,null,null,{"$f":"IF(\"OPEX-O,\"&Q$2&\",,,\"=VLOOKUP(\"OPEX-O,\"&Q$2&\",,,\",data[],1),VLOOKUP(\"OPEX-O,\"&Q$2&\",,,\",data[],7),0)","v":0},null,{"$f":"IF(\"OPEX-O,\"&S$2&\",,,\"=VLOOKUP(\"OPEX-O,\"&S$2&\",,,\",data[],1),VLOOKUP(\"OPEX-O,\"&S$2&\",,,\",data[],7),0)","v":0},null,null,null,null,{"$f":"IF(\"OPEX-O,\"&X$2&\",,,\"=VLOOKUP(\"OPEX-O,\"&X$2&\",,,\",data[],1),VLOOKUP(\"OPEX-O,\"&X$2&\",,,\",data[],7),0)","v":0},null,{"$f":"IF(\"OPEX-O,\"&Z$2&\",,,\"=VLOOKUP(\"OPEX-O,\"&Z$2&\",,,\",data[],1),VLOOKUP(\"OPEX-O,\"&Z$2&\",,,\",data[],7),0)","v":0},null,null,null,{"$f":"IF(\"OPEX-O,\"&AD$2&\",,,\"=VLOOKUP(\"OPEX-O,\"&AD$2&\",,,\",data[],1),VLOOKUP(\"OPEX-O,\"&AD$2&\",,,\",data[],7),0)","v":0},null,null,null,null,null,null,{"$f":"IF(\"OPEX-O,\"&AK$2&\",,,\"=VLOOKUP(\"OPEX-O,\"&AK$2&\",,,\",data[],1),VLOOKUP(\"OPEX-O,\"&AK$2&\",,,\",data[],7),0)","v":0},null,{"$f":"IF(\"OPEX-O,\"&AM$2&\",,,\"=VLOOKUP(\"OPEX-O,\"&AM$2&\",,,\",data[],1),VLOOKUP(\"OPEX-O,\"&AM$2&\",,,\",data[],7),0)","v":0},null,null,null,null,null,null,null,{"$f":"IF(\"OPEX-O,\"&AU$2&\",,,\"=VLOOKUP(\"OPEX-O,\"&AU$2&\",,,\",data[],1),VLOOKUP(\"OPEX-O,\"&AU$2&\",,,\",data[],7),0)","v":1.9557894682818507E-3},null,{"$f":"IF(\"OPEX-O,\"&AW$2&\",,,\"=VLOOKUP(\"OPEX-O,\"&AW$2&\",,,\",data[],1),VLOOKUP(\"OPEX-O,\"&AW$2&\",,,\",data[],7),0)","v":0},{"$f":"IF(\"OPEX-O,\"&AX$2&\",,,\"=VLOOKUP(\"OPEX-O,\"&AX$2&\",,,\",data[],1),VLOOKUP(\"OPEX-O,\"&AX$2&\",,,\",data[],7),0)","v":0},{"$f":"IF(\"OPEX-O,\"&AY$2&\",,,\"=VLOOKUP(\"OPEX-O,\"&AY$2&\",,,\",data[],1),VLOOKUP(\"OPEX-O,\"&AY$2&\",,,\",data[],7),0)","v":0},{"$f":"IF(\"OPEX-O,\"&AZ$2&\",,,\"=VLOOKUP(\"OPEX-O,\"&AZ$2&\",,,\",data[],1),VLOOKUP(\"OPEX-O,\"&AZ$2&\",,,\",data[],7),0)","v":0},null,{"$f":"IF(\"OPEX-O,\"&BB$2&\",,,\"=VLOOKUP(\"OPEX-O,\"&BB$2&\",,,\",data[],1),VLOOKUP(\"OPEX-O,\"&BB$2&\",,,\",data[],7),0)","v":0},null,null,{"$f":"IF(\"OPEX-O,\"&BE$2&\",,,\"=VLOOKUP(\"OPEX-O,\"&BE$2&\",,,\",data[],1),VLOOKUP(\"OPEX-O,\"&BE$2&\",,,\",data[],7),0)","v":0}]
[null,"ARE",null,null,null,null,null,null,null,null,{"$f":"IF(\"OPEX-O,\"&$K14&\",,\"&$B747&\",\"=VLOOKUP(\"OPEX-O,\"&$K14&\",,\"&$B747&\",\",data[],1),VLOOKUP(\"OPEX-O,\"&$K14&\",,\"&$B747&\",\",data[],7),INDEX($E$746:$I$746,$J14))","v":0},null,null,null,null,null,{"$f":"IF(\"OPEX-O,\"&Q$2&\",,\"&$B747&\",\"=VLOOKUP(\"OPEX-O,\"&Q$2&\",,\"&$B747&\",\",data[],1),VLOOKUP(\"OPEX-O,\"&Q$2&\",,\"&$B747&\",\",data[],7),Q$746)","v":0},null,{"$f":"IF(\"OPEX-O,\"&S$2&\",,\"&$B747&\",\"=VLOOKUP(\"OPEX-O,\"&S$2&\",,\"&$B747&\",\",data[],1),VLOOKUP(\"OPEX-O,\"&S$2&\",,\"&$B747&\",\",data[],7),S$746)","v":0},null,null,null,null,{"$f":"IF(\"OPEX-O,\"&X$2&\",,\"&$B747&\",\"=VLOOKUP(\"OPEX-O,\"&X$2&\",,\"&$B747&\",\",data[],1),VLOOKUP(\"OPEX-O,\"&X$2&\",,\"&$B747&\",\",data[],7),X$746)","v":0},null,{"$f":"IF(\"OPEX-O,\"&Z$2&\",,\"&$B747&\",\"=VLOOKUP(\"OPEX-O,\"&Z$2&\",,\"&$B747&\",\",data[],1),VLOOKUP(\"OPEX-O,\"&Z$2&\",,\"&$B747&\",\",data[],7),Z$746)","v":0},null,null,null,{"$f":"IF(\"OPEX-O,\"&AD$2&\",,\"&$B747&\",\"=VLOOKUP(\"OPEX-O,\"&AD$2&\",,\"&$B747&\",\",data[],1),VLOOKUP(\"OPEX-O,\"&AD$2&\",,\"&$B747&\",\",data[],7),AD$746)","v":0},null,null,null,null,null,null,{"$f":"IF(\"OPEX-O,\"&AK$2&\",,\"&$B747&\",\"=VLOOKUP(\"OPEX-O,\"&AK$2&\",,\"&$B747&\",\",data[],1),VLOOKUP(\"OPEX-O,\"&AK$2&\",,\"&$B747&\",\",data[],7),AK$746)","v":0},null,{"$f":"IF(\"OPEX-O,\"&AM$2&\",,\"&$B747&\",\"=VLOOKUP(\"OPEX-O,\"&AM$2&\",,\"&$B747&\",\",data[],1),VLOOKUP(\"OPEX-O,\"&AM$2&\",,\"&$B747&\",\",data[],7),AM$746)","v":0},null,null,null,null,null,null,null,{"$f":"IF(\"OPEX-O,\"&AU$2&\",,\"&$B747&\",\"=VLOOKUP(\"OPEX-O,\"&AU$2&\",,\"&$B747&\",\",data[],1),VLOOKUP(\"OPEX-O,\"&AU$2&\",,\"&$B747&\",\",data[],7),AU$746)","v":1.9557894682818507E-3},null,{"$f":"IF(\"OPEX-O,\"&AW$2&\",,\"&$B747&\",\"=VLOOKUP(\"OPEX-O,\"&AW$2&\",,\"&$B747&\",\",data[],1),VLOOKUP(\"OPEX-O,\"&AW$2&\",,\"&$B747&\",\",data[],7),AW$746)","v":0},{"$f":"IF(\"OPEX-O,\"&AX$2&\",,\"&$B747&\",\"=VLOOKUP(\"OPEX-O,\"&AX$2&\",,\"&$B747&\",\",data[],1),VLOOKUP(\"OPEX-O,\"&AX$2&\",,\"&$B747&\",\",data[],7),AX$746)","v":0},{"$f":"IF(\"OPEX-O,\"&AY$2&\",,\"&$B747&\",\"=VLOOKUP(\"OPEX-O,\"&AY$2&\",,\"&$B747&\",\",data[],1),VLOOKUP(\"OPEX-O,\"&AY$2&\",,\"&$B747&\",\",data[],7),AY$746)","v":0},{"$f":"IF(\"OPEX-O,\"&AZ$2&\",,\"&$B747&\",\"=VLOOKUP(\"OPEX-O,\"&AZ$2&\",,\"&$B747&\",\",data[],1),VLOOKUP(\"OPEX-O,\"&AZ$2&\",,\"&$B747&\",\",data[],7),AZ$746)","v":0},null,{"$f":"IF(\"OPEX-O,\"&BB$2&\",,\"&$B747&\",\"=VLOOKUP(\"OPEX-O,\"&BB$2&\",,\"&$B747&\",\",data[],1),VLOOKUP(\"OPEX-O,\"&BB$2&\",,\"&$B747&\",\",data[],7),BB$746)","v":0},null,null,{"$f":"IF(\"OPEX-O,\"&BE$2&\",,\"&$B747&\",\"=VLOOKUP(\"OPEX-O,\"&BE$2&\",,\"&$B747&\",\",data[],1),VLOOKUP(\"OPEX-O,\"&BE$2&\",,\"&$B747&\",\",data[],7),BE$746)","v":0}]
[null,"ARG",null,null,null,null,null,null,null,null,{"$f":"IF(\"OPEX-o,\"&$K15&\",,\"&$B748&\",\"=VLOOKUP(\"OPEX-o,\"&$K15&\",,\"&$B748&\",\",data[],1),VLOOKUP(\"OPEX-o,\"&$K15&\",,\"&$B748&\",\",data[],7),INDEX($E$746:$I$746,$J15))","v":0},null,null,null,null,null,{"$f":"IF(\"OPEX-O,\"&Q$2&\",,\"&$B748&\",\"=VLOOKUP(\"OPEX-O,\"&Q$2&\",,\"&$B748&\",\",data[],1),VLOOKUP(\"OPEX-O,\"&Q$2&\",,\"&$B748&\",\",data[],7),Q$746)","v":0},null,{"$f":"IF(\"OPEX-O,\"&S$2&\",,\"&$B748&\",\"=VLOOKUP(\"OPEX-O,\"&S$2&\",,\"&$B748&\",\",data[],1),VLOOKUP(\"OPEX-O,\"&S$2&\",,\"&$B748&\",\",data[],7),S$746)","v":0},null,null,null,null,{"$f":"IF(\"OPEX-O,\"&X$2&\",,\"&$B748&\",\"=VLOOKUP(\"OPEX-O,\"&X$2&\",,\"&$B748&\",\",data[],1),VLOOKUP(\"OPEX-O,\"&X$2&\",,\"&$B748&\",\",data[],7),X$746)","v":0},null,{"$f":"IF(\"OPEX-O,\"&Z$2&\",,\"&$B748&\",\"=VLOOKUP(\"OPEX-O,\"&Z$2&\",,\"&$B748&\",\",data[],1),VLOOKUP(\"OPEX-O,\"&Z$2&\",,\"&$B748&\",\",data[],7),Z$746)","v":0},null,null,null,{"$f":"IF(\"OPEX-O,\"&AD$2&\",,\"&$B748&\",\"=VLOOKUP(\"OPEX-O,\"&AD$2&\",,\"&$B748&\",\",data[],1),VLOOKUP(\"OPEX-O,\"&AD$2&\",,\"&$B748&\",\",data[],7),AD$746)","v":0},null,null,null,null,null,null,{"$f":"IF(\"OPEX-O,\"&AK$2&\",,\"&$B748&\",\"=VLOOKUP(\"OPEX-O,\"&AK$2&\",,\"&$B748&\",\",data[],1),VLOOKUP(\"OPEX-O,\"&AK$2&\",,\"&$B748&\",\",data[],7),AK$746)","v":0},null,{"$f":"IF(\"OPEX-O,\"&AM$2&\",,\"&$B748&\",\"=VLOOKUP(\"OPEX-O,\"&AM$2&\",,\"&$B748&\",\",data[],1),VLOOKUP(\"OPEX-O,\"&AM$2&\",,\"&$B748&\",\",data[],7),AM$746)","v":0},null,null,null,null,null,null,null,{"$f":"IF(\"OPEX-O,\"&AU$2&\",,\"&$B748&\",\"=VLOOKUP(\"OPEX-O,\"&AU$2&\",,\"&$B748&\",\",data[],1),VLOOKUP(\"OPEX-O,\"&AU$2&\",,\"&$B748&\",\",data[],7),AU$746)","v":1.9557894682818507E-3},null,{"$f":"IF(\"OPEX-O,\"&AW$2&\",,\"&$B748&\",\"=VLOOKUP(\"OPEX-O,\"&AW$2&\",,\"&$B748&\",\",data[],1),VLOOKUP(\"OPEX-O,\"&AW$2&\",,\"&$B748&\",\",data[],7),AW$746)","v":0},{"$f":"IF(\"OPEX-O,\"&AX$2&\",,\"&$B748&\",\"=VLOOKUP(\"OPEX-O,\"&AX$2&\",,\"&$B748&\",\",data[],1),VLOOKUP(\"OPEX-O,\"&AX$2&\",,\"&$B748&\",\",data[],7),AX$746)","v":0},{"$f":"IF(\"OPEX-O,\"&AY$2&\",,\"&$B748&\",\"=VLOOKUP(\"OPEX-O,\"&AY$2&\",,\"&$B748&\",\",data[],1),VLOOKUP(\"OPEX-O,\"&AY$2&\",,\"&$B748&\",\",data[],7),AY$746)","v":0},{"$f":"IF(\"OPEX-O,\"&AZ$2&\",,\"&$B748&\",\"=VLOOKUP(\"OPEX-O,\"&AZ$2&\",,\"&$B748&\",\",data[],1),VLOOKUP(\"OPEX-O,\"&AZ$2&\",,\"&$B748&\",\",data[],7),AZ$746)","v":0},null,{"$f":"IF(\"OPEX-O,\"&BB$2&\",,\"&$B748&\",\"=VLOOKUP(\"OPEX-O,\"&BB$2&\",,\"&$B748&\",\",data[],1),VLOOKUP(\"OPEX-O,\"&BB$2&\",,\"&$B748&\",\",data[],7),BB$746)","v":0},null,null,{"$f":"IF(\"OPEX-O,\"&BE$2&\",,\"&$B748&\",\"=VLOOKUP(\"OPEX-O,\"&BE$2&\",,\"&$B748&\",\",data[],1),VLOOKUP(\"OPEX-O,\"&BE$2&\",,\"&$B748&\",\",data[],7),BE$746)","v":0}]
[null,"ARG-BA",null,null,null,null,null,null,null,null,{"$f":"IF(\"OPEX-o,\"&$K16&\",,\"&$B749&\",\"=VLOOKUP(\"OPEX-o,\"&$K16&\",,\"&$B749&\",\",data[],1),VLOOKUP(\"OPEX-o,\"&$K16&\",,\"&$B749&\",\",data[],7),INDEX($E$746:$I$746,$J16))","v":0},null,null,null,null,null,{"$f":"IF(\"OPEX-O,\"&Q$2&\",,\"&$B749&\",\"=VLOOKUP(\"OPEX-O,\"&Q$2&\",,\"&$B749&\",\",data[],1),VLOOKUP(\"OPEX-O,\"&Q$2&\",,\"&$B749&\",\",data[],7),Q$746)","v":0},null,{"$f":"IF(\"OPEX-O,\"&S$2&\",,\"&$B749&\",\"=VLOOKUP(\"OPEX-O,\"&S$2&\",,\"&$B749&\",\",data[],1),VLOOKUP(\"OPEX-O,\"&S$2&\",,\"&$B749&\",\",data[],7),S$746)","v":0},null,null,null,null,{"$f":"IF(\"OPEX-O,\"&X$2&\",,\"&$B749&\",\"=VLOOKUP(\"OPEX-O,\"&X$2&\",,\"&$B749&\",\",data[],1),VLOOKUP(\"OPEX-O,\"&X$2&\",,\"&$B749&\",\",data[],7),X$746)","v":0},null,{"$f":"IF(\"OPEX-O,\"&Z$2&\",,\"&$B749&\",\"=VLOOKUP(\"OPEX-O,\"&Z$2&\",,\"&$B749&\",\",data[],1),VLOOKUP(\"OPEX-O,\"&Z$2&\",,\"&$B749&\",\",data[],7),Z$746)","v":0},null,null,null,{"$f":"IF(\"OPEX-O,\"&AD$2&\",,\"&$B749&\",\"=VLOOKUP(\"OPEX-O,\"&AD$2&\",,\"&$B749&\",\",data[],1),VLOOKUP(\"OPEX-O,\"&AD$2&\",,\"&$B749&\",\",data[],7),AD$746)","v":0},null,null,null,null,null,null,{"$f":"IF(\"OPEX-O,\"&AK$2&\",,\"&$B749&\",\"=VLOOKUP(\"OPEX-O,\"&AK$2&\",,\"&$B749&\",\",data[],1),VLOOKUP(\"OPEX-O,\"&AK$2&\",,\"&$B749&\",\",data[],7),AK$746)","v":0},null,{"$f":"IF(\"OPEX-O,\"&AM$2&\",,\"&$B749&\",\"=VLOOKUP(\"OPEX-O,\"&AM$2&\",,\"&$B749&\",\",data[],1),VLOOKUP(\"OPEX-O,\"&AM$2&\",,\"&$B749&\",\",data[],7),AM$746)","v":0},null,null,null,null,null,null,null,{"$f":"IF(\"OPEX-O,\"&AU$2&\",,\"&$B749&\",\"=VLOOKUP(\"OPEX-O,\"&AU$2&\",,\"&$B749&\",\",data[],1),VLOOKUP(\"OPEX-O,\"&AU$2&\",,\"&$B749&\",\",data[],7),AU$746)","v":1.9557894682818507E-3},null,{"$f":"IF(\"OPEX-O,\"&AW$2&\",,\"&$B749&\",\"=VLOOKUP(\"OPEX-O,\"&AW$2&\",,\"&$B749&\",\",data[],1),VLOOKUP(\"OPEX-O,\"&AW$2&\",,\"&$B749&\",\",data[],7),AW$746)","v":0},{"$f":"IF(\"OPEX-O,\"&AX$2&\",,\"&$B749&\",\"=VLOOKUP(\"OPEX-O,\"&AX$2&\",,\"&$B749&\",\",data[],1),VLOOKUP(\"OPEX-O,\"&AX$2&\",,\"&$B749&\",\",data[],7),AX$746)","v":0},{"$f":"IF(\"OPEX-O,\"&AY$2&\",,\"&$B749&\",\"=VLOOKUP(\"OPEX-O,\"&AY$2&\",,\"&$B749&\",\",data[],1),VLOOKUP(\"OPEX-O,\"&AY$2&\",,\"&$B749&\",\",data[],7),AY$746)","v":0},{"$f":"IF(\"OPEX-O,\"&AZ$2&\",,\"&$B749&\",\"=VLOOKUP(\"OPEX-O,\"&AZ$2&\",,\"&$B749&\",\",data[],1),VLOOKUP(\"OPEX-O,\"&AZ$2&\",,\"&$B749&\",\",data[],7),AZ$746)","v":0},null,{"$f":"IF(\"OPEX-O,\"&BB$2&\",,\"&$B749&\",\"=VLOOKUP(\"OPEX-O,\"&BB$2&\",,\"&$B749&\",\",data[],1),VLOOKUP(\"OPEX-O,\"&BB$2&\",,\"&$B749&\",\",data[],7),BB$746)","v":0},null,null,{"$f":"IF(\"OPEX-O,\"&BE$2&\",,\"&$B749&\",\"=VLOOKUP(\"OPEX-O,\"&BE$2&\",,\"&$B749&\",\",data[],1),VLOOKUP(\"OPEX-O,\"&BE$2&\",,\"&$B749&\",\",data[],7),BE$746)","v":0}]
[null,"ARG-CAT",null,null,null,null,null,null,null,null,{"$f":"IF(\"OPEX-o,\"&$K17&\",,\"&$B750&\",\"=VLOOKUP(\"OPEX-o,\"&$K17&\",,\"&$B750&\",\",data[],1),VLOOKUP(\"OPEX-o,\"&$K17&\",,\"&$B750&\",\",data[],7),INDEX($E$746:$I$746,$J17))","v":0},null,null,null,null,null,{"$f":"IF(\"OPEX-O,\"&Q$2&\",,\"&$B750&\",\"=VLOOKUP(\"OPEX-O,\"&Q$2&\",,\"&$B750&\",\",data[],1),VLOOKUP(\"OPEX-O,\"&Q$2&\",,\"&$B750&\",\",data[],7),Q$746)","v":0},null,{"$f":"IF(\"OPEX-O,\"&S$2&\",,\"&$B750&\",\"=VLOOKUP(\"OPEX-O,\"&S$2&\",,\"&$B750&\",\",data[],1),VLOOKUP(\"OPEX-O,\"&S$2&\",,\"&$B750&\",\",data[],7),S$746)","v":0},null,null,null,null,{"$f":"IF(\"OPEX-O,\"&X$2&\",,\"&$B750&\",\"=VLOOKUP(\"OPEX-O,\"&X$2&\",,\"&$B750&\",\",data[],1),VLOOKUP(\"OPEX-O,\"&X$2&\",,\"&$B750&\",\",data[],7),X$746)","v":0},null,{"$f":"IF(\"OPEX-O,\"&Z$2&\",,\"&$B750&\",\"=VLOOKUP(\"OPEX-O,\"&Z$2&\",,\"&$B750&\",\",data[],1),VLOOKUP(\"OPEX-O,\"&Z$2&\",,\"&$B750&\",\",data[],7),Z$746)","v":0},null,null,null,{"$f":"IF(\"OPEX-O,\"&AD$2&\",,\"&$B750&\",\"=VLOOKUP(\"OPEX-O,\"&AD$2&\",,\"&$B750&\",\",data[],1),VLOOKUP(\"OPEX-O,\"&AD$2&\",,\"&$B750&\",\",data[],7),AD$746)","v":0},null,null,null,null,null,null,{"$f":"IF(\"OPEX-O,\"&AK$2&\",,\"&$B750&\",\"=VLOOKUP(\"OPEX-O,\"&AK$2&\",,\"&$B750&\",\",data[],1),VLOOKUP(\"OPEX-O,\"&AK$2&\",,\"&$B750&\",\",data[],7),AK$746)","v":0},null,{"$f":"IF(\"OPEX-O,\"&AM$2&\",,\"&$B750&\",\"=VLOOKUP(\"OPEX-O,\"&AM$2&\",,\"&$B750&\",\",data[],1),VLOOKUP(\"OPEX-O,\"&AM$2&\",,\"&$B750&\",\",data[],7),AM$746)","v":0},null,null,null,null,null,null,null,{"$f":"IF(\"OPEX-O,\"&AU$2&\",,\"&$B750&\",\"=VLOOKUP(\"OPEX-O,\"&AU$2&\",,\"&$B750&\",\",data[],1),VLOOKUP(\"OPEX-O,\"&AU$2&\",,\"&$B750&\",\",data[],7),AU$746)","v":1.9557894682818507E-3},null,{"$f":"IF(\"OPEX-O,\"&AW$2&\",,\"&$B750&\",\"=VLOOKUP(\"OPEX-O,\"&AW$2&\",,\"&$B750&\",\",data[],1),VLOOKUP(\"OPEX-O,\"&AW$2&\",,\"&$B750&\",\",data[],7),AW$746)","v":0},{"$f":"IF(\"OPEX-O,\"&AX$2&\",,\"&$B750&\",\"=VLOOKUP(\"OPEX-O,\"&AX$2&\",,\"&$B750&\",\",data[],1),VLOOKUP(\"OPEX-O,\"&AX$2&\",,\"&$B750&\",\",data[],7),AX$746)","v":0},{"$f":"IF(\"OPEX-O,\"&AY$2&\",,\"&$B750&\",\"=VLOOKUP(\"OPEX-O,\"&AY$2&\",,\"&$B750&\",\",data[],1),VLOOKUP(\"OPEX-O,\"&AY$2&\",,\"&$B750&\",\",data[],7),AY$746)","v":0},{"$f":"IF(\"OPEX-O,\"&AZ$2&\",,\"&$B750&\",\"=VLOOKUP(\"OPEX-O,\"&AZ$2&\",,\"&$B750&\",\",data[],1),VLOOKUP(\"OPEX-O,\"&AZ$2&\",,\"&$B750&\",\",data[],7),AZ$746)","v":0},null,{"$f":"IF(\"OPEX-O,\"&BB$2&\",,\"&$B750&\",\"=VLOOKUP(\"OPEX-O,\"&BB$2&\",,\"&$B750&\",\",data[],1),VLOOKUP(\"OPEX-O,\"&BB$2&\",,\"&$B750&\",\",data[],7),BB$746)","v":0},null,null,{"$f":"IF(\"OPEX-O,\"&BE$2&\",,\"&$B750&\",\"=VLOOKUP(\"OPEX-O,\"&BE$2&\",,\"&$B750&\",\",data[],1),VLOOKUP(\"OPEX-O,\"&BE$2&\",,\"&$B750&\",\",data[],7),BE$746)","v":0}]
[null,"ARG-CBA",null,null,null,null,null,null,null,null,{"$f":"IF(\"OPEX-o,\"&$K18&\",,\"&$B751&\",\"=VLOOKUP(\"OPEX-o,\"&$K18&\",,\"&$B751&\",\",data[],1),VLOOKUP(\"OPEX-o,\"&$K18&\",,\"&$B751&\",\",data[],7),INDEX($E$746:$I$746,$J18))","v":0},null,null,null,null,null,{"$f":"IF(\"OPEX-O,\"&Q$2&\",,\"&$B751&\",\"=VLOOKUP(\"OPEX-O,\"&Q$2&\",,\"&$B751&\",\",data[],1),VLOOKUP(\"OPEX-O,\"&Q$2&\",,\"&$B751&\",\",data[],7),Q$746)","v":0},null,{"$f":"IF(\"OPEX-O,\"&S$2&\",,\"&$B751&\",\"=VLOOKUP(\"OPEX-O,\"&S$2&\",,\"&$B751&\",\",data[],1),VLOOKUP(\"OPEX-O,\"&S$2&\",,\"&$B751&\",\",data[],7),S$746)","v":0},null,null,null,null,{"$f":"IF(\"OPEX-O,\"&X$2&\",,\"&$B751&\",\"=VLOOKUP(\"OPEX-O,\"&X$2&\",,\"&$B751&\",\",data[],1),VLOOKUP(\"OPEX-O,\"&X$2&\",,\"&$B751&\",\",data[],7),X$746)","v":0},null,{"$f":"IF(\"OPEX-O,\"&Z$2&\",,\"&$B751&\",\"=VLOOKUP(\"OPEX-O,\"&Z$2&\",,\"&$B751&\",\",data[],1),VLOOKUP(\"OPEX-O,\"&Z$2&\",,\"&$B751&\",\",data[],7),Z$746)","v":0},null,null,null,{"$f":"IF(\"OPEX-O,\"&AD$2&\",,\"&$B751&\",\"=VLOOKUP(\"OPEX-O,\"&AD$2&\",,\"&$B751&\",\",data[],1),VLOOKUP(\"OPEX-O,\"&AD$2&\",,\"&$B751&\",\",data[],7),AD$746)","v":0},null,null,null,null,null,null,{"$f":"IF(\"OPEX-O,\"&AK$2&\",,\"&$B751&\",\"=VLOOKUP(\"OPEX-O,\"&AK$2&\",,\"&$B751&\",\",data[],1),VLOOKUP(\"OPEX-O,\"&AK$2&\",,\"&$B751&\",\",data[],7),AK$746)","v":0},null,{"$f":"IF(\"OPEX-O,\"&AM$2&\",,\"&$B751&\",\"=VLOOKUP(\"OPEX-O,\"&AM$2&\",,\"&$B751&\",\",data[],1),VLOOKUP(\"OPEX-O,\"&AM$2&\",,\"&$B751&\",\",data[],7),AM$746)","v":0},null,null,null,null,null,null,null,{"$f":"IF(\"OPEX-O,\"&AU$2&\",,\"&$B751&\",\"=VLOOKUP(\"OPEX-O,\"&AU$2&\",,\"&$B751&\",\",data[],1),VLOOKUP(\"OPEX-O,\"&AU$2&\",,\"&$B751&\",\",data[],7),AU$746)","v":1.9557894682818507E-3},null,{"$f":"IF(\"OPEX-O,\"&AW$2&\",,\"&$B751&\",\"=VLOOKUP(\"OPEX-O,\"&AW$2&\",,\"&$B751&\",\",data[],1),VLOOKUP(\"OPEX-O,\"&AW$2&\",,\"&$B751&\",\",data[],7),AW$746)","v":0},{"$f":"IF(\"OPEX-O,\"&AX$2&\",,\"&$B751&\",\"=VLOOKUP(\"OPEX-O,\"&AX$2&\",,\"&$B751&\",\",data[],1),VLOOKUP(\"OPEX-O,\"&AX$2&\",,\"&$B751&\",\",data[],7),AX$746)","v":0},{"$f":"IF(\"OPEX-O,\"&AY$2&\",,\"&$B751&\",\"=VLOOKUP(\"OPEX-O,\"&AY$2&\",,\"&$B751&\",\",data[],1),VLOOKUP(\"OPEX-O,\"&AY$2&\",,\"&$B751&\",\",data[],7),AY$746)","v":0},{"$f":"IF(\"OPEX-O,\"&AZ$2&\",,\"&$B751&\",\"=VLOOKUP(\"OPEX-O,\"&AZ$2&\",,\"&$B751&\",\",data[],1),VLOOKUP(\"OPEX-O,\"&AZ$2&\",,\"&$B751&\",\",data[],7),AZ$746)","v":0},null,{"$f":"IF(\"OPEX-O,\"&BB$2&\",,\"&$B751&\",\"=VLOOKUP(\"OPEX-O,\"&BB$2&\",,\"&$B751&\",\",data[],1),VLOOKUP(\"OPEX-O,\"&BB$2&\",,\"&$B751&\",\",data[],7),BB$746)","v":0},null,null,{"$f":"IF(\"OPEX-O,\"&BE$2&\",,\"&$B751&\",\"=VLOOKUP(\"OPEX-O,\"&BE$2&\",,\"&$B751&\",\",data[],1),VLOOKUP(\"OPEX-O,\"&BE$2&\",,\"&$B751&\",\",data[],7),BE$746)","v":0}]
[null,"ARG-CHA",null,null,null,null,null,null,null,null,{"$f":"IF(\"OPEX-o,\"&$K19&\",,\"&$B752&\",\"=VLOOKUP(\"OPEX-o,\"&$K19&\",,\"&$B752&\",\",data[],1),VLOOKUP(\"OPEX-o,\"&$K19&\",,\"&$B752&\",\",data[],7),INDEX($E$746:$I$746,$J19))","v":0},null,null,null,null,null,{"$f":"IF(\"OPEX-O,\"&Q$2&\",,\"&$B752&\",\"=VLOOKUP(\"OPEX-O,\"&Q$2&\",,\"&$B752&\",\",data[],1),VLOOKUP(\"OPEX-O,\"&Q$2&\",,\"&$B752&\",\",data[],7),Q$746)","v":0},null,{"$f":"IF(\"OPEX-O,\"&S$2&\",,\"&$B752&\",\"=VLOOKUP(\"OPEX-O,\"&S$2&\",,\"&$B752&\",\",data[],1),VLOOKUP(\"OPEX-O,\"&S$2&\",,\"&$B752&\",\",data[],7),S$746)","v":0},null,null,null,null,{"$f":"IF(\"OPEX-O,\"&X$2&\",,\"&$B752&\",\"=VLOOKUP(\"OPEX-O,\"&X$2&\",,\"&$B752&\",\",data[],1),VLOOKUP(\"OPEX-O,\"&X$2&\",,\"&$B752&\",\",data[],7),X$746)","v":0},null,{"$f":"IF(\"OPEX-O,\"&Z$2&\",,\"&$B752&\",\"=VLOOKUP(\"OPEX-O,\"&Z$2&\",,\"&$B752&\",\",data[],1),VLOOKUP(\"OPEX-O,\"&Z$2&\",,\"&$B752&\",\",data[],7),Z$746)","v":0},null,null,null,{"$f":"IF(\"OPEX-O,\"&AD$2&\",,\"&$B752&\",\"=VLOOKUP(\"OPEX-O,\"&AD$2&\",,\"&$B752&\",\",data[],1),VLOOKUP(\"OPEX-O,\"&AD$2&\",,\"&$B752&\",\",data[],7),AD$746)","v":0},null,null,null,null,null,null,{"$f":"IF(\"OPEX-O,\"&AK$2&\",,\"&$B752&\",\"=VLOOKUP(\"OPEX-O,\"&AK$2&\",,\"&$B752&\",\",data[],1),VLOOKUP(\"OPEX-O,\"&AK$2&\",,\"&$B752&\",\",data[],7),AK$746)","v":0},null,{"$f":"IF(\"OPEX-O,\"&AM$2&\",,\"&$B752&\",\"=VLOOKUP(\"OPEX-O,\"&AM$2&\",,\"&$B752&\",\",data[],1),VLOOKUP(\"OPEX-O,\"&AM$2&\",,\"&$B752&\",\",data[],7),AM$746)","v":0},null,null,null,null,null,null,null,{"$f":"IF(\"OPEX-O,\"&AU$2&\",,\"&$B752&\",\"=VLOOKUP(\"OPEX-O,\"&AU$2&\",,\"&$B752&\",\",data[],1),VLOOKUP(\"OPEX-O,\"&AU$2&\",,\"&$B752&\",\",data[],7),AU$746)","v":1.9557894682818507E-3},null,{"$f":"IF(\"OPEX-O,\"&AW$2&\",,\"&$B752&\",\"=VLOOKUP(\"OPEX-O,\"&AW$2&\",,\"&$B752&\",\",data[],1),VLOOKUP(\"OPEX-O,\"&AW$2&\",,\"&$B752&\",\",data[],7),AW$746)","v":0},{"$f":"IF(\"OPEX-O,\"&AX$2&\",,\"&$B752&\",\"=VLOOKUP(\"OPEX-O,\"&AX$2&\",,\"&$B752&\",\",data[],1),VLOOKUP(\"OPEX-O,\"&AX$2&\",,\"&$B752&\",\",data[],7),AX$746)","v":0},{"$f":"IF(\"OPEX-O,\"&AY$2&\",,\"&$B752&\",\"=VLOOKUP(\"OPEX-O,\"&AY$2&\",,\"&$B752&\",\",data[],1),VLOOKUP(\"OPEX-O,\"&AY$2&\",,\"&$B752&\",\",data[],7),AY$746)","v":0},{"$f":"IF(\"OPEX-O,\"&AZ$2&\",,\"&$B752&\",\"=VLOOKUP(\"OPEX-O,\"&AZ$2&\",,\"&$B752&\",\",data[],1),VLOOKUP(\"OPEX-O,\"&AZ$2&\",,\"&$B752&\",\",data[],7),AZ$746)","v":0},null,{"$f":"IF(\"OPEX-O,\"&BB$2&\",,\"&$B752&\",\"=VLOOKUP(\"OPEX-O,\"&BB$2&\",,\"&$B752&\",\",data[],1),VLOOKUP(\"OPEX-O,\"&BB$2&\",,\"&$B752&\",\",data[],7),BB$746)","v":0},null,null,{"$f":"IF(\"OPEX-O,\"&BE$2&\",,\"&$B752&\",\"=VLOOKUP(\"OPEX-O,\"&BE$2&\",,\"&$B752&\",\",data[],1),VLOOKUP(\"OPEX-O,\"&BE$2&\",,\"&$B752&\",\",data[],7),BE$746)","v":0}]
[null,"ARG-CHU",null,null,null,null,null,null,null,null,{"$f":"IF(\"OPEX-o,\"&$K20&\",,\"&$B753&\",\"=VLOOKUP(\"OPEX-o,\"&$K20&\",,\"&$B753&\",\",data[],1),VLOOKUP(\"OPEX-o,\"&$K20&\",,\"&$B753&\",\",data[],7),INDEX($E$746:$I$746,$J20))","v":0},null,null,null,null,null,{"$f":"IF(\"OPEX-O,\"&Q$2&\",,\"&$B753&\",\"=VLOOKUP(\"OPEX-O,\"&Q$2&\",,\"&$B753&\",\",data[],1),VLOOKUP(\"OPEX-O,\"&Q$2&\",,\"&$B753&\",\",data[],7),Q$746)","v":0},null,{"$f":"IF(\"OPEX-O,\"&S$2&\",,\"&$B753&\",\"=VLOOKUP(\"OPEX-O,\"&S$2&\",,\"&$B753&\",\",data[],1),VLOOKUP(\"OPEX-O,\"&S$2&\",,\"&$B753&\",\",data[],7),S$746)","v":0},null,null,null,null,{"$f":"IF(\"OPEX-O,\"&X$2&\",,\"&$B753&\",\"=VLOOKUP(\"OPEX-O,\"&X$2&\",,\"&$B753&\",\",data[],1),VLOOKUP(\"OPEX-O,\"&X$2&\",,\"&$B753&\",\",data[],7),X$746)","v":0},null,{"$f":"IF(\"OPEX-O,\"&Z$2&\",,\"&$B753&\",\"=VLOOKUP(\"OPEX-O,\"&Z$2&\",,\"&$B753&\",\",data[],1),VLOOKUP(\"OPEX-O,\"&Z$2&\",,\"&$B753&\",\",data[],7),Z$746)","v":0},null,null,null,{"$f":"IF(\"OPEX-O,\"&AD$2&\",,\"&$B753&\",\"=VLOOKUP(\"OPEX-O,\"&AD$2&\",,\"&$B753&\",\",data[],1),VLOOKUP(\"OPEX-O,\"&AD$2&\",,\"&$B753&\",\",data[],7),AD$746)","v":0},null,null,null,null,null,null,{"$f":"IF(\"OPEX-O,\"&AK$2&\",,\"&$B753&\",\"=VLOOKUP(\"OPEX-O,\"&AK$2&\",,\"&$B753&\",\",data[],1),VLOOKUP(\"OPEX-O,\"&AK$2&\",,\"&$B753&\",\",data[],7),AK$746)","v":0},null,{"$f":"IF(\"OPEX-O,\"&AM$2&\",,\"&$B753&\",\"=VLOOKUP(\"OPEX-O,\"&AM$2&\",,\"&$B753&\",\",data[],1),VLOOKUP(\"OPEX-O,\"&AM$2&\",,\"&$B753&\",\",data[],7),AM$746)","v":0},null,null,null,null,null,null,null,{"$f":"IF(\"OPEX-O,\"&AU$2&\",,\"&$B753&\",\"=VLOOKUP(\"OPEX-O,\"&AU$2&\",,\"&$B753&\",\",data[],1),VLOOKUP(\"OPEX-O,\"&AU$2&\",,\"&$B753&\",\",data[],7),AU$746)","v":1.9557894682818507E-3},null,{"$f":"IF(\"OPEX-O,\"&AW$2&\",,\"&$B753&\",\"=VLOOKUP(\"OPEX-O,\"&AW$2&\",,\"&$B753&\",\",data[],1),VLOOKUP(\"OPEX-O,\"&AW$2&\",,\"&$B753&\",\",data[],7),AW$746)","v":0},{"$f":"IF(\"OPEX-O,\"&AX$2&\",,\"&$B753&\",\"=VLOOKUP(\"OPEX-O,\"&AX$2&\",,\"&$B753&\",\",data[],1),VLOOKUP(\"OPEX-O,\"&AX$2&\",,\"&$B753&\",\",data[],7),AX$746)","v":0},{"$f":"IF(\"OPEX-O,\"&AY$2&\",,\"&$B753&\",\"=VLOOKUP(\"OPEX-O,\"&AY$2&\",,\"&$B753&\",\",data[],1),VLOOKUP(\"OPEX-O,\"&AY$2&\",,\"&$B753&\",\",data[],7),AY$746)","v":0},{"$f":"IF(\"OPEX-O,\"&AZ$2&\",,\"&$B753&\",\"=VLOOKUP(\"OPEX-O,\"&AZ$2&\",,\"&$B753&\",\",data[],1),VLOOKUP(\"OPEX-O,\"&AZ$2&\",,\"&$B753&\",\",data[],7),AZ$746)","v":0},null,{"$f":"IF(\"OPEX-O,\"&BB$2&\",,\"&$B753&\",\"=VLOOKUP(\"OPEX-O,\"&BB$2&\",,\"&$B753&\",\",data[],1),VLOOKUP(\"OPEX-O,\"&BB$2&\",,\"&$B753&\",\",data[],7),BB$746)","v":0},null,null,{"$f":"IF(\"OPEX-O,\"&BE$2&\",,\"&$B753&\",\"=VLOOKUP(\"OPEX-O,\"&BE$2&\",,\"&$B753&\",\",data[],1),VLOOKUP(\"OPEX-O,\"&BE$2&\",,\"&$B753&\",\",data[],7),BE$746)","v":0}]
[null,"ARG-COR",null,null,null,null,null,null,null,null,{"$f":"IF(\"OPEX-o,\"&$K21&\",,\"&$B754&\",\"=VLOOKUP(\"OPEX-o,\"&$K21&\",,\"&$B754&\",\",data[],1),VLOOKUP(\"OPEX-o,\"&$K21&\",,\"&$B754&\",\",data[],7),INDEX($E$746:$I$746,$J21))","v":0},null,null,null,null,null,{"$f":"IF(\"OPEX-O,\"&Q$2&\",,\"&$B754&\",\"=VLOOKUP(\"OPEX-O,\"&Q$2&\",,\"&$B754&\",\",data[],1),VLOOKUP(\"OPEX-O,\"&Q$2&\",,\"&$B754&\",\",data[],7),Q$746)","v":0},null,{"$f":"IF(\"OPEX-O,\"&S$2&\",,\"&$B754&\",\"=VLOOKUP(\"OPEX-O,\"&S$2&\",,\"&$B754&\",\",data[],1),VLOOKUP(\"OPEX-O,\"&S$2&\",,\"&$B754&\",\",data[],7),S$746)","v":0},null,null,null,null,{"$f":"IF(\"OPEX-O,\"&X$2&\",,\"&$B754&\",\"=VLOOKUP(\"OPEX-O,\"&X$2&\",,\"&$B754&\",\",data[],1),VLOOKUP(\"OPEX-O,\"&X$2&\",,\"&$B754&\",\",data[],7),X$746)","v":0},null,{"$f":"IF(\"OPEX-O,\"&Z$2&\",,\"&$B754&\",\"=VLOOKUP(\"OPEX-O,\"&Z$2&\",,\"&$B754&\",\",data[],1),VLOOKUP(\"OPEX-O,\"&Z$2&\",,\"&$B754&\",\",data[],7),Z$746)","v":0},null,null,null,{"$f":"IF(\"OPEX-O,\"&AD$2&\",,\"&$B754&\",\"=VLOOKUP(\"OPEX-O,\"&AD$2&\",,\"&$B754&\",\",data[],1),VLOOKUP(\"OPEX-O,\"&AD$2&\",,\"&$B754&\",\",data[],7),AD$746)","v":0},null,null,null,null,null,null,{"$f":"IF(\"OPEX-O,\"&AK$2&\",,\"&$B754&\",\"=VLOOKUP(\"OPEX-O,\"&AK$2&\",,\"&$B754&\",\",data[],1),VLOOKUP(\"OPEX-O,\"&AK$2&\",,\"&$B754&\",\",data[],7),AK$746)","v":0},null,{"$f":"IF(\"OPEX-O,\"&AM$2&\",,\"&$B754&\",\"=VLOOKUP(\"OPEX-O,\"&AM$2&\",,\"&$B754&\",\",data[],1),VLOOKUP(\"OPEX-O,\"&AM$2&\",,\"&$B754&\",\",data[],7),AM$746)","v":0},null,null,null,null,null,null,null,{"$f":"IF(\"OPEX-O,\"&AU$2&\",,\"&$B754&\",\"=VLOOKUP(\"OPEX-O,\"&AU$2&\",,\"&$B754&\",\",data[],1),VLOOKUP(\"OPEX-O,\"&AU$2&\",,\"&$B754&\",\",data[],7),AU$746)","v":1.9557894682818507E-3},null,{"$f":"IF(\"OPEX-O,\"&AW$2&\",,\"&$B754&\",\"=VLOOKUP(\"OPEX-O,\"&AW$2&\",,\"&$B754&\",\",data[],1),VLOOKUP(\"OPEX-O,\"&AW$2&\",,\"&$B754&\",\",data[],7),AW$746)","v":0},{"$f":"IF(\"OPEX-O,\"&AX$2&\",,\"&$B754&\",\"=VLOOKUP(\"OPEX-O,\"&AX$2&\",,\"&$B754&\",\",data[],1),VLOOKUP(\"OPEX-O,\"&AX$2&\",,\"&$B754&\",\",data[],7),AX$746)","v":0},{"$f":"IF(\"OPEX-O,\"&AY$2&\",,\"&$B754&\",\"=VLOOKUP(\"OPEX-O,\"&AY$2&\",,\"&$B754&\",\",data[],1),VLOOKUP(\"OPEX-O,\"&AY$2&\",,\"&$B754&\",\",data[],7),AY$746)","v":0},{"$f":"IF(\"OPEX-O,\"&AZ$2&\",,\"&$B754&\",\"=VLOOKUP(\"OPEX-O,\"&AZ$2&\",,\"&$B754&\",\",data[],1),VLOOKUP(\"OPEX-O,\"&AZ$2&\",,\"&$B754&\",\",data[],7),AZ$746)","v":0},null,{"$f":"IF(\"OPEX-O,\"&BB$2&\",,\"&$B754&\",\"=VLOOKUP(\"OPEX-O,\"&BB$2&\",,\"&$B754&\",\",data[],1),VLOOKUP(\"OPEX-O,\"&BB$2&\",,\"&$B754&\",\",data[],7),BB$746)","v":0},null,null,{"$f":"IF(\"OPEX-O,\"&BE$2&\",,\"&$B754&\",\"=VLOOKUP(\"OPEX-O,\"&BE$2&\",,\"&$B754&\",\",data[],1),VLOOKUP(\"OPEX-O,\"&BE$2&\",,\"&$B754&\",\",data[],7),BE$746)","v":0}]
[null,"ARG-CRB",null,null,null,null,null,null,null,null,{"$f":"IF(\"OPEX-o,\"&$K22&\",,\"&$B755&\",\"=VLOOKUP(\"OPEX-o,\"&$K22&\",,\"&$B755&\",\",data[],1),VLOOKUP(\"OPEX-o,\"&$K22&\",,\"&$B755&\",\",data[],7),INDEX($E$746:$I$746,$J22))","v":0},null,null,null,null,null,{"$f":"IF(\"OPEX-O,\"&Q$2&\",,\"&$B755&\",\"=VLOOKUP(\"OPEX-O,\"&Q$2&\",,\"&$B755&\",\",data[],1),VLOOKUP(\"OPEX-O,\"&Q$2&\",,\"&$B755&\",\",data[],7),Q$746)","v":0},null,{"$f":"IF(\"OPEX-O,\"&S$2&\",,\"&$B755&\",\"=VLOOKUP(\"OPEX-O,\"&S$2&\",,\"&$B755&\",\",data[],1),VLOOKUP(\"OPEX-O,\"&S$2&\",,\"&$B755&\",\",data[],7),S$746)","v":0},null,null,null,null,{"$f":"IF(\"OPEX-O,\"&X$2&\",,\"&$B755&\",\"=VLOOKUP(\"OPEX-O,\"&X$2&\",,\"&$B755&\",\",data[],1),VLOOKUP(\"OPEX-O,\"&X$2&\",,\"&$B755&\",\",data[],7),X$746)","v":0},null,{"$f":"IF(\"OPEX-O,\"&Z$2&\",,\"&$B755&\",\"=VLOOKUP(\"OPEX-O,\"&Z$2&\",,\"&$B755&\",\",data[],1),VLOOKUP(\"OPEX-O,\"&Z$2&\",,\"&$B755&\",\",data[],7),Z$746)","v":0},null,null,null,{"$f":"IF(\"OPEX-O,\"&AD$2&\",,\"&$B755&\",\"=VLOOKUP(\"OPEX-O,\"&AD$2&\",,\"&$B755&\",\",data[],1),VLOOKUP(\"OPEX-O,\"&AD$2&\",,\"&$B755&\",\",data[],7),AD$746)","v":0},null,null,null,null,null,null,{"$f":"IF(\"OPEX-O,\"&AK$2&\",,\"&$B755&\",\"=VLOOKUP(\"OPEX-O,\"&AK$2&\",,\"&$B755&\",\",data[],1),VLOOKUP(\"OPEX-O,\"&AK$2&\",,\"&$B755&\",\",data[],7),AK$746)","v":0},null,{"$f":"IF(\"OPEX-O,\"&AM$2&\",,\"&$B755&\",\"=VLOOKUP(\"OPEX-O,\"&AM$2&\",,\"&$B755&\",\",data[],1),VLOOKUP(\"OPEX-O,\"&AM$2&\",,\"&$B755&\",\",data[],7),AM$746)","v":0},null,null,null,null,null,null,null,{"$f":"IF(\"OPEX-O,\"&AU$2&\",,\"&$B755&\",\"=VLOOKUP(\"OPEX-O,\"&AU$2&\",,\"&$B755&\",\",data[],1),VLOOKUP(\"OPEX-O,\"&AU$2&\",,\"&$B755&\",\",data[],7),AU$746)","v":1.9557894682818507E-3},null,{"$f":"IF(\"OPEX-O,\"&AW$2&\",,\"&$B755&\",\"=VLOOKUP(\"OPEX-O,\"&AW$2&\",,\"&$B755&\",\",data[],1),VLOOKUP(\"OPEX-O,\"&AW$2&\",,\"&$B755&\",\",data[],7),AW$746)","v":0},{"$f":"IF(\"OPEX-O,\"&AX$2&\",,\"&$B755&\",\"=VLOOKUP(\"OPEX-O,\"&AX$2&\",,\"&$B755&\",\",data[],1),VLOOKUP(\"OPEX-O,\"&AX$2&\",,\"&$B755&\",\",data[],7),AX$746)","v":0},{"$f":"IF(\"OPEX-O,\"&AY$2&\",,\"&$B755&\",\"=VLOOKUP(\"OPEX-O,\"&AY$2&\",,\"&$B755&\",\",data[],1),VLOOKUP(\"OPEX-O,\"&AY$2&\",,\"&$B755&\",\",data[],7),AY$746)","v":0},{"$f":"IF(\"OPEX-O,\"&AZ$2&\",,\"&$B755&\",\"=VLOOKUP(\"OPEX-O,\"&AZ$2&\",,\"&$B755&\",\",data[],1),VLOOKUP(\"OPEX-O,\"&AZ$2&\",,\"&$B755&\",\",data[],7),AZ$746)","v":0},null,{"$f":"IF(\"OPEX-O,\"&BB$2&\",,\"&$B755&\",\"=VLOOKUP(\"OPEX-O,\"&BB$2&\",,\"&$B755&\",\",data[],1),VLOOKUP(\"OPEX-O,\"&BB$2&\",,\"&$B755&\",\",data[],7),BB$746)","v":0},null,null,{"$f":"IF(\"OPEX-O,\"&BE$2&\",,\"&$B755&\",\"=VLOOKUP(\"OPEX-O,\"&BE$2&\",,\"&$B755&\",\",data[],1),VLOOKUP(\"OPEX-O,\"&BE$2&\",,\"&$B755&\",\",data[],7),BE$746)","v":0}]
[null,"ARG-CRU",null,null,null,null,null,null,null,null,{"$f":"IF(\"OPEX-o,\"&$K23&\",,\"&$B756&\",\"=VLOOKUP(\"OPEX-o,\"&$K23&\",,\"&$B756&\",\",data[],1),VLOOKUP(\"OPEX-o,\"&$K23&\",,\"&$B756&\",\",data[],7),INDEX($E$746:$I$746,$J23))","v":0},null,null,null,null,null,{"$f":"IF(\"OPEX-O,\"&Q$2&\",,\"&$B756&\",\"=VLOOKUP(\"OPEX-O,\"&Q$2&\",,\"&$B756&\",\",data[],1),VLOOKUP(\"OPEX-O,\"&Q$2&\",,\"&$B756&\",\",data[],7),Q$746)","v":0},null,{"$f":"IF(\"OPEX-O,\"&S$2&\",,\"&$B756&\",\"=VLOOKUP(\"OPEX-O,\"&S$2&\",,\"&$B756&\",\",data[],1),VLOOKUP(\"OPEX-O,\"&S$2&\",,\"&$B756&\",\",data[],7),S$746)","v":0},null,null,null,null,{"$f":"IF(\"OPEX-O,\"&X$2&\",,\"&$B756&\",\"=VLOOKUP(\"OPEX-O,\"&X$2&\",,\"&$B756&\",\",data[],1),VLOOKUP(\"OPEX-O,\"&X$2&\",,\"&$B756&\",\",data[],7),X$746)","v":0},null,{"$f":"IF(\"OPEX-O,\"&Z$2&\",,\"&$B756&\",\"=VLOOKUP(\"OPEX-O,\"&Z$2&\",,\"&$B756&\",\",data[],1),VLOOKUP(\"OPEX-O,\"&Z$2&\",,\"&$B756&\",\",data[],7),Z$746)","v":0},null,null,null,{"$f":"IF(\"OPEX-O,\"&AD$2&\",,\"&$B756&\",\"=VLOOKUP(\"OPEX-O,\"&AD$2&\",,\"&$B756&\",\",data[],1),VLOOKUP(\"OPEX-O,\"&AD$2&\",,\"&$B756&\",\",data[],7),AD$746)","v":0},null,null,null,null,null,null,{"$f":"IF(\"OPEX-O,\"&AK$2&\",,\"&$B756&\",\"=VLOOKUP(\"OPEX-O,\"&AK$2&\",,\"&$B756&\",\",data[],1),VLOOKUP(\"OPEX-O,\"&AK$2&\",,\"&$B756&\",\",data[],7),AK$746)","v":0},null,{"$f":"IF(\"OPEX-O,\"&AM$2&\",,\"&$B756&\",\"=VLOOKUP(\"OPEX-O,\"&AM$2&\",,\"&$B756&\",\",data[],1),VLOOKUP(\"OPEX-O,\"&AM$2&\",,\"&$B756&\",\",data[],7),AM$746)","v":0},null,null,null,null,null,null,null,{"$f":"IF(\"OPEX-O,\"&AU$2&\",,\"&$B756&\",\"=VLOOKUP(\"OPEX-O,\"&AU$2&\",,\"&$B756&\",\",data[],1),VLOOKUP(\"OPEX-O,\"&AU$2&\",,\"&$B756&\",\",data[],7),AU$746)","v":1.9557894682818507E-3},null,{"$f":"IF(\"OPEX-O,\"&AW$2&\",,\"&$B756&\",\"=VLOOKUP(\"OPEX-O,\"&AW$2&\",,\"&$B756&\",\",data[],1),VLOOKUP(\"OPEX-O,\"&AW$2&\",,\"&$B756&\",\",data[],7),AW$746)","v":0},{"$f":"IF(\"OPEX-O,\"&AX$2&\",,\"&$B756&\",\"=VLOOKUP(\"OPEX-O,\"&AX$2&\",,\"&$B756&\",\",data[],1),VLOOKUP(\"OPEX-O,\"&AX$2&\",,\"&$B756&\",\",data[],7),AX$746)","v":0},{"$f":"IF(\"OPEX-O,\"&AY$2&\",,\"&$B756&\",\"=VLOOKUP(\"OPEX-O,\"&AY$2&\",,\"&$B756&\",\",data[],1),VLOOKUP(\"OPEX-O,\"&AY$2&\",,\"&$B756&\",\",data[],7),AY$746)","v":0},{"$f":"IF(\"OPEX-O,\"&AZ$2&\",,\"&$B756&\",\"=VLOOKUP(\"OPEX-O,\"&AZ$2&\",,\"&$B756&\",\",data[],1),VLOOKUP(\"OPEX-O,\"&AZ$2&\",,\"&$B756&\",\",data[],7),AZ$746)","v":0},null,{"$f":"IF(\"OPEX-O,\"&BB$2&\",,\"&$B756&\",\"=VLOOKUP(\"OPEX-O,\"&BB$2&\",,\"&$B756&\",\",data[],1),VLOOKUP(\"OPEX-O,\"&BB$2&\",,\"&$B756&\",\",data[],7),BB$746)","v":0},null,null,{"$f":"IF(\"OPEX-O,\"&BE$2&\",,\"&$B756&\",\"=VLOOKUP(\"OPEX-O,\"&BE$2&\",,\"&$B756&\",\",data[],1),VLOOKUP(\"OPEX-O,\"&BE$2&\",,\"&$B756&\",\",data[],7),BE$746)","v":0}]
[null,"ARG-EST",null,null,null,null,null,null,null,null,{"$f":"IF(\"OPEX-o,\"&$K24&\",,\"&$B757&\",\"=VLOOKUP(\"OPEX-o,\"&$K24&\",,\"&$B757&\",\",data[],1),VLOOKUP(\"OPEX-o,\"&$K24&\",,\"&$B757&\",\",data[],7),INDEX($E$746:$I$746,$J24))","v":0},null,null,null,null,null,{"$f":"IF(\"OPEX-O,\"&Q$2&\",,\"&$B757&\",\"=VLOOKUP(\"OPEX-O,\"&Q$2&\",,\"&$B757&\",\",data[],1),VLOOKUP(\"OPEX-O,\"&Q$2&\",,\"&$B757&\",\",data[],7),Q$746)","v":0},null,{"$f":"IF(\"OPEX-O,\"&S$2&\",,\"&$B757&\",\"=VLOOKUP(\"OPEX-O,\"&S$2&\",,\"&$B757&\",\",data[],1),VLOOKUP(\"OPEX-O,\"&S$2&\",,\"&$B757&\",\",data[],7),S$746)","v":0},null,null,null,null,{"$f":"IF(\"OPEX-O,\"&X$2&\",,\"&$B757&\",\"=VLOOKUP(\"OPEX-O,\"&X$2&\",,\"&$B757&\",\",data[],1),VLOOKUP(\"OPEX-O,\"&X$2&\",,\"&$B757&\",\",data[],7),X$746)","v":0},null,{"$f":"IF(\"OPEX-O,\"&Z$2&\",,\"&$B757&\",\"=VLOOKUP(\"OPEX-O,\"&Z$2&\",,\"&$B757&\",\",data[],1),VLOOKUP(\"OPEX-O,\"&Z$2&\",,\"&$B757&\",\",data[],7),Z$746)","v":0},null,null,null,{"$f":"IF(\"OPEX-O,\"&AD$2&\",,\"&$B757&\",\"=VLOOKUP(\"OPEX-O,\"&AD$2&\",,\"&$B757&\",\",data[],1),VLOOKUP(\"OPEX-O,\"&AD$2&\",,\"&$B757&\",\",data[],7),AD$746)","v":0},null,null,null,null,null,null,{"$f":"IF(\"OPEX-O,\"&AK$2&\",,\"&$B757&\",\"=VLOOKUP(\"OPEX-O,\"&AK$2&\",,\"&$B757&\",\",data[],1),VLOOKUP(\"OPEX-O,\"&AK$2&\",,\"&$B757&\",\",data[],7),AK$746)","v":0},null,{"$f":"IF(\"OPEX-O,\"&AM$2&\",,\"&$B757&\",\"=VLOOKUP(\"OPEX-O,\"&AM$2&\",,\"&$B757&\",\",data[],1),VLOOKUP(\"OPEX-O,\"&AM$2&\",,\"&$B757&\",\",data[],7),AM$746)","v":0},null,null,null,null,null,null,null,{"$f":"IF(\"OPEX-O,\"&AU$2&\",,\"&$B757&\",\"=VLOOKUP(\"OPEX-O,\"&AU$2&\",,\"&$B757&\",\",data[],1),VLOOKUP(\"OPEX-O,\"&AU$2&\",,\"&$B757&\",\",data[],7),AU$746)","v":1.9557894682818507E-3},null,{"$f":"IF(\"OPEX-O,\"&AW$2&\",,\"&$B757&\",\"=VLOOKUP(\"OPEX-O,\"&AW$2&\",,\"&$B757&\",\",data[],1),VLOOKUP(\"OPEX-O,\"&AW$2&\",,\"&$B757&\",\",data[],7),AW$746)","v":0},{"$f":"IF(\"OPEX-O,\"&AX$2&\",,\"&$B757&\",\"=VLOOKUP(\"OPEX-O,\"&AX$2&\",,\"&$B757&\",\",data[],1),VLOOKUP(\"OPEX-O,\"&AX$2&\",,\"&$B757&\",\",data[],7),AX$746)","v":0},{"$f":"IF(\"OPEX-O,\"&AY$2&\",,\"&$B757&\",\"=VLOOKUP(\"OPEX-O,\"&AY$2&\",,\"&$B757&\",\",data[],1),VLOOKUP(\"OPEX-O,\"&AY$2&\",,\"&$B757&\",\",data[],7),AY$746)","v":0},{"$f":"IF(\"OPEX-O,\"&AZ$2&\",,\"&$B757&\",\"=VLOOKUP(\"OPEX-O,\"&AZ$2&\",,\"&$B757&\",\",data[],1),VLOOKUP(\"OPEX-O,\"&AZ$2&\",,\"&$B757&\",\",data[],7),AZ$746)","v":0},null,{"$f":"IF(\"OPEX-O,\"&BB$2&\",,\"&$B757&\",\"=VLOOKUP(\"OPEX-O,\"&BB$2&\",,\"&$B757&\",\",data[],1),VLOOKUP(\"OPEX-O,\"&BB$2&\",,\"&$B757&\",\",data[],7),BB$746)","v":0},null,null,{"$f":"IF(\"OPEX-O,\"&BE$2&\",,\"&$B757&\",\"=VLOOKUP(\"OPEX-O,\"&BE$2&\",,\"&$B757&\",\",data[],1),VLOOKUP(\"OPEX-O,\"&BE$2&\",,\"&$B757&\",\",data[],7),BE$746)","v":0}]
[null,"ARG-FOR",null,null,null,null,null,null,null,null,{"$f":"IF(\"OPEX-o,\"&$K25&\",,\"&$B758&\",\"=VLOOKUP(\"OPEX-o,\"&$K25&\",,\"&$B758&\",\",data[],1),VLOOKUP(\"OPEX-o,\"&$K25&\",,\"&$B758&\",\",data[],7),INDEX($E$746:$I$746,$J25))","v":0},null,null,null,null,null,{"$f":"IF(\"OPEX-O,\"&Q$2&\",,\"&$B758&\",\"=VLOOKUP(\"OPEX-O,\"&Q$2&\",,\"&$B758&\",\",data[],1),VLOOKUP(\"OPEX-O,\"&Q$2&\",,\"&$B758&\",\",data[],7),Q$746)","v":0},null,{"$f":"IF(\"OPEX-O,\"&S$2&\",,\"&$B758&\",\"=VLOOKUP(\"OPEX-O,\"&S$2&\",,\"&$B758&\",\",data[],1),VLOOKUP(\"OPEX-O,\"&S$2&\",,\"&$B758&\",\",data[],7),S$746)","v":0},null,null,null,null,{"$f":"IF(\"OPEX-O,\"&X$2&\",,\"&$B758&\",\"=VLOOKUP(\"OPEX-O,\"&X$2&\",,\"&$B758&\",\",data[],1),VLOOKUP(\"OPEX-O,\"&X$2&\",,\"&$B758&\",\",data[],7),X$746)","v":0},null,{"$f":"IF(\"OPEX-O,\"&Z$2&\",,\"&$B758&\",\"=VLOOKUP(\"OPEX-O,\"&Z$2&\",,\"&$B758&\",\",data[],1),VLOOKUP(\"OPEX-O,\"&Z$2&\",,\"&$B758&\",\",data[],7),Z$746)","v":0},null,null,null,{"$f":"IF(\"OPEX-O,\"&AD$2&\",,\"&$B758&\",\"=VLOOKUP(\"OPEX-O,\"&AD$2&\",,\"&$B758&\",\",data[],1),VLOOKUP(\"OPEX-O,\"&AD$2&\",,\"&$B758&\",\",data[],7),AD$746)","v":0},null,null,null,null,null,null,{"$f":"IF(\"OPEX-O,\"&AK$2&\",,\"&$B758&\",\"=VLOOKUP(\"OPEX-O,\"&AK$2&\",,\"&$B758&\",\",data[],1),VLOOKUP(\"OPEX-O,\"&AK$2&\",,\"&$B758&\",\",data[],7),AK$746)","v":0},null,{"$f":"IF(\"OPEX-O,\"&AM$2&\",,\"&$B758&\",\"=VLOOKUP(\"OPEX-O,\"&AM$2&\",,\"&$B758&\",\",data[],1),VLOOKUP(\"OPEX-O,\"&AM$2&\",,\"&$B758&\",\",data[],7),AM$746)","v":0},null,null,null,null,null,null,null,{"$f":"IF(\"OPEX-O,\"&AU$2&\",,\"&$B758&\",\"=VLOOKUP(\"OPEX-O,\"&AU$2&\",,\"&$B758&\",\",data[],1),VLOOKUP(\"OPEX-O,\"&AU$2&\",,\"&$B758&\",\",data[],7),AU$746)","v":1.9557894682818507E-3},null,{"$f":"IF(\"OPEX-O,\"&AW$2&\",,\"&$B758&\",\"=VLOOKUP(\"OPEX-O,\"&AW$2&\",,\"&$B758&\",\",data[],1),VLOOKUP(\"OPEX-O,\"&AW$2&\",,\"&$B758&\",\",data[],7),AW$746)","v":0},{"$f":"IF(\"OPEX-O,\"&AX$2&\",,\"&$B758&\",\"=VLOOKUP(\"OPEX-O,\"&AX$2&\",,\"&$B758&\",\",data[],1),VLOOKUP(\"OPEX-O,\"&AX$2&\",,\"&$B758&\",\",data[],7),AX$746)","v":0},{"$f":"IF(\"OPEX-O,\"&AY$2&\",,\"&$B758&\",\"=VLOOKUP(\"OPEX-O,\"&AY$2&\",,\"&$B758&\",\",data[],1),VLOOKUP(\"OPEX-O,\"&AY$2&\",,\"&$B758&\",\",data[],7),AY$746)","v":0},{"$f":"IF(\"OPEX-O,\"&AZ$2&\",,\"&$B758&\",\"=VLOOKUP(\"OPEX-O,\"&AZ$2&\",,\"&$B758&\",\",data[],1),VLOOKUP(\"OPEX-O,\"&AZ$2&\",,\"&$B758&\",\",data[],7),AZ$746)","v":0},null,{"$f":"IF(\"OPEX-O,\"&BB$2&\",,\"&$B758&\",\"=VLOOKUP(\"OPEX-O,\"&BB$2&\",,\"&$B758&\",\",data[],1),VLOOKUP(\"OPEX-O,\"&BB$2&\",,\"&$B758&\",\",data[],7),BB$746)","v":0},null,null,{"$f":"IF(\"OPEX-O,\"&BE$2&\",,\"&$B758&\",\"=VLOOKUP(\"OPEX-O,\"&BE$2&\",,\"&$B758&\",\",data[],1),VLOOKUP(\"OPEX-O,\"&BE$2&\",,\"&$B758&\",\",data[],7),BE$746)","v":0}]
[null,"ARG-FUE",null,null,null,null,null,null,null,null,{"$f":"IF(\"OPEX-o,\"&$K26&\",,\"&$B759&\",\"=VLOOKUP(\"OPEX-o,\"&$K26&\",,\"&$B759&\",\",data[],1),VLOOKUP(\"OPEX-o,\"&$K26&\",,\"&$B759&\",\",data[],7),INDEX($E$746:$I$746,$J26))","v":0},null,null,null,null,null,{"$f":"IF(\"OPEX-O,\"&Q$2&\",,\"&$B759&\",\"=VLOOKUP(\"OPEX-O,\"&Q$2&\",,\"&$B759&\",\",data[],1),VLOOKUP(\"OPEX-O,\"&Q$2&\",,\"&$B759&\",\",data[],7),Q$746)","v":0},null,{"$f":"IF(\"OPEX-O,\"&S$2&\",,\"&$B759&\",\"=VLOOKUP(\"OPEX-O,\"&S$2&\",,\"&$B759&\",\",data[],1),VLOOKUP(\"OPEX-O,\"&S$2&\",,\"&$B759&\",\",data[],7),S$746)","v":0},null,null,null,null,{"$f":"IF(\"OPEX-O,\"&X$2&\",,\"&$B759&\",\"=VLOOKUP(\"OPEX-O,\"&X$2&\",,\"&$B759&\",\",data[],1),VLOOKUP(\"OPEX-O,\"&X$2&\",,\"&$B759&\",\",data[],7),X$746)","v":0},null,{"$f":"IF(\"OPEX-O,\"&Z$2&\",,\"&$B759&\",\"=VLOOKUP(\"OPEX-O,\"&Z$2&\",,\"&$B759&\",\",data[],1),VLOOKUP(\"OPEX-O,\"&Z$2&\",,\"&$B759&\",\",data[],7),Z$746)","v":0},null,null,null,{"$f":"IF(\"OPEX-O,\"&AD$2&\",,\"&$B759&\",\"=VLOOKUP(\"OPEX-O,\"&AD$2&\",,\"&$B759&\",\",data[],1),VLOOKUP(\"OPEX-O,\"&AD$2&\",,\"&$B759&\",\",data[],7),AD$746)","v":0},null,null,null,null,null,null,{"$f":"IF(\"OPEX-O,\"&AK$2&\",,\"&$B759&\",\"=VLOOKUP(\"OPEX-O,\"&AK$2&\",,\"&$B759&\",\",data[],1),VLOOKUP(\"OPEX-O,\"&AK$2&\",,\"&$B759&\",\",data[],7),AK$746)","v":0},null,{"$f":"IF(\"OPEX-O,\"&AM$2&\",,\"&$B759&\",\"=VLOOKUP(\"OPEX-O,\"&AM$2&\",,\"&$B759&\",\",data[],1),VLOOKUP(\"OPEX-O,\"&AM$2&\",,\"&$B759&\",\",data[],7),AM$746)","v":0},null,null,null,null,null,null,null,{"$f":"IF(\"OPEX-O,\"&AU$2&\",,\"&$B759&\",\"=VLOOKUP(\"OPEX-O,\"&AU$2&\",,\"&$B759&\",\",data[],1),VLOOKUP(\"OPEX-O,\"&AU$2&\",,\"&$B759&\",\",data[],7),AU$746)","v":1.9557894682818507E-3},null,{"$f":"IF(\"OPEX-O,\"&AW$2&\",,\"&$B759&\",\"=VLOOKUP(\"OPEX-O,\"&AW$2&\",,\"&$B759&\",\",data[],1),VLOOKUP(\"OPEX-O,\"&AW$2&\",,\"&$B759&\",\",data[],7),AW$746)","v":0},{"$f":"IF(\"OPEX-O,\"&AX$2&\",,\"&$B759&\",\"=VLOOKUP(\"OPEX-O,\"&AX$2&\",,\"&$B759&\",\",data[],1),VLOOKUP(\"OPEX-O,\"&AX$2&\",,\"&$B759&\",\",data[],7),AX$746)","v":0},{"$f":"IF(\"OPEX-O,\"&AY$2&\",,\"&$B759&\",\"=VLOOKUP(\"OPEX-O,\"&AY$2&\",,\"&$B759&\",\",data[],1),VLOOKUP(\"OPEX-O,\"&AY$2&\",,\"&$B759&\",\",data[],7),AY$746)","v":0},{"$f":"IF(\"OPEX-O,\"&AZ$2&\",,\"&$B759&\",\"=VLOOKUP(\"OPEX-O,\"&AZ$2&\",,\"&$B759&\",\",data[],1),VLOOKUP(\"OPEX-O,\"&AZ$2&\",,\"&$B759&\",\",data[],7),AZ$746)","v":0},null,{"$f":"IF(\"OPEX-O,\"&BB$2&\",,\"&$B759&\",\"=VLOOKUP(\"OPEX-O,\"&BB$2&\",,\"&$B759&\",\",data[],1),VLOOKUP(\"OPEX-O,\"&BB$2&\",,\"&$B759&\",\",data[],7),BB$746)","v":0},null,null,{"$f":"IF(\"OPEX-O,\"&BE$2&\",,\"&$B759&\",\"=VLOOKUP(\"OPEX-O,\"&BE$2&\",,\"&$B759&\",\",data[],1),VLOOKUP(\"OPEX-O,\"&BE$2&\",,\"&$B759&\",\",data[],7),BE$746)","v":0}]
[null,"ARG-JUJ",null,null,null,null,null,null,null,null,{"$f":"IF(\"OPEX-o,\"&$K27&\",,\"&$B760&\",\"=VLOOKUP(\"OPEX-o,\"&$K27&\",,\"&$B760&\",\",data[],1),VLOOKUP(\"OPEX-o,\"&$K27&\",,\"&$B760&\",\",data[],7),INDEX($E$746:$I$746,$J27))","v":0},null,null,null,null,null,{"$f":"IF(\"OPEX-O,\"&Q$2&\",,\"&$B760&\",\"=VLOOKUP(\"OPEX-O,\"&Q$2&\",,\"&$B760&\",\",data[],1),VLOOKUP(\"OPEX-O,\"&Q$2&\",,\"&$B760&\",\",data[],7),Q$746)","v":0},null,{"$f":"IF(\"OPEX-O,\"&S$2&\",,\"&$B760&\",\"=VLOOKUP(\"OPEX-O,\"&S$2&\",,\"&$B760&\",\",data[],1),VLOOKUP(\"OPEX-O,\"&S$2&\",,\"&$B760&\",\",data[],7),S$746)","v":0},null,null,null,null,{"$f":"IF(\"OPEX-O,\"&X$2&\",,\"&$B760&\",\"=VLOOKUP(\"OPEX-O,\"&X$2&\",,\"&$B760&\",\",data[],1),VLOOKUP(\"OPEX-O,\"&X$2&\",,\"&$B760&\",\",data[],7),X$746)","v":0},null,{"$f":"IF(\"OPEX-O,\"&Z$2&\",,\"&$B760&\",\"=VLOOKUP(\"OPEX-O,\"&Z$2&\",,\"&$B760&\",\",data[],1),VLOOKUP(\"OPEX-O,\"&Z$2&\",,\"&$B760&\",\",data[],7),Z$746)","v":0},null,null,null,{"$f":"IF(\"OPEX-O,\"&AD$2&\",,\"&$B760&\",\"=VLOOKUP(\"OPEX-O,\"&AD$2&\",,\"&$B760&\",\",data[],1),VLOOKUP(\"OPEX-O,\"&AD$2&\",,\"&$B760&\",\",data[],7),AD$746)","v":0},null,null,null,null,null,null,{"$f":"IF(\"OPEX-O,\"&AK$2&\",,\"&$B760&\",\"=VLOOKUP(\"OPEX-O,\"&AK$2&\",,\"&$B760&\",\",data[],1),VLOOKUP(\"OPEX-O,\"&AK$2&\",,\"&$B760&\",\",data[],7),AK$746)","v":0},null,{"$f":"IF(\"OPEX-O,\"&AM$2&\",,\"&$B760&\",\"=VLOOKUP(\"OPEX-O,\"&AM$2&\",,\"&$B760&\",\",data[],1),VLOOKUP(\"OPEX-O,\"&AM$2&\",,\"&$B760&\",\",data[],7),AM$746)","v":0},null,null,null,null,null,null,null,{"$f":"IF(\"OPEX-O,\"&AU$2&\",,\"&$B760&\",\"=VLOOKUP(\"OPEX-O,\"&AU$2&\",,\"&$B760&\",\",data[],1),VLOOKUP(\"OPEX-O,\"&AU$2&\",,\"&$B760&\",\",data[],7),AU$746)","v":1.9557894682818507E-3},null,{"$f":"IF(\"OPEX-O,\"&AW$2&\",,\"&$B760&\",\"=VLOOKUP(\"OPEX-O,\"&AW$2&\",,\"&$B760&\",\",data[],1),VLOOKUP(\"OPEX-O,\"&AW$2&\",,\"&$B760&\",\",data[],7),AW$746)","v":0},{"$f":"IF(\"OPEX-O,\"&AX$2&\",,\"&$B760&\",\"=VLOOKUP(\"OPEX-O,\"&AX$2&\",,\"&$B760&\",\",data[],1),VLOOKUP(\"OPEX-O,\"&AX$2&\",,\"&$B760&\",\",data[],7),AX$746)","v":0},{"$f":"IF(\"OPEX-O,\"&AY$2&\",,\"&$B760&\",\"=VLOOKUP(\"OPEX-O,\"&AY$2&\",,\"&$B760&\",\",data[],1),VLOOKUP(\"OPEX-O,\"&AY$2&\",,\"&$B760&\",\",data[],7),AY$746)","v":0},{"$f":"IF(\"OPEX-O,\"&AZ$2&\",,\"&$B760&\",\"=VLOOKUP(\"OPEX-O,\"&AZ$2&\",,\"&$B760&\",\",data[],1),VLOOKUP(\"OPEX-O,\"&AZ$2&\",,\"&$B760&\",\",data[],7),AZ$746)","v":0},null,{"$f":"IF(\"OPEX-O,\"&BB$2&\",,\"&$B760&\",\"=VLOOKUP(\"OPEX-O,\"&BB$2&\",,\"&$B760&\",\",data[],1),VLOOKUP(\"OPEX-O,\"&BB$2&\",,\"&$B760&\",\",data[],7),BB$746)","v":0},null,null,{"$f":"IF(\"OPEX-O,\"&BE$2&\",,\"&$B760&\",\"=VLOOKUP(\"OPEX-O,\"&BE$2&\",,\"&$B760&\",\",data[],1),VLOOKUP(\"OPEX-O,\"&BE$2&\",,\"&$B760&\",\",data[],7),BE$746)","v":0}]
[null,"ARG-LAR",null,null,null,null,null,null,null,null,{"$f":"IF(\"OPEX-o,\"&$K28&\",,\"&$B761&\",\"=VLOOKUP(\"OPEX-o,\"&$K28&\",,\"&$B761&\",\",data[],1),VLOOKUP(\"OPEX-o,\"&$K28&\",,\"&$B761&\",\",data[],7),INDEX($E$746:$I$746,$J28))","v":0},null,null,null,null,null,{"$f":"IF(\"OPEX-O,\"&Q$2&\",,\"&$B761&\",\"=VLOOKUP(\"OPEX-O,\"&Q$2&\",,\"&$B761&\",\",data[],1),VLOOKUP(\"OPEX-O,\"&Q$2&\",,\"&$B761&\",\",data[],7),Q$746)","v":0},null,{"$f":"IF(\"OPEX-O,\"&S$2&\",,\"&$B761&\",\"=VLOOKUP(\"OPEX-O,\"&S$2&\",,\"&$B761&\",\",data[],1),VLOOKUP(\"OPEX-O,\"&S$2&\",,\"&$B761&\",\",data[],7),S$746)","v":0},null,null,null,null,{"$f":"IF(\"OPEX-O,\"&X$2&\",,\"&$B761&\",\"=VLOOKUP(\"OPEX-O,\"&X$2&\",,\"&$B761&\",\",data[],1),VLOOKUP(\"OPEX-O,\"&X$2&\",,\"&$B761&\",\",data[],7),X$746)","v":0},null,{"$f":"IF(\"OPEX-O,\"&Z$2&\",,\"&$B761&\",\"=VLOOKUP(\"OPEX-O,\"&Z$2&\",,\"&$B761&\",\",data[],1),VLOOKUP(\"OPEX-O,\"&Z$2&\",,\"&$B761&\",\",data[],7),Z$746)","v":0},null,null,null,{"$f":"IF(\"OPEX-O,\"&AD$2&\",,\"&$B761&\",\"=VLOOKUP(\"OPEX-O,\"&AD$2&\",,\"&$B761&\",\",data[],1),VLOOKUP(\"OPEX-O,\"&AD$2&\",,\"&$B761&\",\",data[],7),AD$746)","v":0},null,null,null,null,null,null,{"$f":"IF(\"OPEX-O,\"&AK$2&\",,\"&$B761&\",\"=VLOOKUP(\"OPEX-O,\"&AK$2&\",,\"&$B761&\",\",data[],1),VLOOKUP(\"OPEX-O,\"&AK$2&\",,\"&$B761&\",\",data[],7),AK$746)","v":0},null,{"$f":"IF(\"OPEX-O,\"&AM$2&\",,\"&$B761&\",\"=VLOOKUP(\"OPEX-O,\"&AM$2&\",,\"&$B761&\",\",data[],1),VLOOKUP(\"OPEX-O,\"&AM$2&\",,\"&$B761&\",\",data[],7),AM$746)","v":0},null,null,null,null,null,null,null,{"$f":"IF(\"OPEX-O,\"&AU$2&\",,\"&$B761&\",\"=VLOOKUP(\"OPEX-O,\"&AU$2&\",,\"&$B761&\",\",data[],1),VLOOKUP(\"OPEX-O,\"&AU$2&\",,\"&$B761&\",\",data[],7),AU$746)","v":1.9557894682818507E-3},null,{"$f":"IF(\"OPEX-O,\"&AW$2&\",,\"&$B761&\",\"=VLOOKUP(\"OPEX-O,\"&AW$2&\",,\"&$B761&\",\",data[],1),VLOOKUP(\"OPEX-O,\"&AW$2&\",,\"&$B761&\",\",data[],7),AW$746)","v":0},{"$f":"IF(\"OPEX-O,\"&AX$2&\",,\"&$B761&\",\"=VLOOKUP(\"OPEX-O,\"&AX$2&\",,\"&$B761&\",\",data[],1),VLOOKUP(\"OPEX-O,\"&AX$2&\",,\"&$B761&\",\",data[],7),AX$746)","v":0},{"$f":"IF(\"OPEX-O,\"&AY$2&\",,\"&$B761&\",\"=VLOOKUP(\"OPEX-O,\"&AY$2&\",,\"&$B761&\",\",data[],1),VLOOKUP(\"OPEX-O,\"&AY$2&\",,\"&$B761&\",\",data[],7),AY$746)","v":0},{"$f":"IF(\"OPEX-O,\"&AZ$2&\",,\"&$B761&\",\"=VLOOKUP(\"OPEX-O,\"&AZ$2&\",,\"&$B761&\",\",data[],1),VLOOKUP(\"OPEX-O,\"&AZ$2&\",,\"&$B761&\",\",data[],7),AZ$746)","v":0},null,{"$f":"IF(\"OPEX-O,\"&BB$2&\",,\"&$B761&\",\"=VLOOKUP(\"OPEX-O,\"&BB$2&\",,\"&$B761&\",\",data[],1),VLOOKUP(\"OPEX-O,\"&BB$2&\",,\"&$B761&\",\",data[],7),BB$746)","v":0},null,null,{"$f":"IF(\"OPEX-O,\"&BE$2&\",,\"&$B761&\",\"=VLOOKUP(\"OPEX-O,\"&BE$2&\",,\"&$B761&\",\",data[],1),VLOOKUP(\"OPEX-O,\"&BE$2&\",,\"&$B761&\",\",data[],7),BE$746)","v":0}]
[null,"ARG-MEN",null,null,null,null,null,null,null,null,{"$f":"IF(\"OPEX-o,\"&$K29&\",,\"&$B762&\",\"=VLOOKUP(\"OPEX-o,\"&$K29&\",,\"&$B762&\",\",data[],1),VLOOKUP(\"OPEX-o,\"&$K29&\",,\"&$B762&\",\",data[],7),INDEX($E$746:$I$746,$J29))","v":0},null,null,null,null,null,{"$f":"IF(\"OPEX-O,\"&Q$2&\",,\"&$B762&\",\"=VLOOKUP(\"OPEX-O,\"&Q$2&\",,\"&$B762&\",\",data[],1),VLOOKUP(\"OPEX-O,\"&Q$2&\",,\"&$B762&\",\",data[],7),Q$746)","v":0},null,{"$f":"IF(\"OPEX-O,\"&S$2&\",,\"&$B762&\",\"=VLOOKUP(\"OPEX-O,\"&S$2&\",,\"&$B762&\",\",data[],1),VLOOKUP(\"OPEX-O,\"&S$2&\",,\"&$B762&\",\",data[],7),S$746)","v":0},null,null,null,null,{"$f":"IF(\"OPEX-O,\"&X$2&\",,\"&$B762&\",\"=VLOOKUP(\"OPEX-O,\"&X$2&\",,\"&$B762&\",\",data[],1),VLOOKUP(\"OPEX-O,\"&X$2&\",,\"&$B762&\",\",data[],7),X$746)","v":0},null,{"$f":"IF(\"OPEX-O,\"&Z$2&\",,\"&$B762&\",\"=VLOOKUP(\"OPEX-O,\"&Z$2&\",,\"&$B762&\",\",data[],1),VLOOKUP(\"OPEX-O,\"&Z$2&\",,\"&$B762&\",\",data[],7),Z$746)","v":0},null,null,null,{"$f":"IF(\"OPEX-O,\"&AD$2&\",,\"&$B762&\",\"=VLOOKUP(\"OPEX-O,\"&AD$2&\",,\"&$B762&\",\",data[],1),VLOOKUP(\"OPEX-O,\"&AD$2&\",,\"&$B762&\",\",data[],7),AD$746)","v":0},null,null,null,null,null,null,{"$f":"IF(\"OPEX-O,\"&AK$2&\",,\"&$B762&\",\"=VLOOKUP(\"OPEX-O,\"&AK$2&\",,\"&$B762&\",\",data[],1),VLOOKUP(\"OPEX-O,\"&AK$2&\",,\"&$B762&\",\",data[],7),AK$746)","v":0},null,{"$f":"IF(\"OPEX-O,\"&AM$2&\",,\"&$B762&\",\"=VLOOKUP(\"OPEX-O,\"&AM$2&\",,\"&$B762&\",\",data[],1),VLOOKUP(\"OPEX-O,\"&AM$2&\",,\"&$B762&\",\",data[],7),AM$746)","v":0},null,null,null,null,null,null,null,{"$f":"IF(\"OPEX-O,\"&AU$2&\",,\"&$B762&\",\"=VLOOKUP(\"OPEX-O,\"&AU$2&\",,\"&$B762&\",\",data[],1),VLOOKUP(\"OPEX-O,\"&AU$2&\",,\"&$B762&\",\",data[],7),AU$746)","v":1.9557894682818507E-3},null,{"$f":"IF(\"OPEX-O,\"&AW$2&\",,\"&$B762&\",\"=VLOOKUP(\"OPEX-O,\"&AW$2&\",,\"&$B762&\",\",data[],1),VLOOKUP(\"OPEX-O,\"&AW$2&\",,\"&$B762&\",\",data[],7),AW$746)","v":0},{"$f":"IF(\"OPEX-O,\"&AX$2&\",,\"&$B762&\",\"=VLOOKUP(\"OPEX-O,\"&AX$2&\",,\"&$B762&\",\",data[],1),VLOOKUP(\"OPEX-O,\"&AX$2&\",,\"&$B762&\",\",data[],7),AX$746)","v":0},{"$f":"IF(\"OPEX-O,\"&AY$2&\",,\"&$B762&\",\"=VLOOKUP(\"OPEX-O,\"&AY$2&\",,\"&$B762&\",\",data[],1),VLOOKUP(\"OPEX-O,\"&AY$2&\",,\"&$B762&\",\",data[],7),AY$746)","v":0},{"$f":"IF(\"OPEX-O,\"&AZ$2&\",,\"&$B762&\",\"=VLOOKUP(\"OPEX-O,\"&AZ$2&\",,\"&$B762&\",\",data[],1),VLOOKUP(\"OPEX-O,\"&AZ$2&\",,\"&$B762&\",\",data[],7),AZ$746)","v":0},null,{"$f":"IF(\"OPEX-O,\"&BB$2&\",,\"&$B762&\",\"=VLOOKUP(\"OPEX-O,\"&BB$2&\",,\"&$B762&\",\",data[],1),VLOOKUP(\"OPEX-O,\"&BB$2&\",,\"&$B762&\",\",data[],7),BB$746)","v":0},null,null,{"$f":"IF(\"OPEX-O,\"&BE$2&\",,\"&$B762&\",\"=VLOOKUP(\"OPEX-O,\"&BE$2&\",,\"&$B762&\",\",data[],1),VLOOKUP(\"OPEX-O,\"&BE$2&\",,\"&$B762&\",\",data[],7),BE$746)","v":0}]
[null,"ARG-MIS",null,null,null,null,null,null,null,null,{"$f":"IF(\"OPEX-o,\"&$K30&\",,\"&$B763&\",\"=VLOOKUP(\"OPEX-o,\"&$K30&\",,\"&$B763&\",\",data[],1),VLOOKUP(\"OPEX-o,\"&$K30&\",,\"&$B763&\",\",data[],7),INDEX($E$746:$I$746,$J30))","v":0},null,null,null,null,null,{"$f":"IF(\"OPEX-O,\"&Q$2&\",,\"&$B763&\",\"=VLOOKUP(\"OPEX-O,\"&Q$2&\",,\"&$B763&\",\",data[],1),VLOOKUP(\"OPEX-O,\"&Q$2&\",,\"&$B763&\",\",data[],7),Q$746)","v":0},null,{"$f":"IF(\"OPEX-O,\"&S$2&\",,\"&$B763&\",\"=VLOOKUP(\"OPEX-O,\"&S$2&\",,\"&$B763&\",\",data[],1),VLOOKUP(\"OPEX-O,\"&S$2&\",,\"&$B763&\",\",data[],7),S$746)","v":0},null,null,null,null,{"$f":"IF(\"OPEX-O,\"&X$2&\",,\"&$B763&\",\"=VLOOKUP(\"OPEX-O,\"&X$2&\",,\"&$B763&\",\",data[],1),VLOOKUP(\"OPEX-O,\"&X$2&\",,\"&$B763&\",\",data[],7),X$746)","v":0},null,{"$f":"IF(\"OPEX-O,\"&Z$2&\",,\"&$B763&\",\"=VLOOKUP(\"OPEX-O,\"&Z$2&\",,\"&$B763&\",\",data[],1),VLOOKUP(\"OPEX-O,\"&Z$2&\",,\"&$B763&\",\",data[],7),Z$746)","v":0},null,null,null,{"$f":"IF(\"OPEX-O,\"&AD$2&\",,\"&$B763&\",\"=VLOOKUP(\"OPEX-O,\"&AD$2&\",,\"&$B763&\",\",data[],1),VLOOKUP(\"OPEX-O,\"&AD$2&\",,\"&$B763&\",\",data[],7),AD$746)","v":0},null,null,null,null,null,null,{"$f":"IF(\"OPEX-O,\"&AK$2&\",,\"&$B763&\",\"=VLOOKUP(\"OPEX-O,\"&AK$2&\",,\"&$B763&\",\",data[],1),VLOOKUP(\"OPEX-O,\"&AK$2&\",,\"&$B763&\",\",data[],7),AK$746)","v":0},null,{"$f":"IF(\"OPEX-O,\"&AM$2&\",,\"&$B763&\",\"=VLOOKUP(\"OPEX-O,\"&AM$2&\",,\"&$B763&\",\",data[],1),VLOOKUP(\"OPEX-O,\"&AM$2&\",,\"&$B763&\",\",data[],7),AM$746)","v":0},null,null,null,null,null,null,null,{"$f":"IF(\"OPEX-O,\"&AU$2&\",,\"&$B763&\",\"=VLOOKUP(\"OPEX-O,\"&AU$2&\",,\"&$B763&\",\",data[],1),VLOOKUP(\"OPEX-O,\"&AU$2&\",,\"&$B763&\",\",data[],7),AU$746)","v":1.9557894682818507E-3},null,{"$f":"IF(\"OPEX-O,\"&AW$2&\",,\"&$B763&\",\"=VLOOKUP(\"OPEX-O,\"&AW$2&\",,\"&$B763&\",\",data[],1),VLOOKUP(\"OPEX-O,\"&AW$2&\",,\"&$B763&\",\",data[],7),AW$746)","v":0},{"$f":"IF(\"OPEX-O,\"&AX$2&\",,\"&$B763&\",\"=VLOOKUP(\"OPEX-O,\"&AX$2&\",,\"&$B763&\",\",data[],1),VLOOKUP(\"OPEX-O,\"&AX$2&\",,\"&$B763&\",\",data[],7),AX$746)","v":0},{"$f":"IF(\"OPEX-O,\"&AY$2&\",,\"&$B763&\",\"=VLOOKUP(\"OPEX-O,\"&AY$2&\",,\"&$B763&\",\",data[],1),VLOOKUP(\"OPEX-O,\"&AY$2&\",,\"&$B763&\",\",data[],7),AY$746)","v":0},{"$f":"IF(\"OPEX-O,\"&AZ$2&\",,\"&$B763&\",\"=VLOOKUP(\"OPEX-O,\"&AZ$2&\",,\"&$B763&\",\",data[],1),VLOOKUP(\"OPEX-O,\"&AZ$2&\",,\"&$B763&\",\",data[],7),AZ$746)","v":0},null,{"$f":"IF(\"OPEX-O,\"&BB$2&\",,\"&$B763&\",\"=VLOOKUP(\"OPEX-O,\"&BB$2&\",,\"&$B763&\",\",data[],1),VLOOKUP(\"OPEX-O,\"&BB$2&\",,\"&$B763&\",\",data[],7),BB$746)","v":0},null,null,{"$f":"IF(\"OPEX-O,\"&BE$2&\",,\"&$B763&\",\"=VLOOKUP(\"OPEX-O,\"&BE$2&\",,\"&$B763&\",\",data[],1),VLOOKUP(\"OPEX-O,\"&BE$2&\",,\"&$B763&\",\",data[],7),BE$746)","v":0}]
[null,"ARG-NEG",null,null,null,null,null,null,null,null,{"$f":"IF(\"OPEX-o,\"&$K31&\",,\"&$B764&\",\"=VLOOKUP(\"OPEX-o,\"&$K31&\",,\"&$B764&\",\",data[],1),VLOOKUP(\"OPEX-o,\"&$K31&\",,\"&$B764&\",\",data[],7),INDEX($E$746:$I$746,$J31))","v":0},null,null,null,null,null,{"$f":"IF(\"OPEX-O,\"&Q$2&\",,\"&$B764&\",\"=VLOOKUP(\"OPEX-O,\"&Q$2&\",,\"&$B764&\",\",data[],1),VLOOKUP(\"OPEX-O,\"&Q$2&\",,\"&$B764&\",\",data[],7),Q$746)","v":0},null,{"$f":"IF(\"OPEX-O,\"&S$2&\",,\"&$B764&\",\"=VLOOKUP(\"OPEX-O,\"&S$2&\",,\"&$B764&\",\",data[],1),VLOOKUP(\"OPEX-O,\"&S$2&\",,\"&$B764&\",\",data[],7),S$746)","v":0},null,null,null,null,{"$f":"IF(\"OPEX-O,\"&X$2&\",,\"&$B764&\",\"=VLOOKUP(\"OPEX-O,\"&X$2&\",,\"&$B764&\",\",data[],1),VLOOKUP(\"OPEX-O,\"&X$2&\",,\"&$B764&\",\",data[],7),X$746)","v":0},null,{"$f":"IF(\"OPEX-O,\"&Z$2&\",,\"&$B764&\",\"=VLOOKUP(\"OPEX-O,\"&Z$2&\",,\"&$B764&\",\",data[],1),VLOOKUP(\"OPEX-O,\"&Z$2&\",,\"&$B764&\",\",data[],7),Z$746)","v":0},null,null,null,{"$f":"IF(\"OPEX-O,\"&AD$2&\",,\"&$B764&\",\"=VLOOKUP(\"OPEX-O,\"&AD$2&\",,\"&$B764&\",\",data[],1),VLOOKUP(\"OPEX-O,\"&AD$2&\",,\"&$B764&\",\",data[],7),AD$746)","v":0},null,null,null,null,null,null,{"$f":"IF(\"OPEX-O,\"&AK$2&\",,\"&$B764&\",\"=VLOOKUP(\"OPEX-O,\"&AK$2&\",,\"&$B764&\",\",data[],1),VLOOKUP(\"OPEX-O,\"&AK$2&\",,\"&$B764&\",\",data[],7),AK$746)","v":0},null,{"$f":"IF(\"OPEX-O,\"&AM$2&\",,\"&$B764&\",\"=VLOOKUP(\"OPEX-O,\"&AM$2&\",,\"&$B764&\",\",data[],1),VLOOKUP(\"OPEX-O,\"&AM$2&\",,\"&$B764&\",\",data[],7),AM$746)","v":0},null,null,null,null,null,null,null,{"$f":"IF(\"OPEX-O,\"&AU$2&\",,\"&$B764&\",\"=VLOOKUP(\"OPEX-O,\"&AU$2&\",,\"&$B764&\",\",data[],1),VLOOKUP(\"OPEX-O,\"&AU$2&\",,\"&$B764&\",\",data[],7),AU$746)","v":1.9557894682818507E-3},null,{"$f":"IF(\"OPEX-O,\"&AW$2&\",,\"&$B764&\",\"=VLOOKUP(\"OPEX-O,\"&AW$2&\",,\"&$B764&\",\",data[],1),VLOOKUP(\"OPEX-O,\"&AW$2&\",,\"&$B764&\",\",data[],7),AW$746)","v":0},{"$f":"IF(\"OPEX-O,\"&AX$2&\",,\"&$B764&\",\"=VLOOKUP(\"OPEX-O,\"&AX$2&\",,\"&$B764&\",\",data[],1),VLOOKUP(\"OPEX-O,\"&AX$2&\",,\"&$B764&\",\",data[],7),AX$746)","v":0},{"$f":"IF(\"OPEX-O,\"&AY$2&\",,\"&$B764&\",\"=VLOOKUP(\"OPEX-O,\"&AY$2&\",,\"&$B764&\",\",data[],1),VLOOKUP(\"OPEX-O,\"&AY$2&\",,\"&$B764&\",\",data[],7),AY$746)","v":0},{"$f":"IF(\"OPEX-O,\"&AZ$2&\",,\"&$B764&\",\"=VLOOKUP(\"OPEX-O,\"&AZ$2&\",,\"&$B764&\",\",data[],1),VLOOKUP(\"OPEX-O,\"&AZ$2&\",,\"&$B764&\",\",data[],7),AZ$746)","v":0},null,{"$f":"IF(\"OPEX-O,\"&BB$2&\",,\"&$B764&\",\"=VLOOKUP(\"OPEX-O,\"&BB$2&\",,\"&$B764&\",\",data[],1),VLOOKUP(\"OPEX-O,\"&BB$2&\",,\"&$B764&\",\",data[],7),BB$746)","v":0},null,null,{"$f":"IF(\"OPEX-O,\"&BE$2&\",,\"&$B764&\",\"=VLOOKUP(\"OPEX-O,\"&BE$2&\",,\"&$B764&\",\",data[],1),VLOOKUP(\"OPEX-O,\"&BE$2&\",,\"&$B764&\",\",data[],7),BE$746)","v":0}]
[null,"ARG-NEU",null,null,null,null,null,null,null,null,{"$f":"IF(\"OPEX-o,\"&$K32&\",,\"&$B765&\",\"=VLOOKUP(\"OPEX-o,\"&$K32&\",,\"&$B765&\",\",data[],1),VLOOKUP(\"OPEX-o,\"&$K32&\",,\"&$B765&\",\",data[],7),INDEX($E$746:$I$746,$J32))","v":0},null,null,null,null,null,{"$f":"IF(\"OPEX-O,\"&Q$2&\",,\"&$B765&\",\"=VLOOKUP(\"OPEX-O,\"&Q$2&\",,\"&$B765&\",\",data[],1),VLOOKUP(\"OPEX-O,\"&Q$2&\",,\"&$B765&\",\",data[],7),Q$746)","v":0},null,{"$f":"IF(\"OPEX-O,\"&S$2&\",,\"&$B765&\",\"=VLOOKUP(\"OPEX-O,\"&S$2&\",,\"&$B765&\",\",data[],1),VLOOKUP(\"OPEX-O,\"&S$2&\",,\"&$B765&\",\",data[],7),S$746)","v":0},null,null,null,null,{"$f":"IF(\"OPEX-O,\"&X$2&\",,\"&$B765&\",\"=VLOOKUP(\"OPEX-O,\"&X$2&\",,\"&$B765&\",\",data[],1),VLOOKUP(\"OPEX-O,\"&X$2&\",,\"&$B765&\",\",data[],7),X$746)","v":0},null,{"$f":"IF(\"OPEX-O,\"&Z$2&\",,\"&$B765&\",\"=VLOOKUP(\"OPEX-O,\"&Z$2&\",,\"&$B765&\",\",data[],1),VLOOKUP(\"OPEX-O,\"&Z$2&\",,\"&$B765&\",\",data[],7),Z$746)","v":0},null,null,null,{"$f":"IF(\"OPEX-O,\"&AD$2&\",,\"&$B765&\",\"=VLOOKUP(\"OPEX-O,\"&AD$2&\",,\"&$B765&\",\",data[],1),VLOOKUP(\"OPEX-O,\"&AD$2&\",,\"&$B765&\",\",data[],7),AD$746)","v":0},null,null,null,null,null,null,{"$f":"IF(\"OPEX-O,\"&AK$2&\",,\"&$B765&\",\"=VLOOKUP(\"OPEX-O,\"&AK$2&\",,\"&$B765&\",\",data[],1),VLOOKUP(\"OPEX-O,\"&AK$2&\",,\"&$B765&\",\",data[],7),AK$746)","v":0},null,{"$f":"IF(\"OPEX-O,\"&AM$2&\",,\"&$B765&\",\"=VLOOKUP(\"OPEX-O,\"&AM$2&\",,\"&$B765&\",\",data[],1),VLOOKUP(\"OPEX-O,\"&AM$2&\",,\"&$B765&\",\",data[],7),AM$746)","v":0},null,null,null,null,null,null,null,{"$f":"IF(\"OPEX-O,\"&AU$2&\",,\"&$B765&\",\"=VLOOKUP(\"OPEX-O,\"&AU$2&\",,\"&$B765&\",\",data[],1),VLOOKUP(\"OPEX-O,\"&AU$2&\",,\"&$B765&\",\",data[],7),AU$746)","v":1.9557894682818507E-3},null,{"$f":"IF(\"OPEX-O,\"&AW$2&\",,\"&$B765&\",\"=VLOOKUP(\"OPEX-O,\"&AW$2&\",,\"&$B765&\",\",data[],1),VLOOKUP(\"OPEX-O,\"&AW$2&\",,\"&$B765&\",\",data[],7),AW$746)","v":0},{"$f":"IF(\"OPEX-O,\"&AX$2&\",,\"&$B765&\",\"=VLOOKUP(\"OPEX-O,\"&AX$2&\",,\"&$B765&\",\",data[],1),VLOOKUP(\"OPEX-O,\"&AX$2&\",,\"&$B765&\",\",data[],7),AX$746)","v":0},{"$f":"IF(\"OPEX-O,\"&AY$2&\",,\"&$B765&\",\"=VLOOKUP(\"OPEX-O,\"&AY$2&\",,\"&$B765&\",\",data[],1),VLOOKUP(\"OPEX-O,\"&AY$2&\",,\"&$B765&\",\",data[],7),AY$746)","v":0},{"$f":"IF(\"OPEX-O,\"&AZ$2&\",,\"&$B765&\",\"=VLOOKUP(\"OPEX-O,\"&AZ$2&\",,\"&$B765&\",\",data[],1),VLOOKUP(\"OPEX-O,\"&AZ$2&\",,\"&$B765&\",\",data[],7),AZ$746)","v":0},null,{"$f":"IF(\"OPEX-O,\"&BB$2&\",,\"&$B765&\",\"=VLOOKUP(\"OPEX-O,\"&BB$2&\",,\"&$B765&\",\",data[],1),VLOOKUP(\"OPEX-O,\"&BB$2&\",,\"&$B765&\",\",data[],7),BB$746)","v":0},null,null,{"$f":"IF(\"OPEX-O,\"&BE$2&\",,\"&$B765&\",\"=VLOOKUP(\"OPEX-O,\"&BE$2&\",,\"&$B765&\",\",data[],1),VLOOKUP(\"OPEX-O,\"&BE$2&\",,\"&$B765&\",\",data[],7),BE$746)","v":0}]
[null,"ARG-PAM",null,null,null,null,null,null,null,null,{"$f":"IF(\"OPEX-o,\"&$K33&\",,\"&$B766&\",\"=VLOOKUP(\"OPEX-o,\"&$K33&\",,\"&$B766&\",\",data[],1),VLOOKUP(\"OPEX-o,\"&$K33&\",,\"&$B766&\",\",data[],7),INDEX($E$746:$I$746,$J33))","v":0},null,null,null,null,null,{"$f":"IF(\"OPEX-O,\"&Q$2&\",,\"&$B766&\",\"=VLOOKUP(\"OPEX-O,\"&Q$2&\",,\"&$B766&\",\",data[],1),VLOOKUP(\"OPEX-O,\"&Q$2&\",,\"&$B766&\",\",data[],7),Q$746)","v":0},null,{"$f":"IF(\"OPEX-O,\"&S$2&\",,\"&$B766&\",\"=VLOOKUP(\"OPEX-O,\"&S$2&\",,\"&$B766&\",\",data[],1),VLOOKUP(\"OPEX-O,\"&S$2&\",,\"&$B766&\",\",data[],7),S$746)","v":0},null,null,null,null,{"$f":"IF(\"OPEX-O,\"&X$2&\",,\"&$B766&\",\"=VLOOKUP(\"OPEX-O,\"&X$2&\",,\"&$B766&\",\",data[],1),VLOOKUP(\"OPEX-O,\"&X$2&\",,\"&$B766&\",\",data[],7),X$746)","v":0},null,{"$f":"IF(\"OPEX-O,\"&Z$2&\",,\"&$B766&\",\"=VLOOKUP(\"OPEX-O,\"&Z$2&\",,\"&$B766&\",\",data[],1),VLOOKUP(\"OPEX-O,\"&Z$2&\",,\"&$B766&\",\",data[],7),Z$746)","v":0},null,null,null,{"$f":"IF(\"OPEX-O,\"&AD$2&\",,\"&$B766&\",\"=VLOOKUP(\"OPEX-O,\"&AD$2&\",,\"&$B766&\",\",data[],1),VLOOKUP(\"OPEX-O,\"&AD$2&\",,\"&$B766&\",\",data[],7),AD$746)","v":0},null,null,null,null,null,null,{"$f":"IF(\"OPEX-O,\"&AK$2&\",,\"&$B766&\",\"=VLOOKUP(\"OPEX-O,\"&AK$2&\",,\"&$B766&\",\",data[],1),VLOOKUP(\"OPEX-O,\"&AK$2&\",,\"&$B766&\",\",data[],7),AK$746)","v":0},null,{"$f":"IF(\"OPEX-O,\"&AM$2&\",,\"&$B766&\",\"=VLOOKUP(\"OPEX-O,\"&AM$2&\",,\"&$B766&\",\",data[],1),VLOOKUP(\"OPEX-O,\"&AM$2&\",,\"&$B766&\",\",data[],7),AM$746)","v":0},null,null,null,null,null,null,null,{"$f":"IF(\"OPEX-O,\"&AU$2&\",,\"&$B766&\",\"=VLOOKUP(\"OPEX-O,\"&AU$2&\",,\"&$B766&\",\",data[],1),VLOOKUP(\"OPEX-O,\"&AU$2&\",,\"&$B766&\",\",data[],7),AU$746)","v":1.9557894682818507E-3},null,{"$f":"IF(\"OPEX-O,\"&AW$2&\",,\"&$B766&\",\"=VLOOKUP(\"OPEX-O,\"&AW$2&\",,\"&$B766&\",\",data[],1),VLOOKUP(\"OPEX-O,\"&AW$2&\",,\"&$B766&\",\",data[],7),AW$746)","v":0},{"$f":"IF(\"OPEX-O,\"&AX$2&\",,\"&$B766&\",\"=VLOOKUP(\"OPEX-O,\"&AX$2&\",,\"&$B766&\",\",data[],1),VLOOKUP(\"OPEX-O,\"&AX$2&\",,\"&$B766&\",\",data[],7),AX$746)","v":0},{"$f":"IF(\"OPEX-O,\"&AY$2&\",,\"&$B766&\",\"=VLOOKUP(\"OPEX-O,\"&AY$2&\",,\"&$B766&\",\",data[],1),VLOOKUP(\"OPEX-O,\"&AY$2&\",,\"&$B766&\",\",data[],7),AY$746)","v":0},{"$f":"IF(\"OPEX-O,\"&AZ$2&\",,\"&$B766&\",\"=VLOOKUP(\"OPEX-O,\"&AZ$2&\",,\"&$B766&\",\",data[],1),VLOOKUP(\"OPEX-O,\"&AZ$2&\",,\"&$B766&\",\",data[],7),AZ$746)","v":0},null,{"$f":"IF(\"OPEX-O,\"&BB$2&\",,\"&$B766&\",\"=VLOOKUP(\"OPEX-O,\"&BB$2&\",,\"&$B766&\",\",data[],1),VLOOKUP(\"OPEX-O,\"&BB$2&\",,\"&$B766&\",\",data[],7),BB$746)","v":0},null,null,{"$f":"IF(\"OPEX-O,\"&BE$2&\",,\"&$B766&\",\"=VLOOKUP(\"OPEX-O,\"&BE$2&\",,\"&$B766&\",\",data[],1),VLOOKUP(\"OPEX-O,\"&BE$2&\",,\"&$B766&\",\",data[],7),BE$746)","v":0}]
[null,"ARG-RIO",null,null,null,null,null,null,null,null,{"$f":"IF(\"OPEX-o,\"&$K34&\",,\"&$B767&\",\"=VLOOKUP(\"OPEX-o,\"&$K34&\",,\"&$B767&\",\",data[],1),VLOOKUP(\"OPEX-o,\"&$K34&\",,\"&$B767&\",\",data[],7),INDEX($E$746:$I$746,$J34))","v":0},null,null,null,null,null,{"$f":"IF(\"OPEX-O,\"&Q$2&\",,\"&$B767&\",\"=VLOOKUP(\"OPEX-O,\"&Q$2&\",,\"&$B767&\",\",data[],1),VLOOKUP(\"OPEX-O,\"&Q$2&\",,\"&$B767&\",\",data[],7),Q$746)","v":0},null,{"$f":"IF(\"OPEX-O,\"&S$2&\",,\"&$B767&\",\"=VLOOKUP(\"OPEX-O,\"&S$2&\",,\"&$B767&\",\",data[],1),VLOOKUP(\"OPEX-O,\"&S$2&\",,\"&$B767&\",\",data[],7),S$746)","v":0},null,null,null,null,{"$f":"IF(\"OPEX-O,\"&X$2&\",,\"&$B767&\",\"=VLOOKUP(\"OPEX-O,\"&X$2&\",,\"&$B767&\",\",data[],1),VLOOKUP(\"OPEX-O,\"&X$2&\",,\"&$B767&\",\",data[],7),X$746)","v":0},null,{"$f":"IF(\"OPEX-O,\"&Z$2&\",,\"&$B767&\",\"=VLOOKUP(\"OPEX-O,\"&Z$2&\",,\"&$B767&\",\",data[],1),VLOOKUP(\"OPEX-O,\"&Z$2&\",,\"&$B767&\",\",data[],7),Z$746)","v":0},null,null,null,{"$f":"IF(\"OPEX-O,\"&AD$2&\",,\"&$B767&\",\"=VLOOKUP(\"OPEX-O,\"&AD$2&\",,\"&$B767&\",\",data[],1),VLOOKUP(\"OPEX-O,\"&AD$2&\",,\"&$B767&\",\",data[],7),AD$746)","v":0},null,null,null,null,null,null,{"$f":"IF(\"OPEX-O,\"&AK$2&\",,\"&$B767&\",\"=VLOOKUP(\"OPEX-O,\"&AK$2&\",,\"&$B767&\",\",data[],1),VLOOKUP(\"OPEX-O,\"&AK$2&\",,\"&$B767&\",\",data[],7),AK$746)","v":0},null,{"$f":"IF(\"OPEX-O,\"&AM$2&\",,\"&$B767&\",\"=VLOOKUP(\"OPEX-O,\"&AM$2&\",,\"&$B767&\",\",data[],1),VLOOKUP(\"OPEX-O,\"&AM$2&\",,\"&$B767&\",\",data[],7),AM$746)","v":0},null,null,null,null,null,null,null,{"$f":"IF(\"OPEX-O,\"&AU$2&\",,\"&$B767&\",\"=VLOOKUP(\"OPEX-O,\"&AU$2&\",,\"&$B767&\",\",data[],1),VLOOKUP(\"OPEX-O,\"&AU$2&\",,\"&$B767&\",\",data[],7),AU$746)","v":1.9557894682818507E-3},null,{"$f":"IF(\"OPEX-O,\"&AW$2&\",,\"&$B767&\",\"=VLOOKUP(\"OPEX-O,\"&AW$2&\",,\"&$B767&\",\",data[],1),VLOOKUP(\"OPEX-O,\"&AW$2&\",,\"&$B767&\",\",data[],7),AW$746)","v":0},{"$f":"IF(\"OPEX-O,\"&AX$2&\",,\"&$B767&\",\"=VLOOKUP(\"OPEX-O,\"&AX$2&\",,\"&$B767&\",\",data[],1),VLOOKUP(\"OPEX-O,\"&AX$2&\",,\"&$B767&\",\",data[],7),AX$746)","v":0},{"$f":"IF(\"OPEX-O,\"&AY$2&\",,\"&$B767&\",\"=VLOOKUP(\"OPEX-O,\"&AY$2&\",,\"&$B767&\",\",data[],1),VLOOKUP(\"OPEX-O,\"&AY$2&\",,\"&$B767&\",\",data[],7),AY$746)","v":0},{"$f":"IF(\"OPEX-O,\"&AZ$2&\",,\"&$B767&\",\"=VLOOKUP(\"OPEX-O,\"&AZ$2&\",,\"&$B767&\",\",data[],1),VLOOKUP(\"OPEX-O,\"&AZ$2&\",,\"&$B767&\",\",data[],7),AZ$746)","v":0},null,{"$f":"IF(\"OPEX-O,\"&BB$2&\",,\"&$B767&\",\"=VLOOKUP(\"OPEX-O,\"&BB$2&\",,\"&$B767&\",\",data[],1),VLOOKUP(\"OPEX-O,\"&BB$2&\",,\"&$B767&\",\",data[],7),BB$746)","v":0},null,null,{"$f":"IF(\"OPEX-O,\"&BE$2&\",,\"&$B767&\",\"=VLOOKUP(\"OPEX-O,\"&BE$2&\",,\"&$B767&\",\",data[],1),VLOOKUP(\"OPEX-O,\"&BE$2&\",,\"&$B767&\",\",data[],7),BE$746)","v":0}]
[null,"ARG-SAF",null,null,null,null,null,null,null,null,{"$f":"IF(\"OPEX-o,\"&$K35&\",,\"&$B768&\",\"=VLOOKUP(\"OPEX-o,\"&$K35&\",,\"&$B768&\",\",data[],1),VLOOKUP(\"OPEX-o,\"&$K35&\",,\"&$B768&\",\",data[],7),INDEX($E$746:$I$746,$J35))","v":0},null,null,null,null,null,{"$f":"IF(\"OPEX-O,\"&Q$2&\",,\"&$B768&\",\"=VLOOKUP(\"OPEX-O,\"&Q$2&\",,\"&$B768&\",\",data[],1),VLOOKUP(\"OPEX-O,\"&Q$2&\",,\"&$B768&\",\",data[],7),Q$746)","v":0},null,{"$f":"IF(\"OPEX-O,\"&S$2&\",,\"&$B768&\",\"=VLOOKUP(\"OPEX-O,\"&S$2&\",,\"&$B768&\",\",data[],1),VLOOKUP(\"OPEX-O,\"&S$2&\",,\"&$B768&\",\",data[],7),S$746)","v":0},null,null,null,null,{"$f":"IF(\"OPEX-O,\"&X$2&\",,\"&$B768&\",\"=VLOOKUP(\"OPEX-O,\"&X$2&\",,\"&$B768&\",\",data[],1),VLOOKUP(\"OPEX-O,\"&X$2&\",,\"&$B768&\",\",data[],7),X$746)","v":0},null,{"$f":"IF(\"OPEX-O,\"&Z$2&\",,\"&$B768&\",\"=VLOOKUP(\"OPEX-O,\"&Z$2&\",,\"&$B768&\",\",data[],1),VLOOKUP(\"OPEX-O,\"&Z$2&\",,\"&$B768&\",\",data[],7),Z$746)","v":0},null,null,null,{"$f":"IF(\"OPEX-O,\"&AD$2&\",,\"&$B768&\",\"=VLOOKUP(\"OPEX-O,\"&AD$2&\",,\"&$B768&\",\",data[],1),VLOOKUP(\"OPEX-O,\"&AD$2&\",,\"&$B768&\",\",data[],7),AD$746)","v":0},null,null,null,null,null,null,{"$f":"IF(\"OPEX-O,\"&AK$2&\",,\"&$B768&\",\"=VLOOKUP(\"OPEX-O,\"&AK$2&\",,\"&$B768&\",\",data[],1),VLOOKUP(\"OPEX-O,\"&AK$2&\",,\"&$B768&\",\",data[],7),AK$746)","v":0},null,{"$f":"IF(\"OPEX-O,\"&AM$2&\",,\"&$B768&\",\"=VLOOKUP(\"OPEX-O,\"&AM$2&\",,\"&$B768&\",\",data[],1),VLOOKUP(\"OPEX-O,\"&AM$2&\",,\"&$B768&\",\",data[],7),AM$746)","v":0},null,null,null,null,null,null,null,{"$f":"IF(\"OPEX-O,\"&AU$2&\",,\"&$B768&\",\"=VLOOKUP(\"OPEX-O,\"&AU$2&\",,\"&$B768&\",\",data[],1),VLOOKUP(\"OPEX-O,\"&AU$2&\",,\"&$B768&\",\",data[],7),AU$746)","v":1.9557894682818507E-3},null,{"$f":"IF(\"OPEX-O,\"&AW$2&\",,\"&$B768&\",\"=VLOOKUP(\"OPEX-O,\"&AW$2&\",,\"&$B768&\",\",data[],1),VLOOKUP(\"OPEX-O,\"&AW$2&\",,\"&$B768&\",\",data[],7),AW$746)","v":0},{"$f":"IF(\"OPEX-O,\"&AX$2&\",,\"&$B768&\",\"=VLOOKUP(\"OPEX-O,\"&AX$2&\",,\"&$B768&\",\",data[],1),VLOOKUP(\"OPEX-O,\"&AX$2&\",,\"&$B768&\",\",data[],7),AX$746)","v":0},{"$f":"IF(\"OPEX-O,\"&AY$2&\",,\"&$B768&\",\"=VLOOKUP(\"OPEX-O,\"&AY$2&\",,\"&$B768&\",\",data[],1),VLOOKUP(\"OPEX-O,\"&AY$2&\",,\"&$B768&\",\",data[],7),AY$746)","v":0},{"$f":"IF(\"OPEX-O,\"&AZ$2&\",,\"&$B768&\",\"=VLOOKUP(\"OPEX-O,\"&AZ$2&\",,\"&$B768&\",\",data[],1),VLOOKUP(\"OPEX-O,\"&AZ$2&\",,\"&$B768&\",\",data[],7),AZ$746)","v":0},null,{"$f":"IF(\"OPEX-O,\"&BB$2&\",,\"&$B768&\",\"=VLOOKUP(\"OPEX-O,\"&BB$2&\",,\"&$B768&\",\",data[],1),VLOOKUP(\"OPEX-O,\"&BB$2&\",,\"&$B768&\",\",data[],7),BB$746)","v":0},null,null,{"$f":"IF(\"OPEX-O,\"&BE$2&\",,\"&$B768&\",\"=VLOOKUP(\"OPEX-O,\"&BE$2&\",,\"&$B768&\",\",data[],1),VLOOKUP(\"OPEX-O,\"&BE$2&\",,\"&$B768&\",\",data[],7),BE$746)","v":0}]
[null,"ARG-SAJ",null,null,null,null,null,null,null,null,{"$f":"IF(\"OPEX-o,\"&$K36&\",,\"&$B769&\",\"=VLOOKUP(\"OPEX-o,\"&$K36&\",,\"&$B769&\",\",data[],1),VLOOKUP(\"OPEX-o,\"&$K36&\",,\"&$B769&\",\",data[],7),INDEX($E$746:$I$746,$J36))","v":0},null,null,null,null,null,{"$f":"IF(\"OPEX-O,\"&Q$2&\",,\"&$B769&\",\"=VLOOKUP(\"OPEX-O,\"&Q$2&\",,\"&$B769&\",\",data[],1),VLOOKUP(\"OPEX-O,\"&Q$2&\",,\"&$B769&\",\",data[],7),Q$746)","v":0},null,{"$f":"IF(\"OPEX-O,\"&S$2&\",,\"&$B769&\",\"=VLOOKUP(\"OPEX-O,\"&S$2&\",,\"&$B769&\",\",data[],1),VLOOKUP(\"OPEX-O,\"&S$2&\",,\"&$B769&\",\",data[],7),S$746)","v":0},null,null,null,null,{"$f":"IF(\"OPEX-O,\"&X$2&\",,\"&$B769&\",\"=VLOOKUP(\"OPEX-O,\"&X$2&\",,\"&$B769&\",\",data[],1),VLOOKUP(\"OPEX-O,\"&X$2&\",,\"&$B769&\",\",data[],7),X$746)","v":0},null,{"$f":"IF(\"OPEX-O,\"&Z$2&\",,\"&$B769&\",\"=VLOOKUP(\"OPEX-O,\"&Z$2&\",,\"&$B769&\",\",data[],1),VLOOKUP(\"OPEX-O,\"&Z$2&\",,\"&$B769&\",\",data[],7),Z$746)","v":0},null,null,null,{"$f":"IF(\"OPEX-O,\"&AD$2&\",,\"&$B769&\",\"=VLOOKUP(\"OPEX-O,\"&AD$2&\",,\"&$B769&\",\",data[],1),VLOOKUP(\"OPEX-O,\"&AD$2&\",,\"&$B769&\",\",data[],7),AD$746)","v":0},null,null,null,null,null,null,{"$f":"IF(\"OPEX-O,\"&AK$2&\",,\"&$B769&\",\"=VLOOKUP(\"OPEX-O,\"&AK$2&\",,\"&$B769&\",\",data[],1),VLOOKUP(\"OPEX-O,\"&AK$2&\",,\"&$B769&\",\",data[],7),AK$746)","v":0},null,{"$f":"IF(\"OPEX-O,\"&AM$2&\",,\"&$B769&\",\"=VLOOKUP(\"OPEX-O,\"&AM$2&\",,\"&$B769&\",\",data[],1),VLOOKUP(\"OPEX-O,\"&AM$2&\",,\"&$B769&\",\",data[],7),AM$746)","v":0},null,null,null,null,null,null,null,{"$f":"IF(\"OPEX-O,\"&AU$2&\",,\"&$B769&\",\"=VLOOKUP(\"OPEX-O,\"&AU$2&\",,\"&$B769&\",\",data[],1),VLOOKUP(\"OPEX-O,\"&AU$2&\",,\"&$B769&\",\",data[],7),AU$746)","v":1.9557894682818507E-3},null,{"$f":"IF(\"OPEX-O,\"&AW$2&\",,\"&$B769&\",\"=VLOOKUP(\"OPEX-O,\"&AW$2&\",,\"&$B769&\",\",data[],1),VLOOKUP(\"OPEX-O,\"&AW$2&\",,\"&$B769&\",\",data[],7),AW$746)","v":0},{"$f":"IF(\"OPEX-O,\"&AX$2&\",,\"&$B769&\",\"=VLOOKUP(\"OPEX-O,\"&AX$2&\",,\"&$B769&\",\",data[],1),VLOOKUP(\"OPEX-O,\"&AX$2&\",,\"&$B769&\",\",data[],7),AX$746)","v":0},{"$f":"IF(\"OPEX-O,\"&AY$2&\",,\"&$B769&\",\"=VLOOKUP(\"OPEX-O,\"&AY$2&\",,\"&$B769&\",\",data[],1),VLOOKUP(\"OPEX-O,\"&AY$2&\",,\"&$B769&\",\",data[],7),AY$746)","v":0},{"$f":"IF(\"OPEX-O,\"&AZ$2&\",,\"&$B769&\",\"=VLOOKUP(\"OPEX-O,\"&AZ$2&\",,\"&$B769&\",\",data[],1),VLOOKUP(\"OPEX-O,\"&AZ$2&\",,\"&$B769&\",\",data[],7),AZ$746)","v":0},null,{"$f":"IF(\"OPEX-O,\"&BB$2&\",,\"&$B769&\",\"=VLOOKUP(\"OPEX-O,\"&BB$2&\",,\"&$B769&\",\",data[],1),VLOOKUP(\"OPEX-O,\"&BB$2&\",,\"&$B769&\",\",data[],7),BB$746)","v":0},null,null,{"$f":"IF(\"OPEX-O,\"&BE$2&\",,\"&$B769&\",\"=VLOOKUP(\"OPEX-O,\"&BE$2&\",,\"&$B769&\",\",data[],1),VLOOKUP(\"OPEX-O,\"&BE$2&\",,\"&$B769&\",\",data[],7),BE$746)","v":0}]
[null,"ARG-SAL",null,null,null,null,null,null,null,null,{"$f":"IF(\"OPEX-o,\"&$K37&\",,\"&$B770&\",\"=VLOOKUP(\"OPEX-o,\"&$K37&\",,\"&$B770&\",\",data[],1),VLOOKUP(\"OPEX-o,\"&$K37&\",,\"&$B770&\",\",data[],7),INDEX($E$746:$I$746,$J37))","v":0},null,null,null,null,null,{"$f":"IF(\"OPEX-O,\"&Q$2&\",,\"&$B770&\",\"=VLOOKUP(\"OPEX-O,\"&Q$2&\",,\"&$B770&\",\",data[],1),VLOOKUP(\"OPEX-O,\"&Q$2&\",,\"&$B770&\",\",data[],7),Q$746)","v":0},null,{"$f":"IF(\"OPEX-O,\"&S$2&\",,\"&$B770&\",\"=VLOOKUP(\"OPEX-O,\"&S$2&\",,\"&$B770&\",\",data[],1),VLOOKUP(\"OPEX-O,\"&S$2&\",,\"&$B770&\",\",data[],7),S$746)","v":0},null,null,null,null,{"$f":"IF(\"OPEX-O,\"&X$2&\",,\"&$B770&\",\"=VLOOKUP(\"OPEX-O,\"&X$2&\",,\"&$B770&\",\",data[],1),VLOOKUP(\"OPEX-O,\"&X$2&\",,\"&$B770&\",\",data[],7),X$746)","v":0},null,{"$f":"IF(\"OPEX-O,\"&Z$2&\",,\"&$B770&\",\"=VLOOKUP(\"OPEX-O,\"&Z$2&\",,\"&$B770&\",\",data[],1),VLOOKUP(\"OPEX-O,\"&Z$2&\",,\"&$B770&\",\",data[],7),Z$746)","v":0},null,null,null,{"$f":"IF(\"OPEX-O,\"&AD$2&\",,\"&$B770&\",\"=VLOOKUP(\"OPEX-O,\"&AD$2&\",,\"&$B770&\",\",data[],1),VLOOKUP(\"OPEX-O,\"&AD$2&\",,\"&$B770&\",\",data[],7),AD$746)","v":0},null,null,null,null,null,null,{"$f":"IF(\"OPEX-O,\"&AK$2&\",,\"&$B770&\",\"=VLOOKUP(\"OPEX-O,\"&AK$2&\",,\"&$B770&\",\",data[],1),VLOOKUP(\"OPEX-O,\"&AK$2&\",,\"&$B770&\",\",data[],7),AK$746)","v":0},null,{"$f":"IF(\"OPEX-O,\"&AM$2&\",,\"&$B770&\",\"=VLOOKUP(\"OPEX-O,\"&AM$2&\",,\"&$B770&\",\",data[],1),VLOOKUP(\"OPEX-O,\"&AM$2&\",,\"&$B770&\",\",data[],7),AM$746)","v":0},null,null,null,null,null,null,null,{"$f":"IF(\"OPEX-O,\"&AU$2&\",,\"&$B770&\",\"=VLOOKUP(\"OPEX-O,\"&AU$2&\",,\"&$B770&\",\",data[],1),VLOOKUP(\"OPEX-O,\"&AU$2&\",,\"&$B770&\",\",data[],7),AU$746)","v":1.9557894682818507E-3},null,{"$f":"IF(\"OPEX-O,\"&AW$2&\",,\"&$B770&\",\"=VLOOKUP(\"OPEX-O,\"&AW$2&\",,\"&$B770&\",\",data[],1),VLOOKUP(\"OPEX-O,\"&AW$2&\",,\"&$B770&\",\",data[],7),AW$746)","v":0},{"$f":"IF(\"OPEX-O,\"&AX$2&\",,\"&$B770&\",\"=VLOOKUP(\"OPEX-O,\"&AX$2&\",,\"&$B770&\",\",data[],1),VLOOKUP(\"OPEX-O,\"&AX$2&\",,\"&$B770&\",\",data[],7),AX$746)","v":0},{"$f":"IF(\"OPEX-O,\"&AY$2&\",,\"&$B770&\",\"=VLOOKUP(\"OPEX-O,\"&AY$2&\",,\"&$B770&\",\",data[],1),VLOOKUP(\"OPEX-O,\"&AY$2&\",,\"&$B770&\",\",data[],7),AY$746)","v":0},{"$f":"IF(\"OPEX-O,\"&AZ$2&\",,\"&$B770&\",\"=VLOOKUP(\"OPEX-O,\"&AZ$2&\",,\"&$B770&\",\",data[],1),VLOOKUP(\"OPEX-O,\"&AZ$2&\",,\"&$B770&\",\",data[],7),AZ$746)","v":0},null,{"$f":"IF(\"OPEX-O,\"&BB$2&\",,\"&$B770&\",\"=VLOOKUP(\"OPEX-O,\"&BB$2&\",,\"&$B770&\",\",data[],1),VLOOKUP(\"OPEX-O,\"&BB$2&\",,\"&$B770&\",\",data[],7),BB$746)","v":0},null,null,{"$f":"IF(\"OPEX-O,\"&BE$2&\",,\"&$B770&\",\"=VLOOKUP(\"OPEX-O,\"&BE$2&\",,\"&$B770&\",\",data[],1),VLOOKUP(\"OPEX-O,\"&BE$2&\",,\"&$B770&\",\",data[],7),BE$746)","v":0}]
[null,"ARG-SAT",null,null,null,null,null,null,null,null,{"$f":"IF(\"OPEX-o,\"&$K38&\",,\"&$B771&\",\"=VLOOKUP(\"OPEX-o,\"&$K38&\",,\"&$B771&\",\",data[],1),VLOOKUP(\"OPEX-o,\"&$K38&\",,\"&$B771&\",\",data[],7),INDEX($E$746:$I$746,$J38))","v":0},null,null,null,null,null,{"$f":"IF(\"OPEX-O,\"&Q$2&\",,\"&$B771&\",\"=VLOOKUP(\"OPEX-O,\"&Q$2&\",,\"&$B771&\",\",data[],1),VLOOKUP(\"OPEX-O,\"&Q$2&\",,\"&$B771&\",\",data[],7),Q$746)","v":0},null,{"$f":"IF(\"OPEX-O,\"&S$2&\",,\"&$B771&\",\"=VLOOKUP(\"OPEX-O,\"&S$2&\",,\"&$B771&\",\",data[],1),VLOOKUP(\"OPEX-O,\"&S$2&\",,\"&$B771&\",\",data[],7),S$746)","v":0},null,null,null,null,{"$f":"IF(\"OPEX-O,\"&X$2&\",,\"&$B771&\",\"=VLOOKUP(\"OPEX-O,\"&X$2&\",,\"&$B771&\",\",data[],1),VLOOKUP(\"OPEX-O,\"&X$2&\",,\"&$B771&\",\",data[],7),X$746)","v":0},null,{"$f":"IF(\"OPEX-O,\"&Z$2&\",,\"&$B771&\",\"=VLOOKUP(\"OPEX-O,\"&Z$2&\",,\"&$B771&\",\",data[],1),VLOOKUP(\"OPEX-O,\"&Z$2&\",,\"&$B771&\",\",data[],7),Z$746)","v":0},null,null,null,{"$f":"IF(\"OPEX-O,\"&AD$2&\",,\"&$B771&\",\"=VLOOKUP(\"OPEX-O,\"&AD$2&\",,\"&$B771&\",\",data[],1),VLOOKUP(\"OPEX-O,\"&AD$2&\",,\"&$B771&\",\",data[],7),AD$746)","v":0},null,null,null,null,null,null,{"$f":"IF(\"OPEX-O,\"&AK$2&\",,\"&$B771&\",\"=VLOOKUP(\"OPEX-O,\"&AK$2&\",,\"&$B771&\",\",data[],1),VLOOKUP(\"OPEX-O,\"&AK$2&\",,\"&$B771&\",\",data[],7),AK$746)","v":0},null,{"$f":"IF(\"OPEX-O,\"&AM$2&\",,\"&$B771&\",\"=VLOOKUP(\"OPEX-O,\"&AM$2&\",,\"&$B771&\",\",data[],1),VLOOKUP(\"OPEX-O,\"&AM$2&\",,\"&$B771&\",\",data[],7),AM$746)","v":0},null,null,null,null,null,null,null,{"$f":"IF(\"OPEX-O,\"&AU$2&\",,\"&$B771&\",\"=VLOOKUP(\"OPEX-O,\"&AU$2&\",,\"&$B771&\",\",data[],1),VLOOKUP(\"OPEX-O,\"&AU$2&\",,\"&$B771&\",\",data[],7),AU$746)","v":1.9557894682818507E-3},null,{"$f":"IF(\"OPEX-O,\"&AW$2&\",,\"&$B771&\",\"=VLOOKUP(\"OPEX-O,\"&AW$2&\",,\"&$B771&\",\",data[],1),VLOOKUP(\"OPEX-O,\"&AW$2&\",,\"&$B771&\",\",data[],7),AW$746)","v":0},{"$f":"IF(\"OPEX-O,\"&AX$2&\",,\"&$B771&\",\"=VLOOKUP(\"OPEX-O,\"&AX$2&\",,\"&$B771&\",\",data[],1),VLOOKUP(\"OPEX-O,\"&AX$2&\",,\"&$B771&\",\",data[],7),AX$746)","v":0},{"$f":"IF(\"OPEX-O,\"&AY$2&\",,\"&$B771&\",\"=VLOOKUP(\"OPEX-O,\"&AY$2&\",,\"&$B771&\",\",data[],1),VLOOKUP(\"OPEX-O,\"&AY$2&\",,\"&$B771&\",\",data[],7),AY$746)","v":0},{"$f":"IF(\"OPEX-O,\"&AZ$2&\",,\"&$B771&\",\"=VLOOKUP(\"OPEX-O,\"&AZ$2&\",,\"&$B771&\",\",data[],1),VLOOKUP(\"OPEX-O,\"&AZ$2&\",,\"&$B771&\",\",data[],7),AZ$746)","v":0},null,{"$f":"IF(\"OPEX-O,\"&BB$2&\",,\"&$B771&\",\"=VLOOKUP(\"OPEX-O,\"&BB$2&\",,\"&$B771&\",\",data[],1),VLOOKUP(\"OPEX-O,\"&BB$2&\",,\"&$B771&\",\",data[],7),BB$746)","v":0},null,null,{"$f":"IF(\"OPEX-O,\"&BE$2&\",,\"&$B771&\",\"=VLOOKUP(\"OPEX-O,\"&BE$2&\",,\"&$B771&\",\",data[],1),VLOOKUP(\"OPEX-O,\"&BE$2&\",,\"&$B771&\",\",data[],7),BE$746)","v":0}]
[null,"ARG-TUC",null,null,null,null,null,null,null,null,{"$f":"IF(\"OPEX-o,\"&$K39&\",,\"&$B772&\",\"=VLOOKUP(\"OPEX-o,\"&$K39&\",,\"&$B772&\",\",data[],1),VLOOKUP(\"OPEX-o,\"&$K39&\",,\"&$B772&\",\",data[],7),INDEX($E$746:$I$746,$J39))","v":0},null,null,null,null,null,{"$f":"IF(\"OPEX-O,\"&Q$2&\",,\"&$B772&\",\"=VLOOKUP(\"OPEX-O,\"&Q$2&\",,\"&$B772&\",\",data[],1),VLOOKUP(\"OPEX-O,\"&Q$2&\",,\"&$B772&\",\",data[],7),Q$746)","v":0},null,{"$f":"IF(\"OPEX-O,\"&S$2&\",,\"&$B772&\",\"=VLOOKUP(\"OPEX-O,\"&S$2&\",,\"&$B772&\",\",data[],1),VLOOKUP(\"OPEX-O,\"&S$2&\",,\"&$B772&\",\",data[],7),S$746)","v":0},null,null,null,null,{"$f":"IF(\"OPEX-O,\"&X$2&\",,\"&$B772&\",\"=VLOOKUP(\"OPEX-O,\"&X$2&\",,\"&$B772&\",\",data[],1),VLOOKUP(\"OPEX-O,\"&X$2&\",,\"&$B772&\",\",data[],7),X$746)","v":0},null,{"$f":"IF(\"OPEX-O,\"&Z$2&\",,\"&$B772&\",\"=VLOOKUP(\"OPEX-O,\"&Z$2&\",,\"&$B772&\",\",data[],1),VLOOKUP(\"OPEX-O,\"&Z$2&\",,\"&$B772&\",\",data[],7),Z$746)","v":0},null,null,null,{"$f":"IF(\"OPEX-O,\"&AD$2&\",,\"&$B772&\",\"=VLOOKUP(\"OPEX-O,\"&AD$2&\",,\"&$B772&\",\",data[],1),VLOOKUP(\"OPEX-O,\"&AD$2&\",,\"&$B772&\",\",data[],7),AD$746)","v":0},null,null,null,null,null,null,{"$f":"IF(\"OPEX-O,\"&AK$2&\",,\"&$B772&\",\"=VLOOKUP(\"OPEX-O,\"&AK$2&\",,\"&$B772&\",\",data[],1),VLOOKUP(\"OPEX-O,\"&AK$2&\",,\"&$B772&\",\",data[],7),AK$746)","v":0},null,{"$f":"IF(\"OPEX-O,\"&AM$2&\",,\"&$B772&\",\"=VLOOKUP(\"OPEX-O,\"&AM$2&\",,\"&$B772&\",\",data[],1),VLOOKUP(\"OPEX-O,\"&AM$2&\",,\"&$B772&\",\",data[],7),AM$746)","v":0},null,null,null,null,null,null,null,{"$f":"IF(\"OPEX-O,\"&AU$2&\",,\"&$B772&\",\"=VLOOKUP(\"OPEX-O,\"&AU$2&\",,\"&$B772&\",\",data[],1),VLOOKUP(\"OPEX-O,\"&AU$2&\",,\"&$B772&\",\",data[],7),AU$746)","v":1.9557894682818507E-3},null,{"$f":"IF(\"OPEX-O,\"&AW$2&\",,\"&$B772&\",\"=VLOOKUP(\"OPEX-O,\"&AW$2&\",,\"&$B772&\",\",data[],1),VLOOKUP(\"OPEX-O,\"&AW$2&\",,\"&$B772&\",\",data[],7),AW$746)","v":0},{"$f":"IF(\"OPEX-O,\"&AX$2&\",,\"&$B772&\",\"=VLOOKUP(\"OPEX-O,\"&AX$2&\",,\"&$B772&\",\",data[],1),VLOOKUP(\"OPEX-O,\"&AX$2&\",,\"&$B772&\",\",data[],7),AX$746)","v":0},{"$f":"IF(\"OPEX-O,\"&AY$2&\",,\"&$B772&\",\"=VLOOKUP(\"OPEX-O,\"&AY$2&\",,\"&$B772&\",\",data[],1),VLOOKUP(\"OPEX-O,\"&AY$2&\",,\"&$B772&\",\",data[],7),AY$746)","v":0},{"$f":"IF(\"OPEX-O,\"&AZ$2&\",,\"&$B772&\",\"=VLOOKUP(\"OPEX-O,\"&AZ$2&\",,\"&$B772&\",\",data[],1),VLOOKUP(\"OPEX-O,\"&AZ$2&\",,\"&$B772&\",\",data[],7),AZ$746)","v":0},null,{"$f":"IF(\"OPEX-O,\"&BB$2&\",,\"&$B772&\",\"=VLOOKUP(\"OPEX-O,\"&BB$2&\",,\"&$B772&\",\",data[],1),VLOOKUP(\"OPEX-O,\"&BB$2&\",,\"&$B772&\",\",data[],7),BB$746)","v":0},null,null,{"$f":"IF(\"OPEX-O,\"&BE$2&\",,\"&$B772&\",\"=VLOOKUP(\"OPEX-O,\"&BE$2&\",,\"&$B772&\",\",data[],1),VLOOKUP(\"OPEX-O,\"&BE$2&\",,\"&$B772&\",\",data[],7),BE$746)","v":0}]
[null,"AUS",null,null,null,null,null,null,null,null,{"$f":"IF(\"OPEX-o,\"&$K40&\",,\"&$B773&\",\"=VLOOKUP(\"OPEX-o,\"&$K40&\",,\"&$B773&\",\",data[],1),VLOOKUP(\"OPEX-o,\"&$K40&\",,\"&$B773&\",\",data[],7),INDEX($E$746:$I$746,$J40))","v":0},null,null,null,null,null,{"$f":"IF(\"OPEX-O,\"&Q$2&\",,\"&$B773&\",\"=VLOOKUP(\"OPEX-O,\"&Q$2&\",,\"&$B773&\",\",data[],1),VLOOKUP(\"OPEX-O,\"&Q$2&\",,\"&$B773&\",\",data[],7),Q$746)","v":0},null,{"$f":"IF(\"OPEX-O,\"&S$2&\",,\"&$B773&\",\"=VLOOKUP(\"OPEX-O,\"&S$2&\",,\"&$B773&\",\",data[],1),VLOOKUP(\"OPEX-O,\"&S$2&\",,\"&$B773&\",\",data[],7),S$746)","v":0},null,null,null,null,{"$f":"IF(\"OPEX-O,\"&X$2&\",,\"&$B773&\",\"=VLOOKUP(\"OPEX-O,\"&X$2&\",,\"&$B773&\",\",data[],1),VLOOKUP(\"OPEX-O,\"&X$2&\",,\"&$B773&\",\",data[],7),X$746)","v":0},null,{"$f":"IF(\"OPEX-O,\"&Z$2&\",,\"&$B773&\",\"=VLOOKUP(\"OPEX-O,\"&Z$2&\",,\"&$B773&\",\",data[],1),VLOOKUP(\"OPEX-O,\"&Z$2&\",,\"&$B773&\",\",data[],7),Z$746)","v":0},null,null,null,{"$f":"IF(\"OPEX-O,\"&AD$2&\",,\"&$B773&\",\"=VLOOKUP(\"OPEX-O,\"&AD$2&\",,\"&$B773&\",\",data[],1),VLOOKUP(\"OPEX-O,\"&AD$2&\",,\"&$B773&\",\",data[],7),AD$746)","v":0},null,null,null,null,null,null,{"$f":"IF(\"OPEX-O,\"&AK$2&\",,\"&$B773&\",\"=VLOOKUP(\"OPEX-O,\"&AK$2&\",,\"&$B773&\",\",data[],1),VLOOKUP(\"OPEX-O,\"&AK$2&\",,\"&$B773&\",\",data[],7),AK$746)","v":0},null,{"$f":"IF(\"OPEX-O,\"&AM$2&\",,\"&$B773&\",\"=VLOOKUP(\"OPEX-O,\"&AM$2&\",,\"&$B773&\",\",data[],1),VLOOKUP(\"OPEX-O,\"&AM$2&\",,\"&$B773&\",\",data[],7),AM$746)","v":0},null,null,null,null,null,null,null,{"$f":"IF(\"OPEX-O,\"&AU$2&\",,\"&$B773&\",\"=VLOOKUP(\"OPEX-O,\"&AU$2&\",,\"&$B773&\",\",data[],1),VLOOKUP(\"OPEX-O,\"&AU$2&\",,\"&$B773&\",\",data[],7),AU$746)","v":1.9557894682818507E-3},null,{"$f":"IF(\"OPEX-O,\"&AW$2&\",,\"&$B773&\",\"=VLOOKUP(\"OPEX-O,\"&AW$2&\",,\"&$B773&\",\",data[],1),VLOOKUP(\"OPEX-O,\"&AW$2&\",,\"&$B773&\",\",data[],7),AW$746)","v":0},{"$f":"IF(\"OPEX-O,\"&AX$2&\",,\"&$B773&\",\"=VLOOKUP(\"OPEX-O,\"&AX$2&\",,\"&$B773&\",\",data[],1),VLOOKUP(\"OPEX-O,\"&AX$2&\",,\"&$B773&\",\",data[],7),AX$746)","v":0},{"$f":"IF(\"OPEX-O,\"&AY$2&\",,\"&$B773&\",\"=VLOOKUP(\"OPEX-O,\"&AY$2&\",,\"&$B773&\",\",data[],1),VLOOKUP(\"OPEX-O,\"&AY$2&\",,\"&$B773&\",\",data[],7),AY$746)","v":0},{"$f":"IF(\"OPEX-O,\"&AZ$2&\",,\"&$B773&\",\"=VLOOKUP(\"OPEX-O,\"&AZ$2&\",,\"&$B773&\",\",data[],1),VLOOKUP(\"OPEX-O,\"&AZ$2&\",,\"&$B773&\",\",data[],7),AZ$746)","v":0},null,{"$f":"IF(\"OPEX-O,\"&BB$2&\",,\"&$B773&\",\"=VLOOKUP(\"OPEX-O,\"&BB$2&\",,\"&$B773&\",\",data[],1),VLOOKUP(\"OPEX-O,\"&BB$2&\",,\"&$B773&\",\",data[],7),BB$746)","v":0},null,null,{"$f":"IF(\"OPEX-O,\"&BE$2&\",,\"&$B773&\",\"=VLOOKUP(\"OPEX-O,\"&BE$2&\",,\"&$B773&\",\",data[],1),VLOOKUP(\"OPEX-O,\"&BE$2&\",,\"&$B773&\",\",data[],7),BE$746)","v":0}]
[null,"BRA",null,null,null,null,null,null,null,null,{"$f":"IF(\"OPEX-o,\"&$K41&\",,\"&$B774&\",\"=VLOOKUP(\"OPEX-o,\"&$K41&\",,\"&$B774&\",\",data[],1),VLOOKUP(\"OPEX-o,\"&$K41&\",,\"&$B774&\",\",data[],7),INDEX($E$746:$I$746,$J41))","v":0},null,null,null,null,null,{"$f":"IF(\"OPEX-O,\"&Q$2&\",,\"&$B774&\",\"=VLOOKUP(\"OPEX-O,\"&Q$2&\",,\"&$B774&\",\",data[],1),VLOOKUP(\"OPEX-O,\"&Q$2&\",,\"&$B774&\",\",data[],7),Q$746)","v":0},null,{"$f":"IF(\"OPEX-O,\"&S$2&\",,\"&$B774&\",\"=VLOOKUP(\"OPEX-O,\"&S$2&\",,\"&$B774&\",\",data[],1),VLOOKUP(\"OPEX-O,\"&S$2&\",,\"&$B774&\",\",data[],7),S$746)","v":0},null,null,null,null,{"$f":"IF(\"OPEX-O,\"&X$2&\",,\"&$B774&\",\"=VLOOKUP(\"OPEX-O,\"&X$2&\",,\"&$B774&\",\",data[],1),VLOOKUP(\"OPEX-O,\"&X$2&\",,\"&$B774&\",\",data[],7),X$746)","v":0},null,{"$f":"IF(\"OPEX-O,\"&Z$2&\",,\"&$B774&\",\"=VLOOKUP(\"OPEX-O,\"&Z$2&\",,\"&$B774&\",\",data[],1),VLOOKUP(\"OPEX-O,\"&Z$2&\",,\"&$B774&\",\",data[],7),Z$746)","v":0},null,null,null,{"$f":"IF(\"OPEX-O,\"&AD$2&\",,\"&$B774&\",\"=VLOOKUP(\"OPEX-O,\"&AD$2&\",,\"&$B774&\",\",data[],1),VLOOKUP(\"OPEX-O,\"&AD$2&\",,\"&$B774&\",\",data[],7),AD$746)","v":0},null,null,null,null,null,null,{"$f":"IF(\"OPEX-O,\"&AK$2&\",,\"&$B774&\",\"=VLOOKUP(\"OPEX-O,\"&AK$2&\",,\"&$B774&\",\",data[],1),VLOOKUP(\"OPEX-O,\"&AK$2&\",,\"&$B774&\",\",data[],7),AK$746)","v":0},null,{"$f":"IF(\"OPEX-O,\"&AM$2&\",,\"&$B774&\",\"=VLOOKUP(\"OPEX-O,\"&AM$2&\",,\"&$B774&\",\",data[],1),VLOOKUP(\"OPEX-O,\"&AM$2&\",,\"&$B774&\",\",data[],7),AM$746)","v":0},null,null,null,null,null,null,null,{"$f":"IF(\"OPEX-O,\"&AU$2&\",,\"&$B774&\",\"=VLOOKUP(\"OPEX-O,\"&AU$2&\",,\"&$B774&\",\",data[],1),VLOOKUP(\"OPEX-O,\"&AU$2&\",,\"&$B774&\",\",data[],7),AU$746)","v":1.9557894682818507E-3},null,{"$f":"IF(\"OPEX-O,\"&AW$2&\",,\"&$B774&\",\"=VLOOKUP(\"OPEX-O,\"&AW$2&\",,\"&$B774&\",\",data[],1),VLOOKUP(\"OPEX-O,\"&AW$2&\",,\"&$B774&\",\",data[],7),AW$746)","v":0},{"$f":"IF(\"OPEX-O,\"&AX$2&\",,\"&$B774&\",\"=VLOOKUP(\"OPEX-O,\"&AX$2&\",,\"&$B774&\",\",data[],1),VLOOKUP(\"OPEX-O,\"&AX$2&\",,\"&$B774&\",\",data[],7),AX$746)","v":0},{"$f":"IF(\"OPEX-O,\"&AY$2&\",,\"&$B774&\",\"=VLOOKUP(\"OPEX-O,\"&AY$2&\",,\"&$B774&\",\",data[],1),VLOOKUP(\"OPEX-O,\"&AY$2&\",,\"&$B774&\",\",data[],7),AY$746)","v":0},{"$f":"IF(\"OPEX-O,\"&AZ$2&\",,\"&$B774&\",\"=VLOOKUP(\"OPEX-O,\"&AZ$2&\",,\"&$B774&\",\",data[],1),VLOOKUP(\"OPEX-O,\"&AZ$2&\",,\"&$B774&\",\",data[],7),AZ$746)","v":0},null,{"$f":"IF(\"OPEX-O,\"&BB$2&\",,\"&$B774&\",\"=VLOOKUP(\"OPEX-O,\"&BB$2&\",,\"&$B774&\",\",data[],1),VLOOKUP(\"OPEX-O,\"&BB$2&\",,\"&$B774&\",\",data[],7),BB$746)","v":0},null,null,{"$f":"IF(\"OPEX-O,\"&BE$2&\",,\"&$B774&\",\"=VLOOKUP(\"OPEX-O,\"&BE$2&\",,\"&$B774&\",\",data[],1),VLOOKUP(\"OPEX-O,\"&BE$2&\",,\"&$B774&\",\",data[],7),BE$746)","v":0}]
[null,"CHL",null,null,null,null,null,null,null,null,{"$f":"IF(\"OPEX-o,\"&$K42&\",,\"&$B775&\",\"=VLOOKUP(\"OPEX-o,\"&$K42&\",,\"&$B775&\",\",data[],1),VLOOKUP(\"OPEX-o,\"&$K42&\",,\"&$B775&\",\",data[],7),INDEX($E$746:$I$746,$J42))","v":0},null,null,null,null,null,{"$f":"IF(\"OPEX-O,\"&Q$2&\",,\"&$B775&\",\"=VLOOKUP(\"OPEX-O,\"&Q$2&\",,\"&$B775&\",\",data[],1),VLOOKUP(\"OPEX-O,\"&Q$2&\",,\"&$B775&\",\",data[],7),Q$746)","v":0},null,{"$f":"IF(\"OPEX-O,\"&S$2&\",,\"&$B775&\",\"=VLOOKUP(\"OPEX-O,\"&S$2&\",,\"&$B775&\",\",data[],1),VLOOKUP(\"OPEX-O,\"&S$2&\",,\"&$B775&\",\",data[],7),S$746)","v":0},null,null,null,null,{"$f":"IF(\"OPEX-O,\"&X$2&\",,\"&$B775&\",\"=VLOOKUP(\"OPEX-O,\"&X$2&\",,\"&$B775&\",\",data[],1),VLOOKUP(\"OPEX-O,\"&X$2&\",,\"&$B775&\",\",data[],7),X$746)","v":0},null,{"$f":"IF(\"OPEX-O,\"&Z$2&\",,\"&$B775&\",\"=VLOOKUP(\"OPEX-O,\"&Z$2&\",,\"&$B775&\",\",data[],1),VLOOKUP(\"OPEX-O,\"&Z$2&\",,\"&$B775&\",\",data[],7),Z$746)","v":0},null,null,null,{"$f":"IF(\"OPEX-O,\"&AD$2&\",,\"&$B775&\",\"=VLOOKUP(\"OPEX-O,\"&AD$2&\",,\"&$B775&\",\",data[],1),VLOOKUP(\"OPEX-O,\"&AD$2&\",,\"&$B775&\",\",data[],7),AD$746)","v":0},null,null,null,null,null,null,{"$f":"IF(\"OPEX-O,\"&AK$2&\",,\"&$B775&\",\"=VLOOKUP(\"OPEX-O,\"&AK$2&\",,\"&$B775&\",\",data[],1),VLOOKUP(\"OPEX-O,\"&AK$2&\",,\"&$B775&\",\",data[],7),AK$746)","v":0},null,{"$f":"IF(\"OPEX-O,\"&AM$2&\",,\"&$B775&\",\"=VLOOKUP(\"OPEX-O,\"&AM$2&\",,\"&$B775&\",\",data[],1),VLOOKUP(\"OPEX-O,\"&AM$2&\",,\"&$B775&\",\",data[],7),AM$746)","v":0},null,null,null,null,null,null,null,{"$f":"IF(\"OPEX-O,\"&AU$2&\",,\"&$B775&\",\"=VLOOKUP(\"OPEX-O,\"&AU$2&\",,\"&$B775&\",\",data[],1),VLOOKUP(\"OPEX-O,\"&AU$2&\",,\"&$B775&\",\",data[],7),AU$746)","v":1.9557894682818507E-3},null,{"$f":"IF(\"OPEX-O,\"&AW$2&\",,\"&$B775&\",\"=VLOOKUP(\"OPEX-O,\"&AW$2&\",,\"&$B775&\",\",data[],1),VLOOKUP(\"OPEX-O,\"&AW$2&\",,\"&$B775&\",\",data[],7),AW$746)","v":0},{"$f":"IF(\"OPEX-O,\"&AX$2&\",,\"&$B775&\",\"=VLOOKUP(\"OPEX-O,\"&AX$2&\",,\"&$B775&\",\",data[],1),VLOOKUP(\"OPEX-O,\"&AX$2&\",,\"&$B775&\",\",data[],7),AX$746)","v":0},{"$f":"IF(\"OPEX-O,\"&AY$2&\",,\"&$B775&\",\"=VLOOKUP(\"OPEX-O,\"&AY$2&\",,\"&$B775&\",\",data[],1),VLOOKUP(\"OPEX-O,\"&AY$2&\",,\"&$B775&\",\",data[],7),AY$746)","v":0},{"$f":"IF(\"OPEX-O,\"&AZ$2&\",,\"&$B775&\",\"=VLOOKUP(\"OPEX-O,\"&AZ$2&\",,\"&$B775&\",\",data[],1),VLOOKUP(\"OPEX-O,\"&AZ$2&\",,\"&$B775&\",\",data[],7),AZ$746)","v":0},null,{"$f":"IF(\"OPEX-O,\"&BB$2&\",,\"&$B775&\",\"=VLOOKUP(\"OPEX-O,\"&BB$2&\",,\"&$B775&\",\",data[],1),VLOOKUP(\"OPEX-O,\"&BB$2&\",,\"&$B775&\",\",data[],7),BB$746)","v":0},null,null,{"$f":"IF(\"OPEX-O,\"&BE$2&\",,\"&$B775&\",\"=VLOOKUP(\"OPEX-O,\"&BE$2&\",,\"&$B775&\",\",data[],1),VLOOKUP(\"OPEX-O,\"&BE$2&\",,\"&$B775&\",\",data[],7),BE$746)","v":0}]
[null,"CHN",null,null,null,null,null,null,null,null,{"$f":"IF(\"OPEX-o,\"&$K43&\",,\"&$B776&\",\"=VLOOKUP(\"OPEX-o,\"&$K43&\",,\"&$B776&\",\",data[],1),VLOOKUP(\"OPEX-o,\"&$K43&\",,\"&$B776&\",\",data[],7),INDEX($E$746:$I$746,$J43))","v":0},null,null,null,null,null,{"$f":"IF(\"OPEX-O,\"&Q$2&\",,\"&$B776&\",\"=VLOOKUP(\"OPEX-O,\"&Q$2&\",,\"&$B776&\",\",data[],1),VLOOKUP(\"OPEX-O,\"&Q$2&\",,\"&$B776&\",\",data[],7),Q$746)","v":0},null,{"$f":"IF(\"OPEX-O,\"&S$2&\",,\"&$B776&\",\"=VLOOKUP(\"OPEX-O,\"&S$2&\",,\"&$B776&\",\",data[],1),VLOOKUP(\"OPEX-O,\"&S$2&\",,\"&$B776&\",\",data[],7),S$746)","v":0},null,null,null,null,{"$f":"IF(\"OPEX-O,\"&X$2&\",,\"&$B776&\",\"=VLOOKUP(\"OPEX-O,\"&X$2&\",,\"&$B776&\",\",data[],1),VLOOKUP(\"OPEX-O,\"&X$2&\",,\"&$B776&\",\",data[],7),X$746)","v":0},null,{"$f":"IF(\"OPEX-O,\"&Z$2&\",,\"&$B776&\",\"=VLOOKUP(\"OPEX-O,\"&Z$2&\",,\"&$B776&\",\",data[],1),VLOOKUP(\"OPEX-O,\"&Z$2&\",,\"&$B776&\",\",data[],7),Z$746)","v":0},null,null,null,{"$f":"IF(\"OPEX-O,\"&AD$2&\",,\"&$B776&\",\"=VLOOKUP(\"OPEX-O,\"&AD$2&\",,\"&$B776&\",\",data[],1),VLOOKUP(\"OPEX-O,\"&AD$2&\",,\"&$B776&\",\",data[],7),AD$746)","v":0},null,null,null,null,null,null,{"$f":"IF(\"OPEX-O,\"&AK$2&\",,\"&$B776&\",\"=VLOOKUP(\"OPEX-O,\"&AK$2&\",,\"&$B776&\",\",data[],1),VLOOKUP(\"OPEX-O,\"&AK$2&\",,\"&$B776&\",\",data[],7),AK$746)","v":0},null,{"$f":"IF(\"OPEX-O,\"&AM$2&\",,\"&$B776&\",\"=VLOOKUP(\"OPEX-O,\"&AM$2&\",,\"&$B776&\",\",data[],1),VLOOKUP(\"OPEX-O,\"&AM$2&\",,\"&$B776&\",\",data[],7),AM$746)","v":0},null,null,null,null,null,null,null,{"$f":"IF(\"OPEX-O,\"&AU$2&\",,\"&$B776&\",\"=VLOOKUP(\"OPEX-O,\"&AU$2&\",,\"&$B776&\",\",data[],1),VLOOKUP(\"OPEX-O,\"&AU$2&\",,\"&$B776&\",\",data[],7),AU$746)","v":1.9557894682818507E-3},null,{"$f":"IF(\"OPEX-O,\"&AW$2&\",,\"&$B776&\",\"=VLOOKUP(\"OPEX-O,\"&AW$2&\",,\"&$B776&\",\",data[],1),VLOOKUP(\"OPEX-O,\"&AW$2&\",,\"&$B776&\",\",data[],7),AW$746)","v":0},{"$f":"IF(\"OPEX-O,\"&AX$2&\",,\"&$B776&\",\"=VLOOKUP(\"OPEX-O,\"&AX$2&\",,\"&$B776&\",\",data[],1),VLOOKUP(\"OPEX-O,\"&AX$2&\",,\"&$B776&\",\",data[],7),AX$746)","v":0},{"$f":"IF(\"OPEX-O,\"&AY$2&\",,\"&$B776&\",\"=VLOOKUP(\"OPEX-O,\"&AY$2&\",,\"&$B776&\",\",data[],1),VLOOKUP(\"OPEX-O,\"&AY$2&\",,\"&$B776&\",\",data[],7),AY$746)","v":0},{"$f":"IF(\"OPEX-O,\"&AZ$2&\",,\"&$B776&\",\"=VLOOKUP(\"OPEX-O,\"&AZ$2&\",,\"&$B776&\",\",data[],1),VLOOKUP(\"OPEX-O,\"&AZ$2&\",,\"&$B776&\",\",data[],7),AZ$746)","v":0},null,{"$f":"IF(\"OPEX-O,\"&BB$2&\",,\"&$B776&\",\"=VLOOKUP(\"OPEX-O,\"&BB$2&\",,\"&$B776&\",\",data[],1),VLOOKUP(\"OPEX-O,\"&BB$2&\",,\"&$B776&\",\",data[],7),BB$746)","v":0},null,null,{"$f":"IF(\"OPEX-O,\"&BE$2&\",,\"&$B776&\",\"=VLOOKUP(\"OPEX-O,\"&BE$2&\",,\"&$B776&\",\",data[],1),VLOOKUP(\"OPEX-O,\"&BE$2&\",,\"&$B776&\",\",data[],7),BE$746)","v":0}]
[null,"COL",null,null,null,null,null,null,null,null,{"$f":"IF(\"OPEX-o,\"&$K44&\",,\"&$B777&\",\"=VLOOKUP(\"OPEX-o,\"&$K44&\",,\"&$B777&\",\",data[],1),VLOOKUP(\"OPEX-o,\"&$K44&\",,\"&$B777&\",\",data[],7),INDEX($E$746:$I$746,$J44))","v":0},null,null,null,null,null,{"$f":"IF(\"OPEX-O,\"&Q$2&\",,\"&$B777&\",\"=VLOOKUP(\"OPEX-O,\"&Q$2&\",,\"&$B777&\",\",data[],1),VLOOKUP(\"OPEX-O,\"&Q$2&\",,\"&$B777&\",\",data[],7),Q$746)","v":0},null,{"$f":"IF(\"OPEX-O,\"&S$2&\",,\"&$B777&\",\"=VLOOKUP(\"OPEX-O,\"&S$2&\",,\"&$B777&\",\",data[],1),VLOOKUP(\"OPEX-O,\"&S$2&\",,\"&$B777&\",\",data[],7),S$746)","v":0},null,null,null,null,{"$f":"IF(\"OPEX-O,\"&X$2&\",,\"&$B777&\",\"=VLOOKUP(\"OPEX-O,\"&X$2&\",,\"&$B777&\",\",data[],1),VLOOKUP(\"OPEX-O,\"&X$2&\",,\"&$B777&\",\",data[],7),X$746)","v":0},null,{"$f":"IF(\"OPEX-O,\"&Z$2&\",,\"&$B777&\",\"=VLOOKUP(\"OPEX-O,\"&Z$2&\",,\"&$B777&\",\",data[],1),VLOOKUP(\"OPEX-O,\"&Z$2&\",,\"&$B777&\",\",data[],7),Z$746)","v":0},null,null,null,{"$f":"IF(\"OPEX-O,\"&AD$2&\",,\"&$B777&\",\"=VLOOKUP(\"OPEX-O,\"&AD$2&\",,\"&$B777&\",\",data[],1),VLOOKUP(\"OPEX-O,\"&AD$2&\",,\"&$B777&\",\",data[],7),AD$746)","v":0},null,null,null,null,null,null,{"$f":"IF(\"OPEX-O,\"&AK$2&\",,\"&$B777&\",\"=VLOOKUP(\"OPEX-O,\"&AK$2&\",,\"&$B777&\",\",data[],1),VLOOKUP(\"OPEX-O,\"&AK$2&\",,\"&$B777&\",\",data[],7),AK$746)","v":0},null,{"$f":"IF(\"OPEX-O,\"&AM$2&\",,\"&$B777&\",\"=VLOOKUP(\"OPEX-O,\"&AM$2&\",,\"&$B777&\",\",data[],1),VLOOKUP(\"OPEX-O,\"&AM$2&\",,\"&$B777&\",\",data[],7),AM$746)","v":0},null,null,null,null,null,null,null,{"$f":"IF(\"OPEX-O,\"&AU$2&\",,\"&$B777&\",\"=VLOOKUP(\"OPEX-O,\"&AU$2&\",,\"&$B777&\",\",data[],1),VLOOKUP(\"OPEX-O,\"&AU$2&\",,\"&$B777&\",\",data[],7),AU$746)","v":1.9557894682818507E-3},null,{"$f":"IF(\"OPEX-O,\"&AW$2&\",,\"&$B777&\",\"=VLOOKUP(\"OPEX-O,\"&AW$2&\",,\"&$B777&\",\",data[],1),VLOOKUP(\"OPEX-O,\"&AW$2&\",,\"&$B777&\",\",data[],7),AW$746)","v":0},{"$f":"IF(\"OPEX-O,\"&AX$2&\",,\"&$B777&\",\"=VLOOKUP(\"OPEX-O,\"&AX$2&\",,\"&$B777&\",\",data[],1),VLOOKUP(\"OPEX-O,\"&AX$2&\",,\"&$B777&\",\",data[],7),AX$746)","v":0},{"$f":"IF(\"OPEX-O,\"&AY$2&\",,\"&$B777&\",\"=VLOOKUP(\"OPEX-O,\"&AY$2&\",,\"&$B777&\",\",data[],1),VLOOKUP(\"OPEX-O,\"&AY$2&\",,\"&$B777&\",\",data[],7),AY$746)","v":0},{"$f":"IF(\"OPEX-O,\"&AZ$2&\",,\"&$B777&\",\"=VLOOKUP(\"OPEX-O,\"&AZ$2&\",,\"&$B777&\",\",data[],1),VLOOKUP(\"OPEX-O,\"&AZ$2&\",,\"&$B777&\",\",data[],7),AZ$746)","v":0},null,{"$f":"IF(\"OPEX-O,\"&BB$2&\",,\"&$B777&\",\"=VLOOKUP(\"OPEX-O,\"&BB$2&\",,\"&$B777&\",\",data[],1),VLOOKUP(\"OPEX-O,\"&BB$2&\",,\"&$B777&\",\",data[],7),BB$746)","v":0},null,null,{"$f":"IF(\"OPEX-O,\"&BE$2&\",,\"&$B777&\",\"=VLOOKUP(\"OPEX-O,\"&BE$2&\",,\"&$B777&\",\",data[],1),VLOOKUP(\"OPEX-O,\"&BE$2&\",,\"&$B777&\",\",data[],7),BE$746)","v":0}]
[null,"CRI",null,null,null,null,null,null,null,null,{"$f":"IF(\"OPEX-o,\"&$K45&\",,\"&$B778&\",\"=VLOOKUP(\"OPEX-o,\"&$K45&\",,\"&$B778&\",\",data[],1),VLOOKUP(\"OPEX-o,\"&$K45&\",,\"&$B778&\",\",data[],7),INDEX($E$746:$I$746,$J45))","v":0},null,null,null,null,null,{"$f":"IF(\"OPEX-O,\"&Q$2&\",,\"&$B778&\",\"=VLOOKUP(\"OPEX-O,\"&Q$2&\",,\"&$B778&\",\",data[],1),VLOOKUP(\"OPEX-O,\"&Q$2&\",,\"&$B778&\",\",data[],7),Q$746)","v":0},null,{"$f":"IF(\"OPEX-O,\"&S$2&\",,\"&$B778&\",\"=VLOOKUP(\"OPEX-O,\"&S$2&\",,\"&$B778&\",\",data[],1),VLOOKUP(\"OPEX-O,\"&S$2&\",,\"&$B778&\",\",data[],7),S$746)","v":0},null,null,null,null,{"$f":"IF(\"OPEX-O,\"&X$2&\",,\"&$B778&\",\"=VLOOKUP(\"OPEX-O,\"&X$2&\",,\"&$B778&\",\",data[],1),VLOOKUP(\"OPEX-O,\"&X$2&\",,\"&$B778&\",\",data[],7),X$746)","v":0},null,{"$f":"IF(\"OPEX-O,\"&Z$2&\",,\"&$B778&\",\"=VLOOKUP(\"OPEX-O,\"&Z$2&\",,\"&$B778&\",\",data[],1),VLOOKUP(\"OPEX-O,\"&Z$2&\",,\"&$B778&\",\",data[],7),Z$746)","v":0},null,null,null,{"$f":"IF(\"OPEX-O,\"&AD$2&\",,\"&$B778&\",\"=VLOOKUP(\"OPEX-O,\"&AD$2&\",,\"&$B778&\",\",data[],1),VLOOKUP(\"OPEX-O,\"&AD$2&\",,\"&$B778&\",\",data[],7),AD$746)","v":0},null,null,null,null,null,null,{"$f":"IF(\"OPEX-O,\"&AK$2&\",,\"&$B778&\",\"=VLOOKUP(\"OPEX-O,\"&AK$2&\",,\"&$B778&\",\",data[],1),VLOOKUP(\"OPEX-O,\"&AK$2&\",,\"&$B778&\",\",data[],7),AK$746)","v":0},null,{"$f":"IF(\"OPEX-O,\"&AM$2&\",,\"&$B778&\",\"=VLOOKUP(\"OPEX-O,\"&AM$2&\",,\"&$B778&\",\",data[],1),VLOOKUP(\"OPEX-O,\"&AM$2&\",,\"&$B778&\",\",data[],7),AM$746)","v":0},null,null,null,null,null,null,null,{"$f":"IF(\"OPEX-O,\"&AU$2&\",,\"&$B778&\",\"=VLOOKUP(\"OPEX-O,\"&AU$2&\",,\"&$B778&\",\",data[],1),VLOOKUP(\"OPEX-O,\"&AU$2&\",,\"&$B778&\",\",data[],7),AU$746)","v":1.9557894682818507E-3},null,{"$f":"IF(\"OPEX-O,\"&AW$2&\",,\"&$B778&\",\"=VLOOKUP(\"OPEX-O,\"&AW$2&\",,\"&$B778&\",\",data[],1),VLOOKUP(\"OPEX-O,\"&AW$2&\",,\"&$B778&\",\",data[],7),AW$746)","v":0},{"$f":"IF(\"OPEX-O,\"&AX$2&\",,\"&$B778&\",\"=VLOOKUP(\"OPEX-O,\"&AX$2&\",,\"&$B778&\",\",data[],1),VLOOKUP(\"OPEX-O,\"&AX$2&\",,\"&$B778&\",\",data[],7),AX$746)","v":0},{"$f":"IF(\"OPEX-O,\"&AY$2&\",,\"&$B778&\",\"=VLOOKUP(\"OPEX-O,\"&AY$2&\",,\"&$B778&\",\",data[],1),VLOOKUP(\"OPEX-O,\"&AY$2&\",,\"&$B778&\",\",data[],7),AY$746)","v":0},{"$f":"IF(\"OPEX-O,\"&AZ$2&\",,\"&$B778&\",\"=VLOOKUP(\"OPEX-O,\"&AZ$2&\",,\"&$B778&\",\",data[],1),VLOOKUP(\"OPEX-O,\"&AZ$2&\",,\"&$B778&\",\",data[],7),AZ$746)","v":0},null,{"$f":"IF(\"OPEX-O,\"&BB$2&\",,\"&$B778&\",\"=VLOOKUP(\"OPEX-O,\"&BB$2&\",,\"&$B778&\",\",data[],1),VLOOKUP(\"OPEX-O,\"&BB$2&\",,\"&$B778&\",\",data[],7),BB$746)","v":0},null,null,{"$f":"IF(\"OPEX-O,\"&BE$2&\",,\"&$B778&\",\"=VLOOKUP(\"OPEX-O,\"&BE$2&\",,\"&$B778&\",\",data[],1),VLOOKUP(\"OPEX-O,\"&BE$2&\",,\"&$B778&\",\",data[],7),BE$746)","v":0}]
[null,"DNK",null,null,null,null,null,null,null,null,{"$f":"IF(\"OPEX-o,\"&$K46&\",,\"&$B779&\",\"=VLOOKUP(\"OPEX-o,\"&$K46&\",,\"&$B779&\",\",data[],1),VLOOKUP(\"OPEX-o,\"&$K46&\",,\"&$B779&\",\",data[],7),INDEX($E$746:$I$746,$J46))","v":0},null,null,null,null,null,{"$f":"IF(\"OPEX-O,\"&Q$2&\",,\"&$B779&\",\"=VLOOKUP(\"OPEX-O,\"&Q$2&\",,\"&$B779&\",\",data[],1),VLOOKUP(\"OPEX-O,\"&Q$2&\",,\"&$B779&\",\",data[],7),Q$746)","v":0},null,{"$f":"IF(\"OPEX-O,\"&S$2&\",,\"&$B779&\",\"=VLOOKUP(\"OPEX-O,\"&S$2&\",,\"&$B779&\",\",data[],1),VLOOKUP(\"OPEX-O,\"&S$2&\",,\"&$B779&\",\",data[],7),S$746)","v":0},null,null,null,null,{"$f":"IF(\"OPEX-O,\"&X$2&\",,\"&$B779&\",\"=VLOOKUP(\"OPEX-O,\"&X$2&\",,\"&$B779&\",\",data[],1),VLOOKUP(\"OPEX-O,\"&X$2&\",,\"&$B779&\",\",data[],7),X$746)","v":0},null,{"$f":"IF(\"OPEX-O,\"&Z$2&\",,\"&$B779&\",\"=VLOOKUP(\"OPEX-O,\"&Z$2&\",,\"&$B779&\",\",data[],1),VLOOKUP(\"OPEX-O,\"&Z$2&\",,\"&$B779&\",\",data[],7),Z$746)","v":0},null,null,null,{"$f":"IF(\"OPEX-O,\"&AD$2&\",,\"&$B779&\",\"=VLOOKUP(\"OPEX-O,\"&AD$2&\",,\"&$B779&\",\",data[],1),VLOOKUP(\"OPEX-O,\"&AD$2&\",,\"&$B779&\",\",data[],7),AD$746)","v":0},null,null,null,null,null,null,{"$f":"IF(\"OPEX-O,\"&AK$2&\",,\"&$B779&\",\"=VLOOKUP(\"OPEX-O,\"&AK$2&\",,\"&$B779&\",\",data[],1),VLOOKUP(\"OPEX-O,\"&AK$2&\",,\"&$B779&\",\",data[],7),AK$746)","v":0},null,{"$f":"IF(\"OPEX-O,\"&AM$2&\",,\"&$B779&\",\"=VLOOKUP(\"OPEX-O,\"&AM$2&\",,\"&$B779&\",\",data[],1),VLOOKUP(\"OPEX-O,\"&AM$2&\",,\"&$B779&\",\",data[],7),AM$746)","v":0},null,null,null,null,null,null,null,{"$f":"IF(\"OPEX-O,\"&AU$2&\",,\"&$B779&\",\"=VLOOKUP(\"OPEX-O,\"&AU$2&\",,\"&$B779&\",\",data[],1),VLOOKUP(\"OPEX-O,\"&AU$2&\",,\"&$B779&\",\",data[],7),AU$746)","v":1.9557894682818507E-3},null,{"$f":"IF(\"OPEX-O,\"&AW$2&\",,\"&$B779&\",\"=VLOOKUP(\"OPEX-O,\"&AW$2&\",,\"&$B779&\",\",data[],1),VLOOKUP(\"OPEX-O,\"&AW$2&\",,\"&$B779&\",\",data[],7),AW$746)","v":0},{"$f":"IF(\"OPEX-O,\"&AX$2&\",,\"&$B779&\",\"=VLOOKUP(\"OPEX-O,\"&AX$2&\",,\"&$B779&\",\",data[],1),VLOOKUP(\"OPEX-O,\"&AX$2&\",,\"&$B779&\",\",data[],7),AX$746)","v":0},{"$f":"IF(\"OPEX-O,\"&AY$2&\",,\"&$B779&\",\"=VLOOKUP(\"OPEX-O,\"&AY$2&\",,\"&$B779&\",\",data[],1),VLOOKUP(\"OPEX-O,\"&AY$2&\",,\"&$B779&\",\",data[],7),AY$746)","v":0},{"$f":"IF(\"OPEX-O,\"&AZ$2&\",,\"&$B779&\",\"=VLOOKUP(\"OPEX-O,\"&AZ$2&\",,\"&$B779&\",\",data[],1),VLOOKUP(\"OPEX-O,\"&AZ$2&\",,\"&$B779&\",\",data[],7),AZ$746)","v":0},null,{"$f":"IF(\"OPEX-O,\"&BB$2&\",,\"&$B779&\",\"=VLOOKUP(\"OPEX-O,\"&BB$2&\",,\"&$B779&\",\",data[],1),VLOOKUP(\"OPEX-O,\"&BB$2&\",,\"&$B779&\",\",data[],7),BB$746)","v":0},null,null,{"$f":"IF(\"OPEX-O,\"&BE$2&\",,\"&$B779&\",\"=VLOOKUP(\"OPEX-O,\"&BE$2&\",,\"&$B779&\",\",data[],1),VLOOKUP(\"OPEX-O,\"&BE$2&\",,\"&$B779&\",\",data[],7),BE$746)","v":0}]
[null,"DZA",null,null,null,null,null,null,null,null,{"$f":"IF(\"OPEX-o,\"&$K47&\",,\"&$B780&\",\"=VLOOKUP(\"OPEX-o,\"&$K47&\",,\"&$B780&\",\",data[],1),VLOOKUP(\"OPEX-o,\"&$K47&\",,\"&$B780&\",\",data[],7),INDEX($E$746:$I$746,$J47))","v":0},null,null,null,null,null,{"$f":"IF(\"OPEX-O,\"&Q$2&\",,\"&$B780&\",\"=VLOOKUP(\"OPEX-O,\"&Q$2&\",,\"&$B780&\",\",data[],1),VLOOKUP(\"OPEX-O,\"&Q$2&\",,\"&$B780&\",\",data[],7),Q$746)","v":0},null,{"$f":"IF(\"OPEX-O,\"&S$2&\",,\"&$B780&\",\"=VLOOKUP(\"OPEX-O,\"&S$2&\",,\"&$B780&\",\",data[],1),VLOOKUP(\"OPEX-O,\"&S$2&\",,\"&$B780&\",\",data[],7),S$746)","v":0},null,null,null,null,{"$f":"IF(\"OPEX-O,\"&X$2&\",,\"&$B780&\",\"=VLOOKUP(\"OPEX-O,\"&X$2&\",,\"&$B780&\",\",data[],1),VLOOKUP(\"OPEX-O,\"&X$2&\",,\"&$B780&\",\",data[],7),X$746)","v":0},null,{"$f":"IF(\"OPEX-O,\"&Z$2&\",,\"&$B780&\",\"=VLOOKUP(\"OPEX-O,\"&Z$2&\",,\"&$B780&\",\",data[],1),VLOOKUP(\"OPEX-O,\"&Z$2&\",,\"&$B780&\",\",data[],7),Z$746)","v":0},null,null,null,{"$f":"IF(\"OPEX-O,\"&AD$2&\",,\"&$B780&\",\"=VLOOKUP(\"OPEX-O,\"&AD$2&\",,\"&$B780&\",\",data[],1),VLOOKUP(\"OPEX-O,\"&AD$2&\",,\"&$B780&\",\",data[],7),AD$746)","v":0},null,null,null,null,null,null,{"$f":"IF(\"OPEX-O,\"&AK$2&\",,\"&$B780&\",\"=VLOOKUP(\"OPEX-O,\"&AK$2&\",,\"&$B780&\",\",data[],1),VLOOKUP(\"OPEX-O,\"&AK$2&\",,\"&$B780&\",\",data[],7),AK$746)","v":0},null,{"$f":"IF(\"OPEX-O,\"&AM$2&\",,\"&$B780&\",\"=VLOOKUP(\"OPEX-O,\"&AM$2&\",,\"&$B780&\",\",data[],1),VLOOKUP(\"OPEX-O,\"&AM$2&\",,\"&$B780&\",\",data[],7),AM$746)","v":0},null,null,null,null,null,null,null,{"$f":"IF(\"OPEX-O,\"&AU$2&\",,\"&$B780&\",\"=VLOOKUP(\"OPEX-O,\"&AU$2&\",,\"&$B780&\",\",data[],1),VLOOKUP(\"OPEX-O,\"&AU$2&\",,\"&$B780&\",\",data[],7),AU$746)","v":1.9557894682818507E-3},null,{"$f":"IF(\"OPEX-O,\"&AW$2&\",,\"&$B780&\",\"=VLOOKUP(\"OPEX-O,\"&AW$2&\",,\"&$B780&\",\",data[],1),VLOOKUP(\"OPEX-O,\"&AW$2&\",,\"&$B780&\",\",data[],7),AW$746)","v":0},{"$f":"IF(\"OPEX-O,\"&AX$2&\",,\"&$B780&\",\"=VLOOKUP(\"OPEX-O,\"&AX$2&\",,\"&$B780&\",\",data[],1),VLOOKUP(\"OPEX-O,\"&AX$2&\",,\"&$B780&\",\",data[],7),AX$746)","v":0},{"$f":"IF(\"OPEX-O,\"&AY$2&\",,\"&$B780&\",\"=VLOOKUP(\"OPEX-O,\"&AY$2&\",,\"&$B780&\",\",data[],1),VLOOKUP(\"OPEX-O,\"&AY$2&\",,\"&$B780&\",\",data[],7),AY$746)","v":0},{"$f":"IF(\"OPEX-O,\"&AZ$2&\",,\"&$B780&\",\"=VLOOKUP(\"OPEX-O,\"&AZ$2&\",,\"&$B780&\",\",data[],1),VLOOKUP(\"OPEX-O,\"&AZ$2&\",,\"&$B780&\",\",data[],7),AZ$746)","v":0},null,{"$f":"IF(\"OPEX-O,\"&BB$2&\",,\"&$B780&\",\"=VLOOKUP(\"OPEX-O,\"&BB$2&\",,\"&$B780&\",\",data[],1),VLOOKUP(\"OPEX-O,\"&BB$2&\",,\"&$B780&\",\",data[],7),BB$746)","v":0},null,null,{"$f":"IF(\"OPEX-O,\"&BE$2&\",,\"&$B780&\",\"=VLOOKUP(\"OPEX-O,\"&BE$2&\",,\"&$B780&\",\",data[],1),VLOOKUP(\"OPEX-O,\"&BE$2&\",,\"&$B780&\",\",data[],7),BE$746)","v":0}]
[null,"EGY",null,null,null,null,null,null,null,null,{"$f":"IF(\"OPEX-o,\"&$K48&\",,\"&$B781&\",\"=VLOOKUP(\"OPEX-o,\"&$K48&\",,\"&$B781&\",\",data[],1),VLOOKUP(\"OPEX-o,\"&$K48&\",,\"&$B781&\",\",data[],7),INDEX($E$746:$I$746,$J48))","v":0},null,null,null,null,null,{"$f":"IF(\"OPEX-O,\"&Q$2&\",,\"&$B781&\",\"=VLOOKUP(\"OPEX-O,\"&Q$2&\",,\"&$B781&\",\",data[],1),VLOOKUP(\"OPEX-O,\"&Q$2&\",,\"&$B781&\",\",data[],7),Q$746)","v":0},null,{"$f":"IF(\"OPEX-O,\"&S$2&\",,\"&$B781&\",\"=VLOOKUP(\"OPEX-O,\"&S$2&\",,\"&$B781&\",\",data[],1),VLOOKUP(\"OPEX-O,\"&S$2&\",,\"&$B781&\",\",data[],7),S$746)","v":0},null,null,null,null,{"$f":"IF(\"OPEX-O,\"&X$2&\",,\"&$B781&\",\"=VLOOKUP(\"OPEX-O,\"&X$2&\",,\"&$B781&\",\",data[],1),VLOOKUP(\"OPEX-O,\"&X$2&\",,\"&$B781&\",\",data[],7),X$746)","v":0},null,{"$f":"IF(\"OPEX-O,\"&Z$2&\",,\"&$B781&\",\"=VLOOKUP(\"OPEX-O,\"&Z$2&\",,\"&$B781&\",\",data[],1),VLOOKUP(\"OPEX-O,\"&Z$2&\",,\"&$B781&\",\",data[],7),Z$746)","v":0},null,null,null,{"$f":"IF(\"OPEX-O,\"&AD$2&\",,\"&$B781&\",\"=VLOOKUP(\"OPEX-O,\"&AD$2&\",,\"&$B781&\",\",data[],1),VLOOKUP(\"OPEX-O,\"&AD$2&\",,\"&$B781&\",\",data[],7),AD$746)","v":0},null,null,null,null,null,null,{"$f":"IF(\"OPEX-O,\"&AK$2&\",,\"&$B781&\",\"=VLOOKUP(\"OPEX-O,\"&AK$2&\",,\"&$B781&\",\",data[],1),VLOOKUP(\"OPEX-O,\"&AK$2&\",,\"&$B781&\",\",data[],7),AK$746)","v":0},null,{"$f":"IF(\"OPEX-O,\"&AM$2&\",,\"&$B781&\",\"=VLOOKUP(\"OPEX-O,\"&AM$2&\",,\"&$B781&\",\",data[],1),VLOOKUP(\"OPEX-O,\"&AM$2&\",,\"&$B781&\",\",data[],7),AM$746)","v":0},null,null,null,null,null,null,null,{"$f":"IF(\"OPEX-O,\"&AU$2&\",,\"&$B781&\",\"=VLOOKUP(\"OPEX-O,\"&AU$2&\",,\"&$B781&\",\",data[],1),VLOOKUP(\"OPEX-O,\"&AU$2&\",,\"&$B781&\",\",data[],7),AU$746)","v":1.9557894682818507E-3},null,{"$f":"IF(\"OPEX-O,\"&AW$2&\",,\"&$B781&\",\"=VLOOKUP(\"OPEX-O,\"&AW$2&\",,\"&$B781&\",\",data[],1),VLOOKUP(\"OPEX-O,\"&AW$2&\",,\"&$B781&\",\",data[],7),AW$746)","v":0},{"$f":"IF(\"OPEX-O,\"&AX$2&\",,\"&$B781&\",\"=VLOOKUP(\"OPEX-O,\"&AX$2&\",,\"&$B781&\",\",data[],1),VLOOKUP(\"OPEX-O,\"&AX$2&\",,\"&$B781&\",\",data[],7),AX$746)","v":0},{"$f":"IF(\"OPEX-O,\"&AY$2&\",,\"&$B781&\",\"=VLOOKUP(\"OPEX-O,\"&AY$2&\",,\"&$B781&\",\",data[],1),VLOOKUP(\"OPEX-O,\"&AY$2&\",,\"&$B781&\",\",data[],7),AY$746)","v":0},{"$f":"IF(\"OPEX-O,\"&AZ$2&\",,\"&$B781&\",\"=VLOOKUP(\"OPEX-O,\"&AZ$2&\",,\"&$B781&\",\",data[],1),VLOOKUP(\"OPEX-O,\"&AZ$2&\",,\"&$B781&\",\",data[],7),AZ$746)","v":0},null,{"$f":"IF(\"OPEX-O,\"&BB$2&\",,\"&$B781&\",\"=VLOOKUP(\"OPEX-O,\"&BB$2&\",,\"&$B781&\",\",data[],1),VLOOKUP(\"OPEX-O,\"&BB$2&\",,\"&$B781&\",\",data[],7),BB$746)","v":0},null,null,{"$f":"IF(\"OPEX-O,\"&BE$2&\",,\"&$B781&\",\"=VLOOKUP(\"OPEX-O,\"&BE$2&\",,\"&$B781&\",\",data[],1),VLOOKUP(\"OPEX-O,\"&BE$2&\",,\"&$B781&\",\",data[],7),BE$746)","v":0}]
[null,"ESP",null,null,null,null,null,null,null,null,{"$f":"IF(\"OPEX-o,\"&$K49&\",,\"&$B782&\",\"=VLOOKUP(\"OPEX-o,\"&$K49&\",,\"&$B782&\",\",data[],1),VLOOKUP(\"OPEX-o,\"&$K49&\",,\"&$B782&\",\",data[],7),INDEX($E$746:$I$746,$J49))","v":0},null,null,null,null,null,{"$f":"IF(\"OPEX-O,\"&Q$2&\",,\"&$B782&\",\"=VLOOKUP(\"OPEX-O,\"&Q$2&\",,\"&$B782&\",\",data[],1),VLOOKUP(\"OPEX-O,\"&Q$2&\",,\"&$B782&\",\",data[],7),Q$746)","v":0},null,{"$f":"IF(\"OPEX-O,\"&S$2&\",,\"&$B782&\",\"=VLOOKUP(\"OPEX-O,\"&S$2&\",,\"&$B782&\",\",data[],1),VLOOKUP(\"OPEX-O,\"&S$2&\",,\"&$B782&\",\",data[],7),S$746)","v":0},null,null,null,null,{"$f":"IF(\"OPEX-O,\"&X$2&\",,\"&$B782&\",\"=VLOOKUP(\"OPEX-O,\"&X$2&\",,\"&$B782&\",\",data[],1),VLOOKUP(\"OPEX-O,\"&X$2&\",,\"&$B782&\",\",data[],7),X$746)","v":0},null,{"$f":"IF(\"OPEX-O,\"&Z$2&\",,\"&$B782&\",\"=VLOOKUP(\"OPEX-O,\"&Z$2&\",,\"&$B782&\",\",data[],1),VLOOKUP(\"OPEX-O,\"&Z$2&\",,\"&$B782&\",\",data[],7),Z$746)","v":0},null,null,null,{"$f":"IF(\"OPEX-O,\"&AD$2&\",,\"&$B782&\",\"=VLOOKUP(\"OPEX-O,\"&AD$2&\",,\"&$B782&\",\",data[],1),VLOOKUP(\"OPEX-O,\"&AD$2&\",,\"&$B782&\",\",data[],7),AD$746)","v":0},null,null,null,null,null,null,{"$f":"IF(\"OPEX-O,\"&AK$2&\",,\"&$B782&\",\"=VLOOKUP(\"OPEX-O,\"&AK$2&\",,\"&$B782&\",\",data[],1),VLOOKUP(\"OPEX-O,\"&AK$2&\",,\"&$B782&\",\",data[],7),AK$746)","v":0},null,{"$f":"IF(\"OPEX-O,\"&AM$2&\",,\"&$B782&\",\"=VLOOKUP(\"OPEX-O,\"&AM$2&\",,\"&$B782&\",\",data[],1),VLOOKUP(\"OPEX-O,\"&AM$2&\",,\"&$B782&\",\",data[],7),AM$746)","v":0},null,null,null,null,null,null,null,{"$f":"IF(\"OPEX-O,\"&AU$2&\",,\"&$B782&\",\"=VLOOKUP(\"OPEX-O,\"&AU$2&\",,\"&$B782&\",\",data[],1),VLOOKUP(\"OPEX-O,\"&AU$2&\",,\"&$B782&\",\",data[],7),AU$746)","v":1.9557894682818507E-3},null,{"$f":"IF(\"OPEX-O,\"&AW$2&\",,\"&$B782&\",\"=VLOOKUP(\"OPEX-O,\"&AW$2&\",,\"&$B782&\",\",data[],1),VLOOKUP(\"OPEX-O,\"&AW$2&\",,\"&$B782&\",\",data[],7),AW$746)","v":0},{"$f":"IF(\"OPEX-O,\"&AX$2&\",,\"&$B782&\",\"=VLOOKUP(\"OPEX-O,\"&AX$2&\",,\"&$B782&\",\",data[],1),VLOOKUP(\"OPEX-O,\"&AX$2&\",,\"&$B782&\",\",data[],7),AX$746)","v":0},{"$f":"IF(\"OPEX-O,\"&AY$2&\",,\"&$B782&\",\"=VLOOKUP(\"OPEX-O,\"&AY$2&\",,\"&$B782&\",\",data[],1),VLOOKUP(\"OPEX-O,\"&AY$2&\",,\"&$B782&\",\",data[],7),AY$746)","v":0},{"$f":"IF(\"OPEX-O,\"&AZ$2&\",,\"&$B782&\",\"=VLOOKUP(\"OPEX-O,\"&AZ$2&\",,\"&$B782&\",\",data[],1),VLOOKUP(\"OPEX-O,\"&AZ$2&\",,\"&$B782&\",\",data[],7),AZ$746)","v":0},null,{"$f":"IF(\"OPEX-O,\"&BB$2&\",,\"&$B782&\",\"=VLOOKUP(\"OPEX-O,\"&BB$2&\",,\"&$B782&\",\",data[],1),VLOOKUP(\"OPEX-O,\"&BB$2&\",,\"&$B782&\",\",data[],7),BB$746)","v":0},null,null,{"$f":"IF(\"OPEX-O,\"&BE$2&\",,\"&$B782&\",\"=VLOOKUP(\"OPEX-O,\"&BE$2&\",,\"&$B782&\",\",data[],1),VLOOKUP(\"OPEX-O,\"&BE$2&\",,\"&$B782&\",\",data[],7),BE$746)","v":0}]
[null,"IDN",null,null,null,null,null,null,null,null,{"$f":"IF(\"OPEX-o,\"&$K50&\",,\"&$B783&\",\"=VLOOKUP(\"OPEX-o,\"&$K50&\",,\"&$B783&\",\",data[],1),VLOOKUP(\"OPEX-o,\"&$K50&\",,\"&$B783&\",\",data[],7),INDEX($E$746:$I$746,$J50))","v":0},null,null,null,null,null,{"$f":"IF(\"OPEX-O,\"&Q$2&\",,\"&$B783&\",\"=VLOOKUP(\"OPEX-O,\"&Q$2&\",,\"&$B783&\",\",data[],1),VLOOKUP(\"OPEX-O,\"&Q$2&\",,\"&$B783&\",\",data[],7),Q$746)","v":0},null,{"$f":"IF(\"OPEX-O,\"&S$2&\",,\"&$B783&\",\"=VLOOKUP(\"OPEX-O,\"&S$2&\",,\"&$B783&\",\",data[],1),VLOOKUP(\"OPEX-O,\"&S$2&\",,\"&$B783&\",\",data[],7),S$746)","v":0},null,null,null,null,{"$f":"IF(\"OPEX-O,\"&X$2&\",,\"&$B783&\",\"=VLOOKUP(\"OPEX-O,\"&X$2&\",,\"&$B783&\",\",data[],1),VLOOKUP(\"OPEX-O,\"&X$2&\",,\"&$B783&\",\",data[],7),X$746)","v":0},null,{"$f":"IF(\"OPEX-O,\"&Z$2&\",,\"&$B783&\",\"=VLOOKUP(\"OPEX-O,\"&Z$2&\",,\"&$B783&\",\",data[],1),VLOOKUP(\"OPEX-O,\"&Z$2&\",,\"&$B783&\",\",data[],7),Z$746)","v":0},null,null,null,{"$f":"IF(\"OPEX-O,\"&AD$2&\",,\"&$B783&\",\"=VLOOKUP(\"OPEX-O,\"&AD$2&\",,\"&$B783&\",\",data[],1),VLOOKUP(\"OPEX-O,\"&AD$2&\",,\"&$B783&\",\",data[],7),AD$746)","v":0},null,null,null,null,null,null,{"$f":"IF(\"OPEX-O,\"&AK$2&\",,\"&$B783&\",\"=VLOOKUP(\"OPEX-O,\"&AK$2&\",,\"&$B783&\",\",data[],1),VLOOKUP(\"OPEX-O,\"&AK$2&\",,\"&$B783&\",\",data[],7),AK$746)","v":0},null,{"$f":"IF(\"OPEX-O,\"&AM$2&\",,\"&$B783&\",\"=VLOOKUP(\"OPEX-O,\"&AM$2&\",,\"&$B783&\",\",data[],1),VLOOKUP(\"OPEX-O,\"&AM$2&\",,\"&$B783&\",\",data[],7),AM$746)","v":0},null,null,null,null,null,null,null,{"$f":"IF(\"OPEX-O,\"&AU$2&\",,\"&$B783&\",\"=VLOOKUP(\"OPEX-O,\"&AU$2&\",,\"&$B783&\",\",data[],1),VLOOKUP(\"OPEX-O,\"&AU$2&\",,\"&$B783&\",\",data[],7),AU$746)","v":1.9557894682818507E-3},null,{"$f":"IF(\"OPEX-O,\"&AW$2&\",,\"&$B783&\",\"=VLOOKUP(\"OPEX-O,\"&AW$2&\",,\"&$B783&\",\",data[],1),VLOOKUP(\"OPEX-O,\"&AW$2&\",,\"&$B783&\",\",data[],7),AW$746)","v":0},{"$f":"IF(\"OPEX-O,\"&AX$2&\",,\"&$B783&\",\"=VLOOKUP(\"OPEX-O,\"&AX$2&\",,\"&$B783&\",\",data[],1),VLOOKUP(\"OPEX-O,\"&AX$2&\",,\"&$B783&\",\",data[],7),AX$746)","v":0},{"$f":"IF(\"OPEX-O,\"&AY$2&\",,\"&$B783&\",\"=VLOOKUP(\"OPEX-O,\"&AY$2&\",,\"&$B783&\",\",data[],1),VLOOKUP(\"OPEX-O,\"&AY$2&\",,\"&$B783&\",\",data[],7),AY$746)","v":0},{"$f":"IF(\"OPEX-O,\"&AZ$2&\",,\"&$B783&\",\"=VLOOKUP(\"OPEX-O,\"&AZ$2&\",,\"&$B783&\",\",data[],1),VLOOKUP(\"OPEX-O,\"&AZ$2&\",,\"&$B783&\",\",data[],7),AZ$746)","v":0},null,{"$f":"IF(\"OPEX-O,\"&BB$2&\",,\"&$B783&\",\"=VLOOKUP(\"OPEX-O,\"&BB$2&\",,\"&$B783&\",\",data[],1),VLOOKUP(\"OPEX-O,\"&BB$2&\",,\"&$B783&\",\",data[],7),BB$746)","v":0},null,null,{"$f":"IF(\"OPEX-O,\"&BE$2&\",,\"&$B783&\",\"=VLOOKUP(\"OPEX-O,\"&BE$2&\",,\"&$B783&\",\",data[],1),VLOOKUP(\"OPEX-O,\"&BE$2&\",,\"&$B783&\",\",data[],7),BE$746)","v":0}]
[null,"IND",null,null,null,null,null,null,null,null,{"$f":"IF(\"OPEX-o,\"&$K51&\",,\"&$B784&\",\"=VLOOKUP(\"OPEX-o,\"&$K51&\",,\"&$B784&\",\",data[],1),VLOOKUP(\"OPEX-o,\"&$K51&\",,\"&$B784&\",\",data[],7),INDEX($E$746:$I$746,$J51))","v":0},null,null,null,null,null,{"$f":"IF(\"OPEX-O,\"&Q$2&\",,\"&$B784&\",\"=VLOOKUP(\"OPEX-O,\"&Q$2&\",,\"&$B784&\",\",data[],1),VLOOKUP(\"OPEX-O,\"&Q$2&\",,\"&$B784&\",\",data[],7),Q$746)","v":0},null,{"$f":"IF(\"OPEX-O,\"&S$2&\",,\"&$B784&\",\"=VLOOKUP(\"OPEX-O,\"&S$2&\",,\"&$B784&\",\",data[],1),VLOOKUP(\"OPEX-O,\"&S$2&\",,\"&$B784&\",\",data[],7),S$746)","v":0},null,null,null,null,{"$f":"IF(\"OPEX-O,\"&X$2&\",,\"&$B784&\",\"=VLOOKUP(\"OPEX-O,\"&X$2&\",,\"&$B784&\",\",data[],1),VLOOKUP(\"OPEX-O,\"&X$2&\",,\"&$B784&\",\",data[],7),X$746)","v":0},null,{"$f":"IF(\"OPEX-O,\"&Z$2&\",,\"&$B784&\",\"=VLOOKUP(\"OPEX-O,\"&Z$2&\",,\"&$B784&\",\",data[],1),VLOOKUP(\"OPEX-O,\"&Z$2&\",,\"&$B784&\",\",data[],7),Z$746)","v":0},null,null,null,{"$f":"IF(\"OPEX-O,\"&AD$2&\",,\"&$B784&\",\"=VLOOKUP(\"OPEX-O,\"&AD$2&\",,\"&$B784&\",\",data[],1),VLOOKUP(\"OPEX-O,\"&AD$2&\",,\"&$B784&\",\",data[],7),AD$746)","v":0},null,null,null,null,null,null,{"$f":"IF(\"OPEX-O,\"&AK$2&\",,\"&$B784&\",\"=VLOOKUP(\"OPEX-O,\"&AK$2&\",,\"&$B784&\",\",data[],1),VLOOKUP(\"OPEX-O,\"&AK$2&\",,\"&$B784&\",\",data[],7),AK$746)","v":0},null,{"$f":"IF(\"OPEX-O,\"&AM$2&\",,\"&$B784&\",\"=VLOOKUP(\"OPEX-O,\"&AM$2&\",,\"&$B784&\",\",data[],1),VLOOKUP(\"OPEX-O,\"&AM$2&\",,\"&$B784&\",\",data[],7),AM$746)","v":0},null,null,null,null,null,null,null,{"$f":"IF(\"OPEX-O,\"&AU$2&\",,\"&$B784&\",\"=VLOOKUP(\"OPEX-O,\"&AU$2&\",,\"&$B784&\",\",data[],1),VLOOKUP(\"OPEX-O,\"&AU$2&\",,\"&$B784&\",\",data[],7),AU$746)","v":1.9557894682818507E-3},null,{"$f":"IF(\"OPEX-O,\"&AW$2&\",,\"&$B784&\",\"=VLOOKUP(\"OPEX-O,\"&AW$2&\",,\"&$B784&\",\",data[],1),VLOOKUP(\"OPEX-O,\"&AW$2&\",,\"&$B784&\",\",data[],7),AW$746)","v":0},{"$f":"IF(\"OPEX-O,\"&AX$2&\",,\"&$B784&\",\"=VLOOKUP(\"OPEX-O,\"&AX$2&\",,\"&$B784&\",\",data[],1),VLOOKUP(\"OPEX-O,\"&AX$2&\",,\"&$B784&\",\",data[],7),AX$746)","v":0},{"$f":"IF(\"OPEX-O,\"&AY$2&\",,\"&$B784&\",\"=VLOOKUP(\"OPEX-O,\"&AY$2&\",,\"&$B784&\",\",data[],1),VLOOKUP(\"OPEX-O,\"&AY$2&\",,\"&$B784&\",\",data[],7),AY$746)","v":0},{"$f":"IF(\"OPEX-O,\"&AZ$2&\",,\"&$B784&\",\"=VLOOKUP(\"OPEX-O,\"&AZ$2&\",,\"&$B784&\",\",data[],1),VLOOKUP(\"OPEX-O,\"&AZ$2&\",,\"&$B784&\",\",data[],7),AZ$746)","v":0},null,{"$f":"IF(\"OPEX-O,\"&BB$2&\",,\"&$B784&\",\"=VLOOKUP(\"OPEX-O,\"&BB$2&\",,\"&$B784&\",\",data[],1),VLOOKUP(\"OPEX-O,\"&BB$2&\",,\"&$B784&\",\",data[],7),BB$746)","v":0},null,null,{"$f":"IF(\"OPEX-O,\"&BE$2&\",,\"&$B784&\",\"=VLOOKUP(\"OPEX-O,\"&BE$2&\",,\"&$B784&\",\",data[],1),VLOOKUP(\"OPEX-O,\"&BE$2&\",,\"&$B784&\",\",data[],7),BE$746)","v":0}]
[null,"JOR",null,null,null,null,null,null,null,null,{"$f":"IF(\"OPEX-o,\"&$K52&\",,\"&$B785&\",\"=VLOOKUP(\"OPEX-o,\"&$K52&\",,\"&$B785&\",\",data[],1),VLOOKUP(\"OPEX-o,\"&$K52&\",,\"&$B785&\",\",data[],7),INDEX($E$746:$I$746,$J52))","v":0},null,null,null,null,null,{"$f":"IF(\"OPEX-O,\"&Q$2&\",,\"&$B785&\",\"=VLOOKUP(\"OPEX-O,\"&Q$2&\",,\"&$B785&\",\",data[],1),VLOOKUP(\"OPEX-O,\"&Q$2&\",,\"&$B785&\",\",data[],7),Q$746)","v":0},null,{"$f":"IF(\"OPEX-O,\"&S$2&\",,\"&$B785&\",\"=VLOOKUP(\"OPEX-O,\"&S$2&\",,\"&$B785&\",\",data[],1),VLOOKUP(\"OPEX-O,\"&S$2&\",,\"&$B785&\",\",data[],7),S$746)","v":0},null,null,null,null,{"$f":"IF(\"OPEX-O,\"&X$2&\",,\"&$B785&\",\"=VLOOKUP(\"OPEX-O,\"&X$2&\",,\"&$B785&\",\",data[],1),VLOOKUP(\"OPEX-O,\"&X$2&\",,\"&$B785&\",\",data[],7),X$746)","v":0},null,{"$f":"IF(\"OPEX-O,\"&Z$2&\",,\"&$B785&\",\"=VLOOKUP(\"OPEX-O,\"&Z$2&\",,\"&$B785&\",\",data[],1),VLOOKUP(\"OPEX-O,\"&Z$2&\",,\"&$B785&\",\",data[],7),Z$746)","v":0},null,null,null,{"$f":"IF(\"OPEX-O,\"&AD$2&\",,\"&$B785&\",\"=VLOOKUP(\"OPEX-O,\"&AD$2&\",,\"&$B785&\",\",data[],1),VLOOKUP(\"OPEX-O,\"&AD$2&\",,\"&$B785&\",\",data[],7),AD$746)","v":0},null,null,null,null,null,null,{"$f":"IF(\"OPEX-O,\"&AK$2&\",,\"&$B785&\",\"=VLOOKUP(\"OPEX-O,\"&AK$2&\",,\"&$B785&\",\",data[],1),VLOOKUP(\"OPEX-O,\"&AK$2&\",,\"&$B785&\",\",data[],7),AK$746)","v":0},null,{"$f":"IF(\"OPEX-O,\"&AM$2&\",,\"&$B785&\",\"=VLOOKUP(\"OPEX-O,\"&AM$2&\",,\"&$B785&\",\",data[],1),VLOOKUP(\"OPEX-O,\"&AM$2&\",,\"&$B785&\",\",data[],7),AM$746)","v":0},null,null,null,null,null,null,null,{"$f":"IF(\"OPEX-O,\"&AU$2&\",,\"&$B785&\",\"=VLOOKUP(\"OPEX-O,\"&AU$2&\",,\"&$B785&\",\",data[],1),VLOOKUP(\"OPEX-O,\"&AU$2&\",,\"&$B785&\",\",data[],7),AU$746)","v":1.9557894682818507E-3},null,{"$f":"IF(\"OPEX-O,\"&AW$2&\",,\"&$B785&\",\"=VLOOKUP(\"OPEX-O,\"&AW$2&\",,\"&$B785&\",\",data[],1),VLOOKUP(\"OPEX-O,\"&AW$2&\",,\"&$B785&\",\",data[],7),AW$746)","v":0},{"$f":"IF(\"OPEX-O,\"&AX$2&\",,\"&$B785&\",\"=VLOOKUP(\"OPEX-O,\"&AX$2&\",,\"&$B785&\",\",data[],1),VLOOKUP(\"OPEX-O,\"&AX$2&\",,\"&$B785&\",\",data[],7),AX$746)","v":0},{"$f":"IF(\"OPEX-O,\"&AY$2&\",,\"&$B785&\",\"=VLOOKUP(\"OPEX-O,\"&AY$2&\",,\"&$B785&\",\",data[],1),VLOOKUP(\"OPEX-O,\"&AY$2&\",,\"&$B785&\",\",data[],7),AY$746)","v":0},{"$f":"IF(\"OPEX-O,\"&AZ$2&\",,\"&$B785&\",\"=VLOOKUP(\"OPEX-O,\"&AZ$2&\",,\"&$B785&\",\",data[],1),VLOOKUP(\"OPEX-O,\"&AZ$2&\",,\"&$B785&\",\",data[],7),AZ$746)","v":0},null,{"$f":"IF(\"OPEX-O,\"&BB$2&\",,\"&$B785&\",\"=VLOOKUP(\"OPEX-O,\"&BB$2&\",,\"&$B785&\",\",data[],1),VLOOKUP(\"OPEX-O,\"&BB$2&\",,\"&$B785&\",\",data[],7),BB$746)","v":0},null,null,{"$f":"IF(\"OPEX-O,\"&BE$2&\",,\"&$B785&\",\"=VLOOKUP(\"OPEX-O,\"&BE$2&\",,\"&$B785&\",\",data[],1),VLOOKUP(\"OPEX-O,\"&BE$2&\",,\"&$B785&\",\",data[],7),BE$746)","v":0}]
[null,"KAZ",null,null,null,null,null,null,null,null,{"$f":"IF(\"OPEX-o,\"&$K53&\",,\"&$B786&\",\"=VLOOKUP(\"OPEX-o,\"&$K53&\",,\"&$B786&\",\",data[],1),VLOOKUP(\"OPEX-o,\"&$K53&\",,\"&$B786&\",\",data[],7),INDEX($E$746:$I$746,$J53))","v":0},null,null,null,null,null,{"$f":"IF(\"OPEX-O,\"&Q$2&\",,\"&$B786&\",\"=VLOOKUP(\"OPEX-O,\"&Q$2&\",,\"&$B786&\",\",data[],1),VLOOKUP(\"OPEX-O,\"&Q$2&\",,\"&$B786&\",\",data[],7),Q$746)","v":0},null,{"$f":"IF(\"OPEX-O,\"&S$2&\",,\"&$B786&\",\"=VLOOKUP(\"OPEX-O,\"&S$2&\",,\"&$B786&\",\",data[],1),VLOOKUP(\"OPEX-O,\"&S$2&\",,\"&$B786&\",\",data[],7),S$746)","v":0},null,null,null,null,{"$f":"IF(\"OPEX-O,\"&X$2&\",,\"&$B786&\",\"=VLOOKUP(\"OPEX-O,\"&X$2&\",,\"&$B786&\",\",data[],1),VLOOKUP(\"OPEX-O,\"&X$2&\",,\"&$B786&\",\",data[],7),X$746)","v":0},null,{"$f":"IF(\"OPEX-O,\"&Z$2&\",,\"&$B786&\",\"=VLOOKUP(\"OPEX-O,\"&Z$2&\",,\"&$B786&\",\",data[],1),VLOOKUP(\"OPEX-O,\"&Z$2&\",,\"&$B786&\",\",data[],7),Z$746)","v":0},null,null,null,{"$f":"IF(\"OPEX-O,\"&AD$2&\",,\"&$B786&\",\"=VLOOKUP(\"OPEX-O,\"&AD$2&\",,\"&$B786&\",\",data[],1),VLOOKUP(\"OPEX-O,\"&AD$2&\",,\"&$B786&\",\",data[],7),AD$746)","v":0},null,null,null,null,null,null,{"$f":"IF(\"OPEX-O,\"&AK$2&\",,\"&$B786&\",\"=VLOOKUP(\"OPEX-O,\"&AK$2&\",,\"&$B786&\",\",data[],1),VLOOKUP(\"OPEX-O,\"&AK$2&\",,\"&$B786&\",\",data[],7),AK$746)","v":0},null,{"$f":"IF(\"OPEX-O,\"&AM$2&\",,\"&$B786&\",\"=VLOOKUP(\"OPEX-O,\"&AM$2&\",,\"&$B786&\",\",data[],1),VLOOKUP(\"OPEX-O,\"&AM$2&\",,\"&$B786&\",\",data[],7),AM$746)","v":0},null,null,null,null,null,null,null,{"$f":"IF(\"OPEX-O,\"&AU$2&\",,\"&$B786&\",\"=VLOOKUP(\"OPEX-O,\"&AU$2&\",,\"&$B786&\",\",data[],1),VLOOKUP(\"OPEX-O,\"&AU$2&\",,\"&$B786&\",\",data[],7),AU$746)","v":1.9557894682818507E-3},null,{"$f":"IF(\"OPEX-O,\"&AW$2&\",,\"&$B786&\",\"=VLOOKUP(\"OPEX-O,\"&AW$2&\",,\"&$B786&\",\",data[],1),VLOOKUP(\"OPEX-O,\"&AW$2&\",,\"&$B786&\",\",data[],7),AW$746)","v":0},{"$f":"IF(\"OPEX-O,\"&AX$2&\",,\"&$B786&\",\"=VLOOKUP(\"OPEX-O,\"&AX$2&\",,\"&$B786&\",\",data[],1),VLOOKUP(\"OPEX-O,\"&AX$2&\",,\"&$B786&\",\",data[],7),AX$746)","v":0},{"$f":"IF(\"OPEX-O,\"&AY$2&\",,\"&$B786&\",\"=VLOOKUP(\"OPEX-O,\"&AY$2&\",,\"&$B786&\",\",data[],1),VLOOKUP(\"OPEX-O,\"&AY$2&\",,\"&$B786&\",\",data[],7),AY$746)","v":0},{"$f":"IF(\"OPEX-O,\"&AZ$2&\",,\"&$B786&\",\"=VLOOKUP(\"OPEX-O,\"&AZ$2&\",,\"&$B786&\",\",data[],1),VLOOKUP(\"OPEX-O,\"&AZ$2&\",,\"&$B786&\",\",data[],7),AZ$746)","v":0},null,{"$f":"IF(\"OPEX-O,\"&BB$2&\",,\"&$B786&\",\"=VLOOKUP(\"OPEX-O,\"&BB$2&\",,\"&$B786&\",\",data[],1),VLOOKUP(\"OPEX-O,\"&BB$2&\",,\"&$B786&\",\",data[],7),BB$746)","v":0},null,null,{"$f":"IF(\"OPEX-O,\"&BE$2&\",,\"&$B786&\",\"=VLOOKUP(\"OPEX-O,\"&BE$2&\",,\"&$B786&\",\",data[],1),VLOOKUP(\"OPEX-O,\"&BE$2&\",,\"&$B786&\",\",data[],7),BE$746)","v":0}]
[null,"KEN",null,null,null,null,null,null,null,null,{"$f":"IF(\"OPEX-o,\"&$K54&\",,\"&$B787&\",\"=VLOOKUP(\"OPEX-o,\"&$K54&\",,\"&$B787&\",\",data[],1),VLOOKUP(\"OPEX-o,\"&$K54&\",,\"&$B787&\",\",data[],7),INDEX($E$746:$I$746,$J54))","v":0},null,null,null,null,null,{"$f":"IF(\"OPEX-O,\"&Q$2&\",,\"&$B787&\",\"=VLOOKUP(\"OPEX-O,\"&Q$2&\",,\"&$B787&\",\",data[],1),VLOOKUP(\"OPEX-O,\"&Q$2&\",,\"&$B787&\",\",data[],7),Q$746)","v":0},null,{"$f":"IF(\"OPEX-O,\"&S$2&\",,\"&$B787&\",\"=VLOOKUP(\"OPEX-O,\"&S$2&\",,\"&$B787&\",\",data[],1),VLOOKUP(\"OPEX-O,\"&S$2&\",,\"&$B787&\",\",data[],7),S$746)","v":0},null,null,null,null,{"$f":"IF(\"OPEX-O,\"&X$2&\",,\"&$B787&\",\"=VLOOKUP(\"OPEX-O,\"&X$2&\",,\"&$B787&\",\",data[],1),VLOOKUP(\"OPEX-O,\"&X$2&\",,\"&$B787&\",\",data[],7),X$746)","v":0},null,{"$f":"IF(\"OPEX-O,\"&Z$2&\",,\"&$B787&\",\"=VLOOKUP(\"OPEX-O,\"&Z$2&\",,\"&$B787&\",\",data[],1),VLOOKUP(\"OPEX-O,\"&Z$2&\",,\"&$B787&\",\",data[],7),Z$746)","v":0},null,null,null,{"$f":"IF(\"OPEX-O,\"&AD$2&\",,\"&$B787&\",\"=VLOOKUP(\"OPEX-O,\"&AD$2&\",,\"&$B787&\",\",data[],1),VLOOKUP(\"OPEX-O,\"&AD$2&\",,\"&$B787&\",\",data[],7),AD$746)","v":0},null,null,null,null,null,null,{"$f":"IF(\"OPEX-O,\"&AK$2&\",,\"&$B787&\",\"=VLOOKUP(\"OPEX-O,\"&AK$2&\",,\"&$B787&\",\",data[],1),VLOOKUP(\"OPEX-O,\"&AK$2&\",,\"&$B787&\",\",data[],7),AK$746)","v":0},null,{"$f":"IF(\"OPEX-O,\"&AM$2&\",,\"&$B787&\",\"=VLOOKUP(\"OPEX-O,\"&AM$2&\",,\"&$B787&\",\",data[],1),VLOOKUP(\"OPEX-O,\"&AM$2&\",,\"&$B787&\",\",data[],7),AM$746)","v":0},null,null,null,null,null,null,null,{"$f":"IF(\"OPEX-O,\"&AU$2&\",,\"&$B787&\",\"=VLOOKUP(\"OPEX-O,\"&AU$2&\",,\"&$B787&\",\",data[],1),VLOOKUP(\"OPEX-O,\"&AU$2&\",,\"&$B787&\",\",data[],7),AU$746)","v":1.9557894682818507E-3},null,{"$f":"IF(\"OPEX-O,\"&AW$2&\",,\"&$B787&\",\"=VLOOKUP(\"OPEX-O,\"&AW$2&\",,\"&$B787&\",\",data[],1),VLOOKUP(\"OPEX-O,\"&AW$2&\",,\"&$B787&\",\",data[],7),AW$746)","v":0},{"$f":"IF(\"OPEX-O,\"&AX$2&\",,\"&$B787&\",\"=VLOOKUP(\"OPEX-O,\"&AX$2&\",,\"&$B787&\",\",data[],1),VLOOKUP(\"OPEX-O,\"&AX$2&\",,\"&$B787&\",\",data[],7),AX$746)","v":0},{"$f":"IF(\"OPEX-O,\"&AY$2&\",,\"&$B787&\",\"=VLOOKUP(\"OPEX-O,\"&AY$2&\",,\"&$B787&\",\",data[],1),VLOOKUP(\"OPEX-O,\"&AY$2&\",,\"&$B787&\",\",data[],7),AY$746)","v":0},{"$f":"IF(\"OPEX-O,\"&AZ$2&\",,\"&$B787&\",\"=VLOOKUP(\"OPEX-O,\"&AZ$2&\",,\"&$B787&\",\",data[],1),VLOOKUP(\"OPEX-O,\"&AZ$2&\",,\"&$B787&\",\",data[],7),AZ$746)","v":0},null,{"$f":"IF(\"OPEX-O,\"&BB$2&\",,\"&$B787&\",\"=VLOOKUP(\"OPEX-O,\"&BB$2&\",,\"&$B787&\",\",data[],1),VLOOKUP(\"OPEX-O,\"&BB$2&\",,\"&$B787&\",\",data[],7),BB$746)","v":0},null,null,{"$f":"IF(\"OPEX-O,\"&BE$2&\",,\"&$B787&\",\"=VLOOKUP(\"OPEX-O,\"&BE$2&\",,\"&$B787&\",\",data[],1),VLOOKUP(\"OPEX-O,\"&BE$2&\",,\"&$B787&\",\",data[],7),BE$746)","v":0}]
[null,"MAR",null,null,null,null,null,null,null,null,{"$f":"IF(\"OPEX-o,\"&$K55&\",,\"&$B788&\",\"=VLOOKUP(\"OPEX-o,\"&$K55&\",,\"&$B788&\",\",data[],1),VLOOKUP(\"OPEX-o,\"&$K55&\",,\"&$B788&\",\",data[],7),INDEX($E$746:$I$746,$J55))","v":0},null,null,null,null,null,{"$f":"IF(\"OPEX-O,\"&Q$2&\",,\"&$B788&\",\"=VLOOKUP(\"OPEX-O,\"&Q$2&\",,\"&$B788&\",\",data[],1),VLOOKUP(\"OPEX-O,\"&Q$2&\",,\"&$B788&\",\",data[],7),Q$746)","v":0},null,{"$f":"IF(\"OPEX-O,\"&S$2&\",,\"&$B788&\",\"=VLOOKUP(\"OPEX-O,\"&S$2&\",,\"&$B788&\",\",data[],1),VLOOKUP(\"OPEX-O,\"&S$2&\",,\"&$B788&\",\",data[],7),S$746)","v":0},null,null,null,null,{"$f":"IF(\"OPEX-O,\"&X$2&\",,\"&$B788&\",\"=VLOOKUP(\"OPEX-O,\"&X$2&\",,\"&$B788&\",\",data[],1),VLOOKUP(\"OPEX-O,\"&X$2&\",,\"&$B788&\",\",data[],7),X$746)","v":0},null,{"$f":"IF(\"OPEX-O,\"&Z$2&\",,\"&$B788&\",\"=VLOOKUP(\"OPEX-O,\"&Z$2&\",,\"&$B788&\",\",data[],1),VLOOKUP(\"OPEX-O,\"&Z$2&\",,\"&$B788&\",\",data[],7),Z$746)","v":0},null,null,null,{"$f":"IF(\"OPEX-O,\"&AD$2&\",,\"&$B788&\",\"=VLOOKUP(\"OPEX-O,\"&AD$2&\",,\"&$B788&\",\",data[],1),VLOOKUP(\"OPEX-O,\"&AD$2&\",,\"&$B788&\",\",data[],7),AD$746)","v":0},null,null,null,null,null,null,{"$f":"IF(\"OPEX-O,\"&AK$2&\",,\"&$B788&\",\"=VLOOKUP(\"OPEX-O,\"&AK$2&\",,\"&$B788&\",\",data[],1),VLOOKUP(\"OPEX-O,\"&AK$2&\",,\"&$B788&\",\",data[],7),AK$746)","v":0},null,{"$f":"IF(\"OPEX-O,\"&AM$2&\",,\"&$B788&\",\"=VLOOKUP(\"OPEX-O,\"&AM$2&\",,\"&$B788&\",\",data[],1),VLOOKUP(\"OPEX-O,\"&AM$2&\",,\"&$B788&\",\",data[],7),AM$746)","v":0},null,null,null,null,null,null,null,{"$f":"IF(\"OPEX-O,\"&AU$2&\",,\"&$B788&\",\"=VLOOKUP(\"OPEX-O,\"&AU$2&\",,\"&$B788&\",\",data[],1),VLOOKUP(\"OPEX-O,\"&AU$2&\",,\"&$B788&\",\",data[],7),AU$746)","v":1.9557894682818507E-3},null,{"$f":"IF(\"OPEX-O,\"&AW$2&\",,\"&$B788&\",\"=VLOOKUP(\"OPEX-O,\"&AW$2&\",,\"&$B788&\",\",data[],1),VLOOKUP(\"OPEX-O,\"&AW$2&\",,\"&$B788&\",\",data[],7),AW$746)","v":0},{"$f":"IF(\"OPEX-O,\"&AX$2&\",,\"&$B788&\",\"=VLOOKUP(\"OPEX-O,\"&AX$2&\",,\"&$B788&\",\",data[],1),VLOOKUP(\"OPEX-O,\"&AX$2&\",,\"&$B788&\",\",data[],7),AX$746)","v":0},{"$f":"IF(\"OPEX-O,\"&AY$2&\",,\"&$B788&\",\"=VLOOKUP(\"OPEX-O,\"&AY$2&\",,\"&$B788&\",\",data[],1),VLOOKUP(\"OPEX-O,\"&AY$2&\",,\"&$B788&\",\",data[],7),AY$746)","v":0},{"$f":"IF(\"OPEX-O,\"&AZ$2&\",,\"&$B788&\",\"=VLOOKUP(\"OPEX-O,\"&AZ$2&\",,\"&$B788&\",\",data[],1),VLOOKUP(\"OPEX-O,\"&AZ$2&\",,\"&$B788&\",\",data[],7),AZ$746)","v":0},null,{"$f":"IF(\"OPEX-O,\"&BB$2&\",,\"&$B788&\",\"=VLOOKUP(\"OPEX-O,\"&BB$2&\",,\"&$B788&\",\",data[],1),VLOOKUP(\"OPEX-O,\"&BB$2&\",,\"&$B788&\",\",data[],7),BB$746)","v":0},null,null,{"$f":"IF(\"OPEX-O,\"&BE$2&\",,\"&$B788&\",\"=VLOOKUP(\"OPEX-O,\"&BE$2&\",,\"&$B788&\",\",data[],1),VLOOKUP(\"OPEX-O,\"&BE$2&\",,\"&$B788&\",\",data[],7),BE$746)","v":0}]
[null,"MAR-BEN",null,null,null,null,null,null,null,null,{"$f":"IF(\"OPEX-o,\"&$K56&\",,\"&$B789&\",\"=VLOOKUP(\"OPEX-o,\"&$K56&\",,\"&$B789&\",\",data[],1),VLOOKUP(\"OPEX-o,\"&$K56&\",,\"&$B789&\",\",data[],7),INDEX($E$746:$I$746,$J56))","v":0},null,null,null,null,null,{"$f":"IF(\"OPEX-O,\"&Q$2&\",,\"&$B789&\",\"=VLOOKUP(\"OPEX-O,\"&Q$2&\",,\"&$B789&\",\",data[],1),VLOOKUP(\"OPEX-O,\"&Q$2&\",,\"&$B789&\",\",data[],7),Q$746)","v":0},null,{"$f":"IF(\"OPEX-O,\"&S$2&\",,\"&$B789&\",\"=VLOOKUP(\"OPEX-O,\"&S$2&\",,\"&$B789&\",\",data[],1),VLOOKUP(\"OPEX-O,\"&S$2&\",,\"&$B789&\",\",data[],7),S$746)","v":0},null,null,null,null,{"$f":"IF(\"OPEX-O,\"&X$2&\",,\"&$B789&\",\"=VLOOKUP(\"OPEX-O,\"&X$2&\",,\"&$B789&\",\",data[],1),VLOOKUP(\"OPEX-O,\"&X$2&\",,\"&$B789&\",\",data[],7),X$746)","v":0},null,{"$f":"IF(\"OPEX-O,\"&Z$2&\",,\"&$B789&\",\"=VLOOKUP(\"OPEX-O,\"&Z$2&\",,\"&$B789&\",\",data[],1),VLOOKUP(\"OPEX-O,\"&Z$2&\",,\"&$B789&\",\",data[],7),Z$746)","v":0},null,null,null,{"$f":"IF(\"OPEX-O,\"&AD$2&\",,\"&$B789&\",\"=VLOOKUP(\"OPEX-O,\"&AD$2&\",,\"&$B789&\",\",data[],1),VLOOKUP(\"OPEX-O,\"&AD$2&\",,\"&$B789&\",\",data[],7),AD$746)","v":0},null,null,null,null,null,null,{"$f":"IF(\"OPEX-O,\"&AK$2&\",,\"&$B789&\",\"=VLOOKUP(\"OPEX-O,\"&AK$2&\",,\"&$B789&\",\",data[],1),VLOOKUP(\"OPEX-O,\"&AK$2&\",,\"&$B789&\",\",data[],7),AK$746)","v":0},null,{"$f":"IF(\"OPEX-O,\"&AM$2&\",,\"&$B789&\",\"=VLOOKUP(\"OPEX-O,\"&AM$2&\",,\"&$B789&\",\",data[],1),VLOOKUP(\"OPEX-O,\"&AM$2&\",,\"&$B789&\",\",data[],7),AM$746)","v":0},null,null,null,null,null,null,null,{"$f":"IF(\"OPEX-O,\"&AU$2&\",,\"&$B789&\",\"=VLOOKUP(\"OPEX-O,\"&AU$2&\",,\"&$B789&\",\",data[],1),VLOOKUP(\"OPEX-O,\"&AU$2&\",,\"&$B789&\",\",data[],7),AU$746)","v":1.9557894682818507E-3},null,{"$f":"IF(\"OPEX-O,\"&AW$2&\",,\"&$B789&\",\"=VLOOKUP(\"OPEX-O,\"&AW$2&\",,\"&$B789&\",\",data[],1),VLOOKUP(\"OPEX-O,\"&AW$2&\",,\"&$B789&\",\",data[],7),AW$746)","v":0},{"$f":"IF(\"OPEX-O,\"&AX$2&\",,\"&$B789&\",\"=VLOOKUP(\"OPEX-O,\"&AX$2&\",,\"&$B789&\",\",data[],1),VLOOKUP(\"OPEX-O,\"&AX$2&\",,\"&$B789&\",\",data[],7),AX$746)","v":0},{"$f":"IF(\"OPEX-O,\"&AY$2&\",,\"&$B789&\",\"=VLOOKUP(\"OPEX-O,\"&AY$2&\",,\"&$B789&\",\",data[],1),VLOOKUP(\"OPEX-O,\"&AY$2&\",,\"&$B789&\",\",data[],7),AY$746)","v":0},{"$f":"IF(\"OPEX-O,\"&AZ$2&\",,\"&$B789&\",\"=VLOOKUP(\"OPEX-O,\"&AZ$2&\",,\"&$B789&\",\",data[],1),VLOOKUP(\"OPEX-O,\"&AZ$2&\",,\"&$B789&\",\",data[],7),AZ$746)","v":0},null,{"$f":"IF(\"OPEX-O,\"&BB$2&\",,\"&$B789&\",\"=VLOOKUP(\"OPEX-O,\"&BB$2&\",,\"&$B789&\",\",data[],1),VLOOKUP(\"OPEX-O,\"&BB$2&\",,\"&$B789&\",\",data[],7),BB$746)","v":0},null,null,{"$f":"IF(\"OPEX-O,\"&BE$2&\",,\"&$B789&\",\"=VLOOKUP(\"OPEX-O,\"&BE$2&\",,\"&$B789&\",\",data[],1),VLOOKUP(\"OPEX-O,\"&BE$2&\",,\"&$B789&\",\",data[],7),BE$746)","v":0}]
[null,"MAR-CAS",null,null,null,null,null,null,null,null,{"$f":"IF(\"OPEX-o,\"&$K57&\",,\"&$B790&\",\"=VLOOKUP(\"OPEX-o,\"&$K57&\",,\"&$B790&\",\",data[],1),VLOOKUP(\"OPEX-o,\"&$K57&\",,\"&$B790&\",\",data[],7),INDEX($E$746:$I$746,$J57))","v":0},null,null,null,null,null,{"$f":"IF(\"OPEX-O,\"&Q$2&\",,\"&$B790&\",\"=VLOOKUP(\"OPEX-O,\"&Q$2&\",,\"&$B790&\",\",data[],1),VLOOKUP(\"OPEX-O,\"&Q$2&\",,\"&$B790&\",\",data[],7),Q$746)","v":0},null,{"$f":"IF(\"OPEX-O,\"&S$2&\",,\"&$B790&\",\"=VLOOKUP(\"OPEX-O,\"&S$2&\",,\"&$B790&\",\",data[],1),VLOOKUP(\"OPEX-O,\"&S$2&\",,\"&$B790&\",\",data[],7),S$746)","v":0},null,null,null,null,{"$f":"IF(\"OPEX-O,\"&X$2&\",,\"&$B790&\",\"=VLOOKUP(\"OPEX-O,\"&X$2&\",,\"&$B790&\",\",data[],1),VLOOKUP(\"OPEX-O,\"&X$2&\",,\"&$B790&\",\",data[],7),X$746)","v":0},null,{"$f":"IF(\"OPEX-O,\"&Z$2&\",,\"&$B790&\",\"=VLOOKUP(\"OPEX-O,\"&Z$2&\",,\"&$B790&\",\",data[],1),VLOOKUP(\"OPEX-O,\"&Z$2&\",,\"&$B790&\",\",data[],7),Z$746)","v":0},null,null,null,{"$f":"IF(\"OPEX-O,\"&AD$2&\",,\"&$B790&\",\"=VLOOKUP(\"OPEX-O,\"&AD$2&\",,\"&$B790&\",\",data[],1),VLOOKUP(\"OPEX-O,\"&AD$2&\",,\"&$B790&\",\",data[],7),AD$746)","v":0},null,null,null,null,null,null,{"$f":"IF(\"OPEX-O,\"&AK$2&\",,\"&$B790&\",\"=VLOOKUP(\"OPEX-O,\"&AK$2&\",,\"&$B790&\",\",data[],1),VLOOKUP(\"OPEX-O,\"&AK$2&\",,\"&$B790&\",\",data[],7),AK$746)","v":0},null,{"$f":"IF(\"OPEX-O,\"&AM$2&\",,\"&$B790&\",\"=VLOOKUP(\"OPEX-O,\"&AM$2&\",,\"&$B790&\",\",data[],1),VLOOKUP(\"OPEX-O,\"&AM$2&\",,\"&$B790&\",\",data[],7),AM$746)","v":0},null,null,null,null,null,null,null,{"$f":"IF(\"OPEX-O,\"&AU$2&\",,\"&$B790&\",\"=VLOOKUP(\"OPEX-O,\"&AU$2&\",,\"&$B790&\",\",data[],1),VLOOKUP(\"OPEX-O,\"&AU$2&\",,\"&$B790&\",\",data[],7),AU$746)","v":1.9557894682818507E-3},null,{"$f":"IF(\"OPEX-O,\"&AW$2&\",,\"&$B790&\",\"=VLOOKUP(\"OPEX-O,\"&AW$2&\",,\"&$B790&\",\",data[],1),VLOOKUP(\"OPEX-O,\"&AW$2&\",,\"&$B790&\",\",data[],7),AW$746)","v":0},{"$f":"IF(\"OPEX-O,\"&AX$2&\",,\"&$B790&\",\"=VLOOKUP(\"OPEX-O,\"&AX$2&\",,\"&$B790&\",\",data[],1),VLOOKUP(\"OPEX-O,\"&AX$2&\",,\"&$B790&\",\",data[],7),AX$746)","v":0},{"$f":"IF(\"OPEX-O,\"&AY$2&\",,\"&$B790&\",\"=VLOOKUP(\"OPEX-O,\"&AY$2&\",,\"&$B790&\",\",data[],1),VLOOKUP(\"OPEX-O,\"&AY$2&\",,\"&$B790&\",\",data[],7),AY$746)","v":0},{"$f":"IF(\"OPEX-O,\"&AZ$2&\",,\"&$B790&\",\"=VLOOKUP(\"OPEX-O,\"&AZ$2&\",,\"&$B790&\",\",data[],1),VLOOKUP(\"OPEX-O,\"&AZ$2&\",,\"&$B790&\",\",data[],7),AZ$746)","v":0},null,{"$f":"IF(\"OPEX-O,\"&BB$2&\",,\"&$B790&\",\"=VLOOKUP(\"OPEX-O,\"&BB$2&\",,\"&$B790&\",\",data[],1),VLOOKUP(\"OPEX-O,\"&BB$2&\",,\"&$B790&\",\",data[],7),BB$746)","v":0},null,null,{"$f":"IF(\"OPEX-O,\"&BE$2&\",,\"&$B790&\",\"=VLOOKUP(\"OPEX-O,\"&BE$2&\",,\"&$B790&\",\",data[],1),VLOOKUP(\"OPEX-O,\"&BE$2&\",,\"&$B790&\",\",data[],7),BE$746)","v":0}]
[null,"MAR-DAK",null,null,null,null,null,null,null,null,{"$f":"IF(\"OPEX-o,\"&$K58&\",,\"&$B791&\",\"=VLOOKUP(\"OPEX-o,\"&$K58&\",,\"&$B791&\",\",data[],1),VLOOKUP(\"OPEX-o,\"&$K58&\",,\"&$B791&\",\",data[],7),INDEX($E$746:$I$746,$J58))","v":0},null,null,null,null,null,{"$f":"IF(\"OPEX-O,\"&Q$2&\",,\"&$B791&\",\"=VLOOKUP(\"OPEX-O,\"&Q$2&\",,\"&$B791&\",\",data[],1),VLOOKUP(\"OPEX-O,\"&Q$2&\",,\"&$B791&\",\",data[],7),Q$746)","v":0},null,{"$f":"IF(\"OPEX-O,\"&S$2&\",,\"&$B791&\",\"=VLOOKUP(\"OPEX-O,\"&S$2&\",,\"&$B791&\",\",data[],1),VLOOKUP(\"OPEX-O,\"&S$2&\",,\"&$B791&\",\",data[],7),S$746)","v":0},null,null,null,null,{"$f":"IF(\"OPEX-O,\"&X$2&\",,\"&$B791&\",\"=VLOOKUP(\"OPEX-O,\"&X$2&\",,\"&$B791&\",\",data[],1),VLOOKUP(\"OPEX-O,\"&X$2&\",,\"&$B791&\",\",data[],7),X$746)","v":0},null,{"$f":"IF(\"OPEX-O,\"&Z$2&\",,\"&$B791&\",\"=VLOOKUP(\"OPEX-O,\"&Z$2&\",,\"&$B791&\",\",data[],1),VLOOKUP(\"OPEX-O,\"&Z$2&\",,\"&$B791&\",\",data[],7),Z$746)","v":0},null,null,null,{"$f":"IF(\"OPEX-O,\"&AD$2&\",,\"&$B791&\",\"=VLOOKUP(\"OPEX-O,\"&AD$2&\",,\"&$B791&\",\",data[],1),VLOOKUP(\"OPEX-O,\"&AD$2&\",,\"&$B791&\",\",data[],7),AD$746)","v":0},null,null,null,null,null,null,{"$f":"IF(\"OPEX-O,\"&AK$2&\",,\"&$B791&\",\"=VLOOKUP(\"OPEX-O,\"&AK$2&\",,\"&$B791&\",\",data[],1),VLOOKUP(\"OPEX-O,\"&AK$2&\",,\"&$B791&\",\",data[],7),AK$746)","v":0},null,{"$f":"IF(\"OPEX-O,\"&AM$2&\",,\"&$B791&\",\"=VLOOKUP(\"OPEX-O,\"&AM$2&\",,\"&$B791&\",\",data[],1),VLOOKUP(\"OPEX-O,\"&AM$2&\",,\"&$B791&\",\",data[],7),AM$746)","v":0},null,null,null,null,null,null,null,{"$f":"IF(\"OPEX-O,\"&AU$2&\",,\"&$B791&\",\"=VLOOKUP(\"OPEX-O,\"&AU$2&\",,\"&$B791&\",\",data[],1),VLOOKUP(\"OPEX-O,\"&AU$2&\",,\"&$B791&\",\",data[],7),AU$746)","v":1.9557894682818507E-3},null,{"$f":"IF(\"OPEX-O,\"&AW$2&\",,\"&$B791&\",\"=VLOOKUP(\"OPEX-O,\"&AW$2&\",,\"&$B791&\",\",data[],1),VLOOKUP(\"OPEX-O,\"&AW$2&\",,\"&$B791&\",\",data[],7),AW$746)","v":0},{"$f":"IF(\"OPEX-O,\"&AX$2&\",,\"&$B791&\",\"=VLOOKUP(\"OPEX-O,\"&AX$2&\",,\"&$B791&\",\",data[],1),VLOOKUP(\"OPEX-O,\"&AX$2&\",,\"&$B791&\",\",data[],7),AX$746)","v":0},{"$f":"IF(\"OPEX-O,\"&AY$2&\",,\"&$B791&\",\"=VLOOKUP(\"OPEX-O,\"&AY$2&\",,\"&$B791&\",\",data[],1),VLOOKUP(\"OPEX-O,\"&AY$2&\",,\"&$B791&\",\",data[],7),AY$746)","v":0},{"$f":"IF(\"OPEX-O,\"&AZ$2&\",,\"&$B791&\",\"=VLOOKUP(\"OPEX-O,\"&AZ$2&\",,\"&$B791&\",\",data[],1),VLOOKUP(\"OPEX-O,\"&AZ$2&\",,\"&$B791&\",\",data[],7),AZ$746)","v":0},null,{"$f":"IF(\"OPEX-O,\"&BB$2&\",,\"&$B791&\",\"=VLOOKUP(\"OPEX-O,\"&BB$2&\",,\"&$B791&\",\",data[],1),VLOOKUP(\"OPEX-O,\"&BB$2&\",,\"&$B791&\",\",data[],7),BB$746)","v":0},null,null,{"$f":"IF(\"OPEX-O,\"&BE$2&\",,\"&$B791&\",\"=VLOOKUP(\"OPEX-O,\"&BE$2&\",,\"&$B791&\",\",data[],1),VLOOKUP(\"OPEX-O,\"&BE$2&\",,\"&$B791&\",\",data[],7),BE$746)","v":0}]
[null,"MAR-DRA",null,null,null,null,null,null,null,null,{"$f":"IF(\"OPEX-o,\"&$K59&\",,\"&$B792&\",\"=VLOOKUP(\"OPEX-o,\"&$K59&\",,\"&$B792&\",\",data[],1),VLOOKUP(\"OPEX-o,\"&$K59&\",,\"&$B792&\",\",data[],7),INDEX($E$746:$I$746,$J59))","v":0},null,null,null,null,null,{"$f":"IF(\"OPEX-O,\"&Q$2&\",,\"&$B792&\",\"=VLOOKUP(\"OPEX-O,\"&Q$2&\",,\"&$B792&\",\",data[],1),VLOOKUP(\"OPEX-O,\"&Q$2&\",,\"&$B792&\",\",data[],7),Q$746)","v":0},null,{"$f":"IF(\"OPEX-O,\"&S$2&\",,\"&$B792&\",\"=VLOOKUP(\"OPEX-O,\"&S$2&\",,\"&$B792&\",\",data[],1),VLOOKUP(\"OPEX-O,\"&S$2&\",,\"&$B792&\",\",data[],7),S$746)","v":0},null,null,null,null,{"$f":"IF(\"OPEX-O,\"&X$2&\",,\"&$B792&\",\"=VLOOKUP(\"OPEX-O,\"&X$2&\",,\"&$B792&\",\",data[],1),VLOOKUP(\"OPEX-O,\"&X$2&\",,\"&$B792&\",\",data[],7),X$746)","v":0},null,{"$f":"IF(\"OPEX-O,\"&Z$2&\",,\"&$B792&\",\"=VLOOKUP(\"OPEX-O,\"&Z$2&\",,\"&$B792&\",\",data[],1),VLOOKUP(\"OPEX-O,\"&Z$2&\",,\"&$B792&\",\",data[],7),Z$746)","v":0},null,null,null,{"$f":"IF(\"OPEX-O,\"&AD$2&\",,\"&$B792&\",\"=VLOOKUP(\"OPEX-O,\"&AD$2&\",,\"&$B792&\",\",data[],1),VLOOKUP(\"OPEX-O,\"&AD$2&\",,\"&$B792&\",\",data[],7),AD$746)","v":0},null,null,null,null,null,null,{"$f":"IF(\"OPEX-O,\"&AK$2&\",,\"&$B792&\",\"=VLOOKUP(\"OPEX-O,\"&AK$2&\",,\"&$B792&\",\",data[],1),VLOOKUP(\"OPEX-O,\"&AK$2&\",,\"&$B792&\",\",data[],7),AK$746)","v":0},null,{"$f":"IF(\"OPEX-O,\"&AM$2&\",,\"&$B792&\",\"=VLOOKUP(\"OPEX-O,\"&AM$2&\",,\"&$B792&\",\",data[],1),VLOOKUP(\"OPEX-O,\"&AM$2&\",,\"&$B792&\",\",data[],7),AM$746)","v":0},null,null,null,null,null,null,null,{"$f":"IF(\"OPEX-O,\"&AU$2&\",,\"&$B792&\",\"=VLOOKUP(\"OPEX-O,\"&AU$2&\",,\"&$B792&\",\",data[],1),VLOOKUP(\"OPEX-O,\"&AU$2&\",,\"&$B792&\",\",data[],7),AU$746)","v":1.9557894682818507E-3},null,{"$f":"IF(\"OPEX-O,\"&AW$2&\",,\"&$B792&\",\"=VLOOKUP(\"OPEX-O,\"&AW$2&\",,\"&$B792&\",\",data[],1),VLOOKUP(\"OPEX-O,\"&AW$2&\",,\"&$B792&\",\",data[],7),AW$746)","v":0},{"$f":"IF(\"OPEX-O,\"&AX$2&\",,\"&$B792&\",\"=VLOOKUP(\"OPEX-O,\"&AX$2&\",,\"&$B792&\",\",data[],1),VLOOKUP(\"OPEX-O,\"&AX$2&\",,\"&$B792&\",\",data[],7),AX$746)","v":0},{"$f":"IF(\"OPEX-O,\"&AY$2&\",,\"&$B792&\",\"=VLOOKUP(\"OPEX-O,\"&AY$2&\",,\"&$B792&\",\",data[],1),VLOOKUP(\"OPEX-O,\"&AY$2&\",,\"&$B792&\",\",data[],7),AY$746)","v":0},{"$f":"IF(\"OPEX-O,\"&AZ$2&\",,\"&$B792&\",\"=VLOOKUP(\"OPEX-O,\"&AZ$2&\",,\"&$B792&\",\",data[],1),VLOOKUP(\"OPEX-O,\"&AZ$2&\",,\"&$B792&\",\",data[],7),AZ$746)","v":0},null,{"$f":"IF(\"OPEX-O,\"&BB$2&\",,\"&$B792&\",\"=VLOOKUP(\"OPEX-O,\"&BB$2&\",,\"&$B792&\",\",data[],1),VLOOKUP(\"OPEX-O,\"&BB$2&\",,\"&$B792&\",\",data[],7),BB$746)","v":0},null,null,{"$f":"IF(\"OPEX-O,\"&BE$2&\",,\"&$B792&\",\"=VLOOKUP(\"OPEX-O,\"&BE$2&\",,\"&$B792&\",\",data[],1),VLOOKUP(\"OPEX-O,\"&BE$2&\",,\"&$B792&\",\",data[],7),BE$746)","v":0}]
[null,"MAR-FES",null,null,null,null,null,null,null,null,{"$f":"IF(\"OPEX-o,\"&$K60&\",,\"&$B793&\",\"=VLOOKUP(\"OPEX-o,\"&$K60&\",,\"&$B793&\",\",data[],1),VLOOKUP(\"OPEX-o,\"&$K60&\",,\"&$B793&\",\",data[],7),INDEX($E$746:$I$746,$J60))","v":0},null,null,null,null,null,{"$f":"IF(\"OPEX-O,\"&Q$2&\",,\"&$B793&\",\"=VLOOKUP(\"OPEX-O,\"&Q$2&\",,\"&$B793&\",\",data[],1),VLOOKUP(\"OPEX-O,\"&Q$2&\",,\"&$B793&\",\",data[],7),Q$746)","v":0},null,{"$f":"IF(\"OPEX-O,\"&S$2&\",,\"&$B793&\",\"=VLOOKUP(\"OPEX-O,\"&S$2&\",,\"&$B793&\",\",data[],1),VLOOKUP(\"OPEX-O,\"&S$2&\",,\"&$B793&\",\",data[],7),S$746)","v":0},null,null,null,null,{"$f":"IF(\"OPEX-O,\"&X$2&\",,\"&$B793&\",\"=VLOOKUP(\"OPEX-O,\"&X$2&\",,\"&$B793&\",\",data[],1),VLOOKUP(\"OPEX-O,\"&X$2&\",,\"&$B793&\",\",data[],7),X$746)","v":0},null,{"$f":"IF(\"OPEX-O,\"&Z$2&\",,\"&$B793&\",\"=VLOOKUP(\"OPEX-O,\"&Z$2&\",,\"&$B793&\",\",data[],1),VLOOKUP(\"OPEX-O,\"&Z$2&\",,\"&$B793&\",\",data[],7),Z$746)","v":0},null,null,null,{"$f":"IF(\"OPEX-O,\"&AD$2&\",,\"&$B793&\",\"=VLOOKUP(\"OPEX-O,\"&AD$2&\",,\"&$B793&\",\",data[],1),VLOOKUP(\"OPEX-O,\"&AD$2&\",,\"&$B793&\",\",data[],7),AD$746)","v":0},null,null,null,null,null,null,{"$f":"IF(\"OPEX-O,\"&AK$2&\",,\"&$B793&\",\"=VLOOKUP(\"OPEX-O,\"&AK$2&\",,\"&$B793&\",\",data[],1),VLOOKUP(\"OPEX-O,\"&AK$2&\",,\"&$B793&\",\",data[],7),AK$746)","v":0},null,{"$f":"IF(\"OPEX-O,\"&AM$2&\",,\"&$B793&\",\"=VLOOKUP(\"OPEX-O,\"&AM$2&\",,\"&$B793&\",\",data[],1),VLOOKUP(\"OPEX-O,\"&AM$2&\",,\"&$B793&\",\",data[],7),AM$746)","v":0},null,null,null,null,null,null,null,{"$f":"IF(\"OPEX-O,\"&AU$2&\",,\"&$B793&\",\"=VLOOKUP(\"OPEX-O,\"&AU$2&\",,\"&$B793&\",\",data[],1),VLOOKUP(\"OPEX-O,\"&AU$2&\",,\"&$B793&\",\",data[],7),AU$746)","v":1.9557894682818507E-3},null,{"$f":"IF(\"OPEX-O,\"&AW$2&\",,\"&$B793&\",\"=VLOOKUP(\"OPEX-O,\"&AW$2&\",,\"&$B793&\",\",data[],1),VLOOKUP(\"OPEX-O,\"&AW$2&\",,\"&$B793&\",\",data[],7),AW$746)","v":0},{"$f":"IF(\"OPEX-O,\"&AX$2&\",,\"&$B793&\",\"=VLOOKUP(\"OPEX-O,\"&AX$2&\",,\"&$B793&\",\",data[],1),VLOOKUP(\"OPEX-O,\"&AX$2&\",,\"&$B793&\",\",data[],7),AX$746)","v":0},{"$f":"IF(\"OPEX-O,\"&AY$2&\",,\"&$B793&\",\"=VLOOKUP(\"OPEX-O,\"&AY$2&\",,\"&$B793&\",\",data[],1),VLOOKUP(\"OPEX-O,\"&AY$2&\",,\"&$B793&\",\",data[],7),AY$746)","v":0},{"$f":"IF(\"OPEX-O,\"&AZ$2&\",,\"&$B793&\",\"=VLOOKUP(\"OPEX-O,\"&AZ$2&\",,\"&$B793&\",\",data[],1),VLOOKUP(\"OPEX-O,\"&AZ$2&\",,\"&$B793&\",\",data[],7),AZ$746)","v":0},null,{"$f":"IF(\"OPEX-O,\"&BB$2&\",,\"&$B793&\",\"=VLOOKUP(\"OPEX-O,\"&BB$2&\",,\"&$B793&\",\",data[],1),VLOOKUP(\"OPEX-O,\"&BB$2&\",,\"&$B793&\",\",data[],7),BB$746)","v":0},null,null,{"$f":"IF(\"OPEX-O,\"&BE$2&\",,\"&$B793&\",\"=VLOOKUP(\"OPEX-O,\"&BE$2&\",,\"&$B793&\",\",data[],1),VLOOKUP(\"OPEX-O,\"&BE$2&\",,\"&$B793&\",\",data[],7),BE$746)","v":0}]
[null,"MAR-GUE",null,null,null,null,null,null,null,null,{"$f":"IF(\"OPEX-o,\"&$K61&\",,\"&$B794&\",\"=VLOOKUP(\"OPEX-o,\"&$K61&\",,\"&$B794&\",\",data[],1),VLOOKUP(\"OPEX-o,\"&$K61&\",,\"&$B794&\",\",data[],7),INDEX($E$746:$I$746,$J61))","v":0},null,null,null,null,null,{"$f":"IF(\"OPEX-O,\"&Q$2&\",,\"&$B794&\",\"=VLOOKUP(\"OPEX-O,\"&Q$2&\",,\"&$B794&\",\",data[],1),VLOOKUP(\"OPEX-O,\"&Q$2&\",,\"&$B794&\",\",data[],7),Q$746)","v":0},null,{"$f":"IF(\"OPEX-O,\"&S$2&\",,\"&$B794&\",\"=VLOOKUP(\"OPEX-O,\"&S$2&\",,\"&$B794&\",\",data[],1),VLOOKUP(\"OPEX-O,\"&S$2&\",,\"&$B794&\",\",data[],7),S$746)","v":0},null,null,null,null,{"$f":"IF(\"OPEX-O,\"&X$2&\",,\"&$B794&\",\"=VLOOKUP(\"OPEX-O,\"&X$2&\",,\"&$B794&\",\",data[],1),VLOOKUP(\"OPEX-O,\"&X$2&\",,\"&$B794&\",\",data[],7),X$746)","v":0},null,{"$f":"IF(\"OPEX-O,\"&Z$2&\",,\"&$B794&\",\"=VLOOKUP(\"OPEX-O,\"&Z$2&\",,\"&$B794&\",\",data[],1),VLOOKUP(\"OPEX-O,\"&Z$2&\",,\"&$B794&\",\",data[],7),Z$746)","v":0},null,null,null,{"$f":"IF(\"OPEX-O,\"&AD$2&\",,\"&$B794&\",\"=VLOOKUP(\"OPEX-O,\"&AD$2&\",,\"&$B794&\",\",data[],1),VLOOKUP(\"OPEX-O,\"&AD$2&\",,\"&$B794&\",\",data[],7),AD$746)","v":0},null,null,null,null,null,null,{"$f":"IF(\"OPEX-O,\"&AK$2&\",,\"&$B794&\",\"=VLOOKUP(\"OPEX-O,\"&AK$2&\",,\"&$B794&\",\",data[],1),VLOOKUP(\"OPEX-O,\"&AK$2&\",,\"&$B794&\",\",data[],7),AK$746)","v":0},null,{"$f":"IF(\"OPEX-O,\"&AM$2&\",,\"&$B794&\",\"=VLOOKUP(\"OPEX-O,\"&AM$2&\",,\"&$B794&\",\",data[],1),VLOOKUP(\"OPEX-O,\"&AM$2&\",,\"&$B794&\",\",data[],7),AM$746)","v":0},null,null,null,null,null,null,null,{"$f":"IF(\"OPEX-O,\"&AU$2&\",,\"&$B794&\",\"=VLOOKUP(\"OPEX-O,\"&AU$2&\",,\"&$B794&\",\",data[],1),VLOOKUP(\"OPEX-O,\"&AU$2&\",,\"&$B794&\",\",data[],7),AU$746)","v":1.9557894682818507E-3},null,{"$f":"IF(\"OPEX-O,\"&AW$2&\",,\"&$B794&\",\"=VLOOKUP(\"OPEX-O,\"&AW$2&\",,\"&$B794&\",\",data[],1),VLOOKUP(\"OPEX-O,\"&AW$2&\",,\"&$B794&\",\",data[],7),AW$746)","v":0},{"$f":"IF(\"OPEX-O,\"&AX$2&\",,\"&$B794&\",\"=VLOOKUP(\"OPEX-O,\"&AX$2&\",,\"&$B794&\",\",data[],1),VLOOKUP(\"OPEX-O,\"&AX$2&\",,\"&$B794&\",\",data[],7),AX$746)","v":0},{"$f":"IF(\"OPEX-O,\"&AY$2&\",,\"&$B794&\",\"=VLOOKUP(\"OPEX-O,\"&AY$2&\",,\"&$B794&\",\",data[],1),VLOOKUP(\"OPEX-O,\"&AY$2&\",,\"&$B794&\",\",data[],7),AY$746)","v":0},{"$f":"IF(\"OPEX-O,\"&AZ$2&\",,\"&$B794&\",\"=VLOOKUP(\"OPEX-O,\"&AZ$2&\",,\"&$B794&\",\",data[],1),VLOOKUP(\"OPEX-O,\"&AZ$2&\",,\"&$B794&\",\",data[],7),AZ$746)","v":0},null,{"$f":"IF(\"OPEX-O,\"&BB$2&\",,\"&$B794&\",\"=VLOOKUP(\"OPEX-O,\"&BB$2&\",,\"&$B794&\",\",data[],1),VLOOKUP(\"OPEX-O,\"&BB$2&\",,\"&$B794&\",\",data[],7),BB$746)","v":0},null,null,{"$f":"IF(\"OPEX-O,\"&BE$2&\",,\"&$B794&\",\"=VLOOKUP(\"OPEX-O,\"&BE$2&\",,\"&$B794&\",\",data[],1),VLOOKUP(\"OPEX-O,\"&BE$2&\",,\"&$B794&\",\",data[],7),BE$746)","v":0}]
[null,"MAR-LAA",null,null,null,null,null,null,null,null,{"$f":"IF(\"OPEX-o,\"&$K62&\",,\"&$B795&\",\"=VLOOKUP(\"OPEX-o,\"&$K62&\",,\"&$B795&\",\",data[],1),VLOOKUP(\"OPEX-o,\"&$K62&\",,\"&$B795&\",\",data[],7),INDEX($E$746:$I$746,$J62))","v":0},null,null,null,null,null,{"$f":"IF(\"OPEX-O,\"&Q$2&\",,\"&$B795&\",\"=VLOOKUP(\"OPEX-O,\"&Q$2&\",,\"&$B795&\",\",data[],1),VLOOKUP(\"OPEX-O,\"&Q$2&\",,\"&$B795&\",\",data[],7),Q$746)","v":0},null,{"$f":"IF(\"OPEX-O,\"&S$2&\",,\"&$B795&\",\"=VLOOKUP(\"OPEX-O,\"&S$2&\",,\"&$B795&\",\",data[],1),VLOOKUP(\"OPEX-O,\"&S$2&\",,\"&$B795&\",\",data[],7),S$746)","v":0},null,null,null,null,{"$f":"IF(\"OPEX-O,\"&X$2&\",,\"&$B795&\",\"=VLOOKUP(\"OPEX-O,\"&X$2&\",,\"&$B795&\",\",data[],1),VLOOKUP(\"OPEX-O,\"&X$2&\",,\"&$B795&\",\",data[],7),X$746)","v":0},null,{"$f":"IF(\"OPEX-O,\"&Z$2&\",,\"&$B795&\",\"=VLOOKUP(\"OPEX-O,\"&Z$2&\",,\"&$B795&\",\",data[],1),VLOOKUP(\"OPEX-O,\"&Z$2&\",,\"&$B795&\",\",data[],7),Z$746)","v":0},null,null,null,{"$f":"IF(\"OPEX-O,\"&AD$2&\",,\"&$B795&\",\"=VLOOKUP(\"OPEX-O,\"&AD$2&\",,\"&$B795&\",\",data[],1),VLOOKUP(\"OPEX-O,\"&AD$2&\",,\"&$B795&\",\",data[],7),AD$746)","v":0},null,null,null,null,null,null,{"$f":"IF(\"OPEX-O,\"&AK$2&\",,\"&$B795&\",\"=VLOOKUP(\"OPEX-O,\"&AK$2&\",,\"&$B795&\",\",data[],1),VLOOKUP(\"OPEX-O,\"&AK$2&\",,\"&$B795&\",\",data[],7),AK$746)","v":0},null,{"$f":"IF(\"OPEX-O,\"&AM$2&\",,\"&$B795&\",\"=VLOOKUP(\"OPEX-O,\"&AM$2&\",,\"&$B795&\",\",data[],1),VLOOKUP(\"OPEX-O,\"&AM$2&\",,\"&$B795&\",\",data[],7),AM$746)","v":0},null,null,null,null,null,null,null,{"$f":"IF(\"OPEX-O,\"&AU$2&\",,\"&$B795&\",\"=VLOOKUP(\"OPEX-O,\"&AU$2&\",,\"&$B795&\",\",data[],1),VLOOKUP(\"OPEX-O,\"&AU$2&\",,\"&$B795&\",\",data[],7),AU$746)","v":1.9557894682818507E-3},null,{"$f":"IF(\"OPEX-O,\"&AW$2&\",,\"&$B795&\",\"=VLOOKUP(\"OPEX-O,\"&AW$2&\",,\"&$B795&\",\",data[],1),VLOOKUP(\"OPEX-O,\"&AW$2&\",,\"&$B795&\",\",data[],7),AW$746)","v":0},{"$f":"IF(\"OPEX-O,\"&AX$2&\",,\"&$B795&\",\"=VLOOKUP(\"OPEX-O,\"&AX$2&\",,\"&$B795&\",\",data[],1),VLOOKUP(\"OPEX-O,\"&AX$2&\",,\"&$B795&\",\",data[],7),AX$746)","v":0},{"$f":"IF(\"OPEX-O,\"&AY$2&\",,\"&$B795&\",\"=VLOOKUP(\"OPEX-O,\"&AY$2&\",,\"&$B795&\",\",data[],1),VLOOKUP(\"OPEX-O,\"&AY$2&\",,\"&$B795&\",\",data[],7),AY$746)","v":0},{"$f":"IF(\"OPEX-O,\"&AZ$2&\",,\"&$B795&\",\"=VLOOKUP(\"OPEX-O,\"&AZ$2&\",,\"&$B795&\",\",data[],1),VLOOKUP(\"OPEX-O,\"&AZ$2&\",,\"&$B795&\",\",data[],7),AZ$746)","v":0},null,{"$f":"IF(\"OPEX-O,\"&BB$2&\",,\"&$B795&\",\"=VLOOKUP(\"OPEX-O,\"&BB$2&\",,\"&$B795&\",\",data[],1),VLOOKUP(\"OPEX-O,\"&BB$2&\",,\"&$B795&\",\",data[],7),BB$746)","v":0},null,null,{"$f":"IF(\"OPEX-O,\"&BE$2&\",,\"&$B795&\",\"=VLOOKUP(\"OPEX-O,\"&BE$2&\",,\"&$B795&\",\",data[],1),VLOOKUP(\"OPEX-O,\"&BE$2&\",,\"&$B795&\",\",data[],7),BE$746)","v":0}]
[null,"MAR-LOR",null,null,null,null,null,null,null,null,{"$f":"IF(\"OPEX-o,\"&$K63&\",,\"&$B796&\",\"=VLOOKUP(\"OPEX-o,\"&$K63&\",,\"&$B796&\",\",data[],1),VLOOKUP(\"OPEX-o,\"&$K63&\",,\"&$B796&\",\",data[],7),INDEX($E$746:$I$746,$J63))","v":0},null,null,null,null,null,{"$f":"IF(\"OPEX-O,\"&Q$2&\",,\"&$B796&\",\"=VLOOKUP(\"OPEX-O,\"&Q$2&\",,\"&$B796&\",\",data[],1),VLOOKUP(\"OPEX-O,\"&Q$2&\",,\"&$B796&\",\",data[],7),Q$746)","v":0},null,{"$f":"IF(\"OPEX-O,\"&S$2&\",,\"&$B796&\",\"=VLOOKUP(\"OPEX-O,\"&S$2&\",,\"&$B796&\",\",data[],1),VLOOKUP(\"OPEX-O,\"&S$2&\",,\"&$B796&\",\",data[],7),S$746)","v":0},null,null,null,null,{"$f":"IF(\"OPEX-O,\"&X$2&\",,\"&$B796&\",\"=VLOOKUP(\"OPEX-O,\"&X$2&\",,\"&$B796&\",\",data[],1),VLOOKUP(\"OPEX-O,\"&X$2&\",,\"&$B796&\",\",data[],7),X$746)","v":0},null,{"$f":"IF(\"OPEX-O,\"&Z$2&\",,\"&$B796&\",\"=VLOOKUP(\"OPEX-O,\"&Z$2&\",,\"&$B796&\",\",data[],1),VLOOKUP(\"OPEX-O,\"&Z$2&\",,\"&$B796&\",\",data[],7),Z$746)","v":0},null,null,null,{"$f":"IF(\"OPEX-O,\"&AD$2&\",,\"&$B796&\",\"=VLOOKUP(\"OPEX-O,\"&AD$2&\",,\"&$B796&\",\",data[],1),VLOOKUP(\"OPEX-O,\"&AD$2&\",,\"&$B796&\",\",data[],7),AD$746)","v":0},null,null,null,null,null,null,{"$f":"IF(\"OPEX-O,\"&AK$2&\",,\"&$B796&\",\"=VLOOKUP(\"OPEX-O,\"&AK$2&\",,\"&$B796&\",\",data[],1),VLOOKUP(\"OPEX-O,\"&AK$2&\",,\"&$B796&\",\",data[],7),AK$746)","v":0},null,{"$f":"IF(\"OPEX-O,\"&AM$2&\",,\"&$B796&\",\"=VLOOKUP(\"OPEX-O,\"&AM$2&\",,\"&$B796&\",\",data[],1),VLOOKUP(\"OPEX-O,\"&AM$2&\",,\"&$B796&\",\",data[],7),AM$746)","v":0},null,null,null,null,null,null,null,{"$f":"IF(\"OPEX-O,\"&AU$2&\",,\"&$B796&\",\"=VLOOKUP(\"OPEX-O,\"&AU$2&\",,\"&$B796&\",\",data[],1),VLOOKUP(\"OPEX-O,\"&AU$2&\",,\"&$B796&\",\",data[],7),AU$746)","v":1.9557894682818507E-3},null,{"$f":"IF(\"OPEX-O,\"&AW$2&\",,\"&$B796&\",\"=VLOOKUP(\"OPEX-O,\"&AW$2&\",,\"&$B796&\",\",data[],1),VLOOKUP(\"OPEX-O,\"&AW$2&\",,\"&$B796&\",\",data[],7),AW$746)","v":0},{"$f":"IF(\"OPEX-O,\"&AX$2&\",,\"&$B796&\",\"=VLOOKUP(\"OPEX-O,\"&AX$2&\",,\"&$B796&\",\",data[],1),VLOOKUP(\"OPEX-O,\"&AX$2&\",,\"&$B796&\",\",data[],7),AX$746)","v":0},{"$f":"IF(\"OPEX-O,\"&AY$2&\",,\"&$B796&\",\"=VLOOKUP(\"OPEX-O,\"&AY$2&\",,\"&$B796&\",\",data[],1),VLOOKUP(\"OPEX-O,\"&AY$2&\",,\"&$B796&\",\",data[],7),AY$746)","v":0},{"$f":"IF(\"OPEX-O,\"&AZ$2&\",,\"&$B796&\",\"=VLOOKUP(\"OPEX-O,\"&AZ$2&\",,\"&$B796&\",\",data[],1),VLOOKUP(\"OPEX-O,\"&AZ$2&\",,\"&$B796&\",\",data[],7),AZ$746)","v":0},null,{"$f":"IF(\"OPEX-O,\"&BB$2&\",,\"&$B796&\",\"=VLOOKUP(\"OPEX-O,\"&BB$2&\",,\"&$B796&\",\",data[],1),VLOOKUP(\"OPEX-O,\"&BB$2&\",,\"&$B796&\",\",data[],7),BB$746)","v":0},null,null,{"$f":"IF(\"OPEX-O,\"&BE$2&\",,\"&$B796&\",\"=VLOOKUP(\"OPEX-O,\"&BE$2&\",,\"&$B796&\",\",data[],1),VLOOKUP(\"OPEX-O,\"&BE$2&\",,\"&$B796&\",\",data[],7),BE$746)","v":0}]
[null,"MAR-MAR",null,null,null,null,null,null,null,null,{"$f":"IF(\"OPEX-o,\"&$K64&\",,\"&$B797&\",\"=VLOOKUP(\"OPEX-o,\"&$K64&\",,\"&$B797&\",\",data[],1),VLOOKUP(\"OPEX-o,\"&$K64&\",,\"&$B797&\",\",data[],7),INDEX($E$746:$I$746,$J64))","v":0},null,null,null,null,null,{"$f":"IF(\"OPEX-O,\"&Q$2&\",,\"&$B797&\",\"=VLOOKUP(\"OPEX-O,\"&Q$2&\",,\"&$B797&\",\",data[],1),VLOOKUP(\"OPEX-O,\"&Q$2&\",,\"&$B797&\",\",data[],7),Q$746)","v":0},null,{"$f":"IF(\"OPEX-O,\"&S$2&\",,\"&$B797&\",\"=VLOOKUP(\"OPEX-O,\"&S$2&\",,\"&$B797&\",\",data[],1),VLOOKUP(\"OPEX-O,\"&S$2&\",,\"&$B797&\",\",data[],7),S$746)","v":0},null,null,null,null,{"$f":"IF(\"OPEX-O,\"&X$2&\",,\"&$B797&\",\"=VLOOKUP(\"OPEX-O,\"&X$2&\",,\"&$B797&\",\",data[],1),VLOOKUP(\"OPEX-O,\"&X$2&\",,\"&$B797&\",\",data[],7),X$746)","v":0},null,{"$f":"IF(\"OPEX-O,\"&Z$2&\",,\"&$B797&\",\"=VLOOKUP(\"OPEX-O,\"&Z$2&\",,\"&$B797&\",\",data[],1),VLOOKUP(\"OPEX-O,\"&Z$2&\",,\"&$B797&\",\",data[],7),Z$746)","v":0},null,null,null,{"$f":"IF(\"OPEX-O,\"&AD$2&\",,\"&$B797&\",\"=VLOOKUP(\"OPEX-O,\"&AD$2&\",,\"&$B797&\",\",data[],1),VLOOKUP(\"OPEX-O,\"&AD$2&\",,\"&$B797&\",\",data[],7),AD$746)","v":0},null,null,null,null,null,null,{"$f":"IF(\"OPEX-O,\"&AK$2&\",,\"&$B797&\",\"=VLOOKUP(\"OPEX-O,\"&AK$2&\",,\"&$B797&\",\",data[],1),VLOOKUP(\"OPEX-O,\"&AK$2&\",,\"&$B797&\",\",data[],7),AK$746)","v":0},null,{"$f":"IF(\"OPEX-O,\"&AM$2&\",,\"&$B797&\",\"=VLOOKUP(\"OPEX-O,\"&AM$2&\",,\"&$B797&\",\",data[],1),VLOOKUP(\"OPEX-O,\"&AM$2&\",,\"&$B797&\",\",data[],7),AM$746)","v":0},null,null,null,null,null,null,null,{"$f":"IF(\"OPEX-O,\"&AU$2&\",,\"&$B797&\",\"=VLOOKUP(\"OPEX-O,\"&AU$2&\",,\"&$B797&\",\",data[],1),VLOOKUP(\"OPEX-O,\"&AU$2&\",,\"&$B797&\",\",data[],7),AU$746)","v":1.9557894682818507E-3},null,{"$f":"IF(\"OPEX-O,\"&AW$2&\",,\"&$B797&\",\"=VLOOKUP(\"OPEX-O,\"&AW$2&\",,\"&$B797&\",\",data[],1),VLOOKUP(\"OPEX-O,\"&AW$2&\",,\"&$B797&\",\",data[],7),AW$746)","v":0},{"$f":"IF(\"OPEX-O,\"&AX$2&\",,\"&$B797&\",\"=VLOOKUP(\"OPEX-O,\"&AX$2&\",,\"&$B797&\",\",data[],1),VLOOKUP(\"OPEX-O,\"&AX$2&\",,\"&$B797&\",\",data[],7),AX$746)","v":0},{"$f":"IF(\"OPEX-O,\"&AY$2&\",,\"&$B797&\",\"=VLOOKUP(\"OPEX-O,\"&AY$2&\",,\"&$B797&\",\",data[],1),VLOOKUP(\"OPEX-O,\"&AY$2&\",,\"&$B797&\",\",data[],7),AY$746)","v":0},{"$f":"IF(\"OPEX-O,\"&AZ$2&\",,\"&$B797&\",\"=VLOOKUP(\"OPEX-O,\"&AZ$2&\",,\"&$B797&\",\",data[],1),VLOOKUP(\"OPEX-O,\"&AZ$2&\",,\"&$B797&\",\",data[],7),AZ$746)","v":0},null,{"$f":"IF(\"OPEX-O,\"&BB$2&\",,\"&$B797&\",\"=VLOOKUP(\"OPEX-O,\"&BB$2&\",,\"&$B797&\",\",data[],1),VLOOKUP(\"OPEX-O,\"&BB$2&\",,\"&$B797&\",\",data[],7),BB$746)","v":0},null,null,{"$f":"IF(\"OPEX-O,\"&BE$2&\",,\"&$B797&\",\"=VLOOKUP(\"OPEX-O,\"&BE$2&\",,\"&$B797&\",\",data[],1),VLOOKUP(\"OPEX-O,\"&BE$2&\",,\"&$B797&\",\",data[],7),BE$746)","v":0}]
[null,"MAR-RAB",null,null,null,null,null,null,null,null,{"$f":"IF(\"OPEX-o,\"&$K65&\",,\"&$B798&\",\"=VLOOKUP(\"OPEX-o,\"&$K65&\",,\"&$B798&\",\",data[],1),VLOOKUP(\"OPEX-o,\"&$K65&\",,\"&$B798&\",\",data[],7),INDEX($E$746:$I$746,$J65))","v":0},null,null,null,null,null,{"$f":"IF(\"OPEX-O,\"&Q$2&\",,\"&$B798&\",\"=VLOOKUP(\"OPEX-O,\"&Q$2&\",,\"&$B798&\",\",data[],1),VLOOKUP(\"OPEX-O,\"&Q$2&\",,\"&$B798&\",\",data[],7),Q$746)","v":0},null,{"$f":"IF(\"OPEX-O,\"&S$2&\",,\"&$B798&\",\"=VLOOKUP(\"OPEX-O,\"&S$2&\",,\"&$B798&\",\",data[],1),VLOOKUP(\"OPEX-O,\"&S$2&\",,\"&$B798&\",\",data[],7),S$746)","v":0},null,null,null,null,{"$f":"IF(\"OPEX-O,\"&X$2&\",,\"&$B798&\",\"=VLOOKUP(\"OPEX-O,\"&X$2&\",,\"&$B798&\",\",data[],1),VLOOKUP(\"OPEX-O,\"&X$2&\",,\"&$B798&\",\",data[],7),X$746)","v":0},null,{"$f":"IF(\"OPEX-O,\"&Z$2&\",,\"&$B798&\",\"=VLOOKUP(\"OPEX-O,\"&Z$2&\",,\"&$B798&\",\",data[],1),VLOOKUP(\"OPEX-O,\"&Z$2&\",,\"&$B798&\",\",data[],7),Z$746)","v":0},null,null,null,{"$f":"IF(\"OPEX-O,\"&AD$2&\",,\"&$B798&\",\"=VLOOKUP(\"OPEX-O,\"&AD$2&\",,\"&$B798&\",\",data[],1),VLOOKUP(\"OPEX-O,\"&AD$2&\",,\"&$B798&\",\",data[],7),AD$746)","v":0},null,null,null,null,null,null,{"$f":"IF(\"OPEX-O,\"&AK$2&\",,\"&$B798&\",\"=VLOOKUP(\"OPEX-O,\"&AK$2&\",,\"&$B798&\",\",data[],1),VLOOKUP(\"OPEX-O,\"&AK$2&\",,\"&$B798&\",\",data[],7),AK$746)","v":0},null,{"$f":"IF(\"OPEX-O,\"&AM$2&\",,\"&$B798&\",\"=VLOOKUP(\"OPEX-O,\"&AM$2&\",,\"&$B798&\",\",data[],1),VLOOKUP(\"OPEX-O,\"&AM$2&\",,\"&$B798&\",\",data[],7),AM$746)","v":0},null,null,null,null,null,null,null,{"$f":"IF(\"OPEX-O,\"&AU$2&\",,\"&$B798&\",\"=VLOOKUP(\"OPEX-O,\"&AU$2&\",,\"&$B798&\",\",data[],1),VLOOKUP(\"OPEX-O,\"&AU$2&\",,\"&$B798&\",\",data[],7),AU$746)","v":1.9557894682818507E-3},null,{"$f":"IF(\"OPEX-O,\"&AW$2&\",,\"&$B798&\",\"=VLOOKUP(\"OPEX-O,\"&AW$2&\",,\"&$B798&\",\",data[],1),VLOOKUP(\"OPEX-O,\"&AW$2&\",,\"&$B798&\",\",data[],7),AW$746)","v":0},{"$f":"IF(\"OPEX-O,\"&AX$2&\",,\"&$B798&\",\"=VLOOKUP(\"OPEX-O,\"&AX$2&\",,\"&$B798&\",\",data[],1),VLOOKUP(\"OPEX-O,\"&AX$2&\",,\"&$B798&\",\",data[],7),AX$746)","v":0},{"$f":"IF(\"OPEX-O,\"&AY$2&\",,\"&$B798&\",\"=VLOOKUP(\"OPEX-O,\"&AY$2&\",,\"&$B798&\",\",data[],1),VLOOKUP(\"OPEX-O,\"&AY$2&\",,\"&$B798&\",\",data[],7),AY$746)","v":0},{"$f":"IF(\"OPEX-O,\"&AZ$2&\",,\"&$B798&\",\"=VLOOKUP(\"OPEX-O,\"&AZ$2&\",,\"&$B798&\",\",data[],1),VLOOKUP(\"OPEX-O,\"&AZ$2&\",,\"&$B798&\",\",data[],7),AZ$746)","v":0},null,{"$f":"IF(\"OPEX-O,\"&BB$2&\",,\"&$B798&\",\"=VLOOKUP(\"OPEX-O,\"&BB$2&\",,\"&$B798&\",\",data[],1),VLOOKUP(\"OPEX-O,\"&BB$2&\",,\"&$B798&\",\",data[],7),BB$746)","v":0},null,null,{"$f":"IF(\"OPEX-O,\"&BE$2&\",,\"&$B798&\",\"=VLOOKUP(\"OPEX-O,\"&BE$2&\",,\"&$B798&\",\",data[],1),VLOOKUP(\"OPEX-O,\"&BE$2&\",,\"&$B798&\",\",data[],7),BE$746)","v":0}]
[null,"MAR-SOU",null,null,null,null,null,null,null,null,{"$f":"IF(\"OPEX-o,\"&$K66&\",,\"&$B799&\",\"=VLOOKUP(\"OPEX-o,\"&$K66&\",,\"&$B799&\",\",data[],1),VLOOKUP(\"OPEX-o,\"&$K66&\",,\"&$B799&\",\",data[],7),INDEX($E$746:$I$746,$J66))","v":0},null,null,null,null,null,{"$f":"IF(\"OPEX-O,\"&Q$2&\",,\"&$B799&\",\"=VLOOKUP(\"OPEX-O,\"&Q$2&\",,\"&$B799&\",\",data[],1),VLOOKUP(\"OPEX-O,\"&Q$2&\",,\"&$B799&\",\",data[],7),Q$746)","v":0},null,{"$f":"IF(\"OPEX-O,\"&S$2&\",,\"&$B799&\",\"=VLOOKUP(\"OPEX-O,\"&S$2&\",,\"&$B799&\",\",data[],1),VLOOKUP(\"OPEX-O,\"&S$2&\",,\"&$B799&\",\",data[],7),S$746)","v":0},null,null,null,null,{"$f":"IF(\"OPEX-O,\"&X$2&\",,\"&$B799&\",\"=VLOOKUP(\"OPEX-O,\"&X$2&\",,\"&$B799&\",\",data[],1),VLOOKUP(\"OPEX-O,\"&X$2&\",,\"&$B799&\",\",data[],7),X$746)","v":0},null,{"$f":"IF(\"OPEX-O,\"&Z$2&\",,\"&$B799&\",\"=VLOOKUP(\"OPEX-O,\"&Z$2&\",,\"&$B799&\",\",data[],1),VLOOKUP(\"OPEX-O,\"&Z$2&\",,\"&$B799&\",\",data[],7),Z$746)","v":0},null,null,null,{"$f":"IF(\"OPEX-O,\"&AD$2&\",,\"&$B799&\",\"=VLOOKUP(\"OPEX-O,\"&AD$2&\",,\"&$B799&\",\",data[],1),VLOOKUP(\"OPEX-O,\"&AD$2&\",,\"&$B799&\",\",data[],7),AD$746)","v":0},null,null,null,null,null,null,{"$f":"IF(\"OPEX-O,\"&AK$2&\",,\"&$B799&\",\"=VLOOKUP(\"OPEX-O,\"&AK$2&\",,\"&$B799&\",\",data[],1),VLOOKUP(\"OPEX-O,\"&AK$2&\",,\"&$B799&\",\",data[],7),AK$746)","v":0},null,{"$f":"IF(\"OPEX-O,\"&AM$2&\",,\"&$B799&\",\"=VLOOKUP(\"OPEX-O,\"&AM$2&\",,\"&$B799&\",\",data[],1),VLOOKUP(\"OPEX-O,\"&AM$2&\",,\"&$B799&\",\",data[],7),AM$746)","v":0},null,null,null,null,null,null,null,{"$f":"IF(\"OPEX-O,\"&AU$2&\",,\"&$B799&\",\"=VLOOKUP(\"OPEX-O,\"&AU$2&\",,\"&$B799&\",\",data[],1),VLOOKUP(\"OPEX-O,\"&AU$2&\",,\"&$B799&\",\",data[],7),AU$746)","v":1.9557894682818507E-3},null,{"$f":"IF(\"OPEX-O,\"&AW$2&\",,\"&$B799&\",\"=VLOOKUP(\"OPEX-O,\"&AW$2&\",,\"&$B799&\",\",data[],1),VLOOKUP(\"OPEX-O,\"&AW$2&\",,\"&$B799&\",\",data[],7),AW$746)","v":0},{"$f":"IF(\"OPEX-O,\"&AX$2&\",,\"&$B799&\",\"=VLOOKUP(\"OPEX-O,\"&AX$2&\",,\"&$B799&\",\",data[],1),VLOOKUP(\"OPEX-O,\"&AX$2&\",,\"&$B799&\",\",data[],7),AX$746)","v":0},{"$f":"IF(\"OPEX-O,\"&AY$2&\",,\"&$B799&\",\"=VLOOKUP(\"OPEX-O,\"&AY$2&\",,\"&$B799&\",\",data[],1),VLOOKUP(\"OPEX-O,\"&AY$2&\",,\"&$B799&\",\",data[],7),AY$746)","v":0},{"$f":"IF(\"OPEX-O,\"&AZ$2&\",,\"&$B799&\",\"=VLOOKUP(\"OPEX-O,\"&AZ$2&\",,\"&$B799&\",\",data[],1),VLOOKUP(\"OPEX-O,\"&AZ$2&\",,\"&$B799&\",\",data[],7),AZ$746)","v":0},null,{"$f":"IF(\"OPEX-O,\"&BB$2&\",,\"&$B799&\",\"=VLOOKUP(\"OPEX-O,\"&BB$2&\",,\"&$B799&\",\",data[],1),VLOOKUP(\"OPEX-O,\"&BB$2&\",,\"&$B799&\",\",data[],7),BB$746)","v":0},null,null,{"$f":"IF(\"OPEX-O,\"&BE$2&\",,\"&$B799&\",\"=VLOOKUP(\"OPEX-O,\"&BE$2&\",,\"&$B799&\",\",data[],1),VLOOKUP(\"OPEX-O,\"&BE$2&\",,\"&$B799&\",\",data[],7),BE$746)","v":0}]
[null,"MAR-TAN",null,null,null,null,null,null,null,null,{"$f":"IF(\"OPEX-o,\"&$K67&\",,\"&$B800&\",\"=VLOOKUP(\"OPEX-o,\"&$K67&\",,\"&$B800&\",\",data[],1),VLOOKUP(\"OPEX-o,\"&$K67&\",,\"&$B800&\",\",data[],7),INDEX($E$746:$I$746,$J67))","v":0},null,null,null,null,null,{"$f":"IF(\"OPEX-O,\"&Q$2&\",,\"&$B800&\",\"=VLOOKUP(\"OPEX-O,\"&Q$2&\",,\"&$B800&\",\",data[],1),VLOOKUP(\"OPEX-O,\"&Q$2&\",,\"&$B800&\",\",data[],7),Q$746)","v":0},null,{"$f":"IF(\"OPEX-O,\"&S$2&\",,\"&$B800&\",\"=VLOOKUP(\"OPEX-O,\"&S$2&\",,\"&$B800&\",\",data[],1),VLOOKUP(\"OPEX-O,\"&S$2&\",,\"&$B800&\",\",data[],7),S$746)","v":0},null,null,null,null,{"$f":"IF(\"OPEX-O,\"&X$2&\",,\"&$B800&\",\"=VLOOKUP(\"OPEX-O,\"&X$2&\",,\"&$B800&\",\",data[],1),VLOOKUP(\"OPEX-O,\"&X$2&\",,\"&$B800&\",\",data[],7),X$746)","v":0},null,{"$f":"IF(\"OPEX-O,\"&Z$2&\",,\"&$B800&\",\"=VLOOKUP(\"OPEX-O,\"&Z$2&\",,\"&$B800&\",\",data[],1),VLOOKUP(\"OPEX-O,\"&Z$2&\",,\"&$B800&\",\",data[],7),Z$746)","v":0},null,null,null,{"$f":"IF(\"OPEX-O,\"&AD$2&\",,\"&$B800&\",\"=VLOOKUP(\"OPEX-O,\"&AD$2&\",,\"&$B800&\",\",data[],1),VLOOKUP(\"OPEX-O,\"&AD$2&\",,\"&$B800&\",\",data[],7),AD$746)","v":0},null,null,null,null,null,null,{"$f":"IF(\"OPEX-O,\"&AK$2&\",,\"&$B800&\",\"=VLOOKUP(\"OPEX-O,\"&AK$2&\",,\"&$B800&\",\",data[],1),VLOOKUP(\"OPEX-O,\"&AK$2&\",,\"&$B800&\",\",data[],7),AK$746)","v":0},null,{"$f":"IF(\"OPEX-O,\"&AM$2&\",,\"&$B800&\",\"=VLOOKUP(\"OPEX-O,\"&AM$2&\",,\"&$B800&\",\",data[],1),VLOOKUP(\"OPEX-O,\"&AM$2&\",,\"&$B800&\",\",data[],7),AM$746)","v":0},null,null,null,null,null,null,null,{"$f":"IF(\"OPEX-O,\"&AU$2&\",,\"&$B800&\",\"=VLOOKUP(\"OPEX-O,\"&AU$2&\",,\"&$B800&\",\",data[],1),VLOOKUP(\"OPEX-O,\"&AU$2&\",,\"&$B800&\",\",data[],7),AU$746)","v":1.9557894682818507E-3},null,{"$f":"IF(\"OPEX-O,\"&AW$2&\",,\"&$B800&\",\"=VLOOKUP(\"OPEX-O,\"&AW$2&\",,\"&$B800&\",\",data[],1),VLOOKUP(\"OPEX-O,\"&AW$2&\",,\"&$B800&\",\",data[],7),AW$746)","v":0},{"$f":"IF(\"OPEX-O,\"&AX$2&\",,\"&$B800&\",\"=VLOOKUP(\"OPEX-O,\"&AX$2&\",,\"&$B800&\",\",data[],1),VLOOKUP(\"OPEX-O,\"&AX$2&\",,\"&$B800&\",\",data[],7),AX$746)","v":0},{"$f":"IF(\"OPEX-O,\"&AY$2&\",,\"&$B800&\",\"=VLOOKUP(\"OPEX-O,\"&AY$2&\",,\"&$B800&\",\",data[],1),VLOOKUP(\"OPEX-O,\"&AY$2&\",,\"&$B800&\",\",data[],7),AY$746)","v":0},{"$f":"IF(\"OPEX-O,\"&AZ$2&\",,\"&$B800&\",\"=VLOOKUP(\"OPEX-O,\"&AZ$2&\",,\"&$B800&\",\",data[],1),VLOOKUP(\"OPEX-O,\"&AZ$2&\",,\"&$B800&\",\",data[],7),AZ$746)","v":0},null,{"$f":"IF(\"OPEX-O,\"&BB$2&\",,\"&$B800&\",\"=VLOOKUP(\"OPEX-O,\"&BB$2&\",,\"&$B800&\",\",data[],1),VLOOKUP(\"OPEX-O,\"&BB$2&\",,\"&$B800&\",\",data[],7),BB$746)","v":0},null,null,{"$f":"IF(\"OPEX-O,\"&BE$2&\",,\"&$B800&\",\"=VLOOKUP(\"OPEX-O,\"&BE$2&\",,\"&$B800&\",\",data[],1),VLOOKUP(\"OPEX-O,\"&BE$2&\",,\"&$B800&\",\",data[],7),BE$746)","v":0}]
[null,"MEX",null,null,null,null,null,null,null,null,{"$f":"IF(\"OPEX-o,\"&$K68&\",,\"&$B801&\",\"=VLOOKUP(\"OPEX-o,\"&$K68&\",,\"&$B801&\",\",data[],1),VLOOKUP(\"OPEX-o,\"&$K68&\",,\"&$B801&\",\",data[],7),INDEX($E$746:$I$746,$J68))","v":0},null,null,null,null,null,{"$f":"IF(\"OPEX-O,\"&Q$2&\",,\"&$B801&\",\"=VLOOKUP(\"OPEX-O,\"&Q$2&\",,\"&$B801&\",\",data[],1),VLOOKUP(\"OPEX-O,\"&Q$2&\",,\"&$B801&\",\",data[],7),Q$746)","v":0},null,{"$f":"IF(\"OPEX-O,\"&S$2&\",,\"&$B801&\",\"=VLOOKUP(\"OPEX-O,\"&S$2&\",,\"&$B801&\",\",data[],1),VLOOKUP(\"OPEX-O,\"&S$2&\",,\"&$B801&\",\",data[],7),S$746)","v":0},null,null,null,null,{"$f":"IF(\"OPEX-O,\"&X$2&\",,\"&$B801&\",\"=VLOOKUP(\"OPEX-O,\"&X$2&\",,\"&$B801&\",\",data[],1),VLOOKUP(\"OPEX-O,\"&X$2&\",,\"&$B801&\",\",data[],7),X$746)","v":0},null,{"$f":"IF(\"OPEX-O,\"&Z$2&\",,\"&$B801&\",\"=VLOOKUP(\"OPEX-O,\"&Z$2&\",,\"&$B801&\",\",data[],1),VLOOKUP(\"OPEX-O,\"&Z$2&\",,\"&$B801&\",\",data[],7),Z$746)","v":0},null,null,null,{"$f":"IF(\"OPEX-O,\"&AD$2&\",,\"&$B801&\",\"=VLOOKUP(\"OPEX-O,\"&AD$2&\",,\"&$B801&\",\",data[],1),VLOOKUP(\"OPEX-O,\"&AD$2&\",,\"&$B801&\",\",data[],7),AD$746)","v":0},null,null,null,null,null,null,{"$f":"IF(\"OPEX-O,\"&AK$2&\",,\"&$B801&\",\"=VLOOKUP(\"OPEX-O,\"&AK$2&\",,\"&$B801&\",\",data[],1),VLOOKUP(\"OPEX-O,\"&AK$2&\",,\"&$B801&\",\",data[],7),AK$746)","v":0},null,{"$f":"IF(\"OPEX-O,\"&AM$2&\",,\"&$B801&\",\"=VLOOKUP(\"OPEX-O,\"&AM$2&\",,\"&$B801&\",\",data[],1),VLOOKUP(\"OPEX-O,\"&AM$2&\",,\"&$B801&\",\",data[],7),AM$746)","v":0},null,null,null,null,null,null,null,{"$f":"IF(\"OPEX-O,\"&AU$2&\",,\"&$B801&\",\"=VLOOKUP(\"OPEX-O,\"&AU$2&\",,\"&$B801&\",\",data[],1),VLOOKUP(\"OPEX-O,\"&AU$2&\",,\"&$B801&\",\",data[],7),AU$746)","v":1.9557894682818507E-3},null,{"$f":"IF(\"OPEX-O,\"&AW$2&\",,\"&$B801&\",\"=VLOOKUP(\"OPEX-O,\"&AW$2&\",,\"&$B801&\",\",data[],1),VLOOKUP(\"OPEX-O,\"&AW$2&\",,\"&$B801&\",\",data[],7),AW$746)","v":0},{"$f":"IF(\"OPEX-O,\"&AX$2&\",,\"&$B801&\",\"=VLOOKUP(\"OPEX-O,\"&AX$2&\",,\"&$B801&\",\",data[],1),VLOOKUP(\"OPEX-O,\"&AX$2&\",,\"&$B801&\",\",data[],7),AX$746)","v":0},{"$f":"IF(\"OPEX-O,\"&AY$2&\",,\"&$B801&\",\"=VLOOKUP(\"OPEX-O,\"&AY$2&\",,\"&$B801&\",\",data[],1),VLOOKUP(\"OPEX-O,\"&AY$2&\",,\"&$B801&\",\",data[],7),AY$746)","v":0},{"$f":"IF(\"OPEX-O,\"&AZ$2&\",,\"&$B801&\",\"=VLOOKUP(\"OPEX-O,\"&AZ$2&\",,\"&$B801&\",\",data[],1),VLOOKUP(\"OPEX-O,\"&AZ$2&\",,\"&$B801&\",\",data[],7),AZ$746)","v":0},null,{"$f":"IF(\"OPEX-O,\"&BB$2&\",,\"&$B801&\",\"=VLOOKUP(\"OPEX-O,\"&BB$2&\",,\"&$B801&\",\",data[],1),VLOOKUP(\"OPEX-O,\"&BB$2&\",,\"&$B801&\",\",data[],7),BB$746)","v":0},null,null,{"$f":"IF(\"OPEX-O,\"&BE$2&\",,\"&$B801&\",\"=VLOOKUP(\"OPEX-O,\"&BE$2&\",,\"&$B801&\",\",data[],1),VLOOKUP(\"OPEX-O,\"&BE$2&\",,\"&$B801&\",\",data[],7),BE$746)","v":0}]
[null,"MRT",null,null,null,null,null,null,null,null,{"$f":"IF(\"OPEX-o,\"&$K69&\",,\"&$B802&\",\"=VLOOKUP(\"OPEX-o,\"&$K69&\",,\"&$B802&\",\",data[],1),VLOOKUP(\"OPEX-o,\"&$K69&\",,\"&$B802&\",\",data[],7),INDEX($E$746:$I$746,$J69))","v":0},null,null,null,null,null,{"$f":"IF(\"OPEX-O,\"&Q$2&\",,\"&$B802&\",\"=VLOOKUP(\"OPEX-O,\"&Q$2&\",,\"&$B802&\",\",data[],1),VLOOKUP(\"OPEX-O,\"&Q$2&\",,\"&$B802&\",\",data[],7),Q$746)","v":0},null,{"$f":"IF(\"OPEX-O,\"&S$2&\",,\"&$B802&\",\"=VLOOKUP(\"OPEX-O,\"&S$2&\",,\"&$B802&\",\",data[],1),VLOOKUP(\"OPEX-O,\"&S$2&\",,\"&$B802&\",\",data[],7),S$746)","v":0},null,null,null,null,{"$f":"IF(\"OPEX-O,\"&X$2&\",,\"&$B802&\",\"=VLOOKUP(\"OPEX-O,\"&X$2&\",,\"&$B802&\",\",data[],1),VLOOKUP(\"OPEX-O,\"&X$2&\",,\"&$B802&\",\",data[],7),X$746)","v":0},null,{"$f":"IF(\"OPEX-O,\"&Z$2&\",,\"&$B802&\",\"=VLOOKUP(\"OPEX-O,\"&Z$2&\",,\"&$B802&\",\",data[],1),VLOOKUP(\"OPEX-O,\"&Z$2&\",,\"&$B802&\",\",data[],7),Z$746)","v":0},null,null,null,{"$f":"IF(\"OPEX-O,\"&AD$2&\",,\"&$B802&\",\"=VLOOKUP(\"OPEX-O,\"&AD$2&\",,\"&$B802&\",\",data[],1),VLOOKUP(\"OPEX-O,\"&AD$2&\",,\"&$B802&\",\",data[],7),AD$746)","v":0},null,null,null,null,null,null,{"$f":"IF(\"OPEX-O,\"&AK$2&\",,\"&$B802&\",\"=VLOOKUP(\"OPEX-O,\"&AK$2&\",,\"&$B802&\",\",data[],1),VLOOKUP(\"OPEX-O,\"&AK$2&\",,\"&$B802&\",\",data[],7),AK$746)","v":0},null,{"$f":"IF(\"OPEX-O,\"&AM$2&\",,\"&$B802&\",\"=VLOOKUP(\"OPEX-O,\"&AM$2&\",,\"&$B802&\",\",data[],1),VLOOKUP(\"OPEX-O,\"&AM$2&\",,\"&$B802&\",\",data[],7),AM$746)","v":0},null,null,null,null,null,null,null,{"$f":"IF(\"OPEX-O,\"&AU$2&\",,\"&$B802&\",\"=VLOOKUP(\"OPEX-O,\"&AU$2&\",,\"&$B802&\",\",data[],1),VLOOKUP(\"OPEX-O,\"&AU$2&\",,\"&$B802&\",\",data[],7),AU$746)","v":1.9557894682818507E-3},null,{"$f":"IF(\"OPEX-O,\"&AW$2&\",,\"&$B802&\",\"=VLOOKUP(\"OPEX-O,\"&AW$2&\",,\"&$B802&\",\",data[],1),VLOOKUP(\"OPEX-O,\"&AW$2&\",,\"&$B802&\",\",data[],7),AW$746)","v":0},{"$f":"IF(\"OPEX-O,\"&AX$2&\",,\"&$B802&\",\"=VLOOKUP(\"OPEX-O,\"&AX$2&\",,\"&$B802&\",\",data[],1),VLOOKUP(\"OPEX-O,\"&AX$2&\",,\"&$B802&\",\",data[],7),AX$746)","v":0},{"$f":"IF(\"OPEX-O,\"&AY$2&\",,\"&$B802&\",\"=VLOOKUP(\"OPEX-O,\"&AY$2&\",,\"&$B802&\",\",data[],1),VLOOKUP(\"OPEX-O,\"&AY$2&\",,\"&$B802&\",\",data[],7),AY$746)","v":0},{"$f":"IF(\"OPEX-O,\"&AZ$2&\",,\"&$B802&\",\"=VLOOKUP(\"OPEX-O,\"&AZ$2&\",,\"&$B802&\",\",data[],1),VLOOKUP(\"OPEX-O,\"&AZ$2&\",,\"&$B802&\",\",data[],7),AZ$746)","v":0},null,{"$f":"IF(\"OPEX-O,\"&BB$2&\",,\"&$B802&\",\"=VLOOKUP(\"OPEX-O,\"&BB$2&\",,\"&$B802&\",\",data[],1),VLOOKUP(\"OPEX-O,\"&BB$2&\",,\"&$B802&\",\",data[],7),BB$746)","v":0},null,null,{"$f":"IF(\"OPEX-O,\"&BE$2&\",,\"&$B802&\",\"=VLOOKUP(\"OPEX-O,\"&BE$2&\",,\"&$B802&\",\",data[],1),VLOOKUP(\"OPEX-O,\"&BE$2&\",,\"&$B802&\",\",data[],7),BE$746)","v":0}]
[null,"NAM",null,null,null,null,null,null,null,null,{"$f":"IF(\"OPEX-o,\"&$K70&\",,\"&$B803&\",\"=VLOOKUP(\"OPEX-o,\"&$K70&\",,\"&$B803&\",\",data[],1),VLOOKUP(\"OPEX-o,\"&$K70&\",,\"&$B803&\",\",data[],7),INDEX($E$746:$I$746,$J70))","v":0},null,null,null,null,null,{"$f":"IF(\"OPEX-O,\"&Q$2&\",,\"&$B803&\",\"=VLOOKUP(\"OPEX-O,\"&Q$2&\",,\"&$B803&\",\",data[],1),VLOOKUP(\"OPEX-O,\"&Q$2&\",,\"&$B803&\",\",data[],7),Q$746)","v":0},null,{"$f":"IF(\"OPEX-O,\"&S$2&\",,\"&$B803&\",\"=VLOOKUP(\"OPEX-O,\"&S$2&\",,\"&$B803&\",\",data[],1),VLOOKUP(\"OPEX-O,\"&S$2&\",,\"&$B803&\",\",data[],7),S$746)","v":0},null,null,null,null,{"$f":"IF(\"OPEX-O,\"&X$2&\",,\"&$B803&\",\"=VLOOKUP(\"OPEX-O,\"&X$2&\",,\"&$B803&\",\",data[],1),VLOOKUP(\"OPEX-O,\"&X$2&\",,\"&$B803&\",\",data[],7),X$746)","v":0},null,{"$f":"IF(\"OPEX-O,\"&Z$2&\",,\"&$B803&\",\"=VLOOKUP(\"OPEX-O,\"&Z$2&\",,\"&$B803&\",\",data[],1),VLOOKUP(\"OPEX-O,\"&Z$2&\",,\"&$B803&\",\",data[],7),Z$746)","v":0},null,null,null,{"$f":"IF(\"OPEX-O,\"&AD$2&\",,\"&$B803&\",\"=VLOOKUP(\"OPEX-O,\"&AD$2&\",,\"&$B803&\",\",data[],1),VLOOKUP(\"OPEX-O,\"&AD$2&\",,\"&$B803&\",\",data[],7),AD$746)","v":0},null,null,null,null,null,null,{"$f":"IF(\"OPEX-O,\"&AK$2&\",,\"&$B803&\",\"=VLOOKUP(\"OPEX-O,\"&AK$2&\",,\"&$B803&\",\",data[],1),VLOOKUP(\"OPEX-O,\"&AK$2&\",,\"&$B803&\",\",data[],7),AK$746)","v":0},null,{"$f":"IF(\"OPEX-O,\"&AM$2&\",,\"&$B803&\",\"=VLOOKUP(\"OPEX-O,\"&AM$2&\",,\"&$B803&\",\",data[],1),VLOOKUP(\"OPEX-O,\"&AM$2&\",,\"&$B803&\",\",data[],7),AM$746)","v":0},null,null,null,null,null,null,null,{"$f":"IF(\"OPEX-O,\"&AU$2&\",,\"&$B803&\",\"=VLOOKUP(\"OPEX-O,\"&AU$2&\",,\"&$B803&\",\",data[],1),VLOOKUP(\"OPEX-O,\"&AU$2&\",,\"&$B803&\",\",data[],7),AU$746)","v":1.9557894682818507E-3},null,{"$f":"IF(\"OPEX-O,\"&AW$2&\",,\"&$B803&\",\"=VLOOKUP(\"OPEX-O,\"&AW$2&\",,\"&$B803&\",\",data[],1),VLOOKUP(\"OPEX-O,\"&AW$2&\",,\"&$B803&\",\",data[],7),AW$746)","v":0},{"$f":"IF(\"OPEX-O,\"&AX$2&\",,\"&$B803&\",\"=VLOOKUP(\"OPEX-O,\"&AX$2&\",,\"&$B803&\",\",data[],1),VLOOKUP(\"OPEX-O,\"&AX$2&\",,\"&$B803&\",\",data[],7),AX$746)","v":0},{"$f":"IF(\"OPEX-O,\"&AY$2&\",,\"&$B803&\",\"=VLOOKUP(\"OPEX-O,\"&AY$2&\",,\"&$B803&\",\",data[],1),VLOOKUP(\"OPEX-O,\"&AY$2&\",,\"&$B803&\",\",data[],7),AY$746)","v":0},{"$f":"IF(\"OPEX-O,\"&AZ$2&\",,\"&$B803&\",\"=VLOOKUP(\"OPEX-O,\"&AZ$2&\",,\"&$B803&\",\",data[],1),VLOOKUP(\"OPEX-O,\"&AZ$2&\",,\"&$B803&\",\",data[],7),AZ$746)","v":0},null,{"$f":"IF(\"OPEX-O,\"&BB$2&\",,\"&$B803&\",\"=VLOOKUP(\"OPEX-O,\"&BB$2&\",,\"&$B803&\",\",data[],1),VLOOKUP(\"OPEX-O,\"&BB$2&\",,\"&$B803&\",\",data[],7),BB$746)","v":0},null,null,{"$f":"IF(\"OPEX-O,\"&BE$2&\",,\"&$B803&\",\"=VLOOKUP(\"OPEX-O,\"&BE$2&\",,\"&$B803&\",\",data[],1),VLOOKUP(\"OPEX-O,\"&BE$2&\",,\"&$B803&\",\",data[],7),BE$746)","v":0}]
[null,"NOR",null,null,null,null,null,null,null,null,{"$f":"IF(\"OPEX-o,\"&$K71&\",,\"&$B804&\",\"=VLOOKUP(\"OPEX-o,\"&$K71&\",,\"&$B804&\",\",data[],1),VLOOKUP(\"OPEX-o,\"&$K71&\",,\"&$B804&\",\",data[],7),INDEX($E$746:$I$746,$J71))","v":0},null,null,null,null,null,{"$f":"IF(\"OPEX-O,\"&Q$2&\",,\"&$B804&\",\"=VLOOKUP(\"OPEX-O,\"&Q$2&\",,\"&$B804&\",\",data[],1),VLOOKUP(\"OPEX-O,\"&Q$2&\",,\"&$B804&\",\",data[],7),Q$746)","v":0},null,{"$f":"IF(\"OPEX-O,\"&S$2&\",,\"&$B804&\",\"=VLOOKUP(\"OPEX-O,\"&S$2&\",,\"&$B804&\",\",data[],1),VLOOKUP(\"OPEX-O,\"&S$2&\",,\"&$B804&\",\",data[],7),S$746)","v":0},null,null,null,null,{"$f":"IF(\"OPEX-O,\"&X$2&\",,\"&$B804&\",\"=VLOOKUP(\"OPEX-O,\"&X$2&\",,\"&$B804&\",\",data[],1),VLOOKUP(\"OPEX-O,\"&X$2&\",,\"&$B804&\",\",data[],7),X$746)","v":0},null,{"$f":"IF(\"OPEX-O,\"&Z$2&\",,\"&$B804&\",\"=VLOOKUP(\"OPEX-O,\"&Z$2&\",,\"&$B804&\",\",data[],1),VLOOKUP(\"OPEX-O,\"&Z$2&\",,\"&$B804&\",\",data[],7),Z$746)","v":0},null,null,null,{"$f":"IF(\"OPEX-O,\"&AD$2&\",,\"&$B804&\",\"=VLOOKUP(\"OPEX-O,\"&AD$2&\",,\"&$B804&\",\",data[],1),VLOOKUP(\"OPEX-O,\"&AD$2&\",,\"&$B804&\",\",data[],7),AD$746)","v":0},null,null,null,null,null,null,{"$f":"IF(\"OPEX-O,\"&AK$2&\",,\"&$B804&\",\"=VLOOKUP(\"OPEX-O,\"&AK$2&\",,\"&$B804&\",\",data[],1),VLOOKUP(\"OPEX-O,\"&AK$2&\",,\"&$B804&\",\",data[],7),AK$746)","v":0},null,{"$f":"IF(\"OPEX-O,\"&AM$2&\",,\"&$B804&\",\"=VLOOKUP(\"OPEX-O,\"&AM$2&\",,\"&$B804&\",\",data[],1),VLOOKUP(\"OPEX-O,\"&AM$2&\",,\"&$B804&\",\",data[],7),AM$746)","v":0},null,null,null,null,null,null,null,{"$f":"IF(\"OPEX-O,\"&AU$2&\",,\"&$B804&\",\"=VLOOKUP(\"OPEX-O,\"&AU$2&\",,\"&$B804&\",\",data[],1),VLOOKUP(\"OPEX-O,\"&AU$2&\",,\"&$B804&\",\",data[],7),AU$746)","v":1.9557894682818507E-3},null,{"$f":"IF(\"OPEX-O,\"&AW$2&\",,\"&$B804&\",\"=VLOOKUP(\"OPEX-O,\"&AW$2&\",,\"&$B804&\",\",data[],1),VLOOKUP(\"OPEX-O,\"&AW$2&\",,\"&$B804&\",\",data[],7),AW$746)","v":0},{"$f":"IF(\"OPEX-O,\"&AX$2&\",,\"&$B804&\",\"=VLOOKUP(\"OPEX-O,\"&AX$2&\",,\"&$B804&\",\",data[],1),VLOOKUP(\"OPEX-O,\"&AX$2&\",,\"&$B804&\",\",data[],7),AX$746)","v":0},{"$f":"IF(\"OPEX-O,\"&AY$2&\",,\"&$B804&\",\"=VLOOKUP(\"OPEX-O,\"&AY$2&\",,\"&$B804&\",\",data[],1),VLOOKUP(\"OPEX-O,\"&AY$2&\",,\"&$B804&\",\",data[],7),AY$746)","v":0},{"$f":"IF(\"OPEX-O,\"&AZ$2&\",,\"&$B804&\",\"=VLOOKUP(\"OPEX-O,\"&AZ$2&\",,\"&$B804&\",\",data[],1),VLOOKUP(\"OPEX-O,\"&AZ$2&\",,\"&$B804&\",\",data[],7),AZ$746)","v":0},null,{"$f":"IF(\"OPEX-O,\"&BB$2&\",,\"&$B804&\",\"=VLOOKUP(\"OPEX-O,\"&BB$2&\",,\"&$B804&\",\",data[],1),VLOOKUP(\"OPEX-O,\"&BB$2&\",,\"&$B804&\",\",data[],7),BB$746)","v":0},null,null,{"$f":"IF(\"OPEX-O,\"&BE$2&\",,\"&$B804&\",\"=VLOOKUP(\"OPEX-O,\"&BE$2&\",,\"&$B804&\",\",data[],1),VLOOKUP(\"OPEX-O,\"&BE$2&\",,\"&$B804&\",\",data[],7),BE$746)","v":0}]
[null,"PER",null,null,null,null,null,null,null,null,{"$f":"IF(\"OPEX-o,\"&$K72&\",,\"&$B805&\",\"=VLOOKUP(\"OPEX-o,\"&$K72&\",,\"&$B805&\",\",data[],1),VLOOKUP(\"OPEX-o,\"&$K72&\",,\"&$B805&\",\",data[],7),INDEX($E$746:$I$746,$J72))","v":0},null,null,null,null,null,{"$f":"IF(\"OPEX-O,\"&Q$2&\",,\"&$B805&\",\"=VLOOKUP(\"OPEX-O,\"&Q$2&\",,\"&$B805&\",\",data[],1),VLOOKUP(\"OPEX-O,\"&Q$2&\",,\"&$B805&\",\",data[],7),Q$746)","v":0},null,{"$f":"IF(\"OPEX-O,\"&S$2&\",,\"&$B805&\",\"=VLOOKUP(\"OPEX-O,\"&S$2&\",,\"&$B805&\",\",data[],1),VLOOKUP(\"OPEX-O,\"&S$2&\",,\"&$B805&\",\",data[],7),S$746)","v":0},null,null,null,null,{"$f":"IF(\"OPEX-O,\"&X$2&\",,\"&$B805&\",\"=VLOOKUP(\"OPEX-O,\"&X$2&\",,\"&$B805&\",\",data[],1),VLOOKUP(\"OPEX-O,\"&X$2&\",,\"&$B805&\",\",data[],7),X$746)","v":0},null,{"$f":"IF(\"OPEX-O,\"&Z$2&\",,\"&$B805&\",\"=VLOOKUP(\"OPEX-O,\"&Z$2&\",,\"&$B805&\",\",data[],1),VLOOKUP(\"OPEX-O,\"&Z$2&\",,\"&$B805&\",\",data[],7),Z$746)","v":0},null,null,null,{"$f":"IF(\"OPEX-O,\"&AD$2&\",,\"&$B805&\",\"=VLOOKUP(\"OPEX-O,\"&AD$2&\",,\"&$B805&\",\",data[],1),VLOOKUP(\"OPEX-O,\"&AD$2&\",,\"&$B805&\",\",data[],7),AD$746)","v":0},null,null,null,null,null,null,{"$f":"IF(\"OPEX-O,\"&AK$2&\",,\"&$B805&\",\"=VLOOKUP(\"OPEX-O,\"&AK$2&\",,\"&$B805&\",\",data[],1),VLOOKUP(\"OPEX-O,\"&AK$2&\",,\"&$B805&\",\",data[],7),AK$746)","v":0},null,{"$f":"IF(\"OPEX-O,\"&AM$2&\",,\"&$B805&\",\"=VLOOKUP(\"OPEX-O,\"&AM$2&\",,\"&$B805&\",\",data[],1),VLOOKUP(\"OPEX-O,\"&AM$2&\",,\"&$B805&\",\",data[],7),AM$746)","v":0},null,null,null,null,null,null,null,{"$f":"IF(\"OPEX-O,\"&AU$2&\",,\"&$B805&\",\"=VLOOKUP(\"OPEX-O,\"&AU$2&\",,\"&$B805&\",\",data[],1),VLOOKUP(\"OPEX-O,\"&AU$2&\",,\"&$B805&\",\",data[],7),AU$746)","v":1.9557894682818507E-3},null,{"$f":"IF(\"OPEX-O,\"&AW$2&\",,\"&$B805&\",\"=VLOOKUP(\"OPEX-O,\"&AW$2&\",,\"&$B805&\",\",data[],1),VLOOKUP(\"OPEX-O,\"&AW$2&\",,\"&$B805&\",\",data[],7),AW$746)","v":0},{"$f":"IF(\"OPEX-O,\"&AX$2&\",,\"&$B805&\",\"=VLOOKUP(\"OPEX-O,\"&AX$2&\",,\"&$B805&\",\",data[],1),VLOOKUP(\"OPEX-O,\"&AX$2&\",,\"&$B805&\",\",data[],7),AX$746)","v":0},{"$f":"IF(\"OPEX-O,\"&AY$2&\",,\"&$B805&\",\"=VLOOKUP(\"OPEX-O,\"&AY$2&\",,\"&$B805&\",\",data[],1),VLOOKUP(\"OPEX-O,\"&AY$2&\",,\"&$B805&\",\",data[],7),AY$746)","v":0},{"$f":"IF(\"OPEX-O,\"&AZ$2&\",,\"&$B805&\",\"=VLOOKUP(\"OPEX-O,\"&AZ$2&\",,\"&$B805&\",\",data[],1),VLOOKUP(\"OPEX-O,\"&AZ$2&\",,\"&$B805&\",\",data[],7),AZ$746)","v":0},null,{"$f":"IF(\"OPEX-O,\"&BB$2&\",,\"&$B805&\",\"=VLOOKUP(\"OPEX-O,\"&BB$2&\",,\"&$B805&\",\",data[],1),VLOOKUP(\"OPEX-O,\"&BB$2&\",,\"&$B805&\",\",data[],7),BB$746)","v":0},null,null,{"$f":"IF(\"OPEX-O,\"&BE$2&\",,\"&$B805&\",\"=VLOOKUP(\"OPEX-O,\"&BE$2&\",,\"&$B805&\",\",data[],1),VLOOKUP(\"OPEX-O,\"&BE$2&\",,\"&$B805&\",\",data[],7),BE$746)","v":0}]
[null,"PRT",null,null,null,null,null,null,null,null,{"$f":"IF(\"OPEX-o,\"&$K73&\",,\"&$B806&\",\"=VLOOKUP(\"OPEX-o,\"&$K73&\",,\"&$B806&\",\",data[],1),VLOOKUP(\"OPEX-o,\"&$K73&\",,\"&$B806&\",\",data[],7),INDEX($E$746:$I$746,$J73))","v":0},null,null,null,null,null,{"$f":"IF(\"OPEX-O,\"&Q$2&\",,\"&$B806&\",\"=VLOOKUP(\"OPEX-O,\"&Q$2&\",,\"&$B806&\",\",data[],1),VLOOKUP(\"OPEX-O,\"&Q$2&\",,\"&$B806&\",\",data[],7),Q$746)","v":0},null,{"$f":"IF(\"OPEX-O,\"&S$2&\",,\"&$B806&\",\"=VLOOKUP(\"OPEX-O,\"&S$2&\",,\"&$B806&\",\",data[],1),VLOOKUP(\"OPEX-O,\"&S$2&\",,\"&$B806&\",\",data[],7),S$746)","v":0},null,null,null,null,{"$f":"IF(\"OPEX-O,\"&X$2&\",,\"&$B806&\",\"=VLOOKUP(\"OPEX-O,\"&X$2&\",,\"&$B806&\",\",data[],1),VLOOKUP(\"OPEX-O,\"&X$2&\",,\"&$B806&\",\",data[],7),X$746)","v":0},null,{"$f":"IF(\"OPEX-O,\"&Z$2&\",,\"&$B806&\",\"=VLOOKUP(\"OPEX-O,\"&Z$2&\",,\"&$B806&\",\",data[],1),VLOOKUP(\"OPEX-O,\"&Z$2&\",,\"&$B806&\",\",data[],7),Z$746)","v":0},null,null,null,{"$f":"IF(\"OPEX-O,\"&AD$2&\",,\"&$B806&\",\"=VLOOKUP(\"OPEX-O,\"&AD$2&\",,\"&$B806&\",\",data[],1),VLOOKUP(\"OPEX-O,\"&AD$2&\",,\"&$B806&\",\",data[],7),AD$746)","v":0},null,null,null,null,null,null,{"$f":"IF(\"OPEX-O,\"&AK$2&\",,\"&$B806&\",\"=VLOOKUP(\"OPEX-O,\"&AK$2&\",,\"&$B806&\",\",data[],1),VLOOKUP(\"OPEX-O,\"&AK$2&\",,\"&$B806&\",\",data[],7),AK$746)","v":0},null,{"$f":"IF(\"OPEX-O,\"&AM$2&\",,\"&$B806&\",\"=VLOOKUP(\"OPEX-O,\"&AM$2&\",,\"&$B806&\",\",data[],1),VLOOKUP(\"OPEX-O,\"&AM$2&\",,\"&$B806&\",\",data[],7),AM$746)","v":0},null,null,null,null,null,null,null,{"$f":"IF(\"OPEX-O,\"&AU$2&\",,\"&$B806&\",\"=VLOOKUP(\"OPEX-O,\"&AU$2&\",,\"&$B806&\",\",data[],1),VLOOKUP(\"OPEX-O,\"&AU$2&\",,\"&$B806&\",\",data[],7),AU$746)","v":1.9557894682818507E-3},null,{"$f":"IF(\"OPEX-O,\"&AW$2&\",,\"&$B806&\",\"=VLOOKUP(\"OPEX-O,\"&AW$2&\",,\"&$B806&\",\",data[],1),VLOOKUP(\"OPEX-O,\"&AW$2&\",,\"&$B806&\",\",data[],7),AW$746)","v":0},{"$f":"IF(\"OPEX-O,\"&AX$2&\",,\"&$B806&\",\"=VLOOKUP(\"OPEX-O,\"&AX$2&\",,\"&$B806&\",\",data[],1),VLOOKUP(\"OPEX-O,\"&AX$2&\",,\"&$B806&\",\",data[],7),AX$746)","v":0},{"$f":"IF(\"OPEX-O,\"&AY$2&\",,\"&$B806&\",\"=VLOOKUP(\"OPEX-O,\"&AY$2&\",,\"&$B806&\",\",data[],1),VLOOKUP(\"OPEX-O,\"&AY$2&\",,\"&$B806&\",\",data[],7),AY$746)","v":0},{"$f":"IF(\"OPEX-O,\"&AZ$2&\",,\"&$B806&\",\"=VLOOKUP(\"OPEX-O,\"&AZ$2&\",,\"&$B806&\",\",data[],1),VLOOKUP(\"OPEX-O,\"&AZ$2&\",,\"&$B806&\",\",data[],7),AZ$746)","v":0},null,{"$f":"IF(\"OPEX-O,\"&BB$2&\",,\"&$B806&\",\"=VLOOKUP(\"OPEX-O,\"&BB$2&\",,\"&$B806&\",\",data[],1),VLOOKUP(\"OPEX-O,\"&BB$2&\",,\"&$B806&\",\",data[],7),BB$746)","v":0},null,null,{"$f":"IF(\"OPEX-O,\"&BE$2&\",,\"&$B806&\",\"=VLOOKUP(\"OPEX-O,\"&BE$2&\",,\"&$B806&\",\",data[],1),VLOOKUP(\"OPEX-O,\"&BE$2&\",,\"&$B806&\",\",data[],7),BE$746)","v":0}]
[null,"RUS",null,null,null,null,null,null,null,null,{"$f":"IF(\"OPEX-o,\"&$K74&\",,\"&$B807&\",\"=VLOOKUP(\"OPEX-o,\"&$K74&\",,\"&$B807&\",\",data[],1),VLOOKUP(\"OPEX-o,\"&$K74&\",,\"&$B807&\",\",data[],7),INDEX($E$746:$I$746,$J74))","v":0},null,null,null,null,null,{"$f":"IF(\"OPEX-O,\"&Q$2&\",,\"&$B807&\",\"=VLOOKUP(\"OPEX-O,\"&Q$2&\",,\"&$B807&\",\",data[],1),VLOOKUP(\"OPEX-O,\"&Q$2&\",,\"&$B807&\",\",data[],7),Q$746)","v":0},null,{"$f":"IF(\"OPEX-O,\"&S$2&\",,\"&$B807&\",\"=VLOOKUP(\"OPEX-O,\"&S$2&\",,\"&$B807&\",\",data[],1),VLOOKUP(\"OPEX-O,\"&S$2&\",,\"&$B807&\",\",data[],7),S$746)","v":0},null,null,null,null,{"$f":"IF(\"OPEX-O,\"&X$2&\",,\"&$B807&\",\"=VLOOKUP(\"OPEX-O,\"&X$2&\",,\"&$B807&\",\",data[],1),VLOOKUP(\"OPEX-O,\"&X$2&\",,\"&$B807&\",\",data[],7),X$746)","v":0},null,{"$f":"IF(\"OPEX-O,\"&Z$2&\",,\"&$B807&\",\"=VLOOKUP(\"OPEX-O,\"&Z$2&\",,\"&$B807&\",\",data[],1),VLOOKUP(\"OPEX-O,\"&Z$2&\",,\"&$B807&\",\",data[],7),Z$746)","v":0},null,null,null,{"$f":"IF(\"OPEX-O,\"&AD$2&\",,\"&$B807&\",\"=VLOOKUP(\"OPEX-O,\"&AD$2&\",,\"&$B807&\",\",data[],1),VLOOKUP(\"OPEX-O,\"&AD$2&\",,\"&$B807&\",\",data[],7),AD$746)","v":0},null,null,null,null,null,null,{"$f":"IF(\"OPEX-O,\"&AK$2&\",,\"&$B807&\",\"=VLOOKUP(\"OPEX-O,\"&AK$2&\",,\"&$B807&\",\",data[],1),VLOOKUP(\"OPEX-O,\"&AK$2&\",,\"&$B807&\",\",data[],7),AK$746)","v":0},null,{"$f":"IF(\"OPEX-O,\"&AM$2&\",,\"&$B807&\",\"=VLOOKUP(\"OPEX-O,\"&AM$2&\",,\"&$B807&\",\",data[],1),VLOOKUP(\"OPEX-O,\"&AM$2&\",,\"&$B807&\",\",data[],7),AM$746)","v":0},null,null,null,null,null,null,null,{"$f":"IF(\"OPEX-O,\"&AU$2&\",,\"&$B807&\",\"=VLOOKUP(\"OPEX-O,\"&AU$2&\",,\"&$B807&\",\",data[],1),VLOOKUP(\"OPEX-O,\"&AU$2&\",,\"&$B807&\",\",data[],7),AU$746)","v":1.9557894682818507E-3},null,{"$f":"IF(\"OPEX-O,\"&AW$2&\",,\"&$B807&\",\"=VLOOKUP(\"OPEX-O,\"&AW$2&\",,\"&$B807&\",\",data[],1),VLOOKUP(\"OPEX-O,\"&AW$2&\",,\"&$B807&\",\",data[],7),AW$746)","v":0},{"$f":"IF(\"OPEX-O,\"&AX$2&\",,\"&$B807&\",\"=VLOOKUP(\"OPEX-O,\"&AX$2&\",,\"&$B807&\",\",data[],1),VLOOKUP(\"OPEX-O,\"&AX$2&\",,\"&$B807&\",\",data[],7),AX$746)","v":0},{"$f":"IF(\"OPEX-O,\"&AY$2&\",,\"&$B807&\",\"=VLOOKUP(\"OPEX-O,\"&AY$2&\",,\"&$B807&\",\",data[],1),VLOOKUP(\"OPEX-O,\"&AY$2&\",,\"&$B807&\",\",data[],7),AY$746)","v":0},{"$f":"IF(\"OPEX-O,\"&AZ$2&\",,\"&$B807&\",\"=VLOOKUP(\"OPEX-O,\"&AZ$2&\",,\"&$B807&\",\",data[],1),VLOOKUP(\"OPEX-O,\"&AZ$2&\",,\"&$B807&\",\",data[],7),AZ$746)","v":0},null,{"$f":"IF(\"OPEX-O,\"&BB$2&\",,\"&$B807&\",\"=VLOOKUP(\"OPEX-O,\"&BB$2&\",,\"&$B807&\",\",data[],1),VLOOKUP(\"OPEX-O,\"&BB$2&\",,\"&$B807&\",\",data[],7),BB$746)","v":0},null,null,{"$f":"IF(\"OPEX-O,\"&BE$2&\",,\"&$B807&\",\"=VLOOKUP(\"OPEX-O,\"&BE$2&\",,\"&$B807&\",\",data[],1),VLOOKUP(\"OPEX-O,\"&BE$2&\",,\"&$B807&\",\",data[],7),BE$746)","v":0}]
[null,"SAU",null,null,null,null,null,null,null,null,{"$f":"IF(\"OPEX-o,\"&$K75&\",,\"&$B808&\",\"=VLOOKUP(\"OPEX-o,\"&$K75&\",,\"&$B808&\",\",data[],1),VLOOKUP(\"OPEX-o,\"&$K75&\",,\"&$B808&\",\",data[],7),INDEX($E$746:$I$746,$J75))","v":0},null,null,null,null,null,{"$f":"IF(\"OPEX-O,\"&Q$2&\",,\"&$B808&\",\"=VLOOKUP(\"OPEX-O,\"&Q$2&\",,\"&$B808&\",\",data[],1),VLOOKUP(\"OPEX-O,\"&Q$2&\",,\"&$B808&\",\",data[],7),Q$746)","v":0},null,{"$f":"IF(\"OPEX-O,\"&S$2&\",,\"&$B808&\",\"=VLOOKUP(\"OPEX-O,\"&S$2&\",,\"&$B808&\",\",data[],1),VLOOKUP(\"OPEX-O,\"&S$2&\",,\"&$B808&\",\",data[],7),S$746)","v":0},null,null,null,null,{"$f":"IF(\"OPEX-O,\"&X$2&\",,\"&$B808&\",\"=VLOOKUP(\"OPEX-O,\"&X$2&\",,\"&$B808&\",\",data[],1),VLOOKUP(\"OPEX-O,\"&X$2&\",,\"&$B808&\",\",data[],7),X$746)","v":0},null,{"$f":"IF(\"OPEX-O,\"&Z$2&\",,\"&$B808&\",\"=VLOOKUP(\"OPEX-O,\"&Z$2&\",,\"&$B808&\",\",data[],1),VLOOKUP(\"OPEX-O,\"&Z$2&\",,\"&$B808&\",\",data[],7),Z$746)","v":0},null,null,null,{"$f":"IF(\"OPEX-O,\"&AD$2&\",,\"&$B808&\",\"=VLOOKUP(\"OPEX-O,\"&AD$2&\",,\"&$B808&\",\",data[],1),VLOOKUP(\"OPEX-O,\"&AD$2&\",,\"&$B808&\",\",data[],7),AD$746)","v":0},null,null,null,null,null,null,{"$f":"IF(\"OPEX-O,\"&AK$2&\",,\"&$B808&\",\"=VLOOKUP(\"OPEX-O,\"&AK$2&\",,\"&$B808&\",\",data[],1),VLOOKUP(\"OPEX-O,\"&AK$2&\",,\"&$B808&\",\",data[],7),AK$746)","v":0},null,{"$f":"IF(\"OPEX-O,\"&AM$2&\",,\"&$B808&\",\"=VLOOKUP(\"OPEX-O,\"&AM$2&\",,\"&$B808&\",\",data[],1),VLOOKUP(\"OPEX-O,\"&AM$2&\",,\"&$B808&\",\",data[],7),AM$746)","v":0},null,null,null,null,null,null,null,{"$f":"IF(\"OPEX-O,\"&AU$2&\",,\"&$B808&\",\"=VLOOKUP(\"OPEX-O,\"&AU$2&\",,\"&$B808&\",\",data[],1),VLOOKUP(\"OPEX-O,\"&AU$2&\",,\"&$B808&\",\",data[],7),AU$746)","v":1.9557894682818507E-3},null,{"$f":"IF(\"OPEX-O,\"&AW$2&\",,\"&$B808&\",\"=VLOOKUP(\"OPEX-O,\"&AW$2&\",,\"&$B808&\",\",data[],1),VLOOKUP(\"OPEX-O,\"&AW$2&\",,\"&$B808&\",\",data[],7),AW$746)","v":0},{"$f":"IF(\"OPEX-O,\"&AX$2&\",,\"&$B808&\",\"=VLOOKUP(\"OPEX-O,\"&AX$2&\",,\"&$B808&\",\",data[],1),VLOOKUP(\"OPEX-O,\"&AX$2&\",,\"&$B808&\",\",data[],7),AX$746)","v":0},{"$f":"IF(\"OPEX-O,\"&AY$2&\",,\"&$B808&\",\"=VLOOKUP(\"OPEX-O,\"&AY$2&\",,\"&$B808&\",\",data[],1),VLOOKUP(\"OPEX-O,\"&AY$2&\",,\"&$B808&\",\",data[],7),AY$746)","v":0},{"$f":"IF(\"OPEX-O,\"&AZ$2&\",,\"&$B808&\",\"=VLOOKUP(\"OPEX-O,\"&AZ$2&\",,\"&$B808&\",\",data[],1),VLOOKUP(\"OPEX-O,\"&AZ$2&\",,\"&$B808&\",\",data[],7),AZ$746)","v":0},null,{"$f":"IF(\"OPEX-O,\"&BB$2&\",,\"&$B808&\",\"=VLOOKUP(\"OPEX-O,\"&BB$2&\",,\"&$B808&\",\",data[],1),VLOOKUP(\"OPEX-O,\"&BB$2&\",,\"&$B808&\",\",data[],7),BB$746)","v":0},null,null,{"$f":"IF(\"OPEX-O,\"&BE$2&\",,\"&$B808&\",\"=VLOOKUP(\"OPEX-O,\"&BE$2&\",,\"&$B808&\",\",data[],1),VLOOKUP(\"OPEX-O,\"&BE$2&\",,\"&$B808&\",\",data[],7),BE$746)","v":0}]
[null,"SWE",null,null,null,null,null,null,null,null,{"$f":"IF(\"OPEX-o,\"&$K76&\",,\"&$B809&\",\"=VLOOKUP(\"OPEX-o,\"&$K76&\",,\"&$B809&\",\",data[],1),VLOOKUP(\"OPEX-o,\"&$K76&\",,\"&$B809&\",\",data[],7),INDEX($E$746:$I$746,$J76))","v":0},null,null,null,null,null,{"$f":"IF(\"OPEX-O,\"&Q$2&\",,\"&$B809&\",\"=VLOOKUP(\"OPEX-O,\"&Q$2&\",,\"&$B809&\",\",data[],1),VLOOKUP(\"OPEX-O,\"&Q$2&\",,\"&$B809&\",\",data[],7),Q$746)","v":0},null,{"$f":"IF(\"OPEX-O,\"&S$2&\",,\"&$B809&\",\"=VLOOKUP(\"OPEX-O,\"&S$2&\",,\"&$B809&\",\",data[],1),VLOOKUP(\"OPEX-O,\"&S$2&\",,\"&$B809&\",\",data[],7),S$746)","v":0},null,null,null,null,{"$f":"IF(\"OPEX-O,\"&X$2&\",,\"&$B809&\",\"=VLOOKUP(\"OPEX-O,\"&X$2&\",,\"&$B809&\",\",data[],1),VLOOKUP(\"OPEX-O,\"&X$2&\",,\"&$B809&\",\",data[],7),X$746)","v":0},null,{"$f":"IF(\"OPEX-O,\"&Z$2&\",,\"&$B809&\",\"=VLOOKUP(\"OPEX-O,\"&Z$2&\",,\"&$B809&\",\",data[],1),VLOOKUP(\"OPEX-O,\"&Z$2&\",,\"&$B809&\",\",data[],7),Z$746)","v":0},null,null,null,{"$f":"IF(\"OPEX-O,\"&AD$2&\",,\"&$B809&\",\"=VLOOKUP(\"OPEX-O,\"&AD$2&\",,\"&$B809&\",\",data[],1),VLOOKUP(\"OPEX-O,\"&AD$2&\",,\"&$B809&\",\",data[],7),AD$746)","v":0},null,null,null,null,null,null,{"$f":"IF(\"OPEX-O,\"&AK$2&\",,\"&$B809&\",\"=VLOOKUP(\"OPEX-O,\"&AK$2&\",,\"&$B809&\",\",data[],1),VLOOKUP(\"OPEX-O,\"&AK$2&\",,\"&$B809&\",\",data[],7),AK$746)","v":0},null,{"$f":"IF(\"OPEX-O,\"&AM$2&\",,\"&$B809&\",\"=VLOOKUP(\"OPEX-O,\"&AM$2&\",,\"&$B809&\",\",data[],1),VLOOKUP(\"OPEX-O,\"&AM$2&\",,\"&$B809&\",\",data[],7),AM$746)","v":0},null,null,null,null,null,null,null,{"$f":"IF(\"OPEX-O,\"&AU$2&\",,\"&$B809&\",\"=VLOOKUP(\"OPEX-O,\"&AU$2&\",,\"&$B809&\",\",data[],1),VLOOKUP(\"OPEX-O,\"&AU$2&\",,\"&$B809&\",\",data[],7),AU$746)","v":1.9557894682818507E-3},null,{"$f":"IF(\"OPEX-O,\"&AW$2&\",,\"&$B809&\",\"=VLOOKUP(\"OPEX-O,\"&AW$2&\",,\"&$B809&\",\",data[],1),VLOOKUP(\"OPEX-O,\"&AW$2&\",,\"&$B809&\",\",data[],7),AW$746)","v":0},{"$f":"IF(\"OPEX-O,\"&AX$2&\",,\"&$B809&\",\"=VLOOKUP(\"OPEX-O,\"&AX$2&\",,\"&$B809&\",\",data[],1),VLOOKUP(\"OPEX-O,\"&AX$2&\",,\"&$B809&\",\",data[],7),AX$746)","v":0},{"$f":"IF(\"OPEX-O,\"&AY$2&\",,\"&$B809&\",\"=VLOOKUP(\"OPEX-O,\"&AY$2&\",,\"&$B809&\",\",data[],1),VLOOKUP(\"OPEX-O,\"&AY$2&\",,\"&$B809&\",\",data[],7),AY$746)","v":0},{"$f":"IF(\"OPEX-O,\"&AZ$2&\",,\"&$B809&\",\"=VLOOKUP(\"OPEX-O,\"&AZ$2&\",,\"&$B809&\",\",data[],1),VLOOKUP(\"OPEX-O,\"&AZ$2&\",,\"&$B809&\",\",data[],7),AZ$746)","v":0},null,{"$f":"IF(\"OPEX-O,\"&BB$2&\",,\"&$B809&\",\"=VLOOKUP(\"OPEX-O,\"&BB$2&\",,\"&$B809&\",\",data[],1),VLOOKUP(\"OPEX-O,\"&BB$2&\",,\"&$B809&\",\",data[],7),BB$746)","v":0},null,null,{"$f":"IF(\"OPEX-O,\"&BE$2&\",,\"&$B809&\",\"=VLOOKUP(\"OPEX-O,\"&BE$2&\",,\"&$B809&\",\",data[],1),VLOOKUP(\"OPEX-O,\"&BE$2&\",,\"&$B809&\",\",data[],7),BE$746)","v":0}]
[null,"THA",null,null,null,null,null,null,null,null,{"$f":"IF(\"OPEX-o,\"&$K77&\",,\"&$B810&\",\"=VLOOKUP(\"OPEX-o,\"&$K77&\",,\"&$B810&\",\",data[],1),VLOOKUP(\"OPEX-o,\"&$K77&\",,\"&$B810&\",\",data[],7),INDEX($E$746:$I$746,$J77))","v":0},null,null,null,null,null,{"$f":"IF(\"OPEX-O,\"&Q$2&\",,\"&$B810&\",\"=VLOOKUP(\"OPEX-O,\"&Q$2&\",,\"&$B810&\",\",data[],1),VLOOKUP(\"OPEX-O,\"&Q$2&\",,\"&$B810&\",\",data[],7),Q$746)","v":0},null,{"$f":"IF(\"OPEX-O,\"&S$2&\",,\"&$B810&\",\"=VLOOKUP(\"OPEX-O,\"&S$2&\",,\"&$B810&\",\",data[],1),VLOOKUP(\"OPEX-O,\"&S$2&\",,\"&$B810&\",\",data[],7),S$746)","v":0},null,null,null,null,{"$f":"IF(\"OPEX-O,\"&X$2&\",,\"&$B810&\",\"=VLOOKUP(\"OPEX-O,\"&X$2&\",,\"&$B810&\",\",data[],1),VLOOKUP(\"OPEX-O,\"&X$2&\",,\"&$B810&\",\",data[],7),X$746)","v":0},null,{"$f":"IF(\"OPEX-O,\"&Z$2&\",,\"&$B810&\",\"=VLOOKUP(\"OPEX-O,\"&Z$2&\",,\"&$B810&\",\",data[],1),VLOOKUP(\"OPEX-O,\"&Z$2&\",,\"&$B810&\",\",data[],7),Z$746)","v":0},null,null,null,{"$f":"IF(\"OPEX-O,\"&AD$2&\",,\"&$B810&\",\"=VLOOKUP(\"OPEX-O,\"&AD$2&\",,\"&$B810&\",\",data[],1),VLOOKUP(\"OPEX-O,\"&AD$2&\",,\"&$B810&\",\",data[],7),AD$746)","v":0},null,null,null,null,null,null,{"$f":"IF(\"OPEX-O,\"&AK$2&\",,\"&$B810&\",\"=VLOOKUP(\"OPEX-O,\"&AK$2&\",,\"&$B810&\",\",data[],1),VLOOKUP(\"OPEX-O,\"&AK$2&\",,\"&$B810&\",\",data[],7),AK$746)","v":0},null,{"$f":"IF(\"OPEX-O,\"&AM$2&\",,\"&$B810&\",\"=VLOOKUP(\"OPEX-O,\"&AM$2&\",,\"&$B810&\",\",data[],1),VLOOKUP(\"OPEX-O,\"&AM$2&\",,\"&$B810&\",\",data[],7),AM$746)","v":0},null,null,null,null,null,null,null,{"$f":"IF(\"OPEX-O,\"&AU$2&\",,\"&$B810&\",\"=VLOOKUP(\"OPEX-O,\"&AU$2&\",,\"&$B810&\",\",data[],1),VLOOKUP(\"OPEX-O,\"&AU$2&\",,\"&$B810&\",\",data[],7),AU$746)","v":1.9557894682818507E-3},null,{"$f":"IF(\"OPEX-O,\"&AW$2&\",,\"&$B810&\",\"=VLOOKUP(\"OPEX-O,\"&AW$2&\",,\"&$B810&\",\",data[],1),VLOOKUP(\"OPEX-O,\"&AW$2&\",,\"&$B810&\",\",data[],7),AW$746)","v":0},{"$f":"IF(\"OPEX-O,\"&AX$2&\",,\"&$B810&\",\"=VLOOKUP(\"OPEX-O,\"&AX$2&\",,\"&$B810&\",\",data[],1),VLOOKUP(\"OPEX-O,\"&AX$2&\",,\"&$B810&\",\",data[],7),AX$746)","v":0},{"$f":"IF(\"OPEX-O,\"&AY$2&\",,\"&$B810&\",\"=VLOOKUP(\"OPEX-O,\"&AY$2&\",,\"&$B810&\",\",data[],1),VLOOKUP(\"OPEX-O,\"&AY$2&\",,\"&$B810&\",\",data[],7),AY$746)","v":0},{"$f":"IF(\"OPEX-O,\"&AZ$2&\",,\"&$B810&\",\"=VLOOKUP(\"OPEX-O,\"&AZ$2&\",,\"&$B810&\",\",data[],1),VLOOKUP(\"OPEX-O,\"&AZ$2&\",,\"&$B810&\",\",data[],7),AZ$746)","v":0},null,{"$f":"IF(\"OPEX-O,\"&BB$2&\",,\"&$B810&\",\"=VLOOKUP(\"OPEX-O,\"&BB$2&\",,\"&$B810&\",\",data[],1),VLOOKUP(\"OPEX-O,\"&BB$2&\",,\"&$B810&\",\",data[],7),BB$746)","v":0},null,null,{"$f":"IF(\"OPEX-O,\"&BE$2&\",,\"&$B810&\",\"=VLOOKUP(\"OPEX-O,\"&BE$2&\",,\"&$B810&\",\",data[],1),VLOOKUP(\"OPEX-O,\"&BE$2&\",,\"&$B810&\",\",data[],7),BE$746)","v":0}]
[null,"TUN",null,null,null,null,null,null,null,null,{"$f":"IF(\"OPEX-o,\"&$K78&\",,\"&$B811&\",\"=VLOOKUP(\"OPEX-o,\"&$K78&\",,\"&$B811&\",\",data[],1),VLOOKUP(\"OPEX-o,\"&$K78&\",,\"&$B811&\",\",data[],7),INDEX($E$746:$I$746,$J78))","v":0},null,null,null,null,null,{"$f":"IF(\"OPEX-O,\"&Q$2&\",,\"&$B811&\",\"=VLOOKUP(\"OPEX-O,\"&Q$2&\",,\"&$B811&\",\",data[],1),VLOOKUP(\"OPEX-O,\"&Q$2&\",,\"&$B811&\",\",data[],7),Q$746)","v":0},null,{"$f":"IF(\"OPEX-O,\"&S$2&\",,\"&$B811&\",\"=VLOOKUP(\"OPEX-O,\"&S$2&\",,\"&$B811&\",\",data[],1),VLOOKUP(\"OPEX-O,\"&S$2&\",,\"&$B811&\",\",data[],7),S$746)","v":0},null,null,null,null,{"$f":"IF(\"OPEX-O,\"&X$2&\",,\"&$B811&\",\"=VLOOKUP(\"OPEX-O,\"&X$2&\",,\"&$B811&\",\",data[],1),VLOOKUP(\"OPEX-O,\"&X$2&\",,\"&$B811&\",\",data[],7),X$746)","v":0},null,{"$f":"IF(\"OPEX-O,\"&Z$2&\",,\"&$B811&\",\"=VLOOKUP(\"OPEX-O,\"&Z$2&\",,\"&$B811&\",\",data[],1),VLOOKUP(\"OPEX-O,\"&Z$2&\",,\"&$B811&\",\",data[],7),Z$746)","v":0},null,null,null,{"$f":"IF(\"OPEX-O,\"&AD$2&\",,\"&$B811&\",\"=VLOOKUP(\"OPEX-O,\"&AD$2&\",,\"&$B811&\",\",data[],1),VLOOKUP(\"OPEX-O,\"&AD$2&\",,\"&$B811&\",\",data[],7),AD$746)","v":0},null,null,null,null,null,null,{"$f":"IF(\"OPEX-O,\"&AK$2&\",,\"&$B811&\",\"=VLOOKUP(\"OPEX-O,\"&AK$2&\",,\"&$B811&\",\",data[],1),VLOOKUP(\"OPEX-O,\"&AK$2&\",,\"&$B811&\",\",data[],7),AK$746)","v":0},null,{"$f":"IF(\"OPEX-O,\"&AM$2&\",,\"&$B811&\",\"=VLOOKUP(\"OPEX-O,\"&AM$2&\",,\"&$B811&\",\",data[],1),VLOOKUP(\"OPEX-O,\"&AM$2&\",,\"&$B811&\",\",data[],7),AM$746)","v":0},null,null,null,null,null,null,null,{"$f":"IF(\"OPEX-O,\"&AU$2&\",,\"&$B811&\",\"=VLOOKUP(\"OPEX-O,\"&AU$2&\",,\"&$B811&\",\",data[],1),VLOOKUP(\"OPEX-O,\"&AU$2&\",,\"&$B811&\",\",data[],7),AU$746)","v":1.9557894682818507E-3},null,{"$f":"IF(\"OPEX-O,\"&AW$2&\",,\"&$B811&\",\"=VLOOKUP(\"OPEX-O,\"&AW$2&\",,\"&$B811&\",\",data[],1),VLOOKUP(\"OPEX-O,\"&AW$2&\",,\"&$B811&\",\",data[],7),AW$746)","v":0},{"$f":"IF(\"OPEX-O,\"&AX$2&\",,\"&$B811&\",\"=VLOOKUP(\"OPEX-O,\"&AX$2&\",,\"&$B811&\",\",data[],1),VLOOKUP(\"OPEX-O,\"&AX$2&\",,\"&$B811&\",\",data[],7),AX$746)","v":0},{"$f":"IF(\"OPEX-O,\"&AY$2&\",,\"&$B811&\",\"=VLOOKUP(\"OPEX-O,\"&AY$2&\",,\"&$B811&\",\",data[],1),VLOOKUP(\"OPEX-O,\"&AY$2&\",,\"&$B811&\",\",data[],7),AY$746)","v":0},{"$f":"IF(\"OPEX-O,\"&AZ$2&\",,\"&$B811&\",\"=VLOOKUP(\"OPEX-O,\"&AZ$2&\",,\"&$B811&\",\",data[],1),VLOOKUP(\"OPEX-O,\"&AZ$2&\",,\"&$B811&\",\",data[],7),AZ$746)","v":0},null,{"$f":"IF(\"OPEX-O,\"&BB$2&\",,\"&$B811&\",\"=VLOOKUP(\"OPEX-O,\"&BB$2&\",,\"&$B811&\",\",data[],1),VLOOKUP(\"OPEX-O,\"&BB$2&\",,\"&$B811&\",\",data[],7),BB$746)","v":0},null,null,{"$f":"IF(\"OPEX-O,\"&BE$2&\",,\"&$B811&\",\"=VLOOKUP(\"OPEX-O,\"&BE$2&\",,\"&$B811&\",\",data[],1),VLOOKUP(\"OPEX-O,\"&BE$2&\",,\"&$B811&\",\",data[],7),BE$746)","v":0}]
[null,"UKR",null,null,null,null,null,null,null,null,{"$f":"IF(\"OPEX-o,\"&$K79&\",,\"&$B812&\",\"=VLOOKUP(\"OPEX-o,\"&$K79&\",,\"&$B812&\",\",data[],1),VLOOKUP(\"OPEX-o,\"&$K79&\",,\"&$B812&\",\",data[],7),INDEX($E$746:$I$746,$J79))","v":0},null,null,null,null,null,{"$f":"IF(\"OPEX-O,\"&Q$2&\",,\"&$B812&\",\"=VLOOKUP(\"OPEX-O,\"&Q$2&\",,\"&$B812&\",\",data[],1),VLOOKUP(\"OPEX-O,\"&Q$2&\",,\"&$B812&\",\",data[],7),Q$746)","v":0},null,{"$f":"IF(\"OPEX-O,\"&S$2&\",,\"&$B812&\",\"=VLOOKUP(\"OPEX-O,\"&S$2&\",,\"&$B812&\",\",data[],1),VLOOKUP(\"OPEX-O,\"&S$2&\",,\"&$B812&\",\",data[],7),S$746)","v":0},null,null,null,null,{"$f":"IF(\"OPEX-O,\"&X$2&\",,\"&$B812&\",\"=VLOOKUP(\"OPEX-O,\"&X$2&\",,\"&$B812&\",\",data[],1),VLOOKUP(\"OPEX-O,\"&X$2&\",,\"&$B812&\",\",data[],7),X$746)","v":0},null,{"$f":"IF(\"OPEX-O,\"&Z$2&\",,\"&$B812&\",\"=VLOOKUP(\"OPEX-O,\"&Z$2&\",,\"&$B812&\",\",data[],1),VLOOKUP(\"OPEX-O,\"&Z$2&\",,\"&$B812&\",\",data[],7),Z$746)","v":0},null,null,null,{"$f":"IF(\"OPEX-O,\"&AD$2&\",,\"&$B812&\",\"=VLOOKUP(\"OPEX-O,\"&AD$2&\",,\"&$B812&\",\",data[],1),VLOOKUP(\"OPEX-O,\"&AD$2&\",,\"&$B812&\",\",data[],7),AD$746)","v":0},null,null,null,null,null,null,{"$f":"IF(\"OPEX-O,\"&AK$2&\",,\"&$B812&\",\"=VLOOKUP(\"OPEX-O,\"&AK$2&\",,\"&$B812&\",\",data[],1),VLOOKUP(\"OPEX-O,\"&AK$2&\",,\"&$B812&\",\",data[],7),AK$746)","v":0},null,{"$f":"IF(\"OPEX-O,\"&AM$2&\",,\"&$B812&\",\"=VLOOKUP(\"OPEX-O,\"&AM$2&\",,\"&$B812&\",\",data[],1),VLOOKUP(\"OPEX-O,\"&AM$2&\",,\"&$B812&\",\",data[],7),AM$746)","v":0},null,null,null,null,null,null,null,{"$f":"IF(\"OPEX-O,\"&AU$2&\",,\"&$B812&\",\"=VLOOKUP(\"OPEX-O,\"&AU$2&\",,\"&$B812&\",\",data[],1),VLOOKUP(\"OPEX-O,\"&AU$2&\",,\"&$B812&\",\",data[],7),AU$746)","v":1.9557894682818507E-3},null,{"$f":"IF(\"OPEX-O,\"&AW$2&\",,\"&$B812&\",\"=VLOOKUP(\"OPEX-O,\"&AW$2&\",,\"&$B812&\",\",data[],1),VLOOKUP(\"OPEX-O,\"&AW$2&\",,\"&$B812&\",\",data[],7),AW$746)","v":0},{"$f":"IF(\"OPEX-O,\"&AX$2&\",,\"&$B812&\",\"=VLOOKUP(\"OPEX-O,\"&AX$2&\",,\"&$B812&\",\",data[],1),VLOOKUP(\"OPEX-O,\"&AX$2&\",,\"&$B812&\",\",data[],7),AX$746)","v":0},{"$f":"IF(\"OPEX-O,\"&AY$2&\",,\"&$B812&\",\"=VLOOKUP(\"OPEX-O,\"&AY$2&\",,\"&$B812&\",\",data[],1),VLOOKUP(\"OPEX-O,\"&AY$2&\",,\"&$B812&\",\",data[],7),AY$746)","v":0},{"$f":"IF(\"OPEX-O,\"&AZ$2&\",,\"&$B812&\",\"=VLOOKUP(\"OPEX-O,\"&AZ$2&\",,\"&$B812&\",\",data[],1),VLOOKUP(\"OPEX-O,\"&AZ$2&\",,\"&$B812&\",\",data[],7),AZ$746)","v":0},null,{"$f":"IF(\"OPEX-O,\"&BB$2&\",,\"&$B812&\",\"=VLOOKUP(\"OPEX-O,\"&BB$2&\",,\"&$B812&\",\",data[],1),VLOOKUP(\"OPEX-O,\"&BB$2&\",,\"&$B812&\",\",data[],7),BB$746)","v":0},null,null,{"$f":"IF(\"OPEX-O,\"&BE$2&\",,\"&$B812&\",\"=VLOOKUP(\"OPEX-O,\"&BE$2&\",,\"&$B812&\",\",data[],1),VLOOKUP(\"OPEX-O,\"&BE$2&\",,\"&$B812&\",\",data[],7),BE$746)","v":0}]
[null,"URY",null,null,null,null,null,null,null,null,{"$f":"IF(\"OPEX-o,\"&$K80&\",,\"&$B813&\",\"=VLOOKUP(\"OPEX-o,\"&$K80&\",,\"&$B813&\",\",data[],1),VLOOKUP(\"OPEX-o,\"&$K80&\",,\"&$B813&\",\",data[],7),INDEX($E$746:$I$746,$J80))","v":0},null,null,null,null,null,{"$f":"IF(\"OPEX-O,\"&Q$2&\",,\"&$B813&\",\"=VLOOKUP(\"OPEX-O,\"&Q$2&\",,\"&$B813&\",\",data[],1),VLOOKUP(\"OPEX-O,\"&Q$2&\",,\"&$B813&\",\",data[],7),Q$746)","v":0},null,{"$f":"IF(\"OPEX-O,\"&S$2&\",,\"&$B813&\",\"=VLOOKUP(\"OPEX-O,\"&S$2&\",,\"&$B813&\",\",data[],1),VLOOKUP(\"OPEX-O,\"&S$2&\",,\"&$B813&\",\",data[],7),S$746)","v":0},null,null,null,null,{"$f":"IF(\"OPEX-O,\"&X$2&\",,\"&$B813&\",\"=VLOOKUP(\"OPEX-O,\"&X$2&\",,\"&$B813&\",\",data[],1),VLOOKUP(\"OPEX-O,\"&X$2&\",,\"&$B813&\",\",data[],7),X$746)","v":0},null,{"$f":"IF(\"OPEX-O,\"&Z$2&\",,\"&$B813&\",\"=VLOOKUP(\"OPEX-O,\"&Z$2&\",,\"&$B813&\",\",data[],1),VLOOKUP(\"OPEX-O,\"&Z$2&\",,\"&$B813&\",\",data[],7),Z$746)","v":0},null,null,null,{"$f":"IF(\"OPEX-O,\"&AD$2&\",,\"&$B813&\",\"=VLOOKUP(\"OPEX-O,\"&AD$2&\",,\"&$B813&\",\",data[],1),VLOOKUP(\"OPEX-O,\"&AD$2&\",,\"&$B813&\",\",data[],7),AD$746)","v":0},null,null,null,null,null,null,{"$f":"IF(\"OPEX-O,\"&AK$2&\",,\"&$B813&\",\"=VLOOKUP(\"OPEX-O,\"&AK$2&\",,\"&$B813&\",\",data[],1),VLOOKUP(\"OPEX-O,\"&AK$2&\",,\"&$B813&\",\",data[],7),AK$746)","v":0},null,{"$f":"IF(\"OPEX-O,\"&AM$2&\",,\"&$B813&\",\"=VLOOKUP(\"OPEX-O,\"&AM$2&\",,\"&$B813&\",\",data[],1),VLOOKUP(\"OPEX-O,\"&AM$2&\",,\"&$B813&\",\",data[],7),AM$746)","v":0},null,null,null,null,null,null,null,{"$f":"IF(\"OPEX-O,\"&AU$2&\",,\"&$B813&\",\"=VLOOKUP(\"OPEX-O,\"&AU$2&\",,\"&$B813&\",\",data[],1),VLOOKUP(\"OPEX-O,\"&AU$2&\",,\"&$B813&\",\",data[],7),AU$746)","v":1.9557894682818507E-3},null,{"$f":"IF(\"OPEX-O,\"&AW$2&\",,\"&$B813&\",\"=VLOOKUP(\"OPEX-O,\"&AW$2&\",,\"&$B813&\",\",data[],1),VLOOKUP(\"OPEX-O,\"&AW$2&\",,\"&$B813&\",\",data[],7),AW$746)","v":0},{"$f":"IF(\"OPEX-O,\"&AX$2&\",,\"&$B813&\",\"=VLOOKUP(\"OPEX-O,\"&AX$2&\",,\"&$B813&\",\",data[],1),VLOOKUP(\"OPEX-O,\"&AX$2&\",,\"&$B813&\",\",data[],7),AX$746)","v":0},{"$f":"IF(\"OPEX-O,\"&AY$2&\",,\"&$B813&\",\"=VLOOKUP(\"OPEX-O,\"&AY$2&\",,\"&$B813&\",\",data[],1),VLOOKUP(\"OPEX-O,\"&AY$2&\",,\"&$B813&\",\",data[],7),AY$746)","v":0},{"$f":"IF(\"OPEX-O,\"&AZ$2&\",,\"&$B813&\",\"=VLOOKUP(\"OPEX-O,\"&AZ$2&\",,\"&$B813&\",\",data[],1),VLOOKUP(\"OPEX-O,\"&AZ$2&\",,\"&$B813&\",\",data[],7),AZ$746)","v":0},null,{"$f":"IF(\"OPEX-O,\"&BB$2&\",,\"&$B813&\",\"=VLOOKUP(\"OPEX-O,\"&BB$2&\",,\"&$B813&\",\",data[],1),VLOOKUP(\"OPEX-O,\"&BB$2&\",,\"&$B813&\",\",data[],7),BB$746)","v":0},null,null,{"$f":"IF(\"OPEX-O,\"&BE$2&\",,\"&$B813&\",\"=VLOOKUP(\"OPEX-O,\"&BE$2&\",,\"&$B813&\",\",data[],1),VLOOKUP(\"OPEX-O,\"&BE$2&\",,\"&$B813&\",\",data[],7),BE$746)","v":0}]
[null,"USA",null,null,null,null,null,null,null,null,{"$f":"IF(\"OPEX-o,\"&$K81&\",,\"&$B814&\",\"=VLOOKUP(\"OPEX-o,\"&$K81&\",,\"&$B814&\",\",data[],1),VLOOKUP(\"OPEX-o,\"&$K81&\",,\"&$B814&\",\",data[],7),INDEX($E$746:$I$746,$J81))","v":0},null,null,null,null,null,{"$f":"IF(\"OPEX-O,\"&Q$2&\",,\"&$B814&\",\"=VLOOKUP(\"OPEX-O,\"&Q$2&\",,\"&$B814&\",\",data[],1),VLOOKUP(\"OPEX-O,\"&Q$2&\",,\"&$B814&\",\",data[],7),Q$746)","v":0},null,{"$f":"IF(\"OPEX-O,\"&S$2&\",,\"&$B814&\",\"=VLOOKUP(\"OPEX-O,\"&S$2&\",,\"&$B814&\",\",data[],1),VLOOKUP(\"OPEX-O,\"&S$2&\",,\"&$B814&\",\",data[],7),S$746)","v":0},null,null,null,null,{"$f":"IF(\"OPEX-O,\"&X$2&\",,\"&$B814&\",\"=VLOOKUP(\"OPEX-O,\"&X$2&\",,\"&$B814&\",\",data[],1),VLOOKUP(\"OPEX-O,\"&X$2&\",,\"&$B814&\",\",data[],7),X$746)","v":0},null,{"$f":"IF(\"OPEX-O,\"&Z$2&\",,\"&$B814&\",\"=VLOOKUP(\"OPEX-O,\"&Z$2&\",,\"&$B814&\",\",data[],1),VLOOKUP(\"OPEX-O,\"&Z$2&\",,\"&$B814&\",\",data[],7),Z$746)","v":0},null,null,null,{"$f":"IF(\"OPEX-O,\"&AD$2&\",,\"&$B814&\",\"=VLOOKUP(\"OPEX-O,\"&AD$2&\",,\"&$B814&\",\",data[],1),VLOOKUP(\"OPEX-O,\"&AD$2&\",,\"&$B814&\",\",data[],7),AD$746)","v":0},null,null,null,null,null,null,{"$f":"IF(\"OPEX-O,\"&AK$2&\",,\"&$B814&\",\"=VLOOKUP(\"OPEX-O,\"&AK$2&\",,\"&$B814&\",\",data[],1),VLOOKUP(\"OPEX-O,\"&AK$2&\",,\"&$B814&\",\",data[],7),AK$746)","v":0},null,{"$f":"IF(\"OPEX-O,\"&AM$2&\",,\"&$B814&\",\"=VLOOKUP(\"OPEX-O,\"&AM$2&\",,\"&$B814&\",\",data[],1),VLOOKUP(\"OPEX-O,\"&AM$2&\",,\"&$B814&\",\",data[],7),AM$746)","v":0},null,null,null,null,null,null,null,{"$f":"IF(\"OPEX-O,\"&AU$2&\",,\"&$B814&\",\"=VLOOKUP(\"OPEX-O,\"&AU$2&\",,\"&$B814&\",\",data[],1),VLOOKUP(\"OPEX-O,\"&AU$2&\",,\"&$B814&\",\",data[],7),AU$746)","v":1.9557894682818507E-3},null,{"$f":"IF(\"OPEX-O,\"&AW$2&\",,\"&$B814&\",\"=VLOOKUP(\"OPEX-O,\"&AW$2&\",,\"&$B814&\",\",data[],1),VLOOKUP(\"OPEX-O,\"&AW$2&\",,\"&$B814&\",\",data[],7),AW$746)","v":0},{"$f":"IF(\"OPEX-O,\"&AX$2&\",,\"&$B814&\",\"=VLOOKUP(\"OPEX-O,\"&AX$2&\",,\"&$B814&\",\",data[],1),VLOOKUP(\"OPEX-O,\"&AX$2&\",,\"&$B814&\",\",data[],7),AX$746)","v":0},{"$f":"IF(\"OPEX-O,\"&AY$2&\",,\"&$B814&\",\"=VLOOKUP(\"OPEX-O,\"&AY$2&\",,\"&$B814&\",\",data[],1),VLOOKUP(\"OPEX-O,\"&AY$2&\",,\"&$B814&\",\",data[],7),AY$746)","v":0},{"$f":"IF(\"OPEX-O,\"&AZ$2&\",,\"&$B814&\",\"=VLOOKUP(\"OPEX-O,\"&AZ$2&\",,\"&$B814&\",\",data[],1),VLOOKUP(\"OPEX-O,\"&AZ$2&\",,\"&$B814&\",\",data[],7),AZ$746)","v":0},null,{"$f":"IF(\"OPEX-O,\"&BB$2&\",,\"&$B814&\",\"=VLOOKUP(\"OPEX-O,\"&BB$2&\",,\"&$B814&\",\",data[],1),VLOOKUP(\"OPEX-O,\"&BB$2&\",,\"&$B814&\",\",data[],7),BB$746)","v":0},null,null,{"$f":"IF(\"OPEX-O,\"&BE$2&\",,\"&$B814&\",\"=VLOOKUP(\"OPEX-O,\"&BE$2&\",,\"&$B814&\",\",data[],1),VLOOKUP(\"OPEX-O,\"&BE$2&\",,\"&$B814&\",\",data[],7),BE$746)","v":0}]
[null,"VNM",null,null,null,null,null,null,null,null,{"$f":"IF(\"OPEX-o,\"&$K82&\",,\"&$B815&\",\"=VLOOKUP(\"OPEX-o,\"&$K82&\",,\"&$B815&\",\",data[],1),VLOOKUP(\"OPEX-o,\"&$K82&\",,\"&$B815&\",\",data[],7),INDEX($E$746:$I$746,$J82))","v":0},null,null,null,null,null,{"$f":"IF(\"OPEX-O,\"&Q$2&\",,\"&$B815&\",\"=VLOOKUP(\"OPEX-O,\"&Q$2&\",,\"&$B815&\",\",data[],1),VLOOKUP(\"OPEX-O,\"&Q$2&\",,\"&$B815&\",\",data[],7),Q$746)","v":0},null,{"$f":"IF(\"OPEX-O,\"&S$2&\",,\"&$B815&\",\"=VLOOKUP(\"OPEX-O,\"&S$2&\",,\"&$B815&\",\",data[],1),VLOOKUP(\"OPEX-O,\"&S$2&\",,\"&$B815&\",\",data[],7),S$746)","v":0},null,null,null,null,{"$f":"IF(\"OPEX-O,\"&X$2&\",,\"&$B815&\",\"=VLOOKUP(\"OPEX-O,\"&X$2&\",,\"&$B815&\",\",data[],1),VLOOKUP(\"OPEX-O,\"&X$2&\",,\"&$B815&\",\",data[],7),X$746)","v":0},null,{"$f":"IF(\"OPEX-O,\"&Z$2&\",,\"&$B815&\",\"=VLOOKUP(\"OPEX-O,\"&Z$2&\",,\"&$B815&\",\",data[],1),VLOOKUP(\"OPEX-O,\"&Z$2&\",,\"&$B815&\",\",data[],7),Z$746)","v":0},null,null,null,{"$f":"IF(\"OPEX-O,\"&AD$2&\",,\"&$B815&\",\"=VLOOKUP(\"OPEX-O,\"&AD$2&\",,\"&$B815&\",\",data[],1),VLOOKUP(\"OPEX-O,\"&AD$2&\",,\"&$B815&\",\",data[],7),AD$746)","v":0},null,null,null,null,null,null,{"$f":"IF(\"OPEX-O,\"&AK$2&\",,\"&$B815&\",\"=VLOOKUP(\"OPEX-O,\"&AK$2&\",,\"&$B815&\",\",data[],1),VLOOKUP(\"OPEX-O,\"&AK$2&\",,\"&$B815&\",\",data[],7),AK$746)","v":0},null,{"$f":"IF(\"OPEX-O,\"&AM$2&\",,\"&$B815&\",\"=VLOOKUP(\"OPEX-O,\"&AM$2&\",,\"&$B815&\",\",data[],1),VLOOKUP(\"OPEX-O,\"&AM$2&\",,\"&$B815&\",\",data[],7),AM$746)","v":0},null,null,null,null,null,null,null,{"$f":"IF(\"OPEX-O,\"&AU$2&\",,\"&$B815&\",\"=VLOOKUP(\"OPEX-O,\"&AU$2&\",,\"&$B815&\",\",data[],1),VLOOKUP(\"OPEX-O,\"&AU$2&\",,\"&$B815&\",\",data[],7),AU$746)","v":1.9557894682818507E-3},null,{"$f":"IF(\"OPEX-O,\"&AW$2&\",,\"&$B815&\",\"=VLOOKUP(\"OPEX-O,\"&AW$2&\",,\"&$B815&\",\",data[],1),VLOOKUP(\"OPEX-O,\"&AW$2&\",,\"&$B815&\",\",data[],7),AW$746)","v":0},{"$f":"IF(\"OPEX-O,\"&AX$2&\",,\"&$B815&\",\"=VLOOKUP(\"OPEX-O,\"&AX$2&\",,\"&$B815&\",\",data[],1),VLOOKUP(\"OPEX-O,\"&AX$2&\",,\"&$B815&\",\",data[],7),AX$746)","v":0},{"$f":"IF(\"OPEX-O,\"&AY$2&\",,\"&$B815&\",\"=VLOOKUP(\"OPEX-O,\"&AY$2&\",,\"&$B815&\",\",data[],1),VLOOKUP(\"OPEX-O,\"&AY$2&\",,\"&$B815&\",\",data[],7),AY$746)","v":0},{"$f":"IF(\"OPEX-O,\"&AZ$2&\",,\"&$B815&\",\"=VLOOKUP(\"OPEX-O,\"&AZ$2&\",,\"&$B815&\",\",data[],1),VLOOKUP(\"OPEX-O,\"&AZ$2&\",,\"&$B815&\",\",data[],7),AZ$746)","v":0},null,{"$f":"IF(\"OPEX-O,\"&BB$2&\",,\"&$B815&\",\"=VLOOKUP(\"OPEX-O,\"&BB$2&\",,\"&$B815&\",\",data[],1),VLOOKUP(\"OPEX-O,\"&BB$2&\",,\"&$B815&\",\",data[],7),BB$746)","v":0},null,null,{"$f":"IF(\"OPEX-O,\"&BE$2&\",,\"&$B815&\",\"=VLOOKUP(\"OPEX-O,\"&BE$2&\",,\"&$B815&\",\",data[],1),VLOOKUP(\"OPEX-O,\"&BE$2&\",,\"&$B815&\",\",data[],7),BE$746)","v":0}]
[null,"ZAF",null,null,null,null,null,null,null,null,{"$f":"IF(\"OPEX-o,\"&$K83&\",,\"&$B816&\",\"=VLOOKUP(\"OPEX-o,\"&$K83&\",,\"&$B816&\",\",data[],1),VLOOKUP(\"OPEX-o,\"&$K83&\",,\"&$B816&\",\",data[],7),INDEX($E$746:$I$746,$J83))","v":0},null,null,null,null,null,{"$f":"IF(\"OPEX-O,\"&Q$2&\",,\"&$B816&\",\"=VLOOKUP(\"OPEX-O,\"&Q$2&\",,\"&$B816&\",\",data[],1),VLOOKUP(\"OPEX-O,\"&Q$2&\",,\"&$B816&\",\",data[],7),Q$746)","v":0},null,{"$f":"IF(\"OPEX-O,\"&S$2&\",,\"&$B816&\",\"=VLOOKUP(\"OPEX-O,\"&S$2&\",,\"&$B816&\",\",data[],1),VLOOKUP(\"OPEX-O,\"&S$2&\",,\"&$B816&\",\",data[],7),S$746)","v":0},null,null,null,null,{"$f":"IF(\"OPEX-O,\"&X$2&\",,\"&$B816&\",\"=VLOOKUP(\"OPEX-O,\"&X$2&\",,\"&$B816&\",\",data[],1),VLOOKUP(\"OPEX-O,\"&X$2&\",,\"&$B816&\",\",data[],7),X$746)","v":0},null,{"$f":"IF(\"OPEX-O,\"&Z$2&\",,\"&$B816&\",\"=VLOOKUP(\"OPEX-O,\"&Z$2&\",,\"&$B816&\",\",data[],1),VLOOKUP(\"OPEX-O,\"&Z$2&\",,\"&$B816&\",\",data[],7),Z$746)","v":0},null,null,null,{"$f":"IF(\"OPEX-O,\"&AD$2&\",,\"&$B816&\",\"=VLOOKUP(\"OPEX-O,\"&AD$2&\",,\"&$B816&\",\",data[],1),VLOOKUP(\"OPEX-O,\"&AD$2&\",,\"&$B816&\",\",data[],7),AD$746)","v":0},null,null,null,null,null,null,{"$f":"IF(\"OPEX-O,\"&AK$2&\",,\"&$B816&\",\"=VLOOKUP(\"OPEX-O,\"&AK$2&\",,\"&$B816&\",\",data[],1),VLOOKUP(\"OPEX-O,\"&AK$2&\",,\"&$B816&\",\",data[],7),AK$746)","v":0},null,{"$f":"IF(\"OPEX-O,\"&AM$2&\",,\"&$B816&\",\"=VLOOKUP(\"OPEX-O,\"&AM$2&\",,\"&$B816&\",\",data[],1),VLOOKUP(\"OPEX-O,\"&AM$2&\",,\"&$B816&\",\",data[],7),AM$746)","v":0},null,null,null,null,null,null,null,{"$f":"IF(\"OPEX-O,\"&AU$2&\",,\"&$B816&\",\"=VLOOKUP(\"OPEX-O,\"&AU$2&\",,\"&$B816&\",\",data[],1),VLOOKUP(\"OPEX-O,\"&AU$2&\",,\"&$B816&\",\",data[],7),AU$746)","v":1.9557894682818507E-3},null,{"$f":"IF(\"OPEX-O,\"&AW$2&\",,\"&$B816&\",\"=VLOOKUP(\"OPEX-O,\"&AW$2&\",,\"&$B816&\",\",data[],1),VLOOKUP(\"OPEX-O,\"&AW$2&\",,\"&$B816&\",\",data[],7),AW$746)","v":0},{"$f":"IF(\"OPEX-O,\"&AX$2&\",,\"&$B816&\",\"=VLOOKUP(\"OPEX-O,\"&AX$2&\",,\"&$B816&\",\",data[],1),VLOOKUP(\"OPEX-O,\"&AX$2&\",,\"&$B816&\",\",data[],7),AX$746)","v":0},{"$f":"IF(\"OPEX-O,\"&AY$2&\",,\"&$B816&\",\"=VLOOKUP(\"OPEX-O,\"&AY$2&\",,\"&$B816&\",\",data[],1),VLOOKUP(\"OPEX-O,\"&AY$2&\",,\"&$B816&\",\",data[],7),AY$746)","v":0},{"$f":"IF(\"OPEX-O,\"&AZ$2&\",,\"&$B816&\",\"=VLOOKUP(\"OPEX-O,\"&AZ$2&\",,\"&$B816&\",\",data[],1),VLOOKUP(\"OPEX-O,\"&AZ$2&\",,\"&$B816&\",\",data[],7),AZ$746)","v":0},null,{"$f":"IF(\"OPEX-O,\"&BB$2&\",,\"&$B816&\",\"=VLOOKUP(\"OPEX-O,\"&BB$2&\",,\"&$B816&\",\",data[],1),VLOOKUP(\"OPEX-O,\"&BB$2&\",,\"&$B816&\",\",data[],7),BB$746)","v":0},null,null,{"$f":"IF(\"OPEX-O,\"&BE$2&\",,\"&$B816&\",\"=VLOOKUP(\"OPEX-O,\"&BE$2&\",,\"&$B816&\",\",data[],1),VLOOKUP(\"OPEX-O,\"&BE$2&\",,\"&$B816&\",\",data[],7),BE$746)","v":0}]
[null,"ZAF-EC",null,null,null,null,null,null,null,null,{"$f":"IF(\"OPEX-o,\"&$K84&\",,\"&$B817&\",\"=VLOOKUP(\"OPEX-o,\"&$K84&\",,\"&$B817&\",\",data[],1),VLOOKUP(\"OPEX-o,\"&$K84&\",,\"&$B817&\",\",data[],7),INDEX($E$746:$I$746,$J84))","v":0},null,null,null,null,null,{"$f":"IF(\"OPEX-O,\"&Q$2&\",,\"&$B817&\",\"=VLOOKUP(\"OPEX-O,\"&Q$2&\",,\"&$B817&\",\",data[],1),VLOOKUP(\"OPEX-O,\"&Q$2&\",,\"&$B817&\",\",data[],7),Q$746)","v":0},null,{"$f":"IF(\"OPEX-O,\"&S$2&\",,\"&$B817&\",\"=VLOOKUP(\"OPEX-O,\"&S$2&\",,\"&$B817&\",\",data[],1),VLOOKUP(\"OPEX-O,\"&S$2&\",,\"&$B817&\",\",data[],7),S$746)","v":0},null,null,null,null,{"$f":"IF(\"OPEX-O,\"&X$2&\",,\"&$B817&\",\"=VLOOKUP(\"OPEX-O,\"&X$2&\",,\"&$B817&\",\",data[],1),VLOOKUP(\"OPEX-O,\"&X$2&\",,\"&$B817&\",\",data[],7),X$746)","v":0},null,{"$f":"IF(\"OPEX-O,\"&Z$2&\",,\"&$B817&\",\"=VLOOKUP(\"OPEX-O,\"&Z$2&\",,\"&$B817&\",\",data[],1),VLOOKUP(\"OPEX-O,\"&Z$2&\",,\"&$B817&\",\",data[],7),Z$746)","v":0},null,null,null,{"$f":"IF(\"OPEX-O,\"&AD$2&\",,\"&$B817&\",\"=VLOOKUP(\"OPEX-O,\"&AD$2&\",,\"&$B817&\",\",data[],1),VLOOKUP(\"OPEX-O,\"&AD$2&\",,\"&$B817&\",\",data[],7),AD$746)","v":0},null,null,null,null,null,null,{"$f":"IF(\"OPEX-O,\"&AK$2&\",,\"&$B817&\",\"=VLOOKUP(\"OPEX-O,\"&AK$2&\",,\"&$B817&\",\",data[],1),VLOOKUP(\"OPEX-O,\"&AK$2&\",,\"&$B817&\",\",data[],7),AK$746)","v":0},null,{"$f":"IF(\"OPEX-O,\"&AM$2&\",,\"&$B817&\",\"=VLOOKUP(\"OPEX-O,\"&AM$2&\",,\"&$B817&\",\",data[],1),VLOOKUP(\"OPEX-O,\"&AM$2&\",,\"&$B817&\",\",data[],7),AM$746)","v":0},null,null,null,null,null,null,null,{"$f":"IF(\"OPEX-O,\"&AU$2&\",,\"&$B817&\",\"=VLOOKUP(\"OPEX-O,\"&AU$2&\",,\"&$B817&\",\",data[],1),VLOOKUP(\"OPEX-O,\"&AU$2&\",,\"&$B817&\",\",data[],7),AU$746)","v":1.9557894682818507E-3},null,{"$f":"IF(\"OPEX-O,\"&AW$2&\",,\"&$B817&\",\"=VLOOKUP(\"OPEX-O,\"&AW$2&\",,\"&$B817&\",\",data[],1),VLOOKUP(\"OPEX-O,\"&AW$2&\",,\"&$B817&\",\",data[],7),AW$746)","v":0},{"$f":"IF(\"OPEX-O,\"&AX$2&\",,\"&$B817&\",\"=VLOOKUP(\"OPEX-O,\"&AX$2&\",,\"&$B817&\",\",data[],1),VLOOKUP(\"OPEX-O,\"&AX$2&\",,\"&$B817&\",\",data[],7),AX$746)","v":0},{"$f":"IF(\"OPEX-O,\"&AY$2&\",,\"&$B817&\",\"=VLOOKUP(\"OPEX-O,\"&AY$2&\",,\"&$B817&\",\",data[],1),VLOOKUP(\"OPEX-O,\"&AY$2&\",,\"&$B817&\",\",data[],7),AY$746)","v":0},{"$f":"IF(\"OPEX-O,\"&AZ$2&\",,\"&$B817&\",\"=VLOOKUP(\"OPEX-O,\"&AZ$2&\",,\"&$B817&\",\",data[],1),VLOOKUP(\"OPEX-O,\"&AZ$2&\",,\"&$B817&\",\",data[],7),AZ$746)","v":0},null,{"$f":"IF(\"OPEX-O,\"&BB$2&\",,\"&$B817&\",\"=VLOOKUP(\"OPEX-O,\"&BB$2&\",,\"&$B817&\",\",data[],1),VLOOKUP(\"OPEX-O,\"&BB$2&\",,\"&$B817&\",\",data[],7),BB$746)","v":0},null,null,{"$f":"IF(\"OPEX-O,\"&BE$2&\",,\"&$B817&\",\"=VLOOKUP(\"OPEX-O,\"&BE$2&\",,\"&$B817&\",\",data[],1),VLOOKUP(\"OPEX-O,\"&BE$2&\",,\"&$B817&\",\",data[],7),BE$746)","v":0}]
[null,"ZAF-FRS",null,null,null,null,null,null,null,null,{"$f":"IF(\"OPEX-o,\"&$K85&\",,\"&$B818&\",\"=VLOOKUP(\"OPEX-o,\"&$K85&\",,\"&$B818&\",\",data[],1),VLOOKUP(\"OPEX-o,\"&$K85&\",,\"&$B818&\",\",data[],7),INDEX($E$746:$I$746,$J85))","v":0},null,null,null,null,null,{"$f":"IF(\"OPEX-O,\"&Q$2&\",,\"&$B818&\",\"=VLOOKUP(\"OPEX-O,\"&Q$2&\",,\"&$B818&\",\",data[],1),VLOOKUP(\"OPEX-O,\"&Q$2&\",,\"&$B818&\",\",data[],7),Q$746)","v":0},null,{"$f":"IF(\"OPEX-O,\"&S$2&\",,\"&$B818&\",\"=VLOOKUP(\"OPEX-O,\"&S$2&\",,\"&$B818&\",\",data[],1),VLOOKUP(\"OPEX-O,\"&S$2&\",,\"&$B818&\",\",data[],7),S$746)","v":0},null,null,null,null,{"$f":"IF(\"OPEX-O,\"&X$2&\",,\"&$B818&\",\"=VLOOKUP(\"OPEX-O,\"&X$2&\",,\"&$B818&\",\",data[],1),VLOOKUP(\"OPEX-O,\"&X$2&\",,\"&$B818&\",\",data[],7),X$746)","v":0},null,{"$f":"IF(\"OPEX-O,\"&Z$2&\",,\"&$B818&\",\"=VLOOKUP(\"OPEX-O,\"&Z$2&\",,\"&$B818&\",\",data[],1),VLOOKUP(\"OPEX-O,\"&Z$2&\",,\"&$B818&\",\",data[],7),Z$746)","v":0},null,null,null,{"$f":"IF(\"OPEX-O,\"&AD$2&\",,\"&$B818&\",\"=VLOOKUP(\"OPEX-O,\"&AD$2&\",,\"&$B818&\",\",data[],1),VLOOKUP(\"OPEX-O,\"&AD$2&\",,\"&$B818&\",\",data[],7),AD$746)","v":0},null,null,null,null,null,null,{"$f":"IF(\"OPEX-O,\"&AK$2&\",,\"&$B818&\",\"=VLOOKUP(\"OPEX-O,\"&AK$2&\",,\"&$B818&\",\",data[],1),VLOOKUP(\"OPEX-O,\"&AK$2&\",,\"&$B818&\",\",data[],7),AK$746)","v":0},null,{"$f":"IF(\"OPEX-O,\"&AM$2&\",,\"&$B818&\",\"=VLOOKUP(\"OPEX-O,\"&AM$2&\",,\"&$B818&\",\",data[],1),VLOOKUP(\"OPEX-O,\"&AM$2&\",,\"&$B818&\",\",data[],7),AM$746)","v":0},null,null,null,null,null,null,null,{"$f":"IF(\"OPEX-O,\"&AU$2&\",,\"&$B818&\",\"=VLOOKUP(\"OPEX-O,\"&AU$2&\",,\"&$B818&\",\",data[],1),VLOOKUP(\"OPEX-O,\"&AU$2&\",,\"&$B818&\",\",data[],7),AU$746)","v":1.9557894682818507E-3},null,{"$f":"IF(\"OPEX-O,\"&AW$2&\",,\"&$B818&\",\"=VLOOKUP(\"OPEX-O,\"&AW$2&\",,\"&$B818&\",\",data[],1),VLOOKUP(\"OPEX-O,\"&AW$2&\",,\"&$B818&\",\",data[],7),AW$746)","v":0},{"$f":"IF(\"OPEX-O,\"&AX$2&\",,\"&$B818&\",\"=VLOOKUP(\"OPEX-O,\"&AX$2&\",,\"&$B818&\",\",data[],1),VLOOKUP(\"OPEX-O,\"&AX$2&\",,\"&$B818&\",\",data[],7),AX$746)","v":0},{"$f":"IF(\"OPEX-O,\"&AY$2&\",,\"&$B818&\",\"=VLOOKUP(\"OPEX-O,\"&AY$2&\",,\"&$B818&\",\",data[],1),VLOOKUP(\"OPEX-O,\"&AY$2&\",,\"&$B818&\",\",data[],7),AY$746)","v":0},{"$f":"IF(\"OPEX-O,\"&AZ$2&\",,\"&$B818&\",\"=VLOOKUP(\"OPEX-O,\"&AZ$2&\",,\"&$B818&\",\",data[],1),VLOOKUP(\"OPEX-O,\"&AZ$2&\",,\"&$B818&\",\",data[],7),AZ$746)","v":0},null,{"$f":"IF(\"OPEX-O,\"&BB$2&\",,\"&$B818&\",\"=VLOOKUP(\"OPEX-O,\"&BB$2&\",,\"&$B818&\",\",data[],1),VLOOKUP(\"OPEX-O,\"&BB$2&\",,\"&$B818&\",\",data[],7),BB$746)","v":0},null,null,{"$f":"IF(\"OPEX-O,\"&BE$2&\",,\"&$B818&\",\"=VLOOKUP(\"OPEX-O,\"&BE$2&\",,\"&$B818&\",\",data[],1),VLOOKUP(\"OPEX-O,\"&BE$2&\",,\"&$B818&\",\",data[],7),BE$746)","v":0}]
[null,"ZAF-GAU",null,null,null,null,null,null,null,null,{"$f":"IF(\"OPEX-o,\"&$K86&\",,\"&$B819&\",\"=VLOOKUP(\"OPEX-o,\"&$K86&\",,\"&$B819&\",\",data[],1),VLOOKUP(\"OPEX-o,\"&$K86&\",,\"&$B819&\",\",data[],7),INDEX($E$746:$I$746,$J86))","v":0},null,null,null,null,null,{"$f":"IF(\"OPEX-O,\"&Q$2&\",,\"&$B819&\",\"=VLOOKUP(\"OPEX-O,\"&Q$2&\",,\"&$B819&\",\",data[],1),VLOOKUP(\"OPEX-O,\"&Q$2&\",,\"&$B819&\",\",data[],7),Q$746)","v":0},null,{"$f":"IF(\"OPEX-O,\"&S$2&\",,\"&$B819&\",\"=VLOOKUP(\"OPEX-O,\"&S$2&\",,\"&$B819&\",\",data[],1),VLOOKUP(\"OPEX-O,\"&S$2&\",,\"&$B819&\",\",data[],7),S$746)","v":0},null,null,null,null,{"$f":"IF(\"OPEX-O,\"&X$2&\",,\"&$B819&\",\"=VLOOKUP(\"OPEX-O,\"&X$2&\",,\"&$B819&\",\",data[],1),VLOOKUP(\"OPEX-O,\"&X$2&\",,\"&$B819&\",\",data[],7),X$746)","v":0},null,{"$f":"IF(\"OPEX-O,\"&Z$2&\",,\"&$B819&\",\"=VLOOKUP(\"OPEX-O,\"&Z$2&\",,\"&$B819&\",\",data[],1),VLOOKUP(\"OPEX-O,\"&Z$2&\",,\"&$B819&\",\",data[],7),Z$746)","v":0},null,null,null,{"$f":"IF(\"OPEX-O,\"&AD$2&\",,\"&$B819&\",\"=VLOOKUP(\"OPEX-O,\"&AD$2&\",,\"&$B819&\",\",data[],1),VLOOKUP(\"OPEX-O,\"&AD$2&\",,\"&$B819&\",\",data[],7),AD$746)","v":0},null,null,null,null,null,null,{"$f":"IF(\"OPEX-O,\"&AK$2&\",,\"&$B819&\",\"=VLOOKUP(\"OPEX-O,\"&AK$2&\",,\"&$B819&\",\",data[],1),VLOOKUP(\"OPEX-O,\"&AK$2&\",,\"&$B819&\",\",data[],7),AK$746)","v":0},null,{"$f":"IF(\"OPEX-O,\"&AM$2&\",,\"&$B819&\",\"=VLOOKUP(\"OPEX-O,\"&AM$2&\",,\"&$B819&\",\",data[],1),VLOOKUP(\"OPEX-O,\"&AM$2&\",,\"&$B819&\",\",data[],7),AM$746)","v":0},null,null,null,null,null,null,null,{"$f":"IF(\"OPEX-O,\"&AU$2&\",,\"&$B819&\",\"=VLOOKUP(\"OPEX-O,\"&AU$2&\",,\"&$B819&\",\",data[],1),VLOOKUP(\"OPEX-O,\"&AU$2&\",,\"&$B819&\",\",data[],7),AU$746)","v":1.9557894682818507E-3},null,{"$f":"IF(\"OPEX-O,\"&AW$2&\",,\"&$B819&\",\"=VLOOKUP(\"OPEX-O,\"&AW$2&\",,\"&$B819&\",\",data[],1),VLOOKUP(\"OPEX-O,\"&AW$2&\",,\"&$B819&\",\",data[],7),AW$746)","v":0},{"$f":"IF(\"OPEX-O,\"&AX$2&\",,\"&$B819&\",\"=VLOOKUP(\"OPEX-O,\"&AX$2&\",,\"&$B819&\",\",data[],1),VLOOKUP(\"OPEX-O,\"&AX$2&\",,\"&$B819&\",\",data[],7),AX$746)","v":0},{"$f":"IF(\"OPEX-O,\"&AY$2&\",,\"&$B819&\",\"=VLOOKUP(\"OPEX-O,\"&AY$2&\",,\"&$B819&\",\",data[],1),VLOOKUP(\"OPEX-O,\"&AY$2&\",,\"&$B819&\",\",data[],7),AY$746)","v":0},{"$f":"IF(\"OPEX-O,\"&AZ$2&\",,\"&$B819&\",\"=VLOOKUP(\"OPEX-O,\"&AZ$2&\",,\"&$B819&\",\",data[],1),VLOOKUP(\"OPEX-O,\"&AZ$2&\",,\"&$B819&\",\",data[],7),AZ$746)","v":0},null,{"$f":"IF(\"OPEX-O,\"&BB$2&\",,\"&$B819&\",\"=VLOOKUP(\"OPEX-O,\"&BB$2&\",,\"&$B819&\",\",data[],1),VLOOKUP(\"OPEX-O,\"&BB$2&\",,\"&$B819&\",\",data[],7),BB$746)","v":0},null,null,{"$f":"IF(\"OPEX-O,\"&BE$2&\",,\"&$B819&\",\"=VLOOKUP(\"OPEX-O,\"&BE$2&\",,\"&$B819&\",\",data[],1),VLOOKUP(\"OPEX-O,\"&BE$2&\",,\"&$B819&\",\",data[],7),BE$746)","v":0}]
[null,"ZAF-KWA",null,null,null,null,null,null,null,null,{"$f":"IF(\"OPEX-o,\"&$K87&\",,\"&$B820&\",\"=VLOOKUP(\"OPEX-o,\"&$K87&\",,\"&$B820&\",\",data[],1),VLOOKUP(\"OPEX-o,\"&$K87&\",,\"&$B820&\",\",data[],7),INDEX($E$746:$I$746,$J87))","v":0},null,null,null,null,null,{"$f":"IF(\"OPEX-O,\"&Q$2&\",,\"&$B820&\",\"=VLOOKUP(\"OPEX-O,\"&Q$2&\",,\"&$B820&\",\",data[],1),VLOOKUP(\"OPEX-O,\"&Q$2&\",,\"&$B820&\",\",data[],7),Q$746)","v":0},null,{"$f":"IF(\"OPEX-O,\"&S$2&\",,\"&$B820&\",\"=VLOOKUP(\"OPEX-O,\"&S$2&\",,\"&$B820&\",\",data[],1),VLOOKUP(\"OPEX-O,\"&S$2&\",,\"&$B820&\",\",data[],7),S$746)","v":0},null,null,null,null,{"$f":"IF(\"OPEX-O,\"&X$2&\",,\"&$B820&\",\"=VLOOKUP(\"OPEX-O,\"&X$2&\",,\"&$B820&\",\",data[],1),VLOOKUP(\"OPEX-O,\"&X$2&\",,\"&$B820&\",\",data[],7),X$746)","v":0},null,{"$f":"IF(\"OPEX-O,\"&Z$2&\",,\"&$B820&\",\"=VLOOKUP(\"OPEX-O,\"&Z$2&\",,\"&$B820&\",\",data[],1),VLOOKUP(\"OPEX-O,\"&Z$2&\",,\"&$B820&\",\",data[],7),Z$746)","v":0},null,null,null,{"$f":"IF(\"OPEX-O,\"&AD$2&\",,\"&$B820&\",\"=VLOOKUP(\"OPEX-O,\"&AD$2&\",,\"&$B820&\",\",data[],1),VLOOKUP(\"OPEX-O,\"&AD$2&\",,\"&$B820&\",\",data[],7),AD$746)","v":0},null,null,null,null,null,null,{"$f":"IF(\"OPEX-O,\"&AK$2&\",,\"&$B820&\",\"=VLOOKUP(\"OPEX-O,\"&AK$2&\",,\"&$B820&\",\",data[],1),VLOOKUP(\"OPEX-O,\"&AK$2&\",,\"&$B820&\",\",data[],7),AK$746)","v":0},null,{"$f":"IF(\"OPEX-O,\"&AM$2&\",,\"&$B820&\",\"=VLOOKUP(\"OPEX-O,\"&AM$2&\",,\"&$B820&\",\",data[],1),VLOOKUP(\"OPEX-O,\"&AM$2&\",,\"&$B820&\",\",data[],7),AM$746)","v":0},null,null,null,null,null,null,null,{"$f":"IF(\"OPEX-O,\"&AU$2&\",,\"&$B820&\",\"=VLOOKUP(\"OPEX-O,\"&AU$2&\",,\"&$B820&\",\",data[],1),VLOOKUP(\"OPEX-O,\"&AU$2&\",,\"&$B820&\",\",data[],7),AU$746)","v":1.9557894682818507E-3},null,{"$f":"IF(\"OPEX-O,\"&AW$2&\",,\"&$B820&\",\"=VLOOKUP(\"OPEX-O,\"&AW$2&\",,\"&$B820&\",\",data[],1),VLOOKUP(\"OPEX-O,\"&AW$2&\",,\"&$B820&\",\",data[],7),AW$746)","v":0},{"$f":"IF(\"OPEX-O,\"&AX$2&\",,\"&$B820&\",\"=VLOOKUP(\"OPEX-O,\"&AX$2&\",,\"&$B820&\",\",data[],1),VLOOKUP(\"OPEX-O,\"&AX$2&\",,\"&$B820&\",\",data[],7),AX$746)","v":0},{"$f":"IF(\"OPEX-O,\"&AY$2&\",,\"&$B820&\",\"=VLOOKUP(\"OPEX-O,\"&AY$2&\",,\"&$B820&\",\",data[],1),VLOOKUP(\"OPEX-O,\"&AY$2&\",,\"&$B820&\",\",data[],7),AY$746)","v":0},{"$f":"IF(\"OPEX-O,\"&AZ$2&\",,\"&$B820&\",\"=VLOOKUP(\"OPEX-O,\"&AZ$2&\",,\"&$B820&\",\",data[],1),VLOOKUP(\"OPEX-O,\"&AZ$2&\",,\"&$B820&\",\",data[],7),AZ$746)","v":0},null,{"$f":"IF(\"OPEX-O,\"&BB$2&\",,\"&$B820&\",\"=VLOOKUP(\"OPEX-O,\"&BB$2&\",,\"&$B820&\",\",data[],1),VLOOKUP(\"OPEX-O,\"&BB$2&\",,\"&$B820&\",\",data[],7),BB$746)","v":0},null,null,{"$f":"IF(\"OPEX-O,\"&BE$2&\",,\"&$B820&\",\"=VLOOKUP(\"OPEX-O,\"&BE$2&\",,\"&$B820&\",\",data[],1),VLOOKUP(\"OPEX-O,\"&BE$2&\",,\"&$B820&\",\",data[],7),BE$746)","v":0}]
[null,"ZAF-LIM",null,null,null,null,null,null,null,null,{"$f":"IF(\"OPEX-o,\"&$K88&\",,\"&$B821&\",\"=VLOOKUP(\"OPEX-o,\"&$K88&\",,\"&$B821&\",\",data[],1),VLOOKUP(\"OPEX-o,\"&$K88&\",,\"&$B821&\",\",data[],7),INDEX($E$746:$I$746,$J88))","v":0},null,null,null,null,null,{"$f":"IF(\"OPEX-O,\"&Q$2&\",,\"&$B821&\",\"=VLOOKUP(\"OPEX-O,\"&Q$2&\",,\"&$B821&\",\",data[],1),VLOOKUP(\"OPEX-O,\"&Q$2&\",,\"&$B821&\",\",data[],7),Q$746)","v":0},null,{"$f":"IF(\"OPEX-O,\"&S$2&\",,\"&$B821&\",\"=VLOOKUP(\"OPEX-O,\"&S$2&\",,\"&$B821&\",\",data[],1),VLOOKUP(\"OPEX-O,\"&S$2&\",,\"&$B821&\",\",data[],7),S$746)","v":0},null,null,null,null,{"$f":"IF(\"OPEX-O,\"&X$2&\",,\"&$B821&\",\"=VLOOKUP(\"OPEX-O,\"&X$2&\",,\"&$B821&\",\",data[],1),VLOOKUP(\"OPEX-O,\"&X$2&\",,\"&$B821&\",\",data[],7),X$746)","v":0},null,{"$f":"IF(\"OPEX-O,\"&Z$2&\",,\"&$B821&\",\"=VLOOKUP(\"OPEX-O,\"&Z$2&\",,\"&$B821&\",\",data[],1),VLOOKUP(\"OPEX-O,\"&Z$2&\",,\"&$B821&\",\",data[],7),Z$746)","v":0},null,null,null,{"$f":"IF(\"OPEX-O,\"&AD$2&\",,\"&$B821&\",\"=VLOOKUP(\"OPEX-O,\"&AD$2&\",,\"&$B821&\",\",data[],1),VLOOKUP(\"OPEX-O,\"&AD$2&\",,\"&$B821&\",\",data[],7),AD$746)","v":0},null,null,null,null,null,null,{"$f":"IF(\"OPEX-O,\"&AK$2&\",,\"&$B821&\",\"=VLOOKUP(\"OPEX-O,\"&AK$2&\",,\"&$B821&\",\",data[],1),VLOOKUP(\"OPEX-O,\"&AK$2&\",,\"&$B821&\",\",data[],7),AK$746)","v":0},null,{"$f":"IF(\"OPEX-O,\"&AM$2&\",,\"&$B821&\",\"=VLOOKUP(\"OPEX-O,\"&AM$2&\",,\"&$B821&\",\",data[],1),VLOOKUP(\"OPEX-O,\"&AM$2&\",,\"&$B821&\",\",data[],7),AM$746)","v":0},null,null,null,null,null,null,null,{"$f":"IF(\"OPEX-O,\"&AU$2&\",,\"&$B821&\",\"=VLOOKUP(\"OPEX-O,\"&AU$2&\",,\"&$B821&\",\",data[],1),VLOOKUP(\"OPEX-O,\"&AU$2&\",,\"&$B821&\",\",data[],7),AU$746)","v":1.9557894682818507E-3},null,{"$f":"IF(\"OPEX-O,\"&AW$2&\",,\"&$B821&\",\"=VLOOKUP(\"OPEX-O,\"&AW$2&\",,\"&$B821&\",\",data[],1),VLOOKUP(\"OPEX-O,\"&AW$2&\",,\"&$B821&\",\",data[],7),AW$746)","v":0},{"$f":"IF(\"OPEX-O,\"&AX$2&\",,\"&$B821&\",\"=VLOOKUP(\"OPEX-O,\"&AX$2&\",,\"&$B821&\",\",data[],1),VLOOKUP(\"OPEX-O,\"&AX$2&\",,\"&$B821&\",\",data[],7),AX$746)","v":0},{"$f":"IF(\"OPEX-O,\"&AY$2&\",,\"&$B821&\",\"=VLOOKUP(\"OPEX-O,\"&AY$2&\",,\"&$B821&\",\",data[],1),VLOOKUP(\"OPEX-O,\"&AY$2&\",,\"&$B821&\",\",data[],7),AY$746)","v":0},{"$f":"IF(\"OPEX-O,\"&AZ$2&\",,\"&$B821&\",\"=VLOOKUP(\"OPEX-O,\"&AZ$2&\",,\"&$B821&\",\",data[],1),VLOOKUP(\"OPEX-O,\"&AZ$2&\",,\"&$B821&\",\",data[],7),AZ$746)","v":0},null,{"$f":"IF(\"OPEX-O,\"&BB$2&\",,\"&$B821&\",\"=VLOOKUP(\"OPEX-O,\"&BB$2&\",,\"&$B821&\",\",data[],1),VLOOKUP(\"OPEX-O,\"&BB$2&\",,\"&$B821&\",\",data[],7),BB$746)","v":0},null,null,{"$f":"IF(\"OPEX-O,\"&BE$2&\",,\"&$B821&\",\"=VLOOKUP(\"OPEX-O,\"&BE$2&\",,\"&$B821&\",\",data[],1),VLOOKUP(\"OPEX-O,\"&BE$2&\",,\"&$B821&\",\",data[],7),BE$746)","v":0}]
[null,"ZAF-MPU",null,null,null,null,null,null,null,null,{"$f":"IF(\"OPEX-o,\"&$K89&\",,\"&$B822&\",\"=VLOOKUP(\"OPEX-o,\"&$K89&\",,\"&$B822&\",\",data[],1),VLOOKUP(\"OPEX-o,\"&$K89&\",,\"&$B822&\",\",data[],7),INDEX($E$746:$I$746,$J89))","v":0},null,null,null,null,null,{"$f":"IF(\"OPEX-O,\"&Q$2&\",,\"&$B822&\",\"=VLOOKUP(\"OPEX-O,\"&Q$2&\",,\"&$B822&\",\",data[],1),VLOOKUP(\"OPEX-O,\"&Q$2&\",,\"&$B822&\",\",data[],7),Q$746)","v":0},null,{"$f":"IF(\"OPEX-O,\"&S$2&\",,\"&$B822&\",\"=VLOOKUP(\"OPEX-O,\"&S$2&\",,\"&$B822&\",\",data[],1),VLOOKUP(\"OPEX-O,\"&S$2&\",,\"&$B822&\",\",data[],7),S$746)","v":0},null,null,null,null,{"$f":"IF(\"OPEX-O,\"&X$2&\",,\"&$B822&\",\"=VLOOKUP(\"OPEX-O,\"&X$2&\",,\"&$B822&\",\",data[],1),VLOOKUP(\"OPEX-O,\"&X$2&\",,\"&$B822&\",\",data[],7),X$746)","v":0},null,{"$f":"IF(\"OPEX-O,\"&Z$2&\",,\"&$B822&\",\"=VLOOKUP(\"OPEX-O,\"&Z$2&\",,\"&$B822&\",\",data[],1),VLOOKUP(\"OPEX-O,\"&Z$2&\",,\"&$B822&\",\",data[],7),Z$746)","v":0},null,null,null,{"$f":"IF(\"OPEX-O,\"&AD$2&\",,\"&$B822&\",\"=VLOOKUP(\"OPEX-O,\"&AD$2&\",,\"&$B822&\",\",data[],1),VLOOKUP(\"OPEX-O,\"&AD$2&\",,\"&$B822&\",\",data[],7),AD$746)","v":0},null,null,null,null,null,null,{"$f":"IF(\"OPEX-O,\"&AK$2&\",,\"&$B822&\",\"=VLOOKUP(\"OPEX-O,\"&AK$2&\",,\"&$B822&\",\",data[],1),VLOOKUP(\"OPEX-O,\"&AK$2&\",,\"&$B822&\",\",data[],7),AK$746)","v":0},null,{"$f":"IF(\"OPEX-O,\"&AM$2&\",,\"&$B822&\",\"=VLOOKUP(\"OPEX-O,\"&AM$2&\",,\"&$B822&\",\",data[],1),VLOOKUP(\"OPEX-O,\"&AM$2&\",,\"&$B822&\",\",data[],7),AM$746)","v":0},null,null,null,null,null,null,null,{"$f":"IF(\"OPEX-O,\"&AU$2&\",,\"&$B822&\",\"=VLOOKUP(\"OPEX-O,\"&AU$2&\",,\"&$B822&\",\",data[],1),VLOOKUP(\"OPEX-O,\"&AU$2&\",,\"&$B822&\",\",data[],7),AU$746)","v":1.9557894682818507E-3},null,{"$f":"IF(\"OPEX-O,\"&AW$2&\",,\"&$B822&\",\"=VLOOKUP(\"OPEX-O,\"&AW$2&\",,\"&$B822&\",\",data[],1),VLOOKUP(\"OPEX-O,\"&AW$2&\",,\"&$B822&\",\",data[],7),AW$746)","v":0},{"$f":"IF(\"OPEX-O,\"&AX$2&\",,\"&$B822&\",\"=VLOOKUP(\"OPEX-O,\"&AX$2&\",,\"&$B822&\",\",data[],1),VLOOKUP(\"OPEX-O,\"&AX$2&\",,\"&$B822&\",\",data[],7),AX$746)","v":0},{"$f":"IF(\"OPEX-O,\"&AY$2&\",,\"&$B822&\",\"=VLOOKUP(\"OPEX-O,\"&AY$2&\",,\"&$B822&\",\",data[],1),VLOOKUP(\"OPEX-O,\"&AY$2&\",,\"&$B822&\",\",data[],7),AY$746)","v":0},{"$f":"IF(\"OPEX-O,\"&AZ$2&\",,\"&$B822&\",\"=VLOOKUP(\"OPEX-O,\"&AZ$2&\",,\"&$B822&\",\",data[],1),VLOOKUP(\"OPEX-O,\"&AZ$2&\",,\"&$B822&\",\",data[],7),AZ$746)","v":0},null,{"$f":"IF(\"OPEX-O,\"&BB$2&\",,\"&$B822&\",\"=VLOOKUP(\"OPEX-O,\"&BB$2&\",,\"&$B822&\",\",data[],1),VLOOKUP(\"OPEX-O,\"&BB$2&\",,\"&$B822&\",\",data[],7),BB$746)","v":0},null,null,{"$f":"IF(\"OPEX-O,\"&BE$2&\",,\"&$B822&\",\"=VLOOKUP(\"OPEX-O,\"&BE$2&\",,\"&$B822&\",\",data[],1),VLOOKUP(\"OPEX-O,\"&BE$2&\",,\"&$B822&\",\",data[],7),BE$746)","v":0}]
[null,"ZAF-NC",null,null,null,null,null,null,null,null,{"$f":"IF(\"OPEX-o,\"&$K90&\",,\"&$B823&\",\"=VLOOKUP(\"OPEX-o,\"&$K90&\",,\"&$B823&\",\",data[],1),VLOOKUP(\"OPEX-o,\"&$K90&\",,\"&$B823&\",\",data[],7),INDEX($E$746:$I$746,$J90))","v":0},null,null,null,null,null,{"$f":"IF(\"OPEX-O,\"&Q$2&\",,\"&$B823&\",\"=VLOOKUP(\"OPEX-O,\"&Q$2&\",,\"&$B823&\",\",data[],1),VLOOKUP(\"OPEX-O,\"&Q$2&\",,\"&$B823&\",\",data[],7),Q$746)","v":0},null,{"$f":"IF(\"OPEX-O,\"&S$2&\",,\"&$B823&\",\"=VLOOKUP(\"OPEX-O,\"&S$2&\",,\"&$B823&\",\",data[],1),VLOOKUP(\"OPEX-O,\"&S$2&\",,\"&$B823&\",\",data[],7),S$746)","v":0},null,null,null,null,{"$f":"IF(\"OPEX-O,\"&X$2&\",,\"&$B823&\",\"=VLOOKUP(\"OPEX-O,\"&X$2&\",,\"&$B823&\",\",data[],1),VLOOKUP(\"OPEX-O,\"&X$2&\",,\"&$B823&\",\",data[],7),X$746)","v":0},null,{"$f":"IF(\"OPEX-O,\"&Z$2&\",,\"&$B823&\",\"=VLOOKUP(\"OPEX-O,\"&Z$2&\",,\"&$B823&\",\",data[],1),VLOOKUP(\"OPEX-O,\"&Z$2&\",,\"&$B823&\",\",data[],7),Z$746)","v":0},null,null,null,{"$f":"IF(\"OPEX-O,\"&AD$2&\",,\"&$B823&\",\"=VLOOKUP(\"OPEX-O,\"&AD$2&\",,\"&$B823&\",\",data[],1),VLOOKUP(\"OPEX-O,\"&AD$2&\",,\"&$B823&\",\",data[],7),AD$746)","v":0},null,null,null,null,null,null,{"$f":"IF(\"OPEX-O,\"&AK$2&\",,\"&$B823&\",\"=VLOOKUP(\"OPEX-O,\"&AK$2&\",,\"&$B823&\",\",data[],1),VLOOKUP(\"OPEX-O,\"&AK$2&\",,\"&$B823&\",\",data[],7),AK$746)","v":0},null,{"$f":"IF(\"OPEX-O,\"&AM$2&\",,\"&$B823&\",\"=VLOOKUP(\"OPEX-O,\"&AM$2&\",,\"&$B823&\",\",data[],1),VLOOKUP(\"OPEX-O,\"&AM$2&\",,\"&$B823&\",\",data[],7),AM$746)","v":0},null,null,null,null,null,null,null,{"$f":"IF(\"OPEX-O,\"&AU$2&\",,\"&$B823&\",\"=VLOOKUP(\"OPEX-O,\"&AU$2&\",,\"&$B823&\",\",data[],1),VLOOKUP(\"OPEX-O,\"&AU$2&\",,\"&$B823&\",\",data[],7),AU$746)","v":1.9557894682818507E-3},null,{"$f":"IF(\"OPEX-O,\"&AW$2&\",,\"&$B823&\",\"=VLOOKUP(\"OPEX-O,\"&AW$2&\",,\"&$B823&\",\",data[],1),VLOOKUP(\"OPEX-O,\"&AW$2&\",,\"&$B823&\",\",data[],7),AW$746)","v":0},{"$f":"IF(\"OPEX-O,\"&AX$2&\",,\"&$B823&\",\"=VLOOKUP(\"OPEX-O,\"&AX$2&\",,\"&$B823&\",\",data[],1),VLOOKUP(\"OPEX-O,\"&AX$2&\",,\"&$B823&\",\",data[],7),AX$746)","v":0},{"$f":"IF(\"OPEX-O,\"&AY$2&\",,\"&$B823&\",\"=VLOOKUP(\"OPEX-O,\"&AY$2&\",,\"&$B823&\",\",data[],1),VLOOKUP(\"OPEX-O,\"&AY$2&\",,\"&$B823&\",\",data[],7),AY$746)","v":0},{"$f":"IF(\"OPEX-O,\"&AZ$2&\",,\"&$B823&\",\"=VLOOKUP(\"OPEX-O,\"&AZ$2&\",,\"&$B823&\",\",data[],1),VLOOKUP(\"OPEX-O,\"&AZ$2&\",,\"&$B823&\",\",data[],7),AZ$746)","v":0},null,{"$f":"IF(\"OPEX-O,\"&BB$2&\",,\"&$B823&\",\"=VLOOKUP(\"OPEX-O,\"&BB$2&\",,\"&$B823&\",\",data[],1),VLOOKUP(\"OPEX-O,\"&BB$2&\",,\"&$B823&\",\",data[],7),BB$746)","v":0},null,null,{"$f":"IF(\"OPEX-O,\"&BE$2&\",,\"&$B823&\",\"=VLOOKUP(\"OPEX-O,\"&BE$2&\",,\"&$B823&\",\",data[],1),VLOOKUP(\"OPEX-O,\"&BE$2&\",,\"&$B823&\",\",data[],7),BE$746)","v":0}]
[null,"ZAF-NW",null,null,null,null,null,null,null,null,{"$f":"IF(\"OPEX-o,\"&$K91&\",,\"&$B824&\",\"=VLOOKUP(\"OPEX-o,\"&$K91&\",,\"&$B824&\",\",data[],1),VLOOKUP(\"OPEX-o,\"&$K91&\",,\"&$B824&\",\",data[],7),INDEX($E$746:$I$746,$J91))","v":0},null,null,null,null,null,{"$f":"IF(\"OPEX-O,\"&Q$2&\",,\"&$B824&\",\"=VLOOKUP(\"OPEX-O,\"&Q$2&\",,\"&$B824&\",\",data[],1),VLOOKUP(\"OPEX-O,\"&Q$2&\",,\"&$B824&\",\",data[],7),Q$746)","v":0},null,{"$f":"IF(\"OPEX-O,\"&S$2&\",,\"&$B824&\",\"=VLOOKUP(\"OPEX-O,\"&S$2&\",,\"&$B824&\",\",data[],1),VLOOKUP(\"OPEX-O,\"&S$2&\",,\"&$B824&\",\",data[],7),S$746)","v":0},null,null,null,null,{"$f":"IF(\"OPEX-O,\"&X$2&\",,\"&$B824&\",\"=VLOOKUP(\"OPEX-O,\"&X$2&\",,\"&$B824&\",\",data[],1),VLOOKUP(\"OPEX-O,\"&X$2&\",,\"&$B824&\",\",data[],7),X$746)","v":0},null,{"$f":"IF(\"OPEX-O,\"&Z$2&\",,\"&$B824&\",\"=VLOOKUP(\"OPEX-O,\"&Z$2&\",,\"&$B824&\",\",data[],1),VLOOKUP(\"OPEX-O,\"&Z$2&\",,\"&$B824&\",\",data[],7),Z$746)","v":0},null,null,null,{"$f":"IF(\"OPEX-O,\"&AD$2&\",,\"&$B824&\",\"=VLOOKUP(\"OPEX-O,\"&AD$2&\",,\"&$B824&\",\",data[],1),VLOOKUP(\"OPEX-O,\"&AD$2&\",,\"&$B824&\",\",data[],7),AD$746)","v":0},null,null,null,null,null,null,{"$f":"IF(\"OPEX-O,\"&AK$2&\",,\"&$B824&\",\"=VLOOKUP(\"OPEX-O,\"&AK$2&\",,\"&$B824&\",\",data[],1),VLOOKUP(\"OPEX-O,\"&AK$2&\",,\"&$B824&\",\",data[],7),AK$746)","v":0},null,{"$f":"IF(\"OPEX-O,\"&AM$2&\",,\"&$B824&\",\"=VLOOKUP(\"OPEX-O,\"&AM$2&\",,\"&$B824&\",\",data[],1),VLOOKUP(\"OPEX-O,\"&AM$2&\",,\"&$B824&\",\",data[],7),AM$746)","v":0},null,null,null,null,null,null,null,{"$f":"IF(\"OPEX-O,\"&AU$2&\",,\"&$B824&\",\"=VLOOKUP(\"OPEX-O,\"&AU$2&\",,\"&$B824&\",\",data[],1),VLOOKUP(\"OPEX-O,\"&AU$2&\",,\"&$B824&\",\",data[],7),AU$746)","v":1.9557894682818507E-3},null,{"$f":"IF(\"OPEX-O,\"&AW$2&\",,\"&$B824&\",\"=VLOOKUP(\"OPEX-O,\"&AW$2&\",,\"&$B824&\",\",data[],1),VLOOKUP(\"OPEX-O,\"&AW$2&\",,\"&$B824&\",\",data[],7),AW$746)","v":0},{"$f":"IF(\"OPEX-O,\"&AX$2&\",,\"&$B824&\",\"=VLOOKUP(\"OPEX-O,\"&AX$2&\",,\"&$B824&\",\",data[],1),VLOOKUP(\"OPEX-O,\"&AX$2&\",,\"&$B824&\",\",data[],7),AX$746)","v":0},{"$f":"IF(\"OPEX-O,\"&AY$2&\",,\"&$B824&\",\"=VLOOKUP(\"OPEX-O,\"&AY$2&\",,\"&$B824&\",\",data[],1),VLOOKUP(\"OPEX-O,\"&AY$2&\",,\"&$B824&\",\",data[],7),AY$746)","v":0},{"$f":"IF(\"OPEX-O,\"&AZ$2&\",,\"&$B824&\",\"=VLOOKUP(\"OPEX-O,\"&AZ$2&\",,\"&$B824&\",\",data[],1),VLOOKUP(\"OPEX-O,\"&AZ$2&\",,\"&$B824&\",\",data[],7),AZ$746)","v":0},null,{"$f":"IF(\"OPEX-O,\"&BB$2&\",,\"&$B824&\",\"=VLOOKUP(\"OPEX-O,\"&BB$2&\",,\"&$B824&\",\",data[],1),VLOOKUP(\"OPEX-O,\"&BB$2&\",,\"&$B824&\",\",data[],7),BB$746)","v":0},null,null,{"$f":"IF(\"OPEX-O,\"&BE$2&\",,\"&$B824&\",\"=VLOOKUP(\"OPEX-O,\"&BE$2&\",,\"&$B824&\",\",data[],1),VLOOKUP(\"OPEX-O,\"&BE$2&\",,\"&$B824&\",\",data[],7),BE$746)","v":0}]
[null,"ZAF-WC",null,null,null,null,null,null,null,null,{"$f":"IF(\"OPEX-o,\"&$K92&\",,\"&$B825&\",\"=VLOOKUP(\"OPEX-o,\"&$K92&\",,\"&$B825&\",\",data[],1),VLOOKUP(\"OPEX-o,\"&$K92&\",,\"&$B825&\",\",data[],7),INDEX($E$746:$I$746,$J92))","v":0},null,null,null,null,null,{"$f":"IF(\"OPEX-O,\"&Q$2&\",,\"&$B825&\",\"=VLOOKUP(\"OPEX-O,\"&Q$2&\",,\"&$B825&\",\",data[],1),VLOOKUP(\"OPEX-O,\"&Q$2&\",,\"&$B825&\",\",data[],7),Q$746)","v":0},null,{"$f":"IF(\"OPEX-O,\"&S$2&\",,\"&$B825&\",\"=VLOOKUP(\"OPEX-O,\"&S$2&\",,\"&$B825&\",\",data[],1),VLOOKUP(\"OPEX-O,\"&S$2&\",,\"&$B825&\",\",data[],7),S$746)","v":0},null,null,null,null,{"$f":"IF(\"OPEX-O,\"&X$2&\",,\"&$B825&\",\"=VLOOKUP(\"OPEX-O,\"&X$2&\",,\"&$B825&\",\",data[],1),VLOOKUP(\"OPEX-O,\"&X$2&\",,\"&$B825&\",\",data[],7),X$746)","v":0},null,{"$f":"IF(\"OPEX-O,\"&Z$2&\",,\"&$B825&\",\"=VLOOKUP(\"OPEX-O,\"&Z$2&\",,\"&$B825&\",\",data[],1),VLOOKUP(\"OPEX-O,\"&Z$2&\",,\"&$B825&\",\",data[],7),Z$746)","v":0},null,null,null,{"$f":"IF(\"OPEX-O,\"&AD$2&\",,\"&$B825&\",\"=VLOOKUP(\"OPEX-O,\"&AD$2&\",,\"&$B825&\",\",data[],1),VLOOKUP(\"OPEX-O,\"&AD$2&\",,\"&$B825&\",\",data[],7),AD$746)","v":0},null,null,null,null,null,null,{"$f":"IF(\"OPEX-O,\"&AK$2&\",,\"&$B825&\",\"=VLOOKUP(\"OPEX-O,\"&AK$2&\",,\"&$B825&\",\",data[],1),VLOOKUP(\"OPEX-O,\"&AK$2&\",,\"&$B825&\",\",data[],7),AK$746)","v":0},null,{"$f":"IF(\"OPEX-O,\"&AM$2&\",,\"&$B825&\",\"=VLOOKUP(\"OPEX-O,\"&AM$2&\",,\"&$B825&\",\",data[],1),VLOOKUP(\"OPEX-O,\"&AM$2&\",,\"&$B825&\",\",data[],7),AM$746)","v":0},null,null,null,null,null,null,null,{"$f":"IF(\"OPEX-O,\"&AU$2&\",,\"&$B825&\",\"=VLOOKUP(\"OPEX-O,\"&AU$2&\",,\"&$B825&\",\",data[],1),VLOOKUP(\"OPEX-O,\"&AU$2&\",,\"&$B825&\",\",data[],7),AU$746)","v":1.9557894682818507E-3},null,{"$f":"IF(\"OPEX-O,\"&AW$2&\",,\"&$B825&\",\"=VLOOKUP(\"OPEX-O,\"&AW$2&\",,\"&$B825&\",\",data[],1),VLOOKUP(\"OPEX-O,\"&AW$2&\",,\"&$B825&\",\",data[],7),AW$746)","v":0},{"$f":"IF(\"OPEX-O,\"&AX$2&\",,\"&$B825&\",\"=VLOOKUP(\"OPEX-O,\"&AX$2&\",,\"&$B825&\",\",data[],1),VLOOKUP(\"OPEX-O,\"&AX$2&\",,\"&$B825&\",\",data[],7),AX$746)","v":0},{"$f":"IF(\"OPEX-O,\"&AY$2&\",,\"&$B825&\",\"=VLOOKUP(\"OPEX-O,\"&AY$2&\",,\"&$B825&\",\",data[],1),VLOOKUP(\"OPEX-O,\"&AY$2&\",,\"&$B825&\",\",data[],7),AY$746)","v":0},{"$f":"IF(\"OPEX-O,\"&AZ$2&\",,\"&$B825&\",\"=VLOOKUP(\"OPEX-O,\"&AZ$2&\",,\"&$B825&\",\",data[],1),VLOOKUP(\"OPEX-O,\"&AZ$2&\",,\"&$B825&\",\",data[],7),AZ$746)","v":0},null,{"$f":"IF(\"OPEX-O,\"&BB$2&\",,\"&$B825&\",\"=VLOOKUP(\"OPEX-O,\"&BB$2&\",,\"&$B825&\",\",data[],1),VLOOKUP(\"OPEX-O,\"&BB$2&\",,\"&$B825&\",\",data[],7),BB$746)","v":0},null,null,{"$f":"IF(\"OPEX-O,\"&BE$2&\",,\"&$B825&\",\"=VLOOKUP(\"OPEX-O,\"&BE$2&\",,\"&$B825&\",\",data[],1),VLOOKUP(\"OPEX-O,\"&BE$2&\",,\"&$B825&\",\",data[],7),BE$746)","v":0}]
[]
["opex-ann",null,null,null,null,null,null,null,null,null,null,null,null,null,null,null,null,null,null,null,null,null,null,null,null,null,null,null,null,null,null,null,null,null,null,null,null,null,null,null,null,null,null,null,null,null,null,null,null,null,null,null,null,null,null,null,null,null,null,null,null,null,null,null,null,null,"COST-OPEX"]
[null,"ARE",null,null,null,null,null,null,null,null,{"$f":"K95*K747+K338*K665","v":7.2459110644373841E-3},null,null,null,{"$f":"O95*O747+O338*O665","v":0},null,{"$f":"Q95*Q747+Q338*Q665","v":3.0328707677665561E-3},null,{"$f":"S95*S747+S338*S665","v":1.9596504729281763E-5},null,null,null,null,{"$f":"X95*X747+X338*X665","v":0},null,{"$f":"Z95*Z747+Z338*Z665","v":0},null,null,null,{"$f":"AD95*AD747+AD338*AD665","v":0},null,null,null,null,null,null,{"$f":"AK95*AK747+AK338*AK665","v":0},null,{"$f":"AM95*AM747+AM338*AM665","v":5.9900506160242325E-4},null,null,null,null,null,null,null,{"$f":"AU338*AU747+AU338*AU665","v":0},null,{"$f":"AW338*AW747+AW338*AW665","v":0},{"$f":"AX338*AX747+AX338*AX665","v":3.0552392542526584E-2},{"$f":"AY338*AY747+AY338*AY665","v":0},{"$f":"AZ338*AZ747+AZ338*AZ665","v":0},null,{"$f":"BB95*BB747+BB338*BB665","v":0},null,null,0,null,null,null,null,null,null,null,null,null,null,{"$f":"SUMIF($K$8:$BJ$8,BP$1,$K828:$BJ828)*$BL95*conv_fact_to_mass","v":3.1756216820981037E-2},4.9147796008385392,11.742028795777633,50.480968430821143,0,0,0,0,{"$f":"(BP583+BQ583+BR583+BU583+BV583+BW583+BP828+BQ828+BR828+BU828+BV828+BW828+BP991+BQ991+BR991+BU991+BV991+BW991)*BI14","v":3.3372331409707758}]
[null,"ARG",null,null,null,null,null,null,null,null,{"$f":"K96*K748+K339*K666","v":4.3033348127975686E-3},null,null,null,0,null,1.5520881283999732E-3,null,1.9596504729281763E-5,null,null,null,null,0,null,0,null,null,null,0,null,null,null,null,null,null,6.7153377206224888E-3,null,0,null,null,null,null,null,null,null,{"$f":"AU339*AU748+AU339*AU666","v":1.2847101582616916E-2},null,{"$f":"AW339*AW748+AW339*AW666","v":0},0,0,0,null,7.2473428373351291E-4,null,null,0,null,null,null,null,null,null,null,null,null,null,3.9012068381469138E-2,3.0898453084202355,8.566935497143044,0,40.387028920474712,0,0,0,{"$f":"(BP584+BQ584+BR584+BU584+BV584+BW584+BP829+BQ829+BR829+BU829+BV829+BW829+BP992+BQ992+BR992+BU992+BV992+BW992)*BI15","v":4.0402031823761577}]
[null,"ARG-BA",null,null,null,null,null,null,null,null,4.9254834933395528E-3,null,null,null,0,null,1.7894633023299354E-3,null,1.9596504729281763E-5,null,null,null,null,0,null,0,null,null,null,0,null,null,null,null,null,null,8.1144711656418681E-3,null,0,null,null,null,null,null,null,null,1.2847101582616916E-2,null,{"$f":"AW340*AW749+AW340*AW667","v":0},0,0,0,null,7.2473428373351291E-4,null,null,0,null,null,null,null,null,null,null,null,null,null,3.9012068381469138E-2,3.562403891971182,9.8054883515445574,0,43.172377143841132,0,0,0,4.6316814604678704]
[null,"ARG-CAT",null,null,null,null,null,null,null,null,5.0560939526540557E-3,null,null,null,0,null,1.842909454426164E-3,null,1.9596504729281763E-5,null,null,null,null,0,null,0,null,null,null,0,null,null,null,null,null,null,8.3745463332682846E-3,null,0,null,null,null,null,null,null,null,1.2847101582616916E-2,null,{"$f":"AW341*AW750+AW341*AW668","v":0},0,0,0,null,7.2473428373351291E-4,null,null,0,null,null,null,null,null,null,null,null,null,null,3.9012068381469138E-2,3.6688027099802389,10.06550330015418,0,43.690126118157103,0,0,0,4.7583393618422276]
[null,"ARG-CBA",null,null,null,null,null,null,null,null,5.0790600612756242E-3,null,null,null,0,null,1.8523433292579978E-3,null,1.9596504729281763E-5,null,null,null,null,0,null,0,null,null,null,0,null,null,null,null,null,null,8.4205672208207752E-3,null,0,null,null,null,null,null,null,null,1.2847101582616916E-2,null,{"$f":"AW342*AW751+AW342*AW669","v":0},0,0,0,null,7.2473428373351291E-4,null,null,0,null,null,null,null,null,null,null,null,null,null,3.9012068381469138E-2,3.6875833535248903,10.111223463641403,0,43.781742967027661,0,0,0,4.7806352950190805]
[null,"ARG-CHA",null,null,null,null,null,null,null,null,5.5961006425516661E-3,null,null,null,0,null,2.0676347755525042E-3,null,1.9596504729281763E-5,null,null,null,null,0,null,0,null,null,null,0,null,null,null,null,null,null,9.4802622231080561E-3,null,0,null,null,null,null,null,null,null,1.2847101582616916E-2,null,{"$f":"AW343*AW752+AW343*AW670","v":0},0,0,0,null,7.2473428373351291E-4,null,null,0,null,null,null,null,null,null,null,null,null,null,3.9012068381469138E-2,4.1161783882423144,11.140530617717486,0,45.891348453508094,0,0,0,5.2845869705952708]
[null,"ARG-CHU",null,null,null,null,null,null,null,null,3.8120897639210951E-3,null,null,null,0,null,1.3475936062024734E-3,null,1.9596504729281763E-5,null,null,null,null,0,null,0,null,null,null,0,null,null,null,null,null,null,6.005719376340324E-3,null,0,null,null,null,null,null,null,null,1.2847101582616916E-2,null,{"$f":"AW344*AW753+AW344*AW671","v":0},0,0,0,null,7.2473428373351291E-4,null,null,0,null,null,null,null,null,null,null,null,null,null,3.9012068381469138E-2,2.682744430288428,7.5889812290948786,0,38.974344375229514,0,0,0,3.5614324753642874]
[null,"ARG-COR",null,null,null,null,null,null,null,null,5.6692986286568572E-3,null,null,null,0,null,2.098570288775956E-3,null,1.9596504729281763E-5,null,null,null,null,0,null,0,null,null,null,0,null,null,null,null,null,null,9.6340338548946917E-3,null,0,null,null,null,null,null,null,null,1.2847101582616916E-2,null,{"$f":"AW345*AW754+AW345*AW672","v":0},0,0,0,null,7.2473428373351291E-4,null,null,0,null,null,null,null,null,null,null,null,null,null,3.9012068381469138E-2,4.1777637767573284,11.286250728460224,0,46.197471892216349,0,0,0,5.3562460671451966]
[null,"ARG-CRB",null,null,null,null,null,null,null,null,6.0030827804654595E-3,null,null,null,0,null,2.2411059904624431E-3,null,1.9596504729281763E-5,null,null,null,null,0,null,0,null,null,null,0,null,null,null,null,null,null,1.0347492416448258E-2,null,0,null,null,null,null,null,null,null,1.2847101582616916E-2,null,{"$f":"AW346*AW755+AW346*AW673","v":0},0,0,0,null,7.2473428373351291E-4,null,null,0,null,null,null,null,null,null,null,null,null,null,3.9012068381469138E-2,4.4615191003628221,11.950737091456915,0,47.617801413994918,0,0,0,5.6840238772668936]
[null,"ARG-CRU",null,null,null,null,null,null,null,null,3.8246209559582968E-3,null,null,null,0,null,1.3524341217935648E-3,null,1.9596504729281763E-5,null,null,null,null,0,null,0,null,null,null,0,null,null,null,null,null,null,6.0284270862422992E-3,null,0,null,null,null,null,null,null,null,1.2847101582616916E-2,null,{"$f":"AW347*AW756+AW347*AW674","v":0},0,0,0,null,7.2473428373351291E-4,null,null,0,null,null,null,null,null,null,null,null,null,null,3.9012068381469138E-2,2.6923807673725131,7.6139279084854206,0,39.019550127159285,0,0,0,3.5733867540757354]
[null,"ARG-EST",null,null,null,null,null,null,null,null,4.9853869619008954E-3,null,null,null,0,null,1.8139327349030348E-3,null,1.9596504729281763E-5,null,null,null,null,0,null,0,null,null,null,0,null,null,null,null,null,null,8.2334055364793341E-3,null,0,null,null,null,null,null,null,null,1.2847101582616916E-2,null,{"$f":"AW348*AW757+AW348*AW675","v":0},0,0,0,null,7.2473428373351291E-4,null,null,0,null,null,null,null,null,null,null,null,null,null,{"$f":"SUMIF($K$8:$BJ$8,BP$1,$K838:$BJ838)*$BL105*conv_fact_to_mass","v":3.9012068381469138E-2},3.6111168226690271,9.9247421799229567,0,43.40914772472361,0,0,0,4.6897423717747033]
[null,"ARG-FOR",null,null,null,null,null,null,null,null,4.9240005071664586E-3,null,null,null,0,null,1.7888584566053771E-3,null,1.9596504729281763E-5,null,null,null,null,0,null,0,null,null,null,0,null,null,null,null,null,null,8.1115342140167714E-3,null,0,null,null,null,null,null,null,null,1.2847101582616916E-2,null,{"$f":"AW349*AW758+AW349*AW676","v":0},0,0,0,null,7.2473428373351291E-4,null,null,0,null,null,null,null,null,null,null,null,null,null,3.9012068381469138E-2,3.5611997852647725,9.8025360721053012,0,43.166530358446778,0,0,0,4.6302447263861533]
[null,"ARG-FUE",null,null,null,null,null,null,null,null,5.6017680243210157E-3,null,null,null,0,null,2.0700258721918449E-3,null,1.9596504729281763E-5,null,null,null,null,0,null,0,null,null,null,0,null,null,null,null,null,null,9.4921341023414835E-3,null,0,null,null,null,null,null,null,null,1.2847101582616916E-2,null,{"$f":"AW350*AW759+AW350*AW677","v":0},0,0,0,null,7.2473428373351291E-4,null,null,0,null,null,null,null,null,null,null,null,null,null,3.9012068381469138E-2,4.1209385037266477,11.151813052426334,0,45.914982594946537,0,0,0,5.2901323838009802]
[null,"ARG-JUJ",null,null,null,null,null,null,null,null,4.5606479118851058E-3,null,null,null,0,null,1.6419970515569077E-3,null,1.9596504729281763E-5,null,null,null,null,0,null,0,null,null,null,0,null,null,null,null,null,null,7.4025576826015783E-3,null,0,null,null,null,null,null,null,null,1.2847101582616916E-2,null,{"$f":"AW351*AW760+AW351*AW678","v":0},0,0,0,null,7.2473428373351291E-4,null,null,0,null,null,null,null,null,null,null,null,null,null,3.9012068381469138E-2,3.2688329956000568,9.0791858374831307,0,41.755123512862845,0,0,0,4.2791427798802371]
[null,"ARG-LAR",null,null,null,null,null,null,null,null,4.878376170830495E-3,null,null,null,0,null,1.7702720737983403E-3,null,1.9596504729281763E-5,null,null,null,null,0,null,0,null,null,null,0,null,null,null,null,null,null,8.0213527609661606E-3,null,0,null,null,null,null,null,null,null,1.2847101582616916E-2,null,{"$f":"AW352*AW761+AW352*AW679","v":0},0,0,0,null,7.2473428373351291E-4,null,null,0,null,null,null,null,null,null,null,null,null,null,3.9012068381469138E-2,3.5241986339345144,9.7117086641778982,0,42.987000127839195,0,0,0,4.5860583487816999]
[null,"ARG-MEN",null,null,null,null,null,null,null,null,5.2561353311962765E-3,null,null,null,0,null,1.925446578411337E-3,null,1.9596504729281763E-5,null,null,null,null,0,null,0,null,null,null,0,null,null,null,null,null,null,8.778355371586985E-3,null,0,null,null,null,null,null,null,null,1.2847101582616916E-2,null,{"$f":"AW353*AW762+AW353*AW680","v":0},0,0,0,null,7.2473428373351291E-4,null,null,0,null,null,null,null,null,null,null,null,null,null,3.9012068381469138E-2,3.8331148651018614,10.46373900833899,0,44.494015690995319,0,0,0,4.9527947515688115]
[null,"ARG-MIS",null,null,null,null,null,null,null,null,7.6138812079469707E-3,null,null,null,0,null,2.9540099527277765E-3,null,1.9596504729281763E-5,null,null,null,null,0,null,0,null,null,null,0,null,null,null,null,null,null,1.3233261416349035E-2,null,0,null,null,null,null,null,null,null,1.2847101582616916E-2,null,{"$f":"AW354*AW763+AW354*AW681","v":0},0,0,0,null,7.2473428373351291E-4,null,null,0,null,null,null,null,null,null,null,null,null,null,3.9012068381469138E-2,5.8807445443655002,15.157460906228494,0,53.362694144229224,0,0,0,7.2830713977448971]
[null,"ARG-NEG",null,null,null,null,null,null,null,null,4.1493380188017863E-3,null,null,null,0,null,1.4788984568972242E-3,null,1.9596504729281763E-5,null,null,null,null,0,null,0,null,null,null,0,null,null,null,null,null,null,6.62473992952983E-3,null,0,null,null,null,null,null,null,null,1.2847101582616916E-2,null,{"$f":"AW355*AW764+AW355*AW682","v":0},0,0,0,null,7.2473428373351291E-4,null,null,0,null,null,null,null,null,null,null,null,null,null,3.9012068381469138E-2,2.944141750110878,8.2603638130144184,0,40.206669857971306,0,0,0,3.8838656255769113]
[null,"ARG-NEU",null,null,null,null,null,null,null,null,4.7300139585702448E-3,null,null,null,0,null,1.7101230387921976E-3,null,1.9596504729281763E-5,null,null,null,null,0,null,0,null,null,null,0,null,null,null,null,null,null,7.730415420741492E-3,null,0,null,null,null,null,null,null,null,1.2847101582616916E-2,null,{"$f":"AW356*AW765+AW356*AW683","v":0},0,0,0,null,7.2473428373351291E-4,null,null,0,null,null,null,null,null,null,null,null,null,null,3.9012068381469138E-2,3.4044559400635639,9.4163541175441594,0,42.407811769080105,0,0,0,4.4425720768717127]
[null,"ARG-PAM",null,null,null,null,null,null,null,null,4.7388327956709511E-3,null,null,null,0,null,1.7136860059260635E-3,null,1.9596504729281763E-5,null,null,null,null,0,null,0,null,null,null,0,null,null,null,null,null,null,7.7476107922700606E-3,null,0,null,null,null,null,null,null,null,1.2847101582616916E-2,null,{"$f":"AW357*AW766+AW357*AW684","v":0},0,0,0,null,7.2473428373351291E-4,null,null,0,null,null,null,null,null,null,null,null,null,null,3.9012068381469138E-2,3.4115489762650455,9.4339103644754676,0,42.442043741525417,0,0,0,4.4510925713410998]
[null,"ARG-RIO",null,null,null,null,null,null,null,null,5.6172313918751958E-3,null,null,null,0,null,2.0765534374904246E-3,null,1.9596504729281763E-5,null,null,null,null,0,null,0,null,null,null,0,null,null,null,null,null,null,9.5245552689958192E-3,null,0,null,null,null,null,null,null,null,1.2847101582616916E-2,null,{"$f":"AW358*AW767+AW358*AW685","v":0},0,0,0,null,{"$f":"BB115*BB767+BB358*BB685","v":7.2473428373351291E-4},null,null,0,null,null,null,null,null,null,null,null,null,null,{"$f":"SUMIF($K$8:$BJ$8,BP$1,$K848:$BJ848)*$BL115*conv_fact_to_mass","v":3.9012068381469138E-2},4.1339333631319661,11.182597009094385,0,45.979525572788695,0,0,0,5.3052653658929909]
[null,"ARG-SAF",null,null,null,null,null,null,null,null,5.4860299571179239E-3,null,null,null,0,null,2.0213311526594197E-3,null,1.9596504729281763E-5,null,null,null,null,0,null,0,null,null,null,0,null,null,null,null,null,null,9.2508103898450884E-3,null,0,null,null,null,null,null,null,null,1.2847101582616916E-2,null,{"$f":"AW359*AW768+AW359*AW686","v":0},0,0,0,null,7.2473428373351291E-4,null,null,0,null,null,null,null,null,null,null,null,null,null,3.9012068381469138E-2,4.023998679280461,10.921405566272982,0,45.434563392438861,0,0,0,5.1769785474599326]
[null,"ARG-SAJ",null,null,null,null,null,null,null,null,5.7805678841924652E-3,null,null,null,0,null,2.1458165168219386E-3,null,1.9596504729281763E-5,null,null,null,null,0,null,0,null,null,null,0,null,null,null,null,null,null,9.8696186770875841E-3,null,0,null,null,null,null,null,null,null,1.2847101582616916E-2,null,{"$f":"AW360*AW769+AW360*AW687","v":0},0,0,0,null,7.2473428373351291E-4,null,null,0,null,null,null,null,null,null,null,null,null,null,3.9012068381469138E-2,4.2718199926365932,11.507761853310161,0,46.666466303209049,0,0,0,5.4653279324033948]
[null,"ARG-SAL",null,null,null,null,null,null,null,null,4.8183652453391368E-3,null,null,null,0,null,1.7458890437073746E-3,null,1.9596504729281763E-5,null,null,null,null,0,null,0,null,null,null,0,null,null,null,null,null,null,7.9032467768054126E-3,null,0,null,null,null,null,null,null,null,1.2847101582616916E-2,null,{"$f":"AW361*AW770+AW361*AW688","v":0},0,0,0,null,7.2473428373351291E-4,null,null,0,null,null,null,null,null,null,null,null,null,null,3.9012068381469138E-2,3.4756577104179436,9.5922409141252114,0,42.751878671539131,0,0,0,4.5279829489315722]
[null,"ARG-SAT",null,null,null,null,null,null,null,null,5.131504970239534E-3,null,null,null,0,null,1.8739269887386944E-3,null,1.9596504729281763E-5,null,null,null,null,0,null,0,null,null,null,0,null,null,null,null,null,null,8.5259876309802859E-3,null,0,null,null,null,null,null,null,null,1.2847101582616916E-2,null,{"$f":"AW362*AW771+AW362*AW689","v":0},0,0,0,null,7.2473428373351291E-4,null,null,0,null,null,null,null,null,null,null,null,null,null,3.9012068381469138E-2,3.7305513833452846,10.215629040198268,0,43.991610405469373,0,0,0,4.8315777906408117]
[null,"ARG-TUC",null,null,null,null,null,null,null,null,6.8327088025253455E-3,null,null,null,0,null,2.6061572289375881E-3,null,1.9596504729281763E-5,null,null,null,null,0,null,0,null,null,null,0,null,null,null,null,null,null,1.187554931527332E-2,null,0,null,null,null,null,null,null,null,1.2847101582616916E-2,null,{"$f":"AW363*AW772+AW363*AW690","v":0},0,0,0,null,7.2473428373351291E-4,null,null,0,null,null,null,null,null,null,null,null,null,null,3.9012068381469138E-2,5.1882509372323007,13.60232892126343,0,50.659806151638961,0,0,0,6.5061367776362546]
[null,"AUS",null,null,null,null,null,null,null,null,5.322566928724781E-3,null,null,null,0,null,1.6454457969867053E-3,null,1.9596504729281763E-5,null,null,null,null,0,null,0,null,null,null,0,null,null,null,null,null,null,7.4601716727204278E-3,null,0,null,null,null,null,null,null,null,1.8782000641900436E-2,null,{"$f":"AW364*AW773+AW364*AW691","v":0},0,0,0,null,6.6026343170763006E-4,null,null,0,null,null,null,null,null,null,null,null,null,null,4.2821368074684681E-2,3.5955514053700868,11.630624986735652,0,58.785947755148946,0,0,0,2.9450874789477499]
[null,"BRA",null,null,null,null,null,null,null,null,3.558360546300736E-3,null,null,null,0,null,1.6227042077245491E-3,null,1.9596504729281763E-5,null,null,null,null,0,null,0,null,null,null,0,null,null,null,null,null,null,7.039688141744915E-3,null,0,null,null,null,null,null,null,null,1.0983972714117198E-2,null,{"$f":"AW365*AW774+AW365*AW692","v":0},0,0,0,null,7.4235990036789206E-4,null,null,0,null,null,null,null,null,null,null,null,null,null,3.8085817164148272E-2,3.1537264742188733,6.9156755780037349,0,36.471771129288669,0,0,0,2.4059940078000444]
[null,"CHL",null,null,null,null,null,null,null,null,7.2986593963406095E-3,null,null,null,0,null,2.7391510383688268E-3,null,1.9596504729281763E-5,null,null,null,null,0,null,0,null,null,null,0,null,null,null,null,null,null,1.2189493113149501E-2,null,0,null,null,null,null,null,null,null,1.267724426226465E-2,null,{"$f":"AW366*AW775+AW366*AW693","v":0},0,0,0,null,7.2638259673259999E-4,null,null,0,null,null,null,null,null,null,null,null,null,null,3.8923541894568571E-2,5.4406365660805118,14.496956406881777,0,50.834314139707544,0,0,0,3.9947330024008574]
[null,"CHN",null,null,null,null,null,null,null,null,3.0883597621123872E-3,null,null,null,0,null,1.6978070925006332E-3,null,1.9596504729281763E-5,null,null,null,null,0,null,0,null,null,null,0,null,null,null,null,null,null,7.6710141916316405E-3,null,0,null,null,null,null,null,null,null,1.832730145677898E-2,null,{"$f":"AW367*AW776+AW367*AW694","v":0},0,0,0,null,6.6579134773898084E-4,null,null,0,null,null,null,null,null,null,null,null,null,null,4.2465831872737496E-2,3.679165827707056,6.6925080891810147,0,57.781400325091212,0,0,0,2.0826281959859143]
[null,"COL",null,null,null,null,null,null,null,null,0,null,null,null,0,null,1.5886314189624752E-3,null,1.9596504729281763E-5,null,null,null,null,0,null,0,null,null,null,0,null,null,null,null,null,null,7.1469599383686081E-3,null,0,null,null,null,null,null,null,null,1.0014420736214152E-2,null,{"$f":"AW368*AW777+AW368*AW695","v":0},0,0,0,null,7.5116596028057829E-4,null,null,0,null,null,null,null,null,null,null,null,null,null,{"$f":"SUMIF($K$8:$BJ$8,BP$1,$K858:$BJ858)*$BL125*conv_fact_to_mass","v":3.7639329962244408E-2},3.0513105777159018,0,0,34.404923866156352,0,0,0,2.1941466058229775]
[null,"CRI",null,null,null,null,null,null,null,null,6.7081440036445214E-3,null,null,null,0,null,2.7362435153731228E-3,null,1.9596504729281763E-5,null,null,null,null,0,null,0,null,null,null,0,null,null,null,null,null,null,1.237469566750588E-2,null,0,null,null,null,null,null,null,null,8.4323534432490296E-3,null,{"$f":"AW369*AW778+AW369*AW696","v":0},0,0,0,null,7.6505901006550161E-4,null,null,0,null,null,null,null,null,null,null,null,null,null,3.6955820483685557E-2,5.1601102110153709,12.650468489259243,0,40.681487141758957,0,0,0,4.818288773124082]
[null,"DNK",null,null,null,null,null,null,null,null,{"$f":"K127*K779+K370*K697","v":4.3000388567446274E-3},null,null,null,{"$f":"O127*O779+O370*O697","v":0},null,{"$f":"Q127*Q779+Q370*Q697","v":1.6929506950753494E-3},null,{"$f":"S127*S779+S370*S697","v":1.9596504729281763E-5},null,null,null,null,{"$f":"X127*X779+X370*X697","v":0},null,{"$f":"Z127*Z779+Z370*Z697","v":0},null,null,null,{"$f":"AD127*AD779+AD370*AD697","v":0},null,null,null,null,null,null,{"$f":"AK127*AK779+AK370*AK697","v":0},null,{"$f":"AM127*AM779+AM370*AM697","v":5.9900506160242325E-4},null,null,null,null,null,null,null,0,null,{"$f":"AW370*AW779+AW370*AW697","v":0},0,0,1.0408033034691798E-3,null,0,null,null,0,null,null,null,null,null,null,null,null,null,null,2.9055331738213629E-2,2.5101029362829883,6.3755785634177835,2.4313099041106097,0,0,0,0,1.7195085423958016]
[null,"DZA",null,null,null,null,null,null,null,null,6.0810242980225493E-3,null,null,null,0,null,3.1327280934344169E-3,null,1.9596504729281763E-5,null,null,null,null,0,null,0,null,null,null,0,null,null,null,null,null,null,0,null,5.9900506160242325E-4,null,null,null,null,null,null,null,0,null,{"$f":"AW371*AW780+AW371*AW698","v":3.1330324230284183E-3},1.5699359164039445E-2,0,0,null,0,null,null,0,null,null,null,null,null,null,null,null,null,null,3.0338432149591553E-2,4.8499495200164082,9.4143698386123607,30.082819203804554,0,0,0,0,3.5978173834414622]
[null,"EGY",null,null,null,null,null,null,null,null,4.7672774288636567E-3,null,null,null,0,null,1.9489515739543536E-3,null,1.9596504729281763E-5,null,null,null,null,0,null,0,null,null,null,0,null,null,null,null,null,null,0,null,5.9900506160242325E-4,null,null,null,null,null,null,null,0,null,{"$f":"AW372*AW781+AW372*AW699","v":0},2.8033088382034128E-2,0,0,null,0,null,null,0,null,null,null,null,null,null,null,null,null,null,3.1463740561217354E-2,3.1291961263708234,7.6542415230295511,45.971093941512862,0,0,0,0,3.079284037343597]
[null,"ESP",null,null,null,null,null,null,null,null,3.2634954855436174E-3,null,null,null,0,null,1.5372954564851476E-3,null,1.9596504729281763E-5,null,null,null,null,0,null,0,null,null,null,0,null,null,null,null,null,null,0,null,5.9900506160242325E-4,null,null,null,null,null,null,null,0,null,{"$f":"AW373*AW782+AW373*AW700","v":0},8.9521172629675287E-3,0,0,null,0,null,null,0,null,null,null,null,null,null,null,null,null,null,2.955811884739375E-2,2.3187584946436437,4.9224486076587546,14.406304220864055,0,0,0,0,1.5388132642757353]
[null,"IDN",null,null,null,null,null,null,null,null,1.228244649775103E-2,null,null,null,0,null,3.7862034138759653E-3,null,1.9596504729281763E-5,null,null,null,null,0,null,0,null,null,null,0,null,null,null,null,null,null,1.6961290027146726E-2,null,0,null,null,null,null,null,null,null,1.5970707250839603E-2,null,{"$f":"AW374*AW783+AW374*AW701","v":0},0,0,0,null,6.9267933194371229E-4,null,null,0,null,null,null,null,null,null,null,null,null,null,4.0817420314923428E-2,7.8862561603166794,25.583020447781539,0,70.036599745774765,0,0,0,7.4029127314495611]
[null,"IND",null,null,null,null,null,null,null,null,2.8441241974375294E-3,null,null,null,0,null,1.6587294941894765E-3,null,1.9596504729281763E-5,null,null,null,null,0,null,0,null,null,null,0,null,null,null,null,null,null,7.300035229055998E-3,null,0,null,null,null,null,null,null,null,1.2814987532293728E-2,null,{"$f":"AW375*AW784+AW375*AW702","v":0},0,0,0,null,7.2504659503021957E-4,null,null,0,null,null,null,null,null,null,null,null,null,null,3.8995264068826425E-2,3.3007209978633893,5.6595487642188518,0,41.469844698906094,0,0,0,2.0064409132889356]
[null,"JOR",null,null,null,null,null,null,null,null,1.0928469381303379E-2,null,null,null,0,null,3.2624924604389492E-3,null,1.9596504729281763E-5,null,null,null,null,0,null,0,null,null,null,0,null,null,null,null,null,null,0,null,5.9900506160242325E-4,null,null,null,null,null,null,null,0,null,{"$f":"AW376*AW785+AW376*AW703","v":0},2.0165352615781184E-2,0,0,null,0,null,null,0,null,null,null,null,null,null,null,null,null,null,3.0617767303717479E-2,5.0973495714566415,17.074745579632349,32.442431972438392,0,0,0,0,5.8265332827758822]
[null,"KAZ",null,null,null,null,null,null,null,null,4.1854652541736476E-3,null,null,null,0,null,1.6598245726225814E-3,null,1.9596504729281763E-5,null,null,null,null,0,null,0,null,null,null,0,null,null,null,null,null,null,0,null,5.9900506160242325E-4,null,null,null,null,null,null,null,0,null,{"$f":"AW377*AW786+AW377*AW704","v":0},2.0165352615781184E-2,0,0,null,0,null,null,0,null,null,null,null,null,null,null,null,null,null,3.0617767303717479E-2,2.5933258625255426,6.5394111337925471,32.442431972438392,0,0,0,0,2.0565061041384776]
[null,"KEN",null,null,null,null,null,null,null,null,7.0795214130600966E-3,null,null,null,0,null,2.2990612157362286E-3,null,1.9596504729281763E-5,null,null,null,null,0,null,0,null,null,null,0,null,null,null,null,null,null,9.5232128494207816E-3,null,0,null,null,null,null,null,null,null,1.2913657984138658E-2,null,{"$f":"AW378*AW787+AW378*AW705","v":0},0,0,0,null,{"$f":"BB135*BB787+BB378*BB705","v":7.2408601132611917E-4},null,null,0,null,null,null,null,null,null,null,null,null,null,{"$f":"SUMIF($K$8:$BJ$8,BP$1,$K868:$BJ868)*$BL135*conv_fact_to_mass","v":3.9046995789389576E-2},4.5809921131630107,14.106293271452321,0,46.149341267432561,0,0,0,5.2295945064887439]
[null,"MAR",null,null,null,null,null,null,null,null,5.187113301030331E-3,null,null,null,0,null,1.9948165170729499E-3,null,1.9596504729281763E-5,null,null,null,null,0,null,0,null,null,null,0,null,null,null,null,null,null,8.9932464589050111E-3,null,0,null,null,null,null,null,null,null,4.017335489343684E-3,null,{"$f":"AW379*AW788+AW379*AW706","v":0},0,0,0,null,8.0119071253354531E-4,null,null,0,null,null,null,null,null,null,null,null,null,null,3.5289205170639167E-2,3.592247205369222,9.340905842759426,0,24.872112957382136,0,0,0,2.9833005337473737]
[null,"MAR-BEN",null,null,null,null,null,null,null,null,7.3325758980033705E-3,null,null,null,0,null,2.8031996279511049E-3,null,1.9596504729281763E-5,null,null,null,null,0,null,0,null,null,null,0,null,null,null,null,null,null,1.2628698219753777E-2,null,0,null,null,null,null,null,null,null,4.017335489343684E-3,null,{"$f":"AW380*AW789+AW380*AW707","v":0},0,0,0,null,8.0119071253354531E-4,null,null,0,null,null,null,null,null,null,null,null,null,null,3.5289205170639167E-2,5.0479760636707969,13.204435120885385,0,31.418800994297975,0,0,0,4.2071133424831668]
[null,"MAR-CAS",null,null,null,null,null,null,null,null,5.9851832884998783E-3,null,null,null,0,null,2.2100645630162377E-3,null,1.9596504729281763E-5,null,null,null,null,0,null,0,null,null,null,0,null,null,null,null,null,null,1.0191417976829212E-2,null,0,null,null,null,null,null,null,null,4.017335489343684E-3,null,{"$f":"AW381*AW790+AW381*AW708","v":0},0,0,0,null,8.0119071253354531E-4,null,null,0,null,null,null,null,null,null,null,null,null,null,3.5289205170639167E-2,3.9798639033879124,10.778062923443299,0,27.029769187906929,0,0,0,3.4031300411984327]
[null,"MAR-DAK",null,null,null,null,null,null,null,null,3.8762587245642971E-3,null,null,null,0,null,1.3587984927204743E-3,null,1.9596504729281763E-5,null,null,null,null,0,null,0,null,null,null,0,null,null,null,null,null,null,6.0582964911934994E-3,null,0,null,null,null,null,null,null,null,4.017335489343684E-3,null,{"$f":"AW382*AW791+AW382*AW709","v":0},0,0,0,null,8.0119071253354531E-4,null,null,0,null,null,null,null,null,null,null,null,null,null,3.5289205170639167E-2,2.4469118068549323,6.9803309985802295,0,19.586882095708557,0,0,0,2.1766884552878971]
[null,"MAR-DRA",null,null,null,null,null,null,null,null,5.5337380886848232E-3,null,null,null,0,null,2.020280360206057E-3,null,1.9596504729281763E-5,null,null,null,null,0,null,0,null,null,null,0,null,null,null,null,null,null,9.245613170342646E-3,null,0,null,null,null,null,null,null,null,4.017335489343684E-3,null,{"$f":"AW383*AW792+AW383*AW710","v":0},0,0,0,null,8.0119071253354531E-4,null,null,0,null,null,null,null,null,null,null,null,null,null,3.5289205170639167E-2,3.6381022594807071,9.9651045668559224,0,25.326572606242621,0,0,0,3.1374612033898273]
[null,"MAR-FES",null,null,null,null,null,null,null,null,6.6559624958583089E-3,null,null,null,0,null,2.5002035360429916E-3,null,1.9596504729281763E-5,null,null,null,null,0,null,0,null,null,null,0,null,null,null,null,null,null,1.1463385158424596E-2,null,0,null,null,null,null,null,null,null,4.017335489343684E-3,null,{"$f":"AW384*AW793+AW384*AW711","v":0},0,0,0,null,8.0119071253354531E-4,null,null,0,null,null,null,null,null,null,null,null,null,null,3.5289205170639167E-2,4.5023434929159638,11.985995940054162,0,29.320315969679083,0,0,0,3.8012496769589492]
[null,"MAR-GUE",null,null,null,null,null,null,null,null,4.9018961729157505E-3,null,null,null,0,null,1.7617476287435337E-3,null,1.9596504729281763E-5,null,null,null,null,0,null,0,null,null,null,0,null,null,null,null,null,null,7.9800363475246803E-3,null,0,null,null,null,null,null,null,null,4.017335489343684E-3,null,{"$f":"AW385*AW794+AW385*AW712","v":0},0,0,0,null,8.0119071253354531E-4,null,null,0,null,null,null,null,null,null,null,null,null,null,3.5289205170639167E-2,3.172538898567971,8.8272894662034425,0,23.047533523681405,0,0,0,2.7685685781049685]
[null,"MAR-LAA",null,null,null,null,null,null,null,null,4.2216978349890943E-3,null,null,null,0,null,1.4922767424612453E-3,null,1.9596504729281763E-5,null,null,null,null,0,null,0,null,null,null,0,null,null,null,null,null,null,6.6881672583679365E-3,null,0,null,null,null,null,null,null,null,4.017335489343684E-3,null,{"$f":"AW386*AW795+AW386*AW713","v":0},0,0,0,null,8.0119071253354531E-4,null,null,0,null,null,null,null,null,null,null,null,null,null,3.5289205170639167E-2,2.6872782092308385,7.6023945660453318,0,20.721147570132331,0,0,0,2.3751095163943434]
[null,"MAR-LOR",null,null,null,null,null,null,null,null,5.1156413921386503E-3,null,null,null,0,null,1.8483008090812761E-3,null,1.9596504729281763E-5,null,null,null,null,0,null,0,null,null,null,0,null,null,null,null,null,null,8.4008425403775174E-3,null,0,null,null,null,null,null,null,null,4.017335489343684E-3,null,{"$f":"AW387*AW796+AW387*AW714","v":0},0,0,0,null,8.0119071253354531E-4,null,null,0,null,null,null,null,null,null,null,null,null,null,3.5289205170639167E-2,3.3284030682913581,9.2121998877098488,0,23.805317438813479,0,0,0,2.8929857156854286]
[null,"MAR-MAR",null,null,null,null,null,null,null,null,6.8777074744949002E-3,null,null,null,0,null,2.5983340443920498E-3,null,1.9596504729281763E-5,null,null,null,null,0,null,0,null,null,null,0,null,null,null,null,null,null,1.1845290570097155E-2,null,0,null,null,null,null,null,null,null,4.017335489343684E-3,null,{"$f":"AW388*AW797+AW388*AW715","v":0},0,0,0,null,8.0119071253354531E-4,null,null,0,null,null,null,null,null,null,null,null,null,null,{"$f":"SUMIF($K$8:$BJ$8,BP$1,$K878:$BJ878)*$BL145*conv_fact_to_mass","v":3.5289205170639167E-2},4.6790560082582839,12.385312254609634,0,30.008047716461068,0,0,0,3.9337778307257931]
[null,"MAR-RAB",null,null,null,null,null,null,null,null,7.1312278284770651E-3,null,null,null,0,null,2.7119163188714492E-3,null,1.9596504729281763E-5,null,null,null,null,0,null,0,null,null,null,0,null,null,null,null,null,null,1.2281921855956425E-2,null,0,null,null,null,null,null,null,null,4.017335489343684E-3,null,{"$f":"AW389*AW798+AW389*AW716","v":0},0,0,0,null,8.0119071253354531E-4,null,null,0,null,null,null,null,null,null,null,null,null,null,3.5289205170639167E-2,4.8835939216884343,12.841849372335608,0,30.794329313279917,0,0,0,4.0858727413156419]
[null,"MAR-SOU",null,null,null,null,null,null,null,null,5.4883810317377692E-3,null,null,null,0,null,2.0014493881599614E-3,null,1.9596504729281763E-5,null,null,null,null,0,null,0,null,null,null,0,null,null,null,null,null,null,9.1525491096180901E-3,null,0,null,null,null,null,null,null,null,4.017335489343684E-3,null,{"$f":"AW390*AW799+AW390*AW717","v":0},0,0,0,null,8.0119071253354531E-4,null,null,0,null,null,null,null,null,null,null,null,null,null,3.5289205170639167E-2,3.6041916185129699,9.8834259965877607,0,25.158983703104482,0,0,0,3.1108673525869479]
[null,"MAR-TAN",null,null,null,null,null,null,null,null,5.4590254592029024E-3,null,null,null,0,null,1.9892845266320435E-3,null,1.9596504729281763E-5,null,null,null,null,0,null,0,null,null,null,0,null,null,null,null,null,null,9.0925038205112302E-3,null,0,null,null,null,null,null,null,null,4.017335489343684E-3,null,{"$f":"AW391*AW800+AW391*AW718","v":0},0,0,0,null,8.0119071253354531E-4,null,null,0,null,null,null,null,null,null,null,null,null,null,3.5289205170639167E-2,3.5822852479503844,9.8305627520247363,0,25.050854699688067,0,0,0,3.0936649513595418]
[null,"MEX",null,null,null,null,null,null,null,null,5.0238471432057525E-3,null,null,null,0,null,2.2396778810169758E-3,null,1.9596504729281763E-5,null,null,null,null,0,null,0,null,null,null,0,null,null,null,null,null,null,1.0269270998914575E-2,null,0,null,null,null,null,null,null,null,1.0857267266969131E-2,null,{"$f":"AW392*AW801+AW392*AW719","v":0},0,0,0,null,7.4352415213583666E-4,null,null,0,null,null,null,null,null,null,null,null,null,null,3.8026180258151875E-2,4.3459992483500711,9.7485607610161331,0,42.437921826027825,0,0,0,2.9911040164380545]
[null,"MRT",null,null,null,null,null,null,null,null,4.1789839213662054E-3,null,null,null,0,null,1.4178578844721928E-3,null,1.9596504729281763E-5,null,null,null,null,0,null,0,null,null,null,0,null,null,null,null,null,null,0,null,5.9900506160242325E-4,null,null,null,null,null,null,null,0,null,{"$f":"AW393*AW802+AW393*AW720","v":0},2.8033088382034128E-2,0,0,null,0,null,null,0,null,null,null,null,null,null,null,null,null,null,3.1463740561217354E-2,2.2764831405393497,6.70968969863761,45.971093941512862,0,0,0,0,2.2693809488765537]
[null,"NAM",null,null,null,null,null,null,null,null,3.8382772965246809E-3,null,null,null,0,null,1.2662031620543606E-3,null,1.9596504729281763E-5,null,null,null,null,0,null,0,null,null,null,0,null,null,null,null,null,null,5.6251794521113797E-3,null,0,null,null,null,null,null,null,null,1.1242506407901856E-2,null,{"$f":"AW394*AW803+AW394*AW721","v":0},0,0,0,null,7.399713603504967E-4,null,null,0,null,null,null,null,null,null,null,null,null,null,3.8208753676648818E-2,2.468809891961897,7.4837729376528568,0,34.330950689919419,0,0,0,2.3952267597254986]
[null,"NOR",null,null,null,null,null,null,null,null,4.3488861944757347E-3,null,null,null,0,null,1.7853675433892784E-3,null,1.9596504729281763E-5,null,null,null,null,0,null,0,null,null,null,0,null,null,null,null,null,null,0,null,5.9900506160242325E-4,null,null,null,null,null,null,null,0,null,{"$f":"AW395*AW804+AW395*AW722","v":0},0,1.301004129336475E-3,0,null,0,null,null,0,null,null,null,null,null,null,null,null,null,null,2.9055331738213629E-2,2.647127483418124,6.4480034994924882,2.8171042801267916,0,0,0,0,1.7599025315628869]
[null,"PER",null,null,null,null,null,null,null,null,6.6428567451632912E-3,null,null,null,0,null,3.1525819405909396E-3,null,1.9596504729281763E-5,null,null,null,null,0,null,0,null,null,null,0,null,null,null,null,null,null,1.4217664314481125E-2,null,0,null,null,null,null,null,null,null,1.249658000362633E-2,null,{"$f":"AW396*AW805+AW396*AW723","v":0},0,0,0,null,7.281262385448532E-4,null,null,0,null,null,null,null,null,null,null,null,null,null,3.8830331800582679E-2,6.2468182195140729,13.162772396497838,0,54.376857956567108,0,0,0,4.1161981755466472]
[null,"PRT",null,null,null,null,null,null,null,null,4.3445770306116058E-3,null,null,null,0,null,1.5345249379789864E-3,null,1.9596504729281763E-5,null,null,null,null,0,null,0,null,null,null,0,null,null,null,null,null,null,0,null,5.9900506160242325E-4,null,null,null,null,null,null,null,0,null,{"$f":"AW397*AW806+AW397*AW724","v":0},1.1832881922364839E-2,0,0,null,0,null,null,0,null,null,null,null,null,null,null,null,null,null,2.9816094701829748E-2,2.3347806920248582,6.6102767801519917,18.915124138568665,0,0,0,0,2.0142071444892378]
[null,"RUS",null,null,null,null,null,null,null,null,7.9119240834110063E-3,null,null,null,0,null,2.1504984432062883E-3,null,1.9596504729281763E-5,null,null,null,null,0,null,0,null,null,null,0,null,null,null,null,null,null,0,null,5.9900506160242325E-4,null,null,null,null,null,null,null,0,null,{"$f":"AW398*AW807+AW398*AW725","v":0},0,2.5798780240461217E-3,0,null,{"$f":"BB155*BB807+BB398*BB725","v":0},null,null,0,null,null,null,null,null,null,null,null,null,null,{"$f":"SUMIF($K$8:$BJ$8,BP$1,$K888:$BJ888)*$BL155*conv_fact_to_mass","v":2.9304568834903399E-2},3.2158505064490148,11.831473373534893,4.753694574027854,0,0,0,0,3.421846594101019]
[null,"SAU",null,null,null,null,null,null,null,null,5.9674766167028834E-3,null,null,null,0,null,2.6338137544633235E-3,null,1.9596504729281763E-5,null,null,null,null,0,null,0,null,null,null,0,null,null,null,null,null,null,0,null,5.9900506160242325E-4,null,null,null,null,null,null,null,0,null,{"$f":"AW399*AW808+AW399*AW726","v":0},2.5462147007412415E-2,0,0,null,0,null,null,0,null,null,null,null,null,null,null,null,null,null,3.1176602576079095E-2,4.190204621521981,9.4938178737045469,41.46138262689135,0,0,0,0,2.7426678614174032]
[null,"SWE",null,null,null,null,null,null,null,null,5.9505866626238984E-3,null,null,null,0,null,2.4008635194335019E-3,null,1.9596504729281763E-5,null,null,null,null,0,null,0,null,null,null,0,null,null,null,null,null,null,0,null,5.9900506160242325E-4,null,null,null,null,null,null,null,0,null,{"$f":"AW400*AW809+AW400*AW727","v":3.1330324230284183E-3},4.2140568312260904E-3,0,0,null,0,null,null,0,null,null,null,null,null,null,null,null,null,null,2.9302788202206536E-2,3.5900277209762685,8.8979531331010975,11.881849441466539,0,0,0,0,2.4142901516293036]
[null,"THA",null,null,null,null,null,null,null,null,6.5425879379764516E-3,null,null,null,0,null,2.6025342757498935E-3,null,1.9596504729281763E-5,null,null,null,null,0,null,0,null,null,null,0,null,null,null,null,null,null,1.1861539773264401E-2,null,0,null,null,null,null,null,null,null,1.674921631928155E-2,null,{"$f":"AW401*AW810+AW401*AW728","v":0},0,0,0,null,6.8409487504377594E-4,null,null,0,null,null,null,null,null,null,null,null,null,null,4.1329623224552914E-2,5.4888237740174839,13.798516527594151,0,61.783729784259762,0,0,0,4.0908492874998359]
[null,"TUN",null,null,null,null,null,null,null,null,{"$f":"K159*K811+K402*K729","v":6.0303490955390272E-3},null,null,null,{"$f":"O159*O811+O402*O729","v":0},null,{"$f":"Q159*Q811+Q402*Q729","v":2.4296762616688012E-3},null,{"$f":"S159*S811+S402*S729","v":1.9596504729281763E-5},null,null,null,null,{"$f":"X159*X811+X402*X729","v":0},null,{"$f":"Z159*Z811+Z402*Z729","v":0},null,null,null,{"$f":"AD159*AD811+AD402*AD729","v":0},null,null,null,null,null,null,{"$f":"AK159*AK811+AK402*AK729","v":0},null,{"$f":"AM159*AM811+AM402*AM729","v":5.9900506160242325E-4},null,null,null,null,null,null,null,0,null,{"$f":"AW402*AW811+AW402*AW729","v":7.2608372615022123E-3},7.6934339117440357E-3,0,0,null,0,null,null,0,null,null,null,null,null,null,null,null,null,null,2.9808108554133683E-2,3.6957638497138143,9.1727225310009342,23.657981501571012,0,0,0,0,3.7025905303662254]
[null,"UKR",null,null,null,null,null,null,null,null,4.2941427009391729E-3,null,null,null,0,null,1.760181811959734E-3,null,1.9596504729281763E-5,null,null,null,null,0,null,0,null,null,null,0,null,null,null,null,null,null,0,null,5.9900506160242325E-4,null,null,null,null,null,null,null,{"$f":"AU403*AU812+AU403*AU730","v":0},null,{"$f":"AW403*AW812+AW403*AW730","v":0},8.9521172629675287E-3,0,0,null,0,null,null,0,null,null,null,null,null,null,null,null,null,null,2.955811884739375E-2,2.6549460686826052,6.4770111841613351,14.406304220864055,0,0,0,0,{"$f":"(BP648+BQ648+BR648+BU648+BV648+BW648+BP893+BQ893+BR893+BU893+BV893+BW893+BP1056+BQ1056+BR1056+BU1056+BV1056+BW1056)*BI79","v":2.8037928516212558}]
[null,"URY",null,null,null,null,null,null,null,null,6.1712894795255373E-3,null,null,null,0,null,1.6491782686951031E-3,null,1.9596504729281763E-5,null,null,null,null,0,null,0,null,null,null,0,null,null,null,null,null,null,7.2849628920379885E-3,null,0,null,null,null,null,null,null,null,1.2704950235190249E-2,null,{"$f":"AW404*AW813+AW404*AW731","v":0},0,0,0,null,7.2611433245447696E-4,null,null,0,null,null,null,null,null,null,null,null,null,null,3.8937922268845231E-2,3.2768892269837071,12.262247445241981,0,41.162394931534969,0,0,0,3.5836652093164352]
[null,"USA",null,null,null,null,null,null,null,null,4.4287189021417761E-3,null,null,null,0,null,1.648315426908203E-3,null,1.9596504729281763E-5,null,null,null,null,0,null,0,null,null,null,0,null,null,null,null,null,null,7.1671949773211658E-3,null,0,null,null,null,null,null,null,null,9.2198122826057192E-3,null,{"$f":"AW405*AW814+AW405*AW732","v":0},0,0,0,null,7.5821431920496205E-4,null,null,0,null,null,null,null,null,null,null,null,null,null,3.7289434819766237E-2,3.1365160023800507,8.4272387917074845,0,32.624982433227977,0,0,0,2.2376496445429921]
[null,"VNM",null,null,null,null,null,null,null,null,6.4353176598685394E-3,null,null,null,0,null,1.8954411341663101E-3,null,1.9596504729281763E-5,null,null,null,null,0,null,0,null,null,null,0,null,null,null,null,null,null,8.6312485558056127E-3,null,0,null,null,null,null,null,null,null,1.687766710282728E-2,null,{"$f":"AW406*AW815+AW406*AW733","v":0},0,0,0,null,6.8265194760787731E-4,null,null,0,null,null,null,null,null,null,null,null,null,null,4.1416982013281235E-2,4.0059925198648783,13.60096810377955,0,55.355569752518399,0,0,0,4.3698414487957766]
[null,"ZAF",null,null,null,null,null,null,null,null,5.6096138974843284E-3,null,null,null,0,null,2.4793915681772393E-3,null,1.9596504729281763E-5,null,null,null,null,0,null,0,null,null,null,0,null,null,null,null,null,null,1.1441752284427724E-2,null,0,null,null,null,null,null,null,null,1.2105262074446024E-2,null,{"$f":"AW407*AW816+AW407*AW734","v":0},0,0,0,null,7.3186999193871098E-4,null,null,0,null,null,null,null,null,null,null,null,null,null,3.8631702005585945E-2,4.887765320407528,11.058550259230374,0,47.862342709880146,0,0,0,3.6945066932612973]
[null,"ZAF-EC",null,null,null,null,null,null,null,null,4.6483331891205328E-3,null,null,null,0,null,1.6602455387232358E-3,null,1.9596504729281763E-5,null,null,null,null,0,null,0,null,null,null,0,null,null,null,null,null,null,7.4902063834820978E-3,null,0,null,null,null,null,null,null,null,1.2105262074446024E-2,null,{"$f":"AW408*AW817+AW408*AW735","v":0},0,0,0,null,7.3186999193871098E-4,null,null,0,null,null,null,null,null,null,null,null,null,null,{"$f":"SUMIF($K$8:$BJ$8,BP$1,$K898:$BJ898)*$BL165*conv_fact_to_mass","v":3.8631702005585945E-2},3.2729362605272247,9.1635230397212251,0,40.072435998678536,0,0,0,2.8831993305506347]
[null,"ZAF-FRS",null,null,null,null,null,null,null,null,5.554919012108501E-3,null,null,null,0,null,2.0290887335113771E-3,null,1.9596504729281763E-5,null,null,null,null,0,null,0,null,null,null,0,null,null,null,null,null,null,9.2891928926019385E-3,null,0,null,null,null,null,null,null,null,1.2105262074446024E-2,null,{"$f":"AW409*AW818+AW409*AW736","v":0},0,0,0,null,7.3186999193871098E-4,null,null,0,null,null,null,null,null,null,null,null,null,null,3.8631702005585945E-2,4.0000577847321193,10.950727127388326,0,43.618880208626898,0,0,0,3.4643886211612993]
[null,"ZAF-GAU",null,null,null,null,null,null,null,null,6.5431478399651365E-3,null,null,null,0,null,2.4507076316325886E-3,null,1.9596504729281763E-5,null,null,null,null,0,null,0,null,null,null,0,null,null,null,null,null,null,1.1269087511341504E-2,null,0,null,null,null,null,null,null,null,1.2105262074446024E-2,null,{"$f":"AW410*AW819+AW410*AW737","v":0},0,0,0,null,7.3186999193871098E-4,null,null,0,null,null,null,null,null,null,null,null,null,null,3.8631702005585945E-2,4.831219048291751,12.898878704339786,0,47.5219588428142,0,0,0,4.1068300179854393]
[null,"ZAF-KWA",null,null,null,null,null,null,null,null,5.7595060058177805E-3,null,null,null,0,null,2.114652434648194E-3,null,1.9596504729281763E-5,null,null,null,null,0,null,0,null,null,null,0,null,null,null,null,null,null,9.7141243604125117E-3,null,0,null,null,null,null,null,null,null,1.2105262074446024E-2,null,{"$f":"AW411*AW820+AW411*AW738","v":0},0,0,0,null,7.3186999193871098E-4,null,null,0,null,null,null,null,null,null,null,null,null,null,3.8631702005585945E-2,4.1687343650956254,11.3540410797681,0,44.456571728825658,0,0,0,3.59660489831785]
[null,"ZAF-LIM",null,null,null,null,null,null,null,null,5.8071871818666304E-3,null,null,null,0,null,2.1347207277059863E-3,null,1.9596504729281763E-5,null,null,null,null,0,null,0,null,null,null,0,null,null,null,null,null,null,9.8142112420934579E-3,null,0,null,null,null,null,null,null,null,1.2105262074446024E-2,null,{"$f":"AW412*AW821+AW412*AW739","v":0},0,0,0,null,7.3186999193871098E-4,null,null,0,null,null,null,null,null,null,null,null,null,null,3.8631702005585945E-2,4.2082961302103481,11.448037688338948,0,44.65387867928348,0,0,0,3.6274770717908944]
[null,"ZAF-MPU",null,null,null,null,null,null,null,null,5.8071871818666304E-3,null,null,null,0,null,2.1347207277059863E-3,null,1.9596504729281763E-5,null,null,null,null,0,null,0,null,null,null,0,null,null,null,null,null,null,9.8142112420934579E-3,null,0,null,null,null,null,null,null,null,1.2105262074446024E-2,null,{"$f":"AW413*AW822+AW413*AW740","v":0},0,0,0,null,7.3186999193871098E-4,null,null,0,null,null,null,null,null,null,null,null,null,null,3.8631702005585945E-2,4.2082961302103481,11.448037688338948,0,44.65387867928348,0,0,0,3.6274770717908944]
[null,"ZAF-NC",null,null,null,null,null,null,null,null,4.6821941373773454E-3,null,null,null,0,null,1.6737272158232439E-3,null,1.9596504729281763E-5,null,null,null,null,0,null,0,null,null,null,0,null,null,null,null,null,null,7.5550407457970915E-3,null,0,null,null,null,null,null,null,null,1.2105262074446024E-2,null,{"$f":"AW414*AW823+AW414*AW741","v":0},0,0,0,null,7.3186999193871098E-4,null,null,0,null,null,null,null,null,null,null,null,null,null,3.8631702005585945E-2,3.2995134557698451,9.230275048855237,0,40.200247656893914,0,0,0,2.9047724847311414]
[null,"ZAF-NW",null,null,null,null,null,null,null,null,5.5105628801399957E-3,null,null,null,0,null,2.010653328554695E-3,null,1.9596504729281763E-5,null,null,null,null,0,null,0,null,null,null,0,null,null,null,null,null,null,9.1980181770166085E-3,null,0,null,null,null,null,null,null,null,1.2105262074446024E-2,null,{"$f":"AW415*AW824+AW415*AW742","v":0},0,0,0,null,7.3186999193871098E-4,null,null,0,null,null,null,null,null,null,null,null,null,null,3.8631702005585945E-2,3.9637150246084389,10.86328536693156,0,43.439142317018423,0,0,0,3.4357756852054155]
[null,"ZAF-WC",null,null,null,null,null,null,null,null,5.1740283944002223E-3,null,null,null,0,null,1.8721034001546732E-3,null,1.9596504729281763E-5,null,null,null,null,0,null,0,null,null,null,0,null,null,null,null,null,null,8.5170737424330387E-3,null,0,null,null,null,null,null,null,null,1.2105262074446024E-2,null,{"$f":"AW416*AW825+AW416*AW743","v":0},0,0,0,null,7.3186999193871098E-4,null,null,0,null,null,null,null,null,null,null,null,null,null,3.8631702005585945E-2,3.6905836871180782,10.199855834609114,0,42.096757904971355,0,0,0,3.2192885504564077]
[]
["speccost"]
[null,"(DEFAULT)",null,null,null,null,null,null,null,null,null,null,null,null,null,null,null,{"$f":"IF(\"SPECCOST,,\"&R$5&\",,\"=VLOOKUP(\"SPECCOST,,\"&R$5&\",,\",data[],1),VLOOKUP(\"SPECCOST,,\"&R$5&\",,\",data[],7),0)","v":1.190463995027624E-3},null,{"$f":"IF(\"SPECCOST,,\"&T$5&\",,\"=VLOOKUP(\"SPECCOST,,\"&T$5&\",,\",data[],1),VLOOKUP(\"SPECCOST,,\"&T$5&\",,\",data[],7),0)","v":0.05},{"$f":"IF(\"SPECCOST,,\"&U$5&\",,\"=VLOOKUP(\"SPECCOST,,\"&U$5&\",,\",data[],1),VLOOKUP(\"SPECCOST,,\"&U$5&\",,\",data[],7),0)","v":7.0000000000000007E-2},{"$f":"IF(\"SPECCOST,,\"&V$5&\",,\"=VLOOKUP(\"SPECCOST,,\"&V$5&\",,\",data[],1),VLOOKUP(\"SPECCOST,,\"&V$5&\",,\",data[],7),0)","v":7.0000000000000007E-2},null,null,{"$f":"IF(\"SPECCOST,,\"&Y$5&\",,\"=VLOOKUP(\"SPECCOST,,\"&Y$5&\",,\",data[],1),VLOOKUP(\"SPECCOST,,\"&Y$5&\",,\",data[],7),0)","v":1.190463995027624E-3},null,{"$f":"IF(\"SPECCOST,,\"&AA$5&\",,\"=VLOOKUP(\"SPECCOST,,\"&AA$5&\",,\",data[],1),VLOOKUP(\"SPECCOST,,\"&AA$5&\",,\",data[],7),0)","v":0.05},{"$f":"IF(\"SPECCOST,,\"&AB$5&\",,\"=VLOOKUP(\"SPECCOST,,\"&AB$5&\",,\",data[],1),VLOOKUP(\"SPECCOST,,\"&AB$5&\",,\",data[],7),0)","v":7.0000000000000007E-2},{"$f":"IF(\"SPECCOST,,\"&AC$5&\",,\"=VLOOKUP(\"SPECCOST,,\"&AC$5&\",,\",data[],1),VLOOKUP(\"SPECCOST,,\"&AC$5&\",,\",data[],7),0)","v":3.8577660276243091E-2},null,{"$f":"IF(\"SPECCOST,,\"&AE$5&\",,\"=VLOOKUP(\"SPECCOST,,\"&AE$5&\",,\",data[],1),VLOOKUP(\"SPECCOST,,\"&AE$5&\",,\",data[],7),0)","v":0.05},{"$f":"IF(\"SPECCOST,,\"&AF$5&\",,\"=VLOOKUP(\"SPECCOST,,\"&AF$5&\",,\",data[],1),VLOOKUP(\"SPECCOST,,\"&AF$5&\",,\",data[],7),0)","v":7.0000000000000007E-2},{"$f":"IF(\"SPECCOST,,\"&AG$5&\",,\"=VLOOKUP(\"SPECCOST,,\"&AG$5&\",,\",data[],1),VLOOKUP(\"SPECCOST,,\"&AG$5&\",,\",data[],7),0)","v":7.0000000000000007E-2},{"$f":"IF(\"SPECCOST,,\"&AH$5&\",,\"=VLOOKUP(\"SPECCOST,,\"&AH$5&\",,\",data[],1),VLOOKUP(\"SPECCOST,,\"&AH$5&\",,\",data[],7),0)","v":0.05},{"$f":"IF(\"SPECCOST,,\"&AI$5&\",,\"=VLOOKUP(\"SPECCOST,,\"&AI$5&\",,\",data[],1),VLOOKUP(\"SPECCOST,,\"&AI$5&\",,\",data[],7),0)","v":0.01},null,null,{"$f":"IF(\"SPECCOST,,\"&AL$5&\",,\"=VLOOKUP(\"SPECCOST,,\"&AL$5&\",,\",data[],1),VLOOKUP(\"SPECCOST,,\"&AL$5&\",,\",data[],7),0)","v":7.0000000000000007E-2},null,{"$f":"IF(\"SPECCOST,,\"&AN$5&\",,\"=VLOOKUP(\"SPECCOST,,\"&AN$5&\",,\",data[],1),VLOOKUP(\"SPECCOST,,\"&AN$5&\",,\",data[],7),0)","v":7.0000000000000007E-2},null,null,null,null,null,null,null,{"$f":"IF(\"SPECCOST,,\"&AV$5&\",,\"=VLOOKUP(\"SPECCOST,,\"&AV$5&\",,\",data[],1),VLOOKUP(\"SPECCOST,,\"&AV$5&\",,\",data[],7),0)","v":2.7940534453652541E-3},null,null,null,null,null,null,{"$f":"IF(\"SPECCOST,,\"&BC$5&\",,\"=VLOOKUP(\"SPECCOST,,\"&BC$5&\",,\",data[],1),VLOOKUP(\"SPECCOST,,\"&BC$5&\",,\",data[],7),0)","v":0.05},{"$f":"IF(\"SPECCOST,,\"&BD$5&\",,\"=VLOOKUP(\"SPECCOST,,\"&BD$5&\",,\",data[],1),VLOOKUP(\"SPECCOST,,\"&BD$5&\",,\",data[],7),0)","v":7.0000000000000007E-2},null,{"$f":"IF(\"SPECCOST,,\"&BF$5&\",,\"=VLOOKUP(\"SPECCOST,,\"&BF$5&\",,\",data[],1),VLOOKUP(\"SPECCOST,,\"&BF$5&\",,\",data[],7),0)","v":0.05},{"$f":"IF(\"SPECCOST,,\"&BG$5&\",,\"=VLOOKUP(\"SPECCOST,,\"&BG$5&\",,\",data[],1),VLOOKUP(\"SPECCOST,,\"&BG$5&\",,\",data[],7),0)","v":7.0000000000000007E-2}]
[null,"ARE",null,null,null,null,null,null,null,null,null,null,null,null,null,null,null,{"$f":"IF(\"SPECCOST,,\"&R$5&\",\"&$B910&\",\"=VLOOKUP(\"SPECCOST,,\"&R$5&\",\"&$B910&\",\",data[],1),VLOOKUP(\"SPECCOST,,\"&R$5&\",\"&$B910&\",\",data[],7),R$909)","v":1.190463995027624E-3},null,{"$f":"IF(\"SPECCOST,,\"&T$5&\",\"&$B910&\",\"=VLOOKUP(\"SPECCOST,,\"&T$5&\",\"&$B910&\",\",data[],1),VLOOKUP(\"SPECCOST,,\"&T$5&\",\"&$B910&\",\",data[],7),T$909)","v":0.05},{"$f":"IF(\"SPECCOST,,\"&U$5&\",\"&$B910&\",\"=VLOOKUP(\"SPECCOST,,\"&U$5&\",\"&$B910&\",\",data[],1),VLOOKUP(\"SPECCOST,,\"&U$5&\",\"&$B910&\",\",data[],7),U$909)","v":7.0000000000000007E-2},{"$f":"IF(\"SPECCOST,,\"&V$5&\",\"&$B910&\",\"=VLOOKUP(\"SPECCOST,,\"&V$5&\",\"&$B910&\",\",data[],1),VLOOKUP(\"SPECCOST,,\"&V$5&\",\"&$B910&\",\",data[],7),V$909)","v":7.0000000000000007E-2},null,null,{"$f":"IF(\"SPECCOST,,\"&Y$5&\",\"&$B910&\",\"=VLOOKUP(\"SPECCOST,,\"&Y$5&\",\"&$B910&\",\",data[],1),VLOOKUP(\"SPECCOST,,\"&Y$5&\",\"&$B910&\",\",data[],7),Y$909)","v":1.190463995027624E-3},null,{"$f":"IF(\"SPECCOST,,\"&AA$5&\",\"&$B910&\",\"=VLOOKUP(\"SPECCOST,,\"&AA$5&\",\"&$B910&\",\",data[],1),VLOOKUP(\"SPECCOST,,\"&AA$5&\",\"&$B910&\",\",data[],7),AA$909)","v":0.05},{"$f":"IF(\"SPECCOST,,\"&AB$5&\",\"&$B910&\",\"=VLOOKUP(\"SPECCOST,,\"&AB$5&\",\"&$B910&\",\",data[],1),VLOOKUP(\"SPECCOST,,\"&AB$5&\",\"&$B910&\",\",data[],7),AB$909)","v":7.0000000000000007E-2},{"$f":"IF(\"SPECCOST,,\"&AC$5&\",\"&$B910&\",\"=VLOOKUP(\"SPECCOST,,\"&AC$5&\",\"&$B910&\",\",data[],1),VLOOKUP(\"SPECCOST,,\"&AC$5&\",\"&$B910&\",\",data[],7),AC$909)","v":3.8577660276243091E-2},null,{"$f":"IF(\"SPECCOST,,\"&AE$5&\",\"&$B910&\",\"=VLOOKUP(\"SPECCOST,,\"&AE$5&\",\"&$B910&\",\",data[],1),VLOOKUP(\"SPECCOST,,\"&AE$5&\",\"&$B910&\",\",data[],7),AE$909)","v":0.05},{"$f":"IF(\"SPECCOST,,\"&AF$5&\",\"&$B910&\",\"=VLOOKUP(\"SPECCOST,,\"&AF$5&\",\"&$B910&\",\",data[],1),VLOOKUP(\"SPECCOST,,\"&AF$5&\",\"&$B910&\",\",data[],7),AF$909)","v":7.0000000000000007E-2},{"$f":"IF(\"SPECCOST,,\"&AG$5&\",\"&$B910&\",\"=VLOOKUP(\"SPECCOST,,\"&AG$5&\",\"&$B910&\",\",data[],1),VLOOKUP(\"SPECCOST,,\"&AG$5&\",\"&$B910&\",\",data[],7),AG$909)","v":7.0000000000000007E-2},{"$f":"IF(\"SPECCOST,,\"&AH$5&\",\"&$B910&\",\"=VLOOKUP(\"SPECCOST,,\"&AH$5&\",\"&$B910&\",\",data[],1),VLOOKUP(\"SPECCOST,,\"&AH$5&\",\"&$B910&\",\",data[],7),AH$909)","v":0.05},{"$f":"IF(\"SPECCOST,,\"&AI$5&\",\"&$B910&\",\"=VLOOKUP(\"SPECCOST,,\"&AI$5&\",\"&$B910&\",\",data[],1),VLOOKUP(\"SPECCOST,,\"&AI$5&\",\"&$B910&\",\",data[],7),AI$909)","v":0.01},null,null,{"$f":"IF(\"SPECCOST,,\"&AL$5&\",\"&$B910&\",\"=VLOOKUP(\"SPECCOST,,\"&AL$5&\",\"&$B910&\",\",data[],1),VLOOKUP(\"SPECCOST,,\"&AL$5&\",\"&$B910&\",\",data[],7),AL$909)","v":7.0000000000000007E-2},null,{"$f":"IF(\"SPECCOST,,\"&AN$5&\",\"&$B910&\",\"=VLOOKUP(\"SPECCOST,,\"&AN$5&\",\"&$B910&\",\",data[],1),VLOOKUP(\"SPECCOST,,\"&AN$5&\",\"&$B910&\",\",data[],7),AN$909)","v":7.0000000000000007E-2},null,null,null,null,null,null,null,{"$f":"IF(\"SPECCOST,,\"&AV$5&\",\"&$B910&\",\"=VLOOKUP(\"SPECCOST,,\"&AV$5&\",\"&$B910&\",\",data[],1),VLOOKUP(\"SPECCOST,,\"&AV$5&\",\"&$B910&\",\",data[],7),AV$909)","v":2.7940534453652541E-3},null,null,null,null,null,null,{"$f":"IF(\"SPECCOST,,\"&BC$5&\",\"&sel_country_code&\",\"=VLOOKUP(\"SPECCOST,,\"&BC$5&\",\"&sel_country_code&\",\",data[],1),VLOOKUP(\"SPECCOST,,\"&BC$5&\",\"&sel_country_code&\",\",data[],7),BC$909)","v":0.05},{"$f":"IF(\"SPECCOST,,\"&BD$5&\",\"&sel_country_code&\",\"=VLOOKUP(\"SPECCOST,,\"&BD$5&\",\"&sel_country_code&\",\",data[],1),VLOOKUP(\"SPECCOST,,\"&BD$5&\",\"&sel_country_code&\",\",data[],7),BD$909)","v":7.0000000000000007E-2},null,{"$f":"IF(\"SPECCOST,,\"&BF$5&\",\"&sel_country_code&\",\"=VLOOKUP(\"SPECCOST,,\"&BF$5&\",\"&sel_country_code&\",\",data[],1),VLOOKUP(\"SPECCOST,,\"&BF$5&\",\"&sel_country_code&\",\",data[],7),BF$909)","v":0.05},{"$f":"IF(\"SPECCOST,,\"&BG$5&\",\"&sel_country_code&\",\"=VLOOKUP(\"SPECCOST,,\"&BG$5&\",\"&sel_country_code&\",\",data[],1),VLOOKUP(\"SPECCOST,,\"&BG$5&\",\"&sel_country_code&\",\",data[],7),BG$909)","v":7.0000000000000007E-2}]
[null,"ARG",null,null,null,null,null,null,null,null,null,null,null,null,null,null,null,{"$f":"IF(\"SPECCOST,,\"&R$5&\",\"&$B911&\",\"=VLOOKUP(\"SPECCOST,,\"&R$5&\",\"&$B911&\",\",data[],1),VLOOKUP(\"SPECCOST,,\"&R$5&\",\"&$B911&\",\",data[],7),R$909)","v":1.190463995027624E-3},null,{"$f":"IF(\"SPECCOST,,\"&T$5&\",\"&$B911&\",\"=VLOOKUP(\"SPECCOST,,\"&T$5&\",\"&$B911&\",\",data[],1),VLOOKUP(\"SPECCOST,,\"&T$5&\",\"&$B911&\",\",data[],7),T$909)","v":0.05},{"$f":"IF(\"SPECCOST,,\"&U$5&\",\"&$B911&\",\"=VLOOKUP(\"SPECCOST,,\"&U$5&\",\"&$B911&\",\",data[],1),VLOOKUP(\"SPECCOST,,\"&U$5&\",\"&$B911&\",\",data[],7),U$909)","v":7.0000000000000007E-2},{"$f":"IF(\"SPECCOST,,\"&V$5&\",\"&$B911&\",\"=VLOOKUP(\"SPECCOST,,\"&V$5&\",\"&$B911&\",\",data[],1),VLOOKUP(\"SPECCOST,,\"&V$5&\",\"&$B911&\",\",data[],7),V$909)","v":7.0000000000000007E-2},null,null,{"$f":"IF(\"SPECCOST,,\"&Y$5&\",\"&$B911&\",\"=VLOOKUP(\"SPECCOST,,\"&Y$5&\",\"&$B911&\",\",data[],1),VLOOKUP(\"SPECCOST,,\"&Y$5&\",\"&$B911&\",\",data[],7),Y$909)","v":1.190463995027624E-3},null,{"$f":"IF(\"SPECCOST,,\"&AA$5&\",\"&$B911&\",\"=VLOOKUP(\"SPECCOST,,\"&AA$5&\",\"&$B911&\",\",data[],1),VLOOKUP(\"SPECCOST,,\"&AA$5&\",\"&$B911&\",\",data[],7),AA$909)","v":0.05},{"$f":"IF(\"SPECCOST,,\"&AB$5&\",\"&$B911&\",\"=VLOOKUP(\"SPECCOST,,\"&AB$5&\",\"&$B911&\",\",data[],1),VLOOKUP(\"SPECCOST,,\"&AB$5&\",\"&$B911&\",\",data[],7),AB$909)","v":7.0000000000000007E-2},{"$f":"IF(\"SPECCOST,,\"&AC$5&\",\"&$B911&\",\"=VLOOKUP(\"SPECCOST,,\"&AC$5&\",\"&$B911&\",\",data[],1),VLOOKUP(\"SPECCOST,,\"&AC$5&\",\"&$B911&\",\",data[],7),AC$909)","v":3.8577660276243091E-2},null,{"$f":"IF(\"SPECCOST,,\"&AE$5&\",\"&$B911&\",\"=VLOOKUP(\"SPECCOST,,\"&AE$5&\",\"&$B911&\",\",data[],1),VLOOKUP(\"SPECCOST,,\"&AE$5&\",\"&$B911&\",\",data[],7),AE$909)","v":0.05},{"$f":"IF(\"SPECCOST,,\"&AF$5&\",\"&$B911&\",\"=VLOOKUP(\"SPECCOST,,\"&AF$5&\",\"&$B911&\",\",data[],1),VLOOKUP(\"SPECCOST,,\"&AF$5&\",\"&$B911&\",\",data[],7),AF$909)","v":7.0000000000000007E-2},{"$f":"IF(\"SPECCOST,,\"&AG$5&\",\"&$B911&\",\"=VLOOKUP(\"SPECCOST,,\"&AG$5&\",\"&$B911&\",\",data[],1),VLOOKUP(\"SPECCOST,,\"&AG$5&\",\"&$B911&\",\",data[],7),AG$909)","v":7.0000000000000007E-2},{"$f":"IF(\"SPECCOST,,\"&AH$5&\",\"&$B911&\",\"=VLOOKUP(\"SPECCOST,,\"&AH$5&\",\"&$B911&\",\",data[],1),VLOOKUP(\"SPECCOST,,\"&AH$5&\",\"&$B911&\",\",data[],7),AH$909)","v":0.05},{"$f":"IF(\"SPECCOST,,\"&AI$5&\",\"&$B911&\",\"=VLOOKUP(\"SPECCOST,,\"&AI$5&\",\"&$B911&\",\",data[],1),VLOOKUP(\"SPECCOST,,\"&AI$5&\",\"&$B911&\",\",data[],7),AI$909)","v":0.01},null,null,{"$f":"IF(\"SPECCOST,,\"&AL$5&\",\"&$B911&\",\"=VLOOKUP(\"SPECCOST,,\"&AL$5&\",\"&$B911&\",\",data[],1),VLOOKUP(\"SPECCOST,,\"&AL$5&\",\"&$B911&\",\",data[],7),AL$909)","v":7.0000000000000007E-2},null,{"$f":"IF(\"SPECCOST,,\"&AN$5&\",\"&$B911&\",\"=VLOOKUP(\"SPECCOST,,\"&AN$5&\",\"&$B911&\",\",data[],1),VLOOKUP(\"SPECCOST,,\"&AN$5&\",\"&$B911&\",\",data[],7),AN$909)","v":7.0000000000000007E-2},null,null,null,null,null,null,null,{"$f":"IF(\"SPECCOST,,\"&AV$5&\",\"&$B911&\",\"=VLOOKUP(\"SPECCOST,,\"&AV$5&\",\"&$B911&\",\",data[],1),VLOOKUP(\"SPECCOST,,\"&AV$5&\",\"&$B911&\",\",data[],7),AV$909)","v":2.7940534453652541E-3},null,null,null,null,null,null,{"$f":"IF(\"SPECCOST,,\"&BC$5&\",\"&sel_country_code&\",\"=VLOOKUP(\"SPECCOST,,\"&BC$5&\",\"&sel_country_code&\",\",data[],1),VLOOKUP(\"SPECCOST,,\"&BC$5&\",\"&sel_country_code&\",\",data[],7),BC$909)","v":0.05},{"$f":"IF(\"SPECCOST,,\"&BD$5&\",\"&sel_country_code&\",\"=VLOOKUP(\"SPECCOST,,\"&BD$5&\",\"&sel_country_code&\",\",data[],1),VLOOKUP(\"SPECCOST,,\"&BD$5&\",\"&sel_country_code&\",\",data[],7),BD$909)","v":7.0000000000000007E-2},null,{"$f":"IF(\"SPECCOST,,\"&BF$5&\",\"&sel_country_code&\",\"=VLOOKUP(\"SPECCOST,,\"&BF$5&\",\"&sel_country_code&\",\",data[],1),VLOOKUP(\"SPECCOST,,\"&BF$5&\",\"&sel_country_code&\",\",data[],7),BF$909)","v":0.05},{"$f":"IF(\"SPECCOST,,\"&BG$5&\",\"&sel_country_code&\",\"=VLOOKUP(\"SPECCOST,,\"&BG$5&\",\"&sel_country_code&\",\",data[],1),VLOOKUP(\"SPECCOST,,\"&BG$5&\",\"&sel_country_code&\",\",data[],7),BG$909)","v":7.0000000000000007E-2}]
[null,"ARG-BA",null,null,null,null,null,null,null,null,null,null,null,null,null,null,null,{"$f":"IF(\"SPECCOST,,\"&R$5&\",\"&$B912&\",\"=VLOOKUP(\"SPECCOST,,\"&R$5&\",\"&$B912&\",\",data[],1),VLOOKUP(\"SPECCOST,,\"&R$5&\",\"&$B912&\",\",data[],7),R$909)","v":1.190463995027624E-3},null,{"$f":"IF(\"SPECCOST,,\"&T$5&\",\"&$B912&\",\"=VLOOKUP(\"SPECCOST,,\"&T$5&\",\"&$B912&\",\",data[],1),VLOOKUP(\"SPECCOST,,\"&T$5&\",\"&$B912&\",\",data[],7),T$909)","v":0.05},{"$f":"IF(\"SPECCOST,,\"&U$5&\",\"&$B912&\",\"=VLOOKUP(\"SPECCOST,,\"&U$5&\",\"&$B912&\",\",data[],1),VLOOKUP(\"SPECCOST,,\"&U$5&\",\"&$B912&\",\",data[],7),U$909)","v":7.0000000000000007E-2},{"$f":"IF(\"SPECCOST,,\"&V$5&\",\"&$B912&\",\"=VLOOKUP(\"SPECCOST,,\"&V$5&\",\"&$B912&\",\",data[],1),VLOOKUP(\"SPECCOST,,\"&V$5&\",\"&$B912&\",\",data[],7),V$909)","v":7.0000000000000007E-2},null,null,{"$f":"IF(\"SPECCOST,,\"&Y$5&\",\"&$B912&\",\"=VLOOKUP(\"SPECCOST,,\"&Y$5&\",\"&$B912&\",\",data[],1),VLOOKUP(\"SPECCOST,,\"&Y$5&\",\"&$B912&\",\",data[],7),Y$909)","v":1.190463995027624E-3},null,{"$f":"IF(\"SPECCOST,,\"&AA$5&\",\"&$B912&\",\"=VLOOKUP(\"SPECCOST,,\"&AA$5&\",\"&$B912&\",\",data[],1),VLOOKUP(\"SPECCOST,,\"&AA$5&\",\"&$B912&\",\",data[],7),AA$909)","v":0.05},{"$f":"IF(\"SPECCOST,,\"&AB$5&\",\"&$B912&\",\"=VLOOKUP(\"SPECCOST,,\"&AB$5&\",\"&$B912&\",\",data[],1),VLOOKUP(\"SPECCOST,,\"&AB$5&\",\"&$B912&\",\",data[],7),AB$909)","v":7.0000000000000007E-2},{"$f":"IF(\"SPECCOST,,\"&AC$5&\",\"&$B912&\",\"=VLOOKUP(\"SPECCOST,,\"&AC$5&\",\"&$B912&\",\",data[],1),VLOOKUP(\"SPECCOST,,\"&AC$5&\",\"&$B912&\",\",data[],7),AC$909)","v":3.8577660276243091E-2},null,{"$f":"IF(\"SPECCOST,,\"&AE$5&\",\"&$B912&\",\"=VLOOKUP(\"SPECCOST,,\"&AE$5&\",\"&$B912&\",\",data[],1),VLOOKUP(\"SPECCOST,,\"&AE$5&\",\"&$B912&\",\",data[],7),AE$909)","v":0.05},{"$f":"IF(\"SPECCOST,,\"&AF$5&\",\"&$B912&\",\"=VLOOKUP(\"SPECCOST,,\"&AF$5&\",\"&$B912&\",\",data[],1),VLOOKUP(\"SPECCOST,,\"&AF$5&\",\"&$B912&\",\",data[],7),AF$909)","v":7.0000000000000007E-2},{"$f":"IF(\"SPECCOST,,\"&AG$5&\",\"&$B912&\",\"=VLOOKUP(\"SPECCOST,,\"&AG$5&\",\"&$B912&\",\",data[],1),VLOOKUP(\"SPECCOST,,\"&AG$5&\",\"&$B912&\",\",data[],7),AG$909)","v":7.0000000000000007E-2},{"$f":"IF(\"SPECCOST,,\"&AH$5&\",\"&$B912&\",\"=VLOOKUP(\"SPECCOST,,\"&AH$5&\",\"&$B912&\",\",data[],1),VLOOKUP(\"SPECCOST,,\"&AH$5&\",\"&$B912&\",\",data[],7),AH$909)","v":0.05},{"$f":"IF(\"SPECCOST,,\"&AI$5&\",\"&$B912&\",\"=VLOOKUP(\"SPECCOST,,\"&AI$5&\",\"&$B912&\",\",data[],1),VLOOKUP(\"SPECCOST,,\"&AI$5&\",\"&$B912&\",\",data[],7),AI$909)","v":0.01},null,null,{"$f":"IF(\"SPECCOST,,\"&AL$5&\",\"&$B912&\",\"=VLOOKUP(\"SPECCOST,,\"&AL$5&\",\"&$B912&\",\",data[],1),VLOOKUP(\"SPECCOST,,\"&AL$5&\",\"&$B912&\",\",data[],7),AL$909)","v":7.0000000000000007E-2},null,{"$f":"IF(\"SPECCOST,,\"&AN$5&\",\"&$B912&\",\"=VLOOKUP(\"SPECCOST,,\"&AN$5&\",\"&$B912&\",\",data[],1),VLOOKUP(\"SPECCOST,,\"&AN$5&\",\"&$B912&\",\",data[],7),AN$909)","v":7.0000000000000007E-2},null,null,null,null,null,null,null,{"$f":"IF(\"SPECCOST,,\"&AV$5&\",\"&$B912&\",\"=VLOOKUP(\"SPECCOST,,\"&AV$5&\",\"&$B912&\",\",data[],1),VLOOKUP(\"SPECCOST,,\"&AV$5&\",\"&$B912&\",\",data[],7),AV$909)","v":2.7940534453652541E-3},null,null,null,null,null,null,{"$f":"IF(\"SPECCOST,,\"&BC$5&\",\"&sel_country_code&\",\"=VLOOKUP(\"SPECCOST,,\"&BC$5&\",\"&sel_country_code&\",\",data[],1),VLOOKUP(\"SPECCOST,,\"&BC$5&\",\"&sel_country_code&\",\",data[],7),BC$909)","v":0.05},{"$f":"IF(\"SPECCOST,,\"&BD$5&\",\"&sel_country_code&\",\"=VLOOKUP(\"SPECCOST,,\"&BD$5&\",\"&sel_country_code&\",\",data[],1),VLOOKUP(\"SPECCOST,,\"&BD$5&\",\"&sel_country_code&\",\",data[],7),BD$909)","v":7.0000000000000007E-2},null,{"$f":"IF(\"SPECCOST,,\"&BF$5&\",\"&sel_country_code&\",\"=VLOOKUP(\"SPECCOST,,\"&BF$5&\",\"&sel_country_code&\",\",data[],1),VLOOKUP(\"SPECCOST,,\"&BF$5&\",\"&sel_country_code&\",\",data[],7),BF$909)","v":0.05},{"$f":"IF(\"SPECCOST,,\"&BG$5&\",\"&sel_country_code&\",\"=VLOOKUP(\"SPECCOST,,\"&BG$5&\",\"&sel_country_code&\",\",data[],1),VLOOKUP(\"SPECCOST,,\"&BG$5&\",\"&sel_country_code&\",\",data[],7),BG$909)","v":7.0000000000000007E-2}]
[null,"ARG-CAT",null,null,null,null,null,null,null,null,null,null,null,null,null,null,null,{"$f":"IF(\"SPECCOST,,\"&R$5&\",\"&$B913&\",\"=VLOOKUP(\"SPECCOST,,\"&R$5&\",\"&$B913&\",\",data[],1),VLOOKUP(\"SPECCOST,,\"&R$5&\",\"&$B913&\",\",data[],7),R$909)","v":1.190463995027624E-3},null,{"$f":"IF(\"SPECCOST,,\"&T$5&\",\"&$B913&\",\"=VLOOKUP(\"SPECCOST,,\"&T$5&\",\"&$B913&\",\",data[],1),VLOOKUP(\"SPECCOST,,\"&T$5&\",\"&$B913&\",\",data[],7),T$909)","v":0.05},{"$f":"IF(\"SPECCOST,,\"&U$5&\",\"&$B913&\",\"=VLOOKUP(\"SPECCOST,,\"&U$5&\",\"&$B913&\",\",data[],1),VLOOKUP(\"SPECCOST,,\"&U$5&\",\"&$B913&\",\",data[],7),U$909)","v":7.0000000000000007E-2},{"$f":"IF(\"SPECCOST,,\"&V$5&\",\"&$B913&\",\"=VLOOKUP(\"SPECCOST,,\"&V$5&\",\"&$B913&\",\",data[],1),VLOOKUP(\"SPECCOST,,\"&V$5&\",\"&$B913&\",\",data[],7),V$909)","v":7.0000000000000007E-2},null,null,{"$f":"IF(\"SPECCOST,,\"&Y$5&\",\"&$B913&\",\"=VLOOKUP(\"SPECCOST,,\"&Y$5&\",\"&$B913&\",\",data[],1),VLOOKUP(\"SPECCOST,,\"&Y$5&\",\"&$B913&\",\",data[],7),Y$909)","v":1.190463995027624E-3},null,{"$f":"IF(\"SPECCOST,,\"&AA$5&\",\"&$B913&\",\"=VLOOKUP(\"SPECCOST,,\"&AA$5&\",\"&$B913&\",\",data[],1),VLOOKUP(\"SPECCOST,,\"&AA$5&\",\"&$B913&\",\",data[],7),AA$909)","v":0.05},{"$f":"IF(\"SPECCOST,,\"&AB$5&\",\"&$B913&\",\"=VLOOKUP(\"SPECCOST,,\"&AB$5&\",\"&$B913&\",\",data[],1),VLOOKUP(\"SPECCOST,,\"&AB$5&\",\"&$B913&\",\",data[],7),AB$909)","v":7.0000000000000007E-2},{"$f":"IF(\"SPECCOST,,\"&AC$5&\",\"&$B913&\",\"=VLOOKUP(\"SPECCOST,,\"&AC$5&\",\"&$B913&\",\",data[],1),VLOOKUP(\"SPECCOST,,\"&AC$5&\",\"&$B913&\",\",data[],7),AC$909)","v":3.8577660276243091E-2},null,{"$f":"IF(\"SPECCOST,,\"&AE$5&\",\"&$B913&\",\"=VLOOKUP(\"SPECCOST,,\"&AE$5&\",\"&$B913&\",\",data[],1),VLOOKUP(\"SPECCOST,,\"&AE$5&\",\"&$B913&\",\",data[],7),AE$909)","v":0.05},{"$f":"IF(\"SPECCOST,,\"&AF$5&\",\"&$B913&\",\"=VLOOKUP(\"SPECCOST,,\"&AF$5&\",\"&$B913&\",\",data[],1),VLOOKUP(\"SPECCOST,,\"&AF$5&\",\"&$B913&\",\",data[],7),AF$909)","v":7.0000000000000007E-2},{"$f":"IF(\"SPECCOST,,\"&AG$5&\",\"&$B913&\",\"=VLOOKUP(\"SPECCOST,,\"&AG$5&\",\"&$B913&\",\",data[],1),VLOOKUP(\"SPECCOST,,\"&AG$5&\",\"&$B913&\",\",data[],7),AG$909)","v":7.0000000000000007E-2},{"$f":"IF(\"SPECCOST,,\"&AH$5&\",\"&$B913&\",\"=VLOOKUP(\"SPECCOST,,\"&AH$5&\",\"&$B913&\",\",data[],1),VLOOKUP(\"SPECCOST,,\"&AH$5&\",\"&$B913&\",\",data[],7),AH$909)","v":0.05},{"$f":"IF(\"SPECCOST,,\"&AI$5&\",\"&$B913&\",\"=VLOOKUP(\"SPECCOST,,\"&AI$5&\",\"&$B913&\",\",data[],1),VLOOKUP(\"SPECCOST,,\"&AI$5&\",\"&$B913&\",\",data[],7),AI$909)","v":0.01},null,null,{"$f":"IF(\"SPECCOST,,\"&AL$5&\",\"&$B913&\",\"=VLOOKUP(\"SPECCOST,,\"&AL$5&\",\"&$B913&\",\",data[],1),VLOOKUP(\"SPECCOST,,\"&AL$5&\",\"&$B913&\",\",data[],7),AL$909)","v":7.0000000000000007E-2},null,{"$f":"IF(\"SPECCOST,,\"&AN$5&\",\"&$B913&\",\"=VLOOKUP(\"SPECCOST,,\"&AN$5&\",\"&$B913&\",\",data[],1),VLOOKUP(\"SPECCOST,,\"&AN$5&\",\"&$B913&\",\",data[],7),AN$909)","v":7.0000000000000007E-2},null,null,null,null,null,null,null,{"$f":"IF(\"SPECCOST,,\"&AV$5&\",\"&$B913&\",\"=VLOOKUP(\"SPECCOST,,\"&AV$5&\",\"&$B913&\",\",data[],1),VLOOKUP(\"SPECCOST,,\"&AV$5&\",\"&$B913&\",\",data[],7),AV$909)","v":2.7940534453652541E-3},null,null,null,null,null,null,{"$f":"IF(\"SPECCOST,,\"&BC$5&\",\"&sel_country_code&\",\"=VLOOKUP(\"SPECCOST,,\"&BC$5&\",\"&sel_country_code&\",\",data[],1),VLOOKUP(\"SPECCOST,,\"&BC$5&\",\"&sel_country_code&\",\",data[],7),BC$909)","v":0.05},{"$f":"IF(\"SPECCOST,,\"&BD$5&\",\"&sel_country_code&\",\"=VLOOKUP(\"SPECCOST,,\"&BD$5&\",\"&sel_country_code&\",\",data[],1),VLOOKUP(\"SPECCOST,,\"&BD$5&\",\"&sel_country_code&\",\",data[],7),BD$909)","v":7.0000000000000007E-2},null,{"$f":"IF(\"SPECCOST,,\"&BF$5&\",\"&sel_country_code&\",\"=VLOOKUP(\"SPECCOST,,\"&BF$5&\",\"&sel_country_code&\",\",data[],1),VLOOKUP(\"SPECCOST,,\"&BF$5&\",\"&sel_country_code&\",\",data[],7),BF$909)","v":0.05},{"$f":"IF(\"SPECCOST,,\"&BG$5&\",\"&sel_country_code&\",\"=VLOOKUP(\"SPECCOST,,\"&BG$5&\",\"&sel_country_code&\",\",data[],1),VLOOKUP(\"SPECCOST,,\"&BG$5&\",\"&sel_country_code&\",\",data[],7),BG$909)","v":7.0000000000000007E-2}]
[null,"ARG-CBA",null,null,null,null,null,null,null,null,null,null,null,null,null,null,null,{"$f":"IF(\"SPECCOST,,\"&R$5&\",\"&$B914&\",\"=VLOOKUP(\"SPECCOST,,\"&R$5&\",\"&$B914&\",\",data[],1),VLOOKUP(\"SPECCOST,,\"&R$5&\",\"&$B914&\",\",data[],7),R$909)","v":1.190463995027624E-3},null,{"$f":"IF(\"SPECCOST,,\"&T$5&\",\"&$B914&\",\"=VLOOKUP(\"SPECCOST,,\"&T$5&\",\"&$B914&\",\",data[],1),VLOOKUP(\"SPECCOST,,\"&T$5&\",\"&$B914&\",\",data[],7),T$909)","v":0.05},{"$f":"IF(\"SPECCOST,,\"&U$5&\",\"&$B914&\",\"=VLOOKUP(\"SPECCOST,,\"&U$5&\",\"&$B914&\",\",data[],1),VLOOKUP(\"SPECCOST,,\"&U$5&\",\"&$B914&\",\",data[],7),U$909)","v":7.0000000000000007E-2},{"$f":"IF(\"SPECCOST,,\"&V$5&\",\"&$B914&\",\"=VLOOKUP(\"SPECCOST,,\"&V$5&\",\"&$B914&\",\",data[],1),VLOOKUP(\"SPECCOST,,\"&V$5&\",\"&$B914&\",\",data[],7),V$909)","v":7.0000000000000007E-2},null,null,{"$f":"IF(\"SPECCOST,,\"&Y$5&\",\"&$B914&\",\"=VLOOKUP(\"SPECCOST,,\"&Y$5&\",\"&$B914&\",\",data[],1),VLOOKUP(\"SPECCOST,,\"&Y$5&\",\"&$B914&\",\",data[],7),Y$909)","v":1.190463995027624E-3},null,{"$f":"IF(\"SPECCOST,,\"&AA$5&\",\"&$B914&\",\"=VLOOKUP(\"SPECCOST,,\"&AA$5&\",\"&$B914&\",\",data[],1),VLOOKUP(\"SPECCOST,,\"&AA$5&\",\"&$B914&\",\",data[],7),AA$909)","v":0.05},{"$f":"IF(\"SPECCOST,,\"&AB$5&\",\"&$B914&\",\"=VLOOKUP(\"SPECCOST,,\"&AB$5&\",\"&$B914&\",\",data[],1),VLOOKUP(\"SPECCOST,,\"&AB$5&\",\"&$B914&\",\",data[],7),AB$909)","v":7.0000000000000007E-2},{"$f":"IF(\"SPECCOST,,\"&AC$5&\",\"&$B914&\",\"=VLOOKUP(\"SPECCOST,,\"&AC$5&\",\"&$B914&\",\",data[],1),VLOOKUP(\"SPECCOST,,\"&AC$5&\",\"&$B914&\",\",data[],7),AC$909)","v":3.8577660276243091E-2},null,{"$f":"IF(\"SPECCOST,,\"&AE$5&\",\"&$B914&\",\"=VLOOKUP(\"SPECCOST,,\"&AE$5&\",\"&$B914&\",\",data[],1),VLOOKUP(\"SPECCOST,,\"&AE$5&\",\"&$B914&\",\",data[],7),AE$909)","v":0.05},{"$f":"IF(\"SPECCOST,,\"&AF$5&\",\"&$B914&\",\"=VLOOKUP(\"SPECCOST,,\"&AF$5&\",\"&$B914&\",\",data[],1),VLOOKUP(\"SPECCOST,,\"&AF$5&\",\"&$B914&\",\",data[],7),AF$909)","v":7.0000000000000007E-2},{"$f":"IF(\"SPECCOST,,\"&AG$5&\",\"&$B914&\",\"=VLOOKUP(\"SPECCOST,,\"&AG$5&\",\"&$B914&\",\",data[],1),VLOOKUP(\"SPECCOST,,\"&AG$5&\",\"&$B914&\",\",data[],7),AG$909)","v":7.0000000000000007E-2},{"$f":"IF(\"SPECCOST,,\"&AH$5&\",\"&$B914&\",\"=VLOOKUP(\"SPECCOST,,\"&AH$5&\",\"&$B914&\",\",data[],1),VLOOKUP(\"SPECCOST,,\"&AH$5&\",\"&$B914&\",\",data[],7),AH$909)","v":0.05},{"$f":"IF(\"SPECCOST,,\"&AI$5&\",\"&$B914&\",\"=VLOOKUP(\"SPECCOST,,\"&AI$5&\",\"&$B914&\",\",data[],1),VLOOKUP(\"SPECCOST,,\"&AI$5&\",\"&$B914&\",\",data[],7),AI$909)","v":0.01},null,null,{"$f":"IF(\"SPECCOST,,\"&AL$5&\",\"&$B914&\",\"=VLOOKUP(\"SPECCOST,,\"&AL$5&\",\"&$B914&\",\",data[],1),VLOOKUP(\"SPECCOST,,\"&AL$5&\",\"&$B914&\",\",data[],7),AL$909)","v":7.0000000000000007E-2},null,{"$f":"IF(\"SPECCOST,,\"&AN$5&\",\"&$B914&\",\"=VLOOKUP(\"SPECCOST,,\"&AN$5&\",\"&$B914&\",\",data[],1),VLOOKUP(\"SPECCOST,,\"&AN$5&\",\"&$B914&\",\",data[],7),AN$909)","v":7.0000000000000007E-2},null,null,null,null,null,null,null,{"$f":"IF(\"SPECCOST,,\"&AV$5&\",\"&$B914&\",\"=VLOOKUP(\"SPECCOST,,\"&AV$5&\",\"&$B914&\",\",data[],1),VLOOKUP(\"SPECCOST,,\"&AV$5&\",\"&$B914&\",\",data[],7),AV$909)","v":2.7940534453652541E-3},null,null,null,null,null,null,{"$f":"IF(\"SPECCOST,,\"&BC$5&\",\"&sel_country_code&\",\"=VLOOKUP(\"SPECCOST,,\"&BC$5&\",\"&sel_country_code&\",\",data[],1),VLOOKUP(\"SPECCOST,,\"&BC$5&\",\"&sel_country_code&\",\",data[],7),BC$909)","v":0.05},{"$f":"IF(\"SPECCOST,,\"&BD$5&\",\"&sel_country_code&\",\"=VLOOKUP(\"SPECCOST,,\"&BD$5&\",\"&sel_country_code&\",\",data[],1),VLOOKUP(\"SPECCOST,,\"&BD$5&\",\"&sel_country_code&\",\",data[],7),BD$909)","v":7.0000000000000007E-2},null,{"$f":"IF(\"SPECCOST,,\"&BF$5&\",\"&sel_country_code&\",\"=VLOOKUP(\"SPECCOST,,\"&BF$5&\",\"&sel_country_code&\",\",data[],1),VLOOKUP(\"SPECCOST,,\"&BF$5&\",\"&sel_country_code&\",\",data[],7),BF$909)","v":0.05},{"$f":"IF(\"SPECCOST,,\"&BG$5&\",\"&sel_country_code&\",\"=VLOOKUP(\"SPECCOST,,\"&BG$5&\",\"&sel_country_code&\",\",data[],1),VLOOKUP(\"SPECCOST,,\"&BG$5&\",\"&sel_country_code&\",\",data[],7),BG$909)","v":7.0000000000000007E-2}]
[null,"ARG-CHA",null,null,null,null,null,null,null,null,null,null,null,null,null,null,null,{"$f":"IF(\"SPECCOST,,\"&R$5&\",\"&$B915&\",\"=VLOOKUP(\"SPECCOST,,\"&R$5&\",\"&$B915&\",\",data[],1),VLOOKUP(\"SPECCOST,,\"&R$5&\",\"&$B915&\",\",data[],7),R$909)","v":1.190463995027624E-3},null,{"$f":"IF(\"SPECCOST,,\"&T$5&\",\"&$B915&\",\"=VLOOKUP(\"SPECCOST,,\"&T$5&\",\"&$B915&\",\",data[],1),VLOOKUP(\"SPECCOST,,\"&T$5&\",\"&$B915&\",\",data[],7),T$909)","v":0.05},{"$f":"IF(\"SPECCOST,,\"&U$5&\",\"&$B915&\",\"=VLOOKUP(\"SPECCOST,,\"&U$5&\",\"&$B915&\",\",data[],1),VLOOKUP(\"SPECCOST,,\"&U$5&\",\"&$B915&\",\",data[],7),U$909)","v":7.0000000000000007E-2},{"$f":"IF(\"SPECCOST,,\"&V$5&\",\"&$B915&\",\"=VLOOKUP(\"SPECCOST,,\"&V$5&\",\"&$B915&\",\",data[],1),VLOOKUP(\"SPECCOST,,\"&V$5&\",\"&$B915&\",\",data[],7),V$909)","v":7.0000000000000007E-2},null,null,{"$f":"IF(\"SPECCOST,,\"&Y$5&\",\"&$B915&\",\"=VLOOKUP(\"SPECCOST,,\"&Y$5&\",\"&$B915&\",\",data[],1),VLOOKUP(\"SPECCOST,,\"&Y$5&\",\"&$B915&\",\",data[],7),Y$909)","v":1.190463995027624E-3},null,{"$f":"IF(\"SPECCOST,,\"&AA$5&\",\"&$B915&\",\"=VLOOKUP(\"SPECCOST,,\"&AA$5&\",\"&$B915&\",\",data[],1),VLOOKUP(\"SPECCOST,,\"&AA$5&\",\"&$B915&\",\",data[],7),AA$909)","v":0.05},{"$f":"IF(\"SPECCOST,,\"&AB$5&\",\"&$B915&\",\"=VLOOKUP(\"SPECCOST,,\"&AB$5&\",\"&$B915&\",\",data[],1),VLOOKUP(\"SPECCOST,,\"&AB$5&\",\"&$B915&\",\",data[],7),AB$909)","v":7.0000000000000007E-2},{"$f":"IF(\"SPECCOST,,\"&AC$5&\",\"&$B915&\",\"=VLOOKUP(\"SPECCOST,,\"&AC$5&\",\"&$B915&\",\",data[],1),VLOOKUP(\"SPECCOST,,\"&AC$5&\",\"&$B915&\",\",data[],7),AC$909)","v":3.8577660276243091E-2},null,{"$f":"IF(\"SPECCOST,,\"&AE$5&\",\"&$B915&\",\"=VLOOKUP(\"SPECCOST,,\"&AE$5&\",\"&$B915&\",\",data[],1),VLOOKUP(\"SPECCOST,,\"&AE$5&\",\"&$B915&\",\",data[],7),AE$909)","v":0.05},{"$f":"IF(\"SPECCOST,,\"&AF$5&\",\"&$B915&\",\"=VLOOKUP(\"SPECCOST,,\"&AF$5&\",\"&$B915&\",\",data[],1),VLOOKUP(\"SPECCOST,,\"&AF$5&\",\"&$B915&\",\",data[],7),AF$909)","v":7.0000000000000007E-2},{"$f":"IF(\"SPECCOST,,\"&AG$5&\",\"&$B915&\",\"=VLOOKUP(\"SPECCOST,,\"&AG$5&\",\"&$B915&\",\",data[],1),VLOOKUP(\"SPECCOST,,\"&AG$5&\",\"&$B915&\",\",data[],7),AG$909)","v":7.0000000000000007E-2},{"$f":"IF(\"SPECCOST,,\"&AH$5&\",\"&$B915&\",\"=VLOOKUP(\"SPECCOST,,\"&AH$5&\",\"&$B915&\",\",data[],1),VLOOKUP(\"SPECCOST,,\"&AH$5&\",\"&$B915&\",\",data[],7),AH$909)","v":0.05},{"$f":"IF(\"SPECCOST,,\"&AI$5&\",\"&$B915&\",\"=VLOOKUP(\"SPECCOST,,\"&AI$5&\",\"&$B915&\",\",data[],1),VLOOKUP(\"SPECCOST,,\"&AI$5&\",\"&$B915&\",\",data[],7),AI$909)","v":0.01},null,null,{"$f":"IF(\"SPECCOST,,\"&AL$5&\",\"&$B915&\",\"=VLOOKUP(\"SPECCOST,,\"&AL$5&\",\"&$B915&\",\",data[],1),VLOOKUP(\"SPECCOST,,\"&AL$5&\",\"&$B915&\",\",data[],7),AL$909)","v":7.0000000000000007E-2},null,{"$f":"IF(\"SPECCOST,,\"&AN$5&\",\"&$B915&\",\"=VLOOKUP(\"SPECCOST,,\"&AN$5&\",\"&$B915&\",\",data[],1),VLOOKUP(\"SPECCOST,,\"&AN$5&\",\"&$B915&\",\",data[],7),AN$909)","v":7.0000000000000007E-2},null,null,null,null,null,null,null,{"$f":"IF(\"SPECCOST,,\"&AV$5&\",\"&$B915&\",\"=VLOOKUP(\"SPECCOST,,\"&AV$5&\",\"&$B915&\",\",data[],1),VLOOKUP(\"SPECCOST,,\"&AV$5&\",\"&$B915&\",\",data[],7),AV$909)","v":2.7940534453652541E-3},null,null,null,null,null,null,{"$f":"IF(\"SPECCOST,,\"&BC$5&\",\"&sel_country_code&\",\"=VLOOKUP(\"SPECCOST,,\"&BC$5&\",\"&sel_country_code&\",\",data[],1),VLOOKUP(\"SPECCOST,,\"&BC$5&\",\"&sel_country_code&\",\",data[],7),BC$909)","v":0.05},{"$f":"IF(\"SPECCOST,,\"&BD$5&\",\"&sel_country_code&\",\"=VLOOKUP(\"SPECCOST,,\"&BD$5&\",\"&sel_country_code&\",\",data[],1),VLOOKUP(\"SPECCOST,,\"&BD$5&\",\"&sel_country_code&\",\",data[],7),BD$909)","v":7.0000000000000007E-2},null,{"$f":"IF(\"SPECCOST,,\"&BF$5&\",\"&sel_country_code&\",\"=VLOOKUP(\"SPECCOST,,\"&BF$5&\",\"&sel_country_code&\",\",data[],1),VLOOKUP(\"SPECCOST,,\"&BF$5&\",\"&sel_country_code&\",\",data[],7),BF$909)","v":0.05},{"$f":"IF(\"SPECCOST,,\"&BG$5&\",\"&sel_country_code&\",\"=VLOOKUP(\"SPECCOST,,\"&BG$5&\",\"&sel_country_code&\",\",data[],1),VLOOKUP(\"SPECCOST,,\"&BG$5&\",\"&sel_country_code&\",\",data[],7),BG$909)","v":7.0000000000000007E-2}]
[null,"ARG-CHU",null,null,null,null,null,null,null,null,null,null,null,null,null,null,null,{"$f":"IF(\"SPECCOST,,\"&R$5&\",\"&$B916&\",\"=VLOOKUP(\"SPECCOST,,\"&R$5&\",\"&$B916&\",\",data[],1),VLOOKUP(\"SPECCOST,,\"&R$5&\",\"&$B916&\",\",data[],7),R$909)","v":1.190463995027624E-3},null,{"$f":"IF(\"SPECCOST,,\"&T$5&\",\"&$B916&\",\"=VLOOKUP(\"SPECCOST,,\"&T$5&\",\"&$B916&\",\",data[],1),VLOOKUP(\"SPECCOST,,\"&T$5&\",\"&$B916&\",\",data[],7),T$909)","v":0.05},{"$f":"IF(\"SPECCOST,,\"&U$5&\",\"&$B916&\",\"=VLOOKUP(\"SPECCOST,,\"&U$5&\",\"&$B916&\",\",data[],1),VLOOKUP(\"SPECCOST,,\"&U$5&\",\"&$B916&\",\",data[],7),U$909)","v":7.0000000000000007E-2},{"$f":"IF(\"SPECCOST,,\"&V$5&\",\"&$B916&\",\"=VLOOKUP(\"SPECCOST,,\"&V$5&\",\"&$B916&\",\",data[],1),VLOOKUP(\"SPECCOST,,\"&V$5&\",\"&$B916&\",\",data[],7),V$909)","v":7.0000000000000007E-2},null,null,{"$f":"IF(\"SPECCOST,,\"&Y$5&\",\"&$B916&\",\"=VLOOKUP(\"SPECCOST,,\"&Y$5&\",\"&$B916&\",\",data[],1),VLOOKUP(\"SPECCOST,,\"&Y$5&\",\"&$B916&\",\",data[],7),Y$909)","v":1.190463995027624E-3},null,{"$f":"IF(\"SPECCOST,,\"&AA$5&\",\"&$B916&\",\"=VLOOKUP(\"SPECCOST,,\"&AA$5&\",\"&$B916&\",\",data[],1),VLOOKUP(\"SPECCOST,,\"&AA$5&\",\"&$B916&\",\",data[],7),AA$909)","v":0.05},{"$f":"IF(\"SPECCOST,,\"&AB$5&\",\"&$B916&\",\"=VLOOKUP(\"SPECCOST,,\"&AB$5&\",\"&$B916&\",\",data[],1),VLOOKUP(\"SPECCOST,,\"&AB$5&\",\"&$B916&\",\",data[],7),AB$909)","v":7.0000000000000007E-2},{"$f":"IF(\"SPECCOST,,\"&AC$5&\",\"&$B916&\",\"=VLOOKUP(\"SPECCOST,,\"&AC$5&\",\"&$B916&\",\",data[],1),VLOOKUP(\"SPECCOST,,\"&AC$5&\",\"&$B916&\",\",data[],7),AC$909)","v":3.8577660276243091E-2},null,{"$f":"IF(\"SPECCOST,,\"&AE$5&\",\"&$B916&\",\"=VLOOKUP(\"SPECCOST,,\"&AE$5&\",\"&$B916&\",\",data[],1),VLOOKUP(\"SPECCOST,,\"&AE$5&\",\"&$B916&\",\",data[],7),AE$909)","v":0.05},{"$f":"IF(\"SPECCOST,,\"&AF$5&\",\"&$B916&\",\"=VLOOKUP(\"SPECCOST,,\"&AF$5&\",\"&$B916&\",\",data[],1),VLOOKUP(\"SPECCOST,,\"&AF$5&\",\"&$B916&\",\",data[],7),AF$909)","v":7.0000000000000007E-2},{"$f":"IF(\"SPECCOST,,\"&AG$5&\",\"&$B916&\",\"=VLOOKUP(\"SPECCOST,,\"&AG$5&\",\"&$B916&\",\",data[],1),VLOOKUP(\"SPECCOST,,\"&AG$5&\",\"&$B916&\",\",data[],7),AG$909)","v":7.0000000000000007E-2},{"$f":"IF(\"SPECCOST,,\"&AH$5&\",\"&$B916&\",\"=VLOOKUP(\"SPECCOST,,\"&AH$5&\",\"&$B916&\",\",data[],1),VLOOKUP(\"SPECCOST,,\"&AH$5&\",\"&$B916&\",\",data[],7),AH$909)","v":0.05},{"$f":"IF(\"SPECCOST,,\"&AI$5&\",\"&$B916&\",\"=VLOOKUP(\"SPECCOST,,\"&AI$5&\",\"&$B916&\",\",data[],1),VLOOKUP(\"SPECCOST,,\"&AI$5&\",\"&$B916&\",\",data[],7),AI$909)","v":0.01},null,null,{"$f":"IF(\"SPECCOST,,\"&AL$5&\",\"&$B916&\",\"=VLOOKUP(\"SPECCOST,,\"&AL$5&\",\"&$B916&\",\",data[],1),VLOOKUP(\"SPECCOST,,\"&AL$5&\",\"&$B916&\",\",data[],7),AL$909)","v":7.0000000000000007E-2},null,{"$f":"IF(\"SPECCOST,,\"&AN$5&\",\"&$B916&\",\"=VLOOKUP(\"SPECCOST,,\"&AN$5&\",\"&$B916&\",\",data[],1),VLOOKUP(\"SPECCOST,,\"&AN$5&\",\"&$B916&\",\",data[],7),AN$909)","v":7.0000000000000007E-2},null,null,null,null,null,null,null,{"$f":"IF(\"SPECCOST,,\"&AV$5&\",\"&$B916&\",\"=VLOOKUP(\"SPECCOST,,\"&AV$5&\",\"&$B916&\",\",data[],1),VLOOKUP(\"SPECCOST,,\"&AV$5&\",\"&$B916&\",\",data[],7),AV$909)","v":2.7940534453652541E-3},null,null,null,null,null,null,{"$f":"IF(\"SPECCOST,,\"&BC$5&\",\"&sel_country_code&\",\"=VLOOKUP(\"SPECCOST,,\"&BC$5&\",\"&sel_country_code&\",\",data[],1),VLOOKUP(\"SPECCOST,,\"&BC$5&\",\"&sel_country_code&\",\",data[],7),BC$909)","v":0.05},{"$f":"IF(\"SPECCOST,,\"&BD$5&\",\"&sel_country_code&\",\"=VLOOKUP(\"SPECCOST,,\"&BD$5&\",\"&sel_country_code&\",\",data[],1),VLOOKUP(\"SPECCOST,,\"&BD$5&\",\"&sel_country_code&\",\",data[],7),BD$909)","v":7.0000000000000007E-2},null,{"$f":"IF(\"SPECCOST,,\"&BF$5&\",\"&sel_country_code&\",\"=VLOOKUP(\"SPECCOST,,\"&BF$5&\",\"&sel_country_code&\",\",data[],1),VLOOKUP(\"SPECCOST,,\"&BF$5&\",\"&sel_country_code&\",\",data[],7),BF$909)","v":0.05},{"$f":"IF(\"SPECCOST,,\"&BG$5&\",\"&sel_country_code&\",\"=VLOOKUP(\"SPECCOST,,\"&BG$5&\",\"&sel_country_code&\",\",data[],1),VLOOKUP(\"SPECCOST,,\"&BG$5&\",\"&sel_country_code&\",\",data[],7),BG$909)","v":7.0000000000000007E-2}]
[null,"ARG-COR",null,null,null,null,null,null,null,null,null,null,null,null,null,null,null,{"$f":"IF(\"SPECCOST,,\"&R$5&\",\"&$B917&\",\"=VLOOKUP(\"SPECCOST,,\"&R$5&\",\"&$B917&\",\",data[],1),VLOOKUP(\"SPECCOST,,\"&R$5&\",\"&$B917&\",\",data[],7),R$909)","v":1.190463995027624E-3},null,{"$f":"IF(\"SPECCOST,,\"&T$5&\",\"&$B917&\",\"=VLOOKUP(\"SPECCOST,,\"&T$5&\",\"&$B917&\",\",data[],1),VLOOKUP(\"SPECCOST,,\"&T$5&\",\"&$B917&\",\",data[],7),T$909)","v":0.05},{"$f":"IF(\"SPECCOST,,\"&U$5&\",\"&$B917&\",\"=VLOOKUP(\"SPECCOST,,\"&U$5&\",\"&$B917&\",\",data[],1),VLOOKUP(\"SPECCOST,,\"&U$5&\",\"&$B917&\",\",data[],7),U$909)","v":7.0000000000000007E-2},{"$f":"IF(\"SPECCOST,,\"&V$5&\",\"&$B917&\",\"=VLOOKUP(\"SPECCOST,,\"&V$5&\",\"&$B917&\",\",data[],1),VLOOKUP(\"SPECCOST,,\"&V$5&\",\"&$B917&\",\",data[],7),V$909)","v":7.0000000000000007E-2},null,null,{"$f":"IF(\"SPECCOST,,\"&Y$5&\",\"&$B917&\",\"=VLOOKUP(\"SPECCOST,,\"&Y$5&\",\"&$B917&\",\",data[],1),VLOOKUP(\"SPECCOST,,\"&Y$5&\",\"&$B917&\",\",data[],7),Y$909)","v":1.190463995027624E-3},null,{"$f":"IF(\"SPECCOST,,\"&AA$5&\",\"&$B917&\",\"=VLOOKUP(\"SPECCOST,,\"&AA$5&\",\"&$B917&\",\",data[],1),VLOOKUP(\"SPECCOST,,\"&AA$5&\",\"&$B917&\",\",data[],7),AA$909)","v":0.05},{"$f":"IF(\"SPECCOST,,\"&AB$5&\",\"&$B917&\",\"=VLOOKUP(\"SPECCOST,,\"&AB$5&\",\"&$B917&\",\",data[],1),VLOOKUP(\"SPECCOST,,\"&AB$5&\",\"&$B917&\",\",data[],7),AB$909)","v":7.0000000000000007E-2},{"$f":"IF(\"SPECCOST,,\"&AC$5&\",\"&$B917&\",\"=VLOOKUP(\"SPECCOST,,\"&AC$5&\",\"&$B917&\",\",data[],1),VLOOKUP(\"SPECCOST,,\"&AC$5&\",\"&$B917&\",\",data[],7),AC$909)","v":3.8577660276243091E-2},null,{"$f":"IF(\"SPECCOST,,\"&AE$5&\",\"&$B917&\",\"=VLOOKUP(\"SPECCOST,,\"&AE$5&\",\"&$B917&\",\",data[],1),VLOOKUP(\"SPECCOST,,\"&AE$5&\",\"&$B917&\",\",data[],7),AE$909)","v":0.05},{"$f":"IF(\"SPECCOST,,\"&AF$5&\",\"&$B917&\",\"=VLOOKUP(\"SPECCOST,,\"&AF$5&\",\"&$B917&\",\",data[],1),VLOOKUP(\"SPECCOST,,\"&AF$5&\",\"&$B917&\",\",data[],7),AF$909)","v":7.0000000000000007E-2},{"$f":"IF(\"SPECCOST,,\"&AG$5&\",\"&$B917&\",\"=VLOOKUP(\"SPECCOST,,\"&AG$5&\",\"&$B917&\",\",data[],1),VLOOKUP(\"SPECCOST,,\"&AG$5&\",\"&$B917&\",\",data[],7),AG$909)","v":7.0000000000000007E-2},{"$f":"IF(\"SPECCOST,,\"&AH$5&\",\"&$B917&\",\"=VLOOKUP(\"SPECCOST,,\"&AH$5&\",\"&$B917&\",\",data[],1),VLOOKUP(\"SPECCOST,,\"&AH$5&\",\"&$B917&\",\",data[],7),AH$909)","v":0.05},{"$f":"IF(\"SPECCOST,,\"&AI$5&\",\"&$B917&\",\"=VLOOKUP(\"SPECCOST,,\"&AI$5&\",\"&$B917&\",\",data[],1),VLOOKUP(\"SPECCOST,,\"&AI$5&\",\"&$B917&\",\",data[],7),AI$909)","v":0.01},null,null,{"$f":"IF(\"SPECCOST,,\"&AL$5&\",\"&$B917&\",\"=VLOOKUP(\"SPECCOST,,\"&AL$5&\",\"&$B917&\",\",data[],1),VLOOKUP(\"SPECCOST,,\"&AL$5&\",\"&$B917&\",\",data[],7),AL$909)","v":7.0000000000000007E-2},null,{"$f":"IF(\"SPECCOST,,\"&AN$5&\",\"&$B917&\",\"=VLOOKUP(\"SPECCOST,,\"&AN$5&\",\"&$B917&\",\",data[],1),VLOOKUP(\"SPECCOST,,\"&AN$5&\",\"&$B917&\",\",data[],7),AN$909)","v":7.0000000000000007E-2},null,null,null,null,null,null,null,{"$f":"IF(\"SPECCOST,,\"&AV$5&\",\"&$B917&\",\"=VLOOKUP(\"SPECCOST,,\"&AV$5&\",\"&$B917&\",\",data[],1),VLOOKUP(\"SPECCOST,,\"&AV$5&\",\"&$B917&\",\",data[],7),AV$909)","v":2.7940534453652541E-3},null,null,null,null,null,null,{"$f":"IF(\"SPECCOST,,\"&BC$5&\",\"&sel_country_code&\",\"=VLOOKUP(\"SPECCOST,,\"&BC$5&\",\"&sel_country_code&\",\",data[],1),VLOOKUP(\"SPECCOST,,\"&BC$5&\",\"&sel_country_code&\",\",data[],7),BC$909)","v":0.05},{"$f":"IF(\"SPECCOST,,\"&BD$5&\",\"&sel_country_code&\",\"=VLOOKUP(\"SPECCOST,,\"&BD$5&\",\"&sel_country_code&\",\",data[],1),VLOOKUP(\"SPECCOST,,\"&BD$5&\",\"&sel_country_code&\",\",data[],7),BD$909)","v":7.0000000000000007E-2},null,{"$f":"IF(\"SPECCOST,,\"&BF$5&\",\"&sel_country_code&\",\"=VLOOKUP(\"SPECCOST,,\"&BF$5&\",\"&sel_country_code&\",\",data[],1),VLOOKUP(\"SPECCOST,,\"&BF$5&\",\"&sel_country_code&\",\",data[],7),BF$909)","v":0.05},{"$f":"IF(\"SPECCOST,,\"&BG$5&\",\"&sel_country_code&\",\"=VLOOKUP(\"SPECCOST,,\"&BG$5&\",\"&sel_country_code&\",\",data[],1),VLOOKUP(\"SPECCOST,,\"&BG$5&\",\"&sel_country_code&\",\",data[],7),BG$909)","v":7.0000000000000007E-2}]
[null,"ARG-CRB",null,null,null,null,null,null,null,null,null,null,null,null,null,null,null,{"$f":"IF(\"SPECCOST,,\"&R$5&\",\"&$B918&\",\"=VLOOKUP(\"SPECCOST,,\"&R$5&\",\"&$B918&\",\",data[],1),VLOOKUP(\"SPECCOST,,\"&R$5&\",\"&$B918&\",\",data[],7),R$909)","v":1.190463995027624E-3},null,{"$f":"IF(\"SPECCOST,,\"&T$5&\",\"&$B918&\",\"=VLOOKUP(\"SPECCOST,,\"&T$5&\",\"&$B918&\",\",data[],1),VLOOKUP(\"SPECCOST,,\"&T$5&\",\"&$B918&\",\",data[],7),T$909)","v":0.05},{"$f":"IF(\"SPECCOST,,\"&U$5&\",\"&$B918&\",\"=VLOOKUP(\"SPECCOST,,\"&U$5&\",\"&$B918&\",\",data[],1),VLOOKUP(\"SPECCOST,,\"&U$5&\",\"&$B918&\",\",data[],7),U$909)","v":7.0000000000000007E-2},{"$f":"IF(\"SPECCOST,,\"&V$5&\",\"&$B918&\",\"=VLOOKUP(\"SPECCOST,,\"&V$5&\",\"&$B918&\",\",data[],1),VLOOKUP(\"SPECCOST,,\"&V$5&\",\"&$B918&\",\",data[],7),V$909)","v":7.0000000000000007E-2},null,null,{"$f":"IF(\"SPECCOST,,\"&Y$5&\",\"&$B918&\",\"=VLOOKUP(\"SPECCOST,,\"&Y$5&\",\"&$B918&\",\",data[],1),VLOOKUP(\"SPECCOST,,\"&Y$5&\",\"&$B918&\",\",data[],7),Y$909)","v":1.190463995027624E-3},null,{"$f":"IF(\"SPECCOST,,\"&AA$5&\",\"&$B918&\",\"=VLOOKUP(\"SPECCOST,,\"&AA$5&\",\"&$B918&\",\",data[],1),VLOOKUP(\"SPECCOST,,\"&AA$5&\",\"&$B918&\",\",data[],7),AA$909)","v":0.05},{"$f":"IF(\"SPECCOST,,\"&AB$5&\",\"&$B918&\",\"=VLOOKUP(\"SPECCOST,,\"&AB$5&\",\"&$B918&\",\",data[],1),VLOOKUP(\"SPECCOST,,\"&AB$5&\",\"&$B918&\",\",data[],7),AB$909)","v":7.0000000000000007E-2},{"$f":"IF(\"SPECCOST,,\"&AC$5&\",\"&$B918&\",\"=VLOOKUP(\"SPECCOST,,\"&AC$5&\",\"&$B918&\",\",data[],1),VLOOKUP(\"SPECCOST,,\"&AC$5&\",\"&$B918&\",\",data[],7),AC$909)","v":3.8577660276243091E-2},null,{"$f":"IF(\"SPECCOST,,\"&AE$5&\",\"&$B918&\",\"=VLOOKUP(\"SPECCOST,,\"&AE$5&\",\"&$B918&\",\",data[],1),VLOOKUP(\"SPECCOST,,\"&AE$5&\",\"&$B918&\",\",data[],7),AE$909)","v":0.05},{"$f":"IF(\"SPECCOST,,\"&AF$5&\",\"&$B918&\",\"=VLOOKUP(\"SPECCOST,,\"&AF$5&\",\"&$B918&\",\",data[],1),VLOOKUP(\"SPECCOST,,\"&AF$5&\",\"&$B918&\",\",data[],7),AF$909)","v":7.0000000000000007E-2},{"$f":"IF(\"SPECCOST,,\"&AG$5&\",\"&$B918&\",\"=VLOOKUP(\"SPECCOST,,\"&AG$5&\",\"&$B918&\",\",data[],1),VLOOKUP(\"SPECCOST,,\"&AG$5&\",\"&$B918&\",\",data[],7),AG$909)","v":7.0000000000000007E-2},{"$f":"IF(\"SPECCOST,,\"&AH$5&\",\"&$B918&\",\"=VLOOKUP(\"SPECCOST,,\"&AH$5&\",\"&$B918&\",\",data[],1),VLOOKUP(\"SPECCOST,,\"&AH$5&\",\"&$B918&\",\",data[],7),AH$909)","v":0.05},{"$f":"IF(\"SPECCOST,,\"&AI$5&\",\"&$B918&\",\"=VLOOKUP(\"SPECCOST,,\"&AI$5&\",\"&$B918&\",\",data[],1),VLOOKUP(\"SPECCOST,,\"&AI$5&\",\"&$B918&\",\",data[],7),AI$909)","v":0.01},null,null,{"$f":"IF(\"SPECCOST,,\"&AL$5&\",\"&$B918&\",\"=VLOOKUP(\"SPECCOST,,\"&AL$5&\",\"&$B918&\",\",data[],1),VLOOKUP(\"SPECCOST,,\"&AL$5&\",\"&$B918&\",\",data[],7),AL$909)","v":7.0000000000000007E-2},null,{"$f":"IF(\"SPECCOST,,\"&AN$5&\",\"&$B918&\",\"=VLOOKUP(\"SPECCOST,,\"&AN$5&\",\"&$B918&\",\",data[],1),VLOOKUP(\"SPECCOST,,\"&AN$5&\",\"&$B918&\",\",data[],7),AN$909)","v":7.0000000000000007E-2},null,null,null,null,null,null,null,{"$f":"IF(\"SPECCOST,,\"&AV$5&\",\"&$B918&\",\"=VLOOKUP(\"SPECCOST,,\"&AV$5&\",\"&$B918&\",\",data[],1),VLOOKUP(\"SPECCOST,,\"&AV$5&\",\"&$B918&\",\",data[],7),AV$909)","v":2.7940534453652541E-3},null,null,null,null,null,null,{"$f":"IF(\"SPECCOST,,\"&BC$5&\",\"&sel_country_code&\",\"=VLOOKUP(\"SPECCOST,,\"&BC$5&\",\"&sel_country_code&\",\",data[],1),VLOOKUP(\"SPECCOST,,\"&BC$5&\",\"&sel_country_code&\",\",data[],7),BC$909)","v":0.05},{"$f":"IF(\"SPECCOST,,\"&BD$5&\",\"&sel_country_code&\",\"=VLOOKUP(\"SPECCOST,,\"&BD$5&\",\"&sel_country_code&\",\",data[],1),VLOOKUP(\"SPECCOST,,\"&BD$5&\",\"&sel_country_code&\",\",data[],7),BD$909)","v":7.0000000000000007E-2},null,{"$f":"IF(\"SPECCOST,,\"&BF$5&\",\"&sel_country_code&\",\"=VLOOKUP(\"SPECCOST,,\"&BF$5&\",\"&sel_country_code&\",\",data[],1),VLOOKUP(\"SPECCOST,,\"&BF$5&\",\"&sel_country_code&\",\",data[],7),BF$909)","v":0.05},{"$f":"IF(\"SPECCOST,,\"&BG$5&\",\"&sel_country_code&\",\"=VLOOKUP(\"SPECCOST,,\"&BG$5&\",\"&sel_country_code&\",\",data[],1),VLOOKUP(\"SPECCOST,,\"&BG$5&\",\"&sel_country_code&\",\",data[],7),BG$909)","v":7.0000000000000007E-2}]
[null,"ARG-CRU",null,null,null,null,null,null,null,null,null,null,null,null,null,null,null,{"$f":"IF(\"SPECCOST,,\"&R$5&\",\"&$B919&\",\"=VLOOKUP(\"SPECCOST,,\"&R$5&\",\"&$B919&\",\",data[],1),VLOOKUP(\"SPECCOST,,\"&R$5&\",\"&$B919&\",\",data[],7),R$909)","v":1.190463995027624E-3},null,{"$f":"IF(\"SPECCOST,,\"&T$5&\",\"&$B919&\",\"=VLOOKUP(\"SPECCOST,,\"&T$5&\",\"&$B919&\",\",data[],1),VLOOKUP(\"SPECCOST,,\"&T$5&\",\"&$B919&\",\",data[],7),T$909)","v":0.05},{"$f":"IF(\"SPECCOST,,\"&U$5&\",\"&$B919&\",\"=VLOOKUP(\"SPECCOST,,\"&U$5&\",\"&$B919&\",\",data[],1),VLOOKUP(\"SPECCOST,,\"&U$5&\",\"&$B919&\",\",data[],7),U$909)","v":7.0000000000000007E-2},{"$f":"IF(\"SPECCOST,,\"&V$5&\",\"&$B919&\",\"=VLOOKUP(\"SPECCOST,,\"&V$5&\",\"&$B919&\",\",data[],1),VLOOKUP(\"SPECCOST,,\"&V$5&\",\"&$B919&\",\",data[],7),V$909)","v":7.0000000000000007E-2},null,null,{"$f":"IF(\"SPECCOST,,\"&Y$5&\",\"&$B919&\",\"=VLOOKUP(\"SPECCOST,,\"&Y$5&\",\"&$B919&\",\",data[],1),VLOOKUP(\"SPECCOST,,\"&Y$5&\",\"&$B919&\",\",data[],7),Y$909)","v":1.190463995027624E-3},null,{"$f":"IF(\"SPECCOST,,\"&AA$5&\",\"&$B919&\",\"=VLOOKUP(\"SPECCOST,,\"&AA$5&\",\"&$B919&\",\",data[],1),VLOOKUP(\"SPECCOST,,\"&AA$5&\",\"&$B919&\",\",data[],7),AA$909)","v":0.05},{"$f":"IF(\"SPECCOST,,\"&AB$5&\",\"&$B919&\",\"=VLOOKUP(\"SPECCOST,,\"&AB$5&\",\"&$B919&\",\",data[],1),VLOOKUP(\"SPECCOST,,\"&AB$5&\",\"&$B919&\",\",data[],7),AB$909)","v":7.0000000000000007E-2},{"$f":"IF(\"SPECCOST,,\"&AC$5&\",\"&$B919&\",\"=VLOOKUP(\"SPECCOST,,\"&AC$5&\",\"&$B919&\",\",data[],1),VLOOKUP(\"SPECCOST,,\"&AC$5&\",\"&$B919&\",\",data[],7),AC$909)","v":3.8577660276243091E-2},null,{"$f":"IF(\"SPECCOST,,\"&AE$5&\",\"&$B919&\",\"=VLOOKUP(\"SPECCOST,,\"&AE$5&\",\"&$B919&\",\",data[],1),VLOOKUP(\"SPECCOST,,\"&AE$5&\",\"&$B919&\",\",data[],7),AE$909)","v":0.05},{"$f":"IF(\"SPECCOST,,\"&AF$5&\",\"&$B919&\",\"=VLOOKUP(\"SPECCOST,,\"&AF$5&\",\"&$B919&\",\",data[],1),VLOOKUP(\"SPECCOST,,\"&AF$5&\",\"&$B919&\",\",data[],7),AF$909)","v":7.0000000000000007E-2},{"$f":"IF(\"SPECCOST,,\"&AG$5&\",\"&$B919&\",\"=VLOOKUP(\"SPECCOST,,\"&AG$5&\",\"&$B919&\",\",data[],1),VLOOKUP(\"SPECCOST,,\"&AG$5&\",\"&$B919&\",\",data[],7),AG$909)","v":7.0000000000000007E-2},{"$f":"IF(\"SPECCOST,,\"&AH$5&\",\"&$B919&\",\"=VLOOKUP(\"SPECCOST,,\"&AH$5&\",\"&$B919&\",\",data[],1),VLOOKUP(\"SPECCOST,,\"&AH$5&\",\"&$B919&\",\",data[],7),AH$909)","v":0.05},{"$f":"IF(\"SPECCOST,,\"&AI$5&\",\"&$B919&\",\"=VLOOKUP(\"SPECCOST,,\"&AI$5&\",\"&$B919&\",\",data[],1),VLOOKUP(\"SPECCOST,,\"&AI$5&\",\"&$B919&\",\",data[],7),AI$909)","v":0.01},null,null,{"$f":"IF(\"SPECCOST,,\"&AL$5&\",\"&$B919&\",\"=VLOOKUP(\"SPECCOST,,\"&AL$5&\",\"&$B919&\",\",data[],1),VLOOKUP(\"SPECCOST,,\"&AL$5&\",\"&$B919&\",\",data[],7),AL$909)","v":7.0000000000000007E-2},null,{"$f":"IF(\"SPECCOST,,\"&AN$5&\",\"&$B919&\",\"=VLOOKUP(\"SPECCOST,,\"&AN$5&\",\"&$B919&\",\",data[],1),VLOOKUP(\"SPECCOST,,\"&AN$5&\",\"&$B919&\",\",data[],7),AN$909)","v":7.0000000000000007E-2},null,null,null,null,null,null,null,{"$f":"IF(\"SPECCOST,,\"&AV$5&\",\"&$B919&\",\"=VLOOKUP(\"SPECCOST,,\"&AV$5&\",\"&$B919&\",\",data[],1),VLOOKUP(\"SPECCOST,,\"&AV$5&\",\"&$B919&\",\",data[],7),AV$909)","v":2.7940534453652541E-3},null,null,null,null,null,null,{"$f":"IF(\"SPECCOST,,\"&BC$5&\",\"&sel_country_code&\",\"=VLOOKUP(\"SPECCOST,,\"&BC$5&\",\"&sel_country_code&\",\",data[],1),VLOOKUP(\"SPECCOST,,\"&BC$5&\",\"&sel_country_code&\",\",data[],7),BC$909)","v":0.05},{"$f":"IF(\"SPECCOST,,\"&BD$5&\",\"&sel_country_code&\",\"=VLOOKUP(\"SPECCOST,,\"&BD$5&\",\"&sel_country_code&\",\",data[],1),VLOOKUP(\"SPECCOST,,\"&BD$5&\",\"&sel_country_code&\",\",data[],7),BD$909)","v":7.0000000000000007E-2},null,{"$f":"IF(\"SPECCOST,,\"&BF$5&\",\"&sel_country_code&\",\"=VLOOKUP(\"SPECCOST,,\"&BF$5&\",\"&sel_country_code&\",\",data[],1),VLOOKUP(\"SPECCOST,,\"&BF$5&\",\"&sel_country_code&\",\",data[],7),BF$909)","v":0.05},{"$f":"IF(\"SPECCOST,,\"&BG$5&\",\"&sel_country_code&\",\"=VLOOKUP(\"SPECCOST,,\"&BG$5&\",\"&sel_country_code&\",\",data[],1),VLOOKUP(\"SPECCOST,,\"&BG$5&\",\"&sel_country_code&\",\",data[],7),BG$909)","v":7.0000000000000007E-2}]
[null,"ARG-EST",null,null,null,null,null,null,null,null,null,null,null,null,null,null,null,{"$f":"IF(\"SPECCOST,,\"&R$5&\",\"&$B920&\",\"=VLOOKUP(\"SPECCOST,,\"&R$5&\",\"&$B920&\",\",data[],1),VLOOKUP(\"SPECCOST,,\"&R$5&\",\"&$B920&\",\",data[],7),R$909)","v":1.190463995027624E-3},null,{"$f":"IF(\"SPECCOST,,\"&T$5&\",\"&$B920&\",\"=VLOOKUP(\"SPECCOST,,\"&T$5&\",\"&$B920&\",\",data[],1),VLOOKUP(\"SPECCOST,,\"&T$5&\",\"&$B920&\",\",data[],7),T$909)","v":0.05},{"$f":"IF(\"SPECCOST,,\"&U$5&\",\"&$B920&\",\"=VLOOKUP(\"SPECCOST,,\"&U$5&\",\"&$B920&\",\",data[],1),VLOOKUP(\"SPECCOST,,\"&U$5&\",\"&$B920&\",\",data[],7),U$909)","v":7.0000000000000007E-2},{"$f":"IF(\"SPECCOST,,\"&V$5&\",\"&$B920&\",\"=VLOOKUP(\"SPECCOST,,\"&V$5&\",\"&$B920&\",\",data[],1),VLOOKUP(\"SPECCOST,,\"&V$5&\",\"&$B920&\",\",data[],7),V$909)","v":7.0000000000000007E-2},null,null,{"$f":"IF(\"SPECCOST,,\"&Y$5&\",\"&$B920&\",\"=VLOOKUP(\"SPECCOST,,\"&Y$5&\",\"&$B920&\",\",data[],1),VLOOKUP(\"SPECCOST,,\"&Y$5&\",\"&$B920&\",\",data[],7),Y$909)","v":1.190463995027624E-3},null,{"$f":"IF(\"SPECCOST,,\"&AA$5&\",\"&$B920&\",\"=VLOOKUP(\"SPECCOST,,\"&AA$5&\",\"&$B920&\",\",data[],1),VLOOKUP(\"SPECCOST,,\"&AA$5&\",\"&$B920&\",\",data[],7),AA$909)","v":0.05},{"$f":"IF(\"SPECCOST,,\"&AB$5&\",\"&$B920&\",\"=VLOOKUP(\"SPECCOST,,\"&AB$5&\",\"&$B920&\",\",data[],1),VLOOKUP(\"SPECCOST,,\"&AB$5&\",\"&$B920&\",\",data[],7),AB$909)","v":7.0000000000000007E-2},{"$f":"IF(\"SPECCOST,,\"&AC$5&\",\"&$B920&\",\"=VLOOKUP(\"SPECCOST,,\"&AC$5&\",\"&$B920&\",\",data[],1),VLOOKUP(\"SPECCOST,,\"&AC$5&\",\"&$B920&\",\",data[],7),AC$909)","v":3.8577660276243091E-2},null,{"$f":"IF(\"SPECCOST,,\"&AE$5&\",\"&$B920&\",\"=VLOOKUP(\"SPECCOST,,\"&AE$5&\",\"&$B920&\",\",data[],1),VLOOKUP(\"SPECCOST,,\"&AE$5&\",\"&$B920&\",\",data[],7),AE$909)","v":0.05},{"$f":"IF(\"SPECCOST,,\"&AF$5&\",\"&$B920&\",\"=VLOOKUP(\"SPECCOST,,\"&AF$5&\",\"&$B920&\",\",data[],1),VLOOKUP(\"SPECCOST,,\"&AF$5&\",\"&$B920&\",\",data[],7),AF$909)","v":7.0000000000000007E-2},{"$f":"IF(\"SPECCOST,,\"&AG$5&\",\"&$B920&\",\"=VLOOKUP(\"SPECCOST,,\"&AG$5&\",\"&$B920&\",\",data[],1),VLOOKUP(\"SPECCOST,,\"&AG$5&\",\"&$B920&\",\",data[],7),AG$909)","v":7.0000000000000007E-2},{"$f":"IF(\"SPECCOST,,\"&AH$5&\",\"&$B920&\",\"=VLOOKUP(\"SPECCOST,,\"&AH$5&\",\"&$B920&\",\",data[],1),VLOOKUP(\"SPECCOST,,\"&AH$5&\",\"&$B920&\",\",data[],7),AH$909)","v":0.05},{"$f":"IF(\"SPECCOST,,\"&AI$5&\",\"&$B920&\",\"=VLOOKUP(\"SPECCOST,,\"&AI$5&\",\"&$B920&\",\",data[],1),VLOOKUP(\"SPECCOST,,\"&AI$5&\",\"&$B920&\",\",data[],7),AI$909)","v":0.01},null,null,{"$f":"IF(\"SPECCOST,,\"&AL$5&\",\"&$B920&\",\"=VLOOKUP(\"SPECCOST,,\"&AL$5&\",\"&$B920&\",\",data[],1),VLOOKUP(\"SPECCOST,,\"&AL$5&\",\"&$B920&\",\",data[],7),AL$909)","v":7.0000000000000007E-2},null,{"$f":"IF(\"SPECCOST,,\"&AN$5&\",\"&$B920&\",\"=VLOOKUP(\"SPECCOST,,\"&AN$5&\",\"&$B920&\",\",data[],1),VLOOKUP(\"SPECCOST,,\"&AN$5&\",\"&$B920&\",\",data[],7),AN$909)","v":7.0000000000000007E-2},null,null,null,null,null,null,null,{"$f":"IF(\"SPECCOST,,\"&AV$5&\",\"&$B920&\",\"=VLOOKUP(\"SPECCOST,,\"&AV$5&\",\"&$B920&\",\",data[],1),VLOOKUP(\"SPECCOST,,\"&AV$5&\",\"&$B920&\",\",data[],7),AV$909)","v":2.7940534453652541E-3},null,null,null,null,null,null,{"$f":"IF(\"SPECCOST,,\"&BC$5&\",\"&sel_country_code&\",\"=VLOOKUP(\"SPECCOST,,\"&BC$5&\",\"&sel_country_code&\",\",data[],1),VLOOKUP(\"SPECCOST,,\"&BC$5&\",\"&sel_country_code&\",\",data[],7),BC$909)","v":0.05},{"$f":"IF(\"SPECCOST,,\"&BD$5&\",\"&sel_country_code&\",\"=VLOOKUP(\"SPECCOST,,\"&BD$5&\",\"&sel_country_code&\",\",data[],1),VLOOKUP(\"SPECCOST,,\"&BD$5&\",\"&sel_country_code&\",\",data[],7),BD$909)","v":7.0000000000000007E-2},null,{"$f":"IF(\"SPECCOST,,\"&BF$5&\",\"&sel_country_code&\",\"=VLOOKUP(\"SPECCOST,,\"&BF$5&\",\"&sel_country_code&\",\",data[],1),VLOOKUP(\"SPECCOST,,\"&BF$5&\",\"&sel_country_code&\",\",data[],7),BF$909)","v":0.05},{"$f":"IF(\"SPECCOST,,\"&BG$5&\",\"&sel_country_code&\",\"=VLOOKUP(\"SPECCOST,,\"&BG$5&\",\"&sel_country_code&\",\",data[],1),VLOOKUP(\"SPECCOST,,\"&BG$5&\",\"&sel_country_code&\",\",data[],7),BG$909)","v":7.0000000000000007E-2}]
[null,"ARG-FOR",null,null,null,null,null,null,null,null,null,null,null,null,null,null,null,{"$f":"IF(\"SPECCOST,,\"&R$5&\",\"&$B921&\",\"=VLOOKUP(\"SPECCOST,,\"&R$5&\",\"&$B921&\",\",data[],1),VLOOKUP(\"SPECCOST,,\"&R$5&\",\"&$B921&\",\",data[],7),R$909)","v":1.190463995027624E-3},null,{"$f":"IF(\"SPECCOST,,\"&T$5&\",\"&$B921&\",\"=VLOOKUP(\"SPECCOST,,\"&T$5&\",\"&$B921&\",\",data[],1),VLOOKUP(\"SPECCOST,,\"&T$5&\",\"&$B921&\",\",data[],7),T$909)","v":0.05},{"$f":"IF(\"SPECCOST,,\"&U$5&\",\"&$B921&\",\"=VLOOKUP(\"SPECCOST,,\"&U$5&\",\"&$B921&\",\",data[],1),VLOOKUP(\"SPECCOST,,\"&U$5&\",\"&$B921&\",\",data[],7),U$909)","v":7.0000000000000007E-2},{"$f":"IF(\"SPECCOST,,\"&V$5&\",\"&$B921&\",\"=VLOOKUP(\"SPECCOST,,\"&V$5&\",\"&$B921&\",\",data[],1),VLOOKUP(\"SPECCOST,,\"&V$5&\",\"&$B921&\",\",data[],7),V$909)","v":7.0000000000000007E-2},null,null,{"$f":"IF(\"SPECCOST,,\"&Y$5&\",\"&$B921&\",\"=VLOOKUP(\"SPECCOST,,\"&Y$5&\",\"&$B921&\",\",data[],1),VLOOKUP(\"SPECCOST,,\"&Y$5&\",\"&$B921&\",\",data[],7),Y$909)","v":1.190463995027624E-3},null,{"$f":"IF(\"SPECCOST,,\"&AA$5&\",\"&$B921&\",\"=VLOOKUP(\"SPECCOST,,\"&AA$5&\",\"&$B921&\",\",data[],1),VLOOKUP(\"SPECCOST,,\"&AA$5&\",\"&$B921&\",\",data[],7),AA$909)","v":0.05},{"$f":"IF(\"SPECCOST,,\"&AB$5&\",\"&$B921&\",\"=VLOOKUP(\"SPECCOST,,\"&AB$5&\",\"&$B921&\",\",data[],1),VLOOKUP(\"SPECCOST,,\"&AB$5&\",\"&$B921&\",\",data[],7),AB$909)","v":7.0000000000000007E-2},{"$f":"IF(\"SPECCOST,,\"&AC$5&\",\"&$B921&\",\"=VLOOKUP(\"SPECCOST,,\"&AC$5&\",\"&$B921&\",\",data[],1),VLOOKUP(\"SPECCOST,,\"&AC$5&\",\"&$B921&\",\",data[],7),AC$909)","v":3.8577660276243091E-2},null,{"$f":"IF(\"SPECCOST,,\"&AE$5&\",\"&$B921&\",\"=VLOOKUP(\"SPECCOST,,\"&AE$5&\",\"&$B921&\",\",data[],1),VLOOKUP(\"SPECCOST,,\"&AE$5&\",\"&$B921&\",\",data[],7),AE$909)","v":0.05},{"$f":"IF(\"SPECCOST,,\"&AF$5&\",\"&$B921&\",\"=VLOOKUP(\"SPECCOST,,\"&AF$5&\",\"&$B921&\",\",data[],1),VLOOKUP(\"SPECCOST,,\"&AF$5&\",\"&$B921&\",\",data[],7),AF$909)","v":7.0000000000000007E-2},{"$f":"IF(\"SPECCOST,,\"&AG$5&\",\"&$B921&\",\"=VLOOKUP(\"SPECCOST,,\"&AG$5&\",\"&$B921&\",\",data[],1),VLOOKUP(\"SPECCOST,,\"&AG$5&\",\"&$B921&\",\",data[],7),AG$909)","v":7.0000000000000007E-2},{"$f":"IF(\"SPECCOST,,\"&AH$5&\",\"&$B921&\",\"=VLOOKUP(\"SPECCOST,,\"&AH$5&\",\"&$B921&\",\",data[],1),VLOOKUP(\"SPECCOST,,\"&AH$5&\",\"&$B921&\",\",data[],7),AH$909)","v":0.05},{"$f":"IF(\"SPECCOST,,\"&AI$5&\",\"&$B921&\",\"=VLOOKUP(\"SPECCOST,,\"&AI$5&\",\"&$B921&\",\",data[],1),VLOOKUP(\"SPECCOST,,\"&AI$5&\",\"&$B921&\",\",data[],7),AI$909)","v":0.01},null,null,{"$f":"IF(\"SPECCOST,,\"&AL$5&\",\"&$B921&\",\"=VLOOKUP(\"SPECCOST,,\"&AL$5&\",\"&$B921&\",\",data[],1),VLOOKUP(\"SPECCOST,,\"&AL$5&\",\"&$B921&\",\",data[],7),AL$909)","v":7.0000000000000007E-2},null,{"$f":"IF(\"SPECCOST,,\"&AN$5&\",\"&$B921&\",\"=VLOOKUP(\"SPECCOST,,\"&AN$5&\",\"&$B921&\",\",data[],1),VLOOKUP(\"SPECCOST,,\"&AN$5&\",\"&$B921&\",\",data[],7),AN$909)","v":7.0000000000000007E-2},null,null,null,null,null,null,null,{"$f":"IF(\"SPECCOST,,\"&AV$5&\",\"&$B921&\",\"=VLOOKUP(\"SPECCOST,,\"&AV$5&\",\"&$B921&\",\",data[],1),VLOOKUP(\"SPECCOST,,\"&AV$5&\",\"&$B921&\",\",data[],7),AV$909)","v":2.7940534453652541E-3},null,null,null,null,null,null,{"$f":"IF(\"SPECCOST,,\"&BC$5&\",\"&sel_country_code&\",\"=VLOOKUP(\"SPECCOST,,\"&BC$5&\",\"&sel_country_code&\",\",data[],1),VLOOKUP(\"SPECCOST,,\"&BC$5&\",\"&sel_country_code&\",\",data[],7),BC$909)","v":0.05},{"$f":"IF(\"SPECCOST,,\"&BD$5&\",\"&sel_country_code&\",\"=VLOOKUP(\"SPECCOST,,\"&BD$5&\",\"&sel_country_code&\",\",data[],1),VLOOKUP(\"SPECCOST,,\"&BD$5&\",\"&sel_country_code&\",\",data[],7),BD$909)","v":7.0000000000000007E-2},null,{"$f":"IF(\"SPECCOST,,\"&BF$5&\",\"&sel_country_code&\",\"=VLOOKUP(\"SPECCOST,,\"&BF$5&\",\"&sel_country_code&\",\",data[],1),VLOOKUP(\"SPECCOST,,\"&BF$5&\",\"&sel_country_code&\",\",data[],7),BF$909)","v":0.05},{"$f":"IF(\"SPECCOST,,\"&BG$5&\",\"&sel_country_code&\",\"=VLOOKUP(\"SPECCOST,,\"&BG$5&\",\"&sel_country_code&\",\",data[],1),VLOOKUP(\"SPECCOST,,\"&BG$5&\",\"&sel_country_code&\",\",data[],7),BG$909)","v":7.0000000000000007E-2}]
[null,"ARG-FUE",null,null,null,null,null,null,null,null,null,null,null,null,null,null,null,{"$f":"IF(\"SPECCOST,,\"&R$5&\",\"&$B922&\",\"=VLOOKUP(\"SPECCOST,,\"&R$5&\",\"&$B922&\",\",data[],1),VLOOKUP(\"SPECCOST,,\"&R$5&\",\"&$B922&\",\",data[],7),R$909)","v":1.190463995027624E-3},null,{"$f":"IF(\"SPECCOST,,\"&T$5&\",\"&$B922&\",\"=VLOOKUP(\"SPECCOST,,\"&T$5&\",\"&$B922&\",\",data[],1),VLOOKUP(\"SPECCOST,,\"&T$5&\",\"&$B922&\",\",data[],7),T$909)","v":0.05},{"$f":"IF(\"SPECCOST,,\"&U$5&\",\"&$B922&\",\"=VLOOKUP(\"SPECCOST,,\"&U$5&\",\"&$B922&\",\",data[],1),VLOOKUP(\"SPECCOST,,\"&U$5&\",\"&$B922&\",\",data[],7),U$909)","v":7.0000000000000007E-2},{"$f":"IF(\"SPECCOST,,\"&V$5&\",\"&$B922&\",\"=VLOOKUP(\"SPECCOST,,\"&V$5&\",\"&$B922&\",\",data[],1),VLOOKUP(\"SPECCOST,,\"&V$5&\",\"&$B922&\",\",data[],7),V$909)","v":7.0000000000000007E-2},null,null,{"$f":"IF(\"SPECCOST,,\"&Y$5&\",\"&$B922&\",\"=VLOOKUP(\"SPECCOST,,\"&Y$5&\",\"&$B922&\",\",data[],1),VLOOKUP(\"SPECCOST,,\"&Y$5&\",\"&$B922&\",\",data[],7),Y$909)","v":1.190463995027624E-3},null,{"$f":"IF(\"SPECCOST,,\"&AA$5&\",\"&$B922&\",\"=VLOOKUP(\"SPECCOST,,\"&AA$5&\",\"&$B922&\",\",data[],1),VLOOKUP(\"SPECCOST,,\"&AA$5&\",\"&$B922&\",\",data[],7),AA$909)","v":0.05},{"$f":"IF(\"SPECCOST,,\"&AB$5&\",\"&$B922&\",\"=VLOOKUP(\"SPECCOST,,\"&AB$5&\",\"&$B922&\",\",data[],1),VLOOKUP(\"SPECCOST,,\"&AB$5&\",\"&$B922&\",\",data[],7),AB$909)","v":7.0000000000000007E-2},{"$f":"IF(\"SPECCOST,,\"&AC$5&\",\"&$B922&\",\"=VLOOKUP(\"SPECCOST,,\"&AC$5&\",\"&$B922&\",\",data[],1),VLOOKUP(\"SPECCOST,,\"&AC$5&\",\"&$B922&\",\",data[],7),AC$909)","v":3.8577660276243091E-2},null,{"$f":"IF(\"SPECCOST,,\"&AE$5&\",\"&$B922&\",\"=VLOOKUP(\"SPECCOST,,\"&AE$5&\",\"&$B922&\",\",data[],1),VLOOKUP(\"SPECCOST,,\"&AE$5&\",\"&$B922&\",\",data[],7),AE$909)","v":0.05},{"$f":"IF(\"SPECCOST,,\"&AF$5&\",\"&$B922&\",\"=VLOOKUP(\"SPECCOST,,\"&AF$5&\",\"&$B922&\",\",data[],1),VLOOKUP(\"SPECCOST,,\"&AF$5&\",\"&$B922&\",\",data[],7),AF$909)","v":7.0000000000000007E-2},{"$f":"IF(\"SPECCOST,,\"&AG$5&\",\"&$B922&\",\"=VLOOKUP(\"SPECCOST,,\"&AG$5&\",\"&$B922&\",\",data[],1),VLOOKUP(\"SPECCOST,,\"&AG$5&\",\"&$B922&\",\",data[],7),AG$909)","v":7.0000000000000007E-2},{"$f":"IF(\"SPECCOST,,\"&AH$5&\",\"&$B922&\",\"=VLOOKUP(\"SPECCOST,,\"&AH$5&\",\"&$B922&\",\",data[],1),VLOOKUP(\"SPECCOST,,\"&AH$5&\",\"&$B922&\",\",data[],7),AH$909)","v":0.05},{"$f":"IF(\"SPECCOST,,\"&AI$5&\",\"&$B922&\",\"=VLOOKUP(\"SPECCOST,,\"&AI$5&\",\"&$B922&\",\",data[],1),VLOOKUP(\"SPECCOST,,\"&AI$5&\",\"&$B922&\",\",data[],7),AI$909)","v":0.01},null,null,{"$f":"IF(\"SPECCOST,,\"&AL$5&\",\"&$B922&\",\"=VLOOKUP(\"SPECCOST,,\"&AL$5&\",\"&$B922&\",\",data[],1),VLOOKUP(\"SPECCOST,,\"&AL$5&\",\"&$B922&\",\",data[],7),AL$909)","v":7.0000000000000007E-2},null,{"$f":"IF(\"SPECCOST,,\"&AN$5&\",\"&$B922&\",\"=VLOOKUP(\"SPECCOST,,\"&AN$5&\",\"&$B922&\",\",data[],1),VLOOKUP(\"SPECCOST,,\"&AN$5&\",\"&$B922&\",\",data[],7),AN$909)","v":7.0000000000000007E-2},null,null,null,null,null,null,null,{"$f":"IF(\"SPECCOST,,\"&AV$5&\",\"&$B922&\",\"=VLOOKUP(\"SPECCOST,,\"&AV$5&\",\"&$B922&\",\",data[],1),VLOOKUP(\"SPECCOST,,\"&AV$5&\",\"&$B922&\",\",data[],7),AV$909)","v":2.7940534453652541E-3},null,null,null,null,null,null,{"$f":"IF(\"SPECCOST,,\"&BC$5&\",\"&sel_country_code&\",\"=VLOOKUP(\"SPECCOST,,\"&BC$5&\",\"&sel_country_code&\",\",data[],1),VLOOKUP(\"SPECCOST,,\"&BC$5&\",\"&sel_country_code&\",\",data[],7),BC$909)","v":0.05},{"$f":"IF(\"SPECCOST,,\"&BD$5&\",\"&sel_country_code&\",\"=VLOOKUP(\"SPECCOST,,\"&BD$5&\",\"&sel_country_code&\",\",data[],1),VLOOKUP(\"SPECCOST,,\"&BD$5&\",\"&sel_country_code&\",\",data[],7),BD$909)","v":7.0000000000000007E-2},null,{"$f":"IF(\"SPECCOST,,\"&BF$5&\",\"&sel_country_code&\",\"=VLOOKUP(\"SPECCOST,,\"&BF$5&\",\"&sel_country_code&\",\",data[],1),VLOOKUP(\"SPECCOST,,\"&BF$5&\",\"&sel_country_code&\",\",data[],7),BF$909)","v":0.05},{"$f":"IF(\"SPECCOST,,\"&BG$5&\",\"&sel_country_code&\",\"=VLOOKUP(\"SPECCOST,,\"&BG$5&\",\"&sel_country_code&\",\",data[],1),VLOOKUP(\"SPECCOST,,\"&BG$5&\",\"&sel_country_code&\",\",data[],7),BG$909)","v":7.0000000000000007E-2}]
[null,"ARG-JUJ",null,null,null,null,null,null,null,null,null,null,null,null,null,null,null,{"$f":"IF(\"SPECCOST,,\"&R$5&\",\"&$B923&\",\"=VLOOKUP(\"SPECCOST,,\"&R$5&\",\"&$B923&\",\",data[],1),VLOOKUP(\"SPECCOST,,\"&R$5&\",\"&$B923&\",\",data[],7),R$909)","v":1.190463995027624E-3},null,{"$f":"IF(\"SPECCOST,,\"&T$5&\",\"&$B923&\",\"=VLOOKUP(\"SPECCOST,,\"&T$5&\",\"&$B923&\",\",data[],1),VLOOKUP(\"SPECCOST,,\"&T$5&\",\"&$B923&\",\",data[],7),T$909)","v":0.05},{"$f":"IF(\"SPECCOST,,\"&U$5&\",\"&$B923&\",\"=VLOOKUP(\"SPECCOST,,\"&U$5&\",\"&$B923&\",\",data[],1),VLOOKUP(\"SPECCOST,,\"&U$5&\",\"&$B923&\",\",data[],7),U$909)","v":7.0000000000000007E-2},{"$f":"IF(\"SPECCOST,,\"&V$5&\",\"&$B923&\",\"=VLOOKUP(\"SPECCOST,,\"&V$5&\",\"&$B923&\",\",data[],1),VLOOKUP(\"SPECCOST,,\"&V$5&\",\"&$B923&\",\",data[],7),V$909)","v":7.0000000000000007E-2},null,null,{"$f":"IF(\"SPECCOST,,\"&Y$5&\",\"&$B923&\",\"=VLOOKUP(\"SPECCOST,,\"&Y$5&\",\"&$B923&\",\",data[],1),VLOOKUP(\"SPECCOST,,\"&Y$5&\",\"&$B923&\",\",data[],7),Y$909)","v":1.190463995027624E-3},null,{"$f":"IF(\"SPECCOST,,\"&AA$5&\",\"&$B923&\",\"=VLOOKUP(\"SPECCOST,,\"&AA$5&\",\"&$B923&\",\",data[],1),VLOOKUP(\"SPECCOST,,\"&AA$5&\",\"&$B923&\",\",data[],7),AA$909)","v":0.05},{"$f":"IF(\"SPECCOST,,\"&AB$5&\",\"&$B923&\",\"=VLOOKUP(\"SPECCOST,,\"&AB$5&\",\"&$B923&\",\",data[],1),VLOOKUP(\"SPECCOST,,\"&AB$5&\",\"&$B923&\",\",data[],7),AB$909)","v":7.0000000000000007E-2},{"$f":"IF(\"SPECCOST,,\"&AC$5&\",\"&$B923&\",\"=VLOOKUP(\"SPECCOST,,\"&AC$5&\",\"&$B923&\",\",data[],1),VLOOKUP(\"SPECCOST,,\"&AC$5&\",\"&$B923&\",\",data[],7),AC$909)","v":3.8577660276243091E-2},null,{"$f":"IF(\"SPECCOST,,\"&AE$5&\",\"&$B923&\",\"=VLOOKUP(\"SPECCOST,,\"&AE$5&\",\"&$B923&\",\",data[],1),VLOOKUP(\"SPECCOST,,\"&AE$5&\",\"&$B923&\",\",data[],7),AE$909)","v":0.05},{"$f":"IF(\"SPECCOST,,\"&AF$5&\",\"&$B923&\",\"=VLOOKUP(\"SPECCOST,,\"&AF$5&\",\"&$B923&\",\",data[],1),VLOOKUP(\"SPECCOST,,\"&AF$5&\",\"&$B923&\",\",data[],7),AF$909)","v":7.0000000000000007E-2},{"$f":"IF(\"SPECCOST,,\"&AG$5&\",\"&$B923&\",\"=VLOOKUP(\"SPECCOST,,\"&AG$5&\",\"&$B923&\",\",data[],1),VLOOKUP(\"SPECCOST,,\"&AG$5&\",\"&$B923&\",\",data[],7),AG$909)","v":7.0000000000000007E-2},{"$f":"IF(\"SPECCOST,,\"&AH$5&\",\"&$B923&\",\"=VLOOKUP(\"SPECCOST,,\"&AH$5&\",\"&$B923&\",\",data[],1),VLOOKUP(\"SPECCOST,,\"&AH$5&\",\"&$B923&\",\",data[],7),AH$909)","v":0.05},{"$f":"IF(\"SPECCOST,,\"&AI$5&\",\"&$B923&\",\"=VLOOKUP(\"SPECCOST,,\"&AI$5&\",\"&$B923&\",\",data[],1),VLOOKUP(\"SPECCOST,,\"&AI$5&\",\"&$B923&\",\",data[],7),AI$909)","v":0.01},null,null,{"$f":"IF(\"SPECCOST,,\"&AL$5&\",\"&$B923&\",\"=VLOOKUP(\"SPECCOST,,\"&AL$5&\",\"&$B923&\",\",data[],1),VLOOKUP(\"SPECCOST,,\"&AL$5&\",\"&$B923&\",\",data[],7),AL$909)","v":7.0000000000000007E-2},null,{"$f":"IF(\"SPECCOST,,\"&AN$5&\",\"&$B923&\",\"=VLOOKUP(\"SPECCOST,,\"&AN$5&\",\"&$B923&\",\",data[],1),VLOOKUP(\"SPECCOST,,\"&AN$5&\",\"&$B923&\",\",data[],7),AN$909)","v":7.0000000000000007E-2},null,null,null,null,null,null,null,{"$f":"IF(\"SPECCOST,,\"&AV$5&\",\"&$B923&\",\"=VLOOKUP(\"SPECCOST,,\"&AV$5&\",\"&$B923&\",\",data[],1),VLOOKUP(\"SPECCOST,,\"&AV$5&\",\"&$B923&\",\",data[],7),AV$909)","v":2.7940534453652541E-3},null,null,null,null,null,null,{"$f":"IF(\"SPECCOST,,\"&BC$5&\",\"&sel_country_code&\",\"=VLOOKUP(\"SPECCOST,,\"&BC$5&\",\"&sel_country_code&\",\",data[],1),VLOOKUP(\"SPECCOST,,\"&BC$5&\",\"&sel_country_code&\",\",data[],7),BC$909)","v":0.05},{"$f":"IF(\"SPECCOST,,\"&BD$5&\",\"&sel_country_code&\",\"=VLOOKUP(\"SPECCOST,,\"&BD$5&\",\"&sel_country_code&\",\",data[],1),VLOOKUP(\"SPECCOST,,\"&BD$5&\",\"&sel_country_code&\",\",data[],7),BD$909)","v":7.0000000000000007E-2},null,{"$f":"IF(\"SPECCOST,,\"&BF$5&\",\"&sel_country_code&\",\"=VLOOKUP(\"SPECCOST,,\"&BF$5&\",\"&sel_country_code&\",\",data[],1),VLOOKUP(\"SPECCOST,,\"&BF$5&\",\"&sel_country_code&\",\",data[],7),BF$909)","v":0.05},{"$f":"IF(\"SPECCOST,,\"&BG$5&\",\"&sel_country_code&\",\"=VLOOKUP(\"SPECCOST,,\"&BG$5&\",\"&sel_country_code&\",\",data[],1),VLOOKUP(\"SPECCOST,,\"&BG$5&\",\"&sel_country_code&\",\",data[],7),BG$909)","v":7.0000000000000007E-2}]
[null,"ARG-LAR",null,null,null,null,null,null,null,null,null,null,null,null,null,null,null,{"$f":"IF(\"SPECCOST,,\"&R$5&\",\"&$B924&\",\"=VLOOKUP(\"SPECCOST,,\"&R$5&\",\"&$B924&\",\",data[],1),VLOOKUP(\"SPECCOST,,\"&R$5&\",\"&$B924&\",\",data[],7),R$909)","v":1.190463995027624E-3},null,{"$f":"IF(\"SPECCOST,,\"&T$5&\",\"&$B924&\",\"=VLOOKUP(\"SPECCOST,,\"&T$5&\",\"&$B924&\",\",data[],1),VLOOKUP(\"SPECCOST,,\"&T$5&\",\"&$B924&\",\",data[],7),T$909)","v":0.05},{"$f":"IF(\"SPECCOST,,\"&U$5&\",\"&$B924&\",\"=VLOOKUP(\"SPECCOST,,\"&U$5&\",\"&$B924&\",\",data[],1),VLOOKUP(\"SPECCOST,,\"&U$5&\",\"&$B924&\",\",data[],7),U$909)","v":7.0000000000000007E-2},{"$f":"IF(\"SPECCOST,,\"&V$5&\",\"&$B924&\",\"=VLOOKUP(\"SPECCOST,,\"&V$5&\",\"&$B924&\",\",data[],1),VLOOKUP(\"SPECCOST,,\"&V$5&\",\"&$B924&\",\",data[],7),V$909)","v":7.0000000000000007E-2},null,null,{"$f":"IF(\"SPECCOST,,\"&Y$5&\",\"&$B924&\",\"=VLOOKUP(\"SPECCOST,,\"&Y$5&\",\"&$B924&\",\",data[],1),VLOOKUP(\"SPECCOST,,\"&Y$5&\",\"&$B924&\",\",data[],7),Y$909)","v":1.190463995027624E-3},null,{"$f":"IF(\"SPECCOST,,\"&AA$5&\",\"&$B924&\",\"=VLOOKUP(\"SPECCOST,,\"&AA$5&\",\"&$B924&\",\",data[],1),VLOOKUP(\"SPECCOST,,\"&AA$5&\",\"&$B924&\",\",data[],7),AA$909)","v":0.05},{"$f":"IF(\"SPECCOST,,\"&AB$5&\",\"&$B924&\",\"=VLOOKUP(\"SPECCOST,,\"&AB$5&\",\"&$B924&\",\",data[],1),VLOOKUP(\"SPECCOST,,\"&AB$5&\",\"&$B924&\",\",data[],7),AB$909)","v":7.0000000000000007E-2},{"$f":"IF(\"SPECCOST,,\"&AC$5&\",\"&$B924&\",\"=VLOOKUP(\"SPECCOST,,\"&AC$5&\",\"&$B924&\",\",data[],1),VLOOKUP(\"SPECCOST,,\"&AC$5&\",\"&$B924&\",\",data[],7),AC$909)","v":3.8577660276243091E-2},null,{"$f":"IF(\"SPECCOST,,\"&AE$5&\",\"&$B924&\",\"=VLOOKUP(\"SPECCOST,,\"&AE$5&\",\"&$B924&\",\",data[],1),VLOOKUP(\"SPECCOST,,\"&AE$5&\",\"&$B924&\",\",data[],7),AE$909)","v":0.05},{"$f":"IF(\"SPECCOST,,\"&AF$5&\",\"&$B924&\",\"=VLOOKUP(\"SPECCOST,,\"&AF$5&\",\"&$B924&\",\",data[],1),VLOOKUP(\"SPECCOST,,\"&AF$5&\",\"&$B924&\",\",data[],7),AF$909)","v":7.0000000000000007E-2},{"$f":"IF(\"SPECCOST,,\"&AG$5&\",\"&$B924&\",\"=VLOOKUP(\"SPECCOST,,\"&AG$5&\",\"&$B924&\",\",data[],1),VLOOKUP(\"SPECCOST,,\"&AG$5&\",\"&$B924&\",\",data[],7),AG$909)","v":7.0000000000000007E-2},{"$f":"IF(\"SPECCOST,,\"&AH$5&\",\"&$B924&\",\"=VLOOKUP(\"SPECCOST,,\"&AH$5&\",\"&$B924&\",\",data[],1),VLOOKUP(\"SPECCOST,,\"&AH$5&\",\"&$B924&\",\",data[],7),AH$909)","v":0.05},{"$f":"IF(\"SPECCOST,,\"&AI$5&\",\"&$B924&\",\"=VLOOKUP(\"SPECCOST,,\"&AI$5&\",\"&$B924&\",\",data[],1),VLOOKUP(\"SPECCOST,,\"&AI$5&\",\"&$B924&\",\",data[],7),AI$909)","v":0.01},null,null,{"$f":"IF(\"SPECCOST,,\"&AL$5&\",\"&$B924&\",\"=VLOOKUP(\"SPECCOST,,\"&AL$5&\",\"&$B924&\",\",data[],1),VLOOKUP(\"SPECCOST,,\"&AL$5&\",\"&$B924&\",\",data[],7),AL$909)","v":7.0000000000000007E-2},null,{"$f":"IF(\"SPECCOST,,\"&AN$5&\",\"&$B924&\",\"=VLOOKUP(\"SPECCOST,,\"&AN$5&\",\"&$B924&\",\",data[],1),VLOOKUP(\"SPECCOST,,\"&AN$5&\",\"&$B924&\",\",data[],7),AN$909)","v":7.0000000000000007E-2},null,null,null,null,null,null,null,{"$f":"IF(\"SPECCOST,,\"&AV$5&\",\"&$B924&\",\"=VLOOKUP(\"SPECCOST,,\"&AV$5&\",\"&$B924&\",\",data[],1),VLOOKUP(\"SPECCOST,,\"&AV$5&\",\"&$B924&\",\",data[],7),AV$909)","v":2.7940534453652541E-3},null,null,null,null,null,null,{"$f":"IF(\"SPECCOST,,\"&BC$5&\",\"&sel_country_code&\",\"=VLOOKUP(\"SPECCOST,,\"&BC$5&\",\"&sel_country_code&\",\",data[],1),VLOOKUP(\"SPECCOST,,\"&BC$5&\",\"&sel_country_code&\",\",data[],7),BC$909)","v":0.05},{"$f":"IF(\"SPECCOST,,\"&BD$5&\",\"&sel_country_code&\",\"=VLOOKUP(\"SPECCOST,,\"&BD$5&\",\"&sel_country_code&\",\",data[],1),VLOOKUP(\"SPECCOST,,\"&BD$5&\",\"&sel_country_code&\",\",data[],7),BD$909)","v":7.0000000000000007E-2},null,{"$f":"IF(\"SPECCOST,,\"&BF$5&\",\"&sel_country_code&\",\"=VLOOKUP(\"SPECCOST,,\"&BF$5&\",\"&sel_country_code&\",\",data[],1),VLOOKUP(\"SPECCOST,,\"&BF$5&\",\"&sel_country_code&\",\",data[],7),BF$909)","v":0.05},{"$f":"IF(\"SPECCOST,,\"&BG$5&\",\"&sel_country_code&\",\"=VLOOKUP(\"SPECCOST,,\"&BG$5&\",\"&sel_country_code&\",\",data[],1),VLOOKUP(\"SPECCOST,,\"&BG$5&\",\"&sel_country_code&\",\",data[],7),BG$909)","v":7.0000000000000007E-2}]
[null,"ARG-MEN",null,null,null,null,null,null,null,null,null,null,null,null,null,null,null,{"$f":"IF(\"SPECCOST,,\"&R$5&\",\"&$B925&\",\"=VLOOKUP(\"SPECCOST,,\"&R$5&\",\"&$B925&\",\",data[],1),VLOOKUP(\"SPECCOST,,\"&R$5&\",\"&$B925&\",\",data[],7),R$909)","v":1.190463995027624E-3},null,{"$f":"IF(\"SPECCOST,,\"&T$5&\",\"&$B925&\",\"=VLOOKUP(\"SPECCOST,,\"&T$5&\",\"&$B925&\",\",data[],1),VLOOKUP(\"SPECCOST,,\"&T$5&\",\"&$B925&\",\",data[],7),T$909)","v":0.05},{"$f":"IF(\"SPECCOST,,\"&U$5&\",\"&$B925&\",\"=VLOOKUP(\"SPECCOST,,\"&U$5&\",\"&$B925&\",\",data[],1),VLOOKUP(\"SPECCOST,,\"&U$5&\",\"&$B925&\",\",data[],7),U$909)","v":7.0000000000000007E-2},{"$f":"IF(\"SPECCOST,,\"&V$5&\",\"&$B925&\",\"=VLOOKUP(\"SPECCOST,,\"&V$5&\",\"&$B925&\",\",data[],1),VLOOKUP(\"SPECCOST,,\"&V$5&\",\"&$B925&\",\",data[],7),V$909)","v":7.0000000000000007E-2},null,null,{"$f":"IF(\"SPECCOST,,\"&Y$5&\",\"&$B925&\",\"=VLOOKUP(\"SPECCOST,,\"&Y$5&\",\"&$B925&\",\",data[],1),VLOOKUP(\"SPECCOST,,\"&Y$5&\",\"&$B925&\",\",data[],7),Y$909)","v":1.190463995027624E-3},null,{"$f":"IF(\"SPECCOST,,\"&AA$5&\",\"&$B925&\",\"=VLOOKUP(\"SPECCOST,,\"&AA$5&\",\"&$B925&\",\",data[],1),VLOOKUP(\"SPECCOST,,\"&AA$5&\",\"&$B925&\",\",data[],7),AA$909)","v":0.05},{"$f":"IF(\"SPECCOST,,\"&AB$5&\",\"&$B925&\",\"=VLOOKUP(\"SPECCOST,,\"&AB$5&\",\"&$B925&\",\",data[],1),VLOOKUP(\"SPECCOST,,\"&AB$5&\",\"&$B925&\",\",data[],7),AB$909)","v":7.0000000000000007E-2},{"$f":"IF(\"SPECCOST,,\"&AC$5&\",\"&$B925&\",\"=VLOOKUP(\"SPECCOST,,\"&AC$5&\",\"&$B925&\",\",data[],1),VLOOKUP(\"SPECCOST,,\"&AC$5&\",\"&$B925&\",\",data[],7),AC$909)","v":3.8577660276243091E-2},null,{"$f":"IF(\"SPECCOST,,\"&AE$5&\",\"&$B925&\",\"=VLOOKUP(\"SPECCOST,,\"&AE$5&\",\"&$B925&\",\",data[],1),VLOOKUP(\"SPECCOST,,\"&AE$5&\",\"&$B925&\",\",data[],7),AE$909)","v":0.05},{"$f":"IF(\"SPECCOST,,\"&AF$5&\",\"&$B925&\",\"=VLOOKUP(\"SPECCOST,,\"&AF$5&\",\"&$B925&\",\",data[],1),VLOOKUP(\"SPECCOST,,\"&AF$5&\",\"&$B925&\",\",data[],7),AF$909)","v":7.0000000000000007E-2},{"$f":"IF(\"SPECCOST,,\"&AG$5&\",\"&$B925&\",\"=VLOOKUP(\"SPECCOST,,\"&AG$5&\",\"&$B925&\",\",data[],1),VLOOKUP(\"SPECCOST,,\"&AG$5&\",\"&$B925&\",\",data[],7),AG$909)","v":7.0000000000000007E-2},{"$f":"IF(\"SPECCOST,,\"&AH$5&\",\"&$B925&\",\"=VLOOKUP(\"SPECCOST,,\"&AH$5&\",\"&$B925&\",\",data[],1),VLOOKUP(\"SPECCOST,,\"&AH$5&\",\"&$B925&\",\",data[],7),AH$909)","v":0.05},{"$f":"IF(\"SPECCOST,,\"&AI$5&\",\"&$B925&\",\"=VLOOKUP(\"SPECCOST,,\"&AI$5&\",\"&$B925&\",\",data[],1),VLOOKUP(\"SPECCOST,,\"&AI$5&\",\"&$B925&\",\",data[],7),AI$909)","v":0.01},null,null,{"$f":"IF(\"SPECCOST,,\"&AL$5&\",\"&$B925&\",\"=VLOOKUP(\"SPECCOST,,\"&AL$5&\",\"&$B925&\",\",data[],1),VLOOKUP(\"SPECCOST,,\"&AL$5&\",\"&$B925&\",\",data[],7),AL$909)","v":7.0000000000000007E-2},null,{"$f":"IF(\"SPECCOST,,\"&AN$5&\",\"&$B925&\",\"=VLOOKUP(\"SPECCOST,,\"&AN$5&\",\"&$B925&\",\",data[],1),VLOOKUP(\"SPECCOST,,\"&AN$5&\",\"&$B925&\",\",data[],7),AN$909)","v":7.0000000000000007E-2},null,null,null,null,null,null,null,{"$f":"IF(\"SPECCOST,,\"&AV$5&\",\"&$B925&\",\"=VLOOKUP(\"SPECCOST,,\"&AV$5&\",\"&$B925&\",\",data[],1),VLOOKUP(\"SPECCOST,,\"&AV$5&\",\"&$B925&\",\",data[],7),AV$909)","v":2.7940534453652541E-3},null,null,null,null,null,null,{"$f":"IF(\"SPECCOST,,\"&BC$5&\",\"&sel_country_code&\",\"=VLOOKUP(\"SPECCOST,,\"&BC$5&\",\"&sel_country_code&\",\",data[],1),VLOOKUP(\"SPECCOST,,\"&BC$5&\",\"&sel_country_code&\",\",data[],7),BC$909)","v":0.05},{"$f":"IF(\"SPECCOST,,\"&BD$5&\",\"&sel_country_code&\",\"=VLOOKUP(\"SPECCOST,,\"&BD$5&\",\"&sel_country_code&\",\",data[],1),VLOOKUP(\"SPECCOST,,\"&BD$5&\",\"&sel_country_code&\",\",data[],7),BD$909)","v":7.0000000000000007E-2},null,{"$f":"IF(\"SPECCOST,,\"&BF$5&\",\"&sel_country_code&\",\"=VLOOKUP(\"SPECCOST,,\"&BF$5&\",\"&sel_country_code&\",\",data[],1),VLOOKUP(\"SPECCOST,,\"&BF$5&\",\"&sel_country_code&\",\",data[],7),BF$909)","v":0.05},{"$f":"IF(\"SPECCOST,,\"&BG$5&\",\"&sel_country_code&\",\"=VLOOKUP(\"SPECCOST,,\"&BG$5&\",\"&sel_country_code&\",\",data[],1),VLOOKUP(\"SPECCOST,,\"&BG$5&\",\"&sel_country_code&\",\",data[],7),BG$909)","v":7.0000000000000007E-2}]
[null,"ARG-MIS",null,null,null,null,null,null,null,null,null,null,null,null,null,null,null,{"$f":"IF(\"SPECCOST,,\"&R$5&\",\"&$B926&\",\"=VLOOKUP(\"SPECCOST,,\"&R$5&\",\"&$B926&\",\",data[],1),VLOOKUP(\"SPECCOST,,\"&R$5&\",\"&$B926&\",\",data[],7),R$909)","v":1.190463995027624E-3},null,{"$f":"IF(\"SPECCOST,,\"&T$5&\",\"&$B926&\",\"=VLOOKUP(\"SPECCOST,,\"&T$5&\",\"&$B926&\",\",data[],1),VLOOKUP(\"SPECCOST,,\"&T$5&\",\"&$B926&\",\",data[],7),T$909)","v":0.05},{"$f":"IF(\"SPECCOST,,\"&U$5&\",\"&$B926&\",\"=VLOOKUP(\"SPECCOST,,\"&U$5&\",\"&$B926&\",\",data[],1),VLOOKUP(\"SPECCOST,,\"&U$5&\",\"&$B926&\",\",data[],7),U$909)","v":7.0000000000000007E-2},{"$f":"IF(\"SPECCOST,,\"&V$5&\",\"&$B926&\",\"=VLOOKUP(\"SPECCOST,,\"&V$5&\",\"&$B926&\",\",data[],1),VLOOKUP(\"SPECCOST,,\"&V$5&\",\"&$B926&\",\",data[],7),V$909)","v":7.0000000000000007E-2},null,null,{"$f":"IF(\"SPECCOST,,\"&Y$5&\",\"&$B926&\",\"=VLOOKUP(\"SPECCOST,,\"&Y$5&\",\"&$B926&\",\",data[],1),VLOOKUP(\"SPECCOST,,\"&Y$5&\",\"&$B926&\",\",data[],7),Y$909)","v":1.190463995027624E-3},null,{"$f":"IF(\"SPECCOST,,\"&AA$5&\",\"&$B926&\",\"=VLOOKUP(\"SPECCOST,,\"&AA$5&\",\"&$B926&\",\",data[],1),VLOOKUP(\"SPECCOST,,\"&AA$5&\",\"&$B926&\",\",data[],7),AA$909)","v":0.05},{"$f":"IF(\"SPECCOST,,\"&AB$5&\",\"&$B926&\",\"=VLOOKUP(\"SPECCOST,,\"&AB$5&\",\"&$B926&\",\",data[],1),VLOOKUP(\"SPECCOST,,\"&AB$5&\",\"&$B926&\",\",data[],7),AB$909)","v":7.0000000000000007E-2},{"$f":"IF(\"SPECCOST,,\"&AC$5&\",\"&$B926&\",\"=VLOOKUP(\"SPECCOST,,\"&AC$5&\",\"&$B926&\",\",data[],1),VLOOKUP(\"SPECCOST,,\"&AC$5&\",\"&$B926&\",\",data[],7),AC$909)","v":3.8577660276243091E-2},null,{"$f":"IF(\"SPECCOST,,\"&AE$5&\",\"&$B926&\",\"=VLOOKUP(\"SPECCOST,,\"&AE$5&\",\"&$B926&\",\",data[],1),VLOOKUP(\"SPECCOST,,\"&AE$5&\",\"&$B926&\",\",data[],7),AE$909)","v":0.05},{"$f":"IF(\"SPECCOST,,\"&AF$5&\",\"&$B926&\",\"=VLOOKUP(\"SPECCOST,,\"&AF$5&\",\"&$B926&\",\",data[],1),VLOOKUP(\"SPECCOST,,\"&AF$5&\",\"&$B926&\",\",data[],7),AF$909)","v":7.0000000000000007E-2},{"$f":"IF(\"SPECCOST,,\"&AG$5&\",\"&$B926&\",\"=VLOOKUP(\"SPECCOST,,\"&AG$5&\",\"&$B926&\",\",data[],1),VLOOKUP(\"SPECCOST,,\"&AG$5&\",\"&$B926&\",\",data[],7),AG$909)","v":7.0000000000000007E-2},{"$f":"IF(\"SPECCOST,,\"&AH$5&\",\"&$B926&\",\"=VLOOKUP(\"SPECCOST,,\"&AH$5&\",\"&$B926&\",\",data[],1),VLOOKUP(\"SPECCOST,,\"&AH$5&\",\"&$B926&\",\",data[],7),AH$909)","v":0.05},{"$f":"IF(\"SPECCOST,,\"&AI$5&\",\"&$B926&\",\"=VLOOKUP(\"SPECCOST,,\"&AI$5&\",\"&$B926&\",\",data[],1),VLOOKUP(\"SPECCOST,,\"&AI$5&\",\"&$B926&\",\",data[],7),AI$909)","v":0.01},null,null,{"$f":"IF(\"SPECCOST,,\"&AL$5&\",\"&$B926&\",\"=VLOOKUP(\"SPECCOST,,\"&AL$5&\",\"&$B926&\",\",data[],1),VLOOKUP(\"SPECCOST,,\"&AL$5&\",\"&$B926&\",\",data[],7),AL$909)","v":7.0000000000000007E-2},null,{"$f":"IF(\"SPECCOST,,\"&AN$5&\",\"&$B926&\",\"=VLOOKUP(\"SPECCOST,,\"&AN$5&\",\"&$B926&\",\",data[],1),VLOOKUP(\"SPECCOST,,\"&AN$5&\",\"&$B926&\",\",data[],7),AN$909)","v":7.0000000000000007E-2},null,null,null,null,null,null,null,{"$f":"IF(\"SPECCOST,,\"&AV$5&\",\"&$B926&\",\"=VLOOKUP(\"SPECCOST,,\"&AV$5&\",\"&$B926&\",\",data[],1),VLOOKUP(\"SPECCOST,,\"&AV$5&\",\"&$B926&\",\",data[],7),AV$909)","v":2.7940534453652541E-3},null,null,null,null,null,null,{"$f":"IF(\"SPECCOST,,\"&BC$5&\",\"&sel_country_code&\",\"=VLOOKUP(\"SPECCOST,,\"&BC$5&\",\"&sel_country_code&\",\",data[],1),VLOOKUP(\"SPECCOST,,\"&BC$5&\",\"&sel_country_code&\",\",data[],7),BC$909)","v":0.05},{"$f":"IF(\"SPECCOST,,\"&BD$5&\",\"&sel_country_code&\",\"=VLOOKUP(\"SPECCOST,,\"&BD$5&\",\"&sel_country_code&\",\",data[],1),VLOOKUP(\"SPECCOST,,\"&BD$5&\",\"&sel_country_code&\",\",data[],7),BD$909)","v":7.0000000000000007E-2},null,{"$f":"IF(\"SPECCOST,,\"&BF$5&\",\"&sel_country_code&\",\"=VLOOKUP(\"SPECCOST,,\"&BF$5&\",\"&sel_country_code&\",\",data[],1),VLOOKUP(\"SPECCOST,,\"&BF$5&\",\"&sel_country_code&\",\",data[],7),BF$909)","v":0.05},{"$f":"IF(\"SPECCOST,,\"&BG$5&\",\"&sel_country_code&\",\"=VLOOKUP(\"SPECCOST,,\"&BG$5&\",\"&sel_country_code&\",\",data[],1),VLOOKUP(\"SPECCOST,,\"&BG$5&\",\"&sel_country_code&\",\",data[],7),BG$909)","v":7.0000000000000007E-2}]
[null,"ARG-NEG",null,null,null,null,null,null,null,null,null,null,null,null,null,null,null,{"$f":"IF(\"SPECCOST,,\"&R$5&\",\"&$B927&\",\"=VLOOKUP(\"SPECCOST,,\"&R$5&\",\"&$B927&\",\",data[],1),VLOOKUP(\"SPECCOST,,\"&R$5&\",\"&$B927&\",\",data[],7),R$909)","v":1.190463995027624E-3},null,{"$f":"IF(\"SPECCOST,,\"&T$5&\",\"&$B927&\",\"=VLOOKUP(\"SPECCOST,,\"&T$5&\",\"&$B927&\",\",data[],1),VLOOKUP(\"SPECCOST,,\"&T$5&\",\"&$B927&\",\",data[],7),T$909)","v":0.05},{"$f":"IF(\"SPECCOST,,\"&U$5&\",\"&$B927&\",\"=VLOOKUP(\"SPECCOST,,\"&U$5&\",\"&$B927&\",\",data[],1),VLOOKUP(\"SPECCOST,,\"&U$5&\",\"&$B927&\",\",data[],7),U$909)","v":7.0000000000000007E-2},{"$f":"IF(\"SPECCOST,,\"&V$5&\",\"&$B927&\",\"=VLOOKUP(\"SPECCOST,,\"&V$5&\",\"&$B927&\",\",data[],1),VLOOKUP(\"SPECCOST,,\"&V$5&\",\"&$B927&\",\",data[],7),V$909)","v":7.0000000000000007E-2},null,null,{"$f":"IF(\"SPECCOST,,\"&Y$5&\",\"&$B927&\",\"=VLOOKUP(\"SPECCOST,,\"&Y$5&\",\"&$B927&\",\",data[],1),VLOOKUP(\"SPECCOST,,\"&Y$5&\",\"&$B927&\",\",data[],7),Y$909)","v":1.190463995027624E-3},null,{"$f":"IF(\"SPECCOST,,\"&AA$5&\",\"&$B927&\",\"=VLOOKUP(\"SPECCOST,,\"&AA$5&\",\"&$B927&\",\",data[],1),VLOOKUP(\"SPECCOST,,\"&AA$5&\",\"&$B927&\",\",data[],7),AA$909)","v":0.05},{"$f":"IF(\"SPECCOST,,\"&AB$5&\",\"&$B927&\",\"=VLOOKUP(\"SPECCOST,,\"&AB$5&\",\"&$B927&\",\",data[],1),VLOOKUP(\"SPECCOST,,\"&AB$5&\",\"&$B927&\",\",data[],7),AB$909)","v":7.0000000000000007E-2},{"$f":"IF(\"SPECCOST,,\"&AC$5&\",\"&$B927&\",\"=VLOOKUP(\"SPECCOST,,\"&AC$5&\",\"&$B927&\",\",data[],1),VLOOKUP(\"SPECCOST,,\"&AC$5&\",\"&$B927&\",\",data[],7),AC$909)","v":3.8577660276243091E-2},null,{"$f":"IF(\"SPECCOST,,\"&AE$5&\",\"&$B927&\",\"=VLOOKUP(\"SPECCOST,,\"&AE$5&\",\"&$B927&\",\",data[],1),VLOOKUP(\"SPECCOST,,\"&AE$5&\",\"&$B927&\",\",data[],7),AE$909)","v":0.05},{"$f":"IF(\"SPECCOST,,\"&AF$5&\",\"&$B927&\",\"=VLOOKUP(\"SPECCOST,,\"&AF$5&\",\"&$B927&\",\",data[],1),VLOOKUP(\"SPECCOST,,\"&AF$5&\",\"&$B927&\",\",data[],7),AF$909)","v":7.0000000000000007E-2},{"$f":"IF(\"SPECCOST,,\"&AG$5&\",\"&$B927&\",\"=VLOOKUP(\"SPECCOST,,\"&AG$5&\",\"&$B927&\",\",data[],1),VLOOKUP(\"SPECCOST,,\"&AG$5&\",\"&$B927&\",\",data[],7),AG$909)","v":7.0000000000000007E-2},{"$f":"IF(\"SPECCOST,,\"&AH$5&\",\"&$B927&\",\"=VLOOKUP(\"SPECCOST,,\"&AH$5&\",\"&$B927&\",\",data[],1),VLOOKUP(\"SPECCOST,,\"&AH$5&\",\"&$B927&\",\",data[],7),AH$909)","v":0.05},{"$f":"IF(\"SPECCOST,,\"&AI$5&\",\"&$B927&\",\"=VLOOKUP(\"SPECCOST,,\"&AI$5&\",\"&$B927&\",\",data[],1),VLOOKUP(\"SPECCOST,,\"&AI$5&\",\"&$B927&\",\",data[],7),AI$909)","v":0.01},null,null,{"$f":"IF(\"SPECCOST,,\"&AL$5&\",\"&$B927&\",\"=VLOOKUP(\"SPECCOST,,\"&AL$5&\",\"&$B927&\",\",data[],1),VLOOKUP(\"SPECCOST,,\"&AL$5&\",\"&$B927&\",\",data[],7),AL$909)","v":7.0000000000000007E-2},null,{"$f":"IF(\"SPECCOST,,\"&AN$5&\",\"&$B927&\",\"=VLOOKUP(\"SPECCOST,,\"&AN$5&\",\"&$B927&\",\",data[],1),VLOOKUP(\"SPECCOST,,\"&AN$5&\",\"&$B927&\",\",data[],7),AN$909)","v":7.0000000000000007E-2},null,null,null,null,null,null,null,{"$f":"IF(\"SPECCOST,,\"&AV$5&\",\"&$B927&\",\"=VLOOKUP(\"SPECCOST,,\"&AV$5&\",\"&$B927&\",\",data[],1),VLOOKUP(\"SPECCOST,,\"&AV$5&\",\"&$B927&\",\",data[],7),AV$909)","v":2.7940534453652541E-3},null,null,null,null,null,null,{"$f":"IF(\"SPECCOST,,\"&BC$5&\",\"&sel_country_code&\",\"=VLOOKUP(\"SPECCOST,,\"&BC$5&\",\"&sel_country_code&\",\",data[],1),VLOOKUP(\"SPECCOST,,\"&BC$5&\",\"&sel_country_code&\",\",data[],7),BC$909)","v":0.05},{"$f":"IF(\"SPECCOST,,\"&BD$5&\",\"&sel_country_code&\",\"=VLOOKUP(\"SPECCOST,,\"&BD$5&\",\"&sel_country_code&\",\",data[],1),VLOOKUP(\"SPECCOST,,\"&BD$5&\",\"&sel_country_code&\",\",data[],7),BD$909)","v":7.0000000000000007E-2},null,{"$f":"IF(\"SPECCOST,,\"&BF$5&\",\"&sel_country_code&\",\"=VLOOKUP(\"SPECCOST,,\"&BF$5&\",\"&sel_country_code&\",\",data[],1),VLOOKUP(\"SPECCOST,,\"&BF$5&\",\"&sel_country_code&\",\",data[],7),BF$909)","v":0.05},{"$f":"IF(\"SPECCOST,,\"&BG$5&\",\"&sel_country_code&\",\"=VLOOKUP(\"SPECCOST,,\"&BG$5&\",\"&sel_country_code&\",\",data[],1),VLOOKUP(\"SPECCOST,,\"&BG$5&\",\"&sel_country_code&\",\",data[],7),BG$909)","v":7.0000000000000007E-2}]
[null,"ARG-NEU",null,null,null,null,null,null,null,null,null,null,null,null,null,null,null,{"$f":"IF(\"SPECCOST,,\"&R$5&\",\"&$B928&\",\"=VLOOKUP(\"SPECCOST,,\"&R$5&\",\"&$B928&\",\",data[],1),VLOOKUP(\"SPECCOST,,\"&R$5&\",\"&$B928&\",\",data[],7),R$909)","v":1.190463995027624E-3},null,{"$f":"IF(\"SPECCOST,,\"&T$5&\",\"&$B928&\",\"=VLOOKUP(\"SPECCOST,,\"&T$5&\",\"&$B928&\",\",data[],1),VLOOKUP(\"SPECCOST,,\"&T$5&\",\"&$B928&\",\",data[],7),T$909)","v":0.05},{"$f":"IF(\"SPECCOST,,\"&U$5&\",\"&$B928&\",\"=VLOOKUP(\"SPECCOST,,\"&U$5&\",\"&$B928&\",\",data[],1),VLOOKUP(\"SPECCOST,,\"&U$5&\",\"&$B928&\",\",data[],7),U$909)","v":7.0000000000000007E-2},{"$f":"IF(\"SPECCOST,,\"&V$5&\",\"&$B928&\",\"=VLOOKUP(\"SPECCOST,,\"&V$5&\",\"&$B928&\",\",data[],1),VLOOKUP(\"SPECCOST,,\"&V$5&\",\"&$B928&\",\",data[],7),V$909)","v":7.0000000000000007E-2},null,null,{"$f":"IF(\"SPECCOST,,\"&Y$5&\",\"&$B928&\",\"=VLOOKUP(\"SPECCOST,,\"&Y$5&\",\"&$B928&\",\",data[],1),VLOOKUP(\"SPECCOST,,\"&Y$5&\",\"&$B928&\",\",data[],7),Y$909)","v":1.190463995027624E-3},null,{"$f":"IF(\"SPECCOST,,\"&AA$5&\",\"&$B928&\",\"=VLOOKUP(\"SPECCOST,,\"&AA$5&\",\"&$B928&\",\",data[],1),VLOOKUP(\"SPECCOST,,\"&AA$5&\",\"&$B928&\",\",data[],7),AA$909)","v":0.05},{"$f":"IF(\"SPECCOST,,\"&AB$5&\",\"&$B928&\",\"=VLOOKUP(\"SPECCOST,,\"&AB$5&\",\"&$B928&\",\",data[],1),VLOOKUP(\"SPECCOST,,\"&AB$5&\",\"&$B928&\",\",data[],7),AB$909)","v":7.0000000000000007E-2},{"$f":"IF(\"SPECCOST,,\"&AC$5&\",\"&$B928&\",\"=VLOOKUP(\"SPECCOST,,\"&AC$5&\",\"&$B928&\",\",data[],1),VLOOKUP(\"SPECCOST,,\"&AC$5&\",\"&$B928&\",\",data[],7),AC$909)","v":3.8577660276243091E-2},null,{"$f":"IF(\"SPECCOST,,\"&AE$5&\",\"&$B928&\",\"=VLOOKUP(\"SPECCOST,,\"&AE$5&\",\"&$B928&\",\",data[],1),VLOOKUP(\"SPECCOST,,\"&AE$5&\",\"&$B928&\",\",data[],7),AE$909)","v":0.05},{"$f":"IF(\"SPECCOST,,\"&AF$5&\",\"&$B928&\",\"=VLOOKUP(\"SPECCOST,,\"&AF$5&\",\"&$B928&\",\",data[],1),VLOOKUP(\"SPECCOST,,\"&AF$5&\",\"&$B928&\",\",data[],7),AF$909)","v":7.0000000000000007E-2},{"$f":"IF(\"SPECCOST,,\"&AG$5&\",\"&$B928&\",\"=VLOOKUP(\"SPECCOST,,\"&AG$5&\",\"&$B928&\",\",data[],1),VLOOKUP(\"SPECCOST,,\"&AG$5&\",\"&$B928&\",\",data[],7),AG$909)","v":7.0000000000000007E-2},{"$f":"IF(\"SPECCOST,,\"&AH$5&\",\"&$B928&\",\"=VLOOKUP(\"SPECCOST,,\"&AH$5&\",\"&$B928&\",\",data[],1),VLOOKUP(\"SPECCOST,,\"&AH$5&\",\"&$B928&\",\",data[],7),AH$909)","v":0.05},{"$f":"IF(\"SPECCOST,,\"&AI$5&\",\"&$B928&\",\"=VLOOKUP(\"SPECCOST,,\"&AI$5&\",\"&$B928&\",\",data[],1),VLOOKUP(\"SPECCOST,,\"&AI$5&\",\"&$B928&\",\",data[],7),AI$909)","v":0.01},null,null,{"$f":"IF(\"SPECCOST,,\"&AL$5&\",\"&$B928&\",\"=VLOOKUP(\"SPECCOST,,\"&AL$5&\",\"&$B928&\",\",data[],1),VLOOKUP(\"SPECCOST,,\"&AL$5&\",\"&$B928&\",\",data[],7),AL$909)","v":7.0000000000000007E-2},null,{"$f":"IF(\"SPECCOST,,\"&AN$5&\",\"&$B928&\",\"=VLOOKUP(\"SPECCOST,,\"&AN$5&\",\"&$B928&\",\",data[],1),VLOOKUP(\"SPECCOST,,\"&AN$5&\",\"&$B928&\",\",data[],7),AN$909)","v":7.0000000000000007E-2},null,null,null,null,null,null,null,{"$f":"IF(\"SPECCOST,,\"&AV$5&\",\"&$B928&\",\"=VLOOKUP(\"SPECCOST,,\"&AV$5&\",\"&$B928&\",\",data[],1),VLOOKUP(\"SPECCOST,,\"&AV$5&\",\"&$B928&\",\",data[],7),AV$909)","v":2.7940534453652541E-3},null,null,null,null,null,null,{"$f":"IF(\"SPECCOST,,\"&BC$5&\",\"&sel_country_code&\",\"=VLOOKUP(\"SPECCOST,,\"&BC$5&\",\"&sel_country_code&\",\",data[],1),VLOOKUP(\"SPECCOST,,\"&BC$5&\",\"&sel_country_code&\",\",data[],7),BC$909)","v":0.05},{"$f":"IF(\"SPECCOST,,\"&BD$5&\",\"&sel_country_code&\",\"=VLOOKUP(\"SPECCOST,,\"&BD$5&\",\"&sel_country_code&\",\",data[],1),VLOOKUP(\"SPECCOST,,\"&BD$5&\",\"&sel_country_code&\",\",data[],7),BD$909)","v":7.0000000000000007E-2},null,{"$f":"IF(\"SPECCOST,,\"&BF$5&\",\"&sel_country_code&\",\"=VLOOKUP(\"SPECCOST,,\"&BF$5&\",\"&sel_country_code&\",\",data[],1),VLOOKUP(\"SPECCOST,,\"&BF$5&\",\"&sel_country_code&\",\",data[],7),BF$909)","v":0.05},{"$f":"IF(\"SPECCOST,,\"&BG$5&\",\"&sel_country_code&\",\"=VLOOKUP(\"SPECCOST,,\"&BG$5&\",\"&sel_country_code&\",\",data[],1),VLOOKUP(\"SPECCOST,,\"&BG$5&\",\"&sel_country_code&\",\",data[],7),BG$909)","v":7.0000000000000007E-2}]
[null,"ARG-PAM",null,null,null,null,null,null,null,null,null,null,null,null,null,null,null,{"$f":"IF(\"SPECCOST,,\"&R$5&\",\"&$B929&\",\"=VLOOKUP(\"SPECCOST,,\"&R$5&\",\"&$B929&\",\",data[],1),VLOOKUP(\"SPECCOST,,\"&R$5&\",\"&$B929&\",\",data[],7),R$909)","v":1.190463995027624E-3},null,{"$f":"IF(\"SPECCOST,,\"&T$5&\",\"&$B929&\",\"=VLOOKUP(\"SPECCOST,,\"&T$5&\",\"&$B929&\",\",data[],1),VLOOKUP(\"SPECCOST,,\"&T$5&\",\"&$B929&\",\",data[],7),T$909)","v":0.05},{"$f":"IF(\"SPECCOST,,\"&U$5&\",\"&$B929&\",\"=VLOOKUP(\"SPECCOST,,\"&U$5&\",\"&$B929&\",\",data[],1),VLOOKUP(\"SPECCOST,,\"&U$5&\",\"&$B929&\",\",data[],7),U$909)","v":7.0000000000000007E-2},{"$f":"IF(\"SPECCOST,,\"&V$5&\",\"&$B929&\",\"=VLOOKUP(\"SPECCOST,,\"&V$5&\",\"&$B929&\",\",data[],1),VLOOKUP(\"SPECCOST,,\"&V$5&\",\"&$B929&\",\",data[],7),V$909)","v":7.0000000000000007E-2},null,null,{"$f":"IF(\"SPECCOST,,\"&Y$5&\",\"&$B929&\",\"=VLOOKUP(\"SPECCOST,,\"&Y$5&\",\"&$B929&\",\",data[],1),VLOOKUP(\"SPECCOST,,\"&Y$5&\",\"&$B929&\",\",data[],7),Y$909)","v":1.190463995027624E-3},null,{"$f":"IF(\"SPECCOST,,\"&AA$5&\",\"&$B929&\",\"=VLOOKUP(\"SPECCOST,,\"&AA$5&\",\"&$B929&\",\",data[],1),VLOOKUP(\"SPECCOST,,\"&AA$5&\",\"&$B929&\",\",data[],7),AA$909)","v":0.05},{"$f":"IF(\"SPECCOST,,\"&AB$5&\",\"&$B929&\",\"=VLOOKUP(\"SPECCOST,,\"&AB$5&\",\"&$B929&\",\",data[],1),VLOOKUP(\"SPECCOST,,\"&AB$5&\",\"&$B929&\",\",data[],7),AB$909)","v":7.0000000000000007E-2},{"$f":"IF(\"SPECCOST,,\"&AC$5&\",\"&$B929&\",\"=VLOOKUP(\"SPECCOST,,\"&AC$5&\",\"&$B929&\",\",data[],1),VLOOKUP(\"SPECCOST,,\"&AC$5&\",\"&$B929&\",\",data[],7),AC$909)","v":3.8577660276243091E-2},null,{"$f":"IF(\"SPECCOST,,\"&AE$5&\",\"&$B929&\",\"=VLOOKUP(\"SPECCOST,,\"&AE$5&\",\"&$B929&\",\",data[],1),VLOOKUP(\"SPECCOST,,\"&AE$5&\",\"&$B929&\",\",data[],7),AE$909)","v":0.05},{"$f":"IF(\"SPECCOST,,\"&AF$5&\",\"&$B929&\",\"=VLOOKUP(\"SPECCOST,,\"&AF$5&\",\"&$B929&\",\",data[],1),VLOOKUP(\"SPECCOST,,\"&AF$5&\",\"&$B929&\",\",data[],7),AF$909)","v":7.0000000000000007E-2},{"$f":"IF(\"SPECCOST,,\"&AG$5&\",\"&$B929&\",\"=VLOOKUP(\"SPECCOST,,\"&AG$5&\",\"&$B929&\",\",data[],1),VLOOKUP(\"SPECCOST,,\"&AG$5&\",\"&$B929&\",\",data[],7),AG$909)","v":7.0000000000000007E-2},{"$f":"IF(\"SPECCOST,,\"&AH$5&\",\"&$B929&\",\"=VLOOKUP(\"SPECCOST,,\"&AH$5&\",\"&$B929&\",\",data[],1),VLOOKUP(\"SPECCOST,,\"&AH$5&\",\"&$B929&\",\",data[],7),AH$909)","v":0.05},{"$f":"IF(\"SPECCOST,,\"&AI$5&\",\"&$B929&\",\"=VLOOKUP(\"SPECCOST,,\"&AI$5&\",\"&$B929&\",\",data[],1),VLOOKUP(\"SPECCOST,,\"&AI$5&\",\"&$B929&\",\",data[],7),AI$909)","v":0.01},null,null,{"$f":"IF(\"SPECCOST,,\"&AL$5&\",\"&$B929&\",\"=VLOOKUP(\"SPECCOST,,\"&AL$5&\",\"&$B929&\",\",data[],1),VLOOKUP(\"SPECCOST,,\"&AL$5&\",\"&$B929&\",\",data[],7),AL$909)","v":7.0000000000000007E-2},null,{"$f":"IF(\"SPECCOST,,\"&AN$5&\",\"&$B929&\",\"=VLOOKUP(\"SPECCOST,,\"&AN$5&\",\"&$B929&\",\",data[],1),VLOOKUP(\"SPECCOST,,\"&AN$5&\",\"&$B929&\",\",data[],7),AN$909)","v":7.0000000000000007E-2},null,null,null,null,null,null,null,{"$f":"IF(\"SPECCOST,,\"&AV$5&\",\"&$B929&\",\"=VLOOKUP(\"SPECCOST,,\"&AV$5&\",\"&$B929&\",\",data[],1),VLOOKUP(\"SPECCOST,,\"&AV$5&\",\"&$B929&\",\",data[],7),AV$909)","v":2.7940534453652541E-3},null,null,null,null,null,null,{"$f":"IF(\"SPECCOST,,\"&BC$5&\",\"&sel_country_code&\",\"=VLOOKUP(\"SPECCOST,,\"&BC$5&\",\"&sel_country_code&\",\",data[],1),VLOOKUP(\"SPECCOST,,\"&BC$5&\",\"&sel_country_code&\",\",data[],7),BC$909)","v":0.05},{"$f":"IF(\"SPECCOST,,\"&BD$5&\",\"&sel_country_code&\",\"=VLOOKUP(\"SPECCOST,,\"&BD$5&\",\"&sel_country_code&\",\",data[],1),VLOOKUP(\"SPECCOST,,\"&BD$5&\",\"&sel_country_code&\",\",data[],7),BD$909)","v":7.0000000000000007E-2},null,{"$f":"IF(\"SPECCOST,,\"&BF$5&\",\"&sel_country_code&\",\"=VLOOKUP(\"SPECCOST,,\"&BF$5&\",\"&sel_country_code&\",\",data[],1),VLOOKUP(\"SPECCOST,,\"&BF$5&\",\"&sel_country_code&\",\",data[],7),BF$909)","v":0.05},{"$f":"IF(\"SPECCOST,,\"&BG$5&\",\"&sel_country_code&\",\"=VLOOKUP(\"SPECCOST,,\"&BG$5&\",\"&sel_country_code&\",\",data[],1),VLOOKUP(\"SPECCOST,,\"&BG$5&\",\"&sel_country_code&\",\",data[],7),BG$909)","v":7.0000000000000007E-2}]
[null,"ARG-RIO",null,null,null,null,null,null,null,null,null,null,null,null,null,null,null,{"$f":"IF(\"SPECCOST,,\"&R$5&\",\"&$B930&\",\"=VLOOKUP(\"SPECCOST,,\"&R$5&\",\"&$B930&\",\",data[],1),VLOOKUP(\"SPECCOST,,\"&R$5&\",\"&$B930&\",\",data[],7),R$909)","v":1.190463995027624E-3},null,{"$f":"IF(\"SPECCOST,,\"&T$5&\",\"&$B930&\",\"=VLOOKUP(\"SPECCOST,,\"&T$5&\",\"&$B930&\",\",data[],1),VLOOKUP(\"SPECCOST,,\"&T$5&\",\"&$B930&\",\",data[],7),T$909)","v":0.05},{"$f":"IF(\"SPECCOST,,\"&U$5&\",\"&$B930&\",\"=VLOOKUP(\"SPECCOST,,\"&U$5&\",\"&$B930&\",\",data[],1),VLOOKUP(\"SPECCOST,,\"&U$5&\",\"&$B930&\",\",data[],7),U$909)","v":7.0000000000000007E-2},{"$f":"IF(\"SPECCOST,,\"&V$5&\",\"&$B930&\",\"=VLOOKUP(\"SPECCOST,,\"&V$5&\",\"&$B930&\",\",data[],1),VLOOKUP(\"SPECCOST,,\"&V$5&\",\"&$B930&\",\",data[],7),V$909)","v":7.0000000000000007E-2},null,null,{"$f":"IF(\"SPECCOST,,\"&Y$5&\",\"&$B930&\",\"=VLOOKUP(\"SPECCOST,,\"&Y$5&\",\"&$B930&\",\",data[],1),VLOOKUP(\"SPECCOST,,\"&Y$5&\",\"&$B930&\",\",data[],7),Y$909)","v":1.190463995027624E-3},null,{"$f":"IF(\"SPECCOST,,\"&AA$5&\",\"&$B930&\",\"=VLOOKUP(\"SPECCOST,,\"&AA$5&\",\"&$B930&\",\",data[],1),VLOOKUP(\"SPECCOST,,\"&AA$5&\",\"&$B930&\",\",data[],7),AA$909)","v":0.05},{"$f":"IF(\"SPECCOST,,\"&AB$5&\",\"&$B930&\",\"=VLOOKUP(\"SPECCOST,,\"&AB$5&\",\"&$B930&\",\",data[],1),VLOOKUP(\"SPECCOST,,\"&AB$5&\",\"&$B930&\",\",data[],7),AB$909)","v":7.0000000000000007E-2},{"$f":"IF(\"SPECCOST,,\"&AC$5&\",\"&$B930&\",\"=VLOOKUP(\"SPECCOST,,\"&AC$5&\",\"&$B930&\",\",data[],1),VLOOKUP(\"SPECCOST,,\"&AC$5&\",\"&$B930&\",\",data[],7),AC$909)","v":3.8577660276243091E-2},null,{"$f":"IF(\"SPECCOST,,\"&AE$5&\",\"&$B930&\",\"=VLOOKUP(\"SPECCOST,,\"&AE$5&\",\"&$B930&\",\",data[],1),VLOOKUP(\"SPECCOST,,\"&AE$5&\",\"&$B930&\",\",data[],7),AE$909)","v":0.05},{"$f":"IF(\"SPECCOST,,\"&AF$5&\",\"&$B930&\",\"=VLOOKUP(\"SPECCOST,,\"&AF$5&\",\"&$B930&\",\",data[],1),VLOOKUP(\"SPECCOST,,\"&AF$5&\",\"&$B930&\",\",data[],7),AF$909)","v":7.0000000000000007E-2},{"$f":"IF(\"SPECCOST,,\"&AG$5&\",\"&$B930&\",\"=VLOOKUP(\"SPECCOST,,\"&AG$5&\",\"&$B930&\",\",data[],1),VLOOKUP(\"SPECCOST,,\"&AG$5&\",\"&$B930&\",\",data[],7),AG$909)","v":7.0000000000000007E-2},{"$f":"IF(\"SPECCOST,,\"&AH$5&\",\"&$B930&\",\"=VLOOKUP(\"SPECCOST,,\"&AH$5&\",\"&$B930&\",\",data[],1),VLOOKUP(\"SPECCOST,,\"&AH$5&\",\"&$B930&\",\",data[],7),AH$909)","v":0.05},{"$f":"IF(\"SPECCOST,,\"&AI$5&\",\"&$B930&\",\"=VLOOKUP(\"SPECCOST,,\"&AI$5&\",\"&$B930&\",\",data[],1),VLOOKUP(\"SPECCOST,,\"&AI$5&\",\"&$B930&\",\",data[],7),AI$909)","v":0.01},null,null,{"$f":"IF(\"SPECCOST,,\"&AL$5&\",\"&$B930&\",\"=VLOOKUP(\"SPECCOST,,\"&AL$5&\",\"&$B930&\",\",data[],1),VLOOKUP(\"SPECCOST,,\"&AL$5&\",\"&$B930&\",\",data[],7),AL$909)","v":7.0000000000000007E-2},null,{"$f":"IF(\"SPECCOST,,\"&AN$5&\",\"&$B930&\",\"=VLOOKUP(\"SPECCOST,,\"&AN$5&\",\"&$B930&\",\",data[],1),VLOOKUP(\"SPECCOST,,\"&AN$5&\",\"&$B930&\",\",data[],7),AN$909)","v":7.0000000000000007E-2},null,null,null,null,null,null,null,{"$f":"IF(\"SPECCOST,,\"&AV$5&\",\"&$B930&\",\"=VLOOKUP(\"SPECCOST,,\"&AV$5&\",\"&$B930&\",\",data[],1),VLOOKUP(\"SPECCOST,,\"&AV$5&\",\"&$B930&\",\",data[],7),AV$909)","v":2.7940534453652541E-3},null,null,null,null,null,null,{"$f":"IF(\"SPECCOST,,\"&BC$5&\",\"&sel_country_code&\",\"=VLOOKUP(\"SPECCOST,,\"&BC$5&\",\"&sel_country_code&\",\",data[],1),VLOOKUP(\"SPECCOST,,\"&BC$5&\",\"&sel_country_code&\",\",data[],7),BC$909)","v":0.05},{"$f":"IF(\"SPECCOST,,\"&BD$5&\",\"&sel_country_code&\",\"=VLOOKUP(\"SPECCOST,,\"&BD$5&\",\"&sel_country_code&\",\",data[],1),VLOOKUP(\"SPECCOST,,\"&BD$5&\",\"&sel_country_code&\",\",data[],7),BD$909)","v":7.0000000000000007E-2},null,{"$f":"IF(\"SPECCOST,,\"&BF$5&\",\"&sel_country_code&\",\"=VLOOKUP(\"SPECCOST,,\"&BF$5&\",\"&sel_country_code&\",\",data[],1),VLOOKUP(\"SPECCOST,,\"&BF$5&\",\"&sel_country_code&\",\",data[],7),BF$909)","v":0.05},{"$f":"IF(\"SPECCOST,,\"&BG$5&\",\"&sel_country_code&\",\"=VLOOKUP(\"SPECCOST,,\"&BG$5&\",\"&sel_country_code&\",\",data[],1),VLOOKUP(\"SPECCOST,,\"&BG$5&\",\"&sel_country_code&\",\",data[],7),BG$909)","v":7.0000000000000007E-2}]
[null,"ARG-SAF",null,null,null,null,null,null,null,null,null,null,null,null,null,null,null,{"$f":"IF(\"SPECCOST,,\"&R$5&\",\"&$B931&\",\"=VLOOKUP(\"SPECCOST,,\"&R$5&\",\"&$B931&\",\",data[],1),VLOOKUP(\"SPECCOST,,\"&R$5&\",\"&$B931&\",\",data[],7),R$909)","v":1.190463995027624E-3},null,{"$f":"IF(\"SPECCOST,,\"&T$5&\",\"&$B931&\",\"=VLOOKUP(\"SPECCOST,,\"&T$5&\",\"&$B931&\",\",data[],1),VLOOKUP(\"SPECCOST,,\"&T$5&\",\"&$B931&\",\",data[],7),T$909)","v":0.05},{"$f":"IF(\"SPECCOST,,\"&U$5&\",\"&$B931&\",\"=VLOOKUP(\"SPECCOST,,\"&U$5&\",\"&$B931&\",\",data[],1),VLOOKUP(\"SPECCOST,,\"&U$5&\",\"&$B931&\",\",data[],7),U$909)","v":7.0000000000000007E-2},{"$f":"IF(\"SPECCOST,,\"&V$5&\",\"&$B931&\",\"=VLOOKUP(\"SPECCOST,,\"&V$5&\",\"&$B931&\",\",data[],1),VLOOKUP(\"SPECCOST,,\"&V$5&\",\"&$B931&\",\",data[],7),V$909)","v":7.0000000000000007E-2},null,null,{"$f":"IF(\"SPECCOST,,\"&Y$5&\",\"&$B931&\",\"=VLOOKUP(\"SPECCOST,,\"&Y$5&\",\"&$B931&\",\",data[],1),VLOOKUP(\"SPECCOST,,\"&Y$5&\",\"&$B931&\",\",data[],7),Y$909)","v":1.190463995027624E-3},null,{"$f":"IF(\"SPECCOST,,\"&AA$5&\",\"&$B931&\",\"=VLOOKUP(\"SPECCOST,,\"&AA$5&\",\"&$B931&\",\",data[],1),VLOOKUP(\"SPECCOST,,\"&AA$5&\",\"&$B931&\",\",data[],7),AA$909)","v":0.05},{"$f":"IF(\"SPECCOST,,\"&AB$5&\",\"&$B931&\",\"=VLOOKUP(\"SPECCOST,,\"&AB$5&\",\"&$B931&\",\",data[],1),VLOOKUP(\"SPECCOST,,\"&AB$5&\",\"&$B931&\",\",data[],7),AB$909)","v":7.0000000000000007E-2},{"$f":"IF(\"SPECCOST,,\"&AC$5&\",\"&$B931&\",\"=VLOOKUP(\"SPECCOST,,\"&AC$5&\",\"&$B931&\",\",data[],1),VLOOKUP(\"SPECCOST,,\"&AC$5&\",\"&$B931&\",\",data[],7),AC$909)","v":3.8577660276243091E-2},null,{"$f":"IF(\"SPECCOST,,\"&AE$5&\",\"&$B931&\",\"=VLOOKUP(\"SPECCOST,,\"&AE$5&\",\"&$B931&\",\",data[],1),VLOOKUP(\"SPECCOST,,\"&AE$5&\",\"&$B931&\",\",data[],7),AE$909)","v":0.05},{"$f":"IF(\"SPECCOST,,\"&AF$5&\",\"&$B931&\",\"=VLOOKUP(\"SPECCOST,,\"&AF$5&\",\"&$B931&\",\",data[],1),VLOOKUP(\"SPECCOST,,\"&AF$5&\",\"&$B931&\",\",data[],7),AF$909)","v":7.0000000000000007E-2},{"$f":"IF(\"SPECCOST,,\"&AG$5&\",\"&$B931&\",\"=VLOOKUP(\"SPECCOST,,\"&AG$5&\",\"&$B931&\",\",data[],1),VLOOKUP(\"SPECCOST,,\"&AG$5&\",\"&$B931&\",\",data[],7),AG$909)","v":7.0000000000000007E-2},{"$f":"IF(\"SPECCOST,,\"&AH$5&\",\"&$B931&\",\"=VLOOKUP(\"SPECCOST,,\"&AH$5&\",\"&$B931&\",\",data[],1),VLOOKUP(\"SPECCOST,,\"&AH$5&\",\"&$B931&\",\",data[],7),AH$909)","v":0.05},{"$f":"IF(\"SPECCOST,,\"&AI$5&\",\"&$B931&\",\"=VLOOKUP(\"SPECCOST,,\"&AI$5&\",\"&$B931&\",\",data[],1),VLOOKUP(\"SPECCOST,,\"&AI$5&\",\"&$B931&\",\",data[],7),AI$909)","v":0.01},null,null,{"$f":"IF(\"SPECCOST,,\"&AL$5&\",\"&$B931&\",\"=VLOOKUP(\"SPECCOST,,\"&AL$5&\",\"&$B931&\",\",data[],1),VLOOKUP(\"SPECCOST,,\"&AL$5&\",\"&$B931&\",\",data[],7),AL$909)","v":7.0000000000000007E-2},null,{"$f":"IF(\"SPECCOST,,\"&AN$5&\",\"&$B931&\",\"=VLOOKUP(\"SPECCOST,,\"&AN$5&\",\"&$B931&\",\",data[],1),VLOOKUP(\"SPECCOST,,\"&AN$5&\",\"&$B931&\",\",data[],7),AN$909)","v":7.0000000000000007E-2},null,null,null,null,null,null,null,{"$f":"IF(\"SPECCOST,,\"&AV$5&\",\"&$B931&\",\"=VLOOKUP(\"SPECCOST,,\"&AV$5&\",\"&$B931&\",\",data[],1),VLOOKUP(\"SPECCOST,,\"&AV$5&\",\"&$B931&\",\",data[],7),AV$909)","v":2.7940534453652541E-3},null,null,null,null,null,null,{"$f":"IF(\"SPECCOST,,\"&BC$5&\",\"&sel_country_code&\",\"=VLOOKUP(\"SPECCOST,,\"&BC$5&\",\"&sel_country_code&\",\",data[],1),VLOOKUP(\"SPECCOST,,\"&BC$5&\",\"&sel_country_code&\",\",data[],7),BC$909)","v":0.05},{"$f":"IF(\"SPECCOST,,\"&BD$5&\",\"&sel_country_code&\",\"=VLOOKUP(\"SPECCOST,,\"&BD$5&\",\"&sel_country_code&\",\",data[],1),VLOOKUP(\"SPECCOST,,\"&BD$5&\",\"&sel_country_code&\",\",data[],7),BD$909)","v":7.0000000000000007E-2},null,{"$f":"IF(\"SPECCOST,,\"&BF$5&\",\"&sel_country_code&\",\"=VLOOKUP(\"SPECCOST,,\"&BF$5&\",\"&sel_country_code&\",\",data[],1),VLOOKUP(\"SPECCOST,,\"&BF$5&\",\"&sel_country_code&\",\",data[],7),BF$909)","v":0.05},{"$f":"IF(\"SPECCOST,,\"&BG$5&\",\"&sel_country_code&\",\"=VLOOKUP(\"SPECCOST,,\"&BG$5&\",\"&sel_country_code&\",\",data[],1),VLOOKUP(\"SPECCOST,,\"&BG$5&\",\"&sel_country_code&\",\",data[],7),BG$909)","v":7.0000000000000007E-2}]
[null,"ARG-SAJ",null,null,null,null,null,null,null,null,null,null,null,null,null,null,null,{"$f":"IF(\"SPECCOST,,\"&R$5&\",\"&$B932&\",\"=VLOOKUP(\"SPECCOST,,\"&R$5&\",\"&$B932&\",\",data[],1),VLOOKUP(\"SPECCOST,,\"&R$5&\",\"&$B932&\",\",data[],7),R$909)","v":1.190463995027624E-3},null,{"$f":"IF(\"SPECCOST,,\"&T$5&\",\"&$B932&\",\"=VLOOKUP(\"SPECCOST,,\"&T$5&\",\"&$B932&\",\",data[],1),VLOOKUP(\"SPECCOST,,\"&T$5&\",\"&$B932&\",\",data[],7),T$909)","v":0.05},{"$f":"IF(\"SPECCOST,,\"&U$5&\",\"&$B932&\",\"=VLOOKUP(\"SPECCOST,,\"&U$5&\",\"&$B932&\",\",data[],1),VLOOKUP(\"SPECCOST,,\"&U$5&\",\"&$B932&\",\",data[],7),U$909)","v":7.0000000000000007E-2},{"$f":"IF(\"SPECCOST,,\"&V$5&\",\"&$B932&\",\"=VLOOKUP(\"SPECCOST,,\"&V$5&\",\"&$B932&\",\",data[],1),VLOOKUP(\"SPECCOST,,\"&V$5&\",\"&$B932&\",\",data[],7),V$909)","v":7.0000000000000007E-2},null,null,{"$f":"IF(\"SPECCOST,,\"&Y$5&\",\"&$B932&\",\"=VLOOKUP(\"SPECCOST,,\"&Y$5&\",\"&$B932&\",\",data[],1),VLOOKUP(\"SPECCOST,,\"&Y$5&\",\"&$B932&\",\",data[],7),Y$909)","v":1.190463995027624E-3},null,{"$f":"IF(\"SPECCOST,,\"&AA$5&\",\"&$B932&\",\"=VLOOKUP(\"SPECCOST,,\"&AA$5&\",\"&$B932&\",\",data[],1),VLOOKUP(\"SPECCOST,,\"&AA$5&\",\"&$B932&\",\",data[],7),AA$909)","v":0.05},{"$f":"IF(\"SPECCOST,,\"&AB$5&\",\"&$B932&\",\"=VLOOKUP(\"SPECCOST,,\"&AB$5&\",\"&$B932&\",\",data[],1),VLOOKUP(\"SPECCOST,,\"&AB$5&\",\"&$B932&\",\",data[],7),AB$909)","v":7.0000000000000007E-2},{"$f":"IF(\"SPECCOST,,\"&AC$5&\",\"&$B932&\",\"=VLOOKUP(\"SPECCOST,,\"&AC$5&\",\"&$B932&\",\",data[],1),VLOOKUP(\"SPECCOST,,\"&AC$5&\",\"&$B932&\",\",data[],7),AC$909)","v":3.8577660276243091E-2},null,{"$f":"IF(\"SPECCOST,,\"&AE$5&\",\"&$B932&\",\"=VLOOKUP(\"SPECCOST,,\"&AE$5&\",\"&$B932&\",\",data[],1),VLOOKUP(\"SPECCOST,,\"&AE$5&\",\"&$B932&\",\",data[],7),AE$909)","v":0.05},{"$f":"IF(\"SPECCOST,,\"&AF$5&\",\"&$B932&\",\"=VLOOKUP(\"SPECCOST,,\"&AF$5&\",\"&$B932&\",\",data[],1),VLOOKUP(\"SPECCOST,,\"&AF$5&\",\"&$B932&\",\",data[],7),AF$909)","v":7.0000000000000007E-2},{"$f":"IF(\"SPECCOST,,\"&AG$5&\",\"&$B932&\",\"=VLOOKUP(\"SPECCOST,,\"&AG$5&\",\"&$B932&\",\",data[],1),VLOOKUP(\"SPECCOST,,\"&AG$5&\",\"&$B932&\",\",data[],7),AG$909)","v":7.0000000000000007E-2},{"$f":"IF(\"SPECCOST,,\"&AH$5&\",\"&$B932&\",\"=VLOOKUP(\"SPECCOST,,\"&AH$5&\",\"&$B932&\",\",data[],1),VLOOKUP(\"SPECCOST,,\"&AH$5&\",\"&$B932&\",\",data[],7),AH$909)","v":0.05},{"$f":"IF(\"SPECCOST,,\"&AI$5&\",\"&$B932&\",\"=VLOOKUP(\"SPECCOST,,\"&AI$5&\",\"&$B932&\",\",data[],1),VLOOKUP(\"SPECCOST,,\"&AI$5&\",\"&$B932&\",\",data[],7),AI$909)","v":0.01},null,null,{"$f":"IF(\"SPECCOST,,\"&AL$5&\",\"&$B932&\",\"=VLOOKUP(\"SPECCOST,,\"&AL$5&\",\"&$B932&\",\",data[],1),VLOOKUP(\"SPECCOST,,\"&AL$5&\",\"&$B932&\",\",data[],7),AL$909)","v":7.0000000000000007E-2},null,{"$f":"IF(\"SPECCOST,,\"&AN$5&\",\"&$B932&\",\"=VLOOKUP(\"SPECCOST,,\"&AN$5&\",\"&$B932&\",\",data[],1),VLOOKUP(\"SPECCOST,,\"&AN$5&\",\"&$B932&\",\",data[],7),AN$909)","v":7.0000000000000007E-2},null,null,null,null,null,null,null,{"$f":"IF(\"SPECCOST,,\"&AV$5&\",\"&$B932&\",\"=VLOOKUP(\"SPECCOST,,\"&AV$5&\",\"&$B932&\",\",data[],1),VLOOKUP(\"SPECCOST,,\"&AV$5&\",\"&$B932&\",\",data[],7),AV$909)","v":2.7940534453652541E-3},null,null,null,null,null,null,{"$f":"IF(\"SPECCOST,,\"&BC$5&\",\"&sel_country_code&\",\"=VLOOKUP(\"SPECCOST,,\"&BC$5&\",\"&sel_country_code&\",\",data[],1),VLOOKUP(\"SPECCOST,,\"&BC$5&\",\"&sel_country_code&\",\",data[],7),BC$909)","v":0.05},{"$f":"IF(\"SPECCOST,,\"&BD$5&\",\"&sel_country_code&\",\"=VLOOKUP(\"SPECCOST,,\"&BD$5&\",\"&sel_country_code&\",\",data[],1),VLOOKUP(\"SPECCOST,,\"&BD$5&\",\"&sel_country_code&\",\",data[],7),BD$909)","v":7.0000000000000007E-2},null,{"$f":"IF(\"SPECCOST,,\"&BF$5&\",\"&sel_country_code&\",\"=VLOOKUP(\"SPECCOST,,\"&BF$5&\",\"&sel_country_code&\",\",data[],1),VLOOKUP(\"SPECCOST,,\"&BF$5&\",\"&sel_country_code&\",\",data[],7),BF$909)","v":0.05},{"$f":"IF(\"SPECCOST,,\"&BG$5&\",\"&sel_country_code&\",\"=VLOOKUP(\"SPECCOST,,\"&BG$5&\",\"&sel_country_code&\",\",data[],1),VLOOKUP(\"SPECCOST,,\"&BG$5&\",\"&sel_country_code&\",\",data[],7),BG$909)","v":7.0000000000000007E-2}]
[null,"ARG-SAL",null,null,null,null,null,null,null,null,null,null,null,null,null,null,null,{"$f":"IF(\"SPECCOST,,\"&R$5&\",\"&$B933&\",\"=VLOOKUP(\"SPECCOST,,\"&R$5&\",\"&$B933&\",\",data[],1),VLOOKUP(\"SPECCOST,,\"&R$5&\",\"&$B933&\",\",data[],7),R$909)","v":1.190463995027624E-3},null,{"$f":"IF(\"SPECCOST,,\"&T$5&\",\"&$B933&\",\"=VLOOKUP(\"SPECCOST,,\"&T$5&\",\"&$B933&\",\",data[],1),VLOOKUP(\"SPECCOST,,\"&T$5&\",\"&$B933&\",\",data[],7),T$909)","v":0.05},{"$f":"IF(\"SPECCOST,,\"&U$5&\",\"&$B933&\",\"=VLOOKUP(\"SPECCOST,,\"&U$5&\",\"&$B933&\",\",data[],1),VLOOKUP(\"SPECCOST,,\"&U$5&\",\"&$B933&\",\",data[],7),U$909)","v":7.0000000000000007E-2},{"$f":"IF(\"SPECCOST,,\"&V$5&\",\"&$B933&\",\"=VLOOKUP(\"SPECCOST,,\"&V$5&\",\"&$B933&\",\",data[],1),VLOOKUP(\"SPECCOST,,\"&V$5&\",\"&$B933&\",\",data[],7),V$909)","v":7.0000000000000007E-2},null,null,{"$f":"IF(\"SPECCOST,,\"&Y$5&\",\"&$B933&\",\"=VLOOKUP(\"SPECCOST,,\"&Y$5&\",\"&$B933&\",\",data[],1),VLOOKUP(\"SPECCOST,,\"&Y$5&\",\"&$B933&\",\",data[],7),Y$909)","v":1.190463995027624E-3},null,{"$f":"IF(\"SPECCOST,,\"&AA$5&\",\"&$B933&\",\"=VLOOKUP(\"SPECCOST,,\"&AA$5&\",\"&$B933&\",\",data[],1),VLOOKUP(\"SPECCOST,,\"&AA$5&\",\"&$B933&\",\",data[],7),AA$909)","v":0.05},{"$f":"IF(\"SPECCOST,,\"&AB$5&\",\"&$B933&\",\"=VLOOKUP(\"SPECCOST,,\"&AB$5&\",\"&$B933&\",\",data[],1),VLOOKUP(\"SPECCOST,,\"&AB$5&\",\"&$B933&\",\",data[],7),AB$909)","v":7.0000000000000007E-2},{"$f":"IF(\"SPECCOST,,\"&AC$5&\",\"&$B933&\",\"=VLOOKUP(\"SPECCOST,,\"&AC$5&\",\"&$B933&\",\",data[],1),VLOOKUP(\"SPECCOST,,\"&AC$5&\",\"&$B933&\",\",data[],7),AC$909)","v":3.8577660276243091E-2},null,{"$f":"IF(\"SPECCOST,,\"&AE$5&\",\"&$B933&\",\"=VLOOKUP(\"SPECCOST,,\"&AE$5&\",\"&$B933&\",\",data[],1),VLOOKUP(\"SPECCOST,,\"&AE$5&\",\"&$B933&\",\",data[],7),AE$909)","v":0.05},{"$f":"IF(\"SPECCOST,,\"&AF$5&\",\"&$B933&\",\"=VLOOKUP(\"SPECCOST,,\"&AF$5&\",\"&$B933&\",\",data[],1),VLOOKUP(\"SPECCOST,,\"&AF$5&\",\"&$B933&\",\",data[],7),AF$909)","v":7.0000000000000007E-2},{"$f":"IF(\"SPECCOST,,\"&AG$5&\",\"&$B933&\",\"=VLOOKUP(\"SPECCOST,,\"&AG$5&\",\"&$B933&\",\",data[],1),VLOOKUP(\"SPECCOST,,\"&AG$5&\",\"&$B933&\",\",data[],7),AG$909)","v":7.0000000000000007E-2},{"$f":"IF(\"SPECCOST,,\"&AH$5&\",\"&$B933&\",\"=VLOOKUP(\"SPECCOST,,\"&AH$5&\",\"&$B933&\",\",data[],1),VLOOKUP(\"SPECCOST,,\"&AH$5&\",\"&$B933&\",\",data[],7),AH$909)","v":0.05},{"$f":"IF(\"SPECCOST,,\"&AI$5&\",\"&$B933&\",\"=VLOOKUP(\"SPECCOST,,\"&AI$5&\",\"&$B933&\",\",data[],1),VLOOKUP(\"SPECCOST,,\"&AI$5&\",\"&$B933&\",\",data[],7),AI$909)","v":0.01},null,null,{"$f":"IF(\"SPECCOST,,\"&AL$5&\",\"&$B933&\",\"=VLOOKUP(\"SPECCOST,,\"&AL$5&\",\"&$B933&\",\",data[],1),VLOOKUP(\"SPECCOST,,\"&AL$5&\",\"&$B933&\",\",data[],7),AL$909)","v":7.0000000000000007E-2},null,{"$f":"IF(\"SPECCOST,,\"&AN$5&\",\"&$B933&\",\"=VLOOKUP(\"SPECCOST,,\"&AN$5&\",\"&$B933&\",\",data[],1),VLOOKUP(\"SPECCOST,,\"&AN$5&\",\"&$B933&\",\",data[],7),AN$909)","v":7.0000000000000007E-2},null,null,null,null,null,null,null,{"$f":"IF(\"SPECCOST,,\"&AV$5&\",\"&$B933&\",\"=VLOOKUP(\"SPECCOST,,\"&AV$5&\",\"&$B933&\",\",data[],1),VLOOKUP(\"SPECCOST,,\"&AV$5&\",\"&$B933&\",\",data[],7),AV$909)","v":2.7940534453652541E-3},null,null,null,null,null,null,{"$f":"IF(\"SPECCOST,,\"&BC$5&\",\"&sel_country_code&\",\"=VLOOKUP(\"SPECCOST,,\"&BC$5&\",\"&sel_country_code&\",\",data[],1),VLOOKUP(\"SPECCOST,,\"&BC$5&\",\"&sel_country_code&\",\",data[],7),BC$909)","v":0.05},{"$f":"IF(\"SPECCOST,,\"&BD$5&\",\"&sel_country_code&\",\"=VLOOKUP(\"SPECCOST,,\"&BD$5&\",\"&sel_country_code&\",\",data[],1),VLOOKUP(\"SPECCOST,,\"&BD$5&\",\"&sel_country_code&\",\",data[],7),BD$909)","v":7.0000000000000007E-2},null,{"$f":"IF(\"SPECCOST,,\"&BF$5&\",\"&sel_country_code&\",\"=VLOOKUP(\"SPECCOST,,\"&BF$5&\",\"&sel_country_code&\",\",data[],1),VLOOKUP(\"SPECCOST,,\"&BF$5&\",\"&sel_country_code&\",\",data[],7),BF$909)","v":0.05},{"$f":"IF(\"SPECCOST,,\"&BG$5&\",\"&sel_country_code&\",\"=VLOOKUP(\"SPECCOST,,\"&BG$5&\",\"&sel_country_code&\",\",data[],1),VLOOKUP(\"SPECCOST,,\"&BG$5&\",\"&sel_country_code&\",\",data[],7),BG$909)","v":7.0000000000000007E-2}]
[null,"ARG-SAT",null,null,null,null,null,null,null,null,null,null,null,null,null,null,null,{"$f":"IF(\"SPECCOST,,\"&R$5&\",\"&$B934&\",\"=VLOOKUP(\"SPECCOST,,\"&R$5&\",\"&$B934&\",\",data[],1),VLOOKUP(\"SPECCOST,,\"&R$5&\",\"&$B934&\",\",data[],7),R$909)","v":1.190463995027624E-3},null,{"$f":"IF(\"SPECCOST,,\"&T$5&\",\"&$B934&\",\"=VLOOKUP(\"SPECCOST,,\"&T$5&\",\"&$B934&\",\",data[],1),VLOOKUP(\"SPECCOST,,\"&T$5&\",\"&$B934&\",\",data[],7),T$909)","v":0.05},{"$f":"IF(\"SPECCOST,,\"&U$5&\",\"&$B934&\",\"=VLOOKUP(\"SPECCOST,,\"&U$5&\",\"&$B934&\",\",data[],1),VLOOKUP(\"SPECCOST,,\"&U$5&\",\"&$B934&\",\",data[],7),U$909)","v":7.0000000000000007E-2},{"$f":"IF(\"SPECCOST,,\"&V$5&\",\"&$B934&\",\"=VLOOKUP(\"SPECCOST,,\"&V$5&\",\"&$B934&\",\",data[],1),VLOOKUP(\"SPECCOST,,\"&V$5&\",\"&$B934&\",\",data[],7),V$909)","v":7.0000000000000007E-2},null,null,{"$f":"IF(\"SPECCOST,,\"&Y$5&\",\"&$B934&\",\"=VLOOKUP(\"SPECCOST,,\"&Y$5&\",\"&$B934&\",\",data[],1),VLOOKUP(\"SPECCOST,,\"&Y$5&\",\"&$B934&\",\",data[],7),Y$909)","v":1.190463995027624E-3},null,{"$f":"IF(\"SPECCOST,,\"&AA$5&\",\"&$B934&\",\"=VLOOKUP(\"SPECCOST,,\"&AA$5&\",\"&$B934&\",\",data[],1),VLOOKUP(\"SPECCOST,,\"&AA$5&\",\"&$B934&\",\",data[],7),AA$909)","v":0.05},{"$f":"IF(\"SPECCOST,,\"&AB$5&\",\"&$B934&\",\"=VLOOKUP(\"SPECCOST,,\"&AB$5&\",\"&$B934&\",\",data[],1),VLOOKUP(\"SPECCOST,,\"&AB$5&\",\"&$B934&\",\",data[],7),AB$909)","v":7.0000000000000007E-2},{"$f":"IF(\"SPECCOST,,\"&AC$5&\",\"&$B934&\",\"=VLOOKUP(\"SPECCOST,,\"&AC$5&\",\"&$B934&\",\",data[],1),VLOOKUP(\"SPECCOST,,\"&AC$5&\",\"&$B934&\",\",data[],7),AC$909)","v":3.8577660276243091E-2},null,{"$f":"IF(\"SPECCOST,,\"&AE$5&\",\"&$B934&\",\"=VLOOKUP(\"SPECCOST,,\"&AE$5&\",\"&$B934&\",\",data[],1),VLOOKUP(\"SPECCOST,,\"&AE$5&\",\"&$B934&\",\",data[],7),AE$909)","v":0.05},{"$f":"IF(\"SPECCOST,,\"&AF$5&\",\"&$B934&\",\"=VLOOKUP(\"SPECCOST,,\"&AF$5&\",\"&$B934&\",\",data[],1),VLOOKUP(\"SPECCOST,,\"&AF$5&\",\"&$B934&\",\",data[],7),AF$909)","v":7.0000000000000007E-2},{"$f":"IF(\"SPECCOST,,\"&AG$5&\",\"&$B934&\",\"=VLOOKUP(\"SPECCOST,,\"&AG$5&\",\"&$B934&\",\",data[],1),VLOOKUP(\"SPECCOST,,\"&AG$5&\",\"&$B934&\",\",data[],7),AG$909)","v":7.0000000000000007E-2},{"$f":"IF(\"SPECCOST,,\"&AH$5&\",\"&$B934&\",\"=VLOOKUP(\"SPECCOST,,\"&AH$5&\",\"&$B934&\",\",data[],1),VLOOKUP(\"SPECCOST,,\"&AH$5&\",\"&$B934&\",\",data[],7),AH$909)","v":0.05},{"$f":"IF(\"SPECCOST,,\"&AI$5&\",\"&$B934&\",\"=VLOOKUP(\"SPECCOST,,\"&AI$5&\",\"&$B934&\",\",data[],1),VLOOKUP(\"SPECCOST,,\"&AI$5&\",\"&$B934&\",\",data[],7),AI$909)","v":0.01},null,null,{"$f":"IF(\"SPECCOST,,\"&AL$5&\",\"&$B934&\",\"=VLOOKUP(\"SPECCOST,,\"&AL$5&\",\"&$B934&\",\",data[],1),VLOOKUP(\"SPECCOST,,\"&AL$5&\",\"&$B934&\",\",data[],7),AL$909)","v":7.0000000000000007E-2},null,{"$f":"IF(\"SPECCOST,,\"&AN$5&\",\"&$B934&\",\"=VLOOKUP(\"SPECCOST,,\"&AN$5&\",\"&$B934&\",\",data[],1),VLOOKUP(\"SPECCOST,,\"&AN$5&\",\"&$B934&\",\",data[],7),AN$909)","v":7.0000000000000007E-2},null,null,null,null,null,null,null,{"$f":"IF(\"SPECCOST,,\"&AV$5&\",\"&$B934&\",\"=VLOOKUP(\"SPECCOST,,\"&AV$5&\",\"&$B934&\",\",data[],1),VLOOKUP(\"SPECCOST,,\"&AV$5&\",\"&$B934&\",\",data[],7),AV$909)","v":2.7940534453652541E-3},null,null,null,null,null,null,{"$f":"IF(\"SPECCOST,,\"&BC$5&\",\"&sel_country_code&\",\"=VLOOKUP(\"SPECCOST,,\"&BC$5&\",\"&sel_country_code&\",\",data[],1),VLOOKUP(\"SPECCOST,,\"&BC$5&\",\"&sel_country_code&\",\",data[],7),BC$909)","v":0.05},{"$f":"IF(\"SPECCOST,,\"&BD$5&\",\"&sel_country_code&\",\"=VLOOKUP(\"SPECCOST,,\"&BD$5&\",\"&sel_country_code&\",\",data[],1),VLOOKUP(\"SPECCOST,,\"&BD$5&\",\"&sel_country_code&\",\",data[],7),BD$909)","v":7.0000000000000007E-2},null,{"$f":"IF(\"SPECCOST,,\"&BF$5&\",\"&sel_country_code&\",\"=VLOOKUP(\"SPECCOST,,\"&BF$5&\",\"&sel_country_code&\",\",data[],1),VLOOKUP(\"SPECCOST,,\"&BF$5&\",\"&sel_country_code&\",\",data[],7),BF$909)","v":0.05},{"$f":"IF(\"SPECCOST,,\"&BG$5&\",\"&sel_country_code&\",\"=VLOOKUP(\"SPECCOST,,\"&BG$5&\",\"&sel_country_code&\",\",data[],1),VLOOKUP(\"SPECCOST,,\"&BG$5&\",\"&sel_country_code&\",\",data[],7),BG$909)","v":7.0000000000000007E-2}]
[null,"ARG-TUC",null,null,null,null,null,null,null,null,null,null,null,null,null,null,null,{"$f":"IF(\"SPECCOST,,\"&R$5&\",\"&$B935&\",\"=VLOOKUP(\"SPECCOST,,\"&R$5&\",\"&$B935&\",\",data[],1),VLOOKUP(\"SPECCOST,,\"&R$5&\",\"&$B935&\",\",data[],7),R$909)","v":1.190463995027624E-3},null,{"$f":"IF(\"SPECCOST,,\"&T$5&\",\"&$B935&\",\"=VLOOKUP(\"SPECCOST,,\"&T$5&\",\"&$B935&\",\",data[],1),VLOOKUP(\"SPECCOST,,\"&T$5&\",\"&$B935&\",\",data[],7),T$909)","v":0.05},{"$f":"IF(\"SPECCOST,,\"&U$5&\",\"&$B935&\",\"=VLOOKUP(\"SPECCOST,,\"&U$5&\",\"&$B935&\",\",data[],1),VLOOKUP(\"SPECCOST,,\"&U$5&\",\"&$B935&\",\",data[],7),U$909)","v":7.0000000000000007E-2},{"$f":"IF(\"SPECCOST,,\"&V$5&\",\"&$B935&\",\"=VLOOKUP(\"SPECCOST,,\"&V$5&\",\"&$B935&\",\",data[],1),VLOOKUP(\"SPECCOST,,\"&V$5&\",\"&$B935&\",\",data[],7),V$909)","v":7.0000000000000007E-2},null,null,{"$f":"IF(\"SPECCOST,,\"&Y$5&\",\"&$B935&\",\"=VLOOKUP(\"SPECCOST,,\"&Y$5&\",\"&$B935&\",\",data[],1),VLOOKUP(\"SPECCOST,,\"&Y$5&\",\"&$B935&\",\",data[],7),Y$909)","v":1.190463995027624E-3},null,{"$f":"IF(\"SPECCOST,,\"&AA$5&\",\"&$B935&\",\"=VLOOKUP(\"SPECCOST,,\"&AA$5&\",\"&$B935&\",\",data[],1),VLOOKUP(\"SPECCOST,,\"&AA$5&\",\"&$B935&\",\",data[],7),AA$909)","v":0.05},{"$f":"IF(\"SPECCOST,,\"&AB$5&\",\"&$B935&\",\"=VLOOKUP(\"SPECCOST,,\"&AB$5&\",\"&$B935&\",\",data[],1),VLOOKUP(\"SPECCOST,,\"&AB$5&\",\"&$B935&\",\",data[],7),AB$909)","v":7.0000000000000007E-2},{"$f":"IF(\"SPECCOST,,\"&AC$5&\",\"&$B935&\",\"=VLOOKUP(\"SPECCOST,,\"&AC$5&\",\"&$B935&\",\",data[],1),VLOOKUP(\"SPECCOST,,\"&AC$5&\",\"&$B935&\",\",data[],7),AC$909)","v":3.8577660276243091E-2},null,{"$f":"IF(\"SPECCOST,,\"&AE$5&\",\"&$B935&\",\"=VLOOKUP(\"SPECCOST,,\"&AE$5&\",\"&$B935&\",\",data[],1),VLOOKUP(\"SPECCOST,,\"&AE$5&\",\"&$B935&\",\",data[],7),AE$909)","v":0.05},{"$f":"IF(\"SPECCOST,,\"&AF$5&\",\"&$B935&\",\"=VLOOKUP(\"SPECCOST,,\"&AF$5&\",\"&$B935&\",\",data[],1),VLOOKUP(\"SPECCOST,,\"&AF$5&\",\"&$B935&\",\",data[],7),AF$909)","v":7.0000000000000007E-2},{"$f":"IF(\"SPECCOST,,\"&AG$5&\",\"&$B935&\",\"=VLOOKUP(\"SPECCOST,,\"&AG$5&\",\"&$B935&\",\",data[],1),VLOOKUP(\"SPECCOST,,\"&AG$5&\",\"&$B935&\",\",data[],7),AG$909)","v":7.0000000000000007E-2},{"$f":"IF(\"SPECCOST,,\"&AH$5&\",\"&$B935&\",\"=VLOOKUP(\"SPECCOST,,\"&AH$5&\",\"&$B935&\",\",data[],1),VLOOKUP(\"SPECCOST,,\"&AH$5&\",\"&$B935&\",\",data[],7),AH$909)","v":0.05},{"$f":"IF(\"SPECCOST,,\"&AI$5&\",\"&$B935&\",\"=VLOOKUP(\"SPECCOST,,\"&AI$5&\",\"&$B935&\",\",data[],1),VLOOKUP(\"SPECCOST,,\"&AI$5&\",\"&$B935&\",\",data[],7),AI$909)","v":0.01},null,null,{"$f":"IF(\"SPECCOST,,\"&AL$5&\",\"&$B935&\",\"=VLOOKUP(\"SPECCOST,,\"&AL$5&\",\"&$B935&\",\",data[],1),VLOOKUP(\"SPECCOST,,\"&AL$5&\",\"&$B935&\",\",data[],7),AL$909)","v":7.0000000000000007E-2},null,{"$f":"IF(\"SPECCOST,,\"&AN$5&\",\"&$B935&\",\"=VLOOKUP(\"SPECCOST,,\"&AN$5&\",\"&$B935&\",\",data[],1),VLOOKUP(\"SPECCOST,,\"&AN$5&\",\"&$B935&\",\",data[],7),AN$909)","v":7.0000000000000007E-2},null,null,null,null,null,null,null,{"$f":"IF(\"SPECCOST,,\"&AV$5&\",\"&$B935&\",\"=VLOOKUP(\"SPECCOST,,\"&AV$5&\",\"&$B935&\",\",data[],1),VLOOKUP(\"SPECCOST,,\"&AV$5&\",\"&$B935&\",\",data[],7),AV$909)","v":2.7940534453652541E-3},null,null,null,null,null,null,{"$f":"IF(\"SPECCOST,,\"&BC$5&\",\"&sel_country_code&\",\"=VLOOKUP(\"SPECCOST,,\"&BC$5&\",\"&sel_country_code&\",\",data[],1),VLOOKUP(\"SPECCOST,,\"&BC$5&\",\"&sel_country_code&\",\",data[],7),BC$909)","v":0.05},{"$f":"IF(\"SPECCOST,,\"&BD$5&\",\"&sel_country_code&\",\"=VLOOKUP(\"SPECCOST,,\"&BD$5&\",\"&sel_country_code&\",\",data[],1),VLOOKUP(\"SPECCOST,,\"&BD$5&\",\"&sel_country_code&\",\",data[],7),BD$909)","v":7.0000000000000007E-2},null,{"$f":"IF(\"SPECCOST,,\"&BF$5&\",\"&sel_country_code&\",\"=VLOOKUP(\"SPECCOST,,\"&BF$5&\",\"&sel_country_code&\",\",data[],1),VLOOKUP(\"SPECCOST,,\"&BF$5&\",\"&sel_country_code&\",\",data[],7),BF$909)","v":0.05},{"$f":"IF(\"SPECCOST,,\"&BG$5&\",\"&sel_country_code&\",\"=VLOOKUP(\"SPECCOST,,\"&BG$5&\",\"&sel_country_code&\",\",data[],1),VLOOKUP(\"SPECCOST,,\"&BG$5&\",\"&sel_country_code&\",\",data[],7),BG$909)","v":7.0000000000000007E-2}]
[null,"AUS",null,null,null,null,null,null,null,null,null,null,null,null,null,null,null,{"$f":"IF(\"SPECCOST,,\"&R$5&\",\"&$B936&\",\"=VLOOKUP(\"SPECCOST,,\"&R$5&\",\"&$B936&\",\",data[],1),VLOOKUP(\"SPECCOST,,\"&R$5&\",\"&$B936&\",\",data[],7),R$909)","v":1.190463995027624E-3},null,{"$f":"IF(\"SPECCOST,,\"&T$5&\",\"&$B936&\",\"=VLOOKUP(\"SPECCOST,,\"&T$5&\",\"&$B936&\",\",data[],1),VLOOKUP(\"SPECCOST,,\"&T$5&\",\"&$B936&\",\",data[],7),T$909)","v":0.05},{"$f":"IF(\"SPECCOST,,\"&U$5&\",\"&$B936&\",\"=VLOOKUP(\"SPECCOST,,\"&U$5&\",\"&$B936&\",\",data[],1),VLOOKUP(\"SPECCOST,,\"&U$5&\",\"&$B936&\",\",data[],7),U$909)","v":7.0000000000000007E-2},{"$f":"IF(\"SPECCOST,,\"&V$5&\",\"&$B936&\",\"=VLOOKUP(\"SPECCOST,,\"&V$5&\",\"&$B936&\",\",data[],1),VLOOKUP(\"SPECCOST,,\"&V$5&\",\"&$B936&\",\",data[],7),V$909)","v":7.0000000000000007E-2},null,null,{"$f":"IF(\"SPECCOST,,\"&Y$5&\",\"&$B936&\",\"=VLOOKUP(\"SPECCOST,,\"&Y$5&\",\"&$B936&\",\",data[],1),VLOOKUP(\"SPECCOST,,\"&Y$5&\",\"&$B936&\",\",data[],7),Y$909)","v":1.190463995027624E-3},null,{"$f":"IF(\"SPECCOST,,\"&AA$5&\",\"&$B936&\",\"=VLOOKUP(\"SPECCOST,,\"&AA$5&\",\"&$B936&\",\",data[],1),VLOOKUP(\"SPECCOST,,\"&AA$5&\",\"&$B936&\",\",data[],7),AA$909)","v":0.05},{"$f":"IF(\"SPECCOST,,\"&AB$5&\",\"&$B936&\",\"=VLOOKUP(\"SPECCOST,,\"&AB$5&\",\"&$B936&\",\",data[],1),VLOOKUP(\"SPECCOST,,\"&AB$5&\",\"&$B936&\",\",data[],7),AB$909)","v":7.0000000000000007E-2},{"$f":"IF(\"SPECCOST,,\"&AC$5&\",\"&$B936&\",\"=VLOOKUP(\"SPECCOST,,\"&AC$5&\",\"&$B936&\",\",data[],1),VLOOKUP(\"SPECCOST,,\"&AC$5&\",\"&$B936&\",\",data[],7),AC$909)","v":3.8577660276243091E-2},null,{"$f":"IF(\"SPECCOST,,\"&AE$5&\",\"&$B936&\",\"=VLOOKUP(\"SPECCOST,,\"&AE$5&\",\"&$B936&\",\",data[],1),VLOOKUP(\"SPECCOST,,\"&AE$5&\",\"&$B936&\",\",data[],7),AE$909)","v":0.05},{"$f":"IF(\"SPECCOST,,\"&AF$5&\",\"&$B936&\",\"=VLOOKUP(\"SPECCOST,,\"&AF$5&\",\"&$B936&\",\",data[],1),VLOOKUP(\"SPECCOST,,\"&AF$5&\",\"&$B936&\",\",data[],7),AF$909)","v":7.0000000000000007E-2},{"$f":"IF(\"SPECCOST,,\"&AG$5&\",\"&$B936&\",\"=VLOOKUP(\"SPECCOST,,\"&AG$5&\",\"&$B936&\",\",data[],1),VLOOKUP(\"SPECCOST,,\"&AG$5&\",\"&$B936&\",\",data[],7),AG$909)","v":7.0000000000000007E-2},{"$f":"IF(\"SPECCOST,,\"&AH$5&\",\"&$B936&\",\"=VLOOKUP(\"SPECCOST,,\"&AH$5&\",\"&$B936&\",\",data[],1),VLOOKUP(\"SPECCOST,,\"&AH$5&\",\"&$B936&\",\",data[],7),AH$909)","v":0.05},{"$f":"IF(\"SPECCOST,,\"&AI$5&\",\"&$B936&\",\"=VLOOKUP(\"SPECCOST,,\"&AI$5&\",\"&$B936&\",\",data[],1),VLOOKUP(\"SPECCOST,,\"&AI$5&\",\"&$B936&\",\",data[],7),AI$909)","v":0.01},null,null,{"$f":"IF(\"SPECCOST,,\"&AL$5&\",\"&$B936&\",\"=VLOOKUP(\"SPECCOST,,\"&AL$5&\",\"&$B936&\",\",data[],1),VLOOKUP(\"SPECCOST,,\"&AL$5&\",\"&$B936&\",\",data[],7),AL$909)","v":7.0000000000000007E-2},null,{"$f":"IF(\"SPECCOST,,\"&AN$5&\",\"&$B936&\",\"=VLOOKUP(\"SPECCOST,,\"&AN$5&\",\"&$B936&\",\",data[],1),VLOOKUP(\"SPECCOST,,\"&AN$5&\",\"&$B936&\",\",data[],7),AN$909)","v":7.0000000000000007E-2},null,null,null,null,null,null,null,{"$f":"IF(\"SPECCOST,,\"&AV$5&\",\"&$B936&\",\"=VLOOKUP(\"SPECCOST,,\"&AV$5&\",\"&$B936&\",\",data[],1),VLOOKUP(\"SPECCOST,,\"&AV$5&\",\"&$B936&\",\",data[],7),AV$909)","v":2.7940534453652541E-3},null,null,null,null,null,null,{"$f":"IF(\"SPECCOST,,\"&BC$5&\",\"&sel_country_code&\",\"=VLOOKUP(\"SPECCOST,,\"&BC$5&\",\"&sel_country_code&\",\",data[],1),VLOOKUP(\"SPECCOST,,\"&BC$5&\",\"&sel_country_code&\",\",data[],7),BC$909)","v":0.05},{"$f":"IF(\"SPECCOST,,\"&BD$5&\",\"&sel_country_code&\",\"=VLOOKUP(\"SPECCOST,,\"&BD$5&\",\"&sel_country_code&\",\",data[],1),VLOOKUP(\"SPECCOST,,\"&BD$5&\",\"&sel_country_code&\",\",data[],7),BD$909)","v":7.0000000000000007E-2},null,{"$f":"IF(\"SPECCOST,,\"&BF$5&\",\"&sel_country_code&\",\"=VLOOKUP(\"SPECCOST,,\"&BF$5&\",\"&sel_country_code&\",\",data[],1),VLOOKUP(\"SPECCOST,,\"&BF$5&\",\"&sel_country_code&\",\",data[],7),BF$909)","v":0.05},{"$f":"IF(\"SPECCOST,,\"&BG$5&\",\"&sel_country_code&\",\"=VLOOKUP(\"SPECCOST,,\"&BG$5&\",\"&sel_country_code&\",\",data[],1),VLOOKUP(\"SPECCOST,,\"&BG$5&\",\"&sel_country_code&\",\",data[],7),BG$909)","v":7.0000000000000007E-2}]
[null,"BRA",null,null,null,null,null,null,null,null,null,null,null,null,null,null,null,{"$f":"IF(\"SPECCOST,,\"&R$5&\",\"&$B937&\",\"=VLOOKUP(\"SPECCOST,,\"&R$5&\",\"&$B937&\",\",data[],1),VLOOKUP(\"SPECCOST,,\"&R$5&\",\"&$B937&\",\",data[],7),R$909)","v":1.190463995027624E-3},null,{"$f":"IF(\"SPECCOST,,\"&T$5&\",\"&$B937&\",\"=VLOOKUP(\"SPECCOST,,\"&T$5&\",\"&$B937&\",\",data[],1),VLOOKUP(\"SPECCOST,,\"&T$5&\",\"&$B937&\",\",data[],7),T$909)","v":0.05},{"$f":"IF(\"SPECCOST,,\"&U$5&\",\"&$B937&\",\"=VLOOKUP(\"SPECCOST,,\"&U$5&\",\"&$B937&\",\",data[],1),VLOOKUP(\"SPECCOST,,\"&U$5&\",\"&$B937&\",\",data[],7),U$909)","v":7.0000000000000007E-2},{"$f":"IF(\"SPECCOST,,\"&V$5&\",\"&$B937&\",\"=VLOOKUP(\"SPECCOST,,\"&V$5&\",\"&$B937&\",\",data[],1),VLOOKUP(\"SPECCOST,,\"&V$5&\",\"&$B937&\",\",data[],7),V$909)","v":7.0000000000000007E-2},null,null,{"$f":"IF(\"SPECCOST,,\"&Y$5&\",\"&$B937&\",\"=VLOOKUP(\"SPECCOST,,\"&Y$5&\",\"&$B937&\",\",data[],1),VLOOKUP(\"SPECCOST,,\"&Y$5&\",\"&$B937&\",\",data[],7),Y$909)","v":1.190463995027624E-3},null,{"$f":"IF(\"SPECCOST,,\"&AA$5&\",\"&$B937&\",\"=VLOOKUP(\"SPECCOST,,\"&AA$5&\",\"&$B937&\",\",data[],1),VLOOKUP(\"SPECCOST,,\"&AA$5&\",\"&$B937&\",\",data[],7),AA$909)","v":0.05},{"$f":"IF(\"SPECCOST,,\"&AB$5&\",\"&$B937&\",\"=VLOOKUP(\"SPECCOST,,\"&AB$5&\",\"&$B937&\",\",data[],1),VLOOKUP(\"SPECCOST,,\"&AB$5&\",\"&$B937&\",\",data[],7),AB$909)","v":7.0000000000000007E-2},{"$f":"IF(\"SPECCOST,,\"&AC$5&\",\"&$B937&\",\"=VLOOKUP(\"SPECCOST,,\"&AC$5&\",\"&$B937&\",\",data[],1),VLOOKUP(\"SPECCOST,,\"&AC$5&\",\"&$B937&\",\",data[],7),AC$909)","v":3.8577660276243091E-2},null,{"$f":"IF(\"SPECCOST,,\"&AE$5&\",\"&$B937&\",\"=VLOOKUP(\"SPECCOST,,\"&AE$5&\",\"&$B937&\",\",data[],1),VLOOKUP(\"SPECCOST,,\"&AE$5&\",\"&$B937&\",\",data[],7),AE$909)","v":0.05},{"$f":"IF(\"SPECCOST,,\"&AF$5&\",\"&$B937&\",\"=VLOOKUP(\"SPECCOST,,\"&AF$5&\",\"&$B937&\",\",data[],1),VLOOKUP(\"SPECCOST,,\"&AF$5&\",\"&$B937&\",\",data[],7),AF$909)","v":7.0000000000000007E-2},{"$f":"IF(\"SPECCOST,,\"&AG$5&\",\"&$B937&\",\"=VLOOKUP(\"SPECCOST,,\"&AG$5&\",\"&$B937&\",\",data[],1),VLOOKUP(\"SPECCOST,,\"&AG$5&\",\"&$B937&\",\",data[],7),AG$909)","v":7.0000000000000007E-2},{"$f":"IF(\"SPECCOST,,\"&AH$5&\",\"&$B937&\",\"=VLOOKUP(\"SPECCOST,,\"&AH$5&\",\"&$B937&\",\",data[],1),VLOOKUP(\"SPECCOST,,\"&AH$5&\",\"&$B937&\",\",data[],7),AH$909)","v":0.05},{"$f":"IF(\"SPECCOST,,\"&AI$5&\",\"&$B937&\",\"=VLOOKUP(\"SPECCOST,,\"&AI$5&\",\"&$B937&\",\",data[],1),VLOOKUP(\"SPECCOST,,\"&AI$5&\",\"&$B937&\",\",data[],7),AI$909)","v":0.01},null,null,{"$f":"IF(\"SPECCOST,,\"&AL$5&\",\"&$B937&\",\"=VLOOKUP(\"SPECCOST,,\"&AL$5&\",\"&$B937&\",\",data[],1),VLOOKUP(\"SPECCOST,,\"&AL$5&\",\"&$B937&\",\",data[],7),AL$909)","v":7.0000000000000007E-2},null,{"$f":"IF(\"SPECCOST,,\"&AN$5&\",\"&$B937&\",\"=VLOOKUP(\"SPECCOST,,\"&AN$5&\",\"&$B937&\",\",data[],1),VLOOKUP(\"SPECCOST,,\"&AN$5&\",\"&$B937&\",\",data[],7),AN$909)","v":7.0000000000000007E-2},null,null,null,null,null,null,null,{"$f":"IF(\"SPECCOST,,\"&AV$5&\",\"&$B937&\",\"=VLOOKUP(\"SPECCOST,,\"&AV$5&\",\"&$B937&\",\",data[],1),VLOOKUP(\"SPECCOST,,\"&AV$5&\",\"&$B937&\",\",data[],7),AV$909)","v":2.7940534453652541E-3},null,null,null,null,null,null,{"$f":"IF(\"SPECCOST,,\"&BC$5&\",\"&sel_country_code&\",\"=VLOOKUP(\"SPECCOST,,\"&BC$5&\",\"&sel_country_code&\",\",data[],1),VLOOKUP(\"SPECCOST,,\"&BC$5&\",\"&sel_country_code&\",\",data[],7),BC$909)","v":0.05},{"$f":"IF(\"SPECCOST,,\"&BD$5&\",\"&sel_country_code&\",\"=VLOOKUP(\"SPECCOST,,\"&BD$5&\",\"&sel_country_code&\",\",data[],1),VLOOKUP(\"SPECCOST,,\"&BD$5&\",\"&sel_country_code&\",\",data[],7),BD$909)","v":7.0000000000000007E-2},null,{"$f":"IF(\"SPECCOST,,\"&BF$5&\",\"&sel_country_code&\",\"=VLOOKUP(\"SPECCOST,,\"&BF$5&\",\"&sel_country_code&\",\",data[],1),VLOOKUP(\"SPECCOST,,\"&BF$5&\",\"&sel_country_code&\",\",data[],7),BF$909)","v":0.05},{"$f":"IF(\"SPECCOST,,\"&BG$5&\",\"&sel_country_code&\",\"=VLOOKUP(\"SPECCOST,,\"&BG$5&\",\"&sel_country_code&\",\",data[],1),VLOOKUP(\"SPECCOST,,\"&BG$5&\",\"&sel_country_code&\",\",data[],7),BG$909)","v":7.0000000000000007E-2}]
[null,"CHL",null,null,null,null,null,null,null,null,null,null,null,null,null,null,null,{"$f":"IF(\"SPECCOST,,\"&R$5&\",\"&$B938&\",\"=VLOOKUP(\"SPECCOST,,\"&R$5&\",\"&$B938&\",\",data[],1),VLOOKUP(\"SPECCOST,,\"&R$5&\",\"&$B938&\",\",data[],7),R$909)","v":1.190463995027624E-3},null,{"$f":"IF(\"SPECCOST,,\"&T$5&\",\"&$B938&\",\"=VLOOKUP(\"SPECCOST,,\"&T$5&\",\"&$B938&\",\",data[],1),VLOOKUP(\"SPECCOST,,\"&T$5&\",\"&$B938&\",\",data[],7),T$909)","v":0.05},{"$f":"IF(\"SPECCOST,,\"&U$5&\",\"&$B938&\",\"=VLOOKUP(\"SPECCOST,,\"&U$5&\",\"&$B938&\",\",data[],1),VLOOKUP(\"SPECCOST,,\"&U$5&\",\"&$B938&\",\",data[],7),U$909)","v":7.0000000000000007E-2},{"$f":"IF(\"SPECCOST,,\"&V$5&\",\"&$B938&\",\"=VLOOKUP(\"SPECCOST,,\"&V$5&\",\"&$B938&\",\",data[],1),VLOOKUP(\"SPECCOST,,\"&V$5&\",\"&$B938&\",\",data[],7),V$909)","v":7.0000000000000007E-2},null,null,{"$f":"IF(\"SPECCOST,,\"&Y$5&\",\"&$B938&\",\"=VLOOKUP(\"SPECCOST,,\"&Y$5&\",\"&$B938&\",\",data[],1),VLOOKUP(\"SPECCOST,,\"&Y$5&\",\"&$B938&\",\",data[],7),Y$909)","v":1.190463995027624E-3},null,{"$f":"IF(\"SPECCOST,,\"&AA$5&\",\"&$B938&\",\"=VLOOKUP(\"SPECCOST,,\"&AA$5&\",\"&$B938&\",\",data[],1),VLOOKUP(\"SPECCOST,,\"&AA$5&\",\"&$B938&\",\",data[],7),AA$909)","v":0.05},{"$f":"IF(\"SPECCOST,,\"&AB$5&\",\"&$B938&\",\"=VLOOKUP(\"SPECCOST,,\"&AB$5&\",\"&$B938&\",\",data[],1),VLOOKUP(\"SPECCOST,,\"&AB$5&\",\"&$B938&\",\",data[],7),AB$909)","v":7.0000000000000007E-2},{"$f":"IF(\"SPECCOST,,\"&AC$5&\",\"&$B938&\",\"=VLOOKUP(\"SPECCOST,,\"&AC$5&\",\"&$B938&\",\",data[],1),VLOOKUP(\"SPECCOST,,\"&AC$5&\",\"&$B938&\",\",data[],7),AC$909)","v":3.8577660276243091E-2},null,{"$f":"IF(\"SPECCOST,,\"&AE$5&\",\"&$B938&\",\"=VLOOKUP(\"SPECCOST,,\"&AE$5&\",\"&$B938&\",\",data[],1),VLOOKUP(\"SPECCOST,,\"&AE$5&\",\"&$B938&\",\",data[],7),AE$909)","v":0.05},{"$f":"IF(\"SPECCOST,,\"&AF$5&\",\"&$B938&\",\"=VLOOKUP(\"SPECCOST,,\"&AF$5&\",\"&$B938&\",\",data[],1),VLOOKUP(\"SPECCOST,,\"&AF$5&\",\"&$B938&\",\",data[],7),AF$909)","v":7.0000000000000007E-2},{"$f":"IF(\"SPECCOST,,\"&AG$5&\",\"&$B938&\",\"=VLOOKUP(\"SPECCOST,,\"&AG$5&\",\"&$B938&\",\",data[],1),VLOOKUP(\"SPECCOST,,\"&AG$5&\",\"&$B938&\",\",data[],7),AG$909)","v":7.0000000000000007E-2},{"$f":"IF(\"SPECCOST,,\"&AH$5&\",\"&$B938&\",\"=VLOOKUP(\"SPECCOST,,\"&AH$5&\",\"&$B938&\",\",data[],1),VLOOKUP(\"SPECCOST,,\"&AH$5&\",\"&$B938&\",\",data[],7),AH$909)","v":0.05},{"$f":"IF(\"SPECCOST,,\"&AI$5&\",\"&$B938&\",\"=VLOOKUP(\"SPECCOST,,\"&AI$5&\",\"&$B938&\",\",data[],1),VLOOKUP(\"SPECCOST,,\"&AI$5&\",\"&$B938&\",\",data[],7),AI$909)","v":0.01},null,null,{"$f":"IF(\"SPECCOST,,\"&AL$5&\",\"&$B938&\",\"=VLOOKUP(\"SPECCOST,,\"&AL$5&\",\"&$B938&\",\",data[],1),VLOOKUP(\"SPECCOST,,\"&AL$5&\",\"&$B938&\",\",data[],7),AL$909)","v":7.0000000000000007E-2},null,{"$f":"IF(\"SPECCOST,,\"&AN$5&\",\"&$B938&\",\"=VLOOKUP(\"SPECCOST,,\"&AN$5&\",\"&$B938&\",\",data[],1),VLOOKUP(\"SPECCOST,,\"&AN$5&\",\"&$B938&\",\",data[],7),AN$909)","v":7.0000000000000007E-2},null,null,null,null,null,null,null,{"$f":"IF(\"SPECCOST,,\"&AV$5&\",\"&$B938&\",\"=VLOOKUP(\"SPECCOST,,\"&AV$5&\",\"&$B938&\",\",data[],1),VLOOKUP(\"SPECCOST,,\"&AV$5&\",\"&$B938&\",\",data[],7),AV$909)","v":2.7940534453652541E-3},null,null,null,null,null,null,{"$f":"IF(\"SPECCOST,,\"&BC$5&\",\"&sel_country_code&\",\"=VLOOKUP(\"SPECCOST,,\"&BC$5&\",\"&sel_country_code&\",\",data[],1),VLOOKUP(\"SPECCOST,,\"&BC$5&\",\"&sel_country_code&\",\",data[],7),BC$909)","v":0.05},{"$f":"IF(\"SPECCOST,,\"&BD$5&\",\"&sel_country_code&\",\"=VLOOKUP(\"SPECCOST,,\"&BD$5&\",\"&sel_country_code&\",\",data[],1),VLOOKUP(\"SPECCOST,,\"&BD$5&\",\"&sel_country_code&\",\",data[],7),BD$909)","v":7.0000000000000007E-2},null,{"$f":"IF(\"SPECCOST,,\"&BF$5&\",\"&sel_country_code&\",\"=VLOOKUP(\"SPECCOST,,\"&BF$5&\",\"&sel_country_code&\",\",data[],1),VLOOKUP(\"SPECCOST,,\"&BF$5&\",\"&sel_country_code&\",\",data[],7),BF$909)","v":0.05},{"$f":"IF(\"SPECCOST,,\"&BG$5&\",\"&sel_country_code&\",\"=VLOOKUP(\"SPECCOST,,\"&BG$5&\",\"&sel_country_code&\",\",data[],1),VLOOKUP(\"SPECCOST,,\"&BG$5&\",\"&sel_country_code&\",\",data[],7),BG$909)","v":7.0000000000000007E-2}]
[null,"CHN",null,null,null,null,null,null,null,null,null,null,null,null,null,null,null,{"$f":"IF(\"SPECCOST,,\"&R$5&\",\"&$B939&\",\"=VLOOKUP(\"SPECCOST,,\"&R$5&\",\"&$B939&\",\",data[],1),VLOOKUP(\"SPECCOST,,\"&R$5&\",\"&$B939&\",\",data[],7),R$909)","v":1.190463995027624E-3},null,{"$f":"IF(\"SPECCOST,,\"&T$5&\",\"&$B939&\",\"=VLOOKUP(\"SPECCOST,,\"&T$5&\",\"&$B939&\",\",data[],1),VLOOKUP(\"SPECCOST,,\"&T$5&\",\"&$B939&\",\",data[],7),T$909)","v":0.05},{"$f":"IF(\"SPECCOST,,\"&U$5&\",\"&$B939&\",\"=VLOOKUP(\"SPECCOST,,\"&U$5&\",\"&$B939&\",\",data[],1),VLOOKUP(\"SPECCOST,,\"&U$5&\",\"&$B939&\",\",data[],7),U$909)","v":7.0000000000000007E-2},{"$f":"IF(\"SPECCOST,,\"&V$5&\",\"&$B939&\",\"=VLOOKUP(\"SPECCOST,,\"&V$5&\",\"&$B939&\",\",data[],1),VLOOKUP(\"SPECCOST,,\"&V$5&\",\"&$B939&\",\",data[],7),V$909)","v":7.0000000000000007E-2},null,null,{"$f":"IF(\"SPECCOST,,\"&Y$5&\",\"&$B939&\",\"=VLOOKUP(\"SPECCOST,,\"&Y$5&\",\"&$B939&\",\",data[],1),VLOOKUP(\"SPECCOST,,\"&Y$5&\",\"&$B939&\",\",data[],7),Y$909)","v":1.190463995027624E-3},null,{"$f":"IF(\"SPECCOST,,\"&AA$5&\",\"&$B939&\",\"=VLOOKUP(\"SPECCOST,,\"&AA$5&\",\"&$B939&\",\",data[],1),VLOOKUP(\"SPECCOST,,\"&AA$5&\",\"&$B939&\",\",data[],7),AA$909)","v":0.05},{"$f":"IF(\"SPECCOST,,\"&AB$5&\",\"&$B939&\",\"=VLOOKUP(\"SPECCOST,,\"&AB$5&\",\"&$B939&\",\",data[],1),VLOOKUP(\"SPECCOST,,\"&AB$5&\",\"&$B939&\",\",data[],7),AB$909)","v":7.0000000000000007E-2},{"$f":"IF(\"SPECCOST,,\"&AC$5&\",\"&$B939&\",\"=VLOOKUP(\"SPECCOST,,\"&AC$5&\",\"&$B939&\",\",data[],1),VLOOKUP(\"SPECCOST,,\"&AC$5&\",\"&$B939&\",\",data[],7),AC$909)","v":3.8577660276243091E-2},null,{"$f":"IF(\"SPECCOST,,\"&AE$5&\",\"&$B939&\",\"=VLOOKUP(\"SPECCOST,,\"&AE$5&\",\"&$B939&\",\",data[],1),VLOOKUP(\"SPECCOST,,\"&AE$5&\",\"&$B939&\",\",data[],7),AE$909)","v":0.05},{"$f":"IF(\"SPECCOST,,\"&AF$5&\",\"&$B939&\",\"=VLOOKUP(\"SPECCOST,,\"&AF$5&\",\"&$B939&\",\",data[],1),VLOOKUP(\"SPECCOST,,\"&AF$5&\",\"&$B939&\",\",data[],7),AF$909)","v":7.0000000000000007E-2},{"$f":"IF(\"SPECCOST,,\"&AG$5&\",\"&$B939&\",\"=VLOOKUP(\"SPECCOST,,\"&AG$5&\",\"&$B939&\",\",data[],1),VLOOKUP(\"SPECCOST,,\"&AG$5&\",\"&$B939&\",\",data[],7),AG$909)","v":7.0000000000000007E-2},{"$f":"IF(\"SPECCOST,,\"&AH$5&\",\"&$B939&\",\"=VLOOKUP(\"SPECCOST,,\"&AH$5&\",\"&$B939&\",\",data[],1),VLOOKUP(\"SPECCOST,,\"&AH$5&\",\"&$B939&\",\",data[],7),AH$909)","v":0.05},{"$f":"IF(\"SPECCOST,,\"&AI$5&\",\"&$B939&\",\"=VLOOKUP(\"SPECCOST,,\"&AI$5&\",\"&$B939&\",\",data[],1),VLOOKUP(\"SPECCOST,,\"&AI$5&\",\"&$B939&\",\",data[],7),AI$909)","v":0.01},null,null,{"$f":"IF(\"SPECCOST,,\"&AL$5&\",\"&$B939&\",\"=VLOOKUP(\"SPECCOST,,\"&AL$5&\",\"&$B939&\",\",data[],1),VLOOKUP(\"SPECCOST,,\"&AL$5&\",\"&$B939&\",\",data[],7),AL$909)","v":7.0000000000000007E-2},null,{"$f":"IF(\"SPECCOST,,\"&AN$5&\",\"&$B939&\",\"=VLOOKUP(\"SPECCOST,,\"&AN$5&\",\"&$B939&\",\",data[],1),VLOOKUP(\"SPECCOST,,\"&AN$5&\",\"&$B939&\",\",data[],7),AN$909)","v":7.0000000000000007E-2},null,null,null,null,null,null,null,{"$f":"IF(\"SPECCOST,,\"&AV$5&\",\"&$B939&\",\"=VLOOKUP(\"SPECCOST,,\"&AV$5&\",\"&$B939&\",\",data[],1),VLOOKUP(\"SPECCOST,,\"&AV$5&\",\"&$B939&\",\",data[],7),AV$909)","v":2.7940534453652541E-3},null,null,null,null,null,null,{"$f":"IF(\"SPECCOST,,\"&BC$5&\",\"&sel_country_code&\",\"=VLOOKUP(\"SPECCOST,,\"&BC$5&\",\"&sel_country_code&\",\",data[],1),VLOOKUP(\"SPECCOST,,\"&BC$5&\",\"&sel_country_code&\",\",data[],7),BC$909)","v":0.05},{"$f":"IF(\"SPECCOST,,\"&BD$5&\",\"&sel_country_code&\",\"=VLOOKUP(\"SPECCOST,,\"&BD$5&\",\"&sel_country_code&\",\",data[],1),VLOOKUP(\"SPECCOST,,\"&BD$5&\",\"&sel_country_code&\",\",data[],7),BD$909)","v":7.0000000000000007E-2},null,{"$f":"IF(\"SPECCOST,,\"&BF$5&\",\"&sel_country_code&\",\"=VLOOKUP(\"SPECCOST,,\"&BF$5&\",\"&sel_country_code&\",\",data[],1),VLOOKUP(\"SPECCOST,,\"&BF$5&\",\"&sel_country_code&\",\",data[],7),BF$909)","v":0.05},{"$f":"IF(\"SPECCOST,,\"&BG$5&\",\"&sel_country_code&\",\"=VLOOKUP(\"SPECCOST,,\"&BG$5&\",\"&sel_country_code&\",\",data[],1),VLOOKUP(\"SPECCOST,,\"&BG$5&\",\"&sel_country_code&\",\",data[],7),BG$909)","v":7.0000000000000007E-2}]
[null,"COL",null,null,null,null,null,null,null,null,null,null,null,null,null,null,null,{"$f":"IF(\"SPECCOST,,\"&R$5&\",\"&$B940&\",\"=VLOOKUP(\"SPECCOST,,\"&R$5&\",\"&$B940&\",\",data[],1),VLOOKUP(\"SPECCOST,,\"&R$5&\",\"&$B940&\",\",data[],7),R$909)","v":1.190463995027624E-3},null,{"$f":"IF(\"SPECCOST,,\"&T$5&\",\"&$B940&\",\"=VLOOKUP(\"SPECCOST,,\"&T$5&\",\"&$B940&\",\",data[],1),VLOOKUP(\"SPECCOST,,\"&T$5&\",\"&$B940&\",\",data[],7),T$909)","v":0.05},{"$f":"IF(\"SPECCOST,,\"&U$5&\",\"&$B940&\",\"=VLOOKUP(\"SPECCOST,,\"&U$5&\",\"&$B940&\",\",data[],1),VLOOKUP(\"SPECCOST,,\"&U$5&\",\"&$B940&\",\",data[],7),U$909)","v":7.0000000000000007E-2},{"$f":"IF(\"SPECCOST,,\"&V$5&\",\"&$B940&\",\"=VLOOKUP(\"SPECCOST,,\"&V$5&\",\"&$B940&\",\",data[],1),VLOOKUP(\"SPECCOST,,\"&V$5&\",\"&$B940&\",\",data[],7),V$909)","v":7.0000000000000007E-2},null,null,{"$f":"IF(\"SPECCOST,,\"&Y$5&\",\"&$B940&\",\"=VLOOKUP(\"SPECCOST,,\"&Y$5&\",\"&$B940&\",\",data[],1),VLOOKUP(\"SPECCOST,,\"&Y$5&\",\"&$B940&\",\",data[],7),Y$909)","v":1.190463995027624E-3},null,{"$f":"IF(\"SPECCOST,,\"&AA$5&\",\"&$B940&\",\"=VLOOKUP(\"SPECCOST,,\"&AA$5&\",\"&$B940&\",\",data[],1),VLOOKUP(\"SPECCOST,,\"&AA$5&\",\"&$B940&\",\",data[],7),AA$909)","v":0.05},{"$f":"IF(\"SPECCOST,,\"&AB$5&\",\"&$B940&\",\"=VLOOKUP(\"SPECCOST,,\"&AB$5&\",\"&$B940&\",\",data[],1),VLOOKUP(\"SPECCOST,,\"&AB$5&\",\"&$B940&\",\",data[],7),AB$909)","v":7.0000000000000007E-2},{"$f":"IF(\"SPECCOST,,\"&AC$5&\",\"&$B940&\",\"=VLOOKUP(\"SPECCOST,,\"&AC$5&\",\"&$B940&\",\",data[],1),VLOOKUP(\"SPECCOST,,\"&AC$5&\",\"&$B940&\",\",data[],7),AC$909)","v":3.8577660276243091E-2},null,{"$f":"IF(\"SPECCOST,,\"&AE$5&\",\"&$B940&\",\"=VLOOKUP(\"SPECCOST,,\"&AE$5&\",\"&$B940&\",\",data[],1),VLOOKUP(\"SPECCOST,,\"&AE$5&\",\"&$B940&\",\",data[],7),AE$909)","v":0.05},{"$f":"IF(\"SPECCOST,,\"&AF$5&\",\"&$B940&\",\"=VLOOKUP(\"SPECCOST,,\"&AF$5&\",\"&$B940&\",\",data[],1),VLOOKUP(\"SPECCOST,,\"&AF$5&\",\"&$B940&\",\",data[],7),AF$909)","v":7.0000000000000007E-2},{"$f":"IF(\"SPECCOST,,\"&AG$5&\",\"&$B940&\",\"=VLOOKUP(\"SPECCOST,,\"&AG$5&\",\"&$B940&\",\",data[],1),VLOOKUP(\"SPECCOST,,\"&AG$5&\",\"&$B940&\",\",data[],7),AG$909)","v":7.0000000000000007E-2},{"$f":"IF(\"SPECCOST,,\"&AH$5&\",\"&$B940&\",\"=VLOOKUP(\"SPECCOST,,\"&AH$5&\",\"&$B940&\",\",data[],1),VLOOKUP(\"SPECCOST,,\"&AH$5&\",\"&$B940&\",\",data[],7),AH$909)","v":0.05},{"$f":"IF(\"SPECCOST,,\"&AI$5&\",\"&$B940&\",\"=VLOOKUP(\"SPECCOST,,\"&AI$5&\",\"&$B940&\",\",data[],1),VLOOKUP(\"SPECCOST,,\"&AI$5&\",\"&$B940&\",\",data[],7),AI$909)","v":0.01},null,null,{"$f":"IF(\"SPECCOST,,\"&AL$5&\",\"&$B940&\",\"=VLOOKUP(\"SPECCOST,,\"&AL$5&\",\"&$B940&\",\",data[],1),VLOOKUP(\"SPECCOST,,\"&AL$5&\",\"&$B940&\",\",data[],7),AL$909)","v":7.0000000000000007E-2},null,{"$f":"IF(\"SPECCOST,,\"&AN$5&\",\"&$B940&\",\"=VLOOKUP(\"SPECCOST,,\"&AN$5&\",\"&$B940&\",\",data[],1),VLOOKUP(\"SPECCOST,,\"&AN$5&\",\"&$B940&\",\",data[],7),AN$909)","v":7.0000000000000007E-2},null,null,null,null,null,null,null,{"$f":"IF(\"SPECCOST,,\"&AV$5&\",\"&$B940&\",\"=VLOOKUP(\"SPECCOST,,\"&AV$5&\",\"&$B940&\",\",data[],1),VLOOKUP(\"SPECCOST,,\"&AV$5&\",\"&$B940&\",\",data[],7),AV$909)","v":2.7940534453652541E-3},null,null,null,null,null,null,{"$f":"IF(\"SPECCOST,,\"&BC$5&\",\"&sel_country_code&\",\"=VLOOKUP(\"SPECCOST,,\"&BC$5&\",\"&sel_country_code&\",\",data[],1),VLOOKUP(\"SPECCOST,,\"&BC$5&\",\"&sel_country_code&\",\",data[],7),BC$909)","v":0.05},{"$f":"IF(\"SPECCOST,,\"&BD$5&\",\"&sel_country_code&\",\"=VLOOKUP(\"SPECCOST,,\"&BD$5&\",\"&sel_country_code&\",\",data[],1),VLOOKUP(\"SPECCOST,,\"&BD$5&\",\"&sel_country_code&\",\",data[],7),BD$909)","v":7.0000000000000007E-2},null,{"$f":"IF(\"SPECCOST,,\"&BF$5&\",\"&sel_country_code&\",\"=VLOOKUP(\"SPECCOST,,\"&BF$5&\",\"&sel_country_code&\",\",data[],1),VLOOKUP(\"SPECCOST,,\"&BF$5&\",\"&sel_country_code&\",\",data[],7),BF$909)","v":0.05},{"$f":"IF(\"SPECCOST,,\"&BG$5&\",\"&sel_country_code&\",\"=VLOOKUP(\"SPECCOST,,\"&BG$5&\",\"&sel_country_code&\",\",data[],1),VLOOKUP(\"SPECCOST,,\"&BG$5&\",\"&sel_country_code&\",\",data[],7),BG$909)","v":7.0000000000000007E-2}]
[null,"CRI",null,null,null,null,null,null,null,null,null,null,null,null,null,null,null,{"$f":"IF(\"SPECCOST,,\"&R$5&\",\"&$B941&\",\"=VLOOKUP(\"SPECCOST,,\"&R$5&\",\"&$B941&\",\",data[],1),VLOOKUP(\"SPECCOST,,\"&R$5&\",\"&$B941&\",\",data[],7),R$909)","v":1.190463995027624E-3},null,{"$f":"IF(\"SPECCOST,,\"&T$5&\",\"&$B941&\",\"=VLOOKUP(\"SPECCOST,,\"&T$5&\",\"&$B941&\",\",data[],1),VLOOKUP(\"SPECCOST,,\"&T$5&\",\"&$B941&\",\",data[],7),T$909)","v":0.05},{"$f":"IF(\"SPECCOST,,\"&U$5&\",\"&$B941&\",\"=VLOOKUP(\"SPECCOST,,\"&U$5&\",\"&$B941&\",\",data[],1),VLOOKUP(\"SPECCOST,,\"&U$5&\",\"&$B941&\",\",data[],7),U$909)","v":7.0000000000000007E-2},{"$f":"IF(\"SPECCOST,,\"&V$5&\",\"&$B941&\",\"=VLOOKUP(\"SPECCOST,,\"&V$5&\",\"&$B941&\",\",data[],1),VLOOKUP(\"SPECCOST,,\"&V$5&\",\"&$B941&\",\",data[],7),V$909)","v":7.0000000000000007E-2},null,null,{"$f":"IF(\"SPECCOST,,\"&Y$5&\",\"&$B941&\",\"=VLOOKUP(\"SPECCOST,,\"&Y$5&\",\"&$B941&\",\",data[],1),VLOOKUP(\"SPECCOST,,\"&Y$5&\",\"&$B941&\",\",data[],7),Y$909)","v":1.190463995027624E-3},null,{"$f":"IF(\"SPECCOST,,\"&AA$5&\",\"&$B941&\",\"=VLOOKUP(\"SPECCOST,,\"&AA$5&\",\"&$B941&\",\",data[],1),VLOOKUP(\"SPECCOST,,\"&AA$5&\",\"&$B941&\",\",data[],7),AA$909)","v":0.05},{"$f":"IF(\"SPECCOST,,\"&AB$5&\",\"&$B941&\",\"=VLOOKUP(\"SPECCOST,,\"&AB$5&\",\"&$B941&\",\",data[],1),VLOOKUP(\"SPECCOST,,\"&AB$5&\",\"&$B941&\",\",data[],7),AB$909)","v":7.0000000000000007E-2},{"$f":"IF(\"SPECCOST,,\"&AC$5&\",\"&$B941&\",\"=VLOOKUP(\"SPECCOST,,\"&AC$5&\",\"&$B941&\",\",data[],1),VLOOKUP(\"SPECCOST,,\"&AC$5&\",\"&$B941&\",\",data[],7),AC$909)","v":3.8577660276243091E-2},null,{"$f":"IF(\"SPECCOST,,\"&AE$5&\",\"&$B941&\",\"=VLOOKUP(\"SPECCOST,,\"&AE$5&\",\"&$B941&\",\",data[],1),VLOOKUP(\"SPECCOST,,\"&AE$5&\",\"&$B941&\",\",data[],7),AE$909)","v":0.05},{"$f":"IF(\"SPECCOST,,\"&AF$5&\",\"&$B941&\",\"=VLOOKUP(\"SPECCOST,,\"&AF$5&\",\"&$B941&\",\",data[],1),VLOOKUP(\"SPECCOST,,\"&AF$5&\",\"&$B941&\",\",data[],7),AF$909)","v":7.0000000000000007E-2},{"$f":"IF(\"SPECCOST,,\"&AG$5&\",\"&$B941&\",\"=VLOOKUP(\"SPECCOST,,\"&AG$5&\",\"&$B941&\",\",data[],1),VLOOKUP(\"SPECCOST,,\"&AG$5&\",\"&$B941&\",\",data[],7),AG$909)","v":7.0000000000000007E-2},{"$f":"IF(\"SPECCOST,,\"&AH$5&\",\"&$B941&\",\"=VLOOKUP(\"SPECCOST,,\"&AH$5&\",\"&$B941&\",\",data[],1),VLOOKUP(\"SPECCOST,,\"&AH$5&\",\"&$B941&\",\",data[],7),AH$909)","v":0.05},{"$f":"IF(\"SPECCOST,,\"&AI$5&\",\"&$B941&\",\"=VLOOKUP(\"SPECCOST,,\"&AI$5&\",\"&$B941&\",\",data[],1),VLOOKUP(\"SPECCOST,,\"&AI$5&\",\"&$B941&\",\",data[],7),AI$909)","v":0.01},null,null,{"$f":"IF(\"SPECCOST,,\"&AL$5&\",\"&$B941&\",\"=VLOOKUP(\"SPECCOST,,\"&AL$5&\",\"&$B941&\",\",data[],1),VLOOKUP(\"SPECCOST,,\"&AL$5&\",\"&$B941&\",\",data[],7),AL$909)","v":7.0000000000000007E-2},null,{"$f":"IF(\"SPECCOST,,\"&AN$5&\",\"&$B941&\",\"=VLOOKUP(\"SPECCOST,,\"&AN$5&\",\"&$B941&\",\",data[],1),VLOOKUP(\"SPECCOST,,\"&AN$5&\",\"&$B941&\",\",data[],7),AN$909)","v":7.0000000000000007E-2},null,null,null,null,null,null,null,{"$f":"IF(\"SPECCOST,,\"&AV$5&\",\"&$B941&\",\"=VLOOKUP(\"SPECCOST,,\"&AV$5&\",\"&$B941&\",\",data[],1),VLOOKUP(\"SPECCOST,,\"&AV$5&\",\"&$B941&\",\",data[],7),AV$909)","v":2.7940534453652541E-3},null,null,null,null,null,null,{"$f":"IF(\"SPECCOST,,\"&BC$5&\",\"&sel_country_code&\",\"=VLOOKUP(\"SPECCOST,,\"&BC$5&\",\"&sel_country_code&\",\",data[],1),VLOOKUP(\"SPECCOST,,\"&BC$5&\",\"&sel_country_code&\",\",data[],7),BC$909)","v":0.05},{"$f":"IF(\"SPECCOST,,\"&BD$5&\",\"&sel_country_code&\",\"=VLOOKUP(\"SPECCOST,,\"&BD$5&\",\"&sel_country_code&\",\",data[],1),VLOOKUP(\"SPECCOST,,\"&BD$5&\",\"&sel_country_code&\",\",data[],7),BD$909)","v":7.0000000000000007E-2},null,{"$f":"IF(\"SPECCOST,,\"&BF$5&\",\"&sel_country_code&\",\"=VLOOKUP(\"SPECCOST,,\"&BF$5&\",\"&sel_country_code&\",\",data[],1),VLOOKUP(\"SPECCOST,,\"&BF$5&\",\"&sel_country_code&\",\",data[],7),BF$909)","v":0.05},{"$f":"IF(\"SPECCOST,,\"&BG$5&\",\"&sel_country_code&\",\"=VLOOKUP(\"SPECCOST,,\"&BG$5&\",\"&sel_country_code&\",\",data[],1),VLOOKUP(\"SPECCOST,,\"&BG$5&\",\"&sel_country_code&\",\",data[],7),BG$909)","v":7.0000000000000007E-2}]
[null,"DNK",null,null,null,null,null,null,null,null,null,null,null,null,null,null,null,{"$f":"IF(\"SPECCOST,,\"&R$5&\",\"&$B942&\",\"=VLOOKUP(\"SPECCOST,,\"&R$5&\",\"&$B942&\",\",data[],1),VLOOKUP(\"SPECCOST,,\"&R$5&\",\"&$B942&\",\",data[],7),R$909)","v":1.190463995027624E-3},null,{"$f":"IF(\"SPECCOST,,\"&T$5&\",\"&$B942&\",\"=VLOOKUP(\"SPECCOST,,\"&T$5&\",\"&$B942&\",\",data[],1),VLOOKUP(\"SPECCOST,,\"&T$5&\",\"&$B942&\",\",data[],7),T$909)","v":0.05},{"$f":"IF(\"SPECCOST,,\"&U$5&\",\"&$B942&\",\"=VLOOKUP(\"SPECCOST,,\"&U$5&\",\"&$B942&\",\",data[],1),VLOOKUP(\"SPECCOST,,\"&U$5&\",\"&$B942&\",\",data[],7),U$909)","v":7.0000000000000007E-2},{"$f":"IF(\"SPECCOST,,\"&V$5&\",\"&$B942&\",\"=VLOOKUP(\"SPECCOST,,\"&V$5&\",\"&$B942&\",\",data[],1),VLOOKUP(\"SPECCOST,,\"&V$5&\",\"&$B942&\",\",data[],7),V$909)","v":7.0000000000000007E-2},null,null,{"$f":"IF(\"SPECCOST,,\"&Y$5&\",\"&$B942&\",\"=VLOOKUP(\"SPECCOST,,\"&Y$5&\",\"&$B942&\",\",data[],1),VLOOKUP(\"SPECCOST,,\"&Y$5&\",\"&$B942&\",\",data[],7),Y$909)","v":1.190463995027624E-3},null,{"$f":"IF(\"SPECCOST,,\"&AA$5&\",\"&$B942&\",\"=VLOOKUP(\"SPECCOST,,\"&AA$5&\",\"&$B942&\",\",data[],1),VLOOKUP(\"SPECCOST,,\"&AA$5&\",\"&$B942&\",\",data[],7),AA$909)","v":0.05},{"$f":"IF(\"SPECCOST,,\"&AB$5&\",\"&$B942&\",\"=VLOOKUP(\"SPECCOST,,\"&AB$5&\",\"&$B942&\",\",data[],1),VLOOKUP(\"SPECCOST,,\"&AB$5&\",\"&$B942&\",\",data[],7),AB$909)","v":7.0000000000000007E-2},{"$f":"IF(\"SPECCOST,,\"&AC$5&\",\"&$B942&\",\"=VLOOKUP(\"SPECCOST,,\"&AC$5&\",\"&$B942&\",\",data[],1),VLOOKUP(\"SPECCOST,,\"&AC$5&\",\"&$B942&\",\",data[],7),AC$909)","v":3.8577660276243091E-2},null,{"$f":"IF(\"SPECCOST,,\"&AE$5&\",\"&$B942&\",\"=VLOOKUP(\"SPECCOST,,\"&AE$5&\",\"&$B942&\",\",data[],1),VLOOKUP(\"SPECCOST,,\"&AE$5&\",\"&$B942&\",\",data[],7),AE$909)","v":0.05},{"$f":"IF(\"SPECCOST,,\"&AF$5&\",\"&$B942&\",\"=VLOOKUP(\"SPECCOST,,\"&AF$5&\",\"&$B942&\",\",data[],1),VLOOKUP(\"SPECCOST,,\"&AF$5&\",\"&$B942&\",\",data[],7),AF$909)","v":7.0000000000000007E-2},{"$f":"IF(\"SPECCOST,,\"&AG$5&\",\"&$B942&\",\"=VLOOKUP(\"SPECCOST,,\"&AG$5&\",\"&$B942&\",\",data[],1),VLOOKUP(\"SPECCOST,,\"&AG$5&\",\"&$B942&\",\",data[],7),AG$909)","v":7.0000000000000007E-2},{"$f":"IF(\"SPECCOST,,\"&AH$5&\",\"&$B942&\",\"=VLOOKUP(\"SPECCOST,,\"&AH$5&\",\"&$B942&\",\",data[],1),VLOOKUP(\"SPECCOST,,\"&AH$5&\",\"&$B942&\",\",data[],7),AH$909)","v":0.05},{"$f":"IF(\"SPECCOST,,\"&AI$5&\",\"&$B942&\",\"=VLOOKUP(\"SPECCOST,,\"&AI$5&\",\"&$B942&\",\",data[],1),VLOOKUP(\"SPECCOST,,\"&AI$5&\",\"&$B942&\",\",data[],7),AI$909)","v":0.01},null,null,{"$f":"IF(\"SPECCOST,,\"&AL$5&\",\"&$B942&\",\"=VLOOKUP(\"SPECCOST,,\"&AL$5&\",\"&$B942&\",\",data[],1),VLOOKUP(\"SPECCOST,,\"&AL$5&\",\"&$B942&\",\",data[],7),AL$909)","v":7.0000000000000007E-2},null,{"$f":"IF(\"SPECCOST,,\"&AN$5&\",\"&$B942&\",\"=VLOOKUP(\"SPECCOST,,\"&AN$5&\",\"&$B942&\",\",data[],1),VLOOKUP(\"SPECCOST,,\"&AN$5&\",\"&$B942&\",\",data[],7),AN$909)","v":7.0000000000000007E-2},null,null,null,null,null,null,null,{"$f":"IF(\"SPECCOST,,\"&AV$5&\",\"&$B942&\",\"=VLOOKUP(\"SPECCOST,,\"&AV$5&\",\"&$B942&\",\",data[],1),VLOOKUP(\"SPECCOST,,\"&AV$5&\",\"&$B942&\",\",data[],7),AV$909)","v":2.7940534453652541E-3},null,null,null,null,null,null,{"$f":"IF(\"SPECCOST,,\"&BC$5&\",\"&sel_country_code&\",\"=VLOOKUP(\"SPECCOST,,\"&BC$5&\",\"&sel_country_code&\",\",data[],1),VLOOKUP(\"SPECCOST,,\"&BC$5&\",\"&sel_country_code&\",\",data[],7),BC$909)","v":0.05},{"$f":"IF(\"SPECCOST,,\"&BD$5&\",\"&sel_country_code&\",\"=VLOOKUP(\"SPECCOST,,\"&BD$5&\",\"&sel_country_code&\",\",data[],1),VLOOKUP(\"SPECCOST,,\"&BD$5&\",\"&sel_country_code&\",\",data[],7),BD$909)","v":7.0000000000000007E-2},null,{"$f":"IF(\"SPECCOST,,\"&BF$5&\",\"&sel_country_code&\",\"=VLOOKUP(\"SPECCOST,,\"&BF$5&\",\"&sel_country_code&\",\",data[],1),VLOOKUP(\"SPECCOST,,\"&BF$5&\",\"&sel_country_code&\",\",data[],7),BF$909)","v":0.05},{"$f":"IF(\"SPECCOST,,\"&BG$5&\",\"&sel_country_code&\",\"=VLOOKUP(\"SPECCOST,,\"&BG$5&\",\"&sel_country_code&\",\",data[],1),VLOOKUP(\"SPECCOST,,\"&BG$5&\",\"&sel_country_code&\",\",data[],7),BG$909)","v":7.0000000000000007E-2}]
[null,"DZA",null,null,null,null,null,null,null,null,null,null,null,null,null,null,null,{"$f":"IF(\"SPECCOST,,\"&R$5&\",\"&$B943&\",\"=VLOOKUP(\"SPECCOST,,\"&R$5&\",\"&$B943&\",\",data[],1),VLOOKUP(\"SPECCOST,,\"&R$5&\",\"&$B943&\",\",data[],7),R$909)","v":1.190463995027624E-3},null,{"$f":"IF(\"SPECCOST,,\"&T$5&\",\"&$B943&\",\"=VLOOKUP(\"SPECCOST,,\"&T$5&\",\"&$B943&\",\",data[],1),VLOOKUP(\"SPECCOST,,\"&T$5&\",\"&$B943&\",\",data[],7),T$909)","v":0.05},{"$f":"IF(\"SPECCOST,,\"&U$5&\",\"&$B943&\",\"=VLOOKUP(\"SPECCOST,,\"&U$5&\",\"&$B943&\",\",data[],1),VLOOKUP(\"SPECCOST,,\"&U$5&\",\"&$B943&\",\",data[],7),U$909)","v":7.0000000000000007E-2},{"$f":"IF(\"SPECCOST,,\"&V$5&\",\"&$B943&\",\"=VLOOKUP(\"SPECCOST,,\"&V$5&\",\"&$B943&\",\",data[],1),VLOOKUP(\"SPECCOST,,\"&V$5&\",\"&$B943&\",\",data[],7),V$909)","v":7.0000000000000007E-2},null,null,{"$f":"IF(\"SPECCOST,,\"&Y$5&\",\"&$B943&\",\"=VLOOKUP(\"SPECCOST,,\"&Y$5&\",\"&$B943&\",\",data[],1),VLOOKUP(\"SPECCOST,,\"&Y$5&\",\"&$B943&\",\",data[],7),Y$909)","v":1.190463995027624E-3},null,{"$f":"IF(\"SPECCOST,,\"&AA$5&\",\"&$B943&\",\"=VLOOKUP(\"SPECCOST,,\"&AA$5&\",\"&$B943&\",\",data[],1),VLOOKUP(\"SPECCOST,,\"&AA$5&\",\"&$B943&\",\",data[],7),AA$909)","v":0.05},{"$f":"IF(\"SPECCOST,,\"&AB$5&\",\"&$B943&\",\"=VLOOKUP(\"SPECCOST,,\"&AB$5&\",\"&$B943&\",\",data[],1),VLOOKUP(\"SPECCOST,,\"&AB$5&\",\"&$B943&\",\",data[],7),AB$909)","v":7.0000000000000007E-2},{"$f":"IF(\"SPECCOST,,\"&AC$5&\",\"&$B943&\",\"=VLOOKUP(\"SPECCOST,,\"&AC$5&\",\"&$B943&\",\",data[],1),VLOOKUP(\"SPECCOST,,\"&AC$5&\",\"&$B943&\",\",data[],7),AC$909)","v":3.8577660276243091E-2},null,{"$f":"IF(\"SPECCOST,,\"&AE$5&\",\"&$B943&\",\"=VLOOKUP(\"SPECCOST,,\"&AE$5&\",\"&$B943&\",\",data[],1),VLOOKUP(\"SPECCOST,,\"&AE$5&\",\"&$B943&\",\",data[],7),AE$909)","v":0.05},{"$f":"IF(\"SPECCOST,,\"&AF$5&\",\"&$B943&\",\"=VLOOKUP(\"SPECCOST,,\"&AF$5&\",\"&$B943&\",\",data[],1),VLOOKUP(\"SPECCOST,,\"&AF$5&\",\"&$B943&\",\",data[],7),AF$909)","v":7.0000000000000007E-2},{"$f":"IF(\"SPECCOST,,\"&AG$5&\",\"&$B943&\",\"=VLOOKUP(\"SPECCOST,,\"&AG$5&\",\"&$B943&\",\",data[],1),VLOOKUP(\"SPECCOST,,\"&AG$5&\",\"&$B943&\",\",data[],7),AG$909)","v":7.0000000000000007E-2},{"$f":"IF(\"SPECCOST,,\"&AH$5&\",\"&$B943&\",\"=VLOOKUP(\"SPECCOST,,\"&AH$5&\",\"&$B943&\",\",data[],1),VLOOKUP(\"SPECCOST,,\"&AH$5&\",\"&$B943&\",\",data[],7),AH$909)","v":0.05},{"$f":"IF(\"SPECCOST,,\"&AI$5&\",\"&$B943&\",\"=VLOOKUP(\"SPECCOST,,\"&AI$5&\",\"&$B943&\",\",data[],1),VLOOKUP(\"SPECCOST,,\"&AI$5&\",\"&$B943&\",\",data[],7),AI$909)","v":0.01},null,null,{"$f":"IF(\"SPECCOST,,\"&AL$5&\",\"&$B943&\",\"=VLOOKUP(\"SPECCOST,,\"&AL$5&\",\"&$B943&\",\",data[],1),VLOOKUP(\"SPECCOST,,\"&AL$5&\",\"&$B943&\",\",data[],7),AL$909)","v":7.0000000000000007E-2},null,{"$f":"IF(\"SPECCOST,,\"&AN$5&\",\"&$B943&\",\"=VLOOKUP(\"SPECCOST,,\"&AN$5&\",\"&$B943&\",\",data[],1),VLOOKUP(\"SPECCOST,,\"&AN$5&\",\"&$B943&\",\",data[],7),AN$909)","v":7.0000000000000007E-2},null,null,null,null,null,null,null,{"$f":"IF(\"SPECCOST,,\"&AV$5&\",\"&$B943&\",\"=VLOOKUP(\"SPECCOST,,\"&AV$5&\",\"&$B943&\",\",data[],1),VLOOKUP(\"SPECCOST,,\"&AV$5&\",\"&$B943&\",\",data[],7),AV$909)","v":2.7940534453652541E-3},null,null,null,null,null,null,{"$f":"IF(\"SPECCOST,,\"&BC$5&\",\"&sel_country_code&\",\"=VLOOKUP(\"SPECCOST,,\"&BC$5&\",\"&sel_country_code&\",\",data[],1),VLOOKUP(\"SPECCOST,,\"&BC$5&\",\"&sel_country_code&\",\",data[],7),BC$909)","v":0.05},{"$f":"IF(\"SPECCOST,,\"&BD$5&\",\"&sel_country_code&\",\"=VLOOKUP(\"SPECCOST,,\"&BD$5&\",\"&sel_country_code&\",\",data[],1),VLOOKUP(\"SPECCOST,,\"&BD$5&\",\"&sel_country_code&\",\",data[],7),BD$909)","v":7.0000000000000007E-2},null,{"$f":"IF(\"SPECCOST,,\"&BF$5&\",\"&sel_country_code&\",\"=VLOOKUP(\"SPECCOST,,\"&BF$5&\",\"&sel_country_code&\",\",data[],1),VLOOKUP(\"SPECCOST,,\"&BF$5&\",\"&sel_country_code&\",\",data[],7),BF$909)","v":0.05},{"$f":"IF(\"SPECCOST,,\"&BG$5&\",\"&sel_country_code&\",\"=VLOOKUP(\"SPECCOST,,\"&BG$5&\",\"&sel_country_code&\",\",data[],1),VLOOKUP(\"SPECCOST,,\"&BG$5&\",\"&sel_country_code&\",\",data[],7),BG$909)","v":7.0000000000000007E-2}]
[null,"EGY",null,null,null,null,null,null,null,null,null,null,null,null,null,null,null,{"$f":"IF(\"SPECCOST,,\"&R$5&\",\"&$B944&\",\"=VLOOKUP(\"SPECCOST,,\"&R$5&\",\"&$B944&\",\",data[],1),VLOOKUP(\"SPECCOST,,\"&R$5&\",\"&$B944&\",\",data[],7),R$909)","v":1.190463995027624E-3},null,{"$f":"IF(\"SPECCOST,,\"&T$5&\",\"&$B944&\",\"=VLOOKUP(\"SPECCOST,,\"&T$5&\",\"&$B944&\",\",data[],1),VLOOKUP(\"SPECCOST,,\"&T$5&\",\"&$B944&\",\",data[],7),T$909)","v":0.05},{"$f":"IF(\"SPECCOST,,\"&U$5&\",\"&$B944&\",\"=VLOOKUP(\"SPECCOST,,\"&U$5&\",\"&$B944&\",\",data[],1),VLOOKUP(\"SPECCOST,,\"&U$5&\",\"&$B944&\",\",data[],7),U$909)","v":7.0000000000000007E-2},{"$f":"IF(\"SPECCOST,,\"&V$5&\",\"&$B944&\",\"=VLOOKUP(\"SPECCOST,,\"&V$5&\",\"&$B944&\",\",data[],1),VLOOKUP(\"SPECCOST,,\"&V$5&\",\"&$B944&\",\",data[],7),V$909)","v":7.0000000000000007E-2},null,null,{"$f":"IF(\"SPECCOST,,\"&Y$5&\",\"&$B944&\",\"=VLOOKUP(\"SPECCOST,,\"&Y$5&\",\"&$B944&\",\",data[],1),VLOOKUP(\"SPECCOST,,\"&Y$5&\",\"&$B944&\",\",data[],7),Y$909)","v":1.190463995027624E-3},null,{"$f":"IF(\"SPECCOST,,\"&AA$5&\",\"&$B944&\",\"=VLOOKUP(\"SPECCOST,,\"&AA$5&\",\"&$B944&\",\",data[],1),VLOOKUP(\"SPECCOST,,\"&AA$5&\",\"&$B944&\",\",data[],7),AA$909)","v":0.05},{"$f":"IF(\"SPECCOST,,\"&AB$5&\",\"&$B944&\",\"=VLOOKUP(\"SPECCOST,,\"&AB$5&\",\"&$B944&\",\",data[],1),VLOOKUP(\"SPECCOST,,\"&AB$5&\",\"&$B944&\",\",data[],7),AB$909)","v":7.0000000000000007E-2},{"$f":"IF(\"SPECCOST,,\"&AC$5&\",\"&$B944&\",\"=VLOOKUP(\"SPECCOST,,\"&AC$5&\",\"&$B944&\",\",data[],1),VLOOKUP(\"SPECCOST,,\"&AC$5&\",\"&$B944&\",\",data[],7),AC$909)","v":3.8577660276243091E-2},null,{"$f":"IF(\"SPECCOST,,\"&AE$5&\",\"&$B944&\",\"=VLOOKUP(\"SPECCOST,,\"&AE$5&\",\"&$B944&\",\",data[],1),VLOOKUP(\"SPECCOST,,\"&AE$5&\",\"&$B944&\",\",data[],7),AE$909)","v":0.05},{"$f":"IF(\"SPECCOST,,\"&AF$5&\",\"&$B944&\",\"=VLOOKUP(\"SPECCOST,,\"&AF$5&\",\"&$B944&\",\",data[],1),VLOOKUP(\"SPECCOST,,\"&AF$5&\",\"&$B944&\",\",data[],7),AF$909)","v":7.0000000000000007E-2},{"$f":"IF(\"SPECCOST,,\"&AG$5&\",\"&$B944&\",\"=VLOOKUP(\"SPECCOST,,\"&AG$5&\",\"&$B944&\",\",data[],1),VLOOKUP(\"SPECCOST,,\"&AG$5&\",\"&$B944&\",\",data[],7),AG$909)","v":7.0000000000000007E-2},{"$f":"IF(\"SPECCOST,,\"&AH$5&\",\"&$B944&\",\"=VLOOKUP(\"SPECCOST,,\"&AH$5&\",\"&$B944&\",\",data[],1),VLOOKUP(\"SPECCOST,,\"&AH$5&\",\"&$B944&\",\",data[],7),AH$909)","v":0.05},{"$f":"IF(\"SPECCOST,,\"&AI$5&\",\"&$B944&\",\"=VLOOKUP(\"SPECCOST,,\"&AI$5&\",\"&$B944&\",\",data[],1),VLOOKUP(\"SPECCOST,,\"&AI$5&\",\"&$B944&\",\",data[],7),AI$909)","v":0.01},null,null,{"$f":"IF(\"SPECCOST,,\"&AL$5&\",\"&$B944&\",\"=VLOOKUP(\"SPECCOST,,\"&AL$5&\",\"&$B944&\",\",data[],1),VLOOKUP(\"SPECCOST,,\"&AL$5&\",\"&$B944&\",\",data[],7),AL$909)","v":7.0000000000000007E-2},null,{"$f":"IF(\"SPECCOST,,\"&AN$5&\",\"&$B944&\",\"=VLOOKUP(\"SPECCOST,,\"&AN$5&\",\"&$B944&\",\",data[],1),VLOOKUP(\"SPECCOST,,\"&AN$5&\",\"&$B944&\",\",data[],7),AN$909)","v":7.0000000000000007E-2},null,null,null,null,null,null,null,{"$f":"IF(\"SPECCOST,,\"&AV$5&\",\"&$B944&\",\"=VLOOKUP(\"SPECCOST,,\"&AV$5&\",\"&$B944&\",\",data[],1),VLOOKUP(\"SPECCOST,,\"&AV$5&\",\"&$B944&\",\",data[],7),AV$909)","v":2.7940534453652541E-3},null,null,null,null,null,null,{"$f":"IF(\"SPECCOST,,\"&BC$5&\",\"&sel_country_code&\",\"=VLOOKUP(\"SPECCOST,,\"&BC$5&\",\"&sel_country_code&\",\",data[],1),VLOOKUP(\"SPECCOST,,\"&BC$5&\",\"&sel_country_code&\",\",data[],7),BC$909)","v":0.05},{"$f":"IF(\"SPECCOST,,\"&BD$5&\",\"&sel_country_code&\",\"=VLOOKUP(\"SPECCOST,,\"&BD$5&\",\"&sel_country_code&\",\",data[],1),VLOOKUP(\"SPECCOST,,\"&BD$5&\",\"&sel_country_code&\",\",data[],7),BD$909)","v":7.0000000000000007E-2},null,{"$f":"IF(\"SPECCOST,,\"&BF$5&\",\"&sel_country_code&\",\"=VLOOKUP(\"SPECCOST,,\"&BF$5&\",\"&sel_country_code&\",\",data[],1),VLOOKUP(\"SPECCOST,,\"&BF$5&\",\"&sel_country_code&\",\",data[],7),BF$909)","v":0.05},{"$f":"IF(\"SPECCOST,,\"&BG$5&\",\"&sel_country_code&\",\"=VLOOKUP(\"SPECCOST,,\"&BG$5&\",\"&sel_country_code&\",\",data[],1),VLOOKUP(\"SPECCOST,,\"&BG$5&\",\"&sel_country_code&\",\",data[],7),BG$909)","v":7.0000000000000007E-2}]
[null,"ESP",null,null,null,null,null,null,null,null,null,null,null,null,null,null,null,{"$f":"IF(\"SPECCOST,,\"&R$5&\",\"&$B945&\",\"=VLOOKUP(\"SPECCOST,,\"&R$5&\",\"&$B945&\",\",data[],1),VLOOKUP(\"SPECCOST,,\"&R$5&\",\"&$B945&\",\",data[],7),R$909)","v":1.190463995027624E-3},null,{"$f":"IF(\"SPECCOST,,\"&T$5&\",\"&$B945&\",\"=VLOOKUP(\"SPECCOST,,\"&T$5&\",\"&$B945&\",\",data[],1),VLOOKUP(\"SPECCOST,,\"&T$5&\",\"&$B945&\",\",data[],7),T$909)","v":0.05},{"$f":"IF(\"SPECCOST,,\"&U$5&\",\"&$B945&\",\"=VLOOKUP(\"SPECCOST,,\"&U$5&\",\"&$B945&\",\",data[],1),VLOOKUP(\"SPECCOST,,\"&U$5&\",\"&$B945&\",\",data[],7),U$909)","v":7.0000000000000007E-2},{"$f":"IF(\"SPECCOST,,\"&V$5&\",\"&$B945&\",\"=VLOOKUP(\"SPECCOST,,\"&V$5&\",\"&$B945&\",\",data[],1),VLOOKUP(\"SPECCOST,,\"&V$5&\",\"&$B945&\",\",data[],7),V$909)","v":7.0000000000000007E-2},null,null,{"$f":"IF(\"SPECCOST,,\"&Y$5&\",\"&$B945&\",\"=VLOOKUP(\"SPECCOST,,\"&Y$5&\",\"&$B945&\",\",data[],1),VLOOKUP(\"SPECCOST,,\"&Y$5&\",\"&$B945&\",\",data[],7),Y$909)","v":1.190463995027624E-3},null,{"$f":"IF(\"SPECCOST,,\"&AA$5&\",\"&$B945&\",\"=VLOOKUP(\"SPECCOST,,\"&AA$5&\",\"&$B945&\",\",data[],1),VLOOKUP(\"SPECCOST,,\"&AA$5&\",\"&$B945&\",\",data[],7),AA$909)","v":0.05},{"$f":"IF(\"SPECCOST,,\"&AB$5&\",\"&$B945&\",\"=VLOOKUP(\"SPECCOST,,\"&AB$5&\",\"&$B945&\",\",data[],1),VLOOKUP(\"SPECCOST,,\"&AB$5&\",\"&$B945&\",\",data[],7),AB$909)","v":7.0000000000000007E-2},{"$f":"IF(\"SPECCOST,,\"&AC$5&\",\"&$B945&\",\"=VLOOKUP(\"SPECCOST,,\"&AC$5&\",\"&$B945&\",\",data[],1),VLOOKUP(\"SPECCOST,,\"&AC$5&\",\"&$B945&\",\",data[],7),AC$909)","v":3.8577660276243091E-2},null,{"$f":"IF(\"SPECCOST,,\"&AE$5&\",\"&$B945&\",\"=VLOOKUP(\"SPECCOST,,\"&AE$5&\",\"&$B945&\",\",data[],1),VLOOKUP(\"SPECCOST,,\"&AE$5&\",\"&$B945&\",\",data[],7),AE$909)","v":0.05},{"$f":"IF(\"SPECCOST,,\"&AF$5&\",\"&$B945&\",\"=VLOOKUP(\"SPECCOST,,\"&AF$5&\",\"&$B945&\",\",data[],1),VLOOKUP(\"SPECCOST,,\"&AF$5&\",\"&$B945&\",\",data[],7),AF$909)","v":7.0000000000000007E-2},{"$f":"IF(\"SPECCOST,,\"&AG$5&\",\"&$B945&\",\"=VLOOKUP(\"SPECCOST,,\"&AG$5&\",\"&$B945&\",\",data[],1),VLOOKUP(\"SPECCOST,,\"&AG$5&\",\"&$B945&\",\",data[],7),AG$909)","v":7.0000000000000007E-2},{"$f":"IF(\"SPECCOST,,\"&AH$5&\",\"&$B945&\",\"=VLOOKUP(\"SPECCOST,,\"&AH$5&\",\"&$B945&\",\",data[],1),VLOOKUP(\"SPECCOST,,\"&AH$5&\",\"&$B945&\",\",data[],7),AH$909)","v":0.05},{"$f":"IF(\"SPECCOST,,\"&AI$5&\",\"&$B945&\",\"=VLOOKUP(\"SPECCOST,,\"&AI$5&\",\"&$B945&\",\",data[],1),VLOOKUP(\"SPECCOST,,\"&AI$5&\",\"&$B945&\",\",data[],7),AI$909)","v":0.01},null,null,{"$f":"IF(\"SPECCOST,,\"&AL$5&\",\"&$B945&\",\"=VLOOKUP(\"SPECCOST,,\"&AL$5&\",\"&$B945&\",\",data[],1),VLOOKUP(\"SPECCOST,,\"&AL$5&\",\"&$B945&\",\",data[],7),AL$909)","v":7.0000000000000007E-2},null,{"$f":"IF(\"SPECCOST,,\"&AN$5&\",\"&$B945&\",\"=VLOOKUP(\"SPECCOST,,\"&AN$5&\",\"&$B945&\",\",data[],1),VLOOKUP(\"SPECCOST,,\"&AN$5&\",\"&$B945&\",\",data[],7),AN$909)","v":7.0000000000000007E-2},null,null,null,null,null,null,null,{"$f":"IF(\"SPECCOST,,\"&AV$5&\",\"&$B945&\",\"=VLOOKUP(\"SPECCOST,,\"&AV$5&\",\"&$B945&\",\",data[],1),VLOOKUP(\"SPECCOST,,\"&AV$5&\",\"&$B945&\",\",data[],7),AV$909)","v":2.7940534453652541E-3},null,null,null,null,null,null,{"$f":"IF(\"SPECCOST,,\"&BC$5&\",\"&sel_country_code&\",\"=VLOOKUP(\"SPECCOST,,\"&BC$5&\",\"&sel_country_code&\",\",data[],1),VLOOKUP(\"SPECCOST,,\"&BC$5&\",\"&sel_country_code&\",\",data[],7),BC$909)","v":0.05},{"$f":"IF(\"SPECCOST,,\"&BD$5&\",\"&sel_country_code&\",\"=VLOOKUP(\"SPECCOST,,\"&BD$5&\",\"&sel_country_code&\",\",data[],1),VLOOKUP(\"SPECCOST,,\"&BD$5&\",\"&sel_country_code&\",\",data[],7),BD$909)","v":7.0000000000000007E-2},null,{"$f":"IF(\"SPECCOST,,\"&BF$5&\",\"&sel_country_code&\",\"=VLOOKUP(\"SPECCOST,,\"&BF$5&\",\"&sel_country_code&\",\",data[],1),VLOOKUP(\"SPECCOST,,\"&BF$5&\",\"&sel_country_code&\",\",data[],7),BF$909)","v":0.05},{"$f":"IF(\"SPECCOST,,\"&BG$5&\",\"&sel_country_code&\",\"=VLOOKUP(\"SPECCOST,,\"&BG$5&\",\"&sel_country_code&\",\",data[],1),VLOOKUP(\"SPECCOST,,\"&BG$5&\",\"&sel_country_code&\",\",data[],7),BG$909)","v":7.0000000000000007E-2}]
[null,"IDN",null,null,null,null,null,null,null,null,null,null,null,null,null,null,null,{"$f":"IF(\"SPECCOST,,\"&R$5&\",\"&$B946&\",\"=VLOOKUP(\"SPECCOST,,\"&R$5&\",\"&$B946&\",\",data[],1),VLOOKUP(\"SPECCOST,,\"&R$5&\",\"&$B946&\",\",data[],7),R$909)","v":1.190463995027624E-3},null,{"$f":"IF(\"SPECCOST,,\"&T$5&\",\"&$B946&\",\"=VLOOKUP(\"SPECCOST,,\"&T$5&\",\"&$B946&\",\",data[],1),VLOOKUP(\"SPECCOST,,\"&T$5&\",\"&$B946&\",\",data[],7),T$909)","v":0.05},{"$f":"IF(\"SPECCOST,,\"&U$5&\",\"&$B946&\",\"=VLOOKUP(\"SPECCOST,,\"&U$5&\",\"&$B946&\",\",data[],1),VLOOKUP(\"SPECCOST,,\"&U$5&\",\"&$B946&\",\",data[],7),U$909)","v":7.0000000000000007E-2},{"$f":"IF(\"SPECCOST,,\"&V$5&\",\"&$B946&\",\"=VLOOKUP(\"SPECCOST,,\"&V$5&\",\"&$B946&\",\",data[],1),VLOOKUP(\"SPECCOST,,\"&V$5&\",\"&$B946&\",\",data[],7),V$909)","v":7.0000000000000007E-2},null,null,{"$f":"IF(\"SPECCOST,,\"&Y$5&\",\"&$B946&\",\"=VLOOKUP(\"SPECCOST,,\"&Y$5&\",\"&$B946&\",\",data[],1),VLOOKUP(\"SPECCOST,,\"&Y$5&\",\"&$B946&\",\",data[],7),Y$909)","v":1.190463995027624E-3},null,{"$f":"IF(\"SPECCOST,,\"&AA$5&\",\"&$B946&\",\"=VLOOKUP(\"SPECCOST,,\"&AA$5&\",\"&$B946&\",\",data[],1),VLOOKUP(\"SPECCOST,,\"&AA$5&\",\"&$B946&\",\",data[],7),AA$909)","v":0.05},{"$f":"IF(\"SPECCOST,,\"&AB$5&\",\"&$B946&\",\"=VLOOKUP(\"SPECCOST,,\"&AB$5&\",\"&$B946&\",\",data[],1),VLOOKUP(\"SPECCOST,,\"&AB$5&\",\"&$B946&\",\",data[],7),AB$909)","v":7.0000000000000007E-2},{"$f":"IF(\"SPECCOST,,\"&AC$5&\",\"&$B946&\",\"=VLOOKUP(\"SPECCOST,,\"&AC$5&\",\"&$B946&\",\",data[],1),VLOOKUP(\"SPECCOST,,\"&AC$5&\",\"&$B946&\",\",data[],7),AC$909)","v":3.8577660276243091E-2},null,{"$f":"IF(\"SPECCOST,,\"&AE$5&\",\"&$B946&\",\"=VLOOKUP(\"SPECCOST,,\"&AE$5&\",\"&$B946&\",\",data[],1),VLOOKUP(\"SPECCOST,,\"&AE$5&\",\"&$B946&\",\",data[],7),AE$909)","v":0.05},{"$f":"IF(\"SPECCOST,,\"&AF$5&\",\"&$B946&\",\"=VLOOKUP(\"SPECCOST,,\"&AF$5&\",\"&$B946&\",\",data[],1),VLOOKUP(\"SPECCOST,,\"&AF$5&\",\"&$B946&\",\",data[],7),AF$909)","v":7.0000000000000007E-2},{"$f":"IF(\"SPECCOST,,\"&AG$5&\",\"&$B946&\",\"=VLOOKUP(\"SPECCOST,,\"&AG$5&\",\"&$B946&\",\",data[],1),VLOOKUP(\"SPECCOST,,\"&AG$5&\",\"&$B946&\",\",data[],7),AG$909)","v":7.0000000000000007E-2},{"$f":"IF(\"SPECCOST,,\"&AH$5&\",\"&$B946&\",\"=VLOOKUP(\"SPECCOST,,\"&AH$5&\",\"&$B946&\",\",data[],1),VLOOKUP(\"SPECCOST,,\"&AH$5&\",\"&$B946&\",\",data[],7),AH$909)","v":0.05},{"$f":"IF(\"SPECCOST,,\"&AI$5&\",\"&$B946&\",\"=VLOOKUP(\"SPECCOST,,\"&AI$5&\",\"&$B946&\",\",data[],1),VLOOKUP(\"SPECCOST,,\"&AI$5&\",\"&$B946&\",\",data[],7),AI$909)","v":0.01},null,null,{"$f":"IF(\"SPECCOST,,\"&AL$5&\",\"&$B946&\",\"=VLOOKUP(\"SPECCOST,,\"&AL$5&\",\"&$B946&\",\",data[],1),VLOOKUP(\"SPECCOST,,\"&AL$5&\",\"&$B946&\",\",data[],7),AL$909)","v":7.0000000000000007E-2},null,{"$f":"IF(\"SPECCOST,,\"&AN$5&\",\"&$B946&\",\"=VLOOKUP(\"SPECCOST,,\"&AN$5&\",\"&$B946&\",\",data[],1),VLOOKUP(\"SPECCOST,,\"&AN$5&\",\"&$B946&\",\",data[],7),AN$909)","v":7.0000000000000007E-2},null,null,null,null,null,null,null,{"$f":"IF(\"SPECCOST,,\"&AV$5&\",\"&$B946&\",\"=VLOOKUP(\"SPECCOST,,\"&AV$5&\",\"&$B946&\",\",data[],1),VLOOKUP(\"SPECCOST,,\"&AV$5&\",\"&$B946&\",\",data[],7),AV$909)","v":2.7940534453652541E-3},null,null,null,null,null,null,{"$f":"IF(\"SPECCOST,,\"&BC$5&\",\"&sel_country_code&\",\"=VLOOKUP(\"SPECCOST,,\"&BC$5&\",\"&sel_country_code&\",\",data[],1),VLOOKUP(\"SPECCOST,,\"&BC$5&\",\"&sel_country_code&\",\",data[],7),BC$909)","v":0.05},{"$f":"IF(\"SPECCOST,,\"&BD$5&\",\"&sel_country_code&\",\"=VLOOKUP(\"SPECCOST,,\"&BD$5&\",\"&sel_country_code&\",\",data[],1),VLOOKUP(\"SPECCOST,,\"&BD$5&\",\"&sel_country_code&\",\",data[],7),BD$909)","v":7.0000000000000007E-2},null,{"$f":"IF(\"SPECCOST,,\"&BF$5&\",\"&sel_country_code&\",\"=VLOOKUP(\"SPECCOST,,\"&BF$5&\",\"&sel_country_code&\",\",data[],1),VLOOKUP(\"SPECCOST,,\"&BF$5&\",\"&sel_country_code&\",\",data[],7),BF$909)","v":0.05},{"$f":"IF(\"SPECCOST,,\"&BG$5&\",\"&sel_country_code&\",\"=VLOOKUP(\"SPECCOST,,\"&BG$5&\",\"&sel_country_code&\",\",data[],1),VLOOKUP(\"SPECCOST,,\"&BG$5&\",\"&sel_country_code&\",\",data[],7),BG$909)","v":7.0000000000000007E-2}]
[null,"IND",null,null,null,null,null,null,null,null,null,null,null,null,null,null,null,{"$f":"IF(\"SPECCOST,,\"&R$5&\",\"&$B947&\",\"=VLOOKUP(\"SPECCOST,,\"&R$5&\",\"&$B947&\",\",data[],1),VLOOKUP(\"SPECCOST,,\"&R$5&\",\"&$B947&\",\",data[],7),R$909)","v":1.190463995027624E-3},null,{"$f":"IF(\"SPECCOST,,\"&T$5&\",\"&$B947&\",\"=VLOOKUP(\"SPECCOST,,\"&T$5&\",\"&$B947&\",\",data[],1),VLOOKUP(\"SPECCOST,,\"&T$5&\",\"&$B947&\",\",data[],7),T$909)","v":0.05},{"$f":"IF(\"SPECCOST,,\"&U$5&\",\"&$B947&\",\"=VLOOKUP(\"SPECCOST,,\"&U$5&\",\"&$B947&\",\",data[],1),VLOOKUP(\"SPECCOST,,\"&U$5&\",\"&$B947&\",\",data[],7),U$909)","v":7.0000000000000007E-2},{"$f":"IF(\"SPECCOST,,\"&V$5&\",\"&$B947&\",\"=VLOOKUP(\"SPECCOST,,\"&V$5&\",\"&$B947&\",\",data[],1),VLOOKUP(\"SPECCOST,,\"&V$5&\",\"&$B947&\",\",data[],7),V$909)","v":7.0000000000000007E-2},null,null,{"$f":"IF(\"SPECCOST,,\"&Y$5&\",\"&$B947&\",\"=VLOOKUP(\"SPECCOST,,\"&Y$5&\",\"&$B947&\",\",data[],1),VLOOKUP(\"SPECCOST,,\"&Y$5&\",\"&$B947&\",\",data[],7),Y$909)","v":1.190463995027624E-3},null,{"$f":"IF(\"SPECCOST,,\"&AA$5&\",\"&$B947&\",\"=VLOOKUP(\"SPECCOST,,\"&AA$5&\",\"&$B947&\",\",data[],1),VLOOKUP(\"SPECCOST,,\"&AA$5&\",\"&$B947&\",\",data[],7),AA$909)","v":0.05},{"$f":"IF(\"SPECCOST,,\"&AB$5&\",\"&$B947&\",\"=VLOOKUP(\"SPECCOST,,\"&AB$5&\",\"&$B947&\",\",data[],1),VLOOKUP(\"SPECCOST,,\"&AB$5&\",\"&$B947&\",\",data[],7),AB$909)","v":7.0000000000000007E-2},{"$f":"IF(\"SPECCOST,,\"&AC$5&\",\"&$B947&\",\"=VLOOKUP(\"SPECCOST,,\"&AC$5&\",\"&$B947&\",\",data[],1),VLOOKUP(\"SPECCOST,,\"&AC$5&\",\"&$B947&\",\",data[],7),AC$909)","v":3.8577660276243091E-2},null,{"$f":"IF(\"SPECCOST,,\"&AE$5&\",\"&$B947&\",\"=VLOOKUP(\"SPECCOST,,\"&AE$5&\",\"&$B947&\",\",data[],1),VLOOKUP(\"SPECCOST,,\"&AE$5&\",\"&$B947&\",\",data[],7),AE$909)","v":0.05},{"$f":"IF(\"SPECCOST,,\"&AF$5&\",\"&$B947&\",\"=VLOOKUP(\"SPECCOST,,\"&AF$5&\",\"&$B947&\",\",data[],1),VLOOKUP(\"SPECCOST,,\"&AF$5&\",\"&$B947&\",\",data[],7),AF$909)","v":7.0000000000000007E-2},{"$f":"IF(\"SPECCOST,,\"&AG$5&\",\"&$B947&\",\"=VLOOKUP(\"SPECCOST,,\"&AG$5&\",\"&$B947&\",\",data[],1),VLOOKUP(\"SPECCOST,,\"&AG$5&\",\"&$B947&\",\",data[],7),AG$909)","v":7.0000000000000007E-2},{"$f":"IF(\"SPECCOST,,\"&AH$5&\",\"&$B947&\",\"=VLOOKUP(\"SPECCOST,,\"&AH$5&\",\"&$B947&\",\",data[],1),VLOOKUP(\"SPECCOST,,\"&AH$5&\",\"&$B947&\",\",data[],7),AH$909)","v":0.05},{"$f":"IF(\"SPECCOST,,\"&AI$5&\",\"&$B947&\",\"=VLOOKUP(\"SPECCOST,,\"&AI$5&\",\"&$B947&\",\",data[],1),VLOOKUP(\"SPECCOST,,\"&AI$5&\",\"&$B947&\",\",data[],7),AI$909)","v":0.01},null,null,{"$f":"IF(\"SPECCOST,,\"&AL$5&\",\"&$B947&\",\"=VLOOKUP(\"SPECCOST,,\"&AL$5&\",\"&$B947&\",\",data[],1),VLOOKUP(\"SPECCOST,,\"&AL$5&\",\"&$B947&\",\",data[],7),AL$909)","v":7.0000000000000007E-2},null,{"$f":"IF(\"SPECCOST,,\"&AN$5&\",\"&$B947&\",\"=VLOOKUP(\"SPECCOST,,\"&AN$5&\",\"&$B947&\",\",data[],1),VLOOKUP(\"SPECCOST,,\"&AN$5&\",\"&$B947&\",\",data[],7),AN$909)","v":7.0000000000000007E-2},null,null,null,null,null,null,null,{"$f":"IF(\"SPECCOST,,\"&AV$5&\",\"&$B947&\",\"=VLOOKUP(\"SPECCOST,,\"&AV$5&\",\"&$B947&\",\",data[],1),VLOOKUP(\"SPECCOST,,\"&AV$5&\",\"&$B947&\",\",data[],7),AV$909)","v":2.7940534453652541E-3},null,null,null,null,null,null,{"$f":"IF(\"SPECCOST,,\"&BC$5&\",\"&sel_country_code&\",\"=VLOOKUP(\"SPECCOST,,\"&BC$5&\",\"&sel_country_code&\",\",data[],1),VLOOKUP(\"SPECCOST,,\"&BC$5&\",\"&sel_country_code&\",\",data[],7),BC$909)","v":0.05},{"$f":"IF(\"SPECCOST,,\"&BD$5&\",\"&sel_country_code&\",\"=VLOOKUP(\"SPECCOST,,\"&BD$5&\",\"&sel_country_code&\",\",data[],1),VLOOKUP(\"SPECCOST,,\"&BD$5&\",\"&sel_country_code&\",\",data[],7),BD$909)","v":7.0000000000000007E-2},null,{"$f":"IF(\"SPECCOST,,\"&BF$5&\",\"&sel_country_code&\",\"=VLOOKUP(\"SPECCOST,,\"&BF$5&\",\"&sel_country_code&\",\",data[],1),VLOOKUP(\"SPECCOST,,\"&BF$5&\",\"&sel_country_code&\",\",data[],7),BF$909)","v":0.05},{"$f":"IF(\"SPECCOST,,\"&BG$5&\",\"&sel_country_code&\",\"=VLOOKUP(\"SPECCOST,,\"&BG$5&\",\"&sel_country_code&\",\",data[],1),VLOOKUP(\"SPECCOST,,\"&BG$5&\",\"&sel_country_code&\",\",data[],7),BG$909)","v":7.0000000000000007E-2}]
[null,"JOR",null,null,null,null,null,null,null,null,null,null,null,null,null,null,null,{"$f":"IF(\"SPECCOST,,\"&R$5&\",\"&$B948&\",\"=VLOOKUP(\"SPECCOST,,\"&R$5&\",\"&$B948&\",\",data[],1),VLOOKUP(\"SPECCOST,,\"&R$5&\",\"&$B948&\",\",data[],7),R$909)","v":1.190463995027624E-3},null,{"$f":"IF(\"SPECCOST,,\"&T$5&\",\"&$B948&\",\"=VLOOKUP(\"SPECCOST,,\"&T$5&\",\"&$B948&\",\",data[],1),VLOOKUP(\"SPECCOST,,\"&T$5&\",\"&$B948&\",\",data[],7),T$909)","v":0.05},{"$f":"IF(\"SPECCOST,,\"&U$5&\",\"&$B948&\",\"=VLOOKUP(\"SPECCOST,,\"&U$5&\",\"&$B948&\",\",data[],1),VLOOKUP(\"SPECCOST,,\"&U$5&\",\"&$B948&\",\",data[],7),U$909)","v":7.0000000000000007E-2},{"$f":"IF(\"SPECCOST,,\"&V$5&\",\"&$B948&\",\"=VLOOKUP(\"SPECCOST,,\"&V$5&\",\"&$B948&\",\",data[],1),VLOOKUP(\"SPECCOST,,\"&V$5&\",\"&$B948&\",\",data[],7),V$909)","v":7.0000000000000007E-2},null,null,{"$f":"IF(\"SPECCOST,,\"&Y$5&\",\"&$B948&\",\"=VLOOKUP(\"SPECCOST,,\"&Y$5&\",\"&$B948&\",\",data[],1),VLOOKUP(\"SPECCOST,,\"&Y$5&\",\"&$B948&\",\",data[],7),Y$909)","v":1.190463995027624E-3},null,{"$f":"IF(\"SPECCOST,,\"&AA$5&\",\"&$B948&\",\"=VLOOKUP(\"SPECCOST,,\"&AA$5&\",\"&$B948&\",\",data[],1),VLOOKUP(\"SPECCOST,,\"&AA$5&\",\"&$B948&\",\",data[],7),AA$909)","v":0.05},{"$f":"IF(\"SPECCOST,,\"&AB$5&\",\"&$B948&\",\"=VLOOKUP(\"SPECCOST,,\"&AB$5&\",\"&$B948&\",\",data[],1),VLOOKUP(\"SPECCOST,,\"&AB$5&\",\"&$B948&\",\",data[],7),AB$909)","v":7.0000000000000007E-2},{"$f":"IF(\"SPECCOST,,\"&AC$5&\",\"&$B948&\",\"=VLOOKUP(\"SPECCOST,,\"&AC$5&\",\"&$B948&\",\",data[],1),VLOOKUP(\"SPECCOST,,\"&AC$5&\",\"&$B948&\",\",data[],7),AC$909)","v":3.8577660276243091E-2},null,{"$f":"IF(\"SPECCOST,,\"&AE$5&\",\"&$B948&\",\"=VLOOKUP(\"SPECCOST,,\"&AE$5&\",\"&$B948&\",\",data[],1),VLOOKUP(\"SPECCOST,,\"&AE$5&\",\"&$B948&\",\",data[],7),AE$909)","v":0.05},{"$f":"IF(\"SPECCOST,,\"&AF$5&\",\"&$B948&\",\"=VLOOKUP(\"SPECCOST,,\"&AF$5&\",\"&$B948&\",\",data[],1),VLOOKUP(\"SPECCOST,,\"&AF$5&\",\"&$B948&\",\",data[],7),AF$909)","v":7.0000000000000007E-2},{"$f":"IF(\"SPECCOST,,\"&AG$5&\",\"&$B948&\",\"=VLOOKUP(\"SPECCOST,,\"&AG$5&\",\"&$B948&\",\",data[],1),VLOOKUP(\"SPECCOST,,\"&AG$5&\",\"&$B948&\",\",data[],7),AG$909)","v":7.0000000000000007E-2},{"$f":"IF(\"SPECCOST,,\"&AH$5&\",\"&$B948&\",\"=VLOOKUP(\"SPECCOST,,\"&AH$5&\",\"&$B948&\",\",data[],1),VLOOKUP(\"SPECCOST,,\"&AH$5&\",\"&$B948&\",\",data[],7),AH$909)","v":0.05},{"$f":"IF(\"SPECCOST,,\"&AI$5&\",\"&$B948&\",\"=VLOOKUP(\"SPECCOST,,\"&AI$5&\",\"&$B948&\",\",data[],1),VLOOKUP(\"SPECCOST,,\"&AI$5&\",\"&$B948&\",\",data[],7),AI$909)","v":0.01},null,null,{"$f":"IF(\"SPECCOST,,\"&AL$5&\",\"&$B948&\",\"=VLOOKUP(\"SPECCOST,,\"&AL$5&\",\"&$B948&\",\",data[],1),VLOOKUP(\"SPECCOST,,\"&AL$5&\",\"&$B948&\",\",data[],7),AL$909)","v":7.0000000000000007E-2},null,{"$f":"IF(\"SPECCOST,,\"&AN$5&\",\"&$B948&\",\"=VLOOKUP(\"SPECCOST,,\"&AN$5&\",\"&$B948&\",\",data[],1),VLOOKUP(\"SPECCOST,,\"&AN$5&\",\"&$B948&\",\",data[],7),AN$909)","v":7.0000000000000007E-2},null,null,null,null,null,null,null,{"$f":"IF(\"SPECCOST,,\"&AV$5&\",\"&$B948&\",\"=VLOOKUP(\"SPECCOST,,\"&AV$5&\",\"&$B948&\",\",data[],1),VLOOKUP(\"SPECCOST,,\"&AV$5&\",\"&$B948&\",\",data[],7),AV$909)","v":2.7940534453652541E-3},null,null,null,null,null,null,{"$f":"IF(\"SPECCOST,,\"&BC$5&\",\"&sel_country_code&\",\"=VLOOKUP(\"SPECCOST,,\"&BC$5&\",\"&sel_country_code&\",\",data[],1),VLOOKUP(\"SPECCOST,,\"&BC$5&\",\"&sel_country_code&\",\",data[],7),BC$909)","v":0.05},{"$f":"IF(\"SPECCOST,,\"&BD$5&\",\"&sel_country_code&\",\"=VLOOKUP(\"SPECCOST,,\"&BD$5&\",\"&sel_country_code&\",\",data[],1),VLOOKUP(\"SPECCOST,,\"&BD$5&\",\"&sel_country_code&\",\",data[],7),BD$909)","v":7.0000000000000007E-2},null,{"$f":"IF(\"SPECCOST,,\"&BF$5&\",\"&sel_country_code&\",\"=VLOOKUP(\"SPECCOST,,\"&BF$5&\",\"&sel_country_code&\",\",data[],1),VLOOKUP(\"SPECCOST,,\"&BF$5&\",\"&sel_country_code&\",\",data[],7),BF$909)","v":0.05},{"$f":"IF(\"SPECCOST,,\"&BG$5&\",\"&sel_country_code&\",\"=VLOOKUP(\"SPECCOST,,\"&BG$5&\",\"&sel_country_code&\",\",data[],1),VLOOKUP(\"SPECCOST,,\"&BG$5&\",\"&sel_country_code&\",\",data[],7),BG$909)","v":7.0000000000000007E-2}]
[null,"KAZ",null,null,null,null,null,null,null,null,null,null,null,null,null,null,null,{"$f":"IF(\"SPECCOST,,\"&R$5&\",\"&$B949&\",\"=VLOOKUP(\"SPECCOST,,\"&R$5&\",\"&$B949&\",\",data[],1),VLOOKUP(\"SPECCOST,,\"&R$5&\",\"&$B949&\",\",data[],7),R$909)","v":1.190463995027624E-3},null,{"$f":"IF(\"SPECCOST,,\"&T$5&\",\"&$B949&\",\"=VLOOKUP(\"SPECCOST,,\"&T$5&\",\"&$B949&\",\",data[],1),VLOOKUP(\"SPECCOST,,\"&T$5&\",\"&$B949&\",\",data[],7),T$909)","v":0.05},{"$f":"IF(\"SPECCOST,,\"&U$5&\",\"&$B949&\",\"=VLOOKUP(\"SPECCOST,,\"&U$5&\",\"&$B949&\",\",data[],1),VLOOKUP(\"SPECCOST,,\"&U$5&\",\"&$B949&\",\",data[],7),U$909)","v":7.0000000000000007E-2},{"$f":"IF(\"SPECCOST,,\"&V$5&\",\"&$B949&\",\"=VLOOKUP(\"SPECCOST,,\"&V$5&\",\"&$B949&\",\",data[],1),VLOOKUP(\"SPECCOST,,\"&V$5&\",\"&$B949&\",\",data[],7),V$909)","v":7.0000000000000007E-2},null,null,{"$f":"IF(\"SPECCOST,,\"&Y$5&\",\"&$B949&\",\"=VLOOKUP(\"SPECCOST,,\"&Y$5&\",\"&$B949&\",\",data[],1),VLOOKUP(\"SPECCOST,,\"&Y$5&\",\"&$B949&\",\",data[],7),Y$909)","v":1.190463995027624E-3},null,{"$f":"IF(\"SPECCOST,,\"&AA$5&\",\"&$B949&\",\"=VLOOKUP(\"SPECCOST,,\"&AA$5&\",\"&$B949&\",\",data[],1),VLOOKUP(\"SPECCOST,,\"&AA$5&\",\"&$B949&\",\",data[],7),AA$909)","v":0.05},{"$f":"IF(\"SPECCOST,,\"&AB$5&\",\"&$B949&\",\"=VLOOKUP(\"SPECCOST,,\"&AB$5&\",\"&$B949&\",\",data[],1),VLOOKUP(\"SPECCOST,,\"&AB$5&\",\"&$B949&\",\",data[],7),AB$909)","v":7.0000000000000007E-2},{"$f":"IF(\"SPECCOST,,\"&AC$5&\",\"&$B949&\",\"=VLOOKUP(\"SPECCOST,,\"&AC$5&\",\"&$B949&\",\",data[],1),VLOOKUP(\"SPECCOST,,\"&AC$5&\",\"&$B949&\",\",data[],7),AC$909)","v":3.8577660276243091E-2},null,{"$f":"IF(\"SPECCOST,,\"&AE$5&\",\"&$B949&\",\"=VLOOKUP(\"SPECCOST,,\"&AE$5&\",\"&$B949&\",\",data[],1),VLOOKUP(\"SPECCOST,,\"&AE$5&\",\"&$B949&\",\",data[],7),AE$909)","v":0.05},{"$f":"IF(\"SPECCOST,,\"&AF$5&\",\"&$B949&\",\"=VLOOKUP(\"SPECCOST,,\"&AF$5&\",\"&$B949&\",\",data[],1),VLOOKUP(\"SPECCOST,,\"&AF$5&\",\"&$B949&\",\",data[],7),AF$909)","v":7.0000000000000007E-2},{"$f":"IF(\"SPECCOST,,\"&AG$5&\",\"&$B949&\",\"=VLOOKUP(\"SPECCOST,,\"&AG$5&\",\"&$B949&\",\",data[],1),VLOOKUP(\"SPECCOST,,\"&AG$5&\",\"&$B949&\",\",data[],7),AG$909)","v":7.0000000000000007E-2},{"$f":"IF(\"SPECCOST,,\"&AH$5&\",\"&$B949&\",\"=VLOOKUP(\"SPECCOST,,\"&AH$5&\",\"&$B949&\",\",data[],1),VLOOKUP(\"SPECCOST,,\"&AH$5&\",\"&$B949&\",\",data[],7),AH$909)","v":0.05},{"$f":"IF(\"SPECCOST,,\"&AI$5&\",\"&$B949&\",\"=VLOOKUP(\"SPECCOST,,\"&AI$5&\",\"&$B949&\",\",data[],1),VLOOKUP(\"SPECCOST,,\"&AI$5&\",\"&$B949&\",\",data[],7),AI$909)","v":0.01},null,null,{"$f":"IF(\"SPECCOST,,\"&AL$5&\",\"&$B949&\",\"=VLOOKUP(\"SPECCOST,,\"&AL$5&\",\"&$B949&\",\",data[],1),VLOOKUP(\"SPECCOST,,\"&AL$5&\",\"&$B949&\",\",data[],7),AL$909)","v":7.0000000000000007E-2},null,{"$f":"IF(\"SPECCOST,,\"&AN$5&\",\"&$B949&\",\"=VLOOKUP(\"SPECCOST,,\"&AN$5&\",\"&$B949&\",\",data[],1),VLOOKUP(\"SPECCOST,,\"&AN$5&\",\"&$B949&\",\",data[],7),AN$909)","v":7.0000000000000007E-2},null,null,null,null,null,null,null,{"$f":"IF(\"SPECCOST,,\"&AV$5&\",\"&$B949&\",\"=VLOOKUP(\"SPECCOST,,\"&AV$5&\",\"&$B949&\",\",data[],1),VLOOKUP(\"SPECCOST,,\"&AV$5&\",\"&$B949&\",\",data[],7),AV$909)","v":2.7940534453652541E-3},null,null,null,null,null,null,{"$f":"IF(\"SPECCOST,,\"&BC$5&\",\"&sel_country_code&\",\"=VLOOKUP(\"SPECCOST,,\"&BC$5&\",\"&sel_country_code&\",\",data[],1),VLOOKUP(\"SPECCOST,,\"&BC$5&\",\"&sel_country_code&\",\",data[],7),BC$909)","v":0.05},{"$f":"IF(\"SPECCOST,,\"&BD$5&\",\"&sel_country_code&\",\"=VLOOKUP(\"SPECCOST,,\"&BD$5&\",\"&sel_country_code&\",\",data[],1),VLOOKUP(\"SPECCOST,,\"&BD$5&\",\"&sel_country_code&\",\",data[],7),BD$909)","v":7.0000000000000007E-2},null,{"$f":"IF(\"SPECCOST,,\"&BF$5&\",\"&sel_country_code&\",\"=VLOOKUP(\"SPECCOST,,\"&BF$5&\",\"&sel_country_code&\",\",data[],1),VLOOKUP(\"SPECCOST,,\"&BF$5&\",\"&sel_country_code&\",\",data[],7),BF$909)","v":0.05},{"$f":"IF(\"SPECCOST,,\"&BG$5&\",\"&sel_country_code&\",\"=VLOOKUP(\"SPECCOST,,\"&BG$5&\",\"&sel_country_code&\",\",data[],1),VLOOKUP(\"SPECCOST,,\"&BG$5&\",\"&sel_country_code&\",\",data[],7),BG$909)","v":7.0000000000000007E-2}]
[null,"KEN",null,null,null,null,null,null,null,null,null,null,null,null,null,null,null,{"$f":"IF(\"SPECCOST,,\"&R$5&\",\"&$B950&\",\"=VLOOKUP(\"SPECCOST,,\"&R$5&\",\"&$B950&\",\",data[],1),VLOOKUP(\"SPECCOST,,\"&R$5&\",\"&$B950&\",\",data[],7),R$909)","v":1.190463995027624E-3},null,{"$f":"IF(\"SPECCOST,,\"&T$5&\",\"&$B950&\",\"=VLOOKUP(\"SPECCOST,,\"&T$5&\",\"&$B950&\",\",data[],1),VLOOKUP(\"SPECCOST,,\"&T$5&\",\"&$B950&\",\",data[],7),T$909)","v":0.05},{"$f":"IF(\"SPECCOST,,\"&U$5&\",\"&$B950&\",\"=VLOOKUP(\"SPECCOST,,\"&U$5&\",\"&$B950&\",\",data[],1),VLOOKUP(\"SPECCOST,,\"&U$5&\",\"&$B950&\",\",data[],7),U$909)","v":7.0000000000000007E-2},{"$f":"IF(\"SPECCOST,,\"&V$5&\",\"&$B950&\",\"=VLOOKUP(\"SPECCOST,,\"&V$5&\",\"&$B950&\",\",data[],1),VLOOKUP(\"SPECCOST,,\"&V$5&\",\"&$B950&\",\",data[],7),V$909)","v":7.0000000000000007E-2},null,null,{"$f":"IF(\"SPECCOST,,\"&Y$5&\",\"&$B950&\",\"=VLOOKUP(\"SPECCOST,,\"&Y$5&\",\"&$B950&\",\",data[],1),VLOOKUP(\"SPECCOST,,\"&Y$5&\",\"&$B950&\",\",data[],7),Y$909)","v":1.190463995027624E-3},null,{"$f":"IF(\"SPECCOST,,\"&AA$5&\",\"&$B950&\",\"=VLOOKUP(\"SPECCOST,,\"&AA$5&\",\"&$B950&\",\",data[],1),VLOOKUP(\"SPECCOST,,\"&AA$5&\",\"&$B950&\",\",data[],7),AA$909)","v":0.05},{"$f":"IF(\"SPECCOST,,\"&AB$5&\",\"&$B950&\",\"=VLOOKUP(\"SPECCOST,,\"&AB$5&\",\"&$B950&\",\",data[],1),VLOOKUP(\"SPECCOST,,\"&AB$5&\",\"&$B950&\",\",data[],7),AB$909)","v":7.0000000000000007E-2},{"$f":"IF(\"SPECCOST,,\"&AC$5&\",\"&$B950&\",\"=VLOOKUP(\"SPECCOST,,\"&AC$5&\",\"&$B950&\",\",data[],1),VLOOKUP(\"SPECCOST,,\"&AC$5&\",\"&$B950&\",\",data[],7),AC$909)","v":3.8577660276243091E-2},null,{"$f":"IF(\"SPECCOST,,\"&AE$5&\",\"&$B950&\",\"=VLOOKUP(\"SPECCOST,,\"&AE$5&\",\"&$B950&\",\",data[],1),VLOOKUP(\"SPECCOST,,\"&AE$5&\",\"&$B950&\",\",data[],7),AE$909)","v":0.05},{"$f":"IF(\"SPECCOST,,\"&AF$5&\",\"&$B950&\",\"=VLOOKUP(\"SPECCOST,,\"&AF$5&\",\"&$B950&\",\",data[],1),VLOOKUP(\"SPECCOST,,\"&AF$5&\",\"&$B950&\",\",data[],7),AF$909)","v":7.0000000000000007E-2},{"$f":"IF(\"SPECCOST,,\"&AG$5&\",\"&$B950&\",\"=VLOOKUP(\"SPECCOST,,\"&AG$5&\",\"&$B950&\",\",data[],1),VLOOKUP(\"SPECCOST,,\"&AG$5&\",\"&$B950&\",\",data[],7),AG$909)","v":7.0000000000000007E-2},{"$f":"IF(\"SPECCOST,,\"&AH$5&\",\"&$B950&\",\"=VLOOKUP(\"SPECCOST,,\"&AH$5&\",\"&$B950&\",\",data[],1),VLOOKUP(\"SPECCOST,,\"&AH$5&\",\"&$B950&\",\",data[],7),AH$909)","v":0.05},{"$f":"IF(\"SPECCOST,,\"&AI$5&\",\"&$B950&\",\"=VLOOKUP(\"SPECCOST,,\"&AI$5&\",\"&$B950&\",\",data[],1),VLOOKUP(\"SPECCOST,,\"&AI$5&\",\"&$B950&\",\",data[],7),AI$909)","v":0.01},null,null,{"$f":"IF(\"SPECCOST,,\"&AL$5&\",\"&$B950&\",\"=VLOOKUP(\"SPECCOST,,\"&AL$5&\",\"&$B950&\",\",data[],1),VLOOKUP(\"SPECCOST,,\"&AL$5&\",\"&$B950&\",\",data[],7),AL$909)","v":7.0000000000000007E-2},null,{"$f":"IF(\"SPECCOST,,\"&AN$5&\",\"&$B950&\",\"=VLOOKUP(\"SPECCOST,,\"&AN$5&\",\"&$B950&\",\",data[],1),VLOOKUP(\"SPECCOST,,\"&AN$5&\",\"&$B950&\",\",data[],7),AN$909)","v":7.0000000000000007E-2},null,null,null,null,null,null,null,{"$f":"IF(\"SPECCOST,,\"&AV$5&\",\"&$B950&\",\"=VLOOKUP(\"SPECCOST,,\"&AV$5&\",\"&$B950&\",\",data[],1),VLOOKUP(\"SPECCOST,,\"&AV$5&\",\"&$B950&\",\",data[],7),AV$909)","v":2.7940534453652541E-3},null,null,null,null,null,null,{"$f":"IF(\"SPECCOST,,\"&BC$5&\",\"&sel_country_code&\",\"=VLOOKUP(\"SPECCOST,,\"&BC$5&\",\"&sel_country_code&\",\",data[],1),VLOOKUP(\"SPECCOST,,\"&BC$5&\",\"&sel_country_code&\",\",data[],7),BC$909)","v":0.05},{"$f":"IF(\"SPECCOST,,\"&BD$5&\",\"&sel_country_code&\",\"=VLOOKUP(\"SPECCOST,,\"&BD$5&\",\"&sel_country_code&\",\",data[],1),VLOOKUP(\"SPECCOST,,\"&BD$5&\",\"&sel_country_code&\",\",data[],7),BD$909)","v":7.0000000000000007E-2},null,{"$f":"IF(\"SPECCOST,,\"&BF$5&\",\"&sel_country_code&\",\"=VLOOKUP(\"SPECCOST,,\"&BF$5&\",\"&sel_country_code&\",\",data[],1),VLOOKUP(\"SPECCOST,,\"&BF$5&\",\"&sel_country_code&\",\",data[],7),BF$909)","v":0.05},{"$f":"IF(\"SPECCOST,,\"&BG$5&\",\"&sel_country_code&\",\"=VLOOKUP(\"SPECCOST,,\"&BG$5&\",\"&sel_country_code&\",\",data[],1),VLOOKUP(\"SPECCOST,,\"&BG$5&\",\"&sel_country_code&\",\",data[],7),BG$909)","v":7.0000000000000007E-2}]
[null,"MAR",null,null,null,null,null,null,null,null,null,null,null,null,null,null,null,{"$f":"IF(\"SPECCOST,,\"&R$5&\",\"&$B951&\",\"=VLOOKUP(\"SPECCOST,,\"&R$5&\",\"&$B951&\",\",data[],1),VLOOKUP(\"SPECCOST,,\"&R$5&\",\"&$B951&\",\",data[],7),R$909)","v":1.190463995027624E-3},null,{"$f":"IF(\"SPECCOST,,\"&T$5&\",\"&$B951&\",\"=VLOOKUP(\"SPECCOST,,\"&T$5&\",\"&$B951&\",\",data[],1),VLOOKUP(\"SPECCOST,,\"&T$5&\",\"&$B951&\",\",data[],7),T$909)","v":0.05},{"$f":"IF(\"SPECCOST,,\"&U$5&\",\"&$B951&\",\"=VLOOKUP(\"SPECCOST,,\"&U$5&\",\"&$B951&\",\",data[],1),VLOOKUP(\"SPECCOST,,\"&U$5&\",\"&$B951&\",\",data[],7),U$909)","v":7.0000000000000007E-2},{"$f":"IF(\"SPECCOST,,\"&V$5&\",\"&$B951&\",\"=VLOOKUP(\"SPECCOST,,\"&V$5&\",\"&$B951&\",\",data[],1),VLOOKUP(\"SPECCOST,,\"&V$5&\",\"&$B951&\",\",data[],7),V$909)","v":7.0000000000000007E-2},null,null,{"$f":"IF(\"SPECCOST,,\"&Y$5&\",\"&$B951&\",\"=VLOOKUP(\"SPECCOST,,\"&Y$5&\",\"&$B951&\",\",data[],1),VLOOKUP(\"SPECCOST,,\"&Y$5&\",\"&$B951&\",\",data[],7),Y$909)","v":1.190463995027624E-3},null,{"$f":"IF(\"SPECCOST,,\"&AA$5&\",\"&$B951&\",\"=VLOOKUP(\"SPECCOST,,\"&AA$5&\",\"&$B951&\",\",data[],1),VLOOKUP(\"SPECCOST,,\"&AA$5&\",\"&$B951&\",\",data[],7),AA$909)","v":0.05},{"$f":"IF(\"SPECCOST,,\"&AB$5&\",\"&$B951&\",\"=VLOOKUP(\"SPECCOST,,\"&AB$5&\",\"&$B951&\",\",data[],1),VLOOKUP(\"SPECCOST,,\"&AB$5&\",\"&$B951&\",\",data[],7),AB$909)","v":7.0000000000000007E-2},{"$f":"IF(\"SPECCOST,,\"&AC$5&\",\"&$B951&\",\"=VLOOKUP(\"SPECCOST,,\"&AC$5&\",\"&$B951&\",\",data[],1),VLOOKUP(\"SPECCOST,,\"&AC$5&\",\"&$B951&\",\",data[],7),AC$909)","v":3.8577660276243091E-2},null,{"$f":"IF(\"SPECCOST,,\"&AE$5&\",\"&$B951&\",\"=VLOOKUP(\"SPECCOST,,\"&AE$5&\",\"&$B951&\",\",data[],1),VLOOKUP(\"SPECCOST,,\"&AE$5&\",\"&$B951&\",\",data[],7),AE$909)","v":0.05},{"$f":"IF(\"SPECCOST,,\"&AF$5&\",\"&$B951&\",\"=VLOOKUP(\"SPECCOST,,\"&AF$5&\",\"&$B951&\",\",data[],1),VLOOKUP(\"SPECCOST,,\"&AF$5&\",\"&$B951&\",\",data[],7),AF$909)","v":7.0000000000000007E-2},{"$f":"IF(\"SPECCOST,,\"&AG$5&\",\"&$B951&\",\"=VLOOKUP(\"SPECCOST,,\"&AG$5&\",\"&$B951&\",\",data[],1),VLOOKUP(\"SPECCOST,,\"&AG$5&\",\"&$B951&\",\",data[],7),AG$909)","v":7.0000000000000007E-2},{"$f":"IF(\"SPECCOST,,\"&AH$5&\",\"&$B951&\",\"=VLOOKUP(\"SPECCOST,,\"&AH$5&\",\"&$B951&\",\",data[],1),VLOOKUP(\"SPECCOST,,\"&AH$5&\",\"&$B951&\",\",data[],7),AH$909)","v":0.05},{"$f":"IF(\"SPECCOST,,\"&AI$5&\",\"&$B951&\",\"=VLOOKUP(\"SPECCOST,,\"&AI$5&\",\"&$B951&\",\",data[],1),VLOOKUP(\"SPECCOST,,\"&AI$5&\",\"&$B951&\",\",data[],7),AI$909)","v":0.01},null,null,{"$f":"IF(\"SPECCOST,,\"&AL$5&\",\"&$B951&\",\"=VLOOKUP(\"SPECCOST,,\"&AL$5&\",\"&$B951&\",\",data[],1),VLOOKUP(\"SPECCOST,,\"&AL$5&\",\"&$B951&\",\",data[],7),AL$909)","v":7.0000000000000007E-2},null,{"$f":"IF(\"SPECCOST,,\"&AN$5&\",\"&$B951&\",\"=VLOOKUP(\"SPECCOST,,\"&AN$5&\",\"&$B951&\",\",data[],1),VLOOKUP(\"SPECCOST,,\"&AN$5&\",\"&$B951&\",\",data[],7),AN$909)","v":7.0000000000000007E-2},null,null,null,null,null,null,null,{"$f":"IF(\"SPECCOST,,\"&AV$5&\",\"&$B951&\",\"=VLOOKUP(\"SPECCOST,,\"&AV$5&\",\"&$B951&\",\",data[],1),VLOOKUP(\"SPECCOST,,\"&AV$5&\",\"&$B951&\",\",data[],7),AV$909)","v":2.7940534453652541E-3},null,null,null,null,null,null,{"$f":"IF(\"SPECCOST,,\"&BC$5&\",\"&sel_country_code&\",\"=VLOOKUP(\"SPECCOST,,\"&BC$5&\",\"&sel_country_code&\",\",data[],1),VLOOKUP(\"SPECCOST,,\"&BC$5&\",\"&sel_country_code&\",\",data[],7),BC$909)","v":0.05},{"$f":"IF(\"SPECCOST,,\"&BD$5&\",\"&sel_country_code&\",\"=VLOOKUP(\"SPECCOST,,\"&BD$5&\",\"&sel_country_code&\",\",data[],1),VLOOKUP(\"SPECCOST,,\"&BD$5&\",\"&sel_country_code&\",\",data[],7),BD$909)","v":7.0000000000000007E-2},null,{"$f":"IF(\"SPECCOST,,\"&BF$5&\",\"&sel_country_code&\",\"=VLOOKUP(\"SPECCOST,,\"&BF$5&\",\"&sel_country_code&\",\",data[],1),VLOOKUP(\"SPECCOST,,\"&BF$5&\",\"&sel_country_code&\",\",data[],7),BF$909)","v":0.05},{"$f":"IF(\"SPECCOST,,\"&BG$5&\",\"&sel_country_code&\",\"=VLOOKUP(\"SPECCOST,,\"&BG$5&\",\"&sel_country_code&\",\",data[],1),VLOOKUP(\"SPECCOST,,\"&BG$5&\",\"&sel_country_code&\",\",data[],7),BG$909)","v":7.0000000000000007E-2}]
[null,"MAR-BEN",null,null,null,null,null,null,null,null,null,null,null,null,null,null,null,{"$f":"IF(\"SPECCOST,,\"&R$5&\",\"&$B952&\",\"=VLOOKUP(\"SPECCOST,,\"&R$5&\",\"&$B952&\",\",data[],1),VLOOKUP(\"SPECCOST,,\"&R$5&\",\"&$B952&\",\",data[],7),R$909)","v":1.190463995027624E-3},null,{"$f":"IF(\"SPECCOST,,\"&T$5&\",\"&$B952&\",\"=VLOOKUP(\"SPECCOST,,\"&T$5&\",\"&$B952&\",\",data[],1),VLOOKUP(\"SPECCOST,,\"&T$5&\",\"&$B952&\",\",data[],7),T$909)","v":0.05},{"$f":"IF(\"SPECCOST,,\"&U$5&\",\"&$B952&\",\"=VLOOKUP(\"SPECCOST,,\"&U$5&\",\"&$B952&\",\",data[],1),VLOOKUP(\"SPECCOST,,\"&U$5&\",\"&$B952&\",\",data[],7),U$909)","v":7.0000000000000007E-2},{"$f":"IF(\"SPECCOST,,\"&V$5&\",\"&$B952&\",\"=VLOOKUP(\"SPECCOST,,\"&V$5&\",\"&$B952&\",\",data[],1),VLOOKUP(\"SPECCOST,,\"&V$5&\",\"&$B952&\",\",data[],7),V$909)","v":7.0000000000000007E-2},null,null,{"$f":"IF(\"SPECCOST,,\"&Y$5&\",\"&$B952&\",\"=VLOOKUP(\"SPECCOST,,\"&Y$5&\",\"&$B952&\",\",data[],1),VLOOKUP(\"SPECCOST,,\"&Y$5&\",\"&$B952&\",\",data[],7),Y$909)","v":1.190463995027624E-3},null,{"$f":"IF(\"SPECCOST,,\"&AA$5&\",\"&$B952&\",\"=VLOOKUP(\"SPECCOST,,\"&AA$5&\",\"&$B952&\",\",data[],1),VLOOKUP(\"SPECCOST,,\"&AA$5&\",\"&$B952&\",\",data[],7),AA$909)","v":0.05},{"$f":"IF(\"SPECCOST,,\"&AB$5&\",\"&$B952&\",\"=VLOOKUP(\"SPECCOST,,\"&AB$5&\",\"&$B952&\",\",data[],1),VLOOKUP(\"SPECCOST,,\"&AB$5&\",\"&$B952&\",\",data[],7),AB$909)","v":7.0000000000000007E-2},{"$f":"IF(\"SPECCOST,,\"&AC$5&\",\"&$B952&\",\"=VLOOKUP(\"SPECCOST,,\"&AC$5&\",\"&$B952&\",\",data[],1),VLOOKUP(\"SPECCOST,,\"&AC$5&\",\"&$B952&\",\",data[],7),AC$909)","v":3.8577660276243091E-2},null,{"$f":"IF(\"SPECCOST,,\"&AE$5&\",\"&$B952&\",\"=VLOOKUP(\"SPECCOST,,\"&AE$5&\",\"&$B952&\",\",data[],1),VLOOKUP(\"SPECCOST,,\"&AE$5&\",\"&$B952&\",\",data[],7),AE$909)","v":0.05},{"$f":"IF(\"SPECCOST,,\"&AF$5&\",\"&$B952&\",\"=VLOOKUP(\"SPECCOST,,\"&AF$5&\",\"&$B952&\",\",data[],1),VLOOKUP(\"SPECCOST,,\"&AF$5&\",\"&$B952&\",\",data[],7),AF$909)","v":7.0000000000000007E-2},{"$f":"IF(\"SPECCOST,,\"&AG$5&\",\"&$B952&\",\"=VLOOKUP(\"SPECCOST,,\"&AG$5&\",\"&$B952&\",\",data[],1),VLOOKUP(\"SPECCOST,,\"&AG$5&\",\"&$B952&\",\",data[],7),AG$909)","v":7.0000000000000007E-2},{"$f":"IF(\"SPECCOST,,\"&AH$5&\",\"&$B952&\",\"=VLOOKUP(\"SPECCOST,,\"&AH$5&\",\"&$B952&\",\",data[],1),VLOOKUP(\"SPECCOST,,\"&AH$5&\",\"&$B952&\",\",data[],7),AH$909)","v":0.05},{"$f":"IF(\"SPECCOST,,\"&AI$5&\",\"&$B952&\",\"=VLOOKUP(\"SPECCOST,,\"&AI$5&\",\"&$B952&\",\",data[],1),VLOOKUP(\"SPECCOST,,\"&AI$5&\",\"&$B952&\",\",data[],7),AI$909)","v":0.01},null,null,{"$f":"IF(\"SPECCOST,,\"&AL$5&\",\"&$B952&\",\"=VLOOKUP(\"SPECCOST,,\"&AL$5&\",\"&$B952&\",\",data[],1),VLOOKUP(\"SPECCOST,,\"&AL$5&\",\"&$B952&\",\",data[],7),AL$909)","v":7.0000000000000007E-2},null,{"$f":"IF(\"SPECCOST,,\"&AN$5&\",\"&$B952&\",\"=VLOOKUP(\"SPECCOST,,\"&AN$5&\",\"&$B952&\",\",data[],1),VLOOKUP(\"SPECCOST,,\"&AN$5&\",\"&$B952&\",\",data[],7),AN$909)","v":7.0000000000000007E-2},null,null,null,null,null,null,null,{"$f":"IF(\"SPECCOST,,\"&AV$5&\",\"&$B952&\",\"=VLOOKUP(\"SPECCOST,,\"&AV$5&\",\"&$B952&\",\",data[],1),VLOOKUP(\"SPECCOST,,\"&AV$5&\",\"&$B952&\",\",data[],7),AV$909)","v":2.7940534453652541E-3},null,null,null,null,null,null,{"$f":"IF(\"SPECCOST,,\"&BC$5&\",\"&sel_country_code&\",\"=VLOOKUP(\"SPECCOST,,\"&BC$5&\",\"&sel_country_code&\",\",data[],1),VLOOKUP(\"SPECCOST,,\"&BC$5&\",\"&sel_country_code&\",\",data[],7),BC$909)","v":0.05},{"$f":"IF(\"SPECCOST,,\"&BD$5&\",\"&sel_country_code&\",\"=VLOOKUP(\"SPECCOST,,\"&BD$5&\",\"&sel_country_code&\",\",data[],1),VLOOKUP(\"SPECCOST,,\"&BD$5&\",\"&sel_country_code&\",\",data[],7),BD$909)","v":7.0000000000000007E-2},null,{"$f":"IF(\"SPECCOST,,\"&BF$5&\",\"&sel_country_code&\",\"=VLOOKUP(\"SPECCOST,,\"&BF$5&\",\"&sel_country_code&\",\",data[],1),VLOOKUP(\"SPECCOST,,\"&BF$5&\",\"&sel_country_code&\",\",data[],7),BF$909)","v":0.05},{"$f":"IF(\"SPECCOST,,\"&BG$5&\",\"&sel_country_code&\",\"=VLOOKUP(\"SPECCOST,,\"&BG$5&\",\"&sel_country_code&\",\",data[],1),VLOOKUP(\"SPECCOST,,\"&BG$5&\",\"&sel_country_code&\",\",data[],7),BG$909)","v":7.0000000000000007E-2}]
[null,"MAR-CAS",null,null,null,null,null,null,null,null,null,null,null,null,null,null,null,{"$f":"IF(\"SPECCOST,,\"&R$5&\",\"&$B953&\",\"=VLOOKUP(\"SPECCOST,,\"&R$5&\",\"&$B953&\",\",data[],1),VLOOKUP(\"SPECCOST,,\"&R$5&\",\"&$B953&\",\",data[],7),R$909)","v":1.190463995027624E-3},null,{"$f":"IF(\"SPECCOST,,\"&T$5&\",\"&$B953&\",\"=VLOOKUP(\"SPECCOST,,\"&T$5&\",\"&$B953&\",\",data[],1),VLOOKUP(\"SPECCOST,,\"&T$5&\",\"&$B953&\",\",data[],7),T$909)","v":0.05},{"$f":"IF(\"SPECCOST,,\"&U$5&\",\"&$B953&\",\"=VLOOKUP(\"SPECCOST,,\"&U$5&\",\"&$B953&\",\",data[],1),VLOOKUP(\"SPECCOST,,\"&U$5&\",\"&$B953&\",\",data[],7),U$909)","v":7.0000000000000007E-2},{"$f":"IF(\"SPECCOST,,\"&V$5&\",\"&$B953&\",\"=VLOOKUP(\"SPECCOST,,\"&V$5&\",\"&$B953&\",\",data[],1),VLOOKUP(\"SPECCOST,,\"&V$5&\",\"&$B953&\",\",data[],7),V$909)","v":7.0000000000000007E-2},null,null,{"$f":"IF(\"SPECCOST,,\"&Y$5&\",\"&$B953&\",\"=VLOOKUP(\"SPECCOST,,\"&Y$5&\",\"&$B953&\",\",data[],1),VLOOKUP(\"SPECCOST,,\"&Y$5&\",\"&$B953&\",\",data[],7),Y$909)","v":1.190463995027624E-3},null,{"$f":"IF(\"SPECCOST,,\"&AA$5&\",\"&$B953&\",\"=VLOOKUP(\"SPECCOST,,\"&AA$5&\",\"&$B953&\",\",data[],1),VLOOKUP(\"SPECCOST,,\"&AA$5&\",\"&$B953&\",\",data[],7),AA$909)","v":0.05},{"$f":"IF(\"SPECCOST,,\"&AB$5&\",\"&$B953&\",\"=VLOOKUP(\"SPECCOST,,\"&AB$5&\",\"&$B953&\",\",data[],1),VLOOKUP(\"SPECCOST,,\"&AB$5&\",\"&$B953&\",\",data[],7),AB$909)","v":7.0000000000000007E-2},{"$f":"IF(\"SPECCOST,,\"&AC$5&\",\"&$B953&\",\"=VLOOKUP(\"SPECCOST,,\"&AC$5&\",\"&$B953&\",\",data[],1),VLOOKUP(\"SPECCOST,,\"&AC$5&\",\"&$B953&\",\",data[],7),AC$909)","v":3.8577660276243091E-2},null,{"$f":"IF(\"SPECCOST,,\"&AE$5&\",\"&$B953&\",\"=VLOOKUP(\"SPECCOST,,\"&AE$5&\",\"&$B953&\",\",data[],1),VLOOKUP(\"SPECCOST,,\"&AE$5&\",\"&$B953&\",\",data[],7),AE$909)","v":0.05},{"$f":"IF(\"SPECCOST,,\"&AF$5&\",\"&$B953&\",\"=VLOOKUP(\"SPECCOST,,\"&AF$5&\",\"&$B953&\",\",data[],1),VLOOKUP(\"SPECCOST,,\"&AF$5&\",\"&$B953&\",\",data[],7),AF$909)","v":7.0000000000000007E-2},{"$f":"IF(\"SPECCOST,,\"&AG$5&\",\"&$B953&\",\"=VLOOKUP(\"SPECCOST,,\"&AG$5&\",\"&$B953&\",\",data[],1),VLOOKUP(\"SPECCOST,,\"&AG$5&\",\"&$B953&\",\",data[],7),AG$909)","v":7.0000000000000007E-2},{"$f":"IF(\"SPECCOST,,\"&AH$5&\",\"&$B953&\",\"=VLOOKUP(\"SPECCOST,,\"&AH$5&\",\"&$B953&\",\",data[],1),VLOOKUP(\"SPECCOST,,\"&AH$5&\",\"&$B953&\",\",data[],7),AH$909)","v":0.05},{"$f":"IF(\"SPECCOST,,\"&AI$5&\",\"&$B953&\",\"=VLOOKUP(\"SPECCOST,,\"&AI$5&\",\"&$B953&\",\",data[],1),VLOOKUP(\"SPECCOST,,\"&AI$5&\",\"&$B953&\",\",data[],7),AI$909)","v":0.01},null,null,{"$f":"IF(\"SPECCOST,,\"&AL$5&\",\"&$B953&\",\"=VLOOKUP(\"SPECCOST,,\"&AL$5&\",\"&$B953&\",\",data[],1),VLOOKUP(\"SPECCOST,,\"&AL$5&\",\"&$B953&\",\",data[],7),AL$909)","v":7.0000000000000007E-2},null,{"$f":"IF(\"SPECCOST,,\"&AN$5&\",\"&$B953&\",\"=VLOOKUP(\"SPECCOST,,\"&AN$5&\",\"&$B953&\",\",data[],1),VLOOKUP(\"SPECCOST,,\"&AN$5&\",\"&$B953&\",\",data[],7),AN$909)","v":7.0000000000000007E-2},null,null,null,null,null,null,null,{"$f":"IF(\"SPECCOST,,\"&AV$5&\",\"&$B953&\",\"=VLOOKUP(\"SPECCOST,,\"&AV$5&\",\"&$B953&\",\",data[],1),VLOOKUP(\"SPECCOST,,\"&AV$5&\",\"&$B953&\",\",data[],7),AV$909)","v":2.7940534453652541E-3},null,null,null,null,null,null,{"$f":"IF(\"SPECCOST,,\"&BC$5&\",\"&sel_country_code&\",\"=VLOOKUP(\"SPECCOST,,\"&BC$5&\",\"&sel_country_code&\",\",data[],1),VLOOKUP(\"SPECCOST,,\"&BC$5&\",\"&sel_country_code&\",\",data[],7),BC$909)","v":0.05},{"$f":"IF(\"SPECCOST,,\"&BD$5&\",\"&sel_country_code&\",\"=VLOOKUP(\"SPECCOST,,\"&BD$5&\",\"&sel_country_code&\",\",data[],1),VLOOKUP(\"SPECCOST,,\"&BD$5&\",\"&sel_country_code&\",\",data[],7),BD$909)","v":7.0000000000000007E-2},null,{"$f":"IF(\"SPECCOST,,\"&BF$5&\",\"&sel_country_code&\",\"=VLOOKUP(\"SPECCOST,,\"&BF$5&\",\"&sel_country_code&\",\",data[],1),VLOOKUP(\"SPECCOST,,\"&BF$5&\",\"&sel_country_code&\",\",data[],7),BF$909)","v":0.05},{"$f":"IF(\"SPECCOST,,\"&BG$5&\",\"&sel_country_code&\",\"=VLOOKUP(\"SPECCOST,,\"&BG$5&\",\"&sel_country_code&\",\",data[],1),VLOOKUP(\"SPECCOST,,\"&BG$5&\",\"&sel_country_code&\",\",data[],7),BG$909)","v":7.0000000000000007E-2}]
[null,"MAR-DAK",null,null,null,null,null,null,null,null,null,null,null,null,null,null,null,{"$f":"IF(\"SPECCOST,,\"&R$5&\",\"&$B954&\",\"=VLOOKUP(\"SPECCOST,,\"&R$5&\",\"&$B954&\",\",data[],1),VLOOKUP(\"SPECCOST,,\"&R$5&\",\"&$B954&\",\",data[],7),R$909)","v":1.190463995027624E-3},null,{"$f":"IF(\"SPECCOST,,\"&T$5&\",\"&$B954&\",\"=VLOOKUP(\"SPECCOST,,\"&T$5&\",\"&$B954&\",\",data[],1),VLOOKUP(\"SPECCOST,,\"&T$5&\",\"&$B954&\",\",data[],7),T$909)","v":0.05},{"$f":"IF(\"SPECCOST,,\"&U$5&\",\"&$B954&\",\"=VLOOKUP(\"SPECCOST,,\"&U$5&\",\"&$B954&\",\",data[],1),VLOOKUP(\"SPECCOST,,\"&U$5&\",\"&$B954&\",\",data[],7),U$909)","v":7.0000000000000007E-2},{"$f":"IF(\"SPECCOST,,\"&V$5&\",\"&$B954&\",\"=VLOOKUP(\"SPECCOST,,\"&V$5&\",\"&$B954&\",\",data[],1),VLOOKUP(\"SPECCOST,,\"&V$5&\",\"&$B954&\",\",data[],7),V$909)","v":7.0000000000000007E-2},null,null,{"$f":"IF(\"SPECCOST,,\"&Y$5&\",\"&$B954&\",\"=VLOOKUP(\"SPECCOST,,\"&Y$5&\",\"&$B954&\",\",data[],1),VLOOKUP(\"SPECCOST,,\"&Y$5&\",\"&$B954&\",\",data[],7),Y$909)","v":1.190463995027624E-3},null,{"$f":"IF(\"SPECCOST,,\"&AA$5&\",\"&$B954&\",\"=VLOOKUP(\"SPECCOST,,\"&AA$5&\",\"&$B954&\",\",data[],1),VLOOKUP(\"SPECCOST,,\"&AA$5&\",\"&$B954&\",\",data[],7),AA$909)","v":0.05},{"$f":"IF(\"SPECCOST,,\"&AB$5&\",\"&$B954&\",\"=VLOOKUP(\"SPECCOST,,\"&AB$5&\",\"&$B954&\",\",data[],1),VLOOKUP(\"SPECCOST,,\"&AB$5&\",\"&$B954&\",\",data[],7),AB$909)","v":7.0000000000000007E-2},{"$f":"IF(\"SPECCOST,,\"&AC$5&\",\"&$B954&\",\"=VLOOKUP(\"SPECCOST,,\"&AC$5&\",\"&$B954&\",\",data[],1),VLOOKUP(\"SPECCOST,,\"&AC$5&\",\"&$B954&\",\",data[],7),AC$909)","v":3.8577660276243091E-2},null,{"$f":"IF(\"SPECCOST,,\"&AE$5&\",\"&$B954&\",\"=VLOOKUP(\"SPECCOST,,\"&AE$5&\",\"&$B954&\",\",data[],1),VLOOKUP(\"SPECCOST,,\"&AE$5&\",\"&$B954&\",\",data[],7),AE$909)","v":0.05},{"$f":"IF(\"SPECCOST,,\"&AF$5&\",\"&$B954&\",\"=VLOOKUP(\"SPECCOST,,\"&AF$5&\",\"&$B954&\",\",data[],1),VLOOKUP(\"SPECCOST,,\"&AF$5&\",\"&$B954&\",\",data[],7),AF$909)","v":7.0000000000000007E-2},{"$f":"IF(\"SPECCOST,,\"&AG$5&\",\"&$B954&\",\"=VLOOKUP(\"SPECCOST,,\"&AG$5&\",\"&$B954&\",\",data[],1),VLOOKUP(\"SPECCOST,,\"&AG$5&\",\"&$B954&\",\",data[],7),AG$909)","v":7.0000000000000007E-2},{"$f":"IF(\"SPECCOST,,\"&AH$5&\",\"&$B954&\",\"=VLOOKUP(\"SPECCOST,,\"&AH$5&\",\"&$B954&\",\",data[],1),VLOOKUP(\"SPECCOST,,\"&AH$5&\",\"&$B954&\",\",data[],7),AH$909)","v":0.05},{"$f":"IF(\"SPECCOST,,\"&AI$5&\",\"&$B954&\",\"=VLOOKUP(\"SPECCOST,,\"&AI$5&\",\"&$B954&\",\",data[],1),VLOOKUP(\"SPECCOST,,\"&AI$5&\",\"&$B954&\",\",data[],7),AI$909)","v":0.01},null,null,{"$f":"IF(\"SPECCOST,,\"&AL$5&\",\"&$B954&\",\"=VLOOKUP(\"SPECCOST,,\"&AL$5&\",\"&$B954&\",\",data[],1),VLOOKUP(\"SPECCOST,,\"&AL$5&\",\"&$B954&\",\",data[],7),AL$909)","v":7.0000000000000007E-2},null,{"$f":"IF(\"SPECCOST,,\"&AN$5&\",\"&$B954&\",\"=VLOOKUP(\"SPECCOST,,\"&AN$5&\",\"&$B954&\",\",data[],1),VLOOKUP(\"SPECCOST,,\"&AN$5&\",\"&$B954&\",\",data[],7),AN$909)","v":7.0000000000000007E-2},null,null,null,null,null,null,null,{"$f":"IF(\"SPECCOST,,\"&AV$5&\",\"&$B954&\",\"=VLOOKUP(\"SPECCOST,,\"&AV$5&\",\"&$B954&\",\",data[],1),VLOOKUP(\"SPECCOST,,\"&AV$5&\",\"&$B954&\",\",data[],7),AV$909)","v":2.7940534453652541E-3},null,null,null,null,null,null,{"$f":"IF(\"SPECCOST,,\"&BC$5&\",\"&sel_country_code&\",\"=VLOOKUP(\"SPECCOST,,\"&BC$5&\",\"&sel_country_code&\",\",data[],1),VLOOKUP(\"SPECCOST,,\"&BC$5&\",\"&sel_country_code&\",\",data[],7),BC$909)","v":0.05},{"$f":"IF(\"SPECCOST,,\"&BD$5&\",\"&sel_country_code&\",\"=VLOOKUP(\"SPECCOST,,\"&BD$5&\",\"&sel_country_code&\",\",data[],1),VLOOKUP(\"SPECCOST,,\"&BD$5&\",\"&sel_country_code&\",\",data[],7),BD$909)","v":7.0000000000000007E-2},null,{"$f":"IF(\"SPECCOST,,\"&BF$5&\",\"&sel_country_code&\",\"=VLOOKUP(\"SPECCOST,,\"&BF$5&\",\"&sel_country_code&\",\",data[],1),VLOOKUP(\"SPECCOST,,\"&BF$5&\",\"&sel_country_code&\",\",data[],7),BF$909)","v":0.05},{"$f":"IF(\"SPECCOST,,\"&BG$5&\",\"&sel_country_code&\",\"=VLOOKUP(\"SPECCOST,,\"&BG$5&\",\"&sel_country_code&\",\",data[],1),VLOOKUP(\"SPECCOST,,\"&BG$5&\",\"&sel_country_code&\",\",data[],7),BG$909)","v":7.0000000000000007E-2}]
[null,"MAR-DRA",null,null,null,null,null,null,null,null,null,null,null,null,null,null,null,{"$f":"IF(\"SPECCOST,,\"&R$5&\",\"&$B955&\",\"=VLOOKUP(\"SPECCOST,,\"&R$5&\",\"&$B955&\",\",data[],1),VLOOKUP(\"SPECCOST,,\"&R$5&\",\"&$B955&\",\",data[],7),R$909)","v":1.190463995027624E-3},null,{"$f":"IF(\"SPECCOST,,\"&T$5&\",\"&$B955&\",\"=VLOOKUP(\"SPECCOST,,\"&T$5&\",\"&$B955&\",\",data[],1),VLOOKUP(\"SPECCOST,,\"&T$5&\",\"&$B955&\",\",data[],7),T$909)","v":0.05},{"$f":"IF(\"SPECCOST,,\"&U$5&\",\"&$B955&\",\"=VLOOKUP(\"SPECCOST,,\"&U$5&\",\"&$B955&\",\",data[],1),VLOOKUP(\"SPECCOST,,\"&U$5&\",\"&$B955&\",\",data[],7),U$909)","v":7.0000000000000007E-2},{"$f":"IF(\"SPECCOST,,\"&V$5&\",\"&$B955&\",\"=VLOOKUP(\"SPECCOST,,\"&V$5&\",\"&$B955&\",\",data[],1),VLOOKUP(\"SPECCOST,,\"&V$5&\",\"&$B955&\",\",data[],7),V$909)","v":7.0000000000000007E-2},null,null,{"$f":"IF(\"SPECCOST,,\"&Y$5&\",\"&$B955&\",\"=VLOOKUP(\"SPECCOST,,\"&Y$5&\",\"&$B955&\",\",data[],1),VLOOKUP(\"SPECCOST,,\"&Y$5&\",\"&$B955&\",\",data[],7),Y$909)","v":1.190463995027624E-3},null,{"$f":"IF(\"SPECCOST,,\"&AA$5&\",\"&$B955&\",\"=VLOOKUP(\"SPECCOST,,\"&AA$5&\",\"&$B955&\",\",data[],1),VLOOKUP(\"SPECCOST,,\"&AA$5&\",\"&$B955&\",\",data[],7),AA$909)","v":0.05},{"$f":"IF(\"SPECCOST,,\"&AB$5&\",\"&$B955&\",\"=VLOOKUP(\"SPECCOST,,\"&AB$5&\",\"&$B955&\",\",data[],1),VLOOKUP(\"SPECCOST,,\"&AB$5&\",\"&$B955&\",\",data[],7),AB$909)","v":7.0000000000000007E-2},{"$f":"IF(\"SPECCOST,,\"&AC$5&\",\"&$B955&\",\"=VLOOKUP(\"SPECCOST,,\"&AC$5&\",\"&$B955&\",\",data[],1),VLOOKUP(\"SPECCOST,,\"&AC$5&\",\"&$B955&\",\",data[],7),AC$909)","v":3.8577660276243091E-2},null,{"$f":"IF(\"SPECCOST,,\"&AE$5&\",\"&$B955&\",\"=VLOOKUP(\"SPECCOST,,\"&AE$5&\",\"&$B955&\",\",data[],1),VLOOKUP(\"SPECCOST,,\"&AE$5&\",\"&$B955&\",\",data[],7),AE$909)","v":0.05},{"$f":"IF(\"SPECCOST,,\"&AF$5&\",\"&$B955&\",\"=VLOOKUP(\"SPECCOST,,\"&AF$5&\",\"&$B955&\",\",data[],1),VLOOKUP(\"SPECCOST,,\"&AF$5&\",\"&$B955&\",\",data[],7),AF$909)","v":7.0000000000000007E-2},{"$f":"IF(\"SPECCOST,,\"&AG$5&\",\"&$B955&\",\"=VLOOKUP(\"SPECCOST,,\"&AG$5&\",\"&$B955&\",\",data[],1),VLOOKUP(\"SPECCOST,,\"&AG$5&\",\"&$B955&\",\",data[],7),AG$909)","v":7.0000000000000007E-2},{"$f":"IF(\"SPECCOST,,\"&AH$5&\",\"&$B955&\",\"=VLOOKUP(\"SPECCOST,,\"&AH$5&\",\"&$B955&\",\",data[],1),VLOOKUP(\"SPECCOST,,\"&AH$5&\",\"&$B955&\",\",data[],7),AH$909)","v":0.05},{"$f":"IF(\"SPECCOST,,\"&AI$5&\",\"&$B955&\",\"=VLOOKUP(\"SPECCOST,,\"&AI$5&\",\"&$B955&\",\",data[],1),VLOOKUP(\"SPECCOST,,\"&AI$5&\",\"&$B955&\",\",data[],7),AI$909)","v":0.01},null,null,{"$f":"IF(\"SPECCOST,,\"&AL$5&\",\"&$B955&\",\"=VLOOKUP(\"SPECCOST,,\"&AL$5&\",\"&$B955&\",\",data[],1),VLOOKUP(\"SPECCOST,,\"&AL$5&\",\"&$B955&\",\",data[],7),AL$909)","v":7.0000000000000007E-2},null,{"$f":"IF(\"SPECCOST,,\"&AN$5&\",\"&$B955&\",\"=VLOOKUP(\"SPECCOST,,\"&AN$5&\",\"&$B955&\",\",data[],1),VLOOKUP(\"SPECCOST,,\"&AN$5&\",\"&$B955&\",\",data[],7),AN$909)","v":7.0000000000000007E-2},null,null,null,null,null,null,null,{"$f":"IF(\"SPECCOST,,\"&AV$5&\",\"&$B955&\",\"=VLOOKUP(\"SPECCOST,,\"&AV$5&\",\"&$B955&\",\",data[],1),VLOOKUP(\"SPECCOST,,\"&AV$5&\",\"&$B955&\",\",data[],7),AV$909)","v":2.7940534453652541E-3},null,null,null,null,null,null,{"$f":"IF(\"SPECCOST,,\"&BC$5&\",\"&sel_country_code&\",\"=VLOOKUP(\"SPECCOST,,\"&BC$5&\",\"&sel_country_code&\",\",data[],1),VLOOKUP(\"SPECCOST,,\"&BC$5&\",\"&sel_country_code&\",\",data[],7),BC$909)","v":0.05},{"$f":"IF(\"SPECCOST,,\"&BD$5&\",\"&sel_country_code&\",\"=VLOOKUP(\"SPECCOST,,\"&BD$5&\",\"&sel_country_code&\",\",data[],1),VLOOKUP(\"SPECCOST,,\"&BD$5&\",\"&sel_country_code&\",\",data[],7),BD$909)","v":7.0000000000000007E-2},null,{"$f":"IF(\"SPECCOST,,\"&BF$5&\",\"&sel_country_code&\",\"=VLOOKUP(\"SPECCOST,,\"&BF$5&\",\"&sel_country_code&\",\",data[],1),VLOOKUP(\"SPECCOST,,\"&BF$5&\",\"&sel_country_code&\",\",data[],7),BF$909)","v":0.05},{"$f":"IF(\"SPECCOST,,\"&BG$5&\",\"&sel_country_code&\",\"=VLOOKUP(\"SPECCOST,,\"&BG$5&\",\"&sel_country_code&\",\",data[],1),VLOOKUP(\"SPECCOST,,\"&BG$5&\",\"&sel_country_code&\",\",data[],7),BG$909)","v":7.0000000000000007E-2}]
[null,"MAR-FES",null,null,null,null,null,null,null,null,null,null,null,null,null,null,null,{"$f":"IF(\"SPECCOST,,\"&R$5&\",\"&$B956&\",\"=VLOOKUP(\"SPECCOST,,\"&R$5&\",\"&$B956&\",\",data[],1),VLOOKUP(\"SPECCOST,,\"&R$5&\",\"&$B956&\",\",data[],7),R$909)","v":1.190463995027624E-3},null,{"$f":"IF(\"SPECCOST,,\"&T$5&\",\"&$B956&\",\"=VLOOKUP(\"SPECCOST,,\"&T$5&\",\"&$B956&\",\",data[],1),VLOOKUP(\"SPECCOST,,\"&T$5&\",\"&$B956&\",\",data[],7),T$909)","v":0.05},{"$f":"IF(\"SPECCOST,,\"&U$5&\",\"&$B956&\",\"=VLOOKUP(\"SPECCOST,,\"&U$5&\",\"&$B956&\",\",data[],1),VLOOKUP(\"SPECCOST,,\"&U$5&\",\"&$B956&\",\",data[],7),U$909)","v":7.0000000000000007E-2},{"$f":"IF(\"SPECCOST,,\"&V$5&\",\"&$B956&\",\"=VLOOKUP(\"SPECCOST,,\"&V$5&\",\"&$B956&\",\",data[],1),VLOOKUP(\"SPECCOST,,\"&V$5&\",\"&$B956&\",\",data[],7),V$909)","v":7.0000000000000007E-2},null,null,{"$f":"IF(\"SPECCOST,,\"&Y$5&\",\"&$B956&\",\"=VLOOKUP(\"SPECCOST,,\"&Y$5&\",\"&$B956&\",\",data[],1),VLOOKUP(\"SPECCOST,,\"&Y$5&\",\"&$B956&\",\",data[],7),Y$909)","v":1.190463995027624E-3},null,{"$f":"IF(\"SPECCOST,,\"&AA$5&\",\"&$B956&\",\"=VLOOKUP(\"SPECCOST,,\"&AA$5&\",\"&$B956&\",\",data[],1),VLOOKUP(\"SPECCOST,,\"&AA$5&\",\"&$B956&\",\",data[],7),AA$909)","v":0.05},{"$f":"IF(\"SPECCOST,,\"&AB$5&\",\"&$B956&\",\"=VLOOKUP(\"SPECCOST,,\"&AB$5&\",\"&$B956&\",\",data[],1),VLOOKUP(\"SPECCOST,,\"&AB$5&\",\"&$B956&\",\",data[],7),AB$909)","v":7.0000000000000007E-2},{"$f":"IF(\"SPECCOST,,\"&AC$5&\",\"&$B956&\",\"=VLOOKUP(\"SPECCOST,,\"&AC$5&\",\"&$B956&\",\",data[],1),VLOOKUP(\"SPECCOST,,\"&AC$5&\",\"&$B956&\",\",data[],7),AC$909)","v":3.8577660276243091E-2},null,{"$f":"IF(\"SPECCOST,,\"&AE$5&\",\"&$B956&\",\"=VLOOKUP(\"SPECCOST,,\"&AE$5&\",\"&$B956&\",\",data[],1),VLOOKUP(\"SPECCOST,,\"&AE$5&\",\"&$B956&\",\",data[],7),AE$909)","v":0.05},{"$f":"IF(\"SPECCOST,,\"&AF$5&\",\"&$B956&\",\"=VLOOKUP(\"SPECCOST,,\"&AF$5&\",\"&$B956&\",\",data[],1),VLOOKUP(\"SPECCOST,,\"&AF$5&\",\"&$B956&\",\",data[],7),AF$909)","v":7.0000000000000007E-2},{"$f":"IF(\"SPECCOST,,\"&AG$5&\",\"&$B956&\",\"=VLOOKUP(\"SPECCOST,,\"&AG$5&\",\"&$B956&\",\",data[],1),VLOOKUP(\"SPECCOST,,\"&AG$5&\",\"&$B956&\",\",data[],7),AG$909)","v":7.0000000000000007E-2},{"$f":"IF(\"SPECCOST,,\"&AH$5&\",\"&$B956&\",\"=VLOOKUP(\"SPECCOST,,\"&AH$5&\",\"&$B956&\",\",data[],1),VLOOKUP(\"SPECCOST,,\"&AH$5&\",\"&$B956&\",\",data[],7),AH$909)","v":0.05},{"$f":"IF(\"SPECCOST,,\"&AI$5&\",\"&$B956&\",\"=VLOOKUP(\"SPECCOST,,\"&AI$5&\",\"&$B956&\",\",data[],1),VLOOKUP(\"SPECCOST,,\"&AI$5&\",\"&$B956&\",\",data[],7),AI$909)","v":0.01},null,null,{"$f":"IF(\"SPECCOST,,\"&AL$5&\",\"&$B956&\",\"=VLOOKUP(\"SPECCOST,,\"&AL$5&\",\"&$B956&\",\",data[],1),VLOOKUP(\"SPECCOST,,\"&AL$5&\",\"&$B956&\",\",data[],7),AL$909)","v":7.0000000000000007E-2},null,{"$f":"IF(\"SPECCOST,,\"&AN$5&\",\"&$B956&\",\"=VLOOKUP(\"SPECCOST,,\"&AN$5&\",\"&$B956&\",\",data[],1),VLOOKUP(\"SPECCOST,,\"&AN$5&\",\"&$B956&\",\",data[],7),AN$909)","v":7.0000000000000007E-2},null,null,null,null,null,null,null,{"$f":"IF(\"SPECCOST,,\"&AV$5&\",\"&$B956&\",\"=VLOOKUP(\"SPECCOST,,\"&AV$5&\",\"&$B956&\",\",data[],1),VLOOKUP(\"SPECCOST,,\"&AV$5&\",\"&$B956&\",\",data[],7),AV$909)","v":2.7940534453652541E-3},null,null,null,null,null,null,{"$f":"IF(\"SPECCOST,,\"&BC$5&\",\"&sel_country_code&\",\"=VLOOKUP(\"SPECCOST,,\"&BC$5&\",\"&sel_country_code&\",\",data[],1),VLOOKUP(\"SPECCOST,,\"&BC$5&\",\"&sel_country_code&\",\",data[],7),BC$909)","v":0.05},{"$f":"IF(\"SPECCOST,,\"&BD$5&\",\"&sel_country_code&\",\"=VLOOKUP(\"SPECCOST,,\"&BD$5&\",\"&sel_country_code&\",\",data[],1),VLOOKUP(\"SPECCOST,,\"&BD$5&\",\"&sel_country_code&\",\",data[],7),BD$909)","v":7.0000000000000007E-2},null,{"$f":"IF(\"SPECCOST,,\"&BF$5&\",\"&sel_country_code&\",\"=VLOOKUP(\"SPECCOST,,\"&BF$5&\",\"&sel_country_code&\",\",data[],1),VLOOKUP(\"SPECCOST,,\"&BF$5&\",\"&sel_country_code&\",\",data[],7),BF$909)","v":0.05},{"$f":"IF(\"SPECCOST,,\"&BG$5&\",\"&sel_country_code&\",\"=VLOOKUP(\"SPECCOST,,\"&BG$5&\",\"&sel_country_code&\",\",data[],1),VLOOKUP(\"SPECCOST,,\"&BG$5&\",\"&sel_country_code&\",\",data[],7),BG$909)","v":7.0000000000000007E-2}]
[null,"MAR-GUE",null,null,null,null,null,null,null,null,null,null,null,null,null,null,null,{"$f":"IF(\"SPECCOST,,\"&R$5&\",\"&$B957&\",\"=VLOOKUP(\"SPECCOST,,\"&R$5&\",\"&$B957&\",\",data[],1),VLOOKUP(\"SPECCOST,,\"&R$5&\",\"&$B957&\",\",data[],7),R$909)","v":1.190463995027624E-3},null,{"$f":"IF(\"SPECCOST,,\"&T$5&\",\"&$B957&\",\"=VLOOKUP(\"SPECCOST,,\"&T$5&\",\"&$B957&\",\",data[],1),VLOOKUP(\"SPECCOST,,\"&T$5&\",\"&$B957&\",\",data[],7),T$909)","v":0.05},{"$f":"IF(\"SPECCOST,,\"&U$5&\",\"&$B957&\",\"=VLOOKUP(\"SPECCOST,,\"&U$5&\",\"&$B957&\",\",data[],1),VLOOKUP(\"SPECCOST,,\"&U$5&\",\"&$B957&\",\",data[],7),U$909)","v":7.0000000000000007E-2},{"$f":"IF(\"SPECCOST,,\"&V$5&\",\"&$B957&\",\"=VLOOKUP(\"SPECCOST,,\"&V$5&\",\"&$B957&\",\",data[],1),VLOOKUP(\"SPECCOST,,\"&V$5&\",\"&$B957&\",\",data[],7),V$909)","v":7.0000000000000007E-2},null,null,{"$f":"IF(\"SPECCOST,,\"&Y$5&\",\"&$B957&\",\"=VLOOKUP(\"SPECCOST,,\"&Y$5&\",\"&$B957&\",\",data[],1),VLOOKUP(\"SPECCOST,,\"&Y$5&\",\"&$B957&\",\",data[],7),Y$909)","v":1.190463995027624E-3},null,{"$f":"IF(\"SPECCOST,,\"&AA$5&\",\"&$B957&\",\"=VLOOKUP(\"SPECCOST,,\"&AA$5&\",\"&$B957&\",\",data[],1),VLOOKUP(\"SPECCOST,,\"&AA$5&\",\"&$B957&\",\",data[],7),AA$909)","v":0.05},{"$f":"IF(\"SPECCOST,,\"&AB$5&\",\"&$B957&\",\"=VLOOKUP(\"SPECCOST,,\"&AB$5&\",\"&$B957&\",\",data[],1),VLOOKUP(\"SPECCOST,,\"&AB$5&\",\"&$B957&\",\",data[],7),AB$909)","v":7.0000000000000007E-2},{"$f":"IF(\"SPECCOST,,\"&AC$5&\",\"&$B957&\",\"=VLOOKUP(\"SPECCOST,,\"&AC$5&\",\"&$B957&\",\",data[],1),VLOOKUP(\"SPECCOST,,\"&AC$5&\",\"&$B957&\",\",data[],7),AC$909)","v":3.8577660276243091E-2},null,{"$f":"IF(\"SPECCOST,,\"&AE$5&\",\"&$B957&\",\"=VLOOKUP(\"SPECCOST,,\"&AE$5&\",\"&$B957&\",\",data[],1),VLOOKUP(\"SPECCOST,,\"&AE$5&\",\"&$B957&\",\",data[],7),AE$909)","v":0.05},{"$f":"IF(\"SPECCOST,,\"&AF$5&\",\"&$B957&\",\"=VLOOKUP(\"SPECCOST,,\"&AF$5&\",\"&$B957&\",\",data[],1),VLOOKUP(\"SPECCOST,,\"&AF$5&\",\"&$B957&\",\",data[],7),AF$909)","v":7.0000000000000007E-2},{"$f":"IF(\"SPECCOST,,\"&AG$5&\",\"&$B957&\",\"=VLOOKUP(\"SPECCOST,,\"&AG$5&\",\"&$B957&\",\",data[],1),VLOOKUP(\"SPECCOST,,\"&AG$5&\",\"&$B957&\",\",data[],7),AG$909)","v":7.0000000000000007E-2},{"$f":"IF(\"SPECCOST,,\"&AH$5&\",\"&$B957&\",\"=VLOOKUP(\"SPECCOST,,\"&AH$5&\",\"&$B957&\",\",data[],1),VLOOKUP(\"SPECCOST,,\"&AH$5&\",\"&$B957&\",\",data[],7),AH$909)","v":0.05},{"$f":"IF(\"SPECCOST,,\"&AI$5&\",\"&$B957&\",\"=VLOOKUP(\"SPECCOST,,\"&AI$5&\",\"&$B957&\",\",data[],1),VLOOKUP(\"SPECCOST,,\"&AI$5&\",\"&$B957&\",\",data[],7),AI$909)","v":0.01},null,null,{"$f":"IF(\"SPECCOST,,\"&AL$5&\",\"&$B957&\",\"=VLOOKUP(\"SPECCOST,,\"&AL$5&\",\"&$B957&\",\",data[],1),VLOOKUP(\"SPECCOST,,\"&AL$5&\",\"&$B957&\",\",data[],7),AL$909)","v":7.0000000000000007E-2},null,{"$f":"IF(\"SPECCOST,,\"&AN$5&\",\"&$B957&\",\"=VLOOKUP(\"SPECCOST,,\"&AN$5&\",\"&$B957&\",\",data[],1),VLOOKUP(\"SPECCOST,,\"&AN$5&\",\"&$B957&\",\",data[],7),AN$909)","v":7.0000000000000007E-2},null,null,null,null,null,null,null,{"$f":"IF(\"SPECCOST,,\"&AV$5&\",\"&$B957&\",\"=VLOOKUP(\"SPECCOST,,\"&AV$5&\",\"&$B957&\",\",data[],1),VLOOKUP(\"SPECCOST,,\"&AV$5&\",\"&$B957&\",\",data[],7),AV$909)","v":2.7940534453652541E-3},null,null,null,null,null,null,{"$f":"IF(\"SPECCOST,,\"&BC$5&\",\"&sel_country_code&\",\"=VLOOKUP(\"SPECCOST,,\"&BC$5&\",\"&sel_country_code&\",\",data[],1),VLOOKUP(\"SPECCOST,,\"&BC$5&\",\"&sel_country_code&\",\",data[],7),BC$909)","v":0.05},{"$f":"IF(\"SPECCOST,,\"&BD$5&\",\"&sel_country_code&\",\"=VLOOKUP(\"SPECCOST,,\"&BD$5&\",\"&sel_country_code&\",\",data[],1),VLOOKUP(\"SPECCOST,,\"&BD$5&\",\"&sel_country_code&\",\",data[],7),BD$909)","v":7.0000000000000007E-2},null,{"$f":"IF(\"SPECCOST,,\"&BF$5&\",\"&sel_country_code&\",\"=VLOOKUP(\"SPECCOST,,\"&BF$5&\",\"&sel_country_code&\",\",data[],1),VLOOKUP(\"SPECCOST,,\"&BF$5&\",\"&sel_country_code&\",\",data[],7),BF$909)","v":0.05},{"$f":"IF(\"SPECCOST,,\"&BG$5&\",\"&sel_country_code&\",\"=VLOOKUP(\"SPECCOST,,\"&BG$5&\",\"&sel_country_code&\",\",data[],1),VLOOKUP(\"SPECCOST,,\"&BG$5&\",\"&sel_country_code&\",\",data[],7),BG$909)","v":7.0000000000000007E-2}]
[null,"MAR-LAA",null,null,null,null,null,null,null,null,null,null,null,null,null,null,null,{"$f":"IF(\"SPECCOST,,\"&R$5&\",\"&$B958&\",\"=VLOOKUP(\"SPECCOST,,\"&R$5&\",\"&$B958&\",\",data[],1),VLOOKUP(\"SPECCOST,,\"&R$5&\",\"&$B958&\",\",data[],7),R$909)","v":1.190463995027624E-3},null,{"$f":"IF(\"SPECCOST,,\"&T$5&\",\"&$B958&\",\"=VLOOKUP(\"SPECCOST,,\"&T$5&\",\"&$B958&\",\",data[],1),VLOOKUP(\"SPECCOST,,\"&T$5&\",\"&$B958&\",\",data[],7),T$909)","v":0.05},{"$f":"IF(\"SPECCOST,,\"&U$5&\",\"&$B958&\",\"=VLOOKUP(\"SPECCOST,,\"&U$5&\",\"&$B958&\",\",data[],1),VLOOKUP(\"SPECCOST,,\"&U$5&\",\"&$B958&\",\",data[],7),U$909)","v":7.0000000000000007E-2},{"$f":"IF(\"SPECCOST,,\"&V$5&\",\"&$B958&\",\"=VLOOKUP(\"SPECCOST,,\"&V$5&\",\"&$B958&\",\",data[],1),VLOOKUP(\"SPECCOST,,\"&V$5&\",\"&$B958&\",\",data[],7),V$909)","v":7.0000000000000007E-2},null,null,{"$f":"IF(\"SPECCOST,,\"&Y$5&\",\"&$B958&\",\"=VLOOKUP(\"SPECCOST,,\"&Y$5&\",\"&$B958&\",\",data[],1),VLOOKUP(\"SPECCOST,,\"&Y$5&\",\"&$B958&\",\",data[],7),Y$909)","v":1.190463995027624E-3},null,{"$f":"IF(\"SPECCOST,,\"&AA$5&\",\"&$B958&\",\"=VLOOKUP(\"SPECCOST,,\"&AA$5&\",\"&$B958&\",\",data[],1),VLOOKUP(\"SPECCOST,,\"&AA$5&\",\"&$B958&\",\",data[],7),AA$909)","v":0.05},{"$f":"IF(\"SPECCOST,,\"&AB$5&\",\"&$B958&\",\"=VLOOKUP(\"SPECCOST,,\"&AB$5&\",\"&$B958&\",\",data[],1),VLOOKUP(\"SPECCOST,,\"&AB$5&\",\"&$B958&\",\",data[],7),AB$909)","v":7.0000000000000007E-2},{"$f":"IF(\"SPECCOST,,\"&AC$5&\",\"&$B958&\",\"=VLOOKUP(\"SPECCOST,,\"&AC$5&\",\"&$B958&\",\",data[],1),VLOOKUP(\"SPECCOST,,\"&AC$5&\",\"&$B958&\",\",data[],7),AC$909)","v":3.8577660276243091E-2},null,{"$f":"IF(\"SPECCOST,,\"&AE$5&\",\"&$B958&\",\"=VLOOKUP(\"SPECCOST,,\"&AE$5&\",\"&$B958&\",\",data[],1),VLOOKUP(\"SPECCOST,,\"&AE$5&\",\"&$B958&\",\",data[],7),AE$909)","v":0.05},{"$f":"IF(\"SPECCOST,,\"&AF$5&\",\"&$B958&\",\"=VLOOKUP(\"SPECCOST,,\"&AF$5&\",\"&$B958&\",\",data[],1),VLOOKUP(\"SPECCOST,,\"&AF$5&\",\"&$B958&\",\",data[],7),AF$909)","v":7.0000000000000007E-2},{"$f":"IF(\"SPECCOST,,\"&AG$5&\",\"&$B958&\",\"=VLOOKUP(\"SPECCOST,,\"&AG$5&\",\"&$B958&\",\",data[],1),VLOOKUP(\"SPECCOST,,\"&AG$5&\",\"&$B958&\",\",data[],7),AG$909)","v":7.0000000000000007E-2},{"$f":"IF(\"SPECCOST,,\"&AH$5&\",\"&$B958&\",\"=VLOOKUP(\"SPECCOST,,\"&AH$5&\",\"&$B958&\",\",data[],1),VLOOKUP(\"SPECCOST,,\"&AH$5&\",\"&$B958&\",\",data[],7),AH$909)","v":0.05},{"$f":"IF(\"SPECCOST,,\"&AI$5&\",\"&$B958&\",\"=VLOOKUP(\"SPECCOST,,\"&AI$5&\",\"&$B958&\",\",data[],1),VLOOKUP(\"SPECCOST,,\"&AI$5&\",\"&$B958&\",\",data[],7),AI$909)","v":0.01},null,null,{"$f":"IF(\"SPECCOST,,\"&AL$5&\",\"&$B958&\",\"=VLOOKUP(\"SPECCOST,,\"&AL$5&\",\"&$B958&\",\",data[],1),VLOOKUP(\"SPECCOST,,\"&AL$5&\",\"&$B958&\",\",data[],7),AL$909)","v":7.0000000000000007E-2},null,{"$f":"IF(\"SPECCOST,,\"&AN$5&\",\"&$B958&\",\"=VLOOKUP(\"SPECCOST,,\"&AN$5&\",\"&$B958&\",\",data[],1),VLOOKUP(\"SPECCOST,,\"&AN$5&\",\"&$B958&\",\",data[],7),AN$909)","v":7.0000000000000007E-2},null,null,null,null,null,null,null,{"$f":"IF(\"SPECCOST,,\"&AV$5&\",\"&$B958&\",\"=VLOOKUP(\"SPECCOST,,\"&AV$5&\",\"&$B958&\",\",data[],1),VLOOKUP(\"SPECCOST,,\"&AV$5&\",\"&$B958&\",\",data[],7),AV$909)","v":2.7940534453652541E-3},null,null,null,null,null,null,{"$f":"IF(\"SPECCOST,,\"&BC$5&\",\"&sel_country_code&\",\"=VLOOKUP(\"SPECCOST,,\"&BC$5&\",\"&sel_country_code&\",\",data[],1),VLOOKUP(\"SPECCOST,,\"&BC$5&\",\"&sel_country_code&\",\",data[],7),BC$909)","v":0.05},{"$f":"IF(\"SPECCOST,,\"&BD$5&\",\"&sel_country_code&\",\"=VLOOKUP(\"SPECCOST,,\"&BD$5&\",\"&sel_country_code&\",\",data[],1),VLOOKUP(\"SPECCOST,,\"&BD$5&\",\"&sel_country_code&\",\",data[],7),BD$909)","v":7.0000000000000007E-2},null,{"$f":"IF(\"SPECCOST,,\"&BF$5&\",\"&sel_country_code&\",\"=VLOOKUP(\"SPECCOST,,\"&BF$5&\",\"&sel_country_code&\",\",data[],1),VLOOKUP(\"SPECCOST,,\"&BF$5&\",\"&sel_country_code&\",\",data[],7),BF$909)","v":0.05},{"$f":"IF(\"SPECCOST,,\"&BG$5&\",\"&sel_country_code&\",\"=VLOOKUP(\"SPECCOST,,\"&BG$5&\",\"&sel_country_code&\",\",data[],1),VLOOKUP(\"SPECCOST,,\"&BG$5&\",\"&sel_country_code&\",\",data[],7),BG$909)","v":7.0000000000000007E-2}]
[null,"MAR-LOR",null,null,null,null,null,null,null,null,null,null,null,null,null,null,null,{"$f":"IF(\"SPECCOST,,\"&R$5&\",\"&$B959&\",\"=VLOOKUP(\"SPECCOST,,\"&R$5&\",\"&$B959&\",\",data[],1),VLOOKUP(\"SPECCOST,,\"&R$5&\",\"&$B959&\",\",data[],7),R$909)","v":1.190463995027624E-3},null,{"$f":"IF(\"SPECCOST,,\"&T$5&\",\"&$B959&\",\"=VLOOKUP(\"SPECCOST,,\"&T$5&\",\"&$B959&\",\",data[],1),VLOOKUP(\"SPECCOST,,\"&T$5&\",\"&$B959&\",\",data[],7),T$909)","v":0.05},{"$f":"IF(\"SPECCOST,,\"&U$5&\",\"&$B959&\",\"=VLOOKUP(\"SPECCOST,,\"&U$5&\",\"&$B959&\",\",data[],1),VLOOKUP(\"SPECCOST,,\"&U$5&\",\"&$B959&\",\",data[],7),U$909)","v":7.0000000000000007E-2},{"$f":"IF(\"SPECCOST,,\"&V$5&\",\"&$B959&\",\"=VLOOKUP(\"SPECCOST,,\"&V$5&\",\"&$B959&\",\",data[],1),VLOOKUP(\"SPECCOST,,\"&V$5&\",\"&$B959&\",\",data[],7),V$909)","v":7.0000000000000007E-2},null,null,{"$f":"IF(\"SPECCOST,,\"&Y$5&\",\"&$B959&\",\"=VLOOKUP(\"SPECCOST,,\"&Y$5&\",\"&$B959&\",\",data[],1),VLOOKUP(\"SPECCOST,,\"&Y$5&\",\"&$B959&\",\",data[],7),Y$909)","v":1.190463995027624E-3},null,{"$f":"IF(\"SPECCOST,,\"&AA$5&\",\"&$B959&\",\"=VLOOKUP(\"SPECCOST,,\"&AA$5&\",\"&$B959&\",\",data[],1),VLOOKUP(\"SPECCOST,,\"&AA$5&\",\"&$B959&\",\",data[],7),AA$909)","v":0.05},{"$f":"IF(\"SPECCOST,,\"&AB$5&\",\"&$B959&\",\"=VLOOKUP(\"SPECCOST,,\"&AB$5&\",\"&$B959&\",\",data[],1),VLOOKUP(\"SPECCOST,,\"&AB$5&\",\"&$B959&\",\",data[],7),AB$909)","v":7.0000000000000007E-2},{"$f":"IF(\"SPECCOST,,\"&AC$5&\",\"&$B959&\",\"=VLOOKUP(\"SPECCOST,,\"&AC$5&\",\"&$B959&\",\",data[],1),VLOOKUP(\"SPECCOST,,\"&AC$5&\",\"&$B959&\",\",data[],7),AC$909)","v":3.8577660276243091E-2},null,{"$f":"IF(\"SPECCOST,,\"&AE$5&\",\"&$B959&\",\"=VLOOKUP(\"SPECCOST,,\"&AE$5&\",\"&$B959&\",\",data[],1),VLOOKUP(\"SPECCOST,,\"&AE$5&\",\"&$B959&\",\",data[],7),AE$909)","v":0.05},{"$f":"IF(\"SPECCOST,,\"&AF$5&\",\"&$B959&\",\"=VLOOKUP(\"SPECCOST,,\"&AF$5&\",\"&$B959&\",\",data[],1),VLOOKUP(\"SPECCOST,,\"&AF$5&\",\"&$B959&\",\",data[],7),AF$909)","v":7.0000000000000007E-2},{"$f":"IF(\"SPECCOST,,\"&AG$5&\",\"&$B959&\",\"=VLOOKUP(\"SPECCOST,,\"&AG$5&\",\"&$B959&\",\",data[],1),VLOOKUP(\"SPECCOST,,\"&AG$5&\",\"&$B959&\",\",data[],7),AG$909)","v":7.0000000000000007E-2},{"$f":"IF(\"SPECCOST,,\"&AH$5&\",\"&$B959&\",\"=VLOOKUP(\"SPECCOST,,\"&AH$5&\",\"&$B959&\",\",data[],1),VLOOKUP(\"SPECCOST,,\"&AH$5&\",\"&$B959&\",\",data[],7),AH$909)","v":0.05},{"$f":"IF(\"SPECCOST,,\"&AI$5&\",\"&$B959&\",\"=VLOOKUP(\"SPECCOST,,\"&AI$5&\",\"&$B959&\",\",data[],1),VLOOKUP(\"SPECCOST,,\"&AI$5&\",\"&$B959&\",\",data[],7),AI$909)","v":0.01},null,null,{"$f":"IF(\"SPECCOST,,\"&AL$5&\",\"&$B959&\",\"=VLOOKUP(\"SPECCOST,,\"&AL$5&\",\"&$B959&\",\",data[],1),VLOOKUP(\"SPECCOST,,\"&AL$5&\",\"&$B959&\",\",data[],7),AL$909)","v":7.0000000000000007E-2},null,{"$f":"IF(\"SPECCOST,,\"&AN$5&\",\"&$B959&\",\"=VLOOKUP(\"SPECCOST,,\"&AN$5&\",\"&$B959&\",\",data[],1),VLOOKUP(\"SPECCOST,,\"&AN$5&\",\"&$B959&\",\",data[],7),AN$909)","v":7.0000000000000007E-2},null,null,null,null,null,null,null,{"$f":"IF(\"SPECCOST,,\"&AV$5&\",\"&$B959&\",\"=VLOOKUP(\"SPECCOST,,\"&AV$5&\",\"&$B959&\",\",data[],1),VLOOKUP(\"SPECCOST,,\"&AV$5&\",\"&$B959&\",\",data[],7),AV$909)","v":2.7940534453652541E-3},null,null,null,null,null,null,{"$f":"IF(\"SPECCOST,,\"&BC$5&\",\"&sel_country_code&\",\"=VLOOKUP(\"SPECCOST,,\"&BC$5&\",\"&sel_country_code&\",\",data[],1),VLOOKUP(\"SPECCOST,,\"&BC$5&\",\"&sel_country_code&\",\",data[],7),BC$909)","v":0.05},{"$f":"IF(\"SPECCOST,,\"&BD$5&\",\"&sel_country_code&\",\"=VLOOKUP(\"SPECCOST,,\"&BD$5&\",\"&sel_country_code&\",\",data[],1),VLOOKUP(\"SPECCOST,,\"&BD$5&\",\"&sel_country_code&\",\",data[],7),BD$909)","v":7.0000000000000007E-2},null,{"$f":"IF(\"SPECCOST,,\"&BF$5&\",\"&sel_country_code&\",\"=VLOOKUP(\"SPECCOST,,\"&BF$5&\",\"&sel_country_code&\",\",data[],1),VLOOKUP(\"SPECCOST,,\"&BF$5&\",\"&sel_country_code&\",\",data[],7),BF$909)","v":0.05},{"$f":"IF(\"SPECCOST,,\"&BG$5&\",\"&sel_country_code&\",\"=VLOOKUP(\"SPECCOST,,\"&BG$5&\",\"&sel_country_code&\",\",data[],1),VLOOKUP(\"SPECCOST,,\"&BG$5&\",\"&sel_country_code&\",\",data[],7),BG$909)","v":7.0000000000000007E-2}]
[null,"MAR-MAR",null,null,null,null,null,null,null,null,null,null,null,null,null,null,null,{"$f":"IF(\"SPECCOST,,\"&R$5&\",\"&$B960&\",\"=VLOOKUP(\"SPECCOST,,\"&R$5&\",\"&$B960&\",\",data[],1),VLOOKUP(\"SPECCOST,,\"&R$5&\",\"&$B960&\",\",data[],7),R$909)","v":1.190463995027624E-3},null,{"$f":"IF(\"SPECCOST,,\"&T$5&\",\"&$B960&\",\"=VLOOKUP(\"SPECCOST,,\"&T$5&\",\"&$B960&\",\",data[],1),VLOOKUP(\"SPECCOST,,\"&T$5&\",\"&$B960&\",\",data[],7),T$909)","v":0.05},{"$f":"IF(\"SPECCOST,,\"&U$5&\",\"&$B960&\",\"=VLOOKUP(\"SPECCOST,,\"&U$5&\",\"&$B960&\",\",data[],1),VLOOKUP(\"SPECCOST,,\"&U$5&\",\"&$B960&\",\",data[],7),U$909)","v":7.0000000000000007E-2},{"$f":"IF(\"SPECCOST,,\"&V$5&\",\"&$B960&\",\"=VLOOKUP(\"SPECCOST,,\"&V$5&\",\"&$B960&\",\",data[],1),VLOOKUP(\"SPECCOST,,\"&V$5&\",\"&$B960&\",\",data[],7),V$909)","v":7.0000000000000007E-2},null,null,{"$f":"IF(\"SPECCOST,,\"&Y$5&\",\"&$B960&\",\"=VLOOKUP(\"SPECCOST,,\"&Y$5&\",\"&$B960&\",\",data[],1),VLOOKUP(\"SPECCOST,,\"&Y$5&\",\"&$B960&\",\",data[],7),Y$909)","v":1.190463995027624E-3},null,{"$f":"IF(\"SPECCOST,,\"&AA$5&\",\"&$B960&\",\"=VLOOKUP(\"SPECCOST,,\"&AA$5&\",\"&$B960&\",\",data[],1),VLOOKUP(\"SPECCOST,,\"&AA$5&\",\"&$B960&\",\",data[],7),AA$909)","v":0.05},{"$f":"IF(\"SPECCOST,,\"&AB$5&\",\"&$B960&\",\"=VLOOKUP(\"SPECCOST,,\"&AB$5&\",\"&$B960&\",\",data[],1),VLOOKUP(\"SPECCOST,,\"&AB$5&\",\"&$B960&\",\",data[],7),AB$909)","v":7.0000000000000007E-2},{"$f":"IF(\"SPECCOST,,\"&AC$5&\",\"&$B960&\",\"=VLOOKUP(\"SPECCOST,,\"&AC$5&\",\"&$B960&\",\",data[],1),VLOOKUP(\"SPECCOST,,\"&AC$5&\",\"&$B960&\",\",data[],7),AC$909)","v":3.8577660276243091E-2},null,{"$f":"IF(\"SPECCOST,,\"&AE$5&\",\"&$B960&\",\"=VLOOKUP(\"SPECCOST,,\"&AE$5&\",\"&$B960&\",\",data[],1),VLOOKUP(\"SPECCOST,,\"&AE$5&\",\"&$B960&\",\",data[],7),AE$909)","v":0.05},{"$f":"IF(\"SPECCOST,,\"&AF$5&\",\"&$B960&\",\"=VLOOKUP(\"SPECCOST,,\"&AF$5&\",\"&$B960&\",\",data[],1),VLOOKUP(\"SPECCOST,,\"&AF$5&\",\"&$B960&\",\",data[],7),AF$909)","v":7.0000000000000007E-2},{"$f":"IF(\"SPECCOST,,\"&AG$5&\",\"&$B960&\",\"=VLOOKUP(\"SPECCOST,,\"&AG$5&\",\"&$B960&\",\",data[],1),VLOOKUP(\"SPECCOST,,\"&AG$5&\",\"&$B960&\",\",data[],7),AG$909)","v":7.0000000000000007E-2},{"$f":"IF(\"SPECCOST,,\"&AH$5&\",\"&$B960&\",\"=VLOOKUP(\"SPECCOST,,\"&AH$5&\",\"&$B960&\",\",data[],1),VLOOKUP(\"SPECCOST,,\"&AH$5&\",\"&$B960&\",\",data[],7),AH$909)","v":0.05},{"$f":"IF(\"SPECCOST,,\"&AI$5&\",\"&$B960&\",\"=VLOOKUP(\"SPECCOST,,\"&AI$5&\",\"&$B960&\",\",data[],1),VLOOKUP(\"SPECCOST,,\"&AI$5&\",\"&$B960&\",\",data[],7),AI$909)","v":0.01},null,null,{"$f":"IF(\"SPECCOST,,\"&AL$5&\",\"&$B960&\",\"=VLOOKUP(\"SPECCOST,,\"&AL$5&\",\"&$B960&\",\",data[],1),VLOOKUP(\"SPECCOST,,\"&AL$5&\",\"&$B960&\",\",data[],7),AL$909)","v":7.0000000000000007E-2},null,{"$f":"IF(\"SPECCOST,,\"&AN$5&\",\"&$B960&\",\"=VLOOKUP(\"SPECCOST,,\"&AN$5&\",\"&$B960&\",\",data[],1),VLOOKUP(\"SPECCOST,,\"&AN$5&\",\"&$B960&\",\",data[],7),AN$909)","v":7.0000000000000007E-2},null,null,null,null,null,null,null,{"$f":"IF(\"SPECCOST,,\"&AV$5&\",\"&$B960&\",\"=VLOOKUP(\"SPECCOST,,\"&AV$5&\",\"&$B960&\",\",data[],1),VLOOKUP(\"SPECCOST,,\"&AV$5&\",\"&$B960&\",\",data[],7),AV$909)","v":2.7940534453652541E-3},null,null,null,null,null,null,{"$f":"IF(\"SPECCOST,,\"&BC$5&\",\"&sel_country_code&\",\"=VLOOKUP(\"SPECCOST,,\"&BC$5&\",\"&sel_country_code&\",\",data[],1),VLOOKUP(\"SPECCOST,,\"&BC$5&\",\"&sel_country_code&\",\",data[],7),BC$909)","v":0.05},{"$f":"IF(\"SPECCOST,,\"&BD$5&\",\"&sel_country_code&\",\"=VLOOKUP(\"SPECCOST,,\"&BD$5&\",\"&sel_country_code&\",\",data[],1),VLOOKUP(\"SPECCOST,,\"&BD$5&\",\"&sel_country_code&\",\",data[],7),BD$909)","v":7.0000000000000007E-2},null,{"$f":"IF(\"SPECCOST,,\"&BF$5&\",\"&sel_country_code&\",\"=VLOOKUP(\"SPECCOST,,\"&BF$5&\",\"&sel_country_code&\",\",data[],1),VLOOKUP(\"SPECCOST,,\"&BF$5&\",\"&sel_country_code&\",\",data[],7),BF$909)","v":0.05},{"$f":"IF(\"SPECCOST,,\"&BG$5&\",\"&sel_country_code&\",\"=VLOOKUP(\"SPECCOST,,\"&BG$5&\",\"&sel_country_code&\",\",data[],1),VLOOKUP(\"SPECCOST,,\"&BG$5&\",\"&sel_country_code&\",\",data[],7),BG$909)","v":7.0000000000000007E-2}]
[null,"MAR-RAB",null,null,null,null,null,null,null,null,null,null,null,null,null,null,null,{"$f":"IF(\"SPECCOST,,\"&R$5&\",\"&$B961&\",\"=VLOOKUP(\"SPECCOST,,\"&R$5&\",\"&$B961&\",\",data[],1),VLOOKUP(\"SPECCOST,,\"&R$5&\",\"&$B961&\",\",data[],7),R$909)","v":1.190463995027624E-3},null,{"$f":"IF(\"SPECCOST,,\"&T$5&\",\"&$B961&\",\"=VLOOKUP(\"SPECCOST,,\"&T$5&\",\"&$B961&\",\",data[],1),VLOOKUP(\"SPECCOST,,\"&T$5&\",\"&$B961&\",\",data[],7),T$909)","v":0.05},{"$f":"IF(\"SPECCOST,,\"&U$5&\",\"&$B961&\",\"=VLOOKUP(\"SPECCOST,,\"&U$5&\",\"&$B961&\",\",data[],1),VLOOKUP(\"SPECCOST,,\"&U$5&\",\"&$B961&\",\",data[],7),U$909)","v":7.0000000000000007E-2},{"$f":"IF(\"SPECCOST,,\"&V$5&\",\"&$B961&\",\"=VLOOKUP(\"SPECCOST,,\"&V$5&\",\"&$B961&\",\",data[],1),VLOOKUP(\"SPECCOST,,\"&V$5&\",\"&$B961&\",\",data[],7),V$909)","v":7.0000000000000007E-2},null,null,{"$f":"IF(\"SPECCOST,,\"&Y$5&\",\"&$B961&\",\"=VLOOKUP(\"SPECCOST,,\"&Y$5&\",\"&$B961&\",\",data[],1),VLOOKUP(\"SPECCOST,,\"&Y$5&\",\"&$B961&\",\",data[],7),Y$909)","v":1.190463995027624E-3},null,{"$f":"IF(\"SPECCOST,,\"&AA$5&\",\"&$B961&\",\"=VLOOKUP(\"SPECCOST,,\"&AA$5&\",\"&$B961&\",\",data[],1),VLOOKUP(\"SPECCOST,,\"&AA$5&\",\"&$B961&\",\",data[],7),AA$909)","v":0.05},{"$f":"IF(\"SPECCOST,,\"&AB$5&\",\"&$B961&\",\"=VLOOKUP(\"SPECCOST,,\"&AB$5&\",\"&$B961&\",\",data[],1),VLOOKUP(\"SPECCOST,,\"&AB$5&\",\"&$B961&\",\",data[],7),AB$909)","v":7.0000000000000007E-2},{"$f":"IF(\"SPECCOST,,\"&AC$5&\",\"&$B961&\",\"=VLOOKUP(\"SPECCOST,,\"&AC$5&\",\"&$B961&\",\",data[],1),VLOOKUP(\"SPECCOST,,\"&AC$5&\",\"&$B961&\",\",data[],7),AC$909)","v":3.8577660276243091E-2},null,{"$f":"IF(\"SPECCOST,,\"&AE$5&\",\"&$B961&\",\"=VLOOKUP(\"SPECCOST,,\"&AE$5&\",\"&$B961&\",\",data[],1),VLOOKUP(\"SPECCOST,,\"&AE$5&\",\"&$B961&\",\",data[],7),AE$909)","v":0.05},{"$f":"IF(\"SPECCOST,,\"&AF$5&\",\"&$B961&\",\"=VLOOKUP(\"SPECCOST,,\"&AF$5&\",\"&$B961&\",\",data[],1),VLOOKUP(\"SPECCOST,,\"&AF$5&\",\"&$B961&\",\",data[],7),AF$909)","v":7.0000000000000007E-2},{"$f":"IF(\"SPECCOST,,\"&AG$5&\",\"&$B961&\",\"=VLOOKUP(\"SPECCOST,,\"&AG$5&\",\"&$B961&\",\",data[],1),VLOOKUP(\"SPECCOST,,\"&AG$5&\",\"&$B961&\",\",data[],7),AG$909)","v":7.0000000000000007E-2},{"$f":"IF(\"SPECCOST,,\"&AH$5&\",\"&$B961&\",\"=VLOOKUP(\"SPECCOST,,\"&AH$5&\",\"&$B961&\",\",data[],1),VLOOKUP(\"SPECCOST,,\"&AH$5&\",\"&$B961&\",\",data[],7),AH$909)","v":0.05},{"$f":"IF(\"SPECCOST,,\"&AI$5&\",\"&$B961&\",\"=VLOOKUP(\"SPECCOST,,\"&AI$5&\",\"&$B961&\",\",data[],1),VLOOKUP(\"SPECCOST,,\"&AI$5&\",\"&$B961&\",\",data[],7),AI$909)","v":0.01},null,null,{"$f":"IF(\"SPECCOST,,\"&AL$5&\",\"&$B961&\",\"=VLOOKUP(\"SPECCOST,,\"&AL$5&\",\"&$B961&\",\",data[],1),VLOOKUP(\"SPECCOST,,\"&AL$5&\",\"&$B961&\",\",data[],7),AL$909)","v":7.0000000000000007E-2},null,{"$f":"IF(\"SPECCOST,,\"&AN$5&\",\"&$B961&\",\"=VLOOKUP(\"SPECCOST,,\"&AN$5&\",\"&$B961&\",\",data[],1),VLOOKUP(\"SPECCOST,,\"&AN$5&\",\"&$B961&\",\",data[],7),AN$909)","v":7.0000000000000007E-2},null,null,null,null,null,null,null,{"$f":"IF(\"SPECCOST,,\"&AV$5&\",\"&$B961&\",\"=VLOOKUP(\"SPECCOST,,\"&AV$5&\",\"&$B961&\",\",data[],1),VLOOKUP(\"SPECCOST,,\"&AV$5&\",\"&$B961&\",\",data[],7),AV$909)","v":2.7940534453652541E-3},null,null,null,null,null,null,{"$f":"IF(\"SPECCOST,,\"&BC$5&\",\"&sel_country_code&\",\"=VLOOKUP(\"SPECCOST,,\"&BC$5&\",\"&sel_country_code&\",\",data[],1),VLOOKUP(\"SPECCOST,,\"&BC$5&\",\"&sel_country_code&\",\",data[],7),BC$909)","v":0.05},{"$f":"IF(\"SPECCOST,,\"&BD$5&\",\"&sel_country_code&\",\"=VLOOKUP(\"SPECCOST,,\"&BD$5&\",\"&sel_country_code&\",\",data[],1),VLOOKUP(\"SPECCOST,,\"&BD$5&\",\"&sel_country_code&\",\",data[],7),BD$909)","v":7.0000000000000007E-2},null,{"$f":"IF(\"SPECCOST,,\"&BF$5&\",\"&sel_country_code&\",\"=VLOOKUP(\"SPECCOST,,\"&BF$5&\",\"&sel_country_code&\",\",data[],1),VLOOKUP(\"SPECCOST,,\"&BF$5&\",\"&sel_country_code&\",\",data[],7),BF$909)","v":0.05},{"$f":"IF(\"SPECCOST,,\"&BG$5&\",\"&sel_country_code&\",\"=VLOOKUP(\"SPECCOST,,\"&BG$5&\",\"&sel_country_code&\",\",data[],1),VLOOKUP(\"SPECCOST,,\"&BG$5&\",\"&sel_country_code&\",\",data[],7),BG$909)","v":7.0000000000000007E-2}]
[null,"MAR-SOU",null,null,null,null,null,null,null,null,null,null,null,null,null,null,null,{"$f":"IF(\"SPECCOST,,\"&R$5&\",\"&$B962&\",\"=VLOOKUP(\"SPECCOST,,\"&R$5&\",\"&$B962&\",\",data[],1),VLOOKUP(\"SPECCOST,,\"&R$5&\",\"&$B962&\",\",data[],7),R$909)","v":1.190463995027624E-3},null,{"$f":"IF(\"SPECCOST,,\"&T$5&\",\"&$B962&\",\"=VLOOKUP(\"SPECCOST,,\"&T$5&\",\"&$B962&\",\",data[],1),VLOOKUP(\"SPECCOST,,\"&T$5&\",\"&$B962&\",\",data[],7),T$909)","v":0.05},{"$f":"IF(\"SPECCOST,,\"&U$5&\",\"&$B962&\",\"=VLOOKUP(\"SPECCOST,,\"&U$5&\",\"&$B962&\",\",data[],1),VLOOKUP(\"SPECCOST,,\"&U$5&\",\"&$B962&\",\",data[],7),U$909)","v":7.0000000000000007E-2},{"$f":"IF(\"SPECCOST,,\"&V$5&\",\"&$B962&\",\"=VLOOKUP(\"SPECCOST,,\"&V$5&\",\"&$B962&\",\",data[],1),VLOOKUP(\"SPECCOST,,\"&V$5&\",\"&$B962&\",\",data[],7),V$909)","v":7.0000000000000007E-2},null,null,{"$f":"IF(\"SPECCOST,,\"&Y$5&\",\"&$B962&\",\"=VLOOKUP(\"SPECCOST,,\"&Y$5&\",\"&$B962&\",\",data[],1),VLOOKUP(\"SPECCOST,,\"&Y$5&\",\"&$B962&\",\",data[],7),Y$909)","v":1.190463995027624E-3},null,{"$f":"IF(\"SPECCOST,,\"&AA$5&\",\"&$B962&\",\"=VLOOKUP(\"SPECCOST,,\"&AA$5&\",\"&$B962&\",\",data[],1),VLOOKUP(\"SPECCOST,,\"&AA$5&\",\"&$B962&\",\",data[],7),AA$909)","v":0.05},{"$f":"IF(\"SPECCOST,,\"&AB$5&\",\"&$B962&\",\"=VLOOKUP(\"SPECCOST,,\"&AB$5&\",\"&$B962&\",\",data[],1),VLOOKUP(\"SPECCOST,,\"&AB$5&\",\"&$B962&\",\",data[],7),AB$909)","v":7.0000000000000007E-2},{"$f":"IF(\"SPECCOST,,\"&AC$5&\",\"&$B962&\",\"=VLOOKUP(\"SPECCOST,,\"&AC$5&\",\"&$B962&\",\",data[],1),VLOOKUP(\"SPECCOST,,\"&AC$5&\",\"&$B962&\",\",data[],7),AC$909)","v":3.8577660276243091E-2},null,{"$f":"IF(\"SPECCOST,,\"&AE$5&\",\"&$B962&\",\"=VLOOKUP(\"SPECCOST,,\"&AE$5&\",\"&$B962&\",\",data[],1),VLOOKUP(\"SPECCOST,,\"&AE$5&\",\"&$B962&\",\",data[],7),AE$909)","v":0.05},{"$f":"IF(\"SPECCOST,,\"&AF$5&\",\"&$B962&\",\"=VLOOKUP(\"SPECCOST,,\"&AF$5&\",\"&$B962&\",\",data[],1),VLOOKUP(\"SPECCOST,,\"&AF$5&\",\"&$B962&\",\",data[],7),AF$909)","v":7.0000000000000007E-2},{"$f":"IF(\"SPECCOST,,\"&AG$5&\",\"&$B962&\",\"=VLOOKUP(\"SPECCOST,,\"&AG$5&\",\"&$B962&\",\",data[],1),VLOOKUP(\"SPECCOST,,\"&AG$5&\",\"&$B962&\",\",data[],7),AG$909)","v":7.0000000000000007E-2},{"$f":"IF(\"SPECCOST,,\"&AH$5&\",\"&$B962&\",\"=VLOOKUP(\"SPECCOST,,\"&AH$5&\",\"&$B962&\",\",data[],1),VLOOKUP(\"SPECCOST,,\"&AH$5&\",\"&$B962&\",\",data[],7),AH$909)","v":0.05},{"$f":"IF(\"SPECCOST,,\"&AI$5&\",\"&$B962&\",\"=VLOOKUP(\"SPECCOST,,\"&AI$5&\",\"&$B962&\",\",data[],1),VLOOKUP(\"SPECCOST,,\"&AI$5&\",\"&$B962&\",\",data[],7),AI$909)","v":0.01},null,null,{"$f":"IF(\"SPECCOST,,\"&AL$5&\",\"&$B962&\",\"=VLOOKUP(\"SPECCOST,,\"&AL$5&\",\"&$B962&\",\",data[],1),VLOOKUP(\"SPECCOST,,\"&AL$5&\",\"&$B962&\",\",data[],7),AL$909)","v":7.0000000000000007E-2},null,{"$f":"IF(\"SPECCOST,,\"&AN$5&\",\"&$B962&\",\"=VLOOKUP(\"SPECCOST,,\"&AN$5&\",\"&$B962&\",\",data[],1),VLOOKUP(\"SPECCOST,,\"&AN$5&\",\"&$B962&\",\",data[],7),AN$909)","v":7.0000000000000007E-2},null,null,null,null,null,null,null,{"$f":"IF(\"SPECCOST,,\"&AV$5&\",\"&$B962&\",\"=VLOOKUP(\"SPECCOST,,\"&AV$5&\",\"&$B962&\",\",data[],1),VLOOKUP(\"SPECCOST,,\"&AV$5&\",\"&$B962&\",\",data[],7),AV$909)","v":2.7940534453652541E-3},null,null,null,null,null,null,{"$f":"IF(\"SPECCOST,,\"&BC$5&\",\"&sel_country_code&\",\"=VLOOKUP(\"SPECCOST,,\"&BC$5&\",\"&sel_country_code&\",\",data[],1),VLOOKUP(\"SPECCOST,,\"&BC$5&\",\"&sel_country_code&\",\",data[],7),BC$909)","v":0.05},{"$f":"IF(\"SPECCOST,,\"&BD$5&\",\"&sel_country_code&\",\"=VLOOKUP(\"SPECCOST,,\"&BD$5&\",\"&sel_country_code&\",\",data[],1),VLOOKUP(\"SPECCOST,,\"&BD$5&\",\"&sel_country_code&\",\",data[],7),BD$909)","v":7.0000000000000007E-2},null,{"$f":"IF(\"SPECCOST,,\"&BF$5&\",\"&sel_country_code&\",\"=VLOOKUP(\"SPECCOST,,\"&BF$5&\",\"&sel_country_code&\",\",data[],1),VLOOKUP(\"SPECCOST,,\"&BF$5&\",\"&sel_country_code&\",\",data[],7),BF$909)","v":0.05},{"$f":"IF(\"SPECCOST,,\"&BG$5&\",\"&sel_country_code&\",\"=VLOOKUP(\"SPECCOST,,\"&BG$5&\",\"&sel_country_code&\",\",data[],1),VLOOKUP(\"SPECCOST,,\"&BG$5&\",\"&sel_country_code&\",\",data[],7),BG$909)","v":7.0000000000000007E-2}]
[null,"MAR-TAN",null,null,null,null,null,null,null,null,null,null,null,null,null,null,null,{"$f":"IF(\"SPECCOST,,\"&R$5&\",\"&$B963&\",\"=VLOOKUP(\"SPECCOST,,\"&R$5&\",\"&$B963&\",\",data[],1),VLOOKUP(\"SPECCOST,,\"&R$5&\",\"&$B963&\",\",data[],7),R$909)","v":1.190463995027624E-3},null,{"$f":"IF(\"SPECCOST,,\"&T$5&\",\"&$B963&\",\"=VLOOKUP(\"SPECCOST,,\"&T$5&\",\"&$B963&\",\",data[],1),VLOOKUP(\"SPECCOST,,\"&T$5&\",\"&$B963&\",\",data[],7),T$909)","v":0.05},{"$f":"IF(\"SPECCOST,,\"&U$5&\",\"&$B963&\",\"=VLOOKUP(\"SPECCOST,,\"&U$5&\",\"&$B963&\",\",data[],1),VLOOKUP(\"SPECCOST,,\"&U$5&\",\"&$B963&\",\",data[],7),U$909)","v":7.0000000000000007E-2},{"$f":"IF(\"SPECCOST,,\"&V$5&\",\"&$B963&\",\"=VLOOKUP(\"SPECCOST,,\"&V$5&\",\"&$B963&\",\",data[],1),VLOOKUP(\"SPECCOST,,\"&V$5&\",\"&$B963&\",\",data[],7),V$909)","v":7.0000000000000007E-2},null,null,{"$f":"IF(\"SPECCOST,,\"&Y$5&\",\"&$B963&\",\"=VLOOKUP(\"SPECCOST,,\"&Y$5&\",\"&$B963&\",\",data[],1),VLOOKUP(\"SPECCOST,,\"&Y$5&\",\"&$B963&\",\",data[],7),Y$909)","v":1.190463995027624E-3},null,{"$f":"IF(\"SPECCOST,,\"&AA$5&\",\"&$B963&\",\"=VLOOKUP(\"SPECCOST,,\"&AA$5&\",\"&$B963&\",\",data[],1),VLOOKUP(\"SPECCOST,,\"&AA$5&\",\"&$B963&\",\",data[],7),AA$909)","v":0.05},{"$f":"IF(\"SPECCOST,,\"&AB$5&\",\"&$B963&\",\"=VLOOKUP(\"SPECCOST,,\"&AB$5&\",\"&$B963&\",\",data[],1),VLOOKUP(\"SPECCOST,,\"&AB$5&\",\"&$B963&\",\",data[],7),AB$909)","v":7.0000000000000007E-2},{"$f":"IF(\"SPECCOST,,\"&AC$5&\",\"&$B963&\",\"=VLOOKUP(\"SPECCOST,,\"&AC$5&\",\"&$B963&\",\",data[],1),VLOOKUP(\"SPECCOST,,\"&AC$5&\",\"&$B963&\",\",data[],7),AC$909)","v":3.8577660276243091E-2},null,{"$f":"IF(\"SPECCOST,,\"&AE$5&\",\"&$B963&\",\"=VLOOKUP(\"SPECCOST,,\"&AE$5&\",\"&$B963&\",\",data[],1),VLOOKUP(\"SPECCOST,,\"&AE$5&\",\"&$B963&\",\",data[],7),AE$909)","v":0.05},{"$f":"IF(\"SPECCOST,,\"&AF$5&\",\"&$B963&\",\"=VLOOKUP(\"SPECCOST,,\"&AF$5&\",\"&$B963&\",\",data[],1),VLOOKUP(\"SPECCOST,,\"&AF$5&\",\"&$B963&\",\",data[],7),AF$909)","v":7.0000000000000007E-2},{"$f":"IF(\"SPECCOST,,\"&AG$5&\",\"&$B963&\",\"=VLOOKUP(\"SPECCOST,,\"&AG$5&\",\"&$B963&\",\",data[],1),VLOOKUP(\"SPECCOST,,\"&AG$5&\",\"&$B963&\",\",data[],7),AG$909)","v":7.0000000000000007E-2},{"$f":"IF(\"SPECCOST,,\"&AH$5&\",\"&$B963&\",\"=VLOOKUP(\"SPECCOST,,\"&AH$5&\",\"&$B963&\",\",data[],1),VLOOKUP(\"SPECCOST,,\"&AH$5&\",\"&$B963&\",\",data[],7),AH$909)","v":0.05},{"$f":"IF(\"SPECCOST,,\"&AI$5&\",\"&$B963&\",\"=VLOOKUP(\"SPECCOST,,\"&AI$5&\",\"&$B963&\",\",data[],1),VLOOKUP(\"SPECCOST,,\"&AI$5&\",\"&$B963&\",\",data[],7),AI$909)","v":0.01},null,null,{"$f":"IF(\"SPECCOST,,\"&AL$5&\",\"&$B963&\",\"=VLOOKUP(\"SPECCOST,,\"&AL$5&\",\"&$B963&\",\",data[],1),VLOOKUP(\"SPECCOST,,\"&AL$5&\",\"&$B963&\",\",data[],7),AL$909)","v":7.0000000000000007E-2},null,{"$f":"IF(\"SPECCOST,,\"&AN$5&\",\"&$B963&\",\"=VLOOKUP(\"SPECCOST,,\"&AN$5&\",\"&$B963&\",\",data[],1),VLOOKUP(\"SPECCOST,,\"&AN$5&\",\"&$B963&\",\",data[],7),AN$909)","v":7.0000000000000007E-2},null,null,null,null,null,null,null,{"$f":"IF(\"SPECCOST,,\"&AV$5&\",\"&$B963&\",\"=VLOOKUP(\"SPECCOST,,\"&AV$5&\",\"&$B963&\",\",data[],1),VLOOKUP(\"SPECCOST,,\"&AV$5&\",\"&$B963&\",\",data[],7),AV$909)","v":2.7940534453652541E-3},null,null,null,null,null,null,{"$f":"IF(\"SPECCOST,,\"&BC$5&\",\"&sel_country_code&\",\"=VLOOKUP(\"SPECCOST,,\"&BC$5&\",\"&sel_country_code&\",\",data[],1),VLOOKUP(\"SPECCOST,,\"&BC$5&\",\"&sel_country_code&\",\",data[],7),BC$909)","v":0.05},{"$f":"IF(\"SPECCOST,,\"&BD$5&\",\"&sel_country_code&\",\"=VLOOKUP(\"SPECCOST,,\"&BD$5&\",\"&sel_country_code&\",\",data[],1),VLOOKUP(\"SPECCOST,,\"&BD$5&\",\"&sel_country_code&\",\",data[],7),BD$909)","v":7.0000000000000007E-2},null,{"$f":"IF(\"SPECCOST,,\"&BF$5&\",\"&sel_country_code&\",\"=VLOOKUP(\"SPECCOST,,\"&BF$5&\",\"&sel_country_code&\",\",data[],1),VLOOKUP(\"SPECCOST,,\"&BF$5&\",\"&sel_country_code&\",\",data[],7),BF$909)","v":0.05},{"$f":"IF(\"SPECCOST,,\"&BG$5&\",\"&sel_country_code&\",\"=VLOOKUP(\"SPECCOST,,\"&BG$5&\",\"&sel_country_code&\",\",data[],1),VLOOKUP(\"SPECCOST,,\"&BG$5&\",\"&sel_country_code&\",\",data[],7),BG$909)","v":7.0000000000000007E-2}]
[null,"MEX",null,null,null,null,null,null,null,null,null,null,null,null,null,null,null,{"$f":"IF(\"SPECCOST,,\"&R$5&\",\"&$B964&\",\"=VLOOKUP(\"SPECCOST,,\"&R$5&\",\"&$B964&\",\",data[],1),VLOOKUP(\"SPECCOST,,\"&R$5&\",\"&$B964&\",\",data[],7),R$909)","v":1.190463995027624E-3},null,{"$f":"IF(\"SPECCOST,,\"&T$5&\",\"&$B964&\",\"=VLOOKUP(\"SPECCOST,,\"&T$5&\",\"&$B964&\",\",data[],1),VLOOKUP(\"SPECCOST,,\"&T$5&\",\"&$B964&\",\",data[],7),T$909)","v":0.05},{"$f":"IF(\"SPECCOST,,\"&U$5&\",\"&$B964&\",\"=VLOOKUP(\"SPECCOST,,\"&U$5&\",\"&$B964&\",\",data[],1),VLOOKUP(\"SPECCOST,,\"&U$5&\",\"&$B964&\",\",data[],7),U$909)","v":7.0000000000000007E-2},{"$f":"IF(\"SPECCOST,,\"&V$5&\",\"&$B964&\",\"=VLOOKUP(\"SPECCOST,,\"&V$5&\",\"&$B964&\",\",data[],1),VLOOKUP(\"SPECCOST,,\"&V$5&\",\"&$B964&\",\",data[],7),V$909)","v":7.0000000000000007E-2},null,null,{"$f":"IF(\"SPECCOST,,\"&Y$5&\",\"&$B964&\",\"=VLOOKUP(\"SPECCOST,,\"&Y$5&\",\"&$B964&\",\",data[],1),VLOOKUP(\"SPECCOST,,\"&Y$5&\",\"&$B964&\",\",data[],7),Y$909)","v":1.190463995027624E-3},null,{"$f":"IF(\"SPECCOST,,\"&AA$5&\",\"&$B964&\",\"=VLOOKUP(\"SPECCOST,,\"&AA$5&\",\"&$B964&\",\",data[],1),VLOOKUP(\"SPECCOST,,\"&AA$5&\",\"&$B964&\",\",data[],7),AA$909)","v":0.05},{"$f":"IF(\"SPECCOST,,\"&AB$5&\",\"&$B964&\",\"=VLOOKUP(\"SPECCOST,,\"&AB$5&\",\"&$B964&\",\",data[],1),VLOOKUP(\"SPECCOST,,\"&AB$5&\",\"&$B964&\",\",data[],7),AB$909)","v":7.0000000000000007E-2},{"$f":"IF(\"SPECCOST,,\"&AC$5&\",\"&$B964&\",\"=VLOOKUP(\"SPECCOST,,\"&AC$5&\",\"&$B964&\",\",data[],1),VLOOKUP(\"SPECCOST,,\"&AC$5&\",\"&$B964&\",\",data[],7),AC$909)","v":3.8577660276243091E-2},null,{"$f":"IF(\"SPECCOST,,\"&AE$5&\",\"&$B964&\",\"=VLOOKUP(\"SPECCOST,,\"&AE$5&\",\"&$B964&\",\",data[],1),VLOOKUP(\"SPECCOST,,\"&AE$5&\",\"&$B964&\",\",data[],7),AE$909)","v":0.05},{"$f":"IF(\"SPECCOST,,\"&AF$5&\",\"&$B964&\",\"=VLOOKUP(\"SPECCOST,,\"&AF$5&\",\"&$B964&\",\",data[],1),VLOOKUP(\"SPECCOST,,\"&AF$5&\",\"&$B964&\",\",data[],7),AF$909)","v":7.0000000000000007E-2},{"$f":"IF(\"SPECCOST,,\"&AG$5&\",\"&$B964&\",\"=VLOOKUP(\"SPECCOST,,\"&AG$5&\",\"&$B964&\",\",data[],1),VLOOKUP(\"SPECCOST,,\"&AG$5&\",\"&$B964&\",\",data[],7),AG$909)","v":7.0000000000000007E-2},{"$f":"IF(\"SPECCOST,,\"&AH$5&\",\"&$B964&\",\"=VLOOKUP(\"SPECCOST,,\"&AH$5&\",\"&$B964&\",\",data[],1),VLOOKUP(\"SPECCOST,,\"&AH$5&\",\"&$B964&\",\",data[],7),AH$909)","v":0.05},{"$f":"IF(\"SPECCOST,,\"&AI$5&\",\"&$B964&\",\"=VLOOKUP(\"SPECCOST,,\"&AI$5&\",\"&$B964&\",\",data[],1),VLOOKUP(\"SPECCOST,,\"&AI$5&\",\"&$B964&\",\",data[],7),AI$909)","v":0.01},null,null,{"$f":"IF(\"SPECCOST,,\"&AL$5&\",\"&$B964&\",\"=VLOOKUP(\"SPECCOST,,\"&AL$5&\",\"&$B964&\",\",data[],1),VLOOKUP(\"SPECCOST,,\"&AL$5&\",\"&$B964&\",\",data[],7),AL$909)","v":7.0000000000000007E-2},null,{"$f":"IF(\"SPECCOST,,\"&AN$5&\",\"&$B964&\",\"=VLOOKUP(\"SPECCOST,,\"&AN$5&\",\"&$B964&\",\",data[],1),VLOOKUP(\"SPECCOST,,\"&AN$5&\",\"&$B964&\",\",data[],7),AN$909)","v":7.0000000000000007E-2},null,null,null,null,null,null,null,{"$f":"IF(\"SPECCOST,,\"&AV$5&\",\"&$B964&\",\"=VLOOKUP(\"SPECCOST,,\"&AV$5&\",\"&$B964&\",\",data[],1),VLOOKUP(\"SPECCOST,,\"&AV$5&\",\"&$B964&\",\",data[],7),AV$909)","v":2.7940534453652541E-3},null,null,null,null,null,null,{"$f":"IF(\"SPECCOST,,\"&BC$5&\",\"&sel_country_code&\",\"=VLOOKUP(\"SPECCOST,,\"&BC$5&\",\"&sel_country_code&\",\",data[],1),VLOOKUP(\"SPECCOST,,\"&BC$5&\",\"&sel_country_code&\",\",data[],7),BC$909)","v":0.05},{"$f":"IF(\"SPECCOST,,\"&BD$5&\",\"&sel_country_code&\",\"=VLOOKUP(\"SPECCOST,,\"&BD$5&\",\"&sel_country_code&\",\",data[],1),VLOOKUP(\"SPECCOST,,\"&BD$5&\",\"&sel_country_code&\",\",data[],7),BD$909)","v":7.0000000000000007E-2},null,{"$f":"IF(\"SPECCOST,,\"&BF$5&\",\"&sel_country_code&\",\"=VLOOKUP(\"SPECCOST,,\"&BF$5&\",\"&sel_country_code&\",\",data[],1),VLOOKUP(\"SPECCOST,,\"&BF$5&\",\"&sel_country_code&\",\",data[],7),BF$909)","v":0.05},{"$f":"IF(\"SPECCOST,,\"&BG$5&\",\"&sel_country_code&\",\"=VLOOKUP(\"SPECCOST,,\"&BG$5&\",\"&sel_country_code&\",\",data[],1),VLOOKUP(\"SPECCOST,,\"&BG$5&\",\"&sel_country_code&\",\",data[],7),BG$909)","v":7.0000000000000007E-2}]
[null,"MRT",null,null,null,null,null,null,null,null,null,null,null,null,null,null,null,{"$f":"IF(\"SPECCOST,,\"&R$5&\",\"&$B965&\",\"=VLOOKUP(\"SPECCOST,,\"&R$5&\",\"&$B965&\",\",data[],1),VLOOKUP(\"SPECCOST,,\"&R$5&\",\"&$B965&\",\",data[],7),R$909)","v":1.190463995027624E-3},null,{"$f":"IF(\"SPECCOST,,\"&T$5&\",\"&$B965&\",\"=VLOOKUP(\"SPECCOST,,\"&T$5&\",\"&$B965&\",\",data[],1),VLOOKUP(\"SPECCOST,,\"&T$5&\",\"&$B965&\",\",data[],7),T$909)","v":0.05},{"$f":"IF(\"SPECCOST,,\"&U$5&\",\"&$B965&\",\"=VLOOKUP(\"SPECCOST,,\"&U$5&\",\"&$B965&\",\",data[],1),VLOOKUP(\"SPECCOST,,\"&U$5&\",\"&$B965&\",\",data[],7),U$909)","v":7.0000000000000007E-2},{"$f":"IF(\"SPECCOST,,\"&V$5&\",\"&$B965&\",\"=VLOOKUP(\"SPECCOST,,\"&V$5&\",\"&$B965&\",\",data[],1),VLOOKUP(\"SPECCOST,,\"&V$5&\",\"&$B965&\",\",data[],7),V$909)","v":7.0000000000000007E-2},null,null,{"$f":"IF(\"SPECCOST,,\"&Y$5&\",\"&$B965&\",\"=VLOOKUP(\"SPECCOST,,\"&Y$5&\",\"&$B965&\",\",data[],1),VLOOKUP(\"SPECCOST,,\"&Y$5&\",\"&$B965&\",\",data[],7),Y$909)","v":1.190463995027624E-3},null,{"$f":"IF(\"SPECCOST,,\"&AA$5&\",\"&$B965&\",\"=VLOOKUP(\"SPECCOST,,\"&AA$5&\",\"&$B965&\",\",data[],1),VLOOKUP(\"SPECCOST,,\"&AA$5&\",\"&$B965&\",\",data[],7),AA$909)","v":0.05},{"$f":"IF(\"SPECCOST,,\"&AB$5&\",\"&$B965&\",\"=VLOOKUP(\"SPECCOST,,\"&AB$5&\",\"&$B965&\",\",data[],1),VLOOKUP(\"SPECCOST,,\"&AB$5&\",\"&$B965&\",\",data[],7),AB$909)","v":7.0000000000000007E-2},{"$f":"IF(\"SPECCOST,,\"&AC$5&\",\"&$B965&\",\"=VLOOKUP(\"SPECCOST,,\"&AC$5&\",\"&$B965&\",\",data[],1),VLOOKUP(\"SPECCOST,,\"&AC$5&\",\"&$B965&\",\",data[],7),AC$909)","v":3.8577660276243091E-2},null,{"$f":"IF(\"SPECCOST,,\"&AE$5&\",\"&$B965&\",\"=VLOOKUP(\"SPECCOST,,\"&AE$5&\",\"&$B965&\",\",data[],1),VLOOKUP(\"SPECCOST,,\"&AE$5&\",\"&$B965&\",\",data[],7),AE$909)","v":0.05},{"$f":"IF(\"SPECCOST,,\"&AF$5&\",\"&$B965&\",\"=VLOOKUP(\"SPECCOST,,\"&AF$5&\",\"&$B965&\",\",data[],1),VLOOKUP(\"SPECCOST,,\"&AF$5&\",\"&$B965&\",\",data[],7),AF$909)","v":7.0000000000000007E-2},{"$f":"IF(\"SPECCOST,,\"&AG$5&\",\"&$B965&\",\"=VLOOKUP(\"SPECCOST,,\"&AG$5&\",\"&$B965&\",\",data[],1),VLOOKUP(\"SPECCOST,,\"&AG$5&\",\"&$B965&\",\",data[],7),AG$909)","v":7.0000000000000007E-2},{"$f":"IF(\"SPECCOST,,\"&AH$5&\",\"&$B965&\",\"=VLOOKUP(\"SPECCOST,,\"&AH$5&\",\"&$B965&\",\",data[],1),VLOOKUP(\"SPECCOST,,\"&AH$5&\",\"&$B965&\",\",data[],7),AH$909)","v":0.05},{"$f":"IF(\"SPECCOST,,\"&AI$5&\",\"&$B965&\",\"=VLOOKUP(\"SPECCOST,,\"&AI$5&\",\"&$B965&\",\",data[],1),VLOOKUP(\"SPECCOST,,\"&AI$5&\",\"&$B965&\",\",data[],7),AI$909)","v":0.01},null,null,{"$f":"IF(\"SPECCOST,,\"&AL$5&\",\"&$B965&\",\"=VLOOKUP(\"SPECCOST,,\"&AL$5&\",\"&$B965&\",\",data[],1),VLOOKUP(\"SPECCOST,,\"&AL$5&\",\"&$B965&\",\",data[],7),AL$909)","v":7.0000000000000007E-2},null,{"$f":"IF(\"SPECCOST,,\"&AN$5&\",\"&$B965&\",\"=VLOOKUP(\"SPECCOST,,\"&AN$5&\",\"&$B965&\",\",data[],1),VLOOKUP(\"SPECCOST,,\"&AN$5&\",\"&$B965&\",\",data[],7),AN$909)","v":7.0000000000000007E-2},null,null,null,null,null,null,null,{"$f":"IF(\"SPECCOST,,\"&AV$5&\",\"&$B965&\",\"=VLOOKUP(\"SPECCOST,,\"&AV$5&\",\"&$B965&\",\",data[],1),VLOOKUP(\"SPECCOST,,\"&AV$5&\",\"&$B965&\",\",data[],7),AV$909)","v":2.7940534453652541E-3},null,null,null,null,null,null,{"$f":"IF(\"SPECCOST,,\"&BC$5&\",\"&sel_country_code&\",\"=VLOOKUP(\"SPECCOST,,\"&BC$5&\",\"&sel_country_code&\",\",data[],1),VLOOKUP(\"SPECCOST,,\"&BC$5&\",\"&sel_country_code&\",\",data[],7),BC$909)","v":0.05},{"$f":"IF(\"SPECCOST,,\"&BD$5&\",\"&sel_country_code&\",\"=VLOOKUP(\"SPECCOST,,\"&BD$5&\",\"&sel_country_code&\",\",data[],1),VLOOKUP(\"SPECCOST,,\"&BD$5&\",\"&sel_country_code&\",\",data[],7),BD$909)","v":7.0000000000000007E-2},null,{"$f":"IF(\"SPECCOST,,\"&BF$5&\",\"&sel_country_code&\",\"=VLOOKUP(\"SPECCOST,,\"&BF$5&\",\"&sel_country_code&\",\",data[],1),VLOOKUP(\"SPECCOST,,\"&BF$5&\",\"&sel_country_code&\",\",data[],7),BF$909)","v":0.05},{"$f":"IF(\"SPECCOST,,\"&BG$5&\",\"&sel_country_code&\",\"=VLOOKUP(\"SPECCOST,,\"&BG$5&\",\"&sel_country_code&\",\",data[],1),VLOOKUP(\"SPECCOST,,\"&BG$5&\",\"&sel_country_code&\",\",data[],7),BG$909)","v":7.0000000000000007E-2}]
[null,"NAM",null,null,null,null,null,null,null,null,null,null,null,null,null,null,null,{"$f":"IF(\"SPECCOST,,\"&R$5&\",\"&$B966&\",\"=VLOOKUP(\"SPECCOST,,\"&R$5&\",\"&$B966&\",\",data[],1),VLOOKUP(\"SPECCOST,,\"&R$5&\",\"&$B966&\",\",data[],7),R$909)","v":1.190463995027624E-3},null,{"$f":"IF(\"SPECCOST,,\"&T$5&\",\"&$B966&\",\"=VLOOKUP(\"SPECCOST,,\"&T$5&\",\"&$B966&\",\",data[],1),VLOOKUP(\"SPECCOST,,\"&T$5&\",\"&$B966&\",\",data[],7),T$909)","v":0.05},{"$f":"IF(\"SPECCOST,,\"&U$5&\",\"&$B966&\",\"=VLOOKUP(\"SPECCOST,,\"&U$5&\",\"&$B966&\",\",data[],1),VLOOKUP(\"SPECCOST,,\"&U$5&\",\"&$B966&\",\",data[],7),U$909)","v":7.0000000000000007E-2},{"$f":"IF(\"SPECCOST,,\"&V$5&\",\"&$B966&\",\"=VLOOKUP(\"SPECCOST,,\"&V$5&\",\"&$B966&\",\",data[],1),VLOOKUP(\"SPECCOST,,\"&V$5&\",\"&$B966&\",\",data[],7),V$909)","v":7.0000000000000007E-2},null,null,{"$f":"IF(\"SPECCOST,,\"&Y$5&\",\"&$B966&\",\"=VLOOKUP(\"SPECCOST,,\"&Y$5&\",\"&$B966&\",\",data[],1),VLOOKUP(\"SPECCOST,,\"&Y$5&\",\"&$B966&\",\",data[],7),Y$909)","v":1.190463995027624E-3},null,{"$f":"IF(\"SPECCOST,,\"&AA$5&\",\"&$B966&\",\"=VLOOKUP(\"SPECCOST,,\"&AA$5&\",\"&$B966&\",\",data[],1),VLOOKUP(\"SPECCOST,,\"&AA$5&\",\"&$B966&\",\",data[],7),AA$909)","v":0.05},{"$f":"IF(\"SPECCOST,,\"&AB$5&\",\"&$B966&\",\"=VLOOKUP(\"SPECCOST,,\"&AB$5&\",\"&$B966&\",\",data[],1),VLOOKUP(\"SPECCOST,,\"&AB$5&\",\"&$B966&\",\",data[],7),AB$909)","v":7.0000000000000007E-2},{"$f":"IF(\"SPECCOST,,\"&AC$5&\",\"&$B966&\",\"=VLOOKUP(\"SPECCOST,,\"&AC$5&\",\"&$B966&\",\",data[],1),VLOOKUP(\"SPECCOST,,\"&AC$5&\",\"&$B966&\",\",data[],7),AC$909)","v":3.8577660276243091E-2},null,{"$f":"IF(\"SPECCOST,,\"&AE$5&\",\"&$B966&\",\"=VLOOKUP(\"SPECCOST,,\"&AE$5&\",\"&$B966&\",\",data[],1),VLOOKUP(\"SPECCOST,,\"&AE$5&\",\"&$B966&\",\",data[],7),AE$909)","v":0.05},{"$f":"IF(\"SPECCOST,,\"&AF$5&\",\"&$B966&\",\"=VLOOKUP(\"SPECCOST,,\"&AF$5&\",\"&$B966&\",\",data[],1),VLOOKUP(\"SPECCOST,,\"&AF$5&\",\"&$B966&\",\",data[],7),AF$909)","v":7.0000000000000007E-2},{"$f":"IF(\"SPECCOST,,\"&AG$5&\",\"&$B966&\",\"=VLOOKUP(\"SPECCOST,,\"&AG$5&\",\"&$B966&\",\",data[],1),VLOOKUP(\"SPECCOST,,\"&AG$5&\",\"&$B966&\",\",data[],7),AG$909)","v":7.0000000000000007E-2},{"$f":"IF(\"SPECCOST,,\"&AH$5&\",\"&$B966&\",\"=VLOOKUP(\"SPECCOST,,\"&AH$5&\",\"&$B966&\",\",data[],1),VLOOKUP(\"SPECCOST,,\"&AH$5&\",\"&$B966&\",\",data[],7),AH$909)","v":0.05},{"$f":"IF(\"SPECCOST,,\"&AI$5&\",\"&$B966&\",\"=VLOOKUP(\"SPECCOST,,\"&AI$5&\",\"&$B966&\",\",data[],1),VLOOKUP(\"SPECCOST,,\"&AI$5&\",\"&$B966&\",\",data[],7),AI$909)","v":0.01},null,null,{"$f":"IF(\"SPECCOST,,\"&AL$5&\",\"&$B966&\",\"=VLOOKUP(\"SPECCOST,,\"&AL$5&\",\"&$B966&\",\",data[],1),VLOOKUP(\"SPECCOST,,\"&AL$5&\",\"&$B966&\",\",data[],7),AL$909)","v":7.0000000000000007E-2},null,{"$f":"IF(\"SPECCOST,,\"&AN$5&\",\"&$B966&\",\"=VLOOKUP(\"SPECCOST,,\"&AN$5&\",\"&$B966&\",\",data[],1),VLOOKUP(\"SPECCOST,,\"&AN$5&\",\"&$B966&\",\",data[],7),AN$909)","v":7.0000000000000007E-2},null,null,null,null,null,null,null,{"$f":"IF(\"SPECCOST,,\"&AV$5&\",\"&$B966&\",\"=VLOOKUP(\"SPECCOST,,\"&AV$5&\",\"&$B966&\",\",data[],1),VLOOKUP(\"SPECCOST,,\"&AV$5&\",\"&$B966&\",\",data[],7),AV$909)","v":2.7940534453652541E-3},null,null,null,null,null,null,{"$f":"IF(\"SPECCOST,,\"&BC$5&\",\"&sel_country_code&\",\"=VLOOKUP(\"SPECCOST,,\"&BC$5&\",\"&sel_country_code&\",\",data[],1),VLOOKUP(\"SPECCOST,,\"&BC$5&\",\"&sel_country_code&\",\",data[],7),BC$909)","v":0.05},{"$f":"IF(\"SPECCOST,,\"&BD$5&\",\"&sel_country_code&\",\"=VLOOKUP(\"SPECCOST,,\"&BD$5&\",\"&sel_country_code&\",\",data[],1),VLOOKUP(\"SPECCOST,,\"&BD$5&\",\"&sel_country_code&\",\",data[],7),BD$909)","v":7.0000000000000007E-2},null,{"$f":"IF(\"SPECCOST,,\"&BF$5&\",\"&sel_country_code&\",\"=VLOOKUP(\"SPECCOST,,\"&BF$5&\",\"&sel_country_code&\",\",data[],1),VLOOKUP(\"SPECCOST,,\"&BF$5&\",\"&sel_country_code&\",\",data[],7),BF$909)","v":0.05},{"$f":"IF(\"SPECCOST,,\"&BG$5&\",\"&sel_country_code&\",\"=VLOOKUP(\"SPECCOST,,\"&BG$5&\",\"&sel_country_code&\",\",data[],1),VLOOKUP(\"SPECCOST,,\"&BG$5&\",\"&sel_country_code&\",\",data[],7),BG$909)","v":7.0000000000000007E-2}]
[null,"NOR",null,null,null,null,null,null,null,null,null,null,null,null,null,null,null,{"$f":"IF(\"SPECCOST,,\"&R$5&\",\"&$B967&\",\"=VLOOKUP(\"SPECCOST,,\"&R$5&\",\"&$B967&\",\",data[],1),VLOOKUP(\"SPECCOST,,\"&R$5&\",\"&$B967&\",\",data[],7),R$909)","v":1.190463995027624E-3},null,{"$f":"IF(\"SPECCOST,,\"&T$5&\",\"&$B967&\",\"=VLOOKUP(\"SPECCOST,,\"&T$5&\",\"&$B967&\",\",data[],1),VLOOKUP(\"SPECCOST,,\"&T$5&\",\"&$B967&\",\",data[],7),T$909)","v":0.05},{"$f":"IF(\"SPECCOST,,\"&U$5&\",\"&$B967&\",\"=VLOOKUP(\"SPECCOST,,\"&U$5&\",\"&$B967&\",\",data[],1),VLOOKUP(\"SPECCOST,,\"&U$5&\",\"&$B967&\",\",data[],7),U$909)","v":7.0000000000000007E-2},{"$f":"IF(\"SPECCOST,,\"&V$5&\",\"&$B967&\",\"=VLOOKUP(\"SPECCOST,,\"&V$5&\",\"&$B967&\",\",data[],1),VLOOKUP(\"SPECCOST,,\"&V$5&\",\"&$B967&\",\",data[],7),V$909)","v":7.0000000000000007E-2},null,null,{"$f":"IF(\"SPECCOST,,\"&Y$5&\",\"&$B967&\",\"=VLOOKUP(\"SPECCOST,,\"&Y$5&\",\"&$B967&\",\",data[],1),VLOOKUP(\"SPECCOST,,\"&Y$5&\",\"&$B967&\",\",data[],7),Y$909)","v":1.190463995027624E-3},null,{"$f":"IF(\"SPECCOST,,\"&AA$5&\",\"&$B967&\",\"=VLOOKUP(\"SPECCOST,,\"&AA$5&\",\"&$B967&\",\",data[],1),VLOOKUP(\"SPECCOST,,\"&AA$5&\",\"&$B967&\",\",data[],7),AA$909)","v":0.05},{"$f":"IF(\"SPECCOST,,\"&AB$5&\",\"&$B967&\",\"=VLOOKUP(\"SPECCOST,,\"&AB$5&\",\"&$B967&\",\",data[],1),VLOOKUP(\"SPECCOST,,\"&AB$5&\",\"&$B967&\",\",data[],7),AB$909)","v":7.0000000000000007E-2},{"$f":"IF(\"SPECCOST,,\"&AC$5&\",\"&$B967&\",\"=VLOOKUP(\"SPECCOST,,\"&AC$5&\",\"&$B967&\",\",data[],1),VLOOKUP(\"SPECCOST,,\"&AC$5&\",\"&$B967&\",\",data[],7),AC$909)","v":3.8577660276243091E-2},null,{"$f":"IF(\"SPECCOST,,\"&AE$5&\",\"&$B967&\",\"=VLOOKUP(\"SPECCOST,,\"&AE$5&\",\"&$B967&\",\",data[],1),VLOOKUP(\"SPECCOST,,\"&AE$5&\",\"&$B967&\",\",data[],7),AE$909)","v":0.05},{"$f":"IF(\"SPECCOST,,\"&AF$5&\",\"&$B967&\",\"=VLOOKUP(\"SPECCOST,,\"&AF$5&\",\"&$B967&\",\",data[],1),VLOOKUP(\"SPECCOST,,\"&AF$5&\",\"&$B967&\",\",data[],7),AF$909)","v":7.0000000000000007E-2},{"$f":"IF(\"SPECCOST,,\"&AG$5&\",\"&$B967&\",\"=VLOOKUP(\"SPECCOST,,\"&AG$5&\",\"&$B967&\",\",data[],1),VLOOKUP(\"SPECCOST,,\"&AG$5&\",\"&$B967&\",\",data[],7),AG$909)","v":7.0000000000000007E-2},{"$f":"IF(\"SPECCOST,,\"&AH$5&\",\"&$B967&\",\"=VLOOKUP(\"SPECCOST,,\"&AH$5&\",\"&$B967&\",\",data[],1),VLOOKUP(\"SPECCOST,,\"&AH$5&\",\"&$B967&\",\",data[],7),AH$909)","v":0.05},{"$f":"IF(\"SPECCOST,,\"&AI$5&\",\"&$B967&\",\"=VLOOKUP(\"SPECCOST,,\"&AI$5&\",\"&$B967&\",\",data[],1),VLOOKUP(\"SPECCOST,,\"&AI$5&\",\"&$B967&\",\",data[],7),AI$909)","v":0.01},null,null,{"$f":"IF(\"SPECCOST,,\"&AL$5&\",\"&$B967&\",\"=VLOOKUP(\"SPECCOST,,\"&AL$5&\",\"&$B967&\",\",data[],1),VLOOKUP(\"SPECCOST,,\"&AL$5&\",\"&$B967&\",\",data[],7),AL$909)","v":7.0000000000000007E-2},null,{"$f":"IF(\"SPECCOST,,\"&AN$5&\",\"&$B967&\",\"=VLOOKUP(\"SPECCOST,,\"&AN$5&\",\"&$B967&\",\",data[],1),VLOOKUP(\"SPECCOST,,\"&AN$5&\",\"&$B967&\",\",data[],7),AN$909)","v":7.0000000000000007E-2},null,null,null,null,null,null,null,{"$f":"IF(\"SPECCOST,,\"&AV$5&\",\"&$B967&\",\"=VLOOKUP(\"SPECCOST,,\"&AV$5&\",\"&$B967&\",\",data[],1),VLOOKUP(\"SPECCOST,,\"&AV$5&\",\"&$B967&\",\",data[],7),AV$909)","v":2.7940534453652541E-3},null,null,null,null,null,null,{"$f":"IF(\"SPECCOST,,\"&BC$5&\",\"&sel_country_code&\",\"=VLOOKUP(\"SPECCOST,,\"&BC$5&\",\"&sel_country_code&\",\",data[],1),VLOOKUP(\"SPECCOST,,\"&BC$5&\",\"&sel_country_code&\",\",data[],7),BC$909)","v":0.05},{"$f":"IF(\"SPECCOST,,\"&BD$5&\",\"&sel_country_code&\",\"=VLOOKUP(\"SPECCOST,,\"&BD$5&\",\"&sel_country_code&\",\",data[],1),VLOOKUP(\"SPECCOST,,\"&BD$5&\",\"&sel_country_code&\",\",data[],7),BD$909)","v":7.0000000000000007E-2},null,{"$f":"IF(\"SPECCOST,,\"&BF$5&\",\"&sel_country_code&\",\"=VLOOKUP(\"SPECCOST,,\"&BF$5&\",\"&sel_country_code&\",\",data[],1),VLOOKUP(\"SPECCOST,,\"&BF$5&\",\"&sel_country_code&\",\",data[],7),BF$909)","v":0.05},{"$f":"IF(\"SPECCOST,,\"&BG$5&\",\"&sel_country_code&\",\"=VLOOKUP(\"SPECCOST,,\"&BG$5&\",\"&sel_country_code&\",\",data[],1),VLOOKUP(\"SPECCOST,,\"&BG$5&\",\"&sel_country_code&\",\",data[],7),BG$909)","v":7.0000000000000007E-2}]
[null,"PER",null,null,null,null,null,null,null,null,null,null,null,null,null,null,null,{"$f":"IF(\"SPECCOST,,\"&R$5&\",\"&$B968&\",\"=VLOOKUP(\"SPECCOST,,\"&R$5&\",\"&$B968&\",\",data[],1),VLOOKUP(\"SPECCOST,,\"&R$5&\",\"&$B968&\",\",data[],7),R$909)","v":1.190463995027624E-3},null,{"$f":"IF(\"SPECCOST,,\"&T$5&\",\"&$B968&\",\"=VLOOKUP(\"SPECCOST,,\"&T$5&\",\"&$B968&\",\",data[],1),VLOOKUP(\"SPECCOST,,\"&T$5&\",\"&$B968&\",\",data[],7),T$909)","v":0.05},{"$f":"IF(\"SPECCOST,,\"&U$5&\",\"&$B968&\",\"=VLOOKUP(\"SPECCOST,,\"&U$5&\",\"&$B968&\",\",data[],1),VLOOKUP(\"SPECCOST,,\"&U$5&\",\"&$B968&\",\",data[],7),U$909)","v":7.0000000000000007E-2},{"$f":"IF(\"SPECCOST,,\"&V$5&\",\"&$B968&\",\"=VLOOKUP(\"SPECCOST,,\"&V$5&\",\"&$B968&\",\",data[],1),VLOOKUP(\"SPECCOST,,\"&V$5&\",\"&$B968&\",\",data[],7),V$909)","v":7.0000000000000007E-2},null,null,{"$f":"IF(\"SPECCOST,,\"&Y$5&\",\"&$B968&\",\"=VLOOKUP(\"SPECCOST,,\"&Y$5&\",\"&$B968&\",\",data[],1),VLOOKUP(\"SPECCOST,,\"&Y$5&\",\"&$B968&\",\",data[],7),Y$909)","v":1.190463995027624E-3},null,{"$f":"IF(\"SPECCOST,,\"&AA$5&\",\"&$B968&\",\"=VLOOKUP(\"SPECCOST,,\"&AA$5&\",\"&$B968&\",\",data[],1),VLOOKUP(\"SPECCOST,,\"&AA$5&\",\"&$B968&\",\",data[],7),AA$909)","v":0.05},{"$f":"IF(\"SPECCOST,,\"&AB$5&\",\"&$B968&\",\"=VLOOKUP(\"SPECCOST,,\"&AB$5&\",\"&$B968&\",\",data[],1),VLOOKUP(\"SPECCOST,,\"&AB$5&\",\"&$B968&\",\",data[],7),AB$909)","v":7.0000000000000007E-2},{"$f":"IF(\"SPECCOST,,\"&AC$5&\",\"&$B968&\",\"=VLOOKUP(\"SPECCOST,,\"&AC$5&\",\"&$B968&\",\",data[],1),VLOOKUP(\"SPECCOST,,\"&AC$5&\",\"&$B968&\",\",data[],7),AC$909)","v":3.8577660276243091E-2},null,{"$f":"IF(\"SPECCOST,,\"&AE$5&\",\"&$B968&\",\"=VLOOKUP(\"SPECCOST,,\"&AE$5&\",\"&$B968&\",\",data[],1),VLOOKUP(\"SPECCOST,,\"&AE$5&\",\"&$B968&\",\",data[],7),AE$909)","v":0.05},{"$f":"IF(\"SPECCOST,,\"&AF$5&\",\"&$B968&\",\"=VLOOKUP(\"SPECCOST,,\"&AF$5&\",\"&$B968&\",\",data[],1),VLOOKUP(\"SPECCOST,,\"&AF$5&\",\"&$B968&\",\",data[],7),AF$909)","v":7.0000000000000007E-2},{"$f":"IF(\"SPECCOST,,\"&AG$5&\",\"&$B968&\",\"=VLOOKUP(\"SPECCOST,,\"&AG$5&\",\"&$B968&\",\",data[],1),VLOOKUP(\"SPECCOST,,\"&AG$5&\",\"&$B968&\",\",data[],7),AG$909)","v":7.0000000000000007E-2},{"$f":"IF(\"SPECCOST,,\"&AH$5&\",\"&$B968&\",\"=VLOOKUP(\"SPECCOST,,\"&AH$5&\",\"&$B968&\",\",data[],1),VLOOKUP(\"SPECCOST,,\"&AH$5&\",\"&$B968&\",\",data[],7),AH$909)","v":0.05},{"$f":"IF(\"SPECCOST,,\"&AI$5&\",\"&$B968&\",\"=VLOOKUP(\"SPECCOST,,\"&AI$5&\",\"&$B968&\",\",data[],1),VLOOKUP(\"SPECCOST,,\"&AI$5&\",\"&$B968&\",\",data[],7),AI$909)","v":0.01},null,null,{"$f":"IF(\"SPECCOST,,\"&AL$5&\",\"&$B968&\",\"=VLOOKUP(\"SPECCOST,,\"&AL$5&\",\"&$B968&\",\",data[],1),VLOOKUP(\"SPECCOST,,\"&AL$5&\",\"&$B968&\",\",data[],7),AL$909)","v":7.0000000000000007E-2},null,{"$f":"IF(\"SPECCOST,,\"&AN$5&\",\"&$B968&\",\"=VLOOKUP(\"SPECCOST,,\"&AN$5&\",\"&$B968&\",\",data[],1),VLOOKUP(\"SPECCOST,,\"&AN$5&\",\"&$B968&\",\",data[],7),AN$909)","v":7.0000000000000007E-2},null,null,null,null,null,null,null,{"$f":"IF(\"SPECCOST,,\"&AV$5&\",\"&$B968&\",\"=VLOOKUP(\"SPECCOST,,\"&AV$5&\",\"&$B968&\",\",data[],1),VLOOKUP(\"SPECCOST,,\"&AV$5&\",\"&$B968&\",\",data[],7),AV$909)","v":2.7940534453652541E-3},null,null,null,null,null,null,{"$f":"IF(\"SPECCOST,,\"&BC$5&\",\"&sel_country_code&\",\"=VLOOKUP(\"SPECCOST,,\"&BC$5&\",\"&sel_country_code&\",\",data[],1),VLOOKUP(\"SPECCOST,,\"&BC$5&\",\"&sel_country_code&\",\",data[],7),BC$909)","v":0.05},{"$f":"IF(\"SPECCOST,,\"&BD$5&\",\"&sel_country_code&\",\"=VLOOKUP(\"SPECCOST,,\"&BD$5&\",\"&sel_country_code&\",\",data[],1),VLOOKUP(\"SPECCOST,,\"&BD$5&\",\"&sel_country_code&\",\",data[],7),BD$909)","v":7.0000000000000007E-2},null,{"$f":"IF(\"SPECCOST,,\"&BF$5&\",\"&sel_country_code&\",\"=VLOOKUP(\"SPECCOST,,\"&BF$5&\",\"&sel_country_code&\",\",data[],1),VLOOKUP(\"SPECCOST,,\"&BF$5&\",\"&sel_country_code&\",\",data[],7),BF$909)","v":0.05},{"$f":"IF(\"SPECCOST,,\"&BG$5&\",\"&sel_country_code&\",\"=VLOOKUP(\"SPECCOST,,\"&BG$5&\",\"&sel_country_code&\",\",data[],1),VLOOKUP(\"SPECCOST,,\"&BG$5&\",\"&sel_country_code&\",\",data[],7),BG$909)","v":7.0000000000000007E-2}]
[null,"PRT",null,null,null,null,null,null,null,null,null,null,null,null,null,null,null,{"$f":"IF(\"SPECCOST,,\"&R$5&\",\"&$B969&\",\"=VLOOKUP(\"SPECCOST,,\"&R$5&\",\"&$B969&\",\",data[],1),VLOOKUP(\"SPECCOST,,\"&R$5&\",\"&$B969&\",\",data[],7),R$909)","v":1.190463995027624E-3},null,{"$f":"IF(\"SPECCOST,,\"&T$5&\",\"&$B969&\",\"=VLOOKUP(\"SPECCOST,,\"&T$5&\",\"&$B969&\",\",data[],1),VLOOKUP(\"SPECCOST,,\"&T$5&\",\"&$B969&\",\",data[],7),T$909)","v":0.05},{"$f":"IF(\"SPECCOST,,\"&U$5&\",\"&$B969&\",\"=VLOOKUP(\"SPECCOST,,\"&U$5&\",\"&$B969&\",\",data[],1),VLOOKUP(\"SPECCOST,,\"&U$5&\",\"&$B969&\",\",data[],7),U$909)","v":7.0000000000000007E-2},{"$f":"IF(\"SPECCOST,,\"&V$5&\",\"&$B969&\",\"=VLOOKUP(\"SPECCOST,,\"&V$5&\",\"&$B969&\",\",data[],1),VLOOKUP(\"SPECCOST,,\"&V$5&\",\"&$B969&\",\",data[],7),V$909)","v":7.0000000000000007E-2},null,null,{"$f":"IF(\"SPECCOST,,\"&Y$5&\",\"&$B969&\",\"=VLOOKUP(\"SPECCOST,,\"&Y$5&\",\"&$B969&\",\",data[],1),VLOOKUP(\"SPECCOST,,\"&Y$5&\",\"&$B969&\",\",data[],7),Y$909)","v":1.190463995027624E-3},null,{"$f":"IF(\"SPECCOST,,\"&AA$5&\",\"&$B969&\",\"=VLOOKUP(\"SPECCOST,,\"&AA$5&\",\"&$B969&\",\",data[],1),VLOOKUP(\"SPECCOST,,\"&AA$5&\",\"&$B969&\",\",data[],7),AA$909)","v":0.05},{"$f":"IF(\"SPECCOST,,\"&AB$5&\",\"&$B969&\",\"=VLOOKUP(\"SPECCOST,,\"&AB$5&\",\"&$B969&\",\",data[],1),VLOOKUP(\"SPECCOST,,\"&AB$5&\",\"&$B969&\",\",data[],7),AB$909)","v":7.0000000000000007E-2},{"$f":"IF(\"SPECCOST,,\"&AC$5&\",\"&$B969&\",\"=VLOOKUP(\"SPECCOST,,\"&AC$5&\",\"&$B969&\",\",data[],1),VLOOKUP(\"SPECCOST,,\"&AC$5&\",\"&$B969&\",\",data[],7),AC$909)","v":3.8577660276243091E-2},null,{"$f":"IF(\"SPECCOST,,\"&AE$5&\",\"&$B969&\",\"=VLOOKUP(\"SPECCOST,,\"&AE$5&\",\"&$B969&\",\",data[],1),VLOOKUP(\"SPECCOST,,\"&AE$5&\",\"&$B969&\",\",data[],7),AE$909)","v":0.05},{"$f":"IF(\"SPECCOST,,\"&AF$5&\",\"&$B969&\",\"=VLOOKUP(\"SPECCOST,,\"&AF$5&\",\"&$B969&\",\",data[],1),VLOOKUP(\"SPECCOST,,\"&AF$5&\",\"&$B969&\",\",data[],7),AF$909)","v":7.0000000000000007E-2},{"$f":"IF(\"SPECCOST,,\"&AG$5&\",\"&$B969&\",\"=VLOOKUP(\"SPECCOST,,\"&AG$5&\",\"&$B969&\",\",data[],1),VLOOKUP(\"SPECCOST,,\"&AG$5&\",\"&$B969&\",\",data[],7),AG$909)","v":7.0000000000000007E-2},{"$f":"IF(\"SPECCOST,,\"&AH$5&\",\"&$B969&\",\"=VLOOKUP(\"SPECCOST,,\"&AH$5&\",\"&$B969&\",\",data[],1),VLOOKUP(\"SPECCOST,,\"&AH$5&\",\"&$B969&\",\",data[],7),AH$909)","v":0.05},{"$f":"IF(\"SPECCOST,,\"&AI$5&\",\"&$B969&\",\"=VLOOKUP(\"SPECCOST,,\"&AI$5&\",\"&$B969&\",\",data[],1),VLOOKUP(\"SPECCOST,,\"&AI$5&\",\"&$B969&\",\",data[],7),AI$909)","v":0.01},null,null,{"$f":"IF(\"SPECCOST,,\"&AL$5&\",\"&$B969&\",\"=VLOOKUP(\"SPECCOST,,\"&AL$5&\",\"&$B969&\",\",data[],1),VLOOKUP(\"SPECCOST,,\"&AL$5&\",\"&$B969&\",\",data[],7),AL$909)","v":7.0000000000000007E-2},null,{"$f":"IF(\"SPECCOST,,\"&AN$5&\",\"&$B969&\",\"=VLOOKUP(\"SPECCOST,,\"&AN$5&\",\"&$B969&\",\",data[],1),VLOOKUP(\"SPECCOST,,\"&AN$5&\",\"&$B969&\",\",data[],7),AN$909)","v":7.0000000000000007E-2},null,null,null,null,null,null,null,{"$f":"IF(\"SPECCOST,,\"&AV$5&\",\"&$B969&\",\"=VLOOKUP(\"SPECCOST,,\"&AV$5&\",\"&$B969&\",\",data[],1),VLOOKUP(\"SPECCOST,,\"&AV$5&\",\"&$B969&\",\",data[],7),AV$909)","v":2.7940534453652541E-3},null,null,null,null,null,null,{"$f":"IF(\"SPECCOST,,\"&BC$5&\",\"&sel_country_code&\",\"=VLOOKUP(\"SPECCOST,,\"&BC$5&\",\"&sel_country_code&\",\",data[],1),VLOOKUP(\"SPECCOST,,\"&BC$5&\",\"&sel_country_code&\",\",data[],7),BC$909)","v":0.05},{"$f":"IF(\"SPECCOST,,\"&BD$5&\",\"&sel_country_code&\",\"=VLOOKUP(\"SPECCOST,,\"&BD$5&\",\"&sel_country_code&\",\",data[],1),VLOOKUP(\"SPECCOST,,\"&BD$5&\",\"&sel_country_code&\",\",data[],7),BD$909)","v":7.0000000000000007E-2},null,{"$f":"IF(\"SPECCOST,,\"&BF$5&\",\"&sel_country_code&\",\"=VLOOKUP(\"SPECCOST,,\"&BF$5&\",\"&sel_country_code&\",\",data[],1),VLOOKUP(\"SPECCOST,,\"&BF$5&\",\"&sel_country_code&\",\",data[],7),BF$909)","v":0.05},{"$f":"IF(\"SPECCOST,,\"&BG$5&\",\"&sel_country_code&\",\"=VLOOKUP(\"SPECCOST,,\"&BG$5&\",\"&sel_country_code&\",\",data[],1),VLOOKUP(\"SPECCOST,,\"&BG$5&\",\"&sel_country_code&\",\",data[],7),BG$909)","v":7.0000000000000007E-2}]
[null,"RUS",null,null,null,null,null,null,null,null,null,null,null,null,null,null,null,{"$f":"IF(\"SPECCOST,,\"&R$5&\",\"&$B970&\",\"=VLOOKUP(\"SPECCOST,,\"&R$5&\",\"&$B970&\",\",data[],1),VLOOKUP(\"SPECCOST,,\"&R$5&\",\"&$B970&\",\",data[],7),R$909)","v":1.190463995027624E-3},null,{"$f":"IF(\"SPECCOST,,\"&T$5&\",\"&$B970&\",\"=VLOOKUP(\"SPECCOST,,\"&T$5&\",\"&$B970&\",\",data[],1),VLOOKUP(\"SPECCOST,,\"&T$5&\",\"&$B970&\",\",data[],7),T$909)","v":0.05},{"$f":"IF(\"SPECCOST,,\"&U$5&\",\"&$B970&\",\"=VLOOKUP(\"SPECCOST,,\"&U$5&\",\"&$B970&\",\",data[],1),VLOOKUP(\"SPECCOST,,\"&U$5&\",\"&$B970&\",\",data[],7),U$909)","v":7.0000000000000007E-2},{"$f":"IF(\"SPECCOST,,\"&V$5&\",\"&$B970&\",\"=VLOOKUP(\"SPECCOST,,\"&V$5&\",\"&$B970&\",\",data[],1),VLOOKUP(\"SPECCOST,,\"&V$5&\",\"&$B970&\",\",data[],7),V$909)","v":7.0000000000000007E-2},null,null,{"$f":"IF(\"SPECCOST,,\"&Y$5&\",\"&$B970&\",\"=VLOOKUP(\"SPECCOST,,\"&Y$5&\",\"&$B970&\",\",data[],1),VLOOKUP(\"SPECCOST,,\"&Y$5&\",\"&$B970&\",\",data[],7),Y$909)","v":1.190463995027624E-3},null,{"$f":"IF(\"SPECCOST,,\"&AA$5&\",\"&$B970&\",\"=VLOOKUP(\"SPECCOST,,\"&AA$5&\",\"&$B970&\",\",data[],1),VLOOKUP(\"SPECCOST,,\"&AA$5&\",\"&$B970&\",\",data[],7),AA$909)","v":0.05},{"$f":"IF(\"SPECCOST,,\"&AB$5&\",\"&$B970&\",\"=VLOOKUP(\"SPECCOST,,\"&AB$5&\",\"&$B970&\",\",data[],1),VLOOKUP(\"SPECCOST,,\"&AB$5&\",\"&$B970&\",\",data[],7),AB$909)","v":7.0000000000000007E-2},{"$f":"IF(\"SPECCOST,,\"&AC$5&\",\"&$B970&\",\"=VLOOKUP(\"SPECCOST,,\"&AC$5&\",\"&$B970&\",\",data[],1),VLOOKUP(\"SPECCOST,,\"&AC$5&\",\"&$B970&\",\",data[],7),AC$909)","v":3.8577660276243091E-2},null,{"$f":"IF(\"SPECCOST,,\"&AE$5&\",\"&$B970&\",\"=VLOOKUP(\"SPECCOST,,\"&AE$5&\",\"&$B970&\",\",data[],1),VLOOKUP(\"SPECCOST,,\"&AE$5&\",\"&$B970&\",\",data[],7),AE$909)","v":0.05},{"$f":"IF(\"SPECCOST,,\"&AF$5&\",\"&$B970&\",\"=VLOOKUP(\"SPECCOST,,\"&AF$5&\",\"&$B970&\",\",data[],1),VLOOKUP(\"SPECCOST,,\"&AF$5&\",\"&$B970&\",\",data[],7),AF$909)","v":7.0000000000000007E-2},{"$f":"IF(\"SPECCOST,,\"&AG$5&\",\"&$B970&\",\"=VLOOKUP(\"SPECCOST,,\"&AG$5&\",\"&$B970&\",\",data[],1),VLOOKUP(\"SPECCOST,,\"&AG$5&\",\"&$B970&\",\",data[],7),AG$909)","v":7.0000000000000007E-2},{"$f":"IF(\"SPECCOST,,\"&AH$5&\",\"&$B970&\",\"=VLOOKUP(\"SPECCOST,,\"&AH$5&\",\"&$B970&\",\",data[],1),VLOOKUP(\"SPECCOST,,\"&AH$5&\",\"&$B970&\",\",data[],7),AH$909)","v":0.05},{"$f":"IF(\"SPECCOST,,\"&AI$5&\",\"&$B970&\",\"=VLOOKUP(\"SPECCOST,,\"&AI$5&\",\"&$B970&\",\",data[],1),VLOOKUP(\"SPECCOST,,\"&AI$5&\",\"&$B970&\",\",data[],7),AI$909)","v":0.01},null,null,{"$f":"IF(\"SPECCOST,,\"&AL$5&\",\"&$B970&\",\"=VLOOKUP(\"SPECCOST,,\"&AL$5&\",\"&$B970&\",\",data[],1),VLOOKUP(\"SPECCOST,,\"&AL$5&\",\"&$B970&\",\",data[],7),AL$909)","v":7.0000000000000007E-2},null,{"$f":"IF(\"SPECCOST,,\"&AN$5&\",\"&$B970&\",\"=VLOOKUP(\"SPECCOST,,\"&AN$5&\",\"&$B970&\",\",data[],1),VLOOKUP(\"SPECCOST,,\"&AN$5&\",\"&$B970&\",\",data[],7),AN$909)","v":7.0000000000000007E-2},null,null,null,null,null,null,null,{"$f":"IF(\"SPECCOST,,\"&AV$5&\",\"&$B970&\",\"=VLOOKUP(\"SPECCOST,,\"&AV$5&\",\"&$B970&\",\",data[],1),VLOOKUP(\"SPECCOST,,\"&AV$5&\",\"&$B970&\",\",data[],7),AV$909)","v":2.7940534453652541E-3},null,null,null,null,null,null,{"$f":"IF(\"SPECCOST,,\"&BC$5&\",\"&sel_country_code&\",\"=VLOOKUP(\"SPECCOST,,\"&BC$5&\",\"&sel_country_code&\",\",data[],1),VLOOKUP(\"SPECCOST,,\"&BC$5&\",\"&sel_country_code&\",\",data[],7),BC$909)","v":0.05},{"$f":"IF(\"SPECCOST,,\"&BD$5&\",\"&sel_country_code&\",\"=VLOOKUP(\"SPECCOST,,\"&BD$5&\",\"&sel_country_code&\",\",data[],1),VLOOKUP(\"SPECCOST,,\"&BD$5&\",\"&sel_country_code&\",\",data[],7),BD$909)","v":7.0000000000000007E-2},null,{"$f":"IF(\"SPECCOST,,\"&BF$5&\",\"&sel_country_code&\",\"=VLOOKUP(\"SPECCOST,,\"&BF$5&\",\"&sel_country_code&\",\",data[],1),VLOOKUP(\"SPECCOST,,\"&BF$5&\",\"&sel_country_code&\",\",data[],7),BF$909)","v":0.05},{"$f":"IF(\"SPECCOST,,\"&BG$5&\",\"&sel_country_code&\",\"=VLOOKUP(\"SPECCOST,,\"&BG$5&\",\"&sel_country_code&\",\",data[],1),VLOOKUP(\"SPECCOST,,\"&BG$5&\",\"&sel_country_code&\",\",data[],7),BG$909)","v":7.0000000000000007E-2}]
[null,"SAU",null,null,null,null,null,null,null,null,null,null,null,null,null,null,null,{"$f":"IF(\"SPECCOST,,\"&R$5&\",\"&$B971&\",\"=VLOOKUP(\"SPECCOST,,\"&R$5&\",\"&$B971&\",\",data[],1),VLOOKUP(\"SPECCOST,,\"&R$5&\",\"&$B971&\",\",data[],7),R$909)","v":1.190463995027624E-3},null,{"$f":"IF(\"SPECCOST,,\"&T$5&\",\"&$B971&\",\"=VLOOKUP(\"SPECCOST,,\"&T$5&\",\"&$B971&\",\",data[],1),VLOOKUP(\"SPECCOST,,\"&T$5&\",\"&$B971&\",\",data[],7),T$909)","v":0.05},{"$f":"IF(\"SPECCOST,,\"&U$5&\",\"&$B971&\",\"=VLOOKUP(\"SPECCOST,,\"&U$5&\",\"&$B971&\",\",data[],1),VLOOKUP(\"SPECCOST,,\"&U$5&\",\"&$B971&\",\",data[],7),U$909)","v":7.0000000000000007E-2},{"$f":"IF(\"SPECCOST,,\"&V$5&\",\"&$B971&\",\"=VLOOKUP(\"SPECCOST,,\"&V$5&\",\"&$B971&\",\",data[],1),VLOOKUP(\"SPECCOST,,\"&V$5&\",\"&$B971&\",\",data[],7),V$909)","v":7.0000000000000007E-2},null,null,{"$f":"IF(\"SPECCOST,,\"&Y$5&\",\"&$B971&\",\"=VLOOKUP(\"SPECCOST,,\"&Y$5&\",\"&$B971&\",\",data[],1),VLOOKUP(\"SPECCOST,,\"&Y$5&\",\"&$B971&\",\",data[],7),Y$909)","v":1.190463995027624E-3},null,{"$f":"IF(\"SPECCOST,,\"&AA$5&\",\"&$B971&\",\"=VLOOKUP(\"SPECCOST,,\"&AA$5&\",\"&$B971&\",\",data[],1),VLOOKUP(\"SPECCOST,,\"&AA$5&\",\"&$B971&\",\",data[],7),AA$909)","v":0.05},{"$f":"IF(\"SPECCOST,,\"&AB$5&\",\"&$B971&\",\"=VLOOKUP(\"SPECCOST,,\"&AB$5&\",\"&$B971&\",\",data[],1),VLOOKUP(\"SPECCOST,,\"&AB$5&\",\"&$B971&\",\",data[],7),AB$909)","v":7.0000000000000007E-2},{"$f":"IF(\"SPECCOST,,\"&AC$5&\",\"&$B971&\",\"=VLOOKUP(\"SPECCOST,,\"&AC$5&\",\"&$B971&\",\",data[],1),VLOOKUP(\"SPECCOST,,\"&AC$5&\",\"&$B971&\",\",data[],7),AC$909)","v":3.8577660276243091E-2},null,{"$f":"IF(\"SPECCOST,,\"&AE$5&\",\"&$B971&\",\"=VLOOKUP(\"SPECCOST,,\"&AE$5&\",\"&$B971&\",\",data[],1),VLOOKUP(\"SPECCOST,,\"&AE$5&\",\"&$B971&\",\",data[],7),AE$909)","v":0.05},{"$f":"IF(\"SPECCOST,,\"&AF$5&\",\"&$B971&\",\"=VLOOKUP(\"SPECCOST,,\"&AF$5&\",\"&$B971&\",\",data[],1),VLOOKUP(\"SPECCOST,,\"&AF$5&\",\"&$B971&\",\",data[],7),AF$909)","v":7.0000000000000007E-2},{"$f":"IF(\"SPECCOST,,\"&AG$5&\",\"&$B971&\",\"=VLOOKUP(\"SPECCOST,,\"&AG$5&\",\"&$B971&\",\",data[],1),VLOOKUP(\"SPECCOST,,\"&AG$5&\",\"&$B971&\",\",data[],7),AG$909)","v":7.0000000000000007E-2},{"$f":"IF(\"SPECCOST,,\"&AH$5&\",\"&$B971&\",\"=VLOOKUP(\"SPECCOST,,\"&AH$5&\",\"&$B971&\",\",data[],1),VLOOKUP(\"SPECCOST,,\"&AH$5&\",\"&$B971&\",\",data[],7),AH$909)","v":0.05},{"$f":"IF(\"SPECCOST,,\"&AI$5&\",\"&$B971&\",\"=VLOOKUP(\"SPECCOST,,\"&AI$5&\",\"&$B971&\",\",data[],1),VLOOKUP(\"SPECCOST,,\"&AI$5&\",\"&$B971&\",\",data[],7),AI$909)","v":0.01},null,null,{"$f":"IF(\"SPECCOST,,\"&AL$5&\",\"&$B971&\",\"=VLOOKUP(\"SPECCOST,,\"&AL$5&\",\"&$B971&\",\",data[],1),VLOOKUP(\"SPECCOST,,\"&AL$5&\",\"&$B971&\",\",data[],7),AL$909)","v":7.0000000000000007E-2},null,{"$f":"IF(\"SPECCOST,,\"&AN$5&\",\"&$B971&\",\"=VLOOKUP(\"SPECCOST,,\"&AN$5&\",\"&$B971&\",\",data[],1),VLOOKUP(\"SPECCOST,,\"&AN$5&\",\"&$B971&\",\",data[],7),AN$909)","v":7.0000000000000007E-2},null,null,null,null,null,null,null,{"$f":"IF(\"SPECCOST,,\"&AV$5&\",\"&$B971&\",\"=VLOOKUP(\"SPECCOST,,\"&AV$5&\",\"&$B971&\",\",data[],1),VLOOKUP(\"SPECCOST,,\"&AV$5&\",\"&$B971&\",\",data[],7),AV$909)","v":2.7940534453652541E-3},null,null,null,null,null,null,{"$f":"IF(\"SPECCOST,,\"&BC$5&\",\"&sel_country_code&\",\"=VLOOKUP(\"SPECCOST,,\"&BC$5&\",\"&sel_country_code&\",\",data[],1),VLOOKUP(\"SPECCOST,,\"&BC$5&\",\"&sel_country_code&\",\",data[],7),BC$909)","v":0.05},{"$f":"IF(\"SPECCOST,,\"&BD$5&\",\"&sel_country_code&\",\"=VLOOKUP(\"SPECCOST,,\"&BD$5&\",\"&sel_country_code&\",\",data[],1),VLOOKUP(\"SPECCOST,,\"&BD$5&\",\"&sel_country_code&\",\",data[],7),BD$909)","v":7.0000000000000007E-2},null,{"$f":"IF(\"SPECCOST,,\"&BF$5&\",\"&sel_country_code&\",\"=VLOOKUP(\"SPECCOST,,\"&BF$5&\",\"&sel_country_code&\",\",data[],1),VLOOKUP(\"SPECCOST,,\"&BF$5&\",\"&sel_country_code&\",\",data[],7),BF$909)","v":0.05},{"$f":"IF(\"SPECCOST,,\"&BG$5&\",\"&sel_country_code&\",\"=VLOOKUP(\"SPECCOST,,\"&BG$5&\",\"&sel_country_code&\",\",data[],1),VLOOKUP(\"SPECCOST,,\"&BG$5&\",\"&sel_country_code&\",\",data[],7),BG$909)","v":7.0000000000000007E-2}]
[null,"SWE",null,null,null,null,null,null,null,null,null,null,null,null,null,null,null,{"$f":"IF(\"SPECCOST,,\"&R$5&\",\"&$B972&\",\"=VLOOKUP(\"SPECCOST,,\"&R$5&\",\"&$B972&\",\",data[],1),VLOOKUP(\"SPECCOST,,\"&R$5&\",\"&$B972&\",\",data[],7),R$909)","v":1.190463995027624E-3},null,{"$f":"IF(\"SPECCOST,,\"&T$5&\",\"&$B972&\",\"=VLOOKUP(\"SPECCOST,,\"&T$5&\",\"&$B972&\",\",data[],1),VLOOKUP(\"SPECCOST,,\"&T$5&\",\"&$B972&\",\",data[],7),T$909)","v":0.05},{"$f":"IF(\"SPECCOST,,\"&U$5&\",\"&$B972&\",\"=VLOOKUP(\"SPECCOST,,\"&U$5&\",\"&$B972&\",\",data[],1),VLOOKUP(\"SPECCOST,,\"&U$5&\",\"&$B972&\",\",data[],7),U$909)","v":7.0000000000000007E-2},{"$f":"IF(\"SPECCOST,,\"&V$5&\",\"&$B972&\",\"=VLOOKUP(\"SPECCOST,,\"&V$5&\",\"&$B972&\",\",data[],1),VLOOKUP(\"SPECCOST,,\"&V$5&\",\"&$B972&\",\",data[],7),V$909)","v":7.0000000000000007E-2},null,null,{"$f":"IF(\"SPECCOST,,\"&Y$5&\",\"&$B972&\",\"=VLOOKUP(\"SPECCOST,,\"&Y$5&\",\"&$B972&\",\",data[],1),VLOOKUP(\"SPECCOST,,\"&Y$5&\",\"&$B972&\",\",data[],7),Y$909)","v":1.190463995027624E-3},null,{"$f":"IF(\"SPECCOST,,\"&AA$5&\",\"&$B972&\",\"=VLOOKUP(\"SPECCOST,,\"&AA$5&\",\"&$B972&\",\",data[],1),VLOOKUP(\"SPECCOST,,\"&AA$5&\",\"&$B972&\",\",data[],7),AA$909)","v":0.05},{"$f":"IF(\"SPECCOST,,\"&AB$5&\",\"&$B972&\",\"=VLOOKUP(\"SPECCOST,,\"&AB$5&\",\"&$B972&\",\",data[],1),VLOOKUP(\"SPECCOST,,\"&AB$5&\",\"&$B972&\",\",data[],7),AB$909)","v":7.0000000000000007E-2},{"$f":"IF(\"SPECCOST,,\"&AC$5&\",\"&$B972&\",\"=VLOOKUP(\"SPECCOST,,\"&AC$5&\",\"&$B972&\",\",data[],1),VLOOKUP(\"SPECCOST,,\"&AC$5&\",\"&$B972&\",\",data[],7),AC$909)","v":3.8577660276243091E-2},null,{"$f":"IF(\"SPECCOST,,\"&AE$5&\",\"&$B972&\",\"=VLOOKUP(\"SPECCOST,,\"&AE$5&\",\"&$B972&\",\",data[],1),VLOOKUP(\"SPECCOST,,\"&AE$5&\",\"&$B972&\",\",data[],7),AE$909)","v":0.05},{"$f":"IF(\"SPECCOST,,\"&AF$5&\",\"&$B972&\",\"=VLOOKUP(\"SPECCOST,,\"&AF$5&\",\"&$B972&\",\",data[],1),VLOOKUP(\"SPECCOST,,\"&AF$5&\",\"&$B972&\",\",data[],7),AF$909)","v":7.0000000000000007E-2},{"$f":"IF(\"SPECCOST,,\"&AG$5&\",\"&$B972&\",\"=VLOOKUP(\"SPECCOST,,\"&AG$5&\",\"&$B972&\",\",data[],1),VLOOKUP(\"SPECCOST,,\"&AG$5&\",\"&$B972&\",\",data[],7),AG$909)","v":7.0000000000000007E-2},{"$f":"IF(\"SPECCOST,,\"&AH$5&\",\"&$B972&\",\"=VLOOKUP(\"SPECCOST,,\"&AH$5&\",\"&$B972&\",\",data[],1),VLOOKUP(\"SPECCOST,,\"&AH$5&\",\"&$B972&\",\",data[],7),AH$909)","v":0.05},{"$f":"IF(\"SPECCOST,,\"&AI$5&\",\"&$B972&\",\"=VLOOKUP(\"SPECCOST,,\"&AI$5&\",\"&$B972&\",\",data[],1),VLOOKUP(\"SPECCOST,,\"&AI$5&\",\"&$B972&\",\",data[],7),AI$909)","v":0.01},null,null,{"$f":"IF(\"SPECCOST,,\"&AL$5&\",\"&$B972&\",\"=VLOOKUP(\"SPECCOST,,\"&AL$5&\",\"&$B972&\",\",data[],1),VLOOKUP(\"SPECCOST,,\"&AL$5&\",\"&$B972&\",\",data[],7),AL$909)","v":7.0000000000000007E-2},null,{"$f":"IF(\"SPECCOST,,\"&AN$5&\",\"&$B972&\",\"=VLOOKUP(\"SPECCOST,,\"&AN$5&\",\"&$B972&\",\",data[],1),VLOOKUP(\"SPECCOST,,\"&AN$5&\",\"&$B972&\",\",data[],7),AN$909)","v":7.0000000000000007E-2},null,null,null,null,null,null,null,{"$f":"IF(\"SPECCOST,,\"&AV$5&\",\"&$B972&\",\"=VLOOKUP(\"SPECCOST,,\"&AV$5&\",\"&$B972&\",\",data[],1),VLOOKUP(\"SPECCOST,,\"&AV$5&\",\"&$B972&\",\",data[],7),AV$909)","v":2.7940534453652541E-3},null,null,null,null,null,null,{"$f":"IF(\"SPECCOST,,\"&BC$5&\",\"&sel_country_code&\",\"=VLOOKUP(\"SPECCOST,,\"&BC$5&\",\"&sel_country_code&\",\",data[],1),VLOOKUP(\"SPECCOST,,\"&BC$5&\",\"&sel_country_code&\",\",data[],7),BC$909)","v":0.05},{"$f":"IF(\"SPECCOST,,\"&BD$5&\",\"&sel_country_code&\",\"=VLOOKUP(\"SPECCOST,,\"&BD$5&\",\"&sel_country_code&\",\",data[],1),VLOOKUP(\"SPECCOST,,\"&BD$5&\",\"&sel_country_code&\",\",data[],7),BD$909)","v":7.0000000000000007E-2},null,{"$f":"IF(\"SPECCOST,,\"&BF$5&\",\"&sel_country_code&\",\"=VLOOKUP(\"SPECCOST,,\"&BF$5&\",\"&sel_country_code&\",\",data[],1),VLOOKUP(\"SPECCOST,,\"&BF$5&\",\"&sel_country_code&\",\",data[],7),BF$909)","v":0.05},{"$f":"IF(\"SPECCOST,,\"&BG$5&\",\"&sel_country_code&\",\"=VLOOKUP(\"SPECCOST,,\"&BG$5&\",\"&sel_country_code&\",\",data[],1),VLOOKUP(\"SPECCOST,,\"&BG$5&\",\"&sel_country_code&\",\",data[],7),BG$909)","v":7.0000000000000007E-2}]
[null,"THA",null,null,null,null,null,null,null,null,null,null,null,null,null,null,null,{"$f":"IF(\"SPECCOST,,\"&R$5&\",\"&$B973&\",\"=VLOOKUP(\"SPECCOST,,\"&R$5&\",\"&$B973&\",\",data[],1),VLOOKUP(\"SPECCOST,,\"&R$5&\",\"&$B973&\",\",data[],7),R$909)","v":1.190463995027624E-3},null,{"$f":"IF(\"SPECCOST,,\"&T$5&\",\"&$B973&\",\"=VLOOKUP(\"SPECCOST,,\"&T$5&\",\"&$B973&\",\",data[],1),VLOOKUP(\"SPECCOST,,\"&T$5&\",\"&$B973&\",\",data[],7),T$909)","v":0.05},{"$f":"IF(\"SPECCOST,,\"&U$5&\",\"&$B973&\",\"=VLOOKUP(\"SPECCOST,,\"&U$5&\",\"&$B973&\",\",data[],1),VLOOKUP(\"SPECCOST,,\"&U$5&\",\"&$B973&\",\",data[],7),U$909)","v":7.0000000000000007E-2},{"$f":"IF(\"SPECCOST,,\"&V$5&\",\"&$B973&\",\"=VLOOKUP(\"SPECCOST,,\"&V$5&\",\"&$B973&\",\",data[],1),VLOOKUP(\"SPECCOST,,\"&V$5&\",\"&$B973&\",\",data[],7),V$909)","v":7.0000000000000007E-2},null,null,{"$f":"IF(\"SPECCOST,,\"&Y$5&\",\"&$B973&\",\"=VLOOKUP(\"SPECCOST,,\"&Y$5&\",\"&$B973&\",\",data[],1),VLOOKUP(\"SPECCOST,,\"&Y$5&\",\"&$B973&\",\",data[],7),Y$909)","v":1.190463995027624E-3},null,{"$f":"IF(\"SPECCOST,,\"&AA$5&\",\"&$B973&\",\"=VLOOKUP(\"SPECCOST,,\"&AA$5&\",\"&$B973&\",\",data[],1),VLOOKUP(\"SPECCOST,,\"&AA$5&\",\"&$B973&\",\",data[],7),AA$909)","v":0.05},{"$f":"IF(\"SPECCOST,,\"&AB$5&\",\"&$B973&\",\"=VLOOKUP(\"SPECCOST,,\"&AB$5&\",\"&$B973&\",\",data[],1),VLOOKUP(\"SPECCOST,,\"&AB$5&\",\"&$B973&\",\",data[],7),AB$909)","v":7.0000000000000007E-2},{"$f":"IF(\"SPECCOST,,\"&AC$5&\",\"&$B973&\",\"=VLOOKUP(\"SPECCOST,,\"&AC$5&\",\"&$B973&\",\",data[],1),VLOOKUP(\"SPECCOST,,\"&AC$5&\",\"&$B973&\",\",data[],7),AC$909)","v":3.8577660276243091E-2},null,{"$f":"IF(\"SPECCOST,,\"&AE$5&\",\"&$B973&\",\"=VLOOKUP(\"SPECCOST,,\"&AE$5&\",\"&$B973&\",\",data[],1),VLOOKUP(\"SPECCOST,,\"&AE$5&\",\"&$B973&\",\",data[],7),AE$909)","v":0.05},{"$f":"IF(\"SPECCOST,,\"&AF$5&\",\"&$B973&\",\"=VLOOKUP(\"SPECCOST,,\"&AF$5&\",\"&$B973&\",\",data[],1),VLOOKUP(\"SPECCOST,,\"&AF$5&\",\"&$B973&\",\",data[],7),AF$909)","v":7.0000000000000007E-2},{"$f":"IF(\"SPECCOST,,\"&AG$5&\",\"&$B973&\",\"=VLOOKUP(\"SPECCOST,,\"&AG$5&\",\"&$B973&\",\",data[],1),VLOOKUP(\"SPECCOST,,\"&AG$5&\",\"&$B973&\",\",data[],7),AG$909)","v":7.0000000000000007E-2},{"$f":"IF(\"SPECCOST,,\"&AH$5&\",\"&$B973&\",\"=VLOOKUP(\"SPECCOST,,\"&AH$5&\",\"&$B973&\",\",data[],1),VLOOKUP(\"SPECCOST,,\"&AH$5&\",\"&$B973&\",\",data[],7),AH$909)","v":0.05},{"$f":"IF(\"SPECCOST,,\"&AI$5&\",\"&$B973&\",\"=VLOOKUP(\"SPECCOST,,\"&AI$5&\",\"&$B973&\",\",data[],1),VLOOKUP(\"SPECCOST,,\"&AI$5&\",\"&$B973&\",\",data[],7),AI$909)","v":0.01},null,null,{"$f":"IF(\"SPECCOST,,\"&AL$5&\",\"&$B973&\",\"=VLOOKUP(\"SPECCOST,,\"&AL$5&\",\"&$B973&\",\",data[],1),VLOOKUP(\"SPECCOST,,\"&AL$5&\",\"&$B973&\",\",data[],7),AL$909)","v":7.0000000000000007E-2},null,{"$f":"IF(\"SPECCOST,,\"&AN$5&\",\"&$B973&\",\"=VLOOKUP(\"SPECCOST,,\"&AN$5&\",\"&$B973&\",\",data[],1),VLOOKUP(\"SPECCOST,,\"&AN$5&\",\"&$B973&\",\",data[],7),AN$909)","v":7.0000000000000007E-2},null,null,null,null,null,null,null,{"$f":"IF(\"SPECCOST,,\"&AV$5&\",\"&$B973&\",\"=VLOOKUP(\"SPECCOST,,\"&AV$5&\",\"&$B973&\",\",data[],1),VLOOKUP(\"SPECCOST,,\"&AV$5&\",\"&$B973&\",\",data[],7),AV$909)","v":2.7940534453652541E-3},null,null,null,null,null,null,{"$f":"IF(\"SPECCOST,,\"&BC$5&\",\"&sel_country_code&\",\"=VLOOKUP(\"SPECCOST,,\"&BC$5&\",\"&sel_country_code&\",\",data[],1),VLOOKUP(\"SPECCOST,,\"&BC$5&\",\"&sel_country_code&\",\",data[],7),BC$909)","v":0.05},{"$f":"IF(\"SPECCOST,,\"&BD$5&\",\"&sel_country_code&\",\"=VLOOKUP(\"SPECCOST,,\"&BD$5&\",\"&sel_country_code&\",\",data[],1),VLOOKUP(\"SPECCOST,,\"&BD$5&\",\"&sel_country_code&\",\",data[],7),BD$909)","v":7.0000000000000007E-2},null,{"$f":"IF(\"SPECCOST,,\"&BF$5&\",\"&sel_country_code&\",\"=VLOOKUP(\"SPECCOST,,\"&BF$5&\",\"&sel_country_code&\",\",data[],1),VLOOKUP(\"SPECCOST,,\"&BF$5&\",\"&sel_country_code&\",\",data[],7),BF$909)","v":0.05},{"$f":"IF(\"SPECCOST,,\"&BG$5&\",\"&sel_country_code&\",\"=VLOOKUP(\"SPECCOST,,\"&BG$5&\",\"&sel_country_code&\",\",data[],1),VLOOKUP(\"SPECCOST,,\"&BG$5&\",\"&sel_country_code&\",\",data[],7),BG$909)","v":7.0000000000000007E-2}]
[null,"TUN",null,null,null,null,null,null,null,null,null,null,null,null,null,null,null,{"$f":"IF(\"SPECCOST,,\"&R$5&\",\"&$B974&\",\"=VLOOKUP(\"SPECCOST,,\"&R$5&\",\"&$B974&\",\",data[],1),VLOOKUP(\"SPECCOST,,\"&R$5&\",\"&$B974&\",\",data[],7),R$909)","v":1.190463995027624E-3},null,{"$f":"IF(\"SPECCOST,,\"&T$5&\",\"&$B974&\",\"=VLOOKUP(\"SPECCOST,,\"&T$5&\",\"&$B974&\",\",data[],1),VLOOKUP(\"SPECCOST,,\"&T$5&\",\"&$B974&\",\",data[],7),T$909)","v":0.05},{"$f":"IF(\"SPECCOST,,\"&U$5&\",\"&$B974&\",\"=VLOOKUP(\"SPECCOST,,\"&U$5&\",\"&$B974&\",\",data[],1),VLOOKUP(\"SPECCOST,,\"&U$5&\",\"&$B974&\",\",data[],7),U$909)","v":7.0000000000000007E-2},{"$f":"IF(\"SPECCOST,,\"&V$5&\",\"&$B974&\",\"=VLOOKUP(\"SPECCOST,,\"&V$5&\",\"&$B974&\",\",data[],1),VLOOKUP(\"SPECCOST,,\"&V$5&\",\"&$B974&\",\",data[],7),V$909)","v":7.0000000000000007E-2},null,null,{"$f":"IF(\"SPECCOST,,\"&Y$5&\",\"&$B974&\",\"=VLOOKUP(\"SPECCOST,,\"&Y$5&\",\"&$B974&\",\",data[],1),VLOOKUP(\"SPECCOST,,\"&Y$5&\",\"&$B974&\",\",data[],7),Y$909)","v":1.190463995027624E-3},null,{"$f":"IF(\"SPECCOST,,\"&AA$5&\",\"&$B974&\",\"=VLOOKUP(\"SPECCOST,,\"&AA$5&\",\"&$B974&\",\",data[],1),VLOOKUP(\"SPECCOST,,\"&AA$5&\",\"&$B974&\",\",data[],7),AA$909)","v":0.05},{"$f":"IF(\"SPECCOST,,\"&AB$5&\",\"&$B974&\",\"=VLOOKUP(\"SPECCOST,,\"&AB$5&\",\"&$B974&\",\",data[],1),VLOOKUP(\"SPECCOST,,\"&AB$5&\",\"&$B974&\",\",data[],7),AB$909)","v":7.0000000000000007E-2},{"$f":"IF(\"SPECCOST,,\"&AC$5&\",\"&$B974&\",\"=VLOOKUP(\"SPECCOST,,\"&AC$5&\",\"&$B974&\",\",data[],1),VLOOKUP(\"SPECCOST,,\"&AC$5&\",\"&$B974&\",\",data[],7),AC$909)","v":3.8577660276243091E-2},null,{"$f":"IF(\"SPECCOST,,\"&AE$5&\",\"&$B974&\",\"=VLOOKUP(\"SPECCOST,,\"&AE$5&\",\"&$B974&\",\",data[],1),VLOOKUP(\"SPECCOST,,\"&AE$5&\",\"&$B974&\",\",data[],7),AE$909)","v":0.05},{"$f":"IF(\"SPECCOST,,\"&AF$5&\",\"&$B974&\",\"=VLOOKUP(\"SPECCOST,,\"&AF$5&\",\"&$B974&\",\",data[],1),VLOOKUP(\"SPECCOST,,\"&AF$5&\",\"&$B974&\",\",data[],7),AF$909)","v":7.0000000000000007E-2},{"$f":"IF(\"SPECCOST,,\"&AG$5&\",\"&$B974&\",\"=VLOOKUP(\"SPECCOST,,\"&AG$5&\",\"&$B974&\",\",data[],1),VLOOKUP(\"SPECCOST,,\"&AG$5&\",\"&$B974&\",\",data[],7),AG$909)","v":7.0000000000000007E-2},{"$f":"IF(\"SPECCOST,,\"&AH$5&\",\"&$B974&\",\"=VLOOKUP(\"SPECCOST,,\"&AH$5&\",\"&$B974&\",\",data[],1),VLOOKUP(\"SPECCOST,,\"&AH$5&\",\"&$B974&\",\",data[],7),AH$909)","v":0.05},{"$f":"IF(\"SPECCOST,,\"&AI$5&\",\"&$B974&\",\"=VLOOKUP(\"SPECCOST,,\"&AI$5&\",\"&$B974&\",\",data[],1),VLOOKUP(\"SPECCOST,,\"&AI$5&\",\"&$B974&\",\",data[],7),AI$909)","v":0.01},null,null,{"$f":"IF(\"SPECCOST,,\"&AL$5&\",\"&$B974&\",\"=VLOOKUP(\"SPECCOST,,\"&AL$5&\",\"&$B974&\",\",data[],1),VLOOKUP(\"SPECCOST,,\"&AL$5&\",\"&$B974&\",\",data[],7),AL$909)","v":7.0000000000000007E-2},null,{"$f":"IF(\"SPECCOST,,\"&AN$5&\",\"&$B974&\",\"=VLOOKUP(\"SPECCOST,,\"&AN$5&\",\"&$B974&\",\",data[],1),VLOOKUP(\"SPECCOST,,\"&AN$5&\",\"&$B974&\",\",data[],7),AN$909)","v":7.0000000000000007E-2},null,null,null,null,null,null,null,{"$f":"IF(\"SPECCOST,,\"&AV$5&\",\"&$B974&\",\"=VLOOKUP(\"SPECCOST,,\"&AV$5&\",\"&$B974&\",\",data[],1),VLOOKUP(\"SPECCOST,,\"&AV$5&\",\"&$B974&\",\",data[],7),AV$909)","v":2.7940534453652541E-3},null,null,null,null,null,null,{"$f":"IF(\"SPECCOST,,\"&BC$5&\",\"&sel_country_code&\",\"=VLOOKUP(\"SPECCOST,,\"&BC$5&\",\"&sel_country_code&\",\",data[],1),VLOOKUP(\"SPECCOST,,\"&BC$5&\",\"&sel_country_code&\",\",data[],7),BC$909)","v":0.05},{"$f":"IF(\"SPECCOST,,\"&BD$5&\",\"&sel_country_code&\",\"=VLOOKUP(\"SPECCOST,,\"&BD$5&\",\"&sel_country_code&\",\",data[],1),VLOOKUP(\"SPECCOST,,\"&BD$5&\",\"&sel_country_code&\",\",data[],7),BD$909)","v":7.0000000000000007E-2},null,{"$f":"IF(\"SPECCOST,,\"&BF$5&\",\"&sel_country_code&\",\"=VLOOKUP(\"SPECCOST,,\"&BF$5&\",\"&sel_country_code&\",\",data[],1),VLOOKUP(\"SPECCOST,,\"&BF$5&\",\"&sel_country_code&\",\",data[],7),BF$909)","v":0.05},{"$f":"IF(\"SPECCOST,,\"&BG$5&\",\"&sel_country_code&\",\"=VLOOKUP(\"SPECCOST,,\"&BG$5&\",\"&sel_country_code&\",\",data[],1),VLOOKUP(\"SPECCOST,,\"&BG$5&\",\"&sel_country_code&\",\",data[],7),BG$909)","v":7.0000000000000007E-2}]
[null,"UKR",null,null,null,null,null,null,null,null,null,null,null,null,null,null,null,{"$f":"IF(\"SPECCOST,,\"&R$5&\",\"&$B975&\",\"=VLOOKUP(\"SPECCOST,,\"&R$5&\",\"&$B975&\",\",data[],1),VLOOKUP(\"SPECCOST,,\"&R$5&\",\"&$B975&\",\",data[],7),R$909)","v":1.190463995027624E-3},null,{"$f":"IF(\"SPECCOST,,\"&T$5&\",\"&$B975&\",\"=VLOOKUP(\"SPECCOST,,\"&T$5&\",\"&$B975&\",\",data[],1),VLOOKUP(\"SPECCOST,,\"&T$5&\",\"&$B975&\",\",data[],7),T$909)","v":0.05},{"$f":"IF(\"SPECCOST,,\"&U$5&\",\"&$B975&\",\"=VLOOKUP(\"SPECCOST,,\"&U$5&\",\"&$B975&\",\",data[],1),VLOOKUP(\"SPECCOST,,\"&U$5&\",\"&$B975&\",\",data[],7),U$909)","v":7.0000000000000007E-2},{"$f":"IF(\"SPECCOST,,\"&V$5&\",\"&$B975&\",\"=VLOOKUP(\"SPECCOST,,\"&V$5&\",\"&$B975&\",\",data[],1),VLOOKUP(\"SPECCOST,,\"&V$5&\",\"&$B975&\",\",data[],7),V$909)","v":7.0000000000000007E-2},null,null,{"$f":"IF(\"SPECCOST,,\"&Y$5&\",\"&$B975&\",\"=VLOOKUP(\"SPECCOST,,\"&Y$5&\",\"&$B975&\",\",data[],1),VLOOKUP(\"SPECCOST,,\"&Y$5&\",\"&$B975&\",\",data[],7),Y$909)","v":1.190463995027624E-3},null,{"$f":"IF(\"SPECCOST,,\"&AA$5&\",\"&$B975&\",\"=VLOOKUP(\"SPECCOST,,\"&AA$5&\",\"&$B975&\",\",data[],1),VLOOKUP(\"SPECCOST,,\"&AA$5&\",\"&$B975&\",\",data[],7),AA$909)","v":0.05},{"$f":"IF(\"SPECCOST,,\"&AB$5&\",\"&$B975&\",\"=VLOOKUP(\"SPECCOST,,\"&AB$5&\",\"&$B975&\",\",data[],1),VLOOKUP(\"SPECCOST,,\"&AB$5&\",\"&$B975&\",\",data[],7),AB$909)","v":7.0000000000000007E-2},{"$f":"IF(\"SPECCOST,,\"&AC$5&\",\"&$B975&\",\"=VLOOKUP(\"SPECCOST,,\"&AC$5&\",\"&$B975&\",\",data[],1),VLOOKUP(\"SPECCOST,,\"&AC$5&\",\"&$B975&\",\",data[],7),AC$909)","v":3.8577660276243091E-2},null,{"$f":"IF(\"SPECCOST,,\"&AE$5&\",\"&$B975&\",\"=VLOOKUP(\"SPECCOST,,\"&AE$5&\",\"&$B975&\",\",data[],1),VLOOKUP(\"SPECCOST,,\"&AE$5&\",\"&$B975&\",\",data[],7),AE$909)","v":0.05},{"$f":"IF(\"SPECCOST,,\"&AF$5&\",\"&$B975&\",\"=VLOOKUP(\"SPECCOST,,\"&AF$5&\",\"&$B975&\",\",data[],1),VLOOKUP(\"SPECCOST,,\"&AF$5&\",\"&$B975&\",\",data[],7),AF$909)","v":7.0000000000000007E-2},{"$f":"IF(\"SPECCOST,,\"&AG$5&\",\"&$B975&\",\"=VLOOKUP(\"SPECCOST,,\"&AG$5&\",\"&$B975&\",\",data[],1),VLOOKUP(\"SPECCOST,,\"&AG$5&\",\"&$B975&\",\",data[],7),AG$909)","v":7.0000000000000007E-2},{"$f":"IF(\"SPECCOST,,\"&AH$5&\",\"&$B975&\",\"=VLOOKUP(\"SPECCOST,,\"&AH$5&\",\"&$B975&\",\",data[],1),VLOOKUP(\"SPECCOST,,\"&AH$5&\",\"&$B975&\",\",data[],7),AH$909)","v":0.05},{"$f":"IF(\"SPECCOST,,\"&AI$5&\",\"&$B975&\",\"=VLOOKUP(\"SPECCOST,,\"&AI$5&\",\"&$B975&\",\",data[],1),VLOOKUP(\"SPECCOST,,\"&AI$5&\",\"&$B975&\",\",data[],7),AI$909)","v":0.01},null,null,{"$f":"IF(\"SPECCOST,,\"&AL$5&\",\"&$B975&\",\"=VLOOKUP(\"SPECCOST,,\"&AL$5&\",\"&$B975&\",\",data[],1),VLOOKUP(\"SPECCOST,,\"&AL$5&\",\"&$B975&\",\",data[],7),AL$909)","v":7.0000000000000007E-2},null,{"$f":"IF(\"SPECCOST,,\"&AN$5&\",\"&$B975&\",\"=VLOOKUP(\"SPECCOST,,\"&AN$5&\",\"&$B975&\",\",data[],1),VLOOKUP(\"SPECCOST,,\"&AN$5&\",\"&$B975&\",\",data[],7),AN$909)","v":7.0000000000000007E-2},null,null,null,null,null,null,null,{"$f":"IF(\"SPECCOST,,\"&AV$5&\",\"&$B975&\",\"=VLOOKUP(\"SPECCOST,,\"&AV$5&\",\"&$B975&\",\",data[],1),VLOOKUP(\"SPECCOST,,\"&AV$5&\",\"&$B975&\",\",data[],7),AV$909)","v":2.7940534453652541E-3},null,null,null,null,null,null,{"$f":"IF(\"SPECCOST,,\"&BC$5&\",\"&sel_country_code&\",\"=VLOOKUP(\"SPECCOST,,\"&BC$5&\",\"&sel_country_code&\",\",data[],1),VLOOKUP(\"SPECCOST,,\"&BC$5&\",\"&sel_country_code&\",\",data[],7),BC$909)","v":0.05},{"$f":"IF(\"SPECCOST,,\"&BD$5&\",\"&sel_country_code&\",\"=VLOOKUP(\"SPECCOST,,\"&BD$5&\",\"&sel_country_code&\",\",data[],1),VLOOKUP(\"SPECCOST,,\"&BD$5&\",\"&sel_country_code&\",\",data[],7),BD$909)","v":7.0000000000000007E-2},null,{"$f":"IF(\"SPECCOST,,\"&BF$5&\",\"&sel_country_code&\",\"=VLOOKUP(\"SPECCOST,,\"&BF$5&\",\"&sel_country_code&\",\",data[],1),VLOOKUP(\"SPECCOST,,\"&BF$5&\",\"&sel_country_code&\",\",data[],7),BF$909)","v":0.05},{"$f":"IF(\"SPECCOST,,\"&BG$5&\",\"&sel_country_code&\",\"=VLOOKUP(\"SPECCOST,,\"&BG$5&\",\"&sel_country_code&\",\",data[],1),VLOOKUP(\"SPECCOST,,\"&BG$5&\",\"&sel_country_code&\",\",data[],7),BG$909)","v":7.0000000000000007E-2}]
[null,"URY",null,null,null,null,null,null,null,null,null,null,null,null,null,null,null,{"$f":"IF(\"SPECCOST,,\"&R$5&\",\"&$B976&\",\"=VLOOKUP(\"SPECCOST,,\"&R$5&\",\"&$B976&\",\",data[],1),VLOOKUP(\"SPECCOST,,\"&R$5&\",\"&$B976&\",\",data[],7),R$909)","v":1.190463995027624E-3},null,{"$f":"IF(\"SPECCOST,,\"&T$5&\",\"&$B976&\",\"=VLOOKUP(\"SPECCOST,,\"&T$5&\",\"&$B976&\",\",data[],1),VLOOKUP(\"SPECCOST,,\"&T$5&\",\"&$B976&\",\",data[],7),T$909)","v":0.05},{"$f":"IF(\"SPECCOST,,\"&U$5&\",\"&$B976&\",\"=VLOOKUP(\"SPECCOST,,\"&U$5&\",\"&$B976&\",\",data[],1),VLOOKUP(\"SPECCOST,,\"&U$5&\",\"&$B976&\",\",data[],7),U$909)","v":7.0000000000000007E-2},{"$f":"IF(\"SPECCOST,,\"&V$5&\",\"&$B976&\",\"=VLOOKUP(\"SPECCOST,,\"&V$5&\",\"&$B976&\",\",data[],1),VLOOKUP(\"SPECCOST,,\"&V$5&\",\"&$B976&\",\",data[],7),V$909)","v":7.0000000000000007E-2},null,null,{"$f":"IF(\"SPECCOST,,\"&Y$5&\",\"&$B976&\",\"=VLOOKUP(\"SPECCOST,,\"&Y$5&\",\"&$B976&\",\",data[],1),VLOOKUP(\"SPECCOST,,\"&Y$5&\",\"&$B976&\",\",data[],7),Y$909)","v":1.190463995027624E-3},null,{"$f":"IF(\"SPECCOST,,\"&AA$5&\",\"&$B976&\",\"=VLOOKUP(\"SPECCOST,,\"&AA$5&\",\"&$B976&\",\",data[],1),VLOOKUP(\"SPECCOST,,\"&AA$5&\",\"&$B976&\",\",data[],7),AA$909)","v":0.05},{"$f":"IF(\"SPECCOST,,\"&AB$5&\",\"&$B976&\",\"=VLOOKUP(\"SPECCOST,,\"&AB$5&\",\"&$B976&\",\",data[],1),VLOOKUP(\"SPECCOST,,\"&AB$5&\",\"&$B976&\",\",data[],7),AB$909)","v":7.0000000000000007E-2},{"$f":"IF(\"SPECCOST,,\"&AC$5&\",\"&$B976&\",\"=VLOOKUP(\"SPECCOST,,\"&AC$5&\",\"&$B976&\",\",data[],1),VLOOKUP(\"SPECCOST,,\"&AC$5&\",\"&$B976&\",\",data[],7),AC$909)","v":3.8577660276243091E-2},null,{"$f":"IF(\"SPECCOST,,\"&AE$5&\",\"&$B976&\",\"=VLOOKUP(\"SPECCOST,,\"&AE$5&\",\"&$B976&\",\",data[],1),VLOOKUP(\"SPECCOST,,\"&AE$5&\",\"&$B976&\",\",data[],7),AE$909)","v":0.05},{"$f":"IF(\"SPECCOST,,\"&AF$5&\",\"&$B976&\",\"=VLOOKUP(\"SPECCOST,,\"&AF$5&\",\"&$B976&\",\",data[],1),VLOOKUP(\"SPECCOST,,\"&AF$5&\",\"&$B976&\",\",data[],7),AF$909)","v":7.0000000000000007E-2},{"$f":"IF(\"SPECCOST,,\"&AG$5&\",\"&$B976&\",\"=VLOOKUP(\"SPECCOST,,\"&AG$5&\",\"&$B976&\",\",data[],1),VLOOKUP(\"SPECCOST,,\"&AG$5&\",\"&$B976&\",\",data[],7),AG$909)","v":7.0000000000000007E-2},{"$f":"IF(\"SPECCOST,,\"&AH$5&\",\"&$B976&\",\"=VLOOKUP(\"SPECCOST,,\"&AH$5&\",\"&$B976&\",\",data[],1),VLOOKUP(\"SPECCOST,,\"&AH$5&\",\"&$B976&\",\",data[],7),AH$909)","v":0.05},{"$f":"IF(\"SPECCOST,,\"&AI$5&\",\"&$B976&\",\"=VLOOKUP(\"SPECCOST,,\"&AI$5&\",\"&$B976&\",\",data[],1),VLOOKUP(\"SPECCOST,,\"&AI$5&\",\"&$B976&\",\",data[],7),AI$909)","v":0.01},null,null,{"$f":"IF(\"SPECCOST,,\"&AL$5&\",\"&$B976&\",\"=VLOOKUP(\"SPECCOST,,\"&AL$5&\",\"&$B976&\",\",data[],1),VLOOKUP(\"SPECCOST,,\"&AL$5&\",\"&$B976&\",\",data[],7),AL$909)","v":7.0000000000000007E-2},null,{"$f":"IF(\"SPECCOST,,\"&AN$5&\",\"&$B976&\",\"=VLOOKUP(\"SPECCOST,,\"&AN$5&\",\"&$B976&\",\",data[],1),VLOOKUP(\"SPECCOST,,\"&AN$5&\",\"&$B976&\",\",data[],7),AN$909)","v":7.0000000000000007E-2},null,null,null,null,null,null,null,{"$f":"IF(\"SPECCOST,,\"&AV$5&\",\"&$B976&\",\"=VLOOKUP(\"SPECCOST,,\"&AV$5&\",\"&$B976&\",\",data[],1),VLOOKUP(\"SPECCOST,,\"&AV$5&\",\"&$B976&\",\",data[],7),AV$909)","v":2.7940534453652541E-3},null,null,null,null,null,null,{"$f":"IF(\"SPECCOST,,\"&BC$5&\",\"&sel_country_code&\",\"=VLOOKUP(\"SPECCOST,,\"&BC$5&\",\"&sel_country_code&\",\",data[],1),VLOOKUP(\"SPECCOST,,\"&BC$5&\",\"&sel_country_code&\",\",data[],7),BC$909)","v":0.05},{"$f":"IF(\"SPECCOST,,\"&BD$5&\",\"&sel_country_code&\",\"=VLOOKUP(\"SPECCOST,,\"&BD$5&\",\"&sel_country_code&\",\",data[],1),VLOOKUP(\"SPECCOST,,\"&BD$5&\",\"&sel_country_code&\",\",data[],7),BD$909)","v":7.0000000000000007E-2},null,{"$f":"IF(\"SPECCOST,,\"&BF$5&\",\"&sel_country_code&\",\"=VLOOKUP(\"SPECCOST,,\"&BF$5&\",\"&sel_country_code&\",\",data[],1),VLOOKUP(\"SPECCOST,,\"&BF$5&\",\"&sel_country_code&\",\",data[],7),BF$909)","v":0.05},{"$f":"IF(\"SPECCOST,,\"&BG$5&\",\"&sel_country_code&\",\"=VLOOKUP(\"SPECCOST,,\"&BG$5&\",\"&sel_country_code&\",\",data[],1),VLOOKUP(\"SPECCOST,,\"&BG$5&\",\"&sel_country_code&\",\",data[],7),BG$909)","v":7.0000000000000007E-2}]
[null,"USA",null,null,null,null,null,null,null,null,null,null,null,null,null,null,null,{"$f":"IF(\"SPECCOST,,\"&R$5&\",\"&$B977&\",\"=VLOOKUP(\"SPECCOST,,\"&R$5&\",\"&$B977&\",\",data[],1),VLOOKUP(\"SPECCOST,,\"&R$5&\",\"&$B977&\",\",data[],7),R$909)","v":1.190463995027624E-3},null,{"$f":"IF(\"SPECCOST,,\"&T$5&\",\"&$B977&\",\"=VLOOKUP(\"SPECCOST,,\"&T$5&\",\"&$B977&\",\",data[],1),VLOOKUP(\"SPECCOST,,\"&T$5&\",\"&$B977&\",\",data[],7),T$909)","v":0.05},{"$f":"IF(\"SPECCOST,,\"&U$5&\",\"&$B977&\",\"=VLOOKUP(\"SPECCOST,,\"&U$5&\",\"&$B977&\",\",data[],1),VLOOKUP(\"SPECCOST,,\"&U$5&\",\"&$B977&\",\",data[],7),U$909)","v":7.0000000000000007E-2},{"$f":"IF(\"SPECCOST,,\"&V$5&\",\"&$B977&\",\"=VLOOKUP(\"SPECCOST,,\"&V$5&\",\"&$B977&\",\",data[],1),VLOOKUP(\"SPECCOST,,\"&V$5&\",\"&$B977&\",\",data[],7),V$909)","v":7.0000000000000007E-2},null,null,{"$f":"IF(\"SPECCOST,,\"&Y$5&\",\"&$B977&\",\"=VLOOKUP(\"SPECCOST,,\"&Y$5&\",\"&$B977&\",\",data[],1),VLOOKUP(\"SPECCOST,,\"&Y$5&\",\"&$B977&\",\",data[],7),Y$909)","v":1.190463995027624E-3},null,{"$f":"IF(\"SPECCOST,,\"&AA$5&\",\"&$B977&\",\"=VLOOKUP(\"SPECCOST,,\"&AA$5&\",\"&$B977&\",\",data[],1),VLOOKUP(\"SPECCOST,,\"&AA$5&\",\"&$B977&\",\",data[],7),AA$909)","v":0.05},{"$f":"IF(\"SPECCOST,,\"&AB$5&\",\"&$B977&\",\"=VLOOKUP(\"SPECCOST,,\"&AB$5&\",\"&$B977&\",\",data[],1),VLOOKUP(\"SPECCOST,,\"&AB$5&\",\"&$B977&\",\",data[],7),AB$909)","v":7.0000000000000007E-2},{"$f":"IF(\"SPECCOST,,\"&AC$5&\",\"&$B977&\",\"=VLOOKUP(\"SPECCOST,,\"&AC$5&\",\"&$B977&\",\",data[],1),VLOOKUP(\"SPECCOST,,\"&AC$5&\",\"&$B977&\",\",data[],7),AC$909)","v":3.8577660276243091E-2},null,{"$f":"IF(\"SPECCOST,,\"&AE$5&\",\"&$B977&\",\"=VLOOKUP(\"SPECCOST,,\"&AE$5&\",\"&$B977&\",\",data[],1),VLOOKUP(\"SPECCOST,,\"&AE$5&\",\"&$B977&\",\",data[],7),AE$909)","v":0.05},{"$f":"IF(\"SPECCOST,,\"&AF$5&\",\"&$B977&\",\"=VLOOKUP(\"SPECCOST,,\"&AF$5&\",\"&$B977&\",\",data[],1),VLOOKUP(\"SPECCOST,,\"&AF$5&\",\"&$B977&\",\",data[],7),AF$909)","v":7.0000000000000007E-2},{"$f":"IF(\"SPECCOST,,\"&AG$5&\",\"&$B977&\",\"=VLOOKUP(\"SPECCOST,,\"&AG$5&\",\"&$B977&\",\",data[],1),VLOOKUP(\"SPECCOST,,\"&AG$5&\",\"&$B977&\",\",data[],7),AG$909)","v":7.0000000000000007E-2},{"$f":"IF(\"SPECCOST,,\"&AH$5&\",\"&$B977&\",\"=VLOOKUP(\"SPECCOST,,\"&AH$5&\",\"&$B977&\",\",data[],1),VLOOKUP(\"SPECCOST,,\"&AH$5&\",\"&$B977&\",\",data[],7),AH$909)","v":0.05},{"$f":"IF(\"SPECCOST,,\"&AI$5&\",\"&$B977&\",\"=VLOOKUP(\"SPECCOST,,\"&AI$5&\",\"&$B977&\",\",data[],1),VLOOKUP(\"SPECCOST,,\"&AI$5&\",\"&$B977&\",\",data[],7),AI$909)","v":0.01},null,null,{"$f":"IF(\"SPECCOST,,\"&AL$5&\",\"&$B977&\",\"=VLOOKUP(\"SPECCOST,,\"&AL$5&\",\"&$B977&\",\",data[],1),VLOOKUP(\"SPECCOST,,\"&AL$5&\",\"&$B977&\",\",data[],7),AL$909)","v":7.0000000000000007E-2},null,{"$f":"IF(\"SPECCOST,,\"&AN$5&\",\"&$B977&\",\"=VLOOKUP(\"SPECCOST,,\"&AN$5&\",\"&$B977&\",\",data[],1),VLOOKUP(\"SPECCOST,,\"&AN$5&\",\"&$B977&\",\",data[],7),AN$909)","v":7.0000000000000007E-2},null,null,null,null,null,null,null,{"$f":"IF(\"SPECCOST,,\"&AV$5&\",\"&$B977&\",\"=VLOOKUP(\"SPECCOST,,\"&AV$5&\",\"&$B977&\",\",data[],1),VLOOKUP(\"SPECCOST,,\"&AV$5&\",\"&$B977&\",\",data[],7),AV$909)","v":2.7940534453652541E-3},null,null,null,null,null,null,{"$f":"IF(\"SPECCOST,,\"&BC$5&\",\"&sel_country_code&\",\"=VLOOKUP(\"SPECCOST,,\"&BC$5&\",\"&sel_country_code&\",\",data[],1),VLOOKUP(\"SPECCOST,,\"&BC$5&\",\"&sel_country_code&\",\",data[],7),BC$909)","v":0.05},{"$f":"IF(\"SPECCOST,,\"&BD$5&\",\"&sel_country_code&\",\"=VLOOKUP(\"SPECCOST,,\"&BD$5&\",\"&sel_country_code&\",\",data[],1),VLOOKUP(\"SPECCOST,,\"&BD$5&\",\"&sel_country_code&\",\",data[],7),BD$909)","v":7.0000000000000007E-2},null,{"$f":"IF(\"SPECCOST,,\"&BF$5&\",\"&sel_country_code&\",\"=VLOOKUP(\"SPECCOST,,\"&BF$5&\",\"&sel_country_code&\",\",data[],1),VLOOKUP(\"SPECCOST,,\"&BF$5&\",\"&sel_country_code&\",\",data[],7),BF$909)","v":0.05},{"$f":"IF(\"SPECCOST,,\"&BG$5&\",\"&sel_country_code&\",\"=VLOOKUP(\"SPECCOST,,\"&BG$5&\",\"&sel_country_code&\",\",data[],1),VLOOKUP(\"SPECCOST,,\"&BG$5&\",\"&sel_country_code&\",\",data[],7),BG$909)","v":7.0000000000000007E-2}]
[null,"VNM",null,null,null,null,null,null,null,null,null,null,null,null,null,null,null,{"$f":"IF(\"SPECCOST,,\"&R$5&\",\"&$B978&\",\"=VLOOKUP(\"SPECCOST,,\"&R$5&\",\"&$B978&\",\",data[],1),VLOOKUP(\"SPECCOST,,\"&R$5&\",\"&$B978&\",\",data[],7),R$909)","v":1.190463995027624E-3},null,{"$f":"IF(\"SPECCOST,,\"&T$5&\",\"&$B978&\",\"=VLOOKUP(\"SPECCOST,,\"&T$5&\",\"&$B978&\",\",data[],1),VLOOKUP(\"SPECCOST,,\"&T$5&\",\"&$B978&\",\",data[],7),T$909)","v":0.05},{"$f":"IF(\"SPECCOST,,\"&U$5&\",\"&$B978&\",\"=VLOOKUP(\"SPECCOST,,\"&U$5&\",\"&$B978&\",\",data[],1),VLOOKUP(\"SPECCOST,,\"&U$5&\",\"&$B978&\",\",data[],7),U$909)","v":7.0000000000000007E-2},{"$f":"IF(\"SPECCOST,,\"&V$5&\",\"&$B978&\",\"=VLOOKUP(\"SPECCOST,,\"&V$5&\",\"&$B978&\",\",data[],1),VLOOKUP(\"SPECCOST,,\"&V$5&\",\"&$B978&\",\",data[],7),V$909)","v":7.0000000000000007E-2},null,null,{"$f":"IF(\"SPECCOST,,\"&Y$5&\",\"&$B978&\",\"=VLOOKUP(\"SPECCOST,,\"&Y$5&\",\"&$B978&\",\",data[],1),VLOOKUP(\"SPECCOST,,\"&Y$5&\",\"&$B978&\",\",data[],7),Y$909)","v":1.190463995027624E-3},null,{"$f":"IF(\"SPECCOST,,\"&AA$5&\",\"&$B978&\",\"=VLOOKUP(\"SPECCOST,,\"&AA$5&\",\"&$B978&\",\",data[],1),VLOOKUP(\"SPECCOST,,\"&AA$5&\",\"&$B978&\",\",data[],7),AA$909)","v":0.05},{"$f":"IF(\"SPECCOST,,\"&AB$5&\",\"&$B978&\",\"=VLOOKUP(\"SPECCOST,,\"&AB$5&\",\"&$B978&\",\",data[],1),VLOOKUP(\"SPECCOST,,\"&AB$5&\",\"&$B978&\",\",data[],7),AB$909)","v":7.0000000000000007E-2},{"$f":"IF(\"SPECCOST,,\"&AC$5&\",\"&$B978&\",\"=VLOOKUP(\"SPECCOST,,\"&AC$5&\",\"&$B978&\",\",data[],1),VLOOKUP(\"SPECCOST,,\"&AC$5&\",\"&$B978&\",\",data[],7),AC$909)","v":3.8577660276243091E-2},null,{"$f":"IF(\"SPECCOST,,\"&AE$5&\",\"&$B978&\",\"=VLOOKUP(\"SPECCOST,,\"&AE$5&\",\"&$B978&\",\",data[],1),VLOOKUP(\"SPECCOST,,\"&AE$5&\",\"&$B978&\",\",data[],7),AE$909)","v":0.05},{"$f":"IF(\"SPECCOST,,\"&AF$5&\",\"&$B978&\",\"=VLOOKUP(\"SPECCOST,,\"&AF$5&\",\"&$B978&\",\",data[],1),VLOOKUP(\"SPECCOST,,\"&AF$5&\",\"&$B978&\",\",data[],7),AF$909)","v":7.0000000000000007E-2},{"$f":"IF(\"SPECCOST,,\"&AG$5&\",\"&$B978&\",\"=VLOOKUP(\"SPECCOST,,\"&AG$5&\",\"&$B978&\",\",data[],1),VLOOKUP(\"SPECCOST,,\"&AG$5&\",\"&$B978&\",\",data[],7),AG$909)","v":7.0000000000000007E-2},{"$f":"IF(\"SPECCOST,,\"&AH$5&\",\"&$B978&\",\"=VLOOKUP(\"SPECCOST,,\"&AH$5&\",\"&$B978&\",\",data[],1),VLOOKUP(\"SPECCOST,,\"&AH$5&\",\"&$B978&\",\",data[],7),AH$909)","v":0.05},{"$f":"IF(\"SPECCOST,,\"&AI$5&\",\"&$B978&\",\"=VLOOKUP(\"SPECCOST,,\"&AI$5&\",\"&$B978&\",\",data[],1),VLOOKUP(\"SPECCOST,,\"&AI$5&\",\"&$B978&\",\",data[],7),AI$909)","v":0.01},null,null,{"$f":"IF(\"SPECCOST,,\"&AL$5&\",\"&$B978&\",\"=VLOOKUP(\"SPECCOST,,\"&AL$5&\",\"&$B978&\",\",data[],1),VLOOKUP(\"SPECCOST,,\"&AL$5&\",\"&$B978&\",\",data[],7),AL$909)","v":7.0000000000000007E-2},null,{"$f":"IF(\"SPECCOST,,\"&AN$5&\",\"&$B978&\",\"=VLOOKUP(\"SPECCOST,,\"&AN$5&\",\"&$B978&\",\",data[],1),VLOOKUP(\"SPECCOST,,\"&AN$5&\",\"&$B978&\",\",data[],7),AN$909)","v":7.0000000000000007E-2},null,null,null,null,null,null,null,{"$f":"IF(\"SPECCOST,,\"&AV$5&\",\"&$B978&\",\"=VLOOKUP(\"SPECCOST,,\"&AV$5&\",\"&$B978&\",\",data[],1),VLOOKUP(\"SPECCOST,,\"&AV$5&\",\"&$B978&\",\",data[],7),AV$909)","v":2.7940534453652541E-3},null,null,null,null,null,null,{"$f":"IF(\"SPECCOST,,\"&BC$5&\",\"&sel_country_code&\",\"=VLOOKUP(\"SPECCOST,,\"&BC$5&\",\"&sel_country_code&\",\",data[],1),VLOOKUP(\"SPECCOST,,\"&BC$5&\",\"&sel_country_code&\",\",data[],7),BC$909)","v":0.05},{"$f":"IF(\"SPECCOST,,\"&BD$5&\",\"&sel_country_code&\",\"=VLOOKUP(\"SPECCOST,,\"&BD$5&\",\"&sel_country_code&\",\",data[],1),VLOOKUP(\"SPECCOST,,\"&BD$5&\",\"&sel_country_code&\",\",data[],7),BD$909)","v":7.0000000000000007E-2},null,{"$f":"IF(\"SPECCOST,,\"&BF$5&\",\"&sel_country_code&\",\"=VLOOKUP(\"SPECCOST,,\"&BF$5&\",\"&sel_country_code&\",\",data[],1),VLOOKUP(\"SPECCOST,,\"&BF$5&\",\"&sel_country_code&\",\",data[],7),BF$909)","v":0.05},{"$f":"IF(\"SPECCOST,,\"&BG$5&\",\"&sel_country_code&\",\"=VLOOKUP(\"SPECCOST,,\"&BG$5&\",\"&sel_country_code&\",\",data[],1),VLOOKUP(\"SPECCOST,,\"&BG$5&\",\"&sel_country_code&\",\",data[],7),BG$909)","v":7.0000000000000007E-2}]
[null,"ZAF",null,null,null,null,null,null,null,null,null,null,null,null,null,null,null,{"$f":"IF(\"SPECCOST,,\"&R$5&\",\"&$B979&\",\"=VLOOKUP(\"SPECCOST,,\"&R$5&\",\"&$B979&\",\",data[],1),VLOOKUP(\"SPECCOST,,\"&R$5&\",\"&$B979&\",\",data[],7),R$909)","v":1.190463995027624E-3},null,{"$f":"IF(\"SPECCOST,,\"&T$5&\",\"&$B979&\",\"=VLOOKUP(\"SPECCOST,,\"&T$5&\",\"&$B979&\",\",data[],1),VLOOKUP(\"SPECCOST,,\"&T$5&\",\"&$B979&\",\",data[],7),T$909)","v":0.05},{"$f":"IF(\"SPECCOST,,\"&U$5&\",\"&$B979&\",\"=VLOOKUP(\"SPECCOST,,\"&U$5&\",\"&$B979&\",\",data[],1),VLOOKUP(\"SPECCOST,,\"&U$5&\",\"&$B979&\",\",data[],7),U$909)","v":7.0000000000000007E-2},{"$f":"IF(\"SPECCOST,,\"&V$5&\",\"&$B979&\",\"=VLOOKUP(\"SPECCOST,,\"&V$5&\",\"&$B979&\",\",data[],1),VLOOKUP(\"SPECCOST,,\"&V$5&\",\"&$B979&\",\",data[],7),V$909)","v":7.0000000000000007E-2},null,null,{"$f":"IF(\"SPECCOST,,\"&Y$5&\",\"&$B979&\",\"=VLOOKUP(\"SPECCOST,,\"&Y$5&\",\"&$B979&\",\",data[],1),VLOOKUP(\"SPECCOST,,\"&Y$5&\",\"&$B979&\",\",data[],7),Y$909)","v":1.190463995027624E-3},null,{"$f":"IF(\"SPECCOST,,\"&AA$5&\",\"&$B979&\",\"=VLOOKUP(\"SPECCOST,,\"&AA$5&\",\"&$B979&\",\",data[],1),VLOOKUP(\"SPECCOST,,\"&AA$5&\",\"&$B979&\",\",data[],7),AA$909)","v":0.05},{"$f":"IF(\"SPECCOST,,\"&AB$5&\",\"&$B979&\",\"=VLOOKUP(\"SPECCOST,,\"&AB$5&\",\"&$B979&\",\",data[],1),VLOOKUP(\"SPECCOST,,\"&AB$5&\",\"&$B979&\",\",data[],7),AB$909)","v":7.0000000000000007E-2},{"$f":"IF(\"SPECCOST,,\"&AC$5&\",\"&$B979&\",\"=VLOOKUP(\"SPECCOST,,\"&AC$5&\",\"&$B979&\",\",data[],1),VLOOKUP(\"SPECCOST,,\"&AC$5&\",\"&$B979&\",\",data[],7),AC$909)","v":3.8577660276243091E-2},null,{"$f":"IF(\"SPECCOST,,\"&AE$5&\",\"&$B979&\",\"=VLOOKUP(\"SPECCOST,,\"&AE$5&\",\"&$B979&\",\",data[],1),VLOOKUP(\"SPECCOST,,\"&AE$5&\",\"&$B979&\",\",data[],7),AE$909)","v":0.05},{"$f":"IF(\"SPECCOST,,\"&AF$5&\",\"&$B979&\",\"=VLOOKUP(\"SPECCOST,,\"&AF$5&\",\"&$B979&\",\",data[],1),VLOOKUP(\"SPECCOST,,\"&AF$5&\",\"&$B979&\",\",data[],7),AF$909)","v":7.0000000000000007E-2},{"$f":"IF(\"SPECCOST,,\"&AG$5&\",\"&$B979&\",\"=VLOOKUP(\"SPECCOST,,\"&AG$5&\",\"&$B979&\",\",data[],1),VLOOKUP(\"SPECCOST,,\"&AG$5&\",\"&$B979&\",\",data[],7),AG$909)","v":7.0000000000000007E-2},{"$f":"IF(\"SPECCOST,,\"&AH$5&\",\"&$B979&\",\"=VLOOKUP(\"SPECCOST,,\"&AH$5&\",\"&$B979&\",\",data[],1),VLOOKUP(\"SPECCOST,,\"&AH$5&\",\"&$B979&\",\",data[],7),AH$909)","v":0.05},{"$f":"IF(\"SPECCOST,,\"&AI$5&\",\"&$B979&\",\"=VLOOKUP(\"SPECCOST,,\"&AI$5&\",\"&$B979&\",\",data[],1),VLOOKUP(\"SPECCOST,,\"&AI$5&\",\"&$B979&\",\",data[],7),AI$909)","v":0.01},null,null,{"$f":"IF(\"SPECCOST,,\"&AL$5&\",\"&$B979&\",\"=VLOOKUP(\"SPECCOST,,\"&AL$5&\",\"&$B979&\",\",data[],1),VLOOKUP(\"SPECCOST,,\"&AL$5&\",\"&$B979&\",\",data[],7),AL$909)","v":7.0000000000000007E-2},null,{"$f":"IF(\"SPECCOST,,\"&AN$5&\",\"&$B979&\",\"=VLOOKUP(\"SPECCOST,,\"&AN$5&\",\"&$B979&\",\",data[],1),VLOOKUP(\"SPECCOST,,\"&AN$5&\",\"&$B979&\",\",data[],7),AN$909)","v":7.0000000000000007E-2},null,null,null,null,null,null,null,{"$f":"IF(\"SPECCOST,,\"&AV$5&\",\"&$B979&\",\"=VLOOKUP(\"SPECCOST,,\"&AV$5&\",\"&$B979&\",\",data[],1),VLOOKUP(\"SPECCOST,,\"&AV$5&\",\"&$B979&\",\",data[],7),AV$909)","v":2.7940534453652541E-3},null,null,null,null,null,null,{"$f":"IF(\"SPECCOST,,\"&BC$5&\",\"&sel_country_code&\",\"=VLOOKUP(\"SPECCOST,,\"&BC$5&\",\"&sel_country_code&\",\",data[],1),VLOOKUP(\"SPECCOST,,\"&BC$5&\",\"&sel_country_code&\",\",data[],7),BC$909)","v":0.05},{"$f":"IF(\"SPECCOST,,\"&BD$5&\",\"&sel_country_code&\",\"=VLOOKUP(\"SPECCOST,,\"&BD$5&\",\"&sel_country_code&\",\",data[],1),VLOOKUP(\"SPECCOST,,\"&BD$5&\",\"&sel_country_code&\",\",data[],7),BD$909)","v":7.0000000000000007E-2},null,{"$f":"IF(\"SPECCOST,,\"&BF$5&\",\"&sel_country_code&\",\"=VLOOKUP(\"SPECCOST,,\"&BF$5&\",\"&sel_country_code&\",\",data[],1),VLOOKUP(\"SPECCOST,,\"&BF$5&\",\"&sel_country_code&\",\",data[],7),BF$909)","v":0.05},{"$f":"IF(\"SPECCOST,,\"&BG$5&\",\"&sel_country_code&\",\"=VLOOKUP(\"SPECCOST,,\"&BG$5&\",\"&sel_country_code&\",\",data[],1),VLOOKUP(\"SPECCOST,,\"&BG$5&\",\"&sel_country_code&\",\",data[],7),BG$909)","v":7.0000000000000007E-2}]
[null,"ZAF-EC",null,null,null,null,null,null,null,null,null,null,null,null,null,null,null,{"$f":"IF(\"SPECCOST,,\"&R$5&\",\"&$B980&\",\"=VLOOKUP(\"SPECCOST,,\"&R$5&\",\"&$B980&\",\",data[],1),VLOOKUP(\"SPECCOST,,\"&R$5&\",\"&$B980&\",\",data[],7),R$909)","v":1.190463995027624E-3},null,{"$f":"IF(\"SPECCOST,,\"&T$5&\",\"&$B980&\",\"=VLOOKUP(\"SPECCOST,,\"&T$5&\",\"&$B980&\",\",data[],1),VLOOKUP(\"SPECCOST,,\"&T$5&\",\"&$B980&\",\",data[],7),T$909)","v":0.05},{"$f":"IF(\"SPECCOST,,\"&U$5&\",\"&$B980&\",\"=VLOOKUP(\"SPECCOST,,\"&U$5&\",\"&$B980&\",\",data[],1),VLOOKUP(\"SPECCOST,,\"&U$5&\",\"&$B980&\",\",data[],7),U$909)","v":7.0000000000000007E-2},{"$f":"IF(\"SPECCOST,,\"&V$5&\",\"&$B980&\",\"=VLOOKUP(\"SPECCOST,,\"&V$5&\",\"&$B980&\",\",data[],1),VLOOKUP(\"SPECCOST,,\"&V$5&\",\"&$B980&\",\",data[],7),V$909)","v":7.0000000000000007E-2},null,null,{"$f":"IF(\"SPECCOST,,\"&Y$5&\",\"&$B980&\",\"=VLOOKUP(\"SPECCOST,,\"&Y$5&\",\"&$B980&\",\",data[],1),VLOOKUP(\"SPECCOST,,\"&Y$5&\",\"&$B980&\",\",data[],7),Y$909)","v":1.190463995027624E-3},null,{"$f":"IF(\"SPECCOST,,\"&AA$5&\",\"&$B980&\",\"=VLOOKUP(\"SPECCOST,,\"&AA$5&\",\"&$B980&\",\",data[],1),VLOOKUP(\"SPECCOST,,\"&AA$5&\",\"&$B980&\",\",data[],7),AA$909)","v":0.05},{"$f":"IF(\"SPECCOST,,\"&AB$5&\",\"&$B980&\",\"=VLOOKUP(\"SPECCOST,,\"&AB$5&\",\"&$B980&\",\",data[],1),VLOOKUP(\"SPECCOST,,\"&AB$5&\",\"&$B980&\",\",data[],7),AB$909)","v":7.0000000000000007E-2},{"$f":"IF(\"SPECCOST,,\"&AC$5&\",\"&$B980&\",\"=VLOOKUP(\"SPECCOST,,\"&AC$5&\",\"&$B980&\",\",data[],1),VLOOKUP(\"SPECCOST,,\"&AC$5&\",\"&$B980&\",\",data[],7),AC$909)","v":3.8577660276243091E-2},null,{"$f":"IF(\"SPECCOST,,\"&AE$5&\",\"&$B980&\",\"=VLOOKUP(\"SPECCOST,,\"&AE$5&\",\"&$B980&\",\",data[],1),VLOOKUP(\"SPECCOST,,\"&AE$5&\",\"&$B980&\",\",data[],7),AE$909)","v":0.05},{"$f":"IF(\"SPECCOST,,\"&AF$5&\",\"&$B980&\",\"=VLOOKUP(\"SPECCOST,,\"&AF$5&\",\"&$B980&\",\",data[],1),VLOOKUP(\"SPECCOST,,\"&AF$5&\",\"&$B980&\",\",data[],7),AF$909)","v":7.0000000000000007E-2},{"$f":"IF(\"SPECCOST,,\"&AG$5&\",\"&$B980&\",\"=VLOOKUP(\"SPECCOST,,\"&AG$5&\",\"&$B980&\",\",data[],1),VLOOKUP(\"SPECCOST,,\"&AG$5&\",\"&$B980&\",\",data[],7),AG$909)","v":7.0000000000000007E-2},{"$f":"IF(\"SPECCOST,,\"&AH$5&\",\"&$B980&\",\"=VLOOKUP(\"SPECCOST,,\"&AH$5&\",\"&$B980&\",\",data[],1),VLOOKUP(\"SPECCOST,,\"&AH$5&\",\"&$B980&\",\",data[],7),AH$909)","v":0.05},{"$f":"IF(\"SPECCOST,,\"&AI$5&\",\"&$B980&\",\"=VLOOKUP(\"SPECCOST,,\"&AI$5&\",\"&$B980&\",\",data[],1),VLOOKUP(\"SPECCOST,,\"&AI$5&\",\"&$B980&\",\",data[],7),AI$909)","v":0.01},null,null,{"$f":"IF(\"SPECCOST,,\"&AL$5&\",\"&$B980&\",\"=VLOOKUP(\"SPECCOST,,\"&AL$5&\",\"&$B980&\",\",data[],1),VLOOKUP(\"SPECCOST,,\"&AL$5&\",\"&$B980&\",\",data[],7),AL$909)","v":7.0000000000000007E-2},null,{"$f":"IF(\"SPECCOST,,\"&AN$5&\",\"&$B980&\",\"=VLOOKUP(\"SPECCOST,,\"&AN$5&\",\"&$B980&\",\",data[],1),VLOOKUP(\"SPECCOST,,\"&AN$5&\",\"&$B980&\",\",data[],7),AN$909)","v":7.0000000000000007E-2},null,null,null,null,null,null,null,{"$f":"IF(\"SPECCOST,,\"&AV$5&\",\"&$B980&\",\"=VLOOKUP(\"SPECCOST,,\"&AV$5&\",\"&$B980&\",\",data[],1),VLOOKUP(\"SPECCOST,,\"&AV$5&\",\"&$B980&\",\",data[],7),AV$909)","v":2.7940534453652541E-3},null,null,null,null,null,null,{"$f":"IF(\"SPECCOST,,\"&BC$5&\",\"&sel_country_code&\",\"=VLOOKUP(\"SPECCOST,,\"&BC$5&\",\"&sel_country_code&\",\",data[],1),VLOOKUP(\"SPECCOST,,\"&BC$5&\",\"&sel_country_code&\",\",data[],7),BC$909)","v":0.05},{"$f":"IF(\"SPECCOST,,\"&BD$5&\",\"&sel_country_code&\",\"=VLOOKUP(\"SPECCOST,,\"&BD$5&\",\"&sel_country_code&\",\",data[],1),VLOOKUP(\"SPECCOST,,\"&BD$5&\",\"&sel_country_code&\",\",data[],7),BD$909)","v":7.0000000000000007E-2},null,{"$f":"IF(\"SPECCOST,,\"&BF$5&\",\"&sel_country_code&\",\"=VLOOKUP(\"SPECCOST,,\"&BF$5&\",\"&sel_country_code&\",\",data[],1),VLOOKUP(\"SPECCOST,,\"&BF$5&\",\"&sel_country_code&\",\",data[],7),BF$909)","v":0.05},{"$f":"IF(\"SPECCOST,,\"&BG$5&\",\"&sel_country_code&\",\"=VLOOKUP(\"SPECCOST,,\"&BG$5&\",\"&sel_country_code&\",\",data[],1),VLOOKUP(\"SPECCOST,,\"&BG$5&\",\"&sel_country_code&\",\",data[],7),BG$909)","v":7.0000000000000007E-2}]
[null,"ZAF-FRS",null,null,null,null,null,null,null,null,null,null,null,null,null,null,null,{"$f":"IF(\"SPECCOST,,\"&R$5&\",\"&$B981&\",\"=VLOOKUP(\"SPECCOST,,\"&R$5&\",\"&$B981&\",\",data[],1),VLOOKUP(\"SPECCOST,,\"&R$5&\",\"&$B981&\",\",data[],7),R$909)","v":1.190463995027624E-3},null,{"$f":"IF(\"SPECCOST,,\"&T$5&\",\"&$B981&\",\"=VLOOKUP(\"SPECCOST,,\"&T$5&\",\"&$B981&\",\",data[],1),VLOOKUP(\"SPECCOST,,\"&T$5&\",\"&$B981&\",\",data[],7),T$909)","v":0.05},{"$f":"IF(\"SPECCOST,,\"&U$5&\",\"&$B981&\",\"=VLOOKUP(\"SPECCOST,,\"&U$5&\",\"&$B981&\",\",data[],1),VLOOKUP(\"SPECCOST,,\"&U$5&\",\"&$B981&\",\",data[],7),U$909)","v":7.0000000000000007E-2},{"$f":"IF(\"SPECCOST,,\"&V$5&\",\"&$B981&\",\"=VLOOKUP(\"SPECCOST,,\"&V$5&\",\"&$B981&\",\",data[],1),VLOOKUP(\"SPECCOST,,\"&V$5&\",\"&$B981&\",\",data[],7),V$909)","v":7.0000000000000007E-2},null,null,{"$f":"IF(\"SPECCOST,,\"&Y$5&\",\"&$B981&\",\"=VLOOKUP(\"SPECCOST,,\"&Y$5&\",\"&$B981&\",\",data[],1),VLOOKUP(\"SPECCOST,,\"&Y$5&\",\"&$B981&\",\",data[],7),Y$909)","v":1.190463995027624E-3},null,{"$f":"IF(\"SPECCOST,,\"&AA$5&\",\"&$B981&\",\"=VLOOKUP(\"SPECCOST,,\"&AA$5&\",\"&$B981&\",\",data[],1),VLOOKUP(\"SPECCOST,,\"&AA$5&\",\"&$B981&\",\",data[],7),AA$909)","v":0.05},{"$f":"IF(\"SPECCOST,,\"&AB$5&\",\"&$B981&\",\"=VLOOKUP(\"SPECCOST,,\"&AB$5&\",\"&$B981&\",\",data[],1),VLOOKUP(\"SPECCOST,,\"&AB$5&\",\"&$B981&\",\",data[],7),AB$909)","v":7.0000000000000007E-2},{"$f":"IF(\"SPECCOST,,\"&AC$5&\",\"&$B981&\",\"=VLOOKUP(\"SPECCOST,,\"&AC$5&\",\"&$B981&\",\",data[],1),VLOOKUP(\"SPECCOST,,\"&AC$5&\",\"&$B981&\",\",data[],7),AC$909)","v":3.8577660276243091E-2},null,{"$f":"IF(\"SPECCOST,,\"&AE$5&\",\"&$B981&\",\"=VLOOKUP(\"SPECCOST,,\"&AE$5&\",\"&$B981&\",\",data[],1),VLOOKUP(\"SPECCOST,,\"&AE$5&\",\"&$B981&\",\",data[],7),AE$909)","v":0.05},{"$f":"IF(\"SPECCOST,,\"&AF$5&\",\"&$B981&\",\"=VLOOKUP(\"SPECCOST,,\"&AF$5&\",\"&$B981&\",\",data[],1),VLOOKUP(\"SPECCOST,,\"&AF$5&\",\"&$B981&\",\",data[],7),AF$909)","v":7.0000000000000007E-2},{"$f":"IF(\"SPECCOST,,\"&AG$5&\",\"&$B981&\",\"=VLOOKUP(\"SPECCOST,,\"&AG$5&\",\"&$B981&\",\",data[],1),VLOOKUP(\"SPECCOST,,\"&AG$5&\",\"&$B981&\",\",data[],7),AG$909)","v":7.0000000000000007E-2},{"$f":"IF(\"SPECCOST,,\"&AH$5&\",\"&$B981&\",\"=VLOOKUP(\"SPECCOST,,\"&AH$5&\",\"&$B981&\",\",data[],1),VLOOKUP(\"SPECCOST,,\"&AH$5&\",\"&$B981&\",\",data[],7),AH$909)","v":0.05},{"$f":"IF(\"SPECCOST,,\"&AI$5&\",\"&$B981&\",\"=VLOOKUP(\"SPECCOST,,\"&AI$5&\",\"&$B981&\",\",data[],1),VLOOKUP(\"SPECCOST,,\"&AI$5&\",\"&$B981&\",\",data[],7),AI$909)","v":0.01},null,null,{"$f":"IF(\"SPECCOST,,\"&AL$5&\",\"&$B981&\",\"=VLOOKUP(\"SPECCOST,,\"&AL$5&\",\"&$B981&\",\",data[],1),VLOOKUP(\"SPECCOST,,\"&AL$5&\",\"&$B981&\",\",data[],7),AL$909)","v":7.0000000000000007E-2},null,{"$f":"IF(\"SPECCOST,,\"&AN$5&\",\"&$B981&\",\"=VLOOKUP(\"SPECCOST,,\"&AN$5&\",\"&$B981&\",\",data[],1),VLOOKUP(\"SPECCOST,,\"&AN$5&\",\"&$B981&\",\",data[],7),AN$909)","v":7.0000000000000007E-2},null,null,null,null,null,null,null,{"$f":"IF(\"SPECCOST,,\"&AV$5&\",\"&$B981&\",\"=VLOOKUP(\"SPECCOST,,\"&AV$5&\",\"&$B981&\",\",data[],1),VLOOKUP(\"SPECCOST,,\"&AV$5&\",\"&$B981&\",\",data[],7),AV$909)","v":2.7940534453652541E-3},null,null,null,null,null,null,{"$f":"IF(\"SPECCOST,,\"&BC$5&\",\"&sel_country_code&\",\"=VLOOKUP(\"SPECCOST,,\"&BC$5&\",\"&sel_country_code&\",\",data[],1),VLOOKUP(\"SPECCOST,,\"&BC$5&\",\"&sel_country_code&\",\",data[],7),BC$909)","v":0.05},{"$f":"IF(\"SPECCOST,,\"&BD$5&\",\"&sel_country_code&\",\"=VLOOKUP(\"SPECCOST,,\"&BD$5&\",\"&sel_country_code&\",\",data[],1),VLOOKUP(\"SPECCOST,,\"&BD$5&\",\"&sel_country_code&\",\",data[],7),BD$909)","v":7.0000000000000007E-2},null,{"$f":"IF(\"SPECCOST,,\"&BF$5&\",\"&sel_country_code&\",\"=VLOOKUP(\"SPECCOST,,\"&BF$5&\",\"&sel_country_code&\",\",data[],1),VLOOKUP(\"SPECCOST,,\"&BF$5&\",\"&sel_country_code&\",\",data[],7),BF$909)","v":0.05},{"$f":"IF(\"SPECCOST,,\"&BG$5&\",\"&sel_country_code&\",\"=VLOOKUP(\"SPECCOST,,\"&BG$5&\",\"&sel_country_code&\",\",data[],1),VLOOKUP(\"SPECCOST,,\"&BG$5&\",\"&sel_country_code&\",\",data[],7),BG$909)","v":7.0000000000000007E-2}]
[null,"ZAF-GAU",null,null,null,null,null,null,null,null,null,null,null,null,null,null,null,{"$f":"IF(\"SPECCOST,,\"&R$5&\",\"&$B982&\",\"=VLOOKUP(\"SPECCOST,,\"&R$5&\",\"&$B982&\",\",data[],1),VLOOKUP(\"SPECCOST,,\"&R$5&\",\"&$B982&\",\",data[],7),R$909)","v":1.190463995027624E-3},null,{"$f":"IF(\"SPECCOST,,\"&T$5&\",\"&$B982&\",\"=VLOOKUP(\"SPECCOST,,\"&T$5&\",\"&$B982&\",\",data[],1),VLOOKUP(\"SPECCOST,,\"&T$5&\",\"&$B982&\",\",data[],7),T$909)","v":0.05},{"$f":"IF(\"SPECCOST,,\"&U$5&\",\"&$B982&\",\"=VLOOKUP(\"SPECCOST,,\"&U$5&\",\"&$B982&\",\",data[],1),VLOOKUP(\"SPECCOST,,\"&U$5&\",\"&$B982&\",\",data[],7),U$909)","v":7.0000000000000007E-2},{"$f":"IF(\"SPECCOST,,\"&V$5&\",\"&$B982&\",\"=VLOOKUP(\"SPECCOST,,\"&V$5&\",\"&$B982&\",\",data[],1),VLOOKUP(\"SPECCOST,,\"&V$5&\",\"&$B982&\",\",data[],7),V$909)","v":7.0000000000000007E-2},null,null,{"$f":"IF(\"SPECCOST,,\"&Y$5&\",\"&$B982&\",\"=VLOOKUP(\"SPECCOST,,\"&Y$5&\",\"&$B982&\",\",data[],1),VLOOKUP(\"SPECCOST,,\"&Y$5&\",\"&$B982&\",\",data[],7),Y$909)","v":1.190463995027624E-3},null,{"$f":"IF(\"SPECCOST,,\"&AA$5&\",\"&$B982&\",\"=VLOOKUP(\"SPECCOST,,\"&AA$5&\",\"&$B982&\",\",data[],1),VLOOKUP(\"SPECCOST,,\"&AA$5&\",\"&$B982&\",\",data[],7),AA$909)","v":0.05},{"$f":"IF(\"SPECCOST,,\"&AB$5&\",\"&$B982&\",\"=VLOOKUP(\"SPECCOST,,\"&AB$5&\",\"&$B982&\",\",data[],1),VLOOKUP(\"SPECCOST,,\"&AB$5&\",\"&$B982&\",\",data[],7),AB$909)","v":7.0000000000000007E-2},{"$f":"IF(\"SPECCOST,,\"&AC$5&\",\"&$B982&\",\"=VLOOKUP(\"SPECCOST,,\"&AC$5&\",\"&$B982&\",\",data[],1),VLOOKUP(\"SPECCOST,,\"&AC$5&\",\"&$B982&\",\",data[],7),AC$909)","v":3.8577660276243091E-2},null,{"$f":"IF(\"SPECCOST,,\"&AE$5&\",\"&$B982&\",\"=VLOOKUP(\"SPECCOST,,\"&AE$5&\",\"&$B982&\",\",data[],1),VLOOKUP(\"SPECCOST,,\"&AE$5&\",\"&$B982&\",\",data[],7),AE$909)","v":0.05},{"$f":"IF(\"SPECCOST,,\"&AF$5&\",\"&$B982&\",\"=VLOOKUP(\"SPECCOST,,\"&AF$5&\",\"&$B982&\",\",data[],1),VLOOKUP(\"SPECCOST,,\"&AF$5&\",\"&$B982&\",\",data[],7),AF$909)","v":7.0000000000000007E-2},{"$f":"IF(\"SPECCOST,,\"&AG$5&\",\"&$B982&\",\"=VLOOKUP(\"SPECCOST,,\"&AG$5&\",\"&$B982&\",\",data[],1),VLOOKUP(\"SPECCOST,,\"&AG$5&\",\"&$B982&\",\",data[],7),AG$909)","v":7.0000000000000007E-2},{"$f":"IF(\"SPECCOST,,\"&AH$5&\",\"&$B982&\",\"=VLOOKUP(\"SPECCOST,,\"&AH$5&\",\"&$B982&\",\",data[],1),VLOOKUP(\"SPECCOST,,\"&AH$5&\",\"&$B982&\",\",data[],7),AH$909)","v":0.05},{"$f":"IF(\"SPECCOST,,\"&AI$5&\",\"&$B982&\",\"=VLOOKUP(\"SPECCOST,,\"&AI$5&\",\"&$B982&\",\",data[],1),VLOOKUP(\"SPECCOST,,\"&AI$5&\",\"&$B982&\",\",data[],7),AI$909)","v":0.01},null,null,{"$f":"IF(\"SPECCOST,,\"&AL$5&\",\"&$B982&\",\"=VLOOKUP(\"SPECCOST,,\"&AL$5&\",\"&$B982&\",\",data[],1),VLOOKUP(\"SPECCOST,,\"&AL$5&\",\"&$B982&\",\",data[],7),AL$909)","v":7.0000000000000007E-2},null,{"$f":"IF(\"SPECCOST,,\"&AN$5&\",\"&$B982&\",\"=VLOOKUP(\"SPECCOST,,\"&AN$5&\",\"&$B982&\",\",data[],1),VLOOKUP(\"SPECCOST,,\"&AN$5&\",\"&$B982&\",\",data[],7),AN$909)","v":7.0000000000000007E-2},null,null,null,null,null,null,null,{"$f":"IF(\"SPECCOST,,\"&AV$5&\",\"&$B982&\",\"=VLOOKUP(\"SPECCOST,,\"&AV$5&\",\"&$B982&\",\",data[],1),VLOOKUP(\"SPECCOST,,\"&AV$5&\",\"&$B982&\",\",data[],7),AV$909)","v":2.7940534453652541E-3},null,null,null,null,null,null,{"$f":"IF(\"SPECCOST,,\"&BC$5&\",\"&sel_country_code&\",\"=VLOOKUP(\"SPECCOST,,\"&BC$5&\",\"&sel_country_code&\",\",data[],1),VLOOKUP(\"SPECCOST,,\"&BC$5&\",\"&sel_country_code&\",\",data[],7),BC$909)","v":0.05},{"$f":"IF(\"SPECCOST,,\"&BD$5&\",\"&sel_country_code&\",\"=VLOOKUP(\"SPECCOST,,\"&BD$5&\",\"&sel_country_code&\",\",data[],1),VLOOKUP(\"SPECCOST,,\"&BD$5&\",\"&sel_country_code&\",\",data[],7),BD$909)","v":7.0000000000000007E-2},null,{"$f":"IF(\"SPECCOST,,\"&BF$5&\",\"&sel_country_code&\",\"=VLOOKUP(\"SPECCOST,,\"&BF$5&\",\"&sel_country_code&\",\",data[],1),VLOOKUP(\"SPECCOST,,\"&BF$5&\",\"&sel_country_code&\",\",data[],7),BF$909)","v":0.05},{"$f":"IF(\"SPECCOST,,\"&BG$5&\",\"&sel_country_code&\",\"=VLOOKUP(\"SPECCOST,,\"&BG$5&\",\"&sel_country_code&\",\",data[],1),VLOOKUP(\"SPECCOST,,\"&BG$5&\",\"&sel_country_code&\",\",data[],7),BG$909)","v":7.0000000000000007E-2}]
[null,"ZAF-KWA",null,null,null,null,null,null,null,null,null,null,null,null,null,null,null,{"$f":"IF(\"SPECCOST,,\"&R$5&\",\"&$B983&\",\"=VLOOKUP(\"SPECCOST,,\"&R$5&\",\"&$B983&\",\",data[],1),VLOOKUP(\"SPECCOST,,\"&R$5&\",\"&$B983&\",\",data[],7),R$909)","v":1.190463995027624E-3},null,{"$f":"IF(\"SPECCOST,,\"&T$5&\",\"&$B983&\",\"=VLOOKUP(\"SPECCOST,,\"&T$5&\",\"&$B983&\",\",data[],1),VLOOKUP(\"SPECCOST,,\"&T$5&\",\"&$B983&\",\",data[],7),T$909)","v":0.05},{"$f":"IF(\"SPECCOST,,\"&U$5&\",\"&$B983&\",\"=VLOOKUP(\"SPECCOST,,\"&U$5&\",\"&$B983&\",\",data[],1),VLOOKUP(\"SPECCOST,,\"&U$5&\",\"&$B983&\",\",data[],7),U$909)","v":7.0000000000000007E-2},{"$f":"IF(\"SPECCOST,,\"&V$5&\",\"&$B983&\",\"=VLOOKUP(\"SPECCOST,,\"&V$5&\",\"&$B983&\",\",data[],1),VLOOKUP(\"SPECCOST,,\"&V$5&\",\"&$B983&\",\",data[],7),V$909)","v":7.0000000000000007E-2},null,null,{"$f":"IF(\"SPECCOST,,\"&Y$5&\",\"&$B983&\",\"=VLOOKUP(\"SPECCOST,,\"&Y$5&\",\"&$B983&\",\",data[],1),VLOOKUP(\"SPECCOST,,\"&Y$5&\",\"&$B983&\",\",data[],7),Y$909)","v":1.190463995027624E-3},null,{"$f":"IF(\"SPECCOST,,\"&AA$5&\",\"&$B983&\",\"=VLOOKUP(\"SPECCOST,,\"&AA$5&\",\"&$B983&\",\",data[],1),VLOOKUP(\"SPECCOST,,\"&AA$5&\",\"&$B983&\",\",data[],7),AA$909)","v":0.05},{"$f":"IF(\"SPECCOST,,\"&AB$5&\",\"&$B983&\",\"=VLOOKUP(\"SPECCOST,,\"&AB$5&\",\"&$B983&\",\",data[],1),VLOOKUP(\"SPECCOST,,\"&AB$5&\",\"&$B983&\",\",data[],7),AB$909)","v":7.0000000000000007E-2},{"$f":"IF(\"SPECCOST,,\"&AC$5&\",\"&$B983&\",\"=VLOOKUP(\"SPECCOST,,\"&AC$5&\",\"&$B983&\",\",data[],1),VLOOKUP(\"SPECCOST,,\"&AC$5&\",\"&$B983&\",\",data[],7),AC$909)","v":3.8577660276243091E-2},null,{"$f":"IF(\"SPECCOST,,\"&AE$5&\",\"&$B983&\",\"=VLOOKUP(\"SPECCOST,,\"&AE$5&\",\"&$B983&\",\",data[],1),VLOOKUP(\"SPECCOST,,\"&AE$5&\",\"&$B983&\",\",data[],7),AE$909)","v":0.05},{"$f":"IF(\"SPECCOST,,\"&AF$5&\",\"&$B983&\",\"=VLOOKUP(\"SPECCOST,,\"&AF$5&\",\"&$B983&\",\",data[],1),VLOOKUP(\"SPECCOST,,\"&AF$5&\",\"&$B983&\",\",data[],7),AF$909)","v":7.0000000000000007E-2},{"$f":"IF(\"SPECCOST,,\"&AG$5&\",\"&$B983&\",\"=VLOOKUP(\"SPECCOST,,\"&AG$5&\",\"&$B983&\",\",data[],1),VLOOKUP(\"SPECCOST,,\"&AG$5&\",\"&$B983&\",\",data[],7),AG$909)","v":7.0000000000000007E-2},{"$f":"IF(\"SPECCOST,,\"&AH$5&\",\"&$B983&\",\"=VLOOKUP(\"SPECCOST,,\"&AH$5&\",\"&$B983&\",\",data[],1),VLOOKUP(\"SPECCOST,,\"&AH$5&\",\"&$B983&\",\",data[],7),AH$909)","v":0.05},{"$f":"IF(\"SPECCOST,,\"&AI$5&\",\"&$B983&\",\"=VLOOKUP(\"SPECCOST,,\"&AI$5&\",\"&$B983&\",\",data[],1),VLOOKUP(\"SPECCOST,,\"&AI$5&\",\"&$B983&\",\",data[],7),AI$909)","v":0.01},null,null,{"$f":"IF(\"SPECCOST,,\"&AL$5&\",\"&$B983&\",\"=VLOOKUP(\"SPECCOST,,\"&AL$5&\",\"&$B983&\",\",data[],1),VLOOKUP(\"SPECCOST,,\"&AL$5&\",\"&$B983&\",\",data[],7),AL$909)","v":7.0000000000000007E-2},null,{"$f":"IF(\"SPECCOST,,\"&AN$5&\",\"&$B983&\",\"=VLOOKUP(\"SPECCOST,,\"&AN$5&\",\"&$B983&\",\",data[],1),VLOOKUP(\"SPECCOST,,\"&AN$5&\",\"&$B983&\",\",data[],7),AN$909)","v":7.0000000000000007E-2},null,null,null,null,null,null,null,{"$f":"IF(\"SPECCOST,,\"&AV$5&\",\"&$B983&\",\"=VLOOKUP(\"SPECCOST,,\"&AV$5&\",\"&$B983&\",\",data[],1),VLOOKUP(\"SPECCOST,,\"&AV$5&\",\"&$B983&\",\",data[],7),AV$909)","v":2.7940534453652541E-3},null,null,null,null,null,null,{"$f":"IF(\"SPECCOST,,\"&BC$5&\",\"&sel_country_code&\",\"=VLOOKUP(\"SPECCOST,,\"&BC$5&\",\"&sel_country_code&\",\",data[],1),VLOOKUP(\"SPECCOST,,\"&BC$5&\",\"&sel_country_code&\",\",data[],7),BC$909)","v":0.05},{"$f":"IF(\"SPECCOST,,\"&BD$5&\",\"&sel_country_code&\",\"=VLOOKUP(\"SPECCOST,,\"&BD$5&\",\"&sel_country_code&\",\",data[],1),VLOOKUP(\"SPECCOST,,\"&BD$5&\",\"&sel_country_code&\",\",data[],7),BD$909)","v":7.0000000000000007E-2},null,{"$f":"IF(\"SPECCOST,,\"&BF$5&\",\"&sel_country_code&\",\"=VLOOKUP(\"SPECCOST,,\"&BF$5&\",\"&sel_country_code&\",\",data[],1),VLOOKUP(\"SPECCOST,,\"&BF$5&\",\"&sel_country_code&\",\",data[],7),BF$909)","v":0.05},{"$f":"IF(\"SPECCOST,,\"&BG$5&\",\"&sel_country_code&\",\"=VLOOKUP(\"SPECCOST,,\"&BG$5&\",\"&sel_country_code&\",\",data[],1),VLOOKUP(\"SPECCOST,,\"&BG$5&\",\"&sel_country_code&\",\",data[],7),BG$909)","v":7.0000000000000007E-2}]
[null,"ZAF-LIM",null,null,null,null,null,null,null,null,null,null,null,null,null,null,null,{"$f":"IF(\"SPECCOST,,\"&R$5&\",\"&$B984&\",\"=VLOOKUP(\"SPECCOST,,\"&R$5&\",\"&$B984&\",\",data[],1),VLOOKUP(\"SPECCOST,,\"&R$5&\",\"&$B984&\",\",data[],7),R$909)","v":1.190463995027624E-3},null,{"$f":"IF(\"SPECCOST,,\"&T$5&\",\"&$B984&\",\"=VLOOKUP(\"SPECCOST,,\"&T$5&\",\"&$B984&\",\",data[],1),VLOOKUP(\"SPECCOST,,\"&T$5&\",\"&$B984&\",\",data[],7),T$909)","v":0.05},{"$f":"IF(\"SPECCOST,,\"&U$5&\",\"&$B984&\",\"=VLOOKUP(\"SPECCOST,,\"&U$5&\",\"&$B984&\",\",data[],1),VLOOKUP(\"SPECCOST,,\"&U$5&\",\"&$B984&\",\",data[],7),U$909)","v":7.0000000000000007E-2},{"$f":"IF(\"SPECCOST,,\"&V$5&\",\"&$B984&\",\"=VLOOKUP(\"SPECCOST,,\"&V$5&\",\"&$B984&\",\",data[],1),VLOOKUP(\"SPECCOST,,\"&V$5&\",\"&$B984&\",\",data[],7),V$909)","v":7.0000000000000007E-2},null,null,{"$f":"IF(\"SPECCOST,,\"&Y$5&\",\"&$B984&\",\"=VLOOKUP(\"SPECCOST,,\"&Y$5&\",\"&$B984&\",\",data[],1),VLOOKUP(\"SPECCOST,,\"&Y$5&\",\"&$B984&\",\",data[],7),Y$909)","v":1.190463995027624E-3},null,{"$f":"IF(\"SPECCOST,,\"&AA$5&\",\"&$B984&\",\"=VLOOKUP(\"SPECCOST,,\"&AA$5&\",\"&$B984&\",\",data[],1),VLOOKUP(\"SPECCOST,,\"&AA$5&\",\"&$B984&\",\",data[],7),AA$909)","v":0.05},{"$f":"IF(\"SPECCOST,,\"&AB$5&\",\"&$B984&\",\"=VLOOKUP(\"SPECCOST,,\"&AB$5&\",\"&$B984&\",\",data[],1),VLOOKUP(\"SPECCOST,,\"&AB$5&\",\"&$B984&\",\",data[],7),AB$909)","v":7.0000000000000007E-2},{"$f":"IF(\"SPECCOST,,\"&AC$5&\",\"&$B984&\",\"=VLOOKUP(\"SPECCOST,,\"&AC$5&\",\"&$B984&\",\",data[],1),VLOOKUP(\"SPECCOST,,\"&AC$5&\",\"&$B984&\",\",data[],7),AC$909)","v":3.8577660276243091E-2},null,{"$f":"IF(\"SPECCOST,,\"&AE$5&\",\"&$B984&\",\"=VLOOKUP(\"SPECCOST,,\"&AE$5&\",\"&$B984&\",\",data[],1),VLOOKUP(\"SPECCOST,,\"&AE$5&\",\"&$B984&\",\",data[],7),AE$909)","v":0.05},{"$f":"IF(\"SPECCOST,,\"&AF$5&\",\"&$B984&\",\"=VLOOKUP(\"SPECCOST,,\"&AF$5&\",\"&$B984&\",\",data[],1),VLOOKUP(\"SPECCOST,,\"&AF$5&\",\"&$B984&\",\",data[],7),AF$909)","v":7.0000000000000007E-2},{"$f":"IF(\"SPECCOST,,\"&AG$5&\",\"&$B984&\",\"=VLOOKUP(\"SPECCOST,,\"&AG$5&\",\"&$B984&\",\",data[],1),VLOOKUP(\"SPECCOST,,\"&AG$5&\",\"&$B984&\",\",data[],7),AG$909)","v":7.0000000000000007E-2},{"$f":"IF(\"SPECCOST,,\"&AH$5&\",\"&$B984&\",\"=VLOOKUP(\"SPECCOST,,\"&AH$5&\",\"&$B984&\",\",data[],1),VLOOKUP(\"SPECCOST,,\"&AH$5&\",\"&$B984&\",\",data[],7),AH$909)","v":0.05},{"$f":"IF(\"SPECCOST,,\"&AI$5&\",\"&$B984&\",\"=VLOOKUP(\"SPECCOST,,\"&AI$5&\",\"&$B984&\",\",data[],1),VLOOKUP(\"SPECCOST,,\"&AI$5&\",\"&$B984&\",\",data[],7),AI$909)","v":0.01},null,null,{"$f":"IF(\"SPECCOST,,\"&AL$5&\",\"&$B984&\",\"=VLOOKUP(\"SPECCOST,,\"&AL$5&\",\"&$B984&\",\",data[],1),VLOOKUP(\"SPECCOST,,\"&AL$5&\",\"&$B984&\",\",data[],7),AL$909)","v":7.0000000000000007E-2},null,{"$f":"IF(\"SPECCOST,,\"&AN$5&\",\"&$B984&\",\"=VLOOKUP(\"SPECCOST,,\"&AN$5&\",\"&$B984&\",\",data[],1),VLOOKUP(\"SPECCOST,,\"&AN$5&\",\"&$B984&\",\",data[],7),AN$909)","v":7.0000000000000007E-2},null,null,null,null,null,null,null,{"$f":"IF(\"SPECCOST,,\"&AV$5&\",\"&$B984&\",\"=VLOOKUP(\"SPECCOST,,\"&AV$5&\",\"&$B984&\",\",data[],1),VLOOKUP(\"SPECCOST,,\"&AV$5&\",\"&$B984&\",\",data[],7),AV$909)","v":2.7940534453652541E-3},null,null,null,null,null,null,{"$f":"IF(\"SPECCOST,,\"&BC$5&\",\"&sel_country_code&\",\"=VLOOKUP(\"SPECCOST,,\"&BC$5&\",\"&sel_country_code&\",\",data[],1),VLOOKUP(\"SPECCOST,,\"&BC$5&\",\"&sel_country_code&\",\",data[],7),BC$909)","v":0.05},{"$f":"IF(\"SPECCOST,,\"&BD$5&\",\"&sel_country_code&\",\"=VLOOKUP(\"SPECCOST,,\"&BD$5&\",\"&sel_country_code&\",\",data[],1),VLOOKUP(\"SPECCOST,,\"&BD$5&\",\"&sel_country_code&\",\",data[],7),BD$909)","v":7.0000000000000007E-2},null,{"$f":"IF(\"SPECCOST,,\"&BF$5&\",\"&sel_country_code&\",\"=VLOOKUP(\"SPECCOST,,\"&BF$5&\",\"&sel_country_code&\",\",data[],1),VLOOKUP(\"SPECCOST,,\"&BF$5&\",\"&sel_country_code&\",\",data[],7),BF$909)","v":0.05},{"$f":"IF(\"SPECCOST,,\"&BG$5&\",\"&sel_country_code&\",\"=VLOOKUP(\"SPECCOST,,\"&BG$5&\",\"&sel_country_code&\",\",data[],1),VLOOKUP(\"SPECCOST,,\"&BG$5&\",\"&sel_country_code&\",\",data[],7),BG$909)","v":7.0000000000000007E-2}]
[null,"ZAF-MPU",null,null,null,null,null,null,null,null,null,null,null,null,null,null,null,{"$f":"IF(\"SPECCOST,,\"&R$5&\",\"&$B985&\",\"=VLOOKUP(\"SPECCOST,,\"&R$5&\",\"&$B985&\",\",data[],1),VLOOKUP(\"SPECCOST,,\"&R$5&\",\"&$B985&\",\",data[],7),R$909)","v":1.190463995027624E-3},null,{"$f":"IF(\"SPECCOST,,\"&T$5&\",\"&$B985&\",\"=VLOOKUP(\"SPECCOST,,\"&T$5&\",\"&$B985&\",\",data[],1),VLOOKUP(\"SPECCOST,,\"&T$5&\",\"&$B985&\",\",data[],7),T$909)","v":0.05},{"$f":"IF(\"SPECCOST,,\"&U$5&\",\"&$B985&\",\"=VLOOKUP(\"SPECCOST,,\"&U$5&\",\"&$B985&\",\",data[],1),VLOOKUP(\"SPECCOST,,\"&U$5&\",\"&$B985&\",\",data[],7),U$909)","v":7.0000000000000007E-2},{"$f":"IF(\"SPECCOST,,\"&V$5&\",\"&$B985&\",\"=VLOOKUP(\"SPECCOST,,\"&V$5&\",\"&$B985&\",\",data[],1),VLOOKUP(\"SPECCOST,,\"&V$5&\",\"&$B985&\",\",data[],7),V$909)","v":7.0000000000000007E-2},null,null,{"$f":"IF(\"SPECCOST,,\"&Y$5&\",\"&$B985&\",\"=VLOOKUP(\"SPECCOST,,\"&Y$5&\",\"&$B985&\",\",data[],1),VLOOKUP(\"SPECCOST,,\"&Y$5&\",\"&$B985&\",\",data[],7),Y$909)","v":1.190463995027624E-3},null,{"$f":"IF(\"SPECCOST,,\"&AA$5&\",\"&$B985&\",\"=VLOOKUP(\"SPECCOST,,\"&AA$5&\",\"&$B985&\",\",data[],1),VLOOKUP(\"SPECCOST,,\"&AA$5&\",\"&$B985&\",\",data[],7),AA$909)","v":0.05},{"$f":"IF(\"SPECCOST,,\"&AB$5&\",\"&$B985&\",\"=VLOOKUP(\"SPECCOST,,\"&AB$5&\",\"&$B985&\",\",data[],1),VLOOKUP(\"SPECCOST,,\"&AB$5&\",\"&$B985&\",\",data[],7),AB$909)","v":7.0000000000000007E-2},{"$f":"IF(\"SPECCOST,,\"&AC$5&\",\"&$B985&\",\"=VLOOKUP(\"SPECCOST,,\"&AC$5&\",\"&$B985&\",\",data[],1),VLOOKUP(\"SPECCOST,,\"&AC$5&\",\"&$B985&\",\",data[],7),AC$909)","v":3.8577660276243091E-2},null,{"$f":"IF(\"SPECCOST,,\"&AE$5&\",\"&$B985&\",\"=VLOOKUP(\"SPECCOST,,\"&AE$5&\",\"&$B985&\",\",data[],1),VLOOKUP(\"SPECCOST,,\"&AE$5&\",\"&$B985&\",\",data[],7),AE$909)","v":0.05},{"$f":"IF(\"SPECCOST,,\"&AF$5&\",\"&$B985&\",\"=VLOOKUP(\"SPECCOST,,\"&AF$5&\",\"&$B985&\",\",data[],1),VLOOKUP(\"SPECCOST,,\"&AF$5&\",\"&$B985&\",\",data[],7),AF$909)","v":7.0000000000000007E-2},{"$f":"IF(\"SPECCOST,,\"&AG$5&\",\"&$B985&\",\"=VLOOKUP(\"SPECCOST,,\"&AG$5&\",\"&$B985&\",\",data[],1),VLOOKUP(\"SPECCOST,,\"&AG$5&\",\"&$B985&\",\",data[],7),AG$909)","v":7.0000000000000007E-2},{"$f":"IF(\"SPECCOST,,\"&AH$5&\",\"&$B985&\",\"=VLOOKUP(\"SPECCOST,,\"&AH$5&\",\"&$B985&\",\",data[],1),VLOOKUP(\"SPECCOST,,\"&AH$5&\",\"&$B985&\",\",data[],7),AH$909)","v":0.05},{"$f":"IF(\"SPECCOST,,\"&AI$5&\",\"&$B985&\",\"=VLOOKUP(\"SPECCOST,,\"&AI$5&\",\"&$B985&\",\",data[],1),VLOOKUP(\"SPECCOST,,\"&AI$5&\",\"&$B985&\",\",data[],7),AI$909)","v":0.01},null,null,{"$f":"IF(\"SPECCOST,,\"&AL$5&\",\"&$B985&\",\"=VLOOKUP(\"SPECCOST,,\"&AL$5&\",\"&$B985&\",\",data[],1),VLOOKUP(\"SPECCOST,,\"&AL$5&\",\"&$B985&\",\",data[],7),AL$909)","v":7.0000000000000007E-2},null,{"$f":"IF(\"SPECCOST,,\"&AN$5&\",\"&$B985&\",\"=VLOOKUP(\"SPECCOST,,\"&AN$5&\",\"&$B985&\",\",data[],1),VLOOKUP(\"SPECCOST,,\"&AN$5&\",\"&$B985&\",\",data[],7),AN$909)","v":7.0000000000000007E-2},null,null,null,null,null,null,null,{"$f":"IF(\"SPECCOST,,\"&AV$5&\",\"&$B985&\",\"=VLOOKUP(\"SPECCOST,,\"&AV$5&\",\"&$B985&\",\",data[],1),VLOOKUP(\"SPECCOST,,\"&AV$5&\",\"&$B985&\",\",data[],7),AV$909)","v":2.7940534453652541E-3},null,null,null,null,null,null,{"$f":"IF(\"SPECCOST,,\"&BC$5&\",\"&sel_country_code&\",\"=VLOOKUP(\"SPECCOST,,\"&BC$5&\",\"&sel_country_code&\",\",data[],1),VLOOKUP(\"SPECCOST,,\"&BC$5&\",\"&sel_country_code&\",\",data[],7),BC$909)","v":0.05},{"$f":"IF(\"SPECCOST,,\"&BD$5&\",\"&sel_country_code&\",\"=VLOOKUP(\"SPECCOST,,\"&BD$5&\",\"&sel_country_code&\",\",data[],1),VLOOKUP(\"SPECCOST,,\"&BD$5&\",\"&sel_country_code&\",\",data[],7),BD$909)","v":7.0000000000000007E-2},null,{"$f":"IF(\"SPECCOST,,\"&BF$5&\",\"&sel_country_code&\",\"=VLOOKUP(\"SPECCOST,,\"&BF$5&\",\"&sel_country_code&\",\",data[],1),VLOOKUP(\"SPECCOST,,\"&BF$5&\",\"&sel_country_code&\",\",data[],7),BF$909)","v":0.05},{"$f":"IF(\"SPECCOST,,\"&BG$5&\",\"&sel_country_code&\",\"=VLOOKUP(\"SPECCOST,,\"&BG$5&\",\"&sel_country_code&\",\",data[],1),VLOOKUP(\"SPECCOST,,\"&BG$5&\",\"&sel_country_code&\",\",data[],7),BG$909)","v":7.0000000000000007E-2}]
[null,"ZAF-NC",null,null,null,null,null,null,null,null,null,null,null,null,null,null,null,{"$f":"IF(\"SPECCOST,,\"&R$5&\",\"&$B986&\",\"=VLOOKUP(\"SPECCOST,,\"&R$5&\",\"&$B986&\",\",data[],1),VLOOKUP(\"SPECCOST,,\"&R$5&\",\"&$B986&\",\",data[],7),R$909)","v":1.190463995027624E-3},null,{"$f":"IF(\"SPECCOST,,\"&T$5&\",\"&$B986&\",\"=VLOOKUP(\"SPECCOST,,\"&T$5&\",\"&$B986&\",\",data[],1),VLOOKUP(\"SPECCOST,,\"&T$5&\",\"&$B986&\",\",data[],7),T$909)","v":0.05},{"$f":"IF(\"SPECCOST,,\"&U$5&\",\"&$B986&\",\"=VLOOKUP(\"SPECCOST,,\"&U$5&\",\"&$B986&\",\",data[],1),VLOOKUP(\"SPECCOST,,\"&U$5&\",\"&$B986&\",\",data[],7),U$909)","v":7.0000000000000007E-2},{"$f":"IF(\"SPECCOST,,\"&V$5&\",\"&$B986&\",\"=VLOOKUP(\"SPECCOST,,\"&V$5&\",\"&$B986&\",\",data[],1),VLOOKUP(\"SPECCOST,,\"&V$5&\",\"&$B986&\",\",data[],7),V$909)","v":7.0000000000000007E-2},null,null,{"$f":"IF(\"SPECCOST,,\"&Y$5&\",\"&$B986&\",\"=VLOOKUP(\"SPECCOST,,\"&Y$5&\",\"&$B986&\",\",data[],1),VLOOKUP(\"SPECCOST,,\"&Y$5&\",\"&$B986&\",\",data[],7),Y$909)","v":1.190463995027624E-3},null,{"$f":"IF(\"SPECCOST,,\"&AA$5&\",\"&$B986&\",\"=VLOOKUP(\"SPECCOST,,\"&AA$5&\",\"&$B986&\",\",data[],1),VLOOKUP(\"SPECCOST,,\"&AA$5&\",\"&$B986&\",\",data[],7),AA$909)","v":0.05},{"$f":"IF(\"SPECCOST,,\"&AB$5&\",\"&$B986&\",\"=VLOOKUP(\"SPECCOST,,\"&AB$5&\",\"&$B986&\",\",data[],1),VLOOKUP(\"SPECCOST,,\"&AB$5&\",\"&$B986&\",\",data[],7),AB$909)","v":7.0000000000000007E-2},{"$f":"IF(\"SPECCOST,,\"&AC$5&\",\"&$B986&\",\"=VLOOKUP(\"SPECCOST,,\"&AC$5&\",\"&$B986&\",\",data[],1),VLOOKUP(\"SPECCOST,,\"&AC$5&\",\"&$B986&\",\",data[],7),AC$909)","v":3.8577660276243091E-2},null,{"$f":"IF(\"SPECCOST,,\"&AE$5&\",\"&$B986&\",\"=VLOOKUP(\"SPECCOST,,\"&AE$5&\",\"&$B986&\",\",data[],1),VLOOKUP(\"SPECCOST,,\"&AE$5&\",\"&$B986&\",\",data[],7),AE$909)","v":0.05},{"$f":"IF(\"SPECCOST,,\"&AF$5&\",\"&$B986&\",\"=VLOOKUP(\"SPECCOST,,\"&AF$5&\",\"&$B986&\",\",data[],1),VLOOKUP(\"SPECCOST,,\"&AF$5&\",\"&$B986&\",\",data[],7),AF$909)","v":7.0000000000000007E-2},{"$f":"IF(\"SPECCOST,,\"&AG$5&\",\"&$B986&\",\"=VLOOKUP(\"SPECCOST,,\"&AG$5&\",\"&$B986&\",\",data[],1),VLOOKUP(\"SPECCOST,,\"&AG$5&\",\"&$B986&\",\",data[],7),AG$909)","v":7.0000000000000007E-2},{"$f":"IF(\"SPECCOST,,\"&AH$5&\",\"&$B986&\",\"=VLOOKUP(\"SPECCOST,,\"&AH$5&\",\"&$B986&\",\",data[],1),VLOOKUP(\"SPECCOST,,\"&AH$5&\",\"&$B986&\",\",data[],7),AH$909)","v":0.05},{"$f":"IF(\"SPECCOST,,\"&AI$5&\",\"&$B986&\",\"=VLOOKUP(\"SPECCOST,,\"&AI$5&\",\"&$B986&\",\",data[],1),VLOOKUP(\"SPECCOST,,\"&AI$5&\",\"&$B986&\",\",data[],7),AI$909)","v":0.01},null,null,{"$f":"IF(\"SPECCOST,,\"&AL$5&\",\"&$B986&\",\"=VLOOKUP(\"SPECCOST,,\"&AL$5&\",\"&$B986&\",\",data[],1),VLOOKUP(\"SPECCOST,,\"&AL$5&\",\"&$B986&\",\",data[],7),AL$909)","v":7.0000000000000007E-2},null,{"$f":"IF(\"SPECCOST,,\"&AN$5&\",\"&$B986&\",\"=VLOOKUP(\"SPECCOST,,\"&AN$5&\",\"&$B986&\",\",data[],1),VLOOKUP(\"SPECCOST,,\"&AN$5&\",\"&$B986&\",\",data[],7),AN$909)","v":7.0000000000000007E-2},null,null,null,null,null,null,null,{"$f":"IF(\"SPECCOST,,\"&AV$5&\",\"&$B986&\",\"=VLOOKUP(\"SPECCOST,,\"&AV$5&\",\"&$B986&\",\",data[],1),VLOOKUP(\"SPECCOST,,\"&AV$5&\",\"&$B986&\",\",data[],7),AV$909)","v":2.7940534453652541E-3},null,null,null,null,null,null,{"$f":"IF(\"SPECCOST,,\"&BC$5&\",\"&sel_country_code&\",\"=VLOOKUP(\"SPECCOST,,\"&BC$5&\",\"&sel_country_code&\",\",data[],1),VLOOKUP(\"SPECCOST,,\"&BC$5&\",\"&sel_country_code&\",\",data[],7),BC$909)","v":0.05},{"$f":"IF(\"SPECCOST,,\"&BD$5&\",\"&sel_country_code&\",\"=VLOOKUP(\"SPECCOST,,\"&BD$5&\",\"&sel_country_code&\",\",data[],1),VLOOKUP(\"SPECCOST,,\"&BD$5&\",\"&sel_country_code&\",\",data[],7),BD$909)","v":7.0000000000000007E-2},null,{"$f":"IF(\"SPECCOST,,\"&BF$5&\",\"&sel_country_code&\",\"=VLOOKUP(\"SPECCOST,,\"&BF$5&\",\"&sel_country_code&\",\",data[],1),VLOOKUP(\"SPECCOST,,\"&BF$5&\",\"&sel_country_code&\",\",data[],7),BF$909)","v":0.05},{"$f":"IF(\"SPECCOST,,\"&BG$5&\",\"&sel_country_code&\",\"=VLOOKUP(\"SPECCOST,,\"&BG$5&\",\"&sel_country_code&\",\",data[],1),VLOOKUP(\"SPECCOST,,\"&BG$5&\",\"&sel_country_code&\",\",data[],7),BG$909)","v":7.0000000000000007E-2}]
[null,"ZAF-NW",null,null,null,null,null,null,null,null,null,null,null,null,null,null,null,{"$f":"IF(\"SPECCOST,,\"&R$5&\",\"&$B987&\",\"=VLOOKUP(\"SPECCOST,,\"&R$5&\",\"&$B987&\",\",data[],1),VLOOKUP(\"SPECCOST,,\"&R$5&\",\"&$B987&\",\",data[],7),R$909)","v":1.190463995027624E-3},null,{"$f":"IF(\"SPECCOST,,\"&T$5&\",\"&$B987&\",\"=VLOOKUP(\"SPECCOST,,\"&T$5&\",\"&$B987&\",\",data[],1),VLOOKUP(\"SPECCOST,,\"&T$5&\",\"&$B987&\",\",data[],7),T$909)","v":0.05},{"$f":"IF(\"SPECCOST,,\"&U$5&\",\"&$B987&\",\"=VLOOKUP(\"SPECCOST,,\"&U$5&\",\"&$B987&\",\",data[],1),VLOOKUP(\"SPECCOST,,\"&U$5&\",\"&$B987&\",\",data[],7),U$909)","v":7.0000000000000007E-2},{"$f":"IF(\"SPECCOST,,\"&V$5&\",\"&$B987&\",\"=VLOOKUP(\"SPECCOST,,\"&V$5&\",\"&$B987&\",\",data[],1),VLOOKUP(\"SPECCOST,,\"&V$5&\",\"&$B987&\",\",data[],7),V$909)","v":7.0000000000000007E-2},null,null,{"$f":"IF(\"SPECCOST,,\"&Y$5&\",\"&$B987&\",\"=VLOOKUP(\"SPECCOST,,\"&Y$5&\",\"&$B987&\",\",data[],1),VLOOKUP(\"SPECCOST,,\"&Y$5&\",\"&$B987&\",\",data[],7),Y$909)","v":1.190463995027624E-3},null,{"$f":"IF(\"SPECCOST,,\"&AA$5&\",\"&$B987&\",\"=VLOOKUP(\"SPECCOST,,\"&AA$5&\",\"&$B987&\",\",data[],1),VLOOKUP(\"SPECCOST,,\"&AA$5&\",\"&$B987&\",\",data[],7),AA$909)","v":0.05},{"$f":"IF(\"SPECCOST,,\"&AB$5&\",\"&$B987&\",\"=VLOOKUP(\"SPECCOST,,\"&AB$5&\",\"&$B987&\",\",data[],1),VLOOKUP(\"SPECCOST,,\"&AB$5&\",\"&$B987&\",\",data[],7),AB$909)","v":7.0000000000000007E-2},{"$f":"IF(\"SPECCOST,,\"&AC$5&\",\"&$B987&\",\"=VLOOKUP(\"SPECCOST,,\"&AC$5&\",\"&$B987&\",\",data[],1),VLOOKUP(\"SPECCOST,,\"&AC$5&\",\"&$B987&\",\",data[],7),AC$909)","v":3.8577660276243091E-2},null,{"$f":"IF(\"SPECCOST,,\"&AE$5&\",\"&$B987&\",\"=VLOOKUP(\"SPECCOST,,\"&AE$5&\",\"&$B987&\",\",data[],1),VLOOKUP(\"SPECCOST,,\"&AE$5&\",\"&$B987&\",\",data[],7),AE$909)","v":0.05},{"$f":"IF(\"SPECCOST,,\"&AF$5&\",\"&$B987&\",\"=VLOOKUP(\"SPECCOST,,\"&AF$5&\",\"&$B987&\",\",data[],1),VLOOKUP(\"SPECCOST,,\"&AF$5&\",\"&$B987&\",\",data[],7),AF$909)","v":7.0000000000000007E-2},{"$f":"IF(\"SPECCOST,,\"&AG$5&\",\"&$B987&\",\"=VLOOKUP(\"SPECCOST,,\"&AG$5&\",\"&$B987&\",\",data[],1),VLOOKUP(\"SPECCOST,,\"&AG$5&\",\"&$B987&\",\",data[],7),AG$909)","v":7.0000000000000007E-2},{"$f":"IF(\"SPECCOST,,\"&AH$5&\",\"&$B987&\",\"=VLOOKUP(\"SPECCOST,,\"&AH$5&\",\"&$B987&\",\",data[],1),VLOOKUP(\"SPECCOST,,\"&AH$5&\",\"&$B987&\",\",data[],7),AH$909)","v":0.05},{"$f":"IF(\"SPECCOST,,\"&AI$5&\",\"&$B987&\",\"=VLOOKUP(\"SPECCOST,,\"&AI$5&\",\"&$B987&\",\",data[],1),VLOOKUP(\"SPECCOST,,\"&AI$5&\",\"&$B987&\",\",data[],7),AI$909)","v":0.01},null,null,{"$f":"IF(\"SPECCOST,,\"&AL$5&\",\"&$B987&\",\"=VLOOKUP(\"SPECCOST,,\"&AL$5&\",\"&$B987&\",\",data[],1),VLOOKUP(\"SPECCOST,,\"&AL$5&\",\"&$B987&\",\",data[],7),AL$909)","v":7.0000000000000007E-2},null,{"$f":"IF(\"SPECCOST,,\"&AN$5&\",\"&$B987&\",\"=VLOOKUP(\"SPECCOST,,\"&AN$5&\",\"&$B987&\",\",data[],1),VLOOKUP(\"SPECCOST,,\"&AN$5&\",\"&$B987&\",\",data[],7),AN$909)","v":7.0000000000000007E-2},null,null,null,null,null,null,null,{"$f":"IF(\"SPECCOST,,\"&AV$5&\",\"&$B987&\",\"=VLOOKUP(\"SPECCOST,,\"&AV$5&\",\"&$B987&\",\",data[],1),VLOOKUP(\"SPECCOST,,\"&AV$5&\",\"&$B987&\",\",data[],7),AV$909)","v":2.7940534453652541E-3},null,null,null,null,null,null,{"$f":"IF(\"SPECCOST,,\"&BC$5&\",\"&sel_country_code&\",\"=VLOOKUP(\"SPECCOST,,\"&BC$5&\",\"&sel_country_code&\",\",data[],1),VLOOKUP(\"SPECCOST,,\"&BC$5&\",\"&sel_country_code&\",\",data[],7),BC$909)","v":0.05},{"$f":"IF(\"SPECCOST,,\"&BD$5&\",\"&sel_country_code&\",\"=VLOOKUP(\"SPECCOST,,\"&BD$5&\",\"&sel_country_code&\",\",data[],1),VLOOKUP(\"SPECCOST,,\"&BD$5&\",\"&sel_country_code&\",\",data[],7),BD$909)","v":7.0000000000000007E-2},null,{"$f":"IF(\"SPECCOST,,\"&BF$5&\",\"&sel_country_code&\",\"=VLOOKUP(\"SPECCOST,,\"&BF$5&\",\"&sel_country_code&\",\",data[],1),VLOOKUP(\"SPECCOST,,\"&BF$5&\",\"&sel_country_code&\",\",data[],7),BF$909)","v":0.05},{"$f":"IF(\"SPECCOST,,\"&BG$5&\",\"&sel_country_code&\",\"=VLOOKUP(\"SPECCOST,,\"&BG$5&\",\"&sel_country_code&\",\",data[],1),VLOOKUP(\"SPECCOST,,\"&BG$5&\",\"&sel_country_code&\",\",data[],7),BG$909)","v":7.0000000000000007E-2}]
[null,"ZAF-WC",null,null,null,null,null,null,null,null,null,null,null,null,null,null,null,{"$f":"IF(\"SPECCOST,,\"&R$5&\",\"&$B988&\",\"=VLOOKUP(\"SPECCOST,,\"&R$5&\",\"&$B988&\",\",data[],1),VLOOKUP(\"SPECCOST,,\"&R$5&\",\"&$B988&\",\",data[],7),R$909)","v":1.190463995027624E-3},null,{"$f":"IF(\"SPECCOST,,\"&T$5&\",\"&$B988&\",\"=VLOOKUP(\"SPECCOST,,\"&T$5&\",\"&$B988&\",\",data[],1),VLOOKUP(\"SPECCOST,,\"&T$5&\",\"&$B988&\",\",data[],7),T$909)","v":0.05},{"$f":"IF(\"SPECCOST,,\"&U$5&\",\"&$B988&\",\"=VLOOKUP(\"SPECCOST,,\"&U$5&\",\"&$B988&\",\",data[],1),VLOOKUP(\"SPECCOST,,\"&U$5&\",\"&$B988&\",\",data[],7),U$909)","v":7.0000000000000007E-2},{"$f":"IF(\"SPECCOST,,\"&V$5&\",\"&$B988&\",\"=VLOOKUP(\"SPECCOST,,\"&V$5&\",\"&$B988&\",\",data[],1),VLOOKUP(\"SPECCOST,,\"&V$5&\",\"&$B988&\",\",data[],7),V$909)","v":7.0000000000000007E-2},null,null,{"$f":"IF(\"SPECCOST,,\"&Y$5&\",\"&$B988&\",\"=VLOOKUP(\"SPECCOST,,\"&Y$5&\",\"&$B988&\",\",data[],1),VLOOKUP(\"SPECCOST,,\"&Y$5&\",\"&$B988&\",\",data[],7),Y$909)","v":1.190463995027624E-3},null,{"$f":"IF(\"SPECCOST,,\"&AA$5&\",\"&$B988&\",\"=VLOOKUP(\"SPECCOST,,\"&AA$5&\",\"&$B988&\",\",data[],1),VLOOKUP(\"SPECCOST,,\"&AA$5&\",\"&$B988&\",\",data[],7),AA$909)","v":0.05},{"$f":"IF(\"SPECCOST,,\"&AB$5&\",\"&$B988&\",\"=VLOOKUP(\"SPECCOST,,\"&AB$5&\",\"&$B988&\",\",data[],1),VLOOKUP(\"SPECCOST,,\"&AB$5&\",\"&$B988&\",\",data[],7),AB$909)","v":7.0000000000000007E-2},{"$f":"IF(\"SPECCOST,,\"&AC$5&\",\"&$B988&\",\"=VLOOKUP(\"SPECCOST,,\"&AC$5&\",\"&$B988&\",\",data[],1),VLOOKUP(\"SPECCOST,,\"&AC$5&\",\"&$B988&\",\",data[],7),AC$909)","v":3.8577660276243091E-2},null,{"$f":"IF(\"SPECCOST,,\"&AE$5&\",\"&$B988&\",\"=VLOOKUP(\"SPECCOST,,\"&AE$5&\",\"&$B988&\",\",data[],1),VLOOKUP(\"SPECCOST,,\"&AE$5&\",\"&$B988&\",\",data[],7),AE$909)","v":0.05},{"$f":"IF(\"SPECCOST,,\"&AF$5&\",\"&$B988&\",\"=VLOOKUP(\"SPECCOST,,\"&AF$5&\",\"&$B988&\",\",data[],1),VLOOKUP(\"SPECCOST,,\"&AF$5&\",\"&$B988&\",\",data[],7),AF$909)","v":7.0000000000000007E-2},{"$f":"IF(\"SPECCOST,,\"&AG$5&\",\"&$B988&\",\"=VLOOKUP(\"SPECCOST,,\"&AG$5&\",\"&$B988&\",\",data[],1),VLOOKUP(\"SPECCOST,,\"&AG$5&\",\"&$B988&\",\",data[],7),AG$909)","v":7.0000000000000007E-2},{"$f":"IF(\"SPECCOST,,\"&AH$5&\",\"&$B988&\",\"=VLOOKUP(\"SPECCOST,,\"&AH$5&\",\"&$B988&\",\",data[],1),VLOOKUP(\"SPECCOST,,\"&AH$5&\",\"&$B988&\",\",data[],7),AH$909)","v":0.05},{"$f":"IF(\"SPECCOST,,\"&AI$5&\",\"&$B988&\",\"=VLOOKUP(\"SPECCOST,,\"&AI$5&\",\"&$B988&\",\",data[],1),VLOOKUP(\"SPECCOST,,\"&AI$5&\",\"&$B988&\",\",data[],7),AI$909)","v":0.01},null,null,{"$f":"IF(\"SPECCOST,,\"&AL$5&\",\"&$B988&\",\"=VLOOKUP(\"SPECCOST,,\"&AL$5&\",\"&$B988&\",\",data[],1),VLOOKUP(\"SPECCOST,,\"&AL$5&\",\"&$B988&\",\",data[],7),AL$909)","v":7.0000000000000007E-2},null,{"$f":"IF(\"SPECCOST,,\"&AN$5&\",\"&$B988&\",\"=VLOOKUP(\"SPECCOST,,\"&AN$5&\",\"&$B988&\",\",data[],1),VLOOKUP(\"SPECCOST,,\"&AN$5&\",\"&$B988&\",\",data[],7),AN$909)","v":7.0000000000000007E-2},null,null,null,null,null,null,null,{"$f":"IF(\"SPECCOST,,\"&AV$5&\",\"&$B988&\",\"=VLOOKUP(\"SPECCOST,,\"&AV$5&\",\"&$B988&\",\",data[],1),VLOOKUP(\"SPECCOST,,\"&AV$5&\",\"&$B988&\",\",data[],7),AV$909)","v":2.7940534453652541E-3},null,null,null,null,null,null,{"$f":"IF(\"SPECCOST,,\"&BC$5&\",\"&sel_country_code&\",\"=VLOOKUP(\"SPECCOST,,\"&BC$5&\",\"&sel_country_code&\",\",data[],1),VLOOKUP(\"SPECCOST,,\"&BC$5&\",\"&sel_country_code&\",\",data[],7),BC$909)","v":0.05},{"$f":"IF(\"SPECCOST,,\"&BD$5&\",\"&sel_country_code&\",\"=VLOOKUP(\"SPECCOST,,\"&BD$5&\",\"&sel_country_code&\",\",data[],1),VLOOKUP(\"SPECCOST,,\"&BD$5&\",\"&sel_country_code&\",\",data[],7),BD$909)","v":7.0000000000000007E-2},null,{"$f":"IF(\"SPECCOST,,\"&BF$5&\",\"&sel_country_code&\",\"=VLOOKUP(\"SPECCOST,,\"&BF$5&\",\"&sel_country_code&\",\",data[],1),VLOOKUP(\"SPECCOST,,\"&BF$5&\",\"&sel_country_code&\",\",data[],7),BF$909)","v":0.05},{"$f":"IF(\"SPECCOST,,\"&BG$5&\",\"&sel_country_code&\",\"=VLOOKUP(\"SPECCOST,,\"&BG$5&\",\"&sel_country_code&\",\",data[],1),VLOOKUP(\"SPECCOST,,\"&BG$5&\",\"&sel_country_code&\",\",data[],7),BG$909)","v":7.0000000000000007E-2}]
[]
["speccost-ann",null,null,null,null,null,null,null,null,null,null,null,null,null,null,null,null,null,null,null,null,null,null,null,null,null,null,null,null,null,null,null,null,null,null,null,null,null,null,null,null,null,null,null,null,null,null,null,null,null,null,null,null,null,null,null,null,null,null,null,null,null,null,null,null,null,"COST-FLOW"]
[null,"ARE",null,null,null,null,null,null,null,null,null,null,null,null,null,null,null,{"$f":"MAX(0,R910*R176)","v":0},null,{"$f":"MAX(0,T910*T176)","v":0},4.3470000000000009E-5,0,null,null,{"$f":"MAX(0,Y910*Y176)","v":0},null,{"$f":"MAX(0,AA910*AA176)","v":0},0,0,null,{"$f":"MAX(0,AE910*AE176)","v":0},0,0,0,0,null,null,{"$f":"MAX(0,AL910*AL176)","v":0},null,{"$f":"MAX(0,AN910*AN176)","v":9.6600000000000006E-4},null,null,null,null,null,null,null,{"$f":"MAX(0,AV910*AV176)","v":0},null,null,null,null,null,null,{"$f":"MAX(0,BC910*BC176)","v":0},0,null,0,0,null,null,null,null,null,null,null,null,{"$f":"SUMIF($K$8:$BJ$8,BP$1,$K991:$BJ991)*$BL95*conv_fact_to_mass","v":7.0443314472572308E-2},0,0,1.5654069882793844,0,0,0,0]
[null,"ARG",null,null,null,null,null,null,null,null,null,null,null,null,null,null,null,0,null,0,4.3470000000000009E-5,0,null,null,0,null,0,0,0,null,0,0,0,0,0,null,null,1.4494831610536845E-2,null,0,null,null,null,null,null,null,null,0,null,null,null,null,null,null,{"$f":"MAX(0,BC911*BC177)","v":0},0,null,{"$f":"MAX(0,BF911*BF177)","v":0},0,null,null,null,null,null,null,null,null,8.6538626962820581E-2,0,0,0,28.855827596805788,0,0,0]
[null,"ARG-BA",null,null,null,null,null,null,null,null,null,null,null,null,null,null,null,0,null,0,4.3470000000000009E-5,0,null,null,0,null,0,0,0,null,0,0,0,0,0,null,null,1.4494831610536845E-2,null,0,null,null,null,null,null,null,null,0,null,null,null,null,null,null,{"$f":"MAX(0,BC912*BC178)","v":0},0,null,{"$f":"MAX(0,BF912*BF178)","v":0},0,null,null,null,null,null,null,null,null,8.6538626962820581E-2,0,0,0,28.855827596805788,0,0,0]
[null,"ARG-CAT",null,null,null,null,null,null,null,null,null,null,null,null,null,null,null,0,null,0,4.3470000000000009E-5,0,null,null,0,null,0,0,0,null,0,0,0,0,0,null,null,1.4494831610536845E-2,null,0,null,null,null,null,null,null,null,0,null,null,null,null,null,null,{"$f":"MAX(0,BC913*BC179)","v":0},0,null,{"$f":"MAX(0,BF913*BF179)","v":0},0,null,null,null,null,null,null,null,null,8.6538626962820581E-2,0,0,0,28.855827596805788,0,0,0]
[null,"ARG-CBA",null,null,null,null,null,null,null,null,null,null,null,null,null,null,null,0,null,0,4.3470000000000009E-5,0,null,null,0,null,0,0,0,null,0,0,0,0,0,null,null,1.4494831610536845E-2,null,0,null,null,null,null,null,null,null,0,null,null,null,null,null,null,{"$f":"MAX(0,BC914*BC180)","v":0},0,null,{"$f":"MAX(0,BF914*BF180)","v":0},0,null,null,null,null,null,null,null,null,8.6538626962820581E-2,0,0,0,28.855827596805788,0,0,0]
[null,"ARG-CHA",null,null,null,null,null,null,null,null,null,null,null,null,null,null,null,0,null,0,4.3470000000000009E-5,0,null,null,0,null,0,0,0,null,0,0,0,0,0,null,null,1.4494831610536845E-2,null,0,null,null,null,null,null,null,null,0,null,null,null,null,null,null,{"$f":"MAX(0,BC915*BC181)","v":0},0,null,{"$f":"MAX(0,BF915*BF181)","v":0},0,null,null,null,null,null,null,null,null,8.6538626962820581E-2,0,0,0,28.855827596805788,0,0,0]
[null,"ARG-CHU",null,null,null,null,null,null,null,null,null,null,null,null,null,null,null,0,null,0,4.3470000000000009E-5,0,null,null,0,null,0,0,0,null,0,0,0,0,0,null,null,1.4494831610536845E-2,null,0,null,null,null,null,null,null,null,0,null,null,null,null,null,null,{"$f":"MAX(0,BC916*BC182)","v":0},0,null,{"$f":"MAX(0,BF916*BF182)","v":0},0,null,null,null,null,null,null,null,null,8.6538626962820581E-2,0,0,0,28.855827596805788,0,0,0]
[null,"ARG-COR",null,null,null,null,null,null,null,null,null,null,null,null,null,null,null,0,null,0,4.3470000000000009E-5,0,null,null,0,null,0,0,0,null,0,0,0,0,0,null,null,1.4494831610536845E-2,null,0,null,null,null,null,null,null,null,0,null,null,null,null,null,null,{"$f":"MAX(0,BC917*BC183)","v":0},0,null,{"$f":"MAX(0,BF917*BF183)","v":0},0,null,null,null,null,null,null,null,null,8.6538626962820581E-2,0,0,0,28.855827596805788,0,0,0]
[null,"ARG-CRB",null,null,null,null,null,null,null,null,null,null,null,null,null,null,null,0,null,0,4.3470000000000009E-5,0,null,null,0,null,0,0,0,null,0,0,0,0,0,null,null,1.4494831610536845E-2,null,0,null,null,null,null,null,null,null,0,null,null,null,null,null,null,{"$f":"MAX(0,BC918*BC184)","v":0},0,null,{"$f":"MAX(0,BF918*BF184)","v":0},0,null,null,null,null,null,null,null,null,8.6538626962820581E-2,0,0,0,28.855827596805788,0,0,0]
[null,"ARG-CRU",null,null,null,null,null,null,null,null,null,null,null,null,null,null,null,0,null,0,4.3470000000000009E-5,0,null,null,0,null,0,0,0,null,0,0,0,0,0,null,null,1.4494831610536845E-2,null,0,null,null,null,null,null,null,null,0,null,null,null,null,null,null,{"$f":"MAX(0,BC919*BC185)","v":0},0,null,{"$f":"MAX(0,BF919*BF185)","v":0},0,null,null,null,null,null,null,null,null,8.6538626962820581E-2,0,0,0,28.855827596805788,0,0,0]
[null,"ARG-EST",null,null,null,null,null,null,null,null,null,null,null,null,null,null,null,0,null,0,4.3470000000000009E-5,0,null,null,0,null,0,0,0,null,{"$f":"MAX(0,AE920*AE186)","v":0},0,0,0,0,null,null,1.4494831610536845E-2,null,0,null,null,null,null,null,null,null,0,null,null,null,null,null,null,{"$f":"MAX(0,BC920*BC186)","v":0},0,null,{"$f":"MAX(0,BF920*BF186)","v":0},0,null,null,null,null,null,null,null,null,{"$f":"SUMIF($K$8:$BJ$8,BP$1,$K1001:$BJ1001)*$BL105*conv_fact_to_mass","v":8.6538626962820581E-2},0,0,0,28.855827596805788,0,0,0]
[null,"ARG-FOR",null,null,null,null,null,null,null,null,null,null,null,null,null,null,null,0,null,0,4.3470000000000009E-5,0,null,null,0,null,0,0,0,null,0,0,0,0,0,null,null,1.4494831610536845E-2,null,0,null,null,null,null,null,null,null,0,null,null,null,null,null,null,{"$f":"MAX(0,BC921*BC187)","v":0},0,null,{"$f":"MAX(0,BF921*BF187)","v":0},0,null,null,null,null,null,null,null,null,8.6538626962820581E-2,0,0,0,28.855827596805788,0,0,0]
[null,"ARG-FUE",null,null,null,null,null,null,null,null,null,null,null,null,null,null,null,0,null,0,4.3470000000000009E-5,0,null,null,0,null,0,0,0,null,0,0,0,0,0,null,null,1.4494831610536845E-2,null,0,null,null,null,null,null,null,null,0,null,null,null,null,null,null,{"$f":"MAX(0,BC922*BC188)","v":0},0,null,{"$f":"MAX(0,BF922*BF188)","v":0},0,null,null,null,null,null,null,null,null,8.6538626962820581E-2,0,0,0,28.855827596805788,0,0,0]
[null,"ARG-JUJ",null,null,null,null,null,null,null,null,null,null,null,null,null,null,null,0,null,0,4.3470000000000009E-5,0,null,null,0,null,0,0,0,null,0,0,0,0,0,null,null,1.4494831610536845E-2,null,0,null,null,null,null,null,null,null,0,null,null,null,null,null,null,{"$f":"MAX(0,BC923*BC189)","v":0},0,null,{"$f":"MAX(0,BF923*BF189)","v":0},0,null,null,null,null,null,null,null,null,8.6538626962820581E-2,0,0,0,28.855827596805788,0,0,0]
[null,"ARG-LAR",null,null,null,null,null,null,null,null,null,null,null,null,null,null,null,0,null,0,4.3470000000000009E-5,0,null,null,0,null,0,0,0,null,0,0,0,0,0,null,null,1.4494831610536845E-2,null,0,null,null,null,null,null,null,null,0,null,null,null,null,null,null,{"$f":"MAX(0,BC924*BC190)","v":0},0,null,{"$f":"MAX(0,BF924*BF190)","v":0},0,null,null,null,null,null,null,null,null,8.6538626962820581E-2,0,0,0,28.855827596805788,0,0,0]
[null,"ARG-MEN",null,null,null,null,null,null,null,null,null,null,null,null,null,null,null,0,null,0,4.3470000000000009E-5,0,null,null,0,null,0,0,0,null,0,0,0,0,0,null,null,1.4494831610536845E-2,null,0,null,null,null,null,null,null,null,0,null,null,null,null,null,null,{"$f":"MAX(0,BC925*BC191)","v":0},0,null,{"$f":"MAX(0,BF925*BF191)","v":0},0,null,null,null,null,null,null,null,null,8.6538626962820581E-2,0,0,0,28.855827596805788,0,0,0]
[null,"ARG-MIS",null,null,null,null,null,null,null,null,null,null,null,null,null,null,null,0,null,0,4.3470000000000009E-5,0,null,null,0,null,0,0,0,null,0,0,0,0,0,null,null,1.4494831610536845E-2,null,0,null,null,null,null,null,null,null,0,null,null,null,null,null,null,{"$f":"MAX(0,BC926*BC192)","v":0},0,null,{"$f":"MAX(0,BF926*BF192)","v":0},0,null,null,null,null,null,null,null,null,8.6538626962820581E-2,0,0,0,28.855827596805788,0,0,0]
[null,"ARG-NEG",null,null,null,null,null,null,null,null,null,null,null,null,null,null,null,0,null,0,4.3470000000000009E-5,0,null,null,0,null,0,0,0,null,0,0,0,0,0,null,null,1.4494831610536845E-2,null,0,null,null,null,null,null,null,null,0,null,null,null,null,null,null,{"$f":"MAX(0,BC927*BC193)","v":0},0,null,{"$f":"MAX(0,BF927*BF193)","v":0},0,null,null,null,null,null,null,null,null,8.6538626962820581E-2,0,0,0,28.855827596805788,0,0,0]
[null,"ARG-NEU",null,null,null,null,null,null,null,null,null,null,null,null,null,null,null,0,null,0,4.3470000000000009E-5,0,null,null,0,null,0,0,0,null,0,0,0,0,0,null,null,1.4494831610536845E-2,null,0,null,null,null,null,null,null,null,0,null,null,null,null,null,null,{"$f":"MAX(0,BC928*BC194)","v":0},0,null,{"$f":"MAX(0,BF928*BF194)","v":0},0,null,null,null,null,null,null,null,null,8.6538626962820581E-2,0,0,0,28.855827596805788,0,0,0]
[null,"ARG-PAM",null,null,null,null,null,null,null,null,null,null,null,null,null,null,null,0,null,0,4.3470000000000009E-5,0,null,null,0,null,0,0,0,null,0,0,0,0,0,null,null,1.4494831610536845E-2,null,0,null,null,null,null,null,null,null,0,null,null,null,null,null,null,{"$f":"MAX(0,BC929*BC195)","v":0},0,null,{"$f":"MAX(0,BF929*BF195)","v":0},0,null,null,null,null,null,null,null,null,8.6538626962820581E-2,0,0,0,28.855827596805788,0,0,0]
[null,"ARG-RIO",null,null,null,null,null,null,null,null,null,null,null,null,null,null,null,0,null,{"$f":"MAX(0,T930*T196)","v":0},4.3470000000000009E-5,0,null,null,0,null,{"$f":"MAX(0,AA930*AA196)","v":0},0,0,null,{"$f":"MAX(0,AE930*AE196)","v":0},0,0,0,0,null,null,1.4494831610536845E-2,null,0,null,null,null,null,null,null,null,0,null,null,null,null,null,null,{"$f":"MAX(0,BC930*BC196)","v":0},0,null,{"$f":"MAX(0,BF930*BF196)","v":0},0,null,null,null,null,null,null,null,null,{"$f":"SUMIF($K$8:$BJ$8,BP$1,$K1011:$BJ1011)*$BL115*conv_fact_to_mass","v":8.6538626962820581E-2},0,0,0,28.855827596805788,0,0,0]
[null,"ARG-SAF",null,null,null,null,null,null,null,null,null,null,null,null,null,null,null,0,null,0,4.3470000000000009E-5,0,null,null,0,null,0,0,0,null,0,0,0,0,0,null,null,1.4494831610536845E-2,null,0,null,null,null,null,null,null,null,0,null,null,null,null,null,null,{"$f":"MAX(0,BC931*BC197)","v":0},0,null,{"$f":"MAX(0,BF931*BF197)","v":0},0,null,null,null,null,null,null,null,null,8.6538626962820581E-2,0,0,0,28.855827596805788,0,0,0]
[null,"ARG-SAJ",null,null,null,null,null,null,null,null,null,null,null,null,null,null,null,0,null,0,4.3470000000000009E-5,0,null,null,0,null,0,0,0,null,0,0,0,0,0,null,null,1.4494831610536845E-2,null,0,null,null,null,null,null,null,null,0,null,null,null,null,null,null,{"$f":"MAX(0,BC932*BC198)","v":0},0,null,{"$f":"MAX(0,BF932*BF198)","v":0},0,null,null,null,null,null,null,null,null,8.6538626962820581E-2,0,0,0,28.855827596805788,0,0,0]
[null,"ARG-SAL",null,null,null,null,null,null,null,null,null,null,null,null,null,null,null,0,null,0,4.3470000000000009E-5,0,null,null,0,null,0,0,0,null,0,0,0,0,0,null,null,1.4494831610536845E-2,null,0,null,null,null,null,null,null,null,0,null,null,null,null,null,null,{"$f":"MAX(0,BC933*BC199)","v":0},0,null,{"$f":"MAX(0,BF933*BF199)","v":0},0,null,null,null,null,null,null,null,null,8.6538626962820581E-2,0,0,0,28.855827596805788,0,0,0]
[null,"ARG-SAT",null,null,null,null,null,null,null,null,null,null,null,null,null,null,null,0,null,0,4.3470000000000009E-5,0,null,null,0,null,0,0,0,null,0,0,0,0,0,null,null,1.4494831610536845E-2,null,0,null,null,null,null,null,null,null,0,null,null,null,null,null,null,{"$f":"MAX(0,BC934*BC200)","v":0},0,null,{"$f":"MAX(0,BF934*BF200)","v":0},0,null,null,null,null,null,null,null,null,8.6538626962820581E-2,0,0,0,28.855827596805788,0,0,0]
[null,"ARG-TUC",null,null,null,null,null,null,null,null,null,null,null,null,null,null,null,0,null,0,4.3470000000000009E-5,0,null,null,0,null,0,0,0,null,0,0,0,0,0,null,null,1.4494831610536845E-2,null,0,null,null,null,null,null,null,null,0,null,null,null,null,null,null,{"$f":"MAX(0,BC935*BC201)","v":0},0,null,{"$f":"MAX(0,BF935*BF201)","v":0},0,null,null,null,null,null,null,null,null,8.6538626962820581E-2,0,0,0,28.855827596805788,0,0,0]
[null,"AUS",null,null,null,null,null,null,null,null,null,null,null,null,null,null,null,0,null,0,4.3470000000000009E-5,0,null,null,0,null,0,0,0,null,0,0,0,0,0,null,null,1.4494831610536845E-2,null,0,null,null,null,null,null,null,null,0,null,null,null,null,null,null,{"$f":"MAX(0,BC936*BC202)","v":0},0,null,{"$f":"MAX(0,BF936*BF202)","v":0},0,null,null,null,null,null,null,null,null,9.4988616384487662E-2,0,0,0,31.673429938141922,0,0,0]
[null,"BRA",null,null,null,null,null,null,null,null,null,null,null,null,null,null,null,0,null,0,4.3470000000000009E-5,0,null,null,0,null,0,0,0,null,0,0,0,0,0,null,null,1.4494831610536845E-2,null,0,null,null,null,null,null,null,null,0,null,null,null,null,null,null,{"$f":"MAX(0,BC937*BC203)","v":0},0,null,{"$f":"MAX(0,BF937*BF203)","v":0},0,null,null,null,null,null,null,null,null,8.4483967676729915E-2,0,0,0,28.170712796508806,0,0,0]
[null,"CHL",null,null,null,null,null,null,null,null,null,null,null,null,null,null,null,0,null,0,4.3470000000000009E-5,0,null,null,0,null,0,0,0,null,0,0,0,0,0,null,null,1.4494831610536845E-2,null,0,null,null,null,null,null,null,null,0,null,null,null,null,null,null,{"$f":"MAX(0,BC938*BC204)","v":0},0,null,{"$f":"MAX(0,BF938*BF204)","v":0},0,null,null,null,null,null,null,null,null,8.6342252842091932E-2,0,0,0,28.790347729940617,0,0,0]
[null,"CHN",null,null,null,null,null,null,null,null,null,null,null,null,null,null,null,0,null,0,4.3470000000000009E-5,0,null,null,0,null,0,0,0,null,0,0,0,0,0,null,null,1.4494831610536845E-2,null,0,null,null,null,null,null,null,null,0,null,null,null,null,null,null,{"$f":"MAX(0,BC939*BC205)","v":0},0,null,{"$f":"MAX(0,BF939*BF205)","v":0},0,null,null,null,null,null,null,null,null,9.4199947235976161E-2,0,0,0,31.410452562846331,0,0,0]
[null,"COL",null,null,null,null,null,null,null,null,null,null,null,null,null,null,null,0,null,0,4.3470000000000009E-5,0,null,null,0,null,0,0,0,null,{"$f":"MAX(0,AE940*AE206)","v":0},0,0,0,0,null,null,1.4494831610536845E-2,null,0,null,null,null,null,null,null,null,0,null,null,null,null,null,null,{"$f":"MAX(0,BC940*BC206)","v":0},0,null,{"$f":"MAX(0,BF940*BF206)","v":0},0,null,null,null,null,null,null,null,null,{"$f":"SUMIF($K$8:$BJ$8,BP$1,$K1021:$BJ1021)*$BL125*conv_fact_to_mass","v":8.3493546224798265E-2},0,0,0,27.840462229009081,0,0,0]
[null,"CRI",null,null,null,null,null,null,null,null,null,null,null,null,null,null,null,0,null,0,4.3470000000000009E-5,0,null,null,0,null,0,0,0,null,0,0,0,0,0,null,null,1.4494831610536845E-2,null,0,null,null,null,null,null,null,null,0,null,null,null,null,null,null,{"$f":"MAX(0,BC941*BC207)","v":0},0,null,{"$f":"MAX(0,BF941*BF207)","v":0},0,null,null,null,null,null,null,null,null,8.1977349461986981E-2,0,0,0,27.334894785590848,0,0,0]
[null,"DNK",null,null,null,null,null,null,null,null,null,null,null,null,null,null,null,{"$f":"MAX(0,R942*R208)","v":0},null,0,4.3470000000000009E-5,0,null,null,{"$f":"MAX(0,Y942*Y208)","v":0},null,0,0,0,null,0,0,0,0,0,null,null,{"$f":"MAX(0,AL942*AL208)","v":0},null,{"$f":"MAX(0,AN942*AN208)","v":9.6600000000000006E-4},null,null,null,null,null,null,null,{"$f":"MAX(0,AV942*AV208)","v":0},null,null,null,null,null,null,{"$f":"MAX(0,BC942*BC208)","v":0},0,null,{"$f":"MAX(0,BF942*BF208)","v":0},0,null,null,null,null,null,null,null,null,6.4452068780045071E-2,0,0,1.4322681951121123,0,0,0,0]
[null,"DZA",null,null,null,null,null,null,null,null,null,null,null,null,null,null,null,0,null,0,4.3470000000000009E-5,0,null,null,0,null,0,0,0,null,0,0,0,0,0,null,null,0,null,9.6600000000000006E-4,null,null,null,null,null,null,null,0,null,null,null,null,null,null,{"$f":"MAX(0,BC943*BC209)","v":0},0,null,{"$f":"MAX(0,BF943*BF209)","v":0},0,null,null,null,null,null,null,null,null,6.7298309762971756E-2,0,0,1.4955179947327055,0,0,0,0]
[null,"EGY",null,null,null,null,null,null,null,null,null,null,null,null,null,null,null,0,null,0,4.3470000000000009E-5,0,null,null,0,null,0,0,0,null,0,0,0,0,0,null,null,0,null,9.6600000000000006E-4,null,null,null,null,null,null,null,0,null,null,null,null,null,null,{"$f":"MAX(0,BC944*BC210)","v":0},0,null,{"$f":"MAX(0,BF944*BF210)","v":0},0,null,null,null,null,null,null,null,null,6.9794528212595588E-2,0,0,1.5509895158354574,0,0,0,0]
[null,"ESP",null,null,null,null,null,null,null,null,null,null,null,null,null,null,null,0,null,0,4.3470000000000009E-5,0,null,null,0,null,0,0,0,null,0,0,0,0,0,null,null,0,null,9.6600000000000006E-4,null,null,null,null,null,null,null,0,null,null,null,null,null,null,{"$f":"MAX(0,BC945*BC211)","v":0},0,null,{"$f":"MAX(0,BF945*BF211)","v":0},0,null,null,null,null,null,null,null,null,6.5567377654662987E-2,0,0,1.4570528367702884,0,0,0,0]
[null,"IDN",null,null,null,null,null,null,null,null,null,null,null,null,null,null,null,0,null,0,4.3470000000000009E-5,0,null,null,0,null,0,0,0,null,0,0,0,0,0,null,null,1.4494831610536845E-2,null,0,null,null,null,null,null,null,null,0,null,null,null,null,null,null,{"$f":"MAX(0,BC946*BC212)","v":0},0,null,{"$f":"MAX(0,BF946*BF212)","v":0},0,null,null,null,null,null,null,null,null,9.0543353807296695E-2,0,0,0,30.191181662986551,0,0,0]
[null,"IND",null,null,null,null,null,null,null,null,null,null,null,null,null,null,null,0,null,0,4.3470000000000009E-5,0,null,null,0,null,0,0,0,null,0,0,0,0,0,null,null,1.4494831610536845E-2,null,0,null,null,null,null,null,null,null,0,null,null,null,null,null,null,{"$f":"MAX(0,BC947*BC213)","v":0},0,null,{"$f":"MAX(0,BF947*BF213)","v":0},0,null,null,null,null,null,null,null,null,8.6501350750523037E-2,0,0,0,28.843398049524176,0,0,0]
[null,"JOR",null,null,null,null,null,null,null,null,null,null,null,null,null,null,null,0,null,0,4.3470000000000009E-5,0,null,null,0,null,0,0,0,null,0,0,0,0,0,null,null,0,null,9.6600000000000006E-4,null,null,null,null,null,null,null,0,null,null,null,null,null,null,{"$f":"MAX(0,BC948*BC214)","v":0},0,null,{"$f":"MAX(0,BF948*BF214)","v":0},0,null,null,null,null,null,null,null,null,6.7917945729568899E-2,0,0,1.5092876828793087,0,0,0,0]
[null,"KAZ",null,null,null,null,null,null,null,null,null,null,null,null,null,null,null,0,null,0,4.3470000000000009E-5,0,null,null,0,null,0,0,0,null,0,0,0,0,0,null,null,0,null,9.6600000000000006E-4,null,null,null,null,null,null,null,0,null,null,null,null,null,null,{"$f":"MAX(0,BC949*BC215)","v":0},0,null,{"$f":"MAX(0,BF949*BF215)","v":0},0,null,null,null,null,null,null,null,null,6.7917945729568899E-2,0,0,1.5092876828793087,0,0,0,0]
[null,"KEN",null,null,null,null,null,null,null,null,null,null,null,null,null,null,null,0,null,{"$f":"MAX(0,T950*T216)","v":0},4.3470000000000009E-5,0,null,null,0,null,{"$f":"MAX(0,AA950*AA216)","v":0},0,0,null,{"$f":"MAX(0,AE950*AE216)","v":0},0,0,0,0,null,null,1.4494831610536845E-2,null,0,null,null,null,null,null,null,null,0,null,null,null,null,null,null,{"$f":"MAX(0,BC950*BC216)","v":0},0,null,{"$f":"MAX(0,BF950*BF216)","v":0},0,null,null,null,null,null,null,null,null,{"$f":"SUMIF($K$8:$BJ$8,BP$1,$K1031:$BJ1031)*$BL135*conv_fact_to_mass","v":8.6616104780588399E-2},0,0,0,28.881662147578648,0,0,0]
[null,"MAR",null,null,null,null,null,null,null,null,null,null,null,null,null,null,null,0,null,0,4.3470000000000009E-5,0,null,null,0,null,0,0,0,null,0,0,0,0,0,null,null,1.4494831610536845E-2,null,0,null,null,null,null,null,null,null,0,null,null,null,null,null,null,{"$f":"MAX(0,BC951*BC217)","v":0},0,null,{"$f":"MAX(0,BF951*BF217)","v":0},0,null,null,null,null,null,null,null,null,7.8280375503673241E-2,0,0,0,26.102159220964726,0,0,0]
[null,"MAR-BEN",null,null,null,null,null,null,null,null,null,null,null,null,null,null,null,0,null,0,4.3470000000000009E-5,0,null,null,0,null,0,0,0,null,0,0,0,0,0,null,null,1.4494831610536845E-2,null,0,null,null,null,null,null,null,null,0,null,null,null,null,null,null,{"$f":"MAX(0,BC952*BC218)","v":0},0,null,{"$f":"MAX(0,BF952*BF218)","v":0},0,null,null,null,null,null,null,null,null,7.8280375503673241E-2,0,0,0,26.102159220964726,0,0,0]
[null,"MAR-CAS",null,null,null,null,null,null,null,null,null,null,null,null,null,null,null,0,null,0,4.3470000000000009E-5,0,null,null,0,null,0,0,0,null,0,0,0,0,0,null,null,1.4494831610536845E-2,null,0,null,null,null,null,null,null,null,0,null,null,null,null,null,null,{"$f":"MAX(0,BC953*BC219)","v":0},0,null,{"$f":"MAX(0,BF953*BF219)","v":0},0,null,null,null,null,null,null,null,null,7.8280375503673241E-2,0,0,0,26.102159220964726,0,0,0]
[null,"MAR-DAK",null,null,null,null,null,null,null,null,null,null,null,null,null,null,null,0,null,0,4.3470000000000009E-5,0,null,null,0,null,0,0,0,null,0,0,0,0,0,null,null,1.4494831610536845E-2,null,0,null,null,null,null,null,null,null,0,null,null,null,null,null,null,{"$f":"MAX(0,BC954*BC220)","v":0},0,null,{"$f":"MAX(0,BF954*BF220)","v":0},0,null,null,null,null,null,null,null,null,7.8280375503673241E-2,0,0,0,26.102159220964726,0,0,0]
[null,"MAR-DRA",null,null,null,null,null,null,null,null,null,null,null,null,null,null,null,0,null,0,4.3470000000000009E-5,0,null,null,0,null,0,0,0,null,0,0,0,0,0,null,null,1.4494831610536845E-2,null,0,null,null,null,null,null,null,null,0,null,null,null,null,null,null,{"$f":"MAX(0,BC955*BC221)","v":0},0,null,{"$f":"MAX(0,BF955*BF221)","v":0},0,null,null,null,null,null,null,null,null,7.8280375503673241E-2,0,0,0,26.102159220964726,0,0,0]
[null,"MAR-FES",null,null,null,null,null,null,null,null,null,null,null,null,null,null,null,0,null,0,4.3470000000000009E-5,0,null,null,0,null,0,0,0,null,0,0,0,0,0,null,null,1.4494831610536845E-2,null,0,null,null,null,null,null,null,null,0,null,null,null,null,null,null,{"$f":"MAX(0,BC956*BC222)","v":0},0,null,{"$f":"MAX(0,BF956*BF222)","v":0},0,null,null,null,null,null,null,null,null,7.8280375503673241E-2,0,0,0,26.102159220964726,0,0,0]
[null,"MAR-GUE",null,null,null,null,null,null,null,null,null,null,null,null,null,null,null,0,null,0,4.3470000000000009E-5,0,null,null,0,null,0,0,0,null,0,0,0,0,0,null,null,1.4494831610536845E-2,null,0,null,null,null,null,null,null,null,0,null,null,null,null,null,null,{"$f":"MAX(0,BC957*BC223)","v":0},0,null,{"$f":"MAX(0,BF957*BF223)","v":0},0,null,null,null,null,null,null,null,null,7.8280375503673241E-2,0,0,0,26.102159220964726,0,0,0]
[null,"MAR-LAA",null,null,null,null,null,null,null,null,null,null,null,null,null,null,null,0,null,0,4.3470000000000009E-5,0,null,null,0,null,0,0,0,null,0,0,0,0,0,null,null,1.4494831610536845E-2,null,0,null,null,null,null,null,null,null,0,null,null,null,null,null,null,{"$f":"MAX(0,BC958*BC224)","v":0},0,null,{"$f":"MAX(0,BF958*BF224)","v":0},0,null,null,null,null,null,null,null,null,7.8280375503673241E-2,0,0,0,26.102159220964726,0,0,0]
[null,"MAR-LOR",null,null,null,null,null,null,null,null,null,null,null,null,null,null,null,0,null,0,4.3470000000000009E-5,0,null,null,0,null,0,0,0,null,0,0,0,0,0,null,null,1.4494831610536845E-2,null,0,null,null,null,null,null,null,null,0,null,null,null,null,null,null,{"$f":"MAX(0,BC959*BC225)","v":0},0,null,{"$f":"MAX(0,BF959*BF225)","v":0},0,null,null,null,null,null,null,null,null,7.8280375503673241E-2,0,0,0,26.102159220964726,0,0,0]
[null,"MAR-MAR",null,null,null,null,null,null,null,null,null,null,null,null,null,null,null,0,null,0,4.3470000000000009E-5,0,null,null,0,null,0,0,0,null,{"$f":"MAX(0,AE960*AE226)","v":0},0,0,0,0,null,null,1.4494831610536845E-2,null,0,null,null,null,null,null,null,null,0,null,null,null,null,null,null,{"$f":"MAX(0,BC960*BC226)","v":0},0,null,{"$f":"MAX(0,BF960*BF226)","v":0},0,null,null,null,null,null,null,null,null,{"$f":"SUMIF($K$8:$BJ$8,BP$1,$K1041:$BJ1041)*$BL145*conv_fact_to_mass","v":7.8280375503673241E-2},0,0,0,26.102159220964726,0,0,0]
[null,"MAR-RAB",null,null,null,null,null,null,null,null,null,null,null,null,null,null,null,0,null,0,4.3470000000000009E-5,0,null,null,0,null,0,0,0,null,0,0,0,0,0,null,null,1.4494831610536845E-2,null,0,null,null,null,null,null,null,null,0,null,null,null,null,null,null,{"$f":"MAX(0,BC961*BC227)","v":0},0,null,{"$f":"MAX(0,BF961*BF227)","v":0},0,null,null,null,null,null,null,null,null,7.8280375503673241E-2,0,0,0,26.102159220964726,0,0,0]
[null,"MAR-SOU",null,null,null,null,null,null,null,null,null,null,null,null,null,null,null,0,null,0,4.3470000000000009E-5,0,null,null,0,null,0,0,0,null,0,0,0,0,0,null,null,1.4494831610536845E-2,null,0,null,null,null,null,null,null,null,0,null,null,null,null,null,null,{"$f":"MAX(0,BC962*BC228)","v":0},0,null,{"$f":"MAX(0,BF962*BF228)","v":0},0,null,null,null,null,null,null,null,null,7.8280375503673241E-2,0,0,0,26.102159220964726,0,0,0]
[null,"MAR-TAN",null,null,null,null,null,null,null,null,null,null,null,null,null,null,null,0,null,0,4.3470000000000009E-5,0,null,null,0,null,0,0,0,null,0,0,0,0,0,null,null,1.4494831610536845E-2,null,0,null,null,null,null,null,null,null,0,null,null,null,null,null,null,{"$f":"MAX(0,BC963*BC229)","v":0},0,null,{"$f":"MAX(0,BF963*BF229)","v":0},0,null,null,null,null,null,null,null,null,7.8280375503673241E-2,0,0,0,26.102159220964726,0,0,0]
[null,"MEX",null,null,null,null,null,null,null,null,null,null,null,null,null,null,null,0,null,0,4.3470000000000009E-5,0,null,null,0,null,0,0,0,null,0,0,0,0,0,null,null,1.4494831610536845E-2,null,0,null,null,null,null,null,null,null,0,null,null,null,null,null,null,{"$f":"MAX(0,BC964*BC230)","v":0},0,null,{"$f":"MAX(0,BF964*BF230)","v":0},0,null,null,null,null,null,null,null,null,8.435167794754217E-2,0,0,0,28.126601516352835,0,0,0]
[null,"MRT",null,null,null,null,null,null,null,null,null,null,null,null,null,null,null,0,null,0,4.3470000000000009E-5,0,null,null,0,null,0,0,0,null,0,0,0,0,0,null,null,0,null,9.6600000000000006E-4,null,null,null,null,null,null,null,0,null,null,null,null,null,null,{"$f":"MAX(0,BC965*BC231)","v":0},0,null,{"$f":"MAX(0,BF965*BF231)","v":0},0,null,null,null,null,null,null,null,null,6.9794528212595588E-2,0,0,1.5509895158354574,0,0,0,0]
[null,"NAM",null,null,null,null,null,null,null,null,null,null,null,null,null,null,null,0,null,0,4.3470000000000009E-5,0,null,null,0,null,0,0,0,null,0,0,0,0,0,null,null,1.4494831610536845E-2,null,0,null,null,null,null,null,null,null,0,null,null,null,null,null,null,{"$f":"MAX(0,BC966*BC232)","v":0},0,null,{"$f":"MAX(0,BF966*BF232)","v":0},0,null,null,null,null,null,null,null,null,8.4756671930484612E-2,0,0,0,28.261644525003195,0,0,0]
[null,"NOR",null,null,null,null,null,null,null,null,null,null,null,null,null,null,null,0,null,0,4.3470000000000009E-5,0,null,null,0,null,0,0,0,null,0,0,0,0,0,null,null,0,null,9.6600000000000006E-4,null,null,null,null,null,null,null,0,null,null,null,null,null,null,{"$f":"MAX(0,BC967*BC233)","v":0},0,null,{"$f":"MAX(0,BF967*BF233)","v":0},0,null,null,null,null,null,null,null,null,6.4452068780045071E-2,0,0,1.4322681951121123,0,0,0,0]
[null,"PER",null,null,null,null,null,null,null,null,null,null,null,null,null,null,null,0,null,0,4.3470000000000009E-5,0,null,null,0,null,0,0,0,null,0,0,0,0,0,null,null,1.4494831610536845E-2,null,0,null,null,null,null,null,null,null,0,null,null,null,null,null,null,{"$f":"MAX(0,BC968*BC234)","v":0},0,null,{"$f":"MAX(0,BF968*BF234)","v":0},0,null,null,null,null,null,null,null,null,8.6135489297187298E-2,0,0,0,28.721403566918063,0,0,0]
[null,"PRT",null,null,null,null,null,null,null,null,null,null,null,null,null,null,null,0,null,0,4.3470000000000009E-5,0,null,null,0,null,0,0,0,null,0,0,0,0,0,null,null,0,null,9.6600000000000006E-4,null,null,null,null,null,null,null,0,null,null,null,null,null,null,{"$f":"MAX(0,BC969*BC235)","v":0},0,null,{"$f":"MAX(0,BF969*BF235)","v":0},0,null,null,null,null,null,null,null,null,6.6139633296536521E-2,0,0,1.4697696288119224,0,0,0,0]
[null,"RUS",null,null,null,null,null,null,null,null,null,null,null,null,null,null,null,0,null,{"$f":"MAX(0,T970*T236)","v":0},4.3470000000000009E-5,0,null,null,0,null,{"$f":"MAX(0,AA970*AA236)","v":0},0,0,null,{"$f":"MAX(0,AE970*AE236)","v":0},0,0,0,0,null,null,0,null,9.6600000000000006E-4,null,null,null,null,null,null,null,0,null,null,null,null,null,null,{"$f":"MAX(0,BC970*BC236)","v":0},0,null,{"$f":"MAX(0,BF970*BF236)","v":0},0,null,null,null,null,null,null,null,null,{"$f":"SUMIF($K$8:$BJ$8,BP$1,$K1051:$BJ1051)*$BL155*conv_fact_to_mass","v":6.5004939648742127E-2},0,0,1.4445542144164918,0,0,0,0]
[null,"SAU",null,null,null,null,null,null,null,null,null,null,null,null,null,null,null,0,null,0,4.3470000000000009E-5,0,null,null,0,null,0,0,0,null,0,0,0,0,0,null,null,0,null,9.6600000000000006E-4,null,null,null,null,null,null,null,0,null,null,null,null,null,null,{"$f":"MAX(0,BC971*BC237)","v":0},0,null,{"$f":"MAX(0,BF971*BF237)","v":0},0,null,null,null,null,null,null,null,null,6.9157583594849054E-2,0,0,1.5368351909966456,0,0,0,0]
[null,"SWE",null,null,null,null,null,null,null,null,null,null,null,null,null,null,null,0,null,0,4.3470000000000009E-5,0,null,null,0,null,0,0,0,null,0,0,0,0,0,null,null,0,null,9.6600000000000006E-4,null,null,null,null,null,null,null,0,null,null,null,null,null,null,{"$f":"MAX(0,BC972*BC238)","v":0},0,null,{"$f":"MAX(0,BF972*BF238)","v":0},0,null,null,null,null,null,null,null,null,6.5000989755411576E-2,0,0,1.4444664390091457,0,0,0,0]
[null,"THA",null,null,null,null,null,null,null,null,null,null,null,null,null,null,null,0,null,0,4.3470000000000009E-5,0,null,null,0,null,0,0,0,null,0,0,0,0,0,null,null,1.4494831610536845E-2,null,0,null,null,null,null,null,null,null,0,null,null,null,null,null,null,{"$f":"MAX(0,BC973*BC239)","v":0},0,null,{"$f":"MAX(0,BF973*BF239)","v":0},0,null,null,null,null,null,null,null,null,9.1679549306911703E-2,0,0,0,30.570039782231301,0,0,0]
[null,"TUN",null,null,null,null,null,null,null,null,null,null,null,null,null,null,null,{"$f":"MAX(0,R974*R240)","v":0},null,0,4.3470000000000009E-5,0,null,null,{"$f":"MAX(0,Y974*Y240)","v":0},null,0,0,0,null,0,0,0,0,0,null,null,{"$f":"MAX(0,AL974*AL240)","v":0},null,{"$f":"MAX(0,AN974*AN240)","v":9.6600000000000006E-4},null,null,null,null,null,null,null,{"$f":"MAX(0,AV974*AV240)","v":0},null,null,null,null,null,null,{"$f":"MAX(0,BC974*BC240)","v":0},0,null,{"$f":"MAX(0,BF974*BF240)","v":0},0,null,null,null,null,null,null,null,null,6.6121918002654059E-2,0,0,1.4693759556145345,0,0,0,0]
[null,"UKR",null,null,null,null,null,null,null,null,null,null,null,null,null,null,null,0,null,0,4.3470000000000009E-5,0,null,null,0,null,0,0,0,null,0,0,0,0,0,null,null,0,null,9.6600000000000006E-4,null,null,null,null,null,null,null,0,null,null,null,null,null,null,{"$f":"MAX(0,BC975*BC241)","v":0},0,null,{"$f":"MAX(0,BF975*BF241)","v":0},0,null,null,null,null,null,null,null,null,6.5567377654662987E-2,0,0,1.4570528367702884,0,0,0,0]
[null,"URY",null,null,null,null,null,null,null,null,null,null,null,null,null,null,null,0,null,0,4.3470000000000009E-5,0,null,null,0,null,0,0,0,null,0,0,0,0,0,null,null,1.4494831610536845E-2,null,0,null,null,null,null,null,null,null,0,null,null,null,null,null,null,{"$f":"MAX(0,BC976*BC242)","v":0},0,null,{"$f":"MAX(0,BF976*BF242)","v":0},0,null,null,null,null,null,null,null,null,8.6374152146505748E-2,0,0,0,28.800984376960894,0,0,0]
[null,"USA",null,null,null,null,null,null,null,null,null,null,null,null,null,null,null,0,null,0,4.3470000000000009E-5,0,null,null,0,null,0,0,0,null,0,0,0,0,0,null,null,1.4494831610536845E-2,null,0,null,null,null,null,null,null,null,0,null,null,null,null,null,null,{"$f":"MAX(0,BC977*BC243)","v":0},0,null,{"$f":"MAX(0,BF977*BF243)","v":0},0,null,null,null,null,null,null,null,null,8.2717390371821131E-2,0,0,0,27.581657343054722,0,0,0]
[null,"VNM",null,null,null,null,null,null,null,null,null,null,null,null,null,null,null,0,null,0,4.3470000000000009E-5,0,null,null,0,null,0,0,0,null,0,0,0,0,0,null,null,1.4494831610536845E-2,null,0,null,null,null,null,null,null,null,0,null,null,null,null,null,null,{"$f":"MAX(0,BC978*BC244)","v":0},0,null,{"$f":"MAX(0,BF978*BF244)","v":0},0,null,null,null,null,null,null,null,null,9.1873333177988764E-2,0,0,0,30.634655944644457,0,0,0]
[null,"ZAF",null,null,null,null,null,null,null,null,null,null,null,null,null,null,null,0,null,0,4.3470000000000009E-5,0,null,null,0,null,0,0,0,null,0,0,0,0,0,null,null,1.4494831610536845E-2,null,0,null,null,null,null,null,null,null,0,null,null,null,null,null,null,{"$f":"MAX(0,BC979*BC245)","v":0},0,null,{"$f":"MAX(0,BF979*BF245)","v":0},0,null,null,null,null,null,null,null,null,8.5694878213333825E-2,0,0,0,28.57448423252211,0,0,0]
[null,"ZAF-EC",null,null,null,null,null,null,null,null,null,null,null,null,null,null,null,0,null,0,4.3470000000000009E-5,0,null,null,0,null,0,0,0,null,{"$f":"MAX(0,AE980*AE246)","v":0},0,0,0,0,null,null,1.4494831610536845E-2,null,0,null,null,null,null,null,null,null,0,null,null,null,null,null,null,{"$f":"MAX(0,BC980*BC246)","v":0},0,null,{"$f":"MAX(0,BF980*BF246)","v":0},0,null,null,null,null,null,null,null,null,{"$f":"SUMIF($K$8:$BJ$8,BP$1,$K1061:$BJ1061)*$BL165*conv_fact_to_mass","v":8.5694878213333825E-2},0,0,0,28.57448423252211,0,0,0]
[null,"ZAF-FRS",null,null,null,null,null,null,null,null,null,null,null,null,null,null,null,0,null,0,4.3470000000000009E-5,0,null,null,0,null,0,0,0,null,0,0,0,0,0,null,null,1.4494831610536845E-2,null,0,null,null,null,null,null,null,null,0,null,null,null,null,null,null,{"$f":"MAX(0,BC981*BC247)","v":0},0,null,{"$f":"MAX(0,BF981*BF247)","v":0},0,null,null,null,null,null,null,null,null,8.5694878213333825E-2,0,0,0,28.57448423252211,0,0,0]
[null,"ZAF-GAU",null,null,null,null,null,null,null,null,null,null,null,null,null,null,null,0,null,0,4.3470000000000009E-5,0,null,null,0,null,0,0,0,null,0,0,0,0,0,null,null,1.4494831610536845E-2,null,0,null,null,null,null,null,null,null,0,null,null,null,null,null,null,{"$f":"MAX(0,BC982*BC248)","v":0},0,null,{"$f":"MAX(0,BF982*BF248)","v":0},0,null,null,null,null,null,null,null,null,8.5694878213333825E-2,0,0,0,28.57448423252211,0,0,0]
[null,"ZAF-KWA",null,null,null,null,null,null,null,null,null,null,null,null,null,null,null,0,null,0,4.3470000000000009E-5,0,null,null,0,null,0,0,0,null,0,0,0,0,0,null,null,1.4494831610536845E-2,null,0,null,null,null,null,null,null,null,0,null,null,null,null,null,null,{"$f":"MAX(0,BC983*BC249)","v":0},0,null,{"$f":"MAX(0,BF983*BF249)","v":0},0,null,null,null,null,null,null,null,null,8.5694878213333825E-2,0,0,0,28.57448423252211,0,0,0]
[null,"ZAF-LIM",null,null,null,null,null,null,null,null,null,null,null,null,null,null,null,0,null,0,4.3470000000000009E-5,0,null,null,0,null,0,0,0,null,0,0,0,0,0,null,null,1.4494831610536845E-2,null,0,null,null,null,null,null,null,null,0,null,null,null,null,null,null,{"$f":"MAX(0,BC984*BC250)","v":0},0,null,{"$f":"MAX(0,BF984*BF250)","v":0},0,null,null,null,null,null,null,null,null,8.5694878213333825E-2,0,0,0,28.57448423252211,0,0,0]
[null,"ZAF-MPU",null,null,null,null,null,null,null,null,null,null,null,null,null,null,null,0,null,0,4.3470000000000009E-5,0,null,null,0,null,0,0,0,null,0,0,0,0,0,null,null,1.4494831610536845E-2,null,0,null,null,null,null,null,null,null,0,null,null,null,null,null,null,{"$f":"MAX(0,BC985*BC251)","v":0},0,null,{"$f":"MAX(0,BF985*BF251)","v":0},0,null,null,null,null,null,null,null,null,8.5694878213333825E-2,0,0,0,28.57448423252211,0,0,0]
[null,"ZAF-NC",null,null,null,null,null,null,null,null,null,null,null,null,null,null,null,0,null,0,4.3470000000000009E-5,0,null,null,0,null,0,0,0,null,0,0,0,0,0,null,null,1.4494831610536845E-2,null,0,null,null,null,null,null,null,null,0,null,null,null,null,null,null,{"$f":"MAX(0,BC986*BC252)","v":0},0,null,{"$f":"MAX(0,BF986*BF252)","v":0},0,null,null,null,null,null,null,null,null,8.5694878213333825E-2,0,0,0,28.57448423252211,0,0,0]
[null,"ZAF-NW",null,null,null,null,null,null,null,null,null,null,null,null,null,null,null,0,null,0,4.3470000000000009E-5,0,null,null,0,null,0,0,0,null,0,0,0,0,0,null,null,1.4494831610536845E-2,null,0,null,null,null,null,null,null,null,0,null,null,null,null,null,null,{"$f":"MAX(0,BC987*BC253)","v":0},0,null,{"$f":"MAX(0,BF987*BF253)","v":0},0,null,null,null,null,null,null,null,null,8.5694878213333825E-2,0,0,0,28.57448423252211,0,0,0]
[null,"ZAF-WC",null,null,null,null,null,null,null,null,null,null,null,null,null,null,null,0,null,0,4.3470000000000009E-5,0,null,null,0,null,0,0,0,null,0,0,0,0,0,null,null,1.4494831610536845E-2,null,0,null,null,null,null,null,null,null,0,null,null,null,null,null,null,{"$f":"MAX(0,BC988*BC254)","v":0},0,null,{"$f":"MAX(0,BF988*BF254)","v":0},0,null,null,null,null,null,null,null,null,8.5694878213333825E-2,0,0,0,28.57448423252211,0,0,0]
[]
["input EL scaling",null,null,null,null,null,null,null,null,null,null,null,null,null,null,null,null,null,null,null,null,null,null,null,null,null,null,null,null,null,null,null,null,null,null,null,null,null,null,null,null,null,null,null,null,null,null,null,null,null,null,null,null,null,null,null,null,null,null,null,null,null,null,null,null,null,"LC"]
[null,"ARE",null,null,null,null,null,null,null,null,{"$f":"K95","v":1},null,null,null,null,null,{"$f":"K1072+U176+V176","v":1.000621},null,null,null,null,null,null,{"$f":"Q1072+AB176+AF176+AG176","v":1.000621},null,null,null,null,null,null,null,null,null,null,null,null,null,null,null,null,null,{"$f":"X1072+AL176+AN176","v":1.014421},null,null,null,null,null,null,null,null,null,null,null,null,null,null,null,null,null,null,null,null,null,{"$f":"AP1072","v":1.014421},null,null,null,null,{"$f":"(SUM(K583:W583)+SUM(K828:W828)+SUM(K991:W991))/Q95*Q1072*conv_fact_to_mass","v":77.772436318594885},{"$f":"(SUM(K583:K583)+SUM(K828:K828)+SUM(K991:K991))/K95*K1072","v":3.7732115604543683E-2},null,null,null,{"$f":"IF(X95=0,0,(SUM(K583:AJ583)+SUM(K828:AJ828)+SUM(K991:AJ991))/X95*X1072)*conv_fact_to_mass","v":0}]
[null,"ARG",null,null,null,null,null,null,null,null,1,null,null,null,null,null,{"$f":"K1073+U177+V177","v":1.000621},null,null,null,null,null,null,1.000621,null,null,null,null,null,null,null,null,null,null,null,null,null,null,null,null,null,{"$f":"X1073+AL177+AN177","v":1.2076900230076693},null,null,null,null,null,null,null,null,null,null,null,null,null,null,null,null,null,null,null,null,null,{"$f":"AP1073","v":1.2076900230076693},null,null,null,null,76.642937974603456,{"$f":"(SUM(K584:K584)+SUM(K829:K829)+SUM(K992:K992))/K96*K1073","v":3.8737752317462806E-2},null,null,null,0]
[null,"ARG-BA",null,null,null,null,null,null,null,null,1,null,null,null,null,null,1.000621,null,null,null,null,null,null,1.000621,null,null,null,null,null,null,null,null,null,null,null,null,null,null,null,null,null,1.2076900230076693,null,null,null,null,null,null,null,null,null,null,null,null,null,null,null,null,null,null,null,null,null,1.2076900230076693,null,null,null,null,87.863322429240469,4.4338209297895614E-2,null,null,null,0]
[null,"ARG-CAT",null,null,null,null,null,null,null,null,1,null,null,null,null,null,1.000621,null,null,null,null,null,null,1.000621,null,null,null,null,null,null,null,null,null,null,null,null,null,null,null,null,null,1.2076900230076693,null,null,null,null,null,null,null,null,null,null,null,null,null,null,null,null,null,null,null,null,null,1.2076900230076693,null,null,null,null,90.266031709153225,4.5513938318084507E-2,null,null,null,0]
[null,"ARG-CBA",null,null,null,null,null,null,null,null,1,null,null,null,null,null,1.000621,null,null,null,null,null,null,1.000621,null,null,null,null,null,null,null,null,null,null,null,null,null,null,null,null,null,1.2076900230076693,null,null,null,null,null,null,null,null,null,null,null,null,null,null,null,null,null,null,null,null,null,1.2076900230076693,null,null,null,null,90.688987126596999,4.5720674597314409E-2,null,null,null,0]
[null,"ARG-CHA",null,null,null,null,null,null,null,null,1,null,null,null,null,null,1.000621,null,null,null,null,null,null,1.000621,null,null,null,null,null,null,null,null,null,null,null,null,null,null,null,null,null,1.2076900230076693,null,null,null,null,null,null,null,null,null,null,null,null,null,null,null,null,null,null,null,null,null,1.2076900230076693,null,null,null,null,100.24898578752259,5.0374969660757919E-2,null,null,null,0]
[null,"ARG-CHU",null,null,null,null,null,null,null,null,1,null,null,null,null,null,1.000621,null,null,null,null,null,null,1.000621,null,null,null,null,null,null,null,null,null,null,null,null,null,null,null,null,null,1.2076900230076693,null,null,null,null,null,null,null,null,null,null,null,null,null,null,null,null,null,null,null,null,null,1.2076900230076693,null,null,null,null,67.560624054938955,3.4315663435611272E-2,null,null,null,0]
[null,"ARG-COR",null,null,null,null,null,null,null,null,1,null,null,null,null,null,1.000621,null,null,null,null,null,null,1.000621,null,null,null,null,null,null,null,null,null,null,null,null,null,null,null,null,null,1.2076900230076693,null,null,null,null,null,null,null,null,null,null,null,null,null,null,null,null,null,null,null,null,null,1.2076900230076693,null,null,null,null,101.60836387923578,5.1033883173006021E-2,null,null,null,0]
[null,"ARG-CRB",null,null,null,null,null,null,null,null,1,null,null,null,null,null,1.000621,null,null,null,null,null,null,1.000621,null,null,null,null,null,null,null,null,null,null,null,null,null,null,null,null,null,1.2076900230076693,null,null,null,null,null,null,null,null,null,null,null,null,null,null,null,null,null,null,null,null,null,1.2076900230076693,null,null,null,null,107.8263319458402,5.4038540807778881E-2,null,null,null,0]
[null,"ARG-CRU",null,null,null,null,null,null,null,null,1,null,null,null,null,null,1.000621,null,null,null,null,null,null,1.000621,null,null,null,null,null,null,null,null,null,null,null,null,null,null,null,null,null,1.2076900230076693,null,null,null,null,null,null,null,null,null,null,null,null,null,null,null,null,null,null,null,null,null,1.2076900230076693,null,null,null,null,67.787397561234187,3.4428466699706853E-2,null,null,null,0]
[null,"ARG-EST",null,null,null,null,null,null,null,null,1,null,null,null,null,null,1.000621,null,null,null,null,null,null,1.000621,null,null,null,null,null,null,null,null,null,null,null,null,null,null,null,null,null,1.2076900230076693,null,null,null,null,null,null,null,null,null,null,null,null,null,null,null,null,null,null,null,null,null,1.2076900230076693,null,null,null,null,88.964741992357943,4.4877448243744143E-2,null,null,null,0]
[null,"ARG-FOR",null,null,null,null,null,null,null,null,1,null,null,null,null,null,1.000621,null,null,null,null,null,null,1.000621,null,null,null,null,null,null,null,null,null,null,null,null,null,null,null,null,null,1.2076900230076693,null,null,null,null,null,null,null,null,null,null,null,null,null,null,null,null,null,null,null,null,null,1.2076900230076693,null,null,null,null,87.836067482857729,4.4324859755375076E-2,null,null,null,0]
[null,"ARG-FUE",null,null,null,null,null,null,null,null,1,null,null,null,null,null,1.000621,null,null,null,null,null,null,1.000621,null,null,null,null,null,null,null,null,null,null,null,null,null,null,null,null,null,1.2076900230076693,null,null,null,null,null,null,null,null,null,null,null,null,null,null,null,null,null,null,null,null,null,1.2076900230076693,null,null,null,null,100.35418266529909,5.0425986288749933E-2,null,null,null,0]
[null,"ARG-JUJ",null,null,null,null,null,null,null,null,1,null,null,null,null,null,1.000621,null,null,null,null,null,null,1.000621,null,null,null,null,null,null,null,null,null,null,null,null,null,null,null,null,null,1.2076900230076693,null,null,null,null,null,null,null,null,null,null,null,null,null,null,null,null,null,null,null,null,null,1.2076900230076693,null,null,null,null,81.175638911790372,4.1054032954249184E-2,null,null,null,0]
[null,"ARG-LAR",null,null,null,null,null,null,null,null,1,null,null,null,null,null,1.000621,null,null,null,null,null,null,1.000621,null,null,null,null,null,null,null,null,null,null,null,null,null,null,null,null,null,1.2076900230076693,null,null,null,null,null,null,null,null,null,null,null,null,null,null,null,null,null,null,null,null,null,1.2076900230076693,null,null,null,null,86.997848798007155,4.391415867876463E-2,null,null,null,0]
[null,"ARG-MEN",null,null,null,null,null,null,null,null,1,null,null,null,null,null,1.000621,null,null,null,null,null,null,1.000621,null,null,null,null,null,null,null,null,null,null,null,null,null,null,null,null,null,1.2076900230076693,null,null,null,null,null,null,null,null,null,null,null,null,null,null,null,null,null,null,null,null,null,1.2076900230076693,null,null,null,null,93.954864102200546,4.7314670474031879E-2,null,null,null,0]
[null,"ARG-MIS",null,null,null,null,null,null,null,null,1,null,null,null,null,null,1.000621,null,null,null,null,null,null,1.000621,null,null,null,null,null,null,null,null,null,null,null,null,null,null,null,null,null,1.2076900230076693,null,null,null,null,null,null,null,null,null,null,null,null,null,null,null,null,null,null,null,null,null,1.2076900230076693,null,null,null,null,138.1603756555827,6.8538623471942381E-2,null,null,null,0]
[null,"ARG-NEG",null,null,null,null,null,null,null,null,1,null,null,null,null,null,1.000621,null,null,null,null,null,null,1.000621,null,null,null,null,null,null,null,null,null,null,null,null,null,null,null,null,null,1.2076900230076693,null,null,null,null,null,null,null,null,null,null,null,null,null,null,null,null,null,null,null,null,null,1.2076900230076693,null,null,null,null,73.677203547896085,3.7351504227783293E-2,null,null,null,0]
[null,"ARG-NEU",null,null,null,null,null,null,null,null,1,null,null,null,null,null,1.000621,null,null,null,null,null,null,1.000621,null,null,null,null,null,null,null,null,null,null,null,null,null,null,null,null,null,1.2076900230076693,null,null,null,null,null,null,null,null,null,null,null,null,null,null,null,null,null,null,null,null,null,1.2076900230076693,null,null,null,null,84.275904147754076,4.2578631957786064E-2,null,null,null,0]
[null,"ARG-PAM",null,null,null,null,null,null,null,null,1,null,null,null,null,null,1.000621,null,null,null,null,null,null,1.000621,null,null,null,null,null,null,null,null,null,null,null,null,null,null,null,null,null,1.2076900230076693,null,null,null,null,null,null,null,null,null,null,null,null,null,null,null,null,null,null,null,null,null,1.2076900230076693,null,null,null,null,84.437538525940496,4.2658017351253318E-2,null,null,null,0]
[null,"ARG-RIO",null,null,null,null,null,null,null,null,1,null,null,null,null,null,1.000621,null,null,null,null,null,null,1.000621,null,null,null,null,null,null,null,null,null,null,null,null,null,null,null,null,null,1.2076900230076693,null,null,null,null,null,null,null,null,null,null,null,null,null,null,null,null,null,null,null,null,null,1.2076900230076693,null,null,null,null,100.641256397855,5.0565184405644378E-2,null,null,null,0]
[null,"ARG-SAF",null,null,null,null,null,null,null,null,1,null,null,null,null,null,1.000621,null,null,null,null,null,null,1.000621,null,null,null,null,null,null,null,null,null,null,null,null,null,null,null,null,null,1.2076900230076693,null,null,null,null,null,null,null,null,null,null,null,null,null,null,null,null,null,null,null,null,null,1.2076900230076693,null,null,null,null,98.207646446995639,4.9384135543676121E-2,null,null,null,0]
[null,"ARG-SAJ",null,null,null,null,null,null,null,null,1,null,null,null,null,null,1.000621,null,null,null,null,null,null,1.000621,null,null,null,null,null,null,null,null,null,null,null,null,null,null,null,null,null,1.2076900230076693,null,null,null,null,null,null,null,null,null,null,null,null,null,null,null,null,null,null,null,null,null,1.2076900230076693,null,null,null,null,103.67765452026265,5.2035506576481046E-2,null,null,null,0]
[null,"ARG-SAL",null,null,null,null,null,null,null,null,1,null,null,null,null,null,1.000621,null,null,null,null,null,null,1.000621,null,null,null,null,null,null,null,null,null,null,null,null,null,null,null,null,null,1.2076900230076693,null,null,null,null,null,null,null,null,null,null,null,null,null,null,null,null,null,null,null,null,null,1.2076900230076693,null,null,null,null,85.896154386206319,4.3373952427298294E-2,null,null,null,0]
[null,"ARG-SAT",null,null,null,null,null,null,null,null,1,null,null,null,null,null,1.000621,null,null,null,null,null,null,1.000621,null,null,null,null,null,null,null,null,null,null,null,null,null,null,null,null,null,1.2076900230076693,null,null,null,null,null,null,null,null,null,null,null,null,null,null,null,null,null,null,null,null,null,1.2076900230076693,null,null,null,null,91.655369844485861,4.6192773093511851E-2,null,null,null,0]
[null,"ARG-TUC",null,null,null,null,null,null,null,null,1,null,null,null,null,null,1.000621,null,null,null,null,null,null,1.000621,null,null,null,null,null,null,null,null,null,null,null,null,null,null,null,null,null,1.2076900230076693,null,null,null,null,null,null,null,null,null,null,null,null,null,null,null,null,null,null,null,null,null,1.2076900230076693,null,null,null,null,123.42187137464508,6.1506666983577221E-2,null,null,null,0]
[null,"AUS",null,null,null,null,null,null,null,null,1,null,null,null,null,null,1.000621,null,null,null,null,null,null,1.000621,null,null,null,null,null,null,null,null,null,null,null,null,null,null,null,null,null,1.2076900230076693,null,null,null,null,null,null,null,null,null,null,null,null,null,null,null,null,null,null,null,null,null,1.2076900230076693,null,null,null,null,50.898569398388958,2.6731747998806604E-2,null,null,null,0]
[null,"BRA",null,null,null,null,null,null,null,null,1,null,null,null,null,null,1.000621,null,null,null,null,null,null,1.000621,null,null,null,null,null,null,null,null,null,null,null,null,null,null,null,null,null,1.2076900230076693,null,null,null,null,null,null,null,null,null,null,null,null,null,null,null,null,null,null,null,null,null,1.2076900230076693,null,null,null,null,46.751890589752655,2.2063319730734915E-2,null,null,null,0]
[null,"CHL",null,null,null,null,null,null,null,null,1,null,null,null,null,null,1.000621,null,null,null,null,null,null,1.000621,null,null,null,null,null,null,null,null,null,null,null,null,null,null,null,null,null,1.2076900230076693,null,null,null,null,null,null,null,null,null,null,null,null,null,null,null,null,null,null,null,null,null,1.2076900230076693,null,null,null,null,75.952717962920985,3.8006795508784802E-2,null,null,null,0]
[null,"CHN",null,null,null,null,null,null,null,null,1,null,null,null,null,null,1.000621,null,null,null,null,null,null,1.000621,null,null,null,null,null,null,null,null,null,null,null,null,null,null,null,null,null,1.2076900230076693,null,null,null,null,null,null,null,null,null,null,null,null,null,null,null,null,null,null,null,null,null,1.2076900230076693,null,null,null,null,36.294433537789132,1.6082221619358742E-2,null,null,null,0]
[null,"COL",null,null,null,null,null,null,null,null,1,null,null,null,null,null,1.000621,null,null,null,null,null,null,1.000621,null,null,null,null,null,null,null,null,null,null,null,null,null,null,null,null,null,1.2076900230076693,null,null,null,null,null,null,null,null,null,null,null,null,null,null,null,null,null,null,null,null,null,1.2076900230076693,null,null,null,null,43.141145589296869,2.0499544592272847E-2,null,null,null,0]
[null,"CRI",null,null,null,null,null,null,null,null,1,null,null,null,null,null,1.000621,null,null,null,null,null,null,1.000621,null,null,null,null,null,null,null,null,null,null,null,null,null,null,null,null,null,1.2076900230076693,null,null,null,null,null,null,null,null,null,null,null,null,null,null,null,null,null,null,null,null,null,1.2076900230076693,null,null,null,null,96.489018959938065,4.7172379286249518E-2,null,null,null,0]
[null,"DNK",null,null,null,null,null,null,null,null,{"$f":"K127","v":1},null,null,null,null,null,{"$f":"K1104+U208+V208","v":1.000621},null,null,null,null,null,null,{"$f":"Q1104+AB208+AF208+AG208","v":1.000621},null,null,null,null,null,null,null,null,null,null,null,null,null,null,null,null,null,{"$f":"X1104+AL208+AN208","v":1.014421},null,null,null,null,null,null,null,null,null,null,null,null,null,null,null,null,null,null,null,null,null,{"$f":"AP1104","v":1.014421},null,null,null,null,{"$f":"(SUM(K615:W615)+SUM(K860:W860)+SUM(K1023:W1023))/Q127*Q1104*conv_fact_to_mass","v":43.797206815279971},2.1596262976652465E-2,null,null,null,{"$f":"IF(X127=0,0,(SUM(K615:AJ615)+SUM(K860:AJ860)+SUM(K1023:AJ1023))/X127*X1104)*conv_fact_to_mass","v":0}]
[null,"DZA",null,null,null,null,null,null,null,null,1,null,null,null,null,null,1.000621,null,null,null,null,null,null,1.000621,null,null,null,null,null,null,null,null,null,null,null,null,null,null,null,null,null,1.014421,null,null,null,null,null,null,null,null,null,null,null,null,null,null,null,null,null,null,null,null,null,1.014421,null,null,null,null,87.763492471801186,3.9864796190564183E-2,null,null,null,0]
[null,"EGY",null,null,null,null,null,null,null,null,1,null,null,null,null,null,1.000621,null,null,null,null,null,null,1.000621,null,null,null,null,null,null,null,null,null,null,null,null,null,null,null,null,null,1.014421,null,null,null,null,null,null,null,null,null,null,null,null,null,null,null,null,null,null,null,null,null,1.014421,null,null,null,null,72.428136766696724,3.5361863994952794E-2,null,null,null,0]
[null,"ESP",null,null,null,null,null,null,null,null,1,null,null,null,null,null,1.000621,null,null,null,null,null,null,1.000621,null,null,null,null,null,null,null,null,null,null,null,null,null,null,null,null,null,1.014421,null,null,null,null,null,null,null,null,null,null,null,null,null,null,null,null,null,null,null,null,null,1.014421,null,null,null,null,38.528051422771682,1.7987451571664197E-2,null,null,null,0]
[null,"IDN",null,null,null,null,null,null,null,null,1,null,null,null,null,null,1.000621,null,null,null,null,null,null,1.000621,null,null,null,null,null,null,null,null,null,null,null,null,null,null,null,null,null,1.2076900230076693,null,null,null,null,null,null,null,null,null,null,null,null,null,null,null,null,null,null,null,null,null,1.2076900230076693,null,null,null,null,134.22239716895467,7.0663509118595799E-2,null,null,null,0]
[null,"IND",null,null,null,null,null,null,null,null,1,null,null,null,null,null,1.000621,null,null,null,null,null,null,1.000621,null,null,null,null,null,null,null,null,null,null,null,null,null,null,null,null,null,1.2076900230076693,null,null,null,null,null,null,null,null,null,null,null,null,null,null,null,null,null,null,null,null,null,1.2076900230076693,null,null,null,null,38.07872724783266,1.6515688971434159E-2,null,null,null,0]
[null,"JOR",null,null,null,null,null,null,null,null,1,null,null,null,null,null,1.000621,null,null,null,null,null,null,1.000621,null,null,null,null,null,null,null,null,null,null,null,null,null,null,null,null,null,1.014421,null,null,null,null,null,null,null,null,null,null,null,null,null,null,null,null,null,null,null,null,null,1.014421,null,null,null,null,140.83306407881605,7.4695351443620037E-2,null,null,null,0]
[null,"KAZ",null,null,null,null,null,null,null,null,1,null,null,null,null,null,1.000621,null,null,null,null,null,null,1.000621,null,null,null,null,null,null,null,null,null,null,null,null,null,null,null,null,null,1.014421,null,null,null,null,null,null,null,null,null,null,null,null,null,null,null,null,null,null,null,null,null,1.014421,null,null,null,null,49.707783665937882,2.4464635288558099E-2,null,null,null,0]
[null,"KEN",null,null,null,null,null,null,null,null,1,null,null,null,null,null,1.000621,null,null,null,null,null,null,1.000621,null,null,null,null,null,null,null,null,null,null,null,null,null,null,null,null,null,1.2076900230076693,null,null,null,null,null,null,null,null,null,null,null,null,null,null,null,null,null,null,null,null,null,1.2076900230076693,null,null,null,null,99.117035647367018,5.1499424519927672E-2,null,null,null,0]
[null,"MAR",null,null,null,null,null,null,null,null,1,null,null,null,null,null,1.000621,null,null,null,null,null,null,1.000621,null,null,null,null,null,null,null,null,null,null,null,null,null,null,null,null,null,1.2076900230076693,null,null,null,null,null,null,null,null,null,null,null,null,null,null,null,null,null,null,null,null,null,1.2076900230076693,null,null,null,null,62.563789163716841,3.1078384660622238E-2,null,null,null,0]
[null,"MAR-BEN",null,null,null,null,null,null,null,null,1,null,null,null,null,null,1.000621,null,null,null,null,null,null,1.000621,null,null,null,null,null,null,null,null,null,null,null,null,null,null,null,null,null,1.2076900230076693,null,null,null,null,null,null,null,null,null,null,null,null,null,null,null,null,null,null,null,null,null,1.2076900230076693,null,null,null,null,88.228775200315013,4.3932839150841549E-2,null,null,null,0]
[null,"MAR-CAS",null,null,null,null,null,null,null,null,1,null,null,null,null,null,1.000621,null,null,null,null,null,null,1.000621,null,null,null,null,null,null,null,null,null,null,null,null,null,null,null,null,null,1.2076900230076693,null,null,null,null,null,null,null,null,null,null,null,null,null,null,null,null,null,null,null,null,null,1.2076900230076693,null,null,null,null,71.368173600266317,3.5859989498856631E-2,null,null,null,0]
[null,"MAR-DAK",null,null,null,null,null,null,null,null,1,null,null,null,null,null,1.000621,null,null,null,null,null,null,1.000621,null,null,null,null,null,null,null,null,null,null,null,null,null,null,null,null,null,1.2076900230076693,null,null,null,null,null,null,null,null,null,null,null,null,null,null,null,null,null,null,null,null,null,1.2076900230076693,null,null,null,null,45.64805860194987,2.3224451191797432E-2,null,null,null,0]
[null,"MAR-DRA",null,null,null,null,null,null,null,null,1,null,null,null,null,null,1.000621,null,null,null,null,null,null,1.000621,null,null,null,null,null,null,null,null,null,null,null,null,null,null,null,null,null,1.2076900230076693,null,null,null,null,null,null,null,null,null,null,null,null,null,null,null,null,null,null,null,null,null,1.2076900230076693,null,null,null,null,65.796743914250371,3.3155173398106155E-2,null,null,null,0]
[null,"MAR-FES",null,null,null,null,null,null,null,null,1,null,null,null,null,null,1.000621,null,null,null,null,null,null,1.000621,null,null,null,null,null,null,null,null,null,null,null,null,null,null,null,null,null,1.2076900230076693,null,null,null,null,null,null,null,null,null,null,null,null,null,null,null,null,null,null,null,null,null,1.2076900230076693,null,null,null,null,79.717273086522042,3.9878936650925151E-2,null,null,null,0]
[null,"MAR-GUE",null,null,null,null,null,null,null,null,1,null,null,null,null,null,1.000621,null,null,null,null,null,null,1.000621,null,null,null,null,null,null,null,null,null,null,null,null,null,null,null,null,null,1.2076900230076693,null,null,null,null,null,null,null,null,null,null,null,null,null,null,null,null,null,null,null,null,null,1.2076900230076693,null,null,null,null,58.060573799541366,2.9369517492137183E-2,null,null,null,0]
[null,"MAR-LAA",null,null,null,null,null,null,null,null,1,null,null,null,null,null,1.000621,null,null,null,null,null,null,1.000621,null,null,null,null,null,null,null,null,null,null,null,null,null,null,null,null,null,1.2076900230076693,null,null,null,null,null,null,null,null,null,null,null,null,null,null,null,null,null,null,null,null,null,1.2076900230076693,null,null,null,null,49.809212764018575,2.529413599094623E-2,null,null,null,0]
[null,"MAR-LOR",null,null,null,null,null,null,null,null,1,null,null,null,null,null,1.000621,null,null,null,null,null,null,1.000621,null,null,null,null,null,null,null,null,null,null,null,null,null,null,null,null,null,1.2076900230076693,null,null,null,null,null,null,null,null,null,null,null,null,null,null,null,null,null,null,null,null,null,1.2076900230076693,null,null,null,null,60.669767032299376,3.0650163538765623E-2,null,null,null,0]
[null,"MAR-MAR",null,null,null,null,null,null,null,null,1,null,null,null,null,null,1.000621,null,null,null,null,null,null,1.000621,null,null,null,null,null,null,null,null,null,null,null,null,null,null,null,null,null,1.2076900230076693,null,null,null,null,null,null,null,null,null,null,null,null,null,null,null,null,null,null,null,null,null,1.2076900230076693,null,null,null,null,82.496565141322307,4.1207512940411743E-2,null,null,null,0]
[null,"MAR-RAB",null,null,null,null,null,null,null,null,1,null,null,null,null,null,1.000621,null,null,null,null,null,null,1.000621,null,null,null,null,null,null,null,null,null,null,null,null,null,null,null,null,null,1.2076900230076693,null,null,null,null,null,null,null,null,null,null,null,null,null,null,null,null,null,null,null,null,null,1.2076900230076693,null,null,null,null,85.686198170705708,4.2726470137431097E-2,null,null,null,0]
[null,"MAR-SOU",null,null,null,null,null,null,null,null,1,null,null,null,null,null,1.000621,null,null,null,null,null,null,1.000621,null,null,null,null,null,null,null,null,null,null,null,null,null,null,null,null,null,1.2076900230076693,null,null,null,null,null,null,null,null,null,null,null,null,null,null,null,null,null,null,null,null,null,1.2076900230076693,null,null,null,null,65.239035411247926,3.2883418381188696E-2,null,null,null,0]
[null,"MAR-TAN",null,null,null,null,null,null,null,null,1,null,null,null,null,null,1.000621,null,null,null,null,null,null,1.000621,null,null,null,null,null,null,null,null,null,null,null,null,null,null,null,null,null,1.2076900230076693,null,null,null,null,null,null,null,null,null,null,null,null,null,null,null,null,null,null,null,null,null,1.2076900230076693,null,null,null,null,64.878278125373953,3.2707535626711332E-2,null,null,null,0]
[null,"MEX",null,null,null,null,null,null,null,null,1,null,null,null,null,null,1.000621,null,null,null,null,null,null,1.000621,null,null,null,null,null,null,null,null,null,null,null,null,null,null,null,null,null,1.2076900230076693,null,null,null,null,null,null,null,null,null,null,null,null,null,null,null,null,null,null,null,null,null,1.2076900230076693,null,null,null,null,58.212563962499196,2.7690005269550483E-2,null,null,null,0]
[null,"MRT",null,null,null,null,null,null,null,null,1,null,null,null,null,null,1.000621,null,null,null,null,null,null,1.000621,null,null,null,null,null,null,null,null,null,null,null,null,null,null,null,null,null,1.014421,null,null,null,null,null,null,null,null,null,null,null,null,null,null,null,null,null,null,null,null,null,1.014421,null,null,null,null,53.37832812680751,2.7395769880919945E-2,null,null,null,0]
[null,"NAM",null,null,null,null,null,null,null,null,1,null,null,null,null,null,1.000621,null,null,null,null,null,null,1.000621,null,null,null,null,null,null,null,null,null,null,null,null,null,null,null,null,null,1.2076900230076693,null,null,null,null,null,null,null,null,null,null,null,null,null,null,null,null,null,null,null,null,null,1.2076900230076693,null,null,null,null,46.392916775781728,2.3969521775875642E-2,null,null,null,0]
[null,"NOR",null,null,null,null,null,null,null,null,1,null,null,null,null,null,1.000621,null,null,null,null,null,null,1.000621,null,null,null,null,null,null,null,null,null,null,null,null,null,null,null,null,null,1.014421,null,null,null,null,null,null,null,null,null,null,null,null,null,null,null,null,null,null,null,null,null,1.014421,null,null,null,null,44.826072827879166,2.184159098100194E-2,null,null,null,0]
[null,"PER",null,null,null,null,null,null,null,null,1,null,null,null,null,null,1.000621,null,null,null,null,null,null,1.000621,null,null,null,null,null,null,null,null,null,null,null,null,null,null,null,null,null,1.2076900230076693,null,null,null,null,null,null,null,null,null,null,null,null,null,null,null,null,null,null,null,null,null,1.2076900230076693,null,null,null,null,78.450025481496823,3.6613522074850913E-2,null,null,null,0]
[null,"PRT",null,null,null,null,null,null,null,null,1,null,null,null,null,null,1.000621,null,null,null,null,null,null,1.000621,null,null,null,null,null,null,null,null,null,null,null,null,null,null,null,null,null,1.014421,null,null,null,null,null,null,null,null,null,null,null,null,null,null,null,null,null,null,null,null,null,1.014421,null,null,null,null,49.994391600129916,2.5394666084247449E-2,null,null,null,0]
[null,"RUS",null,null,null,null,null,null,null,null,1,null,null,null,null,null,1.000621,null,null,null,null,null,null,1.000621,null,null,null,null,null,null,null,null,null,null,null,null,null,null,null,null,null,1.014421,null,null,null,null,null,null,null,null,null,null,null,null,null,null,null,null,null,null,null,null,null,1.014421,null,null,null,null,86.41579197443636,4.6767167917159354E-2,null,null,null,0]
[null,"SAU",null,null,null,null,null,null,null,null,1,null,null,null,null,null,1.000621,null,null,null,null,null,null,1.000621,null,null,null,null,null,null,null,null,null,null,null,null,null,null,null,null,null,1.014421,null,null,null,null,null,null,null,null,null,null,null,null,null,null,null,null,null,null,null,null,null,1.014421,null,null,null,null,65.104700500669679,3.1074838700953279E-2,null,null,null,0]
[null,"SWE",null,null,null,null,null,null,null,null,1,null,null,null,null,null,1.000621,null,null,null,null,null,null,1.000621,null,null,null,null,null,null,null,null,null,null,null,null,null,null,null,null,null,1.014421,null,null,null,null,null,null,null,null,null,null,null,null,null,null,null,null,null,null,null,null,null,1.014421,null,null,null,null,60.97452579782064,2.9885877479878437E-2,null,null,null,0]
[null,"THA",null,null,null,null,null,null,null,null,1,null,null,null,null,null,1.000621,null,null,null,null,null,null,1.000621,null,null,null,null,null,null,null,null,null,null,null,null,null,null,null,null,null,1.2076900230076693,null,null,null,null,null,null,null,null,null,null,null,null,null,null,null,null,null,null,null,null,null,1.2076900230076693,null,null,null,null,73.252077866697846,3.6060869153646889E-2,null,null,null,0]
[null,"TUN",null,null,null,null,null,null,null,null,{"$f":"K159","v":1},null,null,null,null,null,{"$f":"K1136+U240+V240","v":1.000621},null,null,null,null,null,null,{"$f":"Q1136+AB240+AF240+AG240","v":1.000621},null,null,null,null,null,null,null,null,null,null,null,null,null,null,null,null,null,{"$f":"X1136+AL240+AN240","v":1.014421},null,null,null,null,null,null,null,null,null,null,null,null,null,null,null,null,null,null,null,null,null,1.014421,null,null,null,null,{"$f":"(SUM(K647:W647)+SUM(K892:W892)+SUM(K1055:W1055))/Q159*Q1136*conv_fact_to_mass","v":91.926173285018876},4.5094299331744719E-2,null,null,null,{"$f":"IF(X159=0,0,(SUM(K647:AJ647)+SUM(K892:AJ892)+SUM(K1055:AJ1055))/X159*X1136)*conv_fact_to_mass","v":0}]
[null,"UKR",null,null,null,null,null,null,null,null,1,null,null,null,null,null,1.000621,null,null,null,null,null,null,1.000621,null,null,null,null,null,null,null,null,null,null,null,null,null,null,null,null,null,1.014421,null,null,null,null,null,null,null,null,null,null,null,null,null,null,null,null,null,null,null,null,null,{"$f":"AP1137","v":1.014421},null,null,null,null,70.199989611414438,{"$f":"(SUM(K648:K648)+SUM(K893:K893)+SUM(K1056:K1056))/K160*K1137","v":3.4241032430633596E-2},null,null,null,0]
[null,"URY",null,null,null,null,null,null,null,null,1,null,null,null,null,null,1.000621,null,null,null,null,null,null,1.000621,null,null,null,null,null,null,null,null,null,null,null,null,null,null,null,null,null,1.2076900230076693,null,null,null,null,null,null,null,null,null,null,null,null,null,null,null,null,null,null,null,null,null,1.2076900230076693,null,null,null,null,68.111833537443445,3.6975037398672077E-2,null,null,null,0]
[null,"USA",null,null,null,null,null,null,null,null,1,null,null,null,null,null,1.000621,null,null,null,null,null,null,1.000621,null,null,null,null,null,null,null,null,null,null,null,null,null,null,null,null,null,1.2076900230076693,null,null,null,null,null,null,null,null,null,null,null,null,null,null,null,null,null,null,null,null,null,1.2076900230076693,null,null,null,null,44.409328098453983,2.2242538090163484E-2,null,null,null,0]
[null,"VNM",null,null,null,null,null,null,null,null,1,null,null,null,null,null,1.000621,null,null,null,null,null,null,1.000621,null,null,null,null,null,null,null,null,null,null,null,null,null,null,null,null,null,1.2076900230076693,null,null,null,null,null,null,null,null,null,null,null,null,null,null,null,null,null,null,null,null,null,1.2076900230076693,null,null,null,null,78.082758033852386,4.1503018976586876E-2,null,null,null,0]
[null,"ZAF",null,null,null,null,null,null,null,null,1,null,null,null,null,null,1.000621,null,null,null,null,null,null,1.000621,null,null,null,null,null,null,null,null,null,null,null,null,null,null,null,null,null,1.2076900230076693,null,null,null,null,null,null,null,null,null,null,null,null,null,null,null,null,null,null,null,null,null,1.2076900230076693,null,null,null,null,70.775106253843902,3.3767416125220509E-2,null,null,null,0]
[null,"ZAF-EC",null,null,null,null,null,null,null,null,1,null,null,null,null,null,1.000621,null,null,null,null,null,null,1.000621,null,null,null,null,null,null,null,null,null,null,null,null,null,null,null,null,null,1.2076900230076693,null,null,null,null,null,null,null,null,null,null,null,null,null,null,null,null,null,null,null,null,null,1.2076900230076693,null,null,null,null,55.233013745226536,2.7980927734812051E-2,null,null,null,0]
[null,"ZAF-FRS",null,null,null,null,null,null,null,null,1,null,null,null,null,null,1.000621,null,null,null,null,null,null,1.000621,null,null,null,null,null,null,null,null,null,null,null,null,null,null,null,null,null,1.2076900230076693,null,null,null,null,null,null,null,null,null,null,null,null,null,null,null,null,null,null,null,null,null,1.2076900230076693,null,null,null,null,66.366769131728617,3.343817689625414E-2,null,null,null,0]
[null,"ZAF-GAU",null,null,null,null,null,null,null,null,1,null,null,null,null,null,1.000621,null,null,null,null,null,null,1.000621,null,null,null,null,null,null,null,null,null,null,null,null,null,null,null,null,null,1.2076900230076693,null,null,null,null,null,null,null,null,null,null,null,null,null,null,null,null,null,null,null,null,null,1.2076900230076693,null,null,null,null,78.673921857972317,3.9386881150594868E-2,null,null,null,0]
[null,"ZAF-KWA",null,null,null,null,null,null,null,null,1,null,null,null,null,null,1.000621,null,null,null,null,null,null,1.000621,null,null,null,null,null,null,null,null,null,null,null,null,null,null,null,null,null,1.2076900230076693,null,null,null,null,null,null,null,null,null,null,null,null,null,null,null,null,null,null,null,null,null,1.2076900230076693,null,null,null,null,68.89961636714186,3.4669700897128279E-2,null,null,null,0]
[null,"ZAF-LIM",null,null,null,null,null,null,null,null,1,null,null,null,null,null,1.000621,null,null,null,null,null,null,1.000621,null,null,null,null,null,null,null,null,null,null,null,null,null,null,null,null,null,1.2076900230076693,null,null,null,null,null,null,null,null,null,null,null,null,null,null,null,null,null,null,null,null,null,1.2076900230076693,null,null,null,null,69.491029927665977,3.4956720671110136E-2,null,null,null,0]
[null,"ZAF-MPU",null,null,null,null,null,null,null,null,1,null,null,null,null,null,1.000621,null,null,null,null,null,null,1.000621,null,null,null,null,null,null,null,null,null,null,null,null,null,null,null,null,null,1.2076900230076693,null,null,null,null,null,null,null,null,null,null,null,null,null,null,null,null,null,null,null,null,null,1.2076900230076693,null,null,null,null,69.491029927665977,3.4956720671110136E-2,null,null,null,0]
[null,"ZAF-NC",null,null,null,null,null,null,null,null,1,null,null,null,null,null,1.000621,null,null,null,null,null,null,1.000621,null,null,null,null,null,null,null,null,null,null,null,null,null,null,null,null,null,1.2076900230076693,null,null,null,null,null,null,null,null,null,null,null,null,null,null,null,null,null,null,null,null,null,1.2076900230076693,null,null,null,null,55.646287398821727,2.8184755796970679E-2,null,null,null,0]
[null,"ZAF-NW",null,null,null,null,null,null,null,null,1,null,null,null,null,null,1.000621,null,null,null,null,null,null,1.000621,null,null,null,null,null,null,null,null,null,null,null,null,null,null,null,null,null,1.2076900230076693,null,null,null,null,null,null,null,null,null,null,null,null,null,null,null,null,null,null,null,null,null,1.2076900230076693,null,null,null,null,65.818635442809935,3.3171172429768941E-2,null,null,null,0]
[null,"ZAF-WC",null,null,null,null,null,null,null,null,1,null,null,null,null,null,1.000621,null,null,null,null,null,null,1.000621,null,null,null,null,null,null,null,null,null,null,null,null,null,null,null,null,null,1.2076900230076693,null,null,null,null,null,null,null,null,null,null,null,null,null,null,null,null,null,null,null,null,null,1.2076900230076693,null,null,null,null,61.67142412704807,3.1145382379306068E-2,null,null,null,0]

{"sheet":"_pivot_output","index":11,"n_rows":15,"n_cols":5,"rows_kept":15,"cut":false,"hidden":true,"merged":[]}
[]
[]
["Sum of value","Spaltenbeschriftungen"]
["Zeilenbeschriftungen","COST-CAPEX","COST-FLOW","COST-OPEX","Gesamtergebnis"]
["MAR",104.6990393979724,26.1804395964684,40.823855744428798,171.70333473886961]
["Carbon",0,0,0,0]
["Electrolysis",17.930560176211269,0,3.592247205369222,21.522807381580492]
["Transportation (Pipeline)",0,0,0,0]
["Transportation (Ship)",40.055643960437493,26.102159220964726,24.872112957382136,91.029916138784358]
["Water",8.8072337551971872E-2,7.8280375503673241E-2,3.5289205170639167E-2,0.20164191822628427]
["Electricity generation2",46.624762923771669,0,9.340905842759426,55.965668766531095]
["Heat",0,0,0,0]
["Derivate production",0,0,0,0]
["Electricity and H2 storage",0,0,2.9833005337473737,2.9833005337473737]
["Gesamtergebnis",104.6990393979724,26.1804395964684,40.823855744428798,171.70333473886961]

{"sheet":"_colors","index":12,"n_rows":257,"n_cols":4,"rows_kept":257,"cut":false,"hidden":true,"merged":[]}
["idx","r","g","b"]
[0,60,194,204]
[1,61.058823529411768,193.77254901960779,204.05490196078429]
[2,62.117647058823529,193.5450980392157,204.10980392156861]
[3,63.17647058823529,193.3176470588235,204.16470588235299]
[4,64.235294117647058,193.09019607843129,204.21960784313731]
[5,65.294117647058812,192.8627450980392,204.2745098039216]
[6,66.35294117647058,192.63529411764699,204.3294117647059]
[7,67.411764705882348,192.4078431372549,204.38431372549019]
[8,68.470588235294116,192.18039215686269,204.43921568627451]
[9,69.52941176470587,191.9529411764706,204.4941176470588]
[10,70.588235294117638,191.7254901960784,204.54901960784309]
[11,71.647058823529406,191.49803921568619,204.6039215686275]
[12,72.705882352941174,191.2705882352941,204.65882352941179]
[13,73.764705882352942,191.04313725490189,204.71372549019611]
[14,74.82352941176471,190.8156862745098,204.7686274509804]
[15,75.882352941176478,190.58823529411771,204.8235294117647]
[16,76.941176470588232,190.3607843137255,204.87843137254899]
[17,77.999999999999986,190.1333333333333,204.93333333333331]
[18,79.058823529411754,189.90588235294121,204.98823529411769]
[19,80.117647058823522,189.678431372549,205.04313725490189]
[20,81.17647058823529,189.45098039215691,205.0980392156863]
[21,82.235294117647044,189.2235294117647,205.15294117647059]
[22,83.294117647058826,188.99607843137261,205.20784313725491]
[23,84.35294117647058,188.7686274509804,205.2627450980392]
[24,85.411764705882348,188.5411764705882,205.3176470588235]
[25,86.470588235294116,188.31372549019611,205.3725490196079]
[26,87.529411764705884,188.0862745098039,205.42745098039219]
[27,88.588235294117652,187.85882352941181,205.48235294117649]
[28,89.647058823529392,187.6313725490196,205.53725490196081]
[29,90.70588235294116,187.40392156862751,205.5921568627451]
[30,91.764705882352928,187.1764705882353,205.64705882352939]
[31,92.823529411764696,186.94901960784321,205.70196078431371]
[32,93.882352941176464,186.72156862745101,205.756862745098]
[33,94.941176470588218,186.4941176470588,205.81176470588241]
[34,96,186.26666666666671,205.8666666666667]
[35,97.058823529411754,186.0392156862745,205.92156862745099]
[36,98.117647058823522,185.81176470588241,205.97647058823529]
[37,99.17647058823529,185.5843137254902,206.03137254901961]
[38,100.2352941176471,185.35686274509811,206.0862745098039]
[39,101.2941176470588,185.12941176470591,206.14117647058819]
[40,102.35294117647059,184.9019607843137,206.1960784313726]
[41,103.41176470588231,184.67450980392161,206.25098039215689]
[42,104.4705882352941,184.4470588235294,206.30588235294121]
[43,105.5294117647059,184.21960784313731,206.3607843137255]
[44,106.5882352941176,183.99215686274511,206.4156862745098]
[45,107.64705882352941,183.76470588235301,206.47058823529409]
[46,108.7058823529412,183.53725490196081,206.52549019607841]
[47,109.7647058823529,183.3098039215686,206.5803921568627]
[48,110.8235294117647,183.08235294117651,206.63529411764699]
[49,111.88235294117651,182.8549019607843,206.6901960784314]
[50,112.9411764705882,182.62745098039221,206.74509803921569]
[51,114,182.4,206.8]
[52,115.0588235294117,182.17254901960791,206.8549019607843]
[53,116.11764705882349,181.94509803921571,206.9098039215686]
[54,117.1764705882353,181.7176470588235,206.96470588235289]
[55,118.2352941176471,181.49019607843141,207.01960784313729]
[56,119.2941176470588,181.2627450980392,207.07450980392159]
[57,120.35294117647059,181.03529411764711,207.12941176470591]
[58,121.41176470588231,180.80784313725491,207.1843137254902]
[59,122.4705882352941,180.5803921568627,207.23921568627449]
[60,123.5294117647059,180.35294117647061,207.29411764705881]
[61,124.5882352941176,180.1254901960784,207.3490196078431]
[62,125.64705882352941,179.89803921568631,207.40392156862751]
[63,126.7058823529412,179.6705882352941,207.4588235294118]
[64,127.7647058823529,179.44313725490201,207.51372549019609]
[65,128.8235294117647,179.21568627450981,207.56862745098039]
[66,129.88235294117649,178.9882352941176,207.62352941176471]
[67,130.9411764705882,178.76078431372551,207.678431372549]
[68,132,178.5333333333333,207.73333333333329]
[69,133.0588235294118,178.30588235294121,207.78823529411761]
[70,134.11764705882351,178.07843137254901,207.84313725490199]
[71,135.1764705882353,177.85098039215691,207.89803921568631]
[72,136.23529411764699,177.62352941176471,207.9529411764706]
[73,137.29411764705881,177.3960784313725,208.00784313725489]
[74,138.35294117647061,177.16862745098041,208.06274509803919]
[75,139.41176470588229,176.9411764705882,208.11764705882351]
[76,140.47058823529409,176.71372549019611,208.1725490196078]
[77,141.52941176470591,176.48627450980391,208.22745098039209]
[78,142.5882352941176,176.25882352941181,208.2823529411765]
[79,143.64705882352939,176.03137254901961,208.33725490196079]
[80,144.70588235294119,175.8039215686274,208.39215686274511]
[81,145.7647058823529,175.57647058823531,208.4470588235294]
[82,146.8235294117647,175.3490196078431,208.5019607843137]
[83,147.88235294117649,175.12156862745101,208.55686274509799]
[84,148.9411764705882,174.89411764705881,208.61176470588231]
[85,150,174.66666666666671,208.66666666666671]
[86,151.0588235294118,174.43921568627451,208.72156862745101]
[87,152.11764705882351,174.21176470588239,208.7764705882353]
[88,153.1764705882353,173.98431372549021,208.83137254901959]
[89,154.23529411764699,173.756862745098,208.88627450980391]
[90,155.29411764705881,173.52941176470591,208.9411764705882]
[91,156.35294117647061,173.30196078431371,208.9960784313725]
[92,157.41176470588229,173.07450980392159,209.0509803921569]
[93,158.47058823529409,172.84705882352941,209.10588235294119]
[94,159.52941176470591,172.61960784313729,209.16078431372549]
[95,160.5882352941176,172.39215686274511,209.21568627450981]
[96,161.64705882352939,172.16470588235291,209.2705882352941]
[97,162.70588235294119,171.93725490196081,209.32549019607839]
[98,163.7647058823529,171.70980392156861,209.38039215686271]
[99,164.8235294117647,171.48235294117649,209.43529411764709]
[100,165.88235294117649,171.25490196078431,209.49019607843141]
[101,166.9411764705882,171.02745098039219,209.5450980392157]
[102,168,170.8,209.6]
[103,169.05882352941171,170.57254901960789,209.65490196078429]
[104,170.11764705882351,170.34509803921571,209.70980392156861]
[105,171.17647058823519,170.11764705882351,209.7647058823529]
[106,172.23529411764699,169.89019607843139,209.81960784313719]
[107,173.29411764705881,169.66274509803921,209.8745098039216]
[108,174.35294117647061,169.43529411764709,209.92941176470589]
[109,175.41176470588229,169.20784313725491,209.98431372549021]
[110,176.47058823529409,168.98039215686279,210.0392156862745]
[111,177.52941176470591,168.75294117647061,210.09411764705879]
[112,178.5882352941176,168.52549019607841,210.14901960784309]
[113,179.64705882352939,168.29803921568629,210.20392156862741]
[114,180.7058823529411,168.07058823529411,210.25882352941181]
[115,181.7647058823529,167.84313725490199,210.31372549019599]
[116,182.8235294117647,167.61568627450981,210.3686274509804]
[117,183.88235294117649,167.38823529411769,210.42352941176469]
[118,184.9411764705882,167.16078431372549,210.47843137254901]
[119,186,166.93333333333331,210.5333333333333]
[120,187.05882352941171,166.70588235294119,210.5882352941176]
[121,188.11764705882351,166.47843137254901,210.64313725490189]
[122,189.17647058823519,166.25098039215689,210.69803921568629]
[123,190.23529411764699,166.02352941176471,210.75294117647061]
[124,191.29411764705881,165.79607843137259,210.80784313725491]
[125,192.35294117647049,165.56862745098039,210.8627450980392]
[126,193.41176470588229,165.34117647058821,210.91764705882349]
[127,194.47058823529409,165.11372549019609,210.97254901960781]
[128,195.05098039215679,164.78431372549019,210.80784313725491]
[129,195.15294117647059,164.35294117647061,210.42352941176469]
[130,195.25490196078431,163.92156862745099,210.0392156862745]
[131,195.356862745098,163.49019607843141,209.65490196078429]
[132,195.45882352941169,163.0588235294118,209.2705882352941]
[133,195.56078431372549,162.62745098039221,208.88627450980391]
[134,195.66274509803921,162.19607843137251,208.5019607843137]
[135,195.7647058823529,161.7647058823529,208.11764705882351]
[136,195.8666666666667,161.33333333333329,207.73333333333329]
[137,195.96862745098039,160.9019607843137,207.3490196078431]
[138,196.07058823529411,160.47058823529409,206.96470588235289]
[139,196.1725490196078,160.0392156862745,206.5803921568627]
[140,196.27450980392149,159.60784313725489,206.19607843137251]
[141,196.37647058823529,159.1764705882353,205.8117647058823]
[142,196.47843137254901,158.74509803921569,205.42745098039211]
[143,196.5803921568627,158.31372549019611,205.04313725490189]
[144,196.68235294117639,157.88235294117649,204.65882352941179]
[145,196.78431372549019,157.45098039215691,204.27450980392149]
[146,196.88627450980391,157.01960784313729,203.89019607843139]
[147,196.9882352941176,156.58823529411771,203.5058823529412]
[148,197.0901960784314,156.15686274509801,203.12156862745101]
[149,197.19215686274509,155.7254901960784,202.7372549019608]
[150,197.29411764705881,155.29411764705881,202.35294117647061]
[151,197.3960784313725,154.8627450980392,201.96862745098039]
[152,197.4980392156863,154.43137254901961,201.5843137254902]
[153,197.6,154,201.2]
[154,197.70196078431371,153.56862745098039,200.8156862745098]
[155,197.80392156862749,153.1372549019608,200.43137254901961]
[156,197.90588235294109,152.70588235294119,200.0470588235294]
[157,198.00784313725489,152.2745098039216,199.66274509803921]
[158,198.10980392156861,151.84313725490199,199.27843137254899]
[159,198.2117647058823,151.41176470588229,198.89411764705881]
[160,198.31372549019611,150.98039215686279,198.50980392156859]
[161,198.4156862745098,150.54901960784309,198.1254901960784]
[162,198.51764705882351,150.11764705882351,197.74117647058819]
[163,198.61960784313729,149.68627450980389,197.356862745098]
[164,198.72156862745101,149.25490196078431,196.97254901960781]
[165,198.8235294117647,148.8235294117647,196.5882352941176]
[166,198.92549019607841,148.39215686274511,196.20392156862741]
[167,199.02745098039219,147.9607843137255,195.81960784313719]
[168,199.12941176470579,147.52941176470591,195.43529411764709]
[169,199.2313725490196,147.0980392156863,195.05098039215679]
[170,199.33333333333329,146.66666666666671,194.66666666666671]
[171,199.435294117647,146.2352941176471,194.28235294117641]
[172,199.53725490196081,145.80392156862749,193.89803921568631]
[173,199.6392156862745,145.37254901960779,193.51372549019609]
[174,199.74117647058819,144.9411764705882,193.12941176470591]
[175,199.84313725490199,144.50980392156859,192.74509803921569]
[176,199.94509803921571,144.07843137254901,192.3607843137255]
[177,200.0470588235294,143.64705882352939,191.97647058823529]
[178,200.14901960784309,143.21568627450981,191.5921568627451]
[179,200.25098039215689,142.78431372549019,191.20784313725491]
[180,200.35294117647061,142.35294117647061,190.8235294117647]
[181,200.4549019607843,141.92156862745099,190.43921568627451]
[182,200.55686274509799,141.49019607843141,190.05490196078429]
[183,200.65882352941171,141.0588235294118,189.6705882352941]
[184,200.76078431372551,140.62745098039221,189.28627450980389]
[185,200.8627450980392,140.1960784313726,188.9019607843137]
[186,200.96470588235289,139.76470588235301,188.51764705882351]
[187,201.06666666666669,139.33333333333329,188.1333333333333]
[188,201.16862745098041,138.9019607843137,187.74901960784311]
[189,201.2705882352941,138.47058823529409,187.36470588235289]
[190,201.37254901960779,138.0392156862745,186.98039215686271]
[191,201.47450980392159,137.60784313725489,186.59607843137249]
[192,201.57647058823531,137.1764705882353,186.21176470588239]
[193,201.678431372549,136.74509803921569,185.82745098039209]
[194,201.78039215686269,136.31372549019611,185.44313725490201]
[195,201.88235294117641,135.88235294117649,185.05882352941171]
[196,201.98431372549021,135.45098039215691,184.67450980392161]
[197,202.0862745098039,135.01960784313729,184.29019607843131]
[198,202.18823529411759,134.58823529411771,183.90588235294109]
[199,202.29019607843139,134.15686274509801,183.52156862745099]
[200,202.39215686274511,133.7254901960784,183.1372549019608]
[201,202.4941176470588,133.29411764705881,182.75294117647061]
[202,202.59607843137249,132.8627450980392,182.3686274509804]
[203,202.69803921568629,132.43137254901961,181.98431372549021]
[204,202.8,132,181.6]
[205,202.9019607843137,131.56862745098039,181.21568627450981]
[206,203.00392156862739,131.1372549019608,180.83137254901959]
[207,203.10588235294119,130.70588235294119,180.4470588235294]
[208,203.20784313725491,130.2745098039216,180.06274509803919]
[209,203.3098039215686,129.84313725490199,179.678431372549]
[210,203.41176470588229,129.4117647058824,179.29411764705881]
[211,203.51372549019609,128.98039215686279,178.9098039215686]
[212,203.61568627450981,128.54901960784309,178.52549019607841]
[213,203.7176470588235,128.11764705882351,178.14117647058819]
[214,203.81960784313719,127.68627450980389,177.756862745098]
[215,203.92156862745099,127.2549019607843,177.37254901960779]
[216,204.02352941176471,126.8235294117647,176.98823529411769]
[217,204.1254901960784,126.3921568627451,176.60392156862741]
[218,204.22745098039209,125.9607843137255,176.21960784313731]
[219,204.3294117647059,125.5294117647059,175.83529411764701]
[220,204.43137254901961,125.0980392156863,175.45098039215691]
[221,204.5333333333333,124.6666666666667,175.06666666666661]
[222,204.63529411764711,124.2352941176471,174.68235294117639]
[223,204.7372549019608,123.8039215686275,174.29803921568629]
[224,204.83921568627451,123.3725490196078,173.9137254901961]
[225,204.9411764705882,122.9411764705882,173.52941176470591]
[226,205.04313725490189,122.5098039215686,173.1450980392157]
[227,205.1450980392157,122.07843137254901,172.76078431372551]
[228,205.24705882352939,121.64705882352941,172.37647058823529]
[229,205.3490196078431,121.21568627450981,171.99215686274511]
[230,205.45098039215691,120.78431372549019,171.60784313725489]
[231,205.5529411764706,120.35294117647059,171.2235294117647]
[232,205.65490196078429,119.92156862745099,170.83921568627451]
[233,205.756862745098,119.4901960784314,170.4549019607843]
[234,205.85882352941181,119.0588235294118,170.07058823529411]
[235,205.9607843137255,118.6274509803922,169.68627450980389]
[236,206.06274509803919,118.1960784313726,169.30196078431371]
[237,206.16470588235291,117.764705882353,168.91764705882349]
[238,206.26666666666671,117.3333333333333,168.5333333333333]
[239,206.3686274509804,116.9019607843137,168.14901960784309]
[240,206.47058823529409,116.4705882352941,167.76470588235301]
[241,206.57254901960781,116.0392156862745,167.38039215686271]
[242,206.67450980392161,115.6078431372549,166.99607843137261]
[243,206.7764705882353,115.1764705882353,166.61176470588231]
[244,206.87843137254899,114.7450980392157,166.22745098039209]
[245,206.98039215686271,114.31372549019611,165.8431372549019]
[246,207.08235294117651,113.88235294117651,165.45882352941169]
[247,207.1843137254902,113.45098039215689,165.07450980392159]
[248,207.28627450980389,113.01960784313729,164.6901960784314]
[249,207.38823529411761,112.58823529411769,164.30588235294121]
[250,207.49019607843141,112.156862745098,163.92156862745099]
[251,207.5921568627451,111.7254901960784,163.53725490196081]
[252,207.69411764705879,111.2941176470588,163.15294117647059]
[253,207.79607843137259,110.8627450980392,162.7686274509804]
[254,207.89803921568631,110.4313725490196,162.38431372549019]
[255,208,110,162]

{"sheet":"_map","index":13,"n_rows":40,"n_cols":13,"rows_kept":40,"cut":false,"hidden":true,"merged":[]}
["country_code","value","value_0_1","shape_count",null,null,null,null,null,"country_code","shape_count","value","value_0_1"]
[{"$f":"b_CompareCosts!B22","v":"ARE"},{"$f":"IFERROR(b_CompareCosts!D22,EMPTY)","v":144.33274634051406},{"$f":"(B2-mapMinValue)*$G$4","v":0.28382871660507702},{"$f":"VLOOKUP(A2,compCostCountries[],2,FALSE)","v":1},null,"minValue",{"$f":"MIN(compCostCountries[value])","v":52.148140773712043},null,null,"ARE",1,{"$f":"IFERROR(VLOOKUP(compCostCountries[[#This Row],[country_code]],b_CompareCosts!$B$21:$D$55,3,FALSE),\"\")","v":144.33274634051406},{"$f":"IF(compCostCountries[[#This Row],[value]]=\"\",\"\",(compCostCountries[[#This Row],[value]]-mapMinValue)*$G$4)","v":0.28382871660507702}]
[{"$f":"b_CompareCosts!B23","v":"ARG"},{"$f":"IFERROR(b_CompareCosts!D23,EMPTY)","v":238.30347865563257},0.57315676858780884,{"$f":"VLOOKUP(A3,compCostCountries[],2,FALSE)","v":3},null,"maxValue",{"$f":"MAX(compCostCountries[value])","v":376.93770635903257},null,null,"ARG",3,{"$f":"IFERROR(VLOOKUP(compCostCountries[[#This Row],[country_code]],b_CompareCosts!$B$21:$D$55,3,FALSE),\"\")","v":238.30347865563257},{"$f":"IF(compCostCountries[[#This Row],[value]]=\"\",\"\",(compCostCountries[[#This Row],[value]]-mapMinValue)*$G$4)","v":0.57315676858780884}]
[{"$f":"b_CompareCosts!B24","v":"AUS"},{"$f":"IFERROR(b_CompareCosts!D24,EMPTY)","v":200.46831134163068},0.45666544213211707,{"$f":"VLOOKUP(A4,compCostCountries[],2,FALSE)","v":12},null,"fact",{"$f":"IFERROR(1/(mapMaxValue-mapMinValue),0)","v":3.078916646222445E-3},null,null,"AUS",12,{"$f":"IFERROR(VLOOKUP(compCostCountries[[#This Row],[country_code]],b_CompareCosts!$B$21:$D$55,3,FALSE),\"\")","v":200.46831134163068},{"$f":"IF(compCostCountries[[#This Row],[value]]=\"\",\"\",(compCostCountries[[#This Row],[value]]-mapMinValue)*$G$4)","v":0.45666544213211707}]
[{"$f":"b_CompareCosts!B25","v":"BRA"},{"$f":"IFERROR(b_CompareCosts!D25,EMPTY)","v":166.16666405960947},0.35105352932265105,{"$f":"VLOOKUP(A5,compCostCountries[],2,FALSE)","v":8},null,null,null,null,null,"BRA",8,{"$f":"IFERROR(VLOOKUP(compCostCountries[[#This Row],[country_code]],b_CompareCosts!$B$21:$D$55,3,FALSE),\"\")","v":166.16666405960947},{"$f":"IF(compCostCountries[[#This Row],[value]]=\"\",\"\",(compCostCountries[[#This Row],[value]]-mapMinValue)*$G$4)","v":0.35105352932265105}]
[{"$f":"b_CompareCosts!B26","v":"CHL"},{"$f":"IFERROR(b_CompareCosts!D26,EMPTY)","v":233.60626082640309},0.55869442642246125,{"$f":"VLOOKUP(A6,compCostCountries[],2,FALSE)","v":19},null,null,null,null,null,"CHL",19,{"$f":"IFERROR(VLOOKUP(compCostCountries[[#This Row],[country_code]],b_CompareCosts!$B$21:$D$55,3,FALSE),\"\")","v":233.60626082640309},{"$f":"IF(compCostCountries[[#This Row],[value]]=\"\",\"\",(compCostCountries[[#This Row],[value]]-mapMinValue)*$G$4)","v":0.55869442642246125}]
[{"$f":"b_CompareCosts!B27","v":"CHN"},{"$f":"IFERROR(b_CompareCosts!D27,EMPTY)","v":178.31701862549164},0.38846345825305056,{"$f":"VLOOKUP(A7,compCostCountries[],2,FALSE)","v":3},null,null,null,null,null,"CHN",3,{"$f":"IFERROR(VLOOKUP(compCostCountries[[#This Row],[country_code]],b_CompareCosts!$B$21:$D$55,3,FALSE),\"\")","v":178.31701862549164},{"$f":"IF(compCostCountries[[#This Row],[value]]=\"\",\"\",(compCostCountries[[#This Row],[value]]-mapMinValue)*$G$4)","v":0.38846345825305056}]
[{"$f":"b_CompareCosts!B28","v":"COL"},{"$f":"IFERROR(b_CompareCosts!D28,EMPTY)","v":154.18230524969414},0.31415468748850012,{"$f":"VLOOKUP(A8,compCostCountries[],2,FALSE)","v":1},null,null,null,null,null,"COL",1,{"$f":"IFERROR(VLOOKUP(compCostCountries[[#This Row],[country_code]],b_CompareCosts!$B$21:$D$55,3,FALSE),\"\")","v":154.18230524969414},{"$f":"IF(compCostCountries[[#This Row],[value]]=\"\",\"\",(compCostCountries[[#This Row],[value]]-mapMinValue)*$G$4)","v":0.31415468748850012}]
[{"$f":"b_CompareCosts!B29","v":"CRI"},{"$f":"IFERROR(b_CompareCosts!D29,EMPTY)","v":268.57222429454384},0.66635171339572574,{"$f":"VLOOKUP(A9,compCostCountries[],2,FALSE)","v":1},null,null,null,null,null,"CRI",1,{"$f":"IFERROR(VLOOKUP(compCostCountries[[#This Row],[country_code]],b_CompareCosts!$B$21:$D$55,3,FALSE),\"\")","v":268.57222429454384},{"$f":"IF(compCostCountries[[#This Row],[value]]=\"\",\"\",(compCostCountries[[#This Row],[value]]-mapMinValue)*$G$4)","v":0.66635171339572574}]
[{"$f":"b_CompareCosts!B30","v":"DNK"},{"$f":"IFERROR(b_CompareCosts!D30,EMPTY)","v":52.148140773712043},0,{"$f":"VLOOKUP(A10,compCostCountries[],2,FALSE)","v":5},null,null,null,null,null,"DEU",3,{"$f":"IFERROR(VLOOKUP(compCostCountries[[#This Row],[country_code]],b_CompareCosts!$B$21:$D$55,3,FALSE),\"\")","v":""},{"$f":"IF(compCostCountries[[#This Row],[value]]=\"\",\"\",(compCostCountries[[#This Row],[value]]-mapMinValue)*$G$4)","v":""}]
[{"$f":"b_CompareCosts!B31","v":"DZA"},{"$f":"IFERROR(b_CompareCosts!D31,EMPTY)","v":131.44531888208436},0.24414940167633359,{"$f":"VLOOKUP(A11,compCostCountries[],2,FALSE)","v":1},null,null,null,null,null,"DNK",5,{"$f":"IFERROR(VLOOKUP(compCostCountries[[#This Row],[country_code]],b_CompareCosts!$B$21:$D$55,3,FALSE),\"\")","v":52.148140773712043},{"$f":"IF(compCostCountries[[#This Row],[value]]=\"\",\"\",(compCostCountries[[#This Row],[value]]-mapMinValue)*$G$4)","v":0}]
[{"$f":"b_CompareCosts!B32","v":"EGY"},{"$f":"IFERROR(b_CompareCosts!D32,EMPTY)","v":133.87713038818268},0.25163674660293495,{"$f":"VLOOKUP(A12,compCostCountries[],2,FALSE)","v":1},null,null,null,null,null,"DZA",1,{"$f":"IFERROR(VLOOKUP(compCostCountries[[#This Row],[country_code]],b_CompareCosts!$B$21:$D$55,3,FALSE),\"\")","v":131.44531888208436},{"$f":"IF(compCostCountries[[#This Row],[value]]=\"\",\"\",(compCostCountries[[#This Row],[value]]-mapMinValue)*$G$4)","v":0.24414940167633359}]
[{"$f":"b_CompareCosts!B33","v":"ESP"},{"$f":"IFERROR(b_CompareCosts!D33,EMPTY)","v":59.513601301352438},2.2677639025646363E-2,{"$f":"VLOOKUP(A13,compCostCountries[],2,FALSE)","v":9},null,null,null,null,null,"EGY",1,{"$f":"IFERROR(VLOOKUP(compCostCountries[[#This Row],[country_code]],b_CompareCosts!$B$21:$D$55,3,FALSE),\"\")","v":133.87713038818268},{"$f":"IF(compCostCountries[[#This Row],[value]]=\"\",\"\",(compCostCountries[[#This Row],[value]]-mapMinValue)*$G$4)","v":0.25163674660293495}]
[{"$f":"b_CompareCosts!B34","v":"IDN"},{"$f":"IFERROR(b_CompareCosts!D34,EMPTY)","v":376.93770635903257},0.99999999999999989,{"$f":"VLOOKUP(A14,compCostCountries[],2,FALSE)","v":64},null,null,null,null,null,"ESP",9,{"$f":"IFERROR(VLOOKUP(compCostCountries[[#This Row],[country_code]],b_CompareCosts!$B$21:$D$55,3,FALSE),\"\")","v":59.513601301352438},{"$f":"IF(compCostCountries[[#This Row],[value]]=\"\",\"\",(compCostCountries[[#This Row],[value]]-mapMinValue)*$G$4)","v":2.2677639025646363E-2}]
[{"$f":"b_CompareCosts!B35","v":"IND"},{"$f":"IFERROR(b_CompareCosts!D35,EMPTY)","v":159.29843672216774},0.32990682984336162,{"$f":"VLOOKUP(A15,compCostCountries[],2,FALSE)","v":4},null,null,null,null,null,"FRA",7,{"$f":"IFERROR(VLOOKUP(compCostCountries[[#This Row],[country_code]],b_CompareCosts!$B$21:$D$55,3,FALSE),\"\")","v":""},{"$f":"IF(compCostCountries[[#This Row],[value]]=\"\",\"\",(compCostCountries[[#This Row],[value]]-mapMinValue)*$G$4)","v":""}]
[{"$f":"b_CompareCosts!B36","v":"JOR"},{"$f":"IFERROR(b_CompareCosts!D36,EMPTY)","v":194.24132172636968},0.43749306014983563,{"$f":"VLOOKUP(A16,compCostCountries[],2,FALSE)","v":1},null,null,null,null,null,"IDN",64,{"$f":"IFERROR(VLOOKUP(compCostCountries[[#This Row],[country_code]],b_CompareCosts!$B$21:$D$55,3,FALSE),\"\")","v":376.93770635903257},{"$f":"IF(compCostCountries[[#This Row],[value]]=\"\",\"\",(compCostCountries[[#This Row],[value]]-mapMinValue)*$G$4)","v":0.99999999999999989}]
[{"$f":"b_CompareCosts!B37","v":"KAZ"},{"$f":"IFERROR(b_CompareCosts!D37,EMPTY)","v":91.830334871175836},0.12217816796531132,{"$f":"VLOOKUP(A17,compCostCountries[],2,FALSE)","v":1},null,null,null,null,null,"IND",4,{"$f":"IFERROR(VLOOKUP(compCostCountries[[#This Row],[country_code]],b_CompareCosts!$B$21:$D$55,3,FALSE),\"\")","v":159.29843672216774},{"$f":"IF(compCostCountries[[#This Row],[value]]=\"\",\"\",(compCostCountries[[#This Row],[value]]-mapMinValue)*$G$4)","v":0.32990682984336162}]
[{"$f":"b_CompareCosts!B38","v":"KEN"},{"$f":"IFERROR(b_CompareCosts!D38,EMPTY)","v":277.60122824858774},0.6941512639686398,{"$f":"VLOOKUP(A18,compCostCountries[],2,FALSE)","v":1},null,null,null,null,null,"JOR",1,{"$f":"IFERROR(VLOOKUP(compCostCountries[[#This Row],[country_code]],b_CompareCosts!$B$21:$D$55,3,FALSE),\"\")","v":194.24132172636968},{"$f":"IF(compCostCountries[[#This Row],[value]]=\"\",\"\",(compCostCountries[[#This Row],[value]]-mapMinValue)*$G$4)","v":0.43749306014983563}]
[{"$f":"b_CompareCosts!B39","v":"MAR"},{"$f":"IFERROR(b_CompareCosts!D39,EMPTY)","v":171.70333473886961},0.36810047684167685,{"$f":"VLOOKUP(A19,compCostCountries[],2,FALSE)","v":1},null,null,null,null,null,"JPN",10,{"$f":"IFERROR(VLOOKUP(compCostCountries[[#This Row],[country_code]],b_CompareCosts!$B$21:$D$55,3,FALSE),\"\")","v":""},{"$f":"IF(compCostCountries[[#This Row],[value]]=\"\",\"\",(compCostCountries[[#This Row],[value]]-mapMinValue)*$G$4)","v":""}]
[{"$f":"b_CompareCosts!B40","v":"MEX"},{"$f":"IFERROR(b_CompareCosts!D40,EMPTY)","v":193.69786950437168},0.43581981605709946,{"$f":"VLOOKUP(A20,compCostCountries[],2,FALSE)","v":3},null,null,null,null,null,"KAZ",1,{"$f":"IFERROR(VLOOKUP(compCostCountries[[#This Row],[country_code]],b_CompareCosts!$B$21:$D$55,3,FALSE),\"\")","v":91.830334871175836},{"$f":"IF(compCostCountries[[#This Row],[value]]=\"\",\"\",(compCostCountries[[#This Row],[value]]-mapMinValue)*$G$4)","v":0.12217816796531132}]
[{"$f":"b_CompareCosts!B41","v":"MRT"},{"$f":"IFERROR(b_CompareCosts!D41,EMPTY)","v":111.56147860270524},0.18292871484932485,{"$f":"VLOOKUP(A21,compCostCountries[],2,FALSE)","v":1},null,null,null,null,null,"KEN",1,{"$f":"IFERROR(VLOOKUP(compCostCountries[[#This Row],[country_code]],b_CompareCosts!$B$21:$D$55,3,FALSE),\"\")","v":277.60122824858774},{"$f":"IF(compCostCountries[[#This Row],[value]]=\"\",\"\",(compCostCountries[[#This Row],[value]]-mapMinValue)*$G$4)","v":0.6941512639686398}]
[{"$f":"b_CompareCosts!B42","v":"NAM"},{"$f":"IFERROR(b_CompareCosts!D42,EMPTY)","v":157.96363381355243},0.32579708294859983,{"$f":"VLOOKUP(A22,compCostCountries[],2,FALSE)","v":1},null,null,null,null,null,"KOR",2,{"$f":"IFERROR(VLOOKUP(compCostCountries[[#This Row],[country_code]],b_CompareCosts!$B$21:$D$55,3,FALSE),\"\")","v":""},{"$f":"IF(compCostCountries[[#This Row],[value]]=\"\",\"\",(compCostCountries[[#This Row],[value]]-mapMinValue)*$G$4)","v":""}]
[{"$f":"b_CompareCosts!B43","v":"NOR"},{"$f":"IFERROR(b_CompareCosts!D43,EMPTY)","v":53.626255940121489},4.5509933908919002E-3,{"$f":"VLOOKUP(A23,compCostCountries[],2,FALSE)","v":15},null,null,null,null,null,"MAR",1,{"$f":"IFERROR(VLOOKUP(compCostCountries[[#This Row],[country_code]],b_CompareCosts!$B$21:$D$55,3,FALSE),\"\")","v":171.70333473886961},{"$f":"IF(compCostCountries[[#This Row],[value]]=\"\",\"\",(compCostCountries[[#This Row],[value]]-mapMinValue)*$G$4)","v":0.36810047684167685}]
[{"$f":"b_CompareCosts!B44","v":"PER"},{"$f":"IFERROR(b_CompareCosts!D44,EMPTY)","v":252.32227447130248},0.61631947238466844,{"$f":"VLOOKUP(A24,compCostCountries[],2,FALSE)","v":1},null,null,null,null,null,"MEX",3,{"$f":"IFERROR(VLOOKUP(compCostCountries[[#This Row],[country_code]],b_CompareCosts!$B$21:$D$55,3,FALSE),\"\")","v":193.69786950437168},{"$f":"IF(compCostCountries[[#This Row],[value]]=\"\",\"\",(compCostCountries[[#This Row],[value]]-mapMinValue)*$G$4)","v":0.43581981605709946}]
[{"$f":"b_CompareCosts!B45","v":"PRT"},{"$f":"IFERROR(b_CompareCosts!D45,EMPTY)","v":77.060310315271224},7.6702493495022339E-2,{"$f":"VLOOKUP(A25,compCostCountries[],2,FALSE)","v":3},null,null,null,null,null,"MRT",1,{"$f":"IFERROR(VLOOKUP(compCostCountries[[#This Row],[country_code]],b_CompareCosts!$B$21:$D$55,3,FALSE),\"\")","v":111.56147860270524},{"$f":"IF(compCostCountries[[#This Row],[value]]=\"\",\"\",(compCostCountries[[#This Row],[value]]-mapMinValue)*$G$4)","v":0.18292871484932485}]
[{"$f":"b_CompareCosts!B46","v":"RUS"},{"$f":"IFERROR(b_CompareCosts!D46,EMPTY)","v":100.93018770415665},0.15019585633095042,{"$f":"VLOOKUP(A26,compCostCountries[],2,FALSE)","v":62},null,null,null,null,null,"NAM",1,{"$f":"IFERROR(VLOOKUP(compCostCountries[[#This Row],[country_code]],b_CompareCosts!$B$21:$D$55,3,FALSE),\"\")","v":157.96363381355243},{"$f":"IF(compCostCountries[[#This Row],[value]]=\"\",\"\",(compCostCountries[[#This Row],[value]]-mapMinValue)*$G$4)","v":0.32579708294859983}]
[{"$f":"b_CompareCosts!B47","v":"SAU"},{"$f":"IFERROR(b_CompareCosts!D47,EMPTY)","v":119.16928161703176},0.20635250619131607,{"$f":"VLOOKUP(A27,compCostCountries[],2,FALSE)","v":2},null,null,null,null,null,"NLD",1,{"$f":"IFERROR(VLOOKUP(compCostCountries[[#This Row],[country_code]],b_CompareCosts!$B$21:$D$55,3,FALSE),\"\")","v":""},{"$f":"IF(compCostCountries[[#This Row],[value]]=\"\",\"\",(compCostCountries[[#This Row],[value]]-mapMinValue)*$G$4)","v":""}]
[{"$f":"b_CompareCosts!B48","v":"SWE"},{"$f":"IFERROR(b_CompareCosts!D48,EMPTY)","v":80.414143703503967},8.7028666942708749E-2,{"$f":"VLOOKUP(A28,compCostCountries[],2,FALSE)","v":3},null,null,null,null,null,"NOR",15,{"$f":"IFERROR(VLOOKUP(compCostCountries[[#This Row],[country_code]],b_CompareCosts!$B$21:$D$55,3,FALSE),\"\")","v":53.626255940121489},{"$f":"IF(compCostCountries[[#This Row],[value]]=\"\",\"\",(compCostCountries[[#This Row],[value]]-mapMinValue)*$G$4)","v":4.5509933908919002E-3}]
[{"$f":"b_CompareCosts!B49","v":"THA"},{"$f":"IFERROR(b_CompareCosts!D49,EMPTY)","v":254.89598869988527},0.62424372396567152,{"$f":"VLOOKUP(A29,compCostCountries[],2,FALSE)","v":1},null,null,null,null,null,"PER",1,{"$f":"IFERROR(VLOOKUP(compCostCountries[[#This Row],[country_code]],b_CompareCosts!$B$21:$D$55,3,FALSE),\"\")","v":252.32227447130248},{"$f":"IF(compCostCountries[[#This Row],[value]]=\"\",\"\",(compCostCountries[[#This Row],[value]]-mapMinValue)*$G$4)","v":0.61631947238466844}]
[{"$f":"b_CompareCosts!B50","v":"TUN"},{"$f":"IFERROR(b_CompareCosts!D50,EMPTY)","v":128.20271767612996},0.23416570284625962,{"$f":"VLOOKUP(A30,compCostCountries[],2,FALSE)","v":1},null,null,null,null,null,"PRT",3,{"$f":"IFERROR(VLOOKUP(compCostCountries[[#This Row],[country_code]],b_CompareCosts!$B$21:$D$55,3,FALSE),\"\")","v":77.060310315271224},{"$f":"IF(compCostCountries[[#This Row],[value]]=\"\",\"\",(compCostCountries[[#This Row],[value]]-mapMinValue)*$G$4)","v":7.6702493495022339E-2}]
[{"$f":"b_CompareCosts!B51","v":"UKR"},{"$f":"IFERROR(b_CompareCosts!D51,EMPTY)","v":94.833048403803105},0.13142327264475481,{"$f":"VLOOKUP(A31,compCostCountries[],2,FALSE)","v":1},null,null,null,null,null,"RUS",62,{"$f":"IFERROR(VLOOKUP(compCostCountries[[#This Row],[country_code]],b_CompareCosts!$B$21:$D$55,3,FALSE),\"\")","v":100.93018770415665},{"$f":"IF(compCostCountries[[#This Row],[value]]=\"\",\"\",(compCostCountries[[#This Row],[value]]-mapMinValue)*$G$4)","v":0.15019585633095042}]
[{"$f":"b_CompareCosts!B52","v":"URY"},{"$f":"IFERROR(b_CompareCosts!D52,EMPTY)","v":203.20420289679814},0.46508902418358156,{"$f":"VLOOKUP(A32,compCostCountries[],2,FALSE)","v":1},null,null,null,null,null,"SAU",2,{"$f":"IFERROR(VLOOKUP(compCostCountries[[#This Row],[country_code]],b_CompareCosts!$B$21:$D$55,3,FALSE),\"\")","v":119.16928161703176},{"$f":"IF(compCostCountries[[#This Row],[value]]=\"\",\"\",(compCostCountries[[#This Row],[value]]-mapMinValue)*$G$4)","v":0.20635250619131607}]
[{"$f":"b_CompareCosts!B53","v":"USA"},{"$f":"IFERROR(b_CompareCosts!D53,EMPTY)","v":146.73893710025141},0.29123717738921895,{"$f":"VLOOKUP(A33,compCostCountries[],2,FALSE)","v":21},null,null,null,null,null,"SWE",3,{"$f":"IFERROR(VLOOKUP(compCostCountries[[#This Row],[country_code]],b_CompareCosts!$B$21:$D$55,3,FALSE),\"\")","v":80.414143703503967},{"$f":"IF(compCostCountries[[#This Row],[value]]=\"\",\"\",(compCostCountries[[#This Row],[value]]-mapMinValue)*$G$4)","v":8.7028666942708749E-2}]
[{"$f":"b_CompareCosts!B54","v":"VNM"},{"$f":"IFERROR(b_CompareCosts!D54,EMPTY)","v":253.84687465348247},0.62101358926441619,{"$f":"VLOOKUP(A34,compCostCountries[],2,FALSE)","v":2},null,null,null,null,null,"THA",1,{"$f":"IFERROR(VLOOKUP(compCostCountries[[#This Row],[country_code]],b_CompareCosts!$B$21:$D$55,3,FALSE),\"\")","v":254.89598869988527},{"$f":"IF(compCostCountries[[#This Row],[value]]=\"\",\"\",(compCostCountries[[#This Row],[value]]-mapMinValue)*$G$4)","v":0.62424372396567152}]
[{"$f":"b_CompareCosts!B55","v":"ZAF"},{"$f":"IFERROR(b_CompareCosts!D55,EMPTY)","v":230.5540013769959},0.5492967739950918,{"$f":"VLOOKUP(A35,compCostCountries[],2,FALSE)","v":1},null,null,null,null,null,"TUN",1,{"$f":"IFERROR(VLOOKUP(compCostCountries[[#This Row],[country_code]],b_CompareCosts!$B$21:$D$55,3,FALSE),\"\")","v":128.20271767612996},{"$f":"IF(compCostCountries[[#This Row],[value]]=\"\",\"\",(compCostCountries[[#This Row],[value]]-mapMinValue)*$G$4)","v":0.23416570284625962}]
[null,null,null,null,null,null,null,null,null,"UKR",1,{"$f":"IFERROR(VLOOKUP(compCostCountries[[#This Row],[country_code]],b_CompareCosts!$B$21:$D$55,3,FALSE),\"\")","v":94.833048403803105},{"$f":"IF(compCostCountries[[#This Row],[value]]=\"\",\"\",(compCostCountries[[#This Row],[value]]-mapMinValue)*$G$4)","v":0.13142327264475481}]
[null,null,null,null,null,null,null,null,null,"URY",1,{"$f":"IFERROR(VLOOKUP(compCostCountries[[#This Row],[country_code]],b_CompareCosts!$B$21:$D$55,3,FALSE),\"\")","v":203.20420289679814},{"$f":"IF(compCostCountries[[#This Row],[value]]=\"\",\"\",(compCostCountries[[#This Row],[value]]-mapMinValue)*$G$4)","v":0.46508902418358156}]
[null,null,null,null,null,null,null,null,null,"USA",21,{"$f":"IFERROR(VLOOKUP(compCostCountries[[#This Row],[country_code]],b_CompareCosts!$B$21:$D$55,3,FALSE),\"\")","v":146.73893710025141},{"$f":"IF(compCostCountries[[#This Row],[value]]=\"\",\"\",(compCostCountries[[#This Row],[value]]-mapMinValue)*$G$4)","v":0.29123717738921895}]
[null,null,null,null,null,null,null,null,null,"VNM",2,{"$f":"IFERROR(VLOOKUP(compCostCountries[[#This Row],[country_code]],b_CompareCosts!$B$21:$D$55,3,FALSE),\"\")","v":253.84687465348247},{"$f":"IF(compCostCountries[[#This Row],[value]]=\"\",\"\",(compCostCountries[[#This Row],[value]]-mapMinValue)*$G$4)","v":0.62101358926441619}]
[null,null,null,null,null,null,null,null,null,"ZAF",1,{"$f":"IFERROR(VLOOKUP(compCostCountries[[#This Row],[country_code]],b_CompareCosts!$B$21:$D$55,3,FALSE),\"\")","v":230.5540013769959},{"$f":"IF(compCostCountries[[#This Row],[value]]=\"\",\"\",(compCostCountries[[#This Row],[value]]-mapMinValue)*$G$4)","v":0.5492967739950918}]

{"sheet":"_output","index":14,"n_rows":2371,"n_cols":8,"rows_kept":2371,"cut":false,"hidden":true,"merged":[]}
["key","scenario","target","chain","source","variable","process_class","value"]
[{"$f":"_xlfn.TEXTJOIN(\",\",FALSE,output[[#This Row],[scenario]:[process_class]])","v":"PTX-BusinessOpportunityAnalyzer-1.0.9,DEU,Hydrogen (AEL),ARE,COST-CAPEX,Water"},{"$f":"output_scenario_name","v":"PTX-BusinessOpportunityAnalyzer-1.0.9"},{"$f":"sel_country_code","v":"DEU"},{"$f":"sel_chain","v":"Hydrogen (AEL)"},{"$f":"_calc!$B$583","v":"ARE"},{"$f":"_calc!$BO$582","v":"COST-CAPEX"},{"$f":"_calc!$BP$1","v":"Water"},{"$f":"_calc!$BP$583","v":6.6805023744765157E-2}]
[{"$f":"_xlfn.TEXTJOIN(\",\",FALSE,output[[#This Row],[scenario]:[process_class]])","v":"PTX-BusinessOpportunityAnalyzer-1.0.9,DEU,Hydrogen (AEL),ARE,COST-CAPEX,Electrolysis"},"PTX-BusinessOpportunityAnalyzer-1.0.9",{"$f":"sel_country_code","v":"DEU"},"Hydrogen (AEL)",{"$f":"_calc!$B$583","v":"ARE"},{"$f":"_calc!$BO$582","v":"COST-CAPEX"},{"$f":"_calc!$BQ$1","v":"Electrolysis"},{"$f":"_calc!$BQ$583","v":20.678279770238884}]
[{"$f":"_xlfn.TEXTJOIN(\",\",FALSE,output[[#This Row],[scenario]:[process_class]])","v":"PTX-BusinessOpportunityAnalyzer-1.0.9,DEU,Hydrogen (AEL),ARE,COST-CAPEX,Electricity generation"},"PTX-BusinessOpportunityAnalyzer-1.0.9",{"$f":"sel_country_code","v":"DEU"},"Hydrogen (AEL)",{"$f":"_calc!$B$583","v":"ARE"},{"$f":"_calc!$BO$582","v":"COST-CAPEX"},{"$f":"_calc!$BR$1","v":"Electricity generation"},{"$f":"_calc!$BR$583","v":49.403020324220591}]
[{"$f":"_xlfn.TEXTJOIN(\",\",FALSE,output[[#This Row],[scenario]:[process_class]])","v":"PTX-BusinessOpportunityAnalyzer-1.0.9,DEU,Hydrogen (AEL),ARE,COST-CAPEX,Transportation (Pipeline)"},"PTX-BusinessOpportunityAnalyzer-1.0.9",{"$f":"sel_country_code","v":"DEU"},"Hydrogen (AEL)",{"$f":"_calc!$B$583","v":"ARE"},{"$f":"_calc!$BO$582","v":"COST-CAPEX"},{"$f":"_calc!$BS$1","v":"Transportation (Pipeline)"},{"$f":"_calc!$BS$583","v":2.0420247343287863}]
[{"$f":"_xlfn.TEXTJOIN(\",\",FALSE,output[[#This Row],[scenario]:[process_class]])","v":"PTX-BusinessOpportunityAnalyzer-1.0.9,DEU,Hydrogen (AEL),ARE,COST-CAPEX,Transportation (Ship)"},"PTX-BusinessOpportunityAnalyzer-1.0.9",{"$f":"sel_country_code","v":"DEU"},"Hydrogen (AEL)",{"$f":"_calc!$B$583","v":"ARE"},{"$f":"_calc!$BO$582","v":"COST-CAPEX"},{"$f":"_calc!$BT$1","v":"Transportation (Ship)"},{"$f":"_calc!$BT$583","v":0}]
[{"$f":"_xlfn.TEXTJOIN(\",\",FALSE,output[[#This Row],[scenario]:[process_class]])","v":"PTX-BusinessOpportunityAnalyzer-1.0.9,DEU,Hydrogen (AEL),ARE,COST-CAPEX,Carbon"},"PTX-BusinessOpportunityAnalyzer-1.0.9",{"$f":"sel_country_code","v":"DEU"},"Hydrogen (AEL)",{"$f":"_calc!$B$583","v":"ARE"},{"$f":"_calc!$BO$582","v":"COST-CAPEX"},{"$f":"_calc!$BU$1","v":"Carbon"},{"$f":"_calc!$BU$583","v":0}]
[{"$f":"_xlfn.TEXTJOIN(\",\",FALSE,output[[#This Row],[scenario]:[process_class]])","v":"PTX-BusinessOpportunityAnalyzer-1.0.9,DEU,Hydrogen (AEL),ARE,COST-CAPEX,Derivate production"},"PTX-BusinessOpportunityAnalyzer-1.0.9",{"$f":"sel_country_code","v":"DEU"},"Hydrogen (AEL)",{"$f":"_calc!$B$583","v":"ARE"},{"$f":"_calc!$BO$582","v":"COST-CAPEX"},{"$f":"_calc!$BV$1","v":"Derivate production"},{"$f":"_calc!$BV$583","v":0}]
[{"$f":"_xlfn.TEXTJOIN(\",\",FALSE,output[[#This Row],[scenario]:[process_class]])","v":"PTX-BusinessOpportunityAnalyzer-1.0.9,DEU,Hydrogen (AEL),ARE,COST-CAPEX,Heat"},"PTX-BusinessOpportunityAnalyzer-1.0.9",{"$f":"sel_country_code","v":"DEU"},"Hydrogen (AEL)",{"$f":"_calc!$B$583","v":"ARE"},{"$f":"_calc!$BO$582","v":"COST-CAPEX"},{"$f":"_calc!$BW$1","v":"Heat"},{"$f":"_calc!$BW$583","v":0}]
[{"$f":"_xlfn.TEXTJOIN(\",\",FALSE,output[[#This Row],[scenario]:[process_class]])","v":"PTX-BusinessOpportunityAnalyzer-1.0.9,DEU,Hydrogen (AEL),ARE,COST-CAPEX,Electricity and H2 storage"},"PTX-BusinessOpportunityAnalyzer-1.0.9",{"$f":"sel_country_code","v":"DEU"},"Hydrogen (AEL)",{"$f":"_calc!$B$583","v":"ARE"},{"$f":"_calc!$BO$582","v":"COST-CAPEX"},{"$f":"_calc!$BX$1","v":"Electricity and H2 storage"},{"$f":"_calc!$BX$583","v":0}]
[{"$f":"_xlfn.TEXTJOIN(\",\",FALSE,output[[#This Row],[scenario]:[process_class]])","v":"PTX-BusinessOpportunityAnalyzer-1.0.9,DEU,Hydrogen (AEL),ARG,COST-CAPEX,Water"},"PTX-BusinessOpportunityAnalyzer-1.0.9",{"$f":"sel_country_code","v":"DEU"},"Hydrogen (AEL)",{"$f":"_calc!$B$584","v":"ARG"},{"$f":"_calc!$BO$582","v":"COST-CAPEX"},{"$f":"_calc!$BP$1","v":"Water"},{"$f":"_calc!$BP$584","v":0.15608335265630313}]
[{"$f":"_xlfn.TEXTJOIN(\",\",FALSE,output[[#This Row],[scenario]:[process_class]])","v":"PTX-BusinessOpportunityAnalyzer-1.0.9,DEU,Hydrogen (AEL),ARG,COST-CAPEX,Electrolysis"},"PTX-BusinessOpportunityAnalyzer-1.0.9",{"$f":"sel_country_code","v":"DEU"},"Hydrogen (AEL)",{"$f":"_calc!$B$584","v":"ARG"},{"$f":"_calc!$BO$582","v":"COST-CAPEX"},{"$f":"_calc!$BQ$1","v":"Electrolysis"},{"$f":"_calc!$BQ$584","v":24.724319162562562}]
[{"$f":"_xlfn.TEXTJOIN(\",\",FALSE,output[[#This Row],[scenario]:[process_class]])","v":"PTX-BusinessOpportunityAnalyzer-1.0.9,DEU,Hydrogen (AEL),ARG,COST-CAPEX,Electricity generation"},"PTX-BusinessOpportunityAnalyzer-1.0.9",{"$f":"sel_country_code","v":"DEU"},"Hydrogen (AEL)",{"$f":"_calc!$B$584","v":"ARG"},{"$f":"_calc!$BO$582","v":"COST-CAPEX"},{"$f":"_calc!$BR$1","v":"Electricity generation"},{"$f":"_calc!$BR$584","v":68.550890524919339}]
[{"$f":"_xlfn.TEXTJOIN(\",\",FALSE,output[[#This Row],[scenario]:[process_class]])","v":"PTX-BusinessOpportunityAnalyzer-1.0.9,DEU,Hydrogen (AEL),ARG,COST-CAPEX,Transportation (Pipeline)"},"PTX-BusinessOpportunityAnalyzer-1.0.9",{"$f":"sel_country_code","v":"DEU"},"Hydrogen (AEL)",{"$f":"_calc!$B$584","v":"ARG"},{"$f":"_calc!$BO$582","v":"COST-CAPEX"},{"$f":"_calc!$BS$1","v":"Transportation (Pipeline)"},{"$f":"_calc!$BS$584","v":0}]
[{"$f":"_xlfn.TEXTJOIN(\",\",FALSE,output[[#This Row],[scenario]:[process_class]])","v":"PTX-BusinessOpportunityAnalyzer-1.0.9,DEU,Hydrogen (AEL),ARG,COST-CAPEX,Transportation (Ship)"},"PTX-BusinessOpportunityAnalyzer-1.0.9",{"$f":"sel_country_code","v":"DEU"},"Hydrogen (AEL)",{"$f":"_calc!$B$584","v":"ARG"},{"$f":"_calc!$BO$582","v":"COST-CAPEX"},{"$f":"_calc!$BT$1","v":"Transportation (Ship)"},{"$f":"_calc!$BT$584","v":59.806794414930117}]
[{"$f":"_xlfn.TEXTJOIN(\",\",FALSE,output[[#This Row],[scenario]:[process_class]])","v":"PTX-BusinessOpportunityAnalyzer-1.0.9,DEU,Hydrogen (AEL),ARG,COST-CAPEX,Carbon"},"PTX-BusinessOpportunityAnalyzer-1.0.9",{"$f":"sel_country_code","v":"DEU"},"Hydrogen (AEL)",{"$f":"_calc!$B$584","v":"ARG"},{"$f":"_calc!$BO$582","v":"COST-CAPEX"},{"$f":"_calc!$BU$1","v":"Carbon"},{"$f":"_calc!$BU$584","v":0}]
[{"$f":"_xlfn.TEXTJOIN(\",\",FALSE,output[[#This Row],[scenario]:[process_class]])","v":"PTX-BusinessOpportunityAnalyzer-1.0.9,DEU,Hydrogen (AEL),ARG,COST-CAPEX,Derivate production"},"PTX-BusinessOpportunityAnalyzer-1.0.9",{"$f":"sel_country_code","v":"DEU"},"Hydrogen (AEL)",{"$f":"_calc!$B$584","v":"ARG"},{"$f":"_calc!$BO$582","v":"COST-CAPEX"},{"$f":"_calc!$BV$1","v":"Derivate production"},{"$f":"_calc!$BV$584","v":0}]
[{"$f":"_xlfn.TEXTJOIN(\",\",FALSE,output[[#This Row],[scenario]:[process_class]])","v":"PTX-BusinessOpportunityAnalyzer-1.0.9,DEU,Hydrogen (AEL),ARG,COST-CAPEX,Heat"},"PTX-BusinessOpportunityAnalyzer-1.0.9",{"$f":"sel_country_code","v":"DEU"},"Hydrogen (AEL)",{"$f":"_calc!$B$584","v":"ARG"},{"$f":"_calc!$BO$582","v":"COST-CAPEX"},{"$f":"_calc!$BW$1","v":"Heat"},{"$f":"_calc!$BW$584","v":0}]
[{"$f":"_xlfn.TEXTJOIN(\",\",FALSE,output[[#This Row],[scenario]:[process_class]])","v":"PTX-BusinessOpportunityAnalyzer-1.0.9,DEU,Hydrogen (AEL),ARG,COST-CAPEX,Electricity and H2 storage"},"PTX-BusinessOpportunityAnalyzer-1.0.9",{"$f":"sel_country_code","v":"DEU"},"Hydrogen (AEL)",{"$f":"_calc!$B$584","v":"ARG"},{"$f":"_calc!$BO$582","v":"COST-CAPEX"},{"$f":"_calc!$BX$1","v":"Electricity and H2 storage"},{"$f":"_calc!$BX$584","v":0}]
[{"$f":"_xlfn.TEXTJOIN(\",\",FALSE,output[[#This Row],[scenario]:[process_class]])","v":"PTX-BusinessOpportunityAnalyzer-1.0.9,DEU,Hydrogen (AEL),ARG-BA,COST-CAPEX,Water"},"PTX-BusinessOpportunityAnalyzer-1.0.9",{"$f":"sel_country_code","v":"DEU"},"Hydrogen (AEL)",{"$f":"_calc!$B$585","v":"ARG-BA"},{"$f":"_calc!$BO$582","v":"COST-CAPEX"},{"$f":"_calc!$BP$1","v":"Water"},{"$f":"_calc!$BP$585","v":0.15608335265630313}]
[{"$f":"_xlfn.TEXTJOIN(\",\",FALSE,output[[#This Row],[scenario]:[process_class]])","v":"PTX-BusinessOpportunityAnalyzer-1.0.9,DEU,Hydrogen (AEL),ARG-BA,COST-CAPEX,Electrolysis"},"PTX-BusinessOpportunityAnalyzer-1.0.9",{"$f":"sel_country_code","v":"DEU"},"Hydrogen (AEL)",{"$f":"_calc!$B$585","v":"ARG-BA"},{"$f":"_calc!$BO$582","v":"COST-CAPEX"},{"$f":"_calc!$BQ$1","v":"Electrolysis"},{"$f":"_calc!$BQ$585","v":28.505637667693705}]
[{"$f":"_xlfn.TEXTJOIN(\",\",FALSE,output[[#This Row],[scenario]:[process_class]])","v":"PTX-BusinessOpportunityAnalyzer-1.0.9,DEU,Hydrogen (AEL),ARG-BA,COST-CAPEX,Electricity generation"},"PTX-BusinessOpportunityAnalyzer-1.0.9",{"$f":"sel_country_code","v":"DEU"},"Hydrogen (AEL)",{"$f":"_calc!$B$585","v":"ARG-BA"},{"$f":"_calc!$BO$582","v":"COST-CAPEX"},{"$f":"_calc!$BR$1","v":"Electricity generation"},{"$f":"_calc!$BR$585","v":78.461540740474106}]
[{"$f":"_xlfn.TEXTJOIN(\",\",FALSE,output[[#This Row],[scenario]:[process_class]])","v":"PTX-BusinessOpportunityAnalyzer-1.0.9,DEU,Hydrogen (AEL),ARG-BA,COST-CAPEX,Transportation (Pipeline)"},"PTX-BusinessOpportunityAnalyzer-1.0.9",{"$f":"sel_country_code","v":"DEU"},"Hydrogen (AEL)",{"$f":"_calc!$B$585","v":"ARG-BA"},{"$f":"_calc!$BO$582","v":"COST-CAPEX"},{"$f":"_calc!$BS$1","v":"Transportation (Pipeline)"},{"$f":"_calc!$BS$585","v":0}]
[{"$f":"_xlfn.TEXTJOIN(\",\",FALSE,output[[#This Row],[scenario]:[process_class]])","v":"PTX-BusinessOpportunityAnalyzer-1.0.9,DEU,Hydrogen (AEL),ARG-BA,COST-CAPEX,Transportation (Ship)"},"PTX-BusinessOpportunityAnalyzer-1.0.9",{"$f":"sel_country_code","v":"DEU"},"Hydrogen (AEL)",{"$f":"_calc!$B$585","v":"ARG-BA"},{"$f":"_calc!$BO$582","v":"COST-CAPEX"},{"$f":"_calc!$BT$1","v":"Transportation (Ship)"},{"$f":"_calc!$BT$585","v":70.432650322875688}]
[{"$f":"_xlfn.TEXTJOIN(\",\",FALSE,output[[#This Row],[scenario]:[process_class]])","v":"PTX-BusinessOpportunityAnalyzer-1.0.9,DEU,Hydrogen (AEL),ARG-BA,COST-CAPEX,Carbon"},"PTX-BusinessOpportunityAnalyzer-1.0.9",{"$f":"sel_country_code","v":"DEU"},"Hydrogen (AEL)",{"$f":"_calc!$B$585","v":"ARG-BA"},{"$f":"_calc!$BO$582","v":"COST-CAPEX"},{"$f":"_calc!$BU$1","v":"Carbon"},{"$f":"_calc!$BU$585","v":0}]
[{"$f":"_xlfn.TEXTJOIN(\",\",FALSE,output[[#This Row],[scenario]:[process_class]])","v":"PTX-BusinessOpportunityAnalyzer-1.0.9,DEU,Hydrogen (AEL),ARG-BA,COST-CAPEX,Derivate production"},"PTX-BusinessOpportunityAnalyzer-1.0.9",{"$f":"sel_country_code","v":"DEU"},"Hydrogen (AEL)",{"$f":"_calc!$B$585","v":"ARG-BA"},{"$f":"_calc!$BO$582","v":"COST-CAPEX"},{"$f":"_calc!$BV$1","v":"Derivate production"},{"$f":"_calc!$BV$585","v":0}]
[{"$f":"_xlfn.TEXTJOIN(\",\",FALSE,output[[#This Row],[scenario]:[process_class]])","v":"PTX-BusinessOpportunityAnalyzer-1.0.9,DEU,Hydrogen (AEL),ARG-BA,COST-CAPEX,Heat"},"PTX-BusinessOpportunityAnalyzer-1.0.9",{"$f":"sel_country_code","v":"DEU"},"Hydrogen (AEL)",{"$f":"_calc!$B$585","v":"ARG-BA"},{"$f":"_calc!$BO$582","v":"COST-CAPEX"},{"$f":"_calc!$BW$1","v":"Heat"},{"$f":"_calc!$BW$585","v":0}]
[{"$f":"_xlfn.TEXTJOIN(\",\",FALSE,output[[#This Row],[scenario]:[process_class]])","v":"PTX-BusinessOpportunityAnalyzer-1.0.9,DEU,Hydrogen (AEL),ARG-BA,COST-CAPEX,Electricity and H2 storage"},"PTX-BusinessOpportunityAnalyzer-1.0.9",{"$f":"sel_country_code","v":"DEU"},"Hydrogen (AEL)",{"$f":"_calc!$B$585","v":"ARG-BA"},{"$f":"_calc!$BO$582","v":"COST-CAPEX"},{"$f":"_calc!$BX$1","v":"Electricity and H2 storage"},{"$f":"_calc!$BX$585","v":0}]
[{"$f":"_xlfn.TEXTJOIN(\",\",FALSE,output[[#This Row],[scenario]:[process_class]])","v":"PTX-BusinessOpportunityAnalyzer-1.0.9,DEU,Hydrogen (AEL),ARG-CAT,COST-CAPEX,Water"},"PTX-BusinessOpportunityAnalyzer-1.0.9",{"$f":"sel_country_code","v":"DEU"},"Hydrogen (AEL)",{"$f":"_calc!$B$586","v":"ARG-CAT"},{"$f":"_calc!$BO$582","v":"COST-CAPEX"},{"$f":"_calc!$BP$1","v":"Water"},{"$f":"_calc!$BP$586","v":0.15608335265630313}]
[{"$f":"_xlfn.TEXTJOIN(\",\",FALSE,output[[#This Row],[scenario]:[process_class]])","v":"PTX-BusinessOpportunityAnalyzer-1.0.9,DEU,Hydrogen (AEL),ARG-CAT,COST-CAPEX,Electrolysis"},"PTX-BusinessOpportunityAnalyzer-1.0.9",{"$f":"sel_country_code","v":"DEU"},"Hydrogen (AEL)",{"$f":"_calc!$B$586","v":"ARG-CAT"},{"$f":"_calc!$BO$582","v":"COST-CAPEX"},{"$f":"_calc!$BQ$1","v":"Electrolysis"},{"$f":"_calc!$BQ$586","v":29.357019556556072}]
[{"$f":"_xlfn.TEXTJOIN(\",\",FALSE,output[[#This Row],[scenario]:[process_class]])","v":"PTX-BusinessOpportunityAnalyzer-1.0.9,DEU,Hydrogen (AEL),ARG-CAT,COST-CAPEX,Electricity generation"},"PTX-BusinessOpportunityAnalyzer-1.0.9",{"$f":"sel_country_code","v":"DEU"},"Hydrogen (AEL)",{"$f":"_calc!$B$586","v":"ARG-CAT"},{"$f":"_calc!$BO$582","v":"COST-CAPEX"},{"$f":"_calc!$BR$1","v":"Electricity generation"},{"$f":"_calc!$BR$586","v":80.542127933283595}]
[{"$f":"_xlfn.TEXTJOIN(\",\",FALSE,output[[#This Row],[scenario]:[process_class]])","v":"PTX-BusinessOpportunityAnalyzer-1.0.9,DEU,Hydrogen (AEL),ARG-CAT,COST-CAPEX,Transportation (Pipeline)"},"PTX-BusinessOpportunityAnalyzer-1.0.9",{"$f":"sel_country_code","v":"DEU"},"Hydrogen (AEL)",{"$f":"_calc!$B$586","v":"ARG-CAT"},{"$f":"_calc!$BO$582","v":"COST-CAPEX"},{"$f":"_calc!$BS$1","v":"Transportation (Pipeline)"},{"$f":"_calc!$BS$586","v":0}]
[{"$f":"_xlfn.TEXTJOIN(\",\",FALSE,output[[#This Row],[scenario]:[process_class]])","v":"PTX-BusinessOpportunityAnalyzer-1.0.9,DEU,Hydrogen (AEL),ARG-CAT,COST-CAPEX,Transportation (Ship)"},"PTX-BusinessOpportunityAnalyzer-1.0.9",{"$f":"sel_country_code","v":"DEU"},"Hydrogen (AEL)",{"$f":"_calc!$B$586","v":"ARG-CAT"},{"$f":"_calc!$BO$582","v":"COST-CAPEX"},{"$f":"_calc!$BT$1","v":"Transportation (Ship)"},{"$f":"_calc!$BT$586","v":72.407816641907417}]
[{"$f":"_xlfn.TEXTJOIN(\",\",FALSE,output[[#This Row],[scenario]:[process_class]])","v":"PTX-BusinessOpportunityAnalyzer-1.0.9,DEU,Hydrogen (AEL),ARG-CAT,COST-CAPEX,Carbon"},"PTX-BusinessOpportunityAnalyzer-1.0.9",{"$f":"sel_country_code","v":"DEU"},"Hydrogen (AEL)",{"$f":"_calc!$B$586","v":"ARG-CAT"},{"$f":"_calc!$BO$582","v":"COST-CAPEX"},{"$f":"_calc!$BU$1","v":"Carbon"},{"$f":"_calc!$BU$586","v":0}]
[{"$f":"_xlfn.TEXTJOIN(\",\",FALSE,output[[#This Row],[scenario]:[process_class]])","v":"PTX-BusinessOpportunityAnalyzer-1.0.9,DEU,Hydrogen (AEL),ARG-CAT,COST-CAPEX,Derivate production"},"PTX-BusinessOpportunityAnalyzer-1.0.9",{"$f":"sel_country_code","v":"DEU"},"Hydrogen (AEL)",{"$f":"_calc!$B$586","v":"ARG-CAT"},{"$f":"_calc!$BO$582","v":"COST-CAPEX"},{"$f":"_calc!$BV$1","v":"Derivate production"},{"$f":"_calc!$BV$586","v":0}]
[{"$f":"_xlfn.TEXTJOIN(\",\",FALSE,output[[#This Row],[scenario]:[process_class]])","v":"PTX-BusinessOpportunityAnalyzer-1.0.9,DEU,Hydrogen (AEL),ARG-CAT,COST-CAPEX,Heat"},"PTX-BusinessOpportunityAnalyzer-1.0.9",{"$f":"sel_country_code","v":"DEU"},"Hydrogen (AEL)",{"$f":"_calc!$B$586","v":"ARG-CAT"},{"$f":"_calc!$BO$582","v":"COST-CAPEX"},{"$f":"_calc!$BW$1","v":"Heat"},{"$f":"_calc!$BW$586","v":0}]
[{"$f":"_xlfn.TEXTJOIN(\",\",FALSE,output[[#This Row],[scenario]:[process_class]])","v":"PTX-BusinessOpportunityAnalyzer-1.0.9,DEU,Hydrogen (AEL),ARG-CAT,COST-CAPEX,Electricity and H2 storage"},"PTX-BusinessOpportunityAnalyzer-1.0.9",{"$f":"sel_country_code","v":"DEU"},"Hydrogen (AEL)",{"$f":"_calc!$B$586","v":"ARG-CAT"},{"$f":"_calc!$BO$582","v":"COST-CAPEX"},{"$f":"_calc!$BX$1","v":"Electricity and H2 storage"},{"$f":"_calc!$BX$586","v":0}]
[{"$f":"_xlfn.TEXTJOIN(\",\",FALSE,output[[#This Row],[scenario]:[process_class]])","v":"PTX-BusinessOpportunityAnalyzer-1.0.9,DEU,Hydrogen (AEL),ARG-CBA,COST-CAPEX,Water"},"PTX-BusinessOpportunityAnalyzer-1.0.9",{"$f":"sel_country_code","v":"DEU"},"Hydrogen (AEL)",{"$f":"_calc!$B$587","v":"ARG-CBA"},{"$f":"_calc!$BO$582","v":"COST-CAPEX"},{"$f":"_calc!$BP$1","v":"Water"},{"$f":"_calc!$BP$587","v":0.15608335265630313}]
[{"$f":"_xlfn.TEXTJOIN(\",\",FALSE,output[[#This Row],[scenario]:[process_class]])","v":"PTX-BusinessOpportunityAnalyzer-1.0.9,DEU,Hydrogen (AEL),ARG-CBA,COST-CAPEX,Electrolysis"},"PTX-BusinessOpportunityAnalyzer-1.0.9",{"$f":"sel_country_code","v":"DEU"},"Hydrogen (AEL)",{"$f":"_calc!$B$587","v":"ARG-CBA"},{"$f":"_calc!$BO$582","v":"COST-CAPEX"},{"$f":"_calc!$BQ$1","v":"Electrolysis"},{"$f":"_calc!$BQ$587","v":29.507298479520568}]
[{"$f":"_xlfn.TEXTJOIN(\",\",FALSE,output[[#This Row],[scenario]:[process_class]])","v":"PTX-BusinessOpportunityAnalyzer-1.0.9,DEU,Hydrogen (AEL),ARG-CBA,COST-CAPEX,Electricity generation"},"PTX-BusinessOpportunityAnalyzer-1.0.9",{"$f":"sel_country_code","v":"DEU"},"Hydrogen (AEL)",{"$f":"_calc!$B$587","v":"ARG-CBA"},{"$f":"_calc!$BO$582","v":"COST-CAPEX"},{"$f":"_calc!$BR$1","v":"Electricity generation"},{"$f":"_calc!$BR$587","v":80.90797146310112}]
[{"$f":"_xlfn.TEXTJOIN(\",\",FALSE,output[[#This Row],[scenario]:[process_class]])","v":"PTX-BusinessOpportunityAnalyzer-1.0.9,DEU,Hydrogen (AEL),ARG-CBA,COST-CAPEX,Transportation (Pipeline)"},"PTX-BusinessOpportunityAnalyzer-1.0.9",{"$f":"sel_country_code","v":"DEU"},"Hydrogen (AEL)",{"$f":"_calc!$B$587","v":"ARG-CBA"},{"$f":"_calc!$BO$582","v":"COST-CAPEX"},{"$f":"_calc!$BS$1","v":"Transportation (Pipeline)"},{"$f":"_calc!$BS$587","v":0}]
[{"$f":"_xlfn.TEXTJOIN(\",\",FALSE,output[[#This Row],[scenario]:[process_class]])","v":"PTX-BusinessOpportunityAnalyzer-1.0.9,DEU,Hydrogen (AEL),ARG-CBA,COST-CAPEX,Transportation (Ship)"},"PTX-BusinessOpportunityAnalyzer-1.0.9",{"$f":"sel_country_code","v":"DEU"},"Hydrogen (AEL)",{"$f":"_calc!$B$587","v":"ARG-CBA"},{"$f":"_calc!$BO$582","v":"COST-CAPEX"},{"$f":"_calc!$BT$1","v":"Transportation (Ship)"},{"$f":"_calc!$BT$587","v":72.75732677736255}]
[{"$f":"_xlfn.TEXTJOIN(\",\",FALSE,output[[#This Row],[scenario]:[process_class]])","v":"PTX-BusinessOpportunityAnalyzer-1.0.9,DEU,Hydrogen (AEL),ARG-CBA,COST-CAPEX,Carbon"},"PTX-BusinessOpportunityAnalyzer-1.0.9",{"$f":"sel_country_code","v":"DEU"},"Hydrogen (AEL)",{"$f":"_calc!$B$587","v":"ARG-CBA"},{"$f":"_calc!$BO$582","v":"COST-CAPEX"},{"$f":"_calc!$BU$1","v":"Carbon"},{"$f":"_calc!$BU$587","v":0}]
[{"$f":"_xlfn.TEXTJOIN(\",\",FALSE,output[[#This Row],[scenario]:[process_class]])","v":"PTX-BusinessOpportunityAnalyzer-1.0.9,DEU,Hydrogen (AEL),ARG-CBA,COST-CAPEX,Derivate production"},"PTX-BusinessOpportunityAnalyzer-1.0.9",{"$f":"sel_country_code","v":"DEU"},"Hydrogen (AEL)",{"$f":"_calc!$B$587","v":"ARG-CBA"},{"$f":"_calc!$BO$582","v":"COST-CAPEX"},{"$f":"_calc!$BV$1","v":"Derivate production"},{"$f":"_calc!$BV$587","v":0}]
[{"$f":"_xlfn.TEXTJOIN(\",\",FALSE,output[[#This Row],[scenario]:[process_class]])","v":"PTX-BusinessOpportunityAnalyzer-1.0.9,DEU,Hydrogen (AEL),ARG-CBA,COST-CAPEX,Heat"},"PTX-BusinessOpportunityAnalyzer-1.0.9",{"$f":"sel_country_code","v":"DEU"},"Hydrogen (AEL)",{"$f":"_calc!$B$587","v":"ARG-CBA"},{"$f":"_calc!$BO$582","v":"COST-CAPEX"},{"$f":"_calc!$BW$1","v":"Heat"},{"$f":"_calc!$BW$587","v":0}]
[{"$f":"_xlfn.TEXTJOIN(\",\",FALSE,output[[#This Row],[scenario]:[process_class]])","v":"PTX-BusinessOpportunityAnalyzer-1.0.9,DEU,Hydrogen (AEL),ARG-CBA,COST-CAPEX,Electricity and H2 storage"},"PTX-BusinessOpportunityAnalyzer-1.0.9",{"$f":"sel_country_code","v":"DEU"},"Hydrogen (AEL)",{"$f":"_calc!$B$587","v":"ARG-CBA"},{"$f":"_calc!$BO$582","v":"COST-CAPEX"},{"$f":"_calc!$BX$1","v":"Electricity and H2 storage"},{"$f":"_calc!$BX$587","v":0}]
[{"$f":"_xlfn.TEXTJOIN(\",\",FALSE,output[[#This Row],[scenario]:[process_class]])","v":"PTX-BusinessOpportunityAnalyzer-1.0.9,DEU,Hydrogen (AEL),ARG-CHA,COST-CAPEX,Water"},"PTX-BusinessOpportunityAnalyzer-1.0.9",{"$f":"sel_country_code","v":"DEU"},"Hydrogen (AEL)",{"$f":"_calc!$B$588","v":"ARG-CHA"},{"$f":"_calc!$BO$582","v":"COST-CAPEX"},{"$f":"_calc!$BP$1","v":"Water"},{"$f":"_calc!$BP$588","v":0.15608335265630313}]
[{"$f":"_xlfn.TEXTJOIN(\",\",FALSE,output[[#This Row],[scenario]:[process_class]])","v":"PTX-BusinessOpportunityAnalyzer-1.0.9,DEU,Hydrogen (AEL),ARG-CHA,COST-CAPEX,Electrolysis"},"PTX-BusinessOpportunityAnalyzer-1.0.9",{"$f":"sel_country_code","v":"DEU"},"Hydrogen (AEL)",{"$f":"_calc!$B$588","v":"ARG-CHA"},{"$f":"_calc!$BO$582","v":"COST-CAPEX"},{"$f":"_calc!$BQ$1","v":"Electrolysis"},{"$f":"_calc!$BQ$588","v":32.9368295311126}]
[{"$f":"_xlfn.TEXTJOIN(\",\",FALSE,output[[#This Row],[scenario]:[process_class]])","v":"PTX-BusinessOpportunityAnalyzer-1.0.9,DEU,Hydrogen (AEL),ARG-CHA,COST-CAPEX,Electricity generation"},"PTX-BusinessOpportunityAnalyzer-1.0.9",{"$f":"sel_country_code","v":"DEU"},"Hydrogen (AEL)",{"$f":"_calc!$B$588","v":"ARG-CHA"},{"$f":"_calc!$BO$582","v":"COST-CAPEX"},{"$f":"_calc!$BR$1","v":"Electricity generation"},{"$f":"_calc!$BR$588","v":89.144279774178841}]
[{"$f":"_xlfn.TEXTJOIN(\",\",FALSE,output[[#This Row],[scenario]:[process_class]])","v":"PTX-BusinessOpportunityAnalyzer-1.0.9,DEU,Hydrogen (AEL),ARG-CHA,COST-CAPEX,Transportation (Pipeline)"},"PTX-BusinessOpportunityAnalyzer-1.0.9",{"$f":"sel_country_code","v":"DEU"},"Hydrogen (AEL)",{"$f":"_calc!$B$588","v":"ARG-CHA"},{"$f":"_calc!$BO$582","v":"COST-CAPEX"},{"$f":"_calc!$BS$1","v":"Transportation (Pipeline)"},{"$f":"_calc!$BS$588","v":0}]
[{"$f":"_xlfn.TEXTJOIN(\",\",FALSE,output[[#This Row],[scenario]:[process_class]])","v":"PTX-BusinessOpportunityAnalyzer-1.0.9,DEU,Hydrogen (AEL),ARG-CHA,COST-CAPEX,Transportation (Ship)"},"PTX-BusinessOpportunityAnalyzer-1.0.9",{"$f":"sel_country_code","v":"DEU"},"Hydrogen (AEL)",{"$f":"_calc!$B$588","v":"ARG-CHA"},{"$f":"_calc!$BO$582","v":"COST-CAPEX"},{"$f":"_calc!$BT$1","v":"Transportation (Ship)"},{"$f":"_calc!$BT$588","v":80.80528420469625}]
[{"$f":"_xlfn.TEXTJOIN(\",\",FALSE,output[[#This Row],[scenario]:[process_class]])","v":"PTX-BusinessOpportunityAnalyzer-1.0.9,DEU,Hydrogen (AEL),ARG-CHA,COST-CAPEX,Carbon"},"PTX-BusinessOpportunityAnalyzer-1.0.9",{"$f":"sel_country_code","v":"DEU"},"Hydrogen (AEL)",{"$f":"_calc!$B$588","v":"ARG-CHA"},{"$f":"_calc!$BO$582","v":"COST-CAPEX"},{"$f":"_calc!$BU$1","v":"Carbon"},{"$f":"_calc!$BU$588","v":0}]
[{"$f":"_xlfn.TEXTJOIN(\",\",FALSE,output[[#This Row],[scenario]:[process_class]])","v":"PTX-BusinessOpportunityAnalyzer-1.0.9,DEU,Hydrogen (AEL),ARG-CHA,COST-CAPEX,Derivate production"},"PTX-BusinessOpportunityAnalyzer-1.0.9",{"$f":"sel_country_code","v":"DEU"},"Hydrogen (AEL)",{"$f":"_calc!$B$588","v":"ARG-CHA"},{"$f":"_calc!$BO$582","v":"COST-CAPEX"},{"$f":"_calc!$BV$1","v":"Derivate production"},{"$f":"_calc!$BV$588","v":0}]
[{"$f":"_xlfn.TEXTJOIN(\",\",FALSE,output[[#This Row],[scenario]:[process_class]])","v":"PTX-BusinessOpportunityAnalyzer-1.0.9,DEU,Hydrogen (AEL),ARG-CHA,COST-CAPEX,Heat"},"PTX-BusinessOpportunityAnalyzer-1.0.9",{"$f":"sel_country_code","v":"DEU"},"Hydrogen (AEL)",{"$f":"_calc!$B$588","v":"ARG-CHA"},{"$f":"_calc!$BO$582","v":"COST-CAPEX"},{"$f":"_calc!$BW$1","v":"Heat"},{"$f":"_calc!$BW$588","v":0}]
[{"$f":"_xlfn.TEXTJOIN(\",\",FALSE,output[[#This Row],[scenario]:[process_class]])","v":"PTX-BusinessOpportunityAnalyzer-1.0.9,DEU,Hydrogen (AEL),ARG-CHA,COST-CAPEX,Electricity and H2 storage"},"PTX-BusinessOpportunityAnalyzer-1.0.9",{"$f":"sel_country_code","v":"DEU"},"Hydrogen (AEL)",{"$f":"_calc!$B$588","v":"ARG-CHA"},{"$f":"_calc!$BO$582","v":"COST-CAPEX"},{"$f":"_calc!$BX$1","v":"Electricity and H2 storage"},{"$f":"_calc!$BX$588","v":0}]
[{"$f":"_xlfn.TEXTJOIN(\",\",FALSE,output[[#This Row],[scenario]:[process_class]])","v":"PTX-BusinessOpportunityAnalyzer-1.0.9,DEU,Hydrogen (AEL),ARG-CHU,COST-CAPEX,Water"},"PTX-BusinessOpportunityAnalyzer-1.0.9",{"$f":"sel_country_code","v":"DEU"},"Hydrogen (AEL)",{"$f":"_calc!$B$589","v":"ARG-CHU"},{"$f":"_calc!$BO$582","v":"COST-CAPEX"},{"$f":"_calc!$BP$1","v":"Water"},{"$f":"_calc!$BP$589","v":0.15608335265630313}]
[{"$f":"_xlfn.TEXTJOIN(\",\",FALSE,output[[#This Row],[scenario]:[process_class]])","v":"PTX-BusinessOpportunityAnalyzer-1.0.9,DEU,Hydrogen (AEL),ARG-CHU,COST-CAPEX,Electrolysis"},"PTX-BusinessOpportunityAnalyzer-1.0.9",{"$f":"sel_country_code","v":"DEU"},"Hydrogen (AEL)",{"$f":"_calc!$B$589","v":"ARG-CHU"},{"$f":"_calc!$BO$582","v":"COST-CAPEX"},{"$f":"_calc!$BQ$1","v":"Electrolysis"},{"$f":"_calc!$BQ$589","v":21.466780018172056}]
[{"$f":"_xlfn.TEXTJOIN(\",\",FALSE,output[[#This Row],[scenario]:[process_class]])","v":"PTX-BusinessOpportunityAnalyzer-1.0.9,DEU,Hydrogen (AEL),ARG-CHU,COST-CAPEX,Electricity generation"},"PTX-BusinessOpportunityAnalyzer-1.0.9",{"$f":"sel_country_code","v":"DEU"},"Hydrogen (AEL)",{"$f":"_calc!$B$589","v":"ARG-CHU"},{"$f":"_calc!$BO$582","v":"COST-CAPEX"},{"$f":"_calc!$BR$1","v":"Electricity generation"},{"$f":"_calc!$BR$589","v":60.725497653722364}]
[{"$f":"_xlfn.TEXTJOIN(\",\",FALSE,output[[#This Row],[scenario]:[process_class]])","v":"PTX-BusinessOpportunityAnalyzer-1.0.9,DEU,Hydrogen (AEL),ARG-CHU,COST-CAPEX,Transportation (Pipeline)"},"PTX-BusinessOpportunityAnalyzer-1.0.9",{"$f":"sel_country_code","v":"DEU"},"Hydrogen (AEL)",{"$f":"_calc!$B$589","v":"ARG-CHU"},{"$f":"_calc!$BO$582","v":"COST-CAPEX"},{"$f":"_calc!$BS$1","v":"Transportation (Pipeline)"},{"$f":"_calc!$BS$589","v":0}]
[{"$f":"_xlfn.TEXTJOIN(\",\",FALSE,output[[#This Row],[scenario]:[process_class]])","v":"PTX-BusinessOpportunityAnalyzer-1.0.9,DEU,Hydrogen (AEL),ARG-CHU,COST-CAPEX,Transportation (Ship)"},"PTX-BusinessOpportunityAnalyzer-1.0.9",{"$f":"sel_country_code","v":"DEU"},"Hydrogen (AEL)",{"$f":"_calc!$B$589","v":"ARG-CHU"},{"$f":"_calc!$BO$582","v":"COST-CAPEX"},{"$f":"_calc!$BT$1","v":"Transportation (Ship)"},{"$f":"_calc!$BT$589","v":54.417528435463268}]
[{"$f":"_xlfn.TEXTJOIN(\",\",FALSE,output[[#This Row],[scenario]:[process_class]])","v":"PTX-BusinessOpportunityAnalyzer-1.0.9,DEU,Hydrogen (AEL),ARG-CHU,COST-CAPEX,Carbon"},"PTX-BusinessOpportunityAnalyzer-1.0.9",{"$f":"sel_country_code","v":"DEU"},"Hydrogen (AEL)",{"$f":"_calc!$B$589","v":"ARG-CHU"},{"$f":"_calc!$BO$582","v":"COST-CAPEX"},{"$f":"_calc!$BU$1","v":"Carbon"},{"$f":"_calc!$BU$589","v":0}]
[{"$f":"_xlfn.TEXTJOIN(\",\",FALSE,output[[#This Row],[scenario]:[process_class]])","v":"PTX-BusinessOpportunityAnalyzer-1.0.9,DEU,Hydrogen (AEL),ARG-CHU,COST-CAPEX,Derivate production"},"PTX-BusinessOpportunityAnalyzer-1.0.9",{"$f":"sel_country_code","v":"DEU"},"Hydrogen (AEL)",{"$f":"_calc!$B$589","v":"ARG-CHU"},{"$f":"_calc!$BO$582","v":"COST-CAPEX"},{"$f":"_calc!$BV$1","v":"Derivate production"},{"$f":"_calc!$BV$589","v":0}]
[{"$f":"_xlfn.TEXTJOIN(\",\",FALSE,output[[#This Row],[scenario]:[process_class]])","v":"PTX-BusinessOpportunityAnalyzer-1.0.9,DEU,Hydrogen (AEL),ARG-CHU,COST-CAPEX,Heat"},"PTX-BusinessOpportunityAnalyzer-1.0.9",{"$f":"sel_country_code","v":"DEU"},"Hydrogen (AEL)",{"$f":"_calc!$B$589","v":"ARG-CHU"},{"$f":"_calc!$BO$582","v":"COST-CAPEX"},{"$f":"_calc!$BW$1","v":"Heat"},{"$f":"_calc!$BW$589","v":0}]
[{"$f":"_xlfn.TEXTJOIN(\",\",FALSE,output[[#This Row],[scenario]:[process_class]])","v":"PTX-BusinessOpportunityAnalyzer-1.0.9,DEU,Hydrogen (AEL),ARG-CHU,COST-CAPEX,Electricity and H2 storage"},"PTX-BusinessOpportunityAnalyzer-1.0.9",{"$f":"sel_country_code","v":"DEU"},"Hydrogen (AEL)",{"$f":"_calc!$B$589","v":"ARG-CHU"},{"$f":"_calc!$BO$582","v":"COST-CAPEX"},{"$f":"_calc!$BX$1","v":"Electricity and H2 storage"},{"$f":"_calc!$BX$589","v":0}]
[{"$f":"_xlfn.TEXTJOIN(\",\",FALSE,output[[#This Row],[scenario]:[process_class]])","v":"PTX-BusinessOpportunityAnalyzer-1.0.9,DEU,Hydrogen (AEL),ARG-COR,COST-CAPEX,Water"},"PTX-BusinessOpportunityAnalyzer-1.0.9",{"$f":"sel_country_code","v":"DEU"},"Hydrogen (AEL)",{"$f":"_calc!$B$590","v":"ARG-COR"},{"$f":"_calc!$BO$582","v":"COST-CAPEX"},{"$f":"_calc!$BP$1","v":"Water"},{"$f":"_calc!$BP$590","v":0.15608335265630313}]
[{"$f":"_xlfn.TEXTJOIN(\",\",FALSE,output[[#This Row],[scenario]:[process_class]])","v":"PTX-BusinessOpportunityAnalyzer-1.0.9,DEU,Hydrogen (AEL),ARG-COR,COST-CAPEX,Electrolysis"},{"$f":"output_scenario_name","v":"PTX-BusinessOpportunityAnalyzer-1.0.9"},{"$f":"sel_country_code","v":"DEU"},{"$f":"sel_chain","v":"Hydrogen (AEL)"},{"$f":"_calc!$B$590","v":"ARG-COR"},{"$f":"_calc!$BO$582","v":"COST-CAPEX"},{"$f":"_calc!$BQ$1","v":"Electrolysis"},{"$f":"_calc!$BQ$590","v":33.429623392749036}]
[{"$f":"_xlfn.TEXTJOIN(\",\",FALSE,output[[#This Row],[scenario]:[process_class]])","v":"PTX-BusinessOpportunityAnalyzer-1.0.9,DEU,Hydrogen (AEL),ARG-COR,COST-CAPEX,Electricity generation"},"PTX-BusinessOpportunityAnalyzer-1.0.9",{"$f":"sel_country_code","v":"DEU"},"Hydrogen (AEL)",{"$f":"_calc!$B$590","v":"ARG-COR"},{"$f":"_calc!$BO$582","v":"COST-CAPEX"},{"$f":"_calc!$BR$1","v":"Electricity generation"},{"$f":"_calc!$BR$590","v":90.310302719272315}]
[{"$f":"_xlfn.TEXTJOIN(\",\",FALSE,output[[#This Row],[scenario]:[process_class]])","v":"PTX-BusinessOpportunityAnalyzer-1.0.9,DEU,Hydrogen (AEL),ARG-COR,COST-CAPEX,Transportation (Pipeline)"},"PTX-BusinessOpportunityAnalyzer-1.0.9",{"$f":"sel_country_code","v":"DEU"},"Hydrogen (AEL)",{"$f":"_calc!$B$590","v":"ARG-COR"},{"$f":"_calc!$BO$582","v":"COST-CAPEX"},{"$f":"_calc!$BS$1","v":"Transportation (Pipeline)"},{"$f":"_calc!$BS$590","v":0}]
[{"$f":"_xlfn.TEXTJOIN(\",\",FALSE,output[[#This Row],[scenario]:[process_class]])","v":"PTX-BusinessOpportunityAnalyzer-1.0.9,DEU,Hydrogen (AEL),ARG-COR,COST-CAPEX,Transportation (Ship)"},"PTX-BusinessOpportunityAnalyzer-1.0.9",{"$f":"sel_country_code","v":"DEU"},"Hydrogen (AEL)",{"$f":"_calc!$B$590","v":"ARG-COR"},{"$f":"_calc!$BO$582","v":"COST-CAPEX"},{"$f":"_calc!$BT$1","v":"Transportation (Ship)"},{"$f":"_calc!$BT$590","v":81.973117914848061}]
[{"$f":"_xlfn.TEXTJOIN(\",\",FALSE,output[[#This Row],[scenario]:[process_class]])","v":"PTX-BusinessOpportunityAnalyzer-1.0.9,DEU,Hydrogen (AEL),ARG-COR,COST-CAPEX,Carbon"},"PTX-BusinessOpportunityAnalyzer-1.0.9",{"$f":"sel_country_code","v":"DEU"},"Hydrogen (AEL)",{"$f":"_calc!$B$590","v":"ARG-COR"},{"$f":"_calc!$BO$582","v":"COST-CAPEX"},{"$f":"_calc!$BU$1","v":"Carbon"},{"$f":"_calc!$BU$590","v":0}]
[{"$f":"_xlfn.TEXTJOIN(\",\",FALSE,output[[#This Row],[scenario]:[process_class]])","v":"PTX-BusinessOpportunityAnalyzer-1.0.9,DEU,Hydrogen (AEL),ARG-COR,COST-CAPEX,Derivate production"},"PTX-BusinessOpportunityAnalyzer-1.0.9",{"$f":"sel_country_code","v":"DEU"},"Hydrogen (AEL)",{"$f":"_calc!$B$590","v":"ARG-COR"},{"$f":"_calc!$BO$582","v":"COST-CAPEX"},{"$f":"_calc!$BV$1","v":"Derivate production"},{"$f":"_calc!$BV$590","v":0}]
[{"$f":"_xlfn.TEXTJOIN(\",\",FALSE,output[[#This Row],[scenario]:[process_class]])","v":"PTX-BusinessOpportunityAnalyzer-1.0.9,DEU,Hydrogen (AEL),ARG-COR,COST-CAPEX,Heat"},"PTX-BusinessOpportunityAnalyzer-1.0.9",{"$f":"sel_country_code","v":"DEU"},"Hydrogen (AEL)",{"$f":"_calc!$B$590","v":"ARG-COR"},{"$f":"_calc!$BO$582","v":"COST-CAPEX"},{"$f":"_calc!$BW$1","v":"Heat"},{"$f":"_calc!$BW$590","v":0}]
[{"$f":"_xlfn.TEXTJOIN(\",\",FALSE,output[[#This Row],[scenario]:[process_class]])","v":"PTX-BusinessOpportunityAnalyzer-1.0.9,DEU,Hydrogen (AEL),ARG-COR,COST-CAPEX,Electricity and H2 storage"},"PTX-BusinessOpportunityAnalyzer-1.0.9",{"$f":"sel_country_code","v":"DEU"},"Hydrogen (AEL)",{"$f":"_calc!$B$590","v":"ARG-COR"},{"$f":"_calc!$BO$582","v":"COST-CAPEX"},{"$f":"_calc!$BX$1","v":"Electricity and H2 storage"},{"$f":"_calc!$BX$590","v":0}]
[{"$f":"_xlfn.TEXTJOIN(\",\",FALSE,output[[#This Row],[scenario]:[process_class]])","v":"PTX-BusinessOpportunityAnalyzer-1.0.9,DEU,Hydrogen (AEL),ARG-CRB,COST-CAPEX,Water"},"PTX-BusinessOpportunityAnalyzer-1.0.9",{"$f":"sel_country_code","v":"DEU"},"Hydrogen (AEL)",{"$f":"_calc!$B$591","v":"ARG-CRB"},{"$f":"_calc!$BO$582","v":"COST-CAPEX"},{"$f":"_calc!$BP$1","v":"Water"},{"$f":"_calc!$BP$591","v":0.15608335265630313}]
[{"$f":"_xlfn.TEXTJOIN(\",\",FALSE,output[[#This Row],[scenario]:[process_class]])","v":"PTX-BusinessOpportunityAnalyzer-1.0.9,DEU,Hydrogen (AEL),ARG-CRB,COST-CAPEX,Electrolysis"},"PTX-BusinessOpportunityAnalyzer-1.0.9",{"$f":"sel_country_code","v":"DEU"},"Hydrogen (AEL)",{"$f":"_calc!$B$591","v":"ARG-CRB"},{"$f":"_calc!$BO$582","v":"COST-CAPEX"},{"$f":"_calc!$BQ$1","v":"Electrolysis"},{"$f":"_calc!$BQ$591","v":35.700176279581221}]
[{"$f":"_xlfn.TEXTJOIN(\",\",FALSE,output[[#This Row],[scenario]:[process_class]])","v":"PTX-BusinessOpportunityAnalyzer-1.0.9,DEU,Hydrogen (AEL),ARG-CRB,COST-CAPEX,Electricity generation"},"PTX-BusinessOpportunityAnalyzer-1.0.9",{"$f":"sel_country_code","v":"DEU"},"Hydrogen (AEL)",{"$f":"_calc!$B$591","v":"ARG-CRB"},{"$f":"_calc!$BO$582","v":"COST-CAPEX"},{"$f":"_calc!$BR$1","v":"Electricity generation"},{"$f":"_calc!$BR$591","v":95.627388617757106}]
[{"$f":"_xlfn.TEXTJOIN(\",\",FALSE,output[[#This Row],[scenario]:[process_class]])","v":"PTX-BusinessOpportunityAnalyzer-1.0.9,DEU,Hydrogen (AEL),ARG-CRB,COST-CAPEX,Transportation (Pipeline)"},"PTX-BusinessOpportunityAnalyzer-1.0.9",{"$f":"sel_country_code","v":"DEU"},"Hydrogen (AEL)",{"$f":"_calc!$B$591","v":"ARG-CRB"},{"$f":"_calc!$BO$582","v":"COST-CAPEX"},{"$f":"_calc!$BS$1","v":"Transportation (Pipeline)"},{"$f":"_calc!$BS$591","v":0}]
[{"$f":"_xlfn.TEXTJOIN(\",\",FALSE,output[[#This Row],[scenario]:[process_class]])","v":"PTX-BusinessOpportunityAnalyzer-1.0.9,DEU,Hydrogen (AEL),ARG-CRB,COST-CAPEX,Transportation (Ship)"},"PTX-BusinessOpportunityAnalyzer-1.0.9",{"$f":"sel_country_code","v":"DEU"},"Hydrogen (AEL)",{"$f":"_calc!$B$591","v":"ARG-CRB"},{"$f":"_calc!$BO$582","v":"COST-CAPEX"},{"$f":"_calc!$BT$1","v":"Transportation (Ship)"},{"$f":"_calc!$BT$591","v":87.3915488002975}]
[{"$f":"_xlfn.TEXTJOIN(\",\",FALSE,output[[#This Row],[scenario]:[process_class]])","v":"PTX-BusinessOpportunityAnalyzer-1.0.9,DEU,Hydrogen (AEL),ARG-CRB,COST-CAPEX,Carbon"},"PTX-BusinessOpportunityAnalyzer-1.0.9",{"$f":"sel_country_code","v":"DEU"},"Hydrogen (AEL)",{"$f":"_calc!$B$591","v":"ARG-CRB"},{"$f":"_calc!$BO$582","v":"COST-CAPEX"},{"$f":"_calc!$BU$1","v":"Carbon"},{"$f":"_calc!$BU$591","v":0}]
[{"$f":"_xlfn.TEXTJOIN(\",\",FALSE,output[[#This Row],[scenario]:[process_class]])","v":"PTX-BusinessOpportunityAnalyzer-1.0.9,DEU,Hydrogen (AEL),ARG-CRB,COST-CAPEX,Derivate production"},"PTX-BusinessOpportunityAnalyzer-1.0.9",{"$f":"sel_country_code","v":"DEU"},"Hydrogen (AEL)",{"$f":"_calc!$B$591","v":"ARG-CRB"},{"$f":"_calc!$BO$582","v":"COST-CAPEX"},{"$f":"_calc!$BV$1","v":"Derivate production"},{"$f":"_calc!$BV$591","v":0}]
[{"$f":"_xlfn.TEXTJOIN(\",\",FALSE,output[[#This Row],[scenario]:[process_class]])","v":"PTX-BusinessOpportunityAnalyzer-1.0.9,DEU,Hydrogen (AEL),ARG-CRB,COST-CAPEX,Heat"},"PTX-BusinessOpportunityAnalyzer-1.0.9",{"$f":"sel_country_code","v":"DEU"},"Hydrogen (AEL)",{"$f":"_calc!$B$591","v":"ARG-CRB"},{"$f":"_calc!$BO$582","v":"COST-CAPEX"},{"$f":"_calc!$BW$1","v":"Heat"},{"$f":"_calc!$BW$591","v":0}]
[{"$f":"_xlfn.TEXTJOIN(\",\",FALSE,output[[#This Row],[scenario]:[process_class]])","v":"PTX-BusinessOpportunityAnalyzer-1.0.9,DEU,Hydrogen (AEL),ARG-CRB,COST-CAPEX,Electricity and H2 storage"},"PTX-BusinessOpportunityAnalyzer-1.0.9",{"$f":"sel_country_code","v":"DEU"},"Hydrogen (AEL)",{"$f":"_calc!$B$591","v":"ARG-CRB"},{"$f":"_calc!$BO$582","v":"COST-CAPEX"},{"$f":"_calc!$BX$1","v":"Electricity and H2 storage"},{"$f":"_calc!$BX$591","v":0}]
[{"$f":"_xlfn.TEXTJOIN(\",\",FALSE,output[[#This Row],[scenario]:[process_class]])","v":"PTX-BusinessOpportunityAnalyzer-1.0.9,DEU,Hydrogen (AEL),ARG-CRU,COST-CAPEX,Water"},"PTX-BusinessOpportunityAnalyzer-1.0.9",{"$f":"sel_country_code","v":"DEU"},"Hydrogen (AEL)",{"$f":"_calc!$B$592","v":"ARG-CRU"},{"$f":"_calc!$BO$582","v":"COST-CAPEX"},{"$f":"_calc!$BP$1","v":"Water"},{"$f":"_calc!$BP$592","v":0.15608335265630313}]
[{"$f":"_xlfn.TEXTJOIN(\",\",FALSE,output[[#This Row],[scenario]:[process_class]])","v":"PTX-BusinessOpportunityAnalyzer-1.0.9,DEU,Hydrogen (AEL),ARG-CRU,COST-CAPEX,Electrolysis"},"PTX-BusinessOpportunityAnalyzer-1.0.9",{"$f":"sel_country_code","v":"DEU"},"Hydrogen (AEL)",{"$f":"_calc!$B$592","v":"ARG-CRU"},{"$f":"_calc!$BO$582","v":"COST-CAPEX"},{"$f":"_calc!$BQ$1","v":"Electrolysis"},{"$f":"_calc!$BQ$592","v":21.543888044575734}]
[{"$f":"_xlfn.TEXTJOIN(\",\",FALSE,output[[#This Row],[scenario]:[process_class]])","v":"PTX-BusinessOpportunityAnalyzer-1.0.9,DEU,Hydrogen (AEL),ARG-CRU,COST-CAPEX,Electricity generation"},"PTX-BusinessOpportunityAnalyzer-1.0.9",{"$f":"sel_country_code","v":"DEU"},"Hydrogen (AEL)",{"$f":"_calc!$B$592","v":"ARG-CRU"},{"$f":"_calc!$BO$582","v":"COST-CAPEX"},{"$f":"_calc!$BR$1","v":"Electricity generation"},{"$f":"_calc!$BR$592","v":60.925115952288017}]
[{"$f":"_xlfn.TEXTJOIN(\",\",FALSE,output[[#This Row],[scenario]:[process_class]])","v":"PTX-BusinessOpportunityAnalyzer-1.0.9,DEU,Hydrogen (AEL),ARG-CRU,COST-CAPEX,Transportation (Pipeline)"},"PTX-BusinessOpportunityAnalyzer-1.0.9",{"$f":"sel_country_code","v":"DEU"},"Hydrogen (AEL)",{"$f":"_calc!$B$592","v":"ARG-CRU"},{"$f":"_calc!$BO$582","v":"COST-CAPEX"},{"$f":"_calc!$BS$1","v":"Transportation (Pipeline)"},{"$f":"_calc!$BS$592","v":0}]
[{"$f":"_xlfn.TEXTJOIN(\",\",FALSE,output[[#This Row],[scenario]:[process_class]])","v":"PTX-BusinessOpportunityAnalyzer-1.0.9,DEU,Hydrogen (AEL),ARG-CRU,COST-CAPEX,Transportation (Ship)"},"PTX-BusinessOpportunityAnalyzer-1.0.9",{"$f":"sel_country_code","v":"DEU"},"Hydrogen (AEL)",{"$f":"_calc!$B$592","v":"ARG-CRU"},{"$f":"_calc!$BO$582","v":"COST-CAPEX"},{"$f":"_calc!$BT$1","v":"Transportation (Ship)"},{"$f":"_calc!$BT$592","v":54.589984361148382}]
[{"$f":"_xlfn.TEXTJOIN(\",\",FALSE,output[[#This Row],[scenario]:[process_class]])","v":"PTX-BusinessOpportunityAnalyzer-1.0.9,DEU,Hydrogen (AEL),ARG-CRU,COST-CAPEX,Carbon"},"PTX-BusinessOpportunityAnalyzer-1.0.9",{"$f":"sel_country_code","v":"DEU"},"Hydrogen (AEL)",{"$f":"_calc!$B$592","v":"ARG-CRU"},{"$f":"_calc!$BO$582","v":"COST-CAPEX"},{"$f":"_calc!$BU$1","v":"Carbon"},{"$f":"_calc!$BU$592","v":0}]
[{"$f":"_xlfn.TEXTJOIN(\",\",FALSE,output[[#This Row],[scenario]:[process_class]])","v":"PTX-BusinessOpportunityAnalyzer-1.0.9,DEU,Hydrogen (AEL),ARG-CRU,COST-CAPEX,Derivate production"},"PTX-BusinessOpportunityAnalyzer-1.0.9",{"$f":"sel_country_code","v":"DEU"},"Hydrogen (AEL)",{"$f":"_calc!$B$592","v":"ARG-CRU"},{"$f":"_calc!$BO$582","v":"COST-CAPEX"},{"$f":"_calc!$BV$1","v":"Derivate production"},{"$f":"_calc!$BV$592","v":0}]
[{"$f":"_xlfn.TEXTJOIN(\",\",FALSE,output[[#This Row],[scenario]:[process_class]])","v":"PTX-BusinessOpportunityAnalyzer-1.0.9,DEU,Hydrogen (AEL),ARG-CRU,COST-CAPEX,Heat"},"PTX-BusinessOpportunityAnalyzer-1.0.9",{"$f":"sel_country_code","v":"DEU"},"Hydrogen (AEL)",{"$f":"_calc!$B$592","v":"ARG-CRU"},{"$f":"_calc!$BO$582","v":"COST-CAPEX"},{"$f":"_calc!$BW$1","v":"Heat"},{"$f":"_calc!$BW$592","v":0}]
[{"$f":"_xlfn.TEXTJOIN(\",\",FALSE,output[[#This Row],[scenario]:[process_class]])","v":"PTX-BusinessOpportunityAnalyzer-1.0.9,DEU,Hydrogen (AEL),ARG-CRU,COST-CAPEX,Electricity and H2 storage"},"PTX-BusinessOpportunityAnalyzer-1.0.9",{"$f":"sel_country_code","v":"DEU"},"Hydrogen (AEL)",{"$f":"_calc!$B$592","v":"ARG-CRU"},{"$f":"_calc!$BO$582","v":"COST-CAPEX"},{"$f":"_calc!$BX$1","v":"Electricity and H2 storage"},{"$f":"_calc!$BX$592","v":0}]
[{"$f":"_xlfn.TEXTJOIN(\",\",FALSE,output[[#This Row],[scenario]:[process_class]])","v":"PTX-BusinessOpportunityAnalyzer-1.0.9,DEU,Hydrogen (AEL),ARG-EST,COST-CAPEX,Water"},"PTX-BusinessOpportunityAnalyzer-1.0.9",{"$f":"sel_country_code","v":"DEU"},"Hydrogen (AEL)",{"$f":"_calc!$B$593","v":"ARG-EST"},{"$f":"_calc!$BO$582","v":"COST-CAPEX"},{"$f":"_calc!$BP$1","v":"Water"},{"$f":"_calc!$BP$593","v":0.15608335265630313}]
[{"$f":"_xlfn.TEXTJOIN(\",\",FALSE,output[[#This Row],[scenario]:[process_class]])","v":"PTX-BusinessOpportunityAnalyzer-1.0.9,DEU,Hydrogen (AEL),ARG-EST,COST-CAPEX,Electrolysis"},"PTX-BusinessOpportunityAnalyzer-1.0.9",{"$f":"sel_country_code","v":"DEU"},"Hydrogen (AEL)",{"$f":"_calc!$B$593","v":"ARG-EST"},{"$f":"_calc!$BO$582","v":"COST-CAPEX"},{"$f":"_calc!$BQ$1","v":"Electrolysis"},{"$f":"_calc!$BQ$593","v":28.895428717308775}]
[{"$f":"_xlfn.TEXTJOIN(\",\",FALSE,output[[#This Row],[scenario]:[process_class]])","v":"PTX-BusinessOpportunityAnalyzer-1.0.9,DEU,Hydrogen (AEL),ARG-EST,COST-CAPEX,Electricity generation"},"PTX-BusinessOpportunityAnalyzer-1.0.9",{"$f":"sel_country_code","v":"DEU"},"Hydrogen (AEL)",{"$f":"_calc!$B$593","v":"ARG-EST"},{"$f":"_calc!$BO$582","v":"COST-CAPEX"},{"$f":"_calc!$BR$1","v":"Electricity generation"},{"$f":"_calc!$BR$593","v":79.415785830398221}]
[{"$f":"_xlfn.TEXTJOIN(\",\",FALSE,output[[#This Row],[scenario]:[process_class]])","v":"PTX-BusinessOpportunityAnalyzer-1.0.9,DEU,Hydrogen (AEL),ARG-EST,COST-CAPEX,Transportation (Pipeline)"},"PTX-BusinessOpportunityAnalyzer-1.0.9",{"$f":"sel_country_code","v":"DEU"},"Hydrogen (AEL)",{"$f":"_calc!$B$593","v":"ARG-EST"},{"$f":"_calc!$BO$582","v":"COST-CAPEX"},{"$f":"_calc!$BS$1","v":"Transportation (Pipeline)"},{"$f":"_calc!$BS$593","v":0}]
[{"$f":"_xlfn.TEXTJOIN(\",\",FALSE,output[[#This Row],[scenario]:[process_class]])","v":"PTX-BusinessOpportunityAnalyzer-1.0.9,DEU,Hydrogen (AEL),ARG-EST,COST-CAPEX,Transportation (Ship)"},"PTX-BusinessOpportunityAnalyzer-1.0.9",{"$f":"sel_country_code","v":"DEU"},"Hydrogen (AEL)",{"$f":"_calc!$B$593","v":"ARG-EST"},{"$f":"_calc!$BO$582","v":"COST-CAPEX"},{"$f":"_calc!$BT$1","v":"Transportation (Ship)"},{"$f":"_calc!$BT$593","v":71.335909044565085}]
[{"$f":"_xlfn.TEXTJOIN(\",\",FALSE,output[[#This Row],[scenario]:[process_class]])","v":"PTX-BusinessOpportunityAnalyzer-1.0.9,DEU,Hydrogen (AEL),ARG-EST,COST-CAPEX,Carbon"},"PTX-BusinessOpportunityAnalyzer-1.0.9",{"$f":"sel_country_code","v":"DEU"},"Hydrogen (AEL)",{"$f":"_calc!$B$593","v":"ARG-EST"},{"$f":"_calc!$BO$582","v":"COST-CAPEX"},{"$f":"_calc!$BU$1","v":"Carbon"},{"$f":"_calc!$BU$593","v":0}]
[{"$f":"_xlfn.TEXTJOIN(\",\",FALSE,output[[#This Row],[scenario]:[process_class]])","v":"PTX-BusinessOpportunityAnalyzer-1.0.9,DEU,Hydrogen (AEL),ARG-EST,COST-CAPEX,Derivate production"},"PTX-BusinessOpportunityAnalyzer-1.0.9",{"$f":"sel_country_code","v":"DEU"},"Hydrogen (AEL)",{"$f":"_calc!$B$593","v":"ARG-EST"},{"$f":"_calc!$BO$582","v":"COST-CAPEX"},{"$f":"_calc!$BV$1","v":"Derivate production"},{"$f":"_calc!$BV$593","v":0}]
[{"$f":"_xlfn.TEXTJOIN(\",\",FALSE,output[[#This Row],[scenario]:[process_class]])","v":"PTX-BusinessOpportunityAnalyzer-1.0.9,DEU,Hydrogen (AEL),ARG-EST,COST-CAPEX,Heat"},"PTX-BusinessOpportunityAnalyzer-1.0.9",{"$f":"sel_country_code","v":"DEU"},"Hydrogen (AEL)",{"$f":"_calc!$B$593","v":"ARG-EST"},{"$f":"_calc!$BO$582","v":"COST-CAPEX"},{"$f":"_calc!$BW$1","v":"Heat"},{"$f":"_calc!$BW$593","v":0}]
[{"$f":"_xlfn.TEXTJOIN(\",\",FALSE,output[[#This Row],[scenario]:[process_class]])","v":"PTX-BusinessOpportunityAnalyzer-1.0.9,DEU,Hydrogen (AEL),ARG-EST,COST-CAPEX,Electricity and H2 storage"},"PTX-BusinessOpportunityAnalyzer-1.0.9",{"$f":"sel_country_code","v":"DEU"},"Hydrogen (AEL)",{"$f":"_calc!$B$593","v":"ARG-EST"},{"$f":"_calc!$BO$582","v":"COST-CAPEX"},{"$f":"_calc!$BX$1","v":"Electricity and H2 storage"},{"$f":"_calc!$BX$593","v":0}]
[{"$f":"_xlfn.TEXTJOIN(\",\",FALSE,output[[#This Row],[scenario]:[process_class]])","v":"PTX-BusinessOpportunityAnalyzer-1.0.9,DEU,Hydrogen (AEL),ARG-FOR,COST-CAPEX,Water"},"PTX-BusinessOpportunityAnalyzer-1.0.9",{"$f":"sel_country_code","v":"DEU"},"Hydrogen (AEL)",{"$f":"_calc!$B$594","v":"ARG-FOR"},{"$f":"_calc!$BO$582","v":"COST-CAPEX"},{"$f":"_calc!$BP$1","v":"Water"},{"$f":"_calc!$BP$594","v":0.15608335265630313}]
[{"$f":"_xlfn.TEXTJOIN(\",\",FALSE,output[[#This Row],[scenario]:[process_class]])","v":"PTX-BusinessOpportunityAnalyzer-1.0.9,DEU,Hydrogen (AEL),ARG-FOR,COST-CAPEX,Electrolysis"},"PTX-BusinessOpportunityAnalyzer-1.0.9",{"$f":"sel_country_code","v":"DEU"},"Hydrogen (AEL)",{"$f":"_calc!$B$594","v":"ARG-FOR"},{"$f":"_calc!$BO$582","v":"COST-CAPEX"},{"$f":"_calc!$BQ$1","v":"Electrolysis"},{"$f":"_calc!$BQ$594","v":28.496002648609121}]
[{"$f":"_xlfn.TEXTJOIN(\",\",FALSE,output[[#This Row],[scenario]:[process_class]])","v":"PTX-BusinessOpportunityAnalyzer-1.0.9,DEU,Hydrogen (AEL),ARG-FOR,COST-CAPEX,Electricity generation"},"PTX-BusinessOpportunityAnalyzer-1.0.9",{"$f":"sel_country_code","v":"DEU"},"Hydrogen (AEL)",{"$f":"_calc!$B$594","v":"ARG-FOR"},{"$f":"_calc!$BO$582","v":"COST-CAPEX"},{"$f":"_calc!$BR$1","v":"Electricity generation"},{"$f":"_calc!$BR$594","v":78.437917195659637}]
[{"$f":"_xlfn.TEXTJOIN(\",\",FALSE,output[[#This Row],[scenario]:[process_class]])","v":"PTX-BusinessOpportunityAnalyzer-1.0.9,DEU,Hydrogen (AEL),ARG-FOR,COST-CAPEX,Transportation (Pipeline)"},"PTX-BusinessOpportunityAnalyzer-1.0.9",{"$f":"sel_country_code","v":"DEU"},"Hydrogen (AEL)",{"$f":"_calc!$B$594","v":"ARG-FOR"},{"$f":"_calc!$BO$582","v":"COST-CAPEX"},{"$f":"_calc!$BS$1","v":"Transportation (Pipeline)"},{"$f":"_calc!$BS$594","v":0}]
[{"$f":"_xlfn.TEXTJOIN(\",\",FALSE,output[[#This Row],[scenario]:[process_class]])","v":"PTX-BusinessOpportunityAnalyzer-1.0.9,DEU,Hydrogen (AEL),ARG-FOR,COST-CAPEX,Transportation (Ship)"},"PTX-BusinessOpportunityAnalyzer-1.0.9",{"$f":"sel_country_code","v":"DEU"},"Hydrogen (AEL)",{"$f":"_calc!$B$594","v":"ARG-FOR"},{"$f":"_calc!$BO$582","v":"COST-CAPEX"},{"$f":"_calc!$BT$1","v":"Transportation (Ship)"},{"$f":"_calc!$BT$594","v":70.41034535626369}]
[{"$f":"_xlfn.TEXTJOIN(\",\",FALSE,output[[#This Row],[scenario]:[process_class]])","v":"PTX-BusinessOpportunityAnalyzer-1.0.9,DEU,Hydrogen (AEL),ARG-FOR,COST-CAPEX,Carbon"},"PTX-BusinessOpportunityAnalyzer-1.0.9",{"$f":"sel_country_code","v":"DEU"},"Hydrogen (AEL)",{"$f":"_calc!$B$594","v":"ARG-FOR"},{"$f":"_calc!$BO$582","v":"COST-CAPEX"},{"$f":"_calc!$BU$1","v":"Carbon"},{"$f":"_calc!$BU$594","v":0}]
[{"$f":"_xlfn.TEXTJOIN(\",\",FALSE,output[[#This Row],[scenario]:[process_class]])","v":"PTX-BusinessOpportunityAnalyzer-1.0.9,DEU,Hydrogen (AEL),ARG-FOR,COST-CAPEX,Derivate production"},"PTX-BusinessOpportunityAnalyzer-1.0.9",{"$f":"sel_country_code","v":"DEU"},"Hydrogen (AEL)",{"$f":"_calc!$B$594","v":"ARG-FOR"},{"$f":"_calc!$BO$582","v":"COST-CAPEX"},{"$f":"_calc!$BV$1","v":"Derivate production"},{"$f":"_calc!$BV$594","v":0}]
[{"$f":"_xlfn.TEXTJOIN(\",\",FALSE,output[[#This Row],[scenario]:[process_class]])","v":"PTX-BusinessOpportunityAnalyzer-1.0.9,DEU,Hydrogen (AEL),ARG-FOR,COST-CAPEX,Heat"},"PTX-BusinessOpportunityAnalyzer-1.0.9",{"$f":"sel_country_code","v":"DEU"},"Hydrogen (AEL)",{"$f":"_calc!$B$594","v":"ARG-FOR"},{"$f":"_calc!$BO$582","v":"COST-CAPEX"},{"$f":"_calc!$BW$1","v":"Heat"},{"$f":"_calc!$BW$594","v":0}]
[{"$f":"_xlfn.TEXTJOIN(\",\",FALSE,output[[#This Row],[scenario]:[process_class]])","v":"PTX-BusinessOpportunityAnalyzer-1.0.9,DEU,Hydrogen (AEL),ARG-FOR,COST-CAPEX,Electricity and H2 storage"},"PTX-BusinessOpportunityAnalyzer-1.0.9",{"$f":"sel_country_code","v":"DEU"},"Hydrogen (AEL)",{"$f":"_calc!$B$594","v":"ARG-FOR"},{"$f":"_calc!$BO$582","v":"COST-CAPEX"},{"$f":"_calc!$BX$1","v":"Electricity and H2 storage"},{"$f":"_calc!$BX$594","v":0}]
[{"$f":"_xlfn.TEXTJOIN(\",\",FALSE,output[[#This Row],[scenario]:[process_class]])","v":"PTX-BusinessOpportunityAnalyzer-1.0.9,DEU,Hydrogen (AEL),ARG-FUE,COST-CAPEX,Water"},"PTX-BusinessOpportunityAnalyzer-1.0.9",{"$f":"sel_country_code","v":"DEU"},"Hydrogen (AEL)",{"$f":"_calc!$B$595","v":"ARG-FUE"},{"$f":"_calc!$BO$582","v":"COST-CAPEX"},{"$f":"_calc!$BP$1","v":"Water"},{"$f":"_calc!$BP$595","v":0.15608335265630313}]
[{"$f":"_xlfn.TEXTJOIN(\",\",FALSE,output[[#This Row],[scenario]:[process_class]])","v":"PTX-BusinessOpportunityAnalyzer-1.0.9,DEU,Hydrogen (AEL),ARG-FUE,COST-CAPEX,Electrolysis"},"PTX-BusinessOpportunityAnalyzer-1.0.9",{"$f":"sel_country_code","v":"DEU"},"Hydrogen (AEL)",{"$f":"_calc!$B$595","v":"ARG-FUE"},{"$f":"_calc!$BO$582","v":"COST-CAPEX"},{"$f":"_calc!$BQ$1","v":"Electrolysis"},{"$f":"_calc!$BQ$595","v":32.974919015451697}]
[{"$f":"_xlfn.TEXTJOIN(\",\",FALSE,output[[#This Row],[scenario]:[process_class]])","v":"PTX-BusinessOpportunityAnalyzer-1.0.9,DEU,Hydrogen (AEL),ARG-FUE,COST-CAPEX,Electricity generation"},"PTX-BusinessOpportunityAnalyzer-1.0.9",{"$f":"sel_country_code","v":"DEU"},"Hydrogen (AEL)",{"$f":"_calc!$B$595","v":"ARG-FUE"},{"$f":"_calc!$BO$582","v":"COST-CAPEX"},{"$f":"_calc!$BR$1","v":"Electricity generation"},{"$f":"_calc!$BR$595","v":89.234559541878582}]
[{"$f":"_xlfn.TEXTJOIN(\",\",FALSE,output[[#This Row],[scenario]:[process_class]])","v":"PTX-BusinessOpportunityAnalyzer-1.0.9,DEU,Hydrogen (AEL),ARG-FUE,COST-CAPEX,Transportation (Pipeline)"},"PTX-BusinessOpportunityAnalyzer-1.0.9",{"$f":"sel_country_code","v":"DEU"},"Hydrogen (AEL)",{"$f":"_calc!$B$595","v":"ARG-FUE"},{"$f":"_calc!$BO$582","v":"COST-CAPEX"},{"$f":"_calc!$BS$1","v":"Transportation (Pipeline)"},{"$f":"_calc!$BS$595","v":0}]
[{"$f":"_xlfn.TEXTJOIN(\",\",FALSE,output[[#This Row],[scenario]:[process_class]])","v":"PTX-BusinessOpportunityAnalyzer-1.0.9,DEU,Hydrogen (AEL),ARG-FUE,COST-CAPEX,Transportation (Ship)"},"PTX-BusinessOpportunityAnalyzer-1.0.9",{"$f":"sel_country_code","v":"DEU"},"Hydrogen (AEL)",{"$f":"_calc!$B$595","v":"ARG-FUE"},{"$f":"_calc!$BO$582","v":"COST-CAPEX"},{"$f":"_calc!$BT$1","v":"Transportation (Ship)"},{"$f":"_calc!$BT$595","v":80.89544635366066}]
[{"$f":"_xlfn.TEXTJOIN(\",\",FALSE,output[[#This Row],[scenario]:[process_class]])","v":"PTX-BusinessOpportunityAnalyzer-1.0.9,DEU,Hydrogen (AEL),ARG-FUE,COST-CAPEX,Carbon"},"PTX-BusinessOpportunityAnalyzer-1.0.9",{"$f":"sel_country_code","v":"DEU"},"Hydrogen (AEL)",{"$f":"_calc!$B$595","v":"ARG-FUE"},{"$f":"_calc!$BO$582","v":"COST-CAPEX"},{"$f":"_calc!$BU$1","v":"Carbon"},{"$f":"_calc!$BU$595","v":0}]
[{"$f":"_xlfn.TEXTJOIN(\",\",FALSE,output[[#This Row],[scenario]:[process_class]])","v":"PTX-BusinessOpportunityAnalyzer-1.0.9,DEU,Hydrogen (AEL),ARG-FUE,COST-CAPEX,Derivate production"},"PTX-BusinessOpportunityAnalyzer-1.0.9",{"$f":"sel_country_code","v":"DEU"},"Hydrogen (AEL)",{"$f":"_calc!$B$595","v":"ARG-FUE"},{"$f":"_calc!$BO$582","v":"COST-CAPEX"},{"$f":"_calc!$BV$1","v":"Derivate production"},{"$f":"_calc!$BV$595","v":0}]
[{"$f":"_xlfn.TEXTJOIN(\",\",FALSE,output[[#This Row],[scenario]:[process_class]])","v":"PTX-BusinessOpportunityAnalyzer-1.0.9,DEU,Hydrogen (AEL),ARG-FUE,COST-CAPEX,Heat"},"PTX-BusinessOpportunityAnalyzer-1.0.9",{"$f":"sel_country_code","v":"DEU"},"Hydrogen (AEL)",{"$f":"_calc!$B$595","v":"ARG-FUE"},{"$f":"_calc!$BO$582","v":"COST-CAPEX"},{"$f":"_calc!$BW$1","v":"Heat"},{"$f":"_calc!$BW$595","v":0}]
[{"$f":"_xlfn.TEXTJOIN(\",\",FALSE,output[[#This Row],[scenario]:[process_class]])","v":"PTX-BusinessOpportunityAnalyzer-1.0.9,DEU,Hydrogen (AEL),ARG-FUE,COST-CAPEX,Electricity and H2 storage"},"PTX-BusinessOpportunityAnalyzer-1.0.9",{"$f":"sel_country_code","v":"DEU"},"Hydrogen (AEL)",{"$f":"_calc!$B$595","v":"ARG-FUE"},{"$f":"_calc!$BO$582","v":"COST-CAPEX"},{"$f":"_calc!$BX$1","v":"Electricity and H2 storage"},{"$f":"_calc!$BX$595","v":0}]
[{"$f":"_xlfn.TEXTJOIN(\",\",FALSE,output[[#This Row],[scenario]:[process_class]])","v":"PTX-BusinessOpportunityAnalyzer-1.0.9,DEU,Hydrogen (AEL),ARG-JUJ,COST-CAPEX,Water"},"PTX-BusinessOpportunityAnalyzer-1.0.9",{"$f":"sel_country_code","v":"DEU"},"Hydrogen (AEL)",{"$f":"_calc!$B$596","v":"ARG-JUJ"},{"$f":"_calc!$BO$582","v":"COST-CAPEX"},{"$f":"_calc!$BP$1","v":"Water"},{"$f":"_calc!$BP$596","v":0.15608335265630313}]
[{"$f":"_xlfn.TEXTJOIN(\",\",FALSE,output[[#This Row],[scenario]:[process_class]])","v":"PTX-BusinessOpportunityAnalyzer-1.0.9,DEU,Hydrogen (AEL),ARG-JUJ,COST-CAPEX,Electrolysis"},"PTX-BusinessOpportunityAnalyzer-1.0.9",{"$f":"sel_country_code","v":"DEU"},"Hydrogen (AEL)",{"$f":"_calc!$B$596","v":"ARG-JUJ"},{"$f":"_calc!$BO$582","v":"COST-CAPEX"},{"$f":"_calc!$BQ$1","v":"Electrolysis"},{"$f":"_calc!$BQ$596","v":26.156542546672821}]
[{"$f":"_xlfn.TEXTJOIN(\",\",FALSE,output[[#This Row],[scenario]:[process_class]])","v":"PTX-BusinessOpportunityAnalyzer-1.0.9,DEU,Hydrogen (AEL),ARG-JUJ,COST-CAPEX,Electricity generation"},"PTX-BusinessOpportunityAnalyzer-1.0.9",{"$f":"sel_country_code","v":"DEU"},"Hydrogen (AEL)",{"$f":"_calc!$B$596","v":"ARG-JUJ"},{"$f":"_calc!$BO$582","v":"COST-CAPEX"},{"$f":"_calc!$BR$1","v":"Electricity generation"},{"$f":"_calc!$BR$596","v":72.649814464957927}]
[{"$f":"_xlfn.TEXTJOIN(\",\",FALSE,output[[#This Row],[scenario]:[process_class]])","v":"PTX-BusinessOpportunityAnalyzer-1.0.9,DEU,Hydrogen (AEL),ARG-JUJ,COST-CAPEX,Transportation (Pipeline)"},"PTX-BusinessOpportunityAnalyzer-1.0.9",{"$f":"sel_country_code","v":"DEU"},"Hydrogen (AEL)",{"$f":"_calc!$B$596","v":"ARG-JUJ"},{"$f":"_calc!$BO$582","v":"COST-CAPEX"},{"$f":"_calc!$BS$1","v":"Transportation (Pipeline)"},{"$f":"_calc!$BS$596","v":0}]
[{"$f":"_xlfn.TEXTJOIN(\",\",FALSE,output[[#This Row],[scenario]:[process_class]])","v":"PTX-BusinessOpportunityAnalyzer-1.0.9,DEU,Hydrogen (AEL),ARG-JUJ,COST-CAPEX,Transportation (Ship)"},"PTX-BusinessOpportunityAnalyzer-1.0.9",{"$f":"sel_country_code","v":"DEU"},"Hydrogen (AEL)",{"$f":"_calc!$B$596","v":"ARG-JUJ"},{"$f":"_calc!$BO$582","v":"COST-CAPEX"},{"$f":"_calc!$BT$1","v":"Transportation (Ship)"},{"$f":"_calc!$BT$596","v":65.025953687441458}]
[{"$f":"_xlfn.TEXTJOIN(\",\",FALSE,output[[#This Row],[scenario]:[process_class]])","v":"PTX-BusinessOpportunityAnalyzer-1.0.9,DEU,Hydrogen (AEL),ARG-JUJ,COST-CAPEX,Carbon"},"PTX-BusinessOpportunityAnalyzer-1.0.9",{"$f":"sel_country_code","v":"DEU"},"Hydrogen (AEL)",{"$f":"_calc!$B$596","v":"ARG-JUJ"},{"$f":"_calc!$BO$582","v":"COST-CAPEX"},{"$f":"_calc!$BU$1","v":"Carbon"},{"$f":"_calc!$BU$596","v":0}]
[{"$f":"_xlfn.TEXTJOIN(\",\",FALSE,output[[#This Row],[scenario]:[process_class]])","v":"PTX-BusinessOpportunityAnalyzer-1.0.9,DEU,Hydrogen (AEL),ARG-JUJ,COST-CAPEX,Derivate production"},"PTX-BusinessOpportunityAnalyzer-1.0.9",{"$f":"sel_country_code","v":"DEU"},"Hydrogen (AEL)",{"$f":"_calc!$B$596","v":"ARG-JUJ"},{"$f":"_calc!$BO$582","v":"COST-CAPEX"},{"$f":"_calc!$BV$1","v":"Derivate production"},{"$f":"_calc!$BV$596","v":0}]
[{"$f":"_xlfn.TEXTJOIN(\",\",FALSE,output[[#This Row],[scenario]:[process_class]])","v":"PTX-BusinessOpportunityAnalyzer-1.0.9,DEU,Hydrogen (AEL),ARG-JUJ,COST-CAPEX,Heat"},"PTX-BusinessOpportunityAnalyzer-1.0.9",{"$f":"sel_country_code","v":"DEU"},"Hydrogen (AEL)",{"$f":"_calc!$B$596","v":"ARG-JUJ"},{"$f":"_calc!$BO$582","v":"COST-CAPEX"},{"$f":"_calc!$BW$1","v":"Heat"},{"$f":"_calc!$BW$596","v":0}]
[{"$f":"_xlfn.TEXTJOIN(\",\",FALSE,output[[#This Row],[scenario]:[process_class]])","v":"PTX-BusinessOpportunityAnalyzer-1.0.9,DEU,Hydrogen (AEL),ARG-JUJ,COST-CAPEX,Electricity and H2 storage"},"PTX-BusinessOpportunityAnalyzer-1.0.9",{"$f":"sel_country_code","v":"DEU"},"Hydrogen (AEL)",{"$f":"_calc!$B$596","v":"ARG-JUJ"},{"$f":"_calc!$BO$582","v":"COST-CAPEX"},{"$f":"_calc!$BX$1","v":"Electricity and H2 storage"},{"$f":"_calc!$BX$596","v":0}]
[{"$f":"_xlfn.TEXTJOIN(\",\",FALSE,output[[#This Row],[scenario]:[process_class]])","v":"PTX-BusinessOpportunityAnalyzer-1.0.9,DEU,Hydrogen (AEL),ARG-LAR,COST-CAPEX,Water"},"PTX-BusinessOpportunityAnalyzer-1.0.9",{"$f":"sel_country_code","v":"DEU"},"Hydrogen (AEL)",{"$f":"_calc!$B$597","v":"ARG-LAR"},{"$f":"_calc!$BO$582","v":"COST-CAPEX"},{"$f":"_calc!$BP$1","v":"Water"},{"$f":"_calc!$BP$597","v":0.15608335265630313}]
[{"$f":"_xlfn.TEXTJOIN(\",\",FALSE,output[[#This Row],[scenario]:[process_class]])","v":"PTX-BusinessOpportunityAnalyzer-1.0.9,DEU,Hydrogen (AEL),ARG-LAR,COST-CAPEX,Electrolysis"},"PTX-BusinessOpportunityAnalyzer-1.0.9",{"$f":"sel_country_code","v":"DEU"},"Hydrogen (AEL)",{"$f":"_calc!$B$597","v":"ARG-LAR"},{"$f":"_calc!$BO$582","v":"COST-CAPEX"},{"$f":"_calc!$BQ$1","v":"Electrolysis"},{"$f":"_calc!$BQ$597","v":28.199926896085667}]
[{"$f":"_xlfn.TEXTJOIN(\",\",FALSE,output[[#This Row],[scenario]:[process_class]])","v":"PTX-BusinessOpportunityAnalyzer-1.0.9,DEU,Hydrogen (AEL),ARG-LAR,COST-CAPEX,Electricity generation"},{"$f":"output_scenario_name","v":"PTX-BusinessOpportunityAnalyzer-1.0.9"},{"$f":"sel_country_code","v":"DEU"},{"$f":"sel_chain","v":"Hydrogen (AEL)"},{"$f":"_calc!$B$597","v":"ARG-LAR"},{"$f":"_calc!$BO$582","v":"COST-CAPEX"},{"$f":"_calc!$BR$1","v":"Electricity generation"},{"$f":"_calc!$BR$597","v":77.711134590658119}]
[{"$f":"_xlfn.TEXTJOIN(\",\",FALSE,output[[#This Row],[scenario]:[process_class]])","v":"PTX-BusinessOpportunityAnalyzer-1.0.9,DEU,Hydrogen (AEL),ARG-LAR,COST-CAPEX,Transportation (Pipeline)"},"PTX-BusinessOpportunityAnalyzer-1.0.9",{"$f":"sel_country_code","v":"DEU"},"Hydrogen (AEL)",{"$f":"_calc!$B$597","v":"ARG-LAR"},{"$f":"_calc!$BO$582","v":"COST-CAPEX"},{"$f":"_calc!$BS$1","v":"Transportation (Pipeline)"},{"$f":"_calc!$BS$597","v":0}]
[{"$f":"_xlfn.TEXTJOIN(\",\",FALSE,output[[#This Row],[scenario]:[process_class]])","v":"PTX-BusinessOpportunityAnalyzer-1.0.9,DEU,Hydrogen (AEL),ARG-LAR,COST-CAPEX,Transportation (Ship)"},"PTX-BusinessOpportunityAnalyzer-1.0.9",{"$f":"sel_country_code","v":"DEU"},"Hydrogen (AEL)",{"$f":"_calc!$B$597","v":"ARG-LAR"},{"$f":"_calc!$BO$582","v":"COST-CAPEX"},{"$f":"_calc!$BT$1","v":"Transportation (Ship)"},{"$f":"_calc!$BT$597","v":69.72545348330037}]
[{"$f":"_xlfn.TEXTJOIN(\",\",FALSE,output[[#This Row],[scenario]:[process_class]])","v":"PTX-BusinessOpportunityAnalyzer-1.0.9,DEU,Hydrogen (AEL),ARG-LAR,COST-CAPEX,Carbon"},"PTX-BusinessOpportunityAnalyzer-1.0.9",{"$f":"sel_country_code","v":"DEU"},"Hydrogen (AEL)",{"$f":"_calc!$B$597","v":"ARG-LAR"},{"$f":"_calc!$BO$582","v":"COST-CAPEX"},{"$f":"_calc!$BU$1","v":"Carbon"},{"$f":"_calc!$BU$597","v":0}]
[{"$f":"_xlfn.TEXTJOIN(\",\",FALSE,output[[#This Row],[scenario]:[process_class]])","v":"PTX-BusinessOpportunityAnalyzer-1.0.9,DEU,Hydrogen (AEL),ARG-LAR,COST-CAPEX,Derivate production"},"PTX-BusinessOpportunityAnalyzer-1.0.9",{"$f":"sel_country_code","v":"DEU"},"Hydrogen (AEL)",{"$f":"_calc!$B$597","v":"ARG-LAR"},{"$f":"_calc!$BO$582","v":"COST-CAPEX"},{"$f":"_calc!$BV$1","v":"Derivate production"},{"$f":"_calc!$BV$597","v":0}]
[{"$f":"_xlfn.TEXTJOIN(\",\",FALSE,output[[#This Row],[scenario]:[process_class]])","v":"PTX-BusinessOpportunityAnalyzer-1.0.9,DEU,Hydrogen (AEL),ARG-LAR,COST-CAPEX,Heat"},"PTX-BusinessOpportunityAnalyzer-1.0.9",{"$f":"sel_country_code","v":"DEU"},"Hydrogen (AEL)",{"$f":"_calc!$B$597","v":"ARG-LAR"},{"$f":"_calc!$BO$582","v":"COST-CAPEX"},{"$f":"_calc!$BW$1","v":"Heat"},{"$f":"_calc!$BW$597","v":0}]
[{"$f":"_xlfn.TEXTJOIN(\",\",FALSE,output[[#This Row],[scenario]:[process_class]])","v":"PTX-BusinessOpportunityAnalyzer-1.0.9,DEU,Hydrogen (AEL),ARG-LAR,COST-CAPEX,Electricity and H2 storage"},"PTX-BusinessOpportunityAnalyzer-1.0.9",{"$f":"sel_country_code","v":"DEU"},"Hydrogen (AEL)",{"$f":"_calc!$B$597","v":"ARG-LAR"},{"$f":"_calc!$BO$582","v":"COST-CAPEX"},{"$f":"_calc!$BX$1","v":"Electricity and H2 storage"},{"$f":"_calc!$BX$597","v":0}]
[{"$f":"_xlfn.TEXTJOIN(\",\",FALSE,output[[#This Row],[scenario]:[process_class]])","v":"PTX-BusinessOpportunityAnalyzer-1.0.9,DEU,Hydrogen (AEL),ARG-MEN,COST-CAPEX,Water"},"PTX-BusinessOpportunityAnalyzer-1.0.9",{"$f":"sel_country_code","v":"DEU"},"Hydrogen (AEL)",{"$f":"_calc!$B$598","v":"ARG-MEN"},{"$f":"_calc!$BO$582","v":"COST-CAPEX"},{"$f":"_calc!$BP$1","v":"Water"},{"$f":"_calc!$BP$598","v":0.15608335265630313}]
[{"$f":"_xlfn.TEXTJOIN(\",\",FALSE,output[[#This Row],[scenario]:[process_class]])","v":"PTX-BusinessOpportunityAnalyzer-1.0.9,DEU,Hydrogen (AEL),ARG-MEN,COST-CAPEX,Electrolysis"},"PTX-BusinessOpportunityAnalyzer-1.0.9",{"$f":"sel_country_code","v":"DEU"},"Hydrogen (AEL)",{"$f":"_calc!$B$598","v":"ARG-MEN"},{"$f":"_calc!$BO$582","v":"COST-CAPEX"},{"$f":"_calc!$BQ$1","v":"Electrolysis"},{"$f":"_calc!$BQ$598","v":30.671812292116208}]
[{"$f":"_xlfn.TEXTJOIN(\",\",FALSE,output[[#This Row],[scenario]:[process_class]])","v":"PTX-BusinessOpportunityAnalyzer-1.0.9,DEU,Hydrogen (AEL),ARG-MEN,COST-CAPEX,Electricity generation"},"PTX-BusinessOpportunityAnalyzer-1.0.9",{"$f":"sel_country_code","v":"DEU"},"Hydrogen (AEL)",{"$f":"_calc!$B$598","v":"ARG-MEN"},{"$f":"_calc!$BO$582","v":"COST-CAPEX"},{"$f":"_calc!$BR$1","v":"Electricity generation"},{"$f":"_calc!$BR$598","v":83.72872977521348}]
[{"$f":"_xlfn.TEXTJOIN(\",\",FALSE,output[[#This Row],[scenario]:[process_class]])","v":"PTX-BusinessOpportunityAnalyzer-1.0.9,DEU,Hydrogen (AEL),ARG-MEN,COST-CAPEX,Transportation (Pipeline)"},"PTX-BusinessOpportunityAnalyzer-1.0.9",{"$f":"sel_country_code","v":"DEU"},"Hydrogen (AEL)",{"$f":"_calc!$B$598","v":"ARG-MEN"},{"$f":"_calc!$BO$582","v":"COST-CAPEX"},{"$f":"_calc!$BS$1","v":"Transportation (Pipeline)"},{"$f":"_calc!$BS$598","v":0}]
[{"$f":"_xlfn.TEXTJOIN(\",\",FALSE,output[[#This Row],[scenario]:[process_class]])","v":"PTX-BusinessOpportunityAnalyzer-1.0.9,DEU,Hydrogen (AEL),ARG-MEN,COST-CAPEX,Transportation (Ship)"},"PTX-BusinessOpportunityAnalyzer-1.0.9",{"$f":"sel_country_code","v":"DEU"},"Hydrogen (AEL)",{"$f":"_calc!$B$598","v":"ARG-MEN"},{"$f":"_calc!$BO$582","v":"COST-CAPEX"},{"$f":"_calc!$BT$1","v":"Transportation (Ship)"},{"$f":"_calc!$BT$598","v":75.474583911873665}]
[{"$f":"_xlfn.TEXTJOIN(\",\",FALSE,output[[#This Row],[scenario]:[process_class]])","v":"PTX-BusinessOpportunityAnalyzer-1.0.9,DEU,Hydrogen (AEL),ARG-MEN,COST-CAPEX,Carbon"},"PTX-BusinessOpportunityAnalyzer-1.0.9",{"$f":"sel_country_code","v":"DEU"},"Hydrogen (AEL)",{"$f":"_calc!$B$598","v":"ARG-MEN"},{"$f":"_calc!$BO$582","v":"COST-CAPEX"},{"$f":"_calc!$BU$1","v":"Carbon"},{"$f":"_calc!$BU$598","v":0}]
[{"$f":"_xlfn.TEXTJOIN(\",\",FALSE,output[[#This Row],[scenario]:[process_class]])","v":"PTX-BusinessOpportunityAnalyzer-1.0.9,DEU,Hydrogen (AEL),ARG-MEN,COST-CAPEX,Derivate production"},"PTX-BusinessOpportunityAnalyzer-1.0.9",{"$f":"sel_country_code","v":"DEU"},"Hydrogen (AEL)",{"$f":"_calc!$B$598","v":"ARG-MEN"},{"$f":"_calc!$BO$582","v":"COST-CAPEX"},{"$f":"_calc!$BV$1","v":"Derivate production"},{"$f":"_calc!$BV$598","v":0}]
[{"$f":"_xlfn.TEXTJOIN(\",\",FALSE,output[[#This Row],[scenario]:[process_class]])","v":"PTX-BusinessOpportunityAnalyzer-1.0.9,DEU,Hydrogen (AEL),ARG-MEN,COST-CAPEX,Heat"},"PTX-BusinessOpportunityAnalyzer-1.0.9",{"$f":"sel_country_code","v":"DEU"},"Hydrogen (AEL)",{"$f":"_calc!$B$598","v":"ARG-MEN"},{"$f":"_calc!$BO$582","v":"COST-CAPEX"},{"$f":"_calc!$BW$1","v":"Heat"},{"$f":"_calc!$BW$598","v":0}]
[{"$f":"_xlfn.TEXTJOIN(\",\",FALSE,output[[#This Row],[scenario]:[process_class]])","v":"PTX-BusinessOpportunityAnalyzer-1.0.9,DEU,Hydrogen (AEL),ARG-MEN,COST-CAPEX,Electricity and H2 storage"},"PTX-BusinessOpportunityAnalyzer-1.0.9",{"$f":"sel_country_code","v":"DEU"},"Hydrogen (AEL)",{"$f":"_calc!$B$598","v":"ARG-MEN"},{"$f":"_calc!$BO$582","v":"COST-CAPEX"},{"$f":"_calc!$BX$1","v":"Electricity and H2 storage"},{"$f":"_calc!$BX$598","v":0}]
[{"$f":"_xlfn.TEXTJOIN(\",\",FALSE,output[[#This Row],[scenario]:[process_class]])","v":"PTX-BusinessOpportunityAnalyzer-1.0.9,DEU,Hydrogen (AEL),ARG-MIS,COST-CAPEX,Water"},"PTX-BusinessOpportunityAnalyzer-1.0.9",{"$f":"sel_country_code","v":"DEU"},"Hydrogen (AEL)",{"$f":"_calc!$B$599","v":"ARG-MIS"},{"$f":"_calc!$BO$582","v":"COST-CAPEX"},{"$f":"_calc!$BP$1","v":"Water"},{"$f":"_calc!$BP$599","v":0.15608335265630313}]
[{"$f":"_xlfn.TEXTJOIN(\",\",FALSE,output[[#This Row],[scenario]:[process_class]])","v":"PTX-BusinessOpportunityAnalyzer-1.0.9,DEU,Hydrogen (AEL),ARG-MIS,COST-CAPEX,Electrolysis"},"PTX-BusinessOpportunityAnalyzer-1.0.9",{"$f":"sel_country_code","v":"DEU"},"Hydrogen (AEL)",{"$f":"_calc!$B$599","v":"ARG-MIS"},{"$f":"_calc!$BO$582","v":"COST-CAPEX"},{"$f":"_calc!$BQ$1","v":"Electrolysis"},{"$f":"_calc!$BQ$599","v":47.056532128700454}]
[{"$f":"_xlfn.TEXTJOIN(\",\",FALSE,output[[#This Row],[scenario]:[process_class]])","v":"PTX-BusinessOpportunityAnalyzer-1.0.9,DEU,Hydrogen (AEL),ARG-MIS,COST-CAPEX,Electricity generation"},"PTX-BusinessOpportunityAnalyzer-1.0.9",{"$f":"sel_country_code","v":"DEU"},"Hydrogen (AEL)",{"$f":"_calc!$B$599","v":"ARG-MIS"},{"$f":"_calc!$BO$582","v":"COST-CAPEX"},{"$f":"_calc!$BR$1","v":"Electricity generation"},{"$f":"_calc!$BR$599","v":121.28694602231164}]
[{"$f":"_xlfn.TEXTJOIN(\",\",FALSE,output[[#This Row],[scenario]:[process_class]])","v":"PTX-BusinessOpportunityAnalyzer-1.0.9,DEU,Hydrogen (AEL),ARG-MIS,COST-CAPEX,Transportation (Pipeline)"},"PTX-BusinessOpportunityAnalyzer-1.0.9",{"$f":"sel_country_code","v":"DEU"},"Hydrogen (AEL)",{"$f":"_calc!$B$599","v":"ARG-MIS"},{"$f":"_calc!$BO$582","v":"COST-CAPEX"},{"$f":"_calc!$BS$1","v":"Transportation (Pipeline)"},{"$f":"_calc!$BS$599","v":0}]
[{"$f":"_xlfn.TEXTJOIN(\",\",FALSE,output[[#This Row],[scenario]:[process_class]])","v":"PTX-BusinessOpportunityAnalyzer-1.0.9,DEU,Hydrogen (AEL),ARG-MIS,COST-CAPEX,Transportation (Ship)"},"PTX-BusinessOpportunityAnalyzer-1.0.9",{"$f":"sel_country_code","v":"DEU"},"Hydrogen (AEL)",{"$f":"_calc!$B$599","v":"ARG-MIS"},{"$f":"_calc!$BO$582","v":"COST-CAPEX"},{"$f":"_calc!$BT$1","v":"Transportation (Ship)"},{"$f":"_calc!$BT$599","v":109.30780395502802}]
[{"$f":"_xlfn.TEXTJOIN(\",\",FALSE,output[[#This Row],[scenario]:[process_class]])","v":"PTX-BusinessOpportunityAnalyzer-1.0.9,DEU,Hydrogen (AEL),ARG-MIS,COST-CAPEX,Carbon"},"PTX-BusinessOpportunityAnalyzer-1.0.9",{"$f":"sel_country_code","v":"DEU"},"Hydrogen (AEL)",{"$f":"_calc!$B$599","v":"ARG-MIS"},{"$f":"_calc!$BO$582","v":"COST-CAPEX"},{"$f":"_calc!$BU$1","v":"Carbon"},{"$f":"_calc!$BU$599","v":0}]
[{"$f":"_xlfn.TEXTJOIN(\",\",FALSE,output[[#This Row],[scenario]:[process_class]])","v":"PTX-BusinessOpportunityAnalyzer-1.0.9,DEU,Hydrogen (AEL),ARG-MIS,COST-CAPEX,Derivate production"},"PTX-BusinessOpportunityAnalyzer-1.0.9",{"$f":"sel_country_code","v":"DEU"},"Hydrogen (AEL)",{"$f":"_calc!$B$599","v":"ARG-MIS"},{"$f":"_calc!$BO$582","v":"COST-CAPEX"},{"$f":"_calc!$BV$1","v":"Derivate production"},{"$f":"_calc!$BV$599","v":0}]
[{"$f":"_xlfn.TEXTJOIN(\",\",FALSE,output[[#This Row],[scenario]:[process_class]])","v":"PTX-BusinessOpportunityAnalyzer-1.0.9,DEU,Hydrogen (AEL),ARG-MIS,COST-CAPEX,Heat"},"PTX-BusinessOpportunityAnalyzer-1.0.9",{"$f":"sel_country_code","v":"DEU"},"Hydrogen (AEL)",{"$f":"_calc!$B$599","v":"ARG-MIS"},{"$f":"_calc!$BO$582","v":"COST-CAPEX"},{"$f":"_calc!$BW$1","v":"Heat"},{"$f":"_calc!$BW$599","v":0}]
[{"$f":"_xlfn.TEXTJOIN(\",\",FALSE,output[[#This Row],[scenario]:[process_class]])","v":"PTX-BusinessOpportunityAnalyzer-1.0.9,DEU,Hydrogen (AEL),ARG-MIS,COST-CAPEX,Electricity and H2 storage"},"PTX-BusinessOpportunityAnalyzer-1.0.9",{"$f":"sel_country_code","v":"DEU"},"Hydrogen (AEL)",{"$f":"_calc!$B$599","v":"ARG-MIS"},{"$f":"_calc!$BO$582","v":"COST-CAPEX"},{"$f":"_calc!$BX$1","v":"Electricity and H2 storage"},{"$f":"_calc!$BX$599","v":0}]
[{"$f":"_xlfn.TEXTJOIN(\",\",FALSE,output[[#This Row],[scenario]:[process_class]])","v":"PTX-BusinessOpportunityAnalyzer-1.0.9,DEU,Hydrogen (AEL),ARG-NEG,COST-CAPEX,Water"},"PTX-BusinessOpportunityAnalyzer-1.0.9",{"$f":"sel_country_code","v":"DEU"},"Hydrogen (AEL)",{"$f":"_calc!$B$600","v":"ARG-NEG"},{"$f":"_calc!$BO$582","v":"COST-CAPEX"},{"$f":"_calc!$BP$1","v":"Water"},{"$f":"_calc!$BP$600","v":0.15608335265630313}]
[{"$f":"_xlfn.TEXTJOIN(\",\",FALSE,output[[#This Row],[scenario]:[process_class]])","v":"PTX-BusinessOpportunityAnalyzer-1.0.9,DEU,Hydrogen (AEL),ARG-NEG,COST-CAPEX,Electrolysis"},"PTX-BusinessOpportunityAnalyzer-1.0.9",{"$f":"sel_country_code","v":"DEU"},"Hydrogen (AEL)",{"$f":"_calc!$B$600","v":"ARG-NEG"},{"$f":"_calc!$BO$582","v":"COST-CAPEX"},{"$f":"_calc!$BQ$1","v":"Electrolysis"},{"$f":"_calc!$BQ$600","v":23.558428666703588}]
[{"$f":"_xlfn.TEXTJOIN(\",\",FALSE,output[[#This Row],[scenario]:[process_class]])","v":"PTX-BusinessOpportunityAnalyzer-1.0.9,DEU,Hydrogen (AEL),ARG-NEG,COST-CAPEX,Electricity generation"},"PTX-BusinessOpportunityAnalyzer-1.0.9",{"$f":"sel_country_code","v":"DEU"},"Hydrogen (AEL)",{"$f":"_calc!$B$600","v":"ARG-NEG"},{"$f":"_calc!$BO$582","v":"COST-CAPEX"},{"$f":"_calc!$BR$1","v":"Electricity generation"},{"$f":"_calc!$BR$600","v":66.097765721569274}]
[{"$f":"_xlfn.TEXTJOIN(\",\",FALSE,output[[#This Row],[scenario]:[process_class]])","v":"PTX-BusinessOpportunityAnalyzer-1.0.9,DEU,Hydrogen (AEL),ARG-NEG,COST-CAPEX,Transportation (Pipeline)"},"PTX-BusinessOpportunityAnalyzer-1.0.9",{"$f":"sel_country_code","v":"DEU"},"Hydrogen (AEL)",{"$f":"_calc!$B$600","v":"ARG-NEG"},{"$f":"_calc!$BO$582","v":"COST-CAPEX"},{"$f":"_calc!$BS$1","v":"Transportation (Pipeline)"},{"$f":"_calc!$BS$600","v":0}]
[{"$f":"_xlfn.TEXTJOIN(\",\",FALSE,output[[#This Row],[scenario]:[process_class]])","v":"PTX-BusinessOpportunityAnalyzer-1.0.9,DEU,Hydrogen (AEL),ARG-NEG,COST-CAPEX,Transportation (Ship)"},"PTX-BusinessOpportunityAnalyzer-1.0.9",{"$f":"sel_country_code","v":"DEU"},"Hydrogen (AEL)",{"$f":"_calc!$B$600","v":"ARG-NEG"},{"$f":"_calc!$BO$582","v":"COST-CAPEX"},{"$f":"_calc!$BT$1","v":"Transportation (Ship)"},{"$f":"_calc!$BT$600","v":59.118740621951552}]
[{"$f":"_xlfn.TEXTJOIN(\",\",FALSE,output[[#This Row],[scenario]:[process_class]])","v":"PTX-BusinessOpportunityAnalyzer-1.0.9,DEU,Hydrogen (AEL),ARG-NEG,COST-CAPEX,Carbon"},"PTX-BusinessOpportunityAnalyzer-1.0.9",{"$f":"sel_country_code","v":"DEU"},"Hydrogen (AEL)",{"$f":"_calc!$B$600","v":"ARG-NEG"},{"$f":"_calc!$BO$582","v":"COST-CAPEX"},{"$f":"_calc!$BU$1","v":"Carbon"},{"$f":"_calc!$BU$600","v":0}]
[{"$f":"_xlfn.TEXTJOIN(\",\",FALSE,output[[#This Row],[scenario]:[process_class]])","v":"PTX-BusinessOpportunityAnalyzer-1.0.9,DEU,Hydrogen (AEL),ARG-NEG,COST-CAPEX,Derivate production"},"PTX-BusinessOpportunityAnalyzer-1.0.9",{"$f":"sel_country_code","v":"DEU"},"Hydrogen (AEL)",{"$f":"_calc!$B$600","v":"ARG-NEG"},{"$f":"_calc!$BO$582","v":"COST-CAPEX"},{"$f":"_calc!$BV$1","v":"Derivate production"},{"$f":"_calc!$BV$600","v":0}]
[{"$f":"_xlfn.TEXTJOIN(\",\",FALSE,output[[#This Row],[scenario]:[process_class]])","v":"PTX-BusinessOpportunityAnalyzer-1.0.9,DEU,Hydrogen (AEL),ARG-NEG,COST-CAPEX,Heat"},"PTX-BusinessOpportunityAnalyzer-1.0.9",{"$f":"sel_country_code","v":"DEU"},"Hydrogen (AEL)",{"$f":"_calc!$B$600","v":"ARG-NEG"},{"$f":"_calc!$BO$582","v":"COST-CAPEX"},{"$f":"_calc!$BW$1","v":"Heat"},{"$f":"_calc!$BW$600","v":0}]
[{"$f":"_xlfn.TEXTJOIN(\",\",FALSE,output[[#This Row],[scenario]:[process_class]])","v":"PTX-BusinessOpportunityAnalyzer-1.0.9,DEU,Hydrogen (AEL),ARG-NEG,COST-CAPEX,Electricity and H2 storage"},"PTX-BusinessOpportunityAnalyzer-1.0.9",{"$f":"sel_country_code","v":"DEU"},"Hydrogen (AEL)",{"$f":"_calc!$B$600","v":"ARG-NEG"},{"$f":"_calc!$BO$582","v":"COST-CAPEX"},{"$f":"_calc!$BX$1","v":"Electricity and H2 storage"},{"$f":"_calc!$BX$600","v":0}]
[{"$f":"_xlfn.TEXTJOIN(\",\",FALSE,output[[#This Row],[scenario]:[process_class]])","v":"PTX-BusinessOpportunityAnalyzer-1.0.9,DEU,Hydrogen (AEL),ARG-NEU,COST-CAPEX,Water"},"PTX-BusinessOpportunityAnalyzer-1.0.9",{"$f":"sel_country_code","v":"DEU"},"Hydrogen (AEL)",{"$f":"_calc!$B$601","v":"ARG-NEU"},{"$f":"_calc!$BO$582","v":"COST-CAPEX"},{"$f":"_calc!$BP$1","v":"Water"},{"$f":"_calc!$BP$601","v":0.15608335265630313}]
[{"$f":"_xlfn.TEXTJOIN(\",\",FALSE,output[[#This Row],[scenario]:[process_class]])","v":"PTX-BusinessOpportunityAnalyzer-1.0.9,DEU,Hydrogen (AEL),ARG-NEU,COST-CAPEX,Electrolysis"},"PTX-BusinessOpportunityAnalyzer-1.0.9",{"$f":"sel_country_code","v":"DEU"},"Hydrogen (AEL)",{"$f":"_calc!$B$601","v":"ARG-NEU"},{"$f":"_calc!$BO$582","v":"COST-CAPEX"},{"$f":"_calc!$BQ$1","v":"Electrolysis"},{"$f":"_calc!$BQ$601","v":27.241770003058527}]
[{"$f":"_xlfn.TEXTJOIN(\",\",FALSE,output[[#This Row],[scenario]:[process_class]])","v":"PTX-BusinessOpportunityAnalyzer-1.0.9,DEU,Hydrogen (AEL),ARG-NEU,COST-CAPEX,Electricity generation"},"PTX-BusinessOpportunityAnalyzer-1.0.9",{"$f":"sel_country_code","v":"DEU"},"Hydrogen (AEL)",{"$f":"_calc!$B$601","v":"ARG-NEU"},{"$f":"_calc!$BO$582","v":"COST-CAPEX"},{"$f":"_calc!$BR$1","v":"Electricity generation"},{"$f":"_calc!$BR$601","v":75.347767059867351}]
[{"$f":"_xlfn.TEXTJOIN(\",\",FALSE,output[[#This Row],[scenario]:[process_class]])","v":"PTX-BusinessOpportunityAnalyzer-1.0.9,DEU,Hydrogen (AEL),ARG-NEU,COST-CAPEX,Transportation (Pipeline)"},"PTX-BusinessOpportunityAnalyzer-1.0.9",{"$f":"sel_country_code","v":"DEU"},"Hydrogen (AEL)",{"$f":"_calc!$B$601","v":"ARG-NEU"},{"$f":"_calc!$BO$582","v":"COST-CAPEX"},{"$f":"_calc!$BS$1","v":"Transportation (Pipeline)"},{"$f":"_calc!$BS$601","v":0}]
[{"$f":"_xlfn.TEXTJOIN(\",\",FALSE,output[[#This Row],[scenario]:[process_class]])","v":"PTX-BusinessOpportunityAnalyzer-1.0.9,DEU,Hydrogen (AEL),ARG-NEU,COST-CAPEX,Transportation (Ship)"},"PTX-BusinessOpportunityAnalyzer-1.0.9",{"$f":"sel_country_code","v":"DEU"},"Hydrogen (AEL)",{"$f":"_calc!$B$601","v":"ARG-NEU"},{"$f":"_calc!$BO$582","v":"COST-CAPEX"},{"$f":"_calc!$BT$1","v":"Transportation (Ship)"},{"$f":"_calc!$BT$601","v":67.515901373404617}]
[{"$f":"_xlfn.TEXTJOIN(\",\",FALSE,output[[#This Row],[scenario]:[process_class]])","v":"PTX-BusinessOpportunityAnalyzer-1.0.9,DEU,Hydrogen (AEL),ARG-NEU,COST-CAPEX,Carbon"},"PTX-BusinessOpportunityAnalyzer-1.0.9",{"$f":"sel_country_code","v":"DEU"},"Hydrogen (AEL)",{"$f":"_calc!$B$601","v":"ARG-NEU"},{"$f":"_calc!$BO$582","v":"COST-CAPEX"},{"$f":"_calc!$BU$1","v":"Carbon"},{"$f":"_calc!$BU$601","v":0}]
[{"$f":"_xlfn.TEXTJOIN(\",\",FALSE,output[[#This Row],[scenario]:[process_class]])","v":"PTX-BusinessOpportunityAnalyzer-1.0.9,DEU,Hydrogen (AEL),ARG-NEU,COST-CAPEX,Derivate production"},"PTX-BusinessOpportunityAnalyzer-1.0.9",{"$f":"sel_country_code","v":"DEU"},"Hydrogen (AEL)",{"$f":"_calc!$B$601","v":"ARG-NEU"},{"$f":"_calc!$BO$582","v":"COST-CAPEX"},{"$f":"_calc!$BV$1","v":"Derivate production"},{"$f":"_calc!$BV$601","v":0}]
[{"$f":"_xlfn.TEXTJOIN(\",\",FALSE,output[[#This Row],[scenario]:[process_class]])","v":"PTX-BusinessOpportunityAnalyzer-1.0.9,DEU,Hydrogen (AEL),ARG-NEU,COST-CAPEX,Heat"},"PTX-BusinessOpportunityAnalyzer-1.0.9",{"$f":"sel_country_code","v":"DEU"},"Hydrogen (AEL)",{"$f":"_calc!$B$601","v":"ARG-NEU"},{"$f":"_calc!$BO$582","v":"COST-CAPEX"},{"$f":"_calc!$BW$1","v":"Heat"},{"$f":"_calc!$BW$601","v":0}]
[{"$f":"_xlfn.TEXTJOIN(\",\",FALSE,output[[#This Row],[scenario]:[process_class]])","v":"PTX-BusinessOpportunityAnalyzer-1.0.9,DEU,Hydrogen (AEL),ARG-NEU,COST-CAPEX,Electricity and H2 storage"},"PTX-BusinessOpportunityAnalyzer-1.0.9",{"$f":"sel_country_code","v":"DEU"},"Hydrogen (AEL)",{"$f":"_calc!$B$601","v":"ARG-NEU"},{"$f":"_calc!$BO$582","v":"COST-CAPEX"},{"$f":"_calc!$BX$1","v":"Electricity and H2 storage"},{"$f":"_calc!$BX$601","v":0}]
[{"$f":"_xlfn.TEXTJOIN(\",\",FALSE,output[[#This Row],[scenario]:[process_class]])","v":"PTX-BusinessOpportunityAnalyzer-1.0.9,DEU,Hydrogen (AEL),ARG-PAM,COST-CAPEX,Water"},"PTX-BusinessOpportunityAnalyzer-1.0.9",{"$f":"sel_country_code","v":"DEU"},"Hydrogen (AEL)",{"$f":"_calc!$B$602","v":"ARG-PAM"},{"$f":"_calc!$BO$582","v":"COST-CAPEX"},{"$f":"_calc!$BP$1","v":"Water"},{"$f":"_calc!$BP$602","v":0.15608335265630313}]
[{"$f":"_xlfn.TEXTJOIN(\",\",FALSE,output[[#This Row],[scenario]:[process_class]])","v":"PTX-BusinessOpportunityAnalyzer-1.0.9,DEU,Hydrogen (AEL),ARG-PAM,COST-CAPEX,Electrolysis"},"PTX-BusinessOpportunityAnalyzer-1.0.9",{"$f":"sel_country_code","v":"DEU"},"Hydrogen (AEL)",{"$f":"_calc!$B$602","v":"ARG-PAM"},{"$f":"_calc!$BO$582","v":"COST-CAPEX"},{"$f":"_calc!$BQ$1","v":"Electrolysis"},{"$f":"_calc!$BQ$602","v":27.298527048597066}]
[{"$f":"_xlfn.TEXTJOIN(\",\",FALSE,output[[#This Row],[scenario]:[process_class]])","v":"PTX-BusinessOpportunityAnalyzer-1.0.9,DEU,Hydrogen (AEL),ARG-PAM,COST-CAPEX,Electricity generation"},"PTX-BusinessOpportunityAnalyzer-1.0.9",{"$f":"sel_country_code","v":"DEU"},"Hydrogen (AEL)",{"$f":"_calc!$B$602","v":"ARG-PAM"},{"$f":"_calc!$BO$582","v":"COST-CAPEX"},{"$f":"_calc!$BR$1","v":"Electricity generation"},{"$f":"_calc!$BR$602","v":75.488248608002976}]
[{"$f":"_xlfn.TEXTJOIN(\",\",FALSE,output[[#This Row],[scenario]:[process_class]])","v":"PTX-BusinessOpportunityAnalyzer-1.0.9,DEU,Hydrogen (AEL),ARG-PAM,COST-CAPEX,Transportation (Pipeline)"},"PTX-BusinessOpportunityAnalyzer-1.0.9",{"$f":"sel_country_code","v":"DEU"},"Hydrogen (AEL)",{"$f":"_calc!$B$602","v":"ARG-PAM"},{"$f":"_calc!$BO$582","v":"COST-CAPEX"},{"$f":"_calc!$BS$1","v":"Transportation (Pipeline)"},{"$f":"_calc!$BS$602","v":0}]
[{"$f":"_xlfn.TEXTJOIN(\",\",FALSE,output[[#This Row],[scenario]:[process_class]])","v":"PTX-BusinessOpportunityAnalyzer-1.0.9,DEU,Hydrogen (AEL),ARG-PAM,COST-CAPEX,Transportation (Ship)"},"PTX-BusinessOpportunityAnalyzer-1.0.9",{"$f":"sel_country_code","v":"DEU"},"Hydrogen (AEL)",{"$f":"_calc!$B$602","v":"ARG-PAM"},{"$f":"_calc!$BO$582","v":"COST-CAPEX"},{"$f":"_calc!$BT$1","v":"Transportation (Ship)"},{"$f":"_calc!$BT$602","v":67.646493305715737}]
[{"$f":"_xlfn.TEXTJOIN(\",\",FALSE,output[[#This Row],[scenario]:[process_class]])","v":"PTX-BusinessOpportunityAnalyzer-1.0.9,DEU,Hydrogen (AEL),ARG-PAM,COST-CAPEX,Carbon"},"PTX-BusinessOpportunityAnalyzer-1.0.9",{"$f":"sel_country_code","v":"DEU"},"Hydrogen (AEL)",{"$f":"_calc!$B$602","v":"ARG-PAM"},{"$f":"_calc!$BO$582","v":"COST-CAPEX"},{"$f":"_calc!$BU$1","v":"Carbon"},{"$f":"_calc!$BU$602","v":0}]
[{"$f":"_xlfn.TEXTJOIN(\",\",FALSE,output[[#This Row],[scenario]:[process_class]])","v":"PTX-BusinessOpportunityAnalyzer-1.0.9,DEU,Hydrogen (AEL),ARG-PAM,COST-CAPEX,Derivate production"},"PTX-BusinessOpportunityAnalyzer-1.0.9",{"$f":"sel_country_code","v":"DEU"},"Hydrogen (AEL)",{"$f":"_calc!$B$602","v":"ARG-PAM"},{"$f":"_calc!$BO$582","v":"COST-CAPEX"},{"$f":"_calc!$BV$1","v":"Derivate production"},{"$f":"_calc!$BV$602","v":0}]
[{"$f":"_xlfn.TEXTJOIN(\",\",FALSE,output[[#This Row],[scenario]:[process_class]])","v":"PTX-BusinessOpportunityAnalyzer-1.0.9,DEU,Hydrogen (AEL),ARG-PAM,COST-CAPEX,Heat"},"PTX-BusinessOpportunityAnalyzer-1.0.9",{"$f":"sel_country_code","v":"DEU"},"Hydrogen (AEL)",{"$f":"_calc!$B$602","v":"ARG-PAM"},{"$f":"_calc!$BO$582","v":"COST-CAPEX"},{"$f":"_calc!$BW$1","v":"Heat"},{"$f":"_calc!$BW$602","v":0}]
[{"$f":"_xlfn.TEXTJOIN(\",\",FALSE,output[[#This Row],[scenario]:[process_class]])","v":"PTX-BusinessOpportunityAnalyzer-1.0.9,DEU,Hydrogen (AEL),ARG-PAM,COST-CAPEX,Electricity and H2 storage"},"PTX-BusinessOpportunityAnalyzer-1.0.9",{"$f":"sel_country_code","v":"DEU"},"Hydrogen (AEL)",{"$f":"_calc!$B$602","v":"ARG-PAM"},{"$f":"_calc!$BO$582","v":"COST-CAPEX"},{"$f":"_calc!$BX$1","v":"Electricity and H2 storage"},{"$f":"_calc!$BX$602","v":0}]
[{"$f":"_xlfn.TEXTJOIN(\",\",FALSE,output[[#This Row],[scenario]:[process_class]])","v":"PTX-BusinessOpportunityAnalyzer-1.0.9,DEU,Hydrogen (AEL),ARG-RIO,COST-CAPEX,Water"},"PTX-BusinessOpportunityAnalyzer-1.0.9",{"$f":"sel_country_code","v":"DEU"},"Hydrogen (AEL)",{"$f":"_calc!$B$603","v":"ARG-RIO"},{"$f":"_calc!$BO$582","v":"COST-CAPEX"},{"$f":"_calc!$BP$1","v":"Water"},{"$f":"_calc!$BP$603","v":0.15608335265630313}]
[{"$f":"_xlfn.TEXTJOIN(\",\",FALSE,output[[#This Row],[scenario]:[process_class]])","v":"PTX-BusinessOpportunityAnalyzer-1.0.9,DEU,Hydrogen (AEL),ARG-RIO,COST-CAPEX,Electrolysis"},"PTX-BusinessOpportunityAnalyzer-1.0.9",{"$f":"sel_country_code","v":"DEU"},"Hydrogen (AEL)",{"$f":"_calc!$B$603","v":"ARG-RIO"},{"$f":"_calc!$BO$582","v":"COST-CAPEX"},{"$f":"_calc!$BQ$1","v":"Electrolysis"},{"$f":"_calc!$BQ$603","v":33.078901260302004}]
[{"$f":"_xlfn.TEXTJOIN(\",\",FALSE,output[[#This Row],[scenario]:[process_class]])","v":"PTX-BusinessOpportunityAnalyzer-1.0.9,DEU,Hydrogen (AEL),ARG-RIO,COST-CAPEX,Electricity generation"},"PTX-BusinessOpportunityAnalyzer-1.0.9",{"$f":"sel_country_code","v":"DEU"},"Hydrogen (AEL)",{"$f":"_calc!$B$603","v":"ARG-RIO"},{"$f":"_calc!$BO$582","v":"COST-CAPEX"},{"$f":"_calc!$BR$1","v":"Electricity generation"},{"$f":"_calc!$BR$603","v":89.480886556267706}]
[{"$f":"_xlfn.TEXTJOIN(\",\",FALSE,output[[#This Row],[scenario]:[process_class]])","v":"PTX-BusinessOpportunityAnalyzer-1.0.9,DEU,Hydrogen (AEL),ARG-RIO,COST-CAPEX,Transportation (Pipeline)"},"PTX-BusinessOpportunityAnalyzer-1.0.9",{"$f":"sel_country_code","v":"DEU"},"Hydrogen (AEL)",{"$f":"_calc!$B$603","v":"ARG-RIO"},{"$f":"_calc!$BO$582","v":"COST-CAPEX"},{"$f":"_calc!$BS$1","v":"Transportation (Pipeline)"},{"$f":"_calc!$BS$603","v":0}]
[{"$f":"_xlfn.TEXTJOIN(\",\",FALSE,output[[#This Row],[scenario]:[process_class]])","v":"PTX-BusinessOpportunityAnalyzer-1.0.9,DEU,Hydrogen (AEL),ARG-RIO,COST-CAPEX,Transportation (Ship)"},"PTX-BusinessOpportunityAnalyzer-1.0.9",{"$f":"sel_country_code","v":"DEU"},"Hydrogen (AEL)",{"$f":"_calc!$B$603","v":"ARG-RIO"},{"$f":"_calc!$BO$582","v":"COST-CAPEX"},{"$f":"_calc!$BT$1","v":"Transportation (Ship)"},{"$f":"_calc!$BT$603","v":81.141672077491947}]
[{"$f":"_xlfn.TEXTJOIN(\",\",FALSE,output[[#This Row],[scenario]:[process_class]])","v":"PTX-BusinessOpportunityAnalyzer-1.0.9,DEU,Hydrogen (AEL),ARG-RIO,COST-CAPEX,Carbon"},"PTX-BusinessOpportunityAnalyzer-1.0.9",{"$f":"sel_country_code","v":"DEU"},"Hydrogen (AEL)",{"$f":"_calc!$B$603","v":"ARG-RIO"},{"$f":"_calc!$BO$582","v":"COST-CAPEX"},{"$f":"_calc!$BU$1","v":"Carbon"},{"$f":"_calc!$BU$603","v":0}]
[{"$f":"_xlfn.TEXTJOIN(\",\",FALSE,output[[#This Row],[scenario]:[process_class]])","v":"PTX-BusinessOpportunityAnalyzer-1.0.9,DEU,Hydrogen (AEL),ARG-RIO,COST-CAPEX,Derivate production"},"PTX-BusinessOpportunityAnalyzer-1.0.9",{"$f":"sel_country_code","v":"DEU"},"Hydrogen (AEL)",{"$f":"_calc!$B$603","v":"ARG-RIO"},{"$f":"_calc!$BO$582","v":"COST-CAPEX"},{"$f":"_calc!$BV$1","v":"Derivate production"},{"$f":"_calc!$BV$603","v":0}]
[{"$f":"_xlfn.TEXTJOIN(\",\",FALSE,output[[#This Row],[scenario]:[process_class]])","v":"PTX-BusinessOpportunityAnalyzer-1.0.9,DEU,Hydrogen (AEL),ARG-RIO,COST-CAPEX,Heat"},"PTX-BusinessOpportunityAnalyzer-1.0.9",{"$f":"sel_country_code","v":"DEU"},"Hydrogen (AEL)",{"$f":"_calc!$B$603","v":"ARG-RIO"},{"$f":"_calc!$BO$582","v":"COST-CAPEX"},{"$f":"_calc!$BW$1","v":"Heat"},{"$f":"_calc!$BW$603","v":0}]
[{"$f":"_xlfn.TEXTJOIN(\",\",FALSE,output[[#This Row],[scenario]:[process_class]])","v":"PTX-BusinessOpportunityAnalyzer-1.0.9,DEU,Hydrogen (AEL),ARG-RIO,COST-CAPEX,Electricity and H2 storage"},"PTX-BusinessOpportunityAnalyzer-1.0.9",{"$f":"sel_country_code","v":"DEU"},"Hydrogen (AEL)",{"$f":"_calc!$B$603","v":"ARG-RIO"},{"$f":"_calc!$BO$582","v":"COST-CAPEX"},{"$f":"_calc!$BX$1","v":"Electricity and H2 storage"},{"$f":"_calc!$BX$603","v":0}]
[{"$f":"_xlfn.TEXTJOIN(\",\",FALSE,output[[#This Row],[scenario]:[process_class]])","v":"PTX-BusinessOpportunityAnalyzer-1.0.9,DEU,Hydrogen (AEL),ARG-SAF,COST-CAPEX,Water"},"PTX-BusinessOpportunityAnalyzer-1.0.9",{"$f":"sel_country_code","v":"DEU"},"Hydrogen (AEL)",{"$f":"_calc!$B$604","v":"ARG-SAF"},{"$f":"_calc!$BO$582","v":"COST-CAPEX"},{"$f":"_calc!$BP$1","v":"Water"},{"$f":"_calc!$BP$604","v":0.15608335265630313}]
[{"$f":"_xlfn.TEXTJOIN(\",\",FALSE,output[[#This Row],[scenario]:[process_class]])","v":"PTX-BusinessOpportunityAnalyzer-1.0.9,DEU,Hydrogen (AEL),ARG-SAF,COST-CAPEX,Electrolysis"},"PTX-BusinessOpportunityAnalyzer-1.0.9",{"$f":"sel_country_code","v":"DEU"},"Hydrogen (AEL)",{"$f":"_calc!$B$604","v":"ARG-SAF"},{"$f":"_calc!$BO$582","v":"COST-CAPEX"},{"$f":"_calc!$BQ$1","v":"Electrolysis"},{"$f":"_calc!$BQ$604","v":32.19922608589345}]
[{"$f":"_xlfn.TEXTJOIN(\",\",FALSE,output[[#This Row],[scenario]:[process_class]])","v":"PTX-BusinessOpportunityAnalyzer-1.0.9,DEU,Hydrogen (AEL),ARG-SAF,COST-CAPEX,Electricity generation"},"PTX-BusinessOpportunityAnalyzer-1.0.9",{"$f":"sel_country_code","v":"DEU"},"Hydrogen (AEL)",{"$f":"_calc!$B$604","v":"ARG-SAF"},{"$f":"_calc!$BO$582","v":"COST-CAPEX"},{"$f":"_calc!$BR$1","v":"Electricity generation"},{"$f":"_calc!$BR$604","v":87.390885293988248}]
[{"$f":"_xlfn.TEXTJOIN(\",\",FALSE,output[[#This Row],[scenario]:[process_class]])","v":"PTX-BusinessOpportunityAnalyzer-1.0.9,DEU,Hydrogen (AEL),ARG-SAF,COST-CAPEX,Transportation (Pipeline)"},{"$f":"output_scenario_name","v":"PTX-BusinessOpportunityAnalyzer-1.0.9"},{"$f":"sel_country_code","v":"DEU"},{"$f":"sel_chain","v":"Hydrogen (AEL)"},{"$f":"_calc!$B$604","v":"ARG-SAF"},{"$f":"_calc!$BO$582","v":"COST-CAPEX"},{"$f":"_calc!$BS$1","v":"Transportation (Pipeline)"},{"$f":"_calc!$BS$604","v":0}]
[{"$f":"_xlfn.TEXTJOIN(\",\",FALSE,output[[#This Row],[scenario]:[process_class]])","v":"PTX-BusinessOpportunityAnalyzer-1.0.9,DEU,Hydrogen (AEL),ARG-SAF,COST-CAPEX,Transportation (Ship)"},"PTX-BusinessOpportunityAnalyzer-1.0.9",{"$f":"sel_country_code","v":"DEU"},"Hydrogen (AEL)",{"$f":"_calc!$B$604","v":"ARG-SAF"},{"$f":"_calc!$BO$582","v":"COST-CAPEX"},{"$f":"_calc!$BT$1","v":"Transportation (Ship)"},{"$f":"_calc!$BT$604","v":79.062689796174709}]
[{"$f":"_xlfn.TEXTJOIN(\",\",FALSE,output[[#This Row],[scenario]:[process_class]])","v":"PTX-BusinessOpportunityAnalyzer-1.0.9,DEU,Hydrogen (AEL),ARG-SAF,COST-CAPEX,Carbon"},"PTX-BusinessOpportunityAnalyzer-1.0.9",{"$f":"sel_country_code","v":"DEU"},"Hydrogen (AEL)",{"$f":"_calc!$B$604","v":"ARG-SAF"},{"$f":"_calc!$BO$582","v":"COST-CAPEX"},{"$f":"_calc!$BU$1","v":"Carbon"},{"$f":"_calc!$BU$604","v":0}]
[{"$f":"_xlfn.TEXTJOIN(\",\",FALSE,output[[#This Row],[scenario]:[process_class]])","v":"PTX-BusinessOpportunityAnalyzer-1.0.9,DEU,Hydrogen (AEL),ARG-SAF,COST-CAPEX,Derivate production"},"PTX-BusinessOpportunityAnalyzer-1.0.9",{"$f":"sel_country_code","v":"DEU"},"Hydrogen (AEL)",{"$f":"_calc!$B$604","v":"ARG-SAF"},{"$f":"_calc!$BO$582","v":"COST-CAPEX"},{"$f":"_calc!$BV$1","v":"Derivate production"},{"$f":"_calc!$BV$604","v":0}]
[{"$f":"_xlfn.TEXTJOIN(\",\",FALSE,output[[#This Row],[scenario]:[process_class]])","v":"PTX-BusinessOpportunityAnalyzer-1.0.9,DEU,Hydrogen (AEL),ARG-SAF,COST-CAPEX,Heat"},"PTX-BusinessOpportunityAnalyzer-1.0.9",{"$f":"sel_country_code","v":"DEU"},"Hydrogen (AEL)",{"$f":"_calc!$B$604","v":"ARG-SAF"},{"$f":"_calc!$BO$582","v":"COST-CAPEX"},{"$f":"_calc!$BW$1","v":"Heat"},{"$f":"_calc!$BW$604","v":0}]
[{"$f":"_xlfn.TEXTJOIN(\",\",FALSE,output[[#This Row],[scenario]:[process_class]])","v":"PTX-BusinessOpportunityAnalyzer-1.0.9,DEU,Hydrogen (AEL),ARG-SAF,COST-CAPEX,Electricity and H2 storage"},"PTX-BusinessOpportunityAnalyzer-1.0.9",{"$f":"sel_country_code","v":"DEU"},"Hydrogen (AEL)",{"$f":"_calc!$B$604","v":"ARG-SAF"},{"$f":"_calc!$BO$582","v":"COST-CAPEX"},{"$f":"_calc!$BX$1","v":"Electricity and H2 storage"},{"$f":"_calc!$BX$604","v":0}]
[{"$f":"_xlfn.TEXTJOIN(\",\",FALSE,output[[#This Row],[scenario]:[process_class]])","v":"PTX-BusinessOpportunityAnalyzer-1.0.9,DEU,Hydrogen (AEL),ARG-SAJ,COST-CAPEX,Water"},"PTX-BusinessOpportunityAnalyzer-1.0.9",{"$f":"sel_country_code","v":"DEU"},"Hydrogen (AEL)",{"$f":"_calc!$B$605","v":"ARG-SAJ"},{"$f":"_calc!$BO$582","v":"COST-CAPEX"},{"$f":"_calc!$BP$1","v":"Water"},{"$f":"_calc!$BP$605","v":0.15608335265630313}]
[{"$f":"_xlfn.TEXTJOIN(\",\",FALSE,output[[#This Row],[scenario]:[process_class]])","v":"PTX-BusinessOpportunityAnalyzer-1.0.9,DEU,Hydrogen (AEL),ARG-SAJ,COST-CAPEX,Electrolysis"},"PTX-BusinessOpportunityAnalyzer-1.0.9",{"$f":"sel_country_code","v":"DEU"},"Hydrogen (AEL)",{"$f":"_calc!$B$605","v":"ARG-SAJ"},{"$f":"_calc!$BO$582","v":"COST-CAPEX"},{"$f":"_calc!$BQ$1","v":"Electrolysis"},{"$f":"_calc!$BQ$605","v":34.182242267967354}]
[{"$f":"_xlfn.TEXTJOIN(\",\",FALSE,output[[#This Row],[scenario]:[process_class]])","v":"PTX-BusinessOpportunityAnalyzer-1.0.9,DEU,Hydrogen (AEL),ARG-SAJ,COST-CAPEX,Electricity generation"},"PTX-BusinessOpportunityAnalyzer-1.0.9",{"$f":"sel_country_code","v":"DEU"},"Hydrogen (AEL)",{"$f":"_calc!$B$605","v":"ARG-SAJ"},{"$f":"_calc!$BO$582","v":"COST-CAPEX"},{"$f":"_calc!$BR$1","v":"Electricity generation"},{"$f":"_calc!$BR$605","v":92.082790077757011}]
[{"$f":"_xlfn.TEXTJOIN(\",\",FALSE,output[[#This Row],[scenario]:[process_class]])","v":"PTX-BusinessOpportunityAnalyzer-1.0.9,DEU,Hydrogen (AEL),ARG-SAJ,COST-CAPEX,Transportation (Pipeline)"},"PTX-BusinessOpportunityAnalyzer-1.0.9",{"$f":"sel_country_code","v":"DEU"},"Hydrogen (AEL)",{"$f":"_calc!$B$605","v":"ARG-SAJ"},{"$f":"_calc!$BO$582","v":"COST-CAPEX"},{"$f":"_calc!$BS$1","v":"Transportation (Pipeline)"},{"$f":"_calc!$BS$605","v":0}]
[{"$f":"_xlfn.TEXTJOIN(\",\",FALSE,output[[#This Row],[scenario]:[process_class]])","v":"PTX-BusinessOpportunityAnalyzer-1.0.9,DEU,Hydrogen (AEL),ARG-SAJ,COST-CAPEX,Transportation (Ship)"},"PTX-BusinessOpportunityAnalyzer-1.0.9",{"$f":"sel_country_code","v":"DEU"},"Hydrogen (AEL)",{"$f":"_calc!$B$605","v":"ARG-SAJ"},{"$f":"_calc!$BO$582","v":"COST-CAPEX"},{"$f":"_calc!$BT$1","v":"Transportation (Ship)"},{"$f":"_calc!$BT$605","v":83.762289908149938}]
[{"$f":"_xlfn.TEXTJOIN(\",\",FALSE,output[[#This Row],[scenario]:[process_class]])","v":"PTX-BusinessOpportunityAnalyzer-1.0.9,DEU,Hydrogen (AEL),ARG-SAJ,COST-CAPEX,Carbon"},"PTX-BusinessOpportunityAnalyzer-1.0.9",{"$f":"sel_country_code","v":"DEU"},"Hydrogen (AEL)",{"$f":"_calc!$B$605","v":"ARG-SAJ"},{"$f":"_calc!$BO$582","v":"COST-CAPEX"},{"$f":"_calc!$BU$1","v":"Carbon"},{"$f":"_calc!$BU$605","v":0}]
[{"$f":"_xlfn.TEXTJOIN(\",\",FALSE,output[[#This Row],[scenario]:[process_class]])","v":"PTX-BusinessOpportunityAnalyzer-1.0.9,DEU,Hydrogen (AEL),ARG-SAJ,COST-CAPEX,Derivate production"},"PTX-BusinessOpportunityAnalyzer-1.0.9",{"$f":"sel_country_code","v":"DEU"},"Hydrogen (AEL)",{"$f":"_calc!$B$605","v":"ARG-SAJ"},{"$f":"_calc!$BO$582","v":"COST-CAPEX"},{"$f":"_calc!$BV$1","v":"Derivate production"},{"$f":"_calc!$BV$605","v":0}]
[{"$f":"_xlfn.TEXTJOIN(\",\",FALSE,output[[#This Row],[scenario]:[process_class]])","v":"PTX-BusinessOpportunityAnalyzer-1.0.9,DEU,Hydrogen (AEL),ARG-SAJ,COST-CAPEX,Heat"},"PTX-BusinessOpportunityAnalyzer-1.0.9",{"$f":"sel_country_code","v":"DEU"},"Hydrogen (AEL)",{"$f":"_calc!$B$605","v":"ARG-SAJ"},{"$f":"_calc!$BO$582","v":"COST-CAPEX"},{"$f":"_calc!$BW$1","v":"Heat"},{"$f":"_calc!$BW$605","v":0}]
[{"$f":"_xlfn.TEXTJOIN(\",\",FALSE,output[[#This Row],[scenario]:[process_class]])","v":"PTX-BusinessOpportunityAnalyzer-1.0.9,DEU,Hydrogen (AEL),ARG-SAJ,COST-CAPEX,Electricity and H2 storage"},"PTX-BusinessOpportunityAnalyzer-1.0.9",{"$f":"sel_country_code","v":"DEU"},"Hydrogen (AEL)",{"$f":"_calc!$B$605","v":"ARG-SAJ"},{"$f":"_calc!$BO$582","v":"COST-CAPEX"},{"$f":"_calc!$BX$1","v":"Electricity and H2 storage"},{"$f":"_calc!$BX$605","v":0}]
[{"$f":"_xlfn.TEXTJOIN(\",\",FALSE,output[[#This Row],[scenario]:[process_class]])","v":"PTX-BusinessOpportunityAnalyzer-1.0.9,DEU,Hydrogen (AEL),ARG-SAL,COST-CAPEX,Water"},"PTX-BusinessOpportunityAnalyzer-1.0.9",{"$f":"sel_country_code","v":"DEU"},"Hydrogen (AEL)",{"$f":"_calc!$B$606","v":"ARG-SAL"},{"$f":"_calc!$BO$582","v":"COST-CAPEX"},{"$f":"_calc!$BP$1","v":"Water"},{"$f":"_calc!$BP$606","v":0.15608335265630313}]
[{"$f":"_xlfn.TEXTJOIN(\",\",FALSE,output[[#This Row],[scenario]:[process_class]])","v":"PTX-BusinessOpportunityAnalyzer-1.0.9,DEU,Hydrogen (AEL),ARG-SAL,COST-CAPEX,Electrolysis"},"PTX-BusinessOpportunityAnalyzer-1.0.9",{"$f":"sel_country_code","v":"DEU"},"Hydrogen (AEL)",{"$f":"_calc!$B$606","v":"ARG-SAL"},{"$f":"_calc!$BO$582","v":"COST-CAPEX"},{"$f":"_calc!$BQ$1","v":"Electrolysis"},{"$f":"_calc!$BQ$606","v":27.811512213253916}]
[{"$f":"_xlfn.TEXTJOIN(\",\",FALSE,output[[#This Row],[scenario]:[process_class]])","v":"PTX-BusinessOpportunityAnalyzer-1.0.9,DEU,Hydrogen (AEL),ARG-SAL,COST-CAPEX,Electricity generation"},"PTX-BusinessOpportunityAnalyzer-1.0.9",{"$f":"sel_country_code","v":"DEU"},"Hydrogen (AEL)",{"$f":"_calc!$B$606","v":"ARG-SAL"},{"$f":"_calc!$BO$582","v":"COST-CAPEX"},{"$f":"_calc!$BR$1","v":"Electricity generation"},{"$f":"_calc!$BR$606","v":76.755177742628703}]
[{"$f":"_xlfn.TEXTJOIN(\",\",FALSE,output[[#This Row],[scenario]:[process_class]])","v":"PTX-BusinessOpportunityAnalyzer-1.0.9,DEU,Hydrogen (AEL),ARG-SAL,COST-CAPEX,Transportation (Pipeline)"},"PTX-BusinessOpportunityAnalyzer-1.0.9",{"$f":"sel_country_code","v":"DEU"},"Hydrogen (AEL)",{"$f":"_calc!$B$606","v":"ARG-SAL"},{"$f":"_calc!$BO$582","v":"COST-CAPEX"},{"$f":"_calc!$BS$1","v":"Transportation (Pipeline)"},{"$f":"_calc!$BS$606","v":0}]
[{"$f":"_xlfn.TEXTJOIN(\",\",FALSE,output[[#This Row],[scenario]:[process_class]])","v":"PTX-BusinessOpportunityAnalyzer-1.0.9,DEU,Hydrogen (AEL),ARG-SAL,COST-CAPEX,Transportation (Ship)"},"PTX-BusinessOpportunityAnalyzer-1.0.9",{"$f":"sel_country_code","v":"DEU"},"Hydrogen (AEL)",{"$f":"_calc!$B$606","v":"ARG-SAL"},{"$f":"_calc!$BO$582","v":"COST-CAPEX"},{"$f":"_calc!$BT$1","v":"Transportation (Ship)"},{"$f":"_calc!$BT$606","v":68.828486025317247}]
[{"$f":"_xlfn.TEXTJOIN(\",\",FALSE,output[[#This Row],[scenario]:[process_class]])","v":"PTX-BusinessOpportunityAnalyzer-1.0.9,DEU,Hydrogen (AEL),ARG-SAL,COST-CAPEX,Carbon"},"PTX-BusinessOpportunityAnalyzer-1.0.9",{"$f":"sel_country_code","v":"DEU"},"Hydrogen (AEL)",{"$f":"_calc!$B$606","v":"ARG-SAL"},{"$f":"_calc!$BO$582","v":"COST-CAPEX"},{"$f":"_calc!$BU$1","v":"Carbon"},{"$f":"_calc!$BU$606","v":0}]
[{"$f":"_xlfn.TEXTJOIN(\",\",FALSE,output[[#This Row],[scenario]:[process_class]])","v":"PTX-BusinessOpportunityAnalyzer-1.0.9,DEU,Hydrogen (AEL),ARG-SAL,COST-CAPEX,Derivate production"},"PTX-BusinessOpportunityAnalyzer-1.0.9",{"$f":"sel_country_code","v":"DEU"},"Hydrogen (AEL)",{"$f":"_calc!$B$606","v":"ARG-SAL"},{"$f":"_calc!$BO$582","v":"COST-CAPEX"},{"$f":"_calc!$BV$1","v":"Derivate production"},{"$f":"_calc!$BV$606","v":0}]
[{"$f":"_xlfn.TEXTJOIN(\",\",FALSE,output[[#This Row],[scenario]:[process_class]])","v":"PTX-BusinessOpportunityAnalyzer-1.0.9,DEU,Hydrogen (AEL),ARG-SAL,COST-CAPEX,Heat"},"PTX-BusinessOpportunityAnalyzer-1.0.9",{"$f":"sel_country_code","v":"DEU"},"Hydrogen (AEL)",{"$f":"_calc!$B$606","v":"ARG-SAL"},{"$f":"_calc!$BO$582","v":"COST-CAPEX"},{"$f":"_calc!$BW$1","v":"Heat"},{"$f":"_calc!$BW$606","v":0}]
[{"$f":"_xlfn.TEXTJOIN(\",\",FALSE,output[[#This Row],[scenario]:[process_class]])","v":"PTX-BusinessOpportunityAnalyzer-1.0.9,DEU,Hydrogen (AEL),ARG-SAL,COST-CAPEX,Electricity and H2 storage"},"PTX-BusinessOpportunityAnalyzer-1.0.9",{"$f":"sel_country_code","v":"DEU"},"Hydrogen (AEL)",{"$f":"_calc!$B$606","v":"ARG-SAL"},{"$f":"_calc!$BO$582","v":"COST-CAPEX"},{"$f":"_calc!$BX$1","v":"Electricity and H2 storage"},{"$f":"_calc!$BX$606","v":0}]
[{"$f":"_xlfn.TEXTJOIN(\",\",FALSE,output[[#This Row],[scenario]:[process_class]])","v":"PTX-BusinessOpportunityAnalyzer-1.0.9,DEU,Hydrogen (AEL),ARG-SAT,COST-CAPEX,Water"},"PTX-BusinessOpportunityAnalyzer-1.0.9",{"$f":"sel_country_code","v":"DEU"},"Hydrogen (AEL)",{"$f":"_calc!$B$607","v":"ARG-SAT"},{"$f":"_calc!$BO$582","v":"COST-CAPEX"},{"$f":"_calc!$BP$1","v":"Water"},{"$f":"_calc!$BP$607","v":0.15608335265630313}]
[{"$f":"_xlfn.TEXTJOIN(\",\",FALSE,output[[#This Row],[scenario]:[process_class]])","v":"PTX-BusinessOpportunityAnalyzer-1.0.9,DEU,Hydrogen (AEL),ARG-SAT,COST-CAPEX,Electrolysis"},"PTX-BusinessOpportunityAnalyzer-1.0.9",{"$f":"sel_country_code","v":"DEU"},"Hydrogen (AEL)",{"$f":"_calc!$B$607","v":"ARG-SAT"},{"$f":"_calc!$BO$582","v":"COST-CAPEX"},{"$f":"_calc!$BQ$1","v":"Electrolysis"},{"$f":"_calc!$BQ$607","v":29.851119990639866}]
[{"$f":"_xlfn.TEXTJOIN(\",\",FALSE,output[[#This Row],[scenario]:[process_class]])","v":"PTX-BusinessOpportunityAnalyzer-1.0.9,DEU,Hydrogen (AEL),ARG-SAT,COST-CAPEX,Electricity generation"},"PTX-BusinessOpportunityAnalyzer-1.0.9",{"$f":"sel_country_code","v":"DEU"},"Hydrogen (AEL)",{"$f":"_calc!$B$607","v":"ARG-SAT"},{"$f":"_calc!$BO$582","v":"COST-CAPEX"},{"$f":"_calc!$BR$1","v":"Electricity generation"},{"$f":"_calc!$BR$607","v":81.74340383575381}]
[{"$f":"_xlfn.TEXTJOIN(\",\",FALSE,output[[#This Row],[scenario]:[process_class]])","v":"PTX-BusinessOpportunityAnalyzer-1.0.9,DEU,Hydrogen (AEL),ARG-SAT,COST-CAPEX,Transportation (Pipeline)"},"PTX-BusinessOpportunityAnalyzer-1.0.9",{"$f":"sel_country_code","v":"DEU"},"Hydrogen (AEL)",{"$f":"_calc!$B$607","v":"ARG-SAT"},{"$f":"_calc!$BO$582","v":"COST-CAPEX"},{"$f":"_calc!$BS$1","v":"Transportation (Pipeline)"},{"$f":"_calc!$BS$607","v":0}]
[{"$f":"_xlfn.TEXTJOIN(\",\",FALSE,output[[#This Row],[scenario]:[process_class]])","v":"PTX-BusinessOpportunityAnalyzer-1.0.9,DEU,Hydrogen (AEL),ARG-SAT,COST-CAPEX,Transportation (Ship)"},"PTX-BusinessOpportunityAnalyzer-1.0.9",{"$f":"sel_country_code","v":"DEU"},"Hydrogen (AEL)",{"$f":"_calc!$B$607","v":"ARG-SAT"},{"$f":"_calc!$BO$582","v":"COST-CAPEX"},{"$f":"_calc!$BT$1","v":"Transportation (Ship)"},{"$f":"_calc!$BT$607","v":73.557952401815385}]
[{"$f":"_xlfn.TEXTJOIN(\",\",FALSE,output[[#This Row],[scenario]:[process_class]])","v":"PTX-BusinessOpportunityAnalyzer-1.0.9,DEU,Hydrogen (AEL),ARG-SAT,COST-CAPEX,Carbon"},"PTX-BusinessOpportunityAnalyzer-1.0.9",{"$f":"sel_country_code","v":"DEU"},"Hydrogen (AEL)",{"$f":"_calc!$B$607","v":"ARG-SAT"},{"$f":"_calc!$BO$582","v":"COST-CAPEX"},{"$f":"_calc!$BU$1","v":"Carbon"},{"$f":"_calc!$BU$607","v":0}]
[{"$f":"_xlfn.TEXTJOIN(\",\",FALSE,output[[#This Row],[scenario]:[process_class]])","v":"PTX-BusinessOpportunityAnalyzer-1.0.9,DEU,Hydrogen (AEL),ARG-SAT,COST-CAPEX,Derivate production"},"PTX-BusinessOpportunityAnalyzer-1.0.9",{"$f":"sel_country_code","v":"DEU"},"Hydrogen (AEL)",{"$f":"_calc!$B$607","v":"ARG-SAT"},{"$f":"_calc!$BO$582","v":"COST-CAPEX"},{"$f":"_calc!$BV$1","v":"Derivate production"},{"$f":"_calc!$BV$607","v":0}]
[{"$f":"_xlfn.TEXTJOIN(\",\",FALSE,output[[#This Row],[scenario]:[process_class]])","v":"PTX-BusinessOpportunityAnalyzer-1.0.9,DEU,Hydrogen (AEL),ARG-SAT,COST-CAPEX,Heat"},"PTX-BusinessOpportunityAnalyzer-1.0.9",{"$f":"sel_country_code","v":"DEU"},"Hydrogen (AEL)",{"$f":"_calc!$B$607","v":"ARG-SAT"},{"$f":"_calc!$BO$582","v":"COST-CAPEX"},{"$f":"_calc!$BW$1","v":"Heat"},{"$f":"_calc!$BW$607","v":0}]
[{"$f":"_xlfn.TEXTJOIN(\",\",FALSE,output[[#This Row],[scenario]:[process_class]])","v":"PTX-BusinessOpportunityAnalyzer-1.0.9,DEU,Hydrogen (AEL),ARG-SAT,COST-CAPEX,Electricity and H2 storage"},"PTX-BusinessOpportunityAnalyzer-1.0.9",{"$f":"sel_country_code","v":"DEU"},"Hydrogen (AEL)",{"$f":"_calc!$B$607","v":"ARG-SAT"},{"$f":"_calc!$BO$582","v":"COST-CAPEX"},{"$f":"_calc!$BX$1","v":"Electricity and H2 storage"},{"$f":"_calc!$BX$607","v":0}]
[{"$f":"_xlfn.TEXTJOIN(\",\",FALSE,output[[#This Row],[scenario]:[process_class]])","v":"PTX-BusinessOpportunityAnalyzer-1.0.9,DEU,Hydrogen (AEL),ARG-TUC,COST-CAPEX,Water"},"PTX-BusinessOpportunityAnalyzer-1.0.9",{"$f":"sel_country_code","v":"DEU"},"Hydrogen (AEL)",{"$f":"_calc!$B$608","v":"ARG-TUC"},{"$f":"_calc!$BO$582","v":"COST-CAPEX"},{"$f":"_calc!$BP$1","v":"Water"},{"$f":"_calc!$BP$608","v":0.15608335265630313}]
[{"$f":"_xlfn.TEXTJOIN(\",\",FALSE,output[[#This Row],[scenario]:[process_class]])","v":"PTX-BusinessOpportunityAnalyzer-1.0.9,DEU,Hydrogen (AEL),ARG-TUC,COST-CAPEX,Electrolysis"},"PTX-BusinessOpportunityAnalyzer-1.0.9",{"$f":"sel_country_code","v":"DEU"},"Hydrogen (AEL)",{"$f":"_calc!$B$608","v":"ARG-TUC"},{"$f":"_calc!$BO$582","v":"COST-CAPEX"},{"$f":"_calc!$BQ$1","v":"Electrolysis"},{"$f":"_calc!$BQ$608","v":41.515337909644479}]
[{"$f":"_xlfn.TEXTJOIN(\",\",FALSE,output[[#This Row],[scenario]:[process_class]])","v":"PTX-BusinessOpportunityAnalyzer-1.0.9,DEU,Hydrogen (AEL),ARG-TUC,COST-CAPEX,Electricity generation"},"PTX-BusinessOpportunityAnalyzer-1.0.9",{"$f":"sel_country_code","v":"DEU"},"Hydrogen (AEL)",{"$f":"_calc!$B$608","v":"ARG-TUC"},{"$f":"_calc!$BO$582","v":"COST-CAPEX"},{"$f":"_calc!$BR$1","v":"Electricity generation"},{"$f":"_calc!$BR$608","v":108.84309343480331}]
[{"$f":"_xlfn.TEXTJOIN(\",\",FALSE,output[[#This Row],[scenario]:[process_class]])","v":"PTX-BusinessOpportunityAnalyzer-1.0.9,DEU,Hydrogen (AEL),ARG-TUC,COST-CAPEX,Transportation (Pipeline)"},"PTX-BusinessOpportunityAnalyzer-1.0.9",{"$f":"sel_country_code","v":"DEU"},"Hydrogen (AEL)",{"$f":"_calc!$B$608","v":"ARG-TUC"},{"$f":"_calc!$BO$582","v":"COST-CAPEX"},{"$f":"_calc!$BS$1","v":"Transportation (Pipeline)"},{"$f":"_calc!$BS$608","v":0}]
[{"$f":"_xlfn.TEXTJOIN(\",\",FALSE,output[[#This Row],[scenario]:[process_class]])","v":"PTX-BusinessOpportunityAnalyzer-1.0.9,DEU,Hydrogen (AEL),ARG-TUC,COST-CAPEX,Transportation (Ship)"},"PTX-BusinessOpportunityAnalyzer-1.0.9",{"$f":"sel_country_code","v":"DEU"},"Hydrogen (AEL)",{"$f":"_calc!$B$608","v":"ARG-TUC"},{"$f":"_calc!$BO$582","v":"COST-CAPEX"},{"$f":"_calc!$BT$1","v":"Transportation (Ship)"},{"$f":"_calc!$BT$608","v":98.996526498355749}]
[{"$f":"_xlfn.TEXTJOIN(\",\",FALSE,output[[#This Row],[scenario]:[process_class]])","v":"PTX-BusinessOpportunityAnalyzer-1.0.9,DEU,Hydrogen (AEL),ARG-TUC,COST-CAPEX,Carbon"},"PTX-BusinessOpportunityAnalyzer-1.0.9",{"$f":"sel_country_code","v":"DEU"},"Hydrogen (AEL)",{"$f":"_calc!$B$608","v":"ARG-TUC"},{"$f":"_calc!$BO$582","v":"COST-CAPEX"},{"$f":"_calc!$BU$1","v":"Carbon"},{"$f":"_calc!$BU$608","v":0}]
[{"$f":"_xlfn.TEXTJOIN(\",\",FALSE,output[[#This Row],[scenario]:[process_class]])","v":"PTX-BusinessOpportunityAnalyzer-1.0.9,DEU,Hydrogen (AEL),ARG-TUC,COST-CAPEX,Derivate production"},"PTX-BusinessOpportunityAnalyzer-1.0.9",{"$f":"sel_country_code","v":"DEU"},"Hydrogen (AEL)",{"$f":"_calc!$B$608","v":"ARG-TUC"},{"$f":"_calc!$BO$582","v":"COST-CAPEX"},{"$f":"_calc!$BV$1","v":"Derivate production"},{"$f":"_calc!$BV$608","v":0}]
[{"$f":"_xlfn.TEXTJOIN(\",\",FALSE,output[[#This Row],[scenario]:[process_class]])","v":"PTX-BusinessOpportunityAnalyzer-1.0.9,DEU,Hydrogen (AEL),ARG-TUC,COST-CAPEX,Heat"},"PTX-BusinessOpportunityAnalyzer-1.0.9",{"$f":"sel_country_code","v":"DEU"},"Hydrogen (AEL)",{"$f":"_calc!$B$608","v":"ARG-TUC"},{"$f":"_calc!$BO$582","v":"COST-CAPEX"},{"$f":"_calc!$BW$1","v":"Heat"},{"$f":"_calc!$BW$608","v":0}]
[{"$f":"_xlfn.TEXTJOIN(\",\",FALSE,output[[#This Row],[scenario]:[process_class]])","v":"PTX-BusinessOpportunityAnalyzer-1.0.9,DEU,Hydrogen (AEL),ARG-TUC,COST-CAPEX,Electricity and H2 storage"},"PTX-BusinessOpportunityAnalyzer-1.0.9",{"$f":"sel_country_code","v":"DEU"},"Hydrogen (AEL)",{"$f":"_calc!$B$608","v":"ARG-TUC"},{"$f":"_calc!$BO$582","v":"COST-CAPEX"},{"$f":"_calc!$BX$1","v":"Electricity and H2 storage"},{"$f":"_calc!$BX$608","v":0}]
[{"$f":"_xlfn.TEXTJOIN(\",\",FALSE,output[[#This Row],[scenario]:[process_class]])","v":"PTX-BusinessOpportunityAnalyzer-1.0.9,DEU,Hydrogen (AEL),AUS,COST-CAPEX,Water"},"PTX-BusinessOpportunityAnalyzer-1.0.9",{"$f":"sel_country_code","v":"DEU"},"Hydrogen (AEL)",{"$f":"_calc!$B$609","v":"AUS"},{"$f":"_calc!$BO$582","v":"COST-CAPEX"},{"$f":"_calc!$BP$1","v":"Water"},{"$f":"_calc!$BP$609","v":8.6121079833860539E-2}]
[{"$f":"_xlfn.TEXTJOIN(\",\",FALSE,output[[#This Row],[scenario]:[process_class]])","v":"PTX-BusinessOpportunityAnalyzer-1.0.9,DEU,Hydrogen (AEL),AUS,COST-CAPEX,Electrolysis"},"PTX-BusinessOpportunityAnalyzer-1.0.9",{"$f":"sel_country_code","v":"DEU"},"Hydrogen (AEL)",{"$f":"_calc!$B$609","v":"AUS"},{"$f":"_calc!$BO$582","v":"COST-CAPEX"},{"$f":"_calc!$BQ$1","v":"Electrolysis"},{"$f":"_calc!$BQ$609","v":14.462535110441207}]
[{"$f":"_xlfn.TEXTJOIN(\",\",FALSE,output[[#This Row],[scenario]:[process_class]])","v":"PTX-BusinessOpportunityAnalyzer-1.0.9,DEU,Hydrogen (AEL),AUS,COST-CAPEX,Electricity generation"},"PTX-BusinessOpportunityAnalyzer-1.0.9",{"$f":"sel_country_code","v":"DEU"},"Hydrogen (AEL)",{"$f":"_calc!$B$609","v":"AUS"},{"$f":"_calc!$BO$582","v":"COST-CAPEX"},{"$f":"_calc!$BR$1","v":"Electricity generation"},{"$f":"_calc!$BR$609","v":46.782343864091018}]
[{"$f":"_xlfn.TEXTJOIN(\",\",FALSE,output[[#This Row],[scenario]:[process_class]])","v":"PTX-BusinessOpportunityAnalyzer-1.0.9,DEU,Hydrogen (AEL),AUS,COST-CAPEX,Transportation (Pipeline)"},"PTX-BusinessOpportunityAnalyzer-1.0.9",{"$f":"sel_country_code","v":"DEU"},"Hydrogen (AEL)",{"$f":"_calc!$B$609","v":"AUS"},{"$f":"_calc!$BO$582","v":"COST-CAPEX"},{"$f":"_calc!$BS$1","v":"Transportation (Pipeline)"},{"$f":"_calc!$BS$609","v":0}]
[{"$f":"_xlfn.TEXTJOIN(\",\",FALSE,output[[#This Row],[scenario]:[process_class]])","v":"PTX-BusinessOpportunityAnalyzer-1.0.9,DEU,Hydrogen (AEL),AUS,COST-CAPEX,Transportation (Ship)"},"PTX-BusinessOpportunityAnalyzer-1.0.9",{"$f":"sel_country_code","v":"DEU"},"Hydrogen (AEL)",{"$f":"_calc!$B$609","v":"AUS"},{"$f":"_calc!$BO$582","v":"COST-CAPEX"},{"$f":"_calc!$BT$1","v":"Transportation (Ship)"},{"$f":"_calc!$BT$609","v":30.368859738461047}]
[{"$f":"_xlfn.TEXTJOIN(\",\",FALSE,output[[#This Row],[scenario]:[process_class]])","v":"PTX-BusinessOpportunityAnalyzer-1.0.9,DEU,Hydrogen (AEL),AUS,COST-CAPEX,Carbon"},"PTX-BusinessOpportunityAnalyzer-1.0.9",{"$f":"sel_country_code","v":"DEU"},"Hydrogen (AEL)",{"$f":"_calc!$B$609","v":"AUS"},{"$f":"_calc!$BO$582","v":"COST-CAPEX"},{"$f":"_calc!$BU$1","v":"Carbon"},{"$f":"_calc!$BU$609","v":0}]
[{"$f":"_xlfn.TEXTJOIN(\",\",FALSE,output[[#This Row],[scenario]:[process_class]])","v":"PTX-BusinessOpportunityAnalyzer-1.0.9,DEU,Hydrogen (AEL),AUS,COST-CAPEX,Derivate production"},"PTX-BusinessOpportunityAnalyzer-1.0.9",{"$f":"sel_country_code","v":"DEU"},"Hydrogen (AEL)",{"$f":"_calc!$B$609","v":"AUS"},{"$f":"_calc!$BO$582","v":"COST-CAPEX"},{"$f":"_calc!$BV$1","v":"Derivate production"},{"$f":"_calc!$BV$609","v":0}]
[{"$f":"_xlfn.TEXTJOIN(\",\",FALSE,output[[#This Row],[scenario]:[process_class]])","v":"PTX-BusinessOpportunityAnalyzer-1.0.9,DEU,Hydrogen (AEL),AUS,COST-CAPEX,Heat"},"PTX-BusinessOpportunityAnalyzer-1.0.9",{"$f":"sel_country_code","v":"DEU"},"Hydrogen (AEL)",{"$f":"_calc!$B$609","v":"AUS"},{"$f":"_calc!$BO$582","v":"COST-CAPEX"},{"$f":"_calc!$BW$1","v":"Heat"},{"$f":"_calc!$BW$609","v":0}]
[{"$f":"_xlfn.TEXTJOIN(\",\",FALSE,output[[#This Row],[scenario]:[process_class]])","v":"PTX-BusinessOpportunityAnalyzer-1.0.9,DEU,Hydrogen (AEL),AUS,COST-CAPEX,Electricity and H2 storage"},"PTX-BusinessOpportunityAnalyzer-1.0.9",{"$f":"sel_country_code","v":"DEU"},"Hydrogen (AEL)",{"$f":"_calc!$B$609","v":"AUS"},{"$f":"_calc!$BO$582","v":"COST-CAPEX"},{"$f":"_calc!$BX$1","v":"Electricity and H2 storage"},{"$f":"_calc!$BX$609","v":0}]
[{"$f":"_xlfn.TEXTJOIN(\",\",FALSE,output[[#This Row],[scenario]:[process_class]])","v":"PTX-BusinessOpportunityAnalyzer-1.0.9,DEU,Hydrogen (AEL),BRA,COST-CAPEX,Water"},"PTX-BusinessOpportunityAnalyzer-1.0.9",{"$f":"sel_country_code","v":"DEU"},"Hydrogen (AEL)",{"$f":"_calc!$B$610","v":"BRA"},{"$f":"_calc!$BO$582","v":"COST-CAPEX"},{"$f":"_calc!$BP$1","v":"Water"},{"$f":"_calc!$BP$610","v":9.9031068234649619E-2}]
[{"$f":"_xlfn.TEXTJOIN(\",\",FALSE,output[[#This Row],[scenario]:[process_class]])","v":"PTX-BusinessOpportunityAnalyzer-1.0.9,DEU,Hydrogen (AEL),BRA,COST-CAPEX,Electrolysis"},"PTX-BusinessOpportunityAnalyzer-1.0.9",{"$f":"sel_country_code","v":"DEU"},"Hydrogen (AEL)",{"$f":"_calc!$B$610","v":"BRA"},{"$f":"_calc!$BO$582","v":"COST-CAPEX"},{"$f":"_calc!$BQ$1","v":"Electrolysis"},{"$f":"_calc!$BQ$610","v":16.400693219510952}]
[{"$f":"_xlfn.TEXTJOIN(\",\",FALSE,output[[#This Row],[scenario]:[process_class]])","v":"PTX-BusinessOpportunityAnalyzer-1.0.9,DEU,Hydrogen (AEL),BRA,COST-CAPEX,Electricity generation"},"PTX-BusinessOpportunityAnalyzer-1.0.9",{"$f":"sel_country_code","v":"DEU"},"Hydrogen (AEL)",{"$f":"_calc!$B$610","v":"BRA"},{"$f":"_calc!$BO$582","v":"COST-CAPEX"},{"$f":"_calc!$BR$1","v":"Electricity generation"},{"$f":"_calc!$BR$610","v":35.964397828317075}]
[{"$f":"_xlfn.TEXTJOIN(\",\",FALSE,output[[#This Row],[scenario]:[process_class]])","v":"PTX-BusinessOpportunityAnalyzer-1.0.9,DEU,Hydrogen (AEL),BRA,COST-CAPEX,Transportation (Pipeline)"},"PTX-BusinessOpportunityAnalyzer-1.0.9",{"$f":"sel_country_code","v":"DEU"},"Hydrogen (AEL)",{"$f":"_calc!$B$610","v":"BRA"},{"$f":"_calc!$BO$582","v":"COST-CAPEX"},{"$f":"_calc!$BS$1","v":"Transportation (Pipeline)"},{"$f":"_calc!$BS$610","v":0}]
[{"$f":"_xlfn.TEXTJOIN(\",\",FALSE,output[[#This Row],[scenario]:[process_class]])","v":"PTX-BusinessOpportunityAnalyzer-1.0.9,DEU,Hydrogen (AEL),BRA,COST-CAPEX,Transportation (Ship)"},"PTX-BusinessOpportunityAnalyzer-1.0.9",{"$f":"sel_country_code","v":"DEU"},"Hydrogen (AEL)",{"$f":"_calc!$B$610","v":"BRA"},{"$f":"_calc!$BO$582","v":"COST-CAPEX"},{"$f":"_calc!$BT$1","v":"Transportation (Ship)"},{"$f":"_calc!$BT$610","v":36.462092172885804}]
[{"$f":"_xlfn.TEXTJOIN(\",\",FALSE,output[[#This Row],[scenario]:[process_class]])","v":"PTX-BusinessOpportunityAnalyzer-1.0.9,DEU,Hydrogen (AEL),BRA,COST-CAPEX,Carbon"},"PTX-BusinessOpportunityAnalyzer-1.0.9",{"$f":"sel_country_code","v":"DEU"},"Hydrogen (AEL)",{"$f":"_calc!$B$610","v":"BRA"},{"$f":"_calc!$BO$582","v":"COST-CAPEX"},{"$f":"_calc!$BU$1","v":"Carbon"},{"$f":"_calc!$BU$610","v":0}]
[{"$f":"_xlfn.TEXTJOIN(\",\",FALSE,output[[#This Row],[scenario]:[process_class]])","v":"PTX-BusinessOpportunityAnalyzer-1.0.9,DEU,Hydrogen (AEL),BRA,COST-CAPEX,Derivate production"},"PTX-BusinessOpportunityAnalyzer-1.0.9",{"$f":"sel_country_code","v":"DEU"},"Hydrogen (AEL)",{"$f":"_calc!$B$610","v":"BRA"},{"$f":"_calc!$BO$582","v":"COST-CAPEX"},{"$f":"_calc!$BV$1","v":"Derivate production"},{"$f":"_calc!$BV$610","v":0}]
[{"$f":"_xlfn.TEXTJOIN(\",\",FALSE,output[[#This Row],[scenario]:[process_class]])","v":"PTX-BusinessOpportunityAnalyzer-1.0.9,DEU,Hydrogen (AEL),BRA,COST-CAPEX,Heat"},"PTX-BusinessOpportunityAnalyzer-1.0.9",{"$f":"sel_country_code","v":"DEU"},"Hydrogen (AEL)",{"$f":"_calc!$B$610","v":"BRA"},{"$f":"_calc!$BO$582","v":"COST-CAPEX"},{"$f":"_calc!$BW$1","v":"Heat"},{"$f":"_calc!$BW$610","v":0}]
[{"$f":"_xlfn.TEXTJOIN(\",\",FALSE,output[[#This Row],[scenario]:[process_class]])","v":"PTX-BusinessOpportunityAnalyzer-1.0.9,DEU,Hydrogen (AEL),BRA,COST-CAPEX,Electricity and H2 storage"},"PTX-BusinessOpportunityAnalyzer-1.0.9",{"$f":"sel_country_code","v":"DEU"},"Hydrogen (AEL)",{"$f":"_calc!$B$610","v":"BRA"},{"$f":"_calc!$BO$582","v":"COST-CAPEX"},{"$f":"_calc!$BX$1","v":"Electricity and H2 storage"},{"$f":"_calc!$BX$610","v":0}]
[{"$f":"_xlfn.TEXTJOIN(\",\",FALSE,output[[#This Row],[scenario]:[process_class]])","v":"PTX-BusinessOpportunityAnalyzer-1.0.9,DEU,Hydrogen (AEL),CHL,COST-CAPEX,Water"},"PTX-BusinessOpportunityAnalyzer-1.0.9",{"$f":"sel_country_code","v":"DEU"},"Hydrogen (AEL)",{"$f":"_calc!$B$611","v":"CHL"},{"$f":"_calc!$BO$582","v":"COST-CAPEX"},{"$f":"_calc!$BP$1","v":"Water"},{"$f":"_calc!$BP$611","v":8.1882805976404252E-2}]
[{"$f":"_xlfn.TEXTJOIN(\",\",FALSE,output[[#This Row],[scenario]:[process_class]])","v":"PTX-BusinessOpportunityAnalyzer-1.0.9,DEU,Hydrogen (AEL),CHL,COST-CAPEX,Electrolysis"},"PTX-BusinessOpportunityAnalyzer-1.0.9",{"$f":"sel_country_code","v":"DEU"},"Hydrogen (AEL)",{"$f":"_calc!$B$611","v":"CHL"},{"$f":"_calc!$BO$582","v":"COST-CAPEX"},{"$f":"_calc!$BQ$1","v":"Electrolysis"},{"$f":"_calc!$BQ$611","v":22.890752826924285}]
[{"$f":"_xlfn.TEXTJOIN(\",\",FALSE,output[[#This Row],[scenario]:[process_class]])","v":"PTX-BusinessOpportunityAnalyzer-1.0.9,DEU,Hydrogen (AEL),CHL,COST-CAPEX,Electricity generation"},"PTX-BusinessOpportunityAnalyzer-1.0.9",{"$f":"sel_country_code","v":"DEU"},"Hydrogen (AEL)",{"$f":"_calc!$B$611","v":"CHL"},{"$f":"_calc!$BO$582","v":"COST-CAPEX"},{"$f":"_calc!$BR$1","v":"Electricity generation"},{"$f":"_calc!$BR$611","v":60.994010870256034}]
[{"$f":"_xlfn.TEXTJOIN(\",\",FALSE,output[[#This Row],[scenario]:[process_class]])","v":"PTX-BusinessOpportunityAnalyzer-1.0.9,DEU,Hydrogen (AEL),CHL,COST-CAPEX,Transportation (Pipeline)"},"PTX-BusinessOpportunityAnalyzer-1.0.9",{"$f":"sel_country_code","v":"DEU"},"Hydrogen (AEL)",{"$f":"_calc!$B$611","v":"CHL"},{"$f":"_calc!$BO$582","v":"COST-CAPEX"},{"$f":"_calc!$BS$1","v":"Transportation (Pipeline)"},{"$f":"_calc!$BS$611","v":0}]
[{"$f":"_xlfn.TEXTJOIN(\",\",FALSE,output[[#This Row],[scenario]:[process_class]])","v":"PTX-BusinessOpportunityAnalyzer-1.0.9,DEU,Hydrogen (AEL),CHL,COST-CAPEX,Transportation (Ship)"},{"$f":"output_scenario_name","v":"PTX-BusinessOpportunityAnalyzer-1.0.9"},{"$f":"sel_country_code","v":"DEU"},{"$f":"sel_chain","v":"Hydrogen (AEL)"},{"$f":"_calc!$B$611","v":"CHL"},{"$f":"_calc!$BO$582","v":"COST-CAPEX"},{"$f":"_calc!$BT$1","v":"Transportation (Ship)"},{"$f":"_calc!$BT$611","v":45.957360683498401}]
[{"$f":"_xlfn.TEXTJOIN(\",\",FALSE,output[[#This Row],[scenario]:[process_class]])","v":"PTX-BusinessOpportunityAnalyzer-1.0.9,DEU,Hydrogen (AEL),CHL,COST-CAPEX,Carbon"},"PTX-BusinessOpportunityAnalyzer-1.0.9",{"$f":"sel_country_code","v":"DEU"},"Hydrogen (AEL)",{"$f":"_calc!$B$611","v":"CHL"},{"$f":"_calc!$BO$582","v":"COST-CAPEX"},{"$f":"_calc!$BU$1","v":"Carbon"},{"$f":"_calc!$BU$611","v":0}]
[{"$f":"_xlfn.TEXTJOIN(\",\",FALSE,output[[#This Row],[scenario]:[process_class]])","v":"PTX-BusinessOpportunityAnalyzer-1.0.9,DEU,Hydrogen (AEL),CHL,COST-CAPEX,Derivate production"},"PTX-BusinessOpportunityAnalyzer-1.0.9",{"$f":"sel_country_code","v":"DEU"},"Hydrogen (AEL)",{"$f":"_calc!$B$611","v":"CHL"},{"$f":"_calc!$BO$582","v":"COST-CAPEX"},{"$f":"_calc!$BV$1","v":"Derivate production"},{"$f":"_calc!$BV$611","v":0}]
[{"$f":"_xlfn.TEXTJOIN(\",\",FALSE,output[[#This Row],[scenario]:[process_class]])","v":"PTX-BusinessOpportunityAnalyzer-1.0.9,DEU,Hydrogen (AEL),CHL,COST-CAPEX,Heat"},"PTX-BusinessOpportunityAnalyzer-1.0.9",{"$f":"sel_country_code","v":"DEU"},"Hydrogen (AEL)",{"$f":"_calc!$B$611","v":"CHL"},{"$f":"_calc!$BO$582","v":"COST-CAPEX"},{"$f":"_calc!$BW$1","v":"Heat"},{"$f":"_calc!$BW$611","v":0}]
[{"$f":"_xlfn.TEXTJOIN(\",\",FALSE,output[[#This Row],[scenario]:[process_class]])","v":"PTX-BusinessOpportunityAnalyzer-1.0.9,DEU,Hydrogen (AEL),CHL,COST-CAPEX,Electricity and H2 storage"},"PTX-BusinessOpportunityAnalyzer-1.0.9",{"$f":"sel_country_code","v":"DEU"},"Hydrogen (AEL)",{"$f":"_calc!$B$611","v":"CHL"},{"$f":"_calc!$BO$582","v":"COST-CAPEX"},{"$f":"_calc!$BX$1","v":"Electricity and H2 storage"},{"$f":"_calc!$BX$611","v":0}]
[{"$f":"_xlfn.TEXTJOIN(\",\",FALSE,output[[#This Row],[scenario]:[process_class]])","v":"PTX-BusinessOpportunityAnalyzer-1.0.9,DEU,Hydrogen (AEL),CHN,COST-CAPEX,Water"},"PTX-BusinessOpportunityAnalyzer-1.0.9",{"$f":"sel_country_code","v":"DEU"},"Hydrogen (AEL)",{"$f":"_calc!$B$612","v":"CHN"},{"$f":"_calc!$BO$582","v":"COST-CAPEX"},{"$f":"_calc!$BP$1","v":"Water"},{"$f":"_calc!$BP$612","v":8.9334662330592854E-2}]
[{"$f":"_xlfn.TEXTJOIN(\",\",FALSE,output[[#This Row],[scenario]:[process_class]])","v":"PTX-BusinessOpportunityAnalyzer-1.0.9,DEU,Hydrogen (AEL),CHN,COST-CAPEX,Electrolysis"},"PTX-BusinessOpportunityAnalyzer-1.0.9",{"$f":"sel_country_code","v":"DEU"},"Hydrogen (AEL)",{"$f":"_calc!$B$612","v":"CHN"},{"$f":"_calc!$BO$582","v":"COST-CAPEX"},{"$f":"_calc!$BQ$1","v":"Electrolysis"},{"$f":"_calc!$BQ$612","v":15.479599592512505}]
[{"$f":"_xlfn.TEXTJOIN(\",\",FALSE,output[[#This Row],[scenario]:[process_class]])","v":"PTX-BusinessOpportunityAnalyzer-1.0.9,DEU,Hydrogen (AEL),CHN,COST-CAPEX,Electricity generation"},"PTX-BusinessOpportunityAnalyzer-1.0.9",{"$f":"sel_country_code","v":"DEU"},"Hydrogen (AEL)",{"$f":"_calc!$B$612","v":"CHN"},{"$f":"_calc!$BO$582","v":"COST-CAPEX"},{"$f":"_calc!$BR$1","v":"Electricity generation"},{"$f":"_calc!$BR$612","v":28.157835319626631}]
[{"$f":"_xlfn.TEXTJOIN(\",\",FALSE,output[[#This Row],[scenario]:[process_class]])","v":"PTX-BusinessOpportunityAnalyzer-1.0.9,DEU,Hydrogen (AEL),CHN,COST-CAPEX,Transportation (Pipeline)"},"PTX-BusinessOpportunityAnalyzer-1.0.9",{"$f":"sel_country_code","v":"DEU"},"Hydrogen (AEL)",{"$f":"_calc!$B$612","v":"CHN"},{"$f":"_calc!$BO$582","v":"COST-CAPEX"},{"$f":"_calc!$BS$1","v":"Transportation (Pipeline)"},{"$f":"_calc!$BS$612","v":0}]
[{"$f":"_xlfn.TEXTJOIN(\",\",FALSE,output[[#This Row],[scenario]:[process_class]])","v":"PTX-BusinessOpportunityAnalyzer-1.0.9,DEU,Hydrogen (AEL),CHN,COST-CAPEX,Transportation (Ship)"},"PTX-BusinessOpportunityAnalyzer-1.0.9",{"$f":"sel_country_code","v":"DEU"},"Hydrogen (AEL)",{"$f":"_calc!$B$612","v":"CHN"},{"$f":"_calc!$BO$582","v":"COST-CAPEX"},{"$f":"_calc!$BT$1","v":"Transportation (Ship)"},{"$f":"_calc!$BT$612","v":32.807428271101692}]
[{"$f":"_xlfn.TEXTJOIN(\",\",FALSE,output[[#This Row],[scenario]:[process_class]])","v":"PTX-BusinessOpportunityAnalyzer-1.0.9,DEU,Hydrogen (AEL),CHN,COST-CAPEX,Carbon"},"PTX-BusinessOpportunityAnalyzer-1.0.9",{"$f":"sel_country_code","v":"DEU"},"Hydrogen (AEL)",{"$f":"_calc!$B$612","v":"CHN"},{"$f":"_calc!$BO$582","v":"COST-CAPEX"},{"$f":"_calc!$BU$1","v":"Carbon"},{"$f":"_calc!$BU$612","v":0}]
[{"$f":"_xlfn.TEXTJOIN(\",\",FALSE,output[[#This Row],[scenario]:[process_class]])","v":"PTX-BusinessOpportunityAnalyzer-1.0.9,DEU,Hydrogen (AEL),CHN,COST-CAPEX,Derivate production"},"PTX-BusinessOpportunityAnalyzer-1.0.9",{"$f":"sel_country_code","v":"DEU"},"Hydrogen (AEL)",{"$f":"_calc!$B$612","v":"CHN"},{"$f":"_calc!$BO$582","v":"COST-CAPEX"},{"$f":"_calc!$BV$1","v":"Derivate production"},{"$f":"_calc!$BV$612","v":0}]
[{"$f":"_xlfn.TEXTJOIN(\",\",FALSE,output[[#This Row],[scenario]:[process_class]])","v":"PTX-BusinessOpportunityAnalyzer-1.0.9,DEU,Hydrogen (AEL),CHN,COST-CAPEX,Heat"},"PTX-BusinessOpportunityAnalyzer-1.0.9",{"$f":"sel_country_code","v":"DEU"},"Hydrogen (AEL)",{"$f":"_calc!$B$612","v":"CHN"},{"$f":"_calc!$BO$582","v":"COST-CAPEX"},{"$f":"_calc!$BW$1","v":"Heat"},{"$f":"_calc!$BW$612","v":0}]
[{"$f":"_xlfn.TEXTJOIN(\",\",FALSE,output[[#This Row],[scenario]:[process_class]])","v":"PTX-BusinessOpportunityAnalyzer-1.0.9,DEU,Hydrogen (AEL),CHN,COST-CAPEX,Electricity and H2 storage"},"PTX-BusinessOpportunityAnalyzer-1.0.9",{"$f":"sel_country_code","v":"DEU"},"Hydrogen (AEL)",{"$f":"_calc!$B$612","v":"CHN"},{"$f":"_calc!$BO$582","v":"COST-CAPEX"},{"$f":"_calc!$BX$1","v":"Electricity and H2 storage"},{"$f":"_calc!$BX$612","v":0}]
[{"$f":"_xlfn.TEXTJOIN(\",\",FALSE,output[[#This Row],[scenario]:[process_class]])","v":"PTX-BusinessOpportunityAnalyzer-1.0.9,DEU,Hydrogen (AEL),COL,COST-CAPEX,Water"},"PTX-BusinessOpportunityAnalyzer-1.0.9",{"$f":"sel_country_code","v":"DEU"},"Hydrogen (AEL)",{"$f":"_calc!$B$613","v":"COL"},{"$f":"_calc!$BO$582","v":"COST-CAPEX"},{"$f":"_calc!$BP$1","v":"Water"},{"$f":"_calc!$BP$613","v":8.9453842926764934E-2}]
[{"$f":"_xlfn.TEXTJOIN(\",\",FALSE,output[[#This Row],[scenario]:[process_class]])","v":"PTX-BusinessOpportunityAnalyzer-1.0.9,DEU,Hydrogen (AEL),COL,COST-CAPEX,Electrolysis"},"PTX-BusinessOpportunityAnalyzer-1.0.9",{"$f":"sel_country_code","v":"DEU"},"Hydrogen (AEL)",{"$f":"_calc!$B$613","v":"COL"},{"$f":"_calc!$BO$582","v":"COST-CAPEX"},{"$f":"_calc!$BQ$1","v":"Electrolysis"},{"$f":"_calc!$BQ$613","v":14.503523703188616}]
[{"$f":"_xlfn.TEXTJOIN(\",\",FALSE,output[[#This Row],[scenario]:[process_class]])","v":"PTX-BusinessOpportunityAnalyzer-1.0.9,DEU,Hydrogen (AEL),COL,COST-CAPEX,Electricity generation"},"PTX-BusinessOpportunityAnalyzer-1.0.9",{"$f":"sel_country_code","v":"DEU"},"Hydrogen (AEL)",{"$f":"_calc!$B$613","v":"COL"},{"$f":"_calc!$BO$582","v":"COST-CAPEX"},{"$f":"_calc!$BR$1","v":"Electricity generation"},{"$f":"_calc!$BR$613","v":39.37381352662171}]
[{"$f":"_xlfn.TEXTJOIN(\",\",FALSE,output[[#This Row],[scenario]:[process_class]])","v":"PTX-BusinessOpportunityAnalyzer-1.0.9,DEU,Hydrogen (AEL),COL,COST-CAPEX,Transportation (Pipeline)"},"PTX-BusinessOpportunityAnalyzer-1.0.9",{"$f":"sel_country_code","v":"DEU"},"Hydrogen (AEL)",{"$f":"_calc!$B$613","v":"COL"},{"$f":"_calc!$BO$582","v":"COST-CAPEX"},{"$f":"_calc!$BS$1","v":"Transportation (Pipeline)"},{"$f":"_calc!$BS$613","v":0}]
[{"$f":"_xlfn.TEXTJOIN(\",\",FALSE,output[[#This Row],[scenario]:[process_class]])","v":"PTX-BusinessOpportunityAnalyzer-1.0.9,DEU,Hydrogen (AEL),COL,COST-CAPEX,Transportation (Ship)"},"PTX-BusinessOpportunityAnalyzer-1.0.9",{"$f":"sel_country_code","v":"DEU"},"Hydrogen (AEL)",{"$f":"_calc!$B$613","v":"COL"},{"$f":"_calc!$BO$582","v":"COST-CAPEX"},{"$f":"_calc!$BT$1","v":"Transportation (Ship)"},{"$f":"_calc!$BT$613","v":32.603538022065685}]
[{"$f":"_xlfn.TEXTJOIN(\",\",FALSE,output[[#This Row],[scenario]:[process_class]])","v":"PTX-BusinessOpportunityAnalyzer-1.0.9,DEU,Hydrogen (AEL),COL,COST-CAPEX,Carbon"},"PTX-BusinessOpportunityAnalyzer-1.0.9",{"$f":"sel_country_code","v":"DEU"},"Hydrogen (AEL)",{"$f":"_calc!$B$613","v":"COL"},{"$f":"_calc!$BO$582","v":"COST-CAPEX"},{"$f":"_calc!$BU$1","v":"Carbon"},{"$f":"_calc!$BU$613","v":0}]
[{"$f":"_xlfn.TEXTJOIN(\",\",FALSE,output[[#This Row],[scenario]:[process_class]])","v":"PTX-BusinessOpportunityAnalyzer-1.0.9,DEU,Hydrogen (AEL),COL,COST-CAPEX,Derivate production"},"PTX-BusinessOpportunityAnalyzer-1.0.9",{"$f":"sel_country_code","v":"DEU"},"Hydrogen (AEL)",{"$f":"_calc!$B$613","v":"COL"},{"$f":"_calc!$BO$582","v":"COST-CAPEX"},{"$f":"_calc!$BV$1","v":"Derivate production"},{"$f":"_calc!$BV$613","v":0}]
[{"$f":"_xlfn.TEXTJOIN(\",\",FALSE,output[[#This Row],[scenario]:[process_class]])","v":"PTX-BusinessOpportunityAnalyzer-1.0.9,DEU,Hydrogen (AEL),COL,COST-CAPEX,Heat"},"PTX-BusinessOpportunityAnalyzer-1.0.9",{"$f":"sel_country_code","v":"DEU"},"Hydrogen (AEL)",{"$f":"_calc!$B$613","v":"COL"},{"$f":"_calc!$BO$582","v":"COST-CAPEX"},{"$f":"_calc!$BW$1","v":"Heat"},{"$f":"_calc!$BW$613","v":0}]
[{"$f":"_xlfn.TEXTJOIN(\",\",FALSE,output[[#This Row],[scenario]:[process_class]])","v":"PTX-BusinessOpportunityAnalyzer-1.0.9,DEU,Hydrogen (AEL),COL,COST-CAPEX,Electricity and H2 storage"},"PTX-BusinessOpportunityAnalyzer-1.0.9",{"$f":"sel_country_code","v":"DEU"},"Hydrogen (AEL)",{"$f":"_calc!$B$613","v":"COL"},{"$f":"_calc!$BO$582","v":"COST-CAPEX"},{"$f":"_calc!$BX$1","v":"Electricity and H2 storage"},{"$f":"_calc!$BX$613","v":0}]
[{"$f":"_xlfn.TEXTJOIN(\",\",FALSE,output[[#This Row],[scenario]:[process_class]])","v":"PTX-BusinessOpportunityAnalyzer-1.0.9,DEU,Hydrogen (AEL),CRI,COST-CAPEX,Water"},"PTX-BusinessOpportunityAnalyzer-1.0.9",{"$f":"sel_country_code","v":"DEU"},"Hydrogen (AEL)",{"$f":"_calc!$B$614","v":"CRI"},{"$f":"_calc!$BO$582","v":"COST-CAPEX"},{"$f":"_calc!$BP$1","v":"Water"},{"$f":"_calc!$BP$614","v":0.11146071210614472}]
[{"$f":"_xlfn.TEXTJOIN(\",\",FALSE,output[[#This Row],[scenario]:[process_class]])","v":"PTX-BusinessOpportunityAnalyzer-1.0.9,DEU,Hydrogen (AEL),CRI,COST-CAPEX,Electrolysis"},"PTX-BusinessOpportunityAnalyzer-1.0.9",{"$f":"sel_country_code","v":"DEU"},"Hydrogen (AEL)",{"$f":"_calc!$B$614","v":"CRI"},{"$f":"_calc!$BO$582","v":"COST-CAPEX"},{"$f":"_calc!$BQ$1","v":"Electrolysis"},{"$f":"_calc!$BQ$614","v":31.126331448647779}]
[{"$f":"_xlfn.TEXTJOIN(\",\",FALSE,output[[#This Row],[scenario]:[process_class]])","v":"PTX-BusinessOpportunityAnalyzer-1.0.9,DEU,Hydrogen (AEL),CRI,COST-CAPEX,Electricity generation"},"PTX-BusinessOpportunityAnalyzer-1.0.9",{"$f":"sel_country_code","v":"DEU"},"Hydrogen (AEL)",{"$f":"_calc!$B$614","v":"CRI"},{"$f":"_calc!$BO$582","v":"COST-CAPEX"},{"$f":"_calc!$BR$1","v":"Electricity generation"},{"$f":"_calc!$BR$614","v":76.308966102465433}]
[{"$f":"_xlfn.TEXTJOIN(\",\",FALSE,output[[#This Row],[scenario]:[process_class]])","v":"PTX-BusinessOpportunityAnalyzer-1.0.9,DEU,Hydrogen (AEL),CRI,COST-CAPEX,Transportation (Pipeline)"},"PTX-BusinessOpportunityAnalyzer-1.0.9",{"$f":"sel_country_code","v":"DEU"},"Hydrogen (AEL)",{"$f":"_calc!$B$614","v":"CRI"},{"$f":"_calc!$BO$582","v":"COST-CAPEX"},{"$f":"_calc!$BS$1","v":"Transportation (Pipeline)"},{"$f":"_calc!$BS$614","v":0}]
[{"$f":"_xlfn.TEXTJOIN(\",\",FALSE,output[[#This Row],[scenario]:[process_class]])","v":"PTX-BusinessOpportunityAnalyzer-1.0.9,DEU,Hydrogen (AEL),CRI,COST-CAPEX,Transportation (Ship)"},"PTX-BusinessOpportunityAnalyzer-1.0.9",{"$f":"sel_country_code","v":"DEU"},"Hydrogen (AEL)",{"$f":"_calc!$B$614","v":"CRI"},{"$f":"_calc!$BO$582","v":"COST-CAPEX"},{"$f":"_calc!$BT$1","v":"Transportation (Ship)"},{"$f":"_calc!$BT$614","v":70.26128346063031}]
[{"$f":"_xlfn.TEXTJOIN(\",\",FALSE,output[[#This Row],[scenario]:[process_class]])","v":"PTX-BusinessOpportunityAnalyzer-1.0.9,DEU,Hydrogen (AEL),CRI,COST-CAPEX,Carbon"},"PTX-BusinessOpportunityAnalyzer-1.0.9",{"$f":"sel_country_code","v":"DEU"},"Hydrogen (AEL)",{"$f":"_calc!$B$614","v":"CRI"},{"$f":"_calc!$BO$582","v":"COST-CAPEX"},{"$f":"_calc!$BU$1","v":"Carbon"},{"$f":"_calc!$BU$614","v":0}]
[{"$f":"_xlfn.TEXTJOIN(\",\",FALSE,output[[#This Row],[scenario]:[process_class]])","v":"PTX-BusinessOpportunityAnalyzer-1.0.9,DEU,Hydrogen (AEL),CRI,COST-CAPEX,Derivate production"},"PTX-BusinessOpportunityAnalyzer-1.0.9",{"$f":"sel_country_code","v":"DEU"},"Hydrogen (AEL)",{"$f":"_calc!$B$614","v":"CRI"},{"$f":"_calc!$BO$582","v":"COST-CAPEX"},{"$f":"_calc!$BV$1","v":"Derivate production"},{"$f":"_calc!$BV$614","v":0}]
[{"$f":"_xlfn.TEXTJOIN(\",\",FALSE,output[[#This Row],[scenario]:[process_class]])","v":"PTX-BusinessOpportunityAnalyzer-1.0.9,DEU,Hydrogen (AEL),CRI,COST-CAPEX,Heat"},"PTX-BusinessOpportunityAnalyzer-1.0.9",{"$f":"sel_country_code","v":"DEU"},"Hydrogen (AEL)",{"$f":"_calc!$B$614","v":"CRI"},{"$f":"_calc!$BO$582","v":"COST-CAPEX"},{"$f":"_calc!$BW$1","v":"Heat"},{"$f":"_calc!$BW$614","v":0}]
[{"$f":"_xlfn.TEXTJOIN(\",\",FALSE,output[[#This Row],[scenario]:[process_class]])","v":"PTX-BusinessOpportunityAnalyzer-1.0.9,DEU,Hydrogen (AEL),CRI,COST-CAPEX,Electricity and H2 storage"},"PTX-BusinessOpportunityAnalyzer-1.0.9",{"$f":"sel_country_code","v":"DEU"},"Hydrogen (AEL)",{"$f":"_calc!$B$614","v":"CRI"},{"$f":"_calc!$BO$582","v":"COST-CAPEX"},{"$f":"_calc!$BX$1","v":"Electricity and H2 storage"},{"$f":"_calc!$BX$614","v":0}]
[{"$f":"_xlfn.TEXTJOIN(\",\",FALSE,output[[#This Row],[scenario]:[process_class]])","v":"PTX-BusinessOpportunityAnalyzer-1.0.9,DEU,Hydrogen (AEL),DNK,COST-CAPEX,Water"},"PTX-BusinessOpportunityAnalyzer-1.0.9",{"$f":"sel_country_code","v":"DEU"},"Hydrogen (AEL)",{"$f":"_calc!$B$615","v":"DNK"},{"$f":"_calc!$BO$582","v":"COST-CAPEX"},{"$f":"_calc!$BP$1","v":"Water"},{"$f":"_calc!$BP$615","v":5.8435231211244366E-2}]
[{"$f":"_xlfn.TEXTJOIN(\",\",FALSE,output[[#This Row],[scenario]:[process_class]])","v":"PTX-BusinessOpportunityAnalyzer-1.0.9,DEU,Hydrogen (AEL),DNK,COST-CAPEX,Electrolysis"},"PTX-BusinessOpportunityAnalyzer-1.0.9",{"$f":"sel_country_code","v":"DEU"},"Hydrogen (AEL)",{"$f":"_calc!$B$615","v":"DNK"},{"$f":"_calc!$BO$582","v":"COST-CAPEX"},{"$f":"_calc!$BQ$1","v":"Electrolysis"},{"$f":"_calc!$BQ$615","v":10.096490844935564}]
[{"$f":"_xlfn.TEXTJOIN(\",\",FALSE,output[[#This Row],[scenario]:[process_class]])","v":"PTX-BusinessOpportunityAnalyzer-1.0.9,DEU,Hydrogen (AEL),DNK,COST-CAPEX,Electricity generation"},"PTX-BusinessOpportunityAnalyzer-1.0.9",{"$f":"sel_country_code","v":"DEU"},"Hydrogen (AEL)",{"$f":"_calc!$B$615","v":"DNK"},{"$f":"_calc!$BO$582","v":"COST-CAPEX"},{"$f":"_calc!$BR$1","v":"Electricity generation"},{"$f":"_calc!$BR$615","v":25.644753315191497}]
[{"$f":"_xlfn.TEXTJOIN(\",\",FALSE,output[[#This Row],[scenario]:[process_class]])","v":"PTX-BusinessOpportunityAnalyzer-1.0.9,DEU,Hydrogen (AEL),DNK,COST-CAPEX,Transportation (Pipeline)"},"PTX-BusinessOpportunityAnalyzer-1.0.9",{"$f":"sel_country_code","v":"DEU"},"Hydrogen (AEL)",{"$f":"_calc!$B$615","v":"DNK"},{"$f":"_calc!$BO$582","v":"COST-CAPEX"},{"$f":"_calc!$BS$1","v":"Transportation (Pipeline)"},{"$f":"_calc!$BS$615","v":1.7861858405361759}]
[{"$f":"_xlfn.TEXTJOIN(\",\",FALSE,output[[#This Row],[scenario]:[process_class]])","v":"PTX-BusinessOpportunityAnalyzer-1.0.9,DEU,Hydrogen (AEL),DNK,COST-CAPEX,Transportation (Ship)"},"PTX-BusinessOpportunityAnalyzer-1.0.9",{"$f":"sel_country_code","v":"DEU"},"Hydrogen (AEL)",{"$f":"_calc!$B$615","v":"DNK"},{"$f":"_calc!$BO$582","v":"COST-CAPEX"},{"$f":"_calc!$BT$1","v":"Transportation (Ship)"},{"$f":"_calc!$BT$615","v":0}]
[{"$f":"_xlfn.TEXTJOIN(\",\",FALSE,output[[#This Row],[scenario]:[process_class]])","v":"PTX-BusinessOpportunityAnalyzer-1.0.9,DEU,Hydrogen (AEL),DNK,COST-CAPEX,Carbon"},"PTX-BusinessOpportunityAnalyzer-1.0.9",{"$f":"sel_country_code","v":"DEU"},"Hydrogen (AEL)",{"$f":"_calc!$B$615","v":"DNK"},{"$f":"_calc!$BO$582","v":"COST-CAPEX"},{"$f":"_calc!$BU$1","v":"Carbon"},{"$f":"_calc!$BU$615","v":0}]
[{"$f":"_xlfn.TEXTJOIN(\",\",FALSE,output[[#This Row],[scenario]:[process_class]])","v":"PTX-BusinessOpportunityAnalyzer-1.0.9,DEU,Hydrogen (AEL),DNK,COST-CAPEX,Derivate production"},"PTX-BusinessOpportunityAnalyzer-1.0.9",{"$f":"sel_country_code","v":"DEU"},"Hydrogen (AEL)",{"$f":"_calc!$B$615","v":"DNK"},{"$f":"_calc!$BO$582","v":"COST-CAPEX"},{"$f":"_calc!$BV$1","v":"Derivate production"},{"$f":"_calc!$BV$615","v":0}]
[{"$f":"_xlfn.TEXTJOIN(\",\",FALSE,output[[#This Row],[scenario]:[process_class]])","v":"PTX-BusinessOpportunityAnalyzer-1.0.9,DEU,Hydrogen (AEL),DNK,COST-CAPEX,Heat"},"PTX-BusinessOpportunityAnalyzer-1.0.9",{"$f":"sel_country_code","v":"DEU"},"Hydrogen (AEL)",{"$f":"_calc!$B$615","v":"DNK"},{"$f":"_calc!$BO$582","v":"COST-CAPEX"},{"$f":"_calc!$BW$1","v":"Heat"},{"$f":"_calc!$BW$615","v":0}]
[{"$f":"_xlfn.TEXTJOIN(\",\",FALSE,output[[#This Row],[scenario]:[process_class]])","v":"PTX-BusinessOpportunityAnalyzer-1.0.9,DEU,Hydrogen (AEL),DNK,COST-CAPEX,Electricity and H2 storage"},"PTX-BusinessOpportunityAnalyzer-1.0.9",{"$f":"sel_country_code","v":"DEU"},"Hydrogen (AEL)",{"$f":"_calc!$B$615","v":"DNK"},{"$f":"_calc!$BO$582","v":"COST-CAPEX"},{"$f":"_calc!$BX$1","v":"Electricity and H2 storage"},{"$f":"_calc!$BX$615","v":0}]
[{"$f":"_xlfn.TEXTJOIN(\",\",FALSE,output[[#This Row],[scenario]:[process_class]])","v":"PTX-BusinessOpportunityAnalyzer-1.0.9,DEU,Hydrogen (AEL),DZA,COST-CAPEX,Water"},"PTX-BusinessOpportunityAnalyzer-1.0.9",{"$f":"sel_country_code","v":"DEU"},"Hydrogen (AEL)",{"$f":"_calc!$B$616","v":"DZA"},{"$f":"_calc!$BO$582","v":"COST-CAPEX"},{"$f":"_calc!$BP$1","v":"Water"},{"$f":"_calc!$BP$616","v":8.4274179898643803E-2}]
[{"$f":"_xlfn.TEXTJOIN(\",\",FALSE,output[[#This Row],[scenario]:[process_class]])","v":"PTX-BusinessOpportunityAnalyzer-1.0.9,DEU,Hydrogen (AEL),DZA,COST-CAPEX,Electrolysis"},"PTX-BusinessOpportunityAnalyzer-1.0.9",{"$f":"sel_country_code","v":"DEU"},"Hydrogen (AEL)",{"$f":"_calc!$B$616","v":"DZA"},{"$f":"_calc!$BO$582","v":"COST-CAPEX"},{"$f":"_calc!$BQ$1","v":"Electrolysis"},{"$f":"_calc!$BQ$616","v":26.944406113926792}]
[{"$f":"_xlfn.TEXTJOIN(\",\",FALSE,output[[#This Row],[scenario]:[process_class]])","v":"PTX-BusinessOpportunityAnalyzer-1.0.9,DEU,Hydrogen (AEL),DZA,COST-CAPEX,Electricity generation"},"PTX-BusinessOpportunityAnalyzer-1.0.9",{"$f":"sel_country_code","v":"DEU"},"Hydrogen (AEL)",{"$f":"_calc!$B$616","v":"DZA"},{"$f":"_calc!$BO$582","v":"COST-CAPEX"},{"$f":"_calc!$BR$1","v":"Electricity generation"},{"$f":"_calc!$BR$616","v":52.302524632754654}]
[{"$f":"_xlfn.TEXTJOIN(\",\",FALSE,output[[#This Row],[scenario]:[process_class]])","v":"PTX-BusinessOpportunityAnalyzer-1.0.9,DEU,Hydrogen (AEL),DZA,COST-CAPEX,Transportation (Pipeline)"},"PTX-BusinessOpportunityAnalyzer-1.0.9",{"$f":"sel_country_code","v":"DEU"},"Hydrogen (AEL)",{"$f":"_calc!$B$616","v":"DZA"},{"$f":"_calc!$BO$582","v":"COST-CAPEX"},{"$f":"_calc!$BS$1","v":"Transportation (Pipeline)"},{"$f":"_calc!$BS$616","v":2.5760032729842335}]
[{"$f":"_xlfn.TEXTJOIN(\",\",FALSE,output[[#This Row],[scenario]:[process_class]])","v":"PTX-BusinessOpportunityAnalyzer-1.0.9,DEU,Hydrogen (AEL),DZA,COST-CAPEX,Transportation (Ship)"},"PTX-BusinessOpportunityAnalyzer-1.0.9",{"$f":"sel_country_code","v":"DEU"},"Hydrogen (AEL)",{"$f":"_calc!$B$616","v":"DZA"},{"$f":"_calc!$BO$582","v":"COST-CAPEX"},{"$f":"_calc!$BT$1","v":"Transportation (Ship)"},{"$f":"_calc!$BT$616","v":0}]
[{"$f":"_xlfn.TEXTJOIN(\",\",FALSE,output[[#This Row],[scenario]:[process_class]])","v":"PTX-BusinessOpportunityAnalyzer-1.0.9,DEU,Hydrogen (AEL),DZA,COST-CAPEX,Carbon"},"PTX-BusinessOpportunityAnalyzer-1.0.9",{"$f":"sel_country_code","v":"DEU"},"Hydrogen (AEL)",{"$f":"_calc!$B$616","v":"DZA"},{"$f":"_calc!$BO$582","v":"COST-CAPEX"},{"$f":"_calc!$BU$1","v":"Carbon"},{"$f":"_calc!$BU$616","v":0}]
[{"$f":"_xlfn.TEXTJOIN(\",\",FALSE,output[[#This Row],[scenario]:[process_class]])","v":"PTX-BusinessOpportunityAnalyzer-1.0.9,DEU,Hydrogen (AEL),DZA,COST-CAPEX,Derivate production"},"PTX-BusinessOpportunityAnalyzer-1.0.9",{"$f":"sel_country_code","v":"DEU"},"Hydrogen (AEL)",{"$f":"_calc!$B$616","v":"DZA"},{"$f":"_calc!$BO$582","v":"COST-CAPEX"},{"$f":"_calc!$BV$1","v":"Derivate production"},{"$f":"_calc!$BV$616","v":0}]
[{"$f":"_xlfn.TEXTJOIN(\",\",FALSE,output[[#This Row],[scenario]:[process_class]])","v":"PTX-BusinessOpportunityAnalyzer-1.0.9,DEU,Hydrogen (AEL),DZA,COST-CAPEX,Heat"},"PTX-BusinessOpportunityAnalyzer-1.0.9",{"$f":"sel_country_code","v":"DEU"},"Hydrogen (AEL)",{"$f":"_calc!$B$616","v":"DZA"},{"$f":"_calc!$BO$582","v":"COST-CAPEX"},{"$f":"_calc!$BW$1","v":"Heat"},{"$f":"_calc!$BW$616","v":0}]
[{"$f":"_xlfn.TEXTJOIN(\",\",FALSE,output[[#This Row],[scenario]:[process_class]])","v":"PTX-BusinessOpportunityAnalyzer-1.0.9,DEU,Hydrogen (AEL),DZA,COST-CAPEX,Electricity and H2 storage"},"PTX-BusinessOpportunityAnalyzer-1.0.9",{"$f":"sel_country_code","v":"DEU"},"Hydrogen (AEL)",{"$f":"_calc!$B$616","v":"DZA"},{"$f":"_calc!$BO$582","v":"COST-CAPEX"},{"$f":"_calc!$BX$1","v":"Electricity and H2 storage"},{"$f":"_calc!$BX$616","v":0}]
[{"$f":"_xlfn.TEXTJOIN(\",\",FALSE,output[[#This Row],[scenario]:[process_class]])","v":"PTX-BusinessOpportunityAnalyzer-1.0.9,DEU,Hydrogen (AEL),EGY,COST-CAPEX,Water"},"PTX-BusinessOpportunityAnalyzer-1.0.9",{"$f":"sel_country_code","v":"DEU"},"Hydrogen (AEL)",{"$f":"_calc!$B$617","v":"EGY"},{"$f":"_calc!$BO$582","v":"COST-CAPEX"},{"$f":"_calc!$BP$1","v":"Water"},{"$f":"_calc!$BP$617","v":0.10096120360700173}]
[{"$f":"_xlfn.TEXTJOIN(\",\",FALSE,output[[#This Row],[scenario]:[process_class]])","v":"PTX-BusinessOpportunityAnalyzer-1.0.9,DEU,Hydrogen (AEL),EGY,COST-CAPEX,Electrolysis"},"PTX-BusinessOpportunityAnalyzer-1.0.9",{"$f":"sel_country_code","v":"DEU"},"Hydrogen (AEL)",{"$f":"_calc!$B$617","v":"EGY"},{"$f":"_calc!$BO$582","v":"COST-CAPEX"},{"$f":"_calc!$BQ$1","v":"Electrolysis"},{"$f":"_calc!$BQ$617","v":20.081999254098999}]
[{"$f":"_xlfn.TEXTJOIN(\",\",FALSE,output[[#This Row],[scenario]:[process_class]])","v":"PTX-BusinessOpportunityAnalyzer-1.0.9,DEU,Hydrogen (AEL),EGY,COST-CAPEX,Electricity generation"},"PTX-BusinessOpportunityAnalyzer-1.0.9",{"$f":"sel_country_code","v":"DEU"},"Hydrogen (AEL)",{"$f":"_calc!$B$617","v":"EGY"},{"$f":"_calc!$BO$582","v":"COST-CAPEX"},{"$f":"_calc!$BR$1","v":"Electricity generation"},{"$f":"_calc!$BR$617","v":49.122032096609303}]
[{"$f":"_xlfn.TEXTJOIN(\",\",FALSE,output[[#This Row],[scenario]:[process_class]])","v":"PTX-BusinessOpportunityAnalyzer-1.0.9,DEU,Hydrogen (AEL),EGY,COST-CAPEX,Transportation (Pipeline)"},"PTX-BusinessOpportunityAnalyzer-1.0.9",{"$f":"sel_country_code","v":"DEU"},"Hydrogen (AEL)",{"$f":"_calc!$B$617","v":"EGY"},{"$f":"_calc!$BO$582","v":"COST-CAPEX"},{"$f":"_calc!$BS$1","v":"Transportation (Pipeline)"},{"$f":"_calc!$BS$617","v":3.0860744210012698}]
[{"$f":"_xlfn.TEXTJOIN(\",\",FALSE,output[[#This Row],[scenario]:[process_class]])","v":"PTX-BusinessOpportunityAnalyzer-1.0.9,DEU,Hydrogen (AEL),EGY,COST-CAPEX,Transportation (Ship)"},"PTX-BusinessOpportunityAnalyzer-1.0.9",{"$f":"sel_country_code","v":"DEU"},"Hydrogen (AEL)",{"$f":"_calc!$B$617","v":"EGY"},{"$f":"_calc!$BO$582","v":"COST-CAPEX"},{"$f":"_calc!$BT$1","v":"Transportation (Ship)"},{"$f":"_calc!$BT$617","v":0}]
[{"$f":"_xlfn.TEXTJOIN(\",\",FALSE,output[[#This Row],[scenario]:[process_class]])","v":"PTX-BusinessOpportunityAnalyzer-1.0.9,DEU,Hydrogen (AEL),EGY,COST-CAPEX,Carbon"},"PTX-BusinessOpportunityAnalyzer-1.0.9",{"$f":"sel_country_code","v":"DEU"},"Hydrogen (AEL)",{"$f":"_calc!$B$617","v":"EGY"},{"$f":"_calc!$BO$582","v":"COST-CAPEX"},{"$f":"_calc!$BU$1","v":"Carbon"},{"$f":"_calc!$BU$617","v":0}]
[{"$f":"_xlfn.TEXTJOIN(\",\",FALSE,output[[#This Row],[scenario]:[process_class]])","v":"PTX-BusinessOpportunityAnalyzer-1.0.9,DEU,Hydrogen (AEL),EGY,COST-CAPEX,Derivate production"},"PTX-BusinessOpportunityAnalyzer-1.0.9",{"$f":"sel_country_code","v":"DEU"},"Hydrogen (AEL)",{"$f":"_calc!$B$617","v":"EGY"},{"$f":"_calc!$BO$582","v":"COST-CAPEX"},{"$f":"_calc!$BV$1","v":"Derivate production"},{"$f":"_calc!$BV$617","v":0}]
[{"$f":"_xlfn.TEXTJOIN(\",\",FALSE,output[[#This Row],[scenario]:[process_class]])","v":"PTX-BusinessOpportunityAnalyzer-1.0.9,DEU,Hydrogen (AEL),EGY,COST-CAPEX,Heat"},"PTX-BusinessOpportunityAnalyzer-1.0.9",{"$f":"sel_country_code","v":"DEU"},"Hydrogen (AEL)",{"$f":"_calc!$B$617","v":"EGY"},{"$f":"_calc!$BO$582","v":"COST-CAPEX"},{"$f":"_calc!$BW$1","v":"Heat"},{"$f":"_calc!$BW$617","v":0}]
[{"$f":"_xlfn.TEXTJOIN(\",\",FALSE,output[[#This Row],[scenario]:[process_class]])","v":"PTX-BusinessOpportunityAnalyzer-1.0.9,DEU,Hydrogen (AEL),EGY,COST-CAPEX,Electricity and H2 storage"},"PTX-BusinessOpportunityAnalyzer-1.0.9",{"$f":"sel_country_code","v":"DEU"},"Hydrogen (AEL)",{"$f":"_calc!$B$617","v":"EGY"},{"$f":"_calc!$BO$582","v":"COST-CAPEX"},{"$f":"_calc!$BX$1","v":"Electricity and H2 storage"},{"$f":"_calc!$BX$617","v":0}]
[{"$f":"_xlfn.TEXTJOIN(\",\",FALSE,output[[#This Row],[scenario]:[process_class]])","v":"PTX-BusinessOpportunityAnalyzer-1.0.9,DEU,Hydrogen (AEL),ESP,COST-CAPEX,Water"},"PTX-BusinessOpportunityAnalyzer-1.0.9",{"$f":"sel_country_code","v":"DEU"},"Hydrogen (AEL)",{"$f":"_calc!$B$618","v":"ESP"},{"$f":"_calc!$BO$582","v":"COST-CAPEX"},{"$f":"_calc!$BP$1","v":"Water"},{"$f":"_calc!$BP$618","v":6.6678879413994807E-2}]
[{"$f":"_xlfn.TEXTJOIN(\",\",FALSE,output[[#This Row],[scenario]:[process_class]])","v":"PTX-BusinessOpportunityAnalyzer-1.0.9,DEU,Hydrogen (AEL),ESP,COST-CAPEX,Electrolysis"},"PTX-BusinessOpportunityAnalyzer-1.0.9",{"$f":"sel_country_code","v":"DEU"},"Hydrogen (AEL)",{"$f":"_calc!$B$618","v":"ESP"},{"$f":"_calc!$BO$582","v":"COST-CAPEX"},{"$f":"_calc!$BQ$1","v":"Electrolysis"},{"$f":"_calc!$BQ$618","v":10.461573610470298}]
[{"$f":"_xlfn.TEXTJOIN(\",\",FALSE,output[[#This Row],[scenario]:[process_class]])","v":"PTX-BusinessOpportunityAnalyzer-1.0.9,DEU,Hydrogen (AEL),ESP,COST-CAPEX,Electricity generation"},"PTX-BusinessOpportunityAnalyzer-1.0.9",{"$f":"sel_country_code","v":"DEU"},"Hydrogen (AEL)",{"$f":"_calc!$B$618","v":"ESP"},{"$f":"_calc!$BO$582","v":"COST-CAPEX"},{"$f":"_calc!$BR$1","v":"Electricity generation"},{"$f":"_calc!$BR$618","v":22.208677001825198}]
[{"$f":"_xlfn.TEXTJOIN(\",\",FALSE,output[[#This Row],[scenario]:[process_class]])","v":"PTX-BusinessOpportunityAnalyzer-1.0.9,DEU,Hydrogen (AEL),ESP,COST-CAPEX,Transportation (Pipeline)"},"PTX-BusinessOpportunityAnalyzer-1.0.9",{"$f":"sel_country_code","v":"DEU"},"Hydrogen (AEL)",{"$f":"_calc!$B$618","v":"ESP"},{"$f":"_calc!$BO$582","v":"COST-CAPEX"},{"$f":"_calc!$BS$1","v":"Transportation (Pipeline)"},{"$f":"_calc!$BS$618","v":2.0381688889284084}]
[{"$f":"_xlfn.TEXTJOIN(\",\",FALSE,output[[#This Row],[scenario]:[process_class]])","v":"PTX-BusinessOpportunityAnalyzer-1.0.9,DEU,Hydrogen (AEL),ESP,COST-CAPEX,Transportation (Ship)"},"PTX-BusinessOpportunityAnalyzer-1.0.9",{"$f":"sel_country_code","v":"DEU"},"Hydrogen (AEL)",{"$f":"_calc!$B$618","v":"ESP"},{"$f":"_calc!$BO$582","v":"COST-CAPEX"},{"$f":"_calc!$BT$1","v":"Transportation (Ship)"},{"$f":"_calc!$BT$618","v":0}]
[{"$f":"_xlfn.TEXTJOIN(\",\",FALSE,output[[#This Row],[scenario]:[process_class]])","v":"PTX-BusinessOpportunityAnalyzer-1.0.9,DEU,Hydrogen (AEL),ESP,COST-CAPEX,Carbon"},{"$f":"output_scenario_name","v":"PTX-BusinessOpportunityAnalyzer-1.0.9"},{"$f":"sel_country_code","v":"DEU"},{"$f":"sel_chain","v":"Hydrogen (AEL)"},{"$f":"_calc!$B$618","v":"ESP"},{"$f":"_calc!$BO$582","v":"COST-CAPEX"},{"$f":"_calc!$BU$1","v":"Carbon"},{"$f":"_calc!$BU$618","v":0}]
[{"$f":"_xlfn.TEXTJOIN(\",\",FALSE,output[[#This Row],[scenario]:[process_class]])","v":"PTX-BusinessOpportunityAnalyzer-1.0.9,DEU,Hydrogen (AEL),ESP,COST-CAPEX,Derivate production"},"PTX-BusinessOpportunityAnalyzer-1.0.9",{"$f":"sel_country_code","v":"DEU"},"Hydrogen (AEL)",{"$f":"_calc!$B$618","v":"ESP"},{"$f":"_calc!$BO$582","v":"COST-CAPEX"},{"$f":"_calc!$BV$1","v":"Derivate production"},{"$f":"_calc!$BV$618","v":0}]
[{"$f":"_xlfn.TEXTJOIN(\",\",FALSE,output[[#This Row],[scenario]:[process_class]])","v":"PTX-BusinessOpportunityAnalyzer-1.0.9,DEU,Hydrogen (AEL),ESP,COST-CAPEX,Heat"},"PTX-BusinessOpportunityAnalyzer-1.0.9",{"$f":"sel_country_code","v":"DEU"},"Hydrogen (AEL)",{"$f":"_calc!$B$618","v":"ESP"},{"$f":"_calc!$BO$582","v":"COST-CAPEX"},{"$f":"_calc!$BW$1","v":"Heat"},{"$f":"_calc!$BW$618","v":0}]
[{"$f":"_xlfn.TEXTJOIN(\",\",FALSE,output[[#This Row],[scenario]:[process_class]])","v":"PTX-BusinessOpportunityAnalyzer-1.0.9,DEU,Hydrogen (AEL),ESP,COST-CAPEX,Electricity and H2 storage"},"PTX-BusinessOpportunityAnalyzer-1.0.9",{"$f":"sel_country_code","v":"DEU"},"Hydrogen (AEL)",{"$f":"_calc!$B$618","v":"ESP"},{"$f":"_calc!$BO$582","v":"COST-CAPEX"},{"$f":"_calc!$BX$1","v":"Electricity and H2 storage"},{"$f":"_calc!$BX$618","v":0}]
[{"$f":"_xlfn.TEXTJOIN(\",\",FALSE,output[[#This Row],[scenario]:[process_class]])","v":"PTX-BusinessOpportunityAnalyzer-1.0.9,DEU,Hydrogen (AEL),IDN,COST-CAPEX,Water"},"PTX-BusinessOpportunityAnalyzer-1.0.9",{"$f":"sel_country_code","v":"DEU"},"Hydrogen (AEL)",{"$f":"_calc!$B$619","v":"IDN"},{"$f":"_calc!$BO$582","v":"COST-CAPEX"},{"$f":"_calc!$BP$1","v":"Water"},{"$f":"_calc!$BP$619","v":9.7006910303383653E-2}]
[{"$f":"_xlfn.TEXTJOIN(\",\",FALSE,output[[#This Row],[scenario]:[process_class]])","v":"PTX-BusinessOpportunityAnalyzer-1.0.9,DEU,Hydrogen (AEL),IDN,COST-CAPEX,Electrolysis"},"PTX-BusinessOpportunityAnalyzer-1.0.9",{"$f":"sel_country_code","v":"DEU"},"Hydrogen (AEL)",{"$f":"_calc!$B$619","v":"IDN"},{"$f":"_calc!$BO$582","v":"COST-CAPEX"},{"$f":"_calc!$BQ$1","v":"Electrolysis"},{"$f":"_calc!$BQ$619","v":37.48504134121599}]
[{"$f":"_xlfn.TEXTJOIN(\",\",FALSE,output[[#This Row],[scenario]:[process_class]])","v":"PTX-BusinessOpportunityAnalyzer-1.0.9,DEU,Hydrogen (AEL),IDN,COST-CAPEX,Electricity generation"},"PTX-BusinessOpportunityAnalyzer-1.0.9",{"$f":"sel_country_code","v":"DEU"},"Hydrogen (AEL)",{"$f":"_calc!$B$619","v":"IDN"},{"$f":"_calc!$BO$582","v":"COST-CAPEX"},{"$f":"_calc!$BR$1","v":"Electricity generation"},{"$f":"_calc!$BR$619","v":121.60150008109251}]
[{"$f":"_xlfn.TEXTJOIN(\",\",FALSE,output[[#This Row],[scenario]:[process_class]])","v":"PTX-BusinessOpportunityAnalyzer-1.0.9,DEU,Hydrogen (AEL),IDN,COST-CAPEX,Transportation (Pipeline)"},"PTX-BusinessOpportunityAnalyzer-1.0.9",{"$f":"sel_country_code","v":"DEU"},"Hydrogen (AEL)",{"$f":"_calc!$B$619","v":"IDN"},{"$f":"_calc!$BO$582","v":"COST-CAPEX"},{"$f":"_calc!$BS$1","v":"Transportation (Pipeline)"},{"$f":"_calc!$BS$619","v":0}]
[{"$f":"_xlfn.TEXTJOIN(\",\",FALSE,output[[#This Row],[scenario]:[process_class]])","v":"PTX-BusinessOpportunityAnalyzer-1.0.9,DEU,Hydrogen (AEL),IDN,COST-CAPEX,Transportation (Ship)"},"PTX-BusinessOpportunityAnalyzer-1.0.9",{"$f":"sel_country_code","v":"DEU"},"Hydrogen (AEL)",{"$f":"_calc!$B$619","v":"IDN"},{"$f":"_calc!$BO$582","v":"COST-CAPEX"},{"$f":"_calc!$BT$1","v":"Transportation (Ship)"},{"$f":"_calc!$BT$619","v":76.522826503989378}]
[{"$f":"_xlfn.TEXTJOIN(\",\",FALSE,output[[#This Row],[scenario]:[process_class]])","v":"PTX-BusinessOpportunityAnalyzer-1.0.9,DEU,Hydrogen (AEL),IDN,COST-CAPEX,Carbon"},"PTX-BusinessOpportunityAnalyzer-1.0.9",{"$f":"sel_country_code","v":"DEU"},"Hydrogen (AEL)",{"$f":"_calc!$B$619","v":"IDN"},{"$f":"_calc!$BO$582","v":"COST-CAPEX"},{"$f":"_calc!$BU$1","v":"Carbon"},{"$f":"_calc!$BU$619","v":0}]
[{"$f":"_xlfn.TEXTJOIN(\",\",FALSE,output[[#This Row],[scenario]:[process_class]])","v":"PTX-BusinessOpportunityAnalyzer-1.0.9,DEU,Hydrogen (AEL),IDN,COST-CAPEX,Derivate production"},"PTX-BusinessOpportunityAnalyzer-1.0.9",{"$f":"sel_country_code","v":"DEU"},"Hydrogen (AEL)",{"$f":"_calc!$B$619","v":"IDN"},{"$f":"_calc!$BO$582","v":"COST-CAPEX"},{"$f":"_calc!$BV$1","v":"Derivate production"},{"$f":"_calc!$BV$619","v":0}]
[{"$f":"_xlfn.TEXTJOIN(\",\",FALSE,output[[#This Row],[scenario]:[process_class]])","v":"PTX-BusinessOpportunityAnalyzer-1.0.9,DEU,Hydrogen (AEL),IDN,COST-CAPEX,Heat"},"PTX-BusinessOpportunityAnalyzer-1.0.9",{"$f":"sel_country_code","v":"DEU"},"Hydrogen (AEL)",{"$f":"_calc!$B$619","v":"IDN"},{"$f":"_calc!$BO$582","v":"COST-CAPEX"},{"$f":"_calc!$BW$1","v":"Heat"},{"$f":"_calc!$BW$619","v":0}]
[{"$f":"_xlfn.TEXTJOIN(\",\",FALSE,output[[#This Row],[scenario]:[process_class]])","v":"PTX-BusinessOpportunityAnalyzer-1.0.9,DEU,Hydrogen (AEL),IDN,COST-CAPEX,Electricity and H2 storage"},"PTX-BusinessOpportunityAnalyzer-1.0.9",{"$f":"sel_country_code","v":"DEU"},"Hydrogen (AEL)",{"$f":"_calc!$B$619","v":"IDN"},{"$f":"_calc!$BO$582","v":"COST-CAPEX"},{"$f":"_calc!$BX$1","v":"Electricity and H2 storage"},{"$f":"_calc!$BX$619","v":0}]
[{"$f":"_xlfn.TEXTJOIN(\",\",FALSE,output[[#This Row],[scenario]:[process_class]])","v":"PTX-BusinessOpportunityAnalyzer-1.0.9,DEU,Hydrogen (AEL),IND,COST-CAPEX,Water"},"PTX-BusinessOpportunityAnalyzer-1.0.9",{"$f":"sel_country_code","v":"DEU"},"Hydrogen (AEL)",{"$f":"_calc!$B$620","v":"IND"},{"$f":"_calc!$BO$582","v":"COST-CAPEX"},{"$f":"_calc!$BP$1","v":"Water"},{"$f":"_calc!$BP$620","v":9.3724155765840825E-2}]
[{"$f":"_xlfn.TEXTJOIN(\",\",FALSE,output[[#This Row],[scenario]:[process_class]])","v":"PTX-BusinessOpportunityAnalyzer-1.0.9,DEU,Hydrogen (AEL),IND,COST-CAPEX,Electrolysis"},"PTX-BusinessOpportunityAnalyzer-1.0.9",{"$f":"sel_country_code","v":"DEU"},"Hydrogen (AEL)",{"$f":"_calc!$B$620","v":"IND"},{"$f":"_calc!$BO$582","v":"COST-CAPEX"},{"$f":"_calc!$BQ$1","v":"Electrolysis"},{"$f":"_calc!$BQ$620","v":15.866403078964455}]
[{"$f":"_xlfn.TEXTJOIN(\",\",FALSE,output[[#This Row],[scenario]:[process_class]])","v":"PTX-BusinessOpportunityAnalyzer-1.0.9,DEU,Hydrogen (AEL),IND,COST-CAPEX,Electricity generation"},"PTX-BusinessOpportunityAnalyzer-1.0.9",{"$f":"sel_country_code","v":"DEU"},"Hydrogen (AEL)",{"$f":"_calc!$B$620","v":"IND"},{"$f":"_calc!$BO$582","v":"COST-CAPEX"},{"$f":"_calc!$BR$1","v":"Electricity generation"},{"$f":"_calc!$BR$620","v":27.205171838600815}]
[{"$f":"_xlfn.TEXTJOIN(\",\",FALSE,output[[#This Row],[scenario]:[process_class]])","v":"PTX-BusinessOpportunityAnalyzer-1.0.9,DEU,Hydrogen (AEL),IND,COST-CAPEX,Transportation (Pipeline)"},"PTX-BusinessOpportunityAnalyzer-1.0.9",{"$f":"sel_country_code","v":"DEU"},"Hydrogen (AEL)",{"$f":"_calc!$B$620","v":"IND"},{"$f":"_calc!$BO$582","v":"COST-CAPEX"},{"$f":"_calc!$BS$1","v":"Transportation (Pipeline)"},{"$f":"_calc!$BS$620","v":0}]
[{"$f":"_xlfn.TEXTJOIN(\",\",FALSE,output[[#This Row],[scenario]:[process_class]])","v":"PTX-BusinessOpportunityAnalyzer-1.0.9,DEU,Hydrogen (AEL),IND,COST-CAPEX,Transportation (Ship)"},"PTX-BusinessOpportunityAnalyzer-1.0.9",{"$f":"sel_country_code","v":"DEU"},"Hydrogen (AEL)",{"$f":"_calc!$B$620","v":"IND"},{"$f":"_calc!$BO$582","v":"COST-CAPEX"},{"$f":"_calc!$BT$1","v":"Transportation (Ship)"},{"$f":"_calc!$BT$620","v":34.72768761021581}]
[{"$f":"_xlfn.TEXTJOIN(\",\",FALSE,output[[#This Row],[scenario]:[process_class]])","v":"PTX-BusinessOpportunityAnalyzer-1.0.9,DEU,Hydrogen (AEL),IND,COST-CAPEX,Carbon"},"PTX-BusinessOpportunityAnalyzer-1.0.9",{"$f":"sel_country_code","v":"DEU"},"Hydrogen (AEL)",{"$f":"_calc!$B$620","v":"IND"},{"$f":"_calc!$BO$582","v":"COST-CAPEX"},{"$f":"_calc!$BU$1","v":"Carbon"},{"$f":"_calc!$BU$620","v":0}]
[{"$f":"_xlfn.TEXTJOIN(\",\",FALSE,output[[#This Row],[scenario]:[process_class]])","v":"PTX-BusinessOpportunityAnalyzer-1.0.9,DEU,Hydrogen (AEL),IND,COST-CAPEX,Derivate production"},"PTX-BusinessOpportunityAnalyzer-1.0.9",{"$f":"sel_country_code","v":"DEU"},"Hydrogen (AEL)",{"$f":"_calc!$B$620","v":"IND"},{"$f":"_calc!$BO$582","v":"COST-CAPEX"},{"$f":"_calc!$BV$1","v":"Derivate production"},{"$f":"_calc!$BV$620","v":0}]
[{"$f":"_xlfn.TEXTJOIN(\",\",FALSE,output[[#This Row],[scenario]:[process_class]])","v":"PTX-BusinessOpportunityAnalyzer-1.0.9,DEU,Hydrogen (AEL),IND,COST-CAPEX,Heat"},"PTX-BusinessOpportunityAnalyzer-1.0.9",{"$f":"sel_country_code","v":"DEU"},"Hydrogen (AEL)",{"$f":"_calc!$B$620","v":"IND"},{"$f":"_calc!$BO$582","v":"COST-CAPEX"},{"$f":"_calc!$BW$1","v":"Heat"},{"$f":"_calc!$BW$620","v":0}]
[{"$f":"_xlfn.TEXTJOIN(\",\",FALSE,output[[#This Row],[scenario]:[process_class]])","v":"PTX-BusinessOpportunityAnalyzer-1.0.9,DEU,Hydrogen (AEL),IND,COST-CAPEX,Electricity and H2 storage"},"PTX-BusinessOpportunityAnalyzer-1.0.9",{"$f":"sel_country_code","v":"DEU"},"Hydrogen (AEL)",{"$f":"_calc!$B$620","v":"IND"},{"$f":"_calc!$BO$582","v":"COST-CAPEX"},{"$f":"_calc!$BX$1","v":"Electricity and H2 storage"},{"$f":"_calc!$BX$620","v":0}]
[{"$f":"_xlfn.TEXTJOIN(\",\",FALSE,output[[#This Row],[scenario]:[process_class]])","v":"PTX-BusinessOpportunityAnalyzer-1.0.9,DEU,Hydrogen (AEL),JOR,COST-CAPEX,Water"},"PTX-BusinessOpportunityAnalyzer-1.0.9",{"$f":"sel_country_code","v":"DEU"},"Hydrogen (AEL)",{"$f":"_calc!$B$621","v":"JOR"},{"$f":"_calc!$BO$582","v":"COST-CAPEX"},{"$f":"_calc!$BP$1","v":"Water"},{"$f":"_calc!$BP$621","v":8.9326304011420304E-2}]
[{"$f":"_xlfn.TEXTJOIN(\",\",FALSE,output[[#This Row],[scenario]:[process_class]])","v":"PTX-BusinessOpportunityAnalyzer-1.0.9,DEU,Hydrogen (AEL),JOR,COST-CAPEX,Electrolysis"},"PTX-BusinessOpportunityAnalyzer-1.0.9",{"$f":"sel_country_code","v":"DEU"},"Hydrogen (AEL)",{"$f":"_calc!$B$621","v":"JOR"},{"$f":"_calc!$BO$582","v":"COST-CAPEX"},{"$f":"_calc!$BQ$1","v":"Electrolysis"},{"$f":"_calc!$BQ$621","v":29.742691095384675}]
[{"$f":"_xlfn.TEXTJOIN(\",\",FALSE,output[[#This Row],[scenario]:[process_class]])","v":"PTX-BusinessOpportunityAnalyzer-1.0.9,DEU,Hydrogen (AEL),JOR,COST-CAPEX,Electricity generation"},"PTX-BusinessOpportunityAnalyzer-1.0.9",{"$f":"sel_country_code","v":"DEU"},"Hydrogen (AEL)",{"$f":"_calc!$B$621","v":"JOR"},{"$f":"_calc!$BO$582","v":"COST-CAPEX"},{"$f":"_calc!$BR$1","v":"Electricity generation"},{"$f":"_calc!$BR$621","v":99.629989308770249}]
[{"$f":"_xlfn.TEXTJOIN(\",\",FALSE,output[[#This Row],[scenario]:[process_class]])","v":"PTX-BusinessOpportunityAnalyzer-1.0.9,DEU,Hydrogen (AEL),JOR,COST-CAPEX,Transportation (Pipeline)"},"PTX-BusinessOpportunityAnalyzer-1.0.9",{"$f":"sel_country_code","v":"DEU"},"Hydrogen (AEL)",{"$f":"_calc!$B$621","v":"JOR"},{"$f":"_calc!$BO$582","v":"COST-CAPEX"},{"$f":"_calc!$BS$1","v":"Transportation (Pipeline)"},{"$f":"_calc!$BS$621","v":2.7304312159875006}]
[{"$f":"_xlfn.TEXTJOIN(\",\",FALSE,output[[#This Row],[scenario]:[process_class]])","v":"PTX-BusinessOpportunityAnalyzer-1.0.9,DEU,Hydrogen (AEL),JOR,COST-CAPEX,Transportation (Ship)"},"PTX-BusinessOpportunityAnalyzer-1.0.9",{"$f":"sel_country_code","v":"DEU"},"Hydrogen (AEL)",{"$f":"_calc!$B$621","v":"JOR"},{"$f":"_calc!$BO$582","v":"COST-CAPEX"},{"$f":"_calc!$BT$1","v":"Transportation (Ship)"},{"$f":"_calc!$BT$621","v":0}]
[{"$f":"_xlfn.TEXTJOIN(\",\",FALSE,output[[#This Row],[scenario]:[process_class]])","v":"PTX-BusinessOpportunityAnalyzer-1.0.9,DEU,Hydrogen (AEL),JOR,COST-CAPEX,Carbon"},"PTX-BusinessOpportunityAnalyzer-1.0.9",{"$f":"sel_country_code","v":"DEU"},"Hydrogen (AEL)",{"$f":"_calc!$B$621","v":"JOR"},{"$f":"_calc!$BO$582","v":"COST-CAPEX"},{"$f":"_calc!$BU$1","v":"Carbon"},{"$f":"_calc!$BU$621","v":0}]
[{"$f":"_xlfn.TEXTJOIN(\",\",FALSE,output[[#This Row],[scenario]:[process_class]])","v":"PTX-BusinessOpportunityAnalyzer-1.0.9,DEU,Hydrogen (AEL),JOR,COST-CAPEX,Derivate production"},"PTX-BusinessOpportunityAnalyzer-1.0.9",{"$f":"sel_country_code","v":"DEU"},"Hydrogen (AEL)",{"$f":"_calc!$B$621","v":"JOR"},{"$f":"_calc!$BO$582","v":"COST-CAPEX"},{"$f":"_calc!$BV$1","v":"Derivate production"},{"$f":"_calc!$BV$621","v":0}]
[{"$f":"_xlfn.TEXTJOIN(\",\",FALSE,output[[#This Row],[scenario]:[process_class]])","v":"PTX-BusinessOpportunityAnalyzer-1.0.9,DEU,Hydrogen (AEL),JOR,COST-CAPEX,Heat"},"PTX-BusinessOpportunityAnalyzer-1.0.9",{"$f":"sel_country_code","v":"DEU"},"Hydrogen (AEL)",{"$f":"_calc!$B$621","v":"JOR"},{"$f":"_calc!$BO$582","v":"COST-CAPEX"},{"$f":"_calc!$BW$1","v":"Heat"},{"$f":"_calc!$BW$621","v":0}]
[{"$f":"_xlfn.TEXTJOIN(\",\",FALSE,output[[#This Row],[scenario]:[process_class]])","v":"PTX-BusinessOpportunityAnalyzer-1.0.9,DEU,Hydrogen (AEL),JOR,COST-CAPEX,Electricity and H2 storage"},"PTX-BusinessOpportunityAnalyzer-1.0.9",{"$f":"sel_country_code","v":"DEU"},"Hydrogen (AEL)",{"$f":"_calc!$B$621","v":"JOR"},{"$f":"_calc!$BO$582","v":"COST-CAPEX"},{"$f":"_calc!$BX$1","v":"Electricity and H2 storage"},{"$f":"_calc!$BX$621","v":0}]
[{"$f":"_xlfn.TEXTJOIN(\",\",FALSE,output[[#This Row],[scenario]:[process_class]])","v":"PTX-BusinessOpportunityAnalyzer-1.0.9,DEU,Hydrogen (AEL),KAZ,COST-CAPEX,Water"},"PTX-BusinessOpportunityAnalyzer-1.0.9",{"$f":"sel_country_code","v":"DEU"},"Hydrogen (AEL)",{"$f":"_calc!$B$622","v":"KAZ"},{"$f":"_calc!$BO$582","v":"COST-CAPEX"},{"$f":"_calc!$BP$1","v":"Water"},{"$f":"_calc!$BP$622","v":7.4173702506089831E-2}]
[{"$f":"_xlfn.TEXTJOIN(\",\",FALSE,output[[#This Row],[scenario]:[process_class]])","v":"PTX-BusinessOpportunityAnalyzer-1.0.9,DEU,Hydrogen (AEL),KAZ,COST-CAPEX,Electrolysis"},"PTX-BusinessOpportunityAnalyzer-1.0.9",{"$f":"sel_country_code","v":"DEU"},"Hydrogen (AEL)",{"$f":"_calc!$B$622","v":"KAZ"},{"$f":"_calc!$BO$582","v":"COST-CAPEX"},{"$f":"_calc!$BQ$1","v":"Electrolysis"},{"$f":"_calc!$BQ$622","v":12.565029913527582}]
[{"$f":"_xlfn.TEXTJOIN(\",\",FALSE,output[[#This Row],[scenario]:[process_class]])","v":"PTX-BusinessOpportunityAnalyzer-1.0.9,DEU,Hydrogen (AEL),KAZ,COST-CAPEX,Electricity generation"},"PTX-BusinessOpportunityAnalyzer-1.0.9",{"$f":"sel_country_code","v":"DEU"},"Hydrogen (AEL)",{"$f":"_calc!$B$622","v":"KAZ"},{"$f":"_calc!$BO$582","v":"COST-CAPEX"},{"$f":"_calc!$BR$1","v":"Electricity generation"},{"$f":"_calc!$BR$622","v":31.684370136554474}]
[{"$f":"_xlfn.TEXTJOIN(\",\",FALSE,output[[#This Row],[scenario]:[process_class]])","v":"PTX-BusinessOpportunityAnalyzer-1.0.9,DEU,Hydrogen (AEL),KAZ,COST-CAPEX,Transportation (Pipeline)"},"PTX-BusinessOpportunityAnalyzer-1.0.9",{"$f":"sel_country_code","v":"DEU"},"Hydrogen (AEL)",{"$f":"_calc!$B$622","v":"KAZ"},{"$f":"_calc!$BO$582","v":"COST-CAPEX"},{"$f":"_calc!$BS$1","v":"Transportation (Pipeline)"},{"$f":"_calc!$BS$622","v":2.2672626497801267}]
[{"$f":"_xlfn.TEXTJOIN(\",\",FALSE,output[[#This Row],[scenario]:[process_class]])","v":"PTX-BusinessOpportunityAnalyzer-1.0.9,DEU,Hydrogen (AEL),KAZ,COST-CAPEX,Transportation (Ship)"},"PTX-BusinessOpportunityAnalyzer-1.0.9",{"$f":"sel_country_code","v":"DEU"},"Hydrogen (AEL)",{"$f":"_calc!$B$622","v":"KAZ"},{"$f":"_calc!$BO$582","v":"COST-CAPEX"},{"$f":"_calc!$BT$1","v":"Transportation (Ship)"},{"$f":"_calc!$BT$622","v":0}]
[{"$f":"_xlfn.TEXTJOIN(\",\",FALSE,output[[#This Row],[scenario]:[process_class]])","v":"PTX-BusinessOpportunityAnalyzer-1.0.9,DEU,Hydrogen (AEL),KAZ,COST-CAPEX,Carbon"},"PTX-BusinessOpportunityAnalyzer-1.0.9",{"$f":"sel_country_code","v":"DEU"},"Hydrogen (AEL)",{"$f":"_calc!$B$622","v":"KAZ"},{"$f":"_calc!$BO$582","v":"COST-CAPEX"},{"$f":"_calc!$BU$1","v":"Carbon"},{"$f":"_calc!$BU$622","v":0}]
[{"$f":"_xlfn.TEXTJOIN(\",\",FALSE,output[[#This Row],[scenario]:[process_class]])","v":"PTX-BusinessOpportunityAnalyzer-1.0.9,DEU,Hydrogen (AEL),KAZ,COST-CAPEX,Derivate production"},"PTX-BusinessOpportunityAnalyzer-1.0.9",{"$f":"sel_country_code","v":"DEU"},"Hydrogen (AEL)",{"$f":"_calc!$B$622","v":"KAZ"},{"$f":"_calc!$BO$582","v":"COST-CAPEX"},{"$f":"_calc!$BV$1","v":"Derivate production"},{"$f":"_calc!$BV$622","v":0}]
[{"$f":"_xlfn.TEXTJOIN(\",\",FALSE,output[[#This Row],[scenario]:[process_class]])","v":"PTX-BusinessOpportunityAnalyzer-1.0.9,DEU,Hydrogen (AEL),KAZ,COST-CAPEX,Heat"},"PTX-BusinessOpportunityAnalyzer-1.0.9",{"$f":"sel_country_code","v":"DEU"},"Hydrogen (AEL)",{"$f":"_calc!$B$622","v":"KAZ"},{"$f":"_calc!$BO$582","v":"COST-CAPEX"},{"$f":"_calc!$BW$1","v":"Heat"},{"$f":"_calc!$BW$622","v":0}]
[{"$f":"_xlfn.TEXTJOIN(\",\",FALSE,output[[#This Row],[scenario]:[process_class]])","v":"PTX-BusinessOpportunityAnalyzer-1.0.9,DEU,Hydrogen (AEL),KAZ,COST-CAPEX,Electricity and H2 storage"},"PTX-BusinessOpportunityAnalyzer-1.0.9",{"$f":"sel_country_code","v":"DEU"},"Hydrogen (AEL)",{"$f":"_calc!$B$622","v":"KAZ"},{"$f":"_calc!$BO$582","v":"COST-CAPEX"},{"$f":"_calc!$BX$1","v":"Electricity and H2 storage"},{"$f":"_calc!$BX$622","v":0}]
[{"$f":"_xlfn.TEXTJOIN(\",\",FALSE,output[[#This Row],[scenario]:[process_class]])","v":"PTX-BusinessOpportunityAnalyzer-1.0.9,DEU,Hydrogen (AEL),KEN,COST-CAPEX,Water"},"PTX-BusinessOpportunityAnalyzer-1.0.9",{"$f":"sel_country_code","v":"DEU"},"Hydrogen (AEL)",{"$f":"_calc!$B$623","v":"KEN"},{"$f":"_calc!$BO$582","v":"COST-CAPEX"},{"$f":"_calc!$BP$1","v":"Water"},{"$f":"_calc!$BP$623","v":0.12249865975256906}]
[{"$f":"_xlfn.TEXTJOIN(\",\",FALSE,output[[#This Row],[scenario]:[process_class]])","v":"PTX-BusinessOpportunityAnalyzer-1.0.9,DEU,Hydrogen (AEL),KEN,COST-CAPEX,Electrolysis"},"PTX-BusinessOpportunityAnalyzer-1.0.9",{"$f":"sel_country_code","v":"DEU"},"Hydrogen (AEL)",{"$f":"_calc!$B$623","v":"KEN"},{"$f":"_calc!$BO$582","v":"COST-CAPEX"},{"$f":"_calc!$BQ$1","v":"Electrolysis"},{"$f":"_calc!$BQ$623","v":28.743076534049056}]
[{"$f":"_xlfn.TEXTJOIN(\",\",FALSE,output[[#This Row],[scenario]:[process_class]])","v":"PTX-BusinessOpportunityAnalyzer-1.0.9,DEU,Hydrogen (AEL),KEN,COST-CAPEX,Electricity generation"},"PTX-BusinessOpportunityAnalyzer-1.0.9",{"$f":"sel_country_code","v":"DEU"},"Hydrogen (AEL)",{"$f":"_calc!$B$623","v":"KEN"},{"$f":"_calc!$BO$582","v":"COST-CAPEX"},{"$f":"_calc!$BR$1","v":"Electricity generation"},{"$f":"_calc!$BR$623","v":88.508833260824133}]
[{"$f":"_xlfn.TEXTJOIN(\",\",FALSE,output[[#This Row],[scenario]:[process_class]])","v":"PTX-BusinessOpportunityAnalyzer-1.0.9,DEU,Hydrogen (AEL),KEN,COST-CAPEX,Transportation (Pipeline)"},"PTX-BusinessOpportunityAnalyzer-1.0.9",{"$f":"sel_country_code","v":"DEU"},"Hydrogen (AEL)",{"$f":"_calc!$B$623","v":"KEN"},{"$f":"_calc!$BO$582","v":"COST-CAPEX"},{"$f":"_calc!$BS$1","v":"Transportation (Pipeline)"},{"$f":"_calc!$BS$623","v":0}]
[{"$f":"_xlfn.TEXTJOIN(\",\",FALSE,output[[#This Row],[scenario]:[process_class]])","v":"PTX-BusinessOpportunityAnalyzer-1.0.9,DEU,Hydrogen (AEL),KEN,COST-CAPEX,Transportation (Ship)"},"PTX-BusinessOpportunityAnalyzer-1.0.9",{"$f":"sel_country_code","v":"DEU"},"Hydrogen (AEL)",{"$f":"_calc!$B$623","v":"KEN"},{"$f":"_calc!$BO$582","v":"COST-CAPEX"},{"$f":"_calc!$BT$1","v":"Transportation (Ship)"},{"$f":"_calc!$BT$623","v":61.153273387276755}]
[{"$f":"_xlfn.TEXTJOIN(\",\",FALSE,output[[#This Row],[scenario]:[process_class]])","v":"PTX-BusinessOpportunityAnalyzer-1.0.9,DEU,Hydrogen (AEL),KEN,COST-CAPEX,Carbon"},"PTX-BusinessOpportunityAnalyzer-1.0.9",{"$f":"sel_country_code","v":"DEU"},"Hydrogen (AEL)",{"$f":"_calc!$B$623","v":"KEN"},{"$f":"_calc!$BO$582","v":"COST-CAPEX"},{"$f":"_calc!$BU$1","v":"Carbon"},{"$f":"_calc!$BU$623","v":0}]
[{"$f":"_xlfn.TEXTJOIN(\",\",FALSE,output[[#This Row],[scenario]:[process_class]])","v":"PTX-BusinessOpportunityAnalyzer-1.0.9,DEU,Hydrogen (AEL),KEN,COST-CAPEX,Derivate production"},"PTX-BusinessOpportunityAnalyzer-1.0.9",{"$f":"sel_country_code","v":"DEU"},"Hydrogen (AEL)",{"$f":"_calc!$B$623","v":"KEN"},{"$f":"_calc!$BO$582","v":"COST-CAPEX"},{"$f":"_calc!$BV$1","v":"Derivate production"},{"$f":"_calc!$BV$623","v":0}]
[{"$f":"_xlfn.TEXTJOIN(\",\",FALSE,output[[#This Row],[scenario]:[process_class]])","v":"PTX-BusinessOpportunityAnalyzer-1.0.9,DEU,Hydrogen (AEL),KEN,COST-CAPEX,Heat"},"PTX-BusinessOpportunityAnalyzer-1.0.9",{"$f":"sel_country_code","v":"DEU"},"Hydrogen (AEL)",{"$f":"_calc!$B$623","v":"KEN"},{"$f":"_calc!$BO$582","v":"COST-CAPEX"},{"$f":"_calc!$BW$1","v":"Heat"},{"$f":"_calc!$BW$623","v":0}]
[{"$f":"_xlfn.TEXTJOIN(\",\",FALSE,output[[#This Row],[scenario]:[process_class]])","v":"PTX-BusinessOpportunityAnalyzer-1.0.9,DEU,Hydrogen (AEL),KEN,COST-CAPEX,Electricity and H2 storage"},"PTX-BusinessOpportunityAnalyzer-1.0.9",{"$f":"sel_country_code","v":"DEU"},"Hydrogen (AEL)",{"$f":"_calc!$B$623","v":"KEN"},{"$f":"_calc!$BO$582","v":"COST-CAPEX"},{"$f":"_calc!$BX$1","v":"Electricity and H2 storage"},{"$f":"_calc!$BX$623","v":0}]
[{"$f":"_xlfn.TEXTJOIN(\",\",FALSE,output[[#This Row],[scenario]:[process_class]])","v":"PTX-BusinessOpportunityAnalyzer-1.0.9,DEU,Hydrogen (AEL),MAR,COST-CAPEX,Water"},"PTX-BusinessOpportunityAnalyzer-1.0.9",{"$f":"sel_country_code","v":"DEU"},"Hydrogen (AEL)",{"$f":"_calc!$B$624","v":"MAR"},{"$f":"_calc!$BO$582","v":"COST-CAPEX"},{"$f":"_calc!$BP$1","v":"Water"},{"$f":"_calc!$BP$624","v":8.8072337551971872E-2}]
[{"$f":"_xlfn.TEXTJOIN(\",\",FALSE,output[[#This Row],[scenario]:[process_class]])","v":"PTX-BusinessOpportunityAnalyzer-1.0.9,DEU,Hydrogen (AEL),MAR,COST-CAPEX,Electrolysis"},"PTX-BusinessOpportunityAnalyzer-1.0.9",{"$f":"sel_country_code","v":"DEU"},"Hydrogen (AEL)",{"$f":"_calc!$B$624","v":"MAR"},{"$f":"_calc!$BO$582","v":"COST-CAPEX"},{"$f":"_calc!$BQ$1","v":"Electrolysis"},{"$f":"_calc!$BQ$624","v":17.930560176211269}]
[{"$f":"_xlfn.TEXTJOIN(\",\",FALSE,output[[#This Row],[scenario]:[process_class]])","v":"PTX-BusinessOpportunityAnalyzer-1.0.9,DEU,Hydrogen (AEL),MAR,COST-CAPEX,Electricity generation"},"PTX-BusinessOpportunityAnalyzer-1.0.9",{"$f":"sel_country_code","v":"DEU"},"Hydrogen (AEL)",{"$f":"_calc!$B$624","v":"MAR"},{"$f":"_calc!$BO$582","v":"COST-CAPEX"},{"$f":"_calc!$BR$1","v":"Electricity generation"},{"$f":"_calc!$BR$624","v":46.624762923771669}]
[{"$f":"_xlfn.TEXTJOIN(\",\",FALSE,output[[#This Row],[scenario]:[process_class]])","v":"PTX-BusinessOpportunityAnalyzer-1.0.9,DEU,Hydrogen (AEL),MAR,COST-CAPEX,Transportation (Pipeline)"},"PTX-BusinessOpportunityAnalyzer-1.0.9",{"$f":"sel_country_code","v":"DEU"},"Hydrogen (AEL)",{"$f":"_calc!$B$624","v":"MAR"},{"$f":"_calc!$BO$582","v":"COST-CAPEX"},{"$f":"_calc!$BS$1","v":"Transportation (Pipeline)"},{"$f":"_calc!$BS$624","v":0}]
[{"$f":"_xlfn.TEXTJOIN(\",\",FALSE,output[[#This Row],[scenario]:[process_class]])","v":"PTX-BusinessOpportunityAnalyzer-1.0.9,DEU,Hydrogen (AEL),MAR,COST-CAPEX,Transportation (Ship)"},"PTX-BusinessOpportunityAnalyzer-1.0.9",{"$f":"sel_country_code","v":"DEU"},"Hydrogen (AEL)",{"$f":"_calc!$B$624","v":"MAR"},{"$f":"_calc!$BO$582","v":"COST-CAPEX"},{"$f":"_calc!$BT$1","v":"Transportation (Ship)"},{"$f":"_calc!$BT$624","v":40.055643960437493}]
[{"$f":"_xlfn.TEXTJOIN(\",\",FALSE,output[[#This Row],[scenario]:[process_class]])","v":"PTX-BusinessOpportunityAnalyzer-1.0.9,DEU,Hydrogen (AEL),MAR,COST-CAPEX,Carbon"},"PTX-BusinessOpportunityAnalyzer-1.0.9",{"$f":"sel_country_code","v":"DEU"},"Hydrogen (AEL)",{"$f":"_calc!$B$624","v":"MAR"},{"$f":"_calc!$BO$582","v":"COST-CAPEX"},{"$f":"_calc!$BU$1","v":"Carbon"},{"$f":"_calc!$BU$624","v":0}]
[{"$f":"_xlfn.TEXTJOIN(\",\",FALSE,output[[#This Row],[scenario]:[process_class]])","v":"PTX-BusinessOpportunityAnalyzer-1.0.9,DEU,Hydrogen (AEL),MAR,COST-CAPEX,Derivate production"},"PTX-BusinessOpportunityAnalyzer-1.0.9",{"$f":"sel_country_code","v":"DEU"},"Hydrogen (AEL)",{"$f":"_calc!$B$624","v":"MAR"},{"$f":"_calc!$BO$582","v":"COST-CAPEX"},{"$f":"_calc!$BV$1","v":"Derivate production"},{"$f":"_calc!$BV$624","v":0}]
[{"$f":"_xlfn.TEXTJOIN(\",\",FALSE,output[[#This Row],[scenario]:[process_class]])","v":"PTX-BusinessOpportunityAnalyzer-1.0.9,DEU,Hydrogen (AEL),MAR,COST-CAPEX,Heat"},"PTX-BusinessOpportunityAnalyzer-1.0.9",{"$f":"sel_country_code","v":"DEU"},"Hydrogen (AEL)",{"$f":"_calc!$B$624","v":"MAR"},{"$f":"_calc!$BO$582","v":"COST-CAPEX"},{"$f":"_calc!$BW$1","v":"Heat"},{"$f":"_calc!$BW$624","v":0}]
[{"$f":"_xlfn.TEXTJOIN(\",\",FALSE,output[[#This Row],[scenario]:[process_class]])","v":"PTX-BusinessOpportunityAnalyzer-1.0.9,DEU,Hydrogen (AEL),MAR,COST-CAPEX,Electricity and H2 storage"},"PTX-BusinessOpportunityAnalyzer-1.0.9",{"$f":"sel_country_code","v":"DEU"},"Hydrogen (AEL)",{"$f":"_calc!$B$624","v":"MAR"},{"$f":"_calc!$BO$582","v":"COST-CAPEX"},{"$f":"_calc!$BX$1","v":"Electricity and H2 storage"},{"$f":"_calc!$BX$624","v":0}]
[{"$f":"_xlfn.TEXTJOIN(\",\",FALSE,output[[#This Row],[scenario]:[process_class]])","v":"PTX-BusinessOpportunityAnalyzer-1.0.9,DEU,Hydrogen (AEL),MAR-BEN,COST-CAPEX,Water"},"PTX-BusinessOpportunityAnalyzer-1.0.9",{"$f":"sel_country_code","v":"DEU"},"Hydrogen (AEL)",{"$f":"_calc!$B$625","v":"MAR-BEN"},{"$f":"_calc!$BO$582","v":"COST-CAPEX"},{"$f":"_calc!$BP$1","v":"Water"},{"$f":"_calc!$BP$625","v":8.8072337551971872E-2}]
[{"$f":"_xlfn.TEXTJOIN(\",\",FALSE,output[[#This Row],[scenario]:[process_class]])","v":"PTX-BusinessOpportunityAnalyzer-1.0.9,DEU,Hydrogen (AEL),MAR-BEN,COST-CAPEX,Electrolysis"},"PTX-BusinessOpportunityAnalyzer-1.0.9",{"$f":"sel_country_code","v":"DEU"},"Hydrogen (AEL)",{"$f":"_calc!$B$625","v":"MAR-BEN"},{"$f":"_calc!$BO$582","v":"COST-CAPEX"},{"$f":"_calc!$BQ$1","v":"Electrolysis"},{"$f":"_calc!$BQ$625","v":25.196773329640632}]
[{"$f":"_xlfn.TEXTJOIN(\",\",FALSE,output[[#This Row],[scenario]:[process_class]])","v":"PTX-BusinessOpportunityAnalyzer-1.0.9,DEU,Hydrogen (AEL),MAR-BEN,COST-CAPEX,Electricity generation"},"PTX-BusinessOpportunityAnalyzer-1.0.9",{"$f":"sel_country_code","v":"DEU"},"Hydrogen (AEL)",{"$f":"_calc!$B$625","v":"MAR-BEN"},{"$f":"_calc!$BO$582","v":"COST-CAPEX"},{"$f":"_calc!$BR$1","v":"Electricity generation"},{"$f":"_calc!$BR$625","v":65.909416861409369}]
[{"$f":"_xlfn.TEXTJOIN(\",\",FALSE,output[[#This Row],[scenario]:[process_class]])","v":"PTX-BusinessOpportunityAnalyzer-1.0.9,DEU,Hydrogen (AEL),MAR-BEN,COST-CAPEX,Transportation (Pipeline)"},"PTX-BusinessOpportunityAnalyzer-1.0.9",{"$f":"sel_country_code","v":"DEU"},"Hydrogen (AEL)",{"$f":"_calc!$B$625","v":"MAR-BEN"},{"$f":"_calc!$BO$582","v":"COST-CAPEX"},{"$f":"_calc!$BS$1","v":"Transportation (Pipeline)"},{"$f":"_calc!$BS$625","v":0}]
[{"$f":"_xlfn.TEXTJOIN(\",\",FALSE,output[[#This Row],[scenario]:[process_class]])","v":"PTX-BusinessOpportunityAnalyzer-1.0.9,DEU,Hydrogen (AEL),MAR-BEN,COST-CAPEX,Transportation (Ship)"},"PTX-BusinessOpportunityAnalyzer-1.0.9",{"$f":"sel_country_code","v":"DEU"},"Hydrogen (AEL)",{"$f":"_calc!$B$625","v":"MAR-BEN"},{"$f":"_calc!$BO$582","v":"COST-CAPEX"},{"$f":"_calc!$BT$1","v":"Transportation (Ship)"},{"$f":"_calc!$BT$625","v":54.227732806568127}]
[{"$f":"_xlfn.TEXTJOIN(\",\",FALSE,output[[#This Row],[scenario]:[process_class]])","v":"PTX-BusinessOpportunityAnalyzer-1.0.9,DEU,Hydrogen (AEL),MAR-BEN,COST-CAPEX,Carbon"},"PTX-BusinessOpportunityAnalyzer-1.0.9",{"$f":"sel_country_code","v":"DEU"},"Hydrogen (AEL)",{"$f":"_calc!$B$625","v":"MAR-BEN"},{"$f":"_calc!$BO$582","v":"COST-CAPEX"},{"$f":"_calc!$BU$1","v":"Carbon"},{"$f":"_calc!$BU$625","v":0}]
[{"$f":"_xlfn.TEXTJOIN(\",\",FALSE,output[[#This Row],[scenario]:[process_class]])","v":"PTX-BusinessOpportunityAnalyzer-1.0.9,DEU,Hydrogen (AEL),MAR-BEN,COST-CAPEX,Derivate production"},{"$f":"output_scenario_name","v":"PTX-BusinessOpportunityAnalyzer-1.0.9"},{"$f":"sel_country_code","v":"DEU"},{"$f":"sel_chain","v":"Hydrogen (AEL)"},{"$f":"_calc!$B$625","v":"MAR-BEN"},{"$f":"_calc!$BO$582","v":"COST-CAPEX"},{"$f":"_calc!$BV$1","v":"Derivate production"},{"$f":"_calc!$BV$625","v":0}]
[{"$f":"_xlfn.TEXTJOIN(\",\",FALSE,output[[#This Row],[scenario]:[process_class]])","v":"PTX-BusinessOpportunityAnalyzer-1.0.9,DEU,Hydrogen (AEL),MAR-BEN,COST-CAPEX,Heat"},"PTX-BusinessOpportunityAnalyzer-1.0.9",{"$f":"sel_country_code","v":"DEU"},"Hydrogen (AEL)",{"$f":"_calc!$B$625","v":"MAR-BEN"},{"$f":"_calc!$BO$582","v":"COST-CAPEX"},{"$f":"_calc!$BW$1","v":"Heat"},{"$f":"_calc!$BW$625","v":0}]
[{"$f":"_xlfn.TEXTJOIN(\",\",FALSE,output[[#This Row],[scenario]:[process_class]])","v":"PTX-BusinessOpportunityAnalyzer-1.0.9,DEU,Hydrogen (AEL),MAR-BEN,COST-CAPEX,Electricity and H2 storage"},"PTX-BusinessOpportunityAnalyzer-1.0.9",{"$f":"sel_country_code","v":"DEU"},"Hydrogen (AEL)",{"$f":"_calc!$B$625","v":"MAR-BEN"},{"$f":"_calc!$BO$582","v":"COST-CAPEX"},{"$f":"_calc!$BX$1","v":"Electricity and H2 storage"},{"$f":"_calc!$BX$625","v":0}]
[{"$f":"_xlfn.TEXTJOIN(\",\",FALSE,output[[#This Row],[scenario]:[process_class]])","v":"PTX-BusinessOpportunityAnalyzer-1.0.9,DEU,Hydrogen (AEL),MAR-CAS,COST-CAPEX,Water"},"PTX-BusinessOpportunityAnalyzer-1.0.9",{"$f":"sel_country_code","v":"DEU"},"Hydrogen (AEL)",{"$f":"_calc!$B$626","v":"MAR-CAS"},{"$f":"_calc!$BO$582","v":"COST-CAPEX"},{"$f":"_calc!$BP$1","v":"Water"},{"$f":"_calc!$BP$626","v":8.8072337551971872E-2}]
[{"$f":"_xlfn.TEXTJOIN(\",\",FALSE,output[[#This Row],[scenario]:[process_class]])","v":"PTX-BusinessOpportunityAnalyzer-1.0.9,DEU,Hydrogen (AEL),MAR-CAS,COST-CAPEX,Electrolysis"},"PTX-BusinessOpportunityAnalyzer-1.0.9",{"$f":"sel_country_code","v":"DEU"},"Hydrogen (AEL)",{"$f":"_calc!$B$626","v":"MAR-CAS"},{"$f":"_calc!$BO$582","v":"COST-CAPEX"},{"$f":"_calc!$BQ$1","v":"Electrolysis"},{"$f":"_calc!$BQ$626","v":19.865333629090628}]
[{"$f":"_xlfn.TEXTJOIN(\",\",FALSE,output[[#This Row],[scenario]:[process_class]])","v":"PTX-BusinessOpportunityAnalyzer-1.0.9,DEU,Hydrogen (AEL),MAR-CAS,COST-CAPEX,Electricity generation"},"PTX-BusinessOpportunityAnalyzer-1.0.9",{"$f":"sel_country_code","v":"DEU"},"Hydrogen (AEL)",{"$f":"_calc!$B$626","v":"MAR-CAS"},{"$f":"_calc!$BO$582","v":"COST-CAPEX"},{"$f":"_calc!$BR$1","v":"Electricity generation"},{"$f":"_calc!$BR$626","v":53.798275782061083}]
[{"$f":"_xlfn.TEXTJOIN(\",\",FALSE,output[[#This Row],[scenario]:[process_class]])","v":"PTX-BusinessOpportunityAnalyzer-1.0.9,DEU,Hydrogen (AEL),MAR-CAS,COST-CAPEX,Transportation (Pipeline)"},"PTX-BusinessOpportunityAnalyzer-1.0.9",{"$f":"sel_country_code","v":"DEU"},"Hydrogen (AEL)",{"$f":"_calc!$B$626","v":"MAR-CAS"},{"$f":"_calc!$BO$582","v":"COST-CAPEX"},{"$f":"_calc!$BS$1","v":"Transportation (Pipeline)"},{"$f":"_calc!$BS$626","v":0}]
[{"$f":"_xlfn.TEXTJOIN(\",\",FALSE,output[[#This Row],[scenario]:[process_class]])","v":"PTX-BusinessOpportunityAnalyzer-1.0.9,DEU,Hydrogen (AEL),MAR-CAS,COST-CAPEX,Transportation (Ship)"},"PTX-BusinessOpportunityAnalyzer-1.0.9",{"$f":"sel_country_code","v":"DEU"},"Hydrogen (AEL)",{"$f":"_calc!$B$626","v":"MAR-CAS"},{"$f":"_calc!$BO$582","v":"COST-CAPEX"},{"$f":"_calc!$BT$1","v":"Transportation (Ship)"},{"$f":"_calc!$BT$626","v":44.726478377164987}]
[{"$f":"_xlfn.TEXTJOIN(\",\",FALSE,output[[#This Row],[scenario]:[process_class]])","v":"PTX-BusinessOpportunityAnalyzer-1.0.9,DEU,Hydrogen (AEL),MAR-CAS,COST-CAPEX,Carbon"},"PTX-BusinessOpportunityAnalyzer-1.0.9",{"$f":"sel_country_code","v":"DEU"},"Hydrogen (AEL)",{"$f":"_calc!$B$626","v":"MAR-CAS"},{"$f":"_calc!$BO$582","v":"COST-CAPEX"},{"$f":"_calc!$BU$1","v":"Carbon"},{"$f":"_calc!$BU$626","v":0}]
[{"$f":"_xlfn.TEXTJOIN(\",\",FALSE,output[[#This Row],[scenario]:[process_class]])","v":"PTX-BusinessOpportunityAnalyzer-1.0.9,DEU,Hydrogen (AEL),MAR-CAS,COST-CAPEX,Derivate production"},"PTX-BusinessOpportunityAnalyzer-1.0.9",{"$f":"sel_country_code","v":"DEU"},"Hydrogen (AEL)",{"$f":"_calc!$B$626","v":"MAR-CAS"},{"$f":"_calc!$BO$582","v":"COST-CAPEX"},{"$f":"_calc!$BV$1","v":"Derivate production"},{"$f":"_calc!$BV$626","v":0}]
[{"$f":"_xlfn.TEXTJOIN(\",\",FALSE,output[[#This Row],[scenario]:[process_class]])","v":"PTX-BusinessOpportunityAnalyzer-1.0.9,DEU,Hydrogen (AEL),MAR-CAS,COST-CAPEX,Heat"},"PTX-BusinessOpportunityAnalyzer-1.0.9",{"$f":"sel_country_code","v":"DEU"},"Hydrogen (AEL)",{"$f":"_calc!$B$626","v":"MAR-CAS"},{"$f":"_calc!$BO$582","v":"COST-CAPEX"},{"$f":"_calc!$BW$1","v":"Heat"},{"$f":"_calc!$BW$626","v":0}]
[{"$f":"_xlfn.TEXTJOIN(\",\",FALSE,output[[#This Row],[scenario]:[process_class]])","v":"PTX-BusinessOpportunityAnalyzer-1.0.9,DEU,Hydrogen (AEL),MAR-CAS,COST-CAPEX,Electricity and H2 storage"},"PTX-BusinessOpportunityAnalyzer-1.0.9",{"$f":"sel_country_code","v":"DEU"},"Hydrogen (AEL)",{"$f":"_calc!$B$626","v":"MAR-CAS"},{"$f":"_calc!$BO$582","v":"COST-CAPEX"},{"$f":"_calc!$BX$1","v":"Electricity and H2 storage"},{"$f":"_calc!$BX$626","v":0}]
[{"$f":"_xlfn.TEXTJOIN(\",\",FALSE,output[[#This Row],[scenario]:[process_class]])","v":"PTX-BusinessOpportunityAnalyzer-1.0.9,DEU,Hydrogen (AEL),MAR-DAK,COST-CAPEX,Water"},"PTX-BusinessOpportunityAnalyzer-1.0.9",{"$f":"sel_country_code","v":"DEU"},"Hydrogen (AEL)",{"$f":"_calc!$B$627","v":"MAR-DAK"},{"$f":"_calc!$BO$582","v":"COST-CAPEX"},{"$f":"_calc!$BP$1","v":"Water"},{"$f":"_calc!$BP$627","v":8.8072337551971872E-2}]
[{"$f":"_xlfn.TEXTJOIN(\",\",FALSE,output[[#This Row],[scenario]:[process_class]])","v":"PTX-BusinessOpportunityAnalyzer-1.0.9,DEU,Hydrogen (AEL),MAR-DAK,COST-CAPEX,Electrolysis"},"PTX-BusinessOpportunityAnalyzer-1.0.9",{"$f":"sel_country_code","v":"DEU"},"Hydrogen (AEL)",{"$f":"_calc!$B$627","v":"MAR-DAK"},{"$f":"_calc!$BO$582","v":"COST-CAPEX"},{"$f":"_calc!$BQ$1","v":"Electrolysis"},{"$f":"_calc!$BQ$627","v":12.21366372924345}]
[{"$f":"_xlfn.TEXTJOIN(\",\",FALSE,output[[#This Row],[scenario]:[process_class]])","v":"PTX-BusinessOpportunityAnalyzer-1.0.9,DEU,Hydrogen (AEL),MAR-DAK,COST-CAPEX,Electricity generation"},"PTX-BusinessOpportunityAnalyzer-1.0.9",{"$f":"sel_country_code","v":"DEU"},"Hydrogen (AEL)",{"$f":"_calc!$B$627","v":"MAR-DAK"},{"$f":"_calc!$BO$582","v":"COST-CAPEX"},{"$f":"_calc!$BR$1","v":"Electricity generation"},{"$f":"_calc!$BR$627","v":34.842046736884093}]
[{"$f":"_xlfn.TEXTJOIN(\",\",FALSE,output[[#This Row],[scenario]:[process_class]])","v":"PTX-BusinessOpportunityAnalyzer-1.0.9,DEU,Hydrogen (AEL),MAR-DAK,COST-CAPEX,Transportation (Pipeline)"},"PTX-BusinessOpportunityAnalyzer-1.0.9",{"$f":"sel_country_code","v":"DEU"},"Hydrogen (AEL)",{"$f":"_calc!$B$627","v":"MAR-DAK"},{"$f":"_calc!$BO$582","v":"COST-CAPEX"},{"$f":"_calc!$BS$1","v":"Transportation (Pipeline)"},{"$f":"_calc!$BS$627","v":0}]
[{"$f":"_xlfn.TEXTJOIN(\",\",FALSE,output[[#This Row],[scenario]:[process_class]])","v":"PTX-BusinessOpportunityAnalyzer-1.0.9,DEU,Hydrogen (AEL),MAR-DAK,COST-CAPEX,Transportation (Ship)"},"PTX-BusinessOpportunityAnalyzer-1.0.9",{"$f":"sel_country_code","v":"DEU"},"Hydrogen (AEL)",{"$f":"_calc!$B$627","v":"MAR-DAK"},{"$f":"_calc!$BO$582","v":"COST-CAPEX"},{"$f":"_calc!$BT$1","v":"Transportation (Ship)"},{"$f":"_calc!$BT$627","v":28.614322650855655}]
[{"$f":"_xlfn.TEXTJOIN(\",\",FALSE,output[[#This Row],[scenario]:[process_class]])","v":"PTX-BusinessOpportunityAnalyzer-1.0.9,DEU,Hydrogen (AEL),MAR-DAK,COST-CAPEX,Carbon"},"PTX-BusinessOpportunityAnalyzer-1.0.9",{"$f":"sel_country_code","v":"DEU"},"Hydrogen (AEL)",{"$f":"_calc!$B$627","v":"MAR-DAK"},{"$f":"_calc!$BO$582","v":"COST-CAPEX"},{"$f":"_calc!$BU$1","v":"Carbon"},{"$f":"_calc!$BU$627","v":0}]
[{"$f":"_xlfn.TEXTJOIN(\",\",FALSE,output[[#This Row],[scenario]:[process_class]])","v":"PTX-BusinessOpportunityAnalyzer-1.0.9,DEU,Hydrogen (AEL),MAR-DAK,COST-CAPEX,Derivate production"},"PTX-BusinessOpportunityAnalyzer-1.0.9",{"$f":"sel_country_code","v":"DEU"},"Hydrogen (AEL)",{"$f":"_calc!$B$627","v":"MAR-DAK"},{"$f":"_calc!$BO$582","v":"COST-CAPEX"},{"$f":"_calc!$BV$1","v":"Derivate production"},{"$f":"_calc!$BV$627","v":0}]
[{"$f":"_xlfn.TEXTJOIN(\",\",FALSE,output[[#This Row],[scenario]:[process_class]])","v":"PTX-BusinessOpportunityAnalyzer-1.0.9,DEU,Hydrogen (AEL),MAR-DAK,COST-CAPEX,Heat"},"PTX-BusinessOpportunityAnalyzer-1.0.9",{"$f":"sel_country_code","v":"DEU"},"Hydrogen (AEL)",{"$f":"_calc!$B$627","v":"MAR-DAK"},{"$f":"_calc!$BO$582","v":"COST-CAPEX"},{"$f":"_calc!$BW$1","v":"Heat"},{"$f":"_calc!$BW$627","v":0}]
[{"$f":"_xlfn.TEXTJOIN(\",\",FALSE,output[[#This Row],[scenario]:[process_class]])","v":"PTX-BusinessOpportunityAnalyzer-1.0.9,DEU,Hydrogen (AEL),MAR-DAK,COST-CAPEX,Electricity and H2 storage"},"PTX-BusinessOpportunityAnalyzer-1.0.9",{"$f":"sel_country_code","v":"DEU"},"Hydrogen (AEL)",{"$f":"_calc!$B$627","v":"MAR-DAK"},{"$f":"_calc!$BO$582","v":"COST-CAPEX"},{"$f":"_calc!$BX$1","v":"Electricity and H2 storage"},{"$f":"_calc!$BX$627","v":0}]
[{"$f":"_xlfn.TEXTJOIN(\",\",FALSE,output[[#This Row],[scenario]:[process_class]])","v":"PTX-BusinessOpportunityAnalyzer-1.0.9,DEU,Hydrogen (AEL),MAR-DRA,COST-CAPEX,Water"},"PTX-BusinessOpportunityAnalyzer-1.0.9",{"$f":"sel_country_code","v":"DEU"},"Hydrogen (AEL)",{"$f":"_calc!$B$628","v":"MAR-DRA"},{"$f":"_calc!$BO$582","v":"COST-CAPEX"},{"$f":"_calc!$BP$1","v":"Water"},{"$f":"_calc!$BP$628","v":8.8072337551971872E-2}]
[{"$f":"_xlfn.TEXTJOIN(\",\",FALSE,output[[#This Row],[scenario]:[process_class]])","v":"PTX-BusinessOpportunityAnalyzer-1.0.9,DEU,Hydrogen (AEL),MAR-DRA,COST-CAPEX,Electrolysis"},"PTX-BusinessOpportunityAnalyzer-1.0.9",{"$f":"sel_country_code","v":"DEU"},"Hydrogen (AEL)",{"$f":"_calc!$B$628","v":"MAR-DRA"},{"$f":"_calc!$BO$582","v":"COST-CAPEX"},{"$f":"_calc!$BQ$1","v":"Electrolysis"},{"$f":"_calc!$BQ$628","v":18.159443869377057}]
[{"$f":"_xlfn.TEXTJOIN(\",\",FALSE,output[[#This Row],[scenario]:[process_class]])","v":"PTX-BusinessOpportunityAnalyzer-1.0.9,DEU,Hydrogen (AEL),MAR-DRA,COST-CAPEX,Electricity generation"},"PTX-BusinessOpportunityAnalyzer-1.0.9",{"$f":"sel_country_code","v":"DEU"},"Hydrogen (AEL)",{"$f":"_calc!$B$628","v":"MAR-DRA"},{"$f":"_calc!$BO$582","v":"COST-CAPEX"},{"$f":"_calc!$BR$1","v":"Electricity generation"},{"$f":"_calc!$BR$628","v":49.740426224336794}]
[{"$f":"_xlfn.TEXTJOIN(\",\",FALSE,output[[#This Row],[scenario]:[process_class]])","v":"PTX-BusinessOpportunityAnalyzer-1.0.9,DEU,Hydrogen (AEL),MAR-DRA,COST-CAPEX,Transportation (Pipeline)"},"PTX-BusinessOpportunityAnalyzer-1.0.9",{"$f":"sel_country_code","v":"DEU"},"Hydrogen (AEL)",{"$f":"_calc!$B$628","v":"MAR-DRA"},{"$f":"_calc!$BO$582","v":"COST-CAPEX"},{"$f":"_calc!$BS$1","v":"Transportation (Pipeline)"},{"$f":"_calc!$BS$628","v":0}]
[{"$f":"_xlfn.TEXTJOIN(\",\",FALSE,output[[#This Row],[scenario]:[process_class]])","v":"PTX-BusinessOpportunityAnalyzer-1.0.9,DEU,Hydrogen (AEL),MAR-DRA,COST-CAPEX,Transportation (Ship)"},"PTX-BusinessOpportunityAnalyzer-1.0.9",{"$f":"sel_country_code","v":"DEU"},"Hydrogen (AEL)",{"$f":"_calc!$B$628","v":"MAR-DRA"},{"$f":"_calc!$BO$582","v":"COST-CAPEX"},{"$f":"_calc!$BT$1","v":"Transportation (Ship)"},{"$f":"_calc!$BT$628","v":41.039445614695993}]
[{"$f":"_xlfn.TEXTJOIN(\",\",FALSE,output[[#This Row],[scenario]:[process_class]])","v":"PTX-BusinessOpportunityAnalyzer-1.0.9,DEU,Hydrogen (AEL),MAR-DRA,COST-CAPEX,Carbon"},"PTX-BusinessOpportunityAnalyzer-1.0.9",{"$f":"sel_country_code","v":"DEU"},"Hydrogen (AEL)",{"$f":"_calc!$B$628","v":"MAR-DRA"},{"$f":"_calc!$BO$582","v":"COST-CAPEX"},{"$f":"_calc!$BU$1","v":"Carbon"},{"$f":"_calc!$BU$628","v":0}]
[{"$f":"_xlfn.TEXTJOIN(\",\",FALSE,output[[#This Row],[scenario]:[process_class]])","v":"PTX-BusinessOpportunityAnalyzer-1.0.9,DEU,Hydrogen (AEL),MAR-DRA,COST-CAPEX,Derivate production"},"PTX-BusinessOpportunityAnalyzer-1.0.9",{"$f":"sel_country_code","v":"DEU"},"Hydrogen (AEL)",{"$f":"_calc!$B$628","v":"MAR-DRA"},{"$f":"_calc!$BO$582","v":"COST-CAPEX"},{"$f":"_calc!$BV$1","v":"Derivate production"},{"$f":"_calc!$BV$628","v":0}]
[{"$f":"_xlfn.TEXTJOIN(\",\",FALSE,output[[#This Row],[scenario]:[process_class]])","v":"PTX-BusinessOpportunityAnalyzer-1.0.9,DEU,Hydrogen (AEL),MAR-DRA,COST-CAPEX,Heat"},"PTX-BusinessOpportunityAnalyzer-1.0.9",{"$f":"sel_country_code","v":"DEU"},"Hydrogen (AEL)",{"$f":"_calc!$B$628","v":"MAR-DRA"},{"$f":"_calc!$BO$582","v":"COST-CAPEX"},{"$f":"_calc!$BW$1","v":"Heat"},{"$f":"_calc!$BW$628","v":0}]
[{"$f":"_xlfn.TEXTJOIN(\",\",FALSE,output[[#This Row],[scenario]:[process_class]])","v":"PTX-BusinessOpportunityAnalyzer-1.0.9,DEU,Hydrogen (AEL),MAR-DRA,COST-CAPEX,Electricity and H2 storage"},"PTX-BusinessOpportunityAnalyzer-1.0.9",{"$f":"sel_country_code","v":"DEU"},"Hydrogen (AEL)",{"$f":"_calc!$B$628","v":"MAR-DRA"},{"$f":"_calc!$BO$582","v":"COST-CAPEX"},{"$f":"_calc!$BX$1","v":"Electricity and H2 storage"},{"$f":"_calc!$BX$628","v":0}]
[{"$f":"_xlfn.TEXTJOIN(\",\",FALSE,output[[#This Row],[scenario]:[process_class]])","v":"PTX-BusinessOpportunityAnalyzer-1.0.9,DEU,Hydrogen (AEL),MAR-FES,COST-CAPEX,Water"},"PTX-BusinessOpportunityAnalyzer-1.0.9",{"$f":"sel_country_code","v":"DEU"},"Hydrogen (AEL)",{"$f":"_calc!$B$629","v":"MAR-FES"},{"$f":"_calc!$BO$582","v":"COST-CAPEX"},{"$f":"_calc!$BP$1","v":"Water"},{"$f":"_calc!$BP$629","v":8.8072337551971872E-2}]
[{"$f":"_xlfn.TEXTJOIN(\",\",FALSE,output[[#This Row],[scenario]:[process_class]])","v":"PTX-BusinessOpportunityAnalyzer-1.0.9,DEU,Hydrogen (AEL),MAR-FES,COST-CAPEX,Electrolysis"},"PTX-BusinessOpportunityAnalyzer-1.0.9",{"$f":"sel_country_code","v":"DEU"},"Hydrogen (AEL)",{"$f":"_calc!$B$629","v":"MAR-FES"},{"$f":"_calc!$BO$582","v":"COST-CAPEX"},{"$f":"_calc!$BQ$1","v":"Electrolysis"},{"$f":"_calc!$BQ$629","v":22.473269883275002}]
[{"$f":"_xlfn.TEXTJOIN(\",\",FALSE,output[[#This Row],[scenario]:[process_class]])","v":"PTX-BusinessOpportunityAnalyzer-1.0.9,DEU,Hydrogen (AEL),MAR-FES,COST-CAPEX,Electricity generation"},"PTX-BusinessOpportunityAnalyzer-1.0.9",{"$f":"sel_country_code","v":"DEU"},"Hydrogen (AEL)",{"$f":"_calc!$B$629","v":"MAR-FES"},{"$f":"_calc!$BO$582","v":"COST-CAPEX"},{"$f":"_calc!$BR$1","v":"Electricity generation"},{"$f":"_calc!$BR$629","v":59.82762576966789}]
[{"$f":"_xlfn.TEXTJOIN(\",\",FALSE,output[[#This Row],[scenario]:[process_class]])","v":"PTX-BusinessOpportunityAnalyzer-1.0.9,DEU,Hydrogen (AEL),MAR-FES,COST-CAPEX,Transportation (Pipeline)"},"PTX-BusinessOpportunityAnalyzer-1.0.9",{"$f":"sel_country_code","v":"DEU"},"Hydrogen (AEL)",{"$f":"_calc!$B$629","v":"MAR-FES"},{"$f":"_calc!$BO$582","v":"COST-CAPEX"},{"$f":"_calc!$BS$1","v":"Transportation (Pipeline)"},{"$f":"_calc!$BS$629","v":0}]
[{"$f":"_xlfn.TEXTJOIN(\",\",FALSE,output[[#This Row],[scenario]:[process_class]])","v":"PTX-BusinessOpportunityAnalyzer-1.0.9,DEU,Hydrogen (AEL),MAR-FES,COST-CAPEX,Transportation (Ship)"},"PTX-BusinessOpportunityAnalyzer-1.0.9",{"$f":"sel_country_code","v":"DEU"},"Hydrogen (AEL)",{"$f":"_calc!$B$629","v":"MAR-FES"},{"$f":"_calc!$BO$582","v":"COST-CAPEX"},{"$f":"_calc!$BT$1","v":"Transportation (Ship)"},{"$f":"_calc!$BT$629","v":49.684990576684186}]
[{"$f":"_xlfn.TEXTJOIN(\",\",FALSE,output[[#This Row],[scenario]:[process_class]])","v":"PTX-BusinessOpportunityAnalyzer-1.0.9,DEU,Hydrogen (AEL),MAR-FES,COST-CAPEX,Carbon"},"PTX-BusinessOpportunityAnalyzer-1.0.9",{"$f":"sel_country_code","v":"DEU"},"Hydrogen (AEL)",{"$f":"_calc!$B$629","v":"MAR-FES"},{"$f":"_calc!$BO$582","v":"COST-CAPEX"},{"$f":"_calc!$BU$1","v":"Carbon"},{"$f":"_calc!$BU$629","v":0}]
[{"$f":"_xlfn.TEXTJOIN(\",\",FALSE,output[[#This Row],[scenario]:[process_class]])","v":"PTX-BusinessOpportunityAnalyzer-1.0.9,DEU,Hydrogen (AEL),MAR-FES,COST-CAPEX,Derivate production"},"PTX-BusinessOpportunityAnalyzer-1.0.9",{"$f":"sel_country_code","v":"DEU"},"Hydrogen (AEL)",{"$f":"_calc!$B$629","v":"MAR-FES"},{"$f":"_calc!$BO$582","v":"COST-CAPEX"},{"$f":"_calc!$BV$1","v":"Derivate production"},{"$f":"_calc!$BV$629","v":0}]
[{"$f":"_xlfn.TEXTJOIN(\",\",FALSE,output[[#This Row],[scenario]:[process_class]])","v":"PTX-BusinessOpportunityAnalyzer-1.0.9,DEU,Hydrogen (AEL),MAR-FES,COST-CAPEX,Heat"},"PTX-BusinessOpportunityAnalyzer-1.0.9",{"$f":"sel_country_code","v":"DEU"},"Hydrogen (AEL)",{"$f":"_calc!$B$629","v":"MAR-FES"},{"$f":"_calc!$BO$582","v":"COST-CAPEX"},{"$f":"_calc!$BW$1","v":"Heat"},{"$f":"_calc!$BW$629","v":0}]
[{"$f":"_xlfn.TEXTJOIN(\",\",FALSE,output[[#This Row],[scenario]:[process_class]])","v":"PTX-BusinessOpportunityAnalyzer-1.0.9,DEU,Hydrogen (AEL),MAR-FES,COST-CAPEX,Electricity and H2 storage"},"PTX-BusinessOpportunityAnalyzer-1.0.9",{"$f":"sel_country_code","v":"DEU"},"Hydrogen (AEL)",{"$f":"_calc!$B$629","v":"MAR-FES"},{"$f":"_calc!$BO$582","v":"COST-CAPEX"},{"$f":"_calc!$BX$1","v":"Electricity and H2 storage"},{"$f":"_calc!$BX$629","v":0}]
[{"$f":"_xlfn.TEXTJOIN(\",\",FALSE,output[[#This Row],[scenario]:[process_class]])","v":"PTX-BusinessOpportunityAnalyzer-1.0.9,DEU,Hydrogen (AEL),MAR-GUE,COST-CAPEX,Water"},"PTX-BusinessOpportunityAnalyzer-1.0.9",{"$f":"sel_country_code","v":"DEU"},"Hydrogen (AEL)",{"$f":"_calc!$B$630","v":"MAR-GUE"},{"$f":"_calc!$BO$582","v":"COST-CAPEX"},{"$f":"_calc!$BP$1","v":"Water"},{"$f":"_calc!$BP$630","v":8.8072337551971872E-2}]
[{"$f":"_xlfn.TEXTJOIN(\",\",FALSE,output[[#This Row],[scenario]:[process_class]])","v":"PTX-BusinessOpportunityAnalyzer-1.0.9,DEU,Hydrogen (AEL),MAR-GUE,COST-CAPEX,Electrolysis"},"PTX-BusinessOpportunityAnalyzer-1.0.9",{"$f":"sel_country_code","v":"DEU"},"Hydrogen (AEL)",{"$f":"_calc!$B$630","v":"MAR-GUE"},{"$f":"_calc!$BO$582","v":"COST-CAPEX"},{"$f":"_calc!$BQ$1","v":"Electrolysis"},{"$f":"_calc!$BQ$630","v":15.835602724422516}]
[{"$f":"_xlfn.TEXTJOIN(\",\",FALSE,output[[#This Row],[scenario]:[process_class]])","v":"PTX-BusinessOpportunityAnalyzer-1.0.9,DEU,Hydrogen (AEL),MAR-GUE,COST-CAPEX,Electricity generation"},"PTX-BusinessOpportunityAnalyzer-1.0.9",{"$f":"sel_country_code","v":"DEU"},"Hydrogen (AEL)",{"$f":"_calc!$B$630","v":"MAR-GUE"},{"$f":"_calc!$BO$582","v":"COST-CAPEX"},{"$f":"_calc!$BR$1","v":"Electricity generation"},{"$f":"_calc!$BR$630","v":44.061067047396683}]
[{"$f":"_xlfn.TEXTJOIN(\",\",FALSE,output[[#This Row],[scenario]:[process_class]])","v":"PTX-BusinessOpportunityAnalyzer-1.0.9,DEU,Hydrogen (AEL),MAR-GUE,COST-CAPEX,Transportation (Pipeline)"},"PTX-BusinessOpportunityAnalyzer-1.0.9",{"$f":"sel_country_code","v":"DEU"},"Hydrogen (AEL)",{"$f":"_calc!$B$630","v":"MAR-GUE"},{"$f":"_calc!$BO$582","v":"COST-CAPEX"},{"$f":"_calc!$BS$1","v":"Transportation (Pipeline)"},{"$f":"_calc!$BS$630","v":0}]
[{"$f":"_xlfn.TEXTJOIN(\",\",FALSE,output[[#This Row],[scenario]:[process_class]])","v":"PTX-BusinessOpportunityAnalyzer-1.0.9,DEU,Hydrogen (AEL),MAR-GUE,COST-CAPEX,Transportation (Ship)"},"PTX-BusinessOpportunityAnalyzer-1.0.9",{"$f":"sel_country_code","v":"DEU"},"Hydrogen (AEL)",{"$f":"_calc!$B$630","v":"MAR-GUE"},{"$f":"_calc!$BO$582","v":"COST-CAPEX"},{"$f":"_calc!$BT$1","v":"Transportation (Ship)"},{"$f":"_calc!$BT$630","v":36.105844963537166}]
[{"$f":"_xlfn.TEXTJOIN(\",\",FALSE,output[[#This Row],[scenario]:[process_class]])","v":"PTX-BusinessOpportunityAnalyzer-1.0.9,DEU,Hydrogen (AEL),MAR-GUE,COST-CAPEX,Carbon"},"PTX-BusinessOpportunityAnalyzer-1.0.9",{"$f":"sel_country_code","v":"DEU"},"Hydrogen (AEL)",{"$f":"_calc!$B$630","v":"MAR-GUE"},{"$f":"_calc!$BO$582","v":"COST-CAPEX"},{"$f":"_calc!$BU$1","v":"Carbon"},{"$f":"_calc!$BU$630","v":0}]
[{"$f":"_xlfn.TEXTJOIN(\",\",FALSE,output[[#This Row],[scenario]:[process_class]])","v":"PTX-BusinessOpportunityAnalyzer-1.0.9,DEU,Hydrogen (AEL),MAR-GUE,COST-CAPEX,Derivate production"},"PTX-BusinessOpportunityAnalyzer-1.0.9",{"$f":"sel_country_code","v":"DEU"},"Hydrogen (AEL)",{"$f":"_calc!$B$630","v":"MAR-GUE"},{"$f":"_calc!$BO$582","v":"COST-CAPEX"},{"$f":"_calc!$BV$1","v":"Derivate production"},{"$f":"_calc!$BV$630","v":0}]
[{"$f":"_xlfn.TEXTJOIN(\",\",FALSE,output[[#This Row],[scenario]:[process_class]])","v":"PTX-BusinessOpportunityAnalyzer-1.0.9,DEU,Hydrogen (AEL),MAR-GUE,COST-CAPEX,Heat"},"PTX-BusinessOpportunityAnalyzer-1.0.9",{"$f":"sel_country_code","v":"DEU"},"Hydrogen (AEL)",{"$f":"_calc!$B$630","v":"MAR-GUE"},{"$f":"_calc!$BO$582","v":"COST-CAPEX"},{"$f":"_calc!$BW$1","v":"Heat"},{"$f":"_calc!$BW$630","v":0}]
[{"$f":"_xlfn.TEXTJOIN(\",\",FALSE,output[[#This Row],[scenario]:[process_class]])","v":"PTX-BusinessOpportunityAnalyzer-1.0.9,DEU,Hydrogen (AEL),MAR-GUE,COST-CAPEX,Electricity and H2 storage"},"PTX-BusinessOpportunityAnalyzer-1.0.9",{"$f":"sel_country_code","v":"DEU"},"Hydrogen (AEL)",{"$f":"_calc!$B$630","v":"MAR-GUE"},{"$f":"_calc!$BO$582","v":"COST-CAPEX"},{"$f":"_calc!$BX$1","v":"Electricity and H2 storage"},{"$f":"_calc!$BX$630","v":0}]
[{"$f":"_xlfn.TEXTJOIN(\",\",FALSE,output[[#This Row],[scenario]:[process_class]])","v":"PTX-BusinessOpportunityAnalyzer-1.0.9,DEU,Hydrogen (AEL),MAR-LAA,COST-CAPEX,Water"},"PTX-BusinessOpportunityAnalyzer-1.0.9",{"$f":"sel_country_code","v":"DEU"},"Hydrogen (AEL)",{"$f":"_calc!$B$631","v":"MAR-LAA"},{"$f":"_calc!$BO$582","v":"COST-CAPEX"},{"$f":"_calc!$BP$1","v":"Water"},{"$f":"_calc!$BP$631","v":8.8072337551971872E-2}]
[{"$f":"_xlfn.TEXTJOIN(\",\",FALSE,output[[#This Row],[scenario]:[process_class]])","v":"PTX-BusinessOpportunityAnalyzer-1.0.9,DEU,Hydrogen (AEL),MAR-LAA,COST-CAPEX,Electrolysis"},"PTX-BusinessOpportunityAnalyzer-1.0.9",{"$f":"sel_country_code","v":"DEU"},"Hydrogen (AEL)",{"$f":"_calc!$B$631","v":"MAR-LAA"},{"$f":"_calc!$BO$582","v":"COST-CAPEX"},{"$f":"_calc!$BQ$1","v":"Electrolysis"},{"$f":"_calc!$BQ$631","v":13.413443141890411}]
[{"$f":"_xlfn.TEXTJOIN(\",\",FALSE,output[[#This Row],[scenario]:[process_class]])","v":"PTX-BusinessOpportunityAnalyzer-1.0.9,DEU,Hydrogen (AEL),MAR-LAA,COST-CAPEX,Electricity generation"},"PTX-BusinessOpportunityAnalyzer-1.0.9",{"$f":"sel_country_code","v":"DEU"},"Hydrogen (AEL)",{"$f":"_calc!$B$631","v":"MAR-LAA"},{"$f":"_calc!$BO$582","v":"COST-CAPEX"},{"$f":"_calc!$BR$1","v":"Electricity generation"},{"$f":"_calc!$BR$631","v":37.947052487376489}]
[{"$f":"_xlfn.TEXTJOIN(\",\",FALSE,output[[#This Row],[scenario]:[process_class]])","v":"PTX-BusinessOpportunityAnalyzer-1.0.9,DEU,Hydrogen (AEL),MAR-LAA,COST-CAPEX,Transportation (Pipeline)"},"PTX-BusinessOpportunityAnalyzer-1.0.9",{"$f":"sel_country_code","v":"DEU"},"Hydrogen (AEL)",{"$f":"_calc!$B$631","v":"MAR-LAA"},{"$f":"_calc!$BO$582","v":"COST-CAPEX"},{"$f":"_calc!$BS$1","v":"Transportation (Pipeline)"},{"$f":"_calc!$BS$631","v":0}]
[{"$f":"_xlfn.TEXTJOIN(\",\",FALSE,output[[#This Row],[scenario]:[process_class]])","v":"PTX-BusinessOpportunityAnalyzer-1.0.9,DEU,Hydrogen (AEL),MAR-LAA,COST-CAPEX,Transportation (Ship)"},"PTX-BusinessOpportunityAnalyzer-1.0.9",{"$f":"sel_country_code","v":"DEU"},"Hydrogen (AEL)",{"$f":"_calc!$B$631","v":"MAR-LAA"},{"$f":"_calc!$BO$582","v":"COST-CAPEX"},{"$f":"_calc!$BT$1","v":"Transportation (Ship)"},{"$f":"_calc!$BT$631","v":31.069749118099587}]
[{"$f":"_xlfn.TEXTJOIN(\",\",FALSE,output[[#This Row],[scenario]:[process_class]])","v":"PTX-BusinessOpportunityAnalyzer-1.0.9,DEU,Hydrogen (AEL),MAR-LAA,COST-CAPEX,Carbon"},"PTX-BusinessOpportunityAnalyzer-1.0.9",{"$f":"sel_country_code","v":"DEU"},"Hydrogen (AEL)",{"$f":"_calc!$B$631","v":"MAR-LAA"},{"$f":"_calc!$BO$582","v":"COST-CAPEX"},{"$f":"_calc!$BU$1","v":"Carbon"},{"$f":"_calc!$BU$631","v":0}]
[{"$f":"_xlfn.TEXTJOIN(\",\",FALSE,output[[#This Row],[scenario]:[process_class]])","v":"PTX-BusinessOpportunityAnalyzer-1.0.9,DEU,Hydrogen (AEL),MAR-LAA,COST-CAPEX,Derivate production"},"PTX-BusinessOpportunityAnalyzer-1.0.9",{"$f":"sel_country_code","v":"DEU"},"Hydrogen (AEL)",{"$f":"_calc!$B$631","v":"MAR-LAA"},{"$f":"_calc!$BO$582","v":"COST-CAPEX"},{"$f":"_calc!$BV$1","v":"Derivate production"},{"$f":"_calc!$BV$631","v":0}]
[{"$f":"_xlfn.TEXTJOIN(\",\",FALSE,output[[#This Row],[scenario]:[process_class]])","v":"PTX-BusinessOpportunityAnalyzer-1.0.9,DEU,Hydrogen (AEL),MAR-LAA,COST-CAPEX,Heat"},"PTX-BusinessOpportunityAnalyzer-1.0.9",{"$f":"sel_country_code","v":"DEU"},"Hydrogen (AEL)",{"$f":"_calc!$B$631","v":"MAR-LAA"},{"$f":"_calc!$BO$582","v":"COST-CAPEX"},{"$f":"_calc!$BW$1","v":"Heat"},{"$f":"_calc!$BW$631","v":0}]
[{"$f":"_xlfn.TEXTJOIN(\",\",FALSE,output[[#This Row],[scenario]:[process_class]])","v":"PTX-BusinessOpportunityAnalyzer-1.0.9,DEU,Hydrogen (AEL),MAR-LAA,COST-CAPEX,Electricity and H2 storage"},"PTX-BusinessOpportunityAnalyzer-1.0.9",{"$f":"sel_country_code","v":"DEU"},"Hydrogen (AEL)",{"$f":"_calc!$B$631","v":"MAR-LAA"},{"$f":"_calc!$BO$582","v":"COST-CAPEX"},{"$f":"_calc!$BX$1","v":"Electricity and H2 storage"},{"$f":"_calc!$BX$631","v":0}]
[{"$f":"_xlfn.TEXTJOIN(\",\",FALSE,output[[#This Row],[scenario]:[process_class]])","v":"PTX-BusinessOpportunityAnalyzer-1.0.9,DEU,Hydrogen (AEL),MAR-LOR,COST-CAPEX,Water"},"PTX-BusinessOpportunityAnalyzer-1.0.9",{"$f":"sel_country_code","v":"DEU"},"Hydrogen (AEL)",{"$f":"_calc!$B$632","v":"MAR-LOR"},{"$f":"_calc!$BO$582","v":"COST-CAPEX"},{"$f":"_calc!$BP$1","v":"Water"},{"$f":"_calc!$BP$632","v":8.8072337551971872E-2}]
[{"$f":"_xlfn.TEXTJOIN(\",\",FALSE,output[[#This Row],[scenario]:[process_class]])","v":"PTX-BusinessOpportunityAnalyzer-1.0.9,DEU,Hydrogen (AEL),MAR-LOR,COST-CAPEX,Electrolysis"},"PTX-BusinessOpportunityAnalyzer-1.0.9",{"$f":"sel_country_code","v":"DEU"},"Hydrogen (AEL)",{"$f":"_calc!$B$632","v":"MAR-LOR"},{"$f":"_calc!$BO$582","v":"COST-CAPEX"},{"$f":"_calc!$BQ$1","v":"Electrolysis"},{"$f":"_calc!$BQ$632","v":16.613592577226402}]
[{"$f":"_xlfn.TEXTJOIN(\",\",FALSE,output[[#This Row],[scenario]:[process_class]])","v":"PTX-BusinessOpportunityAnalyzer-1.0.9,DEU,Hydrogen (AEL),MAR-LOR,COST-CAPEX,Electricity generation"},"PTX-BusinessOpportunityAnalyzer-1.0.9",{"$f":"sel_country_code","v":"DEU"},"Hydrogen (AEL)",{"$f":"_calc!$B$632","v":"MAR-LOR"},{"$f":"_calc!$BO$582","v":"COST-CAPEX"},{"$f":"_calc!$BR$1","v":"Electricity generation"},{"$f":"_calc!$BR$632","v":45.982332227854144}]
[{"$f":"_xlfn.TEXTJOIN(\",\",FALSE,output[[#This Row],[scenario]:[process_class]])","v":"PTX-BusinessOpportunityAnalyzer-1.0.9,DEU,Hydrogen (AEL),MAR-LOR,COST-CAPEX,Transportation (Pipeline)"},"PTX-BusinessOpportunityAnalyzer-1.0.9",{"$f":"sel_country_code","v":"DEU"},"Hydrogen (AEL)",{"$f":"_calc!$B$632","v":"MAR-LOR"},{"$f":"_calc!$BO$582","v":"COST-CAPEX"},{"$f":"_calc!$BS$1","v":"Transportation (Pipeline)"},{"$f":"_calc!$BS$632","v":0}]
[{"$f":"_xlfn.TEXTJOIN(\",\",FALSE,output[[#This Row],[scenario]:[process_class]])","v":"PTX-BusinessOpportunityAnalyzer-1.0.9,DEU,Hydrogen (AEL),MAR-LOR,COST-CAPEX,Transportation (Ship)"},"PTX-BusinessOpportunityAnalyzer-1.0.9",{"$f":"sel_country_code","v":"DEU"},"Hydrogen (AEL)",{"$f":"_calc!$B$632","v":"MAR-LOR"},{"$f":"_calc!$BO$582","v":"COST-CAPEX"},{"$f":"_calc!$BT$1","v":"Transportation (Ship)"},{"$f":"_calc!$BT$632","v":37.746274583959369}]
[{"$f":"_xlfn.TEXTJOIN(\",\",FALSE,output[[#This Row],[scenario]:[process_class]])","v":"PTX-BusinessOpportunityAnalyzer-1.0.9,DEU,Hydrogen (AEL),MAR-LOR,COST-CAPEX,Carbon"},"PTX-BusinessOpportunityAnalyzer-1.0.9",{"$f":"sel_country_code","v":"DEU"},"Hydrogen (AEL)",{"$f":"_calc!$B$632","v":"MAR-LOR"},{"$f":"_calc!$BO$582","v":"COST-CAPEX"},{"$f":"_calc!$BU$1","v":"Carbon"},{"$f":"_calc!$BU$632","v":0}]
[{"$f":"_xlfn.TEXTJOIN(\",\",FALSE,output[[#This Row],[scenario]:[process_class]])","v":"PTX-BusinessOpportunityAnalyzer-1.0.9,DEU,Hydrogen (AEL),MAR-LOR,COST-CAPEX,Derivate production"},"PTX-BusinessOpportunityAnalyzer-1.0.9",{"$f":"sel_country_code","v":"DEU"},"Hydrogen (AEL)",{"$f":"_calc!$B$632","v":"MAR-LOR"},{"$f":"_calc!$BO$582","v":"COST-CAPEX"},{"$f":"_calc!$BV$1","v":"Derivate production"},{"$f":"_calc!$BV$632","v":0}]
[{"$f":"_xlfn.TEXTJOIN(\",\",FALSE,output[[#This Row],[scenario]:[process_class]])","v":"PTX-BusinessOpportunityAnalyzer-1.0.9,DEU,Hydrogen (AEL),MAR-LOR,COST-CAPEX,Heat"},{"$f":"output_scenario_name","v":"PTX-BusinessOpportunityAnalyzer-1.0.9"},{"$f":"sel_country_code","v":"DEU"},{"$f":"sel_chain","v":"Hydrogen (AEL)"},{"$f":"_calc!$B$632","v":"MAR-LOR"},{"$f":"_calc!$BO$582","v":"COST-CAPEX"},{"$f":"_calc!$BW$1","v":"Heat"},{"$f":"_calc!$BW$632","v":0}]
[{"$f":"_xlfn.TEXTJOIN(\",\",FALSE,output[[#This Row],[scenario]:[process_class]])","v":"PTX-BusinessOpportunityAnalyzer-1.0.9,DEU,Hydrogen (AEL),MAR-LOR,COST-CAPEX,Electricity and H2 storage"},"PTX-BusinessOpportunityAnalyzer-1.0.9",{"$f":"sel_country_code","v":"DEU"},"Hydrogen (AEL)",{"$f":"_calc!$B$632","v":"MAR-LOR"},{"$f":"_calc!$BO$582","v":"COST-CAPEX"},{"$f":"_calc!$BX$1","v":"Electricity and H2 storage"},{"$f":"_calc!$BX$632","v":0}]
[{"$f":"_xlfn.TEXTJOIN(\",\",FALSE,output[[#This Row],[scenario]:[process_class]])","v":"PTX-BusinessOpportunityAnalyzer-1.0.9,DEU,Hydrogen (AEL),MAR-MAR,COST-CAPEX,Water"},"PTX-BusinessOpportunityAnalyzer-1.0.9",{"$f":"sel_country_code","v":"DEU"},"Hydrogen (AEL)",{"$f":"_calc!$B$633","v":"MAR-MAR"},{"$f":"_calc!$BO$582","v":"COST-CAPEX"},{"$f":"_calc!$BP$1","v":"Water"},{"$f":"_calc!$BP$633","v":8.8072337551971872E-2}]
[{"$f":"_xlfn.TEXTJOIN(\",\",FALSE,output[[#This Row],[scenario]:[process_class]])","v":"PTX-BusinessOpportunityAnalyzer-1.0.9,DEU,Hydrogen (AEL),MAR-MAR,COST-CAPEX,Electrolysis"},"PTX-BusinessOpportunityAnalyzer-1.0.9",{"$f":"sel_country_code","v":"DEU"},"Hydrogen (AEL)",{"$f":"_calc!$B$633","v":"MAR-MAR"},{"$f":"_calc!$BO$582","v":"COST-CAPEX"},{"$f":"_calc!$BQ$1","v":"Electrolysis"},{"$f":"_calc!$BQ$633","v":23.355323430564059}]
[{"$f":"_xlfn.TEXTJOIN(\",\",FALSE,output[[#This Row],[scenario]:[process_class]])","v":"PTX-BusinessOpportunityAnalyzer-1.0.9,DEU,Hydrogen (AEL),MAR-MAR,COST-CAPEX,Electricity generation"},"PTX-BusinessOpportunityAnalyzer-1.0.9",{"$f":"sel_country_code","v":"DEU"},"Hydrogen (AEL)",{"$f":"_calc!$B$633","v":"MAR-MAR"},{"$f":"_calc!$BO$582","v":"COST-CAPEX"},{"$f":"_calc!$BR$1","v":"Electricity generation"},{"$f":"_calc!$BR$633","v":61.820797396825952}]
[{"$f":"_xlfn.TEXTJOIN(\",\",FALSE,output[[#This Row],[scenario]:[process_class]])","v":"PTX-BusinessOpportunityAnalyzer-1.0.9,DEU,Hydrogen (AEL),MAR-MAR,COST-CAPEX,Transportation (Pipeline)"},"PTX-BusinessOpportunityAnalyzer-1.0.9",{"$f":"sel_country_code","v":"DEU"},"Hydrogen (AEL)",{"$f":"_calc!$B$633","v":"MAR-MAR"},{"$f":"_calc!$BO$582","v":"COST-CAPEX"},{"$f":"_calc!$BS$1","v":"Transportation (Pipeline)"},{"$f":"_calc!$BS$633","v":0}]
[{"$f":"_xlfn.TEXTJOIN(\",\",FALSE,output[[#This Row],[scenario]:[process_class]])","v":"PTX-BusinessOpportunityAnalyzer-1.0.9,DEU,Hydrogen (AEL),MAR-MAR,COST-CAPEX,Transportation (Ship)"},"PTX-BusinessOpportunityAnalyzer-1.0.9",{"$f":"sel_country_code","v":"DEU"},"Hydrogen (AEL)",{"$f":"_calc!$B$633","v":"MAR-MAR"},{"$f":"_calc!$BO$582","v":"COST-CAPEX"},{"$f":"_calc!$BT$1","v":"Transportation (Ship)"},{"$f":"_calc!$BT$633","v":51.173773204287521}]
[{"$f":"_xlfn.TEXTJOIN(\",\",FALSE,output[[#This Row],[scenario]:[process_class]])","v":"PTX-BusinessOpportunityAnalyzer-1.0.9,DEU,Hydrogen (AEL),MAR-MAR,COST-CAPEX,Carbon"},"PTX-BusinessOpportunityAnalyzer-1.0.9",{"$f":"sel_country_code","v":"DEU"},"Hydrogen (AEL)",{"$f":"_calc!$B$633","v":"MAR-MAR"},{"$f":"_calc!$BO$582","v":"COST-CAPEX"},{"$f":"_calc!$BU$1","v":"Carbon"},{"$f":"_calc!$BU$633","v":0}]
[{"$f":"_xlfn.TEXTJOIN(\",\",FALSE,output[[#This Row],[scenario]:[process_class]])","v":"PTX-BusinessOpportunityAnalyzer-1.0.9,DEU,Hydrogen (AEL),MAR-MAR,COST-CAPEX,Derivate production"},"PTX-BusinessOpportunityAnalyzer-1.0.9",{"$f":"sel_country_code","v":"DEU"},"Hydrogen (AEL)",{"$f":"_calc!$B$633","v":"MAR-MAR"},{"$f":"_calc!$BO$582","v":"COST-CAPEX"},{"$f":"_calc!$BV$1","v":"Derivate production"},{"$f":"_calc!$BV$633","v":0}]
[{"$f":"_xlfn.TEXTJOIN(\",\",FALSE,output[[#This Row],[scenario]:[process_class]])","v":"PTX-BusinessOpportunityAnalyzer-1.0.9,DEU,Hydrogen (AEL),MAR-MAR,COST-CAPEX,Heat"},"PTX-BusinessOpportunityAnalyzer-1.0.9",{"$f":"sel_country_code","v":"DEU"},"Hydrogen (AEL)",{"$f":"_calc!$B$633","v":"MAR-MAR"},{"$f":"_calc!$BO$582","v":"COST-CAPEX"},{"$f":"_calc!$BW$1","v":"Heat"},{"$f":"_calc!$BW$633","v":0}]
[{"$f":"_xlfn.TEXTJOIN(\",\",FALSE,output[[#This Row],[scenario]:[process_class]])","v":"PTX-BusinessOpportunityAnalyzer-1.0.9,DEU,Hydrogen (AEL),MAR-MAR,COST-CAPEX,Electricity and H2 storage"},"PTX-BusinessOpportunityAnalyzer-1.0.9",{"$f":"sel_country_code","v":"DEU"},"Hydrogen (AEL)",{"$f":"_calc!$B$633","v":"MAR-MAR"},{"$f":"_calc!$BO$582","v":"COST-CAPEX"},{"$f":"_calc!$BX$1","v":"Electricity and H2 storage"},{"$f":"_calc!$BX$633","v":0}]
[{"$f":"_xlfn.TEXTJOIN(\",\",FALSE,output[[#This Row],[scenario]:[process_class]])","v":"PTX-BusinessOpportunityAnalyzer-1.0.9,DEU,Hydrogen (AEL),MAR-RAB,COST-CAPEX,Water"},"PTX-BusinessOpportunityAnalyzer-1.0.9",{"$f":"sel_country_code","v":"DEU"},"Hydrogen (AEL)",{"$f":"_calc!$B$634","v":"MAR-RAB"},{"$f":"_calc!$BO$582","v":"COST-CAPEX"},{"$f":"_calc!$BP$1","v":"Water"},{"$f":"_calc!$BP$634","v":8.8072337551971872E-2}]
[{"$f":"_xlfn.TEXTJOIN(\",\",FALSE,output[[#This Row],[scenario]:[process_class]])","v":"PTX-BusinessOpportunityAnalyzer-1.0.9,DEU,Hydrogen (AEL),MAR-RAB,COST-CAPEX,Electrolysis"},"PTX-BusinessOpportunityAnalyzer-1.0.9",{"$f":"sel_country_code","v":"DEU"},"Hydrogen (AEL)",{"$f":"_calc!$B$634","v":"MAR-RAB"},{"$f":"_calc!$BO$582","v":"COST-CAPEX"},{"$f":"_calc!$BQ$1","v":"Electrolysis"},{"$f":"_calc!$BQ$634","v":24.376266354423624}]
[{"$f":"_xlfn.TEXTJOIN(\",\",FALSE,output[[#This Row],[scenario]:[process_class]])","v":"PTX-BusinessOpportunityAnalyzer-1.0.9,DEU,Hydrogen (AEL),MAR-RAB,COST-CAPEX,Electricity generation"},"PTX-BusinessOpportunityAnalyzer-1.0.9",{"$f":"sel_country_code","v":"DEU"},"Hydrogen (AEL)",{"$f":"_calc!$B$634","v":"MAR-RAB"},{"$f":"_calc!$BO$582","v":"COST-CAPEX"},{"$f":"_calc!$BR$1","v":"Electricity generation"},{"$f":"_calc!$BR$634","v":64.099584405087583}]
[{"$f":"_xlfn.TEXTJOIN(\",\",FALSE,output[[#This Row],[scenario]:[process_class]])","v":"PTX-BusinessOpportunityAnalyzer-1.0.9,DEU,Hydrogen (AEL),MAR-RAB,COST-CAPEX,Transportation (Pipeline)"},"PTX-BusinessOpportunityAnalyzer-1.0.9",{"$f":"sel_country_code","v":"DEU"},"Hydrogen (AEL)",{"$f":"_calc!$B$634","v":"MAR-RAB"},{"$f":"_calc!$BO$582","v":"COST-CAPEX"},{"$f":"_calc!$BS$1","v":"Transportation (Pipeline)"},{"$f":"_calc!$BS$634","v":0}]
[{"$f":"_xlfn.TEXTJOIN(\",\",FALSE,output[[#This Row],[scenario]:[process_class]])","v":"PTX-BusinessOpportunityAnalyzer-1.0.9,DEU,Hydrogen (AEL),MAR-RAB,COST-CAPEX,Transportation (Ship)"},"PTX-BusinessOpportunityAnalyzer-1.0.9",{"$f":"sel_country_code","v":"DEU"},"Hydrogen (AEL)",{"$f":"_calc!$B$634","v":"MAR-RAB"},{"$f":"_calc!$BO$582","v":"COST-CAPEX"},{"$f":"_calc!$BT$1","v":"Transportation (Ship)"},{"$f":"_calc!$BT$634","v":52.875893816322026}]
[{"$f":"_xlfn.TEXTJOIN(\",\",FALSE,output[[#This Row],[scenario]:[process_class]])","v":"PTX-BusinessOpportunityAnalyzer-1.0.9,DEU,Hydrogen (AEL),MAR-RAB,COST-CAPEX,Carbon"},"PTX-BusinessOpportunityAnalyzer-1.0.9",{"$f":"sel_country_code","v":"DEU"},"Hydrogen (AEL)",{"$f":"_calc!$B$634","v":"MAR-RAB"},{"$f":"_calc!$BO$582","v":"COST-CAPEX"},{"$f":"_calc!$BU$1","v":"Carbon"},{"$f":"_calc!$BU$634","v":0}]
[{"$f":"_xlfn.TEXTJOIN(\",\",FALSE,output[[#This Row],[scenario]:[process_class]])","v":"PTX-BusinessOpportunityAnalyzer-1.0.9,DEU,Hydrogen (AEL),MAR-RAB,COST-CAPEX,Derivate production"},"PTX-BusinessOpportunityAnalyzer-1.0.9",{"$f":"sel_country_code","v":"DEU"},"Hydrogen (AEL)",{"$f":"_calc!$B$634","v":"MAR-RAB"},{"$f":"_calc!$BO$582","v":"COST-CAPEX"},{"$f":"_calc!$BV$1","v":"Derivate production"},{"$f":"_calc!$BV$634","v":0}]
[{"$f":"_xlfn.TEXTJOIN(\",\",FALSE,output[[#This Row],[scenario]:[process_class]])","v":"PTX-BusinessOpportunityAnalyzer-1.0.9,DEU,Hydrogen (AEL),MAR-RAB,COST-CAPEX,Heat"},"PTX-BusinessOpportunityAnalyzer-1.0.9",{"$f":"sel_country_code","v":"DEU"},"Hydrogen (AEL)",{"$f":"_calc!$B$634","v":"MAR-RAB"},{"$f":"_calc!$BO$582","v":"COST-CAPEX"},{"$f":"_calc!$BW$1","v":"Heat"},{"$f":"_calc!$BW$634","v":0}]
[{"$f":"_xlfn.TEXTJOIN(\",\",FALSE,output[[#This Row],[scenario]:[process_class]])","v":"PTX-BusinessOpportunityAnalyzer-1.0.9,DEU,Hydrogen (AEL),MAR-RAB,COST-CAPEX,Electricity and H2 storage"},"PTX-BusinessOpportunityAnalyzer-1.0.9",{"$f":"sel_country_code","v":"DEU"},"Hydrogen (AEL)",{"$f":"_calc!$B$634","v":"MAR-RAB"},{"$f":"_calc!$BO$582","v":"COST-CAPEX"},{"$f":"_calc!$BX$1","v":"Electricity and H2 storage"},{"$f":"_calc!$BX$634","v":0}]
[{"$f":"_xlfn.TEXTJOIN(\",\",FALSE,output[[#This Row],[scenario]:[process_class]])","v":"PTX-BusinessOpportunityAnalyzer-1.0.9,DEU,Hydrogen (AEL),MAR-SOU,COST-CAPEX,Water"},"PTX-BusinessOpportunityAnalyzer-1.0.9",{"$f":"sel_country_code","v":"DEU"},"Hydrogen (AEL)",{"$f":"_calc!$B$635","v":"MAR-SOU"},{"$f":"_calc!$BO$582","v":"COST-CAPEX"},{"$f":"_calc!$BP$1","v":"Water"},{"$f":"_calc!$BP$635","v":8.8072337551971872E-2}]
[{"$f":"_xlfn.TEXTJOIN(\",\",FALSE,output[[#This Row],[scenario]:[process_class]])","v":"PTX-BusinessOpportunityAnalyzer-1.0.9,DEU,Hydrogen (AEL),MAR-SOU,COST-CAPEX,Electrolysis"},"PTX-BusinessOpportunityAnalyzer-1.0.9",{"$f":"sel_country_code","v":"DEU"},"Hydrogen (AEL)",{"$f":"_calc!$B$635","v":"MAR-SOU"},{"$f":"_calc!$BO$582","v":"COST-CAPEX"},{"$f":"_calc!$BQ$1","v":"Electrolysis"},{"$f":"_calc!$BQ$635","v":17.990180243094024}]
[{"$f":"_xlfn.TEXTJOIN(\",\",FALSE,output[[#This Row],[scenario]:[process_class]])","v":"PTX-BusinessOpportunityAnalyzer-1.0.9,DEU,Hydrogen (AEL),MAR-SOU,COST-CAPEX,Electricity generation"},"PTX-BusinessOpportunityAnalyzer-1.0.9",{"$f":"sel_country_code","v":"DEU"},"Hydrogen (AEL)",{"$f":"_calc!$B$635","v":"MAR-SOU"},{"$f":"_calc!$BO$582","v":"COST-CAPEX"},{"$f":"_calc!$BR$1","v":"Electricity generation"},{"$f":"_calc!$BR$635","v":49.332730863864079}]
[{"$f":"_xlfn.TEXTJOIN(\",\",FALSE,output[[#This Row],[scenario]:[process_class]])","v":"PTX-BusinessOpportunityAnalyzer-1.0.9,DEU,Hydrogen (AEL),MAR-SOU,COST-CAPEX,Transportation (Pipeline)"},"PTX-BusinessOpportunityAnalyzer-1.0.9",{"$f":"sel_country_code","v":"DEU"},"Hydrogen (AEL)",{"$f":"_calc!$B$635","v":"MAR-SOU"},{"$f":"_calc!$BO$582","v":"COST-CAPEX"},{"$f":"_calc!$BS$1","v":"Transportation (Pipeline)"},{"$f":"_calc!$BS$635","v":0}]
[{"$f":"_xlfn.TEXTJOIN(\",\",FALSE,output[[#This Row],[scenario]:[process_class]])","v":"PTX-BusinessOpportunityAnalyzer-1.0.9,DEU,Hydrogen (AEL),MAR-SOU,COST-CAPEX,Transportation (Ship)"},"PTX-BusinessOpportunityAnalyzer-1.0.9",{"$f":"sel_country_code","v":"DEU"},"Hydrogen (AEL)",{"$f":"_calc!$B$635","v":"MAR-SOU"},{"$f":"_calc!$BO$582","v":"COST-CAPEX"},{"$f":"_calc!$BT$1","v":"Transportation (Ship)"},{"$f":"_calc!$BT$635","v":40.676653801261992}]
[{"$f":"_xlfn.TEXTJOIN(\",\",FALSE,output[[#This Row],[scenario]:[process_class]])","v":"PTX-BusinessOpportunityAnalyzer-1.0.9,DEU,Hydrogen (AEL),MAR-SOU,COST-CAPEX,Carbon"},"PTX-BusinessOpportunityAnalyzer-1.0.9",{"$f":"sel_country_code","v":"DEU"},"Hydrogen (AEL)",{"$f":"_calc!$B$635","v":"MAR-SOU"},{"$f":"_calc!$BO$582","v":"COST-CAPEX"},{"$f":"_calc!$BU$1","v":"Carbon"},{"$f":"_calc!$BU$635","v":0}]
[{"$f":"_xlfn.TEXTJOIN(\",\",FALSE,output[[#This Row],[scenario]:[process_class]])","v":"PTX-BusinessOpportunityAnalyzer-1.0.9,DEU,Hydrogen (AEL),MAR-SOU,COST-CAPEX,Derivate production"},"PTX-BusinessOpportunityAnalyzer-1.0.9",{"$f":"sel_country_code","v":"DEU"},"Hydrogen (AEL)",{"$f":"_calc!$B$635","v":"MAR-SOU"},{"$f":"_calc!$BO$582","v":"COST-CAPEX"},{"$f":"_calc!$BV$1","v":"Derivate production"},{"$f":"_calc!$BV$635","v":0}]
[{"$f":"_xlfn.TEXTJOIN(\",\",FALSE,output[[#This Row],[scenario]:[process_class]])","v":"PTX-BusinessOpportunityAnalyzer-1.0.9,DEU,Hydrogen (AEL),MAR-SOU,COST-CAPEX,Heat"},"PTX-BusinessOpportunityAnalyzer-1.0.9",{"$f":"sel_country_code","v":"DEU"},"Hydrogen (AEL)",{"$f":"_calc!$B$635","v":"MAR-SOU"},{"$f":"_calc!$BO$582","v":"COST-CAPEX"},{"$f":"_calc!$BW$1","v":"Heat"},{"$f":"_calc!$BW$635","v":0}]
[{"$f":"_xlfn.TEXTJOIN(\",\",FALSE,output[[#This Row],[scenario]:[process_class]])","v":"PTX-BusinessOpportunityAnalyzer-1.0.9,DEU,Hydrogen (AEL),MAR-SOU,COST-CAPEX,Electricity and H2 storage"},"PTX-BusinessOpportunityAnalyzer-1.0.9",{"$f":"sel_country_code","v":"DEU"},"Hydrogen (AEL)",{"$f":"_calc!$B$635","v":"MAR-SOU"},{"$f":"_calc!$BO$582","v":"COST-CAPEX"},{"$f":"_calc!$BX$1","v":"Electricity and H2 storage"},{"$f":"_calc!$BX$635","v":0}]
[{"$f":"_xlfn.TEXTJOIN(\",\",FALSE,output[[#This Row],[scenario]:[process_class]])","v":"PTX-BusinessOpportunityAnalyzer-1.0.9,DEU,Hydrogen (AEL),MAR-TAN,COST-CAPEX,Water"},"PTX-BusinessOpportunityAnalyzer-1.0.9",{"$f":"sel_country_code","v":"DEU"},"Hydrogen (AEL)",{"$f":"_calc!$B$636","v":"MAR-TAN"},{"$f":"_calc!$BO$582","v":"COST-CAPEX"},{"$f":"_calc!$BP$1","v":"Water"},{"$f":"_calc!$BP$636","v":8.8072337551971872E-2}]
[{"$f":"_xlfn.TEXTJOIN(\",\",FALSE,output[[#This Row],[scenario]:[process_class]])","v":"PTX-BusinessOpportunityAnalyzer-1.0.9,DEU,Hydrogen (AEL),MAR-TAN,COST-CAPEX,Electrolysis"},"PTX-BusinessOpportunityAnalyzer-1.0.9",{"$f":"sel_country_code","v":"DEU"},"Hydrogen (AEL)",{"$f":"_calc!$B$636","v":"MAR-TAN"},{"$f":"_calc!$BO$582","v":"COST-CAPEX"},{"$f":"_calc!$BQ$1","v":"Electrolysis"},{"$f":"_calc!$BQ$636","v":17.880835458852076}]
[{"$f":"_xlfn.TEXTJOIN(\",\",FALSE,output[[#This Row],[scenario]:[process_class]])","v":"PTX-BusinessOpportunityAnalyzer-1.0.9,DEU,Hydrogen (AEL),MAR-TAN,COST-CAPEX,Electricity generation"},"PTX-BusinessOpportunityAnalyzer-1.0.9",{"$f":"sel_country_code","v":"DEU"},"Hydrogen (AEL)",{"$f":"_calc!$B$636","v":"MAR-TAN"},{"$f":"_calc!$BO$582","v":"COST-CAPEX"},{"$f":"_calc!$BR$1","v":"Electricity generation"},{"$f":"_calc!$BR$636","v":49.068866064601281}]
[{"$f":"_xlfn.TEXTJOIN(\",\",FALSE,output[[#This Row],[scenario]:[process_class]])","v":"PTX-BusinessOpportunityAnalyzer-1.0.9,DEU,Hydrogen (AEL),MAR-TAN,COST-CAPEX,Transportation (Pipeline)"},"PTX-BusinessOpportunityAnalyzer-1.0.9",{"$f":"sel_country_code","v":"DEU"},"Hydrogen (AEL)",{"$f":"_calc!$B$636","v":"MAR-TAN"},{"$f":"_calc!$BO$582","v":"COST-CAPEX"},{"$f":"_calc!$BS$1","v":"Transportation (Pipeline)"},{"$f":"_calc!$BS$636","v":0}]
[{"$f":"_xlfn.TEXTJOIN(\",\",FALSE,output[[#This Row],[scenario]:[process_class]])","v":"PTX-BusinessOpportunityAnalyzer-1.0.9,DEU,Hydrogen (AEL),MAR-TAN,COST-CAPEX,Transportation (Ship)"},"PTX-BusinessOpportunityAnalyzer-1.0.9",{"$f":"sel_country_code","v":"DEU"},"Hydrogen (AEL)",{"$f":"_calc!$B$636","v":"MAR-TAN"},{"$f":"_calc!$BO$582","v":"COST-CAPEX"},{"$f":"_calc!$BT$1","v":"Transportation (Ship)"},{"$f":"_calc!$BT$636","v":40.44257913104402}]
[{"$f":"_xlfn.TEXTJOIN(\",\",FALSE,output[[#This Row],[scenario]:[process_class]])","v":"PTX-BusinessOpportunityAnalyzer-1.0.9,DEU,Hydrogen (AEL),MAR-TAN,COST-CAPEX,Carbon"},"PTX-BusinessOpportunityAnalyzer-1.0.9",{"$f":"sel_country_code","v":"DEU"},"Hydrogen (AEL)",{"$f":"_calc!$B$636","v":"MAR-TAN"},{"$f":"_calc!$BO$582","v":"COST-CAPEX"},{"$f":"_calc!$BU$1","v":"Carbon"},{"$f":"_calc!$BU$636","v":0}]
[{"$f":"_xlfn.TEXTJOIN(\",\",FALSE,output[[#This Row],[scenario]:[process_class]])","v":"PTX-BusinessOpportunityAnalyzer-1.0.9,DEU,Hydrogen (AEL),MAR-TAN,COST-CAPEX,Derivate production"},"PTX-BusinessOpportunityAnalyzer-1.0.9",{"$f":"sel_country_code","v":"DEU"},"Hydrogen (AEL)",{"$f":"_calc!$B$636","v":"MAR-TAN"},{"$f":"_calc!$BO$582","v":"COST-CAPEX"},{"$f":"_calc!$BV$1","v":"Derivate production"},{"$f":"_calc!$BV$636","v":0}]
[{"$f":"_xlfn.TEXTJOIN(\",\",FALSE,output[[#This Row],[scenario]:[process_class]])","v":"PTX-BusinessOpportunityAnalyzer-1.0.9,DEU,Hydrogen (AEL),MAR-TAN,COST-CAPEX,Heat"},"PTX-BusinessOpportunityAnalyzer-1.0.9",{"$f":"sel_country_code","v":"DEU"},"Hydrogen (AEL)",{"$f":"_calc!$B$636","v":"MAR-TAN"},{"$f":"_calc!$BO$582","v":"COST-CAPEX"},{"$f":"_calc!$BW$1","v":"Heat"},{"$f":"_calc!$BW$636","v":0}]
[{"$f":"_xlfn.TEXTJOIN(\",\",FALSE,output[[#This Row],[scenario]:[process_class]])","v":"PTX-BusinessOpportunityAnalyzer-1.0.9,DEU,Hydrogen (AEL),MAR-TAN,COST-CAPEX,Electricity and H2 storage"},"PTX-BusinessOpportunityAnalyzer-1.0.9",{"$f":"sel_country_code","v":"DEU"},"Hydrogen (AEL)",{"$f":"_calc!$B$636","v":"MAR-TAN"},{"$f":"_calc!$BO$582","v":"COST-CAPEX"},{"$f":"_calc!$BX$1","v":"Electricity and H2 storage"},{"$f":"_calc!$BX$636","v":0}]
[{"$f":"_xlfn.TEXTJOIN(\",\",FALSE,output[[#This Row],[scenario]:[process_class]])","v":"PTX-BusinessOpportunityAnalyzer-1.0.9,DEU,Hydrogen (AEL),MEX,COST-CAPEX,Water"},"PTX-BusinessOpportunityAnalyzer-1.0.9",{"$f":"sel_country_code","v":"DEU"},"Hydrogen (AEL)",{"$f":"_calc!$B$637","v":"MEX"},{"$f":"_calc!$BO$582","v":"COST-CAPEX"},{"$f":"_calc!$BP$1","v":"Water"},{"$f":"_calc!$BP$637","v":8.5781612189156864E-2}]
[{"$f":"_xlfn.TEXTJOIN(\",\",FALSE,output[[#This Row],[scenario]:[process_class]])","v":"PTX-BusinessOpportunityAnalyzer-1.0.9,DEU,Hydrogen (AEL),MEX,COST-CAPEX,Electrolysis"},"PTX-BusinessOpportunityAnalyzer-1.0.9",{"$f":"sel_country_code","v":"DEU"},"Hydrogen (AEL)",{"$f":"_calc!$B$637","v":"MEX"},{"$f":"_calc!$BO$582","v":"COST-CAPEX"},{"$f":"_calc!$BQ$1","v":"Electrolysis"},{"$f":"_calc!$BQ$637","v":19.607902743079872}]
[{"$f":"_xlfn.TEXTJOIN(\",\",FALSE,output[[#This Row],[scenario]:[process_class]])","v":"PTX-BusinessOpportunityAnalyzer-1.0.9,DEU,Hydrogen (AEL),MEX,COST-CAPEX,Electricity generation"},"PTX-BusinessOpportunityAnalyzer-1.0.9",{"$f":"sel_country_code","v":"DEU"},"Hydrogen (AEL)",{"$f":"_calc!$B$637","v":"MEX"},{"$f":"_calc!$BO$582","v":"COST-CAPEX"},{"$f":"_calc!$BR$1","v":"Electricity generation"},{"$f":"_calc!$BR$637","v":43.982711538566747}]
[{"$f":"_xlfn.TEXTJOIN(\",\",FALSE,output[[#This Row],[scenario]:[process_class]])","v":"PTX-BusinessOpportunityAnalyzer-1.0.9,DEU,Hydrogen (AEL),MEX,COST-CAPEX,Transportation (Pipeline)"},"PTX-BusinessOpportunityAnalyzer-1.0.9",{"$f":"sel_country_code","v":"DEU"},"Hydrogen (AEL)",{"$f":"_calc!$B$637","v":"MEX"},{"$f":"_calc!$BO$582","v":"COST-CAPEX"},{"$f":"_calc!$BS$1","v":"Transportation (Pipeline)"},{"$f":"_calc!$BS$637","v":0}]
[{"$f":"_xlfn.TEXTJOIN(\",\",FALSE,output[[#This Row],[scenario]:[process_class]])","v":"PTX-BusinessOpportunityAnalyzer-1.0.9,DEU,Hydrogen (AEL),MEX,COST-CAPEX,Transportation (Ship)"},"PTX-BusinessOpportunityAnalyzer-1.0.9",{"$f":"sel_country_code","v":"DEU"},"Hydrogen (AEL)",{"$f":"_calc!$B$637","v":"MEX"},{"$f":"_calc!$BO$582","v":"COST-CAPEX"},{"$f":"_calc!$BT$1","v":"Transportation (Ship)"},{"$f":"_calc!$BT$637","v":42.248908384145281}]
[{"$f":"_xlfn.TEXTJOIN(\",\",FALSE,output[[#This Row],[scenario]:[process_class]])","v":"PTX-BusinessOpportunityAnalyzer-1.0.9,DEU,Hydrogen (AEL),MEX,COST-CAPEX,Carbon"},"PTX-BusinessOpportunityAnalyzer-1.0.9",{"$f":"sel_country_code","v":"DEU"},"Hydrogen (AEL)",{"$f":"_calc!$B$637","v":"MEX"},{"$f":"_calc!$BO$582","v":"COST-CAPEX"},{"$f":"_calc!$BU$1","v":"Carbon"},{"$f":"_calc!$BU$637","v":0}]
[{"$f":"_xlfn.TEXTJOIN(\",\",FALSE,output[[#This Row],[scenario]:[process_class]])","v":"PTX-BusinessOpportunityAnalyzer-1.0.9,DEU,Hydrogen (AEL),MEX,COST-CAPEX,Derivate production"},"PTX-BusinessOpportunityAnalyzer-1.0.9",{"$f":"sel_country_code","v":"DEU"},"Hydrogen (AEL)",{"$f":"_calc!$B$637","v":"MEX"},{"$f":"_calc!$BO$582","v":"COST-CAPEX"},{"$f":"_calc!$BV$1","v":"Derivate production"},{"$f":"_calc!$BV$637","v":0}]
[{"$f":"_xlfn.TEXTJOIN(\",\",FALSE,output[[#This Row],[scenario]:[process_class]])","v":"PTX-BusinessOpportunityAnalyzer-1.0.9,DEU,Hydrogen (AEL),MEX,COST-CAPEX,Heat"},"PTX-BusinessOpportunityAnalyzer-1.0.9",{"$f":"sel_country_code","v":"DEU"},"Hydrogen (AEL)",{"$f":"_calc!$B$637","v":"MEX"},{"$f":"_calc!$BO$582","v":"COST-CAPEX"},{"$f":"_calc!$BW$1","v":"Heat"},{"$f":"_calc!$BW$637","v":0}]
[{"$f":"_xlfn.TEXTJOIN(\",\",FALSE,output[[#This Row],[scenario]:[process_class]])","v":"PTX-BusinessOpportunityAnalyzer-1.0.9,DEU,Hydrogen (AEL),MEX,COST-CAPEX,Electricity and H2 storage"},"PTX-BusinessOpportunityAnalyzer-1.0.9",{"$f":"sel_country_code","v":"DEU"},"Hydrogen (AEL)",{"$f":"_calc!$B$637","v":"MEX"},{"$f":"_calc!$BO$582","v":"COST-CAPEX"},{"$f":"_calc!$BX$1","v":"Electricity and H2 storage"},{"$f":"_calc!$BX$637","v":0}]
[{"$f":"_xlfn.TEXTJOIN(\",\",FALSE,output[[#This Row],[scenario]:[process_class]])","v":"PTX-BusinessOpportunityAnalyzer-1.0.9,DEU,Hydrogen (AEL),MRT,COST-CAPEX,Water"},"PTX-BusinessOpportunityAnalyzer-1.0.9",{"$f":"sel_country_code","v":"DEU"},"Hydrogen (AEL)",{"$f":"_calc!$B$638","v":"MRT"},{"$f":"_calc!$BO$582","v":"COST-CAPEX"},{"$f":"_calc!$BP$1","v":"Water"},{"$f":"_calc!$BP$638","v":8.7400064685807632E-2}]
[{"$f":"_xlfn.TEXTJOIN(\",\",FALSE,output[[#This Row],[scenario]:[process_class]])","v":"PTX-BusinessOpportunityAnalyzer-1.0.9,DEU,Hydrogen (AEL),MRT,COST-CAPEX,Electrolysis"},"PTX-BusinessOpportunityAnalyzer-1.0.9",{"$f":"sel_country_code","v":"DEU"},"Hydrogen (AEL)",{"$f":"_calc!$B$638","v":"MRT"},{"$f":"_calc!$BO$582","v":"COST-CAPEX"},{"$f":"_calc!$BQ$1","v":"Electrolysis"},{"$f":"_calc!$BQ$638","v":12.647242202634759}]
[{"$f":"_xlfn.TEXTJOIN(\",\",FALSE,output[[#This Row],[scenario]:[process_class]])","v":"PTX-BusinessOpportunityAnalyzer-1.0.9,DEU,Hydrogen (AEL),MRT,COST-CAPEX,Electricity generation"},"PTX-BusinessOpportunityAnalyzer-1.0.9",{"$f":"sel_country_code","v":"DEU"},"Hydrogen (AEL)",{"$f":"_calc!$B$638","v":"MRT"},{"$f":"_calc!$BO$582","v":"COST-CAPEX"},{"$f":"_calc!$BR$1","v":"Electricity generation"},{"$f":"_calc!$BR$638","v":37.276388835055585}]
[{"$f":"_xlfn.TEXTJOIN(\",\",FALSE,output[[#This Row],[scenario]:[process_class]])","v":"PTX-BusinessOpportunityAnalyzer-1.0.9,DEU,Hydrogen (AEL),MRT,COST-CAPEX,Transportation (Pipeline)"},"PTX-BusinessOpportunityAnalyzer-1.0.9",{"$f":"sel_country_code","v":"DEU"},"Hydrogen (AEL)",{"$f":"_calc!$B$638","v":"MRT"},{"$f":"_calc!$BO$582","v":"COST-CAPEX"},{"$f":"_calc!$BS$1","v":"Transportation (Pipeline)"},{"$f":"_calc!$BS$638","v":2.6715519861534403}]
[{"$f":"_xlfn.TEXTJOIN(\",\",FALSE,output[[#This Row],[scenario]:[process_class]])","v":"PTX-BusinessOpportunityAnalyzer-1.0.9,DEU,Hydrogen (AEL),MRT,COST-CAPEX,Transportation (Ship)"},"PTX-BusinessOpportunityAnalyzer-1.0.9",{"$f":"sel_country_code","v":"DEU"},"Hydrogen (AEL)",{"$f":"_calc!$B$638","v":"MRT"},{"$f":"_calc!$BO$582","v":"COST-CAPEX"},{"$f":"_calc!$BT$1","v":"Transportation (Ship)"},{"$f":"_calc!$BT$638","v":0}]
[{"$f":"_xlfn.TEXTJOIN(\",\",FALSE,output[[#This Row],[scenario]:[process_class]])","v":"PTX-BusinessOpportunityAnalyzer-1.0.9,DEU,Hydrogen (AEL),MRT,COST-CAPEX,Carbon"},"PTX-BusinessOpportunityAnalyzer-1.0.9",{"$f":"sel_country_code","v":"DEU"},"Hydrogen (AEL)",{"$f":"_calc!$B$638","v":"MRT"},{"$f":"_calc!$BO$582","v":"COST-CAPEX"},{"$f":"_calc!$BU$1","v":"Carbon"},{"$f":"_calc!$BU$638","v":0}]
[{"$f":"_xlfn.TEXTJOIN(\",\",FALSE,output[[#This Row],[scenario]:[process_class]])","v":"PTX-BusinessOpportunityAnalyzer-1.0.9,DEU,Hydrogen (AEL),MRT,COST-CAPEX,Derivate production"},"PTX-BusinessOpportunityAnalyzer-1.0.9",{"$f":"sel_country_code","v":"DEU"},"Hydrogen (AEL)",{"$f":"_calc!$B$638","v":"MRT"},{"$f":"_calc!$BO$582","v":"COST-CAPEX"},{"$f":"_calc!$BV$1","v":"Derivate production"},{"$f":"_calc!$BV$638","v":0}]
[{"$f":"_xlfn.TEXTJOIN(\",\",FALSE,output[[#This Row],[scenario]:[process_class]])","v":"PTX-BusinessOpportunityAnalyzer-1.0.9,DEU,Hydrogen (AEL),MRT,COST-CAPEX,Heat"},"PTX-BusinessOpportunityAnalyzer-1.0.9",{"$f":"sel_country_code","v":"DEU"},"Hydrogen (AEL)",{"$f":"_calc!$B$638","v":"MRT"},{"$f":"_calc!$BO$582","v":"COST-CAPEX"},{"$f":"_calc!$BW$1","v":"Heat"},{"$f":"_calc!$BW$638","v":0}]
[{"$f":"_xlfn.TEXTJOIN(\",\",FALSE,output[[#This Row],[scenario]:[process_class]])","v":"PTX-BusinessOpportunityAnalyzer-1.0.9,DEU,Hydrogen (AEL),MRT,COST-CAPEX,Electricity and H2 storage"},"PTX-BusinessOpportunityAnalyzer-1.0.9",{"$f":"sel_country_code","v":"DEU"},"Hydrogen (AEL)",{"$f":"_calc!$B$638","v":"MRT"},{"$f":"_calc!$BO$582","v":"COST-CAPEX"},{"$f":"_calc!$BX$1","v":"Electricity and H2 storage"},{"$f":"_calc!$BX$638","v":0}]
[{"$f":"_xlfn.TEXTJOIN(\",\",FALSE,output[[#This Row],[scenario]:[process_class]])","v":"PTX-BusinessOpportunityAnalyzer-1.0.9,DEU,Hydrogen (AEL),NAM,COST-CAPEX,Water"},"PTX-BusinessOpportunityAnalyzer-1.0.9",{"$f":"sel_country_code","v":"DEU"},"Hydrogen (AEL)",{"$f":"_calc!$B$639","v":"NAM"},{"$f":"_calc!$BO$582","v":"COST-CAPEX"},{"$f":"_calc!$BP$1","v":"Water"},{"$f":"_calc!$BP$639","v":0.10019986859891163}]
[{"$f":"_xlfn.TEXTJOIN(\",\",FALSE,output[[#This Row],[scenario]:[process_class]])","v":"PTX-BusinessOpportunityAnalyzer-1.0.9,DEU,Hydrogen (AEL),NAM,COST-CAPEX,Electrolysis"},"PTX-BusinessOpportunityAnalyzer-1.0.9",{"$f":"sel_country_code","v":"DEU"},"Hydrogen (AEL)",{"$f":"_calc!$B$639","v":"NAM"},{"$f":"_calc!$BO$582","v":"COST-CAPEX"},{"$f":"_calc!$BQ$1","v":"Electrolysis"},{"$f":"_calc!$BQ$639","v":12.948573453284736}]
[{"$f":"_xlfn.TEXTJOIN(\",\",FALSE,output[[#This Row],[scenario]:[process_class]])","v":"PTX-BusinessOpportunityAnalyzer-1.0.9,DEU,Hydrogen (AEL),NAM,COST-CAPEX,Electricity generation"},"PTX-BusinessOpportunityAnalyzer-1.0.9",{"$f":"sel_country_code","v":"DEU"},"Hydrogen (AEL)",{"$f":"_calc!$B$639","v":"NAM"},{"$f":"_calc!$BO$582","v":"COST-CAPEX"},{"$f":"_calc!$BR$1","v":"Electricity generation"},{"$f":"_calc!$BR$639","v":39.251375290745997}]
[{"$f":"_xlfn.TEXTJOIN(\",\",FALSE,output[[#This Row],[scenario]:[process_class]])","v":"PTX-BusinessOpportunityAnalyzer-1.0.9,DEU,Hydrogen (AEL),NAM,COST-CAPEX,Transportation (Pipeline)"},"PTX-BusinessOpportunityAnalyzer-1.0.9",{"$f":"sel_country_code","v":"DEU"},"Hydrogen (AEL)",{"$f":"_calc!$B$639","v":"NAM"},{"$f":"_calc!$BO$582","v":"COST-CAPEX"},{"$f":"_calc!$BS$1","v":"Transportation (Pipeline)"},{"$f":"_calc!$BS$639","v":0}]
[{"$f":"_xlfn.TEXTJOIN(\",\",FALSE,output[[#This Row],[scenario]:[process_class]])","v":"PTX-BusinessOpportunityAnalyzer-1.0.9,DEU,Hydrogen (AEL),NAM,COST-CAPEX,Transportation (Ship)"},"PTX-BusinessOpportunityAnalyzer-1.0.9",{"$f":"sel_country_code","v":"DEU"},"Hydrogen (AEL)",{"$f":"_calc!$B$639","v":"NAM"},{"$f":"_calc!$BO$582","v":"COST-CAPEX"},{"$f":"_calc!$BT$1","v":"Transportation (Ship)"},{"$f":"_calc!$BT$639","v":30.600114971052822}]
[{"$f":"_xlfn.TEXTJOIN(\",\",FALSE,output[[#This Row],[scenario]:[process_class]])","v":"PTX-BusinessOpportunityAnalyzer-1.0.9,DEU,Hydrogen (AEL),NAM,COST-CAPEX,Carbon"},"PTX-BusinessOpportunityAnalyzer-1.0.9",{"$f":"sel_country_code","v":"DEU"},"Hydrogen (AEL)",{"$f":"_calc!$B$639","v":"NAM"},{"$f":"_calc!$BO$582","v":"COST-CAPEX"},{"$f":"_calc!$BU$1","v":"Carbon"},{"$f":"_calc!$BU$639","v":0}]
[{"$f":"_xlfn.TEXTJOIN(\",\",FALSE,output[[#This Row],[scenario]:[process_class]])","v":"PTX-BusinessOpportunityAnalyzer-1.0.9,DEU,Hydrogen (AEL),NAM,COST-CAPEX,Derivate production"},"PTX-BusinessOpportunityAnalyzer-1.0.9",{"$f":"sel_country_code","v":"DEU"},"Hydrogen (AEL)",{"$f":"_calc!$B$639","v":"NAM"},{"$f":"_calc!$BO$582","v":"COST-CAPEX"},{"$f":"_calc!$BV$1","v":"Derivate production"},{"$f":"_calc!$BV$639","v":0}]
[{"$f":"_xlfn.TEXTJOIN(\",\",FALSE,output[[#This Row],[scenario]:[process_class]])","v":"PTX-BusinessOpportunityAnalyzer-1.0.9,DEU,Hydrogen (AEL),NAM,COST-CAPEX,Heat"},"PTX-BusinessOpportunityAnalyzer-1.0.9",{"$f":"sel_country_code","v":"DEU"},"Hydrogen (AEL)",{"$f":"_calc!$B$639","v":"NAM"},{"$f":"_calc!$BO$582","v":"COST-CAPEX"},{"$f":"_calc!$BW$1","v":"Heat"},{"$f":"_calc!$BW$639","v":0}]
[{"$f":"_xlfn.TEXTJOIN(\",\",FALSE,output[[#This Row],[scenario]:[process_class]])","v":"PTX-BusinessOpportunityAnalyzer-1.0.9,DEU,Hydrogen (AEL),NAM,COST-CAPEX,Electricity and H2 storage"},{"$f":"output_scenario_name","v":"PTX-BusinessOpportunityAnalyzer-1.0.9"},{"$f":"sel_country_code","v":"DEU"},{"$f":"sel_chain","v":"Hydrogen (AEL)"},{"$f":"_calc!$B$639","v":"NAM"},{"$f":"_calc!$BO$582","v":"COST-CAPEX"},{"$f":"_calc!$BX$1","v":"Electricity and H2 storage"},{"$f":"_calc!$BX$639","v":0}]
[{"$f":"_xlfn.TEXTJOIN(\",\",FALSE,output[[#This Row],[scenario]:[process_class]])","v":"PTX-BusinessOpportunityAnalyzer-1.0.9,DEU,Hydrogen (AEL),NOR,COST-CAPEX,Water"},"PTX-BusinessOpportunityAnalyzer-1.0.9",{"$f":"sel_country_code","v":"DEU"},"Hydrogen (AEL)",{"$f":"_calc!$B$640","v":"NOR"},{"$f":"_calc!$BO$582","v":"COST-CAPEX"},{"$f":"_calc!$BP$1","v":"Water"},{"$f":"_calc!$BP$640","v":5.8435231211244366E-2}]
[{"$f":"_xlfn.TEXTJOIN(\",\",FALSE,output[[#This Row],[scenario]:[process_class]])","v":"PTX-BusinessOpportunityAnalyzer-1.0.9,DEU,Hydrogen (AEL),NOR,COST-CAPEX,Electrolysis"},"PTX-BusinessOpportunityAnalyzer-1.0.9",{"$f":"sel_country_code","v":"DEU"},"Hydrogen (AEL)",{"$f":"_calc!$B$640","v":"NOR"},{"$f":"_calc!$BO$582","v":"COST-CAPEX"},{"$f":"_calc!$BQ$1","v":"Electrolysis"},{"$f":"_calc!$BQ$640","v":10.647650347473737}]
[{"$f":"_xlfn.TEXTJOIN(\",\",FALSE,output[[#This Row],[scenario]:[process_class]])","v":"PTX-BusinessOpportunityAnalyzer-1.0.9,DEU,Hydrogen (AEL),NOR,COST-CAPEX,Electricity generation"},"PTX-BusinessOpportunityAnalyzer-1.0.9",{"$f":"sel_country_code","v":"DEU"},"Hydrogen (AEL)",{"$f":"_calc!$B$640","v":"NOR"},{"$f":"_calc!$BO$582","v":"COST-CAPEX"},{"$f":"_calc!$BR$1","v":"Electricity generation"},{"$f":"_calc!$BR$640","v":25.936071130669667}]
[{"$f":"_xlfn.TEXTJOIN(\",\",FALSE,output[[#This Row],[scenario]:[process_class]])","v":"PTX-BusinessOpportunityAnalyzer-1.0.9,DEU,Hydrogen (AEL),NOR,COST-CAPEX,Transportation (Pipeline)"},"PTX-BusinessOpportunityAnalyzer-1.0.9",{"$f":"sel_country_code","v":"DEU"},"Hydrogen (AEL)",{"$f":"_calc!$B$640","v":"NOR"},{"$f":"_calc!$BO$582","v":"COST-CAPEX"},{"$f":"_calc!$BS$1","v":"Transportation (Pipeline)"},{"$f":"_calc!$BS$640","v":1.7861858405361759}]
[{"$f":"_xlfn.TEXTJOIN(\",\",FALSE,output[[#This Row],[scenario]:[process_class]])","v":"PTX-BusinessOpportunityAnalyzer-1.0.9,DEU,Hydrogen (AEL),NOR,COST-CAPEX,Transportation (Ship)"},"PTX-BusinessOpportunityAnalyzer-1.0.9",{"$f":"sel_country_code","v":"DEU"},"Hydrogen (AEL)",{"$f":"_calc!$B$640","v":"NOR"},{"$f":"_calc!$BO$582","v":"COST-CAPEX"},{"$f":"_calc!$BT$1","v":"Transportation (Ship)"},{"$f":"_calc!$BT$640","v":0}]
[{"$f":"_xlfn.TEXTJOIN(\",\",FALSE,output[[#This Row],[scenario]:[process_class]])","v":"PTX-BusinessOpportunityAnalyzer-1.0.9,DEU,Hydrogen (AEL),NOR,COST-CAPEX,Carbon"},"PTX-BusinessOpportunityAnalyzer-1.0.9",{"$f":"sel_country_code","v":"DEU"},"Hydrogen (AEL)",{"$f":"_calc!$B$640","v":"NOR"},{"$f":"_calc!$BO$582","v":"COST-CAPEX"},{"$f":"_calc!$BU$1","v":"Carbon"},{"$f":"_calc!$BU$640","v":0}]
[{"$f":"_xlfn.TEXTJOIN(\",\",FALSE,output[[#This Row],[scenario]:[process_class]])","v":"PTX-BusinessOpportunityAnalyzer-1.0.9,DEU,Hydrogen (AEL),NOR,COST-CAPEX,Derivate production"},"PTX-BusinessOpportunityAnalyzer-1.0.9",{"$f":"sel_country_code","v":"DEU"},"Hydrogen (AEL)",{"$f":"_calc!$B$640","v":"NOR"},{"$f":"_calc!$BO$582","v":"COST-CAPEX"},{"$f":"_calc!$BV$1","v":"Derivate production"},{"$f":"_calc!$BV$640","v":0}]
[{"$f":"_xlfn.TEXTJOIN(\",\",FALSE,output[[#This Row],[scenario]:[process_class]])","v":"PTX-BusinessOpportunityAnalyzer-1.0.9,DEU,Hydrogen (AEL),NOR,COST-CAPEX,Heat"},"PTX-BusinessOpportunityAnalyzer-1.0.9",{"$f":"sel_country_code","v":"DEU"},"Hydrogen (AEL)",{"$f":"_calc!$B$640","v":"NOR"},{"$f":"_calc!$BO$582","v":"COST-CAPEX"},{"$f":"_calc!$BW$1","v":"Heat"},{"$f":"_calc!$BW$640","v":0}]
[{"$f":"_xlfn.TEXTJOIN(\",\",FALSE,output[[#This Row],[scenario]:[process_class]])","v":"PTX-BusinessOpportunityAnalyzer-1.0.9,DEU,Hydrogen (AEL),NOR,COST-CAPEX,Electricity and H2 storage"},"PTX-BusinessOpportunityAnalyzer-1.0.9",{"$f":"sel_country_code","v":"DEU"},"Hydrogen (AEL)",{"$f":"_calc!$B$640","v":"NOR"},{"$f":"_calc!$BO$582","v":"COST-CAPEX"},{"$f":"_calc!$BX$1","v":"Electricity and H2 storage"},{"$f":"_calc!$BX$640","v":0}]
[{"$f":"_xlfn.TEXTJOIN(\",\",FALSE,output[[#This Row],[scenario]:[process_class]])","v":"PTX-BusinessOpportunityAnalyzer-1.0.9,DEU,Hydrogen (AEL),PER,COST-CAPEX,Water"},"PTX-BusinessOpportunityAnalyzer-1.0.9",{"$f":"sel_country_code","v":"DEU"},"Hydrogen (AEL)",{"$f":"_calc!$B$641","v":"PER"},{"$f":"_calc!$BO$582","v":"COST-CAPEX"},{"$f":"_calc!$BP$1","v":"Water"},{"$f":"_calc!$BP$641","v":8.7595662806016383E-2}]
[{"$f":"_xlfn.TEXTJOIN(\",\",FALSE,output[[#This Row],[scenario]:[process_class]])","v":"PTX-BusinessOpportunityAnalyzer-1.0.9,DEU,Hydrogen (AEL),PER,COST-CAPEX,Electrolysis"},"PTX-BusinessOpportunityAnalyzer-1.0.9",{"$f":"sel_country_code","v":"DEU"},"Hydrogen (AEL)",{"$f":"_calc!$B$641","v":"PER"},{"$f":"_calc!$BO$582","v":"COST-CAPEX"},{"$f":"_calc!$BQ$1","v":"Electrolysis"},{"$f":"_calc!$BQ$641","v":28.1838530341285}]
[{"$f":"_xlfn.TEXTJOIN(\",\",FALSE,output[[#This Row],[scenario]:[process_class]])","v":"PTX-BusinessOpportunityAnalyzer-1.0.9,DEU,Hydrogen (AEL),PER,COST-CAPEX,Electricity generation"},"PTX-BusinessOpportunityAnalyzer-1.0.9",{"$f":"sel_country_code","v":"DEU"},"Hydrogen (AEL)",{"$f":"_calc!$B$641","v":"PER"},{"$f":"_calc!$BO$582","v":"COST-CAPEX"},{"$f":"_calc!$BR$1","v":"Electricity generation"},{"$f":"_calc!$BR$641","v":59.386655687483078}]
[{"$f":"_xlfn.TEXTJOIN(\",\",FALSE,output[[#This Row],[scenario]:[process_class]])","v":"PTX-BusinessOpportunityAnalyzer-1.0.9,DEU,Hydrogen (AEL),PER,COST-CAPEX,Transportation (Pipeline)"},"PTX-BusinessOpportunityAnalyzer-1.0.9",{"$f":"sel_country_code","v":"DEU"},"Hydrogen (AEL)",{"$f":"_calc!$B$641","v":"PER"},{"$f":"_calc!$BO$582","v":"COST-CAPEX"},{"$f":"_calc!$BS$1","v":"Transportation (Pipeline)"},{"$f":"_calc!$BS$641","v":0}]
[{"$f":"_xlfn.TEXTJOIN(\",\",FALSE,output[[#This Row],[scenario]:[process_class]])","v":"PTX-BusinessOpportunityAnalyzer-1.0.9,DEU,Hydrogen (AEL),PER,COST-CAPEX,Transportation (Ship)"},"PTX-BusinessOpportunityAnalyzer-1.0.9",{"$f":"sel_country_code","v":"DEU"},"Hydrogen (AEL)",{"$f":"_calc!$B$641","v":"PER"},{"$f":"_calc!$BO$582","v":"COST-CAPEX"},{"$f":"_calc!$BT$1","v":"Transportation (Ship)"},{"$f":"_calc!$BT$641","v":57.915153950743353}]
[{"$f":"_xlfn.TEXTJOIN(\",\",FALSE,output[[#This Row],[scenario]:[process_class]])","v":"PTX-BusinessOpportunityAnalyzer-1.0.9,DEU,Hydrogen (AEL),PER,COST-CAPEX,Carbon"},"PTX-BusinessOpportunityAnalyzer-1.0.9",{"$f":"sel_country_code","v":"DEU"},"Hydrogen (AEL)",{"$f":"_calc!$B$641","v":"PER"},{"$f":"_calc!$BO$582","v":"COST-CAPEX"},{"$f":"_calc!$BU$1","v":"Carbon"},{"$f":"_calc!$BU$641","v":0}]
[{"$f":"_xlfn.TEXTJOIN(\",\",FALSE,output[[#This Row],[scenario]:[process_class]])","v":"PTX-BusinessOpportunityAnalyzer-1.0.9,DEU,Hydrogen (AEL),PER,COST-CAPEX,Derivate production"},"PTX-BusinessOpportunityAnalyzer-1.0.9",{"$f":"sel_country_code","v":"DEU"},"Hydrogen (AEL)",{"$f":"_calc!$B$641","v":"PER"},{"$f":"_calc!$BO$582","v":"COST-CAPEX"},{"$f":"_calc!$BV$1","v":"Derivate production"},{"$f":"_calc!$BV$641","v":0}]
[{"$f":"_xlfn.TEXTJOIN(\",\",FALSE,output[[#This Row],[scenario]:[process_class]])","v":"PTX-BusinessOpportunityAnalyzer-1.0.9,DEU,Hydrogen (AEL),PER,COST-CAPEX,Heat"},"PTX-BusinessOpportunityAnalyzer-1.0.9",{"$f":"sel_country_code","v":"DEU"},"Hydrogen (AEL)",{"$f":"_calc!$B$641","v":"PER"},{"$f":"_calc!$BO$582","v":"COST-CAPEX"},{"$f":"_calc!$BW$1","v":"Heat"},{"$f":"_calc!$BW$641","v":0}]
[{"$f":"_xlfn.TEXTJOIN(\",\",FALSE,output[[#This Row],[scenario]:[process_class]])","v":"PTX-BusinessOpportunityAnalyzer-1.0.9,DEU,Hydrogen (AEL),PER,COST-CAPEX,Electricity and H2 storage"},"PTX-BusinessOpportunityAnalyzer-1.0.9",{"$f":"sel_country_code","v":"DEU"},"Hydrogen (AEL)",{"$f":"_calc!$B$641","v":"PER"},{"$f":"_calc!$BO$582","v":"COST-CAPEX"},{"$f":"_calc!$BX$1","v":"Electricity and H2 storage"},{"$f":"_calc!$BX$641","v":0}]
[{"$f":"_xlfn.TEXTJOIN(\",\",FALSE,output[[#This Row],[scenario]:[process_class]])","v":"PTX-BusinessOpportunityAnalyzer-1.0.9,DEU,Hydrogen (AEL),PRT,COST-CAPEX,Water"},"PTX-BusinessOpportunityAnalyzer-1.0.9",{"$f":"sel_country_code","v":"DEU"},"Hydrogen (AEL)",{"$f":"_calc!$B$642","v":"PRT"},{"$f":"_calc!$BO$582","v":"COST-CAPEX"},{"$f":"_calc!$BP$1","v":"Water"},{"$f":"_calc!$BP$642","v":7.2231594040444658E-2}]
[{"$f":"_xlfn.TEXTJOIN(\",\",FALSE,output[[#This Row],[scenario]:[process_class]])","v":"PTX-BusinessOpportunityAnalyzer-1.0.9,DEU,Hydrogen (AEL),PRT,COST-CAPEX,Electrolysis"},"PTX-BusinessOpportunityAnalyzer-1.0.9",{"$f":"sel_country_code","v":"DEU"},"Hydrogen (AEL)",{"$f":"_calc!$B$642","v":"PRT"},{"$f":"_calc!$BO$582","v":"COST-CAPEX"},{"$f":"_calc!$BQ$1","v":"Electrolysis"},{"$f":"_calc!$BQ$642","v":11.31234206265508}]
[{"$f":"_xlfn.TEXTJOIN(\",\",FALSE,output[[#This Row],[scenario]:[process_class]])","v":"PTX-BusinessOpportunityAnalyzer-1.0.9,DEU,Hydrogen (AEL),PRT,COST-CAPEX,Electricity generation"},"PTX-BusinessOpportunityAnalyzer-1.0.9",{"$f":"sel_country_code","v":"DEU"},"Hydrogen (AEL)",{"$f":"_calc!$B$642","v":"PRT"},{"$f":"_calc!$BO$582","v":"COST-CAPEX"},{"$f":"_calc!$BR$1","v":"Electricity generation"},{"$f":"_calc!$BR$642","v":32.0277241975365}]
[{"$f":"_xlfn.TEXTJOIN(\",\",FALSE,output[[#This Row],[scenario]:[process_class]])","v":"PTX-BusinessOpportunityAnalyzer-1.0.9,DEU,Hydrogen (AEL),PRT,COST-CAPEX,Transportation (Pipeline)"},"PTX-BusinessOpportunityAnalyzer-1.0.9",{"$f":"sel_country_code","v":"DEU"},"Hydrogen (AEL)",{"$f":"_calc!$B$642","v":"PRT"},{"$f":"_calc!$BO$582","v":"COST-CAPEX"},{"$f":"_calc!$BS$1","v":"Transportation (Pipeline)"},{"$f":"_calc!$BS$642","v":2.2078983489941773}]
[{"$f":"_xlfn.TEXTJOIN(\",\",FALSE,output[[#This Row],[scenario]:[process_class]])","v":"PTX-BusinessOpportunityAnalyzer-1.0.9,DEU,Hydrogen (AEL),PRT,COST-CAPEX,Transportation (Ship)"},"PTX-BusinessOpportunityAnalyzer-1.0.9",{"$f":"sel_country_code","v":"DEU"},"Hydrogen (AEL)",{"$f":"_calc!$B$642","v":"PRT"},{"$f":"_calc!$BO$582","v":"COST-CAPEX"},{"$f":"_calc!$BT$1","v":"Transportation (Ship)"},{"$f":"_calc!$BT$642","v":0}]
[{"$f":"_xlfn.TEXTJOIN(\",\",FALSE,output[[#This Row],[scenario]:[process_class]])","v":"PTX-BusinessOpportunityAnalyzer-1.0.9,DEU,Hydrogen (AEL),PRT,COST-CAPEX,Carbon"},"PTX-BusinessOpportunityAnalyzer-1.0.9",{"$f":"sel_country_code","v":"DEU"},"Hydrogen (AEL)",{"$f":"_calc!$B$642","v":"PRT"},{"$f":"_calc!$BO$582","v":"COST-CAPEX"},{"$f":"_calc!$BU$1","v":"Carbon"},{"$f":"_calc!$BU$642","v":0}]
[{"$f":"_xlfn.TEXTJOIN(\",\",FALSE,output[[#This Row],[scenario]:[process_class]])","v":"PTX-BusinessOpportunityAnalyzer-1.0.9,DEU,Hydrogen (AEL),PRT,COST-CAPEX,Derivate production"},"PTX-BusinessOpportunityAnalyzer-1.0.9",{"$f":"sel_country_code","v":"DEU"},"Hydrogen (AEL)",{"$f":"_calc!$B$642","v":"PRT"},{"$f":"_calc!$BO$582","v":"COST-CAPEX"},{"$f":"_calc!$BV$1","v":"Derivate production"},{"$f":"_calc!$BV$642","v":0}]
[{"$f":"_xlfn.TEXTJOIN(\",\",FALSE,output[[#This Row],[scenario]:[process_class]])","v":"PTX-BusinessOpportunityAnalyzer-1.0.9,DEU,Hydrogen (AEL),PRT,COST-CAPEX,Heat"},"PTX-BusinessOpportunityAnalyzer-1.0.9",{"$f":"sel_country_code","v":"DEU"},"Hydrogen (AEL)",{"$f":"_calc!$B$642","v":"PRT"},{"$f":"_calc!$BO$582","v":"COST-CAPEX"},{"$f":"_calc!$BW$1","v":"Heat"},{"$f":"_calc!$BW$642","v":0}]
[{"$f":"_xlfn.TEXTJOIN(\",\",FALSE,output[[#This Row],[scenario]:[process_class]])","v":"PTX-BusinessOpportunityAnalyzer-1.0.9,DEU,Hydrogen (AEL),PRT,COST-CAPEX,Electricity and H2 storage"},"PTX-BusinessOpportunityAnalyzer-1.0.9",{"$f":"sel_country_code","v":"DEU"},"Hydrogen (AEL)",{"$f":"_calc!$B$642","v":"PRT"},{"$f":"_calc!$BO$582","v":"COST-CAPEX"},{"$f":"_calc!$BX$1","v":"Electricity and H2 storage"},{"$f":"_calc!$BX$642","v":0}]
[{"$f":"_xlfn.TEXTJOIN(\",\",FALSE,output[[#This Row],[scenario]:[process_class]])","v":"PTX-BusinessOpportunityAnalyzer-1.0.9,DEU,Hydrogen (AEL),RUS,COST-CAPEX,Water"},"PTX-BusinessOpportunityAnalyzer-1.0.9",{"$f":"sel_country_code","v":"DEU"},"Hydrogen (AEL)",{"$f":"_calc!$B$643","v":"RUS"},{"$f":"_calc!$BO$582","v":"COST-CAPEX"},{"$f":"_calc!$BP$1","v":"Water"},{"$f":"_calc!$BP$643","v":7.1956969980944446E-2}]
[{"$f":"_xlfn.TEXTJOIN(\",\",FALSE,output[[#This Row],[scenario]:[process_class]])","v":"PTX-BusinessOpportunityAnalyzer-1.0.9,DEU,Hydrogen (AEL),RUS,COST-CAPEX,Electrolysis"},"PTX-BusinessOpportunityAnalyzer-1.0.9",{"$f":"sel_country_code","v":"DEU"},"Hydrogen (AEL)",{"$f":"_calc!$B$643","v":"RUS"},{"$f":"_calc!$BO$582","v":"COST-CAPEX"},{"$f":"_calc!$BQ$1","v":"Electrolysis"},{"$f":"_calc!$BQ$643","v":15.792954310942999}]
[{"$f":"_xlfn.TEXTJOIN(\",\",FALSE,output[[#This Row],[scenario]:[process_class]])","v":"PTX-BusinessOpportunityAnalyzer-1.0.9,DEU,Hydrogen (AEL),RUS,COST-CAPEX,Electricity generation"},"PTX-BusinessOpportunityAnalyzer-1.0.9",{"$f":"sel_country_code","v":"DEU"},"Hydrogen (AEL)",{"$f":"_calc!$B$643","v":"RUS"},{"$f":"_calc!$BO$582","v":"COST-CAPEX"},{"$f":"_calc!$BR$1","v":"Electricity generation"},{"$f":"_calc!$BR$643","v":58.104043718655873}]
[{"$f":"_xlfn.TEXTJOIN(\",\",FALSE,output[[#This Row],[scenario]:[process_class]])","v":"PTX-BusinessOpportunityAnalyzer-1.0.9,DEU,Hydrogen (AEL),RUS,COST-CAPEX,Transportation (Pipeline)"},"PTX-BusinessOpportunityAnalyzer-1.0.9",{"$f":"sel_country_code","v":"DEU"},"Hydrogen (AEL)",{"$f":"_calc!$B$643","v":"RUS"},{"$f":"_calc!$BO$582","v":"COST-CAPEX"},{"$f":"_calc!$BS$1","v":"Transportation (Pipeline)"},{"$f":"_calc!$BS$643","v":2.1995039335639275}]
[{"$f":"_xlfn.TEXTJOIN(\",\",FALSE,output[[#This Row],[scenario]:[process_class]])","v":"PTX-BusinessOpportunityAnalyzer-1.0.9,DEU,Hydrogen (AEL),RUS,COST-CAPEX,Transportation (Ship)"},"PTX-BusinessOpportunityAnalyzer-1.0.9",{"$f":"sel_country_code","v":"DEU"},"Hydrogen (AEL)",{"$f":"_calc!$B$643","v":"RUS"},{"$f":"_calc!$BO$582","v":"COST-CAPEX"},{"$f":"_calc!$BT$1","v":"Transportation (Ship)"},{"$f":"_calc!$BT$643","v":0}]
[{"$f":"_xlfn.TEXTJOIN(\",\",FALSE,output[[#This Row],[scenario]:[process_class]])","v":"PTX-BusinessOpportunityAnalyzer-1.0.9,DEU,Hydrogen (AEL),RUS,COST-CAPEX,Carbon"},"PTX-BusinessOpportunityAnalyzer-1.0.9",{"$f":"sel_country_code","v":"DEU"},"Hydrogen (AEL)",{"$f":"_calc!$B$643","v":"RUS"},{"$f":"_calc!$BO$582","v":"COST-CAPEX"},{"$f":"_calc!$BU$1","v":"Carbon"},{"$f":"_calc!$BU$643","v":0}]
[{"$f":"_xlfn.TEXTJOIN(\",\",FALSE,output[[#This Row],[scenario]:[process_class]])","v":"PTX-BusinessOpportunityAnalyzer-1.0.9,DEU,Hydrogen (AEL),RUS,COST-CAPEX,Derivate production"},"PTX-BusinessOpportunityAnalyzer-1.0.9",{"$f":"sel_country_code","v":"DEU"},"Hydrogen (AEL)",{"$f":"_calc!$B$643","v":"RUS"},{"$f":"_calc!$BO$582","v":"COST-CAPEX"},{"$f":"_calc!$BV$1","v":"Derivate production"},{"$f":"_calc!$BV$643","v":0}]
[{"$f":"_xlfn.TEXTJOIN(\",\",FALSE,output[[#This Row],[scenario]:[process_class]])","v":"PTX-BusinessOpportunityAnalyzer-1.0.9,DEU,Hydrogen (AEL),RUS,COST-CAPEX,Heat"},"PTX-BusinessOpportunityAnalyzer-1.0.9",{"$f":"sel_country_code","v":"DEU"},"Hydrogen (AEL)",{"$f":"_calc!$B$643","v":"RUS"},{"$f":"_calc!$BO$582","v":"COST-CAPEX"},{"$f":"_calc!$BW$1","v":"Heat"},{"$f":"_calc!$BW$643","v":0}]
[{"$f":"_xlfn.TEXTJOIN(\",\",FALSE,output[[#This Row],[scenario]:[process_class]])","v":"PTX-BusinessOpportunityAnalyzer-1.0.9,DEU,Hydrogen (AEL),RUS,COST-CAPEX,Electricity and H2 storage"},"PTX-BusinessOpportunityAnalyzer-1.0.9",{"$f":"sel_country_code","v":"DEU"},"Hydrogen (AEL)",{"$f":"_calc!$B$643","v":"RUS"},{"$f":"_calc!$BO$582","v":"COST-CAPEX"},{"$f":"_calc!$BX$1","v":"Electricity and H2 storage"},{"$f":"_calc!$BX$643","v":0}]
[{"$f":"_xlfn.TEXTJOIN(\",\",FALSE,output[[#This Row],[scenario]:[process_class]])","v":"PTX-BusinessOpportunityAnalyzer-1.0.9,DEU,Hydrogen (AEL),SAU,COST-CAPEX,Water"},"PTX-BusinessOpportunityAnalyzer-1.0.9",{"$f":"sel_country_code","v":"DEU"},"Hydrogen (AEL)",{"$f":"_calc!$B$644","v":"SAU"},{"$f":"_calc!$BO$582","v":"COST-CAPEX"},{"$f":"_calc!$BP$1","v":"Water"},{"$f":"_calc!$BP$644","v":6.5585698923683336E-2}]
[{"$f":"_xlfn.TEXTJOIN(\",\",FALSE,output[[#This Row],[scenario]:[process_class]])","v":"PTX-BusinessOpportunityAnalyzer-1.0.9,DEU,Hydrogen (AEL),SAU,COST-CAPEX,Electrolysis"},"PTX-BusinessOpportunityAnalyzer-1.0.9",{"$f":"sel_country_code","v":"DEU"},"Hydrogen (AEL)",{"$f":"_calc!$B$644","v":"SAU"},{"$f":"_calc!$BO$582","v":"COST-CAPEX"},{"$f":"_calc!$BQ$1","v":"Electrolysis"},{"$f":"_calc!$BQ$644","v":17.629727168965267}]
[{"$f":"_xlfn.TEXTJOIN(\",\",FALSE,output[[#This Row],[scenario]:[process_class]])","v":"PTX-BusinessOpportunityAnalyzer-1.0.9,DEU,Hydrogen (AEL),SAU,COST-CAPEX,Electricity generation"},"PTX-BusinessOpportunityAnalyzer-1.0.9",{"$f":"sel_country_code","v":"DEU"},"Hydrogen (AEL)",{"$f":"_calc!$B$644","v":"SAU"},{"$f":"_calc!$BO$582","v":"COST-CAPEX"},{"$f":"_calc!$BR$1","v":"Electricity generation"},{"$f":"_calc!$BR$644","v":39.943972675125146}]
[{"$f":"_xlfn.TEXTJOIN(\",\",FALSE,output[[#This Row],[scenario]:[process_class]])","v":"PTX-BusinessOpportunityAnalyzer-1.0.9,DEU,Hydrogen (AEL),SAU,COST-CAPEX,Transportation (Pipeline)"},"PTX-BusinessOpportunityAnalyzer-1.0.9",{"$f":"sel_country_code","v":"DEU"},"Hydrogen (AEL)",{"$f":"_calc!$B$644","v":"SAU"},{"$f":"_calc!$BO$582","v":"COST-CAPEX"},{"$f":"_calc!$BS$1","v":"Transportation (Pipeline)"},{"$f":"_calc!$BS$644","v":2.004753713314813}]
[{"$f":"_xlfn.TEXTJOIN(\",\",FALSE,output[[#This Row],[scenario]:[process_class]])","v":"PTX-BusinessOpportunityAnalyzer-1.0.9,DEU,Hydrogen (AEL),SAU,COST-CAPEX,Transportation (Ship)"},"PTX-BusinessOpportunityAnalyzer-1.0.9",{"$f":"sel_country_code","v":"DEU"},"Hydrogen (AEL)",{"$f":"_calc!$B$644","v":"SAU"},{"$f":"_calc!$BO$582","v":"COST-CAPEX"},{"$f":"_calc!$BT$1","v":"Transportation (Ship)"},{"$f":"_calc!$BT$644","v":0}]
[{"$f":"_xlfn.TEXTJOIN(\",\",FALSE,output[[#This Row],[scenario]:[process_class]])","v":"PTX-BusinessOpportunityAnalyzer-1.0.9,DEU,Hydrogen (AEL),SAU,COST-CAPEX,Carbon"},"PTX-BusinessOpportunityAnalyzer-1.0.9",{"$f":"sel_country_code","v":"DEU"},"Hydrogen (AEL)",{"$f":"_calc!$B$644","v":"SAU"},{"$f":"_calc!$BO$582","v":"COST-CAPEX"},{"$f":"_calc!$BU$1","v":"Carbon"},{"$f":"_calc!$BU$644","v":0}]
[{"$f":"_xlfn.TEXTJOIN(\",\",FALSE,output[[#This Row],[scenario]:[process_class]])","v":"PTX-BusinessOpportunityAnalyzer-1.0.9,DEU,Hydrogen (AEL),SAU,COST-CAPEX,Derivate production"},"PTX-BusinessOpportunityAnalyzer-1.0.9",{"$f":"sel_country_code","v":"DEU"},"Hydrogen (AEL)",{"$f":"_calc!$B$644","v":"SAU"},{"$f":"_calc!$BO$582","v":"COST-CAPEX"},{"$f":"_calc!$BV$1","v":"Derivate production"},{"$f":"_calc!$BV$644","v":0}]
[{"$f":"_xlfn.TEXTJOIN(\",\",FALSE,output[[#This Row],[scenario]:[process_class]])","v":"PTX-BusinessOpportunityAnalyzer-1.0.9,DEU,Hydrogen (AEL),SAU,COST-CAPEX,Heat"},"PTX-BusinessOpportunityAnalyzer-1.0.9",{"$f":"sel_country_code","v":"DEU"},"Hydrogen (AEL)",{"$f":"_calc!$B$644","v":"SAU"},{"$f":"_calc!$BO$582","v":"COST-CAPEX"},{"$f":"_calc!$BW$1","v":"Heat"},{"$f":"_calc!$BW$644","v":0}]
[{"$f":"_xlfn.TEXTJOIN(\",\",FALSE,output[[#This Row],[scenario]:[process_class]])","v":"PTX-BusinessOpportunityAnalyzer-1.0.9,DEU,Hydrogen (AEL),SAU,COST-CAPEX,Electricity and H2 storage"},"PTX-BusinessOpportunityAnalyzer-1.0.9",{"$f":"sel_country_code","v":"DEU"},"Hydrogen (AEL)",{"$f":"_calc!$B$644","v":"SAU"},{"$f":"_calc!$BO$582","v":"COST-CAPEX"},{"$f":"_calc!$BX$1","v":"Electricity and H2 storage"},{"$f":"_calc!$BX$644","v":0}]
[{"$f":"_xlfn.TEXTJOIN(\",\",FALSE,output[[#This Row],[scenario]:[process_class]])","v":"PTX-BusinessOpportunityAnalyzer-1.0.9,DEU,Hydrogen (AEL),SWE,COST-CAPEX,Water"},"PTX-BusinessOpportunityAnalyzer-1.0.9",{"$f":"sel_country_code","v":"DEU"},"Hydrogen (AEL)",{"$f":"_calc!$B$645","v":"SWE"},{"$f":"_calc!$BO$582","v":"COST-CAPEX"},{"$f":"_calc!$BP$1","v":"Water"},{"$f":"_calc!$BP$645","v":5.8932908395536311E-2}]
[{"$f":"_xlfn.TEXTJOIN(\",\",FALSE,output[[#This Row],[scenario]:[process_class]])","v":"PTX-BusinessOpportunityAnalyzer-1.0.9,DEU,Hydrogen (AEL),SWE,COST-CAPEX,Electrolysis"},"PTX-BusinessOpportunityAnalyzer-1.0.9",{"$f":"sel_country_code","v":"DEU"},"Hydrogen (AEL)",{"$f":"_calc!$B$645","v":"SWE"},{"$f":"_calc!$BO$582","v":"COST-CAPEX"},{"$f":"_calc!$BQ$1","v":"Electrolysis"},{"$f":"_calc!$BQ$645","v":14.440316966274143}]
[{"$f":"_xlfn.TEXTJOIN(\",\",FALSE,output[[#This Row],[scenario]:[process_class]])","v":"PTX-BusinessOpportunityAnalyzer-1.0.9,DEU,Hydrogen (AEL),SWE,COST-CAPEX,Electricity generation"},"PTX-BusinessOpportunityAnalyzer-1.0.9",{"$f":"sel_country_code","v":"DEU"},"Hydrogen (AEL)",{"$f":"_calc!$B$645","v":"SWE"},{"$f":"_calc!$BO$582","v":"COST-CAPEX"},{"$f":"_calc!$BR$1","v":"Electricity generation"},{"$f":"_calc!$BR$645","v":35.790604858641792}]
[{"$f":"_xlfn.TEXTJOIN(\",\",FALSE,output[[#This Row],[scenario]:[process_class]])","v":"PTX-BusinessOpportunityAnalyzer-1.0.9,DEU,Hydrogen (AEL),SWE,COST-CAPEX,Transportation (Pipeline)"},"PTX-BusinessOpportunityAnalyzer-1.0.9",{"$f":"sel_country_code","v":"DEU"},"Hydrogen (AEL)",{"$f":"_calc!$B$645","v":"SWE"},{"$f":"_calc!$BO$582","v":"COST-CAPEX"},{"$f":"_calc!$BS$1","v":"Transportation (Pipeline)"},{"$f":"_calc!$BS$645","v":1.8013983060525118}]
[{"$f":"_xlfn.TEXTJOIN(\",\",FALSE,output[[#This Row],[scenario]:[process_class]])","v":"PTX-BusinessOpportunityAnalyzer-1.0.9,DEU,Hydrogen (AEL),SWE,COST-CAPEX,Transportation (Ship)"},"PTX-BusinessOpportunityAnalyzer-1.0.9",{"$f":"sel_country_code","v":"DEU"},"Hydrogen (AEL)",{"$f":"_calc!$B$645","v":"SWE"},{"$f":"_calc!$BO$582","v":"COST-CAPEX"},{"$f":"_calc!$BT$1","v":"Transportation (Ship)"},{"$f":"_calc!$BT$645","v":0}]
[{"$f":"_xlfn.TEXTJOIN(\",\",FALSE,output[[#This Row],[scenario]:[process_class]])","v":"PTX-BusinessOpportunityAnalyzer-1.0.9,DEU,Hydrogen (AEL),SWE,COST-CAPEX,Carbon"},"PTX-BusinessOpportunityAnalyzer-1.0.9",{"$f":"sel_country_code","v":"DEU"},"Hydrogen (AEL)",{"$f":"_calc!$B$645","v":"SWE"},{"$f":"_calc!$BO$582","v":"COST-CAPEX"},{"$f":"_calc!$BU$1","v":"Carbon"},{"$f":"_calc!$BU$645","v":0}]
[{"$f":"_xlfn.TEXTJOIN(\",\",FALSE,output[[#This Row],[scenario]:[process_class]])","v":"PTX-BusinessOpportunityAnalyzer-1.0.9,DEU,Hydrogen (AEL),SWE,COST-CAPEX,Derivate production"},"PTX-BusinessOpportunityAnalyzer-1.0.9",{"$f":"sel_country_code","v":"DEU"},"Hydrogen (AEL)",{"$f":"_calc!$B$645","v":"SWE"},{"$f":"_calc!$BO$582","v":"COST-CAPEX"},{"$f":"_calc!$BV$1","v":"Derivate production"},{"$f":"_calc!$BV$645","v":0}]
[{"$f":"_xlfn.TEXTJOIN(\",\",FALSE,output[[#This Row],[scenario]:[process_class]])","v":"PTX-BusinessOpportunityAnalyzer-1.0.9,DEU,Hydrogen (AEL),SWE,COST-CAPEX,Heat"},"PTX-BusinessOpportunityAnalyzer-1.0.9",{"$f":"sel_country_code","v":"DEU"},"Hydrogen (AEL)",{"$f":"_calc!$B$645","v":"SWE"},{"$f":"_calc!$BO$582","v":"COST-CAPEX"},{"$f":"_calc!$BW$1","v":"Heat"},{"$f":"_calc!$BW$645","v":0}]
[{"$f":"_xlfn.TEXTJOIN(\",\",FALSE,output[[#This Row],[scenario]:[process_class]])","v":"PTX-BusinessOpportunityAnalyzer-1.0.9,DEU,Hydrogen (AEL),SWE,COST-CAPEX,Electricity and H2 storage"},"PTX-BusinessOpportunityAnalyzer-1.0.9",{"$f":"sel_country_code","v":"DEU"},"Hydrogen (AEL)",{"$f":"_calc!$B$645","v":"SWE"},{"$f":"_calc!$BO$582","v":"COST-CAPEX"},{"$f":"_calc!$BX$1","v":"Electricity and H2 storage"},{"$f":"_calc!$BX$645","v":0}]
[{"$f":"_xlfn.TEXTJOIN(\",\",FALSE,output[[#This Row],[scenario]:[process_class]])","v":"PTX-BusinessOpportunityAnalyzer-1.0.9,DEU,Hydrogen (AEL),THA,COST-CAPEX,Water"},"PTX-BusinessOpportunityAnalyzer-1.0.9",{"$f":"sel_country_code","v":"DEU"},"Hydrogen (AEL)",{"$f":"_calc!$B$646","v":"THA"},{"$f":"_calc!$BO$582","v":"COST-CAPEX"},{"$f":"_calc!$BP$1","v":"Water"},{"$f":"_calc!$BP$646","v":9.3233706023169119E-2}]
[{"$f":"_xlfn.TEXTJOIN(\",\",FALSE,output[[#This Row],[scenario]:[process_class]])","v":"PTX-BusinessOpportunityAnalyzer-1.0.9,DEU,Hydrogen (AEL),THA,COST-CAPEX,Electrolysis"},"PTX-BusinessOpportunityAnalyzer-1.0.9",{"$f":"sel_country_code","v":"DEU"},"Hydrogen (AEL)",{"$f":"_calc!$B$646","v":"THA"},{"$f":"_calc!$BO$582","v":"COST-CAPEX"},{"$f":"_calc!$BQ$1","v":"Electrolysis"},{"$f":"_calc!$BQ$646","v":24.763999389944281}]
[{"$f":"_xlfn.TEXTJOIN(\",\",FALSE,output[[#This Row],[scenario]:[process_class]])","v":"PTX-BusinessOpportunityAnalyzer-1.0.9,DEU,Hydrogen (AEL),THA,COST-CAPEX,Electricity generation"},"PTX-BusinessOpportunityAnalyzer-1.0.9",{"$f":"sel_country_code","v":"DEU"},"Hydrogen (AEL)",{"$f":"_calc!$B$646","v":"THA"},{"$f":"_calc!$BO$582","v":"COST-CAPEX"},{"$f":"_calc!$BR$1","v":"Electricity generation"},{"$f":"_calc!$BR$646","v":62.254950958531005}]
[{"$f":"_xlfn.TEXTJOIN(\",\",FALSE,output[[#This Row],[scenario]:[process_class]])","v":"PTX-BusinessOpportunityAnalyzer-1.0.9,DEU,Hydrogen (AEL),THA,COST-CAPEX,Transportation (Pipeline)"},"PTX-BusinessOpportunityAnalyzer-1.0.9",{"$f":"sel_country_code","v":"DEU"},"Hydrogen (AEL)",{"$f":"_calc!$B$646","v":"THA"},{"$f":"_calc!$BO$582","v":"COST-CAPEX"},{"$f":"_calc!$BS$1","v":"Transportation (Pipeline)"},{"$f":"_calc!$BS$646","v":0}]
[{"$f":"_xlfn.TEXTJOIN(\",\",FALSE,output[[#This Row],[scenario]:[process_class]])","v":"PTX-BusinessOpportunityAnalyzer-1.0.9,DEU,Hydrogen (AEL),THA,COST-CAPEX,Transportation (Ship)"},"PTX-BusinessOpportunityAnalyzer-1.0.9",{"$f":"sel_country_code","v":"DEU"},"Hydrogen (AEL)",{"$f":"_calc!$B$646","v":"THA"},{"$f":"_calc!$BO$582","v":"COST-CAPEX"},{"$f":"_calc!$BT$1","v":"Transportation (Ship)"},{"$f":"_calc!$BT$646","v":51.918836317252776}]
[{"$f":"_xlfn.TEXTJOIN(\",\",FALSE,output[[#This Row],[scenario]:[process_class]])","v":"PTX-BusinessOpportunityAnalyzer-1.0.9,DEU,Hydrogen (AEL),THA,COST-CAPEX,Carbon"},"PTX-BusinessOpportunityAnalyzer-1.0.9",{"$f":"sel_country_code","v":"DEU"},"Hydrogen (AEL)",{"$f":"_calc!$B$646","v":"THA"},{"$f":"_calc!$BO$582","v":"COST-CAPEX"},{"$f":"_calc!$BU$1","v":"Carbon"},{"$f":"_calc!$BU$646","v":0}]
[{"$f":"_xlfn.TEXTJOIN(\",\",FALSE,output[[#This Row],[scenario]:[process_class]])","v":"PTX-BusinessOpportunityAnalyzer-1.0.9,DEU,Hydrogen (AEL),THA,COST-CAPEX,Derivate production"},"PTX-BusinessOpportunityAnalyzer-1.0.9",{"$f":"sel_country_code","v":"DEU"},"Hydrogen (AEL)",{"$f":"_calc!$B$646","v":"THA"},{"$f":"_calc!$BO$582","v":"COST-CAPEX"},{"$f":"_calc!$BV$1","v":"Derivate production"},{"$f":"_calc!$BV$646","v":0}]
[{"$f":"_xlfn.TEXTJOIN(\",\",FALSE,output[[#This Row],[scenario]:[process_class]])","v":"PTX-BusinessOpportunityAnalyzer-1.0.9,DEU,Hydrogen (AEL),THA,COST-CAPEX,Heat"},"PTX-BusinessOpportunityAnalyzer-1.0.9",{"$f":"sel_country_code","v":"DEU"},"Hydrogen (AEL)",{"$f":"_calc!$B$646","v":"THA"},{"$f":"_calc!$BO$582","v":"COST-CAPEX"},{"$f":"_calc!$BW$1","v":"Heat"},{"$f":"_calc!$BW$646","v":0}]
[{"$f":"_xlfn.TEXTJOIN(\",\",FALSE,output[[#This Row],[scenario]:[process_class]])","v":"PTX-BusinessOpportunityAnalyzer-1.0.9,DEU,Hydrogen (AEL),THA,COST-CAPEX,Electricity and H2 storage"},"PTX-BusinessOpportunityAnalyzer-1.0.9",{"$f":"sel_country_code","v":"DEU"},"Hydrogen (AEL)",{"$f":"_calc!$B$646","v":"THA"},{"$f":"_calc!$BO$582","v":"COST-CAPEX"},{"$f":"_calc!$BX$1","v":"Electricity and H2 storage"},{"$f":"_calc!$BX$646","v":0}]
[{"$f":"_xlfn.TEXTJOIN(\",\",FALSE,output[[#This Row],[scenario]:[process_class]])","v":"PTX-BusinessOpportunityAnalyzer-1.0.9,DEU,Hydrogen (AEL),TUN,COST-CAPEX,Water"},{"$f":"output_scenario_name","v":"PTX-BusinessOpportunityAnalyzer-1.0.9"},{"$f":"sel_country_code","v":"DEU"},{"$f":"sel_chain","v":"Hydrogen (AEL)"},{"$f":"_calc!$B$647","v":"TUN"},{"$f":"_calc!$BO$582","v":"COST-CAPEX"},{"$f":"_calc!$BP$1","v":"Water"},{"$f":"_calc!$BP$647","v":9.6546854149412456E-2}]
[{"$f":"_xlfn.TEXTJOIN(\",\",FALSE,output[[#This Row],[scenario]:[process_class]])","v":"PTX-BusinessOpportunityAnalyzer-1.0.9,DEU,Hydrogen (AEL),TUN,COST-CAPEX,Electrolysis"},"PTX-BusinessOpportunityAnalyzer-1.0.9",{"$f":"sel_country_code","v":"DEU"},"Hydrogen (AEL)",{"$f":"_calc!$B$647","v":"TUN"},{"$f":"_calc!$BO$582","v":"COST-CAPEX"},{"$f":"_calc!$BQ$1","v":"Electrolysis"},{"$f":"_calc!$BQ$647","v":23.940759120692942}]
[{"$f":"_xlfn.TEXTJOIN(\",\",FALSE,output[[#This Row],[scenario]:[process_class]])","v":"PTX-BusinessOpportunityAnalyzer-1.0.9,DEU,Hydrogen (AEL),TUN,COST-CAPEX,Electricity generation"},"PTX-BusinessOpportunityAnalyzer-1.0.9",{"$f":"sel_country_code","v":"DEU"},"Hydrogen (AEL)",{"$f":"_calc!$B$647","v":"TUN"},{"$f":"_calc!$BO$582","v":"COST-CAPEX"},{"$f":"_calc!$BR$1","v":"Electricity generation"},{"$f":"_calc!$BR$647","v":59.419906012839917}]
[{"$f":"_xlfn.TEXTJOIN(\",\",FALSE,output[[#This Row],[scenario]:[process_class]])","v":"PTX-BusinessOpportunityAnalyzer-1.0.9,DEU,Hydrogen (AEL),TUN,COST-CAPEX,Transportation (Pipeline)"},"PTX-BusinessOpportunityAnalyzer-1.0.9",{"$f":"sel_country_code","v":"DEU"},"Hydrogen (AEL)",{"$f":"_calc!$B$647","v":"TUN"},{"$f":"_calc!$BO$582","v":"COST-CAPEX"},{"$f":"_calc!$BS$1","v":"Transportation (Pipeline)"},{"$f":"_calc!$BS$647","v":2.9511412936243859}]
[{"$f":"_xlfn.TEXTJOIN(\",\",FALSE,output[[#This Row],[scenario]:[process_class]])","v":"PTX-BusinessOpportunityAnalyzer-1.0.9,DEU,Hydrogen (AEL),TUN,COST-CAPEX,Transportation (Ship)"},"PTX-BusinessOpportunityAnalyzer-1.0.9",{"$f":"sel_country_code","v":"DEU"},"Hydrogen (AEL)",{"$f":"_calc!$B$647","v":"TUN"},{"$f":"_calc!$BO$582","v":"COST-CAPEX"},{"$f":"_calc!$BT$1","v":"Transportation (Ship)"},{"$f":"_calc!$BT$647","v":0}]
[{"$f":"_xlfn.TEXTJOIN(\",\",FALSE,output[[#This Row],[scenario]:[process_class]])","v":"PTX-BusinessOpportunityAnalyzer-1.0.9,DEU,Hydrogen (AEL),TUN,COST-CAPEX,Carbon"},"PTX-BusinessOpportunityAnalyzer-1.0.9",{"$f":"sel_country_code","v":"DEU"},"Hydrogen (AEL)",{"$f":"_calc!$B$647","v":"TUN"},{"$f":"_calc!$BO$582","v":"COST-CAPEX"},{"$f":"_calc!$BU$1","v":"Carbon"},{"$f":"_calc!$BU$647","v":0}]
[{"$f":"_xlfn.TEXTJOIN(\",\",FALSE,output[[#This Row],[scenario]:[process_class]])","v":"PTX-BusinessOpportunityAnalyzer-1.0.9,DEU,Hydrogen (AEL),TUN,COST-CAPEX,Derivate production"},"PTX-BusinessOpportunityAnalyzer-1.0.9",{"$f":"sel_country_code","v":"DEU"},"Hydrogen (AEL)",{"$f":"_calc!$B$647","v":"TUN"},{"$f":"_calc!$BO$582","v":"COST-CAPEX"},{"$f":"_calc!$BV$1","v":"Derivate production"},{"$f":"_calc!$BV$647","v":0}]
[{"$f":"_xlfn.TEXTJOIN(\",\",FALSE,output[[#This Row],[scenario]:[process_class]])","v":"PTX-BusinessOpportunityAnalyzer-1.0.9,DEU,Hydrogen (AEL),TUN,COST-CAPEX,Heat"},"PTX-BusinessOpportunityAnalyzer-1.0.9",{"$f":"sel_country_code","v":"DEU"},"Hydrogen (AEL)",{"$f":"_calc!$B$647","v":"TUN"},{"$f":"_calc!$BO$582","v":"COST-CAPEX"},{"$f":"_calc!$BW$1","v":"Heat"},{"$f":"_calc!$BW$647","v":0}]
[{"$f":"_xlfn.TEXTJOIN(\",\",FALSE,output[[#This Row],[scenario]:[process_class]])","v":"PTX-BusinessOpportunityAnalyzer-1.0.9,DEU,Hydrogen (AEL),TUN,COST-CAPEX,Electricity and H2 storage"},"PTX-BusinessOpportunityAnalyzer-1.0.9",{"$f":"sel_country_code","v":"DEU"},"Hydrogen (AEL)",{"$f":"_calc!$B$647","v":"TUN"},{"$f":"_calc!$BO$582","v":"COST-CAPEX"},{"$f":"_calc!$BX$1","v":"Electricity and H2 storage"},{"$f":"_calc!$BX$647","v":0}]
[{"$f":"_xlfn.TEXTJOIN(\",\",FALSE,output[[#This Row],[scenario]:[process_class]])","v":"PTX-BusinessOpportunityAnalyzer-1.0.9,DEU,Hydrogen (AEL),UKR,COST-CAPEX,Water"},"PTX-BusinessOpportunityAnalyzer-1.0.9",{"$f":"sel_country_code","v":"DEU"},"Hydrogen (AEL)",{"$f":"_calc!$B$648","v":"UKR"},{"$f":"_calc!$BO$582","v":"COST-CAPEX"},{"$f":"_calc!$BP$1","v":"Water"},{"$f":"_calc!$BP$648","v":0.10306757220090829}]
[{"$f":"_xlfn.TEXTJOIN(\",\",FALSE,output[[#This Row],[scenario]:[process_class]])","v":"PTX-BusinessOpportunityAnalyzer-1.0.9,DEU,Hydrogen (AEL),UKR,COST-CAPEX,Electrolysis"},"PTX-BusinessOpportunityAnalyzer-1.0.9",{"$f":"sel_country_code","v":"DEU"},"Hydrogen (AEL)",{"$f":"_calc!$B$648","v":"UKR"},{"$f":"_calc!$BO$582","v":"COST-CAPEX"},{"$f":"_calc!$BQ$1","v":"Electrolysis"},{"$f":"_calc!$BQ$648","v":18.515308571309152}]
[{"$f":"_xlfn.TEXTJOIN(\",\",FALSE,output[[#This Row],[scenario]:[process_class]])","v":"PTX-BusinessOpportunityAnalyzer-1.0.9,DEU,Hydrogen (AEL),UKR,COST-CAPEX,Electricity generation"},"PTX-BusinessOpportunityAnalyzer-1.0.9",{"$f":"sel_country_code","v":"DEU"},"Hydrogen (AEL)",{"$f":"_calc!$B$648","v":"UKR"},{"$f":"_calc!$BO$582","v":"COST-CAPEX"},{"$f":"_calc!$BR$1","v":"Electricity generation"},{"$f":"_calc!$BR$648","v":45.16997995144748}]
[{"$f":"_xlfn.TEXTJOIN(\",\",FALSE,output[[#This Row],[scenario]:[process_class]])","v":"PTX-BusinessOpportunityAnalyzer-1.0.9,DEU,Hydrogen (AEL),UKR,COST-CAPEX,Transportation (Pipeline)"},"PTX-BusinessOpportunityAnalyzer-1.0.9",{"$f":"sel_country_code","v":"DEU"},"Hydrogen (AEL)",{"$f":"_calc!$B$648","v":"UKR"},{"$f":"_calc!$BO$582","v":"COST-CAPEX"},{"$f":"_calc!$BS$1","v":"Transportation (Pipeline)"},{"$f":"_calc!$BS$648","v":3.1504596502439681}]
[{"$f":"_xlfn.TEXTJOIN(\",\",FALSE,output[[#This Row],[scenario]:[process_class]])","v":"PTX-BusinessOpportunityAnalyzer-1.0.9,DEU,Hydrogen (AEL),UKR,COST-CAPEX,Transportation (Ship)"},"PTX-BusinessOpportunityAnalyzer-1.0.9",{"$f":"sel_country_code","v":"DEU"},"Hydrogen (AEL)",{"$f":"_calc!$B$648","v":"UKR"},{"$f":"_calc!$BO$582","v":"COST-CAPEX"},{"$f":"_calc!$BT$1","v":"Transportation (Ship)"},{"$f":"_calc!$BT$648","v":0}]
[{"$f":"_xlfn.TEXTJOIN(\",\",FALSE,output[[#This Row],[scenario]:[process_class]])","v":"PTX-BusinessOpportunityAnalyzer-1.0.9,DEU,Hydrogen (AEL),UKR,COST-CAPEX,Carbon"},"PTX-BusinessOpportunityAnalyzer-1.0.9",{"$f":"sel_country_code","v":"DEU"},"Hydrogen (AEL)",{"$f":"_calc!$B$648","v":"UKR"},{"$f":"_calc!$BO$582","v":"COST-CAPEX"},{"$f":"_calc!$BU$1","v":"Carbon"},{"$f":"_calc!$BU$648","v":0}]
[{"$f":"_xlfn.TEXTJOIN(\",\",FALSE,output[[#This Row],[scenario]:[process_class]])","v":"PTX-BusinessOpportunityAnalyzer-1.0.9,DEU,Hydrogen (AEL),UKR,COST-CAPEX,Derivate production"},"PTX-BusinessOpportunityAnalyzer-1.0.9",{"$f":"sel_country_code","v":"DEU"},"Hydrogen (AEL)",{"$f":"_calc!$B$648","v":"UKR"},{"$f":"_calc!$BO$582","v":"COST-CAPEX"},{"$f":"_calc!$BV$1","v":"Derivate production"},{"$f":"_calc!$BV$648","v":0}]
[{"$f":"_xlfn.TEXTJOIN(\",\",FALSE,output[[#This Row],[scenario]:[process_class]])","v":"PTX-BusinessOpportunityAnalyzer-1.0.9,DEU,Hydrogen (AEL),UKR,COST-CAPEX,Heat"},"PTX-BusinessOpportunityAnalyzer-1.0.9",{"$f":"sel_country_code","v":"DEU"},"Hydrogen (AEL)",{"$f":"_calc!$B$648","v":"UKR"},{"$f":"_calc!$BO$582","v":"COST-CAPEX"},{"$f":"_calc!$BW$1","v":"Heat"},{"$f":"_calc!$BW$648","v":0}]
[{"$f":"_xlfn.TEXTJOIN(\",\",FALSE,output[[#This Row],[scenario]:[process_class]])","v":"PTX-BusinessOpportunityAnalyzer-1.0.9,DEU,Hydrogen (AEL),UKR,COST-CAPEX,Electricity and H2 storage"},"PTX-BusinessOpportunityAnalyzer-1.0.9",{"$f":"sel_country_code","v":"DEU"},"Hydrogen (AEL)",{"$f":"_calc!$B$648","v":"UKR"},{"$f":"_calc!$BO$582","v":"COST-CAPEX"},{"$f":"_calc!$BX$1","v":"Electricity and H2 storage"},{"$f":"_calc!$BX$648","v":0}]
[{"$f":"_xlfn.TEXTJOIN(\",\",FALSE,output[[#This Row],[scenario]:[process_class]])","v":"PTX-BusinessOpportunityAnalyzer-1.0.9,DEU,Hydrogen (AEL),URY,COST-CAPEX,Water"},"PTX-BusinessOpportunityAnalyzer-1.0.9",{"$f":"sel_country_code","v":"DEU"},"Hydrogen (AEL)",{"$f":"_calc!$B$649","v":"URY"},{"$f":"_calc!$BO$582","v":"COST-CAPEX"},{"$f":"_calc!$BP$1","v":"Water"},{"$f":"_calc!$BP$649","v":9.7178551260979462E-2}]
[{"$f":"_xlfn.TEXTJOIN(\",\",FALSE,output[[#This Row],[scenario]:[process_class]])","v":"PTX-BusinessOpportunityAnalyzer-1.0.9,DEU,Hydrogen (AEL),URY,COST-CAPEX,Electrolysis"},"PTX-BusinessOpportunityAnalyzer-1.0.9",{"$f":"sel_country_code","v":"DEU"},"Hydrogen (AEL)",{"$f":"_calc!$B$649","v":"URY"},{"$f":"_calc!$BO$582","v":"COST-CAPEX"},{"$f":"_calc!$BQ$1","v":"Electrolysis"},{"$f":"_calc!$BQ$649","v":16.356463271065618}]
[{"$f":"_xlfn.TEXTJOIN(\",\",FALSE,output[[#This Row],[scenario]:[process_class]])","v":"PTX-BusinessOpportunityAnalyzer-1.0.9,DEU,Hydrogen (AEL),URY,COST-CAPEX,Electricity generation"},"PTX-BusinessOpportunityAnalyzer-1.0.9",{"$f":"sel_country_code","v":"DEU"},"Hydrogen (AEL)",{"$f":"_calc!$B$649","v":"URY"},{"$f":"_calc!$BO$582","v":"COST-CAPEX"},{"$f":"_calc!$BR$1","v":"Electricity generation"},{"$f":"_calc!$BR$649","v":61.206524256981197}]
[{"$f":"_xlfn.TEXTJOIN(\",\",FALSE,output[[#This Row],[scenario]:[process_class]])","v":"PTX-BusinessOpportunityAnalyzer-1.0.9,DEU,Hydrogen (AEL),URY,COST-CAPEX,Transportation (Pipeline)"},"PTX-BusinessOpportunityAnalyzer-1.0.9",{"$f":"sel_country_code","v":"DEU"},"Hydrogen (AEL)",{"$f":"_calc!$B$649","v":"URY"},{"$f":"_calc!$BO$582","v":"COST-CAPEX"},{"$f":"_calc!$BS$1","v":"Transportation (Pipeline)"},{"$f":"_calc!$BS$649","v":0}]
[{"$f":"_xlfn.TEXTJOIN(\",\",FALSE,output[[#This Row],[scenario]:[process_class]])","v":"PTX-BusinessOpportunityAnalyzer-1.0.9,DEU,Hydrogen (AEL),URY,COST-CAPEX,Transportation (Ship)"},"PTX-BusinessOpportunityAnalyzer-1.0.9",{"$f":"sel_country_code","v":"DEU"},"Hydrogen (AEL)",{"$f":"_calc!$B$649","v":"URY"},{"$f":"_calc!$BO$582","v":"COST-CAPEX"},{"$f":"_calc!$BT$1","v":"Transportation (Ship)"},{"$f":"_calc!$BT$649","v":36.332543553037013}]
[{"$f":"_xlfn.TEXTJOIN(\",\",FALSE,output[[#This Row],[scenario]:[process_class]])","v":"PTX-BusinessOpportunityAnalyzer-1.0.9,DEU,Hydrogen (AEL),URY,COST-CAPEX,Carbon"},"PTX-BusinessOpportunityAnalyzer-1.0.9",{"$f":"sel_country_code","v":"DEU"},"Hydrogen (AEL)",{"$f":"_calc!$B$649","v":"URY"},{"$f":"_calc!$BO$582","v":"COST-CAPEX"},{"$f":"_calc!$BU$1","v":"Carbon"},{"$f":"_calc!$BU$649","v":0}]
[{"$f":"_xlfn.TEXTJOIN(\",\",FALSE,output[[#This Row],[scenario]:[process_class]])","v":"PTX-BusinessOpportunityAnalyzer-1.0.9,DEU,Hydrogen (AEL),URY,COST-CAPEX,Derivate production"},"PTX-BusinessOpportunityAnalyzer-1.0.9",{"$f":"sel_country_code","v":"DEU"},"Hydrogen (AEL)",{"$f":"_calc!$B$649","v":"URY"},{"$f":"_calc!$BO$582","v":"COST-CAPEX"},{"$f":"_calc!$BV$1","v":"Derivate production"},{"$f":"_calc!$BV$649","v":0}]
[{"$f":"_xlfn.TEXTJOIN(\",\",FALSE,output[[#This Row],[scenario]:[process_class]])","v":"PTX-BusinessOpportunityAnalyzer-1.0.9,DEU,Hydrogen (AEL),URY,COST-CAPEX,Heat"},"PTX-BusinessOpportunityAnalyzer-1.0.9",{"$f":"sel_country_code","v":"DEU"},"Hydrogen (AEL)",{"$f":"_calc!$B$649","v":"URY"},{"$f":"_calc!$BO$582","v":"COST-CAPEX"},{"$f":"_calc!$BW$1","v":"Heat"},{"$f":"_calc!$BW$649","v":0}]
[{"$f":"_xlfn.TEXTJOIN(\",\",FALSE,output[[#This Row],[scenario]:[process_class]])","v":"PTX-BusinessOpportunityAnalyzer-1.0.9,DEU,Hydrogen (AEL),URY,COST-CAPEX,Electricity and H2 storage"},"PTX-BusinessOpportunityAnalyzer-1.0.9",{"$f":"sel_country_code","v":"DEU"},"Hydrogen (AEL)",{"$f":"_calc!$B$649","v":"URY"},{"$f":"_calc!$BO$582","v":"COST-CAPEX"},{"$f":"_calc!$BX$1","v":"Electricity and H2 storage"},{"$f":"_calc!$BX$649","v":0}]
[{"$f":"_xlfn.TEXTJOIN(\",\",FALSE,output[[#This Row],[scenario]:[process_class]])","v":"PTX-BusinessOpportunityAnalyzer-1.0.9,DEU,Hydrogen (AEL),USA,COST-CAPEX,Water"},"PTX-BusinessOpportunityAnalyzer-1.0.9",{"$f":"sel_country_code","v":"DEU"},"Hydrogen (AEL)",{"$f":"_calc!$B$650","v":"USA"},{"$f":"_calc!$BO$582","v":"COST-CAPEX"},{"$f":"_calc!$BP$1","v":"Water"},{"$f":"_calc!$BP$650","v":7.4995417882763996E-2}]
[{"$f":"_xlfn.TEXTJOIN(\",\",FALSE,output[[#This Row],[scenario]:[process_class]])","v":"PTX-BusinessOpportunityAnalyzer-1.0.9,DEU,Hydrogen (AEL),USA,COST-CAPEX,Electrolysis"},"PTX-BusinessOpportunityAnalyzer-1.0.9",{"$f":"sel_country_code","v":"DEU"},"Hydrogen (AEL)",{"$f":"_calc!$B$650","v":"USA"},{"$f":"_calc!$BO$582","v":"COST-CAPEX"},{"$f":"_calc!$BQ$1","v":"Electrolysis"},{"$f":"_calc!$BQ$650","v":12.616138025764956}]
[{"$f":"_xlfn.TEXTJOIN(\",\",FALSE,output[[#This Row],[scenario]:[process_class]])","v":"PTX-BusinessOpportunityAnalyzer-1.0.9,DEU,Hydrogen (AEL),USA,COST-CAPEX,Electricity generation"},"PTX-BusinessOpportunityAnalyzer-1.0.9",{"$f":"sel_country_code","v":"DEU"},"Hydrogen (AEL)",{"$f":"_calc!$B$650","v":"USA"},{"$f":"_calc!$BO$582","v":"COST-CAPEX"},{"$f":"_calc!$BR$1","v":"Electricity generation"},{"$f":"_calc!$BR$650","v":33.897231097046912}]
[{"$f":"_xlfn.TEXTJOIN(\",\",FALSE,output[[#This Row],[scenario]:[process_class]])","v":"PTX-BusinessOpportunityAnalyzer-1.0.9,DEU,Hydrogen (AEL),USA,COST-CAPEX,Transportation (Pipeline)"},"PTX-BusinessOpportunityAnalyzer-1.0.9",{"$f":"sel_country_code","v":"DEU"},"Hydrogen (AEL)",{"$f":"_calc!$B$650","v":"USA"},{"$f":"_calc!$BO$582","v":"COST-CAPEX"},{"$f":"_calc!$BS$1","v":"Transportation (Pipeline)"},{"$f":"_calc!$BS$650","v":0}]
[{"$f":"_xlfn.TEXTJOIN(\",\",FALSE,output[[#This Row],[scenario]:[process_class]])","v":"PTX-BusinessOpportunityAnalyzer-1.0.9,DEU,Hydrogen (AEL),USA,COST-CAPEX,Transportation (Ship)"},"PTX-BusinessOpportunityAnalyzer-1.0.9",{"$f":"sel_country_code","v":"DEU"},"Hydrogen (AEL)",{"$f":"_calc!$B$650","v":"USA"},{"$f":"_calc!$BO$582","v":"COST-CAPEX"},{"$f":"_calc!$BT$1","v":"Transportation (Ship)"},{"$f":"_calc!$BT$650","v":26.022521519451953}]
[{"$f":"_xlfn.TEXTJOIN(\",\",FALSE,output[[#This Row],[scenario]:[process_class]])","v":"PTX-BusinessOpportunityAnalyzer-1.0.9,DEU,Hydrogen (AEL),USA,COST-CAPEX,Carbon"},"PTX-BusinessOpportunityAnalyzer-1.0.9",{"$f":"sel_country_code","v":"DEU"},"Hydrogen (AEL)",{"$f":"_calc!$B$650","v":"USA"},{"$f":"_calc!$BO$582","v":"COST-CAPEX"},{"$f":"_calc!$BU$1","v":"Carbon"},{"$f":"_calc!$BU$650","v":0}]
[{"$f":"_xlfn.TEXTJOIN(\",\",FALSE,output[[#This Row],[scenario]:[process_class]])","v":"PTX-BusinessOpportunityAnalyzer-1.0.9,DEU,Hydrogen (AEL),USA,COST-CAPEX,Derivate production"},"PTX-BusinessOpportunityAnalyzer-1.0.9",{"$f":"sel_country_code","v":"DEU"},"Hydrogen (AEL)",{"$f":"_calc!$B$650","v":"USA"},{"$f":"_calc!$BO$582","v":"COST-CAPEX"},{"$f":"_calc!$BV$1","v":"Derivate production"},{"$f":"_calc!$BV$650","v":0}]
[{"$f":"_xlfn.TEXTJOIN(\",\",FALSE,output[[#This Row],[scenario]:[process_class]])","v":"PTX-BusinessOpportunityAnalyzer-1.0.9,DEU,Hydrogen (AEL),USA,COST-CAPEX,Heat"},"PTX-BusinessOpportunityAnalyzer-1.0.9",{"$f":"sel_country_code","v":"DEU"},"Hydrogen (AEL)",{"$f":"_calc!$B$650","v":"USA"},{"$f":"_calc!$BO$582","v":"COST-CAPEX"},{"$f":"_calc!$BW$1","v":"Heat"},{"$f":"_calc!$BW$650","v":0}]
[{"$f":"_xlfn.TEXTJOIN(\",\",FALSE,output[[#This Row],[scenario]:[process_class]])","v":"PTX-BusinessOpportunityAnalyzer-1.0.9,DEU,Hydrogen (AEL),USA,COST-CAPEX,Electricity and H2 storage"},"PTX-BusinessOpportunityAnalyzer-1.0.9",{"$f":"sel_country_code","v":"DEU"},"Hydrogen (AEL)",{"$f":"_calc!$B$650","v":"USA"},{"$f":"_calc!$BO$582","v":"COST-CAPEX"},{"$f":"_calc!$BX$1","v":"Electricity and H2 storage"},{"$f":"_calc!$BX$650","v":0}]
[{"$f":"_xlfn.TEXTJOIN(\",\",FALSE,output[[#This Row],[scenario]:[process_class]])","v":"PTX-BusinessOpportunityAnalyzer-1.0.9,DEU,Hydrogen (AEL),VNM,COST-CAPEX,Water"},"PTX-BusinessOpportunityAnalyzer-1.0.9",{"$f":"sel_country_code","v":"DEU"},"Hydrogen (AEL)",{"$f":"_calc!$B$651","v":"VNM"},{"$f":"_calc!$BO$582","v":"COST-CAPEX"},{"$f":"_calc!$BP$1","v":"Water"},{"$f":"_calc!$BP$651","v":0.11284589444115428}]
[{"$f":"_xlfn.TEXTJOIN(\",\",FALSE,output[[#This Row],[scenario]:[process_class]])","v":"PTX-BusinessOpportunityAnalyzer-1.0.9,DEU,Hydrogen (AEL),VNM,COST-CAPEX,Electrolysis"},"PTX-BusinessOpportunityAnalyzer-1.0.9",{"$f":"sel_country_code","v":"DEU"},"Hydrogen (AEL)",{"$f":"_calc!$B$651","v":"VNM"},{"$f":"_calc!$BO$582","v":"COST-CAPEX"},{"$f":"_calc!$BQ$1","v":"Electrolysis"},{"$f":"_calc!$BQ$651","v":21.829683721704445}]
[{"$f":"_xlfn.TEXTJOIN(\",\",FALSE,output[[#This Row],[scenario]:[process_class]])","v":"PTX-BusinessOpportunityAnalyzer-1.0.9,DEU,Hydrogen (AEL),VNM,COST-CAPEX,Electricity generation"},"PTX-BusinessOpportunityAnalyzer-1.0.9",{"$f":"sel_country_code","v":"DEU"},"Hydrogen (AEL)",{"$f":"_calc!$B$651","v":"VNM"},{"$f":"_calc!$BO$582","v":"COST-CAPEX"},{"$f":"_calc!$BR$1","v":"Electricity generation"},{"$f":"_calc!$BR$651","v":74.115173840742074}]
[{"$f":"_xlfn.TEXTJOIN(\",\",FALSE,output[[#This Row],[scenario]:[process_class]])","v":"PTX-BusinessOpportunityAnalyzer-1.0.9,DEU,Hydrogen (AEL),VNM,COST-CAPEX,Transportation (Pipeline)"},"PTX-BusinessOpportunityAnalyzer-1.0.9",{"$f":"sel_country_code","v":"DEU"},"Hydrogen (AEL)",{"$f":"_calc!$B$651","v":"VNM"},{"$f":"_calc!$BO$582","v":"COST-CAPEX"},{"$f":"_calc!$BS$1","v":"Transportation (Pipeline)"},{"$f":"_calc!$BS$651","v":0}]
[{"$f":"_xlfn.TEXTJOIN(\",\",FALSE,output[[#This Row],[scenario]:[process_class]])","v":"PTX-BusinessOpportunityAnalyzer-1.0.9,DEU,Hydrogen (AEL),VNM,COST-CAPEX,Transportation (Ship)"},"PTX-BusinessOpportunityAnalyzer-1.0.9",{"$f":"sel_country_code","v":"DEU"},"Hydrogen (AEL)",{"$f":"_calc!$B$651","v":"VNM"},{"$f":"_calc!$BO$582","v":"COST-CAPEX"},{"$f":"_calc!$BT$1","v":"Transportation (Ship)"},{"$f":"_calc!$BT$651","v":49.688853111800448}]
[{"$f":"_xlfn.TEXTJOIN(\",\",FALSE,output[[#This Row],[scenario]:[process_class]])","v":"PTX-BusinessOpportunityAnalyzer-1.0.9,DEU,Hydrogen (AEL),VNM,COST-CAPEX,Carbon"},"PTX-BusinessOpportunityAnalyzer-1.0.9",{"$f":"sel_country_code","v":"DEU"},"Hydrogen (AEL)",{"$f":"_calc!$B$651","v":"VNM"},{"$f":"_calc!$BO$582","v":"COST-CAPEX"},{"$f":"_calc!$BU$1","v":"Carbon"},{"$f":"_calc!$BU$651","v":0}]
[{"$f":"_xlfn.TEXTJOIN(\",\",FALSE,output[[#This Row],[scenario]:[process_class]])","v":"PTX-BusinessOpportunityAnalyzer-1.0.9,DEU,Hydrogen (AEL),VNM,COST-CAPEX,Derivate production"},"PTX-BusinessOpportunityAnalyzer-1.0.9",{"$f":"sel_country_code","v":"DEU"},"Hydrogen (AEL)",{"$f":"_calc!$B$651","v":"VNM"},{"$f":"_calc!$BO$582","v":"COST-CAPEX"},{"$f":"_calc!$BV$1","v":"Derivate production"},{"$f":"_calc!$BV$651","v":0}]
[{"$f":"_xlfn.TEXTJOIN(\",\",FALSE,output[[#This Row],[scenario]:[process_class]])","v":"PTX-BusinessOpportunityAnalyzer-1.0.9,DEU,Hydrogen (AEL),VNM,COST-CAPEX,Heat"},"PTX-BusinessOpportunityAnalyzer-1.0.9",{"$f":"sel_country_code","v":"DEU"},"Hydrogen (AEL)",{"$f":"_calc!$B$651","v":"VNM"},{"$f":"_calc!$BO$582","v":"COST-CAPEX"},{"$f":"_calc!$BW$1","v":"Heat"},{"$f":"_calc!$BW$651","v":0}]
[{"$f":"_xlfn.TEXTJOIN(\",\",FALSE,output[[#This Row],[scenario]:[process_class]])","v":"PTX-BusinessOpportunityAnalyzer-1.0.9,DEU,Hydrogen (AEL),VNM,COST-CAPEX,Electricity and H2 storage"},"PTX-BusinessOpportunityAnalyzer-1.0.9",{"$f":"sel_country_code","v":"DEU"},"Hydrogen (AEL)",{"$f":"_calc!$B$651","v":"VNM"},{"$f":"_calc!$BO$582","v":"COST-CAPEX"},{"$f":"_calc!$BX$1","v":"Electricity and H2 storage"},{"$f":"_calc!$BX$651","v":0}]
[{"$f":"_xlfn.TEXTJOIN(\",\",FALSE,output[[#This Row],[scenario]:[process_class]])","v":"PTX-BusinessOpportunityAnalyzer-1.0.9,DEU,Hydrogen (AEL),ZAF,COST-CAPEX,Water"},"PTX-BusinessOpportunityAnalyzer-1.0.9",{"$f":"sel_country_code","v":"DEU"},"Hydrogen (AEL)",{"$f":"_calc!$B$652","v":"ZAF"},{"$f":"_calc!$BO$582","v":"COST-CAPEX"},{"$f":"_calc!$BP$1","v":"Water"},{"$f":"_calc!$BP$652","v":9.6957102990809466E-2}]
[{"$f":"_xlfn.TEXTJOIN(\",\",FALSE,output[[#This Row],[scenario]:[process_class]])","v":"PTX-BusinessOpportunityAnalyzer-1.0.9,DEU,Hydrogen (AEL),ZAF,COST-CAPEX,Electrolysis"},"PTX-BusinessOpportunityAnalyzer-1.0.9",{"$f":"sel_country_code","v":"DEU"},"Hydrogen (AEL)",{"$f":"_calc!$B$652","v":"ZAF"},{"$f":"_calc!$BO$582","v":"COST-CAPEX"},{"$f":"_calc!$BQ$1","v":"Electrolysis"},{"$f":"_calc!$BQ$652","v":24.534438865630904}]
[{"$f":"_xlfn.TEXTJOIN(\",\",FALSE,output[[#This Row],[scenario]:[process_class]])","v":"PTX-BusinessOpportunityAnalyzer-1.0.9,DEU,Hydrogen (AEL),ZAF,COST-CAPEX,Electricity generation"},"PTX-BusinessOpportunityAnalyzer-1.0.9",{"$f":"sel_country_code","v":"DEU"},"Hydrogen (AEL)",{"$f":"_calc!$B$652","v":"ZAF"},{"$f":"_calc!$BO$582","v":"COST-CAPEX"},{"$f":"_calc!$BR$1","v":"Electricity generation"},{"$f":"_calc!$BR$652","v":55.509073675201094}]
[{"$f":"_xlfn.TEXTJOIN(\",\",FALSE,output[[#This Row],[scenario]:[process_class]])","v":"PTX-BusinessOpportunityAnalyzer-1.0.9,DEU,Hydrogen (AEL),ZAF,COST-CAPEX,Transportation (Pipeline)"},"PTX-BusinessOpportunityAnalyzer-1.0.9",{"$f":"sel_country_code","v":"DEU"},"Hydrogen (AEL)",{"$f":"_calc!$B$652","v":"ZAF"},{"$f":"_calc!$BO$582","v":"COST-CAPEX"},{"$f":"_calc!$BS$1","v":"Transportation (Pipeline)"},{"$f":"_calc!$BS$652","v":0}]
[{"$f":"_xlfn.TEXTJOIN(\",\",FALSE,output[[#This Row],[scenario]:[process_class]])","v":"PTX-BusinessOpportunityAnalyzer-1.0.9,DEU,Hydrogen (AEL),ZAF,COST-CAPEX,Transportation (Ship)"},"PTX-BusinessOpportunityAnalyzer-1.0.9",{"$f":"sel_country_code","v":"DEU"},"Hydrogen (AEL)",{"$f":"_calc!$B$652","v":"ZAF"},{"$f":"_calc!$BO$582","v":"COST-CAPEX"},{"$f":"_calc!$BT$1","v":"Transportation (Ship)"},{"$f":"_calc!$BT$652","v":54.21155593765269}]
[{"$f":"_xlfn.TEXTJOIN(\",\",FALSE,output[[#This Row],[scenario]:[process_class]])","v":"PTX-BusinessOpportunityAnalyzer-1.0.9,DEU,Hydrogen (AEL),ZAF,COST-CAPEX,Carbon"},"PTX-BusinessOpportunityAnalyzer-1.0.9",{"$f":"sel_country_code","v":"DEU"},"Hydrogen (AEL)",{"$f":"_calc!$B$652","v":"ZAF"},{"$f":"_calc!$BO$582","v":"COST-CAPEX"},{"$f":"_calc!$BU$1","v":"Carbon"},{"$f":"_calc!$BU$652","v":0}]
[{"$f":"_xlfn.TEXTJOIN(\",\",FALSE,output[[#This Row],[scenario]:[process_class]])","v":"PTX-BusinessOpportunityAnalyzer-1.0.9,DEU,Hydrogen (AEL),ZAF,COST-CAPEX,Derivate production"},"PTX-BusinessOpportunityAnalyzer-1.0.9",{"$f":"sel_country_code","v":"DEU"},"Hydrogen (AEL)",{"$f":"_calc!$B$652","v":"ZAF"},{"$f":"_calc!$BO$582","v":"COST-CAPEX"},{"$f":"_calc!$BV$1","v":"Derivate production"},{"$f":"_calc!$BV$652","v":0}]
[{"$f":"_xlfn.TEXTJOIN(\",\",FALSE,output[[#This Row],[scenario]:[process_class]])","v":"PTX-BusinessOpportunityAnalyzer-1.0.9,DEU,Hydrogen (AEL),ZAF,COST-CAPEX,Heat"},"PTX-BusinessOpportunityAnalyzer-1.0.9",{"$f":"sel_country_code","v":"DEU"},"Hydrogen (AEL)",{"$f":"_calc!$B$652","v":"ZAF"},{"$f":"_calc!$BO$582","v":"COST-CAPEX"},{"$f":"_calc!$BW$1","v":"Heat"},{"$f":"_calc!$BW$652","v":0}]
[{"$f":"_xlfn.TEXTJOIN(\",\",FALSE,output[[#This Row],[scenario]:[process_class]])","v":"PTX-BusinessOpportunityAnalyzer-1.0.9,DEU,Hydrogen (AEL),ZAF,COST-CAPEX,Electricity and H2 storage"},"PTX-BusinessOpportunityAnalyzer-1.0.9",{"$f":"sel_country_code","v":"DEU"},"Hydrogen (AEL)",{"$f":"_calc!$B$652","v":"ZAF"},{"$f":"_calc!$BO$582","v":"COST-CAPEX"},{"$f":"_calc!$BX$1","v":"Electricity and H2 storage"},{"$f":"_calc!$BX$652","v":0}]
[{"$f":"_xlfn.TEXTJOIN(\",\",FALSE,output[[#This Row],[scenario]:[process_class]])","v":"PTX-BusinessOpportunityAnalyzer-1.0.9,DEU,Hydrogen (AEL),ZAF-EC,COST-CAPEX,Water"},"PTX-BusinessOpportunityAnalyzer-1.0.9",{"$f":"sel_country_code","v":"DEU"},"Hydrogen (AEL)",{"$f":"_calc!$B$653","v":"ZAF-EC"},{"$f":"_calc!$BO$582","v":"COST-CAPEX"},{"$f":"_calc!$BP$1","v":"Water"},{"$f":"_calc!$BP$653","v":9.6957102990809466E-2}]
[{"$f":"_xlfn.TEXTJOIN(\",\",FALSE,output[[#This Row],[scenario]:[process_class]])","v":"PTX-BusinessOpportunityAnalyzer-1.0.9,DEU,Hydrogen (AEL),ZAF-EC,COST-CAPEX,Electrolysis"},"PTX-BusinessOpportunityAnalyzer-1.0.9",{"$f":"sel_country_code","v":"DEU"},"Hydrogen (AEL)",{"$f":"_calc!$B$653","v":"ZAF-EC"},{"$f":"_calc!$BO$582","v":"COST-CAPEX"},{"$f":"_calc!$BQ$1","v":"Electrolysis"},{"$f":"_calc!$BQ$653","v":16.42870500753024}]
[{"$f":"_xlfn.TEXTJOIN(\",\",FALSE,output[[#This Row],[scenario]:[process_class]])","v":"PTX-BusinessOpportunityAnalyzer-1.0.9,DEU,Hydrogen (AEL),ZAF-EC,COST-CAPEX,Electricity generation"},"PTX-BusinessOpportunityAnalyzer-1.0.9",{"$f":"sel_country_code","v":"DEU"},"Hydrogen (AEL)",{"$f":"_calc!$B$653","v":"ZAF-EC"},{"$f":"_calc!$BO$582","v":"COST-CAPEX"},{"$f":"_calc!$BR$1","v":"Electricity generation"},{"$f":"_calc!$BR$653","v":45.99686790876769}]
[{"$f":"_xlfn.TEXTJOIN(\",\",FALSE,output[[#This Row],[scenario]:[process_class]])","v":"PTX-BusinessOpportunityAnalyzer-1.0.9,DEU,Hydrogen (AEL),ZAF-EC,COST-CAPEX,Transportation (Pipeline)"},"PTX-BusinessOpportunityAnalyzer-1.0.9",{"$f":"sel_country_code","v":"DEU"},"Hydrogen (AEL)",{"$f":"_calc!$B$653","v":"ZAF-EC"},{"$f":"_calc!$BO$582","v":"COST-CAPEX"},{"$f":"_calc!$BS$1","v":"Transportation (Pipeline)"},{"$f":"_calc!$BS$653","v":0}]
[{"$f":"_xlfn.TEXTJOIN(\",\",FALSE,output[[#This Row],[scenario]:[process_class]])","v":"PTX-BusinessOpportunityAnalyzer-1.0.9,DEU,Hydrogen (AEL),ZAF-EC,COST-CAPEX,Transportation (Ship)"},"PTX-BusinessOpportunityAnalyzer-1.0.9",{"$f":"sel_country_code","v":"DEU"},"Hydrogen (AEL)",{"$f":"_calc!$B$653","v":"ZAF-EC"},{"$f":"_calc!$BO$582","v":"COST-CAPEX"},{"$f":"_calc!$BT$1","v":"Transportation (Ship)"},{"$f":"_calc!$BT$653","v":37.227190993945193}]
[{"$f":"_xlfn.TEXTJOIN(\",\",FALSE,output[[#This Row],[scenario]:[process_class]])","v":"PTX-BusinessOpportunityAnalyzer-1.0.9,DEU,Hydrogen (AEL),ZAF-EC,COST-CAPEX,Carbon"},"PTX-BusinessOpportunityAnalyzer-1.0.9",{"$f":"sel_country_code","v":"DEU"},"Hydrogen (AEL)",{"$f":"_calc!$B$653","v":"ZAF-EC"},{"$f":"_calc!$BO$582","v":"COST-CAPEX"},{"$f":"_calc!$BU$1","v":"Carbon"},{"$f":"_calc!$BU$653","v":0}]
[{"$f":"_xlfn.TEXTJOIN(\",\",FALSE,output[[#This Row],[scenario]:[process_class]])","v":"PTX-BusinessOpportunityAnalyzer-1.0.9,DEU,Hydrogen (AEL),ZAF-EC,COST-CAPEX,Derivate production"},"PTX-BusinessOpportunityAnalyzer-1.0.9",{"$f":"sel_country_code","v":"DEU"},"Hydrogen (AEL)",{"$f":"_calc!$B$653","v":"ZAF-EC"},{"$f":"_calc!$BO$582","v":"COST-CAPEX"},{"$f":"_calc!$BV$1","v":"Derivate production"},{"$f":"_calc!$BV$653","v":0}]
[{"$f":"_xlfn.TEXTJOIN(\",\",FALSE,output[[#This Row],[scenario]:[process_class]])","v":"PTX-BusinessOpportunityAnalyzer-1.0.9,DEU,Hydrogen (AEL),ZAF-EC,COST-CAPEX,Heat"},"PTX-BusinessOpportunityAnalyzer-1.0.9",{"$f":"sel_country_code","v":"DEU"},"Hydrogen (AEL)",{"$f":"_calc!$B$653","v":"ZAF-EC"},{"$f":"_calc!$BO$582","v":"COST-CAPEX"},{"$f":"_calc!$BW$1","v":"Heat"},{"$f":"_calc!$BW$653","v":0}]
[{"$f":"_xlfn.TEXTJOIN(\",\",FALSE,output[[#This Row],[scenario]:[process_class]])","v":"PTX-BusinessOpportunityAnalyzer-1.0.9,DEU,Hydrogen (AEL),ZAF-EC,COST-CAPEX,Electricity and H2 storage"},"PTX-BusinessOpportunityAnalyzer-1.0.9",{"$f":"sel_country_code","v":"DEU"},"Hydrogen (AEL)",{"$f":"_calc!$B$653","v":"ZAF-EC"},{"$f":"_calc!$BO$582","v":"COST-CAPEX"},{"$f":"_calc!$BX$1","v":"Electricity and H2 storage"},{"$f":"_calc!$BX$653","v":0}]
[{"$f":"_xlfn.TEXTJOIN(\",\",FALSE,output[[#This Row],[scenario]:[process_class]])","v":"PTX-BusinessOpportunityAnalyzer-1.0.9,DEU,Hydrogen (AEL),ZAF-FRS,COST-CAPEX,Water"},"PTX-BusinessOpportunityAnalyzer-1.0.9",{"$f":"sel_country_code","v":"DEU"},"Hydrogen (AEL)",{"$f":"_calc!$B$654","v":"ZAF-FRS"},{"$f":"_calc!$BO$582","v":"COST-CAPEX"},{"$f":"_calc!$BP$1","v":"Water"},{"$f":"_calc!$BP$654","v":9.6957102990809466E-2}]
[{"$f":"_xlfn.TEXTJOIN(\",\",FALSE,output[[#This Row],[scenario]:[process_class]])","v":"PTX-BusinessOpportunityAnalyzer-1.0.9,DEU,Hydrogen (AEL),ZAF-FRS,COST-CAPEX,Electrolysis"},{"$f":"output_scenario_name","v":"PTX-BusinessOpportunityAnalyzer-1.0.9"},{"$f":"sel_country_code","v":"DEU"},{"$f":"sel_chain","v":"Hydrogen (AEL)"},{"$f":"_calc!$B$654","v":"ZAF-FRS"},{"$f":"_calc!$BO$582","v":"COST-CAPEX"},{"$f":"_calc!$BQ$1","v":"Electrolysis"},{"$f":"_calc!$BQ$654","v":20.078536252292608}]
[{"$f":"_xlfn.TEXTJOIN(\",\",FALSE,output[[#This Row],[scenario]:[process_class]])","v":"PTX-BusinessOpportunityAnalyzer-1.0.9,DEU,Hydrogen (AEL),ZAF-FRS,COST-CAPEX,Electricity generation"},"PTX-BusinessOpportunityAnalyzer-1.0.9",{"$f":"sel_country_code","v":"DEU"},"Hydrogen (AEL)",{"$f":"_calc!$B$654","v":"ZAF-FRS"},{"$f":"_calc!$BO$582","v":"COST-CAPEX"},{"$f":"_calc!$BR$1","v":"Electricity generation"},{"$f":"_calc!$BR$654","v":54.96784882845273}]
[{"$f":"_xlfn.TEXTJOIN(\",\",FALSE,output[[#This Row],[scenario]:[process_class]])","v":"PTX-BusinessOpportunityAnalyzer-1.0.9,DEU,Hydrogen (AEL),ZAF-FRS,COST-CAPEX,Transportation (Pipeline)"},"PTX-BusinessOpportunityAnalyzer-1.0.9",{"$f":"sel_country_code","v":"DEU"},"Hydrogen (AEL)",{"$f":"_calc!$B$654","v":"ZAF-FRS"},{"$f":"_calc!$BO$582","v":"COST-CAPEX"},{"$f":"_calc!$BS$1","v":"Transportation (Pipeline)"},{"$f":"_calc!$BS$654","v":0}]
[{"$f":"_xlfn.TEXTJOIN(\",\",FALSE,output[[#This Row],[scenario]:[process_class]])","v":"PTX-BusinessOpportunityAnalyzer-1.0.9,DEU,Hydrogen (AEL),ZAF-FRS,COST-CAPEX,Transportation (Ship)"},"PTX-BusinessOpportunityAnalyzer-1.0.9",{"$f":"sel_country_code","v":"DEU"},"Hydrogen (AEL)",{"$f":"_calc!$B$654","v":"ZAF-FRS"},{"$f":"_calc!$BO$582","v":"COST-CAPEX"},{"$f":"_calc!$BT$1","v":"Transportation (Ship)"},{"$f":"_calc!$BT$654","v":44.959517573369673}]
[{"$f":"_xlfn.TEXTJOIN(\",\",FALSE,output[[#This Row],[scenario]:[process_class]])","v":"PTX-BusinessOpportunityAnalyzer-1.0.9,DEU,Hydrogen (AEL),ZAF-FRS,COST-CAPEX,Carbon"},"PTX-BusinessOpportunityAnalyzer-1.0.9",{"$f":"sel_country_code","v":"DEU"},"Hydrogen (AEL)",{"$f":"_calc!$B$654","v":"ZAF-FRS"},{"$f":"_calc!$BO$582","v":"COST-CAPEX"},{"$f":"_calc!$BU$1","v":"Carbon"},{"$f":"_calc!$BU$654","v":0}]
[{"$f":"_xlfn.TEXTJOIN(\",\",FALSE,output[[#This Row],[scenario]:[process_class]])","v":"PTX-BusinessOpportunityAnalyzer-1.0.9,DEU,Hydrogen (AEL),ZAF-FRS,COST-CAPEX,Derivate production"},"PTX-BusinessOpportunityAnalyzer-1.0.9",{"$f":"sel_country_code","v":"DEU"},"Hydrogen (AEL)",{"$f":"_calc!$B$654","v":"ZAF-FRS"},{"$f":"_calc!$BO$582","v":"COST-CAPEX"},{"$f":"_calc!$BV$1","v":"Derivate production"},{"$f":"_calc!$BV$654","v":0}]
[{"$f":"_xlfn.TEXTJOIN(\",\",FALSE,output[[#This Row],[scenario]:[process_class]])","v":"PTX-BusinessOpportunityAnalyzer-1.0.9,DEU,Hydrogen (AEL),ZAF-FRS,COST-CAPEX,Heat"},"PTX-BusinessOpportunityAnalyzer-1.0.9",{"$f":"sel_country_code","v":"DEU"},"Hydrogen (AEL)",{"$f":"_calc!$B$654","v":"ZAF-FRS"},{"$f":"_calc!$BO$582","v":"COST-CAPEX"},{"$f":"_calc!$BW$1","v":"Heat"},{"$f":"_calc!$BW$654","v":0}]
[{"$f":"_xlfn.TEXTJOIN(\",\",FALSE,output[[#This Row],[scenario]:[process_class]])","v":"PTX-BusinessOpportunityAnalyzer-1.0.9,DEU,Hydrogen (AEL),ZAF-FRS,COST-CAPEX,Electricity and H2 storage"},"PTX-BusinessOpportunityAnalyzer-1.0.9",{"$f":"sel_country_code","v":"DEU"},"Hydrogen (AEL)",{"$f":"_calc!$B$654","v":"ZAF-FRS"},{"$f":"_calc!$BO$582","v":"COST-CAPEX"},{"$f":"_calc!$BX$1","v":"Electricity and H2 storage"},{"$f":"_calc!$BX$654","v":0}]
[{"$f":"_xlfn.TEXTJOIN(\",\",FALSE,output[[#This Row],[scenario]:[process_class]])","v":"PTX-BusinessOpportunityAnalyzer-1.0.9,DEU,Hydrogen (AEL),ZAF-GAU,COST-CAPEX,Water"},"PTX-BusinessOpportunityAnalyzer-1.0.9",{"$f":"sel_country_code","v":"DEU"},"Hydrogen (AEL)",{"$f":"_calc!$B$655","v":"ZAF-GAU"},{"$f":"_calc!$BO$582","v":"COST-CAPEX"},{"$f":"_calc!$BP$1","v":"Water"},{"$f":"_calc!$BP$655","v":9.6957102990809466E-2}]
[{"$f":"_xlfn.TEXTJOIN(\",\",FALSE,output[[#This Row],[scenario]:[process_class]])","v":"PTX-BusinessOpportunityAnalyzer-1.0.9,DEU,Hydrogen (AEL),ZAF-GAU,COST-CAPEX,Electrolysis"},"PTX-BusinessOpportunityAnalyzer-1.0.9",{"$f":"sel_country_code","v":"DEU"},"Hydrogen (AEL)",{"$f":"_calc!$B$655","v":"ZAF-GAU"},{"$f":"_calc!$BO$582","v":"COST-CAPEX"},{"$f":"_calc!$BQ$1","v":"Electrolysis"},{"$f":"_calc!$BQ$655","v":24.250601372347123}]
[{"$f":"_xlfn.TEXTJOIN(\",\",FALSE,output[[#This Row],[scenario]:[process_class]])","v":"PTX-BusinessOpportunityAnalyzer-1.0.9,DEU,Hydrogen (AEL),ZAF-GAU,COST-CAPEX,Electricity generation"},"PTX-BusinessOpportunityAnalyzer-1.0.9",{"$f":"sel_country_code","v":"DEU"},"Hydrogen (AEL)",{"$f":"_calc!$B$655","v":"ZAF-GAU"},{"$f":"_calc!$BO$582","v":"COST-CAPEX"},{"$f":"_calc!$BR$1","v":"Electricity generation"},{"$f":"_calc!$BR$655","v":64.746715576849084}]
[{"$f":"_xlfn.TEXTJOIN(\",\",FALSE,output[[#This Row],[scenario]:[process_class]])","v":"PTX-BusinessOpportunityAnalyzer-1.0.9,DEU,Hydrogen (AEL),ZAF-GAU,COST-CAPEX,Transportation (Pipeline)"},"PTX-BusinessOpportunityAnalyzer-1.0.9",{"$f":"sel_country_code","v":"DEU"},"Hydrogen (AEL)",{"$f":"_calc!$B$655","v":"ZAF-GAU"},{"$f":"_calc!$BO$582","v":"COST-CAPEX"},{"$f":"_calc!$BS$1","v":"Transportation (Pipeline)"},{"$f":"_calc!$BS$655","v":0}]
[{"$f":"_xlfn.TEXTJOIN(\",\",FALSE,output[[#This Row],[scenario]:[process_class]])","v":"PTX-BusinessOpportunityAnalyzer-1.0.9,DEU,Hydrogen (AEL),ZAF-GAU,COST-CAPEX,Transportation (Ship)"},"PTX-BusinessOpportunityAnalyzer-1.0.9",{"$f":"sel_country_code","v":"DEU"},"Hydrogen (AEL)",{"$f":"_calc!$B$655","v":"ZAF-GAU"},{"$f":"_calc!$BO$582","v":"COST-CAPEX"},{"$f":"_calc!$BT$1","v":"Transportation (Ship)"},{"$f":"_calc!$BT$655","v":53.46941562281615}]
[{"$f":"_xlfn.TEXTJOIN(\",\",FALSE,output[[#This Row],[scenario]:[process_class]])","v":"PTX-BusinessOpportunityAnalyzer-1.0.9,DEU,Hydrogen (AEL),ZAF-GAU,COST-CAPEX,Carbon"},"PTX-BusinessOpportunityAnalyzer-1.0.9",{"$f":"sel_country_code","v":"DEU"},"Hydrogen (AEL)",{"$f":"_calc!$B$655","v":"ZAF-GAU"},{"$f":"_calc!$BO$582","v":"COST-CAPEX"},{"$f":"_calc!$BU$1","v":"Carbon"},{"$f":"_calc!$BU$655","v":0}]
[{"$f":"_xlfn.TEXTJOIN(\",\",FALSE,output[[#This Row],[scenario]:[process_class]])","v":"PTX-BusinessOpportunityAnalyzer-1.0.9,DEU,Hydrogen (AEL),ZAF-GAU,COST-CAPEX,Derivate production"},"PTX-BusinessOpportunityAnalyzer-1.0.9",{"$f":"sel_country_code","v":"DEU"},"Hydrogen (AEL)",{"$f":"_calc!$B$655","v":"ZAF-GAU"},{"$f":"_calc!$BO$582","v":"COST-CAPEX"},{"$f":"_calc!$BV$1","v":"Derivate production"},{"$f":"_calc!$BV$655","v":0}]
[{"$f":"_xlfn.TEXTJOIN(\",\",FALSE,output[[#This Row],[scenario]:[process_class]])","v":"PTX-BusinessOpportunityAnalyzer-1.0.9,DEU,Hydrogen (AEL),ZAF-GAU,COST-CAPEX,Heat"},"PTX-BusinessOpportunityAnalyzer-1.0.9",{"$f":"sel_country_code","v":"DEU"},"Hydrogen (AEL)",{"$f":"_calc!$B$655","v":"ZAF-GAU"},{"$f":"_calc!$BO$582","v":"COST-CAPEX"},{"$f":"_calc!$BW$1","v":"Heat"},{"$f":"_calc!$BW$655","v":0}]
[{"$f":"_xlfn.TEXTJOIN(\",\",FALSE,output[[#This Row],[scenario]:[process_class]])","v":"PTX-BusinessOpportunityAnalyzer-1.0.9,DEU,Hydrogen (AEL),ZAF-GAU,COST-CAPEX,Electricity and H2 storage"},"PTX-BusinessOpportunityAnalyzer-1.0.9",{"$f":"sel_country_code","v":"DEU"},"Hydrogen (AEL)",{"$f":"_calc!$B$655","v":"ZAF-GAU"},{"$f":"_calc!$BO$582","v":"COST-CAPEX"},{"$f":"_calc!$BX$1","v":"Electricity and H2 storage"},{"$f":"_calc!$BX$655","v":0}]
[{"$f":"_xlfn.TEXTJOIN(\",\",FALSE,output[[#This Row],[scenario]:[process_class]])","v":"PTX-BusinessOpportunityAnalyzer-1.0.9,DEU,Hydrogen (AEL),ZAF-KWA,COST-CAPEX,Water"},"PTX-BusinessOpportunityAnalyzer-1.0.9",{"$f":"sel_country_code","v":"DEU"},"Hydrogen (AEL)",{"$f":"_calc!$B$656","v":"ZAF-KWA"},{"$f":"_calc!$BO$582","v":"COST-CAPEX"},{"$f":"_calc!$BP$1","v":"Water"},{"$f":"_calc!$BP$656","v":9.6957102990809466E-2}]
[{"$f":"_xlfn.TEXTJOIN(\",\",FALSE,output[[#This Row],[scenario]:[process_class]])","v":"PTX-BusinessOpportunityAnalyzer-1.0.9,DEU,Hydrogen (AEL),ZAF-KWA,COST-CAPEX,Electrolysis"},"PTX-BusinessOpportunityAnalyzer-1.0.9",{"$f":"sel_country_code","v":"DEU"},"Hydrogen (AEL)",{"$f":"_calc!$B$656","v":"ZAF-KWA"},{"$f":"_calc!$BO$582","v":"COST-CAPEX"},{"$f":"_calc!$BQ$1","v":"Electrolysis"},{"$f":"_calc!$BQ$656","v":20.925218729397923}]
[{"$f":"_xlfn.TEXTJOIN(\",\",FALSE,output[[#This Row],[scenario]:[process_class]])","v":"PTX-BusinessOpportunityAnalyzer-1.0.9,DEU,Hydrogen (AEL),ZAF-KWA,COST-CAPEX,Electricity generation"},"PTX-BusinessOpportunityAnalyzer-1.0.9",{"$f":"sel_country_code","v":"DEU"},"Hydrogen (AEL)",{"$f":"_calc!$B$656","v":"ZAF-KWA"},{"$f":"_calc!$BO$582","v":"COST-CAPEX"},{"$f":"_calc!$BR$1","v":"Electricity generation"},{"$f":"_calc!$BR$656","v":56.992308036222646}]
[{"$f":"_xlfn.TEXTJOIN(\",\",FALSE,output[[#This Row],[scenario]:[process_class]])","v":"PTX-BusinessOpportunityAnalyzer-1.0.9,DEU,Hydrogen (AEL),ZAF-KWA,COST-CAPEX,Transportation (Pipeline)"},"PTX-BusinessOpportunityAnalyzer-1.0.9",{"$f":"sel_country_code","v":"DEU"},"Hydrogen (AEL)",{"$f":"_calc!$B$656","v":"ZAF-KWA"},{"$f":"_calc!$BO$582","v":"COST-CAPEX"},{"$f":"_calc!$BS$1","v":"Transportation (Pipeline)"},{"$f":"_calc!$BS$656","v":0}]
[{"$f":"_xlfn.TEXTJOIN(\",\",FALSE,output[[#This Row],[scenario]:[process_class]])","v":"PTX-BusinessOpportunityAnalyzer-1.0.9,DEU,Hydrogen (AEL),ZAF-KWA,COST-CAPEX,Transportation (Ship)"},"PTX-BusinessOpportunityAnalyzer-1.0.9",{"$f":"sel_country_code","v":"DEU"},"Hydrogen (AEL)",{"$f":"_calc!$B$656","v":"ZAF-KWA"},{"$f":"_calc!$BO$582","v":"COST-CAPEX"},{"$f":"_calc!$BT$1","v":"Transportation (Ship)"},{"$f":"_calc!$BT$656","v":46.785939765158709}]
[{"$f":"_xlfn.TEXTJOIN(\",\",FALSE,output[[#This Row],[scenario]:[process_class]])","v":"PTX-BusinessOpportunityAnalyzer-1.0.9,DEU,Hydrogen (AEL),ZAF-KWA,COST-CAPEX,Carbon"},"PTX-BusinessOpportunityAnalyzer-1.0.9",{"$f":"sel_country_code","v":"DEU"},"Hydrogen (AEL)",{"$f":"_calc!$B$656","v":"ZAF-KWA"},{"$f":"_calc!$BO$582","v":"COST-CAPEX"},{"$f":"_calc!$BU$1","v":"Carbon"},{"$f":"_calc!$BU$656","v":0}]
[{"$f":"_xlfn.TEXTJOIN(\",\",FALSE,output[[#This Row],[scenario]:[process_class]])","v":"PTX-BusinessOpportunityAnalyzer-1.0.9,DEU,Hydrogen (AEL),ZAF-KWA,COST-CAPEX,Derivate production"},"PTX-BusinessOpportunityAnalyzer-1.0.9",{"$f":"sel_country_code","v":"DEU"},"Hydrogen (AEL)",{"$f":"_calc!$B$656","v":"ZAF-KWA"},{"$f":"_calc!$BO$582","v":"COST-CAPEX"},{"$f":"_calc!$BV$1","v":"Derivate production"},{"$f":"_calc!$BV$656","v":0}]
[{"$f":"_xlfn.TEXTJOIN(\",\",FALSE,output[[#This Row],[scenario]:[process_class]])","v":"PTX-BusinessOpportunityAnalyzer-1.0.9,DEU,Hydrogen (AEL),ZAF-KWA,COST-CAPEX,Heat"},"PTX-BusinessOpportunityAnalyzer-1.0.9",{"$f":"sel_country_code","v":"DEU"},"Hydrogen (AEL)",{"$f":"_calc!$B$656","v":"ZAF-KWA"},{"$f":"_calc!$BO$582","v":"COST-CAPEX"},{"$f":"_calc!$BW$1","v":"Heat"},{"$f":"_calc!$BW$656","v":0}]
[{"$f":"_xlfn.TEXTJOIN(\",\",FALSE,output[[#This Row],[scenario]:[process_class]])","v":"PTX-BusinessOpportunityAnalyzer-1.0.9,DEU,Hydrogen (AEL),ZAF-KWA,COST-CAPEX,Electricity and H2 storage"},"PTX-BusinessOpportunityAnalyzer-1.0.9",{"$f":"sel_country_code","v":"DEU"},"Hydrogen (AEL)",{"$f":"_calc!$B$656","v":"ZAF-KWA"},{"$f":"_calc!$BO$582","v":"COST-CAPEX"},{"$f":"_calc!$BX$1","v":"Electricity and H2 storage"},{"$f":"_calc!$BX$656","v":0}]
[{"$f":"_xlfn.TEXTJOIN(\",\",FALSE,output[[#This Row],[scenario]:[process_class]])","v":"PTX-BusinessOpportunityAnalyzer-1.0.9,DEU,Hydrogen (AEL),ZAF-LIM,COST-CAPEX,Water"},"PTX-BusinessOpportunityAnalyzer-1.0.9",{"$f":"sel_country_code","v":"DEU"},"Hydrogen (AEL)",{"$f":"_calc!$B$657","v":"ZAF-LIM"},{"$f":"_calc!$BO$582","v":"COST-CAPEX"},{"$f":"_calc!$BP$1","v":"Water"},{"$f":"_calc!$BP$657","v":9.6957102990809466E-2}]
[{"$f":"_xlfn.TEXTJOIN(\",\",FALSE,output[[#This Row],[scenario]:[process_class]])","v":"PTX-BusinessOpportunityAnalyzer-1.0.9,DEU,Hydrogen (AEL),ZAF-LIM,COST-CAPEX,Electrolysis"},"PTX-BusinessOpportunityAnalyzer-1.0.9",{"$f":"sel_country_code","v":"DEU"},"Hydrogen (AEL)",{"$f":"_calc!$B$657","v":"ZAF-LIM"},{"$f":"_calc!$BO$582","v":"COST-CAPEX"},{"$f":"_calc!$BQ$1","v":"Electrolysis"},{"$f":"_calc!$BQ$657","v":21.12380144440084}]
[{"$f":"_xlfn.TEXTJOIN(\",\",FALSE,output[[#This Row],[scenario]:[process_class]])","v":"PTX-BusinessOpportunityAnalyzer-1.0.9,DEU,Hydrogen (AEL),ZAF-LIM,COST-CAPEX,Electricity generation"},"PTX-BusinessOpportunityAnalyzer-1.0.9",{"$f":"sel_country_code","v":"DEU"},"Hydrogen (AEL)",{"$f":"_calc!$B$657","v":"ZAF-LIM"},{"$f":"_calc!$BO$582","v":"COST-CAPEX"},{"$f":"_calc!$BR$1","v":"Electricity generation"},{"$f":"_calc!$BR$657","v":57.464129798394701}]
[{"$f":"_xlfn.TEXTJOIN(\",\",FALSE,output[[#This Row],[scenario]:[process_class]])","v":"PTX-BusinessOpportunityAnalyzer-1.0.9,DEU,Hydrogen (AEL),ZAF-LIM,COST-CAPEX,Transportation (Pipeline)"},"PTX-BusinessOpportunityAnalyzer-1.0.9",{"$f":"sel_country_code","v":"DEU"},"Hydrogen (AEL)",{"$f":"_calc!$B$657","v":"ZAF-LIM"},{"$f":"_calc!$BO$582","v":"COST-CAPEX"},{"$f":"_calc!$BS$1","v":"Transportation (Pipeline)"},{"$f":"_calc!$BS$657","v":0}]
[{"$f":"_xlfn.TEXTJOIN(\",\",FALSE,output[[#This Row],[scenario]:[process_class]])","v":"PTX-BusinessOpportunityAnalyzer-1.0.9,DEU,Hydrogen (AEL),ZAF-LIM,COST-CAPEX,Transportation (Ship)"},"PTX-BusinessOpportunityAnalyzer-1.0.9",{"$f":"sel_country_code","v":"DEU"},"Hydrogen (AEL)",{"$f":"_calc!$B$657","v":"ZAF-LIM"},{"$f":"_calc!$BO$582","v":"COST-CAPEX"},{"$f":"_calc!$BT$1","v":"Transportation (Ship)"},{"$f":"_calc!$BT$657","v":47.216128903070555}]
[{"$f":"_xlfn.TEXTJOIN(\",\",FALSE,output[[#This Row],[scenario]:[process_class]])","v":"PTX-BusinessOpportunityAnalyzer-1.0.9,DEU,Hydrogen (AEL),ZAF-LIM,COST-CAPEX,Carbon"},"PTX-BusinessOpportunityAnalyzer-1.0.9",{"$f":"sel_country_code","v":"DEU"},"Hydrogen (AEL)",{"$f":"_calc!$B$657","v":"ZAF-LIM"},{"$f":"_calc!$BO$582","v":"COST-CAPEX"},{"$f":"_calc!$BU$1","v":"Carbon"},{"$f":"_calc!$BU$657","v":0}]
[{"$f":"_xlfn.TEXTJOIN(\",\",FALSE,output[[#This Row],[scenario]:[process_class]])","v":"PTX-BusinessOpportunityAnalyzer-1.0.9,DEU,Hydrogen (AEL),ZAF-LIM,COST-CAPEX,Derivate production"},"PTX-BusinessOpportunityAnalyzer-1.0.9",{"$f":"sel_country_code","v":"DEU"},"Hydrogen (AEL)",{"$f":"_calc!$B$657","v":"ZAF-LIM"},{"$f":"_calc!$BO$582","v":"COST-CAPEX"},{"$f":"_calc!$BV$1","v":"Derivate production"},{"$f":"_calc!$BV$657","v":0}]
[{"$f":"_xlfn.TEXTJOIN(\",\",FALSE,output[[#This Row],[scenario]:[process_class]])","v":"PTX-BusinessOpportunityAnalyzer-1.0.9,DEU,Hydrogen (AEL),ZAF-LIM,COST-CAPEX,Heat"},"PTX-BusinessOpportunityAnalyzer-1.0.9",{"$f":"sel_country_code","v":"DEU"},"Hydrogen (AEL)",{"$f":"_calc!$B$657","v":"ZAF-LIM"},{"$f":"_calc!$BO$582","v":"COST-CAPEX"},{"$f":"_calc!$BW$1","v":"Heat"},{"$f":"_calc!$BW$657","v":0}]
[{"$f":"_xlfn.TEXTJOIN(\",\",FALSE,output[[#This Row],[scenario]:[process_class]])","v":"PTX-BusinessOpportunityAnalyzer-1.0.9,DEU,Hydrogen (AEL),ZAF-LIM,COST-CAPEX,Electricity and H2 storage"},"PTX-BusinessOpportunityAnalyzer-1.0.9",{"$f":"sel_country_code","v":"DEU"},"Hydrogen (AEL)",{"$f":"_calc!$B$657","v":"ZAF-LIM"},{"$f":"_calc!$BO$582","v":"COST-CAPEX"},{"$f":"_calc!$BX$1","v":"Electricity and H2 storage"},{"$f":"_calc!$BX$657","v":0}]
[{"$f":"_xlfn.TEXTJOIN(\",\",FALSE,output[[#This Row],[scenario]:[process_class]])","v":"PTX-BusinessOpportunityAnalyzer-1.0.9,DEU,Hydrogen (AEL),ZAF-MPU,COST-CAPEX,Water"},"PTX-BusinessOpportunityAnalyzer-1.0.9",{"$f":"sel_country_code","v":"DEU"},"Hydrogen (AEL)",{"$f":"_calc!$B$658","v":"ZAF-MPU"},{"$f":"_calc!$BO$582","v":"COST-CAPEX"},{"$f":"_calc!$BP$1","v":"Water"},{"$f":"_calc!$BP$658","v":9.6957102990809466E-2}]
[{"$f":"_xlfn.TEXTJOIN(\",\",FALSE,output[[#This Row],[scenario]:[process_class]])","v":"PTX-BusinessOpportunityAnalyzer-1.0.9,DEU,Hydrogen (AEL),ZAF-MPU,COST-CAPEX,Electrolysis"},"PTX-BusinessOpportunityAnalyzer-1.0.9",{"$f":"sel_country_code","v":"DEU"},"Hydrogen (AEL)",{"$f":"_calc!$B$658","v":"ZAF-MPU"},{"$f":"_calc!$BO$582","v":"COST-CAPEX"},{"$f":"_calc!$BQ$1","v":"Electrolysis"},{"$f":"_calc!$BQ$658","v":21.12380144440084}]
[{"$f":"_xlfn.TEXTJOIN(\",\",FALSE,output[[#This Row],[scenario]:[process_class]])","v":"PTX-BusinessOpportunityAnalyzer-1.0.9,DEU,Hydrogen (AEL),ZAF-MPU,COST-CAPEX,Electricity generation"},"PTX-BusinessOpportunityAnalyzer-1.0.9",{"$f":"sel_country_code","v":"DEU"},"Hydrogen (AEL)",{"$f":"_calc!$B$658","v":"ZAF-MPU"},{"$f":"_calc!$BO$582","v":"COST-CAPEX"},{"$f":"_calc!$BR$1","v":"Electricity generation"},{"$f":"_calc!$BR$658","v":57.464129798394701}]
[{"$f":"_xlfn.TEXTJOIN(\",\",FALSE,output[[#This Row],[scenario]:[process_class]])","v":"PTX-BusinessOpportunityAnalyzer-1.0.9,DEU,Hydrogen (AEL),ZAF-MPU,COST-CAPEX,Transportation (Pipeline)"},"PTX-BusinessOpportunityAnalyzer-1.0.9",{"$f":"sel_country_code","v":"DEU"},"Hydrogen (AEL)",{"$f":"_calc!$B$658","v":"ZAF-MPU"},{"$f":"_calc!$BO$582","v":"COST-CAPEX"},{"$f":"_calc!$BS$1","v":"Transportation (Pipeline)"},{"$f":"_calc!$BS$658","v":0}]
[{"$f":"_xlfn.TEXTJOIN(\",\",FALSE,output[[#This Row],[scenario]:[process_class]])","v":"PTX-BusinessOpportunityAnalyzer-1.0.9,DEU,Hydrogen (AEL),ZAF-MPU,COST-CAPEX,Transportation (Ship)"},"PTX-BusinessOpportunityAnalyzer-1.0.9",{"$f":"sel_country_code","v":"DEU"},"Hydrogen (AEL)",{"$f":"_calc!$B$658","v":"ZAF-MPU"},{"$f":"_calc!$BO$582","v":"COST-CAPEX"},{"$f":"_calc!$BT$1","v":"Transportation (Ship)"},{"$f":"_calc!$BT$658","v":47.216128903070555}]
[{"$f":"_xlfn.TEXTJOIN(\",\",FALSE,output[[#This Row],[scenario]:[process_class]])","v":"PTX-BusinessOpportunityAnalyzer-1.0.9,DEU,Hydrogen (AEL),ZAF-MPU,COST-CAPEX,Carbon"},"PTX-BusinessOpportunityAnalyzer-1.0.9",{"$f":"sel_country_code","v":"DEU"},"Hydrogen (AEL)",{"$f":"_calc!$B$658","v":"ZAF-MPU"},{"$f":"_calc!$BO$582","v":"COST-CAPEX"},{"$f":"_calc!$BU$1","v":"Carbon"},{"$f":"_calc!$BU$658","v":0}]
[{"$f":"_xlfn.TEXTJOIN(\",\",FALSE,output[[#This Row],[scenario]:[process_class]])","v":"PTX-BusinessOpportunityAnalyzer-1.0.9,DEU,Hydrogen (AEL),ZAF-MPU,COST-CAPEX,Derivate production"},"PTX-BusinessOpportunityAnalyzer-1.0.9",{"$f":"sel_country_code","v":"DEU"},"Hydrogen (AEL)",{"$f":"_calc!$B$658","v":"ZAF-MPU"},{"$f":"_calc!$BO$582","v":"COST-CAPEX"},{"$f":"_calc!$BV$1","v":"Derivate production"},{"$f":"_calc!$BV$658","v":0}]
[{"$f":"_xlfn.TEXTJOIN(\",\",FALSE,output[[#This Row],[scenario]:[process_class]])","v":"PTX-BusinessOpportunityAnalyzer-1.0.9,DEU,Hydrogen (AEL),ZAF-MPU,COST-CAPEX,Heat"},"PTX-BusinessOpportunityAnalyzer-1.0.9",{"$f":"sel_country_code","v":"DEU"},"Hydrogen (AEL)",{"$f":"_calc!$B$658","v":"ZAF-MPU"},{"$f":"_calc!$BO$582","v":"COST-CAPEX"},{"$f":"_calc!$BW$1","v":"Heat"},{"$f":"_calc!$BW$658","v":0}]
[{"$f":"_xlfn.TEXTJOIN(\",\",FALSE,output[[#This Row],[scenario]:[process_class]])","v":"PTX-BusinessOpportunityAnalyzer-1.0.9,DEU,Hydrogen (AEL),ZAF-MPU,COST-CAPEX,Electricity and H2 storage"},"PTX-BusinessOpportunityAnalyzer-1.0.9",{"$f":"sel_country_code","v":"DEU"},"Hydrogen (AEL)",{"$f":"_calc!$B$658","v":"ZAF-MPU"},{"$f":"_calc!$BO$582","v":"COST-CAPEX"},{"$f":"_calc!$BX$1","v":"Electricity and H2 storage"},{"$f":"_calc!$BX$658","v":0}]
[{"$f":"_xlfn.TEXTJOIN(\",\",FALSE,output[[#This Row],[scenario]:[process_class]])","v":"PTX-BusinessOpportunityAnalyzer-1.0.9,DEU,Hydrogen (AEL),ZAF-NC,COST-CAPEX,Water"},"PTX-BusinessOpportunityAnalyzer-1.0.9",{"$f":"sel_country_code","v":"DEU"},"Hydrogen (AEL)",{"$f":"_calc!$B$659","v":"ZAF-NC"},{"$f":"_calc!$BO$582","v":"COST-CAPEX"},{"$f":"_calc!$BP$1","v":"Water"},{"$f":"_calc!$BP$659","v":9.6957102990809466E-2}]
[{"$f":"_xlfn.TEXTJOIN(\",\",FALSE,output[[#This Row],[scenario]:[process_class]])","v":"PTX-BusinessOpportunityAnalyzer-1.0.9,DEU,Hydrogen (AEL),ZAF-NC,COST-CAPEX,Electrolysis"},"PTX-BusinessOpportunityAnalyzer-1.0.9",{"$f":"sel_country_code","v":"DEU"},"Hydrogen (AEL)",{"$f":"_calc!$B$659","v":"ZAF-NC"},{"$f":"_calc!$BO$582","v":"COST-CAPEX"},{"$f":"_calc!$BQ$1","v":"Electrolysis"},{"$f":"_calc!$BQ$659","v":16.562110874865468}]
[{"$f":"_xlfn.TEXTJOIN(\",\",FALSE,output[[#This Row],[scenario]:[process_class]])","v":"PTX-BusinessOpportunityAnalyzer-1.0.9,DEU,Hydrogen (AEL),ZAF-NC,COST-CAPEX,Electricity generation"},"PTX-BusinessOpportunityAnalyzer-1.0.9",{"$f":"sel_country_code","v":"DEU"},"Hydrogen (AEL)",{"$f":"_calc!$B$659","v":"ZAF-NC"},{"$f":"_calc!$BO$582","v":"COST-CAPEX"},{"$f":"_calc!$BR$1","v":"Electricity generation"},{"$f":"_calc!$BR$659","v":46.331933727173208}]
[{"$f":"_xlfn.TEXTJOIN(\",\",FALSE,output[[#This Row],[scenario]:[process_class]])","v":"PTX-BusinessOpportunityAnalyzer-1.0.9,DEU,Hydrogen (AEL),ZAF-NC,COST-CAPEX,Transportation (Pipeline)"},"PTX-BusinessOpportunityAnalyzer-1.0.9",{"$f":"sel_country_code","v":"DEU"},"Hydrogen (AEL)",{"$f":"_calc!$B$659","v":"ZAF-NC"},{"$f":"_calc!$BO$582","v":"COST-CAPEX"},{"$f":"_calc!$BS$1","v":"Transportation (Pipeline)"},{"$f":"_calc!$BS$659","v":0}]
[{"$f":"_xlfn.TEXTJOIN(\",\",FALSE,output[[#This Row],[scenario]:[process_class]])","v":"PTX-BusinessOpportunityAnalyzer-1.0.9,DEU,Hydrogen (AEL),ZAF-NC,COST-CAPEX,Transportation (Ship)"},"PTX-BusinessOpportunityAnalyzer-1.0.9",{"$f":"sel_country_code","v":"DEU"},"Hydrogen (AEL)",{"$f":"_calc!$B$659","v":"ZAF-NC"},{"$f":"_calc!$BO$582","v":"COST-CAPEX"},{"$f":"_calc!$BT$1","v":"Transportation (Ship)"},{"$f":"_calc!$BT$659","v":37.505859266579165}]
[{"$f":"_xlfn.TEXTJOIN(\",\",FALSE,output[[#This Row],[scenario]:[process_class]])","v":"PTX-BusinessOpportunityAnalyzer-1.0.9,DEU,Hydrogen (AEL),ZAF-NC,COST-CAPEX,Carbon"},"PTX-BusinessOpportunityAnalyzer-1.0.9",{"$f":"sel_country_code","v":"DEU"},"Hydrogen (AEL)",{"$f":"_calc!$B$659","v":"ZAF-NC"},{"$f":"_calc!$BO$582","v":"COST-CAPEX"},{"$f":"_calc!$BU$1","v":"Carbon"},{"$f":"_calc!$BU$659","v":0}]
[{"$f":"_xlfn.TEXTJOIN(\",\",FALSE,output[[#This Row],[scenario]:[process_class]])","v":"PTX-BusinessOpportunityAnalyzer-1.0.9,DEU,Hydrogen (AEL),ZAF-NC,COST-CAPEX,Derivate production"},"PTX-BusinessOpportunityAnalyzer-1.0.9",{"$f":"sel_country_code","v":"DEU"},"Hydrogen (AEL)",{"$f":"_calc!$B$659","v":"ZAF-NC"},{"$f":"_calc!$BO$582","v":"COST-CAPEX"},{"$f":"_calc!$BV$1","v":"Derivate production"},{"$f":"_calc!$BV$659","v":0}]
[{"$f":"_xlfn.TEXTJOIN(\",\",FALSE,output[[#This Row],[scenario]:[process_class]])","v":"PTX-BusinessOpportunityAnalyzer-1.0.9,DEU,Hydrogen (AEL),ZAF-NC,COST-CAPEX,Heat"},"PTX-BusinessOpportunityAnalyzer-1.0.9",{"$f":"sel_country_code","v":"DEU"},"Hydrogen (AEL)",{"$f":"_calc!$B$659","v":"ZAF-NC"},{"$f":"_calc!$BO$582","v":"COST-CAPEX"},{"$f":"_calc!$BW$1","v":"Heat"},{"$f":"_calc!$BW$659","v":0}]
[{"$f":"_xlfn.TEXTJOIN(\",\",FALSE,output[[#This Row],[scenario]:[process_class]])","v":"PTX-BusinessOpportunityAnalyzer-1.0.9,DEU,Hydrogen (AEL),ZAF-NC,COST-CAPEX,Electricity and H2 storage"},"PTX-BusinessOpportunityAnalyzer-1.0.9",{"$f":"sel_country_code","v":"DEU"},"Hydrogen (AEL)",{"$f":"_calc!$B$659","v":"ZAF-NC"},{"$f":"_calc!$BO$582","v":"COST-CAPEX"},{"$f":"_calc!$BX$1","v":"Electricity and H2 storage"},{"$f":"_calc!$BX$659","v":0}]
[{"$f":"_xlfn.TEXTJOIN(\",\",FALSE,output[[#This Row],[scenario]:[process_class]])","v":"PTX-BusinessOpportunityAnalyzer-1.0.9,DEU,Hydrogen (AEL),ZAF-NW,COST-CAPEX,Water"},"PTX-BusinessOpportunityAnalyzer-1.0.9",{"$f":"sel_country_code","v":"DEU"},"Hydrogen (AEL)",{"$f":"_calc!$B$660","v":"ZAF-NW"},{"$f":"_calc!$BO$582","v":"COST-CAPEX"},{"$f":"_calc!$BP$1","v":"Water"},{"$f":"_calc!$BP$660","v":9.6957102990809466E-2}]
[{"$f":"_xlfn.TEXTJOIN(\",\",FALSE,output[[#This Row],[scenario]:[process_class]])","v":"PTX-BusinessOpportunityAnalyzer-1.0.9,DEU,Hydrogen (AEL),ZAF-NW,COST-CAPEX,Electrolysis"},"PTX-BusinessOpportunityAnalyzer-1.0.9",{"$f":"sel_country_code","v":"DEU"},"Hydrogen (AEL)",{"$f":"_calc!$B$660","v":"ZAF-NW"},{"$f":"_calc!$BO$582","v":"COST-CAPEX"},{"$f":"_calc!$BQ$1","v":"Electrolysis"},{"$f":"_calc!$BQ$660","v":19.8961115309706}]
[{"$f":"_xlfn.TEXTJOIN(\",\",FALSE,output[[#This Row],[scenario]:[process_class]])","v":"PTX-BusinessOpportunityAnalyzer-1.0.9,DEU,Hydrogen (AEL),ZAF-NW,COST-CAPEX,Electricity generation"},"PTX-BusinessOpportunityAnalyzer-1.0.9",{"$f":"sel_country_code","v":"DEU"},"Hydrogen (AEL)",{"$f":"_calc!$B$660","v":"ZAF-NW"},{"$f":"_calc!$BO$582","v":"COST-CAPEX"},{"$f":"_calc!$BR$1","v":"Electricity generation"},{"$f":"_calc!$BR$660","v":54.528929529837377}]
[{"$f":"_xlfn.TEXTJOIN(\",\",FALSE,output[[#This Row],[scenario]:[process_class]])","v":"PTX-BusinessOpportunityAnalyzer-1.0.9,DEU,Hydrogen (AEL),ZAF-NW,COST-CAPEX,Transportation (Pipeline)"},"PTX-BusinessOpportunityAnalyzer-1.0.9",{"$f":"sel_country_code","v":"DEU"},"Hydrogen (AEL)",{"$f":"_calc!$B$660","v":"ZAF-NW"},{"$f":"_calc!$BO$582","v":"COST-CAPEX"},{"$f":"_calc!$BS$1","v":"Transportation (Pipeline)"},{"$f":"_calc!$BS$660","v":0}]
[{"$f":"_xlfn.TEXTJOIN(\",\",FALSE,output[[#This Row],[scenario]:[process_class]])","v":"PTX-BusinessOpportunityAnalyzer-1.0.9,DEU,Hydrogen (AEL),ZAF-NW,COST-CAPEX,Transportation (Ship)"},"PTX-BusinessOpportunityAnalyzer-1.0.9",{"$f":"sel_country_code","v":"DEU"},"Hydrogen (AEL)",{"$f":"_calc!$B$660","v":"ZAF-NW"},{"$f":"_calc!$BO$582","v":"COST-CAPEX"},{"$f":"_calc!$BT$1","v":"Transportation (Ship)"},{"$f":"_calc!$BT$660","v":44.567634325152973}]
[{"$f":"_xlfn.TEXTJOIN(\",\",FALSE,output[[#This Row],[scenario]:[process_class]])","v":"PTX-BusinessOpportunityAnalyzer-1.0.9,DEU,Hydrogen (AEL),ZAF-NW,COST-CAPEX,Carbon"},"PTX-BusinessOpportunityAnalyzer-1.0.9",{"$f":"sel_country_code","v":"DEU"},"Hydrogen (AEL)",{"$f":"_calc!$B$660","v":"ZAF-NW"},{"$f":"_calc!$BO$582","v":"COST-CAPEX"},{"$f":"_calc!$BU$1","v":"Carbon"},{"$f":"_calc!$BU$660","v":0}]
[{"$f":"_xlfn.TEXTJOIN(\",\",FALSE,output[[#This Row],[scenario]:[process_class]])","v":"PTX-BusinessOpportunityAnalyzer-1.0.9,DEU,Hydrogen (AEL),ZAF-NW,COST-CAPEX,Derivate production"},"PTX-BusinessOpportunityAnalyzer-1.0.9",{"$f":"sel_country_code","v":"DEU"},"Hydrogen (AEL)",{"$f":"_calc!$B$660","v":"ZAF-NW"},{"$f":"_calc!$BO$582","v":"COST-CAPEX"},{"$f":"_calc!$BV$1","v":"Derivate production"},{"$f":"_calc!$BV$660","v":0}]
[{"$f":"_xlfn.TEXTJOIN(\",\",FALSE,output[[#This Row],[scenario]:[process_class]])","v":"PTX-BusinessOpportunityAnalyzer-1.0.9,DEU,Hydrogen (AEL),ZAF-NW,COST-CAPEX,Heat"},"PTX-BusinessOpportunityAnalyzer-1.0.9",{"$f":"sel_country_code","v":"DEU"},"Hydrogen (AEL)",{"$f":"_calc!$B$660","v":"ZAF-NW"},{"$f":"_calc!$BO$582","v":"COST-CAPEX"},{"$f":"_calc!$BW$1","v":"Heat"},{"$f":"_calc!$BW$660","v":0}]
[{"$f":"_xlfn.TEXTJOIN(\",\",FALSE,output[[#This Row],[scenario]:[process_class]])","v":"PTX-BusinessOpportunityAnalyzer-1.0.9,DEU,Hydrogen (AEL),ZAF-NW,COST-CAPEX,Electricity and H2 storage"},"PTX-BusinessOpportunityAnalyzer-1.0.9",{"$f":"sel_country_code","v":"DEU"},"Hydrogen (AEL)",{"$f":"_calc!$B$660","v":"ZAF-NW"},{"$f":"_calc!$BO$582","v":"COST-CAPEX"},{"$f":"_calc!$BX$1","v":"Electricity and H2 storage"},{"$f":"_calc!$BX$660","v":0}]
[{"$f":"_xlfn.TEXTJOIN(\",\",FALSE,output[[#This Row],[scenario]:[process_class]])","v":"PTX-BusinessOpportunityAnalyzer-1.0.9,DEU,Hydrogen (AEL),ZAF-WC,COST-CAPEX,Water"},"PTX-BusinessOpportunityAnalyzer-1.0.9",{"$f":"sel_country_code","v":"DEU"},"Hydrogen (AEL)",{"$f":"_calc!$B$661","v":"ZAF-WC"},{"$f":"_calc!$BO$582","v":"COST-CAPEX"},{"$f":"_calc!$BP$1","v":"Water"},{"$f":"_calc!$BP$661","v":9.6957102990809466E-2}]
[{"$f":"_xlfn.TEXTJOIN(\",\",FALSE,output[[#This Row],[scenario]:[process_class]])","v":"PTX-BusinessOpportunityAnalyzer-1.0.9,DEU,Hydrogen (AEL),ZAF-WC,COST-CAPEX,Electrolysis"},"PTX-BusinessOpportunityAnalyzer-1.0.9",{"$f":"sel_country_code","v":"DEU"},"Hydrogen (AEL)",{"$f":"_calc!$B$661","v":"ZAF-WC"},{"$f":"_calc!$BO$582","v":"COST-CAPEX"},{"$f":"_calc!$BQ$1","v":"Electrolysis"},{"$f":"_calc!$BQ$661","v":18.525111971321827}]
[{"$f":"_xlfn.TEXTJOIN(\",\",FALSE,output[[#This Row],[scenario]:[process_class]])","v":"PTX-BusinessOpportunityAnalyzer-1.0.9,DEU,Hydrogen (AEL),ZAF-WC,COST-CAPEX,Electricity generation"},{"$f":"output_scenario_name","v":"PTX-BusinessOpportunityAnalyzer-1.0.9"},{"$f":"sel_country_code","v":"DEU"},{"$f":"sel_chain","v":"Hydrogen (AEL)"},{"$f":"_calc!$B$661","v":"ZAF-WC"},{"$f":"_calc!$BO$582","v":"COST-CAPEX"},{"$f":"_calc!$BR$1","v":"Electricity generation"},{"$f":"_calc!$BR$661","v":51.198804158543552}]
[{"$f":"_xlfn.TEXTJOIN(\",\",FALSE,output[[#This Row],[scenario]:[process_class]])","v":"PTX-BusinessOpportunityAnalyzer-1.0.9,DEU,Hydrogen (AEL),ZAF-WC,COST-CAPEX,Transportation (Pipeline)"},"PTX-BusinessOpportunityAnalyzer-1.0.9",{"$f":"sel_country_code","v":"DEU"},"Hydrogen (AEL)",{"$f":"_calc!$B$661","v":"ZAF-WC"},{"$f":"_calc!$BO$582","v":"COST-CAPEX"},{"$f":"_calc!$BS$1","v":"Transportation (Pipeline)"},{"$f":"_calc!$BS$661","v":0}]
[{"$f":"_xlfn.TEXTJOIN(\",\",FALSE,output[[#This Row],[scenario]:[process_class]])","v":"PTX-BusinessOpportunityAnalyzer-1.0.9,DEU,Hydrogen (AEL),ZAF-WC,COST-CAPEX,Transportation (Ship)"},"PTX-BusinessOpportunityAnalyzer-1.0.9",{"$f":"sel_country_code","v":"DEU"},"Hydrogen (AEL)",{"$f":"_calc!$B$661","v":"ZAF-WC"},{"$f":"_calc!$BO$582","v":"COST-CAPEX"},{"$f":"_calc!$BT$1","v":"Transportation (Ship)"},{"$f":"_calc!$BT$661","v":41.640828190726886}]
[{"$f":"_xlfn.TEXTJOIN(\",\",FALSE,output[[#This Row],[scenario]:[process_class]])","v":"PTX-BusinessOpportunityAnalyzer-1.0.9,DEU,Hydrogen (AEL),ZAF-WC,COST-CAPEX,Carbon"},"PTX-BusinessOpportunityAnalyzer-1.0.9",{"$f":"sel_country_code","v":"DEU"},"Hydrogen (AEL)",{"$f":"_calc!$B$661","v":"ZAF-WC"},{"$f":"_calc!$BO$582","v":"COST-CAPEX"},{"$f":"_calc!$BU$1","v":"Carbon"},{"$f":"_calc!$BU$661","v":0}]
[{"$f":"_xlfn.TEXTJOIN(\",\",FALSE,output[[#This Row],[scenario]:[process_class]])","v":"PTX-BusinessOpportunityAnalyzer-1.0.9,DEU,Hydrogen (AEL),ZAF-WC,COST-CAPEX,Derivate production"},"PTX-BusinessOpportunityAnalyzer-1.0.9",{"$f":"sel_country_code","v":"DEU"},"Hydrogen (AEL)",{"$f":"_calc!$B$661","v":"ZAF-WC"},{"$f":"_calc!$BO$582","v":"COST-CAPEX"},{"$f":"_calc!$BV$1","v":"Derivate production"},{"$f":"_calc!$BV$661","v":0}]
[{"$f":"_xlfn.TEXTJOIN(\",\",FALSE,output[[#This Row],[scenario]:[process_class]])","v":"PTX-BusinessOpportunityAnalyzer-1.0.9,DEU,Hydrogen (AEL),ZAF-WC,COST-CAPEX,Heat"},"PTX-BusinessOpportunityAnalyzer-1.0.9",{"$f":"sel_country_code","v":"DEU"},"Hydrogen (AEL)",{"$f":"_calc!$B$661","v":"ZAF-WC"},{"$f":"_calc!$BO$582","v":"COST-CAPEX"},{"$f":"_calc!$BW$1","v":"Heat"},{"$f":"_calc!$BW$661","v":0}]
[{"$f":"_xlfn.TEXTJOIN(\",\",FALSE,output[[#This Row],[scenario]:[process_class]])","v":"PTX-BusinessOpportunityAnalyzer-1.0.9,DEU,Hydrogen (AEL),ZAF-WC,COST-CAPEX,Electricity and H2 storage"},"PTX-BusinessOpportunityAnalyzer-1.0.9",{"$f":"sel_country_code","v":"DEU"},"Hydrogen (AEL)",{"$f":"_calc!$B$661","v":"ZAF-WC"},{"$f":"_calc!$BO$582","v":"COST-CAPEX"},{"$f":"_calc!$BX$1","v":"Electricity and H2 storage"},{"$f":"_calc!$BX$661","v":0}]
[{"$f":"_xlfn.TEXTJOIN(\",\",FALSE,output[[#This Row],[scenario]:[process_class]])","v":"PTX-BusinessOpportunityAnalyzer-1.0.9,DEU,Hydrogen (AEL),ARE,COST-OPEX,Water"},"PTX-BusinessOpportunityAnalyzer-1.0.9",{"$f":"sel_country_code","v":"DEU"},"Hydrogen (AEL)",{"$f":"_calc!$B$828","v":"ARE"},{"$f":"_calc!$BO$827","v":"COST-OPEX"},{"$f":"_calc!$BP$1","v":"Water"},{"$f":"_calc!$BP$828","v":3.1756216820981037E-2}]
[{"$f":"_xlfn.TEXTJOIN(\",\",FALSE,output[[#This Row],[scenario]:[process_class]])","v":"PTX-BusinessOpportunityAnalyzer-1.0.9,DEU,Hydrogen (AEL),ARE,COST-OPEX,Electrolysis"},"PTX-BusinessOpportunityAnalyzer-1.0.9",{"$f":"sel_country_code","v":"DEU"},"Hydrogen (AEL)",{"$f":"_calc!$B$828","v":"ARE"},{"$f":"_calc!$BO$827","v":"COST-OPEX"},{"$f":"_calc!$BQ$1","v":"Electrolysis"},{"$f":"_calc!$BQ$828","v":4.9147796008385392}]
[{"$f":"_xlfn.TEXTJOIN(\",\",FALSE,output[[#This Row],[scenario]:[process_class]])","v":"PTX-BusinessOpportunityAnalyzer-1.0.9,DEU,Hydrogen (AEL),ARE,COST-OPEX,Electricity generation"},"PTX-BusinessOpportunityAnalyzer-1.0.9",{"$f":"sel_country_code","v":"DEU"},"Hydrogen (AEL)",{"$f":"_calc!$B$828","v":"ARE"},{"$f":"_calc!$BO$827","v":"COST-OPEX"},{"$f":"_calc!$BR$1","v":"Electricity generation"},{"$f":"_calc!$BR$828","v":11.742028795777633}]
[{"$f":"_xlfn.TEXTJOIN(\",\",FALSE,output[[#This Row],[scenario]:[process_class]])","v":"PTX-BusinessOpportunityAnalyzer-1.0.9,DEU,Hydrogen (AEL),ARE,COST-OPEX,Transportation (Pipeline)"},"PTX-BusinessOpportunityAnalyzer-1.0.9",{"$f":"sel_country_code","v":"DEU"},"Hydrogen (AEL)",{"$f":"_calc!$B$828","v":"ARE"},{"$f":"_calc!$BO$827","v":"COST-OPEX"},{"$f":"_calc!$BS$1","v":"Transportation (Pipeline)"},{"$f":"_calc!$BS$828","v":50.480968430821143}]
[{"$f":"_xlfn.TEXTJOIN(\",\",FALSE,output[[#This Row],[scenario]:[process_class]])","v":"PTX-BusinessOpportunityAnalyzer-1.0.9,DEU,Hydrogen (AEL),ARE,COST-OPEX,Transportation (Ship)"},"PTX-BusinessOpportunityAnalyzer-1.0.9",{"$f":"sel_country_code","v":"DEU"},"Hydrogen (AEL)",{"$f":"_calc!$B$828","v":"ARE"},{"$f":"_calc!$BO$827","v":"COST-OPEX"},{"$f":"_calc!$BT$1","v":"Transportation (Ship)"},{"$f":"_calc!$BT$828","v":0}]
[{"$f":"_xlfn.TEXTJOIN(\",\",FALSE,output[[#This Row],[scenario]:[process_class]])","v":"PTX-BusinessOpportunityAnalyzer-1.0.9,DEU,Hydrogen (AEL),ARE,COST-OPEX,Carbon"},"PTX-BusinessOpportunityAnalyzer-1.0.9",{"$f":"sel_country_code","v":"DEU"},"Hydrogen (AEL)",{"$f":"_calc!$B$828","v":"ARE"},{"$f":"_calc!$BO$827","v":"COST-OPEX"},{"$f":"_calc!$BU$1","v":"Carbon"},{"$f":"_calc!$BU$828","v":0}]
[{"$f":"_xlfn.TEXTJOIN(\",\",FALSE,output[[#This Row],[scenario]:[process_class]])","v":"PTX-BusinessOpportunityAnalyzer-1.0.9,DEU,Hydrogen (AEL),ARE,COST-OPEX,Derivate production"},"PTX-BusinessOpportunityAnalyzer-1.0.9",{"$f":"sel_country_code","v":"DEU"},"Hydrogen (AEL)",{"$f":"_calc!$B$828","v":"ARE"},{"$f":"_calc!$BO$827","v":"COST-OPEX"},{"$f":"_calc!$BV$1","v":"Derivate production"},{"$f":"_calc!$BV$828","v":0}]
[{"$f":"_xlfn.TEXTJOIN(\",\",FALSE,output[[#This Row],[scenario]:[process_class]])","v":"PTX-BusinessOpportunityAnalyzer-1.0.9,DEU,Hydrogen (AEL),ARE,COST-OPEX,Heat"},"PTX-BusinessOpportunityAnalyzer-1.0.9",{"$f":"sel_country_code","v":"DEU"},"Hydrogen (AEL)",{"$f":"_calc!$B$828","v":"ARE"},{"$f":"_calc!$BO$827","v":"COST-OPEX"},{"$f":"_calc!$BW$1","v":"Heat"},{"$f":"_calc!$BW$828","v":0}]
[{"$f":"_xlfn.TEXTJOIN(\",\",FALSE,output[[#This Row],[scenario]:[process_class]])","v":"PTX-BusinessOpportunityAnalyzer-1.0.9,DEU,Hydrogen (AEL),ARE,COST-OPEX,Electricity and H2 storage"},"PTX-BusinessOpportunityAnalyzer-1.0.9",{"$f":"sel_country_code","v":"DEU"},"Hydrogen (AEL)",{"$f":"_calc!$B$828","v":"ARE"},{"$f":"_calc!$BO$827","v":"COST-OPEX"},{"$f":"_calc!$BX$1","v":"Electricity and H2 storage"},{"$f":"_calc!$BX$828","v":3.3372331409707758}]
[{"$f":"_xlfn.TEXTJOIN(\",\",FALSE,output[[#This Row],[scenario]:[process_class]])","v":"PTX-BusinessOpportunityAnalyzer-1.0.9,DEU,Hydrogen (AEL),ARG,COST-OPEX,Water"},"PTX-BusinessOpportunityAnalyzer-1.0.9",{"$f":"sel_country_code","v":"DEU"},"Hydrogen (AEL)",{"$f":"_calc!$B$829","v":"ARG"},{"$f":"_calc!$BO$827","v":"COST-OPEX"},{"$f":"_calc!$BP$1","v":"Water"},{"$f":"_calc!$BP$829","v":3.9012068381469138E-2}]
[{"$f":"_xlfn.TEXTJOIN(\",\",FALSE,output[[#This Row],[scenario]:[process_class]])","v":"PTX-BusinessOpportunityAnalyzer-1.0.9,DEU,Hydrogen (AEL),ARG,COST-OPEX,Electrolysis"},"PTX-BusinessOpportunityAnalyzer-1.0.9",{"$f":"sel_country_code","v":"DEU"},"Hydrogen (AEL)",{"$f":"_calc!$B$829","v":"ARG"},{"$f":"_calc!$BO$827","v":"COST-OPEX"},{"$f":"_calc!$BQ$1","v":"Electrolysis"},{"$f":"_calc!$BQ$829","v":3.0898453084202355}]
[{"$f":"_xlfn.TEXTJOIN(\",\",FALSE,output[[#This Row],[scenario]:[process_class]])","v":"PTX-BusinessOpportunityAnalyzer-1.0.9,DEU,Hydrogen (AEL),ARG,COST-OPEX,Electricity generation"},"PTX-BusinessOpportunityAnalyzer-1.0.9",{"$f":"sel_country_code","v":"DEU"},"Hydrogen (AEL)",{"$f":"_calc!$B$829","v":"ARG"},{"$f":"_calc!$BO$827","v":"COST-OPEX"},{"$f":"_calc!$BR$1","v":"Electricity generation"},{"$f":"_calc!$BR$829","v":8.566935497143044}]
[{"$f":"_xlfn.TEXTJOIN(\",\",FALSE,output[[#This Row],[scenario]:[process_class]])","v":"PTX-BusinessOpportunityAnalyzer-1.0.9,DEU,Hydrogen (AEL),ARG,COST-OPEX,Transportation (Pipeline)"},"PTX-BusinessOpportunityAnalyzer-1.0.9",{"$f":"sel_country_code","v":"DEU"},"Hydrogen (AEL)",{"$f":"_calc!$B$829","v":"ARG"},{"$f":"_calc!$BO$827","v":"COST-OPEX"},{"$f":"_calc!$BS$1","v":"Transportation (Pipeline)"},{"$f":"_calc!$BS$829","v":0}]
[{"$f":"_xlfn.TEXTJOIN(\",\",FALSE,output[[#This Row],[scenario]:[process_class]])","v":"PTX-BusinessOpportunityAnalyzer-1.0.9,DEU,Hydrogen (AEL),ARG,COST-OPEX,Transportation (Ship)"},"PTX-BusinessOpportunityAnalyzer-1.0.9",{"$f":"sel_country_code","v":"DEU"},"Hydrogen (AEL)",{"$f":"_calc!$B$829","v":"ARG"},{"$f":"_calc!$BO$827","v":"COST-OPEX"},{"$f":"_calc!$BT$1","v":"Transportation (Ship)"},{"$f":"_calc!$BT$829","v":40.387028920474712}]
[{"$f":"_xlfn.TEXTJOIN(\",\",FALSE,output[[#This Row],[scenario]:[process_class]])","v":"PTX-BusinessOpportunityAnalyzer-1.0.9,DEU,Hydrogen (AEL),ARG,COST-OPEX,Carbon"},"PTX-BusinessOpportunityAnalyzer-1.0.9",{"$f":"sel_country_code","v":"DEU"},"Hydrogen (AEL)",{"$f":"_calc!$B$829","v":"ARG"},{"$f":"_calc!$BO$827","v":"COST-OPEX"},{"$f":"_calc!$BU$1","v":"Carbon"},{"$f":"_calc!$BU$829","v":0}]
[{"$f":"_xlfn.TEXTJOIN(\",\",FALSE,output[[#This Row],[scenario]:[process_class]])","v":"PTX-BusinessOpportunityAnalyzer-1.0.9,DEU,Hydrogen (AEL),ARG,COST-OPEX,Derivate production"},"PTX-BusinessOpportunityAnalyzer-1.0.9",{"$f":"sel_country_code","v":"DEU"},"Hydrogen (AEL)",{"$f":"_calc!$B$829","v":"ARG"},{"$f":"_calc!$BO$827","v":"COST-OPEX"},{"$f":"_calc!$BV$1","v":"Derivate production"},{"$f":"_calc!$BV$829","v":0}]
[{"$f":"_xlfn.TEXTJOIN(\",\",FALSE,output[[#This Row],[scenario]:[process_class]])","v":"PTX-BusinessOpportunityAnalyzer-1.0.9,DEU,Hydrogen (AEL),ARG,COST-OPEX,Heat"},"PTX-BusinessOpportunityAnalyzer-1.0.9",{"$f":"sel_country_code","v":"DEU"},"Hydrogen (AEL)",{"$f":"_calc!$B$829","v":"ARG"},{"$f":"_calc!$BO$827","v":"COST-OPEX"},{"$f":"_calc!$BW$1","v":"Heat"},{"$f":"_calc!$BW$829","v":0}]
[{"$f":"_xlfn.TEXTJOIN(\",\",FALSE,output[[#This Row],[scenario]:[process_class]])","v":"PTX-BusinessOpportunityAnalyzer-1.0.9,DEU,Hydrogen (AEL),ARG,COST-OPEX,Electricity and H2 storage"},"PTX-BusinessOpportunityAnalyzer-1.0.9",{"$f":"sel_country_code","v":"DEU"},"Hydrogen (AEL)",{"$f":"_calc!$B$829","v":"ARG"},{"$f":"_calc!$BO$827","v":"COST-OPEX"},{"$f":"_calc!$BX$1","v":"Electricity and H2 storage"},{"$f":"_calc!$BX$829","v":4.0402031823761577}]
[{"$f":"_xlfn.TEXTJOIN(\",\",FALSE,output[[#This Row],[scenario]:[process_class]])","v":"PTX-BusinessOpportunityAnalyzer-1.0.9,DEU,Hydrogen (AEL),ARG-BA,COST-OPEX,Water"},"PTX-BusinessOpportunityAnalyzer-1.0.9",{"$f":"sel_country_code","v":"DEU"},"Hydrogen (AEL)",{"$f":"_calc!$B$830","v":"ARG-BA"},{"$f":"_calc!$BO$827","v":"COST-OPEX"},{"$f":"_calc!$BP$1","v":"Water"},{"$f":"_calc!$BP$830","v":3.9012068381469138E-2}]
[{"$f":"_xlfn.TEXTJOIN(\",\",FALSE,output[[#This Row],[scenario]:[process_class]])","v":"PTX-BusinessOpportunityAnalyzer-1.0.9,DEU,Hydrogen (AEL),ARG-BA,COST-OPEX,Electrolysis"},"PTX-BusinessOpportunityAnalyzer-1.0.9",{"$f":"sel_country_code","v":"DEU"},"Hydrogen (AEL)",{"$f":"_calc!$B$830","v":"ARG-BA"},{"$f":"_calc!$BO$827","v":"COST-OPEX"},{"$f":"_calc!$BQ$1","v":"Electrolysis"},{"$f":"_calc!$BQ$830","v":3.562403891971182}]
[{"$f":"_xlfn.TEXTJOIN(\",\",FALSE,output[[#This Row],[scenario]:[process_class]])","v":"PTX-BusinessOpportunityAnalyzer-1.0.9,DEU,Hydrogen (AEL),ARG-BA,COST-OPEX,Electricity generation"},"PTX-BusinessOpportunityAnalyzer-1.0.9",{"$f":"sel_country_code","v":"DEU"},"Hydrogen (AEL)",{"$f":"_calc!$B$830","v":"ARG-BA"},{"$f":"_calc!$BO$827","v":"COST-OPEX"},{"$f":"_calc!$BR$1","v":"Electricity generation"},{"$f":"_calc!$BR$830","v":9.8054883515445574}]
[{"$f":"_xlfn.TEXTJOIN(\",\",FALSE,output[[#This Row],[scenario]:[process_class]])","v":"PTX-BusinessOpportunityAnalyzer-1.0.9,DEU,Hydrogen (AEL),ARG-BA,COST-OPEX,Transportation (Pipeline)"},"PTX-BusinessOpportunityAnalyzer-1.0.9",{"$f":"sel_country_code","v":"DEU"},"Hydrogen (AEL)",{"$f":"_calc!$B$830","v":"ARG-BA"},{"$f":"_calc!$BO$827","v":"COST-OPEX"},{"$f":"_calc!$BS$1","v":"Transportation (Pipeline)"},{"$f":"_calc!$BS$830","v":0}]
[{"$f":"_xlfn.TEXTJOIN(\",\",FALSE,output[[#This Row],[scenario]:[process_class]])","v":"PTX-BusinessOpportunityAnalyzer-1.0.9,DEU,Hydrogen (AEL),ARG-BA,COST-OPEX,Transportation (Ship)"},"PTX-BusinessOpportunityAnalyzer-1.0.9",{"$f":"sel_country_code","v":"DEU"},"Hydrogen (AEL)",{"$f":"_calc!$B$830","v":"ARG-BA"},{"$f":"_calc!$BO$827","v":"COST-OPEX"},{"$f":"_calc!$BT$1","v":"Transportation (Ship)"},{"$f":"_calc!$BT$830","v":43.172377143841132}]
[{"$f":"_xlfn.TEXTJOIN(\",\",FALSE,output[[#This Row],[scenario]:[process_class]])","v":"PTX-BusinessOpportunityAnalyzer-1.0.9,DEU,Hydrogen (AEL),ARG-BA,COST-OPEX,Carbon"},"PTX-BusinessOpportunityAnalyzer-1.0.9",{"$f":"sel_country_code","v":"DEU"},"Hydrogen (AEL)",{"$f":"_calc!$B$830","v":"ARG-BA"},{"$f":"_calc!$BO$827","v":"COST-OPEX"},{"$f":"_calc!$BU$1","v":"Carbon"},{"$f":"_calc!$BU$830","v":0}]
[{"$f":"_xlfn.TEXTJOIN(\",\",FALSE,output[[#This Row],[scenario]:[process_class]])","v":"PTX-BusinessOpportunityAnalyzer-1.0.9,DEU,Hydrogen (AEL),ARG-BA,COST-OPEX,Derivate production"},"PTX-BusinessOpportunityAnalyzer-1.0.9",{"$f":"sel_country_code","v":"DEU"},"Hydrogen (AEL)",{"$f":"_calc!$B$830","v":"ARG-BA"},{"$f":"_calc!$BO$827","v":"COST-OPEX"},{"$f":"_calc!$BV$1","v":"Derivate production"},{"$f":"_calc!$BV$830","v":0}]
[{"$f":"_xlfn.TEXTJOIN(\",\",FALSE,output[[#This Row],[scenario]:[process_class]])","v":"PTX-BusinessOpportunityAnalyzer-1.0.9,DEU,Hydrogen (AEL),ARG-BA,COST-OPEX,Heat"},"PTX-BusinessOpportunityAnalyzer-1.0.9",{"$f":"sel_country_code","v":"DEU"},"Hydrogen (AEL)",{"$f":"_calc!$B$830","v":"ARG-BA"},{"$f":"_calc!$BO$827","v":"COST-OPEX"},{"$f":"_calc!$BW$1","v":"Heat"},{"$f":"_calc!$BW$830","v":0}]
[{"$f":"_xlfn.TEXTJOIN(\",\",FALSE,output[[#This Row],[scenario]:[process_class]])","v":"PTX-BusinessOpportunityAnalyzer-1.0.9,DEU,Hydrogen (AEL),ARG-BA,COST-OPEX,Electricity and H2 storage"},"PTX-BusinessOpportunityAnalyzer-1.0.9",{"$f":"sel_country_code","v":"DEU"},"Hydrogen (AEL)",{"$f":"_calc!$B$830","v":"ARG-BA"},{"$f":"_calc!$BO$827","v":"COST-OPEX"},{"$f":"_calc!$BX$1","v":"Electricity and H2 storage"},{"$f":"_calc!$BX$830","v":4.6316814604678704}]
[{"$f":"_xlfn.TEXTJOIN(\",\",FALSE,output[[#This Row],[scenario]:[process_class]])","v":"PTX-BusinessOpportunityAnalyzer-1.0.9,DEU,Hydrogen (AEL),ARG-CAT,COST-OPEX,Water"},"PTX-BusinessOpportunityAnalyzer-1.0.9",{"$f":"sel_country_code","v":"DEU"},"Hydrogen (AEL)",{"$f":"_calc!$B$831","v":"ARG-CAT"},{"$f":"_calc!$BO$827","v":"COST-OPEX"},{"$f":"_calc!$BP$1","v":"Water"},{"$f":"_calc!$BP$831","v":3.9012068381469138E-2}]
[{"$f":"_xlfn.TEXTJOIN(\",\",FALSE,output[[#This Row],[scenario]:[process_class]])","v":"PTX-BusinessOpportunityAnalyzer-1.0.9,DEU,Hydrogen (AEL),ARG-CAT,COST-OPEX,Electrolysis"},"PTX-BusinessOpportunityAnalyzer-1.0.9",{"$f":"sel_country_code","v":"DEU"},"Hydrogen (AEL)",{"$f":"_calc!$B$831","v":"ARG-CAT"},{"$f":"_calc!$BO$827","v":"COST-OPEX"},{"$f":"_calc!$BQ$1","v":"Electrolysis"},{"$f":"_calc!$BQ$831","v":3.6688027099802389}]
[{"$f":"_xlfn.TEXTJOIN(\",\",FALSE,output[[#This Row],[scenario]:[process_class]])","v":"PTX-BusinessOpportunityAnalyzer-1.0.9,DEU,Hydrogen (AEL),ARG-CAT,COST-OPEX,Electricity generation"},"PTX-BusinessOpportunityAnalyzer-1.0.9",{"$f":"sel_country_code","v":"DEU"},"Hydrogen (AEL)",{"$f":"_calc!$B$831","v":"ARG-CAT"},{"$f":"_calc!$BO$827","v":"COST-OPEX"},{"$f":"_calc!$BR$1","v":"Electricity generation"},{"$f":"_calc!$BR$831","v":10.06550330015418}]
[{"$f":"_xlfn.TEXTJOIN(\",\",FALSE,output[[#This Row],[scenario]:[process_class]])","v":"PTX-BusinessOpportunityAnalyzer-1.0.9,DEU,Hydrogen (AEL),ARG-CAT,COST-OPEX,Transportation (Pipeline)"},"PTX-BusinessOpportunityAnalyzer-1.0.9",{"$f":"sel_country_code","v":"DEU"},"Hydrogen (AEL)",{"$f":"_calc!$B$831","v":"ARG-CAT"},{"$f":"_calc!$BO$827","v":"COST-OPEX"},{"$f":"_calc!$BS$1","v":"Transportation (Pipeline)"},{"$f":"_calc!$BS$831","v":0}]
[{"$f":"_xlfn.TEXTJOIN(\",\",FALSE,output[[#This Row],[scenario]:[process_class]])","v":"PTX-BusinessOpportunityAnalyzer-1.0.9,DEU,Hydrogen (AEL),ARG-CAT,COST-OPEX,Transportation (Ship)"},"PTX-BusinessOpportunityAnalyzer-1.0.9",{"$f":"sel_country_code","v":"DEU"},"Hydrogen (AEL)",{"$f":"_calc!$B$831","v":"ARG-CAT"},{"$f":"_calc!$BO$827","v":"COST-OPEX"},{"$f":"_calc!$BT$1","v":"Transportation (Ship)"},{"$f":"_calc!$BT$831","v":43.690126118157103}]
[{"$f":"_xlfn.TEXTJOIN(\",\",FALSE,output[[#This Row],[scenario]:[process_class]])","v":"PTX-BusinessOpportunityAnalyzer-1.0.9,DEU,Hydrogen (AEL),ARG-CAT,COST-OPEX,Carbon"},"PTX-BusinessOpportunityAnalyzer-1.0.9",{"$f":"sel_country_code","v":"DEU"},"Hydrogen (AEL)",{"$f":"_calc!$B$831","v":"ARG-CAT"},{"$f":"_calc!$BO$827","v":"COST-OPEX"},{"$f":"_calc!$BU$1","v":"Carbon"},{"$f":"_calc!$BU$831","v":0}]
[{"$f":"_xlfn.TEXTJOIN(\",\",FALSE,output[[#This Row],[scenario]:[process_class]])","v":"PTX-BusinessOpportunityAnalyzer-1.0.9,DEU,Hydrogen (AEL),ARG-CAT,COST-OPEX,Derivate production"},"PTX-BusinessOpportunityAnalyzer-1.0.9",{"$f":"sel_country_code","v":"DEU"},"Hydrogen (AEL)",{"$f":"_calc!$B$831","v":"ARG-CAT"},{"$f":"_calc!$BO$827","v":"COST-OPEX"},{"$f":"_calc!$BV$1","v":"Derivate production"},{"$f":"_calc!$BV$831","v":0}]
[{"$f":"_xlfn.TEXTJOIN(\",\",FALSE,output[[#This Row],[scenario]:[process_class]])","v":"PTX-BusinessOpportunityAnalyzer-1.0.9,DEU,Hydrogen (AEL),ARG-CAT,COST-OPEX,Heat"},"PTX-BusinessOpportunityAnalyzer-1.0.9",{"$f":"sel_country_code","v":"DEU"},"Hydrogen (AEL)",{"$f":"_calc!$B$831","v":"ARG-CAT"},{"$f":"_calc!$BO$827","v":"COST-OPEX"},{"$f":"_calc!$BW$1","v":"Heat"},{"$f":"_calc!$BW$831","v":0}]
[{"$f":"_xlfn.TEXTJOIN(\",\",FALSE,output[[#This Row],[scenario]:[process_class]])","v":"PTX-BusinessOpportunityAnalyzer-1.0.9,DEU,Hydrogen (AEL),ARG-CAT,COST-OPEX,Electricity and H2 storage"},"PTX-BusinessOpportunityAnalyzer-1.0.9",{"$f":"sel_country_code","v":"DEU"},"Hydrogen (AEL)",{"$f":"_calc!$B$831","v":"ARG-CAT"},{"$f":"_calc!$BO$827","v":"COST-OPEX"},{"$f":"_calc!$BX$1","v":"Electricity and H2 storage"},{"$f":"_calc!$BX$831","v":4.7583393618422276}]
[{"$f":"_xlfn.TEXTJOIN(\",\",FALSE,output[[#This Row],[scenario]:[process_class]])","v":"PTX-BusinessOpportunityAnalyzer-1.0.9,DEU,Hydrogen (AEL),ARG-CBA,COST-OPEX,Water"},"PTX-BusinessOpportunityAnalyzer-1.0.9",{"$f":"sel_country_code","v":"DEU"},"Hydrogen (AEL)",{"$f":"_calc!$B$832","v":"ARG-CBA"},{"$f":"_calc!$BO$827","v":"COST-OPEX"},{"$f":"_calc!$BP$1","v":"Water"},{"$f":"_calc!$BP$832","v":3.9012068381469138E-2}]
[{"$f":"_xlfn.TEXTJOIN(\",\",FALSE,output[[#This Row],[scenario]:[process_class]])","v":"PTX-BusinessOpportunityAnalyzer-1.0.9,DEU,Hydrogen (AEL),ARG-CBA,COST-OPEX,Electrolysis"},"PTX-BusinessOpportunityAnalyzer-1.0.9",{"$f":"sel_country_code","v":"DEU"},"Hydrogen (AEL)",{"$f":"_calc!$B$832","v":"ARG-CBA"},{"$f":"_calc!$BO$827","v":"COST-OPEX"},{"$f":"_calc!$BQ$1","v":"Electrolysis"},{"$f":"_calc!$BQ$832","v":3.6875833535248903}]
[{"$f":"_xlfn.TEXTJOIN(\",\",FALSE,output[[#This Row],[scenario]:[process_class]])","v":"PTX-BusinessOpportunityAnalyzer-1.0.9,DEU,Hydrogen (AEL),ARG-CBA,COST-OPEX,Electricity generation"},"PTX-BusinessOpportunityAnalyzer-1.0.9",{"$f":"sel_country_code","v":"DEU"},"Hydrogen (AEL)",{"$f":"_calc!$B$832","v":"ARG-CBA"},{"$f":"_calc!$BO$827","v":"COST-OPEX"},{"$f":"_calc!$BR$1","v":"Electricity generation"},{"$f":"_calc!$BR$832","v":10.111223463641403}]
[{"$f":"_xlfn.TEXTJOIN(\",\",FALSE,output[[#This Row],[scenario]:[process_class]])","v":"PTX-BusinessOpportunityAnalyzer-1.0.9,DEU,Hydrogen (AEL),ARG-CBA,COST-OPEX,Transportation (Pipeline)"},"PTX-BusinessOpportunityAnalyzer-1.0.9",{"$f":"sel_country_code","v":"DEU"},"Hydrogen (AEL)",{"$f":"_calc!$B$832","v":"ARG-CBA"},{"$f":"_calc!$BO$827","v":"COST-OPEX"},{"$f":"_calc!$BS$1","v":"Transportation (Pipeline)"},{"$f":"_calc!$BS$832","v":0}]
[{"$f":"_xlfn.TEXTJOIN(\",\",FALSE,output[[#This Row],[scenario]:[process_class]])","v":"PTX-BusinessOpportunityAnalyzer-1.0.9,DEU,Hydrogen (AEL),ARG-CBA,COST-OPEX,Transportation (Ship)"},"PTX-BusinessOpportunityAnalyzer-1.0.9",{"$f":"sel_country_code","v":"DEU"},"Hydrogen (AEL)",{"$f":"_calc!$B$832","v":"ARG-CBA"},{"$f":"_calc!$BO$827","v":"COST-OPEX"},{"$f":"_calc!$BT$1","v":"Transportation (Ship)"},{"$f":"_calc!$BT$832","v":43.781742967027661}]
[{"$f":"_xlfn.TEXTJOIN(\",\",FALSE,output[[#This Row],[scenario]:[process_class]])","v":"PTX-BusinessOpportunityAnalyzer-1.0.9,DEU,Hydrogen (AEL),ARG-CBA,COST-OPEX,Carbon"},"PTX-BusinessOpportunityAnalyzer-1.0.9",{"$f":"sel_country_code","v":"DEU"},"Hydrogen (AEL)",{"$f":"_calc!$B$832","v":"ARG-CBA"},{"$f":"_calc!$BO$827","v":"COST-OPEX"},{"$f":"_calc!$BU$1","v":"Carbon"},{"$f":"_calc!$BU$832","v":0}]
[{"$f":"_xlfn.TEXTJOIN(\",\",FALSE,output[[#This Row],[scenario]:[process_class]])","v":"PTX-BusinessOpportunityAnalyzer-1.0.9,DEU,Hydrogen (AEL),ARG-CBA,COST-OPEX,Derivate production"},"PTX-BusinessOpportunityAnalyzer-1.0.9",{"$f":"sel_country_code","v":"DEU"},"Hydrogen (AEL)",{"$f":"_calc!$B$832","v":"ARG-CBA"},{"$f":"_calc!$BO$827","v":"COST-OPEX"},{"$f":"_calc!$BV$1","v":"Derivate production"},{"$f":"_calc!$BV$832","v":0}]
[{"$f":"_xlfn.TEXTJOIN(\",\",FALSE,output[[#This Row],[scenario]:[process_class]])","v":"PTX-BusinessOpportunityAnalyzer-1.0.9,DEU,Hydrogen (AEL),ARG-CBA,COST-OPEX,Heat"},"PTX-BusinessOpportunityAnalyzer-1.0.9",{"$f":"sel_country_code","v":"DEU"},"Hydrogen (AEL)",{"$f":"_calc!$B$832","v":"ARG-CBA"},{"$f":"_calc!$BO$827","v":"COST-OPEX"},{"$f":"_calc!$BW$1","v":"Heat"},{"$f":"_calc!$BW$832","v":0}]
[{"$f":"_xlfn.TEXTJOIN(\",\",FALSE,output[[#This Row],[scenario]:[process_class]])","v":"PTX-BusinessOpportunityAnalyzer-1.0.9,DEU,Hydrogen (AEL),ARG-CBA,COST-OPEX,Electricity and H2 storage"},"PTX-BusinessOpportunityAnalyzer-1.0.9",{"$f":"sel_country_code","v":"DEU"},"Hydrogen (AEL)",{"$f":"_calc!$B$832","v":"ARG-CBA"},{"$f":"_calc!$BO$827","v":"COST-OPEX"},{"$f":"_calc!$BX$1","v":"Electricity and H2 storage"},{"$f":"_calc!$BX$832","v":4.7806352950190805}]
[{"$f":"_xlfn.TEXTJOIN(\",\",FALSE,output[[#This Row],[scenario]:[process_class]])","v":"PTX-BusinessOpportunityAnalyzer-1.0.9,DEU,Hydrogen (AEL),ARG-CHA,COST-OPEX,Water"},"PTX-BusinessOpportunityAnalyzer-1.0.9",{"$f":"sel_country_code","v":"DEU"},"Hydrogen (AEL)",{"$f":"_calc!$B$833","v":"ARG-CHA"},{"$f":"_calc!$BO$827","v":"COST-OPEX"},{"$f":"_calc!$BP$1","v":"Water"},{"$f":"_calc!$BP$833","v":3.9012068381469138E-2}]
[{"$f":"_xlfn.TEXTJOIN(\",\",FALSE,output[[#This Row],[scenario]:[process_class]])","v":"PTX-BusinessOpportunityAnalyzer-1.0.9,DEU,Hydrogen (AEL),ARG-CHA,COST-OPEX,Electrolysis"},"PTX-BusinessOpportunityAnalyzer-1.0.9",{"$f":"sel_country_code","v":"DEU"},"Hydrogen (AEL)",{"$f":"_calc!$B$833","v":"ARG-CHA"},{"$f":"_calc!$BO$827","v":"COST-OPEX"},{"$f":"_calc!$BQ$1","v":"Electrolysis"},{"$f":"_calc!$BQ$833","v":4.1161783882423144}]
[{"$f":"_xlfn.TEXTJOIN(\",\",FALSE,output[[#This Row],[scenario]:[process_class]])","v":"PTX-BusinessOpportunityAnalyzer-1.0.9,DEU,Hydrogen (AEL),ARG-CHA,COST-OPEX,Electricity generation"},"PTX-BusinessOpportunityAnalyzer-1.0.9",{"$f":"sel_country_code","v":"DEU"},"Hydrogen (AEL)",{"$f":"_calc!$B$833","v":"ARG-CHA"},{"$f":"_calc!$BO$827","v":"COST-OPEX"},{"$f":"_calc!$BR$1","v":"Electricity generation"},{"$f":"_calc!$BR$833","v":11.140530617717486}]
[{"$f":"_xlfn.TEXTJOIN(\",\",FALSE,output[[#This Row],[scenario]:[process_class]])","v":"PTX-BusinessOpportunityAnalyzer-1.0.9,DEU,Hydrogen (AEL),ARG-CHA,COST-OPEX,Transportation (Pipeline)"},"PTX-BusinessOpportunityAnalyzer-1.0.9",{"$f":"sel_country_code","v":"DEU"},"Hydrogen (AEL)",{"$f":"_calc!$B$833","v":"ARG-CHA"},{"$f":"_calc!$BO$827","v":"COST-OPEX"},{"$f":"_calc!$BS$1","v":"Transportation (Pipeline)"},{"$f":"_calc!$BS$833","v":0}]
[{"$f":"_xlfn.TEXTJOIN(\",\",FALSE,output[[#This Row],[scenario]:[process_class]])","v":"PTX-BusinessOpportunityAnalyzer-1.0.9,DEU,Hydrogen (AEL),ARG-CHA,COST-OPEX,Transportation (Ship)"},"PTX-BusinessOpportunityAnalyzer-1.0.9",{"$f":"sel_country_code","v":"DEU"},"Hydrogen (AEL)",{"$f":"_calc!$B$833","v":"ARG-CHA"},{"$f":"_calc!$BO$827","v":"COST-OPEX"},{"$f":"_calc!$BT$1","v":"Transportation (Ship)"},{"$f":"_calc!$BT$833","v":45.891348453508094}]
[{"$f":"_xlfn.TEXTJOIN(\",\",FALSE,output[[#This Row],[scenario]:[process_class]])","v":"PTX-BusinessOpportunityAnalyzer-1.0.9,DEU,Hydrogen (AEL),ARG-CHA,COST-OPEX,Carbon"},"PTX-BusinessOpportunityAnalyzer-1.0.9",{"$f":"sel_country_code","v":"DEU"},"Hydrogen (AEL)",{"$f":"_calc!$B$833","v":"ARG-CHA"},{"$f":"_calc!$BO$827","v":"COST-OPEX"},{"$f":"_calc!$BU$1","v":"Carbon"},{"$f":"_calc!$BU$833","v":0}]
[{"$f":"_xlfn.TEXTJOIN(\",\",FALSE,output[[#This Row],[scenario]:[process_class]])","v":"PTX-BusinessOpportunityAnalyzer-1.0.9,DEU,Hydrogen (AEL),ARG-CHA,COST-OPEX,Derivate production"},"PTX-BusinessOpportunityAnalyzer-1.0.9",{"$f":"sel_country_code","v":"DEU"},"Hydrogen (AEL)",{"$f":"_calc!$B$833","v":"ARG-CHA"},{"$f":"_calc!$BO$827","v":"COST-OPEX"},{"$f":"_calc!$BV$1","v":"Derivate production"},{"$f":"_calc!$BV$833","v":0}]
[{"$f":"_xlfn.TEXTJOIN(\",\",FALSE,output[[#This Row],[scenario]:[process_class]])","v":"PTX-BusinessOpportunityAnalyzer-1.0.9,DEU,Hydrogen (AEL),ARG-CHA,COST-OPEX,Heat"},"PTX-BusinessOpportunityAnalyzer-1.0.9",{"$f":"sel_country_code","v":"DEU"},"Hydrogen (AEL)",{"$f":"_calc!$B$833","v":"ARG-CHA"},{"$f":"_calc!$BO$827","v":"COST-OPEX"},{"$f":"_calc!$BW$1","v":"Heat"},{"$f":"_calc!$BW$833","v":0}]
[{"$f":"_xlfn.TEXTJOIN(\",\",FALSE,output[[#This Row],[scenario]:[process_class]])","v":"PTX-BusinessOpportunityAnalyzer-1.0.9,DEU,Hydrogen (AEL),ARG-CHA,COST-OPEX,Electricity and H2 storage"},"PTX-BusinessOpportunityAnalyzer-1.0.9",{"$f":"sel_country_code","v":"DEU"},"Hydrogen (AEL)",{"$f":"_calc!$B$833","v":"ARG-CHA"},{"$f":"_calc!$BO$827","v":"COST-OPEX"},{"$f":"_calc!$BX$1","v":"Electricity and H2 storage"},{"$f":"_calc!$BX$833","v":5.2845869705952708}]
[{"$f":"_xlfn.TEXTJOIN(\",\",FALSE,output[[#This Row],[scenario]:[process_class]])","v":"PTX-BusinessOpportunityAnalyzer-1.0.9,DEU,Hydrogen (AEL),ARG-CHU,COST-OPEX,Water"},"PTX-BusinessOpportunityAnalyzer-1.0.9",{"$f":"sel_country_code","v":"DEU"},"Hydrogen (AEL)",{"$f":"_calc!$B$834","v":"ARG-CHU"},{"$f":"_calc!$BO$827","v":"COST-OPEX"},{"$f":"_calc!$BP$1","v":"Water"},{"$f":"_calc!$BP$834","v":3.9012068381469138E-2}]
[{"$f":"_xlfn.TEXTJOIN(\",\",FALSE,output[[#This Row],[scenario]:[process_class]])","v":"PTX-BusinessOpportunityAnalyzer-1.0.9,DEU,Hydrogen (AEL),ARG-CHU,COST-OPEX,Electrolysis"},"PTX-BusinessOpportunityAnalyzer-1.0.9",{"$f":"sel_country_code","v":"DEU"},"Hydrogen (AEL)",{"$f":"_calc!$B$834","v":"ARG-CHU"},{"$f":"_calc!$BO$827","v":"COST-OPEX"},{"$f":"_calc!$BQ$1","v":"Electrolysis"},{"$f":"_calc!$BQ$834","v":2.682744430288428}]
[{"$f":"_xlfn.TEXTJOIN(\",\",FALSE,output[[#This Row],[scenario]:[process_class]])","v":"PTX-BusinessOpportunityAnalyzer-1.0.9,DEU,Hydrogen (AEL),ARG-CHU,COST-OPEX,Electricity generation"},"PTX-BusinessOpportunityAnalyzer-1.0.9",{"$f":"sel_country_code","v":"DEU"},"Hydrogen (AEL)",{"$f":"_calc!$B$834","v":"ARG-CHU"},{"$f":"_calc!$BO$827","v":"COST-OPEX"},{"$f":"_calc!$BR$1","v":"Electricity generation"},{"$f":"_calc!$BR$834","v":7.5889812290948786}]
[{"$f":"_xlfn.TEXTJOIN(\",\",FALSE,output[[#This Row],[scenario]:[process_class]])","v":"PTX-BusinessOpportunityAnalyzer-1.0.9,DEU,Hydrogen (AEL),ARG-CHU,COST-OPEX,Transportation (Pipeline)"},{"$f":"output_scenario_name","v":"PTX-BusinessOpportunityAnalyzer-1.0.9"},{"$f":"sel_country_code","v":"DEU"},{"$f":"sel_chain","v":"Hydrogen (AEL)"},{"$f":"_calc!$B$834","v":"ARG-CHU"},{"$f":"_calc!$BO$827","v":"COST-OPEX"},{"$f":"_calc!$BS$1","v":"Transportation (Pipeline)"},{"$f":"_calc!$BS$834","v":0}]
[{"$f":"_xlfn.TEXTJOIN(\",\",FALSE,output[[#This Row],[scenario]:[process_class]])","v":"PTX-BusinessOpportunityAnalyzer-1.0.9,DEU,Hydrogen (AEL),ARG-CHU,COST-OPEX,Transportation (Ship)"},"PTX-BusinessOpportunityAnalyzer-1.0.9",{"$f":"sel_country_code","v":"DEU"},"Hydrogen (AEL)",{"$f":"_calc!$B$834","v":"ARG-CHU"},{"$f":"_calc!$BO$827","v":"COST-OPEX"},{"$f":"_calc!$BT$1","v":"Transportation (Ship)"},{"$f":"_calc!$BT$834","v":38.974344375229514}]
[{"$f":"_xlfn.TEXTJOIN(\",\",FALSE,output[[#This Row],[scenario]:[process_class]])","v":"PTX-BusinessOpportunityAnalyzer-1.0.9,DEU,Hydrogen (AEL),ARG-CHU,COST-OPEX,Carbon"},"PTX-BusinessOpportunityAnalyzer-1.0.9",{"$f":"sel_country_code","v":"DEU"},"Hydrogen (AEL)",{"$f":"_calc!$B$834","v":"ARG-CHU"},{"$f":"_calc!$BO$827","v":"COST-OPEX"},{"$f":"_calc!$BU$1","v":"Carbon"},{"$f":"_calc!$BU$834","v":0}]
[{"$f":"_xlfn.TEXTJOIN(\",\",FALSE,output[[#This Row],[scenario]:[process_class]])","v":"PTX-BusinessOpportunityAnalyzer-1.0.9,DEU,Hydrogen (AEL),ARG-CHU,COST-OPEX,Derivate production"},"PTX-BusinessOpportunityAnalyzer-1.0.9",{"$f":"sel_country_code","v":"DEU"},"Hydrogen (AEL)",{"$f":"_calc!$B$834","v":"ARG-CHU"},{"$f":"_calc!$BO$827","v":"COST-OPEX"},{"$f":"_calc!$BV$1","v":"Derivate production"},{"$f":"_calc!$BV$834","v":0}]
[{"$f":"_xlfn.TEXTJOIN(\",\",FALSE,output[[#This Row],[scenario]:[process_class]])","v":"PTX-BusinessOpportunityAnalyzer-1.0.9,DEU,Hydrogen (AEL),ARG-CHU,COST-OPEX,Heat"},"PTX-BusinessOpportunityAnalyzer-1.0.9",{"$f":"sel_country_code","v":"DEU"},"Hydrogen (AEL)",{"$f":"_calc!$B$834","v":"ARG-CHU"},{"$f":"_calc!$BO$827","v":"COST-OPEX"},{"$f":"_calc!$BW$1","v":"Heat"},{"$f":"_calc!$BW$834","v":0}]
[{"$f":"_xlfn.TEXTJOIN(\",\",FALSE,output[[#This Row],[scenario]:[process_class]])","v":"PTX-BusinessOpportunityAnalyzer-1.0.9,DEU,Hydrogen (AEL),ARG-CHU,COST-OPEX,Electricity and H2 storage"},"PTX-BusinessOpportunityAnalyzer-1.0.9",{"$f":"sel_country_code","v":"DEU"},"Hydrogen (AEL)",{"$f":"_calc!$B$834","v":"ARG-CHU"},{"$f":"_calc!$BO$827","v":"COST-OPEX"},{"$f":"_calc!$BX$1","v":"Electricity and H2 storage"},{"$f":"_calc!$BX$834","v":3.5614324753642874}]
[{"$f":"_xlfn.TEXTJOIN(\",\",FALSE,output[[#This Row],[scenario]:[process_class]])","v":"PTX-BusinessOpportunityAnalyzer-1.0.9,DEU,Hydrogen (AEL),ARG-COR,COST-OPEX,Water"},"PTX-BusinessOpportunityAnalyzer-1.0.9",{"$f":"sel_country_code","v":"DEU"},"Hydrogen (AEL)",{"$f":"_calc!$B$835","v":"ARG-COR"},{"$f":"_calc!$BO$827","v":"COST-OPEX"},{"$f":"_calc!$BP$1","v":"Water"},{"$f":"_calc!$BP$835","v":3.9012068381469138E-2}]
[{"$f":"_xlfn.TEXTJOIN(\",\",FALSE,output[[#This Row],[scenario]:[process_class]])","v":"PTX-BusinessOpportunityAnalyzer-1.0.9,DEU,Hydrogen (AEL),ARG-COR,COST-OPEX,Electrolysis"},"PTX-BusinessOpportunityAnalyzer-1.0.9",{"$f":"sel_country_code","v":"DEU"},"Hydrogen (AEL)",{"$f":"_calc!$B$835","v":"ARG-COR"},{"$f":"_calc!$BO$827","v":"COST-OPEX"},{"$f":"_calc!$BQ$1","v":"Electrolysis"},{"$f":"_calc!$BQ$835","v":4.1777637767573284}]
[{"$f":"_xlfn.TEXTJOIN(\",\",FALSE,output[[#This Row],[scenario]:[process_class]])","v":"PTX-BusinessOpportunityAnalyzer-1.0.9,DEU,Hydrogen (AEL),ARG-COR,COST-OPEX,Electricity generation"},"PTX-BusinessOpportunityAnalyzer-1.0.9",{"$f":"sel_country_code","v":"DEU"},"Hydrogen (AEL)",{"$f":"_calc!$B$835","v":"ARG-COR"},{"$f":"_calc!$BO$827","v":"COST-OPEX"},{"$f":"_calc!$BR$1","v":"Electricity generation"},{"$f":"_calc!$BR$835","v":11.286250728460224}]
[{"$f":"_xlfn.TEXTJOIN(\",\",FALSE,output[[#This Row],[scenario]:[process_class]])","v":"PTX-BusinessOpportunityAnalyzer-1.0.9,DEU,Hydrogen (AEL),ARG-COR,COST-OPEX,Transportation (Pipeline)"},"PTX-BusinessOpportunityAnalyzer-1.0.9",{"$f":"sel_country_code","v":"DEU"},"Hydrogen (AEL)",{"$f":"_calc!$B$835","v":"ARG-COR"},{"$f":"_calc!$BO$827","v":"COST-OPEX"},{"$f":"_calc!$BS$1","v":"Transportation (Pipeline)"},{"$f":"_calc!$BS$835","v":0}]
[{"$f":"_xlfn.TEXTJOIN(\",\",FALSE,output[[#This Row],[scenario]:[process_class]])","v":"PTX-BusinessOpportunityAnalyzer-1.0.9,DEU,Hydrogen (AEL),ARG-COR,COST-OPEX,Transportation (Ship)"},"PTX-BusinessOpportunityAnalyzer-1.0.9",{"$f":"sel_country_code","v":"DEU"},"Hydrogen (AEL)",{"$f":"_calc!$B$835","v":"ARG-COR"},{"$f":"_calc!$BO$827","v":"COST-OPEX"},{"$f":"_calc!$BT$1","v":"Transportation (Ship)"},{"$f":"_calc!$BT$835","v":46.197471892216349}]
[{"$f":"_xlfn.TEXTJOIN(\",\",FALSE,output[[#This Row],[scenario]:[process_class]])","v":"PTX-BusinessOpportunityAnalyzer-1.0.9,DEU,Hydrogen (AEL),ARG-COR,COST-OPEX,Carbon"},"PTX-BusinessOpportunityAnalyzer-1.0.9",{"$f":"sel_country_code","v":"DEU"},"Hydrogen (AEL)",{"$f":"_calc!$B$835","v":"ARG-COR"},{"$f":"_calc!$BO$827","v":"COST-OPEX"},{"$f":"_calc!$BU$1","v":"Carbon"},{"$f":"_calc!$BU$835","v":0}]
[{"$f":"_xlfn.TEXTJOIN(\",\",FALSE,output[[#This Row],[scenario]:[process_class]])","v":"PTX-BusinessOpportunityAnalyzer-1.0.9,DEU,Hydrogen (AEL),ARG-COR,COST-OPEX,Derivate production"},"PTX-BusinessOpportunityAnalyzer-1.0.9",{"$f":"sel_country_code","v":"DEU"},"Hydrogen (AEL)",{"$f":"_calc!$B$835","v":"ARG-COR"},{"$f":"_calc!$BO$827","v":"COST-OPEX"},{"$f":"_calc!$BV$1","v":"Derivate production"},{"$f":"_calc!$BV$835","v":0}]
[{"$f":"_xlfn.TEXTJOIN(\",\",FALSE,output[[#This Row],[scenario]:[process_class]])","v":"PTX-BusinessOpportunityAnalyzer-1.0.9,DEU,Hydrogen (AEL),ARG-COR,COST-OPEX,Heat"},"PTX-BusinessOpportunityAnalyzer-1.0.9",{"$f":"sel_country_code","v":"DEU"},"Hydrogen (AEL)",{"$f":"_calc!$B$835","v":"ARG-COR"},{"$f":"_calc!$BO$827","v":"COST-OPEX"},{"$f":"_calc!$BW$1","v":"Heat"},{"$f":"_calc!$BW$835","v":0}]
[{"$f":"_xlfn.TEXTJOIN(\",\",FALSE,output[[#This Row],[scenario]:[process_class]])","v":"PTX-BusinessOpportunityAnalyzer-1.0.9,DEU,Hydrogen (AEL),ARG-COR,COST-OPEX,Electricity and H2 storage"},"PTX-BusinessOpportunityAnalyzer-1.0.9",{"$f":"sel_country_code","v":"DEU"},"Hydrogen (AEL)",{"$f":"_calc!$B$835","v":"ARG-COR"},{"$f":"_calc!$BO$827","v":"COST-OPEX"},{"$f":"_calc!$BX$1","v":"Electricity and H2 storage"},{"$f":"_calc!$BX$835","v":5.3562460671451966}]
[{"$f":"_xlfn.TEXTJOIN(\",\",FALSE,output[[#This Row],[scenario]:[process_class]])","v":"PTX-BusinessOpportunityAnalyzer-1.0.9,DEU,Hydrogen (AEL),ARG-CRB,COST-OPEX,Water"},"PTX-BusinessOpportunityAnalyzer-1.0.9",{"$f":"sel_country_code","v":"DEU"},"Hydrogen (AEL)",{"$f":"_calc!$B$836","v":"ARG-CRB"},{"$f":"_calc!$BO$827","v":"COST-OPEX"},{"$f":"_calc!$BP$1","v":"Water"},{"$f":"_calc!$BP$836","v":3.9012068381469138E-2}]
[{"$f":"_xlfn.TEXTJOIN(\",\",FALSE,output[[#This Row],[scenario]:[process_class]])","v":"PTX-BusinessOpportunityAnalyzer-1.0.9,DEU,Hydrogen (AEL),ARG-CRB,COST-OPEX,Electrolysis"},"PTX-BusinessOpportunityAnalyzer-1.0.9",{"$f":"sel_country_code","v":"DEU"},"Hydrogen (AEL)",{"$f":"_calc!$B$836","v":"ARG-CRB"},{"$f":"_calc!$BO$827","v":"COST-OPEX"},{"$f":"_calc!$BQ$1","v":"Electrolysis"},{"$f":"_calc!$BQ$836","v":4.4615191003628221}]
[{"$f":"_xlfn.TEXTJOIN(\",\",FALSE,output[[#This Row],[scenario]:[process_class]])","v":"PTX-BusinessOpportunityAnalyzer-1.0.9,DEU,Hydrogen (AEL),ARG-CRB,COST-OPEX,Electricity generation"},"PTX-BusinessOpportunityAnalyzer-1.0.9",{"$f":"sel_country_code","v":"DEU"},"Hydrogen (AEL)",{"$f":"_calc!$B$836","v":"ARG-CRB"},{"$f":"_calc!$BO$827","v":"COST-OPEX"},{"$f":"_calc!$BR$1","v":"Electricity generation"},{"$f":"_calc!$BR$836","v":11.950737091456915}]
[{"$f":"_xlfn.TEXTJOIN(\",\",FALSE,output[[#This Row],[scenario]:[process_class]])","v":"PTX-BusinessOpportunityAnalyzer-1.0.9,DEU,Hydrogen (AEL),ARG-CRB,COST-OPEX,Transportation (Pipeline)"},"PTX-BusinessOpportunityAnalyzer-1.0.9",{"$f":"sel_country_code","v":"DEU"},"Hydrogen (AEL)",{"$f":"_calc!$B$836","v":"ARG-CRB"},{"$f":"_calc!$BO$827","v":"COST-OPEX"},{"$f":"_calc!$BS$1","v":"Transportation (Pipeline)"},{"$f":"_calc!$BS$836","v":0}]
[{"$f":"_xlfn.TEXTJOIN(\",\",FALSE,output[[#This Row],[scenario]:[process_class]])","v":"PTX-BusinessOpportunityAnalyzer-1.0.9,DEU,Hydrogen (AEL),ARG-CRB,COST-OPEX,Transportation (Ship)"},"PTX-BusinessOpportunityAnalyzer-1.0.9",{"$f":"sel_country_code","v":"DEU"},"Hydrogen (AEL)",{"$f":"_calc!$B$836","v":"ARG-CRB"},{"$f":"_calc!$BO$827","v":"COST-OPEX"},{"$f":"_calc!$BT$1","v":"Transportation (Ship)"},{"$f":"_calc!$BT$836","v":47.617801413994918}]
[{"$f":"_xlfn.TEXTJOIN(\",\",FALSE,output[[#This Row],[scenario]:[process_class]])","v":"PTX-BusinessOpportunityAnalyzer-1.0.9,DEU,Hydrogen (AEL),ARG-CRB,COST-OPEX,Carbon"},"PTX-BusinessOpportunityAnalyzer-1.0.9",{"$f":"sel_country_code","v":"DEU"},"Hydrogen (AEL)",{"$f":"_calc!$B$836","v":"ARG-CRB"},{"$f":"_calc!$BO$827","v":"COST-OPEX"},{"$f":"_calc!$BU$1","v":"Carbon"},{"$f":"_calc!$BU$836","v":0}]
[{"$f":"_xlfn.TEXTJOIN(\",\",FALSE,output[[#This Row],[scenario]:[process_class]])","v":"PTX-BusinessOpportunityAnalyzer-1.0.9,DEU,Hydrogen (AEL),ARG-CRB,COST-OPEX,Derivate production"},"PTX-BusinessOpportunityAnalyzer-1.0.9",{"$f":"sel_country_code","v":"DEU"},"Hydrogen (AEL)",{"$f":"_calc!$B$836","v":"ARG-CRB"},{"$f":"_calc!$BO$827","v":"COST-OPEX"},{"$f":"_calc!$BV$1","v":"Derivate production"},{"$f":"_calc!$BV$836","v":0}]
[{"$f":"_xlfn.TEXTJOIN(\",\",FALSE,output[[#This Row],[scenario]:[process_class]])","v":"PTX-BusinessOpportunityAnalyzer-1.0.9,DEU,Hydrogen (AEL),ARG-CRB,COST-OPEX,Heat"},"PTX-BusinessOpportunityAnalyzer-1.0.9",{"$f":"sel_country_code","v":"DEU"},"Hydrogen (AEL)",{"$f":"_calc!$B$836","v":"ARG-CRB"},{"$f":"_calc!$BO$827","v":"COST-OPEX"},{"$f":"_calc!$BW$1","v":"Heat"},{"$f":"_calc!$BW$836","v":0}]
[{"$f":"_xlfn.TEXTJOIN(\",\",FALSE,output[[#This Row],[scenario]:[process_class]])","v":"PTX-BusinessOpportunityAnalyzer-1.0.9,DEU,Hydrogen (AEL),ARG-CRB,COST-OPEX,Electricity and H2 storage"},"PTX-BusinessOpportunityAnalyzer-1.0.9",{"$f":"sel_country_code","v":"DEU"},"Hydrogen (AEL)",{"$f":"_calc!$B$836","v":"ARG-CRB"},{"$f":"_calc!$BO$827","v":"COST-OPEX"},{"$f":"_calc!$BX$1","v":"Electricity and H2 storage"},{"$f":"_calc!$BX$836","v":5.6840238772668936}]
[{"$f":"_xlfn.TEXTJOIN(\",\",FALSE,output[[#This Row],[scenario]:[process_class]])","v":"PTX-BusinessOpportunityAnalyzer-1.0.9,DEU,Hydrogen (AEL),ARG-CRU,COST-OPEX,Water"},"PTX-BusinessOpportunityAnalyzer-1.0.9",{"$f":"sel_country_code","v":"DEU"},"Hydrogen (AEL)",{"$f":"_calc!$B$837","v":"ARG-CRU"},{"$f":"_calc!$BO$827","v":"COST-OPEX"},{"$f":"_calc!$BP$1","v":"Water"},{"$f":"_calc!$BP$837","v":3.9012068381469138E-2}]
[{"$f":"_xlfn.TEXTJOIN(\",\",FALSE,output[[#This Row],[scenario]:[process_class]])","v":"PTX-BusinessOpportunityAnalyzer-1.0.9,DEU,Hydrogen (AEL),ARG-CRU,COST-OPEX,Electrolysis"},"PTX-BusinessOpportunityAnalyzer-1.0.9",{"$f":"sel_country_code","v":"DEU"},"Hydrogen (AEL)",{"$f":"_calc!$B$837","v":"ARG-CRU"},{"$f":"_calc!$BO$827","v":"COST-OPEX"},{"$f":"_calc!$BQ$1","v":"Electrolysis"},{"$f":"_calc!$BQ$837","v":2.6923807673725131}]
[{"$f":"_xlfn.TEXTJOIN(\",\",FALSE,output[[#This Row],[scenario]:[process_class]])","v":"PTX-BusinessOpportunityAnalyzer-1.0.9,DEU,Hydrogen (AEL),ARG-CRU,COST-OPEX,Electricity generation"},"PTX-BusinessOpportunityAnalyzer-1.0.9",{"$f":"sel_country_code","v":"DEU"},"Hydrogen (AEL)",{"$f":"_calc!$B$837","v":"ARG-CRU"},{"$f":"_calc!$BO$827","v":"COST-OPEX"},{"$f":"_calc!$BR$1","v":"Electricity generation"},{"$f":"_calc!$BR$837","v":7.6139279084854206}]
[{"$f":"_xlfn.TEXTJOIN(\",\",FALSE,output[[#This Row],[scenario]:[process_class]])","v":"PTX-BusinessOpportunityAnalyzer-1.0.9,DEU,Hydrogen (AEL),ARG-CRU,COST-OPEX,Transportation (Pipeline)"},"PTX-BusinessOpportunityAnalyzer-1.0.9",{"$f":"sel_country_code","v":"DEU"},"Hydrogen (AEL)",{"$f":"_calc!$B$837","v":"ARG-CRU"},{"$f":"_calc!$BO$827","v":"COST-OPEX"},{"$f":"_calc!$BS$1","v":"Transportation (Pipeline)"},{"$f":"_calc!$BS$837","v":0}]
[{"$f":"_xlfn.TEXTJOIN(\",\",FALSE,output[[#This Row],[scenario]:[process_class]])","v":"PTX-BusinessOpportunityAnalyzer-1.0.9,DEU,Hydrogen (AEL),ARG-CRU,COST-OPEX,Transportation (Ship)"},"PTX-BusinessOpportunityAnalyzer-1.0.9",{"$f":"sel_country_code","v":"DEU"},"Hydrogen (AEL)",{"$f":"_calc!$B$837","v":"ARG-CRU"},{"$f":"_calc!$BO$827","v":"COST-OPEX"},{"$f":"_calc!$BT$1","v":"Transportation (Ship)"},{"$f":"_calc!$BT$837","v":39.019550127159285}]
[{"$f":"_xlfn.TEXTJOIN(\",\",FALSE,output[[#This Row],[scenario]:[process_class]])","v":"PTX-BusinessOpportunityAnalyzer-1.0.9,DEU,Hydrogen (AEL),ARG-CRU,COST-OPEX,Carbon"},"PTX-BusinessOpportunityAnalyzer-1.0.9",{"$f":"sel_country_code","v":"DEU"},"Hydrogen (AEL)",{"$f":"_calc!$B$837","v":"ARG-CRU"},{"$f":"_calc!$BO$827","v":"COST-OPEX"},{"$f":"_calc!$BU$1","v":"Carbon"},{"$f":"_calc!$BU$837","v":0}]
[{"$f":"_xlfn.TEXTJOIN(\",\",FALSE,output[[#This Row],[scenario]:[process_class]])","v":"PTX-BusinessOpportunityAnalyzer-1.0.9,DEU,Hydrogen (AEL),ARG-CRU,COST-OPEX,Derivate production"},"PTX-BusinessOpportunityAnalyzer-1.0.9",{"$f":"sel_country_code","v":"DEU"},"Hydrogen (AEL)",{"$f":"_calc!$B$837","v":"ARG-CRU"},{"$f":"_calc!$BO$827","v":"COST-OPEX"},{"$f":"_calc!$BV$1","v":"Derivate production"},{"$f":"_calc!$BV$837","v":0}]
[{"$f":"_xlfn.TEXTJOIN(\",\",FALSE,output[[#This Row],[scenario]:[process_class]])","v":"PTX-BusinessOpportunityAnalyzer-1.0.9,DEU,Hydrogen (AEL),ARG-CRU,COST-OPEX,Heat"},"PTX-BusinessOpportunityAnalyzer-1.0.9",{"$f":"sel_country_code","v":"DEU"},"Hydrogen (AEL)",{"$f":"_calc!$B$837","v":"ARG-CRU"},{"$f":"_calc!$BO$827","v":"COST-OPEX"},{"$f":"_calc!$BW$1","v":"Heat"},{"$f":"_calc!$BW$837","v":0}]
[{"$f":"_xlfn.TEXTJOIN(\",\",FALSE,output[[#This Row],[scenario]:[process_class]])","v":"PTX-BusinessOpportunityAnalyzer-1.0.9,DEU,Hydrogen (AEL),ARG-CRU,COST-OPEX,Electricity and H2 storage"},"PTX-BusinessOpportunityAnalyzer-1.0.9",{"$f":"sel_country_code","v":"DEU"},"Hydrogen (AEL)",{"$f":"_calc!$B$837","v":"ARG-CRU"},{"$f":"_calc!$BO$827","v":"COST-OPEX"},{"$f":"_calc!$BX$1","v":"Electricity and H2 storage"},{"$f":"_calc!$BX$837","v":3.5733867540757354}]
[{"$f":"_xlfn.TEXTJOIN(\",\",FALSE,output[[#This Row],[scenario]:[process_class]])","v":"PTX-BusinessOpportunityAnalyzer-1.0.9,DEU,Hydrogen (AEL),ARG-EST,COST-OPEX,Water"},"PTX-BusinessOpportunityAnalyzer-1.0.9",{"$f":"sel_country_code","v":"DEU"},"Hydrogen (AEL)",{"$f":"_calc!$B$838","v":"ARG-EST"},{"$f":"_calc!$BO$827","v":"COST-OPEX"},{"$f":"_calc!$BP$1","v":"Water"},{"$f":"_calc!$BP$838","v":3.9012068381469138E-2}]
[{"$f":"_xlfn.TEXTJOIN(\",\",FALSE,output[[#This Row],[scenario]:[process_class]])","v":"PTX-BusinessOpportunityAnalyzer-1.0.9,DEU,Hydrogen (AEL),ARG-EST,COST-OPEX,Electrolysis"},"PTX-BusinessOpportunityAnalyzer-1.0.9",{"$f":"sel_country_code","v":"DEU"},"Hydrogen (AEL)",{"$f":"_calc!$B$838","v":"ARG-EST"},{"$f":"_calc!$BO$827","v":"COST-OPEX"},{"$f":"_calc!$BQ$1","v":"Electrolysis"},{"$f":"_calc!$BQ$838","v":3.6111168226690271}]
[{"$f":"_xlfn.TEXTJOIN(\",\",FALSE,output[[#This Row],[scenario]:[process_class]])","v":"PTX-BusinessOpportunityAnalyzer-1.0.9,DEU,Hydrogen (AEL),ARG-EST,COST-OPEX,Electricity generation"},"PTX-BusinessOpportunityAnalyzer-1.0.9",{"$f":"sel_country_code","v":"DEU"},"Hydrogen (AEL)",{"$f":"_calc!$B$838","v":"ARG-EST"},{"$f":"_calc!$BO$827","v":"COST-OPEX"},{"$f":"_calc!$BR$1","v":"Electricity generation"},{"$f":"_calc!$BR$838","v":9.9247421799229567}]
[{"$f":"_xlfn.TEXTJOIN(\",\",FALSE,output[[#This Row],[scenario]:[process_class]])","v":"PTX-BusinessOpportunityAnalyzer-1.0.9,DEU,Hydrogen (AEL),ARG-EST,COST-OPEX,Transportation (Pipeline)"},"PTX-BusinessOpportunityAnalyzer-1.0.9",{"$f":"sel_country_code","v":"DEU"},"Hydrogen (AEL)",{"$f":"_calc!$B$838","v":"ARG-EST"},{"$f":"_calc!$BO$827","v":"COST-OPEX"},{"$f":"_calc!$BS$1","v":"Transportation (Pipeline)"},{"$f":"_calc!$BS$838","v":0}]
[{"$f":"_xlfn.TEXTJOIN(\",\",FALSE,output[[#This Row],[scenario]:[process_class]])","v":"PTX-BusinessOpportunityAnalyzer-1.0.9,DEU,Hydrogen (AEL),ARG-EST,COST-OPEX,Transportation (Ship)"},"PTX-BusinessOpportunityAnalyzer-1.0.9",{"$f":"sel_country_code","v":"DEU"},"Hydrogen (AEL)",{"$f":"_calc!$B$838","v":"ARG-EST"},{"$f":"_calc!$BO$827","v":"COST-OPEX"},{"$f":"_calc!$BT$1","v":"Transportation (Ship)"},{"$f":"_calc!$BT$838","v":43.40914772472361}]
[{"$f":"_xlfn.TEXTJOIN(\",\",FALSE,output[[#This Row],[scenario]:[process_class]])","v":"PTX-BusinessOpportunityAnalyzer-1.0.9,DEU,Hydrogen (AEL),ARG-EST,COST-OPEX,Carbon"},"PTX-BusinessOpportunityAnalyzer-1.0.9",{"$f":"sel_country_code","v":"DEU"},"Hydrogen (AEL)",{"$f":"_calc!$B$838","v":"ARG-EST"},{"$f":"_calc!$BO$827","v":"COST-OPEX"},{"$f":"_calc!$BU$1","v":"Carbon"},{"$f":"_calc!$BU$838","v":0}]
[{"$f":"_xlfn.TEXTJOIN(\",\",FALSE,output[[#This Row],[scenario]:[process_class]])","v":"PTX-BusinessOpportunityAnalyzer-1.0.9,DEU,Hydrogen (AEL),ARG-EST,COST-OPEX,Derivate production"},"PTX-BusinessOpportunityAnalyzer-1.0.9",{"$f":"sel_country_code","v":"DEU"},"Hydrogen (AEL)",{"$f":"_calc!$B$838","v":"ARG-EST"},{"$f":"_calc!$BO$827","v":"COST-OPEX"},{"$f":"_calc!$BV$1","v":"Derivate production"},{"$f":"_calc!$BV$838","v":0}]
[{"$f":"_xlfn.TEXTJOIN(\",\",FALSE,output[[#This Row],[scenario]:[process_class]])","v":"PTX-BusinessOpportunityAnalyzer-1.0.9,DEU,Hydrogen (AEL),ARG-EST,COST-OPEX,Heat"},"PTX-BusinessOpportunityAnalyzer-1.0.9",{"$f":"sel_country_code","v":"DEU"},"Hydrogen (AEL)",{"$f":"_calc!$B$838","v":"ARG-EST"},{"$f":"_calc!$BO$827","v":"COST-OPEX"},{"$f":"_calc!$BW$1","v":"Heat"},{"$f":"_calc!$BW$838","v":0}]
[{"$f":"_xlfn.TEXTJOIN(\",\",FALSE,output[[#This Row],[scenario]:[process_class]])","v":"PTX-BusinessOpportunityAnalyzer-1.0.9,DEU,Hydrogen (AEL),ARG-EST,COST-OPEX,Electricity and H2 storage"},"PTX-BusinessOpportunityAnalyzer-1.0.9",{"$f":"sel_country_code","v":"DEU"},"Hydrogen (AEL)",{"$f":"_calc!$B$838","v":"ARG-EST"},{"$f":"_calc!$BO$827","v":"COST-OPEX"},{"$f":"_calc!$BX$1","v":"Electricity and H2 storage"},{"$f":"_calc!$BX$838","v":4.6897423717747033}]
[{"$f":"_xlfn.TEXTJOIN(\",\",FALSE,output[[#This Row],[scenario]:[process_class]])","v":"PTX-BusinessOpportunityAnalyzer-1.0.9,DEU,Hydrogen (AEL),ARG-FOR,COST-OPEX,Water"},"PTX-BusinessOpportunityAnalyzer-1.0.9",{"$f":"sel_country_code","v":"DEU"},"Hydrogen (AEL)",{"$f":"_calc!$B$839","v":"ARG-FOR"},{"$f":"_calc!$BO$827","v":"COST-OPEX"},{"$f":"_calc!$BP$1","v":"Water"},{"$f":"_calc!$BP$839","v":3.9012068381469138E-2}]
[{"$f":"_xlfn.TEXTJOIN(\",\",FALSE,output[[#This Row],[scenario]:[process_class]])","v":"PTX-BusinessOpportunityAnalyzer-1.0.9,DEU,Hydrogen (AEL),ARG-FOR,COST-OPEX,Electrolysis"},"PTX-BusinessOpportunityAnalyzer-1.0.9",{"$f":"sel_country_code","v":"DEU"},"Hydrogen (AEL)",{"$f":"_calc!$B$839","v":"ARG-FOR"},{"$f":"_calc!$BO$827","v":"COST-OPEX"},{"$f":"_calc!$BQ$1","v":"Electrolysis"},{"$f":"_calc!$BQ$839","v":3.5611997852647725}]
[{"$f":"_xlfn.TEXTJOIN(\",\",FALSE,output[[#This Row],[scenario]:[process_class]])","v":"PTX-BusinessOpportunityAnalyzer-1.0.9,DEU,Hydrogen (AEL),ARG-FOR,COST-OPEX,Electricity generation"},"PTX-BusinessOpportunityAnalyzer-1.0.9",{"$f":"sel_country_code","v":"DEU"},"Hydrogen (AEL)",{"$f":"_calc!$B$839","v":"ARG-FOR"},{"$f":"_calc!$BO$827","v":"COST-OPEX"},{"$f":"_calc!$BR$1","v":"Electricity generation"},{"$f":"_calc!$BR$839","v":9.8025360721053012}]
[{"$f":"_xlfn.TEXTJOIN(\",\",FALSE,output[[#This Row],[scenario]:[process_class]])","v":"PTX-BusinessOpportunityAnalyzer-1.0.9,DEU,Hydrogen (AEL),ARG-FOR,COST-OPEX,Transportation (Pipeline)"},"PTX-BusinessOpportunityAnalyzer-1.0.9",{"$f":"sel_country_code","v":"DEU"},"Hydrogen (AEL)",{"$f":"_calc!$B$839","v":"ARG-FOR"},{"$f":"_calc!$BO$827","v":"COST-OPEX"},{"$f":"_calc!$BS$1","v":"Transportation (Pipeline)"},{"$f":"_calc!$BS$839","v":0}]
[{"$f":"_xlfn.TEXTJOIN(\",\",FALSE,output[[#This Row],[scenario]:[process_class]])","v":"PTX-BusinessOpportunityAnalyzer-1.0.9,DEU,Hydrogen (AEL),ARG-FOR,COST-OPEX,Transportation (Ship)"},"PTX-BusinessOpportunityAnalyzer-1.0.9",{"$f":"sel_country_code","v":"DEU"},"Hydrogen (AEL)",{"$f":"_calc!$B$839","v":"ARG-FOR"},{"$f":"_calc!$BO$827","v":"COST-OPEX"},{"$f":"_calc!$BT$1","v":"Transportation (Ship)"},{"$f":"_calc!$BT$839","v":43.166530358446778}]
[{"$f":"_xlfn.TEXTJOIN(\",\",FALSE,output[[#This Row],[scenario]:[process_class]])","v":"PTX-BusinessOpportunityAnalyzer-1.0.9,DEU,Hydrogen (AEL),ARG-FOR,COST-OPEX,Carbon"},"PTX-BusinessOpportunityAnalyzer-1.0.9",{"$f":"sel_country_code","v":"DEU"},"Hydrogen (AEL)",{"$f":"_calc!$B$839","v":"ARG-FOR"},{"$f":"_calc!$BO$827","v":"COST-OPEX"},{"$f":"_calc!$BU$1","v":"Carbon"},{"$f":"_calc!$BU$839","v":0}]
[{"$f":"_xlfn.TEXTJOIN(\",\",FALSE,output[[#This Row],[scenario]:[process_class]])","v":"PTX-BusinessOpportunityAnalyzer-1.0.9,DEU,Hydrogen (AEL),ARG-FOR,COST-OPEX,Derivate production"},"PTX-BusinessOpportunityAnalyzer-1.0.9",{"$f":"sel_country_code","v":"DEU"},"Hydrogen (AEL)",{"$f":"_calc!$B$839","v":"ARG-FOR"},{"$f":"_calc!$BO$827","v":"COST-OPEX"},{"$f":"_calc!$BV$1","v":"Derivate production"},{"$f":"_calc!$BV$839","v":0}]
[{"$f":"_xlfn.TEXTJOIN(\",\",FALSE,output[[#This Row],[scenario]:[process_class]])","v":"PTX-BusinessOpportunityAnalyzer-1.0.9,DEU,Hydrogen (AEL),ARG-FOR,COST-OPEX,Heat"},"PTX-BusinessOpportunityAnalyzer-1.0.9",{"$f":"sel_country_code","v":"DEU"},"Hydrogen (AEL)",{"$f":"_calc!$B$839","v":"ARG-FOR"},{"$f":"_calc!$BO$827","v":"COST-OPEX"},{"$f":"_calc!$BW$1","v":"Heat"},{"$f":"_calc!$BW$839","v":0}]
[{"$f":"_xlfn.TEXTJOIN(\",\",FALSE,output[[#This Row],[scenario]:[process_class]])","v":"PTX-BusinessOpportunityAnalyzer-1.0.9,DEU,Hydrogen (AEL),ARG-FOR,COST-OPEX,Electricity and H2 storage"},"PTX-BusinessOpportunityAnalyzer-1.0.9",{"$f":"sel_country_code","v":"DEU"},"Hydrogen (AEL)",{"$f":"_calc!$B$839","v":"ARG-FOR"},{"$f":"_calc!$BO$827","v":"COST-OPEX"},{"$f":"_calc!$BX$1","v":"Electricity and H2 storage"},{"$f":"_calc!$BX$839","v":4.6302447263861533}]
[{"$f":"_xlfn.TEXTJOIN(\",\",FALSE,output[[#This Row],[scenario]:[process_class]])","v":"PTX-BusinessOpportunityAnalyzer-1.0.9,DEU,Hydrogen (AEL),ARG-FUE,COST-OPEX,Water"},"PTX-BusinessOpportunityAnalyzer-1.0.9",{"$f":"sel_country_code","v":"DEU"},"Hydrogen (AEL)",{"$f":"_calc!$B$840","v":"ARG-FUE"},{"$f":"_calc!$BO$827","v":"COST-OPEX"},{"$f":"_calc!$BP$1","v":"Water"},{"$f":"_calc!$BP$840","v":3.9012068381469138E-2}]
[{"$f":"_xlfn.TEXTJOIN(\",\",FALSE,output[[#This Row],[scenario]:[process_class]])","v":"PTX-BusinessOpportunityAnalyzer-1.0.9,DEU,Hydrogen (AEL),ARG-FUE,COST-OPEX,Electrolysis"},"PTX-BusinessOpportunityAnalyzer-1.0.9",{"$f":"sel_country_code","v":"DEU"},"Hydrogen (AEL)",{"$f":"_calc!$B$840","v":"ARG-FUE"},{"$f":"_calc!$BO$827","v":"COST-OPEX"},{"$f":"_calc!$BQ$1","v":"Electrolysis"},{"$f":"_calc!$BQ$840","v":4.1209385037266477}]
[{"$f":"_xlfn.TEXTJOIN(\",\",FALSE,output[[#This Row],[scenario]:[process_class]])","v":"PTX-BusinessOpportunityAnalyzer-1.0.9,DEU,Hydrogen (AEL),ARG-FUE,COST-OPEX,Electricity generation"},"PTX-BusinessOpportunityAnalyzer-1.0.9",{"$f":"sel_country_code","v":"DEU"},"Hydrogen (AEL)",{"$f":"_calc!$B$840","v":"ARG-FUE"},{"$f":"_calc!$BO$827","v":"COST-OPEX"},{"$f":"_calc!$BR$1","v":"Electricity generation"},{"$f":"_calc!$BR$840","v":11.151813052426334}]
[{"$f":"_xlfn.TEXTJOIN(\",\",FALSE,output[[#This Row],[scenario]:[process_class]])","v":"PTX-BusinessOpportunityAnalyzer-1.0.9,DEU,Hydrogen (AEL),ARG-FUE,COST-OPEX,Transportation (Pipeline)"},"PTX-BusinessOpportunityAnalyzer-1.0.9",{"$f":"sel_country_code","v":"DEU"},"Hydrogen (AEL)",{"$f":"_calc!$B$840","v":"ARG-FUE"},{"$f":"_calc!$BO$827","v":"COST-OPEX"},{"$f":"_calc!$BS$1","v":"Transportation (Pipeline)"},{"$f":"_calc!$BS$840","v":0}]
[{"$f":"_xlfn.TEXTJOIN(\",\",FALSE,output[[#This Row],[scenario]:[process_class]])","v":"PTX-BusinessOpportunityAnalyzer-1.0.9,DEU,Hydrogen (AEL),ARG-FUE,COST-OPEX,Transportation (Ship)"},"PTX-BusinessOpportunityAnalyzer-1.0.9",{"$f":"sel_country_code","v":"DEU"},"Hydrogen (AEL)",{"$f":"_calc!$B$840","v":"ARG-FUE"},{"$f":"_calc!$BO$827","v":"COST-OPEX"},{"$f":"_calc!$BT$1","v":"Transportation (Ship)"},{"$f":"_calc!$BT$840","v":45.914982594946537}]
[{"$f":"_xlfn.TEXTJOIN(\",\",FALSE,output[[#This Row],[scenario]:[process_class]])","v":"PTX-BusinessOpportunityAnalyzer-1.0.9,DEU,Hydrogen (AEL),ARG-FUE,COST-OPEX,Carbon"},"PTX-BusinessOpportunityAnalyzer-1.0.9",{"$f":"sel_country_code","v":"DEU"},"Hydrogen (AEL)",{"$f":"_calc!$B$840","v":"ARG-FUE"},{"$f":"_calc!$BO$827","v":"COST-OPEX"},{"$f":"_calc!$BU$1","v":"Carbon"},{"$f":"_calc!$BU$840","v":0}]
[{"$f":"_xlfn.TEXTJOIN(\",\",FALSE,output[[#This Row],[scenario]:[process_class]])","v":"PTX-BusinessOpportunityAnalyzer-1.0.9,DEU,Hydrogen (AEL),ARG-FUE,COST-OPEX,Derivate production"},"PTX-BusinessOpportunityAnalyzer-1.0.9",{"$f":"sel_country_code","v":"DEU"},"Hydrogen (AEL)",{"$f":"_calc!$B$840","v":"ARG-FUE"},{"$f":"_calc!$BO$827","v":"COST-OPEX"},{"$f":"_calc!$BV$1","v":"Derivate production"},{"$f":"_calc!$BV$840","v":0}]
[{"$f":"_xlfn.TEXTJOIN(\",\",FALSE,output[[#This Row],[scenario]:[process_class]])","v":"PTX-BusinessOpportunityAnalyzer-1.0.9,DEU,Hydrogen (AEL),ARG-FUE,COST-OPEX,Heat"},"PTX-BusinessOpportunityAnalyzer-1.0.9",{"$f":"sel_country_code","v":"DEU"},"Hydrogen (AEL)",{"$f":"_calc!$B$840","v":"ARG-FUE"},{"$f":"_calc!$BO$827","v":"COST-OPEX"},{"$f":"_calc!$BW$1","v":"Heat"},{"$f":"_calc!$BW$840","v":0}]
[{"$f":"_xlfn.TEXTJOIN(\",\",FALSE,output[[#This Row],[scenario]:[process_class]])","v":"PTX-BusinessOpportunityAnalyzer-1.0.9,DEU,Hydrogen (AEL),ARG-FUE,COST-OPEX,Electricity and H2 storage"},"PTX-BusinessOpportunityAnalyzer-1.0.9",{"$f":"sel_country_code","v":"DEU"},"Hydrogen (AEL)",{"$f":"_calc!$B$840","v":"ARG-FUE"},{"$f":"_calc!$BO$827","v":"COST-OPEX"},{"$f":"_calc!$BX$1","v":"Electricity and H2 storage"},{"$f":"_calc!$BX$840","v":5.2901323838009802}]
[{"$f":"_xlfn.TEXTJOIN(\",\",FALSE,output[[#This Row],[scenario]:[process_class]])","v":"PTX-BusinessOpportunityAnalyzer-1.0.9,DEU,Hydrogen (AEL),ARG-JUJ,COST-OPEX,Water"},"PTX-BusinessOpportunityAnalyzer-1.0.9",{"$f":"sel_country_code","v":"DEU"},"Hydrogen (AEL)",{"$f":"_calc!$B$841","v":"ARG-JUJ"},{"$f":"_calc!$BO$827","v":"COST-OPEX"},{"$f":"_calc!$BP$1","v":"Water"},{"$f":"_calc!$BP$841","v":3.9012068381469138E-2}]
[{"$f":"_xlfn.TEXTJOIN(\",\",FALSE,output[[#This Row],[scenario]:[process_class]])","v":"PTX-BusinessOpportunityAnalyzer-1.0.9,DEU,Hydrogen (AEL),ARG-JUJ,COST-OPEX,Electrolysis"},"PTX-BusinessOpportunityAnalyzer-1.0.9",{"$f":"sel_country_code","v":"DEU"},"Hydrogen (AEL)",{"$f":"_calc!$B$841","v":"ARG-JUJ"},{"$f":"_calc!$BO$827","v":"COST-OPEX"},{"$f":"_calc!$BQ$1","v":"Electrolysis"},{"$f":"_calc!$BQ$841","v":3.2688329956000568}]
[{"$f":"_xlfn.TEXTJOIN(\",\",FALSE,output[[#This Row],[scenario]:[process_class]])","v":"PTX-BusinessOpportunityAnalyzer-1.0.9,DEU,Hydrogen (AEL),ARG-JUJ,COST-OPEX,Electricity generation"},"PTX-BusinessOpportunityAnalyzer-1.0.9",{"$f":"sel_country_code","v":"DEU"},"Hydrogen (AEL)",{"$f":"_calc!$B$841","v":"ARG-JUJ"},{"$f":"_calc!$BO$827","v":"COST-OPEX"},{"$f":"_calc!$BR$1","v":"Electricity generation"},{"$f":"_calc!$BR$841","v":9.0791858374831307}]
[{"$f":"_xlfn.TEXTJOIN(\",\",FALSE,output[[#This Row],[scenario]:[process_class]])","v":"PTX-BusinessOpportunityAnalyzer-1.0.9,DEU,Hydrogen (AEL),ARG-JUJ,COST-OPEX,Transportation (Pipeline)"},"PTX-BusinessOpportunityAnalyzer-1.0.9",{"$f":"sel_country_code","v":"DEU"},"Hydrogen (AEL)",{"$f":"_calc!$B$841","v":"ARG-JUJ"},{"$f":"_calc!$BO$827","v":"COST-OPEX"},{"$f":"_calc!$BS$1","v":"Transportation (Pipeline)"},{"$f":"_calc!$BS$841","v":0}]
[{"$f":"_xlfn.TEXTJOIN(\",\",FALSE,output[[#This Row],[scenario]:[process_class]])","v":"PTX-BusinessOpportunityAnalyzer-1.0.9,DEU,Hydrogen (AEL),ARG-JUJ,COST-OPEX,Transportation (Ship)"},{"$f":"output_scenario_name","v":"PTX-BusinessOpportunityAnalyzer-1.0.9"},{"$f":"sel_country_code","v":"DEU"},{"$f":"sel_chain","v":"Hydrogen (AEL)"},{"$f":"_calc!$B$841","v":"ARG-JUJ"},{"$f":"_calc!$BO$827","v":"COST-OPEX"},{"$f":"_calc!$BT$1","v":"Transportation (Ship)"},{"$f":"_calc!$BT$841","v":41.755123512862845}]
[{"$f":"_xlfn.TEXTJOIN(\",\",FALSE,output[[#This Row],[scenario]:[process_class]])","v":"PTX-BusinessOpportunityAnalyzer-1.0.9,DEU,Hydrogen (AEL),ARG-JUJ,COST-OPEX,Carbon"},"PTX-BusinessOpportunityAnalyzer-1.0.9",{"$f":"sel_country_code","v":"DEU"},"Hydrogen (AEL)",{"$f":"_calc!$B$841","v":"ARG-JUJ"},{"$f":"_calc!$BO$827","v":"COST-OPEX"},{"$f":"_calc!$BU$1","v":"Carbon"},{"$f":"_calc!$BU$841","v":0}]
[{"$f":"_xlfn.TEXTJOIN(\",\",FALSE,output[[#This Row],[scenario]:[process_class]])","v":"PTX-BusinessOpportunityAnalyzer-1.0.9,DEU,Hydrogen (AEL),ARG-JUJ,COST-OPEX,Derivate production"},"PTX-BusinessOpportunityAnalyzer-1.0.9",{"$f":"sel_country_code","v":"DEU"},"Hydrogen (AEL)",{"$f":"_calc!$B$841","v":"ARG-JUJ"},{"$f":"_calc!$BO$827","v":"COST-OPEX"},{"$f":"_calc!$BV$1","v":"Derivate production"},{"$f":"_calc!$BV$841","v":0}]
[{"$f":"_xlfn.TEXTJOIN(\",\",FALSE,output[[#This Row],[scenario]:[process_class]])","v":"PTX-BusinessOpportunityAnalyzer-1.0.9,DEU,Hydrogen (AEL),ARG-JUJ,COST-OPEX,Heat"},"PTX-BusinessOpportunityAnalyzer-1.0.9",{"$f":"sel_country_code","v":"DEU"},"Hydrogen (AEL)",{"$f":"_calc!$B$841","v":"ARG-JUJ"},{"$f":"_calc!$BO$827","v":"COST-OPEX"},{"$f":"_calc!$BW$1","v":"Heat"},{"$f":"_calc!$BW$841","v":0}]
[{"$f":"_xlfn.TEXTJOIN(\",\",FALSE,output[[#This Row],[scenario]:[process_class]])","v":"PTX-BusinessOpportunityAnalyzer-1.0.9,DEU,Hydrogen (AEL),ARG-JUJ,COST-OPEX,Electricity and H2 storage"},"PTX-BusinessOpportunityAnalyzer-1.0.9",{"$f":"sel_country_code","v":"DEU"},"Hydrogen (AEL)",{"$f":"_calc!$B$841","v":"ARG-JUJ"},{"$f":"_calc!$BO$827","v":"COST-OPEX"},{"$f":"_calc!$BX$1","v":"Electricity and H2 storage"},{"$f":"_calc!$BX$841","v":4.2791427798802371}]
[{"$f":"_xlfn.TEXTJOIN(\",\",FALSE,output[[#This Row],[scenario]:[process_class]])","v":"PTX-BusinessOpportunityAnalyzer-1.0.9,DEU,Hydrogen (AEL),ARG-LAR,COST-OPEX,Water"},"PTX-BusinessOpportunityAnalyzer-1.0.9",{"$f":"sel_country_code","v":"DEU"},"Hydrogen (AEL)",{"$f":"_calc!$B$842","v":"ARG-LAR"},{"$f":"_calc!$BO$827","v":"COST-OPEX"},{"$f":"_calc!$BP$1","v":"Water"},{"$f":"_calc!$BP$842","v":3.9012068381469138E-2}]
[{"$f":"_xlfn.TEXTJOIN(\",\",FALSE,output[[#This Row],[scenario]:[process_class]])","v":"PTX-BusinessOpportunityAnalyzer-1.0.9,DEU,Hydrogen (AEL),ARG-LAR,COST-OPEX,Electrolysis"},"PTX-BusinessOpportunityAnalyzer-1.0.9",{"$f":"sel_country_code","v":"DEU"},"Hydrogen (AEL)",{"$f":"_calc!$B$842","v":"ARG-LAR"},{"$f":"_calc!$BO$827","v":"COST-OPEX"},{"$f":"_calc!$BQ$1","v":"Electrolysis"},{"$f":"_calc!$BQ$842","v":3.5241986339345144}]
[{"$f":"_xlfn.TEXTJOIN(\",\",FALSE,output[[#This Row],[scenario]:[process_class]])","v":"PTX-BusinessOpportunityAnalyzer-1.0.9,DEU,Hydrogen (AEL),ARG-LAR,COST-OPEX,Electricity generation"},"PTX-BusinessOpportunityAnalyzer-1.0.9",{"$f":"sel_country_code","v":"DEU"},"Hydrogen (AEL)",{"$f":"_calc!$B$842","v":"ARG-LAR"},{"$f":"_calc!$BO$827","v":"COST-OPEX"},{"$f":"_calc!$BR$1","v":"Electricity generation"},{"$f":"_calc!$BR$842","v":9.7117086641778982}]
[{"$f":"_xlfn.TEXTJOIN(\",\",FALSE,output[[#This Row],[scenario]:[process_class]])","v":"PTX-BusinessOpportunityAnalyzer-1.0.9,DEU,Hydrogen (AEL),ARG-LAR,COST-OPEX,Transportation (Pipeline)"},"PTX-BusinessOpportunityAnalyzer-1.0.9",{"$f":"sel_country_code","v":"DEU"},"Hydrogen (AEL)",{"$f":"_calc!$B$842","v":"ARG-LAR"},{"$f":"_calc!$BO$827","v":"COST-OPEX"},{"$f":"_calc!$BS$1","v":"Transportation (Pipeline)"},{"$f":"_calc!$BS$842","v":0}]
[{"$f":"_xlfn.TEXTJOIN(\",\",FALSE,output[[#This Row],[scenario]:[process_class]])","v":"PTX-BusinessOpportunityAnalyzer-1.0.9,DEU,Hydrogen (AEL),ARG-LAR,COST-OPEX,Transportation (Ship)"},"PTX-BusinessOpportunityAnalyzer-1.0.9",{"$f":"sel_country_code","v":"DEU"},"Hydrogen (AEL)",{"$f":"_calc!$B$842","v":"ARG-LAR"},{"$f":"_calc!$BO$827","v":"COST-OPEX"},{"$f":"_calc!$BT$1","v":"Transportation (Ship)"},{"$f":"_calc!$BT$842","v":42.987000127839195}]
[{"$f":"_xlfn.TEXTJOIN(\",\",FALSE,output[[#This Row],[scenario]:[process_class]])","v":"PTX-BusinessOpportunityAnalyzer-1.0.9,DEU,Hydrogen (AEL),ARG-LAR,COST-OPEX,Carbon"},"PTX-BusinessOpportunityAnalyzer-1.0.9",{"$f":"sel_country_code","v":"DEU"},"Hydrogen (AEL)",{"$f":"_calc!$B$842","v":"ARG-LAR"},{"$f":"_calc!$BO$827","v":"COST-OPEX"},{"$f":"_calc!$BU$1","v":"Carbon"},{"$f":"_calc!$BU$842","v":0}]
[{"$f":"_xlfn.TEXTJOIN(\",\",FALSE,output[[#This Row],[scenario]:[process_class]])","v":"PTX-BusinessOpportunityAnalyzer-1.0.9,DEU,Hydrogen (AEL),ARG-LAR,COST-OPEX,Derivate production"},"PTX-BusinessOpportunityAnalyzer-1.0.9",{"$f":"sel_country_code","v":"DEU"},"Hydrogen (AEL)",{"$f":"_calc!$B$842","v":"ARG-LAR"},{"$f":"_calc!$BO$827","v":"COST-OPEX"},{"$f":"_calc!$BV$1","v":"Derivate production"},{"$f":"_calc!$BV$842","v":0}]
[{"$f":"_xlfn.TEXTJOIN(\",\",FALSE,output[[#This Row],[scenario]:[process_class]])","v":"PTX-BusinessOpportunityAnalyzer-1.0.9,DEU,Hydrogen (AEL),ARG-LAR,COST-OPEX,Heat"},"PTX-BusinessOpportunityAnalyzer-1.0.9",{"$f":"sel_country_code","v":"DEU"},"Hydrogen (AEL)",{"$f":"_calc!$B$842","v":"ARG-LAR"},{"$f":"_calc!$BO$827","v":"COST-OPEX"},{"$f":"_calc!$BW$1","v":"Heat"},{"$f":"_calc!$BW$842","v":0}]
[{"$f":"_xlfn.TEXTJOIN(\",\",FALSE,output[[#This Row],[scenario]:[process_class]])","v":"PTX-BusinessOpportunityAnalyzer-1.0.9,DEU,Hydrogen (AEL),ARG-LAR,COST-OPEX,Electricity and H2 storage"},"PTX-BusinessOpportunityAnalyzer-1.0.9",{"$f":"sel_country_code","v":"DEU"},"Hydrogen (AEL)",{"$f":"_calc!$B$842","v":"ARG-LAR"},{"$f":"_calc!$BO$827","v":"COST-OPEX"},{"$f":"_calc!$BX$1","v":"Electricity and H2 storage"},{"$f":"_calc!$BX$842","v":4.5860583487816999}]
[{"$f":"_xlfn.TEXTJOIN(\",\",FALSE,output[[#This Row],[scenario]:[process_class]])","v":"PTX-BusinessOpportunityAnalyzer-1.0.9,DEU,Hydrogen (AEL),ARG-MEN,COST-OPEX,Water"},"PTX-BusinessOpportunityAnalyzer-1.0.9",{"$f":"sel_country_code","v":"DEU"},"Hydrogen (AEL)",{"$f":"_calc!$B$843","v":"ARG-MEN"},{"$f":"_calc!$BO$827","v":"COST-OPEX"},{"$f":"_calc!$BP$1","v":"Water"},{"$f":"_calc!$BP$843","v":3.9012068381469138E-2}]
[{"$f":"_xlfn.TEXTJOIN(\",\",FALSE,output[[#This Row],[scenario]:[process_class]])","v":"PTX-BusinessOpportunityAnalyzer-1.0.9,DEU,Hydrogen (AEL),ARG-MEN,COST-OPEX,Electrolysis"},"PTX-BusinessOpportunityAnalyzer-1.0.9",{"$f":"sel_country_code","v":"DEU"},"Hydrogen (AEL)",{"$f":"_calc!$B$843","v":"ARG-MEN"},{"$f":"_calc!$BO$827","v":"COST-OPEX"},{"$f":"_calc!$BQ$1","v":"Electrolysis"},{"$f":"_calc!$BQ$843","v":3.8331148651018614}]
[{"$f":"_xlfn.TEXTJOIN(\",\",FALSE,output[[#This Row],[scenario]:[process_class]])","v":"PTX-BusinessOpportunityAnalyzer-1.0.9,DEU,Hydrogen (AEL),ARG-MEN,COST-OPEX,Electricity generation"},"PTX-BusinessOpportunityAnalyzer-1.0.9",{"$f":"sel_country_code","v":"DEU"},"Hydrogen (AEL)",{"$f":"_calc!$B$843","v":"ARG-MEN"},{"$f":"_calc!$BO$827","v":"COST-OPEX"},{"$f":"_calc!$BR$1","v":"Electricity generation"},{"$f":"_calc!$BR$843","v":10.46373900833899}]
[{"$f":"_xlfn.TEXTJOIN(\",\",FALSE,output[[#This Row],[scenario]:[process_class]])","v":"PTX-BusinessOpportunityAnalyzer-1.0.9,DEU,Hydrogen (AEL),ARG-MEN,COST-OPEX,Transportation (Pipeline)"},"PTX-BusinessOpportunityAnalyzer-1.0.9",{"$f":"sel_country_code","v":"DEU"},"Hydrogen (AEL)",{"$f":"_calc!$B$843","v":"ARG-MEN"},{"$f":"_calc!$BO$827","v":"COST-OPEX"},{"$f":"_calc!$BS$1","v":"Transportation (Pipeline)"},{"$f":"_calc!$BS$843","v":0}]
[{"$f":"_xlfn.TEXTJOIN(\",\",FALSE,output[[#This Row],[scenario]:[process_class]])","v":"PTX-BusinessOpportunityAnalyzer-1.0.9,DEU,Hydrogen (AEL),ARG-MEN,COST-OPEX,Transportation (Ship)"},"PTX-BusinessOpportunityAnalyzer-1.0.9",{"$f":"sel_country_code","v":"DEU"},"Hydrogen (AEL)",{"$f":"_calc!$B$843","v":"ARG-MEN"},{"$f":"_calc!$BO$827","v":"COST-OPEX"},{"$f":"_calc!$BT$1","v":"Transportation (Ship)"},{"$f":"_calc!$BT$843","v":44.494015690995319}]
[{"$f":"_xlfn.TEXTJOIN(\",\",FALSE,output[[#This Row],[scenario]:[process_class]])","v":"PTX-BusinessOpportunityAnalyzer-1.0.9,DEU,Hydrogen (AEL),ARG-MEN,COST-OPEX,Carbon"},"PTX-BusinessOpportunityAnalyzer-1.0.9",{"$f":"sel_country_code","v":"DEU"},"Hydrogen (AEL)",{"$f":"_calc!$B$843","v":"ARG-MEN"},{"$f":"_calc!$BO$827","v":"COST-OPEX"},{"$f":"_calc!$BU$1","v":"Carbon"},{"$f":"_calc!$BU$843","v":0}]
[{"$f":"_xlfn.TEXTJOIN(\",\",FALSE,output[[#This Row],[scenario]:[process_class]])","v":"PTX-BusinessOpportunityAnalyzer-1.0.9,DEU,Hydrogen (AEL),ARG-MEN,COST-OPEX,Derivate production"},"PTX-BusinessOpportunityAnalyzer-1.0.9",{"$f":"sel_country_code","v":"DEU"},"Hydrogen (AEL)",{"$f":"_calc!$B$843","v":"ARG-MEN"},{"$f":"_calc!$BO$827","v":"COST-OPEX"},{"$f":"_calc!$BV$1","v":"Derivate production"},{"$f":"_calc!$BV$843","v":0}]
[{"$f":"_xlfn.TEXTJOIN(\",\",FALSE,output[[#This Row],[scenario]:[process_class]])","v":"PTX-BusinessOpportunityAnalyzer-1.0.9,DEU,Hydrogen (AEL),ARG-MEN,COST-OPEX,Heat"},"PTX-BusinessOpportunityAnalyzer-1.0.9",{"$f":"sel_country_code","v":"DEU"},"Hydrogen (AEL)",{"$f":"_calc!$B$843","v":"ARG-MEN"},{"$f":"_calc!$BO$827","v":"COST-OPEX"},{"$f":"_calc!$BW$1","v":"Heat"},{"$f":"_calc!$BW$843","v":0}]
[{"$f":"_xlfn.TEXTJOIN(\",\",FALSE,output[[#This Row],[scenario]:[process_class]])","v":"PTX-BusinessOpportunityAnalyzer-1.0.9,DEU,Hydrogen (AEL),ARG-MEN,COST-OPEX,Electricity and H2 storage"},"PTX-BusinessOpportunityAnalyzer-1.0.9",{"$f":"sel_country_code","v":"DEU"},"Hydrogen (AEL)",{"$f":"_calc!$B$843","v":"ARG-MEN"},{"$f":"_calc!$BO$827","v":"COST-OPEX"},{"$f":"_calc!$BX$1","v":"Electricity and H2 storage"},{"$f":"_calc!$BX$843","v":4.9527947515688115}]
[{"$f":"_xlfn.TEXTJOIN(\",\",FALSE,output[[#This Row],[scenario]:[process_class]])","v":"PTX-BusinessOpportunityAnalyzer-1.0.9,DEU,Hydrogen (AEL),ARG-MIS,COST-OPEX,Water"},"PTX-BusinessOpportunityAnalyzer-1.0.9",{"$f":"sel_country_code","v":"DEU"},"Hydrogen (AEL)",{"$f":"_calc!$B$844","v":"ARG-MIS"},{"$f":"_calc!$BO$827","v":"COST-OPEX"},{"$f":"_calc!$BP$1","v":"Water"},{"$f":"_calc!$BP$844","v":3.9012068381469138E-2}]
[{"$f":"_xlfn.TEXTJOIN(\",\",FALSE,output[[#This Row],[scenario]:[process_class]])","v":"PTX-BusinessOpportunityAnalyzer-1.0.9,DEU,Hydrogen (AEL),ARG-MIS,COST-OPEX,Electrolysis"},"PTX-BusinessOpportunityAnalyzer-1.0.9",{"$f":"sel_country_code","v":"DEU"},"Hydrogen (AEL)",{"$f":"_calc!$B$844","v":"ARG-MIS"},{"$f":"_calc!$BO$827","v":"COST-OPEX"},{"$f":"_calc!$BQ$1","v":"Electrolysis"},{"$f":"_calc!$BQ$844","v":5.8807445443655002}]
[{"$f":"_xlfn.TEXTJOIN(\",\",FALSE,output[[#This Row],[scenario]:[process_class]])","v":"PTX-BusinessOpportunityAnalyzer-1.0.9,DEU,Hydrogen (AEL),ARG-MIS,COST-OPEX,Electricity generation"},"PTX-BusinessOpportunityAnalyzer-1.0.9",{"$f":"sel_country_code","v":"DEU"},"Hydrogen (AEL)",{"$f":"_calc!$B$844","v":"ARG-MIS"},{"$f":"_calc!$BO$827","v":"COST-OPEX"},{"$f":"_calc!$BR$1","v":"Electricity generation"},{"$f":"_calc!$BR$844","v":15.157460906228494}]
[{"$f":"_xlfn.TEXTJOIN(\",\",FALSE,output[[#This Row],[scenario]:[process_class]])","v":"PTX-BusinessOpportunityAnalyzer-1.0.9,DEU,Hydrogen (AEL),ARG-MIS,COST-OPEX,Transportation (Pipeline)"},"PTX-BusinessOpportunityAnalyzer-1.0.9",{"$f":"sel_country_code","v":"DEU"},"Hydrogen (AEL)",{"$f":"_calc!$B$844","v":"ARG-MIS"},{"$f":"_calc!$BO$827","v":"COST-OPEX"},{"$f":"_calc!$BS$1","v":"Transportation (Pipeline)"},{"$f":"_calc!$BS$844","v":0}]
[{"$f":"_xlfn.TEXTJOIN(\",\",FALSE,output[[#This Row],[scenario]:[process_class]])","v":"PTX-BusinessOpportunityAnalyzer-1.0.9,DEU,Hydrogen (AEL),ARG-MIS,COST-OPEX,Transportation (Ship)"},"PTX-BusinessOpportunityAnalyzer-1.0.9",{"$f":"sel_country_code","v":"DEU"},"Hydrogen (AEL)",{"$f":"_calc!$B$844","v":"ARG-MIS"},{"$f":"_calc!$BO$827","v":"COST-OPEX"},{"$f":"_calc!$BT$1","v":"Transportation (Ship)"},{"$f":"_calc!$BT$844","v":53.362694144229224}]
[{"$f":"_xlfn.TEXTJOIN(\",\",FALSE,output[[#This Row],[scenario]:[process_class]])","v":"PTX-BusinessOpportunityAnalyzer-1.0.9,DEU,Hydrogen (AEL),ARG-MIS,COST-OPEX,Carbon"},"PTX-BusinessOpportunityAnalyzer-1.0.9",{"$f":"sel_country_code","v":"DEU"},"Hydrogen (AEL)",{"$f":"_calc!$B$844","v":"ARG-MIS"},{"$f":"_calc!$BO$827","v":"COST-OPEX"},{"$f":"_calc!$BU$1","v":"Carbon"},{"$f":"_calc!$BU$844","v":0}]
[{"$f":"_xlfn.TEXTJOIN(\",\",FALSE,output[[#This Row],[scenario]:[process_class]])","v":"PTX-BusinessOpportunityAnalyzer-1.0.9,DEU,Hydrogen (AEL),ARG-MIS,COST-OPEX,Derivate production"},"PTX-BusinessOpportunityAnalyzer-1.0.9",{"$f":"sel_country_code","v":"DEU"},"Hydrogen (AEL)",{"$f":"_calc!$B$844","v":"ARG-MIS"},{"$f":"_calc!$BO$827","v":"COST-OPEX"},{"$f":"_calc!$BV$1","v":"Derivate production"},{"$f":"_calc!$BV$844","v":0}]
[{"$f":"_xlfn.TEXTJOIN(\",\",FALSE,output[[#This Row],[scenario]:[process_class]])","v":"PTX-BusinessOpportunityAnalyzer-1.0.9,DEU,Hydrogen (AEL),ARG-MIS,COST-OPEX,Heat"},"PTX-BusinessOpportunityAnalyzer-1.0.9",{"$f":"sel_country_code","v":"DEU"},"Hydrogen (AEL)",{"$f":"_calc!$B$844","v":"ARG-MIS"},{"$f":"_calc!$BO$827","v":"COST-OPEX"},{"$f":"_calc!$BW$1","v":"Heat"},{"$f":"_calc!$BW$844","v":0}]
[{"$f":"_xlfn.TEXTJOIN(\",\",FALSE,output[[#This Row],[scenario]:[process_class]])","v":"PTX-BusinessOpportunityAnalyzer-1.0.9,DEU,Hydrogen (AEL),ARG-MIS,COST-OPEX,Electricity and H2 storage"},"PTX-BusinessOpportunityAnalyzer-1.0.9",{"$f":"sel_country_code","v":"DEU"},"Hydrogen (AEL)",{"$f":"_calc!$B$844","v":"ARG-MIS"},{"$f":"_calc!$BO$827","v":"COST-OPEX"},{"$f":"_calc!$BX$1","v":"Electricity and H2 storage"},{"$f":"_calc!$BX$844","v":7.2830713977448971}]
[{"$f":"_xlfn.TEXTJOIN(\",\",FALSE,output[[#This Row],[scenario]:[process_class]])","v":"PTX-BusinessOpportunityAnalyzer-1.0.9,DEU,Hydrogen (AEL),ARG-NEG,COST-OPEX,Water"},"PTX-BusinessOpportunityAnalyzer-1.0.9",{"$f":"sel_country_code","v":"DEU"},"Hydrogen (AEL)",{"$f":"_calc!$B$845","v":"ARG-NEG"},{"$f":"_calc!$BO$827","v":"COST-OPEX"},{"$f":"_calc!$BP$1","v":"Water"},{"$f":"_calc!$BP$845","v":3.9012068381469138E-2}]
[{"$f":"_xlfn.TEXTJOIN(\",\",FALSE,output[[#This Row],[scenario]:[process_class]])","v":"PTX-BusinessOpportunityAnalyzer-1.0.9,DEU,Hydrogen (AEL),ARG-NEG,COST-OPEX,Electrolysis"},"PTX-BusinessOpportunityAnalyzer-1.0.9",{"$f":"sel_country_code","v":"DEU"},"Hydrogen (AEL)",{"$f":"_calc!$B$845","v":"ARG-NEG"},{"$f":"_calc!$BO$827","v":"COST-OPEX"},{"$f":"_calc!$BQ$1","v":"Electrolysis"},{"$f":"_calc!$BQ$845","v":2.944141750110878}]
[{"$f":"_xlfn.TEXTJOIN(\",\",FALSE,output[[#This Row],[scenario]:[process_class]])","v":"PTX-BusinessOpportunityAnalyzer-1.0.9,DEU,Hydrogen (AEL),ARG-NEG,COST-OPEX,Electricity generation"},"PTX-BusinessOpportunityAnalyzer-1.0.9",{"$f":"sel_country_code","v":"DEU"},"Hydrogen (AEL)",{"$f":"_calc!$B$845","v":"ARG-NEG"},{"$f":"_calc!$BO$827","v":"COST-OPEX"},{"$f":"_calc!$BR$1","v":"Electricity generation"},{"$f":"_calc!$BR$845","v":8.2603638130144184}]
[{"$f":"_xlfn.TEXTJOIN(\",\",FALSE,output[[#This Row],[scenario]:[process_class]])","v":"PTX-BusinessOpportunityAnalyzer-1.0.9,DEU,Hydrogen (AEL),ARG-NEG,COST-OPEX,Transportation (Pipeline)"},"PTX-BusinessOpportunityAnalyzer-1.0.9",{"$f":"sel_country_code","v":"DEU"},"Hydrogen (AEL)",{"$f":"_calc!$B$845","v":"ARG-NEG"},{"$f":"_calc!$BO$827","v":"COST-OPEX"},{"$f":"_calc!$BS$1","v":"Transportation (Pipeline)"},{"$f":"_calc!$BS$845","v":0}]
[{"$f":"_xlfn.TEXTJOIN(\",\",FALSE,output[[#This Row],[scenario]:[process_class]])","v":"PTX-BusinessOpportunityAnalyzer-1.0.9,DEU,Hydrogen (AEL),ARG-NEG,COST-OPEX,Transportation (Ship)"},"PTX-BusinessOpportunityAnalyzer-1.0.9",{"$f":"sel_country_code","v":"DEU"},"Hydrogen (AEL)",{"$f":"_calc!$B$845","v":"ARG-NEG"},{"$f":"_calc!$BO$827","v":"COST-OPEX"},{"$f":"_calc!$BT$1","v":"Transportation (Ship)"},{"$f":"_calc!$BT$845","v":40.206669857971306}]
[{"$f":"_xlfn.TEXTJOIN(\",\",FALSE,output[[#This Row],[scenario]:[process_class]])","v":"PTX-BusinessOpportunityAnalyzer-1.0.9,DEU,Hydrogen (AEL),ARG-NEG,COST-OPEX,Carbon"},"PTX-BusinessOpportunityAnalyzer-1.0.9",{"$f":"sel_country_code","v":"DEU"},"Hydrogen (AEL)",{"$f":"_calc!$B$845","v":"ARG-NEG"},{"$f":"_calc!$BO$827","v":"COST-OPEX"},{"$f":"_calc!$BU$1","v":"Carbon"},{"$f":"_calc!$BU$845","v":0}]
[{"$f":"_xlfn.TEXTJOIN(\",\",FALSE,output[[#This Row],[scenario]:[process_class]])","v":"PTX-BusinessOpportunityAnalyzer-1.0.9,DEU,Hydrogen (AEL),ARG-NEG,COST-OPEX,Derivate production"},"PTX-BusinessOpportunityAnalyzer-1.0.9",{"$f":"sel_country_code","v":"DEU"},"Hydrogen (AEL)",{"$f":"_calc!$B$845","v":"ARG-NEG"},{"$f":"_calc!$BO$827","v":"COST-OPEX"},{"$f":"_calc!$BV$1","v":"Derivate production"},{"$f":"_calc!$BV$845","v":0}]
[{"$f":"_xlfn.TEXTJOIN(\",\",FALSE,output[[#This Row],[scenario]:[process_class]])","v":"PTX-BusinessOpportunityAnalyzer-1.0.9,DEU,Hydrogen (AEL),ARG-NEG,COST-OPEX,Heat"},"PTX-BusinessOpportunityAnalyzer-1.0.9",{"$f":"sel_country_code","v":"DEU"},"Hydrogen (AEL)",{"$f":"_calc!$B$845","v":"ARG-NEG"},{"$f":"_calc!$BO$827","v":"COST-OPEX"},{"$f":"_calc!$BW$1","v":"Heat"},{"$f":"_calc!$BW$845","v":0}]
[{"$f":"_xlfn.TEXTJOIN(\",\",FALSE,output[[#This Row],[scenario]:[process_class]])","v":"PTX-BusinessOpportunityAnalyzer-1.0.9,DEU,Hydrogen (AEL),ARG-NEG,COST-OPEX,Electricity and H2 storage"},"PTX-BusinessOpportunityAnalyzer-1.0.9",{"$f":"sel_country_code","v":"DEU"},"Hydrogen (AEL)",{"$f":"_calc!$B$845","v":"ARG-NEG"},{"$f":"_calc!$BO$827","v":"COST-OPEX"},{"$f":"_calc!$BX$1","v":"Electricity and H2 storage"},{"$f":"_calc!$BX$845","v":3.8838656255769113}]
[{"$f":"_xlfn.TEXTJOIN(\",\",FALSE,output[[#This Row],[scenario]:[process_class]])","v":"PTX-BusinessOpportunityAnalyzer-1.0.9,DEU,Hydrogen (AEL),ARG-NEU,COST-OPEX,Water"},"PTX-BusinessOpportunityAnalyzer-1.0.9",{"$f":"sel_country_code","v":"DEU"},"Hydrogen (AEL)",{"$f":"_calc!$B$846","v":"ARG-NEU"},{"$f":"_calc!$BO$827","v":"COST-OPEX"},{"$f":"_calc!$BP$1","v":"Water"},{"$f":"_calc!$BP$846","v":3.9012068381469138E-2}]
[{"$f":"_xlfn.TEXTJOIN(\",\",FALSE,output[[#This Row],[scenario]:[process_class]])","v":"PTX-BusinessOpportunityAnalyzer-1.0.9,DEU,Hydrogen (AEL),ARG-NEU,COST-OPEX,Electrolysis"},"PTX-BusinessOpportunityAnalyzer-1.0.9",{"$f":"sel_country_code","v":"DEU"},"Hydrogen (AEL)",{"$f":"_calc!$B$846","v":"ARG-NEU"},{"$f":"_calc!$BO$827","v":"COST-OPEX"},{"$f":"_calc!$BQ$1","v":"Electrolysis"},{"$f":"_calc!$BQ$846","v":3.4044559400635639}]
[{"$f":"_xlfn.TEXTJOIN(\",\",FALSE,output[[#This Row],[scenario]:[process_class]])","v":"PTX-BusinessOpportunityAnalyzer-1.0.9,DEU,Hydrogen (AEL),ARG-NEU,COST-OPEX,Electricity generation"},"PTX-BusinessOpportunityAnalyzer-1.0.9",{"$f":"sel_country_code","v":"DEU"},"Hydrogen (AEL)",{"$f":"_calc!$B$846","v":"ARG-NEU"},{"$f":"_calc!$BO$827","v":"COST-OPEX"},{"$f":"_calc!$BR$1","v":"Electricity generation"},{"$f":"_calc!$BR$846","v":9.4163541175441594}]
[{"$f":"_xlfn.TEXTJOIN(\",\",FALSE,output[[#This Row],[scenario]:[process_class]])","v":"PTX-BusinessOpportunityAnalyzer-1.0.9,DEU,Hydrogen (AEL),ARG-NEU,COST-OPEX,Transportation (Pipeline)"},"PTX-BusinessOpportunityAnalyzer-1.0.9",{"$f":"sel_country_code","v":"DEU"},"Hydrogen (AEL)",{"$f":"_calc!$B$846","v":"ARG-NEU"},{"$f":"_calc!$BO$827","v":"COST-OPEX"},{"$f":"_calc!$BS$1","v":"Transportation (Pipeline)"},{"$f":"_calc!$BS$846","v":0}]
[{"$f":"_xlfn.TEXTJOIN(\",\",FALSE,output[[#This Row],[scenario]:[process_class]])","v":"PTX-BusinessOpportunityAnalyzer-1.0.9,DEU,Hydrogen (AEL),ARG-NEU,COST-OPEX,Transportation (Ship)"},"PTX-BusinessOpportunityAnalyzer-1.0.9",{"$f":"sel_country_code","v":"DEU"},"Hydrogen (AEL)",{"$f":"_calc!$B$846","v":"ARG-NEU"},{"$f":"_calc!$BO$827","v":"COST-OPEX"},{"$f":"_calc!$BT$1","v":"Transportation (Ship)"},{"$f":"_calc!$BT$846","v":42.407811769080105}]
[{"$f":"_xlfn.TEXTJOIN(\",\",FALSE,output[[#This Row],[scenario]:[process_class]])","v":"PTX-BusinessOpportunityAnalyzer-1.0.9,DEU,Hydrogen (AEL),ARG-NEU,COST-OPEX,Carbon"},"PTX-BusinessOpportunityAnalyzer-1.0.9",{"$f":"sel_country_code","v":"DEU"},"Hydrogen (AEL)",{"$f":"_calc!$B$846","v":"ARG-NEU"},{"$f":"_calc!$BO$827","v":"COST-OPEX"},{"$f":"_calc!$BU$1","v":"Carbon"},{"$f":"_calc!$BU$846","v":0}]
[{"$f":"_xlfn.TEXTJOIN(\",\",FALSE,output[[#This Row],[scenario]:[process_class]])","v":"PTX-BusinessOpportunityAnalyzer-1.0.9,DEU,Hydrogen (AEL),ARG-NEU,COST-OPEX,Derivate production"},"PTX-BusinessOpportunityAnalyzer-1.0.9",{"$f":"sel_country_code","v":"DEU"},"Hydrogen (AEL)",{"$f":"_calc!$B$846","v":"ARG-NEU"},{"$f":"_calc!$BO$827","v":"COST-OPEX"},{"$f":"_calc!$BV$1","v":"Derivate production"},{"$f":"_calc!$BV$846","v":0}]
[{"$f":"_xlfn.TEXTJOIN(\",\",FALSE,output[[#This Row],[scenario]:[process_class]])","v":"PTX-BusinessOpportunityAnalyzer-1.0.9,DEU,Hydrogen (AEL),ARG-NEU,COST-OPEX,Heat"},"PTX-BusinessOpportunityAnalyzer-1.0.9",{"$f":"sel_country_code","v":"DEU"},"Hydrogen (AEL)",{"$f":"_calc!$B$846","v":"ARG-NEU"},{"$f":"_calc!$BO$827","v":"COST-OPEX"},{"$f":"_calc!$BW$1","v":"Heat"},{"$f":"_calc!$BW$846","v":0}]
[{"$f":"_xlfn.TEXTJOIN(\",\",FALSE,output[[#This Row],[scenario]:[process_class]])","v":"PTX-BusinessOpportunityAnalyzer-1.0.9,DEU,Hydrogen (AEL),ARG-NEU,COST-OPEX,Electricity and H2 storage"},"PTX-BusinessOpportunityAnalyzer-1.0.9",{"$f":"sel_country_code","v":"DEU"},"Hydrogen (AEL)",{"$f":"_calc!$B$846","v":"ARG-NEU"},{"$f":"_calc!$BO$827","v":"COST-OPEX"},{"$f":"_calc!$BX$1","v":"Electricity and H2 storage"},{"$f":"_calc!$BX$846","v":4.4425720768717127}]
[{"$f":"_xlfn.TEXTJOIN(\",\",FALSE,output[[#This Row],[scenario]:[process_class]])","v":"PTX-BusinessOpportunityAnalyzer-1.0.9,DEU,Hydrogen (AEL),ARG-PAM,COST-OPEX,Water"},"PTX-BusinessOpportunityAnalyzer-1.0.9",{"$f":"sel_country_code","v":"DEU"},"Hydrogen (AEL)",{"$f":"_calc!$B$847","v":"ARG-PAM"},{"$f":"_calc!$BO$827","v":"COST-OPEX"},{"$f":"_calc!$BP$1","v":"Water"},{"$f":"_calc!$BP$847","v":3.9012068381469138E-2}]
[{"$f":"_xlfn.TEXTJOIN(\",\",FALSE,output[[#This Row],[scenario]:[process_class]])","v":"PTX-BusinessOpportunityAnalyzer-1.0.9,DEU,Hydrogen (AEL),ARG-PAM,COST-OPEX,Electrolysis"},"PTX-BusinessOpportunityAnalyzer-1.0.9",{"$f":"sel_country_code","v":"DEU"},"Hydrogen (AEL)",{"$f":"_calc!$B$847","v":"ARG-PAM"},{"$f":"_calc!$BO$827","v":"COST-OPEX"},{"$f":"_calc!$BQ$1","v":"Electrolysis"},{"$f":"_calc!$BQ$847","v":3.4115489762650455}]
[{"$f":"_xlfn.TEXTJOIN(\",\",FALSE,output[[#This Row],[scenario]:[process_class]])","v":"PTX-BusinessOpportunityAnalyzer-1.0.9,DEU,Hydrogen (AEL),ARG-PAM,COST-OPEX,Electricity generation"},"PTX-BusinessOpportunityAnalyzer-1.0.9",{"$f":"sel_country_code","v":"DEU"},"Hydrogen (AEL)",{"$f":"_calc!$B$847","v":"ARG-PAM"},{"$f":"_calc!$BO$827","v":"COST-OPEX"},{"$f":"_calc!$BR$1","v":"Electricity generation"},{"$f":"_calc!$BR$847","v":9.4339103644754676}]
[{"$f":"_xlfn.TEXTJOIN(\",\",FALSE,output[[#This Row],[scenario]:[process_class]])","v":"PTX-BusinessOpportunityAnalyzer-1.0.9,DEU,Hydrogen (AEL),ARG-PAM,COST-OPEX,Transportation (Pipeline)"},"PTX-BusinessOpportunityAnalyzer-1.0.9",{"$f":"sel_country_code","v":"DEU"},"Hydrogen (AEL)",{"$f":"_calc!$B$847","v":"ARG-PAM"},{"$f":"_calc!$BO$827","v":"COST-OPEX"},{"$f":"_calc!$BS$1","v":"Transportation (Pipeline)"},{"$f":"_calc!$BS$847","v":0}]
[{"$f":"_xlfn.TEXTJOIN(\",\",FALSE,output[[#This Row],[scenario]:[process_class]])","v":"PTX-BusinessOpportunityAnalyzer-1.0.9,DEU,Hydrogen (AEL),ARG-PAM,COST-OPEX,Transportation (Ship)"},"PTX-BusinessOpportunityAnalyzer-1.0.9",{"$f":"sel_country_code","v":"DEU"},"Hydrogen (AEL)",{"$f":"_calc!$B$847","v":"ARG-PAM"},{"$f":"_calc!$BO$827","v":"COST-OPEX"},{"$f":"_calc!$BT$1","v":"Transportation (Ship)"},{"$f":"_calc!$BT$847","v":42.442043741525417}]
[{"$f":"_xlfn.TEXTJOIN(\",\",FALSE,output[[#This Row],[scenario]:[process_class]])","v":"PTX-BusinessOpportunityAnalyzer-1.0.9,DEU,Hydrogen (AEL),ARG-PAM,COST-OPEX,Carbon"},"PTX-BusinessOpportunityAnalyzer-1.0.9",{"$f":"sel_country_code","v":"DEU"},"Hydrogen (AEL)",{"$f":"_calc!$B$847","v":"ARG-PAM"},{"$f":"_calc!$BO$827","v":"COST-OPEX"},{"$f":"_calc!$BU$1","v":"Carbon"},{"$f":"_calc!$BU$847","v":0}]
[{"$f":"_xlfn.TEXTJOIN(\",\",FALSE,output[[#This Row],[scenario]:[process_class]])","v":"PTX-BusinessOpportunityAnalyzer-1.0.9,DEU,Hydrogen (AEL),ARG-PAM,COST-OPEX,Derivate production"},"PTX-BusinessOpportunityAnalyzer-1.0.9",{"$f":"sel_country_code","v":"DEU"},"Hydrogen (AEL)",{"$f":"_calc!$B$847","v":"ARG-PAM"},{"$f":"_calc!$BO$827","v":"COST-OPEX"},{"$f":"_calc!$BV$1","v":"Derivate production"},{"$f":"_calc!$BV$847","v":0}]
[{"$f":"_xlfn.TEXTJOIN(\",\",FALSE,output[[#This Row],[scenario]:[process_class]])","v":"PTX-BusinessOpportunityAnalyzer-1.0.9,DEU,Hydrogen (AEL),ARG-PAM,COST-OPEX,Heat"},"PTX-BusinessOpportunityAnalyzer-1.0.9",{"$f":"sel_country_code","v":"DEU"},"Hydrogen (AEL)",{"$f":"_calc!$B$847","v":"ARG-PAM"},{"$f":"_calc!$BO$827","v":"COST-OPEX"},{"$f":"_calc!$BW$1","v":"Heat"},{"$f":"_calc!$BW$847","v":0}]
[{"$f":"_xlfn.TEXTJOIN(\",\",FALSE,output[[#This Row],[scenario]:[process_class]])","v":"PTX-BusinessOpportunityAnalyzer-1.0.9,DEU,Hydrogen (AEL),ARG-PAM,COST-OPEX,Electricity and H2 storage"},"PTX-BusinessOpportunityAnalyzer-1.0.9",{"$f":"sel_country_code","v":"DEU"},"Hydrogen (AEL)",{"$f":"_calc!$B$847","v":"ARG-PAM"},{"$f":"_calc!$BO$827","v":"COST-OPEX"},{"$f":"_calc!$BX$1","v":"Electricity and H2 storage"},{"$f":"_calc!$BX$847","v":4.4510925713410998}]
[{"$f":"_xlfn.TEXTJOIN(\",\",FALSE,output[[#This Row],[scenario]:[process_class]])","v":"PTX-BusinessOpportunityAnalyzer-1.0.9,DEU,Hydrogen (AEL),ARG-RIO,COST-OPEX,Water"},"PTX-BusinessOpportunityAnalyzer-1.0.9",{"$f":"sel_country_code","v":"DEU"},"Hydrogen (AEL)",{"$f":"_calc!$B$848","v":"ARG-RIO"},{"$f":"_calc!$BO$827","v":"COST-OPEX"},{"$f":"_calc!$BP$1","v":"Water"},{"$f":"_calc!$BP$848","v":3.9012068381469138E-2}]
[{"$f":"_xlfn.TEXTJOIN(\",\",FALSE,output[[#This Row],[scenario]:[process_class]])","v":"PTX-BusinessOpportunityAnalyzer-1.0.9,DEU,Hydrogen (AEL),ARG-RIO,COST-OPEX,Electrolysis"},"PTX-BusinessOpportunityAnalyzer-1.0.9",{"$f":"sel_country_code","v":"DEU"},"Hydrogen (AEL)",{"$f":"_calc!$B$848","v":"ARG-RIO"},{"$f":"_calc!$BO$827","v":"COST-OPEX"},{"$f":"_calc!$BQ$1","v":"Electrolysis"},{"$f":"_calc!$BQ$848","v":4.1339333631319661}]
[{"$f":"_xlfn.TEXTJOIN(\",\",FALSE,output[[#This Row],[scenario]:[process_class]])","v":"PTX-BusinessOpportunityAnalyzer-1.0.9,DEU,Hydrogen (AEL),ARG-RIO,COST-OPEX,Electricity generation"},"PTX-BusinessOpportunityAnalyzer-1.0.9",{"$f":"sel_country_code","v":"DEU"},"Hydrogen (AEL)",{"$f":"_calc!$B$848","v":"ARG-RIO"},{"$f":"_calc!$BO$827","v":"COST-OPEX"},{"$f":"_calc!$BR$1","v":"Electricity generation"},{"$f":"_calc!$BR$848","v":11.182597009094385}]
[{"$f":"_xlfn.TEXTJOIN(\",\",FALSE,output[[#This Row],[scenario]:[process_class]])","v":"PTX-BusinessOpportunityAnalyzer-1.0.9,DEU,Hydrogen (AEL),ARG-RIO,COST-OPEX,Transportation (Pipeline)"},"PTX-BusinessOpportunityAnalyzer-1.0.9",{"$f":"sel_country_code","v":"DEU"},"Hydrogen (AEL)",{"$f":"_calc!$B$848","v":"ARG-RIO"},{"$f":"_calc!$BO$827","v":"COST-OPEX"},{"$f":"_calc!$BS$1","v":"Transportation (Pipeline)"},{"$f":"_calc!$BS$848","v":0}]
[{"$f":"_xlfn.TEXTJOIN(\",\",FALSE,output[[#This Row],[scenario]:[process_class]])","v":"PTX-BusinessOpportunityAnalyzer-1.0.9,DEU,Hydrogen (AEL),ARG-RIO,COST-OPEX,Transportation (Ship)"},"PTX-BusinessOpportunityAnalyzer-1.0.9",{"$f":"sel_country_code","v":"DEU"},"Hydrogen (AEL)",{"$f":"_calc!$B$848","v":"ARG-RIO"},{"$f":"_calc!$BO$827","v":"COST-OPEX"},{"$f":"_calc!$BT$1","v":"Transportation (Ship)"},{"$f":"_calc!$BT$848","v":45.979525572788695}]
[{"$f":"_xlfn.TEXTJOIN(\",\",FALSE,output[[#This Row],[scenario]:[process_class]])","v":"PTX-BusinessOpportunityAnalyzer-1.0.9,DEU,Hydrogen (AEL),ARG-RIO,COST-OPEX,Carbon"},{"$f":"output_scenario_name","v":"PTX-BusinessOpportunityAnalyzer-1.0.9"},{"$f":"sel_country_code","v":"DEU"},{"$f":"sel_chain","v":"Hydrogen (AEL)"},{"$f":"_calc!$B$848","v":"ARG-RIO"},{"$f":"_calc!$BO$827","v":"COST-OPEX"},{"$f":"_calc!$BU$1","v":"Carbon"},{"$f":"_calc!$BU$848","v":0}]
[{"$f":"_xlfn.TEXTJOIN(\",\",FALSE,output[[#This Row],[scenario]:[process_class]])","v":"PTX-BusinessOpportunityAnalyzer-1.0.9,DEU,Hydrogen (AEL),ARG-RIO,COST-OPEX,Derivate production"},"PTX-BusinessOpportunityAnalyzer-1.0.9",{"$f":"sel_country_code","v":"DEU"},"Hydrogen (AEL)",{"$f":"_calc!$B$848","v":"ARG-RIO"},{"$f":"_calc!$BO$827","v":"COST-OPEX"},{"$f":"_calc!$BV$1","v":"Derivate production"},{"$f":"_calc!$BV$848","v":0}]
[{"$f":"_xlfn.TEXTJOIN(\",\",FALSE,output[[#This Row],[scenario]:[process_class]])","v":"PTX-BusinessOpportunityAnalyzer-1.0.9,DEU,Hydrogen (AEL),ARG-RIO,COST-OPEX,Heat"},"PTX-BusinessOpportunityAnalyzer-1.0.9",{"$f":"sel_country_code","v":"DEU"},"Hydrogen (AEL)",{"$f":"_calc!$B$848","v":"ARG-RIO"},{"$f":"_calc!$BO$827","v":"COST-OPEX"},{"$f":"_calc!$BW$1","v":"Heat"},{"$f":"_calc!$BW$848","v":0}]
[{"$f":"_xlfn.TEXTJOIN(\",\",FALSE,output[[#This Row],[scenario]:[process_class]])","v":"PTX-BusinessOpportunityAnalyzer-1.0.9,DEU,Hydrogen (AEL),ARG-RIO,COST-OPEX,Electricity and H2 storage"},"PTX-BusinessOpportunityAnalyzer-1.0.9",{"$f":"sel_country_code","v":"DEU"},"Hydrogen (AEL)",{"$f":"_calc!$B$848","v":"ARG-RIO"},{"$f":"_calc!$BO$827","v":"COST-OPEX"},{"$f":"_calc!$BX$1","v":"Electricity and H2 storage"},{"$f":"_calc!$BX$848","v":5.3052653658929909}]
[{"$f":"_xlfn.TEXTJOIN(\",\",FALSE,output[[#This Row],[scenario]:[process_class]])","v":"PTX-BusinessOpportunityAnalyzer-1.0.9,DEU,Hydrogen (AEL),ARG-SAF,COST-OPEX,Water"},"PTX-BusinessOpportunityAnalyzer-1.0.9",{"$f":"sel_country_code","v":"DEU"},"Hydrogen (AEL)",{"$f":"_calc!$B$849","v":"ARG-SAF"},{"$f":"_calc!$BO$827","v":"COST-OPEX"},{"$f":"_calc!$BP$1","v":"Water"},{"$f":"_calc!$BP$849","v":3.9012068381469138E-2}]
[{"$f":"_xlfn.TEXTJOIN(\",\",FALSE,output[[#This Row],[scenario]:[process_class]])","v":"PTX-BusinessOpportunityAnalyzer-1.0.9,DEU,Hydrogen (AEL),ARG-SAF,COST-OPEX,Electrolysis"},"PTX-BusinessOpportunityAnalyzer-1.0.9",{"$f":"sel_country_code","v":"DEU"},"Hydrogen (AEL)",{"$f":"_calc!$B$849","v":"ARG-SAF"},{"$f":"_calc!$BO$827","v":"COST-OPEX"},{"$f":"_calc!$BQ$1","v":"Electrolysis"},{"$f":"_calc!$BQ$849","v":4.023998679280461}]
[{"$f":"_xlfn.TEXTJOIN(\",\",FALSE,output[[#This Row],[scenario]:[process_class]])","v":"PTX-BusinessOpportunityAnalyzer-1.0.9,DEU,Hydrogen (AEL),ARG-SAF,COST-OPEX,Electricity generation"},"PTX-BusinessOpportunityAnalyzer-1.0.9",{"$f":"sel_country_code","v":"DEU"},"Hydrogen (AEL)",{"$f":"_calc!$B$849","v":"ARG-SAF"},{"$f":"_calc!$BO$827","v":"COST-OPEX"},{"$f":"_calc!$BR$1","v":"Electricity generation"},{"$f":"_calc!$BR$849","v":10.921405566272982}]
[{"$f":"_xlfn.TEXTJOIN(\",\",FALSE,output[[#This Row],[scenario]:[process_class]])","v":"PTX-BusinessOpportunityAnalyzer-1.0.9,DEU,Hydrogen (AEL),ARG-SAF,COST-OPEX,Transportation (Pipeline)"},"PTX-BusinessOpportunityAnalyzer-1.0.9",{"$f":"sel_country_code","v":"DEU"},"Hydrogen (AEL)",{"$f":"_calc!$B$849","v":"ARG-SAF"},{"$f":"_calc!$BO$827","v":"COST-OPEX"},{"$f":"_calc!$BS$1","v":"Transportation (Pipeline)"},{"$f":"_calc!$BS$849","v":0}]
[{"$f":"_xlfn.TEXTJOIN(\",\",FALSE,output[[#This Row],[scenario]:[process_class]])","v":"PTX-BusinessOpportunityAnalyzer-1.0.9,DEU,Hydrogen (AEL),ARG-SAF,COST-OPEX,Transportation (Ship)"},"PTX-BusinessOpportunityAnalyzer-1.0.9",{"$f":"sel_country_code","v":"DEU"},"Hydrogen (AEL)",{"$f":"_calc!$B$849","v":"ARG-SAF"},{"$f":"_calc!$BO$827","v":"COST-OPEX"},{"$f":"_calc!$BT$1","v":"Transportation (Ship)"},{"$f":"_calc!$BT$849","v":45.434563392438861}]
[{"$f":"_xlfn.TEXTJOIN(\",\",FALSE,output[[#This Row],[scenario]:[process_class]])","v":"PTX-BusinessOpportunityAnalyzer-1.0.9,DEU,Hydrogen (AEL),ARG-SAF,COST-OPEX,Carbon"},"PTX-BusinessOpportunityAnalyzer-1.0.9",{"$f":"sel_country_code","v":"DEU"},"Hydrogen (AEL)",{"$f":"_calc!$B$849","v":"ARG-SAF"},{"$f":"_calc!$BO$827","v":"COST-OPEX"},{"$f":"_calc!$BU$1","v":"Carbon"},{"$f":"_calc!$BU$849","v":0}]
[{"$f":"_xlfn.TEXTJOIN(\",\",FALSE,output[[#This Row],[scenario]:[process_class]])","v":"PTX-BusinessOpportunityAnalyzer-1.0.9,DEU,Hydrogen (AEL),ARG-SAF,COST-OPEX,Derivate production"},"PTX-BusinessOpportunityAnalyzer-1.0.9",{"$f":"sel_country_code","v":"DEU"},"Hydrogen (AEL)",{"$f":"_calc!$B$849","v":"ARG-SAF"},{"$f":"_calc!$BO$827","v":"COST-OPEX"},{"$f":"_calc!$BV$1","v":"Derivate production"},{"$f":"_calc!$BV$849","v":0}]
[{"$f":"_xlfn.TEXTJOIN(\",\",FALSE,output[[#This Row],[scenario]:[process_class]])","v":"PTX-BusinessOpportunityAnalyzer-1.0.9,DEU,Hydrogen (AEL),ARG-SAF,COST-OPEX,Heat"},"PTX-BusinessOpportunityAnalyzer-1.0.9",{"$f":"sel_country_code","v":"DEU"},"Hydrogen (AEL)",{"$f":"_calc!$B$849","v":"ARG-SAF"},{"$f":"_calc!$BO$827","v":"COST-OPEX"},{"$f":"_calc!$BW$1","v":"Heat"},{"$f":"_calc!$BW$849","v":0}]
[{"$f":"_xlfn.TEXTJOIN(\",\",FALSE,output[[#This Row],[scenario]:[process_class]])","v":"PTX-BusinessOpportunityAnalyzer-1.0.9,DEU,Hydrogen (AEL),ARG-SAF,COST-OPEX,Electricity and H2 storage"},"PTX-BusinessOpportunityAnalyzer-1.0.9",{"$f":"sel_country_code","v":"DEU"},"Hydrogen (AEL)",{"$f":"_calc!$B$849","v":"ARG-SAF"},{"$f":"_calc!$BO$827","v":"COST-OPEX"},{"$f":"_calc!$BX$1","v":"Electricity and H2 storage"},{"$f":"_calc!$BX$849","v":5.1769785474599326}]
[{"$f":"_xlfn.TEXTJOIN(\",\",FALSE,output[[#This Row],[scenario]:[process_class]])","v":"PTX-BusinessOpportunityAnalyzer-1.0.9,DEU,Hydrogen (AEL),ARG-SAJ,COST-OPEX,Water"},"PTX-BusinessOpportunityAnalyzer-1.0.9",{"$f":"sel_country_code","v":"DEU"},"Hydrogen (AEL)",{"$f":"_calc!$B$850","v":"ARG-SAJ"},{"$f":"_calc!$BO$827","v":"COST-OPEX"},{"$f":"_calc!$BP$1","v":"Water"},{"$f":"_calc!$BP$850","v":3.9012068381469138E-2}]
[{"$f":"_xlfn.TEXTJOIN(\",\",FALSE,output[[#This Row],[scenario]:[process_class]])","v":"PTX-BusinessOpportunityAnalyzer-1.0.9,DEU,Hydrogen (AEL),ARG-SAJ,COST-OPEX,Electrolysis"},"PTX-BusinessOpportunityAnalyzer-1.0.9",{"$f":"sel_country_code","v":"DEU"},"Hydrogen (AEL)",{"$f":"_calc!$B$850","v":"ARG-SAJ"},{"$f":"_calc!$BO$827","v":"COST-OPEX"},{"$f":"_calc!$BQ$1","v":"Electrolysis"},{"$f":"_calc!$BQ$850","v":4.2718199926365932}]
[{"$f":"_xlfn.TEXTJOIN(\",\",FALSE,output[[#This Row],[scenario]:[process_class]])","v":"PTX-BusinessOpportunityAnalyzer-1.0.9,DEU,Hydrogen (AEL),ARG-SAJ,COST-OPEX,Electricity generation"},"PTX-BusinessOpportunityAnalyzer-1.0.9",{"$f":"sel_country_code","v":"DEU"},"Hydrogen (AEL)",{"$f":"_calc!$B$850","v":"ARG-SAJ"},{"$f":"_calc!$BO$827","v":"COST-OPEX"},{"$f":"_calc!$BR$1","v":"Electricity generation"},{"$f":"_calc!$BR$850","v":11.507761853310161}]
[{"$f":"_xlfn.TEXTJOIN(\",\",FALSE,output[[#This Row],[scenario]:[process_class]])","v":"PTX-BusinessOpportunityAnalyzer-1.0.9,DEU,Hydrogen (AEL),ARG-SAJ,COST-OPEX,Transportation (Pipeline)"},"PTX-BusinessOpportunityAnalyzer-1.0.9",{"$f":"sel_country_code","v":"DEU"},"Hydrogen (AEL)",{"$f":"_calc!$B$850","v":"ARG-SAJ"},{"$f":"_calc!$BO$827","v":"COST-OPEX"},{"$f":"_calc!$BS$1","v":"Transportation (Pipeline)"},{"$f":"_calc!$BS$850","v":0}]
[{"$f":"_xlfn.TEXTJOIN(\",\",FALSE,output[[#This Row],[scenario]:[process_class]])","v":"PTX-BusinessOpportunityAnalyzer-1.0.9,DEU,Hydrogen (AEL),ARG-SAJ,COST-OPEX,Transportation (Ship)"},"PTX-BusinessOpportunityAnalyzer-1.0.9",{"$f":"sel_country_code","v":"DEU"},"Hydrogen (AEL)",{"$f":"_calc!$B$850","v":"ARG-SAJ"},{"$f":"_calc!$BO$827","v":"COST-OPEX"},{"$f":"_calc!$BT$1","v":"Transportation (Ship)"},{"$f":"_calc!$BT$850","v":46.666466303209049}]
[{"$f":"_xlfn.TEXTJOIN(\",\",FALSE,output[[#This Row],[scenario]:[process_class]])","v":"PTX-BusinessOpportunityAnalyzer-1.0.9,DEU,Hydrogen (AEL),ARG-SAJ,COST-OPEX,Carbon"},"PTX-BusinessOpportunityAnalyzer-1.0.9",{"$f":"sel_country_code","v":"DEU"},"Hydrogen (AEL)",{"$f":"_calc!$B$850","v":"ARG-SAJ"},{"$f":"_calc!$BO$827","v":"COST-OPEX"},{"$f":"_calc!$BU$1","v":"Carbon"},{"$f":"_calc!$BU$850","v":0}]
[{"$f":"_xlfn.TEXTJOIN(\",\",FALSE,output[[#This Row],[scenario]:[process_class]])","v":"PTX-BusinessOpportunityAnalyzer-1.0.9,DEU,Hydrogen (AEL),ARG-SAJ,COST-OPEX,Derivate production"},"PTX-BusinessOpportunityAnalyzer-1.0.9",{"$f":"sel_country_code","v":"DEU"},"Hydrogen (AEL)",{"$f":"_calc!$B$850","v":"ARG-SAJ"},{"$f":"_calc!$BO$827","v":"COST-OPEX"},{"$f":"_calc!$BV$1","v":"Derivate production"},{"$f":"_calc!$BV$850","v":0}]
[{"$f":"_xlfn.TEXTJOIN(\",\",FALSE,output[[#This Row],[scenario]:[process_class]])","v":"PTX-BusinessOpportunityAnalyzer-1.0.9,DEU,Hydrogen (AEL),ARG-SAJ,COST-OPEX,Heat"},"PTX-BusinessOpportunityAnalyzer-1.0.9",{"$f":"sel_country_code","v":"DEU"},"Hydrogen (AEL)",{"$f":"_calc!$B$850","v":"ARG-SAJ"},{"$f":"_calc!$BO$827","v":"COST-OPEX"},{"$f":"_calc!$BW$1","v":"Heat"},{"$f":"_calc!$BW$850","v":0}]
[{"$f":"_xlfn.TEXTJOIN(\",\",FALSE,output[[#This Row],[scenario]:[process_class]])","v":"PTX-BusinessOpportunityAnalyzer-1.0.9,DEU,Hydrogen (AEL),ARG-SAJ,COST-OPEX,Electricity and H2 storage"},"PTX-BusinessOpportunityAnalyzer-1.0.9",{"$f":"sel_country_code","v":"DEU"},"Hydrogen (AEL)",{"$f":"_calc!$B$850","v":"ARG-SAJ"},{"$f":"_calc!$BO$827","v":"COST-OPEX"},{"$f":"_calc!$BX$1","v":"Electricity and H2 storage"},{"$f":"_calc!$BX$850","v":5.4653279324033948}]
[{"$f":"_xlfn.TEXTJOIN(\",\",FALSE,output[[#This Row],[scenario]:[process_class]])","v":"PTX-BusinessOpportunityAnalyzer-1.0.9,DEU,Hydrogen (AEL),ARG-SAL,COST-OPEX,Water"},"PTX-BusinessOpportunityAnalyzer-1.0.9",{"$f":"sel_country_code","v":"DEU"},"Hydrogen (AEL)",{"$f":"_calc!$B$851","v":"ARG-SAL"},{"$f":"_calc!$BO$827","v":"COST-OPEX"},{"$f":"_calc!$BP$1","v":"Water"},{"$f":"_calc!$BP$851","v":3.9012068381469138E-2}]
[{"$f":"_xlfn.TEXTJOIN(\",\",FALSE,output[[#This Row],[scenario]:[process_class]])","v":"PTX-BusinessOpportunityAnalyzer-1.0.9,DEU,Hydrogen (AEL),ARG-SAL,COST-OPEX,Electrolysis"},"PTX-BusinessOpportunityAnalyzer-1.0.9",{"$f":"sel_country_code","v":"DEU"},"Hydrogen (AEL)",{"$f":"_calc!$B$851","v":"ARG-SAL"},{"$f":"_calc!$BO$827","v":"COST-OPEX"},{"$f":"_calc!$BQ$1","v":"Electrolysis"},{"$f":"_calc!$BQ$851","v":3.4756577104179436}]
[{"$f":"_xlfn.TEXTJOIN(\",\",FALSE,output[[#This Row],[scenario]:[process_class]])","v":"PTX-BusinessOpportunityAnalyzer-1.0.9,DEU,Hydrogen (AEL),ARG-SAL,COST-OPEX,Electricity generation"},"PTX-BusinessOpportunityAnalyzer-1.0.9",{"$f":"sel_country_code","v":"DEU"},"Hydrogen (AEL)",{"$f":"_calc!$B$851","v":"ARG-SAL"},{"$f":"_calc!$BO$827","v":"COST-OPEX"},{"$f":"_calc!$BR$1","v":"Electricity generation"},{"$f":"_calc!$BR$851","v":9.5922409141252114}]
[{"$f":"_xlfn.TEXTJOIN(\",\",FALSE,output[[#This Row],[scenario]:[process_class]])","v":"PTX-BusinessOpportunityAnalyzer-1.0.9,DEU,Hydrogen (AEL),ARG-SAL,COST-OPEX,Transportation (Pipeline)"},"PTX-BusinessOpportunityAnalyzer-1.0.9",{"$f":"sel_country_code","v":"DEU"},"Hydrogen (AEL)",{"$f":"_calc!$B$851","v":"ARG-SAL"},{"$f":"_calc!$BO$827","v":"COST-OPEX"},{"$f":"_calc!$BS$1","v":"Transportation (Pipeline)"},{"$f":"_calc!$BS$851","v":0}]
[{"$f":"_xlfn.TEXTJOIN(\",\",FALSE,output[[#This Row],[scenario]:[process_class]])","v":"PTX-BusinessOpportunityAnalyzer-1.0.9,DEU,Hydrogen (AEL),ARG-SAL,COST-OPEX,Transportation (Ship)"},"PTX-BusinessOpportunityAnalyzer-1.0.9",{"$f":"sel_country_code","v":"DEU"},"Hydrogen (AEL)",{"$f":"_calc!$B$851","v":"ARG-SAL"},{"$f":"_calc!$BO$827","v":"COST-OPEX"},{"$f":"_calc!$BT$1","v":"Transportation (Ship)"},{"$f":"_calc!$BT$851","v":42.751878671539131}]
[{"$f":"_xlfn.TEXTJOIN(\",\",FALSE,output[[#This Row],[scenario]:[process_class]])","v":"PTX-BusinessOpportunityAnalyzer-1.0.9,DEU,Hydrogen (AEL),ARG-SAL,COST-OPEX,Carbon"},"PTX-BusinessOpportunityAnalyzer-1.0.9",{"$f":"sel_country_code","v":"DEU"},"Hydrogen (AEL)",{"$f":"_calc!$B$851","v":"ARG-SAL"},{"$f":"_calc!$BO$827","v":"COST-OPEX"},{"$f":"_calc!$BU$1","v":"Carbon"},{"$f":"_calc!$BU$851","v":0}]
[{"$f":"_xlfn.TEXTJOIN(\",\",FALSE,output[[#This Row],[scenario]:[process_class]])","v":"PTX-BusinessOpportunityAnalyzer-1.0.9,DEU,Hydrogen (AEL),ARG-SAL,COST-OPEX,Derivate production"},"PTX-BusinessOpportunityAnalyzer-1.0.9",{"$f":"sel_country_code","v":"DEU"},"Hydrogen (AEL)",{"$f":"_calc!$B$851","v":"ARG-SAL"},{"$f":"_calc!$BO$827","v":"COST-OPEX"},{"$f":"_calc!$BV$1","v":"Derivate production"},{"$f":"_calc!$BV$851","v":0}]
[{"$f":"_xlfn.TEXTJOIN(\",\",FALSE,output[[#This Row],[scenario]:[process_class]])","v":"PTX-BusinessOpportunityAnalyzer-1.0.9,DEU,Hydrogen (AEL),ARG-SAL,COST-OPEX,Heat"},"PTX-BusinessOpportunityAnalyzer-1.0.9",{"$f":"sel_country_code","v":"DEU"},"Hydrogen (AEL)",{"$f":"_calc!$B$851","v":"ARG-SAL"},{"$f":"_calc!$BO$827","v":"COST-OPEX"},{"$f":"_calc!$BW$1","v":"Heat"},{"$f":"_calc!$BW$851","v":0}]
[{"$f":"_xlfn.TEXTJOIN(\",\",FALSE,output[[#This Row],[scenario]:[process_class]])","v":"PTX-BusinessOpportunityAnalyzer-1.0.9,DEU,Hydrogen (AEL),ARG-SAL,COST-OPEX,Electricity and H2 storage"},"PTX-BusinessOpportunityAnalyzer-1.0.9",{"$f":"sel_country_code","v":"DEU"},"Hydrogen (AEL)",{"$f":"_calc!$B$851","v":"ARG-SAL"},{"$f":"_calc!$BO$827","v":"COST-OPEX"},{"$f":"_calc!$BX$1","v":"Electricity and H2 storage"},{"$f":"_calc!$BX$851","v":4.5279829489315722}]
[{"$f":"_xlfn.TEXTJOIN(\",\",FALSE,output[[#This Row],[scenario]:[process_class]])","v":"PTX-BusinessOpportunityAnalyzer-1.0.9,DEU,Hydrogen (AEL),ARG-SAT,COST-OPEX,Water"},"PTX-BusinessOpportunityAnalyzer-1.0.9",{"$f":"sel_country_code","v":"DEU"},"Hydrogen (AEL)",{"$f":"_calc!$B$852","v":"ARG-SAT"},{"$f":"_calc!$BO$827","v":"COST-OPEX"},{"$f":"_calc!$BP$1","v":"Water"},{"$f":"_calc!$BP$852","v":3.9012068381469138E-2}]
[{"$f":"_xlfn.TEXTJOIN(\",\",FALSE,output[[#This Row],[scenario]:[process_class]])","v":"PTX-BusinessOpportunityAnalyzer-1.0.9,DEU,Hydrogen (AEL),ARG-SAT,COST-OPEX,Electrolysis"},"PTX-BusinessOpportunityAnalyzer-1.0.9",{"$f":"sel_country_code","v":"DEU"},"Hydrogen (AEL)",{"$f":"_calc!$B$852","v":"ARG-SAT"},{"$f":"_calc!$BO$827","v":"COST-OPEX"},{"$f":"_calc!$BQ$1","v":"Electrolysis"},{"$f":"_calc!$BQ$852","v":3.7305513833452846}]
[{"$f":"_xlfn.TEXTJOIN(\",\",FALSE,output[[#This Row],[scenario]:[process_class]])","v":"PTX-BusinessOpportunityAnalyzer-1.0.9,DEU,Hydrogen (AEL),ARG-SAT,COST-OPEX,Electricity generation"},"PTX-BusinessOpportunityAnalyzer-1.0.9",{"$f":"sel_country_code","v":"DEU"},"Hydrogen (AEL)",{"$f":"_calc!$B$852","v":"ARG-SAT"},{"$f":"_calc!$BO$827","v":"COST-OPEX"},{"$f":"_calc!$BR$1","v":"Electricity generation"},{"$f":"_calc!$BR$852","v":10.215629040198268}]
[{"$f":"_xlfn.TEXTJOIN(\",\",FALSE,output[[#This Row],[scenario]:[process_class]])","v":"PTX-BusinessOpportunityAnalyzer-1.0.9,DEU,Hydrogen (AEL),ARG-SAT,COST-OPEX,Transportation (Pipeline)"},"PTX-BusinessOpportunityAnalyzer-1.0.9",{"$f":"sel_country_code","v":"DEU"},"Hydrogen (AEL)",{"$f":"_calc!$B$852","v":"ARG-SAT"},{"$f":"_calc!$BO$827","v":"COST-OPEX"},{"$f":"_calc!$BS$1","v":"Transportation (Pipeline)"},{"$f":"_calc!$BS$852","v":0}]
[{"$f":"_xlfn.TEXTJOIN(\",\",FALSE,output[[#This Row],[scenario]:[process_class]])","v":"PTX-BusinessOpportunityAnalyzer-1.0.9,DEU,Hydrogen (AEL),ARG-SAT,COST-OPEX,Transportation (Ship)"},"PTX-BusinessOpportunityAnalyzer-1.0.9",{"$f":"sel_country_code","v":"DEU"},"Hydrogen (AEL)",{"$f":"_calc!$B$852","v":"ARG-SAT"},{"$f":"_calc!$BO$827","v":"COST-OPEX"},{"$f":"_calc!$BT$1","v":"Transportation (Ship)"},{"$f":"_calc!$BT$852","v":43.991610405469373}]
[{"$f":"_xlfn.TEXTJOIN(\",\",FALSE,output[[#This Row],[scenario]:[process_class]])","v":"PTX-BusinessOpportunityAnalyzer-1.0.9,DEU,Hydrogen (AEL),ARG-SAT,COST-OPEX,Carbon"},"PTX-BusinessOpportunityAnalyzer-1.0.9",{"$f":"sel_country_code","v":"DEU"},"Hydrogen (AEL)",{"$f":"_calc!$B$852","v":"ARG-SAT"},{"$f":"_calc!$BO$827","v":"COST-OPEX"},{"$f":"_calc!$BU$1","v":"Carbon"},{"$f":"_calc!$BU$852","v":0}]
[{"$f":"_xlfn.TEXTJOIN(\",\",FALSE,output[[#This Row],[scenario]:[process_class]])","v":"PTX-BusinessOpportunityAnalyzer-1.0.9,DEU,Hydrogen (AEL),ARG-SAT,COST-OPEX,Derivate production"},"PTX-BusinessOpportunityAnalyzer-1.0.9",{"$f":"sel_country_code","v":"DEU"},"Hydrogen (AEL)",{"$f":"_calc!$B$852","v":"ARG-SAT"},{"$f":"_calc!$BO$827","v":"COST-OPEX"},{"$f":"_calc!$BV$1","v":"Derivate production"},{"$f":"_calc!$BV$852","v":0}]
[{"$f":"_xlfn.TEXTJOIN(\",\",FALSE,output[[#This Row],[scenario]:[process_class]])","v":"PTX-BusinessOpportunityAnalyzer-1.0.9,DEU,Hydrogen (AEL),ARG-SAT,COST-OPEX,Heat"},"PTX-BusinessOpportunityAnalyzer-1.0.9",{"$f":"sel_country_code","v":"DEU"},"Hydrogen (AEL)",{"$f":"_calc!$B$852","v":"ARG-SAT"},{"$f":"_calc!$BO$827","v":"COST-OPEX"},{"$f":"_calc!$BW$1","v":"Heat"},{"$f":"_calc!$BW$852","v":0}]
[{"$f":"_xlfn.TEXTJOIN(\",\",FALSE,output[[#This Row],[scenario]:[process_class]])","v":"PTX-BusinessOpportunityAnalyzer-1.0.9,DEU,Hydrogen (AEL),ARG-SAT,COST-OPEX,Electricity and H2 storage"},"PTX-BusinessOpportunityAnalyzer-1.0.9",{"$f":"sel_country_code","v":"DEU"},"Hydrogen (AEL)",{"$f":"_calc!$B$852","v":"ARG-SAT"},{"$f":"_calc!$BO$827","v":"COST-OPEX"},{"$f":"_calc!$BX$1","v":"Electricity and H2 storage"},{"$f":"_calc!$BX$852","v":4.8315777906408117}]
[{"$f":"_xlfn.TEXTJOIN(\",\",FALSE,output[[#This Row],[scenario]:[process_class]])","v":"PTX-BusinessOpportunityAnalyzer-1.0.9,DEU,Hydrogen (AEL),ARG-TUC,COST-OPEX,Water"},"PTX-BusinessOpportunityAnalyzer-1.0.9",{"$f":"sel_country_code","v":"DEU"},"Hydrogen (AEL)",{"$f":"_calc!$B$853","v":"ARG-TUC"},{"$f":"_calc!$BO$827","v":"COST-OPEX"},{"$f":"_calc!$BP$1","v":"Water"},{"$f":"_calc!$BP$853","v":3.9012068381469138E-2}]
[{"$f":"_xlfn.TEXTJOIN(\",\",FALSE,output[[#This Row],[scenario]:[process_class]])","v":"PTX-BusinessOpportunityAnalyzer-1.0.9,DEU,Hydrogen (AEL),ARG-TUC,COST-OPEX,Electrolysis"},"PTX-BusinessOpportunityAnalyzer-1.0.9",{"$f":"sel_country_code","v":"DEU"},"Hydrogen (AEL)",{"$f":"_calc!$B$853","v":"ARG-TUC"},{"$f":"_calc!$BO$827","v":"COST-OPEX"},{"$f":"_calc!$BQ$1","v":"Electrolysis"},{"$f":"_calc!$BQ$853","v":5.1882509372323007}]
[{"$f":"_xlfn.TEXTJOIN(\",\",FALSE,output[[#This Row],[scenario]:[process_class]])","v":"PTX-BusinessOpportunityAnalyzer-1.0.9,DEU,Hydrogen (AEL),ARG-TUC,COST-OPEX,Electricity generation"},"PTX-BusinessOpportunityAnalyzer-1.0.9",{"$f":"sel_country_code","v":"DEU"},"Hydrogen (AEL)",{"$f":"_calc!$B$853","v":"ARG-TUC"},{"$f":"_calc!$BO$827","v":"COST-OPEX"},{"$f":"_calc!$BR$1","v":"Electricity generation"},{"$f":"_calc!$BR$853","v":13.60232892126343}]
[{"$f":"_xlfn.TEXTJOIN(\",\",FALSE,output[[#This Row],[scenario]:[process_class]])","v":"PTX-BusinessOpportunityAnalyzer-1.0.9,DEU,Hydrogen (AEL),ARG-TUC,COST-OPEX,Transportation (Pipeline)"},"PTX-BusinessOpportunityAnalyzer-1.0.9",{"$f":"sel_country_code","v":"DEU"},"Hydrogen (AEL)",{"$f":"_calc!$B$853","v":"ARG-TUC"},{"$f":"_calc!$BO$827","v":"COST-OPEX"},{"$f":"_calc!$BS$1","v":"Transportation (Pipeline)"},{"$f":"_calc!$BS$853","v":0}]
[{"$f":"_xlfn.TEXTJOIN(\",\",FALSE,output[[#This Row],[scenario]:[process_class]])","v":"PTX-BusinessOpportunityAnalyzer-1.0.9,DEU,Hydrogen (AEL),ARG-TUC,COST-OPEX,Transportation (Ship)"},"PTX-BusinessOpportunityAnalyzer-1.0.9",{"$f":"sel_country_code","v":"DEU"},"Hydrogen (AEL)",{"$f":"_calc!$B$853","v":"ARG-TUC"},{"$f":"_calc!$BO$827","v":"COST-OPEX"},{"$f":"_calc!$BT$1","v":"Transportation (Ship)"},{"$f":"_calc!$BT$853","v":50.659806151638961}]
[{"$f":"_xlfn.TEXTJOIN(\",\",FALSE,output[[#This Row],[scenario]:[process_class]])","v":"PTX-BusinessOpportunityAnalyzer-1.0.9,DEU,Hydrogen (AEL),ARG-TUC,COST-OPEX,Carbon"},"PTX-BusinessOpportunityAnalyzer-1.0.9",{"$f":"sel_country_code","v":"DEU"},"Hydrogen (AEL)",{"$f":"_calc!$B$853","v":"ARG-TUC"},{"$f":"_calc!$BO$827","v":"COST-OPEX"},{"$f":"_calc!$BU$1","v":"Carbon"},{"$f":"_calc!$BU$853","v":0}]
[{"$f":"_xlfn.TEXTJOIN(\",\",FALSE,output[[#This Row],[scenario]:[process_class]])","v":"PTX-BusinessOpportunityAnalyzer-1.0.9,DEU,Hydrogen (AEL),ARG-TUC,COST-OPEX,Derivate production"},"PTX-BusinessOpportunityAnalyzer-1.0.9",{"$f":"sel_country_code","v":"DEU"},"Hydrogen (AEL)",{"$f":"_calc!$B$853","v":"ARG-TUC"},{"$f":"_calc!$BO$827","v":"COST-OPEX"},{"$f":"_calc!$BV$1","v":"Derivate production"},{"$f":"_calc!$BV$853","v":0}]
[{"$f":"_xlfn.TEXTJOIN(\",\",FALSE,output[[#This Row],[scenario]:[process_class]])","v":"PTX-BusinessOpportunityAnalyzer-1.0.9,DEU,Hydrogen (AEL),ARG-TUC,COST-OPEX,Heat"},"PTX-BusinessOpportunityAnalyzer-1.0.9",{"$f":"sel_country_code","v":"DEU"},"Hydrogen (AEL)",{"$f":"_calc!$B$853","v":"ARG-TUC"},{"$f":"_calc!$BO$827","v":"COST-OPEX"},{"$f":"_calc!$BW$1","v":"Heat"},{"$f":"_calc!$BW$853","v":0}]
[{"$f":"_xlfn.TEXTJOIN(\",\",FALSE,output[[#This Row],[scenario]:[process_class]])","v":"PTX-BusinessOpportunityAnalyzer-1.0.9,DEU,Hydrogen (AEL),ARG-TUC,COST-OPEX,Electricity and H2 storage"},"PTX-BusinessOpportunityAnalyzer-1.0.9",{"$f":"sel_country_code","v":"DEU"},"Hydrogen (AEL)",{"$f":"_calc!$B$853","v":"ARG-TUC"},{"$f":"_calc!$BO$827","v":"COST-OPEX"},{"$f":"_calc!$BX$1","v":"Electricity and H2 storage"},{"$f":"_calc!$BX$853","v":6.5061367776362546}]
[{"$f":"_xlfn.TEXTJOIN(\",\",FALSE,output[[#This Row],[scenario]:[process_class]])","v":"PTX-BusinessOpportunityAnalyzer-1.0.9,DEU,Hydrogen (AEL),AUS,COST-OPEX,Water"},"PTX-BusinessOpportunityAnalyzer-1.0.9",{"$f":"sel_country_code","v":"DEU"},"Hydrogen (AEL)",{"$f":"_calc!$B$854","v":"AUS"},{"$f":"_calc!$BO$827","v":"COST-OPEX"},{"$f":"_calc!$BP$1","v":"Water"},{"$f":"_calc!$BP$854","v":4.2821368074684681E-2}]
[{"$f":"_xlfn.TEXTJOIN(\",\",FALSE,output[[#This Row],[scenario]:[process_class]])","v":"PTX-BusinessOpportunityAnalyzer-1.0.9,DEU,Hydrogen (AEL),AUS,COST-OPEX,Electrolysis"},"PTX-BusinessOpportunityAnalyzer-1.0.9",{"$f":"sel_country_code","v":"DEU"},"Hydrogen (AEL)",{"$f":"_calc!$B$854","v":"AUS"},{"$f":"_calc!$BO$827","v":"COST-OPEX"},{"$f":"_calc!$BQ$1","v":"Electrolysis"},{"$f":"_calc!$BQ$854","v":3.5955514053700868}]
[{"$f":"_xlfn.TEXTJOIN(\",\",FALSE,output[[#This Row],[scenario]:[process_class]])","v":"PTX-BusinessOpportunityAnalyzer-1.0.9,DEU,Hydrogen (AEL),AUS,COST-OPEX,Electricity generation"},"PTX-BusinessOpportunityAnalyzer-1.0.9",{"$f":"sel_country_code","v":"DEU"},"Hydrogen (AEL)",{"$f":"_calc!$B$854","v":"AUS"},{"$f":"_calc!$BO$827","v":"COST-OPEX"},{"$f":"_calc!$BR$1","v":"Electricity generation"},{"$f":"_calc!$BR$854","v":11.630624986735652}]
[{"$f":"_xlfn.TEXTJOIN(\",\",FALSE,output[[#This Row],[scenario]:[process_class]])","v":"PTX-BusinessOpportunityAnalyzer-1.0.9,DEU,Hydrogen (AEL),AUS,COST-OPEX,Transportation (Pipeline)"},"PTX-BusinessOpportunityAnalyzer-1.0.9",{"$f":"sel_country_code","v":"DEU"},"Hydrogen (AEL)",{"$f":"_calc!$B$854","v":"AUS"},{"$f":"_calc!$BO$827","v":"COST-OPEX"},{"$f":"_calc!$BS$1","v":"Transportation (Pipeline)"},{"$f":"_calc!$BS$854","v":0}]
[{"$f":"_xlfn.TEXTJOIN(\",\",FALSE,output[[#This Row],[scenario]:[process_class]])","v":"PTX-BusinessOpportunityAnalyzer-1.0.9,DEU,Hydrogen (AEL),AUS,COST-OPEX,Transportation (Ship)"},"PTX-BusinessOpportunityAnalyzer-1.0.9",{"$f":"sel_country_code","v":"DEU"},"Hydrogen (AEL)",{"$f":"_calc!$B$854","v":"AUS"},{"$f":"_calc!$BO$827","v":"COST-OPEX"},{"$f":"_calc!$BT$1","v":"Transportation (Ship)"},{"$f":"_calc!$BT$854","v":58.785947755148946}]
[{"$f":"_xlfn.TEXTJOIN(\",\",FALSE,output[[#This Row],[scenario]:[process_class]])","v":"PTX-BusinessOpportunityAnalyzer-1.0.9,DEU,Hydrogen (AEL),AUS,COST-OPEX,Carbon"},"PTX-BusinessOpportunityAnalyzer-1.0.9",{"$f":"sel_country_code","v":"DEU"},"Hydrogen (AEL)",{"$f":"_calc!$B$854","v":"AUS"},{"$f":"_calc!$BO$827","v":"COST-OPEX"},{"$f":"_calc!$BU$1","v":"Carbon"},{"$f":"_calc!$BU$854","v":0}]
[{"$f":"_xlfn.TEXTJOIN(\",\",FALSE,output[[#This Row],[scenario]:[process_class]])","v":"PTX-BusinessOpportunityAnalyzer-1.0.9,DEU,Hydrogen (AEL),AUS,COST-OPEX,Derivate production"},"PTX-BusinessOpportunityAnalyzer-1.0.9",{"$f":"sel_country_code","v":"DEU"},"Hydrogen (AEL)",{"$f":"_calc!$B$854","v":"AUS"},{"$f":"_calc!$BO$827","v":"COST-OPEX"},{"$f":"_calc!$BV$1","v":"Derivate production"},{"$f":"_calc!$BV$854","v":0}]
[{"$f":"_xlfn.TEXTJOIN(\",\",FALSE,output[[#This Row],[scenario]:[process_class]])","v":"PTX-BusinessOpportunityAnalyzer-1.0.9,DEU,Hydrogen (AEL),AUS,COST-OPEX,Heat"},"PTX-BusinessOpportunityAnalyzer-1.0.9",{"$f":"sel_country_code","v":"DEU"},"Hydrogen (AEL)",{"$f":"_calc!$B$854","v":"AUS"},{"$f":"_calc!$BO$827","v":"COST-OPEX"},{"$f":"_calc!$BW$1","v":"Heat"},{"$f":"_calc!$BW$854","v":0}]
[{"$f":"_xlfn.TEXTJOIN(\",\",FALSE,output[[#This Row],[scenario]:[process_class]])","v":"PTX-BusinessOpportunityAnalyzer-1.0.9,DEU,Hydrogen (AEL),AUS,COST-OPEX,Electricity and H2 storage"},"PTX-BusinessOpportunityAnalyzer-1.0.9",{"$f":"sel_country_code","v":"DEU"},"Hydrogen (AEL)",{"$f":"_calc!$B$854","v":"AUS"},{"$f":"_calc!$BO$827","v":"COST-OPEX"},{"$f":"_calc!$BX$1","v":"Electricity and H2 storage"},{"$f":"_calc!$BX$854","v":2.9450874789477499}]
[{"$f":"_xlfn.TEXTJOIN(\",\",FALSE,output[[#This Row],[scenario]:[process_class]])","v":"PTX-BusinessOpportunityAnalyzer-1.0.9,DEU,Hydrogen (AEL),BRA,COST-OPEX,Water"},"PTX-BusinessOpportunityAnalyzer-1.0.9",{"$f":"sel_country_code","v":"DEU"},"Hydrogen (AEL)",{"$f":"_calc!$B$855","v":"BRA"},{"$f":"_calc!$BO$827","v":"COST-OPEX"},{"$f":"_calc!$BP$1","v":"Water"},{"$f":"_calc!$BP$855","v":3.8085817164148272E-2}]
[{"$f":"_xlfn.TEXTJOIN(\",\",FALSE,output[[#This Row],[scenario]:[process_class]])","v":"PTX-BusinessOpportunityAnalyzer-1.0.9,DEU,Hydrogen (AEL),BRA,COST-OPEX,Electrolysis"},"PTX-BusinessOpportunityAnalyzer-1.0.9",{"$f":"sel_country_code","v":"DEU"},"Hydrogen (AEL)",{"$f":"_calc!$B$855","v":"BRA"},{"$f":"_calc!$BO$827","v":"COST-OPEX"},{"$f":"_calc!$BQ$1","v":"Electrolysis"},{"$f":"_calc!$BQ$855","v":3.1537264742188733}]
[{"$f":"_xlfn.TEXTJOIN(\",\",FALSE,output[[#This Row],[scenario]:[process_class]])","v":"PTX-BusinessOpportunityAnalyzer-1.0.9,DEU,Hydrogen (AEL),BRA,COST-OPEX,Electricity generation"},"PTX-BusinessOpportunityAnalyzer-1.0.9",{"$f":"sel_country_code","v":"DEU"},"Hydrogen (AEL)",{"$f":"_calc!$B$855","v":"BRA"},{"$f":"_calc!$BO$827","v":"COST-OPEX"},{"$f":"_calc!$BR$1","v":"Electricity generation"},{"$f":"_calc!$BR$855","v":6.9156755780037349}]
[{"$f":"_xlfn.TEXTJOIN(\",\",FALSE,output[[#This Row],[scenario]:[process_class]])","v":"PTX-BusinessOpportunityAnalyzer-1.0.9,DEU,Hydrogen (AEL),BRA,COST-OPEX,Transportation (Pipeline)"},"PTX-BusinessOpportunityAnalyzer-1.0.9",{"$f":"sel_country_code","v":"DEU"},"Hydrogen (AEL)",{"$f":"_calc!$B$855","v":"BRA"},{"$f":"_calc!$BO$827","v":"COST-OPEX"},{"$f":"_calc!$BS$1","v":"Transportation (Pipeline)"},{"$f":"_calc!$BS$855","v":0}]
[{"$f":"_xlfn.TEXTJOIN(\",\",FALSE,output[[#This Row],[scenario]:[process_class]])","v":"PTX-BusinessOpportunityAnalyzer-1.0.9,DEU,Hydrogen (AEL),BRA,COST-OPEX,Transportation (Ship)"},"PTX-BusinessOpportunityAnalyzer-1.0.9",{"$f":"sel_country_code","v":"DEU"},"Hydrogen (AEL)",{"$f":"_calc!$B$855","v":"BRA"},{"$f":"_calc!$BO$827","v":"COST-OPEX"},{"$f":"_calc!$BT$1","v":"Transportation (Ship)"},{"$f":"_calc!$BT$855","v":36.471771129288669}]
[{"$f":"_xlfn.TEXTJOIN(\",\",FALSE,output[[#This Row],[scenario]:[process_class]])","v":"PTX-BusinessOpportunityAnalyzer-1.0.9,DEU,Hydrogen (AEL),BRA,COST-OPEX,Carbon"},"PTX-BusinessOpportunityAnalyzer-1.0.9",{"$f":"sel_country_code","v":"DEU"},"Hydrogen (AEL)",{"$f":"_calc!$B$855","v":"BRA"},{"$f":"_calc!$BO$827","v":"COST-OPEX"},{"$f":"_calc!$BU$1","v":"Carbon"},{"$f":"_calc!$BU$855","v":0}]
[{"$f":"_xlfn.TEXTJOIN(\",\",FALSE,output[[#This Row],[scenario]:[process_class]])","v":"PTX-BusinessOpportunityAnalyzer-1.0.9,DEU,Hydrogen (AEL),BRA,COST-OPEX,Derivate production"},{"$f":"output_scenario_name","v":"PTX-BusinessOpportunityAnalyzer-1.0.9"},{"$f":"sel_country_code","v":"DEU"},{"$f":"sel_chain","v":"Hydrogen (AEL)"},{"$f":"_calc!$B$855","v":"BRA"},{"$f":"_calc!$BO$827","v":"COST-OPEX"},{"$f":"_calc!$BV$1","v":"Derivate production"},{"$f":"_calc!$BV$855","v":0}]
[{"$f":"_xlfn.TEXTJOIN(\",\",FALSE,output[[#This Row],[scenario]:[process_class]])","v":"PTX-BusinessOpportunityAnalyzer-1.0.9,DEU,Hydrogen (AEL),BRA,COST-OPEX,Heat"},"PTX-BusinessOpportunityAnalyzer-1.0.9",{"$f":"sel_country_code","v":"DEU"},"Hydrogen (AEL)",{"$f":"_calc!$B$855","v":"BRA"},{"$f":"_calc!$BO$827","v":"COST-OPEX"},{"$f":"_calc!$BW$1","v":"Heat"},{"$f":"_calc!$BW$855","v":0}]
[{"$f":"_xlfn.TEXTJOIN(\",\",FALSE,output[[#This Row],[scenario]:[process_class]])","v":"PTX-BusinessOpportunityAnalyzer-1.0.9,DEU,Hydrogen (AEL),BRA,COST-OPEX,Electricity and H2 storage"},"PTX-BusinessOpportunityAnalyzer-1.0.9",{"$f":"sel_country_code","v":"DEU"},"Hydrogen (AEL)",{"$f":"_calc!$B$855","v":"BRA"},{"$f":"_calc!$BO$827","v":"COST-OPEX"},{"$f":"_calc!$BX$1","v":"Electricity and H2 storage"},{"$f":"_calc!$BX$855","v":2.4059940078000444}]
[{"$f":"_xlfn.TEXTJOIN(\",\",FALSE,output[[#This Row],[scenario]:[process_class]])","v":"PTX-BusinessOpportunityAnalyzer-1.0.9,DEU,Hydrogen (AEL),CHL,COST-OPEX,Water"},"PTX-BusinessOpportunityAnalyzer-1.0.9",{"$f":"sel_country_code","v":"DEU"},"Hydrogen (AEL)",{"$f":"_calc!$B$856","v":"CHL"},{"$f":"_calc!$BO$827","v":"COST-OPEX"},{"$f":"_calc!$BP$1","v":"Water"},{"$f":"_calc!$BP$856","v":3.8923541894568571E-2}]
[{"$f":"_xlfn.TEXTJOIN(\",\",FALSE,output[[#This Row],[scenario]:[process_class]])","v":"PTX-BusinessOpportunityAnalyzer-1.0.9,DEU,Hydrogen (AEL),CHL,COST-OPEX,Electrolysis"},"PTX-BusinessOpportunityAnalyzer-1.0.9",{"$f":"sel_country_code","v":"DEU"},"Hydrogen (AEL)",{"$f":"_calc!$B$856","v":"CHL"},{"$f":"_calc!$BO$827","v":"COST-OPEX"},{"$f":"_calc!$BQ$1","v":"Electrolysis"},{"$f":"_calc!$BQ$856","v":5.4406365660805118}]
[{"$f":"_xlfn.TEXTJOIN(\",\",FALSE,output[[#This Row],[scenario]:[process_class]])","v":"PTX-BusinessOpportunityAnalyzer-1.0.9,DEU,Hydrogen (AEL),CHL,COST-OPEX,Electricity generation"},"PTX-BusinessOpportunityAnalyzer-1.0.9",{"$f":"sel_country_code","v":"DEU"},"Hydrogen (AEL)",{"$f":"_calc!$B$856","v":"CHL"},{"$f":"_calc!$BO$827","v":"COST-OPEX"},{"$f":"_calc!$BR$1","v":"Electricity generation"},{"$f":"_calc!$BR$856","v":14.496956406881777}]
[{"$f":"_xlfn.TEXTJOIN(\",\",FALSE,output[[#This Row],[scenario]:[process_class]])","v":"PTX-BusinessOpportunityAnalyzer-1.0.9,DEU,Hydrogen (AEL),CHL,COST-OPEX,Transportation (Pipeline)"},"PTX-BusinessOpportunityAnalyzer-1.0.9",{"$f":"sel_country_code","v":"DEU"},"Hydrogen (AEL)",{"$f":"_calc!$B$856","v":"CHL"},{"$f":"_calc!$BO$827","v":"COST-OPEX"},{"$f":"_calc!$BS$1","v":"Transportation (Pipeline)"},{"$f":"_calc!$BS$856","v":0}]
[{"$f":"_xlfn.TEXTJOIN(\",\",FALSE,output[[#This Row],[scenario]:[process_class]])","v":"PTX-BusinessOpportunityAnalyzer-1.0.9,DEU,Hydrogen (AEL),CHL,COST-OPEX,Transportation (Ship)"},"PTX-BusinessOpportunityAnalyzer-1.0.9",{"$f":"sel_country_code","v":"DEU"},"Hydrogen (AEL)",{"$f":"_calc!$B$856","v":"CHL"},{"$f":"_calc!$BO$827","v":"COST-OPEX"},{"$f":"_calc!$BT$1","v":"Transportation (Ship)"},{"$f":"_calc!$BT$856","v":50.834314139707544}]
[{"$f":"_xlfn.TEXTJOIN(\",\",FALSE,output[[#This Row],[scenario]:[process_class]])","v":"PTX-BusinessOpportunityAnalyzer-1.0.9,DEU,Hydrogen (AEL),CHL,COST-OPEX,Carbon"},"PTX-BusinessOpportunityAnalyzer-1.0.9",{"$f":"sel_country_code","v":"DEU"},"Hydrogen (AEL)",{"$f":"_calc!$B$856","v":"CHL"},{"$f":"_calc!$BO$827","v":"COST-OPEX"},{"$f":"_calc!$BU$1","v":"Carbon"},{"$f":"_calc!$BU$856","v":0}]
[{"$f":"_xlfn.TEXTJOIN(\",\",FALSE,output[[#This Row],[scenario]:[process_class]])","v":"PTX-BusinessOpportunityAnalyzer-1.0.9,DEU,Hydrogen (AEL),CHL,COST-OPEX,Derivate production"},"PTX-BusinessOpportunityAnalyzer-1.0.9",{"$f":"sel_country_code","v":"DEU"},"Hydrogen (AEL)",{"$f":"_calc!$B$856","v":"CHL"},{"$f":"_calc!$BO$827","v":"COST-OPEX"},{"$f":"_calc!$BV$1","v":"Derivate production"},{"$f":"_calc!$BV$856","v":0}]
[{"$f":"_xlfn.TEXTJOIN(\",\",FALSE,output[[#This Row],[scenario]:[process_class]])","v":"PTX-BusinessOpportunityAnalyzer-1.0.9,DEU,Hydrogen (AEL),CHL,COST-OPEX,Heat"},"PTX-BusinessOpportunityAnalyzer-1.0.9",{"$f":"sel_country_code","v":"DEU"},"Hydrogen (AEL)",{"$f":"_calc!$B$856","v":"CHL"},{"$f":"_calc!$BO$827","v":"COST-OPEX"},{"$f":"_calc!$BW$1","v":"Heat"},{"$f":"_calc!$BW$856","v":0}]
[{"$f":"_xlfn.TEXTJOIN(\",\",FALSE,output[[#This Row],[scenario]:[process_class]])","v":"PTX-BusinessOpportunityAnalyzer-1.0.9,DEU,Hydrogen (AEL),CHL,COST-OPEX,Electricity and H2 storage"},"PTX-BusinessOpportunityAnalyzer-1.0.9",{"$f":"sel_country_code","v":"DEU"},"Hydrogen (AEL)",{"$f":"_calc!$B$856","v":"CHL"},{"$f":"_calc!$BO$827","v":"COST-OPEX"},{"$f":"_calc!$BX$1","v":"Electricity and H2 storage"},{"$f":"_calc!$BX$856","v":3.9947330024008574}]
[{"$f":"_xlfn.TEXTJOIN(\",\",FALSE,output[[#This Row],[scenario]:[process_class]])","v":"PTX-BusinessOpportunityAnalyzer-1.0.9,DEU,Hydrogen (AEL),CHN,COST-OPEX,Water"},"PTX-BusinessOpportunityAnalyzer-1.0.9",{"$f":"sel_country_code","v":"DEU"},"Hydrogen (AEL)",{"$f":"_calc!$B$857","v":"CHN"},{"$f":"_calc!$BO$827","v":"COST-OPEX"},{"$f":"_calc!$BP$1","v":"Water"},{"$f":"_calc!$BP$857","v":4.2465831872737496E-2}]
[{"$f":"_xlfn.TEXTJOIN(\",\",FALSE,output[[#This Row],[scenario]:[process_class]])","v":"PTX-BusinessOpportunityAnalyzer-1.0.9,DEU,Hydrogen (AEL),CHN,COST-OPEX,Electrolysis"},"PTX-BusinessOpportunityAnalyzer-1.0.9",{"$f":"sel_country_code","v":"DEU"},"Hydrogen (AEL)",{"$f":"_calc!$B$857","v":"CHN"},{"$f":"_calc!$BO$827","v":"COST-OPEX"},{"$f":"_calc!$BQ$1","v":"Electrolysis"},{"$f":"_calc!$BQ$857","v":3.679165827707056}]
[{"$f":"_xlfn.TEXTJOIN(\",\",FALSE,output[[#This Row],[scenario]:[process_class]])","v":"PTX-BusinessOpportunityAnalyzer-1.0.9,DEU,Hydrogen (AEL),CHN,COST-OPEX,Electricity generation"},"PTX-BusinessOpportunityAnalyzer-1.0.9",{"$f":"sel_country_code","v":"DEU"},"Hydrogen (AEL)",{"$f":"_calc!$B$857","v":"CHN"},{"$f":"_calc!$BO$827","v":"COST-OPEX"},{"$f":"_calc!$BR$1","v":"Electricity generation"},{"$f":"_calc!$BR$857","v":6.6925080891810147}]
[{"$f":"_xlfn.TEXTJOIN(\",\",FALSE,output[[#This Row],[scenario]:[process_class]])","v":"PTX-BusinessOpportunityAnalyzer-1.0.9,DEU,Hydrogen (AEL),CHN,COST-OPEX,Transportation (Pipeline)"},"PTX-BusinessOpportunityAnalyzer-1.0.9",{"$f":"sel_country_code","v":"DEU"},"Hydrogen (AEL)",{"$f":"_calc!$B$857","v":"CHN"},{"$f":"_calc!$BO$827","v":"COST-OPEX"},{"$f":"_calc!$BS$1","v":"Transportation (Pipeline)"},{"$f":"_calc!$BS$857","v":0}]
[{"$f":"_xlfn.TEXTJOIN(\",\",FALSE,output[[#This Row],[scenario]:[process_class]])","v":"PTX-BusinessOpportunityAnalyzer-1.0.9,DEU,Hydrogen (AEL),CHN,COST-OPEX,Transportation (Ship)"},"PTX-BusinessOpportunityAnalyzer-1.0.9",{"$f":"sel_country_code","v":"DEU"},"Hydrogen (AEL)",{"$f":"_calc!$B$857","v":"CHN"},{"$f":"_calc!$BO$827","v":"COST-OPEX"},{"$f":"_calc!$BT$1","v":"Transportation (Ship)"},{"$f":"_calc!$BT$857","v":57.781400325091212}]
[{"$f":"_xlfn.TEXTJOIN(\",\",FALSE,output[[#This Row],[scenario]:[process_class]])","v":"PTX-BusinessOpportunityAnalyzer-1.0.9,DEU,Hydrogen (AEL),CHN,COST-OPEX,Carbon"},"PTX-BusinessOpportunityAnalyzer-1.0.9",{"$f":"sel_country_code","v":"DEU"},"Hydrogen (AEL)",{"$f":"_calc!$B$857","v":"CHN"},{"$f":"_calc!$BO$827","v":"COST-OPEX"},{"$f":"_calc!$BU$1","v":"Carbon"},{"$f":"_calc!$BU$857","v":0}]
[{"$f":"_xlfn.TEXTJOIN(\",\",FALSE,output[[#This Row],[scenario]:[process_class]])","v":"PTX-BusinessOpportunityAnalyzer-1.0.9,DEU,Hydrogen (AEL),CHN,COST-OPEX,Derivate production"},"PTX-BusinessOpportunityAnalyzer-1.0.9",{"$f":"sel_country_code","v":"DEU"},"Hydrogen (AEL)",{"$f":"_calc!$B$857","v":"CHN"},{"$f":"_calc!$BO$827","v":"COST-OPEX"},{"$f":"_calc!$BV$1","v":"Derivate production"},{"$f":"_calc!$BV$857","v":0}]
[{"$f":"_xlfn.TEXTJOIN(\",\",FALSE,output[[#This Row],[scenario]:[process_class]])","v":"PTX-BusinessOpportunityAnalyzer-1.0.9,DEU,Hydrogen (AEL),CHN,COST-OPEX,Heat"},"PTX-BusinessOpportunityAnalyzer-1.0.9",{"$f":"sel_country_code","v":"DEU"},"Hydrogen (AEL)",{"$f":"_calc!$B$857","v":"CHN"},{"$f":"_calc!$BO$827","v":"COST-OPEX"},{"$f":"_calc!$BW$1","v":"Heat"},{"$f":"_calc!$BW$857","v":0}]
[{"$f":"_xlfn.TEXTJOIN(\",\",FALSE,output[[#This Row],[scenario]:[process_class]])","v":"PTX-BusinessOpportunityAnalyzer-1.0.9,DEU,Hydrogen (AEL),CHN,COST-OPEX,Electricity and H2 storage"},"PTX-BusinessOpportunityAnalyzer-1.0.9",{"$f":"sel_country_code","v":"DEU"},"Hydrogen (AEL)",{"$f":"_calc!$B$857","v":"CHN"},{"$f":"_calc!$BO$827","v":"COST-OPEX"},{"$f":"_calc!$BX$1","v":"Electricity and H2 storage"},{"$f":"_calc!$BX$857","v":2.0826281959859143}]
[{"$f":"_xlfn.TEXTJOIN(\",\",FALSE,output[[#This Row],[scenario]:[process_class]])","v":"PTX-BusinessOpportunityAnalyzer-1.0.9,DEU,Hydrogen (AEL),COL,COST-OPEX,Water"},"PTX-BusinessOpportunityAnalyzer-1.0.9",{"$f":"sel_country_code","v":"DEU"},"Hydrogen (AEL)",{"$f":"_calc!$B$858","v":"COL"},{"$f":"_calc!$BO$827","v":"COST-OPEX"},{"$f":"_calc!$BP$1","v":"Water"},{"$f":"_calc!$BP$858","v":3.7639329962244408E-2}]
[{"$f":"_xlfn.TEXTJOIN(\",\",FALSE,output[[#This Row],[scenario]:[process_class]])","v":"PTX-BusinessOpportunityAnalyzer-1.0.9,DEU,Hydrogen (AEL),COL,COST-OPEX,Electrolysis"},"PTX-BusinessOpportunityAnalyzer-1.0.9",{"$f":"sel_country_code","v":"DEU"},"Hydrogen (AEL)",{"$f":"_calc!$B$858","v":"COL"},{"$f":"_calc!$BO$827","v":"COST-OPEX"},{"$f":"_calc!$BQ$1","v":"Electrolysis"},{"$f":"_calc!$BQ$858","v":3.0513105777159018}]
[{"$f":"_xlfn.TEXTJOIN(\",\",FALSE,output[[#This Row],[scenario]:[process_class]])","v":"PTX-BusinessOpportunityAnalyzer-1.0.9,DEU,Hydrogen (AEL),COL,COST-OPEX,Electricity generation"},"PTX-BusinessOpportunityAnalyzer-1.0.9",{"$f":"sel_country_code","v":"DEU"},"Hydrogen (AEL)",{"$f":"_calc!$B$858","v":"COL"},{"$f":"_calc!$BO$827","v":"COST-OPEX"},{"$f":"_calc!$BR$1","v":"Electricity generation"},{"$f":"_calc!$BR$858","v":0}]
[{"$f":"_xlfn.TEXTJOIN(\",\",FALSE,output[[#This Row],[scenario]:[process_class]])","v":"PTX-BusinessOpportunityAnalyzer-1.0.9,DEU,Hydrogen (AEL),COL,COST-OPEX,Transportation (Pipeline)"},"PTX-BusinessOpportunityAnalyzer-1.0.9",{"$f":"sel_country_code","v":"DEU"},"Hydrogen (AEL)",{"$f":"_calc!$B$858","v":"COL"},{"$f":"_calc!$BO$827","v":"COST-OPEX"},{"$f":"_calc!$BS$1","v":"Transportation (Pipeline)"},{"$f":"_calc!$BS$858","v":0}]
[{"$f":"_xlfn.TEXTJOIN(\",\",FALSE,output[[#This Row],[scenario]:[process_class]])","v":"PTX-BusinessOpportunityAnalyzer-1.0.9,DEU,Hydrogen (AEL),COL,COST-OPEX,Transportation (Ship)"},"PTX-BusinessOpportunityAnalyzer-1.0.9",{"$f":"sel_country_code","v":"DEU"},"Hydrogen (AEL)",{"$f":"_calc!$B$858","v":"COL"},{"$f":"_calc!$BO$827","v":"COST-OPEX"},{"$f":"_calc!$BT$1","v":"Transportation (Ship)"},{"$f":"_calc!$BT$858","v":34.404923866156352}]
[{"$f":"_xlfn.TEXTJOIN(\",\",FALSE,output[[#This Row],[scenario]:[process_class]])","v":"PTX-BusinessOpportunityAnalyzer-1.0.9,DEU,Hydrogen (AEL),COL,COST-OPEX,Carbon"},"PTX-BusinessOpportunityAnalyzer-1.0.9",{"$f":"sel_country_code","v":"DEU"},"Hydrogen (AEL)",{"$f":"_calc!$B$858","v":"COL"},{"$f":"_calc!$BO$827","v":"COST-OPEX"},{"$f":"_calc!$BU$1","v":"Carbon"},{"$f":"_calc!$BU$858","v":0}]
[{"$f":"_xlfn.TEXTJOIN(\",\",FALSE,output[[#This Row],[scenario]:[process_class]])","v":"PTX-BusinessOpportunityAnalyzer-1.0.9,DEU,Hydrogen (AEL),COL,COST-OPEX,Derivate production"},"PTX-BusinessOpportunityAnalyzer-1.0.9",{"$f":"sel_country_code","v":"DEU"},"Hydrogen (AEL)",{"$f":"_calc!$B$858","v":"COL"},{"$f":"_calc!$BO$827","v":"COST-OPEX"},{"$f":"_calc!$BV$1","v":"Derivate production"},{"$f":"_calc!$BV$858","v":0}]
[{"$f":"_xlfn.TEXTJOIN(\",\",FALSE,output[[#This Row],[scenario]:[process_class]])","v":"PTX-BusinessOpportunityAnalyzer-1.0.9,DEU,Hydrogen (AEL),COL,COST-OPEX,Heat"},"PTX-BusinessOpportunityAnalyzer-1.0.9",{"$f":"sel_country_code","v":"DEU"},"Hydrogen (AEL)",{"$f":"_calc!$B$858","v":"COL"},{"$f":"_calc!$BO$827","v":"COST-OPEX"},{"$f":"_calc!$BW$1","v":"Heat"},{"$f":"_calc!$BW$858","v":0}]
[{"$f":"_xlfn.TEXTJOIN(\",\",FALSE,output[[#This Row],[scenario]:[process_class]])","v":"PTX-BusinessOpportunityAnalyzer-1.0.9,DEU,Hydrogen (AEL),COL,COST-OPEX,Electricity and H2 storage"},"PTX-BusinessOpportunityAnalyzer-1.0.9",{"$f":"sel_country_code","v":"DEU"},"Hydrogen (AEL)",{"$f":"_calc!$B$858","v":"COL"},{"$f":"_calc!$BO$827","v":"COST-OPEX"},{"$f":"_calc!$BX$1","v":"Electricity and H2 storage"},{"$f":"_calc!$BX$858","v":2.1941466058229775}]
[{"$f":"_xlfn.TEXTJOIN(\",\",FALSE,output[[#This Row],[scenario]:[process_class]])","v":"PTX-BusinessOpportunityAnalyzer-1.0.9,DEU,Hydrogen (AEL),CRI,COST-OPEX,Water"},"PTX-BusinessOpportunityAnalyzer-1.0.9",{"$f":"sel_country_code","v":"DEU"},"Hydrogen (AEL)",{"$f":"_calc!$B$859","v":"CRI"},{"$f":"_calc!$BO$827","v":"COST-OPEX"},{"$f":"_calc!$BP$1","v":"Water"},{"$f":"_calc!$BP$859","v":3.6955820483685557E-2}]
[{"$f":"_xlfn.TEXTJOIN(\",\",FALSE,output[[#This Row],[scenario]:[process_class]])","v":"PTX-BusinessOpportunityAnalyzer-1.0.9,DEU,Hydrogen (AEL),CRI,COST-OPEX,Electrolysis"},"PTX-BusinessOpportunityAnalyzer-1.0.9",{"$f":"sel_country_code","v":"DEU"},"Hydrogen (AEL)",{"$f":"_calc!$B$859","v":"CRI"},{"$f":"_calc!$BO$827","v":"COST-OPEX"},{"$f":"_calc!$BQ$1","v":"Electrolysis"},{"$f":"_calc!$BQ$859","v":5.1601102110153709}]
[{"$f":"_xlfn.TEXTJOIN(\",\",FALSE,output[[#This Row],[scenario]:[process_class]])","v":"PTX-BusinessOpportunityAnalyzer-1.0.9,DEU,Hydrogen (AEL),CRI,COST-OPEX,Electricity generation"},"PTX-BusinessOpportunityAnalyzer-1.0.9",{"$f":"sel_country_code","v":"DEU"},"Hydrogen (AEL)",{"$f":"_calc!$B$859","v":"CRI"},{"$f":"_calc!$BO$827","v":"COST-OPEX"},{"$f":"_calc!$BR$1","v":"Electricity generation"},{"$f":"_calc!$BR$859","v":12.650468489259243}]
[{"$f":"_xlfn.TEXTJOIN(\",\",FALSE,output[[#This Row],[scenario]:[process_class]])","v":"PTX-BusinessOpportunityAnalyzer-1.0.9,DEU,Hydrogen (AEL),CRI,COST-OPEX,Transportation (Pipeline)"},"PTX-BusinessOpportunityAnalyzer-1.0.9",{"$f":"sel_country_code","v":"DEU"},"Hydrogen (AEL)",{"$f":"_calc!$B$859","v":"CRI"},{"$f":"_calc!$BO$827","v":"COST-OPEX"},{"$f":"_calc!$BS$1","v":"Transportation (Pipeline)"},{"$f":"_calc!$BS$859","v":0}]
[{"$f":"_xlfn.TEXTJOIN(\",\",FALSE,output[[#This Row],[scenario]:[process_class]])","v":"PTX-BusinessOpportunityAnalyzer-1.0.9,DEU,Hydrogen (AEL),CRI,COST-OPEX,Transportation (Ship)"},"PTX-BusinessOpportunityAnalyzer-1.0.9",{"$f":"sel_country_code","v":"DEU"},"Hydrogen (AEL)",{"$f":"_calc!$B$859","v":"CRI"},{"$f":"_calc!$BO$827","v":"COST-OPEX"},{"$f":"_calc!$BT$1","v":"Transportation (Ship)"},{"$f":"_calc!$BT$859","v":40.681487141758957}]
[{"$f":"_xlfn.TEXTJOIN(\",\",FALSE,output[[#This Row],[scenario]:[process_class]])","v":"PTX-BusinessOpportunityAnalyzer-1.0.9,DEU,Hydrogen (AEL),CRI,COST-OPEX,Carbon"},"PTX-BusinessOpportunityAnalyzer-1.0.9",{"$f":"sel_country_code","v":"DEU"},"Hydrogen (AEL)",{"$f":"_calc!$B$859","v":"CRI"},{"$f":"_calc!$BO$827","v":"COST-OPEX"},{"$f":"_calc!$BU$1","v":"Carbon"},{"$f":"_calc!$BU$859","v":0}]
[{"$f":"_xlfn.TEXTJOIN(\",\",FALSE,output[[#This Row],[scenario]:[process_class]])","v":"PTX-BusinessOpportunityAnalyzer-1.0.9,DEU,Hydrogen (AEL),CRI,COST-OPEX,Derivate production"},"PTX-BusinessOpportunityAnalyzer-1.0.9",{"$f":"sel_country_code","v":"DEU"},"Hydrogen (AEL)",{"$f":"_calc!$B$859","v":"CRI"},{"$f":"_calc!$BO$827","v":"COST-OPEX"},{"$f":"_calc!$BV$1","v":"Derivate production"},{"$f":"_calc!$BV$859","v":0}]
[{"$f":"_xlfn.TEXTJOIN(\",\",FALSE,output[[#This Row],[scenario]:[process_class]])","v":"PTX-BusinessOpportunityAnalyzer-1.0.9,DEU,Hydrogen (AEL),CRI,COST-OPEX,Heat"},"PTX-BusinessOpportunityAnalyzer-1.0.9",{"$f":"sel_country_code","v":"DEU"},"Hydrogen (AEL)",{"$f":"_calc!$B$859","v":"CRI"},{"$f":"_calc!$BO$827","v":"COST-OPEX"},{"$f":"_calc!$BW$1","v":"Heat"},{"$f":"_calc!$BW$859","v":0}]
[{"$f":"_xlfn.TEXTJOIN(\",\",FALSE,output[[#This Row],[scenario]:[process_class]])","v":"PTX-BusinessOpportunityAnalyzer-1.0.9,DEU,Hydrogen (AEL),CRI,COST-OPEX,Electricity and H2 storage"},"PTX-BusinessOpportunityAnalyzer-1.0.9",{"$f":"sel_country_code","v":"DEU"},"Hydrogen (AEL)",{"$f":"_calc!$B$859","v":"CRI"},{"$f":"_calc!$BO$827","v":"COST-OPEX"},{"$f":"_calc!$BX$1","v":"Electricity and H2 storage"},{"$f":"_calc!$BX$859","v":4.818288773124082}]
[{"$f":"_xlfn.TEXTJOIN(\",\",FALSE,output[[#This Row],[scenario]:[process_class]])","v":"PTX-BusinessOpportunityAnalyzer-1.0.9,DEU,Hydrogen (AEL),DNK,COST-OPEX,Water"},"PTX-BusinessOpportunityAnalyzer-1.0.9",{"$f":"sel_country_code","v":"DEU"},"Hydrogen (AEL)",{"$f":"_calc!$B$860","v":"DNK"},{"$f":"_calc!$BO$827","v":"COST-OPEX"},{"$f":"_calc!$BP$1","v":"Water"},{"$f":"_calc!$BP$860","v":2.9055331738213629E-2}]
[{"$f":"_xlfn.TEXTJOIN(\",\",FALSE,output[[#This Row],[scenario]:[process_class]])","v":"PTX-BusinessOpportunityAnalyzer-1.0.9,DEU,Hydrogen (AEL),DNK,COST-OPEX,Electrolysis"},"PTX-BusinessOpportunityAnalyzer-1.0.9",{"$f":"sel_country_code","v":"DEU"},"Hydrogen (AEL)",{"$f":"_calc!$B$860","v":"DNK"},{"$f":"_calc!$BO$827","v":"COST-OPEX"},{"$f":"_calc!$BQ$1","v":"Electrolysis"},{"$f":"_calc!$BQ$860","v":2.5101029362829883}]
[{"$f":"_xlfn.TEXTJOIN(\",\",FALSE,output[[#This Row],[scenario]:[process_class]])","v":"PTX-BusinessOpportunityAnalyzer-1.0.9,DEU,Hydrogen (AEL),DNK,COST-OPEX,Electricity generation"},"PTX-BusinessOpportunityAnalyzer-1.0.9",{"$f":"sel_country_code","v":"DEU"},"Hydrogen (AEL)",{"$f":"_calc!$B$860","v":"DNK"},{"$f":"_calc!$BO$827","v":"COST-OPEX"},{"$f":"_calc!$BR$1","v":"Electricity generation"},{"$f":"_calc!$BR$860","v":6.3755785634177835}]
[{"$f":"_xlfn.TEXTJOIN(\",\",FALSE,output[[#This Row],[scenario]:[process_class]])","v":"PTX-BusinessOpportunityAnalyzer-1.0.9,DEU,Hydrogen (AEL),DNK,COST-OPEX,Transportation (Pipeline)"},"PTX-BusinessOpportunityAnalyzer-1.0.9",{"$f":"sel_country_code","v":"DEU"},"Hydrogen (AEL)",{"$f":"_calc!$B$860","v":"DNK"},{"$f":"_calc!$BO$827","v":"COST-OPEX"},{"$f":"_calc!$BS$1","v":"Transportation (Pipeline)"},{"$f":"_calc!$BS$860","v":2.4313099041106097}]
[{"$f":"_xlfn.TEXTJOIN(\",\",FALSE,output[[#This Row],[scenario]:[process_class]])","v":"PTX-BusinessOpportunityAnalyzer-1.0.9,DEU,Hydrogen (AEL),DNK,COST-OPEX,Transportation (Ship)"},"PTX-BusinessOpportunityAnalyzer-1.0.9",{"$f":"sel_country_code","v":"DEU"},"Hydrogen (AEL)",{"$f":"_calc!$B$860","v":"DNK"},{"$f":"_calc!$BO$827","v":"COST-OPEX"},{"$f":"_calc!$BT$1","v":"Transportation (Ship)"},{"$f":"_calc!$BT$860","v":0}]
[{"$f":"_xlfn.TEXTJOIN(\",\",FALSE,output[[#This Row],[scenario]:[process_class]])","v":"PTX-BusinessOpportunityAnalyzer-1.0.9,DEU,Hydrogen (AEL),DNK,COST-OPEX,Carbon"},"PTX-BusinessOpportunityAnalyzer-1.0.9",{"$f":"sel_country_code","v":"DEU"},"Hydrogen (AEL)",{"$f":"_calc!$B$860","v":"DNK"},{"$f":"_calc!$BO$827","v":"COST-OPEX"},{"$f":"_calc!$BU$1","v":"Carbon"},{"$f":"_calc!$BU$860","v":0}]
[{"$f":"_xlfn.TEXTJOIN(\",\",FALSE,output[[#This Row],[scenario]:[process_class]])","v":"PTX-BusinessOpportunityAnalyzer-1.0.9,DEU,Hydrogen (AEL),DNK,COST-OPEX,Derivate production"},"PTX-BusinessOpportunityAnalyzer-1.0.9",{"$f":"sel_country_code","v":"DEU"},"Hydrogen (AEL)",{"$f":"_calc!$B$860","v":"DNK"},{"$f":"_calc!$BO$827","v":"COST-OPEX"},{"$f":"_calc!$BV$1","v":"Derivate production"},{"$f":"_calc!$BV$860","v":0}]
[{"$f":"_xlfn.TEXTJOIN(\",\",FALSE,output[[#This Row],[scenario]:[process_class]])","v":"PTX-BusinessOpportunityAnalyzer-1.0.9,DEU,Hydrogen (AEL),DNK,COST-OPEX,Heat"},"PTX-BusinessOpportunityAnalyzer-1.0.9",{"$f":"sel_country_code","v":"DEU"},"Hydrogen (AEL)",{"$f":"_calc!$B$860","v":"DNK"},{"$f":"_calc!$BO$827","v":"COST-OPEX"},{"$f":"_calc!$BW$1","v":"Heat"},{"$f":"_calc!$BW$860","v":0}]
[{"$f":"_xlfn.TEXTJOIN(\",\",FALSE,output[[#This Row],[scenario]:[process_class]])","v":"PTX-BusinessOpportunityAnalyzer-1.0.9,DEU,Hydrogen (AEL),DNK,COST-OPEX,Electricity and H2 storage"},"PTX-BusinessOpportunityAnalyzer-1.0.9",{"$f":"sel_country_code","v":"DEU"},"Hydrogen (AEL)",{"$f":"_calc!$B$860","v":"DNK"},{"$f":"_calc!$BO$827","v":"COST-OPEX"},{"$f":"_calc!$BX$1","v":"Electricity and H2 storage"},{"$f":"_calc!$BX$860","v":1.7195085423958016}]
[{"$f":"_xlfn.TEXTJOIN(\",\",FALSE,output[[#This Row],[scenario]:[process_class]])","v":"PTX-BusinessOpportunityAnalyzer-1.0.9,DEU,Hydrogen (AEL),DZA,COST-OPEX,Water"},"PTX-BusinessOpportunityAnalyzer-1.0.9",{"$f":"sel_country_code","v":"DEU"},"Hydrogen (AEL)",{"$f":"_calc!$B$861","v":"DZA"},{"$f":"_calc!$BO$827","v":"COST-OPEX"},{"$f":"_calc!$BP$1","v":"Water"},{"$f":"_calc!$BP$861","v":3.0338432149591553E-2}]
[{"$f":"_xlfn.TEXTJOIN(\",\",FALSE,output[[#This Row],[scenario]:[process_class]])","v":"PTX-BusinessOpportunityAnalyzer-1.0.9,DEU,Hydrogen (AEL),DZA,COST-OPEX,Electrolysis"},"PTX-BusinessOpportunityAnalyzer-1.0.9",{"$f":"sel_country_code","v":"DEU"},"Hydrogen (AEL)",{"$f":"_calc!$B$861","v":"DZA"},{"$f":"_calc!$BO$827","v":"COST-OPEX"},{"$f":"_calc!$BQ$1","v":"Electrolysis"},{"$f":"_calc!$BQ$861","v":4.8499495200164082}]
[{"$f":"_xlfn.TEXTJOIN(\",\",FALSE,output[[#This Row],[scenario]:[process_class]])","v":"PTX-BusinessOpportunityAnalyzer-1.0.9,DEU,Hydrogen (AEL),DZA,COST-OPEX,Electricity generation"},"PTX-BusinessOpportunityAnalyzer-1.0.9",{"$f":"sel_country_code","v":"DEU"},"Hydrogen (AEL)",{"$f":"_calc!$B$861","v":"DZA"},{"$f":"_calc!$BO$827","v":"COST-OPEX"},{"$f":"_calc!$BR$1","v":"Electricity generation"},{"$f":"_calc!$BR$861","v":9.4143698386123607}]
[{"$f":"_xlfn.TEXTJOIN(\",\",FALSE,output[[#This Row],[scenario]:[process_class]])","v":"PTX-BusinessOpportunityAnalyzer-1.0.9,DEU,Hydrogen (AEL),DZA,COST-OPEX,Transportation (Pipeline)"},"PTX-BusinessOpportunityAnalyzer-1.0.9",{"$f":"sel_country_code","v":"DEU"},"Hydrogen (AEL)",{"$f":"_calc!$B$861","v":"DZA"},{"$f":"_calc!$BO$827","v":"COST-OPEX"},{"$f":"_calc!$BS$1","v":"Transportation (Pipeline)"},{"$f":"_calc!$BS$861","v":30.082819203804554}]
[{"$f":"_xlfn.TEXTJOIN(\",\",FALSE,output[[#This Row],[scenario]:[process_class]])","v":"PTX-BusinessOpportunityAnalyzer-1.0.9,DEU,Hydrogen (AEL),DZA,COST-OPEX,Transportation (Ship)"},"PTX-BusinessOpportunityAnalyzer-1.0.9",{"$f":"sel_country_code","v":"DEU"},"Hydrogen (AEL)",{"$f":"_calc!$B$861","v":"DZA"},{"$f":"_calc!$BO$827","v":"COST-OPEX"},{"$f":"_calc!$BT$1","v":"Transportation (Ship)"},{"$f":"_calc!$BT$861","v":0}]
[{"$f":"_xlfn.TEXTJOIN(\",\",FALSE,output[[#This Row],[scenario]:[process_class]])","v":"PTX-BusinessOpportunityAnalyzer-1.0.9,DEU,Hydrogen (AEL),DZA,COST-OPEX,Carbon"},"PTX-BusinessOpportunityAnalyzer-1.0.9",{"$f":"sel_country_code","v":"DEU"},"Hydrogen (AEL)",{"$f":"_calc!$B$861","v":"DZA"},{"$f":"_calc!$BO$827","v":"COST-OPEX"},{"$f":"_calc!$BU$1","v":"Carbon"},{"$f":"_calc!$BU$861","v":0}]
[{"$f":"_xlfn.TEXTJOIN(\",\",FALSE,output[[#This Row],[scenario]:[process_class]])","v":"PTX-BusinessOpportunityAnalyzer-1.0.9,DEU,Hydrogen (AEL),DZA,COST-OPEX,Derivate production"},"PTX-BusinessOpportunityAnalyzer-1.0.9",{"$f":"sel_country_code","v":"DEU"},"Hydrogen (AEL)",{"$f":"_calc!$B$861","v":"DZA"},{"$f":"_calc!$BO$827","v":"COST-OPEX"},{"$f":"_calc!$BV$1","v":"Derivate production"},{"$f":"_calc!$BV$861","v":0}]
[{"$f":"_xlfn.TEXTJOIN(\",\",FALSE,output[[#This Row],[scenario]:[process_class]])","v":"PTX-BusinessOpportunityAnalyzer-1.0.9,DEU,Hydrogen (AEL),DZA,COST-OPEX,Heat"},"PTX-BusinessOpportunityAnalyzer-1.0.9",{"$f":"sel_country_code","v":"DEU"},"Hydrogen (AEL)",{"$f":"_calc!$B$861","v":"DZA"},{"$f":"_calc!$BO$827","v":"COST-OPEX"},{"$f":"_calc!$BW$1","v":"Heat"},{"$f":"_calc!$BW$861","v":0}]
[{"$f":"_xlfn.TEXTJOIN(\",\",FALSE,output[[#This Row],[scenario]:[process_class]])","v":"PTX-BusinessOpportunityAnalyzer-1.0.9,DEU,Hydrogen (AEL),DZA,COST-OPEX,Electricity and H2 storage"},"PTX-BusinessOpportunityAnalyzer-1.0.9",{"$f":"sel_country_code","v":"DEU"},"Hydrogen (AEL)",{"$f":"_calc!$B$861","v":"DZA"},{"$f":"_calc!$BO$827","v":"COST-OPEX"},{"$f":"_calc!$BX$1","v":"Electricity and H2 storage"},{"$f":"_calc!$BX$861","v":3.5978173834414622}]
[{"$f":"_xlfn.TEXTJOIN(\",\",FALSE,output[[#This Row],[scenario]:[process_class]])","v":"PTX-BusinessOpportunityAnalyzer-1.0.9,DEU,Hydrogen (AEL),EGY,COST-OPEX,Water"},"PTX-BusinessOpportunityAnalyzer-1.0.9",{"$f":"sel_country_code","v":"DEU"},"Hydrogen (AEL)",{"$f":"_calc!$B$862","v":"EGY"},{"$f":"_calc!$BO$827","v":"COST-OPEX"},{"$f":"_calc!$BP$1","v":"Water"},{"$f":"_calc!$BP$862","v":3.1463740561217354E-2}]
[{"$f":"_xlfn.TEXTJOIN(\",\",FALSE,output[[#This Row],[scenario]:[process_class]])","v":"PTX-BusinessOpportunityAnalyzer-1.0.9,DEU,Hydrogen (AEL),EGY,COST-OPEX,Electrolysis"},"PTX-BusinessOpportunityAnalyzer-1.0.9",{"$f":"sel_country_code","v":"DEU"},"Hydrogen (AEL)",{"$f":"_calc!$B$862","v":"EGY"},{"$f":"_calc!$BO$827","v":"COST-OPEX"},{"$f":"_calc!$BQ$1","v":"Electrolysis"},{"$f":"_calc!$BQ$862","v":3.1291961263708234}]
[{"$f":"_xlfn.TEXTJOIN(\",\",FALSE,output[[#This Row],[scenario]:[process_class]])","v":"PTX-BusinessOpportunityAnalyzer-1.0.9,DEU,Hydrogen (AEL),EGY,COST-OPEX,Electricity generation"},"PTX-BusinessOpportunityAnalyzer-1.0.9",{"$f":"sel_country_code","v":"DEU"},"Hydrogen (AEL)",{"$f":"_calc!$B$862","v":"EGY"},{"$f":"_calc!$BO$827","v":"COST-OPEX"},{"$f":"_calc!$BR$1","v":"Electricity generation"},{"$f":"_calc!$BR$862","v":7.6542415230295511}]
[{"$f":"_xlfn.TEXTJOIN(\",\",FALSE,output[[#This Row],[scenario]:[process_class]])","v":"PTX-BusinessOpportunityAnalyzer-1.0.9,DEU,Hydrogen (AEL),EGY,COST-OPEX,Transportation (Pipeline)"},"PTX-BusinessOpportunityAnalyzer-1.0.9",{"$f":"sel_country_code","v":"DEU"},"Hydrogen (AEL)",{"$f":"_calc!$B$862","v":"EGY"},{"$f":"_calc!$BO$827","v":"COST-OPEX"},{"$f":"_calc!$BS$1","v":"Transportation (Pipeline)"},{"$f":"_calc!$BS$862","v":45.971093941512862}]
[{"$f":"_xlfn.TEXTJOIN(\",\",FALSE,output[[#This Row],[scenario]:[process_class]])","v":"PTX-BusinessOpportunityAnalyzer-1.0.9,DEU,Hydrogen (AEL),EGY,COST-OPEX,Transportation (Ship)"},"PTX-BusinessOpportunityAnalyzer-1.0.9",{"$f":"sel_country_code","v":"DEU"},"Hydrogen (AEL)",{"$f":"_calc!$B$862","v":"EGY"},{"$f":"_calc!$BO$827","v":"COST-OPEX"},{"$f":"_calc!$BT$1","v":"Transportation (Ship)"},{"$f":"_calc!$BT$862","v":0}]
[{"$f":"_xlfn.TEXTJOIN(\",\",FALSE,output[[#This Row],[scenario]:[process_class]])","v":"PTX-BusinessOpportunityAnalyzer-1.0.9,DEU,Hydrogen (AEL),EGY,COST-OPEX,Carbon"},"PTX-BusinessOpportunityAnalyzer-1.0.9",{"$f":"sel_country_code","v":"DEU"},"Hydrogen (AEL)",{"$f":"_calc!$B$862","v":"EGY"},{"$f":"_calc!$BO$827","v":"COST-OPEX"},{"$f":"_calc!$BU$1","v":"Carbon"},{"$f":"_calc!$BU$862","v":0}]
[{"$f":"_xlfn.TEXTJOIN(\",\",FALSE,output[[#This Row],[scenario]:[process_class]])","v":"PTX-BusinessOpportunityAnalyzer-1.0.9,DEU,Hydrogen (AEL),EGY,COST-OPEX,Derivate production"},"PTX-BusinessOpportunityAnalyzer-1.0.9",{"$f":"sel_country_code","v":"DEU"},"Hydrogen (AEL)",{"$f":"_calc!$B$862","v":"EGY"},{"$f":"_calc!$BO$827","v":"COST-OPEX"},{"$f":"_calc!$BV$1","v":"Derivate production"},{"$f":"_calc!$BV$862","v":0}]
[{"$f":"_xlfn.TEXTJOIN(\",\",FALSE,output[[#This Row],[scenario]:[process_class]])","v":"PTX-BusinessOpportunityAnalyzer-1.0.9,DEU,Hydrogen (AEL),EGY,COST-OPEX,Heat"},{"$f":"output_scenario_name","v":"PTX-BusinessOpportunityAnalyzer-1.0.9"},{"$f":"sel_country_code","v":"DEU"},{"$f":"sel_chain","v":"Hydrogen (AEL)"},{"$f":"_calc!$B$862","v":"EGY"},{"$f":"_calc!$BO$827","v":"COST-OPEX"},{"$f":"_calc!$BW$1","v":"Heat"},{"$f":"_calc!$BW$862","v":0}]
[{"$f":"_xlfn.TEXTJOIN(\",\",FALSE,output[[#This Row],[scenario]:[process_class]])","v":"PTX-BusinessOpportunityAnalyzer-1.0.9,DEU,Hydrogen (AEL),EGY,COST-OPEX,Electricity and H2 storage"},"PTX-BusinessOpportunityAnalyzer-1.0.9",{"$f":"sel_country_code","v":"DEU"},"Hydrogen (AEL)",{"$f":"_calc!$B$862","v":"EGY"},{"$f":"_calc!$BO$827","v":"COST-OPEX"},{"$f":"_calc!$BX$1","v":"Electricity and H2 storage"},{"$f":"_calc!$BX$862","v":3.079284037343597}]
[{"$f":"_xlfn.TEXTJOIN(\",\",FALSE,output[[#This Row],[scenario]:[process_class]])","v":"PTX-BusinessOpportunityAnalyzer-1.0.9,DEU,Hydrogen (AEL),ESP,COST-OPEX,Water"},"PTX-BusinessOpportunityAnalyzer-1.0.9",{"$f":"sel_country_code","v":"DEU"},"Hydrogen (AEL)",{"$f":"_calc!$B$863","v":"ESP"},{"$f":"_calc!$BO$827","v":"COST-OPEX"},{"$f":"_calc!$BP$1","v":"Water"},{"$f":"_calc!$BP$863","v":2.955811884739375E-2}]
[{"$f":"_xlfn.TEXTJOIN(\",\",FALSE,output[[#This Row],[scenario]:[process_class]])","v":"PTX-BusinessOpportunityAnalyzer-1.0.9,DEU,Hydrogen (AEL),ESP,COST-OPEX,Electrolysis"},"PTX-BusinessOpportunityAnalyzer-1.0.9",{"$f":"sel_country_code","v":"DEU"},"Hydrogen (AEL)",{"$f":"_calc!$B$863","v":"ESP"},{"$f":"_calc!$BO$827","v":"COST-OPEX"},{"$f":"_calc!$BQ$1","v":"Electrolysis"},{"$f":"_calc!$BQ$863","v":2.3187584946436437}]
[{"$f":"_xlfn.TEXTJOIN(\",\",FALSE,output[[#This Row],[scenario]:[process_class]])","v":"PTX-BusinessOpportunityAnalyzer-1.0.9,DEU,Hydrogen (AEL),ESP,COST-OPEX,Electricity generation"},"PTX-BusinessOpportunityAnalyzer-1.0.9",{"$f":"sel_country_code","v":"DEU"},"Hydrogen (AEL)",{"$f":"_calc!$B$863","v":"ESP"},{"$f":"_calc!$BO$827","v":"COST-OPEX"},{"$f":"_calc!$BR$1","v":"Electricity generation"},{"$f":"_calc!$BR$863","v":4.9224486076587546}]
[{"$f":"_xlfn.TEXTJOIN(\",\",FALSE,output[[#This Row],[scenario]:[process_class]])","v":"PTX-BusinessOpportunityAnalyzer-1.0.9,DEU,Hydrogen (AEL),ESP,COST-OPEX,Transportation (Pipeline)"},"PTX-BusinessOpportunityAnalyzer-1.0.9",{"$f":"sel_country_code","v":"DEU"},"Hydrogen (AEL)",{"$f":"_calc!$B$863","v":"ESP"},{"$f":"_calc!$BO$827","v":"COST-OPEX"},{"$f":"_calc!$BS$1","v":"Transportation (Pipeline)"},{"$f":"_calc!$BS$863","v":14.406304220864055}]
[{"$f":"_xlfn.TEXTJOIN(\",\",FALSE,output[[#This Row],[scenario]:[process_class]])","v":"PTX-BusinessOpportunityAnalyzer-1.0.9,DEU,Hydrogen (AEL),ESP,COST-OPEX,Transportation (Ship)"},"PTX-BusinessOpportunityAnalyzer-1.0.9",{"$f":"sel_country_code","v":"DEU"},"Hydrogen (AEL)",{"$f":"_calc!$B$863","v":"ESP"},{"$f":"_calc!$BO$827","v":"COST-OPEX"},{"$f":"_calc!$BT$1","v":"Transportation (Ship)"},{"$f":"_calc!$BT$863","v":0}]
[{"$f":"_xlfn.TEXTJOIN(\",\",FALSE,output[[#This Row],[scenario]:[process_class]])","v":"PTX-BusinessOpportunityAnalyzer-1.0.9,DEU,Hydrogen (AEL),ESP,COST-OPEX,Carbon"},"PTX-BusinessOpportunityAnalyzer-1.0.9",{"$f":"sel_country_code","v":"DEU"},"Hydrogen (AEL)",{"$f":"_calc!$B$863","v":"ESP"},{"$f":"_calc!$BO$827","v":"COST-OPEX"},{"$f":"_calc!$BU$1","v":"Carbon"},{"$f":"_calc!$BU$863","v":0}]
[{"$f":"_xlfn.TEXTJOIN(\",\",FALSE,output[[#This Row],[scenario]:[process_class]])","v":"PTX-BusinessOpportunityAnalyzer-1.0.9,DEU,Hydrogen (AEL),ESP,COST-OPEX,Derivate production"},"PTX-BusinessOpportunityAnalyzer-1.0.9",{"$f":"sel_country_code","v":"DEU"},"Hydrogen (AEL)",{"$f":"_calc!$B$863","v":"ESP"},{"$f":"_calc!$BO$827","v":"COST-OPEX"},{"$f":"_calc!$BV$1","v":"Derivate production"},{"$f":"_calc!$BV$863","v":0}]
[{"$f":"_xlfn.TEXTJOIN(\",\",FALSE,output[[#This Row],[scenario]:[process_class]])","v":"PTX-BusinessOpportunityAnalyzer-1.0.9,DEU,Hydrogen (AEL),ESP,COST-OPEX,Heat"},"PTX-BusinessOpportunityAnalyzer-1.0.9",{"$f":"sel_country_code","v":"DEU"},"Hydrogen (AEL)",{"$f":"_calc!$B$863","v":"ESP"},{"$f":"_calc!$BO$827","v":"COST-OPEX"},{"$f":"_calc!$BW$1","v":"Heat"},{"$f":"_calc!$BW$863","v":0}]
[{"$f":"_xlfn.TEXTJOIN(\",\",FALSE,output[[#This Row],[scenario]:[process_class]])","v":"PTX-BusinessOpportunityAnalyzer-1.0.9,DEU,Hydrogen (AEL),ESP,COST-OPEX,Electricity and H2 storage"},"PTX-BusinessOpportunityAnalyzer-1.0.9",{"$f":"sel_country_code","v":"DEU"},"Hydrogen (AEL)",{"$f":"_calc!$B$863","v":"ESP"},{"$f":"_calc!$BO$827","v":"COST-OPEX"},{"$f":"_calc!$BX$1","v":"Electricity and H2 storage"},{"$f":"_calc!$BX$863","v":1.5388132642757353}]
[{"$f":"_xlfn.TEXTJOIN(\",\",FALSE,output[[#This Row],[scenario]:[process_class]])","v":"PTX-BusinessOpportunityAnalyzer-1.0.9,DEU,Hydrogen (AEL),IDN,COST-OPEX,Water"},"PTX-BusinessOpportunityAnalyzer-1.0.9",{"$f":"sel_country_code","v":"DEU"},"Hydrogen (AEL)",{"$f":"_calc!$B$864","v":"IDN"},{"$f":"_calc!$BO$827","v":"COST-OPEX"},{"$f":"_calc!$BP$1","v":"Water"},{"$f":"_calc!$BP$864","v":4.0817420314923428E-2}]
[{"$f":"_xlfn.TEXTJOIN(\",\",FALSE,output[[#This Row],[scenario]:[process_class]])","v":"PTX-BusinessOpportunityAnalyzer-1.0.9,DEU,Hydrogen (AEL),IDN,COST-OPEX,Electrolysis"},"PTX-BusinessOpportunityAnalyzer-1.0.9",{"$f":"sel_country_code","v":"DEU"},"Hydrogen (AEL)",{"$f":"_calc!$B$864","v":"IDN"},{"$f":"_calc!$BO$827","v":"COST-OPEX"},{"$f":"_calc!$BQ$1","v":"Electrolysis"},{"$f":"_calc!$BQ$864","v":7.8862561603166794}]
[{"$f":"_xlfn.TEXTJOIN(\",\",FALSE,output[[#This Row],[scenario]:[process_class]])","v":"PTX-BusinessOpportunityAnalyzer-1.0.9,DEU,Hydrogen (AEL),IDN,COST-OPEX,Electricity generation"},"PTX-BusinessOpportunityAnalyzer-1.0.9",{"$f":"sel_country_code","v":"DEU"},"Hydrogen (AEL)",{"$f":"_calc!$B$864","v":"IDN"},{"$f":"_calc!$BO$827","v":"COST-OPEX"},{"$f":"_calc!$BR$1","v":"Electricity generation"},{"$f":"_calc!$BR$864","v":25.583020447781539}]
[{"$f":"_xlfn.TEXTJOIN(\",\",FALSE,output[[#This Row],[scenario]:[process_class]])","v":"PTX-BusinessOpportunityAnalyzer-1.0.9,DEU,Hydrogen (AEL),IDN,COST-OPEX,Transportation (Pipeline)"},"PTX-BusinessOpportunityAnalyzer-1.0.9",{"$f":"sel_country_code","v":"DEU"},"Hydrogen (AEL)",{"$f":"_calc!$B$864","v":"IDN"},{"$f":"_calc!$BO$827","v":"COST-OPEX"},{"$f":"_calc!$BS$1","v":"Transportation (Pipeline)"},{"$f":"_calc!$BS$864","v":0}]
[{"$f":"_xlfn.TEXTJOIN(\",\",FALSE,output[[#This Row],[scenario]:[process_class]])","v":"PTX-BusinessOpportunityAnalyzer-1.0.9,DEU,Hydrogen (AEL),IDN,COST-OPEX,Transportation (Ship)"},"PTX-BusinessOpportunityAnalyzer-1.0.9",{"$f":"sel_country_code","v":"DEU"},"Hydrogen (AEL)",{"$f":"_calc!$B$864","v":"IDN"},{"$f":"_calc!$BO$827","v":"COST-OPEX"},{"$f":"_calc!$BT$1","v":"Transportation (Ship)"},{"$f":"_calc!$BT$864","v":70.036599745774765}]
[{"$f":"_xlfn.TEXTJOIN(\",\",FALSE,output[[#This Row],[scenario]:[process_class]])","v":"PTX-BusinessOpportunityAnalyzer-1.0.9,DEU,Hydrogen (AEL),IDN,COST-OPEX,Carbon"},"PTX-BusinessOpportunityAnalyzer-1.0.9",{"$f":"sel_country_code","v":"DEU"},"Hydrogen (AEL)",{"$f":"_calc!$B$864","v":"IDN"},{"$f":"_calc!$BO$827","v":"COST-OPEX"},{"$f":"_calc!$BU$1","v":"Carbon"},{"$f":"_calc!$BU$864","v":0}]
[{"$f":"_xlfn.TEXTJOIN(\",\",FALSE,output[[#This Row],[scenario]:[process_class]])","v":"PTX-BusinessOpportunityAnalyzer-1.0.9,DEU,Hydrogen (AEL),IDN,COST-OPEX,Derivate production"},"PTX-BusinessOpportunityAnalyzer-1.0.9",{"$f":"sel_country_code","v":"DEU"},"Hydrogen (AEL)",{"$f":"_calc!$B$864","v":"IDN"},{"$f":"_calc!$BO$827","v":"COST-OPEX"},{"$f":"_calc!$BV$1","v":"Derivate production"},{"$f":"_calc!$BV$864","v":0}]
[{"$f":"_xlfn.TEXTJOIN(\",\",FALSE,output[[#This Row],[scenario]:[process_class]])","v":"PTX-BusinessOpportunityAnalyzer-1.0.9,DEU,Hydrogen (AEL),IDN,COST-OPEX,Heat"},"PTX-BusinessOpportunityAnalyzer-1.0.9",{"$f":"sel_country_code","v":"DEU"},"Hydrogen (AEL)",{"$f":"_calc!$B$864","v":"IDN"},{"$f":"_calc!$BO$827","v":"COST-OPEX"},{"$f":"_calc!$BW$1","v":"Heat"},{"$f":"_calc!$BW$864","v":0}]
[{"$f":"_xlfn.TEXTJOIN(\",\",FALSE,output[[#This Row],[scenario]:[process_class]])","v":"PTX-BusinessOpportunityAnalyzer-1.0.9,DEU,Hydrogen (AEL),IDN,COST-OPEX,Electricity and H2 storage"},"PTX-BusinessOpportunityAnalyzer-1.0.9",{"$f":"sel_country_code","v":"DEU"},"Hydrogen (AEL)",{"$f":"_calc!$B$864","v":"IDN"},{"$f":"_calc!$BO$827","v":"COST-OPEX"},{"$f":"_calc!$BX$1","v":"Electricity and H2 storage"},{"$f":"_calc!$BX$864","v":7.4029127314495611}]
[{"$f":"_xlfn.TEXTJOIN(\",\",FALSE,output[[#This Row],[scenario]:[process_class]])","v":"PTX-BusinessOpportunityAnalyzer-1.0.9,DEU,Hydrogen (AEL),IND,COST-OPEX,Water"},"PTX-BusinessOpportunityAnalyzer-1.0.9",{"$f":"sel_country_code","v":"DEU"},"Hydrogen (AEL)",{"$f":"_calc!$B$865","v":"IND"},{"$f":"_calc!$BO$827","v":"COST-OPEX"},{"$f":"_calc!$BP$1","v":"Water"},{"$f":"_calc!$BP$865","v":3.8995264068826425E-2}]
[{"$f":"_xlfn.TEXTJOIN(\",\",FALSE,output[[#This Row],[scenario]:[process_class]])","v":"PTX-BusinessOpportunityAnalyzer-1.0.9,DEU,Hydrogen (AEL),IND,COST-OPEX,Electrolysis"},"PTX-BusinessOpportunityAnalyzer-1.0.9",{"$f":"sel_country_code","v":"DEU"},"Hydrogen (AEL)",{"$f":"_calc!$B$865","v":"IND"},{"$f":"_calc!$BO$827","v":"COST-OPEX"},{"$f":"_calc!$BQ$1","v":"Electrolysis"},{"$f":"_calc!$BQ$865","v":3.3007209978633893}]
[{"$f":"_xlfn.TEXTJOIN(\",\",FALSE,output[[#This Row],[scenario]:[process_class]])","v":"PTX-BusinessOpportunityAnalyzer-1.0.9,DEU,Hydrogen (AEL),IND,COST-OPEX,Electricity generation"},"PTX-BusinessOpportunityAnalyzer-1.0.9",{"$f":"sel_country_code","v":"DEU"},"Hydrogen (AEL)",{"$f":"_calc!$B$865","v":"IND"},{"$f":"_calc!$BO$827","v":"COST-OPEX"},{"$f":"_calc!$BR$1","v":"Electricity generation"},{"$f":"_calc!$BR$865","v":5.6595487642188518}]
[{"$f":"_xlfn.TEXTJOIN(\",\",FALSE,output[[#This Row],[scenario]:[process_class]])","v":"PTX-BusinessOpportunityAnalyzer-1.0.9,DEU,Hydrogen (AEL),IND,COST-OPEX,Transportation (Pipeline)"},"PTX-BusinessOpportunityAnalyzer-1.0.9",{"$f":"sel_country_code","v":"DEU"},"Hydrogen (AEL)",{"$f":"_calc!$B$865","v":"IND"},{"$f":"_calc!$BO$827","v":"COST-OPEX"},{"$f":"_calc!$BS$1","v":"Transportation (Pipeline)"},{"$f":"_calc!$BS$865","v":0}]
[{"$f":"_xlfn.TEXTJOIN(\",\",FALSE,output[[#This Row],[scenario]:[process_class]])","v":"PTX-BusinessOpportunityAnalyzer-1.0.9,DEU,Hydrogen (AEL),IND,COST-OPEX,Transportation (Ship)"},"PTX-BusinessOpportunityAnalyzer-1.0.9",{"$f":"sel_country_code","v":"DEU"},"Hydrogen (AEL)",{"$f":"_calc!$B$865","v":"IND"},{"$f":"_calc!$BO$827","v":"COST-OPEX"},{"$f":"_calc!$BT$1","v":"Transportation (Ship)"},{"$f":"_calc!$BT$865","v":41.469844698906094}]
[{"$f":"_xlfn.TEXTJOIN(\",\",FALSE,output[[#This Row],[scenario]:[process_class]])","v":"PTX-BusinessOpportunityAnalyzer-1.0.9,DEU,Hydrogen (AEL),IND,COST-OPEX,Carbon"},"PTX-BusinessOpportunityAnalyzer-1.0.9",{"$f":"sel_country_code","v":"DEU"},"Hydrogen (AEL)",{"$f":"_calc!$B$865","v":"IND"},{"$f":"_calc!$BO$827","v":"COST-OPEX"},{"$f":"_calc!$BU$1","v":"Carbon"},{"$f":"_calc!$BU$865","v":0}]
[{"$f":"_xlfn.TEXTJOIN(\",\",FALSE,output[[#This Row],[scenario]:[process_class]])","v":"PTX-BusinessOpportunityAnalyzer-1.0.9,DEU,Hydrogen (AEL),IND,COST-OPEX,Derivate production"},"PTX-BusinessOpportunityAnalyzer-1.0.9",{"$f":"sel_country_code","v":"DEU"},"Hydrogen (AEL)",{"$f":"_calc!$B$865","v":"IND"},{"$f":"_calc!$BO$827","v":"COST-OPEX"},{"$f":"_calc!$BV$1","v":"Derivate production"},{"$f":"_calc!$BV$865","v":0}]
[{"$f":"_xlfn.TEXTJOIN(\",\",FALSE,output[[#This Row],[scenario]:[process_class]])","v":"PTX-BusinessOpportunityAnalyzer-1.0.9,DEU,Hydrogen (AEL),IND,COST-OPEX,Heat"},"PTX-BusinessOpportunityAnalyzer-1.0.9",{"$f":"sel_country_code","v":"DEU"},"Hydrogen (AEL)",{"$f":"_calc!$B$865","v":"IND"},{"$f":"_calc!$BO$827","v":"COST-OPEX"},{"$f":"_calc!$BW$1","v":"Heat"},{"$f":"_calc!$BW$865","v":0}]
[{"$f":"_xlfn.TEXTJOIN(\",\",FALSE,output[[#This Row],[scenario]:[process_class]])","v":"PTX-BusinessOpportunityAnalyzer-1.0.9,DEU,Hydrogen (AEL),IND,COST-OPEX,Electricity and H2 storage"},"PTX-BusinessOpportunityAnalyzer-1.0.9",{"$f":"sel_country_code","v":"DEU"},"Hydrogen (AEL)",{"$f":"_calc!$B$865","v":"IND"},{"$f":"_calc!$BO$827","v":"COST-OPEX"},{"$f":"_calc!$BX$1","v":"Electricity and H2 storage"},{"$f":"_calc!$BX$865","v":2.0064409132889356}]
[{"$f":"_xlfn.TEXTJOIN(\",\",FALSE,output[[#This Row],[scenario]:[process_class]])","v":"PTX-BusinessOpportunityAnalyzer-1.0.9,DEU,Hydrogen (AEL),JOR,COST-OPEX,Water"},"PTX-BusinessOpportunityAnalyzer-1.0.9",{"$f":"sel_country_code","v":"DEU"},"Hydrogen (AEL)",{"$f":"_calc!$B$866","v":"JOR"},{"$f":"_calc!$BO$827","v":"COST-OPEX"},{"$f":"_calc!$BP$1","v":"Water"},{"$f":"_calc!$BP$866","v":3.0617767303717479E-2}]
[{"$f":"_xlfn.TEXTJOIN(\",\",FALSE,output[[#This Row],[scenario]:[process_class]])","v":"PTX-BusinessOpportunityAnalyzer-1.0.9,DEU,Hydrogen (AEL),JOR,COST-OPEX,Electrolysis"},"PTX-BusinessOpportunityAnalyzer-1.0.9",{"$f":"sel_country_code","v":"DEU"},"Hydrogen (AEL)",{"$f":"_calc!$B$866","v":"JOR"},{"$f":"_calc!$BO$827","v":"COST-OPEX"},{"$f":"_calc!$BQ$1","v":"Electrolysis"},{"$f":"_calc!$BQ$866","v":5.0973495714566415}]
[{"$f":"_xlfn.TEXTJOIN(\",\",FALSE,output[[#This Row],[scenario]:[process_class]])","v":"PTX-BusinessOpportunityAnalyzer-1.0.9,DEU,Hydrogen (AEL),JOR,COST-OPEX,Electricity generation"},"PTX-BusinessOpportunityAnalyzer-1.0.9",{"$f":"sel_country_code","v":"DEU"},"Hydrogen (AEL)",{"$f":"_calc!$B$866","v":"JOR"},{"$f":"_calc!$BO$827","v":"COST-OPEX"},{"$f":"_calc!$BR$1","v":"Electricity generation"},{"$f":"_calc!$BR$866","v":17.074745579632349}]
[{"$f":"_xlfn.TEXTJOIN(\",\",FALSE,output[[#This Row],[scenario]:[process_class]])","v":"PTX-BusinessOpportunityAnalyzer-1.0.9,DEU,Hydrogen (AEL),JOR,COST-OPEX,Transportation (Pipeline)"},"PTX-BusinessOpportunityAnalyzer-1.0.9",{"$f":"sel_country_code","v":"DEU"},"Hydrogen (AEL)",{"$f":"_calc!$B$866","v":"JOR"},{"$f":"_calc!$BO$827","v":"COST-OPEX"},{"$f":"_calc!$BS$1","v":"Transportation (Pipeline)"},{"$f":"_calc!$BS$866","v":32.442431972438392}]
[{"$f":"_xlfn.TEXTJOIN(\",\",FALSE,output[[#This Row],[scenario]:[process_class]])","v":"PTX-BusinessOpportunityAnalyzer-1.0.9,DEU,Hydrogen (AEL),JOR,COST-OPEX,Transportation (Ship)"},"PTX-BusinessOpportunityAnalyzer-1.0.9",{"$f":"sel_country_code","v":"DEU"},"Hydrogen (AEL)",{"$f":"_calc!$B$866","v":"JOR"},{"$f":"_calc!$BO$827","v":"COST-OPEX"},{"$f":"_calc!$BT$1","v":"Transportation (Ship)"},{"$f":"_calc!$BT$866","v":0}]
[{"$f":"_xlfn.TEXTJOIN(\",\",FALSE,output[[#This Row],[scenario]:[process_class]])","v":"PTX-BusinessOpportunityAnalyzer-1.0.9,DEU,Hydrogen (AEL),JOR,COST-OPEX,Carbon"},"PTX-BusinessOpportunityAnalyzer-1.0.9",{"$f":"sel_country_code","v":"DEU"},"Hydrogen (AEL)",{"$f":"_calc!$B$866","v":"JOR"},{"$f":"_calc!$BO$827","v":"COST-OPEX"},{"$f":"_calc!$BU$1","v":"Carbon"},{"$f":"_calc!$BU$866","v":0}]
[{"$f":"_xlfn.TEXTJOIN(\",\",FALSE,output[[#This Row],[scenario]:[process_class]])","v":"PTX-BusinessOpportunityAnalyzer-1.0.9,DEU,Hydrogen (AEL),JOR,COST-OPEX,Derivate production"},"PTX-BusinessOpportunityAnalyzer-1.0.9",{"$f":"sel_country_code","v":"DEU"},"Hydrogen (AEL)",{"$f":"_calc!$B$866","v":"JOR"},{"$f":"_calc!$BO$827","v":"COST-OPEX"},{"$f":"_calc!$BV$1","v":"Derivate production"},{"$f":"_calc!$BV$866","v":0}]
[{"$f":"_xlfn.TEXTJOIN(\",\",FALSE,output[[#This Row],[scenario]:[process_class]])","v":"PTX-BusinessOpportunityAnalyzer-1.0.9,DEU,Hydrogen (AEL),JOR,COST-OPEX,Heat"},"PTX-BusinessOpportunityAnalyzer-1.0.9",{"$f":"sel_country_code","v":"DEU"},"Hydrogen (AEL)",{"$f":"_calc!$B$866","v":"JOR"},{"$f":"_calc!$BO$827","v":"COST-OPEX"},{"$f":"_calc!$BW$1","v":"Heat"},{"$f":"_calc!$BW$866","v":0}]
[{"$f":"_xlfn.TEXTJOIN(\",\",FALSE,output[[#This Row],[scenario]:[process_class]])","v":"PTX-BusinessOpportunityAnalyzer-1.0.9,DEU,Hydrogen (AEL),JOR,COST-OPEX,Electricity and H2 storage"},"PTX-BusinessOpportunityAnalyzer-1.0.9",{"$f":"sel_country_code","v":"DEU"},"Hydrogen (AEL)",{"$f":"_calc!$B$866","v":"JOR"},{"$f":"_calc!$BO$827","v":"COST-OPEX"},{"$f":"_calc!$BX$1","v":"Electricity and H2 storage"},{"$f":"_calc!$BX$866","v":5.8265332827758822}]
[{"$f":"_xlfn.TEXTJOIN(\",\",FALSE,output[[#This Row],[scenario]:[process_class]])","v":"PTX-BusinessOpportunityAnalyzer-1.0.9,DEU,Hydrogen (AEL),KAZ,COST-OPEX,Water"},"PTX-BusinessOpportunityAnalyzer-1.0.9",{"$f":"sel_country_code","v":"DEU"},"Hydrogen (AEL)",{"$f":"_calc!$B$867","v":"KAZ"},{"$f":"_calc!$BO$827","v":"COST-OPEX"},{"$f":"_calc!$BP$1","v":"Water"},{"$f":"_calc!$BP$867","v":3.0617767303717479E-2}]
[{"$f":"_xlfn.TEXTJOIN(\",\",FALSE,output[[#This Row],[scenario]:[process_class]])","v":"PTX-BusinessOpportunityAnalyzer-1.0.9,DEU,Hydrogen (AEL),KAZ,COST-OPEX,Electrolysis"},"PTX-BusinessOpportunityAnalyzer-1.0.9",{"$f":"sel_country_code","v":"DEU"},"Hydrogen (AEL)",{"$f":"_calc!$B$867","v":"KAZ"},{"$f":"_calc!$BO$827","v":"COST-OPEX"},{"$f":"_calc!$BQ$1","v":"Electrolysis"},{"$f":"_calc!$BQ$867","v":2.5933258625255426}]
[{"$f":"_xlfn.TEXTJOIN(\",\",FALSE,output[[#This Row],[scenario]:[process_class]])","v":"PTX-BusinessOpportunityAnalyzer-1.0.9,DEU,Hydrogen (AEL),KAZ,COST-OPEX,Electricity generation"},"PTX-BusinessOpportunityAnalyzer-1.0.9",{"$f":"sel_country_code","v":"DEU"},"Hydrogen (AEL)",{"$f":"_calc!$B$867","v":"KAZ"},{"$f":"_calc!$BO$827","v":"COST-OPEX"},{"$f":"_calc!$BR$1","v":"Electricity generation"},{"$f":"_calc!$BR$867","v":6.5394111337925471}]
[{"$f":"_xlfn.TEXTJOIN(\",\",FALSE,output[[#This Row],[scenario]:[process_class]])","v":"PTX-BusinessOpportunityAnalyzer-1.0.9,DEU,Hydrogen (AEL),KAZ,COST-OPEX,Transportation (Pipeline)"},"PTX-BusinessOpportunityAnalyzer-1.0.9",{"$f":"sel_country_code","v":"DEU"},"Hydrogen (AEL)",{"$f":"_calc!$B$867","v":"KAZ"},{"$f":"_calc!$BO$827","v":"COST-OPEX"},{"$f":"_calc!$BS$1","v":"Transportation (Pipeline)"},{"$f":"_calc!$BS$867","v":32.442431972438392}]
[{"$f":"_xlfn.TEXTJOIN(\",\",FALSE,output[[#This Row],[scenario]:[process_class]])","v":"PTX-BusinessOpportunityAnalyzer-1.0.9,DEU,Hydrogen (AEL),KAZ,COST-OPEX,Transportation (Ship)"},"PTX-BusinessOpportunityAnalyzer-1.0.9",{"$f":"sel_country_code","v":"DEU"},"Hydrogen (AEL)",{"$f":"_calc!$B$867","v":"KAZ"},{"$f":"_calc!$BO$827","v":"COST-OPEX"},{"$f":"_calc!$BT$1","v":"Transportation (Ship)"},{"$f":"_calc!$BT$867","v":0}]
[{"$f":"_xlfn.TEXTJOIN(\",\",FALSE,output[[#This Row],[scenario]:[process_class]])","v":"PTX-BusinessOpportunityAnalyzer-1.0.9,DEU,Hydrogen (AEL),KAZ,COST-OPEX,Carbon"},"PTX-BusinessOpportunityAnalyzer-1.0.9",{"$f":"sel_country_code","v":"DEU"},"Hydrogen (AEL)",{"$f":"_calc!$B$867","v":"KAZ"},{"$f":"_calc!$BO$827","v":"COST-OPEX"},{"$f":"_calc!$BU$1","v":"Carbon"},{"$f":"_calc!$BU$867","v":0}]
[{"$f":"_xlfn.TEXTJOIN(\",\",FALSE,output[[#This Row],[scenario]:[process_class]])","v":"PTX-BusinessOpportunityAnalyzer-1.0.9,DEU,Hydrogen (AEL),KAZ,COST-OPEX,Derivate production"},"PTX-BusinessOpportunityAnalyzer-1.0.9",{"$f":"sel_country_code","v":"DEU"},"Hydrogen (AEL)",{"$f":"_calc!$B$867","v":"KAZ"},{"$f":"_calc!$BO$827","v":"COST-OPEX"},{"$f":"_calc!$BV$1","v":"Derivate production"},{"$f":"_calc!$BV$867","v":0}]
[{"$f":"_xlfn.TEXTJOIN(\",\",FALSE,output[[#This Row],[scenario]:[process_class]])","v":"PTX-BusinessOpportunityAnalyzer-1.0.9,DEU,Hydrogen (AEL),KAZ,COST-OPEX,Heat"},"PTX-BusinessOpportunityAnalyzer-1.0.9",{"$f":"sel_country_code","v":"DEU"},"Hydrogen (AEL)",{"$f":"_calc!$B$867","v":"KAZ"},{"$f":"_calc!$BO$827","v":"COST-OPEX"},{"$f":"_calc!$BW$1","v":"Heat"},{"$f":"_calc!$BW$867","v":0}]
[{"$f":"_xlfn.TEXTJOIN(\",\",FALSE,output[[#This Row],[scenario]:[process_class]])","v":"PTX-BusinessOpportunityAnalyzer-1.0.9,DEU,Hydrogen (AEL),KAZ,COST-OPEX,Electricity and H2 storage"},"PTX-BusinessOpportunityAnalyzer-1.0.9",{"$f":"sel_country_code","v":"DEU"},"Hydrogen (AEL)",{"$f":"_calc!$B$867","v":"KAZ"},{"$f":"_calc!$BO$827","v":"COST-OPEX"},{"$f":"_calc!$BX$1","v":"Electricity and H2 storage"},{"$f":"_calc!$BX$867","v":2.0565061041384776}]
[{"$f":"_xlfn.TEXTJOIN(\",\",FALSE,output[[#This Row],[scenario]:[process_class]])","v":"PTX-BusinessOpportunityAnalyzer-1.0.9,DEU,Hydrogen (AEL),KEN,COST-OPEX,Water"},"PTX-BusinessOpportunityAnalyzer-1.0.9",{"$f":"sel_country_code","v":"DEU"},"Hydrogen (AEL)",{"$f":"_calc!$B$868","v":"KEN"},{"$f":"_calc!$BO$827","v":"COST-OPEX"},{"$f":"_calc!$BP$1","v":"Water"},{"$f":"_calc!$BP$868","v":3.9046995789389576E-2}]
[{"$f":"_xlfn.TEXTJOIN(\",\",FALSE,output[[#This Row],[scenario]:[process_class]])","v":"PTX-BusinessOpportunityAnalyzer-1.0.9,DEU,Hydrogen (AEL),KEN,COST-OPEX,Electrolysis"},"PTX-BusinessOpportunityAnalyzer-1.0.9",{"$f":"sel_country_code","v":"DEU"},"Hydrogen (AEL)",{"$f":"_calc!$B$868","v":"KEN"},{"$f":"_calc!$BO$827","v":"COST-OPEX"},{"$f":"_calc!$BQ$1","v":"Electrolysis"},{"$f":"_calc!$BQ$868","v":4.5809921131630107}]
[{"$f":"_xlfn.TEXTJOIN(\",\",FALSE,output[[#This Row],[scenario]:[process_class]])","v":"PTX-BusinessOpportunityAnalyzer-1.0.9,DEU,Hydrogen (AEL),KEN,COST-OPEX,Electricity generation"},"PTX-BusinessOpportunityAnalyzer-1.0.9",{"$f":"sel_country_code","v":"DEU"},"Hydrogen (AEL)",{"$f":"_calc!$B$868","v":"KEN"},{"$f":"_calc!$BO$827","v":"COST-OPEX"},{"$f":"_calc!$BR$1","v":"Electricity generation"},{"$f":"_calc!$BR$868","v":14.106293271452321}]
[{"$f":"_xlfn.TEXTJOIN(\",\",FALSE,output[[#This Row],[scenario]:[process_class]])","v":"PTX-BusinessOpportunityAnalyzer-1.0.9,DEU,Hydrogen (AEL),KEN,COST-OPEX,Transportation (Pipeline)"},"PTX-BusinessOpportunityAnalyzer-1.0.9",{"$f":"sel_country_code","v":"DEU"},"Hydrogen (AEL)",{"$f":"_calc!$B$868","v":"KEN"},{"$f":"_calc!$BO$827","v":"COST-OPEX"},{"$f":"_calc!$BS$1","v":"Transportation (Pipeline)"},{"$f":"_calc!$BS$868","v":0}]
[{"$f":"_xlfn.TEXTJOIN(\",\",FALSE,output[[#This Row],[scenario]:[process_class]])","v":"PTX-BusinessOpportunityAnalyzer-1.0.9,DEU,Hydrogen (AEL),KEN,COST-OPEX,Transportation (Ship)"},"PTX-BusinessOpportunityAnalyzer-1.0.9",{"$f":"sel_country_code","v":"DEU"},"Hydrogen (AEL)",{"$f":"_calc!$B$868","v":"KEN"},{"$f":"_calc!$BO$827","v":"COST-OPEX"},{"$f":"_calc!$BT$1","v":"Transportation (Ship)"},{"$f":"_calc!$BT$868","v":46.149341267432561}]
[{"$f":"_xlfn.TEXTJOIN(\",\",FALSE,output[[#This Row],[scenario]:[process_class]])","v":"PTX-BusinessOpportunityAnalyzer-1.0.9,DEU,Hydrogen (AEL),KEN,COST-OPEX,Carbon"},"PTX-BusinessOpportunityAnalyzer-1.0.9",{"$f":"sel_country_code","v":"DEU"},"Hydrogen (AEL)",{"$f":"_calc!$B$868","v":"KEN"},{"$f":"_calc!$BO$827","v":"COST-OPEX"},{"$f":"_calc!$BU$1","v":"Carbon"},{"$f":"_calc!$BU$868","v":0}]
[{"$f":"_xlfn.TEXTJOIN(\",\",FALSE,output[[#This Row],[scenario]:[process_class]])","v":"PTX-BusinessOpportunityAnalyzer-1.0.9,DEU,Hydrogen (AEL),KEN,COST-OPEX,Derivate production"},"PTX-BusinessOpportunityAnalyzer-1.0.9",{"$f":"sel_country_code","v":"DEU"},"Hydrogen (AEL)",{"$f":"_calc!$B$868","v":"KEN"},{"$f":"_calc!$BO$827","v":"COST-OPEX"},{"$f":"_calc!$BV$1","v":"Derivate production"},{"$f":"_calc!$BV$868","v":0}]
[{"$f":"_xlfn.TEXTJOIN(\",\",FALSE,output[[#This Row],[scenario]:[process_class]])","v":"PTX-BusinessOpportunityAnalyzer-1.0.9,DEU,Hydrogen (AEL),KEN,COST-OPEX,Heat"},"PTX-BusinessOpportunityAnalyzer-1.0.9",{"$f":"sel_country_code","v":"DEU"},"Hydrogen (AEL)",{"$f":"_calc!$B$868","v":"KEN"},{"$f":"_calc!$BO$827","v":"COST-OPEX"},{"$f":"_calc!$BW$1","v":"Heat"},{"$f":"_calc!$BW$868","v":0}]
[{"$f":"_xlfn.TEXTJOIN(\",\",FALSE,output[[#This Row],[scenario]:[process_class]])","v":"PTX-BusinessOpportunityAnalyzer-1.0.9,DEU,Hydrogen (AEL),KEN,COST-OPEX,Electricity and H2 storage"},"PTX-BusinessOpportunityAnalyzer-1.0.9",{"$f":"sel_country_code","v":"DEU"},"Hydrogen (AEL)",{"$f":"_calc!$B$868","v":"KEN"},{"$f":"_calc!$BO$827","v":"COST-OPEX"},{"$f":"_calc!$BX$1","v":"Electricity and H2 storage"},{"$f":"_calc!$BX$868","v":5.2295945064887439}]
[{"$f":"_xlfn.TEXTJOIN(\",\",FALSE,output[[#This Row],[scenario]:[process_class]])","v":"PTX-BusinessOpportunityAnalyzer-1.0.9,DEU,Hydrogen (AEL),MAR,COST-OPEX,Water"},"PTX-BusinessOpportunityAnalyzer-1.0.9",{"$f":"sel_country_code","v":"DEU"},"Hydrogen (AEL)",{"$f":"_calc!$B$869","v":"MAR"},{"$f":"_calc!$BO$827","v":"COST-OPEX"},{"$f":"_calc!$BP$1","v":"Water"},{"$f":"_calc!$BP$869","v":3.5289205170639167E-2}]
[{"$f":"_xlfn.TEXTJOIN(\",\",FALSE,output[[#This Row],[scenario]:[process_class]])","v":"PTX-BusinessOpportunityAnalyzer-1.0.9,DEU,Hydrogen (AEL),MAR,COST-OPEX,Electrolysis"},"PTX-BusinessOpportunityAnalyzer-1.0.9",{"$f":"sel_country_code","v":"DEU"},"Hydrogen (AEL)",{"$f":"_calc!$B$869","v":"MAR"},{"$f":"_calc!$BO$827","v":"COST-OPEX"},{"$f":"_calc!$BQ$1","v":"Electrolysis"},{"$f":"_calc!$BQ$869","v":3.592247205369222}]
[{"$f":"_xlfn.TEXTJOIN(\",\",FALSE,output[[#This Row],[scenario]:[process_class]])","v":"PTX-BusinessOpportunityAnalyzer-1.0.9,DEU,Hydrogen (AEL),MAR,COST-OPEX,Electricity generation"},"PTX-BusinessOpportunityAnalyzer-1.0.9",{"$f":"sel_country_code","v":"DEU"},"Hydrogen (AEL)",{"$f":"_calc!$B$869","v":"MAR"},{"$f":"_calc!$BO$827","v":"COST-OPEX"},{"$f":"_calc!$BR$1","v":"Electricity generation"},{"$f":"_calc!$BR$869","v":9.340905842759426}]
[{"$f":"_xlfn.TEXTJOIN(\",\",FALSE,output[[#This Row],[scenario]:[process_class]])","v":"PTX-BusinessOpportunityAnalyzer-1.0.9,DEU,Hydrogen (AEL),MAR,COST-OPEX,Transportation (Pipeline)"},"PTX-BusinessOpportunityAnalyzer-1.0.9",{"$f":"sel_country_code","v":"DEU"},"Hydrogen (AEL)",{"$f":"_calc!$B$869","v":"MAR"},{"$f":"_calc!$BO$827","v":"COST-OPEX"},{"$f":"_calc!$BS$1","v":"Transportation (Pipeline)"},{"$f":"_calc!$BS$869","v":0}]
[{"$f":"_xlfn.TEXTJOIN(\",\",FALSE,output[[#This Row],[scenario]:[process_class]])","v":"PTX-BusinessOpportunityAnalyzer-1.0.9,DEU,Hydrogen (AEL),MAR,COST-OPEX,Transportation (Ship)"},"PTX-BusinessOpportunityAnalyzer-1.0.9",{"$f":"sel_country_code","v":"DEU"},"Hydrogen (AEL)",{"$f":"_calc!$B$869","v":"MAR"},{"$f":"_calc!$BO$827","v":"COST-OPEX"},{"$f":"_calc!$BT$1","v":"Transportation (Ship)"},{"$f":"_calc!$BT$869","v":24.872112957382136}]
[{"$f":"_xlfn.TEXTJOIN(\",\",FALSE,output[[#This Row],[scenario]:[process_class]])","v":"PTX-BusinessOpportunityAnalyzer-1.0.9,DEU,Hydrogen (AEL),MAR,COST-OPEX,Carbon"},"PTX-BusinessOpportunityAnalyzer-1.0.9",{"$f":"sel_country_code","v":"DEU"},"Hydrogen (AEL)",{"$f":"_calc!$B$869","v":"MAR"},{"$f":"_calc!$BO$827","v":"COST-OPEX"},{"$f":"_calc!$BU$1","v":"Carbon"},{"$f":"_calc!$BU$869","v":0}]
[{"$f":"_xlfn.TEXTJOIN(\",\",FALSE,output[[#This Row],[scenario]:[process_class]])","v":"PTX-BusinessOpportunityAnalyzer-1.0.9,DEU,Hydrogen (AEL),MAR,COST-OPEX,Derivate production"},"PTX-BusinessOpportunityAnalyzer-1.0.9",{"$f":"sel_country_code","v":"DEU"},"Hydrogen (AEL)",{"$f":"_calc!$B$869","v":"MAR"},{"$f":"_calc!$BO$827","v":"COST-OPEX"},{"$f":"_calc!$BV$1","v":"Derivate production"},{"$f":"_calc!$BV$869","v":0}]
[{"$f":"_xlfn.TEXTJOIN(\",\",FALSE,output[[#This Row],[scenario]:[process_class]])","v":"PTX-BusinessOpportunityAnalyzer-1.0.9,DEU,Hydrogen (AEL),MAR,COST-OPEX,Heat"},"PTX-BusinessOpportunityAnalyzer-1.0.9",{"$f":"sel_country_code","v":"DEU"},"Hydrogen (AEL)",{"$f":"_calc!$B$869","v":"MAR"},{"$f":"_calc!$BO$827","v":"COST-OPEX"},{"$f":"_calc!$BW$1","v":"Heat"},{"$f":"_calc!$BW$869","v":0}]
[{"$f":"_xlfn.TEXTJOIN(\",\",FALSE,output[[#This Row],[scenario]:[process_class]])","v":"PTX-BusinessOpportunityAnalyzer-1.0.9,DEU,Hydrogen (AEL),MAR,COST-OPEX,Electricity and H2 storage"},{"$f":"output_scenario_name","v":"PTX-BusinessOpportunityAnalyzer-1.0.9"},{"$f":"sel_country_code","v":"DEU"},{"$f":"sel_chain","v":"Hydrogen (AEL)"},{"$f":"_calc!$B$869","v":"MAR"},{"$f":"_calc!$BO$827","v":"COST-OPEX"},{"$f":"_calc!$BX$1","v":"Electricity and H2 storage"},{"$f":"_calc!$BX$869","v":2.9833005337473737}]
[{"$f":"_xlfn.TEXTJOIN(\",\",FALSE,output[[#This Row],[scenario]:[process_class]])","v":"PTX-BusinessOpportunityAnalyzer-1.0.9,DEU,Hydrogen (AEL),MAR-BEN,COST-OPEX,Water"},"PTX-BusinessOpportunityAnalyzer-1.0.9",{"$f":"sel_country_code","v":"DEU"},"Hydrogen (AEL)",{"$f":"_calc!$B$870","v":"MAR-BEN"},{"$f":"_calc!$BO$827","v":"COST-OPEX"},{"$f":"_calc!$BP$1","v":"Water"},{"$f":"_calc!$BP$870","v":3.5289205170639167E-2}]
[{"$f":"_xlfn.TEXTJOIN(\",\",FALSE,output[[#This Row],[scenario]:[process_class]])","v":"PTX-BusinessOpportunityAnalyzer-1.0.9,DEU,Hydrogen (AEL),MAR-BEN,COST-OPEX,Electrolysis"},"PTX-BusinessOpportunityAnalyzer-1.0.9",{"$f":"sel_country_code","v":"DEU"},"Hydrogen (AEL)",{"$f":"_calc!$B$870","v":"MAR-BEN"},{"$f":"_calc!$BO$827","v":"COST-OPEX"},{"$f":"_calc!$BQ$1","v":"Electrolysis"},{"$f":"_calc!$BQ$870","v":5.0479760636707969}]
[{"$f":"_xlfn.TEXTJOIN(\",\",FALSE,output[[#This Row],[scenario]:[process_class]])","v":"PTX-BusinessOpportunityAnalyzer-1.0.9,DEU,Hydrogen (AEL),MAR-BEN,COST-OPEX,Electricity generation"},"PTX-BusinessOpportunityAnalyzer-1.0.9",{"$f":"sel_country_code","v":"DEU"},"Hydrogen (AEL)",{"$f":"_calc!$B$870","v":"MAR-BEN"},{"$f":"_calc!$BO$827","v":"COST-OPEX"},{"$f":"_calc!$BR$1","v":"Electricity generation"},{"$f":"_calc!$BR$870","v":13.204435120885385}]
[{"$f":"_xlfn.TEXTJOIN(\",\",FALSE,output[[#This Row],[scenario]:[process_class]])","v":"PTX-BusinessOpportunityAnalyzer-1.0.9,DEU,Hydrogen (AEL),MAR-BEN,COST-OPEX,Transportation (Pipeline)"},"PTX-BusinessOpportunityAnalyzer-1.0.9",{"$f":"sel_country_code","v":"DEU"},"Hydrogen (AEL)",{"$f":"_calc!$B$870","v":"MAR-BEN"},{"$f":"_calc!$BO$827","v":"COST-OPEX"},{"$f":"_calc!$BS$1","v":"Transportation (Pipeline)"},{"$f":"_calc!$BS$870","v":0}]
[{"$f":"_xlfn.TEXTJOIN(\",\",FALSE,output[[#This Row],[scenario]:[process_class]])","v":"PTX-BusinessOpportunityAnalyzer-1.0.9,DEU,Hydrogen (AEL),MAR-BEN,COST-OPEX,Transportation (Ship)"},"PTX-BusinessOpportunityAnalyzer-1.0.9",{"$f":"sel_country_code","v":"DEU"},"Hydrogen (AEL)",{"$f":"_calc!$B$870","v":"MAR-BEN"},{"$f":"_calc!$BO$827","v":"COST-OPEX"},{"$f":"_calc!$BT$1","v":"Transportation (Ship)"},{"$f":"_calc!$BT$870","v":31.418800994297975}]
[{"$f":"_xlfn.TEXTJOIN(\",\",FALSE,output[[#This Row],[scenario]:[process_class]])","v":"PTX-BusinessOpportunityAnalyzer-1.0.9,DEU,Hydrogen (AEL),MAR-BEN,COST-OPEX,Carbon"},"PTX-BusinessOpportunityAnalyzer-1.0.9",{"$f":"sel_country_code","v":"DEU"},"Hydrogen (AEL)",{"$f":"_calc!$B$870","v":"MAR-BEN"},{"$f":"_calc!$BO$827","v":"COST-OPEX"},{"$f":"_calc!$BU$1","v":"Carbon"},{"$f":"_calc!$BU$870","v":0}]
[{"$f":"_xlfn.TEXTJOIN(\",\",FALSE,output[[#This Row],[scenario]:[process_class]])","v":"PTX-BusinessOpportunityAnalyzer-1.0.9,DEU,Hydrogen (AEL),MAR-BEN,COST-OPEX,Derivate production"},"PTX-BusinessOpportunityAnalyzer-1.0.9",{"$f":"sel_country_code","v":"DEU"},"Hydrogen (AEL)",{"$f":"_calc!$B$870","v":"MAR-BEN"},{"$f":"_calc!$BO$827","v":"COST-OPEX"},{"$f":"_calc!$BV$1","v":"Derivate production"},{"$f":"_calc!$BV$870","v":0}]
[{"$f":"_xlfn.TEXTJOIN(\",\",FALSE,output[[#This Row],[scenario]:[process_class]])","v":"PTX-BusinessOpportunityAnalyzer-1.0.9,DEU,Hydrogen (AEL),MAR-BEN,COST-OPEX,Heat"},"PTX-BusinessOpportunityAnalyzer-1.0.9",{"$f":"sel_country_code","v":"DEU"},"Hydrogen (AEL)",{"$f":"_calc!$B$870","v":"MAR-BEN"},{"$f":"_calc!$BO$827","v":"COST-OPEX"},{"$f":"_calc!$BW$1","v":"Heat"},{"$f":"_calc!$BW$870","v":0}]
[{"$f":"_xlfn.TEXTJOIN(\",\",FALSE,output[[#This Row],[scenario]:[process_class]])","v":"PTX-BusinessOpportunityAnalyzer-1.0.9,DEU,Hydrogen (AEL),MAR-BEN,COST-OPEX,Electricity and H2 storage"},"PTX-BusinessOpportunityAnalyzer-1.0.9",{"$f":"sel_country_code","v":"DEU"},"Hydrogen (AEL)",{"$f":"_calc!$B$870","v":"MAR-BEN"},{"$f":"_calc!$BO$827","v":"COST-OPEX"},{"$f":"_calc!$BX$1","v":"Electricity and H2 storage"},{"$f":"_calc!$BX$870","v":4.2071133424831668}]
[{"$f":"_xlfn.TEXTJOIN(\",\",FALSE,output[[#This Row],[scenario]:[process_class]])","v":"PTX-BusinessOpportunityAnalyzer-1.0.9,DEU,Hydrogen (AEL),MAR-CAS,COST-OPEX,Water"},"PTX-BusinessOpportunityAnalyzer-1.0.9",{"$f":"sel_country_code","v":"DEU"},"Hydrogen (AEL)",{"$f":"_calc!$B$871","v":"MAR-CAS"},{"$f":"_calc!$BO$827","v":"COST-OPEX"},{"$f":"_calc!$BP$1","v":"Water"},{"$f":"_calc!$BP$871","v":3.5289205170639167E-2}]
[{"$f":"_xlfn.TEXTJOIN(\",\",FALSE,output[[#This Row],[scenario]:[process_class]])","v":"PTX-BusinessOpportunityAnalyzer-1.0.9,DEU,Hydrogen (AEL),MAR-CAS,COST-OPEX,Electrolysis"},"PTX-BusinessOpportunityAnalyzer-1.0.9",{"$f":"sel_country_code","v":"DEU"},"Hydrogen (AEL)",{"$f":"_calc!$B$871","v":"MAR-CAS"},{"$f":"_calc!$BO$827","v":"COST-OPEX"},{"$f":"_calc!$BQ$1","v":"Electrolysis"},{"$f":"_calc!$BQ$871","v":3.9798639033879124}]
[{"$f":"_xlfn.TEXTJOIN(\",\",FALSE,output[[#This Row],[scenario]:[process_class]])","v":"PTX-BusinessOpportunityAnalyzer-1.0.9,DEU,Hydrogen (AEL),MAR-CAS,COST-OPEX,Electricity generation"},"PTX-BusinessOpportunityAnalyzer-1.0.9",{"$f":"sel_country_code","v":"DEU"},"Hydrogen (AEL)",{"$f":"_calc!$B$871","v":"MAR-CAS"},{"$f":"_calc!$BO$827","v":"COST-OPEX"},{"$f":"_calc!$BR$1","v":"Electricity generation"},{"$f":"_calc!$BR$871","v":10.778062923443299}]
[{"$f":"_xlfn.TEXTJOIN(\",\",FALSE,output[[#This Row],[scenario]:[process_class]])","v":"PTX-BusinessOpportunityAnalyzer-1.0.9,DEU,Hydrogen (AEL),MAR-CAS,COST-OPEX,Transportation (Pipeline)"},"PTX-BusinessOpportunityAnalyzer-1.0.9",{"$f":"sel_country_code","v":"DEU"},"Hydrogen (AEL)",{"$f":"_calc!$B$871","v":"MAR-CAS"},{"$f":"_calc!$BO$827","v":"COST-OPEX"},{"$f":"_calc!$BS$1","v":"Transportation (Pipeline)"},{"$f":"_calc!$BS$871","v":0}]
[{"$f":"_xlfn.TEXTJOIN(\",\",FALSE,output[[#This Row],[scenario]:[process_class]])","v":"PTX-BusinessOpportunityAnalyzer-1.0.9,DEU,Hydrogen (AEL),MAR-CAS,COST-OPEX,Transportation (Ship)"},"PTX-BusinessOpportunityAnalyzer-1.0.9",{"$f":"sel_country_code","v":"DEU"},"Hydrogen (AEL)",{"$f":"_calc!$B$871","v":"MAR-CAS"},{"$f":"_calc!$BO$827","v":"COST-OPEX"},{"$f":"_calc!$BT$1","v":"Transportation (Ship)"},{"$f":"_calc!$BT$871","v":27.029769187906929}]
[{"$f":"_xlfn.TEXTJOIN(\",\",FALSE,output[[#This Row],[scenario]:[process_class]])","v":"PTX-BusinessOpportunityAnalyzer-1.0.9,DEU,Hydrogen (AEL),MAR-CAS,COST-OPEX,Carbon"},"PTX-BusinessOpportunityAnalyzer-1.0.9",{"$f":"sel_country_code","v":"DEU"},"Hydrogen (AEL)",{"$f":"_calc!$B$871","v":"MAR-CAS"},{"$f":"_calc!$BO$827","v":"COST-OPEX"},{"$f":"_calc!$BU$1","v":"Carbon"},{"$f":"_calc!$BU$871","v":0}]
[{"$f":"_xlfn.TEXTJOIN(\",\",FALSE,output[[#This Row],[scenario]:[process_class]])","v":"PTX-BusinessOpportunityAnalyzer-1.0.9,DEU,Hydrogen (AEL),MAR-CAS,COST-OPEX,Derivate production"},"PTX-BusinessOpportunityAnalyzer-1.0.9",{"$f":"sel_country_code","v":"DEU"},"Hydrogen (AEL)",{"$f":"_calc!$B$871","v":"MAR-CAS"},{"$f":"_calc!$BO$827","v":"COST-OPEX"},{"$f":"_calc!$BV$1","v":"Derivate production"},{"$f":"_calc!$BV$871","v":0}]
[{"$f":"_xlfn.TEXTJOIN(\",\",FALSE,output[[#This Row],[scenario]:[process_class]])","v":"PTX-BusinessOpportunityAnalyzer-1.0.9,DEU,Hydrogen (AEL),MAR-CAS,COST-OPEX,Heat"},"PTX-BusinessOpportunityAnalyzer-1.0.9",{"$f":"sel_country_code","v":"DEU"},"Hydrogen (AEL)",{"$f":"_calc!$B$871","v":"MAR-CAS"},{"$f":"_calc!$BO$827","v":"COST-OPEX"},{"$f":"_calc!$BW$1","v":"Heat"},{"$f":"_calc!$BW$871","v":0}]
[{"$f":"_xlfn.TEXTJOIN(\",\",FALSE,output[[#This Row],[scenario]:[process_class]])","v":"PTX-BusinessOpportunityAnalyzer-1.0.9,DEU,Hydrogen (AEL),MAR-CAS,COST-OPEX,Electricity and H2 storage"},"PTX-BusinessOpportunityAnalyzer-1.0.9",{"$f":"sel_country_code","v":"DEU"},"Hydrogen (AEL)",{"$f":"_calc!$B$871","v":"MAR-CAS"},{"$f":"_calc!$BO$827","v":"COST-OPEX"},{"$f":"_calc!$BX$1","v":"Electricity and H2 storage"},{"$f":"_calc!$BX$871","v":3.4031300411984327}]
[{"$f":"_xlfn.TEXTJOIN(\",\",FALSE,output[[#This Row],[scenario]:[process_class]])","v":"PTX-BusinessOpportunityAnalyzer-1.0.9,DEU,Hydrogen (AEL),MAR-DAK,COST-OPEX,Water"},"PTX-BusinessOpportunityAnalyzer-1.0.9",{"$f":"sel_country_code","v":"DEU"},"Hydrogen (AEL)",{"$f":"_calc!$B$872","v":"MAR-DAK"},{"$f":"_calc!$BO$827","v":"COST-OPEX"},{"$f":"_calc!$BP$1","v":"Water"},{"$f":"_calc!$BP$872","v":3.5289205170639167E-2}]
[{"$f":"_xlfn.TEXTJOIN(\",\",FALSE,output[[#This Row],[scenario]:[process_class]])","v":"PTX-BusinessOpportunityAnalyzer-1.0.9,DEU,Hydrogen (AEL),MAR-DAK,COST-OPEX,Electrolysis"},"PTX-BusinessOpportunityAnalyzer-1.0.9",{"$f":"sel_country_code","v":"DEU"},"Hydrogen (AEL)",{"$f":"_calc!$B$872","v":"MAR-DAK"},{"$f":"_calc!$BO$827","v":"COST-OPEX"},{"$f":"_calc!$BQ$1","v":"Electrolysis"},{"$f":"_calc!$BQ$872","v":2.4469118068549323}]
[{"$f":"_xlfn.TEXTJOIN(\",\",FALSE,output[[#This Row],[scenario]:[process_class]])","v":"PTX-BusinessOpportunityAnalyzer-1.0.9,DEU,Hydrogen (AEL),MAR-DAK,COST-OPEX,Electricity generation"},"PTX-BusinessOpportunityAnalyzer-1.0.9",{"$f":"sel_country_code","v":"DEU"},"Hydrogen (AEL)",{"$f":"_calc!$B$872","v":"MAR-DAK"},{"$f":"_calc!$BO$827","v":"COST-OPEX"},{"$f":"_calc!$BR$1","v":"Electricity generation"},{"$f":"_calc!$BR$872","v":6.9803309985802295}]
[{"$f":"_xlfn.TEXTJOIN(\",\",FALSE,output[[#This Row],[scenario]:[process_class]])","v":"PTX-BusinessOpportunityAnalyzer-1.0.9,DEU,Hydrogen (AEL),MAR-DAK,COST-OPEX,Transportation (Pipeline)"},"PTX-BusinessOpportunityAnalyzer-1.0.9",{"$f":"sel_country_code","v":"DEU"},"Hydrogen (AEL)",{"$f":"_calc!$B$872","v":"MAR-DAK"},{"$f":"_calc!$BO$827","v":"COST-OPEX"},{"$f":"_calc!$BS$1","v":"Transportation (Pipeline)"},{"$f":"_calc!$BS$872","v":0}]
[{"$f":"_xlfn.TEXTJOIN(\",\",FALSE,output[[#This Row],[scenario]:[process_class]])","v":"PTX-BusinessOpportunityAnalyzer-1.0.9,DEU,Hydrogen (AEL),MAR-DAK,COST-OPEX,Transportation (Ship)"},"PTX-BusinessOpportunityAnalyzer-1.0.9",{"$f":"sel_country_code","v":"DEU"},"Hydrogen (AEL)",{"$f":"_calc!$B$872","v":"MAR-DAK"},{"$f":"_calc!$BO$827","v":"COST-OPEX"},{"$f":"_calc!$BT$1","v":"Transportation (Ship)"},{"$f":"_calc!$BT$872","v":19.586882095708557}]
[{"$f":"_xlfn.TEXTJOIN(\",\",FALSE,output[[#This Row],[scenario]:[process_class]])","v":"PTX-BusinessOpportunityAnalyzer-1.0.9,DEU,Hydrogen (AEL),MAR-DAK,COST-OPEX,Carbon"},"PTX-BusinessOpportunityAnalyzer-1.0.9",{"$f":"sel_country_code","v":"DEU"},"Hydrogen (AEL)",{"$f":"_calc!$B$872","v":"MAR-DAK"},{"$f":"_calc!$BO$827","v":"COST-OPEX"},{"$f":"_calc!$BU$1","v":"Carbon"},{"$f":"_calc!$BU$872","v":0}]
[{"$f":"_xlfn.TEXTJOIN(\",\",FALSE,output[[#This Row],[scenario]:[process_class]])","v":"PTX-BusinessOpportunityAnalyzer-1.0.9,DEU,Hydrogen (AEL),MAR-DAK,COST-OPEX,Derivate production"},"PTX-BusinessOpportunityAnalyzer-1.0.9",{"$f":"sel_country_code","v":"DEU"},"Hydrogen (AEL)",{"$f":"_calc!$B$872","v":"MAR-DAK"},{"$f":"_calc!$BO$827","v":"COST-OPEX"},{"$f":"_calc!$BV$1","v":"Derivate production"},{"$f":"_calc!$BV$872","v":0}]
[{"$f":"_xlfn.TEXTJOIN(\",\",FALSE,output[[#This Row],[scenario]:[process_class]])","v":"PTX-BusinessOpportunityAnalyzer-1.0.9,DEU,Hydrogen (AEL),MAR-DAK,COST-OPEX,Heat"},"PTX-BusinessOpportunityAnalyzer-1.0.9",{"$f":"sel_country_code","v":"DEU"},"Hydrogen (AEL)",{"$f":"_calc!$B$872","v":"MAR-DAK"},{"$f":"_calc!$BO$827","v":"COST-OPEX"},{"$f":"_calc!$BW$1","v":"Heat"},{"$f":"_calc!$BW$872","v":0}]
[{"$f":"_xlfn.TEXTJOIN(\",\",FALSE,output[[#This Row],[scenario]:[process_class]])","v":"PTX-BusinessOpportunityAnalyzer-1.0.9,DEU,Hydrogen (AEL),MAR-DAK,COST-OPEX,Electricity and H2 storage"},"PTX-BusinessOpportunityAnalyzer-1.0.9",{"$f":"sel_country_code","v":"DEU"},"Hydrogen (AEL)",{"$f":"_calc!$B$872","v":"MAR-DAK"},{"$f":"_calc!$BO$827","v":"COST-OPEX"},{"$f":"_calc!$BX$1","v":"Electricity and H2 storage"},{"$f":"_calc!$BX$872","v":2.1766884552878971}]
[{"$f":"_xlfn.TEXTJOIN(\",\",FALSE,output[[#This Row],[scenario]:[process_class]])","v":"PTX-BusinessOpportunityAnalyzer-1.0.9,DEU,Hydrogen (AEL),MAR-DRA,COST-OPEX,Water"},"PTX-BusinessOpportunityAnalyzer-1.0.9",{"$f":"sel_country_code","v":"DEU"},"Hydrogen (AEL)",{"$f":"_calc!$B$873","v":"MAR-DRA"},{"$f":"_calc!$BO$827","v":"COST-OPEX"},{"$f":"_calc!$BP$1","v":"Water"},{"$f":"_calc!$BP$873","v":3.5289205170639167E-2}]
[{"$f":"_xlfn.TEXTJOIN(\",\",FALSE,output[[#This Row],[scenario]:[process_class]])","v":"PTX-BusinessOpportunityAnalyzer-1.0.9,DEU,Hydrogen (AEL),MAR-DRA,COST-OPEX,Electrolysis"},"PTX-BusinessOpportunityAnalyzer-1.0.9",{"$f":"sel_country_code","v":"DEU"},"Hydrogen (AEL)",{"$f":"_calc!$B$873","v":"MAR-DRA"},{"$f":"_calc!$BO$827","v":"COST-OPEX"},{"$f":"_calc!$BQ$1","v":"Electrolysis"},{"$f":"_calc!$BQ$873","v":3.6381022594807071}]
[{"$f":"_xlfn.TEXTJOIN(\",\",FALSE,output[[#This Row],[scenario]:[process_class]])","v":"PTX-BusinessOpportunityAnalyzer-1.0.9,DEU,Hydrogen (AEL),MAR-DRA,COST-OPEX,Electricity generation"},"PTX-BusinessOpportunityAnalyzer-1.0.9",{"$f":"sel_country_code","v":"DEU"},"Hydrogen (AEL)",{"$f":"_calc!$B$873","v":"MAR-DRA"},{"$f":"_calc!$BO$827","v":"COST-OPEX"},{"$f":"_calc!$BR$1","v":"Electricity generation"},{"$f":"_calc!$BR$873","v":9.9651045668559224}]
[{"$f":"_xlfn.TEXTJOIN(\",\",FALSE,output[[#This Row],[scenario]:[process_class]])","v":"PTX-BusinessOpportunityAnalyzer-1.0.9,DEU,Hydrogen (AEL),MAR-DRA,COST-OPEX,Transportation (Pipeline)"},"PTX-BusinessOpportunityAnalyzer-1.0.9",{"$f":"sel_country_code","v":"DEU"},"Hydrogen (AEL)",{"$f":"_calc!$B$873","v":"MAR-DRA"},{"$f":"_calc!$BO$827","v":"COST-OPEX"},{"$f":"_calc!$BS$1","v":"Transportation (Pipeline)"},{"$f":"_calc!$BS$873","v":0}]
[{"$f":"_xlfn.TEXTJOIN(\",\",FALSE,output[[#This Row],[scenario]:[process_class]])","v":"PTX-BusinessOpportunityAnalyzer-1.0.9,DEU,Hydrogen (AEL),MAR-DRA,COST-OPEX,Transportation (Ship)"},"PTX-BusinessOpportunityAnalyzer-1.0.9",{"$f":"sel_country_code","v":"DEU"},"Hydrogen (AEL)",{"$f":"_calc!$B$873","v":"MAR-DRA"},{"$f":"_calc!$BO$827","v":"COST-OPEX"},{"$f":"_calc!$BT$1","v":"Transportation (Ship)"},{"$f":"_calc!$BT$873","v":25.326572606242621}]
[{"$f":"_xlfn.TEXTJOIN(\",\",FALSE,output[[#This Row],[scenario]:[process_class]])","v":"PTX-BusinessOpportunityAnalyzer-1.0.9,DEU,Hydrogen (AEL),MAR-DRA,COST-OPEX,Carbon"},"PTX-BusinessOpportunityAnalyzer-1.0.9",{"$f":"sel_country_code","v":"DEU"},"Hydrogen (AEL)",{"$f":"_calc!$B$873","v":"MAR-DRA"},{"$f":"_calc!$BO$827","v":"COST-OPEX"},{"$f":"_calc!$BU$1","v":"Carbon"},{"$f":"_calc!$BU$873","v":0}]
[{"$f":"_xlfn.TEXTJOIN(\",\",FALSE,output[[#This Row],[scenario]:[process_class]])","v":"PTX-BusinessOpportunityAnalyzer-1.0.9,DEU,Hydrogen (AEL),MAR-DRA,COST-OPEX,Derivate production"},"PTX-BusinessOpportunityAnalyzer-1.0.9",{"$f":"sel_country_code","v":"DEU"},"Hydrogen (AEL)",{"$f":"_calc!$B$873","v":"MAR-DRA"},{"$f":"_calc!$BO$827","v":"COST-OPEX"},{"$f":"_calc!$BV$1","v":"Derivate production"},{"$f":"_calc!$BV$873","v":0}]
[{"$f":"_xlfn.TEXTJOIN(\",\",FALSE,output[[#This Row],[scenario]:[process_class]])","v":"PTX-BusinessOpportunityAnalyzer-1.0.9,DEU,Hydrogen (AEL),MAR-DRA,COST-OPEX,Heat"},"PTX-BusinessOpportunityAnalyzer-1.0.9",{"$f":"sel_country_code","v":"DEU"},"Hydrogen (AEL)",{"$f":"_calc!$B$873","v":"MAR-DRA"},{"$f":"_calc!$BO$827","v":"COST-OPEX"},{"$f":"_calc!$BW$1","v":"Heat"},{"$f":"_calc!$BW$873","v":0}]
[{"$f":"_xlfn.TEXTJOIN(\",\",FALSE,output[[#This Row],[scenario]:[process_class]])","v":"PTX-BusinessOpportunityAnalyzer-1.0.9,DEU,Hydrogen (AEL),MAR-DRA,COST-OPEX,Electricity and H2 storage"},"PTX-BusinessOpportunityAnalyzer-1.0.9",{"$f":"sel_country_code","v":"DEU"},"Hydrogen (AEL)",{"$f":"_calc!$B$873","v":"MAR-DRA"},{"$f":"_calc!$BO$827","v":"COST-OPEX"},{"$f":"_calc!$BX$1","v":"Electricity and H2 storage"},{"$f":"_calc!$BX$873","v":3.1374612033898273}]
[{"$f":"_xlfn.TEXTJOIN(\",\",FALSE,output[[#This Row],[scenario]:[process_class]])","v":"PTX-BusinessOpportunityAnalyzer-1.0.9,DEU,Hydrogen (AEL),MAR-FES,COST-OPEX,Water"},"PTX-BusinessOpportunityAnalyzer-1.0.9",{"$f":"sel_country_code","v":"DEU"},"Hydrogen (AEL)",{"$f":"_calc!$B$874","v":"MAR-FES"},{"$f":"_calc!$BO$827","v":"COST-OPEX"},{"$f":"_calc!$BP$1","v":"Water"},{"$f":"_calc!$BP$874","v":3.5289205170639167E-2}]
[{"$f":"_xlfn.TEXTJOIN(\",\",FALSE,output[[#This Row],[scenario]:[process_class]])","v":"PTX-BusinessOpportunityAnalyzer-1.0.9,DEU,Hydrogen (AEL),MAR-FES,COST-OPEX,Electrolysis"},"PTX-BusinessOpportunityAnalyzer-1.0.9",{"$f":"sel_country_code","v":"DEU"},"Hydrogen (AEL)",{"$f":"_calc!$B$874","v":"MAR-FES"},{"$f":"_calc!$BO$827","v":"COST-OPEX"},{"$f":"_calc!$BQ$1","v":"Electrolysis"},{"$f":"_calc!$BQ$874","v":4.5023434929159638}]
[{"$f":"_xlfn.TEXTJOIN(\",\",FALSE,output[[#This Row],[scenario]:[process_class]])","v":"PTX-BusinessOpportunityAnalyzer-1.0.9,DEU,Hydrogen (AEL),MAR-FES,COST-OPEX,Electricity generation"},"PTX-BusinessOpportunityAnalyzer-1.0.9",{"$f":"sel_country_code","v":"DEU"},"Hydrogen (AEL)",{"$f":"_calc!$B$874","v":"MAR-FES"},{"$f":"_calc!$BO$827","v":"COST-OPEX"},{"$f":"_calc!$BR$1","v":"Electricity generation"},{"$f":"_calc!$BR$874","v":11.985995940054162}]
[{"$f":"_xlfn.TEXTJOIN(\",\",FALSE,output[[#This Row],[scenario]:[process_class]])","v":"PTX-BusinessOpportunityAnalyzer-1.0.9,DEU,Hydrogen (AEL),MAR-FES,COST-OPEX,Transportation (Pipeline)"},"PTX-BusinessOpportunityAnalyzer-1.0.9",{"$f":"sel_country_code","v":"DEU"},"Hydrogen (AEL)",{"$f":"_calc!$B$874","v":"MAR-FES"},{"$f":"_calc!$BO$827","v":"COST-OPEX"},{"$f":"_calc!$BS$1","v":"Transportation (Pipeline)"},{"$f":"_calc!$BS$874","v":0}]
[{"$f":"_xlfn.TEXTJOIN(\",\",FALSE,output[[#This Row],[scenario]:[process_class]])","v":"PTX-BusinessOpportunityAnalyzer-1.0.9,DEU,Hydrogen (AEL),MAR-FES,COST-OPEX,Transportation (Ship)"},"PTX-BusinessOpportunityAnalyzer-1.0.9",{"$f":"sel_country_code","v":"DEU"},"Hydrogen (AEL)",{"$f":"_calc!$B$874","v":"MAR-FES"},{"$f":"_calc!$BO$827","v":"COST-OPEX"},{"$f":"_calc!$BT$1","v":"Transportation (Ship)"},{"$f":"_calc!$BT$874","v":29.320315969679083}]
[{"$f":"_xlfn.TEXTJOIN(\",\",FALSE,output[[#This Row],[scenario]:[process_class]])","v":"PTX-BusinessOpportunityAnalyzer-1.0.9,DEU,Hydrogen (AEL),MAR-FES,COST-OPEX,Carbon"},"PTX-BusinessOpportunityAnalyzer-1.0.9",{"$f":"sel_country_code","v":"DEU"},"Hydrogen (AEL)",{"$f":"_calc!$B$874","v":"MAR-FES"},{"$f":"_calc!$BO$827","v":"COST-OPEX"},{"$f":"_calc!$BU$1","v":"Carbon"},{"$f":"_calc!$BU$874","v":0}]
[{"$f":"_xlfn.TEXTJOIN(\",\",FALSE,output[[#This Row],[scenario]:[process_class]])","v":"PTX-BusinessOpportunityAnalyzer-1.0.9,DEU,Hydrogen (AEL),MAR-FES,COST-OPEX,Derivate production"},"PTX-BusinessOpportunityAnalyzer-1.0.9",{"$f":"sel_country_code","v":"DEU"},"Hydrogen (AEL)",{"$f":"_calc!$B$874","v":"MAR-FES"},{"$f":"_calc!$BO$827","v":"COST-OPEX"},{"$f":"_calc!$BV$1","v":"Derivate production"},{"$f":"_calc!$BV$874","v":0}]
[{"$f":"_xlfn.TEXTJOIN(\",\",FALSE,output[[#This Row],[scenario]:[process_class]])","v":"PTX-BusinessOpportunityAnalyzer-1.0.9,DEU,Hydrogen (AEL),MAR-FES,COST-OPEX,Heat"},"PTX-BusinessOpportunityAnalyzer-1.0.9",{"$f":"sel_country_code","v":"DEU"},"Hydrogen (AEL)",{"$f":"_calc!$B$874","v":"MAR-FES"},{"$f":"_calc!$BO$827","v":"COST-OPEX"},{"$f":"_calc!$BW$1","v":"Heat"},{"$f":"_calc!$BW$874","v":0}]
[{"$f":"_xlfn.TEXTJOIN(\",\",FALSE,output[[#This Row],[scenario]:[process_class]])","v":"PTX-BusinessOpportunityAnalyzer-1.0.9,DEU,Hydrogen (AEL),MAR-FES,COST-OPEX,Electricity and H2 storage"},"PTX-BusinessOpportunityAnalyzer-1.0.9",{"$f":"sel_country_code","v":"DEU"},"Hydrogen (AEL)",{"$f":"_calc!$B$874","v":"MAR-FES"},{"$f":"_calc!$BO$827","v":"COST-OPEX"},{"$f":"_calc!$BX$1","v":"Electricity and H2 storage"},{"$f":"_calc!$BX$874","v":3.8012496769589492}]
[{"$f":"_xlfn.TEXTJOIN(\",\",FALSE,output[[#This Row],[scenario]:[process_class]])","v":"PTX-BusinessOpportunityAnalyzer-1.0.9,DEU,Hydrogen (AEL),MAR-GUE,COST-OPEX,Water"},"PTX-BusinessOpportunityAnalyzer-1.0.9",{"$f":"sel_country_code","v":"DEU"},"Hydrogen (AEL)",{"$f":"_calc!$B$875","v":"MAR-GUE"},{"$f":"_calc!$BO$827","v":"COST-OPEX"},{"$f":"_calc!$BP$1","v":"Water"},{"$f":"_calc!$BP$875","v":3.5289205170639167E-2}]
[{"$f":"_xlfn.TEXTJOIN(\",\",FALSE,output[[#This Row],[scenario]:[process_class]])","v":"PTX-BusinessOpportunityAnalyzer-1.0.9,DEU,Hydrogen (AEL),MAR-GUE,COST-OPEX,Electrolysis"},"PTX-BusinessOpportunityAnalyzer-1.0.9",{"$f":"sel_country_code","v":"DEU"},"Hydrogen (AEL)",{"$f":"_calc!$B$875","v":"MAR-GUE"},{"$f":"_calc!$BO$827","v":"COST-OPEX"},{"$f":"_calc!$BQ$1","v":"Electrolysis"},{"$f":"_calc!$BQ$875","v":3.172538898567971}]
[{"$f":"_xlfn.TEXTJOIN(\",\",FALSE,output[[#This Row],[scenario]:[process_class]])","v":"PTX-BusinessOpportunityAnalyzer-1.0.9,DEU,Hydrogen (AEL),MAR-GUE,COST-OPEX,Electricity generation"},"PTX-BusinessOpportunityAnalyzer-1.0.9",{"$f":"sel_country_code","v":"DEU"},"Hydrogen (AEL)",{"$f":"_calc!$B$875","v":"MAR-GUE"},{"$f":"_calc!$BO$827","v":"COST-OPEX"},{"$f":"_calc!$BR$1","v":"Electricity generation"},{"$f":"_calc!$BR$875","v":8.8272894662034425}]
[{"$f":"_xlfn.TEXTJOIN(\",\",FALSE,output[[#This Row],[scenario]:[process_class]])","v":"PTX-BusinessOpportunityAnalyzer-1.0.9,DEU,Hydrogen (AEL),MAR-GUE,COST-OPEX,Transportation (Pipeline)"},"PTX-BusinessOpportunityAnalyzer-1.0.9",{"$f":"sel_country_code","v":"DEU"},"Hydrogen (AEL)",{"$f":"_calc!$B$875","v":"MAR-GUE"},{"$f":"_calc!$BO$827","v":"COST-OPEX"},{"$f":"_calc!$BS$1","v":"Transportation (Pipeline)"},{"$f":"_calc!$BS$875","v":0}]
[{"$f":"_xlfn.TEXTJOIN(\",\",FALSE,output[[#This Row],[scenario]:[process_class]])","v":"PTX-BusinessOpportunityAnalyzer-1.0.9,DEU,Hydrogen (AEL),MAR-GUE,COST-OPEX,Transportation (Ship)"},"PTX-BusinessOpportunityAnalyzer-1.0.9",{"$f":"sel_country_code","v":"DEU"},"Hydrogen (AEL)",{"$f":"_calc!$B$875","v":"MAR-GUE"},{"$f":"_calc!$BO$827","v":"COST-OPEX"},{"$f":"_calc!$BT$1","v":"Transportation (Ship)"},{"$f":"_calc!$BT$875","v":23.047533523681405}]
[{"$f":"_xlfn.TEXTJOIN(\",\",FALSE,output[[#This Row],[scenario]:[process_class]])","v":"PTX-BusinessOpportunityAnalyzer-1.0.9,DEU,Hydrogen (AEL),MAR-GUE,COST-OPEX,Carbon"},"PTX-BusinessOpportunityAnalyzer-1.0.9",{"$f":"sel_country_code","v":"DEU"},"Hydrogen (AEL)",{"$f":"_calc!$B$875","v":"MAR-GUE"},{"$f":"_calc!$BO$827","v":"COST-OPEX"},{"$f":"_calc!$BU$1","v":"Carbon"},{"$f":"_calc!$BU$875","v":0}]
[{"$f":"_xlfn.TEXTJOIN(\",\",FALSE,output[[#This Row],[scenario]:[process_class]])","v":"PTX-BusinessOpportunityAnalyzer-1.0.9,DEU,Hydrogen (AEL),MAR-GUE,COST-OPEX,Derivate production"},"PTX-BusinessOpportunityAnalyzer-1.0.9",{"$f":"sel_country_code","v":"DEU"},"Hydrogen (AEL)",{"$f":"_calc!$B$875","v":"MAR-GUE"},{"$f":"_calc!$BO$827","v":"COST-OPEX"},{"$f":"_calc!$BV$1","v":"Derivate production"},{"$f":"_calc!$BV$875","v":0}]
[{"$f":"_xlfn.TEXTJOIN(\",\",FALSE,output[[#This Row],[scenario]:[process_class]])","v":"PTX-BusinessOpportunityAnalyzer-1.0.9,DEU,Hydrogen (AEL),MAR-GUE,COST-OPEX,Heat"},"PTX-BusinessOpportunityAnalyzer-1.0.9",{"$f":"sel_country_code","v":"DEU"},"Hydrogen (AEL)",{"$f":"_calc!$B$875","v":"MAR-GUE"},{"$f":"_calc!$BO$827","v":"COST-OPEX"},{"$f":"_calc!$BW$1","v":"Heat"},{"$f":"_calc!$BW$875","v":0}]
[{"$f":"_xlfn.TEXTJOIN(\",\",FALSE,output[[#This Row],[scenario]:[process_class]])","v":"PTX-BusinessOpportunityAnalyzer-1.0.9,DEU,Hydrogen (AEL),MAR-GUE,COST-OPEX,Electricity and H2 storage"},"PTX-BusinessOpportunityAnalyzer-1.0.9",{"$f":"sel_country_code","v":"DEU"},"Hydrogen (AEL)",{"$f":"_calc!$B$875","v":"MAR-GUE"},{"$f":"_calc!$BO$827","v":"COST-OPEX"},{"$f":"_calc!$BX$1","v":"Electricity and H2 storage"},{"$f":"_calc!$BX$875","v":2.7685685781049685}]
[{"$f":"_xlfn.TEXTJOIN(\",\",FALSE,output[[#This Row],[scenario]:[process_class]])","v":"PTX-BusinessOpportunityAnalyzer-1.0.9,DEU,Hydrogen (AEL),MAR-LAA,COST-OPEX,Water"},"PTX-BusinessOpportunityAnalyzer-1.0.9",{"$f":"sel_country_code","v":"DEU"},"Hydrogen (AEL)",{"$f":"_calc!$B$876","v":"MAR-LAA"},{"$f":"_calc!$BO$827","v":"COST-OPEX"},{"$f":"_calc!$BP$1","v":"Water"},{"$f":"_calc!$BP$876","v":3.5289205170639167E-2}]
[{"$f":"_xlfn.TEXTJOIN(\",\",FALSE,output[[#This Row],[scenario]:[process_class]])","v":"PTX-BusinessOpportunityAnalyzer-1.0.9,DEU,Hydrogen (AEL),MAR-LAA,COST-OPEX,Electrolysis"},"PTX-BusinessOpportunityAnalyzer-1.0.9",{"$f":"sel_country_code","v":"DEU"},"Hydrogen (AEL)",{"$f":"_calc!$B$876","v":"MAR-LAA"},{"$f":"_calc!$BO$827","v":"COST-OPEX"},{"$f":"_calc!$BQ$1","v":"Electrolysis"},{"$f":"_calc!$BQ$876","v":2.6872782092308385}]
[{"$f":"_xlfn.TEXTJOIN(\",\",FALSE,output[[#This Row],[scenario]:[process_class]])","v":"PTX-BusinessOpportunityAnalyzer-1.0.9,DEU,Hydrogen (AEL),MAR-LAA,COST-OPEX,Electricity generation"},"PTX-BusinessOpportunityAnalyzer-1.0.9",{"$f":"sel_country_code","v":"DEU"},"Hydrogen (AEL)",{"$f":"_calc!$B$876","v":"MAR-LAA"},{"$f":"_calc!$BO$827","v":"COST-OPEX"},{"$f":"_calc!$BR$1","v":"Electricity generation"},{"$f":"_calc!$BR$876","v":7.6023945660453318}]
[{"$f":"_xlfn.TEXTJOIN(\",\",FALSE,output[[#This Row],[scenario]:[process_class]])","v":"PTX-BusinessOpportunityAnalyzer-1.0.9,DEU,Hydrogen (AEL),MAR-LAA,COST-OPEX,Transportation (Pipeline)"},"PTX-BusinessOpportunityAnalyzer-1.0.9",{"$f":"sel_country_code","v":"DEU"},"Hydrogen (AEL)",{"$f":"_calc!$B$876","v":"MAR-LAA"},{"$f":"_calc!$BO$827","v":"COST-OPEX"},{"$f":"_calc!$BS$1","v":"Transportation (Pipeline)"},{"$f":"_calc!$BS$876","v":0}]
[{"$f":"_xlfn.TEXTJOIN(\",\",FALSE,output[[#This Row],[scenario]:[process_class]])","v":"PTX-BusinessOpportunityAnalyzer-1.0.9,DEU,Hydrogen (AEL),MAR-LAA,COST-OPEX,Transportation (Ship)"},"PTX-BusinessOpportunityAnalyzer-1.0.9",{"$f":"sel_country_code","v":"DEU"},"Hydrogen (AEL)",{"$f":"_calc!$B$876","v":"MAR-LAA"},{"$f":"_calc!$BO$827","v":"COST-OPEX"},{"$f":"_calc!$BT$1","v":"Transportation (Ship)"},{"$f":"_calc!$BT$876","v":20.721147570132331}]
[{"$f":"_xlfn.TEXTJOIN(\",\",FALSE,output[[#This Row],[scenario]:[process_class]])","v":"PTX-BusinessOpportunityAnalyzer-1.0.9,DEU,Hydrogen (AEL),MAR-LAA,COST-OPEX,Carbon"},"PTX-BusinessOpportunityAnalyzer-1.0.9",{"$f":"sel_country_code","v":"DEU"},"Hydrogen (AEL)",{"$f":"_calc!$B$876","v":"MAR-LAA"},{"$f":"_calc!$BO$827","v":"COST-OPEX"},{"$f":"_calc!$BU$1","v":"Carbon"},{"$f":"_calc!$BU$876","v":0}]
[{"$f":"_xlfn.TEXTJOIN(\",\",FALSE,output[[#This Row],[scenario]:[process_class]])","v":"PTX-BusinessOpportunityAnalyzer-1.0.9,DEU,Hydrogen (AEL),MAR-LAA,COST-OPEX,Derivate production"},"PTX-BusinessOpportunityAnalyzer-1.0.9",{"$f":"sel_country_code","v":"DEU"},"Hydrogen (AEL)",{"$f":"_calc!$B$876","v":"MAR-LAA"},{"$f":"_calc!$BO$827","v":"COST-OPEX"},{"$f":"_calc!$BV$1","v":"Derivate production"},{"$f":"_calc!$BV$876","v":0}]
[{"$f":"_xlfn.TEXTJOIN(\",\",FALSE,output[[#This Row],[scenario]:[process_class]])","v":"PTX-BusinessOpportunityAnalyzer-1.0.9,DEU,Hydrogen (AEL),MAR-LAA,COST-OPEX,Heat"},"PTX-BusinessOpportunityAnalyzer-1.0.9",{"$f":"sel_country_code","v":"DEU"},"Hydrogen (AEL)",{"$f":"_calc!$B$876","v":"MAR-LAA"},{"$f":"_calc!$BO$827","v":"COST-OPEX"},{"$f":"_calc!$BW$1","v":"Heat"},{"$f":"_calc!$BW$876","v":0}]
[{"$f":"_xlfn.TEXTJOIN(\",\",FALSE,output[[#This Row],[scenario]:[process_class]])","v":"PTX-BusinessOpportunityAnalyzer-1.0.9,DEU,Hydrogen (AEL),MAR-LAA,COST-OPEX,Electricity and H2 storage"},"PTX-BusinessOpportunityAnalyzer-1.0.9",{"$f":"sel_country_code","v":"DEU"},"Hydrogen (AEL)",{"$f":"_calc!$B$876","v":"MAR-LAA"},{"$f":"_calc!$BO$827","v":"COST-OPEX"},{"$f":"_calc!$BX$1","v":"Electricity and H2 storage"},{"$f":"_calc!$BX$876","v":2.3751095163943434}]
[{"$f":"_xlfn.TEXTJOIN(\",\",FALSE,output[[#This Row],[scenario]:[process_class]])","v":"PTX-BusinessOpportunityAnalyzer-1.0.9,DEU,Hydrogen (AEL),MAR-LOR,COST-OPEX,Water"},{"$f":"output_scenario_name","v":"PTX-BusinessOpportunityAnalyzer-1.0.9"},{"$f":"sel_country_code","v":"DEU"},{"$f":"sel_chain","v":"Hydrogen (AEL)"},{"$f":"_calc!$B$877","v":"MAR-LOR"},{"$f":"_calc!$BO$827","v":"COST-OPEX"},{"$f":"_calc!$BP$1","v":"Water"},{"$f":"_calc!$BP$877","v":3.5289205170639167E-2}]
[{"$f":"_xlfn.TEXTJOIN(\",\",FALSE,output[[#This Row],[scenario]:[process_class]])","v":"PTX-BusinessOpportunityAnalyzer-1.0.9,DEU,Hydrogen (AEL),MAR-LOR,COST-OPEX,Electrolysis"},"PTX-BusinessOpportunityAnalyzer-1.0.9",{"$f":"sel_country_code","v":"DEU"},"Hydrogen (AEL)",{"$f":"_calc!$B$877","v":"MAR-LOR"},{"$f":"_calc!$BO$827","v":"COST-OPEX"},{"$f":"_calc!$BQ$1","v":"Electrolysis"},{"$f":"_calc!$BQ$877","v":3.3284030682913581}]
[{"$f":"_xlfn.TEXTJOIN(\",\",FALSE,output[[#This Row],[scenario]:[process_class]])","v":"PTX-BusinessOpportunityAnalyzer-1.0.9,DEU,Hydrogen (AEL),MAR-LOR,COST-OPEX,Electricity generation"},"PTX-BusinessOpportunityAnalyzer-1.0.9",{"$f":"sel_country_code","v":"DEU"},"Hydrogen (AEL)",{"$f":"_calc!$B$877","v":"MAR-LOR"},{"$f":"_calc!$BO$827","v":"COST-OPEX"},{"$f":"_calc!$BR$1","v":"Electricity generation"},{"$f":"_calc!$BR$877","v":9.2121998877098488}]
[{"$f":"_xlfn.TEXTJOIN(\",\",FALSE,output[[#This Row],[scenario]:[process_class]])","v":"PTX-BusinessOpportunityAnalyzer-1.0.9,DEU,Hydrogen (AEL),MAR-LOR,COST-OPEX,Transportation (Pipeline)"},"PTX-BusinessOpportunityAnalyzer-1.0.9",{"$f":"sel_country_code","v":"DEU"},"Hydrogen (AEL)",{"$f":"_calc!$B$877","v":"MAR-LOR"},{"$f":"_calc!$BO$827","v":"COST-OPEX"},{"$f":"_calc!$BS$1","v":"Transportation (Pipeline)"},{"$f":"_calc!$BS$877","v":0}]
[{"$f":"_xlfn.TEXTJOIN(\",\",FALSE,output[[#This Row],[scenario]:[process_class]])","v":"PTX-BusinessOpportunityAnalyzer-1.0.9,DEU,Hydrogen (AEL),MAR-LOR,COST-OPEX,Transportation (Ship)"},"PTX-BusinessOpportunityAnalyzer-1.0.9",{"$f":"sel_country_code","v":"DEU"},"Hydrogen (AEL)",{"$f":"_calc!$B$877","v":"MAR-LOR"},{"$f":"_calc!$BO$827","v":"COST-OPEX"},{"$f":"_calc!$BT$1","v":"Transportation (Ship)"},{"$f":"_calc!$BT$877","v":23.805317438813479}]
[{"$f":"_xlfn.TEXTJOIN(\",\",FALSE,output[[#This Row],[scenario]:[process_class]])","v":"PTX-BusinessOpportunityAnalyzer-1.0.9,DEU,Hydrogen (AEL),MAR-LOR,COST-OPEX,Carbon"},"PTX-BusinessOpportunityAnalyzer-1.0.9",{"$f":"sel_country_code","v":"DEU"},"Hydrogen (AEL)",{"$f":"_calc!$B$877","v":"MAR-LOR"},{"$f":"_calc!$BO$827","v":"COST-OPEX"},{"$f":"_calc!$BU$1","v":"Carbon"},{"$f":"_calc!$BU$877","v":0}]
[{"$f":"_xlfn.TEXTJOIN(\",\",FALSE,output[[#This Row],[scenario]:[process_class]])","v":"PTX-BusinessOpportunityAnalyzer-1.0.9,DEU,Hydrogen (AEL),MAR-LOR,COST-OPEX,Derivate production"},"PTX-BusinessOpportunityAnalyzer-1.0.9",{"$f":"sel_country_code","v":"DEU"},"Hydrogen (AEL)",{"$f":"_calc!$B$877","v":"MAR-LOR"},{"$f":"_calc!$BO$827","v":"COST-OPEX"},{"$f":"_calc!$BV$1","v":"Derivate production"},{"$f":"_calc!$BV$877","v":0}]
[{"$f":"_xlfn.TEXTJOIN(\",\",FALSE,output[[#This Row],[scenario]:[process_class]])","v":"PTX-BusinessOpportunityAnalyzer-1.0.9,DEU,Hydrogen (AEL),MAR-LOR,COST-OPEX,Heat"},"PTX-BusinessOpportunityAnalyzer-1.0.9",{"$f":"sel_country_code","v":"DEU"},"Hydrogen (AEL)",{"$f":"_calc!$B$877","v":"MAR-LOR"},{"$f":"_calc!$BO$827","v":"COST-OPEX"},{"$f":"_calc!$BW$1","v":"Heat"},{"$f":"_calc!$BW$877","v":0}]
[{"$f":"_xlfn.TEXTJOIN(\",\",FALSE,output[[#This Row],[scenario]:[process_class]])","v":"PTX-BusinessOpportunityAnalyzer-1.0.9,DEU,Hydrogen (AEL),MAR-LOR,COST-OPEX,Electricity and H2 storage"},"PTX-BusinessOpportunityAnalyzer-1.0.9",{"$f":"sel_country_code","v":"DEU"},"Hydrogen (AEL)",{"$f":"_calc!$B$877","v":"MAR-LOR"},{"$f":"_calc!$BO$827","v":"COST-OPEX"},{"$f":"_calc!$BX$1","v":"Electricity and H2 storage"},{"$f":"_calc!$BX$877","v":2.8929857156854286}]
[{"$f":"_xlfn.TEXTJOIN(\",\",FALSE,output[[#This Row],[scenario]:[process_class]])","v":"PTX-BusinessOpportunityAnalyzer-1.0.9,DEU,Hydrogen (AEL),MAR-MAR,COST-OPEX,Water"},"PTX-BusinessOpportunityAnalyzer-1.0.9",{"$f":"sel_country_code","v":"DEU"},"Hydrogen (AEL)",{"$f":"_calc!$B$878","v":"MAR-MAR"},{"$f":"_calc!$BO$827","v":"COST-OPEX"},{"$f":"_calc!$BP$1","v":"Water"},{"$f":"_calc!$BP$878","v":3.5289205170639167E-2}]
[{"$f":"_xlfn.TEXTJOIN(\",\",FALSE,output[[#This Row],[scenario]:[process_class]])","v":"PTX-BusinessOpportunityAnalyzer-1.0.9,DEU,Hydrogen (AEL),MAR-MAR,COST-OPEX,Electrolysis"},"PTX-BusinessOpportunityAnalyzer-1.0.9",{"$f":"sel_country_code","v":"DEU"},"Hydrogen (AEL)",{"$f":"_calc!$B$878","v":"MAR-MAR"},{"$f":"_calc!$BO$827","v":"COST-OPEX"},{"$f":"_calc!$BQ$1","v":"Electrolysis"},{"$f":"_calc!$BQ$878","v":4.6790560082582839}]
[{"$f":"_xlfn.TEXTJOIN(\",\",FALSE,output[[#This Row],[scenario]:[process_class]])","v":"PTX-BusinessOpportunityAnalyzer-1.0.9,DEU,Hydrogen (AEL),MAR-MAR,COST-OPEX,Electricity generation"},"PTX-BusinessOpportunityAnalyzer-1.0.9",{"$f":"sel_country_code","v":"DEU"},"Hydrogen (AEL)",{"$f":"_calc!$B$878","v":"MAR-MAR"},{"$f":"_calc!$BO$827","v":"COST-OPEX"},{"$f":"_calc!$BR$1","v":"Electricity generation"},{"$f":"_calc!$BR$878","v":12.385312254609634}]
[{"$f":"_xlfn.TEXTJOIN(\",\",FALSE,output[[#This Row],[scenario]:[process_class]])","v":"PTX-BusinessOpportunityAnalyzer-1.0.9,DEU,Hydrogen (AEL),MAR-MAR,COST-OPEX,Transportation (Pipeline)"},"PTX-BusinessOpportunityAnalyzer-1.0.9",{"$f":"sel_country_code","v":"DEU"},"Hydrogen (AEL)",{"$f":"_calc!$B$878","v":"MAR-MAR"},{"$f":"_calc!$BO$827","v":"COST-OPEX"},{"$f":"_calc!$BS$1","v":"Transportation (Pipeline)"},{"$f":"_calc!$BS$878","v":0}]
[{"$f":"_xlfn.TEXTJOIN(\",\",FALSE,output[[#This Row],[scenario]:[process_class]])","v":"PTX-BusinessOpportunityAnalyzer-1.0.9,DEU,Hydrogen (AEL),MAR-MAR,COST-OPEX,Transportation (Ship)"},"PTX-BusinessOpportunityAnalyzer-1.0.9",{"$f":"sel_country_code","v":"DEU"},"Hydrogen (AEL)",{"$f":"_calc!$B$878","v":"MAR-MAR"},{"$f":"_calc!$BO$827","v":"COST-OPEX"},{"$f":"_calc!$BT$1","v":"Transportation (Ship)"},{"$f":"_calc!$BT$878","v":30.008047716461068}]
[{"$f":"_xlfn.TEXTJOIN(\",\",FALSE,output[[#This Row],[scenario]:[process_class]])","v":"PTX-BusinessOpportunityAnalyzer-1.0.9,DEU,Hydrogen (AEL),MAR-MAR,COST-OPEX,Carbon"},"PTX-BusinessOpportunityAnalyzer-1.0.9",{"$f":"sel_country_code","v":"DEU"},"Hydrogen (AEL)",{"$f":"_calc!$B$878","v":"MAR-MAR"},{"$f":"_calc!$BO$827","v":"COST-OPEX"},{"$f":"_calc!$BU$1","v":"Carbon"},{"$f":"_calc!$BU$878","v":0}]
[{"$f":"_xlfn.TEXTJOIN(\",\",FALSE,output[[#This Row],[scenario]:[process_class]])","v":"PTX-BusinessOpportunityAnalyzer-1.0.9,DEU,Hydrogen (AEL),MAR-MAR,COST-OPEX,Derivate production"},"PTX-BusinessOpportunityAnalyzer-1.0.9",{"$f":"sel_country_code","v":"DEU"},"Hydrogen (AEL)",{"$f":"_calc!$B$878","v":"MAR-MAR"},{"$f":"_calc!$BO$827","v":"COST-OPEX"},{"$f":"_calc!$BV$1","v":"Derivate production"},{"$f":"_calc!$BV$878","v":0}]
[{"$f":"_xlfn.TEXTJOIN(\",\",FALSE,output[[#This Row],[scenario]:[process_class]])","v":"PTX-BusinessOpportunityAnalyzer-1.0.9,DEU,Hydrogen (AEL),MAR-MAR,COST-OPEX,Heat"},"PTX-BusinessOpportunityAnalyzer-1.0.9",{"$f":"sel_country_code","v":"DEU"},"Hydrogen (AEL)",{"$f":"_calc!$B$878","v":"MAR-MAR"},{"$f":"_calc!$BO$827","v":"COST-OPEX"},{"$f":"_calc!$BW$1","v":"Heat"},{"$f":"_calc!$BW$878","v":0}]
[{"$f":"_xlfn.TEXTJOIN(\",\",FALSE,output[[#This Row],[scenario]:[process_class]])","v":"PTX-BusinessOpportunityAnalyzer-1.0.9,DEU,Hydrogen (AEL),MAR-MAR,COST-OPEX,Electricity and H2 storage"},"PTX-BusinessOpportunityAnalyzer-1.0.9",{"$f":"sel_country_code","v":"DEU"},"Hydrogen (AEL)",{"$f":"_calc!$B$878","v":"MAR-MAR"},{"$f":"_calc!$BO$827","v":"COST-OPEX"},{"$f":"_calc!$BX$1","v":"Electricity and H2 storage"},{"$f":"_calc!$BX$878","v":3.9337778307257931}]
[{"$f":"_xlfn.TEXTJOIN(\",\",FALSE,output[[#This Row],[scenario]:[process_class]])","v":"PTX-BusinessOpportunityAnalyzer-1.0.9,DEU,Hydrogen (AEL),MAR-RAB,COST-OPEX,Water"},"PTX-BusinessOpportunityAnalyzer-1.0.9",{"$f":"sel_country_code","v":"DEU"},"Hydrogen (AEL)",{"$f":"_calc!$B$879","v":"MAR-RAB"},{"$f":"_calc!$BO$827","v":"COST-OPEX"},{"$f":"_calc!$BP$1","v":"Water"},{"$f":"_calc!$BP$879","v":3.5289205170639167E-2}]
[{"$f":"_xlfn.TEXTJOIN(\",\",FALSE,output[[#This Row],[scenario]:[process_class]])","v":"PTX-BusinessOpportunityAnalyzer-1.0.9,DEU,Hydrogen (AEL),MAR-RAB,COST-OPEX,Electrolysis"},"PTX-BusinessOpportunityAnalyzer-1.0.9",{"$f":"sel_country_code","v":"DEU"},"Hydrogen (AEL)",{"$f":"_calc!$B$879","v":"MAR-RAB"},{"$f":"_calc!$BO$827","v":"COST-OPEX"},{"$f":"_calc!$BQ$1","v":"Electrolysis"},{"$f":"_calc!$BQ$879","v":4.8835939216884343}]
[{"$f":"_xlfn.TEXTJOIN(\",\",FALSE,output[[#This Row],[scenario]:[process_class]])","v":"PTX-BusinessOpportunityAnalyzer-1.0.9,DEU,Hydrogen (AEL),MAR-RAB,COST-OPEX,Electricity generation"},"PTX-BusinessOpportunityAnalyzer-1.0.9",{"$f":"sel_country_code","v":"DEU"},"Hydrogen (AEL)",{"$f":"_calc!$B$879","v":"MAR-RAB"},{"$f":"_calc!$BO$827","v":"COST-OPEX"},{"$f":"_calc!$BR$1","v":"Electricity generation"},{"$f":"_calc!$BR$879","v":12.841849372335608}]
[{"$f":"_xlfn.TEXTJOIN(\",\",FALSE,output[[#This Row],[scenario]:[process_class]])","v":"PTX-BusinessOpportunityAnalyzer-1.0.9,DEU,Hydrogen (AEL),MAR-RAB,COST-OPEX,Transportation (Pipeline)"},"PTX-BusinessOpportunityAnalyzer-1.0.9",{"$f":"sel_country_code","v":"DEU"},"Hydrogen (AEL)",{"$f":"_calc!$B$879","v":"MAR-RAB"},{"$f":"_calc!$BO$827","v":"COST-OPEX"},{"$f":"_calc!$BS$1","v":"Transportation (Pipeline)"},{"$f":"_calc!$BS$879","v":0}]
[{"$f":"_xlfn.TEXTJOIN(\",\",FALSE,output[[#This Row],[scenario]:[process_class]])","v":"PTX-BusinessOpportunityAnalyzer-1.0.9,DEU,Hydrogen (AEL),MAR-RAB,COST-OPEX,Transportation (Ship)"},"PTX-BusinessOpportunityAnalyzer-1.0.9",{"$f":"sel_country_code","v":"DEU"},"Hydrogen (AEL)",{"$f":"_calc!$B$879","v":"MAR-RAB"},{"$f":"_calc!$BO$827","v":"COST-OPEX"},{"$f":"_calc!$BT$1","v":"Transportation (Ship)"},{"$f":"_calc!$BT$879","v":30.794329313279917}]
[{"$f":"_xlfn.TEXTJOIN(\",\",FALSE,output[[#This Row],[scenario]:[process_class]])","v":"PTX-BusinessOpportunityAnalyzer-1.0.9,DEU,Hydrogen (AEL),MAR-RAB,COST-OPEX,Carbon"},"PTX-BusinessOpportunityAnalyzer-1.0.9",{"$f":"sel_country_code","v":"DEU"},"Hydrogen (AEL)",{"$f":"_calc!$B$879","v":"MAR-RAB"},{"$f":"_calc!$BO$827","v":"COST-OPEX"},{"$f":"_calc!$BU$1","v":"Carbon"},{"$f":"_calc!$BU$879","v":0}]
[{"$f":"_xlfn.TEXTJOIN(\",\",FALSE,output[[#This Row],[scenario]:[process_class]])","v":"PTX-BusinessOpportunityAnalyzer-1.0.9,DEU,Hydrogen (AEL),MAR-RAB,COST-OPEX,Derivate production"},"PTX-BusinessOpportunityAnalyzer-1.0.9",{"$f":"sel_country_code","v":"DEU"},"Hydrogen (AEL)",{"$f":"_calc!$B$879","v":"MAR-RAB"},{"$f":"_calc!$BO$827","v":"COST-OPEX"},{"$f":"_calc!$BV$1","v":"Derivate production"},{"$f":"_calc!$BV$879","v":0}]
[{"$f":"_xlfn.TEXTJOIN(\",\",FALSE,output[[#This Row],[scenario]:[process_class]])","v":"PTX-BusinessOpportunityAnalyzer-1.0.9,DEU,Hydrogen (AEL),MAR-RAB,COST-OPEX,Heat"},"PTX-BusinessOpportunityAnalyzer-1.0.9",{"$f":"sel_country_code","v":"DEU"},"Hydrogen (AEL)",{"$f":"_calc!$B$879","v":"MAR-RAB"},{"$f":"_calc!$BO$827","v":"COST-OPEX"},{"$f":"_calc!$BW$1","v":"Heat"},{"$f":"_calc!$BW$879","v":0}]
[{"$f":"_xlfn.TEXTJOIN(\",\",FALSE,output[[#This Row],[scenario]:[process_class]])","v":"PTX-BusinessOpportunityAnalyzer-1.0.9,DEU,Hydrogen (AEL),MAR-RAB,COST-OPEX,Electricity and H2 storage"},"PTX-BusinessOpportunityAnalyzer-1.0.9",{"$f":"sel_country_code","v":"DEU"},"Hydrogen (AEL)",{"$f":"_calc!$B$879","v":"MAR-RAB"},{"$f":"_calc!$BO$827","v":"COST-OPEX"},{"$f":"_calc!$BX$1","v":"Electricity and H2 storage"},{"$f":"_calc!$BX$879","v":4.0858727413156419}]
[{"$f":"_xlfn.TEXTJOIN(\",\",FALSE,output[[#This Row],[scenario]:[process_class]])","v":"PTX-BusinessOpportunityAnalyzer-1.0.9,DEU,Hydrogen (AEL),MAR-SOU,COST-OPEX,Water"},"PTX-BusinessOpportunityAnalyzer-1.0.9",{"$f":"sel_country_code","v":"DEU"},"Hydrogen (AEL)",{"$f":"_calc!$B$880","v":"MAR-SOU"},{"$f":"_calc!$BO$827","v":"COST-OPEX"},{"$f":"_calc!$BP$1","v":"Water"},{"$f":"_calc!$BP$880","v":3.5289205170639167E-2}]
[{"$f":"_xlfn.TEXTJOIN(\",\",FALSE,output[[#This Row],[scenario]:[process_class]])","v":"PTX-BusinessOpportunityAnalyzer-1.0.9,DEU,Hydrogen (AEL),MAR-SOU,COST-OPEX,Electrolysis"},"PTX-BusinessOpportunityAnalyzer-1.0.9",{"$f":"sel_country_code","v":"DEU"},"Hydrogen (AEL)",{"$f":"_calc!$B$880","v":"MAR-SOU"},{"$f":"_calc!$BO$827","v":"COST-OPEX"},{"$f":"_calc!$BQ$1","v":"Electrolysis"},{"$f":"_calc!$BQ$880","v":3.6041916185129699}]
[{"$f":"_xlfn.TEXTJOIN(\",\",FALSE,output[[#This Row],[scenario]:[process_class]])","v":"PTX-BusinessOpportunityAnalyzer-1.0.9,DEU,Hydrogen (AEL),MAR-SOU,COST-OPEX,Electricity generation"},"PTX-BusinessOpportunityAnalyzer-1.0.9",{"$f":"sel_country_code","v":"DEU"},"Hydrogen (AEL)",{"$f":"_calc!$B$880","v":"MAR-SOU"},{"$f":"_calc!$BO$827","v":"COST-OPEX"},{"$f":"_calc!$BR$1","v":"Electricity generation"},{"$f":"_calc!$BR$880","v":9.8834259965877607}]
[{"$f":"_xlfn.TEXTJOIN(\",\",FALSE,output[[#This Row],[scenario]:[process_class]])","v":"PTX-BusinessOpportunityAnalyzer-1.0.9,DEU,Hydrogen (AEL),MAR-SOU,COST-OPEX,Transportation (Pipeline)"},"PTX-BusinessOpportunityAnalyzer-1.0.9",{"$f":"sel_country_code","v":"DEU"},"Hydrogen (AEL)",{"$f":"_calc!$B$880","v":"MAR-SOU"},{"$f":"_calc!$BO$827","v":"COST-OPEX"},{"$f":"_calc!$BS$1","v":"Transportation (Pipeline)"},{"$f":"_calc!$BS$880","v":0}]
[{"$f":"_xlfn.TEXTJOIN(\",\",FALSE,output[[#This Row],[scenario]:[process_class]])","v":"PTX-BusinessOpportunityAnalyzer-1.0.9,DEU,Hydrogen (AEL),MAR-SOU,COST-OPEX,Transportation (Ship)"},"PTX-BusinessOpportunityAnalyzer-1.0.9",{"$f":"sel_country_code","v":"DEU"},"Hydrogen (AEL)",{"$f":"_calc!$B$880","v":"MAR-SOU"},{"$f":"_calc!$BO$827","v":"COST-OPEX"},{"$f":"_calc!$BT$1","v":"Transportation (Ship)"},{"$f":"_calc!$BT$880","v":25.158983703104482}]
[{"$f":"_xlfn.TEXTJOIN(\",\",FALSE,output[[#This Row],[scenario]:[process_class]])","v":"PTX-BusinessOpportunityAnalyzer-1.0.9,DEU,Hydrogen (AEL),MAR-SOU,COST-OPEX,Carbon"},"PTX-BusinessOpportunityAnalyzer-1.0.9",{"$f":"sel_country_code","v":"DEU"},"Hydrogen (AEL)",{"$f":"_calc!$B$880","v":"MAR-SOU"},{"$f":"_calc!$BO$827","v":"COST-OPEX"},{"$f":"_calc!$BU$1","v":"Carbon"},{"$f":"_calc!$BU$880","v":0}]
[{"$f":"_xlfn.TEXTJOIN(\",\",FALSE,output[[#This Row],[scenario]:[process_class]])","v":"PTX-BusinessOpportunityAnalyzer-1.0.9,DEU,Hydrogen (AEL),MAR-SOU,COST-OPEX,Derivate production"},"PTX-BusinessOpportunityAnalyzer-1.0.9",{"$f":"sel_country_code","v":"DEU"},"Hydrogen (AEL)",{"$f":"_calc!$B$880","v":"MAR-SOU"},{"$f":"_calc!$BO$827","v":"COST-OPEX"},{"$f":"_calc!$BV$1","v":"Derivate production"},{"$f":"_calc!$BV$880","v":0}]
[{"$f":"_xlfn.TEXTJOIN(\",\",FALSE,output[[#This Row],[scenario]:[process_class]])","v":"PTX-BusinessOpportunityAnalyzer-1.0.9,DEU,Hydrogen (AEL),MAR-SOU,COST-OPEX,Heat"},"PTX-BusinessOpportunityAnalyzer-1.0.9",{"$f":"sel_country_code","v":"DEU"},"Hydrogen (AEL)",{"$f":"_calc!$B$880","v":"MAR-SOU"},{"$f":"_calc!$BO$827","v":"COST-OPEX"},{"$f":"_calc!$BW$1","v":"Heat"},{"$f":"_calc!$BW$880","v":0}]
[{"$f":"_xlfn.TEXTJOIN(\",\",FALSE,output[[#This Row],[scenario]:[process_class]])","v":"PTX-BusinessOpportunityAnalyzer-1.0.9,DEU,Hydrogen (AEL),MAR-SOU,COST-OPEX,Electricity and H2 storage"},"PTX-BusinessOpportunityAnalyzer-1.0.9",{"$f":"sel_country_code","v":"DEU"},"Hydrogen (AEL)",{"$f":"_calc!$B$880","v":"MAR-SOU"},{"$f":"_calc!$BO$827","v":"COST-OPEX"},{"$f":"_calc!$BX$1","v":"Electricity and H2 storage"},{"$f":"_calc!$BX$880","v":3.1108673525869479}]
[{"$f":"_xlfn.TEXTJOIN(\",\",FALSE,output[[#This Row],[scenario]:[process_class]])","v":"PTX-BusinessOpportunityAnalyzer-1.0.9,DEU,Hydrogen (AEL),MAR-TAN,COST-OPEX,Water"},"PTX-BusinessOpportunityAnalyzer-1.0.9",{"$f":"sel_country_code","v":"DEU"},"Hydrogen (AEL)",{"$f":"_calc!$B$881","v":"MAR-TAN"},{"$f":"_calc!$BO$827","v":"COST-OPEX"},{"$f":"_calc!$BP$1","v":"Water"},{"$f":"_calc!$BP$881","v":3.5289205170639167E-2}]
[{"$f":"_xlfn.TEXTJOIN(\",\",FALSE,output[[#This Row],[scenario]:[process_class]])","v":"PTX-BusinessOpportunityAnalyzer-1.0.9,DEU,Hydrogen (AEL),MAR-TAN,COST-OPEX,Electrolysis"},"PTX-BusinessOpportunityAnalyzer-1.0.9",{"$f":"sel_country_code","v":"DEU"},"Hydrogen (AEL)",{"$f":"_calc!$B$881","v":"MAR-TAN"},{"$f":"_calc!$BO$827","v":"COST-OPEX"},{"$f":"_calc!$BQ$1","v":"Electrolysis"},{"$f":"_calc!$BQ$881","v":3.5822852479503844}]
[{"$f":"_xlfn.TEXTJOIN(\",\",FALSE,output[[#This Row],[scenario]:[process_class]])","v":"PTX-BusinessOpportunityAnalyzer-1.0.9,DEU,Hydrogen (AEL),MAR-TAN,COST-OPEX,Electricity generation"},"PTX-BusinessOpportunityAnalyzer-1.0.9",{"$f":"sel_country_code","v":"DEU"},"Hydrogen (AEL)",{"$f":"_calc!$B$881","v":"MAR-TAN"},{"$f":"_calc!$BO$827","v":"COST-OPEX"},{"$f":"_calc!$BR$1","v":"Electricity generation"},{"$f":"_calc!$BR$881","v":9.8305627520247363}]
[{"$f":"_xlfn.TEXTJOIN(\",\",FALSE,output[[#This Row],[scenario]:[process_class]])","v":"PTX-BusinessOpportunityAnalyzer-1.0.9,DEU,Hydrogen (AEL),MAR-TAN,COST-OPEX,Transportation (Pipeline)"},"PTX-BusinessOpportunityAnalyzer-1.0.9",{"$f":"sel_country_code","v":"DEU"},"Hydrogen (AEL)",{"$f":"_calc!$B$881","v":"MAR-TAN"},{"$f":"_calc!$BO$827","v":"COST-OPEX"},{"$f":"_calc!$BS$1","v":"Transportation (Pipeline)"},{"$f":"_calc!$BS$881","v":0}]
[{"$f":"_xlfn.TEXTJOIN(\",\",FALSE,output[[#This Row],[scenario]:[process_class]])","v":"PTX-BusinessOpportunityAnalyzer-1.0.9,DEU,Hydrogen (AEL),MAR-TAN,COST-OPEX,Transportation (Ship)"},"PTX-BusinessOpportunityAnalyzer-1.0.9",{"$f":"sel_country_code","v":"DEU"},"Hydrogen (AEL)",{"$f":"_calc!$B$881","v":"MAR-TAN"},{"$f":"_calc!$BO$827","v":"COST-OPEX"},{"$f":"_calc!$BT$1","v":"Transportation (Ship)"},{"$f":"_calc!$BT$881","v":25.050854699688067}]
[{"$f":"_xlfn.TEXTJOIN(\",\",FALSE,output[[#This Row],[scenario]:[process_class]])","v":"PTX-BusinessOpportunityAnalyzer-1.0.9,DEU,Hydrogen (AEL),MAR-TAN,COST-OPEX,Carbon"},"PTX-BusinessOpportunityAnalyzer-1.0.9",{"$f":"sel_country_code","v":"DEU"},"Hydrogen (AEL)",{"$f":"_calc!$B$881","v":"MAR-TAN"},{"$f":"_calc!$BO$827","v":"COST-OPEX"},{"$f":"_calc!$BU$1","v":"Carbon"},{"$f":"_calc!$BU$881","v":0}]
[{"$f":"_xlfn.TEXTJOIN(\",\",FALSE,output[[#This Row],[scenario]:[process_class]])","v":"PTX-BusinessOpportunityAnalyzer-1.0.9,DEU,Hydrogen (AEL),MAR-TAN,COST-OPEX,Derivate production"},"PTX-BusinessOpportunityAnalyzer-1.0.9",{"$f":"sel_country_code","v":"DEU"},"Hydrogen (AEL)",{"$f":"_calc!$B$881","v":"MAR-TAN"},{"$f":"_calc!$BO$827","v":"COST-OPEX"},{"$f":"_calc!$BV$1","v":"Derivate production"},{"$f":"_calc!$BV$881","v":0}]
[{"$f":"_xlfn.TEXTJOIN(\",\",FALSE,output[[#This Row],[scenario]:[process_class]])","v":"PTX-BusinessOpportunityAnalyzer-1.0.9,DEU,Hydrogen (AEL),MAR-TAN,COST-OPEX,Heat"},"PTX-BusinessOpportunityAnalyzer-1.0.9",{"$f":"sel_country_code","v":"DEU"},"Hydrogen (AEL)",{"$f":"_calc!$B$881","v":"MAR-TAN"},{"$f":"_calc!$BO$827","v":"COST-OPEX"},{"$f":"_calc!$BW$1","v":"Heat"},{"$f":"_calc!$BW$881","v":0}]
[{"$f":"_xlfn.TEXTJOIN(\",\",FALSE,output[[#This Row],[scenario]:[process_class]])","v":"PTX-BusinessOpportunityAnalyzer-1.0.9,DEU,Hydrogen (AEL),MAR-TAN,COST-OPEX,Electricity and H2 storage"},"PTX-BusinessOpportunityAnalyzer-1.0.9",{"$f":"sel_country_code","v":"DEU"},"Hydrogen (AEL)",{"$f":"_calc!$B$881","v":"MAR-TAN"},{"$f":"_calc!$BO$827","v":"COST-OPEX"},{"$f":"_calc!$BX$1","v":"Electricity and H2 storage"},{"$f":"_calc!$BX$881","v":3.0936649513595418}]
[{"$f":"_xlfn.TEXTJOIN(\",\",FALSE,output[[#This Row],[scenario]:[process_class]])","v":"PTX-BusinessOpportunityAnalyzer-1.0.9,DEU,Hydrogen (AEL),MEX,COST-OPEX,Water"},"PTX-BusinessOpportunityAnalyzer-1.0.9",{"$f":"sel_country_code","v":"DEU"},"Hydrogen (AEL)",{"$f":"_calc!$B$882","v":"MEX"},{"$f":"_calc!$BO$827","v":"COST-OPEX"},{"$f":"_calc!$BP$1","v":"Water"},{"$f":"_calc!$BP$882","v":3.8026180258151875E-2}]
[{"$f":"_xlfn.TEXTJOIN(\",\",FALSE,output[[#This Row],[scenario]:[process_class]])","v":"PTX-BusinessOpportunityAnalyzer-1.0.9,DEU,Hydrogen (AEL),MEX,COST-OPEX,Electrolysis"},"PTX-BusinessOpportunityAnalyzer-1.0.9",{"$f":"sel_country_code","v":"DEU"},"Hydrogen (AEL)",{"$f":"_calc!$B$882","v":"MEX"},{"$f":"_calc!$BO$827","v":"COST-OPEX"},{"$f":"_calc!$BQ$1","v":"Electrolysis"},{"$f":"_calc!$BQ$882","v":4.3459992483500711}]
[{"$f":"_xlfn.TEXTJOIN(\",\",FALSE,output[[#This Row],[scenario]:[process_class]])","v":"PTX-BusinessOpportunityAnalyzer-1.0.9,DEU,Hydrogen (AEL),MEX,COST-OPEX,Electricity generation"},"PTX-BusinessOpportunityAnalyzer-1.0.9",{"$f":"sel_country_code","v":"DEU"},"Hydrogen (AEL)",{"$f":"_calc!$B$882","v":"MEX"},{"$f":"_calc!$BO$827","v":"COST-OPEX"},{"$f":"_calc!$BR$1","v":"Electricity generation"},{"$f":"_calc!$BR$882","v":9.7485607610161331}]
[{"$f":"_xlfn.TEXTJOIN(\",\",FALSE,output[[#This Row],[scenario]:[process_class]])","v":"PTX-BusinessOpportunityAnalyzer-1.0.9,DEU,Hydrogen (AEL),MEX,COST-OPEX,Transportation (Pipeline)"},"PTX-BusinessOpportunityAnalyzer-1.0.9",{"$f":"sel_country_code","v":"DEU"},"Hydrogen (AEL)",{"$f":"_calc!$B$882","v":"MEX"},{"$f":"_calc!$BO$827","v":"COST-OPEX"},{"$f":"_calc!$BS$1","v":"Transportation (Pipeline)"},{"$f":"_calc!$BS$882","v":0}]
[{"$f":"_xlfn.TEXTJOIN(\",\",FALSE,output[[#This Row],[scenario]:[process_class]])","v":"PTX-BusinessOpportunityAnalyzer-1.0.9,DEU,Hydrogen (AEL),MEX,COST-OPEX,Transportation (Ship)"},"PTX-BusinessOpportunityAnalyzer-1.0.9",{"$f":"sel_country_code","v":"DEU"},"Hydrogen (AEL)",{"$f":"_calc!$B$882","v":"MEX"},{"$f":"_calc!$BO$827","v":"COST-OPEX"},{"$f":"_calc!$BT$1","v":"Transportation (Ship)"},{"$f":"_calc!$BT$882","v":42.437921826027825}]
[{"$f":"_xlfn.TEXTJOIN(\",\",FALSE,output[[#This Row],[scenario]:[process_class]])","v":"PTX-BusinessOpportunityAnalyzer-1.0.9,DEU,Hydrogen (AEL),MEX,COST-OPEX,Carbon"},"PTX-BusinessOpportunityAnalyzer-1.0.9",{"$f":"sel_country_code","v":"DEU"},"Hydrogen (AEL)",{"$f":"_calc!$B$882","v":"MEX"},{"$f":"_calc!$BO$827","v":"COST-OPEX"},{"$f":"_calc!$BU$1","v":"Carbon"},{"$f":"_calc!$BU$882","v":0}]
[{"$f":"_xlfn.TEXTJOIN(\",\",FALSE,output[[#This Row],[scenario]:[process_class]])","v":"PTX-BusinessOpportunityAnalyzer-1.0.9,DEU,Hydrogen (AEL),MEX,COST-OPEX,Derivate production"},"PTX-BusinessOpportunityAnalyzer-1.0.9",{"$f":"sel_country_code","v":"DEU"},"Hydrogen (AEL)",{"$f":"_calc!$B$882","v":"MEX"},{"$f":"_calc!$BO$827","v":"COST-OPEX"},{"$f":"_calc!$BV$1","v":"Derivate production"},{"$f":"_calc!$BV$882","v":0}]
[{"$f":"_xlfn.TEXTJOIN(\",\",FALSE,output[[#This Row],[scenario]:[process_class]])","v":"PTX-BusinessOpportunityAnalyzer-1.0.9,DEU,Hydrogen (AEL),MEX,COST-OPEX,Heat"},"PTX-BusinessOpportunityAnalyzer-1.0.9",{"$f":"sel_country_code","v":"DEU"},"Hydrogen (AEL)",{"$f":"_calc!$B$882","v":"MEX"},{"$f":"_calc!$BO$827","v":"COST-OPEX"},{"$f":"_calc!$BW$1","v":"Heat"},{"$f":"_calc!$BW$882","v":0}]
[{"$f":"_xlfn.TEXTJOIN(\",\",FALSE,output[[#This Row],[scenario]:[process_class]])","v":"PTX-BusinessOpportunityAnalyzer-1.0.9,DEU,Hydrogen (AEL),MEX,COST-OPEX,Electricity and H2 storage"},"PTX-BusinessOpportunityAnalyzer-1.0.9",{"$f":"sel_country_code","v":"DEU"},"Hydrogen (AEL)",{"$f":"_calc!$B$882","v":"MEX"},{"$f":"_calc!$BO$827","v":"COST-OPEX"},{"$f":"_calc!$BX$1","v":"Electricity and H2 storage"},{"$f":"_calc!$BX$882","v":2.9911040164380545}]
[{"$f":"_xlfn.TEXTJOIN(\",\",FALSE,output[[#This Row],[scenario]:[process_class]])","v":"PTX-BusinessOpportunityAnalyzer-1.0.9,DEU,Hydrogen (AEL),MRT,COST-OPEX,Water"},"PTX-BusinessOpportunityAnalyzer-1.0.9",{"$f":"sel_country_code","v":"DEU"},"Hydrogen (AEL)",{"$f":"_calc!$B$883","v":"MRT"},{"$f":"_calc!$BO$827","v":"COST-OPEX"},{"$f":"_calc!$BP$1","v":"Water"},{"$f":"_calc!$BP$883","v":3.1463740561217354E-2}]
[{"$f":"_xlfn.TEXTJOIN(\",\",FALSE,output[[#This Row],[scenario]:[process_class]])","v":"PTX-BusinessOpportunityAnalyzer-1.0.9,DEU,Hydrogen (AEL),MRT,COST-OPEX,Electrolysis"},"PTX-BusinessOpportunityAnalyzer-1.0.9",{"$f":"sel_country_code","v":"DEU"},"Hydrogen (AEL)",{"$f":"_calc!$B$883","v":"MRT"},{"$f":"_calc!$BO$827","v":"COST-OPEX"},{"$f":"_calc!$BQ$1","v":"Electrolysis"},{"$f":"_calc!$BQ$883","v":2.2764831405393497}]
[{"$f":"_xlfn.TEXTJOIN(\",\",FALSE,output[[#This Row],[scenario]:[process_class]])","v":"PTX-BusinessOpportunityAnalyzer-1.0.9,DEU,Hydrogen (AEL),MRT,COST-OPEX,Electricity generation"},"PTX-BusinessOpportunityAnalyzer-1.0.9",{"$f":"sel_country_code","v":"DEU"},"Hydrogen (AEL)",{"$f":"_calc!$B$883","v":"MRT"},{"$f":"_calc!$BO$827","v":"COST-OPEX"},{"$f":"_calc!$BR$1","v":"Electricity generation"},{"$f":"_calc!$BR$883","v":6.70968969863761}]
[{"$f":"_xlfn.TEXTJOIN(\",\",FALSE,output[[#This Row],[scenario]:[process_class]])","v":"PTX-BusinessOpportunityAnalyzer-1.0.9,DEU,Hydrogen (AEL),MRT,COST-OPEX,Transportation (Pipeline)"},"PTX-BusinessOpportunityAnalyzer-1.0.9",{"$f":"sel_country_code","v":"DEU"},"Hydrogen (AEL)",{"$f":"_calc!$B$883","v":"MRT"},{"$f":"_calc!$BO$827","v":"COST-OPEX"},{"$f":"_calc!$BS$1","v":"Transportation (Pipeline)"},{"$f":"_calc!$BS$883","v":45.971093941512862}]
[{"$f":"_xlfn.TEXTJOIN(\",\",FALSE,output[[#This Row],[scenario]:[process_class]])","v":"PTX-BusinessOpportunityAnalyzer-1.0.9,DEU,Hydrogen (AEL),MRT,COST-OPEX,Transportation (Ship)"},"PTX-BusinessOpportunityAnalyzer-1.0.9",{"$f":"sel_country_code","v":"DEU"},"Hydrogen (AEL)",{"$f":"_calc!$B$883","v":"MRT"},{"$f":"_calc!$BO$827","v":"COST-OPEX"},{"$f":"_calc!$BT$1","v":"Transportation (Ship)"},{"$f":"_calc!$BT$883","v":0}]
[{"$f":"_xlfn.TEXTJOIN(\",\",FALSE,output[[#This Row],[scenario]:[process_class]])","v":"PTX-BusinessOpportunityAnalyzer-1.0.9,DEU,Hydrogen (AEL),MRT,COST-OPEX,Carbon"},"PTX-BusinessOpportunityAnalyzer-1.0.9",{"$f":"sel_country_code","v":"DEU"},"Hydrogen (AEL)",{"$f":"_calc!$B$883","v":"MRT"},{"$f":"_calc!$BO$827","v":"COST-OPEX"},{"$f":"_calc!$BU$1","v":"Carbon"},{"$f":"_calc!$BU$883","v":0}]
[{"$f":"_xlfn.TEXTJOIN(\",\",FALSE,output[[#This Row],[scenario]:[process_class]])","v":"PTX-BusinessOpportunityAnalyzer-1.0.9,DEU,Hydrogen (AEL),MRT,COST-OPEX,Derivate production"},"PTX-BusinessOpportunityAnalyzer-1.0.9",{"$f":"sel_country_code","v":"DEU"},"Hydrogen (AEL)",{"$f":"_calc!$B$883","v":"MRT"},{"$f":"_calc!$BO$827","v":"COST-OPEX"},{"$f":"_calc!$BV$1","v":"Derivate production"},{"$f":"_calc!$BV$883","v":0}]
[{"$f":"_xlfn.TEXTJOIN(\",\",FALSE,output[[#This Row],[scenario]:[process_class]])","v":"PTX-BusinessOpportunityAnalyzer-1.0.9,DEU,Hydrogen (AEL),MRT,COST-OPEX,Heat"},"PTX-BusinessOpportunityAnalyzer-1.0.9",{"$f":"sel_country_code","v":"DEU"},"Hydrogen (AEL)",{"$f":"_calc!$B$883","v":"MRT"},{"$f":"_calc!$BO$827","v":"COST-OPEX"},{"$f":"_calc!$BW$1","v":"Heat"},{"$f":"_calc!$BW$883","v":0}]
[{"$f":"_xlfn.TEXTJOIN(\",\",FALSE,output[[#This Row],[scenario]:[process_class]])","v":"PTX-BusinessOpportunityAnalyzer-1.0.9,DEU,Hydrogen (AEL),MRT,COST-OPEX,Electricity and H2 storage"},"PTX-BusinessOpportunityAnalyzer-1.0.9",{"$f":"sel_country_code","v":"DEU"},"Hydrogen (AEL)",{"$f":"_calc!$B$883","v":"MRT"},{"$f":"_calc!$BO$827","v":"COST-OPEX"},{"$f":"_calc!$BX$1","v":"Electricity and H2 storage"},{"$f":"_calc!$BX$883","v":2.2693809488765537}]
[{"$f":"_xlfn.TEXTJOIN(\",\",FALSE,output[[#This Row],[scenario]:[process_class]])","v":"PTX-BusinessOpportunityAnalyzer-1.0.9,DEU,Hydrogen (AEL),NAM,COST-OPEX,Water"},"PTX-BusinessOpportunityAnalyzer-1.0.9",{"$f":"sel_country_code","v":"DEU"},"Hydrogen (AEL)",{"$f":"_calc!$B$884","v":"NAM"},{"$f":"_calc!$BO$827","v":"COST-OPEX"},{"$f":"_calc!$BP$1","v":"Water"},{"$f":"_calc!$BP$884","v":3.8208753676648818E-2}]
[{"$f":"_xlfn.TEXTJOIN(\",\",FALSE,output[[#This Row],[scenario]:[process_class]])","v":"PTX-BusinessOpportunityAnalyzer-1.0.9,DEU,Hydrogen (AEL),NAM,COST-OPEX,Electrolysis"},{"$f":"output_scenario_name","v":"PTX-BusinessOpportunityAnalyzer-1.0.9"},{"$f":"sel_country_code","v":"DEU"},{"$f":"sel_chain","v":"Hydrogen (AEL)"},{"$f":"_calc!$B$884","v":"NAM"},{"$f":"_calc!$BO$827","v":"COST-OPEX"},{"$f":"_calc!$BQ$1","v":"Electrolysis"},{"$f":"_calc!$BQ$884","v":2.468809891961897}]
[{"$f":"_xlfn.TEXTJOIN(\",\",FALSE,output[[#This Row],[scenario]:[process_class]])","v":"PTX-BusinessOpportunityAnalyzer-1.0.9,DEU,Hydrogen (AEL),NAM,COST-OPEX,Electricity generation"},"PTX-BusinessOpportunityAnalyzer-1.0.9",{"$f":"sel_country_code","v":"DEU"},"Hydrogen (AEL)",{"$f":"_calc!$B$884","v":"NAM"},{"$f":"_calc!$BO$827","v":"COST-OPEX"},{"$f":"_calc!$BR$1","v":"Electricity generation"},{"$f":"_calc!$BR$884","v":7.4837729376528568}]
[{"$f":"_xlfn.TEXTJOIN(\",\",FALSE,output[[#This Row],[scenario]:[process_class]])","v":"PTX-BusinessOpportunityAnalyzer-1.0.9,DEU,Hydrogen (AEL),NAM,COST-OPEX,Transportation (Pipeline)"},"PTX-BusinessOpportunityAnalyzer-1.0.9",{"$f":"sel_country_code","v":"DEU"},"Hydrogen (AEL)",{"$f":"_calc!$B$884","v":"NAM"},{"$f":"_calc!$BO$827","v":"COST-OPEX"},{"$f":"_calc!$BS$1","v":"Transportation (Pipeline)"},{"$f":"_calc!$BS$884","v":0}]
[{"$f":"_xlfn.TEXTJOIN(\",\",FALSE,output[[#This Row],[scenario]:[process_class]])","v":"PTX-BusinessOpportunityAnalyzer-1.0.9,DEU,Hydrogen (AEL),NAM,COST-OPEX,Transportation (Ship)"},"PTX-BusinessOpportunityAnalyzer-1.0.9",{"$f":"sel_country_code","v":"DEU"},"Hydrogen (AEL)",{"$f":"_calc!$B$884","v":"NAM"},{"$f":"_calc!$BO$827","v":"COST-OPEX"},{"$f":"_calc!$BT$1","v":"Transportation (Ship)"},{"$f":"_calc!$BT$884","v":34.330950689919419}]
[{"$f":"_xlfn.TEXTJOIN(\",\",FALSE,output[[#This Row],[scenario]:[process_class]])","v":"PTX-BusinessOpportunityAnalyzer-1.0.9,DEU,Hydrogen (AEL),NAM,COST-OPEX,Carbon"},"PTX-BusinessOpportunityAnalyzer-1.0.9",{"$f":"sel_country_code","v":"DEU"},"Hydrogen (AEL)",{"$f":"_calc!$B$884","v":"NAM"},{"$f":"_calc!$BO$827","v":"COST-OPEX"},{"$f":"_calc!$BU$1","v":"Carbon"},{"$f":"_calc!$BU$884","v":0}]
[{"$f":"_xlfn.TEXTJOIN(\",\",FALSE,output[[#This Row],[scenario]:[process_class]])","v":"PTX-BusinessOpportunityAnalyzer-1.0.9,DEU,Hydrogen (AEL),NAM,COST-OPEX,Derivate production"},"PTX-BusinessOpportunityAnalyzer-1.0.9",{"$f":"sel_country_code","v":"DEU"},"Hydrogen (AEL)",{"$f":"_calc!$B$884","v":"NAM"},{"$f":"_calc!$BO$827","v":"COST-OPEX"},{"$f":"_calc!$BV$1","v":"Derivate production"},{"$f":"_calc!$BV$884","v":0}]
[{"$f":"_xlfn.TEXTJOIN(\",\",FALSE,output[[#This Row],[scenario]:[process_class]])","v":"PTX-BusinessOpportunityAnalyzer-1.0.9,DEU,Hydrogen (AEL),NAM,COST-OPEX,Heat"},"PTX-BusinessOpportunityAnalyzer-1.0.9",{"$f":"sel_country_code","v":"DEU"},"Hydrogen (AEL)",{"$f":"_calc!$B$884","v":"NAM"},{"$f":"_calc!$BO$827","v":"COST-OPEX"},{"$f":"_calc!$BW$1","v":"Heat"},{"$f":"_calc!$BW$884","v":0}]
[{"$f":"_xlfn.TEXTJOIN(\",\",FALSE,output[[#This Row],[scenario]:[process_class]])","v":"PTX-BusinessOpportunityAnalyzer-1.0.9,DEU,Hydrogen (AEL),NAM,COST-OPEX,Electricity and H2 storage"},"PTX-BusinessOpportunityAnalyzer-1.0.9",{"$f":"sel_country_code","v":"DEU"},"Hydrogen (AEL)",{"$f":"_calc!$B$884","v":"NAM"},{"$f":"_calc!$BO$827","v":"COST-OPEX"},{"$f":"_calc!$BX$1","v":"Electricity and H2 storage"},{"$f":"_calc!$BX$884","v":2.3952267597254986}]
[{"$f":"_xlfn.TEXTJOIN(\",\",FALSE,output[[#This Row],[scenario]:[process_class]])","v":"PTX-BusinessOpportunityAnalyzer-1.0.9,DEU,Hydrogen (AEL),NOR,COST-OPEX,Water"},"PTX-BusinessOpportunityAnalyzer-1.0.9",{"$f":"sel_country_code","v":"DEU"},"Hydrogen (AEL)",{"$f":"_calc!$B$885","v":"NOR"},{"$f":"_calc!$BO$827","v":"COST-OPEX"},{"$f":"_calc!$BP$1","v":"Water"},{"$f":"_calc!$BP$885","v":2.9055331738213629E-2}]
[{"$f":"_xlfn.TEXTJOIN(\",\",FALSE,output[[#This Row],[scenario]:[process_class]])","v":"PTX-BusinessOpportunityAnalyzer-1.0.9,DEU,Hydrogen (AEL),NOR,COST-OPEX,Electrolysis"},"PTX-BusinessOpportunityAnalyzer-1.0.9",{"$f":"sel_country_code","v":"DEU"},"Hydrogen (AEL)",{"$f":"_calc!$B$885","v":"NOR"},{"$f":"_calc!$BO$827","v":"COST-OPEX"},{"$f":"_calc!$BQ$1","v":"Electrolysis"},{"$f":"_calc!$BQ$885","v":2.647127483418124}]
[{"$f":"_xlfn.TEXTJOIN(\",\",FALSE,output[[#This Row],[scenario]:[process_class]])","v":"PTX-BusinessOpportunityAnalyzer-1.0.9,DEU,Hydrogen (AEL),NOR,COST-OPEX,Electricity generation"},"PTX-BusinessOpportunityAnalyzer-1.0.9",{"$f":"sel_country_code","v":"DEU"},"Hydrogen (AEL)",{"$f":"_calc!$B$885","v":"NOR"},{"$f":"_calc!$BO$827","v":"COST-OPEX"},{"$f":"_calc!$BR$1","v":"Electricity generation"},{"$f":"_calc!$BR$885","v":6.4480034994924882}]
[{"$f":"_xlfn.TEXTJOIN(\",\",FALSE,output[[#This Row],[scenario]:[process_class]])","v":"PTX-BusinessOpportunityAnalyzer-1.0.9,DEU,Hydrogen (AEL),NOR,COST-OPEX,Transportation (Pipeline)"},"PTX-BusinessOpportunityAnalyzer-1.0.9",{"$f":"sel_country_code","v":"DEU"},"Hydrogen (AEL)",{"$f":"_calc!$B$885","v":"NOR"},{"$f":"_calc!$BO$827","v":"COST-OPEX"},{"$f":"_calc!$BS$1","v":"Transportation (Pipeline)"},{"$f":"_calc!$BS$885","v":2.8171042801267916}]
[{"$f":"_xlfn.TEXTJOIN(\",\",FALSE,output[[#This Row],[scenario]:[process_class]])","v":"PTX-BusinessOpportunityAnalyzer-1.0.9,DEU,Hydrogen (AEL),NOR,COST-OPEX,Transportation (Ship)"},"PTX-BusinessOpportunityAnalyzer-1.0.9",{"$f":"sel_country_code","v":"DEU"},"Hydrogen (AEL)",{"$f":"_calc!$B$885","v":"NOR"},{"$f":"_calc!$BO$827","v":"COST-OPEX"},{"$f":"_calc!$BT$1","v":"Transportation (Ship)"},{"$f":"_calc!$BT$885","v":0}]
[{"$f":"_xlfn.TEXTJOIN(\",\",FALSE,output[[#This Row],[scenario]:[process_class]])","v":"PTX-BusinessOpportunityAnalyzer-1.0.9,DEU,Hydrogen (AEL),NOR,COST-OPEX,Carbon"},"PTX-BusinessOpportunityAnalyzer-1.0.9",{"$f":"sel_country_code","v":"DEU"},"Hydrogen (AEL)",{"$f":"_calc!$B$885","v":"NOR"},{"$f":"_calc!$BO$827","v":"COST-OPEX"},{"$f":"_calc!$BU$1","v":"Carbon"},{"$f":"_calc!$BU$885","v":0}]
[{"$f":"_xlfn.TEXTJOIN(\",\",FALSE,output[[#This Row],[scenario]:[process_class]])","v":"PTX-BusinessOpportunityAnalyzer-1.0.9,DEU,Hydrogen (AEL),NOR,COST-OPEX,Derivate production"},"PTX-BusinessOpportunityAnalyzer-1.0.9",{"$f":"sel_country_code","v":"DEU"},"Hydrogen (AEL)",{"$f":"_calc!$B$885","v":"NOR"},{"$f":"_calc!$BO$827","v":"COST-OPEX"},{"$f":"_calc!$BV$1","v":"Derivate production"},{"$f":"_calc!$BV$885","v":0}]
[{"$f":"_xlfn.TEXTJOIN(\",\",FALSE,output[[#This Row],[scenario]:[process_class]])","v":"PTX-BusinessOpportunityAnalyzer-1.0.9,DEU,Hydrogen (AEL),NOR,COST-OPEX,Heat"},"PTX-BusinessOpportunityAnalyzer-1.0.9",{"$f":"sel_country_code","v":"DEU"},"Hydrogen (AEL)",{"$f":"_calc!$B$885","v":"NOR"},{"$f":"_calc!$BO$827","v":"COST-OPEX"},{"$f":"_calc!$BW$1","v":"Heat"},{"$f":"_calc!$BW$885","v":0}]
[{"$f":"_xlfn.TEXTJOIN(\",\",FALSE,output[[#This Row],[scenario]:[process_class]])","v":"PTX-BusinessOpportunityAnalyzer-1.0.9,DEU,Hydrogen (AEL),NOR,COST-OPEX,Electricity and H2 storage"},"PTX-BusinessOpportunityAnalyzer-1.0.9",{"$f":"sel_country_code","v":"DEU"},"Hydrogen (AEL)",{"$f":"_calc!$B$885","v":"NOR"},{"$f":"_calc!$BO$827","v":"COST-OPEX"},{"$f":"_calc!$BX$1","v":"Electricity and H2 storage"},{"$f":"_calc!$BX$885","v":1.7599025315628869}]
[{"$f":"_xlfn.TEXTJOIN(\",\",FALSE,output[[#This Row],[scenario]:[process_class]])","v":"PTX-BusinessOpportunityAnalyzer-1.0.9,DEU,Hydrogen (AEL),PER,COST-OPEX,Water"},"PTX-BusinessOpportunityAnalyzer-1.0.9",{"$f":"sel_country_code","v":"DEU"},"Hydrogen (AEL)",{"$f":"_calc!$B$886","v":"PER"},{"$f":"_calc!$BO$827","v":"COST-OPEX"},{"$f":"_calc!$BP$1","v":"Water"},{"$f":"_calc!$BP$886","v":3.8830331800582679E-2}]
[{"$f":"_xlfn.TEXTJOIN(\",\",FALSE,output[[#This Row],[scenario]:[process_class]])","v":"PTX-BusinessOpportunityAnalyzer-1.0.9,DEU,Hydrogen (AEL),PER,COST-OPEX,Electrolysis"},"PTX-BusinessOpportunityAnalyzer-1.0.9",{"$f":"sel_country_code","v":"DEU"},"Hydrogen (AEL)",{"$f":"_calc!$B$886","v":"PER"},{"$f":"_calc!$BO$827","v":"COST-OPEX"},{"$f":"_calc!$BQ$1","v":"Electrolysis"},{"$f":"_calc!$BQ$886","v":6.2468182195140729}]
[{"$f":"_xlfn.TEXTJOIN(\",\",FALSE,output[[#This Row],[scenario]:[process_class]])","v":"PTX-BusinessOpportunityAnalyzer-1.0.9,DEU,Hydrogen (AEL),PER,COST-OPEX,Electricity generation"},"PTX-BusinessOpportunityAnalyzer-1.0.9",{"$f":"sel_country_code","v":"DEU"},"Hydrogen (AEL)",{"$f":"_calc!$B$886","v":"PER"},{"$f":"_calc!$BO$827","v":"COST-OPEX"},{"$f":"_calc!$BR$1","v":"Electricity generation"},{"$f":"_calc!$BR$886","v":13.162772396497838}]
[{"$f":"_xlfn.TEXTJOIN(\",\",FALSE,output[[#This Row],[scenario]:[process_class]])","v":"PTX-BusinessOpportunityAnalyzer-1.0.9,DEU,Hydrogen (AEL),PER,COST-OPEX,Transportation (Pipeline)"},"PTX-BusinessOpportunityAnalyzer-1.0.9",{"$f":"sel_country_code","v":"DEU"},"Hydrogen (AEL)",{"$f":"_calc!$B$886","v":"PER"},{"$f":"_calc!$BO$827","v":"COST-OPEX"},{"$f":"_calc!$BS$1","v":"Transportation (Pipeline)"},{"$f":"_calc!$BS$886","v":0}]
[{"$f":"_xlfn.TEXTJOIN(\",\",FALSE,output[[#This Row],[scenario]:[process_class]])","v":"PTX-BusinessOpportunityAnalyzer-1.0.9,DEU,Hydrogen (AEL),PER,COST-OPEX,Transportation (Ship)"},"PTX-BusinessOpportunityAnalyzer-1.0.9",{"$f":"sel_country_code","v":"DEU"},"Hydrogen (AEL)",{"$f":"_calc!$B$886","v":"PER"},{"$f":"_calc!$BO$827","v":"COST-OPEX"},{"$f":"_calc!$BT$1","v":"Transportation (Ship)"},{"$f":"_calc!$BT$886","v":54.376857956567108}]
[{"$f":"_xlfn.TEXTJOIN(\",\",FALSE,output[[#This Row],[scenario]:[process_class]])","v":"PTX-BusinessOpportunityAnalyzer-1.0.9,DEU,Hydrogen (AEL),PER,COST-OPEX,Carbon"},"PTX-BusinessOpportunityAnalyzer-1.0.9",{"$f":"sel_country_code","v":"DEU"},"Hydrogen (AEL)",{"$f":"_calc!$B$886","v":"PER"},{"$f":"_calc!$BO$827","v":"COST-OPEX"},{"$f":"_calc!$BU$1","v":"Carbon"},{"$f":"_calc!$BU$886","v":0}]
[{"$f":"_xlfn.TEXTJOIN(\",\",FALSE,output[[#This Row],[scenario]:[process_class]])","v":"PTX-BusinessOpportunityAnalyzer-1.0.9,DEU,Hydrogen (AEL),PER,COST-OPEX,Derivate production"},"PTX-BusinessOpportunityAnalyzer-1.0.9",{"$f":"sel_country_code","v":"DEU"},"Hydrogen (AEL)",{"$f":"_calc!$B$886","v":"PER"},{"$f":"_calc!$BO$827","v":"COST-OPEX"},{"$f":"_calc!$BV$1","v":"Derivate production"},{"$f":"_calc!$BV$886","v":0}]
[{"$f":"_xlfn.TEXTJOIN(\",\",FALSE,output[[#This Row],[scenario]:[process_class]])","v":"PTX-BusinessOpportunityAnalyzer-1.0.9,DEU,Hydrogen (AEL),PER,COST-OPEX,Heat"},"PTX-BusinessOpportunityAnalyzer-1.0.9",{"$f":"sel_country_code","v":"DEU"},"Hydrogen (AEL)",{"$f":"_calc!$B$886","v":"PER"},{"$f":"_calc!$BO$827","v":"COST-OPEX"},{"$f":"_calc!$BW$1","v":"Heat"},{"$f":"_calc!$BW$886","v":0}]
[{"$f":"_xlfn.TEXTJOIN(\",\",FALSE,output[[#This Row],[scenario]:[process_class]])","v":"PTX-BusinessOpportunityAnalyzer-1.0.9,DEU,Hydrogen (AEL),PER,COST-OPEX,Electricity and H2 storage"},"PTX-BusinessOpportunityAnalyzer-1.0.9",{"$f":"sel_country_code","v":"DEU"},"Hydrogen (AEL)",{"$f":"_calc!$B$886","v":"PER"},{"$f":"_calc!$BO$827","v":"COST-OPEX"},{"$f":"_calc!$BX$1","v":"Electricity and H2 storage"},{"$f":"_calc!$BX$886","v":4.1161981755466472}]
[{"$f":"_xlfn.TEXTJOIN(\",\",FALSE,output[[#This Row],[scenario]:[process_class]])","v":"PTX-BusinessOpportunityAnalyzer-1.0.9,DEU,Hydrogen (AEL),PRT,COST-OPEX,Water"},"PTX-BusinessOpportunityAnalyzer-1.0.9",{"$f":"sel_country_code","v":"DEU"},"Hydrogen (AEL)",{"$f":"_calc!$B$887","v":"PRT"},{"$f":"_calc!$BO$827","v":"COST-OPEX"},{"$f":"_calc!$BP$1","v":"Water"},{"$f":"_calc!$BP$887","v":2.9816094701829748E-2}]
[{"$f":"_xlfn.TEXTJOIN(\",\",FALSE,output[[#This Row],[scenario]:[process_class]])","v":"PTX-BusinessOpportunityAnalyzer-1.0.9,DEU,Hydrogen (AEL),PRT,COST-OPEX,Electrolysis"},"PTX-BusinessOpportunityAnalyzer-1.0.9",{"$f":"sel_country_code","v":"DEU"},"Hydrogen (AEL)",{"$f":"_calc!$B$887","v":"PRT"},{"$f":"_calc!$BO$827","v":"COST-OPEX"},{"$f":"_calc!$BQ$1","v":"Electrolysis"},{"$f":"_calc!$BQ$887","v":2.3347806920248582}]
[{"$f":"_xlfn.TEXTJOIN(\",\",FALSE,output[[#This Row],[scenario]:[process_class]])","v":"PTX-BusinessOpportunityAnalyzer-1.0.9,DEU,Hydrogen (AEL),PRT,COST-OPEX,Electricity generation"},"PTX-BusinessOpportunityAnalyzer-1.0.9",{"$f":"sel_country_code","v":"DEU"},"Hydrogen (AEL)",{"$f":"_calc!$B$887","v":"PRT"},{"$f":"_calc!$BO$827","v":"COST-OPEX"},{"$f":"_calc!$BR$1","v":"Electricity generation"},{"$f":"_calc!$BR$887","v":6.6102767801519917}]
[{"$f":"_xlfn.TEXTJOIN(\",\",FALSE,output[[#This Row],[scenario]:[process_class]])","v":"PTX-BusinessOpportunityAnalyzer-1.0.9,DEU,Hydrogen (AEL),PRT,COST-OPEX,Transportation (Pipeline)"},"PTX-BusinessOpportunityAnalyzer-1.0.9",{"$f":"sel_country_code","v":"DEU"},"Hydrogen (AEL)",{"$f":"_calc!$B$887","v":"PRT"},{"$f":"_calc!$BO$827","v":"COST-OPEX"},{"$f":"_calc!$BS$1","v":"Transportation (Pipeline)"},{"$f":"_calc!$BS$887","v":18.915124138568665}]
[{"$f":"_xlfn.TEXTJOIN(\",\",FALSE,output[[#This Row],[scenario]:[process_class]])","v":"PTX-BusinessOpportunityAnalyzer-1.0.9,DEU,Hydrogen (AEL),PRT,COST-OPEX,Transportation (Ship)"},"PTX-BusinessOpportunityAnalyzer-1.0.9",{"$f":"sel_country_code","v":"DEU"},"Hydrogen (AEL)",{"$f":"_calc!$B$887","v":"PRT"},{"$f":"_calc!$BO$827","v":"COST-OPEX"},{"$f":"_calc!$BT$1","v":"Transportation (Ship)"},{"$f":"_calc!$BT$887","v":0}]
[{"$f":"_xlfn.TEXTJOIN(\",\",FALSE,output[[#This Row],[scenario]:[process_class]])","v":"PTX-BusinessOpportunityAnalyzer-1.0.9,DEU,Hydrogen (AEL),PRT,COST-OPEX,Carbon"},"PTX-BusinessOpportunityAnalyzer-1.0.9",{"$f":"sel_country_code","v":"DEU"},"Hydrogen (AEL)",{"$f":"_calc!$B$887","v":"PRT"},{"$f":"_calc!$BO$827","v":"COST-OPEX"},{"$f":"_calc!$BU$1","v":"Carbon"},{"$f":"_calc!$BU$887","v":0}]
[{"$f":"_xlfn.TEXTJOIN(\",\",FALSE,output[[#This Row],[scenario]:[process_class]])","v":"PTX-BusinessOpportunityAnalyzer-1.0.9,DEU,Hydrogen (AEL),PRT,COST-OPEX,Derivate production"},"PTX-BusinessOpportunityAnalyzer-1.0.9",{"$f":"sel_country_code","v":"DEU"},"Hydrogen (AEL)",{"$f":"_calc!$B$887","v":"PRT"},{"$f":"_calc!$BO$827","v":"COST-OPEX"},{"$f":"_calc!$BV$1","v":"Derivate production"},{"$f":"_calc!$BV$887","v":0}]
[{"$f":"_xlfn.TEXTJOIN(\",\",FALSE,output[[#This Row],[scenario]:[process_class]])","v":"PTX-BusinessOpportunityAnalyzer-1.0.9,DEU,Hydrogen (AEL),PRT,COST-OPEX,Heat"},"PTX-BusinessOpportunityAnalyzer-1.0.9",{"$f":"sel_country_code","v":"DEU"},"Hydrogen (AEL)",{"$f":"_calc!$B$887","v":"PRT"},{"$f":"_calc!$BO$827","v":"COST-OPEX"},{"$f":"_calc!$BW$1","v":"Heat"},{"$f":"_calc!$BW$887","v":0}]
[{"$f":"_xlfn.TEXTJOIN(\",\",FALSE,output[[#This Row],[scenario]:[process_class]])","v":"PTX-BusinessOpportunityAnalyzer-1.0.9,DEU,Hydrogen (AEL),PRT,COST-OPEX,Electricity and H2 storage"},"PTX-BusinessOpportunityAnalyzer-1.0.9",{"$f":"sel_country_code","v":"DEU"},"Hydrogen (AEL)",{"$f":"_calc!$B$887","v":"PRT"},{"$f":"_calc!$BO$827","v":"COST-OPEX"},{"$f":"_calc!$BX$1","v":"Electricity and H2 storage"},{"$f":"_calc!$BX$887","v":2.0142071444892378}]
[{"$f":"_xlfn.TEXTJOIN(\",\",FALSE,output[[#This Row],[scenario]:[process_class]])","v":"PTX-BusinessOpportunityAnalyzer-1.0.9,DEU,Hydrogen (AEL),RUS,COST-OPEX,Water"},"PTX-BusinessOpportunityAnalyzer-1.0.9",{"$f":"sel_country_code","v":"DEU"},"Hydrogen (AEL)",{"$f":"_calc!$B$888","v":"RUS"},{"$f":"_calc!$BO$827","v":"COST-OPEX"},{"$f":"_calc!$BP$1","v":"Water"},{"$f":"_calc!$BP$888","v":2.9304568834903399E-2}]
[{"$f":"_xlfn.TEXTJOIN(\",\",FALSE,output[[#This Row],[scenario]:[process_class]])","v":"PTX-BusinessOpportunityAnalyzer-1.0.9,DEU,Hydrogen (AEL),RUS,COST-OPEX,Electrolysis"},"PTX-BusinessOpportunityAnalyzer-1.0.9",{"$f":"sel_country_code","v":"DEU"},"Hydrogen (AEL)",{"$f":"_calc!$B$888","v":"RUS"},{"$f":"_calc!$BO$827","v":"COST-OPEX"},{"$f":"_calc!$BQ$1","v":"Electrolysis"},{"$f":"_calc!$BQ$888","v":3.2158505064490148}]
[{"$f":"_xlfn.TEXTJOIN(\",\",FALSE,output[[#This Row],[scenario]:[process_class]])","v":"PTX-BusinessOpportunityAnalyzer-1.0.9,DEU,Hydrogen (AEL),RUS,COST-OPEX,Electricity generation"},"PTX-BusinessOpportunityAnalyzer-1.0.9",{"$f":"sel_country_code","v":"DEU"},"Hydrogen (AEL)",{"$f":"_calc!$B$888","v":"RUS"},{"$f":"_calc!$BO$827","v":"COST-OPEX"},{"$f":"_calc!$BR$1","v":"Electricity generation"},{"$f":"_calc!$BR$888","v":11.831473373534893}]
[{"$f":"_xlfn.TEXTJOIN(\",\",FALSE,output[[#This Row],[scenario]:[process_class]])","v":"PTX-BusinessOpportunityAnalyzer-1.0.9,DEU,Hydrogen (AEL),RUS,COST-OPEX,Transportation (Pipeline)"},"PTX-BusinessOpportunityAnalyzer-1.0.9",{"$f":"sel_country_code","v":"DEU"},"Hydrogen (AEL)",{"$f":"_calc!$B$888","v":"RUS"},{"$f":"_calc!$BO$827","v":"COST-OPEX"},{"$f":"_calc!$BS$1","v":"Transportation (Pipeline)"},{"$f":"_calc!$BS$888","v":4.753694574027854}]
[{"$f":"_xlfn.TEXTJOIN(\",\",FALSE,output[[#This Row],[scenario]:[process_class]])","v":"PTX-BusinessOpportunityAnalyzer-1.0.9,DEU,Hydrogen (AEL),RUS,COST-OPEX,Transportation (Ship)"},"PTX-BusinessOpportunityAnalyzer-1.0.9",{"$f":"sel_country_code","v":"DEU"},"Hydrogen (AEL)",{"$f":"_calc!$B$888","v":"RUS"},{"$f":"_calc!$BO$827","v":"COST-OPEX"},{"$f":"_calc!$BT$1","v":"Transportation (Ship)"},{"$f":"_calc!$BT$888","v":0}]
[{"$f":"_xlfn.TEXTJOIN(\",\",FALSE,output[[#This Row],[scenario]:[process_class]])","v":"PTX-BusinessOpportunityAnalyzer-1.0.9,DEU,Hydrogen (AEL),RUS,COST-OPEX,Carbon"},"PTX-BusinessOpportunityAnalyzer-1.0.9",{"$f":"sel_country_code","v":"DEU"},"Hydrogen (AEL)",{"$f":"_calc!$B$888","v":"RUS"},{"$f":"_calc!$BO$827","v":"COST-OPEX"},{"$f":"_calc!$BU$1","v":"Carbon"},{"$f":"_calc!$BU$888","v":0}]
[{"$f":"_xlfn.TEXTJOIN(\",\",FALSE,output[[#This Row],[scenario]:[process_class]])","v":"PTX-BusinessOpportunityAnalyzer-1.0.9,DEU,Hydrogen (AEL),RUS,COST-OPEX,Derivate production"},"PTX-BusinessOpportunityAnalyzer-1.0.9",{"$f":"sel_country_code","v":"DEU"},"Hydrogen (AEL)",{"$f":"_calc!$B$888","v":"RUS"},{"$f":"_calc!$BO$827","v":"COST-OPEX"},{"$f":"_calc!$BV$1","v":"Derivate production"},{"$f":"_calc!$BV$888","v":0}]
[{"$f":"_xlfn.TEXTJOIN(\",\",FALSE,output[[#This Row],[scenario]:[process_class]])","v":"PTX-BusinessOpportunityAnalyzer-1.0.9,DEU,Hydrogen (AEL),RUS,COST-OPEX,Heat"},"PTX-BusinessOpportunityAnalyzer-1.0.9",{"$f":"sel_country_code","v":"DEU"},"Hydrogen (AEL)",{"$f":"_calc!$B$888","v":"RUS"},{"$f":"_calc!$BO$827","v":"COST-OPEX"},{"$f":"_calc!$BW$1","v":"Heat"},{"$f":"_calc!$BW$888","v":0}]
[{"$f":"_xlfn.TEXTJOIN(\",\",FALSE,output[[#This Row],[scenario]:[process_class]])","v":"PTX-BusinessOpportunityAnalyzer-1.0.9,DEU,Hydrogen (AEL),RUS,COST-OPEX,Electricity and H2 storage"},"PTX-BusinessOpportunityAnalyzer-1.0.9",{"$f":"sel_country_code","v":"DEU"},"Hydrogen (AEL)",{"$f":"_calc!$B$888","v":"RUS"},{"$f":"_calc!$BO$827","v":"COST-OPEX"},{"$f":"_calc!$BX$1","v":"Electricity and H2 storage"},{"$f":"_calc!$BX$888","v":3.421846594101019}]
[{"$f":"_xlfn.TEXTJOIN(\",\",FALSE,output[[#This Row],[scenario]:[process_class]])","v":"PTX-BusinessOpportunityAnalyzer-1.0.9,DEU,Hydrogen (AEL),SAU,COST-OPEX,Water"},"PTX-BusinessOpportunityAnalyzer-1.0.9",{"$f":"sel_country_code","v":"DEU"},"Hydrogen (AEL)",{"$f":"_calc!$B$889","v":"SAU"},{"$f":"_calc!$BO$827","v":"COST-OPEX"},{"$f":"_calc!$BP$1","v":"Water"},{"$f":"_calc!$BP$889","v":3.1176602576079095E-2}]
[{"$f":"_xlfn.TEXTJOIN(\",\",FALSE,output[[#This Row],[scenario]:[process_class]])","v":"PTX-BusinessOpportunityAnalyzer-1.0.9,DEU,Hydrogen (AEL),SAU,COST-OPEX,Electrolysis"},"PTX-BusinessOpportunityAnalyzer-1.0.9",{"$f":"sel_country_code","v":"DEU"},"Hydrogen (AEL)",{"$f":"_calc!$B$889","v":"SAU"},{"$f":"_calc!$BO$827","v":"COST-OPEX"},{"$f":"_calc!$BQ$1","v":"Electrolysis"},{"$f":"_calc!$BQ$889","v":4.190204621521981}]
[{"$f":"_xlfn.TEXTJOIN(\",\",FALSE,output[[#This Row],[scenario]:[process_class]])","v":"PTX-BusinessOpportunityAnalyzer-1.0.9,DEU,Hydrogen (AEL),SAU,COST-OPEX,Electricity generation"},"PTX-BusinessOpportunityAnalyzer-1.0.9",{"$f":"sel_country_code","v":"DEU"},"Hydrogen (AEL)",{"$f":"_calc!$B$889","v":"SAU"},{"$f":"_calc!$BO$827","v":"COST-OPEX"},{"$f":"_calc!$BR$1","v":"Electricity generation"},{"$f":"_calc!$BR$889","v":9.4938178737045469}]
[{"$f":"_xlfn.TEXTJOIN(\",\",FALSE,output[[#This Row],[scenario]:[process_class]])","v":"PTX-BusinessOpportunityAnalyzer-1.0.9,DEU,Hydrogen (AEL),SAU,COST-OPEX,Transportation (Pipeline)"},"PTX-BusinessOpportunityAnalyzer-1.0.9",{"$f":"sel_country_code","v":"DEU"},"Hydrogen (AEL)",{"$f":"_calc!$B$889","v":"SAU"},{"$f":"_calc!$BO$827","v":"COST-OPEX"},{"$f":"_calc!$BS$1","v":"Transportation (Pipeline)"},{"$f":"_calc!$BS$889","v":41.46138262689135}]
[{"$f":"_xlfn.TEXTJOIN(\",\",FALSE,output[[#This Row],[scenario]:[process_class]])","v":"PTX-BusinessOpportunityAnalyzer-1.0.9,DEU,Hydrogen (AEL),SAU,COST-OPEX,Transportation (Ship)"},"PTX-BusinessOpportunityAnalyzer-1.0.9",{"$f":"sel_country_code","v":"DEU"},"Hydrogen (AEL)",{"$f":"_calc!$B$889","v":"SAU"},{"$f":"_calc!$BO$827","v":"COST-OPEX"},{"$f":"_calc!$BT$1","v":"Transportation (Ship)"},{"$f":"_calc!$BT$889","v":0}]
[{"$f":"_xlfn.TEXTJOIN(\",\",FALSE,output[[#This Row],[scenario]:[process_class]])","v":"PTX-BusinessOpportunityAnalyzer-1.0.9,DEU,Hydrogen (AEL),SAU,COST-OPEX,Carbon"},"PTX-BusinessOpportunityAnalyzer-1.0.9",{"$f":"sel_country_code","v":"DEU"},"Hydrogen (AEL)",{"$f":"_calc!$B$889","v":"SAU"},{"$f":"_calc!$BO$827","v":"COST-OPEX"},{"$f":"_calc!$BU$1","v":"Carbon"},{"$f":"_calc!$BU$889","v":0}]
[{"$f":"_xlfn.TEXTJOIN(\",\",FALSE,output[[#This Row],[scenario]:[process_class]])","v":"PTX-BusinessOpportunityAnalyzer-1.0.9,DEU,Hydrogen (AEL),SAU,COST-OPEX,Derivate production"},"PTX-BusinessOpportunityAnalyzer-1.0.9",{"$f":"sel_country_code","v":"DEU"},"Hydrogen (AEL)",{"$f":"_calc!$B$889","v":"SAU"},{"$f":"_calc!$BO$827","v":"COST-OPEX"},{"$f":"_calc!$BV$1","v":"Derivate production"},{"$f":"_calc!$BV$889","v":0}]
[{"$f":"_xlfn.TEXTJOIN(\",\",FALSE,output[[#This Row],[scenario]:[process_class]])","v":"PTX-BusinessOpportunityAnalyzer-1.0.9,DEU,Hydrogen (AEL),SAU,COST-OPEX,Heat"},"PTX-BusinessOpportunityAnalyzer-1.0.9",{"$f":"sel_country_code","v":"DEU"},"Hydrogen (AEL)",{"$f":"_calc!$B$889","v":"SAU"},{"$f":"_calc!$BO$827","v":"COST-OPEX"},{"$f":"_calc!$BW$1","v":"Heat"},{"$f":"_calc!$BW$889","v":0}]
[{"$f":"_xlfn.TEXTJOIN(\",\",FALSE,output[[#This Row],[scenario]:[process_class]])","v":"PTX-BusinessOpportunityAnalyzer-1.0.9,DEU,Hydrogen (AEL),SAU,COST-OPEX,Electricity and H2 storage"},"PTX-BusinessOpportunityAnalyzer-1.0.9",{"$f":"sel_country_code","v":"DEU"},"Hydrogen (AEL)",{"$f":"_calc!$B$889","v":"SAU"},{"$f":"_calc!$BO$827","v":"COST-OPEX"},{"$f":"_calc!$BX$1","v":"Electricity and H2 storage"},{"$f":"_calc!$BX$889","v":2.7426678614174032}]
[{"$f":"_xlfn.TEXTJOIN(\",\",FALSE,output[[#This Row],[scenario]:[process_class]])","v":"PTX-BusinessOpportunityAnalyzer-1.0.9,DEU,Hydrogen (AEL),SWE,COST-OPEX,Water"},"PTX-BusinessOpportunityAnalyzer-1.0.9",{"$f":"sel_country_code","v":"DEU"},"Hydrogen (AEL)",{"$f":"_calc!$B$890","v":"SWE"},{"$f":"_calc!$BO$827","v":"COST-OPEX"},{"$f":"_calc!$BP$1","v":"Water"},{"$f":"_calc!$BP$890","v":2.9302788202206536E-2}]
[{"$f":"_xlfn.TEXTJOIN(\",\",FALSE,output[[#This Row],[scenario]:[process_class]])","v":"PTX-BusinessOpportunityAnalyzer-1.0.9,DEU,Hydrogen (AEL),SWE,COST-OPEX,Electrolysis"},"PTX-BusinessOpportunityAnalyzer-1.0.9",{"$f":"sel_country_code","v":"DEU"},"Hydrogen (AEL)",{"$f":"_calc!$B$890","v":"SWE"},{"$f":"_calc!$BO$827","v":"COST-OPEX"},{"$f":"_calc!$BQ$1","v":"Electrolysis"},{"$f":"_calc!$BQ$890","v":3.5900277209762685}]
[{"$f":"_xlfn.TEXTJOIN(\",\",FALSE,output[[#This Row],[scenario]:[process_class]])","v":"PTX-BusinessOpportunityAnalyzer-1.0.9,DEU,Hydrogen (AEL),SWE,COST-OPEX,Electricity generation"},"PTX-BusinessOpportunityAnalyzer-1.0.9",{"$f":"sel_country_code","v":"DEU"},"Hydrogen (AEL)",{"$f":"_calc!$B$890","v":"SWE"},{"$f":"_calc!$BO$827","v":"COST-OPEX"},{"$f":"_calc!$BR$1","v":"Electricity generation"},{"$f":"_calc!$BR$890","v":8.8979531331010975}]
[{"$f":"_xlfn.TEXTJOIN(\",\",FALSE,output[[#This Row],[scenario]:[process_class]])","v":"PTX-BusinessOpportunityAnalyzer-1.0.9,DEU,Hydrogen (AEL),SWE,COST-OPEX,Transportation (Pipeline)"},"PTX-BusinessOpportunityAnalyzer-1.0.9",{"$f":"sel_country_code","v":"DEU"},"Hydrogen (AEL)",{"$f":"_calc!$B$890","v":"SWE"},{"$f":"_calc!$BO$827","v":"COST-OPEX"},{"$f":"_calc!$BS$1","v":"Transportation (Pipeline)"},{"$f":"_calc!$BS$890","v":11.881849441466539}]
[{"$f":"_xlfn.TEXTJOIN(\",\",FALSE,output[[#This Row],[scenario]:[process_class]])","v":"PTX-BusinessOpportunityAnalyzer-1.0.9,DEU,Hydrogen (AEL),SWE,COST-OPEX,Transportation (Ship)"},"PTX-BusinessOpportunityAnalyzer-1.0.9",{"$f":"sel_country_code","v":"DEU"},"Hydrogen (AEL)",{"$f":"_calc!$B$890","v":"SWE"},{"$f":"_calc!$BO$827","v":"COST-OPEX"},{"$f":"_calc!$BT$1","v":"Transportation (Ship)"},{"$f":"_calc!$BT$890","v":0}]
[{"$f":"_xlfn.TEXTJOIN(\",\",FALSE,output[[#This Row],[scenario]:[process_class]])","v":"PTX-BusinessOpportunityAnalyzer-1.0.9,DEU,Hydrogen (AEL),SWE,COST-OPEX,Carbon"},"PTX-BusinessOpportunityAnalyzer-1.0.9",{"$f":"sel_country_code","v":"DEU"},"Hydrogen (AEL)",{"$f":"_calc!$B$890","v":"SWE"},{"$f":"_calc!$BO$827","v":"COST-OPEX"},{"$f":"_calc!$BU$1","v":"Carbon"},{"$f":"_calc!$BU$890","v":0}]
[{"$f":"_xlfn.TEXTJOIN(\",\",FALSE,output[[#This Row],[scenario]:[process_class]])","v":"PTX-BusinessOpportunityAnalyzer-1.0.9,DEU,Hydrogen (AEL),SWE,COST-OPEX,Derivate production"},"PTX-BusinessOpportunityAnalyzer-1.0.9",{"$f":"sel_country_code","v":"DEU"},"Hydrogen (AEL)",{"$f":"_calc!$B$890","v":"SWE"},{"$f":"_calc!$BO$827","v":"COST-OPEX"},{"$f":"_calc!$BV$1","v":"Derivate production"},{"$f":"_calc!$BV$890","v":0}]
[{"$f":"_xlfn.TEXTJOIN(\",\",FALSE,output[[#This Row],[scenario]:[process_class]])","v":"PTX-BusinessOpportunityAnalyzer-1.0.9,DEU,Hydrogen (AEL),SWE,COST-OPEX,Heat"},"PTX-BusinessOpportunityAnalyzer-1.0.9",{"$f":"sel_country_code","v":"DEU"},"Hydrogen (AEL)",{"$f":"_calc!$B$890","v":"SWE"},{"$f":"_calc!$BO$827","v":"COST-OPEX"},{"$f":"_calc!$BW$1","v":"Heat"},{"$f":"_calc!$BW$890","v":0}]
[{"$f":"_xlfn.TEXTJOIN(\",\",FALSE,output[[#This Row],[scenario]:[process_class]])","v":"PTX-BusinessOpportunityAnalyzer-1.0.9,DEU,Hydrogen (AEL),SWE,COST-OPEX,Electricity and H2 storage"},"PTX-BusinessOpportunityAnalyzer-1.0.9",{"$f":"sel_country_code","v":"DEU"},"Hydrogen (AEL)",{"$f":"_calc!$B$890","v":"SWE"},{"$f":"_calc!$BO$827","v":"COST-OPEX"},{"$f":"_calc!$BX$1","v":"Electricity and H2 storage"},{"$f":"_calc!$BX$890","v":2.4142901516293036}]
[{"$f":"_xlfn.TEXTJOIN(\",\",FALSE,output[[#This Row],[scenario]:[process_class]])","v":"PTX-BusinessOpportunityAnalyzer-1.0.9,DEU,Hydrogen (AEL),THA,COST-OPEX,Water"},"PTX-BusinessOpportunityAnalyzer-1.0.9",{"$f":"sel_country_code","v":"DEU"},"Hydrogen (AEL)",{"$f":"_calc!$B$891","v":"THA"},{"$f":"_calc!$BO$827","v":"COST-OPEX"},{"$f":"_calc!$BP$1","v":"Water"},{"$f":"_calc!$BP$891","v":4.1329623224552914E-2}]
[{"$f":"_xlfn.TEXTJOIN(\",\",FALSE,output[[#This Row],[scenario]:[process_class]])","v":"PTX-BusinessOpportunityAnalyzer-1.0.9,DEU,Hydrogen (AEL),THA,COST-OPEX,Electrolysis"},"PTX-BusinessOpportunityAnalyzer-1.0.9",{"$f":"sel_country_code","v":"DEU"},"Hydrogen (AEL)",{"$f":"_calc!$B$891","v":"THA"},{"$f":"_calc!$BO$827","v":"COST-OPEX"},{"$f":"_calc!$BQ$1","v":"Electrolysis"},{"$f":"_calc!$BQ$891","v":5.4888237740174839}]
[{"$f":"_xlfn.TEXTJOIN(\",\",FALSE,output[[#This Row],[scenario]:[process_class]])","v":"PTX-BusinessOpportunityAnalyzer-1.0.9,DEU,Hydrogen (AEL),THA,COST-OPEX,Electricity generation"},{"$f":"output_scenario_name","v":"PTX-BusinessOpportunityAnalyzer-1.0.9"},{"$f":"sel_country_code","v":"DEU"},{"$f":"sel_chain","v":"Hydrogen (AEL)"},{"$f":"_calc!$B$891","v":"THA"},{"$f":"_calc!$BO$827","v":"COST-OPEX"},{"$f":"_calc!$BR$1","v":"Electricity generation"},{"$f":"_calc!$BR$891","v":13.798516527594151}]
[{"$f":"_xlfn.TEXTJOIN(\",\",FALSE,output[[#This Row],[scenario]:[process_class]])","v":"PTX-BusinessOpportunityAnalyzer-1.0.9,DEU,Hydrogen (AEL),THA,COST-OPEX,Transportation (Pipeline)"},"PTX-BusinessOpportunityAnalyzer-1.0.9",{"$f":"sel_country_code","v":"DEU"},"Hydrogen (AEL)",{"$f":"_calc!$B$891","v":"THA"},{"$f":"_calc!$BO$827","v":"COST-OPEX"},{"$f":"_calc!$BS$1","v":"Transportation (Pipeline)"},{"$f":"_calc!$BS$891","v":0}]
[{"$f":"_xlfn.TEXTJOIN(\",\",FALSE,output[[#This Row],[scenario]:[process_class]])","v":"PTX-BusinessOpportunityAnalyzer-1.0.9,DEU,Hydrogen (AEL),THA,COST-OPEX,Transportation (Ship)"},"PTX-BusinessOpportunityAnalyzer-1.0.9",{"$f":"sel_country_code","v":"DEU"},"Hydrogen (AEL)",{"$f":"_calc!$B$891","v":"THA"},{"$f":"_calc!$BO$827","v":"COST-OPEX"},{"$f":"_calc!$BT$1","v":"Transportation (Ship)"},{"$f":"_calc!$BT$891","v":61.783729784259762}]
[{"$f":"_xlfn.TEXTJOIN(\",\",FALSE,output[[#This Row],[scenario]:[process_class]])","v":"PTX-BusinessOpportunityAnalyzer-1.0.9,DEU,Hydrogen (AEL),THA,COST-OPEX,Carbon"},"PTX-BusinessOpportunityAnalyzer-1.0.9",{"$f":"sel_country_code","v":"DEU"},"Hydrogen (AEL)",{"$f":"_calc!$B$891","v":"THA"},{"$f":"_calc!$BO$827","v":"COST-OPEX"},{"$f":"_calc!$BU$1","v":"Carbon"},{"$f":"_calc!$BU$891","v":0}]
[{"$f":"_xlfn.TEXTJOIN(\",\",FALSE,output[[#This Row],[scenario]:[process_class]])","v":"PTX-BusinessOpportunityAnalyzer-1.0.9,DEU,Hydrogen (AEL),THA,COST-OPEX,Derivate production"},"PTX-BusinessOpportunityAnalyzer-1.0.9",{"$f":"sel_country_code","v":"DEU"},"Hydrogen (AEL)",{"$f":"_calc!$B$891","v":"THA"},{"$f":"_calc!$BO$827","v":"COST-OPEX"},{"$f":"_calc!$BV$1","v":"Derivate production"},{"$f":"_calc!$BV$891","v":0}]
[{"$f":"_xlfn.TEXTJOIN(\",\",FALSE,output[[#This Row],[scenario]:[process_class]])","v":"PTX-BusinessOpportunityAnalyzer-1.0.9,DEU,Hydrogen (AEL),THA,COST-OPEX,Heat"},"PTX-BusinessOpportunityAnalyzer-1.0.9",{"$f":"sel_country_code","v":"DEU"},"Hydrogen (AEL)",{"$f":"_calc!$B$891","v":"THA"},{"$f":"_calc!$BO$827","v":"COST-OPEX"},{"$f":"_calc!$BW$1","v":"Heat"},{"$f":"_calc!$BW$891","v":0}]
[{"$f":"_xlfn.TEXTJOIN(\",\",FALSE,output[[#This Row],[scenario]:[process_class]])","v":"PTX-BusinessOpportunityAnalyzer-1.0.9,DEU,Hydrogen (AEL),THA,COST-OPEX,Electricity and H2 storage"},"PTX-BusinessOpportunityAnalyzer-1.0.9",{"$f":"sel_country_code","v":"DEU"},"Hydrogen (AEL)",{"$f":"_calc!$B$891","v":"THA"},{"$f":"_calc!$BO$827","v":"COST-OPEX"},{"$f":"_calc!$BX$1","v":"Electricity and H2 storage"},{"$f":"_calc!$BX$891","v":4.0908492874998359}]
[{"$f":"_xlfn.TEXTJOIN(\",\",FALSE,output[[#This Row],[scenario]:[process_class]])","v":"PTX-BusinessOpportunityAnalyzer-1.0.9,DEU,Hydrogen (AEL),TUN,COST-OPEX,Water"},"PTX-BusinessOpportunityAnalyzer-1.0.9",{"$f":"sel_country_code","v":"DEU"},"Hydrogen (AEL)",{"$f":"_calc!$B$892","v":"TUN"},{"$f":"_calc!$BO$827","v":"COST-OPEX"},{"$f":"_calc!$BP$1","v":"Water"},{"$f":"_calc!$BP$892","v":2.9808108554133683E-2}]
[{"$f":"_xlfn.TEXTJOIN(\",\",FALSE,output[[#This Row],[scenario]:[process_class]])","v":"PTX-BusinessOpportunityAnalyzer-1.0.9,DEU,Hydrogen (AEL),TUN,COST-OPEX,Electrolysis"},"PTX-BusinessOpportunityAnalyzer-1.0.9",{"$f":"sel_country_code","v":"DEU"},"Hydrogen (AEL)",{"$f":"_calc!$B$892","v":"TUN"},{"$f":"_calc!$BO$827","v":"COST-OPEX"},{"$f":"_calc!$BQ$1","v":"Electrolysis"},{"$f":"_calc!$BQ$892","v":3.6957638497138143}]
[{"$f":"_xlfn.TEXTJOIN(\",\",FALSE,output[[#This Row],[scenario]:[process_class]])","v":"PTX-BusinessOpportunityAnalyzer-1.0.9,DEU,Hydrogen (AEL),TUN,COST-OPEX,Electricity generation"},"PTX-BusinessOpportunityAnalyzer-1.0.9",{"$f":"sel_country_code","v":"DEU"},"Hydrogen (AEL)",{"$f":"_calc!$B$892","v":"TUN"},{"$f":"_calc!$BO$827","v":"COST-OPEX"},{"$f":"_calc!$BR$1","v":"Electricity generation"},{"$f":"_calc!$BR$892","v":9.1727225310009342}]
[{"$f":"_xlfn.TEXTJOIN(\",\",FALSE,output[[#This Row],[scenario]:[process_class]])","v":"PTX-BusinessOpportunityAnalyzer-1.0.9,DEU,Hydrogen (AEL),TUN,COST-OPEX,Transportation (Pipeline)"},"PTX-BusinessOpportunityAnalyzer-1.0.9",{"$f":"sel_country_code","v":"DEU"},"Hydrogen (AEL)",{"$f":"_calc!$B$892","v":"TUN"},{"$f":"_calc!$BO$827","v":"COST-OPEX"},{"$f":"_calc!$BS$1","v":"Transportation (Pipeline)"},{"$f":"_calc!$BS$892","v":23.657981501571012}]
[{"$f":"_xlfn.TEXTJOIN(\",\",FALSE,output[[#This Row],[scenario]:[process_class]])","v":"PTX-BusinessOpportunityAnalyzer-1.0.9,DEU,Hydrogen (AEL),TUN,COST-OPEX,Transportation (Ship)"},"PTX-BusinessOpportunityAnalyzer-1.0.9",{"$f":"sel_country_code","v":"DEU"},"Hydrogen (AEL)",{"$f":"_calc!$B$892","v":"TUN"},{"$f":"_calc!$BO$827","v":"COST-OPEX"},{"$f":"_calc!$BT$1","v":"Transportation (Ship)"},{"$f":"_calc!$BT$892","v":0}]
[{"$f":"_xlfn.TEXTJOIN(\",\",FALSE,output[[#This Row],[scenario]:[process_class]])","v":"PTX-BusinessOpportunityAnalyzer-1.0.9,DEU,Hydrogen (AEL),TUN,COST-OPEX,Carbon"},"PTX-BusinessOpportunityAnalyzer-1.0.9",{"$f":"sel_country_code","v":"DEU"},"Hydrogen (AEL)",{"$f":"_calc!$B$892","v":"TUN"},{"$f":"_calc!$BO$827","v":"COST-OPEX"},{"$f":"_calc!$BU$1","v":"Carbon"},{"$f":"_calc!$BU$892","v":0}]
[{"$f":"_xlfn.TEXTJOIN(\",\",FALSE,output[[#This Row],[scenario]:[process_class]])","v":"PTX-BusinessOpportunityAnalyzer-1.0.9,DEU,Hydrogen (AEL),TUN,COST-OPEX,Derivate production"},"PTX-BusinessOpportunityAnalyzer-1.0.9",{"$f":"sel_country_code","v":"DEU"},"Hydrogen (AEL)",{"$f":"_calc!$B$892","v":"TUN"},{"$f":"_calc!$BO$827","v":"COST-OPEX"},{"$f":"_calc!$BV$1","v":"Derivate production"},{"$f":"_calc!$BV$892","v":0}]
[{"$f":"_xlfn.TEXTJOIN(\",\",FALSE,output[[#This Row],[scenario]:[process_class]])","v":"PTX-BusinessOpportunityAnalyzer-1.0.9,DEU,Hydrogen (AEL),TUN,COST-OPEX,Heat"},"PTX-BusinessOpportunityAnalyzer-1.0.9",{"$f":"sel_country_code","v":"DEU"},"Hydrogen (AEL)",{"$f":"_calc!$B$892","v":"TUN"},{"$f":"_calc!$BO$827","v":"COST-OPEX"},{"$f":"_calc!$BW$1","v":"Heat"},{"$f":"_calc!$BW$892","v":0}]
[{"$f":"_xlfn.TEXTJOIN(\",\",FALSE,output[[#This Row],[scenario]:[process_class]])","v":"PTX-BusinessOpportunityAnalyzer-1.0.9,DEU,Hydrogen (AEL),TUN,COST-OPEX,Electricity and H2 storage"},"PTX-BusinessOpportunityAnalyzer-1.0.9",{"$f":"sel_country_code","v":"DEU"},"Hydrogen (AEL)",{"$f":"_calc!$B$892","v":"TUN"},{"$f":"_calc!$BO$827","v":"COST-OPEX"},{"$f":"_calc!$BX$1","v":"Electricity and H2 storage"},{"$f":"_calc!$BX$892","v":3.7025905303662254}]
[{"$f":"_xlfn.TEXTJOIN(\",\",FALSE,output[[#This Row],[scenario]:[process_class]])","v":"PTX-BusinessOpportunityAnalyzer-1.0.9,DEU,Hydrogen (AEL),UKR,COST-OPEX,Water"},"PTX-BusinessOpportunityAnalyzer-1.0.9",{"$f":"sel_country_code","v":"DEU"},"Hydrogen (AEL)",{"$f":"_calc!$B$893","v":"UKR"},{"$f":"_calc!$BO$827","v":"COST-OPEX"},{"$f":"_calc!$BP$1","v":"Water"},{"$f":"_calc!$BP$893","v":2.955811884739375E-2}]
[{"$f":"_xlfn.TEXTJOIN(\",\",FALSE,output[[#This Row],[scenario]:[process_class]])","v":"PTX-BusinessOpportunityAnalyzer-1.0.9,DEU,Hydrogen (AEL),UKR,COST-OPEX,Electrolysis"},"PTX-BusinessOpportunityAnalyzer-1.0.9",{"$f":"sel_country_code","v":"DEU"},"Hydrogen (AEL)",{"$f":"_calc!$B$893","v":"UKR"},{"$f":"_calc!$BO$827","v":"COST-OPEX"},{"$f":"_calc!$BQ$1","v":"Electrolysis"},{"$f":"_calc!$BQ$893","v":2.6549460686826052}]
[{"$f":"_xlfn.TEXTJOIN(\",\",FALSE,output[[#This Row],[scenario]:[process_class]])","v":"PTX-BusinessOpportunityAnalyzer-1.0.9,DEU,Hydrogen (AEL),UKR,COST-OPEX,Electricity generation"},"PTX-BusinessOpportunityAnalyzer-1.0.9",{"$f":"sel_country_code","v":"DEU"},"Hydrogen (AEL)",{"$f":"_calc!$B$893","v":"UKR"},{"$f":"_calc!$BO$827","v":"COST-OPEX"},{"$f":"_calc!$BR$1","v":"Electricity generation"},{"$f":"_calc!$BR$893","v":6.4770111841613351}]
[{"$f":"_xlfn.TEXTJOIN(\",\",FALSE,output[[#This Row],[scenario]:[process_class]])","v":"PTX-BusinessOpportunityAnalyzer-1.0.9,DEU,Hydrogen (AEL),UKR,COST-OPEX,Transportation (Pipeline)"},"PTX-BusinessOpportunityAnalyzer-1.0.9",{"$f":"sel_country_code","v":"DEU"},"Hydrogen (AEL)",{"$f":"_calc!$B$893","v":"UKR"},{"$f":"_calc!$BO$827","v":"COST-OPEX"},{"$f":"_calc!$BS$1","v":"Transportation (Pipeline)"},{"$f":"_calc!$BS$893","v":14.406304220864055}]
[{"$f":"_xlfn.TEXTJOIN(\",\",FALSE,output[[#This Row],[scenario]:[process_class]])","v":"PTX-BusinessOpportunityAnalyzer-1.0.9,DEU,Hydrogen (AEL),UKR,COST-OPEX,Transportation (Ship)"},"PTX-BusinessOpportunityAnalyzer-1.0.9",{"$f":"sel_country_code","v":"DEU"},"Hydrogen (AEL)",{"$f":"_calc!$B$893","v":"UKR"},{"$f":"_calc!$BO$827","v":"COST-OPEX"},{"$f":"_calc!$BT$1","v":"Transportation (Ship)"},{"$f":"_calc!$BT$893","v":0}]
[{"$f":"_xlfn.TEXTJOIN(\",\",FALSE,output[[#This Row],[scenario]:[process_class]])","v":"PTX-BusinessOpportunityAnalyzer-1.0.9,DEU,Hydrogen (AEL),UKR,COST-OPEX,Carbon"},"PTX-BusinessOpportunityAnalyzer-1.0.9",{"$f":"sel_country_code","v":"DEU"},"Hydrogen (AEL)",{"$f":"_calc!$B$893","v":"UKR"},{"$f":"_calc!$BO$827","v":"COST-OPEX"},{"$f":"_calc!$BU$1","v":"Carbon"},{"$f":"_calc!$BU$893","v":0}]
[{"$f":"_xlfn.TEXTJOIN(\",\",FALSE,output[[#This Row],[scenario]:[process_class]])","v":"PTX-BusinessOpportunityAnalyzer-1.0.9,DEU,Hydrogen (AEL),UKR,COST-OPEX,Derivate production"},"PTX-BusinessOpportunityAnalyzer-1.0.9",{"$f":"sel_country_code","v":"DEU"},"Hydrogen (AEL)",{"$f":"_calc!$B$893","v":"UKR"},{"$f":"_calc!$BO$827","v":"COST-OPEX"},{"$f":"_calc!$BV$1","v":"Derivate production"},{"$f":"_calc!$BV$893","v":0}]
[{"$f":"_xlfn.TEXTJOIN(\",\",FALSE,output[[#This Row],[scenario]:[process_class]])","v":"PTX-BusinessOpportunityAnalyzer-1.0.9,DEU,Hydrogen (AEL),UKR,COST-OPEX,Heat"},"PTX-BusinessOpportunityAnalyzer-1.0.9",{"$f":"sel_country_code","v":"DEU"},"Hydrogen (AEL)",{"$f":"_calc!$B$893","v":"UKR"},{"$f":"_calc!$BO$827","v":"COST-OPEX"},{"$f":"_calc!$BW$1","v":"Heat"},{"$f":"_calc!$BW$893","v":0}]
[{"$f":"_xlfn.TEXTJOIN(\",\",FALSE,output[[#This Row],[scenario]:[process_class]])","v":"PTX-BusinessOpportunityAnalyzer-1.0.9,DEU,Hydrogen (AEL),UKR,COST-OPEX,Electricity and H2 storage"},"PTX-BusinessOpportunityAnalyzer-1.0.9",{"$f":"sel_country_code","v":"DEU"},"Hydrogen (AEL)",{"$f":"_calc!$B$893","v":"UKR"},{"$f":"_calc!$BO$827","v":"COST-OPEX"},{"$f":"_calc!$BX$1","v":"Electricity and H2 storage"},{"$f":"_calc!$BX$893","v":2.8037928516212558}]
[{"$f":"_xlfn.TEXTJOIN(\",\",FALSE,output[[#This Row],[scenario]:[process_class]])","v":"PTX-BusinessOpportunityAnalyzer-1.0.9,DEU,Hydrogen (AEL),URY,COST-OPEX,Water"},"PTX-BusinessOpportunityAnalyzer-1.0.9",{"$f":"sel_country_code","v":"DEU"},"Hydrogen (AEL)",{"$f":"_calc!$B$894","v":"URY"},{"$f":"_calc!$BO$827","v":"COST-OPEX"},{"$f":"_calc!$BP$1","v":"Water"},{"$f":"_calc!$BP$894","v":3.8937922268845231E-2}]
[{"$f":"_xlfn.TEXTJOIN(\",\",FALSE,output[[#This Row],[scenario]:[process_class]])","v":"PTX-BusinessOpportunityAnalyzer-1.0.9,DEU,Hydrogen (AEL),URY,COST-OPEX,Electrolysis"},"PTX-BusinessOpportunityAnalyzer-1.0.9",{"$f":"sel_country_code","v":"DEU"},"Hydrogen (AEL)",{"$f":"_calc!$B$894","v":"URY"},{"$f":"_calc!$BO$827","v":"COST-OPEX"},{"$f":"_calc!$BQ$1","v":"Electrolysis"},{"$f":"_calc!$BQ$894","v":3.2768892269837071}]
[{"$f":"_xlfn.TEXTJOIN(\",\",FALSE,output[[#This Row],[scenario]:[process_class]])","v":"PTX-BusinessOpportunityAnalyzer-1.0.9,DEU,Hydrogen (AEL),URY,COST-OPEX,Electricity generation"},"PTX-BusinessOpportunityAnalyzer-1.0.9",{"$f":"sel_country_code","v":"DEU"},"Hydrogen (AEL)",{"$f":"_calc!$B$894","v":"URY"},{"$f":"_calc!$BO$827","v":"COST-OPEX"},{"$f":"_calc!$BR$1","v":"Electricity generation"},{"$f":"_calc!$BR$894","v":12.262247445241981}]
[{"$f":"_xlfn.TEXTJOIN(\",\",FALSE,output[[#This Row],[scenario]:[process_class]])","v":"PTX-BusinessOpportunityAnalyzer-1.0.9,DEU,Hydrogen (AEL),URY,COST-OPEX,Transportation (Pipeline)"},"PTX-BusinessOpportunityAnalyzer-1.0.9",{"$f":"sel_country_code","v":"DEU"},"Hydrogen (AEL)",{"$f":"_calc!$B$894","v":"URY"},{"$f":"_calc!$BO$827","v":"COST-OPEX"},{"$f":"_calc!$BS$1","v":"Transportation (Pipeline)"},{"$f":"_calc!$BS$894","v":0}]
[{"$f":"_xlfn.TEXTJOIN(\",\",FALSE,output[[#This Row],[scenario]:[process_class]])","v":"PTX-BusinessOpportunityAnalyzer-1.0.9,DEU,Hydrogen (AEL),URY,COST-OPEX,Transportation (Ship)"},"PTX-BusinessOpportunityAnalyzer-1.0.9",{"$f":"sel_country_code","v":"DEU"},"Hydrogen (AEL)",{"$f":"_calc!$B$894","v":"URY"},{"$f":"_calc!$BO$827","v":"COST-OPEX"},{"$f":"_calc!$BT$1","v":"Transportation (Ship)"},{"$f":"_calc!$BT$894","v":41.162394931534969}]
[{"$f":"_xlfn.TEXTJOIN(\",\",FALSE,output[[#This Row],[scenario]:[process_class]])","v":"PTX-BusinessOpportunityAnalyzer-1.0.9,DEU,Hydrogen (AEL),URY,COST-OPEX,Carbon"},"PTX-BusinessOpportunityAnalyzer-1.0.9",{"$f":"sel_country_code","v":"DEU"},"Hydrogen (AEL)",{"$f":"_calc!$B$894","v":"URY"},{"$f":"_calc!$BO$827","v":"COST-OPEX"},{"$f":"_calc!$BU$1","v":"Carbon"},{"$f":"_calc!$BU$894","v":0}]
[{"$f":"_xlfn.TEXTJOIN(\",\",FALSE,output[[#This Row],[scenario]:[process_class]])","v":"PTX-BusinessOpportunityAnalyzer-1.0.9,DEU,Hydrogen (AEL),URY,COST-OPEX,Derivate production"},"PTX-BusinessOpportunityAnalyzer-1.0.9",{"$f":"sel_country_code","v":"DEU"},"Hydrogen (AEL)",{"$f":"_calc!$B$894","v":"URY"},{"$f":"_calc!$BO$827","v":"COST-OPEX"},{"$f":"_calc!$BV$1","v":"Derivate production"},{"$f":"_calc!$BV$894","v":0}]
[{"$f":"_xlfn.TEXTJOIN(\",\",FALSE,output[[#This Row],[scenario]:[process_class]])","v":"PTX-BusinessOpportunityAnalyzer-1.0.9,DEU,Hydrogen (AEL),URY,COST-OPEX,Heat"},"PTX-BusinessOpportunityAnalyzer-1.0.9",{"$f":"sel_country_code","v":"DEU"},"Hydrogen (AEL)",{"$f":"_calc!$B$894","v":"URY"},{"$f":"_calc!$BO$827","v":"COST-OPEX"},{"$f":"_calc!$BW$1","v":"Heat"},{"$f":"_calc!$BW$894","v":0}]
[{"$f":"_xlfn.TEXTJOIN(\",\",FALSE,output[[#This Row],[scenario]:[process_class]])","v":"PTX-BusinessOpportunityAnalyzer-1.0.9,DEU,Hydrogen (AEL),URY,COST-OPEX,Electricity and H2 storage"},"PTX-BusinessOpportunityAnalyzer-1.0.9",{"$f":"sel_country_code","v":"DEU"},"Hydrogen (AEL)",{"$f":"_calc!$B$894","v":"URY"},{"$f":"_calc!$BO$827","v":"COST-OPEX"},{"$f":"_calc!$BX$1","v":"Electricity and H2 storage"},{"$f":"_calc!$BX$894","v":3.5836652093164352}]
[{"$f":"_xlfn.TEXTJOIN(\",\",FALSE,output[[#This Row],[scenario]:[process_class]])","v":"PTX-BusinessOpportunityAnalyzer-1.0.9,DEU,Hydrogen (AEL),USA,COST-OPEX,Water"},"PTX-BusinessOpportunityAnalyzer-1.0.9",{"$f":"sel_country_code","v":"DEU"},"Hydrogen (AEL)",{"$f":"_calc!$B$895","v":"USA"},{"$f":"_calc!$BO$827","v":"COST-OPEX"},{"$f":"_calc!$BP$1","v":"Water"},{"$f":"_calc!$BP$895","v":3.7289434819766237E-2}]
[{"$f":"_xlfn.TEXTJOIN(\",\",FALSE,output[[#This Row],[scenario]:[process_class]])","v":"PTX-BusinessOpportunityAnalyzer-1.0.9,DEU,Hydrogen (AEL),USA,COST-OPEX,Electrolysis"},"PTX-BusinessOpportunityAnalyzer-1.0.9",{"$f":"sel_country_code","v":"DEU"},"Hydrogen (AEL)",{"$f":"_calc!$B$895","v":"USA"},{"$f":"_calc!$BO$827","v":"COST-OPEX"},{"$f":"_calc!$BQ$1","v":"Electrolysis"},{"$f":"_calc!$BQ$895","v":3.1365160023800507}]
[{"$f":"_xlfn.TEXTJOIN(\",\",FALSE,output[[#This Row],[scenario]:[process_class]])","v":"PTX-BusinessOpportunityAnalyzer-1.0.9,DEU,Hydrogen (AEL),USA,COST-OPEX,Electricity generation"},"PTX-BusinessOpportunityAnalyzer-1.0.9",{"$f":"sel_country_code","v":"DEU"},"Hydrogen (AEL)",{"$f":"_calc!$B$895","v":"USA"},{"$f":"_calc!$BO$827","v":"COST-OPEX"},{"$f":"_calc!$BR$1","v":"Electricity generation"},{"$f":"_calc!$BR$895","v":8.4272387917074845}]
[{"$f":"_xlfn.TEXTJOIN(\",\",FALSE,output[[#This Row],[scenario]:[process_class]])","v":"PTX-BusinessOpportunityAnalyzer-1.0.9,DEU,Hydrogen (AEL),USA,COST-OPEX,Transportation (Pipeline)"},"PTX-BusinessOpportunityAnalyzer-1.0.9",{"$f":"sel_country_code","v":"DEU"},"Hydrogen (AEL)",{"$f":"_calc!$B$895","v":"USA"},{"$f":"_calc!$BO$827","v":"COST-OPEX"},{"$f":"_calc!$BS$1","v":"Transportation (Pipeline)"},{"$f":"_calc!$BS$895","v":0}]
[{"$f":"_xlfn.TEXTJOIN(\",\",FALSE,output[[#This Row],[scenario]:[process_class]])","v":"PTX-BusinessOpportunityAnalyzer-1.0.9,DEU,Hydrogen (AEL),USA,COST-OPEX,Transportation (Ship)"},"PTX-BusinessOpportunityAnalyzer-1.0.9",{"$f":"sel_country_code","v":"DEU"},"Hydrogen (AEL)",{"$f":"_calc!$B$895","v":"USA"},{"$f":"_calc!$BO$827","v":"COST-OPEX"},{"$f":"_calc!$BT$1","v":"Transportation (Ship)"},{"$f":"_calc!$BT$895","v":32.624982433227977}]
[{"$f":"_xlfn.TEXTJOIN(\",\",FALSE,output[[#This Row],[scenario]:[process_class]])","v":"PTX-BusinessOpportunityAnalyzer-1.0.9,DEU,Hydrogen (AEL),USA,COST-OPEX,Carbon"},"PTX-BusinessOpportunityAnalyzer-1.0.9",{"$f":"sel_country_code","v":"DEU"},"Hydrogen (AEL)",{"$f":"_calc!$B$895","v":"USA"},{"$f":"_calc!$BO$827","v":"COST-OPEX"},{"$f":"_calc!$BU$1","v":"Carbon"},{"$f":"_calc!$BU$895","v":0}]
[{"$f":"_xlfn.TEXTJOIN(\",\",FALSE,output[[#This Row],[scenario]:[process_class]])","v":"PTX-BusinessOpportunityAnalyzer-1.0.9,DEU,Hydrogen (AEL),USA,COST-OPEX,Derivate production"},"PTX-BusinessOpportunityAnalyzer-1.0.9",{"$f":"sel_country_code","v":"DEU"},"Hydrogen (AEL)",{"$f":"_calc!$B$895","v":"USA"},{"$f":"_calc!$BO$827","v":"COST-OPEX"},{"$f":"_calc!$BV$1","v":"Derivate production"},{"$f":"_calc!$BV$895","v":0}]
[{"$f":"_xlfn.TEXTJOIN(\",\",FALSE,output[[#This Row],[scenario]:[process_class]])","v":"PTX-BusinessOpportunityAnalyzer-1.0.9,DEU,Hydrogen (AEL),USA,COST-OPEX,Heat"},"PTX-BusinessOpportunityAnalyzer-1.0.9",{"$f":"sel_country_code","v":"DEU"},"Hydrogen (AEL)",{"$f":"_calc!$B$895","v":"USA"},{"$f":"_calc!$BO$827","v":"COST-OPEX"},{"$f":"_calc!$BW$1","v":"Heat"},{"$f":"_calc!$BW$895","v":0}]
[{"$f":"_xlfn.TEXTJOIN(\",\",FALSE,output[[#This Row],[scenario]:[process_class]])","v":"PTX-BusinessOpportunityAnalyzer-1.0.9,DEU,Hydrogen (AEL),USA,COST-OPEX,Electricity and H2 storage"},"PTX-BusinessOpportunityAnalyzer-1.0.9",{"$f":"sel_country_code","v":"DEU"},"Hydrogen (AEL)",{"$f":"_calc!$B$895","v":"USA"},{"$f":"_calc!$BO$827","v":"COST-OPEX"},{"$f":"_calc!$BX$1","v":"Electricity and H2 storage"},{"$f":"_calc!$BX$895","v":2.2376496445429921}]
[{"$f":"_xlfn.TEXTJOIN(\",\",FALSE,output[[#This Row],[scenario]:[process_class]])","v":"PTX-BusinessOpportunityAnalyzer-1.0.9,DEU,Hydrogen (AEL),VNM,COST-OPEX,Water"},"PTX-BusinessOpportunityAnalyzer-1.0.9",{"$f":"sel_country_code","v":"DEU"},"Hydrogen (AEL)",{"$f":"_calc!$B$896","v":"VNM"},{"$f":"_calc!$BO$827","v":"COST-OPEX"},{"$f":"_calc!$BP$1","v":"Water"},{"$f":"_calc!$BP$896","v":4.1416982013281235E-2}]
[{"$f":"_xlfn.TEXTJOIN(\",\",FALSE,output[[#This Row],[scenario]:[process_class]])","v":"PTX-BusinessOpportunityAnalyzer-1.0.9,DEU,Hydrogen (AEL),VNM,COST-OPEX,Electrolysis"},"PTX-BusinessOpportunityAnalyzer-1.0.9",{"$f":"sel_country_code","v":"DEU"},"Hydrogen (AEL)",{"$f":"_calc!$B$896","v":"VNM"},{"$f":"_calc!$BO$827","v":"COST-OPEX"},{"$f":"_calc!$BQ$1","v":"Electrolysis"},{"$f":"_calc!$BQ$896","v":4.0059925198648783}]
[{"$f":"_xlfn.TEXTJOIN(\",\",FALSE,output[[#This Row],[scenario]:[process_class]])","v":"PTX-BusinessOpportunityAnalyzer-1.0.9,DEU,Hydrogen (AEL),VNM,COST-OPEX,Electricity generation"},"PTX-BusinessOpportunityAnalyzer-1.0.9",{"$f":"sel_country_code","v":"DEU"},"Hydrogen (AEL)",{"$f":"_calc!$B$896","v":"VNM"},{"$f":"_calc!$BO$827","v":"COST-OPEX"},{"$f":"_calc!$BR$1","v":"Electricity generation"},{"$f":"_calc!$BR$896","v":13.60096810377955}]
[{"$f":"_xlfn.TEXTJOIN(\",\",FALSE,output[[#This Row],[scenario]:[process_class]])","v":"PTX-BusinessOpportunityAnalyzer-1.0.9,DEU,Hydrogen (AEL),VNM,COST-OPEX,Transportation (Pipeline)"},"PTX-BusinessOpportunityAnalyzer-1.0.9",{"$f":"sel_country_code","v":"DEU"},"Hydrogen (AEL)",{"$f":"_calc!$B$896","v":"VNM"},{"$f":"_calc!$BO$827","v":"COST-OPEX"},{"$f":"_calc!$BS$1","v":"Transportation (Pipeline)"},{"$f":"_calc!$BS$896","v":0}]
[{"$f":"_xlfn.TEXTJOIN(\",\",FALSE,output[[#This Row],[scenario]:[process_class]])","v":"PTX-BusinessOpportunityAnalyzer-1.0.9,DEU,Hydrogen (AEL),VNM,COST-OPEX,Transportation (Ship)"},"PTX-BusinessOpportunityAnalyzer-1.0.9",{"$f":"sel_country_code","v":"DEU"},"Hydrogen (AEL)",{"$f":"_calc!$B$896","v":"VNM"},{"$f":"_calc!$BO$827","v":"COST-OPEX"},{"$f":"_calc!$BT$1","v":"Transportation (Ship)"},{"$f":"_calc!$BT$896","v":55.355569752518399}]
[{"$f":"_xlfn.TEXTJOIN(\",\",FALSE,output[[#This Row],[scenario]:[process_class]])","v":"PTX-BusinessOpportunityAnalyzer-1.0.9,DEU,Hydrogen (AEL),VNM,COST-OPEX,Carbon"},"PTX-BusinessOpportunityAnalyzer-1.0.9",{"$f":"sel_country_code","v":"DEU"},"Hydrogen (AEL)",{"$f":"_calc!$B$896","v":"VNM"},{"$f":"_calc!$BO$827","v":"COST-OPEX"},{"$f":"_calc!$BU$1","v":"Carbon"},{"$f":"_calc!$BU$896","v":0}]
[{"$f":"_xlfn.TEXTJOIN(\",\",FALSE,output[[#This Row],[scenario]:[process_class]])","v":"PTX-BusinessOpportunityAnalyzer-1.0.9,DEU,Hydrogen (AEL),VNM,COST-OPEX,Derivate production"},"PTX-BusinessOpportunityAnalyzer-1.0.9",{"$f":"sel_country_code","v":"DEU"},"Hydrogen (AEL)",{"$f":"_calc!$B$896","v":"VNM"},{"$f":"_calc!$BO$827","v":"COST-OPEX"},{"$f":"_calc!$BV$1","v":"Derivate production"},{"$f":"_calc!$BV$896","v":0}]
[{"$f":"_xlfn.TEXTJOIN(\",\",FALSE,output[[#This Row],[scenario]:[process_class]])","v":"PTX-BusinessOpportunityAnalyzer-1.0.9,DEU,Hydrogen (AEL),VNM,COST-OPEX,Heat"},"PTX-BusinessOpportunityAnalyzer-1.0.9",{"$f":"sel_country_code","v":"DEU"},"Hydrogen (AEL)",{"$f":"_calc!$B$896","v":"VNM"},{"$f":"_calc!$BO$827","v":"COST-OPEX"},{"$f":"_calc!$BW$1","v":"Heat"},{"$f":"_calc!$BW$896","v":0}]
[{"$f":"_xlfn.TEXTJOIN(\",\",FALSE,output[[#This Row],[scenario]:[process_class]])","v":"PTX-BusinessOpportunityAnalyzer-1.0.9,DEU,Hydrogen (AEL),VNM,COST-OPEX,Electricity and H2 storage"},"PTX-BusinessOpportunityAnalyzer-1.0.9",{"$f":"sel_country_code","v":"DEU"},"Hydrogen (AEL)",{"$f":"_calc!$B$896","v":"VNM"},{"$f":"_calc!$BO$827","v":"COST-OPEX"},{"$f":"_calc!$BX$1","v":"Electricity and H2 storage"},{"$f":"_calc!$BX$896","v":4.3698414487957766}]
[{"$f":"_xlfn.TEXTJOIN(\",\",FALSE,output[[#This Row],[scenario]:[process_class]])","v":"PTX-BusinessOpportunityAnalyzer-1.0.9,DEU,Hydrogen (AEL),ZAF,COST-OPEX,Water"},"PTX-BusinessOpportunityAnalyzer-1.0.9",{"$f":"sel_country_code","v":"DEU"},"Hydrogen (AEL)",{"$f":"_calc!$B$897","v":"ZAF"},{"$f":"_calc!$BO$827","v":"COST-OPEX"},{"$f":"_calc!$BP$1","v":"Water"},{"$f":"_calc!$BP$897","v":3.8631702005585945E-2}]
[{"$f":"_xlfn.TEXTJOIN(\",\",FALSE,output[[#This Row],[scenario]:[process_class]])","v":"PTX-BusinessOpportunityAnalyzer-1.0.9,DEU,Hydrogen (AEL),ZAF,COST-OPEX,Electrolysis"},"PTX-BusinessOpportunityAnalyzer-1.0.9",{"$f":"sel_country_code","v":"DEU"},"Hydrogen (AEL)",{"$f":"_calc!$B$897","v":"ZAF"},{"$f":"_calc!$BO$827","v":"COST-OPEX"},{"$f":"_calc!$BQ$1","v":"Electrolysis"},{"$f":"_calc!$BQ$897","v":4.887765320407528}]
[{"$f":"_xlfn.TEXTJOIN(\",\",FALSE,output[[#This Row],[scenario]:[process_class]])","v":"PTX-BusinessOpportunityAnalyzer-1.0.9,DEU,Hydrogen (AEL),ZAF,COST-OPEX,Electricity generation"},"PTX-BusinessOpportunityAnalyzer-1.0.9",{"$f":"sel_country_code","v":"DEU"},"Hydrogen (AEL)",{"$f":"_calc!$B$897","v":"ZAF"},{"$f":"_calc!$BO$827","v":"COST-OPEX"},{"$f":"_calc!$BR$1","v":"Electricity generation"},{"$f":"_calc!$BR$897","v":11.058550259230374}]
[{"$f":"_xlfn.TEXTJOIN(\",\",FALSE,output[[#This Row],[scenario]:[process_class]])","v":"PTX-BusinessOpportunityAnalyzer-1.0.9,DEU,Hydrogen (AEL),ZAF,COST-OPEX,Transportation (Pipeline)"},"PTX-BusinessOpportunityAnalyzer-1.0.9",{"$f":"sel_country_code","v":"DEU"},"Hydrogen (AEL)",{"$f":"_calc!$B$897","v":"ZAF"},{"$f":"_calc!$BO$827","v":"COST-OPEX"},{"$f":"_calc!$BS$1","v":"Transportation (Pipeline)"},{"$f":"_calc!$BS$897","v":0}]
[{"$f":"_xlfn.TEXTJOIN(\",\",FALSE,output[[#This Row],[scenario]:[process_class]])","v":"PTX-BusinessOpportunityAnalyzer-1.0.9,DEU,Hydrogen (AEL),ZAF,COST-OPEX,Transportation (Ship)"},"PTX-BusinessOpportunityAnalyzer-1.0.9",{"$f":"sel_country_code","v":"DEU"},"Hydrogen (AEL)",{"$f":"_calc!$B$897","v":"ZAF"},{"$f":"_calc!$BO$827","v":"COST-OPEX"},{"$f":"_calc!$BT$1","v":"Transportation (Ship)"},{"$f":"_calc!$BT$897","v":47.862342709880146}]
[{"$f":"_xlfn.TEXTJOIN(\",\",FALSE,output[[#This Row],[scenario]:[process_class]])","v":"PTX-BusinessOpportunityAnalyzer-1.0.9,DEU,Hydrogen (AEL),ZAF,COST-OPEX,Carbon"},"PTX-BusinessOpportunityAnalyzer-1.0.9",{"$f":"sel_country_code","v":"DEU"},"Hydrogen (AEL)",{"$f":"_calc!$B$897","v":"ZAF"},{"$f":"_calc!$BO$827","v":"COST-OPEX"},{"$f":"_calc!$BU$1","v":"Carbon"},{"$f":"_calc!$BU$897","v":0}]
[{"$f":"_xlfn.TEXTJOIN(\",\",FALSE,output[[#This Row],[scenario]:[process_class]])","v":"PTX-BusinessOpportunityAnalyzer-1.0.9,DEU,Hydrogen (AEL),ZAF,COST-OPEX,Derivate production"},"PTX-BusinessOpportunityAnalyzer-1.0.9",{"$f":"sel_country_code","v":"DEU"},"Hydrogen (AEL)",{"$f":"_calc!$B$897","v":"ZAF"},{"$f":"_calc!$BO$827","v":"COST-OPEX"},{"$f":"_calc!$BV$1","v":"Derivate production"},{"$f":"_calc!$BV$897","v":0}]
[{"$f":"_xlfn.TEXTJOIN(\",\",FALSE,output[[#This Row],[scenario]:[process_class]])","v":"PTX-BusinessOpportunityAnalyzer-1.0.9,DEU,Hydrogen (AEL),ZAF,COST-OPEX,Heat"},"PTX-BusinessOpportunityAnalyzer-1.0.9",{"$f":"sel_country_code","v":"DEU"},"Hydrogen (AEL)",{"$f":"_calc!$B$897","v":"ZAF"},{"$f":"_calc!$BO$827","v":"COST-OPEX"},{"$f":"_calc!$BW$1","v":"Heat"},{"$f":"_calc!$BW$897","v":0}]
[{"$f":"_xlfn.TEXTJOIN(\",\",FALSE,output[[#This Row],[scenario]:[process_class]])","v":"PTX-BusinessOpportunityAnalyzer-1.0.9,DEU,Hydrogen (AEL),ZAF,COST-OPEX,Electricity and H2 storage"},"PTX-BusinessOpportunityAnalyzer-1.0.9",{"$f":"sel_country_code","v":"DEU"},"Hydrogen (AEL)",{"$f":"_calc!$B$897","v":"ZAF"},{"$f":"_calc!$BO$827","v":"COST-OPEX"},{"$f":"_calc!$BX$1","v":"Electricity and H2 storage"},{"$f":"_calc!$BX$897","v":3.6945066932612973}]
[{"$f":"_xlfn.TEXTJOIN(\",\",FALSE,output[[#This Row],[scenario]:[process_class]])","v":"PTX-BusinessOpportunityAnalyzer-1.0.9,DEU,Hydrogen (AEL),ZAF-EC,COST-OPEX,Water"},"PTX-BusinessOpportunityAnalyzer-1.0.9",{"$f":"sel_country_code","v":"DEU"},"Hydrogen (AEL)",{"$f":"_calc!$B$898","v":"ZAF-EC"},{"$f":"_calc!$BO$827","v":"COST-OPEX"},{"$f":"_calc!$BP$1","v":"Water"},{"$f":"_calc!$BP$898","v":3.8631702005585945E-2}]
[{"$f":"_xlfn.TEXTJOIN(\",\",FALSE,output[[#This Row],[scenario]:[process_class]])","v":"PTX-BusinessOpportunityAnalyzer-1.0.9,DEU,Hydrogen (AEL),ZAF-EC,COST-OPEX,Electrolysis"},"PTX-BusinessOpportunityAnalyzer-1.0.9",{"$f":"sel_country_code","v":"DEU"},"Hydrogen (AEL)",{"$f":"_calc!$B$898","v":"ZAF-EC"},{"$f":"_calc!$BO$827","v":"COST-OPEX"},{"$f":"_calc!$BQ$1","v":"Electrolysis"},{"$f":"_calc!$BQ$898","v":3.2729362605272247}]
[{"$f":"_xlfn.TEXTJOIN(\",\",FALSE,output[[#This Row],[scenario]:[process_class]])","v":"PTX-BusinessOpportunityAnalyzer-1.0.9,DEU,Hydrogen (AEL),ZAF-EC,COST-OPEX,Electricity generation"},"PTX-BusinessOpportunityAnalyzer-1.0.9",{"$f":"sel_country_code","v":"DEU"},"Hydrogen (AEL)",{"$f":"_calc!$B$898","v":"ZAF-EC"},{"$f":"_calc!$BO$827","v":"COST-OPEX"},{"$f":"_calc!$BR$1","v":"Electricity generation"},{"$f":"_calc!$BR$898","v":9.1635230397212251}]
[{"$f":"_xlfn.TEXTJOIN(\",\",FALSE,output[[#This Row],[scenario]:[process_class]])","v":"PTX-BusinessOpportunityAnalyzer-1.0.9,DEU,Hydrogen (AEL),ZAF-EC,COST-OPEX,Transportation (Pipeline)"},{"$f":"output_scenario_name","v":"PTX-BusinessOpportunityAnalyzer-1.0.9"},{"$f":"sel_country_code","v":"DEU"},{"$f":"sel_chain","v":"Hydrogen (AEL)"},{"$f":"_calc!$B$898","v":"ZAF-EC"},{"$f":"_calc!$BO$827","v":"COST-OPEX"},{"$f":"_calc!$BS$1","v":"Transportation (Pipeline)"},{"$f":"_calc!$BS$898","v":0}]
[{"$f":"_xlfn.TEXTJOIN(\",\",FALSE,output[[#This Row],[scenario]:[process_class]])","v":"PTX-BusinessOpportunityAnalyzer-1.0.9,DEU,Hydrogen (AEL),ZAF-EC,COST-OPEX,Transportation (Ship)"},"PTX-BusinessOpportunityAnalyzer-1.0.9",{"$f":"sel_country_code","v":"DEU"},"Hydrogen (AEL)",{"$f":"_calc!$B$898","v":"ZAF-EC"},{"$f":"_calc!$BO$827","v":"COST-OPEX"},{"$f":"_calc!$BT$1","v":"Transportation (Ship)"},{"$f":"_calc!$BT$898","v":40.072435998678536}]
[{"$f":"_xlfn.TEXTJOIN(\",\",FALSE,output[[#This Row],[scenario]:[process_class]])","v":"PTX-BusinessOpportunityAnalyzer-1.0.9,DEU,Hydrogen (AEL),ZAF-EC,COST-OPEX,Carbon"},"PTX-BusinessOpportunityAnalyzer-1.0.9",{"$f":"sel_country_code","v":"DEU"},"Hydrogen (AEL)",{"$f":"_calc!$B$898","v":"ZAF-EC"},{"$f":"_calc!$BO$827","v":"COST-OPEX"},{"$f":"_calc!$BU$1","v":"Carbon"},{"$f":"_calc!$BU$898","v":0}]
[{"$f":"_xlfn.TEXTJOIN(\",\",FALSE,output[[#This Row],[scenario]:[process_class]])","v":"PTX-BusinessOpportunityAnalyzer-1.0.9,DEU,Hydrogen (AEL),ZAF-EC,COST-OPEX,Derivate production"},"PTX-BusinessOpportunityAnalyzer-1.0.9",{"$f":"sel_country_code","v":"DEU"},"Hydrogen (AEL)",{"$f":"_calc!$B$898","v":"ZAF-EC"},{"$f":"_calc!$BO$827","v":"COST-OPEX"},{"$f":"_calc!$BV$1","v":"Derivate production"},{"$f":"_calc!$BV$898","v":0}]
[{"$f":"_xlfn.TEXTJOIN(\",\",FALSE,output[[#This Row],[scenario]:[process_class]])","v":"PTX-BusinessOpportunityAnalyzer-1.0.9,DEU,Hydrogen (AEL),ZAF-EC,COST-OPEX,Heat"},"PTX-BusinessOpportunityAnalyzer-1.0.9",{"$f":"sel_country_code","v":"DEU"},"Hydrogen (AEL)",{"$f":"_calc!$B$898","v":"ZAF-EC"},{"$f":"_calc!$BO$827","v":"COST-OPEX"},{"$f":"_calc!$BW$1","v":"Heat"},{"$f":"_calc!$BW$898","v":0}]
[{"$f":"_xlfn.TEXTJOIN(\",\",FALSE,output[[#This Row],[scenario]:[process_class]])","v":"PTX-BusinessOpportunityAnalyzer-1.0.9,DEU,Hydrogen (AEL),ZAF-EC,COST-OPEX,Electricity and H2 storage"},"PTX-BusinessOpportunityAnalyzer-1.0.9",{"$f":"sel_country_code","v":"DEU"},"Hydrogen (AEL)",{"$f":"_calc!$B$898","v":"ZAF-EC"},{"$f":"_calc!$BO$827","v":"COST-OPEX"},{"$f":"_calc!$BX$1","v":"Electricity and H2 storage"},{"$f":"_calc!$BX$898","v":2.8831993305506347}]
[{"$f":"_xlfn.TEXTJOIN(\",\",FALSE,output[[#This Row],[scenario]:[process_class]])","v":"PTX-BusinessOpportunityAnalyzer-1.0.9,DEU,Hydrogen (AEL),ZAF-FRS,COST-OPEX,Water"},"PTX-BusinessOpportunityAnalyzer-1.0.9",{"$f":"sel_country_code","v":"DEU"},"Hydrogen (AEL)",{"$f":"_calc!$B$899","v":"ZAF-FRS"},{"$f":"_calc!$BO$827","v":"COST-OPEX"},{"$f":"_calc!$BP$1","v":"Water"},{"$f":"_calc!$BP$899","v":3.8631702005585945E-2}]
[{"$f":"_xlfn.TEXTJOIN(\",\",FALSE,output[[#This Row],[scenario]:[process_class]])","v":"PTX-BusinessOpportunityAnalyzer-1.0.9,DEU,Hydrogen (AEL),ZAF-FRS,COST-OPEX,Electrolysis"},"PTX-BusinessOpportunityAnalyzer-1.0.9",{"$f":"sel_country_code","v":"DEU"},"Hydrogen (AEL)",{"$f":"_calc!$B$899","v":"ZAF-FRS"},{"$f":"_calc!$BO$827","v":"COST-OPEX"},{"$f":"_calc!$BQ$1","v":"Electrolysis"},{"$f":"_calc!$BQ$899","v":4.0000577847321193}]
[{"$f":"_xlfn.TEXTJOIN(\",\",FALSE,output[[#This Row],[scenario]:[process_class]])","v":"PTX-BusinessOpportunityAnalyzer-1.0.9,DEU,Hydrogen (AEL),ZAF-FRS,COST-OPEX,Electricity generation"},"PTX-BusinessOpportunityAnalyzer-1.0.9",{"$f":"sel_country_code","v":"DEU"},"Hydrogen (AEL)",{"$f":"_calc!$B$899","v":"ZAF-FRS"},{"$f":"_calc!$BO$827","v":"COST-OPEX"},{"$f":"_calc!$BR$1","v":"Electricity generation"},{"$f":"_calc!$BR$899","v":10.950727127388326}]
[{"$f":"_xlfn.TEXTJOIN(\",\",FALSE,output[[#This Row],[scenario]:[process_class]])","v":"PTX-BusinessOpportunityAnalyzer-1.0.9,DEU,Hydrogen (AEL),ZAF-FRS,COST-OPEX,Transportation (Pipeline)"},"PTX-BusinessOpportunityAnalyzer-1.0.9",{"$f":"sel_country_code","v":"DEU"},"Hydrogen (AEL)",{"$f":"_calc!$B$899","v":"ZAF-FRS"},{"$f":"_calc!$BO$827","v":"COST-OPEX"},{"$f":"_calc!$BS$1","v":"Transportation (Pipeline)"},{"$f":"_calc!$BS$899","v":0}]
[{"$f":"_xlfn.TEXTJOIN(\",\",FALSE,output[[#This Row],[scenario]:[process_class]])","v":"PTX-BusinessOpportunityAnalyzer-1.0.9,DEU,Hydrogen (AEL),ZAF-FRS,COST-OPEX,Transportation (Ship)"},"PTX-BusinessOpportunityAnalyzer-1.0.9",{"$f":"sel_country_code","v":"DEU"},"Hydrogen (AEL)",{"$f":"_calc!$B$899","v":"ZAF-FRS"},{"$f":"_calc!$BO$827","v":"COST-OPEX"},{"$f":"_calc!$BT$1","v":"Transportation (Ship)"},{"$f":"_calc!$BT$899","v":43.618880208626898}]
[{"$f":"_xlfn.TEXTJOIN(\",\",FALSE,output[[#This Row],[scenario]:[process_class]])","v":"PTX-BusinessOpportunityAnalyzer-1.0.9,DEU,Hydrogen (AEL),ZAF-FRS,COST-OPEX,Carbon"},"PTX-BusinessOpportunityAnalyzer-1.0.9",{"$f":"sel_country_code","v":"DEU"},"Hydrogen (AEL)",{"$f":"_calc!$B$899","v":"ZAF-FRS"},{"$f":"_calc!$BO$827","v":"COST-OPEX"},{"$f":"_calc!$BU$1","v":"Carbon"},{"$f":"_calc!$BU$899","v":0}]
[{"$f":"_xlfn.TEXTJOIN(\",\",FALSE,output[[#This Row],[scenario]:[process_class]])","v":"PTX-BusinessOpportunityAnalyzer-1.0.9,DEU,Hydrogen (AEL),ZAF-FRS,COST-OPEX,Derivate production"},"PTX-BusinessOpportunityAnalyzer-1.0.9",{"$f":"sel_country_code","v":"DEU"},"Hydrogen (AEL)",{"$f":"_calc!$B$899","v":"ZAF-FRS"},{"$f":"_calc!$BO$827","v":"COST-OPEX"},{"$f":"_calc!$BV$1","v":"Derivate production"},{"$f":"_calc!$BV$899","v":0}]
[{"$f":"_xlfn.TEXTJOIN(\",\",FALSE,output[[#This Row],[scenario]:[process_class]])","v":"PTX-BusinessOpportunityAnalyzer-1.0.9,DEU,Hydrogen (AEL),ZAF-FRS,COST-OPEX,Heat"},"PTX-BusinessOpportunityAnalyzer-1.0.9",{"$f":"sel_country_code","v":"DEU"},"Hydrogen (AEL)",{"$f":"_calc!$B$899","v":"ZAF-FRS"},{"$f":"_calc!$BO$827","v":"COST-OPEX"},{"$f":"_calc!$BW$1","v":"Heat"},{"$f":"_calc!$BW$899","v":0}]
[{"$f":"_xlfn.TEXTJOIN(\",\",FALSE,output[[#This Row],[scenario]:[process_class]])","v":"PTX-BusinessOpportunityAnalyzer-1.0.9,DEU,Hydrogen (AEL),ZAF-FRS,COST-OPEX,Electricity and H2 storage"},"PTX-BusinessOpportunityAnalyzer-1.0.9",{"$f":"sel_country_code","v":"DEU"},"Hydrogen (AEL)",{"$f":"_calc!$B$899","v":"ZAF-FRS"},{"$f":"_calc!$BO$827","v":"COST-OPEX"},{"$f":"_calc!$BX$1","v":"Electricity and H2 storage"},{"$f":"_calc!$BX$899","v":3.4643886211612993}]
[{"$f":"_xlfn.TEXTJOIN(\",\",FALSE,output[[#This Row],[scenario]:[process_class]])","v":"PTX-BusinessOpportunityAnalyzer-1.0.9,DEU,Hydrogen (AEL),ZAF-GAU,COST-OPEX,Water"},"PTX-BusinessOpportunityAnalyzer-1.0.9",{"$f":"sel_country_code","v":"DEU"},"Hydrogen (AEL)",{"$f":"_calc!$B$900","v":"ZAF-GAU"},{"$f":"_calc!$BO$827","v":"COST-OPEX"},{"$f":"_calc!$BP$1","v":"Water"},{"$f":"_calc!$BP$900","v":3.8631702005585945E-2}]
[{"$f":"_xlfn.TEXTJOIN(\",\",FALSE,output[[#This Row],[scenario]:[process_class]])","v":"PTX-BusinessOpportunityAnalyzer-1.0.9,DEU,Hydrogen (AEL),ZAF-GAU,COST-OPEX,Electrolysis"},"PTX-BusinessOpportunityAnalyzer-1.0.9",{"$f":"sel_country_code","v":"DEU"},"Hydrogen (AEL)",{"$f":"_calc!$B$900","v":"ZAF-GAU"},{"$f":"_calc!$BO$827","v":"COST-OPEX"},{"$f":"_calc!$BQ$1","v":"Electrolysis"},{"$f":"_calc!$BQ$900","v":4.831219048291751}]
[{"$f":"_xlfn.TEXTJOIN(\",\",FALSE,output[[#This Row],[scenario]:[process_class]])","v":"PTX-BusinessOpportunityAnalyzer-1.0.9,DEU,Hydrogen (AEL),ZAF-GAU,COST-OPEX,Electricity generation"},"PTX-BusinessOpportunityAnalyzer-1.0.9",{"$f":"sel_country_code","v":"DEU"},"Hydrogen (AEL)",{"$f":"_calc!$B$900","v":"ZAF-GAU"},{"$f":"_calc!$BO$827","v":"COST-OPEX"},{"$f":"_calc!$BR$1","v":"Electricity generation"},{"$f":"_calc!$BR$900","v":12.898878704339786}]
[{"$f":"_xlfn.TEXTJOIN(\",\",FALSE,output[[#This Row],[scenario]:[process_class]])","v":"PTX-BusinessOpportunityAnalyzer-1.0.9,DEU,Hydrogen (AEL),ZAF-GAU,COST-OPEX,Transportation (Pipeline)"},"PTX-BusinessOpportunityAnalyzer-1.0.9",{"$f":"sel_country_code","v":"DEU"},"Hydrogen (AEL)",{"$f":"_calc!$B$900","v":"ZAF-GAU"},{"$f":"_calc!$BO$827","v":"COST-OPEX"},{"$f":"_calc!$BS$1","v":"Transportation (Pipeline)"},{"$f":"_calc!$BS$900","v":0}]
[{"$f":"_xlfn.TEXTJOIN(\",\",FALSE,output[[#This Row],[scenario]:[process_class]])","v":"PTX-BusinessOpportunityAnalyzer-1.0.9,DEU,Hydrogen (AEL),ZAF-GAU,COST-OPEX,Transportation (Ship)"},"PTX-BusinessOpportunityAnalyzer-1.0.9",{"$f":"sel_country_code","v":"DEU"},"Hydrogen (AEL)",{"$f":"_calc!$B$900","v":"ZAF-GAU"},{"$f":"_calc!$BO$827","v":"COST-OPEX"},{"$f":"_calc!$BT$1","v":"Transportation (Ship)"},{"$f":"_calc!$BT$900","v":47.5219588428142}]
[{"$f":"_xlfn.TEXTJOIN(\",\",FALSE,output[[#This Row],[scenario]:[process_class]])","v":"PTX-BusinessOpportunityAnalyzer-1.0.9,DEU,Hydrogen (AEL),ZAF-GAU,COST-OPEX,Carbon"},"PTX-BusinessOpportunityAnalyzer-1.0.9",{"$f":"sel_country_code","v":"DEU"},"Hydrogen (AEL)",{"$f":"_calc!$B$900","v":"ZAF-GAU"},{"$f":"_calc!$BO$827","v":"COST-OPEX"},{"$f":"_calc!$BU$1","v":"Carbon"},{"$f":"_calc!$BU$900","v":0}]
[{"$f":"_xlfn.TEXTJOIN(\",\",FALSE,output[[#This Row],[scenario]:[process_class]])","v":"PTX-BusinessOpportunityAnalyzer-1.0.9,DEU,Hydrogen (AEL),ZAF-GAU,COST-OPEX,Derivate production"},"PTX-BusinessOpportunityAnalyzer-1.0.9",{"$f":"sel_country_code","v":"DEU"},"Hydrogen (AEL)",{"$f":"_calc!$B$900","v":"ZAF-GAU"},{"$f":"_calc!$BO$827","v":"COST-OPEX"},{"$f":"_calc!$BV$1","v":"Derivate production"},{"$f":"_calc!$BV$900","v":0}]
[{"$f":"_xlfn.TEXTJOIN(\",\",FALSE,output[[#This Row],[scenario]:[process_class]])","v":"PTX-BusinessOpportunityAnalyzer-1.0.9,DEU,Hydrogen (AEL),ZAF-GAU,COST-OPEX,Heat"},"PTX-BusinessOpportunityAnalyzer-1.0.9",{"$f":"sel_country_code","v":"DEU"},"Hydrogen (AEL)",{"$f":"_calc!$B$900","v":"ZAF-GAU"},{"$f":"_calc!$BO$827","v":"COST-OPEX"},{"$f":"_calc!$BW$1","v":"Heat"},{"$f":"_calc!$BW$900","v":0}]
[{"$f":"_xlfn.TEXTJOIN(\",\",FALSE,output[[#This Row],[scenario]:[process_class]])","v":"PTX-BusinessOpportunityAnalyzer-1.0.9,DEU,Hydrogen (AEL),ZAF-GAU,COST-OPEX,Electricity and H2 storage"},"PTX-BusinessOpportunityAnalyzer-1.0.9",{"$f":"sel_country_code","v":"DEU"},"Hydrogen (AEL)",{"$f":"_calc!$B$900","v":"ZAF-GAU"},{"$f":"_calc!$BO$827","v":"COST-OPEX"},{"$f":"_calc!$BX$1","v":"Electricity and H2 storage"},{"$f":"_calc!$BX$900","v":4.1068300179854393}]
[{"$f":"_xlfn.TEXTJOIN(\",\",FALSE,output[[#This Row],[scenario]:[process_class]])","v":"PTX-BusinessOpportunityAnalyzer-1.0.9,DEU,Hydrogen (AEL),ZAF-KWA,COST-OPEX,Water"},"PTX-BusinessOpportunityAnalyzer-1.0.9",{"$f":"sel_country_code","v":"DEU"},"Hydrogen (AEL)",{"$f":"_calc!$B$901","v":"ZAF-KWA"},{"$f":"_calc!$BO$827","v":"COST-OPEX"},{"$f":"_calc!$BP$1","v":"Water"},{"$f":"_calc!$BP$901","v":3.8631702005585945E-2}]
[{"$f":"_xlfn.TEXTJOIN(\",\",FALSE,output[[#This Row],[scenario]:[process_class]])","v":"PTX-BusinessOpportunityAnalyzer-1.0.9,DEU,Hydrogen (AEL),ZAF-KWA,COST-OPEX,Electrolysis"},"PTX-BusinessOpportunityAnalyzer-1.0.9",{"$f":"sel_country_code","v":"DEU"},"Hydrogen (AEL)",{"$f":"_calc!$B$901","v":"ZAF-KWA"},{"$f":"_calc!$BO$827","v":"COST-OPEX"},{"$f":"_calc!$BQ$1","v":"Electrolysis"},{"$f":"_calc!$BQ$901","v":4.1687343650956254}]
[{"$f":"_xlfn.TEXTJOIN(\",\",FALSE,output[[#This Row],[scenario]:[process_class]])","v":"PTX-BusinessOpportunityAnalyzer-1.0.9,DEU,Hydrogen (AEL),ZAF-KWA,COST-OPEX,Electricity generation"},"PTX-BusinessOpportunityAnalyzer-1.0.9",{"$f":"sel_country_code","v":"DEU"},"Hydrogen (AEL)",{"$f":"_calc!$B$901","v":"ZAF-KWA"},{"$f":"_calc!$BO$827","v":"COST-OPEX"},{"$f":"_calc!$BR$1","v":"Electricity generation"},{"$f":"_calc!$BR$901","v":11.3540410797681}]
[{"$f":"_xlfn.TEXTJOIN(\",\",FALSE,output[[#This Row],[scenario]:[process_class]])","v":"PTX-BusinessOpportunityAnalyzer-1.0.9,DEU,Hydrogen (AEL),ZAF-KWA,COST-OPEX,Transportation (Pipeline)"},"PTX-BusinessOpportunityAnalyzer-1.0.9",{"$f":"sel_country_code","v":"DEU"},"Hydrogen (AEL)",{"$f":"_calc!$B$901","v":"ZAF-KWA"},{"$f":"_calc!$BO$827","v":"COST-OPEX"},{"$f":"_calc!$BS$1","v":"Transportation (Pipeline)"},{"$f":"_calc!$BS$901","v":0}]
[{"$f":"_xlfn.TEXTJOIN(\",\",FALSE,output[[#This Row],[scenario]:[process_class]])","v":"PTX-BusinessOpportunityAnalyzer-1.0.9,DEU,Hydrogen (AEL),ZAF-KWA,COST-OPEX,Transportation (Ship)"},"PTX-BusinessOpportunityAnalyzer-1.0.9",{"$f":"sel_country_code","v":"DEU"},"Hydrogen (AEL)",{"$f":"_calc!$B$901","v":"ZAF-KWA"},{"$f":"_calc!$BO$827","v":"COST-OPEX"},{"$f":"_calc!$BT$1","v":"Transportation (Ship)"},{"$f":"_calc!$BT$901","v":44.456571728825658}]
[{"$f":"_xlfn.TEXTJOIN(\",\",FALSE,output[[#This Row],[scenario]:[process_class]])","v":"PTX-BusinessOpportunityAnalyzer-1.0.9,DEU,Hydrogen (AEL),ZAF-KWA,COST-OPEX,Carbon"},"PTX-BusinessOpportunityAnalyzer-1.0.9",{"$f":"sel_country_code","v":"DEU"},"Hydrogen (AEL)",{"$f":"_calc!$B$901","v":"ZAF-KWA"},{"$f":"_calc!$BO$827","v":"COST-OPEX"},{"$f":"_calc!$BU$1","v":"Carbon"},{"$f":"_calc!$BU$901","v":0}]
[{"$f":"_xlfn.TEXTJOIN(\",\",FALSE,output[[#This Row],[scenario]:[process_class]])","v":"PTX-BusinessOpportunityAnalyzer-1.0.9,DEU,Hydrogen (AEL),ZAF-KWA,COST-OPEX,Derivate production"},"PTX-BusinessOpportunityAnalyzer-1.0.9",{"$f":"sel_country_code","v":"DEU"},"Hydrogen (AEL)",{"$f":"_calc!$B$901","v":"ZAF-KWA"},{"$f":"_calc!$BO$827","v":"COST-OPEX"},{"$f":"_calc!$BV$1","v":"Derivate production"},{"$f":"_calc!$BV$901","v":0}]
[{"$f":"_xlfn.TEXTJOIN(\",\",FALSE,output[[#This Row],[scenario]:[process_class]])","v":"PTX-BusinessOpportunityAnalyzer-1.0.9,DEU,Hydrogen (AEL),ZAF-KWA,COST-OPEX,Heat"},"PTX-BusinessOpportunityAnalyzer-1.0.9",{"$f":"sel_country_code","v":"DEU"},"Hydrogen (AEL)",{"$f":"_calc!$B$901","v":"ZAF-KWA"},{"$f":"_calc!$BO$827","v":"COST-OPEX"},{"$f":"_calc!$BW$1","v":"Heat"},{"$f":"_calc!$BW$901","v":0}]
[{"$f":"_xlfn.TEXTJOIN(\",\",FALSE,output[[#This Row],[scenario]:[process_class]])","v":"PTX-BusinessOpportunityAnalyzer-1.0.9,DEU,Hydrogen (AEL),ZAF-KWA,COST-OPEX,Electricity and H2 storage"},"PTX-BusinessOpportunityAnalyzer-1.0.9",{"$f":"sel_country_code","v":"DEU"},"Hydrogen (AEL)",{"$f":"_calc!$B$901","v":"ZAF-KWA"},{"$f":"_calc!$BO$827","v":"COST-OPEX"},{"$f":"_calc!$BX$1","v":"Electricity and H2 storage"},{"$f":"_calc!$BX$901","v":3.59660489831785}]
[{"$f":"_xlfn.TEXTJOIN(\",\",FALSE,output[[#This Row],[scenario]:[process_class]])","v":"PTX-BusinessOpportunityAnalyzer-1.0.9,DEU,Hydrogen (AEL),ZAF-LIM,COST-OPEX,Water"},"PTX-BusinessOpportunityAnalyzer-1.0.9",{"$f":"sel_country_code","v":"DEU"},"Hydrogen (AEL)",{"$f":"_calc!$B$902","v":"ZAF-LIM"},{"$f":"_calc!$BO$827","v":"COST-OPEX"},{"$f":"_calc!$BP$1","v":"Water"},{"$f":"_calc!$BP$902","v":3.8631702005585945E-2}]
[{"$f":"_xlfn.TEXTJOIN(\",\",FALSE,output[[#This Row],[scenario]:[process_class]])","v":"PTX-BusinessOpportunityAnalyzer-1.0.9,DEU,Hydrogen (AEL),ZAF-LIM,COST-OPEX,Electrolysis"},"PTX-BusinessOpportunityAnalyzer-1.0.9",{"$f":"sel_country_code","v":"DEU"},"Hydrogen (AEL)",{"$f":"_calc!$B$902","v":"ZAF-LIM"},{"$f":"_calc!$BO$827","v":"COST-OPEX"},{"$f":"_calc!$BQ$1","v":"Electrolysis"},{"$f":"_calc!$BQ$902","v":4.2082961302103481}]
[{"$f":"_xlfn.TEXTJOIN(\",\",FALSE,output[[#This Row],[scenario]:[process_class]])","v":"PTX-BusinessOpportunityAnalyzer-1.0.9,DEU,Hydrogen (AEL),ZAF-LIM,COST-OPEX,Electricity generation"},"PTX-BusinessOpportunityAnalyzer-1.0.9",{"$f":"sel_country_code","v":"DEU"},"Hydrogen (AEL)",{"$f":"_calc!$B$902","v":"ZAF-LIM"},{"$f":"_calc!$BO$827","v":"COST-OPEX"},{"$f":"_calc!$BR$1","v":"Electricity generation"},{"$f":"_calc!$BR$902","v":11.448037688338948}]
[{"$f":"_xlfn.TEXTJOIN(\",\",FALSE,output[[#This Row],[scenario]:[process_class]])","v":"PTX-BusinessOpportunityAnalyzer-1.0.9,DEU,Hydrogen (AEL),ZAF-LIM,COST-OPEX,Transportation (Pipeline)"},"PTX-BusinessOpportunityAnalyzer-1.0.9",{"$f":"sel_country_code","v":"DEU"},"Hydrogen (AEL)",{"$f":"_calc!$B$902","v":"ZAF-LIM"},{"$f":"_calc!$BO$827","v":"COST-OPEX"},{"$f":"_calc!$BS$1","v":"Transportation (Pipeline)"},{"$f":"_calc!$BS$902","v":0}]
[{"$f":"_xlfn.TEXTJOIN(\",\",FALSE,output[[#This Row],[scenario]:[process_class]])","v":"PTX-BusinessOpportunityAnalyzer-1.0.9,DEU,Hydrogen (AEL),ZAF-LIM,COST-OPEX,Transportation (Ship)"},"PTX-BusinessOpportunityAnalyzer-1.0.9",{"$f":"sel_country_code","v":"DEU"},"Hydrogen (AEL)",{"$f":"_calc!$B$902","v":"ZAF-LIM"},{"$f":"_calc!$BO$827","v":"COST-OPEX"},{"$f":"_calc!$BT$1","v":"Transportation (Ship)"},{"$f":"_calc!$BT$902","v":44.65387867928348}]
[{"$f":"_xlfn.TEXTJOIN(\",\",FALSE,output[[#This Row],[scenario]:[process_class]])","v":"PTX-BusinessOpportunityAnalyzer-1.0.9,DEU,Hydrogen (AEL),ZAF-LIM,COST-OPEX,Carbon"},"PTX-BusinessOpportunityAnalyzer-1.0.9",{"$f":"sel_country_code","v":"DEU"},"Hydrogen (AEL)",{"$f":"_calc!$B$902","v":"ZAF-LIM"},{"$f":"_calc!$BO$827","v":"COST-OPEX"},{"$f":"_calc!$BU$1","v":"Carbon"},{"$f":"_calc!$BU$902","v":0}]
[{"$f":"_xlfn.TEXTJOIN(\",\",FALSE,output[[#This Row],[scenario]:[process_class]])","v":"PTX-BusinessOpportunityAnalyzer-1.0.9,DEU,Hydrogen (AEL),ZAF-LIM,COST-OPEX,Derivate production"},"PTX-BusinessOpportunityAnalyzer-1.0.9",{"$f":"sel_country_code","v":"DEU"},"Hydrogen (AEL)",{"$f":"_calc!$B$902","v":"ZAF-LIM"},{"$f":"_calc!$BO$827","v":"COST-OPEX"},{"$f":"_calc!$BV$1","v":"Derivate production"},{"$f":"_calc!$BV$902","v":0}]
[{"$f":"_xlfn.TEXTJOIN(\",\",FALSE,output[[#This Row],[scenario]:[process_class]])","v":"PTX-BusinessOpportunityAnalyzer-1.0.9,DEU,Hydrogen (AEL),ZAF-LIM,COST-OPEX,Heat"},"PTX-BusinessOpportunityAnalyzer-1.0.9",{"$f":"sel_country_code","v":"DEU"},"Hydrogen (AEL)",{"$f":"_calc!$B$902","v":"ZAF-LIM"},{"$f":"_calc!$BO$827","v":"COST-OPEX"},{"$f":"_calc!$BW$1","v":"Heat"},{"$f":"_calc!$BW$902","v":0}]
[{"$f":"_xlfn.TEXTJOIN(\",\",FALSE,output[[#This Row],[scenario]:[process_class]])","v":"PTX-BusinessOpportunityAnalyzer-1.0.9,DEU,Hydrogen (AEL),ZAF-LIM,COST-OPEX,Electricity and H2 storage"},"PTX-BusinessOpportunityAnalyzer-1.0.9",{"$f":"sel_country_code","v":"DEU"},"Hydrogen (AEL)",{"$f":"_calc!$B$902","v":"ZAF-LIM"},{"$f":"_calc!$BO$827","v":"COST-OPEX"},{"$f":"_calc!$BX$1","v":"Electricity and H2 storage"},{"$f":"_calc!$BX$902","v":3.6274770717908944}]
[{"$f":"_xlfn.TEXTJOIN(\",\",FALSE,output[[#This Row],[scenario]:[process_class]])","v":"PTX-BusinessOpportunityAnalyzer-1.0.9,DEU,Hydrogen (AEL),ZAF-MPU,COST-OPEX,Water"},"PTX-BusinessOpportunityAnalyzer-1.0.9",{"$f":"sel_country_code","v":"DEU"},"Hydrogen (AEL)",{"$f":"_calc!$B$903","v":"ZAF-MPU"},{"$f":"_calc!$BO$827","v":"COST-OPEX"},{"$f":"_calc!$BP$1","v":"Water"},{"$f":"_calc!$BP$903","v":3.8631702005585945E-2}]
[{"$f":"_xlfn.TEXTJOIN(\",\",FALSE,output[[#This Row],[scenario]:[process_class]])","v":"PTX-BusinessOpportunityAnalyzer-1.0.9,DEU,Hydrogen (AEL),ZAF-MPU,COST-OPEX,Electrolysis"},"PTX-BusinessOpportunityAnalyzer-1.0.9",{"$f":"sel_country_code","v":"DEU"},"Hydrogen (AEL)",{"$f":"_calc!$B$903","v":"ZAF-MPU"},{"$f":"_calc!$BO$827","v":"COST-OPEX"},{"$f":"_calc!$BQ$1","v":"Electrolysis"},{"$f":"_calc!$BQ$903","v":4.2082961302103481}]
[{"$f":"_xlfn.TEXTJOIN(\",\",FALSE,output[[#This Row],[scenario]:[process_class]])","v":"PTX-BusinessOpportunityAnalyzer-1.0.9,DEU,Hydrogen (AEL),ZAF-MPU,COST-OPEX,Electricity generation"},"PTX-BusinessOpportunityAnalyzer-1.0.9",{"$f":"sel_country_code","v":"DEU"},"Hydrogen (AEL)",{"$f":"_calc!$B$903","v":"ZAF-MPU"},{"$f":"_calc!$BO$827","v":"COST-OPEX"},{"$f":"_calc!$BR$1","v":"Electricity generation"},{"$f":"_calc!$BR$903","v":11.448037688338948}]
[{"$f":"_xlfn.TEXTJOIN(\",\",FALSE,output[[#This Row],[scenario]:[process_class]])","v":"PTX-BusinessOpportunityAnalyzer-1.0.9,DEU,Hydrogen (AEL),ZAF-MPU,COST-OPEX,Transportation (Pipeline)"},"PTX-BusinessOpportunityAnalyzer-1.0.9",{"$f":"sel_country_code","v":"DEU"},"Hydrogen (AEL)",{"$f":"_calc!$B$903","v":"ZAF-MPU"},{"$f":"_calc!$BO$827","v":"COST-OPEX"},{"$f":"_calc!$BS$1","v":"Transportation (Pipeline)"},{"$f":"_calc!$BS$903","v":0}]
[{"$f":"_xlfn.TEXTJOIN(\",\",FALSE,output[[#This Row],[scenario]:[process_class]])","v":"PTX-BusinessOpportunityAnalyzer-1.0.9,DEU,Hydrogen (AEL),ZAF-MPU,COST-OPEX,Transportation (Ship)"},"PTX-BusinessOpportunityAnalyzer-1.0.9",{"$f":"sel_country_code","v":"DEU"},"Hydrogen (AEL)",{"$f":"_calc!$B$903","v":"ZAF-MPU"},{"$f":"_calc!$BO$827","v":"COST-OPEX"},{"$f":"_calc!$BT$1","v":"Transportation (Ship)"},{"$f":"_calc!$BT$903","v":44.65387867928348}]
[{"$f":"_xlfn.TEXTJOIN(\",\",FALSE,output[[#This Row],[scenario]:[process_class]])","v":"PTX-BusinessOpportunityAnalyzer-1.0.9,DEU,Hydrogen (AEL),ZAF-MPU,COST-OPEX,Carbon"},"PTX-BusinessOpportunityAnalyzer-1.0.9",{"$f":"sel_country_code","v":"DEU"},"Hydrogen (AEL)",{"$f":"_calc!$B$903","v":"ZAF-MPU"},{"$f":"_calc!$BO$827","v":"COST-OPEX"},{"$f":"_calc!$BU$1","v":"Carbon"},{"$f":"_calc!$BU$903","v":0}]
[{"$f":"_xlfn.TEXTJOIN(\",\",FALSE,output[[#This Row],[scenario]:[process_class]])","v":"PTX-BusinessOpportunityAnalyzer-1.0.9,DEU,Hydrogen (AEL),ZAF-MPU,COST-OPEX,Derivate production"},"PTX-BusinessOpportunityAnalyzer-1.0.9",{"$f":"sel_country_code","v":"DEU"},"Hydrogen (AEL)",{"$f":"_calc!$B$903","v":"ZAF-MPU"},{"$f":"_calc!$BO$827","v":"COST-OPEX"},{"$f":"_calc!$BV$1","v":"Derivate production"},{"$f":"_calc!$BV$903","v":0}]
[{"$f":"_xlfn.TEXTJOIN(\",\",FALSE,output[[#This Row],[scenario]:[process_class]])","v":"PTX-BusinessOpportunityAnalyzer-1.0.9,DEU,Hydrogen (AEL),ZAF-MPU,COST-OPEX,Heat"},"PTX-BusinessOpportunityAnalyzer-1.0.9",{"$f":"sel_country_code","v":"DEU"},"Hydrogen (AEL)",{"$f":"_calc!$B$903","v":"ZAF-MPU"},{"$f":"_calc!$BO$827","v":"COST-OPEX"},{"$f":"_calc!$BW$1","v":"Heat"},{"$f":"_calc!$BW$903","v":0}]
[{"$f":"_xlfn.TEXTJOIN(\",\",FALSE,output[[#This Row],[scenario]:[process_class]])","v":"PTX-BusinessOpportunityAnalyzer-1.0.9,DEU,Hydrogen (AEL),ZAF-MPU,COST-OPEX,Electricity and H2 storage"},"PTX-BusinessOpportunityAnalyzer-1.0.9",{"$f":"sel_country_code","v":"DEU"},"Hydrogen (AEL)",{"$f":"_calc!$B$903","v":"ZAF-MPU"},{"$f":"_calc!$BO$827","v":"COST-OPEX"},{"$f":"_calc!$BX$1","v":"Electricity and H2 storage"},{"$f":"_calc!$BX$903","v":3.6274770717908944}]
[{"$f":"_xlfn.TEXTJOIN(\",\",FALSE,output[[#This Row],[scenario]:[process_class]])","v":"PTX-BusinessOpportunityAnalyzer-1.0.9,DEU,Hydrogen (AEL),ZAF-NC,COST-OPEX,Water"},"PTX-BusinessOpportunityAnalyzer-1.0.9",{"$f":"sel_country_code","v":"DEU"},"Hydrogen (AEL)",{"$f":"_calc!$B$904","v":"ZAF-NC"},{"$f":"_calc!$BO$827","v":"COST-OPEX"},{"$f":"_calc!$BP$1","v":"Water"},{"$f":"_calc!$BP$904","v":3.8631702005585945E-2}]
[{"$f":"_xlfn.TEXTJOIN(\",\",FALSE,output[[#This Row],[scenario]:[process_class]])","v":"PTX-BusinessOpportunityAnalyzer-1.0.9,DEU,Hydrogen (AEL),ZAF-NC,COST-OPEX,Electrolysis"},"PTX-BusinessOpportunityAnalyzer-1.0.9",{"$f":"sel_country_code","v":"DEU"},"Hydrogen (AEL)",{"$f":"_calc!$B$904","v":"ZAF-NC"},{"$f":"_calc!$BO$827","v":"COST-OPEX"},{"$f":"_calc!$BQ$1","v":"Electrolysis"},{"$f":"_calc!$BQ$904","v":3.2995134557698451}]
[{"$f":"_xlfn.TEXTJOIN(\",\",FALSE,output[[#This Row],[scenario]:[process_class]])","v":"PTX-BusinessOpportunityAnalyzer-1.0.9,DEU,Hydrogen (AEL),ZAF-NC,COST-OPEX,Electricity generation"},"PTX-BusinessOpportunityAnalyzer-1.0.9",{"$f":"sel_country_code","v":"DEU"},"Hydrogen (AEL)",{"$f":"_calc!$B$904","v":"ZAF-NC"},{"$f":"_calc!$BO$827","v":"COST-OPEX"},{"$f":"_calc!$BR$1","v":"Electricity generation"},{"$f":"_calc!$BR$904","v":9.230275048855237}]
[{"$f":"_xlfn.TEXTJOIN(\",\",FALSE,output[[#This Row],[scenario]:[process_class]])","v":"PTX-BusinessOpportunityAnalyzer-1.0.9,DEU,Hydrogen (AEL),ZAF-NC,COST-OPEX,Transportation (Pipeline)"},"PTX-BusinessOpportunityAnalyzer-1.0.9",{"$f":"sel_country_code","v":"DEU"},"Hydrogen (AEL)",{"$f":"_calc!$B$904","v":"ZAF-NC"},{"$f":"_calc!$BO$827","v":"COST-OPEX"},{"$f":"_calc!$BS$1","v":"Transportation (Pipeline)"},{"$f":"_calc!$BS$904","v":0}]
[{"$f":"_xlfn.TEXTJOIN(\",\",FALSE,output[[#This Row],[scenario]:[process_class]])","v":"PTX-BusinessOpportunityAnalyzer-1.0.9,DEU,Hydrogen (AEL),ZAF-NC,COST-OPEX,Transportation (Ship)"},"PTX-BusinessOpportunityAnalyzer-1.0.9",{"$f":"sel_country_code","v":"DEU"},"Hydrogen (AEL)",{"$f":"_calc!$B$904","v":"ZAF-NC"},{"$f":"_calc!$BO$827","v":"COST-OPEX"},{"$f":"_calc!$BT$1","v":"Transportation (Ship)"},{"$f":"_calc!$BT$904","v":40.200247656893914}]
[{"$f":"_xlfn.TEXTJOIN(\",\",FALSE,output[[#This Row],[scenario]:[process_class]])","v":"PTX-BusinessOpportunityAnalyzer-1.0.9,DEU,Hydrogen (AEL),ZAF-NC,COST-OPEX,Carbon"},"PTX-BusinessOpportunityAnalyzer-1.0.9",{"$f":"sel_country_code","v":"DEU"},"Hydrogen (AEL)",{"$f":"_calc!$B$904","v":"ZAF-NC"},{"$f":"_calc!$BO$827","v":"COST-OPEX"},{"$f":"_calc!$BU$1","v":"Carbon"},{"$f":"_calc!$BU$904","v":0}]
[{"$f":"_xlfn.TEXTJOIN(\",\",FALSE,output[[#This Row],[scenario]:[process_class]])","v":"PTX-BusinessOpportunityAnalyzer-1.0.9,DEU,Hydrogen (AEL),ZAF-NC,COST-OPEX,Derivate production"},"PTX-BusinessOpportunityAnalyzer-1.0.9",{"$f":"sel_country_code","v":"DEU"},"Hydrogen (AEL)",{"$f":"_calc!$B$904","v":"ZAF-NC"},{"$f":"_calc!$BO$827","v":"COST-OPEX"},{"$f":"_calc!$BV$1","v":"Derivate production"},{"$f":"_calc!$BV$904","v":0}]
[{"$f":"_xlfn.TEXTJOIN(\",\",FALSE,output[[#This Row],[scenario]:[process_class]])","v":"PTX-BusinessOpportunityAnalyzer-1.0.9,DEU,Hydrogen (AEL),ZAF-NC,COST-OPEX,Heat"},"PTX-BusinessOpportunityAnalyzer-1.0.9",{"$f":"sel_country_code","v":"DEU"},"Hydrogen (AEL)",{"$f":"_calc!$B$904","v":"ZAF-NC"},{"$f":"_calc!$BO$827","v":"COST-OPEX"},{"$f":"_calc!$BW$1","v":"Heat"},{"$f":"_calc!$BW$904","v":0}]
[{"$f":"_xlfn.TEXTJOIN(\",\",FALSE,output[[#This Row],[scenario]:[process_class]])","v":"PTX-BusinessOpportunityAnalyzer-1.0.9,DEU,Hydrogen (AEL),ZAF-NC,COST-OPEX,Electricity and H2 storage"},"PTX-BusinessOpportunityAnalyzer-1.0.9",{"$f":"sel_country_code","v":"DEU"},"Hydrogen (AEL)",{"$f":"_calc!$B$904","v":"ZAF-NC"},{"$f":"_calc!$BO$827","v":"COST-OPEX"},{"$f":"_calc!$BX$1","v":"Electricity and H2 storage"},{"$f":"_calc!$BX$904","v":2.9047724847311414}]
[{"$f":"_xlfn.TEXTJOIN(\",\",FALSE,output[[#This Row],[scenario]:[process_class]])","v":"PTX-BusinessOpportunityAnalyzer-1.0.9,DEU,Hydrogen (AEL),ZAF-NW,COST-OPEX,Water"},"PTX-BusinessOpportunityAnalyzer-1.0.9",{"$f":"sel_country_code","v":"DEU"},"Hydrogen (AEL)",{"$f":"_calc!$B$905","v":"ZAF-NW"},{"$f":"_calc!$BO$827","v":"COST-OPEX"},{"$f":"_calc!$BP$1","v":"Water"},{"$f":"_calc!$BP$905","v":3.8631702005585945E-2}]
[{"$f":"_xlfn.TEXTJOIN(\",\",FALSE,output[[#This Row],[scenario]:[process_class]])","v":"PTX-BusinessOpportunityAnalyzer-1.0.9,DEU,Hydrogen (AEL),ZAF-NW,COST-OPEX,Electrolysis"},"PTX-BusinessOpportunityAnalyzer-1.0.9",{"$f":"sel_country_code","v":"DEU"},"Hydrogen (AEL)",{"$f":"_calc!$B$905","v":"ZAF-NW"},{"$f":"_calc!$BO$827","v":"COST-OPEX"},{"$f":"_calc!$BQ$1","v":"Electrolysis"},{"$f":"_calc!$BQ$905","v":3.9637150246084389}]
[{"$f":"_xlfn.TEXTJOIN(\",\",FALSE,output[[#This Row],[scenario]:[process_class]])","v":"PTX-BusinessOpportunityAnalyzer-1.0.9,DEU,Hydrogen (AEL),ZAF-NW,COST-OPEX,Electricity generation"},"PTX-BusinessOpportunityAnalyzer-1.0.9",{"$f":"sel_country_code","v":"DEU"},"Hydrogen (AEL)",{"$f":"_calc!$B$905","v":"ZAF-NW"},{"$f":"_calc!$BO$827","v":"COST-OPEX"},{"$f":"_calc!$BR$1","v":"Electricity generation"},{"$f":"_calc!$BR$905","v":10.86328536693156}]
[{"$f":"_xlfn.TEXTJOIN(\",\",FALSE,output[[#This Row],[scenario]:[process_class]])","v":"PTX-BusinessOpportunityAnalyzer-1.0.9,DEU,Hydrogen (AEL),ZAF-NW,COST-OPEX,Transportation (Pipeline)"},"PTX-BusinessOpportunityAnalyzer-1.0.9",{"$f":"sel_country_code","v":"DEU"},"Hydrogen (AEL)",{"$f":"_calc!$B$905","v":"ZAF-NW"},{"$f":"_calc!$BO$827","v":"COST-OPEX"},{"$f":"_calc!$BS$1","v":"Transportation (Pipeline)"},{"$f":"_calc!$BS$905","v":0}]
[{"$f":"_xlfn.TEXTJOIN(\",\",FALSE,output[[#This Row],[scenario]:[process_class]])","v":"PTX-BusinessOpportunityAnalyzer-1.0.9,DEU,Hydrogen (AEL),ZAF-NW,COST-OPEX,Transportation (Ship)"},{"$f":"output_scenario_name","v":"PTX-BusinessOpportunityAnalyzer-1.0.9"},{"$f":"sel_country_code","v":"DEU"},{"$f":"sel_chain","v":"Hydrogen (AEL)"},{"$f":"_calc!$B$905","v":"ZAF-NW"},{"$f":"_calc!$BO$827","v":"COST-OPEX"},{"$f":"_calc!$BT$1","v":"Transportation (Ship)"},{"$f":"_calc!$BT$905","v":43.439142317018423}]
[{"$f":"_xlfn.TEXTJOIN(\",\",FALSE,output[[#This Row],[scenario]:[process_class]])","v":"PTX-BusinessOpportunityAnalyzer-1.0.9,DEU,Hydrogen (AEL),ZAF-NW,COST-OPEX,Carbon"},"PTX-BusinessOpportunityAnalyzer-1.0.9",{"$f":"sel_country_code","v":"DEU"},"Hydrogen (AEL)",{"$f":"_calc!$B$905","v":"ZAF-NW"},{"$f":"_calc!$BO$827","v":"COST-OPEX"},{"$f":"_calc!$BU$1","v":"Carbon"},{"$f":"_calc!$BU$905","v":0}]
[{"$f":"_xlfn.TEXTJOIN(\",\",FALSE,output[[#This Row],[scenario]:[process_class]])","v":"PTX-BusinessOpportunityAnalyzer-1.0.9,DEU,Hydrogen (AEL),ZAF-NW,COST-OPEX,Derivate production"},"PTX-BusinessOpportunityAnalyzer-1.0.9",{"$f":"sel_country_code","v":"DEU"},"Hydrogen (AEL)",{"$f":"_calc!$B$905","v":"ZAF-NW"},{"$f":"_calc!$BO$827","v":"COST-OPEX"},{"$f":"_calc!$BV$1","v":"Derivate production"},{"$f":"_calc!$BV$905","v":0}]
[{"$f":"_xlfn.TEXTJOIN(\",\",FALSE,output[[#This Row],[scenario]:[process_class]])","v":"PTX-BusinessOpportunityAnalyzer-1.0.9,DEU,Hydrogen (AEL),ZAF-NW,COST-OPEX,Heat"},"PTX-BusinessOpportunityAnalyzer-1.0.9",{"$f":"sel_country_code","v":"DEU"},"Hydrogen (AEL)",{"$f":"_calc!$B$905","v":"ZAF-NW"},{"$f":"_calc!$BO$827","v":"COST-OPEX"},{"$f":"_calc!$BW$1","v":"Heat"},{"$f":"_calc!$BW$905","v":0}]
[{"$f":"_xlfn.TEXTJOIN(\",\",FALSE,output[[#This Row],[scenario]:[process_class]])","v":"PTX-BusinessOpportunityAnalyzer-1.0.9,DEU,Hydrogen (AEL),ZAF-NW,COST-OPEX,Electricity and H2 storage"},"PTX-BusinessOpportunityAnalyzer-1.0.9",{"$f":"sel_country_code","v":"DEU"},"Hydrogen (AEL)",{"$f":"_calc!$B$905","v":"ZAF-NW"},{"$f":"_calc!$BO$827","v":"COST-OPEX"},{"$f":"_calc!$BX$1","v":"Electricity and H2 storage"},{"$f":"_calc!$BX$905","v":3.4357756852054155}]
[{"$f":"_xlfn.TEXTJOIN(\",\",FALSE,output[[#This Row],[scenario]:[process_class]])","v":"PTX-BusinessOpportunityAnalyzer-1.0.9,DEU,Hydrogen (AEL),ZAF-WC,COST-OPEX,Water"},"PTX-BusinessOpportunityAnalyzer-1.0.9",{"$f":"sel_country_code","v":"DEU"},"Hydrogen (AEL)",{"$f":"_calc!$B$906","v":"ZAF-WC"},{"$f":"_calc!$BO$827","v":"COST-OPEX"},{"$f":"_calc!$BP$1","v":"Water"},{"$f":"_calc!$BP$906","v":3.8631702005585945E-2}]
[{"$f":"_xlfn.TEXTJOIN(\",\",FALSE,output[[#This Row],[scenario]:[process_class]])","v":"PTX-BusinessOpportunityAnalyzer-1.0.9,DEU,Hydrogen (AEL),ZAF-WC,COST-OPEX,Electrolysis"},"PTX-BusinessOpportunityAnalyzer-1.0.9",{"$f":"sel_country_code","v":"DEU"},"Hydrogen (AEL)",{"$f":"_calc!$B$906","v":"ZAF-WC"},{"$f":"_calc!$BO$827","v":"COST-OPEX"},{"$f":"_calc!$BQ$1","v":"Electrolysis"},{"$f":"_calc!$BQ$906","v":3.6905836871180782}]
[{"$f":"_xlfn.TEXTJOIN(\",\",FALSE,output[[#This Row],[scenario]:[process_class]])","v":"PTX-BusinessOpportunityAnalyzer-1.0.9,DEU,Hydrogen (AEL),ZAF-WC,COST-OPEX,Electricity generation"},"PTX-BusinessOpportunityAnalyzer-1.0.9",{"$f":"sel_country_code","v":"DEU"},"Hydrogen (AEL)",{"$f":"_calc!$B$906","v":"ZAF-WC"},{"$f":"_calc!$BO$827","v":"COST-OPEX"},{"$f":"_calc!$BR$1","v":"Electricity generation"},{"$f":"_calc!$BR$906","v":10.199855834609114}]
[{"$f":"_xlfn.TEXTJOIN(\",\",FALSE,output[[#This Row],[scenario]:[process_class]])","v":"PTX-BusinessOpportunityAnalyzer-1.0.9,DEU,Hydrogen (AEL),ZAF-WC,COST-OPEX,Transportation (Pipeline)"},"PTX-BusinessOpportunityAnalyzer-1.0.9",{"$f":"sel_country_code","v":"DEU"},"Hydrogen (AEL)",{"$f":"_calc!$B$906","v":"ZAF-WC"},{"$f":"_calc!$BO$827","v":"COST-OPEX"},{"$f":"_calc!$BS$1","v":"Transportation (Pipeline)"},{"$f":"_calc!$BS$906","v":0}]
[{"$f":"_xlfn.TEXTJOIN(\",\",FALSE,output[[#This Row],[scenario]:[process_class]])","v":"PTX-BusinessOpportunityAnalyzer-1.0.9,DEU,Hydrogen (AEL),ZAF-WC,COST-OPEX,Transportation (Ship)"},"PTX-BusinessOpportunityAnalyzer-1.0.9",{"$f":"sel_country_code","v":"DEU"},"Hydrogen (AEL)",{"$f":"_calc!$B$906","v":"ZAF-WC"},{"$f":"_calc!$BO$827","v":"COST-OPEX"},{"$f":"_calc!$BT$1","v":"Transportation (Ship)"},{"$f":"_calc!$BT$906","v":42.096757904971355}]
[{"$f":"_xlfn.TEXTJOIN(\",\",FALSE,output[[#This Row],[scenario]:[process_class]])","v":"PTX-BusinessOpportunityAnalyzer-1.0.9,DEU,Hydrogen (AEL),ZAF-WC,COST-OPEX,Carbon"},"PTX-BusinessOpportunityAnalyzer-1.0.9",{"$f":"sel_country_code","v":"DEU"},"Hydrogen (AEL)",{"$f":"_calc!$B$906","v":"ZAF-WC"},{"$f":"_calc!$BO$827","v":"COST-OPEX"},{"$f":"_calc!$BU$1","v":"Carbon"},{"$f":"_calc!$BU$906","v":0}]
[{"$f":"_xlfn.TEXTJOIN(\",\",FALSE,output[[#This Row],[scenario]:[process_class]])","v":"PTX-BusinessOpportunityAnalyzer-1.0.9,DEU,Hydrogen (AEL),ZAF-WC,COST-OPEX,Derivate production"},"PTX-BusinessOpportunityAnalyzer-1.0.9",{"$f":"sel_country_code","v":"DEU"},"Hydrogen (AEL)",{"$f":"_calc!$B$906","v":"ZAF-WC"},{"$f":"_calc!$BO$827","v":"COST-OPEX"},{"$f":"_calc!$BV$1","v":"Derivate production"},{"$f":"_calc!$BV$906","v":0}]
[{"$f":"_xlfn.TEXTJOIN(\",\",FALSE,output[[#This Row],[scenario]:[process_class]])","v":"PTX-BusinessOpportunityAnalyzer-1.0.9,DEU,Hydrogen (AEL),ZAF-WC,COST-OPEX,Heat"},"PTX-BusinessOpportunityAnalyzer-1.0.9",{"$f":"sel_country_code","v":"DEU"},"Hydrogen (AEL)",{"$f":"_calc!$B$906","v":"ZAF-WC"},{"$f":"_calc!$BO$827","v":"COST-OPEX"},{"$f":"_calc!$BW$1","v":"Heat"},{"$f":"_calc!$BW$906","v":0}]
[{"$f":"_xlfn.TEXTJOIN(\",\",FALSE,output[[#This Row],[scenario]:[process_class]])","v":"PTX-BusinessOpportunityAnalyzer-1.0.9,DEU,Hydrogen (AEL),ZAF-WC,COST-OPEX,Electricity and H2 storage"},"PTX-BusinessOpportunityAnalyzer-1.0.9",{"$f":"sel_country_code","v":"DEU"},"Hydrogen (AEL)",{"$f":"_calc!$B$906","v":"ZAF-WC"},{"$f":"_calc!$BO$827","v":"COST-OPEX"},{"$f":"_calc!$BX$1","v":"Electricity and H2 storage"},{"$f":"_calc!$BX$906","v":3.2192885504564077}]
[{"$f":"_xlfn.TEXTJOIN(\",\",FALSE,output[[#This Row],[scenario]:[process_class]])","v":"PTX-BusinessOpportunityAnalyzer-1.0.9,DEU,Hydrogen (AEL),ARE,COST-FLOW,Water"},"PTX-BusinessOpportunityAnalyzer-1.0.9",{"$f":"sel_country_code","v":"DEU"},"Hydrogen (AEL)",{"$f":"_calc!$B$991","v":"ARE"},{"$f":"_calc!$BO$990","v":"COST-FLOW"},{"$f":"_calc!$BP$1","v":"Water"},{"$f":"_calc!$BP$991","v":7.0443314472572308E-2}]
[{"$f":"_xlfn.TEXTJOIN(\",\",FALSE,output[[#This Row],[scenario]:[process_class]])","v":"PTX-BusinessOpportunityAnalyzer-1.0.9,DEU,Hydrogen (AEL),ARE,COST-FLOW,Electrolysis"},"PTX-BusinessOpportunityAnalyzer-1.0.9",{"$f":"sel_country_code","v":"DEU"},"Hydrogen (AEL)",{"$f":"_calc!$B$991","v":"ARE"},{"$f":"_calc!$BO$990","v":"COST-FLOW"},{"$f":"_calc!$BQ$1","v":"Electrolysis"},{"$f":"_calc!$BQ$991","v":0}]
[{"$f":"_xlfn.TEXTJOIN(\",\",FALSE,output[[#This Row],[scenario]:[process_class]])","v":"PTX-BusinessOpportunityAnalyzer-1.0.9,DEU,Hydrogen (AEL),ARE,COST-FLOW,Electricity generation"},"PTX-BusinessOpportunityAnalyzer-1.0.9",{"$f":"sel_country_code","v":"DEU"},"Hydrogen (AEL)",{"$f":"_calc!$B$991","v":"ARE"},{"$f":"_calc!$BO$990","v":"COST-FLOW"},{"$f":"_calc!$BR$1","v":"Electricity generation"},{"$f":"_calc!$BR$991","v":0}]
[{"$f":"_xlfn.TEXTJOIN(\",\",FALSE,output[[#This Row],[scenario]:[process_class]])","v":"PTX-BusinessOpportunityAnalyzer-1.0.9,DEU,Hydrogen (AEL),ARE,COST-FLOW,Transportation (Pipeline)"},"PTX-BusinessOpportunityAnalyzer-1.0.9",{"$f":"sel_country_code","v":"DEU"},"Hydrogen (AEL)",{"$f":"_calc!$B$991","v":"ARE"},{"$f":"_calc!$BO$990","v":"COST-FLOW"},{"$f":"_calc!$BS$1","v":"Transportation (Pipeline)"},{"$f":"_calc!$BS$991","v":1.5654069882793844}]
[{"$f":"_xlfn.TEXTJOIN(\",\",FALSE,output[[#This Row],[scenario]:[process_class]])","v":"PTX-BusinessOpportunityAnalyzer-1.0.9,DEU,Hydrogen (AEL),ARE,COST-FLOW,Transportation (Ship)"},"PTX-BusinessOpportunityAnalyzer-1.0.9",{"$f":"sel_country_code","v":"DEU"},"Hydrogen (AEL)",{"$f":"_calc!$B$991","v":"ARE"},{"$f":"_calc!$BO$990","v":"COST-FLOW"},{"$f":"_calc!$BT$1","v":"Transportation (Ship)"},{"$f":"_calc!$BT$991","v":0}]
[{"$f":"_xlfn.TEXTJOIN(\",\",FALSE,output[[#This Row],[scenario]:[process_class]])","v":"PTX-BusinessOpportunityAnalyzer-1.0.9,DEU,Hydrogen (AEL),ARE,COST-FLOW,Carbon"},"PTX-BusinessOpportunityAnalyzer-1.0.9",{"$f":"sel_country_code","v":"DEU"},"Hydrogen (AEL)",{"$f":"_calc!$B$991","v":"ARE"},{"$f":"_calc!$BO$990","v":"COST-FLOW"},{"$f":"_calc!$BU$1","v":"Carbon"},{"$f":"_calc!$BU$991","v":0}]
[{"$f":"_xlfn.TEXTJOIN(\",\",FALSE,output[[#This Row],[scenario]:[process_class]])","v":"PTX-BusinessOpportunityAnalyzer-1.0.9,DEU,Hydrogen (AEL),ARE,COST-FLOW,Derivate production"},"PTX-BusinessOpportunityAnalyzer-1.0.9",{"$f":"sel_country_code","v":"DEU"},"Hydrogen (AEL)",{"$f":"_calc!$B$991","v":"ARE"},{"$f":"_calc!$BO$990","v":"COST-FLOW"},{"$f":"_calc!$BV$1","v":"Derivate production"},{"$f":"_calc!$BV$991","v":0}]
[{"$f":"_xlfn.TEXTJOIN(\",\",FALSE,output[[#This Row],[scenario]:[process_class]])","v":"PTX-BusinessOpportunityAnalyzer-1.0.9,DEU,Hydrogen (AEL),ARE,COST-FLOW,Heat"},"PTX-BusinessOpportunityAnalyzer-1.0.9",{"$f":"sel_country_code","v":"DEU"},"Hydrogen (AEL)",{"$f":"_calc!$B$991","v":"ARE"},{"$f":"_calc!$BO$990","v":"COST-FLOW"},{"$f":"_calc!$BW$1","v":"Heat"},{"$f":"_calc!$BW$991","v":0}]
[{"$f":"_xlfn.TEXTJOIN(\",\",FALSE,output[[#This Row],[scenario]:[process_class]])","v":"PTX-BusinessOpportunityAnalyzer-1.0.9,DEU,Hydrogen (AEL),ARE,COST-FLOW,Electricity and H2 storage"},"PTX-BusinessOpportunityAnalyzer-1.0.9",{"$f":"sel_country_code","v":"DEU"},"Hydrogen (AEL)",{"$f":"_calc!$B$991","v":"ARE"},{"$f":"_calc!$BO$990","v":"COST-FLOW"},{"$f":"_calc!$BX$1","v":"Electricity and H2 storage"},{"$f":"_calc!$BX$991","v":0}]
[{"$f":"_xlfn.TEXTJOIN(\",\",FALSE,output[[#This Row],[scenario]:[process_class]])","v":"PTX-BusinessOpportunityAnalyzer-1.0.9,DEU,Hydrogen (AEL),ARG,COST-FLOW,Water"},"PTX-BusinessOpportunityAnalyzer-1.0.9",{"$f":"sel_country_code","v":"DEU"},"Hydrogen (AEL)",{"$f":"_calc!$B$992","v":"ARG"},{"$f":"_calc!$BO$990","v":"COST-FLOW"},{"$f":"_calc!$BP$1","v":"Water"},{"$f":"_calc!$BP$992","v":8.6538626962820581E-2}]
[{"$f":"_xlfn.TEXTJOIN(\",\",FALSE,output[[#This Row],[scenario]:[process_class]])","v":"PTX-BusinessOpportunityAnalyzer-1.0.9,DEU,Hydrogen (AEL),ARG,COST-FLOW,Electrolysis"},"PTX-BusinessOpportunityAnalyzer-1.0.9",{"$f":"sel_country_code","v":"DEU"},"Hydrogen (AEL)",{"$f":"_calc!$B$992","v":"ARG"},{"$f":"_calc!$BO$990","v":"COST-FLOW"},{"$f":"_calc!$BQ$1","v":"Electrolysis"},{"$f":"_calc!$BQ$992","v":0}]
[{"$f":"_xlfn.TEXTJOIN(\",\",FALSE,output[[#This Row],[scenario]:[process_class]])","v":"PTX-BusinessOpportunityAnalyzer-1.0.9,DEU,Hydrogen (AEL),ARG,COST-FLOW,Electricity generation"},"PTX-BusinessOpportunityAnalyzer-1.0.9",{"$f":"sel_country_code","v":"DEU"},"Hydrogen (AEL)",{"$f":"_calc!$B$992","v":"ARG"},{"$f":"_calc!$BO$990","v":"COST-FLOW"},{"$f":"_calc!$BR$1","v":"Electricity generation"},{"$f":"_calc!$BR$992","v":0}]
[{"$f":"_xlfn.TEXTJOIN(\",\",FALSE,output[[#This Row],[scenario]:[process_class]])","v":"PTX-BusinessOpportunityAnalyzer-1.0.9,DEU,Hydrogen (AEL),ARG,COST-FLOW,Transportation (Pipeline)"},"PTX-BusinessOpportunityAnalyzer-1.0.9",{"$f":"sel_country_code","v":"DEU"},"Hydrogen (AEL)",{"$f":"_calc!$B$992","v":"ARG"},{"$f":"_calc!$BO$990","v":"COST-FLOW"},{"$f":"_calc!$BS$1","v":"Transportation (Pipeline)"},{"$f":"_calc!$BS$992","v":0}]
[{"$f":"_xlfn.TEXTJOIN(\",\",FALSE,output[[#This Row],[scenario]:[process_class]])","v":"PTX-BusinessOpportunityAnalyzer-1.0.9,DEU,Hydrogen (AEL),ARG,COST-FLOW,Transportation (Ship)"},"PTX-BusinessOpportunityAnalyzer-1.0.9",{"$f":"sel_country_code","v":"DEU"},"Hydrogen (AEL)",{"$f":"_calc!$B$992","v":"ARG"},{"$f":"_calc!$BO$990","v":"COST-FLOW"},{"$f":"_calc!$BT$1","v":"Transportation (Ship)"},{"$f":"_calc!$BT$992","v":28.855827596805788}]
[{"$f":"_xlfn.TEXTJOIN(\",\",FALSE,output[[#This Row],[scenario]:[process_class]])","v":"PTX-BusinessOpportunityAnalyzer-1.0.9,DEU,Hydrogen (AEL),ARG,COST-FLOW,Carbon"},"PTX-BusinessOpportunityAnalyzer-1.0.9",{"$f":"sel_country_code","v":"DEU"},"Hydrogen (AEL)",{"$f":"_calc!$B$992","v":"ARG"},{"$f":"_calc!$BO$990","v":"COST-FLOW"},{"$f":"_calc!$BU$1","v":"Carbon"},{"$f":"_calc!$BU$992","v":0}]
[{"$f":"_xlfn.TEXTJOIN(\",\",FALSE,output[[#This Row],[scenario]:[process_class]])","v":"PTX-BusinessOpportunityAnalyzer-1.0.9,DEU,Hydrogen (AEL),ARG,COST-FLOW,Derivate production"},"PTX-BusinessOpportunityAnalyzer-1.0.9",{"$f":"sel_country_code","v":"DEU"},"Hydrogen (AEL)",{"$f":"_calc!$B$992","v":"ARG"},{"$f":"_calc!$BO$990","v":"COST-FLOW"},{"$f":"_calc!$BV$1","v":"Derivate production"},{"$f":"_calc!$BV$992","v":0}]
[{"$f":"_xlfn.TEXTJOIN(\",\",FALSE,output[[#This Row],[scenario]:[process_class]])","v":"PTX-BusinessOpportunityAnalyzer-1.0.9,DEU,Hydrogen (AEL),ARG,COST-FLOW,Heat"},"PTX-BusinessOpportunityAnalyzer-1.0.9",{"$f":"sel_country_code","v":"DEU"},"Hydrogen (AEL)",{"$f":"_calc!$B$992","v":"ARG"},{"$f":"_calc!$BO$990","v":"COST-FLOW"},{"$f":"_calc!$BW$1","v":"Heat"},{"$f":"_calc!$BW$992","v":0}]
[{"$f":"_xlfn.TEXTJOIN(\",\",FALSE,output[[#This Row],[scenario]:[process_class]])","v":"PTX-BusinessOpportunityAnalyzer-1.0.9,DEU,Hydrogen (AEL),ARG,COST-FLOW,Electricity and H2 storage"},"PTX-BusinessOpportunityAnalyzer-1.0.9",{"$f":"sel_country_code","v":"DEU"},"Hydrogen (AEL)",{"$f":"_calc!$B$992","v":"ARG"},{"$f":"_calc!$BO$990","v":"COST-FLOW"},{"$f":"_calc!$BX$1","v":"Electricity and H2 storage"},{"$f":"_calc!$BX$992","v":0}]
[{"$f":"_xlfn.TEXTJOIN(\",\",FALSE,output[[#This Row],[scenario]:[process_class]])","v":"PTX-BusinessOpportunityAnalyzer-1.0.9,DEU,Hydrogen (AEL),ARG-BA,COST-FLOW,Water"},"PTX-BusinessOpportunityAnalyzer-1.0.9",{"$f":"sel_country_code","v":"DEU"},"Hydrogen (AEL)",{"$f":"_calc!$B$993","v":"ARG-BA"},{"$f":"_calc!$BO$990","v":"COST-FLOW"},{"$f":"_calc!$BP$1","v":"Water"},{"$f":"_calc!$BP$993","v":8.6538626962820581E-2}]
[{"$f":"_xlfn.TEXTJOIN(\",\",FALSE,output[[#This Row],[scenario]:[process_class]])","v":"PTX-BusinessOpportunityAnalyzer-1.0.9,DEU,Hydrogen (AEL),ARG-BA,COST-FLOW,Electrolysis"},"PTX-BusinessOpportunityAnalyzer-1.0.9",{"$f":"sel_country_code","v":"DEU"},"Hydrogen (AEL)",{"$f":"_calc!$B$993","v":"ARG-BA"},{"$f":"_calc!$BO$990","v":"COST-FLOW"},{"$f":"_calc!$BQ$1","v":"Electrolysis"},{"$f":"_calc!$BQ$993","v":0}]
[{"$f":"_xlfn.TEXTJOIN(\",\",FALSE,output[[#This Row],[scenario]:[process_class]])","v":"PTX-BusinessOpportunityAnalyzer-1.0.9,DEU,Hydrogen (AEL),ARG-BA,COST-FLOW,Electricity generation"},"PTX-BusinessOpportunityAnalyzer-1.0.9",{"$f":"sel_country_code","v":"DEU"},"Hydrogen (AEL)",{"$f":"_calc!$B$993","v":"ARG-BA"},{"$f":"_calc!$BO$990","v":"COST-FLOW"},{"$f":"_calc!$BR$1","v":"Electricity generation"},{"$f":"_calc!$BR$993","v":0}]
[{"$f":"_xlfn.TEXTJOIN(\",\",FALSE,output[[#This Row],[scenario]:[process_class]])","v":"PTX-BusinessOpportunityAnalyzer-1.0.9,DEU,Hydrogen (AEL),ARG-BA,COST-FLOW,Transportation (Pipeline)"},"PTX-BusinessOpportunityAnalyzer-1.0.9",{"$f":"sel_country_code","v":"DEU"},"Hydrogen (AEL)",{"$f":"_calc!$B$993","v":"ARG-BA"},{"$f":"_calc!$BO$990","v":"COST-FLOW"},{"$f":"_calc!$BS$1","v":"Transportation (Pipeline)"},{"$f":"_calc!$BS$993","v":0}]
[{"$f":"_xlfn.TEXTJOIN(\",\",FALSE,output[[#This Row],[scenario]:[process_class]])","v":"PTX-BusinessOpportunityAnalyzer-1.0.9,DEU,Hydrogen (AEL),ARG-BA,COST-FLOW,Transportation (Ship)"},"PTX-BusinessOpportunityAnalyzer-1.0.9",{"$f":"sel_country_code","v":"DEU"},"Hydrogen (AEL)",{"$f":"_calc!$B$993","v":"ARG-BA"},{"$f":"_calc!$BO$990","v":"COST-FLOW"},{"$f":"_calc!$BT$1","v":"Transportation (Ship)"},{"$f":"_calc!$BT$993","v":28.855827596805788}]
[{"$f":"_xlfn.TEXTJOIN(\",\",FALSE,output[[#This Row],[scenario]:[process_class]])","v":"PTX-BusinessOpportunityAnalyzer-1.0.9,DEU,Hydrogen (AEL),ARG-BA,COST-FLOW,Carbon"},"PTX-BusinessOpportunityAnalyzer-1.0.9",{"$f":"sel_country_code","v":"DEU"},"Hydrogen (AEL)",{"$f":"_calc!$B$993","v":"ARG-BA"},{"$f":"_calc!$BO$990","v":"COST-FLOW"},{"$f":"_calc!$BU$1","v":"Carbon"},{"$f":"_calc!$BU$993","v":0}]
[{"$f":"_xlfn.TEXTJOIN(\",\",FALSE,output[[#This Row],[scenario]:[process_class]])","v":"PTX-BusinessOpportunityAnalyzer-1.0.9,DEU,Hydrogen (AEL),ARG-BA,COST-FLOW,Derivate production"},"PTX-BusinessOpportunityAnalyzer-1.0.9",{"$f":"sel_country_code","v":"DEU"},"Hydrogen (AEL)",{"$f":"_calc!$B$993","v":"ARG-BA"},{"$f":"_calc!$BO$990","v":"COST-FLOW"},{"$f":"_calc!$BV$1","v":"Derivate production"},{"$f":"_calc!$BV$993","v":0}]
[{"$f":"_xlfn.TEXTJOIN(\",\",FALSE,output[[#This Row],[scenario]:[process_class]])","v":"PTX-BusinessOpportunityAnalyzer-1.0.9,DEU,Hydrogen (AEL),ARG-BA,COST-FLOW,Heat"},"PTX-BusinessOpportunityAnalyzer-1.0.9",{"$f":"sel_country_code","v":"DEU"},"Hydrogen (AEL)",{"$f":"_calc!$B$993","v":"ARG-BA"},{"$f":"_calc!$BO$990","v":"COST-FLOW"},{"$f":"_calc!$BW$1","v":"Heat"},{"$f":"_calc!$BW$993","v":0}]
[{"$f":"_xlfn.TEXTJOIN(\",\",FALSE,output[[#This Row],[scenario]:[process_class]])","v":"PTX-BusinessOpportunityAnalyzer-1.0.9,DEU,Hydrogen (AEL),ARG-BA,COST-FLOW,Electricity and H2 storage"},"PTX-BusinessOpportunityAnalyzer-1.0.9",{"$f":"sel_country_code","v":"DEU"},"Hydrogen (AEL)",{"$f":"_calc!$B$993","v":"ARG-BA"},{"$f":"_calc!$BO$990","v":"COST-FLOW"},{"$f":"_calc!$BX$1","v":"Electricity and H2 storage"},{"$f":"_calc!$BX$993","v":0}]
[{"$f":"_xlfn.TEXTJOIN(\",\",FALSE,output[[#This Row],[scenario]:[process_class]])","v":"PTX-BusinessOpportunityAnalyzer-1.0.9,DEU,Hydrogen (AEL),ARG-CAT,COST-FLOW,Water"},"PTX-BusinessOpportunityAnalyzer-1.0.9",{"$f":"sel_country_code","v":"DEU"},"Hydrogen (AEL)",{"$f":"_calc!$B$994","v":"ARG-CAT"},{"$f":"_calc!$BO$990","v":"COST-FLOW"},{"$f":"_calc!$BP$1","v":"Water"},{"$f":"_calc!$BP$994","v":8.6538626962820581E-2}]
[{"$f":"_xlfn.TEXTJOIN(\",\",FALSE,output[[#This Row],[scenario]:[process_class]])","v":"PTX-BusinessOpportunityAnalyzer-1.0.9,DEU,Hydrogen (AEL),ARG-CAT,COST-FLOW,Electrolysis"},"PTX-BusinessOpportunityAnalyzer-1.0.9",{"$f":"sel_country_code","v":"DEU"},"Hydrogen (AEL)",{"$f":"_calc!$B$994","v":"ARG-CAT"},{"$f":"_calc!$BO$990","v":"COST-FLOW"},{"$f":"_calc!$BQ$1","v":"Electrolysis"},{"$f":"_calc!$BQ$994","v":0}]
[{"$f":"_xlfn.TEXTJOIN(\",\",FALSE,output[[#This Row],[scenario]:[process_class]])","v":"PTX-BusinessOpportunityAnalyzer-1.0.9,DEU,Hydrogen (AEL),ARG-CAT,COST-FLOW,Electricity generation"},"PTX-BusinessOpportunityAnalyzer-1.0.9",{"$f":"sel_country_code","v":"DEU"},"Hydrogen (AEL)",{"$f":"_calc!$B$994","v":"ARG-CAT"},{"$f":"_calc!$BO$990","v":"COST-FLOW"},{"$f":"_calc!$BR$1","v":"Electricity generation"},{"$f":"_calc!$BR$994","v":0}]
[{"$f":"_xlfn.TEXTJOIN(\",\",FALSE,output[[#This Row],[scenario]:[process_class]])","v":"PTX-BusinessOpportunityAnalyzer-1.0.9,DEU,Hydrogen (AEL),ARG-CAT,COST-FLOW,Transportation (Pipeline)"},"PTX-BusinessOpportunityAnalyzer-1.0.9",{"$f":"sel_country_code","v":"DEU"},"Hydrogen (AEL)",{"$f":"_calc!$B$994","v":"ARG-CAT"},{"$f":"_calc!$BO$990","v":"COST-FLOW"},{"$f":"_calc!$BS$1","v":"Transportation (Pipeline)"},{"$f":"_calc!$BS$994","v":0}]
[{"$f":"_xlfn.TEXTJOIN(\",\",FALSE,output[[#This Row],[scenario]:[process_class]])","v":"PTX-BusinessOpportunityAnalyzer-1.0.9,DEU,Hydrogen (AEL),ARG-CAT,COST-FLOW,Transportation (Ship)"},"PTX-BusinessOpportunityAnalyzer-1.0.9",{"$f":"sel_country_code","v":"DEU"},"Hydrogen (AEL)",{"$f":"_calc!$B$994","v":"ARG-CAT"},{"$f":"_calc!$BO$990","v":"COST-FLOW"},{"$f":"_calc!$BT$1","v":"Transportation (Ship)"},{"$f":"_calc!$BT$994","v":28.855827596805788}]
[{"$f":"_xlfn.TEXTJOIN(\",\",FALSE,output[[#This Row],[scenario]:[process_class]])","v":"PTX-BusinessOpportunityAnalyzer-1.0.9,DEU,Hydrogen (AEL),ARG-CAT,COST-FLOW,Carbon"},"PTX-BusinessOpportunityAnalyzer-1.0.9",{"$f":"sel_country_code","v":"DEU"},"Hydrogen (AEL)",{"$f":"_calc!$B$994","v":"ARG-CAT"},{"$f":"_calc!$BO$990","v":"COST-FLOW"},{"$f":"_calc!$BU$1","v":"Carbon"},{"$f":"_calc!$BU$994","v":0}]
[{"$f":"_xlfn.TEXTJOIN(\",\",FALSE,output[[#This Row],[scenario]:[process_class]])","v":"PTX-BusinessOpportunityAnalyzer-1.0.9,DEU,Hydrogen (AEL),ARG-CAT,COST-FLOW,Derivate production"},"PTX-BusinessOpportunityAnalyzer-1.0.9",{"$f":"sel_country_code","v":"DEU"},"Hydrogen (AEL)",{"$f":"_calc!$B$994","v":"ARG-CAT"},{"$f":"_calc!$BO$990","v":"COST-FLOW"},{"$f":"_calc!$BV$1","v":"Derivate production"},{"$f":"_calc!$BV$994","v":0}]
[{"$f":"_xlfn.TEXTJOIN(\",\",FALSE,output[[#This Row],[scenario]:[process_class]])","v":"PTX-BusinessOpportunityAnalyzer-1.0.9,DEU,Hydrogen (AEL),ARG-CAT,COST-FLOW,Heat"},"PTX-BusinessOpportunityAnalyzer-1.0.9",{"$f":"sel_country_code","v":"DEU"},"Hydrogen (AEL)",{"$f":"_calc!$B$994","v":"ARG-CAT"},{"$f":"_calc!$BO$990","v":"COST-FLOW"},{"$f":"_calc!$BW$1","v":"Heat"},{"$f":"_calc!$BW$994","v":0}]
[{"$f":"_xlfn.TEXTJOIN(\",\",FALSE,output[[#This Row],[scenario]:[process_class]])","v":"PTX-BusinessOpportunityAnalyzer-1.0.9,DEU,Hydrogen (AEL),ARG-CAT,COST-FLOW,Electricity and H2 storage"},"PTX-BusinessOpportunityAnalyzer-1.0.9",{"$f":"sel_country_code","v":"DEU"},"Hydrogen (AEL)",{"$f":"_calc!$B$994","v":"ARG-CAT"},{"$f":"_calc!$BO$990","v":"COST-FLOW"},{"$f":"_calc!$BX$1","v":"Electricity and H2 storage"},{"$f":"_calc!$BX$994","v":0}]
[{"$f":"_xlfn.TEXTJOIN(\",\",FALSE,output[[#This Row],[scenario]:[process_class]])","v":"PTX-BusinessOpportunityAnalyzer-1.0.9,DEU,Hydrogen (AEL),ARG-CBA,COST-FLOW,Water"},"PTX-BusinessOpportunityAnalyzer-1.0.9",{"$f":"sel_country_code","v":"DEU"},"Hydrogen (AEL)",{"$f":"_calc!$B$995","v":"ARG-CBA"},{"$f":"_calc!$BO$990","v":"COST-FLOW"},{"$f":"_calc!$BP$1","v":"Water"},{"$f":"_calc!$BP$995","v":8.6538626962820581E-2}]
[{"$f":"_xlfn.TEXTJOIN(\",\",FALSE,output[[#This Row],[scenario]:[process_class]])","v":"PTX-BusinessOpportunityAnalyzer-1.0.9,DEU,Hydrogen (AEL),ARG-CBA,COST-FLOW,Electrolysis"},"PTX-BusinessOpportunityAnalyzer-1.0.9",{"$f":"sel_country_code","v":"DEU"},"Hydrogen (AEL)",{"$f":"_calc!$B$995","v":"ARG-CBA"},{"$f":"_calc!$BO$990","v":"COST-FLOW"},{"$f":"_calc!$BQ$1","v":"Electrolysis"},{"$f":"_calc!$BQ$995","v":0}]
[{"$f":"_xlfn.TEXTJOIN(\",\",FALSE,output[[#This Row],[scenario]:[process_class]])","v":"PTX-BusinessOpportunityAnalyzer-1.0.9,DEU,Hydrogen (AEL),ARG-CBA,COST-FLOW,Electricity generation"},"PTX-BusinessOpportunityAnalyzer-1.0.9",{"$f":"sel_country_code","v":"DEU"},"Hydrogen (AEL)",{"$f":"_calc!$B$995","v":"ARG-CBA"},{"$f":"_calc!$BO$990","v":"COST-FLOW"},{"$f":"_calc!$BR$1","v":"Electricity generation"},{"$f":"_calc!$BR$995","v":0}]
[{"$f":"_xlfn.TEXTJOIN(\",\",FALSE,output[[#This Row],[scenario]:[process_class]])","v":"PTX-BusinessOpportunityAnalyzer-1.0.9,DEU,Hydrogen (AEL),ARG-CBA,COST-FLOW,Transportation (Pipeline)"},"PTX-BusinessOpportunityAnalyzer-1.0.9",{"$f":"sel_country_code","v":"DEU"},"Hydrogen (AEL)",{"$f":"_calc!$B$995","v":"ARG-CBA"},{"$f":"_calc!$BO$990","v":"COST-FLOW"},{"$f":"_calc!$BS$1","v":"Transportation (Pipeline)"},{"$f":"_calc!$BS$995","v":0}]
[{"$f":"_xlfn.TEXTJOIN(\",\",FALSE,output[[#This Row],[scenario]:[process_class]])","v":"PTX-BusinessOpportunityAnalyzer-1.0.9,DEU,Hydrogen (AEL),ARG-CBA,COST-FLOW,Transportation (Ship)"},"PTX-BusinessOpportunityAnalyzer-1.0.9",{"$f":"sel_country_code","v":"DEU"},"Hydrogen (AEL)",{"$f":"_calc!$B$995","v":"ARG-CBA"},{"$f":"_calc!$BO$990","v":"COST-FLOW"},{"$f":"_calc!$BT$1","v":"Transportation (Ship)"},{"$f":"_calc!$BT$995","v":28.855827596805788}]
[{"$f":"_xlfn.TEXTJOIN(\",\",FALSE,output[[#This Row],[scenario]:[process_class]])","v":"PTX-BusinessOpportunityAnalyzer-1.0.9,DEU,Hydrogen (AEL),ARG-CBA,COST-FLOW,Carbon"},"PTX-BusinessOpportunityAnalyzer-1.0.9",{"$f":"sel_country_code","v":"DEU"},"Hydrogen (AEL)",{"$f":"_calc!$B$995","v":"ARG-CBA"},{"$f":"_calc!$BO$990","v":"COST-FLOW"},{"$f":"_calc!$BU$1","v":"Carbon"},{"$f":"_calc!$BU$995","v":0}]
[{"$f":"_xlfn.TEXTJOIN(\",\",FALSE,output[[#This Row],[scenario]:[process_class]])","v":"PTX-BusinessOpportunityAnalyzer-1.0.9,DEU,Hydrogen (AEL),ARG-CBA,COST-FLOW,Derivate production"},"PTX-BusinessOpportunityAnalyzer-1.0.9",{"$f":"sel_country_code","v":"DEU"},"Hydrogen (AEL)",{"$f":"_calc!$B$995","v":"ARG-CBA"},{"$f":"_calc!$BO$990","v":"COST-FLOW"},{"$f":"_calc!$BV$1","v":"Derivate production"},{"$f":"_calc!$BV$995","v":0}]
[{"$f":"_xlfn.TEXTJOIN(\",\",FALSE,output[[#This Row],[scenario]:[process_class]])","v":"PTX-BusinessOpportunityAnalyzer-1.0.9,DEU,Hydrogen (AEL),ARG-CBA,COST-FLOW,Heat"},"PTX-BusinessOpportunityAnalyzer-1.0.9",{"$f":"sel_country_code","v":"DEU"},"Hydrogen (AEL)",{"$f":"_calc!$B$995","v":"ARG-CBA"},{"$f":"_calc!$BO$990","v":"COST-FLOW"},{"$f":"_calc!$BW$1","v":"Heat"},{"$f":"_calc!$BW$995","v":0}]
[{"$f":"_xlfn.TEXTJOIN(\",\",FALSE,output[[#This Row],[scenario]:[process_class]])","v":"PTX-BusinessOpportunityAnalyzer-1.0.9,DEU,Hydrogen (AEL),ARG-CBA,COST-FLOW,Electricity and H2 storage"},"PTX-BusinessOpportunityAnalyzer-1.0.9",{"$f":"sel_country_code","v":"DEU"},"Hydrogen (AEL)",{"$f":"_calc!$B$995","v":"ARG-CBA"},{"$f":"_calc!$BO$990","v":"COST-FLOW"},{"$f":"_calc!$BX$1","v":"Electricity and H2 storage"},{"$f":"_calc!$BX$995","v":0}]
[{"$f":"_xlfn.TEXTJOIN(\",\",FALSE,output[[#This Row],[scenario]:[process_class]])","v":"PTX-BusinessOpportunityAnalyzer-1.0.9,DEU,Hydrogen (AEL),ARG-CHA,COST-FLOW,Water"},"PTX-BusinessOpportunityAnalyzer-1.0.9",{"$f":"sel_country_code","v":"DEU"},"Hydrogen (AEL)",{"$f":"_calc!$B$996","v":"ARG-CHA"},{"$f":"_calc!$BO$990","v":"COST-FLOW"},{"$f":"_calc!$BP$1","v":"Water"},{"$f":"_calc!$BP$996","v":8.6538626962820581E-2}]
[{"$f":"_xlfn.TEXTJOIN(\",\",FALSE,output[[#This Row],[scenario]:[process_class]])","v":"PTX-BusinessOpportunityAnalyzer-1.0.9,DEU,Hydrogen (AEL),ARG-CHA,COST-FLOW,Electrolysis"},"PTX-BusinessOpportunityAnalyzer-1.0.9",{"$f":"sel_country_code","v":"DEU"},"Hydrogen (AEL)",{"$f":"_calc!$B$996","v":"ARG-CHA"},{"$f":"_calc!$BO$990","v":"COST-FLOW"},{"$f":"_calc!$BQ$1","v":"Electrolysis"},{"$f":"_calc!$BQ$996","v":0}]
[{"$f":"_xlfn.TEXTJOIN(\",\",FALSE,output[[#This Row],[scenario]:[process_class]])","v":"PTX-BusinessOpportunityAnalyzer-1.0.9,DEU,Hydrogen (AEL),ARG-CHA,COST-FLOW,Electricity generation"},"PTX-BusinessOpportunityAnalyzer-1.0.9",{"$f":"sel_country_code","v":"DEU"},"Hydrogen (AEL)",{"$f":"_calc!$B$996","v":"ARG-CHA"},{"$f":"_calc!$BO$990","v":"COST-FLOW"},{"$f":"_calc!$BR$1","v":"Electricity generation"},{"$f":"_calc!$BR$996","v":0}]
[{"$f":"_xlfn.TEXTJOIN(\",\",FALSE,output[[#This Row],[scenario]:[process_class]])","v":"PTX-BusinessOpportunityAnalyzer-1.0.9,DEU,Hydrogen (AEL),ARG-CHA,COST-FLOW,Transportation (Pipeline)"},"PTX-BusinessOpportunityAnalyzer-1.0.9",{"$f":"sel_country_code","v":"DEU"},"Hydrogen (AEL)",{"$f":"_calc!$B$996","v":"ARG-CHA"},{"$f":"_calc!$BO$990","v":"COST-FLOW"},{"$f":"_calc!$BS$1","v":"Transportation (Pipeline)"},{"$f":"_calc!$BS$996","v":0}]
[{"$f":"_xlfn.TEXTJOIN(\",\",FALSE,output[[#This Row],[scenario]:[process_class]])","v":"PTX-BusinessOpportunityAnalyzer-1.0.9,DEU,Hydrogen (AEL),ARG-CHA,COST-FLOW,Transportation (Ship)"},"PTX-BusinessOpportunityAnalyzer-1.0.9",{"$f":"sel_country_code","v":"DEU"},"Hydrogen (AEL)",{"$f":"_calc!$B$996","v":"ARG-CHA"},{"$f":"_calc!$BO$990","v":"COST-FLOW"},{"$f":"_calc!$BT$1","v":"Transportation (Ship)"},{"$f":"_calc!$BT$996","v":28.855827596805788}]
[{"$f":"_xlfn.TEXTJOIN(\",\",FALSE,output[[#This Row],[scenario]:[process_class]])","v":"PTX-BusinessOpportunityAnalyzer-1.0.9,DEU,Hydrogen (AEL),ARG-CHA,COST-FLOW,Carbon"},{"$f":"output_scenario_name","v":"PTX-BusinessOpportunityAnalyzer-1.0.9"},{"$f":"sel_country_code","v":"DEU"},{"$f":"sel_chain","v":"Hydrogen (AEL)"},{"$f":"_calc!$B$996","v":"ARG-CHA"},{"$f":"_calc!$BO$990","v":"COST-FLOW"},{"$f":"_calc!$BU$1","v":"Carbon"},{"$f":"_calc!$BU$996","v":0}]
[{"$f":"_xlfn.TEXTJOIN(\",\",FALSE,output[[#This Row],[scenario]:[process_class]])","v":"PTX-BusinessOpportunityAnalyzer-1.0.9,DEU,Hydrogen (AEL),ARG-CHA,COST-FLOW,Derivate production"},"PTX-BusinessOpportunityAnalyzer-1.0.9",{"$f":"sel_country_code","v":"DEU"},"Hydrogen (AEL)",{"$f":"_calc!$B$996","v":"ARG-CHA"},{"$f":"_calc!$BO$990","v":"COST-FLOW"},{"$f":"_calc!$BV$1","v":"Derivate production"},{"$f":"_calc!$BV$996","v":0}]
[{"$f":"_xlfn.TEXTJOIN(\",\",FALSE,output[[#This Row],[scenario]:[process_class]])","v":"PTX-BusinessOpportunityAnalyzer-1.0.9,DEU,Hydrogen (AEL),ARG-CHA,COST-FLOW,Heat"},"PTX-BusinessOpportunityAnalyzer-1.0.9",{"$f":"sel_country_code","v":"DEU"},"Hydrogen (AEL)",{"$f":"_calc!$B$996","v":"ARG-CHA"},{"$f":"_calc!$BO$990","v":"COST-FLOW"},{"$f":"_calc!$BW$1","v":"Heat"},{"$f":"_calc!$BW$996","v":0}]
[{"$f":"_xlfn.TEXTJOIN(\",\",FALSE,output[[#This Row],[scenario]:[process_class]])","v":"PTX-BusinessOpportunityAnalyzer-1.0.9,DEU,Hydrogen (AEL),ARG-CHA,COST-FLOW,Electricity and H2 storage"},"PTX-BusinessOpportunityAnalyzer-1.0.9",{"$f":"sel_country_code","v":"DEU"},"Hydrogen (AEL)",{"$f":"_calc!$B$996","v":"ARG-CHA"},{"$f":"_calc!$BO$990","v":"COST-FLOW"},{"$f":"_calc!$BX$1","v":"Electricity and H2 storage"},{"$f":"_calc!$BX$996","v":0}]
[{"$f":"_xlfn.TEXTJOIN(\",\",FALSE,output[[#This Row],[scenario]:[process_class]])","v":"PTX-BusinessOpportunityAnalyzer-1.0.9,DEU,Hydrogen (AEL),ARG-CHU,COST-FLOW,Water"},"PTX-BusinessOpportunityAnalyzer-1.0.9",{"$f":"sel_country_code","v":"DEU"},"Hydrogen (AEL)",{"$f":"_calc!$B$997","v":"ARG-CHU"},{"$f":"_calc!$BO$990","v":"COST-FLOW"},{"$f":"_calc!$BP$1","v":"Water"},{"$f":"_calc!$BP$997","v":8.6538626962820581E-2}]
[{"$f":"_xlfn.TEXTJOIN(\",\",FALSE,output[[#This Row],[scenario]:[process_class]])","v":"PTX-BusinessOpportunityAnalyzer-1.0.9,DEU,Hydrogen (AEL),ARG-CHU,COST-FLOW,Electrolysis"},"PTX-BusinessOpportunityAnalyzer-1.0.9",{"$f":"sel_country_code","v":"DEU"},"Hydrogen (AEL)",{"$f":"_calc!$B$997","v":"ARG-CHU"},{"$f":"_calc!$BO$990","v":"COST-FLOW"},{"$f":"_calc!$BQ$1","v":"Electrolysis"},{"$f":"_calc!$BQ$997","v":0}]
[{"$f":"_xlfn.TEXTJOIN(\",\",FALSE,output[[#This Row],[scenario]:[process_class]])","v":"PTX-BusinessOpportunityAnalyzer-1.0.9,DEU,Hydrogen (AEL),ARG-CHU,COST-FLOW,Electricity generation"},"PTX-BusinessOpportunityAnalyzer-1.0.9",{"$f":"sel_country_code","v":"DEU"},"Hydrogen (AEL)",{"$f":"_calc!$B$997","v":"ARG-CHU"},{"$f":"_calc!$BO$990","v":"COST-FLOW"},{"$f":"_calc!$BR$1","v":"Electricity generation"},{"$f":"_calc!$BR$997","v":0}]
[{"$f":"_xlfn.TEXTJOIN(\",\",FALSE,output[[#This Row],[scenario]:[process_class]])","v":"PTX-BusinessOpportunityAnalyzer-1.0.9,DEU,Hydrogen (AEL),ARG-CHU,COST-FLOW,Transportation (Pipeline)"},"PTX-BusinessOpportunityAnalyzer-1.0.9",{"$f":"sel_country_code","v":"DEU"},"Hydrogen (AEL)",{"$f":"_calc!$B$997","v":"ARG-CHU"},{"$f":"_calc!$BO$990","v":"COST-FLOW"},{"$f":"_calc!$BS$1","v":"Transportation (Pipeline)"},{"$f":"_calc!$BS$997","v":0}]
[{"$f":"_xlfn.TEXTJOIN(\",\",FALSE,output[[#This Row],[scenario]:[process_class]])","v":"PTX-BusinessOpportunityAnalyzer-1.0.9,DEU,Hydrogen (AEL),ARG-CHU,COST-FLOW,Transportation (Ship)"},"PTX-BusinessOpportunityAnalyzer-1.0.9",{"$f":"sel_country_code","v":"DEU"},"Hydrogen (AEL)",{"$f":"_calc!$B$997","v":"ARG-CHU"},{"$f":"_calc!$BO$990","v":"COST-FLOW"},{"$f":"_calc!$BT$1","v":"Transportation (Ship)"},{"$f":"_calc!$BT$997","v":28.855827596805788}]
[{"$f":"_xlfn.TEXTJOIN(\",\",FALSE,output[[#This Row],[scenario]:[process_class]])","v":"PTX-BusinessOpportunityAnalyzer-1.0.9,DEU,Hydrogen (AEL),ARG-CHU,COST-FLOW,Carbon"},"PTX-BusinessOpportunityAnalyzer-1.0.9",{"$f":"sel_country_code","v":"DEU"},"Hydrogen (AEL)",{"$f":"_calc!$B$997","v":"ARG-CHU"},{"$f":"_calc!$BO$990","v":"COST-FLOW"},{"$f":"_calc!$BU$1","v":"Carbon"},{"$f":"_calc!$BU$997","v":0}]
[{"$f":"_xlfn.TEXTJOIN(\",\",FALSE,output[[#This Row],[scenario]:[process_class]])","v":"PTX-BusinessOpportunityAnalyzer-1.0.9,DEU,Hydrogen (AEL),ARG-CHU,COST-FLOW,Derivate production"},"PTX-BusinessOpportunityAnalyzer-1.0.9",{"$f":"sel_country_code","v":"DEU"},"Hydrogen (AEL)",{"$f":"_calc!$B$997","v":"ARG-CHU"},{"$f":"_calc!$BO$990","v":"COST-FLOW"},{"$f":"_calc!$BV$1","v":"Derivate production"},{"$f":"_calc!$BV$997","v":0}]
[{"$f":"_xlfn.TEXTJOIN(\",\",FALSE,output[[#This Row],[scenario]:[process_class]])","v":"PTX-BusinessOpportunityAnalyzer-1.0.9,DEU,Hydrogen (AEL),ARG-CHU,COST-FLOW,Heat"},"PTX-BusinessOpportunityAnalyzer-1.0.9",{"$f":"sel_country_code","v":"DEU"},"Hydrogen (AEL)",{"$f":"_calc!$B$997","v":"ARG-CHU"},{"$f":"_calc!$BO$990","v":"COST-FLOW"},{"$f":"_calc!$BW$1","v":"Heat"},{"$f":"_calc!$BW$997","v":0}]
[{"$f":"_xlfn.TEXTJOIN(\",\",FALSE,output[[#This Row],[scenario]:[process_class]])","v":"PTX-BusinessOpportunityAnalyzer-1.0.9,DEU,Hydrogen (AEL),ARG-CHU,COST-FLOW,Electricity and H2 storage"},"PTX-BusinessOpportunityAnalyzer-1.0.9",{"$f":"sel_country_code","v":"DEU"},"Hydrogen (AEL)",{"$f":"_calc!$B$997","v":"ARG-CHU"},{"$f":"_calc!$BO$990","v":"COST-FLOW"},{"$f":"_calc!$BX$1","v":"Electricity and H2 storage"},{"$f":"_calc!$BX$997","v":0}]
[{"$f":"_xlfn.TEXTJOIN(\",\",FALSE,output[[#This Row],[scenario]:[process_class]])","v":"PTX-BusinessOpportunityAnalyzer-1.0.9,DEU,Hydrogen (AEL),ARG-COR,COST-FLOW,Water"},"PTX-BusinessOpportunityAnalyzer-1.0.9",{"$f":"sel_country_code","v":"DEU"},"Hydrogen (AEL)",{"$f":"_calc!$B$998","v":"ARG-COR"},{"$f":"_calc!$BO$990","v":"COST-FLOW"},{"$f":"_calc!$BP$1","v":"Water"},{"$f":"_calc!$BP$998","v":8.6538626962820581E-2}]
[{"$f":"_xlfn.TEXTJOIN(\",\",FALSE,output[[#This Row],[scenario]:[process_class]])","v":"PTX-BusinessOpportunityAnalyzer-1.0.9,DEU,Hydrogen (AEL),ARG-COR,COST-FLOW,Electrolysis"},"PTX-BusinessOpportunityAnalyzer-1.0.9",{"$f":"sel_country_code","v":"DEU"},"Hydrogen (AEL)",{"$f":"_calc!$B$998","v":"ARG-COR"},{"$f":"_calc!$BO$990","v":"COST-FLOW"},{"$f":"_calc!$BQ$1","v":"Electrolysis"},{"$f":"_calc!$BQ$998","v":0}]
[{"$f":"_xlfn.TEXTJOIN(\",\",FALSE,output[[#This Row],[scenario]:[process_class]])","v":"PTX-BusinessOpportunityAnalyzer-1.0.9,DEU,Hydrogen (AEL),ARG-COR,COST-FLOW,Electricity generation"},"PTX-BusinessOpportunityAnalyzer-1.0.9",{"$f":"sel_country_code","v":"DEU"},"Hydrogen (AEL)",{"$f":"_calc!$B$998","v":"ARG-COR"},{"$f":"_calc!$BO$990","v":"COST-FLOW"},{"$f":"_calc!$BR$1","v":"Electricity generation"},{"$f":"_calc!$BR$998","v":0}]
[{"$f":"_xlfn.TEXTJOIN(\",\",FALSE,output[[#This Row],[scenario]:[process_class]])","v":"PTX-BusinessOpportunityAnalyzer-1.0.9,DEU,Hydrogen (AEL),ARG-COR,COST-FLOW,Transportation (Pipeline)"},"PTX-BusinessOpportunityAnalyzer-1.0.9",{"$f":"sel_country_code","v":"DEU"},"Hydrogen (AEL)",{"$f":"_calc!$B$998","v":"ARG-COR"},{"$f":"_calc!$BO$990","v":"COST-FLOW"},{"$f":"_calc!$BS$1","v":"Transportation (Pipeline)"},{"$f":"_calc!$BS$998","v":0}]
[{"$f":"_xlfn.TEXTJOIN(\",\",FALSE,output[[#This Row],[scenario]:[process_class]])","v":"PTX-BusinessOpportunityAnalyzer-1.0.9,DEU,Hydrogen (AEL),ARG-COR,COST-FLOW,Transportation (Ship)"},"PTX-BusinessOpportunityAnalyzer-1.0.9",{"$f":"sel_country_code","v":"DEU"},"Hydrogen (AEL)",{"$f":"_calc!$B$998","v":"ARG-COR"},{"$f":"_calc!$BO$990","v":"COST-FLOW"},{"$f":"_calc!$BT$1","v":"Transportation (Ship)"},{"$f":"_calc!$BT$998","v":28.855827596805788}]
[{"$f":"_xlfn.TEXTJOIN(\",\",FALSE,output[[#This Row],[scenario]:[process_class]])","v":"PTX-BusinessOpportunityAnalyzer-1.0.9,DEU,Hydrogen (AEL),ARG-COR,COST-FLOW,Carbon"},"PTX-BusinessOpportunityAnalyzer-1.0.9",{"$f":"sel_country_code","v":"DEU"},"Hydrogen (AEL)",{"$f":"_calc!$B$998","v":"ARG-COR"},{"$f":"_calc!$BO$990","v":"COST-FLOW"},{"$f":"_calc!$BU$1","v":"Carbon"},{"$f":"_calc!$BU$998","v":0}]
[{"$f":"_xlfn.TEXTJOIN(\",\",FALSE,output[[#This Row],[scenario]:[process_class]])","v":"PTX-BusinessOpportunityAnalyzer-1.0.9,DEU,Hydrogen (AEL),ARG-COR,COST-FLOW,Derivate production"},"PTX-BusinessOpportunityAnalyzer-1.0.9",{"$f":"sel_country_code","v":"DEU"},"Hydrogen (AEL)",{"$f":"_calc!$B$998","v":"ARG-COR"},{"$f":"_calc!$BO$990","v":"COST-FLOW"},{"$f":"_calc!$BV$1","v":"Derivate production"},{"$f":"_calc!$BV$998","v":0}]
[{"$f":"_xlfn.TEXTJOIN(\",\",FALSE,output[[#This Row],[scenario]:[process_class]])","v":"PTX-BusinessOpportunityAnalyzer-1.0.9,DEU,Hydrogen (AEL),ARG-COR,COST-FLOW,Heat"},"PTX-BusinessOpportunityAnalyzer-1.0.9",{"$f":"sel_country_code","v":"DEU"},"Hydrogen (AEL)",{"$f":"_calc!$B$998","v":"ARG-COR"},{"$f":"_calc!$BO$990","v":"COST-FLOW"},{"$f":"_calc!$BW$1","v":"Heat"},{"$f":"_calc!$BW$998","v":0}]
[{"$f":"_xlfn.TEXTJOIN(\",\",FALSE,output[[#This Row],[scenario]:[process_class]])","v":"PTX-BusinessOpportunityAnalyzer-1.0.9,DEU,Hydrogen (AEL),ARG-COR,COST-FLOW,Electricity and H2 storage"},"PTX-BusinessOpportunityAnalyzer-1.0.9",{"$f":"sel_country_code","v":"DEU"},"Hydrogen (AEL)",{"$f":"_calc!$B$998","v":"ARG-COR"},{"$f":"_calc!$BO$990","v":"COST-FLOW"},{"$f":"_calc!$BX$1","v":"Electricity and H2 storage"},{"$f":"_calc!$BX$998","v":0}]
[{"$f":"_xlfn.TEXTJOIN(\",\",FALSE,output[[#This Row],[scenario]:[process_class]])","v":"PTX-BusinessOpportunityAnalyzer-1.0.9,DEU,Hydrogen (AEL),ARG-CRB,COST-FLOW,Water"},"PTX-BusinessOpportunityAnalyzer-1.0.9",{"$f":"sel_country_code","v":"DEU"},"Hydrogen (AEL)",{"$f":"_calc!$B$999","v":"ARG-CRB"},{"$f":"_calc!$BO$990","v":"COST-FLOW"},{"$f":"_calc!$BP$1","v":"Water"},{"$f":"_calc!$BP$999","v":8.6538626962820581E-2}]
[{"$f":"_xlfn.TEXTJOIN(\",\",FALSE,output[[#This Row],[scenario]:[process_class]])","v":"PTX-BusinessOpportunityAnalyzer-1.0.9,DEU,Hydrogen (AEL),ARG-CRB,COST-FLOW,Electrolysis"},"PTX-BusinessOpportunityAnalyzer-1.0.9",{"$f":"sel_country_code","v":"DEU"},"Hydrogen (AEL)",{"$f":"_calc!$B$999","v":"ARG-CRB"},{"$f":"_calc!$BO$990","v":"COST-FLOW"},{"$f":"_calc!$BQ$1","v":"Electrolysis"},{"$f":"_calc!$BQ$999","v":0}]
[{"$f":"_xlfn.TEXTJOIN(\",\",FALSE,output[[#This Row],[scenario]:[process_class]])","v":"PTX-BusinessOpportunityAnalyzer-1.0.9,DEU,Hydrogen (AEL),ARG-CRB,COST-FLOW,Electricity generation"},"PTX-BusinessOpportunityAnalyzer-1.0.9",{"$f":"sel_country_code","v":"DEU"},"Hydrogen (AEL)",{"$f":"_calc!$B$999","v":"ARG-CRB"},{"$f":"_calc!$BO$990","v":"COST-FLOW"},{"$f":"_calc!$BR$1","v":"Electricity generation"},{"$f":"_calc!$BR$999","v":0}]
[{"$f":"_xlfn.TEXTJOIN(\",\",FALSE,output[[#This Row],[scenario]:[process_class]])","v":"PTX-BusinessOpportunityAnalyzer-1.0.9,DEU,Hydrogen (AEL),ARG-CRB,COST-FLOW,Transportation (Pipeline)"},"PTX-BusinessOpportunityAnalyzer-1.0.9",{"$f":"sel_country_code","v":"DEU"},"Hydrogen (AEL)",{"$f":"_calc!$B$999","v":"ARG-CRB"},{"$f":"_calc!$BO$990","v":"COST-FLOW"},{"$f":"_calc!$BS$1","v":"Transportation (Pipeline)"},{"$f":"_calc!$BS$999","v":0}]
[{"$f":"_xlfn.TEXTJOIN(\",\",FALSE,output[[#This Row],[scenario]:[process_class]])","v":"PTX-BusinessOpportunityAnalyzer-1.0.9,DEU,Hydrogen (AEL),ARG-CRB,COST-FLOW,Transportation (Ship)"},"PTX-BusinessOpportunityAnalyzer-1.0.9",{"$f":"sel_country_code","v":"DEU"},"Hydrogen (AEL)",{"$f":"_calc!$B$999","v":"ARG-CRB"},{"$f":"_calc!$BO$990","v":"COST-FLOW"},{"$f":"_calc!$BT$1","v":"Transportation (Ship)"},{"$f":"_calc!$BT$999","v":28.855827596805788}]
[{"$f":"_xlfn.TEXTJOIN(\",\",FALSE,output[[#This Row],[scenario]:[process_class]])","v":"PTX-BusinessOpportunityAnalyzer-1.0.9,DEU,Hydrogen (AEL),ARG-CRB,COST-FLOW,Carbon"},"PTX-BusinessOpportunityAnalyzer-1.0.9",{"$f":"sel_country_code","v":"DEU"},"Hydrogen (AEL)",{"$f":"_calc!$B$999","v":"ARG-CRB"},{"$f":"_calc!$BO$990","v":"COST-FLOW"},{"$f":"_calc!$BU$1","v":"Carbon"},{"$f":"_calc!$BU$999","v":0}]
[{"$f":"_xlfn.TEXTJOIN(\",\",FALSE,output[[#This Row],[scenario]:[process_class]])","v":"PTX-BusinessOpportunityAnalyzer-1.0.9,DEU,Hydrogen (AEL),ARG-CRB,COST-FLOW,Derivate production"},"PTX-BusinessOpportunityAnalyzer-1.0.9",{"$f":"sel_country_code","v":"DEU"},"Hydrogen (AEL)",{"$f":"_calc!$B$999","v":"ARG-CRB"},{"$f":"_calc!$BO$990","v":"COST-FLOW"},{"$f":"_calc!$BV$1","v":"Derivate production"},{"$f":"_calc!$BV$999","v":0}]
[{"$f":"_xlfn.TEXTJOIN(\",\",FALSE,output[[#This Row],[scenario]:[process_class]])","v":"PTX-BusinessOpportunityAnalyzer-1.0.9,DEU,Hydrogen (AEL),ARG-CRB,COST-FLOW,Heat"},"PTX-BusinessOpportunityAnalyzer-1.0.9",{"$f":"sel_country_code","v":"DEU"},"Hydrogen (AEL)",{"$f":"_calc!$B$999","v":"ARG-CRB"},{"$f":"_calc!$BO$990","v":"COST-FLOW"},{"$f":"_calc!$BW$1","v":"Heat"},{"$f":"_calc!$BW$999","v":0}]
[{"$f":"_xlfn.TEXTJOIN(\",\",FALSE,output[[#This Row],[scenario]:[process_class]])","v":"PTX-BusinessOpportunityAnalyzer-1.0.9,DEU,Hydrogen (AEL),ARG-CRB,COST-FLOW,Electricity and H2 storage"},"PTX-BusinessOpportunityAnalyzer-1.0.9",{"$f":"sel_country_code","v":"DEU"},"Hydrogen (AEL)",{"$f":"_calc!$B$999","v":"ARG-CRB"},{"$f":"_calc!$BO$990","v":"COST-FLOW"},{"$f":"_calc!$BX$1","v":"Electricity and H2 storage"},{"$f":"_calc!$BX$999","v":0}]
[{"$f":"_xlfn.TEXTJOIN(\",\",FALSE,output[[#This Row],[scenario]:[process_class]])","v":"PTX-BusinessOpportunityAnalyzer-1.0.9,DEU,Hydrogen (AEL),ARG-CRU,COST-FLOW,Water"},"PTX-BusinessOpportunityAnalyzer-1.0.9",{"$f":"sel_country_code","v":"DEU"},"Hydrogen (AEL)",{"$f":"_calc!$B$1000","v":"ARG-CRU"},{"$f":"_calc!$BO$990","v":"COST-FLOW"},{"$f":"_calc!$BP$1","v":"Water"},{"$f":"_calc!$BP$1000","v":8.6538626962820581E-2}]
[{"$f":"_xlfn.TEXTJOIN(\",\",FALSE,output[[#This Row],[scenario]:[process_class]])","v":"PTX-BusinessOpportunityAnalyzer-1.0.9,DEU,Hydrogen (AEL),ARG-CRU,COST-FLOW,Electrolysis"},"PTX-BusinessOpportunityAnalyzer-1.0.9",{"$f":"sel_country_code","v":"DEU"},"Hydrogen (AEL)",{"$f":"_calc!$B$1000","v":"ARG-CRU"},{"$f":"_calc!$BO$990","v":"COST-FLOW"},{"$f":"_calc!$BQ$1","v":"Electrolysis"},{"$f":"_calc!$BQ$1000","v":0}]
[{"$f":"_xlfn.TEXTJOIN(\",\",FALSE,output[[#This Row],[scenario]:[process_class]])","v":"PTX-BusinessOpportunityAnalyzer-1.0.9,DEU,Hydrogen (AEL),ARG-CRU,COST-FLOW,Electricity generation"},"PTX-BusinessOpportunityAnalyzer-1.0.9",{"$f":"sel_country_code","v":"DEU"},"Hydrogen (AEL)",{"$f":"_calc!$B$1000","v":"ARG-CRU"},{"$f":"_calc!$BO$990","v":"COST-FLOW"},{"$f":"_calc!$BR$1","v":"Electricity generation"},{"$f":"_calc!$BR$1000","v":0}]
[{"$f":"_xlfn.TEXTJOIN(\",\",FALSE,output[[#This Row],[scenario]:[process_class]])","v":"PTX-BusinessOpportunityAnalyzer-1.0.9,DEU,Hydrogen (AEL),ARG-CRU,COST-FLOW,Transportation (Pipeline)"},"PTX-BusinessOpportunityAnalyzer-1.0.9",{"$f":"sel_country_code","v":"DEU"},"Hydrogen (AEL)",{"$f":"_calc!$B$1000","v":"ARG-CRU"},{"$f":"_calc!$BO$990","v":"COST-FLOW"},{"$f":"_calc!$BS$1","v":"Transportation (Pipeline)"},{"$f":"_calc!$BS$1000","v":0}]
[{"$f":"_xlfn.TEXTJOIN(\",\",FALSE,output[[#This Row],[scenario]:[process_class]])","v":"PTX-BusinessOpportunityAnalyzer-1.0.9,DEU,Hydrogen (AEL),ARG-CRU,COST-FLOW,Transportation (Ship)"},"PTX-BusinessOpportunityAnalyzer-1.0.9",{"$f":"sel_country_code","v":"DEU"},"Hydrogen (AEL)",{"$f":"_calc!$B$1000","v":"ARG-CRU"},{"$f":"_calc!$BO$990","v":"COST-FLOW"},{"$f":"_calc!$BT$1","v":"Transportation (Ship)"},{"$f":"_calc!$BT$1000","v":28.855827596805788}]
[{"$f":"_xlfn.TEXTJOIN(\",\",FALSE,output[[#This Row],[scenario]:[process_class]])","v":"PTX-BusinessOpportunityAnalyzer-1.0.9,DEU,Hydrogen (AEL),ARG-CRU,COST-FLOW,Carbon"},"PTX-BusinessOpportunityAnalyzer-1.0.9",{"$f":"sel_country_code","v":"DEU"},"Hydrogen (AEL)",{"$f":"_calc!$B$1000","v":"ARG-CRU"},{"$f":"_calc!$BO$990","v":"COST-FLOW"},{"$f":"_calc!$BU$1","v":"Carbon"},{"$f":"_calc!$BU$1000","v":0}]
[{"$f":"_xlfn.TEXTJOIN(\",\",FALSE,output[[#This Row],[scenario]:[process_class]])","v":"PTX-BusinessOpportunityAnalyzer-1.0.9,DEU,Hydrogen (AEL),ARG-CRU,COST-FLOW,Derivate production"},"PTX-BusinessOpportunityAnalyzer-1.0.9",{"$f":"sel_country_code","v":"DEU"},"Hydrogen (AEL)",{"$f":"_calc!$B$1000","v":"ARG-CRU"},{"$f":"_calc!$BO$990","v":"COST-FLOW"},{"$f":"_calc!$BV$1","v":"Derivate production"},{"$f":"_calc!$BV$1000","v":0}]
[{"$f":"_xlfn.TEXTJOIN(\",\",FALSE,output[[#This Row],[scenario]:[process_class]])","v":"PTX-BusinessOpportunityAnalyzer-1.0.9,DEU,Hydrogen (AEL),ARG-CRU,COST-FLOW,Heat"},"PTX-BusinessOpportunityAnalyzer-1.0.9",{"$f":"sel_country_code","v":"DEU"},"Hydrogen (AEL)",{"$f":"_calc!$B$1000","v":"ARG-CRU"},{"$f":"_calc!$BO$990","v":"COST-FLOW"},{"$f":"_calc!$BW$1","v":"Heat"},{"$f":"_calc!$BW$1000","v":0}]
[{"$f":"_xlfn.TEXTJOIN(\",\",FALSE,output[[#This Row],[scenario]:[process_class]])","v":"PTX-BusinessOpportunityAnalyzer-1.0.9,DEU,Hydrogen (AEL),ARG-CRU,COST-FLOW,Electricity and H2 storage"},"PTX-BusinessOpportunityAnalyzer-1.0.9",{"$f":"sel_country_code","v":"DEU"},"Hydrogen (AEL)",{"$f":"_calc!$B$1000","v":"ARG-CRU"},{"$f":"_calc!$BO$990","v":"COST-FLOW"},{"$f":"_calc!$BX$1","v":"Electricity and H2 storage"},{"$f":"_calc!$BX$1000","v":0}]
[{"$f":"_xlfn.TEXTJOIN(\",\",FALSE,output[[#This Row],[scenario]:[process_class]])","v":"PTX-BusinessOpportunityAnalyzer-1.0.9,DEU,Hydrogen (AEL),ARG-EST,COST-FLOW,Water"},"PTX-BusinessOpportunityAnalyzer-1.0.9",{"$f":"sel_country_code","v":"DEU"},"Hydrogen (AEL)",{"$f":"_calc!$B$1001","v":"ARG-EST"},{"$f":"_calc!$BO$990","v":"COST-FLOW"},{"$f":"_calc!$BP$1","v":"Water"},{"$f":"_calc!$BP$1001","v":8.6538626962820581E-2}]
[{"$f":"_xlfn.TEXTJOIN(\",\",FALSE,output[[#This Row],[scenario]:[process_class]])","v":"PTX-BusinessOpportunityAnalyzer-1.0.9,DEU,Hydrogen (AEL),ARG-EST,COST-FLOW,Electrolysis"},"PTX-BusinessOpportunityAnalyzer-1.0.9",{"$f":"sel_country_code","v":"DEU"},"Hydrogen (AEL)",{"$f":"_calc!$B$1001","v":"ARG-EST"},{"$f":"_calc!$BO$990","v":"COST-FLOW"},{"$f":"_calc!$BQ$1","v":"Electrolysis"},{"$f":"_calc!$BQ$1001","v":0}]
[{"$f":"_xlfn.TEXTJOIN(\",\",FALSE,output[[#This Row],[scenario]:[process_class]])","v":"PTX-BusinessOpportunityAnalyzer-1.0.9,DEU,Hydrogen (AEL),ARG-EST,COST-FLOW,Electricity generation"},"PTX-BusinessOpportunityAnalyzer-1.0.9",{"$f":"sel_country_code","v":"DEU"},"Hydrogen (AEL)",{"$f":"_calc!$B$1001","v":"ARG-EST"},{"$f":"_calc!$BO$990","v":"COST-FLOW"},{"$f":"_calc!$BR$1","v":"Electricity generation"},{"$f":"_calc!$BR$1001","v":0}]
[{"$f":"_xlfn.TEXTJOIN(\",\",FALSE,output[[#This Row],[scenario]:[process_class]])","v":"PTX-BusinessOpportunityAnalyzer-1.0.9,DEU,Hydrogen (AEL),ARG-EST,COST-FLOW,Transportation (Pipeline)"},"PTX-BusinessOpportunityAnalyzer-1.0.9",{"$f":"sel_country_code","v":"DEU"},"Hydrogen (AEL)",{"$f":"_calc!$B$1001","v":"ARG-EST"},{"$f":"_calc!$BO$990","v":"COST-FLOW"},{"$f":"_calc!$BS$1","v":"Transportation (Pipeline)"},{"$f":"_calc!$BS$1001","v":0}]
[{"$f":"_xlfn.TEXTJOIN(\",\",FALSE,output[[#This Row],[scenario]:[process_class]])","v":"PTX-BusinessOpportunityAnalyzer-1.0.9,DEU,Hydrogen (AEL),ARG-EST,COST-FLOW,Transportation (Ship)"},"PTX-BusinessOpportunityAnalyzer-1.0.9",{"$f":"sel_country_code","v":"DEU"},"Hydrogen (AEL)",{"$f":"_calc!$B$1001","v":"ARG-EST"},{"$f":"_calc!$BO$990","v":"COST-FLOW"},{"$f":"_calc!$BT$1","v":"Transportation (Ship)"},{"$f":"_calc!$BT$1001","v":28.855827596805788}]
[{"$f":"_xlfn.TEXTJOIN(\",\",FALSE,output[[#This Row],[scenario]:[process_class]])","v":"PTX-BusinessOpportunityAnalyzer-1.0.9,DEU,Hydrogen (AEL),ARG-EST,COST-FLOW,Carbon"},"PTX-BusinessOpportunityAnalyzer-1.0.9",{"$f":"sel_country_code","v":"DEU"},"Hydrogen (AEL)",{"$f":"_calc!$B$1001","v":"ARG-EST"},{"$f":"_calc!$BO$990","v":"COST-FLOW"},{"$f":"_calc!$BU$1","v":"Carbon"},{"$f":"_calc!$BU$1001","v":0}]
[{"$f":"_xlfn.TEXTJOIN(\",\",FALSE,output[[#This Row],[scenario]:[process_class]])","v":"PTX-BusinessOpportunityAnalyzer-1.0.9,DEU,Hydrogen (AEL),ARG-EST,COST-FLOW,Derivate production"},"PTX-BusinessOpportunityAnalyzer-1.0.9",{"$f":"sel_country_code","v":"DEU"},"Hydrogen (AEL)",{"$f":"_calc!$B$1001","v":"ARG-EST"},{"$f":"_calc!$BO$990","v":"COST-FLOW"},{"$f":"_calc!$BV$1","v":"Derivate production"},{"$f":"_calc!$BV$1001","v":0}]
[{"$f":"_xlfn.TEXTJOIN(\",\",FALSE,output[[#This Row],[scenario]:[process_class]])","v":"PTX-BusinessOpportunityAnalyzer-1.0.9,DEU,Hydrogen (AEL),ARG-EST,COST-FLOW,Heat"},"PTX-BusinessOpportunityAnalyzer-1.0.9",{"$f":"sel_country_code","v":"DEU"},"Hydrogen (AEL)",{"$f":"_calc!$B$1001","v":"ARG-EST"},{"$f":"_calc!$BO$990","v":"COST-FLOW"},{"$f":"_calc!$BW$1","v":"Heat"},{"$f":"_calc!$BW$1001","v":0}]
[{"$f":"_xlfn.TEXTJOIN(\",\",FALSE,output[[#This Row],[scenario]:[process_class]])","v":"PTX-BusinessOpportunityAnalyzer-1.0.9,DEU,Hydrogen (AEL),ARG-EST,COST-FLOW,Electricity and H2 storage"},"PTX-BusinessOpportunityAnalyzer-1.0.9",{"$f":"sel_country_code","v":"DEU"},"Hydrogen (AEL)",{"$f":"_calc!$B$1001","v":"ARG-EST"},{"$f":"_calc!$BO$990","v":"COST-FLOW"},{"$f":"_calc!$BX$1","v":"Electricity and H2 storage"},{"$f":"_calc!$BX$1001","v":0}]
[{"$f":"_xlfn.TEXTJOIN(\",\",FALSE,output[[#This Row],[scenario]:[process_class]])","v":"PTX-BusinessOpportunityAnalyzer-1.0.9,DEU,Hydrogen (AEL),ARG-FOR,COST-FLOW,Water"},"PTX-BusinessOpportunityAnalyzer-1.0.9",{"$f":"sel_country_code","v":"DEU"},"Hydrogen (AEL)",{"$f":"_calc!$B$1002","v":"ARG-FOR"},{"$f":"_calc!$BO$990","v":"COST-FLOW"},{"$f":"_calc!$BP$1","v":"Water"},{"$f":"_calc!$BP$1002","v":8.6538626962820581E-2}]
[{"$f":"_xlfn.TEXTJOIN(\",\",FALSE,output[[#This Row],[scenario]:[process_class]])","v":"PTX-BusinessOpportunityAnalyzer-1.0.9,DEU,Hydrogen (AEL),ARG-FOR,COST-FLOW,Electrolysis"},"PTX-BusinessOpportunityAnalyzer-1.0.9",{"$f":"sel_country_code","v":"DEU"},"Hydrogen (AEL)",{"$f":"_calc!$B$1002","v":"ARG-FOR"},{"$f":"_calc!$BO$990","v":"COST-FLOW"},{"$f":"_calc!$BQ$1","v":"Electrolysis"},{"$f":"_calc!$BQ$1002","v":0}]
[{"$f":"_xlfn.TEXTJOIN(\",\",FALSE,output[[#This Row],[scenario]:[process_class]])","v":"PTX-BusinessOpportunityAnalyzer-1.0.9,DEU,Hydrogen (AEL),ARG-FOR,COST-FLOW,Electricity generation"},"PTX-BusinessOpportunityAnalyzer-1.0.9",{"$f":"sel_country_code","v":"DEU"},"Hydrogen (AEL)",{"$f":"_calc!$B$1002","v":"ARG-FOR"},{"$f":"_calc!$BO$990","v":"COST-FLOW"},{"$f":"_calc!$BR$1","v":"Electricity generation"},{"$f":"_calc!$BR$1002","v":0}]
[{"$f":"_xlfn.TEXTJOIN(\",\",FALSE,output[[#This Row],[scenario]:[process_class]])","v":"PTX-BusinessOpportunityAnalyzer-1.0.9,DEU,Hydrogen (AEL),ARG-FOR,COST-FLOW,Transportation (Pipeline)"},"PTX-BusinessOpportunityAnalyzer-1.0.9",{"$f":"sel_country_code","v":"DEU"},"Hydrogen (AEL)",{"$f":"_calc!$B$1002","v":"ARG-FOR"},{"$f":"_calc!$BO$990","v":"COST-FLOW"},{"$f":"_calc!$BS$1","v":"Transportation (Pipeline)"},{"$f":"_calc!$BS$1002","v":0}]
[{"$f":"_xlfn.TEXTJOIN(\",\",FALSE,output[[#This Row],[scenario]:[process_class]])","v":"PTX-BusinessOpportunityAnalyzer-1.0.9,DEU,Hydrogen (AEL),ARG-FOR,COST-FLOW,Transportation (Ship)"},"PTX-BusinessOpportunityAnalyzer-1.0.9",{"$f":"sel_country_code","v":"DEU"},"Hydrogen (AEL)",{"$f":"_calc!$B$1002","v":"ARG-FOR"},{"$f":"_calc!$BO$990","v":"COST-FLOW"},{"$f":"_calc!$BT$1","v":"Transportation (Ship)"},{"$f":"_calc!$BT$1002","v":28.855827596805788}]
[{"$f":"_xlfn.TEXTJOIN(\",\",FALSE,output[[#This Row],[scenario]:[process_class]])","v":"PTX-BusinessOpportunityAnalyzer-1.0.9,DEU,Hydrogen (AEL),ARG-FOR,COST-FLOW,Carbon"},"PTX-BusinessOpportunityAnalyzer-1.0.9",{"$f":"sel_country_code","v":"DEU"},"Hydrogen (AEL)",{"$f":"_calc!$B$1002","v":"ARG-FOR"},{"$f":"_calc!$BO$990","v":"COST-FLOW"},{"$f":"_calc!$BU$1","v":"Carbon"},{"$f":"_calc!$BU$1002","v":0}]
[{"$f":"_xlfn.TEXTJOIN(\",\",FALSE,output[[#This Row],[scenario]:[process_class]])","v":"PTX-BusinessOpportunityAnalyzer-1.0.9,DEU,Hydrogen (AEL),ARG-FOR,COST-FLOW,Derivate production"},"PTX-BusinessOpportunityAnalyzer-1.0.9",{"$f":"sel_country_code","v":"DEU"},"Hydrogen (AEL)",{"$f":"_calc!$B$1002","v":"ARG-FOR"},{"$f":"_calc!$BO$990","v":"COST-FLOW"},{"$f":"_calc!$BV$1","v":"Derivate production"},{"$f":"_calc!$BV$1002","v":0}]
[{"$f":"_xlfn.TEXTJOIN(\",\",FALSE,output[[#This Row],[scenario]:[process_class]])","v":"PTX-BusinessOpportunityAnalyzer-1.0.9,DEU,Hydrogen (AEL),ARG-FOR,COST-FLOW,Heat"},"PTX-BusinessOpportunityAnalyzer-1.0.9",{"$f":"sel_country_code","v":"DEU"},"Hydrogen (AEL)",{"$f":"_calc!$B$1002","v":"ARG-FOR"},{"$f":"_calc!$BO$990","v":"COST-FLOW"},{"$f":"_calc!$BW$1","v":"Heat"},{"$f":"_calc!$BW$1002","v":0}]
[{"$f":"_xlfn.TEXTJOIN(\",\",FALSE,output[[#This Row],[scenario]:[process_class]])","v":"PTX-BusinessOpportunityAnalyzer-1.0.9,DEU,Hydrogen (AEL),ARG-FOR,COST-FLOW,Electricity and H2 storage"},"PTX-BusinessOpportunityAnalyzer-1.0.9",{"$f":"sel_country_code","v":"DEU"},"Hydrogen (AEL)",{"$f":"_calc!$B$1002","v":"ARG-FOR"},{"$f":"_calc!$BO$990","v":"COST-FLOW"},{"$f":"_calc!$BX$1","v":"Electricity and H2 storage"},{"$f":"_calc!$BX$1002","v":0}]
[{"$f":"_xlfn.TEXTJOIN(\",\",FALSE,output[[#This Row],[scenario]:[process_class]])","v":"PTX-BusinessOpportunityAnalyzer-1.0.9,DEU,Hydrogen (AEL),ARG-FUE,COST-FLOW,Water"},"PTX-BusinessOpportunityAnalyzer-1.0.9",{"$f":"sel_country_code","v":"DEU"},"Hydrogen (AEL)",{"$f":"_calc!$B$1003","v":"ARG-FUE"},{"$f":"_calc!$BO$990","v":"COST-FLOW"},{"$f":"_calc!$BP$1","v":"Water"},{"$f":"_calc!$BP$1003","v":8.6538626962820581E-2}]
[{"$f":"_xlfn.TEXTJOIN(\",\",FALSE,output[[#This Row],[scenario]:[process_class]])","v":"PTX-BusinessOpportunityAnalyzer-1.0.9,DEU,Hydrogen (AEL),ARG-FUE,COST-FLOW,Electrolysis"},"PTX-BusinessOpportunityAnalyzer-1.0.9",{"$f":"sel_country_code","v":"DEU"},"Hydrogen (AEL)",{"$f":"_calc!$B$1003","v":"ARG-FUE"},{"$f":"_calc!$BO$990","v":"COST-FLOW"},{"$f":"_calc!$BQ$1","v":"Electrolysis"},{"$f":"_calc!$BQ$1003","v":0}]
[{"$f":"_xlfn.TEXTJOIN(\",\",FALSE,output[[#This Row],[scenario]:[process_class]])","v":"PTX-BusinessOpportunityAnalyzer-1.0.9,DEU,Hydrogen (AEL),ARG-FUE,COST-FLOW,Electricity generation"},"PTX-BusinessOpportunityAnalyzer-1.0.9",{"$f":"sel_country_code","v":"DEU"},"Hydrogen (AEL)",{"$f":"_calc!$B$1003","v":"ARG-FUE"},{"$f":"_calc!$BO$990","v":"COST-FLOW"},{"$f":"_calc!$BR$1","v":"Electricity generation"},{"$f":"_calc!$BR$1003","v":0}]
[{"$f":"_xlfn.TEXTJOIN(\",\",FALSE,output[[#This Row],[scenario]:[process_class]])","v":"PTX-BusinessOpportunityAnalyzer-1.0.9,DEU,Hydrogen (AEL),ARG-FUE,COST-FLOW,Transportation (Pipeline)"},"PTX-BusinessOpportunityAnalyzer-1.0.9",{"$f":"sel_country_code","v":"DEU"},"Hydrogen (AEL)",{"$f":"_calc!$B$1003","v":"ARG-FUE"},{"$f":"_calc!$BO$990","v":"COST-FLOW"},{"$f":"_calc!$BS$1","v":"Transportation (Pipeline)"},{"$f":"_calc!$BS$1003","v":0}]
[{"$f":"_xlfn.TEXTJOIN(\",\",FALSE,output[[#This Row],[scenario]:[process_class]])","v":"PTX-BusinessOpportunityAnalyzer-1.0.9,DEU,Hydrogen (AEL),ARG-FUE,COST-FLOW,Transportation (Ship)"},"PTX-BusinessOpportunityAnalyzer-1.0.9",{"$f":"sel_country_code","v":"DEU"},"Hydrogen (AEL)",{"$f":"_calc!$B$1003","v":"ARG-FUE"},{"$f":"_calc!$BO$990","v":"COST-FLOW"},{"$f":"_calc!$BT$1","v":"Transportation (Ship)"},{"$f":"_calc!$BT$1003","v":28.855827596805788}]
[{"$f":"_xlfn.TEXTJOIN(\",\",FALSE,output[[#This Row],[scenario]:[process_class]])","v":"PTX-BusinessOpportunityAnalyzer-1.0.9,DEU,Hydrogen (AEL),ARG-FUE,COST-FLOW,Carbon"},"PTX-BusinessOpportunityAnalyzer-1.0.9",{"$f":"sel_country_code","v":"DEU"},"Hydrogen (AEL)",{"$f":"_calc!$B$1003","v":"ARG-FUE"},{"$f":"_calc!$BO$990","v":"COST-FLOW"},{"$f":"_calc!$BU$1","v":"Carbon"},{"$f":"_calc!$BU$1003","v":0}]
[{"$f":"_xlfn.TEXTJOIN(\",\",FALSE,output[[#This Row],[scenario]:[process_class]])","v":"PTX-BusinessOpportunityAnalyzer-1.0.9,DEU,Hydrogen (AEL),ARG-FUE,COST-FLOW,Derivate production"},{"$f":"output_scenario_name","v":"PTX-BusinessOpportunityAnalyzer-1.0.9"},{"$f":"sel_country_code","v":"DEU"},{"$f":"sel_chain","v":"Hydrogen (AEL)"},{"$f":"_calc!$B$1003","v":"ARG-FUE"},{"$f":"_calc!$BO$990","v":"COST-FLOW"},{"$f":"_calc!$BV$1","v":"Derivate production"},{"$f":"_calc!$BV$1003","v":0}]
[{"$f":"_xlfn.TEXTJOIN(\",\",FALSE,output[[#This Row],[scenario]:[process_class]])","v":"PTX-BusinessOpportunityAnalyzer-1.0.9,DEU,Hydrogen (AEL),ARG-FUE,COST-FLOW,Heat"},"PTX-BusinessOpportunityAnalyzer-1.0.9",{"$f":"sel_country_code","v":"DEU"},"Hydrogen (AEL)",{"$f":"_calc!$B$1003","v":"ARG-FUE"},{"$f":"_calc!$BO$990","v":"COST-FLOW"},{"$f":"_calc!$BW$1","v":"Heat"},{"$f":"_calc!$BW$1003","v":0}]
[{"$f":"_xlfn.TEXTJOIN(\",\",FALSE,output[[#This Row],[scenario]:[process_class]])","v":"PTX-BusinessOpportunityAnalyzer-1.0.9,DEU,Hydrogen (AEL),ARG-FUE,COST-FLOW,Electricity and H2 storage"},"PTX-BusinessOpportunityAnalyzer-1.0.9",{"$f":"sel_country_code","v":"DEU"},"Hydrogen (AEL)",{"$f":"_calc!$B$1003","v":"ARG-FUE"},{"$f":"_calc!$BO$990","v":"COST-FLOW"},{"$f":"_calc!$BX$1","v":"Electricity and H2 storage"},{"$f":"_calc!$BX$1003","v":0}]
[{"$f":"_xlfn.TEXTJOIN(\",\",FALSE,output[[#This Row],[scenario]:[process_class]])","v":"PTX-BusinessOpportunityAnalyzer-1.0.9,DEU,Hydrogen (AEL),ARG-JUJ,COST-FLOW,Water"},"PTX-BusinessOpportunityAnalyzer-1.0.9",{"$f":"sel_country_code","v":"DEU"},"Hydrogen (AEL)",{"$f":"_calc!$B$1004","v":"ARG-JUJ"},{"$f":"_calc!$BO$990","v":"COST-FLOW"},{"$f":"_calc!$BP$1","v":"Water"},{"$f":"_calc!$BP$1004","v":8.6538626962820581E-2}]
[{"$f":"_xlfn.TEXTJOIN(\",\",FALSE,output[[#This Row],[scenario]:[process_class]])","v":"PTX-BusinessOpportunityAnalyzer-1.0.9,DEU,Hydrogen (AEL),ARG-JUJ,COST-FLOW,Electrolysis"},"PTX-BusinessOpportunityAnalyzer-1.0.9",{"$f":"sel_country_code","v":"DEU"},"Hydrogen (AEL)",{"$f":"_calc!$B$1004","v":"ARG-JUJ"},{"$f":"_calc!$BO$990","v":"COST-FLOW"},{"$f":"_calc!$BQ$1","v":"Electrolysis"},{"$f":"_calc!$BQ$1004","v":0}]
[{"$f":"_xlfn.TEXTJOIN(\",\",FALSE,output[[#This Row],[scenario]:[process_class]])","v":"PTX-BusinessOpportunityAnalyzer-1.0.9,DEU,Hydrogen (AEL),ARG-JUJ,COST-FLOW,Electricity generation"},"PTX-BusinessOpportunityAnalyzer-1.0.9",{"$f":"sel_country_code","v":"DEU"},"Hydrogen (AEL)",{"$f":"_calc!$B$1004","v":"ARG-JUJ"},{"$f":"_calc!$BO$990","v":"COST-FLOW"},{"$f":"_calc!$BR$1","v":"Electricity generation"},{"$f":"_calc!$BR$1004","v":0}]
[{"$f":"_xlfn.TEXTJOIN(\",\",FALSE,output[[#This Row],[scenario]:[process_class]])","v":"PTX-BusinessOpportunityAnalyzer-1.0.9,DEU,Hydrogen (AEL),ARG-JUJ,COST-FLOW,Transportation (Pipeline)"},"PTX-BusinessOpportunityAnalyzer-1.0.9",{"$f":"sel_country_code","v":"DEU"},"Hydrogen (AEL)",{"$f":"_calc!$B$1004","v":"ARG-JUJ"},{"$f":"_calc!$BO$990","v":"COST-FLOW"},{"$f":"_calc!$BS$1","v":"Transportation (Pipeline)"},{"$f":"_calc!$BS$1004","v":0}]
[{"$f":"_xlfn.TEXTJOIN(\",\",FALSE,output[[#This Row],[scenario]:[process_class]])","v":"PTX-BusinessOpportunityAnalyzer-1.0.9,DEU,Hydrogen (AEL),ARG-JUJ,COST-FLOW,Transportation (Ship)"},"PTX-BusinessOpportunityAnalyzer-1.0.9",{"$f":"sel_country_code","v":"DEU"},"Hydrogen (AEL)",{"$f":"_calc!$B$1004","v":"ARG-JUJ"},{"$f":"_calc!$BO$990","v":"COST-FLOW"},{"$f":"_calc!$BT$1","v":"Transportation (Ship)"},{"$f":"_calc!$BT$1004","v":28.855827596805788}]
[{"$f":"_xlfn.TEXTJOIN(\",\",FALSE,output[[#This Row],[scenario]:[process_class]])","v":"PTX-BusinessOpportunityAnalyzer-1.0.9,DEU,Hydrogen (AEL),ARG-JUJ,COST-FLOW,Carbon"},"PTX-BusinessOpportunityAnalyzer-1.0.9",{"$f":"sel_country_code","v":"DEU"},"Hydrogen (AEL)",{"$f":"_calc!$B$1004","v":"ARG-JUJ"},{"$f":"_calc!$BO$990","v":"COST-FLOW"},{"$f":"_calc!$BU$1","v":"Carbon"},{"$f":"_calc!$BU$1004","v":0}]
[{"$f":"_xlfn.TEXTJOIN(\",\",FALSE,output[[#This Row],[scenario]:[process_class]])","v":"PTX-BusinessOpportunityAnalyzer-1.0.9,DEU,Hydrogen (AEL),ARG-JUJ,COST-FLOW,Derivate production"},"PTX-BusinessOpportunityAnalyzer-1.0.9",{"$f":"sel_country_code","v":"DEU"},"Hydrogen (AEL)",{"$f":"_calc!$B$1004","v":"ARG-JUJ"},{"$f":"_calc!$BO$990","v":"COST-FLOW"},{"$f":"_calc!$BV$1","v":"Derivate production"},{"$f":"_calc!$BV$1004","v":0}]
[{"$f":"_xlfn.TEXTJOIN(\",\",FALSE,output[[#This Row],[scenario]:[process_class]])","v":"PTX-BusinessOpportunityAnalyzer-1.0.9,DEU,Hydrogen (AEL),ARG-JUJ,COST-FLOW,Heat"},"PTX-BusinessOpportunityAnalyzer-1.0.9",{"$f":"sel_country_code","v":"DEU"},"Hydrogen (AEL)",{"$f":"_calc!$B$1004","v":"ARG-JUJ"},{"$f":"_calc!$BO$990","v":"COST-FLOW"},{"$f":"_calc!$BW$1","v":"Heat"},{"$f":"_calc!$BW$1004","v":0}]
[{"$f":"_xlfn.TEXTJOIN(\",\",FALSE,output[[#This Row],[scenario]:[process_class]])","v":"PTX-BusinessOpportunityAnalyzer-1.0.9,DEU,Hydrogen (AEL),ARG-JUJ,COST-FLOW,Electricity and H2 storage"},"PTX-BusinessOpportunityAnalyzer-1.0.9",{"$f":"sel_country_code","v":"DEU"},"Hydrogen (AEL)",{"$f":"_calc!$B$1004","v":"ARG-JUJ"},{"$f":"_calc!$BO$990","v":"COST-FLOW"},{"$f":"_calc!$BX$1","v":"Electricity and H2 storage"},{"$f":"_calc!$BX$1004","v":0}]
[{"$f":"_xlfn.TEXTJOIN(\",\",FALSE,output[[#This Row],[scenario]:[process_class]])","v":"PTX-BusinessOpportunityAnalyzer-1.0.9,DEU,Hydrogen (AEL),ARG-LAR,COST-FLOW,Water"},"PTX-BusinessOpportunityAnalyzer-1.0.9",{"$f":"sel_country_code","v":"DEU"},"Hydrogen (AEL)",{"$f":"_calc!$B$1005","v":"ARG-LAR"},{"$f":"_calc!$BO$990","v":"COST-FLOW"},{"$f":"_calc!$BP$1","v":"Water"},{"$f":"_calc!$BP$1005","v":8.6538626962820581E-2}]
[{"$f":"_xlfn.TEXTJOIN(\",\",FALSE,output[[#This Row],[scenario]:[process_class]])","v":"PTX-BusinessOpportunityAnalyzer-1.0.9,DEU,Hydrogen (AEL),ARG-LAR,COST-FLOW,Electrolysis"},"PTX-BusinessOpportunityAnalyzer-1.0.9",{"$f":"sel_country_code","v":"DEU"},"Hydrogen (AEL)",{"$f":"_calc!$B$1005","v":"ARG-LAR"},{"$f":"_calc!$BO$990","v":"COST-FLOW"},{"$f":"_calc!$BQ$1","v":"Electrolysis"},{"$f":"_calc!$BQ$1005","v":0}]
[{"$f":"_xlfn.TEXTJOIN(\",\",FALSE,output[[#This Row],[scenario]:[process_class]])","v":"PTX-BusinessOpportunityAnalyzer-1.0.9,DEU,Hydrogen (AEL),ARG-LAR,COST-FLOW,Electricity generation"},"PTX-BusinessOpportunityAnalyzer-1.0.9",{"$f":"sel_country_code","v":"DEU"},"Hydrogen (AEL)",{"$f":"_calc!$B$1005","v":"ARG-LAR"},{"$f":"_calc!$BO$990","v":"COST-FLOW"},{"$f":"_calc!$BR$1","v":"Electricity generation"},{"$f":"_calc!$BR$1005","v":0}]
[{"$f":"_xlfn.TEXTJOIN(\",\",FALSE,output[[#This Row],[scenario]:[process_class]])","v":"PTX-BusinessOpportunityAnalyzer-1.0.9,DEU,Hydrogen (AEL),ARG-LAR,COST-FLOW,Transportation (Pipeline)"},"PTX-BusinessOpportunityAnalyzer-1.0.9",{"$f":"sel_country_code","v":"DEU"},"Hydrogen (AEL)",{"$f":"_calc!$B$1005","v":"ARG-LAR"},{"$f":"_calc!$BO$990","v":"COST-FLOW"},{"$f":"_calc!$BS$1","v":"Transportation (Pipeline)"},{"$f":"_calc!$BS$1005","v":0}]
[{"$f":"_xlfn.TEXTJOIN(\",\",FALSE,output[[#This Row],[scenario]:[process_class]])","v":"PTX-BusinessOpportunityAnalyzer-1.0.9,DEU,Hydrogen (AEL),ARG-LAR,COST-FLOW,Transportation (Ship)"},"PTX-BusinessOpportunityAnalyzer-1.0.9",{"$f":"sel_country_code","v":"DEU"},"Hydrogen (AEL)",{"$f":"_calc!$B$1005","v":"ARG-LAR"},{"$f":"_calc!$BO$990","v":"COST-FLOW"},{"$f":"_calc!$BT$1","v":"Transportation (Ship)"},{"$f":"_calc!$BT$1005","v":28.855827596805788}]
[{"$f":"_xlfn.TEXTJOIN(\",\",FALSE,output[[#This Row],[scenario]:[process_class]])","v":"PTX-BusinessOpportunityAnalyzer-1.0.9,DEU,Hydrogen (AEL),ARG-LAR,COST-FLOW,Carbon"},"PTX-BusinessOpportunityAnalyzer-1.0.9",{"$f":"sel_country_code","v":"DEU"},"Hydrogen (AEL)",{"$f":"_calc!$B$1005","v":"ARG-LAR"},{"$f":"_calc!$BO$990","v":"COST-FLOW"},{"$f":"_calc!$BU$1","v":"Carbon"},{"$f":"_calc!$BU$1005","v":0}]
[{"$f":"_xlfn.TEXTJOIN(\",\",FALSE,output[[#This Row],[scenario]:[process_class]])","v":"PTX-BusinessOpportunityAnalyzer-1.0.9,DEU,Hydrogen (AEL),ARG-LAR,COST-FLOW,Derivate production"},"PTX-BusinessOpportunityAnalyzer-1.0.9",{"$f":"sel_country_code","v":"DEU"},"Hydrogen (AEL)",{"$f":"_calc!$B$1005","v":"ARG-LAR"},{"$f":"_calc!$BO$990","v":"COST-FLOW"},{"$f":"_calc!$BV$1","v":"Derivate production"},{"$f":"_calc!$BV$1005","v":0}]
[{"$f":"_xlfn.TEXTJOIN(\",\",FALSE,output[[#This Row],[scenario]:[process_class]])","v":"PTX-BusinessOpportunityAnalyzer-1.0.9,DEU,Hydrogen (AEL),ARG-LAR,COST-FLOW,Heat"},"PTX-BusinessOpportunityAnalyzer-1.0.9",{"$f":"sel_country_code","v":"DEU"},"Hydrogen (AEL)",{"$f":"_calc!$B$1005","v":"ARG-LAR"},{"$f":"_calc!$BO$990","v":"COST-FLOW"},{"$f":"_calc!$BW$1","v":"Heat"},{"$f":"_calc!$BW$1005","v":0}]
[{"$f":"_xlfn.TEXTJOIN(\",\",FALSE,output[[#This Row],[scenario]:[process_class]])","v":"PTX-BusinessOpportunityAnalyzer-1.0.9,DEU,Hydrogen (AEL),ARG-LAR,COST-FLOW,Electricity and H2 storage"},"PTX-BusinessOpportunityAnalyzer-1.0.9",{"$f":"sel_country_code","v":"DEU"},"Hydrogen (AEL)",{"$f":"_calc!$B$1005","v":"ARG-LAR"},{"$f":"_calc!$BO$990","v":"COST-FLOW"},{"$f":"_calc!$BX$1","v":"Electricity and H2 storage"},{"$f":"_calc!$BX$1005","v":0}]
[{"$f":"_xlfn.TEXTJOIN(\",\",FALSE,output[[#This Row],[scenario]:[process_class]])","v":"PTX-BusinessOpportunityAnalyzer-1.0.9,DEU,Hydrogen (AEL),ARG-MEN,COST-FLOW,Water"},"PTX-BusinessOpportunityAnalyzer-1.0.9",{"$f":"sel_country_code","v":"DEU"},"Hydrogen (AEL)",{"$f":"_calc!$B$1006","v":"ARG-MEN"},{"$f":"_calc!$BO$990","v":"COST-FLOW"},{"$f":"_calc!$BP$1","v":"Water"},{"$f":"_calc!$BP$1006","v":8.6538626962820581E-2}]
[{"$f":"_xlfn.TEXTJOIN(\",\",FALSE,output[[#This Row],[scenario]:[process_class]])","v":"PTX-BusinessOpportunityAnalyzer-1.0.9,DEU,Hydrogen (AEL),ARG-MEN,COST-FLOW,Electrolysis"},"PTX-BusinessOpportunityAnalyzer-1.0.9",{"$f":"sel_country_code","v":"DEU"},"Hydrogen (AEL)",{"$f":"_calc!$B$1006","v":"ARG-MEN"},{"$f":"_calc!$BO$990","v":"COST-FLOW"},{"$f":"_calc!$BQ$1","v":"Electrolysis"},{"$f":"_calc!$BQ$1006","v":0}]
[{"$f":"_xlfn.TEXTJOIN(\",\",FALSE,output[[#This Row],[scenario]:[process_class]])","v":"PTX-BusinessOpportunityAnalyzer-1.0.9,DEU,Hydrogen (AEL),ARG-MEN,COST-FLOW,Electricity generation"},"PTX-BusinessOpportunityAnalyzer-1.0.9",{"$f":"sel_country_code","v":"DEU"},"Hydrogen (AEL)",{"$f":"_calc!$B$1006","v":"ARG-MEN"},{"$f":"_calc!$BO$990","v":"COST-FLOW"},{"$f":"_calc!$BR$1","v":"Electricity generation"},{"$f":"_calc!$BR$1006","v":0}]
[{"$f":"_xlfn.TEXTJOIN(\",\",FALSE,output[[#This Row],[scenario]:[process_class]])","v":"PTX-BusinessOpportunityAnalyzer-1.0.9,DEU,Hydrogen (AEL),ARG-MEN,COST-FLOW,Transportation (Pipeline)"},"PTX-BusinessOpportunityAnalyzer-1.0.9",{"$f":"sel_country_code","v":"DEU"},"Hydrogen (AEL)",{"$f":"_calc!$B$1006","v":"ARG-MEN"},{"$f":"_calc!$BO$990","v":"COST-FLOW"},{"$f":"_calc!$BS$1","v":"Transportation (Pipeline)"},{"$f":"_calc!$BS$1006","v":0}]
[{"$f":"_xlfn.TEXTJOIN(\",\",FALSE,output[[#This Row],[scenario]:[process_class]])","v":"PTX-BusinessOpportunityAnalyzer-1.0.9,DEU,Hydrogen (AEL),ARG-MEN,COST-FLOW,Transportation (Ship)"},"PTX-BusinessOpportunityAnalyzer-1.0.9",{"$f":"sel_country_code","v":"DEU"},"Hydrogen (AEL)",{"$f":"_calc!$B$1006","v":"ARG-MEN"},{"$f":"_calc!$BO$990","v":"COST-FLOW"},{"$f":"_calc!$BT$1","v":"Transportation (Ship)"},{"$f":"_calc!$BT$1006","v":28.855827596805788}]
[{"$f":"_xlfn.TEXTJOIN(\",\",FALSE,output[[#This Row],[scenario]:[process_class]])","v":"PTX-BusinessOpportunityAnalyzer-1.0.9,DEU,Hydrogen (AEL),ARG-MEN,COST-FLOW,Carbon"},"PTX-BusinessOpportunityAnalyzer-1.0.9",{"$f":"sel_country_code","v":"DEU"},"Hydrogen (AEL)",{"$f":"_calc!$B$1006","v":"ARG-MEN"},{"$f":"_calc!$BO$990","v":"COST-FLOW"},{"$f":"_calc!$BU$1","v":"Carbon"},{"$f":"_calc!$BU$1006","v":0}]
[{"$f":"_xlfn.TEXTJOIN(\",\",FALSE,output[[#This Row],[scenario]:[process_class]])","v":"PTX-BusinessOpportunityAnalyzer-1.0.9,DEU,Hydrogen (AEL),ARG-MEN,COST-FLOW,Derivate production"},"PTX-BusinessOpportunityAnalyzer-1.0.9",{"$f":"sel_country_code","v":"DEU"},"Hydrogen (AEL)",{"$f":"_calc!$B$1006","v":"ARG-MEN"},{"$f":"_calc!$BO$990","v":"COST-FLOW"},{"$f":"_calc!$BV$1","v":"Derivate production"},{"$f":"_calc!$BV$1006","v":0}]
[{"$f":"_xlfn.TEXTJOIN(\",\",FALSE,output[[#This Row],[scenario]:[process_class]])","v":"PTX-BusinessOpportunityAnalyzer-1.0.9,DEU,Hydrogen (AEL),ARG-MEN,COST-FLOW,Heat"},"PTX-BusinessOpportunityAnalyzer-1.0.9",{"$f":"sel_country_code","v":"DEU"},"Hydrogen (AEL)",{"$f":"_calc!$B$1006","v":"ARG-MEN"},{"$f":"_calc!$BO$990","v":"COST-FLOW"},{"$f":"_calc!$BW$1","v":"Heat"},{"$f":"_calc!$BW$1006","v":0}]
[{"$f":"_xlfn.TEXTJOIN(\",\",FALSE,output[[#This Row],[scenario]:[process_class]])","v":"PTX-BusinessOpportunityAnalyzer-1.0.9,DEU,Hydrogen (AEL),ARG-MEN,COST-FLOW,Electricity and H2 storage"},"PTX-BusinessOpportunityAnalyzer-1.0.9",{"$f":"sel_country_code","v":"DEU"},"Hydrogen (AEL)",{"$f":"_calc!$B$1006","v":"ARG-MEN"},{"$f":"_calc!$BO$990","v":"COST-FLOW"},{"$f":"_calc!$BX$1","v":"Electricity and H2 storage"},{"$f":"_calc!$BX$1006","v":0}]
[{"$f":"_xlfn.TEXTJOIN(\",\",FALSE,output[[#This Row],[scenario]:[process_class]])","v":"PTX-BusinessOpportunityAnalyzer-1.0.9,DEU,Hydrogen (AEL),ARG-MIS,COST-FLOW,Water"},"PTX-BusinessOpportunityAnalyzer-1.0.9",{"$f":"sel_country_code","v":"DEU"},"Hydrogen (AEL)",{"$f":"_calc!$B$1007","v":"ARG-MIS"},{"$f":"_calc!$BO$990","v":"COST-FLOW"},{"$f":"_calc!$BP$1","v":"Water"},{"$f":"_calc!$BP$1007","v":8.6538626962820581E-2}]
[{"$f":"_xlfn.TEXTJOIN(\",\",FALSE,output[[#This Row],[scenario]:[process_class]])","v":"PTX-BusinessOpportunityAnalyzer-1.0.9,DEU,Hydrogen (AEL),ARG-MIS,COST-FLOW,Electrolysis"},"PTX-BusinessOpportunityAnalyzer-1.0.9",{"$f":"sel_country_code","v":"DEU"},"Hydrogen (AEL)",{"$f":"_calc!$B$1007","v":"ARG-MIS"},{"$f":"_calc!$BO$990","v":"COST-FLOW"},{"$f":"_calc!$BQ$1","v":"Electrolysis"},{"$f":"_calc!$BQ$1007","v":0}]
[{"$f":"_xlfn.TEXTJOIN(\",\",FALSE,output[[#This Row],[scenario]:[process_class]])","v":"PTX-BusinessOpportunityAnalyzer-1.0.9,DEU,Hydrogen (AEL),ARG-MIS,COST-FLOW,Electricity generation"},"PTX-BusinessOpportunityAnalyzer-1.0.9",{"$f":"sel_country_code","v":"DEU"},"Hydrogen (AEL)",{"$f":"_calc!$B$1007","v":"ARG-MIS"},{"$f":"_calc!$BO$990","v":"COST-FLOW"},{"$f":"_calc!$BR$1","v":"Electricity generation"},{"$f":"_calc!$BR$1007","v":0}]
[{"$f":"_xlfn.TEXTJOIN(\",\",FALSE,output[[#This Row],[scenario]:[process_class]])","v":"PTX-BusinessOpportunityAnalyzer-1.0.9,DEU,Hydrogen (AEL),ARG-MIS,COST-FLOW,Transportation (Pipeline)"},"PTX-BusinessOpportunityAnalyzer-1.0.9",{"$f":"sel_country_code","v":"DEU"},"Hydrogen (AEL)",{"$f":"_calc!$B$1007","v":"ARG-MIS"},{"$f":"_calc!$BO$990","v":"COST-FLOW"},{"$f":"_calc!$BS$1","v":"Transportation (Pipeline)"},{"$f":"_calc!$BS$1007","v":0}]
[{"$f":"_xlfn.TEXTJOIN(\",\",FALSE,output[[#This Row],[scenario]:[process_class]])","v":"PTX-BusinessOpportunityAnalyzer-1.0.9,DEU,Hydrogen (AEL),ARG-MIS,COST-FLOW,Transportation (Ship)"},"PTX-BusinessOpportunityAnalyzer-1.0.9",{"$f":"sel_country_code","v":"DEU"},"Hydrogen (AEL)",{"$f":"_calc!$B$1007","v":"ARG-MIS"},{"$f":"_calc!$BO$990","v":"COST-FLOW"},{"$f":"_calc!$BT$1","v":"Transportation (Ship)"},{"$f":"_calc!$BT$1007","v":28.855827596805788}]
[{"$f":"_xlfn.TEXTJOIN(\",\",FALSE,output[[#This Row],[scenario]:[process_class]])","v":"PTX-BusinessOpportunityAnalyzer-1.0.9,DEU,Hydrogen (AEL),ARG-MIS,COST-FLOW,Carbon"},"PTX-BusinessOpportunityAnalyzer-1.0.9",{"$f":"sel_country_code","v":"DEU"},"Hydrogen (AEL)",{"$f":"_calc!$B$1007","v":"ARG-MIS"},{"$f":"_calc!$BO$990","v":"COST-FLOW"},{"$f":"_calc!$BU$1","v":"Carbon"},{"$f":"_calc!$BU$1007","v":0}]
[{"$f":"_xlfn.TEXTJOIN(\",\",FALSE,output[[#This Row],[scenario]:[process_class]])","v":"PTX-BusinessOpportunityAnalyzer-1.0.9,DEU,Hydrogen (AEL),ARG-MIS,COST-FLOW,Derivate production"},"PTX-BusinessOpportunityAnalyzer-1.0.9",{"$f":"sel_country_code","v":"DEU"},"Hydrogen (AEL)",{"$f":"_calc!$B$1007","v":"ARG-MIS"},{"$f":"_calc!$BO$990","v":"COST-FLOW"},{"$f":"_calc!$BV$1","v":"Derivate production"},{"$f":"_calc!$BV$1007","v":0}]
[{"$f":"_xlfn.TEXTJOIN(\",\",FALSE,output[[#This Row],[scenario]:[process_class]])","v":"PTX-BusinessOpportunityAnalyzer-1.0.9,DEU,Hydrogen (AEL),ARG-MIS,COST-FLOW,Heat"},"PTX-BusinessOpportunityAnalyzer-1.0.9",{"$f":"sel_country_code","v":"DEU"},"Hydrogen (AEL)",{"$f":"_calc!$B$1007","v":"ARG-MIS"},{"$f":"_calc!$BO$990","v":"COST-FLOW"},{"$f":"_calc!$BW$1","v":"Heat"},{"$f":"_calc!$BW$1007","v":0}]
[{"$f":"_xlfn.TEXTJOIN(\",\",FALSE,output[[#This Row],[scenario]:[process_class]])","v":"PTX-BusinessOpportunityAnalyzer-1.0.9,DEU,Hydrogen (AEL),ARG-MIS,COST-FLOW,Electricity and H2 storage"},"PTX-BusinessOpportunityAnalyzer-1.0.9",{"$f":"sel_country_code","v":"DEU"},"Hydrogen (AEL)",{"$f":"_calc!$B$1007","v":"ARG-MIS"},{"$f":"_calc!$BO$990","v":"COST-FLOW"},{"$f":"_calc!$BX$1","v":"Electricity and H2 storage"},{"$f":"_calc!$BX$1007","v":0}]
[{"$f":"_xlfn.TEXTJOIN(\",\",FALSE,output[[#This Row],[scenario]:[process_class]])","v":"PTX-BusinessOpportunityAnalyzer-1.0.9,DEU,Hydrogen (AEL),ARG-NEG,COST-FLOW,Water"},"PTX-BusinessOpportunityAnalyzer-1.0.9",{"$f":"sel_country_code","v":"DEU"},"Hydrogen (AEL)",{"$f":"_calc!$B$1008","v":"ARG-NEG"},{"$f":"_calc!$BO$990","v":"COST-FLOW"},{"$f":"_calc!$BP$1","v":"Water"},{"$f":"_calc!$BP$1008","v":8.6538626962820581E-2}]
[{"$f":"_xlfn.TEXTJOIN(\",\",FALSE,output[[#This Row],[scenario]:[process_class]])","v":"PTX-BusinessOpportunityAnalyzer-1.0.9,DEU,Hydrogen (AEL),ARG-NEG,COST-FLOW,Electrolysis"},"PTX-BusinessOpportunityAnalyzer-1.0.9",{"$f":"sel_country_code","v":"DEU"},"Hydrogen (AEL)",{"$f":"_calc!$B$1008","v":"ARG-NEG"},{"$f":"_calc!$BO$990","v":"COST-FLOW"},{"$f":"_calc!$BQ$1","v":"Electrolysis"},{"$f":"_calc!$BQ$1008","v":0}]
[{"$f":"_xlfn.TEXTJOIN(\",\",FALSE,output[[#This Row],[scenario]:[process_class]])","v":"PTX-BusinessOpportunityAnalyzer-1.0.9,DEU,Hydrogen (AEL),ARG-NEG,COST-FLOW,Electricity generation"},"PTX-BusinessOpportunityAnalyzer-1.0.9",{"$f":"sel_country_code","v":"DEU"},"Hydrogen (AEL)",{"$f":"_calc!$B$1008","v":"ARG-NEG"},{"$f":"_calc!$BO$990","v":"COST-FLOW"},{"$f":"_calc!$BR$1","v":"Electricity generation"},{"$f":"_calc!$BR$1008","v":0}]
[{"$f":"_xlfn.TEXTJOIN(\",\",FALSE,output[[#This Row],[scenario]:[process_class]])","v":"PTX-BusinessOpportunityAnalyzer-1.0.9,DEU,Hydrogen (AEL),ARG-NEG,COST-FLOW,Transportation (Pipeline)"},"PTX-BusinessOpportunityAnalyzer-1.0.9",{"$f":"sel_country_code","v":"DEU"},"Hydrogen (AEL)",{"$f":"_calc!$B$1008","v":"ARG-NEG"},{"$f":"_calc!$BO$990","v":"COST-FLOW"},{"$f":"_calc!$BS$1","v":"Transportation (Pipeline)"},{"$f":"_calc!$BS$1008","v":0}]
[{"$f":"_xlfn.TEXTJOIN(\",\",FALSE,output[[#This Row],[scenario]:[process_class]])","v":"PTX-BusinessOpportunityAnalyzer-1.0.9,DEU,Hydrogen (AEL),ARG-NEG,COST-FLOW,Transportation (Ship)"},"PTX-BusinessOpportunityAnalyzer-1.0.9",{"$f":"sel_country_code","v":"DEU"},"Hydrogen (AEL)",{"$f":"_calc!$B$1008","v":"ARG-NEG"},{"$f":"_calc!$BO$990","v":"COST-FLOW"},{"$f":"_calc!$BT$1","v":"Transportation (Ship)"},{"$f":"_calc!$BT$1008","v":28.855827596805788}]
[{"$f":"_xlfn.TEXTJOIN(\",\",FALSE,output[[#This Row],[scenario]:[process_class]])","v":"PTX-BusinessOpportunityAnalyzer-1.0.9,DEU,Hydrogen (AEL),ARG-NEG,COST-FLOW,Carbon"},"PTX-BusinessOpportunityAnalyzer-1.0.9",{"$f":"sel_country_code","v":"DEU"},"Hydrogen (AEL)",{"$f":"_calc!$B$1008","v":"ARG-NEG"},{"$f":"_calc!$BO$990","v":"COST-FLOW"},{"$f":"_calc!$BU$1","v":"Carbon"},{"$f":"_calc!$BU$1008","v":0}]
[{"$f":"_xlfn.TEXTJOIN(\",\",FALSE,output[[#This Row],[scenario]:[process_class]])","v":"PTX-BusinessOpportunityAnalyzer-1.0.9,DEU,Hydrogen (AEL),ARG-NEG,COST-FLOW,Derivate production"},"PTX-BusinessOpportunityAnalyzer-1.0.9",{"$f":"sel_country_code","v":"DEU"},"Hydrogen (AEL)",{"$f":"_calc!$B$1008","v":"ARG-NEG"},{"$f":"_calc!$BO$990","v":"COST-FLOW"},{"$f":"_calc!$BV$1","v":"Derivate production"},{"$f":"_calc!$BV$1008","v":0}]
[{"$f":"_xlfn.TEXTJOIN(\",\",FALSE,output[[#This Row],[scenario]:[process_class]])","v":"PTX-BusinessOpportunityAnalyzer-1.0.9,DEU,Hydrogen (AEL),ARG-NEG,COST-FLOW,Heat"},"PTX-BusinessOpportunityAnalyzer-1.0.9",{"$f":"sel_country_code","v":"DEU"},"Hydrogen (AEL)",{"$f":"_calc!$B$1008","v":"ARG-NEG"},{"$f":"_calc!$BO$990","v":"COST-FLOW"},{"$f":"_calc!$BW$1","v":"Heat"},{"$f":"_calc!$BW$1008","v":0}]
[{"$f":"_xlfn.TEXTJOIN(\",\",FALSE,output[[#This Row],[scenario]:[process_class]])","v":"PTX-BusinessOpportunityAnalyzer-1.0.9,DEU,Hydrogen (AEL),ARG-NEG,COST-FLOW,Electricity and H2 storage"},"PTX-BusinessOpportunityAnalyzer-1.0.9",{"$f":"sel_country_code","v":"DEU"},"Hydrogen (AEL)",{"$f":"_calc!$B$1008","v":"ARG-NEG"},{"$f":"_calc!$BO$990","v":"COST-FLOW"},{"$f":"_calc!$BX$1","v":"Electricity and H2 storage"},{"$f":"_calc!$BX$1008","v":0}]
[{"$f":"_xlfn.TEXTJOIN(\",\",FALSE,output[[#This Row],[scenario]:[process_class]])","v":"PTX-BusinessOpportunityAnalyzer-1.0.9,DEU,Hydrogen (AEL),ARG-NEU,COST-FLOW,Water"},"PTX-BusinessOpportunityAnalyzer-1.0.9",{"$f":"sel_country_code","v":"DEU"},"Hydrogen (AEL)",{"$f":"_calc!$B$1009","v":"ARG-NEU"},{"$f":"_calc!$BO$990","v":"COST-FLOW"},{"$f":"_calc!$BP$1","v":"Water"},{"$f":"_calc!$BP$1009","v":8.6538626962820581E-2}]
[{"$f":"_xlfn.TEXTJOIN(\",\",FALSE,output[[#This Row],[scenario]:[process_class]])","v":"PTX-BusinessOpportunityAnalyzer-1.0.9,DEU,Hydrogen (AEL),ARG-NEU,COST-FLOW,Electrolysis"},"PTX-BusinessOpportunityAnalyzer-1.0.9",{"$f":"sel_country_code","v":"DEU"},"Hydrogen (AEL)",{"$f":"_calc!$B$1009","v":"ARG-NEU"},{"$f":"_calc!$BO$990","v":"COST-FLOW"},{"$f":"_calc!$BQ$1","v":"Electrolysis"},{"$f":"_calc!$BQ$1009","v":0}]
[{"$f":"_xlfn.TEXTJOIN(\",\",FALSE,output[[#This Row],[scenario]:[process_class]])","v":"PTX-BusinessOpportunityAnalyzer-1.0.9,DEU,Hydrogen (AEL),ARG-NEU,COST-FLOW,Electricity generation"},"PTX-BusinessOpportunityAnalyzer-1.0.9",{"$f":"sel_country_code","v":"DEU"},"Hydrogen (AEL)",{"$f":"_calc!$B$1009","v":"ARG-NEU"},{"$f":"_calc!$BO$990","v":"COST-FLOW"},{"$f":"_calc!$BR$1","v":"Electricity generation"},{"$f":"_calc!$BR$1009","v":0}]
[{"$f":"_xlfn.TEXTJOIN(\",\",FALSE,output[[#This Row],[scenario]:[process_class]])","v":"PTX-BusinessOpportunityAnalyzer-1.0.9,DEU,Hydrogen (AEL),ARG-NEU,COST-FLOW,Transportation (Pipeline)"},"PTX-BusinessOpportunityAnalyzer-1.0.9",{"$f":"sel_country_code","v":"DEU"},"Hydrogen (AEL)",{"$f":"_calc!$B$1009","v":"ARG-NEU"},{"$f":"_calc!$BO$990","v":"COST-FLOW"},{"$f":"_calc!$BS$1","v":"Transportation (Pipeline)"},{"$f":"_calc!$BS$1009","v":0}]
[{"$f":"_xlfn.TEXTJOIN(\",\",FALSE,output[[#This Row],[scenario]:[process_class]])","v":"PTX-BusinessOpportunityAnalyzer-1.0.9,DEU,Hydrogen (AEL),ARG-NEU,COST-FLOW,Transportation (Ship)"},"PTX-BusinessOpportunityAnalyzer-1.0.9",{"$f":"sel_country_code","v":"DEU"},"Hydrogen (AEL)",{"$f":"_calc!$B$1009","v":"ARG-NEU"},{"$f":"_calc!$BO$990","v":"COST-FLOW"},{"$f":"_calc!$BT$1","v":"Transportation (Ship)"},{"$f":"_calc!$BT$1009","v":28.855827596805788}]
[{"$f":"_xlfn.TEXTJOIN(\",\",FALSE,output[[#This Row],[scenario]:[process_class]])","v":"PTX-BusinessOpportunityAnalyzer-1.0.9,DEU,Hydrogen (AEL),ARG-NEU,COST-FLOW,Carbon"},"PTX-BusinessOpportunityAnalyzer-1.0.9",{"$f":"sel_country_code","v":"DEU"},"Hydrogen (AEL)",{"$f":"_calc!$B$1009","v":"ARG-NEU"},{"$f":"_calc!$BO$990","v":"COST-FLOW"},{"$f":"_calc!$BU$1","v":"Carbon"},{"$f":"_calc!$BU$1009","v":0}]
[{"$f":"_xlfn.TEXTJOIN(\",\",FALSE,output[[#This Row],[scenario]:[process_class]])","v":"PTX-BusinessOpportunityAnalyzer-1.0.9,DEU,Hydrogen (AEL),ARG-NEU,COST-FLOW,Derivate production"},"PTX-BusinessOpportunityAnalyzer-1.0.9",{"$f":"sel_country_code","v":"DEU"},"Hydrogen (AEL)",{"$f":"_calc!$B$1009","v":"ARG-NEU"},{"$f":"_calc!$BO$990","v":"COST-FLOW"},{"$f":"_calc!$BV$1","v":"Derivate production"},{"$f":"_calc!$BV$1009","v":0}]
[{"$f":"_xlfn.TEXTJOIN(\",\",FALSE,output[[#This Row],[scenario]:[process_class]])","v":"PTX-BusinessOpportunityAnalyzer-1.0.9,DEU,Hydrogen (AEL),ARG-NEU,COST-FLOW,Heat"},"PTX-BusinessOpportunityAnalyzer-1.0.9",{"$f":"sel_country_code","v":"DEU"},"Hydrogen (AEL)",{"$f":"_calc!$B$1009","v":"ARG-NEU"},{"$f":"_calc!$BO$990","v":"COST-FLOW"},{"$f":"_calc!$BW$1","v":"Heat"},{"$f":"_calc!$BW$1009","v":0}]
[{"$f":"_xlfn.TEXTJOIN(\",\",FALSE,output[[#This Row],[scenario]:[process_class]])","v":"PTX-BusinessOpportunityAnalyzer-1.0.9,DEU,Hydrogen (AEL),ARG-NEU,COST-FLOW,Electricity and H2 storage"},"PTX-BusinessOpportunityAnalyzer-1.0.9",{"$f":"sel_country_code","v":"DEU"},"Hydrogen (AEL)",{"$f":"_calc!$B$1009","v":"ARG-NEU"},{"$f":"_calc!$BO$990","v":"COST-FLOW"},{"$f":"_calc!$BX$1","v":"Electricity and H2 storage"},{"$f":"_calc!$BX$1009","v":0}]
[{"$f":"_xlfn.TEXTJOIN(\",\",FALSE,output[[#This Row],[scenario]:[process_class]])","v":"PTX-BusinessOpportunityAnalyzer-1.0.9,DEU,Hydrogen (AEL),ARG-PAM,COST-FLOW,Water"},"PTX-BusinessOpportunityAnalyzer-1.0.9",{"$f":"sel_country_code","v":"DEU"},"Hydrogen (AEL)",{"$f":"_calc!$B$1010","v":"ARG-PAM"},{"$f":"_calc!$BO$990","v":"COST-FLOW"},{"$f":"_calc!$BP$1","v":"Water"},{"$f":"_calc!$BP$1010","v":8.6538626962820581E-2}]
[{"$f":"_xlfn.TEXTJOIN(\",\",FALSE,output[[#This Row],[scenario]:[process_class]])","v":"PTX-BusinessOpportunityAnalyzer-1.0.9,DEU,Hydrogen (AEL),ARG-PAM,COST-FLOW,Electrolysis"},"PTX-BusinessOpportunityAnalyzer-1.0.9",{"$f":"sel_country_code","v":"DEU"},"Hydrogen (AEL)",{"$f":"_calc!$B$1010","v":"ARG-PAM"},{"$f":"_calc!$BO$990","v":"COST-FLOW"},{"$f":"_calc!$BQ$1","v":"Electrolysis"},{"$f":"_calc!$BQ$1010","v":0}]
[{"$f":"_xlfn.TEXTJOIN(\",\",FALSE,output[[#This Row],[scenario]:[process_class]])","v":"PTX-BusinessOpportunityAnalyzer-1.0.9,DEU,Hydrogen (AEL),ARG-PAM,COST-FLOW,Electricity generation"},"PTX-BusinessOpportunityAnalyzer-1.0.9",{"$f":"sel_country_code","v":"DEU"},"Hydrogen (AEL)",{"$f":"_calc!$B$1010","v":"ARG-PAM"},{"$f":"_calc!$BO$990","v":"COST-FLOW"},{"$f":"_calc!$BR$1","v":"Electricity generation"},{"$f":"_calc!$BR$1010","v":0}]
[{"$f":"_xlfn.TEXTJOIN(\",\",FALSE,output[[#This Row],[scenario]:[process_class]])","v":"PTX-BusinessOpportunityAnalyzer-1.0.9,DEU,Hydrogen (AEL),ARG-PAM,COST-FLOW,Transportation (Pipeline)"},"PTX-BusinessOpportunityAnalyzer-1.0.9",{"$f":"sel_country_code","v":"DEU"},"Hydrogen (AEL)",{"$f":"_calc!$B$1010","v":"ARG-PAM"},{"$f":"_calc!$BO$990","v":"COST-FLOW"},{"$f":"_calc!$BS$1","v":"Transportation (Pipeline)"},{"$f":"_calc!$BS$1010","v":0}]
[{"$f":"_xlfn.TEXTJOIN(\",\",FALSE,output[[#This Row],[scenario]:[process_class]])","v":"PTX-BusinessOpportunityAnalyzer-1.0.9,DEU,Hydrogen (AEL),ARG-PAM,COST-FLOW,Transportation (Ship)"},"PTX-BusinessOpportunityAnalyzer-1.0.9",{"$f":"sel_country_code","v":"DEU"},"Hydrogen (AEL)",{"$f":"_calc!$B$1010","v":"ARG-PAM"},{"$f":"_calc!$BO$990","v":"COST-FLOW"},{"$f":"_calc!$BT$1","v":"Transportation (Ship)"},{"$f":"_calc!$BT$1010","v":28.855827596805788}]
[{"$f":"_xlfn.TEXTJOIN(\",\",FALSE,output[[#This Row],[scenario]:[process_class]])","v":"PTX-BusinessOpportunityAnalyzer-1.0.9,DEU,Hydrogen (AEL),ARG-PAM,COST-FLOW,Carbon"},"PTX-BusinessOpportunityAnalyzer-1.0.9",{"$f":"sel_country_code","v":"DEU"},"Hydrogen (AEL)",{"$f":"_calc!$B$1010","v":"ARG-PAM"},{"$f":"_calc!$BO$990","v":"COST-FLOW"},{"$f":"_calc!$BU$1","v":"Carbon"},{"$f":"_calc!$BU$1010","v":0}]
[{"$f":"_xlfn.TEXTJOIN(\",\",FALSE,output[[#This Row],[scenario]:[process_class]])","v":"PTX-BusinessOpportunityAnalyzer-1.0.9,DEU,Hydrogen (AEL),ARG-PAM,COST-FLOW,Derivate production"},"PTX-BusinessOpportunityAnalyzer-1.0.9",{"$f":"sel_country_code","v":"DEU"},"Hydrogen (AEL)",{"$f":"_calc!$B$1010","v":"ARG-PAM"},{"$f":"_calc!$BO$990","v":"COST-FLOW"},{"$f":"_calc!$BV$1","v":"Derivate production"},{"$f":"_calc!$BV$1010","v":0}]
[{"$f":"_xlfn.TEXTJOIN(\",\",FALSE,output[[#This Row],[scenario]:[process_class]])","v":"PTX-BusinessOpportunityAnalyzer-1.0.9,DEU,Hydrogen (AEL),ARG-PAM,COST-FLOW,Heat"},{"$f":"output_scenario_name","v":"PTX-BusinessOpportunityAnalyzer-1.0.9"},{"$f":"sel_country_code","v":"DEU"},{"$f":"sel_chain","v":"Hydrogen (AEL)"},{"$f":"_calc!$B$1010","v":"ARG-PAM"},{"$f":"_calc!$BO$990","v":"COST-FLOW"},{"$f":"_calc!$BW$1","v":"Heat"},{"$f":"_calc!$BW$1010","v":0}]
[{"$f":"_xlfn.TEXTJOIN(\",\",FALSE,output[[#This Row],[scenario]:[process_class]])","v":"PTX-BusinessOpportunityAnalyzer-1.0.9,DEU,Hydrogen (AEL),ARG-PAM,COST-FLOW,Electricity and H2 storage"},"PTX-BusinessOpportunityAnalyzer-1.0.9",{"$f":"sel_country_code","v":"DEU"},"Hydrogen (AEL)",{"$f":"_calc!$B$1010","v":"ARG-PAM"},{"$f":"_calc!$BO$990","v":"COST-FLOW"},{"$f":"_calc!$BX$1","v":"Electricity and H2 storage"},{"$f":"_calc!$BX$1010","v":0}]
[{"$f":"_xlfn.TEXTJOIN(\",\",FALSE,output[[#This Row],[scenario]:[process_class]])","v":"PTX-BusinessOpportunityAnalyzer-1.0.9,DEU,Hydrogen (AEL),ARG-RIO,COST-FLOW,Water"},"PTX-BusinessOpportunityAnalyzer-1.0.9",{"$f":"sel_country_code","v":"DEU"},"Hydrogen (AEL)",{"$f":"_calc!$B$1011","v":"ARG-RIO"},{"$f":"_calc!$BO$990","v":"COST-FLOW"},{"$f":"_calc!$BP$1","v":"Water"},{"$f":"_calc!$BP$1011","v":8.6538626962820581E-2}]
[{"$f":"_xlfn.TEXTJOIN(\",\",FALSE,output[[#This Row],[scenario]:[process_class]])","v":"PTX-BusinessOpportunityAnalyzer-1.0.9,DEU,Hydrogen (AEL),ARG-RIO,COST-FLOW,Electrolysis"},"PTX-BusinessOpportunityAnalyzer-1.0.9",{"$f":"sel_country_code","v":"DEU"},"Hydrogen (AEL)",{"$f":"_calc!$B$1011","v":"ARG-RIO"},{"$f":"_calc!$BO$990","v":"COST-FLOW"},{"$f":"_calc!$BQ$1","v":"Electrolysis"},{"$f":"_calc!$BQ$1011","v":0}]
[{"$f":"_xlfn.TEXTJOIN(\",\",FALSE,output[[#This Row],[scenario]:[process_class]])","v":"PTX-BusinessOpportunityAnalyzer-1.0.9,DEU,Hydrogen (AEL),ARG-RIO,COST-FLOW,Electricity generation"},"PTX-BusinessOpportunityAnalyzer-1.0.9",{"$f":"sel_country_code","v":"DEU"},"Hydrogen (AEL)",{"$f":"_calc!$B$1011","v":"ARG-RIO"},{"$f":"_calc!$BO$990","v":"COST-FLOW"},{"$f":"_calc!$BR$1","v":"Electricity generation"},{"$f":"_calc!$BR$1011","v":0}]
[{"$f":"_xlfn.TEXTJOIN(\",\",FALSE,output[[#This Row],[scenario]:[process_class]])","v":"PTX-BusinessOpportunityAnalyzer-1.0.9,DEU,Hydrogen (AEL),ARG-RIO,COST-FLOW,Transportation (Pipeline)"},"PTX-BusinessOpportunityAnalyzer-1.0.9",{"$f":"sel_country_code","v":"DEU"},"Hydrogen (AEL)",{"$f":"_calc!$B$1011","v":"ARG-RIO"},{"$f":"_calc!$BO$990","v":"COST-FLOW"},{"$f":"_calc!$BS$1","v":"Transportation (Pipeline)"},{"$f":"_calc!$BS$1011","v":0}]
[{"$f":"_xlfn.TEXTJOIN(\",\",FALSE,output[[#This Row],[scenario]:[process_class]])","v":"PTX-BusinessOpportunityAnalyzer-1.0.9,DEU,Hydrogen (AEL),ARG-RIO,COST-FLOW,Transportation (Ship)"},"PTX-BusinessOpportunityAnalyzer-1.0.9",{"$f":"sel_country_code","v":"DEU"},"Hydrogen (AEL)",{"$f":"_calc!$B$1011","v":"ARG-RIO"},{"$f":"_calc!$BO$990","v":"COST-FLOW"},{"$f":"_calc!$BT$1","v":"Transportation (Ship)"},{"$f":"_calc!$BT$1011","v":28.855827596805788}]
[{"$f":"_xlfn.TEXTJOIN(\",\",FALSE,output[[#This Row],[scenario]:[process_class]])","v":"PTX-BusinessOpportunityAnalyzer-1.0.9,DEU,Hydrogen (AEL),ARG-RIO,COST-FLOW,Carbon"},"PTX-BusinessOpportunityAnalyzer-1.0.9",{"$f":"sel_country_code","v":"DEU"},"Hydrogen (AEL)",{"$f":"_calc!$B$1011","v":"ARG-RIO"},{"$f":"_calc!$BO$990","v":"COST-FLOW"},{"$f":"_calc!$BU$1","v":"Carbon"},{"$f":"_calc!$BU$1011","v":0}]
[{"$f":"_xlfn.TEXTJOIN(\",\",FALSE,output[[#This Row],[scenario]:[process_class]])","v":"PTX-BusinessOpportunityAnalyzer-1.0.9,DEU,Hydrogen (AEL),ARG-RIO,COST-FLOW,Derivate production"},"PTX-BusinessOpportunityAnalyzer-1.0.9",{"$f":"sel_country_code","v":"DEU"},"Hydrogen (AEL)",{"$f":"_calc!$B$1011","v":"ARG-RIO"},{"$f":"_calc!$BO$990","v":"COST-FLOW"},{"$f":"_calc!$BV$1","v":"Derivate production"},{"$f":"_calc!$BV$1011","v":0}]
[{"$f":"_xlfn.TEXTJOIN(\",\",FALSE,output[[#This Row],[scenario]:[process_class]])","v":"PTX-BusinessOpportunityAnalyzer-1.0.9,DEU,Hydrogen (AEL),ARG-RIO,COST-FLOW,Heat"},"PTX-BusinessOpportunityAnalyzer-1.0.9",{"$f":"sel_country_code","v":"DEU"},"Hydrogen (AEL)",{"$f":"_calc!$B$1011","v":"ARG-RIO"},{"$f":"_calc!$BO$990","v":"COST-FLOW"},{"$f":"_calc!$BW$1","v":"Heat"},{"$f":"_calc!$BW$1011","v":0}]
[{"$f":"_xlfn.TEXTJOIN(\",\",FALSE,output[[#This Row],[scenario]:[process_class]])","v":"PTX-BusinessOpportunityAnalyzer-1.0.9,DEU,Hydrogen (AEL),ARG-RIO,COST-FLOW,Electricity and H2 storage"},"PTX-BusinessOpportunityAnalyzer-1.0.9",{"$f":"sel_country_code","v":"DEU"},"Hydrogen (AEL)",{"$f":"_calc!$B$1011","v":"ARG-RIO"},{"$f":"_calc!$BO$990","v":"COST-FLOW"},{"$f":"_calc!$BX$1","v":"Electricity and H2 storage"},{"$f":"_calc!$BX$1011","v":0}]
[{"$f":"_xlfn.TEXTJOIN(\",\",FALSE,output[[#This Row],[scenario]:[process_class]])","v":"PTX-BusinessOpportunityAnalyzer-1.0.9,DEU,Hydrogen (AEL),ARG-SAF,COST-FLOW,Water"},"PTX-BusinessOpportunityAnalyzer-1.0.9",{"$f":"sel_country_code","v":"DEU"},"Hydrogen (AEL)",{"$f":"_calc!$B$1012","v":"ARG-SAF"},{"$f":"_calc!$BO$990","v":"COST-FLOW"},{"$f":"_calc!$BP$1","v":"Water"},{"$f":"_calc!$BP$1012","v":8.6538626962820581E-2}]
[{"$f":"_xlfn.TEXTJOIN(\",\",FALSE,output[[#This Row],[scenario]:[process_class]])","v":"PTX-BusinessOpportunityAnalyzer-1.0.9,DEU,Hydrogen (AEL),ARG-SAF,COST-FLOW,Electrolysis"},"PTX-BusinessOpportunityAnalyzer-1.0.9",{"$f":"sel_country_code","v":"DEU"},"Hydrogen (AEL)",{"$f":"_calc!$B$1012","v":"ARG-SAF"},{"$f":"_calc!$BO$990","v":"COST-FLOW"},{"$f":"_calc!$BQ$1","v":"Electrolysis"},{"$f":"_calc!$BQ$1012","v":0}]
[{"$f":"_xlfn.TEXTJOIN(\",\",FALSE,output[[#This Row],[scenario]:[process_class]])","v":"PTX-BusinessOpportunityAnalyzer-1.0.9,DEU,Hydrogen (AEL),ARG-SAF,COST-FLOW,Electricity generation"},"PTX-BusinessOpportunityAnalyzer-1.0.9",{"$f":"sel_country_code","v":"DEU"},"Hydrogen (AEL)",{"$f":"_calc!$B$1012","v":"ARG-SAF"},{"$f":"_calc!$BO$990","v":"COST-FLOW"},{"$f":"_calc!$BR$1","v":"Electricity generation"},{"$f":"_calc!$BR$1012","v":0}]
[{"$f":"_xlfn.TEXTJOIN(\",\",FALSE,output[[#This Row],[scenario]:[process_class]])","v":"PTX-BusinessOpportunityAnalyzer-1.0.9,DEU,Hydrogen (AEL),ARG-SAF,COST-FLOW,Transportation (Pipeline)"},"PTX-BusinessOpportunityAnalyzer-1.0.9",{"$f":"sel_country_code","v":"DEU"},"Hydrogen (AEL)",{"$f":"_calc!$B$1012","v":"ARG-SAF"},{"$f":"_calc!$BO$990","v":"COST-FLOW"},{"$f":"_calc!$BS$1","v":"Transportation (Pipeline)"},{"$f":"_calc!$BS$1012","v":0}]
[{"$f":"_xlfn.TEXTJOIN(\",\",FALSE,output[[#This Row],[scenario]:[process_class]])","v":"PTX-BusinessOpportunityAnalyzer-1.0.9,DEU,Hydrogen (AEL),ARG-SAF,COST-FLOW,Transportation (Ship)"},"PTX-BusinessOpportunityAnalyzer-1.0.9",{"$f":"sel_country_code","v":"DEU"},"Hydrogen (AEL)",{"$f":"_calc!$B$1012","v":"ARG-SAF"},{"$f":"_calc!$BO$990","v":"COST-FLOW"},{"$f":"_calc!$BT$1","v":"Transportation (Ship)"},{"$f":"_calc!$BT$1012","v":28.855827596805788}]
[{"$f":"_xlfn.TEXTJOIN(\",\",FALSE,output[[#This Row],[scenario]:[process_class]])","v":"PTX-BusinessOpportunityAnalyzer-1.0.9,DEU,Hydrogen (AEL),ARG-SAF,COST-FLOW,Carbon"},"PTX-BusinessOpportunityAnalyzer-1.0.9",{"$f":"sel_country_code","v":"DEU"},"Hydrogen (AEL)",{"$f":"_calc!$B$1012","v":"ARG-SAF"},{"$f":"_calc!$BO$990","v":"COST-FLOW"},{"$f":"_calc!$BU$1","v":"Carbon"},{"$f":"_calc!$BU$1012","v":0}]
[{"$f":"_xlfn.TEXTJOIN(\",\",FALSE,output[[#This Row],[scenario]:[process_class]])","v":"PTX-BusinessOpportunityAnalyzer-1.0.9,DEU,Hydrogen (AEL),ARG-SAF,COST-FLOW,Derivate production"},"PTX-BusinessOpportunityAnalyzer-1.0.9",{"$f":"sel_country_code","v":"DEU"},"Hydrogen (AEL)",{"$f":"_calc!$B$1012","v":"ARG-SAF"},{"$f":"_calc!$BO$990","v":"COST-FLOW"},{"$f":"_calc!$BV$1","v":"Derivate production"},{"$f":"_calc!$BV$1012","v":0}]
[{"$f":"_xlfn.TEXTJOIN(\",\",FALSE,output[[#This Row],[scenario]:[process_class]])","v":"PTX-BusinessOpportunityAnalyzer-1.0.9,DEU,Hydrogen (AEL),ARG-SAF,COST-FLOW,Heat"},"PTX-BusinessOpportunityAnalyzer-1.0.9",{"$f":"sel_country_code","v":"DEU"},"Hydrogen (AEL)",{"$f":"_calc!$B$1012","v":"ARG-SAF"},{"$f":"_calc!$BO$990","v":"COST-FLOW"},{"$f":"_calc!$BW$1","v":"Heat"},{"$f":"_calc!$BW$1012","v":0}]
[{"$f":"_xlfn.TEXTJOIN(\",\",FALSE,output[[#This Row],[scenario]:[process_class]])","v":"PTX-BusinessOpportunityAnalyzer-1.0.9,DEU,Hydrogen (AEL),ARG-SAF,COST-FLOW,Electricity and H2 storage"},"PTX-BusinessOpportunityAnalyzer-1.0.9",{"$f":"sel_country_code","v":"DEU"},"Hydrogen (AEL)",{"$f":"_calc!$B$1012","v":"ARG-SAF"},{"$f":"_calc!$BO$990","v":"COST-FLOW"},{"$f":"_calc!$BX$1","v":"Electricity and H2 storage"},{"$f":"_calc!$BX$1012","v":0}]
[{"$f":"_xlfn.TEXTJOIN(\",\",FALSE,output[[#This Row],[scenario]:[process_class]])","v":"PTX-BusinessOpportunityAnalyzer-1.0.9,DEU,Hydrogen (AEL),ARG-SAJ,COST-FLOW,Water"},"PTX-BusinessOpportunityAnalyzer-1.0.9",{"$f":"sel_country_code","v":"DEU"},"Hydrogen (AEL)",{"$f":"_calc!$B$1013","v":"ARG-SAJ"},{"$f":"_calc!$BO$990","v":"COST-FLOW"},{"$f":"_calc!$BP$1","v":"Water"},{"$f":"_calc!$BP$1013","v":8.6538626962820581E-2}]
[{"$f":"_xlfn.TEXTJOIN(\",\",FALSE,output[[#This Row],[scenario]:[process_class]])","v":"PTX-BusinessOpportunityAnalyzer-1.0.9,DEU,Hydrogen (AEL),ARG-SAJ,COST-FLOW,Electrolysis"},"PTX-BusinessOpportunityAnalyzer-1.0.9",{"$f":"sel_country_code","v":"DEU"},"Hydrogen (AEL)",{"$f":"_calc!$B$1013","v":"ARG-SAJ"},{"$f":"_calc!$BO$990","v":"COST-FLOW"},{"$f":"_calc!$BQ$1","v":"Electrolysis"},{"$f":"_calc!$BQ$1013","v":0}]
[{"$f":"_xlfn.TEXTJOIN(\",\",FALSE,output[[#This Row],[scenario]:[process_class]])","v":"PTX-BusinessOpportunityAnalyzer-1.0.9,DEU,Hydrogen (AEL),ARG-SAJ,COST-FLOW,Electricity generation"},"PTX-BusinessOpportunityAnalyzer-1.0.9",{"$f":"sel_country_code","v":"DEU"},"Hydrogen (AEL)",{"$f":"_calc!$B$1013","v":"ARG-SAJ"},{"$f":"_calc!$BO$990","v":"COST-FLOW"},{"$f":"_calc!$BR$1","v":"Electricity generation"},{"$f":"_calc!$BR$1013","v":0}]
[{"$f":"_xlfn.TEXTJOIN(\",\",FALSE,output[[#This Row],[scenario]:[process_class]])","v":"PTX-BusinessOpportunityAnalyzer-1.0.9,DEU,Hydrogen (AEL),ARG-SAJ,COST-FLOW,Transportation (Pipeline)"},"PTX-BusinessOpportunityAnalyzer-1.0.9",{"$f":"sel_country_code","v":"DEU"},"Hydrogen (AEL)",{"$f":"_calc!$B$1013","v":"ARG-SAJ"},{"$f":"_calc!$BO$990","v":"COST-FLOW"},{"$f":"_calc!$BS$1","v":"Transportation (Pipeline)"},{"$f":"_calc!$BS$1013","v":0}]
[{"$f":"_xlfn.TEXTJOIN(\",\",FALSE,output[[#This Row],[scenario]:[process_class]])","v":"PTX-BusinessOpportunityAnalyzer-1.0.9,DEU,Hydrogen (AEL),ARG-SAJ,COST-FLOW,Transportation (Ship)"},"PTX-BusinessOpportunityAnalyzer-1.0.9",{"$f":"sel_country_code","v":"DEU"},"Hydrogen (AEL)",{"$f":"_calc!$B$1013","v":"ARG-SAJ"},{"$f":"_calc!$BO$990","v":"COST-FLOW"},{"$f":"_calc!$BT$1","v":"Transportation (Ship)"},{"$f":"_calc!$BT$1013","v":28.855827596805788}]
[{"$f":"_xlfn.TEXTJOIN(\",\",FALSE,output[[#This Row],[scenario]:[process_class]])","v":"PTX-BusinessOpportunityAnalyzer-1.0.9,DEU,Hydrogen (AEL),ARG-SAJ,COST-FLOW,Carbon"},"PTX-BusinessOpportunityAnalyzer-1.0.9",{"$f":"sel_country_code","v":"DEU"},"Hydrogen (AEL)",{"$f":"_calc!$B$1013","v":"ARG-SAJ"},{"$f":"_calc!$BO$990","v":"COST-FLOW"},{"$f":"_calc!$BU$1","v":"Carbon"},{"$f":"_calc!$BU$1013","v":0}]
[{"$f":"_xlfn.TEXTJOIN(\",\",FALSE,output[[#This Row],[scenario]:[process_class]])","v":"PTX-BusinessOpportunityAnalyzer-1.0.9,DEU,Hydrogen (AEL),ARG-SAJ,COST-FLOW,Derivate production"},"PTX-BusinessOpportunityAnalyzer-1.0.9",{"$f":"sel_country_code","v":"DEU"},"Hydrogen (AEL)",{"$f":"_calc!$B$1013","v":"ARG-SAJ"},{"$f":"_calc!$BO$990","v":"COST-FLOW"},{"$f":"_calc!$BV$1","v":"Derivate production"},{"$f":"_calc!$BV$1013","v":0}]
[{"$f":"_xlfn.TEXTJOIN(\",\",FALSE,output[[#This Row],[scenario]:[process_class]])","v":"PTX-BusinessOpportunityAnalyzer-1.0.9,DEU,Hydrogen (AEL),ARG-SAJ,COST-FLOW,Heat"},"PTX-BusinessOpportunityAnalyzer-1.0.9",{"$f":"sel_country_code","v":"DEU"},"Hydrogen (AEL)",{"$f":"_calc!$B$1013","v":"ARG-SAJ"},{"$f":"_calc!$BO$990","v":"COST-FLOW"},{"$f":"_calc!$BW$1","v":"Heat"},{"$f":"_calc!$BW$1013","v":0}]
[{"$f":"_xlfn.TEXTJOIN(\",\",FALSE,output[[#This Row],[scenario]:[process_class]])","v":"PTX-BusinessOpportunityAnalyzer-1.0.9,DEU,Hydrogen (AEL),ARG-SAJ,COST-FLOW,Electricity and H2 storage"},"PTX-BusinessOpportunityAnalyzer-1.0.9",{"$f":"sel_country_code","v":"DEU"},"Hydrogen (AEL)",{"$f":"_calc!$B$1013","v":"ARG-SAJ"},{"$f":"_calc!$BO$990","v":"COST-FLOW"},{"$f":"_calc!$BX$1","v":"Electricity and H2 storage"},{"$f":"_calc!$BX$1013","v":0}]
[{"$f":"_xlfn.TEXTJOIN(\",\",FALSE,output[[#This Row],[scenario]:[process_class]])","v":"PTX-BusinessOpportunityAnalyzer-1.0.9,DEU,Hydrogen (AEL),ARG-SAL,COST-FLOW,Water"},"PTX-BusinessOpportunityAnalyzer-1.0.9",{"$f":"sel_country_code","v":"DEU"},"Hydrogen (AEL)",{"$f":"_calc!$B$1014","v":"ARG-SAL"},{"$f":"_calc!$BO$990","v":"COST-FLOW"},{"$f":"_calc!$BP$1","v":"Water"},{"$f":"_calc!$BP$1014","v":8.6538626962820581E-2}]
[{"$f":"_xlfn.TEXTJOIN(\",\",FALSE,output[[#This Row],[scenario]:[process_class]])","v":"PTX-BusinessOpportunityAnalyzer-1.0.9,DEU,Hydrogen (AEL),ARG-SAL,COST-FLOW,Electrolysis"},"PTX-BusinessOpportunityAnalyzer-1.0.9",{"$f":"sel_country_code","v":"DEU"},"Hydrogen (AEL)",{"$f":"_calc!$B$1014","v":"ARG-SAL"},{"$f":"_calc!$BO$990","v":"COST-FLOW"},{"$f":"_calc!$BQ$1","v":"Electrolysis"},{"$f":"_calc!$BQ$1014","v":0}]
[{"$f":"_xlfn.TEXTJOIN(\",\",FALSE,output[[#This Row],[scenario]:[process_class]])","v":"PTX-BusinessOpportunityAnalyzer-1.0.9,DEU,Hydrogen (AEL),ARG-SAL,COST-FLOW,Electricity generation"},"PTX-BusinessOpportunityAnalyzer-1.0.9",{"$f":"sel_country_code","v":"DEU"},"Hydrogen (AEL)",{"$f":"_calc!$B$1014","v":"ARG-SAL"},{"$f":"_calc!$BO$990","v":"COST-FLOW"},{"$f":"_calc!$BR$1","v":"Electricity generation"},{"$f":"_calc!$BR$1014","v":0}]
[{"$f":"_xlfn.TEXTJOIN(\",\",FALSE,output[[#This Row],[scenario]:[process_class]])","v":"PTX-BusinessOpportunityAnalyzer-1.0.9,DEU,Hydrogen (AEL),ARG-SAL,COST-FLOW,Transportation (Pipeline)"},"PTX-BusinessOpportunityAnalyzer-1.0.9",{"$f":"sel_country_code","v":"DEU"},"Hydrogen (AEL)",{"$f":"_calc!$B$1014","v":"ARG-SAL"},{"$f":"_calc!$BO$990","v":"COST-FLOW"},{"$f":"_calc!$BS$1","v":"Transportation (Pipeline)"},{"$f":"_calc!$BS$1014","v":0}]
[{"$f":"_xlfn.TEXTJOIN(\",\",FALSE,output[[#This Row],[scenario]:[process_class]])","v":"PTX-BusinessOpportunityAnalyzer-1.0.9,DEU,Hydrogen (AEL),ARG-SAL,COST-FLOW,Transportation (Ship)"},"PTX-BusinessOpportunityAnalyzer-1.0.9",{"$f":"sel_country_code","v":"DEU"},"Hydrogen (AEL)",{"$f":"_calc!$B$1014","v":"ARG-SAL"},{"$f":"_calc!$BO$990","v":"COST-FLOW"},{"$f":"_calc!$BT$1","v":"Transportation (Ship)"},{"$f":"_calc!$BT$1014","v":28.855827596805788}]
[{"$f":"_xlfn.TEXTJOIN(\",\",FALSE,output[[#This Row],[scenario]:[process_class]])","v":"PTX-BusinessOpportunityAnalyzer-1.0.9,DEU,Hydrogen (AEL),ARG-SAL,COST-FLOW,Carbon"},"PTX-BusinessOpportunityAnalyzer-1.0.9",{"$f":"sel_country_code","v":"DEU"},"Hydrogen (AEL)",{"$f":"_calc!$B$1014","v":"ARG-SAL"},{"$f":"_calc!$BO$990","v":"COST-FLOW"},{"$f":"_calc!$BU$1","v":"Carbon"},{"$f":"_calc!$BU$1014","v":0}]
[{"$f":"_xlfn.TEXTJOIN(\",\",FALSE,output[[#This Row],[scenario]:[process_class]])","v":"PTX-BusinessOpportunityAnalyzer-1.0.9,DEU,Hydrogen (AEL),ARG-SAL,COST-FLOW,Derivate production"},"PTX-BusinessOpportunityAnalyzer-1.0.9",{"$f":"sel_country_code","v":"DEU"},"Hydrogen (AEL)",{"$f":"_calc!$B$1014","v":"ARG-SAL"},{"$f":"_calc!$BO$990","v":"COST-FLOW"},{"$f":"_calc!$BV$1","v":"Derivate production"},{"$f":"_calc!$BV$1014","v":0}]
[{"$f":"_xlfn.TEXTJOIN(\",\",FALSE,output[[#This Row],[scenario]:[process_class]])","v":"PTX-BusinessOpportunityAnalyzer-1.0.9,DEU,Hydrogen (AEL),ARG-SAL,COST-FLOW,Heat"},"PTX-BusinessOpportunityAnalyzer-1.0.9",{"$f":"sel_country_code","v":"DEU"},"Hydrogen (AEL)",{"$f":"_calc!$B$1014","v":"ARG-SAL"},{"$f":"_calc!$BO$990","v":"COST-FLOW"},{"$f":"_calc!$BW$1","v":"Heat"},{"$f":"_calc!$BW$1014","v":0}]
[{"$f":"_xlfn.TEXTJOIN(\",\",FALSE,output[[#This Row],[scenario]:[process_class]])","v":"PTX-BusinessOpportunityAnalyzer-1.0.9,DEU,Hydrogen (AEL),ARG-SAL,COST-FLOW,Electricity and H2 storage"},"PTX-BusinessOpportunityAnalyzer-1.0.9",{"$f":"sel_country_code","v":"DEU"},"Hydrogen (AEL)",{"$f":"_calc!$B$1014","v":"ARG-SAL"},{"$f":"_calc!$BO$990","v":"COST-FLOW"},{"$f":"_calc!$BX$1","v":"Electricity and H2 storage"},{"$f":"_calc!$BX$1014","v":0}]
[{"$f":"_xlfn.TEXTJOIN(\",\",FALSE,output[[#This Row],[scenario]:[process_class]])","v":"PTX-BusinessOpportunityAnalyzer-1.0.9,DEU,Hydrogen (AEL),ARG-SAT,COST-FLOW,Water"},"PTX-BusinessOpportunityAnalyzer-1.0.9",{"$f":"sel_country_code","v":"DEU"},"Hydrogen (AEL)",{"$f":"_calc!$B$1015","v":"ARG-SAT"},{"$f":"_calc!$BO$990","v":"COST-FLOW"},{"$f":"_calc!$BP$1","v":"Water"},{"$f":"_calc!$BP$1015","v":8.6538626962820581E-2}]
[{"$f":"_xlfn.TEXTJOIN(\",\",FALSE,output[[#This Row],[scenario]:[process_class]])","v":"PTX-BusinessOpportunityAnalyzer-1.0.9,DEU,Hydrogen (AEL),ARG-SAT,COST-FLOW,Electrolysis"},"PTX-BusinessOpportunityAnalyzer-1.0.9",{"$f":"sel_country_code","v":"DEU"},"Hydrogen (AEL)",{"$f":"_calc!$B$1015","v":"ARG-SAT"},{"$f":"_calc!$BO$990","v":"COST-FLOW"},{"$f":"_calc!$BQ$1","v":"Electrolysis"},{"$f":"_calc!$BQ$1015","v":0}]
[{"$f":"_xlfn.TEXTJOIN(\",\",FALSE,output[[#This Row],[scenario]:[process_class]])","v":"PTX-BusinessOpportunityAnalyzer-1.0.9,DEU,Hydrogen (AEL),ARG-SAT,COST-FLOW,Electricity generation"},"PTX-BusinessOpportunityAnalyzer-1.0.9",{"$f":"sel_country_code","v":"DEU"},"Hydrogen (AEL)",{"$f":"_calc!$B$1015","v":"ARG-SAT"},{"$f":"_calc!$BO$990","v":"COST-FLOW"},{"$f":"_calc!$BR$1","v":"Electricity generation"},{"$f":"_calc!$BR$1015","v":0}]
[{"$f":"_xlfn.TEXTJOIN(\",\",FALSE,output[[#This Row],[scenario]:[process_class]])","v":"PTX-BusinessOpportunityAnalyzer-1.0.9,DEU,Hydrogen (AEL),ARG-SAT,COST-FLOW,Transportation (Pipeline)"},"PTX-BusinessOpportunityAnalyzer-1.0.9",{"$f":"sel_country_code","v":"DEU"},"Hydrogen (AEL)",{"$f":"_calc!$B$1015","v":"ARG-SAT"},{"$f":"_calc!$BO$990","v":"COST-FLOW"},{"$f":"_calc!$BS$1","v":"Transportation (Pipeline)"},{"$f":"_calc!$BS$1015","v":0}]
[{"$f":"_xlfn.TEXTJOIN(\",\",FALSE,output[[#This Row],[scenario]:[process_class]])","v":"PTX-BusinessOpportunityAnalyzer-1.0.9,DEU,Hydrogen (AEL),ARG-SAT,COST-FLOW,Transportation (Ship)"},"PTX-BusinessOpportunityAnalyzer-1.0.9",{"$f":"sel_country_code","v":"DEU"},"Hydrogen (AEL)",{"$f":"_calc!$B$1015","v":"ARG-SAT"},{"$f":"_calc!$BO$990","v":"COST-FLOW"},{"$f":"_calc!$BT$1","v":"Transportation (Ship)"},{"$f":"_calc!$BT$1015","v":28.855827596805788}]
[{"$f":"_xlfn.TEXTJOIN(\",\",FALSE,output[[#This Row],[scenario]:[process_class]])","v":"PTX-BusinessOpportunityAnalyzer-1.0.9,DEU,Hydrogen (AEL),ARG-SAT,COST-FLOW,Carbon"},"PTX-BusinessOpportunityAnalyzer-1.0.9",{"$f":"sel_country_code","v":"DEU"},"Hydrogen (AEL)",{"$f":"_calc!$B$1015","v":"ARG-SAT"},{"$f":"_calc!$BO$990","v":"COST-FLOW"},{"$f":"_calc!$BU$1","v":"Carbon"},{"$f":"_calc!$BU$1015","v":0}]
[{"$f":"_xlfn.TEXTJOIN(\",\",FALSE,output[[#This Row],[scenario]:[process_class]])","v":"PTX-BusinessOpportunityAnalyzer-1.0.9,DEU,Hydrogen (AEL),ARG-SAT,COST-FLOW,Derivate production"},"PTX-BusinessOpportunityAnalyzer-1.0.9",{"$f":"sel_country_code","v":"DEU"},"Hydrogen (AEL)",{"$f":"_calc!$B$1015","v":"ARG-SAT"},{"$f":"_calc!$BO$990","v":"COST-FLOW"},{"$f":"_calc!$BV$1","v":"Derivate production"},{"$f":"_calc!$BV$1015","v":0}]
[{"$f":"_xlfn.TEXTJOIN(\",\",FALSE,output[[#This Row],[scenario]:[process_class]])","v":"PTX-BusinessOpportunityAnalyzer-1.0.9,DEU,Hydrogen (AEL),ARG-SAT,COST-FLOW,Heat"},"PTX-BusinessOpportunityAnalyzer-1.0.9",{"$f":"sel_country_code","v":"DEU"},"Hydrogen (AEL)",{"$f":"_calc!$B$1015","v":"ARG-SAT"},{"$f":"_calc!$BO$990","v":"COST-FLOW"},{"$f":"_calc!$BW$1","v":"Heat"},{"$f":"_calc!$BW$1015","v":0}]
[{"$f":"_xlfn.TEXTJOIN(\",\",FALSE,output[[#This Row],[scenario]:[process_class]])","v":"PTX-BusinessOpportunityAnalyzer-1.0.9,DEU,Hydrogen (AEL),ARG-SAT,COST-FLOW,Electricity and H2 storage"},"PTX-BusinessOpportunityAnalyzer-1.0.9",{"$f":"sel_country_code","v":"DEU"},"Hydrogen (AEL)",{"$f":"_calc!$B$1015","v":"ARG-SAT"},{"$f":"_calc!$BO$990","v":"COST-FLOW"},{"$f":"_calc!$BX$1","v":"Electricity and H2 storage"},{"$f":"_calc!$BX$1015","v":0}]
[{"$f":"_xlfn.TEXTJOIN(\",\",FALSE,output[[#This Row],[scenario]:[process_class]])","v":"PTX-BusinessOpportunityAnalyzer-1.0.9,DEU,Hydrogen (AEL),ARG-TUC,COST-FLOW,Water"},"PTX-BusinessOpportunityAnalyzer-1.0.9",{"$f":"sel_country_code","v":"DEU"},"Hydrogen (AEL)",{"$f":"_calc!$B$1016","v":"ARG-TUC"},{"$f":"_calc!$BO$990","v":"COST-FLOW"},{"$f":"_calc!$BP$1","v":"Water"},{"$f":"_calc!$BP$1016","v":8.6538626962820581E-2}]
[{"$f":"_xlfn.TEXTJOIN(\",\",FALSE,output[[#This Row],[scenario]:[process_class]])","v":"PTX-BusinessOpportunityAnalyzer-1.0.9,DEU,Hydrogen (AEL),ARG-TUC,COST-FLOW,Electrolysis"},"PTX-BusinessOpportunityAnalyzer-1.0.9",{"$f":"sel_country_code","v":"DEU"},"Hydrogen (AEL)",{"$f":"_calc!$B$1016","v":"ARG-TUC"},{"$f":"_calc!$BO$990","v":"COST-FLOW"},{"$f":"_calc!$BQ$1","v":"Electrolysis"},{"$f":"_calc!$BQ$1016","v":0}]
[{"$f":"_xlfn.TEXTJOIN(\",\",FALSE,output[[#This Row],[scenario]:[process_class]])","v":"PTX-BusinessOpportunityAnalyzer-1.0.9,DEU,Hydrogen (AEL),ARG-TUC,COST-FLOW,Electricity generation"},"PTX-BusinessOpportunityAnalyzer-1.0.9",{"$f":"sel_country_code","v":"DEU"},"Hydrogen (AEL)",{"$f":"_calc!$B$1016","v":"ARG-TUC"},{"$f":"_calc!$BO$990","v":"COST-FLOW"},{"$f":"_calc!$BR$1","v":"Electricity generation"},{"$f":"_calc!$BR$1016","v":0}]
[{"$f":"_xlfn.TEXTJOIN(\",\",FALSE,output[[#This Row],[scenario]:[process_class]])","v":"PTX-BusinessOpportunityAnalyzer-1.0.9,DEU,Hydrogen (AEL),ARG-TUC,COST-FLOW,Transportation (Pipeline)"},"PTX-BusinessOpportunityAnalyzer-1.0.9",{"$f":"sel_country_code","v":"DEU"},"Hydrogen (AEL)",{"$f":"_calc!$B$1016","v":"ARG-TUC"},{"$f":"_calc!$BO$990","v":"COST-FLOW"},{"$f":"_calc!$BS$1","v":"Transportation (Pipeline)"},{"$f":"_calc!$BS$1016","v":0}]
[{"$f":"_xlfn.TEXTJOIN(\",\",FALSE,output[[#This Row],[scenario]:[process_class]])","v":"PTX-BusinessOpportunityAnalyzer-1.0.9,DEU,Hydrogen (AEL),ARG-TUC,COST-FLOW,Transportation (Ship)"},"PTX-BusinessOpportunityAnalyzer-1.0.9",{"$f":"sel_country_code","v":"DEU"},"Hydrogen (AEL)",{"$f":"_calc!$B$1016","v":"ARG-TUC"},{"$f":"_calc!$BO$990","v":"COST-FLOW"},{"$f":"_calc!$BT$1","v":"Transportation (Ship)"},{"$f":"_calc!$BT$1016","v":28.855827596805788}]
[{"$f":"_xlfn.TEXTJOIN(\",\",FALSE,output[[#This Row],[scenario]:[process_class]])","v":"PTX-BusinessOpportunityAnalyzer-1.0.9,DEU,Hydrogen (AEL),ARG-TUC,COST-FLOW,Carbon"},"PTX-BusinessOpportunityAnalyzer-1.0.9",{"$f":"sel_country_code","v":"DEU"},"Hydrogen (AEL)",{"$f":"_calc!$B$1016","v":"ARG-TUC"},{"$f":"_calc!$BO$990","v":"COST-FLOW"},{"$f":"_calc!$BU$1","v":"Carbon"},{"$f":"_calc!$BU$1016","v":0}]
[{"$f":"_xlfn.TEXTJOIN(\",\",FALSE,output[[#This Row],[scenario]:[process_class]])","v":"PTX-BusinessOpportunityAnalyzer-1.0.9,DEU,Hydrogen (AEL),ARG-TUC,COST-FLOW,Derivate production"},"PTX-BusinessOpportunityAnalyzer-1.0.9",{"$f":"sel_country_code","v":"DEU"},"Hydrogen (AEL)",{"$f":"_calc!$B$1016","v":"ARG-TUC"},{"$f":"_calc!$BO$990","v":"COST-FLOW"},{"$f":"_calc!$BV$1","v":"Derivate production"},{"$f":"_calc!$BV$1016","v":0}]
[{"$f":"_xlfn.TEXTJOIN(\",\",FALSE,output[[#This Row],[scenario]:[process_class]])","v":"PTX-BusinessOpportunityAnalyzer-1.0.9,DEU,Hydrogen (AEL),ARG-TUC,COST-FLOW,Heat"},"PTX-BusinessOpportunityAnalyzer-1.0.9",{"$f":"sel_country_code","v":"DEU"},"Hydrogen (AEL)",{"$f":"_calc!$B$1016","v":"ARG-TUC"},{"$f":"_calc!$BO$990","v":"COST-FLOW"},{"$f":"_calc!$BW$1","v":"Heat"},{"$f":"_calc!$BW$1016","v":0}]
[{"$f":"_xlfn.TEXTJOIN(\",\",FALSE,output[[#This Row],[scenario]:[process_class]])","v":"PTX-BusinessOpportunityAnalyzer-1.0.9,DEU,Hydrogen (AEL),ARG-TUC,COST-FLOW,Electricity and H2 storage"},"PTX-BusinessOpportunityAnalyzer-1.0.9",{"$f":"sel_country_code","v":"DEU"},"Hydrogen (AEL)",{"$f":"_calc!$B$1016","v":"ARG-TUC"},{"$f":"_calc!$BO$990","v":"COST-FLOW"},{"$f":"_calc!$BX$1","v":"Electricity and H2 storage"},{"$f":"_calc!$BX$1016","v":0}]
[{"$f":"_xlfn.TEXTJOIN(\",\",FALSE,output[[#This Row],[scenario]:[process_class]])","v":"PTX-BusinessOpportunityAnalyzer-1.0.9,DEU,Hydrogen (AEL),AUS,COST-FLOW,Water"},"PTX-BusinessOpportunityAnalyzer-1.0.9",{"$f":"sel_country_code","v":"DEU"},"Hydrogen (AEL)",{"$f":"_calc!$B$1017","v":"AUS"},{"$f":"_calc!$BO$990","v":"COST-FLOW"},{"$f":"_calc!$BP$1","v":"Water"},{"$f":"_calc!$BP$1017","v":9.4988616384487662E-2}]
[{"$f":"_xlfn.TEXTJOIN(\",\",FALSE,output[[#This Row],[scenario]:[process_class]])","v":"PTX-BusinessOpportunityAnalyzer-1.0.9,DEU,Hydrogen (AEL),AUS,COST-FLOW,Electrolysis"},"PTX-BusinessOpportunityAnalyzer-1.0.9",{"$f":"sel_country_code","v":"DEU"},"Hydrogen (AEL)",{"$f":"_calc!$B$1017","v":"AUS"},{"$f":"_calc!$BO$990","v":"COST-FLOW"},{"$f":"_calc!$BQ$1","v":"Electrolysis"},{"$f":"_calc!$BQ$1017","v":0}]
[{"$f":"_xlfn.TEXTJOIN(\",\",FALSE,output[[#This Row],[scenario]:[process_class]])","v":"PTX-BusinessOpportunityAnalyzer-1.0.9,DEU,Hydrogen (AEL),AUS,COST-FLOW,Electricity generation"},"PTX-BusinessOpportunityAnalyzer-1.0.9",{"$f":"sel_country_code","v":"DEU"},"Hydrogen (AEL)",{"$f":"_calc!$B$1017","v":"AUS"},{"$f":"_calc!$BO$990","v":"COST-FLOW"},{"$f":"_calc!$BR$1","v":"Electricity generation"},{"$f":"_calc!$BR$1017","v":0}]
[{"$f":"_xlfn.TEXTJOIN(\",\",FALSE,output[[#This Row],[scenario]:[process_class]])","v":"PTX-BusinessOpportunityAnalyzer-1.0.9,DEU,Hydrogen (AEL),AUS,COST-FLOW,Transportation (Pipeline)"},"PTX-BusinessOpportunityAnalyzer-1.0.9",{"$f":"sel_country_code","v":"DEU"},"Hydrogen (AEL)",{"$f":"_calc!$B$1017","v":"AUS"},{"$f":"_calc!$BO$990","v":"COST-FLOW"},{"$f":"_calc!$BS$1","v":"Transportation (Pipeline)"},{"$f":"_calc!$BS$1017","v":0}]
[{"$f":"_xlfn.TEXTJOIN(\",\",FALSE,output[[#This Row],[scenario]:[process_class]])","v":"PTX-BusinessOpportunityAnalyzer-1.0.9,DEU,Hydrogen (AEL),AUS,COST-FLOW,Transportation (Ship)"},"PTX-BusinessOpportunityAnalyzer-1.0.9",{"$f":"sel_country_code","v":"DEU"},"Hydrogen (AEL)",{"$f":"_calc!$B$1017","v":"AUS"},{"$f":"_calc!$BO$990","v":"COST-FLOW"},{"$f":"_calc!$BT$1","v":"Transportation (Ship)"},{"$f":"_calc!$BT$1017","v":31.673429938141922}]
[{"$f":"_xlfn.TEXTJOIN(\",\",FALSE,output[[#This Row],[scenario]:[process_class]])","v":"PTX-BusinessOpportunityAnalyzer-1.0.9,DEU,Hydrogen (AEL),AUS,COST-FLOW,Carbon"},"PTX-BusinessOpportunityAnalyzer-1.0.9",{"$f":"sel_country_code","v":"DEU"},"Hydrogen (AEL)",{"$f":"_calc!$B$1017","v":"AUS"},{"$f":"_calc!$BO$990","v":"COST-FLOW"},{"$f":"_calc!$BU$1","v":"Carbon"},{"$f":"_calc!$BU$1017","v":0}]
[{"$f":"_xlfn.TEXTJOIN(\",\",FALSE,output[[#This Row],[scenario]:[process_class]])","v":"PTX-BusinessOpportunityAnalyzer-1.0.9,DEU,Hydrogen (AEL),AUS,COST-FLOW,Derivate production"},"PTX-BusinessOpportunityAnalyzer-1.0.9",{"$f":"sel_country_code","v":"DEU"},"Hydrogen (AEL)",{"$f":"_calc!$B$1017","v":"AUS"},{"$f":"_calc!$BO$990","v":"COST-FLOW"},{"$f":"_calc!$BV$1","v":"Derivate production"},{"$f":"_calc!$BV$1017","v":0}]
[{"$f":"_xlfn.TEXTJOIN(\",\",FALSE,output[[#This Row],[scenario]:[process_class]])","v":"PTX-BusinessOpportunityAnalyzer-1.0.9,DEU,Hydrogen (AEL),AUS,COST-FLOW,Heat"},"PTX-BusinessOpportunityAnalyzer-1.0.9",{"$f":"sel_country_code","v":"DEU"},"Hydrogen (AEL)",{"$f":"_calc!$B$1017","v":"AUS"},{"$f":"_calc!$BO$990","v":"COST-FLOW"},{"$f":"_calc!$BW$1","v":"Heat"},{"$f":"_calc!$BW$1017","v":0}]
[{"$f":"_xlfn.TEXTJOIN(\",\",FALSE,output[[#This Row],[scenario]:[process_class]])","v":"PTX-BusinessOpportunityAnalyzer-1.0.9,DEU,Hydrogen (AEL),AUS,COST-FLOW,Electricity and H2 storage"},{"$f":"output_scenario_name","v":"PTX-BusinessOpportunityAnalyzer-1.0.9"},{"$f":"sel_country_code","v":"DEU"},{"$f":"sel_chain","v":"Hydrogen (AEL)"},{"$f":"_calc!$B$1017","v":"AUS"},{"$f":"_calc!$BO$990","v":"COST-FLOW"},{"$f":"_calc!$BX$1","v":"Electricity and H2 storage"},{"$f":"_calc!$BX$1017","v":0}]
[{"$f":"_xlfn.TEXTJOIN(\",\",FALSE,output[[#This Row],[scenario]:[process_class]])","v":"PTX-BusinessOpportunityAnalyzer-1.0.9,DEU,Hydrogen (AEL),BRA,COST-FLOW,Water"},"PTX-BusinessOpportunityAnalyzer-1.0.9",{"$f":"sel_country_code","v":"DEU"},"Hydrogen (AEL)",{"$f":"_calc!$B$1018","v":"BRA"},{"$f":"_calc!$BO$990","v":"COST-FLOW"},{"$f":"_calc!$BP$1","v":"Water"},{"$f":"_calc!$BP$1018","v":8.4483967676729915E-2}]
[{"$f":"_xlfn.TEXTJOIN(\",\",FALSE,output[[#This Row],[scenario]:[process_class]])","v":"PTX-BusinessOpportunityAnalyzer-1.0.9,DEU,Hydrogen (AEL),BRA,COST-FLOW,Electrolysis"},"PTX-BusinessOpportunityAnalyzer-1.0.9",{"$f":"sel_country_code","v":"DEU"},"Hydrogen (AEL)",{"$f":"_calc!$B$1018","v":"BRA"},{"$f":"_calc!$BO$990","v":"COST-FLOW"},{"$f":"_calc!$BQ$1","v":"Electrolysis"},{"$f":"_calc!$BQ$1018","v":0}]
[{"$f":"_xlfn.TEXTJOIN(\",\",FALSE,output[[#This Row],[scenario]:[process_class]])","v":"PTX-BusinessOpportunityAnalyzer-1.0.9,DEU,Hydrogen (AEL),BRA,COST-FLOW,Electricity generation"},"PTX-BusinessOpportunityAnalyzer-1.0.9",{"$f":"sel_country_code","v":"DEU"},"Hydrogen (AEL)",{"$f":"_calc!$B$1018","v":"BRA"},{"$f":"_calc!$BO$990","v":"COST-FLOW"},{"$f":"_calc!$BR$1","v":"Electricity generation"},{"$f":"_calc!$BR$1018","v":0}]
[{"$f":"_xlfn.TEXTJOIN(\",\",FALSE,output[[#This Row],[scenario]:[process_class]])","v":"PTX-BusinessOpportunityAnalyzer-1.0.9,DEU,Hydrogen (AEL),BRA,COST-FLOW,Transportation (Pipeline)"},"PTX-BusinessOpportunityAnalyzer-1.0.9",{"$f":"sel_country_code","v":"DEU"},"Hydrogen (AEL)",{"$f":"_calc!$B$1018","v":"BRA"},{"$f":"_calc!$BO$990","v":"COST-FLOW"},{"$f":"_calc!$BS$1","v":"Transportation (Pipeline)"},{"$f":"_calc!$BS$1018","v":0}]
[{"$f":"_xlfn.TEXTJOIN(\",\",FALSE,output[[#This Row],[scenario]:[process_class]])","v":"PTX-BusinessOpportunityAnalyzer-1.0.9,DEU,Hydrogen (AEL),BRA,COST-FLOW,Transportation (Ship)"},"PTX-BusinessOpportunityAnalyzer-1.0.9",{"$f":"sel_country_code","v":"DEU"},"Hydrogen (AEL)",{"$f":"_calc!$B$1018","v":"BRA"},{"$f":"_calc!$BO$990","v":"COST-FLOW"},{"$f":"_calc!$BT$1","v":"Transportation (Ship)"},{"$f":"_calc!$BT$1018","v":28.170712796508806}]
[{"$f":"_xlfn.TEXTJOIN(\",\",FALSE,output[[#This Row],[scenario]:[process_class]])","v":"PTX-BusinessOpportunityAnalyzer-1.0.9,DEU,Hydrogen (AEL),BRA,COST-FLOW,Carbon"},"PTX-BusinessOpportunityAnalyzer-1.0.9",{"$f":"sel_country_code","v":"DEU"},"Hydrogen (AEL)",{"$f":"_calc!$B$1018","v":"BRA"},{"$f":"_calc!$BO$990","v":"COST-FLOW"},{"$f":"_calc!$BU$1","v":"Carbon"},{"$f":"_calc!$BU$1018","v":0}]
[{"$f":"_xlfn.TEXTJOIN(\",\",FALSE,output[[#This Row],[scenario]:[process_class]])","v":"PTX-BusinessOpportunityAnalyzer-1.0.9,DEU,Hydrogen (AEL),BRA,COST-FLOW,Derivate production"},"PTX-BusinessOpportunityAnalyzer-1.0.9",{"$f":"sel_country_code","v":"DEU"},"Hydrogen (AEL)",{"$f":"_calc!$B$1018","v":"BRA"},{"$f":"_calc!$BO$990","v":"COST-FLOW"},{"$f":"_calc!$BV$1","v":"Derivate production"},{"$f":"_calc!$BV$1018","v":0}]
[{"$f":"_xlfn.TEXTJOIN(\",\",FALSE,output[[#This Row],[scenario]:[process_class]])","v":"PTX-BusinessOpportunityAnalyzer-1.0.9,DEU,Hydrogen (AEL),BRA,COST-FLOW,Heat"},"PTX-BusinessOpportunityAnalyzer-1.0.9",{"$f":"sel_country_code","v":"DEU"},"Hydrogen (AEL)",{"$f":"_calc!$B$1018","v":"BRA"},{"$f":"_calc!$BO$990","v":"COST-FLOW"},{"$f":"_calc!$BW$1","v":"Heat"},{"$f":"_calc!$BW$1018","v":0}]
[{"$f":"_xlfn.TEXTJOIN(\",\",FALSE,output[[#This Row],[scenario]:[process_class]])","v":"PTX-BusinessOpportunityAnalyzer-1.0.9,DEU,Hydrogen (AEL),BRA,COST-FLOW,Electricity and H2 storage"},"PTX-BusinessOpportunityAnalyzer-1.0.9",{"$f":"sel_country_code","v":"DEU"},"Hydrogen (AEL)",{"$f":"_calc!$B$1018","v":"BRA"},{"$f":"_calc!$BO$990","v":"COST-FLOW"},{"$f":"_calc!$BX$1","v":"Electricity and H2 storage"},{"$f":"_calc!$BX$1018","v":0}]
[{"$f":"_xlfn.TEXTJOIN(\",\",FALSE,output[[#This Row],[scenario]:[process_class]])","v":"PTX-BusinessOpportunityAnalyzer-1.0.9,DEU,Hydrogen (AEL),CHL,COST-FLOW,Water"},"PTX-BusinessOpportunityAnalyzer-1.0.9",{"$f":"sel_country_code","v":"DEU"},"Hydrogen (AEL)",{"$f":"_calc!$B$1019","v":"CHL"},{"$f":"_calc!$BO$990","v":"COST-FLOW"},{"$f":"_calc!$BP$1","v":"Water"},{"$f":"_calc!$BP$1019","v":8.6342252842091932E-2}]
[{"$f":"_xlfn.TEXTJOIN(\",\",FALSE,output[[#This Row],[scenario]:[process_class]])","v":"PTX-BusinessOpportunityAnalyzer-1.0.9,DEU,Hydrogen (AEL),CHL,COST-FLOW,Electrolysis"},"PTX-BusinessOpportunityAnalyzer-1.0.9",{"$f":"sel_country_code","v":"DEU"},"Hydrogen (AEL)",{"$f":"_calc!$B$1019","v":"CHL"},{"$f":"_calc!$BO$990","v":"COST-FLOW"},{"$f":"_calc!$BQ$1","v":"Electrolysis"},{"$f":"_calc!$BQ$1019","v":0}]
[{"$f":"_xlfn.TEXTJOIN(\",\",FALSE,output[[#This Row],[scenario]:[process_class]])","v":"PTX-BusinessOpportunityAnalyzer-1.0.9,DEU,Hydrogen (AEL),CHL,COST-FLOW,Electricity generation"},"PTX-BusinessOpportunityAnalyzer-1.0.9",{"$f":"sel_country_code","v":"DEU"},"Hydrogen (AEL)",{"$f":"_calc!$B$1019","v":"CHL"},{"$f":"_calc!$BO$990","v":"COST-FLOW"},{"$f":"_calc!$BR$1","v":"Electricity generation"},{"$f":"_calc!$BR$1019","v":0}]
[{"$f":"_xlfn.TEXTJOIN(\",\",FALSE,output[[#This Row],[scenario]:[process_class]])","v":"PTX-BusinessOpportunityAnalyzer-1.0.9,DEU,Hydrogen (AEL),CHL,COST-FLOW,Transportation (Pipeline)"},"PTX-BusinessOpportunityAnalyzer-1.0.9",{"$f":"sel_country_code","v":"DEU"},"Hydrogen (AEL)",{"$f":"_calc!$B$1019","v":"CHL"},{"$f":"_calc!$BO$990","v":"COST-FLOW"},{"$f":"_calc!$BS$1","v":"Transportation (Pipeline)"},{"$f":"_calc!$BS$1019","v":0}]
[{"$f":"_xlfn.TEXTJOIN(\",\",FALSE,output[[#This Row],[scenario]:[process_class]])","v":"PTX-BusinessOpportunityAnalyzer-1.0.9,DEU,Hydrogen (AEL),CHL,COST-FLOW,Transportation (Ship)"},"PTX-BusinessOpportunityAnalyzer-1.0.9",{"$f":"sel_country_code","v":"DEU"},"Hydrogen (AEL)",{"$f":"_calc!$B$1019","v":"CHL"},{"$f":"_calc!$BO$990","v":"COST-FLOW"},{"$f":"_calc!$BT$1","v":"Transportation (Ship)"},{"$f":"_calc!$BT$1019","v":28.790347729940617}]
[{"$f":"_xlfn.TEXTJOIN(\",\",FALSE,output[[#This Row],[scenario]:[process_class]])","v":"PTX-BusinessOpportunityAnalyzer-1.0.9,DEU,Hydrogen (AEL),CHL,COST-FLOW,Carbon"},"PTX-BusinessOpportunityAnalyzer-1.0.9",{"$f":"sel_country_code","v":"DEU"},"Hydrogen (AEL)",{"$f":"_calc!$B$1019","v":"CHL"},{"$f":"_calc!$BO$990","v":"COST-FLOW"},{"$f":"_calc!$BU$1","v":"Carbon"},{"$f":"_calc!$BU$1019","v":0}]
[{"$f":"_xlfn.TEXTJOIN(\",\",FALSE,output[[#This Row],[scenario]:[process_class]])","v":"PTX-BusinessOpportunityAnalyzer-1.0.9,DEU,Hydrogen (AEL),CHL,COST-FLOW,Derivate production"},"PTX-BusinessOpportunityAnalyzer-1.0.9",{"$f":"sel_country_code","v":"DEU"},"Hydrogen (AEL)",{"$f":"_calc!$B$1019","v":"CHL"},{"$f":"_calc!$BO$990","v":"COST-FLOW"},{"$f":"_calc!$BV$1","v":"Derivate production"},{"$f":"_calc!$BV$1019","v":0}]
[{"$f":"_xlfn.TEXTJOIN(\",\",FALSE,output[[#This Row],[scenario]:[process_class]])","v":"PTX-BusinessOpportunityAnalyzer-1.0.9,DEU,Hydrogen (AEL),CHL,COST-FLOW,Heat"},"PTX-BusinessOpportunityAnalyzer-1.0.9",{"$f":"sel_country_code","v":"DEU"},"Hydrogen (AEL)",{"$f":"_calc!$B$1019","v":"CHL"},{"$f":"_calc!$BO$990","v":"COST-FLOW"},{"$f":"_calc!$BW$1","v":"Heat"},{"$f":"_calc!$BW$1019","v":0}]
[{"$f":"_xlfn.TEXTJOIN(\",\",FALSE,output[[#This Row],[scenario]:[process_class]])","v":"PTX-BusinessOpportunityAnalyzer-1.0.9,DEU,Hydrogen (AEL),CHL,COST-FLOW,Electricity and H2 storage"},"PTX-BusinessOpportunityAnalyzer-1.0.9",{"$f":"sel_country_code","v":"DEU"},"Hydrogen (AEL)",{"$f":"_calc!$B$1019","v":"CHL"},{"$f":"_calc!$BO$990","v":"COST-FLOW"},{"$f":"_calc!$BX$1","v":"Electricity and H2 storage"},{"$f":"_calc!$BX$1019","v":0}]
[{"$f":"_xlfn.TEXTJOIN(\",\",FALSE,output[[#This Row],[scenario]:[process_class]])","v":"PTX-BusinessOpportunityAnalyzer-1.0.9,DEU,Hydrogen (AEL),CHN,COST-FLOW,Water"},"PTX-BusinessOpportunityAnalyzer-1.0.9",{"$f":"sel_country_code","v":"DEU"},"Hydrogen (AEL)",{"$f":"_calc!$B$1020","v":"CHN"},{"$f":"_calc!$BO$990","v":"COST-FLOW"},{"$f":"_calc!$BP$1","v":"Water"},{"$f":"_calc!$BP$1020","v":9.4199947235976161E-2}]
[{"$f":"_xlfn.TEXTJOIN(\",\",FALSE,output[[#This Row],[scenario]:[process_class]])","v":"PTX-BusinessOpportunityAnalyzer-1.0.9,DEU,Hydrogen (AEL),CHN,COST-FLOW,Electrolysis"},"PTX-BusinessOpportunityAnalyzer-1.0.9",{"$f":"sel_country_code","v":"DEU"},"Hydrogen (AEL)",{"$f":"_calc!$B$1020","v":"CHN"},{"$f":"_calc!$BO$990","v":"COST-FLOW"},{"$f":"_calc!$BQ$1","v":"Electrolysis"},{"$f":"_calc!$BQ$1020","v":0}]
[{"$f":"_xlfn.TEXTJOIN(\",\",FALSE,output[[#This Row],[scenario]:[process_class]])","v":"PTX-BusinessOpportunityAnalyzer-1.0.9,DEU,Hydrogen (AEL),CHN,COST-FLOW,Electricity generation"},"PTX-BusinessOpportunityAnalyzer-1.0.9",{"$f":"sel_country_code","v":"DEU"},"Hydrogen (AEL)",{"$f":"_calc!$B$1020","v":"CHN"},{"$f":"_calc!$BO$990","v":"COST-FLOW"},{"$f":"_calc!$BR$1","v":"Electricity generation"},{"$f":"_calc!$BR$1020","v":0}]
[{"$f":"_xlfn.TEXTJOIN(\",\",FALSE,output[[#This Row],[scenario]:[process_class]])","v":"PTX-BusinessOpportunityAnalyzer-1.0.9,DEU,Hydrogen (AEL),CHN,COST-FLOW,Transportation (Pipeline)"},"PTX-BusinessOpportunityAnalyzer-1.0.9",{"$f":"sel_country_code","v":"DEU"},"Hydrogen (AEL)",{"$f":"_calc!$B$1020","v":"CHN"},{"$f":"_calc!$BO$990","v":"COST-FLOW"},{"$f":"_calc!$BS$1","v":"Transportation (Pipeline)"},{"$f":"_calc!$BS$1020","v":0}]
[{"$f":"_xlfn.TEXTJOIN(\",\",FALSE,output[[#This Row],[scenario]:[process_class]])","v":"PTX-BusinessOpportunityAnalyzer-1.0.9,DEU,Hydrogen (AEL),CHN,COST-FLOW,Transportation (Ship)"},"PTX-BusinessOpportunityAnalyzer-1.0.9",{"$f":"sel_country_code","v":"DEU"},"Hydrogen (AEL)",{"$f":"_calc!$B$1020","v":"CHN"},{"$f":"_calc!$BO$990","v":"COST-FLOW"},{"$f":"_calc!$BT$1","v":"Transportation (Ship)"},{"$f":"_calc!$BT$1020","v":31.410452562846331}]
[{"$f":"_xlfn.TEXTJOIN(\",\",FALSE,output[[#This Row],[scenario]:[process_class]])","v":"PTX-BusinessOpportunityAnalyzer-1.0.9,DEU,Hydrogen (AEL),CHN,COST-FLOW,Carbon"},"PTX-BusinessOpportunityAnalyzer-1.0.9",{"$f":"sel_country_code","v":"DEU"},"Hydrogen (AEL)",{"$f":"_calc!$B$1020","v":"CHN"},{"$f":"_calc!$BO$990","v":"COST-FLOW"},{"$f":"_calc!$BU$1","v":"Carbon"},{"$f":"_calc!$BU$1020","v":0}]
[{"$f":"_xlfn.TEXTJOIN(\",\",FALSE,output[[#This Row],[scenario]:[process_class]])","v":"PTX-BusinessOpportunityAnalyzer-1.0.9,DEU,Hydrogen (AEL),CHN,COST-FLOW,Derivate production"},"PTX-BusinessOpportunityAnalyzer-1.0.9",{"$f":"sel_country_code","v":"DEU"},"Hydrogen (AEL)",{"$f":"_calc!$B$1020","v":"CHN"},{"$f":"_calc!$BO$990","v":"COST-FLOW"},{"$f":"_calc!$BV$1","v":"Derivate production"},{"$f":"_calc!$BV$1020","v":0}]
[{"$f":"_xlfn.TEXTJOIN(\",\",FALSE,output[[#This Row],[scenario]:[process_class]])","v":"PTX-BusinessOpportunityAnalyzer-1.0.9,DEU,Hydrogen (AEL),CHN,COST-FLOW,Heat"},"PTX-BusinessOpportunityAnalyzer-1.0.9",{"$f":"sel_country_code","v":"DEU"},"Hydrogen (AEL)",{"$f":"_calc!$B$1020","v":"CHN"},{"$f":"_calc!$BO$990","v":"COST-FLOW"},{"$f":"_calc!$BW$1","v":"Heat"},{"$f":"_calc!$BW$1020","v":0}]
[{"$f":"_xlfn.TEXTJOIN(\",\",FALSE,output[[#This Row],[scenario]:[process_class]])","v":"PTX-BusinessOpportunityAnalyzer-1.0.9,DEU,Hydrogen (AEL),CHN,COST-FLOW,Electricity and H2 storage"},"PTX-BusinessOpportunityAnalyzer-1.0.9",{"$f":"sel_country_code","v":"DEU"},"Hydrogen (AEL)",{"$f":"_calc!$B$1020","v":"CHN"},{"$f":"_calc!$BO$990","v":"COST-FLOW"},{"$f":"_calc!$BX$1","v":"Electricity and H2 storage"},{"$f":"_calc!$BX$1020","v":0}]
[{"$f":"_xlfn.TEXTJOIN(\",\",FALSE,output[[#This Row],[scenario]:[process_class]])","v":"PTX-BusinessOpportunityAnalyzer-1.0.9,DEU,Hydrogen (AEL),COL,COST-FLOW,Water"},"PTX-BusinessOpportunityAnalyzer-1.0.9",{"$f":"sel_country_code","v":"DEU"},"Hydrogen (AEL)",{"$f":"_calc!$B$1021","v":"COL"},{"$f":"_calc!$BO$990","v":"COST-FLOW"},{"$f":"_calc!$BP$1","v":"Water"},{"$f":"_calc!$BP$1021","v":8.3493546224798265E-2}]
[{"$f":"_xlfn.TEXTJOIN(\",\",FALSE,output[[#This Row],[scenario]:[process_class]])","v":"PTX-BusinessOpportunityAnalyzer-1.0.9,DEU,Hydrogen (AEL),COL,COST-FLOW,Electrolysis"},"PTX-BusinessOpportunityAnalyzer-1.0.9",{"$f":"sel_country_code","v":"DEU"},"Hydrogen (AEL)",{"$f":"_calc!$B$1021","v":"COL"},{"$f":"_calc!$BO$990","v":"COST-FLOW"},{"$f":"_calc!$BQ$1","v":"Electrolysis"},{"$f":"_calc!$BQ$1021","v":0}]
[{"$f":"_xlfn.TEXTJOIN(\",\",FALSE,output[[#This Row],[scenario]:[process_class]])","v":"PTX-BusinessOpportunityAnalyzer-1.0.9,DEU,Hydrogen (AEL),COL,COST-FLOW,Electricity generation"},"PTX-BusinessOpportunityAnalyzer-1.0.9",{"$f":"sel_country_code","v":"DEU"},"Hydrogen (AEL)",{"$f":"_calc!$B$1021","v":"COL"},{"$f":"_calc!$BO$990","v":"COST-FLOW"},{"$f":"_calc!$BR$1","v":"Electricity generation"},{"$f":"_calc!$BR$1021","v":0}]
[{"$f":"_xlfn.TEXTJOIN(\",\",FALSE,output[[#This Row],[scenario]:[process_class]])","v":"PTX-BusinessOpportunityAnalyzer-1.0.9,DEU,Hydrogen (AEL),COL,COST-FLOW,Transportation (Pipeline)"},"PTX-BusinessOpportunityAnalyzer-1.0.9",{"$f":"sel_country_code","v":"DEU"},"Hydrogen (AEL)",{"$f":"_calc!$B$1021","v":"COL"},{"$f":"_calc!$BO$990","v":"COST-FLOW"},{"$f":"_calc!$BS$1","v":"Transportation (Pipeline)"},{"$f":"_calc!$BS$1021","v":0}]
[{"$f":"_xlfn.TEXTJOIN(\",\",FALSE,output[[#This Row],[scenario]:[process_class]])","v":"PTX-BusinessOpportunityAnalyzer-1.0.9,DEU,Hydrogen (AEL),COL,COST-FLOW,Transportation (Ship)"},"PTX-BusinessOpportunityAnalyzer-1.0.9",{"$f":"sel_country_code","v":"DEU"},"Hydrogen (AEL)",{"$f":"_calc!$B$1021","v":"COL"},{"$f":"_calc!$BO$990","v":"COST-FLOW"},{"$f":"_calc!$BT$1","v":"Transportation (Ship)"},{"$f":"_calc!$BT$1021","v":27.840462229009081}]
[{"$f":"_xlfn.TEXTJOIN(\",\",FALSE,output[[#This Row],[scenario]:[process_class]])","v":"PTX-BusinessOpportunityAnalyzer-1.0.9,DEU,Hydrogen (AEL),COL,COST-FLOW,Carbon"},"PTX-BusinessOpportunityAnalyzer-1.0.9",{"$f":"sel_country_code","v":"DEU"},"Hydrogen (AEL)",{"$f":"_calc!$B$1021","v":"COL"},{"$f":"_calc!$BO$990","v":"COST-FLOW"},{"$f":"_calc!$BU$1","v":"Carbon"},{"$f":"_calc!$BU$1021","v":0}]
[{"$f":"_xlfn.TEXTJOIN(\",\",FALSE,output[[#This Row],[scenario]:[process_class]])","v":"PTX-BusinessOpportunityAnalyzer-1.0.9,DEU,Hydrogen (AEL),COL,COST-FLOW,Derivate production"},"PTX-BusinessOpportunityAnalyzer-1.0.9",{"$f":"sel_country_code","v":"DEU"},"Hydrogen (AEL)",{"$f":"_calc!$B$1021","v":"COL"},{"$f":"_calc!$BO$990","v":"COST-FLOW"},{"$f":"_calc!$BV$1","v":"Derivate production"},{"$f":"_calc!$BV$1021","v":0}]
[{"$f":"_xlfn.TEXTJOIN(\",\",FALSE,output[[#This Row],[scenario]:[process_class]])","v":"PTX-BusinessOpportunityAnalyzer-1.0.9,DEU,Hydrogen (AEL),COL,COST-FLOW,Heat"},"PTX-BusinessOpportunityAnalyzer-1.0.9",{"$f":"sel_country_code","v":"DEU"},"Hydrogen (AEL)",{"$f":"_calc!$B$1021","v":"COL"},{"$f":"_calc!$BO$990","v":"COST-FLOW"},{"$f":"_calc!$BW$1","v":"Heat"},{"$f":"_calc!$BW$1021","v":0}]
[{"$f":"_xlfn.TEXTJOIN(\",\",FALSE,output[[#This Row],[scenario]:[process_class]])","v":"PTX-BusinessOpportunityAnalyzer-1.0.9,DEU,Hydrogen (AEL),COL,COST-FLOW,Electricity and H2 storage"},"PTX-BusinessOpportunityAnalyzer-1.0.9",{"$f":"sel_country_code","v":"DEU"},"Hydrogen (AEL)",{"$f":"_calc!$B$1021","v":"COL"},{"$f":"_calc!$BO$990","v":"COST-FLOW"},{"$f":"_calc!$BX$1","v":"Electricity and H2 storage"},{"$f":"_calc!$BX$1021","v":0}]
[{"$f":"_xlfn.TEXTJOIN(\",\",FALSE,output[[#This Row],[scenario]:[process_class]])","v":"PTX-BusinessOpportunityAnalyzer-1.0.9,DEU,Hydrogen (AEL),CRI,COST-FLOW,Water"},"PTX-BusinessOpportunityAnalyzer-1.0.9",{"$f":"sel_country_code","v":"DEU"},"Hydrogen (AEL)",{"$f":"_calc!$B$1022","v":"CRI"},{"$f":"_calc!$BO$990","v":"COST-FLOW"},{"$f":"_calc!$BP$1","v":"Water"},{"$f":"_calc!$BP$1022","v":8.1977349461986981E-2}]
[{"$f":"_xlfn.TEXTJOIN(\",\",FALSE,output[[#This Row],[scenario]:[process_class]])","v":"PTX-BusinessOpportunityAnalyzer-1.0.9,DEU,Hydrogen (AEL),CRI,COST-FLOW,Electrolysis"},"PTX-BusinessOpportunityAnalyzer-1.0.9",{"$f":"sel_country_code","v":"DEU"},"Hydrogen (AEL)",{"$f":"_calc!$B$1022","v":"CRI"},{"$f":"_calc!$BO$990","v":"COST-FLOW"},{"$f":"_calc!$BQ$1","v":"Electrolysis"},{"$f":"_calc!$BQ$1022","v":0}]
[{"$f":"_xlfn.TEXTJOIN(\",\",FALSE,output[[#This Row],[scenario]:[process_class]])","v":"PTX-BusinessOpportunityAnalyzer-1.0.9,DEU,Hydrogen (AEL),CRI,COST-FLOW,Electricity generation"},"PTX-BusinessOpportunityAnalyzer-1.0.9",{"$f":"sel_country_code","v":"DEU"},"Hydrogen (AEL)",{"$f":"_calc!$B$1022","v":"CRI"},{"$f":"_calc!$BO$990","v":"COST-FLOW"},{"$f":"_calc!$BR$1","v":"Electricity generation"},{"$f":"_calc!$BR$1022","v":0}]
[{"$f":"_xlfn.TEXTJOIN(\",\",FALSE,output[[#This Row],[scenario]:[process_class]])","v":"PTX-BusinessOpportunityAnalyzer-1.0.9,DEU,Hydrogen (AEL),CRI,COST-FLOW,Transportation (Pipeline)"},"PTX-BusinessOpportunityAnalyzer-1.0.9",{"$f":"sel_country_code","v":"DEU"},"Hydrogen (AEL)",{"$f":"_calc!$B$1022","v":"CRI"},{"$f":"_calc!$BO$990","v":"COST-FLOW"},{"$f":"_calc!$BS$1","v":"Transportation (Pipeline)"},{"$f":"_calc!$BS$1022","v":0}]
[{"$f":"_xlfn.TEXTJOIN(\",\",FALSE,output[[#This Row],[scenario]:[process_class]])","v":"PTX-BusinessOpportunityAnalyzer-1.0.9,DEU,Hydrogen (AEL),CRI,COST-FLOW,Transportation (Ship)"},"PTX-BusinessOpportunityAnalyzer-1.0.9",{"$f":"sel_country_code","v":"DEU"},"Hydrogen (AEL)",{"$f":"_calc!$B$1022","v":"CRI"},{"$f":"_calc!$BO$990","v":"COST-FLOW"},{"$f":"_calc!$BT$1","v":"Transportation (Ship)"},{"$f":"_calc!$BT$1022","v":27.334894785590848}]
[{"$f":"_xlfn.TEXTJOIN(\",\",FALSE,output[[#This Row],[scenario]:[process_class]])","v":"PTX-BusinessOpportunityAnalyzer-1.0.9,DEU,Hydrogen (AEL),CRI,COST-FLOW,Carbon"},"PTX-BusinessOpportunityAnalyzer-1.0.9",{"$f":"sel_country_code","v":"DEU"},"Hydrogen (AEL)",{"$f":"_calc!$B$1022","v":"CRI"},{"$f":"_calc!$BO$990","v":"COST-FLOW"},{"$f":"_calc!$BU$1","v":"Carbon"},{"$f":"_calc!$BU$1022","v":0}]
[{"$f":"_xlfn.TEXTJOIN(\",\",FALSE,output[[#This Row],[scenario]:[process_class]])","v":"PTX-BusinessOpportunityAnalyzer-1.0.9,DEU,Hydrogen (AEL),CRI,COST-FLOW,Derivate production"},"PTX-BusinessOpportunityAnalyzer-1.0.9",{"$f":"sel_country_code","v":"DEU"},"Hydrogen (AEL)",{"$f":"_calc!$B$1022","v":"CRI"},{"$f":"_calc!$BO$990","v":"COST-FLOW"},{"$f":"_calc!$BV$1","v":"Derivate production"},{"$f":"_calc!$BV$1022","v":0}]
[{"$f":"_xlfn.TEXTJOIN(\",\",FALSE,output[[#This Row],[scenario]:[process_class]])","v":"PTX-BusinessOpportunityAnalyzer-1.0.9,DEU,Hydrogen (AEL),CRI,COST-FLOW,Heat"},"PTX-BusinessOpportunityAnalyzer-1.0.9",{"$f":"sel_country_code","v":"DEU"},"Hydrogen (AEL)",{"$f":"_calc!$B$1022","v":"CRI"},{"$f":"_calc!$BO$990","v":"COST-FLOW"},{"$f":"_calc!$BW$1","v":"Heat"},{"$f":"_calc!$BW$1022","v":0}]
[{"$f":"_xlfn.TEXTJOIN(\",\",FALSE,output[[#This Row],[scenario]:[process_class]])","v":"PTX-BusinessOpportunityAnalyzer-1.0.9,DEU,Hydrogen (AEL),CRI,COST-FLOW,Electricity and H2 storage"},"PTX-BusinessOpportunityAnalyzer-1.0.9",{"$f":"sel_country_code","v":"DEU"},"Hydrogen (AEL)",{"$f":"_calc!$B$1022","v":"CRI"},{"$f":"_calc!$BO$990","v":"COST-FLOW"},{"$f":"_calc!$BX$1","v":"Electricity and H2 storage"},{"$f":"_calc!$BX$1022","v":0}]
[{"$f":"_xlfn.TEXTJOIN(\",\",FALSE,output[[#This Row],[scenario]:[process_class]])","v":"PTX-BusinessOpportunityAnalyzer-1.0.9,DEU,Hydrogen (AEL),DNK,COST-FLOW,Water"},"PTX-BusinessOpportunityAnalyzer-1.0.9",{"$f":"sel_country_code","v":"DEU"},"Hydrogen (AEL)",{"$f":"_calc!$B$1023","v":"DNK"},{"$f":"_calc!$BO$990","v":"COST-FLOW"},{"$f":"_calc!$BP$1","v":"Water"},{"$f":"_calc!$BP$1023","v":6.4452068780045071E-2}]
[{"$f":"_xlfn.TEXTJOIN(\",\",FALSE,output[[#This Row],[scenario]:[process_class]])","v":"PTX-BusinessOpportunityAnalyzer-1.0.9,DEU,Hydrogen (AEL),DNK,COST-FLOW,Electrolysis"},"PTX-BusinessOpportunityAnalyzer-1.0.9",{"$f":"sel_country_code","v":"DEU"},"Hydrogen (AEL)",{"$f":"_calc!$B$1023","v":"DNK"},{"$f":"_calc!$BO$990","v":"COST-FLOW"},{"$f":"_calc!$BQ$1","v":"Electrolysis"},{"$f":"_calc!$BQ$1023","v":0}]
[{"$f":"_xlfn.TEXTJOIN(\",\",FALSE,output[[#This Row],[scenario]:[process_class]])","v":"PTX-BusinessOpportunityAnalyzer-1.0.9,DEU,Hydrogen (AEL),DNK,COST-FLOW,Electricity generation"},"PTX-BusinessOpportunityAnalyzer-1.0.9",{"$f":"sel_country_code","v":"DEU"},"Hydrogen (AEL)",{"$f":"_calc!$B$1023","v":"DNK"},{"$f":"_calc!$BO$990","v":"COST-FLOW"},{"$f":"_calc!$BR$1","v":"Electricity generation"},{"$f":"_calc!$BR$1023","v":0}]
[{"$f":"_xlfn.TEXTJOIN(\",\",FALSE,output[[#This Row],[scenario]:[process_class]])","v":"PTX-BusinessOpportunityAnalyzer-1.0.9,DEU,Hydrogen (AEL),DNK,COST-FLOW,Transportation (Pipeline)"},"PTX-BusinessOpportunityAnalyzer-1.0.9",{"$f":"sel_country_code","v":"DEU"},"Hydrogen (AEL)",{"$f":"_calc!$B$1023","v":"DNK"},{"$f":"_calc!$BO$990","v":"COST-FLOW"},{"$f":"_calc!$BS$1","v":"Transportation (Pipeline)"},{"$f":"_calc!$BS$1023","v":1.4322681951121123}]
[{"$f":"_xlfn.TEXTJOIN(\",\",FALSE,output[[#This Row],[scenario]:[process_class]])","v":"PTX-BusinessOpportunityAnalyzer-1.0.9,DEU,Hydrogen (AEL),DNK,COST-FLOW,Transportation (Ship)"},"PTX-BusinessOpportunityAnalyzer-1.0.9",{"$f":"sel_country_code","v":"DEU"},"Hydrogen (AEL)",{"$f":"_calc!$B$1023","v":"DNK"},{"$f":"_calc!$BO$990","v":"COST-FLOW"},{"$f":"_calc!$BT$1","v":"Transportation (Ship)"},{"$f":"_calc!$BT$1023","v":0}]
[{"$f":"_xlfn.TEXTJOIN(\",\",FALSE,output[[#This Row],[scenario]:[process_class]])","v":"PTX-BusinessOpportunityAnalyzer-1.0.9,DEU,Hydrogen (AEL),DNK,COST-FLOW,Carbon"},"PTX-BusinessOpportunityAnalyzer-1.0.9",{"$f":"sel_country_code","v":"DEU"},"Hydrogen (AEL)",{"$f":"_calc!$B$1023","v":"DNK"},{"$f":"_calc!$BO$990","v":"COST-FLOW"},{"$f":"_calc!$BU$1","v":"Carbon"},{"$f":"_calc!$BU$1023","v":0}]
[{"$f":"_xlfn.TEXTJOIN(\",\",FALSE,output[[#This Row],[scenario]:[process_class]])","v":"PTX-BusinessOpportunityAnalyzer-1.0.9,DEU,Hydrogen (AEL),DNK,COST-FLOW,Derivate production"},"PTX-BusinessOpportunityAnalyzer-1.0.9",{"$f":"sel_country_code","v":"DEU"},"Hydrogen (AEL)",{"$f":"_calc!$B$1023","v":"DNK"},{"$f":"_calc!$BO$990","v":"COST-FLOW"},{"$f":"_calc!$BV$1","v":"Derivate production"},{"$f":"_calc!$BV$1023","v":0}]
[{"$f":"_xlfn.TEXTJOIN(\",\",FALSE,output[[#This Row],[scenario]:[process_class]])","v":"PTX-BusinessOpportunityAnalyzer-1.0.9,DEU,Hydrogen (AEL),DNK,COST-FLOW,Heat"},"PTX-BusinessOpportunityAnalyzer-1.0.9",{"$f":"sel_country_code","v":"DEU"},"Hydrogen (AEL)",{"$f":"_calc!$B$1023","v":"DNK"},{"$f":"_calc!$BO$990","v":"COST-FLOW"},{"$f":"_calc!$BW$1","v":"Heat"},{"$f":"_calc!$BW$1023","v":0}]
[{"$f":"_xlfn.TEXTJOIN(\",\",FALSE,output[[#This Row],[scenario]:[process_class]])","v":"PTX-BusinessOpportunityAnalyzer-1.0.9,DEU,Hydrogen (AEL),DNK,COST-FLOW,Electricity and H2 storage"},"PTX-BusinessOpportunityAnalyzer-1.0.9",{"$f":"sel_country_code","v":"DEU"},"Hydrogen (AEL)",{"$f":"_calc!$B$1023","v":"DNK"},{"$f":"_calc!$BO$990","v":"COST-FLOW"},{"$f":"_calc!$BX$1","v":"Electricity and H2 storage"},{"$f":"_calc!$BX$1023","v":0}]
[{"$f":"_xlfn.TEXTJOIN(\",\",FALSE,output[[#This Row],[scenario]:[process_class]])","v":"PTX-BusinessOpportunityAnalyzer-1.0.9,DEU,Hydrogen (AEL),DZA,COST-FLOW,Water"},"PTX-BusinessOpportunityAnalyzer-1.0.9",{"$f":"sel_country_code","v":"DEU"},"Hydrogen (AEL)",{"$f":"_calc!$B$1024","v":"DZA"},{"$f":"_calc!$BO$990","v":"COST-FLOW"},{"$f":"_calc!$BP$1","v":"Water"},{"$f":"_calc!$BP$1024","v":6.7298309762971756E-2}]
[{"$f":"_xlfn.TEXTJOIN(\",\",FALSE,output[[#This Row],[scenario]:[process_class]])","v":"PTX-BusinessOpportunityAnalyzer-1.0.9,DEU,Hydrogen (AEL),DZA,COST-FLOW,Electrolysis"},"PTX-BusinessOpportunityAnalyzer-1.0.9",{"$f":"sel_country_code","v":"DEU"},"Hydrogen (AEL)",{"$f":"_calc!$B$1024","v":"DZA"},{"$f":"_calc!$BO$990","v":"COST-FLOW"},{"$f":"_calc!$BQ$1","v":"Electrolysis"},{"$f":"_calc!$BQ$1024","v":0}]
[{"$f":"_xlfn.TEXTJOIN(\",\",FALSE,output[[#This Row],[scenario]:[process_class]])","v":"PTX-BusinessOpportunityAnalyzer-1.0.9,DEU,Hydrogen (AEL),DZA,COST-FLOW,Electricity generation"},"PTX-BusinessOpportunityAnalyzer-1.0.9",{"$f":"sel_country_code","v":"DEU"},"Hydrogen (AEL)",{"$f":"_calc!$B$1024","v":"DZA"},{"$f":"_calc!$BO$990","v":"COST-FLOW"},{"$f":"_calc!$BR$1","v":"Electricity generation"},{"$f":"_calc!$BR$1024","v":0}]
[{"$f":"_xlfn.TEXTJOIN(\",\",FALSE,output[[#This Row],[scenario]:[process_class]])","v":"PTX-BusinessOpportunityAnalyzer-1.0.9,DEU,Hydrogen (AEL),DZA,COST-FLOW,Transportation (Pipeline)"},"PTX-BusinessOpportunityAnalyzer-1.0.9",{"$f":"sel_country_code","v":"DEU"},"Hydrogen (AEL)",{"$f":"_calc!$B$1024","v":"DZA"},{"$f":"_calc!$BO$990","v":"COST-FLOW"},{"$f":"_calc!$BS$1","v":"Transportation (Pipeline)"},{"$f":"_calc!$BS$1024","v":1.4955179947327055}]
[{"$f":"_xlfn.TEXTJOIN(\",\",FALSE,output[[#This Row],[scenario]:[process_class]])","v":"PTX-BusinessOpportunityAnalyzer-1.0.9,DEU,Hydrogen (AEL),DZA,COST-FLOW,Transportation (Ship)"},"PTX-BusinessOpportunityAnalyzer-1.0.9",{"$f":"sel_country_code","v":"DEU"},"Hydrogen (AEL)",{"$f":"_calc!$B$1024","v":"DZA"},{"$f":"_calc!$BO$990","v":"COST-FLOW"},{"$f":"_calc!$BT$1","v":"Transportation (Ship)"},{"$f":"_calc!$BT$1024","v":0}]
[{"$f":"_xlfn.TEXTJOIN(\",\",FALSE,output[[#This Row],[scenario]:[process_class]])","v":"PTX-BusinessOpportunityAnalyzer-1.0.9,DEU,Hydrogen (AEL),DZA,COST-FLOW,Carbon"},"PTX-BusinessOpportunityAnalyzer-1.0.9",{"$f":"sel_country_code","v":"DEU"},"Hydrogen (AEL)",{"$f":"_calc!$B$1024","v":"DZA"},{"$f":"_calc!$BO$990","v":"COST-FLOW"},{"$f":"_calc!$BU$1","v":"Carbon"},{"$f":"_calc!$BU$1024","v":0}]
[{"$f":"_xlfn.TEXTJOIN(\",\",FALSE,output[[#This Row],[scenario]:[process_class]])","v":"PTX-BusinessOpportunityAnalyzer-1.0.9,DEU,Hydrogen (AEL),DZA,COST-FLOW,Derivate production"},"PTX-BusinessOpportunityAnalyzer-1.0.9",{"$f":"sel_country_code","v":"DEU"},"Hydrogen (AEL)",{"$f":"_calc!$B$1024","v":"DZA"},{"$f":"_calc!$BO$990","v":"COST-FLOW"},{"$f":"_calc!$BV$1","v":"Derivate production"},{"$f":"_calc!$BV$1024","v":0}]
[{"$f":"_xlfn.TEXTJOIN(\",\",FALSE,output[[#This Row],[scenario]:[process_class]])","v":"PTX-BusinessOpportunityAnalyzer-1.0.9,DEU,Hydrogen (AEL),DZA,COST-FLOW,Heat"},"PTX-BusinessOpportunityAnalyzer-1.0.9",{"$f":"sel_country_code","v":"DEU"},"Hydrogen (AEL)",{"$f":"_calc!$B$1024","v":"DZA"},{"$f":"_calc!$BO$990","v":"COST-FLOW"},{"$f":"_calc!$BW$1","v":"Heat"},{"$f":"_calc!$BW$1024","v":0}]
[{"$f":"_xlfn.TEXTJOIN(\",\",FALSE,output[[#This Row],[scenario]:[process_class]])","v":"PTX-BusinessOpportunityAnalyzer-1.0.9,DEU,Hydrogen (AEL),DZA,COST-FLOW,Electricity and H2 storage"},"PTX-BusinessOpportunityAnalyzer-1.0.9",{"$f":"sel_country_code","v":"DEU"},"Hydrogen (AEL)",{"$f":"_calc!$B$1024","v":"DZA"},{"$f":"_calc!$BO$990","v":"COST-FLOW"},{"$f":"_calc!$BX$1","v":"Electricity and H2 storage"},{"$f":"_calc!$BX$1024","v":0}]
[{"$f":"_xlfn.TEXTJOIN(\",\",FALSE,output[[#This Row],[scenario]:[process_class]])","v":"PTX-BusinessOpportunityAnalyzer-1.0.9,DEU,Hydrogen (AEL),EGY,COST-FLOW,Water"},{"$f":"output_scenario_name","v":"PTX-BusinessOpportunityAnalyzer-1.0.9"},{"$f":"sel_country_code","v":"DEU"},{"$f":"sel_chain","v":"Hydrogen (AEL)"},{"$f":"_calc!$B$1025","v":"EGY"},{"$f":"_calc!$BO$990","v":"COST-FLOW"},{"$f":"_calc!$BP$1","v":"Water"},{"$f":"_calc!$BP$1025","v":6.9794528212595588E-2}]
[{"$f":"_xlfn.TEXTJOIN(\",\",FALSE,output[[#This Row],[scenario]:[process_class]])","v":"PTX-BusinessOpportunityAnalyzer-1.0.9,DEU,Hydrogen (AEL),EGY,COST-FLOW,Electrolysis"},"PTX-BusinessOpportunityAnalyzer-1.0.9",{"$f":"sel_country_code","v":"DEU"},"Hydrogen (AEL)",{"$f":"_calc!$B$1025","v":"EGY"},{"$f":"_calc!$BO$990","v":"COST-FLOW"},{"$f":"_calc!$BQ$1","v":"Electrolysis"},{"$f":"_calc!$BQ$1025","v":0}]
[{"$f":"_xlfn.TEXTJOIN(\",\",FALSE,output[[#This Row],[scenario]:[process_class]])","v":"PTX-BusinessOpportunityAnalyzer-1.0.9,DEU,Hydrogen (AEL),EGY,COST-FLOW,Electricity generation"},"PTX-BusinessOpportunityAnalyzer-1.0.9",{"$f":"sel_country_code","v":"DEU"},"Hydrogen (AEL)",{"$f":"_calc!$B$1025","v":"EGY"},{"$f":"_calc!$BO$990","v":"COST-FLOW"},{"$f":"_calc!$BR$1","v":"Electricity generation"},{"$f":"_calc!$BR$1025","v":0}]
[{"$f":"_xlfn.TEXTJOIN(\",\",FALSE,output[[#This Row],[scenario]:[process_class]])","v":"PTX-BusinessOpportunityAnalyzer-1.0.9,DEU,Hydrogen (AEL),EGY,COST-FLOW,Transportation (Pipeline)"},"PTX-BusinessOpportunityAnalyzer-1.0.9",{"$f":"sel_country_code","v":"DEU"},"Hydrogen (AEL)",{"$f":"_calc!$B$1025","v":"EGY"},{"$f":"_calc!$BO$990","v":"COST-FLOW"},{"$f":"_calc!$BS$1","v":"Transportation (Pipeline)"},{"$f":"_calc!$BS$1025","v":1.5509895158354574}]
[{"$f":"_xlfn.TEXTJOIN(\",\",FALSE,output[[#This Row],[scenario]:[process_class]])","v":"PTX-BusinessOpportunityAnalyzer-1.0.9,DEU,Hydrogen (AEL),EGY,COST-FLOW,Transportation (Ship)"},"PTX-BusinessOpportunityAnalyzer-1.0.9",{"$f":"sel_country_code","v":"DEU"},"Hydrogen (AEL)",{"$f":"_calc!$B$1025","v":"EGY"},{"$f":"_calc!$BO$990","v":"COST-FLOW"},{"$f":"_calc!$BT$1","v":"Transportation (Ship)"},{"$f":"_calc!$BT$1025","v":0}]
[{"$f":"_xlfn.TEXTJOIN(\",\",FALSE,output[[#This Row],[scenario]:[process_class]])","v":"PTX-BusinessOpportunityAnalyzer-1.0.9,DEU,Hydrogen (AEL),EGY,COST-FLOW,Carbon"},"PTX-BusinessOpportunityAnalyzer-1.0.9",{"$f":"sel_country_code","v":"DEU"},"Hydrogen (AEL)",{"$f":"_calc!$B$1025","v":"EGY"},{"$f":"_calc!$BO$990","v":"COST-FLOW"},{"$f":"_calc!$BU$1","v":"Carbon"},{"$f":"_calc!$BU$1025","v":0}]
[{"$f":"_xlfn.TEXTJOIN(\",\",FALSE,output[[#This Row],[scenario]:[process_class]])","v":"PTX-BusinessOpportunityAnalyzer-1.0.9,DEU,Hydrogen (AEL),EGY,COST-FLOW,Derivate production"},"PTX-BusinessOpportunityAnalyzer-1.0.9",{"$f":"sel_country_code","v":"DEU"},"Hydrogen (AEL)",{"$f":"_calc!$B$1025","v":"EGY"},{"$f":"_calc!$BO$990","v":"COST-FLOW"},{"$f":"_calc!$BV$1","v":"Derivate production"},{"$f":"_calc!$BV$1025","v":0}]
[{"$f":"_xlfn.TEXTJOIN(\",\",FALSE,output[[#This Row],[scenario]:[process_class]])","v":"PTX-BusinessOpportunityAnalyzer-1.0.9,DEU,Hydrogen (AEL),EGY,COST-FLOW,Heat"},"PTX-BusinessOpportunityAnalyzer-1.0.9",{"$f":"sel_country_code","v":"DEU"},"Hydrogen (AEL)",{"$f":"_calc!$B$1025","v":"EGY"},{"$f":"_calc!$BO$990","v":"COST-FLOW"},{"$f":"_calc!$BW$1","v":"Heat"},{"$f":"_calc!$BW$1025","v":0}]
[{"$f":"_xlfn.TEXTJOIN(\",\",FALSE,output[[#This Row],[scenario]:[process_class]])","v":"PTX-BusinessOpportunityAnalyzer-1.0.9,DEU,Hydrogen (AEL),EGY,COST-FLOW,Electricity and H2 storage"},"PTX-BusinessOpportunityAnalyzer-1.0.9",{"$f":"sel_country_code","v":"DEU"},"Hydrogen (AEL)",{"$f":"_calc!$B$1025","v":"EGY"},{"$f":"_calc!$BO$990","v":"COST-FLOW"},{"$f":"_calc!$BX$1","v":"Electricity and H2 storage"},{"$f":"_calc!$BX$1025","v":0}]
[{"$f":"_xlfn.TEXTJOIN(\",\",FALSE,output[[#This Row],[scenario]:[process_class]])","v":"PTX-BusinessOpportunityAnalyzer-1.0.9,DEU,Hydrogen (AEL),ESP,COST-FLOW,Water"},"PTX-BusinessOpportunityAnalyzer-1.0.9",{"$f":"sel_country_code","v":"DEU"},"Hydrogen (AEL)",{"$f":"_calc!$B$1026","v":"ESP"},{"$f":"_calc!$BO$990","v":"COST-FLOW"},{"$f":"_calc!$BP$1","v":"Water"},{"$f":"_calc!$BP$1026","v":6.5567377654662987E-2}]
[{"$f":"_xlfn.TEXTJOIN(\",\",FALSE,output[[#This Row],[scenario]:[process_class]])","v":"PTX-BusinessOpportunityAnalyzer-1.0.9,DEU,Hydrogen (AEL),ESP,COST-FLOW,Electrolysis"},"PTX-BusinessOpportunityAnalyzer-1.0.9",{"$f":"sel_country_code","v":"DEU"},"Hydrogen (AEL)",{"$f":"_calc!$B$1026","v":"ESP"},{"$f":"_calc!$BO$990","v":"COST-FLOW"},{"$f":"_calc!$BQ$1","v":"Electrolysis"},{"$f":"_calc!$BQ$1026","v":0}]
[{"$f":"_xlfn.TEXTJOIN(\",\",FALSE,output[[#This Row],[scenario]:[process_class]])","v":"PTX-BusinessOpportunityAnalyzer-1.0.9,DEU,Hydrogen (AEL),ESP,COST-FLOW,Electricity generation"},"PTX-BusinessOpportunityAnalyzer-1.0.9",{"$f":"sel_country_code","v":"DEU"},"Hydrogen (AEL)",{"$f":"_calc!$B$1026","v":"ESP"},{"$f":"_calc!$BO$990","v":"COST-FLOW"},{"$f":"_calc!$BR$1","v":"Electricity generation"},{"$f":"_calc!$BR$1026","v":0}]
[{"$f":"_xlfn.TEXTJOIN(\",\",FALSE,output[[#This Row],[scenario]:[process_class]])","v":"PTX-BusinessOpportunityAnalyzer-1.0.9,DEU,Hydrogen (AEL),ESP,COST-FLOW,Transportation (Pipeline)"},"PTX-BusinessOpportunityAnalyzer-1.0.9",{"$f":"sel_country_code","v":"DEU"},"Hydrogen (AEL)",{"$f":"_calc!$B$1026","v":"ESP"},{"$f":"_calc!$BO$990","v":"COST-FLOW"},{"$f":"_calc!$BS$1","v":"Transportation (Pipeline)"},{"$f":"_calc!$BS$1026","v":1.4570528367702884}]
[{"$f":"_xlfn.TEXTJOIN(\",\",FALSE,output[[#This Row],[scenario]:[process_class]])","v":"PTX-BusinessOpportunityAnalyzer-1.0.9,DEU,Hydrogen (AEL),ESP,COST-FLOW,Transportation (Ship)"},"PTX-BusinessOpportunityAnalyzer-1.0.9",{"$f":"sel_country_code","v":"DEU"},"Hydrogen (AEL)",{"$f":"_calc!$B$1026","v":"ESP"},{"$f":"_calc!$BO$990","v":"COST-FLOW"},{"$f":"_calc!$BT$1","v":"Transportation (Ship)"},{"$f":"_calc!$BT$1026","v":0}]
[{"$f":"_xlfn.TEXTJOIN(\",\",FALSE,output[[#This Row],[scenario]:[process_class]])","v":"PTX-BusinessOpportunityAnalyzer-1.0.9,DEU,Hydrogen (AEL),ESP,COST-FLOW,Carbon"},"PTX-BusinessOpportunityAnalyzer-1.0.9",{"$f":"sel_country_code","v":"DEU"},"Hydrogen (AEL)",{"$f":"_calc!$B$1026","v":"ESP"},{"$f":"_calc!$BO$990","v":"COST-FLOW"},{"$f":"_calc!$BU$1","v":"Carbon"},{"$f":"_calc!$BU$1026","v":0}]
[{"$f":"_xlfn.TEXTJOIN(\",\",FALSE,output[[#This Row],[scenario]:[process_class]])","v":"PTX-BusinessOpportunityAnalyzer-1.0.9,DEU,Hydrogen (AEL),ESP,COST-FLOW,Derivate production"},"PTX-BusinessOpportunityAnalyzer-1.0.9",{"$f":"sel_country_code","v":"DEU"},"Hydrogen (AEL)",{"$f":"_calc!$B$1026","v":"ESP"},{"$f":"_calc!$BO$990","v":"COST-FLOW"},{"$f":"_calc!$BV$1","v":"Derivate production"},{"$f":"_calc!$BV$1026","v":0}]
[{"$f":"_xlfn.TEXTJOIN(\",\",FALSE,output[[#This Row],[scenario]:[process_class]])","v":"PTX-BusinessOpportunityAnalyzer-1.0.9,DEU,Hydrogen (AEL),ESP,COST-FLOW,Heat"},"PTX-BusinessOpportunityAnalyzer-1.0.9",{"$f":"sel_country_code","v":"DEU"},"Hydrogen (AEL)",{"$f":"_calc!$B$1026","v":"ESP"},{"$f":"_calc!$BO$990","v":"COST-FLOW"},{"$f":"_calc!$BW$1","v":"Heat"},{"$f":"_calc!$BW$1026","v":0}]
[{"$f":"_xlfn.TEXTJOIN(\",\",FALSE,output[[#This Row],[scenario]:[process_class]])","v":"PTX-BusinessOpportunityAnalyzer-1.0.9,DEU,Hydrogen (AEL),ESP,COST-FLOW,Electricity and H2 storage"},"PTX-BusinessOpportunityAnalyzer-1.0.9",{"$f":"sel_country_code","v":"DEU"},"Hydrogen (AEL)",{"$f":"_calc!$B$1026","v":"ESP"},{"$f":"_calc!$BO$990","v":"COST-FLOW"},{"$f":"_calc!$BX$1","v":"Electricity and H2 storage"},{"$f":"_calc!$BX$1026","v":0}]
[{"$f":"_xlfn.TEXTJOIN(\",\",FALSE,output[[#This Row],[scenario]:[process_class]])","v":"PTX-BusinessOpportunityAnalyzer-1.0.9,DEU,Hydrogen (AEL),IDN,COST-FLOW,Water"},"PTX-BusinessOpportunityAnalyzer-1.0.9",{"$f":"sel_country_code","v":"DEU"},"Hydrogen (AEL)",{"$f":"_calc!$B$1027","v":"IDN"},{"$f":"_calc!$BO$990","v":"COST-FLOW"},{"$f":"_calc!$BP$1","v":"Water"},{"$f":"_calc!$BP$1027","v":9.0543353807296695E-2}]
[{"$f":"_xlfn.TEXTJOIN(\",\",FALSE,output[[#This Row],[scenario]:[process_class]])","v":"PTX-BusinessOpportunityAnalyzer-1.0.9,DEU,Hydrogen (AEL),IDN,COST-FLOW,Electrolysis"},"PTX-BusinessOpportunityAnalyzer-1.0.9",{"$f":"sel_country_code","v":"DEU"},"Hydrogen (AEL)",{"$f":"_calc!$B$1027","v":"IDN"},{"$f":"_calc!$BO$990","v":"COST-FLOW"},{"$f":"_calc!$BQ$1","v":"Electrolysis"},{"$f":"_calc!$BQ$1027","v":0}]
[{"$f":"_xlfn.TEXTJOIN(\",\",FALSE,output[[#This Row],[scenario]:[process_class]])","v":"PTX-BusinessOpportunityAnalyzer-1.0.9,DEU,Hydrogen (AEL),IDN,COST-FLOW,Electricity generation"},"PTX-BusinessOpportunityAnalyzer-1.0.9",{"$f":"sel_country_code","v":"DEU"},"Hydrogen (AEL)",{"$f":"_calc!$B$1027","v":"IDN"},{"$f":"_calc!$BO$990","v":"COST-FLOW"},{"$f":"_calc!$BR$1","v":"Electricity generation"},{"$f":"_calc!$BR$1027","v":0}]
[{"$f":"_xlfn.TEXTJOIN(\",\",FALSE,output[[#This Row],[scenario]:[process_class]])","v":"PTX-BusinessOpportunityAnalyzer-1.0.9,DEU,Hydrogen (AEL),IDN,COST-FLOW,Transportation (Pipeline)"},"PTX-BusinessOpportunityAnalyzer-1.0.9",{"$f":"sel_country_code","v":"DEU"},"Hydrogen (AEL)",{"$f":"_calc!$B$1027","v":"IDN"},{"$f":"_calc!$BO$990","v":"COST-FLOW"},{"$f":"_calc!$BS$1","v":"Transportation (Pipeline)"},{"$f":"_calc!$BS$1027","v":0}]
[{"$f":"_xlfn.TEXTJOIN(\",\",FALSE,output[[#This Row],[scenario]:[process_class]])","v":"PTX-BusinessOpportunityAnalyzer-1.0.9,DEU,Hydrogen (AEL),IDN,COST-FLOW,Transportation (Ship)"},"PTX-BusinessOpportunityAnalyzer-1.0.9",{"$f":"sel_country_code","v":"DEU"},"Hydrogen (AEL)",{"$f":"_calc!$B$1027","v":"IDN"},{"$f":"_calc!$BO$990","v":"COST-FLOW"},{"$f":"_calc!$BT$1","v":"Transportation (Ship)"},{"$f":"_calc!$BT$1027","v":30.191181662986551}]
[{"$f":"_xlfn.TEXTJOIN(\",\",FALSE,output[[#This Row],[scenario]:[process_class]])","v":"PTX-BusinessOpportunityAnalyzer-1.0.9,DEU,Hydrogen (AEL),IDN,COST-FLOW,Carbon"},"PTX-BusinessOpportunityAnalyzer-1.0.9",{"$f":"sel_country_code","v":"DEU"},"Hydrogen (AEL)",{"$f":"_calc!$B$1027","v":"IDN"},{"$f":"_calc!$BO$990","v":"COST-FLOW"},{"$f":"_calc!$BU$1","v":"Carbon"},{"$f":"_calc!$BU$1027","v":0}]
[{"$f":"_xlfn.TEXTJOIN(\",\",FALSE,output[[#This Row],[scenario]:[process_class]])","v":"PTX-BusinessOpportunityAnalyzer-1.0.9,DEU,Hydrogen (AEL),IDN,COST-FLOW,Derivate production"},"PTX-BusinessOpportunityAnalyzer-1.0.9",{"$f":"sel_country_code","v":"DEU"},"Hydrogen (AEL)",{"$f":"_calc!$B$1027","v":"IDN"},{"$f":"_calc!$BO$990","v":"COST-FLOW"},{"$f":"_calc!$BV$1","v":"Derivate production"},{"$f":"_calc!$BV$1027","v":0}]
[{"$f":"_xlfn.TEXTJOIN(\",\",FALSE,output[[#This Row],[scenario]:[process_class]])","v":"PTX-BusinessOpportunityAnalyzer-1.0.9,DEU,Hydrogen (AEL),IDN,COST-FLOW,Heat"},"PTX-BusinessOpportunityAnalyzer-1.0.9",{"$f":"sel_country_code","v":"DEU"},"Hydrogen (AEL)",{"$f":"_calc!$B$1027","v":"IDN"},{"$f":"_calc!$BO$990","v":"COST-FLOW"},{"$f":"_calc!$BW$1","v":"Heat"},{"$f":"_calc!$BW$1027","v":0}]
[{"$f":"_xlfn.TEXTJOIN(\",\",FALSE,output[[#This Row],[scenario]:[process_class]])","v":"PTX-BusinessOpportunityAnalyzer-1.0.9,DEU,Hydrogen (AEL),IDN,COST-FLOW,Electricity and H2 storage"},"PTX-BusinessOpportunityAnalyzer-1.0.9",{"$f":"sel_country_code","v":"DEU"},"Hydrogen (AEL)",{"$f":"_calc!$B$1027","v":"IDN"},{"$f":"_calc!$BO$990","v":"COST-FLOW"},{"$f":"_calc!$BX$1","v":"Electricity and H2 storage"},{"$f":"_calc!$BX$1027","v":0}]
[{"$f":"_xlfn.TEXTJOIN(\",\",FALSE,output[[#This Row],[scenario]:[process_class]])","v":"PTX-BusinessOpportunityAnalyzer-1.0.9,DEU,Hydrogen (AEL),IND,COST-FLOW,Water"},"PTX-BusinessOpportunityAnalyzer-1.0.9",{"$f":"sel_country_code","v":"DEU"},"Hydrogen (AEL)",{"$f":"_calc!$B$1028","v":"IND"},{"$f":"_calc!$BO$990","v":"COST-FLOW"},{"$f":"_calc!$BP$1","v":"Water"},{"$f":"_calc!$BP$1028","v":8.6501350750523037E-2}]
[{"$f":"_xlfn.TEXTJOIN(\",\",FALSE,output[[#This Row],[scenario]:[process_class]])","v":"PTX-BusinessOpportunityAnalyzer-1.0.9,DEU,Hydrogen (AEL),IND,COST-FLOW,Electrolysis"},"PTX-BusinessOpportunityAnalyzer-1.0.9",{"$f":"sel_country_code","v":"DEU"},"Hydrogen (AEL)",{"$f":"_calc!$B$1028","v":"IND"},{"$f":"_calc!$BO$990","v":"COST-FLOW"},{"$f":"_calc!$BQ$1","v":"Electrolysis"},{"$f":"_calc!$BQ$1028","v":0}]
[{"$f":"_xlfn.TEXTJOIN(\",\",FALSE,output[[#This Row],[scenario]:[process_class]])","v":"PTX-BusinessOpportunityAnalyzer-1.0.9,DEU,Hydrogen (AEL),IND,COST-FLOW,Electricity generation"},"PTX-BusinessOpportunityAnalyzer-1.0.9",{"$f":"sel_country_code","v":"DEU"},"Hydrogen (AEL)",{"$f":"_calc!$B$1028","v":"IND"},{"$f":"_calc!$BO$990","v":"COST-FLOW"},{"$f":"_calc!$BR$1","v":"Electricity generation"},{"$f":"_calc!$BR$1028","v":0}]
[{"$f":"_xlfn.TEXTJOIN(\",\",FALSE,output[[#This Row],[scenario]:[process_class]])","v":"PTX-BusinessOpportunityAnalyzer-1.0.9,DEU,Hydrogen (AEL),IND,COST-FLOW,Transportation (Pipeline)"},"PTX-BusinessOpportunityAnalyzer-1.0.9",{"$f":"sel_country_code","v":"DEU"},"Hydrogen (AEL)",{"$f":"_calc!$B$1028","v":"IND"},{"$f":"_calc!$BO$990","v":"COST-FLOW"},{"$f":"_calc!$BS$1","v":"Transportation (Pipeline)"},{"$f":"_calc!$BS$1028","v":0}]
[{"$f":"_xlfn.TEXTJOIN(\",\",FALSE,output[[#This Row],[scenario]:[process_class]])","v":"PTX-BusinessOpportunityAnalyzer-1.0.9,DEU,Hydrogen (AEL),IND,COST-FLOW,Transportation (Ship)"},"PTX-BusinessOpportunityAnalyzer-1.0.9",{"$f":"sel_country_code","v":"DEU"},"Hydrogen (AEL)",{"$f":"_calc!$B$1028","v":"IND"},{"$f":"_calc!$BO$990","v":"COST-FLOW"},{"$f":"_calc!$BT$1","v":"Transportation (Ship)"},{"$f":"_calc!$BT$1028","v":28.843398049524176}]
[{"$f":"_xlfn.TEXTJOIN(\",\",FALSE,output[[#This Row],[scenario]:[process_class]])","v":"PTX-BusinessOpportunityAnalyzer-1.0.9,DEU,Hydrogen (AEL),IND,COST-FLOW,Carbon"},"PTX-BusinessOpportunityAnalyzer-1.0.9",{"$f":"sel_country_code","v":"DEU"},"Hydrogen (AEL)",{"$f":"_calc!$B$1028","v":"IND"},{"$f":"_calc!$BO$990","v":"COST-FLOW"},{"$f":"_calc!$BU$1","v":"Carbon"},{"$f":"_calc!$BU$1028","v":0}]
[{"$f":"_xlfn.TEXTJOIN(\",\",FALSE,output[[#This Row],[scenario]:[process_class]])","v":"PTX-BusinessOpportunityAnalyzer-1.0.9,DEU,Hydrogen (AEL),IND,COST-FLOW,Derivate production"},"PTX-BusinessOpportunityAnalyzer-1.0.9",{"$f":"sel_country_code","v":"DEU"},"Hydrogen (AEL)",{"$f":"_calc!$B$1028","v":"IND"},{"$f":"_calc!$BO$990","v":"COST-FLOW"},{"$f":"_calc!$BV$1","v":"Derivate production"},{"$f":"_calc!$BV$1028","v":0}]
[{"$f":"_xlfn.TEXTJOIN(\",\",FALSE,output[[#This Row],[scenario]:[process_class]])","v":"PTX-BusinessOpportunityAnalyzer-1.0.9,DEU,Hydrogen (AEL),IND,COST-FLOW,Heat"},"PTX-BusinessOpportunityAnalyzer-1.0.9",{"$f":"sel_country_code","v":"DEU"},"Hydrogen (AEL)",{"$f":"_calc!$B$1028","v":"IND"},{"$f":"_calc!$BO$990","v":"COST-FLOW"},{"$f":"_calc!$BW$1","v":"Heat"},{"$f":"_calc!$BW$1028","v":0}]
[{"$f":"_xlfn.TEXTJOIN(\",\",FALSE,output[[#This Row],[scenario]:[process_class]])","v":"PTX-BusinessOpportunityAnalyzer-1.0.9,DEU,Hydrogen (AEL),IND,COST-FLOW,Electricity and H2 storage"},"PTX-BusinessOpportunityAnalyzer-1.0.9",{"$f":"sel_country_code","v":"DEU"},"Hydrogen (AEL)",{"$f":"_calc!$B$1028","v":"IND"},{"$f":"_calc!$BO$990","v":"COST-FLOW"},{"$f":"_calc!$BX$1","v":"Electricity and H2 storage"},{"$f":"_calc!$BX$1028","v":0}]
[{"$f":"_xlfn.TEXTJOIN(\",\",FALSE,output[[#This Row],[scenario]:[process_class]])","v":"PTX-BusinessOpportunityAnalyzer-1.0.9,DEU,Hydrogen (AEL),JOR,COST-FLOW,Water"},"PTX-BusinessOpportunityAnalyzer-1.0.9",{"$f":"sel_country_code","v":"DEU"},"Hydrogen (AEL)",{"$f":"_calc!$B$1029","v":"JOR"},{"$f":"_calc!$BO$990","v":"COST-FLOW"},{"$f":"_calc!$BP$1","v":"Water"},{"$f":"_calc!$BP$1029","v":6.7917945729568899E-2}]
[{"$f":"_xlfn.TEXTJOIN(\",\",FALSE,output[[#This Row],[scenario]:[process_class]])","v":"PTX-BusinessOpportunityAnalyzer-1.0.9,DEU,Hydrogen (AEL),JOR,COST-FLOW,Electrolysis"},"PTX-BusinessOpportunityAnalyzer-1.0.9",{"$f":"sel_country_code","v":"DEU"},"Hydrogen (AEL)",{"$f":"_calc!$B$1029","v":"JOR"},{"$f":"_calc!$BO$990","v":"COST-FLOW"},{"$f":"_calc!$BQ$1","v":"Electrolysis"},{"$f":"_calc!$BQ$1029","v":0}]
[{"$f":"_xlfn.TEXTJOIN(\",\",FALSE,output[[#This Row],[scenario]:[process_class]])","v":"PTX-BusinessOpportunityAnalyzer-1.0.9,DEU,Hydrogen (AEL),JOR,COST-FLOW,Electricity generation"},"PTX-BusinessOpportunityAnalyzer-1.0.9",{"$f":"sel_country_code","v":"DEU"},"Hydrogen (AEL)",{"$f":"_calc!$B$1029","v":"JOR"},{"$f":"_calc!$BO$990","v":"COST-FLOW"},{"$f":"_calc!$BR$1","v":"Electricity generation"},{"$f":"_calc!$BR$1029","v":0}]
[{"$f":"_xlfn.TEXTJOIN(\",\",FALSE,output[[#This Row],[scenario]:[process_class]])","v":"PTX-BusinessOpportunityAnalyzer-1.0.9,DEU,Hydrogen (AEL),JOR,COST-FLOW,Transportation (Pipeline)"},"PTX-BusinessOpportunityAnalyzer-1.0.9",{"$f":"sel_country_code","v":"DEU"},"Hydrogen (AEL)",{"$f":"_calc!$B$1029","v":"JOR"},{"$f":"_calc!$BO$990","v":"COST-FLOW"},{"$f":"_calc!$BS$1","v":"Transportation (Pipeline)"},{"$f":"_calc!$BS$1029","v":1.5092876828793087}]
[{"$f":"_xlfn.TEXTJOIN(\",\",FALSE,output[[#This Row],[scenario]:[process_class]])","v":"PTX-BusinessOpportunityAnalyzer-1.0.9,DEU,Hydrogen (AEL),JOR,COST-FLOW,Transportation (Ship)"},"PTX-BusinessOpportunityAnalyzer-1.0.9",{"$f":"sel_country_code","v":"DEU"},"Hydrogen (AEL)",{"$f":"_calc!$B$1029","v":"JOR"},{"$f":"_calc!$BO$990","v":"COST-FLOW"},{"$f":"_calc!$BT$1","v":"Transportation (Ship)"},{"$f":"_calc!$BT$1029","v":0}]
[{"$f":"_xlfn.TEXTJOIN(\",\",FALSE,output[[#This Row],[scenario]:[process_class]])","v":"PTX-BusinessOpportunityAnalyzer-1.0.9,DEU,Hydrogen (AEL),JOR,COST-FLOW,Carbon"},"PTX-BusinessOpportunityAnalyzer-1.0.9",{"$f":"sel_country_code","v":"DEU"},"Hydrogen (AEL)",{"$f":"_calc!$B$1029","v":"JOR"},{"$f":"_calc!$BO$990","v":"COST-FLOW"},{"$f":"_calc!$BU$1","v":"Carbon"},{"$f":"_calc!$BU$1029","v":0}]
[{"$f":"_xlfn.TEXTJOIN(\",\",FALSE,output[[#This Row],[scenario]:[process_class]])","v":"PTX-BusinessOpportunityAnalyzer-1.0.9,DEU,Hydrogen (AEL),JOR,COST-FLOW,Derivate production"},"PTX-BusinessOpportunityAnalyzer-1.0.9",{"$f":"sel_country_code","v":"DEU"},"Hydrogen (AEL)",{"$f":"_calc!$B$1029","v":"JOR"},{"$f":"_calc!$BO$990","v":"COST-FLOW"},{"$f":"_calc!$BV$1","v":"Derivate production"},{"$f":"_calc!$BV$1029","v":0}]
[{"$f":"_xlfn.TEXTJOIN(\",\",FALSE,output[[#This Row],[scenario]:[process_class]])","v":"PTX-BusinessOpportunityAnalyzer-1.0.9,DEU,Hydrogen (AEL),JOR,COST-FLOW,Heat"},"PTX-BusinessOpportunityAnalyzer-1.0.9",{"$f":"sel_country_code","v":"DEU"},"Hydrogen (AEL)",{"$f":"_calc!$B$1029","v":"JOR"},{"$f":"_calc!$BO$990","v":"COST-FLOW"},{"$f":"_calc!$BW$1","v":"Heat"},{"$f":"_calc!$BW$1029","v":0}]
[{"$f":"_xlfn.TEXTJOIN(\",\",FALSE,output[[#This Row],[scenario]:[process_class]])","v":"PTX-BusinessOpportunityAnalyzer-1.0.9,DEU,Hydrogen (AEL),JOR,COST-FLOW,Electricity and H2 storage"},"PTX-BusinessOpportunityAnalyzer-1.0.9",{"$f":"sel_country_code","v":"DEU"},"Hydrogen (AEL)",{"$f":"_calc!$B$1029","v":"JOR"},{"$f":"_calc!$BO$990","v":"COST-FLOW"},{"$f":"_calc!$BX$1","v":"Electricity and H2 storage"},{"$f":"_calc!$BX$1029","v":0}]
[{"$f":"_xlfn.TEXTJOIN(\",\",FALSE,output[[#This Row],[scenario]:[process_class]])","v":"PTX-BusinessOpportunityAnalyzer-1.0.9,DEU,Hydrogen (AEL),KAZ,COST-FLOW,Water"},"PTX-BusinessOpportunityAnalyzer-1.0.9",{"$f":"sel_country_code","v":"DEU"},"Hydrogen (AEL)",{"$f":"_calc!$B$1030","v":"KAZ"},{"$f":"_calc!$BO$990","v":"COST-FLOW"},{"$f":"_calc!$BP$1","v":"Water"},{"$f":"_calc!$BP$1030","v":6.7917945729568899E-2}]
[{"$f":"_xlfn.TEXTJOIN(\",\",FALSE,output[[#This Row],[scenario]:[process_class]])","v":"PTX-BusinessOpportunityAnalyzer-1.0.9,DEU,Hydrogen (AEL),KAZ,COST-FLOW,Electrolysis"},"PTX-BusinessOpportunityAnalyzer-1.0.9",{"$f":"sel_country_code","v":"DEU"},"Hydrogen (AEL)",{"$f":"_calc!$B$1030","v":"KAZ"},{"$f":"_calc!$BO$990","v":"COST-FLOW"},{"$f":"_calc!$BQ$1","v":"Electrolysis"},{"$f":"_calc!$BQ$1030","v":0}]
[{"$f":"_xlfn.TEXTJOIN(\",\",FALSE,output[[#This Row],[scenario]:[process_class]])","v":"PTX-BusinessOpportunityAnalyzer-1.0.9,DEU,Hydrogen (AEL),KAZ,COST-FLOW,Electricity generation"},"PTX-BusinessOpportunityAnalyzer-1.0.9",{"$f":"sel_country_code","v":"DEU"},"Hydrogen (AEL)",{"$f":"_calc!$B$1030","v":"KAZ"},{"$f":"_calc!$BO$990","v":"COST-FLOW"},{"$f":"_calc!$BR$1","v":"Electricity generation"},{"$f":"_calc!$BR$1030","v":0}]
[{"$f":"_xlfn.TEXTJOIN(\",\",FALSE,output[[#This Row],[scenario]:[process_class]])","v":"PTX-BusinessOpportunityAnalyzer-1.0.9,DEU,Hydrogen (AEL),KAZ,COST-FLOW,Transportation (Pipeline)"},"PTX-BusinessOpportunityAnalyzer-1.0.9",{"$f":"sel_country_code","v":"DEU"},"Hydrogen (AEL)",{"$f":"_calc!$B$1030","v":"KAZ"},{"$f":"_calc!$BO$990","v":"COST-FLOW"},{"$f":"_calc!$BS$1","v":"Transportation (Pipeline)"},{"$f":"_calc!$BS$1030","v":1.5092876828793087}]
[{"$f":"_xlfn.TEXTJOIN(\",\",FALSE,output[[#This Row],[scenario]:[process_class]])","v":"PTX-BusinessOpportunityAnalyzer-1.0.9,DEU,Hydrogen (AEL),KAZ,COST-FLOW,Transportation (Ship)"},"PTX-BusinessOpportunityAnalyzer-1.0.9",{"$f":"sel_country_code","v":"DEU"},"Hydrogen (AEL)",{"$f":"_calc!$B$1030","v":"KAZ"},{"$f":"_calc!$BO$990","v":"COST-FLOW"},{"$f":"_calc!$BT$1","v":"Transportation (Ship)"},{"$f":"_calc!$BT$1030","v":0}]
[{"$f":"_xlfn.TEXTJOIN(\",\",FALSE,output[[#This Row],[scenario]:[process_class]])","v":"PTX-BusinessOpportunityAnalyzer-1.0.9,DEU,Hydrogen (AEL),KAZ,COST-FLOW,Carbon"},"PTX-BusinessOpportunityAnalyzer-1.0.9",{"$f":"sel_country_code","v":"DEU"},"Hydrogen (AEL)",{"$f":"_calc!$B$1030","v":"KAZ"},{"$f":"_calc!$BO$990","v":"COST-FLOW"},{"$f":"_calc!$BU$1","v":"Carbon"},{"$f":"_calc!$BU$1030","v":0}]
[{"$f":"_xlfn.TEXTJOIN(\",\",FALSE,output[[#This Row],[scenario]:[process_class]])","v":"PTX-BusinessOpportunityAnalyzer-1.0.9,DEU,Hydrogen (AEL),KAZ,COST-FLOW,Derivate production"},"PTX-BusinessOpportunityAnalyzer-1.0.9",{"$f":"sel_country_code","v":"DEU"},"Hydrogen (AEL)",{"$f":"_calc!$B$1030","v":"KAZ"},{"$f":"_calc!$BO$990","v":"COST-FLOW"},{"$f":"_calc!$BV$1","v":"Derivate production"},{"$f":"_calc!$BV$1030","v":0}]
[{"$f":"_xlfn.TEXTJOIN(\",\",FALSE,output[[#This Row],[scenario]:[process_class]])","v":"PTX-BusinessOpportunityAnalyzer-1.0.9,DEU,Hydrogen (AEL),KAZ,COST-FLOW,Heat"},"PTX-BusinessOpportunityAnalyzer-1.0.9",{"$f":"sel_country_code","v":"DEU"},"Hydrogen (AEL)",{"$f":"_calc!$B$1030","v":"KAZ"},{"$f":"_calc!$BO$990","v":"COST-FLOW"},{"$f":"_calc!$BW$1","v":"Heat"},{"$f":"_calc!$BW$1030","v":0}]
[{"$f":"_xlfn.TEXTJOIN(\",\",FALSE,output[[#This Row],[scenario]:[process_class]])","v":"PTX-BusinessOpportunityAnalyzer-1.0.9,DEU,Hydrogen (AEL),KAZ,COST-FLOW,Electricity and H2 storage"},"PTX-BusinessOpportunityAnalyzer-1.0.9",{"$f":"sel_country_code","v":"DEU"},"Hydrogen (AEL)",{"$f":"_calc!$B$1030","v":"KAZ"},{"$f":"_calc!$BO$990","v":"COST-FLOW"},{"$f":"_calc!$BX$1","v":"Electricity and H2 storage"},{"$f":"_calc!$BX$1030","v":0}]
[{"$f":"_xlfn.TEXTJOIN(\",\",FALSE,output[[#This Row],[scenario]:[process_class]])","v":"PTX-BusinessOpportunityAnalyzer-1.0.9,DEU,Hydrogen (AEL),KEN,COST-FLOW,Water"},"PTX-BusinessOpportunityAnalyzer-1.0.9",{"$f":"sel_country_code","v":"DEU"},"Hydrogen (AEL)",{"$f":"_calc!$B$1031","v":"KEN"},{"$f":"_calc!$BO$990","v":"COST-FLOW"},{"$f":"_calc!$BP$1","v":"Water"},{"$f":"_calc!$BP$1031","v":8.6616104780588399E-2}]
[{"$f":"_xlfn.TEXTJOIN(\",\",FALSE,output[[#This Row],[scenario]:[process_class]])","v":"PTX-BusinessOpportunityAnalyzer-1.0.9,DEU,Hydrogen (AEL),KEN,COST-FLOW,Electrolysis"},"PTX-BusinessOpportunityAnalyzer-1.0.9",{"$f":"sel_country_code","v":"DEU"},"Hydrogen (AEL)",{"$f":"_calc!$B$1031","v":"KEN"},{"$f":"_calc!$BO$990","v":"COST-FLOW"},{"$f":"_calc!$BQ$1","v":"Electrolysis"},{"$f":"_calc!$BQ$1031","v":0}]
[{"$f":"_xlfn.TEXTJOIN(\",\",FALSE,output[[#This Row],[scenario]:[process_class]])","v":"PTX-BusinessOpportunityAnalyzer-1.0.9,DEU,Hydrogen (AEL),KEN,COST-FLOW,Electricity generation"},"PTX-BusinessOpportunityAnalyzer-1.0.9",{"$f":"sel_country_code","v":"DEU"},"Hydrogen (AEL)",{"$f":"_calc!$B$1031","v":"KEN"},{"$f":"_calc!$BO$990","v":"COST-FLOW"},{"$f":"_calc!$BR$1","v":"Electricity generation"},{"$f":"_calc!$BR$1031","v":0}]
[{"$f":"_xlfn.TEXTJOIN(\",\",FALSE,output[[#This Row],[scenario]:[process_class]])","v":"PTX-BusinessOpportunityAnalyzer-1.0.9,DEU,Hydrogen (AEL),KEN,COST-FLOW,Transportation (Pipeline)"},"PTX-BusinessOpportunityAnalyzer-1.0.9",{"$f":"sel_country_code","v":"DEU"},"Hydrogen (AEL)",{"$f":"_calc!$B$1031","v":"KEN"},{"$f":"_calc!$BO$990","v":"COST-FLOW"},{"$f":"_calc!$BS$1","v":"Transportation (Pipeline)"},{"$f":"_calc!$BS$1031","v":0}]
[{"$f":"_xlfn.TEXTJOIN(\",\",FALSE,output[[#This Row],[scenario]:[process_class]])","v":"PTX-BusinessOpportunityAnalyzer-1.0.9,DEU,Hydrogen (AEL),KEN,COST-FLOW,Transportation (Ship)"},"PTX-BusinessOpportunityAnalyzer-1.0.9",{"$f":"sel_country_code","v":"DEU"},"Hydrogen (AEL)",{"$f":"_calc!$B$1031","v":"KEN"},{"$f":"_calc!$BO$990","v":"COST-FLOW"},{"$f":"_calc!$BT$1","v":"Transportation (Ship)"},{"$f":"_calc!$BT$1031","v":28.881662147578648}]
[{"$f":"_xlfn.TEXTJOIN(\",\",FALSE,output[[#This Row],[scenario]:[process_class]])","v":"PTX-BusinessOpportunityAnalyzer-1.0.9,DEU,Hydrogen (AEL),KEN,COST-FLOW,Carbon"},"PTX-BusinessOpportunityAnalyzer-1.0.9",{"$f":"sel_country_code","v":"DEU"},"Hydrogen (AEL)",{"$f":"_calc!$B$1031","v":"KEN"},{"$f":"_calc!$BO$990","v":"COST-FLOW"},{"$f":"_calc!$BU$1","v":"Carbon"},{"$f":"_calc!$BU$1031","v":0}]
[{"$f":"_xlfn.TEXTJOIN(\",\",FALSE,output[[#This Row],[scenario]:[process_class]])","v":"PTX-BusinessOpportunityAnalyzer-1.0.9,DEU,Hydrogen (AEL),KEN,COST-FLOW,Derivate production"},"PTX-BusinessOpportunityAnalyzer-1.0.9",{"$f":"sel_country_code","v":"DEU"},"Hydrogen (AEL)",{"$f":"_calc!$B$1031","v":"KEN"},{"$f":"_calc!$BO$990","v":"COST-FLOW"},{"$f":"_calc!$BV$1","v":"Derivate production"},{"$f":"_calc!$BV$1031","v":0}]
[{"$f":"_xlfn.TEXTJOIN(\",\",FALSE,output[[#This Row],[scenario]:[process_class]])","v":"PTX-BusinessOpportunityAnalyzer-1.0.9,DEU,Hydrogen (AEL),KEN,COST-FLOW,Heat"},"PTX-BusinessOpportunityAnalyzer-1.0.9",{"$f":"sel_country_code","v":"DEU"},"Hydrogen (AEL)",{"$f":"_calc!$B$1031","v":"KEN"},{"$f":"_calc!$BO$990","v":"COST-FLOW"},{"$f":"_calc!$BW$1","v":"Heat"},{"$f":"_calc!$BW$1031","v":0}]
[{"$f":"_xlfn.TEXTJOIN(\",\",FALSE,output[[#This Row],[scenario]:[process_class]])","v":"PTX-BusinessOpportunityAnalyzer-1.0.9,DEU,Hydrogen (AEL),KEN,COST-FLOW,Electricity and H2 storage"},"PTX-BusinessOpportunityAnalyzer-1.0.9",{"$f":"sel_country_code","v":"DEU"},"Hydrogen (AEL)",{"$f":"_calc!$B$1031","v":"KEN"},{"$f":"_calc!$BO$990","v":"COST-FLOW"},{"$f":"_calc!$BX$1","v":"Electricity and H2 storage"},{"$f":"_calc!$BX$1031","v":0}]
[{"$f":"_xlfn.TEXTJOIN(\",\",FALSE,output[[#This Row],[scenario]:[process_class]])","v":"PTX-BusinessOpportunityAnalyzer-1.0.9,DEU,Hydrogen (AEL),MAR,COST-FLOW,Water"},"PTX-BusinessOpportunityAnalyzer-1.0.9",{"$f":"sel_country_code","v":"DEU"},"Hydrogen (AEL)",{"$f":"_calc!$B$1032","v":"MAR"},{"$f":"_calc!$BO$990","v":"COST-FLOW"},{"$f":"_calc!$BP$1","v":"Water"},{"$f":"_calc!$BP$1032","v":7.8280375503673241E-2}]
[{"$f":"_xlfn.TEXTJOIN(\",\",FALSE,output[[#This Row],[scenario]:[process_class]])","v":"PTX-BusinessOpportunityAnalyzer-1.0.9,DEU,Hydrogen (AEL),MAR,COST-FLOW,Electrolysis"},{"$f":"output_scenario_name","v":"PTX-BusinessOpportunityAnalyzer-1.0.9"},{"$f":"sel_country_code","v":"DEU"},{"$f":"sel_chain","v":"Hydrogen (AEL)"},{"$f":"_calc!$B$1032","v":"MAR"},{"$f":"_calc!$BO$990","v":"COST-FLOW"},{"$f":"_calc!$BQ$1","v":"Electrolysis"},{"$f":"_calc!$BQ$1032","v":0}]
[{"$f":"_xlfn.TEXTJOIN(\",\",FALSE,output[[#This Row],[scenario]:[process_class]])","v":"PTX-BusinessOpportunityAnalyzer-1.0.9,DEU,Hydrogen (AEL),MAR,COST-FLOW,Electricity generation"},"PTX-BusinessOpportunityAnalyzer-1.0.9",{"$f":"sel_country_code","v":"DEU"},"Hydrogen (AEL)",{"$f":"_calc!$B$1032","v":"MAR"},{"$f":"_calc!$BO$990","v":"COST-FLOW"},{"$f":"_calc!$BR$1","v":"Electricity generation"},{"$f":"_calc!$BR$1032","v":0}]
[{"$f":"_xlfn.TEXTJOIN(\",\",FALSE,output[[#This Row],[scenario]:[process_class]])","v":"PTX-BusinessOpportunityAnalyzer-1.0.9,DEU,Hydrogen (AEL),MAR,COST-FLOW,Transportation (Pipeline)"},"PTX-BusinessOpportunityAnalyzer-1.0.9",{"$f":"sel_country_code","v":"DEU"},"Hydrogen (AEL)",{"$f":"_calc!$B$1032","v":"MAR"},{"$f":"_calc!$BO$990","v":"COST-FLOW"},{"$f":"_calc!$BS$1","v":"Transportation (Pipeline)"},{"$f":"_calc!$BS$1032","v":0}]
[{"$f":"_xlfn.TEXTJOIN(\",\",FALSE,output[[#This Row],[scenario]:[process_class]])","v":"PTX-BusinessOpportunityAnalyzer-1.0.9,DEU,Hydrogen (AEL),MAR,COST-FLOW,Transportation (Ship)"},"PTX-BusinessOpportunityAnalyzer-1.0.9",{"$f":"sel_country_code","v":"DEU"},"Hydrogen (AEL)",{"$f":"_calc!$B$1032","v":"MAR"},{"$f":"_calc!$BO$990","v":"COST-FLOW"},{"$f":"_calc!$BT$1","v":"Transportation (Ship)"},{"$f":"_calc!$BT$1032","v":26.102159220964726}]
[{"$f":"_xlfn.TEXTJOIN(\",\",FALSE,output[[#This Row],[scenario]:[process_class]])","v":"PTX-BusinessOpportunityAnalyzer-1.0.9,DEU,Hydrogen (AEL),MAR,COST-FLOW,Carbon"},"PTX-BusinessOpportunityAnalyzer-1.0.9",{"$f":"sel_country_code","v":"DEU"},"Hydrogen (AEL)",{"$f":"_calc!$B$1032","v":"MAR"},{"$f":"_calc!$BO$990","v":"COST-FLOW"},{"$f":"_calc!$BU$1","v":"Carbon"},{"$f":"_calc!$BU$1032","v":0}]
[{"$f":"_xlfn.TEXTJOIN(\",\",FALSE,output[[#This Row],[scenario]:[process_class]])","v":"PTX-BusinessOpportunityAnalyzer-1.0.9,DEU,Hydrogen (AEL),MAR,COST-FLOW,Derivate production"},"PTX-BusinessOpportunityAnalyzer-1.0.9",{"$f":"sel_country_code","v":"DEU"},"Hydrogen (AEL)",{"$f":"_calc!$B$1032","v":"MAR"},{"$f":"_calc!$BO$990","v":"COST-FLOW"},{"$f":"_calc!$BV$1","v":"Derivate production"},{"$f":"_calc!$BV$1032","v":0}]
[{"$f":"_xlfn.TEXTJOIN(\",\",FALSE,output[[#This Row],[scenario]:[process_class]])","v":"PTX-BusinessOpportunityAnalyzer-1.0.9,DEU,Hydrogen (AEL),MAR,COST-FLOW,Heat"},"PTX-BusinessOpportunityAnalyzer-1.0.9",{"$f":"sel_country_code","v":"DEU"},"Hydrogen (AEL)",{"$f":"_calc!$B$1032","v":"MAR"},{"$f":"_calc!$BO$990","v":"COST-FLOW"},{"$f":"_calc!$BW$1","v":"Heat"},{"$f":"_calc!$BW$1032","v":0}]
[{"$f":"_xlfn.TEXTJOIN(\",\",FALSE,output[[#This Row],[scenario]:[process_class]])","v":"PTX-BusinessOpportunityAnalyzer-1.0.9,DEU,Hydrogen (AEL),MAR,COST-FLOW,Electricity and H2 storage"},"PTX-BusinessOpportunityAnalyzer-1.0.9",{"$f":"sel_country_code","v":"DEU"},"Hydrogen (AEL)",{"$f":"_calc!$B$1032","v":"MAR"},{"$f":"_calc!$BO$990","v":"COST-FLOW"},{"$f":"_calc!$BX$1","v":"Electricity and H2 storage"},{"$f":"_calc!$BX$1032","v":0}]
[{"$f":"_xlfn.TEXTJOIN(\",\",FALSE,output[[#This Row],[scenario]:[process_class]])","v":"PTX-BusinessOpportunityAnalyzer-1.0.9,DEU,Hydrogen (AEL),MAR-BEN,COST-FLOW,Water"},"PTX-BusinessOpportunityAnalyzer-1.0.9",{"$f":"sel_country_code","v":"DEU"},"Hydrogen (AEL)",{"$f":"_calc!$B$1033","v":"MAR-BEN"},{"$f":"_calc!$BO$990","v":"COST-FLOW"},{"$f":"_calc!$BP$1","v":"Water"},{"$f":"_calc!$BP$1033","v":7.8280375503673241E-2}]
[{"$f":"_xlfn.TEXTJOIN(\",\",FALSE,output[[#This Row],[scenario]:[process_class]])","v":"PTX-BusinessOpportunityAnalyzer-1.0.9,DEU,Hydrogen (AEL),MAR-BEN,COST-FLOW,Electrolysis"},"PTX-BusinessOpportunityAnalyzer-1.0.9",{"$f":"sel_country_code","v":"DEU"},"Hydrogen (AEL)",{"$f":"_calc!$B$1033","v":"MAR-BEN"},{"$f":"_calc!$BO$990","v":"COST-FLOW"},{"$f":"_calc!$BQ$1","v":"Electrolysis"},{"$f":"_calc!$BQ$1033","v":0}]
[{"$f":"_xlfn.TEXTJOIN(\",\",FALSE,output[[#This Row],[scenario]:[process_class]])","v":"PTX-BusinessOpportunityAnalyzer-1.0.9,DEU,Hydrogen (AEL),MAR-BEN,COST-FLOW,Electricity generation"},"PTX-BusinessOpportunityAnalyzer-1.0.9",{"$f":"sel_country_code","v":"DEU"},"Hydrogen (AEL)",{"$f":"_calc!$B$1033","v":"MAR-BEN"},{"$f":"_calc!$BO$990","v":"COST-FLOW"},{"$f":"_calc!$BR$1","v":"Electricity generation"},{"$f":"_calc!$BR$1033","v":0}]
[{"$f":"_xlfn.TEXTJOIN(\",\",FALSE,output[[#This Row],[scenario]:[process_class]])","v":"PTX-BusinessOpportunityAnalyzer-1.0.9,DEU,Hydrogen (AEL),MAR-BEN,COST-FLOW,Transportation (Pipeline)"},"PTX-BusinessOpportunityAnalyzer-1.0.9",{"$f":"sel_country_code","v":"DEU"},"Hydrogen (AEL)",{"$f":"_calc!$B$1033","v":"MAR-BEN"},{"$f":"_calc!$BO$990","v":"COST-FLOW"},{"$f":"_calc!$BS$1","v":"Transportation (Pipeline)"},{"$f":"_calc!$BS$1033","v":0}]
[{"$f":"_xlfn.TEXTJOIN(\",\",FALSE,output[[#This Row],[scenario]:[process_class]])","v":"PTX-BusinessOpportunityAnalyzer-1.0.9,DEU,Hydrogen (AEL),MAR-BEN,COST-FLOW,Transportation (Ship)"},"PTX-BusinessOpportunityAnalyzer-1.0.9",{"$f":"sel_country_code","v":"DEU"},"Hydrogen (AEL)",{"$f":"_calc!$B$1033","v":"MAR-BEN"},{"$f":"_calc!$BO$990","v":"COST-FLOW"},{"$f":"_calc!$BT$1","v":"Transportation (Ship)"},{"$f":"_calc!$BT$1033","v":26.102159220964726}]
[{"$f":"_xlfn.TEXTJOIN(\",\",FALSE,output[[#This Row],[scenario]:[process_class]])","v":"PTX-BusinessOpportunityAnalyzer-1.0.9,DEU,Hydrogen (AEL),MAR-BEN,COST-FLOW,Carbon"},"PTX-BusinessOpportunityAnalyzer-1.0.9",{"$f":"sel_country_code","v":"DEU"},"Hydrogen (AEL)",{"$f":"_calc!$B$1033","v":"MAR-BEN"},{"$f":"_calc!$BO$990","v":"COST-FLOW"},{"$f":"_calc!$BU$1","v":"Carbon"},{"$f":"_calc!$BU$1033","v":0}]
[{"$f":"_xlfn.TEXTJOIN(\",\",FALSE,output[[#This Row],[scenario]:[process_class]])","v":"PTX-BusinessOpportunityAnalyzer-1.0.9,DEU,Hydrogen (AEL),MAR-BEN,COST-FLOW,Derivate production"},"PTX-BusinessOpportunityAnalyzer-1.0.9",{"$f":"sel_country_code","v":"DEU"},"Hydrogen (AEL)",{"$f":"_calc!$B$1033","v":"MAR-BEN"},{"$f":"_calc!$BO$990","v":"COST-FLOW"},{"$f":"_calc!$BV$1","v":"Derivate production"},{"$f":"_calc!$BV$1033","v":0}]
[{"$f":"_xlfn.TEXTJOIN(\",\",FALSE,output[[#This Row],[scenario]:[process_class]])","v":"PTX-BusinessOpportunityAnalyzer-1.0.9,DEU,Hydrogen (AEL),MAR-BEN,COST-FLOW,Heat"},"PTX-BusinessOpportunityAnalyzer-1.0.9",{"$f":"sel_country_code","v":"DEU"},"Hydrogen (AEL)",{"$f":"_calc!$B$1033","v":"MAR-BEN"},{"$f":"_calc!$BO$990","v":"COST-FLOW"},{"$f":"_calc!$BW$1","v":"Heat"},{"$f":"_calc!$BW$1033","v":0}]
[{"$f":"_xlfn.TEXTJOIN(\",\",FALSE,output[[#This Row],[scenario]:[process_class]])","v":"PTX-BusinessOpportunityAnalyzer-1.0.9,DEU,Hydrogen (AEL),MAR-BEN,COST-FLOW,Electricity and H2 storage"},"PTX-BusinessOpportunityAnalyzer-1.0.9",{"$f":"sel_country_code","v":"DEU"},"Hydrogen (AEL)",{"$f":"_calc!$B$1033","v":"MAR-BEN"},{"$f":"_calc!$BO$990","v":"COST-FLOW"},{"$f":"_calc!$BX$1","v":"Electricity and H2 storage"},{"$f":"_calc!$BX$1033","v":0}]
[{"$f":"_xlfn.TEXTJOIN(\",\",FALSE,output[[#This Row],[scenario]:[process_class]])","v":"PTX-BusinessOpportunityAnalyzer-1.0.9,DEU,Hydrogen (AEL),MAR-CAS,COST-FLOW,Water"},"PTX-BusinessOpportunityAnalyzer-1.0.9",{"$f":"sel_country_code","v":"DEU"},"Hydrogen (AEL)",{"$f":"_calc!$B$1034","v":"MAR-CAS"},{"$f":"_calc!$BO$990","v":"COST-FLOW"},{"$f":"_calc!$BP$1","v":"Water"},{"$f":"_calc!$BP$1034","v":7.8280375503673241E-2}]
[{"$f":"_xlfn.TEXTJOIN(\",\",FALSE,output[[#This Row],[scenario]:[process_class]])","v":"PTX-BusinessOpportunityAnalyzer-1.0.9,DEU,Hydrogen (AEL),MAR-CAS,COST-FLOW,Electrolysis"},"PTX-BusinessOpportunityAnalyzer-1.0.9",{"$f":"sel_country_code","v":"DEU"},"Hydrogen (AEL)",{"$f":"_calc!$B$1034","v":"MAR-CAS"},{"$f":"_calc!$BO$990","v":"COST-FLOW"},{"$f":"_calc!$BQ$1","v":"Electrolysis"},{"$f":"_calc!$BQ$1034","v":0}]
[{"$f":"_xlfn.TEXTJOIN(\",\",FALSE,output[[#This Row],[scenario]:[process_class]])","v":"PTX-BusinessOpportunityAnalyzer-1.0.9,DEU,Hydrogen (AEL),MAR-CAS,COST-FLOW,Electricity generation"},"PTX-BusinessOpportunityAnalyzer-1.0.9",{"$f":"sel_country_code","v":"DEU"},"Hydrogen (AEL)",{"$f":"_calc!$B$1034","v":"MAR-CAS"},{"$f":"_calc!$BO$990","v":"COST-FLOW"},{"$f":"_calc!$BR$1","v":"Electricity generation"},{"$f":"_calc!$BR$1034","v":0}]
[{"$f":"_xlfn.TEXTJOIN(\",\",FALSE,output[[#This Row],[scenario]:[process_class]])","v":"PTX-BusinessOpportunityAnalyzer-1.0.9,DEU,Hydrogen (AEL),MAR-CAS,COST-FLOW,Transportation (Pipeline)"},"PTX-BusinessOpportunityAnalyzer-1.0.9",{"$f":"sel_country_code","v":"DEU"},"Hydrogen (AEL)",{"$f":"_calc!$B$1034","v":"MAR-CAS"},{"$f":"_calc!$BO$990","v":"COST-FLOW"},{"$f":"_calc!$BS$1","v":"Transportation (Pipeline)"},{"$f":"_calc!$BS$1034","v":0}]
[{"$f":"_xlfn.TEXTJOIN(\",\",FALSE,output[[#This Row],[scenario]:[process_class]])","v":"PTX-BusinessOpportunityAnalyzer-1.0.9,DEU,Hydrogen (AEL),MAR-CAS,COST-FLOW,Transportation (Ship)"},"PTX-BusinessOpportunityAnalyzer-1.0.9",{"$f":"sel_country_code","v":"DEU"},"Hydrogen (AEL)",{"$f":"_calc!$B$1034","v":"MAR-CAS"},{"$f":"_calc!$BO$990","v":"COST-FLOW"},{"$f":"_calc!$BT$1","v":"Transportation (Ship)"},{"$f":"_calc!$BT$1034","v":26.102159220964726}]
[{"$f":"_xlfn.TEXTJOIN(\",\",FALSE,output[[#This Row],[scenario]:[process_class]])","v":"PTX-BusinessOpportunityAnalyzer-1.0.9,DEU,Hydrogen (AEL),MAR-CAS,COST-FLOW,Carbon"},"PTX-BusinessOpportunityAnalyzer-1.0.9",{"$f":"sel_country_code","v":"DEU"},"Hydrogen (AEL)",{"$f":"_calc!$B$1034","v":"MAR-CAS"},{"$f":"_calc!$BO$990","v":"COST-FLOW"},{"$f":"_calc!$BU$1","v":"Carbon"},{"$f":"_calc!$BU$1034","v":0}]
[{"$f":"_xlfn.TEXTJOIN(\",\",FALSE,output[[#This Row],[scenario]:[process_class]])","v":"PTX-BusinessOpportunityAnalyzer-1.0.9,DEU,Hydrogen (AEL),MAR-CAS,COST-FLOW,Derivate production"},"PTX-BusinessOpportunityAnalyzer-1.0.9",{"$f":"sel_country_code","v":"DEU"},"Hydrogen (AEL)",{"$f":"_calc!$B$1034","v":"MAR-CAS"},{"$f":"_calc!$BO$990","v":"COST-FLOW"},{"$f":"_calc!$BV$1","v":"Derivate production"},{"$f":"_calc!$BV$1034","v":0}]
[{"$f":"_xlfn.TEXTJOIN(\",\",FALSE,output[[#This Row],[scenario]:[process_class]])","v":"PTX-BusinessOpportunityAnalyzer-1.0.9,DEU,Hydrogen (AEL),MAR-CAS,COST-FLOW,Heat"},"PTX-BusinessOpportunityAnalyzer-1.0.9",{"$f":"sel_country_code","v":"DEU"},"Hydrogen (AEL)",{"$f":"_calc!$B$1034","v":"MAR-CAS"},{"$f":"_calc!$BO$990","v":"COST-FLOW"},{"$f":"_calc!$BW$1","v":"Heat"},{"$f":"_calc!$BW$1034","v":0}]
[{"$f":"_xlfn.TEXTJOIN(\",\",FALSE,output[[#This Row],[scenario]:[process_class]])","v":"PTX-BusinessOpportunityAnalyzer-1.0.9,DEU,Hydrogen (AEL),MAR-CAS,COST-FLOW,Electricity and H2 storage"},"PTX-BusinessOpportunityAnalyzer-1.0.9",{"$f":"sel_country_code","v":"DEU"},"Hydrogen (AEL)",{"$f":"_calc!$B$1034","v":"MAR-CAS"},{"$f":"_calc!$BO$990","v":"COST-FLOW"},{"$f":"_calc!$BX$1","v":"Electricity and H2 storage"},{"$f":"_calc!$BX$1034","v":0}]
[{"$f":"_xlfn.TEXTJOIN(\",\",FALSE,output[[#This Row],[scenario]:[process_class]])","v":"PTX-BusinessOpportunityAnalyzer-1.0.9,DEU,Hydrogen (AEL),MAR-DAK,COST-FLOW,Water"},"PTX-BusinessOpportunityAnalyzer-1.0.9",{"$f":"sel_country_code","v":"DEU"},"Hydrogen (AEL)",{"$f":"_calc!$B$1035","v":"MAR-DAK"},{"$f":"_calc!$BO$990","v":"COST-FLOW"},{"$f":"_calc!$BP$1","v":"Water"},{"$f":"_calc!$BP$1035","v":7.8280375503673241E-2}]
[{"$f":"_xlfn.TEXTJOIN(\",\",FALSE,output[[#This Row],[scenario]:[process_class]])","v":"PTX-BusinessOpportunityAnalyzer-1.0.9,DEU,Hydrogen (AEL),MAR-DAK,COST-FLOW,Electrolysis"},"PTX-BusinessOpportunityAnalyzer-1.0.9",{"$f":"sel_country_code","v":"DEU"},"Hydrogen (AEL)",{"$f":"_calc!$B$1035","v":"MAR-DAK"},{"$f":"_calc!$BO$990","v":"COST-FLOW"},{"$f":"_calc!$BQ$1","v":"Electrolysis"},{"$f":"_calc!$BQ$1035","v":0}]
[{"$f":"_xlfn.TEXTJOIN(\",\",FALSE,output[[#This Row],[scenario]:[process_class]])","v":"PTX-BusinessOpportunityAnalyzer-1.0.9,DEU,Hydrogen (AEL),MAR-DAK,COST-FLOW,Electricity generation"},"PTX-BusinessOpportunityAnalyzer-1.0.9",{"$f":"sel_country_code","v":"DEU"},"Hydrogen (AEL)",{"$f":"_calc!$B$1035","v":"MAR-DAK"},{"$f":"_calc!$BO$990","v":"COST-FLOW"},{"$f":"_calc!$BR$1","v":"Electricity generation"},{"$f":"_calc!$BR$1035","v":0}]
[{"$f":"_xlfn.TEXTJOIN(\",\",FALSE,output[[#This Row],[scenario]:[process_class]])","v":"PTX-BusinessOpportunityAnalyzer-1.0.9,DEU,Hydrogen (AEL),MAR-DAK,COST-FLOW,Transportation (Pipeline)"},"PTX-BusinessOpportunityAnalyzer-1.0.9",{"$f":"sel_country_code","v":"DEU"},"Hydrogen (AEL)",{"$f":"_calc!$B$1035","v":"MAR-DAK"},{"$f":"_calc!$BO$990","v":"COST-FLOW"},{"$f":"_calc!$BS$1","v":"Transportation (Pipeline)"},{"$f":"_calc!$BS$1035","v":0}]
[{"$f":"_xlfn.TEXTJOIN(\",\",FALSE,output[[#This Row],[scenario]:[process_class]])","v":"PTX-BusinessOpportunityAnalyzer-1.0.9,DEU,Hydrogen (AEL),MAR-DAK,COST-FLOW,Transportation (Ship)"},"PTX-BusinessOpportunityAnalyzer-1.0.9",{"$f":"sel_country_code","v":"DEU"},"Hydrogen (AEL)",{"$f":"_calc!$B$1035","v":"MAR-DAK"},{"$f":"_calc!$BO$990","v":"COST-FLOW"},{"$f":"_calc!$BT$1","v":"Transportation (Ship)"},{"$f":"_calc!$BT$1035","v":26.102159220964726}]
[{"$f":"_xlfn.TEXTJOIN(\",\",FALSE,output[[#This Row],[scenario]:[process_class]])","v":"PTX-BusinessOpportunityAnalyzer-1.0.9,DEU,Hydrogen (AEL),MAR-DAK,COST-FLOW,Carbon"},"PTX-BusinessOpportunityAnalyzer-1.0.9",{"$f":"sel_country_code","v":"DEU"},"Hydrogen (AEL)",{"$f":"_calc!$B$1035","v":"MAR-DAK"},{"$f":"_calc!$BO$990","v":"COST-FLOW"},{"$f":"_calc!$BU$1","v":"Carbon"},{"$f":"_calc!$BU$1035","v":0}]
[{"$f":"_xlfn.TEXTJOIN(\",\",FALSE,output[[#This Row],[scenario]:[process_class]])","v":"PTX-BusinessOpportunityAnalyzer-1.0.9,DEU,Hydrogen (AEL),MAR-DAK,COST-FLOW,Derivate production"},"PTX-BusinessOpportunityAnalyzer-1.0.9",{"$f":"sel_country_code","v":"DEU"},"Hydrogen (AEL)",{"$f":"_calc!$B$1035","v":"MAR-DAK"},{"$f":"_calc!$BO$990","v":"COST-FLOW"},{"$f":"_calc!$BV$1","v":"Derivate production"},{"$f":"_calc!$BV$1035","v":0}]
[{"$f":"_xlfn.TEXTJOIN(\",\",FALSE,output[[#This Row],[scenario]:[process_class]])","v":"PTX-BusinessOpportunityAnalyzer-1.0.9,DEU,Hydrogen (AEL),MAR-DAK,COST-FLOW,Heat"},"PTX-BusinessOpportunityAnalyzer-1.0.9",{"$f":"sel_country_code","v":"DEU"},"Hydrogen (AEL)",{"$f":"_calc!$B$1035","v":"MAR-DAK"},{"$f":"_calc!$BO$990","v":"COST-FLOW"},{"$f":"_calc!$BW$1","v":"Heat"},{"$f":"_calc!$BW$1035","v":0}]
[{"$f":"_xlfn.TEXTJOIN(\",\",FALSE,output[[#This Row],[scenario]:[process_class]])","v":"PTX-BusinessOpportunityAnalyzer-1.0.9,DEU,Hydrogen (AEL),MAR-DAK,COST-FLOW,Electricity and H2 storage"},"PTX-BusinessOpportunityAnalyzer-1.0.9",{"$f":"sel_country_code","v":"DEU"},"Hydrogen (AEL)",{"$f":"_calc!$B$1035","v":"MAR-DAK"},{"$f":"_calc!$BO$990","v":"COST-FLOW"},{"$f":"_calc!$BX$1","v":"Electricity and H2 storage"},{"$f":"_calc!$BX$1035","v":0}]
[{"$f":"_xlfn.TEXTJOIN(\",\",FALSE,output[[#This Row],[scenario]:[process_class]])","v":"PTX-BusinessOpportunityAnalyzer-1.0.9,DEU,Hydrogen (AEL),MAR-DRA,COST-FLOW,Water"},"PTX-BusinessOpportunityAnalyzer-1.0.9",{"$f":"sel_country_code","v":"DEU"},"Hydrogen (AEL)",{"$f":"_calc!$B$1036","v":"MAR-DRA"},{"$f":"_calc!$BO$990","v":"COST-FLOW"},{"$f":"_calc!$BP$1","v":"Water"},{"$f":"_calc!$BP$1036","v":7.8280375503673241E-2}]
[{"$f":"_xlfn.TEXTJOIN(\",\",FALSE,output[[#This Row],[scenario]:[process_class]])","v":"PTX-BusinessOpportunityAnalyzer-1.0.9,DEU,Hydrogen (AEL),MAR-DRA,COST-FLOW,Electrolysis"},"PTX-BusinessOpportunityAnalyzer-1.0.9",{"$f":"sel_country_code","v":"DEU"},"Hydrogen (AEL)",{"$f":"_calc!$B$1036","v":"MAR-DRA"},{"$f":"_calc!$BO$990","v":"COST-FLOW"},{"$f":"_calc!$BQ$1","v":"Electrolysis"},{"$f":"_calc!$BQ$1036","v":0}]
[{"$f":"_xlfn.TEXTJOIN(\",\",FALSE,output[[#This Row],[scenario]:[process_class]])","v":"PTX-BusinessOpportunityAnalyzer-1.0.9,DEU,Hydrogen (AEL),MAR-DRA,COST-FLOW,Electricity generation"},"PTX-BusinessOpportunityAnalyzer-1.0.9",{"$f":"sel_country_code","v":"DEU"},"Hydrogen (AEL)",{"$f":"_calc!$B$1036","v":"MAR-DRA"},{"$f":"_calc!$BO$990","v":"COST-FLOW"},{"$f":"_calc!$BR$1","v":"Electricity generation"},{"$f":"_calc!$BR$1036","v":0}]
[{"$f":"_xlfn.TEXTJOIN(\",\",FALSE,output[[#This Row],[scenario]:[process_class]])","v":"PTX-BusinessOpportunityAnalyzer-1.0.9,DEU,Hydrogen (AEL),MAR-DRA,COST-FLOW,Transportation (Pipeline)"},"PTX-BusinessOpportunityAnalyzer-1.0.9",{"$f":"sel_country_code","v":"DEU"},"Hydrogen (AEL)",{"$f":"_calc!$B$1036","v":"MAR-DRA"},{"$f":"_calc!$BO$990","v":"COST-FLOW"},{"$f":"_calc!$BS$1","v":"Transportation (Pipeline)"},{"$f":"_calc!$BS$1036","v":0}]
[{"$f":"_xlfn.TEXTJOIN(\",\",FALSE,output[[#This Row],[scenario]:[process_class]])","v":"PTX-BusinessOpportunityAnalyzer-1.0.9,DEU,Hydrogen (AEL),MAR-DRA,COST-FLOW,Transportation (Ship)"},"PTX-BusinessOpportunityAnalyzer-1.0.9",{"$f":"sel_country_code","v":"DEU"},"Hydrogen (AEL)",{"$f":"_calc!$B$1036","v":"MAR-DRA"},{"$f":"_calc!$BO$990","v":"COST-FLOW"},{"$f":"_calc!$BT$1","v":"Transportation (Ship)"},{"$f":"_calc!$BT$1036","v":26.102159220964726}]
[{"$f":"_xlfn.TEXTJOIN(\",\",FALSE,output[[#This Row],[scenario]:[process_class]])","v":"PTX-BusinessOpportunityAnalyzer-1.0.9,DEU,Hydrogen (AEL),MAR-DRA,COST-FLOW,Carbon"},"PTX-BusinessOpportunityAnalyzer-1.0.9",{"$f":"sel_country_code","v":"DEU"},"Hydrogen (AEL)",{"$f":"_calc!$B$1036","v":"MAR-DRA"},{"$f":"_calc!$BO$990","v":"COST-FLOW"},{"$f":"_calc!$BU$1","v":"Carbon"},{"$f":"_calc!$BU$1036","v":0}]
[{"$f":"_xlfn.TEXTJOIN(\",\",FALSE,output[[#This Row],[scenario]:[process_class]])","v":"PTX-BusinessOpportunityAnalyzer-1.0.9,DEU,Hydrogen (AEL),MAR-DRA,COST-FLOW,Derivate production"},"PTX-BusinessOpportunityAnalyzer-1.0.9",{"$f":"sel_country_code","v":"DEU"},"Hydrogen (AEL)",{"$f":"_calc!$B$1036","v":"MAR-DRA"},{"$f":"_calc!$BO$990","v":"COST-FLOW"},{"$f":"_calc!$BV$1","v":"Derivate production"},{"$f":"_calc!$BV$1036","v":0}]
[{"$f":"_xlfn.TEXTJOIN(\",\",FALSE,output[[#This Row],[scenario]:[process_class]])","v":"PTX-BusinessOpportunityAnalyzer-1.0.9,DEU,Hydrogen (AEL),MAR-DRA,COST-FLOW,Heat"},"PTX-BusinessOpportunityAnalyzer-1.0.9",{"$f":"sel_country_code","v":"DEU"},"Hydrogen (AEL)",{"$f":"_calc!$B$1036","v":"MAR-DRA"},{"$f":"_calc!$BO$990","v":"COST-FLOW"},{"$f":"_calc!$BW$1","v":"Heat"},{"$f":"_calc!$BW$1036","v":0}]
[{"$f":"_xlfn.TEXTJOIN(\",\",FALSE,output[[#This Row],[scenario]:[process_class]])","v":"PTX-BusinessOpportunityAnalyzer-1.0.9,DEU,Hydrogen (AEL),MAR-DRA,COST-FLOW,Electricity and H2 storage"},"PTX-BusinessOpportunityAnalyzer-1.0.9",{"$f":"sel_country_code","v":"DEU"},"Hydrogen (AEL)",{"$f":"_calc!$B$1036","v":"MAR-DRA"},{"$f":"_calc!$BO$990","v":"COST-FLOW"},{"$f":"_calc!$BX$1","v":"Electricity and H2 storage"},{"$f":"_calc!$BX$1036","v":0}]
[{"$f":"_xlfn.TEXTJOIN(\",\",FALSE,output[[#This Row],[scenario]:[process_class]])","v":"PTX-BusinessOpportunityAnalyzer-1.0.9,DEU,Hydrogen (AEL),MAR-FES,COST-FLOW,Water"},"PTX-BusinessOpportunityAnalyzer-1.0.9",{"$f":"sel_country_code","v":"DEU"},"Hydrogen (AEL)",{"$f":"_calc!$B$1037","v":"MAR-FES"},{"$f":"_calc!$BO$990","v":"COST-FLOW"},{"$f":"_calc!$BP$1","v":"Water"},{"$f":"_calc!$BP$1037","v":7.8280375503673241E-2}]
[{"$f":"_xlfn.TEXTJOIN(\",\",FALSE,output[[#This Row],[scenario]:[process_class]])","v":"PTX-BusinessOpportunityAnalyzer-1.0.9,DEU,Hydrogen (AEL),MAR-FES,COST-FLOW,Electrolysis"},"PTX-BusinessOpportunityAnalyzer-1.0.9",{"$f":"sel_country_code","v":"DEU"},"Hydrogen (AEL)",{"$f":"_calc!$B$1037","v":"MAR-FES"},{"$f":"_calc!$BO$990","v":"COST-FLOW"},{"$f":"_calc!$BQ$1","v":"Electrolysis"},{"$f":"_calc!$BQ$1037","v":0}]
[{"$f":"_xlfn.TEXTJOIN(\",\",FALSE,output[[#This Row],[scenario]:[process_class]])","v":"PTX-BusinessOpportunityAnalyzer-1.0.9,DEU,Hydrogen (AEL),MAR-FES,COST-FLOW,Electricity generation"},"PTX-BusinessOpportunityAnalyzer-1.0.9",{"$f":"sel_country_code","v":"DEU"},"Hydrogen (AEL)",{"$f":"_calc!$B$1037","v":"MAR-FES"},{"$f":"_calc!$BO$990","v":"COST-FLOW"},{"$f":"_calc!$BR$1","v":"Electricity generation"},{"$f":"_calc!$BR$1037","v":0}]
[{"$f":"_xlfn.TEXTJOIN(\",\",FALSE,output[[#This Row],[scenario]:[process_class]])","v":"PTX-BusinessOpportunityAnalyzer-1.0.9,DEU,Hydrogen (AEL),MAR-FES,COST-FLOW,Transportation (Pipeline)"},"PTX-BusinessOpportunityAnalyzer-1.0.9",{"$f":"sel_country_code","v":"DEU"},"Hydrogen (AEL)",{"$f":"_calc!$B$1037","v":"MAR-FES"},{"$f":"_calc!$BO$990","v":"COST-FLOW"},{"$f":"_calc!$BS$1","v":"Transportation (Pipeline)"},{"$f":"_calc!$BS$1037","v":0}]
[{"$f":"_xlfn.TEXTJOIN(\",\",FALSE,output[[#This Row],[scenario]:[process_class]])","v":"PTX-BusinessOpportunityAnalyzer-1.0.9,DEU,Hydrogen (AEL),MAR-FES,COST-FLOW,Transportation (Ship)"},"PTX-BusinessOpportunityAnalyzer-1.0.9",{"$f":"sel_country_code","v":"DEU"},"Hydrogen (AEL)",{"$f":"_calc!$B$1037","v":"MAR-FES"},{"$f":"_calc!$BO$990","v":"COST-FLOW"},{"$f":"_calc!$BT$1","v":"Transportation (Ship)"},{"$f":"_calc!$BT$1037","v":26.102159220964726}]
[{"$f":"_xlfn.TEXTJOIN(\",\",FALSE,output[[#This Row],[scenario]:[process_class]])","v":"PTX-BusinessOpportunityAnalyzer-1.0.9,DEU,Hydrogen (AEL),MAR-FES,COST-FLOW,Carbon"},"PTX-BusinessOpportunityAnalyzer-1.0.9",{"$f":"sel_country_code","v":"DEU"},"Hydrogen (AEL)",{"$f":"_calc!$B$1037","v":"MAR-FES"},{"$f":"_calc!$BO$990","v":"COST-FLOW"},{"$f":"_calc!$BU$1","v":"Carbon"},{"$f":"_calc!$BU$1037","v":0}]
[{"$f":"_xlfn.TEXTJOIN(\",\",FALSE,output[[#This Row],[scenario]:[process_class]])","v":"PTX-BusinessOpportunityAnalyzer-1.0.9,DEU,Hydrogen (AEL),MAR-FES,COST-FLOW,Derivate production"},"PTX-BusinessOpportunityAnalyzer-1.0.9",{"$f":"sel_country_code","v":"DEU"},"Hydrogen (AEL)",{"$f":"_calc!$B$1037","v":"MAR-FES"},{"$f":"_calc!$BO$990","v":"COST-FLOW"},{"$f":"_calc!$BV$1","v":"Derivate production"},{"$f":"_calc!$BV$1037","v":0}]
[{"$f":"_xlfn.TEXTJOIN(\",\",FALSE,output[[#This Row],[scenario]:[process_class]])","v":"PTX-BusinessOpportunityAnalyzer-1.0.9,DEU,Hydrogen (AEL),MAR-FES,COST-FLOW,Heat"},"PTX-BusinessOpportunityAnalyzer-1.0.9",{"$f":"sel_country_code","v":"DEU"},"Hydrogen (AEL)",{"$f":"_calc!$B$1037","v":"MAR-FES"},{"$f":"_calc!$BO$990","v":"COST-FLOW"},{"$f":"_calc!$BW$1","v":"Heat"},{"$f":"_calc!$BW$1037","v":0}]
[{"$f":"_xlfn.TEXTJOIN(\",\",FALSE,output[[#This Row],[scenario]:[process_class]])","v":"PTX-BusinessOpportunityAnalyzer-1.0.9,DEU,Hydrogen (AEL),MAR-FES,COST-FLOW,Electricity and H2 storage"},"PTX-BusinessOpportunityAnalyzer-1.0.9",{"$f":"sel_country_code","v":"DEU"},"Hydrogen (AEL)",{"$f":"_calc!$B$1037","v":"MAR-FES"},{"$f":"_calc!$BO$990","v":"COST-FLOW"},{"$f":"_calc!$BX$1","v":"Electricity and H2 storage"},{"$f":"_calc!$BX$1037","v":0}]
[{"$f":"_xlfn.TEXTJOIN(\",\",FALSE,output[[#This Row],[scenario]:[process_class]])","v":"PTX-BusinessOpportunityAnalyzer-1.0.9,DEU,Hydrogen (AEL),MAR-GUE,COST-FLOW,Water"},"PTX-BusinessOpportunityAnalyzer-1.0.9",{"$f":"sel_country_code","v":"DEU"},"Hydrogen (AEL)",{"$f":"_calc!$B$1038","v":"MAR-GUE"},{"$f":"_calc!$BO$990","v":"COST-FLOW"},{"$f":"_calc!$BP$1","v":"Water"},{"$f":"_calc!$BP$1038","v":7.8280375503673241E-2}]
[{"$f":"_xlfn.TEXTJOIN(\",\",FALSE,output[[#This Row],[scenario]:[process_class]])","v":"PTX-BusinessOpportunityAnalyzer-1.0.9,DEU,Hydrogen (AEL),MAR-GUE,COST-FLOW,Electrolysis"},"PTX-BusinessOpportunityAnalyzer-1.0.9",{"$f":"sel_country_code","v":"DEU"},"Hydrogen (AEL)",{"$f":"_calc!$B$1038","v":"MAR-GUE"},{"$f":"_calc!$BO$990","v":"COST-FLOW"},{"$f":"_calc!$BQ$1","v":"Electrolysis"},{"$f":"_calc!$BQ$1038","v":0}]
[{"$f":"_xlfn.TEXTJOIN(\",\",FALSE,output[[#This Row],[scenario]:[process_class]])","v":"PTX-BusinessOpportunityAnalyzer-1.0.9,DEU,Hydrogen (AEL),MAR-GUE,COST-FLOW,Electricity generation"},"PTX-BusinessOpportunityAnalyzer-1.0.9",{"$f":"sel_country_code","v":"DEU"},"Hydrogen (AEL)",{"$f":"_calc!$B$1038","v":"MAR-GUE"},{"$f":"_calc!$BO$990","v":"COST-FLOW"},{"$f":"_calc!$BR$1","v":"Electricity generation"},{"$f":"_calc!$BR$1038","v":0}]
[{"$f":"_xlfn.TEXTJOIN(\",\",FALSE,output[[#This Row],[scenario]:[process_class]])","v":"PTX-BusinessOpportunityAnalyzer-1.0.9,DEU,Hydrogen (AEL),MAR-GUE,COST-FLOW,Transportation (Pipeline)"},"PTX-BusinessOpportunityAnalyzer-1.0.9",{"$f":"sel_country_code","v":"DEU"},"Hydrogen (AEL)",{"$f":"_calc!$B$1038","v":"MAR-GUE"},{"$f":"_calc!$BO$990","v":"COST-FLOW"},{"$f":"_calc!$BS$1","v":"Transportation (Pipeline)"},{"$f":"_calc!$BS$1038","v":0}]
[{"$f":"_xlfn.TEXTJOIN(\",\",FALSE,output[[#This Row],[scenario]:[process_class]])","v":"PTX-BusinessOpportunityAnalyzer-1.0.9,DEU,Hydrogen (AEL),MAR-GUE,COST-FLOW,Transportation (Ship)"},"PTX-BusinessOpportunityAnalyzer-1.0.9",{"$f":"sel_country_code","v":"DEU"},"Hydrogen (AEL)",{"$f":"_calc!$B$1038","v":"MAR-GUE"},{"$f":"_calc!$BO$990","v":"COST-FLOW"},{"$f":"_calc!$BT$1","v":"Transportation (Ship)"},{"$f":"_calc!$BT$1038","v":26.102159220964726}]
[{"$f":"_xlfn.TEXTJOIN(\",\",FALSE,output[[#This Row],[scenario]:[process_class]])","v":"PTX-BusinessOpportunityAnalyzer-1.0.9,DEU,Hydrogen (AEL),MAR-GUE,COST-FLOW,Carbon"},"PTX-BusinessOpportunityAnalyzer-1.0.9",{"$f":"sel_country_code","v":"DEU"},"Hydrogen (AEL)",{"$f":"_calc!$B$1038","v":"MAR-GUE"},{"$f":"_calc!$BO$990","v":"COST-FLOW"},{"$f":"_calc!$BU$1","v":"Carbon"},{"$f":"_calc!$BU$1038","v":0}]
[{"$f":"_xlfn.TEXTJOIN(\",\",FALSE,output[[#This Row],[scenario]:[process_class]])","v":"PTX-BusinessOpportunityAnalyzer-1.0.9,DEU,Hydrogen (AEL),MAR-GUE,COST-FLOW,Derivate production"},"PTX-BusinessOpportunityAnalyzer-1.0.9",{"$f":"sel_country_code","v":"DEU"},"Hydrogen (AEL)",{"$f":"_calc!$B$1038","v":"MAR-GUE"},{"$f":"_calc!$BO$990","v":"COST-FLOW"},{"$f":"_calc!$BV$1","v":"Derivate production"},{"$f":"_calc!$BV$1038","v":0}]
[{"$f":"_xlfn.TEXTJOIN(\",\",FALSE,output[[#This Row],[scenario]:[process_class]])","v":"PTX-BusinessOpportunityAnalyzer-1.0.9,DEU,Hydrogen (AEL),MAR-GUE,COST-FLOW,Heat"},"PTX-BusinessOpportunityAnalyzer-1.0.9",{"$f":"sel_country_code","v":"DEU"},"Hydrogen (AEL)",{"$f":"_calc!$B$1038","v":"MAR-GUE"},{"$f":"_calc!$BO$990","v":"COST-FLOW"},{"$f":"_calc!$BW$1","v":"Heat"},{"$f":"_calc!$BW$1038","v":0}]
[{"$f":"_xlfn.TEXTJOIN(\",\",FALSE,output[[#This Row],[scenario]:[process_class]])","v":"PTX-BusinessOpportunityAnalyzer-1.0.9,DEU,Hydrogen (AEL),MAR-GUE,COST-FLOW,Electricity and H2 storage"},"PTX-BusinessOpportunityAnalyzer-1.0.9",{"$f":"sel_country_code","v":"DEU"},"Hydrogen (AEL)",{"$f":"_calc!$B$1038","v":"MAR-GUE"},{"$f":"_calc!$BO$990","v":"COST-FLOW"},{"$f":"_calc!$BX$1","v":"Electricity and H2 storage"},{"$f":"_calc!$BX$1038","v":0}]
[{"$f":"_xlfn.TEXTJOIN(\",\",FALSE,output[[#This Row],[scenario]:[process_class]])","v":"PTX-BusinessOpportunityAnalyzer-1.0.9,DEU,Hydrogen (AEL),MAR-LAA,COST-FLOW,Water"},"PTX-BusinessOpportunityAnalyzer-1.0.9",{"$f":"sel_country_code","v":"DEU"},"Hydrogen (AEL)",{"$f":"_calc!$B$1039","v":"MAR-LAA"},{"$f":"_calc!$BO$990","v":"COST-FLOW"},{"$f":"_calc!$BP$1","v":"Water"},{"$f":"_calc!$BP$1039","v":7.8280375503673241E-2}]
[{"$f":"_xlfn.TEXTJOIN(\",\",FALSE,output[[#This Row],[scenario]:[process_class]])","v":"PTX-BusinessOpportunityAnalyzer-1.0.9,DEU,Hydrogen (AEL),MAR-LAA,COST-FLOW,Electrolysis"},"PTX-BusinessOpportunityAnalyzer-1.0.9",{"$f":"sel_country_code","v":"DEU"},"Hydrogen (AEL)",{"$f":"_calc!$B$1039","v":"MAR-LAA"},{"$f":"_calc!$BO$990","v":"COST-FLOW"},{"$f":"_calc!$BQ$1","v":"Electrolysis"},{"$f":"_calc!$BQ$1039","v":0}]
[{"$f":"_xlfn.TEXTJOIN(\",\",FALSE,output[[#This Row],[scenario]:[process_class]])","v":"PTX-BusinessOpportunityAnalyzer-1.0.9,DEU,Hydrogen (AEL),MAR-LAA,COST-FLOW,Electricity generation"},{"$f":"output_scenario_name","v":"PTX-BusinessOpportunityAnalyzer-1.0.9"},{"$f":"sel_country_code","v":"DEU"},{"$f":"sel_chain","v":"Hydrogen (AEL)"},{"$f":"_calc!$B$1039","v":"MAR-LAA"},{"$f":"_calc!$BO$990","v":"COST-FLOW"},{"$f":"_calc!$BR$1","v":"Electricity generation"},{"$f":"_calc!$BR$1039","v":0}]
[{"$f":"_xlfn.TEXTJOIN(\",\",FALSE,output[[#This Row],[scenario]:[process_class]])","v":"PTX-BusinessOpportunityAnalyzer-1.0.9,DEU,Hydrogen (AEL),MAR-LAA,COST-FLOW,Transportation (Pipeline)"},"PTX-BusinessOpportunityAnalyzer-1.0.9",{"$f":"sel_country_code","v":"DEU"},"Hydrogen (AEL)",{"$f":"_calc!$B$1039","v":"MAR-LAA"},{"$f":"_calc!$BO$990","v":"COST-FLOW"},{"$f":"_calc!$BS$1","v":"Transportation (Pipeline)"},{"$f":"_calc!$BS$1039","v":0}]
[{"$f":"_xlfn.TEXTJOIN(\",\",FALSE,output[[#This Row],[scenario]:[process_class]])","v":"PTX-BusinessOpportunityAnalyzer-1.0.9,DEU,Hydrogen (AEL),MAR-LAA,COST-FLOW,Transportation (Ship)"},"PTX-BusinessOpportunityAnalyzer-1.0.9",{"$f":"sel_country_code","v":"DEU"},"Hydrogen (AEL)",{"$f":"_calc!$B$1039","v":"MAR-LAA"},{"$f":"_calc!$BO$990","v":"COST-FLOW"},{"$f":"_calc!$BT$1","v":"Transportation (Ship)"},{"$f":"_calc!$BT$1039","v":26.102159220964726}]
[{"$f":"_xlfn.TEXTJOIN(\",\",FALSE,output[[#This Row],[scenario]:[process_class]])","v":"PTX-BusinessOpportunityAnalyzer-1.0.9,DEU,Hydrogen (AEL),MAR-LAA,COST-FLOW,Carbon"},"PTX-BusinessOpportunityAnalyzer-1.0.9",{"$f":"sel_country_code","v":"DEU"},"Hydrogen (AEL)",{"$f":"_calc!$B$1039","v":"MAR-LAA"},{"$f":"_calc!$BO$990","v":"COST-FLOW"},{"$f":"_calc!$BU$1","v":"Carbon"},{"$f":"_calc!$BU$1039","v":0}]
[{"$f":"_xlfn.TEXTJOIN(\",\",FALSE,output[[#This Row],[scenario]:[process_class]])","v":"PTX-BusinessOpportunityAnalyzer-1.0.9,DEU,Hydrogen (AEL),MAR-LAA,COST-FLOW,Derivate production"},"PTX-BusinessOpportunityAnalyzer-1.0.9",{"$f":"sel_country_code","v":"DEU"},"Hydrogen (AEL)",{"$f":"_calc!$B$1039","v":"MAR-LAA"},{"$f":"_calc!$BO$990","v":"COST-FLOW"},{"$f":"_calc!$BV$1","v":"Derivate production"},{"$f":"_calc!$BV$1039","v":0}]
[{"$f":"_xlfn.TEXTJOIN(\",\",FALSE,output[[#This Row],[scenario]:[process_class]])","v":"PTX-BusinessOpportunityAnalyzer-1.0.9,DEU,Hydrogen (AEL),MAR-LAA,COST-FLOW,Heat"},"PTX-BusinessOpportunityAnalyzer-1.0.9",{"$f":"sel_country_code","v":"DEU"},"Hydrogen (AEL)",{"$f":"_calc!$B$1039","v":"MAR-LAA"},{"$f":"_calc!$BO$990","v":"COST-FLOW"},{"$f":"_calc!$BW$1","v":"Heat"},{"$f":"_calc!$BW$1039","v":0}]
[{"$f":"_xlfn.TEXTJOIN(\",\",FALSE,output[[#This Row],[scenario]:[process_class]])","v":"PTX-BusinessOpportunityAnalyzer-1.0.9,DEU,Hydrogen (AEL),MAR-LAA,COST-FLOW,Electricity and H2 storage"},"PTX-BusinessOpportunityAnalyzer-1.0.9",{"$f":"sel_country_code","v":"DEU"},"Hydrogen (AEL)",{"$f":"_calc!$B$1039","v":"MAR-LAA"},{"$f":"_calc!$BO$990","v":"COST-FLOW"},{"$f":"_calc!$BX$1","v":"Electricity and H2 storage"},{"$f":"_calc!$BX$1039","v":0}]
[{"$f":"_xlfn.TEXTJOIN(\",\",FALSE,output[[#This Row],[scenario]:[process_class]])","v":"PTX-BusinessOpportunityAnalyzer-1.0.9,DEU,Hydrogen (AEL),MAR-LOR,COST-FLOW,Water"},"PTX-BusinessOpportunityAnalyzer-1.0.9",{"$f":"sel_country_code","v":"DEU"},"Hydrogen (AEL)",{"$f":"_calc!$B$1040","v":"MAR-LOR"},{"$f":"_calc!$BO$990","v":"COST-FLOW"},{"$f":"_calc!$BP$1","v":"Water"},{"$f":"_calc!$BP$1040","v":7.8280375503673241E-2}]
[{"$f":"_xlfn.TEXTJOIN(\",\",FALSE,output[[#This Row],[scenario]:[process_class]])","v":"PTX-BusinessOpportunityAnalyzer-1.0.9,DEU,Hydrogen (AEL),MAR-LOR,COST-FLOW,Electrolysis"},"PTX-BusinessOpportunityAnalyzer-1.0.9",{"$f":"sel_country_code","v":"DEU"},"Hydrogen (AEL)",{"$f":"_calc!$B$1040","v":"MAR-LOR"},{"$f":"_calc!$BO$990","v":"COST-FLOW"},{"$f":"_calc!$BQ$1","v":"Electrolysis"},{"$f":"_calc!$BQ$1040","v":0}]
[{"$f":"_xlfn.TEXTJOIN(\",\",FALSE,output[[#This Row],[scenario]:[process_class]])","v":"PTX-BusinessOpportunityAnalyzer-1.0.9,DEU,Hydrogen (AEL),MAR-LOR,COST-FLOW,Electricity generation"},"PTX-BusinessOpportunityAnalyzer-1.0.9",{"$f":"sel_country_code","v":"DEU"},"Hydrogen (AEL)",{"$f":"_calc!$B$1040","v":"MAR-LOR"},{"$f":"_calc!$BO$990","v":"COST-FLOW"},{"$f":"_calc!$BR$1","v":"Electricity generation"},{"$f":"_calc!$BR$1040","v":0}]
[{"$f":"_xlfn.TEXTJOIN(\",\",FALSE,output[[#This Row],[scenario]:[process_class]])","v":"PTX-BusinessOpportunityAnalyzer-1.0.9,DEU,Hydrogen (AEL),MAR-LOR,COST-FLOW,Transportation (Pipeline)"},"PTX-BusinessOpportunityAnalyzer-1.0.9",{"$f":"sel_country_code","v":"DEU"},"Hydrogen (AEL)",{"$f":"_calc!$B$1040","v":"MAR-LOR"},{"$f":"_calc!$BO$990","v":"COST-FLOW"},{"$f":"_calc!$BS$1","v":"Transportation (Pipeline)"},{"$f":"_calc!$BS$1040","v":0}]
[{"$f":"_xlfn.TEXTJOIN(\",\",FALSE,output[[#This Row],[scenario]:[process_class]])","v":"PTX-BusinessOpportunityAnalyzer-1.0.9,DEU,Hydrogen (AEL),MAR-LOR,COST-FLOW,Transportation (Ship)"},"PTX-BusinessOpportunityAnalyzer-1.0.9",{"$f":"sel_country_code","v":"DEU"},"Hydrogen (AEL)",{"$f":"_calc!$B$1040","v":"MAR-LOR"},{"$f":"_calc!$BO$990","v":"COST-FLOW"},{"$f":"_calc!$BT$1","v":"Transportation (Ship)"},{"$f":"_calc!$BT$1040","v":26.102159220964726}]
[{"$f":"_xlfn.TEXTJOIN(\",\",FALSE,output[[#This Row],[scenario]:[process_class]])","v":"PTX-BusinessOpportunityAnalyzer-1.0.9,DEU,Hydrogen (AEL),MAR-LOR,COST-FLOW,Carbon"},"PTX-BusinessOpportunityAnalyzer-1.0.9",{"$f":"sel_country_code","v":"DEU"},"Hydrogen (AEL)",{"$f":"_calc!$B$1040","v":"MAR-LOR"},{"$f":"_calc!$BO$990","v":"COST-FLOW"},{"$f":"_calc!$BU$1","v":"Carbon"},{"$f":"_calc!$BU$1040","v":0}]
[{"$f":"_xlfn.TEXTJOIN(\",\",FALSE,output[[#This Row],[scenario]:[process_class]])","v":"PTX-BusinessOpportunityAnalyzer-1.0.9,DEU,Hydrogen (AEL),MAR-LOR,COST-FLOW,Derivate production"},"PTX-BusinessOpportunityAnalyzer-1.0.9",{"$f":"sel_country_code","v":"DEU"},"Hydrogen (AEL)",{"$f":"_calc!$B$1040","v":"MAR-LOR"},{"$f":"_calc!$BO$990","v":"COST-FLOW"},{"$f":"_calc!$BV$1","v":"Derivate production"},{"$f":"_calc!$BV$1040","v":0}]
[{"$f":"_xlfn.TEXTJOIN(\",\",FALSE,output[[#This Row],[scenario]:[process_class]])","v":"PTX-BusinessOpportunityAnalyzer-1.0.9,DEU,Hydrogen (AEL),MAR-LOR,COST-FLOW,Heat"},"PTX-BusinessOpportunityAnalyzer-1.0.9",{"$f":"sel_country_code","v":"DEU"},"Hydrogen (AEL)",{"$f":"_calc!$B$1040","v":"MAR-LOR"},{"$f":"_calc!$BO$990","v":"COST-FLOW"},{"$f":"_calc!$BW$1","v":"Heat"},{"$f":"_calc!$BW$1040","v":0}]
[{"$f":"_xlfn.TEXTJOIN(\",\",FALSE,output[[#This Row],[scenario]:[process_class]])","v":"PTX-BusinessOpportunityAnalyzer-1.0.9,DEU,Hydrogen (AEL),MAR-LOR,COST-FLOW,Electricity and H2 storage"},"PTX-BusinessOpportunityAnalyzer-1.0.9",{"$f":"sel_country_code","v":"DEU"},"Hydrogen (AEL)",{"$f":"_calc!$B$1040","v":"MAR-LOR"},{"$f":"_calc!$BO$990","v":"COST-FLOW"},{"$f":"_calc!$BX$1","v":"Electricity and H2 storage"},{"$f":"_calc!$BX$1040","v":0}]
[{"$f":"_xlfn.TEXTJOIN(\",\",FALSE,output[[#This Row],[scenario]:[process_class]])","v":"PTX-BusinessOpportunityAnalyzer-1.0.9,DEU,Hydrogen (AEL),MAR-MAR,COST-FLOW,Water"},"PTX-BusinessOpportunityAnalyzer-1.0.9",{"$f":"sel_country_code","v":"DEU"},"Hydrogen (AEL)",{"$f":"_calc!$B$1041","v":"MAR-MAR"},{"$f":"_calc!$BO$990","v":"COST-FLOW"},{"$f":"_calc!$BP$1","v":"Water"},{"$f":"_calc!$BP$1041","v":7.8280375503673241E-2}]
[{"$f":"_xlfn.TEXTJOIN(\",\",FALSE,output[[#This Row],[scenario]:[process_class]])","v":"PTX-BusinessOpportunityAnalyzer-1.0.9,DEU,Hydrogen (AEL),MAR-MAR,COST-FLOW,Electrolysis"},"PTX-BusinessOpportunityAnalyzer-1.0.9",{"$f":"sel_country_code","v":"DEU"},"Hydrogen (AEL)",{"$f":"_calc!$B$1041","v":"MAR-MAR"},{"$f":"_calc!$BO$990","v":"COST-FLOW"},{"$f":"_calc!$BQ$1","v":"Electrolysis"},{"$f":"_calc!$BQ$1041","v":0}]
[{"$f":"_xlfn.TEXTJOIN(\",\",FALSE,output[[#This Row],[scenario]:[process_class]])","v":"PTX-BusinessOpportunityAnalyzer-1.0.9,DEU,Hydrogen (AEL),MAR-MAR,COST-FLOW,Electricity generation"},"PTX-BusinessOpportunityAnalyzer-1.0.9",{"$f":"sel_country_code","v":"DEU"},"Hydrogen (AEL)",{"$f":"_calc!$B$1041","v":"MAR-MAR"},{"$f":"_calc!$BO$990","v":"COST-FLOW"},{"$f":"_calc!$BR$1","v":"Electricity generation"},{"$f":"_calc!$BR$1041","v":0}]
[{"$f":"_xlfn.TEXTJOIN(\",\",FALSE,output[[#This Row],[scenario]:[process_class]])","v":"PTX-BusinessOpportunityAnalyzer-1.0.9,DEU,Hydrogen (AEL),MAR-MAR,COST-FLOW,Transportation (Pipeline)"},"PTX-BusinessOpportunityAnalyzer-1.0.9",{"$f":"sel_country_code","v":"DEU"},"Hydrogen (AEL)",{"$f":"_calc!$B$1041","v":"MAR-MAR"},{"$f":"_calc!$BO$990","v":"COST-FLOW"},{"$f":"_calc!$BS$1","v":"Transportation (Pipeline)"},{"$f":"_calc!$BS$1041","v":0}]
[{"$f":"_xlfn.TEXTJOIN(\",\",FALSE,output[[#This Row],[scenario]:[process_class]])","v":"PTX-BusinessOpportunityAnalyzer-1.0.9,DEU,Hydrogen (AEL),MAR-MAR,COST-FLOW,Transportation (Ship)"},"PTX-BusinessOpportunityAnalyzer-1.0.9",{"$f":"sel_country_code","v":"DEU"},"Hydrogen (AEL)",{"$f":"_calc!$B$1041","v":"MAR-MAR"},{"$f":"_calc!$BO$990","v":"COST-FLOW"},{"$f":"_calc!$BT$1","v":"Transportation (Ship)"},{"$f":"_calc!$BT$1041","v":26.102159220964726}]
[{"$f":"_xlfn.TEXTJOIN(\",\",FALSE,output[[#This Row],[scenario]:[process_class]])","v":"PTX-BusinessOpportunityAnalyzer-1.0.9,DEU,Hydrogen (AEL),MAR-MAR,COST-FLOW,Carbon"},"PTX-BusinessOpportunityAnalyzer-1.0.9",{"$f":"sel_country_code","v":"DEU"},"Hydrogen (AEL)",{"$f":"_calc!$B$1041","v":"MAR-MAR"},{"$f":"_calc!$BO$990","v":"COST-FLOW"},{"$f":"_calc!$BU$1","v":"Carbon"},{"$f":"_calc!$BU$1041","v":0}]
[{"$f":"_xlfn.TEXTJOIN(\",\",FALSE,output[[#This Row],[scenario]:[process_class]])","v":"PTX-BusinessOpportunityAnalyzer-1.0.9,DEU,Hydrogen (AEL),MAR-MAR,COST-FLOW,Derivate production"},"PTX-BusinessOpportunityAnalyzer-1.0.9",{"$f":"sel_country_code","v":"DEU"},"Hydrogen (AEL)",{"$f":"_calc!$B$1041","v":"MAR-MAR"},{"$f":"_calc!$BO$990","v":"COST-FLOW"},{"$f":"_calc!$BV$1","v":"Derivate production"},{"$f":"_calc!$BV$1041","v":0}]
[{"$f":"_xlfn.TEXTJOIN(\",\",FALSE,output[[#This Row],[scenario]:[process_class]])","v":"PTX-BusinessOpportunityAnalyzer-1.0.9,DEU,Hydrogen (AEL),MAR-MAR,COST-FLOW,Heat"},"PTX-BusinessOpportunityAnalyzer-1.0.9",{"$f":"sel_country_code","v":"DEU"},"Hydrogen (AEL)",{"$f":"_calc!$B$1041","v":"MAR-MAR"},{"$f":"_calc!$BO$990","v":"COST-FLOW"},{"$f":"_calc!$BW$1","v":"Heat"},{"$f":"_calc!$BW$1041","v":0}]
[{"$f":"_xlfn.TEXTJOIN(\",\",FALSE,output[[#This Row],[scenario]:[process_class]])","v":"PTX-BusinessOpportunityAnalyzer-1.0.9,DEU,Hydrogen (AEL),MAR-MAR,COST-FLOW,Electricity and H2 storage"},"PTX-BusinessOpportunityAnalyzer-1.0.9",{"$f":"sel_country_code","v":"DEU"},"Hydrogen (AEL)",{"$f":"_calc!$B$1041","v":"MAR-MAR"},{"$f":"_calc!$BO$990","v":"COST-FLOW"},{"$f":"_calc!$BX$1","v":"Electricity and H2 storage"},{"$f":"_calc!$BX$1041","v":0}]
[{"$f":"_xlfn.TEXTJOIN(\",\",FALSE,output[[#This Row],[scenario]:[process_class]])","v":"PTX-BusinessOpportunityAnalyzer-1.0.9,DEU,Hydrogen (AEL),MAR-RAB,COST-FLOW,Water"},"PTX-BusinessOpportunityAnalyzer-1.0.9",{"$f":"sel_country_code","v":"DEU"},"Hydrogen (AEL)",{"$f":"_calc!$B$1042","v":"MAR-RAB"},{"$f":"_calc!$BO$990","v":"COST-FLOW"},{"$f":"_calc!$BP$1","v":"Water"},{"$f":"_calc!$BP$1042","v":7.8280375503673241E-2}]
[{"$f":"_xlfn.TEXTJOIN(\",\",FALSE,output[[#This Row],[scenario]:[process_class]])","v":"PTX-BusinessOpportunityAnalyzer-1.0.9,DEU,Hydrogen (AEL),MAR-RAB,COST-FLOW,Electrolysis"},"PTX-BusinessOpportunityAnalyzer-1.0.9",{"$f":"sel_country_code","v":"DEU"},"Hydrogen (AEL)",{"$f":"_calc!$B$1042","v":"MAR-RAB"},{"$f":"_calc!$BO$990","v":"COST-FLOW"},{"$f":"_calc!$BQ$1","v":"Electrolysis"},{"$f":"_calc!$BQ$1042","v":0}]
[{"$f":"_xlfn.TEXTJOIN(\",\",FALSE,output[[#This Row],[scenario]:[process_class]])","v":"PTX-BusinessOpportunityAnalyzer-1.0.9,DEU,Hydrogen (AEL),MAR-RAB,COST-FLOW,Electricity generation"},"PTX-BusinessOpportunityAnalyzer-1.0.9",{"$f":"sel_country_code","v":"DEU"},"Hydrogen (AEL)",{"$f":"_calc!$B$1042","v":"MAR-RAB"},{"$f":"_calc!$BO$990","v":"COST-FLOW"},{"$f":"_calc!$BR$1","v":"Electricity generation"},{"$f":"_calc!$BR$1042","v":0}]
[{"$f":"_xlfn.TEXTJOIN(\",\",FALSE,output[[#This Row],[scenario]:[process_class]])","v":"PTX-BusinessOpportunityAnalyzer-1.0.9,DEU,Hydrogen (AEL),MAR-RAB,COST-FLOW,Transportation (Pipeline)"},"PTX-BusinessOpportunityAnalyzer-1.0.9",{"$f":"sel_country_code","v":"DEU"},"Hydrogen (AEL)",{"$f":"_calc!$B$1042","v":"MAR-RAB"},{"$f":"_calc!$BO$990","v":"COST-FLOW"},{"$f":"_calc!$BS$1","v":"Transportation (Pipeline)"},{"$f":"_calc!$BS$1042","v":0}]
[{"$f":"_xlfn.TEXTJOIN(\",\",FALSE,output[[#This Row],[scenario]:[process_class]])","v":"PTX-BusinessOpportunityAnalyzer-1.0.9,DEU,Hydrogen (AEL),MAR-RAB,COST-FLOW,Transportation (Ship)"},"PTX-BusinessOpportunityAnalyzer-1.0.9",{"$f":"sel_country_code","v":"DEU"},"Hydrogen (AEL)",{"$f":"_calc!$B$1042","v":"MAR-RAB"},{"$f":"_calc!$BO$990","v":"COST-FLOW"},{"$f":"_calc!$BT$1","v":"Transportation (Ship)"},{"$f":"_calc!$BT$1042","v":26.102159220964726}]
[{"$f":"_xlfn.TEXTJOIN(\",\",FALSE,output[[#This Row],[scenario]:[process_class]])","v":"PTX-BusinessOpportunityAnalyzer-1.0.9,DEU,Hydrogen (AEL),MAR-RAB,COST-FLOW,Carbon"},"PTX-BusinessOpportunityAnalyzer-1.0.9",{"$f":"sel_country_code","v":"DEU"},"Hydrogen (AEL)",{"$f":"_calc!$B$1042","v":"MAR-RAB"},{"$f":"_calc!$BO$990","v":"COST-FLOW"},{"$f":"_calc!$BU$1","v":"Carbon"},{"$f":"_calc!$BU$1042","v":0}]
[{"$f":"_xlfn.TEXTJOIN(\",\",FALSE,output[[#This Row],[scenario]:[process_class]])","v":"PTX-BusinessOpportunityAnalyzer-1.0.9,DEU,Hydrogen (AEL),MAR-RAB,COST-FLOW,Derivate production"},"PTX-BusinessOpportunityAnalyzer-1.0.9",{"$f":"sel_country_code","v":"DEU"},"Hydrogen (AEL)",{"$f":"_calc!$B$1042","v":"MAR-RAB"},{"$f":"_calc!$BO$990","v":"COST-FLOW"},{"$f":"_calc!$BV$1","v":"Derivate production"},{"$f":"_calc!$BV$1042","v":0}]
[{"$f":"_xlfn.TEXTJOIN(\",\",FALSE,output[[#This Row],[scenario]:[process_class]])","v":"PTX-BusinessOpportunityAnalyzer-1.0.9,DEU,Hydrogen (AEL),MAR-RAB,COST-FLOW,Heat"},"PTX-BusinessOpportunityAnalyzer-1.0.9",{"$f":"sel_country_code","v":"DEU"},"Hydrogen (AEL)",{"$f":"_calc!$B$1042","v":"MAR-RAB"},{"$f":"_calc!$BO$990","v":"COST-FLOW"},{"$f":"_calc!$BW$1","v":"Heat"},{"$f":"_calc!$BW$1042","v":0}]
[{"$f":"_xlfn.TEXTJOIN(\",\",FALSE,output[[#This Row],[scenario]:[process_class]])","v":"PTX-BusinessOpportunityAnalyzer-1.0.9,DEU,Hydrogen (AEL),MAR-RAB,COST-FLOW,Electricity and H2 storage"},"PTX-BusinessOpportunityAnalyzer-1.0.9",{"$f":"sel_country_code","v":"DEU"},"Hydrogen (AEL)",{"$f":"_calc!$B$1042","v":"MAR-RAB"},{"$f":"_calc!$BO$990","v":"COST-FLOW"},{"$f":"_calc!$BX$1","v":"Electricity and H2 storage"},{"$f":"_calc!$BX$1042","v":0}]
[{"$f":"_xlfn.TEXTJOIN(\",\",FALSE,output[[#This Row],[scenario]:[process_class]])","v":"PTX-BusinessOpportunityAnalyzer-1.0.9,DEU,Hydrogen (AEL),MAR-SOU,COST-FLOW,Water"},"PTX-BusinessOpportunityAnalyzer-1.0.9",{"$f":"sel_country_code","v":"DEU"},"Hydrogen (AEL)",{"$f":"_calc!$B$1043","v":"MAR-SOU"},{"$f":"_calc!$BO$990","v":"COST-FLOW"},{"$f":"_calc!$BP$1","v":"Water"},{"$f":"_calc!$BP$1043","v":7.8280375503673241E-2}]
[{"$f":"_xlfn.TEXTJOIN(\",\",FALSE,output[[#This Row],[scenario]:[process_class]])","v":"PTX-BusinessOpportunityAnalyzer-1.0.9,DEU,Hydrogen (AEL),MAR-SOU,COST-FLOW,Electrolysis"},"PTX-BusinessOpportunityAnalyzer-1.0.9",{"$f":"sel_country_code","v":"DEU"},"Hydrogen (AEL)",{"$f":"_calc!$B$1043","v":"MAR-SOU"},{"$f":"_calc!$BO$990","v":"COST-FLOW"},{"$f":"_calc!$BQ$1","v":"Electrolysis"},{"$f":"_calc!$BQ$1043","v":0}]
[{"$f":"_xlfn.TEXTJOIN(\",\",FALSE,output[[#This Row],[scenario]:[process_class]])","v":"PTX-BusinessOpportunityAnalyzer-1.0.9,DEU,Hydrogen (AEL),MAR-SOU,COST-FLOW,Electricity generation"},"PTX-BusinessOpportunityAnalyzer-1.0.9",{"$f":"sel_country_code","v":"DEU"},"Hydrogen (AEL)",{"$f":"_calc!$B$1043","v":"MAR-SOU"},{"$f":"_calc!$BO$990","v":"COST-FLOW"},{"$f":"_calc!$BR$1","v":"Electricity generation"},{"$f":"_calc!$BR$1043","v":0}]
[{"$f":"_xlfn.TEXTJOIN(\",\",FALSE,output[[#This Row],[scenario]:[process_class]])","v":"PTX-BusinessOpportunityAnalyzer-1.0.9,DEU,Hydrogen (AEL),MAR-SOU,COST-FLOW,Transportation (Pipeline)"},"PTX-BusinessOpportunityAnalyzer-1.0.9",{"$f":"sel_country_code","v":"DEU"},"Hydrogen (AEL)",{"$f":"_calc!$B$1043","v":"MAR-SOU"},{"$f":"_calc!$BO$990","v":"COST-FLOW"},{"$f":"_calc!$BS$1","v":"Transportation (Pipeline)"},{"$f":"_calc!$BS$1043","v":0}]
[{"$f":"_xlfn.TEXTJOIN(\",\",FALSE,output[[#This Row],[scenario]:[process_class]])","v":"PTX-BusinessOpportunityAnalyzer-1.0.9,DEU,Hydrogen (AEL),MAR-SOU,COST-FLOW,Transportation (Ship)"},"PTX-BusinessOpportunityAnalyzer-1.0.9",{"$f":"sel_country_code","v":"DEU"},"Hydrogen (AEL)",{"$f":"_calc!$B$1043","v":"MAR-SOU"},{"$f":"_calc!$BO$990","v":"COST-FLOW"},{"$f":"_calc!$BT$1","v":"Transportation (Ship)"},{"$f":"_calc!$BT$1043","v":26.102159220964726}]
[{"$f":"_xlfn.TEXTJOIN(\",\",FALSE,output[[#This Row],[scenario]:[process_class]])","v":"PTX-BusinessOpportunityAnalyzer-1.0.9,DEU,Hydrogen (AEL),MAR-SOU,COST-FLOW,Carbon"},"PTX-BusinessOpportunityAnalyzer-1.0.9",{"$f":"sel_country_code","v":"DEU"},"Hydrogen (AEL)",{"$f":"_calc!$B$1043","v":"MAR-SOU"},{"$f":"_calc!$BO$990","v":"COST-FLOW"},{"$f":"_calc!$BU$1","v":"Carbon"},{"$f":"_calc!$BU$1043","v":0}]
[{"$f":"_xlfn.TEXTJOIN(\",\",FALSE,output[[#This Row],[scenario]:[process_class]])","v":"PTX-BusinessOpportunityAnalyzer-1.0.9,DEU,Hydrogen (AEL),MAR-SOU,COST-FLOW,Derivate production"},"PTX-BusinessOpportunityAnalyzer-1.0.9",{"$f":"sel_country_code","v":"DEU"},"Hydrogen (AEL)",{"$f":"_calc!$B$1043","v":"MAR-SOU"},{"$f":"_calc!$BO$990","v":"COST-FLOW"},{"$f":"_calc!$BV$1","v":"Derivate production"},{"$f":"_calc!$BV$1043","v":0}]
[{"$f":"_xlfn.TEXTJOIN(\",\",FALSE,output[[#This Row],[scenario]:[process_class]])","v":"PTX-BusinessOpportunityAnalyzer-1.0.9,DEU,Hydrogen (AEL),MAR-SOU,COST-FLOW,Heat"},"PTX-BusinessOpportunityAnalyzer-1.0.9",{"$f":"sel_country_code","v":"DEU"},"Hydrogen (AEL)",{"$f":"_calc!$B$1043","v":"MAR-SOU"},{"$f":"_calc!$BO$990","v":"COST-FLOW"},{"$f":"_calc!$BW$1","v":"Heat"},{"$f":"_calc!$BW$1043","v":0}]
[{"$f":"_xlfn.TEXTJOIN(\",\",FALSE,output[[#This Row],[scenario]:[process_class]])","v":"PTX-BusinessOpportunityAnalyzer-1.0.9,DEU,Hydrogen (AEL),MAR-SOU,COST-FLOW,Electricity and H2 storage"},"PTX-BusinessOpportunityAnalyzer-1.0.9",{"$f":"sel_country_code","v":"DEU"},"Hydrogen (AEL)",{"$f":"_calc!$B$1043","v":"MAR-SOU"},{"$f":"_calc!$BO$990","v":"COST-FLOW"},{"$f":"_calc!$BX$1","v":"Electricity and H2 storage"},{"$f":"_calc!$BX$1043","v":0}]
[{"$f":"_xlfn.TEXTJOIN(\",\",FALSE,output[[#This Row],[scenario]:[process_class]])","v":"PTX-BusinessOpportunityAnalyzer-1.0.9,DEU,Hydrogen (AEL),MAR-TAN,COST-FLOW,Water"},"PTX-BusinessOpportunityAnalyzer-1.0.9",{"$f":"sel_country_code","v":"DEU"},"Hydrogen (AEL)",{"$f":"_calc!$B$1044","v":"MAR-TAN"},{"$f":"_calc!$BO$990","v":"COST-FLOW"},{"$f":"_calc!$BP$1","v":"Water"},{"$f":"_calc!$BP$1044","v":7.8280375503673241E-2}]
[{"$f":"_xlfn.TEXTJOIN(\",\",FALSE,output[[#This Row],[scenario]:[process_class]])","v":"PTX-BusinessOpportunityAnalyzer-1.0.9,DEU,Hydrogen (AEL),MAR-TAN,COST-FLOW,Electrolysis"},"PTX-BusinessOpportunityAnalyzer-1.0.9",{"$f":"sel_country_code","v":"DEU"},"Hydrogen (AEL)",{"$f":"_calc!$B$1044","v":"MAR-TAN"},{"$f":"_calc!$BO$990","v":"COST-FLOW"},{"$f":"_calc!$BQ$1","v":"Electrolysis"},{"$f":"_calc!$BQ$1044","v":0}]
[{"$f":"_xlfn.TEXTJOIN(\",\",FALSE,output[[#This Row],[scenario]:[process_class]])","v":"PTX-BusinessOpportunityAnalyzer-1.0.9,DEU,Hydrogen (AEL),MAR-TAN,COST-FLOW,Electricity generation"},"PTX-BusinessOpportunityAnalyzer-1.0.9",{"$f":"sel_country_code","v":"DEU"},"Hydrogen (AEL)",{"$f":"_calc!$B$1044","v":"MAR-TAN"},{"$f":"_calc!$BO$990","v":"COST-FLOW"},{"$f":"_calc!$BR$1","v":"Electricity generation"},{"$f":"_calc!$BR$1044","v":0}]
[{"$f":"_xlfn.TEXTJOIN(\",\",FALSE,output[[#This Row],[scenario]:[process_class]])","v":"PTX-BusinessOpportunityAnalyzer-1.0.9,DEU,Hydrogen (AEL),MAR-TAN,COST-FLOW,Transportation (Pipeline)"},"PTX-BusinessOpportunityAnalyzer-1.0.9",{"$f":"sel_country_code","v":"DEU"},"Hydrogen (AEL)",{"$f":"_calc!$B$1044","v":"MAR-TAN"},{"$f":"_calc!$BO$990","v":"COST-FLOW"},{"$f":"_calc!$BS$1","v":"Transportation (Pipeline)"},{"$f":"_calc!$BS$1044","v":0}]
[{"$f":"_xlfn.TEXTJOIN(\",\",FALSE,output[[#This Row],[scenario]:[process_class]])","v":"PTX-BusinessOpportunityAnalyzer-1.0.9,DEU,Hydrogen (AEL),MAR-TAN,COST-FLOW,Transportation (Ship)"},"PTX-BusinessOpportunityAnalyzer-1.0.9",{"$f":"sel_country_code","v":"DEU"},"Hydrogen (AEL)",{"$f":"_calc!$B$1044","v":"MAR-TAN"},{"$f":"_calc!$BO$990","v":"COST-FLOW"},{"$f":"_calc!$BT$1","v":"Transportation (Ship)"},{"$f":"_calc!$BT$1044","v":26.102159220964726}]
[{"$f":"_xlfn.TEXTJOIN(\",\",FALSE,output[[#This Row],[scenario]:[process_class]])","v":"PTX-BusinessOpportunityAnalyzer-1.0.9,DEU,Hydrogen (AEL),MAR-TAN,COST-FLOW,Carbon"},"PTX-BusinessOpportunityAnalyzer-1.0.9",{"$f":"sel_country_code","v":"DEU"},"Hydrogen (AEL)",{"$f":"_calc!$B$1044","v":"MAR-TAN"},{"$f":"_calc!$BO$990","v":"COST-FLOW"},{"$f":"_calc!$BU$1","v":"Carbon"},{"$f":"_calc!$BU$1044","v":0}]
[{"$f":"_xlfn.TEXTJOIN(\",\",FALSE,output[[#This Row],[scenario]:[process_class]])","v":"PTX-BusinessOpportunityAnalyzer-1.0.9,DEU,Hydrogen (AEL),MAR-TAN,COST-FLOW,Derivate production"},"PTX-BusinessOpportunityAnalyzer-1.0.9",{"$f":"sel_country_code","v":"DEU"},"Hydrogen (AEL)",{"$f":"_calc!$B$1044","v":"MAR-TAN"},{"$f":"_calc!$BO$990","v":"COST-FLOW"},{"$f":"_calc!$BV$1","v":"Derivate production"},{"$f":"_calc!$BV$1044","v":0}]
[{"$f":"_xlfn.TEXTJOIN(\",\",FALSE,output[[#This Row],[scenario]:[process_class]])","v":"PTX-BusinessOpportunityAnalyzer-1.0.9,DEU,Hydrogen (AEL),MAR-TAN,COST-FLOW,Heat"},"PTX-BusinessOpportunityAnalyzer-1.0.9",{"$f":"sel_country_code","v":"DEU"},"Hydrogen (AEL)",{"$f":"_calc!$B$1044","v":"MAR-TAN"},{"$f":"_calc!$BO$990","v":"COST-FLOW"},{"$f":"_calc!$BW$1","v":"Heat"},{"$f":"_calc!$BW$1044","v":0}]
[{"$f":"_xlfn.TEXTJOIN(\",\",FALSE,output[[#This Row],[scenario]:[process_class]])","v":"PTX-BusinessOpportunityAnalyzer-1.0.9,DEU,Hydrogen (AEL),MAR-TAN,COST-FLOW,Electricity and H2 storage"},"PTX-BusinessOpportunityAnalyzer-1.0.9",{"$f":"sel_country_code","v":"DEU"},"Hydrogen (AEL)",{"$f":"_calc!$B$1044","v":"MAR-TAN"},{"$f":"_calc!$BO$990","v":"COST-FLOW"},{"$f":"_calc!$BX$1","v":"Electricity and H2 storage"},{"$f":"_calc!$BX$1044","v":0}]
[{"$f":"_xlfn.TEXTJOIN(\",\",FALSE,output[[#This Row],[scenario]:[process_class]])","v":"PTX-BusinessOpportunityAnalyzer-1.0.9,DEU,Hydrogen (AEL),MEX,COST-FLOW,Water"},"PTX-BusinessOpportunityAnalyzer-1.0.9",{"$f":"sel_country_code","v":"DEU"},"Hydrogen (AEL)",{"$f":"_calc!$B$1045","v":"MEX"},{"$f":"_calc!$BO$990","v":"COST-FLOW"},{"$f":"_calc!$BP$1","v":"Water"},{"$f":"_calc!$BP$1045","v":8.435167794754217E-2}]
[{"$f":"_xlfn.TEXTJOIN(\",\",FALSE,output[[#This Row],[scenario]:[process_class]])","v":"PTX-BusinessOpportunityAnalyzer-1.0.9,DEU,Hydrogen (AEL),MEX,COST-FLOW,Electrolysis"},"PTX-BusinessOpportunityAnalyzer-1.0.9",{"$f":"sel_country_code","v":"DEU"},"Hydrogen (AEL)",{"$f":"_calc!$B$1045","v":"MEX"},{"$f":"_calc!$BO$990","v":"COST-FLOW"},{"$f":"_calc!$BQ$1","v":"Electrolysis"},{"$f":"_calc!$BQ$1045","v":0}]
[{"$f":"_xlfn.TEXTJOIN(\",\",FALSE,output[[#This Row],[scenario]:[process_class]])","v":"PTX-BusinessOpportunityAnalyzer-1.0.9,DEU,Hydrogen (AEL),MEX,COST-FLOW,Electricity generation"},"PTX-BusinessOpportunityAnalyzer-1.0.9",{"$f":"sel_country_code","v":"DEU"},"Hydrogen (AEL)",{"$f":"_calc!$B$1045","v":"MEX"},{"$f":"_calc!$BO$990","v":"COST-FLOW"},{"$f":"_calc!$BR$1","v":"Electricity generation"},{"$f":"_calc!$BR$1045","v":0}]
[{"$f":"_xlfn.TEXTJOIN(\",\",FALSE,output[[#This Row],[scenario]:[process_class]])","v":"PTX-BusinessOpportunityAnalyzer-1.0.9,DEU,Hydrogen (AEL),MEX,COST-FLOW,Transportation (Pipeline)"},"PTX-BusinessOpportunityAnalyzer-1.0.9",{"$f":"sel_country_code","v":"DEU"},"Hydrogen (AEL)",{"$f":"_calc!$B$1045","v":"MEX"},{"$f":"_calc!$BO$990","v":"COST-FLOW"},{"$f":"_calc!$BS$1","v":"Transportation (Pipeline)"},{"$f":"_calc!$BS$1045","v":0}]
[{"$f":"_xlfn.TEXTJOIN(\",\",FALSE,output[[#This Row],[scenario]:[process_class]])","v":"PTX-BusinessOpportunityAnalyzer-1.0.9,DEU,Hydrogen (AEL),MEX,COST-FLOW,Transportation (Ship)"},"PTX-BusinessOpportunityAnalyzer-1.0.9",{"$f":"sel_country_code","v":"DEU"},"Hydrogen (AEL)",{"$f":"_calc!$B$1045","v":"MEX"},{"$f":"_calc!$BO$990","v":"COST-FLOW"},{"$f":"_calc!$BT$1","v":"Transportation (Ship)"},{"$f":"_calc!$BT$1045","v":28.126601516352835}]
[{"$f":"_xlfn.TEXTJOIN(\",\",FALSE,output[[#This Row],[scenario]:[process_class]])","v":"PTX-BusinessOpportunityAnalyzer-1.0.9,DEU,Hydrogen (AEL),MEX,COST-FLOW,Carbon"},"PTX-BusinessOpportunityAnalyzer-1.0.9",{"$f":"sel_country_code","v":"DEU"},"Hydrogen (AEL)",{"$f":"_calc!$B$1045","v":"MEX"},{"$f":"_calc!$BO$990","v":"COST-FLOW"},{"$f":"_calc!$BU$1","v":"Carbon"},{"$f":"_calc!$BU$1045","v":0}]
[{"$f":"_xlfn.TEXTJOIN(\",\",FALSE,output[[#This Row],[scenario]:[process_class]])","v":"PTX-BusinessOpportunityAnalyzer-1.0.9,DEU,Hydrogen (AEL),MEX,COST-FLOW,Derivate production"},"PTX-BusinessOpportunityAnalyzer-1.0.9",{"$f":"sel_country_code","v":"DEU"},"Hydrogen (AEL)",{"$f":"_calc!$B$1045","v":"MEX"},{"$f":"_calc!$BO$990","v":"COST-FLOW"},{"$f":"_calc!$BV$1","v":"Derivate production"},{"$f":"_calc!$BV$1045","v":0}]
[{"$f":"_xlfn.TEXTJOIN(\",\",FALSE,output[[#This Row],[scenario]:[process_class]])","v":"PTX-BusinessOpportunityAnalyzer-1.0.9,DEU,Hydrogen (AEL),MEX,COST-FLOW,Heat"},"PTX-BusinessOpportunityAnalyzer-1.0.9",{"$f":"sel_country_code","v":"DEU"},"Hydrogen (AEL)",{"$f":"_calc!$B$1045","v":"MEX"},{"$f":"_calc!$BO$990","v":"COST-FLOW"},{"$f":"_calc!$BW$1","v":"Heat"},{"$f":"_calc!$BW$1045","v":0}]
[{"$f":"_xlfn.TEXTJOIN(\",\",FALSE,output[[#This Row],[scenario]:[process_class]])","v":"PTX-BusinessOpportunityAnalyzer-1.0.9,DEU,Hydrogen (AEL),MEX,COST-FLOW,Electricity and H2 storage"},"PTX-BusinessOpportunityAnalyzer-1.0.9",{"$f":"sel_country_code","v":"DEU"},"Hydrogen (AEL)",{"$f":"_calc!$B$1045","v":"MEX"},{"$f":"_calc!$BO$990","v":"COST-FLOW"},{"$f":"_calc!$BX$1","v":"Electricity and H2 storage"},{"$f":"_calc!$BX$1045","v":0}]
[{"$f":"_xlfn.TEXTJOIN(\",\",FALSE,output[[#This Row],[scenario]:[process_class]])","v":"PTX-BusinessOpportunityAnalyzer-1.0.9,DEU,Hydrogen (AEL),MRT,COST-FLOW,Water"},"PTX-BusinessOpportunityAnalyzer-1.0.9",{"$f":"sel_country_code","v":"DEU"},"Hydrogen (AEL)",{"$f":"_calc!$B$1046","v":"MRT"},{"$f":"_calc!$BO$990","v":"COST-FLOW"},{"$f":"_calc!$BP$1","v":"Water"},{"$f":"_calc!$BP$1046","v":6.9794528212595588E-2}]
[{"$f":"_xlfn.TEXTJOIN(\",\",FALSE,output[[#This Row],[scenario]:[process_class]])","v":"PTX-BusinessOpportunityAnalyzer-1.0.9,DEU,Hydrogen (AEL),MRT,COST-FLOW,Electrolysis"},"PTX-BusinessOpportunityAnalyzer-1.0.9",{"$f":"sel_country_code","v":"DEU"},"Hydrogen (AEL)",{"$f":"_calc!$B$1046","v":"MRT"},{"$f":"_calc!$BO$990","v":"COST-FLOW"},{"$f":"_calc!$BQ$1","v":"Electrolysis"},{"$f":"_calc!$BQ$1046","v":0}]
[{"$f":"_xlfn.TEXTJOIN(\",\",FALSE,output[[#This Row],[scenario]:[process_class]])","v":"PTX-BusinessOpportunityAnalyzer-1.0.9,DEU,Hydrogen (AEL),MRT,COST-FLOW,Electricity generation"},"PTX-BusinessOpportunityAnalyzer-1.0.9",{"$f":"sel_country_code","v":"DEU"},"Hydrogen (AEL)",{"$f":"_calc!$B$1046","v":"MRT"},{"$f":"_calc!$BO$990","v":"COST-FLOW"},{"$f":"_calc!$BR$1","v":"Electricity generation"},{"$f":"_calc!$BR$1046","v":0}]
[{"$f":"_xlfn.TEXTJOIN(\",\",FALSE,output[[#This Row],[scenario]:[process_class]])","v":"PTX-BusinessOpportunityAnalyzer-1.0.9,DEU,Hydrogen (AEL),MRT,COST-FLOW,Transportation (Pipeline)"},{"$f":"output_scenario_name","v":"PTX-BusinessOpportunityAnalyzer-1.0.9"},{"$f":"sel_country_code","v":"DEU"},{"$f":"sel_chain","v":"Hydrogen (AEL)"},{"$f":"_calc!$B$1046","v":"MRT"},{"$f":"_calc!$BO$990","v":"COST-FLOW"},{"$f":"_calc!$BS$1","v":"Transportation (Pipeline)"},{"$f":"_calc!$BS$1046","v":1.5509895158354574}]
[{"$f":"_xlfn.TEXTJOIN(\",\",FALSE,output[[#This Row],[scenario]:[process_class]])","v":"PTX-BusinessOpportunityAnalyzer-1.0.9,DEU,Hydrogen (AEL),MRT,COST-FLOW,Transportation (Ship)"},"PTX-BusinessOpportunityAnalyzer-1.0.9",{"$f":"sel_country_code","v":"DEU"},"Hydrogen (AEL)",{"$f":"_calc!$B$1046","v":"MRT"},{"$f":"_calc!$BO$990","v":"COST-FLOW"},{"$f":"_calc!$BT$1","v":"Transportation (Ship)"},{"$f":"_calc!$BT$1046","v":0}]
[{"$f":"_xlfn.TEXTJOIN(\",\",FALSE,output[[#This Row],[scenario]:[process_class]])","v":"PTX-BusinessOpportunityAnalyzer-1.0.9,DEU,Hydrogen (AEL),MRT,COST-FLOW,Carbon"},"PTX-BusinessOpportunityAnalyzer-1.0.9",{"$f":"sel_country_code","v":"DEU"},"Hydrogen (AEL)",{"$f":"_calc!$B$1046","v":"MRT"},{"$f":"_calc!$BO$990","v":"COST-FLOW"},{"$f":"_calc!$BU$1","v":"Carbon"},{"$f":"_calc!$BU$1046","v":0}]
[{"$f":"_xlfn.TEXTJOIN(\",\",FALSE,output[[#This Row],[scenario]:[process_class]])","v":"PTX-BusinessOpportunityAnalyzer-1.0.9,DEU,Hydrogen (AEL),MRT,COST-FLOW,Derivate production"},"PTX-BusinessOpportunityAnalyzer-1.0.9",{"$f":"sel_country_code","v":"DEU"},"Hydrogen (AEL)",{"$f":"_calc!$B$1046","v":"MRT"},{"$f":"_calc!$BO$990","v":"COST-FLOW"},{"$f":"_calc!$BV$1","v":"Derivate production"},{"$f":"_calc!$BV$1046","v":0}]
[{"$f":"_xlfn.TEXTJOIN(\",\",FALSE,output[[#This Row],[scenario]:[process_class]])","v":"PTX-BusinessOpportunityAnalyzer-1.0.9,DEU,Hydrogen (AEL),MRT,COST-FLOW,Heat"},"PTX-BusinessOpportunityAnalyzer-1.0.9",{"$f":"sel_country_code","v":"DEU"},"Hydrogen (AEL)",{"$f":"_calc!$B$1046","v":"MRT"},{"$f":"_calc!$BO$990","v":"COST-FLOW"},{"$f":"_calc!$BW$1","v":"Heat"},{"$f":"_calc!$BW$1046","v":0}]
[{"$f":"_xlfn.TEXTJOIN(\",\",FALSE,output[[#This Row],[scenario]:[process_class]])","v":"PTX-BusinessOpportunityAnalyzer-1.0.9,DEU,Hydrogen (AEL),MRT,COST-FLOW,Electricity and H2 storage"},"PTX-BusinessOpportunityAnalyzer-1.0.9",{"$f":"sel_country_code","v":"DEU"},"Hydrogen (AEL)",{"$f":"_calc!$B$1046","v":"MRT"},{"$f":"_calc!$BO$990","v":"COST-FLOW"},{"$f":"_calc!$BX$1","v":"Electricity and H2 storage"},{"$f":"_calc!$BX$1046","v":0}]
[{"$f":"_xlfn.TEXTJOIN(\",\",FALSE,output[[#This Row],[scenario]:[process_class]])","v":"PTX-BusinessOpportunityAnalyzer-1.0.9,DEU,Hydrogen (AEL),NAM,COST-FLOW,Water"},"PTX-BusinessOpportunityAnalyzer-1.0.9",{"$f":"sel_country_code","v":"DEU"},"Hydrogen (AEL)",{"$f":"_calc!$B$1047","v":"NAM"},{"$f":"_calc!$BO$990","v":"COST-FLOW"},{"$f":"_calc!$BP$1","v":"Water"},{"$f":"_calc!$BP$1047","v":8.4756671930484612E-2}]
[{"$f":"_xlfn.TEXTJOIN(\",\",FALSE,output[[#This Row],[scenario]:[process_class]])","v":"PTX-BusinessOpportunityAnalyzer-1.0.9,DEU,Hydrogen (AEL),NAM,COST-FLOW,Electrolysis"},"PTX-BusinessOpportunityAnalyzer-1.0.9",{"$f":"sel_country_code","v":"DEU"},"Hydrogen (AEL)",{"$f":"_calc!$B$1047","v":"NAM"},{"$f":"_calc!$BO$990","v":"COST-FLOW"},{"$f":"_calc!$BQ$1","v":"Electrolysis"},{"$f":"_calc!$BQ$1047","v":0}]
[{"$f":"_xlfn.TEXTJOIN(\",\",FALSE,output[[#This Row],[scenario]:[process_class]])","v":"PTX-BusinessOpportunityAnalyzer-1.0.9,DEU,Hydrogen (AEL),NAM,COST-FLOW,Electricity generation"},"PTX-BusinessOpportunityAnalyzer-1.0.9",{"$f":"sel_country_code","v":"DEU"},"Hydrogen (AEL)",{"$f":"_calc!$B$1047","v":"NAM"},{"$f":"_calc!$BO$990","v":"COST-FLOW"},{"$f":"_calc!$BR$1","v":"Electricity generation"},{"$f":"_calc!$BR$1047","v":0}]
[{"$f":"_xlfn.TEXTJOIN(\",\",FALSE,output[[#This Row],[scenario]:[process_class]])","v":"PTX-BusinessOpportunityAnalyzer-1.0.9,DEU,Hydrogen (AEL),NAM,COST-FLOW,Transportation (Pipeline)"},"PTX-BusinessOpportunityAnalyzer-1.0.9",{"$f":"sel_country_code","v":"DEU"},"Hydrogen (AEL)",{"$f":"_calc!$B$1047","v":"NAM"},{"$f":"_calc!$BO$990","v":"COST-FLOW"},{"$f":"_calc!$BS$1","v":"Transportation (Pipeline)"},{"$f":"_calc!$BS$1047","v":0}]
[{"$f":"_xlfn.TEXTJOIN(\",\",FALSE,output[[#This Row],[scenario]:[process_class]])","v":"PTX-BusinessOpportunityAnalyzer-1.0.9,DEU,Hydrogen (AEL),NAM,COST-FLOW,Transportation (Ship)"},"PTX-BusinessOpportunityAnalyzer-1.0.9",{"$f":"sel_country_code","v":"DEU"},"Hydrogen (AEL)",{"$f":"_calc!$B$1047","v":"NAM"},{"$f":"_calc!$BO$990","v":"COST-FLOW"},{"$f":"_calc!$BT$1","v":"Transportation (Ship)"},{"$f":"_calc!$BT$1047","v":28.261644525003195}]
[{"$f":"_xlfn.TEXTJOIN(\",\",FALSE,output[[#This Row],[scenario]:[process_class]])","v":"PTX-BusinessOpportunityAnalyzer-1.0.9,DEU,Hydrogen (AEL),NAM,COST-FLOW,Carbon"},"PTX-BusinessOpportunityAnalyzer-1.0.9",{"$f":"sel_country_code","v":"DEU"},"Hydrogen (AEL)",{"$f":"_calc!$B$1047","v":"NAM"},{"$f":"_calc!$BO$990","v":"COST-FLOW"},{"$f":"_calc!$BU$1","v":"Carbon"},{"$f":"_calc!$BU$1047","v":0}]
[{"$f":"_xlfn.TEXTJOIN(\",\",FALSE,output[[#This Row],[scenario]:[process_class]])","v":"PTX-BusinessOpportunityAnalyzer-1.0.9,DEU,Hydrogen (AEL),NAM,COST-FLOW,Derivate production"},"PTX-BusinessOpportunityAnalyzer-1.0.9",{"$f":"sel_country_code","v":"DEU"},"Hydrogen (AEL)",{"$f":"_calc!$B$1047","v":"NAM"},{"$f":"_calc!$BO$990","v":"COST-FLOW"},{"$f":"_calc!$BV$1","v":"Derivate production"},{"$f":"_calc!$BV$1047","v":0}]
[{"$f":"_xlfn.TEXTJOIN(\",\",FALSE,output[[#This Row],[scenario]:[process_class]])","v":"PTX-BusinessOpportunityAnalyzer-1.0.9,DEU,Hydrogen (AEL),NAM,COST-FLOW,Heat"},"PTX-BusinessOpportunityAnalyzer-1.0.9",{"$f":"sel_country_code","v":"DEU"},"Hydrogen (AEL)",{"$f":"_calc!$B$1047","v":"NAM"},{"$f":"_calc!$BO$990","v":"COST-FLOW"},{"$f":"_calc!$BW$1","v":"Heat"},{"$f":"_calc!$BW$1047","v":0}]
[{"$f":"_xlfn.TEXTJOIN(\",\",FALSE,output[[#This Row],[scenario]:[process_class]])","v":"PTX-BusinessOpportunityAnalyzer-1.0.9,DEU,Hydrogen (AEL),NAM,COST-FLOW,Electricity and H2 storage"},"PTX-BusinessOpportunityAnalyzer-1.0.9",{"$f":"sel_country_code","v":"DEU"},"Hydrogen (AEL)",{"$f":"_calc!$B$1047","v":"NAM"},{"$f":"_calc!$BO$990","v":"COST-FLOW"},{"$f":"_calc!$BX$1","v":"Electricity and H2 storage"},{"$f":"_calc!$BX$1047","v":0}]
[{"$f":"_xlfn.TEXTJOIN(\",\",FALSE,output[[#This Row],[scenario]:[process_class]])","v":"PTX-BusinessOpportunityAnalyzer-1.0.9,DEU,Hydrogen (AEL),NOR,COST-FLOW,Water"},"PTX-BusinessOpportunityAnalyzer-1.0.9",{"$f":"sel_country_code","v":"DEU"},"Hydrogen (AEL)",{"$f":"_calc!$B$1048","v":"NOR"},{"$f":"_calc!$BO$990","v":"COST-FLOW"},{"$f":"_calc!$BP$1","v":"Water"},{"$f":"_calc!$BP$1048","v":6.4452068780045071E-2}]
[{"$f":"_xlfn.TEXTJOIN(\",\",FALSE,output[[#This Row],[scenario]:[process_class]])","v":"PTX-BusinessOpportunityAnalyzer-1.0.9,DEU,Hydrogen (AEL),NOR,COST-FLOW,Electrolysis"},"PTX-BusinessOpportunityAnalyzer-1.0.9",{"$f":"sel_country_code","v":"DEU"},"Hydrogen (AEL)",{"$f":"_calc!$B$1048","v":"NOR"},{"$f":"_calc!$BO$990","v":"COST-FLOW"},{"$f":"_calc!$BQ$1","v":"Electrolysis"},{"$f":"_calc!$BQ$1048","v":0}]
[{"$f":"_xlfn.TEXTJOIN(\",\",FALSE,output[[#This Row],[scenario]:[process_class]])","v":"PTX-BusinessOpportunityAnalyzer-1.0.9,DEU,Hydrogen (AEL),NOR,COST-FLOW,Electricity generation"},"PTX-BusinessOpportunityAnalyzer-1.0.9",{"$f":"sel_country_code","v":"DEU"},"Hydrogen (AEL)",{"$f":"_calc!$B$1048","v":"NOR"},{"$f":"_calc!$BO$990","v":"COST-FLOW"},{"$f":"_calc!$BR$1","v":"Electricity generation"},{"$f":"_calc!$BR$1048","v":0}]
[{"$f":"_xlfn.TEXTJOIN(\",\",FALSE,output[[#This Row],[scenario]:[process_class]])","v":"PTX-BusinessOpportunityAnalyzer-1.0.9,DEU,Hydrogen (AEL),NOR,COST-FLOW,Transportation (Pipeline)"},"PTX-BusinessOpportunityAnalyzer-1.0.9",{"$f":"sel_country_code","v":"DEU"},"Hydrogen (AEL)",{"$f":"_calc!$B$1048","v":"NOR"},{"$f":"_calc!$BO$990","v":"COST-FLOW"},{"$f":"_calc!$BS$1","v":"Transportation (Pipeline)"},{"$f":"_calc!$BS$1048","v":1.4322681951121123}]
[{"$f":"_xlfn.TEXTJOIN(\",\",FALSE,output[[#This Row],[scenario]:[process_class]])","v":"PTX-BusinessOpportunityAnalyzer-1.0.9,DEU,Hydrogen (AEL),NOR,COST-FLOW,Transportation (Ship)"},"PTX-BusinessOpportunityAnalyzer-1.0.9",{"$f":"sel_country_code","v":"DEU"},"Hydrogen (AEL)",{"$f":"_calc!$B$1048","v":"NOR"},{"$f":"_calc!$BO$990","v":"COST-FLOW"},{"$f":"_calc!$BT$1","v":"Transportation (Ship)"},{"$f":"_calc!$BT$1048","v":0}]
[{"$f":"_xlfn.TEXTJOIN(\",\",FALSE,output[[#This Row],[scenario]:[process_class]])","v":"PTX-BusinessOpportunityAnalyzer-1.0.9,DEU,Hydrogen (AEL),NOR,COST-FLOW,Carbon"},"PTX-BusinessOpportunityAnalyzer-1.0.9",{"$f":"sel_country_code","v":"DEU"},"Hydrogen (AEL)",{"$f":"_calc!$B$1048","v":"NOR"},{"$f":"_calc!$BO$990","v":"COST-FLOW"},{"$f":"_calc!$BU$1","v":"Carbon"},{"$f":"_calc!$BU$1048","v":0}]
[{"$f":"_xlfn.TEXTJOIN(\",\",FALSE,output[[#This Row],[scenario]:[process_class]])","v":"PTX-BusinessOpportunityAnalyzer-1.0.9,DEU,Hydrogen (AEL),NOR,COST-FLOW,Derivate production"},"PTX-BusinessOpportunityAnalyzer-1.0.9",{"$f":"sel_country_code","v":"DEU"},"Hydrogen (AEL)",{"$f":"_calc!$B$1048","v":"NOR"},{"$f":"_calc!$BO$990","v":"COST-FLOW"},{"$f":"_calc!$BV$1","v":"Derivate production"},{"$f":"_calc!$BV$1048","v":0}]
[{"$f":"_xlfn.TEXTJOIN(\",\",FALSE,output[[#This Row],[scenario]:[process_class]])","v":"PTX-BusinessOpportunityAnalyzer-1.0.9,DEU,Hydrogen (AEL),NOR,COST-FLOW,Heat"},"PTX-BusinessOpportunityAnalyzer-1.0.9",{"$f":"sel_country_code","v":"DEU"},"Hydrogen (AEL)",{"$f":"_calc!$B$1048","v":"NOR"},{"$f":"_calc!$BO$990","v":"COST-FLOW"},{"$f":"_calc!$BW$1","v":"Heat"},{"$f":"_calc!$BW$1048","v":0}]
[{"$f":"_xlfn.TEXTJOIN(\",\",FALSE,output[[#This Row],[scenario]:[process_class]])","v":"PTX-BusinessOpportunityAnalyzer-1.0.9,DEU,Hydrogen (AEL),NOR,COST-FLOW,Electricity and H2 storage"},"PTX-BusinessOpportunityAnalyzer-1.0.9",{"$f":"sel_country_code","v":"DEU"},"Hydrogen (AEL)",{"$f":"_calc!$B$1048","v":"NOR"},{"$f":"_calc!$BO$990","v":"COST-FLOW"},{"$f":"_calc!$BX$1","v":"Electricity and H2 storage"},{"$f":"_calc!$BX$1048","v":0}]
[{"$f":"_xlfn.TEXTJOIN(\",\",FALSE,output[[#This Row],[scenario]:[process_class]])","v":"PTX-BusinessOpportunityAnalyzer-1.0.9,DEU,Hydrogen (AEL),PER,COST-FLOW,Water"},"PTX-BusinessOpportunityAnalyzer-1.0.9",{"$f":"sel_country_code","v":"DEU"},"Hydrogen (AEL)",{"$f":"_calc!$B$1049","v":"PER"},{"$f":"_calc!$BO$990","v":"COST-FLOW"},{"$f":"_calc!$BP$1","v":"Water"},{"$f":"_calc!$BP$1049","v":8.6135489297187298E-2}]
[{"$f":"_xlfn.TEXTJOIN(\",\",FALSE,output[[#This Row],[scenario]:[process_class]])","v":"PTX-BusinessOpportunityAnalyzer-1.0.9,DEU,Hydrogen (AEL),PER,COST-FLOW,Electrolysis"},"PTX-BusinessOpportunityAnalyzer-1.0.9",{"$f":"sel_country_code","v":"DEU"},"Hydrogen (AEL)",{"$f":"_calc!$B$1049","v":"PER"},{"$f":"_calc!$BO$990","v":"COST-FLOW"},{"$f":"_calc!$BQ$1","v":"Electrolysis"},{"$f":"_calc!$BQ$1049","v":0}]
[{"$f":"_xlfn.TEXTJOIN(\",\",FALSE,output[[#This Row],[scenario]:[process_class]])","v":"PTX-BusinessOpportunityAnalyzer-1.0.9,DEU,Hydrogen (AEL),PER,COST-FLOW,Electricity generation"},"PTX-BusinessOpportunityAnalyzer-1.0.9",{"$f":"sel_country_code","v":"DEU"},"Hydrogen (AEL)",{"$f":"_calc!$B$1049","v":"PER"},{"$f":"_calc!$BO$990","v":"COST-FLOW"},{"$f":"_calc!$BR$1","v":"Electricity generation"},{"$f":"_calc!$BR$1049","v":0}]
[{"$f":"_xlfn.TEXTJOIN(\",\",FALSE,output[[#This Row],[scenario]:[process_class]])","v":"PTX-BusinessOpportunityAnalyzer-1.0.9,DEU,Hydrogen (AEL),PER,COST-FLOW,Transportation (Pipeline)"},"PTX-BusinessOpportunityAnalyzer-1.0.9",{"$f":"sel_country_code","v":"DEU"},"Hydrogen (AEL)",{"$f":"_calc!$B$1049","v":"PER"},{"$f":"_calc!$BO$990","v":"COST-FLOW"},{"$f":"_calc!$BS$1","v":"Transportation (Pipeline)"},{"$f":"_calc!$BS$1049","v":0}]
[{"$f":"_xlfn.TEXTJOIN(\",\",FALSE,output[[#This Row],[scenario]:[process_class]])","v":"PTX-BusinessOpportunityAnalyzer-1.0.9,DEU,Hydrogen (AEL),PER,COST-FLOW,Transportation (Ship)"},"PTX-BusinessOpportunityAnalyzer-1.0.9",{"$f":"sel_country_code","v":"DEU"},"Hydrogen (AEL)",{"$f":"_calc!$B$1049","v":"PER"},{"$f":"_calc!$BO$990","v":"COST-FLOW"},{"$f":"_calc!$BT$1","v":"Transportation (Ship)"},{"$f":"_calc!$BT$1049","v":28.721403566918063}]
[{"$f":"_xlfn.TEXTJOIN(\",\",FALSE,output[[#This Row],[scenario]:[process_class]])","v":"PTX-BusinessOpportunityAnalyzer-1.0.9,DEU,Hydrogen (AEL),PER,COST-FLOW,Carbon"},"PTX-BusinessOpportunityAnalyzer-1.0.9",{"$f":"sel_country_code","v":"DEU"},"Hydrogen (AEL)",{"$f":"_calc!$B$1049","v":"PER"},{"$f":"_calc!$BO$990","v":"COST-FLOW"},{"$f":"_calc!$BU$1","v":"Carbon"},{"$f":"_calc!$BU$1049","v":0}]
[{"$f":"_xlfn.TEXTJOIN(\",\",FALSE,output[[#This Row],[scenario]:[process_class]])","v":"PTX-BusinessOpportunityAnalyzer-1.0.9,DEU,Hydrogen (AEL),PER,COST-FLOW,Derivate production"},"PTX-BusinessOpportunityAnalyzer-1.0.9",{"$f":"sel_country_code","v":"DEU"},"Hydrogen (AEL)",{"$f":"_calc!$B$1049","v":"PER"},{"$f":"_calc!$BO$990","v":"COST-FLOW"},{"$f":"_calc!$BV$1","v":"Derivate production"},{"$f":"_calc!$BV$1049","v":0}]
[{"$f":"_xlfn.TEXTJOIN(\",\",FALSE,output[[#This Row],[scenario]:[process_class]])","v":"PTX-BusinessOpportunityAnalyzer-1.0.9,DEU,Hydrogen (AEL),PER,COST-FLOW,Heat"},"PTX-BusinessOpportunityAnalyzer-1.0.9",{"$f":"sel_country_code","v":"DEU"},"Hydrogen (AEL)",{"$f":"_calc!$B$1049","v":"PER"},{"$f":"_calc!$BO$990","v":"COST-FLOW"},{"$f":"_calc!$BW$1","v":"Heat"},{"$f":"_calc!$BW$1049","v":0}]
[{"$f":"_xlfn.TEXTJOIN(\",\",FALSE,output[[#This Row],[scenario]:[process_class]])","v":"PTX-BusinessOpportunityAnalyzer-1.0.9,DEU,Hydrogen (AEL),PER,COST-FLOW,Electricity and H2 storage"},"PTX-BusinessOpportunityAnalyzer-1.0.9",{"$f":"sel_country_code","v":"DEU"},"Hydrogen (AEL)",{"$f":"_calc!$B$1049","v":"PER"},{"$f":"_calc!$BO$990","v":"COST-FLOW"},{"$f":"_calc!$BX$1","v":"Electricity and H2 storage"},{"$f":"_calc!$BX$1049","v":0}]
[{"$f":"_xlfn.TEXTJOIN(\",\",FALSE,output[[#This Row],[scenario]:[process_class]])","v":"PTX-BusinessOpportunityAnalyzer-1.0.9,DEU,Hydrogen (AEL),PRT,COST-FLOW,Water"},"PTX-BusinessOpportunityAnalyzer-1.0.9",{"$f":"sel_country_code","v":"DEU"},"Hydrogen (AEL)",{"$f":"_calc!$B$1050","v":"PRT"},{"$f":"_calc!$BO$990","v":"COST-FLOW"},{"$f":"_calc!$BP$1","v":"Water"},{"$f":"_calc!$BP$1050","v":6.6139633296536521E-2}]
[{"$f":"_xlfn.TEXTJOIN(\",\",FALSE,output[[#This Row],[scenario]:[process_class]])","v":"PTX-BusinessOpportunityAnalyzer-1.0.9,DEU,Hydrogen (AEL),PRT,COST-FLOW,Electrolysis"},"PTX-BusinessOpportunityAnalyzer-1.0.9",{"$f":"sel_country_code","v":"DEU"},"Hydrogen (AEL)",{"$f":"_calc!$B$1050","v":"PRT"},{"$f":"_calc!$BO$990","v":"COST-FLOW"},{"$f":"_calc!$BQ$1","v":"Electrolysis"},{"$f":"_calc!$BQ$1050","v":0}]
[{"$f":"_xlfn.TEXTJOIN(\",\",FALSE,output[[#This Row],[scenario]:[process_class]])","v":"PTX-BusinessOpportunityAnalyzer-1.0.9,DEU,Hydrogen (AEL),PRT,COST-FLOW,Electricity generation"},"PTX-BusinessOpportunityAnalyzer-1.0.9",{"$f":"sel_country_code","v":"DEU"},"Hydrogen (AEL)",{"$f":"_calc!$B$1050","v":"PRT"},{"$f":"_calc!$BO$990","v":"COST-FLOW"},{"$f":"_calc!$BR$1","v":"Electricity generation"},{"$f":"_calc!$BR$1050","v":0}]
[{"$f":"_xlfn.TEXTJOIN(\",\",FALSE,output[[#This Row],[scenario]:[process_class]])","v":"PTX-BusinessOpportunityAnalyzer-1.0.9,DEU,Hydrogen (AEL),PRT,COST-FLOW,Transportation (Pipeline)"},"PTX-BusinessOpportunityAnalyzer-1.0.9",{"$f":"sel_country_code","v":"DEU"},"Hydrogen (AEL)",{"$f":"_calc!$B$1050","v":"PRT"},{"$f":"_calc!$BO$990","v":"COST-FLOW"},{"$f":"_calc!$BS$1","v":"Transportation (Pipeline)"},{"$f":"_calc!$BS$1050","v":1.4697696288119224}]
[{"$f":"_xlfn.TEXTJOIN(\",\",FALSE,output[[#This Row],[scenario]:[process_class]])","v":"PTX-BusinessOpportunityAnalyzer-1.0.9,DEU,Hydrogen (AEL),PRT,COST-FLOW,Transportation (Ship)"},"PTX-BusinessOpportunityAnalyzer-1.0.9",{"$f":"sel_country_code","v":"DEU"},"Hydrogen (AEL)",{"$f":"_calc!$B$1050","v":"PRT"},{"$f":"_calc!$BO$990","v":"COST-FLOW"},{"$f":"_calc!$BT$1","v":"Transportation (Ship)"},{"$f":"_calc!$BT$1050","v":0}]
[{"$f":"_xlfn.TEXTJOIN(\",\",FALSE,output[[#This Row],[scenario]:[process_class]])","v":"PTX-BusinessOpportunityAnalyzer-1.0.9,DEU,Hydrogen (AEL),PRT,COST-FLOW,Carbon"},"PTX-BusinessOpportunityAnalyzer-1.0.9",{"$f":"sel_country_code","v":"DEU"},"Hydrogen (AEL)",{"$f":"_calc!$B$1050","v":"PRT"},{"$f":"_calc!$BO$990","v":"COST-FLOW"},{"$f":"_calc!$BU$1","v":"Carbon"},{"$f":"_calc!$BU$1050","v":0}]
[{"$f":"_xlfn.TEXTJOIN(\",\",FALSE,output[[#This Row],[scenario]:[process_class]])","v":"PTX-BusinessOpportunityAnalyzer-1.0.9,DEU,Hydrogen (AEL),PRT,COST-FLOW,Derivate production"},"PTX-BusinessOpportunityAnalyzer-1.0.9",{"$f":"sel_country_code","v":"DEU"},"Hydrogen (AEL)",{"$f":"_calc!$B$1050","v":"PRT"},{"$f":"_calc!$BO$990","v":"COST-FLOW"},{"$f":"_calc!$BV$1","v":"Derivate production"},{"$f":"_calc!$BV$1050","v":0}]
[{"$f":"_xlfn.TEXTJOIN(\",\",FALSE,output[[#This Row],[scenario]:[process_class]])","v":"PTX-BusinessOpportunityAnalyzer-1.0.9,DEU,Hydrogen (AEL),PRT,COST-FLOW,Heat"},"PTX-BusinessOpportunityAnalyzer-1.0.9",{"$f":"sel_country_code","v":"DEU"},"Hydrogen (AEL)",{"$f":"_calc!$B$1050","v":"PRT"},{"$f":"_calc!$BO$990","v":"COST-FLOW"},{"$f":"_calc!$BW$1","v":"Heat"},{"$f":"_calc!$BW$1050","v":0}]
[{"$f":"_xlfn.TEXTJOIN(\",\",FALSE,output[[#This Row],[scenario]:[process_class]])","v":"PTX-BusinessOpportunityAnalyzer-1.0.9,DEU,Hydrogen (AEL),PRT,COST-FLOW,Electricity and H2 storage"},"PTX-BusinessOpportunityAnalyzer-1.0.9",{"$f":"sel_country_code","v":"DEU"},"Hydrogen (AEL)",{"$f":"_calc!$B$1050","v":"PRT"},{"$f":"_calc!$BO$990","v":"COST-FLOW"},{"$f":"_calc!$BX$1","v":"Electricity and H2 storage"},{"$f":"_calc!$BX$1050","v":0}]
[{"$f":"_xlfn.TEXTJOIN(\",\",FALSE,output[[#This Row],[scenario]:[process_class]])","v":"PTX-BusinessOpportunityAnalyzer-1.0.9,DEU,Hydrogen (AEL),RUS,COST-FLOW,Water"},"PTX-BusinessOpportunityAnalyzer-1.0.9",{"$f":"sel_country_code","v":"DEU"},"Hydrogen (AEL)",{"$f":"_calc!$B$1051","v":"RUS"},{"$f":"_calc!$BO$990","v":"COST-FLOW"},{"$f":"_calc!$BP$1","v":"Water"},{"$f":"_calc!$BP$1051","v":6.5004939648742127E-2}]
[{"$f":"_xlfn.TEXTJOIN(\",\",FALSE,output[[#This Row],[scenario]:[process_class]])","v":"PTX-BusinessOpportunityAnalyzer-1.0.9,DEU,Hydrogen (AEL),RUS,COST-FLOW,Electrolysis"},"PTX-BusinessOpportunityAnalyzer-1.0.9",{"$f":"sel_country_code","v":"DEU"},"Hydrogen (AEL)",{"$f":"_calc!$B$1051","v":"RUS"},{"$f":"_calc!$BO$990","v":"COST-FLOW"},{"$f":"_calc!$BQ$1","v":"Electrolysis"},{"$f":"_calc!$BQ$1051","v":0}]
[{"$f":"_xlfn.TEXTJOIN(\",\",FALSE,output[[#This Row],[scenario]:[process_class]])","v":"PTX-BusinessOpportunityAnalyzer-1.0.9,DEU,Hydrogen (AEL),RUS,COST-FLOW,Electricity generation"},"PTX-BusinessOpportunityAnalyzer-1.0.9",{"$f":"sel_country_code","v":"DEU"},"Hydrogen (AEL)",{"$f":"_calc!$B$1051","v":"RUS"},{"$f":"_calc!$BO$990","v":"COST-FLOW"},{"$f":"_calc!$BR$1","v":"Electricity generation"},{"$f":"_calc!$BR$1051","v":0}]
[{"$f":"_xlfn.TEXTJOIN(\",\",FALSE,output[[#This Row],[scenario]:[process_class]])","v":"PTX-BusinessOpportunityAnalyzer-1.0.9,DEU,Hydrogen (AEL),RUS,COST-FLOW,Transportation (Pipeline)"},"PTX-BusinessOpportunityAnalyzer-1.0.9",{"$f":"sel_country_code","v":"DEU"},"Hydrogen (AEL)",{"$f":"_calc!$B$1051","v":"RUS"},{"$f":"_calc!$BO$990","v":"COST-FLOW"},{"$f":"_calc!$BS$1","v":"Transportation (Pipeline)"},{"$f":"_calc!$BS$1051","v":1.4445542144164918}]
[{"$f":"_xlfn.TEXTJOIN(\",\",FALSE,output[[#This Row],[scenario]:[process_class]])","v":"PTX-BusinessOpportunityAnalyzer-1.0.9,DEU,Hydrogen (AEL),RUS,COST-FLOW,Transportation (Ship)"},"PTX-BusinessOpportunityAnalyzer-1.0.9",{"$f":"sel_country_code","v":"DEU"},"Hydrogen (AEL)",{"$f":"_calc!$B$1051","v":"RUS"},{"$f":"_calc!$BO$990","v":"COST-FLOW"},{"$f":"_calc!$BT$1","v":"Transportation (Ship)"},{"$f":"_calc!$BT$1051","v":0}]
[{"$f":"_xlfn.TEXTJOIN(\",\",FALSE,output[[#This Row],[scenario]:[process_class]])","v":"PTX-BusinessOpportunityAnalyzer-1.0.9,DEU,Hydrogen (AEL),RUS,COST-FLOW,Carbon"},"PTX-BusinessOpportunityAnalyzer-1.0.9",{"$f":"sel_country_code","v":"DEU"},"Hydrogen (AEL)",{"$f":"_calc!$B$1051","v":"RUS"},{"$f":"_calc!$BO$990","v":"COST-FLOW"},{"$f":"_calc!$BU$1","v":"Carbon"},{"$f":"_calc!$BU$1051","v":0}]
[{"$f":"_xlfn.TEXTJOIN(\",\",FALSE,output[[#This Row],[scenario]:[process_class]])","v":"PTX-BusinessOpportunityAnalyzer-1.0.9,DEU,Hydrogen (AEL),RUS,COST-FLOW,Derivate production"},"PTX-BusinessOpportunityAnalyzer-1.0.9",{"$f":"sel_country_code","v":"DEU"},"Hydrogen (AEL)",{"$f":"_calc!$B$1051","v":"RUS"},{"$f":"_calc!$BO$990","v":"COST-FLOW"},{"$f":"_calc!$BV$1","v":"Derivate production"},{"$f":"_calc!$BV$1051","v":0}]
[{"$f":"_xlfn.TEXTJOIN(\",\",FALSE,output[[#This Row],[scenario]:[process_class]])","v":"PTX-BusinessOpportunityAnalyzer-1.0.9,DEU,Hydrogen (AEL),RUS,COST-FLOW,Heat"},"PTX-BusinessOpportunityAnalyzer-1.0.9",{"$f":"sel_country_code","v":"DEU"},"Hydrogen (AEL)",{"$f":"_calc!$B$1051","v":"RUS"},{"$f":"_calc!$BO$990","v":"COST-FLOW"},{"$f":"_calc!$BW$1","v":"Heat"},{"$f":"_calc!$BW$1051","v":0}]
[{"$f":"_xlfn.TEXTJOIN(\",\",FALSE,output[[#This Row],[scenario]:[process_class]])","v":"PTX-BusinessOpportunityAnalyzer-1.0.9,DEU,Hydrogen (AEL),RUS,COST-FLOW,Electricity and H2 storage"},"PTX-BusinessOpportunityAnalyzer-1.0.9",{"$f":"sel_country_code","v":"DEU"},"Hydrogen (AEL)",{"$f":"_calc!$B$1051","v":"RUS"},{"$f":"_calc!$BO$990","v":"COST-FLOW"},{"$f":"_calc!$BX$1","v":"Electricity and H2 storage"},{"$f":"_calc!$BX$1051","v":0}]
[{"$f":"_xlfn.TEXTJOIN(\",\",FALSE,output[[#This Row],[scenario]:[process_class]])","v":"PTX-BusinessOpportunityAnalyzer-1.0.9,DEU,Hydrogen (AEL),SAU,COST-FLOW,Water"},"PTX-BusinessOpportunityAnalyzer-1.0.9",{"$f":"sel_country_code","v":"DEU"},"Hydrogen (AEL)",{"$f":"_calc!$B$1052","v":"SAU"},{"$f":"_calc!$BO$990","v":"COST-FLOW"},{"$f":"_calc!$BP$1","v":"Water"},{"$f":"_calc!$BP$1052","v":6.9157583594849054E-2}]
[{"$f":"_xlfn.TEXTJOIN(\",\",FALSE,output[[#This Row],[scenario]:[process_class]])","v":"PTX-BusinessOpportunityAnalyzer-1.0.9,DEU,Hydrogen (AEL),SAU,COST-FLOW,Electrolysis"},"PTX-BusinessOpportunityAnalyzer-1.0.9",{"$f":"sel_country_code","v":"DEU"},"Hydrogen (AEL)",{"$f":"_calc!$B$1052","v":"SAU"},{"$f":"_calc!$BO$990","v":"COST-FLOW"},{"$f":"_calc!$BQ$1","v":"Electrolysis"},{"$f":"_calc!$BQ$1052","v":0}]
[{"$f":"_xlfn.TEXTJOIN(\",\",FALSE,output[[#This Row],[scenario]:[process_class]])","v":"PTX-BusinessOpportunityAnalyzer-1.0.9,DEU,Hydrogen (AEL),SAU,COST-FLOW,Electricity generation"},"PTX-BusinessOpportunityAnalyzer-1.0.9",{"$f":"sel_country_code","v":"DEU"},"Hydrogen (AEL)",{"$f":"_calc!$B$1052","v":"SAU"},{"$f":"_calc!$BO$990","v":"COST-FLOW"},{"$f":"_calc!$BR$1","v":"Electricity generation"},{"$f":"_calc!$BR$1052","v":0}]
[{"$f":"_xlfn.TEXTJOIN(\",\",FALSE,output[[#This Row],[scenario]:[process_class]])","v":"PTX-BusinessOpportunityAnalyzer-1.0.9,DEU,Hydrogen (AEL),SAU,COST-FLOW,Transportation (Pipeline)"},"PTX-BusinessOpportunityAnalyzer-1.0.9",{"$f":"sel_country_code","v":"DEU"},"Hydrogen (AEL)",{"$f":"_calc!$B$1052","v":"SAU"},{"$f":"_calc!$BO$990","v":"COST-FLOW"},{"$f":"_calc!$BS$1","v":"Transportation (Pipeline)"},{"$f":"_calc!$BS$1052","v":1.5368351909966456}]
[{"$f":"_xlfn.TEXTJOIN(\",\",FALSE,output[[#This Row],[scenario]:[process_class]])","v":"PTX-BusinessOpportunityAnalyzer-1.0.9,DEU,Hydrogen (AEL),SAU,COST-FLOW,Transportation (Ship)"},"PTX-BusinessOpportunityAnalyzer-1.0.9",{"$f":"sel_country_code","v":"DEU"},"Hydrogen (AEL)",{"$f":"_calc!$B$1052","v":"SAU"},{"$f":"_calc!$BO$990","v":"COST-FLOW"},{"$f":"_calc!$BT$1","v":"Transportation (Ship)"},{"$f":"_calc!$BT$1052","v":0}]
[{"$f":"_xlfn.TEXTJOIN(\",\",FALSE,output[[#This Row],[scenario]:[process_class]])","v":"PTX-BusinessOpportunityAnalyzer-1.0.9,DEU,Hydrogen (AEL),SAU,COST-FLOW,Carbon"},"PTX-BusinessOpportunityAnalyzer-1.0.9",{"$f":"sel_country_code","v":"DEU"},"Hydrogen (AEL)",{"$f":"_calc!$B$1052","v":"SAU"},{"$f":"_calc!$BO$990","v":"COST-FLOW"},{"$f":"_calc!$BU$1","v":"Carbon"},{"$f":"_calc!$BU$1052","v":0}]
[{"$f":"_xlfn.TEXTJOIN(\",\",FALSE,output[[#This Row],[scenario]:[process_class]])","v":"PTX-BusinessOpportunityAnalyzer-1.0.9,DEU,Hydrogen (AEL),SAU,COST-FLOW,Derivate production"},"PTX-BusinessOpportunityAnalyzer-1.0.9",{"$f":"sel_country_code","v":"DEU"},"Hydrogen (AEL)",{"$f":"_calc!$B$1052","v":"SAU"},{"$f":"_calc!$BO$990","v":"COST-FLOW"},{"$f":"_calc!$BV$1","v":"Derivate production"},{"$f":"_calc!$BV$1052","v":0}]
[{"$f":"_xlfn.TEXTJOIN(\",\",FALSE,output[[#This Row],[scenario]:[process_class]])","v":"PTX-BusinessOpportunityAnalyzer-1.0.9,DEU,Hydrogen (AEL),SAU,COST-FLOW,Heat"},"PTX-BusinessOpportunityAnalyzer-1.0.9",{"$f":"sel_country_code","v":"DEU"},"Hydrogen (AEL)",{"$f":"_calc!$B$1052","v":"SAU"},{"$f":"_calc!$BO$990","v":"COST-FLOW"},{"$f":"_calc!$BW$1","v":"Heat"},{"$f":"_calc!$BW$1052","v":0}]
[{"$f":"_xlfn.TEXTJOIN(\",\",FALSE,output[[#This Row],[scenario]:[process_class]])","v":"PTX-BusinessOpportunityAnalyzer-1.0.9,DEU,Hydrogen (AEL),SAU,COST-FLOW,Electricity and H2 storage"},"PTX-BusinessOpportunityAnalyzer-1.0.9",{"$f":"sel_country_code","v":"DEU"},"Hydrogen (AEL)",{"$f":"_calc!$B$1052","v":"SAU"},{"$f":"_calc!$BO$990","v":"COST-FLOW"},{"$f":"_calc!$BX$1","v":"Electricity and H2 storage"},{"$f":"_calc!$BX$1052","v":0}]
[{"$f":"_xlfn.TEXTJOIN(\",\",FALSE,output[[#This Row],[scenario]:[process_class]])","v":"PTX-BusinessOpportunityAnalyzer-1.0.9,DEU,Hydrogen (AEL),SWE,COST-FLOW,Water"},"PTX-BusinessOpportunityAnalyzer-1.0.9",{"$f":"sel_country_code","v":"DEU"},"Hydrogen (AEL)",{"$f":"_calc!$B$1053","v":"SWE"},{"$f":"_calc!$BO$990","v":"COST-FLOW"},{"$f":"_calc!$BP$1","v":"Water"},{"$f":"_calc!$BP$1053","v":6.5000989755411576E-2}]
[{"$f":"_xlfn.TEXTJOIN(\",\",FALSE,output[[#This Row],[scenario]:[process_class]])","v":"PTX-BusinessOpportunityAnalyzer-1.0.9,DEU,Hydrogen (AEL),SWE,COST-FLOW,Electrolysis"},"PTX-BusinessOpportunityAnalyzer-1.0.9",{"$f":"sel_country_code","v":"DEU"},"Hydrogen (AEL)",{"$f":"_calc!$B$1053","v":"SWE"},{"$f":"_calc!$BO$990","v":"COST-FLOW"},{"$f":"_calc!$BQ$1","v":"Electrolysis"},{"$f":"_calc!$BQ$1053","v":0}]
[{"$f":"_xlfn.TEXTJOIN(\",\",FALSE,output[[#This Row],[scenario]:[process_class]])","v":"PTX-BusinessOpportunityAnalyzer-1.0.9,DEU,Hydrogen (AEL),SWE,COST-FLOW,Electricity generation"},"PTX-BusinessOpportunityAnalyzer-1.0.9",{"$f":"sel_country_code","v":"DEU"},"Hydrogen (AEL)",{"$f":"_calc!$B$1053","v":"SWE"},{"$f":"_calc!$BO$990","v":"COST-FLOW"},{"$f":"_calc!$BR$1","v":"Electricity generation"},{"$f":"_calc!$BR$1053","v":0}]
[{"$f":"_xlfn.TEXTJOIN(\",\",FALSE,output[[#This Row],[scenario]:[process_class]])","v":"PTX-BusinessOpportunityAnalyzer-1.0.9,DEU,Hydrogen (AEL),SWE,COST-FLOW,Transportation (Pipeline)"},"PTX-BusinessOpportunityAnalyzer-1.0.9",{"$f":"sel_country_code","v":"DEU"},"Hydrogen (AEL)",{"$f":"_calc!$B$1053","v":"SWE"},{"$f":"_calc!$BO$990","v":"COST-FLOW"},{"$f":"_calc!$BS$1","v":"Transportation (Pipeline)"},{"$f":"_calc!$BS$1053","v":1.4444664390091457}]
[{"$f":"_xlfn.TEXTJOIN(\",\",FALSE,output[[#This Row],[scenario]:[process_class]])","v":"PTX-BusinessOpportunityAnalyzer-1.0.9,DEU,Hydrogen (AEL),SWE,COST-FLOW,Transportation (Ship)"},{"$f":"output_scenario_name","v":"PTX-BusinessOpportunityAnalyzer-1.0.9"},{"$f":"sel_country_code","v":"DEU"},{"$f":"sel_chain","v":"Hydrogen (AEL)"},{"$f":"_calc!$B$1053","v":"SWE"},{"$f":"_calc!$BO$990","v":"COST-FLOW"},{"$f":"_calc!$BT$1","v":"Transportation (Ship)"},{"$f":"_calc!$BT$1053","v":0}]
[{"$f":"_xlfn.TEXTJOIN(\",\",FALSE,output[[#This Row],[scenario]:[process_class]])","v":"PTX-BusinessOpportunityAnalyzer-1.0.9,DEU,Hydrogen (AEL),SWE,COST-FLOW,Carbon"},"PTX-BusinessOpportunityAnalyzer-1.0.9",{"$f":"sel_country_code","v":"DEU"},"Hydrogen (AEL)",{"$f":"_calc!$B$1053","v":"SWE"},{"$f":"_calc!$BO$990","v":"COST-FLOW"},{"$f":"_calc!$BU$1","v":"Carbon"},{"$f":"_calc!$BU$1053","v":0}]
[{"$f":"_xlfn.TEXTJOIN(\",\",FALSE,output[[#This Row],[scenario]:[process_class]])","v":"PTX-BusinessOpportunityAnalyzer-1.0.9,DEU,Hydrogen (AEL),SWE,COST-FLOW,Derivate production"},"PTX-BusinessOpportunityAnalyzer-1.0.9",{"$f":"sel_country_code","v":"DEU"},"Hydrogen (AEL)",{"$f":"_calc!$B$1053","v":"SWE"},{"$f":"_calc!$BO$990","v":"COST-FLOW"},{"$f":"_calc!$BV$1","v":"Derivate production"},{"$f":"_calc!$BV$1053","v":0}]
[{"$f":"_xlfn.TEXTJOIN(\",\",FALSE,output[[#This Row],[scenario]:[process_class]])","v":"PTX-BusinessOpportunityAnalyzer-1.0.9,DEU,Hydrogen (AEL),SWE,COST-FLOW,Heat"},"PTX-BusinessOpportunityAnalyzer-1.0.9",{"$f":"sel_country_code","v":"DEU"},"Hydrogen (AEL)",{"$f":"_calc!$B$1053","v":"SWE"},{"$f":"_calc!$BO$990","v":"COST-FLOW"},{"$f":"_calc!$BW$1","v":"Heat"},{"$f":"_calc!$BW$1053","v":0}]
[{"$f":"_xlfn.TEXTJOIN(\",\",FALSE,output[[#This Row],[scenario]:[process_class]])","v":"PTX-BusinessOpportunityAnalyzer-1.0.9,DEU,Hydrogen (AEL),SWE,COST-FLOW,Electricity and H2 storage"},"PTX-BusinessOpportunityAnalyzer-1.0.9",{"$f":"sel_country_code","v":"DEU"},"Hydrogen (AEL)",{"$f":"_calc!$B$1053","v":"SWE"},{"$f":"_calc!$BO$990","v":"COST-FLOW"},{"$f":"_calc!$BX$1","v":"Electricity and H2 storage"},{"$f":"_calc!$BX$1053","v":0}]
[{"$f":"_xlfn.TEXTJOIN(\",\",FALSE,output[[#This Row],[scenario]:[process_class]])","v":"PTX-BusinessOpportunityAnalyzer-1.0.9,DEU,Hydrogen (AEL),THA,COST-FLOW,Water"},"PTX-BusinessOpportunityAnalyzer-1.0.9",{"$f":"sel_country_code","v":"DEU"},"Hydrogen (AEL)",{"$f":"_calc!$B$1054","v":"THA"},{"$f":"_calc!$BO$990","v":"COST-FLOW"},{"$f":"_calc!$BP$1","v":"Water"},{"$f":"_calc!$BP$1054","v":9.1679549306911703E-2}]
[{"$f":"_xlfn.TEXTJOIN(\",\",FALSE,output[[#This Row],[scenario]:[process_class]])","v":"PTX-BusinessOpportunityAnalyzer-1.0.9,DEU,Hydrogen (AEL),THA,COST-FLOW,Electrolysis"},"PTX-BusinessOpportunityAnalyzer-1.0.9",{"$f":"sel_country_code","v":"DEU"},"Hydrogen (AEL)",{"$f":"_calc!$B$1054","v":"THA"},{"$f":"_calc!$BO$990","v":"COST-FLOW"},{"$f":"_calc!$BQ$1","v":"Electrolysis"},{"$f":"_calc!$BQ$1054","v":0}]
[{"$f":"_xlfn.TEXTJOIN(\",\",FALSE,output[[#This Row],[scenario]:[process_class]])","v":"PTX-BusinessOpportunityAnalyzer-1.0.9,DEU,Hydrogen (AEL),THA,COST-FLOW,Electricity generation"},"PTX-BusinessOpportunityAnalyzer-1.0.9",{"$f":"sel_country_code","v":"DEU"},"Hydrogen (AEL)",{"$f":"_calc!$B$1054","v":"THA"},{"$f":"_calc!$BO$990","v":"COST-FLOW"},{"$f":"_calc!$BR$1","v":"Electricity generation"},{"$f":"_calc!$BR$1054","v":0}]
[{"$f":"_xlfn.TEXTJOIN(\",\",FALSE,output[[#This Row],[scenario]:[process_class]])","v":"PTX-BusinessOpportunityAnalyzer-1.0.9,DEU,Hydrogen (AEL),THA,COST-FLOW,Transportation (Pipeline)"},"PTX-BusinessOpportunityAnalyzer-1.0.9",{"$f":"sel_country_code","v":"DEU"},"Hydrogen (AEL)",{"$f":"_calc!$B$1054","v":"THA"},{"$f":"_calc!$BO$990","v":"COST-FLOW"},{"$f":"_calc!$BS$1","v":"Transportation (Pipeline)"},{"$f":"_calc!$BS$1054","v":0}]
[{"$f":"_xlfn.TEXTJOIN(\",\",FALSE,output[[#This Row],[scenario]:[process_class]])","v":"PTX-BusinessOpportunityAnalyzer-1.0.9,DEU,Hydrogen (AEL),THA,COST-FLOW,Transportation (Ship)"},"PTX-BusinessOpportunityAnalyzer-1.0.9",{"$f":"sel_country_code","v":"DEU"},"Hydrogen (AEL)",{"$f":"_calc!$B$1054","v":"THA"},{"$f":"_calc!$BO$990","v":"COST-FLOW"},{"$f":"_calc!$BT$1","v":"Transportation (Ship)"},{"$f":"_calc!$BT$1054","v":30.570039782231301}]
[{"$f":"_xlfn.TEXTJOIN(\",\",FALSE,output[[#This Row],[scenario]:[process_class]])","v":"PTX-BusinessOpportunityAnalyzer-1.0.9,DEU,Hydrogen (AEL),THA,COST-FLOW,Carbon"},"PTX-BusinessOpportunityAnalyzer-1.0.9",{"$f":"sel_country_code","v":"DEU"},"Hydrogen (AEL)",{"$f":"_calc!$B$1054","v":"THA"},{"$f":"_calc!$BO$990","v":"COST-FLOW"},{"$f":"_calc!$BU$1","v":"Carbon"},{"$f":"_calc!$BU$1054","v":0}]
[{"$f":"_xlfn.TEXTJOIN(\",\",FALSE,output[[#This Row],[scenario]:[process_class]])","v":"PTX-BusinessOpportunityAnalyzer-1.0.9,DEU,Hydrogen (AEL),THA,COST-FLOW,Derivate production"},"PTX-BusinessOpportunityAnalyzer-1.0.9",{"$f":"sel_country_code","v":"DEU"},"Hydrogen (AEL)",{"$f":"_calc!$B$1054","v":"THA"},{"$f":"_calc!$BO$990","v":"COST-FLOW"},{"$f":"_calc!$BV$1","v":"Derivate production"},{"$f":"_calc!$BV$1054","v":0}]
[{"$f":"_xlfn.TEXTJOIN(\",\",FALSE,output[[#This Row],[scenario]:[process_class]])","v":"PTX-BusinessOpportunityAnalyzer-1.0.9,DEU,Hydrogen (AEL),THA,COST-FLOW,Heat"},"PTX-BusinessOpportunityAnalyzer-1.0.9",{"$f":"sel_country_code","v":"DEU"},"Hydrogen (AEL)",{"$f":"_calc!$B$1054","v":"THA"},{"$f":"_calc!$BO$990","v":"COST-FLOW"},{"$f":"_calc!$BW$1","v":"Heat"},{"$f":"_calc!$BW$1054","v":0}]
[{"$f":"_xlfn.TEXTJOIN(\",\",FALSE,output[[#This Row],[scenario]:[process_class]])","v":"PTX-BusinessOpportunityAnalyzer-1.0.9,DEU,Hydrogen (AEL),THA,COST-FLOW,Electricity and H2 storage"},"PTX-BusinessOpportunityAnalyzer-1.0.9",{"$f":"sel_country_code","v":"DEU"},"Hydrogen (AEL)",{"$f":"_calc!$B$1054","v":"THA"},{"$f":"_calc!$BO$990","v":"COST-FLOW"},{"$f":"_calc!$BX$1","v":"Electricity and H2 storage"},{"$f":"_calc!$BX$1054","v":0}]
[{"$f":"_xlfn.TEXTJOIN(\",\",FALSE,output[[#This Row],[scenario]:[process_class]])","v":"PTX-BusinessOpportunityAnalyzer-1.0.9,DEU,Hydrogen (AEL),TUN,COST-FLOW,Water"},"PTX-BusinessOpportunityAnalyzer-1.0.9",{"$f":"sel_country_code","v":"DEU"},"Hydrogen (AEL)",{"$f":"_calc!$B$1055","v":"TUN"},{"$f":"_calc!$BO$990","v":"COST-FLOW"},{"$f":"_calc!$BP$1","v":"Water"},{"$f":"_calc!$BP$1055","v":6.6121918002654059E-2}]
[{"$f":"_xlfn.TEXTJOIN(\",\",FALSE,output[[#This Row],[scenario]:[process_class]])","v":"PTX-BusinessOpportunityAnalyzer-1.0.9,DEU,Hydrogen (AEL),TUN,COST-FLOW,Electrolysis"},"PTX-BusinessOpportunityAnalyzer-1.0.9",{"$f":"sel_country_code","v":"DEU"},"Hydrogen (AEL)",{"$f":"_calc!$B$1055","v":"TUN"},{"$f":"_calc!$BO$990","v":"COST-FLOW"},{"$f":"_calc!$BQ$1","v":"Electrolysis"},{"$f":"_calc!$BQ$1055","v":0}]
[{"$f":"_xlfn.TEXTJOIN(\",\",FALSE,output[[#This Row],[scenario]:[process_class]])","v":"PTX-BusinessOpportunityAnalyzer-1.0.9,DEU,Hydrogen (AEL),TUN,COST-FLOW,Electricity generation"},"PTX-BusinessOpportunityAnalyzer-1.0.9",{"$f":"sel_country_code","v":"DEU"},"Hydrogen (AEL)",{"$f":"_calc!$B$1055","v":"TUN"},{"$f":"_calc!$BO$990","v":"COST-FLOW"},{"$f":"_calc!$BR$1","v":"Electricity generation"},{"$f":"_calc!$BR$1055","v":0}]
[{"$f":"_xlfn.TEXTJOIN(\",\",FALSE,output[[#This Row],[scenario]:[process_class]])","v":"PTX-BusinessOpportunityAnalyzer-1.0.9,DEU,Hydrogen (AEL),TUN,COST-FLOW,Transportation (Pipeline)"},"PTX-BusinessOpportunityAnalyzer-1.0.9",{"$f":"sel_country_code","v":"DEU"},"Hydrogen (AEL)",{"$f":"_calc!$B$1055","v":"TUN"},{"$f":"_calc!$BO$990","v":"COST-FLOW"},{"$f":"_calc!$BS$1","v":"Transportation (Pipeline)"},{"$f":"_calc!$BS$1055","v":1.4693759556145345}]
[{"$f":"_xlfn.TEXTJOIN(\",\",FALSE,output[[#This Row],[scenario]:[process_class]])","v":"PTX-BusinessOpportunityAnalyzer-1.0.9,DEU,Hydrogen (AEL),TUN,COST-FLOW,Transportation (Ship)"},"PTX-BusinessOpportunityAnalyzer-1.0.9",{"$f":"sel_country_code","v":"DEU"},"Hydrogen (AEL)",{"$f":"_calc!$B$1055","v":"TUN"},{"$f":"_calc!$BO$990","v":"COST-FLOW"},{"$f":"_calc!$BT$1","v":"Transportation (Ship)"},{"$f":"_calc!$BT$1055","v":0}]
[{"$f":"_xlfn.TEXTJOIN(\",\",FALSE,output[[#This Row],[scenario]:[process_class]])","v":"PTX-BusinessOpportunityAnalyzer-1.0.9,DEU,Hydrogen (AEL),TUN,COST-FLOW,Carbon"},"PTX-BusinessOpportunityAnalyzer-1.0.9",{"$f":"sel_country_code","v":"DEU"},"Hydrogen (AEL)",{"$f":"_calc!$B$1055","v":"TUN"},{"$f":"_calc!$BO$990","v":"COST-FLOW"},{"$f":"_calc!$BU$1","v":"Carbon"},{"$f":"_calc!$BU$1055","v":0}]
[{"$f":"_xlfn.TEXTJOIN(\",\",FALSE,output[[#This Row],[scenario]:[process_class]])","v":"PTX-BusinessOpportunityAnalyzer-1.0.9,DEU,Hydrogen (AEL),TUN,COST-FLOW,Derivate production"},"PTX-BusinessOpportunityAnalyzer-1.0.9",{"$f":"sel_country_code","v":"DEU"},"Hydrogen (AEL)",{"$f":"_calc!$B$1055","v":"TUN"},{"$f":"_calc!$BO$990","v":"COST-FLOW"},{"$f":"_calc!$BV$1","v":"Derivate production"},{"$f":"_calc!$BV$1055","v":0}]
[{"$f":"_xlfn.TEXTJOIN(\",\",FALSE,output[[#This Row],[scenario]:[process_class]])","v":"PTX-BusinessOpportunityAnalyzer-1.0.9,DEU,Hydrogen (AEL),TUN,COST-FLOW,Heat"},"PTX-BusinessOpportunityAnalyzer-1.0.9",{"$f":"sel_country_code","v":"DEU"},"Hydrogen (AEL)",{"$f":"_calc!$B$1055","v":"TUN"},{"$f":"_calc!$BO$990","v":"COST-FLOW"},{"$f":"_calc!$BW$1","v":"Heat"},{"$f":"_calc!$BW$1055","v":0}]
[{"$f":"_xlfn.TEXTJOIN(\",\",FALSE,output[[#This Row],[scenario]:[process_class]])","v":"PTX-BusinessOpportunityAnalyzer-1.0.9,DEU,Hydrogen (AEL),TUN,COST-FLOW,Electricity and H2 storage"},"PTX-BusinessOpportunityAnalyzer-1.0.9",{"$f":"sel_country_code","v":"DEU"},"Hydrogen (AEL)",{"$f":"_calc!$B$1055","v":"TUN"},{"$f":"_calc!$BO$990","v":"COST-FLOW"},{"$f":"_calc!$BX$1","v":"Electricity and H2 storage"},{"$f":"_calc!$BX$1055","v":0}]
[{"$f":"_xlfn.TEXTJOIN(\",\",FALSE,output[[#This Row],[scenario]:[process_class]])","v":"PTX-BusinessOpportunityAnalyzer-1.0.9,DEU,Hydrogen (AEL),UKR,COST-FLOW,Water"},"PTX-BusinessOpportunityAnalyzer-1.0.9",{"$f":"sel_country_code","v":"DEU"},"Hydrogen (AEL)",{"$f":"_calc!$B$1056","v":"UKR"},{"$f":"_calc!$BO$990","v":"COST-FLOW"},{"$f":"_calc!$BP$1","v":"Water"},{"$f":"_calc!$BP$1056","v":6.5567377654662987E-2}]
[{"$f":"_xlfn.TEXTJOIN(\",\",FALSE,output[[#This Row],[scenario]:[process_class]])","v":"PTX-BusinessOpportunityAnalyzer-1.0.9,DEU,Hydrogen (AEL),UKR,COST-FLOW,Electrolysis"},"PTX-BusinessOpportunityAnalyzer-1.0.9",{"$f":"sel_country_code","v":"DEU"},"Hydrogen (AEL)",{"$f":"_calc!$B$1056","v":"UKR"},{"$f":"_calc!$BO$990","v":"COST-FLOW"},{"$f":"_calc!$BQ$1","v":"Electrolysis"},{"$f":"_calc!$BQ$1056","v":0}]
[{"$f":"_xlfn.TEXTJOIN(\",\",FALSE,output[[#This Row],[scenario]:[process_class]])","v":"PTX-BusinessOpportunityAnalyzer-1.0.9,DEU,Hydrogen (AEL),UKR,COST-FLOW,Electricity generation"},"PTX-BusinessOpportunityAnalyzer-1.0.9",{"$f":"sel_country_code","v":"DEU"},"Hydrogen (AEL)",{"$f":"_calc!$B$1056","v":"UKR"},{"$f":"_calc!$BO$990","v":"COST-FLOW"},{"$f":"_calc!$BR$1","v":"Electricity generation"},{"$f":"_calc!$BR$1056","v":0}]
[{"$f":"_xlfn.TEXTJOIN(\",\",FALSE,output[[#This Row],[scenario]:[process_class]])","v":"PTX-BusinessOpportunityAnalyzer-1.0.9,DEU,Hydrogen (AEL),UKR,COST-FLOW,Transportation (Pipeline)"},"PTX-BusinessOpportunityAnalyzer-1.0.9",{"$f":"sel_country_code","v":"DEU"},"Hydrogen (AEL)",{"$f":"_calc!$B$1056","v":"UKR"},{"$f":"_calc!$BO$990","v":"COST-FLOW"},{"$f":"_calc!$BS$1","v":"Transportation (Pipeline)"},{"$f":"_calc!$BS$1056","v":1.4570528367702884}]
[{"$f":"_xlfn.TEXTJOIN(\",\",FALSE,output[[#This Row],[scenario]:[process_class]])","v":"PTX-BusinessOpportunityAnalyzer-1.0.9,DEU,Hydrogen (AEL),UKR,COST-FLOW,Transportation (Ship)"},"PTX-BusinessOpportunityAnalyzer-1.0.9",{"$f":"sel_country_code","v":"DEU"},"Hydrogen (AEL)",{"$f":"_calc!$B$1056","v":"UKR"},{"$f":"_calc!$BO$990","v":"COST-FLOW"},{"$f":"_calc!$BT$1","v":"Transportation (Ship)"},{"$f":"_calc!$BT$1056","v":0}]
[{"$f":"_xlfn.TEXTJOIN(\",\",FALSE,output[[#This Row],[scenario]:[process_class]])","v":"PTX-BusinessOpportunityAnalyzer-1.0.9,DEU,Hydrogen (AEL),UKR,COST-FLOW,Carbon"},"PTX-BusinessOpportunityAnalyzer-1.0.9",{"$f":"sel_country_code","v":"DEU"},"Hydrogen (AEL)",{"$f":"_calc!$B$1056","v":"UKR"},{"$f":"_calc!$BO$990","v":"COST-FLOW"},{"$f":"_calc!$BU$1","v":"Carbon"},{"$f":"_calc!$BU$1056","v":0}]
[{"$f":"_xlfn.TEXTJOIN(\",\",FALSE,output[[#This Row],[scenario]:[process_class]])","v":"PTX-BusinessOpportunityAnalyzer-1.0.9,DEU,Hydrogen (AEL),UKR,COST-FLOW,Derivate production"},"PTX-BusinessOpportunityAnalyzer-1.0.9",{"$f":"sel_country_code","v":"DEU"},"Hydrogen (AEL)",{"$f":"_calc!$B$1056","v":"UKR"},{"$f":"_calc!$BO$990","v":"COST-FLOW"},{"$f":"_calc!$BV$1","v":"Derivate production"},{"$f":"_calc!$BV$1056","v":0}]
[{"$f":"_xlfn.TEXTJOIN(\",\",FALSE,output[[#This Row],[scenario]:[process_class]])","v":"PTX-BusinessOpportunityAnalyzer-1.0.9,DEU,Hydrogen (AEL),UKR,COST-FLOW,Heat"},"PTX-BusinessOpportunityAnalyzer-1.0.9",{"$f":"sel_country_code","v":"DEU"},"Hydrogen (AEL)",{"$f":"_calc!$B$1056","v":"UKR"},{"$f":"_calc!$BO$990","v":"COST-FLOW"},{"$f":"_calc!$BW$1","v":"Heat"},{"$f":"_calc!$BW$1056","v":0}]
[{"$f":"_xlfn.TEXTJOIN(\",\",FALSE,output[[#This Row],[scenario]:[process_class]])","v":"PTX-BusinessOpportunityAnalyzer-1.0.9,DEU,Hydrogen (AEL),UKR,COST-FLOW,Electricity and H2 storage"},"PTX-BusinessOpportunityAnalyzer-1.0.9",{"$f":"sel_country_code","v":"DEU"},"Hydrogen (AEL)",{"$f":"_calc!$B$1056","v":"UKR"},{"$f":"_calc!$BO$990","v":"COST-FLOW"},{"$f":"_calc!$BX$1","v":"Electricity and H2 storage"},{"$f":"_calc!$BX$1056","v":0}]
[{"$f":"_xlfn.TEXTJOIN(\",\",FALSE,output[[#This Row],[scenario]:[process_class]])","v":"PTX-BusinessOpportunityAnalyzer-1.0.9,DEU,Hydrogen (AEL),URY,COST-FLOW,Water"},"PTX-BusinessOpportunityAnalyzer-1.0.9",{"$f":"sel_country_code","v":"DEU"},"Hydrogen (AEL)",{"$f":"_calc!$B$1057","v":"URY"},{"$f":"_calc!$BO$990","v":"COST-FLOW"},{"$f":"_calc!$BP$1","v":"Water"},{"$f":"_calc!$BP$1057","v":8.6374152146505748E-2}]
[{"$f":"_xlfn.TEXTJOIN(\",\",FALSE,output[[#This Row],[scenario]:[process_class]])","v":"PTX-BusinessOpportunityAnalyzer-1.0.9,DEU,Hydrogen (AEL),URY,COST-FLOW,Electrolysis"},"PTX-BusinessOpportunityAnalyzer-1.0.9",{"$f":"sel_country_code","v":"DEU"},"Hydrogen (AEL)",{"$f":"_calc!$B$1057","v":"URY"},{"$f":"_calc!$BO$990","v":"COST-FLOW"},{"$f":"_calc!$BQ$1","v":"Electrolysis"},{"$f":"_calc!$BQ$1057","v":0}]
[{"$f":"_xlfn.TEXTJOIN(\",\",FALSE,output[[#This Row],[scenario]:[process_class]])","v":"PTX-BusinessOpportunityAnalyzer-1.0.9,DEU,Hydrogen (AEL),URY,COST-FLOW,Electricity generation"},"PTX-BusinessOpportunityAnalyzer-1.0.9",{"$f":"sel_country_code","v":"DEU"},"Hydrogen (AEL)",{"$f":"_calc!$B$1057","v":"URY"},{"$f":"_calc!$BO$990","v":"COST-FLOW"},{"$f":"_calc!$BR$1","v":"Electricity generation"},{"$f":"_calc!$BR$1057","v":0}]
[{"$f":"_xlfn.TEXTJOIN(\",\",FALSE,output[[#This Row],[scenario]:[process_class]])","v":"PTX-BusinessOpportunityAnalyzer-1.0.9,DEU,Hydrogen (AEL),URY,COST-FLOW,Transportation (Pipeline)"},"PTX-BusinessOpportunityAnalyzer-1.0.9",{"$f":"sel_country_code","v":"DEU"},"Hydrogen (AEL)",{"$f":"_calc!$B$1057","v":"URY"},{"$f":"_calc!$BO$990","v":"COST-FLOW"},{"$f":"_calc!$BS$1","v":"Transportation (Pipeline)"},{"$f":"_calc!$BS$1057","v":0}]
[{"$f":"_xlfn.TEXTJOIN(\",\",FALSE,output[[#This Row],[scenario]:[process_class]])","v":"PTX-BusinessOpportunityAnalyzer-1.0.9,DEU,Hydrogen (AEL),URY,COST-FLOW,Transportation (Ship)"},"PTX-BusinessOpportunityAnalyzer-1.0.9",{"$f":"sel_country_code","v":"DEU"},"Hydrogen (AEL)",{"$f":"_calc!$B$1057","v":"URY"},{"$f":"_calc!$BO$990","v":"COST-FLOW"},{"$f":"_calc!$BT$1","v":"Transportation (Ship)"},{"$f":"_calc!$BT$1057","v":28.800984376960894}]
[{"$f":"_xlfn.TEXTJOIN(\",\",FALSE,output[[#This Row],[scenario]:[process_class]])","v":"PTX-BusinessOpportunityAnalyzer-1.0.9,DEU,Hydrogen (AEL),URY,COST-FLOW,Carbon"},"PTX-BusinessOpportunityAnalyzer-1.0.9",{"$f":"sel_country_code","v":"DEU"},"Hydrogen (AEL)",{"$f":"_calc!$B$1057","v":"URY"},{"$f":"_calc!$BO$990","v":"COST-FLOW"},{"$f":"_calc!$BU$1","v":"Carbon"},{"$f":"_calc!$BU$1057","v":0}]
[{"$f":"_xlfn.TEXTJOIN(\",\",FALSE,output[[#This Row],[scenario]:[process_class]])","v":"PTX-BusinessOpportunityAnalyzer-1.0.9,DEU,Hydrogen (AEL),URY,COST-FLOW,Derivate production"},"PTX-BusinessOpportunityAnalyzer-1.0.9",{"$f":"sel_country_code","v":"DEU"},"Hydrogen (AEL)",{"$f":"_calc!$B$1057","v":"URY"},{"$f":"_calc!$BO$990","v":"COST-FLOW"},{"$f":"_calc!$BV$1","v":"Derivate production"},{"$f":"_calc!$BV$1057","v":0}]
[{"$f":"_xlfn.TEXTJOIN(\",\",FALSE,output[[#This Row],[scenario]:[process_class]])","v":"PTX-BusinessOpportunityAnalyzer-1.0.9,DEU,Hydrogen (AEL),URY,COST-FLOW,Heat"},"PTX-BusinessOpportunityAnalyzer-1.0.9",{"$f":"sel_country_code","v":"DEU"},"Hydrogen (AEL)",{"$f":"_calc!$B$1057","v":"URY"},{"$f":"_calc!$BO$990","v":"COST-FLOW"},{"$f":"_calc!$BW$1","v":"Heat"},{"$f":"_calc!$BW$1057","v":0}]
[{"$f":"_xlfn.TEXTJOIN(\",\",FALSE,output[[#This Row],[scenario]:[process_class]])","v":"PTX-BusinessOpportunityAnalyzer-1.0.9,DEU,Hydrogen (AEL),URY,COST-FLOW,Electricity and H2 storage"},"PTX-BusinessOpportunityAnalyzer-1.0.9",{"$f":"sel_country_code","v":"DEU"},"Hydrogen (AEL)",{"$f":"_calc!$B$1057","v":"URY"},{"$f":"_calc!$BO$990","v":"COST-FLOW"},{"$f":"_calc!$BX$1","v":"Electricity and H2 storage"},{"$f":"_calc!$BX$1057","v":0}]
[{"$f":"_xlfn.TEXTJOIN(\",\",FALSE,output[[#This Row],[scenario]:[process_class]])","v":"PTX-BusinessOpportunityAnalyzer-1.0.9,DEU,Hydrogen (AEL),USA,COST-FLOW,Water"},"PTX-BusinessOpportunityAnalyzer-1.0.9",{"$f":"sel_country_code","v":"DEU"},"Hydrogen (AEL)",{"$f":"_calc!$B$1058","v":"USA"},{"$f":"_calc!$BO$990","v":"COST-FLOW"},{"$f":"_calc!$BP$1","v":"Water"},{"$f":"_calc!$BP$1058","v":8.2717390371821131E-2}]
[{"$f":"_xlfn.TEXTJOIN(\",\",FALSE,output[[#This Row],[scenario]:[process_class]])","v":"PTX-BusinessOpportunityAnalyzer-1.0.9,DEU,Hydrogen (AEL),USA,COST-FLOW,Electrolysis"},"PTX-BusinessOpportunityAnalyzer-1.0.9",{"$f":"sel_country_code","v":"DEU"},"Hydrogen (AEL)",{"$f":"_calc!$B$1058","v":"USA"},{"$f":"_calc!$BO$990","v":"COST-FLOW"},{"$f":"_calc!$BQ$1","v":"Electrolysis"},{"$f":"_calc!$BQ$1058","v":0}]
[{"$f":"_xlfn.TEXTJOIN(\",\",FALSE,output[[#This Row],[scenario]:[process_class]])","v":"PTX-BusinessOpportunityAnalyzer-1.0.9,DEU,Hydrogen (AEL),USA,COST-FLOW,Electricity generation"},"PTX-BusinessOpportunityAnalyzer-1.0.9",{"$f":"sel_country_code","v":"DEU"},"Hydrogen (AEL)",{"$f":"_calc!$B$1058","v":"USA"},{"$f":"_calc!$BO$990","v":"COST-FLOW"},{"$f":"_calc!$BR$1","v":"Electricity generation"},{"$f":"_calc!$BR$1058","v":0}]
[{"$f":"_xlfn.TEXTJOIN(\",\",FALSE,output[[#This Row],[scenario]:[process_class]])","v":"PTX-BusinessOpportunityAnalyzer-1.0.9,DEU,Hydrogen (AEL),USA,COST-FLOW,Transportation (Pipeline)"},"PTX-BusinessOpportunityAnalyzer-1.0.9",{"$f":"sel_country_code","v":"DEU"},"Hydrogen (AEL)",{"$f":"_calc!$B$1058","v":"USA"},{"$f":"_calc!$BO$990","v":"COST-FLOW"},{"$f":"_calc!$BS$1","v":"Transportation (Pipeline)"},{"$f":"_calc!$BS$1058","v":0}]
[{"$f":"_xlfn.TEXTJOIN(\",\",FALSE,output[[#This Row],[scenario]:[process_class]])","v":"PTX-BusinessOpportunityAnalyzer-1.0.9,DEU,Hydrogen (AEL),USA,COST-FLOW,Transportation (Ship)"},"PTX-BusinessOpportunityAnalyzer-1.0.9",{"$f":"sel_country_code","v":"DEU"},"Hydrogen (AEL)",{"$f":"_calc!$B$1058","v":"USA"},{"$f":"_calc!$BO$990","v":"COST-FLOW"},{"$f":"_calc!$BT$1","v":"Transportation (Ship)"},{"$f":"_calc!$BT$1058","v":27.581657343054722}]
[{"$f":"_xlfn.TEXTJOIN(\",\",FALSE,output[[#This Row],[scenario]:[process_class]])","v":"PTX-BusinessOpportunityAnalyzer-1.0.9,DEU,Hydrogen (AEL),USA,COST-FLOW,Carbon"},"PTX-BusinessOpportunityAnalyzer-1.0.9",{"$f":"sel_country_code","v":"DEU"},"Hydrogen (AEL)",{"$f":"_calc!$B$1058","v":"USA"},{"$f":"_calc!$BO$990","v":"COST-FLOW"},{"$f":"_calc!$BU$1","v":"Carbon"},{"$f":"_calc!$BU$1058","v":0}]
[{"$f":"_xlfn.TEXTJOIN(\",\",FALSE,output[[#This Row],[scenario]:[process_class]])","v":"PTX-BusinessOpportunityAnalyzer-1.0.9,DEU,Hydrogen (AEL),USA,COST-FLOW,Derivate production"},"PTX-BusinessOpportunityAnalyzer-1.0.9",{"$f":"sel_country_code","v":"DEU"},"Hydrogen (AEL)",{"$f":"_calc!$B$1058","v":"USA"},{"$f":"_calc!$BO$990","v":"COST-FLOW"},{"$f":"_calc!$BV$1","v":"Derivate production"},{"$f":"_calc!$BV$1058","v":0}]
[{"$f":"_xlfn.TEXTJOIN(\",\",FALSE,output[[#This Row],[scenario]:[process_class]])","v":"PTX-BusinessOpportunityAnalyzer-1.0.9,DEU,Hydrogen (AEL),USA,COST-FLOW,Heat"},"PTX-BusinessOpportunityAnalyzer-1.0.9",{"$f":"sel_country_code","v":"DEU"},"Hydrogen (AEL)",{"$f":"_calc!$B$1058","v":"USA"},{"$f":"_calc!$BO$990","v":"COST-FLOW"},{"$f":"_calc!$BW$1","v":"Heat"},{"$f":"_calc!$BW$1058","v":0}]
[{"$f":"_xlfn.TEXTJOIN(\",\",FALSE,output[[#This Row],[scenario]:[process_class]])","v":"PTX-BusinessOpportunityAnalyzer-1.0.9,DEU,Hydrogen (AEL),USA,COST-FLOW,Electricity and H2 storage"},"PTX-BusinessOpportunityAnalyzer-1.0.9",{"$f":"sel_country_code","v":"DEU"},"Hydrogen (AEL)",{"$f":"_calc!$B$1058","v":"USA"},{"$f":"_calc!$BO$990","v":"COST-FLOW"},{"$f":"_calc!$BX$1","v":"Electricity and H2 storage"},{"$f":"_calc!$BX$1058","v":0}]
[{"$f":"_xlfn.TEXTJOIN(\",\",FALSE,output[[#This Row],[scenario]:[process_class]])","v":"PTX-BusinessOpportunityAnalyzer-1.0.9,DEU,Hydrogen (AEL),VNM,COST-FLOW,Water"},"PTX-BusinessOpportunityAnalyzer-1.0.9",{"$f":"sel_country_code","v":"DEU"},"Hydrogen (AEL)",{"$f":"_calc!$B$1059","v":"VNM"},{"$f":"_calc!$BO$990","v":"COST-FLOW"},{"$f":"_calc!$BP$1","v":"Water"},{"$f":"_calc!$BP$1059","v":9.1873333177988764E-2}]
[{"$f":"_xlfn.TEXTJOIN(\",\",FALSE,output[[#This Row],[scenario]:[process_class]])","v":"PTX-BusinessOpportunityAnalyzer-1.0.9,DEU,Hydrogen (AEL),VNM,COST-FLOW,Electrolysis"},"PTX-BusinessOpportunityAnalyzer-1.0.9",{"$f":"sel_country_code","v":"DEU"},"Hydrogen (AEL)",{"$f":"_calc!$B$1059","v":"VNM"},{"$f":"_calc!$BO$990","v":"COST-FLOW"},{"$f":"_calc!$BQ$1","v":"Electrolysis"},{"$f":"_calc!$BQ$1059","v":0}]
[{"$f":"_xlfn.TEXTJOIN(\",\",FALSE,output[[#This Row],[scenario]:[process_class]])","v":"PTX-BusinessOpportunityAnalyzer-1.0.9,DEU,Hydrogen (AEL),VNM,COST-FLOW,Electricity generation"},"PTX-BusinessOpportunityAnalyzer-1.0.9",{"$f":"sel_country_code","v":"DEU"},"Hydrogen (AEL)",{"$f":"_calc!$B$1059","v":"VNM"},{"$f":"_calc!$BO$990","v":"COST-FLOW"},{"$f":"_calc!$BR$1","v":"Electricity generation"},{"$f":"_calc!$BR$1059","v":0}]
[{"$f":"_xlfn.TEXTJOIN(\",\",FALSE,output[[#This Row],[scenario]:[process_class]])","v":"PTX-BusinessOpportunityAnalyzer-1.0.9,DEU,Hydrogen (AEL),VNM,COST-FLOW,Transportation (Pipeline)"},"PTX-BusinessOpportunityAnalyzer-1.0.9",{"$f":"sel_country_code","v":"DEU"},"Hydrogen (AEL)",{"$f":"_calc!$B$1059","v":"VNM"},{"$f":"_calc!$BO$990","v":"COST-FLOW"},{"$f":"_calc!$BS$1","v":"Transportation (Pipeline)"},{"$f":"_calc!$BS$1059","v":0}]
[{"$f":"_xlfn.TEXTJOIN(\",\",FALSE,output[[#This Row],[scenario]:[process_class]])","v":"PTX-BusinessOpportunityAnalyzer-1.0.9,DEU,Hydrogen (AEL),VNM,COST-FLOW,Transportation (Ship)"},"PTX-BusinessOpportunityAnalyzer-1.0.9",{"$f":"sel_country_code","v":"DEU"},"Hydrogen (AEL)",{"$f":"_calc!$B$1059","v":"VNM"},{"$f":"_calc!$BO$990","v":"COST-FLOW"},{"$f":"_calc!$BT$1","v":"Transportation (Ship)"},{"$f":"_calc!$BT$1059","v":30.634655944644457}]
[{"$f":"_xlfn.TEXTJOIN(\",\",FALSE,output[[#This Row],[scenario]:[process_class]])","v":"PTX-BusinessOpportunityAnalyzer-1.0.9,DEU,Hydrogen (AEL),VNM,COST-FLOW,Carbon"},"PTX-BusinessOpportunityAnalyzer-1.0.9",{"$f":"sel_country_code","v":"DEU"},"Hydrogen (AEL)",{"$f":"_calc!$B$1059","v":"VNM"},{"$f":"_calc!$BO$990","v":"COST-FLOW"},{"$f":"_calc!$BU$1","v":"Carbon"},{"$f":"_calc!$BU$1059","v":0}]
[{"$f":"_xlfn.TEXTJOIN(\",\",FALSE,output[[#This Row],[scenario]:[process_class]])","v":"PTX-BusinessOpportunityAnalyzer-1.0.9,DEU,Hydrogen (AEL),VNM,COST-FLOW,Derivate production"},"PTX-BusinessOpportunityAnalyzer-1.0.9",{"$f":"sel_country_code","v":"DEU"},"Hydrogen (AEL)",{"$f":"_calc!$B$1059","v":"VNM"},{"$f":"_calc!$BO$990","v":"COST-FLOW"},{"$f":"_calc!$BV$1","v":"Derivate production"},{"$f":"_calc!$BV$1059","v":0}]
[{"$f":"_xlfn.TEXTJOIN(\",\",FALSE,output[[#This Row],[scenario]:[process_class]])","v":"PTX-BusinessOpportunityAnalyzer-1.0.9,DEU,Hydrogen (AEL),VNM,COST-FLOW,Heat"},"PTX-BusinessOpportunityAnalyzer-1.0.9",{"$f":"sel_country_code","v":"DEU"},"Hydrogen (AEL)",{"$f":"_calc!$B$1059","v":"VNM"},{"$f":"_calc!$BO$990","v":"COST-FLOW"},{"$f":"_calc!$BW$1","v":"Heat"},{"$f":"_calc!$BW$1059","v":0}]
[{"$f":"_xlfn.TEXTJOIN(\",\",FALSE,output[[#This Row],[scenario]:[process_class]])","v":"PTX-BusinessOpportunityAnalyzer-1.0.9,DEU,Hydrogen (AEL),VNM,COST-FLOW,Electricity and H2 storage"},"PTX-BusinessOpportunityAnalyzer-1.0.9",{"$f":"sel_country_code","v":"DEU"},"Hydrogen (AEL)",{"$f":"_calc!$B$1059","v":"VNM"},{"$f":"_calc!$BO$990","v":"COST-FLOW"},{"$f":"_calc!$BX$1","v":"Electricity and H2 storage"},{"$f":"_calc!$BX$1059","v":0}]
[{"$f":"_xlfn.TEXTJOIN(\",\",FALSE,output[[#This Row],[scenario]:[process_class]])","v":"PTX-BusinessOpportunityAnalyzer-1.0.9,DEU,Hydrogen (AEL),ZAF,COST-FLOW,Water"},"PTX-BusinessOpportunityAnalyzer-1.0.9",{"$f":"sel_country_code","v":"DEU"},"Hydrogen (AEL)",{"$f":"_calc!$B$1060","v":"ZAF"},{"$f":"_calc!$BO$990","v":"COST-FLOW"},{"$f":"_calc!$BP$1","v":"Water"},{"$f":"_calc!$BP$1060","v":8.5694878213333825E-2}]
[{"$f":"_xlfn.TEXTJOIN(\",\",FALSE,output[[#This Row],[scenario]:[process_class]])","v":"PTX-BusinessOpportunityAnalyzer-1.0.9,DEU,Hydrogen (AEL),ZAF,COST-FLOW,Electrolysis"},"PTX-BusinessOpportunityAnalyzer-1.0.9",{"$f":"sel_country_code","v":"DEU"},"Hydrogen (AEL)",{"$f":"_calc!$B$1060","v":"ZAF"},{"$f":"_calc!$BO$990","v":"COST-FLOW"},{"$f":"_calc!$BQ$1","v":"Electrolysis"},{"$f":"_calc!$BQ$1060","v":0}]
[{"$f":"_xlfn.TEXTJOIN(\",\",FALSE,output[[#This Row],[scenario]:[process_class]])","v":"PTX-BusinessOpportunityAnalyzer-1.0.9,DEU,Hydrogen (AEL),ZAF,COST-FLOW,Electricity generation"},"PTX-BusinessOpportunityAnalyzer-1.0.9",{"$f":"sel_country_code","v":"DEU"},"Hydrogen (AEL)",{"$f":"_calc!$B$1060","v":"ZAF"},{"$f":"_calc!$BO$990","v":"COST-FLOW"},{"$f":"_calc!$BR$1","v":"Electricity generation"},{"$f":"_calc!$BR$1060","v":0}]
[{"$f":"_xlfn.TEXTJOIN(\",\",FALSE,output[[#This Row],[scenario]:[process_class]])","v":"PTX-BusinessOpportunityAnalyzer-1.0.9,DEU,Hydrogen (AEL),ZAF,COST-FLOW,Transportation (Pipeline)"},"PTX-BusinessOpportunityAnalyzer-1.0.9",{"$f":"sel_country_code","v":"DEU"},"Hydrogen (AEL)",{"$f":"_calc!$B$1060","v":"ZAF"},{"$f":"_calc!$BO$990","v":"COST-FLOW"},{"$f":"_calc!$BS$1","v":"Transportation (Pipeline)"},{"$f":"_calc!$BS$1060","v":0}]
[{"$f":"_xlfn.TEXTJOIN(\",\",FALSE,output[[#This Row],[scenario]:[process_class]])","v":"PTX-BusinessOpportunityAnalyzer-1.0.9,DEU,Hydrogen (AEL),ZAF,COST-FLOW,Transportation (Ship)"},"PTX-BusinessOpportunityAnalyzer-1.0.9",{"$f":"sel_country_code","v":"DEU"},"Hydrogen (AEL)",{"$f":"_calc!$B$1060","v":"ZAF"},{"$f":"_calc!$BO$990","v":"COST-FLOW"},{"$f":"_calc!$BT$1","v":"Transportation (Ship)"},{"$f":"_calc!$BT$1060","v":28.57448423252211}]
[{"$f":"_xlfn.TEXTJOIN(\",\",FALSE,output[[#This Row],[scenario]:[process_class]])","v":"PTX-BusinessOpportunityAnalyzer-1.0.9,DEU,Hydrogen (AEL),ZAF,COST-FLOW,Carbon"},{"$f":"output_scenario_name","v":"PTX-BusinessOpportunityAnalyzer-1.0.9"},{"$f":"sel_country_code","v":"DEU"},{"$f":"sel_chain","v":"Hydrogen (AEL)"},{"$f":"_calc!$B$1060","v":"ZAF"},{"$f":"_calc!$BO$990","v":"COST-FLOW"},{"$f":"_calc!$BU$1","v":"Carbon"},{"$f":"_calc!$BU$1060","v":0}]
[{"$f":"_xlfn.TEXTJOIN(\",\",FALSE,output[[#This Row],[scenario]:[process_class]])","v":"PTX-BusinessOpportunityAnalyzer-1.0.9,DEU,Hydrogen (AEL),ZAF,COST-FLOW,Derivate production"},"PTX-BusinessOpportunityAnalyzer-1.0.9",{"$f":"sel_country_code","v":"DEU"},"Hydrogen (AEL)",{"$f":"_calc!$B$1060","v":"ZAF"},{"$f":"_calc!$BO$990","v":"COST-FLOW"},{"$f":"_calc!$BV$1","v":"Derivate production"},{"$f":"_calc!$BV$1060","v":0}]
[{"$f":"_xlfn.TEXTJOIN(\",\",FALSE,output[[#This Row],[scenario]:[process_class]])","v":"PTX-BusinessOpportunityAnalyzer-1.0.9,DEU,Hydrogen (AEL),ZAF,COST-FLOW,Heat"},"PTX-BusinessOpportunityAnalyzer-1.0.9",{"$f":"sel_country_code","v":"DEU"},"Hydrogen (AEL)",{"$f":"_calc!$B$1060","v":"ZAF"},{"$f":"_calc!$BO$990","v":"COST-FLOW"},{"$f":"_calc!$BW$1","v":"Heat"},{"$f":"_calc!$BW$1060","v":0}]
[{"$f":"_xlfn.TEXTJOIN(\",\",FALSE,output[[#This Row],[scenario]:[process_class]])","v":"PTX-BusinessOpportunityAnalyzer-1.0.9,DEU,Hydrogen (AEL),ZAF,COST-FLOW,Electricity and H2 storage"},"PTX-BusinessOpportunityAnalyzer-1.0.9",{"$f":"sel_country_code","v":"DEU"},"Hydrogen (AEL)",{"$f":"_calc!$B$1060","v":"ZAF"},{"$f":"_calc!$BO$990","v":"COST-FLOW"},{"$f":"_calc!$BX$1","v":"Electricity and H2 storage"},{"$f":"_calc!$BX$1060","v":0}]
[{"$f":"_xlfn.TEXTJOIN(\",\",FALSE,output[[#This Row],[scenario]:[process_class]])","v":"PTX-BusinessOpportunityAnalyzer-1.0.9,DEU,Hydrogen (AEL),ZAF-EC,COST-FLOW,Water"},"PTX-BusinessOpportunityAnalyzer-1.0.9",{"$f":"sel_country_code","v":"DEU"},"Hydrogen (AEL)",{"$f":"_calc!$B$1061","v":"ZAF-EC"},{"$f":"_calc!$BO$990","v":"COST-FLOW"},{"$f":"_calc!$BP$1","v":"Water"},{"$f":"_calc!$BP$1061","v":8.5694878213333825E-2}]
[{"$f":"_xlfn.TEXTJOIN(\",\",FALSE,output[[#This Row],[scenario]:[process_class]])","v":"PTX-BusinessOpportunityAnalyzer-1.0.9,DEU,Hydrogen (AEL),ZAF-EC,COST-FLOW,Electrolysis"},"PTX-BusinessOpportunityAnalyzer-1.0.9",{"$f":"sel_country_code","v":"DEU"},"Hydrogen (AEL)",{"$f":"_calc!$B$1061","v":"ZAF-EC"},{"$f":"_calc!$BO$990","v":"COST-FLOW"},{"$f":"_calc!$BQ$1","v":"Electrolysis"},{"$f":"_calc!$BQ$1061","v":0}]
[{"$f":"_xlfn.TEXTJOIN(\",\",FALSE,output[[#This Row],[scenario]:[process_class]])","v":"PTX-BusinessOpportunityAnalyzer-1.0.9,DEU,Hydrogen (AEL),ZAF-EC,COST-FLOW,Electricity generation"},"PTX-BusinessOpportunityAnalyzer-1.0.9",{"$f":"sel_country_code","v":"DEU"},"Hydrogen (AEL)",{"$f":"_calc!$B$1061","v":"ZAF-EC"},{"$f":"_calc!$BO$990","v":"COST-FLOW"},{"$f":"_calc!$BR$1","v":"Electricity generation"},{"$f":"_calc!$BR$1061","v":0}]
[{"$f":"_xlfn.TEXTJOIN(\",\",FALSE,output[[#This Row],[scenario]:[process_class]])","v":"PTX-BusinessOpportunityAnalyzer-1.0.9,DEU,Hydrogen (AEL),ZAF-EC,COST-FLOW,Transportation (Pipeline)"},"PTX-BusinessOpportunityAnalyzer-1.0.9",{"$f":"sel_country_code","v":"DEU"},"Hydrogen (AEL)",{"$f":"_calc!$B$1061","v":"ZAF-EC"},{"$f":"_calc!$BO$990","v":"COST-FLOW"},{"$f":"_calc!$BS$1","v":"Transportation (Pipeline)"},{"$f":"_calc!$BS$1061","v":0}]
[{"$f":"_xlfn.TEXTJOIN(\",\",FALSE,output[[#This Row],[scenario]:[process_class]])","v":"PTX-BusinessOpportunityAnalyzer-1.0.9,DEU,Hydrogen (AEL),ZAF-EC,COST-FLOW,Transportation (Ship)"},"PTX-BusinessOpportunityAnalyzer-1.0.9",{"$f":"sel_country_code","v":"DEU"},"Hydrogen (AEL)",{"$f":"_calc!$B$1061","v":"ZAF-EC"},{"$f":"_calc!$BO$990","v":"COST-FLOW"},{"$f":"_calc!$BT$1","v":"Transportation (Ship)"},{"$f":"_calc!$BT$1061","v":28.57448423252211}]
[{"$f":"_xlfn.TEXTJOIN(\",\",FALSE,output[[#This Row],[scenario]:[process_class]])","v":"PTX-BusinessOpportunityAnalyzer-1.0.9,DEU,Hydrogen (AEL),ZAF-EC,COST-FLOW,Carbon"},"PTX-BusinessOpportunityAnalyzer-1.0.9",{"$f":"sel_country_code","v":"DEU"},"Hydrogen (AEL)",{"$f":"_calc!$B$1061","v":"ZAF-EC"},{"$f":"_calc!$BO$990","v":"COST-FLOW"},{"$f":"_calc!$BU$1","v":"Carbon"},{"$f":"_calc!$BU$1061","v":0}]
[{"$f":"_xlfn.TEXTJOIN(\",\",FALSE,output[[#This Row],[scenario]:[process_class]])","v":"PTX-BusinessOpportunityAnalyzer-1.0.9,DEU,Hydrogen (AEL),ZAF-EC,COST-FLOW,Derivate production"},"PTX-BusinessOpportunityAnalyzer-1.0.9",{"$f":"sel_country_code","v":"DEU"},"Hydrogen (AEL)",{"$f":"_calc!$B$1061","v":"ZAF-EC"},{"$f":"_calc!$BO$990","v":"COST-FLOW"},{"$f":"_calc!$BV$1","v":"Derivate production"},{"$f":"_calc!$BV$1061","v":0}]
[{"$f":"_xlfn.TEXTJOIN(\",\",FALSE,output[[#This Row],[scenario]:[process_class]])","v":"PTX-BusinessOpportunityAnalyzer-1.0.9,DEU,Hydrogen (AEL),ZAF-EC,COST-FLOW,Heat"},"PTX-BusinessOpportunityAnalyzer-1.0.9",{"$f":"sel_country_code","v":"DEU"},"Hydrogen (AEL)",{"$f":"_calc!$B$1061","v":"ZAF-EC"},{"$f":"_calc!$BO$990","v":"COST-FLOW"},{"$f":"_calc!$BW$1","v":"Heat"},{"$f":"_calc!$BW$1061","v":0}]
[{"$f":"_xlfn.TEXTJOIN(\",\",FALSE,output[[#This Row],[scenario]:[process_class]])","v":"PTX-BusinessOpportunityAnalyzer-1.0.9,DEU,Hydrogen (AEL),ZAF-EC,COST-FLOW,Electricity and H2 storage"},"PTX-BusinessOpportunityAnalyzer-1.0.9",{"$f":"sel_country_code","v":"DEU"},"Hydrogen (AEL)",{"$f":"_calc!$B$1061","v":"ZAF-EC"},{"$f":"_calc!$BO$990","v":"COST-FLOW"},{"$f":"_calc!$BX$1","v":"Electricity and H2 storage"},{"$f":"_calc!$BX$1061","v":0}]
[{"$f":"_xlfn.TEXTJOIN(\",\",FALSE,output[[#This Row],[scenario]:[process_class]])","v":"PTX-BusinessOpportunityAnalyzer-1.0.9,DEU,Hydrogen (AEL),ZAF-FRS,COST-FLOW,Water"},"PTX-BusinessOpportunityAnalyzer-1.0.9",{"$f":"sel_country_code","v":"DEU"},"Hydrogen (AEL)",{"$f":"_calc!$B$1062","v":"ZAF-FRS"},{"$f":"_calc!$BO$990","v":"COST-FLOW"},{"$f":"_calc!$BP$1","v":"Water"},{"$f":"_calc!$BP$1062","v":8.5694878213333825E-2}]
[{"$f":"_xlfn.TEXTJOIN(\",\",FALSE,output[[#This Row],[scenario]:[process_class]])","v":"PTX-BusinessOpportunityAnalyzer-1.0.9,DEU,Hydrogen (AEL),ZAF-FRS,COST-FLOW,Electrolysis"},"PTX-BusinessOpportunityAnalyzer-1.0.9",{"$f":"sel_country_code","v":"DEU"},"Hydrogen (AEL)",{"$f":"_calc!$B$1062","v":"ZAF-FRS"},{"$f":"_calc!$BO$990","v":"COST-FLOW"},{"$f":"_calc!$BQ$1","v":"Electrolysis"},{"$f":"_calc!$BQ$1062","v":0}]
[{"$f":"_xlfn.TEXTJOIN(\",\",FALSE,output[[#This Row],[scenario]:[process_class]])","v":"PTX-BusinessOpportunityAnalyzer-1.0.9,DEU,Hydrogen (AEL),ZAF-FRS,COST-FLOW,Electricity generation"},"PTX-BusinessOpportunityAnalyzer-1.0.9",{"$f":"sel_country_code","v":"DEU"},"Hydrogen (AEL)",{"$f":"_calc!$B$1062","v":"ZAF-FRS"},{"$f":"_calc!$BO$990","v":"COST-FLOW"},{"$f":"_calc!$BR$1","v":"Electricity generation"},{"$f":"_calc!$BR$1062","v":0}]
[{"$f":"_xlfn.TEXTJOIN(\",\",FALSE,output[[#This Row],[scenario]:[process_class]])","v":"PTX-BusinessOpportunityAnalyzer-1.0.9,DEU,Hydrogen (AEL),ZAF-FRS,COST-FLOW,Transportation (Pipeline)"},"PTX-BusinessOpportunityAnalyzer-1.0.9",{"$f":"sel_country_code","v":"DEU"},"Hydrogen (AEL)",{"$f":"_calc!$B$1062","v":"ZAF-FRS"},{"$f":"_calc!$BO$990","v":"COST-FLOW"},{"$f":"_calc!$BS$1","v":"Transportation (Pipeline)"},{"$f":"_calc!$BS$1062","v":0}]
[{"$f":"_xlfn.TEXTJOIN(\",\",FALSE,output[[#This Row],[scenario]:[process_class]])","v":"PTX-BusinessOpportunityAnalyzer-1.0.9,DEU,Hydrogen (AEL),ZAF-FRS,COST-FLOW,Transportation (Ship)"},"PTX-BusinessOpportunityAnalyzer-1.0.9",{"$f":"sel_country_code","v":"DEU"},"Hydrogen (AEL)",{"$f":"_calc!$B$1062","v":"ZAF-FRS"},{"$f":"_calc!$BO$990","v":"COST-FLOW"},{"$f":"_calc!$BT$1","v":"Transportation (Ship)"},{"$f":"_calc!$BT$1062","v":28.57448423252211}]
[{"$f":"_xlfn.TEXTJOIN(\",\",FALSE,output[[#This Row],[scenario]:[process_class]])","v":"PTX-BusinessOpportunityAnalyzer-1.0.9,DEU,Hydrogen (AEL),ZAF-FRS,COST-FLOW,Carbon"},"PTX-BusinessOpportunityAnalyzer-1.0.9",{"$f":"sel_country_code","v":"DEU"},"Hydrogen (AEL)",{"$f":"_calc!$B$1062","v":"ZAF-FRS"},{"$f":"_calc!$BO$990","v":"COST-FLOW"},{"$f":"_calc!$BU$1","v":"Carbon"},{"$f":"_calc!$BU$1062","v":0}]
[{"$f":"_xlfn.TEXTJOIN(\",\",FALSE,output[[#This Row],[scenario]:[process_class]])","v":"PTX-BusinessOpportunityAnalyzer-1.0.9,DEU,Hydrogen (AEL),ZAF-FRS,COST-FLOW,Derivate production"},"PTX-BusinessOpportunityAnalyzer-1.0.9",{"$f":"sel_country_code","v":"DEU"},"Hydrogen (AEL)",{"$f":"_calc!$B$1062","v":"ZAF-FRS"},{"$f":"_calc!$BO$990","v":"COST-FLOW"},{"$f":"_calc!$BV$1","v":"Derivate production"},{"$f":"_calc!$BV$1062","v":0}]
[{"$f":"_xlfn.TEXTJOIN(\",\",FALSE,output[[#This Row],[scenario]:[process_class]])","v":"PTX-BusinessOpportunityAnalyzer-1.0.9,DEU,Hydrogen (AEL),ZAF-FRS,COST-FLOW,Heat"},"PTX-BusinessOpportunityAnalyzer-1.0.9",{"$f":"sel_country_code","v":"DEU"},"Hydrogen (AEL)",{"$f":"_calc!$B$1062","v":"ZAF-FRS"},{"$f":"_calc!$BO$990","v":"COST-FLOW"},{"$f":"_calc!$BW$1","v":"Heat"},{"$f":"_calc!$BW$1062","v":0}]
[{"$f":"_xlfn.TEXTJOIN(\",\",FALSE,output[[#This Row],[scenario]:[process_class]])","v":"PTX-BusinessOpportunityAnalyzer-1.0.9,DEU,Hydrogen (AEL),ZAF-FRS,COST-FLOW,Electricity and H2 storage"},"PTX-BusinessOpportunityAnalyzer-1.0.9",{"$f":"sel_country_code","v":"DEU"},"Hydrogen (AEL)",{"$f":"_calc!$B$1062","v":"ZAF-FRS"},{"$f":"_calc!$BO$990","v":"COST-FLOW"},{"$f":"_calc!$BX$1","v":"Electricity and H2 storage"},{"$f":"_calc!$BX$1062","v":0}]
[{"$f":"_xlfn.TEXTJOIN(\",\",FALSE,output[[#This Row],[scenario]:[process_class]])","v":"PTX-BusinessOpportunityAnalyzer-1.0.9,DEU,Hydrogen (AEL),ZAF-GAU,COST-FLOW,Water"},"PTX-BusinessOpportunityAnalyzer-1.0.9",{"$f":"sel_country_code","v":"DEU"},"Hydrogen (AEL)",{"$f":"_calc!$B$1063","v":"ZAF-GAU"},{"$f":"_calc!$BO$990","v":"COST-FLOW"},{"$f":"_calc!$BP$1","v":"Water"},{"$f":"_calc!$BP$1063","v":8.5694878213333825E-2}]
[{"$f":"_xlfn.TEXTJOIN(\",\",FALSE,output[[#This Row],[scenario]:[process_class]])","v":"PTX-BusinessOpportunityAnalyzer-1.0.9,DEU,Hydrogen (AEL),ZAF-GAU,COST-FLOW,Electrolysis"},"PTX-BusinessOpportunityAnalyzer-1.0.9",{"$f":"sel_country_code","v":"DEU"},"Hydrogen (AEL)",{"$f":"_calc!$B$1063","v":"ZAF-GAU"},{"$f":"_calc!$BO$990","v":"COST-FLOW"},{"$f":"_calc!$BQ$1","v":"Electrolysis"},{"$f":"_calc!$BQ$1063","v":0}]
[{"$f":"_xlfn.TEXTJOIN(\",\",FALSE,output[[#This Row],[scenario]:[process_class]])","v":"PTX-BusinessOpportunityAnalyzer-1.0.9,DEU,Hydrogen (AEL),ZAF-GAU,COST-FLOW,Electricity generation"},"PTX-BusinessOpportunityAnalyzer-1.0.9",{"$f":"sel_country_code","v":"DEU"},"Hydrogen (AEL)",{"$f":"_calc!$B$1063","v":"ZAF-GAU"},{"$f":"_calc!$BO$990","v":"COST-FLOW"},{"$f":"_calc!$BR$1","v":"Electricity generation"},{"$f":"_calc!$BR$1063","v":0}]
[{"$f":"_xlfn.TEXTJOIN(\",\",FALSE,output[[#This Row],[scenario]:[process_class]])","v":"PTX-BusinessOpportunityAnalyzer-1.0.9,DEU,Hydrogen (AEL),ZAF-GAU,COST-FLOW,Transportation (Pipeline)"},"PTX-BusinessOpportunityAnalyzer-1.0.9",{"$f":"sel_country_code","v":"DEU"},"Hydrogen (AEL)",{"$f":"_calc!$B$1063","v":"ZAF-GAU"},{"$f":"_calc!$BO$990","v":"COST-FLOW"},{"$f":"_calc!$BS$1","v":"Transportation (Pipeline)"},{"$f":"_calc!$BS$1063","v":0}]
[{"$f":"_xlfn.TEXTJOIN(\",\",FALSE,output[[#This Row],[scenario]:[process_class]])","v":"PTX-BusinessOpportunityAnalyzer-1.0.9,DEU,Hydrogen (AEL),ZAF-GAU,COST-FLOW,Transportation (Ship)"},"PTX-BusinessOpportunityAnalyzer-1.0.9",{"$f":"sel_country_code","v":"DEU"},"Hydrogen (AEL)",{"$f":"_calc!$B$1063","v":"ZAF-GAU"},{"$f":"_calc!$BO$990","v":"COST-FLOW"},{"$f":"_calc!$BT$1","v":"Transportation (Ship)"},{"$f":"_calc!$BT$1063","v":28.57448423252211}]
[{"$f":"_xlfn.TEXTJOIN(\",\",FALSE,output[[#This Row],[scenario]:[process_class]])","v":"PTX-BusinessOpportunityAnalyzer-1.0.9,DEU,Hydrogen (AEL),ZAF-GAU,COST-FLOW,Carbon"},"PTX-BusinessOpportunityAnalyzer-1.0.9",{"$f":"sel_country_code","v":"DEU"},"Hydrogen (AEL)",{"$f":"_calc!$B$1063","v":"ZAF-GAU"},{"$f":"_calc!$BO$990","v":"COST-FLOW"},{"$f":"_calc!$BU$1","v":"Carbon"},{"$f":"_calc!$BU$1063","v":0}]
[{"$f":"_xlfn.TEXTJOIN(\",\",FALSE,output[[#This Row],[scenario]:[process_class]])","v":"PTX-BusinessOpportunityAnalyzer-1.0.9,DEU,Hydrogen (AEL),ZAF-GAU,COST-FLOW,Derivate production"},"PTX-BusinessOpportunityAnalyzer-1.0.9",{"$f":"sel_country_code","v":"DEU"},"Hydrogen (AEL)",{"$f":"_calc!$B$1063","v":"ZAF-GAU"},{"$f":"_calc!$BO$990","v":"COST-FLOW"},{"$f":"_calc!$BV$1","v":"Derivate production"},{"$f":"_calc!$BV$1063","v":0}]
[{"$f":"_xlfn.TEXTJOIN(\",\",FALSE,output[[#This Row],[scenario]:[process_class]])","v":"PTX-BusinessOpportunityAnalyzer-1.0.9,DEU,Hydrogen (AEL),ZAF-GAU,COST-FLOW,Heat"},"PTX-BusinessOpportunityAnalyzer-1.0.9",{"$f":"sel_country_code","v":"DEU"},"Hydrogen (AEL)",{"$f":"_calc!$B$1063","v":"ZAF-GAU"},{"$f":"_calc!$BO$990","v":"COST-FLOW"},{"$f":"_calc!$BW$1","v":"Heat"},{"$f":"_calc!$BW$1063","v":0}]
[{"$f":"_xlfn.TEXTJOIN(\",\",FALSE,output[[#This Row],[scenario]:[process_class]])","v":"PTX-BusinessOpportunityAnalyzer-1.0.9,DEU,Hydrogen (AEL),ZAF-GAU,COST-FLOW,Electricity and H2 storage"},"PTX-BusinessOpportunityAnalyzer-1.0.9",{"$f":"sel_country_code","v":"DEU"},"Hydrogen (AEL)",{"$f":"_calc!$B$1063","v":"ZAF-GAU"},{"$f":"_calc!$BO$990","v":"COST-FLOW"},{"$f":"_calc!$BX$1","v":"Electricity and H2 storage"},{"$f":"_calc!$BX$1063","v":0}]
[{"$f":"_xlfn.TEXTJOIN(\",\",FALSE,output[[#This Row],[scenario]:[process_class]])","v":"PTX-BusinessOpportunityAnalyzer-1.0.9,DEU,Hydrogen (AEL),ZAF-KWA,COST-FLOW,Water"},"PTX-BusinessOpportunityAnalyzer-1.0.9",{"$f":"sel_country_code","v":"DEU"},"Hydrogen (AEL)",{"$f":"_calc!$B$1064","v":"ZAF-KWA"},{"$f":"_calc!$BO$990","v":"COST-FLOW"},{"$f":"_calc!$BP$1","v":"Water"},{"$f":"_calc!$BP$1064","v":8.5694878213333825E-2}]
[{"$f":"_xlfn.TEXTJOIN(\",\",FALSE,output[[#This Row],[scenario]:[process_class]])","v":"PTX-BusinessOpportunityAnalyzer-1.0.9,DEU,Hydrogen (AEL),ZAF-KWA,COST-FLOW,Electrolysis"},"PTX-BusinessOpportunityAnalyzer-1.0.9",{"$f":"sel_country_code","v":"DEU"},"Hydrogen (AEL)",{"$f":"_calc!$B$1064","v":"ZAF-KWA"},{"$f":"_calc!$BO$990","v":"COST-FLOW"},{"$f":"_calc!$BQ$1","v":"Electrolysis"},{"$f":"_calc!$BQ$1064","v":0}]
[{"$f":"_xlfn.TEXTJOIN(\",\",FALSE,output[[#This Row],[scenario]:[process_class]])","v":"PTX-BusinessOpportunityAnalyzer-1.0.9,DEU,Hydrogen (AEL),ZAF-KWA,COST-FLOW,Electricity generation"},"PTX-BusinessOpportunityAnalyzer-1.0.9",{"$f":"sel_country_code","v":"DEU"},"Hydrogen (AEL)",{"$f":"_calc!$B$1064","v":"ZAF-KWA"},{"$f":"_calc!$BO$990","v":"COST-FLOW"},{"$f":"_calc!$BR$1","v":"Electricity generation"},{"$f":"_calc!$BR$1064","v":0}]
[{"$f":"_xlfn.TEXTJOIN(\",\",FALSE,output[[#This Row],[scenario]:[process_class]])","v":"PTX-BusinessOpportunityAnalyzer-1.0.9,DEU,Hydrogen (AEL),ZAF-KWA,COST-FLOW,Transportation (Pipeline)"},"PTX-BusinessOpportunityAnalyzer-1.0.9",{"$f":"sel_country_code","v":"DEU"},"Hydrogen (AEL)",{"$f":"_calc!$B$1064","v":"ZAF-KWA"},{"$f":"_calc!$BO$990","v":"COST-FLOW"},{"$f":"_calc!$BS$1","v":"Transportation (Pipeline)"},{"$f":"_calc!$BS$1064","v":0}]
[{"$f":"_xlfn.TEXTJOIN(\",\",FALSE,output[[#This Row],[scenario]:[process_class]])","v":"PTX-BusinessOpportunityAnalyzer-1.0.9,DEU,Hydrogen (AEL),ZAF-KWA,COST-FLOW,Transportation (Ship)"},"PTX-BusinessOpportunityAnalyzer-1.0.9",{"$f":"sel_country_code","v":"DEU"},"Hydrogen (AEL)",{"$f":"_calc!$B$1064","v":"ZAF-KWA"},{"$f":"_calc!$BO$990","v":"COST-FLOW"},{"$f":"_calc!$BT$1","v":"Transportation (Ship)"},{"$f":"_calc!$BT$1064","v":28.57448423252211}]
[{"$f":"_xlfn.TEXTJOIN(\",\",FALSE,output[[#This Row],[scenario]:[process_class]])","v":"PTX-BusinessOpportunityAnalyzer-1.0.9,DEU,Hydrogen (AEL),ZAF-KWA,COST-FLOW,Carbon"},"PTX-BusinessOpportunityAnalyzer-1.0.9",{"$f":"sel_country_code","v":"DEU"},"Hydrogen (AEL)",{"$f":"_calc!$B$1064","v":"ZAF-KWA"},{"$f":"_calc!$BO$990","v":"COST-FLOW"},{"$f":"_calc!$BU$1","v":"Carbon"},{"$f":"_calc!$BU$1064","v":0}]
[{"$f":"_xlfn.TEXTJOIN(\",\",FALSE,output[[#This Row],[scenario]:[process_class]])","v":"PTX-BusinessOpportunityAnalyzer-1.0.9,DEU,Hydrogen (AEL),ZAF-KWA,COST-FLOW,Derivate production"},"PTX-BusinessOpportunityAnalyzer-1.0.9",{"$f":"sel_country_code","v":"DEU"},"Hydrogen (AEL)",{"$f":"_calc!$B$1064","v":"ZAF-KWA"},{"$f":"_calc!$BO$990","v":"COST-FLOW"},{"$f":"_calc!$BV$1","v":"Derivate production"},{"$f":"_calc!$BV$1064","v":0}]
[{"$f":"_xlfn.TEXTJOIN(\",\",FALSE,output[[#This Row],[scenario]:[process_class]])","v":"PTX-BusinessOpportunityAnalyzer-1.0.9,DEU,Hydrogen (AEL),ZAF-KWA,COST-FLOW,Heat"},"PTX-BusinessOpportunityAnalyzer-1.0.9",{"$f":"sel_country_code","v":"DEU"},"Hydrogen (AEL)",{"$f":"_calc!$B$1064","v":"ZAF-KWA"},{"$f":"_calc!$BO$990","v":"COST-FLOW"},{"$f":"_calc!$BW$1","v":"Heat"},{"$f":"_calc!$BW$1064","v":0}]
[{"$f":"_xlfn.TEXTJOIN(\",\",FALSE,output[[#This Row],[scenario]:[process_class]])","v":"PTX-BusinessOpportunityAnalyzer-1.0.9,DEU,Hydrogen (AEL),ZAF-KWA,COST-FLOW,Electricity and H2 storage"},"PTX-BusinessOpportunityAnalyzer-1.0.9",{"$f":"sel_country_code","v":"DEU"},"Hydrogen (AEL)",{"$f":"_calc!$B$1064","v":"ZAF-KWA"},{"$f":"_calc!$BO$990","v":"COST-FLOW"},{"$f":"_calc!$BX$1","v":"Electricity and H2 storage"},{"$f":"_calc!$BX$1064","v":0}]
[{"$f":"_xlfn.TEXTJOIN(\",\",FALSE,output[[#This Row],[scenario]:[process_class]])","v":"PTX-BusinessOpportunityAnalyzer-1.0.9,DEU,Hydrogen (AEL),ZAF-LIM,COST-FLOW,Water"},"PTX-BusinessOpportunityAnalyzer-1.0.9",{"$f":"sel_country_code","v":"DEU"},"Hydrogen (AEL)",{"$f":"_calc!$B$1065","v":"ZAF-LIM"},{"$f":"_calc!$BO$990","v":"COST-FLOW"},{"$f":"_calc!$BP$1","v":"Water"},{"$f":"_calc!$BP$1065","v":8.5694878213333825E-2}]
[{"$f":"_xlfn.TEXTJOIN(\",\",FALSE,output[[#This Row],[scenario]:[process_class]])","v":"PTX-BusinessOpportunityAnalyzer-1.0.9,DEU,Hydrogen (AEL),ZAF-LIM,COST-FLOW,Electrolysis"},"PTX-BusinessOpportunityAnalyzer-1.0.9",{"$f":"sel_country_code","v":"DEU"},"Hydrogen (AEL)",{"$f":"_calc!$B$1065","v":"ZAF-LIM"},{"$f":"_calc!$BO$990","v":"COST-FLOW"},{"$f":"_calc!$BQ$1","v":"Electrolysis"},{"$f":"_calc!$BQ$1065","v":0}]
[{"$f":"_xlfn.TEXTJOIN(\",\",FALSE,output[[#This Row],[scenario]:[process_class]])","v":"PTX-BusinessOpportunityAnalyzer-1.0.9,DEU,Hydrogen (AEL),ZAF-LIM,COST-FLOW,Electricity generation"},"PTX-BusinessOpportunityAnalyzer-1.0.9",{"$f":"sel_country_code","v":"DEU"},"Hydrogen (AEL)",{"$f":"_calc!$B$1065","v":"ZAF-LIM"},{"$f":"_calc!$BO$990","v":"COST-FLOW"},{"$f":"_calc!$BR$1","v":"Electricity generation"},{"$f":"_calc!$BR$1065","v":0}]
[{"$f":"_xlfn.TEXTJOIN(\",\",FALSE,output[[#This Row],[scenario]:[process_class]])","v":"PTX-BusinessOpportunityAnalyzer-1.0.9,DEU,Hydrogen (AEL),ZAF-LIM,COST-FLOW,Transportation (Pipeline)"},"PTX-BusinessOpportunityAnalyzer-1.0.9",{"$f":"sel_country_code","v":"DEU"},"Hydrogen (AEL)",{"$f":"_calc!$B$1065","v":"ZAF-LIM"},{"$f":"_calc!$BO$990","v":"COST-FLOW"},{"$f":"_calc!$BS$1","v":"Transportation (Pipeline)"},{"$f":"_calc!$BS$1065","v":0}]
[{"$f":"_xlfn.TEXTJOIN(\",\",FALSE,output[[#This Row],[scenario]:[process_class]])","v":"PTX-BusinessOpportunityAnalyzer-1.0.9,DEU,Hydrogen (AEL),ZAF-LIM,COST-FLOW,Transportation (Ship)"},"PTX-BusinessOpportunityAnalyzer-1.0.9",{"$f":"sel_country_code","v":"DEU"},"Hydrogen (AEL)",{"$f":"_calc!$B$1065","v":"ZAF-LIM"},{"$f":"_calc!$BO$990","v":"COST-FLOW"},{"$f":"_calc!$BT$1","v":"Transportation (Ship)"},{"$f":"_calc!$BT$1065","v":28.57448423252211}]
[{"$f":"_xlfn.TEXTJOIN(\",\",FALSE,output[[#This Row],[scenario]:[process_class]])","v":"PTX-BusinessOpportunityAnalyzer-1.0.9,DEU,Hydrogen (AEL),ZAF-LIM,COST-FLOW,Carbon"},"PTX-BusinessOpportunityAnalyzer-1.0.9",{"$f":"sel_country_code","v":"DEU"},"Hydrogen (AEL)",{"$f":"_calc!$B$1065","v":"ZAF-LIM"},{"$f":"_calc!$BO$990","v":"COST-FLOW"},{"$f":"_calc!$BU$1","v":"Carbon"},{"$f":"_calc!$BU$1065","v":0}]
[{"$f":"_xlfn.TEXTJOIN(\",\",FALSE,output[[#This Row],[scenario]:[process_class]])","v":"PTX-BusinessOpportunityAnalyzer-1.0.9,DEU,Hydrogen (AEL),ZAF-LIM,COST-FLOW,Derivate production"},"PTX-BusinessOpportunityAnalyzer-1.0.9",{"$f":"sel_country_code","v":"DEU"},"Hydrogen (AEL)",{"$f":"_calc!$B$1065","v":"ZAF-LIM"},{"$f":"_calc!$BO$990","v":"COST-FLOW"},{"$f":"_calc!$BV$1","v":"Derivate production"},{"$f":"_calc!$BV$1065","v":0}]
[{"$f":"_xlfn.TEXTJOIN(\",\",FALSE,output[[#This Row],[scenario]:[process_class]])","v":"PTX-BusinessOpportunityAnalyzer-1.0.9,DEU,Hydrogen (AEL),ZAF-LIM,COST-FLOW,Heat"},"PTX-BusinessOpportunityAnalyzer-1.0.9",{"$f":"sel_country_code","v":"DEU"},"Hydrogen (AEL)",{"$f":"_calc!$B$1065","v":"ZAF-LIM"},{"$f":"_calc!$BO$990","v":"COST-FLOW"},{"$f":"_calc!$BW$1","v":"Heat"},{"$f":"_calc!$BW$1065","v":0}]
[{"$f":"_xlfn.TEXTJOIN(\",\",FALSE,output[[#This Row],[scenario]:[process_class]])","v":"PTX-BusinessOpportunityAnalyzer-1.0.9,DEU,Hydrogen (AEL),ZAF-LIM,COST-FLOW,Electricity and H2 storage"},"PTX-BusinessOpportunityAnalyzer-1.0.9",{"$f":"sel_country_code","v":"DEU"},"Hydrogen (AEL)",{"$f":"_calc!$B$1065","v":"ZAF-LIM"},{"$f":"_calc!$BO$990","v":"COST-FLOW"},{"$f":"_calc!$BX$1","v":"Electricity and H2 storage"},{"$f":"_calc!$BX$1065","v":0}]
[{"$f":"_xlfn.TEXTJOIN(\",\",FALSE,output[[#This Row],[scenario]:[process_class]])","v":"PTX-BusinessOpportunityAnalyzer-1.0.9,DEU,Hydrogen (AEL),ZAF-MPU,COST-FLOW,Water"},"PTX-BusinessOpportunityAnalyzer-1.0.9",{"$f":"sel_country_code","v":"DEU"},"Hydrogen (AEL)",{"$f":"_calc!$B$1066","v":"ZAF-MPU"},{"$f":"_calc!$BO$990","v":"COST-FLOW"},{"$f":"_calc!$BP$1","v":"Water"},{"$f":"_calc!$BP$1066","v":8.5694878213333825E-2}]
[{"$f":"_xlfn.TEXTJOIN(\",\",FALSE,output[[#This Row],[scenario]:[process_class]])","v":"PTX-BusinessOpportunityAnalyzer-1.0.9,DEU,Hydrogen (AEL),ZAF-MPU,COST-FLOW,Electrolysis"},"PTX-BusinessOpportunityAnalyzer-1.0.9",{"$f":"sel_country_code","v":"DEU"},"Hydrogen (AEL)",{"$f":"_calc!$B$1066","v":"ZAF-MPU"},{"$f":"_calc!$BO$990","v":"COST-FLOW"},{"$f":"_calc!$BQ$1","v":"Electrolysis"},{"$f":"_calc!$BQ$1066","v":0}]
[{"$f":"_xlfn.TEXTJOIN(\",\",FALSE,output[[#This Row],[scenario]:[process_class]])","v":"PTX-BusinessOpportunityAnalyzer-1.0.9,DEU,Hydrogen (AEL),ZAF-MPU,COST-FLOW,Electricity generation"},"PTX-BusinessOpportunityAnalyzer-1.0.9",{"$f":"sel_country_code","v":"DEU"},"Hydrogen (AEL)",{"$f":"_calc!$B$1066","v":"ZAF-MPU"},{"$f":"_calc!$BO$990","v":"COST-FLOW"},{"$f":"_calc!$BR$1","v":"Electricity generation"},{"$f":"_calc!$BR$1066","v":0}]
[{"$f":"_xlfn.TEXTJOIN(\",\",FALSE,output[[#This Row],[scenario]:[process_class]])","v":"PTX-BusinessOpportunityAnalyzer-1.0.9,DEU,Hydrogen (AEL),ZAF-MPU,COST-FLOW,Transportation (Pipeline)"},"PTX-BusinessOpportunityAnalyzer-1.0.9",{"$f":"sel_country_code","v":"DEU"},"Hydrogen (AEL)",{"$f":"_calc!$B$1066","v":"ZAF-MPU"},{"$f":"_calc!$BO$990","v":"COST-FLOW"},{"$f":"_calc!$BS$1","v":"Transportation (Pipeline)"},{"$f":"_calc!$BS$1066","v":0}]
[{"$f":"_xlfn.TEXTJOIN(\",\",FALSE,output[[#This Row],[scenario]:[process_class]])","v":"PTX-BusinessOpportunityAnalyzer-1.0.9,DEU,Hydrogen (AEL),ZAF-MPU,COST-FLOW,Transportation (Ship)"},"PTX-BusinessOpportunityAnalyzer-1.0.9",{"$f":"sel_country_code","v":"DEU"},"Hydrogen (AEL)",{"$f":"_calc!$B$1066","v":"ZAF-MPU"},{"$f":"_calc!$BO$990","v":"COST-FLOW"},{"$f":"_calc!$BT$1","v":"Transportation (Ship)"},{"$f":"_calc!$BT$1066","v":28.57448423252211}]
[{"$f":"_xlfn.TEXTJOIN(\",\",FALSE,output[[#This Row],[scenario]:[process_class]])","v":"PTX-BusinessOpportunityAnalyzer-1.0.9,DEU,Hydrogen (AEL),ZAF-MPU,COST-FLOW,Carbon"},"PTX-BusinessOpportunityAnalyzer-1.0.9",{"$f":"sel_country_code","v":"DEU"},"Hydrogen (AEL)",{"$f":"_calc!$B$1066","v":"ZAF-MPU"},{"$f":"_calc!$BO$990","v":"COST-FLOW"},{"$f":"_calc!$BU$1","v":"Carbon"},{"$f":"_calc!$BU$1066","v":0}]
[{"$f":"_xlfn.TEXTJOIN(\",\",FALSE,output[[#This Row],[scenario]:[process_class]])","v":"PTX-BusinessOpportunityAnalyzer-1.0.9,DEU,Hydrogen (AEL),ZAF-MPU,COST-FLOW,Derivate production"},"PTX-BusinessOpportunityAnalyzer-1.0.9",{"$f":"sel_country_code","v":"DEU"},"Hydrogen (AEL)",{"$f":"_calc!$B$1066","v":"ZAF-MPU"},{"$f":"_calc!$BO$990","v":"COST-FLOW"},{"$f":"_calc!$BV$1","v":"Derivate production"},{"$f":"_calc!$BV$1066","v":0}]
[{"$f":"_xlfn.TEXTJOIN(\",\",FALSE,output[[#This Row],[scenario]:[process_class]])","v":"PTX-BusinessOpportunityAnalyzer-1.0.9,DEU,Hydrogen (AEL),ZAF-MPU,COST-FLOW,Heat"},"PTX-BusinessOpportunityAnalyzer-1.0.9",{"$f":"sel_country_code","v":"DEU"},"Hydrogen (AEL)",{"$f":"_calc!$B$1066","v":"ZAF-MPU"},{"$f":"_calc!$BO$990","v":"COST-FLOW"},{"$f":"_calc!$BW$1","v":"Heat"},{"$f":"_calc!$BW$1066","v":0}]
[{"$f":"_xlfn.TEXTJOIN(\",\",FALSE,output[[#This Row],[scenario]:[process_class]])","v":"PTX-BusinessOpportunityAnalyzer-1.0.9,DEU,Hydrogen (AEL),ZAF-MPU,COST-FLOW,Electricity and H2 storage"},"PTX-BusinessOpportunityAnalyzer-1.0.9",{"$f":"sel_country_code","v":"DEU"},"Hydrogen (AEL)",{"$f":"_calc!$B$1066","v":"ZAF-MPU"},{"$f":"_calc!$BO$990","v":"COST-FLOW"},{"$f":"_calc!$BX$1","v":"Electricity and H2 storage"},{"$f":"_calc!$BX$1066","v":0}]
[{"$f":"_xlfn.TEXTJOIN(\",\",FALSE,output[[#This Row],[scenario]:[process_class]])","v":"PTX-BusinessOpportunityAnalyzer-1.0.9,DEU,Hydrogen (AEL),ZAF-NC,COST-FLOW,Water"},"PTX-BusinessOpportunityAnalyzer-1.0.9",{"$f":"sel_country_code","v":"DEU"},"Hydrogen (AEL)",{"$f":"_calc!$B$1067","v":"ZAF-NC"},{"$f":"_calc!$BO$990","v":"COST-FLOW"},{"$f":"_calc!$BP$1","v":"Water"},{"$f":"_calc!$BP$1067","v":8.5694878213333825E-2}]
[{"$f":"_xlfn.TEXTJOIN(\",\",FALSE,output[[#This Row],[scenario]:[process_class]])","v":"PTX-BusinessOpportunityAnalyzer-1.0.9,DEU,Hydrogen (AEL),ZAF-NC,COST-FLOW,Electrolysis"},"PTX-BusinessOpportunityAnalyzer-1.0.9",{"$f":"sel_country_code","v":"DEU"},"Hydrogen (AEL)",{"$f":"_calc!$B$1067","v":"ZAF-NC"},{"$f":"_calc!$BO$990","v":"COST-FLOW"},{"$f":"_calc!$BQ$1","v":"Electrolysis"},{"$f":"_calc!$BQ$1067","v":0}]
[{"$f":"_xlfn.TEXTJOIN(\",\",FALSE,output[[#This Row],[scenario]:[process_class]])","v":"PTX-BusinessOpportunityAnalyzer-1.0.9,DEU,Hydrogen (AEL),ZAF-NC,COST-FLOW,Electricity generation"},"PTX-BusinessOpportunityAnalyzer-1.0.9",{"$f":"sel_country_code","v":"DEU"},"Hydrogen (AEL)",{"$f":"_calc!$B$1067","v":"ZAF-NC"},{"$f":"_calc!$BO$990","v":"COST-FLOW"},{"$f":"_calc!$BR$1","v":"Electricity generation"},{"$f":"_calc!$BR$1067","v":0}]
[{"$f":"_xlfn.TEXTJOIN(\",\",FALSE,output[[#This Row],[scenario]:[process_class]])","v":"PTX-BusinessOpportunityAnalyzer-1.0.9,DEU,Hydrogen (AEL),ZAF-NC,COST-FLOW,Transportation (Pipeline)"},"PTX-BusinessOpportunityAnalyzer-1.0.9",{"$f":"sel_country_code","v":"DEU"},"Hydrogen (AEL)",{"$f":"_calc!$B$1067","v":"ZAF-NC"},{"$f":"_calc!$BO$990","v":"COST-FLOW"},{"$f":"_calc!$BS$1","v":"Transportation (Pipeline)"},{"$f":"_calc!$BS$1067","v":0}]
[{"$f":"_xlfn.TEXTJOIN(\",\",FALSE,output[[#This Row],[scenario]:[process_class]])","v":"PTX-BusinessOpportunityAnalyzer-1.0.9,DEU,Hydrogen (AEL),ZAF-NC,COST-FLOW,Transportation (Ship)"},"PTX-BusinessOpportunityAnalyzer-1.0.9",{"$f":"sel_country_code","v":"DEU"},"Hydrogen (AEL)",{"$f":"_calc!$B$1067","v":"ZAF-NC"},{"$f":"_calc!$BO$990","v":"COST-FLOW"},{"$f":"_calc!$BT$1","v":"Transportation (Ship)"},{"$f":"_calc!$BT$1067","v":28.57448423252211}]
[{"$f":"_xlfn.TEXTJOIN(\",\",FALSE,output[[#This Row],[scenario]:[process_class]])","v":"PTX-BusinessOpportunityAnalyzer-1.0.9,DEU,Hydrogen (AEL),ZAF-NC,COST-FLOW,Carbon"},"PTX-BusinessOpportunityAnalyzer-1.0.9",{"$f":"sel_country_code","v":"DEU"},"Hydrogen (AEL)",{"$f":"_calc!$B$1067","v":"ZAF-NC"},{"$f":"_calc!$BO$990","v":"COST-FLOW"},{"$f":"_calc!$BU$1","v":"Carbon"},{"$f":"_calc!$BU$1067","v":0}]
[{"$f":"_xlfn.TEXTJOIN(\",\",FALSE,output[[#This Row],[scenario]:[process_class]])","v":"PTX-BusinessOpportunityAnalyzer-1.0.9,DEU,Hydrogen (AEL),ZAF-NC,COST-FLOW,Derivate production"},{"$f":"output_scenario_name","v":"PTX-BusinessOpportunityAnalyzer-1.0.9"},{"$f":"sel_country_code","v":"DEU"},{"$f":"sel_chain","v":"Hydrogen (AEL)"},{"$f":"_calc!$B$1067","v":"ZAF-NC"},{"$f":"_calc!$BO$990","v":"COST-FLOW"},{"$f":"_calc!$BV$1","v":"Derivate production"},{"$f":"_calc!$BV$1067","v":0}]
[{"$f":"_xlfn.TEXTJOIN(\",\",FALSE,output[[#This Row],[scenario]:[process_class]])","v":"PTX-BusinessOpportunityAnalyzer-1.0.9,DEU,Hydrogen (AEL),ZAF-NC,COST-FLOW,Heat"},"PTX-BusinessOpportunityAnalyzer-1.0.9",{"$f":"sel_country_code","v":"DEU"},"Hydrogen (AEL)",{"$f":"_calc!$B$1067","v":"ZAF-NC"},{"$f":"_calc!$BO$990","v":"COST-FLOW"},{"$f":"_calc!$BW$1","v":"Heat"},{"$f":"_calc!$BW$1067","v":0}]
[{"$f":"_xlfn.TEXTJOIN(\",\",FALSE,output[[#This Row],[scenario]:[process_class]])","v":"PTX-BusinessOpportunityAnalyzer-1.0.9,DEU,Hydrogen (AEL),ZAF-NC,COST-FLOW,Electricity and H2 storage"},"PTX-BusinessOpportunityAnalyzer-1.0.9",{"$f":"sel_country_code","v":"DEU"},"Hydrogen (AEL)",{"$f":"_calc!$B$1067","v":"ZAF-NC"},{"$f":"_calc!$BO$990","v":"COST-FLOW"},{"$f":"_calc!$BX$1","v":"Electricity and H2 storage"},{"$f":"_calc!$BX$1067","v":0}]
[{"$f":"_xlfn.TEXTJOIN(\",\",FALSE,output[[#This Row],[scenario]:[process_class]])","v":"PTX-BusinessOpportunityAnalyzer-1.0.9,DEU,Hydrogen (AEL),ZAF-NW,COST-FLOW,Water"},"PTX-BusinessOpportunityAnalyzer-1.0.9",{"$f":"sel_country_code","v":"DEU"},"Hydrogen (AEL)",{"$f":"_calc!$B$1068","v":"ZAF-NW"},{"$f":"_calc!$BO$990","v":"COST-FLOW"},{"$f":"_calc!$BP$1","v":"Water"},{"$f":"_calc!$BP$1068","v":8.5694878213333825E-2}]
[{"$f":"_xlfn.TEXTJOIN(\",\",FALSE,output[[#This Row],[scenario]:[process_class]])","v":"PTX-BusinessOpportunityAnalyzer-1.0.9,DEU,Hydrogen (AEL),ZAF-NW,COST-FLOW,Electrolysis"},"PTX-BusinessOpportunityAnalyzer-1.0.9",{"$f":"sel_country_code","v":"DEU"},"Hydrogen (AEL)",{"$f":"_calc!$B$1068","v":"ZAF-NW"},{"$f":"_calc!$BO$990","v":"COST-FLOW"},{"$f":"_calc!$BQ$1","v":"Electrolysis"},{"$f":"_calc!$BQ$1068","v":0}]
[{"$f":"_xlfn.TEXTJOIN(\",\",FALSE,output[[#This Row],[scenario]:[process_class]])","v":"PTX-BusinessOpportunityAnalyzer-1.0.9,DEU,Hydrogen (AEL),ZAF-NW,COST-FLOW,Electricity generation"},"PTX-BusinessOpportunityAnalyzer-1.0.9",{"$f":"sel_country_code","v":"DEU"},"Hydrogen (AEL)",{"$f":"_calc!$B$1068","v":"ZAF-NW"},{"$f":"_calc!$BO$990","v":"COST-FLOW"},{"$f":"_calc!$BR$1","v":"Electricity generation"},{"$f":"_calc!$BR$1068","v":0}]
[{"$f":"_xlfn.TEXTJOIN(\",\",FALSE,output[[#This Row],[scenario]:[process_class]])","v":"PTX-BusinessOpportunityAnalyzer-1.0.9,DEU,Hydrogen (AEL),ZAF-NW,COST-FLOW,Transportation (Pipeline)"},"PTX-BusinessOpportunityAnalyzer-1.0.9",{"$f":"sel_country_code","v":"DEU"},"Hydrogen (AEL)",{"$f":"_calc!$B$1068","v":"ZAF-NW"},{"$f":"_calc!$BO$990","v":"COST-FLOW"},{"$f":"_calc!$BS$1","v":"Transportation (Pipeline)"},{"$f":"_calc!$BS$1068","v":0}]
[{"$f":"_xlfn.TEXTJOIN(\",\",FALSE,output[[#This Row],[scenario]:[process_class]])","v":"PTX-BusinessOpportunityAnalyzer-1.0.9,DEU,Hydrogen (AEL),ZAF-NW,COST-FLOW,Transportation (Ship)"},"PTX-BusinessOpportunityAnalyzer-1.0.9",{"$f":"sel_country_code","v":"DEU"},"Hydrogen (AEL)",{"$f":"_calc!$B$1068","v":"ZAF-NW"},{"$f":"_calc!$BO$990","v":"COST-FLOW"},{"$f":"_calc!$BT$1","v":"Transportation (Ship)"},{"$f":"_calc!$BT$1068","v":28.57448423252211}]
[{"$f":"_xlfn.TEXTJOIN(\",\",FALSE,output[[#This Row],[scenario]:[process_class]])","v":"PTX-BusinessOpportunityAnalyzer-1.0.9,DEU,Hydrogen (AEL),ZAF-NW,COST-FLOW,Carbon"},"PTX-BusinessOpportunityAnalyzer-1.0.9",{"$f":"sel_country_code","v":"DEU"},"Hydrogen (AEL)",{"$f":"_calc!$B$1068","v":"ZAF-NW"},{"$f":"_calc!$BO$990","v":"COST-FLOW"},{"$f":"_calc!$BU$1","v":"Carbon"},{"$f":"_calc!$BU$1068","v":0}]
[{"$f":"_xlfn.TEXTJOIN(\",\",FALSE,output[[#This Row],[scenario]:[process_class]])","v":"PTX-BusinessOpportunityAnalyzer-1.0.9,DEU,Hydrogen (AEL),ZAF-NW,COST-FLOW,Derivate production"},"PTX-BusinessOpportunityAnalyzer-1.0.9",{"$f":"sel_country_code","v":"DEU"},"Hydrogen (AEL)",{"$f":"_calc!$B$1068","v":"ZAF-NW"},{"$f":"_calc!$BO$990","v":"COST-FLOW"},{"$f":"_calc!$BV$1","v":"Derivate production"},{"$f":"_calc!$BV$1068","v":0}]
[{"$f":"_xlfn.TEXTJOIN(\",\",FALSE,output[[#This Row],[scenario]:[process_class]])","v":"PTX-BusinessOpportunityAnalyzer-1.0.9,DEU,Hydrogen (AEL),ZAF-NW,COST-FLOW,Heat"},"PTX-BusinessOpportunityAnalyzer-1.0.9",{"$f":"sel_country_code","v":"DEU"},"Hydrogen (AEL)",{"$f":"_calc!$B$1068","v":"ZAF-NW"},{"$f":"_calc!$BO$990","v":"COST-FLOW"},{"$f":"_calc!$BW$1","v":"Heat"},{"$f":"_calc!$BW$1068","v":0}]
[{"$f":"_xlfn.TEXTJOIN(\",\",FALSE,output[[#This Row],[scenario]:[process_class]])","v":"PTX-BusinessOpportunityAnalyzer-1.0.9,DEU,Hydrogen (AEL),ZAF-NW,COST-FLOW,Electricity and H2 storage"},"PTX-BusinessOpportunityAnalyzer-1.0.9",{"$f":"sel_country_code","v":"DEU"},"Hydrogen (AEL)",{"$f":"_calc!$B$1068","v":"ZAF-NW"},{"$f":"_calc!$BO$990","v":"COST-FLOW"},{"$f":"_calc!$BX$1","v":"Electricity and H2 storage"},{"$f":"_calc!$BX$1068","v":0}]
[{"$f":"_xlfn.TEXTJOIN(\",\",FALSE,output[[#This Row],[scenario]:[process_class]])","v":"PTX-BusinessOpportunityAnalyzer-1.0.9,DEU,Hydrogen (AEL),ZAF-WC,COST-FLOW,Water"},"PTX-BusinessOpportunityAnalyzer-1.0.9",{"$f":"sel_country_code","v":"DEU"},"Hydrogen (AEL)",{"$f":"_calc!$B$1069","v":"ZAF-WC"},{"$f":"_calc!$BO$990","v":"COST-FLOW"},{"$f":"_calc!$BP$1","v":"Water"},{"$f":"_calc!$BP$1069","v":8.5694878213333825E-2}]
[{"$f":"_xlfn.TEXTJOIN(\",\",FALSE,output[[#This Row],[scenario]:[process_class]])","v":"PTX-BusinessOpportunityAnalyzer-1.0.9,DEU,Hydrogen (AEL),ZAF-WC,COST-FLOW,Electrolysis"},"PTX-BusinessOpportunityAnalyzer-1.0.9",{"$f":"sel_country_code","v":"DEU"},"Hydrogen (AEL)",{"$f":"_calc!$B$1069","v":"ZAF-WC"},{"$f":"_calc!$BO$990","v":"COST-FLOW"},{"$f":"_calc!$BQ$1","v":"Electrolysis"},{"$f":"_calc!$BQ$1069","v":0}]
[{"$f":"_xlfn.TEXTJOIN(\",\",FALSE,output[[#This Row],[scenario]:[process_class]])","v":"PTX-BusinessOpportunityAnalyzer-1.0.9,DEU,Hydrogen (AEL),ZAF-WC,COST-FLOW,Electricity generation"},"PTX-BusinessOpportunityAnalyzer-1.0.9",{"$f":"sel_country_code","v":"DEU"},"Hydrogen (AEL)",{"$f":"_calc!$B$1069","v":"ZAF-WC"},{"$f":"_calc!$BO$990","v":"COST-FLOW"},{"$f":"_calc!$BR$1","v":"Electricity generation"},{"$f":"_calc!$BR$1069","v":0}]
[{"$f":"_xlfn.TEXTJOIN(\",\",FALSE,output[[#This Row],[scenario]:[process_class]])","v":"PTX-BusinessOpportunityAnalyzer-1.0.9,DEU,Hydrogen (AEL),ZAF-WC,COST-FLOW,Transportation (Pipeline)"},"PTX-BusinessOpportunityAnalyzer-1.0.9",{"$f":"sel_country_code","v":"DEU"},"Hydrogen (AEL)",{"$f":"_calc!$B$1069","v":"ZAF-WC"},{"$f":"_calc!$BO$990","v":"COST-FLOW"},{"$f":"_calc!$BS$1","v":"Transportation (Pipeline)"},{"$f":"_calc!$BS$1069","v":0}]
[{"$f":"_xlfn.TEXTJOIN(\",\",FALSE,output[[#This Row],[scenario]:[process_class]])","v":"PTX-BusinessOpportunityAnalyzer-1.0.9,DEU,Hydrogen (AEL),ZAF-WC,COST-FLOW,Transportation (Ship)"},"PTX-BusinessOpportunityAnalyzer-1.0.9",{"$f":"sel_country_code","v":"DEU"},"Hydrogen (AEL)",{"$f":"_calc!$B$1069","v":"ZAF-WC"},{"$f":"_calc!$BO$990","v":"COST-FLOW"},{"$f":"_calc!$BT$1","v":"Transportation (Ship)"},{"$f":"_calc!$BT$1069","v":28.57448423252211}]
[{"$f":"_xlfn.TEXTJOIN(\",\",FALSE,output[[#This Row],[scenario]:[process_class]])","v":"PTX-BusinessOpportunityAnalyzer-1.0.9,DEU,Hydrogen (AEL),ZAF-WC,COST-FLOW,Carbon"},"PTX-BusinessOpportunityAnalyzer-1.0.9",{"$f":"sel_country_code","v":"DEU"},"Hydrogen (AEL)",{"$f":"_calc!$B$1069","v":"ZAF-WC"},{"$f":"_calc!$BO$990","v":"COST-FLOW"},{"$f":"_calc!$BU$1","v":"Carbon"},{"$f":"_calc!$BU$1069","v":0}]
[{"$f":"_xlfn.TEXTJOIN(\",\",FALSE,output[[#This Row],[scenario]:[process_class]])","v":"PTX-BusinessOpportunityAnalyzer-1.0.9,DEU,Hydrogen (AEL),ZAF-WC,COST-FLOW,Derivate production"},"PTX-BusinessOpportunityAnalyzer-1.0.9",{"$f":"sel_country_code","v":"DEU"},"Hydrogen (AEL)",{"$f":"_calc!$B$1069","v":"ZAF-WC"},{"$f":"_calc!$BO$990","v":"COST-FLOW"},{"$f":"_calc!$BV$1","v":"Derivate production"},{"$f":"_calc!$BV$1069","v":0}]
[{"$f":"_xlfn.TEXTJOIN(\",\",FALSE,output[[#This Row],[scenario]:[process_class]])","v":"PTX-BusinessOpportunityAnalyzer-1.0.9,DEU,Hydrogen (AEL),ZAF-WC,COST-FLOW,Heat"},"PTX-BusinessOpportunityAnalyzer-1.0.9",{"$f":"sel_country_code","v":"DEU"},"Hydrogen (AEL)",{"$f":"_calc!$B$1069","v":"ZAF-WC"},{"$f":"_calc!$BO$990","v":"COST-FLOW"},{"$f":"_calc!$BW$1","v":"Heat"},{"$f":"_calc!$BW$1069","v":0}]
[{"$f":"_xlfn.TEXTJOIN(\",\",FALSE,output[[#This Row],[scenario]:[process_class]])","v":"PTX-BusinessOpportunityAnalyzer-1.0.9,DEU,Hydrogen (AEL),ZAF-WC,COST-FLOW,Electricity and H2 storage"},"PTX-BusinessOpportunityAnalyzer-1.0.9",{"$f":"sel_country_code","v":"DEU"},"Hydrogen (AEL)",{"$f":"_calc!$B$1069","v":"ZAF-WC"},{"$f":"_calc!$BO$990","v":"COST-FLOW"},{"$f":"_calc!$BX$1","v":"Electricity and H2 storage"},{"$f":"_calc!$BX$1069","v":0}]
[{"$f":"_xlfn.TEXTJOIN(\",\",FALSE,output[[#This Row],[scenario]:[process_class]])","v":"PTX-BusinessOpportunityAnalyzer-1.0.9,DEU,Hydrogen (AEL),ARE,LC,Electrolysis"},"PTX-BusinessOpportunityAnalyzer-1.0.9",{"$f":"sel_country_code","v":"DEU"},"Hydrogen (AEL)",{"$f":"_calc!$B$1072","v":"ARE"},{"$f":"_calc!$BO$1071","v":"LC"},{"$f":"_calc!$BQ$1","v":"Electrolysis"},{"$f":"_calc!$BQ$1072","v":77.772436318594885}]
[{"$f":"_xlfn.TEXTJOIN(\",\",FALSE,output[[#This Row],[scenario]:[process_class]])","v":"PTX-BusinessOpportunityAnalyzer-1.0.9,DEU,Hydrogen (AEL),ARE,LC,Electricity generation"},"PTX-BusinessOpportunityAnalyzer-1.0.9",{"$f":"sel_country_code","v":"DEU"},"Hydrogen (AEL)",{"$f":"_calc!$B$1072","v":"ARE"},{"$f":"_calc!$BO$1071","v":"LC"},{"$f":"_calc!$BR$1","v":"Electricity generation"},{"$f":"_calc!$BR$1072","v":3.7732115604543683E-2}]
[{"$f":"_xlfn.TEXTJOIN(\",\",FALSE,output[[#This Row],[scenario]:[process_class]])","v":"PTX-BusinessOpportunityAnalyzer-1.0.9,DEU,Hydrogen (AEL),ARE,LC,Derivate production"},"PTX-BusinessOpportunityAnalyzer-1.0.9",{"$f":"sel_country_code","v":"DEU"},"Hydrogen (AEL)",{"$f":"_calc!$B$1072","v":"ARE"},{"$f":"_calc!$BO$1071","v":"LC"},{"$f":"_calc!$BV$1","v":"Derivate production"},{"$f":"_calc!$BV$1072","v":0}]
[{"$f":"_xlfn.TEXTJOIN(\",\",FALSE,output[[#This Row],[scenario]:[process_class]])","v":"PTX-BusinessOpportunityAnalyzer-1.0.9,DEU,Hydrogen (AEL),ARG,LC,Electrolysis"},"PTX-BusinessOpportunityAnalyzer-1.0.9",{"$f":"sel_country_code","v":"DEU"},"Hydrogen (AEL)",{"$f":"_calc!$B$1073","v":"ARG"},{"$f":"_calc!$BO$1071","v":"LC"},{"$f":"_calc!$BQ$1","v":"Electrolysis"},{"$f":"_calc!$BQ$1073","v":76.642937974603456}]
[{"$f":"_xlfn.TEXTJOIN(\",\",FALSE,output[[#This Row],[scenario]:[process_class]])","v":"PTX-BusinessOpportunityAnalyzer-1.0.9,DEU,Hydrogen (AEL),ARG,LC,Electricity generation"},"PTX-BusinessOpportunityAnalyzer-1.0.9",{"$f":"sel_country_code","v":"DEU"},"Hydrogen (AEL)",{"$f":"_calc!$B$1073","v":"ARG"},{"$f":"_calc!$BO$1071","v":"LC"},{"$f":"_calc!$BR$1","v":"Electricity generation"},{"$f":"_calc!$BR$1073","v":3.8737752317462806E-2}]
[{"$f":"_xlfn.TEXTJOIN(\",\",FALSE,output[[#This Row],[scenario]:[process_class]])","v":"PTX-BusinessOpportunityAnalyzer-1.0.9,DEU,Hydrogen (AEL),ARG,LC,Derivate production"},"PTX-BusinessOpportunityAnalyzer-1.0.9",{"$f":"sel_country_code","v":"DEU"},"Hydrogen (AEL)",{"$f":"_calc!$B$1073","v":"ARG"},{"$f":"_calc!$BO$1071","v":"LC"},{"$f":"_calc!$BV$1","v":"Derivate production"},{"$f":"_calc!$BV$1073","v":0}]
[{"$f":"_xlfn.TEXTJOIN(\",\",FALSE,output[[#This Row],[scenario]:[process_class]])","v":"PTX-BusinessOpportunityAnalyzer-1.0.9,DEU,Hydrogen (AEL),ARG-BA,LC,Electrolysis"},"PTX-BusinessOpportunityAnalyzer-1.0.9",{"$f":"sel_country_code","v":"DEU"},"Hydrogen (AEL)",{"$f":"_calc!$B$1074","v":"ARG-BA"},{"$f":"_calc!$BO$1071","v":"LC"},{"$f":"_calc!$BQ$1","v":"Electrolysis"},{"$f":"_calc!$BQ$1074","v":87.863322429240469}]
[{"$f":"_xlfn.TEXTJOIN(\",\",FALSE,output[[#This Row],[scenario]:[process_class]])","v":"PTX-BusinessOpportunityAnalyzer-1.0.9,DEU,Hydrogen (AEL),ARG-BA,LC,Electricity generation"},"PTX-BusinessOpportunityAnalyzer-1.0.9",{"$f":"sel_country_code","v":"DEU"},"Hydrogen (AEL)",{"$f":"_calc!$B$1074","v":"ARG-BA"},{"$f":"_calc!$BO$1071","v":"LC"},{"$f":"_calc!$BR$1","v":"Electricity generation"},{"$f":"_calc!$BR$1074","v":4.4338209297895614E-2}]
[{"$f":"_xlfn.TEXTJOIN(\",\",FALSE,output[[#This Row],[scenario]:[process_class]])","v":"PTX-BusinessOpportunityAnalyzer-1.0.9,DEU,Hydrogen (AEL),ARG-BA,LC,Derivate production"},"PTX-BusinessOpportunityAnalyzer-1.0.9",{"$f":"sel_country_code","v":"DEU"},"Hydrogen (AEL)",{"$f":"_calc!$B$1074","v":"ARG-BA"},{"$f":"_calc!$BO$1071","v":"LC"},{"$f":"_calc!$BV$1","v":"Derivate production"},{"$f":"_calc!$BV$1074","v":0}]
[{"$f":"_xlfn.TEXTJOIN(\",\",FALSE,output[[#This Row],[scenario]:[process_class]])","v":"PTX-BusinessOpportunityAnalyzer-1.0.9,DEU,Hydrogen (AEL),ARG-CAT,LC,Electrolysis"},"PTX-BusinessOpportunityAnalyzer-1.0.9",{"$f":"sel_country_code","v":"DEU"},"Hydrogen (AEL)",{"$f":"_calc!$B$1075","v":"ARG-CAT"},{"$f":"_calc!$BO$1071","v":"LC"},{"$f":"_calc!$BQ$1","v":"Electrolysis"},{"$f":"_calc!$BQ$1075","v":90.266031709153225}]
[{"$f":"_xlfn.TEXTJOIN(\",\",FALSE,output[[#This Row],[scenario]:[process_class]])","v":"PTX-BusinessOpportunityAnalyzer-1.0.9,DEU,Hydrogen (AEL),ARG-CAT,LC,Electricity generation"},"PTX-BusinessOpportunityAnalyzer-1.0.9",{"$f":"sel_country_code","v":"DEU"},"Hydrogen (AEL)",{"$f":"_calc!$B$1075","v":"ARG-CAT"},{"$f":"_calc!$BO$1071","v":"LC"},{"$f":"_calc!$BR$1","v":"Electricity generation"},{"$f":"_calc!$BR$1075","v":4.5513938318084507E-2}]
[{"$f":"_xlfn.TEXTJOIN(\",\",FALSE,output[[#This Row],[scenario]:[process_class]])","v":"PTX-BusinessOpportunityAnalyzer-1.0.9,DEU,Hydrogen (AEL),ARG-CAT,LC,Derivate production"},"PTX-BusinessOpportunityAnalyzer-1.0.9",{"$f":"sel_country_code","v":"DEU"},"Hydrogen (AEL)",{"$f":"_calc!$B$1075","v":"ARG-CAT"},{"$f":"_calc!$BO$1071","v":"LC"},{"$f":"_calc!$BV$1","v":"Derivate production"},{"$f":"_calc!$BV$1075","v":0}]
[{"$f":"_xlfn.TEXTJOIN(\",\",FALSE,output[[#This Row],[scenario]:[process_class]])","v":"PTX-BusinessOpportunityAnalyzer-1.0.9,DEU,Hydrogen (AEL),ARG-CBA,LC,Electrolysis"},"PTX-BusinessOpportunityAnalyzer-1.0.9",{"$f":"sel_country_code","v":"DEU"},"Hydrogen (AEL)",{"$f":"_calc!$B$1076","v":"ARG-CBA"},{"$f":"_calc!$BO$1071","v":"LC"},{"$f":"_calc!$BQ$1","v":"Electrolysis"},{"$f":"_calc!$BQ$1076","v":90.688987126596999}]
[{"$f":"_xlfn.TEXTJOIN(\",\",FALSE,output[[#This Row],[scenario]:[process_class]])","v":"PTX-BusinessOpportunityAnalyzer-1.0.9,DEU,Hydrogen (AEL),ARG-CBA,LC,Electricity generation"},"PTX-BusinessOpportunityAnalyzer-1.0.9",{"$f":"sel_country_code","v":"DEU"},"Hydrogen (AEL)",{"$f":"_calc!$B$1076","v":"ARG-CBA"},{"$f":"_calc!$BO$1071","v":"LC"},{"$f":"_calc!$BR$1","v":"Electricity generation"},{"$f":"_calc!$BR$1076","v":4.5720674597314409E-2}]
[{"$f":"_xlfn.TEXTJOIN(\",\",FALSE,output[[#This Row],[scenario]:[process_class]])","v":"PTX-BusinessOpportunityAnalyzer-1.0.9,DEU,Hydrogen (AEL),ARG-CBA,LC,Derivate production"},"PTX-BusinessOpportunityAnalyzer-1.0.9",{"$f":"sel_country_code","v":"DEU"},"Hydrogen (AEL)",{"$f":"_calc!$B$1076","v":"ARG-CBA"},{"$f":"_calc!$BO$1071","v":"LC"},{"$f":"_calc!$BV$1","v":"Derivate production"},{"$f":"_calc!$BV$1076","v":0}]
[{"$f":"_xlfn.TEXTJOIN(\",\",FALSE,output[[#This Row],[scenario]:[process_class]])","v":"PTX-BusinessOpportunityAnalyzer-1.0.9,DEU,Hydrogen (AEL),ARG-CHA,LC,Electrolysis"},"PTX-BusinessOpportunityAnalyzer-1.0.9",{"$f":"sel_country_code","v":"DEU"},"Hydrogen (AEL)",{"$f":"_calc!$B$1077","v":"ARG-CHA"},{"$f":"_calc!$BO$1071","v":"LC"},{"$f":"_calc!$BQ$1","v":"Electrolysis"},{"$f":"_calc!$BQ$1077","v":100.24898578752259}]
[{"$f":"_xlfn.TEXTJOIN(\",\",FALSE,output[[#This Row],[scenario]:[process_class]])","v":"PTX-BusinessOpportunityAnalyzer-1.0.9,DEU,Hydrogen (AEL),ARG-CHA,LC,Electricity generation"},"PTX-BusinessOpportunityAnalyzer-1.0.9",{"$f":"sel_country_code","v":"DEU"},"Hydrogen (AEL)",{"$f":"_calc!$B$1077","v":"ARG-CHA"},{"$f":"_calc!$BO$1071","v":"LC"},{"$f":"_calc!$BR$1","v":"Electricity generation"},{"$f":"_calc!$BR$1077","v":5.0374969660757919E-2}]
[{"$f":"_xlfn.TEXTJOIN(\",\",FALSE,output[[#This Row],[scenario]:[process_class]])","v":"PTX-BusinessOpportunityAnalyzer-1.0.9,DEU,Hydrogen (AEL),ARG-CHA,LC,Derivate production"},"PTX-BusinessOpportunityAnalyzer-1.0.9",{"$f":"sel_country_code","v":"DEU"},"Hydrogen (AEL)",{"$f":"_calc!$B$1077","v":"ARG-CHA"},{"$f":"_calc!$BO$1071","v":"LC"},{"$f":"_calc!$BV$1","v":"Derivate production"},{"$f":"_calc!$BV$1077","v":0}]
[{"$f":"_xlfn.TEXTJOIN(\",\",FALSE,output[[#This Row],[scenario]:[process_class]])","v":"PTX-BusinessOpportunityAnalyzer-1.0.9,DEU,Hydrogen (AEL),ARG-CHU,LC,Electrolysis"},"PTX-BusinessOpportunityAnalyzer-1.0.9",{"$f":"sel_country_code","v":"DEU"},"Hydrogen (AEL)",{"$f":"_calc!$B$1078","v":"ARG-CHU"},{"$f":"_calc!$BO$1071","v":"LC"},{"$f":"_calc!$BQ$1","v":"Electrolysis"},{"$f":"_calc!$BQ$1078","v":67.560624054938955}]
[{"$f":"_xlfn.TEXTJOIN(\",\",FALSE,output[[#This Row],[scenario]:[process_class]])","v":"PTX-BusinessOpportunityAnalyzer-1.0.9,DEU,Hydrogen (AEL),ARG-CHU,LC,Electricity generation"},"PTX-BusinessOpportunityAnalyzer-1.0.9",{"$f":"sel_country_code","v":"DEU"},"Hydrogen (AEL)",{"$f":"_calc!$B$1078","v":"ARG-CHU"},{"$f":"_calc!$BO$1071","v":"LC"},{"$f":"_calc!$BR$1","v":"Electricity generation"},{"$f":"_calc!$BR$1078","v":3.4315663435611272E-2}]
[{"$f":"_xlfn.TEXTJOIN(\",\",FALSE,output[[#This Row],[scenario]:[process_class]])","v":"PTX-BusinessOpportunityAnalyzer-1.0.9,DEU,Hydrogen (AEL),ARG-CHU,LC,Derivate production"},"PTX-BusinessOpportunityAnalyzer-1.0.9",{"$f":"sel_country_code","v":"DEU"},"Hydrogen (AEL)",{"$f":"_calc!$B$1078","v":"ARG-CHU"},{"$f":"_calc!$BO$1071","v":"LC"},{"$f":"_calc!$BV$1","v":"Derivate production"},{"$f":"_calc!$BV$1078","v":0}]
[{"$f":"_xlfn.TEXTJOIN(\",\",FALSE,output[[#This Row],[scenario]:[process_class]])","v":"PTX-BusinessOpportunityAnalyzer-1.0.9,DEU,Hydrogen (AEL),ARG-COR,LC,Electrolysis"},"PTX-BusinessOpportunityAnalyzer-1.0.9",{"$f":"sel_country_code","v":"DEU"},"Hydrogen (AEL)",{"$f":"_calc!$B$1079","v":"ARG-COR"},{"$f":"_calc!$BO$1071","v":"LC"},{"$f":"_calc!$BQ$1","v":"Electrolysis"},{"$f":"_calc!$BQ$1079","v":101.60836387923578}]
[{"$f":"_xlfn.TEXTJOIN(\",\",FALSE,output[[#This Row],[scenario]:[process_class]])","v":"PTX-BusinessOpportunityAnalyzer-1.0.9,DEU,Hydrogen (AEL),ARG-COR,LC,Electricity generation"},"PTX-BusinessOpportunityAnalyzer-1.0.9",{"$f":"sel_country_code","v":"DEU"},"Hydrogen (AEL)",{"$f":"_calc!$B$1079","v":"ARG-COR"},{"$f":"_calc!$BO$1071","v":"LC"},{"$f":"_calc!$BR$1","v":"Electricity generation"},{"$f":"_calc!$BR$1079","v":5.1033883173006021E-2}]
[{"$f":"_xlfn.TEXTJOIN(\",\",FALSE,output[[#This Row],[scenario]:[process_class]])","v":"PTX-BusinessOpportunityAnalyzer-1.0.9,DEU,Hydrogen (AEL),ARG-COR,LC,Derivate production"},"PTX-BusinessOpportunityAnalyzer-1.0.9",{"$f":"sel_country_code","v":"DEU"},"Hydrogen (AEL)",{"$f":"_calc!$B$1079","v":"ARG-COR"},{"$f":"_calc!$BO$1071","v":"LC"},{"$f":"_calc!$BV$1","v":"Derivate production"},{"$f":"_calc!$BV$1079","v":0}]
[{"$f":"_xlfn.TEXTJOIN(\",\",FALSE,output[[#This Row],[scenario]:[process_class]])","v":"PTX-BusinessOpportunityAnalyzer-1.0.9,DEU,Hydrogen (AEL),ARG-CRB,LC,Electrolysis"},"PTX-BusinessOpportunityAnalyzer-1.0.9",{"$f":"sel_country_code","v":"DEU"},"Hydrogen (AEL)",{"$f":"_calc!$B$1080","v":"ARG-CRB"},{"$f":"_calc!$BO$1071","v":"LC"},{"$f":"_calc!$BQ$1","v":"Electrolysis"},{"$f":"_calc!$BQ$1080","v":107.8263319458402}]
[{"$f":"_xlfn.TEXTJOIN(\",\",FALSE,output[[#This Row],[scenario]:[process_class]])","v":"PTX-BusinessOpportunityAnalyzer-1.0.9,DEU,Hydrogen (AEL),ARG-CRB,LC,Electricity generation"},"PTX-BusinessOpportunityAnalyzer-1.0.9",{"$f":"sel_country_code","v":"DEU"},"Hydrogen (AEL)",{"$f":"_calc!$B$1080","v":"ARG-CRB"},{"$f":"_calc!$BO$1071","v":"LC"},{"$f":"_calc!$BR$1","v":"Electricity generation"},{"$f":"_calc!$BR$1080","v":5.4038540807778881E-2}]
[{"$f":"_xlfn.TEXTJOIN(\",\",FALSE,output[[#This Row],[scenario]:[process_class]])","v":"PTX-BusinessOpportunityAnalyzer-1.0.9,DEU,Hydrogen (AEL),ARG-CRB,LC,Derivate production"},"PTX-BusinessOpportunityAnalyzer-1.0.9",{"$f":"sel_country_code","v":"DEU"},"Hydrogen (AEL)",{"$f":"_calc!$B$1080","v":"ARG-CRB"},{"$f":"_calc!$BO$1071","v":"LC"},{"$f":"_calc!$BV$1","v":"Derivate production"},{"$f":"_calc!$BV$1080","v":0}]
[{"$f":"_xlfn.TEXTJOIN(\",\",FALSE,output[[#This Row],[scenario]:[process_class]])","v":"PTX-BusinessOpportunityAnalyzer-1.0.9,DEU,Hydrogen (AEL),ARG-CRU,LC,Electrolysis"},"PTX-BusinessOpportunityAnalyzer-1.0.9",{"$f":"sel_country_code","v":"DEU"},"Hydrogen (AEL)",{"$f":"_calc!$B$1081","v":"ARG-CRU"},{"$f":"_calc!$BO$1071","v":"LC"},{"$f":"_calc!$BQ$1","v":"Electrolysis"},{"$f":"_calc!$BQ$1081","v":67.787397561234187}]
[{"$f":"_xlfn.TEXTJOIN(\",\",FALSE,output[[#This Row],[scenario]:[process_class]])","v":"PTX-BusinessOpportunityAnalyzer-1.0.9,DEU,Hydrogen (AEL),ARG-CRU,LC,Electricity generation"},"PTX-BusinessOpportunityAnalyzer-1.0.9",{"$f":"sel_country_code","v":"DEU"},"Hydrogen (AEL)",{"$f":"_calc!$B$1081","v":"ARG-CRU"},{"$f":"_calc!$BO$1071","v":"LC"},{"$f":"_calc!$BR$1","v":"Electricity generation"},{"$f":"_calc!$BR$1081","v":3.4428466699706853E-2}]
[{"$f":"_xlfn.TEXTJOIN(\",\",FALSE,output[[#This Row],[scenario]:[process_class]])","v":"PTX-BusinessOpportunityAnalyzer-1.0.9,DEU,Hydrogen (AEL),ARG-CRU,LC,Derivate production"},"PTX-BusinessOpportunityAnalyzer-1.0.9",{"$f":"sel_country_code","v":"DEU"},"Hydrogen (AEL)",{"$f":"_calc!$B$1081","v":"ARG-CRU"},{"$f":"_calc!$BO$1071","v":"LC"},{"$f":"_calc!$BV$1","v":"Derivate production"},{"$f":"_calc!$BV$1081","v":0}]
[{"$f":"_xlfn.TEXTJOIN(\",\",FALSE,output[[#This Row],[scenario]:[process_class]])","v":"PTX-BusinessOpportunityAnalyzer-1.0.9,DEU,Hydrogen (AEL),ARG-EST,LC,Electrolysis"},"PTX-BusinessOpportunityAnalyzer-1.0.9",{"$f":"sel_country_code","v":"DEU"},"Hydrogen (AEL)",{"$f":"_calc!$B$1082","v":"ARG-EST"},{"$f":"_calc!$BO$1071","v":"LC"},{"$f":"_calc!$BQ$1","v":"Electrolysis"},{"$f":"_calc!$BQ$1082","v":88.964741992357943}]
[{"$f":"_xlfn.TEXTJOIN(\",\",FALSE,output[[#This Row],[scenario]:[process_class]])","v":"PTX-BusinessOpportunityAnalyzer-1.0.9,DEU,Hydrogen (AEL),ARG-EST,LC,Electricity generation"},"PTX-BusinessOpportunityAnalyzer-1.0.9",{"$f":"sel_country_code","v":"DEU"},"Hydrogen (AEL)",{"$f":"_calc!$B$1082","v":"ARG-EST"},{"$f":"_calc!$BO$1071","v":"LC"},{"$f":"_calc!$BR$1","v":"Electricity generation"},{"$f":"_calc!$BR$1082","v":4.4877448243744143E-2}]
[{"$f":"_xlfn.TEXTJOIN(\",\",FALSE,output[[#This Row],[scenario]:[process_class]])","v":"PTX-BusinessOpportunityAnalyzer-1.0.9,DEU,Hydrogen (AEL),ARG-EST,LC,Derivate production"},"PTX-BusinessOpportunityAnalyzer-1.0.9",{"$f":"sel_country_code","v":"DEU"},"Hydrogen (AEL)",{"$f":"_calc!$B$1082","v":"ARG-EST"},{"$f":"_calc!$BO$1071","v":"LC"},{"$f":"_calc!$BV$1","v":"Derivate production"},{"$f":"_calc!$BV$1082","v":0}]
[{"$f":"_xlfn.TEXTJOIN(\",\",FALSE,output[[#This Row],[scenario]:[process_class]])","v":"PTX-BusinessOpportunityAnalyzer-1.0.9,DEU,Hydrogen (AEL),ARG-FOR,LC,Electrolysis"},"PTX-BusinessOpportunityAnalyzer-1.0.9",{"$f":"sel_country_code","v":"DEU"},"Hydrogen (AEL)",{"$f":"_calc!$B$1083","v":"ARG-FOR"},{"$f":"_calc!$BO$1071","v":"LC"},{"$f":"_calc!$BQ$1","v":"Electrolysis"},{"$f":"_calc!$BQ$1083","v":87.836067482857729}]
[{"$f":"_xlfn.TEXTJOIN(\",\",FALSE,output[[#This Row],[scenario]:[process_class]])","v":"PTX-BusinessOpportunityAnalyzer-1.0.9,DEU,Hydrogen (AEL),ARG-FOR,LC,Electricity generation"},"PTX-BusinessOpportunityAnalyzer-1.0.9",{"$f":"sel_country_code","v":"DEU"},"Hydrogen (AEL)",{"$f":"_calc!$B$1083","v":"ARG-FOR"},{"$f":"_calc!$BO$1071","v":"LC"},{"$f":"_calc!$BR$1","v":"Electricity generation"},{"$f":"_calc!$BR$1083","v":4.4324859755375076E-2}]
[{"$f":"_xlfn.TEXTJOIN(\",\",FALSE,output[[#This Row],[scenario]:[process_class]])","v":"PTX-BusinessOpportunityAnalyzer-1.0.9,DEU,Hydrogen (AEL),ARG-FOR,LC,Derivate production"},"PTX-BusinessOpportunityAnalyzer-1.0.9",{"$f":"sel_country_code","v":"DEU"},"Hydrogen (AEL)",{"$f":"_calc!$B$1083","v":"ARG-FOR"},{"$f":"_calc!$BO$1071","v":"LC"},{"$f":"_calc!$BV$1","v":"Derivate production"},{"$f":"_calc!$BV$1083","v":0}]
[{"$f":"_xlfn.TEXTJOIN(\",\",FALSE,output[[#This Row],[scenario]:[process_class]])","v":"PTX-BusinessOpportunityAnalyzer-1.0.9,DEU,Hydrogen (AEL),ARG-FUE,LC,Electrolysis"},"PTX-BusinessOpportunityAnalyzer-1.0.9",{"$f":"sel_country_code","v":"DEU"},"Hydrogen (AEL)",{"$f":"_calc!$B$1084","v":"ARG-FUE"},{"$f":"_calc!$BO$1071","v":"LC"},{"$f":"_calc!$BQ$1","v":"Electrolysis"},{"$f":"_calc!$BQ$1084","v":100.35418266529909}]
[{"$f":"_xlfn.TEXTJOIN(\",\",FALSE,output[[#This Row],[scenario]:[process_class]])","v":"PTX-BusinessOpportunityAnalyzer-1.0.9,DEU,Hydrogen (AEL),ARG-FUE,LC,Electricity generation"},"PTX-BusinessOpportunityAnalyzer-1.0.9",{"$f":"sel_country_code","v":"DEU"},"Hydrogen (AEL)",{"$f":"_calc!$B$1084","v":"ARG-FUE"},{"$f":"_calc!$BO$1071","v":"LC"},{"$f":"_calc!$BR$1","v":"Electricity generation"},{"$f":"_calc!$BR$1084","v":5.0425986288749933E-2}]
[{"$f":"_xlfn.TEXTJOIN(\",\",FALSE,output[[#This Row],[scenario]:[process_class]])","v":"PTX-BusinessOpportunityAnalyzer-1.0.9,DEU,Hydrogen (AEL),ARG-FUE,LC,Derivate production"},"PTX-BusinessOpportunityAnalyzer-1.0.9",{"$f":"sel_country_code","v":"DEU"},"Hydrogen (AEL)",{"$f":"_calc!$B$1084","v":"ARG-FUE"},{"$f":"_calc!$BO$1071","v":"LC"},{"$f":"_calc!$BV$1","v":"Derivate production"},{"$f":"_calc!$BV$1084","v":0}]
[{"$f":"_xlfn.TEXTJOIN(\",\",FALSE,output[[#This Row],[scenario]:[process_class]])","v":"PTX-BusinessOpportunityAnalyzer-1.0.9,DEU,Hydrogen (AEL),ARG-JUJ,LC,Electrolysis"},"PTX-BusinessOpportunityAnalyzer-1.0.9",{"$f":"sel_country_code","v":"DEU"},"Hydrogen (AEL)",{"$f":"_calc!$B$1085","v":"ARG-JUJ"},{"$f":"_calc!$BO$1071","v":"LC"},{"$f":"_calc!$BQ$1","v":"Electrolysis"},{"$f":"_calc!$BQ$1085","v":81.175638911790372}]
[{"$f":"_xlfn.TEXTJOIN(\",\",FALSE,output[[#This Row],[scenario]:[process_class]])","v":"PTX-BusinessOpportunityAnalyzer-1.0.9,DEU,Hydrogen (AEL),ARG-JUJ,LC,Electricity generation"},"PTX-BusinessOpportunityAnalyzer-1.0.9",{"$f":"sel_country_code","v":"DEU"},"Hydrogen (AEL)",{"$f":"_calc!$B$1085","v":"ARG-JUJ"},{"$f":"_calc!$BO$1071","v":"LC"},{"$f":"_calc!$BR$1","v":"Electricity generation"},{"$f":"_calc!$BR$1085","v":4.1054032954249184E-2}]
[{"$f":"_xlfn.TEXTJOIN(\",\",FALSE,output[[#This Row],[scenario]:[process_class]])","v":"PTX-BusinessOpportunityAnalyzer-1.0.9,DEU,Hydrogen (AEL),ARG-JUJ,LC,Derivate production"},"PTX-BusinessOpportunityAnalyzer-1.0.9",{"$f":"sel_country_code","v":"DEU"},"Hydrogen (AEL)",{"$f":"_calc!$B$1085","v":"ARG-JUJ"},{"$f":"_calc!$BO$1071","v":"LC"},{"$f":"_calc!$BV$1","v":"Derivate production"},{"$f":"_calc!$BV$1085","v":0}]
[{"$f":"_xlfn.TEXTJOIN(\",\",FALSE,output[[#This Row],[scenario]:[process_class]])","v":"PTX-BusinessOpportunityAnalyzer-1.0.9,DEU,Hydrogen (AEL),ARG-LAR,LC,Electrolysis"},"PTX-BusinessOpportunityAnalyzer-1.0.9",{"$f":"sel_country_code","v":"DEU"},"Hydrogen (AEL)",{"$f":"_calc!$B$1086","v":"ARG-LAR"},{"$f":"_calc!$BO$1071","v":"LC"},{"$f":"_calc!$BQ$1","v":"Electrolysis"},{"$f":"_calc!$BQ$1086","v":86.997848798007155}]
[{"$f":"_xlfn.TEXTJOIN(\",\",FALSE,output[[#This Row],[scenario]:[process_class]])","v":"PTX-BusinessOpportunityAnalyzer-1.0.9,DEU,Hydrogen (AEL),ARG-LAR,LC,Electricity generation"},{"$f":"output_scenario_name","v":"PTX-BusinessOpportunityAnalyzer-1.0.9"},{"$f":"sel_country_code","v":"DEU"},{"$f":"sel_chain","v":"Hydrogen (AEL)"},{"$f":"_calc!$B$1086","v":"ARG-LAR"},{"$f":"_calc!$BO$1071","v":"LC"},{"$f":"_calc!$BR$1","v":"Electricity generation"},{"$f":"_calc!$BR$1086","v":4.391415867876463E-2}]
[{"$f":"_xlfn.TEXTJOIN(\",\",FALSE,output[[#This Row],[scenario]:[process_class]])","v":"PTX-BusinessOpportunityAnalyzer-1.0.9,DEU,Hydrogen (AEL),ARG-LAR,LC,Derivate production"},"PTX-BusinessOpportunityAnalyzer-1.0.9",{"$f":"sel_country_code","v":"DEU"},"Hydrogen (AEL)",{"$f":"_calc!$B$1086","v":"ARG-LAR"},{"$f":"_calc!$BO$1071","v":"LC"},{"$f":"_calc!$BV$1","v":"Derivate production"},{"$f":"_calc!$BV$1086","v":0}]
[{"$f":"_xlfn.TEXTJOIN(\",\",FALSE,output[[#This Row],[scenario]:[process_class]])","v":"PTX-BusinessOpportunityAnalyzer-1.0.9,DEU,Hydrogen (AEL),ARG-MEN,LC,Electrolysis"},"PTX-BusinessOpportunityAnalyzer-1.0.9",{"$f":"sel_country_code","v":"DEU"},"Hydrogen (AEL)",{"$f":"_calc!$B$1087","v":"ARG-MEN"},{"$f":"_calc!$BO$1071","v":"LC"},{"$f":"_calc!$BQ$1","v":"Electrolysis"},{"$f":"_calc!$BQ$1087","v":93.954864102200546}]
[{"$f":"_xlfn.TEXTJOIN(\",\",FALSE,output[[#This Row],[scenario]:[process_class]])","v":"PTX-BusinessOpportunityAnalyzer-1.0.9,DEU,Hydrogen (AEL),ARG-MEN,LC,Electricity generation"},"PTX-BusinessOpportunityAnalyzer-1.0.9",{"$f":"sel_country_code","v":"DEU"},"Hydrogen (AEL)",{"$f":"_calc!$B$1087","v":"ARG-MEN"},{"$f":"_calc!$BO$1071","v":"LC"},{"$f":"_calc!$BR$1","v":"Electricity generation"},{"$f":"_calc!$BR$1087","v":4.7314670474031879E-2}]
[{"$f":"_xlfn.TEXTJOIN(\",\",FALSE,output[[#This Row],[scenario]:[process_class]])","v":"PTX-BusinessOpportunityAnalyzer-1.0.9,DEU,Hydrogen (AEL),ARG-MEN,LC,Derivate production"},"PTX-BusinessOpportunityAnalyzer-1.0.9",{"$f":"sel_country_code","v":"DEU"},"Hydrogen (AEL)",{"$f":"_calc!$B$1087","v":"ARG-MEN"},{"$f":"_calc!$BO$1071","v":"LC"},{"$f":"_calc!$BV$1","v":"Derivate production"},{"$f":"_calc!$BV$1087","v":0}]
[{"$f":"_xlfn.TEXTJOIN(\",\",FALSE,output[[#This Row],[scenario]:[process_class]])","v":"PTX-BusinessOpportunityAnalyzer-1.0.9,DEU,Hydrogen (AEL),ARG-MIS,LC,Electrolysis"},"PTX-BusinessOpportunityAnalyzer-1.0.9",{"$f":"sel_country_code","v":"DEU"},"Hydrogen (AEL)",{"$f":"_calc!$B$1088","v":"ARG-MIS"},{"$f":"_calc!$BO$1071","v":"LC"},{"$f":"_calc!$BQ$1","v":"Electrolysis"},{"$f":"_calc!$BQ$1088","v":138.1603756555827}]
[{"$f":"_xlfn.TEXTJOIN(\",\",FALSE,output[[#This Row],[scenario]:[process_class]])","v":"PTX-BusinessOpportunityAnalyzer-1.0.9,DEU,Hydrogen (AEL),ARG-MIS,LC,Electricity generation"},"PTX-BusinessOpportunityAnalyzer-1.0.9",{"$f":"sel_country_code","v":"DEU"},"Hydrogen (AEL)",{"$f":"_calc!$B$1088","v":"ARG-MIS"},{"$f":"_calc!$BO$1071","v":"LC"},{"$f":"_calc!$BR$1","v":"Electricity generation"},{"$f":"_calc!$BR$1088","v":6.8538623471942381E-2}]
[{"$f":"_xlfn.TEXTJOIN(\",\",FALSE,output[[#This Row],[scenario]:[process_class]])","v":"PTX-BusinessOpportunityAnalyzer-1.0.9,DEU,Hydrogen (AEL),ARG-MIS,LC,Derivate production"},"PTX-BusinessOpportunityAnalyzer-1.0.9",{"$f":"sel_country_code","v":"DEU"},"Hydrogen (AEL)",{"$f":"_calc!$B$1088","v":"ARG-MIS"},{"$f":"_calc!$BO$1071","v":"LC"},{"$f":"_calc!$BV$1","v":"Derivate production"},{"$f":"_calc!$BV$1088","v":0}]
[{"$f":"_xlfn.TEXTJOIN(\",\",FALSE,output[[#This Row],[scenario]:[process_class]])","v":"PTX-BusinessOpportunityAnalyzer-1.0.9,DEU,Hydrogen (AEL),ARG-NEG,LC,Electrolysis"},"PTX-BusinessOpportunityAnalyzer-1.0.9",{"$f":"sel_country_code","v":"DEU"},"Hydrogen (AEL)",{"$f":"_calc!$B$1089","v":"ARG-NEG"},{"$f":"_calc!$BO$1071","v":"LC"},{"$f":"_calc!$BQ$1","v":"Electrolysis"},{"$f":"_calc!$BQ$1089","v":73.677203547896085}]
[{"$f":"_xlfn.TEXTJOIN(\",\",FALSE,output[[#This Row],[scenario]:[process_class]])","v":"PTX-BusinessOpportunityAnalyzer-1.0.9,DEU,Hydrogen (AEL),ARG-NEG,LC,Electricity generation"},"PTX-BusinessOpportunityAnalyzer-1.0.9",{"$f":"sel_country_code","v":"DEU"},"Hydrogen (AEL)",{"$f":"_calc!$B$1089","v":"ARG-NEG"},{"$f":"_calc!$BO$1071","v":"LC"},{"$f":"_calc!$BR$1","v":"Electricity generation"},{"$f":"_calc!$BR$1089","v":3.7351504227783293E-2}]
[{"$f":"_xlfn.TEXTJOIN(\",\",FALSE,output[[#This Row],[scenario]:[process_class]])","v":"PTX-BusinessOpportunityAnalyzer-1.0.9,DEU,Hydrogen (AEL),ARG-NEG,LC,Derivate production"},"PTX-BusinessOpportunityAnalyzer-1.0.9",{"$f":"sel_country_code","v":"DEU"},"Hydrogen (AEL)",{"$f":"_calc!$B$1089","v":"ARG-NEG"},{"$f":"_calc!$BO$1071","v":"LC"},{"$f":"_calc!$BV$1","v":"Derivate production"},{"$f":"_calc!$BV$1089","v":0}]
[{"$f":"_xlfn.TEXTJOIN(\",\",FALSE,output[[#This Row],[scenario]:[process_class]])","v":"PTX-BusinessOpportunityAnalyzer-1.0.9,DEU,Hydrogen (AEL),ARG-NEU,LC,Electrolysis"},"PTX-BusinessOpportunityAnalyzer-1.0.9",{"$f":"sel_country_code","v":"DEU"},"Hydrogen (AEL)",{"$f":"_calc!$B$1090","v":"ARG-NEU"},{"$f":"_calc!$BO$1071","v":"LC"},{"$f":"_calc!$BQ$1","v":"Electrolysis"},{"$f":"_calc!$BQ$1090","v":84.275904147754076}]
[{"$f":"_xlfn.TEXTJOIN(\",\",FALSE,output[[#This Row],[scenario]:[process_class]])","v":"PTX-BusinessOpportunityAnalyzer-1.0.9,DEU,Hydrogen (AEL),ARG-NEU,LC,Electricity generation"},"PTX-BusinessOpportunityAnalyzer-1.0.9",{"$f":"sel_country_code","v":"DEU"},"Hydrogen (AEL)",{"$f":"_calc!$B$1090","v":"ARG-NEU"},{"$f":"_calc!$BO$1071","v":"LC"},{"$f":"_calc!$BR$1","v":"Electricity generation"},{"$f":"_calc!$BR$1090","v":4.2578631957786064E-2}]
[{"$f":"_xlfn.TEXTJOIN(\",\",FALSE,output[[#This Row],[scenario]:[process_class]])","v":"PTX-BusinessOpportunityAnalyzer-1.0.9,DEU,Hydrogen (AEL),ARG-NEU,LC,Derivate production"},"PTX-BusinessOpportunityAnalyzer-1.0.9",{"$f":"sel_country_code","v":"DEU"},"Hydrogen (AEL)",{"$f":"_calc!$B$1090","v":"ARG-NEU"},{"$f":"_calc!$BO$1071","v":"LC"},{"$f":"_calc!$BV$1","v":"Derivate production"},{"$f":"_calc!$BV$1090","v":0}]
[{"$f":"_xlfn.TEXTJOIN(\",\",FALSE,output[[#This Row],[scenario]:[process_class]])","v":"PTX-BusinessOpportunityAnalyzer-1.0.9,DEU,Hydrogen (AEL),ARG-PAM,LC,Electrolysis"},"PTX-BusinessOpportunityAnalyzer-1.0.9",{"$f":"sel_country_code","v":"DEU"},"Hydrogen (AEL)",{"$f":"_calc!$B$1091","v":"ARG-PAM"},{"$f":"_calc!$BO$1071","v":"LC"},{"$f":"_calc!$BQ$1","v":"Electrolysis"},{"$f":"_calc!$BQ$1091","v":84.437538525940496}]
[{"$f":"_xlfn.TEXTJOIN(\",\",FALSE,output[[#This Row],[scenario]:[process_class]])","v":"PTX-BusinessOpportunityAnalyzer-1.0.9,DEU,Hydrogen (AEL),ARG-PAM,LC,Electricity generation"},"PTX-BusinessOpportunityAnalyzer-1.0.9",{"$f":"sel_country_code","v":"DEU"},"Hydrogen (AEL)",{"$f":"_calc!$B$1091","v":"ARG-PAM"},{"$f":"_calc!$BO$1071","v":"LC"},{"$f":"_calc!$BR$1","v":"Electricity generation"},{"$f":"_calc!$BR$1091","v":4.2658017351253318E-2}]
[{"$f":"_xlfn.TEXTJOIN(\",\",FALSE,output[[#This Row],[scenario]:[process_class]])","v":"PTX-BusinessOpportunityAnalyzer-1.0.9,DEU,Hydrogen (AEL),ARG-PAM,LC,Derivate production"},"PTX-BusinessOpportunityAnalyzer-1.0.9",{"$f":"sel_country_code","v":"DEU"},"Hydrogen (AEL)",{"$f":"_calc!$B$1091","v":"ARG-PAM"},{"$f":"_calc!$BO$1071","v":"LC"},{"$f":"_calc!$BV$1","v":"Derivate production"},{"$f":"_calc!$BV$1091","v":0}]
[{"$f":"_xlfn.TEXTJOIN(\",\",FALSE,output[[#This Row],[scenario]:[process_class]])","v":"PTX-BusinessOpportunityAnalyzer-1.0.9,DEU,Hydrogen (AEL),ARG-RIO,LC,Electrolysis"},"PTX-BusinessOpportunityAnalyzer-1.0.9",{"$f":"sel_country_code","v":"DEU"},"Hydrogen (AEL)",{"$f":"_calc!$B$1092","v":"ARG-RIO"},{"$f":"_calc!$BO$1071","v":"LC"},{"$f":"_calc!$BQ$1","v":"Electrolysis"},{"$f":"_calc!$BQ$1092","v":100.641256397855}]
[{"$f":"_xlfn.TEXTJOIN(\",\",FALSE,output[[#This Row],[scenario]:[process_class]])","v":"PTX-BusinessOpportunityAnalyzer-1.0.9,DEU,Hydrogen (AEL),ARG-RIO,LC,Electricity generation"},"PTX-BusinessOpportunityAnalyzer-1.0.9",{"$f":"sel_country_code","v":"DEU"},"Hydrogen (AEL)",{"$f":"_calc!$B$1092","v":"ARG-RIO"},{"$f":"_calc!$BO$1071","v":"LC"},{"$f":"_calc!$BR$1","v":"Electricity generation"},{"$f":"_calc!$BR$1092","v":5.0565184405644378E-2}]
[{"$f":"_xlfn.TEXTJOIN(\",\",FALSE,output[[#This Row],[scenario]:[process_class]])","v":"PTX-BusinessOpportunityAnalyzer-1.0.9,DEU,Hydrogen (AEL),ARG-RIO,LC,Derivate production"},"PTX-BusinessOpportunityAnalyzer-1.0.9",{"$f":"sel_country_code","v":"DEU"},"Hydrogen (AEL)",{"$f":"_calc!$B$1092","v":"ARG-RIO"},{"$f":"_calc!$BO$1071","v":"LC"},{"$f":"_calc!$BV$1","v":"Derivate production"},{"$f":"_calc!$BV$1092","v":0}]
[{"$f":"_xlfn.TEXTJOIN(\",\",FALSE,output[[#This Row],[scenario]:[process_class]])","v":"PTX-BusinessOpportunityAnalyzer-1.0.9,DEU,Hydrogen (AEL),ARG-SAF,LC,Electrolysis"},"PTX-BusinessOpportunityAnalyzer-1.0.9",{"$f":"sel_country_code","v":"DEU"},"Hydrogen (AEL)",{"$f":"_calc!$B$1093","v":"ARG-SAF"},{"$f":"_calc!$BO$1071","v":"LC"},{"$f":"_calc!$BQ$1","v":"Electrolysis"},{"$f":"_calc!$BQ$1093","v":98.207646446995639}]
[{"$f":"_xlfn.TEXTJOIN(\",\",FALSE,output[[#This Row],[scenario]:[process_class]])","v":"PTX-BusinessOpportunityAnalyzer-1.0.9,DEU,Hydrogen (AEL),ARG-SAF,LC,Electricity generation"},"PTX-BusinessOpportunityAnalyzer-1.0.9",{"$f":"sel_country_code","v":"DEU"},"Hydrogen (AEL)",{"$f":"_calc!$B$1093","v":"ARG-SAF"},{"$f":"_calc!$BO$1071","v":"LC"},{"$f":"_calc!$BR$1","v":"Electricity generation"},{"$f":"_calc!$BR$1093","v":4.9384135543676121E-2}]
[{"$f":"_xlfn.TEXTJOIN(\",\",FALSE,output[[#This Row],[scenario]:[process_class]])","v":"PTX-BusinessOpportunityAnalyzer-1.0.9,DEU,Hydrogen (AEL),ARG-SAF,LC,Derivate production"},"PTX-BusinessOpportunityAnalyzer-1.0.9",{"$f":"sel_country_code","v":"DEU"},"Hydrogen (AEL)",{"$f":"_calc!$B$1093","v":"ARG-SAF"},{"$f":"_calc!$BO$1071","v":"LC"},{"$f":"_calc!$BV$1","v":"Derivate production"},{"$f":"_calc!$BV$1093","v":0}]
[{"$f":"_xlfn.TEXTJOIN(\",\",FALSE,output[[#This Row],[scenario]:[process_class]])","v":"PTX-BusinessOpportunityAnalyzer-1.0.9,DEU,Hydrogen (AEL),ARG-SAJ,LC,Electrolysis"},"PTX-BusinessOpportunityAnalyzer-1.0.9",{"$f":"sel_country_code","v":"DEU"},"Hydrogen (AEL)",{"$f":"_calc!$B$1094","v":"ARG-SAJ"},{"$f":"_calc!$BO$1071","v":"LC"},{"$f":"_calc!$BQ$1","v":"Electrolysis"},{"$f":"_calc!$BQ$1094","v":103.67765452026265}]
[{"$f":"_xlfn.TEXTJOIN(\",\",FALSE,output[[#This Row],[scenario]:[process_class]])","v":"PTX-BusinessOpportunityAnalyzer-1.0.9,DEU,Hydrogen (AEL),ARG-SAJ,LC,Electricity generation"},"PTX-BusinessOpportunityAnalyzer-1.0.9",{"$f":"sel_country_code","v":"DEU"},"Hydrogen (AEL)",{"$f":"_calc!$B$1094","v":"ARG-SAJ"},{"$f":"_calc!$BO$1071","v":"LC"},{"$f":"_calc!$BR$1","v":"Electricity generation"},{"$f":"_calc!$BR$1094","v":5.2035506576481046E-2}]
[{"$f":"_xlfn.TEXTJOIN(\",\",FALSE,output[[#This Row],[scenario]:[process_class]])","v":"PTX-BusinessOpportunityAnalyzer-1.0.9,DEU,Hydrogen (AEL),ARG-SAJ,LC,Derivate production"},"PTX-BusinessOpportunityAnalyzer-1.0.9",{"$f":"sel_country_code","v":"DEU"},"Hydrogen (AEL)",{"$f":"_calc!$B$1094","v":"ARG-SAJ"},{"$f":"_calc!$BO$1071","v":"LC"},{"$f":"_calc!$BV$1","v":"Derivate production"},{"$f":"_calc!$BV$1094","v":0}]
[{"$f":"_xlfn.TEXTJOIN(\",\",FALSE,output[[#This Row],[scenario]:[process_class]])","v":"PTX-BusinessOpportunityAnalyzer-1.0.9,DEU,Hydrogen (AEL),ARG-SAL,LC,Electrolysis"},"PTX-BusinessOpportunityAnalyzer-1.0.9",{"$f":"sel_country_code","v":"DEU"},"Hydrogen (AEL)",{"$f":"_calc!$B$1095","v":"ARG-SAL"},{"$f":"_calc!$BO$1071","v":"LC"},{"$f":"_calc!$BQ$1","v":"Electrolysis"},{"$f":"_calc!$BQ$1095","v":85.896154386206319}]
[{"$f":"_xlfn.TEXTJOIN(\",\",FALSE,output[[#This Row],[scenario]:[process_class]])","v":"PTX-BusinessOpportunityAnalyzer-1.0.9,DEU,Hydrogen (AEL),ARG-SAL,LC,Electricity generation"},"PTX-BusinessOpportunityAnalyzer-1.0.9",{"$f":"sel_country_code","v":"DEU"},"Hydrogen (AEL)",{"$f":"_calc!$B$1095","v":"ARG-SAL"},{"$f":"_calc!$BO$1071","v":"LC"},{"$f":"_calc!$BR$1","v":"Electricity generation"},{"$f":"_calc!$BR$1095","v":4.3373952427298294E-2}]
[{"$f":"_xlfn.TEXTJOIN(\",\",FALSE,output[[#This Row],[scenario]:[process_class]])","v":"PTX-BusinessOpportunityAnalyzer-1.0.9,DEU,Hydrogen (AEL),ARG-SAL,LC,Derivate production"},"PTX-BusinessOpportunityAnalyzer-1.0.9",{"$f":"sel_country_code","v":"DEU"},"Hydrogen (AEL)",{"$f":"_calc!$B$1095","v":"ARG-SAL"},{"$f":"_calc!$BO$1071","v":"LC"},{"$f":"_calc!$BV$1","v":"Derivate production"},{"$f":"_calc!$BV$1095","v":0}]
[{"$f":"_xlfn.TEXTJOIN(\",\",FALSE,output[[#This Row],[scenario]:[process_class]])","v":"PTX-BusinessOpportunityAnalyzer-1.0.9,DEU,Hydrogen (AEL),ARG-SAT,LC,Electrolysis"},"PTX-BusinessOpportunityAnalyzer-1.0.9",{"$f":"sel_country_code","v":"DEU"},"Hydrogen (AEL)",{"$f":"_calc!$B$1096","v":"ARG-SAT"},{"$f":"_calc!$BO$1071","v":"LC"},{"$f":"_calc!$BQ$1","v":"Electrolysis"},{"$f":"_calc!$BQ$1096","v":91.655369844485861}]
[{"$f":"_xlfn.TEXTJOIN(\",\",FALSE,output[[#This Row],[scenario]:[process_class]])","v":"PTX-BusinessOpportunityAnalyzer-1.0.9,DEU,Hydrogen (AEL),ARG-SAT,LC,Electricity generation"},"PTX-BusinessOpportunityAnalyzer-1.0.9",{"$f":"sel_country_code","v":"DEU"},"Hydrogen (AEL)",{"$f":"_calc!$B$1096","v":"ARG-SAT"},{"$f":"_calc!$BO$1071","v":"LC"},{"$f":"_calc!$BR$1","v":"Electricity generation"},{"$f":"_calc!$BR$1096","v":4.6192773093511851E-2}]
[{"$f":"_xlfn.TEXTJOIN(\",\",FALSE,output[[#This Row],[scenario]:[process_class]])","v":"PTX-BusinessOpportunityAnalyzer-1.0.9,DEU,Hydrogen (AEL),ARG-SAT,LC,Derivate production"},"PTX-BusinessOpportunityAnalyzer-1.0.9",{"$f":"sel_country_code","v":"DEU"},"Hydrogen (AEL)",{"$f":"_calc!$B$1096","v":"ARG-SAT"},{"$f":"_calc!$BO$1071","v":"LC"},{"$f":"_calc!$BV$1","v":"Derivate production"},{"$f":"_calc!$BV$1096","v":0}]
[{"$f":"_xlfn.TEXTJOIN(\",\",FALSE,output[[#This Row],[scenario]:[process_class]])","v":"PTX-BusinessOpportunityAnalyzer-1.0.9,DEU,Hydrogen (AEL),ARG-TUC,LC,Electrolysis"},"PTX-BusinessOpportunityAnalyzer-1.0.9",{"$f":"sel_country_code","v":"DEU"},"Hydrogen (AEL)",{"$f":"_calc!$B$1097","v":"ARG-TUC"},{"$f":"_calc!$BO$1071","v":"LC"},{"$f":"_calc!$BQ$1","v":"Electrolysis"},{"$f":"_calc!$BQ$1097","v":123.42187137464508}]
[{"$f":"_xlfn.TEXTJOIN(\",\",FALSE,output[[#This Row],[scenario]:[process_class]])","v":"PTX-BusinessOpportunityAnalyzer-1.0.9,DEU,Hydrogen (AEL),ARG-TUC,LC,Electricity generation"},"PTX-BusinessOpportunityAnalyzer-1.0.9",{"$f":"sel_country_code","v":"DEU"},"Hydrogen (AEL)",{"$f":"_calc!$B$1097","v":"ARG-TUC"},{"$f":"_calc!$BO$1071","v":"LC"},{"$f":"_calc!$BR$1","v":"Electricity generation"},{"$f":"_calc!$BR$1097","v":6.1506666983577221E-2}]
[{"$f":"_xlfn.TEXTJOIN(\",\",FALSE,output[[#This Row],[scenario]:[process_class]])","v":"PTX-BusinessOpportunityAnalyzer-1.0.9,DEU,Hydrogen (AEL),ARG-TUC,LC,Derivate production"},"PTX-BusinessOpportunityAnalyzer-1.0.9",{"$f":"sel_country_code","v":"DEU"},"Hydrogen (AEL)",{"$f":"_calc!$B$1097","v":"ARG-TUC"},{"$f":"_calc!$BO$1071","v":"LC"},{"$f":"_calc!$BV$1","v":"Derivate production"},{"$f":"_calc!$BV$1097","v":0}]
[{"$f":"_xlfn.TEXTJOIN(\",\",FALSE,output[[#This Row],[scenario]:[process_class]])","v":"PTX-BusinessOpportunityAnalyzer-1.0.9,DEU,Hydrogen (AEL),AUS,LC,Electrolysis"},"PTX-BusinessOpportunityAnalyzer-1.0.9",{"$f":"sel_country_code","v":"DEU"},"Hydrogen (AEL)",{"$f":"_calc!$B$1098","v":"AUS"},{"$f":"_calc!$BO$1071","v":"LC"},{"$f":"_calc!$BQ$1","v":"Electrolysis"},{"$f":"_calc!$BQ$1098","v":50.898569398388958}]
[{"$f":"_xlfn.TEXTJOIN(\",\",FALSE,output[[#This Row],[scenario]:[process_class]])","v":"PTX-BusinessOpportunityAnalyzer-1.0.9,DEU,Hydrogen (AEL),AUS,LC,Electricity generation"},"PTX-BusinessOpportunityAnalyzer-1.0.9",{"$f":"sel_country_code","v":"DEU"},"Hydrogen (AEL)",{"$f":"_calc!$B$1098","v":"AUS"},{"$f":"_calc!$BO$1071","v":"LC"},{"$f":"_calc!$BR$1","v":"Electricity generation"},{"$f":"_calc!$BR$1098","v":2.6731747998806604E-2}]
[{"$f":"_xlfn.TEXTJOIN(\",\",FALSE,output[[#This Row],[scenario]:[process_class]])","v":"PTX-BusinessOpportunityAnalyzer-1.0.9,DEU,Hydrogen (AEL),AUS,LC,Derivate production"},"PTX-BusinessOpportunityAnalyzer-1.0.9",{"$f":"sel_country_code","v":"DEU"},"Hydrogen (AEL)",{"$f":"_calc!$B$1098","v":"AUS"},{"$f":"_calc!$BO$1071","v":"LC"},{"$f":"_calc!$BV$1","v":"Derivate production"},{"$f":"_calc!$BV$1098","v":0}]
[{"$f":"_xlfn.TEXTJOIN(\",\",FALSE,output[[#This Row],[scenario]:[process_class]])","v":"PTX-BusinessOpportunityAnalyzer-1.0.9,DEU,Hydrogen (AEL),BRA,LC,Electrolysis"},"PTX-BusinessOpportunityAnalyzer-1.0.9",{"$f":"sel_country_code","v":"DEU"},"Hydrogen (AEL)",{"$f":"_calc!$B$1099","v":"BRA"},{"$f":"_calc!$BO$1071","v":"LC"},{"$f":"_calc!$BQ$1","v":"Electrolysis"},{"$f":"_calc!$BQ$1099","v":46.751890589752655}]
[{"$f":"_xlfn.TEXTJOIN(\",\",FALSE,output[[#This Row],[scenario]:[process_class]])","v":"PTX-BusinessOpportunityAnalyzer-1.0.9,DEU,Hydrogen (AEL),BRA,LC,Electricity generation"},"PTX-BusinessOpportunityAnalyzer-1.0.9",{"$f":"sel_country_code","v":"DEU"},"Hydrogen (AEL)",{"$f":"_calc!$B$1099","v":"BRA"},{"$f":"_calc!$BO$1071","v":"LC"},{"$f":"_calc!$BR$1","v":"Electricity generation"},{"$f":"_calc!$BR$1099","v":2.2063319730734915E-2}]
[{"$f":"_xlfn.TEXTJOIN(\",\",FALSE,output[[#This Row],[scenario]:[process_class]])","v":"PTX-BusinessOpportunityAnalyzer-1.0.9,DEU,Hydrogen (AEL),BRA,LC,Derivate production"},"PTX-BusinessOpportunityAnalyzer-1.0.9",{"$f":"sel_country_code","v":"DEU"},"Hydrogen (AEL)",{"$f":"_calc!$B$1099","v":"BRA"},{"$f":"_calc!$BO$1071","v":"LC"},{"$f":"_calc!$BV$1","v":"Derivate production"},{"$f":"_calc!$BV$1099","v":0}]
[{"$f":"_xlfn.TEXTJOIN(\",\",FALSE,output[[#This Row],[scenario]:[process_class]])","v":"PTX-BusinessOpportunityAnalyzer-1.0.9,DEU,Hydrogen (AEL),CHL,LC,Electrolysis"},"PTX-BusinessOpportunityAnalyzer-1.0.9",{"$f":"sel_country_code","v":"DEU"},"Hydrogen (AEL)",{"$f":"_calc!$B$1100","v":"CHL"},{"$f":"_calc!$BO$1071","v":"LC"},{"$f":"_calc!$BQ$1","v":"Electrolysis"},{"$f":"_calc!$BQ$1100","v":75.952717962920985}]
[{"$f":"_xlfn.TEXTJOIN(\",\",FALSE,output[[#This Row],[scenario]:[process_class]])","v":"PTX-BusinessOpportunityAnalyzer-1.0.9,DEU,Hydrogen (AEL),CHL,LC,Electricity generation"},"PTX-BusinessOpportunityAnalyzer-1.0.9",{"$f":"sel_country_code","v":"DEU"},"Hydrogen (AEL)",{"$f":"_calc!$B$1100","v":"CHL"},{"$f":"_calc!$BO$1071","v":"LC"},{"$f":"_calc!$BR$1","v":"Electricity generation"},{"$f":"_calc!$BR$1100","v":3.8006795508784802E-2}]
[{"$f":"_xlfn.TEXTJOIN(\",\",FALSE,output[[#This Row],[scenario]:[process_class]])","v":"PTX-BusinessOpportunityAnalyzer-1.0.9,DEU,Hydrogen (AEL),CHL,LC,Derivate production"},"PTX-BusinessOpportunityAnalyzer-1.0.9",{"$f":"sel_country_code","v":"DEU"},"Hydrogen (AEL)",{"$f":"_calc!$B$1100","v":"CHL"},{"$f":"_calc!$BO$1071","v":"LC"},{"$f":"_calc!$BV$1","v":"Derivate production"},{"$f":"_calc!$BV$1100","v":0}]
[{"$f":"_xlfn.TEXTJOIN(\",\",FALSE,output[[#This Row],[scenario]:[process_class]])","v":"PTX-BusinessOpportunityAnalyzer-1.0.9,DEU,Hydrogen (AEL),CHN,LC,Electrolysis"},"PTX-BusinessOpportunityAnalyzer-1.0.9",{"$f":"sel_country_code","v":"DEU"},"Hydrogen (AEL)",{"$f":"_calc!$B$1101","v":"CHN"},{"$f":"_calc!$BO$1071","v":"LC"},{"$f":"_calc!$BQ$1","v":"Electrolysis"},{"$f":"_calc!$BQ$1101","v":36.294433537789132}]
[{"$f":"_xlfn.TEXTJOIN(\",\",FALSE,output[[#This Row],[scenario]:[process_class]])","v":"PTX-BusinessOpportunityAnalyzer-1.0.9,DEU,Hydrogen (AEL),CHN,LC,Electricity generation"},"PTX-BusinessOpportunityAnalyzer-1.0.9",{"$f":"sel_country_code","v":"DEU"},"Hydrogen (AEL)",{"$f":"_calc!$B$1101","v":"CHN"},{"$f":"_calc!$BO$1071","v":"LC"},{"$f":"_calc!$BR$1","v":"Electricity generation"},{"$f":"_calc!$BR$1101","v":1.6082221619358742E-2}]
[{"$f":"_xlfn.TEXTJOIN(\",\",FALSE,output[[#This Row],[scenario]:[process_class]])","v":"PTX-BusinessOpportunityAnalyzer-1.0.9,DEU,Hydrogen (AEL),CHN,LC,Derivate production"},"PTX-BusinessOpportunityAnalyzer-1.0.9",{"$f":"sel_country_code","v":"DEU"},"Hydrogen (AEL)",{"$f":"_calc!$B$1101","v":"CHN"},{"$f":"_calc!$BO$1071","v":"LC"},{"$f":"_calc!$BV$1","v":"Derivate production"},{"$f":"_calc!$BV$1101","v":0}]
[{"$f":"_xlfn.TEXTJOIN(\",\",FALSE,output[[#This Row],[scenario]:[process_class]])","v":"PTX-BusinessOpportunityAnalyzer-1.0.9,DEU,Hydrogen (AEL),COL,LC,Electrolysis"},"PTX-BusinessOpportunityAnalyzer-1.0.9",{"$f":"sel_country_code","v":"DEU"},"Hydrogen (AEL)",{"$f":"_calc!$B$1102","v":"COL"},{"$f":"_calc!$BO$1071","v":"LC"},{"$f":"_calc!$BQ$1","v":"Electrolysis"},{"$f":"_calc!$BQ$1102","v":43.141145589296869}]
[{"$f":"_xlfn.TEXTJOIN(\",\",FALSE,output[[#This Row],[scenario]:[process_class]])","v":"PTX-BusinessOpportunityAnalyzer-1.0.9,DEU,Hydrogen (AEL),COL,LC,Electricity generation"},"PTX-BusinessOpportunityAnalyzer-1.0.9",{"$f":"sel_country_code","v":"DEU"},"Hydrogen (AEL)",{"$f":"_calc!$B$1102","v":"COL"},{"$f":"_calc!$BO$1071","v":"LC"},{"$f":"_calc!$BR$1","v":"Electricity generation"},{"$f":"_calc!$BR$1102","v":2.0499544592272847E-2}]
[{"$f":"_xlfn.TEXTJOIN(\",\",FALSE,output[[#This Row],[scenario]:[process_class]])","v":"PTX-BusinessOpportunityAnalyzer-1.0.9,DEU,Hydrogen (AEL),COL,LC,Derivate production"},"PTX-BusinessOpportunityAnalyzer-1.0.9",{"$f":"sel_country_code","v":"DEU"},"Hydrogen (AEL)",{"$f":"_calc!$B$1102","v":"COL"},{"$f":"_calc!$BO$1071","v":"LC"},{"$f":"_calc!$BV$1","v":"Derivate production"},{"$f":"_calc!$BV$1102","v":0}]
[{"$f":"_xlfn.TEXTJOIN(\",\",FALSE,output[[#This Row],[scenario]:[process_class]])","v":"PTX-BusinessOpportunityAnalyzer-1.0.9,DEU,Hydrogen (AEL),CRI,LC,Electrolysis"},"PTX-BusinessOpportunityAnalyzer-1.0.9",{"$f":"sel_country_code","v":"DEU"},"Hydrogen (AEL)",{"$f":"_calc!$B$1103","v":"CRI"},{"$f":"_calc!$BO$1071","v":"LC"},{"$f":"_calc!$BQ$1","v":"Electrolysis"},{"$f":"_calc!$BQ$1103","v":96.489018959938065}]
[{"$f":"_xlfn.TEXTJOIN(\",\",FALSE,output[[#This Row],[scenario]:[process_class]])","v":"PTX-BusinessOpportunityAnalyzer-1.0.9,DEU,Hydrogen (AEL),CRI,LC,Electricity generation"},"PTX-BusinessOpportunityAnalyzer-1.0.9",{"$f":"sel_country_code","v":"DEU"},"Hydrogen (AEL)",{"$f":"_calc!$B$1103","v":"CRI"},{"$f":"_calc!$BO$1071","v":"LC"},{"$f":"_calc!$BR$1","v":"Electricity generation"},{"$f":"_calc!$BR$1103","v":4.7172379286249518E-2}]
[{"$f":"_xlfn.TEXTJOIN(\",\",FALSE,output[[#This Row],[scenario]:[process_class]])","v":"PTX-BusinessOpportunityAnalyzer-1.0.9,DEU,Hydrogen (AEL),CRI,LC,Derivate production"},"PTX-BusinessOpportunityAnalyzer-1.0.9",{"$f":"sel_country_code","v":"DEU"},"Hydrogen (AEL)",{"$f":"_calc!$B$1103","v":"CRI"},{"$f":"_calc!$BO$1071","v":"LC"},{"$f":"_calc!$BV$1","v":"Derivate production"},{"$f":"_calc!$BV$1103","v":0}]
[{"$f":"_xlfn.TEXTJOIN(\",\",FALSE,output[[#This Row],[scenario]:[process_class]])","v":"PTX-BusinessOpportunityAnalyzer-1.0.9,DEU,Hydrogen (AEL),DNK,LC,Electrolysis"},"PTX-BusinessOpportunityAnalyzer-1.0.9",{"$f":"sel_country_code","v":"DEU"},"Hydrogen (AEL)",{"$f":"_calc!$B$1104","v":"DNK"},{"$f":"_calc!$BO$1071","v":"LC"},{"$f":"_calc!$BQ$1","v":"Electrolysis"},{"$f":"_calc!$BQ$1104","v":43.797206815279971}]
[{"$f":"_xlfn.TEXTJOIN(\",\",FALSE,output[[#This Row],[scenario]:[process_class]])","v":"PTX-BusinessOpportunityAnalyzer-1.0.9,DEU,Hydrogen (AEL),DNK,LC,Electricity generation"},"PTX-BusinessOpportunityAnalyzer-1.0.9",{"$f":"sel_country_code","v":"DEU"},"Hydrogen (AEL)",{"$f":"_calc!$B$1104","v":"DNK"},{"$f":"_calc!$BO$1071","v":"LC"},{"$f":"_calc!$BR$1","v":"Electricity generation"},{"$f":"_calc!$BR$1104","v":2.1596262976652465E-2}]
[{"$f":"_xlfn.TEXTJOIN(\",\",FALSE,output[[#This Row],[scenario]:[process_class]])","v":"PTX-BusinessOpportunityAnalyzer-1.0.9,DEU,Hydrogen (AEL),DNK,LC,Derivate production"},"PTX-BusinessOpportunityAnalyzer-1.0.9",{"$f":"sel_country_code","v":"DEU"},"Hydrogen (AEL)",{"$f":"_calc!$B$1104","v":"DNK"},{"$f":"_calc!$BO$1071","v":"LC"},{"$f":"_calc!$BV$1","v":"Derivate production"},{"$f":"_calc!$BV$1104","v":0}]
[{"$f":"_xlfn.TEXTJOIN(\",\",FALSE,output[[#This Row],[scenario]:[process_class]])","v":"PTX-BusinessOpportunityAnalyzer-1.0.9,DEU,Hydrogen (AEL),DZA,LC,Electrolysis"},"PTX-BusinessOpportunityAnalyzer-1.0.9",{"$f":"sel_country_code","v":"DEU"},"Hydrogen (AEL)",{"$f":"_calc!$B$1105","v":"DZA"},{"$f":"_calc!$BO$1071","v":"LC"},{"$f":"_calc!$BQ$1","v":"Electrolysis"},{"$f":"_calc!$BQ$1105","v":87.763492471801186}]
[{"$f":"_xlfn.TEXTJOIN(\",\",FALSE,output[[#This Row],[scenario]:[process_class]])","v":"PTX-BusinessOpportunityAnalyzer-1.0.9,DEU,Hydrogen (AEL),DZA,LC,Electricity generation"},"PTX-BusinessOpportunityAnalyzer-1.0.9",{"$f":"sel_country_code","v":"DEU"},"Hydrogen (AEL)",{"$f":"_calc!$B$1105","v":"DZA"},{"$f":"_calc!$BO$1071","v":"LC"},{"$f":"_calc!$BR$1","v":"Electricity generation"},{"$f":"_calc!$BR$1105","v":3.9864796190564183E-2}]
[{"$f":"_xlfn.TEXTJOIN(\",\",FALSE,output[[#This Row],[scenario]:[process_class]])","v":"PTX-BusinessOpportunityAnalyzer-1.0.9,DEU,Hydrogen (AEL),DZA,LC,Derivate production"},"PTX-BusinessOpportunityAnalyzer-1.0.9",{"$f":"sel_country_code","v":"DEU"},"Hydrogen (AEL)",{"$f":"_calc!$B$1105","v":"DZA"},{"$f":"_calc!$BO$1071","v":"LC"},{"$f":"_calc!$BV$1","v":"Derivate production"},{"$f":"_calc!$BV$1105","v":0}]
[{"$f":"_xlfn.TEXTJOIN(\",\",FALSE,output[[#This Row],[scenario]:[process_class]])","v":"PTX-BusinessOpportunityAnalyzer-1.0.9,DEU,Hydrogen (AEL),EGY,LC,Electrolysis"},"PTX-BusinessOpportunityAnalyzer-1.0.9",{"$f":"sel_country_code","v":"DEU"},"Hydrogen (AEL)",{"$f":"_calc!$B$1106","v":"EGY"},{"$f":"_calc!$BO$1071","v":"LC"},{"$f":"_calc!$BQ$1","v":"Electrolysis"},{"$f":"_calc!$BQ$1106","v":72.428136766696724}]
[{"$f":"_xlfn.TEXTJOIN(\",\",FALSE,output[[#This Row],[scenario]:[process_class]])","v":"PTX-BusinessOpportunityAnalyzer-1.0.9,DEU,Hydrogen (AEL),EGY,LC,Electricity generation"},"PTX-BusinessOpportunityAnalyzer-1.0.9",{"$f":"sel_country_code","v":"DEU"},"Hydrogen (AEL)",{"$f":"_calc!$B$1106","v":"EGY"},{"$f":"_calc!$BO$1071","v":"LC"},{"$f":"_calc!$BR$1","v":"Electricity generation"},{"$f":"_calc!$BR$1106","v":3.5361863994952794E-2}]
[{"$f":"_xlfn.TEXTJOIN(\",\",FALSE,output[[#This Row],[scenario]:[process_class]])","v":"PTX-BusinessOpportunityAnalyzer-1.0.9,DEU,Hydrogen (AEL),EGY,LC,Derivate production"},"PTX-BusinessOpportunityAnalyzer-1.0.9",{"$f":"sel_country_code","v":"DEU"},"Hydrogen (AEL)",{"$f":"_calc!$B$1106","v":"EGY"},{"$f":"_calc!$BO$1071","v":"LC"},{"$f":"_calc!$BV$1","v":"Derivate production"},{"$f":"_calc!$BV$1106","v":0}]
[{"$f":"_xlfn.TEXTJOIN(\",\",FALSE,output[[#This Row],[scenario]:[process_class]])","v":"PTX-BusinessOpportunityAnalyzer-1.0.9,DEU,Hydrogen (AEL),ESP,LC,Electrolysis"},"PTX-BusinessOpportunityAnalyzer-1.0.9",{"$f":"sel_country_code","v":"DEU"},"Hydrogen (AEL)",{"$f":"_calc!$B$1107","v":"ESP"},{"$f":"_calc!$BO$1071","v":"LC"},{"$f":"_calc!$BQ$1","v":"Electrolysis"},{"$f":"_calc!$BQ$1107","v":38.528051422771682}]
[{"$f":"_xlfn.TEXTJOIN(\",\",FALSE,output[[#This Row],[scenario]:[process_class]])","v":"PTX-BusinessOpportunityAnalyzer-1.0.9,DEU,Hydrogen (AEL),ESP,LC,Electricity generation"},"PTX-BusinessOpportunityAnalyzer-1.0.9",{"$f":"sel_country_code","v":"DEU"},"Hydrogen (AEL)",{"$f":"_calc!$B$1107","v":"ESP"},{"$f":"_calc!$BO$1071","v":"LC"},{"$f":"_calc!$BR$1","v":"Electricity generation"},{"$f":"_calc!$BR$1107","v":1.7987451571664197E-2}]
[{"$f":"_xlfn.TEXTJOIN(\",\",FALSE,output[[#This Row],[scenario]:[process_class]])","v":"PTX-BusinessOpportunityAnalyzer-1.0.9,DEU,Hydrogen (AEL),ESP,LC,Derivate production"},{"$f":"output_scenario_name","v":"PTX-BusinessOpportunityAnalyzer-1.0.9"},{"$f":"sel_country_code","v":"DEU"},{"$f":"sel_chain","v":"Hydrogen (AEL)"},{"$f":"_calc!$B$1107","v":"ESP"},{"$f":"_calc!$BO$1071","v":"LC"},{"$f":"_calc!$BV$1","v":"Derivate production"},{"$f":"_calc!$BV$1107","v":0}]
[{"$f":"_xlfn.TEXTJOIN(\",\",FALSE,output[[#This Row],[scenario]:[process_class]])","v":"PTX-BusinessOpportunityAnalyzer-1.0.9,DEU,Hydrogen (AEL),IDN,LC,Electrolysis"},"PTX-BusinessOpportunityAnalyzer-1.0.9",{"$f":"sel_country_code","v":"DEU"},"Hydrogen (AEL)",{"$f":"_calc!$B$1108","v":"IDN"},{"$f":"_calc!$BO$1071","v":"LC"},{"$f":"_calc!$BQ$1","v":"Electrolysis"},{"$f":"_calc!$BQ$1108","v":134.22239716895467}]
[{"$f":"_xlfn.TEXTJOIN(\",\",FALSE,output[[#This Row],[scenario]:[process_class]])","v":"PTX-BusinessOpportunityAnalyzer-1.0.9,DEU,Hydrogen (AEL),IDN,LC,Electricity generation"},"PTX-BusinessOpportunityAnalyzer-1.0.9",{"$f":"sel_country_code","v":"DEU"},"Hydrogen (AEL)",{"$f":"_calc!$B$1108","v":"IDN"},{"$f":"_calc!$BO$1071","v":"LC"},{"$f":"_calc!$BR$1","v":"Electricity generation"},{"$f":"_calc!$BR$1108","v":7.0663509118595799E-2}]
[{"$f":"_xlfn.TEXTJOIN(\",\",FALSE,output[[#This Row],[scenario]:[process_class]])","v":"PTX-BusinessOpportunityAnalyzer-1.0.9,DEU,Hydrogen (AEL),IDN,LC,Derivate production"},"PTX-BusinessOpportunityAnalyzer-1.0.9",{"$f":"sel_country_code","v":"DEU"},"Hydrogen (AEL)",{"$f":"_calc!$B$1108","v":"IDN"},{"$f":"_calc!$BO$1071","v":"LC"},{"$f":"_calc!$BV$1","v":"Derivate production"},{"$f":"_calc!$BV$1108","v":0}]
[{"$f":"_xlfn.TEXTJOIN(\",\",FALSE,output[[#This Row],[scenario]:[process_class]])","v":"PTX-BusinessOpportunityAnalyzer-1.0.9,DEU,Hydrogen (AEL),IND,LC,Electrolysis"},"PTX-BusinessOpportunityAnalyzer-1.0.9",{"$f":"sel_country_code","v":"DEU"},"Hydrogen (AEL)",{"$f":"_calc!$B$1109","v":"IND"},{"$f":"_calc!$BO$1071","v":"LC"},{"$f":"_calc!$BQ$1","v":"Electrolysis"},{"$f":"_calc!$BQ$1109","v":38.07872724783266}]
[{"$f":"_xlfn.TEXTJOIN(\",\",FALSE,output[[#This Row],[scenario]:[process_class]])","v":"PTX-BusinessOpportunityAnalyzer-1.0.9,DEU,Hydrogen (AEL),IND,LC,Electricity generation"},"PTX-BusinessOpportunityAnalyzer-1.0.9",{"$f":"sel_country_code","v":"DEU"},"Hydrogen (AEL)",{"$f":"_calc!$B$1109","v":"IND"},{"$f":"_calc!$BO$1071","v":"LC"},{"$f":"_calc!$BR$1","v":"Electricity generation"},{"$f":"_calc!$BR$1109","v":1.6515688971434159E-2}]
[{"$f":"_xlfn.TEXTJOIN(\",\",FALSE,output[[#This Row],[scenario]:[process_class]])","v":"PTX-BusinessOpportunityAnalyzer-1.0.9,DEU,Hydrogen (AEL),IND,LC,Derivate production"},"PTX-BusinessOpportunityAnalyzer-1.0.9",{"$f":"sel_country_code","v":"DEU"},"Hydrogen (AEL)",{"$f":"_calc!$B$1109","v":"IND"},{"$f":"_calc!$BO$1071","v":"LC"},{"$f":"_calc!$BV$1","v":"Derivate production"},{"$f":"_calc!$BV$1109","v":0}]
[{"$f":"_xlfn.TEXTJOIN(\",\",FALSE,output[[#This Row],[scenario]:[process_class]])","v":"PTX-BusinessOpportunityAnalyzer-1.0.9,DEU,Hydrogen (AEL),JOR,LC,Electrolysis"},"PTX-BusinessOpportunityAnalyzer-1.0.9",{"$f":"sel_country_code","v":"DEU"},"Hydrogen (AEL)",{"$f":"_calc!$B$1110","v":"JOR"},{"$f":"_calc!$BO$1071","v":"LC"},{"$f":"_calc!$BQ$1","v":"Electrolysis"},{"$f":"_calc!$BQ$1110","v":140.83306407881605}]
[{"$f":"_xlfn.TEXTJOIN(\",\",FALSE,output[[#This Row],[scenario]:[process_class]])","v":"PTX-BusinessOpportunityAnalyzer-1.0.9,DEU,Hydrogen (AEL),JOR,LC,Electricity generation"},"PTX-BusinessOpportunityAnalyzer-1.0.9",{"$f":"sel_country_code","v":"DEU"},"Hydrogen (AEL)",{"$f":"_calc!$B$1110","v":"JOR"},{"$f":"_calc!$BO$1071","v":"LC"},{"$f":"_calc!$BR$1","v":"Electricity generation"},{"$f":"_calc!$BR$1110","v":7.4695351443620037E-2}]
[{"$f":"_xlfn.TEXTJOIN(\",\",FALSE,output[[#This Row],[scenario]:[process_class]])","v":"PTX-BusinessOpportunityAnalyzer-1.0.9,DEU,Hydrogen (AEL),JOR,LC,Derivate production"},"PTX-BusinessOpportunityAnalyzer-1.0.9",{"$f":"sel_country_code","v":"DEU"},"Hydrogen (AEL)",{"$f":"_calc!$B$1110","v":"JOR"},{"$f":"_calc!$BO$1071","v":"LC"},{"$f":"_calc!$BV$1","v":"Derivate production"},{"$f":"_calc!$BV$1110","v":0}]
[{"$f":"_xlfn.TEXTJOIN(\",\",FALSE,output[[#This Row],[scenario]:[process_class]])","v":"PTX-BusinessOpportunityAnalyzer-1.0.9,DEU,Hydrogen (AEL),KAZ,LC,Electrolysis"},"PTX-BusinessOpportunityAnalyzer-1.0.9",{"$f":"sel_country_code","v":"DEU"},"Hydrogen (AEL)",{"$f":"_calc!$B$1111","v":"KAZ"},{"$f":"_calc!$BO$1071","v":"LC"},{"$f":"_calc!$BQ$1","v":"Electrolysis"},{"$f":"_calc!$BQ$1111","v":49.707783665937882}]
[{"$f":"_xlfn.TEXTJOIN(\",\",FALSE,output[[#This Row],[scenario]:[process_class]])","v":"PTX-BusinessOpportunityAnalyzer-1.0.9,DEU,Hydrogen (AEL),KAZ,LC,Electricity generation"},"PTX-BusinessOpportunityAnalyzer-1.0.9",{"$f":"sel_country_code","v":"DEU"},"Hydrogen (AEL)",{"$f":"_calc!$B$1111","v":"KAZ"},{"$f":"_calc!$BO$1071","v":"LC"},{"$f":"_calc!$BR$1","v":"Electricity generation"},{"$f":"_calc!$BR$1111","v":2.4464635288558099E-2}]
[{"$f":"_xlfn.TEXTJOIN(\",\",FALSE,output[[#This Row],[scenario]:[process_class]])","v":"PTX-BusinessOpportunityAnalyzer-1.0.9,DEU,Hydrogen (AEL),KAZ,LC,Derivate production"},"PTX-BusinessOpportunityAnalyzer-1.0.9",{"$f":"sel_country_code","v":"DEU"},"Hydrogen (AEL)",{"$f":"_calc!$B$1111","v":"KAZ"},{"$f":"_calc!$BO$1071","v":"LC"},{"$f":"_calc!$BV$1","v":"Derivate production"},{"$f":"_calc!$BV$1111","v":0}]
[{"$f":"_xlfn.TEXTJOIN(\",\",FALSE,output[[#This Row],[scenario]:[process_class]])","v":"PTX-BusinessOpportunityAnalyzer-1.0.9,DEU,Hydrogen (AEL),KEN,LC,Electrolysis"},"PTX-BusinessOpportunityAnalyzer-1.0.9",{"$f":"sel_country_code","v":"DEU"},"Hydrogen (AEL)",{"$f":"_calc!$B$1112","v":"KEN"},{"$f":"_calc!$BO$1071","v":"LC"},{"$f":"_calc!$BQ$1","v":"Electrolysis"},{"$f":"_calc!$BQ$1112","v":99.117035647367018}]
[{"$f":"_xlfn.TEXTJOIN(\",\",FALSE,output[[#This Row],[scenario]:[process_class]])","v":"PTX-BusinessOpportunityAnalyzer-1.0.9,DEU,Hydrogen (AEL),KEN,LC,Electricity generation"},"PTX-BusinessOpportunityAnalyzer-1.0.9",{"$f":"sel_country_code","v":"DEU"},"Hydrogen (AEL)",{"$f":"_calc!$B$1112","v":"KEN"},{"$f":"_calc!$BO$1071","v":"LC"},{"$f":"_calc!$BR$1","v":"Electricity generation"},{"$f":"_calc!$BR$1112","v":5.1499424519927672E-2}]
[{"$f":"_xlfn.TEXTJOIN(\",\",FALSE,output[[#This Row],[scenario]:[process_class]])","v":"PTX-BusinessOpportunityAnalyzer-1.0.9,DEU,Hydrogen (AEL),KEN,LC,Derivate production"},"PTX-BusinessOpportunityAnalyzer-1.0.9",{"$f":"sel_country_code","v":"DEU"},"Hydrogen (AEL)",{"$f":"_calc!$B$1112","v":"KEN"},{"$f":"_calc!$BO$1071","v":"LC"},{"$f":"_calc!$BV$1","v":"Derivate production"},{"$f":"_calc!$BV$1112","v":0}]
[{"$f":"_xlfn.TEXTJOIN(\",\",FALSE,output[[#This Row],[scenario]:[process_class]])","v":"PTX-BusinessOpportunityAnalyzer-1.0.9,DEU,Hydrogen (AEL),MAR,LC,Electrolysis"},"PTX-BusinessOpportunityAnalyzer-1.0.9",{"$f":"sel_country_code","v":"DEU"},"Hydrogen (AEL)",{"$f":"_calc!$B$1113","v":"MAR"},{"$f":"_calc!$BO$1071","v":"LC"},{"$f":"_calc!$BQ$1","v":"Electrolysis"},{"$f":"_calc!$BQ$1113","v":62.563789163716841}]
[{"$f":"_xlfn.TEXTJOIN(\",\",FALSE,output[[#This Row],[scenario]:[process_class]])","v":"PTX-BusinessOpportunityAnalyzer-1.0.9,DEU,Hydrogen (AEL),MAR,LC,Electricity generation"},"PTX-BusinessOpportunityAnalyzer-1.0.9",{"$f":"sel_country_code","v":"DEU"},"Hydrogen (AEL)",{"$f":"_calc!$B$1113","v":"MAR"},{"$f":"_calc!$BO$1071","v":"LC"},{"$f":"_calc!$BR$1","v":"Electricity generation"},{"$f":"_calc!$BR$1113","v":3.1078384660622238E-2}]
[{"$f":"_xlfn.TEXTJOIN(\",\",FALSE,output[[#This Row],[scenario]:[process_class]])","v":"PTX-BusinessOpportunityAnalyzer-1.0.9,DEU,Hydrogen (AEL),MAR,LC,Derivate production"},"PTX-BusinessOpportunityAnalyzer-1.0.9",{"$f":"sel_country_code","v":"DEU"},"Hydrogen (AEL)",{"$f":"_calc!$B$1113","v":"MAR"},{"$f":"_calc!$BO$1071","v":"LC"},{"$f":"_calc!$BV$1","v":"Derivate production"},{"$f":"_calc!$BV$1113","v":0}]
[{"$f":"_xlfn.TEXTJOIN(\",\",FALSE,output[[#This Row],[scenario]:[process_class]])","v":"PTX-BusinessOpportunityAnalyzer-1.0.9,DEU,Hydrogen (AEL),MAR-BEN,LC,Electrolysis"},"PTX-BusinessOpportunityAnalyzer-1.0.9",{"$f":"sel_country_code","v":"DEU"},"Hydrogen (AEL)",{"$f":"_calc!$B$1114","v":"MAR-BEN"},{"$f":"_calc!$BO$1071","v":"LC"},{"$f":"_calc!$BQ$1","v":"Electrolysis"},{"$f":"_calc!$BQ$1114","v":88.228775200315013}]
[{"$f":"_xlfn.TEXTJOIN(\",\",FALSE,output[[#This Row],[scenario]:[process_class]])","v":"PTX-BusinessOpportunityAnalyzer-1.0.9,DEU,Hydrogen (AEL),MAR-BEN,LC,Electricity generation"},"PTX-BusinessOpportunityAnalyzer-1.0.9",{"$f":"sel_country_code","v":"DEU"},"Hydrogen (AEL)",{"$f":"_calc!$B$1114","v":"MAR-BEN"},{"$f":"_calc!$BO$1071","v":"LC"},{"$f":"_calc!$BR$1","v":"Electricity generation"},{"$f":"_calc!$BR$1114","v":4.3932839150841549E-2}]
[{"$f":"_xlfn.TEXTJOIN(\",\",FALSE,output[[#This Row],[scenario]:[process_class]])","v":"PTX-BusinessOpportunityAnalyzer-1.0.9,DEU,Hydrogen (AEL),MAR-BEN,LC,Derivate production"},"PTX-BusinessOpportunityAnalyzer-1.0.9",{"$f":"sel_country_code","v":"DEU"},"Hydrogen (AEL)",{"$f":"_calc!$B$1114","v":"MAR-BEN"},{"$f":"_calc!$BO$1071","v":"LC"},{"$f":"_calc!$BV$1","v":"Derivate production"},{"$f":"_calc!$BV$1114","v":0}]
[{"$f":"_xlfn.TEXTJOIN(\",\",FALSE,output[[#This Row],[scenario]:[process_class]])","v":"PTX-BusinessOpportunityAnalyzer-1.0.9,DEU,Hydrogen (AEL),MAR-CAS,LC,Electrolysis"},"PTX-BusinessOpportunityAnalyzer-1.0.9",{"$f":"sel_country_code","v":"DEU"},"Hydrogen (AEL)",{"$f":"_calc!$B$1115","v":"MAR-CAS"},{"$f":"_calc!$BO$1071","v":"LC"},{"$f":"_calc!$BQ$1","v":"Electrolysis"},{"$f":"_calc!$BQ$1115","v":71.368173600266317}]
[{"$f":"_xlfn.TEXTJOIN(\",\",FALSE,output[[#This Row],[scenario]:[process_class]])","v":"PTX-BusinessOpportunityAnalyzer-1.0.9,DEU,Hydrogen (AEL),MAR-CAS,LC,Electricity generation"},"PTX-BusinessOpportunityAnalyzer-1.0.9",{"$f":"sel_country_code","v":"DEU"},"Hydrogen (AEL)",{"$f":"_calc!$B$1115","v":"MAR-CAS"},{"$f":"_calc!$BO$1071","v":"LC"},{"$f":"_calc!$BR$1","v":"Electricity generation"},{"$f":"_calc!$BR$1115","v":3.5859989498856631E-2}]
[{"$f":"_xlfn.TEXTJOIN(\",\",FALSE,output[[#This Row],[scenario]:[process_class]])","v":"PTX-BusinessOpportunityAnalyzer-1.0.9,DEU,Hydrogen (AEL),MAR-CAS,LC,Derivate production"},"PTX-BusinessOpportunityAnalyzer-1.0.9",{"$f":"sel_country_code","v":"DEU"},"Hydrogen (AEL)",{"$f":"_calc!$B$1115","v":"MAR-CAS"},{"$f":"_calc!$BO$1071","v":"LC"},{"$f":"_calc!$BV$1","v":"Derivate production"},{"$f":"_calc!$BV$1115","v":0}]
[{"$f":"_xlfn.TEXTJOIN(\",\",FALSE,output[[#This Row],[scenario]:[process_class]])","v":"PTX-BusinessOpportunityAnalyzer-1.0.9,DEU,Hydrogen (AEL),MAR-DAK,LC,Electrolysis"},"PTX-BusinessOpportunityAnalyzer-1.0.9",{"$f":"sel_country_code","v":"DEU"},"Hydrogen (AEL)",{"$f":"_calc!$B$1116","v":"MAR-DAK"},{"$f":"_calc!$BO$1071","v":"LC"},{"$f":"_calc!$BQ$1","v":"Electrolysis"},{"$f":"_calc!$BQ$1116","v":45.64805860194987}]
[{"$f":"_xlfn.TEXTJOIN(\",\",FALSE,output[[#This Row],[scenario]:[process_class]])","v":"PTX-BusinessOpportunityAnalyzer-1.0.9,DEU,Hydrogen (AEL),MAR-DAK,LC,Electricity generation"},"PTX-BusinessOpportunityAnalyzer-1.0.9",{"$f":"sel_country_code","v":"DEU"},"Hydrogen (AEL)",{"$f":"_calc!$B$1116","v":"MAR-DAK"},{"$f":"_calc!$BO$1071","v":"LC"},{"$f":"_calc!$BR$1","v":"Electricity generation"},{"$f":"_calc!$BR$1116","v":2.3224451191797432E-2}]
[{"$f":"_xlfn.TEXTJOIN(\",\",FALSE,output[[#This Row],[scenario]:[process_class]])","v":"PTX-BusinessOpportunityAnalyzer-1.0.9,DEU,Hydrogen (AEL),MAR-DAK,LC,Derivate production"},"PTX-BusinessOpportunityAnalyzer-1.0.9",{"$f":"sel_country_code","v":"DEU"},"Hydrogen (AEL)",{"$f":"_calc!$B$1116","v":"MAR-DAK"},{"$f":"_calc!$BO$1071","v":"LC"},{"$f":"_calc!$BV$1","v":"Derivate production"},{"$f":"_calc!$BV$1116","v":0}]
[{"$f":"_xlfn.TEXTJOIN(\",\",FALSE,output[[#This Row],[scenario]:[process_class]])","v":"PTX-BusinessOpportunityAnalyzer-1.0.9,DEU,Hydrogen (AEL),MAR-DRA,LC,Electrolysis"},"PTX-BusinessOpportunityAnalyzer-1.0.9",{"$f":"sel_country_code","v":"DEU"},"Hydrogen (AEL)",{"$f":"_calc!$B$1117","v":"MAR-DRA"},{"$f":"_calc!$BO$1071","v":"LC"},{"$f":"_calc!$BQ$1","v":"Electrolysis"},{"$f":"_calc!$BQ$1117","v":65.796743914250371}]
[{"$f":"_xlfn.TEXTJOIN(\",\",FALSE,output[[#This Row],[scenario]:[process_class]])","v":"PTX-BusinessOpportunityAnalyzer-1.0.9,DEU,Hydrogen (AEL),MAR-DRA,LC,Electricity generation"},"PTX-BusinessOpportunityAnalyzer-1.0.9",{"$f":"sel_country_code","v":"DEU"},"Hydrogen (AEL)",{"$f":"_calc!$B$1117","v":"MAR-DRA"},{"$f":"_calc!$BO$1071","v":"LC"},{"$f":"_calc!$BR$1","v":"Electricity generation"},{"$f":"_calc!$BR$1117","v":3.3155173398106155E-2}]
[{"$f":"_xlfn.TEXTJOIN(\",\",FALSE,output[[#This Row],[scenario]:[process_class]])","v":"PTX-BusinessOpportunityAnalyzer-1.0.9,DEU,Hydrogen (AEL),MAR-DRA,LC,Derivate production"},"PTX-BusinessOpportunityAnalyzer-1.0.9",{"$f":"sel_country_code","v":"DEU"},"Hydrogen (AEL)",{"$f":"_calc!$B$1117","v":"MAR-DRA"},{"$f":"_calc!$BO$1071","v":"LC"},{"$f":"_calc!$BV$1","v":"Derivate production"},{"$f":"_calc!$BV$1117","v":0}]
[{"$f":"_xlfn.TEXTJOIN(\",\",FALSE,output[[#This Row],[scenario]:[process_class]])","v":"PTX-BusinessOpportunityAnalyzer-1.0.9,DEU,Hydrogen (AEL),MAR-FES,LC,Electrolysis"},"PTX-BusinessOpportunityAnalyzer-1.0.9",{"$f":"sel_country_code","v":"DEU"},"Hydrogen (AEL)",{"$f":"_calc!$B$1118","v":"MAR-FES"},{"$f":"_calc!$BO$1071","v":"LC"},{"$f":"_calc!$BQ$1","v":"Electrolysis"},{"$f":"_calc!$BQ$1118","v":79.717273086522042}]
[{"$f":"_xlfn.TEXTJOIN(\",\",FALSE,output[[#This Row],[scenario]:[process_class]])","v":"PTX-BusinessOpportunityAnalyzer-1.0.9,DEU,Hydrogen (AEL),MAR-FES,LC,Electricity generation"},"PTX-BusinessOpportunityAnalyzer-1.0.9",{"$f":"sel_country_code","v":"DEU"},"Hydrogen (AEL)",{"$f":"_calc!$B$1118","v":"MAR-FES"},{"$f":"_calc!$BO$1071","v":"LC"},{"$f":"_calc!$BR$1","v":"Electricity generation"},{"$f":"_calc!$BR$1118","v":3.9878936650925151E-2}]
[{"$f":"_xlfn.TEXTJOIN(\",\",FALSE,output[[#This Row],[scenario]:[process_class]])","v":"PTX-BusinessOpportunityAnalyzer-1.0.9,DEU,Hydrogen (AEL),MAR-FES,LC,Derivate production"},"PTX-BusinessOpportunityAnalyzer-1.0.9",{"$f":"sel_country_code","v":"DEU"},"Hydrogen (AEL)",{"$f":"_calc!$B$1118","v":"MAR-FES"},{"$f":"_calc!$BO$1071","v":"LC"},{"$f":"_calc!$BV$1","v":"Derivate production"},{"$f":"_calc!$BV$1118","v":0}]
[{"$f":"_xlfn.TEXTJOIN(\",\",FALSE,output[[#This Row],[scenario]:[process_class]])","v":"PTX-BusinessOpportunityAnalyzer-1.0.9,DEU,Hydrogen (AEL),MAR-GUE,LC,Electrolysis"},"PTX-BusinessOpportunityAnalyzer-1.0.9",{"$f":"sel_country_code","v":"DEU"},"Hydrogen (AEL)",{"$f":"_calc!$B$1119","v":"MAR-GUE"},{"$f":"_calc!$BO$1071","v":"LC"},{"$f":"_calc!$BQ$1","v":"Electrolysis"},{"$f":"_calc!$BQ$1119","v":58.060573799541366}]
[{"$f":"_xlfn.TEXTJOIN(\",\",FALSE,output[[#This Row],[scenario]:[process_class]])","v":"PTX-BusinessOpportunityAnalyzer-1.0.9,DEU,Hydrogen (AEL),MAR-GUE,LC,Electricity generation"},"PTX-BusinessOpportunityAnalyzer-1.0.9",{"$f":"sel_country_code","v":"DEU"},"Hydrogen (AEL)",{"$f":"_calc!$B$1119","v":"MAR-GUE"},{"$f":"_calc!$BO$1071","v":"LC"},{"$f":"_calc!$BR$1","v":"Electricity generation"},{"$f":"_calc!$BR$1119","v":2.9369517492137183E-2}]
[{"$f":"_xlfn.TEXTJOIN(\",\",FALSE,output[[#This Row],[scenario]:[process_class]])","v":"PTX-BusinessOpportunityAnalyzer-1.0.9,DEU,Hydrogen (AEL),MAR-GUE,LC,Derivate production"},"PTX-BusinessOpportunityAnalyzer-1.0.9",{"$f":"sel_country_code","v":"DEU"},"Hydrogen (AEL)",{"$f":"_calc!$B$1119","v":"MAR-GUE"},{"$f":"_calc!$BO$1071","v":"LC"},{"$f":"_calc!$BV$1","v":"Derivate production"},{"$f":"_calc!$BV$1119","v":0}]
[{"$f":"_xlfn.TEXTJOIN(\",\",FALSE,output[[#This Row],[scenario]:[process_class]])","v":"PTX-BusinessOpportunityAnalyzer-1.0.9,DEU,Hydrogen (AEL),MAR-LAA,LC,Electrolysis"},"PTX-BusinessOpportunityAnalyzer-1.0.9",{"$f":"sel_country_code","v":"DEU"},"Hydrogen (AEL)",{"$f":"_calc!$B$1120","v":"MAR-LAA"},{"$f":"_calc!$BO$1071","v":"LC"},{"$f":"_calc!$BQ$1","v":"Electrolysis"},{"$f":"_calc!$BQ$1120","v":49.809212764018575}]
[{"$f":"_xlfn.TEXTJOIN(\",\",FALSE,output[[#This Row],[scenario]:[process_class]])","v":"PTX-BusinessOpportunityAnalyzer-1.0.9,DEU,Hydrogen (AEL),MAR-LAA,LC,Electricity generation"},"PTX-BusinessOpportunityAnalyzer-1.0.9",{"$f":"sel_country_code","v":"DEU"},"Hydrogen (AEL)",{"$f":"_calc!$B$1120","v":"MAR-LAA"},{"$f":"_calc!$BO$1071","v":"LC"},{"$f":"_calc!$BR$1","v":"Electricity generation"},{"$f":"_calc!$BR$1120","v":2.529413599094623E-2}]
[{"$f":"_xlfn.TEXTJOIN(\",\",FALSE,output[[#This Row],[scenario]:[process_class]])","v":"PTX-BusinessOpportunityAnalyzer-1.0.9,DEU,Hydrogen (AEL),MAR-LAA,LC,Derivate production"},"PTX-BusinessOpportunityAnalyzer-1.0.9",{"$f":"sel_country_code","v":"DEU"},"Hydrogen (AEL)",{"$f":"_calc!$B$1120","v":"MAR-LAA"},{"$f":"_calc!$BO$1071","v":"LC"},{"$f":"_calc!$BV$1","v":"Derivate production"},{"$f":"_calc!$BV$1120","v":0}]
[{"$f":"_xlfn.TEXTJOIN(\",\",FALSE,output[[#This Row],[scenario]:[process_class]])","v":"PTX-BusinessOpportunityAnalyzer-1.0.9,DEU,Hydrogen (AEL),MAR-LOR,LC,Electrolysis"},"PTX-BusinessOpportunityAnalyzer-1.0.9",{"$f":"sel_country_code","v":"DEU"},"Hydrogen (AEL)",{"$f":"_calc!$B$1121","v":"MAR-LOR"},{"$f":"_calc!$BO$1071","v":"LC"},{"$f":"_calc!$BQ$1","v":"Electrolysis"},{"$f":"_calc!$BQ$1121","v":60.669767032299376}]
[{"$f":"_xlfn.TEXTJOIN(\",\",FALSE,output[[#This Row],[scenario]:[process_class]])","v":"PTX-BusinessOpportunityAnalyzer-1.0.9,DEU,Hydrogen (AEL),MAR-LOR,LC,Electricity generation"},"PTX-BusinessOpportunityAnalyzer-1.0.9",{"$f":"sel_country_code","v":"DEU"},"Hydrogen (AEL)",{"$f":"_calc!$B$1121","v":"MAR-LOR"},{"$f":"_calc!$BO$1071","v":"LC"},{"$f":"_calc!$BR$1","v":"Electricity generation"},{"$f":"_calc!$BR$1121","v":3.0650163538765623E-2}]
[{"$f":"_xlfn.TEXTJOIN(\",\",FALSE,output[[#This Row],[scenario]:[process_class]])","v":"PTX-BusinessOpportunityAnalyzer-1.0.9,DEU,Hydrogen (AEL),MAR-LOR,LC,Derivate production"},"PTX-BusinessOpportunityAnalyzer-1.0.9",{"$f":"sel_country_code","v":"DEU"},"Hydrogen (AEL)",{"$f":"_calc!$B$1121","v":"MAR-LOR"},{"$f":"_calc!$BO$1071","v":"LC"},{"$f":"_calc!$BV$1","v":"Derivate production"},{"$f":"_calc!$BV$1121","v":0}]
[{"$f":"_xlfn.TEXTJOIN(\",\",FALSE,output[[#This Row],[scenario]:[process_class]])","v":"PTX-BusinessOpportunityAnalyzer-1.0.9,DEU,Hydrogen (AEL),MAR-MAR,LC,Electrolysis"},"PTX-BusinessOpportunityAnalyzer-1.0.9",{"$f":"sel_country_code","v":"DEU"},"Hydrogen (AEL)",{"$f":"_calc!$B$1122","v":"MAR-MAR"},{"$f":"_calc!$BO$1071","v":"LC"},{"$f":"_calc!$BQ$1","v":"Electrolysis"},{"$f":"_calc!$BQ$1122","v":82.496565141322307}]
[{"$f":"_xlfn.TEXTJOIN(\",\",FALSE,output[[#This Row],[scenario]:[process_class]])","v":"PTX-BusinessOpportunityAnalyzer-1.0.9,DEU,Hydrogen (AEL),MAR-MAR,LC,Electricity generation"},"PTX-BusinessOpportunityAnalyzer-1.0.9",{"$f":"sel_country_code","v":"DEU"},"Hydrogen (AEL)",{"$f":"_calc!$B$1122","v":"MAR-MAR"},{"$f":"_calc!$BO$1071","v":"LC"},{"$f":"_calc!$BR$1","v":"Electricity generation"},{"$f":"_calc!$BR$1122","v":4.1207512940411743E-2}]
[{"$f":"_xlfn.TEXTJOIN(\",\",FALSE,output[[#This Row],[scenario]:[process_class]])","v":"PTX-BusinessOpportunityAnalyzer-1.0.9,DEU,Hydrogen (AEL),MAR-MAR,LC,Derivate production"},"PTX-BusinessOpportunityAnalyzer-1.0.9",{"$f":"sel_country_code","v":"DEU"},"Hydrogen (AEL)",{"$f":"_calc!$B$1122","v":"MAR-MAR"},{"$f":"_calc!$BO$1071","v":"LC"},{"$f":"_calc!$BV$1","v":"Derivate production"},{"$f":"_calc!$BV$1122","v":0}]
[{"$f":"_xlfn.TEXTJOIN(\",\",FALSE,output[[#This Row],[scenario]:[process_class]])","v":"PTX-BusinessOpportunityAnalyzer-1.0.9,DEU,Hydrogen (AEL),MAR-RAB,LC,Electrolysis"},"PTX-BusinessOpportunityAnalyzer-1.0.9",{"$f":"sel_country_code","v":"DEU"},"Hydrogen (AEL)",{"$f":"_calc!$B$1123","v":"MAR-RAB"},{"$f":"_calc!$BO$1071","v":"LC"},{"$f":"_calc!$BQ$1","v":"Electrolysis"},{"$f":"_calc!$BQ$1123","v":85.686198170705708}]
[{"$f":"_xlfn.TEXTJOIN(\",\",FALSE,output[[#This Row],[scenario]:[process_class]])","v":"PTX-BusinessOpportunityAnalyzer-1.0.9,DEU,Hydrogen (AEL),MAR-RAB,LC,Electricity generation"},"PTX-BusinessOpportunityAnalyzer-1.0.9",{"$f":"sel_country_code","v":"DEU"},"Hydrogen (AEL)",{"$f":"_calc!$B$1123","v":"MAR-RAB"},{"$f":"_calc!$BO$1071","v":"LC"},{"$f":"_calc!$BR$1","v":"Electricity generation"},{"$f":"_calc!$BR$1123","v":4.2726470137431097E-2}]
[{"$f":"_xlfn.TEXTJOIN(\",\",FALSE,output[[#This Row],[scenario]:[process_class]])","v":"PTX-BusinessOpportunityAnalyzer-1.0.9,DEU,Hydrogen (AEL),MAR-RAB,LC,Derivate production"},"PTX-BusinessOpportunityAnalyzer-1.0.9",{"$f":"sel_country_code","v":"DEU"},"Hydrogen (AEL)",{"$f":"_calc!$B$1123","v":"MAR-RAB"},{"$f":"_calc!$BO$1071","v":"LC"},{"$f":"_calc!$BV$1","v":"Derivate production"},{"$f":"_calc!$BV$1123","v":0}]
[{"$f":"_xlfn.TEXTJOIN(\",\",FALSE,output[[#This Row],[scenario]:[process_class]])","v":"PTX-BusinessOpportunityAnalyzer-1.0.9,DEU,Hydrogen (AEL),MAR-SOU,LC,Electrolysis"},"PTX-BusinessOpportunityAnalyzer-1.0.9",{"$f":"sel_country_code","v":"DEU"},"Hydrogen (AEL)",{"$f":"_calc!$B$1124","v":"MAR-SOU"},{"$f":"_calc!$BO$1071","v":"LC"},{"$f":"_calc!$BQ$1","v":"Electrolysis"},{"$f":"_calc!$BQ$1124","v":65.239035411247926}]
[{"$f":"_xlfn.TEXTJOIN(\",\",FALSE,output[[#This Row],[scenario]:[process_class]])","v":"PTX-BusinessOpportunityAnalyzer-1.0.9,DEU,Hydrogen (AEL),MAR-SOU,LC,Electricity generation"},"PTX-BusinessOpportunityAnalyzer-1.0.9",{"$f":"sel_country_code","v":"DEU"},"Hydrogen (AEL)",{"$f":"_calc!$B$1124","v":"MAR-SOU"},{"$f":"_calc!$BO$1071","v":"LC"},{"$f":"_calc!$BR$1","v":"Electricity generation"},{"$f":"_calc!$BR$1124","v":3.2883418381188696E-2}]
[{"$f":"_xlfn.TEXTJOIN(\",\",FALSE,output[[#This Row],[scenario]:[process_class]])","v":"PTX-BusinessOpportunityAnalyzer-1.0.9,DEU,Hydrogen (AEL),MAR-SOU,LC,Derivate production"},"PTX-BusinessOpportunityAnalyzer-1.0.9",{"$f":"sel_country_code","v":"DEU"},"Hydrogen (AEL)",{"$f":"_calc!$B$1124","v":"MAR-SOU"},{"$f":"_calc!$BO$1071","v":"LC"},{"$f":"_calc!$BV$1","v":"Derivate production"},{"$f":"_calc!$BV$1124","v":0}]
[{"$f":"_xlfn.TEXTJOIN(\",\",FALSE,output[[#This Row],[scenario]:[process_class]])","v":"PTX-BusinessOpportunityAnalyzer-1.0.9,DEU,Hydrogen (AEL),MAR-TAN,LC,Electrolysis"},"PTX-BusinessOpportunityAnalyzer-1.0.9",{"$f":"sel_country_code","v":"DEU"},"Hydrogen (AEL)",{"$f":"_calc!$B$1125","v":"MAR-TAN"},{"$f":"_calc!$BO$1071","v":"LC"},{"$f":"_calc!$BQ$1","v":"Electrolysis"},{"$f":"_calc!$BQ$1125","v":64.878278125373953}]
[{"$f":"_xlfn.TEXTJOIN(\",\",FALSE,output[[#This Row],[scenario]:[process_class]])","v":"PTX-BusinessOpportunityAnalyzer-1.0.9,DEU,Hydrogen (AEL),MAR-TAN,LC,Electricity generation"},"PTX-BusinessOpportunityAnalyzer-1.0.9",{"$f":"sel_country_code","v":"DEU"},"Hydrogen (AEL)",{"$f":"_calc!$B$1125","v":"MAR-TAN"},{"$f":"_calc!$BO$1071","v":"LC"},{"$f":"_calc!$BR$1","v":"Electricity generation"},{"$f":"_calc!$BR$1125","v":3.2707535626711332E-2}]
[{"$f":"_xlfn.TEXTJOIN(\",\",FALSE,output[[#This Row],[scenario]:[process_class]])","v":"PTX-BusinessOpportunityAnalyzer-1.0.9,DEU,Hydrogen (AEL),MAR-TAN,LC,Derivate production"},"PTX-BusinessOpportunityAnalyzer-1.0.9",{"$f":"sel_country_code","v":"DEU"},"Hydrogen (AEL)",{"$f":"_calc!$B$1125","v":"MAR-TAN"},{"$f":"_calc!$BO$1071","v":"LC"},{"$f":"_calc!$BV$1","v":"Derivate production"},{"$f":"_calc!$BV$1125","v":0}]
[{"$f":"_xlfn.TEXTJOIN(\",\",FALSE,output[[#This Row],[scenario]:[process_class]])","v":"PTX-BusinessOpportunityAnalyzer-1.0.9,DEU,Hydrogen (AEL),MEX,LC,Electrolysis"},"PTX-BusinessOpportunityAnalyzer-1.0.9",{"$f":"sel_country_code","v":"DEU"},"Hydrogen (AEL)",{"$f":"_calc!$B$1126","v":"MEX"},{"$f":"_calc!$BO$1071","v":"LC"},{"$f":"_calc!$BQ$1","v":"Electrolysis"},{"$f":"_calc!$BQ$1126","v":58.212563962499196}]
[{"$f":"_xlfn.TEXTJOIN(\",\",FALSE,output[[#This Row],[scenario]:[process_class]])","v":"PTX-BusinessOpportunityAnalyzer-1.0.9,DEU,Hydrogen (AEL),MEX,LC,Electricity generation"},"PTX-BusinessOpportunityAnalyzer-1.0.9",{"$f":"sel_country_code","v":"DEU"},"Hydrogen (AEL)",{"$f":"_calc!$B$1126","v":"MEX"},{"$f":"_calc!$BO$1071","v":"LC"},{"$f":"_calc!$BR$1","v":"Electricity generation"},{"$f":"_calc!$BR$1126","v":2.7690005269550483E-2}]
[{"$f":"_xlfn.TEXTJOIN(\",\",FALSE,output[[#This Row],[scenario]:[process_class]])","v":"PTX-BusinessOpportunityAnalyzer-1.0.9,DEU,Hydrogen (AEL),MEX,LC,Derivate production"},"PTX-BusinessOpportunityAnalyzer-1.0.9",{"$f":"sel_country_code","v":"DEU"},"Hydrogen (AEL)",{"$f":"_calc!$B$1126","v":"MEX"},{"$f":"_calc!$BO$1071","v":"LC"},{"$f":"_calc!$BV$1","v":"Derivate production"},{"$f":"_calc!$BV$1126","v":0}]
[{"$f":"_xlfn.TEXTJOIN(\",\",FALSE,output[[#This Row],[scenario]:[process_class]])","v":"PTX-BusinessOpportunityAnalyzer-1.0.9,DEU,Hydrogen (AEL),MRT,LC,Electrolysis"},"PTX-BusinessOpportunityAnalyzer-1.0.9",{"$f":"sel_country_code","v":"DEU"},"Hydrogen (AEL)",{"$f":"_calc!$B$1127","v":"MRT"},{"$f":"_calc!$BO$1071","v":"LC"},{"$f":"_calc!$BQ$1","v":"Electrolysis"},{"$f":"_calc!$BQ$1127","v":53.37832812680751}]
[{"$f":"_xlfn.TEXTJOIN(\",\",FALSE,output[[#This Row],[scenario]:[process_class]])","v":"PTX-BusinessOpportunityAnalyzer-1.0.9,DEU,Hydrogen (AEL),MRT,LC,Electricity generation"},"PTX-BusinessOpportunityAnalyzer-1.0.9",{"$f":"sel_country_code","v":"DEU"},"Hydrogen (AEL)",{"$f":"_calc!$B$1127","v":"MRT"},{"$f":"_calc!$BO$1071","v":"LC"},{"$f":"_calc!$BR$1","v":"Electricity generation"},{"$f":"_calc!$BR$1127","v":2.7395769880919945E-2}]
[{"$f":"_xlfn.TEXTJOIN(\",\",FALSE,output[[#This Row],[scenario]:[process_class]])","v":"PTX-BusinessOpportunityAnalyzer-1.0.9,DEU,Hydrogen (AEL),MRT,LC,Derivate production"},"PTX-BusinessOpportunityAnalyzer-1.0.9",{"$f":"sel_country_code","v":"DEU"},"Hydrogen (AEL)",{"$f":"_calc!$B$1127","v":"MRT"},{"$f":"_calc!$BO$1071","v":"LC"},{"$f":"_calc!$BV$1","v":"Derivate production"},{"$f":"_calc!$BV$1127","v":0}]
[{"$f":"_xlfn.TEXTJOIN(\",\",FALSE,output[[#This Row],[scenario]:[process_class]])","v":"PTX-BusinessOpportunityAnalyzer-1.0.9,DEU,Hydrogen (AEL),NAM,LC,Electrolysis"},"PTX-BusinessOpportunityAnalyzer-1.0.9",{"$f":"sel_country_code","v":"DEU"},"Hydrogen (AEL)",{"$f":"_calc!$B$1128","v":"NAM"},{"$f":"_calc!$BO$1071","v":"LC"},{"$f":"_calc!$BQ$1","v":"Electrolysis"},{"$f":"_calc!$BQ$1128","v":46.392916775781728}]
[{"$f":"_xlfn.TEXTJOIN(\",\",FALSE,output[[#This Row],[scenario]:[process_class]])","v":"PTX-BusinessOpportunityAnalyzer-1.0.9,DEU,Hydrogen (AEL),NAM,LC,Electricity generation"},"PTX-BusinessOpportunityAnalyzer-1.0.9",{"$f":"sel_country_code","v":"DEU"},"Hydrogen (AEL)",{"$f":"_calc!$B$1128","v":"NAM"},{"$f":"_calc!$BO$1071","v":"LC"},{"$f":"_calc!$BR$1","v":"Electricity generation"},{"$f":"_calc!$BR$1128","v":2.3969521775875642E-2}]
[{"$f":"_xlfn.TEXTJOIN(\",\",FALSE,output[[#This Row],[scenario]:[process_class]])","v":"PTX-BusinessOpportunityAnalyzer-1.0.9,DEU,Hydrogen (AEL),NAM,LC,Derivate production"},"PTX-BusinessOpportunityAnalyzer-1.0.9",{"$f":"sel_country_code","v":"DEU"},"Hydrogen (AEL)",{"$f":"_calc!$B$1128","v":"NAM"},{"$f":"_calc!$BO$1071","v":"LC"},{"$f":"_calc!$BV$1","v":"Derivate production"},{"$f":"_calc!$BV$1128","v":0}]
[{"$f":"_xlfn.TEXTJOIN(\",\",FALSE,output[[#This Row],[scenario]:[process_class]])","v":"PTX-BusinessOpportunityAnalyzer-1.0.9,DEU,Hydrogen (AEL),NOR,LC,Electrolysis"},{"$f":"output_scenario_name","v":"PTX-BusinessOpportunityAnalyzer-1.0.9"},{"$f":"sel_country_code","v":"DEU"},{"$f":"sel_chain","v":"Hydrogen (AEL)"},{"$f":"_calc!$B$1129","v":"NOR"},{"$f":"_calc!$BO$1071","v":"LC"},{"$f":"_calc!$BQ$1","v":"Electrolysis"},{"$f":"_calc!$BQ$1129","v":44.826072827879166}]
[{"$f":"_xlfn.TEXTJOIN(\",\",FALSE,output[[#This Row],[scenario]:[process_class]])","v":"PTX-BusinessOpportunityAnalyzer-1.0.9,DEU,Hydrogen (AEL),NOR,LC,Electricity generation"},"PTX-BusinessOpportunityAnalyzer-1.0.9",{"$f":"sel_country_code","v":"DEU"},"Hydrogen (AEL)",{"$f":"_calc!$B$1129","v":"NOR"},{"$f":"_calc!$BO$1071","v":"LC"},{"$f":"_calc!$BR$1","v":"Electricity generation"},{"$f":"_calc!$BR$1129","v":2.184159098100194E-2}]
[{"$f":"_xlfn.TEXTJOIN(\",\",FALSE,output[[#This Row],[scenario]:[process_class]])","v":"PTX-BusinessOpportunityAnalyzer-1.0.9,DEU,Hydrogen (AEL),NOR,LC,Derivate production"},"PTX-BusinessOpportunityAnalyzer-1.0.9",{"$f":"sel_country_code","v":"DEU"},"Hydrogen (AEL)",{"$f":"_calc!$B$1129","v":"NOR"},{"$f":"_calc!$BO$1071","v":"LC"},{"$f":"_calc!$BV$1","v":"Derivate production"},{"$f":"_calc!$BV$1129","v":0}]
[{"$f":"_xlfn.TEXTJOIN(\",\",FALSE,output[[#This Row],[scenario]:[process_class]])","v":"PTX-BusinessOpportunityAnalyzer-1.0.9,DEU,Hydrogen (AEL),PER,LC,Electrolysis"},"PTX-BusinessOpportunityAnalyzer-1.0.9",{"$f":"sel_country_code","v":"DEU"},"Hydrogen (AEL)",{"$f":"_calc!$B$1130","v":"PER"},{"$f":"_calc!$BO$1071","v":"LC"},{"$f":"_calc!$BQ$1","v":"Electrolysis"},{"$f":"_calc!$BQ$1130","v":78.450025481496823}]
[{"$f":"_xlfn.TEXTJOIN(\",\",FALSE,output[[#This Row],[scenario]:[process_class]])","v":"PTX-BusinessOpportunityAnalyzer-1.0.9,DEU,Hydrogen (AEL),PER,LC,Electricity generation"},"PTX-BusinessOpportunityAnalyzer-1.0.9",{"$f":"sel_country_code","v":"DEU"},"Hydrogen (AEL)",{"$f":"_calc!$B$1130","v":"PER"},{"$f":"_calc!$BO$1071","v":"LC"},{"$f":"_calc!$BR$1","v":"Electricity generation"},{"$f":"_calc!$BR$1130","v":3.6613522074850913E-2}]
[{"$f":"_xlfn.TEXTJOIN(\",\",FALSE,output[[#This Row],[scenario]:[process_class]])","v":"PTX-BusinessOpportunityAnalyzer-1.0.9,DEU,Hydrogen (AEL),PER,LC,Derivate production"},"PTX-BusinessOpportunityAnalyzer-1.0.9",{"$f":"sel_country_code","v":"DEU"},"Hydrogen (AEL)",{"$f":"_calc!$B$1130","v":"PER"},{"$f":"_calc!$BO$1071","v":"LC"},{"$f":"_calc!$BV$1","v":"Derivate production"},{"$f":"_calc!$BV$1130","v":0}]
[{"$f":"_xlfn.TEXTJOIN(\",\",FALSE,output[[#This Row],[scenario]:[process_class]])","v":"PTX-BusinessOpportunityAnalyzer-1.0.9,DEU,Hydrogen (AEL),PRT,LC,Electrolysis"},"PTX-BusinessOpportunityAnalyzer-1.0.9",{"$f":"sel_country_code","v":"DEU"},"Hydrogen (AEL)",{"$f":"_calc!$B$1131","v":"PRT"},{"$f":"_calc!$BO$1071","v":"LC"},{"$f":"_calc!$BQ$1","v":"Electrolysis"},{"$f":"_calc!$BQ$1131","v":49.994391600129916}]
[{"$f":"_xlfn.TEXTJOIN(\",\",FALSE,output[[#This Row],[scenario]:[process_class]])","v":"PTX-BusinessOpportunityAnalyzer-1.0.9,DEU,Hydrogen (AEL),PRT,LC,Electricity generation"},"PTX-BusinessOpportunityAnalyzer-1.0.9",{"$f":"sel_country_code","v":"DEU"},"Hydrogen (AEL)",{"$f":"_calc!$B$1131","v":"PRT"},{"$f":"_calc!$BO$1071","v":"LC"},{"$f":"_calc!$BR$1","v":"Electricity generation"},{"$f":"_calc!$BR$1131","v":2.5394666084247449E-2}]
[{"$f":"_xlfn.TEXTJOIN(\",\",FALSE,output[[#This Row],[scenario]:[process_class]])","v":"PTX-BusinessOpportunityAnalyzer-1.0.9,DEU,Hydrogen (AEL),PRT,LC,Derivate production"},"PTX-BusinessOpportunityAnalyzer-1.0.9",{"$f":"sel_country_code","v":"DEU"},"Hydrogen (AEL)",{"$f":"_calc!$B$1131","v":"PRT"},{"$f":"_calc!$BO$1071","v":"LC"},{"$f":"_calc!$BV$1","v":"Derivate production"},{"$f":"_calc!$BV$1131","v":0}]
[{"$f":"_xlfn.TEXTJOIN(\",\",FALSE,output[[#This Row],[scenario]:[process_class]])","v":"PTX-BusinessOpportunityAnalyzer-1.0.9,DEU,Hydrogen (AEL),RUS,LC,Electrolysis"},"PTX-BusinessOpportunityAnalyzer-1.0.9",{"$f":"sel_country_code","v":"DEU"},"Hydrogen (AEL)",{"$f":"_calc!$B$1132","v":"RUS"},{"$f":"_calc!$BO$1071","v":"LC"},{"$f":"_calc!$BQ$1","v":"Electrolysis"},{"$f":"_calc!$BQ$1132","v":86.41579197443636}]
[{"$f":"_xlfn.TEXTJOIN(\",\",FALSE,output[[#This Row],[scenario]:[process_class]])","v":"PTX-BusinessOpportunityAnalyzer-1.0.9,DEU,Hydrogen (AEL),RUS,LC,Electricity generation"},"PTX-BusinessOpportunityAnalyzer-1.0.9",{"$f":"sel_country_code","v":"DEU"},"Hydrogen (AEL)",{"$f":"_calc!$B$1132","v":"RUS"},{"$f":"_calc!$BO$1071","v":"LC"},{"$f":"_calc!$BR$1","v":"Electricity generation"},{"$f":"_calc!$BR$1132","v":4.6767167917159354E-2}]
[{"$f":"_xlfn.TEXTJOIN(\",\",FALSE,output[[#This Row],[scenario]:[process_class]])","v":"PTX-BusinessOpportunityAnalyzer-1.0.9,DEU,Hydrogen (AEL),RUS,LC,Derivate production"},"PTX-BusinessOpportunityAnalyzer-1.0.9",{"$f":"sel_country_code","v":"DEU"},"Hydrogen (AEL)",{"$f":"_calc!$B$1132","v":"RUS"},{"$f":"_calc!$BO$1071","v":"LC"},{"$f":"_calc!$BV$1","v":"Derivate production"},{"$f":"_calc!$BV$1132","v":0}]
[{"$f":"_xlfn.TEXTJOIN(\",\",FALSE,output[[#This Row],[scenario]:[process_class]])","v":"PTX-BusinessOpportunityAnalyzer-1.0.9,DEU,Hydrogen (AEL),SAU,LC,Electrolysis"},"PTX-BusinessOpportunityAnalyzer-1.0.9",{"$f":"sel_country_code","v":"DEU"},"Hydrogen (AEL)",{"$f":"_calc!$B$1133","v":"SAU"},{"$f":"_calc!$BO$1071","v":"LC"},{"$f":"_calc!$BQ$1","v":"Electrolysis"},{"$f":"_calc!$BQ$1133","v":65.104700500669679}]
[{"$f":"_xlfn.TEXTJOIN(\",\",FALSE,output[[#This Row],[scenario]:[process_class]])","v":"PTX-BusinessOpportunityAnalyzer-1.0.9,DEU,Hydrogen (AEL),SAU,LC,Electricity generation"},"PTX-BusinessOpportunityAnalyzer-1.0.9",{"$f":"sel_country_code","v":"DEU"},"Hydrogen (AEL)",{"$f":"_calc!$B$1133","v":"SAU"},{"$f":"_calc!$BO$1071","v":"LC"},{"$f":"_calc!$BR$1","v":"Electricity generation"},{"$f":"_calc!$BR$1133","v":3.1074838700953279E-2}]
[{"$f":"_xlfn.TEXTJOIN(\",\",FALSE,output[[#This Row],[scenario]:[process_class]])","v":"PTX-BusinessOpportunityAnalyzer-1.0.9,DEU,Hydrogen (AEL),SAU,LC,Derivate production"},"PTX-BusinessOpportunityAnalyzer-1.0.9",{"$f":"sel_country_code","v":"DEU"},"Hydrogen (AEL)",{"$f":"_calc!$B$1133","v":"SAU"},{"$f":"_calc!$BO$1071","v":"LC"},{"$f":"_calc!$BV$1","v":"Derivate production"},{"$f":"_calc!$BV$1133","v":0}]
[{"$f":"_xlfn.TEXTJOIN(\",\",FALSE,output[[#This Row],[scenario]:[process_class]])","v":"PTX-BusinessOpportunityAnalyzer-1.0.9,DEU,Hydrogen (AEL),SWE,LC,Electrolysis"},"PTX-BusinessOpportunityAnalyzer-1.0.9",{"$f":"sel_country_code","v":"DEU"},"Hydrogen (AEL)",{"$f":"_calc!$B$1134","v":"SWE"},{"$f":"_calc!$BO$1071","v":"LC"},{"$f":"_calc!$BQ$1","v":"Electrolysis"},{"$f":"_calc!$BQ$1134","v":60.97452579782064}]
[{"$f":"_xlfn.TEXTJOIN(\",\",FALSE,output[[#This Row],[scenario]:[process_class]])","v":"PTX-BusinessOpportunityAnalyzer-1.0.9,DEU,Hydrogen (AEL),SWE,LC,Electricity generation"},"PTX-BusinessOpportunityAnalyzer-1.0.9",{"$f":"sel_country_code","v":"DEU"},"Hydrogen (AEL)",{"$f":"_calc!$B$1134","v":"SWE"},{"$f":"_calc!$BO$1071","v":"LC"},{"$f":"_calc!$BR$1","v":"Electricity generation"},{"$f":"_calc!$BR$1134","v":2.9885877479878437E-2}]
[{"$f":"_xlfn.TEXTJOIN(\",\",FALSE,output[[#This Row],[scenario]:[process_class]])","v":"PTX-BusinessOpportunityAnalyzer-1.0.9,DEU,Hydrogen (AEL),SWE,LC,Derivate production"},"PTX-BusinessOpportunityAnalyzer-1.0.9",{"$f":"sel_country_code","v":"DEU"},"Hydrogen (AEL)",{"$f":"_calc!$B$1134","v":"SWE"},{"$f":"_calc!$BO$1071","v":"LC"},{"$f":"_calc!$BV$1","v":"Derivate production"},{"$f":"_calc!$BV$1134","v":0}]
[{"$f":"_xlfn.TEXTJOIN(\",\",FALSE,output[[#This Row],[scenario]:[process_class]])","v":"PTX-BusinessOpportunityAnalyzer-1.0.9,DEU,Hydrogen (AEL),THA,LC,Electrolysis"},"PTX-BusinessOpportunityAnalyzer-1.0.9",{"$f":"sel_country_code","v":"DEU"},"Hydrogen (AEL)",{"$f":"_calc!$B$1135","v":"THA"},{"$f":"_calc!$BO$1071","v":"LC"},{"$f":"_calc!$BQ$1","v":"Electrolysis"},{"$f":"_calc!$BQ$1135","v":73.252077866697846}]
[{"$f":"_xlfn.TEXTJOIN(\",\",FALSE,output[[#This Row],[scenario]:[process_class]])","v":"PTX-BusinessOpportunityAnalyzer-1.0.9,DEU,Hydrogen (AEL),THA,LC,Electricity generation"},"PTX-BusinessOpportunityAnalyzer-1.0.9",{"$f":"sel_country_code","v":"DEU"},"Hydrogen (AEL)",{"$f":"_calc!$B$1135","v":"THA"},{"$f":"_calc!$BO$1071","v":"LC"},{"$f":"_calc!$BR$1","v":"Electricity generation"},{"$f":"_calc!$BR$1135","v":3.6060869153646889E-2}]
[{"$f":"_xlfn.TEXTJOIN(\",\",FALSE,output[[#This Row],[scenario]:[process_class]])","v":"PTX-BusinessOpportunityAnalyzer-1.0.9,DEU,Hydrogen (AEL),THA,LC,Derivate production"},"PTX-BusinessOpportunityAnalyzer-1.0.9",{"$f":"sel_country_code","v":"DEU"},"Hydrogen (AEL)",{"$f":"_calc!$B$1135","v":"THA"},{"$f":"_calc!$BO$1071","v":"LC"},{"$f":"_calc!$BV$1","v":"Derivate production"},{"$f":"_calc!$BV$1135","v":0}]
[{"$f":"_xlfn.TEXTJOIN(\",\",FALSE,output[[#This Row],[scenario]:[process_class]])","v":"PTX-BusinessOpportunityAnalyzer-1.0.9,DEU,Hydrogen (AEL),TUN,LC,Electrolysis"},"PTX-BusinessOpportunityAnalyzer-1.0.9",{"$f":"sel_country_code","v":"DEU"},"Hydrogen (AEL)",{"$f":"_calc!$B$1136","v":"TUN"},{"$f":"_calc!$BO$1071","v":"LC"},{"$f":"_calc!$BQ$1","v":"Electrolysis"},{"$f":"_calc!$BQ$1136","v":91.926173285018876}]
[{"$f":"_xlfn.TEXTJOIN(\",\",FALSE,output[[#This Row],[scenario]:[process_class]])","v":"PTX-BusinessOpportunityAnalyzer-1.0.9,DEU,Hydrogen (AEL),TUN,LC,Electricity generation"},"PTX-BusinessOpportunityAnalyzer-1.0.9",{"$f":"sel_country_code","v":"DEU"},"Hydrogen (AEL)",{"$f":"_calc!$B$1136","v":"TUN"},{"$f":"_calc!$BO$1071","v":"LC"},{"$f":"_calc!$BR$1","v":"Electricity generation"},{"$f":"_calc!$BR$1136","v":4.5094299331744719E-2}]
[{"$f":"_xlfn.TEXTJOIN(\",\",FALSE,output[[#This Row],[scenario]:[process_class]])","v":"PTX-BusinessOpportunityAnalyzer-1.0.9,DEU,Hydrogen (AEL),TUN,LC,Derivate production"},"PTX-BusinessOpportunityAnalyzer-1.0.9",{"$f":"sel_country_code","v":"DEU"},"Hydrogen (AEL)",{"$f":"_calc!$B$1136","v":"TUN"},{"$f":"_calc!$BO$1071","v":"LC"},{"$f":"_calc!$BV$1","v":"Derivate production"},{"$f":"_calc!$BV$1136","v":0}]
[{"$f":"_xlfn.TEXTJOIN(\",\",FALSE,output[[#This Row],[scenario]:[process_class]])","v":"PTX-BusinessOpportunityAnalyzer-1.0.9,DEU,Hydrogen (AEL),UKR,LC,Electrolysis"},"PTX-BusinessOpportunityAnalyzer-1.0.9",{"$f":"sel_country_code","v":"DEU"},"Hydrogen (AEL)",{"$f":"_calc!$B$1137","v":"UKR"},{"$f":"_calc!$BO$1071","v":"LC"},{"$f":"_calc!$BQ$1","v":"Electrolysis"},{"$f":"_calc!$BQ$1137","v":70.199989611414438}]
[{"$f":"_xlfn.TEXTJOIN(\",\",FALSE,output[[#This Row],[scenario]:[process_class]])","v":"PTX-BusinessOpportunityAnalyzer-1.0.9,DEU,Hydrogen (AEL),UKR,LC,Electricity generation"},"PTX-BusinessOpportunityAnalyzer-1.0.9",{"$f":"sel_country_code","v":"DEU"},"Hydrogen (AEL)",{"$f":"_calc!$B$1137","v":"UKR"},{"$f":"_calc!$BO$1071","v":"LC"},{"$f":"_calc!$BR$1","v":"Electricity generation"},{"$f":"_calc!$BR$1137","v":3.4241032430633596E-2}]
[{"$f":"_xlfn.TEXTJOIN(\",\",FALSE,output[[#This Row],[scenario]:[process_class]])","v":"PTX-BusinessOpportunityAnalyzer-1.0.9,DEU,Hydrogen (AEL),UKR,LC,Derivate production"},"PTX-BusinessOpportunityAnalyzer-1.0.9",{"$f":"sel_country_code","v":"DEU"},"Hydrogen (AEL)",{"$f":"_calc!$B$1137","v":"UKR"},{"$f":"_calc!$BO$1071","v":"LC"},{"$f":"_calc!$BV$1","v":"Derivate production"},{"$f":"_calc!$BV$1137","v":0}]
[{"$f":"_xlfn.TEXTJOIN(\",\",FALSE,output[[#This Row],[scenario]:[process_class]])","v":"PTX-BusinessOpportunityAnalyzer-1.0.9,DEU,Hydrogen (AEL),URY,LC,Electrolysis"},"PTX-BusinessOpportunityAnalyzer-1.0.9",{"$f":"sel_country_code","v":"DEU"},"Hydrogen (AEL)",{"$f":"_calc!$B$1138","v":"URY"},{"$f":"_calc!$BO$1071","v":"LC"},{"$f":"_calc!$BQ$1","v":"Electrolysis"},{"$f":"_calc!$BQ$1138","v":68.111833537443445}]
[{"$f":"_xlfn.TEXTJOIN(\",\",FALSE,output[[#This Row],[scenario]:[process_class]])","v":"PTX-BusinessOpportunityAnalyzer-1.0.9,DEU,Hydrogen (AEL),URY,LC,Electricity generation"},"PTX-BusinessOpportunityAnalyzer-1.0.9",{"$f":"sel_country_code","v":"DEU"},"Hydrogen (AEL)",{"$f":"_calc!$B$1138","v":"URY"},{"$f":"_calc!$BO$1071","v":"LC"},{"$f":"_calc!$BR$1","v":"Electricity generation"},{"$f":"_calc!$BR$1138","v":3.6975037398672077E-2}]
[{"$f":"_xlfn.TEXTJOIN(\",\",FALSE,output[[#This Row],[scenario]:[process_class]])","v":"PTX-BusinessOpportunityAnalyzer-1.0.9,DEU,Hydrogen (AEL),URY,LC,Derivate production"},"PTX-BusinessOpportunityAnalyzer-1.0.9",{"$f":"sel_country_code","v":"DEU"},"Hydrogen (AEL)",{"$f":"_calc!$B$1138","v":"URY"},{"$f":"_calc!$BO$1071","v":"LC"},{"$f":"_calc!$BV$1","v":"Derivate production"},{"$f":"_calc!$BV$1138","v":0}]
[{"$f":"_xlfn.TEXTJOIN(\",\",FALSE,output[[#This Row],[scenario]:[process_class]])","v":"PTX-BusinessOpportunityAnalyzer-1.0.9,DEU,Hydrogen (AEL),USA,LC,Electrolysis"},"PTX-BusinessOpportunityAnalyzer-1.0.9",{"$f":"sel_country_code","v":"DEU"},"Hydrogen (AEL)",{"$f":"_calc!$B$1139","v":"USA"},{"$f":"_calc!$BO$1071","v":"LC"},{"$f":"_calc!$BQ$1","v":"Electrolysis"},{"$f":"_calc!$BQ$1139","v":44.409328098453983}]
[{"$f":"_xlfn.TEXTJOIN(\",\",FALSE,output[[#This Row],[scenario]:[process_class]])","v":"PTX-BusinessOpportunityAnalyzer-1.0.9,DEU,Hydrogen (AEL),USA,LC,Electricity generation"},"PTX-BusinessOpportunityAnalyzer-1.0.9",{"$f":"sel_country_code","v":"DEU"},"Hydrogen (AEL)",{"$f":"_calc!$B$1139","v":"USA"},{"$f":"_calc!$BO$1071","v":"LC"},{"$f":"_calc!$BR$1","v":"Electricity generation"},{"$f":"_calc!$BR$1139","v":2.2242538090163484E-2}]
[{"$f":"_xlfn.TEXTJOIN(\",\",FALSE,output[[#This Row],[scenario]:[process_class]])","v":"PTX-BusinessOpportunityAnalyzer-1.0.9,DEU,Hydrogen (AEL),USA,LC,Derivate production"},"PTX-BusinessOpportunityAnalyzer-1.0.9",{"$f":"sel_country_code","v":"DEU"},"Hydrogen (AEL)",{"$f":"_calc!$B$1139","v":"USA"},{"$f":"_calc!$BO$1071","v":"LC"},{"$f":"_calc!$BV$1","v":"Derivate production"},{"$f":"_calc!$BV$1139","v":0}]
[{"$f":"_xlfn.TEXTJOIN(\",\",FALSE,output[[#This Row],[scenario]:[process_class]])","v":"PTX-BusinessOpportunityAnalyzer-1.0.9,DEU,Hydrogen (AEL),VNM,LC,Electrolysis"},"PTX-BusinessOpportunityAnalyzer-1.0.9",{"$f":"sel_country_code","v":"DEU"},"Hydrogen (AEL)",{"$f":"_calc!$B$1140","v":"VNM"},{"$f":"_calc!$BO$1071","v":"LC"},{"$f":"_calc!$BQ$1","v":"Electrolysis"},{"$f":"_calc!$BQ$1140","v":78.082758033852386}]
[{"$f":"_xlfn.TEXTJOIN(\",\",FALSE,output[[#This Row],[scenario]:[process_class]])","v":"PTX-BusinessOpportunityAnalyzer-1.0.9,DEU,Hydrogen (AEL),VNM,LC,Electricity generation"},"PTX-BusinessOpportunityAnalyzer-1.0.9",{"$f":"sel_country_code","v":"DEU"},"Hydrogen (AEL)",{"$f":"_calc!$B$1140","v":"VNM"},{"$f":"_calc!$BO$1071","v":"LC"},{"$f":"_calc!$BR$1","v":"Electricity generation"},{"$f":"_calc!$BR$1140","v":4.1503018976586876E-2}]
[{"$f":"_xlfn.TEXTJOIN(\",\",FALSE,output[[#This Row],[scenario]:[process_class]])","v":"PTX-BusinessOpportunityAnalyzer-1.0.9,DEU,Hydrogen (AEL),VNM,LC,Derivate production"},"PTX-BusinessOpportunityAnalyzer-1.0.9",{"$f":"sel_country_code","v":"DEU"},"Hydrogen (AEL)",{"$f":"_calc!$B$1140","v":"VNM"},{"$f":"_calc!$BO$1071","v":"LC"},{"$f":"_calc!$BV$1","v":"Derivate production"},{"$f":"_calc!$BV$1140","v":0}]
[{"$f":"_xlfn.TEXTJOIN(\",\",FALSE,output[[#This Row],[scenario]:[process_class]])","v":"PTX-BusinessOpportunityAnalyzer-1.0.9,DEU,Hydrogen (AEL),ZAF,LC,Electrolysis"},"PTX-BusinessOpportunityAnalyzer-1.0.9",{"$f":"sel_country_code","v":"DEU"},"Hydrogen (AEL)",{"$f":"_calc!$B$1141","v":"ZAF"},{"$f":"_calc!$BO$1071","v":"LC"},{"$f":"_calc!$BQ$1","v":"Electrolysis"},{"$f":"_calc!$BQ$1141","v":70.775106253843902}]
[{"$f":"_xlfn.TEXTJOIN(\",\",FALSE,output[[#This Row],[scenario]:[process_class]])","v":"PTX-BusinessOpportunityAnalyzer-1.0.9,DEU,Hydrogen (AEL),ZAF,LC,Electricity generation"},"PTX-BusinessOpportunityAnalyzer-1.0.9",{"$f":"sel_country_code","v":"DEU"},"Hydrogen (AEL)",{"$f":"_calc!$B$1141","v":"ZAF"},{"$f":"_calc!$BO$1071","v":"LC"},{"$f":"_calc!$BR$1","v":"Electricity generation"},{"$f":"_calc!$BR$1141","v":3.3767416125220509E-2}]
[{"$f":"_xlfn.TEXTJOIN(\",\",FALSE,output[[#This Row],[scenario]:[process_class]])","v":"PTX-BusinessOpportunityAnalyzer-1.0.9,DEU,Hydrogen (AEL),ZAF,LC,Derivate production"},"PTX-BusinessOpportunityAnalyzer-1.0.9",{"$f":"sel_country_code","v":"DEU"},"Hydrogen (AEL)",{"$f":"_calc!$B$1141","v":"ZAF"},{"$f":"_calc!$BO$1071","v":"LC"},{"$f":"_calc!$BV$1","v":"Derivate production"},{"$f":"_calc!$BV$1141","v":0}]
[{"$f":"_xlfn.TEXTJOIN(\",\",FALSE,output[[#This Row],[scenario]:[process_class]])","v":"PTX-BusinessOpportunityAnalyzer-1.0.9,DEU,Hydrogen (AEL),ZAF-EC,LC,Electrolysis"},"PTX-BusinessOpportunityAnalyzer-1.0.9",{"$f":"sel_country_code","v":"DEU"},"Hydrogen (AEL)",{"$f":"_calc!$B$1142","v":"ZAF-EC"},{"$f":"_calc!$BO$1071","v":"LC"},{"$f":"_calc!$BQ$1","v":"Electrolysis"},{"$f":"_calc!$BQ$1142","v":55.233013745226536}]
[{"$f":"_xlfn.TEXTJOIN(\",\",FALSE,output[[#This Row],[scenario]:[process_class]])","v":"PTX-BusinessOpportunityAnalyzer-1.0.9,DEU,Hydrogen (AEL),ZAF-EC,LC,Electricity generation"},"PTX-BusinessOpportunityAnalyzer-1.0.9",{"$f":"sel_country_code","v":"DEU"},"Hydrogen (AEL)",{"$f":"_calc!$B$1142","v":"ZAF-EC"},{"$f":"_calc!$BO$1071","v":"LC"},{"$f":"_calc!$BR$1","v":"Electricity generation"},{"$f":"_calc!$BR$1142","v":2.7980927734812051E-2}]
[{"$f":"_xlfn.TEXTJOIN(\",\",FALSE,output[[#This Row],[scenario]:[process_class]])","v":"PTX-BusinessOpportunityAnalyzer-1.0.9,DEU,Hydrogen (AEL),ZAF-EC,LC,Derivate production"},"PTX-BusinessOpportunityAnalyzer-1.0.9",{"$f":"sel_country_code","v":"DEU"},"Hydrogen (AEL)",{"$f":"_calc!$B$1142","v":"ZAF-EC"},{"$f":"_calc!$BO$1071","v":"LC"},{"$f":"_calc!$BV$1","v":"Derivate production"},{"$f":"_calc!$BV$1142","v":0}]
[{"$f":"_xlfn.TEXTJOIN(\",\",FALSE,output[[#This Row],[scenario]:[process_class]])","v":"PTX-BusinessOpportunityAnalyzer-1.0.9,DEU,Hydrogen (AEL),ZAF-FRS,LC,Electrolysis"},"PTX-BusinessOpportunityAnalyzer-1.0.9",{"$f":"sel_country_code","v":"DEU"},"Hydrogen (AEL)",{"$f":"_calc!$B$1143","v":"ZAF-FRS"},{"$f":"_calc!$BO$1071","v":"LC"},{"$f":"_calc!$BQ$1","v":"Electrolysis"},{"$f":"_calc!$BQ$1143","v":66.366769131728617}]
[{"$f":"_xlfn.TEXTJOIN(\",\",FALSE,output[[#This Row],[scenario]:[process_class]])","v":"PTX-BusinessOpportunityAnalyzer-1.0.9,DEU,Hydrogen (AEL),ZAF-FRS,LC,Electricity generation"},"PTX-BusinessOpportunityAnalyzer-1.0.9",{"$f":"sel_country_code","v":"DEU"},"Hydrogen (AEL)",{"$f":"_calc!$B$1143","v":"ZAF-FRS"},{"$f":"_calc!$BO$1071","v":"LC"},{"$f":"_calc!$BR$1","v":"Electricity generation"},{"$f":"_calc!$BR$1143","v":3.343817689625414E-2}]
[{"$f":"_xlfn.TEXTJOIN(\",\",FALSE,output[[#This Row],[scenario]:[process_class]])","v":"PTX-BusinessOpportunityAnalyzer-1.0.9,DEU,Hydrogen (AEL),ZAF-FRS,LC,Derivate production"},"PTX-BusinessOpportunityAnalyzer-1.0.9",{"$f":"sel_country_code","v":"DEU"},"Hydrogen (AEL)",{"$f":"_calc!$B$1143","v":"ZAF-FRS"},{"$f":"_calc!$BO$1071","v":"LC"},{"$f":"_calc!$BV$1","v":"Derivate production"},{"$f":"_calc!$BV$1143","v":0}]
[{"$f":"_xlfn.TEXTJOIN(\",\",FALSE,output[[#This Row],[scenario]:[process_class]])","v":"PTX-BusinessOpportunityAnalyzer-1.0.9,DEU,Hydrogen (AEL),ZAF-GAU,LC,Electrolysis"},"PTX-BusinessOpportunityAnalyzer-1.0.9",{"$f":"sel_country_code","v":"DEU"},"Hydrogen (AEL)",{"$f":"_calc!$B$1144","v":"ZAF-GAU"},{"$f":"_calc!$BO$1071","v":"LC"},{"$f":"_calc!$BQ$1","v":"Electrolysis"},{"$f":"_calc!$BQ$1144","v":78.673921857972317}]
[{"$f":"_xlfn.TEXTJOIN(\",\",FALSE,output[[#This Row],[scenario]:[process_class]])","v":"PTX-BusinessOpportunityAnalyzer-1.0.9,DEU,Hydrogen (AEL),ZAF-GAU,LC,Electricity generation"},"PTX-BusinessOpportunityAnalyzer-1.0.9",{"$f":"sel_country_code","v":"DEU"},"Hydrogen (AEL)",{"$f":"_calc!$B$1144","v":"ZAF-GAU"},{"$f":"_calc!$BO$1071","v":"LC"},{"$f":"_calc!$BR$1","v":"Electricity generation"},{"$f":"_calc!$BR$1144","v":3.9386881150594868E-2}]
[{"$f":"_xlfn.TEXTJOIN(\",\",FALSE,output[[#This Row],[scenario]:[process_class]])","v":"PTX-BusinessOpportunityAnalyzer-1.0.9,DEU,Hydrogen (AEL),ZAF-GAU,LC,Derivate production"},"PTX-BusinessOpportunityAnalyzer-1.0.9",{"$f":"sel_country_code","v":"DEU"},"Hydrogen (AEL)",{"$f":"_calc!$B$1144","v":"ZAF-GAU"},{"$f":"_calc!$BO$1071","v":"LC"},{"$f":"_calc!$BV$1","v":"Derivate production"},{"$f":"_calc!$BV$1144","v":0}]
[{"$f":"_xlfn.TEXTJOIN(\",\",FALSE,output[[#This Row],[scenario]:[process_class]])","v":"PTX-BusinessOpportunityAnalyzer-1.0.9,DEU,Hydrogen (AEL),ZAF-KWA,LC,Electrolysis"},"PTX-BusinessOpportunityAnalyzer-1.0.9",{"$f":"sel_country_code","v":"DEU"},"Hydrogen (AEL)",{"$f":"_calc!$B$1145","v":"ZAF-KWA"},{"$f":"_calc!$BO$1071","v":"LC"},{"$f":"_calc!$BQ$1","v":"Electrolysis"},{"$f":"_calc!$BQ$1145","v":68.89961636714186}]
[{"$f":"_xlfn.TEXTJOIN(\",\",FALSE,output[[#This Row],[scenario]:[process_class]])","v":"PTX-BusinessOpportunityAnalyzer-1.0.9,DEU,Hydrogen (AEL),ZAF-KWA,LC,Electricity generation"},"PTX-BusinessOpportunityAnalyzer-1.0.9",{"$f":"sel_country_code","v":"DEU"},"Hydrogen (AEL)",{"$f":"_calc!$B$1145","v":"ZAF-KWA"},{"$f":"_calc!$BO$1071","v":"LC"},{"$f":"_calc!$BR$1","v":"Electricity generation"},{"$f":"_calc!$BR$1145","v":3.4669700897128279E-2}]
[{"$f":"_xlfn.TEXTJOIN(\",\",FALSE,output[[#This Row],[scenario]:[process_class]])","v":"PTX-BusinessOpportunityAnalyzer-1.0.9,DEU,Hydrogen (AEL),ZAF-KWA,LC,Derivate production"},"PTX-BusinessOpportunityAnalyzer-1.0.9",{"$f":"sel_country_code","v":"DEU"},"Hydrogen (AEL)",{"$f":"_calc!$B$1145","v":"ZAF-KWA"},{"$f":"_calc!$BO$1071","v":"LC"},{"$f":"_calc!$BV$1","v":"Derivate production"},{"$f":"_calc!$BV$1145","v":0}]
[{"$f":"_xlfn.TEXTJOIN(\",\",FALSE,output[[#This Row],[scenario]:[process_class]])","v":"PTX-BusinessOpportunityAnalyzer-1.0.9,DEU,Hydrogen (AEL),ZAF-LIM,LC,Electrolysis"},"PTX-BusinessOpportunityAnalyzer-1.0.9",{"$f":"sel_country_code","v":"DEU"},"Hydrogen (AEL)",{"$f":"_calc!$B$1146","v":"ZAF-LIM"},{"$f":"_calc!$BO$1071","v":"LC"},{"$f":"_calc!$BQ$1","v":"Electrolysis"},{"$f":"_calc!$BQ$1146","v":69.491029927665977}]
[{"$f":"_xlfn.TEXTJOIN(\",\",FALSE,output[[#This Row],[scenario]:[process_class]])","v":"PTX-BusinessOpportunityAnalyzer-1.0.9,DEU,Hydrogen (AEL),ZAF-LIM,LC,Electricity generation"},"PTX-BusinessOpportunityAnalyzer-1.0.9",{"$f":"sel_country_code","v":"DEU"},"Hydrogen (AEL)",{"$f":"_calc!$B$1146","v":"ZAF-LIM"},{"$f":"_calc!$BO$1071","v":"LC"},{"$f":"_calc!$BR$1","v":"Electricity generation"},{"$f":"_calc!$BR$1146","v":3.4956720671110136E-2}]
[{"$f":"_xlfn.TEXTJOIN(\",\",FALSE,output[[#This Row],[scenario]:[process_class]])","v":"PTX-BusinessOpportunityAnalyzer-1.0.9,DEU,Hydrogen (AEL),ZAF-LIM,LC,Derivate production"},"PTX-BusinessOpportunityAnalyzer-1.0.9",{"$f":"sel_country_code","v":"DEU"},"Hydrogen (AEL)",{"$f":"_calc!$B$1146","v":"ZAF-LIM"},{"$f":"_calc!$BO$1071","v":"LC"},{"$f":"_calc!$BV$1","v":"Derivate production"},{"$f":"_calc!$BV$1146","v":0}]
[{"$f":"_xlfn.TEXTJOIN(\",\",FALSE,output[[#This Row],[scenario]:[process_class]])","v":"PTX-BusinessOpportunityAnalyzer-1.0.9,DEU,Hydrogen (AEL),ZAF-MPU,LC,Electrolysis"},"PTX-BusinessOpportunityAnalyzer-1.0.9",{"$f":"sel_country_code","v":"DEU"},"Hydrogen (AEL)",{"$f":"_calc!$B$1147","v":"ZAF-MPU"},{"$f":"_calc!$BO$1071","v":"LC"},{"$f":"_calc!$BQ$1","v":"Electrolysis"},{"$f":"_calc!$BQ$1147","v":69.491029927665977}]
[{"$f":"_xlfn.TEXTJOIN(\",\",FALSE,output[[#This Row],[scenario]:[process_class]])","v":"PTX-BusinessOpportunityAnalyzer-1.0.9,DEU,Hydrogen (AEL),ZAF-MPU,LC,Electricity generation"},"PTX-BusinessOpportunityAnalyzer-1.0.9",{"$f":"sel_country_code","v":"DEU"},"Hydrogen (AEL)",{"$f":"_calc!$B$1147","v":"ZAF-MPU"},{"$f":"_calc!$BO$1071","v":"LC"},{"$f":"_calc!$BR$1","v":"Electricity generation"},{"$f":"_calc!$BR$1147","v":3.4956720671110136E-2}]
[{"$f":"_xlfn.TEXTJOIN(\",\",FALSE,output[[#This Row],[scenario]:[process_class]])","v":"PTX-BusinessOpportunityAnalyzer-1.0.9,DEU,Hydrogen (AEL),ZAF-MPU,LC,Derivate production"},"PTX-BusinessOpportunityAnalyzer-1.0.9",{"$f":"sel_country_code","v":"DEU"},"Hydrogen (AEL)",{"$f":"_calc!$B$1147","v":"ZAF-MPU"},{"$f":"_calc!$BO$1071","v":"LC"},{"$f":"_calc!$BV$1","v":"Derivate production"},{"$f":"_calc!$BV$1147","v":0}]
[{"$f":"_xlfn.TEXTJOIN(\",\",FALSE,output[[#This Row],[scenario]:[process_class]])","v":"PTX-BusinessOpportunityAnalyzer-1.0.9,DEU,Hydrogen (AEL),ZAF-NC,LC,Electrolysis"},"PTX-BusinessOpportunityAnalyzer-1.0.9",{"$f":"sel_country_code","v":"DEU"},"Hydrogen (AEL)",{"$f":"_calc!$B$1148","v":"ZAF-NC"},{"$f":"_calc!$BO$1071","v":"LC"},{"$f":"_calc!$BQ$1","v":"Electrolysis"},{"$f":"_calc!$BQ$1148","v":55.646287398821727}]
[{"$f":"_xlfn.TEXTJOIN(\",\",FALSE,output[[#This Row],[scenario]:[process_class]])","v":"PTX-BusinessOpportunityAnalyzer-1.0.9,DEU,Hydrogen (AEL),ZAF-NC,LC,Electricity generation"},"PTX-BusinessOpportunityAnalyzer-1.0.9",{"$f":"sel_country_code","v":"DEU"},"Hydrogen (AEL)",{"$f":"_calc!$B$1148","v":"ZAF-NC"},{"$f":"_calc!$BO$1071","v":"LC"},{"$f":"_calc!$BR$1","v":"Electricity generation"},{"$f":"_calc!$BR$1148","v":2.8184755796970679E-2}]
[{"$f":"_xlfn.TEXTJOIN(\",\",FALSE,output[[#This Row],[scenario]:[process_class]])","v":"PTX-BusinessOpportunityAnalyzer-1.0.9,DEU,Hydrogen (AEL),ZAF-NC,LC,Derivate production"},"PTX-BusinessOpportunityAnalyzer-1.0.9",{"$f":"sel_country_code","v":"DEU"},"Hydrogen (AEL)",{"$f":"_calc!$B$1148","v":"ZAF-NC"},{"$f":"_calc!$BO$1071","v":"LC"},{"$f":"_calc!$BV$1","v":"Derivate production"},{"$f":"_calc!$BV$1148","v":0}]
[{"$f":"_xlfn.TEXTJOIN(\",\",FALSE,output[[#This Row],[scenario]:[process_class]])","v":"PTX-BusinessOpportunityAnalyzer-1.0.9,DEU,Hydrogen (AEL),ZAF-NW,LC,Electrolysis"},"PTX-BusinessOpportunityAnalyzer-1.0.9",{"$f":"sel_country_code","v":"DEU"},"Hydrogen (AEL)",{"$f":"_calc!$B$1149","v":"ZAF-NW"},{"$f":"_calc!$BO$1071","v":"LC"},{"$f":"_calc!$BQ$1","v":"Electrolysis"},{"$f":"_calc!$BQ$1149","v":65.818635442809935}]
[{"$f":"_xlfn.TEXTJOIN(\",\",FALSE,output[[#This Row],[scenario]:[process_class]])","v":"PTX-BusinessOpportunityAnalyzer-1.0.9,DEU,Hydrogen (AEL),ZAF-NW,LC,Electricity generation"},"PTX-BusinessOpportunityAnalyzer-1.0.9",{"$f":"sel_country_code","v":"DEU"},"Hydrogen (AEL)",{"$f":"_calc!$B$1149","v":"ZAF-NW"},{"$f":"_calc!$BO$1071","v":"LC"},{"$f":"_calc!$BR$1","v":"Electricity generation"},{"$f":"_calc!$BR$1149","v":3.3171172429768941E-2}]
[{"$f":"_xlfn.TEXTJOIN(\",\",FALSE,output[[#This Row],[scenario]:[process_class]])","v":"PTX-BusinessOpportunityAnalyzer-1.0.9,DEU,Hydrogen (AEL),ZAF-NW,LC,Derivate production"},"PTX-BusinessOpportunityAnalyzer-1.0.9",{"$f":"sel_country_code","v":"DEU"},"Hydrogen (AEL)",{"$f":"_calc!$B$1149","v":"ZAF-NW"},{"$f":"_calc!$BO$1071","v":"LC"},{"$f":"_calc!$BV$1","v":"Derivate production"},{"$f":"_calc!$BV$1149","v":0}]
[{"$f":"_xlfn.TEXTJOIN(\",\",FALSE,output[[#This Row],[scenario]:[process_class]])","v":"PTX-BusinessOpportunityAnalyzer-1.0.9,DEU,Hydrogen (AEL),ZAF-WC,LC,Electrolysis"},"PTX-BusinessOpportunityAnalyzer-1.0.9",{"$f":"sel_country_code","v":"DEU"},"Hydrogen (AEL)",{"$f":"_calc!$B$1150","v":"ZAF-WC"},{"$f":"_calc!$BO$1071","v":"LC"},{"$f":"_calc!$BQ$1","v":"Electrolysis"},{"$f":"_calc!$BQ$1150","v":61.67142412704807}]
[{"$f":"_xlfn.TEXTJOIN(\",\",FALSE,output[[#This Row],[scenario]:[process_class]])","v":"PTX-BusinessOpportunityAnalyzer-1.0.9,DEU,Hydrogen (AEL),ZAF-WC,LC,Electricity generation"},"PTX-BusinessOpportunityAnalyzer-1.0.9",{"$f":"sel_country_code","v":"DEU"},"Hydrogen (AEL)",{"$f":"_calc!$B$1150","v":"ZAF-WC"},{"$f":"_calc!$BO$1071","v":"LC"},{"$f":"_calc!$BR$1","v":"Electricity generation"},{"$f":"_calc!$BR$1150","v":3.1145382379306068E-2}]
[{"$f":"_xlfn.TEXTJOIN(\",\",FALSE,output[[#This Row],[scenario]:[process_class]])","v":"PTX-BusinessOpportunityAnalyzer-1.0.9,DEU,Hydrogen (AEL),ZAF-WC,LC,Derivate production"},"PTX-BusinessOpportunityAnalyzer-1.0.9",{"$f":"sel_country_code","v":"DEU"},"Hydrogen (AEL)",{"$f":"_calc!$B$1150","v":"ZAF-WC"},{"$f":"_calc!$BO$1071","v":"LC"},{"$f":"_calc!$BV$1","v":"Derivate production"},{"$f":"_calc!$BV$1150","v":0}]

{"sheet":"m_CompareScenarios","index":15,"n_rows":30,"n_cols":8,"rows_kept":30,"cut":false,"hidden":true,"merged":[[1,6,1,7],[2,6,2,7],[17,2,17,7],[4,1,5,5]]}
[]
[null,"COMPARE MULTIPLE DATA SCENARIOS",null,null,null,null,"YOUR SETTINGS"]
[null,null,null,null,null,null,"can be re-adjusted on the dashboard"]
[null,"Analyse how total delivered costs are affected by choosing different data years and cost reduction pathways",null,null,null,null,"Supply country:",{"$f":"sel_region_name","v":"Morocco"}]
[null,"This sheet allows you to compare the total costs of delivering your chosen product to the selected demand country in six different scenarios.\nTo cover uncertainty and developments over time, we cover two data years with three cost reduction pathways each.",null,null,null,null,"Demand country:",{"$f":"sel_country_name","v":"Germany"}]
[null,null,null,null,null,null,"RE generation:",{"$f":"sel_res_gen_name","v":"Wind-PV-Hybrid"}]
[null,"2030 or 2040 (low)","Scenarios with high costs reduction mainly for transformation technologies to produce derivatives",null,null,null,"Process chain:",{"$f":"sel_chain","v":"Hydrogen (AEL)"}]
[null,"2030 or 2040 (medium)","Scenarios with medium costs reduction mainly for transformation technologies to produce derivatives",null,null,null,"CO2 source:",{"$f":"sel_secproc_co2","v":"DAC"}]
[null,"2030 or 2040 (high)","Scenarios with low costs reduction mainly for transformation technologies to produce derivatives",null,null,null,"Water source:",{"$f":"sel_secproc_water","v":"Water desalination"}]
[null,null,null,null,null,null,"Transport mode:",{"$f":"sel_transport","v":"Ship"}]
[null,null,null,null,null,null,"Scenario:","[various]"]
[]
[null,{"$f":"\"Total costs of delivered \"&sel_chain&\" from \"&sel_region_name&\" to \"&sel_country_name","v":"Total costs of delivered Hydrogen (AEL) from Morocco to Germany"}]
[]
[]
[]
[]
[null,null,"Data year (and cost reduction pathway)"]
[null,null,"2030 (high)","2030 (medium)","2030 (low)","2040 (high)","2040 (medium)","2040 (low)"]
[null,"Electricity generation",{"$f":"SUMIFS(outputs[value],outputs[process_class],$B20,outputs[scenario],C$19,outputs[source],sel_region_code,outputs[variable],\"<>LC\")","v":0},{"$f":"SUMIFS(outputs[value],outputs[process_class],$B20,outputs[scenario],D$19,outputs[source],sel_region_code,outputs[variable],\"<>LC\")","v":0},{"$f":"SUMIFS(outputs[value],outputs[process_class],$B20,outputs[scenario],E$19,outputs[source],sel_region_code,outputs[variable],\"<>LC\")","v":0},{"$f":"SUMIFS(outputs[value],outputs[process_class],$B20,outputs[scenario],F$19,outputs[source],sel_region_code,outputs[variable],\"<>LC\")","v":0},{"$f":"SUMIFS(outputs[value],outputs[process_class],$B20,outputs[scenario],G$19,outputs[source],sel_region_code,outputs[variable],\"<>LC\")","v":0},{"$f":"SUMIFS(outputs[value],outputs[process_class],$B20,outputs[scenario],H$19,outputs[source],sel_region_code,outputs[variable],\"<>LC\")","v":0}]
[null,"Electrolysis",{"$f":"SUMIFS(outputs[value],outputs[process_class],$B21,outputs[scenario],C$19,outputs[source],sel_region_code,outputs[variable],\"<>LC\")","v":0},{"$f":"SUMIFS(outputs[value],outputs[process_class],$B21,outputs[scenario],D$19,outputs[source],sel_region_code,outputs[variable],\"<>LC\")","v":0},{"$f":"SUMIFS(outputs[value],outputs[process_class],$B21,outputs[scenario],E$19,outputs[source],sel_region_code,outputs[variable],\"<>LC\")","v":0},{"$f":"SUMIFS(outputs[value],outputs[process_class],$B21,outputs[scenario],F$19,outputs[source],sel_region_code,outputs[variable],\"<>LC\")","v":0},{"$f":"SUMIFS(outputs[value],outputs[process_class],$B21,outputs[scenario],G$19,outputs[source],sel_region_code,outputs[variable],\"<>LC\")","v":0},{"$f":"SUMIFS(outputs[value],outputs[process_class],$B21,outputs[scenario],H$19,outputs[source],sel_region_code,outputs[variable],\"<>LC\")","v":0}]
[null,"Derivate production",{"$f":"SUMIFS(outputs[value],outputs[process_class],$B22,outputs[scenario],C$19,outputs[source],sel_region_code,outputs[variable],\"<>LC\")","v":0},{"$f":"SUMIFS(outputs[value],outputs[process_class],$B22,outputs[scenario],D$19,outputs[source],sel_region_code,outputs[variable],\"<>LC\")","v":0},{"$f":"SUMIFS(outputs[value],outputs[process_class],$B22,outputs[scenario],E$19,outputs[source],sel_region_code,outputs[variable],\"<>LC\")","v":0},{"$f":"SUMIFS(outputs[value],outputs[process_class],$B22,outputs[scenario],F$19,outputs[source],sel_region_code,outputs[variable],\"<>LC\")","v":0},{"$f":"SUMIFS(outputs[value],outputs[process_class],$B22,outputs[scenario],G$19,outputs[source],sel_region_code,outputs[variable],\"<>LC\")","v":0},{"$f":"SUMIFS(outputs[value],outputs[process_class],$B22,outputs[scenario],H$19,outputs[source],sel_region_code,outputs[variable],\"<>LC\")","v":0}]
[null,"Carbon",{"$f":"SUMIFS(outputs[value],outputs[process_class],$B23,outputs[scenario],C$19,outputs[source],sel_region_code,outputs[variable],\"<>LC\")","v":0},{"$f":"SUMIFS(outputs[value],outputs[process_class],$B23,outputs[scenario],D$19,outputs[source],sel_region_code,outputs[variable],\"<>LC\")","v":0},{"$f":"SUMIFS(outputs[value],outputs[process_class],$B23,outputs[scenario],E$19,outputs[source],sel_region_code,outputs[variable],\"<>LC\")","v":0},{"$f":"SUMIFS(outputs[value],outputs[process_class],$B23,outputs[scenario],F$19,outputs[source],sel_region_code,outputs[variable],\"<>LC\")","v":0},{"$f":"SUMIFS(outputs[value],outputs[process_class],$B23,outputs[scenario],G$19,outputs[source],sel_region_code,outputs[variable],\"<>LC\")","v":0},{"$f":"SUMIFS(outputs[value],outputs[process_class],$B23,outputs[scenario],H$19,outputs[source],sel_region_code,outputs[variable],\"<>LC\")","v":0}]
[null,"Water",{"$f":"SUMIFS(outputs[value],outputs[process_class],$B24,outputs[scenario],C$19,outputs[source],sel_region_code,outputs[variable],\"<>LC\")","v":0},{"$f":"SUMIFS(outputs[value],outputs[process_class],$B24,outputs[scenario],D$19,outputs[source],sel_region_code,outputs[variable],\"<>LC\")","v":0},{"$f":"SUMIFS(outputs[value],outputs[process_class],$B24,outputs[scenario],E$19,outputs[source],sel_region_code,outputs[variable],\"<>LC\")","v":0},{"$f":"SUMIFS(outputs[value],outputs[process_class],$B24,outputs[scenario],F$19,outputs[source],sel_region_code,outputs[variable],\"<>LC\")","v":0},{"$f":"SUMIFS(outputs[value],outputs[process_class],$B24,outputs[scenario],G$19,outputs[source],sel_region_code,outputs[variable],\"<>LC\")","v":0},{"$f":"SUMIFS(outputs[value],outputs[process_class],$B24,outputs[scenario],H$19,outputs[source],sel_region_code,outputs[variable],\"<>LC\")","v":0}]
[null,"Heat",{"$f":"SUMIFS(outputs[value],outputs[process_class],$B25,outputs[scenario],C$19,outputs[source],sel_region_code,outputs[variable],\"<>LC\")","v":0},{"$f":"SUMIFS(outputs[value],outputs[process_class],$B25,outputs[scenario],D$19,outputs[source],sel_region_code,outputs[variable],\"<>LC\")","v":0},{"$f":"SUMIFS(outputs[value],outputs[process_class],$B25,outputs[scenario],E$19,outputs[source],sel_region_code,outputs[variable],\"<>LC\")","v":0},{"$f":"SUMIFS(outputs[value],outputs[process_class],$B25,outputs[scenario],F$19,outputs[source],sel_region_code,outputs[variable],\"<>LC\")","v":0},{"$f":"SUMIFS(outputs[value],outputs[process_class],$B25,outputs[scenario],G$19,outputs[source],sel_region_code,outputs[variable],\"<>LC\")","v":0},{"$f":"SUMIFS(outputs[value],outputs[process_class],$B25,outputs[scenario],H$19,outputs[source],sel_region_code,outputs[variable],\"<>LC\")","v":0}]
[null,"Electricity and H2 storage",{"$f":"SUMIFS(outputs[value],outputs[process_class],$B26,outputs[scenario],C$19,outputs[source],sel_region_code,outputs[variable],\"<>LC\")","v":0},{"$f":"SUMIFS(outputs[value],outputs[process_class],$B26,outputs[scenario],D$19,outputs[source],sel_region_code,outputs[variable],\"<>LC\")","v":0},{"$f":"SUMIFS(outputs[value],outputs[process_class],$B26,outputs[scenario],E$19,outputs[source],sel_region_code,outputs[variable],\"<>LC\")","v":0},{"$f":"SUMIFS(outputs[value],outputs[process_class],$B26,outputs[scenario],F$19,outputs[source],sel_region_code,outputs[variable],\"<>LC\")","v":0},{"$f":"SUMIFS(outputs[value],outputs[process_class],$B26,outputs[scenario],G$19,outputs[source],sel_region_code,outputs[variable],\"<>LC\")","v":0},{"$f":"SUMIFS(outputs[value],outputs[process_class],$B26,outputs[scenario],H$19,outputs[source],sel_region_code,outputs[variable],\"<>LC\")","v":0}]
[null,"Transportation (Ship)",{"$f":"SUMIFS(outputs[value],outputs[process_class],$B27,outputs[scenario],C$19,outputs[source],sel_region_code,outputs[variable],\"<>LC\")","v":0},{"$f":"SUMIFS(outputs[value],outputs[process_class],$B27,outputs[scenario],D$19,outputs[source],sel_region_code,outputs[variable],\"<>LC\")","v":0},{"$f":"SUMIFS(outputs[value],outputs[process_class],$B27,outputs[scenario],E$19,outputs[source],sel_region_code,outputs[variable],\"<>LC\")","v":0},{"$f":"SUMIFS(outputs[value],outputs[process_class],$B27,outputs[scenario],F$19,outputs[source],sel_region_code,outputs[variable],\"<>LC\")","v":0},{"$f":"SUMIFS(outputs[value],outputs[process_class],$B27,outputs[scenario],G$19,outputs[source],sel_region_code,outputs[variable],\"<>LC\")","v":0},{"$f":"SUMIFS(outputs[value],outputs[process_class],$B27,outputs[scenario],H$19,outputs[source],sel_region_code,outputs[variable],\"<>LC\")","v":0}]
[null,"Transportation (Pipeline)",{"$f":"SUMIFS(outputs[value],outputs[process_class],$B28,outputs[scenario],C$19,outputs[source],sel_region_code,outputs[variable],\"<>LC\")","v":0},{"$f":"SUMIFS(outputs[value],outputs[process_class],$B28,outputs[scenario],D$19,outputs[source],sel_region_code,outputs[variable],\"<>LC\")","v":0},{"$f":"SUMIFS(outputs[value],outputs[process_class],$B28,outputs[scenario],E$19,outputs[source],sel_region_code,outputs[variable],\"<>LC\")","v":0},{"$f":"SUMIFS(outputs[value],outputs[process_class],$B28,outputs[scenario],F$19,outputs[source],sel_region_code,outputs[variable],\"<>LC\")","v":0},{"$f":"SUMIFS(outputs[value],outputs[process_class],$B28,outputs[scenario],G$19,outputs[source],sel_region_code,outputs[variable],\"<>LC\")","v":0},{"$f":"SUMIFS(outputs[value],outputs[process_class],$B28,outputs[scenario],H$19,outputs[source],sel_region_code,outputs[variable],\"<>LC\")","v":0}]
[null,"total",{"$f":"SUMIFS(outputs[value],outputs[scenario],C$19,outputs[source],sel_region_code,outputs[variable],\"<>LC\")","v":0},{"$f":"SUMIFS(outputs[value],outputs[scenario],D$19,outputs[source],sel_region_code,outputs[variable],\"<>LC\")","v":0},{"$f":"SUMIFS(outputs[value],outputs[scenario],E$19,outputs[source],sel_region_code,outputs[variable],\"<>LC\")","v":0},{"$f":"SUMIFS(outputs[value],outputs[scenario],F$19,outputs[source],sel_region_code,outputs[variable],\"<>LC\")","v":0},{"$f":"SUMIFS(outputs[value],outputs[scenario],G$19,outputs[source],sel_region_code,outputs[variable],\"<>LC\")","v":0},{"$f":"SUMIFS(outputs[value],outputs[scenario],H$19,outputs[source],sel_region_code,outputs[variable],\"<>LC\")","v":0}]
[null,"test",{"$f":"SUM(C20:C28)-C29","v":0},0,0,0,0,0]

{"sheet":"m_CompareTargetCountries","index":16,"n_rows":31,"n_cols":11,"rows_kept":31,"cut":false,"hidden":true,"merged":[[1,9,1,10],[2,9,2,10],[18,1,18,10],[4,1,9,7]]}
[]
[null,"COMPARE MULTIPLE TARGET COUNTRIES",null,null,null,null,null,null,null,"YOUR SETTINGS"]
[null,null,null,null,null,null,null,null,null,"can be re-adjusted on the dashboard"]
[null,"Analyse how total delivered costs are affected by exporting to different demand countries",null,null,null,null,null,null,null,"Supply country:",{"$f":"sel_region_name","v":"Morocco"}]
[null,"This sheet allows you to compare the total costs of delivering your chosen product to all PTX BOA demand countries. \n\nFor supplementary information on all PTX BOA demand countries like H2 demand or infrastructure, use the navigation button below. ",null,null,null,null,null,null,null,"Demand country:","[various]"]
[null,null,null,null,null,null,null,null,null,"RE generation:",{"$f":"sel_res_gen_name","v":"Wind-PV-Hybrid"}]
[null,null,null,null,null,null,null,null,null,"Process chain:",{"$f":"sel_chain","v":"Hydrogen (AEL)"}]
[null,null,null,null,null,null,null,null,null,"CO2 source:",{"$f":"sel_secproc_co2","v":"DAC"}]
[null,null,null,null,null,null,null,null,null,"Water source:",{"$f":"sel_secproc_water","v":"Water desalination"}]
[null,null,null,null,null,null,null,null,null,"Transport mode:",{"$f":"sel_transport","v":"Ship"}]
[null,null,null,null,null,null,null,null,null,"Scenario:",{"$f":"sel_scenario","v":"2030 (medium)"}]
[]
[]
[null,{"$f":"\"Total costs of delivered  \"&sel_chain&\" from \"&sel_region_name&\" to various target countries\"","v":"Total costs of delivered  Hydrogen (AEL) from Morocco to various target countries"}]
[]
[]
[]
[]
[null,"PTX BOA demand countries"]
[null,null,"China","Germany","Spain","France","India","Japan","South Korea","Netherlands","USA"]
[null,"Electricity generation",{"$f":"SUMIFS(outputs[value],outputs[process_class],$B21,outputs[scenario],C$20,outputs[source],sel_region_code,outputs[variable],\"<>LC\")","v":0},{"$f":"SUMIFS(outputs[value],outputs[process_class],$B21,outputs[scenario],D$20,outputs[source],sel_region_code,outputs[variable],\"<>LC\")","v":0},{"$f":"SUMIFS(outputs[value],outputs[process_class],$B21,outputs[scenario],E$20,outputs[source],sel_region_code,outputs[variable],\"<>LC\")","v":0},{"$f":"SUMIFS(outputs[value],outputs[process_class],$B21,outputs[scenario],F$20,outputs[source],sel_region_code,outputs[variable],\"<>LC\")","v":0},{"$f":"SUMIFS(outputs[value],outputs[process_class],$B21,outputs[scenario],G$20,outputs[source],sel_region_code,outputs[variable],\"<>LC\")","v":0},{"$f":"SUMIFS(outputs[value],outputs[process_class],$B21,outputs[scenario],H$20,outputs[source],sel_region_code,outputs[variable],\"<>LC\")","v":0},{"$f":"SUMIFS(outputs[value],outputs[process_class],$B21,outputs[scenario],I$20,outputs[source],sel_region_code,outputs[variable],\"<>LC\")","v":0},{"$f":"SUMIFS(outputs[value],outputs[process_class],$B21,outputs[scenario],J$20,outputs[source],sel_region_code,outputs[variable],\"<>LC\")","v":0},{"$f":"SUMIFS(outputs[value],outputs[process_class],$B21,outputs[scenario],K$20,outputs[source],sel_region_code,outputs[variable],\"<>LC\")","v":0}]
[null,"Electrolysis",{"$f":"SUMIFS(outputs[value],outputs[process_class],$B22,outputs[scenario],C$20,outputs[source],sel_region_code,outputs[variable],\"<>LC\")","v":0},{"$f":"SUMIFS(outputs[value],outputs[process_class],$B22,outputs[scenario],D$20,outputs[source],sel_region_code,outputs[variable],\"<>LC\")","v":0},{"$f":"SUMIFS(outputs[value],outputs[process_class],$B22,outputs[scenario],E$20,outputs[source],sel_region_code,outputs[variable],\"<>LC\")","v":0},{"$f":"SUMIFS(outputs[value],outputs[process_class],$B22,outputs[scenario],F$20,outputs[source],sel_region_code,outputs[variable],\"<>LC\")","v":0},{"$f":"SUMIFS(outputs[value],outputs[process_class],$B22,outputs[scenario],G$20,outputs[source],sel_region_code,outputs[variable],\"<>LC\")","v":0},{"$f":"SUMIFS(outputs[value],outputs[process_class],$B22,outputs[scenario],H$20,outputs[source],sel_region_code,outputs[variable],\"<>LC\")","v":0},{"$f":"SUMIFS(outputs[value],outputs[process_class],$B22,outputs[scenario],I$20,outputs[source],sel_region_code,outputs[variable],\"<>LC\")","v":0},{"$f":"SUMIFS(outputs[value],outputs[process_class],$B22,outputs[scenario],J$20,outputs[source],sel_region_code,outputs[variable],\"<>LC\")","v":0},{"$f":"SUMIFS(outputs[value],outputs[process_class],$B22,outputs[scenario],K$20,outputs[source],sel_region_code,outputs[variable],\"<>LC\")","v":0}]
[null,"Derivate production",{"$f":"SUMIFS(outputs[value],outputs[process_class],$B23,outputs[scenario],C$20,outputs[source],sel_region_code,outputs[variable],\"<>LC\")","v":0},{"$f":"SUMIFS(outputs[value],outputs[process_class],$B23,outputs[scenario],D$20,outputs[source],sel_region_code,outputs[variable],\"<>LC\")","v":0},{"$f":"SUMIFS(outputs[value],outputs[process_class],$B23,outputs[scenario],E$20,outputs[source],sel_region_code,outputs[variable],\"<>LC\")","v":0},{"$f":"SUMIFS(outputs[value],outputs[process_class],$B23,outputs[scenario],F$20,outputs[source],sel_region_code,outputs[variable],\"<>LC\")","v":0},{"$f":"SUMIFS(outputs[value],outputs[process_class],$B23,outputs[scenario],G$20,outputs[source],sel_region_code,outputs[variable],\"<>LC\")","v":0},{"$f":"SUMIFS(outputs[value],outputs[process_class],$B23,outputs[scenario],H$20,outputs[source],sel_region_code,outputs[variable],\"<>LC\")","v":0},{"$f":"SUMIFS(outputs[value],outputs[process_class],$B23,outputs[scenario],I$20,outputs[source],sel_region_code,outputs[variable],\"<>LC\")","v":0},{"$f":"SUMIFS(outputs[value],outputs[process_class],$B23,outputs[scenario],J$20,outputs[source],sel_region_code,outputs[variable],\"<>LC\")","v":0},{"$f":"SUMIFS(outputs[value],outputs[process_class],$B23,outputs[scenario],K$20,outputs[source],sel_region_code,outputs[variable],\"<>LC\")","v":0}]
[null,"Carbon",{"$f":"SUMIFS(outputs[value],outputs[process_class],$B24,outputs[scenario],C$20,outputs[source],sel_region_code,outputs[variable],\"<>LC\")","v":0},{"$f":"SUMIFS(outputs[value],outputs[process_class],$B24,outputs[scenario],D$20,outputs[source],sel_region_code,outputs[variable],\"<>LC\")","v":0},{"$f":"SUMIFS(outputs[value],outputs[process_class],$B24,outputs[scenario],E$20,outputs[source],sel_region_code,outputs[variable],\"<>LC\")","v":0},{"$f":"SUMIFS(outputs[value],outputs[process_class],$B24,outputs[scenario],F$20,outputs[source],sel_region_code,outputs[variable],\"<>LC\")","v":0},{"$f":"SUMIFS(outputs[value],outputs[process_class],$B24,outputs[scenario],G$20,outputs[source],sel_region_code,outputs[variable],\"<>LC\")","v":0},{"$f":"SUMIFS(outputs[value],outputs[process_class],$B24,outputs[scenario],H$20,outputs[source],sel_region_code,outputs[variable],\"<>LC\")","v":0},{"$f":"SUMIFS(outputs[value],outputs[process_class],$B24,outputs[scenario],I$20,outputs[source],sel_region_code,outputs[variable],\"<>LC\")","v":0},{"$f":"SUMIFS(outputs[value],outputs[process_class],$B24,outputs[scenario],J$20,outputs[source],sel_region_code,outputs[variable],\"<>LC\")","v":0},{"$f":"SUMIFS(outputs[value],outputs[process_class],$B24,outputs[scenario],K$20,outputs[source],sel_region_code,outputs[variable],\"<>LC\")","v":0}]
[null,"Water",{"$f":"SUMIFS(outputs[value],outputs[process_class],$B25,outputs[scenario],C$20,outputs[source],sel_region_code,outputs[variable],\"<>LC\")","v":0},{"$f":"SUMIFS(outputs[value],outputs[process_class],$B25,outputs[scenario],D$20,outputs[source],sel_region_code,outputs[variable],\"<>LC\")","v":0},{"$f":"SUMIFS(outputs[value],outputs[process_class],$B25,outputs[scenario],E$20,outputs[source],sel_region_code,outputs[variable],\"<>LC\")","v":0},{"$f":"SUMIFS(outputs[value],outputs[process_class],$B25,outputs[scenario],F$20,outputs[source],sel_region_code,outputs[variable],\"<>LC\")","v":0},{"$f":"SUMIFS(outputs[value],outputs[process_class],$B25,outputs[scenario],G$20,outputs[source],sel_region_code,outputs[variable],\"<>LC\")","v":0},{"$f":"SUMIFS(outputs[value],outputs[process_class],$B25,outputs[scenario],H$20,outputs[source],sel_region_code,outputs[variable],\"<>LC\")","v":0},{"$f":"SUMIFS(outputs[value],outputs[process_class],$B25,outputs[scenario],I$20,outputs[source],sel_region_code,outputs[variable],\"<>LC\")","v":0},{"$f":"SUMIFS(outputs[value],outputs[process_class],$B25,outputs[scenario],J$20,outputs[source],sel_region_code,outputs[variable],\"<>LC\")","v":0},{"$f":"SUMIFS(outputs[value],outputs[process_class],$B25,outputs[scenario],K$20,outputs[source],sel_region_code,outputs[variable],\"<>LC\")","v":0}]
[null,"Heat",{"$f":"SUMIFS(outputs[value],outputs[process_class],$B26,outputs[scenario],C$20,outputs[source],sel_region_code,outputs[variable],\"<>LC\")","v":0},{"$f":"SUMIFS(outputs[value],outputs[process_class],$B26,outputs[scenario],D$20,outputs[source],sel_region_code,outputs[variable],\"<>LC\")","v":0},{"$f":"SUMIFS(outputs[value],outputs[process_class],$B26,outputs[scenario],E$20,outputs[source],sel_region_code,outputs[variable],\"<>LC\")","v":0},{"$f":"SUMIFS(outputs[value],outputs[process_class],$B26,outputs[scenario],F$20,outputs[source],sel_region_code,outputs[variable],\"<>LC\")","v":0},{"$f":"SUMIFS(outputs[value],outputs[process_class],$B26,outputs[scenario],G$20,outputs[source],sel_region_code,outputs[variable],\"<>LC\")","v":0},{"$f":"SUMIFS(outputs[value],outputs[process_class],$B26,outputs[scenario],H$20,outputs[source],sel_region_code,outputs[variable],\"<>LC\")","v":0},{"$f":"SUMIFS(outputs[value],outputs[process_class],$B26,outputs[scenario],I$20,outputs[source],sel_region_code,outputs[variable],\"<>LC\")","v":0},{"$f":"SUMIFS(outputs[value],outputs[process_class],$B26,outputs[scenario],J$20,outputs[source],sel_region_code,outputs[variable],\"<>LC\")","v":0},{"$f":"SUMIFS(outputs[value],outputs[process_class],$B26,outputs[scenario],K$20,outputs[source],sel_region_code,outputs[variable],\"<>LC\")","v":0}]
[null,"Electricity and H2 storage",{"$f":"SUMIFS(outputs[value],outputs[process_class],$B27,outputs[scenario],C$20,outputs[source],sel_region_code,outputs[variable],\"<>LC\")","v":0},{"$f":"SUMIFS(outputs[value],outputs[process_class],$B27,outputs[scenario],D$20,outputs[source],sel_region_code,outputs[variable],\"<>LC\")","v":0},{"$f":"SUMIFS(outputs[value],outputs[process_class],$B27,outputs[scenario],E$20,outputs[source],sel_region_code,outputs[variable],\"<>LC\")","v":0},{"$f":"SUMIFS(outputs[value],outputs[process_class],$B27,outputs[scenario],F$20,outputs[source],sel_region_code,outputs[variable],\"<>LC\")","v":0},{"$f":"SUMIFS(outputs[value],outputs[process_class],$B27,outputs[scenario],G$20,outputs[source],sel_region_code,outputs[variable],\"<>LC\")","v":0},{"$f":"SUMIFS(outputs[value],outputs[process_class],$B27,outputs[scenario],H$20,outputs[source],sel_region_code,outputs[variable],\"<>LC\")","v":0},{"$f":"SUMIFS(outputs[value],outputs[process_class],$B27,outputs[scenario],I$20,outputs[source],sel_region_code,outputs[variable],\"<>LC\")","v":0},{"$f":"SUMIFS(outputs[value],outputs[process_class],$B27,outputs[scenario],J$20,outputs[source],sel_region_code,outputs[variable],\"<>LC\")","v":0},{"$f":"SUMIFS(outputs[value],outputs[process_class],$B27,outputs[scenario],K$20,outputs[source],sel_region_code,outputs[variable],\"<>LC\")","v":0}]
[null,"Transportation (Ship)",{"$f":"SUMIFS(outputs[value],outputs[process_class],$B28,outputs[scenario],C$20,outputs[source],sel_region_code,outputs[variable],\"<>LC\")","v":0},{"$f":"SUMIFS(outputs[value],outputs[process_class],$B28,outputs[scenario],D$20,outputs[source],sel_region_code,outputs[variable],\"<>LC\")","v":0},{"$f":"SUMIFS(outputs[value],outputs[process_class],$B28,outputs[scenario],E$20,outputs[source],sel_region_code,outputs[variable],\"<>LC\")","v":0},{"$f":"SUMIFS(outputs[value],outputs[process_class],$B28,outputs[scenario],F$20,outputs[source],sel_region_code,outputs[variable],\"<>LC\")","v":0},{"$f":"SUMIFS(outputs[value],outputs[process_class],$B28,outputs[scenario],G$20,outputs[source],sel_region_code,outputs[variable],\"<>LC\")","v":0},{"$f":"SUMIFS(outputs[value],outputs[process_class],$B28,outputs[scenario],H$20,outputs[source],sel_region_code,outputs[variable],\"<>LC\")","v":0},{"$f":"SUMIFS(outputs[value],outputs[process_class],$B28,outputs[scenario],I$20,outputs[source],sel_region_code,outputs[variable],\"<>LC\")","v":0},{"$f":"SUMIFS(outputs[value],outputs[process_class],$B28,outputs[scenario],J$20,outputs[source],sel_region_code,outputs[variable],\"<>LC\")","v":0},{"$f":"SUMIFS(outputs[value],outputs[process_class],$B28,outputs[scenario],K$20,outputs[source],sel_region_code,outputs[variable],\"<>LC\")","v":0}]
[null,"Transportation (Pipeline)",{"$f":"SUMIFS(outputs[value],outputs[process_class],$B29,outputs[scenario],C$20,outputs[source],sel_region_code,outputs[variable],\"<>LC\")","v":0},{"$f":"SUMIFS(outputs[value],outputs[process_class],$B29,outputs[scenario],D$20,outputs[source],sel_region_code,outputs[variable],\"<>LC\")","v":0},{"$f":"SUMIFS(outputs[value],outputs[process_class],$B29,outputs[scenario],E$20,outputs[source],sel_region_code,outputs[variable],\"<>LC\")","v":0},{"$f":"SUMIFS(outputs[value],outputs[process_class],$B29,outputs[scenario],F$20,outputs[source],sel_region_code,outputs[variable],\"<>LC\")","v":0},{"$f":"SUMIFS(outputs[value],outputs[process_class],$B29,outputs[scenario],G$20,outputs[source],sel_region_code,outputs[variable],\"<>LC\")","v":0},{"$f":"SUMIFS(outputs[value],outputs[process_class],$B29,outputs[scenario],H$20,outputs[source],sel_region_code,outputs[variable],\"<>LC\")","v":0},{"$f":"SUMIFS(outputs[value],outputs[process_class],$B29,outputs[scenario],I$20,outputs[source],sel_region_code,outputs[variable],\"<>LC\")","v":0},{"$f":"SUMIFS(outputs[value],outputs[process_class],$B29,outputs[scenario],J$20,outputs[source],sel_region_code,outputs[variable],\"<>LC\")","v":0},{"$f":"SUMIFS(outputs[value],outputs[process_class],$B29,outputs[scenario],K$20,outputs[source],sel_region_code,outputs[variable],\"<>LC\")","v":0}]
[null,"total",{"$f":"SUMIFS(outputs[value],outputs[scenario],C$20,outputs[source],sel_region_code,outputs[variable],\"<>LC\")","v":0},{"$f":"SUMIFS(outputs[value],outputs[scenario],D$20,outputs[source],sel_region_code,outputs[variable],\"<>LC\")","v":0},{"$f":"SUMIFS(outputs[value],outputs[scenario],E$20,outputs[source],sel_region_code,outputs[variable],\"<>LC\")","v":0},{"$f":"SUMIFS(outputs[value],outputs[scenario],F$20,outputs[source],sel_region_code,outputs[variable],\"<>LC\")","v":0},{"$f":"SUMIFS(outputs[value],outputs[scenario],G$20,outputs[source],sel_region_code,outputs[variable],\"<>LC\")","v":0},{"$f":"SUMIFS(outputs[value],outputs[scenario],H$20,outputs[source],sel_region_code,outputs[variable],\"<>LC\")","v":0},{"$f":"SUMIFS(outputs[value],outputs[scenario],I$20,outputs[source],sel_region_code,outputs[variable],\"<>LC\")","v":0},{"$f":"SUMIFS(outputs[value],outputs[scenario],J$20,outputs[source],sel_region_code,outputs[variable],\"<>LC\")","v":0},{"$f":"SUMIFS(outputs[value],outputs[scenario],K$20,outputs[source],sel_region_code,outputs[variable],\"<>LC\")","v":0}]
[null,"test",{"$f":"SUM(C21:C29)-C30","v":0},{"$f":"SUM(D21:D29)-D30","v":0},0,0,0,0,0,0,0]

{"sheet":"m_CompareRE","index":17,"n_rows":30,"n_cols":9,"rows_kept":30,"cut":false,"hidden":true,"merged":[[1,7,1,8],[2,7,2,8],[4,1,8,6]]}
[]
[null,"COMPARE MULTIPLE RENEWABLE ELECTRICITY SOURCES",null,null,null,null,null,"YOUR SETTINGS"]
[null,null,null,null,null,null,null,"can be re-adjusted on the dashboard"]
[null,"Analyse how costs are affected by choosing different renewable electricity sources",null,null,null,null,null,"Supply country:",{"$f":"sel_region_name","v":"Morocco"}]
[null,"The diagram illustrates which renewable electricity source allows for the most cost-effective production environment - \ngiven your selected production pathway, connection and data scenario.  \n",null,null,null,null,null,"Demand country:",{"$f":"sel_country_name","v":"Germany"}]
[null,null,null,null,null,null,null,"RE generation:","[various]"]
[null,null,null,null,null,null,null,"Process chain:",{"$f":"sel_chain","v":"Hydrogen (AEL)"}]
[null,null,null,null,null,null,null,"CO2 source:",{"$f":"sel_secproc_co2","v":"DAC"}]
[null,null,null,null,null,null,null,"Water source:",{"$f":"sel_secproc_water","v":"Water desalination"}]
[null,null,null,null,null,null,null,"Transport mode:",{"$f":"sel_transport","v":"Ship"}]
[null,null,null,null,null,null,null,"Scenario:",{"$f":"sel_scenario","v":"2030 (medium)"}]
[]
[]
[null,{"$f":"\"Total costs of delivered \"&sel_chain&\" from \"&sel_region_name&\" to \"&sel_country_name","v":"Total costs of delivered Hydrogen (AEL) from Morocco to Germany"}]
[]
[]
[]
[]
[null,null,"PV tilted","PV tracking","Wind-PV-Hybrid","Wind Offshore","Wind Onshore"]
[null,"Electricity generation",{"$f":"SUMIFS(outputs[value],outputs[process_class],$B20,outputs[scenario],C$19,outputs[source],sel_region_code,outputs[variable],\"<>LC\")","v":0},{"$f":"SUMIFS(outputs[value],outputs[process_class],$B20,outputs[scenario],D$19,outputs[source],sel_region_code,outputs[variable],\"<>LC\")","v":0},{"$f":"SUMIFS(outputs[value],outputs[process_class],$B20,outputs[scenario],E$19,outputs[source],sel_region_code,outputs[variable],\"<>LC\")","v":0},{"$f":"SUMIFS(outputs[value],outputs[process_class],$B20,outputs[scenario],F$19,outputs[source],sel_region_code,outputs[variable],\"<>LC\")","v":0},{"$f":"SUMIFS(outputs[value],outputs[process_class],$B20,outputs[scenario],G$19,outputs[source],sel_region_code,outputs[variable],\"<>LC\")","v":0}]
[null,"Electrolysis",{"$f":"SUMIFS(outputs[value],outputs[process_class],$B21,outputs[scenario],C$19,outputs[source],sel_region_code,outputs[variable],\"<>LC\")","v":0},{"$f":"SUMIFS(outputs[value],outputs[process_class],$B21,outputs[scenario],D$19,outputs[source],sel_region_code,outputs[variable],\"<>LC\")","v":0},{"$f":"SUMIFS(outputs[value],outputs[process_class],$B21,outputs[scenario],E$19,outputs[source],sel_region_code,outputs[variable],\"<>LC\")","v":0},{"$f":"SUMIFS(outputs[value],outputs[process_class],$B21,outputs[scenario],F$19,outputs[source],sel_region_code,outputs[variable],\"<>LC\")","v":0},{"$f":"SUMIFS(outputs[value],outputs[process_class],$B21,outputs[scenario],G$19,outputs[source],sel_region_code,outputs[variable],\"<>LC\")","v":0}]
[null,"Derivate production",{"$f":"SUMIFS(outputs[value],outputs[process_class],$B22,outputs[scenario],C$19,outputs[source],sel_region_code,outputs[variable],\"<>LC\")","v":0},{"$f":"SUMIFS(outputs[value],outputs[process_class],$B22,outputs[scenario],D$19,outputs[source],sel_region_code,outputs[variable],\"<>LC\")","v":0},{"$f":"SUMIFS(outputs[value],outputs[process_class],$B22,outputs[scenario],E$19,outputs[source],sel_region_code,outputs[variable],\"<>LC\")","v":0},{"$f":"SUMIFS(outputs[value],outputs[process_class],$B22,outputs[scenario],F$19,outputs[source],sel_region_code,outputs[variable],\"<>LC\")","v":0},{"$f":"SUMIFS(outputs[value],outputs[process_class],$B22,outputs[scenario],G$19,outputs[source],sel_region_code,outputs[variable],\"<>LC\")","v":0}]
[null,"Carbon",{"$f":"SUMIFS(outputs[value],outputs[process_class],$B23,outputs[scenario],C$19,outputs[source],sel_region_code,outputs[variable],\"<>LC\")","v":0},{"$f":"SUMIFS(outputs[value],outputs[process_class],$B23,outputs[scenario],D$19,outputs[source],sel_region_code,outputs[variable],\"<>LC\")","v":0},{"$f":"SUMIFS(outputs[value],outputs[process_class],$B23,outputs[scenario],E$19,outputs[source],sel_region_code,outputs[variable],\"<>LC\")","v":0},{"$f":"SUMIFS(outputs[value],outputs[process_class],$B23,outputs[scenario],F$19,outputs[source],sel_region_code,outputs[variable],\"<>LC\")","v":0},{"$f":"SUMIFS(outputs[value],outputs[process_class],$B23,outputs[scenario],G$19,outputs[source],sel_region_code,outputs[variable],\"<>LC\")","v":0}]
[null,"Water",{"$f":"SUMIFS(outputs[value],outputs[process_class],$B24,outputs[scenario],C$19,outputs[source],sel_region_code,outputs[variable],\"<>LC\")","v":0},{"$f":"SUMIFS(outputs[value],outputs[process_class],$B24,outputs[scenario],D$19,outputs[source],sel_region_code,outputs[variable],\"<>LC\")","v":0},{"$f":"SUMIFS(outputs[value],outputs[process_class],$B24,outputs[scenario],E$19,outputs[source],sel_region_code,outputs[variable],\"<>LC\")","v":0},{"$f":"SUMIFS(outputs[value],outputs[process_class],$B24,outputs[scenario],F$19,outputs[source],sel_region_code,outputs[variable],\"<>LC\")","v":0},{"$f":"SUMIFS(outputs[value],outputs[process_class],$B24,outputs[scenario],G$19,outputs[source],sel_region_code,outputs[variable],\"<>LC\")","v":0}]
[null,"Heat",{"$f":"SUMIFS(outputs[value],outputs[process_class],$B25,outputs[scenario],C$19,outputs[source],sel_region_code,outputs[variable],\"<>LC\")","v":0},{"$f":"SUMIFS(outputs[value],outputs[process_class],$B25,outputs[scenario],D$19,outputs[source],sel_region_code,outputs[variable],\"<>LC\")","v":0},{"$f":"SUMIFS(outputs[value],outputs[process_class],$B25,outputs[scenario],E$19,outputs[source],sel_region_code,outputs[variable],\"<>LC\")","v":0},{"$f":"SUMIFS(outputs[value],outputs[process_class],$B25,outputs[scenario],F$19,outputs[source],sel_region_code,outputs[variable],\"<>LC\")","v":0},{"$f":"SUMIFS(outputs[value],outputs[process_class],$B25,outputs[scenario],G$19,outputs[source],sel_region_code,outputs[variable],\"<>LC\")","v":0}]
[null,"Electricity and H2 storage",{"$f":"SUMIFS(outputs[value],outputs[process_class],$B26,outputs[scenario],C$19,outputs[source],sel_region_code,outputs[variable],\"<>LC\")","v":0},{"$f":"SUMIFS(outputs[value],outputs[process_class],$B26,outputs[scenario],D$19,outputs[source],sel_region_code,outputs[variable],\"<>LC\")","v":0},{"$f":"SUMIFS(outputs[value],outputs[process_class],$B26,outputs[scenario],E$19,outputs[source],sel_region_code,outputs[variable],\"<>LC\")","v":0},{"$f":"SUMIFS(outputs[value],outputs[process_class],$B26,outputs[scenario],F$19,outputs[source],sel_region_code,outputs[variable],\"<>LC\")","v":0},{"$f":"SUMIFS(outputs[value],outputs[process_class],$B26,outputs[scenario],G$19,outputs[source],sel_region_code,outputs[variable],\"<>LC\")","v":0}]
[null,"Transportation (Ship)",{"$f":"SUMIFS(outputs[value],outputs[process_class],$B27,outputs[scenario],C$19,outputs[source],sel_region_code,outputs[variable],\"<>LC\")","v":0},{"$f":"SUMIFS(outputs[value],outputs[process_class],$B27,outputs[scenario],D$19,outputs[source],sel_region_code,outputs[variable],\"<>LC\")","v":0},{"$f":"SUMIFS(outputs[value],outputs[process_class],$B27,outputs[scenario],E$19,outputs[source],sel_region_code,outputs[variable],\"<>LC\")","v":0},{"$f":"SUMIFS(outputs[value],outputs[process_class],$B27,outputs[scenario],F$19,outputs[source],sel_region_code,outputs[variable],\"<>LC\")","v":0},{"$f":"SUMIFS(outputs[value],outputs[process_class],$B27,outputs[scenario],G$19,outputs[source],sel_region_code,outputs[variable],\"<>LC\")","v":0}]
[null,"Transportation (Pipeline)",{"$f":"SUMIFS(outputs[value],outputs[process_class],$B28,outputs[scenario],C$19,outputs[source],sel_region_code,outputs[variable],\"<>LC\")","v":0},{"$f":"SUMIFS(outputs[value],outputs[process_class],$B28,outputs[scenario],D$19,outputs[source],sel_region_code,outputs[variable],\"<>LC\")","v":0},{"$f":"SUMIFS(outputs[value],outputs[process_class],$B28,outputs[scenario],E$19,outputs[source],sel_region_code,outputs[variable],\"<>LC\")","v":0},{"$f":"SUMIFS(outputs[value],outputs[process_class],$B28,outputs[scenario],F$19,outputs[source],sel_region_code,outputs[variable],\"<>LC\")","v":0},{"$f":"SUMIFS(outputs[value],outputs[process_class],$B28,outputs[scenario],G$19,outputs[source],sel_region_code,outputs[variable],\"<>LC\")","v":0}]
[null,"total",{"$f":"SUMIFS(outputs[value],outputs[scenario],C$19,outputs[source],sel_region_code,outputs[variable],\"<>LC\")","v":0},{"$f":"SUMIFS(outputs[value],outputs[scenario],D$19,outputs[source],sel_region_code,outputs[variable],\"<>LC\")","v":0},{"$f":"SUMIFS(outputs[value],outputs[scenario],E$19,outputs[source],sel_region_code,outputs[variable],\"<>LC\")","v":0},{"$f":"SUMIFS(outputs[value],outputs[scenario],F$19,outputs[source],sel_region_code,outputs[variable],\"<>LC\")","v":0},{"$f":"SUMIFS(outputs[value],outputs[scenario],G$19,outputs[source],sel_region_code,outputs[variable],\"<>LC\")","v":0}]
[null,"test",{"$f":"SUM(C20:C28)-C29","v":0},{"$f":"SUM(D20:D28)-D29","v":0},{"$f":"SUM(E20:E28)-E29","v":0},{"$f":"SUM(F20:F28)-F29","v":0},{"$f":"SUM(G20:G28)-G29","v":0}]

{"sheet":"m_CompareChains","index":18,"n_rows":30,"n_cols":26,"rows_kept":30,"cut":false,"hidden":true,"merged":[[1,24,1,25],[2,24,2,25],[4,1,10,18]]}
[]
[null,"COMPARE MULTIPLE MOLECULES",null,null,null,null,null,null,null,null,null,null,null,null,null,null,null,null,null,null,null,null,null,null,"YOUR SETTINGS"]
[null,null,null,null,null,null,null,null,null,null,null,null,null,null,null,null,null,null,null,null,null,null,null,null,"can be re-adjusted on the dashboard"]
[null,"Analyse how costs are affected by choosing different production pathways (molecules)",null,null,null,null,null,null,null,null,null,null,null,null,null,null,null,null,null,null,null,null,null,null,"Supply country:",{"$f":"sel_region_name","v":"Morocco"}]
[null,"This sheet allows you to compare the total costs of delivering different molecules to your selected demand country - given your RE generation and data scenario settings made on the dashboard.\n\nTo make the results comparable, costs are given in USD/MWh, no matter what unit you chose in the dashboard. \nGreen Iron is not included in the comparison as for Green Iron a cost conversion to USD/MWh is not feasible. ",null,null,null,null,null,null,null,null,null,null,null,null,null,null,null,null,null,null,null,null,null,null,"Demand country:",{"$f":"sel_country_name","v":"Germany"}]
[null,null,null,null,null,null,null,null,null,null,null,null,null,null,null,null,null,null,null,null,null,null,null,null,"RE generation:",{"$f":"sel_res_gen_name","v":"Wind-PV-Hybrid"}]
[null,null,null,null,null,null,null,null,null,null,null,null,null,null,null,null,null,null,null,null,null,null,null,null,"Process chain:","[various]"]
[null,null,null,null,null,null,null,null,null,null,null,null,null,null,null,null,null,null,null,null,null,null,null,null,"CO2 source:",{"$f":"sel_secproc_co2","v":"DAC"}]
[null,null,null,null,null,null,null,null,null,null,null,null,null,null,null,null,null,null,null,null,null,null,null,null,"Water source:",{"$f":"sel_secproc_water","v":"Water desalination"}]
[null,null,null,null,null,null,null,null,null,null,null,null,null,null,null,null,null,null,null,null,null,null,null,null,"Transport mode:",{"$f":"sel_transport","v":"Ship"}]
[null,null,null,null,null,null,null,null,null,null,null,null,null,null,null,null,null,null,null,null,null,null,null,null,"Scenario:",{"$f":"sel_scenario","v":"2030 (medium)"}]
[]
[]
[null,{"$f":"\"Total costs of delivered various molecules from \"&sel_region_name&\" to \"&sel_country_name","v":"Total costs of delivered various molecules from Morocco to Germany"}]
[]
[]
[]
[]
[null,"Process step","Ammonia (AEL)","Ammonia (AEL) + reconv. to H2","Ammonia (PEM)","Ammonia (PEM) + reconv. to H2","Ammonia (SEOC)","Ammonia (SEOC) + reconv. to H2","Hydrogen (AEL)","Hydrogen (PEM)","Hydrogen (SEOC)","LOHC (AEL)","LOHC (PEM)","LOHC (SEOC)","Methane (AEL)","Methane (AEL) + reconv. to H2","Methane (PEM)","Methane (PEM) + reconv. to H2","Methane (SEOC)","Methane (SEOC) + reconv. to H2","Methanol (AEL)","Methanol (PEM)","Methanol (SEOC)","FT e-fuels (AEL)","FT e-fuels (PEM)","FT e-fuels (SEOC)"]
[null,"Electricity generation",{"$f":"SUMIFS(outputs[value],outputs[process_class],$B20,outputs[scenario],C$19,outputs[source],sel_region_code,outputs[variable],\"<>LC\")","v":0},{"$f":"SUMIFS(outputs[value],outputs[process_class],$B20,outputs[scenario],D$19,outputs[source],sel_region_code,outputs[variable],\"<>LC\")","v":0},{"$f":"SUMIFS(outputs[value],outputs[process_class],$B20,outputs[scenario],E$19,outputs[source],sel_region_code,outputs[variable],\"<>LC\")","v":0},{"$f":"SUMIFS(outputs[value],outputs[process_class],$B20,outputs[scenario],F$19,outputs[source],sel_region_code,outputs[variable],\"<>LC\")","v":0},{"$f":"SUMIFS(outputs[value],outputs[process_class],$B20,outputs[scenario],G$19,outputs[source],sel_region_code,outputs[variable],\"<>LC\")","v":0},{"$f":"SUMIFS(outputs[value],outputs[process_class],$B20,outputs[scenario],H$19,outputs[source],sel_region_code,outputs[variable],\"<>LC\")","v":0},{"$f":"SUMIFS(outputs[value],outputs[process_class],$B20,outputs[scenario],I$19,outputs[source],sel_region_code,outputs[variable],\"<>LC\")","v":0},{"$f":"SUMIFS(outputs[value],outputs[process_class],$B20,outputs[scenario],J$19,outputs[source],sel_region_code,outputs[variable],\"<>LC\")","v":0},{"$f":"SUMIFS(outputs[value],outputs[process_class],$B20,outputs[scenario],K$19,outputs[source],sel_region_code,outputs[variable],\"<>LC\")","v":0},{"$f":"SUMIFS(outputs[value],outputs[process_class],$B20,outputs[scenario],L$19,outputs[source],sel_region_code,outputs[variable],\"<>LC\")","v":0},{"$f":"SUMIFS(outputs[value],outputs[process_class],$B20,outputs[scenario],M$19,outputs[source],sel_region_code,outputs[variable],\"<>LC\")","v":0},{"$f":"SUMIFS(outputs[value],outputs[process_class],$B20,outputs[scenario],N$19,outputs[source],sel_region_code,outputs[variable],\"<>LC\")","v":0},{"$f":"SUMIFS(outputs[value],outputs[process_class],$B20,outputs[scenario],O$19,outputs[source],sel_region_code,outputs[variable],\"<>LC\")","v":0},{"$f":"SUMIFS(outputs[value],outputs[process_class],$B20,outputs[scenario],P$19,outputs[source],sel_region_code,outputs[variable],\"<>LC\")","v":0},{"$f":"SUMIFS(outputs[value],outputs[process_class],$B20,outputs[scenario],Q$19,outputs[source],sel_region_code,outputs[variable],\"<>LC\")","v":0},{"$f":"SUMIFS(outputs[value],outputs[process_class],$B20,outputs[scenario],R$19,outputs[source],sel_region_code,outputs[variable],\"<>LC\")","v":0},{"$f":"SUMIFS(outputs[value],outputs[process_class],$B20,outputs[scenario],S$19,outputs[source],sel_region_code,outputs[variable],\"<>LC\")","v":0},{"$f":"SUMIFS(outputs[value],outputs[process_class],$B20,outputs[scenario],T$19,outputs[source],sel_region_code,outputs[variable],\"<>LC\")","v":0},{"$f":"SUMIFS(outputs[value],outputs[process_class],$B20,outputs[scenario],U$19,outputs[source],sel_region_code,outputs[variable],\"<>LC\")","v":0},{"$f":"SUMIFS(outputs[value],outputs[process_class],$B20,outputs[scenario],V$19,outputs[source],sel_region_code,outputs[variable],\"<>LC\")","v":0},{"$f":"SUMIFS(outputs[value],outputs[process_class],$B20,outputs[scenario],W$19,outputs[source],sel_region_code,outputs[variable],\"<>LC\")","v":0},{"$f":"SUMIFS(outputs[value],outputs[process_class],$B20,outputs[scenario],X$19,outputs[source],sel_region_code,outputs[variable],\"<>LC\")","v":0},{"$f":"SUMIFS(outputs[value],outputs[process_class],$B20,outputs[scenario],Y$19,outputs[source],sel_region_code,outputs[variable],\"<>LC\")","v":0},{"$f":"SUMIFS(outputs[value],outputs[process_class],$B20,outputs[scenario],Z$19,outputs[source],sel_region_code,outputs[variable],\"<>LC\")","v":0}]
[null,"Electrolysis",{"$f":"SUMIFS(outputs[value],outputs[process_class],$B21,outputs[scenario],C$19,outputs[source],sel_region_code,outputs[variable],\"<>LC\")","v":0},{"$f":"SUMIFS(outputs[value],outputs[process_class],$B21,outputs[scenario],D$19,outputs[source],sel_region_code,outputs[variable],\"<>LC\")","v":0},{"$f":"SUMIFS(outputs[value],outputs[process_class],$B21,outputs[scenario],E$19,outputs[source],sel_region_code,outputs[variable],\"<>LC\")","v":0},{"$f":"SUMIFS(outputs[value],outputs[process_class],$B21,outputs[scenario],F$19,outputs[source],sel_region_code,outputs[variable],\"<>LC\")","v":0},{"$f":"SUMIFS(outputs[value],outputs[process_class],$B21,outputs[scenario],G$19,outputs[source],sel_region_code,outputs[variable],\"<>LC\")","v":0},{"$f":"SUMIFS(outputs[value],outputs[process_class],$B21,outputs[scenario],H$19,outputs[source],sel_region_code,outputs[variable],\"<>LC\")","v":0},{"$f":"SUMIFS(outputs[value],outputs[process_class],$B21,outputs[scenario],I$19,outputs[source],sel_region_code,outputs[variable],\"<>LC\")","v":0},{"$f":"SUMIFS(outputs[value],outputs[process_class],$B21,outputs[scenario],J$19,outputs[source],sel_region_code,outputs[variable],\"<>LC\")","v":0},{"$f":"SUMIFS(outputs[value],outputs[process_class],$B21,outputs[scenario],K$19,outputs[source],sel_region_code,outputs[variable],\"<>LC\")","v":0},{"$f":"SUMIFS(outputs[value],outputs[process_class],$B21,outputs[scenario],L$19,outputs[source],sel_region_code,outputs[variable],\"<>LC\")","v":0},{"$f":"SUMIFS(outputs[value],outputs[process_class],$B21,outputs[scenario],M$19,outputs[source],sel_region_code,outputs[variable],\"<>LC\")","v":0},{"$f":"SUMIFS(outputs[value],outputs[process_class],$B21,outputs[scenario],N$19,outputs[source],sel_region_code,outputs[variable],\"<>LC\")","v":0},{"$f":"SUMIFS(outputs[value],outputs[process_class],$B21,outputs[scenario],O$19,outputs[source],sel_region_code,outputs[variable],\"<>LC\")","v":0},{"$f":"SUMIFS(outputs[value],outputs[process_class],$B21,outputs[scenario],P$19,outputs[source],sel_region_code,outputs[variable],\"<>LC\")","v":0},{"$f":"SUMIFS(outputs[value],outputs[process_class],$B21,outputs[scenario],Q$19,outputs[source],sel_region_code,outputs[variable],\"<>LC\")","v":0},{"$f":"SUMIFS(outputs[value],outputs[process_class],$B21,outputs[scenario],R$19,outputs[source],sel_region_code,outputs[variable],\"<>LC\")","v":0},{"$f":"SUMIFS(outputs[value],outputs[process_class],$B21,outputs[scenario],S$19,outputs[source],sel_region_code,outputs[variable],\"<>LC\")","v":0},{"$f":"SUMIFS(outputs[value],outputs[process_class],$B21,outputs[scenario],T$19,outputs[source],sel_region_code,outputs[variable],\"<>LC\")","v":0},{"$f":"SUMIFS(outputs[value],outputs[process_class],$B21,outputs[scenario],U$19,outputs[source],sel_region_code,outputs[variable],\"<>LC\")","v":0},{"$f":"SUMIFS(outputs[value],outputs[process_class],$B21,outputs[scenario],V$19,outputs[source],sel_region_code,outputs[variable],\"<>LC\")","v":0},{"$f":"SUMIFS(outputs[value],outputs[process_class],$B21,outputs[scenario],W$19,outputs[source],sel_region_code,outputs[variable],\"<>LC\")","v":0},{"$f":"SUMIFS(outputs[value],outputs[process_class],$B21,outputs[scenario],X$19,outputs[source],sel_region_code,outputs[variable],\"<>LC\")","v":0},{"$f":"SUMIFS(outputs[value],outputs[process_class],$B21,outputs[scenario],Y$19,outputs[source],sel_region_code,outputs[variable],\"<>LC\")","v":0},{"$f":"SUMIFS(outputs[value],outputs[process_class],$B21,outputs[scenario],Z$19,outputs[source],sel_region_code,outputs[variable],\"<>LC\")","v":0}]
[null,"Derivate production",{"$f":"SUMIFS(outputs[value],outputs[process_class],$B22,outputs[scenario],C$19,outputs[source],sel_region_code,outputs[variable],\"<>LC\")","v":0},{"$f":"SUMIFS(outputs[value],outputs[process_class],$B22,outputs[scenario],D$19,outputs[source],sel_region_code,outputs[variable],\"<>LC\")","v":0},{"$f":"SUMIFS(outputs[value],outputs[process_class],$B22,outputs[scenario],E$19,outputs[source],sel_region_code,outputs[variable],\"<>LC\")","v":0},{"$f":"SUMIFS(outputs[value],outputs[process_class],$B22,outputs[scenario],F$19,outputs[source],sel_region_code,outputs[variable],\"<>LC\")","v":0},{"$f":"SUMIFS(outputs[value],outputs[process_class],$B22,outputs[scenario],G$19,outputs[source],sel_region_code,outputs[variable],\"<>LC\")","v":0},{"$f":"SUMIFS(outputs[value],outputs[process_class],$B22,outputs[scenario],H$19,outputs[source],sel_region_code,outputs[variable],\"<>LC\")","v":0},{"$f":"SUMIFS(outputs[value],outputs[process_class],$B22,outputs[scenario],I$19,outputs[source],sel_region_code,outputs[variable],\"<>LC\")","v":0},{"$f":"SUMIFS(outputs[value],outputs[process_class],$B22,outputs[scenario],J$19,outputs[source],sel_region_code,outputs[variable],\"<>LC\")","v":0},{"$f":"SUMIFS(outputs[value],outputs[process_class],$B22,outputs[scenario],K$19,outputs[source],sel_region_code,outputs[variable],\"<>LC\")","v":0},{"$f":"SUMIFS(outputs[value],outputs[process_class],$B22,outputs[scenario],L$19,outputs[source],sel_region_code,outputs[variable],\"<>LC\")","v":0},{"$f":"SUMIFS(outputs[value],outputs[process_class],$B22,outputs[scenario],M$19,outputs[source],sel_region_code,outputs[variable],\"<>LC\")","v":0},{"$f":"SUMIFS(outputs[value],outputs[process_class],$B22,outputs[scenario],N$19,outputs[source],sel_region_code,outputs[variable],\"<>LC\")","v":0},{"$f":"SUMIFS(outputs[value],outputs[process_class],$B22,outputs[scenario],O$19,outputs[source],sel_region_code,outputs[variable],\"<>LC\")","v":0},{"$f":"SUMIFS(outputs[value],outputs[process_class],$B22,outputs[scenario],P$19,outputs[source],sel_region_code,outputs[variable],\"<>LC\")","v":0},{"$f":"SUMIFS(outputs[value],outputs[process_class],$B22,outputs[scenario],Q$19,outputs[source],sel_region_code,outputs[variable],\"<>LC\")","v":0},{"$f":"SUMIFS(outputs[value],outputs[process_class],$B22,outputs[scenario],R$19,outputs[source],sel_region_code,outputs[variable],\"<>LC\")","v":0},{"$f":"SUMIFS(outputs[value],outputs[process_class],$B22,outputs[scenario],S$19,outputs[source],sel_region_code,outputs[variable],\"<>LC\")","v":0},{"$f":"SUMIFS(outputs[value],outputs[process_class],$B22,outputs[scenario],T$19,outputs[source],sel_region_code,outputs[variable],\"<>LC\")","v":0},{"$f":"SUMIFS(outputs[value],outputs[process_class],$B22,outputs[scenario],U$19,outputs[source],sel_region_code,outputs[variable],\"<>LC\")","v":0},{"$f":"SUMIFS(outputs[value],outputs[process_class],$B22,outputs[scenario],V$19,outputs[source],sel_region_code,outputs[variable],\"<>LC\")","v":0},{"$f":"SUMIFS(outputs[value],outputs[process_class],$B22,outputs[scenario],W$19,outputs[source],sel_region_code,outputs[variable],\"<>LC\")","v":0},{"$f":"SUMIFS(outputs[value],outputs[process_class],$B22,outputs[scenario],X$19,outputs[source],sel_region_code,outputs[variable],\"<>LC\")","v":0},{"$f":"SUMIFS(outputs[value],outputs[process_class],$B22,outputs[scenario],Y$19,outputs[source],sel_region_code,outputs[variable],\"<>LC\")","v":0},{"$f":"SUMIFS(outputs[value],outputs[process_class],$B22,outputs[scenario],Z$19,outputs[source],sel_region_code,outputs[variable],\"<>LC\")","v":0}]
[null,"Carbon",{"$f":"SUMIFS(outputs[value],outputs[process_class],$B23,outputs[scenario],C$19,outputs[source],sel_region_code,outputs[variable],\"<>LC\")","v":0},{"$f":"SUMIFS(outputs[value],outputs[process_class],$B23,outputs[scenario],D$19,outputs[source],sel_region_code,outputs[variable],\"<>LC\")","v":0},{"$f":"SUMIFS(outputs[value],outputs[process_class],$B23,outputs[scenario],E$19,outputs[source],sel_region_code,outputs[variable],\"<>LC\")","v":0},{"$f":"SUMIFS(outputs[value],outputs[process_class],$B23,outputs[scenario],F$19,outputs[source],sel_region_code,outputs[variable],\"<>LC\")","v":0},{"$f":"SUMIFS(outputs[value],outputs[process_class],$B23,outputs[scenario],G$19,outputs[source],sel_region_code,outputs[variable],\"<>LC\")","v":0},{"$f":"SUMIFS(outputs[value],outputs[process_class],$B23,outputs[scenario],H$19,outputs[source],sel_region_code,outputs[variable],\"<>LC\")","v":0},{"$f":"SUMIFS(outputs[value],outputs[process_class],$B23,outputs[scenario],I$19,outputs[source],sel_region_code,outputs[variable],\"<>LC\")","v":0},{"$f":"SUMIFS(outputs[value],outputs[process_class],$B23,outputs[scenario],J$19,outputs[source],sel_region_code,outputs[variable],\"<>LC\")","v":0},{"$f":"SUMIFS(outputs[value],outputs[process_class],$B23,outputs[scenario],K$19,outputs[source],sel_region_code,outputs[variable],\"<>LC\")","v":0},{"$f":"SUMIFS(outputs[value],outputs[process_class],$B23,outputs[scenario],L$19,outputs[source],sel_region_code,outputs[variable],\"<>LC\")","v":0},{"$f":"SUMIFS(outputs[value],outputs[process_class],$B23,outputs[scenario],M$19,outputs[source],sel_region_code,outputs[variable],\"<>LC\")","v":0},{"$f":"SUMIFS(outputs[value],outputs[process_class],$B23,outputs[scenario],N$19,outputs[source],sel_region_code,outputs[variable],\"<>LC\")","v":0},{"$f":"SUMIFS(outputs[value],outputs[process_class],$B23,outputs[scenario],O$19,outputs[source],sel_region_code,outputs[variable],\"<>LC\")","v":0},{"$f":"SUMIFS(outputs[value],outputs[process_class],$B23,outputs[scenario],P$19,outputs[source],sel_region_code,outputs[variable],\"<>LC\")","v":0},{"$f":"SUMIFS(outputs[value],outputs[process_class],$B23,outputs[scenario],Q$19,outputs[source],sel_region_code,outputs[variable],\"<>LC\")","v":0},{"$f":"SUMIFS(outputs[value],outputs[process_class],$B23,outputs[scenario],R$19,outputs[source],sel_region_code,outputs[variable],\"<>LC\")","v":0},{"$f":"SUMIFS(outputs[value],outputs[process_class],$B23,outputs[scenario],S$19,outputs[source],sel_region_code,outputs[variable],\"<>LC\")","v":0},{"$f":"SUMIFS(outputs[value],outputs[process_class],$B23,outputs[scenario],T$19,outputs[source],sel_region_code,outputs[variable],\"<>LC\")","v":0},{"$f":"SUMIFS(outputs[value],outputs[process_class],$B23,outputs[scenario],U$19,outputs[source],sel_region_code,outputs[variable],\"<>LC\")","v":0},{"$f":"SUMIFS(outputs[value],outputs[process_class],$B23,outputs[scenario],V$19,outputs[source],sel_region_code,outputs[variable],\"<>LC\")","v":0},{"$f":"SUMIFS(outputs[value],outputs[process_class],$B23,outputs[scenario],W$19,outputs[source],sel_region_code,outputs[variable],\"<>LC\")","v":0},{"$f":"SUMIFS(outputs[value],outputs[process_class],$B23,outputs[scenario],X$19,outputs[source],sel_region_code,outputs[variable],\"<>LC\")","v":0},{"$f":"SUMIFS(outputs[value],outputs[process_class],$B23,outputs[scenario],Y$19,outputs[source],sel_region_code,outputs[variable],\"<>LC\")","v":0},{"$f":"SUMIFS(outputs[value],outputs[process_class],$B23,outputs[scenario],Z$19,outputs[source],sel_region_code,outputs[variable],\"<>LC\")","v":0}]
[null,"Water",{"$f":"SUMIFS(outputs[value],outputs[process_class],$B24,outputs[scenario],C$19,outputs[source],sel_region_code,outputs[variable],\"<>LC\")","v":0},{"$f":"SUMIFS(outputs[value],outputs[process_class],$B24,outputs[scenario],D$19,outputs[source],sel_region_code,outputs[variable],\"<>LC\")","v":0},{"$f":"SUMIFS(outputs[value],outputs[process_class],$B24,outputs[scenario],E$19,outputs[source],sel_region_code,outputs[variable],\"<>LC\")","v":0},{"$f":"SUMIFS(outputs[value],outputs[process_class],$B24,outputs[scenario],F$19,outputs[source],sel_region_code,outputs[variable],\"<>LC\")","v":0},{"$f":"SUMIFS(outputs[value],outputs[process_class],$B24,outputs[scenario],G$19,outputs[source],sel_region_code,outputs[variable],\"<>LC\")","v":0},{"$f":"SUMIFS(outputs[value],outputs[process_class],$B24,outputs[scenario],H$19,outputs[source],sel_region_code,outputs[variable],\"<>LC\")","v":0},{"$f":"SUMIFS(outputs[value],outputs[process_class],$B24,outputs[scenario],I$19,outputs[source],sel_region_code,outputs[variable],\"<>LC\")","v":0},{"$f":"SUMIFS(outputs[value],outputs[process_class],$B24,outputs[scenario],J$19,outputs[source],sel_region_code,outputs[variable],\"<>LC\")","v":0},{"$f":"SUMIFS(outputs[value],outputs[process_class],$B24,outputs[scenario],K$19,outputs[source],sel_region_code,outputs[variable],\"<>LC\")","v":0},{"$f":"SUMIFS(outputs[value],outputs[process_class],$B24,outputs[scenario],L$19,outputs[source],sel_region_code,outputs[variable],\"<>LC\")","v":0},{"$f":"SUMIFS(outputs[value],outputs[process_class],$B24,outputs[scenario],M$19,outputs[source],sel_region_code,outputs[variable],\"<>LC\")","v":0},{"$f":"SUMIFS(outputs[value],outputs[process_class],$B24,outputs[scenario],N$19,outputs[source],sel_region_code,outputs[variable],\"<>LC\")","v":0},{"$f":"SUMIFS(outputs[value],outputs[process_class],$B24,outputs[scenario],O$19,outputs[source],sel_region_code,outputs[variable],\"<>LC\")","v":0},{"$f":"SUMIFS(outputs[value],outputs[process_class],$B24,outputs[scenario],P$19,outputs[source],sel_region_code,outputs[variable],\"<>LC\")","v":0},{"$f":"SUMIFS(outputs[value],outputs[process_class],$B24,outputs[scenario],Q$19,outputs[source],sel_region_code,outputs[variable],\"<>LC\")","v":0},{"$f":"SUMIFS(outputs[value],outputs[process_class],$B24,outputs[scenario],R$19,outputs[source],sel_region_code,outputs[variable],\"<>LC\")","v":0},{"$f":"SUMIFS(outputs[value],outputs[process_class],$B24,outputs[scenario],S$19,outputs[source],sel_region_code,outputs[variable],\"<>LC\")","v":0},{"$f":"SUMIFS(outputs[value],outputs[process_class],$B24,outputs[scenario],T$19,outputs[source],sel_region_code,outputs[variable],\"<>LC\")","v":0},{"$f":"SUMIFS(outputs[value],outputs[process_class],$B24,outputs[scenario],U$19,outputs[source],sel_region_code,outputs[variable],\"<>LC\")","v":0},{"$f":"SUMIFS(outputs[value],outputs[process_class],$B24,outputs[scenario],V$19,outputs[source],sel_region_code,outputs[variable],\"<>LC\")","v":0},{"$f":"SUMIFS(outputs[value],outputs[process_class],$B24,outputs[scenario],W$19,outputs[source],sel_region_code,outputs[variable],\"<>LC\")","v":0},{"$f":"SUMIFS(outputs[value],outputs[process_class],$B24,outputs[scenario],X$19,outputs[source],sel_region_code,outputs[variable],\"<>LC\")","v":0},{"$f":"SUMIFS(outputs[value],outputs[process_class],$B24,outputs[scenario],Y$19,outputs[source],sel_region_code,outputs[variable],\"<>LC\")","v":0},{"$f":"SUMIFS(outputs[value],outputs[process_class],$B24,outputs[scenario],Z$19,outputs[source],sel_region_code,outputs[variable],\"<>LC\")","v":0}]
[null,"Heat",{"$f":"SUMIFS(outputs[value],outputs[process_class],$B25,outputs[scenario],C$19,outputs[source],sel_region_code,outputs[variable],\"<>LC\")","v":0},{"$f":"SUMIFS(outputs[value],outputs[process_class],$B25,outputs[scenario],D$19,outputs[source],sel_region_code,outputs[variable],\"<>LC\")","v":0},{"$f":"SUMIFS(outputs[value],outputs[process_class],$B25,outputs[scenario],E$19,outputs[source],sel_region_code,outputs[variable],\"<>LC\")","v":0},{"$f":"SUMIFS(outputs[value],outputs[process_class],$B25,outputs[scenario],F$19,outputs[source],sel_region_code,outputs[variable],\"<>LC\")","v":0},{"$f":"SUMIFS(outputs[value],outputs[process_class],$B25,outputs[scenario],G$19,outputs[source],sel_region_code,outputs[variable],\"<>LC\")","v":0},{"$f":"SUMIFS(outputs[value],outputs[process_class],$B25,outputs[scenario],H$19,outputs[source],sel_region_code,outputs[variable],\"<>LC\")","v":0},{"$f":"SUMIFS(outputs[value],outputs[process_class],$B25,outputs[scenario],I$19,outputs[source],sel_region_code,outputs[variable],\"<>LC\")","v":0},{"$f":"SUMIFS(outputs[value],outputs[process_class],$B25,outputs[scenario],J$19,outputs[source],sel_region_code,outputs[variable],\"<>LC\")","v":0},{"$f":"SUMIFS(outputs[value],outputs[process_class],$B25,outputs[scenario],K$19,outputs[source],sel_region_code,outputs[variable],\"<>LC\")","v":0},{"$f":"SUMIFS(outputs[value],outputs[process_class],$B25,outputs[scenario],L$19,outputs[source],sel_region_code,outputs[variable],\"<>LC\")","v":0},{"$f":"SUMIFS(outputs[value],outputs[process_class],$B25,outputs[scenario],M$19,outputs[source],sel_region_code,outputs[variable],\"<>LC\")","v":0},{"$f":"SUMIFS(outputs[value],outputs[process_class],$B25,outputs[scenario],N$19,outputs[source],sel_region_code,outputs[variable],\"<>LC\")","v":0},{"$f":"SUMIFS(outputs[value],outputs[process_class],$B25,outputs[scenario],O$19,outputs[source],sel_region_code,outputs[variable],\"<>LC\")","v":0},{"$f":"SUMIFS(outputs[value],outputs[process_class],$B25,outputs[scenario],P$19,outputs[source],sel_region_code,outputs[variable],\"<>LC\")","v":0},{"$f":"SUMIFS(outputs[value],outputs[process_class],$B25,outputs[scenario],Q$19,outputs[source],sel_region_code,outputs[variable],\"<>LC\")","v":0},{"$f":"SUMIFS(outputs[value],outputs[process_class],$B25,outputs[scenario],R$19,outputs[source],sel_region_code,outputs[variable],\"<>LC\")","v":0},{"$f":"SUMIFS(outputs[value],outputs[process_class],$B25,outputs[scenario],S$19,outputs[source],sel_region_code,outputs[variable],\"<>LC\")","v":0},{"$f":"SUMIFS(outputs[value],outputs[process_class],$B25,outputs[scenario],T$19,outputs[source],sel_region_code,outputs[variable],\"<>LC\")","v":0},{"$f":"SUMIFS(outputs[value],outputs[process_class],$B25,outputs[scenario],U$19,outputs[source],sel_region_code,outputs[variable],\"<>LC\")","v":0},{"$f":"SUMIFS(outputs[value],outputs[process_class],$B25,outputs[scenario],V$19,outputs[source],sel_region_code,outputs[variable],\"<>LC\")","v":0},{"$f":"SUMIFS(outputs[value],outputs[process_class],$B25,outputs[scenario],W$19,outputs[source],sel_region_code,outputs[variable],\"<>LC\")","v":0},{"$f":"SUMIFS(outputs[value],outputs[process_class],$B25,outputs[scenario],X$19,outputs[source],sel_region_code,outputs[variable],\"<>LC\")","v":0},{"$f":"SUMIFS(outputs[value],outputs[process_class],$B25,outputs[scenario],Y$19,outputs[source],sel_region_code,outputs[variable],\"<>LC\")","v":0},{"$f":"SUMIFS(outputs[value],outputs[process_class],$B25,outputs[scenario],Z$19,outputs[source],sel_region_code,outputs[variable],\"<>LC\")","v":0}]
[null,"Electricity and H2 storage",{"$f":"SUMIFS(outputs[value],outputs[process_class],$B26,outputs[scenario],C$19,outputs[source],sel_region_code,outputs[variable],\"<>LC\")","v":0},{"$f":"SUMIFS(outputs[value],outputs[process_class],$B26,outputs[scenario],D$19,outputs[source],sel_region_code,outputs[variable],\"<>LC\")","v":0},{"$f":"SUMIFS(outputs[value],outputs[process_class],$B26,outputs[scenario],E$19,outputs[source],sel_region_code,outputs[variable],\"<>LC\")","v":0},{"$f":"SUMIFS(outputs[value],outputs[process_class],$B26,outputs[scenario],F$19,outputs[source],sel_region_code,outputs[variable],\"<>LC\")","v":0},{"$f":"SUMIFS(outputs[value],outputs[process_class],$B26,outputs[scenario],G$19,outputs[source],sel_region_code,outputs[variable],\"<>LC\")","v":0},{"$f":"SUMIFS(outputs[value],outputs[process_class],$B26,outputs[scenario],H$19,outputs[source],sel_region_code,outputs[variable],\"<>LC\")","v":0},{"$f":"SUMIFS(outputs[value],outputs[process_class],$B26,outputs[scenario],I$19,outputs[source],sel_region_code,outputs[variable],\"<>LC\")","v":0},{"$f":"SUMIFS(outputs[value],outputs[process_class],$B26,outputs[scenario],J$19,outputs[source],sel_region_code,outputs[variable],\"<>LC\")","v":0},{"$f":"SUMIFS(outputs[value],outputs[process_class],$B26,outputs[scenario],K$19,outputs[source],sel_region_code,outputs[variable],\"<>LC\")","v":0},{"$f":"SUMIFS(outputs[value],outputs[process_class],$B26,outputs[scenario],L$19,outputs[source],sel_region_code,outputs[variable],\"<>LC\")","v":0},{"$f":"SUMIFS(outputs[value],outputs[process_class],$B26,outputs[scenario],M$19,outputs[source],sel_region_code,outputs[variable],\"<>LC\")","v":0},{"$f":"SUMIFS(outputs[value],outputs[process_class],$B26,outputs[scenario],N$19,outputs[source],sel_region_code,outputs[variable],\"<>LC\")","v":0},{"$f":"SUMIFS(outputs[value],outputs[process_class],$B26,outputs[scenario],O$19,outputs[source],sel_region_code,outputs[variable],\"<>LC\")","v":0},{"$f":"SUMIFS(outputs[value],outputs[process_class],$B26,outputs[scenario],P$19,outputs[source],sel_region_code,outputs[variable],\"<>LC\")","v":0},{"$f":"SUMIFS(outputs[value],outputs[process_class],$B26,outputs[scenario],Q$19,outputs[source],sel_region_code,outputs[variable],\"<>LC\")","v":0},{"$f":"SUMIFS(outputs[value],outputs[process_class],$B26,outputs[scenario],R$19,outputs[source],sel_region_code,outputs[variable],\"<>LC\")","v":0},{"$f":"SUMIFS(outputs[value],outputs[process_class],$B26,outputs[scenario],S$19,outputs[source],sel_region_code,outputs[variable],\"<>LC\")","v":0},{"$f":"SUMIFS(outputs[value],outputs[process_class],$B26,outputs[scenario],T$19,outputs[source],sel_region_code,outputs[variable],\"<>LC\")","v":0},{"$f":"SUMIFS(outputs[value],outputs[process_class],$B26,outputs[scenario],U$19,outputs[source],sel_region_code,outputs[variable],\"<>LC\")","v":0},{"$f":"SUMIFS(outputs[value],outputs[process_class],$B26,outputs[scenario],V$19,outputs[source],sel_region_code,outputs[variable],\"<>LC\")","v":0},{"$f":"SUMIFS(outputs[value],outputs[process_class],$B26,outputs[scenario],W$19,outputs[source],sel_region_code,outputs[variable],\"<>LC\")","v":0},{"$f":"SUMIFS(outputs[value],outputs[process_class],$B26,outputs[scenario],X$19,outputs[source],sel_region_code,outputs[variable],\"<>LC\")","v":0},{"$f":"SUMIFS(outputs[value],outputs[process_class],$B26,outputs[scenario],Y$19,outputs[source],sel_region_code,outputs[variable],\"<>LC\")","v":0},{"$f":"SUMIFS(outputs[value],outputs[process_class],$B26,outputs[scenario],Z$19,outputs[source],sel_region_code,outputs[variable],\"<>LC\")","v":0}]
[null,"Transportation (Ship)",{"$f":"SUMIFS(outputs[value],outputs[process_class],$B27,outputs[scenario],C$19,outputs[source],sel_region_code,outputs[variable],\"<>LC\")","v":0},{"$f":"SUMIFS(outputs[value],outputs[process_class],$B27,outputs[scenario],D$19,outputs[source],sel_region_code,outputs[variable],\"<>LC\")","v":0},{"$f":"SUMIFS(outputs[value],outputs[process_class],$B27,outputs[scenario],E$19,outputs[source],sel_region_code,outputs[variable],\"<>LC\")","v":0},{"$f":"SUMIFS(outputs[value],outputs[process_class],$B27,outputs[scenario],F$19,outputs[source],sel_region_code,outputs[variable],\"<>LC\")","v":0},{"$f":"SUMIFS(outputs[value],outputs[process_class],$B27,outputs[scenario],G$19,outputs[source],sel_region_code,outputs[variable],\"<>LC\")","v":0},{"$f":"SUMIFS(outputs[value],outputs[process_class],$B27,outputs[scenario],H$19,outputs[source],sel_region_code,outputs[variable],\"<>LC\")","v":0},{"$f":"SUMIFS(outputs[value],outputs[process_class],$B27,outputs[scenario],I$19,outputs[source],sel_region_code,outputs[variable],\"<>LC\")","v":0},{"$f":"SUMIFS(outputs[value],outputs[process_class],$B27,outputs[scenario],J$19,outputs[source],sel_region_code,outputs[variable],\"<>LC\")","v":0},{"$f":"SUMIFS(outputs[value],outputs[process_class],$B27,outputs[scenario],K$19,outputs[source],sel_region_code,outputs[variable],\"<>LC\")","v":0},{"$f":"SUMIFS(outputs[value],outputs[process_class],$B27,outputs[scenario],L$19,outputs[source],sel_region_code,outputs[variable],\"<>LC\")","v":0},{"$f":"SUMIFS(outputs[value],outputs[process_class],$B27,outputs[scenario],M$19,outputs[source],sel_region_code,outputs[variable],\"<>LC\")","v":0},{"$f":"SUMIFS(outputs[value],outputs[process_class],$B27,outputs[scenario],N$19,outputs[source],sel_region_code,outputs[variable],\"<>LC\")","v":0},{"$f":"SUMIFS(outputs[value],outputs[process_class],$B27,outputs[scenario],O$19,outputs[source],sel_region_code,outputs[variable],\"<>LC\")","v":0},{"$f":"SUMIFS(outputs[value],outputs[process_class],$B27,outputs[scenario],P$19,outputs[source],sel_region_code,outputs[variable],\"<>LC\")","v":0},{"$f":"SUMIFS(outputs[value],outputs[process_class],$B27,outputs[scenario],Q$19,outputs[source],sel_region_code,outputs[variable],\"<>LC\")","v":0},{"$f":"SUMIFS(outputs[value],outputs[process_class],$B27,outputs[scenario],R$19,outputs[source],sel_region_code,outputs[variable],\"<>LC\")","v":0},{"$f":"SUMIFS(outputs[value],outputs[process_class],$B27,outputs[scenario],S$19,outputs[source],sel_region_code,outputs[variable],\"<>LC\")","v":0},{"$f":"SUMIFS(outputs[value],outputs[process_class],$B27,outputs[scenario],T$19,outputs[source],sel_region_code,outputs[variable],\"<>LC\")","v":0},{"$f":"SUMIFS(outputs[value],outputs[process_class],$B27,outputs[scenario],U$19,outputs[source],sel_region_code,outputs[variable],\"<>LC\")","v":0},{"$f":"SUMIFS(outputs[value],outputs[process_class],$B27,outputs[scenario],V$19,outputs[source],sel_region_code,outputs[variable],\"<>LC\")","v":0},{"$f":"SUMIFS(outputs[value],outputs[process_class],$B27,outputs[scenario],W$19,outputs[source],sel_region_code,outputs[variable],\"<>LC\")","v":0},{"$f":"SUMIFS(outputs[value],outputs[process_class],$B27,outputs[scenario],X$19,outputs[source],sel_region_code,outputs[variable],\"<>LC\")","v":0},{"$f":"SUMIFS(outputs[value],outputs[process_class],$B27,outputs[scenario],Y$19,outputs[source],sel_region_code,outputs[variable],\"<>LC\")","v":0},{"$f":"SUMIFS(outputs[value],outputs[process_class],$B27,outputs[scenario],Z$19,outputs[source],sel_region_code,outputs[variable],\"<>LC\")","v":0}]
[null,"Transportation (Pipeline)",{"$f":"SUMIFS(outputs[value],outputs[process_class],$B28,outputs[scenario],C$19,outputs[source],sel_region_code,outputs[variable],\"<>LC\")","v":0},{"$f":"SUMIFS(outputs[value],outputs[process_class],$B28,outputs[scenario],D$19,outputs[source],sel_region_code,outputs[variable],\"<>LC\")","v":0},{"$f":"SUMIFS(outputs[value],outputs[process_class],$B28,outputs[scenario],E$19,outputs[source],sel_region_code,outputs[variable],\"<>LC\")","v":0},{"$f":"SUMIFS(outputs[value],outputs[process_class],$B28,outputs[scenario],F$19,outputs[source],sel_region_code,outputs[variable],\"<>LC\")","v":0},{"$f":"SUMIFS(outputs[value],outputs[process_class],$B28,outputs[scenario],G$19,outputs[source],sel_region_code,outputs[variable],\"<>LC\")","v":0},{"$f":"SUMIFS(outputs[value],outputs[process_class],$B28,outputs[scenario],H$19,outputs[source],sel_region_code,outputs[variable],\"<>LC\")","v":0},{"$f":"SUMIFS(outputs[value],outputs[process_class],$B28,outputs[scenario],I$19,outputs[source],sel_region_code,outputs[variable],\"<>LC\")","v":0},{"$f":"SUMIFS(outputs[value],outputs[process_class],$B28,outputs[scenario],J$19,outputs[source],sel_region_code,outputs[variable],\"<>LC\")","v":0},{"$f":"SUMIFS(outputs[value],outputs[process_class],$B28,outputs[scenario],K$19,outputs[source],sel_region_code,outputs[variable],\"<>LC\")","v":0},{"$f":"SUMIFS(outputs[value],outputs[process_class],$B28,outputs[scenario],L$19,outputs[source],sel_region_code,outputs[variable],\"<>LC\")","v":0},{"$f":"SUMIFS(outputs[value],outputs[process_class],$B28,outputs[scenario],M$19,outputs[source],sel_region_code,outputs[variable],\"<>LC\")","v":0},{"$f":"SUMIFS(outputs[value],outputs[process_class],$B28,outputs[scenario],N$19,outputs[source],sel_region_code,outputs[variable],\"<>LC\")","v":0},{"$f":"SUMIFS(outputs[value],outputs[process_class],$B28,outputs[scenario],O$19,outputs[source],sel_region_code,outputs[variable],\"<>LC\")","v":0},{"$f":"SUMIFS(outputs[value],outputs[process_class],$B28,outputs[scenario],P$19,outputs[source],sel_region_code,outputs[variable],\"<>LC\")","v":0},{"$f":"SUMIFS(outputs[value],outputs[process_class],$B28,outputs[scenario],Q$19,outputs[source],sel_region_code,outputs[variable],\"<>LC\")","v":0},{"$f":"SUMIFS(outputs[value],outputs[process_class],$B28,outputs[scenario],R$19,outputs[source],sel_region_code,outputs[variable],\"<>LC\")","v":0},{"$f":"SUMIFS(outputs[value],outputs[process_class],$B28,outputs[scenario],S$19,outputs[source],sel_region_code,outputs[variable],\"<>LC\")","v":0},{"$f":"SUMIFS(outputs[value],outputs[process_class],$B28,outputs[scenario],T$19,outputs[source],sel_region_code,outputs[variable],\"<>LC\")","v":0},{"$f":"SUMIFS(outputs[value],outputs[process_class],$B28,outputs[scenario],U$19,outputs[source],sel_region_code,outputs[variable],\"<>LC\")","v":0},{"$f":"SUMIFS(outputs[value],outputs[process_class],$B28,outputs[scenario],V$19,outputs[source],sel_region_code,outputs[variable],\"<>LC\")","v":0},{"$f":"SUMIFS(outputs[value],outputs[process_class],$B28,outputs[scenario],W$19,outputs[source],sel_region_code,outputs[variable],\"<>LC\")","v":0},{"$f":"SUMIFS(outputs[value],outputs[process_class],$B28,outputs[scenario],X$19,outputs[source],sel_region_code,outputs[variable],\"<>LC\")","v":0},{"$f":"SUMIFS(outputs[value],outputs[process_class],$B28,outputs[scenario],Y$19,outputs[source],sel_region_code,outputs[variable],\"<>LC\")","v":0},{"$f":"SUMIFS(outputs[value],outputs[process_class],$B28,outputs[scenario],Z$19,outputs[source],sel_region_code,outputs[variable],\"<>LC\")","v":0}]
[null,"Total",{"$f":"SUMIFS(outputs[value],outputs[scenario],C$19,outputs[source],sel_region_code,outputs[variable],\"<>LC\")","v":0},{"$f":"SUMIFS(outputs[value],outputs[scenario],D$19,outputs[source],sel_region_code,outputs[variable],\"<>LC\")","v":0},{"$f":"SUMIFS(outputs[value],outputs[scenario],E$19,outputs[source],sel_region_code,outputs[variable],\"<>LC\")","v":0},{"$f":"SUMIFS(outputs[value],outputs[scenario],F$19,outputs[source],sel_region_code,outputs[variable],\"<>LC\")","v":0},{"$f":"SUMIFS(outputs[value],outputs[scenario],G$19,outputs[source],sel_region_code,outputs[variable],\"<>LC\")","v":0},{"$f":"SUMIFS(outputs[value],outputs[scenario],H$19,outputs[source],sel_region_code,outputs[variable],\"<>LC\")","v":0},{"$f":"SUMIFS(outputs[value],outputs[scenario],I$19,outputs[source],sel_region_code,outputs[variable],\"<>LC\")","v":0},{"$f":"SUMIFS(outputs[value],outputs[scenario],J$19,outputs[source],sel_region_code,outputs[variable],\"<>LC\")","v":0},{"$f":"SUMIFS(outputs[value],outputs[scenario],K$19,outputs[source],sel_region_code,outputs[variable],\"<>LC\")","v":0},{"$f":"SUMIFS(outputs[value],outputs[scenario],L$19,outputs[source],sel_region_code,outputs[variable],\"<>LC\")","v":0},{"$f":"SUMIFS(outputs[value],outputs[scenario],M$19,outputs[source],sel_region_code,outputs[variable],\"<>LC\")","v":0},{"$f":"SUMIFS(outputs[value],outputs[scenario],N$19,outputs[source],sel_region_code,outputs[variable],\"<>LC\")","v":0},{"$f":"SUMIFS(outputs[value],outputs[scenario],O$19,outputs[source],sel_region_code,outputs[variable],\"<>LC\")","v":0},{"$f":"SUMIFS(outputs[value],outputs[scenario],P$19,outputs[source],sel_region_code,outputs[variable],\"<>LC\")","v":0},{"$f":"SUMIFS(outputs[value],outputs[scenario],Q$19,outputs[source],sel_region_code,outputs[variable],\"<>LC\")","v":0},{"$f":"SUMIFS(outputs[value],outputs[scenario],R$19,outputs[source],sel_region_code,outputs[variable],\"<>LC\")","v":0},{"$f":"SUMIFS(outputs[value],outputs[scenario],S$19,outputs[source],sel_region_code,outputs[variable],\"<>LC\")","v":0},{"$f":"SUMIFS(outputs[value],outputs[scenario],T$19,outputs[source],sel_region_code,outputs[variable],\"<>LC\")","v":0},{"$f":"SUMIFS(outputs[value],outputs[scenario],U$19,outputs[source],sel_region_code,outputs[variable],\"<>LC\")","v":0},{"$f":"SUMIFS(outputs[value],outputs[scenario],V$19,outputs[source],sel_region_code,outputs[variable],\"<>LC\")","v":0},{"$f":"SUMIFS(outputs[value],outputs[scenario],W$19,outputs[source],sel_region_code,outputs[variable],\"<>LC\")","v":0},{"$f":"SUMIFS(outputs[value],outputs[scenario],X$19,outputs[source],sel_region_code,outputs[variable],\"<>LC\")","v":0},{"$f":"SUMIFS(outputs[value],outputs[scenario],Y$19,outputs[source],sel_region_code,outputs[variable],\"<>LC\")","v":0},{"$f":"SUMIFS(outputs[value],outputs[scenario],Z$19,outputs[source],sel_region_code,outputs[variable],\"<>LC\")","v":0}]
[null,"test",{"$f":"SUM(C20:C28)-C29","v":0},0,0,0,0,0,0,0,0,0,0,0,0,0,0,0,0,0,{"$f":"SUM(U20:U28)-U29","v":0},0,0,0,0,0]

{"sheet":"_user_scenario_changes","index":19,"n_rows":1,"n_cols":9,"rows_kept":1,"cut":false,"hidden":true,"merged":[]}
["key","parameter_code","process_code","flow_code","source_region_code","target_country_code","value","unit","source"]

{"sheet":"b_MarketScanning","index":20,"n_rows":89,"n_cols":16,"rows_kept":89,"cut":false,"hidden":false,"merged":[[60,11,67,11],[60,12,67,12],[60,13,67,13],[60,9,60,10],[1,14,1,15],[4,1,9,9],[14,2,14,7],[14,9,14,15],[2,14,2,15]]}
[]
[null,"MARKET SCANNING",null,null,null,null,null,null,null,null,null,null,null,null,"YOUR SETTINGS"]
[null,null,null,null,null,null,null,null,null,null,null,null,null,null,"can be re-adjusted on the dashboard"]
[null,"Get an overview of competing PTX BOA supply countries and potential demand countries",null,null,null,null,null,null,null,null,null,null,null,null,"Supply country:",{"$f":"sel_region_name","v":"Morocco"}]
[null,"This sheet will help you to better evaluate your country's competitive position as well as your options on the emerging global H2 market.\n\nThe left diagram shows you how your country ranks compared to other supply countries that target the same demand country market.\nThe diagrams on the right show transport distances between your country and potential PTX BOA demand countries.\nas well as their projected H2 demands ",null,null,null,null,null,null,null,null,null,null,null,null,"Demand country:",{"$f":"sel_country_name","v":"Germany"}]
[null,null,null,null,null,null,null,null,null,null,null,null,null,null,"RE generation:",{"$f":"sel_res_gen_name","v":"Wind-PV-Hybrid"}]
[null,null,null,null,null,null,null,null,null,null,null,null,null,null,"Process chain:",{"$f":"sel_chain","v":"Hydrogen (AEL)"}]
[null,null,null,null,null,null,null,null,null,null,null,null,null,null,"CO2 source:",{"$f":"sel_secproc_co2","v":"DAC"}]
[null,null,null,null,null,null,null,null,null,null,null,null,null,null,"Water source:",{"$f":"sel_secproc_water","v":"Water desalination"}]
[null,null,null,null,null,null,null,null,null,null,null,null,null,null,"Transport mode:",{"$f":"sel_transport","v":"Ship"}]
[null,null,null,null,null,null,null,null,null,null,null,null,null,null,"Scenario:",{"$f":"sel_scenario","v":"2030 (medium)"}]
[]
[]
[]
[null,null,"How does my country rank compared to other supply countries \ntargeting the same market?",null,null,null,null,null,null,"Which demand country markets are also interesting for my country?"]
[]
[]
[]
[]
[]
[]
[]
[]
[]
[]
[]
[]
[]
[]
[]
[]
[]
[]
[]
[]
[]
[]
[]
[]
[]
[]
[]
[]
[]
[]
[null,null,{"$f":"\"Total costs of providing \"&sel_chain&\" to \"&sel_country_name&\" across all supply countries\"","v":"Total costs of providing Hydrogen (AEL) to Germany across all supply countries"},null,null,null,null,null,null,{"$f":"\"Shipping distances from \"&sel_region_name&\" to all potential demand countries \"","v":"Shipping distances from Morocco to all potential demand countries "}]
[null,null,null,null,null,null,null,null,null,{"$f":"\"Pipelines distances from \"&sel_region_name&\" to all potential demand countries \"","v":"Pipelines distances from Morocco to all potential demand countries "}]
[null,null,null,null,{"$f":"_dims!$CA$3","v":"total cost (USD/MWh)"}]
[null,null,"Country code","Supply country","Total cost (USD/MWh)","Shipping distance (km)","Pipeline distance (km)","RE technical potential (TWh/a)",null,"Country code","Demand country","Shipping distance (km)","Pipeline distance (km)","Projected H2 demand in 2030 (Mt/a)"]
[null,null,"DZA",{"$f":"VLOOKUP(Table10[[#This Row],[Country code]],region[],2,FALSE)","v":"Algeria"},{"$f":"SUMIFS(output[value],output[source],Table10[[#This Row],[Country code]],output[variable],\"<>LC\")","v":131.44531888208436},{"$f":"IFERROR(VLOOKUP(\"DST-S-D,,,\"&Table10[[#This Row],[Country code]]&\",\"&sel_country_code,data[],7,FALSE),\"\")","v":3174.14},{"$f":"IFERROR(VLOOKUP(\"DST-S-DP,,,\"&Table10[[#This Row],[Country code]]&\",\"&sel_country_code,data[],7,FALSE),\"\")","v":3000},{"$f":"IFERROR(VLOOKUP(Table10[[#This Row],[Country code]],b_context_supply!$C$17:$E$50,3,FALSE),\"\")","v":102687.76054053067},null,"CHN",{"$f":"VLOOKUP(Table20[[#This Row],[Country code]],country[],2,FALSE)","v":"China"},{"$f":"VLOOKUP(Table20[[#This Row],[Demand country]],_MarketScanning_2!$C$3:$F$13,2,FALSE)","v":16917.900000000001},{"$f":"IFERROR(VLOOKUP(Table20[[#This Row],[Demand country]],_MarketScanning_2!$C$3:$F$13,3,FALSE),\"\")","v":""},{"$f":"IFERROR(VLOOKUP(Table20[[#This Row],[Demand country]],_MarketScanning_2!$C$3:$F$13,4,FALSE),\"\")","v":35}]
[null,null,"ARG",{"$f":"VLOOKUP(Table10[[#This Row],[Country code]],region[],2,FALSE)","v":"Argentina"},{"$f":"SUMIFS(output[value],output[source],Table10[[#This Row],[Country code]],output[variable],\"<>LC\")","v":238.30347865563257},{"$f":"IFERROR(VLOOKUP(\"DST-S-D,,,\"&Table10[[#This Row],[Country code]]&\",\"&sel_country_code,data[],7,FALSE),\"\")","v":12728.796},{"$f":"IFERROR(VLOOKUP(\"DST-S-DP,,,\"&Table10[[#This Row],[Country code]]&\",\"&sel_country_code,data[],7,FALSE),\"\")","v":""},{"$f":"IFERROR(VLOOKUP(Table10[[#This Row],[Country code]],b_context_supply!$C$17:$E$50,3,FALSE),\"\")","v":28245.512550017502},null,"FRA",{"$f":"VLOOKUP(Table20[[#This Row],[Country code]],country[],2,FALSE)","v":"France"},{"$f":"VLOOKUP(Table20[[#This Row],[Demand country]],_MarketScanning_2!$C$3:$F$13,2,FALSE)","v":1104.08},{"$f":"IFERROR(VLOOKUP(Table20[[#This Row],[Demand country]],_MarketScanning_2!$C$3:$F$13,3,FALSE),\"\")","v":2000},{"$f":"IFERROR(VLOOKUP(Table20[[#This Row],[Demand country]],_MarketScanning_2!$C$3:$F$13,4,FALSE),\"\")","v":""}]
[null,null,"AUS",{"$f":"VLOOKUP(Table10[[#This Row],[Country code]],region[],2,FALSE)","v":"Australia"},{"$f":"SUMIFS(output[value],output[source],Table10[[#This Row],[Country code]],output[variable],\"<>LC\")","v":200.46831134163068},{"$f":"IFERROR(VLOOKUP(\"DST-S-D,,,\"&Table10[[#This Row],[Country code]]&\",\"&sel_country_code,data[],7,FALSE),\"\")","v":21212.3},{"$f":"IFERROR(VLOOKUP(\"DST-S-DP,,,\"&Table10[[#This Row],[Country code]]&\",\"&sel_country_code,data[],7,FALSE),\"\")","v":""},{"$f":"IFERROR(VLOOKUP(Table10[[#This Row],[Country code]],b_context_supply!$C$17:$E$50,3,FALSE),\"\")","v":514994.41648738808},null,"DEU",{"$f":"VLOOKUP(Table20[[#This Row],[Country code]],country[],2,FALSE)","v":"Germany"},{"$f":"VLOOKUP(Table20[[#This Row],[Demand country]],_MarketScanning_2!$C$3:$F$13,2,FALSE)","v":2668.15},{"$f":"IFERROR(VLOOKUP(Table20[[#This Row],[Demand country]],_MarketScanning_2!$C$3:$F$13,3,FALSE),\"\")","v":2500},{"$f":"IFERROR(VLOOKUP(Table20[[#This Row],[Demand country]],_MarketScanning_2!$C$3:$F$13,4,FALSE),\"\")","v":3.05}]
[null,null,"BRA",{"$f":"VLOOKUP(Table10[[#This Row],[Country code]],region[],2,FALSE)","v":"Brazil"},{"$f":"SUMIFS(output[value],output[source],Table10[[#This Row],[Country code]],output[variable],\"<>LC\")","v":166.16666405960947},{"$f":"IFERROR(VLOOKUP(\"DST-S-D,,,\"&Table10[[#This Row],[Country code]]&\",\"&sel_country_code,data[],7,FALSE),\"\")","v":10409.5},{"$f":"IFERROR(VLOOKUP(\"DST-S-DP,,,\"&Table10[[#This Row],[Country code]]&\",\"&sel_country_code,data[],7,FALSE),\"\")","v":""},{"$f":"IFERROR(VLOOKUP(Table10[[#This Row],[Country code]],b_context_supply!$C$17:$E$50,3,FALSE),\"\")","v":86869.842891781722},null,"IND",{"$f":"VLOOKUP(Table20[[#This Row],[Country code]],country[],2,FALSE)","v":"India"},{"$f":"VLOOKUP(Table20[[#This Row],[Demand country]],_MarketScanning_2!$C$3:$F$13,2,FALSE)","v":9333.25},{"$f":"IFERROR(VLOOKUP(Table20[[#This Row],[Demand country]],_MarketScanning_2!$C$3:$F$13,3,FALSE),\"\")","v":""},{"$f":"IFERROR(VLOOKUP(Table20[[#This Row],[Demand country]],_MarketScanning_2!$C$3:$F$13,4,FALSE),\"\")","v":11}]
[null,null,"CHL",{"$f":"VLOOKUP(Table10[[#This Row],[Country code]],region[],2,FALSE)","v":"Chile"},{"$f":"SUMIFS(output[value],output[source],Table10[[#This Row],[Country code]],output[variable],\"<>LC\")","v":233.60626082640309},{"$f":"IFERROR(VLOOKUP(\"DST-S-D,,,\"&Table10[[#This Row],[Country code]]&\",\"&sel_country_code,data[],7,FALSE),\"\")","v":12511.9},{"$f":"IFERROR(VLOOKUP(\"DST-S-DP,,,\"&Table10[[#This Row],[Country code]]&\",\"&sel_country_code,data[],7,FALSE),\"\")","v":""},{"$f":"IFERROR(VLOOKUP(Table10[[#This Row],[Country code]],b_context_supply!$C$17:$E$50,3,FALSE),\"\")","v":15833.086291840766},null,"JPN",{"$f":"VLOOKUP(Table20[[#This Row],[Country code]],country[],2,FALSE)","v":"Japan"},{"$f":"VLOOKUP(Table20[[#This Row],[Demand country]],_MarketScanning_2!$C$3:$F$13,2,FALSE)","v":17892.3},{"$f":"IFERROR(VLOOKUP(Table20[[#This Row],[Demand country]],_MarketScanning_2!$C$3:$F$13,3,FALSE),\"\")","v":""},{"$f":"IFERROR(VLOOKUP(Table20[[#This Row],[Demand country]],_MarketScanning_2!$C$3:$F$13,4,FALSE),\"\")","v":3}]
[null,null,"CHN",{"$f":"VLOOKUP(Table10[[#This Row],[Country code]],region[],2,FALSE)","v":"China"},{"$f":"SUMIFS(output[value],output[source],Table10[[#This Row],[Country code]],output[variable],\"<>LC\")","v":178.31701862549164},{"$f":"IFERROR(VLOOKUP(\"DST-S-D,,,\"&Table10[[#This Row],[Country code]]&\",\"&sel_country_code,data[],7,FALSE),\"\")","v":20484.900000000001},{"$f":"IFERROR(VLOOKUP(\"DST-S-DP,,,\"&Table10[[#This Row],[Country code]]&\",\"&sel_country_code,data[],7,FALSE),\"\")","v":""},{"$f":"IFERROR(VLOOKUP(Table10[[#This Row],[Country code]],b_context_supply!$C$17:$E$50,3,FALSE),\"\")","v":323213.29386247089},null,"NLD",{"$f":"VLOOKUP(Table20[[#This Row],[Country code]],country[],2,FALSE)","v":"Netherlands"},{"$f":"VLOOKUP(Table20[[#This Row],[Demand country]],_MarketScanning_2!$C$3:$F$13,2,FALSE)","v":2354.6799999999998},{"$f":"IFERROR(VLOOKUP(Table20[[#This Row],[Demand country]],_MarketScanning_2!$C$3:$F$13,3,FALSE),\"\")","v":2500},{"$f":"IFERROR(VLOOKUP(Table20[[#This Row],[Demand country]],_MarketScanning_2!$C$3:$F$13,4,FALSE),\"\")","v":""}]
[null,null,"COL",{"$f":"VLOOKUP(Table10[[#This Row],[Country code]],region[],2,FALSE)","v":"Colombia"},{"$f":"SUMIFS(output[value],output[source],Table10[[#This Row],[Country code]],output[variable],\"<>LC\")","v":154.18230524969414},{"$f":"IFERROR(VLOOKUP(\"DST-S-D,,,\"&Table10[[#This Row],[Country code]]&\",\"&sel_country_code,data[],7,FALSE),\"\")","v":9250.74},{"$f":"IFERROR(VLOOKUP(\"DST-S-DP,,,\"&Table10[[#This Row],[Country code]]&\",\"&sel_country_code,data[],7,FALSE),\"\")","v":""},{"$f":"IFERROR(VLOOKUP(Table10[[#This Row],[Country code]],b_context_supply!$C$17:$E$50,3,FALSE),\"\")","v":3982.9900478920035},null,"KOR",{"$f":"VLOOKUP(Table20[[#This Row],[Country code]],country[],2,FALSE)","v":"South Korea"},{"$f":"VLOOKUP(Table20[[#This Row],[Demand country]],_MarketScanning_2!$C$3:$F$13,2,FALSE)","v":17588.7},{"$f":"IFERROR(VLOOKUP(Table20[[#This Row],[Demand country]],_MarketScanning_2!$C$3:$F$13,3,FALSE),\"\")","v":""},{"$f":"IFERROR(VLOOKUP(Table20[[#This Row],[Demand country]],_MarketScanning_2!$C$3:$F$13,4,FALSE),\"\")","v":2}]
[null,null,"CRI",{"$f":"VLOOKUP(Table10[[#This Row],[Country code]],region[],2,FALSE)","v":"Costa Rica"},{"$f":"SUMIFS(output[value],output[source],Table10[[#This Row],[Country code]],output[variable],\"<>LC\")","v":268.57222429454384},{"$f":"IFERROR(VLOOKUP(\"DST-S-D,,,\"&Table10[[#This Row],[Country code]]&\",\"&sel_country_code,data[],7,FALSE),\"\")","v":7422.6},{"$f":"IFERROR(VLOOKUP(\"DST-S-DP,,,\"&Table10[[#This Row],[Country code]]&\",\"&sel_country_code,data[],7,FALSE),\"\")","v":""},{"$f":"IFERROR(VLOOKUP(Table10[[#This Row],[Country code]],b_context_supply!$C$17:$E$50,3,FALSE),\"\")","v":0},"**","ESP",{"$f":"VLOOKUP(Table20[[#This Row],[Country code]],country[],2,FALSE)","v":"Spain"},{"$f":"VLOOKUP(Table20[[#This Row],[Demand country]],_MarketScanning_2!$C$3:$F$13,2,FALSE)","v":38.352499999999999},{"$f":"IFERROR(VLOOKUP(Table20[[#This Row],[Demand country]],_MarketScanning_2!$C$3:$F$13,3,FALSE),\"\")","v":250},{"$f":"IFERROR(VLOOKUP(Table20[[#This Row],[Demand country]],_MarketScanning_2!$C$3:$F$13,4,FALSE),\"\")","v":""}]
[null,null,"DNK",{"$f":"VLOOKUP(Table10[[#This Row],[Country code]],region[],2,FALSE)","v":"Denmark"},{"$f":"SUMIFS(output[value],output[source],Table10[[#This Row],[Country code]],output[variable],\"<>LC\")","v":52.148140773712043},{"$f":"IFERROR(VLOOKUP(\"DST-S-D,,,\"&Table10[[#This Row],[Country code]]&\",\"&sel_country_code,data[],7,FALSE),\"\")","v":814.84100000000001},{"$f":"IFERROR(VLOOKUP(\"DST-S-DP,,,\"&Table10[[#This Row],[Country code]]&\",\"&sel_country_code,data[],7,FALSE),\"\")","v":500},{"$f":"IFERROR(VLOOKUP(Table10[[#This Row],[Country code]],b_context_supply!$C$17:$E$50,3,FALSE),\"\")","v":2097.1640005327972},null,"USA",{"$f":"VLOOKUP(Table20[[#This Row],[Country code]],country[],2,FALSE)","v":"USA"},{"$f":"VLOOKUP(Table20[[#This Row],[Demand country]],_MarketScanning_2!$C$3:$F$13,2,FALSE)","v":8558.2999999999993},{"$f":"IFERROR(VLOOKUP(Table20[[#This Row],[Demand country]],_MarketScanning_2!$C$3:$F$13,3,FALSE),\"\")","v":""},{"$f":"IFERROR(VLOOKUP(Table20[[#This Row],[Demand country]],_MarketScanning_2!$C$3:$F$13,4,FALSE),\"\")","v":10}]
[null,null,"EGY",{"$f":"VLOOKUP(Table10[[#This Row],[Country code]],region[],2,FALSE)","v":"Egypt"},{"$f":"SUMIFS(output[value],output[source],Table10[[#This Row],[Country code]],output[variable],\"<>LC\")","v":133.87713038818268},{"$f":"IFERROR(VLOOKUP(\"DST-S-D,,,\"&Table10[[#This Row],[Country code]]&\",\"&sel_country_code,data[],7,FALSE),\"\")","v":6629.18},{"$f":"IFERROR(VLOOKUP(\"DST-S-DP,,,\"&Table10[[#This Row],[Country code]]&\",\"&sel_country_code,data[],7,FALSE),\"\")","v":5000},{"$f":"IFERROR(VLOOKUP(Table10[[#This Row],[Country code]],b_context_supply!$C$17:$E$50,3,FALSE),\"\")","v":123653.93022264706},null,"EU","EU",{"$f":"VLOOKUP(Table20[[#This Row],[Demand country]],_MarketScanning_2!$C$3:$F$13,2,FALSE)","v":1104.08},{"$f":"IFERROR(VLOOKUP(Table20[[#This Row],[Demand country]],_MarketScanning_2!$C$3:$F$13,3,FALSE),\"\")","v":2000},{"$f":"IFERROR(VLOOKUP(Table20[[#This Row],[Demand country]],_MarketScanning_2!$C$3:$F$13,4,FALSE),\"\")","v":20}]
[null,null,"IND",{"$f":"VLOOKUP(Table10[[#This Row],[Country code]],region[],2,FALSE)","v":"India"},{"$f":"SUMIFS(output[value],output[source],Table10[[#This Row],[Country code]],output[variable],\"<>LC\")","v":159.29843672216774},{"$f":"IFERROR(VLOOKUP(\"DST-S-D,,,\"&Table10[[#This Row],[Country code]]&\",\"&sel_country_code,data[],7,FALSE),\"\")","v":12687.7},{"$f":"IFERROR(VLOOKUP(\"DST-S-DP,,,\"&Table10[[#This Row],[Country code]]&\",\"&sel_country_code,data[],7,FALSE),\"\")","v":""},{"$f":"IFERROR(VLOOKUP(Table10[[#This Row],[Country code]],b_context_supply!$C$17:$E$50,3,FALSE),\"\")","v":34654.604480881593}]
[null,null,"IDN",{"$f":"VLOOKUP(Table10[[#This Row],[Country code]],region[],2,FALSE)","v":"Indonesia"},{"$f":"SUMIFS(output[value],output[source],Table10[[#This Row],[Country code]],output[variable],\"<>LC\")","v":376.93770635903257},{"$f":"IFERROR(VLOOKUP(\"DST-S-D,,,\"&Table10[[#This Row],[Country code]]&\",\"&sel_country_code,data[],7,FALSE),\"\")","v":16946.8},{"$f":"IFERROR(VLOOKUP(\"DST-S-DP,,,\"&Table10[[#This Row],[Country code]]&\",\"&sel_country_code,data[],7,FALSE),\"\")","v":""},{"$f":"IFERROR(VLOOKUP(Table10[[#This Row],[Country code]],b_context_supply!$C$17:$E$50,3,FALSE),\"\")","v":13804.443716258276},null,"Data sources    ",null,"See data documentation,  7.4 Transport distances\n\nFor EU, shipping distance to France is used","See data documentation,  7.4 Transport distances\n\nFor EU, pipeline distance to France is used","Demands as mentioned in  country-specific hydrogen strategies. Further in formation on datapoints are documented in  b_context_demand"]
[null,null,"JOR",{"$f":"VLOOKUP(Table10[[#This Row],[Country code]],region[],2,FALSE)","v":"Jordan"},{"$f":"SUMIFS(output[value],output[source],Table10[[#This Row],[Country code]],output[variable],\"<>LC\")","v":194.24132172636968},{"$f":"IFERROR(VLOOKUP(\"DST-S-D,,,\"&Table10[[#This Row],[Country code]]&\",\"&sel_country_code,data[],7,FALSE),\"\")","v":7488.73},{"$f":"IFERROR(VLOOKUP(\"DST-S-DP,,,\"&Table10[[#This Row],[Country code]]&\",\"&sel_country_code,data[],7,FALSE),\"\")","v":3500},{"$f":"IFERROR(VLOOKUP(Table10[[#This Row],[Country code]],b_context_supply!$C$17:$E$50,3,FALSE),\"\")","v":0},"**"]
[null,null,"KAZ",{"$f":"VLOOKUP(Table10[[#This Row],[Country code]],region[],2,FALSE)","v":"Kazakhstan"},{"$f":"SUMIFS(output[value],output[source],Table10[[#This Row],[Country code]],output[variable],\"<>LC\")","v":91.830334871175836},{"$f":"IFERROR(VLOOKUP(\"DST-S-D,,,\"&Table10[[#This Row],[Country code]]&\",\"&sel_country_code,data[],7,FALSE),\"\")","v":6601.17},{"$f":"IFERROR(VLOOKUP(\"DST-S-DP,,,\"&Table10[[#This Row],[Country code]]&\",\"&sel_country_code,data[],7,FALSE),\"\")","v":3500},{"$f":"IFERROR(VLOOKUP(Table10[[#This Row],[Country code]],b_context_supply!$C$17:$E$50,3,FALSE),\"\")","v":176309.43933751195}]
[null,null,"KEN",{"$f":"VLOOKUP(Table10[[#This Row],[Country code]],region[],2,FALSE)","v":"Kenya"},{"$f":"SUMIFS(output[value],output[source],Table10[[#This Row],[Country code]],output[variable],\"<>LC\")","v":277.60122824858774},{"$f":"IFERROR(VLOOKUP(\"DST-S-D,,,\"&Table10[[#This Row],[Country code]]&\",\"&sel_country_code,data[],7,FALSE),\"\")","v":12814.1},{"$f":"IFERROR(VLOOKUP(\"DST-S-DP,,,\"&Table10[[#This Row],[Country code]]&\",\"&sel_country_code,data[],7,FALSE),\"\")","v":""},{"$f":"IFERROR(VLOOKUP(Table10[[#This Row],[Country code]],b_context_supply!$C$17:$E$50,3,FALSE),\"\")","v":50841.820075831536},"*"]
[null,null,"MRT",{"$f":"VLOOKUP(Table10[[#This Row],[Country code]],region[],2,FALSE)","v":"Mauritania"},{"$f":"SUMIFS(output[value],output[source],Table10[[#This Row],[Country code]],output[variable],\"<>LC\")","v":111.56147860270524},{"$f":"IFERROR(VLOOKUP(\"DST-S-D,,,\"&Table10[[#This Row],[Country code]]&\",\"&sel_country_code,data[],7,FALSE),\"\")","v":4171.75},{"$f":"IFERROR(VLOOKUP(\"DST-S-DP,,,\"&Table10[[#This Row],[Country code]]&\",\"&sel_country_code,data[],7,FALSE),\"\")","v":5000},{"$f":"IFERROR(VLOOKUP(Table10[[#This Row],[Country code]],b_context_supply!$C$17:$E$50,3,FALSE),\"\")","v":27966.147643374599},"*"]
[null,null,"MEX",{"$f":"VLOOKUP(Table10[[#This Row],[Country code]],region[],2,FALSE)","v":"Mexico"},{"$f":"SUMIFS(output[value],output[source],Table10[[#This Row],[Country code]],output[variable],\"<>LC\")","v":193.69786950437168},{"$f":"IFERROR(VLOOKUP(\"DST-S-D,,,\"&Table10[[#This Row],[Country code]]&\",\"&sel_country_code,data[],7,FALSE),\"\")","v":10256.299999999999},{"$f":"IFERROR(VLOOKUP(\"DST-S-DP,,,\"&Table10[[#This Row],[Country code]]&\",\"&sel_country_code,data[],7,FALSE),\"\")","v":""},{"$f":"IFERROR(VLOOKUP(Table10[[#This Row],[Country code]],b_context_supply!$C$17:$E$50,3,FALSE),\"\")","v":143817.34529670601}]
[null,null,"MAR",{"$f":"VLOOKUP(Table10[[#This Row],[Country code]],region[],2,FALSE)","v":"Morocco"},{"$f":"SUMIFS(output[value],output[source],Table10[[#This Row],[Country code]],output[variable],\"<>LC\")","v":171.70333473886961},{"$f":"IFERROR(VLOOKUP(\"DST-S-D,,,\"&Table10[[#This Row],[Country code]]&\",\"&sel_country_code,data[],7,FALSE),\"\")","v":2668.15},{"$f":"IFERROR(VLOOKUP(\"DST-S-DP,,,\"&Table10[[#This Row],[Country code]]&\",\"&sel_country_code,data[],7,FALSE),\"\")","v":2500},{"$f":"IFERROR(VLOOKUP(Table10[[#This Row],[Country code]],b_context_supply!$C$17:$E$50,3,FALSE),\"\")","v":42147.136742444643}]
[null,null,"NAM",{"$f":"VLOOKUP(Table10[[#This Row],[Country code]],region[],2,FALSE)","v":"Namibia"},{"$f":"SUMIFS(output[value],output[source],Table10[[#This Row],[Country code]],output[variable],\"<>LC\")","v":157.96363381355243},{"$f":"IFERROR(VLOOKUP(\"DST-S-D,,,\"&Table10[[#This Row],[Country code]]&\",\"&sel_country_code,data[],7,FALSE),\"\")","v":10723.8},{"$f":"IFERROR(VLOOKUP(\"DST-S-DP,,,\"&Table10[[#This Row],[Country code]]&\",\"&sel_country_code,data[],7,FALSE),\"\")","v":""},{"$f":"IFERROR(VLOOKUP(Table10[[#This Row],[Country code]],b_context_supply!$C$17:$E$50,3,FALSE),\"\")","v":99636.883371308024},"*"]
[null,null,"NOR",{"$f":"VLOOKUP(Table10[[#This Row],[Country code]],region[],2,FALSE)","v":"Norway"},{"$f":"SUMIFS(output[value],output[source],Table10[[#This Row],[Country code]],output[variable],\"<>LC\")","v":53.626255940121489},{"$f":"IFERROR(VLOOKUP(\"DST-S-D,,,\"&Table10[[#This Row],[Country code]]&\",\"&sel_country_code,data[],7,FALSE),\"\")","v":605.048},{"$f":"IFERROR(VLOOKUP(\"DST-S-DP,,,\"&Table10[[#This Row],[Country code]]&\",\"&sel_country_code,data[],7,FALSE),\"\")","v":500},{"$f":"IFERROR(VLOOKUP(Table10[[#This Row],[Country code]],b_context_supply!$C$17:$E$50,3,FALSE),\"\")","v":5256.6903781170731}]
[null,null,"PER",{"$f":"VLOOKUP(Table10[[#This Row],[Country code]],region[],2,FALSE)","v":"Peru"},{"$f":"SUMIFS(output[value],output[source],Table10[[#This Row],[Country code]],output[variable],\"<>LC\")","v":252.32227447130248},{"$f":"IFERROR(VLOOKUP(\"DST-S-D,,,\"&Table10[[#This Row],[Country code]]&\",\"&sel_country_code,data[],7,FALSE),\"\")","v":12282.46},{"$f":"IFERROR(VLOOKUP(\"DST-S-DP,,,\"&Table10[[#This Row],[Country code]]&\",\"&sel_country_code,data[],7,FALSE),\"\")","v":""},{"$f":"IFERROR(VLOOKUP(Table10[[#This Row],[Country code]],b_context_supply!$C$17:$E$50,3,FALSE),\"\")","v":29291.660047894893}]
[null,null,"PRT",{"$f":"VLOOKUP(Table10[[#This Row],[Country code]],region[],2,FALSE)","v":"Portugal"},{"$f":"SUMIFS(output[value],output[source],Table10[[#This Row],[Country code]],output[variable],\"<>LC\")","v":77.060310315271224},{"$f":"IFERROR(VLOOKUP(\"DST-S-D,,,\"&Table10[[#This Row],[Country code]]&\",\"&sel_country_code,data[],7,FALSE),\"\")","v":2479.8200000000002},{"$f":"IFERROR(VLOOKUP(\"DST-S-DP,,,\"&Table10[[#This Row],[Country code]]&\",\"&sel_country_code,data[],7,FALSE),\"\")","v":2000},{"$f":"IFERROR(VLOOKUP(Table10[[#This Row],[Country code]],b_context_supply!$C$17:$E$50,3,FALSE),\"\")","v":7559.5180291508068}]
[null,null,"RUS",{"$f":"VLOOKUP(Table10[[#This Row],[Country code]],region[],2,FALSE)","v":"Russia"},{"$f":"SUMIFS(output[value],output[source],Table10[[#This Row],[Country code]],output[variable],\"<>LC\")","v":100.93018770415665},{"$f":"IFERROR(VLOOKUP(\"DST-S-D,,,\"&Table10[[#This Row],[Country code]]&\",\"&sel_country_code,data[],7,FALSE),\"\")","v":6601.17},{"$f":"IFERROR(VLOOKUP(\"DST-S-DP,,,\"&Table10[[#This Row],[Country code]]&\",\"&sel_country_code,data[],7,FALSE),\"\")","v":1000},{"$f":"IFERROR(VLOOKUP(Table10[[#This Row],[Country code]],b_context_supply!$C$17:$E$50,3,FALSE),\"\")","v":192895.02833307866}]
[null,null,"SAU",{"$f":"VLOOKUP(Table10[[#This Row],[Country code]],region[],2,FALSE)","v":"Saudi Arabia"},{"$f":"SUMIFS(output[value],output[source],Table10[[#This Row],[Country code]],output[variable],\"<>LC\")","v":119.16928161703176},{"$f":"IFERROR(VLOOKUP(\"DST-S-D,,,\"&Table10[[#This Row],[Country code]]&\",\"&sel_country_code,data[],7,FALSE),\"\")","v":8624.76},{"$f":"IFERROR(VLOOKUP(\"DST-S-DP,,,\"&Table10[[#This Row],[Country code]]&\",\"&sel_country_code,data[],7,FALSE),\"\")","v":4500},{"$f":"IFERROR(VLOOKUP(Table10[[#This Row],[Country code]],b_context_supply!$C$17:$E$50,3,FALSE),\"\")","v":151622.74756959747}]
[null,null,"ZAF",{"$f":"VLOOKUP(Table10[[#This Row],[Country code]],region[],2,FALSE)","v":"South Africa"},{"$f":"SUMIFS(output[value],output[source],Table10[[#This Row],[Country code]],output[variable],\"<>LC\")","v":230.5540013769959},{"$f":"IFERROR(VLOOKUP(\"DST-S-D,,,\"&Table10[[#This Row],[Country code]]&\",\"&sel_country_code,data[],7,FALSE),\"\")","v":11789.832},{"$f":"IFERROR(VLOOKUP(\"DST-S-DP,,,\"&Table10[[#This Row],[Country code]]&\",\"&sel_country_code,data[],7,FALSE),\"\")","v":""},{"$f":"IFERROR(VLOOKUP(Table10[[#This Row],[Country code]],b_context_supply!$C$17:$E$50,3,FALSE),\"\")","v":53182.742412075226}]
[null,null,"ESP",{"$f":"VLOOKUP(Table10[[#This Row],[Country code]],region[],2,FALSE)","v":"Spain"},{"$f":"SUMIFS(output[value],output[source],Table10[[#This Row],[Country code]],output[variable],\"<>LC\")","v":59.513601301352438},{"$f":"IFERROR(VLOOKUP(\"DST-S-D,,,\"&Table10[[#This Row],[Country code]]&\",\"&sel_country_code,data[],7,FALSE),\"\")","v":2697.76},{"$f":"IFERROR(VLOOKUP(\"DST-S-DP,,,\"&Table10[[#This Row],[Country code]]&\",\"&sel_country_code,data[],7,FALSE),\"\")","v":1500},{"$f":"IFERROR(VLOOKUP(Table10[[#This Row],[Country code]],b_context_supply!$C$17:$E$50,3,FALSE),\"\")","v":35393.799778929817}]
[null,null,"SWE",{"$f":"VLOOKUP(Table10[[#This Row],[Country code]],region[],2,FALSE)","v":"Sweden"},{"$f":"SUMIFS(output[value],output[source],Table10[[#This Row],[Country code]],output[variable],\"<>LC\")","v":80.414143703503967},{"$f":"IFERROR(VLOOKUP(\"DST-S-D,,,\"&Table10[[#This Row],[Country code]]&\",\"&sel_country_code,data[],7,FALSE),\"\")","v":602.49},{"$f":"IFERROR(VLOOKUP(\"DST-S-DP,,,\"&Table10[[#This Row],[Country code]]&\",\"&sel_country_code,data[],7,FALSE),\"\")","v":1000},{"$f":"IFERROR(VLOOKUP(Table10[[#This Row],[Country code]],b_context_supply!$C$17:$E$50,3,FALSE),\"\")","v":2375.3911489586781}]
[null,null,"THA",{"$f":"VLOOKUP(Table10[[#This Row],[Country code]],region[],2,FALSE)","v":"Thailand"},{"$f":"SUMIFS(output[value],output[source],Table10[[#This Row],[Country code]],output[variable],\"<>LC\")","v":254.89598869988527},{"$f":"IFERROR(VLOOKUP(\"DST-S-D,,,\"&Table10[[#This Row],[Country code]]&\",\"&sel_country_code,data[],7,FALSE),\"\")","v":18076.400000000001},{"$f":"IFERROR(VLOOKUP(\"DST-S-DP,,,\"&Table10[[#This Row],[Country code]]&\",\"&sel_country_code,data[],7,FALSE),\"\")","v":""},{"$f":"IFERROR(VLOOKUP(Table10[[#This Row],[Country code]],b_context_supply!$C$17:$E$50,3,FALSE),\"\")","v":6534.4815097404735}]
[null,null,"TUN",{"$f":"VLOOKUP(Table10[[#This Row],[Country code]],region[],2,FALSE)","v":"Tunisia"},{"$f":"SUMIFS(output[value],output[source],Table10[[#This Row],[Country code]],output[variable],\"<>LC\")","v":128.20271767612996},{"$f":"IFERROR(VLOOKUP(\"DST-S-D,,,\"&Table10[[#This Row],[Country code]]&\",\"&sel_country_code,data[],7,FALSE),\"\")","v":4114.37},{"$f":"IFERROR(VLOOKUP(\"DST-S-DP,,,\"&Table10[[#This Row],[Country code]]&\",\"&sel_country_code,data[],7,FALSE),\"\")","v":2000},{"$f":"IFERROR(VLOOKUP(Table10[[#This Row],[Country code]],b_context_supply!$C$17:$E$50,3,FALSE),\"\")","v":17975.881159055345}]
[null,null,"UKR",{"$f":"VLOOKUP(Table10[[#This Row],[Country code]],region[],2,FALSE)","v":"Ukraine"},{"$f":"SUMIFS(output[value],output[source],Table10[[#This Row],[Country code]],output[variable],\"<>LC\")","v":94.833048403803105},{"$f":"IFERROR(VLOOKUP(\"DST-S-D,,,\"&Table10[[#This Row],[Country code]]&\",\"&sel_country_code,data[],7,FALSE),\"\")","v":6650.36},{"$f":"IFERROR(VLOOKUP(\"DST-S-DP,,,\"&Table10[[#This Row],[Country code]]&\",\"&sel_country_code,data[],7,FALSE),\"\")","v":1500},{"$f":"IFERROR(VLOOKUP(Table10[[#This Row],[Country code]],b_context_supply!$C$17:$E$50,3,FALSE),\"\")","v":9001.3629494330653}]
[null,null,"ARE",{"$f":"VLOOKUP(Table10[[#This Row],[Country code]],region[],2,FALSE)","v":"United Arab Emirates"},{"$f":"SUMIFS(output[value],output[source],Table10[[#This Row],[Country code]],output[variable],\"<>LC\")","v":144.33274634051406},{"$f":"IFERROR(VLOOKUP(\"DST-S-D,,,\"&Table10[[#This Row],[Country code]]&\",\"&sel_country_code,data[],7,FALSE),\"\")","v":12441.9},{"$f":"IFERROR(VLOOKUP(\"DST-S-DP,,,\"&Table10[[#This Row],[Country code]]&\",\"&sel_country_code,data[],7,FALSE),\"\")","v":5500},{"$f":"IFERROR(VLOOKUP(Table10[[#This Row],[Country code]],b_context_supply!$C$17:$E$50,3,FALSE),\"\")","v":1234.3228021367959}]
[null,null,"URY",{"$f":"VLOOKUP(Table10[[#This Row],[Country code]],region[],2,FALSE)","v":"Uruguay"},{"$f":"SUMIFS(output[value],output[source],Table10[[#This Row],[Country code]],output[variable],\"<>LC\")","v":203.20420289679814},{"$f":"IFERROR(VLOOKUP(\"DST-S-D,,,\"&Table10[[#This Row],[Country code]]&\",\"&sel_country_code,data[],7,FALSE),\"\")","v":12547.2},{"$f":"IFERROR(VLOOKUP(\"DST-S-DP,,,\"&Table10[[#This Row],[Country code]]&\",\"&sel_country_code,data[],7,FALSE),\"\")","v":""},{"$f":"IFERROR(VLOOKUP(Table10[[#This Row],[Country code]],b_context_supply!$C$17:$E$50,3,FALSE),\"\")","v":378.04871500147641},"*"]
[null,null,"USA",{"$f":"VLOOKUP(Table10[[#This Row],[Country code]],region[],2,FALSE)","v":"USA"},{"$f":"SUMIFS(output[value],output[source],Table10[[#This Row],[Country code]],output[variable],\"<>LC\")","v":146.73893710025141},{"$f":"IFERROR(VLOOKUP(\"DST-S-D,,,\"&Table10[[#This Row],[Country code]]&\",\"&sel_country_code,data[],7,FALSE),\"\")","v":8323.27},{"$f":"IFERROR(VLOOKUP(\"DST-S-DP,,,\"&Table10[[#This Row],[Country code]]&\",\"&sel_country_code,data[],7,FALSE),\"\")","v":""},{"$f":"IFERROR(VLOOKUP(Table10[[#This Row],[Country code]],b_context_supply!$C$17:$E$50,3,FALSE),\"\")","v":544110.99319185445}]
[null,null,"VNM",{"$f":"VLOOKUP(Table10[[#This Row],[Country code]],region[],2,FALSE)","v":"Vietnam"},{"$f":"SUMIFS(output[value],output[source],Table10[[#This Row],[Country code]],output[variable],\"<>LC\")","v":253.84687465348247},{"$f":"IFERROR(VLOOKUP(\"DST-S-D,,,\"&Table10[[#This Row],[Country code]]&\",\"&sel_country_code,data[],7,FALSE),\"\")","v":18266.27},{"$f":"IFERROR(VLOOKUP(\"DST-S-DP,,,\"&Table10[[#This Row],[Country code]]&\",\"&sel_country_code,data[],7,FALSE),\"\")","v":""},{"$f":"IFERROR(VLOOKUP(Table10[[#This Row],[Country code]],b_context_supply!$C$17:$E$50,3,FALSE),\"\")","v":8842.3521510548053}]
[null,null,{"$f":"sel_region_code","v":"MAR"},{"$f":"VLOOKUP(Table10[[#This Row],[Country code]],region[],2,FALSE)","v":"Morocco"},{"$f":"SUMIFS(output[value],output[source],Table10[[#This Row],[Country code]],output[variable],\"<>LC\")","v":171.70333473886961},{"$f":"IFERROR(VLOOKUP(\"DST-S-D,,,\"&Table10[[#This Row],[Country code]]&\",\"&sel_country_code,data[],7,FALSE),\"\")","v":2668.15},{"$f":"IFERROR(VLOOKUP(\"DST-S-DP,,,\"&Table10[[#This Row],[Country code]]&\",\"&sel_country_code,data[],7,FALSE),\"\")","v":2500},{"$f":"IFERROR(VLOOKUP(Table10[[#This Row],[Country code]],b_context_supply!$C$17:$E$50,3,FALSE),\"\")","v":42147.136742444643}]
[]
[null,null,null,"Data sources    ","Own calculuation","See data documentation,  7.4 Transport distances","See data documentation,  7.4 Transport distances","\nEWI (2021) | Wasserstoff-Kosten-Tool "]
[null,null,null,null,null,null,null,"* Due to data availiability, data points for these countries have been calculated derived from the"]
[null,null,null,null,null,null,null,"EWI Global PtX Cost Tool (2023) "]
[null,null,null,null,null,null,null,"** data not available"]

{"sheet":"_MarketScanning_2","index":21,"n_rows":25,"n_cols":12,"rows_kept":25,"cut":false,"hidden":true,"merged":[]}
[null,null,"View country specific data"]
[]
["Country code",null,"Source country","shipping distance (km)","pipeline distances (km)","H2 Demand in 2030 (Mt/a)","shipping distance (km)","pipeline distances (km)","H2 Demand in 2030 (Mt/a)","shipping distance (km)","pipeline distances (km)","H2 Demand in 2030 (Mt/a)"]
["CHN","CHN",{"$f":"VLOOKUP($A4,country[],2,FALSE)","v":"China"},{"$f":"IFERROR(VLOOKUP(\"DST-S-D,,,\"&sel_region_code&\",\"&$A4,data[],7,FALSE),NA())","v":16917.900000000001},{"$f":"IFERROR(VLOOKUP(\"DST-S-DP,,,\"&sel_region_code&\",\"&$A4,data[],7,FALSE),NA())","v":{"$error":"#N/A"}},35,{"$f":"IF($A4=sel_country_code,NA(),D4)","v":16917.900000000001},{"$f":"IF($A4=sel_country_code,NA(),E4)","v":{"$error":"#N/A"}},{"$f":"IF($A4=sel_country_code,NA(),F4)","v":35},{"$f":"IF($A4=sel_country_code,D4,NA())","v":{"$error":"#N/A"}},{"$f":"IF($A4=sel_country_code,E4,NA())","v":{"$error":"#N/A"}},{"$f":"IF($A4=sel_country_code,F4,NA())","v":{"$error":"#N/A"}}]
["DEU","DEU",{"$f":"VLOOKUP($A5,country[],2,FALSE)","v":"Germany"},{"$f":"IFERROR(VLOOKUP(\"DST-S-D,,,\"&sel_region_code&\",\"&$A5,data[],7,FALSE),NA())","v":2668.15},{"$f":"IFERROR(VLOOKUP(\"DST-S-DP,,,\"&sel_region_code&\",\"&$A5,data[],7,FALSE),NA())","v":2500},{"$f":"AVERAGE(2.8,3.3)","v":3.05},{"$f":"IF($A5=sel_country_code,NA(),D5)","v":{"$error":"#N/A"}},{"$f":"IF($A5=sel_country_code,NA(),E5)","v":{"$error":"#N/A"}},{"$f":"IF($A5=sel_country_code,NA(),F5)","v":{"$error":"#N/A"}},{"$f":"IF($A5=sel_country_code,D5,NA())","v":2668.15},{"$f":"IF($A5=sel_country_code,E5,NA())","v":2500},{"$f":"IF($A5=sel_country_code,F5,NA())","v":3.05}]
["ESP","ESP",{"$f":"VLOOKUP($A6,country[],2,FALSE)","v":"Spain"},{"$f":"IFERROR(VLOOKUP(\"DST-S-D,,,\"&sel_region_code&\",\"&$A6,data[],7,FALSE),NA())","v":38.352499999999999},{"$f":"IFERROR(VLOOKUP(\"DST-S-DP,,,\"&sel_region_code&\",\"&$A6,data[],7,FALSE),NA())","v":250},{"$f":"NA()","v":{"$error":"#N/A"}},{"$f":"IF($A6=sel_country_code,NA(),D6)","v":38.352499999999999},{"$f":"IF($A6=sel_country_code,NA(),E6)","v":250},{"$f":"IF($A6=sel_country_code,NA(),F6)","v":{"$error":"#N/A"}},{"$f":"IF($A6=sel_country_code,D6,NA())","v":{"$error":"#N/A"}},{"$f":"IF($A6=sel_country_code,E6,NA())","v":{"$error":"#N/A"}},{"$f":"IF($A6=sel_country_code,F6,NA())","v":{"$error":"#N/A"}}]
["FRA","FRA",{"$f":"VLOOKUP($A7,country[],2,FALSE)","v":"France"},{"$f":"IFERROR(VLOOKUP(\"DST-S-D,,,\"&sel_region_code&\",\"&$A7,data[],7,FALSE),NA())","v":1104.08},{"$f":"IFERROR(VLOOKUP(\"DST-S-DP,,,\"&sel_region_code&\",\"&$A7,data[],7,FALSE),NA())","v":2000},{"$f":"NA()","v":{"$error":"#N/A"}},{"$f":"IF($A7=sel_country_code,NA(),D7)","v":1104.08},{"$f":"IF($A7=sel_country_code,NA(),E7)","v":2000},{"$f":"IF($A7=sel_country_code,NA(),F7)","v":{"$error":"#N/A"}},{"$f":"IF($A7=sel_country_code,D7,NA())","v":{"$error":"#N/A"}},{"$f":"IF($A7=sel_country_code,E7,NA())","v":{"$error":"#N/A"}},{"$f":"IF($A7=sel_country_code,F7,NA())","v":{"$error":"#N/A"}}]
["IND","IND",{"$f":"VLOOKUP($A8,country[],2,FALSE)","v":"India"},{"$f":"IFERROR(VLOOKUP(\"DST-S-D,,,\"&sel_region_code&\",\"&$A8,data[],7,FALSE),NA())","v":9333.25},{"$f":"IFERROR(VLOOKUP(\"DST-S-DP,,,\"&sel_region_code&\",\"&$A8,data[],7,FALSE),NA())","v":{"$error":"#N/A"}},11,{"$f":"IF($A8=sel_country_code,NA(),D8)","v":9333.25},{"$f":"IF($A8=sel_country_code,NA(),E8)","v":{"$error":"#N/A"}},{"$f":"IF($A8=sel_country_code,NA(),F8)","v":11},{"$f":"IF($A8=sel_country_code,D8,NA())","v":{"$error":"#N/A"}},{"$f":"IF($A8=sel_country_code,E8,NA())","v":{"$error":"#N/A"}},{"$f":"IF($A8=sel_country_code,F8,NA())","v":{"$error":"#N/A"}}]
["JPN","JPN",{"$f":"VLOOKUP($A9,country[],2,FALSE)","v":"Japan"},{"$f":"IFERROR(VLOOKUP(\"DST-S-D,,,\"&sel_region_code&\",\"&$A9,data[],7,FALSE),NA())","v":17892.3},{"$f":"IFERROR(VLOOKUP(\"DST-S-DP,,,\"&sel_region_code&\",\"&$A9,data[],7,FALSE),NA())","v":{"$error":"#N/A"}},3,{"$f":"IF($A9=sel_country_code,NA(),D9)","v":17892.3},{"$f":"IF($A9=sel_country_code,NA(),E9)","v":{"$error":"#N/A"}},{"$f":"IF($A9=sel_country_code,NA(),F9)","v":3},{"$f":"IF($A9=sel_country_code,D9,NA())","v":{"$error":"#N/A"}},{"$f":"IF($A9=sel_country_code,E9,NA())","v":{"$error":"#N/A"}},{"$f":"IF($A9=sel_country_code,F9,NA())","v":{"$error":"#N/A"}}]
["KOR","KOR",{"$f":"VLOOKUP($A10,country[],2,FALSE)","v":"South Korea"},{"$f":"IFERROR(VLOOKUP(\"DST-S-D,,,\"&sel_region_code&\",\"&$A10,data[],7,FALSE),NA())","v":17588.7},{"$f":"IFERROR(VLOOKUP(\"DST-S-DP,,,\"&sel_region_code&\",\"&$A10,data[],7,FALSE),NA())","v":{"$error":"#N/A"}},2,{"$f":"IF($A10=sel_country_code,NA(),D10)","v":17588.7},{"$f":"IF($A10=sel_country_code,NA(),E10)","v":{"$error":"#N/A"}},{"$f":"IF($A10=sel_country_code,NA(),F10)","v":2},{"$f":"IF($A10=sel_country_code,D10,NA())","v":{"$error":"#N/A"}},{"$f":"IF($A10=sel_country_code,E10,NA())","v":{"$error":"#N/A"}},{"$f":"IF($A10=sel_country_code,F10,NA())","v":{"$error":"#N/A"}}]
["NLD","NLD",{"$f":"VLOOKUP($A11,country[],2,FALSE)","v":"Netherlands"},{"$f":"IFERROR(VLOOKUP(\"DST-S-D,,,\"&sel_region_code&\",\"&$A11,data[],7,FALSE),NA())","v":2354.6799999999998},{"$f":"IFERROR(VLOOKUP(\"DST-S-DP,,,\"&sel_region_code&\",\"&$A11,data[],7,FALSE),NA())","v":2500},{"$f":"NA()","v":{"$error":"#N/A"}},{"$f":"IF($A11=sel_country_code,NA(),D11)","v":2354.6799999999998},{"$f":"IF($A11=sel_country_code,NA(),E11)","v":2500},{"$f":"IF($A11=sel_country_code,NA(),F11)","v":{"$error":"#N/A"}},{"$f":"IF($A11=sel_country_code,D11,NA())","v":{"$error":"#N/A"}},{"$f":"IF($A11=sel_country_code,E11,NA())","v":{"$error":"#N/A"}},{"$f":"IF($A11=sel_country_code,F11,NA())","v":{"$error":"#N/A"}}]
["USA","USA",{"$f":"VLOOKUP($A12,country[],2,FALSE)","v":"USA"},{"$f":"IFERROR(VLOOKUP(\"DST-S-D,,,\"&sel_region_code&\",\"&$A12,data[],7,FALSE),NA())","v":8558.2999999999993},{"$f":"IFERROR(VLOOKUP(\"DST-S-DP,,,\"&sel_region_code&\",\"&$A12,data[],7,FALSE),NA())","v":{"$error":"#N/A"}},10,{"$f":"IF($A12=sel_country_code,NA(),D12)","v":8558.2999999999993},{"$f":"IF($A12=sel_country_code,NA(),E12)","v":{"$error":"#N/A"}},{"$f":"IF($A12=sel_country_code,NA(),F12)","v":10},{"$f":"IF($A12=sel_country_code,D12,NA())","v":{"$error":"#N/A"}},{"$f":"IF($A12=sel_country_code,E12,NA())","v":{"$error":"#N/A"}},{"$f":"IF($A12=sel_country_code,F12,NA())","v":{"$error":"#N/A"}}]
["FRA","EU","EU",{"$f":"IFERROR(VLOOKUP(\"DST-S-D,,,\"&sel_region_code&\",\"&$A13,data[],7,FALSE),NA())","v":1104.08},{"$f":"IFERROR(VLOOKUP(\"DST-S-DP,,,\"&sel_region_code&\",\"&$A13,data[],7,FALSE),NA())","v":2000},20,{"$f":"IF($A13=sel_country_code,NA(),D13)","v":1104.08},{"$f":"IF($A13=sel_country_code,NA(),E13)","v":2000},{"$f":"IF($A13=sel_country_code,NA(),F13)","v":20},{"$f":"IF($A13=sel_country_code,D13,NA())","v":{"$error":"#N/A"}},{"$f":"IF($A13=sel_country_code,E13,NA())","v":{"$error":"#N/A"}},{"$f":"IF($A13=sel_country_code,F13,NA())","v":{"$error":"#N/A"}}]
[]
[]
[null,null,"Netherlands",null,null,null,"n/a"]
[null,null,"Spain",null,null,null,"n/a"]
[null,null,"France",null,null,null,"n/a"]
[null,null,"Germany",null,null,null,"2,8-3,3 Mt"]
[null,null,"EU",null,null,null,"20 Mt"]
[null,null,"Japan",null,null,null,"3 Mt"]
[null,null,"South Korea",null,null,null,"2 Mt"]
[null,null,"China",null,null,null,"35 Mt"]
[null,null,"India",null,null,null,"11 Mt"]
[null,null,"USA",null,null,null,"10 Mt"]

{"sheet":"b_CostComponents","index":22,"n_rows":33,"n_cols":13,"rows_kept":33,"cut":false,"hidden":false,"merged":[[20,3,20,12],[1,11,1,12],[4,1,10,7],[2,11,2,12]]}
[]
[null,"COST COMPONENTS",null,null,null,null,null,null,null,null,null,"YOUR SETTINGS"]
[null,null,null,null,null,null,null,null,null,null,null,"can be re-adjusted on the dashboard"]
[null,"Identify major cost drivers for your country and your main competitors",null,null,null,null,null,null,null,null,null,"Supply country:",{"$f":"sel_region_name","v":"Morocco"}]
[null,"The diagram on this sheet shows the total delivered costs for your country (on the left hand side). \nNext to it, the ten countries with the lowest total delivery cost for your chosen options are also displayed for comparison. \n\nCosts are disaggregated by process chain components: electricity generation, electrolysis, derivate production, provision of water, carbon and heat, as well as transportation. ",null,null,null,null,null,null,null,null,null,"Demand country:",{"$f":"sel_country_name","v":"Germany"}]
[null,null,null,null,null,null,null,null,null,null,null,"RE generation:",{"$f":"sel_res_gen_name","v":"Wind-PV-Hybrid"}]
[null,null,null,null,null,null,null,null,null,null,null,"Process chain:",{"$f":"sel_chain","v":"Hydrogen (AEL)"}]
[null,null,null,null,null,null,null,null,null,null,null,"CO2 source:",{"$f":"sel_secproc_co2","v":"DAC"}]
[null,null,null,null,null,null,null,null,null,null,null,"Water source:",{"$f":"sel_secproc_water","v":"Water desalination"}]
[null,null,null,null,null,null,null,null,null,null,null,"Transport mode:",{"$f":"sel_transport","v":"Ship"}]
[null,null,null,null,null,null,null,null,null,null,null,"Scenario:",{"$f":"sel_scenario","v":"2030 (medium)"}]
[]
[]
[null,{"$f":"\"Total costs of delivered \"&sel_chain&\"  to \"&sel_country_name&\" (\"&sel_region_name&\" and cheapest competitors using hybrid RES-e plants in best location)\"","v":"Total costs of delivered Hydrogen (AEL)  to Germany (Morocco and cheapest competitors using hybrid RES-e plants in best location)"}]
[null,{"$f":"\"Total costs of delivered \"&sel_chain&\" \n from \"&sel_region_name&\" to \"&sel_country_name","v":"Total costs of delivered Hydrogen (AEL) \n from Morocco to Germany"}]
[]
[]
[]
[null,null,null,1,2,3,4,5,6,7,8,9,10]
[null,null,{"$f":"sel_region_code","v":"MAR"},{"$f":"VLOOKUP(D$19,regions_by_cost,2,FALSE)","v":"DNK"},"NOR","ESP","PRT","SWE","KAZ","UKR","RUS","MRT","SAU"]
[null,{"$f":"\"Total costs (\"&selOutputUnit2&\")\"","v":"Total costs (USD/MWh H2)"},"Own country","Other supply countries (sorted by total costs ascending)"]
[null,"Process chain component",{"$f":"VLOOKUP(C20,region[],2,FALSE)","v":"Morocco"},{"$f":"VLOOKUP(D20,region[],2,FALSE)","v":"Denmark"},{"$f":"VLOOKUP(E20,region[],2,FALSE)","v":"Norway"},{"$f":"VLOOKUP(F20,region[],2,FALSE)","v":"Spain"},{"$f":"VLOOKUP(G20,region[],2,FALSE)","v":"Portugal"},{"$f":"VLOOKUP(H20,region[],2,FALSE)","v":"Sweden"},{"$f":"VLOOKUP(I20,region[],2,FALSE)","v":"Kazakhstan"},{"$f":"VLOOKUP(J20,region[],2,FALSE)","v":"Ukraine"},{"$f":"VLOOKUP(K20,region[],2,FALSE)","v":"Russia"},{"$f":"VLOOKUP(L20,region[],2,FALSE)","v":"Mauritania"},{"$f":"VLOOKUP(M20,region[],2,FALSE)","v":"Saudi Arabia"}]
[null,"Electricity generation",{"$f":"SUMIFS(output[value],output[source],C$20,output[process_class],$B23,output[variable],\"<>LC\")","v":55.965668766531095},{"$f":"SUMIFS(output[value],output[source],D$20,output[process_class],$B23,output[variable],\"<>LC\")","v":32.020331878609284},{"$f":"SUMIFS(output[value],output[source],E$20,output[process_class],$B23,output[variable],\"<>LC\")","v":32.384074630162154},{"$f":"SUMIFS(output[value],output[source],F$20,output[process_class],$B23,output[variable],\"<>LC\")","v":27.131125609483952},{"$f":"SUMIFS(output[value],output[source],G$20,output[process_class],$B23,output[variable],\"<>LC\")","v":38.638000977688492},{"$f":"SUMIFS(output[value],output[source],H$20,output[process_class],$B23,output[variable],\"<>LC\")","v":44.68855799174289},{"$f":"SUMIFS(output[value],output[source],I$20,output[process_class],$B23,output[variable],\"<>LC\")","v":38.223781270347018},{"$f":"SUMIFS(output[value],output[source],J$20,output[process_class],$B23,output[variable],\"<>LC\")","v":51.646991135608815},{"$f":"SUMIFS(output[value],output[source],K$20,output[process_class],$B23,output[variable],\"<>LC\")","v":69.935517092190764},{"$f":"SUMIFS(output[value],output[source],L$20,output[process_class],$B23,output[variable],\"<>LC\")","v":43.986078533693195},{"$f":"SUMIFS(output[value],output[source],M$20,output[process_class],$B23,output[variable],\"<>LC\")","v":49.437790548829696}]
[null,"Electrolysis",{"$f":"SUMIFS(output[value],output[source],C$20,output[process_class],$B24,output[variable],\"<>LC\")","v":21.522807381580492},{"$f":"SUMIFS(output[value],output[source],D$20,output[process_class],$B24,output[variable],\"<>LC\")","v":12.606593781218553},{"$f":"SUMIFS(output[value],output[source],E$20,output[process_class],$B24,output[variable],\"<>LC\")","v":13.294777830891862},{"$f":"SUMIFS(output[value],output[source],F$20,output[process_class],$B24,output[variable],\"<>LC\")","v":12.780332105113942},{"$f":"SUMIFS(output[value],output[source],G$20,output[process_class],$B24,output[variable],\"<>LC\")","v":13.647122754679938},{"$f":"SUMIFS(output[value],output[source],H$20,output[process_class],$B24,output[variable],\"<>LC\")","v":18.030344687250413},{"$f":"SUMIFS(output[value],output[source],I$20,output[process_class],$B24,output[variable],\"<>LC\")","v":15.158355776053124},{"$f":"SUMIFS(output[value],output[source],J$20,output[process_class],$B24,output[variable],\"<>LC\")","v":21.170254639991757},{"$f":"SUMIFS(output[value],output[source],K$20,output[process_class],$B24,output[variable],\"<>LC\")","v":19.008804817392015},{"$f":"SUMIFS(output[value],output[source],L$20,output[process_class],$B24,output[variable],\"<>LC\")","v":14.923725343174109},{"$f":"SUMIFS(output[value],output[source],M$20,output[process_class],$B24,output[variable],\"<>LC\")","v":21.819931790487249}]
[null,"Derivate production",{"$f":"SUMIFS(output[value],output[source],C$20,output[process_class],$B25,output[variable],\"<>LC\")","v":0},{"$f":"SUMIFS(output[value],output[source],D$20,output[process_class],$B25,output[variable],\"<>LC\")","v":0},{"$f":"SUMIFS(output[value],output[source],E$20,output[process_class],$B25,output[variable],\"<>LC\")","v":0},{"$f":"SUMIFS(output[value],output[source],F$20,output[process_class],$B25,output[variable],\"<>LC\")","v":0},{"$f":"SUMIFS(output[value],output[source],G$20,output[process_class],$B25,output[variable],\"<>LC\")","v":0},{"$f":"SUMIFS(output[value],output[source],H$20,output[process_class],$B25,output[variable],\"<>LC\")","v":0},{"$f":"SUMIFS(output[value],output[source],I$20,output[process_class],$B25,output[variable],\"<>LC\")","v":0},{"$f":"SUMIFS(output[value],output[source],J$20,output[process_class],$B25,output[variable],\"<>LC\")","v":0},{"$f":"SUMIFS(output[value],output[source],K$20,output[process_class],$B25,output[variable],\"<>LC\")","v":0},{"$f":"SUMIFS(output[value],output[source],L$20,output[process_class],$B25,output[variable],\"<>LC\")","v":0},{"$f":"SUMIFS(output[value],output[source],M$20,output[process_class],$B25,output[variable],\"<>LC\")","v":0}]
[null,"Carbon",{"$f":"SUMIFS(output[value],output[source],C$20,output[process_class],$B26,output[variable],\"<>LC\")","v":0},{"$f":"SUMIFS(output[value],output[source],D$20,output[process_class],$B26,output[variable],\"<>LC\")","v":0},{"$f":"SUMIFS(output[value],output[source],E$20,output[process_class],$B26,output[variable],\"<>LC\")","v":0},{"$f":"SUMIFS(output[value],output[source],F$20,output[process_class],$B26,output[variable],\"<>LC\")","v":0},{"$f":"SUMIFS(output[value],output[source],G$20,output[process_class],$B26,output[variable],\"<>LC\")","v":0},{"$f":"SUMIFS(output[value],output[source],H$20,output[process_class],$B26,output[variable],\"<>LC\")","v":0},{"$f":"SUMIFS(output[value],output[source],I$20,output[process_class],$B26,output[variable],\"<>LC\")","v":0},{"$f":"SUMIFS(output[value],output[source],J$20,output[process_class],$B26,output[variable],\"<>LC\")","v":0},{"$f":"SUMIFS(output[value],output[source],K$20,output[process_class],$B26,output[variable],\"<>LC\")","v":0},{"$f":"SUMIFS(output[value],output[source],L$20,output[process_class],$B26,output[variable],\"<>LC\")","v":0},{"$f":"SUMIFS(output[value],output[source],M$20,output[process_class],$B26,output[variable],\"<>LC\")","v":0}]
[null,"Water",{"$f":"SUMIFS(output[value],output[source],C$20,output[process_class],$B27,output[variable],\"<>LC\")","v":0.2016419182262843},{"$f":"SUMIFS(output[value],output[source],D$20,output[process_class],$B27,output[variable],\"<>LC\")","v":0.15194263172950306},{"$f":"SUMIFS(output[value],output[source],E$20,output[process_class],$B27,output[variable],\"<>LC\")","v":0.15194263172950306},{"$f":"SUMIFS(output[value],output[source],F$20,output[process_class],$B27,output[variable],\"<>LC\")","v":0.16180437591605154},{"$f":"SUMIFS(output[value],output[source],G$20,output[process_class],$B27,output[variable],\"<>LC\")","v":0.16818732203881093},{"$f":"SUMIFS(output[value],output[source],H$20,output[process_class],$B27,output[variable],\"<>LC\")","v":0.15323668635315441},{"$f":"SUMIFS(output[value],output[source],I$20,output[process_class],$B27,output[variable],\"<>LC\")","v":0.17270941553937619},{"$f":"SUMIFS(output[value],output[source],J$20,output[process_class],$B27,output[variable],\"<>LC\")","v":0.19819306870296505},{"$f":"SUMIFS(output[value],output[source],K$20,output[process_class],$B27,output[variable],\"<>LC\")","v":0.16626647846458997},{"$f":"SUMIFS(output[value],output[source],L$20,output[process_class],$B27,output[variable],\"<>LC\")","v":0.18865833345962058},{"$f":"SUMIFS(output[value],output[source],M$20,output[process_class],$B27,output[variable],\"<>LC\")","v":0.16591988509461147}]
[null,"Heat",{"$f":"SUMIFS(output[value],output[source],C$20,output[process_class],$B28,output[variable],\"<>LC\")","v":0},{"$f":"SUMIFS(output[value],output[source],D$20,output[process_class],$B28,output[variable],\"<>LC\")","v":0},{"$f":"SUMIFS(output[value],output[source],E$20,output[process_class],$B28,output[variable],\"<>LC\")","v":0},{"$f":"SUMIFS(output[value],output[source],F$20,output[process_class],$B28,output[variable],\"<>LC\")","v":0},{"$f":"SUMIFS(output[value],output[source],G$20,output[process_class],$B28,output[variable],\"<>LC\")","v":0},{"$f":"SUMIFS(output[value],output[source],H$20,output[process_class],$B28,output[variable],\"<>LC\")","v":0},{"$f":"SUMIFS(output[value],output[source],I$20,output[process_class],$B28,output[variable],\"<>LC\")","v":0},{"$f":"SUMIFS(output[value],output[source],J$20,output[process_class],$B28,output[variable],\"<>LC\")","v":0},{"$f":"SUMIFS(output[value],output[source],K$20,output[process_class],$B28,output[variable],\"<>LC\")","v":0},{"$f":"SUMIFS(output[value],output[source],L$20,output[process_class],$B28,output[variable],\"<>LC\")","v":0},{"$f":"SUMIFS(output[value],output[source],M$20,output[process_class],$B28,output[variable],\"<>LC\")","v":0}]
[null,"Electricity and H2 storage",{"$f":"SUMIFS(output[value],output[source],C$20,output[process_class],$B29,output[variable],\"<>LC\")","v":2.9833005337473737},{"$f":"SUMIFS(output[value],output[source],D$20,output[process_class],$B29,output[variable],\"<>LC\")","v":1.7195085423958016},{"$f":"SUMIFS(output[value],output[source],E$20,output[process_class],$B29,output[variable],\"<>LC\")","v":1.7599025315628869},{"$f":"SUMIFS(output[value],output[source],F$20,output[process_class],$B29,output[variable],\"<>LC\")","v":1.5388132642757353},{"$f":"SUMIFS(output[value],output[source],G$20,output[process_class],$B29,output[variable],\"<>LC\")","v":2.0142071444892378},{"$f":"SUMIFS(output[value],output[source],H$20,output[process_class],$B29,output[variable],\"<>LC\")","v":2.4142901516293036},{"$f":"SUMIFS(output[value],output[source],I$20,output[process_class],$B29,output[variable],\"<>LC\")","v":2.0565061041384776},{"$f":"SUMIFS(output[value],output[source],J$20,output[process_class],$B29,output[variable],\"<>LC\")","v":2.8037928516212558},{"$f":"SUMIFS(output[value],output[source],K$20,output[process_class],$B29,output[variable],\"<>LC\")","v":3.421846594101019},{"$f":"SUMIFS(output[value],output[source],L$20,output[process_class],$B29,output[variable],\"<>LC\")","v":2.2693809488765537},{"$f":"SUMIFS(output[value],output[source],M$20,output[process_class],$B29,output[variable],\"<>LC\")","v":2.7426678614174032}]
[null,"Transportation (Ship)",{"$f":"SUMIFS(output[value],output[source],C$20,output[process_class],$B30,output[variable],\"<>LC\")","v":91.029916138784358},{"$f":"SUMIFS(output[value],output[source],D$20,output[process_class],$B30,output[variable],\"<>LC\")","v":0},{"$f":"SUMIFS(output[value],output[source],E$20,output[process_class],$B30,output[variable],\"<>LC\")","v":0},{"$f":"SUMIFS(output[value],output[source],F$20,output[process_class],$B30,output[variable],\"<>LC\")","v":0},{"$f":"SUMIFS(output[value],output[source],G$20,output[process_class],$B30,output[variable],\"<>LC\")","v":0},{"$f":"SUMIFS(output[value],output[source],H$20,output[process_class],$B30,output[variable],\"<>LC\")","v":0},{"$f":"SUMIFS(output[value],output[source],I$20,output[process_class],$B30,output[variable],\"<>LC\")","v":0},{"$f":"SUMIFS(output[value],output[source],J$20,output[process_class],$B30,output[variable],\"<>LC\")","v":0},{"$f":"SUMIFS(output[value],output[source],K$20,output[process_class],$B30,output[variable],\"<>LC\")","v":0},{"$f":"SUMIFS(output[value],output[source],L$20,output[process_class],$B30,output[variable],\"<>LC\")","v":0},{"$f":"SUMIFS(output[value],output[source],M$20,output[process_class],$B30,output[variable],\"<>LC\")","v":0}]
[null,"Transportation (Pipeline)",{"$f":"SUMIFS(output[value],output[source],C$20,output[process_class],$B31,output[variable],\"<>LC\")","v":0},{"$f":"SUMIFS(output[value],output[source],D$20,output[process_class],$B31,output[variable],\"<>LC\")","v":5.6497639397588983},{"$f":"SUMIFS(output[value],output[source],E$20,output[process_class],$B31,output[variable],\"<>LC\")","v":6.035558315775079},{"$f":"SUMIFS(output[value],output[source],F$20,output[process_class],$B31,output[variable],\"<>LC\")","v":17.901525946562749},{"$f":"SUMIFS(output[value],output[source],G$20,output[process_class],$B31,output[variable],\"<>LC\")","v":22.592792116374763},{"$f":"SUMIFS(output[value],output[source],H$20,output[process_class],$B31,output[variable],\"<>LC\")","v":15.127714186528197},{"$f":"SUMIFS(output[value],output[source],I$20,output[process_class],$B31,output[variable],\"<>LC\")","v":36.218982305097832},{"$f":"SUMIFS(output[value],output[source],J$20,output[process_class],$B31,output[variable],\"<>LC\")","v":19.013816707878309},{"$f":"SUMIFS(output[value],output[source],K$20,output[process_class],$B31,output[variable],\"<>LC\")","v":8.3977527220082742},{"$f":"SUMIFS(output[value],output[source],L$20,output[process_class],$B31,output[variable],\"<>LC\")","v":50.193635443501762},{"$f":"SUMIFS(output[value],output[source],M$20,output[process_class],$B31,output[variable],\"<>LC\")","v":45.00297153120281}]
[null,"total",{"$f":"SUMIFS(output[value],output[source],C$20,output[variable],\"<>LC\")","v":171.70333473886961},{"$f":"SUMIFS(output[value],output[source],D$20,output[variable],\"<>LC\")","v":52.148140773712043},{"$f":"SUMIFS(output[value],output[source],E$20,output[variable],\"<>LC\")","v":53.626255940121489},{"$f":"SUMIFS(output[value],output[source],F$20,output[variable],\"<>LC\")","v":59.513601301352438},{"$f":"SUMIFS(output[value],output[source],G$20,output[variable],\"<>LC\")","v":77.060310315271224},{"$f":"SUMIFS(output[value],output[source],H$20,output[variable],\"<>LC\")","v":80.414143703503967},{"$f":"SUMIFS(output[value],output[source],I$20,output[variable],\"<>LC\")","v":91.830334871175836},{"$f":"SUMIFS(output[value],output[source],J$20,output[variable],\"<>LC\")","v":94.833048403803105},{"$f":"SUMIFS(output[value],output[source],K$20,output[variable],\"<>LC\")","v":100.93018770415665},{"$f":"SUMIFS(output[value],output[source],L$20,output[variable],\"<>LC\")","v":111.56147860270524},{"$f":"SUMIFS(output[value],output[source],M$20,output[variable],\"<>LC\")","v":119.16928161703176}]
[null,"test",{"$f":"SUM(C23:C31)-C32","v":0},0,0,0,0,0,0,0,0,0,0]

{"sheet":"b_CompareCosts","index":23,"n_rows":73,"n_cols":9,"rows_kept":73,"cut":false,"hidden":false,"merged":[[2,7,2,8],[1,7,1,8],[4,2,9,6]]}
[]
[null,null,"COSTS FOR ALL SUPPLY COUNTRIES",null,null,null,null,"YOUR SETTINGS"]
[null,null,null,null,null,null,null,"can be re-adjusted on the dashboard"]
[null,null,"Compare total delivered costs for all PTX BOA supply countries",null,null,null,null,"Supply country:",{"$f":"sel_region_name","v":"Morocco"}]
[null,null,"This sheets shows the distribution of total delivered costs for all PTX BOA supply countries (based your selected options).\nYou also find information on the distribution of the major cost components electricity generation, electrolysis and transportation by ship or pipeline. \n\nThe box plots show median, 1st and 3rd quartile as well as the total spread of values. They also show the data for your country (pink dot) for comparison. ",null,null,null,null,"Demand country:",{"$f":"sel_country_name","v":"Germany"}]
[null,null,null,null,null,null,null,"RE generation:",{"$f":"sel_res_gen_name","v":"Wind-PV-Hybrid"}]
[null,null,null,null,null,null,null,"Process chain:",{"$f":"sel_chain","v":"Hydrogen (AEL)"}]
[null,null,null,null,null,null,null,"CO2 source:",{"$f":"sel_secproc_co2","v":"DAC"}]
[null,null,null,null,null,null,null,"Water source:",{"$f":"sel_secproc_water","v":"Water desalination"}]
[null,null,null,null,null,null,null,"Transport mode:",{"$f":"sel_transport","v":"Ship"}]
[null,null,null,null,null,null,null,"Scenario:",{"$f":"sel_scenario","v":"2030 (medium)"}]
[]
[]
[]
[null,null,"process_class_name",null,"Electricity generation","Electrolysis","Derivate","Transportation","Provision of carbon"]
[null,null,"target_country_code",{"$f":"sel_country_code","v":"DEU"}]
[]
[]
[null,null,null,"total costs","total costs","total costs","total costs","total costs","total costs"]
[null,null,null,"USD/kWh","USD/kWh","USD/kWh","USD/kWh","USD/kWh","USD/kWh"]
[null,"Country code","Supply country","Total costs","Electricity generation","Electrolysis","Transportation (Ship)","Transportation (Pipeline)","Other"]
[null,"ARE",{"$f":"VLOOKUP($B22,region[],2,FALSE)","v":"United Arab Emirates"},{"$f":"IF(SUMIFS(output[value],output[source],$B22,output[variable],\"<>LC\")=0,\"\",SUMIFS(output[value],output[source],$B22,output[variable],\"<>LC\"))","v":144.33274634051406},{"$f":"IF(SUMIFS(output[value],output[source],$B22,output[process_class],E$21,output[variable],\"<>LC\")=0,\"\",SUMIFS(output[value],output[source],$B22,output[process_class],E$21,output[variable],\"<>LC\"))","v":61.145049119998227},{"$f":"IF(SUMIFS(output[value],output[source],$B22,output[process_class],F$21,output[variable],\"<>LC\")=0,\"\",SUMIFS(output[value],output[source],$B22,output[process_class],F$21,output[variable],\"<>LC\"))","v":25.593059371077423},{"$f":"IF(SUMIFS(output[value],output[source],$B22,output[process_class],G$21,output[variable],\"<>LC\")=0,\"\",SUMIFS(output[value],output[source],$B22,output[process_class],G$21,output[variable],\"<>LC\"))","v":""},{"$f":"IF(SUMIFS(output[value],output[source],$B22,output[process_class],H$21,output[variable],\"<>LC\")=0,\"\",SUMIFS(output[value],output[source],$B22,output[process_class],H$21,output[variable],\"<>LC\"))","v":54.088400153429312},{"$f":"Table23[[#This Row],[Total costs]]-SUM(Table23[[#This Row],[Electricity generation]:[Transportation (Pipeline)]])","v":3.5062376960090944}]
[null,"ARG",{"$f":"VLOOKUP($B23,region[],2,FALSE)","v":"Argentina"},{"$f":"IF(SUMIFS(output[value],output[source],$B23,output[variable],\"<>LC\")=0,\"\",SUMIFS(output[value],output[source],$B23,output[variable],\"<>LC\"))","v":238.30347865563257},{"$f":"IF(SUMIFS(output[value],output[source],$B23,output[process_class],E$21,output[variable],\"<>LC\")=0,\"\",SUMIFS(output[value],output[source],$B23,output[process_class],E$21,output[variable],\"<>LC\"))","v":77.117826022062388},{"$f":"IF(SUMIFS(output[value],output[source],$B23,output[process_class],F$21,output[variable],\"<>LC\")=0,\"\",SUMIFS(output[value],output[source],$B23,output[process_class],F$21,output[variable],\"<>LC\"))","v":27.814164470982796},{"$f":"IF(SUMIFS(output[value],output[source],$B23,output[process_class],G$21,output[variable],\"<>LC\")=0,\"\",SUMIFS(output[value],output[source],$B23,output[process_class],G$21,output[variable],\"<>LC\"))","v":129.04965093221062},{"$f":"IF(SUMIFS(output[value],output[source],$B23,output[process_class],H$21,output[variable],\"<>LC\")=0,\"\",SUMIFS(output[value],output[source],$B23,output[process_class],H$21,output[variable],\"<>LC\"))","v":""},{"$f":"Table23[[#This Row],[Total costs]]-SUM(Table23[[#This Row],[Electricity generation]:[Transportation (Pipeline)]])","v":4.321837230376758}]
[null,"AUS",{"$f":"VLOOKUP($B24,region[],2,FALSE)","v":"Australia"},{"$f":"IF(SUMIFS(output[value],output[source],$B24,output[variable],\"<>LC\")=0,\"\",SUMIFS(output[value],output[source],$B24,output[variable],\"<>LC\"))","v":200.46831134163068},{"$f":"IF(SUMIFS(output[value],output[source],$B24,output[process_class],E$21,output[variable],\"<>LC\")=0,\"\",SUMIFS(output[value],output[source],$B24,output[process_class],E$21,output[variable],\"<>LC\"))","v":58.412968850826672},{"$f":"IF(SUMIFS(output[value],output[source],$B24,output[process_class],F$21,output[variable],\"<>LC\")=0,\"\",SUMIFS(output[value],output[source],$B24,output[process_class],F$21,output[variable],\"<>LC\"))","v":18.058086515811294},{"$f":"IF(SUMIFS(output[value],output[source],$B24,output[process_class],G$21,output[variable],\"<>LC\")=0,\"\",SUMIFS(output[value],output[source],$B24,output[process_class],G$21,output[variable],\"<>LC\"))","v":120.82823743175192},{"$f":"IF(SUMIFS(output[value],output[source],$B24,output[process_class],H$21,output[variable],\"<>LC\")=0,\"\",SUMIFS(output[value],output[source],$B24,output[process_class],H$21,output[variable],\"<>LC\"))","v":""},{"$f":"Table23[[#This Row],[Total costs]]-SUM(Table23[[#This Row],[Electricity generation]:[Transportation (Pipeline)]])","v":3.1690185432407816}]
[null,"BRA",{"$f":"VLOOKUP($B25,region[],2,FALSE)","v":"Brazil"},{"$f":"IF(SUMIFS(output[value],output[source],$B25,output[variable],\"<>LC\")=0,\"\",SUMIFS(output[value],output[source],$B25,output[variable],\"<>LC\"))","v":166.16666405960947},{"$f":"IF(SUMIFS(output[value],output[source],$B25,output[process_class],E$21,output[variable],\"<>LC\")=0,\"\",SUMIFS(output[value],output[source],$B25,output[process_class],E$21,output[variable],\"<>LC\"))","v":42.880073406320811},{"$f":"IF(SUMIFS(output[value],output[source],$B25,output[process_class],F$21,output[variable],\"<>LC\")=0,\"\",SUMIFS(output[value],output[source],$B25,output[process_class],F$21,output[variable],\"<>LC\"))","v":19.554419693729827},{"$f":"IF(SUMIFS(output[value],output[source],$B25,output[process_class],G$21,output[variable],\"<>LC\")=0,\"\",SUMIFS(output[value],output[source],$B25,output[process_class],G$21,output[variable],\"<>LC\"))","v":101.10457609868328},{"$f":"IF(SUMIFS(output[value],output[source],$B25,output[process_class],H$21,output[variable],\"<>LC\")=0,\"\",SUMIFS(output[value],output[source],$B25,output[process_class],H$21,output[variable],\"<>LC\"))","v":""},{"$f":"Table23[[#This Row],[Total costs]]-SUM(Table23[[#This Row],[Electricity generation]:[Transportation (Pipeline)]])","v":2.6275948608755471}]
[null,"CHL",{"$f":"VLOOKUP($B26,region[],2,FALSE)","v":"Chile"},{"$f":"IF(SUMIFS(output[value],output[source],$B26,output[variable],\"<>LC\")=0,\"\",SUMIFS(output[value],output[source],$B26,output[variable],\"<>LC\"))","v":233.60626082640309},{"$f":"IF(SUMIFS(output[value],output[source],$B26,output[process_class],E$21,output[variable],\"<>LC\")=0,\"\",SUMIFS(output[value],output[source],$B26,output[process_class],E$21,output[variable],\"<>LC\"))","v":75.490967277137813},{"$f":"IF(SUMIFS(output[value],output[source],$B26,output[process_class],F$21,output[variable],\"<>LC\")=0,\"\",SUMIFS(output[value],output[source],$B26,output[process_class],F$21,output[variable],\"<>LC\"))","v":28.331389393004798},{"$f":"IF(SUMIFS(output[value],output[source],$B26,output[process_class],G$21,output[variable],\"<>LC\")=0,\"\",SUMIFS(output[value],output[source],$B26,output[process_class],G$21,output[variable],\"<>LC\"))","v":125.58202255314656},{"$f":"IF(SUMIFS(output[value],output[source],$B26,output[process_class],H$21,output[variable],\"<>LC\")=0,\"\",SUMIFS(output[value],output[source],$B26,output[process_class],H$21,output[variable],\"<>LC\"))","v":""},{"$f":"Table23[[#This Row],[Total costs]]-SUM(Table23[[#This Row],[Electricity generation]:[Transportation (Pipeline)]])","v":4.2018816031139181}]
[null,"CHN",{"$f":"VLOOKUP($B27,region[],2,FALSE)","v":"China"},{"$f":"IF(SUMIFS(output[value],output[source],$B27,output[variable],\"<>LC\")=0,\"\",SUMIFS(output[value],output[source],$B27,output[variable],\"<>LC\"))","v":178.31701862549164},{"$f":"IF(SUMIFS(output[value],output[source],$B27,output[process_class],E$21,output[variable],\"<>LC\")=0,\"\",SUMIFS(output[value],output[source],$B27,output[process_class],E$21,output[variable],\"<>LC\"))","v":34.850343408807646},{"$f":"IF(SUMIFS(output[value],output[source],$B27,output[process_class],F$21,output[variable],\"<>LC\")=0,\"\",SUMIFS(output[value],output[source],$B27,output[process_class],F$21,output[variable],\"<>LC\"))","v":19.158765420219559},{"$f":"IF(SUMIFS(output[value],output[source],$B27,output[process_class],G$21,output[variable],\"<>LC\")=0,\"\",SUMIFS(output[value],output[source],$B27,output[process_class],G$21,output[variable],\"<>LC\"))","v":121.99928115903924},{"$f":"IF(SUMIFS(output[value],output[source],$B27,output[process_class],H$21,output[variable],\"<>LC\")=0,\"\",SUMIFS(output[value],output[source],$B27,output[process_class],H$21,output[variable],\"<>LC\"))","v":""},{"$f":"Table23[[#This Row],[Total costs]]-SUM(Table23[[#This Row],[Electricity generation]:[Transportation (Pipeline)]])","v":2.308628637425187}]
[null,"COL",{"$f":"VLOOKUP($B28,region[],2,FALSE)","v":"Colombia"},{"$f":"IF(SUMIFS(output[value],output[source],$B28,output[variable],\"<>LC\")=0,\"\",SUMIFS(output[value],output[source],$B28,output[variable],\"<>LC\"))","v":154.18230524969414},{"$f":"IF(SUMIFS(output[value],output[source],$B28,output[process_class],E$21,output[variable],\"<>LC\")=0,\"\",SUMIFS(output[value],output[source],$B28,output[process_class],E$21,output[variable],\"<>LC\"))","v":39.37381352662171},{"$f":"IF(SUMIFS(output[value],output[source],$B28,output[process_class],F$21,output[variable],\"<>LC\")=0,\"\",SUMIFS(output[value],output[source],$B28,output[process_class],F$21,output[variable],\"<>LC\"))","v":17.554834280904519},{"$f":"IF(SUMIFS(output[value],output[source],$B28,output[process_class],G$21,output[variable],\"<>LC\")=0,\"\",SUMIFS(output[value],output[source],$B28,output[process_class],G$21,output[variable],\"<>LC\"))","v":94.848924117231107},{"$f":"IF(SUMIFS(output[value],output[source],$B28,output[process_class],H$21,output[variable],\"<>LC\")=0,\"\",SUMIFS(output[value],output[source],$B28,output[process_class],H$21,output[variable],\"<>LC\"))","v":""},{"$f":"Table23[[#This Row],[Total costs]]-SUM(Table23[[#This Row],[Electricity generation]:[Transportation (Pipeline)]])","v":2.4047333249367853}]
[null,"CRI",{"$f":"VLOOKUP($B29,region[],2,FALSE)","v":"Costa Rica"},{"$f":"IF(SUMIFS(output[value],output[source],$B29,output[variable],\"<>LC\")=0,\"\",SUMIFS(output[value],output[source],$B29,output[variable],\"<>LC\"))","v":268.57222429454384},{"$f":"IF(SUMIFS(output[value],output[source],$B29,output[process_class],E$21,output[variable],\"<>LC\")=0,\"\",SUMIFS(output[value],output[source],$B29,output[process_class],E$21,output[variable],\"<>LC\"))","v":88.959434591724673},{"$f":"IF(SUMIFS(output[value],output[source],$B29,output[process_class],F$21,output[variable],\"<>LC\")=0,\"\",SUMIFS(output[value],output[source],$B29,output[process_class],F$21,output[variable],\"<>LC\"))","v":36.286441659663147},{"$f":"IF(SUMIFS(output[value],output[source],$B29,output[process_class],G$21,output[variable],\"<>LC\")=0,\"\",SUMIFS(output[value],output[source],$B29,output[process_class],G$21,output[variable],\"<>LC\"))","v":138.27766538798011},{"$f":"IF(SUMIFS(output[value],output[source],$B29,output[process_class],H$21,output[variable],\"<>LC\")=0,\"\",SUMIFS(output[value],output[source],$B29,output[process_class],H$21,output[variable],\"<>LC\"))","v":""},{"$f":"Table23[[#This Row],[Total costs]]-SUM(Table23[[#This Row],[Electricity generation]:[Transportation (Pipeline)]])","v":5.0486826551759236}]
[null,"DNK",{"$f":"VLOOKUP($B30,region[],2,FALSE)","v":"Denmark"},{"$f":"IF(SUMIFS(output[value],output[source],$B30,output[variable],\"<>LC\")=0,\"\",SUMIFS(output[value],output[source],$B30,output[variable],\"<>LC\"))","v":52.148140773712043},{"$f":"IF(SUMIFS(output[value],output[source],$B30,output[process_class],E$21,output[variable],\"<>LC\")=0,\"\",SUMIFS(output[value],output[source],$B30,output[process_class],E$21,output[variable],\"<>LC\"))","v":32.020331878609284},{"$f":"IF(SUMIFS(output[value],output[source],$B30,output[process_class],F$21,output[variable],\"<>LC\")=0,\"\",SUMIFS(output[value],output[source],$B30,output[process_class],F$21,output[variable],\"<>LC\"))","v":12.606593781218553},{"$f":"IF(SUMIFS(output[value],output[source],$B30,output[process_class],G$21,output[variable],\"<>LC\")=0,\"\",SUMIFS(output[value],output[source],$B30,output[process_class],G$21,output[variable],\"<>LC\"))","v":""},{"$f":"IF(SUMIFS(output[value],output[source],$B30,output[process_class],H$21,output[variable],\"<>LC\")=0,\"\",SUMIFS(output[value],output[source],$B30,output[process_class],H$21,output[variable],\"<>LC\"))","v":5.6497639397588983},{"$f":"Table23[[#This Row],[Total costs]]-SUM(Table23[[#This Row],[Electricity generation]:[Transportation (Pipeline)]])","v":1.8714511741253119}]
[null,"DZA",{"$f":"VLOOKUP($B31,region[],2,FALSE)","v":"Algeria"},{"$f":"IF(SUMIFS(output[value],output[source],$B31,output[variable],\"<>LC\")=0,\"\",SUMIFS(output[value],output[source],$B31,output[variable],\"<>LC\"))","v":131.44531888208436},{"$f":"IF(SUMIFS(output[value],output[source],$B31,output[process_class],E$21,output[variable],\"<>LC\")=0,\"\",SUMIFS(output[value],output[source],$B31,output[process_class],E$21,output[variable],\"<>LC\"))","v":61.716894471367013},{"$f":"IF(SUMIFS(output[value],output[source],$B31,output[process_class],F$21,output[variable],\"<>LC\")=0,\"\",SUMIFS(output[value],output[source],$B31,output[process_class],F$21,output[variable],\"<>LC\"))","v":31.794355633943201},{"$f":"IF(SUMIFS(output[value],output[source],$B31,output[process_class],G$21,output[variable],\"<>LC\")=0,\"\",SUMIFS(output[value],output[source],$B31,output[process_class],G$21,output[variable],\"<>LC\"))","v":""},{"$f":"IF(SUMIFS(output[value],output[source],$B31,output[process_class],H$21,output[variable],\"<>LC\")=0,\"\",SUMIFS(output[value],output[source],$B31,output[process_class],H$21,output[variable],\"<>LC\"))","v":34.154340471521493},{"$f":"Table23[[#This Row],[Total costs]]-SUM(Table23[[#This Row],[Electricity generation]:[Transportation (Pipeline)]])","v":3.7797283052526609}]
[null,"EGY",{"$f":"VLOOKUP($B32,region[],2,FALSE)","v":"Egypt"},{"$f":"IF(SUMIFS(output[value],output[source],$B32,output[variable],\"<>LC\")=0,\"\",SUMIFS(output[value],output[source],$B32,output[variable],\"<>LC\"))","v":133.87713038818268},{"$f":"IF(SUMIFS(output[value],output[source],$B32,output[process_class],E$21,output[variable],\"<>LC\")=0,\"\",SUMIFS(output[value],output[source],$B32,output[process_class],E$21,output[variable],\"<>LC\"))","v":56.776273619638857},{"$f":"IF(SUMIFS(output[value],output[source],$B32,output[process_class],F$21,output[variable],\"<>LC\")=0,\"\",SUMIFS(output[value],output[source],$B32,output[process_class],F$21,output[variable],\"<>LC\"))","v":23.211195380469825},{"$f":"IF(SUMIFS(output[value],output[source],$B32,output[process_class],G$21,output[variable],\"<>LC\")=0,\"\",SUMIFS(output[value],output[source],$B32,output[process_class],G$21,output[variable],\"<>LC\"))","v":""},{"$f":"IF(SUMIFS(output[value],output[source],$B32,output[process_class],H$21,output[variable],\"<>LC\")=0,\"\",SUMIFS(output[value],output[source],$B32,output[process_class],H$21,output[variable],\"<>LC\"))","v":50.608157878349587},{"$f":"Table23[[#This Row],[Total costs]]-SUM(Table23[[#This Row],[Electricity generation]:[Transportation (Pipeline)]])","v":3.2815035097243879}]
[null,"ESP",{"$f":"VLOOKUP($B33,region[],2,FALSE)","v":"Spain"},{"$f":"IF(SUMIFS(output[value],output[source],$B33,output[variable],\"<>LC\")=0,\"\",SUMIFS(output[value],output[source],$B33,output[variable],\"<>LC\"))","v":59.513601301352438},{"$f":"IF(SUMIFS(output[value],output[source],$B33,output[process_class],E$21,output[variable],\"<>LC\")=0,\"\",SUMIFS(output[value],output[source],$B33,output[process_class],E$21,output[variable],\"<>LC\"))","v":27.131125609483952},{"$f":"IF(SUMIFS(output[value],output[source],$B33,output[process_class],F$21,output[variable],\"<>LC\")=0,\"\",SUMIFS(output[value],output[source],$B33,output[process_class],F$21,output[variable],\"<>LC\"))","v":12.780332105113942},{"$f":"IF(SUMIFS(output[value],output[source],$B33,output[process_class],G$21,output[variable],\"<>LC\")=0,\"\",SUMIFS(output[value],output[source],$B33,output[process_class],G$21,output[variable],\"<>LC\"))","v":""},{"$f":"IF(SUMIFS(output[value],output[source],$B33,output[process_class],H$21,output[variable],\"<>LC\")=0,\"\",SUMIFS(output[value],output[source],$B33,output[process_class],H$21,output[variable],\"<>LC\"))","v":17.901525946562749},{"$f":"Table23[[#This Row],[Total costs]]-SUM(Table23[[#This Row],[Electricity generation]:[Transportation (Pipeline)]])","v":1.7006176401917941}]
[null,"IDN",{"$f":"VLOOKUP($B34,region[],2,FALSE)","v":"Indonesia"},{"$f":"IF(SUMIFS(output[value],output[source],$B34,output[variable],\"<>LC\")=0,\"\",SUMIFS(output[value],output[source],$B34,output[variable],\"<>LC\"))","v":376.93770635903257},{"$f":"IF(SUMIFS(output[value],output[source],$B34,output[process_class],E$21,output[variable],\"<>LC\")=0,\"\",SUMIFS(output[value],output[source],$B34,output[process_class],E$21,output[variable],\"<>LC\"))","v":147.18452052887406},{"$f":"IF(SUMIFS(output[value],output[source],$B34,output[process_class],F$21,output[variable],\"<>LC\")=0,\"\",SUMIFS(output[value],output[source],$B34,output[process_class],F$21,output[variable],\"<>LC\"))","v":45.371297501532666},{"$f":"IF(SUMIFS(output[value],output[source],$B34,output[process_class],G$21,output[variable],\"<>LC\")=0,\"\",SUMIFS(output[value],output[source],$B34,output[process_class],G$21,output[variable],\"<>LC\"))","v":176.7506079127507},{"$f":"IF(SUMIFS(output[value],output[source],$B34,output[process_class],H$21,output[variable],\"<>LC\")=0,\"\",SUMIFS(output[value],output[source],$B34,output[process_class],H$21,output[variable],\"<>LC\"))","v":""},{"$f":"Table23[[#This Row],[Total costs]]-SUM(Table23[[#This Row],[Electricity generation]:[Transportation (Pipeline)]])","v":7.6312804158751533}]
[null,"IND",{"$f":"VLOOKUP($B35,region[],2,FALSE)","v":"India"},{"$f":"IF(SUMIFS(output[value],output[source],$B35,output[variable],\"<>LC\")=0,\"\",SUMIFS(output[value],output[source],$B35,output[variable],\"<>LC\"))","v":159.29843672216774},{"$f":"IF(SUMIFS(output[value],output[source],$B35,output[process_class],E$21,output[variable],\"<>LC\")=0,\"\",SUMIFS(output[value],output[source],$B35,output[process_class],E$21,output[variable],\"<>LC\"))","v":32.864720602819666},{"$f":"IF(SUMIFS(output[value],output[source],$B35,output[process_class],F$21,output[variable],\"<>LC\")=0,\"\",SUMIFS(output[value],output[source],$B35,output[process_class],F$21,output[variable],\"<>LC\"))","v":19.167124076827843},{"$f":"IF(SUMIFS(output[value],output[source],$B35,output[process_class],G$21,output[variable],\"<>LC\")=0,\"\",SUMIFS(output[value],output[source],$B35,output[process_class],G$21,output[variable],\"<>LC\"))","v":105.04093035864608},{"$f":"IF(SUMIFS(output[value],output[source],$B35,output[process_class],H$21,output[variable],\"<>LC\")=0,\"\",SUMIFS(output[value],output[source],$B35,output[process_class],H$21,output[variable],\"<>LC\"))","v":""},{"$f":"Table23[[#This Row],[Total costs]]-SUM(Table23[[#This Row],[Electricity generation]:[Transportation (Pipeline)]])","v":2.225661683874165}]
[null,"JOR",{"$f":"VLOOKUP($B36,region[],2,FALSE)","v":"Jordan"},{"$f":"IF(SUMIFS(output[value],output[source],$B36,output[variable],\"<>LC\")=0,\"\",SUMIFS(output[value],output[source],$B36,output[variable],\"<>LC\"))","v":194.24132172636968},{"$f":"IF(SUMIFS(output[value],output[source],$B36,output[process_class],E$21,output[variable],\"<>LC\")=0,\"\",SUMIFS(output[value],output[source],$B36,output[process_class],E$21,output[variable],\"<>LC\"))","v":116.7047348884026},{"$f":"IF(SUMIFS(output[value],output[source],$B36,output[process_class],F$21,output[variable],\"<>LC\")=0,\"\",SUMIFS(output[value],output[source],$B36,output[process_class],F$21,output[variable],\"<>LC\"))","v":34.840040666841318},{"$f":"IF(SUMIFS(output[value],output[source],$B36,output[process_class],G$21,output[variable],\"<>LC\")=0,\"\",SUMIFS(output[value],output[source],$B36,output[process_class],G$21,output[variable],\"<>LC\"))","v":""},{"$f":"IF(SUMIFS(output[value],output[source],$B36,output[process_class],H$21,output[variable],\"<>LC\")=0,\"\",SUMIFS(output[value],output[source],$B36,output[process_class],H$21,output[variable],\"<>LC\"))","v":36.682150871305204},{"$f":"Table23[[#This Row],[Total costs]]-SUM(Table23[[#This Row],[Electricity generation]:[Transportation (Pipeline)]])","v":6.0143952998205634}]
[null,"KAZ",{"$f":"VLOOKUP($B37,region[],2,FALSE)","v":"Kazakhstan"},{"$f":"IF(SUMIFS(output[value],output[source],$B37,output[variable],\"<>LC\")=0,\"\",SUMIFS(output[value],output[source],$B37,output[variable],\"<>LC\"))","v":91.830334871175836},{"$f":"IF(SUMIFS(output[value],output[source],$B37,output[process_class],E$21,output[variable],\"<>LC\")=0,\"\",SUMIFS(output[value],output[source],$B37,output[process_class],E$21,output[variable],\"<>LC\"))","v":38.223781270347018},{"$f":"IF(SUMIFS(output[value],output[source],$B37,output[process_class],F$21,output[variable],\"<>LC\")=0,\"\",SUMIFS(output[value],output[source],$B37,output[process_class],F$21,output[variable],\"<>LC\"))","v":15.158355776053124},{"$f":"IF(SUMIFS(output[value],output[source],$B37,output[process_class],G$21,output[variable],\"<>LC\")=0,\"\",SUMIFS(output[value],output[source],$B37,output[process_class],G$21,output[variable],\"<>LC\"))","v":""},{"$f":"IF(SUMIFS(output[value],output[source],$B37,output[process_class],H$21,output[variable],\"<>LC\")=0,\"\",SUMIFS(output[value],output[source],$B37,output[process_class],H$21,output[variable],\"<>LC\"))","v":36.218982305097832},{"$f":"Table23[[#This Row],[Total costs]]-SUM(Table23[[#This Row],[Electricity generation]:[Transportation (Pipeline)]])","v":2.2292155196778651}]
[null,"KEN",{"$f":"VLOOKUP($B38,region[],2,FALSE)","v":"Kenya"},{"$f":"IF(SUMIFS(output[value],output[source],$B38,output[variable],\"<>LC\")=0,\"\",SUMIFS(output[value],output[source],$B38,output[variable],\"<>LC\"))","v":277.60122824858774},{"$f":"IF(SUMIFS(output[value],output[source],$B38,output[process_class],E$21,output[variable],\"<>LC\")=0,\"\",SUMIFS(output[value],output[source],$B38,output[process_class],E$21,output[variable],\"<>LC\"))","v":102.61512653227645},{"$f":"IF(SUMIFS(output[value],output[source],$B38,output[process_class],F$21,output[variable],\"<>LC\")=0,\"\",SUMIFS(output[value],output[source],$B38,output[process_class],F$21,output[variable],\"<>LC\"))","v":33.324068647212066},{"$f":"IF(SUMIFS(output[value],output[source],$B38,output[process_class],G$21,output[variable],\"<>LC\")=0,\"\",SUMIFS(output[value],output[source],$B38,output[process_class],G$21,output[variable],\"<>LC\"))","v":136.18427680228797},{"$f":"IF(SUMIFS(output[value],output[source],$B38,output[process_class],H$21,output[variable],\"<>LC\")=0,\"\",SUMIFS(output[value],output[source],$B38,output[process_class],H$21,output[variable],\"<>LC\"))","v":""},{"$f":"Table23[[#This Row],[Total costs]]-SUM(Table23[[#This Row],[Electricity generation]:[Transportation (Pipeline)]])","v":5.4777562668112978}]
[null,"MAR",{"$f":"VLOOKUP($B39,region[],2,FALSE)","v":"Morocco"},{"$f":"IF(SUMIFS(output[value],output[source],$B39,output[variable],\"<>LC\")=0,\"\",SUMIFS(output[value],output[source],$B39,output[variable],\"<>LC\"))","v":171.70333473886961},{"$f":"IF(SUMIFS(output[value],output[source],$B39,output[process_class],E$21,output[variable],\"<>LC\")=0,\"\",SUMIFS(output[value],output[source],$B39,output[process_class],E$21,output[variable],\"<>LC\"))","v":55.965668766531095},{"$f":"IF(SUMIFS(output[value],output[source],$B39,output[process_class],F$21,output[variable],\"<>LC\")=0,\"\",SUMIFS(output[value],output[source],$B39,output[process_class],F$21,output[variable],\"<>LC\"))","v":21.522807381580492},{"$f":"IF(SUMIFS(output[value],output[source],$B39,output[process_class],G$21,output[variable],\"<>LC\")=0,\"\",SUMIFS(output[value],output[source],$B39,output[process_class],G$21,output[variable],\"<>LC\"))","v":91.029916138784358},{"$f":"IF(SUMIFS(output[value],output[source],$B39,output[process_class],H$21,output[variable],\"<>LC\")=0,\"\",SUMIFS(output[value],output[source],$B39,output[process_class],H$21,output[variable],\"<>LC\"))","v":""},{"$f":"Table23[[#This Row],[Total costs]]-SUM(Table23[[#This Row],[Electricity generation]:[Transportation (Pipeline)]])","v":3.1849424519736544}]
[null,"MEX",{"$f":"VLOOKUP($B40,region[],2,FALSE)","v":"Mexico"},{"$f":"IF(SUMIFS(output[value],output[source],$B40,output[variable],\"<>LC\")=0,\"\",SUMIFS(output[value],output[source],$B40,output[variable],\"<>LC\"))","v":193.69786950437168},{"$f":"IF(SUMIFS(output[value],output[source],$B40,output[process_class],E$21,output[variable],\"<>LC\")=0,\"\",SUMIFS(output[value],output[source],$B40,output[process_class],E$21,output[variable],\"<>LC\"))","v":53.731272299582884},{"$f":"IF(SUMIFS(output[value],output[source],$B40,output[process_class],F$21,output[variable],\"<>LC\")=0,\"\",SUMIFS(output[value],output[source],$B40,output[process_class],F$21,output[variable],\"<>LC\"))","v":23.953901991429944},{"$f":"IF(SUMIFS(output[value],output[source],$B40,output[process_class],G$21,output[variable],\"<>LC\")=0,\"\",SUMIFS(output[value],output[source],$B40,output[process_class],G$21,output[variable],\"<>LC\"))","v":112.81343172652593},{"$f":"IF(SUMIFS(output[value],output[source],$B40,output[process_class],H$21,output[variable],\"<>LC\")=0,\"\",SUMIFS(output[value],output[source],$B40,output[process_class],H$21,output[variable],\"<>LC\"))","v":""},{"$f":"Table23[[#This Row],[Total costs]]-SUM(Table23[[#This Row],[Electricity generation]:[Transportation (Pipeline)]])","v":3.1992634868329333}]
[null,"MRT",{"$f":"VLOOKUP($B41,region[],2,FALSE)","v":"Mauritania"},{"$f":"IF(SUMIFS(output[value],output[source],$B41,output[variable],\"<>LC\")=0,\"\",SUMIFS(output[value],output[source],$B41,output[variable],\"<>LC\"))","v":111.56147860270524},{"$f":"IF(SUMIFS(output[value],output[source],$B41,output[process_class],E$21,output[variable],\"<>LC\")=0,\"\",SUMIFS(output[value],output[source],$B41,output[process_class],E$21,output[variable],\"<>LC\"))","v":43.986078533693195},{"$f":"IF(SUMIFS(output[value],output[source],$B41,output[process_class],F$21,output[variable],\"<>LC\")=0,\"\",SUMIFS(output[value],output[source],$B41,output[process_class],F$21,output[variable],\"<>LC\"))","v":14.923725343174109},{"$f":"IF(SUMIFS(output[value],output[source],$B41,output[process_class],G$21,output[variable],\"<>LC\")=0,\"\",SUMIFS(output[value],output[source],$B41,output[process_class],G$21,output[variable],\"<>LC\"))","v":""},{"$f":"IF(SUMIFS(output[value],output[source],$B41,output[process_class],H$21,output[variable],\"<>LC\")=0,\"\",SUMIFS(output[value],output[source],$B41,output[process_class],H$21,output[variable],\"<>LC\"))","v":50.193635443501762},{"$f":"Table23[[#This Row],[Total costs]]-SUM(Table23[[#This Row],[Electricity generation]:[Transportation (Pipeline)]])","v":2.4580392823361734}]
[null,"NAM",{"$f":"VLOOKUP($B42,region[],2,FALSE)","v":"Namibia"},{"$f":"IF(SUMIFS(output[value],output[source],$B42,output[variable],\"<>LC\")=0,\"\",SUMIFS(output[value],output[source],$B42,output[variable],\"<>LC\"))","v":157.96363381355243},{"$f":"IF(SUMIFS(output[value],output[source],$B42,output[process_class],E$21,output[variable],\"<>LC\")=0,\"\",SUMIFS(output[value],output[source],$B42,output[process_class],E$21,output[variable],\"<>LC\"))","v":46.735148228398856},{"$f":"IF(SUMIFS(output[value],output[source],$B42,output[process_class],F$21,output[variable],\"<>LC\")=0,\"\",SUMIFS(output[value],output[source],$B42,output[process_class],F$21,output[variable],\"<>LC\"))","v":15.417383345246632},{"$f":"IF(SUMIFS(output[value],output[source],$B42,output[process_class],G$21,output[variable],\"<>LC\")=0,\"\",SUMIFS(output[value],output[source],$B42,output[process_class],G$21,output[variable],\"<>LC\"))","v":93.192710185975429},{"$f":"IF(SUMIFS(output[value],output[source],$B42,output[process_class],H$21,output[variable],\"<>LC\")=0,\"\",SUMIFS(output[value],output[source],$B42,output[process_class],H$21,output[variable],\"<>LC\"))","v":""},{"$f":"Table23[[#This Row],[Total costs]]-SUM(Table23[[#This Row],[Electricity generation]:[Transportation (Pipeline)]])","v":2.6183920539315011}]
[null,"NOR",{"$f":"VLOOKUP($B43,region[],2,FALSE)","v":"Norway"},{"$f":"IF(SUMIFS(output[value],output[source],$B43,output[variable],\"<>LC\")=0,\"\",SUMIFS(output[value],output[source],$B43,output[variable],\"<>LC\"))","v":53.626255940121489},{"$f":"IF(SUMIFS(output[value],output[source],$B43,output[process_class],E$21,output[variable],\"<>LC\")=0,\"\",SUMIFS(output[value],output[source],$B43,output[process_class],E$21,output[variable],\"<>LC\"))","v":32.384074630162154},{"$f":"IF(SUMIFS(output[value],output[source],$B43,output[process_class],F$21,output[variable],\"<>LC\")=0,\"\",SUMIFS(output[value],output[source],$B43,output[process_class],F$21,output[variable],\"<>LC\"))","v":13.294777830891862},{"$f":"IF(SUMIFS(output[value],output[source],$B43,output[process_class],G$21,output[variable],\"<>LC\")=0,\"\",SUMIFS(output[value],output[source],$B43,output[process_class],G$21,output[variable],\"<>LC\"))","v":""},{"$f":"IF(SUMIFS(output[value],output[source],$B43,output[process_class],H$21,output[variable],\"<>LC\")=0,\"\",SUMIFS(output[value],output[source],$B43,output[process_class],H$21,output[variable],\"<>LC\"))","v":6.035558315775079},{"$f":"Table23[[#This Row],[Total costs]]-SUM(Table23[[#This Row],[Electricity generation]:[Transportation (Pipeline)]])","v":1.9118451632923978}]
[null,"PER",{"$f":"VLOOKUP($B44,region[],2,FALSE)","v":"Peru"},{"$f":"IF(SUMIFS(output[value],output[source],$B44,output[variable],\"<>LC\")=0,\"\",SUMIFS(output[value],output[source],$B44,output[variable],\"<>LC\"))","v":252.32227447130248},{"$f":"IF(SUMIFS(output[value],output[source],$B44,output[process_class],E$21,output[variable],\"<>LC\")=0,\"\",SUMIFS(output[value],output[source],$B44,output[process_class],E$21,output[variable],\"<>LC\"))","v":72.549428083980914},{"$f":"IF(SUMIFS(output[value],output[source],$B44,output[process_class],F$21,output[variable],\"<>LC\")=0,\"\",SUMIFS(output[value],output[source],$B44,output[process_class],F$21,output[variable],\"<>LC\"))","v":34.430671253642572},{"$f":"IF(SUMIFS(output[value],output[source],$B44,output[process_class],G$21,output[variable],\"<>LC\")=0,\"\",SUMIFS(output[value],output[source],$B44,output[process_class],G$21,output[variable],\"<>LC\"))","v":141.01341547422854},{"$f":"IF(SUMIFS(output[value],output[source],$B44,output[process_class],H$21,output[variable],\"<>LC\")=0,\"\",SUMIFS(output[value],output[source],$B44,output[process_class],H$21,output[variable],\"<>LC\"))","v":""},{"$f":"Table23[[#This Row],[Total costs]]-SUM(Table23[[#This Row],[Electricity generation]:[Transportation (Pipeline)]])","v":4.3287596594504407}]
[null,"PRT",{"$f":"VLOOKUP($B45,region[],2,FALSE)","v":"Portugal"},{"$f":"IF(SUMIFS(output[value],output[source],$B45,output[variable],\"<>LC\")=0,\"\",SUMIFS(output[value],output[source],$B45,output[variable],\"<>LC\"))","v":77.060310315271224},{"$f":"IF(SUMIFS(output[value],output[source],$B45,output[process_class],E$21,output[variable],\"<>LC\")=0,\"\",SUMIFS(output[value],output[source],$B45,output[process_class],E$21,output[variable],\"<>LC\"))","v":38.638000977688492},{"$f":"IF(SUMIFS(output[value],output[source],$B45,output[process_class],F$21,output[variable],\"<>LC\")=0,\"\",SUMIFS(output[value],output[source],$B45,output[process_class],F$21,output[variable],\"<>LC\"))","v":13.647122754679938},{"$f":"IF(SUMIFS(output[value],output[source],$B45,output[process_class],G$21,output[variable],\"<>LC\")=0,\"\",SUMIFS(output[value],output[source],$B45,output[process_class],G$21,output[variable],\"<>LC\"))","v":""},{"$f":"IF(SUMIFS(output[value],output[source],$B45,output[process_class],H$21,output[variable],\"<>LC\")=0,\"\",SUMIFS(output[value],output[source],$B45,output[process_class],H$21,output[variable],\"<>LC\"))","v":22.592792116374763},{"$f":"Table23[[#This Row],[Total costs]]-SUM(Table23[[#This Row],[Electricity generation]:[Transportation (Pipeline)]])","v":2.1823944665280237}]
[null,"RUS",{"$f":"VLOOKUP($B46,region[],2,FALSE)","v":"Russia"},{"$f":"IF(SUMIFS(output[value],output[source],$B46,output[variable],\"<>LC\")=0,\"\",SUMIFS(output[value],output[source],$B46,output[variable],\"<>LC\"))","v":100.93018770415665},{"$f":"IF(SUMIFS(output[value],output[source],$B46,output[process_class],E$21,output[variable],\"<>LC\")=0,\"\",SUMIFS(output[value],output[source],$B46,output[process_class],E$21,output[variable],\"<>LC\"))","v":69.935517092190764},{"$f":"IF(SUMIFS(output[value],output[source],$B46,output[process_class],F$21,output[variable],\"<>LC\")=0,\"\",SUMIFS(output[value],output[source],$B46,output[process_class],F$21,output[variable],\"<>LC\"))","v":19.008804817392015},{"$f":"IF(SUMIFS(output[value],output[source],$B46,output[process_class],G$21,output[variable],\"<>LC\")=0,\"\",SUMIFS(output[value],output[source],$B46,output[process_class],G$21,output[variable],\"<>LC\"))","v":""},{"$f":"IF(SUMIFS(output[value],output[source],$B46,output[process_class],H$21,output[variable],\"<>LC\")=0,\"\",SUMIFS(output[value],output[source],$B46,output[process_class],H$21,output[variable],\"<>LC\"))","v":8.3977527220082742},{"$f":"Table23[[#This Row],[Total costs]]-SUM(Table23[[#This Row],[Electricity generation]:[Transportation (Pipeline)]])","v":3.5881130725655908}]
[null,"SAU",{"$f":"VLOOKUP($B47,region[],2,FALSE)","v":"Saudi Arabia"},{"$f":"IF(SUMIFS(output[value],output[source],$B47,output[variable],\"<>LC\")=0,\"\",SUMIFS(output[value],output[source],$B47,output[variable],\"<>LC\"))","v":119.16928161703176},{"$f":"IF(SUMIFS(output[value],output[source],$B47,output[process_class],E$21,output[variable],\"<>LC\")=0,\"\",SUMIFS(output[value],output[source],$B47,output[process_class],E$21,output[variable],\"<>LC\"))","v":49.437790548829696},{"$f":"IF(SUMIFS(output[value],output[source],$B47,output[process_class],F$21,output[variable],\"<>LC\")=0,\"\",SUMIFS(output[value],output[source],$B47,output[process_class],F$21,output[variable],\"<>LC\"))","v":21.819931790487249},{"$f":"IF(SUMIFS(output[value],output[source],$B47,output[process_class],G$21,output[variable],\"<>LC\")=0,\"\",SUMIFS(output[value],output[source],$B47,output[process_class],G$21,output[variable],\"<>LC\"))","v":""},{"$f":"IF(SUMIFS(output[value],output[source],$B47,output[process_class],H$21,output[variable],\"<>LC\")=0,\"\",SUMIFS(output[value],output[source],$B47,output[process_class],H$21,output[variable],\"<>LC\"))","v":45.00297153120281},{"$f":"Table23[[#This Row],[Total costs]]-SUM(Table23[[#This Row],[Electricity generation]:[Transportation (Pipeline)]])","v":2.9085877465119978}]
[null,"SWE",{"$f":"VLOOKUP($B48,region[],2,FALSE)","v":"Sweden"},{"$f":"IF(SUMIFS(output[value],output[source],$B48,output[variable],\"<>LC\")=0,\"\",SUMIFS(output[value],output[source],$B48,output[variable],\"<>LC\"))","v":80.414143703503967},{"$f":"IF(SUMIFS(output[value],output[source],$B48,output[process_class],E$21,output[variable],\"<>LC\")=0,\"\",SUMIFS(output[value],output[source],$B48,output[process_class],E$21,output[variable],\"<>LC\"))","v":44.68855799174289},{"$f":"IF(SUMIFS(output[value],output[source],$B48,output[process_class],F$21,output[variable],\"<>LC\")=0,\"\",SUMIFS(output[value],output[source],$B48,output[process_class],F$21,output[variable],\"<>LC\"))","v":18.030344687250413},{"$f":"IF(SUMIFS(output[value],output[source],$B48,output[process_class],G$21,output[variable],\"<>LC\")=0,\"\",SUMIFS(output[value],output[source],$B48,output[process_class],G$21,output[variable],\"<>LC\"))","v":""},{"$f":"IF(SUMIFS(output[value],output[source],$B48,output[process_class],H$21,output[variable],\"<>LC\")=0,\"\",SUMIFS(output[value],output[source],$B48,output[process_class],H$21,output[variable],\"<>LC\"))","v":15.127714186528197},{"$f":"Table23[[#This Row],[Total costs]]-SUM(Table23[[#This Row],[Electricity generation]:[Transportation (Pipeline)]])","v":2.5675268379824701}]
[null,"THA",{"$f":"VLOOKUP($B49,region[],2,FALSE)","v":"Thailand"},{"$f":"IF(SUMIFS(output[value],output[source],$B49,output[variable],\"<>LC\")=0,\"\",SUMIFS(output[value],output[source],$B49,output[variable],\"<>LC\"))","v":254.89598869988527},{"$f":"IF(SUMIFS(output[value],output[source],$B49,output[process_class],E$21,output[variable],\"<>LC\")=0,\"\",SUMIFS(output[value],output[source],$B49,output[process_class],E$21,output[variable],\"<>LC\"))","v":76.053467486125157},{"$f":"IF(SUMIFS(output[value],output[source],$B49,output[process_class],F$21,output[variable],\"<>LC\")=0,\"\",SUMIFS(output[value],output[source],$B49,output[process_class],F$21,output[variable],\"<>LC\"))","v":30.252823163961764},{"$f":"IF(SUMIFS(output[value],output[source],$B49,output[process_class],G$21,output[variable],\"<>LC\")=0,\"\",SUMIFS(output[value],output[source],$B49,output[process_class],G$21,output[variable],\"<>LC\"))","v":144.27260588374384},{"$f":"IF(SUMIFS(output[value],output[source],$B49,output[process_class],H$21,output[variable],\"<>LC\")=0,\"\",SUMIFS(output[value],output[source],$B49,output[process_class],H$21,output[variable],\"<>LC\"))","v":""},{"$f":"Table23[[#This Row],[Total costs]]-SUM(Table23[[#This Row],[Electricity generation]:[Transportation (Pipeline)]])","v":4.3170921660545218}]
[null,"TUN",{"$f":"VLOOKUP($B50,region[],2,FALSE)","v":"Tunisia"},{"$f":"IF(SUMIFS(output[value],output[source],$B50,output[variable],\"<>LC\")=0,\"\",SUMIFS(output[value],output[source],$B50,output[variable],\"<>LC\"))","v":128.20271767612996},{"$f":"IF(SUMIFS(output[value],output[source],$B50,output[process_class],E$21,output[variable],\"<>LC\")=0,\"\",SUMIFS(output[value],output[source],$B50,output[process_class],E$21,output[variable],\"<>LC\"))","v":68.592628543840846},{"$f":"IF(SUMIFS(output[value],output[source],$B50,output[process_class],F$21,output[variable],\"<>LC\")=0,\"\",SUMIFS(output[value],output[source],$B50,output[process_class],F$21,output[variable],\"<>LC\"))","v":27.636522970406755},{"$f":"IF(SUMIFS(output[value],output[source],$B50,output[process_class],G$21,output[variable],\"<>LC\")=0,\"\",SUMIFS(output[value],output[source],$B50,output[process_class],G$21,output[variable],\"<>LC\"))","v":""},{"$f":"IF(SUMIFS(output[value],output[source],$B50,output[process_class],H$21,output[variable],\"<>LC\")=0,\"\",SUMIFS(output[value],output[source],$B50,output[process_class],H$21,output[variable],\"<>LC\"))","v":28.078498750809931},{"$f":"Table23[[#This Row],[Total costs]]-SUM(Table23[[#This Row],[Electricity generation]:[Transportation (Pipeline)]])","v":3.8950674110724322}]
[null,"UKR",{"$f":"VLOOKUP($B51,region[],2,FALSE)","v":"Ukraine"},{"$f":"IF(SUMIFS(output[value],output[source],$B51,output[variable],\"<>LC\")=0,\"\",SUMIFS(output[value],output[source],$B51,output[variable],\"<>LC\"))","v":94.833048403803105},{"$f":"IF(SUMIFS(output[value],output[source],$B51,output[process_class],E$21,output[variable],\"<>LC\")=0,\"\",SUMIFS(output[value],output[source],$B51,output[process_class],E$21,output[variable],\"<>LC\"))","v":51.646991135608815},{"$f":"IF(SUMIFS(output[value],output[source],$B51,output[process_class],F$21,output[variable],\"<>LC\")=0,\"\",SUMIFS(output[value],output[source],$B51,output[process_class],F$21,output[variable],\"<>LC\"))","v":21.170254639991757},{"$f":"IF(SUMIFS(output[value],output[source],$B51,output[process_class],G$21,output[variable],\"<>LC\")=0,\"\",SUMIFS(output[value],output[source],$B51,output[process_class],G$21,output[variable],\"<>LC\"))","v":""},{"$f":"IF(SUMIFS(output[value],output[source],$B51,output[process_class],H$21,output[variable],\"<>LC\")=0,\"\",SUMIFS(output[value],output[source],$B51,output[process_class],H$21,output[variable],\"<>LC\"))","v":19.013816707878309},{"$f":"Table23[[#This Row],[Total costs]]-SUM(Table23[[#This Row],[Electricity generation]:[Transportation (Pipeline)]])","v":3.0019859203242305}]
[null,"URY",{"$f":"VLOOKUP($B52,region[],2,FALSE)","v":"Uruguay"},{"$f":"IF(SUMIFS(output[value],output[source],$B52,output[variable],\"<>LC\")=0,\"\",SUMIFS(output[value],output[source],$B52,output[variable],\"<>LC\"))","v":203.20420289679814},{"$f":"IF(SUMIFS(output[value],output[source],$B52,output[process_class],E$21,output[variable],\"<>LC\")=0,\"\",SUMIFS(output[value],output[source],$B52,output[process_class],E$21,output[variable],\"<>LC\"))","v":73.468771702223179},{"$f":"IF(SUMIFS(output[value],output[source],$B52,output[process_class],F$21,output[variable],\"<>LC\")=0,\"\",SUMIFS(output[value],output[source],$B52,output[process_class],F$21,output[variable],\"<>LC\"))","v":19.633352498049327},{"$f":"IF(SUMIFS(output[value],output[source],$B52,output[process_class],G$21,output[variable],\"<>LC\")=0,\"\",SUMIFS(output[value],output[source],$B52,output[process_class],G$21,output[variable],\"<>LC\"))","v":106.29592286153287},{"$f":"IF(SUMIFS(output[value],output[source],$B52,output[process_class],H$21,output[variable],\"<>LC\")=0,\"\",SUMIFS(output[value],output[source],$B52,output[process_class],H$21,output[variable],\"<>LC\"))","v":""},{"$f":"Table23[[#This Row],[Total costs]]-SUM(Table23[[#This Row],[Electricity generation]:[Transportation (Pipeline)]])","v":3.8061558349927793}]
[null,"USA",{"$f":"VLOOKUP($B53,region[],2,FALSE)","v":"USA"},{"$f":"IF(SUMIFS(output[value],output[source],$B53,output[variable],\"<>LC\")=0,\"\",SUMIFS(output[value],output[source],$B53,output[variable],\"<>LC\"))","v":146.73893710025141},{"$f":"IF(SUMIFS(output[value],output[source],$B53,output[process_class],E$21,output[variable],\"<>LC\")=0,\"\",SUMIFS(output[value],output[source],$B53,output[process_class],E$21,output[variable],\"<>LC\"))","v":42.324469888754393},{"$f":"IF(SUMIFS(output[value],output[source],$B53,output[process_class],F$21,output[variable],\"<>LC\")=0,\"\",SUMIFS(output[value],output[source],$B53,output[process_class],F$21,output[variable],\"<>LC\"))","v":15.752654028145006},{"$f":"IF(SUMIFS(output[value],output[source],$B53,output[process_class],G$21,output[variable],\"<>LC\")=0,\"\",SUMIFS(output[value],output[source],$B53,output[process_class],G$21,output[variable],\"<>LC\"))","v":86.229161295734656},{"$f":"IF(SUMIFS(output[value],output[source],$B53,output[process_class],H$21,output[variable],\"<>LC\")=0,\"\",SUMIFS(output[value],output[source],$B53,output[process_class],H$21,output[variable],\"<>LC\"))","v":""},{"$f":"Table23[[#This Row],[Total costs]]-SUM(Table23[[#This Row],[Electricity generation]:[Transportation (Pipeline)]])","v":2.4326518876173395}]
[null,"VNM",{"$f":"VLOOKUP($B54,region[],2,FALSE)","v":"Vietnam"},{"$f":"IF(SUMIFS(output[value],output[source],$B54,output[variable],\"<>LC\")=0,\"\",SUMIFS(output[value],output[source],$B54,output[variable],\"<>LC\"))","v":253.84687465348247},{"$f":"IF(SUMIFS(output[value],output[source],$B54,output[process_class],E$21,output[variable],\"<>LC\")=0,\"\",SUMIFS(output[value],output[source],$B54,output[process_class],E$21,output[variable],\"<>LC\"))","v":87.716141944521624},{"$f":"IF(SUMIFS(output[value],output[source],$B54,output[process_class],F$21,output[variable],\"<>LC\")=0,\"\",SUMIFS(output[value],output[source],$B54,output[process_class],F$21,output[variable],\"<>LC\"))","v":25.835676241569324},{"$f":"IF(SUMIFS(output[value],output[source],$B54,output[process_class],G$21,output[variable],\"<>LC\")=0,\"\",SUMIFS(output[value],output[source],$B54,output[process_class],G$21,output[variable],\"<>LC\"))","v":135.67907880896331},{"$f":"IF(SUMIFS(output[value],output[source],$B54,output[process_class],H$21,output[variable],\"<>LC\")=0,\"\",SUMIFS(output[value],output[source],$B54,output[process_class],H$21,output[variable],\"<>LC\"))","v":""},{"$f":"Table23[[#This Row],[Total costs]]-SUM(Table23[[#This Row],[Electricity generation]:[Transportation (Pipeline)]])","v":4.6159776584282213}]
[null,"ZAF",{"$f":"VLOOKUP($B55,region[],2,FALSE)","v":"South Africa"},{"$f":"IF(SUMIFS(output[value],output[source],$B55,output[variable],\"<>LC\")=0,\"\",SUMIFS(output[value],output[source],$B55,output[variable],\"<>LC\"))","v":230.5540013769959},{"$f":"IF(SUMIFS(output[value],output[source],$B55,output[process_class],E$21,output[variable],\"<>LC\")=0,\"\",SUMIFS(output[value],output[source],$B55,output[process_class],E$21,output[variable],\"<>LC\"))","v":66.567623934431467},{"$f":"IF(SUMIFS(output[value],output[source],$B55,output[process_class],F$21,output[variable],\"<>LC\")=0,\"\",SUMIFS(output[value],output[source],$B55,output[process_class],F$21,output[variable],\"<>LC\"))","v":29.422204186038432},{"$f":"IF(SUMIFS(output[value],output[source],$B55,output[process_class],G$21,output[variable],\"<>LC\")=0,\"\",SUMIFS(output[value],output[source],$B55,output[process_class],G$21,output[variable],\"<>LC\"))","v":130.64838288005495},{"$f":"IF(SUMIFS(output[value],output[source],$B55,output[process_class],H$21,output[variable],\"<>LC\")=0,\"\",SUMIFS(output[value],output[source],$B55,output[process_class],H$21,output[variable],\"<>LC\"))","v":""},{"$f":"Table23[[#This Row],[Total costs]]-SUM(Table23[[#This Row],[Electricity generation]:[Transportation (Pipeline)]])","v":3.9157903764710511}]
[]
[]
[null,null,null,"Total costs ",{"$f":"E$21","v":"Electricity generation"},{"$f":"F$21","v":"Electrolysis"},"Transportation (Ship)","Transportation (Pipeline)","Other"]
[null,null,"Min",{"$f":"_xlfn.AGGREGATE(5,6,D$22:D$55)","v":52.148140773712043},27.131125609483952,12.606593781218553,86.229161295734656,5.6497639397588983,1.7006176401917941]
[null,null,"First quartile",{"$f":"_xlfn.AGGREGATE(16,6,D$22:D$55,0.25)","v":113.46342935628687},42.463370768146,17.673711882490991,{"$f":"IFERROR(_xlfn.AGGREGATE(16,6,G$22:G$55,0.25),0)","v":103.07275322866468},{"$f":"IFERROR(_xlfn.AGGREGATE(16,6,H$22:H$55,0.25),0)","v":16.514620066545472},2.438998736297048]
[null,null,"Median",{"$f":"_xlfn.AGGREGATE(16,6,D$22:D$55,0.5)","v":158.63103526786009},56.370971193084976,21.346531010786123,{"$f":"IFERROR(_xlfn.AGGREGATE(16,6,G$22:G$55,0.5),0)","v":121.99928115903924},{"$f":"IFERROR(_xlfn.AGGREGATE(16,6,H$22:H$55,0.5),0)","v":28.078498750809931},3.1921029694032939]
[null,null,"Third quartile",{"$f":"_xlfn.AGGREGATE(16,6,D$22:D$55,0.75)","v":223.71655175694644},73.238935797662606,28.202083162499299,{"$f":"IFERROR(_xlfn.AGGREGATE(16,6,G$22:G$55,0.75),0)","v":135.93167780562564},{"$f":"IFERROR(_xlfn.AGGREGATE(16,6,H$22:H$55,0.75),0)","v":40.842561201254007},4.1303587964532014]
[null,null,"Max",{"$f":"_xlfn.AGGREGATE(4,6,D$22:D$55)","v":376.93770635903257},147.18452052887406,45.371297501532666,176.7506079127507,54.088400153429312,7.6312804158751533]
[null,null,"Own country",{"$f":"SUMIF($B$22:$B$55,sel_region_code,D$22:D$55)","v":171.70333473886961},55.965668766531095,21.522807381580492,91.029916138784358,0,3.1849424519736544]
[]
[]
[null,null,null,"Total costs",{"$f":"E$21","v":"Electricity generation"},{"$f":"F$21","v":"Electrolysis"},"Transportation (Ship)","Transportation (Pipeline)","Other"]
[null,null,"Min",{"$f":"D59","v":52.148140773712043},{"$f":"E59","v":27.131125609483952},{"$f":"F59","v":12.606593781218553},{"$f":"G59","v":86.229161295734656},5.6497639397588983,{"$f":"I59","v":1.7006176401917941}]
[null,null,"Q1-Min",{"$f":"D60-D59","v":61.315288582574823},{"$f":"E60-E59","v":15.332245158662047},{"$f":"F60-F59","v":5.0671181012724382},{"$f":"G60-G59","v":16.843591932930025},10.864856126786574,{"$f":"I60-I59","v":0.73838109610525393}]
[null,null,"Q2-Q1",{"$f":"D61-D60","v":45.167605911573219},{"$f":"E61-E60","v":13.907600424938977},3.6728191282951315,{"$f":"G61-G60","v":18.926527930374561},11.563878684264459,{"$f":"I61-I60","v":0.75310423310624586}]
[null,null,"Q3-Q2",{"$f":"D62-D61","v":65.085516489086359},16.867964604577629,6.8555521517131766,{"$f":"G62-G61","v":13.932396646586398},12.764062450444076,{"$f":"I62-I61","v":0.93825582704990751}]
[null,null,"Max-Q3",153.22115460208613,73.945584731211454,17.169214339033367,{"$f":"G63-G62","v":40.818930107125055},13.245838952175305,{"$f":"I63-I62","v":3.5009216194219519}]
[null,{"$f":"sel_region_code","v":"MAR"},{"$f":"sel_region_name","v":"Morocco"},{"$f":"IF(SUMIFS(output[value],output[source],$B73,output[variable],\"<>LC\")=0,\"\",SUMIFS(output[value],output[source],$B73,output[variable],\"<>LC\"))","v":171.70333473886961},{"$f":"IF(SUMIFS(output[value],output[source],$B73,output[process_class],E$21,output[variable],\"<>LC\")=0,\"\",SUMIFS(output[value],output[source],$B73,output[process_class],E$21,output[variable],\"<>LC\"))","v":55.965668766531095},{"$f":"IF(SUMIFS(output[value],output[source],$B73,output[process_class],F$21,output[variable],\"<>LC\")=0,\"\",SUMIFS(output[value],output[source],$B73,output[process_class],F$21,output[variable],\"<>LC\"))","v":21.522807381580492},{"$f":"IF(SUMIFS(output[value],output[source],$B73,output[process_class],G$21,output[variable],\"<>LC\")=0,\"\",SUMIFS(output[value],output[source],$B73,output[process_class],G$21,output[variable],\"<>LC\"))","v":91.029916138784358},{"$f":"IF(SUMIFS(output[value],output[source],$B73,output[process_class],H$21,output[variable],\"<>LC\")=0,\"\",SUMIFS(output[value],output[source],$B73,output[process_class],H$21,output[variable],\"<>LC\"))","v":""},{"$f":"D73-SUM(E73:H73)","v":3.1849424519736544}]

{"sheet":"b_CompareInputData","index":24,"n_rows":83,"n_cols":21,"rows_kept":83,"cut":false,"hidden":false,"merged":[[1,13,1,14],[2,13,2,14],[4,2,8,9]]}
[]
[null,null,"COUNTRY-SPECIFIC INPUT DATA",null,null,null,null,null,null,null,null,null,null,"YOUR SETTINGS"]
[null,null,null,null,null,null,null,null,null,null,null,null,null,"can be re-adjusted on the dashboard"]
[null,null,"Compare input data for all PtX BOA supply countries",null,null,null,null,null,null,null,null,null,null,"Supply country:",{"$f":"sel_region_name","v":"Morocco"}]
[null,null,"This sheet gives you an overview of model input data that is country-specific. \nThis includes full load hours (FLH) and capital expenditures (CAPEX) of renewable generation technologies, weighted average cost of capital (WACC), \nas well as shipping and pipeline distances to the chosen demand country. You may need to scroll to the right to see all data. \n\nThe box plots show median, 1st and 3rd quartile as well as the total spread of values. They also show the data for your country (pink dot) for comparison. ",null,null,null,null,null,null,null,null,null,null,"Demand country:",{"$f":"sel_country_name","v":"Germany"}]
[null,null,null,null,null,null,null,null,null,null,null,null,null,"RE generation:",{"$f":"sel_res_gen_name","v":"Wind-PV-Hybrid"}]
[null,null,null,null,null,null,null,null,null,null,null,null,null,"Process chain:",{"$f":"sel_chain","v":"Hydrogen (AEL)"}]
[null,null,null,null,null,null,null,null,null,null,null,null,null,"CO2 source:",{"$f":"sel_secproc_co2","v":"DAC"}]
[null,null,null,null,null,null,null,null,null,null,null,null,null,"Water source:",{"$f":"sel_secproc_water","v":"Water desalination"}]
[null,null,null,null,null,null,null,null,null,null,null,null,null,"Transport mode:",{"$f":"sel_transport","v":"Ship"}]
[null,null,null,null,null,null,null,null,null,null,null,null,null,"Scenario:",{"$f":"sel_scenario","v":"2030 (medium)"}]
[]
[]
[null,null,"parameter_code",null,"WACC",null,"FLH","FLH","FLH","FLH",null,null,null,"CAPEX","CAPEX","CAPEX","CAPEX",null,"DST-S-D",null,"DST-S-DP"]
[null,null,"process_code",null,null,null,{"$f":"INDEX(process[process_code],MATCH(G$24,process[process_name],0),1)","v":"PV-FIX"},{"$f":"INDEX(process[process_code],MATCH(H$24,process[process_name],0),1)","v":"WIND-ON"},{"$f":"INDEX(process[process_code],MATCH(I$24,process[process_name],0),1)","v":"WIND-OFF"},{"$f":"INDEX(process[process_code],MATCH(J$24,process[process_name],0),1)","v":"RES-HYBR"},null,null,null,{"$f":"INDEX(process[process_code],MATCH(N$24,process[process_name],0),1)","v":"PV-FIX"},{"$f":"INDEX(process[process_code],MATCH(O$24,process[process_name],0),1)","v":"WIND-ON"},{"$f":"INDEX(process[process_code],MATCH(P$24,process[process_name],0),1)","v":"WIND-OFF"},{"$f":"INDEX(process[process_code],MATCH(Q$24,process[process_name],0),1)","v":"RES-HYBR"}]
[]
[]
[]
[]
[]
[]
[]
[]
[null,null,null,null,null,null,"PV tilted","Wind Onshore","Wind Offshore","Wind-PV-Hybrid","Electrolysis","Derivate production",null,"PV tilted","Wind Onshore","Wind Offshore","Wind-PV-Hybrid"]
[null,null,"flow_code"]
[null,null,"target_country_code",null,null,null,null,null,null,null,null,null,null,null,null,null,null,null,{"$f":"sel_country_code","v":"DEU"},null,{"$f":"sel_country_code","v":"DEU"}]
[null,null,{"$f":"\"Other processes \n(\"&sel_res_gen_name&\" + \"&sel_chain&\")\"","v":"Other processes \n(Wind-PV-Hybrid + Hydrogen (AEL))"}]
[]
[null,null,null,null,"WACC",null,{"$f":"VLOOKUP(G$14,parameter[],2,FALSE)","v":"full load hours"},{"$f":"VLOOKUP(H$14,parameter[],2,FALSE)","v":"full load hours"},{"$f":"VLOOKUP(I$14,parameter[],2,FALSE)","v":"full load hours"},{"$f":"VLOOKUP(J$14,parameter[],2,FALSE)","v":"full load hours"},null,null,null,{"$f":"VLOOKUP(N$14,parameter[],2,FALSE)","v":"CAPEX"},{"$f":"VLOOKUP(O$14,parameter[],2,FALSE)","v":"CAPEX"},{"$f":"VLOOKUP(P$14,parameter[],2,FALSE)","v":"CAPEX"},{"$f":"VLOOKUP(Q$14,parameter[],2,FALSE)","v":"CAPEX"},null,{"$f":"VLOOKUP(S$14,parameter[],2,FALSE)","v":"shipping distance"},null,{"$f":"VLOOKUP(U$14,parameter[],2,FALSE)","v":"pipeline distance"}]
[null,null,null,null,{"$f":"VLOOKUP(E$14,parameter[],3,FALSE)","v":"fraction"},null,{"$f":"VLOOKUP(G$14,parameter[],3,FALSE)","v":"h"},{"$f":"VLOOKUP(H$14,parameter[],3,FALSE)","v":"h"},{"$f":"VLOOKUP(I$14,parameter[],3,FALSE)","v":"h"},{"$f":"VLOOKUP(J$14,parameter[],3,FALSE)","v":"h"},null,null,null,{"$f":"VLOOKUP(N$14,parameter[],3,FALSE)","v":"USD2021/kW"},{"$f":"VLOOKUP(O$14,parameter[],3,FALSE)","v":"USD2021/kW"},{"$f":"VLOOKUP(P$14,parameter[],3,FALSE)","v":"USD2021/kW"},{"$f":"VLOOKUP(Q$14,parameter[],3,FALSE)","v":"USD2021/kW"},null,{"$f":"VLOOKUP(S$14,parameter[],3,FALSE)","v":"km"},null,{"$f":"VLOOKUP(U$14,parameter[],3,FALSE)","v":"km"}]
[null,"Country code","Supply country",null,"WACC",null,"Full load hours (h/year)","Full load hours (h/year)","Full load hours (h/year)","Full load hours (h/year)","Full load hours (h/year)","Full load hours (h/year)",null,{"$f":"N$29&\" (\"&N$30&\")\"","v":"CAPEX (USD2021/kW)"},{"$f":"O$29&\" (\"&O$30&\")\"","v":"CAPEX (USD2021/kW)"},"CAPEX (USD2021/kW)","CAPEX (USD2021/kW)",null,{"$f":"\"Shipping distance to \"&sel_country_name & \" (km)\"","v":"Shipping distance to Germany (km)"},null,{"$f":"\"Pipeline distance to \"&sel_country_name & \" (km)\"","v":"Pipeline distance to Germany (km)"}]
[null,"ARE",{"$f":"VLOOKUP($B32,region[],2,FALSE)","v":"United Arab Emirates"},null,{"$f":"VLOOKUP(E$14&\",\"&E$15&\",\"&E$25&\",\"&$B32&\",\"&E$26,data[],7,FALSE)","v":5.5673211551852057E-2},null,{"$f":"IFERROR(VLOOKUP(G$14&\",\"&G$15&\",\"&G$25&\",\"&$B32&\",\"&G$26,data[],7,FALSE),\"\")","v":1662},{"$f":"IFERROR(VLOOKUP(H$14&\",\"&H$15&\",\"&H$25&\",\"&$B32&\",\"&H$26,data[],7,FALSE),\"\")","v":1642.3104587999985},{"$f":"IFERROR(VLOOKUP(I$14&\",\"&I$15&\",\"&I$25&\",\"&$B32&\",\"&I$26,data[],7,FALSE),\"\")","v":2453},{"$f":"IFERROR(VLOOKUP(J$14&\",\"&J$15&\",\"&J$25&\",\"&$B32&\",\"&J$26,data[],7,FALSE),\"\")","v":3116.3347803479924},{"$f":"INDEX(flh_ely,MATCH($B32,flh_region_code))","v":2960.5180413305925},{"$f":"INDEX(flh_deriv,MATCH($B32,flh_region_code))","v":0},null,{"$f":"VLOOKUP(N$14&\",\"&N$15&\",\"&N$25&\",\"&$B32&\",\"&N$26,data[],7,FALSE)","v":748.32170696054584},{"$f":"VLOOKUP(O$14&\",\"&O$15&\",\"&O$25&\",\"&$B32&\",\"&O$26,data[],7,FALSE)","v":1509.7467595809105},{"$f":"VLOOKUP(P$14&\",\"&P$15&\",\"&P$25&\",\"&$B32&\",\"&P$26,data[],7,FALSE)","v":3316.6422675294375},{"$f":"VLOOKUP(Q$14&\",\"&Q$15&\",\"&Q$25&\",\"&$B32&\",\"&Q$26,data[],7,FALSE)","v":1129.0342332707282},null,{"$f":"VLOOKUP(S$14&\",\"&S$15&\",\"&S$25&\",\"&$B32&\",\"&S$26,data[],7,FALSE)","v":12441.9},null,{"$f":"IFERROR(VLOOKUP(U$14&\",\"&U$15&\",\"&U$25&\",\"&$B32&\",\"&U$26,data[],7,FALSE),\"\")","v":5500}]
[null,"ARG",{"$f":"VLOOKUP($B33,region[],2,FALSE)","v":"Argentina"},null,{"$f":"VLOOKUP(E$14&\",\"&E$15&\",\"&E$25&\",\"&$B33&\",\"&E$26,data[],7,FALSE)","v":0.15031035355923136},null,{"$f":"IFERROR(VLOOKUP(G$14&\",\"&G$15&\",\"&G$25&\",\"&$B33&\",\"&G$26,data[],7,FALSE),\"\")","v":1494},{"$f":"IFERROR(VLOOKUP(H$14&\",\"&H$15&\",\"&H$25&\",\"&$B33&\",\"&H$26,data[],7,FALSE),\"\")","v":5369},{"$f":"IFERROR(VLOOKUP(I$14&\",\"&I$15&\",\"&I$25&\",\"&$B33&\",\"&I$26,data[],7,FALSE),\"\")","v":5369},{"$f":"IFERROR(VLOOKUP(J$14&\",\"&J$15&\",\"&J$25&\",\"&$B33&\",\"&J$26,data[],7,FALSE),\"\")","v":5660.92},5785.0249999999996,0,null,{"$f":"VLOOKUP(N$14&\",\"&N$15&\",\"&N$25&\",\"&$B33&\",\"&N$26,data[],7,FALSE)","v":726.01426568983027},{"$f":"VLOOKUP(O$14&\",\"&O$15&\",\"&O$25&\",\"&$B33&\",\"&O$26,data[],7,FALSE)","v":1710.0691451563712},{"$f":"VLOOKUP(P$14&\",\"&P$15&\",\"&P$25&\",\"&$B33&\",\"&P$26,data[],7,FALSE)","v":3316.6422675294375},{"$f":"VLOOKUP(Q$14&\",\"&Q$15&\",\"&Q$25&\",\"&$B33&\",\"&Q$26,data[],7,FALSE)","v":1218.0417054231007},null,{"$f":"VLOOKUP(S$14&\",\"&S$15&\",\"&S$25&\",\"&$B33&\",\"&S$26,data[],7,FALSE)","v":12728.796},null,{"$f":"IFERROR(VLOOKUP(U$14&\",\"&U$15&\",\"&U$25&\",\"&$B33&\",\"&U$26,data[],7,FALSE),\"\")","v":""}]
[null,"AUS",{"$f":"VLOOKUP($B34,region[],2,FALSE)","v":"Australia"},null,{"$f":"VLOOKUP(E$14&\",\"&E$15&\",\"&E$25&\",\"&$B34&\",\"&E$26,data[],7,FALSE)","v":5.0299999999999997E-2},null,{"$f":"IFERROR(VLOOKUP(G$14&\",\"&G$15&\",\"&G$25&\",\"&$B34&\",\"&G$26,data[],7,FALSE),\"\")","v":1557},{"$f":"IFERROR(VLOOKUP(H$14&\",\"&H$15&\",\"&H$25&\",\"&$B34&\",\"&H$26,data[],7,FALSE),\"\")","v":3971},{"$f":"IFERROR(VLOOKUP(I$14&\",\"&I$15&\",\"&I$25&\",\"&$B34&\",\"&I$26,data[],7,FALSE),\"\")","v":4205},{"$f":"IFERROR(VLOOKUP(J$14&\",\"&J$15&\",\"&J$25&\",\"&$B34&\",\"&J$26,data[],7,FALSE),\"\")","v":4753.97},5456.8,0,null,{"$f":"VLOOKUP(N$14&\",\"&N$15&\",\"&N$25&\",\"&$B34&\",\"&N$26,data[],7,FALSE)","v":820.26320505860349},{"$f":"VLOOKUP(O$14&\",\"&O$15&\",\"&O$25&\",\"&$B34&\",\"&O$26,data[],7,FALSE)","v":1710.0691451563712},{"$f":"VLOOKUP(P$14&\",\"&P$15&\",\"&P$25&\",\"&$B34&\",\"&P$26,data[],7,FALSE)","v":3316.6422675294375},{"$f":"VLOOKUP(Q$14&\",\"&Q$15&\",\"&Q$25&\",\"&$B34&\",\"&Q$26,data[],7,FALSE)","v":1265.1661751074873},null,{"$f":"VLOOKUP(S$14&\",\"&S$15&\",\"&S$25&\",\"&$B34&\",\"&S$26,data[],7,FALSE)","v":21212.3},null,{"$f":"IFERROR(VLOOKUP(U$14&\",\"&U$15&\",\"&U$25&\",\"&$B34&\",\"&U$26,data[],7,FALSE),\"\")","v":""}]
[null,"BRA",{"$f":"VLOOKUP($B35,region[],2,FALSE)","v":"Brazil"},null,{"$f":"VLOOKUP(E$14&\",\"&E$15&\",\"&E$25&\",\"&$B35&\",\"&E$26,data[],7,FALSE)","v":8.2832353577576984E-2},null,{"$f":"IFERROR(VLOOKUP(G$14&\",\"&G$15&\",\"&G$25&\",\"&$B35&\",\"&G$26,data[],7,FALSE),\"\")","v":1346},{"$f":"IFERROR(VLOOKUP(H$14&\",\"&H$15&\",\"&H$25&\",\"&$B35&\",\"&H$26,data[],7,FALSE),\"\")","v":3517},{"$f":"IFERROR(VLOOKUP(I$14&\",\"&I$15&\",\"&I$25&\",\"&$B35&\",\"&I$26,data[],7,FALSE),\"\")","v":3854},{"$f":"IFERROR(VLOOKUP(J$14&\",\"&J$15&\",\"&J$25&\",\"&$B35&\",\"&J$26,data[],7,FALSE),\"\")","v":5155.55},5533.2749999999996,0,null,{"$f":"VLOOKUP(N$14&\",\"&N$15&\",\"&N$25&\",\"&$B35&\",\"&N$26,data[],7,FALSE)","v":710.7708474881747},{"$f":"VLOOKUP(O$14&\",\"&O$15&\",\"&O$25&\",\"&$B35&\",\"&O$26,data[],7,FALSE)","v":1123.7597239599011},{"$f":"VLOOKUP(P$14&\",\"&P$15&\",\"&P$25&\",\"&$B35&\",\"&P$26,data[],7,FALSE)","v":3316.6422675294375},{"$f":"VLOOKUP(Q$14&\",\"&Q$15&\",\"&Q$25&\",\"&$B35&\",\"&Q$26,data[],7,FALSE)","v":917.26528572403788},null,{"$f":"VLOOKUP(S$14&\",\"&S$15&\",\"&S$25&\",\"&$B35&\",\"&S$26,data[],7,FALSE)","v":10409.5},null,{"$f":"IFERROR(VLOOKUP(U$14&\",\"&U$15&\",\"&U$25&\",\"&$B35&\",\"&U$26,data[],7,FALSE),\"\")","v":""}]
[null,"CHL",{"$f":"VLOOKUP($B36,region[],2,FALSE)","v":"Chile"},null,{"$f":"VLOOKUP(E$14&\",\"&E$15&\",\"&E$25&\",\"&$B36&\",\"&E$26,data[],7,FALSE)","v":5.5673211551852057E-2},null,{"$f":"IFERROR(VLOOKUP(G$14&\",\"&G$15&\",\"&G$25&\",\"&$B36&\",\"&G$26,data[],7,FALSE),\"\")","v":1939},{"$f":"IFERROR(VLOOKUP(H$14&\",\"&H$15&\",\"&H$25&\",\"&$B36&\",\"&H$26,data[],7,FALSE),\"\")","v":6034},{"$f":"IFERROR(VLOOKUP(I$14&\",\"&I$15&\",\"&I$25&\",\"&$B36&\",\"&I$26,data[],7,FALSE),\"\")","v":6034},{"$f":"IFERROR(VLOOKUP(J$14&\",\"&J$15&\",\"&J$25&\",\"&$B36&\",\"&J$26,data[],7,FALSE),\"\")","v":3450.29},3277.9749999999999,0,null,{"$f":"VLOOKUP(N$14&\",\"&N$15&\",\"&N$25&\",\"&$B36&\",\"&N$26,data[],7,FALSE)","v":808.18000770363255},{"$f":"VLOOKUP(O$14&\",\"&O$15&\",\"&O$25&\",\"&$B36&\",\"&O$26,data[],7,FALSE)","v":1710.0691451563712},{"$f":"VLOOKUP(P$14&\",\"&P$15&\",\"&P$25&\",\"&$B36&\",\"&P$26,data[],7,FALSE)","v":3316.6422675294375},{"$f":"VLOOKUP(Q$14&\",\"&Q$15&\",\"&Q$25&\",\"&$B36&\",\"&Q$26,data[],7,FALSE)","v":1259.124576430002},null,{"$f":"VLOOKUP(S$14&\",\"&S$15&\",\"&S$25&\",\"&$B36&\",\"&S$26,data[],7,FALSE)","v":12511.9},null,{"$f":"IFERROR(VLOOKUP(U$14&\",\"&U$15&\",\"&U$25&\",\"&$B36&\",\"&U$26,data[],7,FALSE),\"\")","v":""}]
[null,"CHN",{"$f":"VLOOKUP($B37,region[],2,FALSE)","v":"China"},null,{"$f":"VLOOKUP(E$14&\",\"&E$15&\",\"&E$25&\",\"&$B37&\",\"&E$26,data[],7,FALSE)","v":5.5673211551852057E-2},null,{"$f":"IFERROR(VLOOKUP(G$14&\",\"&G$15&\",\"&G$25&\",\"&$B37&\",\"&G$26,data[],7,FALSE),\"\")","v":1845.4554144000026},{"$f":"IFERROR(VLOOKUP(H$14&\",\"&H$15&\",\"&H$25&\",\"&$B37&\",\"&H$26,data[],7,FALSE),\"\")","v":3250},{"$f":"IFERROR(VLOOKUP(I$14&\",\"&I$15&\",\"&I$25&\",\"&$B37&\",\"&I$26,data[],7,FALSE),\"\")","v":3592},{"$f":"IFERROR(VLOOKUP(J$14&\",\"&J$15&\",\"&J$25&\",\"&$B37&\",\"&J$26,data[],7,FALSE),\"\")","v":5183.707028904495},5288.5093157270494,0,null,{"$f":"VLOOKUP(N$14&\",\"&N$15&\",\"&N$25&\",\"&$B37&\",\"&N$26,data[],7,FALSE)","v":470.31522012425313},{"$f":"VLOOKUP(O$14&\",\"&O$15&\",\"&O$25&\",\"&$B37&\",\"&O$26,data[],7,FALSE)","v":1130.6000005405265},{"$f":"VLOOKUP(P$14&\",\"&P$15&\",\"&P$25&\",\"&$B37&\",\"&P$26,data[],7,FALSE)","v":2763.8685562745313},{"$f":"VLOOKUP(Q$14&\",\"&Q$15&\",\"&Q$25&\",\"&$B37&\",\"&Q$26,data[],7,FALSE)","v":800.45761033238978},null,{"$f":"VLOOKUP(S$14&\",\"&S$15&\",\"&S$25&\",\"&$B37&\",\"&S$26,data[],7,FALSE)","v":20484.900000000001},null,{"$f":"IFERROR(VLOOKUP(U$14&\",\"&U$15&\",\"&U$25&\",\"&$B37&\",\"&U$26,data[],7,FALSE),\"\")","v":""}]
[null,"COL",{"$f":"VLOOKUP($B38,region[],2,FALSE)","v":"Colombia"},null,{"$f":"VLOOKUP(E$14&\",\"&E$15&\",\"&E$25&\",\"&$B38&\",\"&E$26,data[],7,FALSE)","v":7.0913593408014244E-2},null,{"$f":"IFERROR(VLOOKUP(G$14&\",\"&G$15&\",\"&G$25&\",\"&$B38&\",\"&G$26,data[],7,FALSE),\"\")","v":1300},{"$f":"IFERROR(VLOOKUP(H$14&\",\"&H$15&\",\"&H$25&\",\"&$B38&\",\"&H$26,data[],7,FALSE),\"\")","v":4269},{"$f":"IFERROR(VLOOKUP(I$14&\",\"&I$15&\",\"&I$25&\",\"&$B38&\",\"&I$26,data[],7,FALSE),\"\")","v":4269},{"$f":"IFERROR(VLOOKUP(J$14&\",\"&J$15&\",\"&J$25&\",\"&$B38&\",\"&J$26,data[],7,FALSE),\"\")","v":5503},5651.9520625250479,0,null,{"$f":"VLOOKUP(N$14&\",\"&N$15&\",\"&N$25&\",\"&$B38&\",\"&N$26,data[],7,FALSE)","v":748.32170696054584},{"$f":"VLOOKUP(O$14&\",\"&O$15&\",\"&O$25&\",\"&$B38&\",\"&O$26,data[],7,FALSE)","v":1625},{"$f":"VLOOKUP(P$14&\",\"&P$15&\",\"&P$25&\",\"&$B38&\",\"&P$26,data[],7,FALSE)","v":3317},{"$f":"VLOOKUP(Q$14&\",\"&Q$15&\",\"&Q$25&\",\"&$B38&\",\"&Q$26,data[],7,FALSE)","v":1186.6608534802729},null,{"$f":"VLOOKUP(S$14&\",\"&S$15&\",\"&S$25&\",\"&$B38&\",\"&S$26,data[],7,FALSE)","v":9250.74},null,{"$f":"IFERROR(VLOOKUP(U$14&\",\"&U$15&\",\"&U$25&\",\"&$B38&\",\"&U$26,data[],7,FALSE),\"\")","v":""}]
[null,"CRI",{"$f":"VLOOKUP($B39,region[],2,FALSE)","v":"Costa Rica"},null,{"$f":"VLOOKUP(E$14&\",\"&E$15&\",\"&E$25&\",\"&$B39&\",\"&E$26,data[],7,FALSE)","v":0.10395003232720652},null,{"$f":"IFERROR(VLOOKUP(G$14&\",\"&G$15&\",\"&G$25&\",\"&$B39&\",\"&G$26,data[],7,FALSE),\"\")","v":1336.1040323999978},{"$f":"IFERROR(VLOOKUP(H$14&\",\"&H$15&\",\"&H$25&\",\"&$B39&\",\"&H$26,data[],7,FALSE),\"\")","v":2191.2308093499951},{"$f":"IFERROR(VLOOKUP(I$14&\",\"&I$15&\",\"&I$25&\",\"&$B39&\",\"&I$26,data[],7,FALSE),\"\")","v":2803},{"$f":"IFERROR(VLOOKUP(J$14&\",\"&J$15&\",\"&J$25&\",\"&$B39&\",\"&J$26,data[],7,FALSE),\"\")","v":3421.5147964974931},3281.4581650174027,0,null,{"$f":"VLOOKUP(N$14&\",\"&N$15&\",\"&N$25&\",\"&$B39&\",\"&N$26,data[],7,FALSE)","v":748.32170696054584},{"$f":"VLOOKUP(O$14&\",\"&O$15&\",\"&O$25&\",\"&$B39&\",\"&O$26,data[],7,FALSE)","v":1546.8796895900205},{"$f":"VLOOKUP(P$14&\",\"&P$15&\",\"&P$25&\",\"&$B39&\",\"&P$26,data[],7,FALSE)","v":3316.6422675294375},{"$f":"VLOOKUP(Q$14&\",\"&Q$15&\",\"&Q$25&\",\"&$B39&\",\"&Q$26,data[],7,FALSE)","v":1147.6006982752831},null,{"$f":"VLOOKUP(S$14&\",\"&S$15&\",\"&S$25&\",\"&$B39&\",\"&S$26,data[],7,FALSE)","v":7422.6},null,{"$f":"IFERROR(VLOOKUP(U$14&\",\"&U$15&\",\"&U$25&\",\"&$B39&\",\"&U$26,data[],7,FALSE),\"\")","v":""}]
[null,"DNK",{"$f":"VLOOKUP($B40,region[],2,FALSE)","v":"Denmark"},null,{"$f":"VLOOKUP(E$14&\",\"&E$15&\",\"&E$25&\",\"&$B40&\",\"&E$26,data[],7,FALSE)","v":5.0299999999999997E-2},null,{"$f":"IFERROR(VLOOKUP(G$14&\",\"&G$15&\",\"&G$25&\",\"&$B40&\",\"&G$26,data[],7,FALSE),\"\")","v":957.75962760000073},{"$f":"IFERROR(VLOOKUP(H$14&\",\"&H$15&\",\"&H$25&\",\"&$B40&\",\"&H$26,data[],7,FALSE),\"\")","v":4400},{"$f":"IFERROR(VLOOKUP(I$14&\",\"&I$15&\",\"&I$25&\",\"&$B40&\",\"&I$26,data[],7,FALSE),\"\")","v":4730.4000000000005},{"$f":"IFERROR(VLOOKUP(J$14&\",\"&J$15&\",\"&J$25&\",\"&$B40&\",\"&J$26,data[],7,FALSE),\"\")","v":5197.0268387719998},5303.6799306180774,0,null,{"$f":"VLOOKUP(N$14&\",\"&N$15&\",\"&N$25&\",\"&$B40&\",\"&N$26,data[],7,FALSE)","v":648.77475028997765},{"$f":"VLOOKUP(O$14&\",\"&O$15&\",\"&O$25&\",\"&$B40&\",\"&O$26,data[],7,FALSE)","v":1585.9669843364518},{"$f":"VLOOKUP(P$14&\",\"&P$15&\",\"&P$25&\",\"&$B40&\",\"&P$26,data[],7,FALSE)","v":2214.3840130599938},{"$f":"VLOOKUP(Q$14&\",\"&Q$15&\",\"&Q$25&\",\"&$B40&\",\"&Q$26,data[],7,FALSE)","v":1117.3708673132146},null,{"$f":"VLOOKUP(S$14&\",\"&S$15&\",\"&S$25&\",\"&$B40&\",\"&S$26,data[],7,FALSE)","v":814.84100000000001},null,{"$f":"IFERROR(VLOOKUP(U$14&\",\"&U$15&\",\"&U$25&\",\"&$B40&\",\"&U$26,data[],7,FALSE),\"\")","v":500}]
[null,"DZA",{"$f":"VLOOKUP($B41,region[],2,FALSE)","v":"Algeria"},null,{"$f":"VLOOKUP(E$14&\",\"&E$15&\",\"&E$25&\",\"&$B41&\",\"&E$26,data[],7,FALSE)","v":9.1999999999999998E-2},null,{"$f":"IFERROR(VLOOKUP(G$14&\",\"&G$15&\",\"&G$25&\",\"&$B41&\",\"&G$26,data[],7,FALSE),\"\")","v":1699},{"$f":"IFERROR(VLOOKUP(H$14&\",\"&H$15&\",\"&H$25&\",\"&$B41&\",\"&H$26,data[],7,FALSE),\"\")","v":2738},{"$f":"IFERROR(VLOOKUP(I$14&\",\"&I$15&\",\"&I$25&\",\"&$B41&\",\"&I$26,data[],7,FALSE),\"\")","v":3066},{"$f":"IFERROR(VLOOKUP(J$14&\",\"&J$15&\",\"&J$25&\",\"&$B41&\",\"&J$26,data[],7,FALSE),\"\")","v":4270.91},2866.15,0,null,{"$f":"VLOOKUP(N$14&\",\"&N$15&\",\"&N$25&\",\"&$B41&\",\"&N$26,data[],7,FALSE)","v":748.32170696054584},{"$f":"VLOOKUP(O$14&\",\"&O$15&\",\"&O$25&\",\"&$B41&\",\"&O$26,data[],7,FALSE)","v":1848.8290415062024},{"$f":"VLOOKUP(P$14&\",\"&P$15&\",\"&P$25&\",\"&$B41&\",\"&P$26,data[],7,FALSE)","v":3316.6422675294375},{"$f":"VLOOKUP(Q$14&\",\"&Q$15&\",\"&Q$25&\",\"&$B41&\",\"&Q$26,data[],7,FALSE)","v":1298.5753742333741},null,{"$f":"VLOOKUP(S$14&\",\"&S$15&\",\"&S$25&\",\"&$B41&\",\"&S$26,data[],7,FALSE)","v":3174.14},null,{"$f":"IFERROR(VLOOKUP(U$14&\",\"&U$15&\",\"&U$25&\",\"&$B41&\",\"&U$26,data[],7,FALSE),\"\")","v":3000}]
[null,"EGY",{"$f":"VLOOKUP($B42,region[],2,FALSE)","v":"Egypt"},null,{"$f":"VLOOKUP(E$14&\",\"&E$15&\",\"&E$25&\",\"&$B42&\",\"&E$26,data[],7,FALSE)","v":0.11336853373134342},null,{"$f":"IFERROR(VLOOKUP(G$14&\",\"&G$15&\",\"&G$25&\",\"&$B42&\",\"&G$26,data[],7,FALSE),\"\")","v":1744},{"$f":"IFERROR(VLOOKUP(H$14&\",\"&H$15&\",\"&H$25&\",\"&$B42&\",\"&H$26,data[],7,FALSE),\"\")","v":3045},{"$f":"IFERROR(VLOOKUP(I$14&\",\"&I$15&\",\"&I$25&\",\"&$B42&\",\"&I$26,data[],7,FALSE),\"\")","v":3066},{"$f":"IFERROR(VLOOKUP(J$14&\",\"&J$15&\",\"&J$25&\",\"&$B42&\",\"&J$26,data[],7,FALSE),\"\")","v":4644.3599999999997},4607.0249999999996,0,null,{"$f":"VLOOKUP(N$14&\",\"&N$15&\",\"&N$25&\",\"&$B42&\",\"&N$26,data[],7,FALSE)","v":748.32170696054584},{"$f":"VLOOKUP(O$14&\",\"&O$15&\",\"&O$25&\",\"&$B42&\",\"&O$26,data[],7,FALSE)","v":1465.7735529911754},{"$f":"VLOOKUP(P$14&\",\"&P$15&\",\"&P$25&\",\"&$B42&\",\"&P$26,data[],7,FALSE)","v":3316.6422675294375},{"$f":"VLOOKUP(Q$14&\",\"&Q$15&\",\"&Q$25&\",\"&$B42&\",\"&Q$26,data[],7,FALSE)","v":1107.0476299758607},null,{"$f":"VLOOKUP(S$14&\",\"&S$15&\",\"&S$25&\",\"&$B42&\",\"&S$26,data[],7,FALSE)","v":6629.18},null,{"$f":"IFERROR(VLOOKUP(U$14&\",\"&U$15&\",\"&U$25&\",\"&$B42&\",\"&U$26,data[],7,FALSE),\"\")","v":5000}]
[null,"ESP",{"$f":"VLOOKUP($B43,region[],2,FALSE)","v":"Spain"},null,{"$f":"VLOOKUP(E$14&\",\"&E$15&\",\"&E$25&\",\"&$B43&\",\"&E$26,data[],7,FALSE)","v":6.4274782725559448E-2},null,{"$f":"IFERROR(VLOOKUP(G$14&\",\"&G$15&\",\"&G$25&\",\"&$B43&\",\"&G$26,data[],7,FALSE),\"\")","v":1567.2650796000021},{"$f":"IFERROR(VLOOKUP(H$14&\",\"&H$15&\",\"&H$25&\",\"&$B43&\",\"&H$26,data[],7,FALSE),\"\")","v":4276.5734962500064},{"$f":"IFERROR(VLOOKUP(I$14&\",\"&I$15&\",\"&I$25&\",\"&$B43&\",\"&I$26,data[],7,FALSE),\"\")","v":4277},{"$f":"IFERROR(VLOOKUP(J$14&\",\"&J$15&\",\"&J$25&\",\"&$B43&\",\"&J$26,data[],7,FALSE),\"\")","v":5668.5234185745076},5840.6915776139895,0,null,{"$f":"VLOOKUP(N$14&\",\"&N$15&\",\"&N$25&\",\"&$B43&\",\"&N$26,data[],7,FALSE)","v":705.10103949853442},{"$f":"VLOOKUP(O$14&\",\"&O$15&\",\"&O$25&\",\"&$B43&\",\"&O$26,data[],7,FALSE)","v":1144.8190191230835},{"$f":"VLOOKUP(P$14&\",\"&P$15&\",\"&P$25&\",\"&$B43&\",\"&P$26,data[],7,FALSE)","v":3316.6422675294375},{"$f":"VLOOKUP(Q$14&\",\"&Q$15&\",\"&Q$25&\",\"&$B43&\",\"&Q$26,data[],7,FALSE)","v":924.96002931080898},null,{"$f":"VLOOKUP(S$14&\",\"&S$15&\",\"&S$25&\",\"&$B43&\",\"&S$26,data[],7,FALSE)","v":2697.76},null,{"$f":"IFERROR(VLOOKUP(U$14&\",\"&U$15&\",\"&U$25&\",\"&$B43&\",\"&U$26,data[],7,FALSE),\"\")","v":1500}]
[null,"IDN",{"$f":"VLOOKUP($B44,region[],2,FALSE)","v":"Indonesia"},null,{"$f":"VLOOKUP(E$14&\",\"&E$15&\",\"&E$25&\",\"&$B44&\",\"&E$26,data[],7,FALSE)","v":7.0913593408014244E-2},null,{"$f":"IFERROR(VLOOKUP(G$14&\",\"&G$15&\",\"&G$25&\",\"&$B44&\",\"&G$26,data[],7,FALSE),\"\")","v":1506},{"$f":"IFERROR(VLOOKUP(H$14&\",\"&H$15&\",\"&H$25&\",\"&$B44&\",\"&H$26,data[],7,FALSE),\"\")","v":1150.7783336499949},{"$f":"IFERROR(VLOOKUP(I$14&\",\"&I$15&\",\"&I$25&\",\"&$B44&\",\"&I$26,data[],7,FALSE),\"\")","v":2453},{"$f":"IFERROR(VLOOKUP(J$14&\",\"&J$15&\",\"&J$25&\",\"&$B44&\",\"&J$26,data[],7,FALSE),\"\")","v":2496.284437136494},2371.4702152796694,0,null,{"$f":"VLOOKUP(N$14&\",\"&N$15&\",\"&N$25&\",\"&$B44&\",\"&N$26,data[],7,FALSE)","v":867.38767474299016},{"$f":"VLOOKUP(O$14&\",\"&O$15&\",\"&O$25&\",\"&$B44&\",\"&O$26,data[],7,FALSE)","v":2198.6603294867632},{"$f":"VLOOKUP(P$14&\",\"&P$15&\",\"&P$25&\",\"&$B44&\",\"&P$26,data[],7,FALSE)","v":3316.6422675294375},{"$f":"VLOOKUP(Q$14&\",\"&Q$15&\",\"&Q$25&\",\"&$B44&\",\"&Q$26,data[],7,FALSE)","v":1533.0240021148766},null,{"$f":"VLOOKUP(S$14&\",\"&S$15&\",\"&S$25&\",\"&$B44&\",\"&S$26,data[],7,FALSE)","v":16946.8},null,{"$f":"IFERROR(VLOOKUP(U$14&\",\"&U$15&\",\"&U$25&\",\"&$B44&\",\"&U$26,data[],7,FALSE),\"\")","v":""}]
[null,"IND",{"$f":"VLOOKUP($B45,region[],2,FALSE)","v":"India"},null,{"$f":"VLOOKUP(E$14&\",\"&E$15&\",\"&E$25&\",\"&$B45&\",\"&E$26,data[],7,FALSE)","v":7.237045402218821E-2},null,{"$f":"IFERROR(VLOOKUP(G$14&\",\"&G$15&\",\"&G$25&\",\"&$B45&\",\"&G$26,data[],7,FALSE),\"\")","v":1562},{"$f":"IFERROR(VLOOKUP(H$14&\",\"&H$15&\",\"&H$25&\",\"&$B45&\",\"&H$26,data[],7,FALSE),\"\")","v":3567},{"$f":"IFERROR(VLOOKUP(I$14&\",\"&I$15&\",\"&I$25&\",\"&$B45&\",\"&I$26,data[],7,FALSE),\"\")","v":3567},{"$f":"IFERROR(VLOOKUP(J$14&\",\"&J$15&\",\"&J$25&\",\"&$B45&\",\"&J$26,data[],7,FALSE),\"\")","v":4890.74},5413.0999999999995,0,null,{"$f":"VLOOKUP(N$14&\",\"&N$15&\",\"&N$25&\",\"&$B45&\",\"&N$26,data[],7,FALSE)","v":486.11632435767666},{"$f":"VLOOKUP(O$14&\",\"&O$15&\",\"&O$25&\",\"&$B45&\",\"&O$26,data[],7,FALSE)","v":904.87087337988555},{"$f":"VLOOKUP(P$14&\",\"&P$15&\",\"&P$25&\",\"&$B45&\",\"&P$26,data[],7,FALSE)","v":3316.6422675294375},{"$f":"VLOOKUP(Q$14&\",\"&Q$15&\",\"&Q$25&\",\"&$B45&\",\"&Q$26,data[],7,FALSE)","v":695.49359886878108},null,{"$f":"VLOOKUP(S$14&\",\"&S$15&\",\"&S$25&\",\"&$B45&\",\"&S$26,data[],7,FALSE)","v":12687.7},null,{"$f":"IFERROR(VLOOKUP(U$14&\",\"&U$15&\",\"&U$25&\",\"&$B45&\",\"&U$26,data[],7,FALSE),\"\")","v":""}]
[null,"JOR",{"$f":"VLOOKUP($B46,region[],2,FALSE)","v":"Jordan"},null,{"$f":"VLOOKUP(E$14&\",\"&E$15&\",\"&E$25&\",\"&$B46&\",\"&E$26,data[],7,FALSE)","v":9.9049682988621379E-2},null,{"$f":"IFERROR(VLOOKUP(G$14&\",\"&G$15&\",\"&G$25&\",\"&$B46&\",\"&G$26,data[],7,FALSE),\"\")","v":1792},{"$f":"IFERROR(VLOOKUP(H$14&\",\"&H$15&\",\"&H$25&\",\"&$B46&\",\"&H$26,data[],7,FALSE),\"\")","v":667},{"$f":"IFERROR(VLOOKUP(I$14&\",\"&I$15&\",\"&I$25&\",\"&$B46&\",\"&I$26,data[],7,FALSE),\"\")","v":""},{"$f":"IFERROR(VLOOKUP(J$14&\",\"&J$15&\",\"&J$25&\",\"&$B46&\",\"&J$26,data[],7,FALSE),\"\")","v":2376.5},2752.15,0,null,{"$f":"VLOOKUP(N$14&\",\"&N$15&\",\"&N$25&\",\"&$B46&\",\"&N$26,data[],7,FALSE)","v":748.32170696054584},{"$f":"VLOOKUP(O$14&\",\"&O$15&\",\"&O$25&\",\"&$B46&\",\"&O$26,data[],7,FALSE)","v":1848.8290415062024},{"$f":"VLOOKUP(P$14&\",\"&P$15&\",\"&P$25&\",\"&$B46&\",\"&P$26,data[],7,FALSE)","v":3316.6422675294375},{"$f":"VLOOKUP(Q$14&\",\"&Q$15&\",\"&Q$25&\",\"&$B46&\",\"&Q$26,data[],7,FALSE)","v":1298.5753742333741},null,{"$f":"VLOOKUP(S$14&\",\"&S$15&\",\"&S$25&\",\"&$B46&\",\"&S$26,data[],7,FALSE)","v":7488.73},null,{"$f":"IFERROR(VLOOKUP(U$14&\",\"&U$15&\",\"&U$25&\",\"&$B46&\",\"&U$26,data[],7,FALSE),\"\")","v":3500}]
[null,"KAZ",{"$f":"VLOOKUP($B47,region[],2,FALSE)","v":"Kazakhstan"},null,{"$f":"VLOOKUP(E$14&\",\"&E$15&\",\"&E$25&\",\"&$B47&\",\"&E$26,data[],7,FALSE)","v":7.3401485154905771E-2},null,{"$f":"IFERROR(VLOOKUP(G$14&\",\"&G$15&\",\"&G$25&\",\"&$B47&\",\"&G$26,data[],7,FALSE),\"\")","v":1425},{"$f":"IFERROR(VLOOKUP(H$14&\",\"&H$15&\",\"&H$25&\",\"&$B47&\",\"&H$26,data[],7,FALSE),\"\")","v":3697},{"$f":"IFERROR(VLOOKUP(I$14&\",\"&I$15&\",\"&I$25&\",\"&$B47&\",\"&I$26,data[],7,FALSE),\"\")","v":3697},{"$f":"IFERROR(VLOOKUP(J$14&\",\"&J$15&\",\"&J$25&\",\"&$B47&\",\"&J$26,data[],7,FALSE),\"\")","v":5289.962108140493},5409.5286773650578,0,null,{"$f":"VLOOKUP(N$14&\",\"&N$15&\",\"&N$25&\",\"&$B47&\",\"&N$26,data[],7,FALSE)","v":748.32170696054584},{"$f":"VLOOKUP(O$14&\",\"&O$15&\",\"&O$25&\",\"&$B47&\",\"&O$26,data[],7,FALSE)","v":1465.7735529911754},{"$f":"VLOOKUP(P$14&\",\"&P$15&\",\"&P$25&\",\"&$B47&\",\"&P$26,data[],7,FALSE)","v":3316.6422675294375},{"$f":"VLOOKUP(Q$14&\",\"&Q$15&\",\"&Q$25&\",\"&$B47&\",\"&Q$26,data[],7,FALSE)","v":1107.0476299758607},null,{"$f":"VLOOKUP(S$14&\",\"&S$15&\",\"&S$25&\",\"&$B47&\",\"&S$26,data[],7,FALSE)","v":6601.17},null,{"$f":"IFERROR(VLOOKUP(U$14&\",\"&U$15&\",\"&U$25&\",\"&$B47&\",\"&U$26,data[],7,FALSE),\"\")","v":3500}]
[null,"KEN",{"$f":"VLOOKUP($B48,region[],2,FALSE)","v":"Kenya"},null,{"$f":"VLOOKUP(E$14&\",\"&E$15&\",\"&E$25&\",\"&$B48&\",\"&E$26,data[],7,FALSE)","v":0.10989380084781369},null,{"$f":"IFERROR(VLOOKUP(G$14&\",\"&G$15&\",\"&G$25&\",\"&$B48&\",\"&G$26,data[],7,FALSE),\"\")","v":1418},{"$f":"IFERROR(VLOOKUP(H$14&\",\"&H$15&\",\"&H$25&\",\"&$B48&\",\"&H$26,data[],7,FALSE),\"\")","v":2364},{"$f":"IFERROR(VLOOKUP(I$14&\",\"&I$15&\",\"&I$25&\",\"&$B48&\",\"&I$26,data[],7,FALSE),\"\")","v":3329},{"$f":"IFERROR(VLOOKUP(J$14&\",\"&J$15&\",\"&J$25&\",\"&$B48&\",\"&J$26,data[],7,FALSE),\"\")","v":3668.54},3905.45,0,null,{"$f":"VLOOKUP(N$14&\",\"&N$15&\",\"&N$25&\",\"&$B48&\",\"&N$26,data[],7,FALSE)","v":748.32170696054584},{"$f":"VLOOKUP(O$14&\",\"&O$15&\",\"&O$25&\",\"&$B48&\",\"&O$26,data[],7,FALSE)","v":1848.8290415062024},{"$f":"VLOOKUP(P$14&\",\"&P$15&\",\"&P$25&\",\"&$B48&\",\"&P$26,data[],7,FALSE)","v":3316.6422675294375},{"$f":"VLOOKUP(Q$14&\",\"&Q$15&\",\"&Q$25&\",\"&$B48&\",\"&Q$26,data[],7,FALSE)","v":1298.5753742333741},null,{"$f":"VLOOKUP(S$14&\",\"&S$15&\",\"&S$25&\",\"&$B48&\",\"&S$26,data[],7,FALSE)","v":12814.1},null,{"$f":"IFERROR(VLOOKUP(U$14&\",\"&U$15&\",\"&U$25&\",\"&$B48&\",\"&U$26,data[],7,FALSE),\"\")","v":""}]
[null,"MAR",{"$f":"VLOOKUP($B49,region[],2,FALSE)","v":"Morocco"},null,{"$f":"VLOOKUP(E$14&\",\"&E$15&\",\"&E$25&\",\"&$B49&\",\"&E$26,data[],7,FALSE)","v":7.731973992583685E-2},null,{"$f":"IFERROR(VLOOKUP(G$14&\",\"&G$15&\",\"&G$25&\",\"&$B49&\",\"&G$26,data[],7,FALSE),\"\")","v":1631},{"$f":"IFERROR(VLOOKUP(H$14&\",\"&H$15&\",\"&H$25&\",\"&$B49&\",\"&H$26,data[],7,FALSE),\"\")","v":3289},{"$f":"IFERROR(VLOOKUP(I$14&\",\"&I$15&\",\"&I$25&\",\"&$B49&\",\"&I$26,data[],7,FALSE),\"\")","v":4643},{"$f":"IFERROR(VLOOKUP(J$14&\",\"&J$15&\",\"&J$25&\",\"&$B49&\",\"&J$26,data[],7,FALSE),\"\")","v":4739.42},4501.0999999999995,0,null,{"$f":"VLOOKUP(N$14&\",\"&N$15&\",\"&N$25&\",\"&$B49&\",\"&N$26,data[],7,FALSE)","v":748.32170696054584},{"$f":"VLOOKUP(O$14&\",\"&O$15&\",\"&O$25&\",\"&$B49&\",\"&O$26,data[],7,FALSE)","v":1710.0691451563712},{"$f":"VLOOKUP(P$14&\",\"&P$15&\",\"&P$25&\",\"&$B49&\",\"&P$26,data[],7,FALSE)","v":3316.6422675294375},{"$f":"VLOOKUP(Q$14&\",\"&Q$15&\",\"&Q$25&\",\"&$B49&\",\"&Q$26,data[],7,FALSE)","v":1229.1954260584585},null,{"$f":"VLOOKUP(S$14&\",\"&S$15&\",\"&S$25&\",\"&$B49&\",\"&S$26,data[],7,FALSE)","v":2668.15},null,{"$f":"IFERROR(VLOOKUP(U$14&\",\"&U$15&\",\"&U$25&\",\"&$B49&\",\"&U$26,data[],7,FALSE),\"\")","v":2500}]
[null,"MEX",{"$f":"VLOOKUP($B50,region[],2,FALSE)","v":"Mexico"},null,{"$f":"VLOOKUP(E$14&\",\"&E$15&\",\"&E$25&\",\"&$B50&\",\"&E$26,data[],7,FALSE)","v":6.4274782725559448E-2},null,{"$f":"IFERROR(VLOOKUP(G$14&\",\"&G$15&\",\"&G$25&\",\"&$B50&\",\"&G$26,data[],7,FALSE),\"\")","v":1731},{"$f":"IFERROR(VLOOKUP(H$14&\",\"&H$15&\",\"&H$25&\",\"&$B50&\",\"&H$26,data[],7,FALSE),\"\")","v":4042},{"$f":"IFERROR(VLOOKUP(I$14&\",\"&I$15&\",\"&I$25&\",\"&$B50&\",\"&I$26,data[],7,FALSE),\"\")","v":4042},{"$f":"IFERROR(VLOOKUP(J$14&\",\"&J$15&\",\"&J$25&\",\"&$B50&\",\"&J$26,data[],7,FALSE),\"\")","v":4219.5},4009,0,null,{"$f":"VLOOKUP(N$14&\",\"&N$15&\",\"&N$25&\",\"&$B50&\",\"&N$26,data[],7,FALSE)","v":681.95706918016708},{"$f":"VLOOKUP(O$14&\",\"&O$15&\",\"&O$25&\",\"&$B50&\",\"&O$26,data[],7,FALSE)","v":1437.8552328955},{"$f":"VLOOKUP(P$14&\",\"&P$15&\",\"&P$25&\",\"&$B50&\",\"&P$26,data[],7,FALSE)","v":3316.6422675294375},{"$f":"VLOOKUP(Q$14&\",\"&Q$15&\",\"&Q$25&\",\"&$B50&\",\"&Q$26,data[],7,FALSE)","v":1059.9061510378335},null,{"$f":"VLOOKUP(S$14&\",\"&S$15&\",\"&S$25&\",\"&$B50&\",\"&S$26,data[],7,FALSE)","v":10256.299999999999},null,{"$f":"IFERROR(VLOOKUP(U$14&\",\"&U$15&\",\"&U$25&\",\"&$B50&\",\"&U$26,data[],7,FALSE),\"\")","v":""}]
[null,"MRT",{"$f":"VLOOKUP($B51,region[],2,FALSE)","v":"Mauritania"},null,{"$f":"VLOOKUP(E$14&\",\"&E$15&\",\"&E$25&\",\"&$B51&\",\"&E$26,data[],7,FALSE)","v":9.1999999999999998E-2},null,{"$f":"IFERROR(VLOOKUP(G$14&\",\"&G$15&\",\"&G$25&\",\"&$B51&\",\"&G$26,data[],7,FALSE),\"\")","v":1657},{"$f":"IFERROR(VLOOKUP(H$14&\",\"&H$15&\",\"&H$25&\",\"&$B51&\",\"&H$26,data[],7,FALSE),\"\")","v":4750},{"$f":"IFERROR(VLOOKUP(I$14&\",\"&I$15&\",\"&I$25&\",\"&$B51&\",\"&I$26,data[],7,FALSE),\"\")","v":4750},{"$f":"IFERROR(VLOOKUP(J$14&\",\"&J$15&\",\"&J$25&\",\"&$B51&\",\"&J$26,data[],7,FALSE),\"\")","v":6214.79},6332.7,0,null,{"$f":"VLOOKUP(N$14&\",\"&N$15&\",\"&N$25&\",\"&$B51&\",\"&N$26,data[],7,FALSE)","v":748.32170696054584},{"$f":"VLOOKUP(O$14&\",\"&O$15&\",\"&O$25&\",\"&$B51&\",\"&O$26,data[],7,FALSE)","v":1848.8290415062024},{"$f":"VLOOKUP(P$14&\",\"&P$15&\",\"&P$25&\",\"&$B51&\",\"&P$26,data[],7,FALSE)","v":3316.6422675294375},{"$f":"VLOOKUP(Q$14&\",\"&Q$15&\",\"&Q$25&\",\"&$B51&\",\"&Q$26,data[],7,FALSE)","v":1298.5753742333741},null,{"$f":"VLOOKUP(S$14&\",\"&S$15&\",\"&S$25&\",\"&$B51&\",\"&S$26,data[],7,FALSE)","v":4171.75},null,{"$f":"IFERROR(VLOOKUP(U$14&\",\"&U$15&\",\"&U$25&\",\"&$B51&\",\"&U$26,data[],7,FALSE),\"\")","v":5000}]
[null,"NAM",{"$f":"VLOOKUP($B52,region[],2,FALSE)","v":"Namibia"},null,{"$f":"VLOOKUP(E$14&\",\"&E$15&\",\"&E$25&\",\"&$B52&\",\"&E$26,data[],7,FALSE)","v":8.3993056414234241E-2},null,{"$f":"IFERROR(VLOOKUP(G$14&\",\"&G$15&\",\"&G$25&\",\"&$B52&\",\"&G$26,data[],7,FALSE),\"\")","v":1859.5896948000045},{"$f":"IFERROR(VLOOKUP(H$14&\",\"&H$15&\",\"&H$25&\",\"&$B52&\",\"&H$26,data[],7,FALSE),\"\")","v":5116.1308995500021},{"$f":"IFERROR(VLOOKUP(I$14&\",\"&I$15&\",\"&I$25&\",\"&$B52&\",\"&I$26,data[],7,FALSE),\"\")","v":5116},{"$f":"IFERROR(VLOOKUP(J$14&\",\"&J$15&\",\"&J$25&\",\"&$B52&\",\"&J$26,data[],7,FALSE),\"\")","v":6766.4489765195067},7091.1753295807785,0,null,{"$f":"VLOOKUP(N$14&\",\"&N$15&\",\"&N$25&\",\"&$B52&\",\"&N$26,data[],7,FALSE)","v":748.32170696054584},{"$f":"VLOOKUP(O$14&\",\"&O$15&\",\"&O$25&\",\"&$B52&\",\"&O$26,data[],7,FALSE)","v":1848.8290415062024},{"$f":"VLOOKUP(P$14&\",\"&P$15&\",\"&P$25&\",\"&$B52&\",\"&P$26,data[],7,FALSE)","v":3316.6422675294375},{"$f":"VLOOKUP(Q$14&\",\"&Q$15&\",\"&Q$25&\",\"&$B52&\",\"&Q$26,data[],7,FALSE)","v":1298.5753742333741},null,{"$f":"VLOOKUP(S$14&\",\"&S$15&\",\"&S$25&\",\"&$B52&\",\"&S$26,data[],7,FALSE)","v":10723.8},null,{"$f":"IFERROR(VLOOKUP(U$14&\",\"&U$15&\",\"&U$25&\",\"&$B52&\",\"&U$26,data[],7,FALSE),\"\")","v":""}]
[null,"NOR",{"$f":"VLOOKUP($B53,region[],2,FALSE)","v":"Norway"},null,{"$f":"VLOOKUP(E$14&\",\"&E$15&\",\"&E$25&\",\"&$B53&\",\"&E$26,data[],7,FALSE)","v":5.0299999999999997E-2},null,{"$f":"IFERROR(VLOOKUP(G$14&\",\"&G$15&\",\"&G$25&\",\"&$B53&\",\"&G$26,data[],7,FALSE),\"\")","v":845.30347200000051},{"$f":"IFERROR(VLOOKUP(H$14&\",\"&H$15&\",\"&H$25&\",\"&$B53&\",\"&H$26,data[],7,FALSE),\"\")","v":4263.9575632499955},{"$f":"IFERROR(VLOOKUP(I$14&\",\"&I$15&\",\"&I$25&\",\"&$B53&\",\"&I$26,data[],7,FALSE),\"\")","v":4730},{"$f":"IFERROR(VLOOKUP(J$14&\",\"&J$15&\",\"&J$25&\",\"&$B53&\",\"&J$26,data[],7,FALSE),\"\")","v":4955.9832041924956},5029.142967364518,0,null,{"$f":"VLOOKUP(N$14&\",\"&N$15&\",\"&N$25&\",\"&$B53&\",\"&N$26,data[],7,FALSE)","v":689.52714068546084},{"$f":"VLOOKUP(O$14&\",\"&O$15&\",\"&O$25&\",\"&$B53&\",\"&O$26,data[],7,FALSE)","v":1465.7735529911754},{"$f":"VLOOKUP(P$14&\",\"&P$15&\",\"&P$25&\",\"&$B53&\",\"&P$26,data[],7,FALSE)","v":3316.6422675294375},{"$f":"VLOOKUP(Q$14&\",\"&Q$15&\",\"&Q$25&\",\"&$B53&\",\"&Q$26,data[],7,FALSE)","v":1077.650346838318},null,{"$f":"VLOOKUP(S$14&\",\"&S$15&\",\"&S$25&\",\"&$B53&\",\"&S$26,data[],7,FALSE)","v":605.048},null,{"$f":"IFERROR(VLOOKUP(U$14&\",\"&U$15&\",\"&U$25&\",\"&$B53&\",\"&U$26,data[],7,FALSE),\"\")","v":500}]
[null,"PER",{"$f":"VLOOKUP($B54,region[],2,FALSE)","v":"Peru"},null,{"$f":"VLOOKUP(E$14&\",\"&E$15&\",\"&E$25&\",\"&$B54&\",\"&E$26,data[],7,FALSE)","v":6.4274782725559448E-2},null,{"$f":"IFERROR(VLOOKUP(G$14&\",\"&G$15&\",\"&G$25&\",\"&$B54&\",\"&G$26,data[],7,FALSE),\"\")","v":1746},{"$f":"IFERROR(VLOOKUP(H$14&\",\"&H$15&\",\"&H$25&\",\"&$B54&\",\"&H$26,data[],7,FALSE),\"\")","v":1448},{"$f":"IFERROR(VLOOKUP(I$14&\",\"&I$15&\",\"&I$25&\",\"&$B54&\",\"&I$26,data[],7,FALSE),\"\")","v":3854},{"$f":"IFERROR(VLOOKUP(J$14&\",\"&J$15&\",\"&J$25&\",\"&$B54&\",\"&J$26,data[],7,FALSE),\"\")","v":2965.29},2848.1,0,null,{"$f":"VLOOKUP(N$14&\",\"&N$15&\",\"&N$25&\",\"&$B54&\",\"&N$26,data[],7,FALSE)","v":748.32170696054584},{"$f":"VLOOKUP(O$14&\",\"&O$15&\",\"&O$25&\",\"&$B54&\",\"&O$26,data[],7,FALSE)","v":1221.4779608259794},{"$f":"VLOOKUP(P$14&\",\"&P$15&\",\"&P$25&\",\"&$B54&\",\"&P$26,data[],7,FALSE)","v":3316.6422675294375},{"$f":"VLOOKUP(Q$14&\",\"&Q$15&\",\"&Q$25&\",\"&$B54&\",\"&Q$26,data[],7,FALSE)","v":984.89983389326267},null,{"$f":"VLOOKUP(S$14&\",\"&S$15&\",\"&S$25&\",\"&$B54&\",\"&S$26,data[],7,FALSE)","v":12282.46},null,{"$f":"IFERROR(VLOOKUP(U$14&\",\"&U$15&\",\"&U$25&\",\"&$B54&\",\"&U$26,data[],7,FALSE),\"\")","v":""}]
[null,"PRT",{"$f":"VLOOKUP($B55,region[],2,FALSE)","v":"Portugal"},null,{"$f":"VLOOKUP(E$14&\",\"&E$15&\",\"&E$25&\",\"&$B55&\",\"&E$26,data[],7,FALSE)","v":7.3401485154905771E-2},null,{"$f":"IFERROR(VLOOKUP(G$14&\",\"&G$15&\",\"&G$25&\",\"&$B55&\",\"&G$26,data[],7,FALSE),\"\")","v":1445.5080791999967},{"$f":"IFERROR(VLOOKUP(H$14&\",\"&H$15&\",\"&H$25&\",\"&$B55&\",\"&H$26,data[],7,FALSE),\"\")","v":4407.8754648499926},{"$f":"IFERROR(VLOOKUP(I$14&\",\"&I$15&\",\"&I$25&\",\"&$B55&\",\"&I$26,data[],7,FALSE),\"\")","v":4408},{"$f":"IFERROR(VLOOKUP(J$14&\",\"&J$15&\",\"&J$25&\",\"&$B55&\",\"&J$26,data[],7,FALSE),\"\")","v":5677.7820377284897},5851.2366940236789,0,null,{"$f":"VLOOKUP(N$14&\",\"&N$15&\",\"&N$25&\",\"&$B55&\",\"&N$26,data[],7,FALSE)","v":756.68699743706418},{"$f":"VLOOKUP(O$14&\",\"&O$15&\",\"&O$25&\",\"&$B55&\",\"&O$26,data[],7,FALSE)","v":1710.0691451563712},{"$f":"VLOOKUP(P$14&\",\"&P$15&\",\"&P$25&\",\"&$B55&\",\"&P$26,data[],7,FALSE)","v":3316.6422675294375},{"$f":"VLOOKUP(Q$14&\",\"&Q$15&\",\"&Q$25&\",\"&$B55&\",\"&Q$26,data[],7,FALSE)","v":1233.3780712967177},null,{"$f":"VLOOKUP(S$14&\",\"&S$15&\",\"&S$25&\",\"&$B55&\",\"&S$26,data[],7,FALSE)","v":2479.8200000000002},null,{"$f":"IFERROR(VLOOKUP(U$14&\",\"&U$15&\",\"&U$25&\",\"&$B55&\",\"&U$26,data[],7,FALSE),\"\")","v":2000}]
[null,"RUS",{"$f":"VLOOKUP($B56,region[],2,FALSE)","v":"Russia"},null,{"$f":"VLOOKUP(E$14&\",\"&E$15&\",\"&E$25&\",\"&$B56&\",\"&E$26,data[],7,FALSE)","v":7.5170549034228915E-2},null,{"$f":"IFERROR(VLOOKUP(G$14&\",\"&G$15&\",\"&G$25&\",\"&$B56&\",\"&G$26,data[],7,FALSE),\"\")","v":1173},{"$f":"IFERROR(VLOOKUP(H$14&\",\"&H$15&\",\"&H$25&\",\"&$B56&\",\"&H$26,data[],7,FALSE),\"\")","v":4522},{"$f":"IFERROR(VLOOKUP(I$14&\",\"&I$15&\",\"&I$25&\",\"&$B56&\",\"&I$26,data[],7,FALSE),\"\")","v":4522},{"$f":"IFERROR(VLOOKUP(J$14&\",\"&J$15&\",\"&J$25&\",\"&$B56&\",\"&J$26,data[],7,FALSE),\"\")","v":3549.23},4175.25,0,null,{"$f":"VLOOKUP(N$14&\",\"&N$15&\",\"&N$25&\",\"&$B56&\",\"&N$26,data[],7,FALSE)","v":1342.350278465309},{"$f":"VLOOKUP(O$14&\",\"&O$15&\",\"&O$25&\",\"&$B56&\",\"&O$26,data[],7,FALSE)","v":1465.7735529911754},{"$f":"VLOOKUP(P$14&\",\"&P$15&\",\"&P$25&\",\"&$B56&\",\"&P$26,data[],7,FALSE)","v":3316.6422675294375},{"$f":"VLOOKUP(Q$14&\",\"&Q$15&\",\"&Q$25&\",\"&$B56&\",\"&Q$26,data[],7,FALSE)","v":1404.0619157282422},null,{"$f":"VLOOKUP(S$14&\",\"&S$15&\",\"&S$25&\",\"&$B56&\",\"&S$26,data[],7,FALSE)","v":6601.17},null,{"$f":"IFERROR(VLOOKUP(U$14&\",\"&U$15&\",\"&U$25&\",\"&$B56&\",\"&U$26,data[],7,FALSE),\"\")","v":1000}]
[null,"SAU",{"$f":"VLOOKUP($B57,region[],2,FALSE)","v":"Saudi Arabia"},null,{"$f":"VLOOKUP(E$14&\",\"&E$15&\",\"&E$25&\",\"&$B57&\",\"&E$26,data[],7,FALSE)","v":5.5673211551852057E-2},null,{"$f":"IFERROR(VLOOKUP(G$14&\",\"&G$15&\",\"&G$25&\",\"&$B57&\",\"&G$26,data[],7,FALSE),\"\")","v":1723},{"$f":"IFERROR(VLOOKUP(H$14&\",\"&H$15&\",\"&H$25&\",\"&$B57&\",\"&H$26,data[],7,FALSE),\"\")","v":2282},{"$f":"IFERROR(VLOOKUP(I$14&\",\"&I$15&\",\"&I$25&\",\"&$B57&\",\"&I$26,data[],7,FALSE),\"\")","v":2453},{"$f":"IFERROR(VLOOKUP(J$14&\",\"&J$15&\",\"&J$25&\",\"&$B57&\",\"&J$26,data[],7,FALSE),\"\")","v":3830.5299999999997},3409.0749999999998,0,null,{"$f":"VLOOKUP(N$14&\",\"&N$15&\",\"&N$25&\",\"&$B57&\",\"&N$26,data[],7,FALSE)","v":776.11306087697903},{"$f":"VLOOKUP(O$14&\",\"&O$15&\",\"&O$25&\",\"&$B57&\",\"&O$26,data[],7,FALSE)","v":1509.7467595809105},{"$f":"VLOOKUP(P$14&\",\"&P$15&\",\"&P$25&\",\"&$B57&\",\"&P$26,data[],7,FALSE)","v":3316.6422675294375},{"$f":"VLOOKUP(Q$14&\",\"&Q$15&\",\"&Q$25&\",\"&$B57&\",\"&Q$26,data[],7,FALSE)","v":1142.9299102289447},null,{"$f":"VLOOKUP(S$14&\",\"&S$15&\",\"&S$25&\",\"&$B57&\",\"&S$26,data[],7,FALSE)","v":8624.76},null,{"$f":"IFERROR(VLOOKUP(U$14&\",\"&U$15&\",\"&U$25&\",\"&$B57&\",\"&U$26,data[],7,FALSE),\"\")","v":4500}]
[null,"SWE",{"$f":"VLOOKUP($B58,region[],2,FALSE)","v":"Sweden"},null,{"$f":"VLOOKUP(E$14&\",\"&E$15&\",\"&E$25&\",\"&$B58&\",\"&E$26,data[],7,FALSE)","v":5.0299999999999997E-2},null,{"$f":"IFERROR(VLOOKUP(G$14&\",\"&G$15&\",\"&G$25&\",\"&$B58&\",\"&G$26,data[],7,FALSE),\"\")","v":886.08134879999852},{"$f":"IFERROR(VLOOKUP(H$14&\",\"&H$15&\",\"&H$25&\",\"&$B58&\",\"&H$26,data[],7,FALSE),\"\")","v":3056.1689955499933},{"$f":"IFERROR(VLOOKUP(I$14&\",\"&I$15&\",\"&I$25&\",\"&$B58&\",\"&I$26,data[],7,FALSE),\"\")","v":4730},{"$f":"IFERROR(VLOOKUP(J$14&\",\"&J$15&\",\"&J$25&\",\"&$B58&\",\"&J$26,data[],7,FALSE),\"\")","v":3823.9828340194917},3739.8496633893096,0,null,{"$f":"VLOOKUP(N$14&\",\"&N$15&\",\"&N$25&\",\"&$B58&\",\"&N$26,data[],7,FALSE)","v":689.52714068546084},{"$f":"VLOOKUP(O$14&\",\"&O$15&\",\"&O$25&\",\"&$B58&\",\"&O$26,data[],7,FALSE)","v":1585.9669843364518},{"$f":"VLOOKUP(P$14&\",\"&P$15&\",\"&P$25&\",\"&$B58&\",\"&P$26,data[],7,FALSE)","v":3316.6422675294375},{"$f":"VLOOKUP(Q$14&\",\"&Q$15&\",\"&Q$25&\",\"&$B58&\",\"&Q$26,data[],7,FALSE)","v":1137.7470625109563},null,{"$f":"VLOOKUP(S$14&\",\"&S$15&\",\"&S$25&\",\"&$B58&\",\"&S$26,data[],7,FALSE)","v":602.49},null,{"$f":"IFERROR(VLOOKUP(U$14&\",\"&U$15&\",\"&U$25&\",\"&$B58&\",\"&U$26,data[],7,FALSE),\"\")","v":1000}]
[null,"THA",{"$f":"VLOOKUP($B59,region[],2,FALSE)","v":"Thailand"},null,{"$f":"VLOOKUP(E$14&\",\"&E$15&\",\"&E$25&\",\"&$B59&\",\"&E$26,data[],7,FALSE)","v":6.4274782725559448E-2},null,{"$f":"IFERROR(VLOOKUP(G$14&\",\"&G$15&\",\"&G$25&\",\"&$B59&\",\"&G$26,data[],7,FALSE),\"\")","v":1254.531981600001},{"$f":"IFERROR(VLOOKUP(H$14&\",\"&H$15&\",\"&H$25&\",\"&$B59&\",\"&H$26,data[],7,FALSE),\"\")","v":2425.4030030999993},{"$f":"IFERROR(VLOOKUP(I$14&\",\"&I$15&\",\"&I$25&\",\"&$B59&\",\"&I$26,data[],7,FALSE),\"\")","v":2453},{"$f":"IFERROR(VLOOKUP(J$14&\",\"&J$15&\",\"&J$25&\",\"&$B59&\",\"&J$26,data[],7,FALSE),\"\")","v":3569.5369351590002},3450.04817368251,0,null,{"$f":"VLOOKUP(N$14&\",\"&N$15&\",\"&N$25&\",\"&$B59&\",\"&N$26,data[],7,FALSE)","v":825.65417003235973},{"$f":"VLOOKUP(O$14&\",\"&O$15&\",\"&O$25&\",\"&$B59&\",\"&O$26,data[],7,FALSE)","v":1509.7467595809105},{"$f":"VLOOKUP(P$14&\",\"&P$15&\",\"&P$25&\",\"&$B59&\",\"&P$26,data[],7,FALSE)","v":3316.6422675294375},{"$f":"VLOOKUP(Q$14&\",\"&Q$15&\",\"&Q$25&\",\"&$B59&\",\"&Q$26,data[],7,FALSE)","v":1167.7004648066352},null,{"$f":"VLOOKUP(S$14&\",\"&S$15&\",\"&S$25&\",\"&$B59&\",\"&S$26,data[],7,FALSE)","v":18076.400000000001},null,{"$f":"IFERROR(VLOOKUP(U$14&\",\"&U$15&\",\"&U$25&\",\"&$B59&\",\"&U$26,data[],7,FALSE),\"\")","v":""}]
[null,"TUN",{"$f":"VLOOKUP($B60,region[],2,FALSE)","v":"Tunisia"},null,{"$f":"VLOOKUP(E$14&\",\"&E$15&\",\"&E$25&\",\"&$B60&\",\"&E$26,data[],7,FALSE)","v":0.11482300617243665},null,{"$f":"IFERROR(VLOOKUP(G$14&\",\"&G$15&\",\"&G$25&\",\"&$B60&\",\"&G$26,data[],7,FALSE),\"\")","v":1611},{"$f":"IFERROR(VLOOKUP(H$14&\",\"&H$15&\",\"&H$25&\",\"&$B60&\",\"&H$26,data[],7,FALSE),\"\")","v":2843},{"$f":"IFERROR(VLOOKUP(I$14&\",\"&I$15&\",\"&I$25&\",\"&$B60&\",\"&I$26,data[],7,FALSE),\"\")","v":3066},{"$f":"IFERROR(VLOOKUP(J$14&\",\"&J$15&\",\"&J$25&\",\"&$B60&\",\"&J$26,data[],7,FALSE),\"\")","v":4306.8},3695.5,0,null,{"$f":"VLOOKUP(N$14&\",\"&N$15&\",\"&N$25&\",\"&$B60&\",\"&N$26,data[],7,FALSE)","v":748.32170696054584},{"$f":"VLOOKUP(O$14&\",\"&O$15&\",\"&O$25&\",\"&$B60&\",\"&O$26,data[],7,FALSE)","v":1848.8290415062024},{"$f":"VLOOKUP(P$14&\",\"&P$15&\",\"&P$25&\",\"&$B60&\",\"&P$26,data[],7,FALSE)","v":3316.6422675294375},{"$f":"VLOOKUP(Q$14&\",\"&Q$15&\",\"&Q$25&\",\"&$B60&\",\"&Q$26,data[],7,FALSE)","v":1298.5753742333741},null,{"$f":"VLOOKUP(S$14&\",\"&S$15&\",\"&S$25&\",\"&$B60&\",\"&S$26,data[],7,FALSE)","v":4114.37},null,{"$f":"IFERROR(VLOOKUP(U$14&\",\"&U$15&\",\"&U$25&\",\"&$B60&\",\"&U$26,data[],7,FALSE),\"\")","v":2000}]
[null,"UKR",{"$f":"VLOOKUP($B61,region[],2,FALSE)","v":"Ukraine"},null,{"$f":"VLOOKUP(E$14&\",\"&E$15&\",\"&E$25&\",\"&$B61&\",\"&E$26,data[],7,FALSE)","v":0.1266281397634636},null,{"$f":"IFERROR(VLOOKUP(G$14&\",\"&G$15&\",\"&G$25&\",\"&$B61&\",\"&G$26,data[],7,FALSE),\"\")","v":1398.7297331999989},{"$f":"IFERROR(VLOOKUP(H$14&\",\"&H$15&\",\"&H$25&\",\"&$B61&\",\"&H$26,data[],7,FALSE),\"\")","v":2769},{"$f":"IFERROR(VLOOKUP(I$14&\",\"&I$15&\",\"&I$25&\",\"&$B61&\",\"&I$26,data[],7,FALSE),\"\")","v":3066},{"$f":"IFERROR(VLOOKUP(J$14&\",\"&J$15&\",\"&J$25&\",\"&$B61&\",\"&J$26,data[],7,FALSE),\"\")","v":5019.1641120944814},5101.1029451555632,0,null,{"$f":"VLOOKUP(N$14&\",\"&N$15&\",\"&N$25&\",\"&$B61&\",\"&N$26,data[],7,FALSE)","v":689.52714068546084},{"$f":"VLOOKUP(O$14&\",\"&O$15&\",\"&O$25&\",\"&$B61&\",\"&O$26,data[],7,FALSE)","v":1465.7735529911754},{"$f":"VLOOKUP(P$14&\",\"&P$15&\",\"&P$25&\",\"&$B61&\",\"&P$26,data[],7,FALSE)","v":3316.6422675294375},{"$f":"VLOOKUP(Q$14&\",\"&Q$15&\",\"&Q$25&\",\"&$B61&\",\"&Q$26,data[],7,FALSE)","v":1077.650346838318},null,{"$f":"VLOOKUP(S$14&\",\"&S$15&\",\"&S$25&\",\"&$B61&\",\"&S$26,data[],7,FALSE)","v":6650.36},null,{"$f":"IFERROR(VLOOKUP(U$14&\",\"&U$15&\",\"&U$25&\",\"&$B61&\",\"&U$26,data[],7,FALSE),\"\")","v":1500}]
[null,"URY",{"$f":"VLOOKUP($B62,region[],2,FALSE)","v":"Uruguay"},null,{"$f":"VLOOKUP(E$14&\",\"&E$15&\",\"&E$25&\",\"&$B62&\",\"&E$26,data[],7,FALSE)","v":7.731973992583685E-2},null,{"$f":"IFERROR(VLOOKUP(G$14&\",\"&G$15&\",\"&G$25&\",\"&$B62&\",\"&G$26,data[],7,FALSE),\"\")","v":1338},{"$f":"IFERROR(VLOOKUP(H$14&\",\"&H$15&\",\"&H$25&\",\"&$B62&\",\"&H$26,data[],7,FALSE),\"\")","v":3594},{"$f":"IFERROR(VLOOKUP(I$14&\",\"&I$15&\",\"&I$25&\",\"&$B62&\",\"&I$26,data[],7,FALSE),\"\")","v":3854},{"$f":"IFERROR(VLOOKUP(J$14&\",\"&J$15&\",\"&J$25&\",\"&$B62&\",\"&J$26,data[],7,FALSE),\"\")","v":4775.3099999999995},5444.45,0,null,{"$f":"VLOOKUP(N$14&\",\"&N$15&\",\"&N$25&\",\"&$B62&\",\"&N$26,data[],7,FALSE)","v":748.32170696054584},{"$f":"VLOOKUP(O$14&\",\"&O$15&\",\"&O$25&\",\"&$B62&\",\"&O$26,data[],7,FALSE)","v":2198.6603294867632},{"$f":"VLOOKUP(P$14&\",\"&P$15&\",\"&P$25&\",\"&$B62&\",\"&P$26,data[],7,FALSE)","v":3316.6422675294375},{"$f":"VLOOKUP(Q$14&\",\"&Q$15&\",\"&Q$25&\",\"&$B62&\",\"&Q$26,data[],7,FALSE)","v":1473.4910182236545},null,{"$f":"VLOOKUP(S$14&\",\"&S$15&\",\"&S$25&\",\"&$B62&\",\"&S$26,data[],7,FALSE)","v":12547.2},null,{"$f":"IFERROR(VLOOKUP(U$14&\",\"&U$15&\",\"&U$25&\",\"&$B62&\",\"&U$26,data[],7,FALSE),\"\")","v":""}]
[null,"USA",{"$f":"VLOOKUP($B63,region[],2,FALSE)","v":"USA"},null,{"$f":"VLOOKUP(E$14&\",\"&E$15&\",\"&E$25&\",\"&$B63&\",\"&E$26,data[],7,FALSE)","v":5.0299999999999997E-2},null,{"$f":"IFERROR(VLOOKUP(G$14&\",\"&G$15&\",\"&G$25&\",\"&$B63&\",\"&G$26,data[],7,FALSE),\"\")","v":1593},{"$f":"IFERROR(VLOOKUP(H$14&\",\"&H$15&\",\"&H$25&\",\"&$B63&\",\"&H$26,data[],7,FALSE),\"\")","v":3503},{"$f":"IFERROR(VLOOKUP(I$14&\",\"&I$15&\",\"&I$25&\",\"&$B63&\",\"&I$26,data[],7,FALSE),\"\")","v":4030},{"$f":"IFERROR(VLOOKUP(J$14&\",\"&J$15&\",\"&J$25&\",\"&$B63&\",\"&J$26,data[],7,FALSE),\"\")","v":5067.28},5447.3,0,null,{"$f":"VLOOKUP(N$14&\",\"&N$15&\",\"&N$25&\",\"&$B63&\",\"&N$26,data[],7,FALSE)","v":893.97070892392617},{"$f":"VLOOKUP(O$14&\",\"&O$15&\",\"&O$25&\",\"&$B63&\",\"&O$26,data[],7,FALSE)","v":1350.1851629205719},{"$f":"VLOOKUP(P$14&\",\"&P$15&\",\"&P$25&\",\"&$B63&\",\"&P$26,data[],7,FALSE)","v":3316.6422675294375},{"$f":"VLOOKUP(Q$14&\",\"&Q$15&\",\"&Q$25&\",\"&$B63&\",\"&Q$26,data[],7,FALSE)","v":1122.077935922249},null,{"$f":"VLOOKUP(S$14&\",\"&S$15&\",\"&S$25&\",\"&$B63&\",\"&S$26,data[],7,FALSE)","v":8323.27},null,{"$f":"IFERROR(VLOOKUP(U$14&\",\"&U$15&\",\"&U$25&\",\"&$B63&\",\"&U$26,data[],7,FALSE),\"\")","v":""}]
[null,"VNM",{"$f":"VLOOKUP($B64,region[],2,FALSE)","v":"Vietnam"},null,{"$f":"VLOOKUP(E$14&\",\"&E$15&\",\"&E$25&\",\"&$B64&\",\"&E$26,data[],7,FALSE)","v":8.9280207439799461E-2},null,{"$f":"IFERROR(VLOOKUP(G$14&\",\"&G$15&\",\"&G$25&\",\"&$B64&\",\"&G$26,data[],7,FALSE),\"\")","v":1266.9854976000001},{"$f":"IFERROR(VLOOKUP(H$14&\",\"&H$15&\",\"&H$25&\",\"&$B64&\",\"&H$26,data[],7,FALSE),\"\")","v":3577.9190809999977},{"$f":"IFERROR(VLOOKUP(I$14&\",\"&I$15&\",\"&I$25&\",\"&$B64&\",\"&I$26,data[],7,FALSE),\"\")","v":3578},{"$f":"IFERROR(VLOOKUP(J$14&\",\"&J$15&\",\"&J$25&\",\"&$B64&\",\"&J$26,data[],7,FALSE),\"\")","v":4699.5574412419974},4737.086508859752,0,null,{"$f":"VLOOKUP(N$14&\",\"&N$15&\",\"&N$25&\",\"&$B64&\",\"&N$26,data[],7,FALSE)","v":825.65417003235973},{"$f":"VLOOKUP(O$14&\",\"&O$15&\",\"&O$25&\",\"&$B64&\",\"&O$26,data[],7,FALSE)","v":2198.6603294867632},{"$f":"VLOOKUP(P$14&\",\"&P$15&\",\"&P$25&\",\"&$B64&\",\"&P$26,data[],7,FALSE)","v":3316.6422675294375},{"$f":"VLOOKUP(Q$14&\",\"&Q$15&\",\"&Q$25&\",\"&$B64&\",\"&Q$26,data[],7,FALSE)","v":1512.1572497595614},null,{"$f":"VLOOKUP(S$14&\",\"&S$15&\",\"&S$25&\",\"&$B64&\",\"&S$26,data[],7,FALSE)","v":18266.27},null,{"$f":"IFERROR(VLOOKUP(U$14&\",\"&U$15&\",\"&U$25&\",\"&$B64&\",\"&U$26,data[],7,FALSE),\"\")","v":""}]
[null,"ZAF",{"$f":"VLOOKUP($B65,region[],2,FALSE)","v":"South Africa"},null,{"$f":"VLOOKUP(E$14&\",\"&E$15&\",\"&E$25&\",\"&$B65&\",\"&E$26,data[],7,FALSE)","v":7.8066629268261314E-2},null,{"$f":"IFERROR(VLOOKUP(G$14&\",\"&G$15&\",\"&G$25&\",\"&$B65&\",\"&G$26,data[],7,FALSE),\"\")","v":1603},{"$f":"IFERROR(VLOOKUP(H$14&\",\"&H$15&\",\"&H$25&\",\"&$B65&\",\"&H$26,data[],7,FALSE),\"\")","v":3070},{"$f":"IFERROR(VLOOKUP(I$14&\",\"&I$15&\",\"&I$25&\",\"&$B65&\",\"&I$26,data[],7,FALSE),\"\")","v":4117},{"$f":"IFERROR(VLOOKUP(J$14&\",\"&J$15&\",\"&J$25&\",\"&$B65&\",\"&J$26,data[],7,FALSE),\"\")","v":4382.46},3621.4,0,null,{"$f":"VLOOKUP(N$14&\",\"&N$15&\",\"&N$25&\",\"&$B65&\",\"&N$26,data[],7,FALSE)","v":748.32170696054584},{"$f":"VLOOKUP(O$14&\",\"&O$15&\",\"&O$25&\",\"&$B65&\",\"&O$26,data[],7,FALSE)","v":1710.0691451563712},{"$f":"VLOOKUP(P$14&\",\"&P$15&\",\"&P$25&\",\"&$B65&\",\"&P$26,data[],7,FALSE)","v":3316.6422675294375},{"$f":"VLOOKUP(Q$14&\",\"&Q$15&\",\"&Q$25&\",\"&$B65&\",\"&Q$26,data[],7,FALSE)","v":1229.1954260584585},null,{"$f":"VLOOKUP(S$14&\",\"&S$15&\",\"&S$25&\",\"&$B65&\",\"&S$26,data[],7,FALSE)","v":11789.832},null,{"$f":"IFERROR(VLOOKUP(U$14&\",\"&U$15&\",\"&U$25&\",\"&$B65&\",\"&U$26,data[],7,FALSE),\"\")","v":""}]
[]
[]
[null,null,null,null,{"$f":"E31","v":"WACC"},null,{"$f":"G24","v":"PV tilted"},{"$f":"H24","v":"Wind Onshore"},{"$f":"I24","v":"Wind Offshore"},{"$f":"J24","v":"Wind-PV-Hybrid"},{"$f":"K24","v":"Electrolysis"},"Derivate production",null,{"$f":"N24","v":"PV tilted"},{"$f":"O24","v":"Wind Onshore"},{"$f":"P24","v":"Wind Offshore"},{"$f":"Q24","v":"Wind-PV-Hybrid"},null,{"$f":"S31","v":"Shipping distance to Germany (km)"},null,{"$f":"U31","v":"Pipeline distance to Germany (km)"}]
[null,null,"Min",null,{"$f":"_xlfn.AGGREGATE(5,6,E$32:E$65)","v":5.0299999999999997E-2},null,{"$f":"_xlfn.AGGREGATE(5,6,G$32:G$65)","v":845.30347200000051},{"$f":"_xlfn.AGGREGATE(5,6,H$32:H$65)","v":667},{"$f":"_xlfn.AGGREGATE(5,6,I$32:I$65)","v":2453},{"$f":"_xlfn.AGGREGATE(5,6,J$32:J$65)","v":2376.5},{"$f":"_xlfn.AGGREGATE(5,6,K$32:K$65)","v":2371.4702152796694},0,null,{"$f":"_xlfn.AGGREGATE(5,6,N$32:N$65)","v":470.31522012425313},{"$f":"_xlfn.AGGREGATE(5,6,O$32:O$65)","v":904.87087337988555},{"$f":"_xlfn.AGGREGATE(5,6,P$32:P$65)","v":2214.3840130599938},{"$f":"_xlfn.AGGREGATE(5,6,Q$32:Q$65)","v":695.49359886878108},null,{"$f":"_xlfn.AGGREGATE(5,6,S$32:S$65)","v":602.49},null,{"$f":"_xlfn.AGGREGATE(5,6,U$32:U$65)","v":500}]
[null,null,"First quartile",null,{"$f":"_xlfn.AGGREGATE(16,6,E$32:E$65,0.25)","v":5.7823604345278903E-2},null,{"$f":"_xlfn.AGGREGATE(16,6,G$32:G$65,0.25)","v":1340},{"$f":"_xlfn.AGGREGATE(16,6,H$32:H$65,0.25)","v":2745.75},{"$f":"_xlfn.AGGREGATE(16,6,I$32:I$65,0.25)","v":3066},{"$f":"_xlfn.AGGREGATE(16,6,J$32:J$65,0.25)","v":3707.4007085048729},{"$f":"_xlfn.AGGREGATE(16,6,K$32:K$65,0.25)","v":3492.8861302618825},0,null,{"$f":"_xlfn.AGGREGATE(16,6,N$32:N$65,0.25)","v":714.58170203858856},{"$f":"_xlfn.AGGREGATE(16,6,O$32:O$65,0.25)","v":1465.7735529911754},{"$f":"_xlfn.AGGREGATE(16,6,P$32:P$65,0.25)","v":3316.6422675294375},{"$f":"_xlfn.AGGREGATE(16,6,Q$32:Q$65,0.25)","v":1107.0476299758607},null,{"$f":"_xlfn.AGGREGATE(16,6,S$32:S$65,0.25)","v":4779.1049999999996},null,{"$f":"_xlfn.AGGREGATE(16,6,U$32:U$65,0.25)","v":1375}]
[null,null,"Median",null,{"$f":"_xlfn.AGGREGATE(16,6,E$32:E$65,0.5)","v":7.3401485154905771E-2},null,{"$f":"_xlfn.AGGREGATE(16,6,G$32:G$65,0.5)","v":1559.5},{"$f":"_xlfn.AGGREGATE(16,6,H$32:H$65,0.5)","v":3510},{"$f":"_xlfn.AGGREGATE(16,6,I$32:I$65,0.5)","v":3854},{"$f":"_xlfn.AGGREGATE(16,6,J$32:J$65,0.5)","v":4719.4887206209987},{"$f":"_xlfn.AGGREGATE(16,6,K$32:K$65,0.5)","v":4672.0557544298754},0,null,{"$f":"_xlfn.AGGREGATE(16,6,N$32:N$65,0.5)","v":748.32170696054584},{"$f":"_xlfn.AGGREGATE(16,6,O$32:O$65,0.5)","v":1585.9669843364518},{"$f":"_xlfn.AGGREGATE(16,6,P$32:P$65,0.5)","v":3316.6422675294375},{"$f":"_xlfn.AGGREGATE(16,6,Q$32:Q$65,0.5)","v":1177.180659143454},null,{"$f":"_xlfn.AGGREGATE(16,6,S$32:S$65,0.5)","v":8937.75},null,{"$f":"_xlfn.AGGREGATE(16,6,U$32:U$65,0.5)","v":2250}]
[null,null,"Third quartile",null,{"$f":"_xlfn.AGGREGATE(16,6,E$32:E$65,0.75)","v":9.1320051859949861E-2},null,{"$f":"_xlfn.AGGREGATE(16,6,G$32:G$65,0.75)","v":1689.75},{"$f":"_xlfn.AGGREGATE(16,6,H$32:H$65,0.75)","v":4267.7393908124986},{"$f":"_xlfn.AGGREGATE(16,6,I$32:I$65,0.75)","v":4522},{"$f":"_xlfn.AGGREGATE(16,6,J$32:J$65,0.75)","v":5176.6677716783715},{"$f":"_xlfn.AGGREGATE(16,6,K$32:K$65,0.75)","v":5446.5874999999996},0,null,{"$f":"_xlfn.AGGREGATE(16,6,N$32:N$65,0.75)","v":754.59567481793465},{"$f":"_xlfn.AGGREGATE(16,6,O$32:O$65,0.75)","v":1814.1390674187446},{"$f":"_xlfn.AGGREGATE(16,6,P$32:P$65,0.75)","v":3316.6422675294375},{"$f":"_xlfn.AGGREGATE(16,6,Q$32:Q$65,0.75)","v":1298.5753742333741},null,{"$f":"_xlfn.AGGREGATE(16,6,S$32:S$65,0.75)","v":12538.375},null,{"$f":"_xlfn.AGGREGATE(16,6,U$32:U$65,0.75)","v":3750}]
[null,null,"Max",null,{"$f":"_xlfn.AGGREGATE(4,6,E$32:E$65)","v":0.15031035355923136},null,{"$f":"_xlfn.AGGREGATE(4,6,G$32:G$65)","v":1939},{"$f":"_xlfn.AGGREGATE(4,6,H$32:H$65)","v":6034},{"$f":"_xlfn.AGGREGATE(4,6,I$32:I$65)","v":6034},{"$f":"_xlfn.AGGREGATE(4,6,J$32:J$65)","v":6766.4489765195067},{"$f":"_xlfn.AGGREGATE(4,6,K$32:K$65)","v":7091.1753295807785},0,null,{"$f":"_xlfn.AGGREGATE(4,6,N$32:N$65)","v":1342.350278465309},{"$f":"_xlfn.AGGREGATE(4,6,O$32:O$65)","v":2198.6603294867632},{"$f":"_xlfn.AGGREGATE(4,6,P$32:P$65)","v":3317},{"$f":"_xlfn.AGGREGATE(4,6,Q$32:Q$65)","v":1533.0240021148766},null,{"$f":"_xlfn.AGGREGATE(4,6,S$32:S$65)","v":21212.3},null,{"$f":"_xlfn.AGGREGATE(4,6,U$32:U$65)","v":5500}]
[null,null,{"$f":"sel_region_name","v":"Morocco"},null,{"$f":"SUMIF($B$32:$B$65,sel_region_code,E$32:E$65)","v":7.731973992583685E-2},null,{"$f":"SUMIF($B$32:$B$65,sel_region_code,G$32:G$65)","v":1631},3289,4643,4739.42,4501.0999999999995,0,null,{"$f":"SUMIF($B$32:$B$65,sel_region_code,N$32:N$65)","v":748.32170696054584},{"$f":"SUMIF($B$32:$B$65,sel_region_code,O$32:O$65)","v":1710.0691451563712},{"$f":"SUMIF($B$32:$B$65,sel_region_code,P$32:P$65)","v":3316.6422675294375},{"$f":"SUMIF($B$32:$B$65,sel_region_code,Q$32:Q$65)","v":1229.1954260584585},null,{"$f":"SUMIF($B$32:$B$65,sel_region_code,S$32:S$65)","v":2668.15},null,{"$f":"SUMIF($B$32:$B$65,sel_region_code,U$32:U$65)","v":2500}]
[]
[]
[null,null,null,null,{"$f":"E31","v":"WACC"},null,{"$f":"G24","v":"PV tilted"},{"$f":"H24","v":"Wind Onshore"},{"$f":"I24","v":"Wind Offshore"},{"$f":"J24","v":"Wind-PV-Hybrid"},{"$f":"K24","v":"Electrolysis"},"Derivate production",null,{"$f":"N24","v":"PV tilted"},{"$f":"O24","v":"Wind Onshore"},{"$f":"P24","v":"Wind Offshore"},{"$f":"Q24","v":"Wind-PV-Hybrid"},null,{"$f":"S31","v":"Shipping distance to Germany (km)"},null,{"$f":"U31","v":"Pipeline distance to Germany (km)"}]
[null,null,"Min",null,{"$f":"E69","v":5.0299999999999997E-2},null,{"$f":"G69","v":845.30347200000051},{"$f":"H69","v":667},2453,2376.5,{"$f":"K69","v":2371.4702152796694},0,null,{"$f":"N69","v":470.31522012425313},{"$f":"O69","v":904.87087337988555},2214.3840130599938,695.49359886878108,null,{"$f":"S69","v":602.49},null,{"$f":"U69","v":500}]
[null,null,"Q1-Min",null,{"$f":"E70-E69","v":7.5236043452789059E-3},null,{"$f":"G70-G69","v":494.69652799999949},{"$f":"H70-H69","v":2078.75},613,1330.9007085048729,{"$f":"K70-K69","v":1121.4159149822131},0,null,{"$f":"N70-N69","v":244.26648191433543},{"$f":"O70-O69","v":560.90267961128984},1102.2582544694437,411.5540311070796,null,{"$f":"S70-S69","v":4176.6149999999998},null,{"$f":"U70-U69","v":875}]
[null,null,"Q2-Q1",null,{"$f":"E71-E70","v":1.5577880809626868E-2},null,{"$f":"G71-G70","v":219.5},{"$f":"H71-H70","v":764.25},788,1012.0880121161258,{"$f":"K71-K70","v":1179.1696241679929},0,null,{"$f":"N71-N70","v":33.740004921957279},{"$f":"O71-O70","v":120.19343134527639},0,70.133029167593349,null,{"$f":"S71-S70","v":4158.6450000000004},null,{"$f":"U71-U70","v":875}]
[null,null,"Q3-Q2",null,{"$f":"E72-E71","v":1.7918566705044089E-2},null,{"$f":"G72-G71","v":130.25},{"$f":"H72-H71","v":757.73939081249864},668,457.17905105737282,{"$f":"K72-K71","v":774.53174557012426},0,null,{"$f":"N72-N71","v":6.2739678573888114},228.17208308229283,0,121.39471508992006,null,{"$f":"S72-S71","v":3600.625},null,{"$f":"U72-U71","v":1500}]
[null,null,"Max-Q3",null,{"$f":"E73-E72","v":5.8990301699281503E-2},null,249.25,{"$f":"H73-H72","v":1766.2606091875014},1512,1589.7812048411351,{"$f":"K73-K72","v":1644.5878295807788},0,null,{"$f":"N73-N72","v":587.75460364737432},384.52126206801859,0.35773247056249602,234.44862788150249,null,{"$f":"S73-S72","v":8673.9249999999993},null,{"$f":"U73-U72","v":1750}]
[null,{"$f":"sel_region_code","v":"MAR"},{"$f":"sel_region_name","v":"Morocco"},null,{"$f":"VLOOKUP(E$14&\",\"&E$15&\",\"&E$25&\",\"&$B83&\",\"&E$26,data[],7,FALSE)","v":7.731973992583685E-2},null,{"$f":"VLOOKUP(G$14&\",\"&G$15&\",\"&G$25&\",\"&$B83&\",\"&G$26,data[],7,FALSE)","v":1631},{"$f":"VLOOKUP(H$14&\",\"&H$15&\",\"&H$25&\",\"&$B83&\",\"&H$26,data[],7,FALSE)","v":3289},{"$f":"VLOOKUP(I$14&\",\"&I$15&\",\"&I$25&\",\"&$B83&\",\"&I$26,data[],7,FALSE)","v":4643},{"$f":"VLOOKUP(J$14&\",\"&J$15&\",\"&J$25&\",\"&$B83&\",\"&J$26,data[],7,FALSE)","v":4739.42},{"$f":"INDEX(flh_ely,MATCH($B83,flh_region_code))","v":4501.0999999999995},{"$f":"INDEX(flh_deriv,MATCH($B83,flh_region_code))","v":0},null,{"$f":"VLOOKUP(N$14&\",\"&N$15&\",\"&N$25&\",\"&$B83&\",\"&N$26,data[],7,FALSE)","v":748.32170696054584},{"$f":"VLOOKUP(O$14&\",\"&O$15&\",\"&O$25&\",\"&$B83&\",\"&O$26,data[],7,FALSE)","v":1710.0691451563712},{"$f":"VLOOKUP(P$14&\",\"&P$15&\",\"&P$25&\",\"&$B83&\",\"&P$26,data[],7,FALSE)","v":3316.6422675294375},{"$f":"VLOOKUP(Q$14&\",\"&Q$15&\",\"&Q$25&\",\"&$B83&\",\"&Q$26,data[],7,FALSE)","v":1229.1954260584585},null,{"$f":"VLOOKUP(S$14&\",\"&S$15&\",\"&S$25&\",\"&$B83&\",\"&S$26,data[],7,FALSE)","v":2668.15},null,{"$f":"VLOOKUP(U$14&\",\"&U$15&\",\"&U$25&\",\"&$B83&\",\"&U$26,data[],7,FALSE)","v":2500}]

{"sheet":"r_RegDataMAR","index":25,"n_rows":79,"n_cols":13,"rows_kept":79,"cut":false,"hidden":false,"merged":[[1,11,1,12],[2,11,2,12],[4,2,10,9]]}
[]
[null,null,"DEEP-DIVE MOROCCO | Data on country and regional level",null,null,null,null,null,null,null,null,"YOUR SETTINGS"]
[null,null,null,null,null,null,null,null,null,null,null,"can be re-adjusted on the dashboard"]
[null,null,"Compare total costs and full-load hours of renewables for subregions of Morocco",null,null,null,null,null,null,null,null,"Supply country:",{"$f":"sel_region_name","v":"Morocco"}]
[null,null,"The diagram on the left shows the distribution of total delivered costs of all subregions of Morocco.\nThe diagram on the right gives you detailed information on full load hours (FLH) per region and renewable energy generation technology. \n\nNote that for all regions except for the source region selected in the dashboard, the Wind-PV-Hybrid generation option is used!\n\nThe box plots show median, 1st and 3rd quartile as well as the total spread of values. The also show the data for your country and/or region for comparison. ",null,null,null,null,null,null,null,null,"Demand country:",{"$f":"sel_country_name","v":"Germany"}]
[null,null,null,null,null,null,null,null,null,null,null,"RE generation:",{"$f":"sel_res_gen_name","v":"Wind-PV-Hybrid"}]
[null,null,null,null,null,null,null,null,null,null,null,"Process chain:",{"$f":"sel_chain","v":"Hydrogen (AEL)"}]
[null,null,null,null,null,null,null,null,null,null,null,"CO2 source:",{"$f":"sel_secproc_co2","v":"DAC"}]
[null,null,null,null,null,null,null,null,null,null,null,"Water source:",{"$f":"sel_secproc_water","v":"Water desalination"}]
[null,null,null,null,null,null,null,null,null,null,null,"Transport mode:",{"$f":"sel_transport","v":"Ship"}]
[null,null,null,null,null,null,null,null,null,null,null,"Scenario:",{"$f":"sel_scenario","v":"2030 (medium)"}]
[]
[]
[]
[]
[]
[]
[]
[]
[]
[]
[]
[null,null,"parameter_code",null,"WACC",null,"FLH","FLH","FLH","FLH"]
[null,null,"process_code",null,null,null,{"$f":"INDEX(process[process_code],MATCH(G$25,process[process_name],0),1)","v":"PV-FIX"},{"$f":"INDEX(process[process_code],MATCH(H$25,process[process_name],0),1)","v":"WIND-ON"},{"$f":"INDEX(process[process_code],MATCH(I$25,process[process_name],0),1)","v":"WIND-OFF"},{"$f":"INDEX(process[process_code],MATCH(J$25,process[process_name],0),1)","v":"RES-HYBR"}]
[null,null,null,null,null,null,"PV tilted","Wind Onshore","Wind Offshore","Wind-PV-Hybrid"]
[null,null,"flow_code"]
[null,null,"target_country_code"]
[]
[]
[null,null,null,null,"total costs",null,{"$f":"VLOOKUP(G$23,parameter[],2,FALSE)","v":"full load hours"},{"$f":"VLOOKUP(H$23,parameter[],2,FALSE)","v":"full load hours"},{"$f":"VLOOKUP(I$23,parameter[],2,FALSE)","v":"full load hours"},{"$f":"VLOOKUP(J$23,parameter[],2,FALSE)","v":"full load hours"}]
[null,null,null,null,"USD/kWh",null,{"$f":"VLOOKUP(G$23,parameter[],3,FALSE)","v":"h"},{"$f":"VLOOKUP(H$23,parameter[],3,FALSE)","v":"h"},{"$f":"VLOOKUP(I$23,parameter[],3,FALSE)","v":"h"},{"$f":"VLOOKUP(J$23,parameter[],3,FALSE)","v":"h"}]
[null,"Country code","Supply country (and region)",null,{"$f":"\"Total costs (\"&selOutputUnit2&\")\"","v":"Total costs (USD/MWh H2)"},null,"full load hours (h/year)","full load hours (h/year)","full load hours (h/year)","full load hours (h/year)",null,"RE option used"]
[null,"MAR","Morocco (country)",null,{"$f":"IF(SUMIFS(output[value],output[source],$B33,output[variable],\"<>LC\")=0,\"\",SUMIFS(output[value],output[source],$B33,output[variable],\"<>LC\"))","v":171.70333473886961},null,{"$f":"IFERROR(VLOOKUP(G$23&\",\"&G$24&\",\"&G$26&\",\"&$B33&\",\"&G$27,data[],7,FALSE),\"\")","v":1631},{"$f":"IFERROR(VLOOKUP(H$23&\",\"&H$24&\",\"&H$26&\",\"&$B33&\",\"&H$27,data[],7,FALSE),\"\")","v":3289},{"$f":"IFERROR(VLOOKUP(I$23&\",\"&I$24&\",\"&I$26&\",\"&$B33&\",\"&I$27,data[],7,FALSE),\"\")","v":4643},{"$f":"IFERROR(VLOOKUP(J$23&\",\"&J$24&\",\"&J$26&\",\"&$B33&\",\"&J$27,data[],7,FALSE),\"\")","v":4739.42},null,{"$f":"IF($B33=sel_region_code,sel_res_gen_name,VLOOKUP(\"RES-HYBR\",process_res_gen[],2,FALSE))","v":"Wind-PV-Hybrid"}]
[null,"MAR-BEN",{"$f":"IFERROR(VLOOKUP($B34,region[],2,FALSE),\"\")","v":"Morocco (Béni Mellal-Khénifra)"},null,{"$f":"IF(SUMIFS(output[value],output[source],$B34,output[variable],\"<>LC\")=0,\"\",SUMIFS(output[value],output[source],$B34,output[variable],\"<>LC\"))","v":225.51604965814647},null,{"$f":"IFERROR(VLOOKUP(G$23&\",\"&G$24&\",\"&G$26&\",\"&$B34&\",\"&G$27,data[],7,FALSE),\"\")","v":1745.3384668799999},{"$f":"IFERROR(VLOOKUP(H$23&\",\"&H$24&\",\"&H$26&\",\"&$B34&\",\"&H$27,data[],7,FALSE),\"\")","v":1563.4934093166669},{"$f":"IFERROR(VLOOKUP(I$23&\",\"&I$24&\",\"&I$26&\",\"&$B34&\",\"&I$27,data[],7,FALSE),\"\")","v":""},{"$f":"IFERROR(VLOOKUP(J$23&\",\"&J$24&\",\"&J$26&\",\"&$B34&\",\"&J$27,data[],7,FALSE),\"\")","v":3352.6974508185135},null,{"$f":"IF($B34=sel_region_code,sel_res_gen_name,VLOOKUP(\"RES-HYBR\",process_res_gen[],2,FALSE))","v":"Wind-PV-Hybrid"}]
[null,"MAR-CAS",{"$f":"IFERROR(VLOOKUP($B35,region[],2,FALSE),\"\")","v":"Morocco (Casablanca)"},null,{"$f":"IF(SUMIFS(output[value],output[source],$B35,output[variable],\"<>LC\")=0,\"\",SUMIFS(output[value],output[source],$B35,output[variable],\"<>LC\"))","v":189.8847149834443},null,{"$f":"IFERROR(VLOOKUP(G$23&\",\"&G$24&\",\"&G$26&\",\"&$B35&\",\"&G$27,data[],7,FALSE),\"\")","v":1665.7276233599982},{"$f":"IFERROR(VLOOKUP(H$23&\",\"&H$24&\",\"&H$26&\",\"&$B35&\",\"&H$27,data[],7,FALSE),\"\")","v":2513.2012449499989},{"$f":"IFERROR(VLOOKUP(I$23&\",\"&I$24&\",\"&I$26&\",\"&$B35&\",\"&I$27,data[],7,FALSE),\"\")","v":4642.8},{"$f":"IFERROR(VLOOKUP(J$23&\",\"&J$24&\",\"&J$26&\",\"&$B35&\",\"&J$27,data[],7,FALSE),\"\")","v":4107.461264954989},null,{"$f":"IF($B35=sel_region_code,sel_res_gen_name,VLOOKUP(\"RES-HYBR\",process_res_gen[],2,FALSE))","v":"Wind-PV-Hybrid"}]
[null,"MAR-DAK",{"$f":"IFERROR(VLOOKUP($B36,region[],2,FALSE),\"\")","v":"Morocco (Dakhla-Oued Ed-Dahab)"},null,{"$f":"IF(SUMIFS(output[value],output[source],$B36,output[variable],\"<>LC\")=0,\"\",SUMIFS(output[value],output[source],$B36,output[variable],\"<>LC\"))","v":133.16464761260582},null,{"$f":"IFERROR(VLOOKUP(G$23&\",\"&G$24&\",\"&G$26&\",\"&$B36&\",\"&G$27,data[],7,FALSE),\"\")","v":1728.1917287999981},{"$f":"IFERROR(VLOOKUP(H$23&\",\"&H$24&\",\"&H$26&\",\"&$B36&\",\"&H$27,data[],7,FALSE),\"\")","v":5181.7820854799875},{"$f":"IFERROR(VLOOKUP(I$23&\",\"&I$24&\",\"&I$26&\",\"&$B36&\",\"&I$27,data[],7,FALSE),\"\")","v":5181.7820854799875},{"$f":"IFERROR(VLOOKUP(J$23&\",\"&J$24&\",\"&J$26&\",\"&$B36&\",\"&J$27,data[],7,FALSE),\"\")","v":6342.17431498525},null,{"$f":"IF($B36=sel_region_code,sel_res_gen_name,VLOOKUP(\"RES-HYBR\",process_res_gen[],2,FALSE))","v":"Wind-PV-Hybrid"}]
[null,"MAR-DRA",{"$f":"IFERROR(VLOOKUP($B37,region[],2,FALSE),\"\")","v":"Morocco (Drâa-Tafilalet)"},null,{"$f":"IF(SUMIFS(output[value],output[source],$B37,output[variable],\"<>LC\")=0,\"\",SUMIFS(output[value],output[source],$B37,output[variable],\"<>LC\"))","v":177.31035748356993},null,{"$f":"IFERROR(VLOOKUP(G$23&\",\"&G$24&\",\"&G$26&\",\"&$B37&\",\"&G$27,data[],7,FALSE),\"\")","v":1808.0709587999988},{"$f":"IFERROR(VLOOKUP(H$23&\",\"&H$24&\",\"&H$26&\",\"&$B37&\",\"&H$27,data[],7,FALSE),\"\")","v":2724.0904536999979},{"$f":"IFERROR(VLOOKUP(I$23&\",\"&I$24&\",\"&I$26&\",\"&$B37&\",\"&I$27,data[],7,FALSE),\"\")","v":""},{"$f":"IFERROR(VLOOKUP(J$23&\",\"&J$24&\",\"&J$26&\",\"&$B37&\",\"&J$27,data[],7,FALSE),\"\")","v":4442.5500678171611},null,{"$f":"IF($B37=sel_region_code,sel_res_gen_name,VLOOKUP(\"RES-HYBR\",process_res_gen[],2,FALSE))","v":"Wind-PV-Hybrid"}]
[null,"MAR-FES",{"$f":"IFERROR(VLOOKUP($B38,region[],2,FALSE),\"\")","v":"Morocco (Fès-Meknès)"},null,{"$f":"IF(SUMIFS(output[value],output[source],$B38,output[variable],\"<>LC\")=0,\"\",SUMIFS(output[value],output[source],$B38,output[variable],\"<>LC\"))","v":207.89959244842623},null,{"$f":"IFERROR(VLOOKUP(G$23&\",\"&G$24&\",\"&G$26&\",\"&$B38&\",\"&G$27,data[],7,FALSE),\"\")","v":1678.0894264800027},{"$f":"IFERROR(VLOOKUP(H$23&\",\"&H$24&\",\"&H$26&\",\"&$B38&\",\"&H$27,data[],7,FALSE),\"\")","v":2050.2642833200007},{"$f":"IFERROR(VLOOKUP(I$23&\",\"&I$24&\",\"&I$26&\",\"&$B38&\",\"&I$27,data[],7,FALSE),\"\")","v":""},{"$f":"IFERROR(VLOOKUP(J$23&\",\"&J$24&\",\"&J$26&\",\"&$B38&\",\"&J$27,data[],7,FALSE),\"\")","v":3693.5166831944407},null,{"$f":"IF($B38=sel_region_code,sel_res_gen_name,VLOOKUP(\"RES-HYBR\",process_res_gen[],2,FALSE))","v":"Wind-PV-Hybrid"}]
[null,"MAR-GUE",{"$f":"IFERROR(VLOOKUP($B39,region[],2,FALSE),\"\")","v":"Morocco (Guelmim-Oued Noun)"},null,{"$f":"IF(SUMIFS(output[value],output[source],$B39,output[variable],\"<>LC\")=0,\"\",SUMIFS(output[value],output[source],$B39,output[variable],\"<>LC\"))","v":160.12224634110515},null,{"$f":"IFERROR(VLOOKUP(G$23&\",\"&G$24&\",\"&G$26&\",\"&$B39&\",\"&G$27,data[],7,FALSE),\"\")","v":1758.0457144800002},{"$f":"IFERROR(VLOOKUP(H$23&\",\"&H$24&\",\"&H$26&\",\"&$B39&\",\"&H$27,data[],7,FALSE),\"\")","v":3542.2692728499992},{"$f":"IFERROR(VLOOKUP(I$23&\",\"&I$24&\",\"&I$26&\",\"&$B39&\",\"&I$27,data[],7,FALSE),\"\")","v":4642.8},{"$f":"IFERROR(VLOOKUP(J$23&\",\"&J$24&\",\"&J$26&\",\"&$B39&\",\"&J$27,data[],7,FALSE),\"\")","v":5015.1834420732221},null,{"$f":"IF($B39=sel_region_code,sel_res_gen_name,VLOOKUP(\"RES-HYBR\",process_res_gen[],2,FALSE))","v":"Wind-PV-Hybrid"}]
[null,"MAR-LAA",{"$f":"IFERROR(VLOOKUP($B40,region[],2,FALSE),\"\")","v":"Morocco (Laâyoune-Sakia El Hamra)"},null,{"$f":"IF(SUMIFS(output[value],output[source],$B40,output[variable],\"<>LC\")=0,\"\",SUMIFS(output[value],output[source],$B40,output[variable],\"<>LC\"))","v":142.11997574836036},null,{"$f":"IFERROR(VLOOKUP(G$23&\",\"&G$24&\",\"&G$26&\",\"&$B40&\",\"&G$27,data[],7,FALSE),\"\")","v":1742.770432080001},{"$f":"IFERROR(VLOOKUP(H$23&\",\"&H$24&\",\"&H$26&\",\"&$B40&\",\"&H$27,data[],7,FALSE),\"\")","v":4616.7798365699955},{"$f":"IFERROR(VLOOKUP(I$23&\",\"&I$24&\",\"&I$26&\",\"&$B40&\",\"&I$27,data[],7,FALSE),\"\")","v":4642.8},{"$f":"IFERROR(VLOOKUP(J$23&\",\"&J$24&\",\"&J$26&\",\"&$B40&\",\"&J$27,data[],7,FALSE),\"\")","v":5823.2278770450366},null,{"$f":"IF($B40=sel_region_code,sel_res_gen_name,VLOOKUP(\"RES-HYBR\",process_res_gen[],2,FALSE))","v":"Wind-PV-Hybrid"}]
[null,"MAR-LOR",{"$f":"IFERROR(VLOOKUP($B41,region[],2,FALSE),\"\")","v":"Morocco (L´oriental)"},null,{"$f":"IF(SUMIFS(output[value],output[source],$B41,output[variable],\"<>LC\")=0,\"\",SUMIFS(output[value],output[source],$B41,output[variable],\"<>LC\"))","v":165.88490663873102},null,{"$f":"IFERROR(VLOOKUP(G$23&\",\"&G$24&\",\"&G$26&\",\"&$B41&\",\"&G$27,data[],7,FALSE),\"\")","v":1709.8854897600017},{"$f":"IFERROR(VLOOKUP(H$23&\",\"&H$24&\",\"&H$26&\",\"&$B41&\",\"&H$27,data[],7,FALSE),\"\")","v":3320.8164008250001},{"$f":"IFERROR(VLOOKUP(I$23&\",\"&I$24&\",\"&I$26&\",\"&$B41&\",\"&I$27,data[],7,FALSE),\"\")","v":4642.8},{"$f":"IFERROR(VLOOKUP(J$23&\",\"&J$24&\",\"&J$26&\",\"&$B41&\",\"&J$27,data[],7,FALSE),\"\")","v":4805.6356254658413},null,{"$f":"IF($B41=sel_region_code,sel_res_gen_name,VLOOKUP(\"RES-HYBR\",process_res_gen[],2,FALSE))","v":"Wind-PV-Hybrid"}]
[null,"MAR-MAR",{"$f":"IFERROR(VLOOKUP($B42,region[],2,FALSE),\"\")","v":"Morocco (Marrakech-Safi)"},null,{"$f":"IF(SUMIFS(output[value],output[source],$B42,output[variable],\"<>LC\")=0,\"\",SUMIFS(output[value],output[source],$B42,output[variable],\"<>LC\"))","v":213.65988898092334},null,{"$f":"IFERROR(VLOOKUP(G$23&\",\"&G$24&\",\"&G$26&\",\"&$B42&\",\"&G$27,data[],7,FALSE),\"\")","v":1734.1491045599982},{"$f":"IFERROR(VLOOKUP(H$23&\",\"&H$24&\",\"&H$26&\",\"&$B42&\",\"&H$27,data[],7,FALSE),\"\")","v":1820.4342362250004},{"$f":"IFERROR(VLOOKUP(I$23&\",\"&I$24&\",\"&I$26&\",\"&$B42&\",\"&I$27,data[],7,FALSE),\"\")","v":4642.8},{"$f":"IFERROR(VLOOKUP(J$23&\",\"&J$24&\",\"&J$26&\",\"&$B42&\",\"&J$27,data[],7,FALSE),\"\")","v":3574.4335757714989},null,{"$f":"IF($B42=sel_region_code,sel_res_gen_name,VLOOKUP(\"RES-HYBR\",process_res_gen[],2,FALSE))","v":"Wind-PV-Hybrid"}]
[null,"MAR-RAB",{"$f":"IFERROR(VLOOKUP($B43,region[],2,FALSE),\"\")","v":"Morocco (Rabat-Salé-Kénitra)"},null,{"$f":"IF(SUMIFS(output[value],output[source],$B43,output[variable],\"<>LC\")=0,\"\",SUMIFS(output[value],output[source],$B43,output[variable],\"<>LC\"))","v":220.26119106364388},null,{"$f":"IFERROR(VLOOKUP(G$23&\",\"&G$24&\",\"&G$26&\",\"&$B43&\",\"&G$27,data[],7,FALSE),\"\")","v":1620.7182007199983},{"$f":"IFERROR(VLOOKUP(H$23&\",\"&H$24&\",\"&H$26&\",\"&$B43&\",\"&H$27,data[],7,FALSE),\"\")","v":1826.0421998500019},{"$f":"IFERROR(VLOOKUP(I$23&\",\"&I$24&\",\"&I$26&\",\"&$B43&\",\"&I$27,data[],7,FALSE),\"\")","v":4642.8},{"$f":"IFERROR(VLOOKUP(J$23&\",\"&J$24&\",\"&J$26&\",\"&$B43&\",\"&J$27,data[],7,FALSE),\"\")","v":3447.3598533759478},null,{"$f":"IF($B43=sel_region_code,sel_res_gen_name,VLOOKUP(\"RES-HYBR\",process_res_gen[],2,FALSE))","v":"Wind-PV-Hybrid"}]
[null,"MAR-SOU",{"$f":"IFERROR(VLOOKUP($B44,region[],2,FALSE),\"\")","v":"Morocco (Souss-Massa)"},null,{"$f":"IF(SUMIFS(output[value],output[source],$B44,output[variable],\"<>LC\")=0,\"\",SUMIFS(output[value],output[source],$B44,output[variable],\"<>LC\"))","v":176.06083471820327},null,{"$f":"IFERROR(VLOOKUP(G$23&\",\"&G$24&\",\"&G$26&\",\"&$B44&\",\"&G$27,data[],7,FALSE),\"\")","v":1800.775983599998},{"$f":"IFERROR(VLOOKUP(H$23&\",\"&H$24&\",\"&H$26&\",\"&$B44&\",\"&H$27,data[],7,FALSE),\"\")","v":2799.5123925999974},{"$f":"IFERROR(VLOOKUP(I$23&\",\"&I$24&\",\"&I$26&\",\"&$B44&\",\"&I$27,data[],7,FALSE),\"\")","v":4642.8},{"$f":"IFERROR(VLOOKUP(J$23&\",\"&J$24&\",\"&J$26&\",\"&$B44&\",\"&J$27,data[],7,FALSE),\"\")","v":4479.2641726234597},null,{"$f":"IF($B44=sel_region_code,sel_res_gen_name,VLOOKUP(\"RES-HYBR\",process_res_gen[],2,FALSE))","v":"Wind-PV-Hybrid"}]
[null,"MAR-TAN",{"$f":"IFERROR(VLOOKUP($B45,region[],2,FALSE),\"\")","v":"Morocco (Tangier)"},null,{"$f":"IF(SUMIFS(output[value],output[source],$B45,output[variable],\"<>LC\")=0,\"\",SUMIFS(output[value],output[source],$B45,output[variable],\"<>LC\"))","v":175.25344944471109},null,{"$f":"IFERROR(VLOOKUP(G$23&\",\"&G$24&\",\"&G$26&\",\"&$B45&\",\"&G$27,data[],7,FALSE),\"\")","v":1615.309697519999},{"$f":"IFERROR(VLOOKUP(H$23&\",\"&H$24&\",\"&H$26&\",\"&$B45&\",\"&H$27,data[],7,FALSE),\"\")","v":2979.4188451500013},{"$f":"IFERROR(VLOOKUP(I$23&\",\"&I$24&\",\"&I$26&\",\"&$B45&\",\"&I$27,data[],7,FALSE),\"\")","v":4642.8},{"$f":"IFERROR(VLOOKUP(J$23&\",\"&J$24&\",\"&J$26&\",\"&$B45&\",\"&J$27,data[],7,FALSE),\"\")","v":4503.3511393000135},null,{"$f":"IF($B45=sel_region_code,sel_res_gen_name,VLOOKUP(\"RES-HYBR\",process_res_gen[],2,FALSE))","v":"Wind-PV-Hybrid"}]
[null,null,{"$f":"IFERROR(VLOOKUP($B46,region[],2,FALSE),\"\")","v":""},null,{"$f":"IF(SUMIFS(output[value],output[source],$B46)=0,\"\",SUMIFS(output[value],output[source],$B46))","v":""},null,{"$f":"IFERROR(VLOOKUP(G$23&\",\"&G$24&\",\"&G$26&\",\"&$B46&\",\"&G$27,data[],7,FALSE),\"\")","v":""},{"$f":"IFERROR(VLOOKUP(H$23&\",\"&H$24&\",\"&H$26&\",\"&$B46&\",\"&H$27,data[],7,FALSE),\"\")","v":""},{"$f":"IFERROR(VLOOKUP(I$23&\",\"&I$24&\",\"&I$26&\",\"&$B46&\",\"&I$27,data[],7,FALSE),\"\")","v":""},{"$f":"IFERROR(VLOOKUP(J$23&\",\"&J$24&\",\"&J$26&\",\"&$B46&\",\"&J$27,data[],7,FALSE),\"\")","v":""}]
[null,null,{"$f":"IFERROR(VLOOKUP($B47,region[],2,FALSE),\"\")","v":""},null,{"$f":"IF(SUMIFS(output[value],output[source],$B47)=0,\"\",SUMIFS(output[value],output[source],$B47))","v":""},null,{"$f":"IFERROR(VLOOKUP(G$23&\",\"&G$24&\",\"&G$26&\",\"&$B47&\",\"&G$27,data[],7,FALSE),\"\")","v":""},{"$f":"IFERROR(VLOOKUP(H$23&\",\"&H$24&\",\"&H$26&\",\"&$B47&\",\"&H$27,data[],7,FALSE),\"\")","v":""},{"$f":"IFERROR(VLOOKUP(I$23&\",\"&I$24&\",\"&I$26&\",\"&$B47&\",\"&I$27,data[],7,FALSE),\"\")","v":""},{"$f":"IFERROR(VLOOKUP(J$23&\",\"&J$24&\",\"&J$26&\",\"&$B47&\",\"&J$27,data[],7,FALSE),\"\")","v":""}]
[null,null,{"$f":"IFERROR(VLOOKUP($B48,region[],2,FALSE),\"\")","v":""},null,{"$f":"IF(SUMIFS(output[value],output[source],$B48)=0,\"\",SUMIFS(output[value],output[source],$B48))","v":""},null,{"$f":"IFERROR(VLOOKUP(G$23&\",\"&G$24&\",\"&G$26&\",\"&$B48&\",\"&G$27,data[],7,FALSE),\"\")","v":""},{"$f":"IFERROR(VLOOKUP(H$23&\",\"&H$24&\",\"&H$26&\",\"&$B48&\",\"&H$27,data[],7,FALSE),\"\")","v":""},{"$f":"IFERROR(VLOOKUP(I$23&\",\"&I$24&\",\"&I$26&\",\"&$B48&\",\"&I$27,data[],7,FALSE),\"\")","v":""},{"$f":"IFERROR(VLOOKUP(J$23&\",\"&J$24&\",\"&J$26&\",\"&$B48&\",\"&J$27,data[],7,FALSE),\"\")","v":""}]
[null,null,{"$f":"IFERROR(VLOOKUP($B49,region[],2,FALSE),\"\")","v":""},null,{"$f":"IF(SUMIFS(output[value],output[source],$B49)=0,\"\",SUMIFS(output[value],output[source],$B49))","v":""},null,{"$f":"IFERROR(VLOOKUP(G$23&\",\"&G$24&\",\"&G$26&\",\"&$B49&\",\"&G$27,data[],7,FALSE),\"\")","v":""},{"$f":"IFERROR(VLOOKUP(H$23&\",\"&H$24&\",\"&H$26&\",\"&$B49&\",\"&H$27,data[],7,FALSE),\"\")","v":""},{"$f":"IFERROR(VLOOKUP(I$23&\",\"&I$24&\",\"&I$26&\",\"&$B49&\",\"&I$27,data[],7,FALSE),\"\")","v":""},{"$f":"IFERROR(VLOOKUP(J$23&\",\"&J$24&\",\"&J$26&\",\"&$B49&\",\"&J$27,data[],7,FALSE),\"\")","v":""}]
[null,null,{"$f":"IFERROR(VLOOKUP($B50,region[],2,FALSE),\"\")","v":""},null,{"$f":"IF(SUMIFS(output[value],output[source],$B50)=0,\"\",SUMIFS(output[value],output[source],$B50))","v":""},null,{"$f":"IFERROR(VLOOKUP(G$23&\",\"&G$24&\",\"&G$26&\",\"&$B50&\",\"&G$27,data[],7,FALSE),\"\")","v":""},{"$f":"IFERROR(VLOOKUP(H$23&\",\"&H$24&\",\"&H$26&\",\"&$B50&\",\"&H$27,data[],7,FALSE),\"\")","v":""},{"$f":"IFERROR(VLOOKUP(I$23&\",\"&I$24&\",\"&I$26&\",\"&$B50&\",\"&I$27,data[],7,FALSE),\"\")","v":""},{"$f":"IFERROR(VLOOKUP(J$23&\",\"&J$24&\",\"&J$26&\",\"&$B50&\",\"&J$27,data[],7,FALSE),\"\")","v":""}]
[null,null,{"$f":"IFERROR(VLOOKUP($B51,region[],2,FALSE),\"\")","v":""},null,{"$f":"IF(SUMIFS(output[value],output[source],$B51)=0,\"\",SUMIFS(output[value],output[source],$B51))","v":""},null,{"$f":"IFERROR(VLOOKUP(G$23&\",\"&G$24&\",\"&G$26&\",\"&$B51&\",\"&G$27,data[],7,FALSE),\"\")","v":""},{"$f":"IFERROR(VLOOKUP(H$23&\",\"&H$24&\",\"&H$26&\",\"&$B51&\",\"&H$27,data[],7,FALSE),\"\")","v":""},{"$f":"IFERROR(VLOOKUP(I$23&\",\"&I$24&\",\"&I$26&\",\"&$B51&\",\"&I$27,data[],7,FALSE),\"\")","v":""},{"$f":"IFERROR(VLOOKUP(J$23&\",\"&J$24&\",\"&J$26&\",\"&$B51&\",\"&J$27,data[],7,FALSE),\"\")","v":""}]
[null,null,{"$f":"IFERROR(VLOOKUP($B52,region[],2,FALSE),\"\")","v":""},null,{"$f":"IF(SUMIFS(output[value],output[source],$B52)=0,\"\",SUMIFS(output[value],output[source],$B52))","v":""},null,{"$f":"IFERROR(VLOOKUP(G$23&\",\"&G$24&\",\"&G$26&\",\"&$B52&\",\"&G$27,data[],7,FALSE),\"\")","v":""},{"$f":"IFERROR(VLOOKUP(H$23&\",\"&H$24&\",\"&H$26&\",\"&$B52&\",\"&H$27,data[],7,FALSE),\"\")","v":""},{"$f":"IFERROR(VLOOKUP(I$23&\",\"&I$24&\",\"&I$26&\",\"&$B52&\",\"&I$27,data[],7,FALSE),\"\")","v":""},{"$f":"IFERROR(VLOOKUP(J$23&\",\"&J$24&\",\"&J$26&\",\"&$B52&\",\"&J$27,data[],7,FALSE),\"\")","v":""}]
[null,null,{"$f":"IFERROR(VLOOKUP($B53,region[],2,FALSE),\"\")","v":""},null,{"$f":"IF(SUMIFS(output[value],output[source],$B53)=0,\"\",SUMIFS(output[value],output[source],$B53))","v":""},null,{"$f":"IFERROR(VLOOKUP(G$23&\",\"&G$24&\",\"&G$26&\",\"&$B53&\",\"&G$27,data[],7,FALSE),\"\")","v":""},{"$f":"IFERROR(VLOOKUP(H$23&\",\"&H$24&\",\"&H$26&\",\"&$B53&\",\"&H$27,data[],7,FALSE),\"\")","v":""},{"$f":"IFERROR(VLOOKUP(I$23&\",\"&I$24&\",\"&I$26&\",\"&$B53&\",\"&I$27,data[],7,FALSE),\"\")","v":""},{"$f":"IFERROR(VLOOKUP(J$23&\",\"&J$24&\",\"&J$26&\",\"&$B53&\",\"&J$27,data[],7,FALSE),\"\")","v":""}]
[null,null,{"$f":"IFERROR(VLOOKUP($B54,region[],2,FALSE),\"\")","v":""},null,{"$f":"IF(SUMIFS(output[value],output[source],$B54)=0,\"\",SUMIFS(output[value],output[source],$B54))","v":""},null,{"$f":"IFERROR(VLOOKUP(G$23&\",\"&G$24&\",\"&G$26&\",\"&$B54&\",\"&G$27,data[],7,FALSE),\"\")","v":""},{"$f":"IFERROR(VLOOKUP(H$23&\",\"&H$24&\",\"&H$26&\",\"&$B54&\",\"&H$27,data[],7,FALSE),\"\")","v":""},{"$f":"IFERROR(VLOOKUP(I$23&\",\"&I$24&\",\"&I$26&\",\"&$B54&\",\"&I$27,data[],7,FALSE),\"\")","v":""},{"$f":"IFERROR(VLOOKUP(J$23&\",\"&J$24&\",\"&J$26&\",\"&$B54&\",\"&J$27,data[],7,FALSE),\"\")","v":""}]
[null,null,{"$f":"IFERROR(VLOOKUP($B55,region[],2,FALSE),\"\")","v":""},null,{"$f":"IF(SUMIFS(output[value],output[source],$B55)=0,\"\",SUMIFS(output[value],output[source],$B55))","v":""},null,{"$f":"IFERROR(VLOOKUP(G$23&\",\"&G$24&\",\"&G$26&\",\"&$B55&\",\"&G$27,data[],7,FALSE),\"\")","v":""},{"$f":"IFERROR(VLOOKUP(H$23&\",\"&H$24&\",\"&H$26&\",\"&$B55&\",\"&H$27,data[],7,FALSE),\"\")","v":""},{"$f":"IFERROR(VLOOKUP(I$23&\",\"&I$24&\",\"&I$26&\",\"&$B55&\",\"&I$27,data[],7,FALSE),\"\")","v":""},{"$f":"IFERROR(VLOOKUP(J$23&\",\"&J$24&\",\"&J$26&\",\"&$B55&\",\"&J$27,data[],7,FALSE),\"\")","v":""}]
[null,null,{"$f":"IFERROR(VLOOKUP($B56,region[],2,FALSE),\"\")","v":""},null,{"$f":"IF(SUMIFS(output[value],output[source],$B56)=0,\"\",SUMIFS(output[value],output[source],$B56))","v":""},null,{"$f":"IFERROR(VLOOKUP(G$23&\",\"&G$24&\",\"&G$26&\",\"&$B56&\",\"&G$27,data[],7,FALSE),\"\")","v":""},{"$f":"IFERROR(VLOOKUP(H$23&\",\"&H$24&\",\"&H$26&\",\"&$B56&\",\"&H$27,data[],7,FALSE),\"\")","v":""},{"$f":"IFERROR(VLOOKUP(I$23&\",\"&I$24&\",\"&I$26&\",\"&$B56&\",\"&I$27,data[],7,FALSE),\"\")","v":""},{"$f":"IFERROR(VLOOKUP(J$23&\",\"&J$24&\",\"&J$26&\",\"&$B56&\",\"&J$27,data[],7,FALSE),\"\")","v":""}]
[null,null,{"$f":"IFERROR(VLOOKUP($B57,region[],2,FALSE),\"\")","v":""},null,{"$f":"IF(SUMIFS(output[value],output[source],$B57)=0,\"\",SUMIFS(output[value],output[source],$B57))","v":""},null,{"$f":"IFERROR(VLOOKUP(G$23&\",\"&G$24&\",\"&G$26&\",\"&$B57&\",\"&G$27,data[],7,FALSE),\"\")","v":""},{"$f":"IFERROR(VLOOKUP(H$23&\",\"&H$24&\",\"&H$26&\",\"&$B57&\",\"&H$27,data[],7,FALSE),\"\")","v":""},{"$f":"IFERROR(VLOOKUP(I$23&\",\"&I$24&\",\"&I$26&\",\"&$B57&\",\"&I$27,data[],7,FALSE),\"\")","v":""},{"$f":"IFERROR(VLOOKUP(J$23&\",\"&J$24&\",\"&J$26&\",\"&$B57&\",\"&J$27,data[],7,FALSE),\"\")","v":""}]
[null,null,{"$f":"IFERROR(VLOOKUP($B58,region[],2,FALSE),\"\")","v":""},null,{"$f":"IF(SUMIFS(output[value],output[source],$B58)=0,\"\",SUMIFS(output[value],output[source],$B58))","v":""},null,{"$f":"IFERROR(VLOOKUP(G$23&\",\"&G$24&\",\"&G$26&\",\"&$B58&\",\"&G$27,data[],7,FALSE),\"\")","v":""},{"$f":"IFERROR(VLOOKUP(H$23&\",\"&H$24&\",\"&H$26&\",\"&$B58&\",\"&H$27,data[],7,FALSE),\"\")","v":""},{"$f":"IFERROR(VLOOKUP(I$23&\",\"&I$24&\",\"&I$26&\",\"&$B58&\",\"&I$27,data[],7,FALSE),\"\")","v":""},{"$f":"IFERROR(VLOOKUP(J$23&\",\"&J$24&\",\"&J$26&\",\"&$B58&\",\"&J$27,data[],7,FALSE),\"\")","v":""}]
[null,null,{"$f":"IFERROR(VLOOKUP($B59,region[],2,FALSE),\"\")","v":""},null,{"$f":"IF(SUMIFS(output[value],output[source],$B59)=0,\"\",SUMIFS(output[value],output[source],$B59))","v":""},null,{"$f":"IFERROR(VLOOKUP(G$23&\",\"&G$24&\",\"&G$26&\",\"&$B59&\",\"&G$27,data[],7,FALSE),\"\")","v":""},{"$f":"IFERROR(VLOOKUP(H$23&\",\"&H$24&\",\"&H$26&\",\"&$B59&\",\"&H$27,data[],7,FALSE),\"\")","v":""},{"$f":"IFERROR(VLOOKUP(I$23&\",\"&I$24&\",\"&I$26&\",\"&$B59&\",\"&I$27,data[],7,FALSE),\"\")","v":""},{"$f":"IFERROR(VLOOKUP(J$23&\",\"&J$24&\",\"&J$26&\",\"&$B59&\",\"&J$27,data[],7,FALSE),\"\")","v":""}]
[null,null,{"$f":"IFERROR(VLOOKUP($B60,region[],2,FALSE),\"\")","v":""},null,{"$f":"IF(SUMIFS(output[value],output[source],$B60)=0,\"\",SUMIFS(output[value],output[source],$B60))","v":""},null,{"$f":"IFERROR(VLOOKUP(G$23&\",\"&G$24&\",\"&G$26&\",\"&$B60&\",\"&G$27,data[],7,FALSE),\"\")","v":""},{"$f":"IFERROR(VLOOKUP(H$23&\",\"&H$24&\",\"&H$26&\",\"&$B60&\",\"&H$27,data[],7,FALSE),\"\")","v":""},{"$f":"IFERROR(VLOOKUP(I$23&\",\"&I$24&\",\"&I$26&\",\"&$B60&\",\"&I$27,data[],7,FALSE),\"\")","v":""},{"$f":"IFERROR(VLOOKUP(J$23&\",\"&J$24&\",\"&J$26&\",\"&$B60&\",\"&J$27,data[],7,FALSE),\"\")","v":""}]
[null,null,{"$f":"IFERROR(VLOOKUP($B61,region[],2,FALSE),\"\")","v":""},null,{"$f":"IF(SUMIFS(output[value],output[source],$B61)=0,\"\",SUMIFS(output[value],output[source],$B61))","v":""},null,{"$f":"IFERROR(VLOOKUP(G$23&\",\"&G$24&\",\"&G$26&\",\"&$B61&\",\"&G$27,data[],7,FALSE),\"\")","v":""},{"$f":"IFERROR(VLOOKUP(H$23&\",\"&H$24&\",\"&H$26&\",\"&$B61&\",\"&H$27,data[],7,FALSE),\"\")","v":""},{"$f":"IFERROR(VLOOKUP(I$23&\",\"&I$24&\",\"&I$26&\",\"&$B61&\",\"&I$27,data[],7,FALSE),\"\")","v":""},{"$f":"IFERROR(VLOOKUP(J$23&\",\"&J$24&\",\"&J$26&\",\"&$B61&\",\"&J$27,data[],7,FALSE),\"\")","v":""}]
[]
[]
[null,null,null,null,{"$f":"E32","v":"Total costs (USD/MWh H2)"},null,{"$f":"G25","v":"PV tilted"},{"$f":"H25","v":"Wind Onshore"},{"$f":"I25","v":"Wind Offshore"},{"$f":"J25","v":"Wind-PV-Hybrid"}]
[null,null,"Min",null,{"$f":"_xlfn.AGGREGATE(5,6,E$33:E$61)","v":133.16464761260582},null,{"$f":"_xlfn.AGGREGATE(5,6,G$33:G$61)","v":1615.309697519999},{"$f":"_xlfn.AGGREGATE(5,6,H$33:H$61)","v":1563.4934093166669},{"$f":"_xlfn.AGGREGATE(5,6,I$33:I$61)","v":4642.8},{"$f":"_xlfn.AGGREGATE(5,6,J$33:J$61)","v":3352.6974508185135}]
[null,null,"First quartile",null,{"$f":"_xlfn.AGGREGATE(16,6,E$33:E$61,0.25)","v":165.88490663873102},null,{"$f":"_xlfn.AGGREGATE(16,6,G$33:G$61,0.25)","v":1665.7276233599982},{"$f":"_xlfn.AGGREGATE(16,6,H$33:H$61,0.25)","v":2050.2642833200007},{"$f":"_xlfn.AGGREGATE(16,6,I$33:I$61,0.25)","v":4642.8},{"$f":"_xlfn.AGGREGATE(16,6,J$33:J$61,0.25)","v":3693.5166831944407}]
[null,null,"Median",null,{"$f":"_xlfn.AGGREGATE(16,6,E$33:E$61,0.5)","v":176.06083471820327},null,{"$f":"_xlfn.AGGREGATE(16,6,G$33:G$61,0.5)","v":1728.1917287999981},{"$f":"_xlfn.AGGREGATE(16,6,H$33:H$61,0.5)","v":2799.5123925999974},{"$f":"_xlfn.AGGREGATE(16,6,I$33:I$61,0.5)","v":4642.8},{"$f":"_xlfn.AGGREGATE(16,6,J$33:J$61,0.5)","v":4479.2641726234597}]
[null,null,"Third quartile",null,{"$f":"_xlfn.AGGREGATE(16,6,E$33:E$61,0.75)","v":207.89959244842623},null,{"$f":"_xlfn.AGGREGATE(16,6,G$33:G$61,0.75)","v":1745.3384668799999},{"$f":"_xlfn.AGGREGATE(16,6,H$33:H$61,0.75)","v":3320.8164008250001},{"$f":"_xlfn.AGGREGATE(16,6,I$33:I$61,0.75)","v":4642.8},{"$f":"_xlfn.AGGREGATE(16,6,J$33:J$61,0.75)","v":4805.6356254658413}]
[null,null,"Max",null,{"$f":"_xlfn.AGGREGATE(4,6,E$33:E$61)","v":225.51604965814647},null,{"$f":"_xlfn.AGGREGATE(4,6,G$33:G$61)","v":1808.0709587999988},{"$f":"_xlfn.AGGREGATE(4,6,H$33:H$61)","v":5181.7820854799875},{"$f":"_xlfn.AGGREGATE(4,6,I$33:I$61)","v":5181.7820854799875},{"$f":"_xlfn.AGGREGATE(4,6,J$33:J$61)","v":6342.17431498525}]
[null,null,{"$f":"sel_region_name","v":"Morocco"},null,{"$f":"SUMIF($B$33:$B$61,sel_region_code,E$33:E$61)","v":171.70333473886961},null,{"$f":"SUMIF($B$33:$B$61,sel_region_code,G$33:G$61)","v":1631},{"$f":"SUMIF($B$33:$B$61,sel_region_code,H$33:H$61)","v":3289},{"$f":"SUMIF($B$33:$B$61,sel_region_code,I$33:I$61)","v":4643},{"$f":"SUMIF($B$33:$B$61,sel_region_code,J$33:J$61)","v":4739.42}]
[]
[]
[null,null,null,null,{"$f":"E32","v":"Total costs (USD/MWh H2)"},null,{"$f":"G25","v":"PV tilted"},{"$f":"H25","v":"Wind Onshore"},{"$f":"I25","v":"Wind Offshore"},{"$f":"J25","v":"Wind-PV-Hybrid"}]
[null,null,"Min",null,{"$f":"E65","v":133.16464761260582},null,{"$f":"G65","v":1615.309697519999},{"$f":"H65","v":1563.4934093166669},4642.8,3352.6974508185135]
[null,null,"Q1-Min",null,{"$f":"E66-E65","v":32.720259026125206},null,{"$f":"G66-G65","v":50.41792583999927},{"$f":"H66-H65","v":486.7708740033338},0,340.81923237592719]
[null,null,"Q2-Q1",null,{"$f":"E67-E66","v":10.175928079472243},null,{"$f":"G67-G66","v":62.464105439999912},749.2481092799967,0,785.74748942901897]
[null,null,"Q3-Q2",null,{"$f":"E68-E67","v":31.838757730222966},null,{"$f":"G68-G67","v":17.146738080001796},521.30400822500269,0,326.37145284238159]
[null,null,"Max-Q3",null,17.616457209720238,null,62.732491919998893,1860.9656846549874,538.98208547998729,1536.5386895194088]
[null,null,{"$f":"sel_region_name","v":"Morocco"},null,{"$f":"SUMIF($B$33:$B$61,sel_region_code,E$33:E$61)","v":171.70333473886961},null,{"$f":"SUMIF($B$33:$B$61,sel_region_code,G$33:G$61)","v":1631},{"$f":"SUMIF($B$33:$B$61,sel_region_code,H$33:H$61)","v":3289},{"$f":"SUMIF($B$33:$B$61,sel_region_code,I$33:I$61)","v":4643},{"$f":"SUMIF($B$33:$B$61,sel_region_code,J$33:J$61)","v":4739.42}]

{"sheet":"r_RegDataARG","index":26,"n_rows":79,"n_cols":13,"rows_kept":79,"cut":false,"hidden":true,"merged":[[1,11,1,12],[2,11,2,12],[4,2,9,8]]}
[]
[null,null,"DEEP-DIVE ARGENTINA | Data on country and regional level",null,null,null,null,null,null,null,null,"YOUR SETTINGS"]
[null,null,null,null,null,null,null,null,null,null,null,"can be re-adjusted on the dashboard"]
[null,null,"Compare regional data on renewable energy generation to all PTX BOA supply countries",null,null,null,null,null,null,null,null,"Supply country:",{"$f":"sel_region_name","v":"Morocco"}]
[null,null,"The diagram on the left shows the distribution of total delivered costs of your country and/or region in relation to all PTX BOA supply countries. \nThe diagram on the right gives you detailed information on full load hours (FLH) per region and renewable energy generation technology. \nThis data is equally set in relation to all PTX BOA supply countries. \n\nThe box plots show median, 1st and 3rd quartile as well as the total spread of values. The also show the data for your country and/or region for comparison. ",null,null,null,null,null,null,null,null,"Demand country:",{"$f":"sel_country_name","v":"Germany"}]
[null,null,null,null,null,null,null,null,null,null,null,"RE generation:",{"$f":"sel_res_gen_name","v":"Wind-PV-Hybrid"}]
[null,null,null,null,null,null,null,null,null,null,null,"Process chain:",{"$f":"sel_chain","v":"Hydrogen (AEL)"}]
[null,null,null,null,null,null,null,null,null,null,null,"CO2 source:",{"$f":"sel_secproc_co2","v":"DAC"}]
[null,null,null,null,null,null,null,null,null,null,null,"Water source:",{"$f":"sel_secproc_water","v":"Water desalination"}]
[null,null,null,null,null,null,null,null,null,null,null,"Transport mode:",{"$f":"sel_transport","v":"Ship"}]
[null,null,null,null,null,null,null,null,null,null,null,"Scenario:",{"$f":"sel_scenario","v":"2030 (medium)"}]
[]
[]
[]
[]
[]
[]
[]
[]
[]
[]
[]
[null,null,"parameter_code",null,"WACC",null,"FLH","FLH","FLH","FLH"]
[null,null,"process_code",null,null,null,{"$f":"INDEX(process[process_code],MATCH(G$25,process[process_name],0),1)","v":"PV-FIX"},{"$f":"INDEX(process[process_code],MATCH(H$25,process[process_name],0),1)","v":"WIND-ON"},{"$f":"INDEX(process[process_code],MATCH(I$25,process[process_name],0),1)","v":"WIND-OFF"},{"$f":"INDEX(process[process_code],MATCH(J$25,process[process_name],0),1)","v":"RES-HYBR"}]
[null,null,null,null,null,null,"PV tilted","Wind Onshore","Wind Offshore","Wind-PV-Hybrid"]
[null,null,"flow_code"]
[null,null,"target_country_code"]
[]
[]
[null,null,null,null,"total costs",null,{"$f":"VLOOKUP(G$23,parameter[],2,FALSE)","v":"full load hours"},{"$f":"VLOOKUP(H$23,parameter[],2,FALSE)","v":"full load hours"},{"$f":"VLOOKUP(I$23,parameter[],2,FALSE)","v":"full load hours"},{"$f":"VLOOKUP(J$23,parameter[],2,FALSE)","v":"full load hours"}]
[null,null,null,null,"USD/kWh",null,{"$f":"VLOOKUP(G$23,parameter[],3,FALSE)","v":"h"},{"$f":"VLOOKUP(H$23,parameter[],3,FALSE)","v":"h"},{"$f":"VLOOKUP(I$23,parameter[],3,FALSE)","v":"h"},{"$f":"VLOOKUP(J$23,parameter[],3,FALSE)","v":"h"}]
[null,"Country code","Supply country (and region)",null,{"$f":"\"Total costs (\"&selOutputUnit2&\")\"","v":"Total costs (USD/MWh H2)"},null,"full load hours (h/year)","full load hours (h/year)","full load hours (h/year)","full load hours (h/year)",null,"RE option used"]
[null,"ARG","Argentina (country)",null,{"$f":"IF(SUMIFS(output[value],output[source],$B33,output[variable],\"<>LC\")=0,\"\",SUMIFS(output[value],output[source],$B33,output[variable],\"<>LC\"))","v":238.30347865563257},null,{"$f":"IFERROR(VLOOKUP(G$23&\",\"&G$24&\",\"&G$26&\",\"&$B33&\",\"&G$27,data[],7,FALSE),\"\")","v":1494},{"$f":"IFERROR(VLOOKUP(H$23&\",\"&H$24&\",\"&H$26&\",\"&$B33&\",\"&H$27,data[],7,FALSE),\"\")","v":5369},{"$f":"IFERROR(VLOOKUP(I$23&\",\"&I$24&\",\"&I$26&\",\"&$B33&\",\"&I$27,data[],7,FALSE),\"\")","v":5369},{"$f":"IFERROR(VLOOKUP(J$23&\",\"&J$24&\",\"&J$26&\",\"&$B33&\",\"&J$27,data[],7,FALSE),\"\")","v":5660.92},null,{"$f":"IF($B33=sel_region_code,sel_res_gen_name,VLOOKUP(\"RES-HYBR\",process_res_gen[],2,FALSE))","v":"Wind-PV-Hybrid"}]
[null,"ARG-BA",{"$f":"IFERROR(VLOOKUP($B34,region[],2,FALSE),\"\")","v":"Argentina (Buenos Aires)"},null,{"$f":"IF(SUMIFS(output[value],output[source],$B34,output[variable],\"<>LC\")=0,\"\",SUMIFS(output[value],output[source],$B34,output[variable],\"<>LC\"))","v":267.70924122367461},null,{"$f":"IFERROR(VLOOKUP(G$23&\",\"&G$24&\",\"&G$26&\",\"&$B34&\",\"&G$27,data[],7,FALSE),\"\")","v":1501.409990284945},{"$f":"IFERROR(VLOOKUP(H$23&\",\"&H$24&\",\"&H$26&\",\"&$B34&\",\"&H$27,data[],7,FALSE),\"\")","v":3756.6367058000046},{"$f":"IFERROR(VLOOKUP(I$23&\",\"&I$24&\",\"&I$26&\",\"&$B34&\",\"&I$27,data[],7,FALSE),\"\")","v":3854.4},{"$f":"IFERROR(VLOOKUP(J$23&\",\"&J$24&\",\"&J$26&\",\"&$B34&\",\"&J$27,data[],7,FALSE),\"\")","v":4945.8767126930315},null,{"$f":"IF($B34=sel_region_code,sel_res_gen_name,VLOOKUP(\"RES-HYBR\",process_res_gen[],2,FALSE))","v":"Wind-PV-Hybrid"}]
[null,"ARG-CAT",{"$f":"IFERROR(VLOOKUP($B35,region[],2,FALSE),\"\")","v":"Argentina (Catamarca)"},null,{"$f":"IF(SUMIFS(output[value],output[source],$B35,output[variable],\"<>LC\")=0,\"\",SUMIFS(output[value],output[source],$B35,output[variable],\"<>LC\"))","v":273.62719726668723},null,{"$f":"IFERROR(VLOOKUP(G$23&\",\"&G$24&\",\"&G$26&\",\"&$B35&\",\"&G$27,data[],7,FALSE),\"\")","v":2184.2849520000136},{"$f":"IFERROR(VLOOKUP(H$23&\",\"&H$24&\",\"&H$26&\",\"&$B35&\",\"&H$27,data[],7,FALSE),\"\")","v":2884.1487291833364},{"$f":"IFERROR(VLOOKUP(I$23&\",\"&I$24&\",\"&I$26&\",\"&$B35&\",\"&I$27,data[],7,FALSE),\"\")","v":""},{"$f":"IFERROR(VLOOKUP(J$23&\",\"&J$24&\",\"&J$26&\",\"&$B35&\",\"&J$27,data[],7,FALSE),\"\")","v":4818.1134165187877},null,{"$f":"IF($B35=sel_region_code,sel_res_gen_name,VLOOKUP(\"RES-HYBR\",process_res_gen[],2,FALSE))","v":"Wind-PV-Hybrid"}]
[null,"ARG-CBA",{"$f":"IFERROR(VLOOKUP($B36,region[],2,FALSE),\"\")","v":"Argentina (Autonomous City of Buenos Aires)"},null,{"$f":"IF(SUMIFS(output[value],output[source],$B36,output[variable],\"<>LC\")=0,\"\",SUMIFS(output[value],output[source],$B36,output[variable],\"<>LC\"))","v":274.67124344400366},null,{"$f":"IFERROR(VLOOKUP(G$23&\",\"&G$24&\",\"&G$26&\",\"&$B36&\",\"&G$27,data[],7,FALSE),\"\")","v":1472.2464967200012},{"$f":"IFERROR(VLOOKUP(H$23&\",\"&H$24&\",\"&H$26&\",\"&$B36&\",\"&H$27,data[],7,FALSE),\"\")","v":3601.8171951299964},{"$f":"IFERROR(VLOOKUP(I$23&\",\"&I$24&\",\"&I$26&\",\"&$B36&\",\"&I$27,data[],7,FALSE),\"\")","v":3854.4},{"$f":"IFERROR(VLOOKUP(J$23&\",\"&J$24&\",\"&J$26&\",\"&$B36&\",\"&J$27,data[],7,FALSE),\"\")","v":4796.3272366469528},null,{"$f":"IF($B36=sel_region_code,sel_res_gen_name,VLOOKUP(\"RES-HYBR\",process_res_gen[],2,FALSE))","v":"Wind-PV-Hybrid"}]
[null,"ARG-CHA",{"$f":"IFERROR(VLOOKUP($B37,region[],2,FALSE),\"\")","v":"Argentina (Chaco)"},null,{"$f":"IF(SUMIFS(output[value],output[source],$B37,output[variable],\"<>LC\")=0,\"\",SUMIFS(output[value],output[source],$B37,output[variable],\"<>LC\"))","v":298.45649958485723},null,{"$f":"IFERROR(VLOOKUP(G$23&\",\"&G$24&\",\"&G$26&\",\"&$B37&\",\"&G$27,data[],7,FALSE),\"\")","v":1462.293405359997},{"$f":"IFERROR(VLOOKUP(H$23&\",\"&H$24&\",\"&H$26&\",\"&$B37&\",\"&H$27,data[],7,FALSE),\"\")","v":3079.6049933000008},{"$f":"IFERROR(VLOOKUP(I$23&\",\"&I$24&\",\"&I$26&\",\"&$B37&\",\"&I$27,data[],7,FALSE),\"\")","v":""},{"$f":"IFERROR(VLOOKUP(J$23&\",\"&J$24&\",\"&J$26&\",\"&$B37&\",\"&J$27,data[],7,FALSE),\"\")","v":4353.1801274671416},null,{"$f":"IF($B37=sel_region_code,sel_res_gen_name,VLOOKUP(\"RES-HYBR\",process_res_gen[],2,FALSE))","v":"Wind-PV-Hybrid"}]
[null,"ARG-CHU",{"$f":"IFERROR(VLOOKUP($B38,region[],2,FALSE),\"\")","v":"Argentina (Chubut)"},null,{"$f":"IF(SUMIFS(output[value],output[source],$B38,output[variable],\"<>LC\")=0,\"\",SUMIFS(output[value],output[source],$B38,output[variable],\"<>LC\"))","v":218.55477026214123},null,{"$f":"IFERROR(VLOOKUP(G$23&\",\"&G$24&\",\"&G$26&\",\"&$B38&\",\"&G$27,data[],7,FALSE),\"\")","v":1565.6552791200011},{"$f":"IFERROR(VLOOKUP(H$23&\",\"&H$24&\",\"&H$26&\",\"&$B38&\",\"&H$27,data[],7,FALSE),\"\")","v":5763.0835753699857},{"$f":"IFERROR(VLOOKUP(I$23&\",\"&I$24&\",\"&I$26&\",\"&$B38&\",\"&I$27,data[],7,FALSE),\"\")","v":5763.0835753699857},{"$f":"IFERROR(VLOOKUP(J$23&\",\"&J$24&\",\"&J$26&\",\"&$B38&\",\"&J$27,data[],7,FALSE),\"\")","v":6390.4146064505558},null,{"$f":"IF($B38=sel_region_code,sel_res_gen_name,VLOOKUP(\"RES-HYBR\",process_res_gen[],2,FALSE))","v":"Wind-PV-Hybrid"}]
[null,"ARG-COR",{"$f":"IFERROR(VLOOKUP($B39,region[],2,FALSE),\"\")","v":"Argentina (Corrientes)"},null,{"$f":"IF(SUMIFS(output[value],output[source],$B39,output[variable],\"<>LC\")=0,\"\",SUMIFS(output[value],output[source],$B39,output[variable],\"<>LC\"))","v":301.86823813625489},null,{"$f":"IFERROR(VLOOKUP(G$23&\",\"&G$24&\",\"&G$26&\",\"&$B39&\",\"&G$27,data[],7,FALSE),\"\")","v":1411.9226517600005},{"$f":"IFERROR(VLOOKUP(H$23&\",\"&H$24&\",\"&H$26&\",\"&$B39&\",\"&H$27,data[],7,FALSE),\"\")","v":3045.2758197400012},{"$f":"IFERROR(VLOOKUP(I$23&\",\"&I$24&\",\"&I$26&\",\"&$B39&\",\"&I$27,data[],7,FALSE),\"\")","v":""},{"$f":"IFERROR(VLOOKUP(J$23&\",\"&J$24&\",\"&J$26&\",\"&$B39&\",\"&J$27,data[],7,FALSE),\"\")","v":4296.9749353692923},null,{"$f":"IF($B39=sel_region_code,sel_res_gen_name,VLOOKUP(\"RES-HYBR\",process_res_gen[],2,FALSE))","v":"Wind-PV-Hybrid"}]
[null,"ARG-CRB",{"$f":"IFERROR(VLOOKUP($B40,region[],2,FALSE),\"\")","v":"Argentina (Córdoba)"},null,{"$f":"IF(SUMIFS(output[value],output[source],$B40,output[variable],\"<>LC\")=0,\"\",SUMIFS(output[value],output[source],$B40,output[variable],\"<>LC\"))","v":317.57065682552377},null,{"$f":"IFERROR(VLOOKUP(G$23&\",\"&G$24&\",\"&G$26&\",\"&$B40&\",\"&G$27,data[],7,FALSE),\"\")","v":1571.8333939199993},{"$f":"IFERROR(VLOOKUP(H$23&\",\"&H$24&\",\"&H$26&\",\"&$B40&\",\"&H$27,data[],7,FALSE),\"\")","v":2605.2082556500004},{"$f":"IFERROR(VLOOKUP(I$23&\",\"&I$24&\",\"&I$26&\",\"&$B40&\",\"&I$27,data[],7,FALSE),\"\")","v":""},{"$f":"IFERROR(VLOOKUP(J$23&\",\"&J$24&\",\"&J$26&\",\"&$B40&\",\"&J$27,data[],7,FALSE),\"\")","v":4058.0540031422247},null,{"$f":"IF($B40=sel_region_code,sel_res_gen_name,VLOOKUP(\"RES-HYBR\",process_res_gen[],2,FALSE))","v":"Wind-PV-Hybrid"}]
[null,"ARG-CRU",{"$f":"IFERROR(VLOOKUP($B41,region[],2,FALSE),\"\")","v":"Argentina (Santa Cruz)"},null,{"$f":"IF(SUMIFS(output[value],output[source],$B41,output[variable],\"<>LC\")=0,\"\",SUMIFS(output[value],output[source],$B41,output[variable],\"<>LC\"))","v":219.09569555991149},null,{"$f":"IFERROR(VLOOKUP(G$23&\",\"&G$24&\",\"&G$26&\",\"&$B41&\",\"&G$27,data[],7,FALSE),\"\")","v":1419.2559755999985},{"$f":"IFERROR(VLOOKUP(H$23&\",\"&H$24&\",\"&H$26&\",\"&$B41&\",\"&H$27,data[],7,FALSE),\"\")","v":5854.9926980599967},{"$f":"IFERROR(VLOOKUP(I$23&\",\"&I$24&\",\"&I$26&\",\"&$B41&\",\"&I$27,data[],7,FALSE),\"\")","v":5854.9926980599967},{"$f":"IFERROR(VLOOKUP(J$23&\",\"&J$24&\",\"&J$26&\",\"&$B41&\",\"&J$27,data[],7,FALSE),\"\")","v":6369.4767112831887},null,{"$f":"IF($B41=sel_region_code,sel_res_gen_name,VLOOKUP(\"RES-HYBR\",process_res_gen[],2,FALSE))","v":"Wind-PV-Hybrid"}]
[null,"ARG-EST",{"$f":"IFERROR(VLOOKUP($B42,region[],2,FALSE),\"\")","v":"Argentina (Santiago del Estero)"},null,{"$f":"IF(SUMIFS(output[value],output[source],$B42,output[variable],\"<>LC\")=0,\"\",SUMIFS(output[value],output[source],$B42,output[variable],\"<>LC\"))","v":270.41933433616879},null,{"$f":"IFERROR(VLOOKUP(G$23&\",\"&G$24&\",\"&G$26&\",\"&$B42&\",\"&G$27,data[],7,FALSE),\"\")","v":1553.4726681600023},{"$f":"IFERROR(VLOOKUP(H$23&\",\"&H$24&\",\"&H$26&\",\"&$B42&\",\"&H$27,data[],7,FALSE),\"\")","v":3710.4766984999937},{"$f":"IFERROR(VLOOKUP(I$23&\",\"&I$24&\",\"&I$26&\",\"&$B42&\",\"&I$27,data[],7,FALSE),\"\")","v":""},{"$f":"IFERROR(VLOOKUP(J$23&\",\"&J$24&\",\"&J$26&\",\"&$B42&\",\"&J$27,data[],7,FALSE),\"\")","v":4886.4479918271754},null,{"$f":"IF($B42=sel_region_code,sel_res_gen_name,VLOOKUP(\"RES-HYBR\",process_res_gen[],2,FALSE))","v":"Wind-PV-Hybrid"}]
[null,"ARG-FOR",{"$f":"IFERROR(VLOOKUP($B43,region[],2,FALSE),\"\")","v":"Argentina (Formosa)"},null,{"$f":"IF(SUMIFS(output[value],output[source],$B43,output[variable],\"<>LC\")=0,\"\",SUMIFS(output[value],output[source],$B43,output[variable],\"<>LC\"))","v":267.64223778754189},null,{"$f":"IFERROR(VLOOKUP(G$23&\",\"&G$24&\",\"&G$26&\",\"&$B43&\",\"&G$27,data[],7,FALSE),\"\")","v":1449.92262888},{"$f":"IFERROR(VLOOKUP(H$23&\",\"&H$24&\",\"&H$26&\",\"&$B43&\",\"&H$27,data[],7,FALSE),\"\")","v":3781.7001483800022},{"$f":"IFERROR(VLOOKUP(I$23&\",\"&I$24&\",\"&I$26&\",\"&$B43&\",\"&I$27,data[],7,FALSE),\"\")","v":""},{"$f":"IFERROR(VLOOKUP(J$23&\",\"&J$24&\",\"&J$26&\",\"&$B43&\",\"&J$27,data[],7,FALSE),\"\")","v":4947.3662874337479},null,{"$f":"IF($B43=sel_region_code,sel_res_gen_name,VLOOKUP(\"RES-HYBR\",process_res_gen[],2,FALSE))","v":"Wind-PV-Hybrid"}]
[null,"ARG-FUE",{"$f":"IFERROR(VLOOKUP($B44,region[],2,FALSE),\"\")","v":"Argentina (Tierra del Fuego, Antártida e Islas del Atlántico Sur)"},null,{"$f":"IF(SUMIFS(output[value],output[source],$B44,output[variable],\"<>LC\")=0,\"\",SUMIFS(output[value],output[source],$B44,output[variable],\"<>LC\"))","v":298.72025309069784},null,{"$f":"IFERROR(VLOOKUP(G$23&\",\"&G$24&\",\"&G$26&\",\"&$B44&\",\"&G$27,data[],7,FALSE),\"\")","v":919.59809255999858},{"$f":"IFERROR(VLOOKUP(H$23&\",\"&H$24&\",\"&H$26&\",\"&$B44&\",\"&H$27,data[],7,FALSE),\"\")","v":3710.4766984999937},{"$f":"IFERROR(VLOOKUP(I$23&\",\"&I$24&\",\"&I$26&\",\"&$B44&\",\"&I$27,data[],7,FALSE),\"\")","v":3854.4},{"$f":"IFERROR(VLOOKUP(J$23&\",\"&J$24&\",\"&J$26&\",\"&$B44&\",\"&J$27,data[],7,FALSE),\"\")","v":4348.7759583573197},null,{"$f":"IF($B44=sel_region_code,sel_res_gen_name,VLOOKUP(\"RES-HYBR\",process_res_gen[],2,FALSE))","v":"Wind-PV-Hybrid"}]
[null,"ARG-JUJ",{"$f":"IFERROR(VLOOKUP($B45,region[],2,FALSE),\"\")","v":"Argentina (Jujuy)"},null,{"$f":"IF(SUMIFS(output[value],output[source],$B45,output[variable],\"<>LC\")=0,\"\",SUMIFS(output[value],output[source],$B45,output[variable],\"<>LC\"))","v":251.35205746970487},null,{"$f":"IFERROR(VLOOKUP(G$23&\",\"&G$24&\",\"&G$26&\",\"&$B45&\",\"&G$27,data[],7,FALSE),\"\")","v":2038.9844970000051},{"$f":"IFERROR(VLOOKUP(H$23&\",\"&H$24&\",\"&H$26&\",\"&$B45&\",\"&H$27,data[],7,FALSE),\"\")","v":3773.9698333333426},{"$f":"IFERROR(VLOOKUP(I$23&\",\"&I$24&\",\"&I$26&\",\"&$B45&\",\"&I$27,data[],7,FALSE),\"\")","v":""},{"$f":"IFERROR(VLOOKUP(J$23&\",\"&J$24&\",\"&J$26&\",\"&$B45&\",\"&J$27,data[],7,FALSE),\"\")","v":5341.5292254807428},null,{"$f":"IF($B45=sel_region_code,sel_res_gen_name,VLOOKUP(\"RES-HYBR\",process_res_gen[],2,FALSE))","v":"Wind-PV-Hybrid"}]
[null,"ARG-LAR",{"$f":"IFERROR(VLOOKUP($B46,region[],2,FALSE),\"\")","v":"Argentina (La Rioja)"},null,{"$f":"IF(SUMIFS(output[value],output[source],$B46,output[variable],\"<>LC\")=0,\"\",SUMIFS(output[value],output[source],$B46,output[variable],\"<>LC\"))","v":265.58294238958388},null,{"$f":"IFERROR(VLOOKUP(G$23&\",\"&G$24&\",\"&G$26&\",\"&$B46&\",\"&G$27,data[],7,FALSE),\"\")","v":1927.5699347999985},{"$f":"IFERROR(VLOOKUP(H$23&\",\"&H$24&\",\"&H$26&\",\"&$B46&\",\"&H$27,data[],7,FALSE),\"\")","v":3188.6275809666754},{"$f":"IFERROR(VLOOKUP(I$23&\",\"&I$24&\",\"&I$26&\",\"&$B46&\",\"&I$27,data[],7,FALSE),\"\")","v":""},{"$f":"IFERROR(VLOOKUP(J$23&\",\"&J$24&\",\"&J$26&\",\"&$B46&\",\"&J$27,data[],7,FALSE),\"\")","v":4993.6358442638966}]
[null,"ARG-MEN",{"$f":"IFERROR(VLOOKUP($B47,region[],2,FALSE),\"\")","v":"Argentina (Mendoza)"},null,{"$f":"IF(SUMIFS(output[value],output[source],$B47,output[variable],\"<>LC\")=0,\"\",SUMIFS(output[value],output[source],$B47,output[variable],\"<>LC\"))","v":282.75625194001475},null,{"$f":"IFERROR(VLOOKUP(G$23&\",\"&G$24&\",\"&G$26&\",\"&$B47&\",\"&G$27,data[],7,FALSE),\"\")","v":1738.9096295999984},{"$f":"IFERROR(VLOOKUP(H$23&\",\"&H$24&\",\"&H$26&\",\"&$B47&\",\"&H$27,data[],7,FALSE),\"\")","v":3077.1630279499932},{"$f":"IFERROR(VLOOKUP(I$23&\",\"&I$24&\",\"&I$26&\",\"&$B47&\",\"&I$27,data[],7,FALSE),\"\")","v":""},{"$f":"IFERROR(VLOOKUP(J$23&\",\"&J$24&\",\"&J$26&\",\"&$B47&\",\"&J$27,data[],7,FALSE),\"\")","v":4634.7425576878331}]
[null,"ARG-MIS",{"$f":"IFERROR(VLOOKUP($B48,region[],2,FALSE),\"\")","v":"Argentina (Misiones)"},null,{"$f":"IF(SUMIFS(output[value],output[source],$B48,output[variable],\"<>LC\")=0,\"\",SUMIFS(output[value],output[source],$B48,output[variable],\"<>LC\"))","v":388.47271474341454},null,{"$f":"IFERROR(VLOOKUP(G$23&\",\"&G$24&\",\"&G$26&\",\"&$B48&\",\"&G$27,data[],7,FALSE),\"\")","v":1441.0558828799994},{"$f":"IFERROR(VLOOKUP(H$23&\",\"&H$24&\",\"&H$26&\",\"&$B48&\",\"&H$27,data[],7,FALSE),\"\")","v":1777.2726296600022},{"$f":"IFERROR(VLOOKUP(I$23&\",\"&I$24&\",\"&I$26&\",\"&$B48&\",\"&I$27,data[],7,FALSE),\"\")","v":""},{"$f":"IFERROR(VLOOKUP(J$23&\",\"&J$24&\",\"&J$26&\",\"&$B48&\",\"&J$27,data[],7,FALSE),\"\")","v":3199.5290500507745}]
[null,"ARG-NEG",{"$f":"IFERROR(VLOOKUP($B49,region[],2,FALSE),\"\")","v":"Argentina (Río Negro)"},null,{"$f":"IF(SUMIFS(output[value],output[source],$B49,output[variable],\"<>LC\")=0,\"\",SUMIFS(output[value],output[source],$B49,output[variable],\"<>LC\"))","v":233.20743770170432},null,{"$f":"IFERROR(VLOOKUP(G$23&\",\"&G$24&\",\"&G$26&\",\"&$B49&\",\"&G$27,data[],7,FALSE),\"\")","v":1598.6654748000003},{"$f":"IFERROR(VLOOKUP(H$23&\",\"&H$24&\",\"&H$26&\",\"&$B49&\",\"&H$27,data[],7,FALSE),\"\")","v":4738.1899020500086},{"$f":"IFERROR(VLOOKUP(I$23&\",\"&I$24&\",\"&I$26&\",\"&$B49&\",\"&I$27,data[],7,FALSE),\"\")","v":4738.1899020500086},{"$f":"IFERROR(VLOOKUP(J$23&\",\"&J$24&\",\"&J$26&\",\"&$B49&\",\"&J$27,data[],7,FALSE),\"\")","v":5871.0170147807694}]
[null,"ARG-NEU",{"$f":"IFERROR(VLOOKUP($B50,region[],2,FALSE),\"\")","v":"Argentina (Neuquén)"},null,{"$f":"IF(SUMIFS(output[value],output[source],$B50,output[variable],\"<>LC\")=0,\"\",SUMIFS(output[value],output[source],$B50,output[variable],\"<>LC\"))","v":258.91409398469642},null,{"$f":"IFERROR(VLOOKUP(G$23&\",\"&G$24&\",\"&G$26&\",\"&$B50&\",\"&G$27,data[],7,FALSE),\"\")","v":1672.0413458399996},{"$f":"IFERROR(VLOOKUP(H$23&\",\"&H$24&\",\"&H$26&\",\"&$B50&\",\"&H$27,data[],7,FALSE),\"\")","v":3956.5844284999962},{"$f":"IFERROR(VLOOKUP(I$23&\",\"&I$24&\",\"&I$26&\",\"&$B50&\",\"&I$27,data[],7,FALSE),\"\")","v":""},{"$f":"IFERROR(VLOOKUP(J$23&\",\"&J$24&\",\"&J$26&\",\"&$B50&\",\"&J$27,data[],7,FALSE),\"\")","v":5150.2668537210066}]
[null,"ARG-PAM",{"$f":"IFERROR(VLOOKUP($B51,region[],2,FALSE),\"\")","v":"Argentina (La Pampa)"},null,{"$f":"IF(SUMIFS(output[value],output[source],$B51,output[variable],\"<>LC\")=0,\"\",SUMIFS(output[value],output[source],$B51,output[variable],\"<>LC\"))","v":259.30932626072922},null,{"$f":"IFERROR(VLOOKUP(G$23&\",\"&G$24&\",\"&G$26&\",\"&$B51&\",\"&G$27,data[],7,FALSE),\"\")","v":1585.1219047199993},{"$f":"IFERROR(VLOOKUP(H$23&\",\"&H$24&\",\"&H$26&\",\"&$B51&\",\"&H$27,data[],7,FALSE),\"\")","v":3897.7887775199929},{"$f":"IFERROR(VLOOKUP(I$23&\",\"&I$24&\",\"&I$26&\",\"&$B51&\",\"&I$27,data[],7,FALSE),\"\")","v":""},{"$f":"IFERROR(VLOOKUP(J$23&\",\"&J$24&\",\"&J$26&\",\"&$B51&\",\"&J$27,data[],7,FALSE),\"\")","v":5140.6823491886607}]
[null,"ARG-RIO",{"$f":"IFERROR(VLOOKUP($B52,region[],2,FALSE),\"\")","v":"Argentina (Entre Ríos)"},null,{"$f":"IF(SUMIFS(output[value],output[source],$B52,output[variable],\"<>LC\")=0,\"\",SUMIFS(output[value],output[source],$B52,output[variable],\"<>LC\"))","v":299.4402428497761},null,{"$f":"IFERROR(VLOOKUP(G$23&\",\"&G$24&\",\"&G$26&\",\"&$B52&\",\"&G$27,data[],7,FALSE),\"\")","v":1444.5405770399989},{"$f":"IFERROR(VLOOKUP(H$23&\",\"&H$24&\",\"&H$26&\",\"&$B52&\",\"&H$27,data[],7,FALSE),\"\")","v":3070.126660369996},{"$f":"IFERROR(VLOOKUP(I$23&\",\"&I$24&\",\"&I$26&\",\"&$B52&\",\"&I$27,data[],7,FALSE),\"\")","v":""},{"$f":"IFERROR(VLOOKUP(J$23&\",\"&J$24&\",\"&J$26&\",\"&$B52&\",\"&J$27,data[],7,FALSE),\"\")","v":4336.8044520469111}]
[null,"ARG-SAF",{"$f":"IFERROR(VLOOKUP($B53,region[],2,FALSE),\"\")","v":"Argentina (Santa Fe)"},null,{"$f":"IF(SUMIFS(output[value],output[source],$B53,output[variable],\"<>LC\")=0,\"\",SUMIFS(output[value],output[source],$B53,output[variable],\"<>LC\"))","v":293.34720900631504},null,{"$f":"IFERROR(VLOOKUP(G$23&\",\"&G$24&\",\"&G$26&\",\"&$B53&\",\"&G$27,data[],7,FALSE),\"\")","v":1463.6960647199994},{"$f":"IFERROR(VLOOKUP(H$23&\",\"&H$24&\",\"&H$26&\",\"&$B53&\",\"&H$27,data[],7,FALSE),\"\")","v":3158.174208530002},{"$f":"IFERROR(VLOOKUP(I$23&\",\"&I$24&\",\"&I$26&\",\"&$B53&\",\"&I$27,data[],7,FALSE),\"\")","v":""},{"$f":"IFERROR(VLOOKUP(J$23&\",\"&J$24&\",\"&J$26&\",\"&$B53&\",\"&J$27,data[],7,FALSE),\"\")","v":4440.5215244686588}]
[null,"ARG-SAJ",{"$f":"IFERROR(VLOOKUP($B54,region[],2,FALSE),\"\")","v":"Argentina (San Juan)"},null,{"$f":"IF(SUMIFS(output[value],output[source],$B54,output[variable],\"<>LC\")=0,\"\",SUMIFS(output[value],output[source],$B54,output[variable],\"<>LC\"))","v":307.07615998023988},null,{"$f":"IFERROR(VLOOKUP(G$23&\",\"&G$24&\",\"&G$26&\",\"&$B54&\",\"&G$27,data[],7,FALSE),\"\")","v":1798.3159226999983},{"$f":"IFERROR(VLOOKUP(H$23&\",\"&H$24&\",\"&H$26&\",\"&$B54&\",\"&H$27,data[],7,FALSE),\"\")","v":2534.5746024499945},{"$f":"IFERROR(VLOOKUP(I$23&\",\"&I$24&\",\"&I$26&\",\"&$B54&\",\"&I$27,data[],7,FALSE),\"\")","v":""},{"$f":"IFERROR(VLOOKUP(J$23&\",\"&J$24&\",\"&J$26&\",\"&$B54&\",\"&J$27,data[],7,FALSE),\"\")","v":4214.2631306310104}]
[null,"ARG-SAL",{"$f":"IFERROR(VLOOKUP($B55,region[],2,FALSE),\"\")","v":"Argentina (San Luis)"},null,{"$f":"IF(SUMIFS(output[value],output[source],$B55,output[variable],\"<>LC\")=0,\"\",SUMIFS(output[value],output[source],$B55,output[variable],\"<>LC\"))","v":262.88039787102014},null,{"$f":"IFERROR(VLOOKUP(G$23&\",\"&G$24&\",\"&G$26&\",\"&$B55&\",\"&G$27,data[],7,FALSE),\"\")","v":1674.9613511999978},{"$f":"IFERROR(VLOOKUP(H$23&\",\"&H$24&\",\"&H$26&\",\"&$B55&\",\"&H$27,data[],7,FALSE),\"\")","v":3657.6108475499996},{"$f":"IFERROR(VLOOKUP(I$23&\",\"&I$24&\",\"&I$26&\",\"&$B55&\",\"&I$27,data[],7,FALSE),\"\")","v":""},{"$f":"IFERROR(VLOOKUP(J$23&\",\"&J$24&\",\"&J$26&\",\"&$B55&\",\"&J$27,data[],7,FALSE),\"\")","v":5055.8296990927674}]
[null,"ARG-SAT",{"$f":"IFERROR(VLOOKUP($B56,region[],2,FALSE),\"\")","v":"Argentina (Salta)"},null,{"$f":"IF(SUMIFS(output[value],output[source],$B56,output[variable],\"<>LC\")=0,\"\",SUMIFS(output[value],output[source],$B56,output[variable],\"<>LC\"))","v":277.05930649266918},null,{"$f":"IFERROR(VLOOKUP(G$23&\",\"&G$24&\",\"&G$26&\",\"&$B56&\",\"&G$27,data[],7,FALSE),\"\")","v":1564.1549919000008},{"$f":"IFERROR(VLOOKUP(H$23&\",\"&H$24&\",\"&H$26&\",\"&$B56&\",\"&H$27,data[],7,FALSE),\"\")","v":3418.5372058749972},{"$f":"IFERROR(VLOOKUP(I$23&\",\"&I$24&\",\"&I$26&\",\"&$B56&\",\"&I$27,data[],7,FALSE),\"\")","v":""},{"$f":"IFERROR(VLOOKUP(J$23&\",\"&J$24&\",\"&J$26&\",\"&$B56&\",\"&J$27,data[],7,FALSE),\"\")","v":4747.3079047460951}]
[null,"ARG-TUC",{"$f":"IFERROR(VLOOKUP($B57,region[],2,FALSE),\"\")","v":"Argentina (Tucumán)"},null,{"$f":"IF(SUMIFS(output[value],output[source],$B57,output[variable],\"<>LC\")=0,\"\",SUMIFS(output[value],output[source],$B57,output[variable],\"<>LC\"))","v":354.44894227538089},null,{"$f":"IFERROR(VLOOKUP(G$23&\",\"&G$24&\",\"&G$26&\",\"&$B57&\",\"&G$27,data[],7,FALSE),\"\")","v":1670.31158688},{"$f":"IFERROR(VLOOKUP(H$23&\",\"&H$24&\",\"&H$26&\",\"&$B57&\",\"&H$27,data[],7,FALSE),\"\")","v":1908.3186970833303},{"$f":"IFERROR(VLOOKUP(I$23&\",\"&I$24&\",\"&I$26&\",\"&$B57&\",\"&I$27,data[],7,FALSE),\"\")","v":""},{"$f":"IFERROR(VLOOKUP(J$23&\",\"&J$24&\",\"&J$26&\",\"&$B57&\",\"&J$27,data[],7,FALSE),\"\")","v":3565.3259655172683}]
[null,null,{"$f":"IFERROR(VLOOKUP($B58,region[],2,FALSE),\"\")","v":""},null,{"$f":"IF(SUMIFS(output[value],output[source],$B58)=0,\"\",SUMIFS(output[value],output[source],$B58))","v":""},null,{"$f":"IFERROR(VLOOKUP(G$23&\",\"&G$24&\",\"&G$26&\",\"&$B58&\",\"&G$27,data[],7,FALSE),\"\")","v":""},{"$f":"IFERROR(VLOOKUP(H$23&\",\"&H$24&\",\"&H$26&\",\"&$B58&\",\"&H$27,data[],7,FALSE),\"\")","v":""},{"$f":"IFERROR(VLOOKUP(I$23&\",\"&I$24&\",\"&I$26&\",\"&$B58&\",\"&I$27,data[],7,FALSE),\"\")","v":""},{"$f":"IFERROR(VLOOKUP(J$23&\",\"&J$24&\",\"&J$26&\",\"&$B58&\",\"&J$27,data[],7,FALSE),\"\")","v":""}]
[null,null,{"$f":"IFERROR(VLOOKUP($B59,region[],2,FALSE),\"\")","v":""},null,{"$f":"IF(SUMIFS(output[value],output[source],$B59)=0,\"\",SUMIFS(output[value],output[source],$B59))","v":""},null,{"$f":"IFERROR(VLOOKUP(G$23&\",\"&G$24&\",\"&G$26&\",\"&$B59&\",\"&G$27,data[],7,FALSE),\"\")","v":""},{"$f":"IFERROR(VLOOKUP(H$23&\",\"&H$24&\",\"&H$26&\",\"&$B59&\",\"&H$27,data[],7,FALSE),\"\")","v":""},{"$f":"IFERROR(VLOOKUP(I$23&\",\"&I$24&\",\"&I$26&\",\"&$B59&\",\"&I$27,data[],7,FALSE),\"\")","v":""},{"$f":"IFERROR(VLOOKUP(J$23&\",\"&J$24&\",\"&J$26&\",\"&$B59&\",\"&J$27,data[],7,FALSE),\"\")","v":""}]
[null,null,{"$f":"IFERROR(VLOOKUP($B60,region[],2,FALSE),\"\")","v":""},null,{"$f":"IF(SUMIFS(output[value],output[source],$B60)=0,\"\",SUMIFS(output[value],output[source],$B60))","v":""},null,{"$f":"IFERROR(VLOOKUP(G$23&\",\"&G$24&\",\"&G$26&\",\"&$B60&\",\"&G$27,data[],7,FALSE),\"\")","v":""},{"$f":"IFERROR(VLOOKUP(H$23&\",\"&H$24&\",\"&H$26&\",\"&$B60&\",\"&H$27,data[],7,FALSE),\"\")","v":""},{"$f":"IFERROR(VLOOKUP(I$23&\",\"&I$24&\",\"&I$26&\",\"&$B60&\",\"&I$27,data[],7,FALSE),\"\")","v":""},{"$f":"IFERROR(VLOOKUP(J$23&\",\"&J$24&\",\"&J$26&\",\"&$B60&\",\"&J$27,data[],7,FALSE),\"\")","v":""}]
[null,null,{"$f":"IFERROR(VLOOKUP($B61,region[],2,FALSE),\"\")","v":""},null,{"$f":"IF(SUMIFS(output[value],output[source],$B61)=0,\"\",SUMIFS(output[value],output[source],$B61))","v":""},null,{"$f":"IFERROR(VLOOKUP(G$23&\",\"&G$24&\",\"&G$26&\",\"&$B61&\",\"&G$27,data[],7,FALSE),\"\")","v":""},{"$f":"IFERROR(VLOOKUP(H$23&\",\"&H$24&\",\"&H$26&\",\"&$B61&\",\"&H$27,data[],7,FALSE),\"\")","v":""},{"$f":"IFERROR(VLOOKUP(I$23&\",\"&I$24&\",\"&I$26&\",\"&$B61&\",\"&I$27,data[],7,FALSE),\"\")","v":""},{"$f":"IFERROR(VLOOKUP(J$23&\",\"&J$24&\",\"&J$26&\",\"&$B61&\",\"&J$27,data[],7,FALSE),\"\")","v":""}]
[]
[]
[null,null,null,null,{"$f":"E32","v":"Total costs (USD/MWh H2)"},null,{"$f":"G25","v":"PV tilted"},{"$f":"H25","v":"Wind Onshore"},{"$f":"I25","v":"Wind Offshore"},{"$f":"J25","v":"Wind-PV-Hybrid"}]
[null,null,"Min",null,{"$f":"_xlfn.AGGREGATE(5,6,E$33:E$61)","v":218.55477026214123},null,{"$f":"_xlfn.AGGREGATE(5,6,G$33:G$61)","v":919.59809255999858},{"$f":"_xlfn.AGGREGATE(5,6,H$33:H$61)","v":1777.2726296600022},{"$f":"_xlfn.AGGREGATE(5,6,I$33:I$61)","v":3854.4},{"$f":"_xlfn.AGGREGATE(5,6,J$33:J$61)","v":3199.5290500507745}]
[null,null,"First quartile",null,{"$f":"_xlfn.AGGREGATE(16,6,E$33:E$61,0.25)","v":259.30932626072922},null,{"$f":"_xlfn.AGGREGATE(16,6,G$33:G$61,0.25)","v":1462.293405359997},{"$f":"_xlfn.AGGREGATE(16,6,H$33:H$61,0.25)","v":3070.126660369996},{"$f":"_xlfn.AGGREGATE(16,6,I$33:I$61,0.25)","v":3854.4},{"$f":"_xlfn.AGGREGATE(16,6,J$33:J$61,0.25)","v":4348.7759583573197}]
[null,null,"Median",null,{"$f":"_xlfn.AGGREGATE(16,6,E$33:E$61,0.5)","v":273.62719726668723},null,{"$f":"_xlfn.AGGREGATE(16,6,G$33:G$61,0.5)","v":1564.1549919000008},{"$f":"_xlfn.AGGREGATE(16,6,H$33:H$61,0.5)","v":3601.8171951299964},{"$f":"_xlfn.AGGREGATE(16,6,I$33:I$61,0.5)","v":4738.1899020500086},{"$f":"_xlfn.AGGREGATE(16,6,J$33:J$61,0.5)","v":4818.1134165187877}]
[null,null,"Third quartile",null,{"$f":"_xlfn.AGGREGATE(16,6,E$33:E$61,0.75)","v":298.72025309069784},null,{"$f":"_xlfn.AGGREGATE(16,6,G$33:G$61,0.75)","v":1672.0413458399996},{"$f":"_xlfn.AGGREGATE(16,6,H$33:H$61,0.75)","v":3781.7001483800022},{"$f":"_xlfn.AGGREGATE(16,6,I$33:I$61,0.75)","v":5566.0417876849933},{"$f":"_xlfn.AGGREGATE(16,6,J$33:J$61,0.75)","v":5140.6823491886607}]
[null,null,"Max",null,{"$f":"_xlfn.AGGREGATE(4,6,E$33:E$61)","v":388.47271474341454},null,{"$f":"_xlfn.AGGREGATE(4,6,G$33:G$61)","v":2184.2849520000136},{"$f":"_xlfn.AGGREGATE(4,6,H$33:H$61)","v":5854.9926980599967},{"$f":"_xlfn.AGGREGATE(4,6,I$33:I$61)","v":5854.9926980599967},{"$f":"_xlfn.AGGREGATE(4,6,J$33:J$61)","v":6390.4146064505558}]
[null,null,{"$f":"sel_region_name","v":"Morocco"},null,{"$f":"SUMIF($B$33:$B$61,sel_region_code,E$33:E$61)","v":0},null,{"$f":"SUMIF($B$33:$B$61,sel_region_code,G$33:G$61)","v":0},{"$f":"SUMIF($B$33:$B$61,sel_region_code,H$33:H$61)","v":0},{"$f":"SUMIF($B$33:$B$61,sel_region_code,I$33:I$61)","v":0},{"$f":"SUMIF($B$33:$B$61,sel_region_code,J$33:J$61)","v":0}]
[]
[]
[null,null,null,null,{"$f":"E32","v":"Total costs (USD/MWh H2)"},null,{"$f":"G25","v":"PV tilted"},{"$f":"H25","v":"Wind Onshore"},{"$f":"I25","v":"Wind Offshore"},{"$f":"J25","v":"Wind-PV-Hybrid"}]
[null,null,"Min",null,{"$f":"E65","v":218.55477026214123},null,{"$f":"G65","v":919.59809255999858},{"$f":"H65","v":1777.2726296600022},3854.4,3199.5290500507745]
[null,null,"Q1-Min",null,{"$f":"E66-E65","v":40.754555998587989},null,{"$f":"G66-G65","v":542.69531279999842},{"$f":"H66-H65","v":1292.8540307099938},0,1149.2469083065453]
[null,null,"Q2-Q1",null,{"$f":"E67-E66","v":14.317871005958011},null,{"$f":"G67-G66","v":101.86158654000383},531.69053476000045,883.78990205000855,469.33745816146802]
[null,null,"Q3-Q2",null,{"$f":"E68-E67","v":25.093055824010605},null,{"$f":"G68-G67","v":107.8863539399988},179.88295325000581,827.85188563498468,322.56893266987299]
[null,null,"Max-Q3",null,89.752461652716704,null,512.243606160014,2073.2925496799944,288.95091037500333,1249.732257261895]
[null,null,{"$f":"sel_region_name","v":"Morocco"},null,{"$f":"SUMIF($B$33:$B$61,sel_region_code,E$33:E$61)","v":0},null,{"$f":"SUMIF($B$33:$B$61,sel_region_code,G$33:G$61)","v":0},{"$f":"SUMIF($B$33:$B$61,sel_region_code,H$33:H$61)","v":0},{"$f":"SUMIF($B$33:$B$61,sel_region_code,I$33:I$61)","v":0},{"$f":"SUMIF($B$33:$B$61,sel_region_code,J$33:J$61)","v":0}]

{"sheet":"r_RegDataZAF","index":27,"n_rows":79,"n_cols":13,"rows_kept":79,"cut":false,"hidden":true,"merged":[[1,11,1,12],[2,11,2,12],[4,2,10,9]]}
[]
[null,null,"DEEP-DIVE SOUTH AFRICA | Data on country and regional level",null,null,null,null,null,null,null,null,"YOUR SETTINGS"]
[null,null,null,null,null,null,null,null,null,null,null,"can be re-adjusted on the dashboard"]
[null,null,"Compare regional data on renewable energy generation to all PTX BOA supply countries",null,null,null,null,null,null,null,null,"Supply country:",{"$f":"sel_region_name","v":"Morocco"}]
[null,null,"The diagram on the left shows the distribution of total delivered costs of your country and/or region in relation to all PTX BOA supply countries. \nThe diagram on the right gives you detailed information on full load hours (FLH) per region and renewable energy generation technology. \nThis data is equally set in relation to all PTX BOA supply countries. \n\nThe box plots show median, 1st and 3rd quartile as well as the total spread of values. The also show the data for your country and/or region for comparison. ",null,null,null,null,null,null,null,null,"Demand country:",{"$f":"sel_country_name","v":"Germany"}]
[null,null,null,null,null,null,null,null,null,null,null,"RE generation:",{"$f":"sel_res_gen_name","v":"Wind-PV-Hybrid"}]
[null,null,null,null,null,null,null,null,null,null,null,"Process chain:",{"$f":"sel_chain","v":"Hydrogen (AEL)"}]
[null,null,null,null,null,null,null,null,null,null,null,"CO2 source:",{"$f":"sel_secproc_co2","v":"DAC"}]
[null,null,null,null,null,null,null,null,null,null,null,"Water source:",{"$f":"sel_secproc_water","v":"Water desalination"}]
[null,null,null,null,null,null,null,null,null,null,null,"Transport mode:",{"$f":"sel_transport","v":"Ship"}]
[null,null,null,null,null,null,null,null,null,null,null,"Scenario:",{"$f":"sel_scenario","v":"2030 (medium)"}]
[]
[]
[]
[]
[]
[]
[]
[]
[]
[]
[]
[null,null,"parameter_code",null,"WACC",null,"FLH","FLH","FLH","FLH"]
[null,null,"process_code",null,null,null,{"$f":"INDEX(process[process_code],MATCH(G$25,process[process_name],0),1)","v":"PV-FIX"},{"$f":"INDEX(process[process_code],MATCH(H$25,process[process_name],0),1)","v":"WIND-ON"},{"$f":"INDEX(process[process_code],MATCH(I$25,process[process_name],0),1)","v":"WIND-OFF"},{"$f":"INDEX(process[process_code],MATCH(J$25,process[process_name],0),1)","v":"RES-HYBR"}]
[null,null,null,null,null,null,"PV tilted","Wind Onshore","Wind Offshore","Wind-PV-Hybrid"]
[null,null,"flow_code"]
[null,null,"target_country_code"]
[]
[]
[null,null,null,null,"total costs",null,{"$f":"VLOOKUP(G$23,parameter[],2,FALSE)","v":"full load hours"},{"$f":"VLOOKUP(H$23,parameter[],2,FALSE)","v":"full load hours"},{"$f":"VLOOKUP(I$23,parameter[],2,FALSE)","v":"full load hours"},{"$f":"VLOOKUP(J$23,parameter[],2,FALSE)","v":"full load hours"}]
[null,null,null,null,"USD/kWh",null,{"$f":"VLOOKUP(G$23,parameter[],3,FALSE)","v":"h"},{"$f":"VLOOKUP(H$23,parameter[],3,FALSE)","v":"h"},{"$f":"VLOOKUP(I$23,parameter[],3,FALSE)","v":"h"},{"$f":"VLOOKUP(J$23,parameter[],3,FALSE)","v":"h"}]
[null,"Country code","Supply country",null,{"$f":"\"Total costs (\"&selOutputUnit2&\")\"","v":"Total costs (USD/MWh H2)"},null,"full load hours (h/year)","full load hours (h/year)","full load hours (h/year)","full load hours (h/year)",null,"RE option used"]
[null,"ZAF","South Africa (country)",null,{"$f":"IF(SUMIFS(output[value],output[source],$B33,output[variable],\"<>LC\")=0,\"\",SUMIFS(output[value],output[source],$B33,output[variable],\"<>LC\"))","v":230.5540013769959},null,{"$f":"IFERROR(VLOOKUP(G$23&\",\"&G$24&\",\"&G$26&\",\"&$B33&\",\"&G$27,data[],7,FALSE),\"\")","v":1603},{"$f":"IFERROR(VLOOKUP(H$23&\",\"&H$24&\",\"&H$26&\",\"&$B33&\",\"&H$27,data[],7,FALSE),\"\")","v":3070},{"$f":"IFERROR(VLOOKUP(I$23&\",\"&I$24&\",\"&I$26&\",\"&$B33&\",\"&I$27,data[],7,FALSE),\"\")","v":4117},{"$f":"IFERROR(VLOOKUP(J$23&\",\"&J$24&\",\"&J$26&\",\"&$B33&\",\"&J$27,data[],7,FALSE),\"\")","v":4382.46},null,{"$f":"IF($B33=sel_region_code,sel_res_gen_name,VLOOKUP(\"RES-HYBR\",process_res_gen[],2,FALSE))","v":"Wind-PV-Hybrid"}]
[null,"ZAF-EC",{"$f":"IFERROR(VLOOKUP($B34,region[],2,FALSE),\"\")","v":"South Africa (East Cape)"},null,{"$f":"IF(SUMIFS(output[value],output[source],$B34,output[variable],\"<>LC\")=0,\"\",SUMIFS(output[value],output[source],$B34,output[variable],\"<>LC\"))","v":183.84062645545259},null,{"$f":"IFERROR(VLOOKUP(G$23&\",\"&G$24&\",\"&G$26&\",\"&$B34&\",\"&G$27,data[],7,FALSE),\"\")","v":1725.7083537599988},{"$f":"IFERROR(VLOOKUP(H$23&\",\"&H$24&\",\"&H$26&\",\"&$B34&\",\"&H$27,data[],7,FALSE),\"\")","v":3914.4857524666741},{"$f":"IFERROR(VLOOKUP(I$23&\",\"&I$24&\",\"&I$26&\",\"&$B34&\",\"&I$27,data[],7,FALSE),\"\")","v":4117.2},{"$f":"IFERROR(VLOOKUP(J$23&\",\"&J$24&\",\"&J$26&\",\"&$B34&\",\"&J$27,data[],7,FALSE),\"\")","v":5288.7578237093758},null,{"$f":"IF($B34=sel_region_code,sel_res_gen_name,VLOOKUP(\"RES-HYBR\",process_res_gen[],2,FALSE))","v":"Wind-PV-Hybrid"}]
[null,"ZAF-FRS",{"$f":"IFERROR(VLOOKUP($B35,region[],2,FALSE),\"\")","v":"South Africa (Free State)"},null,{"$f":"IF(SUMIFS(output[value],output[source],$B35,output[variable],\"<>LC\")=0,\"\",SUMIFS(output[value],output[source],$B35,output[variable],\"<>LC\"))","v":210.83572431175551},null,{"$f":"IFERROR(VLOOKUP(G$23&\",\"&G$24&\",\"&G$26&\",\"&$B35&\",\"&G$27,data[],7,FALSE),\"\")","v":1808.769283199998},{"$f":"IFERROR(VLOOKUP(H$23&\",\"&H$24&\",\"&H$26&\",\"&$B35&\",\"&H$27,data[],7,FALSE),\"\")","v":2775.7070136400025},{"$f":"IFERROR(VLOOKUP(I$23&\",\"&I$24&\",\"&I$26&\",\"&$B35&\",\"&I$27,data[],7,FALSE),\"\")","v":""},{"$f":"IFERROR(VLOOKUP(J$23&\",\"&J$24&\",\"&J$26&\",\"&$B35&\",\"&J$27,data[],7,FALSE),\"\")","v":4425.6106106284642},null,{"$f":"IF($B35=sel_region_code,sel_res_gen_name,VLOOKUP(\"RES-HYBR\",process_res_gen[],2,FALSE))","v":"Wind-PV-Hybrid"}]
[null,"ZAF-GAU",{"$f":"IFERROR(VLOOKUP($B36,region[],2,FALSE),\"\")","v":"South Africa (Gauteng)"},null,{"$f":"IF(SUMIFS(output[value],output[source],$B36,output[variable],\"<>LC\")=0,\"\",SUMIFS(output[value],output[source],$B36,output[variable],\"<>LC\"))","v":240.62138710117534},null,{"$f":"IFERROR(VLOOKUP(G$23&\",\"&G$24&\",\"&G$26&\",\"&$B36&\",\"&G$27,data[],7,FALSE),\"\")","v":1770.0387314399968},{"$f":"IFERROR(VLOOKUP(H$23&\",\"&H$24&\",\"&H$26&\",\"&$B36&\",\"&H$27,data[],7,FALSE),\"\")","v":2069.9309253700035},{"$f":"IFERROR(VLOOKUP(I$23&\",\"&I$24&\",\"&I$26&\",\"&$B36&\",\"&I$27,data[],7,FALSE),\"\")","v":""},{"$f":"IFERROR(VLOOKUP(J$23&\",\"&J$24&\",\"&J$26&\",\"&$B36&\",\"&J$27,data[],7,FALSE),\"\")","v":3757.1990000000001},null,{"$f":"IF($B36=sel_region_code,sel_res_gen_name,VLOOKUP(\"RES-HYBR\",process_res_gen[],2,FALSE))","v":"Wind-PV-Hybrid"}]
[null,"ZAF-KWA",{"$f":"IFERROR(VLOOKUP($B37,region[],2,FALSE),\"\")","v":"South Africa (KwaZulu-Natal)"},null,{"$f":"IF(SUMIFS(output[value],output[source],$B37,output[variable],\"<>LC\")=0,\"\",SUMIFS(output[value],output[source],$B37,output[variable],\"<>LC\"))","v":217.07518651851836},null,{"$f":"IFERROR(VLOOKUP(G$23&\",\"&G$24&\",\"&G$26&\",\"&$B37&\",\"&G$27,data[],7,FALSE),\"\")","v":1694.9134799999979},{"$f":"IFERROR(VLOOKUP(H$23&\",\"&H$24&\",\"&H$26&\",\"&$B37&\",\"&H$27,data[],7,FALSE),\"\")","v":2682.3634953500023},{"$f":"IFERROR(VLOOKUP(I$23&\",\"&I$24&\",\"&I$26&\",\"&$B37&\",\"&I$27,data[],7,FALSE),\"\")","v":4117.2},{"$f":"IFERROR(VLOOKUP(J$23&\",\"&J$24&\",\"&J$26&\",\"&$B37&\",\"&J$27,data[],7,FALSE),\"\")","v":4268.4057445788794},null,{"$f":"IF($B37=sel_region_code,sel_res_gen_name,VLOOKUP(\"RES-HYBR\",process_res_gen[],2,FALSE))","v":"Wind-PV-Hybrid"}]
[null,"ZAF-LIM",{"$f":"IFERROR(VLOOKUP($B38,region[],2,FALSE),\"\")","v":"South Africa (Limpopo)"},null,{"$f":"IF(SUMIFS(output[value],output[source],$B38,output[variable],\"<>LC\")=0,\"\",SUMIFS(output[value],output[source],$B38,output[variable],\"<>LC\"))","v":218.53751763122162},null,{"$f":"IFERROR(VLOOKUP(G$23&\",\"&G$24&\",\"&G$26&\",\"&$B38&\",\"&G$27,data[],7,FALSE),\"\")","v":1711.457395919999},{"$f":"IFERROR(VLOOKUP(H$23&\",\"&H$24&\",\"&H$26&\",\"&$B38&\",\"&H$27,data[],7,FALSE),\"\")","v":2627.5496087499969},{"$f":"IFERROR(VLOOKUP(I$23&\",\"&I$24&\",\"&I$26&\",\"&$B38&\",\"&I$27,data[],7,FALSE),\"\")","v":""},{"$f":"IFERROR(VLOOKUP(J$23&\",\"&J$24&\",\"&J$26&\",\"&$B38&\",\"&J$27,data[],7,FALSE),\"\")","v":4233.3590689024513},null,{"$f":"IF($B38=sel_region_code,sel_res_gen_name,VLOOKUP(\"RES-HYBR\",process_res_gen[],2,FALSE))","v":"Wind-PV-Hybrid"}]
[null,"ZAF-MPU",{"$f":"IFERROR(VLOOKUP($B39,region[],2,FALSE),\"\")","v":"South Africa (Mpumalanga)"},null,{"$f":"IF(SUMIFS(output[value],output[source],$B39,output[variable],\"<>LC\")=0,\"\",SUMIFS(output[value],output[source],$B39,output[variable],\"<>LC\"))","v":218.53751763122162},null,{"$f":"IFERROR(VLOOKUP(G$23&\",\"&G$24&\",\"&G$26&\",\"&$B39&\",\"&G$27,data[],7,FALSE),\"\")","v":1752.2448955200002},{"$f":"IFERROR(VLOOKUP(H$23&\",\"&H$24&\",\"&H$26&\",\"&$B39&\",\"&H$27,data[],7,FALSE),\"\")","v":2612.1821174166703},{"$f":"IFERROR(VLOOKUP(I$23&\",\"&I$24&\",\"&I$26&\",\"&$B39&\",\"&I$27,data[],7,FALSE),\"\")","v":""},{"$f":"IFERROR(VLOOKUP(J$23&\",\"&J$24&\",\"&J$26&\",\"&$B39&\",\"&J$27,data[],7,FALSE),\"\")","v":4233.3590689024513},null,{"$f":"IF($B39=sel_region_code,sel_res_gen_name,VLOOKUP(\"RES-HYBR\",process_res_gen[],2,FALSE))","v":"Wind-PV-Hybrid"}]
[null,"ZAF-NC",{"$f":"IFERROR(VLOOKUP($B40,region[],2,FALSE),\"\")","v":"South Africa (Northern Cape)"},null,{"$f":"IF(SUMIFS(output[value],output[source],$B40,output[variable],\"<>LC\")=0,\"\",SUMIFS(output[value],output[source],$B40,output[variable],\"<>LC\"))","v":184.83048043059983},null,{"$f":"IFERROR(VLOOKUP(G$23&\",\"&G$24&\",\"&G$26&\",\"&$B40&\",\"&G$27,data[],7,FALSE),\"\")","v":1814.9242226399974},{"$f":"IFERROR(VLOOKUP(H$23&\",\"&H$24&\",\"&H$26&\",\"&$B40&\",\"&H$27,data[],7,FALSE),\"\")","v":3748.8309036749974},{"$f":"IFERROR(VLOOKUP(I$23&\",\"&I$24&\",\"&I$26&\",\"&$B40&\",\"&I$27,data[],7,FALSE),\"\")","v":4117.2},{"$f":"IFERROR(VLOOKUP(J$23&\",\"&J$24&\",\"&J$26&\",\"&$B40&\",\"&J$27,data[],7,FALSE),\"\")","v":5250.5102949318216},null,{"$f":"IF($B40=sel_region_code,sel_res_gen_name,VLOOKUP(\"RES-HYBR\",process_res_gen[],2,FALSE))","v":"Wind-PV-Hybrid"}]
[null,"ZAF-NW",{"$f":"IFERROR(VLOOKUP($B41,region[],2,FALSE),\"\")","v":"South Africa (North West)"},null,{"$f":"IF(SUMIFS(output[value],output[source],$B41,output[variable],\"<>LC\")=0,\"\",SUMIFS(output[value],output[source],$B41,output[variable],\"<>LC\"))","v":209.49036169545661},null,{"$f":"IFERROR(VLOOKUP(G$23&\",\"&G$24&\",\"&G$26&\",\"&$B41&\",\"&G$27,data[],7,FALSE),\"\")","v":1786.6500962399978},{"$f":"IFERROR(VLOOKUP(H$23&\",\"&H$24&\",\"&H$26&\",\"&$B41&\",\"&H$27,data[],7,FALSE),\"\")","v":3092.6134290333307},{"$f":"IFERROR(VLOOKUP(I$23&\",\"&I$24&\",\"&I$26&\",\"&$B41&\",\"&I$27,data[],7,FALSE),\"\")","v":""},{"$f":"IFERROR(VLOOKUP(J$23&\",\"&J$24&\",\"&J$26&\",\"&$B41&\",\"&J$27,data[],7,FALSE),\"\")","v":4461.2336445282735},null,{"$f":"IF($B41=sel_region_code,sel_res_gen_name,VLOOKUP(\"RES-HYBR\",process_res_gen[],2,FALSE))","v":"Wind-PV-Hybrid"}]
[null,"ZAF-WC",{"$f":"IFERROR(VLOOKUP($B42,region[],2,FALSE),\"\")","v":"South Africa (Western Cape)"},null,{"$f":"IF(SUMIFS(output[value],output[source],$B42,output[variable],\"<>LC\")=0,\"\",SUMIFS(output[value],output[source],$B42,output[variable],\"<>LC\"))","v":199.36699821347904},null,{"$f":"IFERROR(VLOOKUP(G$23&\",\"&G$24&\",\"&G$26&\",\"&$B42&\",\"&G$27,data[],7,FALSE),\"\")","v":1664.7200798400002},{"$f":"IFERROR(VLOOKUP(H$23&\",\"&H$24&\",\"&H$26&\",\"&$B42&\",\"&H$27,data[],7,FALSE),\"\")","v":3346.6670672599976},{"$f":"IFERROR(VLOOKUP(I$23&\",\"&I$24&\",\"&I$26&\",\"&$B42&\",\"&I$27,data[],7,FALSE),\"\")","v":4117.2},{"$f":"IFERROR(VLOOKUP(J$23&\",\"&J$24&\",\"&J$26&\",\"&$B42&\",\"&J$27,data[],7,FALSE),\"\")","v":4751.4057997393265},null,{"$f":"IF($B42=sel_region_code,sel_res_gen_name,VLOOKUP(\"RES-HYBR\",process_res_gen[],2,FALSE))","v":"Wind-PV-Hybrid"}]
[null,null,{"$f":"IFERROR(VLOOKUP($B43,region[],2,FALSE),\"\")","v":""},null,{"$f":"IF(SUMIFS(output[value],output[source],$B43)=0,\"\",SUMIFS(output[value],output[source],$B43))","v":""},null,{"$f":"IFERROR(VLOOKUP(G$23&\",\"&G$24&\",\"&G$26&\",\"&$B43&\",\"&G$27,data[],7,FALSE),\"\")","v":""},{"$f":"IFERROR(VLOOKUP(H$23&\",\"&H$24&\",\"&H$26&\",\"&$B43&\",\"&H$27,data[],7,FALSE),\"\")","v":""},{"$f":"IFERROR(VLOOKUP(I$23&\",\"&I$24&\",\"&I$26&\",\"&$B43&\",\"&I$27,data[],7,FALSE),\"\")","v":""},{"$f":"IFERROR(VLOOKUP(J$23&\",\"&J$24&\",\"&J$26&\",\"&$B43&\",\"&J$27,data[],7,FALSE),\"\")","v":""},null,{"$f":"IF($B43=sel_region_code,sel_res_gen_name,VLOOKUP(\"RES-HYBR\",process_res_gen[],2,FALSE))","v":"Wind-PV-Hybrid"}]
[null,null,{"$f":"IFERROR(VLOOKUP($B44,region[],2,FALSE),\"\")","v":""},null,{"$f":"IF(SUMIFS(output[value],output[source],$B44)=0,\"\",SUMIFS(output[value],output[source],$B44))","v":""},null,{"$f":"IFERROR(VLOOKUP(G$23&\",\"&G$24&\",\"&G$26&\",\"&$B44&\",\"&G$27,data[],7,FALSE),\"\")","v":""},{"$f":"IFERROR(VLOOKUP(H$23&\",\"&H$24&\",\"&H$26&\",\"&$B44&\",\"&H$27,data[],7,FALSE),\"\")","v":""},{"$f":"IFERROR(VLOOKUP(I$23&\",\"&I$24&\",\"&I$26&\",\"&$B44&\",\"&I$27,data[],7,FALSE),\"\")","v":""},{"$f":"IFERROR(VLOOKUP(J$23&\",\"&J$24&\",\"&J$26&\",\"&$B44&\",\"&J$27,data[],7,FALSE),\"\")","v":""},null,{"$f":"IF($B44=sel_region_code,sel_res_gen_name,VLOOKUP(\"RES-HYBR\",process_res_gen[],2,FALSE))","v":"Wind-PV-Hybrid"}]
[null,null,{"$f":"IFERROR(VLOOKUP($B45,region[],2,FALSE),\"\")","v":""},null,{"$f":"IF(SUMIFS(output[value],output[source],$B45)=0,\"\",SUMIFS(output[value],output[source],$B45))","v":""},null,{"$f":"IFERROR(VLOOKUP(G$23&\",\"&G$24&\",\"&G$26&\",\"&$B45&\",\"&G$27,data[],7,FALSE),\"\")","v":""},{"$f":"IFERROR(VLOOKUP(H$23&\",\"&H$24&\",\"&H$26&\",\"&$B45&\",\"&H$27,data[],7,FALSE),\"\")","v":""},{"$f":"IFERROR(VLOOKUP(I$23&\",\"&I$24&\",\"&I$26&\",\"&$B45&\",\"&I$27,data[],7,FALSE),\"\")","v":""},{"$f":"IFERROR(VLOOKUP(J$23&\",\"&J$24&\",\"&J$26&\",\"&$B45&\",\"&J$27,data[],7,FALSE),\"\")","v":""},null,{"$f":"IF($B45=sel_region_code,sel_res_gen_name,VLOOKUP(\"RES-HYBR\",process_res_gen[],2,FALSE))","v":"Wind-PV-Hybrid"}]
[null,null,{"$f":"IFERROR(VLOOKUP($B46,region[],2,FALSE),\"\")","v":""},null,{"$f":"IF(SUMIFS(output[value],output[source],$B46)=0,\"\",SUMIFS(output[value],output[source],$B46))","v":""},null,{"$f":"IFERROR(VLOOKUP(G$23&\",\"&G$24&\",\"&G$26&\",\"&$B46&\",\"&G$27,data[],7,FALSE),\"\")","v":""},{"$f":"IFERROR(VLOOKUP(H$23&\",\"&H$24&\",\"&H$26&\",\"&$B46&\",\"&H$27,data[],7,FALSE),\"\")","v":""},{"$f":"IFERROR(VLOOKUP(I$23&\",\"&I$24&\",\"&I$26&\",\"&$B46&\",\"&I$27,data[],7,FALSE),\"\")","v":""},{"$f":"IFERROR(VLOOKUP(J$23&\",\"&J$24&\",\"&J$26&\",\"&$B46&\",\"&J$27,data[],7,FALSE),\"\")","v":""}]
[null,null,{"$f":"IFERROR(VLOOKUP($B47,region[],2,FALSE),\"\")","v":""},null,{"$f":"IF(SUMIFS(output[value],output[source],$B47)=0,\"\",SUMIFS(output[value],output[source],$B47))","v":""},null,{"$f":"IFERROR(VLOOKUP(G$23&\",\"&G$24&\",\"&G$26&\",\"&$B47&\",\"&G$27,data[],7,FALSE),\"\")","v":""},{"$f":"IFERROR(VLOOKUP(H$23&\",\"&H$24&\",\"&H$26&\",\"&$B47&\",\"&H$27,data[],7,FALSE),\"\")","v":""},{"$f":"IFERROR(VLOOKUP(I$23&\",\"&I$24&\",\"&I$26&\",\"&$B47&\",\"&I$27,data[],7,FALSE),\"\")","v":""},{"$f":"IFERROR(VLOOKUP(J$23&\",\"&J$24&\",\"&J$26&\",\"&$B47&\",\"&J$27,data[],7,FALSE),\"\")","v":""}]
[null,null,{"$f":"IFERROR(VLOOKUP($B48,region[],2,FALSE),\"\")","v":""},null,{"$f":"IF(SUMIFS(output[value],output[source],$B48)=0,\"\",SUMIFS(output[value],output[source],$B48))","v":""},null,{"$f":"IFERROR(VLOOKUP(G$23&\",\"&G$24&\",\"&G$26&\",\"&$B48&\",\"&G$27,data[],7,FALSE),\"\")","v":""},{"$f":"IFERROR(VLOOKUP(H$23&\",\"&H$24&\",\"&H$26&\",\"&$B48&\",\"&H$27,data[],7,FALSE),\"\")","v":""},{"$f":"IFERROR(VLOOKUP(I$23&\",\"&I$24&\",\"&I$26&\",\"&$B48&\",\"&I$27,data[],7,FALSE),\"\")","v":""},{"$f":"IFERROR(VLOOKUP(J$23&\",\"&J$24&\",\"&J$26&\",\"&$B48&\",\"&J$27,data[],7,FALSE),\"\")","v":""}]
[null,null,{"$f":"IFERROR(VLOOKUP($B49,region[],2,FALSE),\"\")","v":""},null,{"$f":"IF(SUMIFS(output[value],output[source],$B49)=0,\"\",SUMIFS(output[value],output[source],$B49))","v":""},null,{"$f":"IFERROR(VLOOKUP(G$23&\",\"&G$24&\",\"&G$26&\",\"&$B49&\",\"&G$27,data[],7,FALSE),\"\")","v":""},{"$f":"IFERROR(VLOOKUP(H$23&\",\"&H$24&\",\"&H$26&\",\"&$B49&\",\"&H$27,data[],7,FALSE),\"\")","v":""},{"$f":"IFERROR(VLOOKUP(I$23&\",\"&I$24&\",\"&I$26&\",\"&$B49&\",\"&I$27,data[],7,FALSE),\"\")","v":""},{"$f":"IFERROR(VLOOKUP(J$23&\",\"&J$24&\",\"&J$26&\",\"&$B49&\",\"&J$27,data[],7,FALSE),\"\")","v":""}]
[null,null,{"$f":"IFERROR(VLOOKUP($B50,region[],2,FALSE),\"\")","v":""},null,{"$f":"IF(SUMIFS(output[value],output[source],$B50)=0,\"\",SUMIFS(output[value],output[source],$B50))","v":""},null,{"$f":"IFERROR(VLOOKUP(G$23&\",\"&G$24&\",\"&G$26&\",\"&$B50&\",\"&G$27,data[],7,FALSE),\"\")","v":""},{"$f":"IFERROR(VLOOKUP(H$23&\",\"&H$24&\",\"&H$26&\",\"&$B50&\",\"&H$27,data[],7,FALSE),\"\")","v":""},{"$f":"IFERROR(VLOOKUP(I$23&\",\"&I$24&\",\"&I$26&\",\"&$B50&\",\"&I$27,data[],7,FALSE),\"\")","v":""},{"$f":"IFERROR(VLOOKUP(J$23&\",\"&J$24&\",\"&J$26&\",\"&$B50&\",\"&J$27,data[],7,FALSE),\"\")","v":""}]
[null,null,{"$f":"IFERROR(VLOOKUP($B51,region[],2,FALSE),\"\")","v":""},null,{"$f":"IF(SUMIFS(output[value],output[source],$B51)=0,\"\",SUMIFS(output[value],output[source],$B51))","v":""},null,{"$f":"IFERROR(VLOOKUP(G$23&\",\"&G$24&\",\"&G$26&\",\"&$B51&\",\"&G$27,data[],7,FALSE),\"\")","v":""},{"$f":"IFERROR(VLOOKUP(H$23&\",\"&H$24&\",\"&H$26&\",\"&$B51&\",\"&H$27,data[],7,FALSE),\"\")","v":""},{"$f":"IFERROR(VLOOKUP(I$23&\",\"&I$24&\",\"&I$26&\",\"&$B51&\",\"&I$27,data[],7,FALSE),\"\")","v":""},{"$f":"IFERROR(VLOOKUP(J$23&\",\"&J$24&\",\"&J$26&\",\"&$B51&\",\"&J$27,data[],7,FALSE),\"\")","v":""}]
[null,null,{"$f":"IFERROR(VLOOKUP($B52,region[],2,FALSE),\"\")","v":""},null,{"$f":"IF(SUMIFS(output[value],output[source],$B52)=0,\"\",SUMIFS(output[value],output[source],$B52))","v":""},null,{"$f":"IFERROR(VLOOKUP(G$23&\",\"&G$24&\",\"&G$26&\",\"&$B52&\",\"&G$27,data[],7,FALSE),\"\")","v":""},{"$f":"IFERROR(VLOOKUP(H$23&\",\"&H$24&\",\"&H$26&\",\"&$B52&\",\"&H$27,data[],7,FALSE),\"\")","v":""},{"$f":"IFERROR(VLOOKUP(I$23&\",\"&I$24&\",\"&I$26&\",\"&$B52&\",\"&I$27,data[],7,FALSE),\"\")","v":""},{"$f":"IFERROR(VLOOKUP(J$23&\",\"&J$24&\",\"&J$26&\",\"&$B52&\",\"&J$27,data[],7,FALSE),\"\")","v":""}]
[null,null,{"$f":"IFERROR(VLOOKUP($B53,region[],2,FALSE),\"\")","v":""},null,{"$f":"IF(SUMIFS(output[value],output[source],$B53)=0,\"\",SUMIFS(output[value],output[source],$B53))","v":""},null,{"$f":"IFERROR(VLOOKUP(G$23&\",\"&G$24&\",\"&G$26&\",\"&$B53&\",\"&G$27,data[],7,FALSE),\"\")","v":""},{"$f":"IFERROR(VLOOKUP(H$23&\",\"&H$24&\",\"&H$26&\",\"&$B53&\",\"&H$27,data[],7,FALSE),\"\")","v":""},{"$f":"IFERROR(VLOOKUP(I$23&\",\"&I$24&\",\"&I$26&\",\"&$B53&\",\"&I$27,data[],7,FALSE),\"\")","v":""},{"$f":"IFERROR(VLOOKUP(J$23&\",\"&J$24&\",\"&J$26&\",\"&$B53&\",\"&J$27,data[],7,FALSE),\"\")","v":""}]
[null,null,{"$f":"IFERROR(VLOOKUP($B54,region[],2,FALSE),\"\")","v":""},null,{"$f":"IF(SUMIFS(output[value],output[source],$B54)=0,\"\",SUMIFS(output[value],output[source],$B54))","v":""},null,{"$f":"IFERROR(VLOOKUP(G$23&\",\"&G$24&\",\"&G$26&\",\"&$B54&\",\"&G$27,data[],7,FALSE),\"\")","v":""},{"$f":"IFERROR(VLOOKUP(H$23&\",\"&H$24&\",\"&H$26&\",\"&$B54&\",\"&H$27,data[],7,FALSE),\"\")","v":""},{"$f":"IFERROR(VLOOKUP(I$23&\",\"&I$24&\",\"&I$26&\",\"&$B54&\",\"&I$27,data[],7,FALSE),\"\")","v":""},{"$f":"IFERROR(VLOOKUP(J$23&\",\"&J$24&\",\"&J$26&\",\"&$B54&\",\"&J$27,data[],7,FALSE),\"\")","v":""}]
[null,null,{"$f":"IFERROR(VLOOKUP($B55,region[],2,FALSE),\"\")","v":""},null,{"$f":"IF(SUMIFS(output[value],output[source],$B55)=0,\"\",SUMIFS(output[value],output[source],$B55))","v":""},null,{"$f":"IFERROR(VLOOKUP(G$23&\",\"&G$24&\",\"&G$26&\",\"&$B55&\",\"&G$27,data[],7,FALSE),\"\")","v":""},{"$f":"IFERROR(VLOOKUP(H$23&\",\"&H$24&\",\"&H$26&\",\"&$B55&\",\"&H$27,data[],7,FALSE),\"\")","v":""},{"$f":"IFERROR(VLOOKUP(I$23&\",\"&I$24&\",\"&I$26&\",\"&$B55&\",\"&I$27,data[],7,FALSE),\"\")","v":""},{"$f":"IFERROR(VLOOKUP(J$23&\",\"&J$24&\",\"&J$26&\",\"&$B55&\",\"&J$27,data[],7,FALSE),\"\")","v":""}]
[null,null,{"$f":"IFERROR(VLOOKUP($B56,region[],2,FALSE),\"\")","v":""},null,{"$f":"IF(SUMIFS(output[value],output[source],$B56)=0,\"\",SUMIFS(output[value],output[source],$B56))","v":""},null,{"$f":"IFERROR(VLOOKUP(G$23&\",\"&G$24&\",\"&G$26&\",\"&$B56&\",\"&G$27,data[],7,FALSE),\"\")","v":""},{"$f":"IFERROR(VLOOKUP(H$23&\",\"&H$24&\",\"&H$26&\",\"&$B56&\",\"&H$27,data[],7,FALSE),\"\")","v":""},{"$f":"IFERROR(VLOOKUP(I$23&\",\"&I$24&\",\"&I$26&\",\"&$B56&\",\"&I$27,data[],7,FALSE),\"\")","v":""},{"$f":"IFERROR(VLOOKUP(J$23&\",\"&J$24&\",\"&J$26&\",\"&$B56&\",\"&J$27,data[],7,FALSE),\"\")","v":""}]
[null,null,{"$f":"IFERROR(VLOOKUP($B57,region[],2,FALSE),\"\")","v":""},null,{"$f":"IF(SUMIFS(output[value],output[source],$B57)=0,\"\",SUMIFS(output[value],output[source],$B57))","v":""},null,{"$f":"IFERROR(VLOOKUP(G$23&\",\"&G$24&\",\"&G$26&\",\"&$B57&\",\"&G$27,data[],7,FALSE),\"\")","v":""},{"$f":"IFERROR(VLOOKUP(H$23&\",\"&H$24&\",\"&H$26&\",\"&$B57&\",\"&H$27,data[],7,FALSE),\"\")","v":""},{"$f":"IFERROR(VLOOKUP(I$23&\",\"&I$24&\",\"&I$26&\",\"&$B57&\",\"&I$27,data[],7,FALSE),\"\")","v":""},{"$f":"IFERROR(VLOOKUP(J$23&\",\"&J$24&\",\"&J$26&\",\"&$B57&\",\"&J$27,data[],7,FALSE),\"\")","v":""}]
[null,null,{"$f":"IFERROR(VLOOKUP($B58,region[],2,FALSE),\"\")","v":""},null,{"$f":"IF(SUMIFS(output[value],output[source],$B58)=0,\"\",SUMIFS(output[value],output[source],$B58))","v":""},null,{"$f":"IFERROR(VLOOKUP(G$23&\",\"&G$24&\",\"&G$26&\",\"&$B58&\",\"&G$27,data[],7,FALSE),\"\")","v":""},{"$f":"IFERROR(VLOOKUP(H$23&\",\"&H$24&\",\"&H$26&\",\"&$B58&\",\"&H$27,data[],7,FALSE),\"\")","v":""},{"$f":"IFERROR(VLOOKUP(I$23&\",\"&I$24&\",\"&I$26&\",\"&$B58&\",\"&I$27,data[],7,FALSE),\"\")","v":""},{"$f":"IFERROR(VLOOKUP(J$23&\",\"&J$24&\",\"&J$26&\",\"&$B58&\",\"&J$27,data[],7,FALSE),\"\")","v":""}]
[null,null,{"$f":"IFERROR(VLOOKUP($B59,region[],2,FALSE),\"\")","v":""},null,{"$f":"IF(SUMIFS(output[value],output[source],$B59)=0,\"\",SUMIFS(output[value],output[source],$B59))","v":""},null,{"$f":"IFERROR(VLOOKUP(G$23&\",\"&G$24&\",\"&G$26&\",\"&$B59&\",\"&G$27,data[],7,FALSE),\"\")","v":""},{"$f":"IFERROR(VLOOKUP(H$23&\",\"&H$24&\",\"&H$26&\",\"&$B59&\",\"&H$27,data[],7,FALSE),\"\")","v":""},{"$f":"IFERROR(VLOOKUP(I$23&\",\"&I$24&\",\"&I$26&\",\"&$B59&\",\"&I$27,data[],7,FALSE),\"\")","v":""},{"$f":"IFERROR(VLOOKUP(J$23&\",\"&J$24&\",\"&J$26&\",\"&$B59&\",\"&J$27,data[],7,FALSE),\"\")","v":""}]
[null,null,{"$f":"IFERROR(VLOOKUP($B60,region[],2,FALSE),\"\")","v":""},null,{"$f":"IF(SUMIFS(output[value],output[source],$B60)=0,\"\",SUMIFS(output[value],output[source],$B60))","v":""},null,{"$f":"IFERROR(VLOOKUP(G$23&\",\"&G$24&\",\"&G$26&\",\"&$B60&\",\"&G$27,data[],7,FALSE),\"\")","v":""},{"$f":"IFERROR(VLOOKUP(H$23&\",\"&H$24&\",\"&H$26&\",\"&$B60&\",\"&H$27,data[],7,FALSE),\"\")","v":""},{"$f":"IFERROR(VLOOKUP(I$23&\",\"&I$24&\",\"&I$26&\",\"&$B60&\",\"&I$27,data[],7,FALSE),\"\")","v":""},{"$f":"IFERROR(VLOOKUP(J$23&\",\"&J$24&\",\"&J$26&\",\"&$B60&\",\"&J$27,data[],7,FALSE),\"\")","v":""}]
[null,null,{"$f":"IFERROR(VLOOKUP($B61,region[],2,FALSE),\"\")","v":""},null,{"$f":"IF(SUMIFS(output[value],output[source],$B61)=0,\"\",SUMIFS(output[value],output[source],$B61))","v":""},null,{"$f":"IFERROR(VLOOKUP(G$23&\",\"&G$24&\",\"&G$26&\",\"&$B61&\",\"&G$27,data[],7,FALSE),\"\")","v":""},{"$f":"IFERROR(VLOOKUP(H$23&\",\"&H$24&\",\"&H$26&\",\"&$B61&\",\"&H$27,data[],7,FALSE),\"\")","v":""},{"$f":"IFERROR(VLOOKUP(I$23&\",\"&I$24&\",\"&I$26&\",\"&$B61&\",\"&I$27,data[],7,FALSE),\"\")","v":""},{"$f":"IFERROR(VLOOKUP(J$23&\",\"&J$24&\",\"&J$26&\",\"&$B61&\",\"&J$27,data[],7,FALSE),\"\")","v":""}]
[]
[]
[null,null,null,null,{"$f":"E32","v":"Total costs (USD/MWh H2)"},null,{"$f":"G25","v":"PV tilted"},{"$f":"H25","v":"Wind Onshore"},{"$f":"I25","v":"Wind Offshore"},{"$f":"J25","v":"Wind-PV-Hybrid"}]
[null,null,"Min",null,{"$f":"_xlfn.AGGREGATE(5,6,E$33:E$61)","v":183.84062645545259},null,{"$f":"_xlfn.AGGREGATE(5,6,G$33:G$61)","v":1603},{"$f":"_xlfn.AGGREGATE(5,6,H$33:H$61)","v":2069.9309253700035},{"$f":"_xlfn.AGGREGATE(5,6,I$33:I$61)","v":4117},{"$f":"_xlfn.AGGREGATE(5,6,J$33:J$61)","v":3757.1990000000001}]
[null,null,"First quartile",null,{"$f":"_xlfn.AGGREGATE(16,6,E$33:E$61,0.25)","v":201.89783908397342},null,{"$f":"_xlfn.AGGREGATE(16,6,G$33:G$61,0.25)","v":1699.0494589799982},{"$f":"_xlfn.AGGREGATE(16,6,H$33:H$61,0.25)","v":2641.253080399998},{"$f":"_xlfn.AGGREGATE(16,6,I$33:I$61,0.25)","v":4117.2},{"$f":"_xlfn.AGGREGATE(16,6,J$33:J$61,0.25)","v":4242.1207378215586}]
[null,null,"Median",null,{"$f":"_xlfn.AGGREGATE(16,6,E$33:E$61,0.5)","v":213.95545541513695},null,{"$f":"_xlfn.AGGREGATE(16,6,G$33:G$61,0.5)","v":1738.9766246399995},{"$f":"_xlfn.AGGREGATE(16,6,H$33:H$61,0.5)","v":2922.8535068200013},{"$f":"_xlfn.AGGREGATE(16,6,I$33:I$61,0.5)","v":4117.2},{"$f":"_xlfn.AGGREGATE(16,6,J$33:J$61,0.5)","v":4404.0353053142317}]
[null,null,"Third quartile",null,{"$f":"_xlfn.AGGREGATE(16,6,E$33:E$61,0.75)","v":218.53751763122162},null,{"$f":"_xlfn.AGGREGATE(16,6,G$33:G$61,0.75)","v":1782.4972550399975},{"$f":"_xlfn.AGGREGATE(16,6,H$33:H$61,0.75)","v":3283.1536577033307},{"$f":"_xlfn.AGGREGATE(16,6,I$33:I$61,0.75)","v":4117.2},{"$f":"_xlfn.AGGREGATE(16,6,J$33:J$61,0.75)","v":4678.8627609365631}]
[null,null,"Max",null,{"$f":"_xlfn.AGGREGATE(4,6,E$33:E$61)","v":240.62138710117534},null,{"$f":"_xlfn.AGGREGATE(4,6,G$33:G$61)","v":1814.9242226399974},{"$f":"_xlfn.AGGREGATE(4,6,H$33:H$61)","v":3914.4857524666741},{"$f":"_xlfn.AGGREGATE(4,6,I$33:I$61)","v":4117.2},{"$f":"_xlfn.AGGREGATE(4,6,J$33:J$61)","v":5288.7578237093758}]
[null,null,{"$f":"sel_region_name","v":"Morocco"},null,{"$f":"SUMIF($B$33:$B$61,sel_region_code,E$33:E$61)","v":0},null,{"$f":"SUMIF($B$33:$B$61,sel_region_code,G$33:G$61)","v":0},{"$f":"SUMIF($B$33:$B$61,sel_region_code,H$33:H$61)","v":0},{"$f":"SUMIF($B$33:$B$61,sel_region_code,I$33:I$61)","v":0},{"$f":"SUMIF($B$33:$B$61,sel_region_code,J$33:J$61)","v":0}]
[]
[]
[null,null,null,null,{"$f":"E32","v":"Total costs (USD/MWh H2)"},null,{"$f":"G25","v":"PV tilted"},{"$f":"H25","v":"Wind Onshore"},{"$f":"I25","v":"Wind Offshore"},{"$f":"J25","v":"Wind-PV-Hybrid"}]
[null,null,"Min",null,{"$f":"E65","v":183.84062645545259},null,{"$f":"G65","v":1603},{"$f":"H65","v":2069.9309253700035},4117,3757.1990000000001]
[null,null,"Q1-Min",null,{"$f":"E66-E65","v":18.05721262852083},null,{"$f":"G66-G65","v":96.049458979998235},{"$f":"H66-H65","v":571.32215502999452},0.1999999999998181,484.92173782155851]
[null,null,"Q2-Q1",null,{"$f":"E67-E66","v":12.05761633116353},null,{"$f":"G67-G66","v":39.927165660001265},281.60042642000326,0,161.91456749267309]
[null,null,"Q3-Q2",null,{"$f":"E68-E67","v":4.5820622160846654},null,{"$f":"G68-G67","v":43.520630399998026},360.30015088332948,0,274.8274556223314]
[null,null,"Max-Q3",null,22.083869469953726,null,32.426967599999898,631.33209476334332,0,609.89506277281271]
[null,null,{"$f":"sel_region_name","v":"Morocco"},null,{"$f":"SUMIF($B$33:$B$61,sel_region_code,E$33:E$61)","v":0},null,{"$f":"SUMIF($B$33:$B$61,sel_region_code,G$33:G$61)","v":0},{"$f":"SUMIF($B$33:$B$61,sel_region_code,H$33:H$61)","v":0},{"$f":"SUMIF($B$33:$B$61,sel_region_code,I$33:I$61)","v":0},{"$f":"SUMIF($B$33:$B$61,sel_region_code,J$33:J$61)","v":0}]

{"sheet":"b_context_demand","index":28,"n_rows":229,"n_cols":15,"rows_kept":229,"cut":false,"hidden":false,"merged":[[227,10,228,10],[200,3,200,4],[199,3,199,4],[198,2,199,2],[4,1,9,7],[13,3,13,12],[15,1,19,1],[17,2,19,2],[20,9,21,9],[20,10,21,10],[22,2,23,2],[22,3,23,3],[22,4,23,4],[22,7,23,7],[20,1,23,1],[20,2,21,2],[20,3,21,3],[20,4,21,4],[20,6,21,6],[20,7,21,7],[44,1,46,1],[45,2,46,2],[47,1,50,1],[47,2,48,2],[49,2,50,2],[51,2,55,2],[22,12,23,12],[24,1,31,1],[24,2,28,2],[32,1,35,1],[32,2,35,2],[42,1,43,1],[42,2,43,2],[51,1,54,1],[55,1,56,1],[42,9,43,9],[42,8,43,8],[69,1,71,1],[70,2,71,2],[72,2,79,2],[81,1,82,1],[81,2,82,2],[57,1,58,1],[57,2,58,2],[59,1,60,1],[64,1,65,1],[64,2,65,2],[66,1,68,1],[67,2,68,2],[72,1,76,1],[77,1,80,1],[94,1,95,1],[96,2,100,2],[102,1,103,1],[102,2,103,2],[104,1,105,1],[83,1,85,1],[84,2,85,2],[89,1,90,1],[89,2,90,2],[91,1,93,1],[92,2,93,2],[96,1,98,1],[121,1,123,1],[121,2,123,2],[124,1,125,1],[132,1,133,1],[132,2,133,2],[134,1,136,1],[135,2,136,2],[109,1,110,1],[109,2,110,2],[111,1,113,1],[112,2,113,2],[114,1,115,1],[116,2,119,2],[119,1,120,1],[116,1,118,1],[146,1,147,1],[151,1,152,1],[151,2,152,2],[153,1,155,1],[154,2,155,2],[156,1,159,1],[156,2,157,2],[158,2,159,2],[137,1,139,1],[138,2,139,2],[140,2,141,2],[143,1,145,1],[143,2,145,2],[140,1,141,1],[15,14,16,14],[17,14,19,14],[32,14,35,14],[220,2,222,2],[224,1,226,1],[224,2,226,2],[227,1,228,1],[212,1,213,1],[212,2,213,2],[214,1,216,1],[215,2,216,2],[217,1,219,1],[218,2,219,2],[195,1,197,1],[196,2,197,2],[201,1,202,1],[201,2,202,2],[203,1,204,1],[183,1,184,1],[183,2,184,2],[185,1,186,1],[190,1,191,1],[190,2,191,2],[192,1,194,1],[222,1,223,1],[199,1,200,1],[64,9,65,9],[89,9,90,9],[109,9,110,9],[132,9,133,9],[151,9,152,9],[170,9,171,9],[190,9,191,9],[212,9,213,9],[220,1,221,1],[193,2,194,2],[172,1,174,1],[173,2,174,2],[175,1,178,1],[175,2,177,2],[179,2,181,2],[162,1,164,1],[162,2,164,2],[165,1,166,1],[170,1,171,1],[170,2,171,2],[179,1,180,1],[181,1,182,1]]}
[]
[null,"CONTEXT INFORMATION ON ALL PTX BOA DEMAND COUNTRIES"]
[]
[null,"Get supplementary information on all PTX BOA demand countries"]
[null,"This sheet provides you with additional interformation relevant for the import of H2 and derivatives to all PTX BOA demand countries.\nFor each supply country, you find a detailed country profile further downwards on this sheet. \n\nWe cover the following aspects: country-specific projected H2 demand, targeted sectors for H2 deployment, H2 relevant strategies and responsible authorities,\ncertification and regulatory frameworks as well as country-specific characteristics as specified in the demand countries' H2 strategies. "]
[]
[]
[]
[]
[]
[]
[]
[]
[null,null,null,"PTX BOA IMPORT COUNTRIES"]
[null,null,null,"Netherlands","Spain","France","Germany","EU","Japan","South Korea","China","India","USA",null,"Data  sources"]
[null,"IMPORT DEMAND","Projected H2 demand [2030]","n/a","n/a","n/a","2,8-3,3 Mt","20 Mt","3 Mt","2 Mt","35 Mt","11 Mt","10 Mt",null,"Data as mentioned in national H2 strategies. Further info in country-specific profiles."]
[null,null,"Projected H2 import \ndemand [2030]","n/a","n/a","n/a","1,9-2,2 Mt","10 Mt","n/a","n/a","n/a","n/a","only low share"]
[null,null,"Main targeted sectors ","Industry","Industry",null,"Industry","Industry","Transport","Buildings","Industry","n/a","Transport",null,"Data derived from World Energy Council (2020)"]
[null,null,null,"Transport","Transport",null,"Transport","Transport","Buildings","Transport","Transport"]
[null,null,null,null,"Export",null,null,null,"Power","Power","Power"]
[null,"H2 STRATEGY","Current strategies \n(follow link for further information)","Government Strategy on Hydrogen","Hydrogen Roadmap","(1) Hydrogen deployment plan for the energy transition","The National Hydrogen Strategy","Hydrogen strategy for a climate neutral Europe","(1) Strategic Roadmap for Hydrogen and Fuel Cell ","Hydrogen Economy Roadmap","Medium and Long-Term Plan for the Development of Hydrogen Energy Industry (2021-2035)","(1) Green Hydrogen / Green Ammonia Policy [first part] ","(1) DOE Energy Hydrogen Program Plan "]
[null,null,null,null,null,"(2) National strategy for the development of decarbonised and renewable hydrogen in France",null,null,"(2) Green Growth Strategy ",null,null,"(2) National Hydrogen Mission","(2) DOE National Clean Hydrogen Strategy and Roadmap"]
[null,null,"Responsible authorities \n(follow link for further information)","Ministry of Economic Affairs and Climate Policy","Ministry of Environment [Ministry for the Ecological Transition and Demographic Change] (MITERD)","Ministry of Economy, Finance and Industrial and Digital Sovereignty","Federal Ministry for Economic Affairs and Energy (BMWK)","European Commission","Ministry of Economy, Trade and Industry of Japan (METI)","Ministry of Trade, Industry and Economy (MOTIE) ","National Energy Administration & National Development and Reform Commission","Ministry of Power","U.S. Department of Energy (DOE)"]
[null,null,null,null,null,"Ministry of the Ecological / Energy Transition ","Committee of state secretaries for hydrogen [various ministries] supported by a National Hydrogen Council",null,null,"Hydrogen Economy Promotion Committee ","China Hydrogen Alliance","Ministry of New and Renewable Energy"]
[null,"CERTIFICATION","Certification / regulation frameworks\n","EU Taxonomy","EU Taxonomy","EU Taxonomy","EU Taxonomy","EU Taxonomy","IPHE ","IPHE","IPHE","IPHE","IPHE"]
[null,null,null,"RED II","RED II","RED II","RED II","RED II","China Hydrogen Alliance Standard ","Renewable Portfolio Standards & Renewable Energy certificate scheme","China Hydrogen Alliance Standard ",null,"California's Low Carbon Fuel Standard (LCFS)"]
[null,null,null,"CertifHy","CertifHy","CertifHy","CertifHy","CertifHy","Aichi Prefecture's H2 certification scheme ",null,null,null,"Clean Hydrogen Production Standard (Draft)"]
[null,null,null,"IPHE","ISCC PLUS","IPHE","IPHE","IPHE"]
[null,null,null,"ISCC PLUS",null,"ISCC PLUS","ISCC PLUS","ISCC PLUS"]
[null,null,"(for further information click here)",null,null,null,"dena Biogas-Register"]
[null,null,null,null,null,null,"TÜV Süd CM | Green Hydrogen (+)"]
[null,null,null,null,null,null,"H2Global"]
[null,"COUNTRY CHARACTERISTICS","Country-specific H2 facts \n(as mentioned in H2 strategies) ","Port of Rotterdam functions as a central import hub to the European market","Both importing and exporting country for H2 & derivatives","Updated national Hydrogen Strategy in preparation ","High reliance on H2 imports projected","Large domestic electrolyser capacities foreseen by 2030 (40 GW) ","High reliance on H2 imports projected","Imports of blue and green H2 from overseas planned from 2030 on ","Both importing and exporting country for H2 & derivatives","Both importing and exporting country for H2 & derivatives","Both importing and exporting country for H2 & derivatives",null,"Information as mentioned in national H2 strategies. Complemented by various sources, if required. For further info, please see country-specifc profiles."]
[null,null,null,"Home of the first declared H2 valley in Europe ","Considerable domestic installed electrolyser capacity foreseen by 2030 (4 GW)","Part of project to build the first European offshore pipeline for green H2 (H2Med) from Spain","LNG import infrastructure in development \n(8 terminals in development)","Half of the hydrogen demand covered with domestic capacities by 2030 (only 10 Mt imports)","Released the first H2 strategy worldwide in 2017  (Basic Hydrogen Strategy)","Goals for share of green H2 in 2030 at 50% & in 2040 at 70%","High cost-competitiveness in alkaline electrolysis technology","Considerable domestic production capacities of green H2 foreseen by 2030 (5 Mt p/a)","Goal to become largely independent from H2 imports by 2030-2035"]
[null,null,null,null,"Plans to connect to France & Germany through Europe's first offshore green H2 pipeline (H2Med)",null,"H2Global tenerding scheme (contracts for difference)?","Large-scale H2 pipeline infrastructure planned (European H2 Backbone, 53000 km planned by 2040)","Well-developed LNG import infrastructure \n(45 terminals operating)",null,"Well-developed LNG import infrastructure \n(32 terminals operating)","80% of H2 demand expected to be green by 2050","Large-scale H2 pipeline infrastructure already in place (~ 2.600 km) "]
[null,null,null,null,null,null,null,null,null,null,null,null,"Extensive LNG export infrastructure \n(36 terminals operating)"]
[]
[]
[]
[]
[null,"EU | PTX BOA IMPORT COUNTRIES"]
[]
[null,null,"FRANCE",null,null,null,null,null,null,"Information as of 20/04/2023"]
[]
[null,"DEMAND","Projected H2 demand [2030]","n/a"]
[null,null,"Targeted sectors ","Main","-",null,null,null,null,null,"https://www.weltenergierat.de/publikationen/studien/international-hydrogen-strategies/"]
[null,null,null,"Secondary ","Industry | Transport ",null,null,null,null,null,"https://www.weltenergierat.de/publikationen/studien/international-hydrogen-strategies/"]
[null,"H2 STRATEGY","Relevant strategies / documents ","June 2018","Hydrogen deployment plan for the energy transition"]
[null,null,null,"September 2020","National strategy for the development of decarbonised and renewable hydrogen in France"]
[null,null,"Responsible authorities","Ministry of Economy, Finance and Industrial and Digital Sovereignty"]
[null,null,null,"Ministry of the Ecological / Energy Transition "]
[null,"CERTIFICATION","Certification / regulation frameworks","EU Taxonomy","Governmental regulation which defines a list of economic activities classified as environmentally sustainable in the EU"]
[null,null,null,"RED II","Governmental regulation that specifies for hydrogen and its derivatives what criteria have to be fulfilled to qualify as renewable in European legislation"]
[null,null,null,"CertifHy","Voluntary standard that provides certificates for two different types of H2: low-carbon H2 and green H2"]
[null,null,null,"IPHE","Harmonized methodology (across IPHE member states) that defines how to calculate GHG emissions for hydrogen production"]
[null,"(further information)",null,"ISCC PLUS"]
[null,null,"Perspectives or additional information","GHG emission assessments of PTX products according to rules on international level ISO 14064, 14069",null,null,null,null,null,null,"Ministère de la transition écologique et solidaire (2020): Plan de déploiement de l'hydrogène pour la transition énergétique, p. 13"]
[null,"TRADE CHARACTERISTICS","Specificities in H2 trade (as mentioned in H2 strategies) ","Updated national hydrogen strategy in preparation",null,null,null,null,null,null,"https://www.icis.com/explore/resources/news/2022/12/08/10833939/hydrogen-policy-france-to-have-new-national-hydrogen-strategy-by-the-end-of-h1-2023/"]
[null,null,null,"Involved in the appraisal & construction of an Important Project of Common European Interest (IPCEI)",null,null,null,null,null,null,"Pompili & Le Maire (2018): Stratégie nationale pour le développement de l'hydrogène décarboné en France, p. 8"]
[null,"INFRASTRUCTURE","LNG import terminals","4 operating | 3 in development",null,null,null,null,null,null,"https://globalenergymonitor.org/projects/global-gas-infrastructure-tracker/tracker/"]
[null,null,"H2 pipeline projects ","Involved in plans for Europe's first offshore green H2-only pipeline (H2Med) which will connect Spain to Central Europe via France (Marseille)",null,null,null,null,null,null,"https://www.dw.com/en/germany-to-join-mediterranean-hydrogen-pipeline-project/a-64483071"]
[]
[]
[]
[null,null,"GERMANY",null,null,null,null,null,null,"Information as of 20/04/2023"]
[]
[null,"DEMAND","Projected H2 demand [2030]","2.8 - 3.3 Mt","thereof 1.9 - 2.2 Mt demand for imported H2",null,null,null,null,null,"BMWi (2020): The National Hydrogen Strategy, p. 5"]
[null,null,"Targeted sectors ","Main","Industry | Transport",null,null,null,null,null,"https://www.weltenergierat.de/publikationen/studien/international-hydrogen-strategies/"]
[null,null,null,"Secondary ","Buildings | Power",null,null,null,null,null,"https://www.weltenergierat.de/publikationen/studien/international-hydrogen-strategies/"]
[null,"H2 STRATEGY","Relevant strategies / documents ","June 2020","The National Hydrogen Strategy"]
[null,null,"Responsible authorities","Federal Ministry for Economic Affairs and Energy (BMWi, now BMWK)"]
[null,null,null,"Committee of state secretaries for hydrogen [various ministries] supported by a National Hydrogen Council "]
[null,"CERTIFICATION","Certification / regulation frameworks","EU taxonomy",null,"Governmental regulation which defines a list of economic activities classified as environmentally sustainable in the EU"]
[null,null,null,"RED II",null,"Governmental regulation that specifies for hydrogen and its derivatives what criteria have to be fulfilled to qualify as renewable in European legislation"]
[null,null,null,"CertifHy",null,"Voluntary standard that provides certificates for two different types of H2: low-carbon H2 and green H2"]
[null,null,null,"IPHE",null,"Harmonized methodology (across IPHE member states) that defines how to calculate GHG emissions for hydrogen production"]
[null,null,null,"ISCC PLUS",null,"Established standard in Europe to certify sustainable bio-feedstocks; it has expanded its portfolio and now also covers the certification of green hydrogen"]
[null,"(further information)",null,"dena Biogas-Register",null,"Voluntary standard (mass balance system) in Germany, primarily for biogas;  also covers synthetic hydrogen or synthetic methane under the term biogas/biomethane"]
[null,null,null,"TÜV Süd CM | Green Hydrogen (+)",null,"Voluntary certification standard based on German and European legislation; establishes two different certificates: Green Hydrogen and Green Hydrogen+"]
[null,null,null,"H2Global",null,"A form of state procurement of H2 based on a contracts for difference (CfD)-approach; for now, implemented by the German federal state"]
[null,null,"Perspectives or additional information"]
[null,"TRADE CHARACTERISTICS","Specificities in H2 trade (as mentioned in H2 strategies) ","High reliance on imports: only 14 TWh out of 90-110 TWh H2 total demand in 2030 will be covered by domestic capacities",null,null,null,null,null,null,"BMWi (2020): The National Hydrogen Strategy"]
[null,null,null,"State-funded tendering scheme H2Global in place: aims to foster the market uptake of H2 through contracts for difference which offer long-term contracts for producers.",null,null,null,null,null,null,"https://www.h2-global.de/"]
[null,"INFRASTRUCTURE","LNG import terminals","8 in development",null,null,null,null,null,null,"https://globalenergymonitor.org/projects/global-gas-infrastructure-tracker/tracker/"]
[null,null,"H2 pipeline projects ","Plans to build Europe's first offshore green H2-only pipeline (H2Med) which will connect to Spain and Portugal via France",null,null,null,null,null,null,"https://www.dw.com/en/germany-to-join-mediterranean-hydrogen-pipeline-project/a-64483071"]
[null,null,null,"Plans to build a hydrogen pipeline connecting to Norway ",null,null,null,null,null,null,"https://edition.cnn.com/2023/01/05/energy/germany-norway-hydrogen-pipeline/index.html"]
[]
[]
[]
[null,null,"NETHERLANDS",null,null,null,null,null,null,"Information as of 20/04/2023"]
[]
[null,"DEMAND","Projected H2 demand [2030]","n/a"]
[null,null,"Targeted sectors ","Main","Industry | Transport",null,null,null,null,null,"https://www.weltenergierat.de/publikationen/studien/international-hydrogen-strategies/"]
[null,null,null,"Secondary ","Buildings | Power",null,null,null,null,null,"https://www.weltenergierat.de/publikationen/studien/international-hydrogen-strategies/"]
[null,"H2 STRATEGY","Relevant strategies / documents ","April 2020","Government Strategy on Hydrogen"]
[null,null,"Responsible authorities","Ministry of Economic Affairs and Climate Policy"]
[null,"CERTIFICATION","Certification / regulation frameworks","EU Taxonomy","Governmental regulation which defines a list of economic activities classified as environmentally sustainable in the EU"]
[null,null,null,"RED II","Governmental regulation that specifies for hydrogen and its derivatives what criteria have to be fulfilled to qualify as renewable in European legislation"]
[null,null,null,"CertifHy","Voluntary standard that provides certificates for two different types of H2: low-carbon H2 and green H2"]
[null,"(further information)",null,"IPHE","Harmonized methodology (across IPHE member states) that defines how to calculate GHG emissions for hydrogen production"]
[null,null,null,"ISCC PLUS","Established standard in Europe to certify sustainable bio-feedstocks; it has expanded its portfolio and now also covers the certification of green hydrogen"]
[null,null,"Perspectives or additional information"]
[null,"TRADE CHARACTERISTICS","Specificities in H2 trade (as mentioned in H2 strategies) ","Port of Rotterdam functions as a central import hub to the European market",null,null,null,null,null,null,"Ministry of Economic Affairs and Climate Policy (2020): Government Strategy on Hydrogen, p. 4"]
[null,null,null,"Home of the first declared H2 valley in Europe",null,null,null,null,null,null,"Ministry of Economic Affairs and Climate Policy (2020): Government Strategy on Hydrogen, p. 4"]
[null,"INFRASTRUCTURE","LNG import terminals","1 operating | 3 in development",null,null,null,null,null,null,"https://globalenergymonitor.org/projects/global-gas-infrastructure-tracker/tracker/"]
[null,null,"H2 pipeline projects ","State-owned company Gasunie announced plans to build a national hydrogen network to be completed by 2027 with an initial capacity of 10 GW.",null,null,null,null,null,null,"https://www.pv-magazine.com/2022/06/30/netherlands-to-build-10-gw-national-network-for-green-hydrogen/"]
[]
[]
[]
[null,null,"SPAIN",null,null,null,null,null,null,"Information as of 20/04/2023"]
[]
[null,"DEMAND","Projected H2 demand [2030]","n/a"]
[null,null,"Targeted sectors ","Main","Industry | Transport | Export",null,null,null,null,null,"https://www.weltenergierat.de/publikationen/studien/international-hydrogen-strategies/"]
[null,null,null,"Secondary ","Power",null,null,null,null,null,"https://www.weltenergierat.de/publikationen/studien/international-hydrogen-strategies/"]
[null,"H2 STRATEGY","Relevant strategies / documents ","October 2020","Hydrogen Roadmap"]
[null,null,"Responsible authorities","Ministry of Environment [Ministry for the Ecological Transition and Demographic Change] (MITERD)"]
[null,"CERTIFICATION","Certification / regulation frameworks","EU taxonomy","Governmental regulation which defines a list of economic activities classified as environmentally sustainable in the EU"]
[null,null,null,"RED II","Governmental regulation that specifies for hydrogen and its derivatives what criteria have to be fulfilled to qualify as renewable in European legislation"]
[null,null,null,"CertifHy","Voluntary standard that provides certificates for two different types of H2: low-carbon H2 and green H2"]
[null,"(further information)",null,"ISCC PLUS","Established standard in Europe to certify sustainable bio-feedstocks; it has expanded its portfolio and now also covers the certification of green hydrogen"]
[null,null,"Perspectives or additional information","Idea of creating a \"Green Hydrogen for Spain\" label that could be used commercially, safeguarding its competitiveness in international markets "]
[null,"TRADE CHARACTERISTICS","Specificities in H2 trade (as mentioned in H2 strategies) ","Both importing and exporting country for H2 and derivatives",null,null,null,null,null,null,"MITERD (2020): Hoja de la ruta del hidrógeno: Una apuesta por el hidrógeno renovable."]
[null,null,null,"Considerable domestic installed electrolyser capacity of 4 GW foreseen by 2030 ",null,null,null,null,null,null,"MITERD (2020): Hoja de la ruta del hidrógeno: Una apuesta por el hidrógeno renovable, p. 5"]
[null,null,null,"High dynamism of domestic projects: 28 Spanish H2 projects submitted to the first call of the strategic instrument Important Project of Common European Interest (IPCEI)",null,null,null,null,null,"(What is a IPCEI?)","MITERD (2020): Hoja de la ruta del hidrógeno: Una apuesta por el hidrógeno renovable, p. 57"]
[null,"INFRASTRUCTURE","LNG import terminals","6 operating | 1 in development",null,null,null,null,null,null,"https://globalenergymonitor.org/projects/global-gas-infrastructure-tracker/tracker/"]
[null,null,"H2 pipeline projects ","Plans to connect to France & Germany and export domestically produced hydrogen through Europe's first offshore green-H2 only pipeline (H2Med) ",null,null,null,null,null,null,"https://www.dw.com/en/germany-to-join-mediterranean-hydrogen-pipeline-project/a-64483071"]
[]
[]
[]
[]
[null,"ASIA | PTX BOA IMPORT COUNTRIES "]
[]
[null,null,"CHINA",null,null,null,null,null,null,"Information as of 20/04/2023"]
[]
[null,"DEMAND","Projected H2 demand [2030]","35 Mt",null,null,null,null,null,null,"Nakano (2022): China Unveils ist First Long-Term Hydrogen Plan (https://www.csis.org/analysis/china-unveils-its-first-long-term-hydrogen-plan)"]
[null,null,"Targeted sectors ","Main","Industry | Transport | Power",null,null,null,null,null,"https://www.weltenergierat.de/publikationen/studien/international-hydrogen-strategies/"]
[null,null,null,"Secondary ","Industry ",null,null,null,null,null,"https://www.weltenergierat.de/publikationen/studien/international-hydrogen-strategies/"]
[null,"H2 STRATEGY","Relevant strategies / documents ","March 2022","Medium and Long-Term Plan for the Development of Hydrogen Energy Industry (2021-2035)"]
[null,null,"Responsible authorities","National Energy Administration & National Development and Reform Commission"]
[null,null,null,"China Hydrogen Alliance"]
[null,"CERTIFICATION","Certification / regulation frameworks","IPHE",null,"Harmonized methodology (across IPHE member states) that defines how to calculate GHG emissions for hydrogen production"]
[null,null,null,"China Hydrogen Alliance Standard",null,"Voluntary standard established in China which aims to assess the life cycle emissions of three categories of H2: low-carbon, clean and renewable"]
[null,"(further information)","Perspectives or additional information","-"]
[null,"TRADE CHARACTERISTICS","Specificities in H2 trade as mentioned in H2 strategies ","Both importing and exporting country for H2 & derivatives",null,null,null,null,null,null,"https://www.adelphi.de/en/publication/hydrogen-factsheet-%E2%80%93-china "]
[null,null,null,"Leading position on the global market for alkaline electrolysis technology (currently the cheapest and most deployed technology for electrolysis).",null,null,null,null,null,null,"https://www.adelphi.de/en/publication/hydrogen-factsheet-%E2%80%93-china, p. 25"]
[null,null,null,"Domestically, China is (at the time of writing) the world's largest producer of hydrogen, with an annual production of about 33 mio tonnes of H2 ",null,null,null,null,null,null,"https://www.adelphi.de/en/publication/hydrogen-factsheet-%E2%80%93-china, p. 6"]
[null,"INFRASTRUCTURE","LNG import terminals","32 operating | 61 in development",null,null,null,null,null,null,"https://globalenergymonitor.org/projects/global-gas-infrastructure-tracker/tracker/ "]
[null,null,"H2 pipeline projects ","Plans to build a regional H2 pipeline network in Lingang, a free-trade zone south of Shanghai that is intended to be the centre of city's hydrogen activities",null,null,null,null,null,null,"https://www.rechargenews.com/energy-transition/shanghai-goes-all-in-on-hydrogen-with-plans-for-h2-port-pipelines-and-trading-platform/2-1-1288034 "]
[]
[]
[]
[null,null,"INDIA",null,null,null,null,null,null,"Information as of 20/04/2023"]
[]
[null,"DEMAND","Projected H2 demand [2030]","11 Mt",null,null,null,null,null,null,"Ministry of New & Renewable Energy (2022): National Hydrogen Mission, p. 6"]
[null,null,"Targeted sectors ","Main","n/a",null,null,null,null,null,"https://www.weltenergierat.de/publikationen/studien/international-hydrogen-strategies/"]
[null,null,null,"Secondary ","n/a",null,null,null,null,null,"https://www.weltenergierat.de/publikationen/studien/international-hydrogen-strategies/"]
[null,"H2 STRATEGY","Relevant strategies / documents ","February 2022","Green Hydrogen / Green Ammonia Policy [first part] "]
[null,null,null,"March 2022","National Hydrogen Mission"]
[null,null,"Responsible authorities","Ministry of Power"]
[null,null,null,"Ministry of New and Renewable Energy"]
[null,"CERTIFICATION","Certification / regulation frameworks","IPHE","Harmonized methodology (across IPHE member states) that defines how to calculate GHG emissions for hydrogen production"]
[null,"(further information)","Perspectives or additional information","-"]
[null,"TRADE CHARACTERISTICS","Specificities in H2 trade as mentioned in H2 strategies ","Both importing and exporting country for H2 & derivatives",null,null,null,null,null,null,"Ministry of New & Renewable Energy (2022): National Hydrogen Mission, p. 6"]
[null,null,null,"Considerable domestic production capacities of green H2 (5 Mt per year) foreseen by 2030 ",null,null,null,null,null,null,"Ministry of New & Renewable Energy (2022): National Hydrogen Mission, p. 6"]
[null,null,null,"80% of the national H2 demand is expected to be green in nature by 2050",null,null,null,null,null,null,"Ministry of New & Renewable Energy (2022): National Hydrogen Mission, p. 6"]
[null,"INFRASTRUCTURE","LNG import terminals","8 operating | 12 in development ",null,null,null,null,null,null,"https://globalenergymonitor.org/projects/global-gas-infrastructure-tracker/tracker/ "]
[null,null,"H2 pipeline projects ","Initial plans to integrate blended hydrogen in gas network assets of Pipeline Infrastructure Limited (PIL) ",null,null,null,null,null,null,"https://www.dnv.com/news/dnv-and-pipeline-infrastructure-limited-pil-collaborate-to-integrate-hydrogen-into-pil-gas-network-assets-in-india-227964 "]
[]
[]
[]
[null,null,"JAPAN",null,null,null,null,null,null,"Information as of 20/04/2023"]
[]
[null,"DEMAND","Projected H2 demand [2030]","3 Mt",null,null,null,null,null,null,"METI (2020): Green Growth Strategy"]
[null,null,"Targeted sectors ","Main","Transport | Buildings | Power",null,null,null,null,null,"https://www.weltenergierat.de/publikationen/studien/international-hydrogen-strategies/"]
[null,null,null,"Secondary ","Industry ",null,null,null,null,null,"https://www.weltenergierat.de/publikationen/studien/international-hydrogen-strategies/"]
[null,"H2 STRATEGY","Relevant strategies / documents ","December 2017","Basic Hydrogen Strategy "]
[null,null,null,"March 2019","Strategic Roadmap for Hydrogen and Fuel Cell "]
[null,null,null,"June 2021","Green Growth Strategy "]
[null,null,"Responsible authorities","Ministry of Economy, Trade and Industry of Japan (METI)"]
[null,"CERTIFICATION","Certification / regulation frameworks","IPHE",null,"Harmonized methodology (across IPHE member states) that defines how to calculate GHG emissions for hydrogen production."]
[null,null,null,"China Hydrogen Alliance Standard",null,"Voluntary standard established in China which aims to assess the life cycle emissions of three categories of H2: low-carbon, clean and renewable"]
[null,"(further information)",null,"Aichi Prefecture's H2 certifiation scheme",null,"Voluntary standard established and valid only in the regional Aichi Prefecture (Japan; where the headquarter of Toyota is located)"]
[null,null,"Perspectives or additional information","Establishing a certification scheme for low-carbon H2 and ammonia discussed by responsible authorities as a future issue",null,null,null,null,null,null,"Adelphi (2022): Hydrogen Factsheet - Japan, p. 21"]
[null,"TRADE CHARACTERISTICS","Specificities in H2 trade as mentioned in H2 strategies ","Basic Hydrogen Strategy released in April 2017 was the first H2 strategy worldwide",null,null,null,null,null,null,"Adelphi (2022): Hydrogen Factsheet - Japan, p. 11"]
[null,null,null,"High reliance on H2 imports; aims to establish a large-scale international supply chain by 2030",null,null,null,null,null,null,"Clifford Chance (2022): Focus on hydrogen: Japan's energy strategy for hydrogen and ammonia, p. 4"]
[null,"INFRASTRUCTURE","LNG import terminals","45 operating",null,null,null,null,null,null,"https://globalenergymonitor.org/projects/global-gas-infrastructure-tracker/tracker/ "]
[null,null,"H2 pipeline projects ","Announced research and development project to study safety measures for the mass transportation of hydrogen through existing pipelines in the country",null,null,null,null,null,null,"https://hydrogentechworld.com/japans-ntt-to-study-hydrogen-transportation-through-existing-pipelines "]
[]
[]
[]
[null,null,"SOUTH KOREA",null,null,null,null,null,null,"Information as of 20/04/2023"]
[]
[null,"DEMAND","Projected H2 demand [2030]","2 Mt",null,null,null,null,null,null,"MOTIE (2019): Hydrogen Economy Roadmap, p. 10"]
[null,null,"Targeted sectors ","Main","Buildings | Transport | Power",null,null,null,null,null,"https://www.weltenergierat.de/publikationen/studien/international-hydrogen-strategies/"]
[null,null,null,"Secondary ","n/a",null,null,null,null,null,"https://www.weltenergierat.de/publikationen/studien/international-hydrogen-strategies/"]
[null,"H2 STRATEGY","Relevant strategies / documents ","January 2019","Hydrogen Economy Roadmap"]
[null,null,"Responsible authorities","Ministry of Trade, Industry and Economy (MOTIE) "]
[null,null,null,"Hydrogen Economy Promotion Committee "]
[null,"CERTIFICATION","Certification / regulation frameworks","IPHE",null,"Harmonized methodology (across IPHE member states) that defines how to calculate GHG emissions for hydrogen production."]
[null,"(further information)",null,"Renewable Portfolio Standards & Renewable Energy certificate scheme",null,"Legal/political programme in South Korea which requires large power companies to steadily increase their renewable energy mix in total power generation"]
[null,null,"Perspectives or additional information","-"]
[null,"TRADE CHARACTERISTICS","Specificities in H2 trade as mentioned in H2 strategies ","Imports of blue and green H2 from overseas planned from 2030 on ",null,null,null,null,null,null,"MOTIE (2019): Hydrogen Economy Roadmap, p. 10"]
[null,null,null,"Goals for share of green H2 by 2030 at 50% and by 2040 at 70%",null,null,null,null,null,null,"MOTIE (2019): Hydrogen Economy Roadmap, p. 10"]
[null,"INFRASTRUCTURE","LNG import terminals","7 operating | 2 in development",null,null,null,null,null,null,"https://globalenergymonitor.org/projects/global-gas-infrastructure-tracker/tracker/ "]
[null,null,"H2 pipeline projects ","Aims to first establish hydrogen pipelines near \nsources of by-product hydrogen\nproduction (cities Ulsan, Yeosu, and Daesan); by 2030 plans to provide a nationwide pipeline network",null,null,null,null,null,null,"MOTIE (2019): Hydrogen Economy Roadmap, p. 11"]
[]
[]
[]
[]
[]
[null,"NORTH AMERICA | PTX BOA IMPORT COUNTRIES "]
[]
[null,null,"USA",null,null,null,null,null,null,"Information as of 20/04/2023"]
[]
[null,"DEMAND","Projected H2 demand [2030]","10 Mt","thereof only limited share of demand for imported H2 ",null,null,null,null,null,"DoE (2022): National Clean hydrogen Strategy and Roadmap, p. 86"]
[null,null,"Targeted sectors ","Main","Transport",null,null,null,null,null,"https://www.weltenergierat.de/publikationen/studien/international-hydrogen-strategies/"]
[null,null,null,"Secondary ","Buildings | Power | Industry",null,null,null,null,null,"https://www.weltenergierat.de/publikationen/studien/international-hydrogen-strategies/"]
[null,"H2 STRATEGY","Relevant strategies / documents ","November 2020","DOE Energy Hydrogen Program Plan "]
[null,null,"Responsible authorities","September 2022 [draft]","DOE National Clean Hydrogen Strategy and Roadmap"]
[null,null,null,"U.S. Department of Energy (DoE)"]
[null,"CERTIFICATION","Certification / regulation frameworks","IPHE ",null,"Harmonized methodology (across IPHE member states) that defines how to calculate GHG emissions for hydrogen production."]
[null,null,null,"California's Low Carbon Fuel Standard (LCFS)",null,"Incentive scheme for suppliers of transport fuel (including hydrogen) that qualifies low-carbon in California, USA."]
[null,"(further information)",null,"Clean Hydrogen Production Standard (draft)",null,"Proposed standard to define what counts as low-carbon hydrogen prodution in the United States."]
[null,null,"Perspectives or additional information","Release of the Clean Hydrogen Production Standard as a nationwide framework",null,null,null,null,null,null,"DoE (2022): National Clean hydrogen Strategy and Roadmap"]
[null,"TRADE CHARACTERISTICS","Specificities in H2 trade as mentioned in H2 strategies ","Both importing and exporting country for H2 and derivatives",null,null,null,null,null,null,"DoE (2022): National Clean hydrogen Strategy and Roadmap"]
[null,null,null,"Goal to become largely independent from H2 imports by 2030-2035",null,null,null,null,null,null,"DoE (2022): National Clean hydrogen Strategy and Roadmap, p. 86"]
[null,null,null,"Extensive LNG export infrastructure throughout the country, with a focus on south-eastern coastal regions",null,null,null,null,null,null,"https://globalenergymonitor.org/projects/global-gas-infrastructure-tracker/tracker/ "]
[null,"INFRASTRUCTURE","LNG import terminals","6 in operation | 2 in development",null,null,null,null,null,null,"https://globalenergymonitor.org/projects/global-gas-infrastructure-tracker/tracker/ "]
[null,null,"H2 pipeline projects ","Large-scale H2 pipeline infrastructure already in place throughout the country (~2600 km]"]

{"sheet":"b_context_supply","index":29,"n_rows":57,"n_cols":11,"rows_kept":57,"cut":false,"hidden":false,"merged":[[51,10,52,10],[52,2,52,3],[4,1,9,6],[13,10,14,10],[13,8,14,8],[13,4,13,5],[13,6,13,7],[15,6,15,7],[16,1,49,1],[51,1,51,3],[13,2,15,3]]}
[]
[null,"CONTEXT INFORMATION ON ALL PTX BOA SUPPLY COUNTRIES"]
[]
[null,"Get supplementary information on all PTX BOA supply countries"]
[null,"This sheet provides you with an overview of additional interformation relevant for the production of H2 and derivatives \nacross all PTX BOA supply countries.\n\nWe cover the following aspects: country-specific renewable energy technical potential (based on different data sources), \nLNG export and import infrastructure, CCS potentials, availability of a H2 strategy and wholesale electricity prices.  "]
[]
[]
[]
[]
[]
[]
[]
[]
[null,null,null,null,"RE TECHNICAL POTENTIAL",null,"INFRASTRUCTURE",null,"CARBON CAPTURE & STORAGE (CCS)   POTENTIALS","ELECTRICITY PRICES","H2 STRATEGY \nIs there already an H2 strategy existing | in planning?"]
[null,null,null,null,"[TWh/a]","[TWh/a]","LNG export terminals","LNG import terminal",null,"[USD/MWh]\n(total electricity price industry)"]
[null,null,null,null,"data from EWI \n[Institute of energy economics at the University of Cologne]","data from Fraunhofer  PtX Atlas \n(based on PEM electrolysis) ","status: in development or operating",null,"data from Global CCS Institute (2018, 2019)","data from IEA (2022)","yes | no | not yet"]
[null,"PTX BOA SUPPLY COUNTRIES","DZA","Algeria",102687.76054053067,843.7,15,0,"low","n/a","not yet"]
[null,null,"ARG","Argentina",28245.512550017502,18302.7,1,2,"low","n/a","not yet"]
[null,null,"AUS","Australia",514994.41648738808,21712.600000000002,26,5,"high","n/a","yes "]
[null,null,"BRA","Brazil",86869.842891781722,786.5,0,19,"very high","n/a","yes"]
[null,null,"CHL","Chile",15833.086291840766,3749.2000000000003,0,3,"n/a",159.50488000000001,"yes"]
[null,null,"CHN","China",323213.29386247089,9.1,0,93,"very high","n/a","yes "]
[null,null,"CRI","Costa Rica",0,"no potential",0,0,"n/a",214.441971,"not yet"]
[null,null,"COL","Colombia",3982.9900478920035,332.8,0,3,"low","n/a","yes"]
[null,null,"DNK","Denmark",2097.1640005327972,"no analysis ",0,0,"n/a",80.084551000000005,"yes"]
[null,null,"EGY","Egypt",123653.93022264706,6136,3,1,"low","n/a","not yet"]
[null,null,"IND","India",34654.604480881593,27.3,0,20,"medium","n/a","yes"]
[null,null,"IDN","Indonesia",13804.443716258276,61.1,13,15,"n/a","n/a","no "]
[null,null,"JOR","Jordan",0,23.400000000000002,0,1,"low","n/a","not yet"]
[null,null,"KAZ","Kazakhstan",176309.43933751195,2165.8000000000002,0,0,"high","n/a","no"]
[null,null,"KEN","Kenya",50841.820075831536,36.4,0,1,"n/a","n/a","not yet"]
[null,null,"MRT","Mauritania",27966.147643374599,1397.5,6,0,"n/a","n/a","not yet "]
[null,null,"MEX","Mexico",143817.34529670601,4170.4000000000005,15,4,"high","n/a","no"]
[null,null,"MAR","Morocco",42147.136742444643,761.80000000000007,1,2,"n/a","n/a","yes"]
[null,null,"NAM","Namibia",99636.883371308024,"no potential",0,0,"low","n/a","no"]
[null,null,"NOR","Norway",5256.6903781170731,"no analysis ",6,2,"medium",59.952992000000002,"yes"]
[null,null,"PER","Peru",29291.660047894893,1887.6000000000001,1,0,"n/a","n/a","not yet"]
[null,null,"PRT","Portugal",7559.5180291508068,"no analysis ",0,1,"n/a",129.84832399999999,"yes"]
[null,null,"RUS","Russia",192895.02833307866,15445.300000000001,23,1,"medium","n/a","yes"]
[null,null,"SAU","Saudi Arabia",151622.74756959747,3477.5,0,0,"high","n/a","not yet"]
[null,null,"ZAF","South Africa",53182.742412075226,1115.4000000000001,0,3,"high","n/a","yes"]
[null,null,"ESP","Spain",35393.799778929817,"no analysis ",0,7,"n/a",122.662285,"yes"]
[null,null,"SWE","Sweden",2375.3911489586781,"no analysis ",0,2,"low",70.495289999999997,"yes"]
[null,null,"THA","Thailand",6534.4815097404735,"no potential",0,7,"low","n/a","no"]
[null,null,"TUN","Tunisia",17975.881159055345,500.5,0,0,"n/a","n/a","not yet"]
[null,null,"ARE","United Arab Emirates",1234.3228021367959,842.4,5,2,"medium","n/a","not yet"]
[null,null,"UKR","Ukraine",9001.3629494330653,16.900000000000002,0,0,"medium","n/a","yes"]
[null,null,"URY","Uruguay",378.04871500147641,1280.5,0,0,"n/a","n/a","yes"]
[null,null,"USA","United States",544110.99319185445,41844.400000000001,124,8,"very high",68.122753000000003,"yes"]
[null,null,"VNM","Vietnam",8842.3521510548053,"no potential",0,20,"medium","n/a","not yet"]
[]
[null,"Sources & Links    ",null,null,"\nEWI (2021) | Wasserstoff-Kosten-Tool ","\nFraunhofer IEE (2022) | Global PtX Atlas ","\nGlobal Energy Monitor (2022) | LNG Terminal Statistics","\nGlobal Energy Monitor (2022) | LNG Terminal Statistics","\nGlobal CCS Institute (2019) | Global Status of CCS 2019","\nIEA (2022)| OECD country statistic on energy prices and taxes by energy source in the main consuming sectors","\nLinks lead to additional information in web articles or, if available, to documents of H2 strategies."]
[null,null,null,null,"Theoretical potentials. Exclusion of certain areas where capacity factors of RE technologies are too low. For further information on the assumptions go to ",null,null,null,"Global CCS Institute (2018) | Storage Resources Database "]
[null,null,null,null,"EWI's tool documentation, page 11."]
[]
[null,null,null,null,"* Due to data availiability, data points for these countries have been calculated derived from the"]
[null,null,null,null,"EWI Global PtX Cost Tool (2023) "]

{"sheet":"b_context_certification","index":30,"n_rows":83,"n_cols":30,"rows_kept":83,"cut":false,"hidden":false,"merged":[[82,2,82,5],[76,2,76,5],[77,2,77,5],[78,2,78,5],[79,2,79,5],[80,2,80,5],[81,2,81,5],[70,2,70,5],[71,2,71,5],[72,2,72,5],[73,2,73,5],[74,2,74,5],[75,2,75,5],[64,2,64,5],[65,2,65,5],[66,2,66,5],[67,2,67,5],[68,2,68,5],[69,2,69,5],[54,29,54,30],[60,2,60,5],[61,2,61,5],[62,2,62,5],[63,2,63,5],[59,1,59,5],[53,3,53,4],[53,9,53,10],[53,12,53,16],[53,18,53,22],[53,29,53,30],[54,3,54,4],[54,7,54,8],[54,9,54,10],[54,12,54,16],[54,18,54,22],[52,3,52,4],[52,7,52,8],[52,9,52,10],[52,12,52,16],[52,18,52,22],[52,29,52,30],[51,3,51,4],[51,7,51,8],[51,9,51,10],[51,12,51,16],[51,18,51,22],[51,29,51,30],[50,3,50,4],[50,7,50,8],[50,9,50,10],[50,12,50,16],[50,18,50,22],[50,29,50,30],[49,3,49,4],[49,7,49,8],[49,9,49,10],[49,12,49,16],[49,18,49,22],[49,29,49,30],[47,29,47,30],[48,3,48,4],[48,7,48,8],[48,9,48,10],[48,12,48,16],[48,18,48,22],[48,29,48,30],[46,1,46,28],[47,3,47,4],[47,7,47,8],[47,9,47,10],[47,12,47,16],[47,18,47,22],[43,29,43,30],[42,3,42,4],[42,7,42,8],[42,9,42,10],[42,12,42,16],[42,18,42,22],[42,29,42,30],[45,3,45,4],[45,7,45,8],[45,9,45,10],[45,12,45,16],[45,18,45,22],[45,29,45,30],[44,3,44,4],[44,7,44,8],[44,9,44,10],[44,12,44,16],[44,18,44,22],[44,29,44,30],[37,1,38,1],[37,2,38,2],[37,3,38,4],[37,5,38,5],[43,3,43,4],[43,7,43,8],[43,9,43,10],[43,12,43,16],[43,18,43,22],[40,29,40,30],[41,3,41,4],[41,7,41,8],[41,9,41,10],[41,12,41,16],[41,18,41,22],[41,29,41,30],[39,1,39,28],[40,3,40,4],[40,7,40,8],[40,9,40,10],[40,12,40,16],[40,18,40,22],[26,10,26,11],[26,15,26,16],[26,17,26,18],[37,11,37,28],[37,29,39,30],[38,11,38,16],[38,17,38,22],[38,23,38,24],[38,25,38,26],[38,27,38,28],[19,17,19,18],[20,10,20,11],[20,15,20,16],[20,17,20,18],[30,3,31,3],[30,10,30,11],[30,15,30,16],[30,17,30,18],[31,10,31,11],[31,15,31,16],[31,17,31,18],[27,10,27,11],[27,15,27,16],[27,17,27,18],[28,10,28,11],[28,15,28,16],[28,17,28,18],[24,3,28,3],[24,10,24,11],[24,15,24,16],[24,17,24,18],[25,10,25,11],[25,15,25,16],[25,17,25,18],[12,4,12,13],[12,15,12,21],[13,4,13,7],[13,8,13,12],[13,15,14,16],[13,17,14,17],[13,19,14,19],[13,20,14,20],[13,21,14,21],[14,1,14,3],[14,10,14,11],[15,3,16,3],[15,10,15,11],[15,15,15,16],[15,17,15,18],[16,10,16,11],[16,15,16,16],[37,6,38,6],[37,7,38,8],[37,9,38,10],[16,17,16,18],[21,10,21,11],[21,15,21,16],[21,17,21,18],[22,10,22,11],[22,15,22,16],[22,17,22,18],[18,3,22,3],[18,10,18,11],[18,15,18,16],[18,17,18,18],[19,10,19,11],[19,15,19,16]]}
[]
[null,"CONTEXT INFORMATION ON CERTIFICATION | H2 REGULATIONS & STANDARDS"]
[]
[null,"Get supplementary information on H2-relevant certification frameworks "]
[null,"This sheet provides you with an overview of current governmental regulations and voluntary standards for H2 products. "]
[null,"Further downwards on the sheet, we provide you with even more detailed information on each framework. "]
[]
[]
[]
[]
[]
[]
[null,null,null,null,"What regulations and/or standards are relevant for which PTX BOA demand countries?",null,null,null,null,null,null,null,null,null,null,"Are the following criteria considered in this scheme?"]
[null,null,null,null,"EU  ",null,null,null,"Asia",null,null,null,null,"North America",null,"GHG Emissions",null,"Electricity supply",null,"Water use","Biodiversity & \nLand use","Other (e.g. socio-economic aspects)"]
[null,"REGULATION OR STANDARD     ",null,null,"France","Germany","Netherlands","Spain","China","India","Japan",null,"South Korea","USA"]
[null,"Voluntary standard","IPHE","Global focus","yes","yes","yes","no","yes","yes","yes",null,"yes","yes",null,"n/a",null,"no",null,"no","no","no"]
[null,"Voluntary standard","Green hydrogen standard",null,"yes","yes","yes","yes","yes","yes","yes",null,"yes","yes",null,"yes",null,"yes",null,"yes","yes","yes"]
[]
[null,"Governmental regulation","EU Taxonomy","European focus","yes","yes","yes","yes","no","no","no",null,"no","no",null,"yes",null,"no",null,"yes","yes","no"]
[null,"Governmental regulation","RED-II",null,"yes","yes","yes","yes","no","no","no",null,"no","no",null,"yes",null,"yes",null,"no","no","no"]
[null,"Voluntary standard","CertifHy",null,"yes","yes","yes","yes","no","no","no",null,"no","no",null,"yes",null,"yes",null,"no","no","no"]
[null,"Voluntary standard","TÜV SÜD Standard CMS 70 | Green Hydrogen(+)",null,"yes","yes","yes","yes","no","no","no",null,"no","no",null,"yes",null,"yes",null,"no","no","no"]
[null,"Voluntary standard","ISCC PLUS",null,"yes","yes","yes","yes","no","no","no",null,"no","no",null,"yes",null,"yes",null,"no","no","no"]
[]
[null,"Governmental regulation (draft)","Clean Hydrogen Production Standard (CHPS) ","National focus","no","no","no","no","no","no","no",null,"no","yes",null,"yes",null,"no",null,"no","no","no"]
[null,"Governmental regulation (draft)","South Korea Renewable Portfolio Standards (RPS) & Renewable Energy certificate scheme",null,"no","no","no","no","no","no","no",null,"yes","no",null,"n/a",null,"yes",null,"no","no","no"]
[null,"Voluntary standard","China Hydrogen Alliance Standard & \nEvaluation of Low Carbon H2, Clean H2 & RE-H2",null,"no","no","no","no","yes","no","yes",null,"no","no",null,"yes",null,"yes",null,"no","no","no"]
[null,"Governmental funding program","H2Global",null,"no","yes","no","no","no","no","no",null,"no","no",null,"yes",null,"yes",null,"yes","yes","yes"]
[null,"Voluntary standard","dena Biogas-Register",null,"no","yes","no","no","no","no","no",null,"no","no",null,"no",null,"yes",null,"no","no","yes"]
[]
[null,"Governmental regulation","California's Low Carbon Fuel Standard (LCFS)","Regional focus","no","no","no","no","no","no","no",null,"no","yes",null,"yes",null,"yes",null,"no","(yes)","no"]
[null,"Voluntary standard","Aichi Prefecture's H2 certification scheme ",null,"no","no","no","no","no","no","yes",null,"no","no",null,"yes",null,"yes",null,"no","no","no"]
[]
[]
[]
[]
[]
[null,"REGULATION/ STANDARD","WHAT IS THIS REGULATION/STANDARD ABOUT? (What is the incentive for supply countries to make use of this regulation/standard?)","(HOW) DOES IT RELATE TO OTHER REGULATIONS/ STANDARDS?",null,"GEO-GRAPHIC SCOPE","PTX BOA DEMAND COUNTRIES ","LIFECYCLE SCOPE ",null,"LABEL",null,"ARE THE FOLLOWING CRITERIA CONSIDERED? IF YES, WHAT REQUIREMENTS HAVE TO BE FULFILLED?",null,null,null,null,null,null,null,null,null,null,null,null,null,null,null,null,null,"BIBLIOGRAPHICAL SOURCES "]
[null,null,null,null,null,null,null,null,null,null,null,"GHG EMISSIONS",null,null,null,null,null,"ELECTRICITY SUPPLY",null,null,null,null,null,"WATER",null,"BIODIVERSITY & LAND-USE",null,"OTHER "]
[null,"GOVERNMENTAL REGULATIONS | Set a benchmark & requirements that all hydrogen production in their jurisdiction must follow."]
[null,"California's Low Carbon Fuel Standard (LCFS) ","Governmental regulation | \nThe LCFS is an incentive scheme for suppliers of transport fuel (including hydrogen) that qualifies low-carbon. It sets up emission intensity benchmarks for different H2 production ways. Meeting this standard earns fuel producers LCFS credits which can be traded by fuel suppliers to meet given benchmarks on average for each annual compliance period. As of now, the standard only applies to production and trading of transportation fuels in the US state of California. ","In the US state of California, this standard is additional to the Clean Hydrogen Production Standard (which is still in draft). In contrast to the latter, the LCFS only applies to hydrogen for transportation fuels and is an active regulatory standard.  ",null,"US State of California","USA","well-to-wheel\n\n(including upstream emissions from feedstock production, transport, indirect emissions from land use change)",null,"Green H2\nLow-carbon H2",null,"yes","Green hydrogen threshold (from RES-e): \n10.51 gCO2eq/MJ\n\nLow-carbon hydrogen threshold (from steam-methane reduction (SMR) + CCS): not yet included. \n\nCompressed hydrogen from SMR threshold:\n117.67 gCO2eq/MJ\n\nLiquified hydrogen from SMR threshold:\n150.94 gCO2eq/MJ.",null,null,null,null,"yes","For green hydrogen: \nElectricity needs to be sourced from RE resources (excluding biomass, biomethane, geothermal, and municipal solid waste). It can be either directly supplied or indirectly through the electricity grid. In this case, requirements of additionality of RES-e production, temporal and geographical correlation of production and consumption apply.",null,null,null,null,"no","For production pathways including CCS:\nEx-ante hydrological on-site evaluation has to be conducted before a CCS project is implemented. Among others, geologic and topographic maps as well as information on local basins, freshwater aquifers, water wells, and springs must be provided. ","yes","The standard (indirectly) addresses land use by including emissions from upstream land use changes in the assessment of a product's GHG intensity. Beyond that, there are no requirements related to land use or biodiversity. ","no","-","California Air Resources Board (n.d.);\nHeinemann et al. (2022);\nIRENA & RMI (2023);\nSailer et al. (2022)"]
[null,"Clean Hydrogen Production Standard (draft)","Governmental regulation (draft) | \nThe CHPS is a proposed standard to define what counts as low-carbon hydrogen prodution in the United States. It is not a regulatory standard as such; however hydrogen producers and off-takers operating in the United States may aim to achieve the standard as it qualifies for a large majority of hydrogen-related subsidies or grants provided by the government (e.g. the Inflation Reduction Act). The CHPS is currently undergoing a review process and will be finalized in a next step. ","This standard is not related to other regulations and/or standards discussed here.",null,"USA","USA","well-to-gate",null,"Low-carbon H2",null,"yes","The standard sets a target of 4.0 kgCO2eq/kgH2 for lifecycle greenhouse emissions associated with hydrogen production. This equals to  approximately 37.04 gCO2eq/MJ. ",null,null,null,null,"no","-",null,null,null,null,"no","-","no","-","no","-","IRENA & RMI (2023);\nU.S. Department of Energy (DoE) (2022)"]
[null,"EU Taxonomy","Governmental regulation |\nDefines a list of economic activities classified as environmentally sustainable in the EU. This list is not yet the EU working definition for blue/green hydrogen, but rather a base standard for the latter. For European off-takers it is important to comply with this list in order to reduce costs for CO2 emissions and to meet tightening climate targets. This list is relevant for supply countries as they might want to produce in a way that classifies the activities of their off-takers using H2 and derivatives as sustainable.","This regulation aims to ensure compliance with the requirements of RED II. Additional to this, it sets criteria regarding water use and biodiversity. ",null,"European countries","FRA, DEU, NLD, ESP","well-to-gate \n\n(including upstream emissions from energy input, excluding emissions from production of capital goods)",null,"Green H2",null,"yes","In accordance with the requirements as set in the  RED II, where GHG reductions must be 70% compared to the fossil comparator. This indicates  a threshold of 28.2 gCO2eq/MJ. ",null,null,null,null,"no","-",null,null,null,null,"yes","Environmental Impact Assessment\n(EIA) required and risks identified in this EIA must be addressed.","yes","EIA required (also needs to adress biodiversity issues); for biodiversity-sensitive areas (such as\nNatura 2000) the investor must carry out appropriate assessments and plans to mitigate potential risks.","no","-","European Commission (2021);\nHeinemann et al. (2023);\nIRENA & RMI (2023)\n"]
[null,"H2 Global","Government-funded market instrument |\nH2Global is a form of state procurement of H2 implemented by the German federal state. Aims to foster the market uptake of H2 through contracts for difference (CfD). Producers who want to qualify for this tendering program have to fulfill a set of criteria which also include environmental and social sustainability dimensions. The benefits of taking part in this program are long-term off-taking contracts and, thus, high investment security for H2 producers.","Criteria to qualify for H2Global contracts are based on the requirements as stated in RED II. Additionally, H2Global defines further-reaching criteria going beyond GHG emissions and energy supply. ",null,"Germany","FRA, DEU, NLD, ESP","well-to-wheel ",null,"-",null,"yes","Based on the RED II, where GHG reductions must be 70% compared to the fossil comparator. This indicates a threshold of  28.2 gCO2eq/MJ. ",null,null,null,null,"yes","Criteria based on RED II. Electricity supply must be renewable, i.e. from RE sources other than biomass; conditions of renewability of power purchase, additionality of RES-e sources, as well as temporal an geographical correlation must be met.",null,null,null,null,"yes","In arid regions the use of fossil waterbodies as well as drinking water is excluded. In case of sea water desalination, the handling of brine disposal is to be reported. Performing a an Environmental impact assessment is suggested, but not required.","yes","Protected areas are excluded for project development, ecological damages need to be excluded and only sustainable biomass can be used. Performing an Environmental impact assessment is suggested, but not required.","yes","Social and work standards | Minimum requirement is to met the International Labour Organisation (ILO) standards. Those standards must also be respected by subcontractors.\n\nLocal participation | Participation of local people (especially women) and companies must be proven. Performing a Social impact assessment is suggested, but not required.\n\nCO2 source | It is not allowed to use CO2 from fossil fuelled power plants for H2 derivative production. \n\nWaste and pollutant management | Must be conform with a suitable UN environmental standard (ISO 14001). ","H2Global (n.d.); \nHeinemann et al. (2022); "]
[null,"RED II \nRenewable Energy Directive ","Governmental regulation |\nThe RED II sets the target for RE consumption in the EU by 2030. For hydrogen and its derivatives, it defines what criteria have to be fulfilled to qualify as renewable in European legislation. These criteria are provided in a Delegated Act (Article 27 & 28). For European off-takers it is important to meet these criteria in order to reduce costs for CO2 emissions and to meet tightening climate targets.","The criteria defined in the RED II serve as basis for further voluntary standards. Some/most of these aim to establish verification systems for RED II requirements. ",null,"European countries","FRA, DEU, NLD, ESP","well-to-wheel",null,"Green H2",null,"yes","Hydrogen production must be conform with “[...] the life cycle GHG emissions savings requirement of 70% relative to a fossil fuel comparator of 94g CO2e/MJ [...]”. This implies a threshold for hydrogen production of 28.2 gCO2eq/MJ. ",null,null,null,null,"yes","Electricity supply must be renewable, i.e. from RE sources other than biomass. For electricity to qualify as renewable, one of the four options must further be met: \n\n1) No connection of the producing plant to the grid or grid connection only with smart metering in place, showing that no electricity is used from the grid.\n\n2) The producing installation sources from a grid zone where the average share of RES-e exceeded 90% in the previous calendar year. The production of H2 is limited by grid RES-e share;\n\n3) The producing installation sources from a grid zone with a GHG emission intensity of < 18 gCO2eq/MJ. Fuel producers must conclude PPAs for the amount of RES-e used  and conditions of temporal and geographical correlation apply.  \n\n4) If the producing installation sources from a grid with average RES-e shares (not case 2 or 3), conditions of additionality as well as temporal an geographical correlation must be met. \n\n",null,null,null,null,"no",null,"no","-","no","-","European Commission (2023);\nIRENA & RMI (2023);\nHeinemann et al. (2022); \nMatthes et al. (2021) "]
[null,"Renewable Portfolio Standards, Renewable Energy certificate scheme ","Governmental regulation |\nThe RPS is a legal/political programme already in place in South Korea since 2012. It requires large power companies to steadily increase their renewable energy mix in total power generation in period of 2012-2024. The South Korea Hydrogen Roadmap proposed the extension of the RPS scheme on hydrogen supply. A draft of such a certification scheme is aimed to be released in 2023.","This standard is not related to other regulations and/or standards discussed here.",null,"South Korea","KOR","n/a",null,"-",null,"n/a","-",null,null,null,null,"yes","The RPS requires energy producers to provide a minimum proportion (10% in 2022) of their energy portfolio from new and renewable energy sources.  This can be covered either by own RE installations or the purchase of certificates. Currently, this requirement applies only to producers with power generating facilities over 500 MW installed capacity.",null,null,null,null,"no","-","no","-","no","-","IEA (2020); \nIRENA & RMI (2023);\nSailer et al. (2022)"]
[null,"VOLUNTARY MARKET MECHANISMS | Are optional. Partly, voluntary certification schemes will be used to show compliance with regulatory requirements."]
[null,"Aichi Prefecture's H2 certification scheme","Certification scheme |\nEstablished and valid only in the regional Aichi Prefecture (where the headquarter of Toyota is located). Mainly, this scheme covers H2 activities associated with Toyota's production sites in the prefecture.","This scheme is not related to other regulations and/or standards discussed here.",null,"Aichi Prefecture region in Japan","JPN (regional)","well-to-wheel",null,"Low-carbon H2",null,"yes","Direct emissions from H2 production are to attain a level of 0 gCO2e/MJ. This can be achieved by using existing certificate systems for CO2 compensation: 1) either green electricity certification in case of use of grid electricity; 2) J-Credit for emissions reductions in CO2 sinks. ",null,null,null,null,"yes","The scheme requires the use of renewable energy sources for H2 production. Eligible sources are solar, wind and hydro for water electrolysis or biomass for steam-reforming. ",null,null,null,null,"no","-","no","-","no","-","Kimura (2021); \nSailer et al. (2022); \nSieler et al. (2021)"]
[null,"CertifHy","Certification scheme |\nProvides certificates for two different types of H2 (Low-carbon H2 | Green H2). Criteria for these certificates are will be aligned with the RED II. Compyling with these criteria is  important for European off-takers who will be want to proof the low-carbon profile of their H2 products used. Currently, CertifHy operates on a European level, but, perspectively, wants to expand to a global standard.","This scheme aims to ensure compliance with the requirements of RED II. It seeks to be recognised as a voluntary verification system according to the REDII by the European Commission.\n",null,"European countries (plans to expand globally)","FRA, DEU, NLD, ESP","well-to-gate \n(including upstream related emissions)",null,"Green H2,  \nLow-carbon H2\n",null,"yes","GHG emission must be below 60% of 91 g CO2eq/MJ (both for low-carbon and green hydrogen), i.e. 36.4 gCO2eq/MJ. This equals a value of 4.4 kgCO2eq/kgH2.",null,null,null,null,"yes","Low-carbon H2: eligble electricity supply sources include nuclear and grid sourced electricity (without further specifications). Accepted production pathways are electrolysis, fossil steam-methane reforming / autothermal-reforming with CCS. \n\nGreen H2: electricity supply must be renewable, i.e. from RE sources other than biomass; energy sourcing must be proven through cancelled Guarantees of Origin (GOs) and has to meet the requirement of additionality (see RED II). ",null,null,null,null,"no","-","no","-","no","-","DertifHy (2022);\nIRENA & RMI (2023);\nHeinemann et al. (2022); \nMatthes et al. (2021)"]
[null,"China Hydrogen Alliance Standard & Evaluation of Low Carbon H2, Clean H2 & RE-H2","Certification scheme | \nFirst H2 standard established in China with three categories of H2: low-carbon, clean and renewable. Its main purpose is to assess the life cycle emissions of H2. Could likely become the basis for a future official government standard in China. Complying with this standard (and future versions) is important for Chinese off-takers who want proof of the carbon-intensity of their H2 products employed.","This scheme is not related to other regulations and/or standards discussed here.",null,"China","CHN, JPN","well-to-gate \n(including upstream activties, such as coal & CH4 production and transport)",null,"Renewable H2,\nClean H2,\nLow-carbon H2\n\n",null,"yes","Low carbon H2 threshold: 121 gCO2eq/MJ.\n\nClean H2 and Green H2 threshold: 40.8 gCO2eq/MJ (65% emissions reduction to a coal gasifiaction (with CCS) baseline). This equals a value of 4.9 kgCO2eq/kgH2.",null,null,null,null,"yes","Low-carbon H2 does not have any constraints neither on the production pathway nor on eligible sources of electricity supply. \n\nClean H2 may be produced from electrolysis or fossil SMR/ATR with CCS. For electrolysis, also grid electricity (without further specifications) may be used as long as the emission intensity of its use complies with the targeted GHG threshold.\n\nGreen hydrogen requires to be produced by  biogas SMR or by electrolysis based on RE (including wind, solar, hydro, biomass, geothermal, and ocean energy); hydrogen producers can either use RE directly supplied to the electrolysis plants or purchase recognised RE certificates. ",null,null,null,null,"no","-","no","-","no","-","Heinemann et al. (2022);\nLi et al. (2022); \nLiu et al. (2021)"]
[null,"dena Biogasregister","Certification scheme |\nThe Biogas Register Germany is a mass balance system, primarily for biogas. It also covers synthetic hydrogen or synthetic methane under the term biogas/biomethane. Compliance with  defined criteria of this standard means that hydrogen/methane can be considered biogasas defined by the German energy act (EnWG). For off-takers, this is important as proof of such compliance may result in advantages especially when feeding hydrogen/ methane into the natural gas grid. ","This scheme will adopt the requirements for electricity supply as defined in the RED II. It serves as an independent, additional voluntary certification scheme especially in the field of biogas.",null,"Germany","DEU","well-to-wheel ",null,"Biogas",null,"no","-",null,null,null,null,"yes","Electricity supply for electrolysis must be met by at least > 80% by RES-e. These include wind, solar, aerothermal, geothermal & hydrothermal energy, marine energy, hydropower, biomass, landfill gas, sewage gas and biogas.\n\nFurther requirements for electricity supply are based on the RED II: conditions of renewability of power purchase, additionality of RES-e sources, as well as temporal an geographical correlation must be met. ",null,null,null,null,"no","-","no","-","yes","Proof required that the carbon dioxide or carbon monoxide used for methanisation was not produced exclusively for this purpose.","dena (2019); \ndena (2021);\nSailer et al. (2022)"]
[null,"Green hydrogen Standard","Certification scheme |\nGlobal standard developed by the Green Hydrogen Organisation. Producers complying with this standard will receive the label GH2 Green Hydrogen. This label indicates ambitious sustainability characteristics for the given hydrogen product (notably in the area of GHG emissions and socio-economic standards). Proof of such additional product quality may become increasingly relevant as global climate and sustainability ambitions intensify.","With some modifications, the standard applies the IPHE methodology for GHG accounting.",null,"Global","all","well-to-gate \n\n(including upstream related emissions)",null,"Green H2",null,"yes","The standard requires that green H2 projects operate at <= 1 kg CO2eq/kgH2. This equals to approximately 8,3 g CO2eq/MJ. ",null,null,null,null,"yes","Hydrogen has to be produced through electrolysis powered with (near) 100% RES-e. Eligible sources for RES-e supply are: hydro, wind, solar, geothermal, tidal, other ocean energy sources. Per year, up to 5% of the energy supply may be covered by electricity from any source, i.e. also other than the eligible RES-e sources. \n\nIf electricity is sourced from the grid, proof of additionality, temporal and geographical correlation of production and electricity supply is not required, except if imposed by regulatory bodies in producing country (e.g. European countries). Further, electricity (if) taken from the grid counts as fully renewable if provided by PPAs.\n\nThe standard requires project operators to provide an evaluation of electricity supply and its impact on the (regional) energy market. ",null,null,null,null,"yes","The standard requires project operators to publish a publicly accessible evalution of the project including water rights and potential impacts on water resources (e.g., water consumption, pollution). Where desalination takes place, the standard requires proof that desalination plants do not have a negative effect on water sources.  ","yes","The standard requires project operators to publish a publicly accessible evaluation of the project including property rights, land use and biodiversity issues (with appropriate attention to sensitive and protected areas). An Environmental Impact Assessment is expected, but not required.","yes","The standard requires proof of consultation, community outreach and engagement before and during the project's lifetime. This proof needs to be documented in a publicly accessible evaluation of the project and its impacts. Further, it requires an assessment of potential public health issues and human and labour rights impacts as well as the projects contribution towards SDGs. ","Green Hydrogen Organisation (2022);\nIRENA & RMI (2023)"]
[null,"IPHE\nInternational Partnership for Hydrogen and Fuel Cells in the Economy","GHG emissions accounting methodology |\nThe IPHE is an international collaborative initiative working towards a global ramp-up of hydrogen. It provides a methodology that defines how to calculate GHG emissions for hydrogen production. Many states that are likely to play a major role in the future H2 market support and employ this methodology. This method is of interest to hydrogen producers as it allows to evalute the GHG footprint of their product(s) according to a globally recognised metric.","This methodology is not related to other regulations and/or standards discussed here. ",null,"Global","FRA, DEU, NLD, CHN, IND, JPN, KOR, USA  ","well-to-gate",null,"-",null,"n/a","This standard only provides a methodology for determining the GHG emissions of H2 products, not a specified threshold. ",null,null,null,null,"no","-",null,null,null,null,"no","-","no","-","no","-","IPHE (2021); IPHE (2022);\nHeinemann et al. (2022);\nIRENA & RMI (2023) "]
[null,"ISCC Plus \nInternational Sustainability and Carbon Certification","Certification scheme |\nISCC Plus is linked to ISCC EU which is an established scheme  to certify sustainable bio-feedstocks in European countries. ISCC has expanded its portfolio and now also covers the certification of green hydrogen in the ISCC Plus standard for biofuels, recycled carbon fuels and RFNBOs. If recognised as a voluntary certification scheme by the European Commission, it allows H2 producers to demonstrate certain product characteristics, in compliance with RED II requirements. ","This scheme follows the thresholds and requirements for GHG emissions, energy supply and feedstocks set by RED II. It seeks to be recognised as a voluntary verification system according to the REDII by the European Commission.",null,"European countries","FRA, DEU, NLD, ESP","weel-to-wheel",null,"Green H2",null,"yes","Based on the RED II, where GHG reductions must be 70% compared to the fossil comparator. This indicates a threshold of  28.2 gCO2eq/MJ. ",null,null,null,null,"yes","Criteria based on RED II. Electricity supply must be renewable, i.e. from RE sources other than biomass; conditions of renewability of power purchase, additionality of RES-e sources, as well as temporal an geographical correlation must be met. ",null,null,null,null,"no","-","no","-","no","-","ISCC (2020); ISCC (2021); \nSailer et al. (2022)"]
[null,"TÜV Süd CMS 70 |  \nGreen Hydrogen \nGreen Hydrogen+","Certification scheme |\nVoluntary certification scheme based on German and European legislation. The certificate has two boundaries for GHG accounting: well-to-gate (label: Green H2; use of RFNBOs in transport) and well-to-wheel (label: Green H2+; use of RFNBOs for all other activities). The Green H2+ label thus requires proof of GHG emissions below a set threshold within a broader assessment scope. In general, the scheme allows H2 producers to demonstrate specific product characteristics, in alignment with RED II requirements. ","The standard applies CertifHy thresholds for emissions and will  ensure alignment with the RED II. It aims to be recognised as an independent voluntary certification scheme.",null,"European countries (plans to expand globally)","FRA, DEU, NLD, ESP","Green H2\nwell-to-gate (including upstream related emissions)\n\nGreen H2+\nwell-to-wheel ",null,"Green H2,\nGreen H2+",null,"yes","Based on the RED II, where GHG reductions must be 70% compared to the fossil comparator. This indicates a threshold of  28.2 gCO2eq/MJ. Certified hydrogen according to this threshold may only be used in the mobility sector, for material use or as a storage medium. \n\nAdditional for Green H2+ \nFor (additional) use in steam, heat or cold applications, a minimum GHG emission reduction of at least 70% as compared to to the reference value for biofuels as provided in RED II. This corresponds to a GHG value of  24 gCO2eq/MJ.",null,null,null,null,"yes","\nBoth labels (Green H2 & Green H2+) use criteria based on RED II. Electricity supply must be renewable, i.e. from RE sources other than biomass. Eligble electricity supply is either on-site generation, RES-e being supplied by direct line, or documented by cancelled Guarantees of Origin (GOs).  \n\nAdditional requirements for Green H2+\nRES-e production must be unsupported (i.e. does not receive financial support) OR, if it is supported, a competitive mechanism (auctioning) has to be applied. Furthermore, criteria are defined with\nrespect to additionality and to temporal and geographical correlation of electricity generation.",null,null,null,null,"no","-","no","-","no","-","Heinemann et al. (2022);\nIRENA & RMI (2023);\nSailer et al. (2022);\nTÜV SÜD Zertifizierungsstelle \"Klima und Energie\" (2021)"]
[]
[]
[]
[]
[null,"LITERATURE ",null,null,null,null,"LINKS (as of 20/04/2023)"]
[null,"California Air Resources Board (n.d.)","California Air Resources Board (n.d.): Low Carbon Fuel Standard. About. ",null,null,null,"https://ww2.arb.ca.gov/our-work/programs/low-carbon-fuel-standard/about"]
[null,"CertifHy (2022)","CertifHy (2022): CertifHy Scheme.",null,null,null,"https://www.certifhy.eu/wp-content/uploads/2022/06/CertifHy_Scheme-Document_V2.0_2022-04-28_endorsed_CLEAN.pdf "]
[null,"dena (2022)","dena (Germany Energy Agency) (2022): Biogasregister Deutschland - Kriterienkatalog (Stand 20.12.2022). ",null,null,null,"https://www.biogasregister.de/fileadmin/biogasregister/Dokumente/Kriterienkatalog/20221220_Kritierienkatalog_dena_Biogasregister.pdf "]
[null,"dena (2019)","dena (German Energy Agency) (2019): Biogasregister Deutschland: Allgemeine Grundsätze zur Funktionsweise. Gültig ab 01.08.2019.",null,null,null,"https://www.biogasregister.de/fileadmin/biogasregister/Dokumente/Vertraege_und_Gebuehrenordnung/20190628_Biogasregister_Grundsaetze_1_.pdf "]
[null,"European Commission (2023)","European Commission (2023): Commission Delegated Regulation (EU) of 10.02.2023 supplementing Directive (EU) 2018/2001 of the European Parliament and of the Council by establishing a Union methodology setting out detailed rules for the production of renewable liquid and gaseous transport fuels of non-biological origin.",null,null,null,"blob:https://ec.europa.eu/8c7a29dd-4d8a-46d0-8898-e8d17bcaa65f"]
[null,"European Commission (2021)","European Commission (2021): ANNEX to the Commission Delegated Regulation (EU) supplementing Regulation (EU) 2020/852 of the European Parliament and of the Council by establishing the technical screening criteria for determining the conditions under which an economic activity qualifies as contributing substantially to climate change mitigation or climate change adaptation and for determining whether that economic activity causes no significant harm to any of the other environmental objectives. ",null,null,null,"https://ec.europa.eu/finance/docs/level-2-measures/taxonomy-regulation-delegated-act-2021-2800-annex-1_en.pdf"]
[null,"Green Hydrogen Organisation (2022)","Green Hydrogen Organisation (2022): The Green Hydrogen Standard. ",null,null,null,"https://gh2.org/sites/default/files/2022-05/GH2_Standard_2022_A5_11%20May%202022_FINAL_REF%20ONLY%20%281%29.pdf"]
[null,"H2Global (n.d.)","H2Global (n.d.): The H2Global Instrument. ",null,null,null,"https://www.h2-global.de/project/h2g-mechanism "]
[null,"Heinemann et al. (2022)","Heinemann, C.; Mendelevitch, R.; Seebach, D.; Piria, R.; Eckardt, J.; Honnen, J. (2022): Comparing sustainability of RES- and methane-based hydrogen. Sustainability dimensions, blind spots in current regulation and certification, and potential solutions for hydrogen imports to Europe. Oeko-Institut; adelphi; PtX Hub. Freiburg, Berlin. ",null,null,null,"https://www.oeko.de/fileadmin/oekodoc/Comparing-sustainability-of-RES-and-methane-based-hydrogen.pdf"]
[null,"IEA (2020)","IEA (International Energy Agency) (2020): Renewable Portfolio Standard (RPS). IEA/IRENA Policies Database.",null,null,null,"https://www.iea.org/policies/4837-renewable-portfolio-standard-rps"]
[null,"IPHE (2022)","IPHE (International Partnership for Hydrogen and Fuel Cells in the Economy) (2021): Methodology for Determining the Greenhouse Gas Emissions associated with the Production of Hydrogen. A Working Paper Prepared by the IPHE Hydrogen Production Analysis Task Force. Version 2 - November 2022.",null,null,null,"https://www.iphe.net/_files/ugd/45185a_03457347901844c3856e196689f3227c.pdf "]
[null,"IPHE (2021)","IPHE (International Partnership for Hydrogen and Fuel Cells in the Economy) (2021): Methodology for Determining the Greenhouse Gas Emissions associated with the Production of Hydrogen. A Working Paper Prepared by the IPHE Hydrogen Production Analysis Task Force. Version 1 - October 2021.",null,null,null,"https://www.iphe.net/_files/ugd/45185a_ef588ba32fc54e0eb57b0b7444cfa5f9.pdf "]
[null,"IRENA & RMI (2023)","IRENA (International Renewable Energy Agency); RMI (Rocky Mountains Institute) (2023): Creating a Global Hydrogen Market: Certification to enable trade. International Renewable Energy Agency, Abu Dhabi; and RMI, Colorado. ",null,null,null,"https://mc-cd8320d4-36a1-40ac-83cc-3389-cdn-endpoint.azureedge.net/-/media/Files/IRENA/Agency/Publication/2023/Jan/IRENA_Creating_a_global_hydrogen_market_2023.pdf?rev=cad6962f55454a46af87dec5f2e6c6e8 "]
[null,"ISCC (2021)","ISCC (International Sustainability & Carbon Certification) (2021): ISCC EU 201 System Basics. Version 4.0.",null,null,null,"https://www.iscc-system.org/wp-content/uploads/2021/06/ISCC_EU_201_System_Basics-v4.0.pdf"]
[null,"ISCC (2020)","ISCC (International Sustainability & Carbon Certification) (2020): ISCC 2020 Sustainability Requirements. Version 3.1.",null,null,null,"https://www.iscc-system.org/wp-content/uploads/2020/05/ISCC_202_Sustainability_Requirements_3.1.pdf "]
[null,"Kimura (2021)","Kimura, S. (2021): The Certification of Low-Carbon ammonia and Hydrogen in Japan. In: Wenger, B.; Wagner, E. U. (eds.): Hydrogen Certification in Australia, Germany and Japan. Konrad-Adenauer Stiftung. The Periscope Series 7, pp. 16-22. ",null,null,null,"https://periscopekasaustralia.com.au/wp-content/uploads/2022/01/Periscope-Analysis-Paper-Volume-7-DD08.pdf"]
[null,"Li et al. (2022)","Li, L.; Steinlein, A., Kuneman, E.; Eckardt, J. (2022): Hydrogen Factsheet - China. Adelphi; PtX Hub. Berlin.",null,null,null,"https://www.adelphi.de/de/system/files/mediathek/bilder/H2%20Factsheet%20China.pdf"]
[null,"Liu et al. (2021)","Liu, W.; Wan, Y.; Xiong, Y.; Gao, P. (2021): Green Hydrogen Standard in China: Standard and Evaluation of Low-Carbon Hydrogen, Clean Hydrogen, and Renewable Hydrogen. In: Li, Y., Phoumin, J.; Kimura, S. (eds.), Hydrogen Sourced from Renewables and Clean Energy: A Feasibility Study of Achieving Large scale Demonstration ERIA Research Project Report FY2021 No. 1 9 , Jakarta: ERIA, pp. 211-224.",null,null,null,"https://www.eria.org/uploads/media/Research-Project-Report/RPR-2021-19/15_Chapter-9-Green-Hydrogen-Standard-in-China_Standard-and-Evaluation-of-Low-Carbon-Hydrogen%2C-Clean-Hydrogen%2C-and-Renewable-Hydrogen.pdf"]
[null,"Matthes et al. (2021)","Matthes, F.; Braungardt, S.; Bürger, V.; Göckeler, K.; Heinemann, C.; Hermann, H. et al. (2021): Die Wasserstoffstrategie 2.0 für Deutschland. Öko-Institut. Berlin.",null,null,null,"https://www.oeko.de/fileadmin/oekodoc/Die-Wasserstoffstrategie-2-0-fuer-DE.pdf "]
[null,"Sieler et al. (2021)","Sieler, R. E.; Cames, L., Schuster, B.; Borghardt, S.; La Trobe, B. (2021): Hydrogen Factsheet - Japan. Adelphi; PtX Hub. Berlin. ",null,null,null,"https://www.adelphi.de/de/system/files/mediathek/bilder/H2%20Factsheet%20Japan.pdf"]
[null,"Sailer et al. (2022)","Sailer, K.; Reinholz, T.; Lakeit, K. M.; Crone, K. (2022): Global Harmonisation of Hydrogen Certification.  German Energy Agency (dena); World Energy Council - Germany. Berlin.",null,null,null,"https://www.dena.de/fileadmin/dena/Publikationen/PDFs/2022/REPORT_Global_Harmonisation_of_Hydrogen_Certification.pdf"]
[null,"U.S. Department of Energy (DoE) (2022)","U.S. Department of Energy (DoE) (2022): Clean Hydrogen Production Standard (CHPS). Draft guidance (as of 22/09/2022). ",null,null,null,"https://www.hydrogen.energy.gov/pdfs/clean-hydrogen-production-standard.pdf"]
[null,"TÜV SÜD Zertifizierungsstelle \"Klima und Energie\" (2021)","TÜV SÜD Zertifizierungsstelle \"Klima und Energie\" (2021): TÜV SÜD Standard CMS 70. Erzeugung von Grünem Wasserstoff (Green Hydrogen).",null,null,null,"https://www.tuvsud.com/de-de/-/media/de/industry-service/pdf/broschueren-und-flyer/is/energie/tv-sd-standard-cms-70_grund--und-zusatzanforderungen-deutsch-englisch.pdf "]

{"sheet":"b_context_sustainability","index":31,"n_rows":87,"n_cols":6,"rows_kept":87,"cut":false,"hidden":false,"merged":[[76,3,76,4],[77,1,78,1],[77,3,77,4],[78,3,78,4],[79,3,79,4],[24,4,24,6],[68,3,68,4],[69,1,70,1],[71,1,72,1],[71,3,72,3],[52,1,52,5],[53,1,55,1],[53,3,53,4],[56,1,58,1],[56,3,56,4],[57,3,57,4],[58,3,58,4],[43,1,47,1],[43,3,43,4],[44,3,46,3],[47,3,47,4],[74,1,74,5],[75,3,75,4],[59,1,60,1],[59,3,59,4],[62,1,62,5],[63,1,67,1],[63,3,63,4],[64,3,64,4],[65,3,67,3],[34,3,35,3],[37,1,41,1],[37,3,37,4],[38,3,39,3],[40,3,42,3],[85,1,85,3],[25,3,25,4],[26,3,26,4],[28,1,28,5],[29,1,31,1],[29,3,29,5],[30,3,30,5],[31,3,31,5],[83,1,83,4],[48,3,48,4],[49,1,50,1],[49,3,49,4],[50,3,50,4],[32,1,35,1],[32,3,32,4],[33,3,33,4]]}
[]
[null,"CONTEXT INFORMATION ON POTENTIAL SUSTAINABILITY ISSUES"]
[]
[null,"Get supplementary information on PTX-relevant sustainability issues"]
[null,"Hydrogen is not sustainable by nature. "]
[null,"And sustainability goes far beyond the CO2-footprint of a product. It also includes other environmental as well as socio-economic dimensions."]
[]
[null,"This is why we provide you with a set of questions that will help you assess your plans for PTX production and export from a comprehensive sustainability perspective. "]
[null,"The compliation is based on frameworks by the PtX Hub as well as the Oeko-Institute. Please note that this list does not claim to be exhaustive, but only serves for an orientation on the topic. "]
[]
[]
[]
[]
[]
[]
[]
[]
[]
[]
[]
[]
[]
[]
[]
[null,null,null,null,"Source: https://ptx-hub.org/wp-content/uploads/2022/05/PtX-Hub-PtX.Sustainability-Dimensions-and-Concerns-Scoping-Paper.pdf"]
[null,null,null,"GUARDRAILS",null,"GOALS"]
[null,null,null,"The questions in the column below can help you produce green PTX products \nthat are sustainable also beyond their GHG emission intensity",null,"The questions in the column below can help link PTX production \nto improving local ecological and socio-economic circumstances in the supply country"]
[]
[null,"ENVIRONMENTAL"]
[null,"General",null,"You may want to perform a Strategic Environmental Assessment (SEA) specific to the project. Is such a process planned prior / as part of the project?"]
[null,null,null,"You may want to conduct an Environmental Impact Assessment (EIA) specific to the planned project. Is such a process planned prior / as part of the project?"]
[null,null,null,"You may want to conduct a Sustainability Impact Assessment (SIA) specific to the planned project. Is sch a process planned prior / as part of the project? "]
[null,"Energy Cycle",null,"Only renewable energy sources should be used for the production of green PtX products. \n(How) Can you ensure an electricity supply through renewables (exluding biomass, nuclear plants and, preferably, hydropower)?",null,"Conversion of hydrogen for transport is associated with efficiency losses. \n(How) Can conversion processes be kept to a minimum to avoid efficiency losses? Is transport in the desired PTX product possible without further conversion processes?"]
[null,null,null,"To secure that existing RES-E plants are not withdrawn from existing capacities, electricity should be sourced from new, additional RES-E plants. (How) Can you ensure this additionality of electricity supply?",null,"Recovering hydrogen at the destination is associated with significant efficiency losses. \n(How) Can a recovering of hydrogen be kept at a minimum or be avoided? Is transport in the desired PTX product possible without further conversion processes?"]
[null,null,null,"If electricity is sourced from the public grid, further questions regarding temporal and geographical correlction should be considered. ","How do RES-E production and PTX production relate to each other on a time scale? (How) Can you ensure a temporal correlation to RES-E production? "]
[null,null,null,null,"How do RES-E production and PTX production relate to each other on a geographical scale? (How) Can you ensure a geographical correlation to RES-E production? "]
[]
[null,"Carbon Cycle",null,"CO2 sourcing should not delay the decarbonisation of economic sectors. \nIs it possible to source it from the air (DAC) or from unavoidable emissions?"]
[null,null,null,"If sourcing CO2 from the air (DAC), further questions regarding RES-E and land resources should be considered. ","How are additional energy demands of DAC sourced (preferably from RES-E plants or excess heat)? "]
[null,null,null,null,"Are there any potential land conflicts if deploying this technology? "]
[null,null,null,"If sourcing CO2 from unavoidable process emissions or biogenic sources: this should, preferably, only be a short term option.","What is the intended temporal scope of use of such CO2 sources? Are there alternative sources in the long term?"]
[null,null,null,null,"Are all established sustainability criteria for biomass met (e.g. related to risks of land use change and biodiversity)?"]
[]
[null,"Water, Land & Biodiversity",null,"Is the region affected by water stress? If yes, how is this issue addressed? ",null,"(How) Can the planned PtX production contribute to improving existing water infrastructure in the region? \n(How) Can developed infrastructure be made available to other stakeholders / in the region beyond the project?"]
[null,null,null,"If sourcing from Sea Water Desalination (SWD), further questions should be considered.","How is brine disposal managed? Can chemicals be reduced to a minimum?","(How) Can the planned PtX production provide additional (desalinated) water sources exceeding the demand for PtX production? "]
[null,null,null,null,"How are additional energy requirements of SWD plants sourced? Are there sufficient available RES-e capacities to power SWD plants?"]
[null,null,null,null,"To secure that existing SWD plants are not withdrawn from exisiting capacities, SWD plants should be new and additional? (How) Can you ensure this additionality?"]
[null,null,null,"Which land uses are excluded for project development? Is it ensured that no protected areas are compromised?"]
[null,"Resources & Recycling",null,"The PTX value chain relies heavily on critical raw materials (CRM). \nHow can the consumption of CRM be kept to a minimum or avoided? ",null," Is it possible to integrate recycling and/or lifetime expansion strategies in project planning?"]
[null,"Pollution Risks & Safety",null,"(How) Can the use of hazardous substances be limited, e.g. in transport processes?"]
[null,null,null,"Are the emissions linked to transport and storage included in assessments of PTX carbon intensity?"]
[]
[null,"ECONOMIC"]
[null,"Value Added & Decoupled Growth",null,"What are the economic effects of the planned PtX production for local stakeholders? \nAre there mechanisms planned or in place that enable to monitor local economic participation? ",null,"How can the PTX production be best integrated into local productive networks?\n"]
[null,null,null,null,null,"(How) Can potential regional multiplier effects be triggered, i.e. through creating up-/downstream linkages with local suppliers?"]
[null,null,null,null,null,"Can the project provide additional benefits such as shading through agri-PV, local economic participation? How can such potentials be assessed and put into practice?"]
[null,"Energy Mix & Transformation",null,"Could the use of RES-E for PTX production lead to increased competition for (best) RES-E sites? \nIf so, how will this problem be addressed? ",null,"Instead of competition for RES resources, ideally a contribution to local decarbonisation should be created. \n(How) Can additional RES-E capacity be created alongside the capacities needed for PTX production to contribute to the decarbonisation of the local energy system?"]
[null,null,null,"How will it be ensured that a balance is found between the use of RES-E (best) sites for PTX production to export and their use to promote local decarbonisation?",null,"Is it possible to exclude RES-E best sites from PTX production for export as to not hinder the decarbonisation of the local energy sector? Are other RES-E sites available that still meet the requirements for a (technically/economically) viable PTX production?"]
[null,null,null,"To secure that existing RES-E plants are not withdrawn from existing capacities, electricity should be sourced from new, additional RES-E plants. (How) Can you ensure this additionality of electricity supply? (see Environmental dimension)",null,"How can local grid infrastructure be supported beyond adding RES-E capacities? \nCan additional funding be provided for the development of local grid infrastructure or additional flexibilities to balance the grid (e.g. battery storage)?"]
[null,"Trade & Technology Transfer",null,"(How) Can a local supply chain for technology be established and operated? \nWill this be taken into account in the project planning?",null,"(How) Can the PtX production contribute to Capacity Building in the supply country? \nHow can expertise be effectively disseminated, e.g. in Research & Development (R&D)?"]
[null,null,null,null,null,"From a sustainability (and economic) point of view, it is preferable to refurbish existing gas pipelines for hydrogen transport instead of building new ones. (To what extent/where) Is it possible to use existing gas pipelines for transport?"]
[]
[null,"SOCIAL"]
[null,"Access to Energy & Resources",null,"How will it be ensured that the use of RES-E for PTX production does not deprive local population from access to affordable and clean energy?"]
[null,null,null,"Have local stakeholders been consulted about the project? Is involvement planned for before and/or during the project?"]
[null,null,null,"May the PtX production harm local (informal) land and/or water rights? ","How can local (informal) claims be respected and appropriately be integrated into planning processes?"]
[null,null,null,null,"Could additional water demand lead to rising water costs to the local public?"]
[null,null,null,null,"(How) are potential conflicts adressed?"]
[null,"Jobs & Skills",null,"(How) Is it secured that an appropriate proportion of the workforce is made up of local staff? ",null,"(How) Can it be ensured that a long-term demand for skilled labour is generated and met with local workforce?"]
[null,"Human Rights & Labour Standards",null,"May the PtX production harm human rights? ","(How) Can compliance with human rights be ensured during all project phases (project planning, construction & operation)?"]
[null,null,null,"Does the PtX production comply with due diligence? ","(How) Can compliance with due diligence be proven?"]
[null,"Health & Safety",null,"Where in the production chain do health and safety risks potentially occur? ","How can potential risks be reduced to a minimum and workers protected in the best possible way?"]
[null,null,null,null,"Are there mechanisms in place for monitoring potential risks as well as regular comprehensive audits?"]
[]
[null,"GOVERNANCE"]
[null,"Policy Commitment & Coherence",null,"Does the supply country have a national decarbonisation strategy (NDC) which includes hydrogen and PtX production? (How) Does the planned PtX production fit into this?",null,"Is the supply country working towards a Hydrogen strategy? \nIf yes, are sustainability dimensions sufficiently addressed in the latter and/or in related discussions?"]
[null,"Stability & \nRule of Law",null,"Does the PtX production contribute to corruptive structures in the supply country? \nHow can corruption be prevented? "]
[null,"Transparency & Participation",null,"Have local stakeholders been consulted about the project? Is involvement planned for before and/or during the project?",null,"Does project planning include the financial participation of local communities on project revenues? \n(How) Can such participatory processes in financial terms be ensured? "]
[null,null,null,"Have official grievance mechanisms for affected local stakeholders have been set up? \nAre such mechanisms included in project planning?"]
[null,"Standards & Certification",null,"(How) Can you certify and prove the sourcing of green electricity (e.g. through Guarantees of Origin or recognised certification systems)?",null,"(How) Can you certify and prove that sustainability requirements have been met throughout the entire value chain? Which are suitable and recognised certification systems for your PTX production?"]
[]
[null,"Bibliographic sources "]
[null,"PtX HUB (n.d.): PtX.Sustainability: Dimensions and Concerns. "]
[null,"Online: https://ptx-hub.org/wp-content/uploads/2022/05/PtX-Hub-PtX.Sustainability-Dimensions-and-Concerns-Scoping-Paper.pdf"]
[]
[null,"Heinemann, C. & Mendelevitch, R. (Oeko-Institut) (2021): \nSustainability dimensions of imported hydrogen: Working Paper. "]
[null,"Online: https://www.oeko.de/fileadmin/oekodoc/WP-imported-hydrogen.pdf"]

{"sheet":"_country_size","index":32,"n_rows":267,"n_cols":9,"rows_kept":267,"cut":false,"hidden":true,"merged":[]}
["Country Code","sqkm",null,"Country Code","Energy use (kg of oil equivalent per capita) in 2014",null,"Country Code","population in 2014","energy use (TWh/a)"]
["ABW",180,null,"ABW",null,null,"ABW",103776,{"$f":"Table25[[#This Row],[Energy use (kg of oil equivalent per capita) in 2014]]*Table26[[#This Row],[population in 2014]]*11.63*0.000000001","v":0}]
["AFE",14845123.094000001,null,"AFE",740.76634279755717,null,"AFE",578075373,{"$f":"Table25[[#This Row],[Energy use (kg of oil equivalent per capita) in 2014]]*Table26[[#This Row],[population in 2014]]*11.63*0.000000001","v":4980.1844104526645}]
["AFG",652230,null,"AFG",null,null,"AFG",33370804,{"$f":"Table25[[#This Row],[Energy use (kg of oil equivalent per capita) in 2014]]*Table26[[#This Row],[population in 2014]]*11.63*0.000000001","v":0}]
["AFW",9045773,null,"AFW",611.43741001305852,null,"AFW",390882979,{"$f":"Table25[[#This Row],[Energy use (kg of oil equivalent per capita) in 2014]]*Table26[[#This Row],[population in 2014]]*11.63*0.000000001","v":2779.5755393451441}]
["AGO",1246700,null,"AGO",544.60944348391615,null,"AGO",26941773,{"$f":"Table25[[#This Row],[Energy use (kg of oil equivalent per capita) in 2014]]*Table26[[#This Row],[population in 2014]]*11.63*0.000000001","v":170.64401272000001}]
["ALB",27400,null,"ALB",808.45583959594398,null,"ALB",2889104,{"$f":"Table25[[#This Row],[Energy use (kg of oil equivalent per capita) in 2014]]*Table26[[#This Row],[population in 2014]]*11.63*0.000000001","v":27.164342190000003}]
["AND",470,null,"AND",null,null,"AND",79213,{"$f":"Table25[[#This Row],[Energy use (kg of oil equivalent per capita) in 2014]]*Table26[[#This Row],[population in 2014]]*11.63*0.000000001","v":0}]
["ARB",13100549,null,"ARB",1962.9550276974956,null,"ARB",387899835,{"$f":"Table25[[#This Row],[Energy use (kg of oil equivalent per capita) in 2014]]*Table26[[#This Row],[population in 2014]]*11.63*0.000000001","v":8855.4301016735262}]
["ARE",71020,null,"ARE",7648.3940733968584,null,"ARE",9214182,{"$f":"Table25[[#This Row],[Energy use (kg of oil equivalent per capita) in 2014]]*Table26[[#This Row],[population in 2014]]*11.63*0.000000001","v":819.6090728500003}]
["ARG",2736690,null,"ARG",2029.9228254373734,null,"ARG",42669500,{"$f":"Table25[[#This Row],[Energy use (kg of oil equivalent per capita) in 2014]]*Table26[[#This Row],[population in 2014]]*11.63*0.000000001","v":1007.3416609600002}]
["ARM",28470,null,"ARM",1015.9098860974941,null,"ARM",2912403,{"$f":"Table25[[#This Row],[Energy use (kg of oil equivalent per capita) in 2014]]*Table26[[#This Row],[population in 2014]]*11.63*0.000000001","v":34.410134570000004}]
["ASM",200,null,"ASM",null,null,"ASM",55791,{"$f":"Table25[[#This Row],[Energy use (kg of oil equivalent per capita) in 2014]]*Table26[[#This Row],[population in 2014]]*11.63*0.000000001","v":0}]
["ATG",440,null,"ATG",null,null,"ATG",92562,{"$f":"Table25[[#This Row],[Energy use (kg of oil equivalent per capita) in 2014]]*Table26[[#This Row],[population in 2014]]*11.63*0.000000001","v":0}]
["AUS",7692020,null,"AUS",5334.6816787377375,null,"AUS",23475686,{"$f":"Table25[[#This Row],[Energy use (kg of oil equivalent per capita) in 2014]]*Table26[[#This Row],[population in 2014]]*11.63*0.000000001","v":1456.4866785600002}]
["AUT",82520,null,"AUT",3763.3279025587049,null,"AUT",8546356,{"$f":"Table25[[#This Row],[Energy use (kg of oil equivalent per capita) in 2014]]*Table26[[#This Row],[population in 2014]]*11.63*0.000000001","v":374.05266620000009}]
["AZE",82646,null,"AZE",1502.0781684137069,null,"AZE",9535079,{"$f":"Table25[[#This Row],[Energy use (kg of oil equivalent per capita) in 2014]]*Table26[[#This Row],[population in 2014]]*11.63*0.000000001","v":166.56990742000002}]
["BDI",25680,null,"BDI",null,null,"BDI",9844301,{"$f":"Table25[[#This Row],[Energy use (kg of oil equivalent per capita) in 2014]]*Table26[[#This Row],[population in 2014]]*11.63*0.000000001","v":0}]
["BEL",30280,null,"BEL",4708.2212178954924,null,"BEL",11209057,{"$f":"Table25[[#This Row],[Energy use (kg of oil equivalent per capita) in 2014]]*Table26[[#This Row],[population in 2014]]*11.63*0.000000001","v":613.76999360000002}]
["BEN",112760,null,"BEN",416.79061954794861,null,"BEN",10286839,{"$f":"Table25[[#This Row],[Energy use (kg of oil equivalent per capita) in 2014]]*Table26[[#This Row],[population in 2014]]*11.63*0.000000001","v":49.863136540000006}]
["BFA",273600,null,"BFA",null,null,"BFA",17586029,{"$f":"Table25[[#This Row],[Energy use (kg of oil equivalent per capita) in 2014]]*Table26[[#This Row],[population in 2014]]*11.63*0.000000001","v":0}]
["BGD",130170,null,"BGD",229.25054031945987,null,"BGD",154517385,{"$f":"Table25[[#This Row],[Energy use (kg of oil equivalent per capita) in 2014]]*Table26[[#This Row],[population in 2014]]*11.63*0.000000001","v":411.97174622000017}]
["BGR",108560,null,"BGR",2477.6554006969604,null,"BGR",7223938,{"$f":"Table25[[#This Row],[Energy use (kg of oil equivalent per capita) in 2014]]*Table26[[#This Row],[population in 2014]]*11.63*0.000000001","v":208.15872927000001}]
["BHR",785,null,"BHR",10596.566205589066,null,"BHR",1336073,{"$f":"Table25[[#This Row],[Energy use (kg of oil equivalent per capita) in 2014]]*Table26[[#This Row],[population in 2014]]*11.63*0.000000001","v":164.65505118000002}]
["BHS",10010,null,"BHS",null,null,"BHS",370625,{"$f":"Table25[[#This Row],[Energy use (kg of oil equivalent per capita) in 2014]]*Table26[[#This Row],[population in 2014]]*11.63*0.000000001","v":0}]
["BIH",51200,null,"BIH",2246.9183878951412,null,"BIH",3482106,{"$f":"Table25[[#This Row],[Energy use (kg of oil equivalent per capita) in 2014]]*Table26[[#This Row],[population in 2014]]*11.63*0.000000001","v":90.993213040000001}]
["BLR",202980,null,"BLR",2936.5775468420165,null,"BLR",9448515,{"$f":"Table25[[#This Row],[Energy use (kg of oil equivalent per capita) in 2014]]*Table26[[#This Row],[population in 2014]]*11.63*0.000000001","v":322.68943411000004}]
["BLZ",22810,null,"BLZ",null,null,"BLZ",353366,{"$f":"Table25[[#This Row],[Energy use (kg of oil equivalent per capita) in 2014]]*Table26[[#This Row],[population in 2014]]*11.63*0.000000001","v":0}]
["BMU",54,null,"BMU",null,null,"BMU",65138,{"$f":"Table25[[#This Row],[Energy use (kg of oil equivalent per capita) in 2014]]*Table26[[#This Row],[population in 2014]]*11.63*0.000000001","v":0}]
["BOL",1083300,null,"BOL",778.16875460058588,null,"BOL",10706517,{"$f":"Table25[[#This Row],[Energy use (kg of oil equivalent per capita) in 2014]]*Table26[[#This Row],[population in 2014]]*11.63*0.000000001","v":96.895077510000021}]
["BRA",8358140,null,"BRA",1495.541140727802,null,"BRA",202763744,{"$f":"Table25[[#This Row],[Energy use (kg of oil equivalent per capita) in 2014]]*Table26[[#This Row],[population in 2014]]*11.63*0.000000001","v":3526.6988892300001}]
["BRB",430,null,"BRB",null,null,"BRB",284825,{"$f":"Table25[[#This Row],[Energy use (kg of oil equivalent per capita) in 2014]]*Table26[[#This Row],[population in 2014]]*11.63*0.000000001","v":0}]
["BRN",5270,null,"BRN",8672.8984962589511,null,"BRN",409778,{"$f":"Table25[[#This Row],[Energy use (kg of oil equivalent per capita) in 2014]]*Table26[[#This Row],[population in 2014]]*11.63*0.000000001","v":41.332589690000013}]
["BTN",38140,null,"BTN",null,null,"BTN",719053,{"$f":"Table25[[#This Row],[Energy use (kg of oil equivalent per capita) in 2014]]*Table26[[#This Row],[population in 2014]]*11.63*0.000000001","v":0}]
["BWA",566730,null,"BWA",1300.633576540288,null,"BWA",2088619,{"$f":"Table25[[#This Row],[Energy use (kg of oil equivalent per capita) in 2014]]*Table26[[#This Row],[population in 2014]]*11.63*0.000000001","v":31.593220640000006}]
["CAF",622980,null,"CAF",null,null,"CAF",4464171,{"$f":"Table25[[#This Row],[Energy use (kg of oil equivalent per capita) in 2014]]*Table26[[#This Row],[population in 2014]]*11.63*0.000000001","v":0}]
["CAN",8965590,null,"CAN",7897.8556151143557,null,"CAN",35437435,{"$f":"Table25[[#This Row],[Energy use (kg of oil equivalent per capita) in 2014]]*Table26[[#This Row],[population in 2014]]*11.63*0.000000001","v":3255.0014343500002}]
["CEB",1105004.93,null,"CEB",2470.5443183559464,null,"CEB",103496179,{"$f":"Table25[[#This Row],[Energy use (kg of oil equivalent per capita) in 2014]]*Table26[[#This Row],[population in 2014]]*11.63*0.000000001","v":2973.6967621100007}]
["CHE",39516.03,null,"CHE",3059.9367490290524,null,"CHE",8188649,{"$f":"Table25[[#This Row],[Energy use (kg of oil equivalent per capita) in 2014]]*Table26[[#This Row],[population in 2014]]*11.63*0.000000001","v":291.40997924000004}]
["CHI",null,null,"CHI",null,null,"CHI",164107,{"$f":"Table25[[#This Row],[Energy use (kg of oil equivalent per capita) in 2014]]*Table26[[#This Row],[population in 2014]]*11.63*0.000000001","v":0}]
["CHL",743532,null,"CHL",2032.9336123059848,null,"CHL",17758969,{"$f":"Table25[[#This Row],[Energy use (kg of oil equivalent per capita) in 2014]]*Table26[[#This Row],[population in 2014]]*11.63*0.000000001","v":419.87562215000003}]
["CHN",9424702.9000000004,null,"CHN",2224.3548984590266,null,"CHN",1371860000,{"$f":"Table25[[#This Row],[Energy use (kg of oil equivalent per capita) in 2014]]*Table26[[#This Row],[population in 2014]]*11.63*0.000000001","v":35488.985832930004}]
["CIV",318000,null,"CIV",612.64045152190477,null,"CIV",22647672,{"$f":"Table25[[#This Row],[Energy use (kg of oil equivalent per capita) in 2014]]*Table26[[#This Row],[population in 2014]]*11.63*0.000000001","v":161.36485440000001}]
["CMR",472710,null,"CMR",335.2015816344458,null,"CMR",22681853,{"$f":"Table25[[#This Row],[Energy use (kg of oil equivalent per capita) in 2014]]*Table26[[#This Row],[population in 2014]]*11.63*0.000000001","v":88.422808590000002}]
["COD",2267050,null,"COD",389.3319336192273,null,"COD",73767445,{"$f":"Table25[[#This Row],[Energy use (kg of oil equivalent per capita) in 2014]]*Table26[[#This Row],[population in 2014]]*11.63*0.000000001","v":334.01385586000004}]
["COG",341500,null,"COG",554.80946133230873,null,"COG",4736965,{"$f":"Table25[[#This Row],[Energy use (kg of oil equivalent per capita) in 2014]]*Table26[[#This Row],[population in 2014]]*11.63*0.000000001","v":30.564954190000005}]
["COL",1109500,null,"COL",724.07027926805711,null,"COL",46967706,{"$f":"Table25[[#This Row],[Energy use (kg of oil equivalent per capita) in 2014]]*Table26[[#This Row],[population in 2014]]*11.63*0.000000001","v":395.51210960000003}]
["COM",1861,null,"COM",null,null,"COM",759390,{"$f":"Table25[[#This Row],[Energy use (kg of oil equivalent per capita) in 2014]]*Table26[[#This Row],[population in 2014]]*11.63*0.000000001","v":0}]
["CPV",4030,null,"CPV",null,null,"CPV",518276,{"$f":"Table25[[#This Row],[Energy use (kg of oil equivalent per capita) in 2014]]*Table26[[#This Row],[population in 2014]]*11.63*0.000000001","v":0}]
["CRI",51060,null,"CRI",1023.0102244030204,null,"CRI",4795390,{"$f":"Table25[[#This Row],[Energy use (kg of oil equivalent per capita) in 2014]]*Table26[[#This Row],[population in 2014]]*11.63*0.000000001","v":57.053674790000009}]
["CSS",404850,null,"CSS",4814.8457695159341,null,"CSS",7173443,{"$f":"Table25[[#This Row],[Energy use (kg of oil equivalent per capita) in 2014]]*Table26[[#This Row],[population in 2014]]*11.63*0.000000001","v":401.68882215484126}]
["CUB",103800,null,"CUB",1034.6854299437628,null,"CUB",11306909,{"$f":"Table25[[#This Row],[Energy use (kg of oil equivalent per capita) in 2014]]*Table26[[#This Row],[population in 2014]]*11.63*0.000000001","v":136.06046322000003}]
["CUW",444,null,"CUW",12650.860437819498,null,"CUW",155909,{"$f":"Table25[[#This Row],[Energy use (kg of oil equivalent per capita) in 2014]]*Table26[[#This Row],[population in 2014]]*11.63*0.000000001","v":22.93881429}]
["CYM",240,null,"CYM",null,null,"CYM",60848,{"$f":"Table25[[#This Row],[Energy use (kg of oil equivalent per capita) in 2014]]*Table26[[#This Row],[population in 2014]]*11.63*0.000000001","v":0}]
["CYP",9240,null,"CYP",1712.1419217441337,null,"CYP",1152297,{"$f":"Table25[[#This Row],[Energy use (kg of oil equivalent per capita) in 2014]]*Table26[[#This Row],[population in 2014]]*11.63*0.000000001","v":22.944780480000002}]
["CZE",77198.53,null,"CZE",3915.1135824785633,null,"CZE",10525347,{"$f":"Table25[[#This Row],[Energy use (kg of oil equivalent per capita) in 2014]]*Table26[[#This Row],[population in 2014]]*11.63*0.000000001","v":479.24821427000012}]
["DEU",349390,null,"DEU",3779.4619207853552,null,"DEU",80982500,{"$f":"Table25[[#This Row],[Energy use (kg of oil equivalent per capita) in 2014]]*Table26[[#This Row],[population in 2014]]*11.63*0.000000001","v":3559.5972982500002}]
["DJI",23180,null,"DJI",null,null,"DJI",898707,{"$f":"Table25[[#This Row],[Energy use (kg of oil equivalent per capita) in 2014]]*Table26[[#This Row],[population in 2014]]*11.63*0.000000001","v":0}]
["DMA",750,null,"DMA",null,null,"DMA",71091,{"$f":"Table25[[#This Row],[Energy use (kg of oil equivalent per capita) in 2014]]*Table26[[#This Row],[population in 2014]]*11.63*0.000000001","v":0}]
["DNK",40000,null,"DNK",2872.57354732678,null,"DNK",5643475,{"$f":"Table25[[#This Row],[Energy use (kg of oil equivalent per capita) in 2014]]*Table26[[#This Row],[population in 2014]]*11.63*0.000000001","v":188.53738411}]
["DOM",48310,null,"DOM",751.79509820876797,null,"DOM",10165182,{"$f":"Table25[[#This Row],[Energy use (kg of oil equivalent per capita) in 2014]]*Table26[[#This Row],[population in 2014]]*11.63*0.000000001","v":88.878018420000004}]
["DZA",2381741,null,"DZA",1327.535509995867,null,"DZA",38923688,{"$f":"Table25[[#This Row],[Energy use (kg of oil equivalent per capita) in 2014]]*Table26[[#This Row],[population in 2014]]*11.63*0.000000001","v":600.95208214000013}]
["EAP",16023227.703000002,null,"EAP",1869.5669187452388,null,"EAP",2031203532,{"$f":"Table25[[#This Row],[Energy use (kg of oil equivalent per capita) in 2014]]*Table26[[#This Row],[population in 2014]]*11.63*0.000000001","v":44164.586900381932}]
["EAR",33310653.265000001,null,"EAR",899.21027167726675,null,"EAR",3079685581,{"$f":"Table25[[#This Row],[Energy use (kg of oil equivalent per capita) in 2014]]*Table26[[#This Row],[population in 2014]]*11.63*0.000000001","v":32206.783479709378}]
["EAS",24505909.602999996,null,"EAS",2127.7164677551464,null,"EAS",2275075985,{"$f":"Table25[[#This Row],[Energy use (kg of oil equivalent per capita) in 2014]]*Table26[[#This Row],[population in 2014]]*11.63*0.000000001","v":56297.534507833996}]
["ECA",22396530.600000001,null,"ECA",3216.7676670964529,null,"ECA",387621858,{"$f":"Table25[[#This Row],[Energy use (kg of oil equivalent per capita) in 2014]]*Table26[[#This Row],[population in 2014]]*11.63*0.000000001","v":14501.324418337557}]
["ECS",27443748.824000001,null,"ECS",3161.7557999489795,null,"ECS",902367876,{"$f":"Table25[[#This Row],[Energy use (kg of oil equivalent per capita) in 2014]]*Table26[[#This Row],[population in 2014]]*11.63*0.000000001","v":33181.167647284368}]
["ECU",248360,null,"ECU",888.96522982438637,null,"ECU",15951832,{"$f":"Table25[[#This Row],[Energy use (kg of oil equivalent per capita) in 2014]]*Table26[[#This Row],[population in 2014]]*11.63*0.000000001","v":164.92065712000002}]
["EGY",995450,null,"EGY",827.49703875053217,null,"EGY",90424668,{"$f":"Table25[[#This Row],[Energy use (kg of oil equivalent per capita) in 2014]]*Table26[[#This Row],[population in 2014]]*11.63*0.000000001","v":870.22806635000006}]
["EMU",2679977.105,null,"EMU",3266.2277883564402,null,"EMU",338462234,{"$f":"Table25[[#This Row],[Energy use (kg of oil equivalent per capita) in 2014]]*Table26[[#This Row],[population in 2014]]*11.63*0.000000001","v":12856.90398902}]
["ERI",121040.829,null,"ERI",245.91960486120257,null,"ERI",null,{"$f":"Table25[[#This Row],[Energy use (kg of oil equivalent per capita) in 2014]]*Table26[[#This Row],[population in 2014]]*11.63*0.000000001","v":0}]
["ESP",499556.64500000002,null,"ESP",2464.6412905848047,null,"ESP",46480882,{"$f":"Table25[[#This Row],[Energy use (kg of oil equivalent per capita) in 2014]]*Table26[[#This Row],[population in 2014]]*11.63*0.000000001","v":1332.3176926300002}]
["EST",42750,null,"EST",4592.6164566446942,null,"EST",1314545,{"$f":"Table25[[#This Row],[Energy use (kg of oil equivalent per capita) in 2014]]*Table26[[#This Row],[population in 2014]]*11.63*0.000000001","v":70.212647630000006}]
["ETH",1128571.2649999999,null,"ETH",493.13010799489768,null,"ETH",98094264,{"$f":"Table25[[#This Row],[Energy use (kg of oil equivalent per capita) in 2014]]*Table26[[#This Row],[population in 2014]]*11.63*0.000000001","v":562.58072305000019}]
["EUU",3996449.1669999999,null,"EUU",3123.5956557003365,null,"EUU",443576675,{"$f":"Table25[[#This Row],[Energy use (kg of oil equivalent per capita) in 2014]]*Table26[[#This Row],[population in 2014]]*11.63*0.000000001","v":16113.995055250003}]
["FCS",20452531.094000001,null,"FCS",724.59754206672801,null,"FCS",843965097,{"$f":"Table25[[#This Row],[Energy use (kg of oil equivalent per capita) in 2014]]*Table26[[#This Row],[population in 2014]]*11.63*0.000000001","v":7112.15245561146}]
["FIN",303940,null,"FIN",6213.3577661277686,null,"FIN",5461512,{"$f":"Table25[[#This Row],[Energy use (kg of oil equivalent per capita) in 2014]]*Table26[[#This Row],[population in 2014]]*11.63*0.000000001","v":394.65623464000004}]
["FJI",18270,null,"FJI",null,null,"FJI",866447,{"$f":"Table25[[#This Row],[Energy use (kg of oil equivalent per capita) in 2014]]*Table26[[#This Row],[population in 2014]]*11.63*0.000000001","v":0}]
["FRA",547557,null,"FRA",3659.0877946844876,null,"FRA",66312067,{"$f":"Table25[[#This Row],[Energy use (kg of oil equivalent per capita) in 2014]]*Table26[[#This Row],[population in 2014]]*11.63*0.000000001","v":2821.9226802500002}]
["FRO",1366,null,"FRO",null,null,"FRO",47965,{"$f":"Table25[[#This Row],[Energy use (kg of oil equivalent per capita) in 2014]]*Table26[[#This Row],[population in 2014]]*11.63*0.000000001","v":0}]
["FSM",700,null,"FSM",null,null,"FSM",107444,{"$f":"Table25[[#This Row],[Energy use (kg of oil equivalent per capita) in 2014]]*Table26[[#This Row],[population in 2014]]*11.63*0.000000001","v":0}]
["GAB",257670,null,"GAB",2694.2060228230048,null,"GAB",1883801,{"$f":"Table25[[#This Row],[Energy use (kg of oil equivalent per capita) in 2014]]*Table26[[#This Row],[population in 2014]]*11.63*0.000000001","v":59.026297239999998}]
["GBR",241930,null,"GBR",2777.3109866772847,null,"GBR",64602298,{"$f":"Table25[[#This Row],[Energy use (kg of oil equivalent per capita) in 2014]]*Table26[[#This Row],[population in 2014]]*11.63*0.000000001","v":2086.6624153600001}]
["GEO",69490,null,"GEO",1180.2727526432927,null,"GEO",3719414,{"$f":"Table25[[#This Row],[Energy use (kg of oil equivalent per capita) in 2014]]*Table26[[#This Row],[population in 2014]]*11.63*0.000000001","v":51.054804490000002}]
["GHA",227533,null,"GHA",331.82712764394392,null,"GHA",27224480,{"$f":"Table25[[#This Row],[Energy use (kg of oil equivalent per capita) in 2014]]*Table26[[#This Row],[population in 2014]]*11.63*0.000000001","v":105.06333822999999}]
["GIB",10,null,"GIB",5812.2813259799568,null,"GIB",33726,{"$f":"Table25[[#This Row],[Energy use (kg of oil equivalent per capita) in 2014]]*Table26[[#This Row],[population in 2014]]*11.63*0.000000001","v":2.2797707500000004}]
["GIN",245720,null,"GIN",null,null,"GIN",11150970,{"$f":"Table25[[#This Row],[Energy use (kg of oil equivalent per capita) in 2014]]*Table26[[#This Row],[population in 2014]]*11.63*0.000000001","v":0}]
["GMB",10120,null,"GMB",null,null,"GMB",2024037,{"$f":"Table25[[#This Row],[Energy use (kg of oil equivalent per capita) in 2014]]*Table26[[#This Row],[population in 2014]]*11.63*0.000000001","v":0}]
["GNB",28120,null,"GNB",null,null,"GNB",1692433,{"$f":"Table25[[#This Row],[Energy use (kg of oil equivalent per capita) in 2014]]*Table26[[#This Row],[population in 2014]]*11.63*0.000000001","v":0}]
["GNQ",28050,null,"GNQ",null,null,"GNQ",1122273,{"$f":"Table25[[#This Row],[Energy use (kg of oil equivalent per capita) in 2014]]*Table26[[#This Row],[population in 2014]]*11.63*0.000000001","v":0}]
["GRC",128900,null,"GRC",2123.8978911284398,null,"GRC",10892413,{"$f":"Table25[[#This Row],[Energy use (kg of oil equivalent per capita) in 2014]]*Table26[[#This Row],[population in 2014]]*11.63*0.000000001","v":269.05275799000009}]
["GRD",340,null,"GRD",null,null,"GRD",108900,{"$f":"Table25[[#This Row],[Energy use (kg of oil equivalent per capita) in 2014]]*Table26[[#This Row],[population in 2014]]*11.63*0.000000001","v":0}]
["GRL",410450,null,"GRL",null,null,"GRL",56295,{"$f":"Table25[[#This Row],[Energy use (kg of oil equivalent per capita) in 2014]]*Table26[[#This Row],[population in 2014]]*11.63*0.000000001","v":0}]
["GTM",107160,null,"GTM",863.5689345496329,null,"GTM",15306316,{"$f":"Table25[[#This Row],[Energy use (kg of oil equivalent per capita) in 2014]]*Table26[[#This Row],[population in 2014]]*11.63*0.000000001","v":153.72602617000001}]
["GUM",540,null,"GUM",null,null,"GUM",161007,{"$f":"Table25[[#This Row],[Energy use (kg of oil equivalent per capita) in 2014]]*Table26[[#This Row],[population in 2014]]*11.63*0.000000001","v":0}]
["GUY",196850,null,"GUY",null,null,"GUY",763371,{"$f":"Table25[[#This Row],[Energy use (kg of oil equivalent per capita) in 2014]]*Table26[[#This Row],[population in 2014]]*11.63*0.000000001","v":0}]
["HIC",35245959.124000005,null,"HIC",4680.6390670778792,null,"HIC",1204216436,{"$f":"Table25[[#This Row],[Energy use (kg of oil equivalent per capita) in 2014]]*Table26[[#This Row],[population in 2014]]*11.63*0.000000001","v":65552.524023349892}]
["HKG",1050,null,"HKG",1970.4841275330243,null,"HKG",7229500,{"$f":"Table25[[#This Row],[Energy use (kg of oil equivalent per capita) in 2014]]*Table26[[#This Row],[population in 2014]]*11.63*0.000000001","v":165.67650245000002}]
["HND",111890,null,"HND",597.93018407855038,null,"HND",8955579,{"$f":"Table25[[#This Row],[Energy use (kg of oil equivalent per capita) in 2014]]*Table26[[#This Row],[population in 2014]]*11.63*0.000000001","v":62.276451930000015}]
["HPC",19394766.094000001,null,"HPC",null,null,"HPC",698336663,{"$f":"Table25[[#This Row],[Energy use (kg of oil equivalent per capita) in 2014]]*Table26[[#This Row],[population in 2014]]*11.63*0.000000001","v":0}]
["HRV",55960,null,"HRV",1897.8406654037656,null,"HRV",4238389,{"$f":"Table25[[#This Row],[Energy use (kg of oil equivalent per capita) in 2014]]*Table26[[#This Row],[population in 2014]]*11.63*0.000000001","v":93.549242810000024}]
["HTI",27560,null,"HTI",393.67468426175094,null,"HTI",10549007,{"$f":"Table25[[#This Row],[Energy use (kg of oil equivalent per capita) in 2014]]*Table26[[#This Row],[population in 2014]]*11.63*0.000000001","v":48.297959510000013}]
["HUN",91260,null,"HUN",2314.496433779545,null,"HUN",9866468,{"$f":"Table25[[#This Row],[Energy use (kg of oil equivalent per capita) in 2014]]*Table26[[#This Row],[population in 2014]]*11.63*0.000000001","v":265.58157515000005}]
["IBD",71067763.303000003,null,"IBD",1576.0318556618276,null,"IBD",4612371789,{"$f":"Table25[[#This Row],[Energy use (kg of oil equivalent per capita) in 2014]]*Table26[[#This Row],[population in 2014]]*11.63*0.000000001","v":84541.31783367983}]
["IBT",96094649.397000015,null,"IBT",1347.4448619712807,null,"IBT",6105863361,{"$f":"Table25[[#This Row],[Energy use (kg of oil equivalent per capita) in 2014]]*Table26[[#This Row],[population in 2014]]*11.63*0.000000001","v":95683.664305076847}]
["IDA",25026886.094000001,null,"IDA",459.82609448046304,null,"IDA",1493491572,{"$f":"Table25[[#This Row],[Energy use (kg of oil equivalent per capita) in 2014]]*Table26[[#This Row],[population in 2014]]*11.63*0.000000001","v":7986.8605935308378}]
["IDB",4384620,null,"IDB",579.72159287753902,null,"IDB",501146189,{"$f":"Table25[[#This Row],[Energy use (kg of oil equivalent per capita) in 2014]]*Table26[[#This Row],[population in 2014]]*11.63*0.000000001","v":3378.8088546469708}]
["IDN",1877519,null,"IDN",883.92150928931858,null,"IDN",255128076,{"$f":"Table25[[#This Row],[Energy use (kg of oil equivalent per capita) in 2014]]*Table26[[#This Row],[population in 2014]]*11.63*0.000000001","v":2622.7184462200003}]
["IDX",20642266.094000001,null,"IDX",384.52998910092083,null,"IDX",992345383,{"$f":"Table25[[#This Row],[Energy use (kg of oil equivalent per capita) in 2014]]*Table26[[#This Row],[population in 2014]]*11.63*0.000000001","v":4437.8516847676146}]
["IMN",570,null,"IMN",null,null,"IMN",83488,{"$f":"Table25[[#This Row],[Energy use (kg of oil equivalent per capita) in 2014]]*Table26[[#This Row],[population in 2014]]*11.63*0.000000001","v":0}]
["IND",2973190,null,"IND",636.57183398643997,null,"IND",1295600768,{"$f":"Table25[[#This Row],[Energy use (kg of oil equivalent per capita) in 2014]]*Table26[[#This Row],[population in 2014]]*11.63*0.000000001","v":9591.7605899100017}]
["INX",null,null,"INX",null,null,"INX",null,{"$f":"Table25[[#This Row],[Energy use (kg of oil equivalent per capita) in 2014]]*Table26[[#This Row],[population in 2014]]*11.63*0.000000001","v":0}]
["IRL",68890,null,"IRL",2741.5748839565968,null,"IRL",4657740,{"$f":"Table25[[#This Row],[Energy use (kg of oil equivalent per capita) in 2014]]*Table26[[#This Row],[population in 2014]]*11.63*0.000000001","v":148.50978509000001}]
["IRN",1622500,null,"IRN",3060.3864140301766,null,"IRN",77465769,{"$f":"Table25[[#This Row],[Energy use (kg of oil equivalent per capita) in 2014]]*Table26[[#This Row],[population in 2014]]*11.63*0.000000001","v":2757.1844248100006}]
["IRQ",434128,null,"IRQ",1437.9006257390422,null,"IRQ",34411949,{"$f":"Table25[[#This Row],[Energy use (kg of oil equivalent per capita) in 2014]]*Table26[[#This Row],[population in 2014]]*11.63*0.000000001","v":575.46359969000014}]
["ISL",100830,null,"ISL",17916.120420543335,null,"ISL",327386,{"$f":"Table25[[#This Row],[Energy use (kg of oil equivalent per capita) in 2014]]*Table26[[#This Row],[population in 2014]]*11.63*0.000000001","v":68.215613810000008}]
["ISR",21640,null,"ISR",2762.5059337609696,null,"ISR",8215700,{"$f":"Table25[[#This Row],[Energy use (kg of oil equivalent per capita) in 2014]]*Table26[[#This Row],[population in 2014]]*11.63*0.000000001","v":263.95354959999997}]
["ITA",295717,null,"ITA",2414.4840015831774,null,"ITA",60789140,{"$f":"Table25[[#This Row],[Energy use (kg of oil equivalent per capita) in 2014]]*Table26[[#This Row],[population in 2014]]*11.63*0.000000001","v":1706.9863417800002}]
["JAM",10830,null,"JAM",976.85814623790111,null,"JAM",2875137,{"$f":"Table25[[#This Row],[Energy use (kg of oil equivalent per capita) in 2014]]*Table26[[#This Row],[population in 2014]]*11.63*0.000000001","v":32.664029630000009}]
["JOR",88794,null,"JOR",917.11898723844911,null,"JOR",8918822,{"$f":"Table25[[#This Row],[Energy use (kg of oil equivalent per capita) in 2014]]*Table26[[#This Row],[population in 2014]]*11.63*0.000000001","v":95.128992230000009}]
["JPN",364500,null,"JPN",3470.7631289481124,null,"JPN",127276000,{"$f":"Table25[[#This Row],[Energy use (kg of oil equivalent per capita) in 2014]]*Table26[[#This Row],[population in 2014]]*11.63*0.000000001","v":5137.49258224}]
["KAZ",2699700,null,"KAZ",4434.6391212315157,null,"KAZ",17288285,{"$f":"Table25[[#This Row],[Energy use (kg of oil equivalent per capita) in 2014]]*Table26[[#This Row],[population in 2014]]*11.63*0.000000001","v":891.64075715000001}]
["KEN",569140,null,"KEN",505.99651225309907,null,"KEN",46700063,{"$f":"Table25[[#This Row],[Energy use (kg of oil equivalent per capita) in 2014]]*Table26[[#This Row],[population in 2014]]*11.63*0.000000001","v":274.81770247000003}]
["KGZ",191800,null,"KGZ",650.40150801131006,null,"KGZ",5835500,{"$f":"Table25[[#This Row],[Energy use (kg of oil equivalent per capita) in 2014]]*Table26[[#This Row],[population in 2014]]*11.63*0.000000001","v":44.140711340000003}]
["KHM",176520,null,"KHM",416.83822704315276,null,"KHM",15274506,{"$f":"Table25[[#This Row],[Energy use (kg of oil equivalent per capita) in 2014]]*Table26[[#This Row],[population in 2014]]*11.63*0.000000001","v":74.048186740000006}]
["KIR",810,null,"KIR",null,null,"KIR",109387,{"$f":"Table25[[#This Row],[Energy use (kg of oil equivalent per capita) in 2014]]*Table26[[#This Row],[population in 2014]]*11.63*0.000000001","v":0}]
["KNA",260,null,"KNA",null,null,"KNA",50776,{"$f":"Table25[[#This Row],[Energy use (kg of oil equivalent per capita) in 2014]]*Table26[[#This Row],[population in 2014]]*11.63*0.000000001","v":0}]
["KOR",97600,null,"KOR",5289.2758319321074,null,"KOR",50746659,{"$f":"Table25[[#This Row],[Energy use (kg of oil equivalent per capita) in 2014]]*Table26[[#This Row],[population in 2014]]*11.63*0.000000001","v":3121.64408551}]
["KWT",17820,null,"KWT",9178.8905208132655,null,"KWT",3690939,{"$f":"Table25[[#This Row],[Energy use (kg of oil equivalent per capita) in 2014]]*Table26[[#This Row],[population in 2014]]*11.63*0.000000001","v":394.00957174999996}]
["LAC",18136660,null,"LAC",1304.5906667493982,null,"LAC",554632891,{"$f":"Table25[[#This Row],[Energy use (kg of oil equivalent per capita) in 2014]]*Table26[[#This Row],[population in 2014]]*11.63*0.000000001","v":8415.1062264138272}]
["LAO",230800,null,"LAO",null,null,"LAO",6639763,{"$f":"Table25[[#This Row],[Energy use (kg of oil equivalent per capita) in 2014]]*Table26[[#This Row],[population in 2014]]*11.63*0.000000001","v":0}]
["LBN",10230,null,"LBN",1196.8663063647832,null,"LBN",6261046,{"$f":"Table25[[#This Row],[Energy use (kg of oil equivalent per capita) in 2014]]*Table26[[#This Row],[population in 2014]]*11.63*0.000000001","v":87.150975050000014}]
["LBR",96320,null,"LBR",null,null,"LBR",4359508,{"$f":"Table25[[#This Row],[Energy use (kg of oil equivalent per capita) in 2014]]*Table26[[#This Row],[population in 2014]]*11.63*0.000000001","v":0}]
["LBY",1759540,null,"LBY",2808.6473534663965,null,"LBY",6362039,{"$f":"Table25[[#This Row],[Energy use (kg of oil equivalent per capita) in 2014]]*Table26[[#This Row],[population in 2014]]*11.63*0.000000001","v":207.81326012000002}]
["LCA",610,null,"LCA",null,null,"LCA",178307,{"$f":"Table25[[#This Row],[Energy use (kg of oil equivalent per capita) in 2014]]*Table26[[#This Row],[population in 2014]]*11.63*0.000000001","v":0}]
["LCN",20038980,null,"LCN",1359.6165124907286,null,"LCN",615999056,{"$f":"Table25[[#This Row],[Energy use (kg of oil equivalent per capita) in 2014]]*Table26[[#This Row],[population in 2014]]*11.63*0.000000001","v":9740.3865379555828}]
["LDC",20398133.094000001,null,"LDC",370.51090883585766,null,"LDC",918959067,{"$f":"Table25[[#This Row],[Energy use (kg of oil equivalent per capita) in 2014]]*Table26[[#This Row],[population in 2014]]*11.63*0.000000001","v":3959.8330962995274}]
["LIC",15734412.094000001,null,"LIC",null,null,"LIC",584767206,{"$f":"Table25[[#This Row],[Energy use (kg of oil equivalent per capita) in 2014]]*Table26[[#This Row],[population in 2014]]*11.63*0.000000001","v":0}]
["LIE",160,null,"LIE",null,null,"LIE",37219,{"$f":"Table25[[#This Row],[Energy use (kg of oil equivalent per capita) in 2014]]*Table26[[#This Row],[population in 2014]]*11.63*0.000000001","v":0}]
["LKA",61860,null,"LKA",515.51102127249976,null,"LKA",20778000,{"$f":"Table25[[#This Row],[Energy use (kg of oil equivalent per capita) in 2014]]*Table26[[#This Row],[population in 2014]]*11.63*0.000000001","v":124.57227944000002}]
["LMC",24841039.802999999,null,"LMC",712.97870892076526,null,"LMC",3048756862,{"$f":"Table25[[#This Row],[Energy use (kg of oil equivalent per capita) in 2014]]*Table26[[#This Row],[population in 2014]]*11.63*0.000000001","v":25280.116244810637}]
["LMY",93851817.397,null,"LMY",1328.7770661501199,null,"LMY",6027587134,{"$f":"Table25[[#This Row],[Energy use (kg of oil equivalent per capita) in 2014]]*Table26[[#This Row],[population in 2014]]*11.63*0.000000001","v":93148.386341852893}]
["LSO",30360,null,"LSO",null,null,"LSO",2043448,{"$f":"Table25[[#This Row],[Energy use (kg of oil equivalent per capita) in 2014]]*Table26[[#This Row],[population in 2014]]*11.63*0.000000001","v":0}]
["LTE",44561482.303000003,null,"LTE",2301.6140142988247,null,"LTE",2241445370,{"$f":"Table25[[#This Row],[Energy use (kg of oil equivalent per capita) in 2014]]*Table26[[#This Row],[population in 2014]]*11.63*0.000000001","v":59998.496342452017}]
["LTU",62620,null,"LTU",2387.2751944077941,null,"LTU",2932367,{"$f":"Table25[[#This Row],[Energy use (kg of oil equivalent per capita) in 2014]]*Table26[[#This Row],[population in 2014]]*11.63*0.000000001","v":81.414268210000003}]
["LUX",2574.46,null,"LUX",6861.1066672179086,null,"LUX",556319,{"$f":"Table25[[#This Row],[Energy use (kg of oil equivalent per capita) in 2014]]*Table26[[#This Row],[population in 2014]]*11.63*0.000000001","v":44.391291320000001}]
["LVA",62230,null,"LVA",2176.8433058378496,null,"LVA",1993782,{"$f":"Table25[[#This Row],[Energy use (kg of oil equivalent per capita) in 2014]]*Table26[[#This Row],[population in 2014]]*11.63*0.000000001","v":50.475956129999993}]
["MAC",32.9,null,"MAC",null,null,"MAC",590210,{"$f":"Table25[[#This Row],[Energy use (kg of oil equivalent per capita) in 2014]]*Table26[[#This Row],[population in 2014]]*11.63*0.000000001","v":0}]
["MAF",50,null,"MAF",null,null,"MAF",36018,{"$f":"Table25[[#This Row],[Energy use (kg of oil equivalent per capita) in 2014]]*Table26[[#This Row],[population in 2014]]*11.63*0.000000001","v":0}]
["MAR",446300,null,"MAR",555.13770065229198,null,"MAR",34192358,{"$f":"Table25[[#This Row],[Energy use (kg of oil equivalent per capita) in 2014]]*Table26[[#This Row],[population in 2014]]*11.63*0.000000001","v":220.75446121000002}]
["MCO",2.0269999999999997,null,"MCO",null,null,"MCO",37320,{"$f":"Table25[[#This Row],[Energy use (kg of oil equivalent per capita) in 2014]]*Table26[[#This Row],[population in 2014]]*11.63*0.000000001","v":0}]
["MDA",32884.6,null,"MDA",1155.6124538406343,null,"MDA",2856950,{"$f":"Table25[[#This Row],[Energy use (kg of oil equivalent per capita) in 2014]]*Table26[[#This Row],[population in 2014]]*11.63*0.000000001","v":38.396759010000004}]
["MDG",581800,null,"MDG",null,null,"MDG",23589897,{"$f":"Table25[[#This Row],[Energy use (kg of oil equivalent per capita) in 2014]]*Table26[[#This Row],[population in 2014]]*11.63*0.000000001","v":0}]
["MDV",300,null,"MDV",null,null,"MDV",435018,{"$f":"Table25[[#This Row],[Energy use (kg of oil equivalent per capita) in 2014]]*Table26[[#This Row],[population in 2014]]*11.63*0.000000001","v":0}]
["MEA",11217108,null,"MEA",2353.2731264204226,null,"MEA",417924350,{"$f":"Table25[[#This Row],[Energy use (kg of oil equivalent per capita) in 2014]]*Table26[[#This Row],[population in 2014]]*11.63*0.000000001","v":11437.990348339938}]
["MEX",1943950,null,"MEX",1561.873341559156,null,"MEX",120355137,{"$f":"Table25[[#This Row],[Energy use (kg of oil equivalent per capita) in 2014]]*Table26[[#This Row],[population in 2014]]*11.63*0.000000001","v":2186.2013524000004}]
["MHL",180,null,"MHL",null,null,"MHL",57183,{"$f":"Table25[[#This Row],[Energy use (kg of oil equivalent per capita) in 2014]]*Table26[[#This Row],[population in 2014]]*11.63*0.000000001","v":0}]
["MIC",78117405.303000003,null,"MIC",1384.0325590246589,null,"MIC",5442819928,{"$f":"Table25[[#This Row],[Energy use (kg of oil equivalent per capita) in 2014]]*Table26[[#This Row],[population in 2014]]*11.63*0.000000001","v":87609.255121616719}]
["MKD",25220,null,"MKD",1268.6780128959488,null,"MKD",2067471,{"$f":"Table25[[#This Row],[Energy use (kg of oil equivalent per capita) in 2014]]*Table26[[#This Row],[population in 2014]]*11.63*0.000000001","v":30.504966650000007}]
["MLI",1220190,null,"MLI",null,null,"MLI",16934213,{"$f":"Table25[[#This Row],[Energy use (kg of oil equivalent per capita) in 2014]]*Table26[[#This Row],[population in 2014]]*11.63*0.000000001","v":0}]
["MLT",320,null,"MLT",1781.5044251860513,null,"MLT",434558,{"$f":"Table25[[#This Row],[Energy use (kg of oil equivalent per capita) in 2014]]*Table26[[#This Row],[population in 2014]]*11.63*0.000000001","v":9.0035622100000019}]
["MMR",652670,null,"MMR",369.33220399620393,null,"MMR",52280816,{"$f":"Table25[[#This Row],[Energy use (kg of oil equivalent per capita) in 2014]]*Table26[[#This Row],[population in 2014]]*11.63*0.000000001","v":224.56354207000007}]
["MNA",8634843,null,"MNA",1490.1903165981271,null,"MNA",357629838,{"$f":"Table25[[#This Row],[Energy use (kg of oil equivalent per capita) in 2014]]*Table26[[#This Row],[population in 2014]]*11.63*0.000000001","v":6198.0517452096456}]
["MNE",13450,null,"MNE",1538.2640999662276,null,"MNE",621810,{"$f":"Table25[[#This Row],[Energy use (kg of oil equivalent per capita) in 2014]]*Table26[[#This Row],[population in 2014]]*11.63*0.000000001","v":11.12418804}]
["MNG",1557506.8030000001,null,"MNG",1828.1013880088201,null,"MNG",2940111,{"$f":"Table25[[#This Row],[Energy use (kg of oil equivalent per capita) in 2014]]*Table26[[#This Row],[population in 2014]]*11.63*0.000000001","v":62.509168230000014}]
["MNP",460,null,"MNP",null,null,"MNP",55301,{"$f":"Table25[[#This Row],[Energy use (kg of oil equivalent per capita) in 2014]]*Table26[[#This Row],[population in 2014]]*11.63*0.000000001","v":0}]
["MOZ",786380,null,"MOZ",442.66472678887834,null,"MOZ",26286192,{"$f":"Table25[[#This Row],[Energy use (kg of oil equivalent per capita) in 2014]]*Table26[[#This Row],[population in 2014]]*11.63*0.000000001","v":135.32633110000003}]
["MRT",1030700,null,"MRT",null,null,"MRT",3930894,{"$f":"Table25[[#This Row],[Energy use (kg of oil equivalent per capita) in 2014]]*Table26[[#This Row],[population in 2014]]*11.63*0.000000001","v":0}]
["MUS",2030,null,"MUS",1111.4221680119658,null,"MUS",1260934,{"$f":"Table25[[#This Row],[Energy use (kg of oil equivalent per capita) in 2014]]*Table26[[#This Row],[population in 2014]]*11.63*0.000000001","v":16.298630900000003}]
["MWI",94280,null,"MWI",null,null,"MWI",16289550,{"$f":"Table25[[#This Row],[Energy use (kg of oil equivalent per capita) in 2014]]*Table26[[#This Row],[population in 2014]]*11.63*0.000000001","v":0}]
["MYS",328550,null,"MYS",3003.4510449563636,null,"MYS",29866606,{"$f":"Table25[[#This Row],[Energy use (kg of oil equivalent per capita) in 2014]]*Table26[[#This Row],[population in 2014]]*11.63*0.000000001","v":1043.2445990700003}]
["NAC",18113064,null,"NAC",7054.5469919312709,null,"NAC",353888902,{"$f":"Table25[[#This Row],[Energy use (kg of oil equivalent per capita) in 2014]]*Table26[[#This Row],[population in 2014]]*11.63*0.000000001","v":29034.596090023206}]
["NAM",823290,null,"NAM",794.30032030952395,null,"NAM",2273426,{"$f":"Table25[[#This Row],[Energy use (kg of oil equivalent per capita) in 2014]]*Table26[[#This Row],[population in 2014]]*11.63*0.000000001","v":21.001256290000001}]
["NCL",18280,null,"NCL",null,null,"NCL",268050,{"$f":"Table25[[#This Row],[Energy use (kg of oil equivalent per capita) in 2014]]*Table26[[#This Row],[population in 2014]]*11.63*0.000000001","v":0}]
["NER",1266700,null,"NER",150.01365371699706,null,"NER",19240182,{"$f":"Table25[[#This Row],[Energy use (kg of oil equivalent per capita) in 2014]]*Table26[[#This Row],[population in 2014]]*11.63*0.000000001","v":33.567552700000007}]
["NGA",910770,null,"NGA",763.63185108470691,null,"NGA",176404931,{"$f":"Table25[[#This Row],[Energy use (kg of oil equivalent per capita) in 2014]]*Table26[[#This Row],[population in 2014]]*11.63*0.000000001","v":1566.6589711200002}]
["NIC",120340,null,"NIC",596.243789817368,null,"NIC",6142734,{"$f":"Table25[[#This Row],[Energy use (kg of oil equivalent per capita) in 2014]]*Table26[[#This Row],[population in 2014]]*11.63*0.000000001","v":42.595654209999999}]
["NLD",33670,null,"NLD",4325.5237115808068,null,"NLD",16865008,{"$f":"Table25[[#This Row],[Energy use (kg of oil equivalent per capita) in 2014]]*Table26[[#This Row],[population in 2014]]*11.63*0.000000001","v":848.40840696000009}]
["NOR",364285,null,"NOR",5595.6546249030598,null,"NOR",5137232,{"$f":"Table25[[#This Row],[Energy use (kg of oil equivalent per capita) in 2014]]*Table26[[#This Row],[population in 2014]]*11.63*0.000000001","v":334.31802688000005}]
["NPL",143350,null,"NPL",434.4645365480435,null,"NPL",26905982,{"$f":"Table25[[#This Row],[Energy use (kg of oil equivalent per capita) in 2014]]*Table26[[#This Row],[population in 2014]]*11.63*0.000000001","v":135.95115285000003}]
["NRU",20,null,"NRU",null,null,"NRU",10289,{"$f":"Table25[[#This Row],[Energy use (kg of oil equivalent per capita) in 2014]]*Table26[[#This Row],[population in 2014]]*11.63*0.000000001","v":0}]
["NZL",263310,null,"NZL",4553.0269013616735,null,"NZL",4516500,{"$f":"Table25[[#This Row],[Energy use (kg of oil equivalent per capita) in 2014]]*Table26[[#This Row],[population in 2014]]*11.63*0.000000001","v":239.15636598000003}]
["OED",35508602.197000004,null,"OED",4020.6810145206055,null,"OED",1324034852,{"$f":"Table25[[#This Row],[Energy use (kg of oil equivalent per capita) in 2014]]*Table26[[#This Row],[population in 2014]]*11.63*0.000000001","v":61912.558440960012}]
["OMN",309500,null,"OMN",6040.6164993277052,null,"OMN",4027255,{"$f":"Table25[[#This Row],[Energy use (kg of oil equivalent per capita) in 2014]]*Table26[[#This Row],[population in 2014]]*11.63*0.000000001","v":282.92420788999999}]
["OSS",2031566,null,"OSS",null,null,"OSS",28364446,{"$f":"Table25[[#This Row],[Energy use (kg of oil equivalent per capita) in 2014]]*Table26[[#This Row],[population in 2014]]*11.63*0.000000001","v":0}]
["PAK",770880,null,"PAK",460.23906954318204,null,"PAK",195305012,{"$f":"Table25[[#This Row],[Energy use (kg of oil equivalent per capita) in 2014]]*Table26[[#This Row],[population in 2014]]*11.63*0.000000001","v":1045.3857751100002}]
["PAN",74180,null,"PAN",1079.870074444206,null,"PAN",3901311,{"$f":"Table25[[#This Row],[Energy use (kg of oil equivalent per capita) in 2014]]*Table26[[#This Row],[population in 2014]]*11.63*0.000000001","v":48.996131670000004}]
["PER",1280000,null,"PER",790.2168507587744,null,"PER",30090372,{"$f":"Table25[[#This Row],[Energy use (kg of oil equivalent per capita) in 2014]]*Table26[[#This Row],[population in 2014]]*11.63*0.000000001","v":276.53719797000008}]
["PHL",298170,null,"PHL",474.29788207684732,null,"PHL",100513137,{"$f":"Table25[[#This Row],[Energy use (kg of oil equivalent per capita) in 2014]]*Table26[[#This Row],[population in 2014]]*11.63*0.000000001","v":554.43894383999998}]
["PLW",460,null,"PLW",null,null,"PLW",17625,{"$f":"Table25[[#This Row],[Energy use (kg of oil equivalent per capita) in 2014]]*Table26[[#This Row],[population in 2014]]*11.63*0.000000001","v":0}]
["PNG",452860,null,"PNG",null,null,"PNG",7946733,{"$f":"Table25[[#This Row],[Energy use (kg of oil equivalent per capita) in 2014]]*Table26[[#This Row],[population in 2014]]*11.63*0.000000001","v":0}]
["POL",306130,null,"POL",2473.4068834269206,null,"POL",38011735,{"$f":"Table25[[#This Row],[Energy use (kg of oil equivalent per capita) in 2014]]*Table26[[#This Row],[population in 2014]]*11.63*0.000000001","v":1093.4350038100001}]
["PRE",20308679.829,null,"PRE",583.63308352352806,null,"PRE",821931559,{"$f":"Table25[[#This Row],[Energy use (kg of oil equivalent per capita) in 2014]]*Table26[[#This Row],[population in 2014]]*11.63*0.000000001","v":5578.9860161105944}]
["PRI",8870,null,"PRI",null,null,"PRI",3534874,{"$f":"Table25[[#This Row],[Energy use (kg of oil equivalent per capita) in 2014]]*Table26[[#This Row],[population in 2014]]*11.63*0.000000001","v":0}]
["PRK",120410,null,"PRK",475.3475695165971,null,"PRK",25057793,{"$f":"Table25[[#This Row],[Energy use (kg of oil equivalent per capita) in 2014]]*Table26[[#This Row],[population in 2014]]*11.63*0.000000001","v":138.52680243}]
["PRT",91605.6,null,"PRT",2034.5126295757107,null,"PRT",10401062,{"$f":"Table25[[#This Row],[Energy use (kg of oil equivalent per capita) in 2014]]*Table26[[#This Row],[population in 2014]]*11.63*0.000000001","v":246.10349996000005}]
["PRY",397300,null,"PRY",783.07996152449778,null,"PRY",6599524,{"$f":"Table25[[#This Row],[Energy use (kg of oil equivalent per capita) in 2014]]*Table26[[#This Row],[population in 2014]]*11.63*0.000000001","v":60.103316650000011}]
["PSE",6020,null,"PSE",null,null,"PSE",4173398,{"$f":"Table25[[#This Row],[Energy use (kg of oil equivalent per capita) in 2014]]*Table26[[#This Row],[population in 2014]]*11.63*0.000000001","v":0}]
["PSS",64150,null,"PSS",null,null,"PSS",2323558,{"$f":"Table25[[#This Row],[Energy use (kg of oil equivalent per capita) in 2014]]*Table26[[#This Row],[population in 2014]]*11.63*0.000000001","v":0}]
["PST",31345271.097000003,null,"PST",4581.8566802699324,null,"PST",1092062242,{"$f":"Table25[[#This Row],[Energy use (kg of oil equivalent per capita) in 2014]]*Table26[[#This Row],[population in 2014]]*11.63*0.000000001","v":58192.713254191171}]
["PYF",3471,null,"PYF",null,null,"PYF",271713,{"$f":"Table25[[#This Row],[Energy use (kg of oil equivalent per capita) in 2014]]*Table26[[#This Row],[population in 2014]]*11.63*0.000000001","v":0}]
["QAT",11490,null,"QAT",17922.703787651441,null,"QAT",2459202,{"$f":"Table25[[#This Row],[Energy use (kg of oil equivalent per capita) in 2014]]*Table26[[#This Row],[population in 2014]]*11.63*0.000000001","v":512.59863487000007}]
["ROU",230080,null,"ROU",1591.6676590999466,null,"ROU",19908979,{"$f":"Table25[[#This Row],[Energy use (kg of oil equivalent per capita) in 2014]]*Table26[[#This Row],[population in 2014]]*11.63*0.000000001","v":368.53699914000003}]
["RUS",16376870,null,"RUS",4942.8754830867465,null,"RUS",143819667,{"$f":"Table25[[#This Row],[Energy use (kg of oil equivalent per capita) in 2014]]*Table26[[#This Row],[population in 2014]]*11.63*0.000000001","v":8267.5658707800012}]
["RWA",24670,null,"RWA",null,null,"RWA",11083629,{"$f":"Table25[[#This Row],[Energy use (kg of oil equivalent per capita) in 2014]]*Table26[[#This Row],[population in 2014]]*11.63*0.000000001","v":0}]
["SAS",4770120,null,"SAS",574.36065562837064,null,"SAS",1727632022,{"$f":"Table25[[#This Row],[Energy use (kg of oil equivalent per capita) in 2014]]*Table26[[#This Row],[population in 2014]]*11.63*0.000000001","v":11540.261301574874}]
["SAU",2149690,null,"SAU",6905.8434395266522,null,"SAU",30916603,{"$f":"Table25[[#This Row],[Energy use (kg of oil equivalent per capita) in 2014]]*Table26[[#This Row],[population in 2014]]*11.63*0.000000001","v":2483.0657086000001}]
["SDN",1868000,null,"SDN",394.63966931925268,null,"SDN",37977657,{"$f":"Table25[[#This Row],[Energy use (kg of oil equivalent per capita) in 2014]]*Table26[[#This Row],[population in 2014]]*11.63*0.000000001","v":174.30450870000004}]
["SEN",192530,null,"SEN",279.21041232502324,null,"SEN",14174740,{"$f":"Table25[[#This Row],[Energy use (kg of oil equivalent per capita) in 2014]]*Table26[[#This Row],[population in 2014]]*11.63*0.000000001","v":46.028458050000005}]
["SGP",718,null,"SGP",5121.8043177315712,null,"SGP",5469724,{"$f":"Table25[[#This Row],[Energy use (kg of oil equivalent per capita) in 2014]]*Table26[[#This Row],[population in 2014]]*11.63*0.000000001","v":325.81277528000004}]
["SLB",27990,null,"SLB",null,null,"SLB",587079,{"$f":"Table25[[#This Row],[Energy use (kg of oil equivalent per capita) in 2014]]*Table26[[#This Row],[population in 2014]]*11.63*0.000000001","v":0}]
["SLE",72180,null,"SLE",null,null,"SLE",7017153,{"$f":"Table25[[#This Row],[Energy use (kg of oil equivalent per capita) in 2014]]*Table26[[#This Row],[population in 2014]]*11.63*0.000000001","v":0}]
["SLV",20720,null,"SLV",645.87671346902778,null,"SLV",6295124,{"$f":"Table25[[#This Row],[Energy use (kg of oil equivalent per capita) in 2014]]*Table26[[#This Row],[population in 2014]]*11.63*0.000000001","v":47.286114620000006}]
["SMR",60,null,"SMR",null,null,"SMR",32941,{"$f":"Table25[[#This Row],[Energy use (kg of oil equivalent per capita) in 2014]]*Table26[[#This Row],[population in 2014]]*11.63*0.000000001","v":0}]
["SOM",627340,null,"SOM",null,null,"SOM",13423571,{"$f":"Table25[[#This Row],[Energy use (kg of oil equivalent per capita) in 2014]]*Table26[[#This Row],[population in 2014]]*11.63*0.000000001","v":0}]
["SRB",87460,null,"SRB",1859.4288876522739,null,"SRB",7130576,{"$f":"Table25[[#This Row],[Energy use (kg of oil equivalent per capita) in 2014]]*Table26[[#This Row],[population in 2014]]*11.63*0.000000001","v":154.19983237}]
["SSA",23890436.094000001,null,"SSA",687.2268615370092,null,"SSA",968866993,{"$f":"Table25[[#This Row],[Energy use (kg of oil equivalent per capita) in 2014]]*Table26[[#This Row],[population in 2014]]*11.63*0.000000001","v":7743.6194477011841}]
["SSD",631930,null,"SSD",66.342001739100454,null,"SSD",10554882,{"$f":"Table25[[#This Row],[Energy use (kg of oil equivalent per capita) in 2014]]*Table26[[#This Row],[population in 2014]]*11.63*0.000000001","v":8.1436981600000031}]
["SSF",23890896.094000001,null,"SSF",687.2268615370092,null,"SSF",968958352,{"$f":"Table25[[#This Row],[Energy use (kg of oil equivalent per capita) in 2014]]*Table26[[#This Row],[population in 2014]]*11.63*0.000000001","v":7744.3496297945294}]
["SST",2500566,null,"SST",null,null,"SST",37861447,{"$f":"Table25[[#This Row],[Energy use (kg of oil equivalent per capita) in 2014]]*Table26[[#This Row],[population in 2014]]*11.63*0.000000001","v":0}]
["STP",960,null,"STP",null,null,"STP",195727,{"$f":"Table25[[#This Row],[Energy use (kg of oil equivalent per capita) in 2014]]*Table26[[#This Row],[population in 2014]]*11.63*0.000000001","v":0}]
["SUR",156000,null,"SUR",1247.3114781357654,null,"SUR",553278,{"$f":"Table25[[#This Row],[Energy use (kg of oil equivalent per capita) in 2014]]*Table26[[#This Row],[population in 2014]]*11.63*0.000000001","v":8.0259793000000013}]
["SVK",48080,null,"SVK",2943.1891602500918,null,"SVK",5418649,{"$f":"Table25[[#This Row],[Energy use (kg of oil equivalent per capita) in 2014]]*Table26[[#This Row],[population in 2014]]*11.63*0.000000001","v":185.47650767000002}]
["SVN",20136.400000000001,null,"SVN",3236.2360449664884,null,"SVN",2061980,{"$f":"Table25[[#This Row],[Energy use (kg of oil equivalent per capita) in 2014]]*Table26[[#This Row],[population in 2014]]*11.63*0.000000001","v":77.607618020000004}]
["SWE",407283.53200000001,null,"SWE",4966.4359212096397,null,"SWE",9696110,{"$f":"Table25[[#This Row],[Energy use (kg of oil equivalent per capita) in 2014]]*Table26[[#This Row],[population in 2014]]*11.63*0.000000001","v":560.04391767000004}]
["SWZ",17200,null,"SWZ",null,null,"SWZ",1095022,{"$f":"Table25[[#This Row],[Energy use (kg of oil equivalent per capita) in 2014]]*Table26[[#This Row],[population in 2014]]*11.63*0.000000001","v":0}]
["SXM",34,null,"SXM",null,null,"SXM",37685,{"$f":"Table25[[#This Row],[Energy use (kg of oil equivalent per capita) in 2014]]*Table26[[#This Row],[population in 2014]]*11.63*0.000000001","v":0}]
["SYC",460,null,"SYC",null,null,"SYC",91359,{"$f":"Table25[[#This Row],[Energy use (kg of oil equivalent per capita) in 2014]]*Table26[[#This Row],[population in 2014]]*11.63*0.000000001","v":0}]
["SYR",183630,null,"SYR",577.33872325856566,null,"SYR",18710711,{"$f":"Table25[[#This Row],[Energy use (kg of oil equivalent per capita) in 2014]]*Table26[[#This Row],[population in 2014]]*11.63*0.000000001","v":125.63212134000003}]
["TCA",950,null,"TCA",null,null,"TCA",35371,{"$f":"Table25[[#This Row],[Energy use (kg of oil equivalent per capita) in 2014]]*Table26[[#This Row],[population in 2014]]*11.63*0.000000001","v":0}]
["TCD",1259200,null,"TCD",null,null,"TCD",13663562,{"$f":"Table25[[#This Row],[Energy use (kg of oil equivalent per capita) in 2014]]*Table26[[#This Row],[population in 2014]]*11.63*0.000000001","v":0}]
["TEA",15902637.703,null,"TEA",1887.9901761428296,null,"TEA",2006100237,{"$f":"Table25[[#This Row],[Energy use (kg of oil equivalent per capita) in 2014]]*Table26[[#This Row],[population in 2014]]*11.63*0.000000001","v":44048.59638803453}]
["TEC",22988700.600000001,null,"TEC",3058.7796819231953,null,"TEC",449780961,{"$f":"Table25[[#This Row],[Energy use (kg of oil equivalent per capita) in 2014]]*Table26[[#This Row],[population in 2014]]*11.63*0.000000001","v":16000.331457887878}]
["TGO",54390,null,"TGO",462.49094809090002,null,"TGO",7137997,{"$f":"Table25[[#This Row],[Energy use (kg of oil equivalent per capita) in 2014]]*Table26[[#This Row],[population in 2014]]*11.63*0.000000001","v":38.39364217}]
["THA",510890,null,"THA",1969.0012008986489,null,"THA",68438748,{"$f":"Table25[[#This Row],[Energy use (kg of oil equivalent per capita) in 2014]]*Table26[[#This Row],[population in 2014]]*11.63*0.000000001","v":1567.21201251}]
["TJK",138790,null,"TJK",339.85235121827327,null,"TJK",8252828,{"$f":"Table25[[#This Row],[Energy use (kg of oil equivalent per capita) in 2014]]*Table26[[#This Row],[population in 2014]]*11.63*0.000000001","v":32.619161089999999}]
["TKM",469930,null,"TKM",4893.4131968759993,null,"TKM",5466324,{"$f":"Table25[[#This Row],[Energy use (kg of oil equivalent per capita) in 2014]]*Table26[[#This Row],[population in 2014]]*11.63*0.000000001","v":311.09066066000003}]
["TLA",19913472,null,"TLA",1362.9844763353879,null,"TLA",599935349,{"$f":"Table25[[#This Row],[Energy use (kg of oil equivalent per capita) in 2014]]*Table26[[#This Row],[population in 2014]]*11.63*0.000000001","v":9509.880859930252}]
["TLS",14870,null,"TLS",null,null,"TLS",1174333,{"$f":"Table25[[#This Row],[Energy use (kg of oil equivalent per capita) in 2014]]*Table26[[#This Row],[population in 2014]]*11.63*0.000000001","v":0}]
["TMN",8628823,null,"TMN",1490.1903165981271,null,"TMN",353456440,{"$f":"Table25[[#This Row],[Energy use (kg of oil equivalent per capita) in 2014]]*Table26[[#This Row],[population in 2014]]*11.63*0.000000001","v":6125.7229459628825}]
["TON",720,null,"TON",null,null,"TON",101023,{"$f":"Table25[[#This Row],[Energy use (kg of oil equivalent per capita) in 2014]]*Table26[[#This Row],[population in 2014]]*11.63*0.000000001","v":0}]
["TSA",4770120,null,"TSA",574.36065562837064,null,"TSA",1727632022,{"$f":"Table25[[#This Row],[Energy use (kg of oil equivalent per capita) in 2014]]*Table26[[#This Row],[population in 2014]]*11.63*0.000000001","v":11540.261301574874}]
["TSS",23890896.094000001,null,"TSS",687.2268615370092,null,"TSS",968958352,{"$f":"Table25[[#This Row],[Energy use (kg of oil equivalent per capita) in 2014]]*Table26[[#This Row],[population in 2014]]*11.63*0.000000001","v":7744.3496297945294}]
["TTO",5130,null,"TTO",14363.56863243089,null,"TTO",1362337,{"$f":"Table25[[#This Row],[Energy use (kg of oil equivalent per capita) in 2014]]*Table26[[#This Row],[population in 2014]]*11.63*0.000000001","v":227.57608423000005}]
["TUN",155360,null,"TUN",950.49124597369928,null,"TUN",11063195,{"$f":"Table25[[#This Row],[Energy use (kg of oil equivalent per capita) in 2014]]*Table26[[#This Row],[population in 2014]]*11.63*0.000000001","v":122.29491610000002}]
["TUR",769630,null,"TUR",1573.7697972563819,null,"TUR",77229262,{"$f":"Table25[[#This Row],[Energy use (kg of oil equivalent per capita) in 2014]]*Table26[[#This Row],[population in 2014]]*11.63*0.000000001","v":1413.5227604000002}]
["TUV",30,null,"TUV",null,null,"TUV",10973,{"$f":"Table25[[#This Row],[Energy use (kg of oil equivalent per capita) in 2014]]*Table26[[#This Row],[population in 2014]]*11.63*0.000000001","v":0}]
["TZA",885800,null,"TZA",497.06935848581213,null,"TZA",49960563,{"$f":"Table25[[#This Row],[Energy use (kg of oil equivalent per capita) in 2014]]*Table26[[#This Row],[population in 2014]]*11.63*0.000000001","v":288.81784995000004}]
["UGA",200520,null,"UGA",null,null,"UGA",36911530,{"$f":"Table25[[#This Row],[Energy use (kg of oil equivalent per capita) in 2014]]*Table26[[#This Row],[population in 2014]]*11.63*0.000000001","v":0}]
["UKR",579400,null,"UKR",2334.3964739473963,null,"UKR",45272155,{"$f":"Table25[[#This Row],[Energy use (kg of oil equivalent per capita) in 2014]]*Table26[[#This Row],[population in 2014]]*11.63*0.000000001","v":1229.09513917}]
["UMC",53276365.5,null,"UMC",2193.1071664721126,null,"UMC",2394063066,{"$f":"Table25[[#This Row],[Energy use (kg of oil equivalent per capita) in 2014]]*Table26[[#This Row],[population in 2014]]*11.63*0.000000001","v":61062.580763568185}]
["URY",175020,null,"URY",1386.0180994277503,null,"URY",3400439,{"$f":"Table25[[#This Row],[Energy use (kg of oil equivalent per capita) in 2014]]*Table26[[#This Row],[population in 2014]]*11.63*0.000000001","v":54.813004100000001}]
["USA",9147420,null,"USA",6960.6839965795134,null,"USA",318386329,{"$f":"Table25[[#This Row],[Energy use (kg of oil equivalent per capita) in 2014]]*Table26[[#This Row],[population in 2014]]*11.63*0.000000001","v":25774.250448750001}]
["UZB",440650,null,"UZB",null,null,"UZB",30757700,{"$f":"Table25[[#This Row],[Energy use (kg of oil equivalent per capita) in 2014]]*Table26[[#This Row],[population in 2014]]*11.63*0.000000001","v":0}]
["VCT",390,null,"VCT",null,null,"VCT",108868,{"$f":"Table25[[#This Row],[Energy use (kg of oil equivalent per capita) in 2014]]*Table26[[#This Row],[population in 2014]]*11.63*0.000000001","v":0}]
["VEN",882050,null,"VEN",null,null,"VEN",30042973,{"$f":"Table25[[#This Row],[Energy use (kg of oil equivalent per capita) in 2014]]*Table26[[#This Row],[population in 2014]]*11.63*0.000000001","v":0}]
["VGB",150,null,"VGB",null,null,"VGB",28985,{"$f":"Table25[[#This Row],[Energy use (kg of oil equivalent per capita) in 2014]]*Table26[[#This Row],[population in 2014]]*11.63*0.000000001","v":0}]
["VIR",350,null,"VIR",null,null,"VIR",107882,{"$f":"Table25[[#This Row],[Energy use (kg of oil equivalent per capita) in 2014]]*Table26[[#This Row],[population in 2014]]*11.63*0.000000001","v":0}]
["VNM",313429,null,"VNM",null,null,"VNM",91713850,{"$f":"Table25[[#This Row],[Energy use (kg of oil equivalent per capita) in 2014]]*Table26[[#This Row],[population in 2014]]*11.63*0.000000001","v":0}]
["VUT",12190,null,"VUT",null,null,"VUT",263888,{"$f":"Table25[[#This Row],[Energy use (kg of oil equivalent per capita) in 2014]]*Table26[[#This Row],[population in 2014]]*11.63*0.000000001","v":0}]
["WLD",129979826.521,null,"WLD",1919.9917653763405,null,"WLD",7261846543,{"$f":"Table25[[#This Row],[Energy use (kg of oil equivalent per capita) in 2014]]*Table26[[#This Row],[population in 2014]]*11.63*0.000000001","v":162153.4331091647}]
["WSM",2780,null,"WSM",null,null,"WSM",192220,{"$f":"Table25[[#This Row],[Energy use (kg of oil equivalent per capita) in 2014]]*Table26[[#This Row],[population in 2014]]*11.63*0.000000001","v":0}]
["XKX",null,null,"XKX",1219.3266551594218,null,"XKX",1812771,{"$f":"Table25[[#This Row],[Energy use (kg of oil equivalent per capita) in 2014]]*Table26[[#This Row],[population in 2014]]*11.63*0.000000001","v":25.7064868}]
["YEM",527970,null,"YEM",null,null,"YEM",25823488,{"$f":"Table25[[#This Row],[Energy use (kg of oil equivalent per capita) in 2014]]*Table26[[#This Row],[population in 2014]]*11.63*0.000000001","v":0}]
["ZAF",1213090,null,"ZAF",2695.5057756478677,null,"ZAF",54544184,{"$f":"Table25[[#This Row],[Energy use (kg of oil equivalent per capita) in 2014]]*Table26[[#This Row],[population in 2014]]*11.63*0.000000001","v":1709.8910156900006}]
["ZMB",743390,null,"ZMB",null,null,"ZMB",15399793,{"$f":"Table25[[#This Row],[Energy use (kg of oil equivalent per capita) in 2014]]*Table26[[#This Row],[population in 2014]]*11.63*0.000000001","v":0}]
["ZWE",386850,null,"ZWE",null,null,"ZWE",13586710,{"$f":"Table25[[#This Row],[Energy use (kg of oil equivalent per capita) in 2014]]*Table26[[#This Row],[population in 2014]]*11.63*0.000000001","v":0}]

{"sheet":"cd_rank_countries","index":33,"n_rows":37,"n_cols":3,"rows_kept":37,"cut":false,"hidden":true,"merged":[]}
["sort supply countries by cost"]
[]
["rank","region_code","total_costs"]
[{"$f":"RANK($C4,$C$4:$C$37,1)","v":14},"ARE",{"$f":"IF(IFERROR(SUMIFS(output[value],output[source],$B4,output[variable],\"<>LC\"),1000000)>0,IFERROR(SUMIFS(output[value],output[source],$B4,output[variable],\"<>LC\"),1000000),1000000)","v":144.33274634051406}]
[28,"ARG",{"$f":"IF(IFERROR(SUMIFS(output[value],output[source],$B5,output[variable],\"<>LC\"),1000000)>0,IFERROR(SUMIFS(output[value],output[source],$B5,output[variable],\"<>LC\"),1000000),1000000)","v":238.30347865563257}]
[24,"AUS",{"$f":"IF(IFERROR(SUMIFS(output[value],output[source],$B6,output[variable],\"<>LC\"),1000000)>0,IFERROR(SUMIFS(output[value],output[source],$B6,output[variable],\"<>LC\"),1000000),1000000)","v":200.46831134163068}]
[19,"BRA",{"$f":"IF(IFERROR(SUMIFS(output[value],output[source],$B7,output[variable],\"<>LC\"),1000000)>0,IFERROR(SUMIFS(output[value],output[source],$B7,output[variable],\"<>LC\"),1000000),1000000)","v":166.16666405960947}]
[27,"CHL",{"$f":"IF(IFERROR(SUMIFS(output[value],output[source],$B8,output[variable],\"<>LC\"),1000000)>0,IFERROR(SUMIFS(output[value],output[source],$B8,output[variable],\"<>LC\"),1000000),1000000)","v":233.60626082640309}]
[21,"CHN",{"$f":"IF(IFERROR(SUMIFS(output[value],output[source],$B9,output[variable],\"<>LC\"),1000000)>0,IFERROR(SUMIFS(output[value],output[source],$B9,output[variable],\"<>LC\"),1000000),1000000)","v":178.31701862549164}]
[16,"COL",{"$f":"IF(IFERROR(SUMIFS(output[value],output[source],$B10,output[variable],\"<>LC\"),1000000)>0,IFERROR(SUMIFS(output[value],output[source],$B10,output[variable],\"<>LC\"),1000000),1000000)","v":154.18230524969414}]
[32,"CRI",{"$f":"IF(IFERROR(SUMIFS(output[value],output[source],$B11,output[variable],\"<>LC\"),1000000)>0,IFERROR(SUMIFS(output[value],output[source],$B11,output[variable],\"<>LC\"),1000000),1000000)","v":268.57222429454384}]
[1,"DNK",{"$f":"IF(IFERROR(SUMIFS(output[value],output[source],$B12,output[variable],\"<>LC\"),1000000)>0,IFERROR(SUMIFS(output[value],output[source],$B12,output[variable],\"<>LC\"),1000000),1000000)","v":52.148140773712043}]
[12,"DZA",{"$f":"IF(IFERROR(SUMIFS(output[value],output[source],$B13,output[variable],\"<>LC\"),1000000)>0,IFERROR(SUMIFS(output[value],output[source],$B13,output[variable],\"<>LC\"),1000000),1000000)","v":131.44531888208436}]
[13,"EGY",{"$f":"IF(IFERROR(SUMIFS(output[value],output[source],$B14,output[variable],\"<>LC\"),1000000)>0,IFERROR(SUMIFS(output[value],output[source],$B14,output[variable],\"<>LC\"),1000000),1000000)","v":133.87713038818268}]
[3,"ESP",{"$f":"IF(IFERROR(SUMIFS(output[value],output[source],$B15,output[variable],\"<>LC\"),1000000)>0,IFERROR(SUMIFS(output[value],output[source],$B15,output[variable],\"<>LC\"),1000000),1000000)","v":59.513601301352438}]
[34,"IDN",{"$f":"IF(IFERROR(SUMIFS(output[value],output[source],$B16,output[variable],\"<>LC\"),1000000)>0,IFERROR(SUMIFS(output[value],output[source],$B16,output[variable],\"<>LC\"),1000000),1000000)","v":376.93770635903257}]
[18,"IND",{"$f":"IF(IFERROR(SUMIFS(output[value],output[source],$B17,output[variable],\"<>LC\"),1000000)>0,IFERROR(SUMIFS(output[value],output[source],$B17,output[variable],\"<>LC\"),1000000),1000000)","v":159.29843672216774}]
[23,"JOR",{"$f":"IF(IFERROR(SUMIFS(output[value],output[source],$B18,output[variable],\"<>LC\"),1000000)>0,IFERROR(SUMIFS(output[value],output[source],$B18,output[variable],\"<>LC\"),1000000),1000000)","v":194.24132172636968}]
[6,"KAZ",{"$f":"IF(IFERROR(SUMIFS(output[value],output[source],$B19,output[variable],\"<>LC\"),1000000)>0,IFERROR(SUMIFS(output[value],output[source],$B19,output[variable],\"<>LC\"),1000000),1000000)","v":91.830334871175836}]
[33,"KEN",{"$f":"IF(IFERROR(SUMIFS(output[value],output[source],$B20,output[variable],\"<>LC\"),1000000)>0,IFERROR(SUMIFS(output[value],output[source],$B20,output[variable],\"<>LC\"),1000000),1000000)","v":277.60122824858774}]
[20,"MAR",{"$f":"IF(IFERROR(SUMIFS(output[value],output[source],$B21,output[variable],\"<>LC\"),1000000)>0,IFERROR(SUMIFS(output[value],output[source],$B21,output[variable],\"<>LC\"),1000000),1000000)","v":171.70333473886961}]
[22,"MEX",{"$f":"IF(IFERROR(SUMIFS(output[value],output[source],$B22,output[variable],\"<>LC\"),1000000)>0,IFERROR(SUMIFS(output[value],output[source],$B22,output[variable],\"<>LC\"),1000000),1000000)","v":193.69786950437168}]
[9,"MRT",{"$f":"IF(IFERROR(SUMIFS(output[value],output[source],$B23,output[variable],\"<>LC\"),1000000)>0,IFERROR(SUMIFS(output[value],output[source],$B23,output[variable],\"<>LC\"),1000000),1000000)","v":111.56147860270524}]
[17,"NAM",{"$f":"IF(IFERROR(SUMIFS(output[value],output[source],$B24,output[variable],\"<>LC\"),1000000)>0,IFERROR(SUMIFS(output[value],output[source],$B24,output[variable],\"<>LC\"),1000000),1000000)","v":157.96363381355243}]
[2,"NOR",{"$f":"IF(IFERROR(SUMIFS(output[value],output[source],$B25,output[variable],\"<>LC\"),1000000)>0,IFERROR(SUMIFS(output[value],output[source],$B25,output[variable],\"<>LC\"),1000000),1000000)","v":53.626255940121489}]
[29,"PER",{"$f":"IF(IFERROR(SUMIFS(output[value],output[source],$B26,output[variable],\"<>LC\"),1000000)>0,IFERROR(SUMIFS(output[value],output[source],$B26,output[variable],\"<>LC\"),1000000),1000000)","v":252.32227447130248}]
[4,"PRT",{"$f":"IF(IFERROR(SUMIFS(output[value],output[source],$B27,output[variable],\"<>LC\"),1000000)>0,IFERROR(SUMIFS(output[value],output[source],$B27,output[variable],\"<>LC\"),1000000),1000000)","v":77.060310315271224}]
[8,"RUS",{"$f":"IF(IFERROR(SUMIFS(output[value],output[source],$B28,output[variable],\"<>LC\"),1000000)>0,IFERROR(SUMIFS(output[value],output[source],$B28,output[variable],\"<>LC\"),1000000),1000000)","v":100.93018770415665}]
[10,"SAU",{"$f":"IF(IFERROR(SUMIFS(output[value],output[source],$B29,output[variable],\"<>LC\"),1000000)>0,IFERROR(SUMIFS(output[value],output[source],$B29,output[variable],\"<>LC\"),1000000),1000000)","v":119.16928161703176}]
[5,"SWE",{"$f":"IF(IFERROR(SUMIFS(output[value],output[source],$B30,output[variable],\"<>LC\"),1000000)>0,IFERROR(SUMIFS(output[value],output[source],$B30,output[variable],\"<>LC\"),1000000),1000000)","v":80.414143703503967}]
[31,"THA",{"$f":"IF(IFERROR(SUMIFS(output[value],output[source],$B31,output[variable],\"<>LC\"),1000000)>0,IFERROR(SUMIFS(output[value],output[source],$B31,output[variable],\"<>LC\"),1000000),1000000)","v":254.89598869988527}]
[11,"TUN",{"$f":"IF(IFERROR(SUMIFS(output[value],output[source],$B32,output[variable],\"<>LC\"),1000000)>0,IFERROR(SUMIFS(output[value],output[source],$B32,output[variable],\"<>LC\"),1000000),1000000)","v":128.20271767612996}]
[7,"UKR",{"$f":"IF(IFERROR(SUMIFS(output[value],output[source],$B33,output[variable],\"<>LC\"),1000000)>0,IFERROR(SUMIFS(output[value],output[source],$B33,output[variable],\"<>LC\"),1000000),1000000)","v":94.833048403803105}]
[25,"URY",{"$f":"IF(IFERROR(SUMIFS(output[value],output[source],$B34,output[variable],\"<>LC\"),1000000)>0,IFERROR(SUMIFS(output[value],output[source],$B34,output[variable],\"<>LC\"),1000000),1000000)","v":203.20420289679814}]
[15,"USA",{"$f":"IF(IFERROR(SUMIFS(output[value],output[source],$B35,output[variable],\"<>LC\"),1000000)>0,IFERROR(SUMIFS(output[value],output[source],$B35,output[variable],\"<>LC\"),1000000),1000000)","v":146.73893710025141}]
[30,"VNM",{"$f":"IF(IFERROR(SUMIFS(output[value],output[source],$B36,output[variable],\"<>LC\"),1000000)>0,IFERROR(SUMIFS(output[value],output[source],$B36,output[variable],\"<>LC\"),1000000),1000000)","v":253.84687465348247}]
[26,"ZAF",{"$f":"IF(IFERROR(SUMIFS(output[value],output[source],$B37,output[variable],\"<>LC\"),1000000)>0,IFERROR(SUMIFS(output[value],output[source],$B37,output[variable],\"<>LC\"),1000000),1000000)","v":230.5540013769959}]

{"sheet":"e_view_data_processes","index":34,"n_rows":68,"n_cols":25,"rows_kept":68,"cut":false,"hidden":true,"merged":[[14,19,15,20],[12,19,12,24],[1,19,1,20],[2,19,2,20],[12,5,12,8],[12,11,12,14],[13,5,13,8],[13,11,13,14],[13,19,13,24],[4,3,10,12]]}
[]
[null,null,null,"PROCESS DATA",null,null,null,null,null,null,null,null,null,null,null,null,null,null,null,"YOUR SETTINGS"]
[null,null,null,null,null,null,null,null,null,null,null,null,null,null,null,null,null,null,null,"can be re-adjusted on the dashboard"]
[null,null,null,"View and compare input data for electricity generation and transformation processes",null,null,null,null,null,null,null,null,null,null,null,null,null,null,null,"Supply country:",{"$f":"sel_region_name","v":"Morocco"}]
[null,null,null,"Here you can examine the input data for all processes (for the chosen option).\n- Global default data is used for all countries by default. If, for any parameter, a country-specific value is defined, it is used instead of the global default. \n- Conversion coefficients are only defined on a global level. The determine how much secondary input or output a process uses or generates (e.g. electricity, heat, or water). ",null,null,null,null,null,null,null,null,null,null,null,null,null,null,null,"Demand country:",{"$f":"sel_country_name","v":"Germany"}]
[null,null,null,null,null,null,null,null,null,null,null,null,null,null,null,null,null,null,null,"RE generation:",{"$f":"sel_res_gen_name","v":"Wind-PV-Hybrid"}]
[null,null,null,null,null,null,null,null,null,null,null,null,null,null,null,null,null,null,null,"Process chain:",{"$f":"sel_chain","v":"Hydrogen (AEL)"}]
[null,null,null,null,null,null,null,null,null,null,null,null,null,null,null,null,null,null,null,"CO2 source:",{"$f":"sel_secproc_co2","v":"DAC"}]
[null,null,null,null,null,null,null,null,null,null,null,null,null,null,null,null,null,null,null,"Water source:",{"$f":"sel_secproc_water","v":"Water desalination"}]
[null,null,null,null,null,null,null,null,null,null,null,null,null,null,null,null,null,null,null,"Transport mode:",{"$f":"sel_transport","v":"Ship"}]
[null,null,null,null,null,null,null,null,null,null,null,null,null,null,null,null,null,null,null,"Scenario:",{"$f":"sel_scenario","v":"2030 (medium)"}]
[]
[null,null,null,null,null,"Global defaults",null,null,null,null,null,{"$f":"\"Own country (\"&sel_region_name&\")\"","v":"Own country (Morocco)"},null,null,null,null,null,null,null,"Conversion coefficients \n(positive >> input, negative >> output)"]
[null,null,null,null,null,"Data used by default for all countries \n(unless specified at country-specific level)",null,null,null,null,null,"Data for chosen country/region at country/region-specific level",null,null,null,null,null,null,null,"Only defined on a global level; \ndetermine how much secondary input or output a process uses or generates "]
[null,null,null,null,null,"CAPEX","OPEX-F","LIFETIME","EFF","FLH",null,"CAPEX","OPEX-F","LIFETIME","EFF","FLH",null,null,null,null,null,"CO2-G","H2O-L","EL","HEAT"]
[null,null,null,null,null,{"$f":"VLOOKUP(F$15,parameter[],2,FALSE)","v":"CAPEX"},{"$f":"VLOOKUP(G$15,parameter[],2,FALSE)","v":"OPEX (fix)"},"Lifetime / amortization period","Efficiency",{"$f":"VLOOKUP(J$15,parameter[],2,FALSE)","v":"full load hours"},null,{"$f":"VLOOKUP(L$15,parameter[],2,FALSE)","v":"CAPEX"},{"$f":"VLOOKUP(M$15,parameter[],2,FALSE)","v":"OPEX (fix)"},"Lifetime / amortization period","Efficiency",{"$f":"VLOOKUP(P$15,parameter[],2,FALSE)","v":"full load hours"},null,"main intput","main output",null,null,"Carbon dioxide","Water","Electricity","Heat"]
[null,"Process code","Process class code","Process name","Process class",{"$f":"VLOOKUP(F$15,parameter[],3,FALSE)","v":"USD2021/kW"},{"$f":"VLOOKUP(G$15,parameter[],3,FALSE)","v":"USD2021/kW"},"Years","Percent",{"$f":"VLOOKUP(J$15,parameter[],3,FALSE)","v":"h"},null,{"$f":"VLOOKUP(L$15,parameter[],3,FALSE)","v":"USD2021/kW"},{"$f":"VLOOKUP(M$15,parameter[],3,FALSE)","v":"USD2021/kW"},"Years","Percent",{"$f":"VLOOKUP(P$15,parameter[],3,FALSE)","v":"h"},null,null,null,"Main input","Main output",{"$f":"VLOOKUP(V$15,flow[],3,FALSE)&\" per main output\"","v":"kg CO2 (g) per main output"},{"$f":"VLOOKUP(W$15,flow[],3,FALSE)&\" per main output\"","v":"kg H2O (l) per main output"},{"$f":"VLOOKUP(X$15,flow[],3,FALSE)&\" per main output\"","v":"kWh (el.) per main output"},{"$f":"VLOOKUP(Y$15,flow[],3,FALSE)&\" per main output\"","v":"kWh (heat) per main output"}]
[null,"PV-FIX",{"$f":"IFERROR(VLOOKUP($B18,process[],3,FALSE),\"\")","v":"RE-GEN"},{"$f":"IFERROR(VLOOKUP($B18,process[],2,FALSE),\"\")","v":"PV tilted"},{"$f":"IFERROR(VLOOKUP(C18,process_classes[],2,FALSE),\"\")","v":"Electricity generation"},{"$f":"IFERROR(VLOOKUP(F$15&\",\"&$B18&\",,,\",data[],7,FALSE),\"\")","v":""},{"$f":"IFERROR(VLOOKUP(G$15&\",\"&$B18&\",,,\",data[],7,FALSE),\"\")","v":""},{"$f":"IFERROR(VLOOKUP(H$15&\",\"&$B18&\",,,\",data[],7,FALSE),\"\")","v":20},{"$f":"IFERROR(VLOOKUP(I$15&\",\"&$B18&\",,,\",data[],7,FALSE),\"\")","v":""},{"$f":"IFERROR(VLOOKUP(J$15&\",\"&$B18&\",,,\",data[],7,FALSE),\"\")","v":""},null,{"$f":"IFERROR(VLOOKUP(L$15&\",\"&$B18&\",,\"&sel_region_code&\",\",data[],7,FALSE),\"\")","v":748.32170696054584},{"$f":"IFERROR(VLOOKUP(M$15&\",\"&$B18&\",,\"&sel_region_code&\",\",data[],7,FALSE),\"\")","v":20.953007794895285},{"$f":"IFERROR(VLOOKUP(N$15&\",\"&$B18&\",,\"&sel_region_code&\",\",data[],7,FALSE),\"\")","v":""},{"$f":"IFERROR(VLOOKUP(O$15&\",\"&$B18&\",,\"&sel_region_code&\",\",data[],7,FALSE),\"\")","v":""},{"$f":"IFERROR(VLOOKUP(sel_region_code&\",\"&sel_res_gen&\",\"&sel_chain_ely_proc_code&\",\"&sel_chain_deriv_proc_code&\",\"&$B18,data_flh_2[],7,FALSE),\"\")","v":""},null,{"$f":"VLOOKUP($B18,process[],5,FALSE)","v":0},{"$f":"VLOOKUP($B18,process[],4,FALSE)","v":"EL"},{"$f":"IFERROR(VLOOKUP($R18,flow[],3,FALSE),\"\")","v":""},{"$f":"IFERROR(VLOOKUP($S18,flow[],3,FALSE),\"\")","v":"kWh (el.)"},{"$f":"IFERROR(VLOOKUP(\"CONV,\"&$B18&\",\"&V$15&\",,\",data[],7,FALSE),\"\")","v":""},{"$f":"IFERROR(VLOOKUP(\"CONV,\"&$B18&\",\"&W$15&\",,\",data[],7,FALSE),\"\")","v":""},{"$f":"IFERROR(VLOOKUP(\"CONV,\"&$B18&\",\"&X$15&\",,\",data[],7,FALSE),\"\")","v":""},{"$f":"IFERROR(VLOOKUP(\"CONV,\"&$B18&\",\"&Y$15&\",,\",data[],7,FALSE),\"\")","v":""}]
[null,"RES-HYBR",{"$f":"IFERROR(VLOOKUP($B19,process[],3,FALSE),\"\")","v":"RE-GEN"},{"$f":"IFERROR(VLOOKUP($B19,process[],2,FALSE),\"\")","v":"Wind-PV-Hybrid"},{"$f":"IFERROR(VLOOKUP(C19,process_classes[],2,FALSE),\"\")","v":"Electricity generation"},{"$f":"IFERROR(VLOOKUP(F$15&\",\"&$B19&\",,,\",data[],7,FALSE),\"\")","v":""},{"$f":"IFERROR(VLOOKUP(G$15&\",\"&$B19&\",,,\",data[],7,FALSE),\"\")","v":""},{"$f":"IFERROR(VLOOKUP(H$15&\",\"&$B19&\",,,\",data[],7,FALSE),\"\")","v":20},{"$f":"IFERROR(VLOOKUP(I$15&\",\"&$B19&\",,,\",data[],7,FALSE),\"\")","v":""},{"$f":"IFERROR(VLOOKUP(J$15&\",\"&$B19&\",,,\",data[],7,FALSE),\"\")","v":""},null,{"$f":"IFERROR(VLOOKUP(L$15&\",\"&$B19&\",,\"&sel_region_code&\",\",data[],7,FALSE),\"\")","v":1229.1954260584585},{"$f":"IFERROR(VLOOKUP(M$15&\",\"&$B19&\",,\"&sel_region_code&\",\",data[],7,FALSE),\"\")","v":24.583908521169171},{"$f":"IFERROR(VLOOKUP(N$15&\",\"&$B19&\",,\"&sel_region_code&\",\",data[],7,FALSE),\"\")","v":""},{"$f":"IFERROR(VLOOKUP(O$15&\",\"&$B19&\",,\"&sel_region_code&\",\",data[],7,FALSE),\"\")","v":""},{"$f":"IFERROR(VLOOKUP(sel_region_code&\",\"&sel_res_gen&\",\"&sel_chain_ely_proc_code&\",\"&sel_chain_deriv_proc_code&\",\"&$B19,data_flh_2[],7,FALSE),\"\")","v":""},null,{"$f":"VLOOKUP($B19,process[],5,FALSE)","v":0},{"$f":"VLOOKUP($B19,process[],4,FALSE)","v":"EL"},{"$f":"IFERROR(VLOOKUP($R19,flow[],3,FALSE),\"\")","v":""},{"$f":"IFERROR(VLOOKUP($S19,flow[],3,FALSE),\"\")","v":"kWh (el.)"},{"$f":"IFERROR(VLOOKUP(\"CONV,\"&$B19&\",\"&V$15&\",,\",data[],7,FALSE),\"\")","v":""},{"$f":"IFERROR(VLOOKUP(\"CONV,\"&$B19&\",\"&W$15&\",,\",data[],7,FALSE),\"\")","v":""},{"$f":"IFERROR(VLOOKUP(\"CONV,\"&$B19&\",\"&X$15&\",,\",data[],7,FALSE),\"\")","v":""},{"$f":"IFERROR(VLOOKUP(\"CONV,\"&$B19&\",\"&Y$15&\",,\",data[],7,FALSE),\"\")","v":""}]
[null,"WIND-OFF",{"$f":"IFERROR(VLOOKUP($B20,process[],3,FALSE),\"\")","v":"RE-GEN"},{"$f":"IFERROR(VLOOKUP($B20,process[],2,FALSE),\"\")","v":"Wind Offshore"},{"$f":"IFERROR(VLOOKUP(C20,process_classes[],2,FALSE),\"\")","v":"Electricity generation"},{"$f":"IFERROR(VLOOKUP(F$15&\",\"&$B20&\",,,\",data[],7,FALSE),\"\")","v":""},{"$f":"IFERROR(VLOOKUP(G$15&\",\"&$B20&\",,,\",data[],7,FALSE),\"\")","v":""},{"$f":"IFERROR(VLOOKUP(H$15&\",\"&$B20&\",,,\",data[],7,FALSE),\"\")","v":20},{"$f":"IFERROR(VLOOKUP(I$15&\",\"&$B20&\",,,\",data[],7,FALSE),\"\")","v":""},{"$f":"IFERROR(VLOOKUP(J$15&\",\"&$B20&\",,,\",data[],7,FALSE),\"\")","v":""},null,{"$f":"IFERROR(VLOOKUP(L$15&\",\"&$B20&\",,\"&sel_region_code&\",\",data[],7,FALSE),\"\")","v":3316.6422675294375},{"$f":"IFERROR(VLOOKUP(M$15&\",\"&$B20&\",,\"&sel_region_code&\",\",data[],7,FALSE),\"\")","v":112.76583709600088},{"$f":"IFERROR(VLOOKUP(N$15&\",\"&$B20&\",,\"&sel_region_code&\",\",data[],7,FALSE),\"\")","v":""},{"$f":"IFERROR(VLOOKUP(O$15&\",\"&$B20&\",,\"&sel_region_code&\",\",data[],7,FALSE),\"\")","v":""},{"$f":"IFERROR(VLOOKUP(sel_region_code&\",\"&sel_res_gen&\",\"&sel_chain_ely_proc_code&\",\"&sel_chain_deriv_proc_code&\",\"&$B20,data_flh_2[],7,FALSE),\"\")","v":""},null,{"$f":"VLOOKUP($B20,process[],5,FALSE)","v":0},{"$f":"VLOOKUP($B20,process[],4,FALSE)","v":"EL"},{"$f":"IFERROR(VLOOKUP($R20,flow[],3,FALSE),\"\")","v":""},{"$f":"IFERROR(VLOOKUP($S20,flow[],3,FALSE),\"\")","v":"kWh (el.)"},{"$f":"IFERROR(VLOOKUP(\"CONV,\"&$B20&\",\"&V$15&\",,\",data[],7,FALSE),\"\")","v":""},{"$f":"IFERROR(VLOOKUP(\"CONV,\"&$B20&\",\"&W$15&\",,\",data[],7,FALSE),\"\")","v":""},{"$f":"IFERROR(VLOOKUP(\"CONV,\"&$B20&\",\"&X$15&\",,\",data[],7,FALSE),\"\")","v":""},{"$f":"IFERROR(VLOOKUP(\"CONV,\"&$B20&\",\"&Y$15&\",,\",data[],7,FALSE),\"\")","v":""}]
[null,"WIND-ON",{"$f":"IFERROR(VLOOKUP($B21,process[],3,FALSE),\"\")","v":"RE-GEN"},{"$f":"IFERROR(VLOOKUP($B21,process[],2,FALSE),\"\")","v":"Wind Onshore"},{"$f":"IFERROR(VLOOKUP(C21,process_classes[],2,FALSE),\"\")","v":"Electricity generation"},{"$f":"IFERROR(VLOOKUP(F$15&\",\"&$B21&\",,,\",data[],7,FALSE),\"\")","v":""},{"$f":"IFERROR(VLOOKUP(G$15&\",\"&$B21&\",,,\",data[],7,FALSE),\"\")","v":""},{"$f":"IFERROR(VLOOKUP(H$15&\",\"&$B21&\",,,\",data[],7,FALSE),\"\")","v":20},{"$f":"IFERROR(VLOOKUP(I$15&\",\"&$B21&\",,,\",data[],7,FALSE),\"\")","v":""},{"$f":"IFERROR(VLOOKUP(J$15&\",\"&$B21&\",,,\",data[],7,FALSE),\"\")","v":""},null,{"$f":"IFERROR(VLOOKUP(L$15&\",\"&$B21&\",,\"&sel_region_code&\",\",data[],7,FALSE),\"\")","v":1710.0691451563712},{"$f":"IFERROR(VLOOKUP(M$15&\",\"&$B21&\",,\"&sel_region_code&\",\",data[],7,FALSE),\"\")","v":47.881936064378394},{"$f":"IFERROR(VLOOKUP(N$15&\",\"&$B21&\",,\"&sel_region_code&\",\",data[],7,FALSE),\"\")","v":""},{"$f":"IFERROR(VLOOKUP(O$15&\",\"&$B21&\",,\"&sel_region_code&\",\",data[],7,FALSE),\"\")","v":""},{"$f":"IFERROR(VLOOKUP(sel_region_code&\",\"&sel_res_gen&\",\"&sel_chain_ely_proc_code&\",\"&sel_chain_deriv_proc_code&\",\"&$B21,data_flh_2[],7,FALSE),\"\")","v":""},null,{"$f":"VLOOKUP($B21,process[],5,FALSE)","v":0},{"$f":"VLOOKUP($B21,process[],4,FALSE)","v":"EL"},{"$f":"IFERROR(VLOOKUP($R21,flow[],3,FALSE),\"\")","v":""},{"$f":"IFERROR(VLOOKUP($S21,flow[],3,FALSE),\"\")","v":"kWh (el.)"},{"$f":"IFERROR(VLOOKUP(\"CONV,\"&$B21&\",\"&V$15&\",,\",data[],7,FALSE),\"\")","v":""},{"$f":"IFERROR(VLOOKUP(\"CONV,\"&$B21&\",\"&W$15&\",,\",data[],7,FALSE),\"\")","v":""},{"$f":"IFERROR(VLOOKUP(\"CONV,\"&$B21&\",\"&X$15&\",,\",data[],7,FALSE),\"\")","v":""},{"$f":"IFERROR(VLOOKUP(\"CONV,\"&$B21&\",\"&Y$15&\",,\",data[],7,FALSE),\"\")","v":""}]
[null,"AEL-EL",{"$f":"IFERROR(VLOOKUP($B22,process[],3,FALSE),\"\")","v":"ELEC"},{"$f":"IFERROR(VLOOKUP($B22,process[],2,FALSE),\"\")","v":"AEL electrolysis"},{"$f":"IFERROR(VLOOKUP(C22,process_classes[],2,FALSE),\"\")","v":"Electrolysis"},{"$f":"IFERROR(VLOOKUP(F$15&\",\"&$B22&\",,,\",data[],7,FALSE),\"\")","v":650.6426539852938},{"$f":"IFERROR(VLOOKUP(G$15&\",\"&$B22&\",,,\",data[],7,FALSE),\"\")","v":13.012853079705877},{"$f":"IFERROR(VLOOKUP(H$15&\",\"&$B22&\",,,\",data[],7,FALSE),\"\")","v":20},{"$f":"IFERROR(VLOOKUP(I$15&\",\"&$B22&\",,,\",data[],7,FALSE),\"\")","v":0.69},{"$f":"IFERROR(VLOOKUP(J$15&\",\"&$B22&\",,,\",data[],7,FALSE),\"\")","v":3861.9141914191418},null,{"$f":"IFERROR(VLOOKUP(L$15&\",\"&$B22&\",,\"&sel_region_code&\",\",data[],7,FALSE),\"\")","v":""},{"$f":"IFERROR(VLOOKUP(M$15&\",\"&$B22&\",,\"&sel_region_code&\",\",data[],7,FALSE),\"\")","v":""},{"$f":"IFERROR(VLOOKUP(N$15&\",\"&$B22&\",,\"&sel_region_code&\",\",data[],7,FALSE),\"\")","v":""},{"$f":"IFERROR(VLOOKUP(O$15&\",\"&$B22&\",,\"&sel_region_code&\",\",data[],7,FALSE),\"\")","v":""},{"$f":"IFERROR(VLOOKUP(sel_region_code&\",\"&sel_res_gen&\",\"&sel_chain_ely_proc_code&\",\"&sel_chain_deriv_proc_code&\",\"&$B22,data_flh_2[],7,FALSE),\"\")","v":4501.0999999999995},null,{"$f":"VLOOKUP($B22,process[],5,FALSE)","v":"EL"},{"$f":"VLOOKUP($B22,process[],4,FALSE)","v":"H2-G"},{"$f":"IFERROR(VLOOKUP($R22,flow[],3,FALSE),\"\")","v":"kWh (el.)"},{"$f":"IFERROR(VLOOKUP($S22,flow[],3,FALSE),\"\")","v":"kWh H2 (g)"},{"$f":"IFERROR(VLOOKUP(\"CONV,\"&$B22&\",\"&V$15&\",,\",data[],7,FALSE),\"\")","v":""},{"$f":"IFERROR(VLOOKUP(\"CONV,\"&$B22&\",\"&W$15&\",,\",data[],7,FALSE),\"\")","v":0.3},{"$f":"IFERROR(VLOOKUP(\"CONV,\"&$B22&\",\"&X$15&\",,\",data[],7,FALSE),\"\")","v":""},{"$f":"IFERROR(VLOOKUP(\"CONV,\"&$B22&\",\"&Y$15&\",,\",data[],7,FALSE),\"\")","v":""}]
[null,"PEM-EL",{"$f":"IFERROR(VLOOKUP($B23,process[],3,FALSE),\"\")","v":"ELEC"},{"$f":"IFERROR(VLOOKUP($B23,process[],2,FALSE),\"\")","v":"PEM electrolysis"},{"$f":"IFERROR(VLOOKUP(C23,process_classes[],2,FALSE),\"\")","v":"Electrolysis"},{"$f":"IFERROR(VLOOKUP(F$15&\",\"&$B23&\",,,\",data[],7,FALSE),\"\")","v":924.60772108052163},{"$f":"IFERROR(VLOOKUP(G$15&\",\"&$B23&\",,,\",data[],7,FALSE),\"\")","v":18.492154421610433},{"$f":"IFERROR(VLOOKUP(H$15&\",\"&$B23&\",,,\",data[],7,FALSE),\"\")","v":20},{"$f":"IFERROR(VLOOKUP(I$15&\",\"&$B23&\",,,\",data[],7,FALSE),\"\")","v":0.67},{"$f":"IFERROR(VLOOKUP(J$15&\",\"&$B23&\",,,\",data[],7,FALSE),\"\")","v":3861.9141914191418},null,{"$f":"IFERROR(VLOOKUP(L$15&\",\"&$B23&\",,\"&sel_region_code&\",\",data[],7,FALSE),\"\")","v":""},{"$f":"IFERROR(VLOOKUP(M$15&\",\"&$B23&\",,\"&sel_region_code&\",\",data[],7,FALSE),\"\")","v":""},{"$f":"IFERROR(VLOOKUP(N$15&\",\"&$B23&\",,\"&sel_region_code&\",\",data[],7,FALSE),\"\")","v":""},{"$f":"IFERROR(VLOOKUP(O$15&\",\"&$B23&\",,\"&sel_region_code&\",\",data[],7,FALSE),\"\")","v":""},{"$f":"IFERROR(VLOOKUP(sel_region_code&\",\"&sel_res_gen&\",\"&sel_chain_ely_proc_code&\",\"&sel_chain_deriv_proc_code&\",\"&$B23,data_flh_2[],7,FALSE),\"\")","v":""},null,{"$f":"VLOOKUP($B23,process[],5,FALSE)","v":"EL"},{"$f":"VLOOKUP($B23,process[],4,FALSE)","v":"H2-G"},{"$f":"IFERROR(VLOOKUP($R23,flow[],3,FALSE),\"\")","v":"kWh (el.)"},{"$f":"IFERROR(VLOOKUP($S23,flow[],3,FALSE),\"\")","v":"kWh H2 (g)"},{"$f":"IFERROR(VLOOKUP(\"CONV,\"&$B23&\",\"&V$15&\",,\",data[],7,FALSE),\"\")","v":""},{"$f":"IFERROR(VLOOKUP(\"CONV,\"&$B23&\",\"&W$15&\",,\",data[],7,FALSE),\"\")","v":0.3},{"$f":"IFERROR(VLOOKUP(\"CONV,\"&$B23&\",\"&X$15&\",,\",data[],7,FALSE),\"\")","v":""},{"$f":"IFERROR(VLOOKUP(\"CONV,\"&$B23&\",\"&Y$15&\",,\",data[],7,FALSE),\"\")","v":""}]
[null,"SOEC-EL",{"$f":"IFERROR(VLOOKUP($B24,process[],3,FALSE),\"\")","v":"ELEC"},{"$f":"IFERROR(VLOOKUP($B24,process[],2,FALSE),\"\")","v":"SOEC (high-temp) electrolysis"},{"$f":"IFERROR(VLOOKUP(C24,process_classes[],2,FALSE),\"\")","v":"Electrolysis"},{"$f":"IFERROR(VLOOKUP(F$15&\",\"&$B24&\",,,\",data[],7,FALSE),\"\")","v":2831.6970271597133},{"$f":"IFERROR(VLOOKUP(G$15&\",\"&$B24&\",,,\",data[],7,FALSE),\"\")","v":84.950910814791399},{"$f":"IFERROR(VLOOKUP(H$15&\",\"&$B24&\",,,\",data[],7,FALSE),\"\")","v":20},{"$f":"IFERROR(VLOOKUP(I$15&\",\"&$B24&\",,,\",data[],7,FALSE),\"\")","v":0.73},{"$f":"IFERROR(VLOOKUP(J$15&\",\"&$B24&\",,,\",data[],7,FALSE),\"\")","v":5519.7223140495871},null,{"$f":"IFERROR(VLOOKUP(L$15&\",\"&$B24&\",,\"&sel_region_code&\",\",data[],7,FALSE),\"\")","v":""},{"$f":"IFERROR(VLOOKUP(M$15&\",\"&$B24&\",,\"&sel_region_code&\",\",data[],7,FALSE),\"\")","v":""},{"$f":"IFERROR(VLOOKUP(N$15&\",\"&$B24&\",,\"&sel_region_code&\",\",data[],7,FALSE),\"\")","v":""},{"$f":"IFERROR(VLOOKUP(O$15&\",\"&$B24&\",,\"&sel_region_code&\",\",data[],7,FALSE),\"\")","v":""},{"$f":"IFERROR(VLOOKUP(sel_region_code&\",\"&sel_res_gen&\",\"&sel_chain_ely_proc_code&\",\"&sel_chain_deriv_proc_code&\",\"&$B24,data_flh_2[],7,FALSE),\"\")","v":""},null,{"$f":"VLOOKUP($B24,process[],5,FALSE)","v":"EL"},{"$f":"VLOOKUP($B24,process[],4,FALSE)","v":"H2-G"},{"$f":"IFERROR(VLOOKUP($R24,flow[],3,FALSE),\"\")","v":"kWh (el.)"},{"$f":"IFERROR(VLOOKUP($S24,flow[],3,FALSE),\"\")","v":"kWh H2 (g)"},{"$f":"IFERROR(VLOOKUP(\"CONV,\"&$B24&\",\"&V$15&\",,\",data[],7,FALSE),\"\")","v":""},{"$f":"IFERROR(VLOOKUP(\"CONV,\"&$B24&\",\"&W$15&\",,\",data[],7,FALSE),\"\")","v":0.3},{"$f":"IFERROR(VLOOKUP(\"CONV,\"&$B24&\",\"&X$15&\",,\",data[],7,FALSE),\"\")","v":""},{"$f":"IFERROR(VLOOKUP(\"CONV,\"&$B24&\",\"&Y$15&\",,\",data[],7,FALSE),\"\")","v":""}]
[null,"CH3OHREC",{"$f":"IFERROR(VLOOKUP($B25,process[],3,FALSE),\"\")","v":"PROC"},{"$f":"IFERROR(VLOOKUP($B25,process[],2,FALSE),\"\")","v":"Methanol reconversion"},{"$f":"IFERROR(VLOOKUP(C25,process_classes[],2,FALSE),\"\")","v":"Processing"},{"$f":"IFERROR(VLOOKUP(F$15&\",\"&$B25&\",,,\",data[],7,FALSE),\"\")","v":""},{"$f":"IFERROR(VLOOKUP(G$15&\",\"&$B25&\",,,\",data[],7,FALSE),\"\")","v":""},{"$f":"IFERROR(VLOOKUP(H$15&\",\"&$B25&\",,,\",data[],7,FALSE),\"\")","v":""},{"$f":"IFERROR(VLOOKUP(I$15&\",\"&$B25&\",,,\",data[],7,FALSE),\"\")","v":""},{"$f":"IFERROR(VLOOKUP(J$15&\",\"&$B25&\",,,\",data[],7,FALSE),\"\")","v":""},null,{"$f":"IFERROR(VLOOKUP(L$15&\",\"&$B25&\",,\"&sel_region_code&\",\",data[],7,FALSE),\"\")","v":""},{"$f":"IFERROR(VLOOKUP(M$15&\",\"&$B25&\",,\"&sel_region_code&\",\",data[],7,FALSE),\"\")","v":""},{"$f":"IFERROR(VLOOKUP(N$15&\",\"&$B25&\",,\"&sel_region_code&\",\",data[],7,FALSE),\"\")","v":""},{"$f":"IFERROR(VLOOKUP(O$15&\",\"&$B25&\",,\"&sel_region_code&\",\",data[],7,FALSE),\"\")","v":""},{"$f":"IFERROR(VLOOKUP(sel_region_code&\",\"&sel_res_gen&\",\"&sel_chain_ely_proc_code&\",\"&sel_chain_deriv_proc_code&\",\"&$B25,data_flh_2[],7,FALSE),\"\")","v":""},null,{"$f":"VLOOKUP($B25,process[],5,FALSE)","v":"CH3OH-L"},{"$f":"VLOOKUP($B25,process[],4,FALSE)","v":"H2-G"},{"$f":"IFERROR(VLOOKUP($R25,flow[],3,FALSE),\"\")","v":"kWh CH3OH (l)"},{"$f":"IFERROR(VLOOKUP($S25,flow[],3,FALSE),\"\")","v":"kWh H2 (g)"},{"$f":"IFERROR(VLOOKUP(\"CONV,\"&$B25&\",\"&V$15&\",,\",data[],7,FALSE),\"\")","v":""},{"$f":"IFERROR(VLOOKUP(\"CONV,\"&$B25&\",\"&W$15&\",,\",data[],7,FALSE),\"\")","v":""},{"$f":"IFERROR(VLOOKUP(\"CONV,\"&$B25&\",\"&X$15&\",,\",data[],7,FALSE),\"\")","v":""},{"$f":"IFERROR(VLOOKUP(\"CONV,\"&$B25&\",\"&Y$15&\",,\",data[],7,FALSE),\"\")","v":""}]
[null,"CH3OHSYN",{"$f":"IFERROR(VLOOKUP($B26,process[],3,FALSE),\"\")","v":"PROC"},{"$f":"IFERROR(VLOOKUP($B26,process[],2,FALSE),\"\")","v":"Methanol Synthesis"},{"$f":"IFERROR(VLOOKUP(C26,process_classes[],2,FALSE),\"\")","v":"Processing"},{"$f":"IFERROR(VLOOKUP(F$15&\",\"&$B26&\",,,\",data[],7,FALSE),\"\")","v":953.53718155258355},{"$f":"IFERROR(VLOOKUP(G$15&\",\"&$B26&\",,,\",data[],7,FALSE),\"\")","v":28.606115446577505},{"$f":"IFERROR(VLOOKUP(H$15&\",\"&$B26&\",,,\",data[],7,FALSE),\"\")","v":30},{"$f":"IFERROR(VLOOKUP(I$15&\",\"&$B26&\",,,\",data[],7,FALSE),\"\")","v":0.80300000000000005},{"$f":"IFERROR(VLOOKUP(J$15&\",\"&$B26&\",,,\",data[],7,FALSE),\"\")","v":""},null,{"$f":"IFERROR(VLOOKUP(L$15&\",\"&$B26&\",,\"&sel_region_code&\",\",data[],7,FALSE),\"\")","v":""},{"$f":"IFERROR(VLOOKUP(M$15&\",\"&$B26&\",,\"&sel_region_code&\",\",data[],7,FALSE),\"\")","v":""},{"$f":"IFERROR(VLOOKUP(N$15&\",\"&$B26&\",,\"&sel_region_code&\",\",data[],7,FALSE),\"\")","v":""},{"$f":"IFERROR(VLOOKUP(O$15&\",\"&$B26&\",,\"&sel_region_code&\",\",data[],7,FALSE),\"\")","v":""},{"$f":"IFERROR(VLOOKUP(sel_region_code&\",\"&sel_res_gen&\",\"&sel_chain_ely_proc_code&\",\"&sel_chain_deriv_proc_code&\",\"&$B26,data_flh_2[],7,FALSE),\"\")","v":""},null,{"$f":"VLOOKUP($B26,process[],5,FALSE)","v":"H2-G"},{"$f":"VLOOKUP($B26,process[],4,FALSE)","v":"CH3OH-L"},{"$f":"IFERROR(VLOOKUP($R26,flow[],3,FALSE),\"\")","v":"kWh H2 (g)"},{"$f":"IFERROR(VLOOKUP($S26,flow[],3,FALSE),\"\")","v":"kWh CH3OH (l)"},{"$f":"IFERROR(VLOOKUP(\"CONV,\"&$B26&\",\"&V$15&\",,\",data[],7,FALSE),\"\")","v":0.26448241206030154},{"$f":"IFERROR(VLOOKUP(\"CONV,\"&$B26&\",\"&W$15&\",,\",data[],7,FALSE),\"\")","v":""},{"$f":"IFERROR(VLOOKUP(\"CONV,\"&$B26&\",\"&X$15&\",,\",data[],7,FALSE),\"\")","v":3.9989420788151285E-2},{"$f":"IFERROR(VLOOKUP(\"CONV,\"&$B26&\",\"&Y$15&\",,\",data[],7,FALSE),\"\")","v":""}]
[null,"CH4SYN",{"$f":"IFERROR(VLOOKUP($B27,process[],3,FALSE),\"\")","v":"PROC"},{"$f":"IFERROR(VLOOKUP($B27,process[],2,FALSE),\"\")","v":"Methane Synthesis"},{"$f":"IFERROR(VLOOKUP(C27,process_classes[],2,FALSE),\"\")","v":"Processing"},{"$f":"IFERROR(VLOOKUP(F$15&\",\"&$B27&\",,,\",data[],7,FALSE),\"\")","v":847.89448030598192},{"$f":"IFERROR(VLOOKUP(G$15&\",\"&$B27&\",,,\",data[],7,FALSE),\"\")","v":25.436834409179458},{"$f":"IFERROR(VLOOKUP(H$15&\",\"&$B27&\",,,\",data[],7,FALSE),\"\")","v":30},{"$f":"IFERROR(VLOOKUP(I$15&\",\"&$B27&\",,,\",data[],7,FALSE),\"\")","v":0.83},{"$f":"IFERROR(VLOOKUP(J$15&\",\"&$B27&\",,,\",data[],7,FALSE),\"\")","v":""},null,{"$f":"IFERROR(VLOOKUP(L$15&\",\"&$B27&\",,\"&sel_region_code&\",\",data[],7,FALSE),\"\")","v":""},{"$f":"IFERROR(VLOOKUP(M$15&\",\"&$B27&\",,\"&sel_region_code&\",\",data[],7,FALSE),\"\")","v":""},{"$f":"IFERROR(VLOOKUP(N$15&\",\"&$B27&\",,\"&sel_region_code&\",\",data[],7,FALSE),\"\")","v":""},{"$f":"IFERROR(VLOOKUP(O$15&\",\"&$B27&\",,\"&sel_region_code&\",\",data[],7,FALSE),\"\")","v":""},{"$f":"IFERROR(VLOOKUP(sel_region_code&\",\"&sel_res_gen&\",\"&sel_chain_ely_proc_code&\",\"&sel_chain_deriv_proc_code&\",\"&$B27,data_flh_2[],7,FALSE),\"\")","v":""},null,{"$f":"VLOOKUP($B27,process[],5,FALSE)","v":"H2-G"},{"$f":"VLOOKUP($B27,process[],4,FALSE)","v":"CH4-G"},{"$f":"IFERROR(VLOOKUP($R27,flow[],3,FALSE),\"\")","v":"kWh H2 (g)"},{"$f":"IFERROR(VLOOKUP($S27,flow[],3,FALSE),\"\")","v":"kWh CH4 (g)"},{"$f":"IFERROR(VLOOKUP(\"CONV,\"&$B27&\",\"&V$15&\",,\",data[],7,FALSE),\"\")","v":0.20196},{"$f":"IFERROR(VLOOKUP(\"CONV,\"&$B27&\",\"&W$15&\",,\",data[],7,FALSE),\"\")","v":-0.14263322884012539},{"$f":"IFERROR(VLOOKUP(\"CONV,\"&$B27&\",\"&X$15&\",,\",data[],7,FALSE),\"\")","v":""},{"$f":"IFERROR(VLOOKUP(\"CONV,\"&$B27&\",\"&Y$15&\",,\",data[],7,FALSE),\"\")","v":-0.18495297805642633}]
[null,"DRI",{"$f":"IFERROR(VLOOKUP($B28,process[],3,FALSE),\"\")","v":"PROC"},{"$f":"IFERROR(VLOOKUP($B28,process[],2,FALSE),\"\")","v":"Green iron reduction"},{"$f":"IFERROR(VLOOKUP(C28,process_classes[],2,FALSE),\"\")","v":"Processing"},{"$f":"IFERROR(VLOOKUP(F$15&\",\"&$B28&\",,,\",data[],7,FALSE),\"\")","v":4125.6284525730507},{"$f":"IFERROR(VLOOKUP(G$15&\",\"&$B28&\",,,\",data[],7,FALSE),\"\")","v":123.76885357719151},{"$f":"IFERROR(VLOOKUP(H$15&\",\"&$B28&\",,,\",data[],7,FALSE),\"\")","v":15},{"$f":"IFERROR(VLOOKUP(I$15&\",\"&$B28&\",,,\",data[],7,FALSE),\"\")","v":0.35759897828863341},{"$f":"IFERROR(VLOOKUP(J$15&\",\"&$B28&\",,,\",data[],7,FALSE),\"\")","v":7884},null,{"$f":"IFERROR(VLOOKUP(L$15&\",\"&$B28&\",,\"&sel_region_code&\",\",data[],7,FALSE),\"\")","v":""},{"$f":"IFERROR(VLOOKUP(M$15&\",\"&$B28&\",,\"&sel_region_code&\",\",data[],7,FALSE),\"\")","v":""},{"$f":"IFERROR(VLOOKUP(N$15&\",\"&$B28&\",,\"&sel_region_code&\",\",data[],7,FALSE),\"\")","v":""},{"$f":"IFERROR(VLOOKUP(O$15&\",\"&$B28&\",,\"&sel_region_code&\",\",data[],7,FALSE),\"\")","v":""},{"$f":"IFERROR(VLOOKUP(sel_region_code&\",\"&sel_res_gen&\",\"&sel_chain_ely_proc_code&\",\"&sel_chain_deriv_proc_code&\",\"&$B28,data_flh_2[],7,FALSE),\"\")","v":""},null,{"$f":"VLOOKUP($B28,process[],5,FALSE)","v":"H2-G"},{"$f":"VLOOKUP($B28,process[],4,FALSE)","v":"DRI-S"},{"$f":"IFERROR(VLOOKUP($R28,flow[],3,FALSE),\"\")","v":"kWh H2 (g)"},{"$f":"IFERROR(VLOOKUP($S28,flow[],3,FALSE),\"\")","v":"kg DRI (s)"},{"$f":"IFERROR(VLOOKUP(\"CONV,\"&$B28&\",\"&V$15&\",,\",data[],7,FALSE),\"\")","v":""},{"$f":"IFERROR(VLOOKUP(\"CONV,\"&$B28&\",\"&W$15&\",,\",data[],7,FALSE),\"\")","v":""},{"$f":"IFERROR(VLOOKUP(\"CONV,\"&$B28&\",\"&X$15&\",,\",data[],7,FALSE),\"\")","v":0.10829670329670329},{"$f":"IFERROR(VLOOKUP(\"CONV,\"&$B28&\",\"&Y$15&\",,\",data[],7,FALSE),\"\")","v":""}]
[null,"EFUELSYN",{"$f":"IFERROR(VLOOKUP($B29,process[],3,FALSE),\"\")","v":"PROC"},{"$f":"IFERROR(VLOOKUP($B29,process[],2,FALSE),\"\")","v":"FT e-fuels Synthesis (Fischer-Tropsch)"},{"$f":"IFERROR(VLOOKUP(C29,process_classes[],2,FALSE),\"\")","v":"Processing"},{"$f":"IFERROR(VLOOKUP(F$15&\",\"&$B29&\",,,\",data[],7,FALSE),\"\")","v":953.53718155258355},{"$f":"IFERROR(VLOOKUP(G$15&\",\"&$B29&\",,,\",data[],7,FALSE),\"\")","v":28.606115446577505},{"$f":"IFERROR(VLOOKUP(H$15&\",\"&$B29&\",,,\",data[],7,FALSE),\"\")","v":30},{"$f":"IFERROR(VLOOKUP(I$15&\",\"&$B29&\",,,\",data[],7,FALSE),\"\")","v":0.73},{"$f":"IFERROR(VLOOKUP(J$15&\",\"&$B29&\",,,\",data[],7,FALSE),\"\")","v":""},null,{"$f":"IFERROR(VLOOKUP(L$15&\",\"&$B29&\",,\"&sel_region_code&\",\",data[],7,FALSE),\"\")","v":""},{"$f":"IFERROR(VLOOKUP(M$15&\",\"&$B29&\",,\"&sel_region_code&\",\",data[],7,FALSE),\"\")","v":""},{"$f":"IFERROR(VLOOKUP(N$15&\",\"&$B29&\",,\"&sel_region_code&\",\",data[],7,FALSE),\"\")","v":""},{"$f":"IFERROR(VLOOKUP(O$15&\",\"&$B29&\",,\"&sel_region_code&\",\",data[],7,FALSE),\"\")","v":""},{"$f":"IFERROR(VLOOKUP(sel_region_code&\",\"&sel_res_gen&\",\"&sel_chain_ely_proc_code&\",\"&sel_chain_deriv_proc_code&\",\"&$B29,data_flh_2[],7,FALSE),\"\")","v":""},null,{"$f":"VLOOKUP($B29,process[],5,FALSE)","v":"H2-G"},{"$f":"VLOOKUP($B29,process[],4,FALSE)","v":"CHX-L"},{"$f":"IFERROR(VLOOKUP($R29,flow[],3,FALSE),\"\")","v":"kWh H2 (g)"},{"$f":"IFERROR(VLOOKUP($S29,flow[],3,FALSE),\"\")","v":"kwh CHx (l)"},{"$f":"IFERROR(VLOOKUP(\"CONV,\"&$B29&\",\"&V$15&\",,\",data[],7,FALSE),\"\")","v":0.26455813953488377},{"$f":"IFERROR(VLOOKUP(\"CONV,\"&$B29&\",\"&W$15&\",,\",data[],7,FALSE),\"\")","v":-0.24830699774266365},{"$f":"IFERROR(VLOOKUP(\"CONV,\"&$B29&\",\"&X$15&\",,\",data[],7,FALSE),\"\")","v":8.5778781038374718E-2},{"$f":"IFERROR(VLOOKUP(\"CONV,\"&$B29&\",\"&Y$15&\",,\",data[],7,FALSE),\"\")","v":-0.40397350993377484}]
[null,"NH3SYN",{"$f":"IFERROR(VLOOKUP($B30,process[],3,FALSE),\"\")","v":"PROC"},{"$f":"IFERROR(VLOOKUP($B30,process[],2,FALSE),\"\")","v":"Ammonia Synthesis (Haber-Bosch)"},{"$f":"IFERROR(VLOOKUP(C30,process_classes[],2,FALSE),\"\")","v":"Processing"},{"$f":"IFERROR(VLOOKUP(F$15&\",\"&$B30&\",,,\",data[],7,FALSE),\"\")","v":1484.6664443263917},{"$f":"IFERROR(VLOOKUP(G$15&\",\"&$B30&\",,,\",data[],7,FALSE),\"\")","v":74.233322216319593},{"$f":"IFERROR(VLOOKUP(H$15&\",\"&$B30&\",,,\",data[],7,FALSE),\"\")","v":30},{"$f":"IFERROR(VLOOKUP(I$15&\",\"&$B30&\",,,\",data[],7,FALSE),\"\")","v":0.81899999999999995},{"$f":"IFERROR(VLOOKUP(J$15&\",\"&$B30&\",,,\",data[],7,FALSE),\"\")","v":8000},null,{"$f":"IFERROR(VLOOKUP(L$15&\",\"&$B30&\",,\"&sel_region_code&\",\",data[],7,FALSE),\"\")","v":""},{"$f":"IFERROR(VLOOKUP(M$15&\",\"&$B30&\",,\"&sel_region_code&\",\",data[],7,FALSE),\"\")","v":""},{"$f":"IFERROR(VLOOKUP(N$15&\",\"&$B30&\",,\"&sel_region_code&\",\",data[],7,FALSE),\"\")","v":""},{"$f":"IFERROR(VLOOKUP(O$15&\",\"&$B30&\",,\"&sel_region_code&\",\",data[],7,FALSE),\"\")","v":""},{"$f":"IFERROR(VLOOKUP(sel_region_code&\",\"&sel_res_gen&\",\"&sel_chain_ely_proc_code&\",\"&sel_chain_deriv_proc_code&\",\"&$B30,data_flh_2[],7,FALSE),\"\")","v":""},null,{"$f":"VLOOKUP($B30,process[],5,FALSE)","v":"H2-G"},{"$f":"VLOOKUP($B30,process[],4,FALSE)","v":"NH3-L"},{"$f":"IFERROR(VLOOKUP($R30,flow[],3,FALSE),\"\")","v":"kWh H2 (g)"},{"$f":"IFERROR(VLOOKUP($S30,flow[],3,FALSE),\"\")","v":"kWh NH3 (l)"},{"$f":"IFERROR(VLOOKUP(\"CONV,\"&$B30&\",\"&V$15&\",,\",data[],7,FALSE),\"\")","v":""},{"$f":"IFERROR(VLOOKUP(\"CONV,\"&$B30&\",\"&W$15&\",,\",data[],7,FALSE),\"\")","v":""},{"$f":"IFERROR(VLOOKUP(\"CONV,\"&$B30&\",\"&X$15&\",,\",data[],7,FALSE),\"\")","v":0.14192307692307693},{"$f":"IFERROR(VLOOKUP(\"CONV,\"&$B30&\",\"&Y$15&\",,\",data[],7,FALSE),\"\")","v":""}]
[null,"DAC",{"$f":"IFERROR(VLOOKUP($B31,process[],3,FALSE),\"\")","v":"PROV_C"},{"$f":"IFERROR(VLOOKUP($B31,process[],2,FALSE),\"\")","v":"Direct Air Capture"},{"$f":"IFERROR(VLOOKUP(C31,process_classes[],2,FALSE),\"\")","v":"Provision of carbon"},{"$f":"IFERROR(VLOOKUP(F$15&\",\"&$B31&\",,,\",data[],7,FALSE),\"\")*1000","v":1037.7410418368697},{"$f":"IFERROR(VLOOKUP(G$15&\",\"&$B31&\",,,\",data[],7,FALSE),\"\")*1000","v":41.509641673474789},{"$f":"IFERROR(VLOOKUP(H$15&\",\"&$B31&\",,,\",data[],7,FALSE),\"\")","v":25},{"$f":"IFERROR(VLOOKUP(I$15&\",\"&$B31&\",,,\",data[],7,FALSE),\"\")","v":""},{"$f":"IFERROR(VLOOKUP(J$15&\",\"&$B31&\",,,\",data[],7,FALSE),\"\")","v":""},null,{"$f":"IFERROR(VLOOKUP(L$15&\",\"&$B31&\",,\"&sel_region_code&\",\",data[],7,FALSE),\"\")","v":""},{"$f":"IFERROR(VLOOKUP(M$15&\",\"&$B31&\",,\"&sel_region_code&\",\",data[],7,FALSE),\"\")","v":""},{"$f":"IFERROR(VLOOKUP(N$15&\",\"&$B31&\",,\"&sel_region_code&\",\",data[],7,FALSE),\"\")","v":""},{"$f":"IFERROR(VLOOKUP(O$15&\",\"&$B31&\",,\"&sel_region_code&\",\",data[],7,FALSE),\"\")","v":""},{"$f":"IFERROR(VLOOKUP(sel_region_code&\",\"&sel_res_gen&\",\"&sel_chain_ely_proc_code&\",\"&sel_chain_deriv_proc_code&\",\"&$B31,data_flh_2[],7,FALSE),\"\")","v":""},null,{"$f":"VLOOKUP($B31,process[],5,FALSE)","v":0},{"$f":"VLOOKUP($B31,process[],4,FALSE)","v":"CO2-G"},{"$f":"IFERROR(VLOOKUP($R31,flow[],3,FALSE),\"\")","v":""},{"$f":"IFERROR(VLOOKUP($S31,flow[],3,FALSE),\"\")","v":"kg CO2 (g)"},{"$f":"IFERROR(VLOOKUP(\"CONV,\"&$B31&\",\"&V$15&\",,\",data[],7,FALSE),\"\")","v":""},{"$f":"IFERROR(VLOOKUP(\"CONV,\"&$B31&\",\"&W$15&\",,\",data[],7,FALSE),\"\")","v":-1.4},{"$f":"IFERROR(VLOOKUP(\"CONV,\"&$B31&\",\"&X$15&\",,\",data[],7,FALSE),\"\")","v":0.46249999999999997},{"$f":"IFERROR(VLOOKUP(\"CONV,\"&$B31&\",\"&Y$15&\",,\",data[],7,FALSE),\"\")","v":1.85}]
[null,"DESAL",{"$f":"IFERROR(VLOOKUP($B32,process[],3,FALSE),\"\")","v":"PROV_H2O"},{"$f":"IFERROR(VLOOKUP($B32,process[],2,FALSE),\"\")","v":"Sea Water desalination"},{"$f":"IFERROR(VLOOKUP(C32,process_classes[],2,FALSE),\"\")","v":"Provision of water"},{"$f":"IFERROR(VLOOKUP(F$15&\",\"&$B32&\",,,\",data[],7,FALSE),\"\")*1000","v":2.3667276243093918},{"$f":"IFERROR(VLOOKUP(G$15&\",\"&$B32&\",,,\",data[],7,FALSE),\"\")*1000","v":9.4669104972375684E-2},{"$f":"IFERROR(VLOOKUP(H$15&\",\"&$B32&\",,,\",data[],7,FALSE),\"\")","v":20},{"$f":"IFERROR(VLOOKUP(I$15&\",\"&$B32&\",,,\",data[],7,FALSE),\"\")","v":1},{"$f":"IFERROR(VLOOKUP(J$15&\",\"&$B32&\",,,\",data[],7,FALSE),\"\")","v":""},null,{"$f":"IFERROR(VLOOKUP(L$15&\",\"&$B32&\",,\"&sel_region_code&\",\",data[],7,FALSE),\"\")","v":""},{"$f":"IFERROR(VLOOKUP(M$15&\",\"&$B32&\",,\"&sel_region_code&\",\",data[],7,FALSE),\"\")","v":""},{"$f":"IFERROR(VLOOKUP(N$15&\",\"&$B32&\",,\"&sel_region_code&\",\",data[],7,FALSE),\"\")","v":""},{"$f":"IFERROR(VLOOKUP(O$15&\",\"&$B32&\",,\"&sel_region_code&\",\",data[],7,FALSE),\"\")","v":""},{"$f":"IFERROR(VLOOKUP(sel_region_code&\",\"&sel_res_gen&\",\"&sel_chain_ely_proc_code&\",\"&sel_chain_deriv_proc_code&\",\"&$B32,data_flh_2[],7,FALSE),\"\")","v":""},null,{"$f":"VLOOKUP($B32,process[],5,FALSE)","v":0},{"$f":"VLOOKUP($B32,process[],4,FALSE)","v":"H2O-L"},{"$f":"IFERROR(VLOOKUP($R32,flow[],3,FALSE),\"\")","v":""},{"$f":"IFERROR(VLOOKUP($S32,flow[],3,FALSE),\"\")","v":"kg H2O (l)"},{"$f":"IFERROR(VLOOKUP(\"CONV,\"&$B32&\",\"&V$15&\",,\",data[],7,FALSE),\"\")","v":""},{"$f":"IFERROR(VLOOKUP(\"CONV,\"&$B32&\",\"&W$15&\",,\",data[],7,FALSE),\"\")","v":""},{"$f":"IFERROR(VLOOKUP(\"CONV,\"&$B32&\",\"&X$15&\",,\",data[],7,FALSE),\"\")","v":3.0000000000000001E-3},{"$f":"IFERROR(VLOOKUP(\"CONV,\"&$B32&\",\"&Y$15&\",,\",data[],7,FALSE),\"\")","v":""}]
[null,"NH3-REC",{"$f":"IFERROR(VLOOKUP($B33,process[],3,FALSE),\"\")","v":"TRANSP"},{"$f":"IFERROR(VLOOKUP($B33,process[],2,FALSE),\"\")","v":"Ammonia reconversion"},{"$f":"IFERROR(VLOOKUP(C33,process_classes[],2,FALSE),\"\")","v":"Transportation"},{"$f":"IFERROR(VLOOKUP(F$15&\",\"&$B33&\",,,\",data[],7,FALSE),\"\")","v":411.40348625658612},{"$f":"IFERROR(VLOOKUP(G$15&\",\"&$B33&\",,,\",data[],7,FALSE),\"\")","v":12.342104587697584},{"$f":"IFERROR(VLOOKUP(H$15&\",\"&$B33&\",,,\",data[],7,FALSE),\"\")","v":25},{"$f":"IFERROR(VLOOKUP(I$15&\",\"&$B33&\",,,\",data[],7,FALSE),\"\")","v":0.74661016949152537},{"$f":"IFERROR(VLOOKUP(J$15&\",\"&$B33&\",,,\",data[],7,FALSE),\"\")","v":""},null,{"$f":"IFERROR(VLOOKUP(L$15&\",\"&$B33&\",,\"&sel_region_code&\",\",data[],7,FALSE),\"\")","v":""},{"$f":"IFERROR(VLOOKUP(M$15&\",\"&$B33&\",,\"&sel_region_code&\",\",data[],7,FALSE),\"\")","v":""},{"$f":"IFERROR(VLOOKUP(N$15&\",\"&$B33&\",,\"&sel_region_code&\",\",data[],7,FALSE),\"\")","v":""},{"$f":"IFERROR(VLOOKUP(O$15&\",\"&$B33&\",,\"&sel_region_code&\",\",data[],7,FALSE),\"\")","v":""},{"$f":"IFERROR(VLOOKUP(sel_region_code&\",\"&sel_res_gen&\",\"&sel_chain_ely_proc_code&\",\"&sel_chain_deriv_proc_code&\",\"&$B33,data_flh_2[],7,FALSE),\"\")","v":""},null,{"$f":"VLOOKUP($B33,process[],5,FALSE)","v":"NH3-L"},{"$f":"VLOOKUP($B33,process[],4,FALSE)","v":"H2-G"},{"$f":"IFERROR(VLOOKUP($R33,flow[],3,FALSE),\"\")","v":"kWh NH3 (l)"},{"$f":"IFERROR(VLOOKUP($S33,flow[],3,FALSE),\"\")","v":"kWh H2 (g)"},{"$f":"IFERROR(VLOOKUP(\"CONV,\"&$B33&\",\"&V$15&\",,\",data[],7,FALSE),\"\")","v":""},{"$f":"IFERROR(VLOOKUP(\"CONV,\"&$B33&\",\"&W$15&\",,\",data[],7,FALSE),\"\")","v":""},{"$f":"IFERROR(VLOOKUP(\"CONV,\"&$B33&\",\"&X$15&\",,\",data[],7,FALSE),\"\")","v":7.6699999999999989E-3},{"$f":"IFERROR(VLOOKUP(\"CONV,\"&$B33&\",\"&Y$15&\",,\",data[],7,FALSE),\"\")","v":""}]
[null,"ATR",{"$f":"IFERROR(VLOOKUP($B34,process[],3,FALSE),\"\")","v":"TRANSP-P"},{"$f":"IFERROR(VLOOKUP($B34,process[],2,FALSE),\"\")","v":"Autothermal-Reactor (Blue Hydrogen)"},{"$f":"IFERROR(VLOOKUP(C34,process_classes[],2,FALSE),\"\")","v":"Transportation (Pipeline)"},{"$f":"IFERROR(VLOOKUP(F$15&\",\"&$B34&\",,,\",data[],7,FALSE),\"\")","v":1000.0341055522356},{"$f":"IFERROR(VLOOKUP(G$15&\",\"&$B34&\",,,\",data[],7,FALSE),\"\")","v":48.829790310167752},{"$f":"IFERROR(VLOOKUP(H$15&\",\"&$B34&\",,,\",data[],7,FALSE),\"\")","v":25},{"$f":"IFERROR(VLOOKUP(I$15&\",\"&$B34&\",,,\",data[],7,FALSE),\"\")","v":0.79991999999999996},{"$f":"IFERROR(VLOOKUP(J$15&\",\"&$B34&\",,,\",data[],7,FALSE),\"\")","v":""},null,{"$f":"IFERROR(VLOOKUP(L$15&\",\"&$B34&\",,\"&sel_region_code&\",\",data[],7,FALSE),\"\")","v":""},{"$f":"IFERROR(VLOOKUP(M$15&\",\"&$B34&\",,\"&sel_region_code&\",\",data[],7,FALSE),\"\")","v":""},{"$f":"IFERROR(VLOOKUP(N$15&\",\"&$B34&\",,\"&sel_region_code&\",\",data[],7,FALSE),\"\")","v":""},{"$f":"IFERROR(VLOOKUP(O$15&\",\"&$B34&\",,\"&sel_region_code&\",\",data[],7,FALSE),\"\")","v":""},{"$f":"IFERROR(VLOOKUP(sel_region_code&\",\"&sel_res_gen&\",\"&sel_chain_ely_proc_code&\",\"&sel_chain_deriv_proc_code&\",\"&$B34,data_flh_2[],7,FALSE),\"\")","v":""},null,{"$f":"VLOOKUP($B34,process[],5,FALSE)","v":"CH4-G"},{"$f":"VLOOKUP($B34,process[],4,FALSE)","v":"H2-G"},{"$f":"IFERROR(VLOOKUP($R34,flow[],3,FALSE),\"\")","v":"kWh CH4 (g)"},{"$f":"IFERROR(VLOOKUP($S34,flow[],3,FALSE),\"\")","v":"kWh H2 (g)"},{"$f":"IFERROR(VLOOKUP(\"CONV,\"&$B34&\",\"&V$15&\",,\",data[],7,FALSE),\"\")","v":""},{"$f":"IFERROR(VLOOKUP(\"CONV,\"&$B34&\",\"&W$15&\",,\",data[],7,FALSE),\"\")","v":""},{"$f":"IFERROR(VLOOKUP(\"CONV,\"&$B34&\",\"&X$15&\",,\",data[],7,FALSE),\"\")","v":0.10771077107710771},{"$f":"IFERROR(VLOOKUP(\"CONV,\"&$B34&\",\"&Y$15&\",,\",data[],7,FALSE),\"\")","v":""}]
[null,"CH4-COMP",{"$f":"IFERROR(VLOOKUP($B35,process[],3,FALSE),\"\")","v":"TRANSP-P"},{"$f":"IFERROR(VLOOKUP($B35,process[],2,FALSE),\"\")","v":"Methane compression"},{"$f":"IFERROR(VLOOKUP(C35,process_classes[],2,FALSE),\"\")","v":"Transportation (Pipeline)"},{"$f":"IFERROR(VLOOKUP(F$15&\",\"&$B35&\",,,\",data[],7,FALSE),\"\")","v":144.49043833783671},{"$f":"IFERROR(VLOOKUP(G$15&\",\"&$B35&\",,,\",data[],7,FALSE),\"\")","v":5.7796175335134681},{"$f":"IFERROR(VLOOKUP(H$15&\",\"&$B35&\",,,\",data[],7,FALSE),\"\")","v":20},{"$f":"IFERROR(VLOOKUP(I$15&\",\"&$B35&\",,,\",data[],7,FALSE),\"\")","v":""},{"$f":"IFERROR(VLOOKUP(J$15&\",\"&$B35&\",,,\",data[],7,FALSE),\"\")","v":""},null,{"$f":"IFERROR(VLOOKUP(L$15&\",\"&$B35&\",,\"&sel_region_code&\",\",data[],7,FALSE),\"\")","v":""},{"$f":"IFERROR(VLOOKUP(M$15&\",\"&$B35&\",,\"&sel_region_code&\",\",data[],7,FALSE),\"\")","v":""},{"$f":"IFERROR(VLOOKUP(N$15&\",\"&$B35&\",,\"&sel_region_code&\",\",data[],7,FALSE),\"\")","v":""},{"$f":"IFERROR(VLOOKUP(O$15&\",\"&$B35&\",,\"&sel_region_code&\",\",data[],7,FALSE),\"\")","v":""},{"$f":"IFERROR(VLOOKUP(sel_region_code&\",\"&sel_res_gen&\",\"&sel_chain_ely_proc_code&\",\"&sel_chain_deriv_proc_code&\",\"&$B35,data_flh_2[],7,FALSE),\"\")","v":""},null,{"$f":"VLOOKUP($B35,process[],5,FALSE)","v":"CH4-G"},{"$f":"VLOOKUP($B35,process[],4,FALSE)","v":"CH4-G"},{"$f":"IFERROR(VLOOKUP($R35,flow[],3,FALSE),\"\")","v":"kWh CH4 (g)"},{"$f":"IFERROR(VLOOKUP($S35,flow[],3,FALSE),\"\")","v":"kWh CH4 (g)"},{"$f":"IFERROR(VLOOKUP(\"CONV,\"&$B35&\",\"&V$15&\",,\",data[],7,FALSE),\"\")","v":""},{"$f":"IFERROR(VLOOKUP(\"CONV,\"&$B35&\",\"&W$15&\",,\",data[],7,FALSE),\"\")","v":""},{"$f":"IFERROR(VLOOKUP(\"CONV,\"&$B35&\",\"&X$15&\",,\",data[],7,FALSE),\"\")","v":0.02},{"$f":"IFERROR(VLOOKUP(\"CONV,\"&$B35&\",\"&Y$15&\",,\",data[],7,FALSE),\"\")","v":""}]
[null,"H2-COMP",{"$f":"IFERROR(VLOOKUP($B36,process[],3,FALSE),\"\")","v":"TRANSP-P"},{"$f":"IFERROR(VLOOKUP($B36,process[],2,FALSE),\"\")","v":"Hydrogen compression"},{"$f":"IFERROR(VLOOKUP(C36,process_classes[],2,FALSE),\"\")","v":"Transportation (Pipeline)"},{"$f":"IFERROR(VLOOKUP(F$15&\",\"&$B36&\",,,\",data[],7,FALSE),\"\")","v":144.49043833783671},{"$f":"IFERROR(VLOOKUP(G$15&\",\"&$B36&\",,,\",data[],7,FALSE),\"\")","v":5.7796175335134681},{"$f":"IFERROR(VLOOKUP(H$15&\",\"&$B36&\",,,\",data[],7,FALSE),\"\")","v":20},{"$f":"IFERROR(VLOOKUP(I$15&\",\"&$B36&\",,,\",data[],7,FALSE),\"\")","v":""},{"$f":"IFERROR(VLOOKUP(J$15&\",\"&$B36&\",,,\",data[],7,FALSE),\"\")","v":""},null,{"$f":"IFERROR(VLOOKUP(L$15&\",\"&$B36&\",,\"&sel_region_code&\",\",data[],7,FALSE),\"\")","v":""},{"$f":"IFERROR(VLOOKUP(M$15&\",\"&$B36&\",,\"&sel_region_code&\",\",data[],7,FALSE),\"\")","v":""},{"$f":"IFERROR(VLOOKUP(N$15&\",\"&$B36&\",,\"&sel_region_code&\",\",data[],7,FALSE),\"\")","v":""},{"$f":"IFERROR(VLOOKUP(O$15&\",\"&$B36&\",,\"&sel_region_code&\",\",data[],7,FALSE),\"\")","v":""},{"$f":"IFERROR(VLOOKUP(sel_region_code&\",\"&sel_res_gen&\",\"&sel_chain_ely_proc_code&\",\"&sel_chain_deriv_proc_code&\",\"&$B36,data_flh_2[],7,FALSE),\"\")","v":6657.5999999999995},null,{"$f":"VLOOKUP($B36,process[],5,FALSE)","v":"H2-G"},{"$f":"VLOOKUP($B36,process[],4,FALSE)","v":"H2-G"},{"$f":"IFERROR(VLOOKUP($R36,flow[],3,FALSE),\"\")","v":"kWh H2 (g)"},{"$f":"IFERROR(VLOOKUP($S36,flow[],3,FALSE),\"\")","v":"kWh H2 (g)"},{"$f":"IFERROR(VLOOKUP(\"CONV,\"&$B36&\",\"&V$15&\",,\",data[],7,FALSE),\"\")","v":""},{"$f":"IFERROR(VLOOKUP(\"CONV,\"&$B36&\",\"&W$15&\",,\",data[],7,FALSE),\"\")","v":""},{"$f":"IFERROR(VLOOKUP(\"CONV,\"&$B36&\",\"&X$15&\",,\",data[],7,FALSE),\"\")","v":0.02},{"$f":"IFERROR(VLOOKUP(\"CONV,\"&$B36&\",\"&Y$15&\",,\",data[],7,FALSE),\"\")","v":""}]
[null,"CH4-LIQ",{"$f":"IFERROR(VLOOKUP($B37,process[],3,FALSE),\"\")","v":"TRANSP-S"},{"$f":"IFERROR(VLOOKUP($B37,process[],2,FALSE),\"\")","v":"Methane Liquefaction"},{"$f":"IFERROR(VLOOKUP(C37,process_classes[],2,FALSE),\"\")","v":"Transportation (Ship)"},{"$f":"IFERROR(VLOOKUP(F$15&\",\"&$B37&\",,,\",data[],7,FALSE),\"\")","v":439.99368256303694},{"$f":"IFERROR(VLOOKUP(G$15&\",\"&$B37&\",,,\",data[],7,FALSE),\"\")","v":8.7998736512607394},{"$f":"IFERROR(VLOOKUP(H$15&\",\"&$B37&\",,,\",data[],7,FALSE),\"\")","v":30},{"$f":"IFERROR(VLOOKUP(I$15&\",\"&$B37&\",,,\",data[],7,FALSE),\"\")","v":""},{"$f":"IFERROR(VLOOKUP(J$15&\",\"&$B37&\",,,\",data[],7,FALSE),\"\")","v":""},null,{"$f":"IFERROR(VLOOKUP(L$15&\",\"&$B37&\",,\"&sel_region_code&\",\",data[],7,FALSE),\"\")","v":""},{"$f":"IFERROR(VLOOKUP(M$15&\",\"&$B37&\",,\"&sel_region_code&\",\",data[],7,FALSE),\"\")","v":""},{"$f":"IFERROR(VLOOKUP(N$15&\",\"&$B37&\",,\"&sel_region_code&\",\",data[],7,FALSE),\"\")","v":""},{"$f":"IFERROR(VLOOKUP(O$15&\",\"&$B37&\",,\"&sel_region_code&\",\",data[],7,FALSE),\"\")","v":""},{"$f":"IFERROR(VLOOKUP(sel_region_code&\",\"&sel_res_gen&\",\"&sel_chain_ely_proc_code&\",\"&sel_chain_deriv_proc_code&\",\"&$B37,data_flh_2[],7,FALSE),\"\")","v":""},null,{"$f":"VLOOKUP($B37,process[],5,FALSE)","v":"CH4-G"},{"$f":"VLOOKUP($B37,process[],4,FALSE)","v":"CH4-L"},{"$f":"IFERROR(VLOOKUP($R37,flow[],3,FALSE),\"\")","v":"kWh CH4 (g)"},{"$f":"IFERROR(VLOOKUP($S37,flow[],3,FALSE),\"\")","v":"kWh CH4 (l)"},{"$f":"IFERROR(VLOOKUP(\"CONV,\"&$B37&\",\"&V$15&\",,\",data[],7,FALSE),\"\")","v":""},{"$f":"IFERROR(VLOOKUP(\"CONV,\"&$B37&\",\"&W$15&\",,\",data[],7,FALSE),\"\")","v":""},{"$f":"IFERROR(VLOOKUP(\"CONV,\"&$B37&\",\"&X$15&\",,\",data[],7,FALSE),\"\")","v":0.10526315789473685},{"$f":"IFERROR(VLOOKUP(\"CONV,\"&$B37&\",\"&Y$15&\",,\",data[],7,FALSE),\"\")","v":""}]
[null,"CH4-RGAS",{"$f":"IFERROR(VLOOKUP($B38,process[],3,FALSE),\"\")","v":"TRANSP-S"},{"$f":"IFERROR(VLOOKUP($B38,process[],2,FALSE),\"\")","v":"Methane Regasification"},{"$f":"IFERROR(VLOOKUP(C38,process_classes[],2,FALSE),\"\")","v":"Transportation (Ship)"},{"$f":"IFERROR(VLOOKUP(F$15&\",\"&$B38&\",,,\",data[],7,FALSE),\"\")","v":""},{"$f":"IFERROR(VLOOKUP(G$15&\",\"&$B38&\",,,\",data[],7,FALSE),\"\")","v":""},{"$f":"IFERROR(VLOOKUP(H$15&\",\"&$B38&\",,,\",data[],7,FALSE),\"\")","v":""},{"$f":"IFERROR(VLOOKUP(I$15&\",\"&$B38&\",,,\",data[],7,FALSE),\"\")","v":0.98},{"$f":"IFERROR(VLOOKUP(J$15&\",\"&$B38&\",,,\",data[],7,FALSE),\"\")","v":""},null,{"$f":"IFERROR(VLOOKUP(L$15&\",\"&$B38&\",,\"&sel_region_code&\",\",data[],7,FALSE),\"\")","v":""},{"$f":"IFERROR(VLOOKUP(M$15&\",\"&$B38&\",,\"&sel_region_code&\",\",data[],7,FALSE),\"\")","v":""},{"$f":"IFERROR(VLOOKUP(N$15&\",\"&$B38&\",,\"&sel_region_code&\",\",data[],7,FALSE),\"\")","v":""},{"$f":"IFERROR(VLOOKUP(O$15&\",\"&$B38&\",,\"&sel_region_code&\",\",data[],7,FALSE),\"\")","v":""},{"$f":"IFERROR(VLOOKUP(sel_region_code&\",\"&sel_res_gen&\",\"&sel_chain_ely_proc_code&\",\"&sel_chain_deriv_proc_code&\",\"&$B38,data_flh_2[],7,FALSE),\"\")","v":""},null,{"$f":"VLOOKUP($B38,process[],5,FALSE)","v":"CH4-L"},{"$f":"VLOOKUP($B38,process[],4,FALSE)","v":"CH4-G"},{"$f":"IFERROR(VLOOKUP($R38,flow[],3,FALSE),\"\")","v":"kWh CH4 (l)"},{"$f":"IFERROR(VLOOKUP($S38,flow[],3,FALSE),\"\")","v":"kWh CH4 (g)"},{"$f":"IFERROR(VLOOKUP(\"CONV,\"&$B38&\",\"&V$15&\",,\",data[],7,FALSE),\"\")","v":""},{"$f":"IFERROR(VLOOKUP(\"CONV,\"&$B38&\",\"&W$15&\",,\",data[],7,FALSE),\"\")","v":""},{"$f":"IFERROR(VLOOKUP(\"CONV,\"&$B38&\",\"&X$15&\",,\",data[],7,FALSE),\"\")","v":""},{"$f":"IFERROR(VLOOKUP(\"CONV,\"&$B38&\",\"&Y$15&\",,\",data[],7,FALSE),\"\")","v":""}]
[null,"H2-LIQ",{"$f":"IFERROR(VLOOKUP($B39,process[],3,FALSE),\"\")","v":"TRANSP-S"},{"$f":"IFERROR(VLOOKUP($B39,process[],2,FALSE),\"\")","v":"Hydrogen Liquefaction"},{"$f":"IFERROR(VLOOKUP(C39,process_classes[],2,FALSE),\"\")","v":"Transportation (Ship)"},{"$f":"IFERROR(VLOOKUP(F$15&\",\"&$B39&\",,,\",data[],7,FALSE),\"\")","v":1457.3621055108172},{"$f":"IFERROR(VLOOKUP(G$15&\",\"&$B39&\",,,\",data[],7,FALSE),\"\")","v":58.294484220432686},{"$f":"IFERROR(VLOOKUP(H$15&\",\"&$B39&\",,,\",data[],7,FALSE),\"\")","v":30},{"$f":"IFERROR(VLOOKUP(I$15&\",\"&$B39&\",,,\",data[],7,FALSE),\"\")","v":1},{"$f":"IFERROR(VLOOKUP(J$15&\",\"&$B39&\",,,\",data[],7,FALSE),\"\")","v":""},null,{"$f":"IFERROR(VLOOKUP(L$15&\",\"&$B39&\",,\"&sel_region_code&\",\",data[],7,FALSE),\"\")","v":""},{"$f":"IFERROR(VLOOKUP(M$15&\",\"&$B39&\",,\"&sel_region_code&\",\",data[],7,FALSE),\"\")","v":""},{"$f":"IFERROR(VLOOKUP(N$15&\",\"&$B39&\",,\"&sel_region_code&\",\",data[],7,FALSE),\"\")","v":""},{"$f":"IFERROR(VLOOKUP(O$15&\",\"&$B39&\",,\"&sel_region_code&\",\",data[],7,FALSE),\"\")","v":""},{"$f":"IFERROR(VLOOKUP(P$15&\",\"&$B39&\",,\"&sel_region_code&\",\",data[],7,FALSE),\"\")","v":""},null,{"$f":"VLOOKUP($B39,process[],5,FALSE)","v":"H2-G"},{"$f":"VLOOKUP($B39,process[],4,FALSE)","v":"H2-L"},{"$f":"IFERROR(VLOOKUP($R39,flow[],3,FALSE),\"\")","v":"kWh H2 (g)"},{"$f":"IFERROR(VLOOKUP($S39,flow[],3,FALSE),\"\")","v":"kWh H2 (l)"},{"$f":"IFERROR(VLOOKUP(\"CONV,\"&$B39&\",\"&V$15&\",,\",data[],7,FALSE),\"\")","v":""},{"$f":"IFERROR(VLOOKUP(\"CONV,\"&$B39&\",\"&W$15&\",,\",data[],7,FALSE),\"\")","v":""},{"$f":"IFERROR(VLOOKUP(\"CONV,\"&$B39&\",\"&X$15&\",,\",data[],7,FALSE),\"\")","v":0.30010003334444812},{"$f":"IFERROR(VLOOKUP(\"CONV,\"&$B39&\",\"&Y$15&\",,\",data[],7,FALSE),\"\")","v":""}]
[null,"H2-RGAS",{"$f":"IFERROR(VLOOKUP($B40,process[],3,FALSE),\"\")","v":"TRANSP-S"},{"$f":"IFERROR(VLOOKUP($B40,process[],2,FALSE),\"\")","v":"Hydrogen Regasification"},{"$f":"IFERROR(VLOOKUP(C40,process_classes[],2,FALSE),\"\")","v":"Transportation (Ship)"},{"$f":"IFERROR(VLOOKUP(F$15&\",\"&$B40&\",,,\",data[],7,FALSE),\"\")","v":318.14227153381154},{"$f":"IFERROR(VLOOKUP(G$15&\",\"&$B40&\",,,\",data[],7,FALSE),\"\")","v":7.9535567883452885},{"$f":"IFERROR(VLOOKUP(H$15&\",\"&$B40&\",,,\",data[],7,FALSE),\"\")","v":30},{"$f":"IFERROR(VLOOKUP(I$15&\",\"&$B40&\",,,\",data[],7,FALSE),\"\")","v":0.99654654654654651},{"$f":"IFERROR(VLOOKUP(J$15&\",\"&$B40&\",,,\",data[],7,FALSE),\"\")","v":""},null,{"$f":"IFERROR(VLOOKUP(L$15&\",\"&$B40&\",,\"&sel_region_code&\",\",data[],7,FALSE),\"\")","v":""},{"$f":"IFERROR(VLOOKUP(M$15&\",\"&$B40&\",,\"&sel_region_code&\",\",data[],7,FALSE),\"\")","v":""},{"$f":"IFERROR(VLOOKUP(N$15&\",\"&$B40&\",,\"&sel_region_code&\",\",data[],7,FALSE),\"\")","v":""},{"$f":"IFERROR(VLOOKUP(O$15&\",\"&$B40&\",,\"&sel_region_code&\",\",data[],7,FALSE),\"\")","v":""},{"$f":"IFERROR(VLOOKUP(P$15&\",\"&$B40&\",,\"&sel_region_code&\",\",data[],7,FALSE),\"\")","v":""},null,{"$f":"VLOOKUP($B40,process[],5,FALSE)","v":"H2-L"},{"$f":"VLOOKUP($B40,process[],4,FALSE)","v":"H2-G"},{"$f":"IFERROR(VLOOKUP($R40,flow[],3,FALSE),\"\")","v":"kWh H2 (l)"},{"$f":"IFERROR(VLOOKUP($S40,flow[],3,FALSE),\"\")","v":"kWh H2 (g)"},{"$f":"IFERROR(VLOOKUP(\"CONV,\"&$B40&\",\"&V$15&\",,\",data[],7,FALSE),\"\")","v":""},{"$f":"IFERROR(VLOOKUP(\"CONV,\"&$B40&\",\"&W$15&\",,\",data[],7,FALSE),\"\")","v":""},{"$f":"IFERROR(VLOOKUP(\"CONV,\"&$B40&\",\"&X$15&\",,\",data[],7,FALSE),\"\")","v":""},{"$f":"IFERROR(VLOOKUP(\"CONV,\"&$B40&\",\"&Y$15&\",,\",data[],7,FALSE),\"\")","v":""}]
[null,"LOHC-CON",{"$f":"IFERROR(VLOOKUP($B41,process[],3,FALSE),\"\")","v":"TRANSP-S"},{"$f":"IFERROR(VLOOKUP($B41,process[],2,FALSE),\"\")","v":"LOHC conversion"},{"$f":"IFERROR(VLOOKUP(C41,process_classes[],2,FALSE),\"\")","v":"Transportation (Ship)"},{"$f":"IFERROR(VLOOKUP(F$15&\",\"&$B41&\",,,\",data[],7,FALSE),\"\")","v":200.97923345856316},{"$f":"IFERROR(VLOOKUP(G$15&\",\"&$B41&\",,,\",data[],7,FALSE),\"\")","v":8.0391693383425267},{"$f":"IFERROR(VLOOKUP(H$15&\",\"&$B41&\",,,\",data[],7,FALSE),\"\")","v":20},{"$f":"IFERROR(VLOOKUP(I$15&\",\"&$B41&\",,,\",data[],7,FALSE),\"\")","v":""},{"$f":"IFERROR(VLOOKUP(J$15&\",\"&$B41&\",,,\",data[],7,FALSE),\"\")","v":""},null,{"$f":"IFERROR(VLOOKUP(L$15&\",\"&$B41&\",,\"&sel_region_code&\",\",data[],7,FALSE),\"\")","v":""},{"$f":"IFERROR(VLOOKUP(M$15&\",\"&$B41&\",,\"&sel_region_code&\",\",data[],7,FALSE),\"\")","v":""},{"$f":"IFERROR(VLOOKUP(N$15&\",\"&$B41&\",,\"&sel_region_code&\",\",data[],7,FALSE),\"\")","v":""},{"$f":"IFERROR(VLOOKUP(O$15&\",\"&$B41&\",,\"&sel_region_code&\",\",data[],7,FALSE),\"\")","v":""},{"$f":"IFERROR(VLOOKUP(P$15&\",\"&$B41&\",,\"&sel_region_code&\",\",data[],7,FALSE),\"\")","v":""},null,{"$f":"VLOOKUP($B41,process[],5,FALSE)","v":"H2-G"},{"$f":"VLOOKUP($B41,process[],4,FALSE)","v":"LOHC-L"},{"$f":"IFERROR(VLOOKUP($R41,flow[],3,FALSE),\"\")","v":"kWh H2 (g)"},{"$f":"IFERROR(VLOOKUP($S41,flow[],3,FALSE),\"\")","v":"kWh H2 (l)"},{"$f":"IFERROR(VLOOKUP(\"CONV,\"&$B41&\",\"&V$15&\",,\",data[],7,FALSE),\"\")","v":""},{"$f":"IFERROR(VLOOKUP(\"CONV,\"&$B41&\",\"&W$15&\",,\",data[],7,FALSE),\"\")","v":""},{"$f":"IFERROR(VLOOKUP(\"CONV,\"&$B41&\",\"&X$15&\",,\",data[],7,FALSE),\"\")","v":0.01},{"$f":"IFERROR(VLOOKUP(\"CONV,\"&$B41&\",\"&Y$15&\",,\",data[],7,FALSE),\"\")","v":""}]
[null,"LOHC-REC",{"$f":"IFERROR(VLOOKUP($B42,process[],3,FALSE),\"\")","v":"TRANSP-S"},{"$f":"IFERROR(VLOOKUP($B42,process[],2,FALSE),\"\")","v":"LOHC reconversion"},{"$f":"IFERROR(VLOOKUP(C42,process_classes[],2,FALSE),\"\")","v":"Transportation (Ship)"},{"$f":"IFERROR(VLOOKUP(F$15&\",\"&$B42&\",,,\",data[],7,FALSE),\"\")","v":458.97706001032537},{"$f":"IFERROR(VLOOKUP(G$15&\",\"&$B42&\",,,\",data[],7,FALSE),\"\")","v":14.916754450335576},{"$f":"IFERROR(VLOOKUP(H$15&\",\"&$B42&\",,,\",data[],7,FALSE),\"\")","v":30},{"$f":"IFERROR(VLOOKUP(I$15&\",\"&$B42&\",,,\",data[],7,FALSE),\"\")","v":0.9},{"$f":"IFERROR(VLOOKUP(J$15&\",\"&$B42&\",,,\",data[],7,FALSE),\"\")","v":""},null,{"$f":"IFERROR(VLOOKUP(L$15&\",\"&$B42&\",,\"&sel_region_code&\",\",data[],7,FALSE),\"\")","v":""},{"$f":"IFERROR(VLOOKUP(M$15&\",\"&$B42&\",,\"&sel_region_code&\",\",data[],7,FALSE),\"\")","v":""},{"$f":"IFERROR(VLOOKUP(N$15&\",\"&$B42&\",,\"&sel_region_code&\",\",data[],7,FALSE),\"\")","v":""},{"$f":"IFERROR(VLOOKUP(O$15&\",\"&$B42&\",,\"&sel_region_code&\",\",data[],7,FALSE),\"\")","v":""},{"$f":"IFERROR(VLOOKUP(P$15&\",\"&$B42&\",,\"&sel_region_code&\",\",data[],7,FALSE),\"\")","v":""},null,{"$f":"VLOOKUP($B42,process[],5,FALSE)","v":"LOHC-L"},{"$f":"VLOOKUP($B42,process[],4,FALSE)","v":"H2-G"},{"$f":"IFERROR(VLOOKUP($R42,flow[],3,FALSE),\"\")","v":"kWh H2 (l)"},{"$f":"IFERROR(VLOOKUP($S42,flow[],3,FALSE),\"\")","v":"kWh H2 (g)"},{"$f":"IFERROR(VLOOKUP(\"CONV,\"&$B42&\",\"&V$15&\",,\",data[],7,FALSE),\"\")","v":""},{"$f":"IFERROR(VLOOKUP(\"CONV,\"&$B42&\",\"&W$15&\",,\",data[],7,FALSE),\"\")","v":""},{"$f":"IFERROR(VLOOKUP(\"CONV,\"&$B42&\",\"&X$15&\",,\",data[],7,FALSE),\"\")","v":2.8502850285028507E-2},{"$f":"IFERROR(VLOOKUP(\"CONV,\"&$B42&\",\"&Y$15&\",,\",data[],7,FALSE),\"\")","v":0.40540540540540537}]
[null,null,{"$f":"IFERROR(VLOOKUP($B43,process[],3,FALSE),\"\")","v":""},{"$f":"IFERROR(VLOOKUP($B43,process[],2,FALSE),\"\")","v":""},{"$f":"IFERROR(VLOOKUP(C43,process_classes[],2,FALSE),\"\")","v":""},{"$f":"IFERROR(VLOOKUP(F$15&\",\"&$B43&\",,,\",data[],7,FALSE),\"\")","v":""},{"$f":"IFERROR(VLOOKUP(G$15&\",\"&$B43&\",,,\",data[],7,FALSE),\"\")","v":""},{"$f":"IFERROR(VLOOKUP(H$15&\",\"&$B43&\",,,\",data[],7,FALSE),\"\")","v":""},{"$f":"IFERROR(VLOOKUP(I$15&\",\"&$B43&\",,,\",data[],7,FALSE),\"\")","v":""},{"$f":"IFERROR(VLOOKUP(J$15&\",\"&$B43&\",,,\",data[],7,FALSE),\"\")","v":""},null,{"$f":"IFERROR(VLOOKUP(L$15&\",\"&$B43&\",,\"&sel_region_code&\",\",data[],7,FALSE),\"\")","v":""},{"$f":"IFERROR(VLOOKUP(M$15&\",\"&$B43&\",,\"&sel_region_code&\",\",data[],7,FALSE),\"\")","v":""},{"$f":"IFERROR(VLOOKUP(N$15&\",\"&$B43&\",,\"&sel_region_code&\",\",data[],7,FALSE),\"\")","v":""},{"$f":"IFERROR(VLOOKUP(O$15&\",\"&$B43&\",,\"&sel_region_code&\",\",data[],7,FALSE),\"\")","v":""},{"$f":"IFERROR(VLOOKUP(P$15&\",\"&$B43&\",,\"&sel_region_code&\",\",data[],7,FALSE),\"\")","v":""},null,{"$f":"VLOOKUP($B43,process[],5,FALSE)","v":{"$error":"#N/A"}},{"$f":"VLOOKUP($B43,process[],4,FALSE)","v":{"$error":"#N/A"}},{"$f":"IFERROR(VLOOKUP($R43,flow[],3,FALSE),\"\")","v":""},{"$f":"IFERROR(VLOOKUP($S43,flow[],3,FALSE),\"\")","v":""},{"$f":"IFERROR(VLOOKUP(\"CONV,\"&$B43&\",\"&V$15&\",,\",data[],7,FALSE),\"\")","v":""},{"$f":"IFERROR(VLOOKUP(\"CONV,\"&$B43&\",\"&W$15&\",,\",data[],7,FALSE),\"\")","v":""},{"$f":"IFERROR(VLOOKUP(\"CONV,\"&$B43&\",\"&X$15&\",,\",data[],7,FALSE),\"\")","v":""},{"$f":"IFERROR(VLOOKUP(\"CONV,\"&$B43&\",\"&Y$15&\",,\",data[],7,FALSE),\"\")","v":""}]
[null,null,{"$f":"IFERROR(VLOOKUP($B44,process[],3,FALSE),\"\")","v":""},{"$f":"IFERROR(VLOOKUP($B44,process[],2,FALSE),\"\")","v":""},{"$f":"IFERROR(VLOOKUP(C44,process_classes[],2,FALSE),\"\")","v":""},{"$f":"IFERROR(VLOOKUP(F$15&\",\"&$B44&\",,,\",data[],7,FALSE),\"\")","v":""},{"$f":"IFERROR(VLOOKUP(G$15&\",\"&$B44&\",,,\",data[],7,FALSE),\"\")","v":""},{"$f":"IFERROR(VLOOKUP(H$15&\",\"&$B44&\",,,\",data[],7,FALSE),\"\")","v":""},{"$f":"IFERROR(VLOOKUP(I$15&\",\"&$B44&\",,,\",data[],7,FALSE),\"\")","v":""},{"$f":"IFERROR(VLOOKUP(J$15&\",\"&$B44&\",,,\",data[],7,FALSE),\"\")","v":""},null,{"$f":"IFERROR(VLOOKUP(L$15&\",\"&$B44&\",,\"&sel_region_code&\",\",data[],7,FALSE),\"\")","v":""},{"$f":"IFERROR(VLOOKUP(M$15&\",\"&$B44&\",,\"&sel_region_code&\",\",data[],7,FALSE),\"\")","v":""},{"$f":"IFERROR(VLOOKUP(N$15&\",\"&$B44&\",,\"&sel_region_code&\",\",data[],7,FALSE),\"\")","v":""},{"$f":"IFERROR(VLOOKUP(O$15&\",\"&$B44&\",,\"&sel_region_code&\",\",data[],7,FALSE),\"\")","v":""},{"$f":"IFERROR(VLOOKUP(P$15&\",\"&$B44&\",,\"&sel_region_code&\",\",data[],7,FALSE),\"\")","v":""},null,{"$f":"VLOOKUP($B44,process[],5,FALSE)","v":{"$error":"#N/A"}},{"$f":"VLOOKUP($B44,process[],4,FALSE)","v":{"$error":"#N/A"}},{"$f":"IFERROR(VLOOKUP($R44,flow[],3,FALSE),\"\")","v":""},{"$f":"IFERROR(VLOOKUP($S44,flow[],3,FALSE),\"\")","v":""},{"$f":"IFERROR(VLOOKUP(\"CONV,\"&$B44&\",\"&V$15&\",,\",data[],7,FALSE),\"\")","v":""},{"$f":"IFERROR(VLOOKUP(\"CONV,\"&$B44&\",\"&W$15&\",,\",data[],7,FALSE),\"\")","v":""},{"$f":"IFERROR(VLOOKUP(\"CONV,\"&$B44&\",\"&X$15&\",,\",data[],7,FALSE),\"\")","v":""},{"$f":"IFERROR(VLOOKUP(\"CONV,\"&$B44&\",\"&Y$15&\",,\",data[],7,FALSE),\"\")","v":""}]
[null,null,{"$f":"IFERROR(VLOOKUP($B45,process[],3,FALSE),\"\")","v":""},{"$f":"IFERROR(VLOOKUP($B45,process[],2,FALSE),\"\")","v":""},{"$f":"IFERROR(VLOOKUP(C45,process_classes[],2,FALSE),\"\")","v":""},{"$f":"IFERROR(VLOOKUP(F$15&\",\"&$B45&\",,,\",data[],7,FALSE),\"\")","v":""},{"$f":"IFERROR(VLOOKUP(G$15&\",\"&$B45&\",,,\",data[],7,FALSE),\"\")","v":""},{"$f":"IFERROR(VLOOKUP(H$15&\",\"&$B45&\",,,\",data[],7,FALSE),\"\")","v":""},{"$f":"IFERROR(VLOOKUP(I$15&\",\"&$B45&\",,,\",data[],7,FALSE),\"\")","v":""},{"$f":"IFERROR(VLOOKUP(J$15&\",\"&$B45&\",,,\",data[],7,FALSE),\"\")","v":""},null,{"$f":"IFERROR(VLOOKUP(L$15&\",\"&$B45&\",,\"&sel_region_code&\",\",data[],7,FALSE),\"\")","v":""},{"$f":"IFERROR(VLOOKUP(M$15&\",\"&$B45&\",,\"&sel_region_code&\",\",data[],7,FALSE),\"\")","v":""},{"$f":"IFERROR(VLOOKUP(N$15&\",\"&$B45&\",,\"&sel_region_code&\",\",data[],7,FALSE),\"\")","v":""},{"$f":"IFERROR(VLOOKUP(O$15&\",\"&$B45&\",,\"&sel_region_code&\",\",data[],7,FALSE),\"\")","v":""},{"$f":"IFERROR(VLOOKUP(P$15&\",\"&$B45&\",,\"&sel_region_code&\",\",data[],7,FALSE),\"\")","v":""},null,{"$f":"VLOOKUP($B45,process[],5,FALSE)","v":{"$error":"#N/A"}},{"$f":"VLOOKUP($B45,process[],4,FALSE)","v":{"$error":"#N/A"}},{"$f":"IFERROR(VLOOKUP($R45,flow[],3,FALSE),\"\")","v":""},{"$f":"IFERROR(VLOOKUP($S45,flow[],3,FALSE),\"\")","v":""},{"$f":"IFERROR(VLOOKUP(\"CONV,\"&$B45&\",\"&V$15&\",,\",data[],7,FALSE),\"\")","v":""},{"$f":"IFERROR(VLOOKUP(\"CONV,\"&$B45&\",\"&W$15&\",,\",data[],7,FALSE),\"\")","v":""},{"$f":"IFERROR(VLOOKUP(\"CONV,\"&$B45&\",\"&X$15&\",,\",data[],7,FALSE),\"\")","v":""},{"$f":"IFERROR(VLOOKUP(\"CONV,\"&$B45&\",\"&Y$15&\",,\",data[],7,FALSE),\"\")","v":""}]
[null,null,{"$f":"IFERROR(VLOOKUP($B46,process[],3,FALSE),\"\")","v":""},{"$f":"IFERROR(VLOOKUP($B46,process[],2,FALSE),\"\")","v":""},{"$f":"IFERROR(VLOOKUP(C46,process_classes[],2,FALSE),\"\")","v":""},{"$f":"IFERROR(VLOOKUP(F$15&\",\"&$B46&\",,,\",data[],7,FALSE),\"\")","v":""},{"$f":"IFERROR(VLOOKUP(G$15&\",\"&$B46&\",,,\",data[],7,FALSE),\"\")","v":""},{"$f":"IFERROR(VLOOKUP(H$15&\",\"&$B46&\",,,\",data[],7,FALSE),\"\")","v":""},{"$f":"IFERROR(VLOOKUP(I$15&\",\"&$B46&\",,,\",data[],7,FALSE),\"\")","v":""},{"$f":"IFERROR(VLOOKUP(J$15&\",\"&$B46&\",,,\",data[],7,FALSE),\"\")","v":""},null,{"$f":"IFERROR(VLOOKUP(L$15&\",\"&$B46&\",,\"&sel_region_code&\",\",data[],7,FALSE),\"\")","v":""},{"$f":"IFERROR(VLOOKUP(M$15&\",\"&$B46&\",,\"&sel_region_code&\",\",data[],7,FALSE),\"\")","v":""},{"$f":"IFERROR(VLOOKUP(N$15&\",\"&$B46&\",,\"&sel_region_code&\",\",data[],7,FALSE),\"\")","v":""},{"$f":"IFERROR(VLOOKUP(O$15&\",\"&$B46&\",,\"&sel_region_code&\",\",data[],7,FALSE),\"\")","v":""},{"$f":"IFERROR(VLOOKUP(P$15&\",\"&$B46&\",,\"&sel_region_code&\",\",data[],7,FALSE),\"\")","v":""},null,{"$f":"VLOOKUP($B46,process[],5,FALSE)","v":{"$error":"#N/A"}},{"$f":"VLOOKUP($B46,process[],4,FALSE)","v":{"$error":"#N/A"}},{"$f":"IFERROR(VLOOKUP($R46,flow[],3,FALSE),\"\")","v":""},{"$f":"IFERROR(VLOOKUP($S46,flow[],3,FALSE),\"\")","v":""},{"$f":"IFERROR(VLOOKUP(\"CONV,\"&$B46&\",\"&V$15&\",,\",data[],7,FALSE),\"\")","v":""},{"$f":"IFERROR(VLOOKUP(\"CONV,\"&$B46&\",\"&W$15&\",,\",data[],7,FALSE),\"\")","v":""},{"$f":"IFERROR(VLOOKUP(\"CONV,\"&$B46&\",\"&X$15&\",,\",data[],7,FALSE),\"\")","v":""},{"$f":"IFERROR(VLOOKUP(\"CONV,\"&$B46&\",\"&Y$15&\",,\",data[],7,FALSE),\"\")","v":""}]
[null,null,{"$f":"IFERROR(VLOOKUP($B47,process[],3,FALSE),\"\")","v":""},{"$f":"IFERROR(VLOOKUP($B47,process[],2,FALSE),\"\")","v":""},{"$f":"IFERROR(VLOOKUP(C47,process_classes[],2,FALSE),\"\")","v":""},{"$f":"IFERROR(VLOOKUP(F$15&\",\"&$B47&\",,,\",data[],7,FALSE),\"\")","v":""},{"$f":"IFERROR(VLOOKUP(G$15&\",\"&$B47&\",,,\",data[],7,FALSE),\"\")","v":""},{"$f":"IFERROR(VLOOKUP(H$15&\",\"&$B47&\",,,\",data[],7,FALSE),\"\")","v":""},{"$f":"IFERROR(VLOOKUP(I$15&\",\"&$B47&\",,,\",data[],7,FALSE),\"\")","v":""},{"$f":"IFERROR(VLOOKUP(J$15&\",\"&$B47&\",,,\",data[],7,FALSE),\"\")","v":""},null,{"$f":"IFERROR(VLOOKUP(L$15&\",\"&$B47&\",,\"&sel_region_code&\",\",data[],7,FALSE),\"\")","v":""},{"$f":"IFERROR(VLOOKUP(M$15&\",\"&$B47&\",,\"&sel_region_code&\",\",data[],7,FALSE),\"\")","v":""},{"$f":"IFERROR(VLOOKUP(N$15&\",\"&$B47&\",,\"&sel_region_code&\",\",data[],7,FALSE),\"\")","v":""},{"$f":"IFERROR(VLOOKUP(O$15&\",\"&$B47&\",,\"&sel_region_code&\",\",data[],7,FALSE),\"\")","v":""},{"$f":"IFERROR(VLOOKUP(P$15&\",\"&$B47&\",,\"&sel_region_code&\",\",data[],7,FALSE),\"\")","v":""},null,{"$f":"VLOOKUP($B47,process[],5,FALSE)","v":{"$error":"#N/A"}},{"$f":"VLOOKUP($B47,process[],4,FALSE)","v":{"$error":"#N/A"}},{"$f":"IFERROR(VLOOKUP($R47,flow[],3,FALSE),\"\")","v":""},{"$f":"IFERROR(VLOOKUP($S47,flow[],3,FALSE),\"\")","v":""},{"$f":"IFERROR(VLOOKUP(\"CONV,\"&$B47&\",\"&V$15&\",,\",data[],7,FALSE),\"\")","v":""},{"$f":"IFERROR(VLOOKUP(\"CONV,\"&$B47&\",\"&W$15&\",,\",data[],7,FALSE),\"\")","v":""},{"$f":"IFERROR(VLOOKUP(\"CONV,\"&$B47&\",\"&X$15&\",,\",data[],7,FALSE),\"\")","v":""},{"$f":"IFERROR(VLOOKUP(\"CONV,\"&$B47&\",\"&Y$15&\",,\",data[],7,FALSE),\"\")","v":""}]
[null,null,{"$f":"IFERROR(VLOOKUP($B48,process[],3,FALSE),\"\")","v":""},{"$f":"IFERROR(VLOOKUP($B48,process[],2,FALSE),\"\")","v":""},{"$f":"IFERROR(VLOOKUP(C48,process_classes[],2,FALSE),\"\")","v":""},{"$f":"IFERROR(VLOOKUP(F$15&\",\"&$B48&\",,,\",data[],7,FALSE),\"\")","v":""},{"$f":"IFERROR(VLOOKUP(G$15&\",\"&$B48&\",,,\",data[],7,FALSE),\"\")","v":""},{"$f":"IFERROR(VLOOKUP(H$15&\",\"&$B48&\",,,\",data[],7,FALSE),\"\")","v":""},{"$f":"IFERROR(VLOOKUP(I$15&\",\"&$B48&\",,,\",data[],7,FALSE),\"\")","v":""},{"$f":"IFERROR(VLOOKUP(J$15&\",\"&$B48&\",,,\",data[],7,FALSE),\"\")","v":""},null,{"$f":"IFERROR(VLOOKUP(L$15&\",\"&$B48&\",,\"&sel_region_code&\",\",data[],7,FALSE),\"\")","v":""},{"$f":"IFERROR(VLOOKUP(M$15&\",\"&$B48&\",,\"&sel_region_code&\",\",data[],7,FALSE),\"\")","v":""},{"$f":"IFERROR(VLOOKUP(N$15&\",\"&$B48&\",,\"&sel_region_code&\",\",data[],7,FALSE),\"\")","v":""},{"$f":"IFERROR(VLOOKUP(O$15&\",\"&$B48&\",,\"&sel_region_code&\",\",data[],7,FALSE),\"\")","v":""},{"$f":"IFERROR(VLOOKUP(P$15&\",\"&$B48&\",,\"&sel_region_code&\",\",data[],7,FALSE),\"\")","v":""},null,{"$f":"VLOOKUP($B48,process[],5,FALSE)","v":{"$error":"#N/A"}},{"$f":"VLOOKUP($B48,process[],4,FALSE)","v":{"$error":"#N/A"}},{"$f":"IFERROR(VLOOKUP($R48,flow[],3,FALSE),\"\")","v":""},{"$f":"IFERROR(VLOOKUP($S48,flow[],3,FALSE),\"\")","v":""},{"$f":"IFERROR(VLOOKUP(\"CONV,\"&$B48&\",\"&V$15&\",,\",data[],7,FALSE),\"\")","v":""},{"$f":"IFERROR(VLOOKUP(\"CONV,\"&$B48&\",\"&W$15&\",,\",data[],7,FALSE),\"\")","v":""},{"$f":"IFERROR(VLOOKUP(\"CONV,\"&$B48&\",\"&X$15&\",,\",data[],7,FALSE),\"\")","v":""},{"$f":"IFERROR(VLOOKUP(\"CONV,\"&$B48&\",\"&Y$15&\",,\",data[],7,FALSE),\"\")","v":""}]
[null,null,{"$f":"IFERROR(VLOOKUP($B49,process[],3,FALSE),\"\")","v":""},{"$f":"IFERROR(VLOOKUP($B49,process[],2,FALSE),\"\")","v":""},{"$f":"IFERROR(VLOOKUP(C49,process_classes[],2,FALSE),\"\")","v":""},{"$f":"IFERROR(VLOOKUP(F$15&\",\"&$B49&\",,,\",data[],7,FALSE),\"\")","v":""},{"$f":"IFERROR(VLOOKUP(G$15&\",\"&$B49&\",,,\",data[],7,FALSE),\"\")","v":""},{"$f":"IFERROR(VLOOKUP(H$15&\",\"&$B49&\",,,\",data[],7,FALSE),\"\")","v":""},{"$f":"IFERROR(VLOOKUP(I$15&\",\"&$B49&\",,,\",data[],7,FALSE),\"\")","v":""},{"$f":"IFERROR(VLOOKUP(J$15&\",\"&$B49&\",,,\",data[],7,FALSE),\"\")","v":""},null,{"$f":"IFERROR(VLOOKUP(L$15&\",\"&$B49&\",,\"&sel_region_code&\",\",data[],7,FALSE),\"\")","v":""},{"$f":"IFERROR(VLOOKUP(M$15&\",\"&$B49&\",,\"&sel_region_code&\",\",data[],7,FALSE),\"\")","v":""},{"$f":"IFERROR(VLOOKUP(N$15&\",\"&$B49&\",,\"&sel_region_code&\",\",data[],7,FALSE),\"\")","v":""},{"$f":"IFERROR(VLOOKUP(O$15&\",\"&$B49&\",,\"&sel_region_code&\",\",data[],7,FALSE),\"\")","v":""},{"$f":"IFERROR(VLOOKUP(P$15&\",\"&$B49&\",,\"&sel_region_code&\",\",data[],7,FALSE),\"\")","v":""},null,{"$f":"VLOOKUP($B49,process[],5,FALSE)","v":{"$error":"#N/A"}},{"$f":"VLOOKUP($B49,process[],4,FALSE)","v":{"$error":"#N/A"}},{"$f":"IFERROR(VLOOKUP($R49,flow[],3,FALSE),\"\")","v":""},{"$f":"IFERROR(VLOOKUP($S49,flow[],3,FALSE),\"\")","v":""},{"$f":"IFERROR(VLOOKUP(\"CONV,\"&$B49&\",\"&V$15&\",,\",data[],7,FALSE),\"\")","v":""},{"$f":"IFERROR(VLOOKUP(\"CONV,\"&$B49&\",\"&W$15&\",,\",data[],7,FALSE),\"\")","v":""},{"$f":"IFERROR(VLOOKUP(\"CONV,\"&$B49&\",\"&X$15&\",,\",data[],7,FALSE),\"\")","v":""},{"$f":"IFERROR(VLOOKUP(\"CONV,\"&$B49&\",\"&Y$15&\",,\",data[],7,FALSE),\"\")","v":""}]
[null,null,{"$f":"IFERROR(VLOOKUP($B50,process[],3,FALSE),\"\")","v":""},{"$f":"IFERROR(VLOOKUP($B50,process[],2,FALSE),\"\")","v":""},{"$f":"IFERROR(VLOOKUP(C50,process_classes[],2,FALSE),\"\")","v":""},{"$f":"IFERROR(VLOOKUP(F$15&\",\"&$B50&\",,,\",data[],7,FALSE),\"\")","v":""},{"$f":"IFERROR(VLOOKUP(G$15&\",\"&$B50&\",,,\",data[],7,FALSE),\"\")","v":""},{"$f":"IFERROR(VLOOKUP(H$15&\",\"&$B50&\",,,\",data[],7,FALSE),\"\")","v":""},{"$f":"IFERROR(VLOOKUP(I$15&\",\"&$B50&\",,,\",data[],7,FALSE),\"\")","v":""},{"$f":"IFERROR(VLOOKUP(J$15&\",\"&$B50&\",,,\",data[],7,FALSE),\"\")","v":""},null,{"$f":"IFERROR(VLOOKUP(L$15&\",\"&$B50&\",,\"&sel_region_code&\",\",data[],7,FALSE),\"\")","v":""},{"$f":"IFERROR(VLOOKUP(M$15&\",\"&$B50&\",,\"&sel_region_code&\",\",data[],7,FALSE),\"\")","v":""},{"$f":"IFERROR(VLOOKUP(N$15&\",\"&$B50&\",,\"&sel_region_code&\",\",data[],7,FALSE),\"\")","v":""},{"$f":"IFERROR(VLOOKUP(O$15&\",\"&$B50&\",,\"&sel_region_code&\",\",data[],7,FALSE),\"\")","v":""},{"$f":"IFERROR(VLOOKUP(P$15&\",\"&$B50&\",,\"&sel_region_code&\",\",data[],7,FALSE),\"\")","v":""},null,{"$f":"VLOOKUP($B50,process[],5,FALSE)","v":{"$error":"#N/A"}},{"$f":"VLOOKUP($B50,process[],4,FALSE)","v":{"$error":"#N/A"}},{"$f":"IFERROR(VLOOKUP($R50,flow[],3,FALSE),\"\")","v":""},{"$f":"IFERROR(VLOOKUP($S50,flow[],3,FALSE),\"\")","v":""},{"$f":"IFERROR(VLOOKUP(\"CONV,\"&$B50&\",\"&V$15&\",,\",data[],7,FALSE),\"\")","v":""},{"$f":"IFERROR(VLOOKUP(\"CONV,\"&$B50&\",\"&W$15&\",,\",data[],7,FALSE),\"\")","v":""},{"$f":"IFERROR(VLOOKUP(\"CONV,\"&$B50&\",\"&X$15&\",,\",data[],7,FALSE),\"\")","v":""},{"$f":"IFERROR(VLOOKUP(\"CONV,\"&$B50&\",\"&Y$15&\",,\",data[],7,FALSE),\"\")","v":""}]
[null,null,{"$f":"IFERROR(VLOOKUP($B51,process[],3,FALSE),\"\")","v":""},{"$f":"IFERROR(VLOOKUP($B51,process[],2,FALSE),\"\")","v":""},{"$f":"IFERROR(VLOOKUP(C51,process_classes[],2,FALSE),\"\")","v":""},{"$f":"IFERROR(VLOOKUP(F$15&\",\"&$B51&\",,,\",data[],7,FALSE),\"\")","v":""},{"$f":"IFERROR(VLOOKUP(G$15&\",\"&$B51&\",,,\",data[],7,FALSE),\"\")","v":""},{"$f":"IFERROR(VLOOKUP(H$15&\",\"&$B51&\",,,\",data[],7,FALSE),\"\")","v":""},{"$f":"IFERROR(VLOOKUP(I$15&\",\"&$B51&\",,,\",data[],7,FALSE),\"\")","v":""},{"$f":"IFERROR(VLOOKUP(J$15&\",\"&$B51&\",,,\",data[],7,FALSE),\"\")","v":""},null,{"$f":"IFERROR(VLOOKUP(L$15&\",\"&$B51&\",,\"&sel_region_code&\",\",data[],7,FALSE),\"\")","v":""},{"$f":"IFERROR(VLOOKUP(M$15&\",\"&$B51&\",,\"&sel_region_code&\",\",data[],7,FALSE),\"\")","v":""},{"$f":"IFERROR(VLOOKUP(N$15&\",\"&$B51&\",,\"&sel_region_code&\",\",data[],7,FALSE),\"\")","v":""},{"$f":"IFERROR(VLOOKUP(O$15&\",\"&$B51&\",,\"&sel_region_code&\",\",data[],7,FALSE),\"\")","v":""},{"$f":"IFERROR(VLOOKUP(P$15&\",\"&$B51&\",,\"&sel_region_code&\",\",data[],7,FALSE),\"\")","v":""},null,{"$f":"VLOOKUP($B51,process[],5,FALSE)","v":{"$error":"#N/A"}},{"$f":"VLOOKUP($B51,process[],4,FALSE)","v":{"$error":"#N/A"}},{"$f":"IFERROR(VLOOKUP($R51,flow[],3,FALSE),\"\")","v":""},{"$f":"IFERROR(VLOOKUP($S51,flow[],3,FALSE),\"\")","v":""},{"$f":"IFERROR(VLOOKUP(\"CONV,\"&$B51&\",\"&V$15&\",,\",data[],7,FALSE),\"\")","v":""},{"$f":"IFERROR(VLOOKUP(\"CONV,\"&$B51&\",\"&W$15&\",,\",data[],7,FALSE),\"\")","v":""},{"$f":"IFERROR(VLOOKUP(\"CONV,\"&$B51&\",\"&X$15&\",,\",data[],7,FALSE),\"\")","v":""},{"$f":"IFERROR(VLOOKUP(\"CONV,\"&$B51&\",\"&Y$15&\",,\",data[],7,FALSE),\"\")","v":""}]
[null,null,{"$f":"IFERROR(VLOOKUP($B52,process[],3,FALSE),\"\")","v":""},{"$f":"IFERROR(VLOOKUP($B52,process[],2,FALSE),\"\")","v":""},{"$f":"IFERROR(VLOOKUP(C52,process_classes[],2,FALSE),\"\")","v":""},{"$f":"IFERROR(VLOOKUP(F$15&\",\"&$B52&\",,,\",data[],7,FALSE),\"\")","v":""},{"$f":"IFERROR(VLOOKUP(G$15&\",\"&$B52&\",,,\",data[],7,FALSE),\"\")","v":""},{"$f":"IFERROR(VLOOKUP(H$15&\",\"&$B52&\",,,\",data[],7,FALSE),\"\")","v":""},{"$f":"IFERROR(VLOOKUP(I$15&\",\"&$B52&\",,,\",data[],7,FALSE),\"\")","v":""},{"$f":"IFERROR(VLOOKUP(J$15&\",\"&$B52&\",,,\",data[],7,FALSE),\"\")","v":""},null,{"$f":"IFERROR(VLOOKUP(L$15&\",\"&$B52&\",,\"&sel_region_code&\",\",data[],7,FALSE),\"\")","v":""},{"$f":"IFERROR(VLOOKUP(M$15&\",\"&$B52&\",,\"&sel_region_code&\",\",data[],7,FALSE),\"\")","v":""},{"$f":"IFERROR(VLOOKUP(N$15&\",\"&$B52&\",,\"&sel_region_code&\",\",data[],7,FALSE),\"\")","v":""},{"$f":"IFERROR(VLOOKUP(O$15&\",\"&$B52&\",,\"&sel_region_code&\",\",data[],7,FALSE),\"\")","v":""},{"$f":"IFERROR(VLOOKUP(P$15&\",\"&$B52&\",,\"&sel_region_code&\",\",data[],7,FALSE),\"\")","v":""},null,{"$f":"VLOOKUP($B52,process[],5,FALSE)","v":{"$error":"#N/A"}},{"$f":"VLOOKUP($B52,process[],4,FALSE)","v":{"$error":"#N/A"}},{"$f":"IFERROR(VLOOKUP($R52,flow[],3,FALSE),\"\")","v":""},{"$f":"IFERROR(VLOOKUP($S52,flow[],3,FALSE),\"\")","v":""},{"$f":"IFERROR(VLOOKUP(\"CONV,\"&$B52&\",\"&V$15&\",,\",data[],7,FALSE),\"\")","v":""},{"$f":"IFERROR(VLOOKUP(\"CONV,\"&$B52&\",\"&W$15&\",,\",data[],7,FALSE),\"\")","v":""},{"$f":"IFERROR(VLOOKUP(\"CONV,\"&$B52&\",\"&X$15&\",,\",data[],7,FALSE),\"\")","v":""},{"$f":"IFERROR(VLOOKUP(\"CONV,\"&$B52&\",\"&Y$15&\",,\",data[],7,FALSE),\"\")","v":""}]
[null,null,{"$f":"IFERROR(VLOOKUP($B53,process[],3,FALSE),\"\")","v":""},{"$f":"IFERROR(VLOOKUP($B53,process[],2,FALSE),\"\")","v":""},{"$f":"IFERROR(VLOOKUP(C53,process_classes[],2,FALSE),\"\")","v":""},{"$f":"IFERROR(VLOOKUP(F$15&\",\"&$B53&\",,,\",data[],7,FALSE),\"\")","v":""},{"$f":"IFERROR(VLOOKUP(G$15&\",\"&$B53&\",,,\",data[],7,FALSE),\"\")","v":""},{"$f":"IFERROR(VLOOKUP(H$15&\",\"&$B53&\",,,\",data[],7,FALSE),\"\")","v":""},{"$f":"IFERROR(VLOOKUP(I$15&\",\"&$B53&\",,,\",data[],7,FALSE),\"\")","v":""},{"$f":"IFERROR(VLOOKUP(J$15&\",\"&$B53&\",,,\",data[],7,FALSE),\"\")","v":""},null,{"$f":"IFERROR(VLOOKUP(L$15&\",\"&$B53&\",,\"&sel_region_code&\",\",data[],7,FALSE),\"\")","v":""},{"$f":"IFERROR(VLOOKUP(M$15&\",\"&$B53&\",,\"&sel_region_code&\",\",data[],7,FALSE),\"\")","v":""},{"$f":"IFERROR(VLOOKUP(N$15&\",\"&$B53&\",,\"&sel_region_code&\",\",data[],7,FALSE),\"\")","v":""},{"$f":"IFERROR(VLOOKUP(O$15&\",\"&$B53&\",,\"&sel_region_code&\",\",data[],7,FALSE),\"\")","v":""},{"$f":"IFERROR(VLOOKUP(P$15&\",\"&$B53&\",,\"&sel_region_code&\",\",data[],7,FALSE),\"\")","v":""},null,{"$f":"VLOOKUP($B53,process[],5,FALSE)","v":{"$error":"#N/A"}},{"$f":"VLOOKUP($B53,process[],4,FALSE)","v":{"$error":"#N/A"}},{"$f":"IFERROR(VLOOKUP($R53,flow[],3,FALSE),\"\")","v":""},{"$f":"IFERROR(VLOOKUP($S53,flow[],3,FALSE),\"\")","v":""},{"$f":"IFERROR(VLOOKUP(\"CONV,\"&$B53&\",\"&V$15&\",,\",data[],7,FALSE),\"\")","v":""},{"$f":"IFERROR(VLOOKUP(\"CONV,\"&$B53&\",\"&W$15&\",,\",data[],7,FALSE),\"\")","v":""},{"$f":"IFERROR(VLOOKUP(\"CONV,\"&$B53&\",\"&X$15&\",,\",data[],7,FALSE),\"\")","v":""},{"$f":"IFERROR(VLOOKUP(\"CONV,\"&$B53&\",\"&Y$15&\",,\",data[],7,FALSE),\"\")","v":""}]
[null,null,{"$f":"IFERROR(VLOOKUP($B54,process[],3,FALSE),\"\")","v":""},{"$f":"IFERROR(VLOOKUP($B54,process[],2,FALSE),\"\")","v":""},{"$f":"IFERROR(VLOOKUP(C54,process_classes[],2,FALSE),\"\")","v":""},{"$f":"IFERROR(VLOOKUP(F$15&\",\"&$B54&\",,,\",data[],7,FALSE),\"\")","v":""},{"$f":"IFERROR(VLOOKUP(G$15&\",\"&$B54&\",,,\",data[],7,FALSE),\"\")","v":""},{"$f":"IFERROR(VLOOKUP(H$15&\",\"&$B54&\",,,\",data[],7,FALSE),\"\")","v":""},{"$f":"IFERROR(VLOOKUP(I$15&\",\"&$B54&\",,,\",data[],7,FALSE),\"\")","v":""},{"$f":"IFERROR(VLOOKUP(J$15&\",\"&$B54&\",,,\",data[],7,FALSE),\"\")","v":""},null,{"$f":"IFERROR(VLOOKUP(L$15&\",\"&$B54&\",,\"&sel_region_code&\",\",data[],7,FALSE),\"\")","v":""},{"$f":"IFERROR(VLOOKUP(M$15&\",\"&$B54&\",,\"&sel_region_code&\",\",data[],7,FALSE),\"\")","v":""},{"$f":"IFERROR(VLOOKUP(N$15&\",\"&$B54&\",,\"&sel_region_code&\",\",data[],7,FALSE),\"\")","v":""},{"$f":"IFERROR(VLOOKUP(O$15&\",\"&$B54&\",,\"&sel_region_code&\",\",data[],7,FALSE),\"\")","v":""},{"$f":"IFERROR(VLOOKUP(P$15&\",\"&$B54&\",,\"&sel_region_code&\",\",data[],7,FALSE),\"\")","v":""},null,{"$f":"VLOOKUP($B54,process[],5,FALSE)","v":{"$error":"#N/A"}},{"$f":"VLOOKUP($B54,process[],4,FALSE)","v":{"$error":"#N/A"}},{"$f":"IFERROR(VLOOKUP($R54,flow[],3,FALSE),\"\")","v":""},{"$f":"IFERROR(VLOOKUP($S54,flow[],3,FALSE),\"\")","v":""},{"$f":"IFERROR(VLOOKUP(\"CONV,\"&$B54&\",\"&V$15&\",,\",data[],7,FALSE),\"\")","v":""},{"$f":"IFERROR(VLOOKUP(\"CONV,\"&$B54&\",\"&W$15&\",,\",data[],7,FALSE),\"\")","v":""},{"$f":"IFERROR(VLOOKUP(\"CONV,\"&$B54&\",\"&X$15&\",,\",data[],7,FALSE),\"\")","v":""},{"$f":"IFERROR(VLOOKUP(\"CONV,\"&$B54&\",\"&Y$15&\",,\",data[],7,FALSE),\"\")","v":""}]
[null,null,{"$f":"IFERROR(VLOOKUP($B55,process[],3,FALSE),\"\")","v":""},{"$f":"IFERROR(VLOOKUP($B55,process[],2,FALSE),\"\")","v":""},{"$f":"IFERROR(VLOOKUP(C55,process_classes[],2,FALSE),\"\")","v":""},{"$f":"IFERROR(VLOOKUP(F$15&\",\"&$B55&\",,,\",data[],7,FALSE),\"\")","v":""},{"$f":"IFERROR(VLOOKUP(G$15&\",\"&$B55&\",,,\",data[],7,FALSE),\"\")","v":""},{"$f":"IFERROR(VLOOKUP(H$15&\",\"&$B55&\",,,\",data[],7,FALSE),\"\")","v":""},{"$f":"IFERROR(VLOOKUP(I$15&\",\"&$B55&\",,,\",data[],7,FALSE),\"\")","v":""},{"$f":"IFERROR(VLOOKUP(J$15&\",\"&$B55&\",,,\",data[],7,FALSE),\"\")","v":""},null,{"$f":"IFERROR(VLOOKUP(L$15&\",\"&$B55&\",,\"&sel_region_code&\",\",data[],7,FALSE),\"\")","v":""},{"$f":"IFERROR(VLOOKUP(M$15&\",\"&$B55&\",,\"&sel_region_code&\",\",data[],7,FALSE),\"\")","v":""},{"$f":"IFERROR(VLOOKUP(N$15&\",\"&$B55&\",,\"&sel_region_code&\",\",data[],7,FALSE),\"\")","v":""},{"$f":"IFERROR(VLOOKUP(O$15&\",\"&$B55&\",,\"&sel_region_code&\",\",data[],7,FALSE),\"\")","v":""},{"$f":"IFERROR(VLOOKUP(P$15&\",\"&$B55&\",,\"&sel_region_code&\",\",data[],7,FALSE),\"\")","v":""},null,{"$f":"VLOOKUP($B55,process[],5,FALSE)","v":{"$error":"#N/A"}},{"$f":"VLOOKUP($B55,process[],4,FALSE)","v":{"$error":"#N/A"}},{"$f":"IFERROR(VLOOKUP($R55,flow[],3,FALSE),\"\")","v":""},{"$f":"IFERROR(VLOOKUP($S55,flow[],3,FALSE),\"\")","v":""},{"$f":"IFERROR(VLOOKUP(\"CONV,\"&$B55&\",\"&V$15&\",,\",data[],7,FALSE),\"\")","v":""},{"$f":"IFERROR(VLOOKUP(\"CONV,\"&$B55&\",\"&W$15&\",,\",data[],7,FALSE),\"\")","v":""},{"$f":"IFERROR(VLOOKUP(\"CONV,\"&$B55&\",\"&X$15&\",,\",data[],7,FALSE),\"\")","v":""},{"$f":"IFERROR(VLOOKUP(\"CONV,\"&$B55&\",\"&Y$15&\",,\",data[],7,FALSE),\"\")","v":""}]
[null,null,{"$f":"IFERROR(VLOOKUP($B56,process[],3,FALSE),\"\")","v":""},{"$f":"IFERROR(VLOOKUP($B56,process[],2,FALSE),\"\")","v":""},{"$f":"IFERROR(VLOOKUP(C56,process_classes[],2,FALSE),\"\")","v":""},{"$f":"IFERROR(VLOOKUP(F$15&\",\"&$B56&\",,,\",data[],7,FALSE),\"\")","v":""},{"$f":"IFERROR(VLOOKUP(G$15&\",\"&$B56&\",,,\",data[],7,FALSE),\"\")","v":""},{"$f":"IFERROR(VLOOKUP(H$15&\",\"&$B56&\",,,\",data[],7,FALSE),\"\")","v":""},{"$f":"IFERROR(VLOOKUP(I$15&\",\"&$B56&\",,,\",data[],7,FALSE),\"\")","v":""},{"$f":"IFERROR(VLOOKUP(J$15&\",\"&$B56&\",,,\",data[],7,FALSE),\"\")","v":""},null,{"$f":"IFERROR(VLOOKUP(L$15&\",\"&$B56&\",,\"&sel_region_code&\",\",data[],7,FALSE),\"\")","v":""},{"$f":"IFERROR(VLOOKUP(M$15&\",\"&$B56&\",,\"&sel_region_code&\",\",data[],7,FALSE),\"\")","v":""},{"$f":"IFERROR(VLOOKUP(N$15&\",\"&$B56&\",,\"&sel_region_code&\",\",data[],7,FALSE),\"\")","v":""},{"$f":"IFERROR(VLOOKUP(O$15&\",\"&$B56&\",,\"&sel_region_code&\",\",data[],7,FALSE),\"\")","v":""},{"$f":"IFERROR(VLOOKUP(P$15&\",\"&$B56&\",,\"&sel_region_code&\",\",data[],7,FALSE),\"\")","v":""},null,{"$f":"VLOOKUP($B56,process[],5,FALSE)","v":{"$error":"#N/A"}},{"$f":"VLOOKUP($B56,process[],4,FALSE)","v":{"$error":"#N/A"}},{"$f":"IFERROR(VLOOKUP($R56,flow[],3,FALSE),\"\")","v":""},{"$f":"IFERROR(VLOOKUP($S56,flow[],3,FALSE),\"\")","v":""},{"$f":"IFERROR(VLOOKUP(\"CONV,\"&$B56&\",\"&V$15&\",,\",data[],7,FALSE),\"\")","v":""},{"$f":"IFERROR(VLOOKUP(\"CONV,\"&$B56&\",\"&W$15&\",,\",data[],7,FALSE),\"\")","v":""},{"$f":"IFERROR(VLOOKUP(\"CONV,\"&$B56&\",\"&X$15&\",,\",data[],7,FALSE),\"\")","v":""},{"$f":"IFERROR(VLOOKUP(\"CONV,\"&$B56&\",\"&Y$15&\",,\",data[],7,FALSE),\"\")","v":""}]
[null,null,{"$f":"IFERROR(VLOOKUP($B57,process[],3,FALSE),\"\")","v":""},{"$f":"IFERROR(VLOOKUP($B57,process[],2,FALSE),\"\")","v":""},{"$f":"IFERROR(VLOOKUP(C57,process_classes[],2,FALSE),\"\")","v":""},{"$f":"IFERROR(VLOOKUP(F$15&\",\"&$B57&\",,,\",data[],7,FALSE),\"\")","v":""},{"$f":"IFERROR(VLOOKUP(G$15&\",\"&$B57&\",,,\",data[],7,FALSE),\"\")","v":""},{"$f":"IFERROR(VLOOKUP(H$15&\",\"&$B57&\",,,\",data[],7,FALSE),\"\")","v":""},{"$f":"IFERROR(VLOOKUP(I$15&\",\"&$B57&\",,,\",data[],7,FALSE),\"\")","v":""},{"$f":"IFERROR(VLOOKUP(J$15&\",\"&$B57&\",,,\",data[],7,FALSE),\"\")","v":""},null,{"$f":"IFERROR(VLOOKUP(L$15&\",\"&$B57&\",,\"&sel_region_code&\",\",data[],7,FALSE),\"\")","v":""},{"$f":"IFERROR(VLOOKUP(M$15&\",\"&$B57&\",,\"&sel_region_code&\",\",data[],7,FALSE),\"\")","v":""},{"$f":"IFERROR(VLOOKUP(N$15&\",\"&$B57&\",,\"&sel_region_code&\",\",data[],7,FALSE),\"\")","v":""},{"$f":"IFERROR(VLOOKUP(O$15&\",\"&$B57&\",,\"&sel_region_code&\",\",data[],7,FALSE),\"\")","v":""},{"$f":"IFERROR(VLOOKUP(P$15&\",\"&$B57&\",,\"&sel_region_code&\",\",data[],7,FALSE),\"\")","v":""},null,{"$f":"VLOOKUP($B57,process[],5,FALSE)","v":{"$error":"#N/A"}},{"$f":"VLOOKUP($B57,process[],4,FALSE)","v":{"$error":"#N/A"}},{"$f":"IFERROR(VLOOKUP($R57,flow[],3,FALSE),\"\")","v":""},{"$f":"IFERROR(VLOOKUP($S57,flow[],3,FALSE),\"\")","v":""},{"$f":"IFERROR(VLOOKUP(\"CONV,\"&$B57&\",\"&V$15&\",,\",data[],7,FALSE),\"\")","v":""},{"$f":"IFERROR(VLOOKUP(\"CONV,\"&$B57&\",\"&W$15&\",,\",data[],7,FALSE),\"\")","v":""},{"$f":"IFERROR(VLOOKUP(\"CONV,\"&$B57&\",\"&X$15&\",,\",data[],7,FALSE),\"\")","v":""},{"$f":"IFERROR(VLOOKUP(\"CONV,\"&$B57&\",\"&Y$15&\",,\",data[],7,FALSE),\"\")","v":""}]
[null,null,{"$f":"IFERROR(VLOOKUP($B58,process[],3,FALSE),\"\")","v":""},{"$f":"IFERROR(VLOOKUP($B58,process[],2,FALSE),\"\")","v":""},{"$f":"IFERROR(VLOOKUP(C58,process_classes[],2,FALSE),\"\")","v":""},{"$f":"IFERROR(VLOOKUP(F$15&\",\"&$B58&\",,,\",data[],7,FALSE),\"\")","v":""},{"$f":"IFERROR(VLOOKUP(G$15&\",\"&$B58&\",,,\",data[],7,FALSE),\"\")","v":""},{"$f":"IFERROR(VLOOKUP(H$15&\",\"&$B58&\",,,\",data[],7,FALSE),\"\")","v":""},{"$f":"IFERROR(VLOOKUP(I$15&\",\"&$B58&\",,,\",data[],7,FALSE),\"\")","v":""},{"$f":"IFERROR(VLOOKUP(J$15&\",\"&$B58&\",,,\",data[],7,FALSE),\"\")","v":""},null,{"$f":"IFERROR(VLOOKUP(L$15&\",\"&$B58&\",,\"&sel_region_code&\",\",data[],7,FALSE),\"\")","v":""},{"$f":"IFERROR(VLOOKUP(M$15&\",\"&$B58&\",,\"&sel_region_code&\",\",data[],7,FALSE),\"\")","v":""},{"$f":"IFERROR(VLOOKUP(N$15&\",\"&$B58&\",,\"&sel_region_code&\",\",data[],7,FALSE),\"\")","v":""},{"$f":"IFERROR(VLOOKUP(O$15&\",\"&$B58&\",,\"&sel_region_code&\",\",data[],7,FALSE),\"\")","v":""},{"$f":"IFERROR(VLOOKUP(P$15&\",\"&$B58&\",,\"&sel_region_code&\",\",data[],7,FALSE),\"\")","v":""},null,{"$f":"VLOOKUP($B58,process[],5,FALSE)","v":{"$error":"#N/A"}},{"$f":"VLOOKUP($B58,process[],4,FALSE)","v":{"$error":"#N/A"}},{"$f":"IFERROR(VLOOKUP($R58,flow[],3,FALSE),\"\")","v":""},{"$f":"IFERROR(VLOOKUP($S58,flow[],3,FALSE),\"\")","v":""},{"$f":"IFERROR(VLOOKUP(\"CONV,\"&$B58&\",\"&V$15&\",,\",data[],7,FALSE),\"\")","v":""},{"$f":"IFERROR(VLOOKUP(\"CONV,\"&$B58&\",\"&W$15&\",,\",data[],7,FALSE),\"\")","v":""},{"$f":"IFERROR(VLOOKUP(\"CONV,\"&$B58&\",\"&X$15&\",,\",data[],7,FALSE),\"\")","v":""},{"$f":"IFERROR(VLOOKUP(\"CONV,\"&$B58&\",\"&Y$15&\",,\",data[],7,FALSE),\"\")","v":""}]
[null,null,{"$f":"IFERROR(VLOOKUP($B59,process[],3,FALSE),\"\")","v":""},{"$f":"IFERROR(VLOOKUP($B59,process[],2,FALSE),\"\")","v":""},{"$f":"IFERROR(VLOOKUP(C59,process_classes[],2,FALSE),\"\")","v":""},{"$f":"IFERROR(VLOOKUP(F$15&\",\"&$B59&\",,,\",data[],7,FALSE),\"\")","v":""},{"$f":"IFERROR(VLOOKUP(G$15&\",\"&$B59&\",,,\",data[],7,FALSE),\"\")","v":""},{"$f":"IFERROR(VLOOKUP(H$15&\",\"&$B59&\",,,\",data[],7,FALSE),\"\")","v":""},{"$f":"IFERROR(VLOOKUP(I$15&\",\"&$B59&\",,,\",data[],7,FALSE),\"\")","v":""},{"$f":"IFERROR(VLOOKUP(J$15&\",\"&$B59&\",,,\",data[],7,FALSE),\"\")","v":""},null,{"$f":"IFERROR(VLOOKUP(L$15&\",\"&$B59&\",,\"&sel_region_code&\",\",data[],7,FALSE),\"\")","v":""},{"$f":"IFERROR(VLOOKUP(M$15&\",\"&$B59&\",,\"&sel_region_code&\",\",data[],7,FALSE),\"\")","v":""},{"$f":"IFERROR(VLOOKUP(N$15&\",\"&$B59&\",,\"&sel_region_code&\",\",data[],7,FALSE),\"\")","v":""},{"$f":"IFERROR(VLOOKUP(O$15&\",\"&$B59&\",,\"&sel_region_code&\",\",data[],7,FALSE),\"\")","v":""},{"$f":"IFERROR(VLOOKUP(P$15&\",\"&$B59&\",,\"&sel_region_code&\",\",data[],7,FALSE),\"\")","v":""},null,{"$f":"VLOOKUP($B59,process[],5,FALSE)","v":{"$error":"#N/A"}},{"$f":"VLOOKUP($B59,process[],4,FALSE)","v":{"$error":"#N/A"}},{"$f":"IFERROR(VLOOKUP($R59,flow[],3,FALSE),\"\")","v":""},{"$f":"IFERROR(VLOOKUP($S59,flow[],3,FALSE),\"\")","v":""},{"$f":"IFERROR(VLOOKUP(\"CONV,\"&$B59&\",\"&V$15&\",,\",data[],7,FALSE),\"\")","v":""},{"$f":"IFERROR(VLOOKUP(\"CONV,\"&$B59&\",\"&W$15&\",,\",data[],7,FALSE),\"\")","v":""},{"$f":"IFERROR(VLOOKUP(\"CONV,\"&$B59&\",\"&X$15&\",,\",data[],7,FALSE),\"\")","v":""},{"$f":"IFERROR(VLOOKUP(\"CONV,\"&$B59&\",\"&Y$15&\",,\",data[],7,FALSE),\"\")","v":""}]
[null,null,{"$f":"IFERROR(VLOOKUP($B60,process[],3,FALSE),\"\")","v":""},{"$f":"IFERROR(VLOOKUP($B60,process[],2,FALSE),\"\")","v":""},{"$f":"IFERROR(VLOOKUP(C60,process_classes[],2,FALSE),\"\")","v":""},{"$f":"IFERROR(VLOOKUP(F$15&\",\"&$B60&\",,,\",data[],7,FALSE),\"\")","v":""},{"$f":"IFERROR(VLOOKUP(G$15&\",\"&$B60&\",,,\",data[],7,FALSE),\"\")","v":""},{"$f":"IFERROR(VLOOKUP(H$15&\",\"&$B60&\",,,\",data[],7,FALSE),\"\")","v":""},{"$f":"IFERROR(VLOOKUP(I$15&\",\"&$B60&\",,,\",data[],7,FALSE),\"\")","v":""},{"$f":"IFERROR(VLOOKUP(J$15&\",\"&$B60&\",,,\",data[],7,FALSE),\"\")","v":""},null,{"$f":"IFERROR(VLOOKUP(L$15&\",\"&$B60&\",,\"&sel_region_code&\",\",data[],7,FALSE),\"\")","v":""},{"$f":"IFERROR(VLOOKUP(M$15&\",\"&$B60&\",,\"&sel_region_code&\",\",data[],7,FALSE),\"\")","v":""},{"$f":"IFERROR(VLOOKUP(N$15&\",\"&$B60&\",,\"&sel_region_code&\",\",data[],7,FALSE),\"\")","v":""},{"$f":"IFERROR(VLOOKUP(O$15&\",\"&$B60&\",,\"&sel_region_code&\",\",data[],7,FALSE),\"\")","v":""},{"$f":"IFERROR(VLOOKUP(P$15&\",\"&$B60&\",,\"&sel_region_code&\",\",data[],7,FALSE),\"\")","v":""},null,{"$f":"VLOOKUP($B60,process[],5,FALSE)","v":{"$error":"#N/A"}},{"$f":"VLOOKUP($B60,process[],4,FALSE)","v":{"$error":"#N/A"}},{"$f":"IFERROR(VLOOKUP($R60,flow[],3,FALSE),\"\")","v":""},{"$f":"IFERROR(VLOOKUP($S60,flow[],3,FALSE),\"\")","v":""},{"$f":"IFERROR(VLOOKUP(\"CONV,\"&$B60&\",\"&V$15&\",,\",data[],7,FALSE),\"\")","v":""},{"$f":"IFERROR(VLOOKUP(\"CONV,\"&$B60&\",\"&W$15&\",,\",data[],7,FALSE),\"\")","v":""},{"$f":"IFERROR(VLOOKUP(\"CONV,\"&$B60&\",\"&X$15&\",,\",data[],7,FALSE),\"\")","v":""},{"$f":"IFERROR(VLOOKUP(\"CONV,\"&$B60&\",\"&Y$15&\",,\",data[],7,FALSE),\"\")","v":""}]
[null,null,{"$f":"IFERROR(VLOOKUP($B61,process[],3,FALSE),\"\")","v":""},{"$f":"IFERROR(VLOOKUP($B61,process[],2,FALSE),\"\")","v":""},{"$f":"IFERROR(VLOOKUP(C61,process_classes[],2,FALSE),\"\")","v":""},{"$f":"IFERROR(VLOOKUP(F$15&\",\"&$B61&\",,,\",data[],7,FALSE),\"\")","v":""},{"$f":"IFERROR(VLOOKUP(G$15&\",\"&$B61&\",,,\",data[],7,FALSE),\"\")","v":""},{"$f":"IFERROR(VLOOKUP(H$15&\",\"&$B61&\",,,\",data[],7,FALSE),\"\")","v":""},{"$f":"IFERROR(VLOOKUP(I$15&\",\"&$B61&\",,,\",data[],7,FALSE),\"\")","v":""},{"$f":"IFERROR(VLOOKUP(J$15&\",\"&$B61&\",,,\",data[],7,FALSE),\"\")","v":""},null,{"$f":"IFERROR(VLOOKUP(L$15&\",\"&$B61&\",,\"&sel_region_code&\",\",data[],7,FALSE),\"\")","v":""},{"$f":"IFERROR(VLOOKUP(M$15&\",\"&$B61&\",,\"&sel_region_code&\",\",data[],7,FALSE),\"\")","v":""},{"$f":"IFERROR(VLOOKUP(N$15&\",\"&$B61&\",,\"&sel_region_code&\",\",data[],7,FALSE),\"\")","v":""},{"$f":"IFERROR(VLOOKUP(O$15&\",\"&$B61&\",,\"&sel_region_code&\",\",data[],7,FALSE),\"\")","v":""},{"$f":"IFERROR(VLOOKUP(P$15&\",\"&$B61&\",,\"&sel_region_code&\",\",data[],7,FALSE),\"\")","v":""},null,{"$f":"VLOOKUP($B61,process[],5,FALSE)","v":{"$error":"#N/A"}},{"$f":"VLOOKUP($B61,process[],4,FALSE)","v":{"$error":"#N/A"}},{"$f":"IFERROR(VLOOKUP($R61,flow[],3,FALSE),\"\")","v":""},{"$f":"IFERROR(VLOOKUP($S61,flow[],3,FALSE),\"\")","v":""},{"$f":"IFERROR(VLOOKUP(\"CONV,\"&$B61&\",\"&V$15&\",,\",data[],7,FALSE),\"\")","v":""},{"$f":"IFERROR(VLOOKUP(\"CONV,\"&$B61&\",\"&W$15&\",,\",data[],7,FALSE),\"\")","v":""},{"$f":"IFERROR(VLOOKUP(\"CONV,\"&$B61&\",\"&X$15&\",,\",data[],7,FALSE),\"\")","v":""},{"$f":"IFERROR(VLOOKUP(\"CONV,\"&$B61&\",\"&Y$15&\",,\",data[],7,FALSE),\"\")","v":""}]
[null,null,{"$f":"IFERROR(VLOOKUP($B62,process[],3,FALSE),\"\")","v":""},{"$f":"IFERROR(VLOOKUP($B62,process[],2,FALSE),\"\")","v":""},{"$f":"IFERROR(VLOOKUP(C62,process_classes[],2,FALSE),\"\")","v":""},{"$f":"IFERROR(VLOOKUP(F$15&\",\"&$B62&\",,,\",data[],7,FALSE),\"\")","v":""},{"$f":"IFERROR(VLOOKUP(G$15&\",\"&$B62&\",,,\",data[],7,FALSE),\"\")","v":""},{"$f":"IFERROR(VLOOKUP(H$15&\",\"&$B62&\",,,\",data[],7,FALSE),\"\")","v":""},{"$f":"IFERROR(VLOOKUP(I$15&\",\"&$B62&\",,,\",data[],7,FALSE),\"\")","v":""},{"$f":"IFERROR(VLOOKUP(J$15&\",\"&$B62&\",,,\",data[],7,FALSE),\"\")","v":""},null,{"$f":"IFERROR(VLOOKUP(L$15&\",\"&$B62&\",,\"&sel_region_code&\",\",data[],7,FALSE),\"\")","v":""},{"$f":"IFERROR(VLOOKUP(M$15&\",\"&$B62&\",,\"&sel_region_code&\",\",data[],7,FALSE),\"\")","v":""},{"$f":"IFERROR(VLOOKUP(N$15&\",\"&$B62&\",,\"&sel_region_code&\",\",data[],7,FALSE),\"\")","v":""},{"$f":"IFERROR(VLOOKUP(O$15&\",\"&$B62&\",,\"&sel_region_code&\",\",data[],7,FALSE),\"\")","v":""},{"$f":"IFERROR(VLOOKUP(P$15&\",\"&$B62&\",,\"&sel_region_code&\",\",data[],7,FALSE),\"\")","v":""},null,{"$f":"VLOOKUP($B62,process[],5,FALSE)","v":{"$error":"#N/A"}},{"$f":"VLOOKUP($B62,process[],4,FALSE)","v":{"$error":"#N/A"}},{"$f":"IFERROR(VLOOKUP($R62,flow[],3,FALSE),\"\")","v":""},{"$f":"IFERROR(VLOOKUP($S62,flow[],3,FALSE),\"\")","v":""},{"$f":"IFERROR(VLOOKUP(\"CONV,\"&$B62&\",\"&V$15&\",,\",data[],7,FALSE),\"\")","v":""},{"$f":"IFERROR(VLOOKUP(\"CONV,\"&$B62&\",\"&W$15&\",,\",data[],7,FALSE),\"\")","v":""},{"$f":"IFERROR(VLOOKUP(\"CONV,\"&$B62&\",\"&X$15&\",,\",data[],7,FALSE),\"\")","v":""},{"$f":"IFERROR(VLOOKUP(\"CONV,\"&$B62&\",\"&Y$15&\",,\",data[],7,FALSE),\"\")","v":""}]
[]
[]
[]
[]
[]
[null,null,null,null,"DRI","PROC","Direct iron reduction"]

{"sheet":"e_view_data_transport","index":35,"n_rows":47,"n_cols":10,"rows_kept":47,"cut":false,"hidden":true,"merged":[[1,8,1,9],[2,8,2,9],[4,2,9,6]]}
[]
[null,null,"TRANSPORT DATA",null,null,null,null,null,"YOUR SETTINGS"]
[null,null,null,null,null,null,null,null,"can be re-adjusted on the dashboard"]
[null,null,"View and compare input data for ship and pipeline processes",null,null,null,null,null,"Supply country:",{"$f":"sel_region_name","v":"Morocco"}]
[null,null,"Here you can examine input data for transportation processes (ship and pipeline).\nPlease note:\n- Only hydrogen and methane can be transported by pipeline\n- By default (for all countries other than the selected supply country) the tool chooses pipeline as the transport option if a pipeline connection exists.\n- In case pipeline is chosen, the tool automatically uses values for retrofitted pipeline, if a pipeline connection already exists. If no connection exists values represent cost for a new pipeline.",null,null,null,null,null,"Demand country:",{"$f":"sel_country_name","v":"Germany"}]
[null,null,null,null,null,null,null,null,"RE generation:",{"$f":"sel_res_gen_name","v":"Wind-PV-Hybrid"}]
[null,null,null,null,null,null,null,null,"Process chain:",{"$f":"sel_chain","v":"Hydrogen (AEL)"}]
[null,null,null,null,null,null,null,null,"CO2 source:",{"$f":"sel_secproc_co2","v":"DAC"}]
[null,null,null,null,null,null,null,null,"Water source:",{"$f":"sel_secproc_water","v":"Water desalination"}]
[null,null,null,null,null,null,null,null,"Transport mode:",{"$f":"sel_transport","v":"Ship"}]
[null,null,null,null,null,null,null,null,"Scenario:",{"$f":"sel_scenario","v":"2030 (medium)"}]
[]
[null,null,null,"LOSS-T","OPEX-T","LIFETIME","CAPEX-T"]
[null,null,null,"Losses (own fuel, transport)","Levelized costs","Lifetime / amortization period","Bunker fuel consumption"]
[null,"Process code","Process name","fraction per 1000km","USD/kWh per 1000km","Years","kWh / kWh per 1000km"]
[null,"CH4-P-L",{"$f":"IFERROR(VLOOKUP($B16,process[],2,FALSE),\"\")","v":"Methane land pipeline new"},{"$f":"IFERROR(VLOOKUP(D$13&\",\"&$B16&\",,,\",data[],7,FALSE)*1000,\"\")","v":5.6666666666666671E-3},{"$f":"IFERROR(VLOOKUP(E$13&\",\"&$B16&\",,,\",data[],7,FALSE)*1000,\"\")","v":2.7651437055456482E-3},{"$f":"IFERROR(VLOOKUP(F$13&\",\"&$B16&\",,,\",data[],7,FALSE),\"\")","v":40},{"$f":"IFERROR(VLOOKUP(\"CONV,\"&$B16&\",BFUEL-L,,\",data[],7,FALSE)*1000,\"\")","v":""}]
[null,"CH4-P-LR",{"$f":"IFERROR(VLOOKUP($B17,process[],2,FALSE),\"\")","v":"Methane land pipeline retrofitted"},{"$f":"IFERROR(VLOOKUP(D$13&\",\"&$B17&\",,,\",data[],7,FALSE)*1000,\"\")","v":5.6666666666666671E-3},{"$f":"IFERROR(VLOOKUP(E$13&\",\"&$B17&\",,,\",data[],7,FALSE)*1000,\"\")","v":8.6243812350131734E-4},{"$f":"IFERROR(VLOOKUP(F$13&\",\"&$B17&\",,,\",data[],7,FALSE),\"\")","v":40},{"$f":"IFERROR(VLOOKUP(\"CONV,\"&$B17&\",BFUEL-L,,\",data[],7,FALSE)*1000,\"\")","v":""}]
[null,"CH4-P-S",{"$f":"IFERROR(VLOOKUP($B18,process[],2,FALSE),\"\")","v":"Methane sea pipeline"},{"$f":"IFERROR(VLOOKUP(D$13&\",\"&$B18&\",,,\",data[],7,FALSE)*1000,\"\")","v":5.6666666666666671E-3},{"$f":"IFERROR(VLOOKUP(E$13&\",\"&$B18&\",,,\",data[],7,FALSE)*1000,\"\")","v":3.3181724466547807E-3},{"$f":"IFERROR(VLOOKUP(F$13&\",\"&$B18&\",,,\",data[],7,FALSE),\"\")","v":40},{"$f":"IFERROR(VLOOKUP(\"CONV,\"&$B18&\",BFUEL-L,,\",data[],7,FALSE)*1000,\"\")","v":""}]
[null,"CH4-P-SR",{"$f":"IFERROR(VLOOKUP($B19,process[],2,FALSE),\"\")","v":"Methane sea pipeline retrofitted"},{"$f":"IFERROR(VLOOKUP(D$13&\",\"&$B19&\",,,\",data[],7,FALSE)*1000,\"\")","v":5.6666666666666671E-3},{"$f":"IFERROR(VLOOKUP(E$13&\",\"&$B19&\",,,\",data[],7,FALSE)*1000,\"\")","v":8.6243812350131734E-4},{"$f":"IFERROR(VLOOKUP(F$13&\",\"&$B19&\",,,\",data[],7,FALSE),\"\")","v":40},{"$f":"IFERROR(VLOOKUP(\"CONV,\"&$B19&\",BFUEL-L,,\",data[],7,FALSE)*1000,\"\")","v":""}]
[null,"H2-P-L",{"$f":"IFERROR(VLOOKUP($B20,process[],2,FALSE),\"\")","v":"Hydrogen land pipeline new"},{"$f":"IFERROR(VLOOKUP(D$13&\",\"&$B20&\",,,\",data[],7,FALSE)*1000,\"\")","v":1.6866666666666665E-2},{"$f":"IFERROR(VLOOKUP(E$13&\",\"&$B20&\",,,\",data[],7,FALSE)*1000,\"\")","v":8.8738982865209891E-3},{"$f":"IFERROR(VLOOKUP(F$13&\",\"&$B20&\",,,\",data[],7,FALSE),\"\")","v":30},{"$f":"IFERROR(VLOOKUP(\"CONV,\"&$B20&\",BFUEL-L,,\",data[],7,FALSE)*1000,\"\")","v":""}]
[null,"H2-P-LR",{"$f":"IFERROR(VLOOKUP($B21,process[],2,FALSE),\"\")","v":"Hydrogen land pipeline retrofitted"},{"$f":"IFERROR(VLOOKUP(D$13&\",\"&$B21&\",,,\",data[],7,FALSE)*1000,\"\")","v":1.6866666666666665E-2},{"$f":"IFERROR(VLOOKUP(E$13&\",\"&$B21&\",,,\",data[],7,FALSE)*1000,\"\")","v":3.0424794125214817E-3},{"$f":"IFERROR(VLOOKUP(F$13&\",\"&$B21&\",,,\",data[],7,FALSE),\"\")","v":30},{"$f":"IFERROR(VLOOKUP(\"CONV,\"&$B21&\",BFUEL-L,,\",data[],7,FALSE)*1000,\"\")","v":""}]
[null,"H2-P-S",{"$f":"IFERROR(VLOOKUP($B22,process[],2,FALSE),\"\")","v":"Hydrogen sea pipeline"},{"$f":"IFERROR(VLOOKUP(D$13&\",\"&$B22&\",,,\",data[],7,FALSE)*1000,\"\")","v":1.6866666666666665E-2},{"$f":"IFERROR(VLOOKUP(E$13&\",\"&$B22&\",,,\",data[],7,FALSE)*1000,\"\")","v":1.5212397062607411E-2},{"$f":"IFERROR(VLOOKUP(F$13&\",\"&$B22&\",,,\",data[],7,FALSE),\"\")","v":30},{"$f":"IFERROR(VLOOKUP(\"CONV,\"&$B22&\",BFUEL-L,,\",data[],7,FALSE)*1000,\"\")","v":""}]
[null,"H2-P-SR",{"$f":"IFERROR(VLOOKUP($B23,process[],2,FALSE),\"\")","v":"Hydrogen sea pipeline retrofitted"},{"$f":"IFERROR(VLOOKUP(D$13&\",\"&$B23&\",,,\",data[],7,FALSE)*1000,\"\")","v":1.6866666666666665E-2},{"$f":"IFERROR(VLOOKUP(E$13&\",\"&$B23&\",,,\",data[],7,FALSE)*1000,\"\")","v":3.8030992656518528E-3},{"$f":"IFERROR(VLOOKUP(F$13&\",\"&$B23&\",,,\",data[],7,FALSE),\"\")","v":30},{"$f":"IFERROR(VLOOKUP(\"CONV,\"&$B23&\",BFUEL-L,,\",data[],7,FALSE)*1000,\"\")","v":""}]
[null,"CH3OH-S",{"$f":"IFERROR(VLOOKUP($B24,process[],2,FALSE),\"\")","v":"Methanol ship (own fuel consumption)"},{"$f":"IFERROR(VLOOKUP(D$13&\",\"&$B24&\",,,\",data[],7,FALSE)*1000,\"\")","v":3.0509883673175363E-3},{"$f":"IFERROR(VLOOKUP(E$13&\",\"&$B24&\",,,\",data[],7,FALSE)*1000,\"\")","v":1.0848168982211098E-4},{"$f":"IFERROR(VLOOKUP(F$13&\",\"&$B24&\",,,\",data[],7,FALSE),\"\")","v":30},{"$f":"IFERROR(VLOOKUP(\"CONV,\"&$B24&\",BFUEL-L,,\",data[],7,FALSE)*1000,\"\")","v":""}]
[null,"CH3OH-SB",{"$f":"IFERROR(VLOOKUP($B25,process[],2,FALSE),\"\")","v":"Methanol ship (bunker fuel consumption)"},{"$f":"IFERROR(VLOOKUP(D$13&\",\"&$B25&\",,,\",data[],7,FALSE)*1000,\"\")","v":4.7996160307175431E-4},{"$f":"IFERROR(VLOOKUP(E$13&\",\"&$B25&\",,,\",data[],7,FALSE)*1000,\"\")","v":1.0848168982211098E-4},{"$f":"IFERROR(VLOOKUP(F$13&\",\"&$B25&\",,,\",data[],7,FALSE),\"\")","v":30},{"$f":"IFERROR(VLOOKUP(\"CONV,\"&$B25&\",BFUEL-L,,\",data[],7,FALSE)*1000,\"\")","v":3.0509883673175368E-3}]
[null,"CH4-S",{"$f":"IFERROR(VLOOKUP($B26,process[],2,FALSE),\"\")","v":"LNG ship (own fuel consumption)"},{"$f":"IFERROR(VLOOKUP(D$13&\",\"&$B26&\",,,\",data[],7,FALSE)*1000,\"\")","v":3.3002590965851542E-3},{"$f":"IFERROR(VLOOKUP(E$13&\",\"&$B26&\",,,\",data[],7,FALSE)*1000,\"\")","v":2.541556382391352E-4},{"$f":"IFERROR(VLOOKUP(F$13&\",\"&$B26&\",,,\",data[],7,FALSE),\"\")","v":30},{"$f":"IFERROR(VLOOKUP(\"CONV,\"&$B26&\",BFUEL-L,,\",data[],7,FALSE)*1000,\"\")","v":""}]
[null,"CH4-SB",{"$f":"IFERROR(VLOOKUP($B27,process[],2,FALSE),\"\")","v":"LNG ship (bunker fuel consumption)"},{"$f":"IFERROR(VLOOKUP(D$13&\",\"&$B27&\",,,\",data[],7,FALSE)*1000,\"\")","v":2.3075077070757411E-3},{"$f":"IFERROR(VLOOKUP(E$13&\",\"&$B27&\",,,\",data[],7,FALSE)*1000,\"\")","v":2.541556382391352E-4},{"$f":"IFERROR(VLOOKUP(F$13&\",\"&$B27&\",,,\",data[],7,FALSE),\"\")","v":30},{"$f":"IFERROR(VLOOKUP(\"CONV,\"&$B27&\",BFUEL-L,,\",data[],7,FALSE)*1000,\"\")","v":3.3002590965851546E-3}]
[null,"DRI-SB",{"$f":"IFERROR(VLOOKUP($B28,process[],2,FALSE),\"\")","v":"Green iron ship (bunker fuel consumption)"},{"$f":"IFERROR(VLOOKUP(D$13&\",\"&$B28&\",,,\",data[],7,FALSE)*1000,\"\")","v":""},{"$f":"IFERROR(VLOOKUP(E$13&\",\"&$B28&\",,,\",data[],7,FALSE)*1000,\"\")","v":3.2628968629878029E-4},{"$f":"IFERROR(VLOOKUP(F$13&\",\"&$B28&\",,,\",data[],7,FALSE),\"\")","v":""},{"$f":"IFERROR(VLOOKUP(\"CONV,\"&$B28&\",BFUEL-L,,\",data[],7,FALSE)*1000,\"\")","v":""}]
[null,"H2-S",{"$f":"IFERROR(VLOOKUP($B29,process[],2,FALSE),\"\")","v":"Hydrogen ship (own fuel consumption)"},{"$f":"IFERROR(VLOOKUP(D$13&\",\"&$B29&\",,,\",data[],7,FALSE)*1000,\"\")","v":9.2511936896845989E-3},{"$f":"IFERROR(VLOOKUP(E$13&\",\"&$B29&\",,,\",data[],7,FALSE)*1000,\"\")","v":1.5043330904926456E-3},{"$f":"IFERROR(VLOOKUP(F$13&\",\"&$B29&\",,,\",data[],7,FALSE),\"\")","v":30},{"$f":"IFERROR(VLOOKUP(\"CONV,\"&$B29&\",BFUEL-L,,\",data[],7,FALSE)*1000,\"\")","v":""}]
[null,"H2-SB",{"$f":"IFERROR(VLOOKUP($B30,process[],2,FALSE),\"\")","v":"Hydrogen ship (bunker fuel consumption)"},{"$f":"IFERROR(VLOOKUP(D$13&\",\"&$B30&\",,,\",data[],7,FALSE)*1000,\"\")","v":4.6150154141514823E-3},{"$f":"IFERROR(VLOOKUP(E$13&\",\"&$B30&\",,,\",data[],7,FALSE)*1000,\"\")","v":1.5043330904926456E-3},{"$f":"IFERROR(VLOOKUP(F$13&\",\"&$B30&\",,,\",data[],7,FALSE),\"\")","v":30},{"$f":"IFERROR(VLOOKUP(\"CONV,\"&$B30&\",BFUEL-L,,\",data[],7,FALSE)*1000,\"\")","v":7.9560265731287525E-3}]
[null,"LOHC-S",{"$f":"IFERROR(VLOOKUP($B31,process[],2,FALSE),\"\")","v":"LOHC ship (own fuel consumption)"},{"$f":"IFERROR(VLOOKUP(D$13&\",\"&$B31&\",,,\",data[],7,FALSE)*1000,\"\")","v":1.1535367546997468E-2},{"$f":"IFERROR(VLOOKUP(E$13&\",\"&$B31&\",,,\",data[],7,FALSE)*1000,\"\")","v":1.3493717175603378E-3},{"$f":"IFERROR(VLOOKUP(F$13&\",\"&$B31&\",,,\",data[],7,FALSE),\"\")","v":30},{"$f":"IFERROR(VLOOKUP(\"CONV,\"&$B31&\",BFUEL-L,,\",data[],7,FALSE)*1000,\"\")","v":""}]
[null,"LOHC-SB",{"$f":"IFERROR(VLOOKUP($B32,process[],2,FALSE),\"\")","v":"LOHC ship (bunker fuel consumption)"},{"$f":"IFERROR(VLOOKUP(D$13&\",\"&$B32&\",,,\",data[],7,FALSE)*1000,\"\")","v":""},{"$f":"IFERROR(VLOOKUP(E$13&\",\"&$B32&\",,,\",data[],7,FALSE)*1000,\"\")","v":1.3493717175603378E-3},{"$f":"IFERROR(VLOOKUP(F$13&\",\"&$B32&\",,,\",data[],7,FALSE),\"\")","v":30},{"$f":"IFERROR(VLOOKUP(\"CONV,\"&$B32&\",BFUEL-L,,\",data[],7,FALSE)*1000,\"\")","v":9.9204160904178204E-3}]
[null,"NH3-S",{"$f":"IFERROR(VLOOKUP($B33,process[],2,FALSE),\"\")","v":"Ammonia ship (own fuel consumption)"},{"$f":"IFERROR(VLOOKUP(D$13&\",\"&$B33&\",,,\",data[],7,FALSE)*1000,\"\")","v":5.343656103416341E-3},{"$f":"IFERROR(VLOOKUP(E$13&\",\"&$B33&\",,,\",data[],7,FALSE)*1000,\"\")","v":3.2372129273508196E-4},{"$f":"IFERROR(VLOOKUP(F$13&\",\"&$B33&\",,,\",data[],7,FALSE),\"\")","v":30},{"$f":"IFERROR(VLOOKUP(\"CONV,\"&$B33&\",BFUEL-L,,\",data[],7,FALSE)*1000,\"\")","v":""}]
[null,"NH3-SB",{"$f":"IFERROR(VLOOKUP($B34,process[],2,FALSE),\"\")","v":"Ammonia ship (bunker fuel consumption)"},{"$f":"IFERROR(VLOOKUP(D$13&\",\"&$B34&\",,,\",data[],7,FALSE)*1000,\"\")","v":9.2300308283029659E-4},{"$f":"IFERROR(VLOOKUP(E$13&\",\"&$B34&\",,,\",data[],7,FALSE)*1000,\"\")","v":3.2372129273508196E-4},{"$f":"IFERROR(VLOOKUP(F$13&\",\"&$B34&\",,,\",data[],7,FALSE),\"\")","v":30},{"$f":"IFERROR(VLOOKUP(\"CONV,\"&$B34&\",BFUEL-L,,\",data[],7,FALSE)*1000,\"\")","v":5.343656103416341E-3}]
[null,"SYN-S",{"$f":"IFERROR(VLOOKUP($B35,process[],2,FALSE),\"\")","v":"FT e-fuels ship (own fuel consumption)"},{"$f":"IFERROR(VLOOKUP(D$13&\",\"&$B35&\",,,\",data[],7,FALSE)*1000,\"\")","v":""},{"$f":"IFERROR(VLOOKUP(E$13&\",\"&$B35&\",,,\",data[],7,FALSE)*1000,\"\")","v":4.5025237094726661E-5},{"$f":"IFERROR(VLOOKUP(F$13&\",\"&$B35&\",,,\",data[],7,FALSE),\"\")","v":30},{"$f":"IFERROR(VLOOKUP(\"CONV,\"&$B35&\",BFUEL-L,,\",data[],7,FALSE)*1000,\"\")","v":""}]
[null,"SYN-SB",{"$f":"IFERROR(VLOOKUP($B36,process[],2,FALSE),\"\")","v":"FT e-fuels ship (bunker fuel consumption)"},{"$f":"IFERROR(VLOOKUP(D$13&\",\"&$B36&\",,,\",data[],7,FALSE)*1000,\"\")","v":""},{"$f":"IFERROR(VLOOKUP(E$13&\",\"&$B36&\",,,\",data[],7,FALSE)*1000,\"\")","v":4.5025237094726661E-5},{"$f":"IFERROR(VLOOKUP(F$13&\",\"&$B36&\",,,\",data[],7,FALSE),\"\")","v":30},{"$f":"IFERROR(VLOOKUP(\"CONV,\"&$B36&\",BFUEL-L,,\",data[],7,FALSE)*1000,\"\")","v":1.264193639501289E-3}]
[null,null,{"$f":"IFERROR(VLOOKUP($B37,process[],2,FALSE),\"\")","v":""},{"$f":"IFERROR(VLOOKUP(D$13&\",\"&$B37&\",,,\",data[],7,FALSE)*1000,\"\")","v":""},{"$f":"IFERROR(VLOOKUP(E$13&\",\"&$B37&\",,,\",data[],7,FALSE)*1000,\"\")","v":""},{"$f":"IFERROR(VLOOKUP(F$13&\",\"&$B37&\",,,\",data[],7,FALSE),\"\")","v":""},{"$f":"IFERROR(VLOOKUP(\"CONV,\"&$B37&\",BFUEL-L,,\",data[],7,FALSE)*1000,\"\")","v":""}]
[null,null,{"$f":"IFERROR(VLOOKUP($B38,process[],2,FALSE),\"\")","v":""},{"$f":"IFERROR(VLOOKUP(D$13&\",\"&$B38&\",,,\",data[],7,FALSE)*1000,\"\")","v":""},{"$f":"IFERROR(VLOOKUP(E$13&\",\"&$B38&\",,,\",data[],7,FALSE)*1000,\"\")","v":""},{"$f":"IFERROR(VLOOKUP(F$13&\",\"&$B38&\",,,\",data[],7,FALSE),\"\")","v":""},{"$f":"IFERROR(VLOOKUP(\"CONV,\"&$B38&\",BFUEL-L,,\",data[],7,FALSE)*1000,\"\")","v":""}]
[null,null,{"$f":"IFERROR(VLOOKUP($B39,process[],2,FALSE),\"\")","v":""},{"$f":"IFERROR(VLOOKUP(D$13&\",\"&$B39&\",,,\",data[],7,FALSE)*1000,\"\")","v":""},{"$f":"IFERROR(VLOOKUP(E$13&\",\"&$B39&\",,,\",data[],7,FALSE)*1000,\"\")","v":""},{"$f":"IFERROR(VLOOKUP(F$13&\",\"&$B39&\",,,\",data[],7,FALSE),\"\")","v":""},{"$f":"IFERROR(VLOOKUP(\"CONV,\"&$B39&\",BFUEL-L,,\",data[],7,FALSE)*1000,\"\")","v":""}]
[null,null,{"$f":"IFERROR(VLOOKUP($B40,process[],2,FALSE),\"\")","v":""},{"$f":"IFERROR(VLOOKUP(D$13&\",\"&$B40&\",,,\",data[],7,FALSE)*1000,\"\")","v":""},{"$f":"IFERROR(VLOOKUP(E$13&\",\"&$B40&\",,,\",data[],7,FALSE)*1000,\"\")","v":""},{"$f":"IFERROR(VLOOKUP(F$13&\",\"&$B40&\",,,\",data[],7,FALSE),\"\")","v":""},{"$f":"IFERROR(VLOOKUP(\"CONV,\"&$B40&\",BFUEL-L,,\",data[],7,FALSE)*1000,\"\")","v":""}]
[null,null,{"$f":"IFERROR(VLOOKUP($B41,process[],2,FALSE),\"\")","v":""},{"$f":"IFERROR(VLOOKUP(D$13&\",\"&$B41&\",,,\",data[],7,FALSE)*1000,\"\")","v":""},{"$f":"IFERROR(VLOOKUP(E$13&\",\"&$B41&\",,,\",data[],7,FALSE)*1000,\"\")","v":""},{"$f":"IFERROR(VLOOKUP(F$13&\",\"&$B41&\",,,\",data[],7,FALSE),\"\")","v":""},{"$f":"IFERROR(VLOOKUP(\"CONV,\"&$B41&\",BFUEL-L,,\",data[],7,FALSE)*1000,\"\")","v":""}]
[null,null,{"$f":"IFERROR(VLOOKUP($B42,process[],2,FALSE),\"\")","v":""},{"$f":"IFERROR(VLOOKUP(D$13&\",\"&$B42&\",,,\",data[],7,FALSE)*1000,\"\")","v":""},{"$f":"IFERROR(VLOOKUP(E$13&\",\"&$B42&\",,,\",data[],7,FALSE)*1000,\"\")","v":""},{"$f":"IFERROR(VLOOKUP(F$13&\",\"&$B42&\",,,\",data[],7,FALSE),\"\")","v":""},{"$f":"IFERROR(VLOOKUP(\"CONV,\"&$B42&\",BFUEL-L,,\",data[],7,FALSE)*1000,\"\")","v":""}]
[null,null,{"$f":"IFERROR(VLOOKUP($B43,process[],2,FALSE),\"\")","v":""},{"$f":"IFERROR(VLOOKUP(D$13&\",\"&$B43&\",,,\",data[],7,FALSE)*1000,\"\")","v":""},{"$f":"IFERROR(VLOOKUP(E$13&\",\"&$B43&\",,,\",data[],7,FALSE)*1000,\"\")","v":""},{"$f":"IFERROR(VLOOKUP(F$13&\",\"&$B43&\",,,\",data[],7,FALSE),\"\")","v":""},{"$f":"IFERROR(VLOOKUP(\"CONV,\"&$B43&\",BFUEL-L,,\",data[],7,FALSE)*1000,\"\")","v":""}]
[null,null,{"$f":"IFERROR(VLOOKUP($B44,process[],2,FALSE),\"\")","v":""},{"$f":"IFERROR(VLOOKUP(D$13&\",\"&$B44&\",,,\",data[],7,FALSE)*1000,\"\")","v":""},{"$f":"IFERROR(VLOOKUP(E$13&\",\"&$B44&\",,,\",data[],7,FALSE)*1000,\"\")","v":""},{"$f":"IFERROR(VLOOKUP(F$13&\",\"&$B44&\",,,\",data[],7,FALSE),\"\")","v":""},{"$f":"IFERROR(VLOOKUP(\"CONV,\"&$B44&\",BFUEL-L,,\",data[],7,FALSE)*1000,\"\")","v":""}]
[null,null,{"$f":"IFERROR(VLOOKUP($B45,process[],2,FALSE),\"\")","v":""},{"$f":"IFERROR(VLOOKUP(D$13&\",\"&$B45&\",,,\",data[],7,FALSE)*1000,\"\")","v":""},{"$f":"IFERROR(VLOOKUP(E$13&\",\"&$B45&\",,,\",data[],7,FALSE)*1000,\"\")","v":""},{"$f":"IFERROR(VLOOKUP(F$13&\",\"&$B45&\",,,\",data[],7,FALSE),\"\")","v":""},{"$f":"IFERROR(VLOOKUP(\"CONV,\"&$B45&\",BFUEL-L,,\",data[],7,FALSE)*1000,\"\")","v":""}]
[null,null,{"$f":"IFERROR(VLOOKUP($B46,process[],2,FALSE),\"\")","v":""},{"$f":"IFERROR(VLOOKUP(D$13&\",\"&$B46&\",,,\",data[],7,FALSE)*1000,\"\")","v":""},{"$f":"IFERROR(VLOOKUP(E$13&\",\"&$B46&\",,,\",data[],7,FALSE)*1000,\"\")","v":""},{"$f":"IFERROR(VLOOKUP(F$13&\",\"&$B46&\",,,\",data[],7,FALSE),\"\")","v":""},{"$f":"IFERROR(VLOOKUP(\"CONV,\"&$B46&\",BFUEL-L,,\",data[],7,FALSE)*1000,\"\")","v":""}]
[null,null,{"$f":"IFERROR(VLOOKUP($B47,process[],2,FALSE),\"\")","v":""},{"$f":"IFERROR(VLOOKUP(D$13&\",\"&$B47&\",,,\",data[],7,FALSE)*1000,\"\")","v":""},{"$f":"IFERROR(VLOOKUP(E$13&\",\"&$B47&\",,,\",data[],7,FALSE)*1000,\"\")","v":""},{"$f":"IFERROR(VLOOKUP(F$13&\",\"&$B47&\",,,\",data[],7,FALSE),\"\")","v":""},{"$f":"IFERROR(VLOOKUP(\"CONV,\"&$B47&\",BFUEL-L,,\",data[],7,FALSE)*1000,\"\")","v":""}]

{"sheet":"e_view_data_chain","index":36,"n_rows":71,"n_cols":28,"rows_kept":71,"cut":false,"hidden":true,"merged":[[65,1,65,25],[1,23,1,24],[2,23,2,24],[48,23,48,24],[24,1,24,21],[48,1,48,21],[4,2,10,7],[15,12,15,17],[15,8,15,9],[15,10,15,11]]}
[]
[null,null,"PROCESS CHAIN DETAILS",null,null,null,null,null,null,null,null,null,null,null,null,null,null,null,null,null,null,null,null,"YOUR SETTINGS"]
[null,null,null,null,null,null,null,null,null,null,null,null,null,null,null,null,null,null,null,null,null,null,null,"can be re-adjusted on the dashboard"]
[null,null,"View input data and costs for the selected process chain and country pair",null,null,null,null,null,null,null,null,null,null,null,null,null,null,null,null,null,null,null,null,"Supply country:",{"$f":"sel_region_name","v":"Morocco"}]
[null,null,null,null,null,null,null,null,null,null,null,null,null,null,null,null,null,null,null,null,null,null,null,"Demand country:",{"$f":"sel_country_name","v":"Germany"}]
[null,null,null,null,null,null,null,null,null,null,null,null,null,null,null,null,null,null,null,null,null,null,null,"RE generation:",{"$f":"sel_res_gen_name","v":"Wind-PV-Hybrid"}]
[null,null,null,null,null,null,null,null,null,null,null,null,null,null,null,null,null,null,null,null,null,null,null,"Process chain:",{"$f":"sel_chain","v":"Hydrogen (AEL)"}]
[null,null,null,null,null,null,null,null,null,null,null,null,null,null,null,null,null,null,null,null,null,null,null,"CO2 source:",{"$f":"sel_secproc_co2","v":"DAC"}]
[null,null,null,null,null,null,null,null,null,null,null,null,null,null,null,null,null,null,null,null,null,null,null,"Water source:",{"$f":"sel_secproc_water","v":"Water desalination"}]
[null,null,null,null,null,null,null,null,null,null,null,null,null,null,null,null,null,null,null,null,null,null,null,"Transport mode:",{"$f":"sel_transport","v":"Ship"}]
[null,null,null,null,null,null,null,null,null,null,null,null,null,null,null,null,null,null,null,null,null,null,null,"Scenario:",{"$f":"sel_scenario","v":"2030 (medium)"}]
[]
[]
[]
[null,null,null,null,null,null,2,3,4,5,6,7,8,9,10,11,12,13]
[null,null,null,null,"RE generation:",null,"Electrolysis:","Derivate production:","Transportation preprocessing",null,"Transportation postprocessing",null,"Transport options",null,null,null,null,null,null,"Carbon source:","Water source:","Heat source:"]
[null,null,null,null,null,null,"ELY","DERIV","PRE_SHP","PRE_PPL","POST_SHP","POST_PPL","SHP","SHP-OWN","PPLS","PPL","PPLX","PPLR",null,"carbon","water","heat"]
[null,null,null,null,{"$f":"sel_res_gen","v":"RES-HYBR"},null,{"$f":"IFERROR(VLOOKUP(sel_chain,chains[],G15,FALSE),\"\")","v":"AEL-EL"},{"$f":"IFERROR(VLOOKUP(sel_chain,chains[],H15,FALSE),\"\")","v":0},{"$f":"IFERROR(VLOOKUP(sel_chain,chains[],I15,FALSE),\"\")","v":"H2-LIQ"},{"$f":"IFERROR(VLOOKUP(sel_chain,chains[],J15,FALSE),\"\")","v":"H2-COMP"},{"$f":"IFERROR(VLOOKUP(sel_chain,chains[],K15,FALSE),\"\")","v":"H2-RGAS"},{"$f":"IFERROR(VLOOKUP(sel_chain,chains[],L15,FALSE),\"\")","v":0},{"$f":"IFERROR(VLOOKUP(sel_chain,chains[],M15,FALSE),\"\")","v":"H2-SB"},{"$f":"IFERROR(VLOOKUP(sel_chain,chains[],N15,FALSE),\"\")","v":"H2-S"},{"$f":"IFERROR(VLOOKUP(sel_chain,chains[],O15,FALSE),\"\")","v":"H2-P-S"},{"$f":"IFERROR(VLOOKUP(sel_chain,chains[],P15,FALSE),\"\")","v":"H2-P-L"},{"$f":"IFERROR(VLOOKUP(sel_chain,chains[],Q15,FALSE),\"\")","v":"H2-P-SR"},{"$f":"IFERROR(VLOOKUP(sel_chain,chains[],R15,FALSE),\"\")","v":"H2-P-LR"},null,{"$f":"IF(T19=\"DAC\",\"DAC\")","v":"DAC"},{"$f":"IF(U19=\"Water desalination\",\"DESAL\")","v":"DESAL"},{"$f":"IFERROR(INDEX(process_process_code,MATCH(V$19,process_process_name,0)),\"\")","v":""}]
[null,null,null,null,{"$f":"sel_res_gen_name","v":"Wind-PV-Hybrid"},null,{"$f":"IFERROR(VLOOKUP(G$18,process[],2,FALSE),\"\")","v":"AEL electrolysis"},{"$f":"IFERROR(VLOOKUP(H$18,process[],2,FALSE),\"None\")","v":"None"},{"$f":"IFERROR(VLOOKUP(I$18,process[],2,FALSE),\"\")","v":"Hydrogen Liquefaction"},{"$f":"IFERROR(VLOOKUP(J$18,process[],2,FALSE),\"\")","v":"Hydrogen compression"},{"$f":"IFERROR(VLOOKUP(K$18,process[],2,FALSE),\"\")","v":"Hydrogen Regasification"},{"$f":"IFERROR(VLOOKUP(L$18,process[],2,FALSE),\"\")","v":""},{"$f":"IFERROR(VLOOKUP(M$18,process[],2,FALSE),\"\")","v":"Hydrogen ship (bunker fuel consumption)"},{"$f":"IFERROR(VLOOKUP(N$18,process[],2,FALSE),\"\")","v":"Hydrogen ship (own fuel consumption)"},{"$f":"IFERROR(VLOOKUP(O$18,process[],2,FALSE),\"\")","v":"Hydrogen sea pipeline"},{"$f":"IFERROR(VLOOKUP(P$18,process[],2,FALSE),\"\")","v":"Hydrogen land pipeline new"},{"$f":"IFERROR(VLOOKUP(Q$18,process[],2,FALSE),\"\")","v":"Hydrogen sea pipeline retrofitted"},{"$f":"IFERROR(VLOOKUP(R$18,process[],2,FALSE),\"\")","v":"Hydrogen land pipeline retrofitted"},null,{"$f":"sel_secproc_co2","v":"DAC"},{"$f":"sel_secproc_water","v":"Water desalination"},"specific costs"]
[]
[null,"process_class",null,null,{"$f":"IFERROR(VLOOKUP(E$18,process[],3,FALSE),\"\")","v":"RE-GEN"},null,{"$f":"IFERROR(VLOOKUP(G$18,process[],3,FALSE),\"\")","v":"ELEC"},{"$f":"IFERROR(VLOOKUP(H$18,process[],3,FALSE),\"\")","v":""},{"$f":"IFERROR(VLOOKUP(I$18,process[],3,FALSE),\"\")","v":"TRANSP-S"},{"$f":"IFERROR(VLOOKUP(J$18,process[],3,FALSE),\"\")","v":"TRANSP-P"},null,null,null,null,null,null,null,null,null,{"$f":"IFERROR(VLOOKUP(T$18,process[],3,FALSE),\"\")","v":"PROV_C"},{"$f":"IFERROR(VLOOKUP(U$18,process[],3,FALSE),\"\")","v":"PROV_H2O"},{"$f":"IFERROR(VLOOKUP(V$18,process[],3,FALSE),\"\")","v":""}]
[null,"main_flow_code_out",null,null,{"$f":"IFERROR(VLOOKUP(E$18,process[],4,FALSE),\"\")","v":"EL"},null,{"$f":"IFERROR(VLOOKUP(G$18,process[],4,FALSE),\"\")","v":"H2-G"},{"$f":"IFERROR(VLOOKUP(H$18,process[],4,FALSE),\"\")","v":""},{"$f":"IFERROR(VLOOKUP(I$18,process[],4,FALSE),\"\")","v":"H2-L"},{"$f":"IFERROR(VLOOKUP(J$18,process[],4,FALSE),\"\")","v":"H2-G"},null,null,null,null,null,null,null,null,null,{"$f":"IFERROR(VLOOKUP(T$18,process[],4,FALSE),\"\")","v":"CO2-G"},{"$f":"IFERROR(VLOOKUP(U$18,process[],4,FALSE),\"\")","v":"H2O-L"},{"$f":"IFERROR(VLOOKUP(V$18,process[],4,FALSE),\"\")","v":""}]
[null,"main_flow_code_in",null,null,{"$f":"IFERROR(VLOOKUP(E$18,process[],5,FALSE),\"\")","v":0},null,{"$f":"IFERROR(VLOOKUP(G$18,process[],5,FALSE),\"\")","v":"EL"},{"$f":"IFERROR(VLOOKUP(H$18,process[],5,FALSE),\"\")","v":""},{"$f":"IFERROR(VLOOKUP(I$18,process[],5,FALSE),\"\")","v":"H2-G"},{"$f":"IFERROR(VLOOKUP(J$18,process[],5,FALSE),\"\")","v":"H2-G"},null,null,null,null,null,null,null,null,null,{"$f":"IFERROR(VLOOKUP(T$18,process[],5,FALSE),\"\")","v":0},{"$f":"IFERROR(VLOOKUP(U$18,process[],5,FALSE),\"\")","v":0},{"$f":"IFERROR(VLOOKUP(V$18,process[],5,FALSE),\"\")","v":""}]
[]
[null,"Process parameters"]
[null,"CAPEX","CAPEX",{"$f":"IFERROR(VLOOKUP($B26,parameter[],3,FALSE),\"\")","v":"USD2021/kW"},{"$f":"IFERROR(VLOOKUP(CONCATENATE($B26,\",\",E$18,\",,\",sel_region_code,\",\"),data[],7,FALSE),IFERROR(VLOOKUP(CONCATENATE($B26,\",\",E$18,\",,,\"),data[],7,FALSE),\"\"))","v":1229.1954260584585},null,{"$f":"IFERROR(VLOOKUP(CONCATENATE($B26,\",\",G$18,\",,\",sel_region_code,\",\"),data[],7,FALSE),IFERROR(VLOOKUP(CONCATENATE($B26,\",\",G$18,\",,,\"),data[],7,FALSE),\"\"))","v":650.6426539852938},{"$f":"IFERROR(VLOOKUP(CONCATENATE($B26,\",\",H$18,\",,\",sel_region_code,\",\"),data[],7,FALSE),IFERROR(VLOOKUP(CONCATENATE($B26,\",\",H$18,\",,,\"),data[],7,FALSE),\"\"))","v":""},{"$f":"IFERROR(VLOOKUP(CONCATENATE($B26,\",\",I$18,\",,\",sel_region_code,\",\"),data[],7,FALSE),IFERROR(VLOOKUP(CONCATENATE($B26,\",\",I$18,\",,,\"),data[],7,FALSE),\"\"))","v":1457.3621055108172},{"$f":"IFERROR(VLOOKUP(CONCATENATE($B26,\",\",J$18,\",,\",sel_region_code,\",\"),data[],7,FALSE),IFERROR(VLOOKUP(CONCATENATE($B26,\",\",J$18,\",,,\"),data[],7,FALSE),\"\"))","v":144.49043833783671},{"$f":"IFERROR(VLOOKUP(CONCATENATE($B26,\",\",K$18,\",,\",sel_region_code,\",\"),data[],7,FALSE),IFERROR(VLOOKUP(CONCATENATE($B26,\",\",K$18,\",,,\"),data[],7,FALSE),\"\"))","v":318.14227153381154},{"$f":"IFERROR(VLOOKUP(CONCATENATE($B26,\",\",L$18,\",,\",sel_region_code,\",\"),data[],7,FALSE),IFERROR(VLOOKUP(CONCATENATE($B26,\",\",L$18,\",,,\"),data[],7,FALSE),\"\"))","v":""},{"$f":"IFERROR(VLOOKUP(CONCATENATE($B26,\",\",M$18,\",,\",sel_region_code,\",\"),data[],7,FALSE),IFERROR(VLOOKUP(CONCATENATE($B26,\",\",M$18,\",,,\"),data[],7,FALSE),\"\"))","v":""},{"$f":"IFERROR(VLOOKUP(CONCATENATE($B26,\",\",N$18,\",,\",sel_region_code,\",\"),data[],7,FALSE),IFERROR(VLOOKUP(CONCATENATE($B26,\",\",N$18,\",,,\"),data[],7,FALSE),\"\"))","v":""},{"$f":"IFERROR(VLOOKUP(CONCATENATE($B26,\",\",O$18,\",,\",sel_region_code,\",\"),data[],7,FALSE),IFERROR(VLOOKUP(CONCATENATE($B26,\",\",O$18,\",,,\"),data[],7,FALSE),\"\"))","v":""},{"$f":"IFERROR(VLOOKUP(CONCATENATE($B26,\",\",P$18,\",,\",sel_region_code,\",\"),data[],7,FALSE),IFERROR(VLOOKUP(CONCATENATE($B26,\",\",P$18,\",,,\"),data[],7,FALSE),\"\"))","v":""},{"$f":"IFERROR(VLOOKUP(CONCATENATE($B26,\",\",Q$18,\",,\",sel_region_code,\",\"),data[],7,FALSE),IFERROR(VLOOKUP(CONCATENATE($B26,\",\",Q$18,\",,,\"),data[],7,FALSE),\"\"))","v":""},{"$f":"IFERROR(VLOOKUP(CONCATENATE($B26,\",\",R$18,\",,\",sel_region_code,\",\"),data[],7,FALSE),IFERROR(VLOOKUP(CONCATENATE($B26,\",\",R$18,\",,,\"),data[],7,FALSE),\"\"))","v":""},null,{"$f":"IFERROR(VLOOKUP(CONCATENATE($B26,\",\",T$18,\",,\",sel_region_code,\",\"),data[],7,FALSE)*1000,IFERROR(VLOOKUP(CONCATENATE($B26,\",\",T$18,\",,,\"),data[],7,FALSE)*1000,\"\"))","v":1037.7410418368697},{"$f":"IFERROR(VLOOKUP(CONCATENATE($B26,\",\",U$18,\",,\",sel_region_code,\",\"),data[],7,FALSE)*1000,IFERROR(VLOOKUP(CONCATENATE($B26,\",\",U$18,\",,,\"),data[],7,FALSE)*1000,\"\"))","v":2.3667276243093918},{"$f":"IFERROR(VLOOKUP(CONCATENATE($B26,\",\",V$18,\",,\",sel_region_code,\",\"),data[],7,FALSE),IFERROR(VLOOKUP(CONCATENATE($B26,\",\",V$18,\",,,\"),data[],7,FALSE),\"\"))","v":""}]
[null,"OPEX-F","OPEX (fix)",{"$f":"IFERROR(VLOOKUP($B27,parameter[],3,FALSE),\"\")","v":"USD2021/kW"},{"$f":"IFERROR(VLOOKUP(CONCATENATE($B27,\",\",E$18,\",,\",sel_region_code,\",\"),data[],7,FALSE),IFERROR(VLOOKUP(CONCATENATE($B27,\",\",E$18,\",,,\"),data[],7,FALSE),\"\"))","v":24.583908521169171},null,{"$f":"IFERROR(VLOOKUP(CONCATENATE($B27,\",\",G$18,\",,\",sel_region_code,\",\"),data[],7,FALSE),IFERROR(VLOOKUP(CONCATENATE($B27,\",\",G$18,\",,,\"),data[],7,FALSE),\"\"))","v":13.012853079705877},{"$f":"IFERROR(VLOOKUP(CONCATENATE($B27,\",\",H$18,\",,\",sel_region_code,\",\"),data[],7,FALSE),IFERROR(VLOOKUP(CONCATENATE($B27,\",\",H$18,\",,,\"),data[],7,FALSE),\"\"))","v":""},{"$f":"IFERROR(VLOOKUP(CONCATENATE($B27,\",\",I$18,\",,\",sel_region_code,\",\"),data[],7,FALSE),IFERROR(VLOOKUP(CONCATENATE($B27,\",\",I$18,\",,,\"),data[],7,FALSE),\"\"))","v":58.294484220432686},{"$f":"IFERROR(VLOOKUP(CONCATENATE($B27,\",\",J$18,\",,\",sel_region_code,\",\"),data[],7,FALSE),IFERROR(VLOOKUP(CONCATENATE($B27,\",\",J$18,\",,,\"),data[],7,FALSE),\"\"))","v":5.7796175335134681},{"$f":"IFERROR(VLOOKUP(CONCATENATE($B27,\",\",K$18,\",,\",sel_region_code,\",\"),data[],7,FALSE),IFERROR(VLOOKUP(CONCATENATE($B27,\",\",K$18,\",,,\"),data[],7,FALSE),\"\"))","v":7.9535567883452885},{"$f":"IFERROR(VLOOKUP(CONCATENATE($B27,\",\",L$18,\",,\",sel_region_code,\",\"),data[],7,FALSE),IFERROR(VLOOKUP(CONCATENATE($B27,\",\",L$18,\",,,\"),data[],7,FALSE),\"\"))","v":""},{"$f":"IFERROR(VLOOKUP(CONCATENATE($B27,\",\",M$18,\",,\",sel_region_code,\",\"),data[],7,FALSE),IFERROR(VLOOKUP(CONCATENATE($B27,\",\",M$18,\",,,\"),data[],7,FALSE),\"\"))","v":""},{"$f":"IFERROR(VLOOKUP(CONCATENATE($B27,\",\",N$18,\",,\",sel_region_code,\",\"),data[],7,FALSE),IFERROR(VLOOKUP(CONCATENATE($B27,\",\",N$18,\",,,\"),data[],7,FALSE),\"\"))","v":""},{"$f":"IFERROR(VLOOKUP(CONCATENATE($B27,\",\",O$18,\",,\",sel_region_code,\",\"),data[],7,FALSE),IFERROR(VLOOKUP(CONCATENATE($B27,\",\",O$18,\",,,\"),data[],7,FALSE),\"\"))","v":""},{"$f":"IFERROR(VLOOKUP(CONCATENATE($B27,\",\",P$18,\",,\",sel_region_code,\",\"),data[],7,FALSE),IFERROR(VLOOKUP(CONCATENATE($B27,\",\",P$18,\",,,\"),data[],7,FALSE),\"\"))","v":""},{"$f":"IFERROR(VLOOKUP(CONCATENATE($B27,\",\",Q$18,\",,\",sel_region_code,\",\"),data[],7,FALSE),IFERROR(VLOOKUP(CONCATENATE($B27,\",\",Q$18,\",,,\"),data[],7,FALSE),\"\"))","v":""},{"$f":"IFERROR(VLOOKUP(CONCATENATE($B27,\",\",R$18,\",,\",sel_region_code,\",\"),data[],7,FALSE),IFERROR(VLOOKUP(CONCATENATE($B27,\",\",R$18,\",,,\"),data[],7,FALSE),\"\"))","v":""},null,{"$f":"IFERROR(VLOOKUP(CONCATENATE($B27,\",\",T$18,\",,\",sel_region_code,\",\"),data[],7,FALSE)*1000,IFERROR(VLOOKUP(CONCATENATE($B27,\",\",T$18,\",,,\"),data[],7,FALSE)*1000,\"\"))","v":41.509641673474789},{"$f":"IFERROR(VLOOKUP(CONCATENATE($B27,\",\",U$18,\",,\",sel_region_code,\",\"),data[],7,FALSE)*1000,IFERROR(VLOOKUP(CONCATENATE($B27,\",\",U$18,\",,,\"),data[],7,FALSE)*1000,\"\"))","v":9.4669104972375684E-2},{"$f":"IFERROR(VLOOKUP(CONCATENATE($B27,\",\",V$18,\",,\",sel_region_code,\",\"),data[],7,FALSE),IFERROR(VLOOKUP(CONCATENATE($B27,\",\",V$18,\",,,\"),data[],7,FALSE),\"\"))","v":""}]
[null,"LIFETIME","Lifetime / amortization period",{"$f":"IFERROR(VLOOKUP($B28,parameter[],3,FALSE),\"\")","v":"years"},{"$f":"IFERROR(VLOOKUP(CONCATENATE($B28,\",\",E$18,\",,\",sel_region_code,\",\"),data[],7,FALSE),IFERROR(VLOOKUP(CONCATENATE($B28,\",\",E$18,\",,,\"),data[],7,FALSE),\"\"))","v":20},null,{"$f":"IFERROR(VLOOKUP(CONCATENATE($B28,\",\",G$18,\",,\",sel_region_code,\",\"),data[],7,FALSE),IFERROR(VLOOKUP(CONCATENATE($B28,\",\",G$18,\",,,\"),data[],7,FALSE),\"\"))","v":20},{"$f":"IFERROR(VLOOKUP(CONCATENATE($B28,\",\",H$18,\",,\",sel_region_code,\",\"),data[],7,FALSE),IFERROR(VLOOKUP(CONCATENATE($B28,\",\",H$18,\",,,\"),data[],7,FALSE),\"\"))","v":""},{"$f":"IFERROR(VLOOKUP(CONCATENATE($B28,\",\",I$18,\",,\",sel_region_code,\",\"),data[],7,FALSE),IFERROR(VLOOKUP(CONCATENATE($B28,\",\",I$18,\",,,\"),data[],7,FALSE),\"\"))","v":30},{"$f":"IFERROR(VLOOKUP(CONCATENATE($B28,\",\",J$18,\",,\",sel_region_code,\",\"),data[],7,FALSE),IFERROR(VLOOKUP(CONCATENATE($B28,\",\",J$18,\",,,\"),data[],7,FALSE),\"\"))","v":20},{"$f":"IFERROR(VLOOKUP(CONCATENATE($B28,\",\",K$18,\",,\",sel_region_code,\",\"),data[],7,FALSE),IFERROR(VLOOKUP(CONCATENATE($B28,\",\",K$18,\",,,\"),data[],7,FALSE),\"\"))","v":30},{"$f":"IFERROR(VLOOKUP(CONCATENATE($B28,\",\",L$18,\",,\",sel_region_code,\",\"),data[],7,FALSE),IFERROR(VLOOKUP(CONCATENATE($B28,\",\",L$18,\",,,\"),data[],7,FALSE),\"\"))","v":""},{"$f":"IFERROR(VLOOKUP(CONCATENATE($B28,\",\",M$18,\",,\",sel_region_code,\",\"),data[],7,FALSE),IFERROR(VLOOKUP(CONCATENATE($B28,\",\",M$18,\",,,\"),data[],7,FALSE),\"\"))","v":30},{"$f":"IFERROR(VLOOKUP(CONCATENATE($B28,\",\",N$18,\",,\",sel_region_code,\",\"),data[],7,FALSE),IFERROR(VLOOKUP(CONCATENATE($B28,\",\",N$18,\",,,\"),data[],7,FALSE),\"\"))","v":30},{"$f":"IFERROR(VLOOKUP(CONCATENATE($B28,\",\",O$18,\",,\",sel_region_code,\",\"),data[],7,FALSE),IFERROR(VLOOKUP(CONCATENATE($B28,\",\",O$18,\",,,\"),data[],7,FALSE),\"\"))","v":30},{"$f":"IFERROR(VLOOKUP(CONCATENATE($B28,\",\",P$18,\",,\",sel_region_code,\",\"),data[],7,FALSE),IFERROR(VLOOKUP(CONCATENATE($B28,\",\",P$18,\",,,\"),data[],7,FALSE),\"\"))","v":30},{"$f":"IFERROR(VLOOKUP(CONCATENATE($B28,\",\",Q$18,\",,\",sel_region_code,\",\"),data[],7,FALSE),IFERROR(VLOOKUP(CONCATENATE($B28,\",\",Q$18,\",,,\"),data[],7,FALSE),\"\"))","v":30},{"$f":"IFERROR(VLOOKUP(CONCATENATE($B28,\",\",R$18,\",,\",sel_region_code,\",\"),data[],7,FALSE),IFERROR(VLOOKUP(CONCATENATE($B28,\",\",R$18,\",,,\"),data[],7,FALSE),\"\"))","v":30},null,{"$f":"IFERROR(VLOOKUP(CONCATENATE($B28,\",\",T$18,\",,\",sel_region_code,\",\"),data[],7,FALSE),IFERROR(VLOOKUP(CONCATENATE($B28,\",\",T$18,\",,,\"),data[],7,FALSE),\"\"))","v":25},{"$f":"IFERROR(VLOOKUP(CONCATENATE($B28,\",\",U$18,\",,\",sel_region_code,\",\"),data[],7,FALSE),IFERROR(VLOOKUP(CONCATENATE($B28,\",\",U$18,\",,,\"),data[],7,FALSE),\"\"))","v":20},{"$f":"IFERROR(VLOOKUP(CONCATENATE($B28,\",\",V$18,\",,\",sel_region_code,\",\"),data[],7,FALSE),IFERROR(VLOOKUP(CONCATENATE($B28,\",\",V$18,\",,,\"),data[],7,FALSE),\"\"))","v":""}]
[null,"EFF","Efficiency",{"$f":"IFERROR(VLOOKUP($B29,parameter[],3,FALSE),\"\")","v":"various (output per main input)"},{"$f":"IFERROR(VLOOKUP(CONCATENATE($B29,\",\",E$18,\",,\",sel_region_code,\",\"),data[],7,FALSE),IFERROR(VLOOKUP(CONCATENATE($B29,\",\",E$18,\",,,\"),data[],7,FALSE),\"\"))","v":""},null,{"$f":"IFERROR(VLOOKUP(CONCATENATE($B29,\",\",G$18,\",,\",sel_region_code,\",\"),data[],7,FALSE),IFERROR(VLOOKUP(CONCATENATE($B29,\",\",G$18,\",,,\"),data[],7,FALSE),\"\"))","v":0.69},{"$f":"IFERROR(VLOOKUP(CONCATENATE($B29,\",\",H$18,\",,\",sel_region_code,\",\"),data[],7,FALSE),IFERROR(VLOOKUP(CONCATENATE($B29,\",\",H$18,\",,,\"),data[],7,FALSE),\"\"))","v":""},{"$f":"IFERROR(VLOOKUP(CONCATENATE($B29,\",\",I$18,\",,\",sel_region_code,\",\"),data[],7,FALSE),IFERROR(VLOOKUP(CONCATENATE($B29,\",\",I$18,\",,,\"),data[],7,FALSE),\"\"))","v":1},{"$f":"IFERROR(VLOOKUP(CONCATENATE($B29,\",\",J$18,\",,\",sel_region_code,\",\"),data[],7,FALSE),IFERROR(VLOOKUP(CONCATENATE($B29,\",\",J$18,\",,,\"),data[],7,FALSE),\"\"))","v":""},{"$f":"IFERROR(VLOOKUP(CONCATENATE($B29,\",\",K$18,\",,\",sel_region_code,\",\"),data[],7,FALSE),IFERROR(VLOOKUP(CONCATENATE($B29,\",\",K$18,\",,,\"),data[],7,FALSE),\"\"))","v":0.99654654654654651},{"$f":"IFERROR(VLOOKUP(CONCATENATE($B29,\",\",L$18,\",,\",sel_region_code,\",\"),data[],7,FALSE),IFERROR(VLOOKUP(CONCATENATE($B29,\",\",L$18,\",,,\"),data[],7,FALSE),\"\"))","v":""},{"$f":"IFERROR(VLOOKUP(CONCATENATE($B29,\",\",M$18,\",,\",sel_region_code,\",\"),data[],7,FALSE),IFERROR(VLOOKUP(CONCATENATE($B29,\",\",M$18,\",,,\"),data[],7,FALSE),\"\"))","v":""},{"$f":"IFERROR(VLOOKUP(CONCATENATE($B29,\",\",N$18,\",,\",sel_region_code,\",\"),data[],7,FALSE),IFERROR(VLOOKUP(CONCATENATE($B29,\",\",N$18,\",,,\"),data[],7,FALSE),\"\"))","v":""},{"$f":"IFERROR(VLOOKUP(CONCATENATE($B29,\",\",O$18,\",,\",sel_region_code,\",\"),data[],7,FALSE),IFERROR(VLOOKUP(CONCATENATE($B29,\",\",O$18,\",,,\"),data[],7,FALSE),\"\"))","v":""},{"$f":"IFERROR(VLOOKUP(CONCATENATE($B29,\",\",P$18,\",,\",sel_region_code,\",\"),data[],7,FALSE),IFERROR(VLOOKUP(CONCATENATE($B29,\",\",P$18,\",,,\"),data[],7,FALSE),\"\"))","v":""},{"$f":"IFERROR(VLOOKUP(CONCATENATE($B29,\",\",Q$18,\",,\",sel_region_code,\",\"),data[],7,FALSE),IFERROR(VLOOKUP(CONCATENATE($B29,\",\",Q$18,\",,,\"),data[],7,FALSE),\"\"))","v":""},{"$f":"IFERROR(VLOOKUP(CONCATENATE($B29,\",\",R$18,\",,\",sel_region_code,\",\"),data[],7,FALSE),IFERROR(VLOOKUP(CONCATENATE($B29,\",\",R$18,\",,,\"),data[],7,FALSE),\"\"))","v":""},null,{"$f":"IFERROR(VLOOKUP(CONCATENATE($B29,\",\",T$18,\",,\",sel_region_code,\",\"),data[],7,FALSE),IFERROR(VLOOKUP(CONCATENATE($B29,\",\",T$18,\",,,\"),data[],7,FALSE),\"\"))","v":""},{"$f":"IFERROR(VLOOKUP(CONCATENATE($B29,\",\",U$18,\",,\",sel_region_code,\",\"),data[],7,FALSE),IFERROR(VLOOKUP(CONCATENATE($B29,\",\",U$18,\",,,\"),data[],7,FALSE),\"\"))","v":1},{"$f":"IFERROR(VLOOKUP(CONCATENATE($B29,\",\",V$18,\",,\",sel_region_code,\",\"),data[],7,FALSE),IFERROR(VLOOKUP(CONCATENATE($B29,\",\",V$18,\",,,\"),data[],7,FALSE),\"\"))","v":""}]
[null,"FLH","Full load hours","h/year",{"$f":"IFERROR(VLOOKUP(CONCATENATE($B30,\",\",E$18,\",,\",sel_region_code,\",\"),data[],7,FALSE),IFERROR(VLOOKUP(CONCATENATE($B30,\",\",E$18,\",,,\"),data[],7,FALSE),\"\"))","v":4739.42},null,{"$f":"VLOOKUP(sel_region_code&\",\"&sel_res_gen&\",\"&sel_chain_ely_proc_code&\",\"&sel_chain_deriv_proc_code&\",\"&G$18,data_flh_2[],7,FALSE)","v":4501.0999999999995},{"$f":"IFERROR(VLOOKUP(sel_region_code&\",\"&sel_res_gen&\",\"&sel_chain_ely_proc_code&\",\"&sel_chain_deriv_proc_code&\",\"&H$18,data_flh_2[],7,FALSE),\"\")","v":""},{"$f":"IFERROR(VLOOKUP(CONCATENATE($B30,\",\",I$18,\",,\",sel_region_code,\",\"),data[],7,FALSE),IFERROR(VLOOKUP(CONCATENATE($B30,\",\",I$18,\",,,\"),data[],7,FALSE),\"\"))","v":""},{"$f":"IFERROR(VLOOKUP(CONCATENATE($B30,\",\",J$18,\",,\",sel_region_code,\",\"),data[],7,FALSE),IFERROR(VLOOKUP(CONCATENATE($B30,\",\",J$18,\",,,\"),data[],7,FALSE),\"\"))","v":""},{"$f":"IFERROR(VLOOKUP(CONCATENATE($B30,\",\",K$18,\",,\",sel_region_code,\",\"),data[],7,FALSE),IFERROR(VLOOKUP(CONCATENATE($B30,\",\",K$18,\",,,\"),data[],7,FALSE),\"\"))","v":""},{"$f":"IFERROR(VLOOKUP(CONCATENATE($B30,\",\",L$18,\",,\",sel_region_code,\",\"),data[],7,FALSE),IFERROR(VLOOKUP(CONCATENATE($B30,\",\",L$18,\",,,\"),data[],7,FALSE),\"\"))","v":""},{"$f":"IFERROR(VLOOKUP(CONCATENATE($B30,\",\",M$18,\",,\",sel_region_code,\",\"),data[],7,FALSE),IFERROR(VLOOKUP(CONCATENATE($B30,\",\",M$18,\",,,\"),data[],7,FALSE),\"\"))","v":""},{"$f":"IFERROR(VLOOKUP(CONCATENATE($B30,\",\",N$18,\",,\",sel_region_code,\",\"),data[],7,FALSE),IFERROR(VLOOKUP(CONCATENATE($B30,\",\",N$18,\",,,\"),data[],7,FALSE),\"\"))","v":""},{"$f":"IFERROR(VLOOKUP(CONCATENATE($B30,\",\",O$18,\",,\",sel_region_code,\",\"),data[],7,FALSE),IFERROR(VLOOKUP(CONCATENATE($B30,\",\",O$18,\",,,\"),data[],7,FALSE),\"\"))","v":""},{"$f":"IFERROR(VLOOKUP(CONCATENATE($B30,\",\",P$18,\",,\",sel_region_code,\",\"),data[],7,FALSE),IFERROR(VLOOKUP(CONCATENATE($B30,\",\",P$18,\",,,\"),data[],7,FALSE),\"\"))","v":""},{"$f":"IFERROR(VLOOKUP(CONCATENATE($B30,\",\",Q$18,\",,\",sel_region_code,\",\"),data[],7,FALSE),IFERROR(VLOOKUP(CONCATENATE($B30,\",\",Q$18,\",,,\"),data[],7,FALSE),\"\"))","v":""},{"$f":"IFERROR(VLOOKUP(CONCATENATE($B30,\",\",R$18,\",,\",sel_region_code,\",\"),data[],7,FALSE),IFERROR(VLOOKUP(CONCATENATE($B30,\",\",R$18,\",,,\"),data[],7,FALSE),\"\"))","v":""},null,{"$f":"IFERROR(VLOOKUP(CONCATENATE($B30,\",\",T$18,\",,\",sel_region_code,\",\"),data[],7,FALSE),IFERROR(VLOOKUP(CONCATENATE($B30,\",\",T$18,\",,,\"),data[],7,FALSE),\"\"))","v":""},{"$f":"IFERROR(VLOOKUP(CONCATENATE($B30,\",\",U$18,\",,\",sel_region_code,\",\"),data[],7,FALSE),IFERROR(VLOOKUP(CONCATENATE($B30,\",\",U$18,\",,,\"),data[],7,FALSE),\"\"))","v":""},{"$f":"IFERROR(VLOOKUP(CONCATENATE($B30,\",\",V$18,\",,\",sel_region_code,\",\"),data[],7,FALSE),IFERROR(VLOOKUP(CONCATENATE($B30,\",\",V$18,\",,,\"),data[],7,FALSE),\"\"))","v":""}]
[null,"LOSS-T",{"$f":"IFERROR(VLOOKUP($B31,parameter[],2,FALSE),\"\")","v":"losses (own fuel, transport)"},{"$f":"IFERROR(VLOOKUP($B31,parameter[],3,FALSE),\"\")","v":"fraction/km"},{"$f":"IFERROR(VLOOKUP(CONCATENATE($B31,\",\",E$18,\",,\",sel_region_code,\",\"),data[],7,FALSE),IFERROR(VLOOKUP(CONCATENATE($B31,\",\",E$18,\",,,\"),data[],7,FALSE),\"\"))","v":""},null,{"$f":"IFERROR(VLOOKUP(CONCATENATE($B31,\",\",G$18,\",,\",sel_region_code,\",\"),data[],7,FALSE),IFERROR(VLOOKUP(CONCATENATE($B31,\",\",G$18,\",,,\"),data[],7,FALSE),\"\"))","v":""},{"$f":"IFERROR(VLOOKUP(CONCATENATE($B31,\",\",H$18,\",,\",sel_region_code,\",\"),data[],7,FALSE),IFERROR(VLOOKUP(CONCATENATE($B31,\",\",H$18,\",,,\"),data[],7,FALSE),\"\"))","v":""},{"$f":"IFERROR(VLOOKUP(CONCATENATE($B31,\",\",I$18,\",,\",sel_region_code,\",\"),data[],7,FALSE),IFERROR(VLOOKUP(CONCATENATE($B31,\",\",I$18,\",,,\"),data[],7,FALSE),\"\"))","v":""},{"$f":"IFERROR(VLOOKUP(CONCATENATE($B31,\",\",J$18,\",,\",sel_region_code,\",\"),data[],7,FALSE),IFERROR(VLOOKUP(CONCATENATE($B31,\",\",J$18,\",,,\"),data[],7,FALSE),\"\"))","v":""},{"$f":"IFERROR(VLOOKUP(CONCATENATE($B31,\",\",K$18,\",,\",sel_region_code,\",\"),data[],7,FALSE),IFERROR(VLOOKUP(CONCATENATE($B31,\",\",K$18,\",,,\"),data[],7,FALSE),\"\"))","v":""},{"$f":"IFERROR(VLOOKUP(CONCATENATE($B31,\",\",L$18,\",,\",sel_region_code,\",\"),data[],7,FALSE),IFERROR(VLOOKUP(CONCATENATE($B31,\",\",L$18,\",,,\"),data[],7,FALSE),\"\"))","v":""},{"$f":"IFERROR(VLOOKUP(CONCATENATE($B31,\",\",M$18,\",,\",sel_region_code,\",\"),data[],7,FALSE),IFERROR(VLOOKUP(CONCATENATE($B31,\",\",M$18,\",,,\"),data[],7,FALSE),\"\"))","v":4.6150154141514826E-6},{"$f":"IFERROR(VLOOKUP(CONCATENATE($B31,\",\",N$18,\",,\",sel_region_code,\",\"),data[],7,FALSE),IFERROR(VLOOKUP(CONCATENATE($B31,\",\",N$18,\",,,\"),data[],7,FALSE),\"\"))","v":9.2511936896845982E-6},{"$f":"IFERROR(VLOOKUP(CONCATENATE($B31,\",\",O$18,\",,\",sel_region_code,\",\"),data[],7,FALSE),IFERROR(VLOOKUP(CONCATENATE($B31,\",\",O$18,\",,,\"),data[],7,FALSE),\"\"))","v":1.6866666666666666E-5},{"$f":"IFERROR(VLOOKUP(CONCATENATE($B31,\",\",P$18,\",,\",sel_region_code,\",\"),data[],7,FALSE),IFERROR(VLOOKUP(CONCATENATE($B31,\",\",P$18,\",,,\"),data[],7,FALSE),\"\"))","v":1.6866666666666666E-5},{"$f":"IFERROR(VLOOKUP(CONCATENATE($B31,\",\",Q$18,\",,\",sel_region_code,\",\"),data[],7,FALSE),IFERROR(VLOOKUP(CONCATENATE($B31,\",\",Q$18,\",,,\"),data[],7,FALSE),\"\"))","v":1.6866666666666666E-5},{"$f":"IFERROR(VLOOKUP(CONCATENATE($B31,\",\",R$18,\",,\",sel_region_code,\",\"),data[],7,FALSE),IFERROR(VLOOKUP(CONCATENATE($B31,\",\",R$18,\",,,\"),data[],7,FALSE),\"\"))","v":1.6866666666666666E-5},null,{"$f":"IFERROR(VLOOKUP(CONCATENATE($B31,\",\",T$18,\",,\",sel_region_code,\",\"),data[],7,FALSE),IFERROR(VLOOKUP(CONCATENATE($B31,\",\",T$18,\",,,\"),data[],7,FALSE),\"\"))","v":""},{"$f":"IFERROR(VLOOKUP(CONCATENATE($B31,\",\",U$18,\",,\",sel_region_code,\",\"),data[],7,FALSE),IFERROR(VLOOKUP(CONCATENATE($B31,\",\",U$18,\",,,\"),data[],7,FALSE),\"\"))","v":""},{"$f":"IFERROR(VLOOKUP(CONCATENATE($B31,\",\",V$18,\",,\",sel_region_code,\",\"),data[],7,FALSE),IFERROR(VLOOKUP(CONCATENATE($B31,\",\",V$18,\",,,\"),data[],7,FALSE),\"\"))","v":""}]
[null,"OPEX-T",{"$f":"IFERROR(VLOOKUP($B32,parameter[],2,FALSE),\"\")","v":"levelized costs"},{"$f":"IFERROR(VLOOKUP($B32,parameter[],3,FALSE),\"\")","v":"USD2021/(kWh*km)"},{"$f":"IFERROR(VLOOKUP(CONCATENATE($B32,\",\",E$18,\",,\",sel_region_code,\",\"),data[],7,FALSE),IFERROR(VLOOKUP(CONCATENATE($B32,\",\",E$18,\",,,\"),data[],7,FALSE),\"\"))","v":""},null,{"$f":"IFERROR(VLOOKUP(CONCATENATE($B32,\",\",G$18,\",,\",sel_region_code,\",\"),data[],7,FALSE),IFERROR(VLOOKUP(CONCATENATE($B32,\",\",G$18,\",,,\"),data[],7,FALSE),\"\"))","v":""},{"$f":"IFERROR(VLOOKUP(CONCATENATE($B32,\",\",H$18,\",,\",sel_region_code,\",\"),data[],7,FALSE),IFERROR(VLOOKUP(CONCATENATE($B32,\",\",H$18,\",,,\"),data[],7,FALSE),\"\"))","v":""},{"$f":"IFERROR(VLOOKUP(CONCATENATE($B32,\",\",I$18,\",,\",sel_region_code,\",\"),data[],7,FALSE),IFERROR(VLOOKUP(CONCATENATE($B32,\",\",I$18,\",,,\"),data[],7,FALSE),\"\"))","v":""},{"$f":"IFERROR(VLOOKUP(CONCATENATE($B32,\",\",J$18,\",,\",sel_region_code,\",\"),data[],7,FALSE),IFERROR(VLOOKUP(CONCATENATE($B32,\",\",J$18,\",,,\"),data[],7,FALSE),\"\"))","v":""},{"$f":"IFERROR(VLOOKUP(CONCATENATE($B32,\",\",K$18,\",,\",sel_region_code,\",\"),data[],7,FALSE),IFERROR(VLOOKUP(CONCATENATE($B32,\",\",K$18,\",,,\"),data[],7,FALSE),\"\"))","v":""},{"$f":"IFERROR(VLOOKUP(CONCATENATE($B32,\",\",L$18,\",,\",sel_region_code,\",\"),data[],7,FALSE),IFERROR(VLOOKUP(CONCATENATE($B32,\",\",L$18,\",,,\"),data[],7,FALSE),\"\"))","v":""},{"$f":"IFERROR(VLOOKUP(CONCATENATE($B32,\",\",M$18,\",,\",sel_region_code,\",\"),data[],7,FALSE),IFERROR(VLOOKUP(CONCATENATE($B32,\",\",M$18,\",,,\"),data[],7,FALSE),\"\"))","v":1.5043330904926455E-6},{"$f":"IFERROR(VLOOKUP(CONCATENATE($B32,\",\",N$18,\",,\",sel_region_code,\",\"),data[],7,FALSE),IFERROR(VLOOKUP(CONCATENATE($B32,\",\",N$18,\",,,\"),data[],7,FALSE),\"\"))","v":1.5043330904926455E-6},{"$f":"IFERROR(VLOOKUP(CONCATENATE($B32,\",\",O$18,\",,\",sel_region_code,\",\"),data[],7,FALSE),IFERROR(VLOOKUP(CONCATENATE($B32,\",\",O$18,\",,,\"),data[],7,FALSE),\"\"))","v":1.5212397062607411E-5},{"$f":"IFERROR(VLOOKUP(CONCATENATE($B32,\",\",P$18,\",,\",sel_region_code,\",\"),data[],7,FALSE),IFERROR(VLOOKUP(CONCATENATE($B32,\",\",P$18,\",,,\"),data[],7,FALSE),\"\"))","v":8.8738982865209894E-6},{"$f":"IFERROR(VLOOKUP(CONCATENATE($B32,\",\",Q$18,\",,\",sel_region_code,\",\"),data[],7,FALSE),IFERROR(VLOOKUP(CONCATENATE($B32,\",\",Q$18,\",,,\"),data[],7,FALSE),\"\"))","v":3.8030992656518527E-6},{"$f":"IFERROR(VLOOKUP(CONCATENATE($B32,\",\",R$18,\",,\",sel_region_code,\",\"),data[],7,FALSE),IFERROR(VLOOKUP(CONCATENATE($B32,\",\",R$18,\",,,\"),data[],7,FALSE),\"\"))","v":3.0424794125214817E-6},null,{"$f":"IFERROR(VLOOKUP(CONCATENATE($B32,\",\",T$18,\",,\",sel_region_code,\",\"),data[],7,FALSE),IFERROR(VLOOKUP(CONCATENATE($B32,\",\",T$18,\",,,\"),data[],7,FALSE),\"\"))","v":""},{"$f":"IFERROR(VLOOKUP(CONCATENATE($B32,\",\",U$18,\",,\",sel_region_code,\",\"),data[],7,FALSE),IFERROR(VLOOKUP(CONCATENATE($B32,\",\",U$18,\",,,\"),data[],7,FALSE),\"\"))","v":""},{"$f":"IFERROR(VLOOKUP(CONCATENATE($B32,\",\",V$18,\",,\",sel_region_code,\",\"),data[],7,FALSE),IFERROR(VLOOKUP(CONCATENATE($B32,\",\",V$18,\",,,\"),data[],7,FALSE),\"\"))","v":""}]
[null,null,{"$f":"IFERROR(VLOOKUP($B33,parameter[],2,FALSE),\"\")","v":""},{"$f":"IFERROR(VLOOKUP($B33,parameter[],3,FALSE),\"\")","v":""},{"$f":"IFERROR(VLOOKUP(CONCATENATE($B33,\",\",E$18,\",,\",sel_region_code,\",\"),data[],7,FALSE),IFERROR(VLOOKUP(CONCATENATE($B33,\",\",E$18,\",,,\"),data[],7,FALSE),\"\"))","v":""},null,{"$f":"IFERROR(VLOOKUP(CONCATENATE($B33,\",\",G$18,\",,\",sel_region_code,\",\"),data[],7,FALSE),IFERROR(VLOOKUP(CONCATENATE($B33,\",\",G$18,\",,,\"),data[],7,FALSE),\"\"))","v":""},{"$f":"IFERROR(VLOOKUP(CONCATENATE($B33,\",\",H$18,\",,\",sel_region_code,\",\"),data[],7,FALSE),IFERROR(VLOOKUP(CONCATENATE($B33,\",\",H$18,\",,,\"),data[],7,FALSE),\"\"))","v":""},{"$f":"IFERROR(VLOOKUP(CONCATENATE($B33,\",\",I$18,\",,\",sel_region_code,\",\"),data[],7,FALSE),IFERROR(VLOOKUP(CONCATENATE($B33,\",\",I$18,\",,,\"),data[],7,FALSE),\"\"))","v":""},{"$f":"IFERROR(VLOOKUP(CONCATENATE($B33,\",\",J$18,\",,\",sel_region_code,\",\"),data[],7,FALSE),IFERROR(VLOOKUP(CONCATENATE($B33,\",\",J$18,\",,,\"),data[],7,FALSE),\"\"))","v":""},{"$f":"IFERROR(VLOOKUP(CONCATENATE($B33,\",\",K$18,\",,\",sel_region_code,\",\"),data[],7,FALSE),IFERROR(VLOOKUP(CONCATENATE($B33,\",\",K$18,\",,,\"),data[],7,FALSE),\"\"))","v":""},{"$f":"IFERROR(VLOOKUP(CONCATENATE($B33,\",\",L$18,\",,\",sel_region_code,\",\"),data[],7,FALSE),IFERROR(VLOOKUP(CONCATENATE($B33,\",\",L$18,\",,,\"),data[],7,FALSE),\"\"))","v":""},{"$f":"IFERROR(VLOOKUP(CONCATENATE($B33,\",\",M$18,\",,\",sel_region_code,\",\"),data[],7,FALSE),IFERROR(VLOOKUP(CONCATENATE($B33,\",\",M$18,\",,,\"),data[],7,FALSE),\"\"))","v":""},{"$f":"IFERROR(VLOOKUP(CONCATENATE($B33,\",\",N$18,\",,\",sel_region_code,\",\"),data[],7,FALSE),IFERROR(VLOOKUP(CONCATENATE($B33,\",\",N$18,\",,,\"),data[],7,FALSE),\"\"))","v":""},{"$f":"IFERROR(VLOOKUP(CONCATENATE($B33,\",\",O$18,\",,\",sel_region_code,\",\"),data[],7,FALSE),IFERROR(VLOOKUP(CONCATENATE($B33,\",\",O$18,\",,,\"),data[],7,FALSE),\"\"))","v":""},{"$f":"IFERROR(VLOOKUP(CONCATENATE($B33,\",\",P$18,\",,\",sel_region_code,\",\"),data[],7,FALSE),IFERROR(VLOOKUP(CONCATENATE($B33,\",\",P$18,\",,,\"),data[],7,FALSE),\"\"))","v":""},{"$f":"IFERROR(VLOOKUP(CONCATENATE($B33,\",\",Q$18,\",,\",sel_region_code,\",\"),data[],7,FALSE),IFERROR(VLOOKUP(CONCATENATE($B33,\",\",Q$18,\",,,\"),data[],7,FALSE),\"\"))","v":""},{"$f":"IFERROR(VLOOKUP(CONCATENATE($B33,\",\",R$18,\",,\",sel_region_code,\",\"),data[],7,FALSE),IFERROR(VLOOKUP(CONCATENATE($B33,\",\",R$18,\",,,\"),data[],7,FALSE),\"\"))","v":""},null,{"$f":"IFERROR(VLOOKUP(CONCATENATE($B33,\",\",T$18,\",,\",sel_region_code,\",\"),data[],7,FALSE),IFERROR(VLOOKUP(CONCATENATE($B33,\",\",T$18,\",,,\"),data[],7,FALSE),\"\"))","v":""},{"$f":"IFERROR(VLOOKUP(CONCATENATE($B33,\",\",U$18,\",,\",sel_region_code,\",\"),data[],7,FALSE),IFERROR(VLOOKUP(CONCATENATE($B33,\",\",U$18,\",,,\"),data[],7,FALSE),\"\"))","v":""},{"$f":"IFERROR(VLOOKUP(CONCATENATE($B33,\",\",V$18,\",,\",sel_region_code,\",\"),data[],7,FALSE),IFERROR(VLOOKUP(CONCATENATE($B33,\",\",V$18,\",,,\"),data[],7,FALSE),\"\"))","v":""}]
[null,null,{"$f":"IFERROR(VLOOKUP($B34,parameter[],2,FALSE),\"\")","v":""},{"$f":"IFERROR(VLOOKUP($B34,parameter[],3,FALSE),\"\")","v":""},{"$f":"IFERROR(VLOOKUP(CONCATENATE($B34,\",\",E$18,\",,\",sel_region_code,\",\"),data[],7,FALSE),IFERROR(VLOOKUP(CONCATENATE($B34,\",\",E$18,\",,,\"),data[],7,FALSE),\"\"))","v":""},null,{"$f":"IFERROR(VLOOKUP(CONCATENATE($B34,\",\",G$18,\",,\",sel_region_code,\",\"),data[],7,FALSE),IFERROR(VLOOKUP(CONCATENATE($B34,\",\",G$18,\",,,\"),data[],7,FALSE),\"\"))","v":""},{"$f":"IFERROR(VLOOKUP(CONCATENATE($B34,\",\",H$18,\",,\",sel_region_code,\",\"),data[],7,FALSE),IFERROR(VLOOKUP(CONCATENATE($B34,\",\",H$18,\",,,\"),data[],7,FALSE),\"\"))","v":""},{"$f":"IFERROR(VLOOKUP(CONCATENATE($B34,\",\",I$18,\",,\",sel_region_code,\",\"),data[],7,FALSE),IFERROR(VLOOKUP(CONCATENATE($B34,\",\",I$18,\",,,\"),data[],7,FALSE),\"\"))","v":""},{"$f":"IFERROR(VLOOKUP(CONCATENATE($B34,\",\",J$18,\",,\",sel_region_code,\",\"),data[],7,FALSE),IFERROR(VLOOKUP(CONCATENATE($B34,\",\",J$18,\",,,\"),data[],7,FALSE),\"\"))","v":""},{"$f":"IFERROR(VLOOKUP(CONCATENATE($B34,\",\",K$18,\",,\",sel_region_code,\",\"),data[],7,FALSE),IFERROR(VLOOKUP(CONCATENATE($B34,\",\",K$18,\",,,\"),data[],7,FALSE),\"\"))","v":""},{"$f":"IFERROR(VLOOKUP(CONCATENATE($B34,\",\",L$18,\",,\",sel_region_code,\",\"),data[],7,FALSE),IFERROR(VLOOKUP(CONCATENATE($B34,\",\",L$18,\",,,\"),data[],7,FALSE),\"\"))","v":""},{"$f":"IFERROR(VLOOKUP(CONCATENATE($B34,\",\",M$18,\",,\",sel_region_code,\",\"),data[],7,FALSE),IFERROR(VLOOKUP(CONCATENATE($B34,\",\",M$18,\",,,\"),data[],7,FALSE),\"\"))","v":""},{"$f":"IFERROR(VLOOKUP(CONCATENATE($B34,\",\",N$18,\",,\",sel_region_code,\",\"),data[],7,FALSE),IFERROR(VLOOKUP(CONCATENATE($B34,\",\",N$18,\",,,\"),data[],7,FALSE),\"\"))","v":""},{"$f":"IFERROR(VLOOKUP(CONCATENATE($B34,\",\",O$18,\",,\",sel_region_code,\",\"),data[],7,FALSE),IFERROR(VLOOKUP(CONCATENATE($B34,\",\",O$18,\",,,\"),data[],7,FALSE),\"\"))","v":""},{"$f":"IFERROR(VLOOKUP(CONCATENATE($B34,\",\",P$18,\",,\",sel_region_code,\",\"),data[],7,FALSE),IFERROR(VLOOKUP(CONCATENATE($B34,\",\",P$18,\",,,\"),data[],7,FALSE),\"\"))","v":""},{"$f":"IFERROR(VLOOKUP(CONCATENATE($B34,\",\",Q$18,\",,\",sel_region_code,\",\"),data[],7,FALSE),IFERROR(VLOOKUP(CONCATENATE($B34,\",\",Q$18,\",,,\"),data[],7,FALSE),\"\"))","v":""},{"$f":"IFERROR(VLOOKUP(CONCATENATE($B34,\",\",R$18,\",,\",sel_region_code,\",\"),data[],7,FALSE),IFERROR(VLOOKUP(CONCATENATE($B34,\",\",R$18,\",,,\"),data[],7,FALSE),\"\"))","v":""},null,{"$f":"IFERROR(VLOOKUP(CONCATENATE($B34,\",\",T$18,\",,\",sel_region_code,\",\"),data[],7,FALSE),IFERROR(VLOOKUP(CONCATENATE($B34,\",\",T$18,\",,,\"),data[],7,FALSE),\"\"))","v":""},{"$f":"IFERROR(VLOOKUP(CONCATENATE($B34,\",\",U$18,\",,\",sel_region_code,\",\"),data[],7,FALSE),IFERROR(VLOOKUP(CONCATENATE($B34,\",\",U$18,\",,,\"),data[],7,FALSE),\"\"))","v":""},{"$f":"IFERROR(VLOOKUP(CONCATENATE($B34,\",\",V$18,\",,\",sel_region_code,\",\"),data[],7,FALSE),IFERROR(VLOOKUP(CONCATENATE($B34,\",\",V$18,\",,,\"),data[],7,FALSE),\"\"))","v":""}]
[null,null,{"$f":"IFERROR(VLOOKUP($B35,parameter[],2,FALSE),\"\")","v":""},{"$f":"IFERROR(VLOOKUP($B35,parameter[],3,FALSE),\"\")","v":""},{"$f":"IFERROR(VLOOKUP(CONCATENATE($B35,\",\",E$18,\",,\",sel_region_code,\",\"),data[],7,FALSE),IFERROR(VLOOKUP(CONCATENATE($B35,\",\",E$18,\",,,\"),data[],7,FALSE),\"\"))","v":""},null,{"$f":"IFERROR(VLOOKUP(CONCATENATE($B35,\",\",G$18,\",,\",sel_region_code,\",\"),data[],7,FALSE),IFERROR(VLOOKUP(CONCATENATE($B35,\",\",G$18,\",,,\"),data[],7,FALSE),\"\"))","v":""},{"$f":"IFERROR(VLOOKUP(CONCATENATE($B35,\",\",H$18,\",,\",sel_region_code,\",\"),data[],7,FALSE),IFERROR(VLOOKUP(CONCATENATE($B35,\",\",H$18,\",,,\"),data[],7,FALSE),\"\"))","v":""},{"$f":"IFERROR(VLOOKUP(CONCATENATE($B35,\",\",I$18,\",,\",sel_region_code,\",\"),data[],7,FALSE),IFERROR(VLOOKUP(CONCATENATE($B35,\",\",I$18,\",,,\"),data[],7,FALSE),\"\"))","v":""},{"$f":"IFERROR(VLOOKUP(CONCATENATE($B35,\",\",J$18,\",,\",sel_region_code,\",\"),data[],7,FALSE),IFERROR(VLOOKUP(CONCATENATE($B35,\",\",J$18,\",,,\"),data[],7,FALSE),\"\"))","v":""},{"$f":"IFERROR(VLOOKUP(CONCATENATE($B35,\",\",K$18,\",,\",sel_region_code,\",\"),data[],7,FALSE),IFERROR(VLOOKUP(CONCATENATE($B35,\",\",K$18,\",,,\"),data[],7,FALSE),\"\"))","v":""},{"$f":"IFERROR(VLOOKUP(CONCATENATE($B35,\",\",L$18,\",,\",sel_region_code,\",\"),data[],7,FALSE),IFERROR(VLOOKUP(CONCATENATE($B35,\",\",L$18,\",,,\"),data[],7,FALSE),\"\"))","v":""},{"$f":"IFERROR(VLOOKUP(CONCATENATE($B35,\",\",M$18,\",,\",sel_region_code,\",\"),data[],7,FALSE),IFERROR(VLOOKUP(CONCATENATE($B35,\",\",M$18,\",,,\"),data[],7,FALSE),\"\"))","v":""},{"$f":"IFERROR(VLOOKUP(CONCATENATE($B35,\",\",N$18,\",,\",sel_region_code,\",\"),data[],7,FALSE),IFERROR(VLOOKUP(CONCATENATE($B35,\",\",N$18,\",,,\"),data[],7,FALSE),\"\"))","v":""},{"$f":"IFERROR(VLOOKUP(CONCATENATE($B35,\",\",O$18,\",,\",sel_region_code,\",\"),data[],7,FALSE),IFERROR(VLOOKUP(CONCATENATE($B35,\",\",O$18,\",,,\"),data[],7,FALSE),\"\"))","v":""},{"$f":"IFERROR(VLOOKUP(CONCATENATE($B35,\",\",P$18,\",,\",sel_region_code,\",\"),data[],7,FALSE),IFERROR(VLOOKUP(CONCATENATE($B35,\",\",P$18,\",,,\"),data[],7,FALSE),\"\"))","v":""},{"$f":"IFERROR(VLOOKUP(CONCATENATE($B35,\",\",Q$18,\",,\",sel_region_code,\",\"),data[],7,FALSE),IFERROR(VLOOKUP(CONCATENATE($B35,\",\",Q$18,\",,,\"),data[],7,FALSE),\"\"))","v":""},{"$f":"IFERROR(VLOOKUP(CONCATENATE($B35,\",\",R$18,\",,\",sel_region_code,\",\"),data[],7,FALSE),IFERROR(VLOOKUP(CONCATENATE($B35,\",\",R$18,\",,,\"),data[],7,FALSE),\"\"))","v":""},null,{"$f":"IFERROR(VLOOKUP(CONCATENATE($B35,\",\",T$18,\",,\",sel_region_code,\",\"),data[],7,FALSE),IFERROR(VLOOKUP(CONCATENATE($B35,\",\",T$18,\",,,\"),data[],7,FALSE),\"\"))","v":""},{"$f":"IFERROR(VLOOKUP(CONCATENATE($B35,\",\",U$18,\",,\",sel_region_code,\",\"),data[],7,FALSE),IFERROR(VLOOKUP(CONCATENATE($B35,\",\",U$18,\",,,\"),data[],7,FALSE),\"\"))","v":""},{"$f":"IFERROR(VLOOKUP(CONCATENATE($B35,\",\",V$18,\",,\",sel_region_code,\",\"),data[],7,FALSE),IFERROR(VLOOKUP(CONCATENATE($B35,\",\",V$18,\",,,\"),data[],7,FALSE),\"\"))","v":""}]
[null,null,{"$f":"IFERROR(VLOOKUP($B36,parameter[],2,FALSE),\"\")","v":""},{"$f":"IFERROR(VLOOKUP($B36,parameter[],3,FALSE),\"\")","v":""},{"$f":"IFERROR(VLOOKUP(CONCATENATE($B36,\",\",E$18,\",,\",sel_region_code,\",\"),data[],7,FALSE),IFERROR(VLOOKUP(CONCATENATE($B36,\",\",E$18,\",,,\"),data[],7,FALSE),\"\"))","v":""},null,{"$f":"IFERROR(VLOOKUP(CONCATENATE($B36,\",\",G$18,\",,\",sel_region_code,\",\"),data[],7,FALSE),IFERROR(VLOOKUP(CONCATENATE($B36,\",\",G$18,\",,,\"),data[],7,FALSE),\"\"))","v":""},{"$f":"IFERROR(VLOOKUP(CONCATENATE($B36,\",\",H$18,\",,\",sel_region_code,\",\"),data[],7,FALSE),IFERROR(VLOOKUP(CONCATENATE($B36,\",\",H$18,\",,,\"),data[],7,FALSE),\"\"))","v":""},{"$f":"IFERROR(VLOOKUP(CONCATENATE($B36,\",\",I$18,\",,\",sel_region_code,\",\"),data[],7,FALSE),IFERROR(VLOOKUP(CONCATENATE($B36,\",\",I$18,\",,,\"),data[],7,FALSE),\"\"))","v":""},{"$f":"IFERROR(VLOOKUP(CONCATENATE($B36,\",\",J$18,\",,\",sel_region_code,\",\"),data[],7,FALSE),IFERROR(VLOOKUP(CONCATENATE($B36,\",\",J$18,\",,,\"),data[],7,FALSE),\"\"))","v":""},{"$f":"IFERROR(VLOOKUP(CONCATENATE($B36,\",\",K$18,\",,\",sel_region_code,\",\"),data[],7,FALSE),IFERROR(VLOOKUP(CONCATENATE($B36,\",\",K$18,\",,,\"),data[],7,FALSE),\"\"))","v":""},{"$f":"IFERROR(VLOOKUP(CONCATENATE($B36,\",\",L$18,\",,\",sel_region_code,\",\"),data[],7,FALSE),IFERROR(VLOOKUP(CONCATENATE($B36,\",\",L$18,\",,,\"),data[],7,FALSE),\"\"))","v":""},{"$f":"IFERROR(VLOOKUP(CONCATENATE($B36,\",\",M$18,\",,\",sel_region_code,\",\"),data[],7,FALSE),IFERROR(VLOOKUP(CONCATENATE($B36,\",\",M$18,\",,,\"),data[],7,FALSE),\"\"))","v":""},{"$f":"IFERROR(VLOOKUP(CONCATENATE($B36,\",\",N$18,\",,\",sel_region_code,\",\"),data[],7,FALSE),IFERROR(VLOOKUP(CONCATENATE($B36,\",\",N$18,\",,,\"),data[],7,FALSE),\"\"))","v":""},{"$f":"IFERROR(VLOOKUP(CONCATENATE($B36,\",\",O$18,\",,\",sel_region_code,\",\"),data[],7,FALSE),IFERROR(VLOOKUP(CONCATENATE($B36,\",\",O$18,\",,,\"),data[],7,FALSE),\"\"))","v":""},{"$f":"IFERROR(VLOOKUP(CONCATENATE($B36,\",\",P$18,\",,\",sel_region_code,\",\"),data[],7,FALSE),IFERROR(VLOOKUP(CONCATENATE($B36,\",\",P$18,\",,,\"),data[],7,FALSE),\"\"))","v":""},{"$f":"IFERROR(VLOOKUP(CONCATENATE($B36,\",\",Q$18,\",,\",sel_region_code,\",\"),data[],7,FALSE),IFERROR(VLOOKUP(CONCATENATE($B36,\",\",Q$18,\",,,\"),data[],7,FALSE),\"\"))","v":""},{"$f":"IFERROR(VLOOKUP(CONCATENATE($B36,\",\",R$18,\",,\",sel_region_code,\",\"),data[],7,FALSE),IFERROR(VLOOKUP(CONCATENATE($B36,\",\",R$18,\",,,\"),data[],7,FALSE),\"\"))","v":""},null,{"$f":"IFERROR(VLOOKUP(CONCATENATE($B36,\",\",T$18,\",,\",sel_region_code,\",\"),data[],7,FALSE),IFERROR(VLOOKUP(CONCATENATE($B36,\",\",T$18,\",,,\"),data[],7,FALSE),\"\"))","v":""},{"$f":"IFERROR(VLOOKUP(CONCATENATE($B36,\",\",U$18,\",,\",sel_region_code,\",\"),data[],7,FALSE),IFERROR(VLOOKUP(CONCATENATE($B36,\",\",U$18,\",,,\"),data[],7,FALSE),\"\"))","v":""},{"$f":"IFERROR(VLOOKUP(CONCATENATE($B36,\",\",V$18,\",,\",sel_region_code,\",\"),data[],7,FALSE),IFERROR(VLOOKUP(CONCATENATE($B36,\",\",V$18,\",,,\"),data[],7,FALSE),\"\"))","v":""}]
[null,null,{"$f":"IFERROR(VLOOKUP($B37,parameter[],2,FALSE),\"\")","v":""},{"$f":"IFERROR(VLOOKUP($B37,parameter[],3,FALSE),\"\")","v":""},{"$f":"IFERROR(VLOOKUP(CONCATENATE($B37,\",\",E$18,\",,\",sel_region_code,\",\"),data[],7,FALSE),IFERROR(VLOOKUP(CONCATENATE($B37,\",\",E$18,\",,,\"),data[],7,FALSE),\"\"))","v":""},null,{"$f":"IFERROR(VLOOKUP(CONCATENATE($B37,\",\",G$18,\",,\",sel_region_code,\",\"),data[],7,FALSE),IFERROR(VLOOKUP(CONCATENATE($B37,\",\",G$18,\",,,\"),data[],7,FALSE),\"\"))","v":""},{"$f":"IFERROR(VLOOKUP(CONCATENATE($B37,\",\",H$18,\",,\",sel_region_code,\",\"),data[],7,FALSE),IFERROR(VLOOKUP(CONCATENATE($B37,\",\",H$18,\",,,\"),data[],7,FALSE),\"\"))","v":""},{"$f":"IFERROR(VLOOKUP(CONCATENATE($B37,\",\",I$18,\",,\",sel_region_code,\",\"),data[],7,FALSE),IFERROR(VLOOKUP(CONCATENATE($B37,\",\",I$18,\",,,\"),data[],7,FALSE),\"\"))","v":""},{"$f":"IFERROR(VLOOKUP(CONCATENATE($B37,\",\",J$18,\",,\",sel_region_code,\",\"),data[],7,FALSE),IFERROR(VLOOKUP(CONCATENATE($B37,\",\",J$18,\",,,\"),data[],7,FALSE),\"\"))","v":""},{"$f":"IFERROR(VLOOKUP(CONCATENATE($B37,\",\",K$18,\",,\",sel_region_code,\",\"),data[],7,FALSE),IFERROR(VLOOKUP(CONCATENATE($B37,\",\",K$18,\",,,\"),data[],7,FALSE),\"\"))","v":""},{"$f":"IFERROR(VLOOKUP(CONCATENATE($B37,\",\",L$18,\",,\",sel_region_code,\",\"),data[],7,FALSE),IFERROR(VLOOKUP(CONCATENATE($B37,\",\",L$18,\",,,\"),data[],7,FALSE),\"\"))","v":""},{"$f":"IFERROR(VLOOKUP(CONCATENATE($B37,\",\",M$18,\",,\",sel_region_code,\",\"),data[],7,FALSE),IFERROR(VLOOKUP(CONCATENATE($B37,\",\",M$18,\",,,\"),data[],7,FALSE),\"\"))","v":""},{"$f":"IFERROR(VLOOKUP(CONCATENATE($B37,\",\",N$18,\",,\",sel_region_code,\",\"),data[],7,FALSE),IFERROR(VLOOKUP(CONCATENATE($B37,\",\",N$18,\",,,\"),data[],7,FALSE),\"\"))","v":""},{"$f":"IFERROR(VLOOKUP(CONCATENATE($B37,\",\",O$18,\",,\",sel_region_code,\",\"),data[],7,FALSE),IFERROR(VLOOKUP(CONCATENATE($B37,\",\",O$18,\",,,\"),data[],7,FALSE),\"\"))","v":""},{"$f":"IFERROR(VLOOKUP(CONCATENATE($B37,\",\",P$18,\",,\",sel_region_code,\",\"),data[],7,FALSE),IFERROR(VLOOKUP(CONCATENATE($B37,\",\",P$18,\",,,\"),data[],7,FALSE),\"\"))","v":""},{"$f":"IFERROR(VLOOKUP(CONCATENATE($B37,\",\",Q$18,\",,\",sel_region_code,\",\"),data[],7,FALSE),IFERROR(VLOOKUP(CONCATENATE($B37,\",\",Q$18,\",,,\"),data[],7,FALSE),\"\"))","v":""},{"$f":"IFERROR(VLOOKUP(CONCATENATE($B37,\",\",R$18,\",,\",sel_region_code,\",\"),data[],7,FALSE),IFERROR(VLOOKUP(CONCATENATE($B37,\",\",R$18,\",,,\"),data[],7,FALSE),\"\"))","v":""},null,{"$f":"IFERROR(VLOOKUP(CONCATENATE($B37,\",\",T$18,\",,\",sel_region_code,\",\"),data[],7,FALSE),IFERROR(VLOOKUP(CONCATENATE($B37,\",\",T$18,\",,,\"),data[],7,FALSE),\"\"))","v":""},{"$f":"IFERROR(VLOOKUP(CONCATENATE($B37,\",\",U$18,\",,\",sel_region_code,\",\"),data[],7,FALSE),IFERROR(VLOOKUP(CONCATENATE($B37,\",\",U$18,\",,,\"),data[],7,FALSE),\"\"))","v":""},{"$f":"IFERROR(VLOOKUP(CONCATENATE($B37,\",\",V$18,\",,\",sel_region_code,\",\"),data[],7,FALSE),IFERROR(VLOOKUP(CONCATENATE($B37,\",\",V$18,\",,,\"),data[],7,FALSE),\"\"))","v":""}]
[null,null,{"$f":"IFERROR(VLOOKUP($B38,parameter[],2,FALSE),\"\")","v":""},{"$f":"IFERROR(VLOOKUP($B38,parameter[],3,FALSE),\"\")","v":""},{"$f":"IFERROR(VLOOKUP(CONCATENATE($B38,\",\",E$18,\",,\",sel_region_code,\",\"),data[],7,FALSE),IFERROR(VLOOKUP(CONCATENATE($B38,\",\",E$18,\",,,\"),data[],7,FALSE),\"\"))","v":""},null,{"$f":"IFERROR(VLOOKUP(CONCATENATE($B38,\",\",G$18,\",,\",sel_region_code,\",\"),data[],7,FALSE),IFERROR(VLOOKUP(CONCATENATE($B38,\",\",G$18,\",,,\"),data[],7,FALSE),\"\"))","v":""},{"$f":"IFERROR(VLOOKUP(CONCATENATE($B38,\",\",H$18,\",,\",sel_region_code,\",\"),data[],7,FALSE),IFERROR(VLOOKUP(CONCATENATE($B38,\",\",H$18,\",,,\"),data[],7,FALSE),\"\"))","v":""},{"$f":"IFERROR(VLOOKUP(CONCATENATE($B38,\",\",I$18,\",,\",sel_region_code,\",\"),data[],7,FALSE),IFERROR(VLOOKUP(CONCATENATE($B38,\",\",I$18,\",,,\"),data[],7,FALSE),\"\"))","v":""},{"$f":"IFERROR(VLOOKUP(CONCATENATE($B38,\",\",J$18,\",,\",sel_region_code,\",\"),data[],7,FALSE),IFERROR(VLOOKUP(CONCATENATE($B38,\",\",J$18,\",,,\"),data[],7,FALSE),\"\"))","v":""},{"$f":"IFERROR(VLOOKUP(CONCATENATE($B38,\",\",K$18,\",,\",sel_region_code,\",\"),data[],7,FALSE),IFERROR(VLOOKUP(CONCATENATE($B38,\",\",K$18,\",,,\"),data[],7,FALSE),\"\"))","v":""},{"$f":"IFERROR(VLOOKUP(CONCATENATE($B38,\",\",L$18,\",,\",sel_region_code,\",\"),data[],7,FALSE),IFERROR(VLOOKUP(CONCATENATE($B38,\",\",L$18,\",,,\"),data[],7,FALSE),\"\"))","v":""},{"$f":"IFERROR(VLOOKUP(CONCATENATE($B38,\",\",M$18,\",,\",sel_region_code,\",\"),data[],7,FALSE),IFERROR(VLOOKUP(CONCATENATE($B38,\",\",M$18,\",,,\"),data[],7,FALSE),\"\"))","v":""},{"$f":"IFERROR(VLOOKUP(CONCATENATE($B38,\",\",N$18,\",,\",sel_region_code,\",\"),data[],7,FALSE),IFERROR(VLOOKUP(CONCATENATE($B38,\",\",N$18,\",,,\"),data[],7,FALSE),\"\"))","v":""},{"$f":"IFERROR(VLOOKUP(CONCATENATE($B38,\",\",O$18,\",,\",sel_region_code,\",\"),data[],7,FALSE),IFERROR(VLOOKUP(CONCATENATE($B38,\",\",O$18,\",,,\"),data[],7,FALSE),\"\"))","v":""},{"$f":"IFERROR(VLOOKUP(CONCATENATE($B38,\",\",P$18,\",,\",sel_region_code,\",\"),data[],7,FALSE),IFERROR(VLOOKUP(CONCATENATE($B38,\",\",P$18,\",,,\"),data[],7,FALSE),\"\"))","v":""},{"$f":"IFERROR(VLOOKUP(CONCATENATE($B38,\",\",Q$18,\",,\",sel_region_code,\",\"),data[],7,FALSE),IFERROR(VLOOKUP(CONCATENATE($B38,\",\",Q$18,\",,,\"),data[],7,FALSE),\"\"))","v":""},{"$f":"IFERROR(VLOOKUP(CONCATENATE($B38,\",\",R$18,\",,\",sel_region_code,\",\"),data[],7,FALSE),IFERROR(VLOOKUP(CONCATENATE($B38,\",\",R$18,\",,,\"),data[],7,FALSE),\"\"))","v":""},null,{"$f":"IFERROR(VLOOKUP(CONCATENATE($B38,\",\",T$18,\",,\",sel_region_code,\",\"),data[],7,FALSE),IFERROR(VLOOKUP(CONCATENATE($B38,\",\",T$18,\",,,\"),data[],7,FALSE),\"\"))","v":""},{"$f":"IFERROR(VLOOKUP(CONCATENATE($B38,\",\",U$18,\",,\",sel_region_code,\",\"),data[],7,FALSE),IFERROR(VLOOKUP(CONCATENATE($B38,\",\",U$18,\",,,\"),data[],7,FALSE),\"\"))","v":""},{"$f":"IFERROR(VLOOKUP(CONCATENATE($B38,\",\",V$18,\",,\",sel_region_code,\",\"),data[],7,FALSE),IFERROR(VLOOKUP(CONCATENATE($B38,\",\",V$18,\",,,\"),data[],7,FALSE),\"\"))","v":""}]
[null,null,{"$f":"IFERROR(VLOOKUP($B39,parameter[],2,FALSE),\"\")","v":""},{"$f":"IFERROR(VLOOKUP($B39,parameter[],3,FALSE),\"\")","v":""},{"$f":"IFERROR(VLOOKUP(CONCATENATE($B39,\",\",E$18,\",,\",sel_region_code,\",\"),data[],7,FALSE),IFERROR(VLOOKUP(CONCATENATE($B39,\",\",E$18,\",,,\"),data[],7,FALSE),\"\"))","v":""},null,{"$f":"IFERROR(VLOOKUP(CONCATENATE($B39,\",\",G$18,\",,\",sel_region_code,\",\"),data[],7,FALSE),IFERROR(VLOOKUP(CONCATENATE($B39,\",\",G$18,\",,,\"),data[],7,FALSE),\"\"))","v":""},{"$f":"IFERROR(VLOOKUP(CONCATENATE($B39,\",\",H$18,\",,\",sel_region_code,\",\"),data[],7,FALSE),IFERROR(VLOOKUP(CONCATENATE($B39,\",\",H$18,\",,,\"),data[],7,FALSE),\"\"))","v":""},{"$f":"IFERROR(VLOOKUP(CONCATENATE($B39,\",\",I$18,\",,\",sel_region_code,\",\"),data[],7,FALSE),IFERROR(VLOOKUP(CONCATENATE($B39,\",\",I$18,\",,,\"),data[],7,FALSE),\"\"))","v":""},{"$f":"IFERROR(VLOOKUP(CONCATENATE($B39,\",\",J$18,\",,\",sel_region_code,\",\"),data[],7,FALSE),IFERROR(VLOOKUP(CONCATENATE($B39,\",\",J$18,\",,,\"),data[],7,FALSE),\"\"))","v":""},{"$f":"IFERROR(VLOOKUP(CONCATENATE($B39,\",\",K$18,\",,\",sel_region_code,\",\"),data[],7,FALSE),IFERROR(VLOOKUP(CONCATENATE($B39,\",\",K$18,\",,,\"),data[],7,FALSE),\"\"))","v":""},{"$f":"IFERROR(VLOOKUP(CONCATENATE($B39,\",\",L$18,\",,\",sel_region_code,\",\"),data[],7,FALSE),IFERROR(VLOOKUP(CONCATENATE($B39,\",\",L$18,\",,,\"),data[],7,FALSE),\"\"))","v":""},{"$f":"IFERROR(VLOOKUP(CONCATENATE($B39,\",\",M$18,\",,\",sel_region_code,\",\"),data[],7,FALSE),IFERROR(VLOOKUP(CONCATENATE($B39,\",\",M$18,\",,,\"),data[],7,FALSE),\"\"))","v":""},{"$f":"IFERROR(VLOOKUP(CONCATENATE($B39,\",\",N$18,\",,\",sel_region_code,\",\"),data[],7,FALSE),IFERROR(VLOOKUP(CONCATENATE($B39,\",\",N$18,\",,,\"),data[],7,FALSE),\"\"))","v":""},{"$f":"IFERROR(VLOOKUP(CONCATENATE($B39,\",\",O$18,\",,\",sel_region_code,\",\"),data[],7,FALSE),IFERROR(VLOOKUP(CONCATENATE($B39,\",\",O$18,\",,,\"),data[],7,FALSE),\"\"))","v":""},{"$f":"IFERROR(VLOOKUP(CONCATENATE($B39,\",\",P$18,\",,\",sel_region_code,\",\"),data[],7,FALSE),IFERROR(VLOOKUP(CONCATENATE($B39,\",\",P$18,\",,,\"),data[],7,FALSE),\"\"))","v":""},{"$f":"IFERROR(VLOOKUP(CONCATENATE($B39,\",\",Q$18,\",,\",sel_region_code,\",\"),data[],7,FALSE),IFERROR(VLOOKUP(CONCATENATE($B39,\",\",Q$18,\",,,\"),data[],7,FALSE),\"\"))","v":""},{"$f":"IFERROR(VLOOKUP(CONCATENATE($B39,\",\",R$18,\",,\",sel_region_code,\",\"),data[],7,FALSE),IFERROR(VLOOKUP(CONCATENATE($B39,\",\",R$18,\",,,\"),data[],7,FALSE),\"\"))","v":""},null,{"$f":"IFERROR(VLOOKUP(CONCATENATE($B39,\",\",T$18,\",,\",sel_region_code,\",\"),data[],7,FALSE),IFERROR(VLOOKUP(CONCATENATE($B39,\",\",T$18,\",,,\"),data[],7,FALSE),\"\"))","v":""},{"$f":"IFERROR(VLOOKUP(CONCATENATE($B39,\",\",U$18,\",,\",sel_region_code,\",\"),data[],7,FALSE),IFERROR(VLOOKUP(CONCATENATE($B39,\",\",U$18,\",,,\"),data[],7,FALSE),\"\"))","v":""},{"$f":"IFERROR(VLOOKUP(CONCATENATE($B39,\",\",V$18,\",,\",sel_region_code,\",\"),data[],7,FALSE),IFERROR(VLOOKUP(CONCATENATE($B39,\",\",V$18,\",,,\"),data[],7,FALSE),\"\"))","v":""}]
[null,null,{"$f":"IFERROR(VLOOKUP($B40,parameter[],2,FALSE),\"\")","v":""},{"$f":"IFERROR(VLOOKUP($B40,parameter[],3,FALSE),\"\")","v":""},{"$f":"IFERROR(VLOOKUP(CONCATENATE($B40,\",\",E$18,\",,\",sel_region_code,\",\"),data[],7,FALSE),IFERROR(VLOOKUP(CONCATENATE($B40,\",\",E$18,\",,,\"),data[],7,FALSE),\"\"))","v":""},null,{"$f":"IFERROR(VLOOKUP(CONCATENATE($B40,\",\",G$18,\",,\",sel_region_code,\",\"),data[],7,FALSE),IFERROR(VLOOKUP(CONCATENATE($B40,\",\",G$18,\",,,\"),data[],7,FALSE),\"\"))","v":""},{"$f":"IFERROR(VLOOKUP(CONCATENATE($B40,\",\",H$18,\",,\",sel_region_code,\",\"),data[],7,FALSE),IFERROR(VLOOKUP(CONCATENATE($B40,\",\",H$18,\",,,\"),data[],7,FALSE),\"\"))","v":""},{"$f":"IFERROR(VLOOKUP(CONCATENATE($B40,\",\",I$18,\",,\",sel_region_code,\",\"),data[],7,FALSE),IFERROR(VLOOKUP(CONCATENATE($B40,\",\",I$18,\",,,\"),data[],7,FALSE),\"\"))","v":""},{"$f":"IFERROR(VLOOKUP(CONCATENATE($B40,\",\",J$18,\",,\",sel_region_code,\",\"),data[],7,FALSE),IFERROR(VLOOKUP(CONCATENATE($B40,\",\",J$18,\",,,\"),data[],7,FALSE),\"\"))","v":""},{"$f":"IFERROR(VLOOKUP(CONCATENATE($B40,\",\",K$18,\",,\",sel_region_code,\",\"),data[],7,FALSE),IFERROR(VLOOKUP(CONCATENATE($B40,\",\",K$18,\",,,\"),data[],7,FALSE),\"\"))","v":""},{"$f":"IFERROR(VLOOKUP(CONCATENATE($B40,\",\",L$18,\",,\",sel_region_code,\",\"),data[],7,FALSE),IFERROR(VLOOKUP(CONCATENATE($B40,\",\",L$18,\",,,\"),data[],7,FALSE),\"\"))","v":""},{"$f":"IFERROR(VLOOKUP(CONCATENATE($B40,\",\",M$18,\",,\",sel_region_code,\",\"),data[],7,FALSE),IFERROR(VLOOKUP(CONCATENATE($B40,\",\",M$18,\",,,\"),data[],7,FALSE),\"\"))","v":""},{"$f":"IFERROR(VLOOKUP(CONCATENATE($B40,\",\",N$18,\",,\",sel_region_code,\",\"),data[],7,FALSE),IFERROR(VLOOKUP(CONCATENATE($B40,\",\",N$18,\",,,\"),data[],7,FALSE),\"\"))","v":""},{"$f":"IFERROR(VLOOKUP(CONCATENATE($B40,\",\",O$18,\",,\",sel_region_code,\",\"),data[],7,FALSE),IFERROR(VLOOKUP(CONCATENATE($B40,\",\",O$18,\",,,\"),data[],7,FALSE),\"\"))","v":""},{"$f":"IFERROR(VLOOKUP(CONCATENATE($B40,\",\",P$18,\",,\",sel_region_code,\",\"),data[],7,FALSE),IFERROR(VLOOKUP(CONCATENATE($B40,\",\",P$18,\",,,\"),data[],7,FALSE),\"\"))","v":""},{"$f":"IFERROR(VLOOKUP(CONCATENATE($B40,\",\",Q$18,\",,\",sel_region_code,\",\"),data[],7,FALSE),IFERROR(VLOOKUP(CONCATENATE($B40,\",\",Q$18,\",,,\"),data[],7,FALSE),\"\"))","v":""},{"$f":"IFERROR(VLOOKUP(CONCATENATE($B40,\",\",R$18,\",,\",sel_region_code,\",\"),data[],7,FALSE),IFERROR(VLOOKUP(CONCATENATE($B40,\",\",R$18,\",,,\"),data[],7,FALSE),\"\"))","v":""},null,{"$f":"IFERROR(VLOOKUP(CONCATENATE($B40,\",\",T$18,\",,\",sel_region_code,\",\"),data[],7,FALSE),IFERROR(VLOOKUP(CONCATENATE($B40,\",\",T$18,\",,,\"),data[],7,FALSE),\"\"))","v":""},{"$f":"IFERROR(VLOOKUP(CONCATENATE($B40,\",\",U$18,\",,\",sel_region_code,\",\"),data[],7,FALSE),IFERROR(VLOOKUP(CONCATENATE($B40,\",\",U$18,\",,,\"),data[],7,FALSE),\"\"))","v":""},{"$f":"IFERROR(VLOOKUP(CONCATENATE($B40,\",\",V$18,\",,\",sel_region_code,\",\"),data[],7,FALSE),IFERROR(VLOOKUP(CONCATENATE($B40,\",\",V$18,\",,,\"),data[],7,FALSE),\"\"))","v":""}]
[null,null,{"$f":"IFERROR(VLOOKUP($B41,parameter[],2,FALSE),\"\")","v":""},{"$f":"IFERROR(VLOOKUP($B41,parameter[],3,FALSE),\"\")","v":""},{"$f":"IFERROR(VLOOKUP(CONCATENATE($B41,\",\",E$18,\",,\",sel_region_code,\",\"),data[],7,FALSE),IFERROR(VLOOKUP(CONCATENATE($B41,\",\",E$18,\",,,\"),data[],7,FALSE),\"\"))","v":""},null,{"$f":"IFERROR(VLOOKUP(CONCATENATE($B41,\",\",G$18,\",,\",sel_region_code,\",\"),data[],7,FALSE),IFERROR(VLOOKUP(CONCATENATE($B41,\",\",G$18,\",,,\"),data[],7,FALSE),\"\"))","v":""},{"$f":"IFERROR(VLOOKUP(CONCATENATE($B41,\",\",H$18,\",,\",sel_region_code,\",\"),data[],7,FALSE),IFERROR(VLOOKUP(CONCATENATE($B41,\",\",H$18,\",,,\"),data[],7,FALSE),\"\"))","v":""},{"$f":"IFERROR(VLOOKUP(CONCATENATE($B41,\",\",I$18,\",,\",sel_region_code,\",\"),data[],7,FALSE),IFERROR(VLOOKUP(CONCATENATE($B41,\",\",I$18,\",,,\"),data[],7,FALSE),\"\"))","v":""},{"$f":"IFERROR(VLOOKUP(CONCATENATE($B41,\",\",J$18,\",,\",sel_region_code,\",\"),data[],7,FALSE),IFERROR(VLOOKUP(CONCATENATE($B41,\",\",J$18,\",,,\"),data[],7,FALSE),\"\"))","v":""},{"$f":"IFERROR(VLOOKUP(CONCATENATE($B41,\",\",K$18,\",,\",sel_region_code,\",\"),data[],7,FALSE),IFERROR(VLOOKUP(CONCATENATE($B41,\",\",K$18,\",,,\"),data[],7,FALSE),\"\"))","v":""},{"$f":"IFERROR(VLOOKUP(CONCATENATE($B41,\",\",L$18,\",,\",sel_region_code,\",\"),data[],7,FALSE),IFERROR(VLOOKUP(CONCATENATE($B41,\",\",L$18,\",,,\"),data[],7,FALSE),\"\"))","v":""},{"$f":"IFERROR(VLOOKUP(CONCATENATE($B41,\",\",M$18,\",,\",sel_region_code,\",\"),data[],7,FALSE),IFERROR(VLOOKUP(CONCATENATE($B41,\",\",M$18,\",,,\"),data[],7,FALSE),\"\"))","v":""},{"$f":"IFERROR(VLOOKUP(CONCATENATE($B41,\",\",N$18,\",,\",sel_region_code,\",\"),data[],7,FALSE),IFERROR(VLOOKUP(CONCATENATE($B41,\",\",N$18,\",,,\"),data[],7,FALSE),\"\"))","v":""},{"$f":"IFERROR(VLOOKUP(CONCATENATE($B41,\",\",O$18,\",,\",sel_region_code,\",\"),data[],7,FALSE),IFERROR(VLOOKUP(CONCATENATE($B41,\",\",O$18,\",,,\"),data[],7,FALSE),\"\"))","v":""},{"$f":"IFERROR(VLOOKUP(CONCATENATE($B41,\",\",P$18,\",,\",sel_region_code,\",\"),data[],7,FALSE),IFERROR(VLOOKUP(CONCATENATE($B41,\",\",P$18,\",,,\"),data[],7,FALSE),\"\"))","v":""},{"$f":"IFERROR(VLOOKUP(CONCATENATE($B41,\",\",Q$18,\",,\",sel_region_code,\",\"),data[],7,FALSE),IFERROR(VLOOKUP(CONCATENATE($B41,\",\",Q$18,\",,,\"),data[],7,FALSE),\"\"))","v":""},{"$f":"IFERROR(VLOOKUP(CONCATENATE($B41,\",\",R$18,\",,\",sel_region_code,\",\"),data[],7,FALSE),IFERROR(VLOOKUP(CONCATENATE($B41,\",\",R$18,\",,,\"),data[],7,FALSE),\"\"))","v":""},null,{"$f":"IFERROR(VLOOKUP(CONCATENATE($B41,\",\",T$18,\",,\",sel_region_code,\",\"),data[],7,FALSE),IFERROR(VLOOKUP(CONCATENATE($B41,\",\",T$18,\",,,\"),data[],7,FALSE),\"\"))","v":""},{"$f":"IFERROR(VLOOKUP(CONCATENATE($B41,\",\",U$18,\",,\",sel_region_code,\",\"),data[],7,FALSE),IFERROR(VLOOKUP(CONCATENATE($B41,\",\",U$18,\",,,\"),data[],7,FALSE),\"\"))","v":""},{"$f":"IFERROR(VLOOKUP(CONCATENATE($B41,\",\",V$18,\",,\",sel_region_code,\",\"),data[],7,FALSE),IFERROR(VLOOKUP(CONCATENATE($B41,\",\",V$18,\",,,\"),data[],7,FALSE),\"\"))","v":""}]
[null,null,{"$f":"IFERROR(VLOOKUP($B42,parameter[],2,FALSE),\"\")","v":""},{"$f":"IFERROR(VLOOKUP($B42,parameter[],3,FALSE),\"\")","v":""},{"$f":"IFERROR(VLOOKUP(CONCATENATE($B42,\",\",E$18,\",,\",sel_region_code,\",\"),data[],7,FALSE),IFERROR(VLOOKUP(CONCATENATE($B42,\",\",E$18,\",,,\"),data[],7,FALSE),\"\"))","v":""},null,{"$f":"IFERROR(VLOOKUP(CONCATENATE($B42,\",\",G$18,\",,\",sel_region_code,\",\"),data[],7,FALSE),IFERROR(VLOOKUP(CONCATENATE($B42,\",\",G$18,\",,,\"),data[],7,FALSE),\"\"))","v":""},{"$f":"IFERROR(VLOOKUP(CONCATENATE($B42,\",\",H$18,\",,\",sel_region_code,\",\"),data[],7,FALSE),IFERROR(VLOOKUP(CONCATENATE($B42,\",\",H$18,\",,,\"),data[],7,FALSE),\"\"))","v":""},{"$f":"IFERROR(VLOOKUP(CONCATENATE($B42,\",\",I$18,\",,\",sel_region_code,\",\"),data[],7,FALSE),IFERROR(VLOOKUP(CONCATENATE($B42,\",\",I$18,\",,,\"),data[],7,FALSE),\"\"))","v":""},{"$f":"IFERROR(VLOOKUP(CONCATENATE($B42,\",\",J$18,\",,\",sel_region_code,\",\"),data[],7,FALSE),IFERROR(VLOOKUP(CONCATENATE($B42,\",\",J$18,\",,,\"),data[],7,FALSE),\"\"))","v":""},{"$f":"IFERROR(VLOOKUP(CONCATENATE($B42,\",\",K$18,\",,\",sel_region_code,\",\"),data[],7,FALSE),IFERROR(VLOOKUP(CONCATENATE($B42,\",\",K$18,\",,,\"),data[],7,FALSE),\"\"))","v":""},{"$f":"IFERROR(VLOOKUP(CONCATENATE($B42,\",\",L$18,\",,\",sel_region_code,\",\"),data[],7,FALSE),IFERROR(VLOOKUP(CONCATENATE($B42,\",\",L$18,\",,,\"),data[],7,FALSE),\"\"))","v":""},{"$f":"IFERROR(VLOOKUP(CONCATENATE($B42,\",\",M$18,\",,\",sel_region_code,\",\"),data[],7,FALSE),IFERROR(VLOOKUP(CONCATENATE($B42,\",\",M$18,\",,,\"),data[],7,FALSE),\"\"))","v":""},{"$f":"IFERROR(VLOOKUP(CONCATENATE($B42,\",\",N$18,\",,\",sel_region_code,\",\"),data[],7,FALSE),IFERROR(VLOOKUP(CONCATENATE($B42,\",\",N$18,\",,,\"),data[],7,FALSE),\"\"))","v":""},{"$f":"IFERROR(VLOOKUP(CONCATENATE($B42,\",\",O$18,\",,\",sel_region_code,\",\"),data[],7,FALSE),IFERROR(VLOOKUP(CONCATENATE($B42,\",\",O$18,\",,,\"),data[],7,FALSE),\"\"))","v":""},{"$f":"IFERROR(VLOOKUP(CONCATENATE($B42,\",\",P$18,\",,\",sel_region_code,\",\"),data[],7,FALSE),IFERROR(VLOOKUP(CONCATENATE($B42,\",\",P$18,\",,,\"),data[],7,FALSE),\"\"))","v":""},{"$f":"IFERROR(VLOOKUP(CONCATENATE($B42,\",\",Q$18,\",,\",sel_region_code,\",\"),data[],7,FALSE),IFERROR(VLOOKUP(CONCATENATE($B42,\",\",Q$18,\",,,\"),data[],7,FALSE),\"\"))","v":""},{"$f":"IFERROR(VLOOKUP(CONCATENATE($B42,\",\",R$18,\",,\",sel_region_code,\",\"),data[],7,FALSE),IFERROR(VLOOKUP(CONCATENATE($B42,\",\",R$18,\",,,\"),data[],7,FALSE),\"\"))","v":""},null,{"$f":"IFERROR(VLOOKUP(CONCATENATE($B42,\",\",T$18,\",,\",sel_region_code,\",\"),data[],7,FALSE),IFERROR(VLOOKUP(CONCATENATE($B42,\",\",T$18,\",,,\"),data[],7,FALSE),\"\"))","v":""},{"$f":"IFERROR(VLOOKUP(CONCATENATE($B42,\",\",U$18,\",,\",sel_region_code,\",\"),data[],7,FALSE),IFERROR(VLOOKUP(CONCATENATE($B42,\",\",U$18,\",,,\"),data[],7,FALSE),\"\"))","v":""},{"$f":"IFERROR(VLOOKUP(CONCATENATE($B42,\",\",V$18,\",,\",sel_region_code,\",\"),data[],7,FALSE),IFERROR(VLOOKUP(CONCATENATE($B42,\",\",V$18,\",,,\"),data[],7,FALSE),\"\"))","v":""}]
[null,null,{"$f":"IFERROR(VLOOKUP($B43,parameter[],2,FALSE),\"\")","v":""},{"$f":"IFERROR(VLOOKUP($B43,parameter[],3,FALSE),\"\")","v":""},{"$f":"IFERROR(VLOOKUP(CONCATENATE($B43,\",\",E$18,\",,\",sel_region_code,\",\"),data[],7,FALSE),IFERROR(VLOOKUP(CONCATENATE($B43,\",\",E$18,\",,,\"),data[],7,FALSE),\"\"))","v":""},null,{"$f":"IFERROR(VLOOKUP(CONCATENATE($B43,\",\",G$18,\",,\",sel_region_code,\",\"),data[],7,FALSE),IFERROR(VLOOKUP(CONCATENATE($B43,\",\",G$18,\",,,\"),data[],7,FALSE),\"\"))","v":""},{"$f":"IFERROR(VLOOKUP(CONCATENATE($B43,\",\",H$18,\",,\",sel_region_code,\",\"),data[],7,FALSE),IFERROR(VLOOKUP(CONCATENATE($B43,\",\",H$18,\",,,\"),data[],7,FALSE),\"\"))","v":""},{"$f":"IFERROR(VLOOKUP(CONCATENATE($B43,\",\",I$18,\",,\",sel_region_code,\",\"),data[],7,FALSE),IFERROR(VLOOKUP(CONCATENATE($B43,\",\",I$18,\",,,\"),data[],7,FALSE),\"\"))","v":""},{"$f":"IFERROR(VLOOKUP(CONCATENATE($B43,\",\",J$18,\",,\",sel_region_code,\",\"),data[],7,FALSE),IFERROR(VLOOKUP(CONCATENATE($B43,\",\",J$18,\",,,\"),data[],7,FALSE),\"\"))","v":""},{"$f":"IFERROR(VLOOKUP(CONCATENATE($B43,\",\",K$18,\",,\",sel_region_code,\",\"),data[],7,FALSE),IFERROR(VLOOKUP(CONCATENATE($B43,\",\",K$18,\",,,\"),data[],7,FALSE),\"\"))","v":""},{"$f":"IFERROR(VLOOKUP(CONCATENATE($B43,\",\",L$18,\",,\",sel_region_code,\",\"),data[],7,FALSE),IFERROR(VLOOKUP(CONCATENATE($B43,\",\",L$18,\",,,\"),data[],7,FALSE),\"\"))","v":""},{"$f":"IFERROR(VLOOKUP(CONCATENATE($B43,\",\",M$18,\",,\",sel_region_code,\",\"),data[],7,FALSE),IFERROR(VLOOKUP(CONCATENATE($B43,\",\",M$18,\",,,\"),data[],7,FALSE),\"\"))","v":""},{"$f":"IFERROR(VLOOKUP(CONCATENATE($B43,\",\",N$18,\",,\",sel_region_code,\",\"),data[],7,FALSE),IFERROR(VLOOKUP(CONCATENATE($B43,\",\",N$18,\",,,\"),data[],7,FALSE),\"\"))","v":""},{"$f":"IFERROR(VLOOKUP(CONCATENATE($B43,\",\",O$18,\",,\",sel_region_code,\",\"),data[],7,FALSE),IFERROR(VLOOKUP(CONCATENATE($B43,\",\",O$18,\",,,\"),data[],7,FALSE),\"\"))","v":""},{"$f":"IFERROR(VLOOKUP(CONCATENATE($B43,\",\",P$18,\",,\",sel_region_code,\",\"),data[],7,FALSE),IFERROR(VLOOKUP(CONCATENATE($B43,\",\",P$18,\",,,\"),data[],7,FALSE),\"\"))","v":""},{"$f":"IFERROR(VLOOKUP(CONCATENATE($B43,\",\",Q$18,\",,\",sel_region_code,\",\"),data[],7,FALSE),IFERROR(VLOOKUP(CONCATENATE($B43,\",\",Q$18,\",,,\"),data[],7,FALSE),\"\"))","v":""},{"$f":"IFERROR(VLOOKUP(CONCATENATE($B43,\",\",R$18,\",,\",sel_region_code,\",\"),data[],7,FALSE),IFERROR(VLOOKUP(CONCATENATE($B43,\",\",R$18,\",,,\"),data[],7,FALSE),\"\"))","v":""},null,{"$f":"IFERROR(VLOOKUP(CONCATENATE($B43,\",\",T$18,\",,\",sel_region_code,\",\"),data[],7,FALSE),IFERROR(VLOOKUP(CONCATENATE($B43,\",\",T$18,\",,,\"),data[],7,FALSE),\"\"))","v":""},{"$f":"IFERROR(VLOOKUP(CONCATENATE($B43,\",\",U$18,\",,\",sel_region_code,\",\"),data[],7,FALSE),IFERROR(VLOOKUP(CONCATENATE($B43,\",\",U$18,\",,,\"),data[],7,FALSE),\"\"))","v":""},{"$f":"IFERROR(VLOOKUP(CONCATENATE($B43,\",\",V$18,\",,\",sel_region_code,\",\"),data[],7,FALSE),IFERROR(VLOOKUP(CONCATENATE($B43,\",\",V$18,\",,,\"),data[],7,FALSE),\"\"))","v":""}]
[null,null,{"$f":"IFERROR(VLOOKUP($B44,parameter[],2,FALSE),\"\")","v":""},{"$f":"IFERROR(VLOOKUP($B44,parameter[],3,FALSE),\"\")","v":""},{"$f":"IFERROR(VLOOKUP(CONCATENATE($B44,\",\",E$18,\",,\",sel_region_code,\",\"),data[],7,FALSE),IFERROR(VLOOKUP(CONCATENATE($B44,\",\",E$18,\",,,\"),data[],7,FALSE),\"\"))","v":""},null,{"$f":"IFERROR(VLOOKUP(CONCATENATE($B44,\",\",G$18,\",,\",sel_region_code,\",\"),data[],7,FALSE),IFERROR(VLOOKUP(CONCATENATE($B44,\",\",G$18,\",,,\"),data[],7,FALSE),\"\"))","v":""},{"$f":"IFERROR(VLOOKUP(CONCATENATE($B44,\",\",H$18,\",,\",sel_region_code,\",\"),data[],7,FALSE),IFERROR(VLOOKUP(CONCATENATE($B44,\",\",H$18,\",,,\"),data[],7,FALSE),\"\"))","v":""},{"$f":"IFERROR(VLOOKUP(CONCATENATE($B44,\",\",I$18,\",,\",sel_region_code,\",\"),data[],7,FALSE),IFERROR(VLOOKUP(CONCATENATE($B44,\",\",I$18,\",,,\"),data[],7,FALSE),\"\"))","v":""},{"$f":"IFERROR(VLOOKUP(CONCATENATE($B44,\",\",J$18,\",,\",sel_region_code,\",\"),data[],7,FALSE),IFERROR(VLOOKUP(CONCATENATE($B44,\",\",J$18,\",,,\"),data[],7,FALSE),\"\"))","v":""},{"$f":"IFERROR(VLOOKUP(CONCATENATE($B44,\",\",K$18,\",,\",sel_region_code,\",\"),data[],7,FALSE),IFERROR(VLOOKUP(CONCATENATE($B44,\",\",K$18,\",,,\"),data[],7,FALSE),\"\"))","v":""},{"$f":"IFERROR(VLOOKUP(CONCATENATE($B44,\",\",L$18,\",,\",sel_region_code,\",\"),data[],7,FALSE),IFERROR(VLOOKUP(CONCATENATE($B44,\",\",L$18,\",,,\"),data[],7,FALSE),\"\"))","v":""},{"$f":"IFERROR(VLOOKUP(CONCATENATE($B44,\",\",M$18,\",,\",sel_region_code,\",\"),data[],7,FALSE),IFERROR(VLOOKUP(CONCATENATE($B44,\",\",M$18,\",,,\"),data[],7,FALSE),\"\"))","v":""},{"$f":"IFERROR(VLOOKUP(CONCATENATE($B44,\",\",N$18,\",,\",sel_region_code,\",\"),data[],7,FALSE),IFERROR(VLOOKUP(CONCATENATE($B44,\",\",N$18,\",,,\"),data[],7,FALSE),\"\"))","v":""},{"$f":"IFERROR(VLOOKUP(CONCATENATE($B44,\",\",O$18,\",,\",sel_region_code,\",\"),data[],7,FALSE),IFERROR(VLOOKUP(CONCATENATE($B44,\",\",O$18,\",,,\"),data[],7,FALSE),\"\"))","v":""},{"$f":"IFERROR(VLOOKUP(CONCATENATE($B44,\",\",P$18,\",,\",sel_region_code,\",\"),data[],7,FALSE),IFERROR(VLOOKUP(CONCATENATE($B44,\",\",P$18,\",,,\"),data[],7,FALSE),\"\"))","v":""},{"$f":"IFERROR(VLOOKUP(CONCATENATE($B44,\",\",Q$18,\",,\",sel_region_code,\",\"),data[],7,FALSE),IFERROR(VLOOKUP(CONCATENATE($B44,\",\",Q$18,\",,,\"),data[],7,FALSE),\"\"))","v":""},{"$f":"IFERROR(VLOOKUP(CONCATENATE($B44,\",\",R$18,\",,\",sel_region_code,\",\"),data[],7,FALSE),IFERROR(VLOOKUP(CONCATENATE($B44,\",\",R$18,\",,,\"),data[],7,FALSE),\"\"))","v":""},null,{"$f":"IFERROR(VLOOKUP(CONCATENATE($B44,\",\",T$18,\",,\",sel_region_code,\",\"),data[],7,FALSE),IFERROR(VLOOKUP(CONCATENATE($B44,\",\",T$18,\",,,\"),data[],7,FALSE),\"\"))","v":""},{"$f":"IFERROR(VLOOKUP(CONCATENATE($B44,\",\",U$18,\",,\",sel_region_code,\",\"),data[],7,FALSE),IFERROR(VLOOKUP(CONCATENATE($B44,\",\",U$18,\",,,\"),data[],7,FALSE),\"\"))","v":""},{"$f":"IFERROR(VLOOKUP(CONCATENATE($B44,\",\",V$18,\",,\",sel_region_code,\",\"),data[],7,FALSE),IFERROR(VLOOKUP(CONCATENATE($B44,\",\",V$18,\",,,\"),data[],7,FALSE),\"\"))","v":""}]
[null,null,{"$f":"IFERROR(VLOOKUP($B45,parameter[],2,FALSE),\"\")","v":""},{"$f":"IFERROR(VLOOKUP($B45,parameter[],3,FALSE),\"\")","v":""},{"$f":"IFERROR(VLOOKUP(CONCATENATE($B45,\",\",E$18,\",,\",sel_region_code,\",\"),data[],7,FALSE),IFERROR(VLOOKUP(CONCATENATE($B45,\",\",E$18,\",,,\"),data[],7,FALSE),\"\"))","v":""},null,{"$f":"IFERROR(VLOOKUP(CONCATENATE($B45,\",\",G$18,\",,\",sel_region_code,\",\"),data[],7,FALSE),IFERROR(VLOOKUP(CONCATENATE($B45,\",\",G$18,\",,,\"),data[],7,FALSE),\"\"))","v":""},{"$f":"IFERROR(VLOOKUP(CONCATENATE($B45,\",\",H$18,\",,\",sel_region_code,\",\"),data[],7,FALSE),IFERROR(VLOOKUP(CONCATENATE($B45,\",\",H$18,\",,,\"),data[],7,FALSE),\"\"))","v":""},{"$f":"IFERROR(VLOOKUP(CONCATENATE($B45,\",\",I$18,\",,\",sel_region_code,\",\"),data[],7,FALSE),IFERROR(VLOOKUP(CONCATENATE($B45,\",\",I$18,\",,,\"),data[],7,FALSE),\"\"))","v":""},{"$f":"IFERROR(VLOOKUP(CONCATENATE($B45,\",\",J$18,\",,\",sel_region_code,\",\"),data[],7,FALSE),IFERROR(VLOOKUP(CONCATENATE($B45,\",\",J$18,\",,,\"),data[],7,FALSE),\"\"))","v":""},{"$f":"IFERROR(VLOOKUP(CONCATENATE($B45,\",\",K$18,\",,\",sel_region_code,\",\"),data[],7,FALSE),IFERROR(VLOOKUP(CONCATENATE($B45,\",\",K$18,\",,,\"),data[],7,FALSE),\"\"))","v":""},{"$f":"IFERROR(VLOOKUP(CONCATENATE($B45,\",\",L$18,\",,\",sel_region_code,\",\"),data[],7,FALSE),IFERROR(VLOOKUP(CONCATENATE($B45,\",\",L$18,\",,,\"),data[],7,FALSE),\"\"))","v":""},{"$f":"IFERROR(VLOOKUP(CONCATENATE($B45,\",\",M$18,\",,\",sel_region_code,\",\"),data[],7,FALSE),IFERROR(VLOOKUP(CONCATENATE($B45,\",\",M$18,\",,,\"),data[],7,FALSE),\"\"))","v":""},{"$f":"IFERROR(VLOOKUP(CONCATENATE($B45,\",\",N$18,\",,\",sel_region_code,\",\"),data[],7,FALSE),IFERROR(VLOOKUP(CONCATENATE($B45,\",\",N$18,\",,,\"),data[],7,FALSE),\"\"))","v":""},{"$f":"IFERROR(VLOOKUP(CONCATENATE($B45,\",\",O$18,\",,\",sel_region_code,\",\"),data[],7,FALSE),IFERROR(VLOOKUP(CONCATENATE($B45,\",\",O$18,\",,,\"),data[],7,FALSE),\"\"))","v":""},{"$f":"IFERROR(VLOOKUP(CONCATENATE($B45,\",\",P$18,\",,\",sel_region_code,\",\"),data[],7,FALSE),IFERROR(VLOOKUP(CONCATENATE($B45,\",\",P$18,\",,,\"),data[],7,FALSE),\"\"))","v":""},{"$f":"IFERROR(VLOOKUP(CONCATENATE($B45,\",\",Q$18,\",,\",sel_region_code,\",\"),data[],7,FALSE),IFERROR(VLOOKUP(CONCATENATE($B45,\",\",Q$18,\",,,\"),data[],7,FALSE),\"\"))","v":""},{"$f":"IFERROR(VLOOKUP(CONCATENATE($B45,\",\",R$18,\",,\",sel_region_code,\",\"),data[],7,FALSE),IFERROR(VLOOKUP(CONCATENATE($B45,\",\",R$18,\",,,\"),data[],7,FALSE),\"\"))","v":""},null,{"$f":"IFERROR(VLOOKUP(CONCATENATE($B45,\",\",T$18,\",,\",sel_region_code,\",\"),data[],7,FALSE),IFERROR(VLOOKUP(CONCATENATE($B45,\",\",T$18,\",,,\"),data[],7,FALSE),\"\"))","v":""},{"$f":"IFERROR(VLOOKUP(CONCATENATE($B45,\",\",U$18,\",,\",sel_region_code,\",\"),data[],7,FALSE),IFERROR(VLOOKUP(CONCATENATE($B45,\",\",U$18,\",,,\"),data[],7,FALSE),\"\"))","v":""},{"$f":"IFERROR(VLOOKUP(CONCATENATE($B45,\",\",V$18,\",,\",sel_region_code,\",\"),data[],7,FALSE),IFERROR(VLOOKUP(CONCATENATE($B45,\",\",V$18,\",,,\"),data[],7,FALSE),\"\"))","v":""}]
[null,null,{"$f":"IFERROR(VLOOKUP($B46,parameter[],2,FALSE),\"\")","v":""},{"$f":"IFERROR(VLOOKUP($B46,parameter[],3,FALSE),\"\")","v":""},{"$f":"IFERROR(VLOOKUP(CONCATENATE($B46,\",\",E$18,\",,\",sel_region_code,\",\"),data[],7,FALSE),IFERROR(VLOOKUP(CONCATENATE($B46,\",\",E$18,\",,,\"),data[],7,FALSE),\"\"))","v":""},null,{"$f":"IFERROR(VLOOKUP(CONCATENATE($B46,\",\",G$18,\",,\",sel_region_code,\",\"),data[],7,FALSE),IFERROR(VLOOKUP(CONCATENATE($B46,\",\",G$18,\",,,\"),data[],7,FALSE),\"\"))","v":""},{"$f":"IFERROR(VLOOKUP(CONCATENATE($B46,\",\",H$18,\",,\",sel_region_code,\",\"),data[],7,FALSE),IFERROR(VLOOKUP(CONCATENATE($B46,\",\",H$18,\",,,\"),data[],7,FALSE),\"\"))","v":""},{"$f":"IFERROR(VLOOKUP(CONCATENATE($B46,\",\",I$18,\",,\",sel_region_code,\",\"),data[],7,FALSE),IFERROR(VLOOKUP(CONCATENATE($B46,\",\",I$18,\",,,\"),data[],7,FALSE),\"\"))","v":""},{"$f":"IFERROR(VLOOKUP(CONCATENATE($B46,\",\",J$18,\",,\",sel_region_code,\",\"),data[],7,FALSE),IFERROR(VLOOKUP(CONCATENATE($B46,\",\",J$18,\",,,\"),data[],7,FALSE),\"\"))","v":""},{"$f":"IFERROR(VLOOKUP(CONCATENATE($B46,\",\",K$18,\",,\",sel_region_code,\",\"),data[],7,FALSE),IFERROR(VLOOKUP(CONCATENATE($B46,\",\",K$18,\",,,\"),data[],7,FALSE),\"\"))","v":""},{"$f":"IFERROR(VLOOKUP(CONCATENATE($B46,\",\",L$18,\",,\",sel_region_code,\",\"),data[],7,FALSE),IFERROR(VLOOKUP(CONCATENATE($B46,\",\",L$18,\",,,\"),data[],7,FALSE),\"\"))","v":""},{"$f":"IFERROR(VLOOKUP(CONCATENATE($B46,\",\",M$18,\",,\",sel_region_code,\",\"),data[],7,FALSE),IFERROR(VLOOKUP(CONCATENATE($B46,\",\",M$18,\",,,\"),data[],7,FALSE),\"\"))","v":""},{"$f":"IFERROR(VLOOKUP(CONCATENATE($B46,\",\",N$18,\",,\",sel_region_code,\",\"),data[],7,FALSE),IFERROR(VLOOKUP(CONCATENATE($B46,\",\",N$18,\",,,\"),data[],7,FALSE),\"\"))","v":""},{"$f":"IFERROR(VLOOKUP(CONCATENATE($B46,\",\",O$18,\",,\",sel_region_code,\",\"),data[],7,FALSE),IFERROR(VLOOKUP(CONCATENATE($B46,\",\",O$18,\",,,\"),data[],7,FALSE),\"\"))","v":""},{"$f":"IFERROR(VLOOKUP(CONCATENATE($B46,\",\",P$18,\",,\",sel_region_code,\",\"),data[],7,FALSE),IFERROR(VLOOKUP(CONCATENATE($B46,\",\",P$18,\",,,\"),data[],7,FALSE),\"\"))","v":""},{"$f":"IFERROR(VLOOKUP(CONCATENATE($B46,\",\",Q$18,\",,\",sel_region_code,\",\"),data[],7,FALSE),IFERROR(VLOOKUP(CONCATENATE($B46,\",\",Q$18,\",,,\"),data[],7,FALSE),\"\"))","v":""},{"$f":"IFERROR(VLOOKUP(CONCATENATE($B46,\",\",R$18,\",,\",sel_region_code,\",\"),data[],7,FALSE),IFERROR(VLOOKUP(CONCATENATE($B46,\",\",R$18,\",,,\"),data[],7,FALSE),\"\"))","v":""},null,{"$f":"IFERROR(VLOOKUP(CONCATENATE($B46,\",\",T$18,\",,\",sel_region_code,\",\"),data[],7,FALSE),IFERROR(VLOOKUP(CONCATENATE($B46,\",\",T$18,\",,,\"),data[],7,FALSE),\"\"))","v":""},{"$f":"IFERROR(VLOOKUP(CONCATENATE($B46,\",\",U$18,\",,\",sel_region_code,\",\"),data[],7,FALSE),IFERROR(VLOOKUP(CONCATENATE($B46,\",\",U$18,\",,,\"),data[],7,FALSE),\"\"))","v":""},{"$f":"IFERROR(VLOOKUP(CONCATENATE($B46,\",\",V$18,\",,\",sel_region_code,\",\"),data[],7,FALSE),IFERROR(VLOOKUP(CONCATENATE($B46,\",\",V$18,\",,,\"),data[],7,FALSE),\"\"))","v":""}]
[null,null,{"$f":"IFERROR(VLOOKUP($B47,parameter[],2,FALSE),\"\")","v":""},{"$f":"IFERROR(VLOOKUP($B47,parameter[],3,FALSE),\"\")","v":""},{"$f":"IFERROR(VLOOKUP(CONCATENATE($B47,\",\",E$18,\",,\",sel_region_code,\",\"),data[],7,FALSE),IFERROR(VLOOKUP(CONCATENATE($B47,\",\",E$18,\",,,\"),data[],7,FALSE),\"\"))","v":""},null,{"$f":"IFERROR(VLOOKUP(CONCATENATE($B47,\",\",G$18,\",,\",sel_region_code,\",\"),data[],7,FALSE),IFERROR(VLOOKUP(CONCATENATE($B47,\",\",G$18,\",,,\"),data[],7,FALSE),\"\"))","v":""},{"$f":"IFERROR(VLOOKUP(CONCATENATE($B47,\",\",H$18,\",,\",sel_region_code,\",\"),data[],7,FALSE),IFERROR(VLOOKUP(CONCATENATE($B47,\",\",H$18,\",,,\"),data[],7,FALSE),\"\"))","v":""},{"$f":"IFERROR(VLOOKUP(CONCATENATE($B47,\",\",I$18,\",,\",sel_region_code,\",\"),data[],7,FALSE),IFERROR(VLOOKUP(CONCATENATE($B47,\",\",I$18,\",,,\"),data[],7,FALSE),\"\"))","v":""},{"$f":"IFERROR(VLOOKUP(CONCATENATE($B47,\",\",J$18,\",,\",sel_region_code,\",\"),data[],7,FALSE),IFERROR(VLOOKUP(CONCATENATE($B47,\",\",J$18,\",,,\"),data[],7,FALSE),\"\"))","v":""},{"$f":"IFERROR(VLOOKUP(CONCATENATE($B47,\",\",K$18,\",,\",sel_region_code,\",\"),data[],7,FALSE),IFERROR(VLOOKUP(CONCATENATE($B47,\",\",K$18,\",,,\"),data[],7,FALSE),\"\"))","v":""},{"$f":"IFERROR(VLOOKUP(CONCATENATE($B47,\",\",L$18,\",,\",sel_region_code,\",\"),data[],7,FALSE),IFERROR(VLOOKUP(CONCATENATE($B47,\",\",L$18,\",,,\"),data[],7,FALSE),\"\"))","v":""},{"$f":"IFERROR(VLOOKUP(CONCATENATE($B47,\",\",M$18,\",,\",sel_region_code,\",\"),data[],7,FALSE),IFERROR(VLOOKUP(CONCATENATE($B47,\",\",M$18,\",,,\"),data[],7,FALSE),\"\"))","v":""},{"$f":"IFERROR(VLOOKUP(CONCATENATE($B47,\",\",N$18,\",,\",sel_region_code,\",\"),data[],7,FALSE),IFERROR(VLOOKUP(CONCATENATE($B47,\",\",N$18,\",,,\"),data[],7,FALSE),\"\"))","v":""},{"$f":"IFERROR(VLOOKUP(CONCATENATE($B47,\",\",O$18,\",,\",sel_region_code,\",\"),data[],7,FALSE),IFERROR(VLOOKUP(CONCATENATE($B47,\",\",O$18,\",,,\"),data[],7,FALSE),\"\"))","v":""},{"$f":"IFERROR(VLOOKUP(CONCATENATE($B47,\",\",P$18,\",,\",sel_region_code,\",\"),data[],7,FALSE),IFERROR(VLOOKUP(CONCATENATE($B47,\",\",P$18,\",,,\"),data[],7,FALSE),\"\"))","v":""},{"$f":"IFERROR(VLOOKUP(CONCATENATE($B47,\",\",Q$18,\",,\",sel_region_code,\",\"),data[],7,FALSE),IFERROR(VLOOKUP(CONCATENATE($B47,\",\",Q$18,\",,,\"),data[],7,FALSE),\"\"))","v":""},{"$f":"IFERROR(VLOOKUP(CONCATENATE($B47,\",\",R$18,\",,\",sel_region_code,\",\"),data[],7,FALSE),IFERROR(VLOOKUP(CONCATENATE($B47,\",\",R$18,\",,,\"),data[],7,FALSE),\"\"))","v":""},null,{"$f":"IFERROR(VLOOKUP(CONCATENATE($B47,\",\",T$18,\",,\",sel_region_code,\",\"),data[],7,FALSE),IFERROR(VLOOKUP(CONCATENATE($B47,\",\",T$18,\",,,\"),data[],7,FALSE),\"\"))","v":""},{"$f":"IFERROR(VLOOKUP(CONCATENATE($B47,\",\",U$18,\",,\",sel_region_code,\",\"),data[],7,FALSE),IFERROR(VLOOKUP(CONCATENATE($B47,\",\",U$18,\",,,\"),data[],7,FALSE),\"\"))","v":""},{"$f":"IFERROR(VLOOKUP(CONCATENATE($B47,\",\",V$18,\",,\",sel_region_code,\",\"),data[],7,FALSE),IFERROR(VLOOKUP(CONCATENATE($B47,\",\",V$18,\",,,\"),data[],7,FALSE),\"\"))","v":""}]
[]
[null,"Conversion factors for secondary input\n (positive >> input, negative >> output)",null,null,null,null,null,null,null,null,null,null,null,null,null,null,null,null,null,null,null,null,null,"Specific costs of secondary input"]
[null,"CO2-G","Carbon dioxide",{"$f":"CONCATENATE(VLOOKUP($B50,flow[],3,FALSE),\" / kWh main output\")","v":"kg CO2 (g) / kWh main output"},{"$f":"IFERROR(VLOOKUP(CONCATENATE(\"CONV,\",E$18,\",\",$B50,\",,\"),data[],7,FALSE),\"\")","v":""},null,{"$f":"IFERROR(VLOOKUP(CONCATENATE(\"CONV,\",G$18,\",\",$B50,\",,\"),data[],7,FALSE),\"\")","v":""},{"$f":"IFERROR(VLOOKUP(CONCATENATE(\"CONV,\",H$18,\",\",$B50,\",,\"),data[],7,FALSE),\"\")","v":""},{"$f":"IFERROR(VLOOKUP(CONCATENATE(\"CONV,\",I$18,\",\",$B50,\",,\"),data[],7,FALSE),\"\")","v":""},{"$f":"IFERROR(VLOOKUP(CONCATENATE(\"CONV,\",J$18,\",\",$B50,\",,\"),data[],7,FALSE),\"\")","v":""},{"$f":"IFERROR(VLOOKUP(CONCATENATE(\"CONV,\",K$18,\",\",$B50,\",,\"),data[],7,FALSE),\"\")","v":""},{"$f":"IFERROR(VLOOKUP(CONCATENATE(\"CONV,\",L$18,\",\",$B50,\",,\"),data[],7,FALSE),\"\")","v":""},{"$f":"IFERROR(VLOOKUP(CONCATENATE(\"CONV,\",M$18,\",\",$B50,\",,\"),data[],7,FALSE),\"\")","v":""},{"$f":"IFERROR(VLOOKUP(CONCATENATE(\"CONV,\",N$18,\",\",$B50,\",,\"),data[],7,FALSE),\"\")","v":""},{"$f":"IFERROR(VLOOKUP(CONCATENATE(\"CONV,\",O$18,\",\",$B50,\",,\"),data[],7,FALSE),\"\")","v":""},{"$f":"IFERROR(VLOOKUP(CONCATENATE(\"CONV,\",P$18,\",\",$B50,\",,\"),data[],7,FALSE),\"\")","v":""},{"$f":"IFERROR(VLOOKUP(CONCATENATE(\"CONV,\",Q$18,\",\",$B50,\",,\"),data[],7,FALSE),\"\")","v":""},{"$f":"IFERROR(VLOOKUP(CONCATENATE(\"CONV,\",R$18,\",\",$B50,\",,\"),data[],7,FALSE),\"\")","v":""},null,{"$f":"IFERROR(VLOOKUP(CONCATENATE(\"CONV,\",T$18,\",\",$B50,\",,\"),data[],7,FALSE),\"\")","v":""},{"$f":"IFERROR(VLOOKUP(CONCATENATE(\"CONV,\",U$18,\",\",$B50,\",,\"),data[],7,FALSE),\"\")","v":""},{"$f":"IFERROR(VLOOKUP(CONCATENATE(\"CONV,\",V$18,\",\",$B50,\",,\"),data[],7,FALSE),\"\")","v":""},null,{"$f":"CONCATENATE(\"USD / \",VLOOKUP($B50,flow[],3,FALSE))","v":"USD / kg CO2 (g)"},{"$f":"IFERROR(VLOOKUP(CONCATENATE(\"SPECCOST,,\",B50,\",,\"),data[],7,FALSE),\"\")","v":3.8577660276243091E-2}]
[null,"H2O-L","Water",{"$f":"CONCATENATE(VLOOKUP($B51,flow[],3,FALSE),\" / kWh main output\")","v":"kg H2O (l) / kWh main output"},{"$f":"IFERROR(VLOOKUP(CONCATENATE(\"CONV,\",E$18,\",\",$B51,\",,\"),data[],7,FALSE),\"\")","v":""},null,{"$f":"IFERROR(VLOOKUP(CONCATENATE(\"CONV,\",G$18,\",\",$B51,\",,\"),data[],7,FALSE),\"\")","v":0.3},{"$f":"IFERROR(VLOOKUP(CONCATENATE(\"CONV,\",H$18,\",\",$B51,\",,\"),data[],7,FALSE),\"\")","v":""},{"$f":"IFERROR(VLOOKUP(CONCATENATE(\"CONV,\",I$18,\",\",$B51,\",,\"),data[],7,FALSE),\"\")","v":""},{"$f":"IFERROR(VLOOKUP(CONCATENATE(\"CONV,\",J$18,\",\",$B51,\",,\"),data[],7,FALSE),\"\")","v":""},{"$f":"IFERROR(VLOOKUP(CONCATENATE(\"CONV,\",K$18,\",\",$B51,\",,\"),data[],7,FALSE),\"\")","v":""},{"$f":"IFERROR(VLOOKUP(CONCATENATE(\"CONV,\",L$18,\",\",$B51,\",,\"),data[],7,FALSE),\"\")","v":""},{"$f":"IFERROR(VLOOKUP(CONCATENATE(\"CONV,\",M$18,\",\",$B51,\",,\"),data[],7,FALSE),\"\")","v":""},{"$f":"IFERROR(VLOOKUP(CONCATENATE(\"CONV,\",N$18,\",\",$B51,\",,\"),data[],7,FALSE),\"\")","v":""},{"$f":"IFERROR(VLOOKUP(CONCATENATE(\"CONV,\",O$18,\",\",$B51,\",,\"),data[],7,FALSE),\"\")","v":""},{"$f":"IFERROR(VLOOKUP(CONCATENATE(\"CONV,\",P$18,\",\",$B51,\",,\"),data[],7,FALSE),\"\")","v":""},{"$f":"IFERROR(VLOOKUP(CONCATENATE(\"CONV,\",Q$18,\",\",$B51,\",,\"),data[],7,FALSE),\"\")","v":""},{"$f":"IFERROR(VLOOKUP(CONCATENATE(\"CONV,\",R$18,\",\",$B51,\",,\"),data[],7,FALSE),\"\")","v":""},null,{"$f":"IFERROR(VLOOKUP(CONCATENATE(\"CONV,\",T$18,\",\",$B51,\",,\"),data[],7,FALSE),\"\")","v":-1.4},{"$f":"IFERROR(VLOOKUP(CONCATENATE(\"CONV,\",U$18,\",\",$B51,\",,\"),data[],7,FALSE),\"\")","v":""},{"$f":"IFERROR(VLOOKUP(CONCATENATE(\"CONV,\",V$18,\",\",$B51,\",,\"),data[],7,FALSE),\"\")","v":""},null,{"$f":"CONCATENATE(\"USD / \",VLOOKUP($B51,flow[],3,FALSE))","v":"USD / kg H2O (l)"},{"$f":"IFERROR(VLOOKUP(CONCATENATE(\"SPECCOST,,\",B51,\",,\"),data[],7,FALSE),\"\")","v":1.190463995027624E-3}]
[null,"HEAT","Heat",{"$f":"CONCATENATE(VLOOKUP($B52,flow[],3,FALSE),\" / kWh main output\")","v":"kWh (heat) / kWh main output"},{"$f":"IFERROR(VLOOKUP(CONCATENATE(\"CONV,\",E$18,\",\",$B52,\",,\"),data[],7,FALSE),\"\")","v":""},null,{"$f":"IFERROR(VLOOKUP(CONCATENATE(\"CONV,\",G$18,\",\",$B52,\",,\"),data[],7,FALSE),\"\")","v":""},{"$f":"IFERROR(VLOOKUP(CONCATENATE(\"CONV,\",H$18,\",\",$B52,\",,\"),data[],7,FALSE),\"\")","v":""},{"$f":"IFERROR(VLOOKUP(CONCATENATE(\"CONV,\",I$18,\",\",$B52,\",,\"),data[],7,FALSE),\"\")","v":""},{"$f":"IFERROR(VLOOKUP(CONCATENATE(\"CONV,\",J$18,\",\",$B52,\",,\"),data[],7,FALSE),\"\")","v":""},{"$f":"IFERROR(VLOOKUP(CONCATENATE(\"CONV,\",K$18,\",\",$B52,\",,\"),data[],7,FALSE),\"\")","v":""},{"$f":"IFERROR(VLOOKUP(CONCATENATE(\"CONV,\",L$18,\",\",$B52,\",,\"),data[],7,FALSE),\"\")","v":""},{"$f":"IFERROR(VLOOKUP(CONCATENATE(\"CONV,\",M$18,\",\",$B52,\",,\"),data[],7,FALSE),\"\")","v":""},{"$f":"IFERROR(VLOOKUP(CONCATENATE(\"CONV,\",N$18,\",\",$B52,\",,\"),data[],7,FALSE),\"\")","v":""},{"$f":"IFERROR(VLOOKUP(CONCATENATE(\"CONV,\",O$18,\",\",$B52,\",,\"),data[],7,FALSE),\"\")","v":""},{"$f":"IFERROR(VLOOKUP(CONCATENATE(\"CONV,\",P$18,\",\",$B52,\",,\"),data[],7,FALSE),\"\")","v":""},{"$f":"IFERROR(VLOOKUP(CONCATENATE(\"CONV,\",Q$18,\",\",$B52,\",,\"),data[],7,FALSE),\"\")","v":""},{"$f":"IFERROR(VLOOKUP(CONCATENATE(\"CONV,\",R$18,\",\",$B52,\",,\"),data[],7,FALSE),\"\")","v":""},null,{"$f":"IFERROR(VLOOKUP(CONCATENATE(\"CONV,\",T$18,\",\",$B52,\",,\"),data[],7,FALSE),\"\")","v":1.85},{"$f":"IFERROR(VLOOKUP(CONCATENATE(\"CONV,\",U$18,\",\",$B52,\",,\"),data[],7,FALSE),\"\")","v":""},{"$f":"IFERROR(VLOOKUP(CONCATENATE(\"CONV,\",V$18,\",\",$B52,\",,\"),data[],7,FALSE),\"\")","v":""},null,{"$f":"CONCATENATE(\"USD / \",VLOOKUP($B52,flow[],3,FALSE))","v":"USD / kWh (heat)"},{"$f":"IFERROR(VLOOKUP(CONCATENATE(\"SPECCOST,,\",B52,\",,\"),data[],7,FALSE),\"\")","v":0.05}]
[null,"BFUEL-L","Bunker fuel",{"$f":"CONCATENATE(VLOOKUP($B53,flow[],3,FALSE),\" / kWh main output\")","v":"kwh bunker fuel (l) / kWh main output"},{"$f":"IFERROR(VLOOKUP(CONCATENATE(\"CONV,\",E$18,\",\",$B53,\",,\"),data[],7,FALSE),\"\")","v":""},null,{"$f":"IFERROR(VLOOKUP(CONCATENATE(\"CONV,\",G$18,\",\",$B53,\",,\"),data[],7,FALSE),\"\")","v":""},{"$f":"IFERROR(VLOOKUP(CONCATENATE(\"CONV,\",H$18,\",\",$B53,\",,\"),data[],7,FALSE),\"\")","v":""},{"$f":"IFERROR(VLOOKUP(CONCATENATE(\"CONV,\",I$18,\",\",$B53,\",,\"),data[],7,FALSE),\"\")","v":""},{"$f":"IFERROR(VLOOKUP(CONCATENATE(\"CONV,\",J$18,\",\",$B53,\",,\"),data[],7,FALSE),\"\")","v":""},{"$f":"IFERROR(VLOOKUP(CONCATENATE(\"CONV,\",K$18,\",\",$B53,\",,\"),data[],7,FALSE),\"\")","v":""},{"$f":"IFERROR(VLOOKUP(CONCATENATE(\"CONV,\",L$18,\",\",$B53,\",,\"),data[],7,FALSE),\"\")","v":""},{"$f":"IFERROR(VLOOKUP(CONCATENATE(\"CONV,\",M$18,\",\",$B53,\",,\"),data[],7,FALSE),\"\")","v":7.9560265731287527E-6},{"$f":"IFERROR(VLOOKUP(CONCATENATE(\"CONV,\",N$18,\",\",$B53,\",,\"),data[],7,FALSE),\"\")","v":""},{"$f":"IFERROR(VLOOKUP(CONCATENATE(\"CONV,\",O$18,\",\",$B53,\",,\"),data[],7,FALSE),\"\")","v":""},{"$f":"IFERROR(VLOOKUP(CONCATENATE(\"CONV,\",P$18,\",\",$B53,\",,\"),data[],7,FALSE),\"\")","v":""},{"$f":"IFERROR(VLOOKUP(CONCATENATE(\"CONV,\",Q$18,\",\",$B53,\",,\"),data[],7,FALSE),\"\")","v":""},{"$f":"IFERROR(VLOOKUP(CONCATENATE(\"CONV,\",R$18,\",\",$B53,\",,\"),data[],7,FALSE),\"\")","v":""},null,{"$f":"IFERROR(VLOOKUP(CONCATENATE(\"CONV,\",T$18,\",\",$B53,\",,\"),data[],7,FALSE),\"\")","v":""},{"$f":"IFERROR(VLOOKUP(CONCATENATE(\"CONV,\",U$18,\",\",$B53,\",,\"),data[],7,FALSE),\"\")","v":""},{"$f":"IFERROR(VLOOKUP(CONCATENATE(\"CONV,\",V$18,\",\",$B53,\",,\"),data[],7,FALSE),\"\")","v":""},null,{"$f":"CONCATENATE(\"USD / \",VLOOKUP($B53,flow[],3,FALSE))","v":"USD / kwh bunker fuel (l)"},{"$f":"IFERROR(VLOOKUP(CONCATENATE(\"SPECCOST,,\",B53,\",,\"),data[],7,FALSE),\"\")","v":2.7940534453652541E-3}]
[null,"EL",{"$f":"VLOOKUP($B54,flow[],2,FALSE)","v":"electricity"},{"$f":"CONCATENATE(VLOOKUP($B54,flow[],3,FALSE),\" / kWh main output\")","v":"kWh (el.) / kWh main output"},{"$f":"IFERROR(VLOOKUP(CONCATENATE(\"CONV,\",E$18,\",\",$B54,\",,\"),data[],7,FALSE),\"\")","v":""},null,{"$f":"IFERROR(VLOOKUP(CONCATENATE(\"CONV,\",G$18,\",\",$B54,\",,\"),data[],7,FALSE),\"\")","v":""},{"$f":"IFERROR(VLOOKUP(CONCATENATE(\"CONV,\",H$18,\",\",$B54,\",,\"),data[],7,FALSE),\"\")","v":""},{"$f":"IFERROR(VLOOKUP(CONCATENATE(\"CONV,\",I$18,\",\",$B54,\",,\"),data[],7,FALSE),\"\")","v":0.30010003334444812},{"$f":"IFERROR(VLOOKUP(CONCATENATE(\"CONV,\",J$18,\",\",$B54,\",,\"),data[],7,FALSE),\"\")","v":0.02},{"$f":"IFERROR(VLOOKUP(CONCATENATE(\"CONV,\",K$18,\",\",$B54,\",,\"),data[],7,FALSE),\"\")","v":""},{"$f":"IFERROR(VLOOKUP(CONCATENATE(\"CONV,\",L$18,\",\",$B54,\",,\"),data[],7,FALSE),\"\")","v":""},{"$f":"IFERROR(VLOOKUP(CONCATENATE(\"CONV,\",M$18,\",\",$B54,\",,\"),data[],7,FALSE),\"\")","v":""},{"$f":"IFERROR(VLOOKUP(CONCATENATE(\"CONV,\",N$18,\",\",$B54,\",,\"),data[],7,FALSE),\"\")","v":""},{"$f":"IFERROR(VLOOKUP(CONCATENATE(\"CONV,\",O$18,\",\",$B54,\",,\"),data[],7,FALSE),\"\")","v":""},{"$f":"IFERROR(VLOOKUP(CONCATENATE(\"CONV,\",P$18,\",\",$B54,\",,\"),data[],7,FALSE),\"\")","v":""},{"$f":"IFERROR(VLOOKUP(CONCATENATE(\"CONV,\",Q$18,\",\",$B54,\",,\"),data[],7,FALSE),\"\")","v":""},{"$f":"IFERROR(VLOOKUP(CONCATENATE(\"CONV,\",R$18,\",\",$B54,\",,\"),data[],7,FALSE),\"\")","v":""},null,{"$f":"IFERROR(VLOOKUP(CONCATENATE(\"CONV,\",T$18,\",\",$B54,\",,\"),data[],7,FALSE),\"\")","v":0.46249999999999997},{"$f":"IFERROR(VLOOKUP(CONCATENATE(\"CONV,\",U$18,\",\",$B54,\",,\"),data[],7,FALSE),\"\")","v":3.0000000000000001E-3},{"$f":"IFERROR(VLOOKUP(CONCATENATE(\"CONV,\",V$18,\",\",$B54,\",,\"),data[],7,FALSE),\"\")","v":""},null,{"$f":"CONCATENATE(\"USD / \",VLOOKUP($B54,flow[],3,FALSE))","v":"USD / kWh (el.)"},0]
[null,"N2-G",{"$f":"VLOOKUP($B55,flow[],2,FALSE)","v":"nitrogen"},{"$f":"CONCATENATE(VLOOKUP($B55,flow[],3,FALSE),\" / kWh main output\")","v":"kg N2 (g) / kWh main output"},{"$f":"IFERROR(VLOOKUP(CONCATENATE(\"CONV,\",E$18,\",\",$B55,\",,\"),data[],7,FALSE),\"\")","v":""},null,{"$f":"IFERROR(VLOOKUP(CONCATENATE(\"CONV,\",G$18,\",\",$B55,\",,\"),data[],7,FALSE),\"\")","v":""},{"$f":"IFERROR(VLOOKUP(CONCATENATE(\"CONV,\",H$18,\",\",$B55,\",,\"),data[],7,FALSE),\"\")","v":""},{"$f":"IFERROR(VLOOKUP(CONCATENATE(\"CONV,\",I$18,\",\",$B55,\",,\"),data[],7,FALSE),\"\")","v":""},{"$f":"IFERROR(VLOOKUP(CONCATENATE(\"CONV,\",J$18,\",\",$B55,\",,\"),data[],7,FALSE),\"\")","v":""},{"$f":"IFERROR(VLOOKUP(CONCATENATE(\"CONV,\",K$18,\",\",$B55,\",,\"),data[],7,FALSE),\"\")","v":""},{"$f":"IFERROR(VLOOKUP(CONCATENATE(\"CONV,\",L$18,\",\",$B55,\",,\"),data[],7,FALSE),\"\")","v":""},{"$f":"IFERROR(VLOOKUP(CONCATENATE(\"CONV,\",M$18,\",\",$B55,\",,\"),data[],7,FALSE),\"\")","v":""},{"$f":"IFERROR(VLOOKUP(CONCATENATE(\"CONV,\",N$18,\",\",$B55,\",,\"),data[],7,FALSE),\"\")","v":""},{"$f":"IFERROR(VLOOKUP(CONCATENATE(\"CONV,\",O$18,\",\",$B55,\",,\"),data[],7,FALSE),\"\")","v":""},{"$f":"IFERROR(VLOOKUP(CONCATENATE(\"CONV,\",P$18,\",\",$B55,\",,\"),data[],7,FALSE),\"\")","v":""},{"$f":"IFERROR(VLOOKUP(CONCATENATE(\"CONV,\",Q$18,\",\",$B55,\",,\"),data[],7,FALSE),\"\")","v":""},{"$f":"IFERROR(VLOOKUP(CONCATENATE(\"CONV,\",R$18,\",\",$B55,\",,\"),data[],7,FALSE),\"\")","v":""},null,{"$f":"IFERROR(VLOOKUP(CONCATENATE(\"CONV,\",T$18,\",\",$B55,\",,\"),data[],7,FALSE),\"\")","v":""},{"$f":"IFERROR(VLOOKUP(CONCATENATE(\"CONV,\",U$18,\",\",$B55,\",,\"),data[],7,FALSE),\"\")","v":""},{"$f":"IFERROR(VLOOKUP(CONCATENATE(\"CONV,\",V$18,\",\",$B55,\",,\"),data[],7,FALSE),\"\")","v":""}]
[null,"CH4-G",{"$f":"VLOOKUP($B56,flow[],2,FALSE)","v":"methane (gas)"},{"$f":"CONCATENATE(VLOOKUP($B56,flow[],3,FALSE),\" / kWh main output\")","v":"kWh CH4 (g) / kWh main output"},{"$f":"IFERROR(VLOOKUP(CONCATENATE(\"CONV,\",E$18,\",\",$B56,\",,\"),data[],7,FALSE),\"\")","v":""},null,{"$f":"IFERROR(VLOOKUP(CONCATENATE(\"CONV,\",G$18,\",\",$B56,\",,\"),data[],7,FALSE),\"\")","v":""},{"$f":"IFERROR(VLOOKUP(CONCATENATE(\"CONV,\",H$18,\",\",$B56,\",,\"),data[],7,FALSE),\"\")","v":""},{"$f":"IFERROR(VLOOKUP(CONCATENATE(\"CONV,\",I$18,\",\",$B56,\",,\"),data[],7,FALSE),\"\")","v":""},{"$f":"IFERROR(VLOOKUP(CONCATENATE(\"CONV,\",J$18,\",\",$B56,\",,\"),data[],7,FALSE),\"\")","v":""},{"$f":"IFERROR(VLOOKUP(CONCATENATE(\"CONV,\",K$18,\",\",$B56,\",,\"),data[],7,FALSE),\"\")","v":""},{"$f":"IFERROR(VLOOKUP(CONCATENATE(\"CONV,\",L$18,\",\",$B56,\",,\"),data[],7,FALSE),\"\")","v":""},{"$f":"IFERROR(VLOOKUP(CONCATENATE(\"CONV,\",M$18,\",\",$B56,\",,\"),data[],7,FALSE),\"\")","v":""},{"$f":"IFERROR(VLOOKUP(CONCATENATE(\"CONV,\",N$18,\",\",$B56,\",,\"),data[],7,FALSE),\"\")","v":""},{"$f":"IFERROR(VLOOKUP(CONCATENATE(\"CONV,\",O$18,\",\",$B56,\",,\"),data[],7,FALSE),\"\")","v":""},{"$f":"IFERROR(VLOOKUP(CONCATENATE(\"CONV,\",P$18,\",\",$B56,\",,\"),data[],7,FALSE),\"\")","v":""},{"$f":"IFERROR(VLOOKUP(CONCATENATE(\"CONV,\",Q$18,\",\",$B56,\",,\"),data[],7,FALSE),\"\")","v":""},{"$f":"IFERROR(VLOOKUP(CONCATENATE(\"CONV,\",R$18,\",\",$B56,\",,\"),data[],7,FALSE),\"\")","v":""},null,{"$f":"IFERROR(VLOOKUP(CONCATENATE(\"CONV,\",T$18,\",\",$B56,\",,\"),data[],7,FALSE),\"\")","v":""},{"$f":"IFERROR(VLOOKUP(CONCATENATE(\"CONV,\",U$18,\",\",$B56,\",,\"),data[],7,FALSE),\"\")","v":""},{"$f":"IFERROR(VLOOKUP(CONCATENATE(\"CONV,\",V$18,\",\",$B56,\",,\"),data[],7,FALSE),\"\")","v":""}]
[null,"CH4-L",{"$f":"VLOOKUP($B57,flow[],2,FALSE)","v":"methane (liquid)"},{"$f":"CONCATENATE(VLOOKUP($B57,flow[],3,FALSE),\" / kWh main output\")","v":"kWh CH4 (l) / kWh main output"},{"$f":"IFERROR(VLOOKUP(CONCATENATE(\"CONV,\",E$18,\",\",$B57,\",,\"),data[],7,FALSE),\"\")","v":""},null,{"$f":"IFERROR(VLOOKUP(CONCATENATE(\"CONV,\",G$18,\",\",$B57,\",,\"),data[],7,FALSE),\"\")","v":""},{"$f":"IFERROR(VLOOKUP(CONCATENATE(\"CONV,\",H$18,\",\",$B57,\",,\"),data[],7,FALSE),\"\")","v":""},{"$f":"IFERROR(VLOOKUP(CONCATENATE(\"CONV,\",I$18,\",\",$B57,\",,\"),data[],7,FALSE),\"\")","v":""},{"$f":"IFERROR(VLOOKUP(CONCATENATE(\"CONV,\",J$18,\",\",$B57,\",,\"),data[],7,FALSE),\"\")","v":""},{"$f":"IFERROR(VLOOKUP(CONCATENATE(\"CONV,\",K$18,\",\",$B57,\",,\"),data[],7,FALSE),\"\")","v":""},{"$f":"IFERROR(VLOOKUP(CONCATENATE(\"CONV,\",L$18,\",\",$B57,\",,\"),data[],7,FALSE),\"\")","v":""},{"$f":"IFERROR(VLOOKUP(CONCATENATE(\"CONV,\",M$18,\",\",$B57,\",,\"),data[],7,FALSE),\"\")","v":""},{"$f":"IFERROR(VLOOKUP(CONCATENATE(\"CONV,\",N$18,\",\",$B57,\",,\"),data[],7,FALSE),\"\")","v":""},{"$f":"IFERROR(VLOOKUP(CONCATENATE(\"CONV,\",O$18,\",\",$B57,\",,\"),data[],7,FALSE),\"\")","v":""},{"$f":"IFERROR(VLOOKUP(CONCATENATE(\"CONV,\",P$18,\",\",$B57,\",,\"),data[],7,FALSE),\"\")","v":""},{"$f":"IFERROR(VLOOKUP(CONCATENATE(\"CONV,\",Q$18,\",\",$B57,\",,\"),data[],7,FALSE),\"\")","v":""},{"$f":"IFERROR(VLOOKUP(CONCATENATE(\"CONV,\",R$18,\",\",$B57,\",,\"),data[],7,FALSE),\"\")","v":""},null,{"$f":"IFERROR(VLOOKUP(CONCATENATE(\"CONV,\",T$18,\",\",$B57,\",,\"),data[],7,FALSE),\"\")","v":""},{"$f":"IFERROR(VLOOKUP(CONCATENATE(\"CONV,\",U$18,\",\",$B57,\",,\"),data[],7,FALSE),\"\")","v":""},{"$f":"IFERROR(VLOOKUP(CONCATENATE(\"CONV,\",V$18,\",\",$B57,\",,\"),data[],7,FALSE),\"\")","v":""}]
[null,"CHX-L",{"$f":"VLOOKUP($B58,flow[],2,FALSE)","v":"FT e-fuels"},{"$f":"CONCATENATE(VLOOKUP($B58,flow[],3,FALSE),\" / kWh main output\")","v":"kwh CHx (l) / kWh main output"},{"$f":"IFERROR(VLOOKUP(CONCATENATE(\"CONV,\",E$18,\",\",$B58,\",,\"),data[],7,FALSE),\"\")","v":""},null,{"$f":"IFERROR(VLOOKUP(CONCATENATE(\"CONV,\",G$18,\",\",$B58,\",,\"),data[],7,FALSE),\"\")","v":""},{"$f":"IFERROR(VLOOKUP(CONCATENATE(\"CONV,\",H$18,\",\",$B58,\",,\"),data[],7,FALSE),\"\")","v":""},{"$f":"IFERROR(VLOOKUP(CONCATENATE(\"CONV,\",I$18,\",\",$B58,\",,\"),data[],7,FALSE),\"\")","v":""},{"$f":"IFERROR(VLOOKUP(CONCATENATE(\"CONV,\",J$18,\",\",$B58,\",,\"),data[],7,FALSE),\"\")","v":""},{"$f":"IFERROR(VLOOKUP(CONCATENATE(\"CONV,\",K$18,\",\",$B58,\",,\"),data[],7,FALSE),\"\")","v":""},{"$f":"IFERROR(VLOOKUP(CONCATENATE(\"CONV,\",L$18,\",\",$B58,\",,\"),data[],7,FALSE),\"\")","v":""},{"$f":"IFERROR(VLOOKUP(CONCATENATE(\"CONV,\",M$18,\",\",$B58,\",,\"),data[],7,FALSE),\"\")","v":""},{"$f":"IFERROR(VLOOKUP(CONCATENATE(\"CONV,\",N$18,\",\",$B58,\",,\"),data[],7,FALSE),\"\")","v":""},{"$f":"IFERROR(VLOOKUP(CONCATENATE(\"CONV,\",O$18,\",\",$B58,\",,\"),data[],7,FALSE),\"\")","v":""},{"$f":"IFERROR(VLOOKUP(CONCATENATE(\"CONV,\",P$18,\",\",$B58,\",,\"),data[],7,FALSE),\"\")","v":""},{"$f":"IFERROR(VLOOKUP(CONCATENATE(\"CONV,\",Q$18,\",\",$B58,\",,\"),data[],7,FALSE),\"\")","v":""},{"$f":"IFERROR(VLOOKUP(CONCATENATE(\"CONV,\",R$18,\",\",$B58,\",,\"),data[],7,FALSE),\"\")","v":""},null,{"$f":"IFERROR(VLOOKUP(CONCATENATE(\"CONV,\",T$18,\",\",$B58,\",,\"),data[],7,FALSE),\"\")","v":""},{"$f":"IFERROR(VLOOKUP(CONCATENATE(\"CONV,\",U$18,\",\",$B58,\",,\"),data[],7,FALSE),\"\")","v":""},{"$f":"IFERROR(VLOOKUP(CONCATENATE(\"CONV,\",V$18,\",\",$B58,\",,\"),data[],7,FALSE),\"\")","v":""}]
[null,"H2-G",{"$f":"VLOOKUP($B59,flow[],2,FALSE)","v":"hydrogen (gas)"},{"$f":"CONCATENATE(VLOOKUP($B59,flow[],3,FALSE),\" / kWh main output\")","v":"kWh H2 (g) / kWh main output"},{"$f":"IFERROR(VLOOKUP(CONCATENATE(\"CONV,\",E$18,\",\",$B59,\",,\"),data[],7,FALSE),\"\")","v":""},null,{"$f":"IFERROR(VLOOKUP(CONCATENATE(\"CONV,\",G$18,\",\",$B59,\",,\"),data[],7,FALSE),\"\")","v":""},{"$f":"IFERROR(VLOOKUP(CONCATENATE(\"CONV,\",H$18,\",\",$B59,\",,\"),data[],7,FALSE),\"\")","v":""},{"$f":"IFERROR(VLOOKUP(CONCATENATE(\"CONV,\",I$18,\",\",$B59,\",,\"),data[],7,FALSE),\"\")","v":""},{"$f":"IFERROR(VLOOKUP(CONCATENATE(\"CONV,\",J$18,\",\",$B59,\",,\"),data[],7,FALSE),\"\")","v":""},{"$f":"IFERROR(VLOOKUP(CONCATENATE(\"CONV,\",K$18,\",\",$B59,\",,\"),data[],7,FALSE),\"\")","v":""},{"$f":"IFERROR(VLOOKUP(CONCATENATE(\"CONV,\",L$18,\",\",$B59,\",,\"),data[],7,FALSE),\"\")","v":""},{"$f":"IFERROR(VLOOKUP(CONCATENATE(\"CONV,\",M$18,\",\",$B59,\",,\"),data[],7,FALSE),\"\")","v":""},{"$f":"IFERROR(VLOOKUP(CONCATENATE(\"CONV,\",N$18,\",\",$B59,\",,\"),data[],7,FALSE),\"\")","v":""},{"$f":"IFERROR(VLOOKUP(CONCATENATE(\"CONV,\",O$18,\",\",$B59,\",,\"),data[],7,FALSE),\"\")","v":""},{"$f":"IFERROR(VLOOKUP(CONCATENATE(\"CONV,\",P$18,\",\",$B59,\",,\"),data[],7,FALSE),\"\")","v":""},{"$f":"IFERROR(VLOOKUP(CONCATENATE(\"CONV,\",Q$18,\",\",$B59,\",,\"),data[],7,FALSE),\"\")","v":""},{"$f":"IFERROR(VLOOKUP(CONCATENATE(\"CONV,\",R$18,\",\",$B59,\",,\"),data[],7,FALSE),\"\")","v":""},null,{"$f":"IFERROR(VLOOKUP(CONCATENATE(\"CONV,\",T$18,\",\",$B59,\",,\"),data[],7,FALSE),\"\")","v":""},{"$f":"IFERROR(VLOOKUP(CONCATENATE(\"CONV,\",U$18,\",\",$B59,\",,\"),data[],7,FALSE),\"\")","v":""},{"$f":"IFERROR(VLOOKUP(CONCATENATE(\"CONV,\",V$18,\",\",$B59,\",,\"),data[],7,FALSE),\"\")","v":""}]
[null,"H2-L",{"$f":"VLOOKUP($B60,flow[],2,FALSE)","v":"hydrogen (liquid)"},{"$f":"CONCATENATE(VLOOKUP($B60,flow[],3,FALSE),\" / kWh main output\")","v":"kWh H2 (l) / kWh main output"},{"$f":"IFERROR(VLOOKUP(CONCATENATE(\"CONV,\",E$18,\",\",$B60,\",,\"),data[],7,FALSE),\"\")","v":""},null,{"$f":"IFERROR(VLOOKUP(CONCATENATE(\"CONV,\",G$18,\",\",$B60,\",,\"),data[],7,FALSE),\"\")","v":""},{"$f":"IFERROR(VLOOKUP(CONCATENATE(\"CONV,\",H$18,\",\",$B60,\",,\"),data[],7,FALSE),\"\")","v":""},{"$f":"IFERROR(VLOOKUP(CONCATENATE(\"CONV,\",I$18,\",\",$B60,\",,\"),data[],7,FALSE),\"\")","v":""},{"$f":"IFERROR(VLOOKUP(CONCATENATE(\"CONV,\",J$18,\",\",$B60,\",,\"),data[],7,FALSE),\"\")","v":""},{"$f":"IFERROR(VLOOKUP(CONCATENATE(\"CONV,\",K$18,\",\",$B60,\",,\"),data[],7,FALSE),\"\")","v":""},{"$f":"IFERROR(VLOOKUP(CONCATENATE(\"CONV,\",L$18,\",\",$B60,\",,\"),data[],7,FALSE),\"\")","v":""},{"$f":"IFERROR(VLOOKUP(CONCATENATE(\"CONV,\",M$18,\",\",$B60,\",,\"),data[],7,FALSE),\"\")","v":""},{"$f":"IFERROR(VLOOKUP(CONCATENATE(\"CONV,\",N$18,\",\",$B60,\",,\"),data[],7,FALSE),\"\")","v":""},{"$f":"IFERROR(VLOOKUP(CONCATENATE(\"CONV,\",O$18,\",\",$B60,\",,\"),data[],7,FALSE),\"\")","v":""},{"$f":"IFERROR(VLOOKUP(CONCATENATE(\"CONV,\",P$18,\",\",$B60,\",,\"),data[],7,FALSE),\"\")","v":""},{"$f":"IFERROR(VLOOKUP(CONCATENATE(\"CONV,\",Q$18,\",\",$B60,\",,\"),data[],7,FALSE),\"\")","v":""},{"$f":"IFERROR(VLOOKUP(CONCATENATE(\"CONV,\",R$18,\",\",$B60,\",,\"),data[],7,FALSE),\"\")","v":""},null,{"$f":"IFERROR(VLOOKUP(CONCATENATE(\"CONV,\",T$18,\",\",$B60,\",,\"),data[],7,FALSE),\"\")","v":""},{"$f":"IFERROR(VLOOKUP(CONCATENATE(\"CONV,\",U$18,\",\",$B60,\",,\"),data[],7,FALSE),\"\")","v":""},{"$f":"IFERROR(VLOOKUP(CONCATENATE(\"CONV,\",V$18,\",\",$B60,\",,\"),data[],7,FALSE),\"\")","v":""}]
[null,"LOHC-L",{"$f":"VLOOKUP($B61,flow[],2,FALSE)","v":"hydrogen (LOHC)"},{"$f":"CONCATENATE(VLOOKUP($B61,flow[],3,FALSE),\" / kWh main output\")","v":"kWh H2 (l) / kWh main output"},{"$f":"IFERROR(VLOOKUP(CONCATENATE(\"CONV,\",E$18,\",\",$B61,\",,\"),data[],7,FALSE),\"\")","v":""},null,{"$f":"IFERROR(VLOOKUP(CONCATENATE(\"CONV,\",G$18,\",\",$B61,\",,\"),data[],7,FALSE),\"\")","v":""},{"$f":"IFERROR(VLOOKUP(CONCATENATE(\"CONV,\",H$18,\",\",$B61,\",,\"),data[],7,FALSE),\"\")","v":""},{"$f":"IFERROR(VLOOKUP(CONCATENATE(\"CONV,\",I$18,\",\",$B61,\",,\"),data[],7,FALSE),\"\")","v":""},{"$f":"IFERROR(VLOOKUP(CONCATENATE(\"CONV,\",J$18,\",\",$B61,\",,\"),data[],7,FALSE),\"\")","v":""},{"$f":"IFERROR(VLOOKUP(CONCATENATE(\"CONV,\",K$18,\",\",$B61,\",,\"),data[],7,FALSE),\"\")","v":""},{"$f":"IFERROR(VLOOKUP(CONCATENATE(\"CONV,\",L$18,\",\",$B61,\",,\"),data[],7,FALSE),\"\")","v":""},{"$f":"IFERROR(VLOOKUP(CONCATENATE(\"CONV,\",M$18,\",\",$B61,\",,\"),data[],7,FALSE),\"\")","v":""},{"$f":"IFERROR(VLOOKUP(CONCATENATE(\"CONV,\",N$18,\",\",$B61,\",,\"),data[],7,FALSE),\"\")","v":""},{"$f":"IFERROR(VLOOKUP(CONCATENATE(\"CONV,\",O$18,\",\",$B61,\",,\"),data[],7,FALSE),\"\")","v":""},{"$f":"IFERROR(VLOOKUP(CONCATENATE(\"CONV,\",P$18,\",\",$B61,\",,\"),data[],7,FALSE),\"\")","v":""},{"$f":"IFERROR(VLOOKUP(CONCATENATE(\"CONV,\",Q$18,\",\",$B61,\",,\"),data[],7,FALSE),\"\")","v":""},{"$f":"IFERROR(VLOOKUP(CONCATENATE(\"CONV,\",R$18,\",\",$B61,\",,\"),data[],7,FALSE),\"\")","v":""},null,{"$f":"IFERROR(VLOOKUP(CONCATENATE(\"CONV,\",T$18,\",\",$B61,\",,\"),data[],7,FALSE),\"\")","v":""},{"$f":"IFERROR(VLOOKUP(CONCATENATE(\"CONV,\",U$18,\",\",$B61,\",,\"),data[],7,FALSE),\"\")","v":""},{"$f":"IFERROR(VLOOKUP(CONCATENATE(\"CONV,\",V$18,\",\",$B61,\",,\"),data[],7,FALSE),\"\")","v":""}]
[null,"NH3-L",{"$f":"VLOOKUP($B62,flow[],2,FALSE)","v":"ammonia (liquid)"},{"$f":"CONCATENATE(VLOOKUP($B62,flow[],3,FALSE),\" / kWh main output\")","v":"kWh NH3 (l) / kWh main output"},{"$f":"IFERROR(VLOOKUP(CONCATENATE(\"CONV,\",E$18,\",\",$B62,\",,\"),data[],7,FALSE),\"\")","v":""},null,{"$f":"IFERROR(VLOOKUP(CONCATENATE(\"CONV,\",G$18,\",\",$B62,\",,\"),data[],7,FALSE),\"\")","v":""},{"$f":"IFERROR(VLOOKUP(CONCATENATE(\"CONV,\",H$18,\",\",$B62,\",,\"),data[],7,FALSE),\"\")","v":""},{"$f":"IFERROR(VLOOKUP(CONCATENATE(\"CONV,\",I$18,\",\",$B62,\",,\"),data[],7,FALSE),\"\")","v":""},{"$f":"IFERROR(VLOOKUP(CONCATENATE(\"CONV,\",J$18,\",\",$B62,\",,\"),data[],7,FALSE),\"\")","v":""},{"$f":"IFERROR(VLOOKUP(CONCATENATE(\"CONV,\",K$18,\",\",$B62,\",,\"),data[],7,FALSE),\"\")","v":""},{"$f":"IFERROR(VLOOKUP(CONCATENATE(\"CONV,\",L$18,\",\",$B62,\",,\"),data[],7,FALSE),\"\")","v":""},{"$f":"IFERROR(VLOOKUP(CONCATENATE(\"CONV,\",M$18,\",\",$B62,\",,\"),data[],7,FALSE),\"\")","v":""},{"$f":"IFERROR(VLOOKUP(CONCATENATE(\"CONV,\",N$18,\",\",$B62,\",,\"),data[],7,FALSE),\"\")","v":""},{"$f":"IFERROR(VLOOKUP(CONCATENATE(\"CONV,\",O$18,\",\",$B62,\",,\"),data[],7,FALSE),\"\")","v":""},{"$f":"IFERROR(VLOOKUP(CONCATENATE(\"CONV,\",P$18,\",\",$B62,\",,\"),data[],7,FALSE),\"\")","v":""},{"$f":"IFERROR(VLOOKUP(CONCATENATE(\"CONV,\",Q$18,\",\",$B62,\",,\"),data[],7,FALSE),\"\")","v":""},{"$f":"IFERROR(VLOOKUP(CONCATENATE(\"CONV,\",R$18,\",\",$B62,\",,\"),data[],7,FALSE),\"\")","v":""},null,{"$f":"IFERROR(VLOOKUP(CONCATENATE(\"CONV,\",T$18,\",\",$B62,\",,\"),data[],7,FALSE),\"\")","v":""},{"$f":"IFERROR(VLOOKUP(CONCATENATE(\"CONV,\",U$18,\",\",$B62,\",,\"),data[],7,FALSE),\"\")","v":""},{"$f":"IFERROR(VLOOKUP(CONCATENATE(\"CONV,\",V$18,\",\",$B62,\",,\"),data[],7,FALSE),\"\")","v":""}]
[null,"C-S",{"$f":"VLOOKUP($B63,flow[],2,FALSE)","v":"carbon"},{"$f":"CONCATENATE(VLOOKUP($B63,flow[],3,FALSE),\" / kWh main output\")","v":"kg C (s) / kWh main output"},{"$f":"IFERROR(VLOOKUP(CONCATENATE(\"CONV,\",E$18,\",\",$B63,\",,\"),data[],7,FALSE),\"\")","v":""},null,{"$f":"IFERROR(VLOOKUP(CONCATENATE(\"CONV,\",G$18,\",\",$B63,\",,\"),data[],7,FALSE),\"\")","v":""},{"$f":"IFERROR(VLOOKUP(CONCATENATE(\"CONV,\",H$18,\",\",$B63,\",,\"),data[],7,FALSE),\"\")","v":""},{"$f":"IFERROR(VLOOKUP(CONCATENATE(\"CONV,\",I$18,\",\",$B63,\",,\"),data[],7,FALSE),\"\")","v":""},{"$f":"IFERROR(VLOOKUP(CONCATENATE(\"CONV,\",J$18,\",\",$B63,\",,\"),data[],7,FALSE),\"\")","v":""},{"$f":"IFERROR(VLOOKUP(CONCATENATE(\"CONV,\",K$18,\",\",$B63,\",,\"),data[],7,FALSE),\"\")","v":""},{"$f":"IFERROR(VLOOKUP(CONCATENATE(\"CONV,\",L$18,\",\",$B63,\",,\"),data[],7,FALSE),\"\")","v":""},{"$f":"IFERROR(VLOOKUP(CONCATENATE(\"CONV,\",M$18,\",\",$B63,\",,\"),data[],7,FALSE),\"\")","v":""},{"$f":"IFERROR(VLOOKUP(CONCATENATE(\"CONV,\",N$18,\",\",$B63,\",,\"),data[],7,FALSE),\"\")","v":""},{"$f":"IFERROR(VLOOKUP(CONCATENATE(\"CONV,\",O$18,\",\",$B63,\",,\"),data[],7,FALSE),\"\")","v":""},{"$f":"IFERROR(VLOOKUP(CONCATENATE(\"CONV,\",P$18,\",\",$B63,\",,\"),data[],7,FALSE),\"\")","v":""},{"$f":"IFERROR(VLOOKUP(CONCATENATE(\"CONV,\",Q$18,\",\",$B63,\",,\"),data[],7,FALSE),\"\")","v":""},{"$f":"IFERROR(VLOOKUP(CONCATENATE(\"CONV,\",R$18,\",\",$B63,\",,\"),data[],7,FALSE),\"\")","v":""},null,{"$f":"IFERROR(VLOOKUP(CONCATENATE(\"CONV,\",T$18,\",\",$B63,\",,\"),data[],7,FALSE),\"\")","v":""},{"$f":"IFERROR(VLOOKUP(CONCATENATE(\"CONV,\",U$18,\",\",$B63,\",,\"),data[],7,FALSE),\"\")","v":""},{"$f":"IFERROR(VLOOKUP(CONCATENATE(\"CONV,\",V$18,\",\",$B63,\",,\"),data[],7,FALSE),\"\")","v":""}]
[null,"DRI-S",{"$f":"VLOOKUP($B64,flow[],2,FALSE)","v":"Green iron"},{"$f":"CONCATENATE(VLOOKUP($B64,flow[],3,FALSE),\" / kWh main output\")","v":"kg DRI (s) / kWh main output"},{"$f":"IFERROR(VLOOKUP(CONCATENATE(\"CONV,\",E$18,\",\",$B64,\",,\"),data[],7,FALSE),\"\")","v":""},null,{"$f":"IFERROR(VLOOKUP(CONCATENATE(\"CONV,\",G$18,\",\",$B64,\",,\"),data[],7,FALSE),\"\")","v":""},{"$f":"IFERROR(VLOOKUP(CONCATENATE(\"CONV,\",H$18,\",\",$B64,\",,\"),data[],7,FALSE),\"\")","v":""},{"$f":"IFERROR(VLOOKUP(CONCATENATE(\"CONV,\",I$18,\",\",$B64,\",,\"),data[],7,FALSE),\"\")","v":""},{"$f":"IFERROR(VLOOKUP(CONCATENATE(\"CONV,\",J$18,\",\",$B64,\",,\"),data[],7,FALSE),\"\")","v":""},{"$f":"IFERROR(VLOOKUP(CONCATENATE(\"CONV,\",K$18,\",\",$B64,\",,\"),data[],7,FALSE),\"\")","v":""},{"$f":"IFERROR(VLOOKUP(CONCATENATE(\"CONV,\",L$18,\",\",$B64,\",,\"),data[],7,FALSE),\"\")","v":""},{"$f":"IFERROR(VLOOKUP(CONCATENATE(\"CONV,\",M$18,\",\",$B64,\",,\"),data[],7,FALSE),\"\")","v":""},{"$f":"IFERROR(VLOOKUP(CONCATENATE(\"CONV,\",N$18,\",\",$B64,\",,\"),data[],7,FALSE),\"\")","v":""},{"$f":"IFERROR(VLOOKUP(CONCATENATE(\"CONV,\",O$18,\",\",$B64,\",,\"),data[],7,FALSE),\"\")","v":""},{"$f":"IFERROR(VLOOKUP(CONCATENATE(\"CONV,\",P$18,\",\",$B64,\",,\"),data[],7,FALSE),\"\")","v":""},{"$f":"IFERROR(VLOOKUP(CONCATENATE(\"CONV,\",Q$18,\",\",$B64,\",,\"),data[],7,FALSE),\"\")","v":""},{"$f":"IFERROR(VLOOKUP(CONCATENATE(\"CONV,\",R$18,\",\",$B64,\",,\"),data[],7,FALSE),\"\")","v":""},null,{"$f":"IFERROR(VLOOKUP(CONCATENATE(\"CONV,\",T$18,\",\",$B64,\",,\"),data[],7,FALSE),\"\")","v":""},{"$f":"IFERROR(VLOOKUP(CONCATENATE(\"CONV,\",U$18,\",\",$B64,\",,\"),data[],7,FALSE),\"\")","v":""},{"$f":"IFERROR(VLOOKUP(CONCATENATE(\"CONV,\",V$18,\",\",$B64,\",,\"),data[],7,FALSE),\"\")","v":""}]
[]
[null,"Costs",null,null,null,null,null,null,null,null,null,null,null,null,null,null,null,null,null,null,null,null,null,null,null,null,null,"Total costs"]
[null,null,null,null,"Electricity generation",null,"Electrolysis","Derivate production",null,null,null,null,null,null,null,null,null,null,null,"Carbon","Water","Heat",null,"Electricity and H2 storage","Transportation (Ship)","Transportation (Pipeline)",null,"total"]
[null,"COST-OPEX","OPEX",{"$f":"_dims!$CA$2&\" final output\"","v":"USD/MWh H2 final output"},{"$f":"SUMIFS(output[value],output[target],sel_country_code,output[source],sel_region_code,output[process_class],E$67,output[variable],$B68)","v":9.340905842759426},null,{"$f":"SUMIFS(output[value],output[target],sel_country_code,output[source],sel_region_code,output[process_class],G$67,output[variable],$B68)","v":3.592247205369222},{"$f":"SUMIFS(output[value],output[target],sel_country_code,output[source],sel_region_code,output[process_class],H$67,output[variable],$B68)","v":0},null,null,null,null,null,null,null,null,null,null,null,{"$f":"SUMIFS(output[value],output[target],sel_country_code,output[source],sel_region_code,output[process_class],T$67,output[variable],$B68)","v":0},{"$f":"SUMIFS(output[value],output[target],sel_country_code,output[source],sel_region_code,output[process_class],U$67,output[variable],$B68)","v":3.5289205170639167E-2},{"$f":"SUMIFS(output[value],output[target],sel_country_code,output[source],sel_region_code,output[process_class],V$67,output[variable],$B68)","v":0},null,{"$f":"SUMIFS(output[value],output[target],sel_country_code,output[source],sel_region_code,output[process_class],X$67,output[variable],$B68)","v":2.9833005337473737},{"$f":"SUMIFS(output[value],output[target],sel_country_code,output[source],sel_region_code,output[process_class],Y$67,output[variable],$B68)","v":24.872112957382136},{"$f":"SUMIFS(output[value],output[target],sel_country_code,output[source],sel_region_code,output[process_class],Z$67,output[variable],$B68)","v":0},null,{"$f":"SUM(E68:Z68)","v":40.823855744428798}]
[null,"COST-CAPEX","CAPEX",{"$f":"_dims!$CA$2&\" final output\"","v":"USD/MWh H2 final output"},{"$f":"SUMIFS(output[value],output[target],sel_country_code,output[source],sel_region_code,output[process_class],E$67,output[variable],$B69)","v":46.624762923771669},null,{"$f":"SUMIFS(output[value],output[target],sel_country_code,output[source],sel_region_code,output[process_class],G$67,output[variable],$B69)","v":17.930560176211269},{"$f":"SUMIFS(output[value],output[target],sel_country_code,output[source],sel_region_code,output[process_class],H$67,output[variable],$B69)","v":0},null,null,null,null,null,null,null,null,null,null,null,{"$f":"SUMIFS(output[value],output[target],sel_country_code,output[source],sel_region_code,output[process_class],T$67,output[variable],$B69)","v":0},{"$f":"SUMIFS(output[value],output[target],sel_country_code,output[source],sel_region_code,output[process_class],U$67,output[variable],$B69)","v":8.8072337551971872E-2},{"$f":"SUMIFS(output[value],output[target],sel_country_code,output[source],sel_region_code,output[process_class],V$67,output[variable],$B69)","v":0},null,{"$f":"SUMIFS(output[value],output[target],sel_country_code,output[source],sel_region_code,output[process_class],X$67,output[variable],$B69)","v":0},{"$f":"SUMIFS(output[value],output[target],sel_country_code,output[source],sel_region_code,output[process_class],Y$67,output[variable],$B69)","v":40.055643960437493},{"$f":"SUMIFS(output[value],output[target],sel_country_code,output[source],sel_region_code,output[process_class],Z$67,output[variable],$B69)","v":0},null,{"$f":"SUM(E69:Z69)","v":104.69903939797241}]
[null,"COST-FLOW","Secondary inputs",{"$f":"_dims!$CA$2&\" final output\"","v":"USD/MWh H2 final output"},{"$f":"SUMIFS(output[value],output[target],sel_country_code,output[source],sel_region_code,output[process_class],E$67,output[variable],$B70)","v":0},null,{"$f":"SUMIFS(output[value],output[target],sel_country_code,output[source],sel_region_code,output[process_class],G$67,output[variable],$B70)","v":0},{"$f":"SUMIFS(output[value],output[target],sel_country_code,output[source],sel_region_code,output[process_class],H$67,output[variable],$B70)","v":0},null,null,null,null,null,null,null,null,null,null,null,{"$f":"SUMIFS(output[value],output[target],sel_country_code,output[source],sel_region_code,output[process_class],T$67,output[variable],$B70)","v":0},{"$f":"SUMIFS(output[value],output[target],sel_country_code,output[source],sel_region_code,output[process_class],U$67,output[variable],$B70)","v":7.8280375503673241E-2},{"$f":"SUMIFS(output[value],output[target],sel_country_code,output[source],sel_region_code,output[process_class],V$67,output[variable],$B70)","v":0},null,{"$f":"SUMIFS(output[value],output[target],sel_country_code,output[source],sel_region_code,output[process_class],X$67,output[variable],$B70)","v":0},{"$f":"SUMIFS(output[value],output[target],sel_country_code,output[source],sel_region_code,output[process_class],Y$67,output[variable],$B70)","v":26.102159220964726},{"$f":"SUMIFS(output[value],output[target],sel_country_code,output[source],sel_region_code,output[process_class],Z$67,output[variable],$B70)","v":0},null,26.1804395964684]
[null,"total","Total",{"$f":"_dims!$CA$2&\" final output\"","v":"USD/MWh H2 final output"},{"$f":"SUM(E68:E70)","v":55.965668766531095},null,{"$f":"SUM(G68:G70)","v":21.522807381580492},{"$f":"SUM(H68:H70)","v":0},null,null,null,null,null,null,null,null,null,null,null,{"$f":"SUM(T68:T70)","v":0},{"$f":"SUM(U68:U70)","v":0.2016419182262843},0,null,{"$f":"SUM(X68:X70)","v":2.9833005337473737},{"$f":"SUM(Y68:Y70)","v":91.029916138784358},{"$f":"SUM(Z68:Z70)","v":0},null,171.70333473886961]

{"sheet":"_view_data_regions","index":37,"n_rows":87,"n_cols":12,"rows_kept":87,"cut":false,"hidden":true,"merged":[[2,2,2,4]]}
[null,"View country specific data"]
[]
[null,null,"Transportation distance",null,null,null,"full load hours","full load hours","full load hours","full load hours",null,"interest rate"]
[null,null,"DST-S-D","DST-S-C","SEASHARE",null,{"$f":"INDEX(parameter[parameter_code],MATCH(G$3,parameter[parameter_name],0),1)","v":"FLH"},{"$f":"INDEX(parameter[parameter_code],MATCH(H$3,parameter[parameter_name],0),1)","v":"FLH"},{"$f":"INDEX(parameter[parameter_code],MATCH(I$3,parameter[parameter_name],0),1)","v":"FLH"},{"$f":"INDEX(parameter[parameter_code],MATCH(J$3,parameter[parameter_name],0),1)","v":"FLH"},null,{"$f":"INDEX(parameter[parameter_code],MATCH(L$3,parameter[parameter_name],0),1)","v":"WACC"}]
[null,null,null,null,null,null,{"$f":"INDEX(process[process_code],MATCH(G$6,process[process_name],0),1)","v":{"$error":"#N/A"}},{"$f":"INDEX(process[process_code],MATCH(H$6,process[process_name],0),1)","v":"WIND-ON"},{"$f":"INDEX(process[process_code],MATCH(I$6,process[process_name],0),1)","v":"WIND-OFF"},{"$f":"INDEX(process[process_code],MATCH(J$6,process[process_name],0),1)","v":{"$error":"#N/A"}},null,{"$f":"INDEX(process[process_code],MATCH(L$6,process[process_name],0),1)","v":{"$error":"#N/A"}}]
[null,null,{"$f":"VLOOKUP(C$4,parameter[],2,FALSE)","v":"shipping distance"},{"$f":"VLOOKUP(D$4,parameter[],2,FALSE)","v":"distance between RE site and coast"},{"$f":"VLOOKUP(E$4,parameter[],2,FALSE)","v":"sea share of pipeline distance"},null,"PV","Wind Onshore","Wind Offshore","hybrid-RES"]
["Country code","Source country",{"$f":"VLOOKUP(C$4,parameter[],3,FALSE)","v":"km"},{"$f":"VLOOKUP(D$4,parameter[],3,FALSE)","v":"km"},{"$f":"VLOOKUP(E$4,parameter[],3,FALSE)","v":"fraction"},null,{"$f":"VLOOKUP(G$4,parameter[],3,FALSE)","v":"h"},{"$f":"VLOOKUP(H$4,parameter[],3,FALSE)","v":"h"},{"$f":"VLOOKUP(I$4,parameter[],3,FALSE)","v":"h"},{"$f":"VLOOKUP(J$4,parameter[],3,FALSE)","v":"h"},null,{"$f":"VLOOKUP(L$4,parameter[],3,FALSE)","v":"fraction"}]
[{"$f":"sel_region_code","v":"MAR"},{"$f":"VLOOKUP($A8,region[],2,FALSE)","v":"Morocco"},{"$f":"IFERROR(VLOOKUP(C$4&\",,,\"&$A8&\",\"&sel_country_code,data[],7,FALSE),\"\")","v":2668.15},{"$f":"IFERROR(VLOOKUP(D$4&\",,,\"&$A8&\",\"&sel_country_code,data[],7,FALSE),\"\")","v":""},{"$f":"IFERROR(VLOOKUP(E$4&\",,,\"&$A8&\",\"&sel_country_code,data[],7,FALSE),\"\")","v":""},null,{"$f":"IFERROR(VLOOKUP(G$4&\",\"&G$5&\",,\"&$A8&\",\",data[],7,FALSE),\"\")","v":""},{"$f":"IFERROR(VLOOKUP(H$4&\",\"&H$5&\",,\"&$A8&\",\",data[],7,FALSE),\"\")","v":3289},{"$f":"IFERROR(VLOOKUP(I$4&\",\"&I$5&\",,\"&$A8&\",\",data[],7,FALSE),\"\")","v":4643},{"$f":"IFERROR(VLOOKUP(J$4&\",\"&J$5&\",,\"&$A8&\",\",data[],7,FALSE),\"\")","v":""},null,{"$f":"IFERROR(VLOOKUP(L$4&\",,,\"&$A8&\",\",data[],7,FALSE),\"\")","v":7.731973992583685E-2}]
["ARE",{"$f":"VLOOKUP($A9,region[],2,FALSE)","v":"United Arab Emirates"},{"$f":"IFERROR(VLOOKUP(C$4&\",,,\"&$A9&\",\"&sel_country_code,data[],7,FALSE),\"\")","v":12441.9},{"$f":"IFERROR(VLOOKUP(D$4&\",,,\"&$A9&\",\"&sel_country_code,data[],7,FALSE),\"\")","v":""},{"$f":"IFERROR(VLOOKUP(E$4&\",,,\"&$A9&\",\"&sel_country_code,data[],7,FALSE),\"\")","v":""},null,{"$f":"IFERROR(VLOOKUP(G$4&\",\"&G$5&\",,\"&$A9&\",\",data[],7,FALSE),\"\")","v":""},{"$f":"IFERROR(VLOOKUP(H$4&\",\"&H$5&\",,\"&$A9&\",\",data[],7,FALSE),\"\")","v":1642.3104587999985},{"$f":"IFERROR(VLOOKUP(I$4&\",\"&I$5&\",,\"&$A9&\",\",data[],7,FALSE),\"\")","v":2453},{"$f":"IFERROR(VLOOKUP(J$4&\",\"&J$5&\",,\"&$A9&\",\",data[],7,FALSE),\"\")","v":""},null,{"$f":"IFERROR(VLOOKUP(L$4&\",,,\"&$A9&\",\",data[],7,FALSE),\"\")","v":5.5673211551852057E-2}]
["ARG",{"$f":"VLOOKUP($A10,region[],2,FALSE)","v":"Argentina"},{"$f":"IFERROR(VLOOKUP(C$4&\",,,\"&$A10&\",\"&sel_country_code,data[],7,FALSE),\"\")","v":12728.796},{"$f":"IFERROR(VLOOKUP(D$4&\",,,\"&$A10&\",\"&sel_country_code,data[],7,FALSE),\"\")","v":""},{"$f":"IFERROR(VLOOKUP(E$4&\",,,\"&$A10&\",\"&sel_country_code,data[],7,FALSE),\"\")","v":""},null,{"$f":"IFERROR(VLOOKUP(G$4&\",\"&G$5&\",,\"&$A10&\",\",data[],7,FALSE),\"\")","v":""},{"$f":"IFERROR(VLOOKUP(H$4&\",\"&H$5&\",,\"&$A10&\",\",data[],7,FALSE),\"\")","v":5369},{"$f":"IFERROR(VLOOKUP(I$4&\",\"&I$5&\",,\"&$A10&\",\",data[],7,FALSE),\"\")","v":5369},{"$f":"IFERROR(VLOOKUP(J$4&\",\"&J$5&\",,\"&$A10&\",\",data[],7,FALSE),\"\")","v":""},null,{"$f":"IFERROR(VLOOKUP(L$4&\",,,\"&$A10&\",\",data[],7,FALSE),\"\")","v":0.15031035355923136}]
["ARG-BA",{"$f":"VLOOKUP($A11,region[],2,FALSE)","v":"Argentina (Buenos Aires)"},{"$f":"IFERROR(VLOOKUP(C$4&\",,,\"&$A11&\",\"&sel_country_code,data[],7,FALSE),\"\")","v":12728.796},{"$f":"IFERROR(VLOOKUP(D$4&\",,,\"&$A11&\",\"&sel_country_code,data[],7,FALSE),\"\")","v":""},{"$f":"IFERROR(VLOOKUP(E$4&\",,,\"&$A11&\",\"&sel_country_code,data[],7,FALSE),\"\")","v":""},null,{"$f":"IFERROR(VLOOKUP(G$4&\",\"&G$5&\",,\"&$A11&\",\",data[],7,FALSE),\"\")","v":""},{"$f":"IFERROR(VLOOKUP(H$4&\",\"&H$5&\",,\"&$A11&\",\",data[],7,FALSE),\"\")","v":3756.6367058000046},{"$f":"IFERROR(VLOOKUP(I$4&\",\"&I$5&\",,\"&$A11&\",\",data[],7,FALSE),\"\")","v":3854.4},{"$f":"IFERROR(VLOOKUP(J$4&\",\"&J$5&\",,\"&$A11&\",\",data[],7,FALSE),\"\")","v":""},null,{"$f":"IFERROR(VLOOKUP(L$4&\",,,\"&$A11&\",\",data[],7,FALSE),\"\")","v":0.15031035355923136}]
["ARG-CAT",{"$f":"VLOOKUP($A12,region[],2,FALSE)","v":"Argentina (Catamarca)"},{"$f":"IFERROR(VLOOKUP(C$4&\",,,\"&$A12&\",\"&sel_country_code,data[],7,FALSE),\"\")","v":12728.796},{"$f":"IFERROR(VLOOKUP(D$4&\",,,\"&$A12&\",\"&sel_country_code,data[],7,FALSE),\"\")","v":""},{"$f":"IFERROR(VLOOKUP(E$4&\",,,\"&$A12&\",\"&sel_country_code,data[],7,FALSE),\"\")","v":""},null,{"$f":"IFERROR(VLOOKUP(G$4&\",\"&G$5&\",,\"&$A12&\",\",data[],7,FALSE),\"\")","v":""},{"$f":"IFERROR(VLOOKUP(H$4&\",\"&H$5&\",,\"&$A12&\",\",data[],7,FALSE),\"\")","v":2884.1487291833364},{"$f":"IFERROR(VLOOKUP(I$4&\",\"&I$5&\",,\"&$A12&\",\",data[],7,FALSE),\"\")","v":""},{"$f":"IFERROR(VLOOKUP(J$4&\",\"&J$5&\",,\"&$A12&\",\",data[],7,FALSE),\"\")","v":""},null,{"$f":"IFERROR(VLOOKUP(L$4&\",,,\"&$A12&\",\",data[],7,FALSE),\"\")","v":0.15031035355923136}]
["ARG-CBA",{"$f":"VLOOKUP($A13,region[],2,FALSE)","v":"Argentina (Autonomous City of Buenos Aires)"},{"$f":"IFERROR(VLOOKUP(C$4&\",,,\"&$A13&\",\"&sel_country_code,data[],7,FALSE),\"\")","v":12728.796},{"$f":"IFERROR(VLOOKUP(D$4&\",,,\"&$A13&\",\"&sel_country_code,data[],7,FALSE),\"\")","v":""},{"$f":"IFERROR(VLOOKUP(E$4&\",,,\"&$A13&\",\"&sel_country_code,data[],7,FALSE),\"\")","v":""},null,{"$f":"IFERROR(VLOOKUP(G$4&\",\"&G$5&\",,\"&$A13&\",\",data[],7,FALSE),\"\")","v":""},{"$f":"IFERROR(VLOOKUP(H$4&\",\"&H$5&\",,\"&$A13&\",\",data[],7,FALSE),\"\")","v":3601.8171951299964},{"$f":"IFERROR(VLOOKUP(I$4&\",\"&I$5&\",,\"&$A13&\",\",data[],7,FALSE),\"\")","v":3854.4},{"$f":"IFERROR(VLOOKUP(J$4&\",\"&J$5&\",,\"&$A13&\",\",data[],7,FALSE),\"\")","v":""},null,{"$f":"IFERROR(VLOOKUP(L$4&\",,,\"&$A13&\",\",data[],7,FALSE),\"\")","v":0.15031035355923136}]
["ARG-CHA",{"$f":"VLOOKUP($A14,region[],2,FALSE)","v":"Argentina (Chaco)"},{"$f":"IFERROR(VLOOKUP(C$4&\",,,\"&$A14&\",\"&sel_country_code,data[],7,FALSE),\"\")","v":12728.796},{"$f":"IFERROR(VLOOKUP(D$4&\",,,\"&$A14&\",\"&sel_country_code,data[],7,FALSE),\"\")","v":""},{"$f":"IFERROR(VLOOKUP(E$4&\",,,\"&$A14&\",\"&sel_country_code,data[],7,FALSE),\"\")","v":""},null,{"$f":"IFERROR(VLOOKUP(G$4&\",\"&G$5&\",,\"&$A14&\",\",data[],7,FALSE),\"\")","v":""},{"$f":"IFERROR(VLOOKUP(H$4&\",\"&H$5&\",,\"&$A14&\",\",data[],7,FALSE),\"\")","v":3079.6049933000008},{"$f":"IFERROR(VLOOKUP(I$4&\",\"&I$5&\",,\"&$A14&\",\",data[],7,FALSE),\"\")","v":""},{"$f":"IFERROR(VLOOKUP(J$4&\",\"&J$5&\",,\"&$A14&\",\",data[],7,FALSE),\"\")","v":""},null,{"$f":"IFERROR(VLOOKUP(L$4&\",,,\"&$A14&\",\",data[],7,FALSE),\"\")","v":0.15031035355923136}]
["ARG-CHU",{"$f":"VLOOKUP($A15,region[],2,FALSE)","v":"Argentina (Chubut)"},{"$f":"IFERROR(VLOOKUP(C$4&\",,,\"&$A15&\",\"&sel_country_code,data[],7,FALSE),\"\")","v":12728.796},{"$f":"IFERROR(VLOOKUP(D$4&\",,,\"&$A15&\",\"&sel_country_code,data[],7,FALSE),\"\")","v":""},{"$f":"IFERROR(VLOOKUP(E$4&\",,,\"&$A15&\",\"&sel_country_code,data[],7,FALSE),\"\")","v":""},null,{"$f":"IFERROR(VLOOKUP(G$4&\",\"&G$5&\",,\"&$A15&\",\",data[],7,FALSE),\"\")","v":""},{"$f":"IFERROR(VLOOKUP(H$4&\",\"&H$5&\",,\"&$A15&\",\",data[],7,FALSE),\"\")","v":5763.0835753699857},{"$f":"IFERROR(VLOOKUP(I$4&\",\"&I$5&\",,\"&$A15&\",\",data[],7,FALSE),\"\")","v":5763.0835753699857},{"$f":"IFERROR(VLOOKUP(J$4&\",\"&J$5&\",,\"&$A15&\",\",data[],7,FALSE),\"\")","v":""},null,{"$f":"IFERROR(VLOOKUP(L$4&\",,,\"&$A15&\",\",data[],7,FALSE),\"\")","v":0.15031035355923136}]
["ARG-COR",{"$f":"VLOOKUP($A16,region[],2,FALSE)","v":"Argentina (Corrientes)"},{"$f":"IFERROR(VLOOKUP(C$4&\",,,\"&$A16&\",\"&sel_country_code,data[],7,FALSE),\"\")","v":12728.796},{"$f":"IFERROR(VLOOKUP(D$4&\",,,\"&$A16&\",\"&sel_country_code,data[],7,FALSE),\"\")","v":""},{"$f":"IFERROR(VLOOKUP(E$4&\",,,\"&$A16&\",\"&sel_country_code,data[],7,FALSE),\"\")","v":""},null,{"$f":"IFERROR(VLOOKUP(G$4&\",\"&G$5&\",,\"&$A16&\",\",data[],7,FALSE),\"\")","v":""},{"$f":"IFERROR(VLOOKUP(H$4&\",\"&H$5&\",,\"&$A16&\",\",data[],7,FALSE),\"\")","v":3045.2758197400012},{"$f":"IFERROR(VLOOKUP(I$4&\",\"&I$5&\",,\"&$A16&\",\",data[],7,FALSE),\"\")","v":""},{"$f":"IFERROR(VLOOKUP(J$4&\",\"&J$5&\",,\"&$A16&\",\",data[],7,FALSE),\"\")","v":""},null,{"$f":"IFERROR(VLOOKUP(L$4&\",,,\"&$A16&\",\",data[],7,FALSE),\"\")","v":0.15031035355923136}]
["ARG-CRB",{"$f":"VLOOKUP($A17,region[],2,FALSE)","v":"Argentina (Córdoba)"},{"$f":"IFERROR(VLOOKUP(C$4&\",,,\"&$A17&\",\"&sel_country_code,data[],7,FALSE),\"\")","v":12728.796},{"$f":"IFERROR(VLOOKUP(D$4&\",,,\"&$A17&\",\"&sel_country_code,data[],7,FALSE),\"\")","v":""},{"$f":"IFERROR(VLOOKUP(E$4&\",,,\"&$A17&\",\"&sel_country_code,data[],7,FALSE),\"\")","v":""},null,{"$f":"IFERROR(VLOOKUP(G$4&\",\"&G$5&\",,\"&$A17&\",\",data[],7,FALSE),\"\")","v":""},{"$f":"IFERROR(VLOOKUP(H$4&\",\"&H$5&\",,\"&$A17&\",\",data[],7,FALSE),\"\")","v":2605.2082556500004},{"$f":"IFERROR(VLOOKUP(I$4&\",\"&I$5&\",,\"&$A17&\",\",data[],7,FALSE),\"\")","v":""},{"$f":"IFERROR(VLOOKUP(J$4&\",\"&J$5&\",,\"&$A17&\",\",data[],7,FALSE),\"\")","v":""},null,{"$f":"IFERROR(VLOOKUP(L$4&\",,,\"&$A17&\",\",data[],7,FALSE),\"\")","v":0.15031035355923136}]
["ARG-CRU",{"$f":"VLOOKUP($A18,region[],2,FALSE)","v":"Argentina (Santa Cruz)"},{"$f":"IFERROR(VLOOKUP(C$4&\",,,\"&$A18&\",\"&sel_country_code,data[],7,FALSE),\"\")","v":12728.796},{"$f":"IFERROR(VLOOKUP(D$4&\",,,\"&$A18&\",\"&sel_country_code,data[],7,FALSE),\"\")","v":""},{"$f":"IFERROR(VLOOKUP(E$4&\",,,\"&$A18&\",\"&sel_country_code,data[],7,FALSE),\"\")","v":""},null,{"$f":"IFERROR(VLOOKUP(G$4&\",\"&G$5&\",,\"&$A18&\",\",data[],7,FALSE),\"\")","v":""},{"$f":"IFERROR(VLOOKUP(H$4&\",\"&H$5&\",,\"&$A18&\",\",data[],7,FALSE),\"\")","v":5854.9926980599967},{"$f":"IFERROR(VLOOKUP(I$4&\",\"&I$5&\",,\"&$A18&\",\",data[],7,FALSE),\"\")","v":5854.9926980599967},{"$f":"IFERROR(VLOOKUP(J$4&\",\"&J$5&\",,\"&$A18&\",\",data[],7,FALSE),\"\")","v":""},null,{"$f":"IFERROR(VLOOKUP(L$4&\",,,\"&$A18&\",\",data[],7,FALSE),\"\")","v":0.15031035355923136}]
["ARG-EST",{"$f":"VLOOKUP($A19,region[],2,FALSE)","v":"Argentina (Santiago del Estero)"},{"$f":"IFERROR(VLOOKUP(C$4&\",,,\"&$A19&\",\"&sel_country_code,data[],7,FALSE),\"\")","v":12728.796},{"$f":"IFERROR(VLOOKUP(D$4&\",,,\"&$A19&\",\"&sel_country_code,data[],7,FALSE),\"\")","v":""},{"$f":"IFERROR(VLOOKUP(E$4&\",,,\"&$A19&\",\"&sel_country_code,data[],7,FALSE),\"\")","v":""},null,{"$f":"IFERROR(VLOOKUP(G$4&\",\"&G$5&\",,\"&$A19&\",\",data[],7,FALSE),\"\")","v":""},{"$f":"IFERROR(VLOOKUP(H$4&\",\"&H$5&\",,\"&$A19&\",\",data[],7,FALSE),\"\")","v":3710.4766984999937},{"$f":"IFERROR(VLOOKUP(I$4&\",\"&I$5&\",,\"&$A19&\",\",data[],7,FALSE),\"\")","v":""},{"$f":"IFERROR(VLOOKUP(J$4&\",\"&J$5&\",,\"&$A19&\",\",data[],7,FALSE),\"\")","v":""},null,{"$f":"IFERROR(VLOOKUP(L$4&\",,,\"&$A19&\",\",data[],7,FALSE),\"\")","v":0.15031035355923136}]
["ARG-FOR",{"$f":"VLOOKUP($A20,region[],2,FALSE)","v":"Argentina (Formosa)"},{"$f":"IFERROR(VLOOKUP(C$4&\",,,\"&$A20&\",\"&sel_country_code,data[],7,FALSE),\"\")","v":12728.796},{"$f":"IFERROR(VLOOKUP(D$4&\",,,\"&$A20&\",\"&sel_country_code,data[],7,FALSE),\"\")","v":""},{"$f":"IFERROR(VLOOKUP(E$4&\",,,\"&$A20&\",\"&sel_country_code,data[],7,FALSE),\"\")","v":""},null,{"$f":"IFERROR(VLOOKUP(G$4&\",\"&G$5&\",,\"&$A20&\",\",data[],7,FALSE),\"\")","v":""},{"$f":"IFERROR(VLOOKUP(H$4&\",\"&H$5&\",,\"&$A20&\",\",data[],7,FALSE),\"\")","v":3781.7001483800022},{"$f":"IFERROR(VLOOKUP(I$4&\",\"&I$5&\",,\"&$A20&\",\",data[],7,FALSE),\"\")","v":""},{"$f":"IFERROR(VLOOKUP(J$4&\",\"&J$5&\",,\"&$A20&\",\",data[],7,FALSE),\"\")","v":""},null,{"$f":"IFERROR(VLOOKUP(L$4&\",,,\"&$A20&\",\",data[],7,FALSE),\"\")","v":0.15031035355923136}]
["ARG-FUE",{"$f":"VLOOKUP($A21,region[],2,FALSE)","v":"Argentina (Tierra del Fuego, Antártida e Islas del Atlántico Sur)"},{"$f":"IFERROR(VLOOKUP(C$4&\",,,\"&$A21&\",\"&sel_country_code,data[],7,FALSE),\"\")","v":12728.796},{"$f":"IFERROR(VLOOKUP(D$4&\",,,\"&$A21&\",\"&sel_country_code,data[],7,FALSE),\"\")","v":""},{"$f":"IFERROR(VLOOKUP(E$4&\",,,\"&$A21&\",\"&sel_country_code,data[],7,FALSE),\"\")","v":""},null,{"$f":"IFERROR(VLOOKUP(G$4&\",\"&G$5&\",,\"&$A21&\",\",data[],7,FALSE),\"\")","v":""},{"$f":"IFERROR(VLOOKUP(H$4&\",\"&H$5&\",,\"&$A21&\",\",data[],7,FALSE),\"\")","v":3710.4766984999937},{"$f":"IFERROR(VLOOKUP(I$4&\",\"&I$5&\",,\"&$A21&\",\",data[],7,FALSE),\"\")","v":3854.4},{"$f":"IFERROR(VLOOKUP(J$4&\",\"&J$5&\",,\"&$A21&\",\",data[],7,FALSE),\"\")","v":""},null,{"$f":"IFERROR(VLOOKUP(L$4&\",,,\"&$A21&\",\",data[],7,FALSE),\"\")","v":0.15031035355923136}]
["ARG-JUJ",{"$f":"VLOOKUP($A22,region[],2,FALSE)","v":"Argentina (Jujuy)"},{"$f":"IFERROR(VLOOKUP(C$4&\",,,\"&$A22&\",\"&sel_country_code,data[],7,FALSE),\"\")","v":12728.796},{"$f":"IFERROR(VLOOKUP(D$4&\",,,\"&$A22&\",\"&sel_country_code,data[],7,FALSE),\"\")","v":""},{"$f":"IFERROR(VLOOKUP(E$4&\",,,\"&$A22&\",\"&sel_country_code,data[],7,FALSE),\"\")","v":""},null,{"$f":"IFERROR(VLOOKUP(G$4&\",\"&G$5&\",,\"&$A22&\",\",data[],7,FALSE),\"\")","v":""},{"$f":"IFERROR(VLOOKUP(H$4&\",\"&H$5&\",,\"&$A22&\",\",data[],7,FALSE),\"\")","v":3773.9698333333426},{"$f":"IFERROR(VLOOKUP(I$4&\",\"&I$5&\",,\"&$A22&\",\",data[],7,FALSE),\"\")","v":""},{"$f":"IFERROR(VLOOKUP(J$4&\",\"&J$5&\",,\"&$A22&\",\",data[],7,FALSE),\"\")","v":""},null,{"$f":"IFERROR(VLOOKUP(L$4&\",,,\"&$A22&\",\",data[],7,FALSE),\"\")","v":0.15031035355923136}]
["ARG-LAR",{"$f":"VLOOKUP($A23,region[],2,FALSE)","v":"Argentina (La Rioja)"},{"$f":"IFERROR(VLOOKUP(C$4&\",,,\"&$A23&\",\"&sel_country_code,data[],7,FALSE),\"\")","v":12728.796},{"$f":"IFERROR(VLOOKUP(D$4&\",,,\"&$A23&\",\"&sel_country_code,data[],7,FALSE),\"\")","v":""},{"$f":"IFERROR(VLOOKUP(E$4&\",,,\"&$A23&\",\"&sel_country_code,data[],7,FALSE),\"\")","v":""},null,{"$f":"IFERROR(VLOOKUP(G$4&\",\"&G$5&\",,\"&$A23&\",\",data[],7,FALSE),\"\")","v":""},{"$f":"IFERROR(VLOOKUP(H$4&\",\"&H$5&\",,\"&$A23&\",\",data[],7,FALSE),\"\")","v":3188.6275809666754},{"$f":"IFERROR(VLOOKUP(I$4&\",\"&I$5&\",,\"&$A23&\",\",data[],7,FALSE),\"\")","v":""},{"$f":"IFERROR(VLOOKUP(J$4&\",\"&J$5&\",,\"&$A23&\",\",data[],7,FALSE),\"\")","v":""},null,{"$f":"IFERROR(VLOOKUP(L$4&\",,,\"&$A23&\",\",data[],7,FALSE),\"\")","v":0.15031035355923136}]
["ARG-MEN",{"$f":"VLOOKUP($A24,region[],2,FALSE)","v":"Argentina (Mendoza)"},{"$f":"IFERROR(VLOOKUP(C$4&\",,,\"&$A24&\",\"&sel_country_code,data[],7,FALSE),\"\")","v":12728.796},{"$f":"IFERROR(VLOOKUP(D$4&\",,,\"&$A24&\",\"&sel_country_code,data[],7,FALSE),\"\")","v":""},{"$f":"IFERROR(VLOOKUP(E$4&\",,,\"&$A24&\",\"&sel_country_code,data[],7,FALSE),\"\")","v":""},null,{"$f":"IFERROR(VLOOKUP(G$4&\",\"&G$5&\",,\"&$A24&\",\",data[],7,FALSE),\"\")","v":""},{"$f":"IFERROR(VLOOKUP(H$4&\",\"&H$5&\",,\"&$A24&\",\",data[],7,FALSE),\"\")","v":3077.1630279499932},{"$f":"IFERROR(VLOOKUP(I$4&\",\"&I$5&\",,\"&$A24&\",\",data[],7,FALSE),\"\")","v":""},{"$f":"IFERROR(VLOOKUP(J$4&\",\"&J$5&\",,\"&$A24&\",\",data[],7,FALSE),\"\")","v":""},null,{"$f":"IFERROR(VLOOKUP(L$4&\",,,\"&$A24&\",\",data[],7,FALSE),\"\")","v":0.15031035355923136}]
["ARG-MIS",{"$f":"VLOOKUP($A25,region[],2,FALSE)","v":"Argentina (Misiones)"},{"$f":"IFERROR(VLOOKUP(C$4&\",,,\"&$A25&\",\"&sel_country_code,data[],7,FALSE),\"\")","v":12728.796},{"$f":"IFERROR(VLOOKUP(D$4&\",,,\"&$A25&\",\"&sel_country_code,data[],7,FALSE),\"\")","v":""},{"$f":"IFERROR(VLOOKUP(E$4&\",,,\"&$A25&\",\"&sel_country_code,data[],7,FALSE),\"\")","v":""},null,{"$f":"IFERROR(VLOOKUP(G$4&\",\"&G$5&\",,\"&$A25&\",\",data[],7,FALSE),\"\")","v":""},{"$f":"IFERROR(VLOOKUP(H$4&\",\"&H$5&\",,\"&$A25&\",\",data[],7,FALSE),\"\")","v":1777.2726296600022},{"$f":"IFERROR(VLOOKUP(I$4&\",\"&I$5&\",,\"&$A25&\",\",data[],7,FALSE),\"\")","v":""},{"$f":"IFERROR(VLOOKUP(J$4&\",\"&J$5&\",,\"&$A25&\",\",data[],7,FALSE),\"\")","v":""},null,{"$f":"IFERROR(VLOOKUP(L$4&\",,,\"&$A25&\",\",data[],7,FALSE),\"\")","v":0.15031035355923136}]
["ARG-NEG",{"$f":"VLOOKUP($A26,region[],2,FALSE)","v":"Argentina (Río Negro)"},{"$f":"IFERROR(VLOOKUP(C$4&\",,,\"&$A26&\",\"&sel_country_code,data[],7,FALSE),\"\")","v":12728.796},{"$f":"IFERROR(VLOOKUP(D$4&\",,,\"&$A26&\",\"&sel_country_code,data[],7,FALSE),\"\")","v":""},{"$f":"IFERROR(VLOOKUP(E$4&\",,,\"&$A26&\",\"&sel_country_code,data[],7,FALSE),\"\")","v":""},null,{"$f":"IFERROR(VLOOKUP(G$4&\",\"&G$5&\",,\"&$A26&\",\",data[],7,FALSE),\"\")","v":""},{"$f":"IFERROR(VLOOKUP(H$4&\",\"&H$5&\",,\"&$A26&\",\",data[],7,FALSE),\"\")","v":4738.1899020500086},{"$f":"IFERROR(VLOOKUP(I$4&\",\"&I$5&\",,\"&$A26&\",\",data[],7,FALSE),\"\")","v":4738.1899020500086},{"$f":"IFERROR(VLOOKUP(J$4&\",\"&J$5&\",,\"&$A26&\",\",data[],7,FALSE),\"\")","v":""},null,{"$f":"IFERROR(VLOOKUP(L$4&\",,,\"&$A26&\",\",data[],7,FALSE),\"\")","v":0.15031035355923136}]
["ARG-NEU",{"$f":"VLOOKUP($A27,region[],2,FALSE)","v":"Argentina (Neuquén)"},{"$f":"IFERROR(VLOOKUP(C$4&\",,,\"&$A27&\",\"&sel_country_code,data[],7,FALSE),\"\")","v":12728.796},{"$f":"IFERROR(VLOOKUP(D$4&\",,,\"&$A27&\",\"&sel_country_code,data[],7,FALSE),\"\")","v":""},{"$f":"IFERROR(VLOOKUP(E$4&\",,,\"&$A27&\",\"&sel_country_code,data[],7,FALSE),\"\")","v":""},null,{"$f":"IFERROR(VLOOKUP(G$4&\",\"&G$5&\",,\"&$A27&\",\",data[],7,FALSE),\"\")","v":""},{"$f":"IFERROR(VLOOKUP(H$4&\",\"&H$5&\",,\"&$A27&\",\",data[],7,FALSE),\"\")","v":3956.5844284999962},{"$f":"IFERROR(VLOOKUP(I$4&\",\"&I$5&\",,\"&$A27&\",\",data[],7,FALSE),\"\")","v":""},{"$f":"IFERROR(VLOOKUP(J$4&\",\"&J$5&\",,\"&$A27&\",\",data[],7,FALSE),\"\")","v":""},null,{"$f":"IFERROR(VLOOKUP(L$4&\",,,\"&$A27&\",\",data[],7,FALSE),\"\")","v":0.15031035355923136}]
["ARG-PAM",{"$f":"VLOOKUP($A28,region[],2,FALSE)","v":"Argentina (La Pampa)"},{"$f":"IFERROR(VLOOKUP(C$4&\",,,\"&$A28&\",\"&sel_country_code,data[],7,FALSE),\"\")","v":12728.796},{"$f":"IFERROR(VLOOKUP(D$4&\",,,\"&$A28&\",\"&sel_country_code,data[],7,FALSE),\"\")","v":""},{"$f":"IFERROR(VLOOKUP(E$4&\",,,\"&$A28&\",\"&sel_country_code,data[],7,FALSE),\"\")","v":""},null,{"$f":"IFERROR(VLOOKUP(G$4&\",\"&G$5&\",,\"&$A28&\",\",data[],7,FALSE),\"\")","v":""},{"$f":"IFERROR(VLOOKUP(H$4&\",\"&H$5&\",,\"&$A28&\",\",data[],7,FALSE),\"\")","v":3897.7887775199929},{"$f":"IFERROR(VLOOKUP(I$4&\",\"&I$5&\",,\"&$A28&\",\",data[],7,FALSE),\"\")","v":""},{"$f":"IFERROR(VLOOKUP(J$4&\",\"&J$5&\",,\"&$A28&\",\",data[],7,FALSE),\"\")","v":""},null,{"$f":"IFERROR(VLOOKUP(L$4&\",,,\"&$A28&\",\",data[],7,FALSE),\"\")","v":0.15031035355923136}]
["ARG-RIO",{"$f":"VLOOKUP($A29,region[],2,FALSE)","v":"Argentina (Entre Ríos)"},{"$f":"IFERROR(VLOOKUP(C$4&\",,,\"&$A29&\",\"&sel_country_code,data[],7,FALSE),\"\")","v":12728.796},{"$f":"IFERROR(VLOOKUP(D$4&\",,,\"&$A29&\",\"&sel_country_code,data[],7,FALSE),\"\")","v":""},{"$f":"IFERROR(VLOOKUP(E$4&\",,,\"&$A29&\",\"&sel_country_code,data[],7,FALSE),\"\")","v":""},null,{"$f":"IFERROR(VLOOKUP(G$4&\",\"&G$5&\",,\"&$A29&\",\",data[],7,FALSE),\"\")","v":""},{"$f":"IFERROR(VLOOKUP(H$4&\",\"&H$5&\",,\"&$A29&\",\",data[],7,FALSE),\"\")","v":3070.126660369996},{"$f":"IFERROR(VLOOKUP(I$4&\",\"&I$5&\",,\"&$A29&\",\",data[],7,FALSE),\"\")","v":""},{"$f":"IFERROR(VLOOKUP(J$4&\",\"&J$5&\",,\"&$A29&\",\",data[],7,FALSE),\"\")","v":""},null,{"$f":"IFERROR(VLOOKUP(L$4&\",,,\"&$A29&\",\",data[],7,FALSE),\"\")","v":0.15031035355923136}]
["ARG-SAF",{"$f":"VLOOKUP($A30,region[],2,FALSE)","v":"Argentina (Santa Fe)"},{"$f":"IFERROR(VLOOKUP(C$4&\",,,\"&$A30&\",\"&sel_country_code,data[],7,FALSE),\"\")","v":12728.796},{"$f":"IFERROR(VLOOKUP(D$4&\",,,\"&$A30&\",\"&sel_country_code,data[],7,FALSE),\"\")","v":""},{"$f":"IFERROR(VLOOKUP(E$4&\",,,\"&$A30&\",\"&sel_country_code,data[],7,FALSE),\"\")","v":""},null,{"$f":"IFERROR(VLOOKUP(G$4&\",\"&G$5&\",,\"&$A30&\",\",data[],7,FALSE),\"\")","v":""},{"$f":"IFERROR(VLOOKUP(H$4&\",\"&H$5&\",,\"&$A30&\",\",data[],7,FALSE),\"\")","v":3158.174208530002},{"$f":"IFERROR(VLOOKUP(I$4&\",\"&I$5&\",,\"&$A30&\",\",data[],7,FALSE),\"\")","v":""},{"$f":"IFERROR(VLOOKUP(J$4&\",\"&J$5&\",,\"&$A30&\",\",data[],7,FALSE),\"\")","v":""},null,{"$f":"IFERROR(VLOOKUP(L$4&\",,,\"&$A30&\",\",data[],7,FALSE),\"\")","v":0.15031035355923136}]
["ARG-SAJ",{"$f":"VLOOKUP($A31,region[],2,FALSE)","v":"Argentina (San Juan)"},{"$f":"IFERROR(VLOOKUP(C$4&\",,,\"&$A31&\",\"&sel_country_code,data[],7,FALSE),\"\")","v":12728.796},{"$f":"IFERROR(VLOOKUP(D$4&\",,,\"&$A31&\",\"&sel_country_code,data[],7,FALSE),\"\")","v":""},{"$f":"IFERROR(VLOOKUP(E$4&\",,,\"&$A31&\",\"&sel_country_code,data[],7,FALSE),\"\")","v":""},null,{"$f":"IFERROR(VLOOKUP(G$4&\",\"&G$5&\",,\"&$A31&\",\",data[],7,FALSE),\"\")","v":""},{"$f":"IFERROR(VLOOKUP(H$4&\",\"&H$5&\",,\"&$A31&\",\",data[],7,FALSE),\"\")","v":2534.5746024499945},{"$f":"IFERROR(VLOOKUP(I$4&\",\"&I$5&\",,\"&$A31&\",\",data[],7,FALSE),\"\")","v":""},{"$f":"IFERROR(VLOOKUP(J$4&\",\"&J$5&\",,\"&$A31&\",\",data[],7,FALSE),\"\")","v":""},null,{"$f":"IFERROR(VLOOKUP(L$4&\",,,\"&$A31&\",\",data[],7,FALSE),\"\")","v":0.15031035355923136}]
["ARG-SAL",{"$f":"VLOOKUP($A32,region[],2,FALSE)","v":"Argentina (San Luis)"},{"$f":"IFERROR(VLOOKUP(C$4&\",,,\"&$A32&\",\"&sel_country_code,data[],7,FALSE),\"\")","v":12728.796},{"$f":"IFERROR(VLOOKUP(D$4&\",,,\"&$A32&\",\"&sel_country_code,data[],7,FALSE),\"\")","v":""},{"$f":"IFERROR(VLOOKUP(E$4&\",,,\"&$A32&\",\"&sel_country_code,data[],7,FALSE),\"\")","v":""},null,{"$f":"IFERROR(VLOOKUP(G$4&\",\"&G$5&\",,\"&$A32&\",\",data[],7,FALSE),\"\")","v":""},{"$f":"IFERROR(VLOOKUP(H$4&\",\"&H$5&\",,\"&$A32&\",\",data[],7,FALSE),\"\")","v":3657.6108475499996},{"$f":"IFERROR(VLOOKUP(I$4&\",\"&I$5&\",,\"&$A32&\",\",data[],7,FALSE),\"\")","v":""},{"$f":"IFERROR(VLOOKUP(J$4&\",\"&J$5&\",,\"&$A32&\",\",data[],7,FALSE),\"\")","v":""},null,{"$f":"IFERROR(VLOOKUP(L$4&\",,,\"&$A32&\",\",data[],7,FALSE),\"\")","v":0.15031035355923136}]
["ARG-SAT",{"$f":"VLOOKUP($A33,region[],2,FALSE)","v":"Argentina (Salta)"},{"$f":"IFERROR(VLOOKUP(C$4&\",,,\"&$A33&\",\"&sel_country_code,data[],7,FALSE),\"\")","v":12728.796},{"$f":"IFERROR(VLOOKUP(D$4&\",,,\"&$A33&\",\"&sel_country_code,data[],7,FALSE),\"\")","v":""},{"$f":"IFERROR(VLOOKUP(E$4&\",,,\"&$A33&\",\"&sel_country_code,data[],7,FALSE),\"\")","v":""},null,{"$f":"IFERROR(VLOOKUP(G$4&\",\"&G$5&\",,\"&$A33&\",\",data[],7,FALSE),\"\")","v":""},{"$f":"IFERROR(VLOOKUP(H$4&\",\"&H$5&\",,\"&$A33&\",\",data[],7,FALSE),\"\")","v":3418.5372058749972},{"$f":"IFERROR(VLOOKUP(I$4&\",\"&I$5&\",,\"&$A33&\",\",data[],7,FALSE),\"\")","v":""},{"$f":"IFERROR(VLOOKUP(J$4&\",\"&J$5&\",,\"&$A33&\",\",data[],7,FALSE),\"\")","v":""},null,{"$f":"IFERROR(VLOOKUP(L$4&\",,,\"&$A33&\",\",data[],7,FALSE),\"\")","v":0.15031035355923136}]
["ARG-TUC",{"$f":"VLOOKUP($A34,region[],2,FALSE)","v":"Argentina (Tucumán)"},{"$f":"IFERROR(VLOOKUP(C$4&\",,,\"&$A34&\",\"&sel_country_code,data[],7,FALSE),\"\")","v":12728.796},{"$f":"IFERROR(VLOOKUP(D$4&\",,,\"&$A34&\",\"&sel_country_code,data[],7,FALSE),\"\")","v":""},{"$f":"IFERROR(VLOOKUP(E$4&\",,,\"&$A34&\",\"&sel_country_code,data[],7,FALSE),\"\")","v":""},null,{"$f":"IFERROR(VLOOKUP(G$4&\",\"&G$5&\",,\"&$A34&\",\",data[],7,FALSE),\"\")","v":""},{"$f":"IFERROR(VLOOKUP(H$4&\",\"&H$5&\",,\"&$A34&\",\",data[],7,FALSE),\"\")","v":1908.3186970833303},{"$f":"IFERROR(VLOOKUP(I$4&\",\"&I$5&\",,\"&$A34&\",\",data[],7,FALSE),\"\")","v":""},{"$f":"IFERROR(VLOOKUP(J$4&\",\"&J$5&\",,\"&$A34&\",\",data[],7,FALSE),\"\")","v":""},null,{"$f":"IFERROR(VLOOKUP(L$4&\",,,\"&$A34&\",\",data[],7,FALSE),\"\")","v":0.15031035355923136}]
["AUS",{"$f":"VLOOKUP($A35,region[],2,FALSE)","v":"Australia"},{"$f":"IFERROR(VLOOKUP(C$4&\",,,\"&$A35&\",\"&sel_country_code,data[],7,FALSE),\"\")","v":21212.3},{"$f":"IFERROR(VLOOKUP(D$4&\",,,\"&$A35&\",\"&sel_country_code,data[],7,FALSE),\"\")","v":""},{"$f":"IFERROR(VLOOKUP(E$4&\",,,\"&$A35&\",\"&sel_country_code,data[],7,FALSE),\"\")","v":""},null,{"$f":"IFERROR(VLOOKUP(G$4&\",\"&G$5&\",,\"&$A35&\",\",data[],7,FALSE),\"\")","v":""},{"$f":"IFERROR(VLOOKUP(H$4&\",\"&H$5&\",,\"&$A35&\",\",data[],7,FALSE),\"\")","v":3971},{"$f":"IFERROR(VLOOKUP(I$4&\",\"&I$5&\",,\"&$A35&\",\",data[],7,FALSE),\"\")","v":4205},{"$f":"IFERROR(VLOOKUP(J$4&\",\"&J$5&\",,\"&$A35&\",\",data[],7,FALSE),\"\")","v":""},null,{"$f":"IFERROR(VLOOKUP(L$4&\",,,\"&$A35&\",\",data[],7,FALSE),\"\")","v":5.0299999999999997E-2}]
["BRA",{"$f":"VLOOKUP($A36,region[],2,FALSE)","v":"Brazil"},{"$f":"IFERROR(VLOOKUP(C$4&\",,,\"&$A36&\",\"&sel_country_code,data[],7,FALSE),\"\")","v":10409.5},{"$f":"IFERROR(VLOOKUP(D$4&\",,,\"&$A36&\",\"&sel_country_code,data[],7,FALSE),\"\")","v":""},{"$f":"IFERROR(VLOOKUP(E$4&\",,,\"&$A36&\",\"&sel_country_code,data[],7,FALSE),\"\")","v":""},null,{"$f":"IFERROR(VLOOKUP(G$4&\",\"&G$5&\",,\"&$A36&\",\",data[],7,FALSE),\"\")","v":""},{"$f":"IFERROR(VLOOKUP(H$4&\",\"&H$5&\",,\"&$A36&\",\",data[],7,FALSE),\"\")","v":3517},{"$f":"IFERROR(VLOOKUP(I$4&\",\"&I$5&\",,\"&$A36&\",\",data[],7,FALSE),\"\")","v":3854},{"$f":"IFERROR(VLOOKUP(J$4&\",\"&J$5&\",,\"&$A36&\",\",data[],7,FALSE),\"\")","v":""},null,{"$f":"IFERROR(VLOOKUP(L$4&\",,,\"&$A36&\",\",data[],7,FALSE),\"\")","v":8.2832353577576984E-2}]
["CHL",{"$f":"VLOOKUP($A37,region[],2,FALSE)","v":"Chile"},{"$f":"IFERROR(VLOOKUP(C$4&\",,,\"&$A37&\",\"&sel_country_code,data[],7,FALSE),\"\")","v":12511.9},{"$f":"IFERROR(VLOOKUP(D$4&\",,,\"&$A37&\",\"&sel_country_code,data[],7,FALSE),\"\")","v":""},{"$f":"IFERROR(VLOOKUP(E$4&\",,,\"&$A37&\",\"&sel_country_code,data[],7,FALSE),\"\")","v":""},null,{"$f":"IFERROR(VLOOKUP(G$4&\",\"&G$5&\",,\"&$A37&\",\",data[],7,FALSE),\"\")","v":""},{"$f":"IFERROR(VLOOKUP(H$4&\",\"&H$5&\",,\"&$A37&\",\",data[],7,FALSE),\"\")","v":6034},{"$f":"IFERROR(VLOOKUP(I$4&\",\"&I$5&\",,\"&$A37&\",\",data[],7,FALSE),\"\")","v":6034},{"$f":"IFERROR(VLOOKUP(J$4&\",\"&J$5&\",,\"&$A37&\",\",data[],7,FALSE),\"\")","v":""},null,{"$f":"IFERROR(VLOOKUP(L$4&\",,,\"&$A37&\",\",data[],7,FALSE),\"\")","v":5.5673211551852057E-2}]
["CHN",{"$f":"VLOOKUP($A38,region[],2,FALSE)","v":"China"},{"$f":"IFERROR(VLOOKUP(C$4&\",,,\"&$A38&\",\"&sel_country_code,data[],7,FALSE),\"\")","v":20484.900000000001},{"$f":"IFERROR(VLOOKUP(D$4&\",,,\"&$A38&\",\"&sel_country_code,data[],7,FALSE),\"\")","v":""},{"$f":"IFERROR(VLOOKUP(E$4&\",,,\"&$A38&\",\"&sel_country_code,data[],7,FALSE),\"\")","v":""},null,{"$f":"IFERROR(VLOOKUP(G$4&\",\"&G$5&\",,\"&$A38&\",\",data[],7,FALSE),\"\")","v":""},{"$f":"IFERROR(VLOOKUP(H$4&\",\"&H$5&\",,\"&$A38&\",\",data[],7,FALSE),\"\")","v":3250},{"$f":"IFERROR(VLOOKUP(I$4&\",\"&I$5&\",,\"&$A38&\",\",data[],7,FALSE),\"\")","v":3592},{"$f":"IFERROR(VLOOKUP(J$4&\",\"&J$5&\",,\"&$A38&\",\",data[],7,FALSE),\"\")","v":""},null,{"$f":"IFERROR(VLOOKUP(L$4&\",,,\"&$A38&\",\",data[],7,FALSE),\"\")","v":5.5673211551852057E-2}]
["COL",{"$f":"VLOOKUP($A39,region[],2,FALSE)","v":"Colombia"},{"$f":"IFERROR(VLOOKUP(C$4&\",,,\"&$A39&\",\"&sel_country_code,data[],7,FALSE),\"\")","v":9250.74},{"$f":"IFERROR(VLOOKUP(D$4&\",,,\"&$A39&\",\"&sel_country_code,data[],7,FALSE),\"\")","v":""},{"$f":"IFERROR(VLOOKUP(E$4&\",,,\"&$A39&\",\"&sel_country_code,data[],7,FALSE),\"\")","v":""},null,{"$f":"IFERROR(VLOOKUP(G$4&\",\"&G$5&\",,\"&$A39&\",\",data[],7,FALSE),\"\")","v":""},{"$f":"IFERROR(VLOOKUP(H$4&\",\"&H$5&\",,\"&$A39&\",\",data[],7,FALSE),\"\")","v":4269},{"$f":"IFERROR(VLOOKUP(I$4&\",\"&I$5&\",,\"&$A39&\",\",data[],7,FALSE),\"\")","v":4269},{"$f":"IFERROR(VLOOKUP(J$4&\",\"&J$5&\",,\"&$A39&\",\",data[],7,FALSE),\"\")","v":""},null,{"$f":"IFERROR(VLOOKUP(L$4&\",,,\"&$A39&\",\",data[],7,FALSE),\"\")","v":7.0913593408014244E-2}]
["CRI",{"$f":"VLOOKUP($A40,region[],2,FALSE)","v":"Costa Rica"},{"$f":"IFERROR(VLOOKUP(C$4&\",,,\"&$A40&\",\"&sel_country_code,data[],7,FALSE),\"\")","v":7422.6},{"$f":"IFERROR(VLOOKUP(D$4&\",,,\"&$A40&\",\"&sel_country_code,data[],7,FALSE),\"\")","v":""},{"$f":"IFERROR(VLOOKUP(E$4&\",,,\"&$A40&\",\"&sel_country_code,data[],7,FALSE),\"\")","v":""},null,{"$f":"IFERROR(VLOOKUP(G$4&\",\"&G$5&\",,\"&$A40&\",\",data[],7,FALSE),\"\")","v":""},{"$f":"IFERROR(VLOOKUP(H$4&\",\"&H$5&\",,\"&$A40&\",\",data[],7,FALSE),\"\")","v":2191.2308093499951},{"$f":"IFERROR(VLOOKUP(I$4&\",\"&I$5&\",,\"&$A40&\",\",data[],7,FALSE),\"\")","v":2803},{"$f":"IFERROR(VLOOKUP(J$4&\",\"&J$5&\",,\"&$A40&\",\",data[],7,FALSE),\"\")","v":""},null,{"$f":"IFERROR(VLOOKUP(L$4&\",,,\"&$A40&\",\",data[],7,FALSE),\"\")","v":0.10395003232720652}]
["DNK",{"$f":"VLOOKUP($A41,region[],2,FALSE)","v":"Denmark"},{"$f":"IFERROR(VLOOKUP(C$4&\",,,\"&$A41&\",\"&sel_country_code,data[],7,FALSE),\"\")","v":814.84100000000001},{"$f":"IFERROR(VLOOKUP(D$4&\",,,\"&$A41&\",\"&sel_country_code,data[],7,FALSE),\"\")","v":""},{"$f":"IFERROR(VLOOKUP(E$4&\",,,\"&$A41&\",\"&sel_country_code,data[],7,FALSE),\"\")","v":""},null,{"$f":"IFERROR(VLOOKUP(G$4&\",\"&G$5&\",,\"&$A41&\",\",data[],7,FALSE),\"\")","v":""},{"$f":"IFERROR(VLOOKUP(H$4&\",\"&H$5&\",,\"&$A41&\",\",data[],7,FALSE),\"\")","v":4400},{"$f":"IFERROR(VLOOKUP(I$4&\",\"&I$5&\",,\"&$A41&\",\",data[],7,FALSE),\"\")","v":4730.4000000000005},{"$f":"IFERROR(VLOOKUP(J$4&\",\"&J$5&\",,\"&$A41&\",\",data[],7,FALSE),\"\")","v":""},null,{"$f":"IFERROR(VLOOKUP(L$4&\",,,\"&$A41&\",\",data[],7,FALSE),\"\")","v":5.0299999999999997E-2}]
["DZA",{"$f":"VLOOKUP($A42,region[],2,FALSE)","v":"Algeria"},{"$f":"IFERROR(VLOOKUP(C$4&\",,,\"&$A42&\",\"&sel_country_code,data[],7,FALSE),\"\")","v":3174.14},{"$f":"IFERROR(VLOOKUP(D$4&\",,,\"&$A42&\",\"&sel_country_code,data[],7,FALSE),\"\")","v":""},{"$f":"IFERROR(VLOOKUP(E$4&\",,,\"&$A42&\",\"&sel_country_code,data[],7,FALSE),\"\")","v":0.1},null,{"$f":"IFERROR(VLOOKUP(G$4&\",\"&G$5&\",,\"&$A42&\",\",data[],7,FALSE),\"\")","v":""},{"$f":"IFERROR(VLOOKUP(H$4&\",\"&H$5&\",,\"&$A42&\",\",data[],7,FALSE),\"\")","v":2738},{"$f":"IFERROR(VLOOKUP(I$4&\",\"&I$5&\",,\"&$A42&\",\",data[],7,FALSE),\"\")","v":3066},{"$f":"IFERROR(VLOOKUP(J$4&\",\"&J$5&\",,\"&$A42&\",\",data[],7,FALSE),\"\")","v":""},null,{"$f":"IFERROR(VLOOKUP(L$4&\",,,\"&$A42&\",\",data[],7,FALSE),\"\")","v":9.1999999999999998E-2}]
["EGY",{"$f":"VLOOKUP($A43,region[],2,FALSE)","v":"Egypt"},{"$f":"IFERROR(VLOOKUP(C$4&\",,,\"&$A43&\",\"&sel_country_code,data[],7,FALSE),\"\")","v":6629.18},{"$f":"IFERROR(VLOOKUP(D$4&\",,,\"&$A43&\",\"&sel_country_code,data[],7,FALSE),\"\")","v":""},{"$f":"IFERROR(VLOOKUP(E$4&\",,,\"&$A43&\",\"&sel_country_code,data[],7,FALSE),\"\")","v":""},null,{"$f":"IFERROR(VLOOKUP(G$4&\",\"&G$5&\",,\"&$A43&\",\",data[],7,FALSE),\"\")","v":""},{"$f":"IFERROR(VLOOKUP(H$4&\",\"&H$5&\",,\"&$A43&\",\",data[],7,FALSE),\"\")","v":3045},{"$f":"IFERROR(VLOOKUP(I$4&\",\"&I$5&\",,\"&$A43&\",\",data[],7,FALSE),\"\")","v":3066},{"$f":"IFERROR(VLOOKUP(J$4&\",\"&J$5&\",,\"&$A43&\",\",data[],7,FALSE),\"\")","v":""},null,{"$f":"IFERROR(VLOOKUP(L$4&\",,,\"&$A43&\",\",data[],7,FALSE),\"\")","v":0.11336853373134342}]
["ESP",{"$f":"VLOOKUP($A44,region[],2,FALSE)","v":"Spain"},{"$f":"IFERROR(VLOOKUP(C$4&\",,,\"&$A44&\",\"&sel_country_code,data[],7,FALSE),\"\")","v":2697.76},{"$f":"IFERROR(VLOOKUP(D$4&\",,,\"&$A44&\",\"&sel_country_code,data[],7,FALSE),\"\")","v":""},{"$f":"IFERROR(VLOOKUP(E$4&\",,,\"&$A44&\",\"&sel_country_code,data[],7,FALSE),\"\")","v":""},null,{"$f":"IFERROR(VLOOKUP(G$4&\",\"&G$5&\",,\"&$A44&\",\",data[],7,FALSE),\"\")","v":""},{"$f":"IFERROR(VLOOKUP(H$4&\",\"&H$5&\",,\"&$A44&\",\",data[],7,FALSE),\"\")","v":4276.5734962500064},{"$f":"IFERROR(VLOOKUP(I$4&\",\"&I$5&\",,\"&$A44&\",\",data[],7,FALSE),\"\")","v":4277},{"$f":"IFERROR(VLOOKUP(J$4&\",\"&J$5&\",,\"&$A44&\",\",data[],7,FALSE),\"\")","v":""},null,{"$f":"IFERROR(VLOOKUP(L$4&\",,,\"&$A44&\",\",data[],7,FALSE),\"\")","v":6.4274782725559448E-2}]
["IDN",{"$f":"VLOOKUP($A45,region[],2,FALSE)","v":"Indonesia"},{"$f":"IFERROR(VLOOKUP(C$4&\",,,\"&$A45&\",\"&sel_country_code,data[],7,FALSE),\"\")","v":16946.8},{"$f":"IFERROR(VLOOKUP(D$4&\",,,\"&$A45&\",\"&sel_country_code,data[],7,FALSE),\"\")","v":""},{"$f":"IFERROR(VLOOKUP(E$4&\",,,\"&$A45&\",\"&sel_country_code,data[],7,FALSE),\"\")","v":""},null,{"$f":"IFERROR(VLOOKUP(G$4&\",\"&G$5&\",,\"&$A45&\",\",data[],7,FALSE),\"\")","v":""},{"$f":"IFERROR(VLOOKUP(H$4&\",\"&H$5&\",,\"&$A45&\",\",data[],7,FALSE),\"\")","v":1150.7783336499949},{"$f":"IFERROR(VLOOKUP(I$4&\",\"&I$5&\",,\"&$A45&\",\",data[],7,FALSE),\"\")","v":2453},{"$f":"IFERROR(VLOOKUP(J$4&\",\"&J$5&\",,\"&$A45&\",\",data[],7,FALSE),\"\")","v":""},null,{"$f":"IFERROR(VLOOKUP(L$4&\",,,\"&$A45&\",\",data[],7,FALSE),\"\")","v":7.0913593408014244E-2}]
["IND",{"$f":"VLOOKUP($A46,region[],2,FALSE)","v":"India"},{"$f":"IFERROR(VLOOKUP(C$4&\",,,\"&$A46&\",\"&sel_country_code,data[],7,FALSE),\"\")","v":12687.7},{"$f":"IFERROR(VLOOKUP(D$4&\",,,\"&$A46&\",\"&sel_country_code,data[],7,FALSE),\"\")","v":""},{"$f":"IFERROR(VLOOKUP(E$4&\",,,\"&$A46&\",\"&sel_country_code,data[],7,FALSE),\"\")","v":""},null,{"$f":"IFERROR(VLOOKUP(G$4&\",\"&G$5&\",,\"&$A46&\",\",data[],7,FALSE),\"\")","v":""},{"$f":"IFERROR(VLOOKUP(H$4&\",\"&H$5&\",,\"&$A46&\",\",data[],7,FALSE),\"\")","v":3567},{"$f":"IFERROR(VLOOKUP(I$4&\",\"&I$5&\",,\"&$A46&\",\",data[],7,FALSE),\"\")","v":3567},{"$f":"IFERROR(VLOOKUP(J$4&\",\"&J$5&\",,\"&$A46&\",\",data[],7,FALSE),\"\")","v":""},null,{"$f":"IFERROR(VLOOKUP(L$4&\",,,\"&$A46&\",\",data[],7,FALSE),\"\")","v":7.237045402218821E-2}]
["JOR",{"$f":"VLOOKUP($A47,region[],2,FALSE)","v":"Jordan"},{"$f":"IFERROR(VLOOKUP(C$4&\",,,\"&$A47&\",\"&sel_country_code,data[],7,FALSE),\"\")","v":7488.73},{"$f":"IFERROR(VLOOKUP(D$4&\",,,\"&$A47&\",\"&sel_country_code,data[],7,FALSE),\"\")","v":""},{"$f":"IFERROR(VLOOKUP(E$4&\",,,\"&$A47&\",\"&sel_country_code,data[],7,FALSE),\"\")","v":""},null,{"$f":"IFERROR(VLOOKUP(G$4&\",\"&G$5&\",,\"&$A47&\",\",data[],7,FALSE),\"\")","v":""},{"$f":"IFERROR(VLOOKUP(H$4&\",\"&H$5&\",,\"&$A47&\",\",data[],7,FALSE),\"\")","v":667},{"$f":"IFERROR(VLOOKUP(I$4&\",\"&I$5&\",,\"&$A47&\",\",data[],7,FALSE),\"\")","v":""},{"$f":"IFERROR(VLOOKUP(J$4&\",\"&J$5&\",,\"&$A47&\",\",data[],7,FALSE),\"\")","v":""},null,{"$f":"IFERROR(VLOOKUP(L$4&\",,,\"&$A47&\",\",data[],7,FALSE),\"\")","v":9.9049682988621379E-2}]
["KAZ",{"$f":"VLOOKUP($A48,region[],2,FALSE)","v":"Kazakhstan"},{"$f":"IFERROR(VLOOKUP(C$4&\",,,\"&$A48&\",\"&sel_country_code,data[],7,FALSE),\"\")","v":6601.17},{"$f":"IFERROR(VLOOKUP(D$4&\",,,\"&$A48&\",\"&sel_country_code,data[],7,FALSE),\"\")","v":""},{"$f":"IFERROR(VLOOKUP(E$4&\",,,\"&$A48&\",\"&sel_country_code,data[],7,FALSE),\"\")","v":""},null,{"$f":"IFERROR(VLOOKUP(G$4&\",\"&G$5&\",,\"&$A48&\",\",data[],7,FALSE),\"\")","v":""},{"$f":"IFERROR(VLOOKUP(H$4&\",\"&H$5&\",,\"&$A48&\",\",data[],7,FALSE),\"\")","v":3697},{"$f":"IFERROR(VLOOKUP(I$4&\",\"&I$5&\",,\"&$A48&\",\",data[],7,FALSE),\"\")","v":3697},{"$f":"IFERROR(VLOOKUP(J$4&\",\"&J$5&\",,\"&$A48&\",\",data[],7,FALSE),\"\")","v":""},null,{"$f":"IFERROR(VLOOKUP(L$4&\",,,\"&$A48&\",\",data[],7,FALSE),\"\")","v":7.3401485154905771E-2}]
["KEN",{"$f":"VLOOKUP($A49,region[],2,FALSE)","v":"Kenya"},{"$f":"IFERROR(VLOOKUP(C$4&\",,,\"&$A49&\",\"&sel_country_code,data[],7,FALSE),\"\")","v":12814.1},{"$f":"IFERROR(VLOOKUP(D$4&\",,,\"&$A49&\",\"&sel_country_code,data[],7,FALSE),\"\")","v":""},{"$f":"IFERROR(VLOOKUP(E$4&\",,,\"&$A49&\",\"&sel_country_code,data[],7,FALSE),\"\")","v":""},null,{"$f":"IFERROR(VLOOKUP(G$4&\",\"&G$5&\",,\"&$A49&\",\",data[],7,FALSE),\"\")","v":""},{"$f":"IFERROR(VLOOKUP(H$4&\",\"&H$5&\",,\"&$A49&\",\",data[],7,FALSE),\"\")","v":2364},{"$f":"IFERROR(VLOOKUP(I$4&\",\"&I$5&\",,\"&$A49&\",\",data[],7,FALSE),\"\")","v":3329},{"$f":"IFERROR(VLOOKUP(J$4&\",\"&J$5&\",,\"&$A49&\",\",data[],7,FALSE),\"\")","v":""},null,{"$f":"IFERROR(VLOOKUP(L$4&\",,,\"&$A49&\",\",data[],7,FALSE),\"\")","v":0.10989380084781369}]
["MAR",{"$f":"VLOOKUP($A50,region[],2,FALSE)","v":"Morocco"},{"$f":"IFERROR(VLOOKUP(C$4&\",,,\"&$A50&\",\"&sel_country_code,data[],7,FALSE),\"\")","v":2668.15},{"$f":"IFERROR(VLOOKUP(D$4&\",,,\"&$A50&\",\"&sel_country_code,data[],7,FALSE),\"\")","v":""},{"$f":"IFERROR(VLOOKUP(E$4&\",,,\"&$A50&\",\"&sel_country_code,data[],7,FALSE),\"\")","v":""},null,{"$f":"IFERROR(VLOOKUP(G$4&\",\"&G$5&\",,\"&$A50&\",\",data[],7,FALSE),\"\")","v":""},{"$f":"IFERROR(VLOOKUP(H$4&\",\"&H$5&\",,\"&$A50&\",\",data[],7,FALSE),\"\")","v":3289},{"$f":"IFERROR(VLOOKUP(I$4&\",\"&I$5&\",,\"&$A50&\",\",data[],7,FALSE),\"\")","v":4643},{"$f":"IFERROR(VLOOKUP(J$4&\",\"&J$5&\",,\"&$A50&\",\",data[],7,FALSE),\"\")","v":""},null,{"$f":"IFERROR(VLOOKUP(L$4&\",,,\"&$A50&\",\",data[],7,FALSE),\"\")","v":7.731973992583685E-2}]
["MAR-BEN",{"$f":"VLOOKUP($A51,region[],2,FALSE)","v":"Morocco (Béni Mellal-Khénifra)"},{"$f":"IFERROR(VLOOKUP(C$4&\",,,\"&$A51&\",\"&sel_country_code,data[],7,FALSE),\"\")","v":2668.15},{"$f":"IFERROR(VLOOKUP(D$4&\",,,\"&$A51&\",\"&sel_country_code,data[],7,FALSE),\"\")","v":""},{"$f":"IFERROR(VLOOKUP(E$4&\",,,\"&$A51&\",\"&sel_country_code,data[],7,FALSE),\"\")","v":""},null,{"$f":"IFERROR(VLOOKUP(G$4&\",\"&G$5&\",,\"&$A51&\",\",data[],7,FALSE),\"\")","v":""},{"$f":"IFERROR(VLOOKUP(H$4&\",\"&H$5&\",,\"&$A51&\",\",data[],7,FALSE),\"\")","v":1563.4934093166669},{"$f":"IFERROR(VLOOKUP(I$4&\",\"&I$5&\",,\"&$A51&\",\",data[],7,FALSE),\"\")","v":""},{"$f":"IFERROR(VLOOKUP(J$4&\",\"&J$5&\",,\"&$A51&\",\",data[],7,FALSE),\"\")","v":""},null,{"$f":"IFERROR(VLOOKUP(L$4&\",,,\"&$A51&\",\",data[],7,FALSE),\"\")","v":7.731973992583685E-2}]
["MAR-CAS",{"$f":"VLOOKUP($A52,region[],2,FALSE)","v":"Morocco (Casablanca)"},{"$f":"IFERROR(VLOOKUP(C$4&\",,,\"&$A52&\",\"&sel_country_code,data[],7,FALSE),\"\")","v":2668.15},{"$f":"IFERROR(VLOOKUP(D$4&\",,,\"&$A52&\",\"&sel_country_code,data[],7,FALSE),\"\")","v":""},{"$f":"IFERROR(VLOOKUP(E$4&\",,,\"&$A52&\",\"&sel_country_code,data[],7,FALSE),\"\")","v":""},null,{"$f":"IFERROR(VLOOKUP(G$4&\",\"&G$5&\",,\"&$A52&\",\",data[],7,FALSE),\"\")","v":""},{"$f":"IFERROR(VLOOKUP(H$4&\",\"&H$5&\",,\"&$A52&\",\",data[],7,FALSE),\"\")","v":2513.2012449499989},{"$f":"IFERROR(VLOOKUP(I$4&\",\"&I$5&\",,\"&$A52&\",\",data[],7,FALSE),\"\")","v":4642.8},{"$f":"IFERROR(VLOOKUP(J$4&\",\"&J$5&\",,\"&$A52&\",\",data[],7,FALSE),\"\")","v":""},null,{"$f":"IFERROR(VLOOKUP(L$4&\",,,\"&$A52&\",\",data[],7,FALSE),\"\")","v":7.731973992583685E-2}]
["MAR-DAK",{"$f":"VLOOKUP($A53,region[],2,FALSE)","v":"Morocco (Dakhla-Oued Ed-Dahab)"},{"$f":"IFERROR(VLOOKUP(C$4&\",,,\"&$A53&\",\"&sel_country_code,data[],7,FALSE),\"\")","v":2668.15},{"$f":"IFERROR(VLOOKUP(D$4&\",,,\"&$A53&\",\"&sel_country_code,data[],7,FALSE),\"\")","v":""},{"$f":"IFERROR(VLOOKUP(E$4&\",,,\"&$A53&\",\"&sel_country_code,data[],7,FALSE),\"\")","v":""},null,{"$f":"IFERROR(VLOOKUP(G$4&\",\"&G$5&\",,\"&$A53&\",\",data[],7,FALSE),\"\")","v":""},{"$f":"IFERROR(VLOOKUP(H$4&\",\"&H$5&\",,\"&$A53&\",\",data[],7,FALSE),\"\")","v":5181.7820854799875},{"$f":"IFERROR(VLOOKUP(I$4&\",\"&I$5&\",,\"&$A53&\",\",data[],7,FALSE),\"\")","v":5181.7820854799875},{"$f":"IFERROR(VLOOKUP(J$4&\",\"&J$5&\",,\"&$A53&\",\",data[],7,FALSE),\"\")","v":""},null,{"$f":"IFERROR(VLOOKUP(L$4&\",,,\"&$A53&\",\",data[],7,FALSE),\"\")","v":7.731973992583685E-2}]
["MAR-DRA",{"$f":"VLOOKUP($A54,region[],2,FALSE)","v":"Morocco (Drâa-Tafilalet)"},{"$f":"IFERROR(VLOOKUP(C$4&\",,,\"&$A54&\",\"&sel_country_code,data[],7,FALSE),\"\")","v":2668.15},{"$f":"IFERROR(VLOOKUP(D$4&\",,,\"&$A54&\",\"&sel_country_code,data[],7,FALSE),\"\")","v":""},{"$f":"IFERROR(VLOOKUP(E$4&\",,,\"&$A54&\",\"&sel_country_code,data[],7,FALSE),\"\")","v":""},null,{"$f":"IFERROR(VLOOKUP(G$4&\",\"&G$5&\",,\"&$A54&\",\",data[],7,FALSE),\"\")","v":""},{"$f":"IFERROR(VLOOKUP(H$4&\",\"&H$5&\",,\"&$A54&\",\",data[],7,FALSE),\"\")","v":2724.0904536999979},{"$f":"IFERROR(VLOOKUP(I$4&\",\"&I$5&\",,\"&$A54&\",\",data[],7,FALSE),\"\")","v":""},{"$f":"IFERROR(VLOOKUP(J$4&\",\"&J$5&\",,\"&$A54&\",\",data[],7,FALSE),\"\")","v":""},null,{"$f":"IFERROR(VLOOKUP(L$4&\",,,\"&$A54&\",\",data[],7,FALSE),\"\")","v":7.731973992583685E-2}]
["MAR-FES",{"$f":"VLOOKUP($A55,region[],2,FALSE)","v":"Morocco (Fès-Meknès)"},{"$f":"IFERROR(VLOOKUP(C$4&\",,,\"&$A55&\",\"&sel_country_code,data[],7,FALSE),\"\")","v":2668.15},{"$f":"IFERROR(VLOOKUP(D$4&\",,,\"&$A55&\",\"&sel_country_code,data[],7,FALSE),\"\")","v":""},{"$f":"IFERROR(VLOOKUP(E$4&\",,,\"&$A55&\",\"&sel_country_code,data[],7,FALSE),\"\")","v":""},null,{"$f":"IFERROR(VLOOKUP(G$4&\",\"&G$5&\",,\"&$A55&\",\",data[],7,FALSE),\"\")","v":""},{"$f":"IFERROR(VLOOKUP(H$4&\",\"&H$5&\",,\"&$A55&\",\",data[],7,FALSE),\"\")","v":2050.2642833200007},{"$f":"IFERROR(VLOOKUP(I$4&\",\"&I$5&\",,\"&$A55&\",\",data[],7,FALSE),\"\")","v":""},{"$f":"IFERROR(VLOOKUP(J$4&\",\"&J$5&\",,\"&$A55&\",\",data[],7,FALSE),\"\")","v":""},null,{"$f":"IFERROR(VLOOKUP(L$4&\",,,\"&$A55&\",\",data[],7,FALSE),\"\")","v":7.731973992583685E-2}]
["MAR-GUE",{"$f":"VLOOKUP($A56,region[],2,FALSE)","v":"Morocco (Guelmim-Oued Noun)"},{"$f":"IFERROR(VLOOKUP(C$4&\",,,\"&$A56&\",\"&sel_country_code,data[],7,FALSE),\"\")","v":2668.15},{"$f":"IFERROR(VLOOKUP(D$4&\",,,\"&$A56&\",\"&sel_country_code,data[],7,FALSE),\"\")","v":""},{"$f":"IFERROR(VLOOKUP(E$4&\",,,\"&$A56&\",\"&sel_country_code,data[],7,FALSE),\"\")","v":""},null,{"$f":"IFERROR(VLOOKUP(G$4&\",\"&G$5&\",,\"&$A56&\",\",data[],7,FALSE),\"\")","v":""},{"$f":"IFERROR(VLOOKUP(H$4&\",\"&H$5&\",,\"&$A56&\",\",data[],7,FALSE),\"\")","v":3542.2692728499992},{"$f":"IFERROR(VLOOKUP(I$4&\",\"&I$5&\",,\"&$A56&\",\",data[],7,FALSE),\"\")","v":4642.8},{"$f":"IFERROR(VLOOKUP(J$4&\",\"&J$5&\",,\"&$A56&\",\",data[],7,FALSE),\"\")","v":""},null,{"$f":"IFERROR(VLOOKUP(L$4&\",,,\"&$A56&\",\",data[],7,FALSE),\"\")","v":7.731973992583685E-2}]
["MAR-LAA",{"$f":"VLOOKUP($A57,region[],2,FALSE)","v":"Morocco (Laâyoune-Sakia El Hamra)"},{"$f":"IFERROR(VLOOKUP(C$4&\",,,\"&$A57&\",\"&sel_country_code,data[],7,FALSE),\"\")","v":2668.15},{"$f":"IFERROR(VLOOKUP(D$4&\",,,\"&$A57&\",\"&sel_country_code,data[],7,FALSE),\"\")","v":""},{"$f":"IFERROR(VLOOKUP(E$4&\",,,\"&$A57&\",\"&sel_country_code,data[],7,FALSE),\"\")","v":""},null,{"$f":"IFERROR(VLOOKUP(G$4&\",\"&G$5&\",,\"&$A57&\",\",data[],7,FALSE),\"\")","v":""},{"$f":"IFERROR(VLOOKUP(H$4&\",\"&H$5&\",,\"&$A57&\",\",data[],7,FALSE),\"\")","v":4616.7798365699955},{"$f":"IFERROR(VLOOKUP(I$4&\",\"&I$5&\",,\"&$A57&\",\",data[],7,FALSE),\"\")","v":4642.8},{"$f":"IFERROR(VLOOKUP(J$4&\",\"&J$5&\",,\"&$A57&\",\",data[],7,FALSE),\"\")","v":""},null,{"$f":"IFERROR(VLOOKUP(L$4&\",,,\"&$A57&\",\",data[],7,FALSE),\"\")","v":7.731973992583685E-2}]
["MAR-LOR",{"$f":"VLOOKUP($A58,region[],2,FALSE)","v":"Morocco (L´oriental)"},{"$f":"IFERROR(VLOOKUP(C$4&\",,,\"&$A58&\",\"&sel_country_code,data[],7,FALSE),\"\")","v":2668.15},{"$f":"IFERROR(VLOOKUP(D$4&\",,,\"&$A58&\",\"&sel_country_code,data[],7,FALSE),\"\")","v":""},{"$f":"IFERROR(VLOOKUP(E$4&\",,,\"&$A58&\",\"&sel_country_code,data[],7,FALSE),\"\")","v":""},null,{"$f":"IFERROR(VLOOKUP(G$4&\",\"&G$5&\",,\"&$A58&\",\",data[],7,FALSE),\"\")","v":""},{"$f":"IFERROR(VLOOKUP(H$4&\",\"&H$5&\",,\"&$A58&\",\",data[],7,FALSE),\"\")","v":3320.8164008250001},{"$f":"IFERROR(VLOOKUP(I$4&\",\"&I$5&\",,\"&$A58&\",\",data[],7,FALSE),\"\")","v":4642.8},{"$f":"IFERROR(VLOOKUP(J$4&\",\"&J$5&\",,\"&$A58&\",\",data[],7,FALSE),\"\")","v":""},null,{"$f":"IFERROR(VLOOKUP(L$4&\",,,\"&$A58&\",\",data[],7,FALSE),\"\")","v":7.731973992583685E-2}]
["MAR-MAR",{"$f":"VLOOKUP($A59,region[],2,FALSE)","v":"Morocco (Marrakech-Safi)"},{"$f":"IFERROR(VLOOKUP(C$4&\",,,\"&$A59&\",\"&sel_country_code,data[],7,FALSE),\"\")","v":2668.15},{"$f":"IFERROR(VLOOKUP(D$4&\",,,\"&$A59&\",\"&sel_country_code,data[],7,FALSE),\"\")","v":""},{"$f":"IFERROR(VLOOKUP(E$4&\",,,\"&$A59&\",\"&sel_country_code,data[],7,FALSE),\"\")","v":""},null,{"$f":"IFERROR(VLOOKUP(G$4&\",\"&G$5&\",,\"&$A59&\",\",data[],7,FALSE),\"\")","v":""},{"$f":"IFERROR(VLOOKUP(H$4&\",\"&H$5&\",,\"&$A59&\",\",data[],7,FALSE),\"\")","v":1820.4342362250004},{"$f":"IFERROR(VLOOKUP(I$4&\",\"&I$5&\",,\"&$A59&\",\",data[],7,FALSE),\"\")","v":4642.8},{"$f":"IFERROR(VLOOKUP(J$4&\",\"&J$5&\",,\"&$A59&\",\",data[],7,FALSE),\"\")","v":""},null,{"$f":"IFERROR(VLOOKUP(L$4&\",,,\"&$A59&\",\",data[],7,FALSE),\"\")","v":7.731973992583685E-2}]
["MAR-RAB",{"$f":"VLOOKUP($A60,region[],2,FALSE)","v":"Morocco (Rabat-Salé-Kénitra)"},{"$f":"IFERROR(VLOOKUP(C$4&\",,,\"&$A60&\",\"&sel_country_code,data[],7,FALSE),\"\")","v":2668.15},{"$f":"IFERROR(VLOOKUP(D$4&\",,,\"&$A60&\",\"&sel_country_code,data[],7,FALSE),\"\")","v":""},{"$f":"IFERROR(VLOOKUP(E$4&\",,,\"&$A60&\",\"&sel_country_code,data[],7,FALSE),\"\")","v":""},null,{"$f":"IFERROR(VLOOKUP(G$4&\",\"&G$5&\",,\"&$A60&\",\",data[],7,FALSE),\"\")","v":""},{"$f":"IFERROR(VLOOKUP(H$4&\",\"&H$5&\",,\"&$A60&\",\",data[],7,FALSE),\"\")","v":1826.0421998500019},{"$f":"IFERROR(VLOOKUP(I$4&\",\"&I$5&\",,\"&$A60&\",\",data[],7,FALSE),\"\")","v":4642.8},{"$f":"IFERROR(VLOOKUP(J$4&\",\"&J$5&\",,\"&$A60&\",\",data[],7,FALSE),\"\")","v":""},null,{"$f":"IFERROR(VLOOKUP(L$4&\",,,\"&$A60&\",\",data[],7,FALSE),\"\")","v":7.731973992583685E-2}]
["MAR-SOU",{"$f":"VLOOKUP($A61,region[],2,FALSE)","v":"Morocco (Souss-Massa)"},{"$f":"IFERROR(VLOOKUP(C$4&\",,,\"&$A61&\",\"&sel_country_code,data[],7,FALSE),\"\")","v":2668.15},{"$f":"IFERROR(VLOOKUP(D$4&\",,,\"&$A61&\",\"&sel_country_code,data[],7,FALSE),\"\")","v":""},{"$f":"IFERROR(VLOOKUP(E$4&\",,,\"&$A61&\",\"&sel_country_code,data[],7,FALSE),\"\")","v":""},null,{"$f":"IFERROR(VLOOKUP(G$4&\",\"&G$5&\",,\"&$A61&\",\",data[],7,FALSE),\"\")","v":""},{"$f":"IFERROR(VLOOKUP(H$4&\",\"&H$5&\",,\"&$A61&\",\",data[],7,FALSE),\"\")","v":2799.5123925999974},{"$f":"IFERROR(VLOOKUP(I$4&\",\"&I$5&\",,\"&$A61&\",\",data[],7,FALSE),\"\")","v":4642.8},{"$f":"IFERROR(VLOOKUP(J$4&\",\"&J$5&\",,\"&$A61&\",\",data[],7,FALSE),\"\")","v":""},null,{"$f":"IFERROR(VLOOKUP(L$4&\",,,\"&$A61&\",\",data[],7,FALSE),\"\")","v":7.731973992583685E-2}]
["MAR-TAN",{"$f":"VLOOKUP($A62,region[],2,FALSE)","v":"Morocco (Tangier)"},{"$f":"IFERROR(VLOOKUP(C$4&\",,,\"&$A62&\",\"&sel_country_code,data[],7,FALSE),\"\")","v":2668.15},{"$f":"IFERROR(VLOOKUP(D$4&\",,,\"&$A62&\",\"&sel_country_code,data[],7,FALSE),\"\")","v":""},{"$f":"IFERROR(VLOOKUP(E$4&\",,,\"&$A62&\",\"&sel_country_code,data[],7,FALSE),\"\")","v":""},null,{"$f":"IFERROR(VLOOKUP(G$4&\",\"&G$5&\",,\"&$A62&\",\",data[],7,FALSE),\"\")","v":""},{"$f":"IFERROR(VLOOKUP(H$4&\",\"&H$5&\",,\"&$A62&\",\",data[],7,FALSE),\"\")","v":2979.4188451500013},{"$f":"IFERROR(VLOOKUP(I$4&\",\"&I$5&\",,\"&$A62&\",\",data[],7,FALSE),\"\")","v":4642.8},{"$f":"IFERROR(VLOOKUP(J$4&\",\"&J$5&\",,\"&$A62&\",\",data[],7,FALSE),\"\")","v":""},null,{"$f":"IFERROR(VLOOKUP(L$4&\",,,\"&$A62&\",\",data[],7,FALSE),\"\")","v":7.731973992583685E-2}]
["MEX",{"$f":"VLOOKUP($A63,region[],2,FALSE)","v":"Mexico"},{"$f":"IFERROR(VLOOKUP(C$4&\",,,\"&$A63&\",\"&sel_country_code,data[],7,FALSE),\"\")","v":10256.299999999999},{"$f":"IFERROR(VLOOKUP(D$4&\",,,\"&$A63&\",\"&sel_country_code,data[],7,FALSE),\"\")","v":""},{"$f":"IFERROR(VLOOKUP(E$4&\",,,\"&$A63&\",\"&sel_country_code,data[],7,FALSE),\"\")","v":""},null,{"$f":"IFERROR(VLOOKUP(G$4&\",\"&G$5&\",,\"&$A63&\",\",data[],7,FALSE),\"\")","v":""},{"$f":"IFERROR(VLOOKUP(H$4&\",\"&H$5&\",,\"&$A63&\",\",data[],7,FALSE),\"\")","v":4042},{"$f":"IFERROR(VLOOKUP(I$4&\",\"&I$5&\",,\"&$A63&\",\",data[],7,FALSE),\"\")","v":4042},{"$f":"IFERROR(VLOOKUP(J$4&\",\"&J$5&\",,\"&$A63&\",\",data[],7,FALSE),\"\")","v":""},null,{"$f":"IFERROR(VLOOKUP(L$4&\",,,\"&$A63&\",\",data[],7,FALSE),\"\")","v":6.4274782725559448E-2}]
["MRT",{"$f":"VLOOKUP($A64,region[],2,FALSE)","v":"Mauritania"},{"$f":"IFERROR(VLOOKUP(C$4&\",,,\"&$A64&\",\"&sel_country_code,data[],7,FALSE),\"\")","v":4171.75},{"$f":"IFERROR(VLOOKUP(D$4&\",,,\"&$A64&\",\"&sel_country_code,data[],7,FALSE),\"\")","v":""},{"$f":"IFERROR(VLOOKUP(E$4&\",,,\"&$A64&\",\"&sel_country_code,data[],7,FALSE),\"\")","v":""},null,{"$f":"IFERROR(VLOOKUP(G$4&\",\"&G$5&\",,\"&$A64&\",\",data[],7,FALSE),\"\")","v":""},{"$f":"IFERROR(VLOOKUP(H$4&\",\"&H$5&\",,\"&$A64&\",\",data[],7,FALSE),\"\")","v":4750},{"$f":"IFERROR(VLOOKUP(I$4&\",\"&I$5&\",,\"&$A64&\",\",data[],7,FALSE),\"\")","v":4750},{"$f":"IFERROR(VLOOKUP(J$4&\",\"&J$5&\",,\"&$A64&\",\",data[],7,FALSE),\"\")","v":""},null,{"$f":"IFERROR(VLOOKUP(L$4&\",,,\"&$A64&\",\",data[],7,FALSE),\"\")","v":9.1999999999999998E-2}]
["NAM",{"$f":"VLOOKUP($A65,region[],2,FALSE)","v":"Namibia"},{"$f":"IFERROR(VLOOKUP(C$4&\",,,\"&$A65&\",\"&sel_country_code,data[],7,FALSE),\"\")","v":10723.8},{"$f":"IFERROR(VLOOKUP(D$4&\",,,\"&$A65&\",\"&sel_country_code,data[],7,FALSE),\"\")","v":""},{"$f":"IFERROR(VLOOKUP(E$4&\",,,\"&$A65&\",\"&sel_country_code,data[],7,FALSE),\"\")","v":""},null,{"$f":"IFERROR(VLOOKUP(G$4&\",\"&G$5&\",,\"&$A65&\",\",data[],7,FALSE),\"\")","v":""},{"$f":"IFERROR(VLOOKUP(H$4&\",\"&H$5&\",,\"&$A65&\",\",data[],7,FALSE),\"\")","v":5116.1308995500021},{"$f":"IFERROR(VLOOKUP(I$4&\",\"&I$5&\",,\"&$A65&\",\",data[],7,FALSE),\"\")","v":5116},{"$f":"IFERROR(VLOOKUP(J$4&\",\"&J$5&\",,\"&$A65&\",\",data[],7,FALSE),\"\")","v":""},null,{"$f":"IFERROR(VLOOKUP(L$4&\",,,\"&$A65&\",\",data[],7,FALSE),\"\")","v":8.3993056414234241E-2}]
["NOR",{"$f":"VLOOKUP($A66,region[],2,FALSE)","v":"Norway"},{"$f":"IFERROR(VLOOKUP(C$4&\",,,\"&$A66&\",\"&sel_country_code,data[],7,FALSE),\"\")","v":605.048},{"$f":"IFERROR(VLOOKUP(D$4&\",,,\"&$A66&\",\"&sel_country_code,data[],7,FALSE),\"\")","v":""},{"$f":"IFERROR(VLOOKUP(E$4&\",,,\"&$A66&\",\"&sel_country_code,data[],7,FALSE),\"\")","v":1},null,{"$f":"IFERROR(VLOOKUP(G$4&\",\"&G$5&\",,\"&$A66&\",\",data[],7,FALSE),\"\")","v":""},{"$f":"IFERROR(VLOOKUP(H$4&\",\"&H$5&\",,\"&$A66&\",\",data[],7,FALSE),\"\")","v":4263.9575632499955},{"$f":"IFERROR(VLOOKUP(I$4&\",\"&I$5&\",,\"&$A66&\",\",data[],7,FALSE),\"\")","v":4730},{"$f":"IFERROR(VLOOKUP(J$4&\",\"&J$5&\",,\"&$A66&\",\",data[],7,FALSE),\"\")","v":""},null,{"$f":"IFERROR(VLOOKUP(L$4&\",,,\"&$A66&\",\",data[],7,FALSE),\"\")","v":5.0299999999999997E-2}]
["PER",{"$f":"VLOOKUP($A67,region[],2,FALSE)","v":"Peru"},{"$f":"IFERROR(VLOOKUP(C$4&\",,,\"&$A67&\",\"&sel_country_code,data[],7,FALSE),\"\")","v":12282.46},{"$f":"IFERROR(VLOOKUP(D$4&\",,,\"&$A67&\",\"&sel_country_code,data[],7,FALSE),\"\")","v":""},{"$f":"IFERROR(VLOOKUP(E$4&\",,,\"&$A67&\",\"&sel_country_code,data[],7,FALSE),\"\")","v":""},null,{"$f":"IFERROR(VLOOKUP(G$4&\",\"&G$5&\",,\"&$A67&\",\",data[],7,FALSE),\"\")","v":""},{"$f":"IFERROR(VLOOKUP(H$4&\",\"&H$5&\",,\"&$A67&\",\",data[],7,FALSE),\"\")","v":1448},{"$f":"IFERROR(VLOOKUP(I$4&\",\"&I$5&\",,\"&$A67&\",\",data[],7,FALSE),\"\")","v":3854},{"$f":"IFERROR(VLOOKUP(J$4&\",\"&J$5&\",,\"&$A67&\",\",data[],7,FALSE),\"\")","v":""},null,{"$f":"IFERROR(VLOOKUP(L$4&\",,,\"&$A67&\",\",data[],7,FALSE),\"\")","v":6.4274782725559448E-2}]
["PRT",{"$f":"VLOOKUP($A68,region[],2,FALSE)","v":"Portugal"},{"$f":"IFERROR(VLOOKUP(C$4&\",,,\"&$A68&\",\"&sel_country_code,data[],7,FALSE),\"\")","v":2479.8200000000002},{"$f":"IFERROR(VLOOKUP(D$4&\",,,\"&$A68&\",\"&sel_country_code,data[],7,FALSE),\"\")","v":""},{"$f":"IFERROR(VLOOKUP(E$4&\",,,\"&$A68&\",\"&sel_country_code,data[],7,FALSE),\"\")","v":""},null,{"$f":"IFERROR(VLOOKUP(G$4&\",\"&G$5&\",,\"&$A68&\",\",data[],7,FALSE),\"\")","v":""},{"$f":"IFERROR(VLOOKUP(H$4&\",\"&H$5&\",,\"&$A68&\",\",data[],7,FALSE),\"\")","v":4407.8754648499926},{"$f":"IFERROR(VLOOKUP(I$4&\",\"&I$5&\",,\"&$A68&\",\",data[],7,FALSE),\"\")","v":4408},{"$f":"IFERROR(VLOOKUP(J$4&\",\"&J$5&\",,\"&$A68&\",\",data[],7,FALSE),\"\")","v":""},null,{"$f":"IFERROR(VLOOKUP(L$4&\",,,\"&$A68&\",\",data[],7,FALSE),\"\")","v":7.3401485154905771E-2}]
["RUS",{"$f":"VLOOKUP($A69,region[],2,FALSE)","v":"Russia"},{"$f":"IFERROR(VLOOKUP(C$4&\",,,\"&$A69&\",\"&sel_country_code,data[],7,FALSE),\"\")","v":6601.17},{"$f":"IFERROR(VLOOKUP(D$4&\",,,\"&$A69&\",\"&sel_country_code,data[],7,FALSE),\"\")","v":""},{"$f":"IFERROR(VLOOKUP(E$4&\",,,\"&$A69&\",\"&sel_country_code,data[],7,FALSE),\"\")","v":1},null,{"$f":"IFERROR(VLOOKUP(G$4&\",\"&G$5&\",,\"&$A69&\",\",data[],7,FALSE),\"\")","v":""},{"$f":"IFERROR(VLOOKUP(H$4&\",\"&H$5&\",,\"&$A69&\",\",data[],7,FALSE),\"\")","v":4522},{"$f":"IFERROR(VLOOKUP(I$4&\",\"&I$5&\",,\"&$A69&\",\",data[],7,FALSE),\"\")","v":4522},{"$f":"IFERROR(VLOOKUP(J$4&\",\"&J$5&\",,\"&$A69&\",\",data[],7,FALSE),\"\")","v":""},null,{"$f":"IFERROR(VLOOKUP(L$4&\",,,\"&$A69&\",\",data[],7,FALSE),\"\")","v":7.5170549034228915E-2}]
["SAU",{"$f":"VLOOKUP($A70,region[],2,FALSE)","v":"Saudi Arabia"},{"$f":"IFERROR(VLOOKUP(C$4&\",,,\"&$A70&\",\"&sel_country_code,data[],7,FALSE),\"\")","v":8624.76},{"$f":"IFERROR(VLOOKUP(D$4&\",,,\"&$A70&\",\"&sel_country_code,data[],7,FALSE),\"\")","v":""},{"$f":"IFERROR(VLOOKUP(E$4&\",,,\"&$A70&\",\"&sel_country_code,data[],7,FALSE),\"\")","v":""},null,{"$f":"IFERROR(VLOOKUP(G$4&\",\"&G$5&\",,\"&$A70&\",\",data[],7,FALSE),\"\")","v":""},{"$f":"IFERROR(VLOOKUP(H$4&\",\"&H$5&\",,\"&$A70&\",\",data[],7,FALSE),\"\")","v":2282},{"$f":"IFERROR(VLOOKUP(I$4&\",\"&I$5&\",,\"&$A70&\",\",data[],7,FALSE),\"\")","v":2453},{"$f":"IFERROR(VLOOKUP(J$4&\",\"&J$5&\",,\"&$A70&\",\",data[],7,FALSE),\"\")","v":""},null,{"$f":"IFERROR(VLOOKUP(L$4&\",,,\"&$A70&\",\",data[],7,FALSE),\"\")","v":5.5673211551852057E-2}]
["SWE",{"$f":"VLOOKUP($A71,region[],2,FALSE)","v":"Sweden"},{"$f":"IFERROR(VLOOKUP(C$4&\",,,\"&$A71&\",\"&sel_country_code,data[],7,FALSE),\"\")","v":602.49},{"$f":"IFERROR(VLOOKUP(D$4&\",,,\"&$A71&\",\"&sel_country_code,data[],7,FALSE),\"\")","v":""},{"$f":"IFERROR(VLOOKUP(E$4&\",,,\"&$A71&\",\"&sel_country_code,data[],7,FALSE),\"\")","v":0.3},null,{"$f":"IFERROR(VLOOKUP(G$4&\",\"&G$5&\",,\"&$A71&\",\",data[],7,FALSE),\"\")","v":""},{"$f":"IFERROR(VLOOKUP(H$4&\",\"&H$5&\",,\"&$A71&\",\",data[],7,FALSE),\"\")","v":3056.1689955499933},{"$f":"IFERROR(VLOOKUP(I$4&\",\"&I$5&\",,\"&$A71&\",\",data[],7,FALSE),\"\")","v":4730},{"$f":"IFERROR(VLOOKUP(J$4&\",\"&J$5&\",,\"&$A71&\",\",data[],7,FALSE),\"\")","v":""},null,{"$f":"IFERROR(VLOOKUP(L$4&\",,,\"&$A71&\",\",data[],7,FALSE),\"\")","v":5.0299999999999997E-2}]
["THA",{"$f":"VLOOKUP($A72,region[],2,FALSE)","v":"Thailand"},{"$f":"IFERROR(VLOOKUP(C$4&\",,,\"&$A72&\",\"&sel_country_code,data[],7,FALSE),\"\")","v":18076.400000000001},{"$f":"IFERROR(VLOOKUP(D$4&\",,,\"&$A72&\",\"&sel_country_code,data[],7,FALSE),\"\")","v":""},{"$f":"IFERROR(VLOOKUP(E$4&\",,,\"&$A72&\",\"&sel_country_code,data[],7,FALSE),\"\")","v":""},null,{"$f":"IFERROR(VLOOKUP(G$4&\",\"&G$5&\",,\"&$A72&\",\",data[],7,FALSE),\"\")","v":""},{"$f":"IFERROR(VLOOKUP(H$4&\",\"&H$5&\",,\"&$A72&\",\",data[],7,FALSE),\"\")","v":2425.4030030999993},{"$f":"IFERROR(VLOOKUP(I$4&\",\"&I$5&\",,\"&$A72&\",\",data[],7,FALSE),\"\")","v":2453},{"$f":"IFERROR(VLOOKUP(J$4&\",\"&J$5&\",,\"&$A72&\",\",data[],7,FALSE),\"\")","v":""},null,{"$f":"IFERROR(VLOOKUP(L$4&\",,,\"&$A72&\",\",data[],7,FALSE),\"\")","v":6.4274782725559448E-2}]
["TUN",{"$f":"VLOOKUP($A73,region[],2,FALSE)","v":"Tunisia"},{"$f":"IFERROR(VLOOKUP(C$4&\",,,\"&$A73&\",\"&sel_country_code,data[],7,FALSE),\"\")","v":4114.37},{"$f":"IFERROR(VLOOKUP(D$4&\",,,\"&$A73&\",\"&sel_country_code,data[],7,FALSE),\"\")","v":""},{"$f":"IFERROR(VLOOKUP(E$4&\",,,\"&$A73&\",\"&sel_country_code,data[],7,FALSE),\"\")","v":0.35},null,{"$f":"IFERROR(VLOOKUP(G$4&\",\"&G$5&\",,\"&$A73&\",\",data[],7,FALSE),\"\")","v":""},{"$f":"IFERROR(VLOOKUP(H$4&\",\"&H$5&\",,\"&$A73&\",\",data[],7,FALSE),\"\")","v":2843},{"$f":"IFERROR(VLOOKUP(I$4&\",\"&I$5&\",,\"&$A73&\",\",data[],7,FALSE),\"\")","v":3066},{"$f":"IFERROR(VLOOKUP(J$4&\",\"&J$5&\",,\"&$A73&\",\",data[],7,FALSE),\"\")","v":""},null,{"$f":"IFERROR(VLOOKUP(L$4&\",,,\"&$A73&\",\",data[],7,FALSE),\"\")","v":0.11482300617243665}]
["UKR",{"$f":"VLOOKUP($A74,region[],2,FALSE)","v":"Ukraine"},{"$f":"IFERROR(VLOOKUP(C$4&\",,,\"&$A74&\",\"&sel_country_code,data[],7,FALSE),\"\")","v":6650.36},{"$f":"IFERROR(VLOOKUP(D$4&\",,,\"&$A74&\",\"&sel_country_code,data[],7,FALSE),\"\")","v":""},{"$f":"IFERROR(VLOOKUP(E$4&\",,,\"&$A74&\",\"&sel_country_code,data[],7,FALSE),\"\")","v":""},null,{"$f":"IFERROR(VLOOKUP(G$4&\",\"&G$5&\",,\"&$A74&\",\",data[],7,FALSE),\"\")","v":""},{"$f":"IFERROR(VLOOKUP(H$4&\",\"&H$5&\",,\"&$A74&\",\",data[],7,FALSE),\"\")","v":2769},{"$f":"IFERROR(VLOOKUP(I$4&\",\"&I$5&\",,\"&$A74&\",\",data[],7,FALSE),\"\")","v":3066},{"$f":"IFERROR(VLOOKUP(J$4&\",\"&J$5&\",,\"&$A74&\",\",data[],7,FALSE),\"\")","v":""},null,{"$f":"IFERROR(VLOOKUP(L$4&\",,,\"&$A74&\",\",data[],7,FALSE),\"\")","v":0.1266281397634636}]
["URY",{"$f":"VLOOKUP($A75,region[],2,FALSE)","v":"Uruguay"},{"$f":"IFERROR(VLOOKUP(C$4&\",,,\"&$A75&\",\"&sel_country_code,data[],7,FALSE),\"\")","v":12547.2},{"$f":"IFERROR(VLOOKUP(D$4&\",,,\"&$A75&\",\"&sel_country_code,data[],7,FALSE),\"\")","v":""},{"$f":"IFERROR(VLOOKUP(E$4&\",,,\"&$A75&\",\"&sel_country_code,data[],7,FALSE),\"\")","v":""},null,{"$f":"IFERROR(VLOOKUP(G$4&\",\"&G$5&\",,\"&$A75&\",\",data[],7,FALSE),\"\")","v":""},{"$f":"IFERROR(VLOOKUP(H$4&\",\"&H$5&\",,\"&$A75&\",\",data[],7,FALSE),\"\")","v":3594},{"$f":"IFERROR(VLOOKUP(I$4&\",\"&I$5&\",,\"&$A75&\",\",data[],7,FALSE),\"\")","v":3854},{"$f":"IFERROR(VLOOKUP(J$4&\",\"&J$5&\",,\"&$A75&\",\",data[],7,FALSE),\"\")","v":""},null,{"$f":"IFERROR(VLOOKUP(L$4&\",,,\"&$A75&\",\",data[],7,FALSE),\"\")","v":7.731973992583685E-2}]
["USA",{"$f":"VLOOKUP($A76,region[],2,FALSE)","v":"USA"},{"$f":"IFERROR(VLOOKUP(C$4&\",,,\"&$A76&\",\"&sel_country_code,data[],7,FALSE),\"\")","v":8323.27},{"$f":"IFERROR(VLOOKUP(D$4&\",,,\"&$A76&\",\"&sel_country_code,data[],7,FALSE),\"\")","v":""},{"$f":"IFERROR(VLOOKUP(E$4&\",,,\"&$A76&\",\"&sel_country_code,data[],7,FALSE),\"\")","v":""},null,{"$f":"IFERROR(VLOOKUP(G$4&\",\"&G$5&\",,\"&$A76&\",\",data[],7,FALSE),\"\")","v":""},{"$f":"IFERROR(VLOOKUP(H$4&\",\"&H$5&\",,\"&$A76&\",\",data[],7,FALSE),\"\")","v":3503},{"$f":"IFERROR(VLOOKUP(I$4&\",\"&I$5&\",,\"&$A76&\",\",data[],7,FALSE),\"\")","v":4030},{"$f":"IFERROR(VLOOKUP(J$4&\",\"&J$5&\",,\"&$A76&\",\",data[],7,FALSE),\"\")","v":""},null,{"$f":"IFERROR(VLOOKUP(L$4&\",,,\"&$A76&\",\",data[],7,FALSE),\"\")","v":5.0299999999999997E-2}]
["VNM",{"$f":"VLOOKUP($A77,region[],2,FALSE)","v":"Vietnam"},{"$f":"IFERROR(VLOOKUP(C$4&\",,,\"&$A77&\",\"&sel_country_code,data[],7,FALSE),\"\")","v":18266.27},{"$f":"IFERROR(VLOOKUP(D$4&\",,,\"&$A77&\",\"&sel_country_code,data[],7,FALSE),\"\")","v":""},{"$f":"IFERROR(VLOOKUP(E$4&\",,,\"&$A77&\",\"&sel_country_code,data[],7,FALSE),\"\")","v":""},null,{"$f":"IFERROR(VLOOKUP(G$4&\",\"&G$5&\",,\"&$A77&\",\",data[],7,FALSE),\"\")","v":""},{"$f":"IFERROR(VLOOKUP(H$4&\",\"&H$5&\",,\"&$A77&\",\",data[],7,FALSE),\"\")","v":3577.9190809999977},{"$f":"IFERROR(VLOOKUP(I$4&\",\"&I$5&\",,\"&$A77&\",\",data[],7,FALSE),\"\")","v":3578},{"$f":"IFERROR(VLOOKUP(J$4&\",\"&J$5&\",,\"&$A77&\",\",data[],7,FALSE),\"\")","v":""},null,{"$f":"IFERROR(VLOOKUP(L$4&\",,,\"&$A77&\",\",data[],7,FALSE),\"\")","v":8.9280207439799461E-2}]
["ZAF",{"$f":"VLOOKUP($A78,region[],2,FALSE)","v":"South Africa"},{"$f":"IFERROR(VLOOKUP(C$4&\",,,\"&$A78&\",\"&sel_country_code,data[],7,FALSE),\"\")","v":11789.832},{"$f":"IFERROR(VLOOKUP(D$4&\",,,\"&$A78&\",\"&sel_country_code,data[],7,FALSE),\"\")","v":""},{"$f":"IFERROR(VLOOKUP(E$4&\",,,\"&$A78&\",\"&sel_country_code,data[],7,FALSE),\"\")","v":""},null,{"$f":"IFERROR(VLOOKUP(G$4&\",\"&G$5&\",,\"&$A78&\",\",data[],7,FALSE),\"\")","v":""},{"$f":"IFERROR(VLOOKUP(H$4&\",\"&H$5&\",,\"&$A78&\",\",data[],7,FALSE),\"\")","v":3070},{"$f":"IFERROR(VLOOKUP(I$4&\",\"&I$5&\",,\"&$A78&\",\",data[],7,FALSE),\"\")","v":4117},{"$f":"IFERROR(VLOOKUP(J$4&\",\"&J$5&\",,\"&$A78&\",\",data[],7,FALSE),\"\")","v":""},null,{"$f":"IFERROR(VLOOKUP(L$4&\",,,\"&$A78&\",\",data[],7,FALSE),\"\")","v":7.8066629268261314E-2}]
["ZAF-EC",{"$f":"VLOOKUP($A79,region[],2,FALSE)","v":"South Africa (East Cape)"},{"$f":"IFERROR(VLOOKUP(C$4&\",,,\"&$A79&\",\"&sel_country_code,data[],7,FALSE),\"\")","v":11789.832},{"$f":"IFERROR(VLOOKUP(D$4&\",,,\"&$A79&\",\"&sel_country_code,data[],7,FALSE),\"\")","v":""},{"$f":"IFERROR(VLOOKUP(E$4&\",,,\"&$A79&\",\"&sel_country_code,data[],7,FALSE),\"\")","v":""},null,{"$f":"IFERROR(VLOOKUP(G$4&\",\"&G$5&\",,\"&$A79&\",\",data[],7,FALSE),\"\")","v":""},{"$f":"IFERROR(VLOOKUP(H$4&\",\"&H$5&\",,\"&$A79&\",\",data[],7,FALSE),\"\")","v":3914.4857524666741},{"$f":"IFERROR(VLOOKUP(I$4&\",\"&I$5&\",,\"&$A79&\",\",data[],7,FALSE),\"\")","v":4117.2},{"$f":"IFERROR(VLOOKUP(J$4&\",\"&J$5&\",,\"&$A79&\",\",data[],7,FALSE),\"\")","v":""},null,{"$f":"IFERROR(VLOOKUP(L$4&\",,,\"&$A79&\",\",data[],7,FALSE),\"\")","v":7.8066629268261314E-2}]
["ZAF-FRS",{"$f":"VLOOKUP($A80,region[],2,FALSE)","v":"South Africa (Free State)"},{"$f":"IFERROR(VLOOKUP(C$4&\",,,\"&$A80&\",\"&sel_country_code,data[],7,FALSE),\"\")","v":11789.832},{"$f":"IFERROR(VLOOKUP(D$4&\",,,\"&$A80&\",\"&sel_country_code,data[],7,FALSE),\"\")","v":""},{"$f":"IFERROR(VLOOKUP(E$4&\",,,\"&$A80&\",\"&sel_country_code,data[],7,FALSE),\"\")","v":""},null,{"$f":"IFERROR(VLOOKUP(G$4&\",\"&G$5&\",,\"&$A80&\",\",data[],7,FALSE),\"\")","v":""},{"$f":"IFERROR(VLOOKUP(H$4&\",\"&H$5&\",,\"&$A80&\",\",data[],7,FALSE),\"\")","v":2775.7070136400025},{"$f":"IFERROR(VLOOKUP(I$4&\",\"&I$5&\",,\"&$A80&\",\",data[],7,FALSE),\"\")","v":""},{"$f":"IFERROR(VLOOKUP(J$4&\",\"&J$5&\",,\"&$A80&\",\",data[],7,FALSE),\"\")","v":""},null,{"$f":"IFERROR(VLOOKUP(L$4&\",,,\"&$A80&\",\",data[],7,FALSE),\"\")","v":7.8066629268261314E-2}]
["ZAF-GAU",{"$f":"VLOOKUP($A81,region[],2,FALSE)","v":"South Africa (Gauteng)"},{"$f":"IFERROR(VLOOKUP(C$4&\",,,\"&$A81&\",\"&sel_country_code,data[],7,FALSE),\"\")","v":11789.832},{"$f":"IFERROR(VLOOKUP(D$4&\",,,\"&$A81&\",\"&sel_country_code,data[],7,FALSE),\"\")","v":""},{"$f":"IFERROR(VLOOKUP(E$4&\",,,\"&$A81&\",\"&sel_country_code,data[],7,FALSE),\"\")","v":""},null,{"$f":"IFERROR(VLOOKUP(G$4&\",\"&G$5&\",,\"&$A81&\",\",data[],7,FALSE),\"\")","v":""},{"$f":"IFERROR(VLOOKUP(H$4&\",\"&H$5&\",,\"&$A81&\",\",data[],7,FALSE),\"\")","v":2069.9309253700035},{"$f":"IFERROR(VLOOKUP(I$4&\",\"&I$5&\",,\"&$A81&\",\",data[],7,FALSE),\"\")","v":""},{"$f":"IFERROR(VLOOKUP(J$4&\",\"&J$5&\",,\"&$A81&\",\",data[],7,FALSE),\"\")","v":""},null,{"$f":"IFERROR(VLOOKUP(L$4&\",,,\"&$A81&\",\",data[],7,FALSE),\"\")","v":7.8066629268261314E-2}]
["ZAF-KWA",{"$f":"VLOOKUP($A82,region[],2,FALSE)","v":"South Africa (KwaZulu-Natal)"},{"$f":"IFERROR(VLOOKUP(C$4&\",,,\"&$A82&\",\"&sel_country_code,data[],7,FALSE),\"\")","v":11789.832},{"$f":"IFERROR(VLOOKUP(D$4&\",,,\"&$A82&\",\"&sel_country_code,data[],7,FALSE),\"\")","v":""},{"$f":"IFERROR(VLOOKUP(E$4&\",,,\"&$A82&\",\"&sel_country_code,data[],7,FALSE),\"\")","v":""},null,{"$f":"IFERROR(VLOOKUP(G$4&\",\"&G$5&\",,\"&$A82&\",\",data[],7,FALSE),\"\")","v":""},{"$f":"IFERROR(VLOOKUP(H$4&\",\"&H$5&\",,\"&$A82&\",\",data[],7,FALSE),\"\")","v":2682.3634953500023},{"$f":"IFERROR(VLOOKUP(I$4&\",\"&I$5&\",,\"&$A82&\",\",data[],7,FALSE),\"\")","v":4117.2},{"$f":"IFERROR(VLOOKUP(J$4&\",\"&J$5&\",,\"&$A82&\",\",data[],7,FALSE),\"\")","v":""},null,{"$f":"IFERROR(VLOOKUP(L$4&\",,,\"&$A82&\",\",data[],7,FALSE),\"\")","v":7.8066629268261314E-2}]
["ZAF-LIM",{"$f":"VLOOKUP($A83,region[],2,FALSE)","v":"South Africa (Limpopo)"},{"$f":"IFERROR(VLOOKUP(C$4&\",,,\"&$A83&\",\"&sel_country_code,data[],7,FALSE),\"\")","v":11789.832},{"$f":"IFERROR(VLOOKUP(D$4&\",,,\"&$A83&\",\"&sel_country_code,data[],7,FALSE),\"\")","v":""},{"$f":"IFERROR(VLOOKUP(E$4&\",,,\"&$A83&\",\"&sel_country_code,data[],7,FALSE),\"\")","v":""},null,{"$f":"IFERROR(VLOOKUP(G$4&\",\"&G$5&\",,\"&$A83&\",\",data[],7,FALSE),\"\")","v":""},{"$f":"IFERROR(VLOOKUP(H$4&\",\"&H$5&\",,\"&$A83&\",\",data[],7,FALSE),\"\")","v":2627.5496087499969},{"$f":"IFERROR(VLOOKUP(I$4&\",\"&I$5&\",,\"&$A83&\",\",data[],7,FALSE),\"\")","v":""},{"$f":"IFERROR(VLOOKUP(J$4&\",\"&J$5&\",,\"&$A83&\",\",data[],7,FALSE),\"\")","v":""},null,{"$f":"IFERROR(VLOOKUP(L$4&\",,,\"&$A83&\",\",data[],7,FALSE),\"\")","v":7.8066629268261314E-2}]
["ZAF-MPU",{"$f":"VLOOKUP($A84,region[],2,FALSE)","v":"South Africa (Mpumalanga)"},{"$f":"IFERROR(VLOOKUP(C$4&\",,,\"&$A84&\",\"&sel_country_code,data[],7,FALSE),\"\")","v":11789.832},{"$f":"IFERROR(VLOOKUP(D$4&\",,,\"&$A84&\",\"&sel_country_code,data[],7,FALSE),\"\")","v":""},{"$f":"IFERROR(VLOOKUP(E$4&\",,,\"&$A84&\",\"&sel_country_code,data[],7,FALSE),\"\")","v":""},null,{"$f":"IFERROR(VLOOKUP(G$4&\",\"&G$5&\",,\"&$A84&\",\",data[],7,FALSE),\"\")","v":""},{"$f":"IFERROR(VLOOKUP(H$4&\",\"&H$5&\",,\"&$A84&\",\",data[],7,FALSE),\"\")","v":2612.1821174166703},{"$f":"IFERROR(VLOOKUP(I$4&\",\"&I$5&\",,\"&$A84&\",\",data[],7,FALSE),\"\")","v":""},{"$f":"IFERROR(VLOOKUP(J$4&\",\"&J$5&\",,\"&$A84&\",\",data[],7,FALSE),\"\")","v":""},null,{"$f":"IFERROR(VLOOKUP(L$4&\",,,\"&$A84&\",\",data[],7,FALSE),\"\")","v":7.8066629268261314E-2}]
["ZAF-NC",{"$f":"VLOOKUP($A85,region[],2,FALSE)","v":"South Africa (Northern Cape)"},{"$f":"IFERROR(VLOOKUP(C$4&\",,,\"&$A85&\",\"&sel_country_code,data[],7,FALSE),\"\")","v":11789.832},{"$f":"IFERROR(VLOOKUP(D$4&\",,,\"&$A85&\",\"&sel_country_code,data[],7,FALSE),\"\")","v":""},{"$f":"IFERROR(VLOOKUP(E$4&\",,,\"&$A85&\",\"&sel_country_code,data[],7,FALSE),\"\")","v":""},null,{"$f":"IFERROR(VLOOKUP(G$4&\",\"&G$5&\",,\"&$A85&\",\",data[],7,FALSE),\"\")","v":""},{"$f":"IFERROR(VLOOKUP(H$4&\",\"&H$5&\",,\"&$A85&\",\",data[],7,FALSE),\"\")","v":3748.8309036749974},{"$f":"IFERROR(VLOOKUP(I$4&\",\"&I$5&\",,\"&$A85&\",\",data[],7,FALSE),\"\")","v":4117.2},{"$f":"IFERROR(VLOOKUP(J$4&\",\"&J$5&\",,\"&$A85&\",\",data[],7,FALSE),\"\")","v":""},null,{"$f":"IFERROR(VLOOKUP(L$4&\",,,\"&$A85&\",\",data[],7,FALSE),\"\")","v":7.8066629268261314E-2}]
["ZAF-NW",{"$f":"VLOOKUP($A86,region[],2,FALSE)","v":"South Africa (North West)"},{"$f":"IFERROR(VLOOKUP(C$4&\",,,\"&$A86&\",\"&sel_country_code,data[],7,FALSE),\"\")","v":11789.832},{"$f":"IFERROR(VLOOKUP(D$4&\",,,\"&$A86&\",\"&sel_country_code,data[],7,FALSE),\"\")","v":""},{"$f":"IFERROR(VLOOKUP(E$4&\",,,\"&$A86&\",\"&sel_country_code,data[],7,FALSE),\"\")","v":""},null,{"$f":"IFERROR(VLOOKUP(G$4&\",\"&G$5&\",,\"&$A86&\",\",data[],7,FALSE),\"\")","v":""},{"$f":"IFERROR(VLOOKUP(H$4&\",\"&H$5&\",,\"&$A86&\",\",data[],7,FALSE),\"\")","v":3092.6134290333307},{"$f":"IFERROR(VLOOKUP(I$4&\",\"&I$5&\",,\"&$A86&\",\",data[],7,FALSE),\"\")","v":""},{"$f":"IFERROR(VLOOKUP(J$4&\",\"&J$5&\",,\"&$A86&\",\",data[],7,FALSE),\"\")","v":""},null,{"$f":"IFERROR(VLOOKUP(L$4&\",,,\"&$A86&\",\",data[],7,FALSE),\"\")","v":7.8066629268261314E-2}]
["ZAF-WC",{"$f":"VLOOKUP($A87,region[],2,FALSE)","v":"South Africa (Western Cape)"},{"$f":"IFERROR(VLOOKUP(C$4&\",,,\"&$A87&\",\"&sel_country_code,data[],7,FALSE),\"\")","v":11789.832},{"$f":"IFERROR(VLOOKUP(D$4&\",,,\"&$A87&\",\"&sel_country_code,data[],7,FALSE),\"\")","v":""},{"$f":"IFERROR(VLOOKUP(E$4&\",,,\"&$A87&\",\"&sel_country_code,data[],7,FALSE),\"\")","v":""},null,{"$f":"IFERROR(VLOOKUP(G$4&\",\"&G$5&\",,\"&$A87&\",\",data[],7,FALSE),\"\")","v":""},{"$f":"IFERROR(VLOOKUP(H$4&\",\"&H$5&\",,\"&$A87&\",\",data[],7,FALSE),\"\")","v":3346.6670672599976},{"$f":"IFERROR(VLOOKUP(I$4&\",\"&I$5&\",,\"&$A87&\",\",data[],7,FALSE),\"\")","v":4117.2},{"$f":"IFERROR(VLOOKUP(J$4&\",\"&J$5&\",,\"&$A87&\",\",data[],7,FALSE),\"\")","v":""},null,{"$f":"IFERROR(VLOOKUP(L$4&\",,,\"&$A87&\",\",data[],7,FALSE),\"\")","v":7.8066629268261314E-2}]

{"sheet":"a_edit_data_speccost","index":38,"n_rows":35,"n_cols":17,"rows_kept":35,"cut":false,"hidden":true,"merged":[[17,2,17,3],[1,15,1,16],[2,15,2,16],[17,6,17,7],[17,8,17,9],[17,10,17,15],[13,6,13,7],[13,8,13,9],[13,10,13,15],[6,3,6,13]]}
[]
[null,null,"VIEW & MODIFY SPECIFIC COSTS",null,null,null,null,null,null,null,null,null,null,null,null,"YOUR SETTINGS"]
[null,null,null,null,null,null,null,null,null,null,null,null,null,null,null,"can be re-adjusted on the dashboard"]
[null,null,"Change input parameters for all countries or for the selected supply country",null,null,null,null,null,null,null,null,null,null,null,null,"Supply country:",{"$f":"sel_region_name","v":"Morocco"}]
[null,null,null,null,null,null,null,null,null,null,null,null,null,null,null,"Demand country:",{"$f":"sel_country_name","v":"Germany"}]
[null,null,"default scenarios","This section shows data for the six scenarios (data years & cost reduction pathways) that are provided with the tool. The chosen default scenario is highlighted in red.",null,null,null,null,null,null,null,null,null,null,null,"RE generation:",{"$f":"sel_res_gen_name","v":"Wind-PV-Hybrid"}]
[null,null,"user modifications","In this section, you can enter your own assumptions, either as a global default or for your selected supply country/region only. \nIf user defined data exists here, it is always used instead of the default scenario data. ",null,null,null,null,null,null,null,null,null,null,null,"Process chain:",{"$f":"sel_chain","v":"Hydrogen (AEL)"}]
[null,null,"currently used data","The currently used data section shows which data is actually used for the calculations. Global defaults are used if no country-specific data exists. ",null,null,null,null,null,null,null,null,null,null,null,"CO2 source:",{"$f":"sel_secproc_co2","v":"DAC"}]
[null,null,null,null,null,null,null,null,null,null,null,null,null,null,null,"Water source:",{"$f":"sel_secproc_water","v":"Water desalination"}]
[null,null,null,"<< Click the Save Button to apply your changes",null,null,null,null,null,null,null,null,null,null,null,"Transport mode:",{"$f":"sel_transport","v":"Ship"}]
[null,null,null,null,null,null,null,null,null,null,null,null,null,null,null,"Scenario:",{"$f":"sel_scenario","v":"2030 (medium)"}]
[]
[]
[null,null,null,null,null,null,"currently used data",null,"user modifications",null,{"$f":"\"default scenarios (\"&sel_region_name&\")\"","v":"default scenarios (Morocco)"}]
[null,"Parameter (key)","Parameter","Unit","key_global","key_local","global",{"$f":"sel_region_name","v":"Morocco"},"global",{"$f":"sel_region_name","v":"Morocco"},"2030 (high)","2030 (medium)","2030 (low)","2040 (high)","2040 (medium)","2040 (low)","range"]
[null,"WACC","WACC","percent",{"$f":"\"WACC,,,,\"","v":"WACC,,,,"},{"$f":"\"WACC,,,\"&sel_region_code&\",\"","v":"WACC,,,MAR,"},{"$f":"IF($E16=VLOOKUP($E16,data[],1),VLOOKUP($E16,data[],7),\"\")","v":""},{"$f":"IF($F16=VLOOKUP($F16,data[],1),VLOOKUP($F16,data[],7),\"\")","v":7.731973992583685E-2},null,null,{"$f":"IFERROR(VLOOKUP(a_edit_data_speccost!$F16,'_scenario_2030_high'!$B:$H,7,FALSE),\"\")","v":7.731973992583685E-2},{"$f":"IFERROR(VLOOKUP(a_edit_data_speccost!$F16,'_scenario_2030_medium'!$B:$H,7,FALSE),\"\")","v":7.731973992583685E-2},{"$f":"IFERROR(VLOOKUP(a_edit_data_speccost!$F16,'_scenario_2030_low'!$B:$H,7,FALSE),\"\")","v":7.731973992583685E-2},{"$f":"IFERROR(VLOOKUP(a_edit_data_speccost!$F16,'_scenario_2040_high'!$B:$H,7,FALSE),\"\")","v":7.731973992583685E-2},{"$f":"IFERROR(VLOOKUP(a_edit_data_speccost!$F16,'_scenario_2040_medium'!$B:$H,7,FALSE),\"\")","v":7.731973992583685E-2},{"$f":"IFERROR(VLOOKUP(a_edit_data_speccost!$F16,'_scenario_2040_low'!$B:$H,7,FALSE),\"\")","v":7.731973992583685E-2}]
[]
[null,null,"Specific costs of energy ",null,null,null,"currently used data",null,null,null,"default scenarios (global)"]
[null,"Parameter (key)","Parameter","Unit",null,null,"global",{"$f":"sel_region_name","v":"Morocco"},null,null,"2030 (high)","2030 (medium)","2030 (low)","2040 (high)","2040 (medium)","2040 (low)","range"]
[null,"CO2-G",{"$f":"VLOOKUP($B20,flow[],2,FALSE)","v":"carbon dioxide"},{"$f":"\"USD / \"&VLOOKUP($B20,flow[],3,FALSE)","v":"USD / kg CO2 (g)"},{"$f":"\"SPECCOST,,\"&$B20&\",,\"","v":"SPECCOST,,CO2-G,,"},{"$f":"\"SPECCOST,,\"&$B20&\",\"&sel_region_code&\",\"","v":"SPECCOST,,CO2-G,MAR,"},{"$f":"IF($E20=VLOOKUP($E20,data[],1),VLOOKUP($E20,data[],7),\"\")","v":3.8577660276243091E-2},{"$f":"IF($F20=VLOOKUP($F20,data[],1),VLOOKUP($F20,data[],7),\"\")","v":""},null,null,{"$f":"IFERROR(VLOOKUP(a_edit_data_speccost!$E20,'_scenario_2030_high'!$B:$H,7,FALSE),\"\")","v":3.8577660276243091E-2},{"$f":"IFERROR(VLOOKUP(a_edit_data_speccost!$E20,'_scenario_2030_medium'!$B:$H,7,FALSE),\"\")","v":3.8577660276243091E-2},{"$f":"IFERROR(VLOOKUP(a_edit_data_speccost!$E20,'_scenario_2030_low'!$B:$H,7,FALSE),\"\")","v":3.8577660276243091E-2},{"$f":"IFERROR(VLOOKUP(a_edit_data_speccost!$E20,'_scenario_2040_high'!$B:$H,7,FALSE),\"\")","v":3.8577660276243091E-2},{"$f":"IFERROR(VLOOKUP(a_edit_data_speccost!$E20,'_scenario_2040_medium'!$B:$H,7,FALSE),\"\")","v":3.8577660276243091E-2},{"$f":"IFERROR(VLOOKUP(a_edit_data_speccost!$E20,'_scenario_2040_low'!$B:$H,7,FALSE),\"\")","v":3.8577660276243091E-2}]
[null,"H2O-L",{"$f":"VLOOKUP($B21,flow[],2,FALSE)","v":"water"},{"$f":"\"USD / \"&VLOOKUP($B21,flow[],3,FALSE)","v":"USD / kg H2O (l)"},{"$f":"\"SPECCOST,,\"&$B21&\",,\"","v":"SPECCOST,,H2O-L,,"},"SPECCOST,,H2O-L,MAR,",{"$f":"IF($E21=VLOOKUP($E21,data[],1),VLOOKUP($E21,data[],7),\"\")","v":1.190463995027624E-3},{"$f":"IF($F21=VLOOKUP($F21,data[],1),VLOOKUP($F21,data[],7),\"\")","v":""},null,null,{"$f":"IFERROR(VLOOKUP(a_edit_data_speccost!$E21,'_scenario_2030_high'!$B:$H,7,FALSE),\"\")","v":1.190463995027624E-3},{"$f":"IFERROR(VLOOKUP(a_edit_data_speccost!$E21,'_scenario_2030_medium'!$B:$H,7,FALSE),\"\")","v":1.190463995027624E-3},{"$f":"IFERROR(VLOOKUP(a_edit_data_speccost!$E21,'_scenario_2030_low'!$B:$H,7,FALSE),\"\")","v":1.190463995027624E-3},{"$f":"IFERROR(VLOOKUP(a_edit_data_speccost!$E21,'_scenario_2040_high'!$B:$H,7,FALSE),\"\")","v":1.190463995027624E-3},{"$f":"IFERROR(VLOOKUP(a_edit_data_speccost!$E21,'_scenario_2040_medium'!$B:$H,7,FALSE),\"\")","v":1.190463995027624E-3},{"$f":"IFERROR(VLOOKUP(a_edit_data_speccost!$E21,'_scenario_2040_low'!$B:$H,7,FALSE),\"\")","v":1.190463995027624E-3}]
[null,"HEAT",{"$f":"VLOOKUP($B22,flow[],2,FALSE)","v":"heat"},{"$f":"\"USD / \"&VLOOKUP($B22,flow[],3,FALSE)","v":"USD / kWh (heat)"},"SPECCOST,,HEAT,,","SPECCOST,,HEAT,MAR,",{"$f":"IF($E22=VLOOKUP($E22,data[],1),VLOOKUP($E22,data[],7),\"\")","v":0.05},{"$f":"IF($F22=VLOOKUP($F22,data[],1),VLOOKUP($F22,data[],7),\"\")","v":""},null,null,{"$f":"IFERROR(VLOOKUP(a_edit_data_speccost!$E22,'_scenario_2030_high'!$B:$H,7,FALSE),\"\")","v":0.05},{"$f":"IFERROR(VLOOKUP(a_edit_data_speccost!$E22,'_scenario_2030_medium'!$B:$H,7,FALSE),\"\")","v":0.05},{"$f":"IFERROR(VLOOKUP(a_edit_data_speccost!$E22,'_scenario_2030_low'!$B:$H,7,FALSE),\"\")","v":0.05},{"$f":"IFERROR(VLOOKUP(a_edit_data_speccost!$E22,'_scenario_2040_high'!$B:$H,7,FALSE),\"\")","v":0.05},{"$f":"IFERROR(VLOOKUP(a_edit_data_speccost!$E22,'_scenario_2040_medium'!$B:$H,7,FALSE),\"\")","v":0.05},{"$f":"IFERROR(VLOOKUP(a_edit_data_speccost!$E22,'_scenario_2040_low'!$B:$H,7,FALSE),\"\")","v":0.05}]
[null,"BFUEL-L",{"$f":"VLOOKUP($B23,flow[],2,FALSE)","v":"bunker fuel"},{"$f":"\"USD / \"&VLOOKUP($B23,flow[],3,FALSE)","v":"USD / kwh bunker fuel (l)"},"SPECCOST,,BFUEL-L,,","SPECCOST,,BFUEL-L,MAR,",{"$f":"IF($E23=VLOOKUP($E23,data[],1),VLOOKUP($E23,data[],7),\"\")","v":2.7940534453652541E-3},{"$f":"IF($F23=VLOOKUP($F23,data[],1),VLOOKUP($F23,data[],7),\"\")","v":""},null,null,{"$f":"IFERROR(VLOOKUP(a_edit_data_speccost!$E23,'_scenario_2030_high'!$B:$H,7,FALSE),\"\")","v":3.9445460405156535E-3},{"$f":"IFERROR(VLOOKUP(a_edit_data_speccost!$E23,'_scenario_2030_medium'!$B:$H,7,FALSE),\"\")","v":2.7940534453652541E-3},{"$f":"IFERROR(VLOOKUP(a_edit_data_speccost!$E23,'_scenario_2030_low'!$B:$H,7,FALSE),\"\")","v":1.6435608502148554E-3},{"$f":"IFERROR(VLOOKUP(a_edit_data_speccost!$E23,'_scenario_2040_high'!$B:$H,7,FALSE),\"\")","v":3.9445460405156535E-3},{"$f":"IFERROR(VLOOKUP(a_edit_data_speccost!$E23,'_scenario_2040_medium'!$B:$H,7,FALSE),\"\")","v":2.7940534453652541E-3},{"$f":"IFERROR(VLOOKUP(a_edit_data_speccost!$E23,'_scenario_2040_low'!$B:$H,7,FALSE),\"\")","v":1.6435608502148554E-3}]
[null,"N2-G",{"$f":"VLOOKUP($B24,flow[],2,FALSE)","v":"nitrogen"},{"$f":"\"USD / \"&VLOOKUP($B24,flow[],3,FALSE)","v":"USD / kg N2 (g)"},"SPECCOST,,N2-G,,","SPECCOST,,N2-G,MAR,",{"$f":"IF($E24=VLOOKUP($E24,data[],1),VLOOKUP($E24,data[],7),\"\")","v":0.01},{"$f":"IF($F24=VLOOKUP($F24,data[],1),VLOOKUP($F24,data[],7),\"\")","v":""},null,null,{"$f":"IFERROR(VLOOKUP(a_edit_data_speccost!$E24,'_scenario_2030_high'!$B:$H,7,FALSE),\"\")","v":0.01},{"$f":"IFERROR(VLOOKUP(a_edit_data_speccost!$E24,'_scenario_2030_medium'!$B:$H,7,FALSE),\"\")","v":0.01},{"$f":"IFERROR(VLOOKUP(a_edit_data_speccost!$E24,'_scenario_2030_low'!$B:$H,7,FALSE),\"\")","v":0.01},{"$f":"IFERROR(VLOOKUP(a_edit_data_speccost!$E24,'_scenario_2040_high'!$B:$H,7,FALSE),\"\")","v":0.01},{"$f":"IFERROR(VLOOKUP(a_edit_data_speccost!$E24,'_scenario_2040_medium'!$B:$H,7,FALSE),\"\")","v":0.01},{"$f":"IFERROR(VLOOKUP(a_edit_data_speccost!$E24,'_scenario_2040_low'!$B:$H,7,FALSE),\"\")","v":0.01}]
[null,null,{"$f":"VLOOKUP($B25,flow[],2,FALSE)","v":{"$error":"#N/A"}},{"$f":"\"USD / \"&VLOOKUP($B25,flow[],3,FALSE)","v":{"$error":"#N/A"}},"SPECCOST,,,,","SPECCOST,,,MAR,",{"$f":"IF($E25=VLOOKUP($E25,data[],1),VLOOKUP($E25,data[],7),\"\")","v":""},{"$f":"IF($F25=VLOOKUP($F25,data[],1),VLOOKUP($F25,data[],7),\"\")","v":""},null,null,{"$f":"IFERROR(VLOOKUP(a_edit_data_speccost!$E25,'_scenario_2030_high'!$B:$H,7,FALSE),\"\")","v":""},{"$f":"IFERROR(VLOOKUP(a_edit_data_speccost!$E25,'_scenario_2030_medium'!$B:$H,7,FALSE),\"\")","v":""},{"$f":"IFERROR(VLOOKUP(a_edit_data_speccost!$E25,'_scenario_2030_low'!$B:$H,7,FALSE),\"\")","v":""},{"$f":"IFERROR(VLOOKUP(a_edit_data_speccost!$E25,'_scenario_2040_high'!$B:$H,7,FALSE),\"\")","v":""},{"$f":"IFERROR(VLOOKUP(a_edit_data_speccost!$E25,'_scenario_2040_medium'!$B:$H,7,FALSE),\"\")","v":""},{"$f":"IFERROR(VLOOKUP(a_edit_data_speccost!$E25,'_scenario_2040_low'!$B:$H,7,FALSE),\"\")","v":""}]
[null,null,{"$f":"VLOOKUP($B26,flow[],2,FALSE)","v":{"$error":"#N/A"}},{"$f":"\"USD / \"&VLOOKUP($B26,flow[],3,FALSE)","v":{"$error":"#N/A"}},"SPECCOST,,,,","SPECCOST,,,MAR,",{"$f":"IF($E26=VLOOKUP($E26,data[],1),VLOOKUP($E26,data[],7),\"\")","v":""},{"$f":"IF($F26=VLOOKUP($F26,data[],1),VLOOKUP($F26,data[],7),\"\")","v":""},null,null,{"$f":"IFERROR(VLOOKUP(a_edit_data_speccost!$E26,'_scenario_2030_high'!$B:$H,7,FALSE),\"\")","v":""},{"$f":"IFERROR(VLOOKUP(a_edit_data_speccost!$E26,'_scenario_2030_medium'!$B:$H,7,FALSE),\"\")","v":""},{"$f":"IFERROR(VLOOKUP(a_edit_data_speccost!$E26,'_scenario_2030_low'!$B:$H,7,FALSE),\"\")","v":""},{"$f":"IFERROR(VLOOKUP(a_edit_data_speccost!$E26,'_scenario_2040_high'!$B:$H,7,FALSE),\"\")","v":""},{"$f":"IFERROR(VLOOKUP(a_edit_data_speccost!$E26,'_scenario_2040_medium'!$B:$H,7,FALSE),\"\")","v":""},{"$f":"IFERROR(VLOOKUP(a_edit_data_speccost!$E26,'_scenario_2040_low'!$B:$H,7,FALSE),\"\")","v":""}]
[null,null,{"$f":"VLOOKUP($B27,flow[],2,FALSE)","v":{"$error":"#N/A"}},{"$f":"\"USD / \"&VLOOKUP($B27,flow[],3,FALSE)","v":{"$error":"#N/A"}},"SPECCOST,,,,","SPECCOST,,,MAR,",{"$f":"IF($E27=VLOOKUP($E27,data[],1),VLOOKUP($E27,data[],7),\"\")","v":""},{"$f":"IF($F27=VLOOKUP($F27,data[],1),VLOOKUP($F27,data[],7),\"\")","v":""},null,null,{"$f":"IFERROR(VLOOKUP(a_edit_data_speccost!$E27,'_scenario_2030_high'!$B:$H,7,FALSE),\"\")","v":""},{"$f":"IFERROR(VLOOKUP(a_edit_data_speccost!$E27,'_scenario_2030_medium'!$B:$H,7,FALSE),\"\")","v":""},{"$f":"IFERROR(VLOOKUP(a_edit_data_speccost!$E27,'_scenario_2030_low'!$B:$H,7,FALSE),\"\")","v":""},{"$f":"IFERROR(VLOOKUP(a_edit_data_speccost!$E27,'_scenario_2040_high'!$B:$H,7,FALSE),\"\")","v":""},{"$f":"IFERROR(VLOOKUP(a_edit_data_speccost!$E27,'_scenario_2040_medium'!$B:$H,7,FALSE),\"\")","v":""},{"$f":"IFERROR(VLOOKUP(a_edit_data_speccost!$E27,'_scenario_2040_low'!$B:$H,7,FALSE),\"\")","v":""}]
[null,null,{"$f":"VLOOKUP($B28,flow[],2,FALSE)","v":{"$error":"#N/A"}},{"$f":"\"USD / \"&VLOOKUP($B28,flow[],3,FALSE)","v":{"$error":"#N/A"}},"SPECCOST,,,,","SPECCOST,,,MAR,",{"$f":"IF($E28=VLOOKUP($E28,data[],1),VLOOKUP($E28,data[],7),\"\")","v":""},{"$f":"IF($F28=VLOOKUP($F28,data[],1),VLOOKUP($F28,data[],7),\"\")","v":""},null,null,{"$f":"IFERROR(VLOOKUP(a_edit_data_speccost!$E28,'_scenario_2030_high'!$B:$H,7,FALSE),\"\")","v":""},{"$f":"IFERROR(VLOOKUP(a_edit_data_speccost!$E28,'_scenario_2030_medium'!$B:$H,7,FALSE),\"\")","v":""},{"$f":"IFERROR(VLOOKUP(a_edit_data_speccost!$E28,'_scenario_2030_low'!$B:$H,7,FALSE),\"\")","v":""},{"$f":"IFERROR(VLOOKUP(a_edit_data_speccost!$E28,'_scenario_2040_high'!$B:$H,7,FALSE),\"\")","v":""},{"$f":"IFERROR(VLOOKUP(a_edit_data_speccost!$E28,'_scenario_2040_medium'!$B:$H,7,FALSE),\"\")","v":""},{"$f":"IFERROR(VLOOKUP(a_edit_data_speccost!$E28,'_scenario_2040_low'!$B:$H,7,FALSE),\"\")","v":""}]
[null,null,{"$f":"VLOOKUP($B29,flow[],2,FALSE)","v":{"$error":"#N/A"}},{"$f":"\"USD / \"&VLOOKUP($B29,flow[],3,FALSE)","v":{"$error":"#N/A"}},"SPECCOST,,,,","SPECCOST,,,MAR,",{"$f":"IF($E29=VLOOKUP($E29,data[],1),VLOOKUP($E29,data[],7),\"\")","v":""},{"$f":"IF($F29=VLOOKUP($F29,data[],1),VLOOKUP($F29,data[],7),\"\")","v":""},null,null,{"$f":"IFERROR(VLOOKUP(a_edit_data_speccost!$E29,'_scenario_2030_high'!$B:$H,7,FALSE),\"\")","v":""},{"$f":"IFERROR(VLOOKUP(a_edit_data_speccost!$E29,'_scenario_2030_medium'!$B:$H,7,FALSE),\"\")","v":""},{"$f":"IFERROR(VLOOKUP(a_edit_data_speccost!$E29,'_scenario_2030_low'!$B:$H,7,FALSE),\"\")","v":""},{"$f":"IFERROR(VLOOKUP(a_edit_data_speccost!$E29,'_scenario_2040_high'!$B:$H,7,FALSE),\"\")","v":""},{"$f":"IFERROR(VLOOKUP(a_edit_data_speccost!$E29,'_scenario_2040_medium'!$B:$H,7,FALSE),\"\")","v":""},{"$f":"IFERROR(VLOOKUP(a_edit_data_speccost!$E29,'_scenario_2040_low'!$B:$H,7,FALSE),\"\")","v":""}]
[null,null,{"$f":"VLOOKUP($B30,flow[],2,FALSE)","v":{"$error":"#N/A"}},{"$f":"\"USD / \"&VLOOKUP($B30,flow[],3,FALSE)","v":{"$error":"#N/A"}},"SPECCOST,,,,","SPECCOST,,,MAR,",{"$f":"IF($E30=VLOOKUP($E30,data[],1),VLOOKUP($E30,data[],7),\"\")","v":""},{"$f":"IF($F30=VLOOKUP($F30,data[],1),VLOOKUP($F30,data[],7),\"\")","v":""},null,null,{"$f":"IFERROR(VLOOKUP(a_edit_data_speccost!$E30,'_scenario_2030_high'!$B:$H,7,FALSE),\"\")","v":""},{"$f":"IFERROR(VLOOKUP(a_edit_data_speccost!$E30,'_scenario_2030_medium'!$B:$H,7,FALSE),\"\")","v":""},{"$f":"IFERROR(VLOOKUP(a_edit_data_speccost!$E30,'_scenario_2030_low'!$B:$H,7,FALSE),\"\")","v":""},{"$f":"IFERROR(VLOOKUP(a_edit_data_speccost!$E30,'_scenario_2040_high'!$B:$H,7,FALSE),\"\")","v":""},{"$f":"IFERROR(VLOOKUP(a_edit_data_speccost!$E30,'_scenario_2040_medium'!$B:$H,7,FALSE),\"\")","v":""},{"$f":"IFERROR(VLOOKUP(a_edit_data_speccost!$E30,'_scenario_2040_low'!$B:$H,7,FALSE),\"\")","v":""}]
[null,null,{"$f":"VLOOKUP($B31,flow[],2,FALSE)","v":{"$error":"#N/A"}},{"$f":"\"USD / \"&VLOOKUP($B31,flow[],3,FALSE)","v":{"$error":"#N/A"}},"SPECCOST,,,,","SPECCOST,,,MAR,",{"$f":"IF($E31=VLOOKUP($E31,data[],1),VLOOKUP($E31,data[],7),\"\")","v":""},{"$f":"IF($F31=VLOOKUP($F31,data[],1),VLOOKUP($F31,data[],7),\"\")","v":""},null,null,{"$f":"IFERROR(VLOOKUP(a_edit_data_speccost!$E31,'_scenario_2030_high'!$B:$H,7,FALSE),\"\")","v":""},{"$f":"IFERROR(VLOOKUP(a_edit_data_speccost!$E31,'_scenario_2030_medium'!$B:$H,7,FALSE),\"\")","v":""},{"$f":"IFERROR(VLOOKUP(a_edit_data_speccost!$E31,'_scenario_2030_low'!$B:$H,7,FALSE),\"\")","v":""},{"$f":"IFERROR(VLOOKUP(a_edit_data_speccost!$E31,'_scenario_2040_high'!$B:$H,7,FALSE),\"\")","v":""},{"$f":"IFERROR(VLOOKUP(a_edit_data_speccost!$E31,'_scenario_2040_medium'!$B:$H,7,FALSE),\"\")","v":""},{"$f":"IFERROR(VLOOKUP(a_edit_data_speccost!$E31,'_scenario_2040_low'!$B:$H,7,FALSE),\"\")","v":""}]
[null,null,{"$f":"VLOOKUP($B32,flow[],2,FALSE)","v":{"$error":"#N/A"}},{"$f":"\"USD / \"&VLOOKUP($B32,flow[],3,FALSE)","v":{"$error":"#N/A"}},"SPECCOST,,,,","SPECCOST,,,MAR,",{"$f":"IF($E32=VLOOKUP($E32,data[],1),VLOOKUP($E32,data[],7),\"\")","v":""},{"$f":"IF($F32=VLOOKUP($F32,data[],1),VLOOKUP($F32,data[],7),\"\")","v":""},null,null,{"$f":"IFERROR(VLOOKUP(a_edit_data_speccost!$E32,'_scenario_2030_high'!$B:$H,7,FALSE),\"\")","v":""},{"$f":"IFERROR(VLOOKUP(a_edit_data_speccost!$E32,'_scenario_2030_medium'!$B:$H,7,FALSE),\"\")","v":""},{"$f":"IFERROR(VLOOKUP(a_edit_data_speccost!$E32,'_scenario_2030_low'!$B:$H,7,FALSE),\"\")","v":""},{"$f":"IFERROR(VLOOKUP(a_edit_data_speccost!$E32,'_scenario_2040_high'!$B:$H,7,FALSE),\"\")","v":""},{"$f":"IFERROR(VLOOKUP(a_edit_data_speccost!$E32,'_scenario_2040_medium'!$B:$H,7,FALSE),\"\")","v":""},{"$f":"IFERROR(VLOOKUP(a_edit_data_speccost!$E32,'_scenario_2040_low'!$B:$H,7,FALSE),\"\")","v":""}]
[null,null,{"$f":"VLOOKUP($B33,flow[],2,FALSE)","v":{"$error":"#N/A"}},{"$f":"\"USD / \"&VLOOKUP($B33,flow[],3,FALSE)","v":{"$error":"#N/A"}},"SPECCOST,,,,","SPECCOST,,,MAR,",{"$f":"IF($E33=VLOOKUP($E33,data[],1),VLOOKUP($E33,data[],7),\"\")","v":""},{"$f":"IF($F33=VLOOKUP($F33,data[],1),VLOOKUP($F33,data[],7),\"\")","v":""},null,null,{"$f":"IFERROR(VLOOKUP(a_edit_data_speccost!$E33,'_scenario_2030_high'!$B:$H,7,FALSE),\"\")","v":""},{"$f":"IFERROR(VLOOKUP(a_edit_data_speccost!$E33,'_scenario_2030_medium'!$B:$H,7,FALSE),\"\")","v":""},{"$f":"IFERROR(VLOOKUP(a_edit_data_speccost!$E33,'_scenario_2030_low'!$B:$H,7,FALSE),\"\")","v":""},{"$f":"IFERROR(VLOOKUP(a_edit_data_speccost!$E33,'_scenario_2040_high'!$B:$H,7,FALSE),\"\")","v":""},{"$f":"IFERROR(VLOOKUP(a_edit_data_speccost!$E33,'_scenario_2040_medium'!$B:$H,7,FALSE),\"\")","v":""},{"$f":"IFERROR(VLOOKUP(a_edit_data_speccost!$E33,'_scenario_2040_low'!$B:$H,7,FALSE),\"\")","v":""}]
[null,null,{"$f":"VLOOKUP($B34,flow[],2,FALSE)","v":{"$error":"#N/A"}},{"$f":"\"USD / \"&VLOOKUP($B34,flow[],3,FALSE)","v":{"$error":"#N/A"}},"SPECCOST,,,,","SPECCOST,,,MAR,",{"$f":"IF($E34=VLOOKUP($E34,data[],1),VLOOKUP($E34,data[],7),\"\")","v":""},{"$f":"IF($F34=VLOOKUP($F34,data[],1),VLOOKUP($F34,data[],7),\"\")","v":""},null,null,{"$f":"IFERROR(VLOOKUP(a_edit_data_speccost!$E34,'_scenario_2030_high'!$B:$H,7,FALSE),\"\")","v":""},{"$f":"IFERROR(VLOOKUP(a_edit_data_speccost!$E34,'_scenario_2030_medium'!$B:$H,7,FALSE),\"\")","v":""},{"$f":"IFERROR(VLOOKUP(a_edit_data_speccost!$E34,'_scenario_2030_low'!$B:$H,7,FALSE),\"\")","v":""},{"$f":"IFERROR(VLOOKUP(a_edit_data_speccost!$E34,'_scenario_2040_high'!$B:$H,7,FALSE),\"\")","v":""},{"$f":"IFERROR(VLOOKUP(a_edit_data_speccost!$E34,'_scenario_2040_medium'!$B:$H,7,FALSE),\"\")","v":""},{"$f":"IFERROR(VLOOKUP(a_edit_data_speccost!$E34,'_scenario_2040_low'!$B:$H,7,FALSE),\"\")","v":""}]
[null,null,{"$f":"VLOOKUP($B35,flow[],2,FALSE)","v":{"$error":"#N/A"}},{"$f":"\"USD / \"&VLOOKUP($B35,flow[],3,FALSE)","v":{"$error":"#N/A"}},"SPECCOST,,,,","SPECCOST,,,MAR,",{"$f":"IF($E35=VLOOKUP($E35,data[],1),VLOOKUP($E35,data[],7),\"\")","v":""},{"$f":"IF($F35=VLOOKUP($F35,data[],1),VLOOKUP($F35,data[],7),\"\")","v":""},null,null,{"$f":"IFERROR(VLOOKUP(a_edit_data_speccost!$E35,'_scenario_2030_high'!$B:$H,7,FALSE),\"\")","v":""},{"$f":"IFERROR(VLOOKUP(a_edit_data_speccost!$E35,'_scenario_2030_medium'!$B:$H,7,FALSE),\"\")","v":""},{"$f":"IFERROR(VLOOKUP(a_edit_data_speccost!$E35,'_scenario_2030_low'!$B:$H,7,FALSE),\"\")","v":""},{"$f":"IFERROR(VLOOKUP(a_edit_data_speccost!$E35,'_scenario_2040_high'!$B:$H,7,FALSE),\"\")","v":""},{"$f":"IFERROR(VLOOKUP(a_edit_data_speccost!$E35,'_scenario_2040_medium'!$B:$H,7,FALSE),\"\")","v":""},{"$f":"IFERROR(VLOOKUP(a_edit_data_speccost!$E35,'_scenario_2040_low'!$B:$H,7,FALSE),\"\")","v":""}]

{"sheet":"a_edit_data_process","index":39,"n_rows":53,"n_cols":18,"rows_kept":53,"cut":false,"hidden":true,"merged":[[21,10,21,15],[36,10,36,15],[21,6,21,7],[21,2,21,3],[36,2,36,3],[36,6,36,7],[21,8,21,9],[36,8,36,9],[13,10,13,15],[13,6,13,7],[13,8,13,9],[1,16,1,17],[2,16,2,17],[6,3,6,13],[13,16,14,16]]}
[]
[null,null,"VIEW & MODIFY PROCESS DATA",null,null,null,null,null,null,null,null,null,null,null,null,null,"YOUR SETTINGS"]
[null,null,null,null,null,null,null,null,null,null,null,null,null,null,null,null,"can be re-adjusted on the dashboard"]
[null,null,"Change input parameters for all countries or for the selected supply country",null,null,null,null,null,null,null,null,null,null,null,null,null,"Supply country:",{"$f":"sel_region_name","v":"Morocco"}]
[null,null,null,null,null,null,null,null,null,null,null,null,null,null,null,null,"Demand country:",{"$f":"sel_country_name","v":"Germany"}]
[null,null,"default scenarios","This section shows data for the six scenarios (data years & cost reduction pathways) that are provided with the tool. The chosen default scenario is highlighted in red.",null,null,null,null,null,null,null,null,null,null,null,null,"RE generation:",{"$f":"sel_res_gen_name","v":"Wind-PV-Hybrid"}]
[null,null,"user modifications","In this section, you can enter your own assumptions, either as a global default or for your selected supply country/region only. \nIf user defined data exists here, it is always used instead of the default scenario data. ",null,null,null,null,null,null,null,null,null,null,null,null,"Process chain:",{"$f":"sel_chain","v":"Hydrogen (AEL)"}]
[null,null,"currently used data","The currently used data section shows which data is actually used for the calculations. Global defaults are used if no country-specific data exists. ",null,null,null,null,null,null,null,null,null,null,null,null,"CO2 source:",{"$f":"sel_secproc_co2","v":"DAC"}]
[null,null,null,null,null,null,null,null,null,null,null,null,null,null,null,null,"Water source:",{"$f":"sel_secproc_water","v":"Water desalination"}]
[null,null,null,"<< Click the Save Button to apply your changes",null,null,null,null,null,null,null,null,null,null,null,null,"Transport mode:",{"$f":"sel_transport","v":"Ship"}]
[null,null,null,null,null,null,null,null,null,null,null,null,null,null,null,null,"Scenario:",{"$f":"sel_scenario","v":"2030 (medium)"}]
[]
[null,null,"Choose process:","Methane land pipeline new",{"$f":"IF(D13=\"\",\"\",INDEX(process[process_code],MATCH(a_edit_data_process!D13,process[process_name],0),1))","v":"CH4-P-L"},{"$f":"VLOOKUP($E$13,process[],4,FALSE)","v":"CH4-G"}]
[null,null,null,null,null,null,"currently used data",null,"user modifications",null,"default scenarios (global)",null,null,null,null,null,{"$f":"\"default scenario (\"&sel_region_name&\")\"","v":"default scenario (Morocco)"}]
[null,"Parameter (key)","Parameter","Unit","key_global","key_local","global",{"$f":"sel_region_name","v":"Morocco"},"global",{"$f":"sel_region_name","v":"Morocco"},"2030 (high)","2030 (medium)","2030 (low)","2040 (high)","2040 (medium)","2040 (low)",null,"range"]
[null,"CAPEX",{"$f":"VLOOKUP($B16,parameter[],2,FALSE)","v":"CAPEX"},{"$f":"VLOOKUP($B16,parameter[],3,FALSE)","v":"USD2021/kW"},{"$f":"$B16&\",\"&$E$13&\",,,\"","v":"CAPEX,CH4-P-L,,,"},{"$f":"$B16&\",\"&$E$13&\",,\"&sel_region_code&\",\"","v":"CAPEX,CH4-P-L,,MAR,"},{"$f":"IF($E$13<>\"\",IF($E16=VLOOKUP($E16,data[],1),VLOOKUP($E16,data[],7),\"\"),\"\")","v":""},{"$f":"IF($E$13<>\"\",IF($F16=VLOOKUP($F16,data[],1),VLOOKUP($F16,data[],7),\"\"),\"\")","v":""},null,null,{"$f":"IFERROR(VLOOKUP($E16,'_scenario_2030_high'!$B:$H,7,FALSE),\"\")","v":""},{"$f":"IFERROR(VLOOKUP($E16,'_scenario_2030_medium'!$B:$H,7,FALSE),\"\")","v":""},{"$f":"IFERROR(VLOOKUP($E16,'_scenario_2030_low'!$B:$H,7,FALSE),\"\")","v":""},{"$f":"IFERROR(VLOOKUP($E16,'_scenario_2040_high'!$B:$H,7,FALSE),\"\")","v":""},{"$f":"IFERROR(VLOOKUP($E16,'_scenario_2040_medium'!$B:$H,7,FALSE),\"\")","v":""},{"$f":"IFERROR(VLOOKUP($E16,'_scenario_2040_low'!$B:$H,7,FALSE),\"\")","v":""},{"$f":"IF($E$13<>\"\",IF($F16=VLOOKUP($F16,'_scenario_2030_medium'!$B:$H,1),VLOOKUP($F16,'_scenario_2030_medium'!$B:$H,7),\"\"),\"\")","v":""}]
[null,"OPEX-F",{"$f":"VLOOKUP($B17,parameter[],2,FALSE)","v":"OPEX (fix)"},{"$f":"VLOOKUP($B17,parameter[],3,FALSE)","v":"USD2021/kW"},"OPEX-F,CH4-P-L,,,","OPEX-F,CH4-P-L,,MAR,",{"$f":"IF($E$13<>\"\",IF($E17=VLOOKUP($E17,data[],1),VLOOKUP($E17,data[],7),\"\"),\"\")","v":""},{"$f":"IF($E$13<>\"\",IF($F17=VLOOKUP($F17,data[],1),VLOOKUP($F17,data[],7),\"\"),\"\")","v":""},null,null,{"$f":"IFERROR(VLOOKUP($E17,'_scenario_2030_high'!$B:$H,7,FALSE),\"\")","v":""},{"$f":"IFERROR(VLOOKUP($E17,'_scenario_2030_medium'!$B:$H,7,FALSE),\"\")","v":""},{"$f":"IFERROR(VLOOKUP($E17,'_scenario_2030_low'!$B:$H,7,FALSE),\"\")","v":""},{"$f":"IFERROR(VLOOKUP($E17,'_scenario_2040_high'!$B:$H,7,FALSE),\"\")","v":""},{"$f":"IFERROR(VLOOKUP($E17,'_scenario_2040_medium'!$B:$H,7,FALSE),\"\")","v":""},{"$f":"IFERROR(VLOOKUP($E17,'_scenario_2040_low'!$B:$H,7,FALSE),\"\")","v":""},{"$f":"IF($E$13<>\"\",IF($F17=VLOOKUP($F17,'_scenario_2030_medium'!$B:$H,1),VLOOKUP($F17,'_scenario_2030_medium'!$B:$H,7),\"\"),\"\")","v":""}]
[null,"LIFETIME",{"$f":"VLOOKUP($B18,parameter[],2,FALSE)","v":"lifetime / amortization period"},{"$f":"VLOOKUP($B18,parameter[],3,FALSE)","v":"years"},"LIFETIME,CH4-P-L,,,","LIFETIME,CH4-P-L,,MAR,",{"$f":"IF($E$13<>\"\",IF($E18=VLOOKUP($E18,data[],1),VLOOKUP($E18,data[],7),\"\"),\"\")","v":40},{"$f":"IF($E$13<>\"\",IF($F18=VLOOKUP($F18,data[],1),VLOOKUP($F18,data[],7),\"\"),\"\")","v":""},null,null,{"$f":"IFERROR(VLOOKUP($E18,'_scenario_2030_high'!$B:$H,7,FALSE),\"\")","v":40},{"$f":"IFERROR(VLOOKUP($E18,'_scenario_2030_medium'!$B:$H,7,FALSE),\"\")","v":40},{"$f":"IFERROR(VLOOKUP($E18,'_scenario_2030_low'!$B:$H,7,FALSE),\"\")","v":40},{"$f":"IFERROR(VLOOKUP($E18,'_scenario_2040_high'!$B:$H,7,FALSE),\"\")","v":40},{"$f":"IFERROR(VLOOKUP($E18,'_scenario_2040_medium'!$B:$H,7,FALSE),\"\")","v":40},{"$f":"IFERROR(VLOOKUP($E18,'_scenario_2040_low'!$B:$H,7,FALSE),\"\")","v":40},{"$f":"IF($E$13<>\"\",IF($F18=VLOOKUP($F18,'_scenario_2030_medium'!$B:$H,1),VLOOKUP($F18,'_scenario_2030_medium'!$B:$H,7),\"\"),\"\")","v":""}]
[null,"EFF",{"$f":"VLOOKUP($B19,parameter[],2,FALSE)","v":"efficiency"},{"$f":"VLOOKUP($B19,parameter[],3,FALSE)","v":"various (output per main input)"},"EFF,CH4-P-L,,,","EFF,CH4-P-L,,MAR,",{"$f":"IF($E$13<>\"\",IF($E19=VLOOKUP($E19,data[],1),VLOOKUP($E19,data[],7),\"\"),\"\")","v":""},{"$f":"IF($E$13<>\"\",IF($F19=VLOOKUP($F19,data[],1),VLOOKUP($F19,data[],7),\"\"),\"\")","v":""},null,1,{"$f":"IFERROR(VLOOKUP($E19,'_scenario_2030_high'!$B:$H,7,FALSE),\"\")","v":""},{"$f":"IFERROR(VLOOKUP($E19,'_scenario_2030_medium'!$B:$H,7,FALSE),\"\")","v":""},{"$f":"IFERROR(VLOOKUP($E19,'_scenario_2030_low'!$B:$H,7,FALSE),\"\")","v":""},{"$f":"IFERROR(VLOOKUP($E19,'_scenario_2040_high'!$B:$H,7,FALSE),\"\")","v":""},{"$f":"IFERROR(VLOOKUP($E19,'_scenario_2040_medium'!$B:$H,7,FALSE),\"\")","v":""},{"$f":"IFERROR(VLOOKUP($E19,'_scenario_2040_low'!$B:$H,7,FALSE),\"\")","v":""},{"$f":"IF($E$13<>\"\",IF($F19=VLOOKUP($F19,'_scenario_2030_medium'!$B:$H,1),VLOOKUP($F19,'_scenario_2030_medium'!$B:$H,7),\"\"),\"\")","v":""}]
[null,"FLH",{"$f":"VLOOKUP($B20,parameter[],2,FALSE)","v":"full load hours"},{"$f":"VLOOKUP($B20,parameter[],3,FALSE)","v":"h"},"FLH,CH4-P-L,,,","FLH,CH4-P-L,,MAR,",{"$f":"IF($E$13<>\"\",IF($E20=VLOOKUP($E20,data[],1),VLOOKUP($E20,data[],7),\"\"),\"\")","v":""},{"$f":"IF($E$13<>\"\",IF($F20=VLOOKUP($F20,data[],1),VLOOKUP($F20,data[],7),\"\"),\"\")","v":""},null,null,{"$f":"IFERROR(VLOOKUP($E20,'_scenario_2030_high'!$B:$H,7,FALSE),\"\")","v":""},{"$f":"IFERROR(VLOOKUP($E20,'_scenario_2030_medium'!$B:$H,7,FALSE),\"\")","v":""},{"$f":"IFERROR(VLOOKUP($E20,'_scenario_2030_low'!$B:$H,7,FALSE),\"\")","v":""},{"$f":"IFERROR(VLOOKUP($E20,'_scenario_2040_high'!$B:$H,7,FALSE),\"\")","v":""},{"$f":"IFERROR(VLOOKUP($E20,'_scenario_2040_medium'!$B:$H,7,FALSE),\"\")","v":""},{"$f":"IFERROR(VLOOKUP($E20,'_scenario_2040_low'!$B:$H,7,FALSE),\"\")","v":""},{"$f":"IF($E$13<>\"\",IF($F20=VLOOKUP($F20,'_scenario_2030_medium'!$B:$H,1),VLOOKUP($F20,'_scenario_2030_medium'!$B:$H,7),\"\"),\"\")","v":""}]
[]
[null,null,"Additional parameters for transport processes",null,null,null,"currently used data",null,null,null,"default scenarios (global)"]
[null,"LOSS-T",{"$f":"VLOOKUP($B23,parameter[],2,FALSE)","v":"losses (own fuel, transport)"},{"$f":"VLOOKUP($B23,parameter[],3,FALSE)","v":"fraction/km"},"LOSS-T,CH4-P-L,,,","LOSS-T,CH4-P-L,,MAR,",{"$f":"IF($E$13<>\"\",IF($E23=VLOOKUP($E23,data[],1),VLOOKUP($E23,data[],7),\"\"),\"\")","v":5.6666666666666669E-6},{"$f":"IF($E$13<>\"\",IF($F23=VLOOKUP($F23,data[],1),VLOOKUP($F23,data[],7),\"\"),\"\")","v":""},null,null,{"$f":"IFERROR(VLOOKUP($E23,'_scenario_2030_high'!$B:$H,7,FALSE),\"\")","v":5.6666666666666669E-6},{"$f":"IFERROR(VLOOKUP($E23,'_scenario_2030_medium'!$B:$H,7,FALSE),\"\")","v":5.6666666666666669E-6},{"$f":"IFERROR(VLOOKUP($E23,'_scenario_2030_low'!$B:$H,7,FALSE),\"\")","v":5.6666666666666669E-6},{"$f":"IFERROR(VLOOKUP($E23,'_scenario_2040_high'!$B:$H,7,FALSE),\"\")","v":5.6666666666666669E-6},{"$f":"IFERROR(VLOOKUP($E23,'_scenario_2040_medium'!$B:$H,7,FALSE),\"\")","v":5.6666666666666669E-6},{"$f":"IFERROR(VLOOKUP($E23,'_scenario_2040_low'!$B:$H,7,FALSE),\"\")","v":5.6666666666666669E-6},{"$f":"IF($E$13<>\"\",IF($F23=VLOOKUP($F23,'_scenario_2030_medium'!$B:$H,1),VLOOKUP($F23,'_scenario_2030_medium'!$B:$H,7),\"\"),\"\")","v":""}]
[null,"OPEX-T",{"$f":"VLOOKUP($B24,parameter[],2,FALSE)","v":"levelized costs"},{"$f":"VLOOKUP($B24,parameter[],3,FALSE)","v":"USD2021/(kWh*km)"},"OPEX-T,CH4-P-L,,,","OPEX-T,CH4-P-L,,MAR,",{"$f":"IF($E$13<>\"\",IF($E24=VLOOKUP($E24,data[],1),VLOOKUP($E24,data[],7),\"\"),\"\")","v":2.7651437055456481E-6},{"$f":"IF($E$13<>\"\",IF($F24=VLOOKUP($F24,data[],1),VLOOKUP($F24,data[],7),\"\"),\"\")","v":""},null,null,{"$f":"IFERROR(VLOOKUP($E24,'_scenario_2030_high'!$B:$H,7,FALSE),\"\")","v":2.7651437055456481E-6},{"$f":"IFERROR(VLOOKUP($E24,'_scenario_2030_medium'!$B:$H,7,FALSE),\"\")","v":2.7651437055456481E-6},{"$f":"IFERROR(VLOOKUP($E24,'_scenario_2030_low'!$B:$H,7,FALSE),\"\")","v":2.7651437055456481E-6},{"$f":"IFERROR(VLOOKUP($E24,'_scenario_2040_high'!$B:$H,7,FALSE),\"\")","v":2.7651437055456481E-6},{"$f":"IFERROR(VLOOKUP($E24,'_scenario_2040_medium'!$B:$H,7,FALSE),\"\")","v":2.7651437055456481E-6},{"$f":"IFERROR(VLOOKUP($E24,'_scenario_2040_low'!$B:$H,7,FALSE),\"\")","v":2.7651437055456481E-6},{"$f":"IF($E$13<>\"\",IF($F24=VLOOKUP($F24,'_scenario_2030_medium'!$B:$H,1),VLOOKUP($F24,'_scenario_2030_medium'!$B:$H,7),\"\"),\"\")","v":""}]
[null,null,{"$f":"VLOOKUP($B25,parameter[],2,FALSE)","v":{"$error":"#N/A"}},{"$f":"VLOOKUP($B25,parameter[],3,FALSE)","v":{"$error":"#N/A"}},",CH4-P-L,,,",",CH4-P-L,,MAR,",{"$f":"IF($E$13<>\"\",IF($E25=VLOOKUP($E25,data[],1),VLOOKUP($E25,data[],7),\"\"),\"\")","v":{"$error":"#N/A"}},{"$f":"IF($E$13<>\"\",IF($F25=VLOOKUP($F25,data[],1),VLOOKUP($F25,data[],7),\"\"),\"\")","v":{"$error":"#N/A"}},null,null,{"$f":"IFERROR(VLOOKUP($E25,'_scenario_2030_high'!$B:$H,7,FALSE),\"\")","v":""},{"$f":"IFERROR(VLOOKUP($E25,'_scenario_2030_medium'!$B:$H,7,FALSE),\"\")","v":""},{"$f":"IFERROR(VLOOKUP($E25,'_scenario_2030_low'!$B:$H,7,FALSE),\"\")","v":""},{"$f":"IFERROR(VLOOKUP($E25,'_scenario_2040_high'!$B:$H,7,FALSE),\"\")","v":""},{"$f":"IFERROR(VLOOKUP($E25,'_scenario_2040_medium'!$B:$H,7,FALSE),\"\")","v":""},{"$f":"IFERROR(VLOOKUP($E25,'_scenario_2040_low'!$B:$H,7,FALSE),\"\")","v":""}]
[null,null,{"$f":"VLOOKUP($B26,parameter[],2,FALSE)","v":{"$error":"#N/A"}},{"$f":"VLOOKUP($B26,parameter[],3,FALSE)","v":{"$error":"#N/A"}},",CH4-P-L,,,",",CH4-P-L,,MAR,",{"$f":"IF($E$13<>\"\",IF($E26=VLOOKUP($E26,data[],1),VLOOKUP($E26,data[],7),\"\"),\"\")","v":{"$error":"#N/A"}},{"$f":"IF($E$13<>\"\",IF($F26=VLOOKUP($F26,data[],1),VLOOKUP($F26,data[],7),\"\"),\"\")","v":{"$error":"#N/A"}},null,null,{"$f":"IFERROR(VLOOKUP($E26,'_scenario_2030_high'!$B:$H,7,FALSE),\"\")","v":""},{"$f":"IFERROR(VLOOKUP($E26,'_scenario_2030_medium'!$B:$H,7,FALSE),\"\")","v":""},{"$f":"IFERROR(VLOOKUP($E26,'_scenario_2030_low'!$B:$H,7,FALSE),\"\")","v":""},{"$f":"IFERROR(VLOOKUP($E26,'_scenario_2040_high'!$B:$H,7,FALSE),\"\")","v":""},{"$f":"IFERROR(VLOOKUP($E26,'_scenario_2040_medium'!$B:$H,7,FALSE),\"\")","v":""},{"$f":"IFERROR(VLOOKUP($E26,'_scenario_2040_low'!$B:$H,7,FALSE),\"\")","v":""}]
[null,null,{"$f":"VLOOKUP($B27,parameter[],2,FALSE)","v":{"$error":"#N/A"}},{"$f":"VLOOKUP($B27,parameter[],3,FALSE)","v":{"$error":"#N/A"}},",CH4-P-L,,,",",CH4-P-L,,MAR,",{"$f":"IF($E$13<>\"\",IF($E27=VLOOKUP($E27,data[],1),VLOOKUP($E27,data[],7),\"\"),\"\")","v":{"$error":"#N/A"}},{"$f":"IF($E$13<>\"\",IF($F27=VLOOKUP($F27,data[],1),VLOOKUP($F27,data[],7),\"\"),\"\")","v":{"$error":"#N/A"}},null,null,{"$f":"IFERROR(VLOOKUP($E27,'_scenario_2030_high'!$B:$H,7,FALSE),\"\")","v":""},{"$f":"IFERROR(VLOOKUP($E27,'_scenario_2030_medium'!$B:$H,7,FALSE),\"\")","v":""},{"$f":"IFERROR(VLOOKUP($E27,'_scenario_2030_low'!$B:$H,7,FALSE),\"\")","v":""},{"$f":"IFERROR(VLOOKUP($E27,'_scenario_2040_high'!$B:$H,7,FALSE),\"\")","v":""},{"$f":"IFERROR(VLOOKUP($E27,'_scenario_2040_medium'!$B:$H,7,FALSE),\"\")","v":""},{"$f":"IFERROR(VLOOKUP($E27,'_scenario_2040_low'!$B:$H,7,FALSE),\"\")","v":""}]
[null,null,{"$f":"VLOOKUP($B28,parameter[],2,FALSE)","v":{"$error":"#N/A"}},{"$f":"VLOOKUP($B28,parameter[],3,FALSE)","v":{"$error":"#N/A"}},",CH4-P-L,,,",",CH4-P-L,,MAR,",{"$f":"IF($E$13<>\"\",IF($E28=VLOOKUP($E28,data[],1),VLOOKUP($E28,data[],7),\"\"),\"\")","v":{"$error":"#N/A"}},{"$f":"IF($E$13<>\"\",IF($F28=VLOOKUP($F28,data[],1),VLOOKUP($F28,data[],7),\"\"),\"\")","v":{"$error":"#N/A"}},null,null,{"$f":"IFERROR(VLOOKUP($E28,'_scenario_2030_high'!$B:$H,7,FALSE),\"\")","v":""},{"$f":"IFERROR(VLOOKUP($E28,'_scenario_2030_medium'!$B:$H,7,FALSE),\"\")","v":""},{"$f":"IFERROR(VLOOKUP($E28,'_scenario_2030_low'!$B:$H,7,FALSE),\"\")","v":""},{"$f":"IFERROR(VLOOKUP($E28,'_scenario_2040_high'!$B:$H,7,FALSE),\"\")","v":""},{"$f":"IFERROR(VLOOKUP($E28,'_scenario_2040_medium'!$B:$H,7,FALSE),\"\")","v":""},{"$f":"IFERROR(VLOOKUP($E28,'_scenario_2040_low'!$B:$H,7,FALSE),\"\")","v":""}]
[null,null,{"$f":"VLOOKUP($B29,parameter[],2,FALSE)","v":{"$error":"#N/A"}},{"$f":"VLOOKUP($B29,parameter[],3,FALSE)","v":{"$error":"#N/A"}},",CH4-P-L,,,",",CH4-P-L,,MAR,",{"$f":"IF($E$13<>\"\",IF($E29=VLOOKUP($E29,data[],1),VLOOKUP($E29,data[],7),\"\"),\"\")","v":{"$error":"#N/A"}},{"$f":"IF($E$13<>\"\",IF($F29=VLOOKUP($F29,data[],1),VLOOKUP($F29,data[],7),\"\"),\"\")","v":{"$error":"#N/A"}},null,null,{"$f":"IFERROR(VLOOKUP($E29,'_scenario_2030_high'!$B:$H,7,FALSE),\"\")","v":""},{"$f":"IFERROR(VLOOKUP($E29,'_scenario_2030_medium'!$B:$H,7,FALSE),\"\")","v":""},{"$f":"IFERROR(VLOOKUP($E29,'_scenario_2030_low'!$B:$H,7,FALSE),\"\")","v":""},{"$f":"IFERROR(VLOOKUP($E29,'_scenario_2040_high'!$B:$H,7,FALSE),\"\")","v":""},{"$f":"IFERROR(VLOOKUP($E29,'_scenario_2040_medium'!$B:$H,7,FALSE),\"\")","v":""},{"$f":"IFERROR(VLOOKUP($E29,'_scenario_2040_low'!$B:$H,7,FALSE),\"\")","v":""}]
[null,null,{"$f":"VLOOKUP($B30,parameter[],2,FALSE)","v":{"$error":"#N/A"}},{"$f":"VLOOKUP($B30,parameter[],3,FALSE)","v":{"$error":"#N/A"}},",CH4-P-L,,,",",CH4-P-L,,MAR,",{"$f":"IF($E$13<>\"\",IF($E30=VLOOKUP($E30,data[],1),VLOOKUP($E30,data[],7),\"\"),\"\")","v":{"$error":"#N/A"}},{"$f":"IF($E$13<>\"\",IF($F30=VLOOKUP($F30,data[],1),VLOOKUP($F30,data[],7),\"\"),\"\")","v":{"$error":"#N/A"}},null,null,{"$f":"IFERROR(VLOOKUP($E30,'_scenario_2030_high'!$B:$H,7,FALSE),\"\")","v":""},{"$f":"IFERROR(VLOOKUP($E30,'_scenario_2030_medium'!$B:$H,7,FALSE),\"\")","v":""},{"$f":"IFERROR(VLOOKUP($E30,'_scenario_2030_low'!$B:$H,7,FALSE),\"\")","v":""},{"$f":"IFERROR(VLOOKUP($E30,'_scenario_2040_high'!$B:$H,7,FALSE),\"\")","v":""},{"$f":"IFERROR(VLOOKUP($E30,'_scenario_2040_medium'!$B:$H,7,FALSE),\"\")","v":""},{"$f":"IFERROR(VLOOKUP($E30,'_scenario_2040_low'!$B:$H,7,FALSE),\"\")","v":""}]
[null,null,{"$f":"VLOOKUP($B31,parameter[],2,FALSE)","v":{"$error":"#N/A"}},{"$f":"VLOOKUP($B31,parameter[],3,FALSE)","v":{"$error":"#N/A"}},",CH4-P-L,,,",",CH4-P-L,,MAR,",{"$f":"IF($E$13<>\"\",IF($E31=VLOOKUP($E31,data[],1),VLOOKUP($E31,data[],7),\"\"),\"\")","v":{"$error":"#N/A"}},{"$f":"IF($E$13<>\"\",IF($F31=VLOOKUP($F31,data[],1),VLOOKUP($F31,data[],7),\"\"),\"\")","v":{"$error":"#N/A"}},null,null,{"$f":"IFERROR(VLOOKUP($E31,'_scenario_2030_high'!$B:$H,7,FALSE),\"\")","v":""},{"$f":"IFERROR(VLOOKUP($E31,'_scenario_2030_medium'!$B:$H,7,FALSE),\"\")","v":""},{"$f":"IFERROR(VLOOKUP($E31,'_scenario_2030_low'!$B:$H,7,FALSE),\"\")","v":""},{"$f":"IFERROR(VLOOKUP($E31,'_scenario_2040_high'!$B:$H,7,FALSE),\"\")","v":""},{"$f":"IFERROR(VLOOKUP($E31,'_scenario_2040_medium'!$B:$H,7,FALSE),\"\")","v":""},{"$f":"IFERROR(VLOOKUP($E31,'_scenario_2040_low'!$B:$H,7,FALSE),\"\")","v":""}]
[null,null,{"$f":"VLOOKUP($B32,parameter[],2,FALSE)","v":{"$error":"#N/A"}},{"$f":"VLOOKUP($B32,parameter[],3,FALSE)","v":{"$error":"#N/A"}},",CH4-P-L,,,",",CH4-P-L,,MAR,",{"$f":"IF($E$13<>\"\",IF($E32=VLOOKUP($E32,data[],1),VLOOKUP($E32,data[],7),\"\"),\"\")","v":{"$error":"#N/A"}},{"$f":"IF($E$13<>\"\",IF($F32=VLOOKUP($F32,data[],1),VLOOKUP($F32,data[],7),\"\"),\"\")","v":{"$error":"#N/A"}},null,null,{"$f":"IFERROR(VLOOKUP($E32,'_scenario_2030_high'!$B:$H,7,FALSE),\"\")","v":""},{"$f":"IFERROR(VLOOKUP($E32,'_scenario_2030_medium'!$B:$H,7,FALSE),\"\")","v":""},{"$f":"IFERROR(VLOOKUP($E32,'_scenario_2030_low'!$B:$H,7,FALSE),\"\")","v":""},{"$f":"IFERROR(VLOOKUP($E32,'_scenario_2040_high'!$B:$H,7,FALSE),\"\")","v":""},{"$f":"IFERROR(VLOOKUP($E32,'_scenario_2040_medium'!$B:$H,7,FALSE),\"\")","v":""},{"$f":"IFERROR(VLOOKUP($E32,'_scenario_2040_low'!$B:$H,7,FALSE),\"\")","v":""}]
[null,null,{"$f":"VLOOKUP($B33,parameter[],2,FALSE)","v":{"$error":"#N/A"}},{"$f":"VLOOKUP($B33,parameter[],3,FALSE)","v":{"$error":"#N/A"}},",CH4-P-L,,,",",CH4-P-L,,MAR,",{"$f":"IF($E$13<>\"\",IF($E33=VLOOKUP($E33,data[],1),VLOOKUP($E33,data[],7),\"\"),\"\")","v":{"$error":"#N/A"}},{"$f":"IF($E$13<>\"\",IF($F33=VLOOKUP($F33,data[],1),VLOOKUP($F33,data[],7),\"\"),\"\")","v":{"$error":"#N/A"}},null,null,{"$f":"IFERROR(VLOOKUP($E33,'_scenario_2030_high'!$B:$H,7,FALSE),\"\")","v":""},{"$f":"IFERROR(VLOOKUP($E33,'_scenario_2030_medium'!$B:$H,7,FALSE),\"\")","v":""},{"$f":"IFERROR(VLOOKUP($E33,'_scenario_2030_low'!$B:$H,7,FALSE),\"\")","v":""},{"$f":"IFERROR(VLOOKUP($E33,'_scenario_2040_high'!$B:$H,7,FALSE),\"\")","v":""},{"$f":"IFERROR(VLOOKUP($E33,'_scenario_2040_medium'!$B:$H,7,FALSE),\"\")","v":""},{"$f":"IFERROR(VLOOKUP($E33,'_scenario_2040_low'!$B:$H,7,FALSE),\"\")","v":""}]
[null,null,{"$f":"VLOOKUP($B34,parameter[],2,FALSE)","v":{"$error":"#N/A"}},{"$f":"VLOOKUP($B34,parameter[],3,FALSE)","v":{"$error":"#N/A"}},",CH4-P-L,,,",",CH4-P-L,,MAR,",{"$f":"IF($E$13<>\"\",IF($E34=VLOOKUP($E34,data[],1),VLOOKUP($E34,data[],7),\"\"),\"\")","v":{"$error":"#N/A"}},{"$f":"IF($E$13<>\"\",IF($F34=VLOOKUP($F34,data[],1),VLOOKUP($F34,data[],7),\"\"),\"\")","v":{"$error":"#N/A"}},null,null,{"$f":"IFERROR(VLOOKUP($E34,'_scenario_2030_high'!$B:$H,7,FALSE),\"\")","v":""},{"$f":"IFERROR(VLOOKUP($E34,'_scenario_2030_medium'!$B:$H,7,FALSE),\"\")","v":""},{"$f":"IFERROR(VLOOKUP($E34,'_scenario_2030_low'!$B:$H,7,FALSE),\"\")","v":""},{"$f":"IFERROR(VLOOKUP($E34,'_scenario_2040_high'!$B:$H,7,FALSE),\"\")","v":""},{"$f":"IFERROR(VLOOKUP($E34,'_scenario_2040_medium'!$B:$H,7,FALSE),\"\")","v":""},{"$f":"IFERROR(VLOOKUP($E34,'_scenario_2040_low'!$B:$H,7,FALSE),\"\")","v":""}]
[null,null,{"$f":"VLOOKUP($B35,parameter[],2,FALSE)","v":{"$error":"#N/A"}},{"$f":"VLOOKUP($B35,parameter[],3,FALSE)","v":{"$error":"#N/A"}},",CH4-P-L,,,",",CH4-P-L,,MAR,",{"$f":"IF($E$13<>\"\",IF($E35=VLOOKUP($E35,data[],1),VLOOKUP($E35,data[],7),\"\"),\"\")","v":{"$error":"#N/A"}},{"$f":"IF($E$13<>\"\",IF($F35=VLOOKUP($F35,data[],1),VLOOKUP($F35,data[],7),\"\"),\"\")","v":{"$error":"#N/A"}},null,null,{"$f":"IFERROR(VLOOKUP($E35,'_scenario_2030_high'!$B:$H,7,FALSE),\"\")","v":""},{"$f":"IFERROR(VLOOKUP($E35,'_scenario_2030_medium'!$B:$H,7,FALSE),\"\")","v":""},{"$f":"IFERROR(VLOOKUP($E35,'_scenario_2030_low'!$B:$H,7,FALSE),\"\")","v":""},{"$f":"IFERROR(VLOOKUP($E35,'_scenario_2040_high'!$B:$H,7,FALSE),\"\")","v":""},{"$f":"IFERROR(VLOOKUP($E35,'_scenario_2040_medium'!$B:$H,7,FALSE),\"\")","v":""},{"$f":"IFERROR(VLOOKUP($E35,'_scenario_2040_low'!$B:$H,7,FALSE),\"\")","v":""}]
[]
[null,null,"Conversion coefficients",null,null,null,"currently used data",null,null,null,"default scenarios (global)"]
[null,"CO2-G",{"$f":"VLOOKUP($B38,flow[],2,FALSE)","v":"carbon dioxide"},{"$f":"IFERROR(VLOOKUP($B38,flow[],3,FALSE)&\" / \"&VLOOKUP($F$13,flow[],3,FALSE),\"\")","v":"kg CO2 (g) / kWh CH4 (g)"},{"$f":"\"CONV,\"&$E$13&\",\"&$B38&\",,\"","v":"CONV,CH4-P-L,CO2-G,,"},{"$f":"\"CONV,\"&$E$13&\",\"&$B38&\",\"&sel_region_code&\",\"","v":"CONV,CH4-P-L,CO2-G,MAR,"},{"$f":"IF($E$13<>\"\",IF($E38=VLOOKUP($E38,data[],1),VLOOKUP($E38,data[],7),\"\"),\"\")","v":""},{"$f":"IF($E$13<>\"\",IF($F38=VLOOKUP($F38,data[],1),VLOOKUP($F38,data[],7),\"\"),\"\")","v":""},null,null,{"$f":"IFERROR(VLOOKUP($E38,'_scenario_2030_high'!$B:$H,7,FALSE),\"\")","v":""},{"$f":"IFERROR(VLOOKUP($E38,'_scenario_2030_medium'!$B:$H,7,FALSE),\"\")","v":""},{"$f":"IFERROR(VLOOKUP($E38,'_scenario_2030_low'!$B:$H,7,FALSE),\"\")","v":""},{"$f":"IFERROR(VLOOKUP($E38,'_scenario_2040_high'!$B:$H,7,FALSE),\"\")","v":""},{"$f":"IFERROR(VLOOKUP($E38,'_scenario_2040_medium'!$B:$H,7,FALSE),\"\")","v":""},{"$f":"IFERROR(VLOOKUP($E38,'_scenario_2040_low'!$B:$H,7,FALSE),\"\")","v":""},{"$f":"IF($E$13<>\"\",IF($F38=VLOOKUP($F38,'_scenario_2030_medium'!$B:$H,1),VLOOKUP($F38,'_scenario_2030_medium'!$B:$H,7),\"\"),\"\")","v":""}]
[null,"H2O-L",{"$f":"VLOOKUP($B39,flow[],2,FALSE)","v":"water"},{"$f":"IFERROR(VLOOKUP($B39,flow[],3,FALSE)&\" / \"&VLOOKUP($F$13,flow[],3,FALSE),\"\")","v":"kg H2O (l) / kWh CH4 (g)"},"CONV,CH4-P-L,H2O-L,,","CONV,CH4-P-L,H2O-L,MAR,",{"$f":"IF($E$13<>\"\",IF($E39=VLOOKUP($E39,data[],1),VLOOKUP($E39,data[],7),\"\"),\"\")","v":""},{"$f":"IF($E$13<>\"\",IF($F39=VLOOKUP($F39,data[],1),VLOOKUP($F39,data[],7),\"\"),\"\")","v":""},null,null,{"$f":"IFERROR(VLOOKUP($E39,'_scenario_2030_high'!$B:$H,7,FALSE),\"\")","v":""},{"$f":"IFERROR(VLOOKUP($E39,'_scenario_2030_medium'!$B:$H,7,FALSE),\"\")","v":""},{"$f":"IFERROR(VLOOKUP($E39,'_scenario_2030_low'!$B:$H,7,FALSE),\"\")","v":""},{"$f":"IFERROR(VLOOKUP($E39,'_scenario_2040_high'!$B:$H,7,FALSE),\"\")","v":""},{"$f":"IFERROR(VLOOKUP($E39,'_scenario_2040_medium'!$B:$H,7,FALSE),\"\")","v":""},{"$f":"IFERROR(VLOOKUP($E39,'_scenario_2040_low'!$B:$H,7,FALSE),\"\")","v":""},{"$f":"IF($E$13<>\"\",IF($F39=VLOOKUP($F39,'_scenario_2030_medium'!$B:$H,1),VLOOKUP($F39,'_scenario_2030_medium'!$B:$H,7),\"\"),\"\")","v":""}]
[null,"HEAT",{"$f":"VLOOKUP($B40,flow[],2,FALSE)","v":"heat"},{"$f":"IFERROR(VLOOKUP($B40,flow[],3,FALSE)&\" / \"&VLOOKUP($F$13,flow[],3,FALSE),\"\")","v":"kWh (heat) / kWh CH4 (g)"},"CONV,CH4-P-L,HEAT,,","CONV,CH4-P-L,HEAT,MAR,",{"$f":"IF($E$13<>\"\",IF($E40=VLOOKUP($E40,data[],1),VLOOKUP($E40,data[],7),\"\"),\"\")","v":""},{"$f":"IF($E$13<>\"\",IF($F40=VLOOKUP($F40,data[],1),VLOOKUP($F40,data[],7),\"\"),\"\")","v":""},null,null,{"$f":"IFERROR(VLOOKUP($E40,'_scenario_2030_high'!$B:$H,7,FALSE),\"\")","v":""},{"$f":"IFERROR(VLOOKUP($E40,'_scenario_2030_medium'!$B:$H,7,FALSE),\"\")","v":""},{"$f":"IFERROR(VLOOKUP($E40,'_scenario_2030_low'!$B:$H,7,FALSE),\"\")","v":""},{"$f":"IFERROR(VLOOKUP($E40,'_scenario_2040_high'!$B:$H,7,FALSE),\"\")","v":""},{"$f":"IFERROR(VLOOKUP($E40,'_scenario_2040_medium'!$B:$H,7,FALSE),\"\")","v":""},{"$f":"IFERROR(VLOOKUP($E40,'_scenario_2040_low'!$B:$H,7,FALSE),\"\")","v":""},{"$f":"IF($E$13<>\"\",IF($F40=VLOOKUP($F40,'_scenario_2030_medium'!$B:$H,1),VLOOKUP($F40,'_scenario_2030_medium'!$B:$H,7),\"\"),\"\")","v":""}]
[null,"BFUEL-L",{"$f":"VLOOKUP($B41,flow[],2,FALSE)","v":"bunker fuel"},{"$f":"IFERROR(VLOOKUP($B41,flow[],3,FALSE)&\" / \"&VLOOKUP($F$13,flow[],3,FALSE),\"\")","v":"kwh bunker fuel (l) / kWh CH4 (g)"},"CONV,CH4-P-L,BFUEL-L,,","CONV,CH4-P-L,BFUEL-L,MAR,",{"$f":"IF($E$13<>\"\",IF($E41=VLOOKUP($E41,data[],1),VLOOKUP($E41,data[],7),\"\"),\"\")","v":""},{"$f":"IF($E$13<>\"\",IF($F41=VLOOKUP($F41,data[],1),VLOOKUP($F41,data[],7),\"\"),\"\")","v":""},null,null,{"$f":"IFERROR(VLOOKUP($E41,'_scenario_2030_high'!$B:$H,7,FALSE),\"\")","v":""},{"$f":"IFERROR(VLOOKUP($E41,'_scenario_2030_medium'!$B:$H,7,FALSE),\"\")","v":""},{"$f":"IFERROR(VLOOKUP($E41,'_scenario_2030_low'!$B:$H,7,FALSE),\"\")","v":""},{"$f":"IFERROR(VLOOKUP($E41,'_scenario_2040_high'!$B:$H,7,FALSE),\"\")","v":""},{"$f":"IFERROR(VLOOKUP($E41,'_scenario_2040_medium'!$B:$H,7,FALSE),\"\")","v":""},{"$f":"IFERROR(VLOOKUP($E41,'_scenario_2040_low'!$B:$H,7,FALSE),\"\")","v":""},{"$f":"IF($E$13<>\"\",IF($F41=VLOOKUP($F41,'_scenario_2030_medium'!$B:$H,1),VLOOKUP($F41,'_scenario_2030_medium'!$B:$H,7),\"\"),\"\")","v":""}]
[null,"N2-G",{"$f":"VLOOKUP($B42,flow[],2,FALSE)","v":"nitrogen"},{"$f":"IFERROR(VLOOKUP($B42,flow[],3,FALSE)&\" / \"&VLOOKUP($F$13,flow[],3,FALSE),\"\")","v":"kg N2 (g) / kWh CH4 (g)"},"CONV,CH4-P-L,N2-G,,","CONV,CH4-P-L,N2-G,MAR,",{"$f":"IF($E$13<>\"\",IF($E42=VLOOKUP($E42,data[],1),VLOOKUP($E42,data[],7),\"\"),\"\")","v":""},{"$f":"IF($E$13<>\"\",IF($F42=VLOOKUP($F42,data[],1),VLOOKUP($F42,data[],7),\"\"),\"\")","v":""},null,null,{"$f":"IFERROR(VLOOKUP($E42,'_scenario_2030_high'!$B:$H,7,FALSE),\"\")","v":""},{"$f":"IFERROR(VLOOKUP($E42,'_scenario_2030_medium'!$B:$H,7,FALSE),\"\")","v":""},{"$f":"IFERROR(VLOOKUP($E42,'_scenario_2030_low'!$B:$H,7,FALSE),\"\")","v":""},{"$f":"IFERROR(VLOOKUP($E42,'_scenario_2040_high'!$B:$H,7,FALSE),\"\")","v":""},{"$f":"IFERROR(VLOOKUP($E42,'_scenario_2040_medium'!$B:$H,7,FALSE),\"\")","v":""},{"$f":"IFERROR(VLOOKUP($E42,'_scenario_2040_low'!$B:$H,7,FALSE),\"\")","v":""},{"$f":"IF($E$13<>\"\",IF($F42=VLOOKUP($F42,'_scenario_2030_medium'!$B:$H,1),VLOOKUP($F42,'_scenario_2030_medium'!$B:$H,7),\"\"),\"\")","v":""}]
[null,"EL",{"$f":"VLOOKUP($B43,flow[],2,FALSE)","v":"electricity"},{"$f":"IFERROR(VLOOKUP($B43,flow[],3,FALSE)&\" / \"&VLOOKUP($F$13,flow[],3,FALSE),\"\")","v":"kWh (el.) / kWh CH4 (g)"},"CONV,CH4-P-L,EL,,","CONV,CH4-P-L,EL,MAR,",{"$f":"IF($E$13<>\"\",IF($E43=VLOOKUP($E43,data[],1),VLOOKUP($E43,data[],7),\"\"),\"\")","v":""},{"$f":"IF($E$13<>\"\",IF($F43=VLOOKUP($F43,data[],1),VLOOKUP($F43,data[],7),\"\"),\"\")","v":""},null,null,{"$f":"IFERROR(VLOOKUP($E43,'_scenario_2030_high'!$B:$H,7,FALSE),\"\")","v":""},{"$f":"IFERROR(VLOOKUP($E43,'_scenario_2030_medium'!$B:$H,7,FALSE),\"\")","v":""},{"$f":"IFERROR(VLOOKUP($E43,'_scenario_2030_low'!$B:$H,7,FALSE),\"\")","v":""},{"$f":"IFERROR(VLOOKUP($E43,'_scenario_2040_high'!$B:$H,7,FALSE),\"\")","v":""},{"$f":"IFERROR(VLOOKUP($E43,'_scenario_2040_medium'!$B:$H,7,FALSE),\"\")","v":""},{"$f":"IFERROR(VLOOKUP($E43,'_scenario_2040_low'!$B:$H,7,FALSE),\"\")","v":""},{"$f":"IF($E$13<>\"\",IF($F43=VLOOKUP($F43,'_scenario_2030_medium'!$B:$H,1),VLOOKUP($F43,'_scenario_2030_medium'!$B:$H,7),\"\"),\"\")","v":""}]
[null,null,{"$f":"VLOOKUP($B44,flow[],2,FALSE)","v":{"$error":"#N/A"}},{"$f":"IFERROR(VLOOKUP($B44,flow[],3,FALSE)&\" / \"&VLOOKUP($F$13,flow[],3,FALSE),\"\")","v":""},"CONV,CH4-P-L,,,","CONV,CH4-P-L,,MAR,",{"$f":"IF($E$13<>\"\",IF($E44=VLOOKUP($E44,data[],1),VLOOKUP($E44,data[],7),\"\"),\"\")","v":""},{"$f":"IF($E$13<>\"\",IF($F44=VLOOKUP($F44,data[],1),VLOOKUP($F44,data[],7),\"\"),\"\")","v":""},null,null,{"$f":"IFERROR(VLOOKUP($E44,'_scenario_2030_high'!$B:$H,7,FALSE),\"\")","v":""},{"$f":"IFERROR(VLOOKUP($E44,'_scenario_2030_medium'!$B:$H,7,FALSE),\"\")","v":""},{"$f":"IFERROR(VLOOKUP($E44,'_scenario_2030_low'!$B:$H,7,FALSE),\"\")","v":""},{"$f":"IFERROR(VLOOKUP($E44,'_scenario_2040_high'!$B:$H,7,FALSE),\"\")","v":""},{"$f":"IFERROR(VLOOKUP($E44,'_scenario_2040_medium'!$B:$H,7,FALSE),\"\")","v":""},{"$f":"IFERROR(VLOOKUP($E44,'_scenario_2040_low'!$B:$H,7,FALSE),\"\")","v":""}]
[null,null,{"$f":"VLOOKUP($B45,flow[],2,FALSE)","v":{"$error":"#N/A"}},{"$f":"IFERROR(VLOOKUP($B45,flow[],3,FALSE)&\" / \"&VLOOKUP($F$13,flow[],3,FALSE),\"\")","v":""},"CONV,CH4-P-L,,,","CONV,CH4-P-L,,MAR,",{"$f":"IF($E$13<>\"\",IF($E45=VLOOKUP($E45,data[],1),VLOOKUP($E45,data[],7),\"\"),\"\")","v":""},{"$f":"IF($E$13<>\"\",IF($F45=VLOOKUP($F45,data[],1),VLOOKUP($F45,data[],7),\"\"),\"\")","v":""},null,null,{"$f":"IFERROR(VLOOKUP($E45,'_scenario_2030_high'!$B:$H,7,FALSE),\"\")","v":""},{"$f":"IFERROR(VLOOKUP($E45,'_scenario_2030_medium'!$B:$H,7,FALSE),\"\")","v":""},{"$f":"IFERROR(VLOOKUP($E45,'_scenario_2030_low'!$B:$H,7,FALSE),\"\")","v":""},{"$f":"IFERROR(VLOOKUP($E45,'_scenario_2040_high'!$B:$H,7,FALSE),\"\")","v":""},{"$f":"IFERROR(VLOOKUP($E45,'_scenario_2040_medium'!$B:$H,7,FALSE),\"\")","v":""},{"$f":"IFERROR(VLOOKUP($E45,'_scenario_2040_low'!$B:$H,7,FALSE),\"\")","v":""}]
[null,null,{"$f":"VLOOKUP($B46,flow[],2,FALSE)","v":{"$error":"#N/A"}},{"$f":"IFERROR(VLOOKUP($B46,flow[],3,FALSE)&\" / \"&VLOOKUP($F$13,flow[],3,FALSE),\"\")","v":""},"CONV,CH4-P-L,,,","CONV,CH4-P-L,,MAR,",{"$f":"IF($E$13<>\"\",IF($E46=VLOOKUP($E46,data[],1),VLOOKUP($E46,data[],7),\"\"),\"\")","v":""},{"$f":"IF($E$13<>\"\",IF($F46=VLOOKUP($F46,data[],1),VLOOKUP($F46,data[],7),\"\"),\"\")","v":""},null,null,{"$f":"IFERROR(VLOOKUP($E46,'_scenario_2030_high'!$B:$H,7,FALSE),\"\")","v":""},{"$f":"IFERROR(VLOOKUP($E46,'_scenario_2030_medium'!$B:$H,7,FALSE),\"\")","v":""},{"$f":"IFERROR(VLOOKUP($E46,'_scenario_2030_low'!$B:$H,7,FALSE),\"\")","v":""},{"$f":"IFERROR(VLOOKUP($E46,'_scenario_2040_high'!$B:$H,7,FALSE),\"\")","v":""},{"$f":"IFERROR(VLOOKUP($E46,'_scenario_2040_medium'!$B:$H,7,FALSE),\"\")","v":""},{"$f":"IFERROR(VLOOKUP($E46,'_scenario_2040_low'!$B:$H,7,FALSE),\"\")","v":""}]
[null,null,{"$f":"VLOOKUP($B47,flow[],2,FALSE)","v":{"$error":"#N/A"}},{"$f":"IFERROR(VLOOKUP($B47,flow[],3,FALSE)&\" / \"&VLOOKUP($F$13,flow[],3,FALSE),\"\")","v":""},"CONV,CH4-P-L,,,","CONV,CH4-P-L,,MAR,",{"$f":"IF($E$13<>\"\",IF($E47=VLOOKUP($E47,data[],1),VLOOKUP($E47,data[],7),\"\"),\"\")","v":""},{"$f":"IF($E$13<>\"\",IF($F47=VLOOKUP($F47,data[],1),VLOOKUP($F47,data[],7),\"\"),\"\")","v":""},null,null,{"$f":"IFERROR(VLOOKUP($E47,'_scenario_2030_high'!$B:$H,7,FALSE),\"\")","v":""},{"$f":"IFERROR(VLOOKUP($E47,'_scenario_2030_medium'!$B:$H,7,FALSE),\"\")","v":""},{"$f":"IFERROR(VLOOKUP($E47,'_scenario_2030_low'!$B:$H,7,FALSE),\"\")","v":""},{"$f":"IFERROR(VLOOKUP($E47,'_scenario_2040_high'!$B:$H,7,FALSE),\"\")","v":""},{"$f":"IFERROR(VLOOKUP($E47,'_scenario_2040_medium'!$B:$H,7,FALSE),\"\")","v":""},{"$f":"IFERROR(VLOOKUP($E47,'_scenario_2040_low'!$B:$H,7,FALSE),\"\")","v":""}]
[null,null,{"$f":"VLOOKUP($B48,flow[],2,FALSE)","v":{"$error":"#N/A"}},{"$f":"IFERROR(VLOOKUP($B48,flow[],3,FALSE)&\" / \"&VLOOKUP($F$13,flow[],3,FALSE),\"\")","v":""},"CONV,CH4-P-L,,,","CONV,CH4-P-L,,MAR,",{"$f":"IF($E$13<>\"\",IF($E48=VLOOKUP($E48,data[],1),VLOOKUP($E48,data[],7),\"\"),\"\")","v":""},{"$f":"IF($E$13<>\"\",IF($F48=VLOOKUP($F48,data[],1),VLOOKUP($F48,data[],7),\"\"),\"\")","v":""},null,null,{"$f":"IFERROR(VLOOKUP($E48,'_scenario_2030_high'!$B:$H,7,FALSE),\"\")","v":""},{"$f":"IFERROR(VLOOKUP($E48,'_scenario_2030_medium'!$B:$H,7,FALSE),\"\")","v":""},{"$f":"IFERROR(VLOOKUP($E48,'_scenario_2030_low'!$B:$H,7,FALSE),\"\")","v":""},{"$f":"IFERROR(VLOOKUP($E48,'_scenario_2040_high'!$B:$H,7,FALSE),\"\")","v":""},{"$f":"IFERROR(VLOOKUP($E48,'_scenario_2040_medium'!$B:$H,7,FALSE),\"\")","v":""},{"$f":"IFERROR(VLOOKUP($E48,'_scenario_2040_low'!$B:$H,7,FALSE),\"\")","v":""}]
[null,null,{"$f":"VLOOKUP($B49,flow[],2,FALSE)","v":{"$error":"#N/A"}},{"$f":"IFERROR(VLOOKUP($B49,flow[],3,FALSE)&\" / \"&VLOOKUP($F$13,flow[],3,FALSE),\"\")","v":""},"CONV,CH4-P-L,,,","CONV,CH4-P-L,,MAR,",{"$f":"IF($E$13<>\"\",IF($E49=VLOOKUP($E49,data[],1),VLOOKUP($E49,data[],7),\"\"),\"\")","v":""},{"$f":"IF($E$13<>\"\",IF($F49=VLOOKUP($F49,data[],1),VLOOKUP($F49,data[],7),\"\"),\"\")","v":""},null,null,{"$f":"IFERROR(VLOOKUP($E49,'_scenario_2030_high'!$B:$H,7,FALSE),\"\")","v":""},{"$f":"IFERROR(VLOOKUP($E49,'_scenario_2030_medium'!$B:$H,7,FALSE),\"\")","v":""},{"$f":"IFERROR(VLOOKUP($E49,'_scenario_2030_low'!$B:$H,7,FALSE),\"\")","v":""},{"$f":"IFERROR(VLOOKUP($E49,'_scenario_2040_high'!$B:$H,7,FALSE),\"\")","v":""},{"$f":"IFERROR(VLOOKUP($E49,'_scenario_2040_medium'!$B:$H,7,FALSE),\"\")","v":""},{"$f":"IFERROR(VLOOKUP($E49,'_scenario_2040_low'!$B:$H,7,FALSE),\"\")","v":""}]
[null,null,{"$f":"VLOOKUP($B50,flow[],2,FALSE)","v":{"$error":"#N/A"}},{"$f":"IFERROR(VLOOKUP($B50,flow[],3,FALSE)&\" / \"&VLOOKUP($F$13,flow[],3,FALSE),\"\")","v":""},"CONV,CH4-P-L,,,","CONV,CH4-P-L,,MAR,",{"$f":"IF($E$13<>\"\",IF($E50=VLOOKUP($E50,data[],1),VLOOKUP($E50,data[],7),\"\"),\"\")","v":""},{"$f":"IF($E$13<>\"\",IF($F50=VLOOKUP($F50,data[],1),VLOOKUP($F50,data[],7),\"\"),\"\")","v":""},null,null,{"$f":"IFERROR(VLOOKUP($E50,'_scenario_2030_high'!$B:$H,7,FALSE),\"\")","v":""},{"$f":"IFERROR(VLOOKUP($E50,'_scenario_2030_medium'!$B:$H,7,FALSE),\"\")","v":""},{"$f":"IFERROR(VLOOKUP($E50,'_scenario_2030_low'!$B:$H,7,FALSE),\"\")","v":""},{"$f":"IFERROR(VLOOKUP($E50,'_scenario_2040_high'!$B:$H,7,FALSE),\"\")","v":""},{"$f":"IFERROR(VLOOKUP($E50,'_scenario_2040_medium'!$B:$H,7,FALSE),\"\")","v":""},{"$f":"IFERROR(VLOOKUP($E50,'_scenario_2040_low'!$B:$H,7,FALSE),\"\")","v":""}]
[null,null,{"$f":"VLOOKUP($B51,flow[],2,FALSE)","v":{"$error":"#N/A"}},{"$f":"IFERROR(VLOOKUP($B51,flow[],3,FALSE)&\" / \"&VLOOKUP($F$13,flow[],3,FALSE),\"\")","v":""},"CONV,CH4-P-L,,,","CONV,CH4-P-L,,MAR,",{"$f":"IF($E$13<>\"\",IF($E51=VLOOKUP($E51,data[],1),VLOOKUP($E51,data[],7),\"\"),\"\")","v":""},{"$f":"IF($E$13<>\"\",IF($F51=VLOOKUP($F51,data[],1),VLOOKUP($F51,data[],7),\"\"),\"\")","v":""},null,null,{"$f":"IFERROR(VLOOKUP($E51,'_scenario_2030_high'!$B:$H,7,FALSE),\"\")","v":""},{"$f":"IFERROR(VLOOKUP($E51,'_scenario_2030_medium'!$B:$H,7,FALSE),\"\")","v":""},{"$f":"IFERROR(VLOOKUP($E51,'_scenario_2030_low'!$B:$H,7,FALSE),\"\")","v":""},{"$f":"IFERROR(VLOOKUP($E51,'_scenario_2040_high'!$B:$H,7,FALSE),\"\")","v":""},{"$f":"IFERROR(VLOOKUP($E51,'_scenario_2040_medium'!$B:$H,7,FALSE),\"\")","v":""},{"$f":"IFERROR(VLOOKUP($E51,'_scenario_2040_low'!$B:$H,7,FALSE),\"\")","v":""}]
[null,null,{"$f":"VLOOKUP($B52,flow[],2,FALSE)","v":{"$error":"#N/A"}},{"$f":"IFERROR(VLOOKUP($B52,flow[],3,FALSE)&\" / \"&VLOOKUP($F$13,flow[],3,FALSE),\"\")","v":""},"CONV,CH4-P-L,,,","CONV,CH4-P-L,,MAR,",{"$f":"IF($E$13<>\"\",IF($E52=VLOOKUP($E52,data[],1),VLOOKUP($E52,data[],7),\"\"),\"\")","v":""},{"$f":"IF($E$13<>\"\",IF($F52=VLOOKUP($F52,data[],1),VLOOKUP($F52,data[],7),\"\"),\"\")","v":""},null,null,{"$f":"IFERROR(VLOOKUP($E52,'_scenario_2030_high'!$B:$H,7,FALSE),\"\")","v":""},{"$f":"IFERROR(VLOOKUP($E52,'_scenario_2030_medium'!$B:$H,7,FALSE),\"\")","v":""},{"$f":"IFERROR(VLOOKUP($E52,'_scenario_2030_low'!$B:$H,7,FALSE),\"\")","v":""},{"$f":"IFERROR(VLOOKUP($E52,'_scenario_2040_high'!$B:$H,7,FALSE),\"\")","v":""},{"$f":"IFERROR(VLOOKUP($E52,'_scenario_2040_medium'!$B:$H,7,FALSE),\"\")","v":""},{"$f":"IFERROR(VLOOKUP($E52,'_scenario_2040_low'!$B:$H,7,FALSE),\"\")","v":""}]
[null,null,{"$f":"VLOOKUP($B53,flow[],2,FALSE)","v":{"$error":"#N/A"}},{"$f":"IFERROR(VLOOKUP($B53,flow[],3,FALSE)&\" / \"&VLOOKUP($F$13,flow[],3,FALSE),\"\")","v":""},"CONV,CH4-P-L,,,","CONV,CH4-P-L,,MAR,",{"$f":"IF($E$13<>\"\",IF($E53=VLOOKUP($E53,data[],1),VLOOKUP($E53,data[],7),\"\"),\"\")","v":""},{"$f":"IF($E$13<>\"\",IF($F53=VLOOKUP($F53,data[],1),VLOOKUP($F53,data[],7),\"\"),\"\")","v":""},null,null,{"$f":"IFERROR(VLOOKUP($E53,'_scenario_2030_high'!$B:$H,7,FALSE),\"\")","v":""},{"$f":"IFERROR(VLOOKUP($E53,'_scenario_2030_medium'!$B:$H,7,FALSE),\"\")","v":""},{"$f":"IFERROR(VLOOKUP($E53,'_scenario_2030_low'!$B:$H,7,FALSE),\"\")","v":""},{"$f":"IFERROR(VLOOKUP($E53,'_scenario_2040_high'!$B:$H,7,FALSE),\"\")","v":""},{"$f":"IFERROR(VLOOKUP($E53,'_scenario_2040_medium'!$B:$H,7,FALSE),\"\")","v":""},{"$f":"IFERROR(VLOOKUP($E53,'_scenario_2040_low'!$B:$H,7,FALSE),\"\")","v":""}]

{"sheet":"_dev_map","index":40,"n_rows":8,"n_cols":2,"rows_kept":8,"cut":false,"hidden":true,"merged":[]}
["sheet","info"]
["dashboard","landing page with main user selections"]
["_dims","static data (dimension definitions)"]
["_input","currently selected data scenario in long format"]
["_calc","main calculation (_input => _output)"]
["_calc_dev_map","clickable overview of data flows"]
["_output","output of current calculation (in long format)"]
["_results","pivot output"]

{"sheet":"_agora_colors","index":41,"n_rows":59,"n_cols":6,"rows_kept":59,"cut":false,"hidden":true,"merged":[]}
["name","color","rgb","hex","source","comment"]
["Erneuerbare (insgesamt/sonstige)",null,"136/187/60","#88BB3C"]
["Wind Onshore",null,"31/130/192","#1F82C0"]
["Wind Offshore",null,"0/96/153","#006099"]
["Solar",null,"255/215/68","#FFD744"]
["Biomasse",null,"70/120/80","#467850"]
["Hydro",null,"121/168/202","#79A8CA"]
["Nuclear",null,"95/96/92","#5F605C"]
["Lignite",null,"85/56/52","#553834"]
["Hard Coal",null,"0/0/0","#000000"]
["(Erd-)Gas",null,"154/187/202","#9ABBCA"]
["H2 green",null,"136/187/60","#88BB3C","H2 Instruments publication"]
["H2 blue",null,"51/179/255","#33B3FF","H2 Instruments publication"]
["H2 grey",null,"97/116/148","#617494","H2 Instruments publication"]
["H2 turquoise",null,"72/168/174","#48A8AE","H2 Instruments publication","Agora Türkis"]
["Öl",null,"29/86/92","#1D565C"]
["Other conventional",null,"182/192/198","#B6C0C6"]
["PTX",null,"81/171/224","#52ACE1","Industry Study"]
["Transport",null,"34/129/196","#2581C4","Industry Study"]
["Industry",null,"123/192/188","#7BC0BC","Industry Study"]
["Industry",null,"72/168/174","#48a7ae","KNDE 2050/2045","Agora Türkis"]
["Power",null,"0/0/0","#000000","H2 Instruments publication"]
["Power",null,"97/116/148","#617494","KNDE 2050/2046","Agora Grey"]
["Power",null,null,"#AF87B4","Industry Study","FARBE MUSS NEU GEWÄHLT WERDEN weil gleich wie DUSTY PINK"]
["Agriculture",null,"173/134/176","#ad86b0","KNDE 2050/2045","Agora Dusty Pink"]
["Refinery",null,"188/84/159","#BC549F","Industry Study"]
["Amonia",null,"146/152/197","#9197C4","Industry Study"]
["Methanol",null,"195/165/211","#C3A5D3","Industry Study"]
["DRI ",null,null,"#9ABBCA","KIT papers"]
["Steel",null,"92/93/107","#5C5D6B","Industry Study","Agora Black 60%"]
["Hochofenstahl, grauer Stahl",null,"106 / 108 / 116","#6A6C74","KIT papers"]
["Sekundärstahl",null,"143 / 144 / 163","#8F90A3","KIT papers"]
["Grüner Stahl",null,null,"#70BE79","KIT papers"]
["Electrolysis",null,null,"#63B9E9","Industry Study","FARBE MUSS NEU GEWÄHLT WERDEN weil gleich wie AGORA BLAU"]
["DAC",null,"89/91/87","#595B57",null,"NICHT GEFUNDEN"]
["Storage",null,"131/147/194","#8493C2"]
["Business trade and services",null,"171/46/112","#AB2E70"]
["District heating ",null,"226/150/191","#E296BF"]
["Households / Buildings",null,"208/80/148","#d05094","KNDE 2050/2045","FARBE MUSS NEU GEWÄHLT WERDEN weil gleich wie AGORA PINK"]
["Cement",null,"72/168/174","#48a7ae","Industry Study","Agora Türkis"]
["Energy Efficiency ",null,"94/65/155","#5E419B",null,"NICHT GEFUNDEN"]
["Chemicals",null,"86/55/141","#56378d"]
["Chemicals",null,"115/62/136","#733e88","Industry Study","Agora Violett"]
["Waste",null,"115/62/136","#733e88","KNDE 2050/2045","Agora Violett"]
["Agora_1_1_purple",null,"115/62/136","#733e88"]
["Agora_1_2_pink",null,"208/80/148","#d05094"]
["Agora_1_3_blue",null,"100/185/228","#64b9e4"]
["Agora_2_1_darkblue",null,"30/131/179","#1e84b3"]
["Agora_2_2_lightgreen",null,"72/168/174","#48a7ae"]
["Agora_2_3_lilac",null,"131/147/190","#8393be"]
["Agora_2_4_dustypink",null,"173/134/176","#ad86b0"]
["Agora_2_5_grey",null,"97/116/148","#617494"]
["Grafikhintergrund",null,"227/228/234","#E3E4EA"]
["Beschriftungskästchen",null,"246/246/248","#F6F6F8",null,"(nicht im Corporate Design definiert aber üblich)"]
["BEV",null,null,"#A182B7"]
["Gasoline",null,null,"#00669C"]
["Diesel",null,null,"#3691CF"]
["PHEV",null,null,"#9DBAD8"]
["FCEV",null,null,"#55C3EC"]

{"sheet":"_outputs","index":42,"n_rows":1,"n_cols":12,"rows_kept":1,"cut":false,"hidden":true,"merged":[]}
["key","scenario","target","chain","source","variable","process_class","value",null,"scenario","user","timestamp"]

{"sheet":"_results","index":43,"n_rows":9,"n_cols":3,"rows_kept":9,"cut":false,"hidden":true,"merged":[]}
[]
["scenario","(Alle)"]
["target","(Alle)"]
[]
["Summe von value","Spaltenbeschriftungen"]
["Zeilenbeschriftungen","(Leer)","Gesamtergebnis"]
["(Leer)"]
["(Leer)"]
["(Leer)"]

{"sheet":"_index_storage","index":44,"n_rows":7,"n_cols":13,"rows_kept":7,"cut":false,"hidden":true,"merged":[]}
["id","name","sheet","user","timestamp","protected",null,null,"id","name","sheet","user","timestamp"]
[3,"2030 (high)","_scenario_2030_high",null,null,true]
[4,"2040 (high)","_scenario_2040_high",null,null,true]
[5,"2030 (medium)","_scenario_2030_medium",null,null,true]
[6,"2040 (medium)","_scenario_2040_medium",null,null,true]
[7,"2030 (low)","_scenario_2030_low",null,null,true]
[8,"2040 (low)","_scenario_2040_low",null,null,true]

{"sheet":"_scenario_2040_medium","index":45,"n_rows":2137,"n_cols":10,"rows_kept":2137,"cut":false,"hidden":true,"merged":[]}
["data","key","parameter_code","process_code","flow_code","source_region_code","target_country_code","value","unit","source"]
[null,"CALOR,,CH3OH-L,,","CALOR","","CH3OH-L","","",5.5277777777777768,"kWh CH3OH (l)/kg","Wikipedia with conversions"]
[null,"CALOR,,CH4-G,,","CALOR","","CH4-G","","",13.5,"kWh CH4 (g)/kg","Wikipedia with conversions"]
[null,"CALOR,,CH4-L,,","CALOR","","CH4-L","","",13.5,"kWh CH4 (l)/kg","Wikipedia with conversions"]
[null,"CALOR,,CHX-L,,","CALOR","","CHX-L","","",11.944444444444445,"kwh CHx (l)/kg","Wikipedia with conversions"]
[null,"CALOR,,DRI-S,,","CALOR","","DRI-S","","",1,"kg DRI (s)/kg","no conversion necessary"]
[null,"CALOR,,H2-G,,","CALOR","","H2-G","","",33.33,"kWh H2 (g)/kg","Linde"]
[null,"CALOR,,H2-L,,","CALOR","","H2-L","","",33.33,"kWh H2 (l)/kg","Linde"]
[null,"CALOR,,LOHC-L,,","CALOR","","LOHC-L","","",33.33,"kWh H2 (l)/kg","Linde"]
[null,"CALOR,,NH3-L,,","CALOR","","NH3-L","","",5.1999999999999993,"kWh NH3 (l)/kg","Wikipedia with conversions"]
[null,"CAPEX,AEL-EL,,,","CAPEX","AEL-EL","","","",516.53590225586868,"USD2021/kW"]
[null,"CAPEX,ATR,,,","CAPEX","ATR","","","",1000.0341055522356,"USD2021/kW","Oni et al. 2022"]
[null,"CAPEX,CH3OHSYN,,,","CAPEX","CH3OHSYN","","","",786.68864219847819,"USD2021/kW"]
[null,"CAPEX,CH4-COMP,,,","CAPEX","CH4-COMP","","","",144.49043833783671,"USD2021/kW","DNV GL 2020"]
[null,"CAPEX,CH4-LIQ,,,","CAPEX","CH4-LIQ","","","",439.99368256303694,"USD2021/kW","Hank et al. 2020"]
[null,"CAPEX,CH4SYN,,,","CAPEX","CH4SYN","","","",649.0778435445792,"USD2021/kW","Öko-Institut 2020"]
[null,"CAPEX,DAC,,,","CAPEX","DAC","","","",0.89225147077193578,"USD2021/ kg CO2 (g)*a","average low and high"]
[null,"CAPEX,DESAL,,,","CAPEX","DESAL","","","",2.3667276243093918E-3,"USD2021/l*a","Fraunhofer IEE"]
[null,"CAPEX,DRI,,,","CAPEX","DRI","","","",4125.6284525730507,"USD2021/kg DRI (s)/a*h","Agora Industry Transformation 2021"]
[null,"CAPEX,EFUELSYN,,,","CAPEX","EFUELSYN","","","",786.68864219847819,"USD2021/kW"]
[null,"CAPEX,H2-COMP,,,","CAPEX","H2-COMP","","","",144.49043833783671,"USD2021/kW","DNV GL 2020"]
[null,"CAPEX,H2-LIQ,,,","CAPEX","H2-LIQ","","","",1457.3621055108172,"USD2021/kW","IEA 2019"]
[null,"CAPEX,H2-RGAS,,,","CAPEX","H2-RGAS","","","",318.14227153381154,"USD2021/kW","DNV GL 2020"]
[null,"CAPEX,LOHC-CON,,,","CAPEX","LOHC-CON","","","",200.97923345856316,"USD2021/kW"]
[null,"CAPEX,LOHC-REC,,,","CAPEX","LOHC-REC","","","",458.97706001032537,"USD2021/kW"]
[null,"CAPEX,NH3-REC,,,","CAPEX","NH3-REC","","","",411.40348625658612,"USD2021/kW","NGN; Equinor 2018"]
[null,"CAPEX,NH3SYN,,,","CAPEX","NH3SYN","","","",1316.7198109859751,"USD2021/kW"]
[null,"CAPEX,PEM-EL,,,","CAPEX","PEM-EL","","","",731.33997558593967,"USD2021/kW"]
[null,"CAPEX,PV-FIX,,ARE,","CAPEX","PV-FIX","","ARE","",689.9185245680053,"USD2021/kW"]
[null,"CAPEX,PV-FIX,,ARG,","CAPEX","PV-FIX","","ARG","",669.35207991562413,"USD2021/kW"]
[null,"CAPEX,PV-FIX,,ARG-BA,","CAPEX","PV-FIX","","ARG-BA","",669.35207991562413,"USD2021/kW"]
[null,"CAPEX,PV-FIX,,ARG-CAT,","CAPEX","PV-FIX","","ARG-CAT","",669.35207991562413,"USD2021/kW"]
[null,"CAPEX,PV-FIX,,ARG-CBA,","CAPEX","PV-FIX","","ARG-CBA","",669.35207991562413,"USD2021/kW"]
[null,"CAPEX,PV-FIX,,ARG-CHA,","CAPEX","PV-FIX","","ARG-CHA","",669.35207991562413,"USD2021/kW"]
[null,"CAPEX,PV-FIX,,ARG-CHU,","CAPEX","PV-FIX","","ARG-CHU","",669.35207991562413,"USD2021/kW"]
[null,"CAPEX,PV-FIX,,ARG-COR,","CAPEX","PV-FIX","","ARG-COR","",669.35207991562413,"USD2021/kW"]
[null,"CAPEX,PV-FIX,,ARG-CRB,","CAPEX","PV-FIX","","ARG-CRB","",669.35207991562413,"USD2021/kW"]
[null,"CAPEX,PV-FIX,,ARG-CRU,","CAPEX","PV-FIX","","ARG-CRU","",669.35207991562413,"USD2021/kW"]
[null,"CAPEX,PV-FIX,,ARG-EST,","CAPEX","PV-FIX","","ARG-EST","",669.35207991562413,"USD2021/kW"]
[null,"CAPEX,PV-FIX,,ARG-FOR,","CAPEX","PV-FIX","","ARG-FOR","",669.35207991562413,"USD2021/kW"]
[null,"CAPEX,PV-FIX,,ARG-FUE,","CAPEX","PV-FIX","","ARG-FUE","",669.35207991562413,"USD2021/kW"]
[null,"CAPEX,PV-FIX,,ARG-JUJ,","CAPEX","PV-FIX","","ARG-JUJ","",669.35207991562413,"USD2021/kW"]
[null,"CAPEX,PV-FIX,,ARG-LAR,","CAPEX","PV-FIX","","ARG-LAR","",669.35207991562413,"USD2021/kW"]
[null,"CAPEX,PV-FIX,,ARG-MEN,","CAPEX","PV-FIX","","ARG-MEN","",669.35207991562413,"USD2021/kW"]
[null,"CAPEX,PV-FIX,,ARG-MIS,","CAPEX","PV-FIX","","ARG-MIS","",669.35207991562413,"USD2021/kW"]
[null,"CAPEX,PV-FIX,,ARG-NEG,","CAPEX","PV-FIX","","ARG-NEG","",669.35207991562413,"USD2021/kW"]
[null,"CAPEX,PV-FIX,,ARG-NEU,","CAPEX","PV-FIX","","ARG-NEU","",669.35207991562413,"USD2021/kW"]
[null,"CAPEX,PV-FIX,,ARG-PAM,","CAPEX","PV-FIX","","ARG-PAM","",669.35207991562413,"USD2021/kW"]
[null,"CAPEX,PV-FIX,,ARG-RIO,","CAPEX","PV-FIX","","ARG-RIO","",669.35207991562413,"USD2021/kW"]
[null,"CAPEX,PV-FIX,,ARG-SAF,","CAPEX","PV-FIX","","ARG-SAF","",669.35207991562413,"USD2021/kW"]
[null,"CAPEX,PV-FIX,,ARG-SAJ,","CAPEX","PV-FIX","","ARG-SAJ","",669.35207991562413,"USD2021/kW"]
[null,"CAPEX,PV-FIX,,ARG-SAL,","CAPEX","PV-FIX","","ARG-SAL","",669.35207991562413,"USD2021/kW"]
[null,"CAPEX,PV-FIX,,ARG-SAT,","CAPEX","PV-FIX","","ARG-SAT","",669.35207991562413,"USD2021/kW"]
[null,"CAPEX,PV-FIX,,ARG-TUC,","CAPEX","PV-FIX","","ARG-TUC","",669.35207991562413,"USD2021/kW"]
[null,"CAPEX,PV-FIX,,AUS,","CAPEX","PV-FIX","","AUS","",756.24530857193474,"USD2021/kW"]
[null,"CAPEX,PV-FIX,,BRA,","CAPEX","PV-FIX","","BRA","",655.29834273649692,"USD2021/kW"]
[null,"CAPEX,PV-FIX,,CHL,","CAPEX","PV-FIX","","CHL","",745.10515105189495,"USD2021/kW"]
[null,"CAPEX,PV-FIX,,CHN,","CAPEX","PV-FIX","","CHN","",433.60920808770425,"USD2021/kW"]
[null,"CAPEX,PV-FIX,,COL,","CAPEX","PV-FIX","","COL","",689.9185245680053,"USD2021/kW"]
[null,"CAPEX,PV-FIX,,CRI,","CAPEX","PV-FIX","","CRI","",689.9185245680053,"USD2021/kW"]
[null,"CAPEX,PV-FIX,,DNK,","CAPEX","PV-FIX","","DNK","",598.14076530675413,"USD2021/kW"]
[null,"CAPEX,PV-FIX,,DZA,","CAPEX","PV-FIX","","DZA","",689.9185245680053,"USD2021/kW"]
[null,"CAPEX,PV-FIX,,EGY,","CAPEX","PV-FIX","","EGY","",689.9185245680053,"USD2021/kW"]
[null,"CAPEX,PV-FIX,,ESP,","CAPEX","PV-FIX","","ESP","",650.07103805401675,"USD2021/kW"]
[null,"CAPEX,PV-FIX,,IDN,","CAPEX","PV-FIX","","IDN","",799.69192290009016,"USD2021/kW"]
[null,"CAPEX,PV-FIX,,IND,","CAPEX","PV-FIX","","IND","",448.17710638314094,"USD2021/kW"]
[null,"CAPEX,PV-FIX,,JOR,","CAPEX","PV-FIX","","JOR","",689.9185245680053,"USD2021/kW"]
[null,"CAPEX,PV-FIX,,KAZ,","CAPEX","PV-FIX","","KAZ","",689.9185245680053,"USD2021/kW"]
[null,"CAPEX,PV-FIX,,KEN,","CAPEX","PV-FIX","","KEN","",689.9185245680053,"USD2021/kW"]
[null,"CAPEX,PV-FIX,,MAR,","CAPEX","PV-FIX","","MAR","",689.9185245680053,"USD2021/kW"]
[null,"CAPEX,PV-FIX,,MAR-BEN,","CAPEX","PV-FIX","","MAR-BEN","",689.9185245680053,"USD2021/kW"]
[null,"CAPEX,PV-FIX,,MAR-CAS,","CAPEX","PV-FIX","","MAR-CAS","",689.9185245680053,"USD2021/kW"]
[null,"CAPEX,PV-FIX,,MAR-DAK,","CAPEX","PV-FIX","","MAR-DAK","",689.9185245680053,"USD2021/kW"]
[null,"CAPEX,PV-FIX,,MAR-DRA,","CAPEX","PV-FIX","","MAR-DRA","",689.9185245680053,"USD2021/kW"]
[null,"CAPEX,PV-FIX,,MAR-FES,","CAPEX","PV-FIX","","MAR-FES","",689.9185245680053,"USD2021/kW"]
[null,"CAPEX,PV-FIX,,MAR-GUE,","CAPEX","PV-FIX","","MAR-GUE","",689.9185245680053,"USD2021/kW"]
[null,"CAPEX,PV-FIX,,MAR-LAA,","CAPEX","PV-FIX","","MAR-LAA","",689.9185245680053,"USD2021/kW"]
[null,"CAPEX,PV-FIX,,MAR-LOR,","CAPEX","PV-FIX","","MAR-LOR","",689.9185245680053,"USD2021/kW"]
[null,"CAPEX,PV-FIX,,MAR-MAR,","CAPEX","PV-FIX","","MAR-MAR","",689.9185245680053,"USD2021/kW"]
[null,"CAPEX,PV-FIX,,MAR-RAB,","CAPEX","PV-FIX","","MAR-RAB","",689.9185245680053,"USD2021/kW"]
[null,"CAPEX,PV-FIX,,MAR-SOU,","CAPEX","PV-FIX","","MAR-SOU","",689.9185245680053,"USD2021/kW"]
[null,"CAPEX,PV-FIX,,MAR-TAN,","CAPEX","PV-FIX","","MAR-TAN","",689.9185245680053,"USD2021/kW"]
[null,"CAPEX,PV-FIX,,MEX,","CAPEX","PV-FIX","","MEX","",628.73335172717123,"USD2021/kW"]
[null,"CAPEX,PV-FIX,,MRT,","CAPEX","PV-FIX","","MRT","",689.9185245680053,"USD2021/kW"]
[null,"CAPEX,PV-FIX,,NAM,","CAPEX","PV-FIX","","NAM","",689.9185245680053,"USD2021/kW"]
[null,"CAPEX,PV-FIX,,NOR,","CAPEX","PV-FIX","","NOR","",635.71261280596548,"USD2021/kW"]
[null,"CAPEX,PV-FIX,,PER,","CAPEX","PV-FIX","","PER","",689.9185245680053,"USD2021/kW"]
[null,"CAPEX,PV-FIX,,PRT,","CAPEX","PV-FIX","","PRT","",697.63094131264836,"USD2021/kW"]
[null,"CAPEX,PV-FIX,,RUS,","CAPEX","PV-FIX","","RUS","",1237.5858069570406,"USD2021/kW"]
[null,"CAPEX,PV-FIX,,SAU,","CAPEX","PV-FIX","","SAU","",715.54088686409693,"USD2021/kW"]
[null,"CAPEX,PV-FIX,,SWE,","CAPEX","PV-FIX","","SWE","",635.71261280596548,"USD2021/kW"]
[null,"CAPEX,PV-FIX,,THA,","CAPEX","PV-FIX","","THA","",761.2155326962602,"USD2021/kW"]
[null,"CAPEX,PV-FIX,,TUN,","CAPEX","PV-FIX","","TUN","",689.9185245680053,"USD2021/kW"]
[null,"CAPEX,PV-FIX,,UKR,","CAPEX","PV-FIX","","UKR","",635.71261280596548,"USD2021/kW"]
[null,"CAPEX,PV-FIX,,URY,","CAPEX","PV-FIX","","URY","",689.9185245680053,"USD2021/kW"]
[null,"CAPEX,PV-FIX,,USA,","CAPEX","PV-FIX","","USA","",824.20026944417771,"USD2021/kW"]
[null,"CAPEX,PV-FIX,,VNM,","CAPEX","PV-FIX","","VNM","",761.2155326962602,"USD2021/kW"]
[null,"CAPEX,PV-FIX,,ZAF,","CAPEX","PV-FIX","","ZAF","",689.9185245680053,"USD2021/kW"]
[null,"CAPEX,PV-FIX,,ZAF-EC,","CAPEX","PV-FIX","","ZAF-EC","",689.9185245680053,"USD2021/kW"]
[null,"CAPEX,PV-FIX,,ZAF-FRS,","CAPEX","PV-FIX","","ZAF-FRS","",689.9185245680053,"USD2021/kW"]
[null,"CAPEX,PV-FIX,,ZAF-GAU,","CAPEX","PV-FIX","","ZAF-GAU","",689.9185245680053,"USD2021/kW"]
[null,"CAPEX,PV-FIX,,ZAF-KWA,","CAPEX","PV-FIX","","ZAF-KWA","",689.9185245680053,"USD2021/kW"]
[null,"CAPEX,PV-FIX,,ZAF-LIM,","CAPEX","PV-FIX","","ZAF-LIM","",689.9185245680053,"USD2021/kW"]
[null,"CAPEX,PV-FIX,,ZAF-MPU,","CAPEX","PV-FIX","","ZAF-MPU","",689.9185245680053,"USD2021/kW"]
[null,"CAPEX,PV-FIX,,ZAF-NC,","CAPEX","PV-FIX","","ZAF-NC","",689.9185245680053,"USD2021/kW"]
[null,"CAPEX,PV-FIX,,ZAF-NW,","CAPEX","PV-FIX","","ZAF-NW","",689.9185245680053,"USD2021/kW"]
[null,"CAPEX,PV-FIX,,ZAF-WC,","CAPEX","PV-FIX","","ZAF-WC","",689.9185245680053,"USD2021/kW"]
[null,"CAPEX,REGASATR,,,","CAPEX","REGASATR","","","",1000.0341055522356,"USD2021/kW","combined values"]
[null,"CAPEX,RES-HYBR,,ARE,","CAPEX","RES-HYBR","","ARE","",1080.7188212028464,"USD2021/kW","calculated. PV:  WIND-ON: "]
[null,"CAPEX,RES-HYBR,,ARG,","CAPEX","RES-HYBR","","ARG","",1168.0606536199327,"USD2021/kW","calculated. PV:  WIND-ON: "]
[null,"CAPEX,RES-HYBR,,ARG-BA,","CAPEX","RES-HYBR","","ARG-BA","",1168.0606536199327,"USD2021/kW","calculated. PV:  WIND-ON: "]
[null,"CAPEX,RES-HYBR,,ARG-CAT,","CAPEX","RES-HYBR","","ARG-CAT","",1168.0606536199327,"USD2021/kW","calculated. PV:  WIND-ON: "]
[null,"CAPEX,RES-HYBR,,ARG-CBA,","CAPEX","RES-HYBR","","ARG-CBA","",1168.0606536199327,"USD2021/kW","calculated. PV:  WIND-ON: "]
[null,"CAPEX,RES-HYBR,,ARG-CHA,","CAPEX","RES-HYBR","","ARG-CHA","",1168.0606536199327,"USD2021/kW","calculated. PV:  WIND-ON: "]
[null,"CAPEX,RES-HYBR,,ARG-CHU,","CAPEX","RES-HYBR","","ARG-CHU","",1168.0606536199327,"USD2021/kW","calculated. PV:  WIND-ON: "]
[null,"CAPEX,RES-HYBR,,ARG-COR,","CAPEX","RES-HYBR","","ARG-COR","",1168.0606536199327,"USD2021/kW","calculated. PV:  WIND-ON: "]
[null,"CAPEX,RES-HYBR,,ARG-CRB,","CAPEX","RES-HYBR","","ARG-CRB","",1168.0606536199327,"USD2021/kW","calculated. PV:  WIND-ON: "]
[null,"CAPEX,RES-HYBR,,ARG-CRU,","CAPEX","RES-HYBR","","ARG-CRU","",1168.0606536199327,"USD2021/kW","calculated. PV:  WIND-ON: "]
[null,"CAPEX,RES-HYBR,,ARG-EST,","CAPEX","RES-HYBR","","ARG-EST","",1168.0606536199327,"USD2021/kW","calculated. PV:  WIND-ON: "]
[null,"CAPEX,RES-HYBR,,ARG-FOR,","CAPEX","RES-HYBR","","ARG-FOR","",1168.0606536199327,"USD2021/kW","calculated. PV:  WIND-ON: "]
[null,"CAPEX,RES-HYBR,,ARG-FUE,","CAPEX","RES-HYBR","","ARG-FUE","",1168.0606536199327,"USD2021/kW","calculated. PV:  WIND-ON: "]
[null,"CAPEX,RES-HYBR,,ARG-JUJ,","CAPEX","RES-HYBR","","ARG-JUJ","",1168.0606536199327,"USD2021/kW","calculated. PV:  WIND-ON: "]
[null,"CAPEX,RES-HYBR,,ARG-LAR,","CAPEX","RES-HYBR","","ARG-LAR","",1168.0606536199327,"USD2021/kW","calculated. PV:  WIND-ON: "]
[null,"CAPEX,RES-HYBR,,ARG-MEN,","CAPEX","RES-HYBR","","ARG-MEN","",1168.0606536199327,"USD2021/kW","calculated. PV:  WIND-ON: "]
[null,"CAPEX,RES-HYBR,,ARG-MIS,","CAPEX","RES-HYBR","","ARG-MIS","",1168.0606536199327,"USD2021/kW","calculated. PV:  WIND-ON: "]
[null,"CAPEX,RES-HYBR,,ARG-NEG,","CAPEX","RES-HYBR","","ARG-NEG","",1168.0606536199327,"USD2021/kW","calculated. PV:  WIND-ON: "]
[null,"CAPEX,RES-HYBR,,ARG-NEU,","CAPEX","RES-HYBR","","ARG-NEU","",1168.0606536199327,"USD2021/kW","calculated. PV:  WIND-ON: "]
[null,"CAPEX,RES-HYBR,,ARG-PAM,","CAPEX","RES-HYBR","","ARG-PAM","",1168.0606536199327,"USD2021/kW","calculated. PV:  WIND-ON: "]
[null,"CAPEX,RES-HYBR,,ARG-RIO,","CAPEX","RES-HYBR","","ARG-RIO","",1168.0606536199327,"USD2021/kW","calculated. PV:  WIND-ON: "]
[null,"CAPEX,RES-HYBR,,ARG-SAF,","CAPEX","RES-HYBR","","ARG-SAF","",1168.0606536199327,"USD2021/kW","calculated. PV:  WIND-ON: "]
[null,"CAPEX,RES-HYBR,,ARG-SAJ,","CAPEX","RES-HYBR","","ARG-SAJ","",1168.0606536199327,"USD2021/kW","calculated. PV:  WIND-ON: "]
[null,"CAPEX,RES-HYBR,,ARG-SAL,","CAPEX","RES-HYBR","","ARG-SAL","",1168.0606536199327,"USD2021/kW","calculated. PV:  WIND-ON: "]
[null,"CAPEX,RES-HYBR,,ARG-SAT,","CAPEX","RES-HYBR","","ARG-SAT","",1168.0606536199327,"USD2021/kW","calculated. PV:  WIND-ON: "]
[null,"CAPEX,RES-HYBR,,ARG-TUC,","CAPEX","RES-HYBR","","ARG-TUC","",1168.0606536199327,"USD2021/kW","calculated. PV:  WIND-ON: "]
[null,"CAPEX,RES-HYBR,,AUS,","CAPEX","RES-HYBR","","AUS","",1211.5072679480882,"USD2021/kW","calculated. PV:  WIND-ON: "]
[null,"CAPEX,RES-HYBR,,BRA,","CAPEX","RES-HYBR","","BRA","",875.30191748907077,"USD2021/kW","calculated. PV:  WIND-ON: "]
[null,"CAPEX,RES-HYBR,,CHL,","CAPEX","RES-HYBR","","CHL","",1205.9371891880683,"USD2021/kW","calculated. PV:  WIND-ON: "]
[null,"CAPEX,RES-HYBR,,CHN,","CAPEX","RES-HYBR","","CHN","",767.7908886193228,"USD2021/kW","calculated. PV:  WIND-ON: "]
[null,"CAPEX,RES-HYBR,,COL,","CAPEX","RES-HYBR","","COL","",1118.9592622840028,"USD2021/kW","calculated. PV:  WIND-ON: "]
[null,"CAPEX,RES-HYBR,,CRI,","CAPEX","RES-HYBR","","CRI","",1098.8151728137955,"USD2021/kW","calculated. PV:  WIND-ON: "]
[null,"CAPEX,RES-HYBR,,DNK,","CAPEX","RES-HYBR","","DNK","",1071.9750843525896,"USD2021/kW","calculated. PV:  WIND-ON: "]
[null,"CAPEX,RES-HYBR,,DZA,","CAPEX","RES-HYBR","","DZA","",1245.9670845975641,"USD2021/kW","calculated. PV:  WIND-ON: "]
[null,"CAPEX,RES-HYBR,,EGY,","CAPEX","RES-HYBR","","EGY","",1059.2889311372492,"USD2021/kW","calculated. PV:  WIND-ON: "]
[null,"CAPEX,RES-HYBR,,ESP,","CAPEX","RES-HYBR","","ESP","",882.95129609793912,"USD2021/kW","calculated. PV:  WIND-ON: "]
[null,"CAPEX,RES-HYBR,,IDN,","CAPEX","RES-HYBR","","IDN","",1471.3404647299146,"USD2021/kW","calculated. PV:  WIND-ON: "]
[null,"CAPEX,RES-HYBR,,IND,","CAPEX","RES-HYBR","","IND","",665.06806876364124,"USD2021/kW","calculated. PV:  WIND-ON: "]
[null,"CAPEX,RES-HYBR,,JOR,","CAPEX","RES-HYBR","","JOR","",1245.9670845975641,"USD2021/kW","calculated. PV:  WIND-ON: "]
[null,"CAPEX,RES-HYBR,,KAZ,","CAPEX","RES-HYBR","","KAZ","",1059.2889311372492,"USD2021/kW","calculated. PV:  WIND-ON: "]
[null,"CAPEX,RES-HYBR,,KEN,","CAPEX","RES-HYBR","","KEN","",1245.9670845975641,"USD2021/kW","calculated. PV:  WIND-ON: "]
[null,"CAPEX,RES-HYBR,,MAR,","CAPEX","RES-HYBR","","MAR","",1178.3438759461233,"USD2021/kW","calculated. PV:  WIND-ON: "]
[null,"CAPEX,RES-HYBR,,MAR-BEN,","CAPEX","RES-HYBR","","MAR-BEN","",1178.3438759461233,"USD2021/kW","calculated. PV:  WIND-ON: "]
[null,"CAPEX,RES-HYBR,,MAR-CAS,","CAPEX","RES-HYBR","","MAR-CAS","",1178.3438759461233,"USD2021/kW","calculated. PV:  WIND-ON: "]
[null,"CAPEX,RES-HYBR,,MAR-DAK,","CAPEX","RES-HYBR","","MAR-DAK","",1178.3438759461233,"USD2021/kW","calculated. PV:  WIND-ON: "]
[null,"CAPEX,RES-HYBR,,MAR-DRA,","CAPEX","RES-HYBR","","MAR-DRA","",1178.3438759461233,"USD2021/kW","calculated. PV:  WIND-ON: "]
[null,"CAPEX,RES-HYBR,,MAR-FES,","CAPEX","RES-HYBR","","MAR-FES","",1178.3438759461233,"USD2021/kW","calculated. PV:  WIND-ON: "]
[null,"CAPEX,RES-HYBR,,MAR-GUE,","CAPEX","RES-HYBR","","MAR-GUE","",1178.3438759461233,"USD2021/kW","calculated. PV:  WIND-ON: "]
[null,"CAPEX,RES-HYBR,,MAR-LAA,","CAPEX","RES-HYBR","","MAR-LAA","",1178.3438759461233,"USD2021/kW","calculated. PV:  WIND-ON: "]
[null,"CAPEX,RES-HYBR,,MAR-LOR,","CAPEX","RES-HYBR","","MAR-LOR","",1178.3438759461233,"USD2021/kW","calculated. PV:  WIND-ON: "]
[null,"CAPEX,RES-HYBR,,MAR-MAR,","CAPEX","RES-HYBR","","MAR-MAR","",1178.3438759461233,"USD2021/kW","calculated. PV:  WIND-ON: "]
[null,"CAPEX,RES-HYBR,,MAR-RAB,","CAPEX","RES-HYBR","","MAR-RAB","",1178.3438759461233,"USD2021/kW","calculated. PV:  WIND-ON: "]
[null,"CAPEX,RES-HYBR,,MAR-SOU,","CAPEX","RES-HYBR","","MAR-SOU","",1178.3438759461233,"USD2021/kW","calculated. PV:  WIND-ON: "]
[null,"CAPEX,RES-HYBR,,MAR-TAN,","CAPEX","RES-HYBR","","MAR-TAN","",1178.3438759461233,"USD2021/kW","calculated. PV:  WIND-ON: "]
[null,"CAPEX,RES-HYBR,,MEX,","CAPEX","RES-HYBR","","MEX","",1015.0906384955772,"USD2021/kW","calculated. PV:  WIND-ON: "]
[null,"CAPEX,RES-HYBR,,MRT,","CAPEX","RES-HYBR","","MRT","",1245.9670845975641,"USD2021/kW","calculated. PV:  WIND-ON: "]
[null,"CAPEX,RES-HYBR,,NAM,","CAPEX","RES-HYBR","","NAM","",1245.9670845975641,"USD2021/kW","calculated. PV:  WIND-ON: "]
[null,"CAPEX,RES-HYBR,,NOR,","CAPEX","RES-HYBR","","NOR","",1032.1859752562291,"USD2021/kW","calculated. PV:  WIND-ON: "]
[null,"CAPEX,RES-HYBR,,PER,","CAPEX","RES-HYBR","","PER","",940.23398632837461,"USD2021/kW","calculated. PV:  WIND-ON: "]
[null,"CAPEX,RES-HYBR,,PRT,","CAPEX","RES-HYBR","","PRT","",1182.2000843184449,"USD2021/kW","calculated. PV:  WIND-ON: "]
[null,"CAPEX,RES-HYBR,,RUS,","CAPEX","RES-HYBR","","RUS","",1333.1225723317666,"USD2021/kW","calculated. PV:  WIND-ON: "]
[null,"CAPEX,RES-HYBR,,SAU,","CAPEX","RES-HYBR","","SAU","",1093.5300023508921,"USD2021/kW","calculated. PV:  WIND-ON: "]
[null,"CAPEX,RES-HYBR,,SWE,","CAPEX","RES-HYBR","","SWE","",1090.7610081021953,"USD2021/kW","calculated. PV:  WIND-ON: "]
[null,"CAPEX,RES-HYBR,,THA,","CAPEX","RES-HYBR","","THA","",1116.3673252669737,"USD2021/kW","calculated. PV:  WIND-ON: "]
[null,"CAPEX,RES-HYBR,,TUN,","CAPEX","RES-HYBR","","TUN","",1245.9670845975641,"USD2021/kW","calculated. PV:  WIND-ON: "]
[null,"CAPEX,RES-HYBR,,UKR,","CAPEX","RES-HYBR","","UKR","",1032.1859752562291,"USD2021/kW","calculated. PV:  WIND-ON: "]
[null,"CAPEX,RES-HYBR,,URY,","CAPEX","RES-HYBR","","URY","",1416.4537655638724,"USD2021/kW","calculated. PV:  WIND-ON: "]
[null,"CAPEX,RES-HYBR,,USA,","CAPEX","RES-HYBR","","USA","",1070.0989902420486,"USD2021/kW","calculated. PV:  WIND-ON: "]
[null,"CAPEX,RES-HYBR,,VNM,","CAPEX","RES-HYBR","","VNM","",1452.1022696279997,"USD2021/kW","calculated. PV:  WIND-ON: "]
[null,"CAPEX,RES-HYBR,,ZAF,","CAPEX","RES-HYBR","","ZAF","",1178.3438759461233,"USD2021/kW","calculated. PV:  WIND-ON: "]
[null,"CAPEX,RES-HYBR,,ZAF-EC,","CAPEX","RES-HYBR","","ZAF-EC","",1178.3438759461233,"USD2021/kW","calculated. PV:  WIND-ON: "]
[null,"CAPEX,RES-HYBR,,ZAF-FRS,","CAPEX","RES-HYBR","","ZAF-FRS","",1178.3438759461233,"USD2021/kW","calculated. PV:  WIND-ON: "]
[null,"CAPEX,RES-HYBR,,ZAF-GAU,","CAPEX","RES-HYBR","","ZAF-GAU","",1178.3438759461233,"USD2021/kW","calculated. PV:  WIND-ON: "]
[null,"CAPEX,RES-HYBR,,ZAF-KWA,","CAPEX","RES-HYBR","","ZAF-KWA","",1178.3438759461233,"USD2021/kW","calculated. PV:  WIND-ON: "]
[null,"CAPEX,RES-HYBR,,ZAF-LIM,","CAPEX","RES-HYBR","","ZAF-LIM","",1178.3438759461233,"USD2021/kW","calculated. PV:  WIND-ON: "]
[null,"CAPEX,RES-HYBR,,ZAF-MPU,","CAPEX","RES-HYBR","","ZAF-MPU","",1178.3438759461233,"USD2021/kW","calculated. PV:  WIND-ON: "]
[null,"CAPEX,RES-HYBR,,ZAF-NC,","CAPEX","RES-HYBR","","ZAF-NC","",1178.3438759461233,"USD2021/kW","calculated. PV:  WIND-ON: "]
[null,"CAPEX,RES-HYBR,,ZAF-NW,","CAPEX","RES-HYBR","","ZAF-NW","",1178.3438759461233,"USD2021/kW","calculated. PV:  WIND-ON: "]
[null,"CAPEX,RES-HYBR,,ZAF-WC,","CAPEX","RES-HYBR","","ZAF-WC","",1178.3438759461233,"USD2021/kW","calculated. PV:  WIND-ON: "]
[null,"CAPEX,SOEC-EL,,,","CAPEX","SOEC-EL","","","",1524.7915211195389,"USD2021/kW"]
[null,"CAPEX,WIND-OFF,,ARE,","CAPEX","WIND-OFF","","ARE","",3192.4670092288125,"USD2021/kW"]
[null,"CAPEX,WIND-OFF,,ARG,","CAPEX","WIND-OFF","","ARG","",3192.4670092288125,"USD2021/kW"]
[null,"CAPEX,WIND-OFF,,ARG-BA,","CAPEX","WIND-OFF","","ARG-BA","",3192.4670092288125,"USD2021/kW"]
[null,"CAPEX,WIND-OFF,,ARG-CAT,","CAPEX","WIND-OFF","","ARG-CAT","",3192.4670092288125,"USD2021/kW"]
[null,"CAPEX,WIND-OFF,,ARG-CBA,","CAPEX","WIND-OFF","","ARG-CBA","",3192.4670092288125,"USD2021/kW"]
[null,"CAPEX,WIND-OFF,,ARG-CHA,","CAPEX","WIND-OFF","","ARG-CHA","",3192.4670092288125,"USD2021/kW"]
[null,"CAPEX,WIND-OFF,,ARG-CHU,","CAPEX","WIND-OFF","","ARG-CHU","",3192.4670092288125,"USD2021/kW"]
[null,"CAPEX,WIND-OFF,,ARG-COR,","CAPEX","WIND-OFF","","ARG-COR","",3192.4670092288125,"USD2021/kW"]
[null,"CAPEX,WIND-OFF,,ARG-CRB,","CAPEX","WIND-OFF","","ARG-CRB","",3192.4670092288125,"USD2021/kW"]
[null,"CAPEX,WIND-OFF,,ARG-CRU,","CAPEX","WIND-OFF","","ARG-CRU","",3192.4670092288125,"USD2021/kW"]
[null,"CAPEX,WIND-OFF,,ARG-EST,","CAPEX","WIND-OFF","","ARG-EST","",3192.4670092288125,"USD2021/kW"]
[null,"CAPEX,WIND-OFF,,ARG-FOR,","CAPEX","WIND-OFF","","ARG-FOR","",3192.4670092288125,"USD2021/kW"]
[null,"CAPEX,WIND-OFF,,ARG-FUE,","CAPEX","WIND-OFF","","ARG-FUE","",3192.4670092288125,"USD2021/kW"]
[null,"CAPEX,WIND-OFF,,ARG-JUJ,","CAPEX","WIND-OFF","","ARG-JUJ","",3192.4670092288125,"USD2021/kW"]
[null,"CAPEX,WIND-OFF,,ARG-LAR,","CAPEX","WIND-OFF","","ARG-LAR","",3192.4670092288125,"USD2021/kW"]
[null,"CAPEX,WIND-OFF,,ARG-MEN,","CAPEX","WIND-OFF","","ARG-MEN","",3192.4670092288125,"USD2021/kW"]
[null,"CAPEX,WIND-OFF,,ARG-MIS,","CAPEX","WIND-OFF","","ARG-MIS","",3192.4670092288125,"USD2021/kW"]
[null,"CAPEX,WIND-OFF,,ARG-NEG,","CAPEX","WIND-OFF","","ARG-NEG","",3192.4670092288125,"USD2021/kW"]
[null,"CAPEX,WIND-OFF,,ARG-NEU,","CAPEX","WIND-OFF","","ARG-NEU","",3192.4670092288125,"USD2021/kW"]
[null,"CAPEX,WIND-OFF,,ARG-PAM,","CAPEX","WIND-OFF","","ARG-PAM","",3192.4670092288125,"USD2021/kW"]
[null,"CAPEX,WIND-OFF,,ARG-RIO,","CAPEX","WIND-OFF","","ARG-RIO","",3192.4670092288125,"USD2021/kW"]
[null,"CAPEX,WIND-OFF,,ARG-SAF,","CAPEX","WIND-OFF","","ARG-SAF","",3192.4670092288125,"USD2021/kW"]
[null,"CAPEX,WIND-OFF,,ARG-SAJ,","CAPEX","WIND-OFF","","ARG-SAJ","",3192.4670092288125,"USD2021/kW"]
[null,"CAPEX,WIND-OFF,,ARG-SAL,","CAPEX","WIND-OFF","","ARG-SAL","",3192.4670092288125,"USD2021/kW"]
[null,"CAPEX,WIND-OFF,,ARG-SAT,","CAPEX","WIND-OFF","","ARG-SAT","",3192.4670092288125,"USD2021/kW"]
[null,"CAPEX,WIND-OFF,,ARG-TUC,","CAPEX","WIND-OFF","","ARG-TUC","",3192.4670092288125,"USD2021/kW"]
[null,"CAPEX,WIND-OFF,,AUS,","CAPEX","WIND-OFF","","AUS","",3192.4670092288125,"USD2021/kW"]
[null,"CAPEX,WIND-OFF,,BRA,","CAPEX","WIND-OFF","","BRA","",3192.4670092288125,"USD2021/kW"]
[null,"CAPEX,WIND-OFF,,CHL,","CAPEX","WIND-OFF","","CHL","",3192.4670092288125,"USD2021/kW"]
[null,"CAPEX,WIND-OFF,,CHN,","CAPEX","WIND-OFF","","CHN","",2660.3891743573436,"USD2021/kW"]
[null,"CAPEX,WIND-OFF,,COL,","CAPEX","WIND-OFF","","COL","",3192,"USD2021/kW"]
[null,"CAPEX,WIND-OFF,,CRI,","CAPEX","WIND-OFF","","CRI","",3192.4670092288125,"USD2021/kW"]
[null,"CAPEX,WIND-OFF,,DNK,","CAPEX","WIND-OFF","","DNK","",2131.477360904431,"USD2021/kW"]
[null,"CAPEX,WIND-OFF,,DZA,","CAPEX","WIND-OFF","","DZA","",3192.4670092288125,"USD2021/kW"]
[null,"CAPEX,WIND-OFF,,EGY,","CAPEX","WIND-OFF","","EGY","",3192.4670092288125,"USD2021/kW"]
[null,"CAPEX,WIND-OFF,,ESP,","CAPEX","WIND-OFF","","ESP","",3192.4670092288125,"USD2021/kW"]
[null,"CAPEX,WIND-OFF,,IDN,","CAPEX","WIND-OFF","","IDN","",3192.4670092288125,"USD2021/kW"]
[null,"CAPEX,WIND-OFF,,IND,","CAPEX","WIND-OFF","","IND","",3192.4670092288125,"USD2021/kW"]
[null,"CAPEX,WIND-OFF,,JOR,","CAPEX","WIND-OFF","","JOR","",3192.4670092288125,"USD2021/kW"]
[null,"CAPEX,WIND-OFF,,KAZ,","CAPEX","WIND-OFF","","KAZ","",3192.4670092288125,"USD2021/kW"]
[null,"CAPEX,WIND-OFF,,KEN,","CAPEX","WIND-OFF","","KEN","",3192.4670092288125,"USD2021/kW"]
[null,"CAPEX,WIND-OFF,,MAR,","CAPEX","WIND-OFF","","MAR","",3192.4670092288125,"USD2021/kW"]
[null,"CAPEX,WIND-OFF,,MAR-BEN,","CAPEX","WIND-OFF","","MAR-BEN","",3192.4670092288125,"USD2021/kW"]
[null,"CAPEX,WIND-OFF,,MAR-CAS,","CAPEX","WIND-OFF","","MAR-CAS","",3192.4670092288125,"USD2021/kW"]
[null,"CAPEX,WIND-OFF,,MAR-DAK,","CAPEX","WIND-OFF","","MAR-DAK","",3192.4670092288125,"USD2021/kW"]
[null,"CAPEX,WIND-OFF,,MAR-DRA,","CAPEX","WIND-OFF","","MAR-DRA","",3192.4670092288125,"USD2021/kW"]
[null,"CAPEX,WIND-OFF,,MAR-FES,","CAPEX","WIND-OFF","","MAR-FES","",3192.4670092288125,"USD2021/kW"]
[null,"CAPEX,WIND-OFF,,MAR-GUE,","CAPEX","WIND-OFF","","MAR-GUE","",3192.4670092288125,"USD2021/kW"]
[null,"CAPEX,WIND-OFF,,MAR-LAA,","CAPEX","WIND-OFF","","MAR-LAA","",3192.4670092288125,"USD2021/kW"]
[null,"CAPEX,WIND-OFF,,MAR-LOR,","CAPEX","WIND-OFF","","MAR-LOR","",3192.4670092288125,"USD2021/kW"]
[null,"CAPEX,WIND-OFF,,MAR-MAR,","CAPEX","WIND-OFF","","MAR-MAR","",3192.4670092288125,"USD2021/kW"]
[null,"CAPEX,WIND-OFF,,MAR-RAB,","CAPEX","WIND-OFF","","MAR-RAB","",3192.4670092288125,"USD2021/kW"]
[null,"CAPEX,WIND-OFF,,MAR-SOU,","CAPEX","WIND-OFF","","MAR-SOU","",3192.4670092288125,"USD2021/kW"]
[null,"CAPEX,WIND-OFF,,MAR-TAN,","CAPEX","WIND-OFF","","MAR-TAN","",3192.4670092288125,"USD2021/kW"]
[null,"CAPEX,WIND-OFF,,MEX,","CAPEX","WIND-OFF","","MEX","",3192.4670092288125,"USD2021/kW"]
[null,"CAPEX,WIND-OFF,,MRT,","CAPEX","WIND-OFF","","MRT","",3192.4670092288125,"USD2021/kW"]
[null,"CAPEX,WIND-OFF,,NAM,","CAPEX","WIND-OFF","","NAM","",3192.4670092288125,"USD2021/kW"]
[null,"CAPEX,WIND-OFF,,NOR,","CAPEX","WIND-OFF","","NOR","",3192.4670092288125,"USD2021/kW"]
[null,"CAPEX,WIND-OFF,,PER,","CAPEX","WIND-OFF","","PER","",3192.4670092288125,"USD2021/kW"]
[null,"CAPEX,WIND-OFF,,PRT,","CAPEX","WIND-OFF","","PRT","",3192.4670092288125,"USD2021/kW"]
[null,"CAPEX,WIND-OFF,,RUS,","CAPEX","WIND-OFF","","RUS","",3192.4670092288125,"USD2021/kW"]
[null,"CAPEX,WIND-OFF,,SAU,","CAPEX","WIND-OFF","","SAU","",3192.4670092288125,"USD2021/kW"]
[null,"CAPEX,WIND-OFF,,SWE,","CAPEX","WIND-OFF","","SWE","",3192.4670092288125,"USD2021/kW"]
[null,"CAPEX,WIND-OFF,,THA,","CAPEX","WIND-OFF","","THA","",3192.4670092288125,"USD2021/kW"]
[null,"CAPEX,WIND-OFF,,TUN,","CAPEX","WIND-OFF","","TUN","",3192.4670092288125,"USD2021/kW"]
[null,"CAPEX,WIND-OFF,,UKR,","CAPEX","WIND-OFF","","UKR","",3192.4670092288125,"USD2021/kW"]
[null,"CAPEX,WIND-OFF,,URY,","CAPEX","WIND-OFF","","URY","",3192.4670092288125,"USD2021/kW"]
[null,"CAPEX,WIND-OFF,,USA,","CAPEX","WIND-OFF","","USA","",3192.4670092288125,"USD2021/kW"]
[null,"CAPEX,WIND-OFF,,VNM,","CAPEX","WIND-OFF","","VNM","",3192.4670092288125,"USD2021/kW"]
[null,"CAPEX,WIND-OFF,,ZAF,","CAPEX","WIND-OFF","","ZAF","",3192.4670092288125,"USD2021/kW"]
[null,"CAPEX,WIND-OFF,,ZAF-EC,","CAPEX","WIND-OFF","","ZAF-EC","",3192.4670092288125,"USD2021/kW"]
[null,"CAPEX,WIND-OFF,,ZAF-FRS,","CAPEX","WIND-OFF","","ZAF-FRS","",3192.4670092288125,"USD2021/kW"]
[null,"CAPEX,WIND-OFF,,ZAF-GAU,","CAPEX","WIND-OFF","","ZAF-GAU","",3192.4670092288125,"USD2021/kW"]
[null,"CAPEX,WIND-OFF,,ZAF-KWA,","CAPEX","WIND-OFF","","ZAF-KWA","",3192.4670092288125,"USD2021/kW"]
[null,"CAPEX,WIND-OFF,,ZAF-LIM,","CAPEX","WIND-OFF","","ZAF-LIM","",3192.4670092288125,"USD2021/kW"]
[null,"CAPEX,WIND-OFF,,ZAF-MPU,","CAPEX","WIND-OFF","","ZAF-MPU","",3192.4670092288125,"USD2021/kW"]
[null,"CAPEX,WIND-OFF,,ZAF-NC,","CAPEX","WIND-OFF","","ZAF-NC","",3192.4670092288125,"USD2021/kW"]
[null,"CAPEX,WIND-OFF,,ZAF-NW,","CAPEX","WIND-OFF","","ZAF-NW","",3192.4670092288125,"USD2021/kW"]
[null,"CAPEX,WIND-OFF,,ZAF-WC,","CAPEX","WIND-OFF","","ZAF-WC","",3192.4670092288125,"USD2021/kW"]
[null,"CAPEX,WIND-ON,,ARE,","CAPEX","WIND-ON","","ARE","",1471.5191178376874,"USD2021/kW"]
[null,"CAPEX,WIND-ON,,ARG,","CAPEX","WIND-ON","","ARG","",1666.7692273242415,"USD2021/kW"]
[null,"CAPEX,WIND-ON,,ARG-BA,","CAPEX","WIND-ON","","ARG-BA","",1666.7692273242415,"USD2021/kW"]
[null,"CAPEX,WIND-ON,,ARG-CAT,","CAPEX","WIND-ON","","ARG-CAT","",1666.7692273242415,"USD2021/kW"]
[null,"CAPEX,WIND-ON,,ARG-CBA,","CAPEX","WIND-ON","","ARG-CBA","",1666.7692273242415,"USD2021/kW"]
[null,"CAPEX,WIND-ON,,ARG-CHA,","CAPEX","WIND-ON","","ARG-CHA","",1666.7692273242415,"USD2021/kW"]
[null,"CAPEX,WIND-ON,,ARG-CHU,","CAPEX","WIND-ON","","ARG-CHU","",1666.7692273242415,"USD2021/kW"]
[null,"CAPEX,WIND-ON,,ARG-COR,","CAPEX","WIND-ON","","ARG-COR","",1666.7692273242415,"USD2021/kW"]
[null,"CAPEX,WIND-ON,,ARG-CRB,","CAPEX","WIND-ON","","ARG-CRB","",1666.7692273242415,"USD2021/kW"]
[null,"CAPEX,WIND-ON,,ARG-CRU,","CAPEX","WIND-ON","","ARG-CRU","",1666.7692273242415,"USD2021/kW"]
[null,"CAPEX,WIND-ON,,ARG-EST,","CAPEX","WIND-ON","","ARG-EST","",1666.7692273242415,"USD2021/kW"]
[null,"CAPEX,WIND-ON,,ARG-FOR,","CAPEX","WIND-ON","","ARG-FOR","",1666.7692273242415,"USD2021/kW"]
[null,"CAPEX,WIND-ON,,ARG-FUE,","CAPEX","WIND-ON","","ARG-FUE","",1666.7692273242415,"USD2021/kW"]
[null,"CAPEX,WIND-ON,,ARG-JUJ,","CAPEX","WIND-ON","","ARG-JUJ","",1666.7692273242415,"USD2021/kW"]
[null,"CAPEX,WIND-ON,,ARG-LAR,","CAPEX","WIND-ON","","ARG-LAR","",1666.7692273242415,"USD2021/kW"]
[null,"CAPEX,WIND-ON,,ARG-MEN,","CAPEX","WIND-ON","","ARG-MEN","",1666.7692273242415,"USD2021/kW"]
[null,"CAPEX,WIND-ON,,ARG-MIS,","CAPEX","WIND-ON","","ARG-MIS","",1666.7692273242415,"USD2021/kW"]
[null,"CAPEX,WIND-ON,,ARG-NEG,","CAPEX","WIND-ON","","ARG-NEG","",1666.7692273242415,"USD2021/kW"]
[null,"CAPEX,WIND-ON,,ARG-NEU,","CAPEX","WIND-ON","","ARG-NEU","",1666.7692273242415,"USD2021/kW"]
[null,"CAPEX,WIND-ON,,ARG-PAM,","CAPEX","WIND-ON","","ARG-PAM","",1666.7692273242415,"USD2021/kW"]
[null,"CAPEX,WIND-ON,,ARG-RIO,","CAPEX","WIND-ON","","ARG-RIO","",1666.7692273242415,"USD2021/kW"]
[null,"CAPEX,WIND-ON,,ARG-SAF,","CAPEX","WIND-ON","","ARG-SAF","",1666.7692273242415,"USD2021/kW"]
[null,"CAPEX,WIND-ON,,ARG-SAJ,","CAPEX","WIND-ON","","ARG-SAJ","",1666.7692273242415,"USD2021/kW"]
[null,"CAPEX,WIND-ON,,ARG-SAL,","CAPEX","WIND-ON","","ARG-SAL","",1666.7692273242415,"USD2021/kW"]
[null,"CAPEX,WIND-ON,,ARG-SAT,","CAPEX","WIND-ON","","ARG-SAT","",1666.7692273242415,"USD2021/kW"]
[null,"CAPEX,WIND-ON,,ARG-TUC,","CAPEX","WIND-ON","","ARG-TUC","",1666.7692273242415,"USD2021/kW"]
[null,"CAPEX,WIND-ON,,AUS,","CAPEX","WIND-ON","","AUS","",1666.7692273242415,"USD2021/kW"]
[null,"CAPEX,WIND-ON,,BRA,","CAPEX","WIND-ON","","BRA","",1095.3054922416445,"USD2021/kW"]
[null,"CAPEX,WIND-ON,,CHL,","CAPEX","WIND-ON","","CHL","",1666.7692273242415,"USD2021/kW"]
[null,"CAPEX,WIND-ON,,CHN,","CAPEX","WIND-ON","","CHN","",1101.9725691509414,"USD2021/kW"]
[null,"CAPEX,WIND-ON,,COL,","CAPEX","WIND-ON","","COL","",1548,"USD2021/kW"]
[null,"CAPEX,WIND-ON,,CRI,","CAPEX","WIND-ON","","CRI","",1507.7118210595854,"USD2021/kW"]
[null,"CAPEX,WIND-ON,,DNK,","CAPEX","WIND-ON","","DNK","",1545.809403398425,"USD2021/kW"]
[null,"CAPEX,WIND-ON,,DZA,","CAPEX","WIND-ON","","DZA","",1802.0156446271228,"USD2021/kW"]
[null,"CAPEX,WIND-ON,,EGY,","CAPEX","WIND-ON","","EGY","",1428.6593377064928,"USD2021/kW"]
[null,"CAPEX,WIND-ON,,ESP,","CAPEX","WIND-ON","","ESP","",1115.8315541418615,"USD2021/kW"]
[null,"CAPEX,WIND-ON,,IDN,","CAPEX","WIND-ON","","IDN","",2142.9890065597392,"USD2021/kW"]
[null,"CAPEX,WIND-ON,,IND,","CAPEX","WIND-ON","","IND","",881.95903114414148,"USD2021/kW"]
[null,"CAPEX,WIND-ON,,JOR,","CAPEX","WIND-ON","","JOR","",1802.0156446271228,"USD2021/kW"]
[null,"CAPEX,WIND-ON,,KAZ,","CAPEX","WIND-ON","","KAZ","",1428.6593377064928,"USD2021/kW"]
[null,"CAPEX,WIND-ON,,KEN,","CAPEX","WIND-ON","","KEN","",1802.0156446271228,"USD2021/kW"]
[null,"CAPEX,WIND-ON,,MAR,","CAPEX","WIND-ON","","MAR","",1666.7692273242415,"USD2021/kW"]
[null,"CAPEX,WIND-ON,,MAR-BEN,","CAPEX","WIND-ON","","MAR-BEN","",1666.7692273242415,"USD2021/kW"]
[null,"CAPEX,WIND-ON,,MAR-CAS,","CAPEX","WIND-ON","","MAR-CAS","",1666.7692273242415,"USD2021/kW"]
[null,"CAPEX,WIND-ON,,MAR-DAK,","CAPEX","WIND-ON","","MAR-DAK","",1666.7692273242415,"USD2021/kW"]
[null,"CAPEX,WIND-ON,,MAR-DRA,","CAPEX","WIND-ON","","MAR-DRA","",1666.7692273242415,"USD2021/kW"]
[null,"CAPEX,WIND-ON,,MAR-FES,","CAPEX","WIND-ON","","MAR-FES","",1666.7692273242415,"USD2021/kW"]
[null,"CAPEX,WIND-ON,,MAR-GUE,","CAPEX","WIND-ON","","MAR-GUE","",1666.7692273242415,"USD2021/kW"]
[null,"CAPEX,WIND-ON,,MAR-LAA,","CAPEX","WIND-ON","","MAR-LAA","",1666.7692273242415,"USD2021/kW"]
[null,"CAPEX,WIND-ON,,MAR-LOR,","CAPEX","WIND-ON","","MAR-LOR","",1666.7692273242415,"USD2021/kW"]
[null,"CAPEX,WIND-ON,,MAR-MAR,","CAPEX","WIND-ON","","MAR-MAR","",1666.7692273242415,"USD2021/kW"]
[null,"CAPEX,WIND-ON,,MAR-RAB,","CAPEX","WIND-ON","","MAR-RAB","",1666.7692273242415,"USD2021/kW"]
[null,"CAPEX,WIND-ON,,MAR-SOU,","CAPEX","WIND-ON","","MAR-SOU","",1666.7692273242415,"USD2021/kW"]
[null,"CAPEX,WIND-ON,,MAR-TAN,","CAPEX","WIND-ON","","MAR-TAN","",1666.7692273242415,"USD2021/kW"]
[null,"CAPEX,WIND-ON,,MEX,","CAPEX","WIND-ON","","MEX","",1401.4479252639831,"USD2021/kW"]
[null,"CAPEX,WIND-ON,,MRT,","CAPEX","WIND-ON","","MRT","",1802.0156446271228,"USD2021/kW"]
[null,"CAPEX,WIND-ON,,NAM,","CAPEX","WIND-ON","","NAM","",1802.0156446271228,"USD2021/kW"]
[null,"CAPEX,WIND-ON,,NOR,","CAPEX","WIND-ON","","NOR","",1428.6593377064928,"USD2021/kW"]
[null,"CAPEX,WIND-ON,,PER,","CAPEX","WIND-ON","","PER","",1190.5494480887439,"USD2021/kW"]
[null,"CAPEX,WIND-ON,,PRT,","CAPEX","WIND-ON","","PRT","",1666.7692273242415,"USD2021/kW"]
[null,"CAPEX,WIND-ON,,RUS,","CAPEX","WIND-ON","","RUS","",1428.6593377064928,"USD2021/kW"]
[null,"CAPEX,WIND-ON,,SAU,","CAPEX","WIND-ON","","SAU","",1471.5191178376874,"USD2021/kW"]
[null,"CAPEX,WIND-ON,,SWE,","CAPEX","WIND-ON","","SWE","",1545.809403398425,"USD2021/kW"]
[null,"CAPEX,WIND-ON,,THA,","CAPEX","WIND-ON","","THA","",1471.5191178376874,"USD2021/kW"]
[null,"CAPEX,WIND-ON,,TUN,","CAPEX","WIND-ON","","TUN","",1802.0156446271228,"USD2021/kW"]
[null,"CAPEX,WIND-ON,,UKR,","CAPEX","WIND-ON","","UKR","",1428.6593377064928,"USD2021/kW"]
[null,"CAPEX,WIND-ON,,URY,","CAPEX","WIND-ON","","URY","",2142.9890065597392,"USD2021/kW"]
[null,"CAPEX,WIND-ON,,USA,","CAPEX","WIND-ON","","USA","",1315.9977110399195,"USD2021/kW"]
[null,"CAPEX,WIND-ON,,VNM,","CAPEX","WIND-ON","","VNM","",2142.9890065597392,"USD2021/kW"]
[null,"CAPEX,WIND-ON,,ZAF,","CAPEX","WIND-ON","","ZAF","",1666.7692273242415,"USD2021/kW"]
[null,"CAPEX,WIND-ON,,ZAF-EC,","CAPEX","WIND-ON","","ZAF-EC","",1666.7692273242415,"USD2021/kW"]
[null,"CAPEX,WIND-ON,,ZAF-FRS,","CAPEX","WIND-ON","","ZAF-FRS","",1666.7692273242415,"USD2021/kW"]
[null,"CAPEX,WIND-ON,,ZAF-GAU,","CAPEX","WIND-ON","","ZAF-GAU","",1666.7692273242415,"USD2021/kW"]
[null,"CAPEX,WIND-ON,,ZAF-KWA,","CAPEX","WIND-ON","","ZAF-KWA","",1666.7692273242415,"USD2021/kW"]
[null,"CAPEX,WIND-ON,,ZAF-LIM,","CAPEX","WIND-ON","","ZAF-LIM","",1666.7692273242415,"USD2021/kW"]
[null,"CAPEX,WIND-ON,,ZAF-MPU,","CAPEX","WIND-ON","","ZAF-MPU","",1666.7692273242415,"USD2021/kW"]
[null,"CAPEX,WIND-ON,,ZAF-NC,","CAPEX","WIND-ON","","ZAF-NC","",1666.7692273242415,"USD2021/kW"]
[null,"CAPEX,WIND-ON,,ZAF-NW,","CAPEX","WIND-ON","","ZAF-NW","",1666.7692273242415,"USD2021/kW"]
[null,"CAPEX,WIND-ON,,ZAF-WC,","CAPEX","WIND-ON","","ZAF-WC","",1666.7692273242415,"USD2021/kW"]
[null,"CAP-T,,,DNK,DEU","CAP-T","","","DNK","DEU",1,"kWh/a"]
[null,"CAP-T,,,DZA,ESP","CAP-T","","","DZA","ESP",1,"kWh/a"]
[null,"CAP-T,,,ESP,FRA","CAP-T","","","ESP","FRA",1,"kWh/a"]
[null,"CAP-T,,,KAZ,CHN","CAP-T","","","KAZ","CHN",1,"kWh/a"]
[null,"CAP-T,,,MAR,ESP","CAP-T","","","MAR","ESP",1,"kWh/a"]
[null,"CAP-T,,,MAR-BEN,ESP","CAP-T","","","MAR-BEN","ESP",1,"kWh/a"]
[null,"CAP-T,,,MAR-CAS,ESP","CAP-T","","","MAR-CAS","ESP",1,"kWh/a"]
[null,"CAP-T,,,MAR-DAK,ESP","CAP-T","","","MAR-DAK","ESP",1,"kWh/a"]
[null,"CAP-T,,,MAR-DRA,ESP","CAP-T","","","MAR-DRA","ESP",1,"kWh/a"]
[null,"CAP-T,,,MAR-FES,ESP","CAP-T","","","MAR-FES","ESP",1,"kWh/a"]
[null,"CAP-T,,,MAR-GUE,ESP","CAP-T","","","MAR-GUE","ESP",1,"kWh/a"]
[null,"CAP-T,,,MAR-LAA,ESP","CAP-T","","","MAR-LAA","ESP",1,"kWh/a"]
[null,"CAP-T,,,MAR-LOR,ESP","CAP-T","","","MAR-LOR","ESP",1,"kWh/a"]
[null,"CAP-T,,,MAR-MAR,ESP","CAP-T","","","MAR-MAR","ESP",1,"kWh/a"]
[null,"CAP-T,,,MAR-RAB,ESP","CAP-T","","","MAR-RAB","ESP",1,"kWh/a"]
[null,"CAP-T,,,MAR-SOU,ESP","CAP-T","","","MAR-SOU","ESP",1,"kWh/a"]
[null,"CAP-T,,,MAR-TAN,ESP","CAP-T","","","MAR-TAN","ESP",1,"kWh/a"]
[null,"CAP-T,,,MEX,USA","CAP-T","","","MEX","USA",1,"kWh/a"]
[null,"CAP-T,,,NOR,DEU","CAP-T","","","NOR","DEU",1,"kWh/a"]
[null,"CAP-T,,,PRT,ESP","CAP-T","","","PRT","ESP",1,"kWh/a"]
[null,"CAP-T,,,RUS,CHN","CAP-T","","","RUS","CHN",1,"kWh/a"]
[null,"CAP-T,,,RUS,DEU","CAP-T","","","RUS","DEU",1,"kWh/a"]
[null,"CONV,AEL-EL,H2O-L,,","CONV","AEL-EL","H2O-L","","",0.3,"kg H2O (l)/H2-G"]
[null,"CONV,ATR,EL,,","CONV","ATR","EL","","",0.10771077107710771,"kWh (el.)/H2-G","Oni et al. 2022"]
[null,"CONV,CH3OH-SB,BFUEL-L,,","CONV","CH3OH-SB","BFUEL-L","","",3.0509883673175369E-6,"kwh bunker fuel (l)/(km*CH3OH-L)","calc_shipping"]
[null,"CONV,CH3OHSYN,CO2-G,,","CONV","CH3OHSYN","CO2-G","","",0.26448241206030154,"kg CO2 (g)/kWh CH3OH (l)","Frotier Economics 2021"]
[null,"CONV,CH3OHSYN,EL,,","CONV","CH3OHSYN","EL","","",3.9989420788151285E-2,"kWh (el.)/kWh CH3OH (l)","Fasihi & Breyer 2018"]
[null,"CONV,CH4-COMP,EL,,","CONV","CH4-COMP","EL","","",0.02,"kWh (el.)/CH4-G","DNV GL 2020"]
[null,"CONV,CH4-LIQ,EL,,","CONV","CH4-LIQ","EL","","",9.4736842105263161E-2,"kWh (el.)/CH4-L","Pospíšil et al. 2019"]
[null,"CONV,CH4-SB,BFUEL-L,,","CONV","CH4-SB","BFUEL-L","","",3.3002590965851548E-6,"kwh bunker fuel (l)/(km*CH4-L)","calc_shipping"]
[null,"CONV,CH4SYN,CO2-G,,","CONV","CH4SYN","CO2-G","","",0.20196,"kg CO2 (g)/kWh CH4 (g)"]
[null,"CONV,CH4SYN,H2O-L,,","CONV","CH4SYN","H2O-L","","",-0.14263322884012539,"kg H2O (l)/kWh CH4 (g)","Fasihi & Breyer 2018"]
[null,"CONV,CH4SYN,HEAT,,","CONV","CH4SYN","HEAT","","",-0.18495297805642633,"kWh (heat)/kWh CH4 (g)","Fasihi & Breyer 2018"]
[null,"CONV,DAC,EL,,","CONV","DAC","EL","","",0.45150000000000001,"kWh (el.)/kg CO2 (g)","average low and high"]
[null,"CONV,DAC,H2O-L,,","CONV","DAC","H2O-L","","",-1.4,"kg H2O (l)/kg CO2 (g)","Fasihi et al. 2019"]
[null,"CONV,DAC,HEAT,,","CONV","DAC","HEAT","","",1.7430000000000001,"kWh (heat)/kg CO2 (g)","average low and high"]
[null,"CONV,DESAL,EL,,","CONV","DESAL","EL","","",3.0000000000000001E-3,"kWh (el.)/kg H2O (l)"]
[null,"CONV,DRI,EL,,","CONV","DRI","EL","","",0.10829670329670329,"kWh (el.)/kg DRI (s)","Agora Industry Transformation 2021"]
[null,"CONV,EFUELSYN,CO2-G,,","CONV","EFUELSYN","CO2-G","","",0.26455813953488377,"kg CO2 (g)/kwh CHx (l)","Frontier Economics 2021"]
[null,"CONV,EFUELSYN,EL,,","CONV","EFUELSYN","EL","","",8.5778781038374718E-2,"kWh (el.)/kwh CHx (l)","Fasihi & Breyer 2018"]
[null,"CONV,EFUELSYN,H2O-L,,","CONV","EFUELSYN","H2O-L","","",-0.24830699774266365,"kg H2O (l)/kwh CHx (l)","Fasihi & Breyer 2018"]
[null,"CONV,EFUELSYN,HEAT,,","CONV","EFUELSYN","HEAT","","",-0.40397350993377484,"kWh (heat)/kwh CHx (l)","Fasihi & Breyer 2018"]
[null,"CONV,H2-COMP,EL,,","CONV","H2-COMP","EL","","",0.02,"kWh (el.)/H2-G","DNV GL 2020"]
[null,"CONV,H2-LIQ,EL,,","CONV","H2-LIQ","EL","","",0.30010003334444812,"kWh (el.)/H2-L","DNV GL 2020"]
[null,"CONV,H2-SB,BFUEL-L,,","CONV","H2-SB","BFUEL-L","","",7.9560265731287527E-6,"kwh bunker fuel (l)/(km*H2-L)","calc_shipping"]
[null,"CONV,LOHC-CON,EL,,","CONV","LOHC-CON","EL","","",0.01,"kWh (el.)/LOHC-L","DNV GL 2020"]
[null,"CONV,LOHC-REC,EL,,","CONV","LOHC-REC","EL","","",2.8502850285028507E-2,"kWh (el.)/H2-G","Staiß et al. 2022 nach Wasserscheid"]
[null,"CONV,LOHC-REC,HEAT,,","CONV","LOHC-REC","HEAT","","",0.40540540540540537,"kWh (heat)/H2-G","DNV GL 2020"]
[null,"CONV,LOHC-SB,BFUEL-L,,","CONV","LOHC-SB","BFUEL-L","","",9.9204160904178207E-6,"kwh bunker fuel (l)/(km*LOHC-L)","calc_shipping"]
[null,"CONV,NH3-REC,EL,,","CONV","NH3-REC","EL","","",7.6699999999999989E-3,"kWh (el.)/H2-G","NGN; Equinor 2018"]
[null,"CONV,NH3-SB,BFUEL-L,,","CONV","NH3-SB","BFUEL-L","","",5.3436561034163411E-6,"kwh bunker fuel (l)/(km*NH3-L)","calc_shipping"]
[null,"CONV,NH3SYN,EL,,","CONV","NH3SYN","EL","","",0.14192307692307693,"kWh (el.)/kWh NH3 (l)","Fasihi et al. 2021"]
[null,"CONV,NH3SYN,N2-G,,","CONV","NH3SYN","N2-G","","",0.15980769230769232,"kg N2 (g)/kWh NH3 (l)","Fasihi et al. 2021"]
[null,"CONV,PEM-EL,H2O-L,,","CONV","PEM-EL","H2O-L","","",0.3,"kg H2O (l)/H2-G"]
[null,"CONV,REGASATR,EL,,","CONV","REGASATR","EL","","",0.10771077107710771,"kWh (el.)/H2-G","combined values"]
[null,"CONV,SOEC-EL,H2O-L,,","CONV","SOEC-EL","H2O-L","","",0.3,"kg H2O (l)/H2-G"]
[null,"CONV,SYN-S,CHX-L,,","CONV","SYN-S","CHX-L","","",1.2641936395012889E-6,"kwh CHx (l)/(km*CHX-L)","calc_shipping"]
[null,"CONV,SYN-SB,BFUEL-L,,","CONV","SYN-SB","BFUEL-L","","",1.2641936395012889E-6,"kwh bunker fuel (l)/(km*CHX-L)","calc_shipping"]
[null,"DST-S-D,,,ARE,CHN","DST-S-D","","","ARE","CHN",10367.799999999999,null,"CERDI"]
[null,"DST-S-D,,,ARE,DEU","DST-S-D","","","ARE","DEU",12441.9,null,"CERDI"]
[null,"DST-S-D,,,ARE,ESP","DST-S-D","","","ARE","ESP",8992.74,null,"CERDI"]
[null,"DST-S-D,,,ARE,FRA","DST-S-D","","","ARE","FRA",7580.97,null,"CERDI"]
[null,"DST-S-D,,,ARE,IND","DST-S-D","","","ARE","IND",1804.27,null,"CERDI"]
[null,"DST-S-D,,,ARE,JPN","DST-S-D","","","ARE","JPN",11276.3,null,"CERDI"]
[null,"DST-S-D,,,ARE,KOR","DST-S-D","","","ARE","KOR",10955.6,null,"CERDI"]
[null,"DST-S-D,,,ARE,NLD","DST-S-D","","","ARE","NLD",11975.9,null,"CERDI"]
[null,"DST-S-D,,,ARE,USA","DST-S-D","","","ARE","USA",18373.3,null,"CERDI"]
[null,"DST-S-D,,,ARG,CHN","DST-S-D","","","ARG","CHN",19486.8,null,"CERDI"]
[null,"DST-S-D,,,ARG,DEU","DST-S-D","","","ARG","DEU",12728.796,null,"SEA-DISTANCES.ORG"]
[null,"DST-S-D,,,ARG,ESP","DST-S-D","","","ARG","ESP",11766,null,"CERDI"]
[null,"DST-S-D,,,ARG,FRA","DST-S-D","","","ARG","FRA",13195.9,null,"CERDI"]
[null,"DST-S-D,,,ARG,IND","DST-S-D","","","ARG","IND",16155.2,null,"CERDI"]
[null,"DST-S-D,,,ARG,JPN","DST-S-D","","","ARG","JPN",18848.2,null,"CERDI"]
[null,"DST-S-D,,,ARG,KOR","DST-S-D","","","ARG","KOR",19350,null,"CERDI"]
[null,"DST-S-D,,,ARG,NLD","DST-S-D","","","ARG","NLD",13750.5,null,"CERDI"]
[null,"DST-S-D,,,ARG,USA","DST-S-D","","","ARG","USA",12589.7,null,"CERDI"]
[null,"DST-S-D,,,ARG-BA,CHN","DST-S-D","","","ARG-BA","CHN",19486.8,null,"CERDI"]
[null,"DST-S-D,,,ARG-BA,DEU","DST-S-D","","","ARG-BA","DEU",12728.796,null,"SEA-DISTANCES.ORG"]
[null,"DST-S-D,,,ARG-BA,ESP","DST-S-D","","","ARG-BA","ESP",11766,null,"CERDI"]
[null,"DST-S-D,,,ARG-BA,FRA","DST-S-D","","","ARG-BA","FRA",13195.9,null,"CERDI"]
[null,"DST-S-D,,,ARG-BA,IND","DST-S-D","","","ARG-BA","IND",16155.2,null,"CERDI"]
[null,"DST-S-D,,,ARG-BA,JPN","DST-S-D","","","ARG-BA","JPN",18848.2,null,"CERDI"]
[null,"DST-S-D,,,ARG-BA,KOR","DST-S-D","","","ARG-BA","KOR",19350,null,"CERDI"]
[null,"DST-S-D,,,ARG-BA,NLD","DST-S-D","","","ARG-BA","NLD",13750.5,null,"CERDI"]
[null,"DST-S-D,,,ARG-BA,USA","DST-S-D","","","ARG-BA","USA",12589.7,null,"CERDI"]
[null,"DST-S-D,,,ARG-CAT,CHN","DST-S-D","","","ARG-CAT","CHN",19486.8,null,"CERDI"]
[null,"DST-S-D,,,ARG-CAT,DEU","DST-S-D","","","ARG-CAT","DEU",12728.796,null,"SEA-DISTANCES.ORG"]
[null,"DST-S-D,,,ARG-CAT,ESP","DST-S-D","","","ARG-CAT","ESP",11766,null,"CERDI"]
[null,"DST-S-D,,,ARG-CAT,FRA","DST-S-D","","","ARG-CAT","FRA",13195.9,null,"CERDI"]
[null,"DST-S-D,,,ARG-CAT,IND","DST-S-D","","","ARG-CAT","IND",16155.2,null,"CERDI"]
[null,"DST-S-D,,,ARG-CAT,JPN","DST-S-D","","","ARG-CAT","JPN",18848.2,null,"CERDI"]
[null,"DST-S-D,,,ARG-CAT,KOR","DST-S-D","","","ARG-CAT","KOR",19350,null,"CERDI"]
[null,"DST-S-D,,,ARG-CAT,NLD","DST-S-D","","","ARG-CAT","NLD",13750.5,null,"CERDI"]
[null,"DST-S-D,,,ARG-CAT,USA","DST-S-D","","","ARG-CAT","USA",12589.7,null,"CERDI"]
[null,"DST-S-D,,,ARG-CBA,CHN","DST-S-D","","","ARG-CBA","CHN",19486.8,null,"CERDI"]
[null,"DST-S-D,,,ARG-CBA,DEU","DST-S-D","","","ARG-CBA","DEU",12728.796,null,"SEA-DISTANCES.ORG"]
[null,"DST-S-D,,,ARG-CBA,ESP","DST-S-D","","","ARG-CBA","ESP",11766,null,"CERDI"]
[null,"DST-S-D,,,ARG-CBA,FRA","DST-S-D","","","ARG-CBA","FRA",13195.9,null,"CERDI"]
[null,"DST-S-D,,,ARG-CBA,IND","DST-S-D","","","ARG-CBA","IND",16155.2,null,"CERDI"]
[null,"DST-S-D,,,ARG-CBA,JPN","DST-S-D","","","ARG-CBA","JPN",18848.2,null,"CERDI"]
[null,"DST-S-D,,,ARG-CBA,KOR","DST-S-D","","","ARG-CBA","KOR",19350,null,"CERDI"]
[null,"DST-S-D,,,ARG-CBA,NLD","DST-S-D","","","ARG-CBA","NLD",13750.5,null,"CERDI"]
[null,"DST-S-D,,,ARG-CBA,USA","DST-S-D","","","ARG-CBA","USA",12589.7,null,"CERDI"]
[null,"DST-S-D,,,ARG-CHA,CHN","DST-S-D","","","ARG-CHA","CHN",19486.8,null,"CERDI"]
[null,"DST-S-D,,,ARG-CHA,DEU","DST-S-D","","","ARG-CHA","DEU",12728.796,null,"SEA-DISTANCES.ORG"]
[null,"DST-S-D,,,ARG-CHA,ESP","DST-S-D","","","ARG-CHA","ESP",11766,null,"CERDI"]
[null,"DST-S-D,,,ARG-CHA,FRA","DST-S-D","","","ARG-CHA","FRA",13195.9,null,"CERDI"]
[null,"DST-S-D,,,ARG-CHA,IND","DST-S-D","","","ARG-CHA","IND",16155.2,null,"CERDI"]
[null,"DST-S-D,,,ARG-CHA,JPN","DST-S-D","","","ARG-CHA","JPN",18848.2,null,"CERDI"]
[null,"DST-S-D,,,ARG-CHA,KOR","DST-S-D","","","ARG-CHA","KOR",19350,null,"CERDI"]
[null,"DST-S-D,,,ARG-CHA,NLD","DST-S-D","","","ARG-CHA","NLD",13750.5,null,"CERDI"]
[null,"DST-S-D,,,ARG-CHA,USA","DST-S-D","","","ARG-CHA","USA",12589.7,null,"CERDI"]
[null,"DST-S-D,,,ARG-CHU,CHN","DST-S-D","","","ARG-CHU","CHN",19486.8,null,"CERDI"]
[null,"DST-S-D,,,ARG-CHU,DEU","DST-S-D","","","ARG-CHU","DEU",12728.796,null,"SEA-DISTANCES.ORG"]
[null,"DST-S-D,,,ARG-CHU,ESP","DST-S-D","","","ARG-CHU","ESP",11766,null,"CERDI"]
[null,"DST-S-D,,,ARG-CHU,FRA","DST-S-D","","","ARG-CHU","FRA",13195.9,null,"CERDI"]
[null,"DST-S-D,,,ARG-CHU,IND","DST-S-D","","","ARG-CHU","IND",16155.2,null,"CERDI"]
[null,"DST-S-D,,,ARG-CHU,JPN","DST-S-D","","","ARG-CHU","JPN",18848.2,null,"CERDI"]
[null,"DST-S-D,,,ARG-CHU,KOR","DST-S-D","","","ARG-CHU","KOR",19350,null,"CERDI"]
[null,"DST-S-D,,,ARG-CHU,NLD","DST-S-D","","","ARG-CHU","NLD",13750.5,null,"CERDI"]
[null,"DST-S-D,,,ARG-CHU,USA","DST-S-D","","","ARG-CHU","USA",12589.7,null,"CERDI"]
[null,"DST-S-D,,,ARG-COR,CHN","DST-S-D","","","ARG-COR","CHN",19486.8,null,"CERDI"]
[null,"DST-S-D,,,ARG-COR,DEU","DST-S-D","","","ARG-COR","DEU",12728.796,null,"SEA-DISTANCES.ORG"]
[null,"DST-S-D,,,ARG-COR,ESP","DST-S-D","","","ARG-COR","ESP",11766,null,"CERDI"]
[null,"DST-S-D,,,ARG-COR,FRA","DST-S-D","","","ARG-COR","FRA",13195.9,null,"CERDI"]
[null,"DST-S-D,,,ARG-COR,IND","DST-S-D","","","ARG-COR","IND",16155.2,null,"CERDI"]
[null,"DST-S-D,,,ARG-COR,JPN","DST-S-D","","","ARG-COR","JPN",18848.2,null,"CERDI"]
[null,"DST-S-D,,,ARG-COR,KOR","DST-S-D","","","ARG-COR","KOR",19350,null,"CERDI"]
[null,"DST-S-D,,,ARG-COR,NLD","DST-S-D","","","ARG-COR","NLD",13750.5,null,"CERDI"]
[null,"DST-S-D,,,ARG-COR,USA","DST-S-D","","","ARG-COR","USA",12589.7,null,"CERDI"]
[null,"DST-S-D,,,ARG-CRB,CHN","DST-S-D","","","ARG-CRB","CHN",19486.8,null,"CERDI"]
[null,"DST-S-D,,,ARG-CRB,DEU","DST-S-D","","","ARG-CRB","DEU",12728.796,null,"SEA-DISTANCES.ORG"]
[null,"DST-S-D,,,ARG-CRB,ESP","DST-S-D","","","ARG-CRB","ESP",11766,null,"CERDI"]
[null,"DST-S-D,,,ARG-CRB,FRA","DST-S-D","","","ARG-CRB","FRA",13195.9,null,"CERDI"]
[null,"DST-S-D,,,ARG-CRB,IND","DST-S-D","","","ARG-CRB","IND",16155.2,null,"CERDI"]
[null,"DST-S-D,,,ARG-CRB,JPN","DST-S-D","","","ARG-CRB","JPN",18848.2,null,"CERDI"]
[null,"DST-S-D,,,ARG-CRB,KOR","DST-S-D","","","ARG-CRB","KOR",19350,null,"CERDI"]
[null,"DST-S-D,,,ARG-CRB,NLD","DST-S-D","","","ARG-CRB","NLD",13750.5,null,"CERDI"]
[null,"DST-S-D,,,ARG-CRB,USA","DST-S-D","","","ARG-CRB","USA",12589.7,null,"CERDI"]
[null,"DST-S-D,,,ARG-CRU,CHN","DST-S-D","","","ARG-CRU","CHN",19486.8,null,"CERDI"]
[null,"DST-S-D,,,ARG-CRU,DEU","DST-S-D","","","ARG-CRU","DEU",12728.796,null,"SEA-DISTANCES.ORG"]
[null,"DST-S-D,,,ARG-CRU,ESP","DST-S-D","","","ARG-CRU","ESP",11766,null,"CERDI"]
[null,"DST-S-D,,,ARG-CRU,FRA","DST-S-D","","","ARG-CRU","FRA",13195.9,null,"CERDI"]
[null,"DST-S-D,,,ARG-CRU,IND","DST-S-D","","","ARG-CRU","IND",16155.2,null,"CERDI"]
[null,"DST-S-D,,,ARG-CRU,JPN","DST-S-D","","","ARG-CRU","JPN",18848.2,null,"CERDI"]
[null,"DST-S-D,,,ARG-CRU,KOR","DST-S-D","","","ARG-CRU","KOR",19350,null,"CERDI"]
[null,"DST-S-D,,,ARG-CRU,NLD","DST-S-D","","","ARG-CRU","NLD",13750.5,null,"CERDI"]
[null,"DST-S-D,,,ARG-CRU,USA","DST-S-D","","","ARG-CRU","USA",12589.7,null,"CERDI"]
[null,"DST-S-D,,,ARG-EST,CHN","DST-S-D","","","ARG-EST","CHN",19486.8,null,"CERDI"]
[null,"DST-S-D,,,ARG-EST,DEU","DST-S-D","","","ARG-EST","DEU",12728.796,null,"SEA-DISTANCES.ORG"]
[null,"DST-S-D,,,ARG-EST,ESP","DST-S-D","","","ARG-EST","ESP",11766,null,"CERDI"]
[null,"DST-S-D,,,ARG-EST,FRA","DST-S-D","","","ARG-EST","FRA",13195.9,null,"CERDI"]
[null,"DST-S-D,,,ARG-EST,IND","DST-S-D","","","ARG-EST","IND",16155.2,null,"CERDI"]
[null,"DST-S-D,,,ARG-EST,JPN","DST-S-D","","","ARG-EST","JPN",18848.2,null,"CERDI"]
[null,"DST-S-D,,,ARG-EST,KOR","DST-S-D","","","ARG-EST","KOR",19350,null,"CERDI"]
[null,"DST-S-D,,,ARG-EST,NLD","DST-S-D","","","ARG-EST","NLD",13750.5,null,"CERDI"]
[null,"DST-S-D,,,ARG-EST,USA","DST-S-D","","","ARG-EST","USA",12589.7,null,"CERDI"]
[null,"DST-S-D,,,ARG-FOR,CHN","DST-S-D","","","ARG-FOR","CHN",19486.8,null,"CERDI"]
[null,"DST-S-D,,,ARG-FOR,DEU","DST-S-D","","","ARG-FOR","DEU",12728.796,null,"SEA-DISTANCES.ORG"]
[null,"DST-S-D,,,ARG-FOR,ESP","DST-S-D","","","ARG-FOR","ESP",11766,null,"CERDI"]
[null,"DST-S-D,,,ARG-FOR,FRA","DST-S-D","","","ARG-FOR","FRA",13195.9,null,"CERDI"]
[null,"DST-S-D,,,ARG-FOR,IND","DST-S-D","","","ARG-FOR","IND",16155.2,null,"CERDI"]
[null,"DST-S-D,,,ARG-FOR,JPN","DST-S-D","","","ARG-FOR","JPN",18848.2,null,"CERDI"]
[null,"DST-S-D,,,ARG-FOR,KOR","DST-S-D","","","ARG-FOR","KOR",19350,null,"CERDI"]
[null,"DST-S-D,,,ARG-FOR,NLD","DST-S-D","","","ARG-FOR","NLD",13750.5,null,"CERDI"]
[null,"DST-S-D,,,ARG-FOR,USA","DST-S-D","","","ARG-FOR","USA",12589.7,null,"CERDI"]
[null,"DST-S-D,,,ARG-FUE,CHN","DST-S-D","","","ARG-FUE","CHN",19486.8,null,"CERDI"]
[null,"DST-S-D,,,ARG-FUE,DEU","DST-S-D","","","ARG-FUE","DEU",12728.796,null,"SEA-DISTANCES.ORG"]
[null,"DST-S-D,,,ARG-FUE,ESP","DST-S-D","","","ARG-FUE","ESP",11766,null,"CERDI"]
[null,"DST-S-D,,,ARG-FUE,FRA","DST-S-D","","","ARG-FUE","FRA",13195.9,null,"CERDI"]
[null,"DST-S-D,,,ARG-FUE,IND","DST-S-D","","","ARG-FUE","IND",16155.2,null,"CERDI"]
[null,"DST-S-D,,,ARG-FUE,JPN","DST-S-D","","","ARG-FUE","JPN",18848.2,null,"CERDI"]
[null,"DST-S-D,,,ARG-FUE,KOR","DST-S-D","","","ARG-FUE","KOR",19350,null,"CERDI"]
[null,"DST-S-D,,,ARG-FUE,NLD","DST-S-D","","","ARG-FUE","NLD",13750.5,null,"CERDI"]
[null,"DST-S-D,,,ARG-FUE,USA","DST-S-D","","","ARG-FUE","USA",12589.7,null,"CERDI"]
[null,"DST-S-D,,,ARG-JUJ,CHN","DST-S-D","","","ARG-JUJ","CHN",19486.8,null,"CERDI"]
[null,"DST-S-D,,,ARG-JUJ,DEU","DST-S-D","","","ARG-JUJ","DEU",12728.796,null,"SEA-DISTANCES.ORG"]
[null,"DST-S-D,,,ARG-JUJ,ESP","DST-S-D","","","ARG-JUJ","ESP",11766,null,"CERDI"]
[null,"DST-S-D,,,ARG-JUJ,FRA","DST-S-D","","","ARG-JUJ","FRA",13195.9,null,"CERDI"]
[null,"DST-S-D,,,ARG-JUJ,IND","DST-S-D","","","ARG-JUJ","IND",16155.2,null,"CERDI"]
[null,"DST-S-D,,,ARG-JUJ,JPN","DST-S-D","","","ARG-JUJ","JPN",18848.2,null,"CERDI"]
[null,"DST-S-D,,,ARG-JUJ,KOR","DST-S-D","","","ARG-JUJ","KOR",19350,null,"CERDI"]
[null,"DST-S-D,,,ARG-JUJ,NLD","DST-S-D","","","ARG-JUJ","NLD",13750.5,null,"CERDI"]
[null,"DST-S-D,,,ARG-JUJ,USA","DST-S-D","","","ARG-JUJ","USA",12589.7,null,"CERDI"]
[null,"DST-S-D,,,ARG-LAR,CHN","DST-S-D","","","ARG-LAR","CHN",19486.8,null,"CERDI"]
[null,"DST-S-D,,,ARG-LAR,DEU","DST-S-D","","","ARG-LAR","DEU",12728.796,null,"SEA-DISTANCES.ORG"]
[null,"DST-S-D,,,ARG-LAR,ESP","DST-S-D","","","ARG-LAR","ESP",11766,null,"CERDI"]
[null,"DST-S-D,,,ARG-LAR,FRA","DST-S-D","","","ARG-LAR","FRA",13195.9,null,"CERDI"]
[null,"DST-S-D,,,ARG-LAR,IND","DST-S-D","","","ARG-LAR","IND",16155.2,null,"CERDI"]
[null,"DST-S-D,,,ARG-LAR,JPN","DST-S-D","","","ARG-LAR","JPN",18848.2,null,"CERDI"]
[null,"DST-S-D,,,ARG-LAR,KOR","DST-S-D","","","ARG-LAR","KOR",19350,null,"CERDI"]
[null,"DST-S-D,,,ARG-LAR,NLD","DST-S-D","","","ARG-LAR","NLD",13750.5,null,"CERDI"]
[null,"DST-S-D,,,ARG-LAR,USA","DST-S-D","","","ARG-LAR","USA",12589.7,null,"CERDI"]
[null,"DST-S-D,,,ARG-MEN,CHN","DST-S-D","","","ARG-MEN","CHN",19486.8,null,"CERDI"]
[null,"DST-S-D,,,ARG-MEN,DEU","DST-S-D","","","ARG-MEN","DEU",12728.796,null,"SEA-DISTANCES.ORG"]
[null,"DST-S-D,,,ARG-MEN,ESP","DST-S-D","","","ARG-MEN","ESP",11766,null,"CERDI"]
[null,"DST-S-D,,,ARG-MEN,FRA","DST-S-D","","","ARG-MEN","FRA",13195.9,null,"CERDI"]
[null,"DST-S-D,,,ARG-MEN,IND","DST-S-D","","","ARG-MEN","IND",16155.2,null,"CERDI"]
[null,"DST-S-D,,,ARG-MEN,JPN","DST-S-D","","","ARG-MEN","JPN",18848.2,null,"CERDI"]
[null,"DST-S-D,,,ARG-MEN,KOR","DST-S-D","","","ARG-MEN","KOR",19350,null,"CERDI"]
[null,"DST-S-D,,,ARG-MEN,NLD","DST-S-D","","","ARG-MEN","NLD",13750.5,null,"CERDI"]
[null,"DST-S-D,,,ARG-MEN,USA","DST-S-D","","","ARG-MEN","USA",12589.7,null,"CERDI"]
[null,"DST-S-D,,,ARG-MIS,CHN","DST-S-D","","","ARG-MIS","CHN",19486.8,null,"CERDI"]
[null,"DST-S-D,,,ARG-MIS,DEU","DST-S-D","","","ARG-MIS","DEU",12728.796,null,"SEA-DISTANCES.ORG"]
[null,"DST-S-D,,,ARG-MIS,ESP","DST-S-D","","","ARG-MIS","ESP",11766,null,"CERDI"]
[null,"DST-S-D,,,ARG-MIS,FRA","DST-S-D","","","ARG-MIS","FRA",13195.9,null,"CERDI"]
[null,"DST-S-D,,,ARG-MIS,IND","DST-S-D","","","ARG-MIS","IND",16155.2,null,"CERDI"]
[null,"DST-S-D,,,ARG-MIS,JPN","DST-S-D","","","ARG-MIS","JPN",18848.2,null,"CERDI"]
[null,"DST-S-D,,,ARG-MIS,KOR","DST-S-D","","","ARG-MIS","KOR",19350,null,"CERDI"]
[null,"DST-S-D,,,ARG-MIS,NLD","DST-S-D","","","ARG-MIS","NLD",13750.5,null,"CERDI"]
[null,"DST-S-D,,,ARG-MIS,USA","DST-S-D","","","ARG-MIS","USA",12589.7,null,"CERDI"]
[null,"DST-S-D,,,ARG-NEG,CHN","DST-S-D","","","ARG-NEG","CHN",19486.8,null,"CERDI"]
[null,"DST-S-D,,,ARG-NEG,DEU","DST-S-D","","","ARG-NEG","DEU",12728.796,null,"SEA-DISTANCES.ORG"]
[null,"DST-S-D,,,ARG-NEG,ESP","DST-S-D","","","ARG-NEG","ESP",11766,null,"CERDI"]
[null,"DST-S-D,,,ARG-NEG,FRA","DST-S-D","","","ARG-NEG","FRA",13195.9,null,"CERDI"]
[null,"DST-S-D,,,ARG-NEG,IND","DST-S-D","","","ARG-NEG","IND",16155.2,null,"CERDI"]
[null,"DST-S-D,,,ARG-NEG,JPN","DST-S-D","","","ARG-NEG","JPN",18848.2,null,"CERDI"]
[null,"DST-S-D,,,ARG-NEG,KOR","DST-S-D","","","ARG-NEG","KOR",19350,null,"CERDI"]
[null,"DST-S-D,,,ARG-NEG,NLD","DST-S-D","","","ARG-NEG","NLD",13750.5,null,"CERDI"]
[null,"DST-S-D,,,ARG-NEG,USA","DST-S-D","","","ARG-NEG","USA",12589.7,null,"CERDI"]
[null,"DST-S-D,,,ARG-NEU,CHN","DST-S-D","","","ARG-NEU","CHN",19486.8,null,"CERDI"]
[null,"DST-S-D,,,ARG-NEU,DEU","DST-S-D","","","ARG-NEU","DEU",12728.796,null,"SEA-DISTANCES.ORG"]
[null,"DST-S-D,,,ARG-NEU,ESP","DST-S-D","","","ARG-NEU","ESP",11766,null,"CERDI"]
[null,"DST-S-D,,,ARG-NEU,FRA","DST-S-D","","","ARG-NEU","FRA",13195.9,null,"CERDI"]
[null,"DST-S-D,,,ARG-NEU,IND","DST-S-D","","","ARG-NEU","IND",16155.2,null,"CERDI"]
[null,"DST-S-D,,,ARG-NEU,JPN","DST-S-D","","","ARG-NEU","JPN",18848.2,null,"CERDI"]
[null,"DST-S-D,,,ARG-NEU,KOR","DST-S-D","","","ARG-NEU","KOR",19350,null,"CERDI"]
[null,"DST-S-D,,,ARG-NEU,NLD","DST-S-D","","","ARG-NEU","NLD",13750.5,null,"CERDI"]
[null,"DST-S-D,,,ARG-NEU,USA","DST-S-D","","","ARG-NEU","USA",12589.7,null,"CERDI"]
[null,"DST-S-D,,,ARG-PAM,CHN","DST-S-D","","","ARG-PAM","CHN",19486.8,null,"CERDI"]
[null,"DST-S-D,,,ARG-PAM,DEU","DST-S-D","","","ARG-PAM","DEU",12728.796,null,"SEA-DISTANCES.ORG"]
[null,"DST-S-D,,,ARG-PAM,ESP","DST-S-D","","","ARG-PAM","ESP",11766,null,"CERDI"]
[null,"DST-S-D,,,ARG-PAM,FRA","DST-S-D","","","ARG-PAM","FRA",13195.9,null,"CERDI"]
[null,"DST-S-D,,,ARG-PAM,IND","DST-S-D","","","ARG-PAM","IND",16155.2,null,"CERDI"]
[null,"DST-S-D,,,ARG-PAM,JPN","DST-S-D","","","ARG-PAM","JPN",18848.2,null,"CERDI"]
[null,"DST-S-D,,,ARG-PAM,KOR","DST-S-D","","","ARG-PAM","KOR",19350,null,"CERDI"]
[null,"DST-S-D,,,ARG-PAM,NLD","DST-S-D","","","ARG-PAM","NLD",13750.5,null,"CERDI"]
[null,"DST-S-D,,,ARG-PAM,USA","DST-S-D","","","ARG-PAM","USA",12589.7,null,"CERDI"]
[null,"DST-S-D,,,ARG-RIO,CHN","DST-S-D","","","ARG-RIO","CHN",19486.8,null,"CERDI"]
[null,"DST-S-D,,,ARG-RIO,DEU","DST-S-D","","","ARG-RIO","DEU",12728.796,null,"SEA-DISTANCES.ORG"]
[null,"DST-S-D,,,ARG-RIO,ESP","DST-S-D","","","ARG-RIO","ESP",11766,null,"CERDI"]
[null,"DST-S-D,,,ARG-RIO,FRA","DST-S-D","","","ARG-RIO","FRA",13195.9,null,"CERDI"]
[null,"DST-S-D,,,ARG-RIO,IND","DST-S-D","","","ARG-RIO","IND",16155.2,null,"CERDI"]
[null,"DST-S-D,,,ARG-RIO,JPN","DST-S-D","","","ARG-RIO","JPN",18848.2,null,"CERDI"]
[null,"DST-S-D,,,ARG-RIO,KOR","DST-S-D","","","ARG-RIO","KOR",19350,null,"CERDI"]
[null,"DST-S-D,,,ARG-RIO,NLD","DST-S-D","","","ARG-RIO","NLD",13750.5,null,"CERDI"]
[null,"DST-S-D,,,ARG-RIO,USA","DST-S-D","","","ARG-RIO","USA",12589.7,null,"CERDI"]
[null,"DST-S-D,,,ARG-SAF,CHN","DST-S-D","","","ARG-SAF","CHN",19486.8,null,"CERDI"]
[null,"DST-S-D,,,ARG-SAF,DEU","DST-S-D","","","ARG-SAF","DEU",12728.796,null,"SEA-DISTANCES.ORG"]
[null,"DST-S-D,,,ARG-SAF,ESP","DST-S-D","","","ARG-SAF","ESP",11766,null,"CERDI"]
[null,"DST-S-D,,,ARG-SAF,FRA","DST-S-D","","","ARG-SAF","FRA",13195.9,null,"CERDI"]
[null,"DST-S-D,,,ARG-SAF,IND","DST-S-D","","","ARG-SAF","IND",16155.2,null,"CERDI"]
[null,"DST-S-D,,,ARG-SAF,JPN","DST-S-D","","","ARG-SAF","JPN",18848.2,null,"CERDI"]
[null,"DST-S-D,,,ARG-SAF,KOR","DST-S-D","","","ARG-SAF","KOR",19350,null,"CERDI"]
[null,"DST-S-D,,,ARG-SAF,NLD","DST-S-D","","","ARG-SAF","NLD",13750.5,null,"CERDI"]
[null,"DST-S-D,,,ARG-SAF,USA","DST-S-D","","","ARG-SAF","USA",12589.7,null,"CERDI"]
[null,"DST-S-D,,,ARG-SAJ,CHN","DST-S-D","","","ARG-SAJ","CHN",19486.8,null,"CERDI"]
[null,"DST-S-D,,,ARG-SAJ,DEU","DST-S-D","","","ARG-SAJ","DEU",12728.796,null,"SEA-DISTANCES.ORG"]
[null,"DST-S-D,,,ARG-SAJ,ESP","DST-S-D","","","ARG-SAJ","ESP",11766,null,"CERDI"]
[null,"DST-S-D,,,ARG-SAJ,FRA","DST-S-D","","","ARG-SAJ","FRA",13195.9,null,"CERDI"]
[null,"DST-S-D,,,ARG-SAJ,IND","DST-S-D","","","ARG-SAJ","IND",16155.2,null,"CERDI"]
[null,"DST-S-D,,,ARG-SAJ,JPN","DST-S-D","","","ARG-SAJ","JPN",18848.2,null,"CERDI"]
[null,"DST-S-D,,,ARG-SAJ,KOR","DST-S-D","","","ARG-SAJ","KOR",19350,null,"CERDI"]
[null,"DST-S-D,,,ARG-SAJ,NLD","DST-S-D","","","ARG-SAJ","NLD",13750.5,null,"CERDI"]
[null,"DST-S-D,,,ARG-SAJ,USA","DST-S-D","","","ARG-SAJ","USA",12589.7,null,"CERDI"]
[null,"DST-S-D,,,ARG-SAL,CHN","DST-S-D","","","ARG-SAL","CHN",19486.8,null,"CERDI"]
[null,"DST-S-D,,,ARG-SAL,DEU","DST-S-D","","","ARG-SAL","DEU",12728.796,null,"SEA-DISTANCES.ORG"]
[null,"DST-S-D,,,ARG-SAL,ESP","DST-S-D","","","ARG-SAL","ESP",11766,null,"CERDI"]
[null,"DST-S-D,,,ARG-SAL,FRA","DST-S-D","","","ARG-SAL","FRA",13195.9,null,"CERDI"]
[null,"DST-S-D,,,ARG-SAL,IND","DST-S-D","","","ARG-SAL","IND",16155.2,null,"CERDI"]
[null,"DST-S-D,,,ARG-SAL,JPN","DST-S-D","","","ARG-SAL","JPN",18848.2,null,"CERDI"]
[null,"DST-S-D,,,ARG-SAL,KOR","DST-S-D","","","ARG-SAL","KOR",19350,null,"CERDI"]
[null,"DST-S-D,,,ARG-SAL,NLD","DST-S-D","","","ARG-SAL","NLD",13750.5,null,"CERDI"]
[null,"DST-S-D,,,ARG-SAL,USA","DST-S-D","","","ARG-SAL","USA",12589.7,null,"CERDI"]
[null,"DST-S-D,,,ARG-SAT,CHN","DST-S-D","","","ARG-SAT","CHN",19486.8,null,"CERDI"]
[null,"DST-S-D,,,ARG-SAT,DEU","DST-S-D","","","ARG-SAT","DEU",12728.796,null,"SEA-DISTANCES.ORG"]
[null,"DST-S-D,,,ARG-SAT,ESP","DST-S-D","","","ARG-SAT","ESP",11766,null,"CERDI"]
[null,"DST-S-D,,,ARG-SAT,FRA","DST-S-D","","","ARG-SAT","FRA",13195.9,null,"CERDI"]
[null,"DST-S-D,,,ARG-SAT,IND","DST-S-D","","","ARG-SAT","IND",16155.2,null,"CERDI"]
[null,"DST-S-D,,,ARG-SAT,JPN","DST-S-D","","","ARG-SAT","JPN",18848.2,null,"CERDI"]
[null,"DST-S-D,,,ARG-SAT,KOR","DST-S-D","","","ARG-SAT","KOR",19350,null,"CERDI"]
[null,"DST-S-D,,,ARG-SAT,NLD","DST-S-D","","","ARG-SAT","NLD",13750.5,null,"CERDI"]
[null,"DST-S-D,,,ARG-SAT,USA","DST-S-D","","","ARG-SAT","USA",12589.7,null,"CERDI"]
[null,"DST-S-D,,,ARG-TUC,CHN","DST-S-D","","","ARG-TUC","CHN",19486.8,null,"CERDI"]
[null,"DST-S-D,,,ARG-TUC,DEU","DST-S-D","","","ARG-TUC","DEU",12728.796,null,"SEA-DISTANCES.ORG"]
[null,"DST-S-D,,,ARG-TUC,ESP","DST-S-D","","","ARG-TUC","ESP",11766,null,"CERDI"]
[null,"DST-S-D,,,ARG-TUC,FRA","DST-S-D","","","ARG-TUC","FRA",13195.9,null,"CERDI"]
[null,"DST-S-D,,,ARG-TUC,IND","DST-S-D","","","ARG-TUC","IND",16155.2,null,"CERDI"]
[null,"DST-S-D,,,ARG-TUC,JPN","DST-S-D","","","ARG-TUC","JPN",18848.2,null,"CERDI"]
[null,"DST-S-D,,,ARG-TUC,KOR","DST-S-D","","","ARG-TUC","KOR",19350,null,"CERDI"]
[null,"DST-S-D,,,ARG-TUC,NLD","DST-S-D","","","ARG-TUC","NLD",13750.5,null,"CERDI"]
[null,"DST-S-D,,,ARG-TUC,USA","DST-S-D","","","ARG-TUC","USA",12589.7,null,"CERDI"]
[null,"DST-S-D,,,AUS,CHN","DST-S-D","","","AUS","CHN",10024.9,null,"CERDI"]
[null,"DST-S-D,,,AUS,DEU","DST-S-D","","","AUS","DEU",21212.3,null,"CERDI"]
[null,"DST-S-D,,,AUS,ESP","DST-S-D","","","AUS","ESP",17760.900000000001,null,"CERDI"]
[null,"DST-S-D,,,AUS,FRA","DST-S-D","","","AUS","FRA",16854,null,"CERDI"]
[null,"DST-S-D,,,AUS,IND","DST-S-D","","","AUS","IND",10647.6,null,"CERDI"]
[null,"DST-S-D,,,AUS,JPN","DST-S-D","","","AUS","JPN",9845.85,null,"CERDI"]
[null,"DST-S-D,,,AUS,KOR","DST-S-D","","","AUS","KOR",10153.5,null,"CERDI"]
[null,"DST-S-D,,,AUS,NLD","DST-S-D","","","AUS","NLD",20628.3,null,"CERDI"]
[null,"DST-S-D,,,AUS,USA","DST-S-D","","","AUS","USA",12771.9,null,"CERDI"]
[null,"DST-S-D,,,BRA,CHN","DST-S-D","","","BRA","CHN",21462,null,"CERDI"]
[null,"DST-S-D,,,BRA,DEU","DST-S-D","","","BRA","DEU",10409.5,null,"CERDI"]
[null,"DST-S-D,,,BRA,ESP","DST-S-D","","","BRA","ESP",8824.26,null,"CERDI"]
[null,"DST-S-D,,,BRA,FRA","DST-S-D","","","BRA","FRA",9895.24,null,"CERDI"]
[null,"DST-S-D,,,BRA,IND","DST-S-D","","","BRA","IND",15751.1,null,"CERDI"]
[null,"DST-S-D,,,BRA,JPN","DST-S-D","","","BRA","JPN",22369.4,null,"CERDI"]
[null,"DST-S-D,,,BRA,KOR","DST-S-D","","","BRA","KOR",22048.5,null,"CERDI"]
[null,"DST-S-D,,,BRA,NLD","DST-S-D","","","BRA","NLD",10110.1,null,"CERDI"]
[null,"DST-S-D,,,BRA,USA","DST-S-D","","","BRA","USA",9777.43,null,"CERDI"]
[null,"DST-S-D,,,CHL,CHN","DST-S-D","","","CHL","CHN",18238,null,"CERDI"]
[null,"DST-S-D,,,CHL,DEU","DST-S-D","","","CHL","DEU",12511.9,null,"CERDI"]
[null,"DST-S-D,,,CHL,ESP","DST-S-D","","","CHL","ESP",13257.8,null,"CERDI"]
[null,"DST-S-D,,,CHL,FRA","DST-S-D","","","CHL","FRA",14328.9,null,"CERDI"]
[null,"DST-S-D,,,CHL,IND","DST-S-D","","","CHL","IND",20076.400000000001,null,"CERDI"]
[null,"DST-S-D,,,CHL,JPN","DST-S-D","","","CHL","JPN",16934.8,null,"CERDI"]
[null,"DST-S-D,,,CHL,KOR","DST-S-D","","","CHL","KOR",17656.2,null,"CERDI"]
[null,"DST-S-D,,,CHL,NLD","DST-S-D","","","CHL","NLD",12212.5,null,"CERDI"]
[null,"DST-S-D,,,CHL,USA","DST-S-D","","","CHL","USA",8511.36,null,"CERDI"]
[null,"DST-S-D,,,CHN,DEU","DST-S-D","","","CHN","DEU",20484.900000000001,null,"CERDI"]
[null,"DST-S-D,,,CHN,ESP","DST-S-D","","","CHN","ESP",16840.5,null,"CERDI"]
[null,"DST-S-D,,,CHN,FRA","DST-S-D","","","CHN","FRA",15425.3,null,"CERDI"]
[null,"DST-S-D,,,CHN,IND","DST-S-D","","","CHN","IND",8761.85,null,"CERDI"]
[null,"DST-S-D,,,CHN,JPN","DST-S-D","","","CHN","JPN",1458.02,null,"CERDI"]
[null,"DST-S-D,,,CHN,KOR","DST-S-D","","","CHN","KOR",659.33900000000006,null,"CERDI"]
[null,"DST-S-D,,,CHN,NLD","DST-S-D","","","CHN","NLD",19901,null,"CERDI"]
[null,"DST-S-D,,,CHN,USA","DST-S-D","","","CHN","USA",10401.4,null,"CERDI"]
[null,"DST-S-D,,,COL,CHN","DST-S-D","","","COL","CHN",16752,"km","CERDI"]
[null,"DST-S-D,,,COL,DEU","DST-S-D","","","COL","DEU",9250.74,"km","SEA-DISTANCES.ORG"]
[null,"DST-S-D,,,COL,ESP","DST-S-D","","","COL","ESP",7282,"km","CERDI"]
[null,"DST-S-D,,,COL,FRA","DST-S-D","","","COL","FRA",8323,"km","CERDI"]
[null,"DST-S-D,,,COL,IND","DST-S-D","","","COL","IND",17936,"km","CERDI"]
[null,"DST-S-D,,,COL,JPN","DST-S-D","","","COL","JPN",15390,"km","CERDI"]
[null,"DST-S-D,,,COL,KOR","DST-S-D","","","COL","KOR",16112,"km","CERDI"]
[null,"DST-S-D,,,COL,NLD","DST-S-D","","","COL","NLD",8361.7800000000007,"km","SEA-DISTANCES.ORG"]
[null,"DST-S-D,,,COL,USA","DST-S-D","","","COL","USA",2242,"km","CERDI"]
[null,"DST-S-D,,,CRI,CHN","DST-S-D","","","CRI","CHN",16735.5,null,"CERDI"]
[null,"DST-S-D,,,CRI,DEU","DST-S-D","","","CRI","DEU",7422.6,null,"CERDI"]
[null,"DST-S-D,,,CRI,ESP","DST-S-D","","","CRI","ESP",8028.79,null,"CERDI"]
[null,"DST-S-D,,,CRI,FRA","DST-S-D","","","CRI","FRA",9099.84,null,"CERDI"]
[null,"DST-S-D,,,CRI,IND","DST-S-D","","","CRI","IND",18692.900000000001,null,"CERDI"]
[null,"DST-S-D,,,CRI,JPN","DST-S-D","","","CRI","JPN",15373.2,null,"CERDI"]
[null,"DST-S-D,,,CRI,KOR","DST-S-D","","","CRI","KOR",16095.6,null,"CERDI"]
[null,"DST-S-D,,,CRI,NLD","DST-S-D","","","CRI","NLD",7150.86,null,"CERDI"]
[null,"DST-S-D,,,CRI,USA","DST-S-D","","","CRI","USA",2590.9699999999998,null,"CERDI"]
[null,"DST-S-D,,,DNK,CHN","DST-S-D","","","DNK","CHN",21206.9,null,"CERDI"]
[null,"DST-S-D,,,DNK,DEU","DST-S-D","","","DNK","DEU",814.84100000000001,null,"CERDI"]
[null,"DST-S-D,,,DNK,ESP","DST-S-D","","","DNK","ESP",2403.9,null,"SEA-DISTANCES.ORG"]
[null,"DST-S-D,,,DNK,FRA","DST-S-D","","","DNK","FRA",1859.4080000000001,null,"SEA-DISTANCES.ORG"]
[null,"DST-S-D,,,DNK,IND","DST-S-D","","","DNK","IND",13318,null,"CERDI"]
[null,"DST-S-D,,,DNK,JPN","DST-S-D","","","DNK","JPN",22113.599999999999,null,"CERDI"]
[null,"DST-S-D,,,DNK,KOR","DST-S-D","","","DNK","KOR",21793,null,"CERDI"]
[null,"DST-S-D,,,DNK,NLD","DST-S-D","","","DNK","NLD",1117.3499999999999,null,"CERDI"]
[null,"DST-S-D,,,DNK,USA","DST-S-D","","","DNK","USA",8659.0300000000007,null,"CERDI"]
[null,"DST-S-D,,,DZA,CHN","DST-S-D","","","DZA","CHN",16414.7,null,"CERDI"]
[null,"DST-S-D,,,DZA,DEU","DST-S-D","","","DZA","DEU",3174.14,null,"CERDI"]
[null,"DST-S-D,,,DZA,ESP","DST-S-D","","","DZA","ESP",449.37400000000002,null,"CERDI"]
[null,"DST-S-D,,,DZA,FRA","DST-S-D","","","DZA","FRA",863.68899999999996,null,"CERDI"]
[null,"DST-S-D,,,DZA,IND","DST-S-D","","","DZA","IND",8829.52,null,"CERDI"]
[null,"DST-S-D,,,DZA,JPN","DST-S-D","","","DZA","JPN",17389.099999999999,null,"CERDI"]
[null,"DST-S-D,,,DZA,KOR","DST-S-D","","","DZA","KOR",17085.5,null,"CERDI"]
[null,"DST-S-D,,,DZA,NLD","DST-S-D","","","DZA","NLD",2860.67,null,"CERDI"]
[null,"DST-S-D,,,DZA,USA","DST-S-D","","","DZA","USA",9072.02,null,"CERDI"]
[null,"DST-S-D,,,EGY,CHN","DST-S-D","","","EGY","CHN",13389.8,null,"CERDI"]
[null,"DST-S-D,,,EGY,DEU","DST-S-D","","","EGY","DEU",6629.18,null,"CERDI"]
[null,"DST-S-D,,,EGY,ESP","DST-S-D","","","EGY","ESP",3408.43,null,"CERDI"]
[null,"DST-S-D,,,EGY,FRA","DST-S-D","","","EGY","FRA",2024.05,null,"CERDI"]
[null,"DST-S-D,,,EGY,IND","DST-S-D","","","EGY","IND",5810.46,null,"CERDI"]
[null,"DST-S-D,,,EGY,JPN","DST-S-D","","","EGY","JPN",14387.6,null,"CERDI"]
[null,"DST-S-D,,,EGY,KOR","DST-S-D","","","EGY","KOR",14066.7,null,"CERDI"]
[null,"DST-S-D,,,EGY,NLD","DST-S-D","","","EGY","NLD",6261.57,null,"CERDI"]
[null,"DST-S-D,,,EGY,USA","DST-S-D","","","EGY","USA",12612.9,null,"CERDI"]
[null,"DST-S-D,,,ESP,CHN","DST-S-D","","","ESP","CHN",16838.3,null,"CERDI"]
[null,"DST-S-D,,,ESP,DEU","DST-S-D","","","ESP","DEU",2697.76,null,"CERDI"]
[null,"DST-S-D,,,ESP,FRA","DST-S-D","","","ESP","FRA",342.62,null,"SEA-DISTANCES.ORG"]
[null,"DST-S-D,,,ESP,IND","DST-S-D","","","ESP","IND",9253.6200000000008,null,"CERDI"]
[null,"DST-S-D,,,ESP,JPN","DST-S-D","","","ESP","JPN",17812.599999999999,null,"CERDI"]
[null,"DST-S-D,,,ESP,KOR","DST-S-D","","","ESP","KOR",17509,null,"CERDI"]
[null,"DST-S-D,,,ESP,NLD","DST-S-D","","","ESP","NLD",1427.89,null,"SEA-DISTANCES.ORG"]
[null,"DST-S-D,,,ESP,USA","DST-S-D","","","ESP","USA",8601.06,null,"CERDI"]
[null,"DST-S-D,,,IDN,CHN","DST-S-D","","","IDN","CHN",4900.57,null,"CERDI"]
[null,"DST-S-D,,,IDN,DEU","DST-S-D","","","IDN","DEU",16946.8,null,"CERDI"]
[null,"DST-S-D,,,IDN,ESP","DST-S-D","","","IDN","ESP",13236.9,null,"CERDI"]
[null,"DST-S-D,,,IDN,FRA","DST-S-D","","","IDN","FRA",11693.4,null,"CERDI"]
[null,"DST-S-D,,,IDN,IND","DST-S-D","","","IDN","IND",5100.03,null,"CERDI"]
[null,"DST-S-D,,,IDN,JPN","DST-S-D","","","IDN","JPN",5807.96,null,"CERDI"]
[null,"DST-S-D,,,IDN,KOR","DST-S-D","","","IDN","KOR",5487.17,null,"CERDI"]
[null,"DST-S-D,,,IDN,NLD","DST-S-D","","","IDN","NLD",16421,null,"CERDI"]
[null,"DST-S-D,,,IDN,USA","DST-S-D","","","IDN","USA",13999.4,null,"CERDI"]
[null,"DST-S-D,,,IND,CHN","DST-S-D","","","IND","CHN",8761.3799999999992,null,"CERDI"]
[null,"DST-S-D,,,IND,DEU","DST-S-D","","","IND","DEU",12687.7,null,"CERDI"]
[null,"DST-S-D,,,IND,ESP","DST-S-D","","","IND","ESP",9254.24,null,"CERDI"]
[null,"DST-S-D,,,IND,FRA","DST-S-D","","","IND","FRA",8441.42,null,"SEA-DISTANCES.ORG"]
[null,"DST-S-D,,,IND,JPN","DST-S-D","","","IND","JPN",9668.61,null,"CERDI"]
[null,"DST-S-D,,,IND,KOR","DST-S-D","","","IND","KOR",9347.85,null,"CERDI"]
[null,"DST-S-D,,,IND,NLD","DST-S-D","","","IND","NLD",12221.7,null,"CERDI"]
[null,"DST-S-D,,,IND,USA","DST-S-D","","","IND","USA",18312.2,null,"CERDI"]
[null,"DST-S-D,,,JOR,CHN","DST-S-D","","","JOR","CHN",13090.6,null,"CERDI"]
[null,"DST-S-D,,,JOR,DEU","DST-S-D","","","JOR","DEU",7488.73,null,"CERDI"]
[null,"DST-S-D,,,JOR,ESP","DST-S-D","","","JOR","ESP",3457.7,null,"SEA-DISTANCES.ORG"]
[null,"DST-S-D,,,JOR,FRA","DST-S-D","","","JOR","FRA",3516.95,null,"SEA-DISTANCES.ORG"]
[null,"DST-S-D,,,JOR,IND","DST-S-D","","","JOR","IND",5511.15,null,"CERDI"]
[null,"DST-S-D,,,JOR,JPN","DST-S-D","","","JOR","JPN",14049.3,null,"CERDI"]
[null,"DST-S-D,,,JOR,KOR","DST-S-D","","","JOR","KOR",13728.5,null,"CERDI"]
[null,"DST-S-D,,,JOR,NLD","DST-S-D","","","JOR","NLD",7079.06,null,"CERDI"]
[null,"DST-S-D,,,JOR,USA","DST-S-D","","","JOR","USA",13472.2,null,"CERDI"]
[null,"DST-S-D,,,KAZ,CHN","DST-S-D","","","KAZ","CHN",2252.4699999999998,null,"CERDI"]
[null,"DST-S-D,,,KAZ,DEU","DST-S-D","","","KAZ","DEU",6601.17,null,"CERDI"]
[null,"DST-S-D,,,KAZ,ESP","DST-S-D","","","KAZ","ESP",3900.92,null,"CERDI"]
[null,"DST-S-D,,,KAZ,FRA","DST-S-D","","","KAZ","FRA",3529.3,null,"CERDI"]
[null,"DST-S-D,,,KAZ,IND","DST-S-D","","","KAZ","IND",8331.77,null,"CERDI"]
[null,"DST-S-D,,,KAZ,JPN","DST-S-D","","","KAZ","JPN",2136.6799999999998,null,"CERDI"]
[null,"DST-S-D,,,KAZ,KOR","DST-S-D","","","KAZ","KOR",1579.54,null,"CERDI"]
[null,"DST-S-D,,,KAZ,NLD","DST-S-D","","","KAZ","NLD",6287.68,null,"CERDI"]
[null,"DST-S-D,,,KAZ,USA","DST-S-D","","","KAZ","USA",8226.75,null,"CERDI"]
[null,"DST-S-D,,,KEN,CHN","DST-S-D","","","KEN","CHN",11244.6,null,"CERDI"]
[null,"DST-S-D,,,KEN,DEU","DST-S-D","","","KEN","DEU",12814.1,null,"CERDI"]
[null,"DST-S-D,,,KEN,ESP","DST-S-D","","","KEN","ESP",9223.33,null,"CERDI"]
[null,"DST-S-D,,,KEN,FRA","DST-S-D","","","KEN","FRA",7736.75,null,"CERDI"]
[null,"DST-S-D,,,KEN,IND","DST-S-D","","","KEN","IND",4305.05,null,"CERDI"]
[null,"DST-S-D,,,KEN,JPN","DST-S-D","","","KEN","JPN",12152,null,"CERDI"]
[null,"DST-S-D,,,KEN,KOR","DST-S-D","","","KEN","KOR",11831.2,null,"CERDI"]
[null,"DST-S-D,,,KEN,NLD","DST-S-D","","","KEN","NLD",12343.5,null,"CERDI"]
[null,"DST-S-D,,,KEN,USA","DST-S-D","","","KEN","USA",18739.400000000001,null,"CERDI"]
[null,"DST-S-D,,,MAR,CHN","DST-S-D","","","MAR","CHN",16917.900000000001,null,"CERDI"]
[null,"DST-S-D,,,MAR,DEU","DST-S-D","","","MAR","DEU",2668.15,null,"CERDI"]
[null,"DST-S-D,,,MAR,ESP","DST-S-D","","","MAR","ESP",38.352499999999999,null,"CERDI"]
[null,"DST-S-D,,,MAR,FRA","DST-S-D","","","MAR","FRA",1104.08,null,"CERDI"]
[null,"DST-S-D,,,MAR,IND","DST-S-D","","","MAR","IND",9333.25,null,"CERDI"]
[null,"DST-S-D,,,MAR,JPN","DST-S-D","","","MAR","JPN",17892.3,null,"CERDI"]
[null,"DST-S-D,,,MAR,KOR","DST-S-D","","","MAR","KOR",17588.7,null,"CERDI"]
[null,"DST-S-D,,,MAR,NLD","DST-S-D","","","MAR","NLD",2354.6799999999998,null,"CERDI"]
[null,"DST-S-D,,,MAR,USA","DST-S-D","","","MAR","USA",8558.2999999999993,null,"CERDI"]
[null,"DST-S-D,,,MAR-BEN,CHN","DST-S-D","","","MAR-BEN","CHN",16917.900000000001,null,"CERDI"]
[null,"DST-S-D,,,MAR-BEN,DEU","DST-S-D","","","MAR-BEN","DEU",2668.15,null,"CERDI"]
[null,"DST-S-D,,,MAR-BEN,ESP","DST-S-D","","","MAR-BEN","ESP",38.352499999999999,null,"CERDI"]
[null,"DST-S-D,,,MAR-BEN,FRA","DST-S-D","","","MAR-BEN","FRA",1104.08,null,"CERDI"]
[null,"DST-S-D,,,MAR-BEN,IND","DST-S-D","","","MAR-BEN","IND",9333.25,null,"CERDI"]
[null,"DST-S-D,,,MAR-BEN,JPN","DST-S-D","","","MAR-BEN","JPN",17892.3,null,"CERDI"]
[null,"DST-S-D,,,MAR-BEN,KOR","DST-S-D","","","MAR-BEN","KOR",17588.7,null,"CERDI"]
[null,"DST-S-D,,,MAR-BEN,NLD","DST-S-D","","","MAR-BEN","NLD",2354.6799999999998,null,"CERDI"]
[null,"DST-S-D,,,MAR-BEN,USA","DST-S-D","","","MAR-BEN","USA",8558.2999999999993,null,"CERDI"]
[null,"DST-S-D,,,MAR-CAS,CHN","DST-S-D","","","MAR-CAS","CHN",16917.900000000001,null,"CERDI"]
[null,"DST-S-D,,,MAR-CAS,DEU","DST-S-D","","","MAR-CAS","DEU",2668.15,null,"CERDI"]
[null,"DST-S-D,,,MAR-CAS,ESP","DST-S-D","","","MAR-CAS","ESP",38.352499999999999,null,"CERDI"]
[null,"DST-S-D,,,MAR-CAS,FRA","DST-S-D","","","MAR-CAS","FRA",1104.08,null,"CERDI"]
[null,"DST-S-D,,,MAR-CAS,IND","DST-S-D","","","MAR-CAS","IND",9333.25,null,"CERDI"]
[null,"DST-S-D,,,MAR-CAS,JPN","DST-S-D","","","MAR-CAS","JPN",17892.3,null,"CERDI"]
[null,"DST-S-D,,,MAR-CAS,KOR","DST-S-D","","","MAR-CAS","KOR",17588.7,null,"CERDI"]
[null,"DST-S-D,,,MAR-CAS,NLD","DST-S-D","","","MAR-CAS","NLD",2354.6799999999998,null,"CERDI"]
[null,"DST-S-D,,,MAR-CAS,USA","DST-S-D","","","MAR-CAS","USA",8558.2999999999993,null,"CERDI"]
[null,"DST-S-D,,,MAR-DAK,CHN","DST-S-D","","","MAR-DAK","CHN",16917.900000000001,null,"CERDI"]
[null,"DST-S-D,,,MAR-DAK,DEU","DST-S-D","","","MAR-DAK","DEU",2668.15,null,"CERDI"]
[null,"DST-S-D,,,MAR-DAK,ESP","DST-S-D","","","MAR-DAK","ESP",38.352499999999999,null,"CERDI"]
[null,"DST-S-D,,,MAR-DAK,FRA","DST-S-D","","","MAR-DAK","FRA",1104.08,null,"CERDI"]
[null,"DST-S-D,,,MAR-DAK,IND","DST-S-D","","","MAR-DAK","IND",9333.25,null,"CERDI"]
[null,"DST-S-D,,,MAR-DAK,JPN","DST-S-D","","","MAR-DAK","JPN",17892.3,null,"CERDI"]
[null,"DST-S-D,,,MAR-DAK,KOR","DST-S-D","","","MAR-DAK","KOR",17588.7,null,"CERDI"]
[null,"DST-S-D,,,MAR-DAK,NLD","DST-S-D","","","MAR-DAK","NLD",2354.6799999999998,null,"CERDI"]
[null,"DST-S-D,,,MAR-DAK,USA","DST-S-D","","","MAR-DAK","USA",8558.2999999999993,null,"CERDI"]
[null,"DST-S-D,,,MAR-DRA,CHN","DST-S-D","","","MAR-DRA","CHN",16917.900000000001,null,"CERDI"]
[null,"DST-S-D,,,MAR-DRA,DEU","DST-S-D","","","MAR-DRA","DEU",2668.15,null,"CERDI"]
[null,"DST-S-D,,,MAR-DRA,ESP","DST-S-D","","","MAR-DRA","ESP",38.352499999999999,null,"CERDI"]
[null,"DST-S-D,,,MAR-DRA,FRA","DST-S-D","","","MAR-DRA","FRA",1104.08,null,"CERDI"]
[null,"DST-S-D,,,MAR-DRA,IND","DST-S-D","","","MAR-DRA","IND",9333.25,null,"CERDI"]
[null,"DST-S-D,,,MAR-DRA,JPN","DST-S-D","","","MAR-DRA","JPN",17892.3,null,"CERDI"]
[null,"DST-S-D,,,MAR-DRA,KOR","DST-S-D","","","MAR-DRA","KOR",17588.7,null,"CERDI"]
[null,"DST-S-D,,,MAR-DRA,NLD","DST-S-D","","","MAR-DRA","NLD",2354.6799999999998,null,"CERDI"]
[null,"DST-S-D,,,MAR-DRA,USA","DST-S-D","","","MAR-DRA","USA",8558.2999999999993,null,"CERDI"]
[null,"DST-S-D,,,MAR-FES,CHN","DST-S-D","","","MAR-FES","CHN",16917.900000000001,null,"CERDI"]
[null,"DST-S-D,,,MAR-FES,DEU","DST-S-D","","","MAR-FES","DEU",2668.15,null,"CERDI"]
[null,"DST-S-D,,,MAR-FES,ESP","DST-S-D","","","MAR-FES","ESP",38.352499999999999,null,"CERDI"]
[null,"DST-S-D,,,MAR-FES,FRA","DST-S-D","","","MAR-FES","FRA",1104.08,null,"CERDI"]
[null,"DST-S-D,,,MAR-FES,IND","DST-S-D","","","MAR-FES","IND",9333.25,null,"CERDI"]
[null,"DST-S-D,,,MAR-FES,JPN","DST-S-D","","","MAR-FES","JPN",17892.3,null,"CERDI"]
[null,"DST-S-D,,,MAR-FES,KOR","DST-S-D","","","MAR-FES","KOR",17588.7,null,"CERDI"]
[null,"DST-S-D,,,MAR-FES,NLD","DST-S-D","","","MAR-FES","NLD",2354.6799999999998,null,"CERDI"]
[null,"DST-S-D,,,MAR-FES,USA","DST-S-D","","","MAR-FES","USA",8558.2999999999993,null,"CERDI"]
[null,"DST-S-D,,,MAR-GUE,CHN","DST-S-D","","","MAR-GUE","CHN",16917.900000000001,null,"CERDI"]
[null,"DST-S-D,,,MAR-GUE,DEU","DST-S-D","","","MAR-GUE","DEU",2668.15,null,"CERDI"]
[null,"DST-S-D,,,MAR-GUE,ESP","DST-S-D","","","MAR-GUE","ESP",38.352499999999999,null,"CERDI"]
[null,"DST-S-D,,,MAR-GUE,FRA","DST-S-D","","","MAR-GUE","FRA",1104.08,null,"CERDI"]
[null,"DST-S-D,,,MAR-GUE,IND","DST-S-D","","","MAR-GUE","IND",9333.25,null,"CERDI"]
[null,"DST-S-D,,,MAR-GUE,JPN","DST-S-D","","","MAR-GUE","JPN",17892.3,null,"CERDI"]
[null,"DST-S-D,,,MAR-GUE,KOR","DST-S-D","","","MAR-GUE","KOR",17588.7,null,"CERDI"]
[null,"DST-S-D,,,MAR-GUE,NLD","DST-S-D","","","MAR-GUE","NLD",2354.6799999999998,null,"CERDI"]
[null,"DST-S-D,,,MAR-GUE,USA","DST-S-D","","","MAR-GUE","USA",8558.2999999999993,null,"CERDI"]
[null,"DST-S-D,,,MAR-LAA,CHN","DST-S-D","","","MAR-LAA","CHN",16917.900000000001,null,"CERDI"]
[null,"DST-S-D,,,MAR-LAA,DEU","DST-S-D","","","MAR-LAA","DEU",2668.15,null,"CERDI"]
[null,"DST-S-D,,,MAR-LAA,ESP","DST-S-D","","","MAR-LAA","ESP",38.352499999999999,null,"CERDI"]
[null,"DST-S-D,,,MAR-LAA,FRA","DST-S-D","","","MAR-LAA","FRA",1104.08,null,"CERDI"]
[null,"DST-S-D,,,MAR-LAA,IND","DST-S-D","","","MAR-LAA","IND",9333.25,null,"CERDI"]
[null,"DST-S-D,,,MAR-LAA,JPN","DST-S-D","","","MAR-LAA","JPN",17892.3,null,"CERDI"]
[null,"DST-S-D,,,MAR-LAA,KOR","DST-S-D","","","MAR-LAA","KOR",17588.7,null,"CERDI"]
[null,"DST-S-D,,,MAR-LAA,NLD","DST-S-D","","","MAR-LAA","NLD",2354.6799999999998,null,"CERDI"]
[null,"DST-S-D,,,MAR-LAA,USA","DST-S-D","","","MAR-LAA","USA",8558.2999999999993,null,"CERDI"]
[null,"DST-S-D,,,MAR-LOR,CHN","DST-S-D","","","MAR-LOR","CHN",16917.900000000001,null,"CERDI"]
[null,"DST-S-D,,,MAR-LOR,DEU","DST-S-D","","","MAR-LOR","DEU",2668.15,null,"CERDI"]
[null,"DST-S-D,,,MAR-LOR,ESP","DST-S-D","","","MAR-LOR","ESP",38.352499999999999,null,"CERDI"]
[null,"DST-S-D,,,MAR-LOR,FRA","DST-S-D","","","MAR-LOR","FRA",1104.08,null,"CERDI"]
[null,"DST-S-D,,,MAR-LOR,IND","DST-S-D","","","MAR-LOR","IND",9333.25,null,"CERDI"]
[null,"DST-S-D,,,MAR-LOR,JPN","DST-S-D","","","MAR-LOR","JPN",17892.3,null,"CERDI"]
[null,"DST-S-D,,,MAR-LOR,KOR","DST-S-D","","","MAR-LOR","KOR",17588.7,null,"CERDI"]
[null,"DST-S-D,,,MAR-LOR,NLD","DST-S-D","","","MAR-LOR","NLD",2354.6799999999998,null,"CERDI"]
[null,"DST-S-D,,,MAR-LOR,USA","DST-S-D","","","MAR-LOR","USA",8558.2999999999993,null,"CERDI"]
[null,"DST-S-D,,,MAR-MAR,CHN","DST-S-D","","","MAR-MAR","CHN",16917.900000000001,null,"CERDI"]
[null,"DST-S-D,,,MAR-MAR,DEU","DST-S-D","","","MAR-MAR","DEU",2668.15,null,"CERDI"]
[null,"DST-S-D,,,MAR-MAR,ESP","DST-S-D","","","MAR-MAR","ESP",38.352499999999999,null,"CERDI"]
[null,"DST-S-D,,,MAR-MAR,FRA","DST-S-D","","","MAR-MAR","FRA",1104.08,null,"CERDI"]
[null,"DST-S-D,,,MAR-MAR,IND","DST-S-D","","","MAR-MAR","IND",9333.25,null,"CERDI"]
[null,"DST-S-D,,,MAR-MAR,JPN","DST-S-D","","","MAR-MAR","JPN",17892.3,null,"CERDI"]
[null,"DST-S-D,,,MAR-MAR,KOR","DST-S-D","","","MAR-MAR","KOR",17588.7,null,"CERDI"]
[null,"DST-S-D,,,MAR-MAR,NLD","DST-S-D","","","MAR-MAR","NLD",2354.6799999999998,null,"CERDI"]
[null,"DST-S-D,,,MAR-MAR,USA","DST-S-D","","","MAR-MAR","USA",8558.2999999999993,null,"CERDI"]
[null,"DST-S-D,,,MAR-RAB,CHN","DST-S-D","","","MAR-RAB","CHN",16917.900000000001,null,"CERDI"]
[null,"DST-S-D,,,MAR-RAB,DEU","DST-S-D","","","MAR-RAB","DEU",2668.15,null,"CERDI"]
[null,"DST-S-D,,,MAR-RAB,ESP","DST-S-D","","","MAR-RAB","ESP",38.352499999999999,null,"CERDI"]
[null,"DST-S-D,,,MAR-RAB,FRA","DST-S-D","","","MAR-RAB","FRA",1104.08,null,"CERDI"]
[null,"DST-S-D,,,MAR-RAB,IND","DST-S-D","","","MAR-RAB","IND",9333.25,null,"CERDI"]
[null,"DST-S-D,,,MAR-RAB,JPN","DST-S-D","","","MAR-RAB","JPN",17892.3,null,"CERDI"]
[null,"DST-S-D,,,MAR-RAB,KOR","DST-S-D","","","MAR-RAB","KOR",17588.7,null,"CERDI"]
[null,"DST-S-D,,,MAR-RAB,NLD","DST-S-D","","","MAR-RAB","NLD",2354.6799999999998,null,"CERDI"]
[null,"DST-S-D,,,MAR-RAB,USA","DST-S-D","","","MAR-RAB","USA",8558.2999999999993,null,"CERDI"]
[null,"DST-S-D,,,MAR-SOU,CHN","DST-S-D","","","MAR-SOU","CHN",16917.900000000001,null,"CERDI"]
[null,"DST-S-D,,,MAR-SOU,DEU","DST-S-D","","","MAR-SOU","DEU",2668.15,null,"CERDI"]
[null,"DST-S-D,,,MAR-SOU,ESP","DST-S-D","","","MAR-SOU","ESP",38.352499999999999,null,"CERDI"]
[null,"DST-S-D,,,MAR-SOU,FRA","DST-S-D","","","MAR-SOU","FRA",1104.08,null,"CERDI"]
[null,"DST-S-D,,,MAR-SOU,IND","DST-S-D","","","MAR-SOU","IND",9333.25,null,"CERDI"]
[null,"DST-S-D,,,MAR-SOU,JPN","DST-S-D","","","MAR-SOU","JPN",17892.3,null,"CERDI"]
[null,"DST-S-D,,,MAR-SOU,KOR","DST-S-D","","","MAR-SOU","KOR",17588.7,null,"CERDI"]
[null,"DST-S-D,,,MAR-SOU,NLD","DST-S-D","","","MAR-SOU","NLD",2354.6799999999998,null,"CERDI"]
[null,"DST-S-D,,,MAR-SOU,USA","DST-S-D","","","MAR-SOU","USA",8558.2999999999993,null,"CERDI"]
[null,"DST-S-D,,,MAR-TAN,CHN","DST-S-D","","","MAR-TAN","CHN",16917.900000000001,null,"CERDI"]
[null,"DST-S-D,,,MAR-TAN,DEU","DST-S-D","","","MAR-TAN","DEU",2668.15,null,"CERDI"]
[null,"DST-S-D,,,MAR-TAN,ESP","DST-S-D","","","MAR-TAN","ESP",38.352499999999999,null,"CERDI"]
[null,"DST-S-D,,,MAR-TAN,FRA","DST-S-D","","","MAR-TAN","FRA",1104.08,null,"CERDI"]
[null,"DST-S-D,,,MAR-TAN,IND","DST-S-D","","","MAR-TAN","IND",9333.25,null,"CERDI"]
[null,"DST-S-D,,,MAR-TAN,JPN","DST-S-D","","","MAR-TAN","JPN",17892.3,null,"CERDI"]
[null,"DST-S-D,,,MAR-TAN,KOR","DST-S-D","","","MAR-TAN","KOR",17588.7,null,"CERDI"]
[null,"DST-S-D,,,MAR-TAN,NLD","DST-S-D","","","MAR-TAN","NLD",2354.6799999999998,null,"CERDI"]
[null,"DST-S-D,,,MAR-TAN,USA","DST-S-D","","","MAR-TAN","USA",8558.2999999999993,null,"CERDI"]
[null,"DST-S-D,,,MEX,CHN","DST-S-D","","","MEX","CHN",13223.2,null,"CERDI"]
[null,"DST-S-D,,,MEX,DEU","DST-S-D","","","MEX","DEU",10256.299999999999,null,"CERDI"]
[null,"DST-S-D,,,MEX,ESP","DST-S-D","","","MEX","ESP",10695.5,null,"CERDI"]
[null,"DST-S-D,,,MEX,FRA","DST-S-D","","","MEX","FRA",11766.6,null,"CERDI"]
[null,"DST-S-D,,,MEX,IND","DST-S-D","","","MEX","IND",20448.3,null,"CERDI"]
[null,"DST-S-D,,,MEX,JPN","DST-S-D","","","MEX","JPN",11860.6,null,"CERDI"]
[null,"DST-S-D,,,MEX,KOR","DST-S-D","","","MEX","KOR",12583,null,"CERDI"]
[null,"DST-S-D,,,MEX,NLD","DST-S-D","","","MEX","NLD",9956.94,null,"CERDI"]
[null,"DST-S-D,,,MEX,USA","DST-S-D","","","MEX","USA",1231.58,null,"SEA-DISTANCES.ORG"]
[null,"DST-S-D,,,MRT,CHN","DST-S-D","","","MRT","CHN",19545.900000000001,null,"CERDI"]
[null,"DST-S-D,,,MRT,DEU","DST-S-D","","","MRT","DEU",4171.75,null,"CERDI"]
[null,"DST-S-D,,,MRT,ESP","DST-S-D","","","MRT","ESP",2012.1,null,"CERDI"]
[null,"DST-S-D,,,MRT,FRA","DST-S-D","","","MRT","FRA",3083.36,null,"CERDI"]
[null,"DST-S-D,,,MRT,IND","DST-S-D","","","MRT","IND",11940.3,null,"CERDI"]
[null,"DST-S-D,,,MRT,JPN","DST-S-D","","","MRT","JPN",20452.599999999999,null,"CERDI"]
[null,"DST-S-D,,,MRT,KOR","DST-S-D","","","MRT","KOR",20132,null,"CERDI"]
[null,"DST-S-D,,,MRT,NLD","DST-S-D","","","MRT","NLD",3858.24,null,"CERDI"]
[null,"DST-S-D,,,MRT,USA","DST-S-D","","","MRT","USA",7511.88,null,"CERDI"]
[null,"DST-S-D,,,NAM,CHN","DST-S-D","","","NAM","CHN",16002.4,null,"CERDI"]
[null,"DST-S-D,,,NAM,DEU","DST-S-D","","","NAM","DEU",10723.8,null,"CERDI"]
[null,"DST-S-D,,,NAM,ESP","DST-S-D","","","NAM","ESP",8564.51,null,"CERDI"]
[null,"DST-S-D,,,NAM,FRA","DST-S-D","","","NAM","FRA",9635.7099999999991,null,"CERDI"]
[null,"DST-S-D,,,NAM,IND","DST-S-D","","","NAM","IND",10561.3,null,"CERDI"]
[null,"DST-S-D,,,NAM,JPN","DST-S-D","","","NAM","JPN",16976.900000000001,null,"CERDI"]
[null,"DST-S-D,,,NAM,KOR","DST-S-D","","","NAM","KOR",16673.3,null,"CERDI"]
[null,"DST-S-D,,,NAM,NLD","DST-S-D","","","NAM","NLD",10410.4,null,"CERDI"]
[null,"DST-S-D,,,NAM,USA","DST-S-D","","","NAM","USA",12721.7,null,"CERDI"]
[null,"DST-S-D,,,NOR,CHN","DST-S-D","","","NOR","CHN",21062.6,null,"CERDI"]
[null,"DST-S-D,,,NOR,DEU","DST-S-D","","","NOR","DEU",605.048,null,"CERDI"]
[null,"DST-S-D,,,NOR,ESP","DST-S-D","","","NOR","ESP",2363.15,null,"SEA-DISTANCES.ORG"]
[null,"DST-S-D,,,NOR,FRA","DST-S-D","","","NOR","FRA",1818.66,null,"SEA-DISTANCES.ORG"]
[null,"DST-S-D,,,NOR,IND","DST-S-D","","","NOR","IND",13108.2,null,"CERDI"]
[null,"DST-S-D,,,NOR,JPN","DST-S-D","","","NOR","JPN",21969.200000000001,null,"CERDI"]
[null,"DST-S-D,,,NOR,KOR","DST-S-D","","","NOR","KOR",21648.7,null,"CERDI"]
[null,"DST-S-D,,,NOR,NLD","DST-S-D","","","NOR","NLD",808.45699999999999,null,"CERDI"]
[null,"DST-S-D,,,NOR,USA","DST-S-D","","","NOR","USA",7940.34,null,"CERDI"]
[null,"DST-S-D,,,PER,CHN","DST-S-D","","","PER","CHN",16633.3,null,"CERDI"]
[null,"DST-S-D,,,PER,DEU","DST-S-D","","","PER","DEU",12282.46,null,"SEA-DISTANCES.ORG"]
[null,"DST-S-D,,,PER,ESP","DST-S-D","","","PER","ESP",11517.59,null,"SEA-DISTANCES.ORG"]
[null,"DST-S-D,,,PER,FRA","DST-S-D","","","PER","FRA",10735.1,null,"CERDI"]
[null,"DST-S-D,,,PER,IND","DST-S-D","","","PER","IND",20364.8,null,"CERDI"]
[null,"DST-S-D,,,PER,JPN","DST-S-D","","","PER","JPN",15271,null,"CERDI"]
[null,"DST-S-D,,,PER,KOR","DST-S-D","","","PER","KOR",15993.2,null,"CERDI"]
[null,"DST-S-D,,,PER,NLD","DST-S-D","","","PER","NLD",11445.36,null,"SEA-DISTANCES.ORG"]
[null,"DST-S-D,,,PER,USA","DST-S-D","","","PER","USA",4729.2,null,"CERDI"]
[null,"DST-S-D,,,PRT,CHN","DST-S-D","","","PRT","CHN",17380,null,"CERDI"]
[null,"DST-S-D,,,PRT,DEU","DST-S-D","","","PRT","DEU",2479.8200000000002,null,"SEA-DISTANCES.ORG"]
[null,"DST-S-D,,,PRT,ESP","DST-S-D","","","PRT","ESP",1085.27,null,"SEA-DISTANCES.ORG"]
[null,"DST-S-D,,,PRT,FRA","DST-S-D","","","PRT","FRA",1729.71,null,"CERDI"]
[null,"DST-S-D,,,PRT,IND","DST-S-D","","","PRT","IND",9795.41,null,"CERDI"]
[null,"DST-S-D,,,PRT,JPN","DST-S-D","","","PRT","JPN",18354.400000000001,null,"CERDI"]
[null,"DST-S-D,,,PRT,KOR","DST-S-D","","","PRT","KOR",18050.8,null,"CERDI"]
[null,"DST-S-D,,,PRT,NLD","DST-S-D","","","PRT","NLD",1721.53,null,"CERDI"]
[null,"DST-S-D,,,PRT,USA","DST-S-D","","","PRT","USA",7944.32,null,"CERDI"]
[null,"DST-S-D,,,RUS,CHN","DST-S-D","","","RUS","CHN",2252.4699999999998,null,"CERDI"]
[null,"DST-S-D,,,RUS,DEU","DST-S-D","","","RUS","DEU",6601.17,null,"CERDI"]
[null,"DST-S-D,,,RUS,ESP","DST-S-D","","","RUS","ESP",3900.92,null,"CERDI"]
[null,"DST-S-D,,,RUS,FRA","DST-S-D","","","RUS","FRA",3529.3,null,"CERDI"]
[null,"DST-S-D,,,RUS,IND","DST-S-D","","","RUS","IND",8331.77,null,"CERDI"]
[null,"DST-S-D,,,RUS,JPN","DST-S-D","","","RUS","JPN",2136.6799999999998,null,"CERDI"]
[null,"DST-S-D,,,RUS,KOR","DST-S-D","","","RUS","KOR",1579.54,null,"CERDI"]
[null,"DST-S-D,,,RUS,NLD","DST-S-D","","","RUS","NLD",7921,null,"SEA-DISTANCES.ORG"]
[null,"DST-S-D,,,RUS,USA","DST-S-D","","","RUS","USA",8226.75,null,"CERDI"]
[null,"DST-S-D,,,SAU,CHN","DST-S-D","","","SAU","CHN",12014.2,null,"CERDI"]
[null,"DST-S-D,,,SAU,DEU","DST-S-D","","","SAU","DEU",8624.76,null,"SEA-DISTANCES.ORG"]
[null,"DST-S-D,,,SAU,ESP","DST-S-D","","","SAU","ESP",4279.97,null,"SEA-DISTANCES.ORG"]
[null,"DST-S-D,,,SAU,FRA","DST-S-D","","","SAU","FRA",3364.12,null,"CERDI"]
[null,"DST-S-D,,,SAU,IND","DST-S-D","","","SAU","IND",4376.12,null,"CERDI"]
[null,"DST-S-D,,,SAU,JPN","DST-S-D","","","SAU","JPN",12921.6,null,"CERDI"]
[null,"DST-S-D,,,SAU,KOR","DST-S-D","","","SAU","KOR",12600.8,null,"CERDI"]
[null,"DST-S-D,,,SAU,NLD","DST-S-D","","","SAU","NLD",7402.44,null,"SEA-DISTANCES.ORG"]
[null,"DST-S-D,,,SAU,USA","DST-S-D","","","SAU","USA",14233.2,null,"CERDI"]
[null,"DST-S-D,,,SWE,CHN","DST-S-D","","","SWE","CHN",21022.6,null,"CERDI"]
[null,"DST-S-D,,,SWE,DEU","DST-S-D","","","SWE","DEU",602.49,null,"CERDI"]
[null,"DST-S-D,,,SWE,ESP","DST-S-D","","","SWE","ESP",3104.64,null,"CERDI"]
[null,"DST-S-D,,,SWE,FRA","DST-S-D","","","SWE","FRA",4175.91,null,"CERDI"]
[null,"DST-S-D,,,SWE,IND","DST-S-D","","","SWE","IND",13105.7,null,"CERDI"]
[null,"DST-S-D,,,SWE,JPN","DST-S-D","","","SWE","JPN",21929.3,null,"CERDI"]
[null,"DST-S-D,,,SWE,KOR","DST-S-D","","","SWE","KOR",21608.7,null,"CERDI"]
[null,"DST-S-D,,,SWE,NLD","DST-S-D","","","SWE","NLD",821.91899999999998,null,"CERDI"]
[null,"DST-S-D,,,SWE,USA","DST-S-D","","","SWE","USA",8160.7,null,"CERDI"]
[null,"DST-S-D,,,THA,CHN","DST-S-D","","","THA","CHN",4046.29,null,"CERDI"]
[null,"DST-S-D,,,THA,DEU","DST-S-D","","","THA","DEU",18076.400000000001,null,"CERDI"]
[null,"DST-S-D,,,THA,ESP","DST-S-D","","","THA","ESP",14281.2,null,"CERDI"]
[null,"DST-S-D,,,THA,FRA","DST-S-D","","","THA","FRA",12690.1,null,"CERDI"]
[null,"DST-S-D,,,THA,IND","DST-S-D","","","THA","IND",6056.68,null,"CERDI"]
[null,"DST-S-D,,,THA,JPN","DST-S-D","","","THA","JPN",5539.33,null,"SEA-DISTANCES.ORG"]
[null,"DST-S-D,,,THA,KOR","DST-S-D","","","THA","KOR",4632.9399999999996,null,"CERDI"]
[null,"DST-S-D,,,THA,NLD","DST-S-D","","","THA","NLD",17505.099999999999,null,"CERDI"]
[null,"DST-S-D,,,THA,USA","DST-S-D","","","THA","USA",14109.5,null,"CERDI"]
[null,"DST-S-D,,,TUN,CHN","DST-S-D","","","TUN","CHN",15188.8,null,"CERDI"]
[null,"DST-S-D,,,TUN,DEU","DST-S-D","","","TUN","DEU",4114.37,null,"CERDI"]
[null,"DST-S-D,,,TUN,ESP","DST-S-D","","","TUN","ESP",1414.33,null,"CERDI"]
[null,"DST-S-D,,,TUN,FRA","DST-S-D","","","TUN","FRA",754.12400000000002,null,"CERDI"]
[null,"DST-S-D,,,TUN,IND","DST-S-D","","","TUN","IND",7609.79,null,"CERDI"]
[null,"DST-S-D,,,TUN,JPN","DST-S-D","","","TUN","JPN",16218.3,null,"CERDI"]
[null,"DST-S-D,,,TUN,KOR","DST-S-D","","","TUN","KOR",15930.7,null,"CERDI"]
[null,"DST-S-D,,,TUN,NLD","DST-S-D","","","TUN","NLD",3800.89,null,"CERDI"]
[null,"DST-S-D,,,TUN,USA","DST-S-D","","","TUN","USA",10017.6,null,"CERDI"]
[null,"DST-S-D,,,UKR,CHN","DST-S-D","","","UKR","CHN",15605.7,null,"CERDI"]
[null,"DST-S-D,,,UKR,DEU","DST-S-D","","","UKR","DEU",6650.36,null,"CERDI"]
[null,"DST-S-D,,,UKR,ESP","DST-S-D","","","UKR","ESP",3912.3,null,"CERDI"]
[null,"DST-S-D,,,UKR,FRA","DST-S-D","","","UKR","FRA",3171.22,null,"CERDI"]
[null,"DST-S-D,,,UKR,IND","DST-S-D","","","UKR","IND",8000.83,null,"CERDI"]
[null,"DST-S-D,,,UKR,JPN","DST-S-D","","","UKR","JPN",16513.099999999999,null,"CERDI"]
[null,"DST-S-D,,,UKR,KOR","DST-S-D","","","UKR","KOR",16192.3,null,"CERDI"]
[null,"DST-S-D,,,UKR,NLD","DST-S-D","","","UKR","NLD",6336.87,null,"CERDI"]
[null,"DST-S-D,,,UKR,USA","DST-S-D","","","UKR","USA",12553.3,null,"CERDI"]
[null,"DST-S-D,,,URY,CHN","DST-S-D","","","URY","CHN",21524.1,null,"CERDI"]
[null,"DST-S-D,,,URY,DEU","DST-S-D","","","URY","DEU",12547.2,null,"CERDI"]
[null,"DST-S-D,,,URY,ESP","DST-S-D","","","URY","ESP",10706.9,null,"CERDI"]
[null,"DST-S-D,,,URY,FRA","DST-S-D","","","URY","FRA",11777.9,null,"CERDI"]
[null,"DST-S-D,,,URY,IND","DST-S-D","","","URY","IND",15885.2,null,"CERDI"]
[null,"DST-S-D,,,URY,JPN","DST-S-D","","","URY","JPN",20938.400000000001,null,"CERDI"]
[null,"DST-S-D,,,URY,KOR","DST-S-D","","","URY","KOR",21620.9,null,"CERDI"]
[null,"DST-S-D,,,URY,NLD","DST-S-D","","","URY","NLD",12233.8,null,"CERDI"]
[null,"DST-S-D,,,URY,USA","DST-S-D","","","URY","USA",11454,null,"CERDI"]
[null,"DST-S-D,,,USA,CHN","DST-S-D","","","USA","CHN",10402.299999999999,null,"CERDI"]
[null,"DST-S-D,,,USA,DEU","DST-S-D","","","USA","DEU",8323.27,null,"CERDI"]
[null,"DST-S-D,,,USA,ESP","DST-S-D","","","USA","ESP",8604.8700000000008,null,"CERDI"]
[null,"DST-S-D,,,USA,FRA","DST-S-D","","","USA","FRA",9676.0499999999993,null,"CERDI"]
[null,"DST-S-D,,,USA,IND","DST-S-D","","","USA","IND",18311.5,null,"CERDI"]
[null,"DST-S-D,,,USA,JPN","DST-S-D","","","USA","JPN",8904.7099999999991,null,"CERDI"]
[null,"DST-S-D,,,USA,KOR","DST-S-D","","","USA","KOR",9754.8799999999992,null,"CERDI"]
[null,"DST-S-D,,,USA,NLD","DST-S-D","","","USA","NLD",8053.45,null,"CERDI"]
[null,"DST-S-D,,,VNM,CHN","DST-S-D","","","VNM","CHN",2839.27,null,"CERDI"]
[null,"DST-S-D,,,VNM,DEU","DST-S-D","","","VNM","DEU",18266.27,null,"SEA-DISTANCES.ORG"]
[null,"DST-S-D,,,VNM,ESP","DST-S-D","","","VNM","ESP",17590.400000000001,null,"CERDI"]
[null,"DST-S-D,,,VNM,FRA","DST-S-D","","","VNM","FRA",14534.49,null,"SEA-DISTANCES.ORG"]
[null,"DST-S-D,,,VNM,IND","DST-S-D","","","VNM","IND",3746.62,null,"CERDI"]
[null,"DST-S-D,,,VNM,JPN","DST-S-D","","","VNM","JPN",17066.7,null,"CERDI"]
[null,"DST-S-D,,,VNM,KOR","DST-S-D","","","VNM","KOR",3425.83,null,"CERDI"]
[null,"DST-S-D,,,VNM,NLD","DST-S-D","","","VNM","NLD",13891,null,"CERDI"]
[null,"DST-S-D,,,VNM,USA","DST-S-D","","","VNM","USA",12906.4,null,"CERDI"]
[null,"DST-S-D,,,ZAF,CHN","DST-S-D","","","ZAF","CHN",12852.2,null,"CERDI"]
[null,"DST-S-D,,,ZAF,DEU","DST-S-D","","","ZAF","DEU",11789.832,null,"SEA-DISTANCES.ORG"]
[null,"DST-S-D,,,ZAF,ESP","DST-S-D","","","ZAF","ESP",11662.6,null,"CERDI"]
[null,"DST-S-D,,,ZAF,FRA","DST-S-D","","","ZAF","FRA",10912.4,null,"CERDI"]
[null,"DST-S-D,,,ZAF,IND","DST-S-D","","","ZAF","IND",7432.11,null,"CERDI"]
[null,"DST-S-D,,,ZAF,JPN","DST-S-D","","","ZAF","JPN",13881.4,null,"CERDI"]
[null,"DST-S-D,,,ZAF,KOR","DST-S-D","","","ZAF","KOR",13593.9,null,"CERDI"]
[null,"DST-S-D,,,ZAF,NLD","DST-S-D","","","ZAF","NLD",13501.1,null,"CERDI"]
[null,"DST-S-D,,,ZAF,USA","DST-S-D","","","ZAF","USA",15010.8,null,"CERDI"]
[null,"DST-S-D,,,ZAF-EC,CHN","DST-S-D","","","ZAF-EC","CHN",12852.2,null,"CERDI"]
[null,"DST-S-D,,,ZAF-EC,DEU","DST-S-D","","","ZAF-EC","DEU",11789.832,null,"SEA-DISTANCES.ORG"]
[null,"DST-S-D,,,ZAF-EC,ESP","DST-S-D","","","ZAF-EC","ESP",11662.6,null,"CERDI"]
[null,"DST-S-D,,,ZAF-EC,FRA","DST-S-D","","","ZAF-EC","FRA",10912.4,null,"CERDI"]
[null,"DST-S-D,,,ZAF-EC,IND","DST-S-D","","","ZAF-EC","IND",7432.11,null,"CERDI"]
[null,"DST-S-D,,,ZAF-EC,JPN","DST-S-D","","","ZAF-EC","JPN",13881.4,null,"CERDI"]
[null,"DST-S-D,,,ZAF-EC,KOR","DST-S-D","","","ZAF-EC","KOR",13593.9,null,"CERDI"]
[null,"DST-S-D,,,ZAF-EC,NLD","DST-S-D","","","ZAF-EC","NLD",13501.1,null,"CERDI"]
[null,"DST-S-D,,,ZAF-EC,USA","DST-S-D","","","ZAF-EC","USA",15010.8,null,"CERDI"]
[null,"DST-S-D,,,ZAF-FRS,CHN","DST-S-D","","","ZAF-FRS","CHN",12852.2,null,"CERDI"]
[null,"DST-S-D,,,ZAF-FRS,DEU","DST-S-D","","","ZAF-FRS","DEU",11789.832,null,"SEA-DISTANCES.ORG"]
[null,"DST-S-D,,,ZAF-FRS,ESP","DST-S-D","","","ZAF-FRS","ESP",11662.6,null,"CERDI"]
[null,"DST-S-D,,,ZAF-FRS,FRA","DST-S-D","","","ZAF-FRS","FRA",10912.4,null,"CERDI"]
[null,"DST-S-D,,,ZAF-FRS,IND","DST-S-D","","","ZAF-FRS","IND",7432.11,null,"CERDI"]
[null,"DST-S-D,,,ZAF-FRS,JPN","DST-S-D","","","ZAF-FRS","JPN",13881.4,null,"CERDI"]
[null,"DST-S-D,,,ZAF-FRS,KOR","DST-S-D","","","ZAF-FRS","KOR",13593.9,null,"CERDI"]
[null,"DST-S-D,,,ZAF-FRS,NLD","DST-S-D","","","ZAF-FRS","NLD",13501.1,null,"CERDI"]
[null,"DST-S-D,,,ZAF-FRS,USA","DST-S-D","","","ZAF-FRS","USA",15010.8,null,"CERDI"]
[null,"DST-S-D,,,ZAF-GAU,CHN","DST-S-D","","","ZAF-GAU","CHN",12852.2,null,"CERDI"]
[null,"DST-S-D,,,ZAF-GAU,DEU","DST-S-D","","","ZAF-GAU","DEU",11789.832,null,"SEA-DISTANCES.ORG"]
[null,"DST-S-D,,,ZAF-GAU,ESP","DST-S-D","","","ZAF-GAU","ESP",11662.6,null,"CERDI"]
[null,"DST-S-D,,,ZAF-GAU,FRA","DST-S-D","","","ZAF-GAU","FRA",10912.4,null,"CERDI"]
[null,"DST-S-D,,,ZAF-GAU,IND","DST-S-D","","","ZAF-GAU","IND",7432.11,null,"CERDI"]
[null,"DST-S-D,,,ZAF-GAU,JPN","DST-S-D","","","ZAF-GAU","JPN",13881.4,null,"CERDI"]
[null,"DST-S-D,,,ZAF-GAU,KOR","DST-S-D","","","ZAF-GAU","KOR",13593.9,null,"CERDI"]
[null,"DST-S-D,,,ZAF-GAU,NLD","DST-S-D","","","ZAF-GAU","NLD",13501.1,null,"CERDI"]
[null,"DST-S-D,,,ZAF-GAU,USA","DST-S-D","","","ZAF-GAU","USA",15010.8,null,"CERDI"]
[null,"DST-S-D,,,ZAF-KWA,CHN","DST-S-D","","","ZAF-KWA","CHN",12852.2,null,"CERDI"]
[null,"DST-S-D,,,ZAF-KWA,DEU","DST-S-D","","","ZAF-KWA","DEU",11789.832,null,"SEA-DISTANCES.ORG"]
[null,"DST-S-D,,,ZAF-KWA,ESP","DST-S-D","","","ZAF-KWA","ESP",11662.6,null,"CERDI"]
[null,"DST-S-D,,,ZAF-KWA,FRA","DST-S-D","","","ZAF-KWA","FRA",10912.4,null,"CERDI"]
[null,"DST-S-D,,,ZAF-KWA,IND","DST-S-D","","","ZAF-KWA","IND",7432.11,null,"CERDI"]
[null,"DST-S-D,,,ZAF-KWA,JPN","DST-S-D","","","ZAF-KWA","JPN",13881.4,null,"CERDI"]
[null,"DST-S-D,,,ZAF-KWA,KOR","DST-S-D","","","ZAF-KWA","KOR",13593.9,null,"CERDI"]
[null,"DST-S-D,,,ZAF-KWA,NLD","DST-S-D","","","ZAF-KWA","NLD",13501.1,null,"CERDI"]
[null,"DST-S-D,,,ZAF-KWA,USA","DST-S-D","","","ZAF-KWA","USA",15010.8,null,"CERDI"]
[null,"DST-S-D,,,ZAF-LIM,CHN","DST-S-D","","","ZAF-LIM","CHN",12852.2,null,"CERDI"]
[null,"DST-S-D,,,ZAF-LIM,DEU","DST-S-D","","","ZAF-LIM","DEU",11789.832,null,"SEA-DISTANCES.ORG"]
[null,"DST-S-D,,,ZAF-LIM,ESP","DST-S-D","","","ZAF-LIM","ESP",11662.6,null,"CERDI"]
[null,"DST-S-D,,,ZAF-LIM,FRA","DST-S-D","","","ZAF-LIM","FRA",10912.4,null,"CERDI"]
[null,"DST-S-D,,,ZAF-LIM,IND","DST-S-D","","","ZAF-LIM","IND",7432.11,null,"CERDI"]
[null,"DST-S-D,,,ZAF-LIM,JPN","DST-S-D","","","ZAF-LIM","JPN",13881.4,null,"CERDI"]
[null,"DST-S-D,,,ZAF-LIM,KOR","DST-S-D","","","ZAF-LIM","KOR",13593.9,null,"CERDI"]
[null,"DST-S-D,,,ZAF-LIM,NLD","DST-S-D","","","ZAF-LIM","NLD",13501.1,null,"CERDI"]
[null,"DST-S-D,,,ZAF-LIM,USA","DST-S-D","","","ZAF-LIM","USA",15010.8,null,"CERDI"]
[null,"DST-S-D,,,ZAF-MPU,CHN","DST-S-D","","","ZAF-MPU","CHN",12852.2,null,"CERDI"]
[null,"DST-S-D,,,ZAF-MPU,DEU","DST-S-D","","","ZAF-MPU","DEU",11789.832,null,"SEA-DISTANCES.ORG"]
[null,"DST-S-D,,,ZAF-MPU,ESP","DST-S-D","","","ZAF-MPU","ESP",11662.6,null,"CERDI"]
[null,"DST-S-D,,,ZAF-MPU,FRA","DST-S-D","","","ZAF-MPU","FRA",10912.4,null,"CERDI"]
[null,"DST-S-D,,,ZAF-MPU,IND","DST-S-D","","","ZAF-MPU","IND",7432.11,null,"CERDI"]
[null,"DST-S-D,,,ZAF-MPU,JPN","DST-S-D","","","ZAF-MPU","JPN",13881.4,null,"CERDI"]
[null,"DST-S-D,,,ZAF-MPU,KOR","DST-S-D","","","ZAF-MPU","KOR",13593.9,null,"CERDI"]
[null,"DST-S-D,,,ZAF-MPU,NLD","DST-S-D","","","ZAF-MPU","NLD",13501.1,null,"CERDI"]
[null,"DST-S-D,,,ZAF-MPU,USA","DST-S-D","","","ZAF-MPU","USA",15010.8,null,"CERDI"]
[null,"DST-S-D,,,ZAF-NC,CHN","DST-S-D","","","ZAF-NC","CHN",12852.2,null,"CERDI"]
[null,"DST-S-D,,,ZAF-NC,DEU","DST-S-D","","","ZAF-NC","DEU",11789.832,null,"SEA-DISTANCES.ORG"]
[null,"DST-S-D,,,ZAF-NC,ESP","DST-S-D","","","ZAF-NC","ESP",11662.6,null,"CERDI"]
[null,"DST-S-D,,,ZAF-NC,FRA","DST-S-D","","","ZAF-NC","FRA",10912.4,null,"CERDI"]
[null,"DST-S-D,,,ZAF-NC,IND","DST-S-D","","","ZAF-NC","IND",7432.11,null,"CERDI"]
[null,"DST-S-D,,,ZAF-NC,JPN","DST-S-D","","","ZAF-NC","JPN",13881.4,null,"CERDI"]
[null,"DST-S-D,,,ZAF-NC,KOR","DST-S-D","","","ZAF-NC","KOR",13593.9,null,"CERDI"]
[null,"DST-S-D,,,ZAF-NC,NLD","DST-S-D","","","ZAF-NC","NLD",13501.1,null,"CERDI"]
[null,"DST-S-D,,,ZAF-NC,USA","DST-S-D","","","ZAF-NC","USA",15010.8,null,"CERDI"]
[null,"DST-S-D,,,ZAF-NW,CHN","DST-S-D","","","ZAF-NW","CHN",12852.2,null,"CERDI"]
[null,"DST-S-D,,,ZAF-NW,DEU","DST-S-D","","","ZAF-NW","DEU",11789.832,null,"SEA-DISTANCES.ORG"]
[null,"DST-S-D,,,ZAF-NW,ESP","DST-S-D","","","ZAF-NW","ESP",11662.6,null,"CERDI"]
[null,"DST-S-D,,,ZAF-NW,FRA","DST-S-D","","","ZAF-NW","FRA",10912.4,null,"CERDI"]
[null,"DST-S-D,,,ZAF-NW,IND","DST-S-D","","","ZAF-NW","IND",7432.11,null,"CERDI"]
[null,"DST-S-D,,,ZAF-NW,JPN","DST-S-D","","","ZAF-NW","JPN",13881.4,null,"CERDI"]
[null,"DST-S-D,,,ZAF-NW,KOR","DST-S-D","","","ZAF-NW","KOR",13593.9,null,"CERDI"]
[null,"DST-S-D,,,ZAF-NW,NLD","DST-S-D","","","ZAF-NW","NLD",13501.1,null,"CERDI"]
[null,"DST-S-D,,,ZAF-NW,USA","DST-S-D","","","ZAF-NW","USA",15010.8,null,"CERDI"]
[null,"DST-S-D,,,ZAF-WC,CHN","DST-S-D","","","ZAF-WC","CHN",12852.2,null,"CERDI"]
[null,"DST-S-D,,,ZAF-WC,DEU","DST-S-D","","","ZAF-WC","DEU",11789.832,null,"SEA-DISTANCES.ORG"]
[null,"DST-S-D,,,ZAF-WC,ESP","DST-S-D","","","ZAF-WC","ESP",11662.6,null,"CERDI"]
[null,"DST-S-D,,,ZAF-WC,FRA","DST-S-D","","","ZAF-WC","FRA",10912.4,null,"CERDI"]
[null,"DST-S-D,,,ZAF-WC,IND","DST-S-D","","","ZAF-WC","IND",7432.11,null,"CERDI"]
[null,"DST-S-D,,,ZAF-WC,JPN","DST-S-D","","","ZAF-WC","JPN",13881.4,null,"CERDI"]
[null,"DST-S-D,,,ZAF-WC,KOR","DST-S-D","","","ZAF-WC","KOR",13593.9,null,"CERDI"]
[null,"DST-S-D,,,ZAF-WC,NLD","DST-S-D","","","ZAF-WC","NLD",13501.1,null,"CERDI"]
[null,"DST-S-D,,,ZAF-WC,USA","DST-S-D","","","ZAF-WC","USA",15010.8,null,"CERDI"]
[null,"DST-S-DP,,,ARE,CHN","DST-S-DP","","","ARE","CHN",4500,"km","Research Susanne Krieger"]
[null,"DST-S-DP,,,ARE,DEU","DST-S-DP","","","ARE","DEU",5500,"km","Research Susanne Krieger"]
[null,"DST-S-DP,,,ARE,ESP","DST-S-DP","","","ARE","ESP",6000,"km","Research Susanne Krieger"]
[null,"DST-S-DP,,,ARE,FRA","DST-S-DP","","","ARE","FRA",6000,"km","Research Susanne Krieger"]
[null,"DST-S-DP,,,ARE,IND","DST-S-DP","","","ARE","IND",2000,"km","Research Susanne Krieger"]
[null,"DST-S-DP,,,ARE,NLD","DST-S-DP","","","ARE","NLD",6000,"km","Research Susanne Krieger"]
[null,"DST-S-DP,,,CHN,IND","DST-S-DP","","","CHN","IND",3500,"km","Research Susanne Krieger"]
[null,"DST-S-DP,,,CHN,JPN","DST-S-DP","","","CHN","JPN",3500,"km","Research Susanne Krieger"]
[null,"DST-S-DP,,,CHN,KOR","DST-S-DP","","","CHN","KOR",2000,"km","Research Susanne Krieger"]
[null,"DST-S-DP,,,COL,USA","DST-S-DP","","","COL","USA",4500,"km","Research Susanne Krieger"]
[null,"DST-S-DP,,,CRI,USA","DST-S-DP","","","CRI","USA",3500,"km","Research Susanne Krieger"]
[null,"DST-S-DP,,,DNK,DEU","DST-S-DP","","","DNK","DEU",500,"km","Research Susanne Krieger"]
[null,"DST-S-DP,,,DNK,ESP","DST-S-DP","","","DNK","ESP",2000,"km","Research Susanne Krieger"]
[null,"DST-S-DP,,,DNK,FRA","DST-S-DP","","","DNK","FRA",1000,"km","Research Susanne Krieger"]
[null,"DST-S-DP,,,DNK,NLD","DST-S-DP","","","DNK","NLD",500,"km","Research Susanne Krieger"]
[null,"DST-S-DP,,,DZA,DEU","DST-S-DP","","","DZA","DEU",3000,"km","Research Susanne Krieger"]
[null,"DST-S-DP,,,DZA,ESP","DST-S-DP","","","DZA","ESP",1000,"km","Research Susanne Krieger"]
[null,"DST-S-DP,,,DZA,FRA","DST-S-DP","","","DZA","FRA",2000,"km","Research Susanne Krieger"]
[null,"DST-S-DP,,,DZA,NLD","DST-S-DP","","","DZA","NLD",3000,"km","Research Susanne Krieger"]
[null,"DST-S-DP,,,EGY,DEU","DST-S-DP","","","EGY","DEU",5000,"km","Research Susanne Krieger"]
[null,"DST-S-DP,,,EGY,ESP","DST-S-DP","","","EGY","ESP",4500,"km","Research Susanne Krieger"]
[null,"DST-S-DP,,,EGY,FRA","DST-S-DP","","","EGY","FRA",4000,"km","Research Susanne Krieger"]
[null,"DST-S-DP,,,EGY,IND","DST-S-DP","","","EGY","IND",5000,"km","Research Susanne Krieger"]
[null,"DST-S-DP,,,EGY,NLD","DST-S-DP","","","EGY","NLD",5000,"km","Research Susanne Krieger"]
[null,"DST-S-DP,,,ESP,DEU","DST-S-DP","","","ESP","DEU",1500,"km","Research Susanne Krieger"]
[null,"DST-S-DP,,,ESP,FRA","DST-S-DP","","","ESP","FRA",100,"km","Research Susanne Krieger"]
[null,"DST-S-DP,,,ESP,NLD","DST-S-DP","","","ESP","NLD",1500,"km","Research Susanne Krieger"]
[null,"DST-S-DP,,,IDN,CHN","DST-S-DP","","","IDN","CHN",4000,"km","Research Susanne Krieger"]
[null,"DST-S-DP,,,IDN,IND","DST-S-DP","","","IDN","IND",5000,"km","Research Susanne Krieger"]
[null,"DST-S-DP,,,IDN,JPN","DST-S-DP","","","IDN","JPN",5500,"km","Research Susanne Krieger"]
[null,"DST-S-DP,,,IDN,KOR","DST-S-DP","","","IDN","KOR",5500,"km","Research Susanne Krieger"]
[null,"DST-S-DP,,,IND,CHN","DST-S-DP","","","IND","CHN",3000,"km","Research Susanne Krieger"]
[null,"DST-S-DP,,,JOR,DEU","DST-S-DP","","","JOR","DEU",3500,"km","Research Susanne Krieger"]
[null,"DST-S-DP,,,JOR,ESP","DST-S-DP","","","JOR","ESP",4000,"km","Research Susanne Krieger"]
[null,"DST-S-DP,,,JOR,FRA","DST-S-DP","","","JOR","FRA",4000,"km","Research Susanne Krieger"]
[null,"DST-S-DP,,,JOR,IND","DST-S-DP","","","JOR","IND",4500,"km","Research Susanne Krieger"]
[null,"DST-S-DP,,,JOR,NLD","DST-S-DP","","","JOR","NLD",4000,"km","Research Susanne Krieger"]
[null,"DST-S-DP,,,KAZ,CHN","DST-S-DP","","","KAZ","CHN",1500,"km","Research Susanne Krieger"]
[null,"DST-S-DP,,,KAZ,DEU","DST-S-DP","","","KAZ","DEU",3500,"km","Research Susanne Krieger"]
[null,"DST-S-DP,,,KAZ,ESP","DST-S-DP","","","KAZ","ESP",5000,"km","Research Susanne Krieger"]
[null,"DST-S-DP,,,KAZ,FRA","DST-S-DP","","","KAZ","FRA",4000,"km","Research Susanne Krieger"]
[null,"DST-S-DP,,,KAZ,IND","DST-S-DP","","","KAZ","IND",3000,"km","Research Susanne Krieger"]
[null,"DST-S-DP,,,KAZ,NLD","DST-S-DP","","","KAZ","NLD",4000,"km","Research Susanne Krieger"]
[null,"DST-S-DP,,,KEN,IND","DST-S-DP","","","KEN","IND",5000,"km","Research Susanne Krieger"]
[null,"DST-S-DP,,,MAR,DEU","DST-S-DP","","","MAR","DEU",2500,"km","Research Susanne Krieger"]
[null,"DST-S-DP,,,MAR,ESP","DST-S-DP","","","MAR","ESP",250,"km","Research Susanne Krieger"]
[null,"DST-S-DP,,,MAR,FRA","DST-S-DP","","","MAR","FRA",2000,"km","Research Susanne Krieger"]
[null,"DST-S-DP,,,MAR,NLD","DST-S-DP","","","MAR","NLD",2500,"km","Research Susanne Krieger"]
[null,"DST-S-DP,,,MAR-BEN,DEU","DST-S-DP","","","MAR-BEN","DEU",2500,"km","Research Susanne Krieger"]
[null,"DST-S-DP,,,MAR-BEN,ESP","DST-S-DP","","","MAR-BEN","ESP",250,"km","Research Susanne Krieger"]
[null,"DST-S-DP,,,MAR-BEN,FRA","DST-S-DP","","","MAR-BEN","FRA",2000,"km","Research Susanne Krieger"]
[null,"DST-S-DP,,,MAR-BEN,NLD","DST-S-DP","","","MAR-BEN","NLD",2500,"km","Research Susanne Krieger"]
[null,"DST-S-DP,,,MAR-CAS,DEU","DST-S-DP","","","MAR-CAS","DEU",2500,"km","Research Susanne Krieger"]
[null,"DST-S-DP,,,MAR-CAS,ESP","DST-S-DP","","","MAR-CAS","ESP",250,"km","Research Susanne Krieger"]
[null,"DST-S-DP,,,MAR-CAS,FRA","DST-S-DP","","","MAR-CAS","FRA",2000,"km","Research Susanne Krieger"]
[null,"DST-S-DP,,,MAR-CAS,NLD","DST-S-DP","","","MAR-CAS","NLD",2500,"km","Research Susanne Krieger"]
[null,"DST-S-DP,,,MAR-DAK,DEU","DST-S-DP","","","MAR-DAK","DEU",2500,"km","Research Susanne Krieger"]
[null,"DST-S-DP,,,MAR-DAK,ESP","DST-S-DP","","","MAR-DAK","ESP",250,"km","Research Susanne Krieger"]
[null,"DST-S-DP,,,MAR-DAK,FRA","DST-S-DP","","","MAR-DAK","FRA",2000,"km","Research Susanne Krieger"]
[null,"DST-S-DP,,,MAR-DAK,NLD","DST-S-DP","","","MAR-DAK","NLD",2500,"km","Research Susanne Krieger"]
[null,"DST-S-DP,,,MAR-DRA,DEU","DST-S-DP","","","MAR-DRA","DEU",2500,"km","Research Susanne Krieger"]
[null,"DST-S-DP,,,MAR-DRA,ESP","DST-S-DP","","","MAR-DRA","ESP",250,"km","Research Susanne Krieger"]
[null,"DST-S-DP,,,MAR-DRA,FRA","DST-S-DP","","","MAR-DRA","FRA",2000,"km","Research Susanne Krieger"]
[null,"DST-S-DP,,,MAR-DRA,NLD","DST-S-DP","","","MAR-DRA","NLD",2500,"km","Research Susanne Krieger"]
[null,"DST-S-DP,,,MAR-FES,DEU","DST-S-DP","","","MAR-FES","DEU",2500,"km","Research Susanne Krieger"]
[null,"DST-S-DP,,,MAR-FES,ESP","DST-S-DP","","","MAR-FES","ESP",250,"km","Research Susanne Krieger"]
[null,"DST-S-DP,,,MAR-FES,FRA","DST-S-DP","","","MAR-FES","FRA",2000,"km","Research Susanne Krieger"]
[null,"DST-S-DP,,,MAR-FES,NLD","DST-S-DP","","","MAR-FES","NLD",2500,"km","Research Susanne Krieger"]
[null,"DST-S-DP,,,MAR-GUE,DEU","DST-S-DP","","","MAR-GUE","DEU",2500,"km","Research Susanne Krieger"]
[null,"DST-S-DP,,,MAR-GUE,ESP","DST-S-DP","","","MAR-GUE","ESP",250,"km","Research Susanne Krieger"]
[null,"DST-S-DP,,,MAR-GUE,FRA","DST-S-DP","","","MAR-GUE","FRA",2000,"km","Research Susanne Krieger"]
[null,"DST-S-DP,,,MAR-GUE,NLD","DST-S-DP","","","MAR-GUE","NLD",2500,"km","Research Susanne Krieger"]
[null,"DST-S-DP,,,MAR-LAA,DEU","DST-S-DP","","","MAR-LAA","DEU",2500,"km","Research Susanne Krieger"]
[null,"DST-S-DP,,,MAR-LAA,ESP","DST-S-DP","","","MAR-LAA","ESP",250,"km","Research Susanne Krieger"]
[null,"DST-S-DP,,,MAR-LAA,FRA","DST-S-DP","","","MAR-LAA","FRA",2000,"km","Research Susanne Krieger"]
[null,"DST-S-DP,,,MAR-LAA,NLD","DST-S-DP","","","MAR-LAA","NLD",2500,"km","Research Susanne Krieger"]
[null,"DST-S-DP,,,MAR-LOR,DEU","DST-S-DP","","","MAR-LOR","DEU",2500,"km","Research Susanne Krieger"]
[null,"DST-S-DP,,,MAR-LOR,ESP","DST-S-DP","","","MAR-LOR","ESP",250,"km","Research Susanne Krieger"]
[null,"DST-S-DP,,,MAR-LOR,FRA","DST-S-DP","","","MAR-LOR","FRA",2000,"km","Research Susanne Krieger"]
[null,"DST-S-DP,,,MAR-LOR,NLD","DST-S-DP","","","MAR-LOR","NLD",2500,"km","Research Susanne Krieger"]
[null,"DST-S-DP,,,MAR-MAR,DEU","DST-S-DP","","","MAR-MAR","DEU",2500,"km","Research Susanne Krieger"]
[null,"DST-S-DP,,,MAR-MAR,ESP","DST-S-DP","","","MAR-MAR","ESP",250,"km","Research Susanne Krieger"]
[null,"DST-S-DP,,,MAR-MAR,FRA","DST-S-DP","","","MAR-MAR","FRA",2000,"km","Research Susanne Krieger"]
[null,"DST-S-DP,,,MAR-MAR,NLD","DST-S-DP","","","MAR-MAR","NLD",2500,"km","Research Susanne Krieger"]
[null,"DST-S-DP,,,MAR-RAB,DEU","DST-S-DP","","","MAR-RAB","DEU",2500,"km","Research Susanne Krieger"]
[null,"DST-S-DP,,,MAR-RAB,ESP","DST-S-DP","","","MAR-RAB","ESP",250,"km","Research Susanne Krieger"]
[null,"DST-S-DP,,,MAR-RAB,FRA","DST-S-DP","","","MAR-RAB","FRA",2000,"km","Research Susanne Krieger"]
[null,"DST-S-DP,,,MAR-RAB,NLD","DST-S-DP","","","MAR-RAB","NLD",2500,"km","Research Susanne Krieger"]
[null,"DST-S-DP,,,MAR-SOU,DEU","DST-S-DP","","","MAR-SOU","DEU",2500,"km","Research Susanne Krieger"]
[null,"DST-S-DP,,,MAR-SOU,ESP","DST-S-DP","","","MAR-SOU","ESP",250,"km","Research Susanne Krieger"]
[null,"DST-S-DP,,,MAR-SOU,FRA","DST-S-DP","","","MAR-SOU","FRA",2000,"km","Research Susanne Krieger"]
[null,"DST-S-DP,,,MAR-SOU,NLD","DST-S-DP","","","MAR-SOU","NLD",2500,"km","Research Susanne Krieger"]
[null,"DST-S-DP,,,MAR-TAN,DEU","DST-S-DP","","","MAR-TAN","DEU",2500,"km","Research Susanne Krieger"]
[null,"DST-S-DP,,,MAR-TAN,ESP","DST-S-DP","","","MAR-TAN","ESP",250,"km","Research Susanne Krieger"]
[null,"DST-S-DP,,,MAR-TAN,FRA","DST-S-DP","","","MAR-TAN","FRA",2000,"km","Research Susanne Krieger"]
[null,"DST-S-DP,,,MAR-TAN,NLD","DST-S-DP","","","MAR-TAN","NLD",2500,"km","Research Susanne Krieger"]
[null,"DST-S-DP,,,MEX,USA","DST-S-DP","","","MEX","USA",500,"km","Research Susanne Krieger"]
[null,"DST-S-DP,,,MRT,DEU","DST-S-DP","","","MRT","DEU",5000,"km","Research Susanne Krieger"]
[null,"DST-S-DP,,,MRT,ESP","DST-S-DP","","","MRT","ESP",3000,"km","Research Susanne Krieger"]
[null,"DST-S-DP,,,MRT,FRA","DST-S-DP","","","MRT","FRA",4000,"km","Research Susanne Krieger"]
[null,"DST-S-DP,,,MRT,NLD","DST-S-DP","","","MRT","NLD",5000,"km","Research Susanne Krieger"]
[null,"DST-S-DP,,,NOR,DEU","DST-S-DP","","","NOR","DEU",500,"km","Research Susanne Krieger"]
[null,"DST-S-DP,,,NOR,ESP","DST-S-DP","","","NOR","ESP",2000,"km","Research Susanne Krieger"]
[null,"DST-S-DP,,,NOR,FRA","DST-S-DP","","","NOR","FRA",1000,"km","Research Susanne Krieger"]
[null,"DST-S-DP,,,NOR,NLD","DST-S-DP","","","NOR","NLD",1000,"km","Research Susanne Krieger"]
[null,"DST-S-DP,,,PER,USA","DST-S-DP","","","PER","USA",5500,"km","Research Susanne Krieger"]
[null,"DST-S-DP,,,PRT,DEU","DST-S-DP","","","PRT","DEU",2000,"km","Research Susanne Krieger"]
[null,"DST-S-DP,,,PRT,ESP","DST-S-DP","","","PRT","ESP",250,"km","Research Susanne Krieger"]
[null,"DST-S-DP,,,PRT,FRA","DST-S-DP","","","PRT","FRA",1000,"km","Research Susanne Krieger"]
[null,"DST-S-DP,,,PRT,NLD","DST-S-DP","","","PRT","NLD",2000,"km","Research Susanne Krieger"]
[null,"DST-S-DP,,,RUS,CHN","DST-S-DP","","","RUS","CHN",4000,"km","Research Susanne Krieger"]
[null,"DST-S-DP,,,RUS,DEU","DST-S-DP","","","RUS","DEU",1000,"km","Research Susanne Krieger"]
[null,"DST-S-DP,,,RUS,ESP","DST-S-DP","","","RUS","ESP",5000,"km","Research Susanne Krieger"]
[null,"DST-S-DP,,,RUS,FRA","DST-S-DP","","","RUS","FRA",4000,"km","Research Susanne Krieger"]
[null,"DST-S-DP,,,RUS,IND","DST-S-DP","","","RUS","IND",4000,"km","Research Susanne Krieger"]
[null,"DST-S-DP,,,RUS,JPN","DST-S-DP","","","RUS","JPN",4000,"km","Research Susanne Krieger"]
[null,"DST-S-DP,,,RUS,KOR","DST-S-DP","","","RUS","KOR",3000,"km","Research Susanne Krieger"]
[null,"DST-S-DP,,,RUS,NLD","DST-S-DP","","","RUS","NLD",4000,"km","Research Susanne Krieger"]
[null,"DST-S-DP,,,SAU,DEU","DST-S-DP","","","SAU","DEU",4500,"km","Research Susanne Krieger"]
[null,"DST-S-DP,,,SAU,ESP","DST-S-DP","","","SAU","ESP",5000,"km","Research Susanne Krieger"]
[null,"DST-S-DP,,,SAU,FRA","DST-S-DP","","","SAU","FRA",5000,"km","Research Susanne Krieger"]
[null,"DST-S-DP,,,SAU,IND","DST-S-DP","","","SAU","IND",3500,"km","Research Susanne Krieger"]
[null,"DST-S-DP,,,SAU,NLD","DST-S-DP","","","SAU","NLD",5000,"km","Research Susanne Krieger"]
[null,"DST-S-DP,,,SWE,DEU","DST-S-DP","","","SWE","DEU",1000,"km","Research Susanne Krieger"]
[null,"DST-S-DP,,,SWE,ESP","DST-S-DP","","","SWE","ESP",3000,"km","Research Susanne Krieger"]
[null,"DST-S-DP,,,SWE,FRA","DST-S-DP","","","SWE","FRA",2000,"km","Research Susanne Krieger"]
[null,"DST-S-DP,,,SWE,NLD","DST-S-DP","","","SWE","NLD",2000,"km","Research Susanne Krieger"]
[null,"DST-S-DP,,,THA,CHN","DST-S-DP","","","THA","CHN",1500,"km","Research Susanne Krieger"]
[null,"DST-S-DP,,,THA,IND","DST-S-DP","","","THA","IND",2500,"km","Research Susanne Krieger"]
[null,"DST-S-DP,,,THA,JPN","DST-S-DP","","","THA","JPN",5000,"km","Research Susanne Krieger"]
[null,"DST-S-DP,,,THA,KOR","DST-S-DP","","","THA","KOR",5000,"km","Research Susanne Krieger"]
[null,"DST-S-DP,,,TUN,DEU","DST-S-DP","","","TUN","DEU",2000,"km","Research Susanne Krieger"]
[null,"DST-S-DP,,,TUN,ESP","DST-S-DP","","","TUN","ESP",1500,"km","Research Susanne Krieger"]
[null,"DST-S-DP,,,TUN,FRA","DST-S-DP","","","TUN","FRA",1000,"km","Research Susanne Krieger"]
[null,"DST-S-DP,,,TUN,NLD","DST-S-DP","","","TUN","NLD",2500,"km","Research Susanne Krieger"]
[null,"DST-S-DP,,,UKR,DEU","DST-S-DP","","","UKR","DEU",1500,"km","Research Susanne Krieger"]
[null,"DST-S-DP,,,UKR,ESP","DST-S-DP","","","UKR","ESP",3000,"km","Research Susanne Krieger"]
[null,"DST-S-DP,,,UKR,FRA","DST-S-DP","","","UKR","FRA",2000,"km","Research Susanne Krieger"]
[null,"DST-S-DP,,,UKR,NLD","DST-S-DP","","","UKR","NLD",2000,"km","Research Susanne Krieger"]
[null,"DST-S-DP,,,VNM,CHN","DST-S-DP","","","VNM","CHN",1000,"km","Research Susanne Krieger"]
[null,"DST-S-DP,,,VNM,IND","DST-S-DP","","","VNM","IND",3500,"km","Research Susanne Krieger"]
[null,"DST-S-DP,,,VNM,JPN","DST-S-DP","","","VNM","JPN",4000,"km","Research Susanne Krieger"]
[null,"DST-S-DP,,,VNM,KOR","DST-S-DP","","","VNM","KOR",5000,"km","Research Susanne Krieger"]
[null,"EFF,AEL-EL,,,","EFF","AEL-EL","","","",0.71499999999999997,"various (output per main input)"]
[null,"EFF,ATR,,,","EFF","ATR","","","",0.79991999999999996,"various (output per main input)","Oni et al. 2022"]
[null,"EFF,CH3OHSYN,,,","EFF","CH3OHSYN","","","",0.80300000000000005,"various (output per main input)","Frontier Economics 2021"]
[null,"EFF,CH4-RGAS,,,","EFF","CH4-RGAS","","","",0.98,"various (output per main input)","Pospíšil et al. 2019"]
[null,"EFF,CH4SYN,,,","EFF","CH4SYN","","","",0.83,"various (output per main input)","Öko-Institut 2020"]
[null,"EFF,DESAL,,,","EFF","DESAL","","","",1,"various (output per main input)"]
[null,"EFF,DRI,,,","EFF","DRI","","","",0.35759897828863341,"kg DRI (s)/kwhh2","Agora Industry Transformation 2021"]
[null,"EFF,EFUELSYN,,,","EFF","EFUELSYN","","","",0.73,"various (output per main input)","Frontier Economics 2021"]
[null,"EFF,H2-LIQ,,,","EFF","H2-LIQ","","","",1,"various (output per main input)"]
[null,"EFF,H2-RGAS,,,","EFF","H2-RGAS","","","",0.99654654654654651,"various (output per main input)","DNV GL 2020"]
[null,"EFF,LOHC-REC,,,","EFF","LOHC-REC","","","",0.9,"various (output per main input)","DNV GL 2020"]
[null,"EFF,NH3-REC,,,","EFF","NH3-REC","","","",0.74661016949152537,"various (output per main input)","NGN; Equinor 2018"]
[null,"EFF,NH3SYN,,,","EFF","NH3SYN","","","",0.81899999999999995,"various (output per main input)","Frotier Economics 2021"]
[null,"EFF,PEM-EL,,,","EFF","PEM-EL","","","",0.70499999999999996,"various (output per main input)"]
[null,"EFF,REGASATR,,,","EFF","REGASATR","","","",0.77991999999999995,"various (output per main input)","combined values"]
[null,"EFF,SOEC-EL,,,","EFF","SOEC-EL","","","",0.77333333333333321,"various (output per main input)"]
[null,"FLH,AEL-EL,,,","FLH","AEL-EL","","","",3861.9141914191418,"h","average of PTX Atlas"]
[null,"FLH,DRI,,,","FLH","DRI","","","",7884,"0"]
[null,"FLH,NH3SYN,,,","FLH","NH3SYN","","","",8000,"h","Fasihi et al. 2021"]
[null,"FLH,PEM-EL,,,","FLH","PEM-EL","","","",3861.9141914191418,"h","average of PTX Atlas"]
[null,"FLH,PV-FIX,,ARE,","FLH","PV-FIX","","ARE","",1662,"h"]
[null,"FLH,PV-FIX,,ARG,","FLH","PV-FIX","","ARG","",1494,"h"]
[null,"FLH,PV-FIX,,ARG-BA,","FLH","PV-FIX","","ARG-BA","",1501.409990284945,"h"]
[null,"FLH,PV-FIX,,ARG-CAT,","FLH","PV-FIX","","ARG-CAT","",2184.2849520000136,"h"]
[null,"FLH,PV-FIX,,ARG-CBA,","FLH","PV-FIX","","ARG-CBA","",1472.2464967200012,"h"]
[null,"FLH,PV-FIX,,ARG-CHA,","FLH","PV-FIX","","ARG-CHA","",1462.293405359997,"h"]
[null,"FLH,PV-FIX,,ARG-CHU,","FLH","PV-FIX","","ARG-CHU","",1565.6552791200011,"h"]
[null,"FLH,PV-FIX,,ARG-COR,","FLH","PV-FIX","","ARG-COR","",1411.9226517600005,"h"]
[null,"FLH,PV-FIX,,ARG-CRB,","FLH","PV-FIX","","ARG-CRB","",1571.8333939199993,"h"]
[null,"FLH,PV-FIX,,ARG-CRU,","FLH","PV-FIX","","ARG-CRU","",1419.2559755999985,"h"]
[null,"FLH,PV-FIX,,ARG-EST,","FLH","PV-FIX","","ARG-EST","",1553.4726681600023,"h"]
[null,"FLH,PV-FIX,,ARG-FOR,","FLH","PV-FIX","","ARG-FOR","",1449.92262888,"h"]
[null,"FLH,PV-FIX,,ARG-FUE,","FLH","PV-FIX","","ARG-FUE","",919.59809255999858,"h"]
[null,"FLH,PV-FIX,,ARG-JUJ,","FLH","PV-FIX","","ARG-JUJ","",2038.9844970000051,"h"]
[null,"FLH,PV-FIX,,ARG-LAR,","FLH","PV-FIX","","ARG-LAR","",1927.5699347999985,"h"]
[null,"FLH,PV-FIX,,ARG-MEN,","FLH","PV-FIX","","ARG-MEN","",1738.9096295999984,"h"]
[null,"FLH,PV-FIX,,ARG-MIS,","FLH","PV-FIX","","ARG-MIS","",1441.0558828799994,"h"]
[null,"FLH,PV-FIX,,ARG-NEG,","FLH","PV-FIX","","ARG-NEG","",1598.6654748000003,"h"]
[null,"FLH,PV-FIX,,ARG-NEU,","FLH","PV-FIX","","ARG-NEU","",1672.0413458399996,"h"]
[null,"FLH,PV-FIX,,ARG-PAM,","FLH","PV-FIX","","ARG-PAM","",1585.1219047199993,"h"]
[null,"FLH,PV-FIX,,ARG-RIO,","FLH","PV-FIX","","ARG-RIO","",1444.5405770399989,"h"]
[null,"FLH,PV-FIX,,ARG-SAF,","FLH","PV-FIX","","ARG-SAF","",1463.6960647199994,"h"]
[null,"FLH,PV-FIX,,ARG-SAJ,","FLH","PV-FIX","","ARG-SAJ","",1798.3159226999983,"h"]
[null,"FLH,PV-FIX,,ARG-SAL,","FLH","PV-FIX","","ARG-SAL","",1674.9613511999978,"h"]
[null,"FLH,PV-FIX,,ARG-SAT,","FLH","PV-FIX","","ARG-SAT","",1564.1549919000008,"h"]
[null,"FLH,PV-FIX,,ARG-TUC,","FLH","PV-FIX","","ARG-TUC","",1670.31158688,"h"]
[null,"FLH,PV-FIX,,AUS,","FLH","PV-FIX","","AUS","",1557,"h"]
[null,"FLH,PV-FIX,,BRA,","FLH","PV-FIX","","BRA","",1346,"h"]
[null,"FLH,PV-FIX,,CHL,","FLH","PV-FIX","","CHL","",1939,"h"]
[null,"FLH,PV-FIX,,CHN,","FLH","PV-FIX","","CHN","",1845.4554144000026,"h"]
[null,"FLH,PV-FIX,,COL,","FLH","PV-FIX","","COL","",1300,"h"]
[null,"FLH,PV-FIX,,CRI,","FLH","PV-FIX","","CRI","",1336.1040323999978,"h"]
[null,"FLH,PV-FIX,,DNK,","FLH","PV-FIX","","DNK","",957.75962760000073,"h"]
[null,"FLH,PV-FIX,,DZA,","FLH","PV-FIX","","DZA","",1699,"h"]
[null,"FLH,PV-FIX,,EGY,","FLH","PV-FIX","","EGY","",1744,"h"]
[null,"FLH,PV-FIX,,ESP,","FLH","PV-FIX","","ESP","",1567.2650796000021,"h"]
[null,"FLH,PV-FIX,,IDN,","FLH","PV-FIX","","IDN","",1506,"h"]
[null,"FLH,PV-FIX,,IND,","FLH","PV-FIX","","IND","",1562,"h"]
[null,"FLH,PV-FIX,,JOR,","FLH","PV-FIX","","JOR","",1792,"h"]
[null,"FLH,PV-FIX,,KAZ,","FLH","PV-FIX","","KAZ","",1425,"h"]
[null,"FLH,PV-FIX,,KEN,","FLH","PV-FIX","","KEN","",1418,"h"]
[null,"FLH,PV-FIX,,MAR,","FLH","PV-FIX","","MAR","",1631,"h"]
[null,"FLH,PV-FIX,,MAR-BEN,","FLH","PV-FIX","","MAR-BEN","",1745.3384668799999,"h"]
[null,"FLH,PV-FIX,,MAR-CAS,","FLH","PV-FIX","","MAR-CAS","",1665.7276233599982,"h"]
[null,"FLH,PV-FIX,,MAR-DAK,","FLH","PV-FIX","","MAR-DAK","",1728.1917287999981,"h"]
[null,"FLH,PV-FIX,,MAR-DRA,","FLH","PV-FIX","","MAR-DRA","",1808.0709587999988,"h"]
[null,"FLH,PV-FIX,,MAR-FES,","FLH","PV-FIX","","MAR-FES","",1678.0894264800027,"h"]
[null,"FLH,PV-FIX,,MAR-GUE,","FLH","PV-FIX","","MAR-GUE","",1758.0457144800002,"h"]
[null,"FLH,PV-FIX,,MAR-LAA,","FLH","PV-FIX","","MAR-LAA","",1742.770432080001,"h"]
[null,"FLH,PV-FIX,,MAR-LOR,","FLH","PV-FIX","","MAR-LOR","",1709.8854897600017,"h"]
[null,"FLH,PV-FIX,,MAR-MAR,","FLH","PV-FIX","","MAR-MAR","",1734.1491045599982,"h"]
[null,"FLH,PV-FIX,,MAR-RAB,","FLH","PV-FIX","","MAR-RAB","",1620.7182007199983,"h"]
[null,"FLH,PV-FIX,,MAR-SOU,","FLH","PV-FIX","","MAR-SOU","",1800.775983599998,"h"]
[null,"FLH,PV-FIX,,MAR-TAN,","FLH","PV-FIX","","MAR-TAN","",1615.309697519999,"h"]
[null,"FLH,PV-FIX,,MEX,","FLH","PV-FIX","","MEX","",1731,"h"]
[null,"FLH,PV-FIX,,MRT,","FLH","PV-FIX","","MRT","",1657,"h"]
[null,"FLH,PV-FIX,,NAM,","FLH","PV-FIX","","NAM","",1859.5896948000045,"h"]
[null,"FLH,PV-FIX,,NOR,","FLH","PV-FIX","","NOR","",845.30347200000051,"h"]
[null,"FLH,PV-FIX,,PER,","FLH","PV-FIX","","PER","",1746,"h"]
[null,"FLH,PV-FIX,,PRT,","FLH","PV-FIX","","PRT","",1445.5080791999967,"h"]
[null,"FLH,PV-FIX,,RUS,","FLH","PV-FIX","","RUS","",1173,"h"]
[null,"FLH,PV-FIX,,SAU,","FLH","PV-FIX","","SAU","",1723,"h"]
[null,"FLH,PV-FIX,,SWE,","FLH","PV-FIX","","SWE","",886.08134879999852,"h"]
[null,"FLH,PV-FIX,,THA,","FLH","PV-FIX","","THA","",1254.531981600001,"h"]
[null,"FLH,PV-FIX,,TUN,","FLH","PV-FIX","","TUN","",1611,"h"]
[null,"FLH,PV-FIX,,UKR,","FLH","PV-FIX","","UKR","",1398.7297331999989,"h"]
[null,"FLH,PV-FIX,,URY,","FLH","PV-FIX","","URY","",1338,"h"]
[null,"FLH,PV-FIX,,USA,","FLH","PV-FIX","","USA","",1593,"h"]
[null,"FLH,PV-FIX,,VNM,","FLH","PV-FIX","","VNM","",1266.9854976000001,"h"]
[null,"FLH,PV-FIX,,ZAF,","FLH","PV-FIX","","ZAF","",1603,"h"]
[null,"FLH,PV-FIX,,ZAF-EC,","FLH","PV-FIX","","ZAF-EC","",1725.7083537599988,"h"]
[null,"FLH,PV-FIX,,ZAF-FRS,","FLH","PV-FIX","","ZAF-FRS","",1808.769283199998,"h"]
[null,"FLH,PV-FIX,,ZAF-GAU,","FLH","PV-FIX","","ZAF-GAU","",1770.0387314399968,"h"]
[null,"FLH,PV-FIX,,ZAF-KWA,","FLH","PV-FIX","","ZAF-KWA","",1694.9134799999979,"h"]
[null,"FLH,PV-FIX,,ZAF-LIM,","FLH","PV-FIX","","ZAF-LIM","",1711.457395919999,"h"]
[null,"FLH,PV-FIX,,ZAF-MPU,","FLH","PV-FIX","","ZAF-MPU","",1752.2448955200002,"h"]
[null,"FLH,PV-FIX,,ZAF-NC,","FLH","PV-FIX","","ZAF-NC","",1814.9242226399974,"h"]
[null,"FLH,PV-FIX,,ZAF-NW,","FLH","PV-FIX","","ZAF-NW","",1786.6500962399978,"h"]
[null,"FLH,PV-FIX,,ZAF-WC,","FLH","PV-FIX","","ZAF-WC","",1664.7200798400002,"h"]
[null,"FLH,RES-HYBR,,ARE,","FLH","RES-HYBR","","ARE","",3116.3347803479924,"h"]
[null,"FLH,RES-HYBR,,ARG,","FLH","RES-HYBR","","ARG","",5660.92,"h"]
[null,"FLH,RES-HYBR,,ARG-BA,","FLH","RES-HYBR","","ARG-BA","",4945.8767126930315,"h"]
[null,"FLH,RES-HYBR,,ARG-CAT,","FLH","RES-HYBR","","ARG-CAT","",4818.1134165187877,"h"]
[null,"FLH,RES-HYBR,,ARG-CBA,","FLH","RES-HYBR","","ARG-CBA","",4796.3272366469528,"h"]
[null,"FLH,RES-HYBR,,ARG-CHA,","FLH","RES-HYBR","","ARG-CHA","",4353.1801274671416,"h"]
[null,"FLH,RES-HYBR,,ARG-CHU,","FLH","RES-HYBR","","ARG-CHU","",6390.4146064505558,"h"]
[null,"FLH,RES-HYBR,,ARG-COR,","FLH","RES-HYBR","","ARG-COR","",4296.9749353692923,"h"]
[null,"FLH,RES-HYBR,,ARG-CRB,","FLH","RES-HYBR","","ARG-CRB","",4058.0540031422247,"h"]
[null,"FLH,RES-HYBR,,ARG-CRU,","FLH","RES-HYBR","","ARG-CRU","",6369.4767112831887,"h"]
[null,"FLH,RES-HYBR,,ARG-EST,","FLH","RES-HYBR","","ARG-EST","",4886.4479918271754,"h"]
[null,"FLH,RES-HYBR,,ARG-FOR,","FLH","RES-HYBR","","ARG-FOR","",4947.3662874337479,"h"]
[null,"FLH,RES-HYBR,,ARG-FUE,","FLH","RES-HYBR","","ARG-FUE","",4348.7759583573197,"h"]
[null,"FLH,RES-HYBR,,ARG-JUJ,","FLH","RES-HYBR","","ARG-JUJ","",5341.5292254807428,"h"]
[null,"FLH,RES-HYBR,,ARG-LAR,","FLH","RES-HYBR","","ARG-LAR","",4993.6358442638966,"h"]
[null,"FLH,RES-HYBR,,ARG-MEN,","FLH","RES-HYBR","","ARG-MEN","",4634.7425576878331,"h"]
[null,"FLH,RES-HYBR,,ARG-MIS,","FLH","RES-HYBR","","ARG-MIS","",3199.5290500507745,"h"]
[null,"FLH,RES-HYBR,,ARG-NEG,","FLH","RES-HYBR","","ARG-NEG","",5871.0170147807694,"h"]
[null,"FLH,RES-HYBR,,ARG-NEU,","FLH","RES-HYBR","","ARG-NEU","",5150.2668537210066,"h"]
[null,"FLH,RES-HYBR,,ARG-PAM,","FLH","RES-HYBR","","ARG-PAM","",5140.6823491886607,"h"]
[null,"FLH,RES-HYBR,,ARG-RIO,","FLH","RES-HYBR","","ARG-RIO","",4336.8044520469111,"h"]
[null,"FLH,RES-HYBR,,ARG-SAF,","FLH","RES-HYBR","","ARG-SAF","",4440.5215244686588,"h"]
[null,"FLH,RES-HYBR,,ARG-SAJ,","FLH","RES-HYBR","","ARG-SAJ","",4214.2631306310104,"h"]
[null,"FLH,RES-HYBR,,ARG-SAL,","FLH","RES-HYBR","","ARG-SAL","",5055.8296990927674,"h"]
[null,"FLH,RES-HYBR,,ARG-SAT,","FLH","RES-HYBR","","ARG-SAT","",4747.3079047460951,"h"]
[null,"FLH,RES-HYBR,,ARG-TUC,","FLH","RES-HYBR","","ARG-TUC","",3565.3259655172683,"h"]
[null,"FLH,RES-HYBR,,AUS,","FLH","RES-HYBR","","AUS","",4753.97,"h"]
[null,"FLH,RES-HYBR,,BRA,","FLH","RES-HYBR","","BRA","",5155.55,"h"]
[null,"FLH,RES-HYBR,,CHL,","FLH","RES-HYBR","","CHL","",3450.29,"h"]
[null,"FLH,RES-HYBR,,CHN,","FLH","RES-HYBR","","CHN","",5183.707028904495,"h"]
[null,"FLH,RES-HYBR,,COL,","FLH","RES-HYBR","","COL","",5503,"h"]
[null,"FLH,RES-HYBR,,CRI,","FLH","RES-HYBR","","CRI","",3421.5147964974931,"h"]
[null,"FLH,RES-HYBR,,DNK,","FLH","RES-HYBR","","DNK","",5197.0268387719998,"h"]
[null,"FLH,RES-HYBR,,DZA,","FLH","RES-HYBR","","DZA","",4270.91,"h"]
[null,"FLH,RES-HYBR,,EGY,","FLH","RES-HYBR","","EGY","",4644.3599999999997,"h"]
[null,"FLH,RES-HYBR,,ESP,","FLH","RES-HYBR","","ESP","",5668.5234185745076,"h"]
[null,"FLH,RES-HYBR,,IDN,","FLH","RES-HYBR","","IDN","",2496.284437136494,"h"]
[null,"FLH,RES-HYBR,,IND,","FLH","RES-HYBR","","IND","",4890.74,"h"]
[null,"FLH,RES-HYBR,,JOR,","FLH","RES-HYBR","","JOR","",2376.5,"h"]
[null,"FLH,RES-HYBR,,KAZ,","FLH","RES-HYBR","","KAZ","",5289.962108140493,"h"]
[null,"FLH,RES-HYBR,,KEN,","FLH","RES-HYBR","","KEN","",3668.54,"h"]
[null,"FLH,RES-HYBR,,MAR,","FLH","RES-HYBR","","MAR","",4739.42,"h"]
[null,"FLH,RES-HYBR,,MAR-BEN,","FLH","RES-HYBR","","MAR-BEN","",3352.6974508185135,"h"]
[null,"FLH,RES-HYBR,,MAR-CAS,","FLH","RES-HYBR","","MAR-CAS","",4107.461264954989,"h"]
[null,"FLH,RES-HYBR,,MAR-DAK,","FLH","RES-HYBR","","MAR-DAK","",6342.17431498525,"h"]
[null,"FLH,RES-HYBR,,MAR-DRA,","FLH","RES-HYBR","","MAR-DRA","",4442.5500678171611,"h"]
[null,"FLH,RES-HYBR,,MAR-FES,","FLH","RES-HYBR","","MAR-FES","",3693.5166831944407,"h"]
[null,"FLH,RES-HYBR,,MAR-GUE,","FLH","RES-HYBR","","MAR-GUE","",5015.1834420732221,"h"]
[null,"FLH,RES-HYBR,,MAR-LAA,","FLH","RES-HYBR","","MAR-LAA","",5823.2278770450366,"h"]
[null,"FLH,RES-HYBR,,MAR-LOR,","FLH","RES-HYBR","","MAR-LOR","",4805.6356254658413,"h"]
[null,"FLH,RES-HYBR,,MAR-MAR,","FLH","RES-HYBR","","MAR-MAR","",3574.4335757714989,"h"]
[null,"FLH,RES-HYBR,,MAR-RAB,","FLH","RES-HYBR","","MAR-RAB","",3447.3598533759478,"h"]
[null,"FLH,RES-HYBR,,MAR-SOU,","FLH","RES-HYBR","","MAR-SOU","",4479.2641726234597,"h"]
[null,"FLH,RES-HYBR,,MAR-TAN,","FLH","RES-HYBR","","MAR-TAN","",4503.3511393000135,"h"]
[null,"FLH,RES-HYBR,,MEX,","FLH","RES-HYBR","","MEX","",4219.5,"h"]
[null,"FLH,RES-HYBR,,MRT,","FLH","RES-HYBR","","MRT","",6214.79,"h"]
[null,"FLH,RES-HYBR,,NAM,","FLH","RES-HYBR","","NAM","",6766.4489765195067,"h"]
[null,"FLH,RES-HYBR,,NOR,","FLH","RES-HYBR","","NOR","",4955.9832041924956,"h"]
[null,"FLH,RES-HYBR,,PER,","FLH","RES-HYBR","","PER","",2965.29,"h"]
[null,"FLH,RES-HYBR,,PRT,","FLH","RES-HYBR","","PRT","",5677.7820377284897,"h"]
[null,"FLH,RES-HYBR,,RUS,","FLH","RES-HYBR","","RUS","",3549.23,"h"]
[null,"FLH,RES-HYBR,,SAU,","FLH","RES-HYBR","","SAU","",3830.5299999999997,"h"]
[null,"FLH,RES-HYBR,,SWE,","FLH","RES-HYBR","","SWE","",3823.9828340194917,"h"]
[null,"FLH,RES-HYBR,,THA,","FLH","RES-HYBR","","THA","",3569.5369351590002,"h"]
[null,"FLH,RES-HYBR,,TUN,","FLH","RES-HYBR","","TUN","",4306.8,"h"]
[null,"FLH,RES-HYBR,,UKR,","FLH","RES-HYBR","","UKR","",5019.1641120944814,"h"]
[null,"FLH,RES-HYBR,,URY,","FLH","RES-HYBR","","URY","",4775.3099999999995,"h"]
[null,"FLH,RES-HYBR,,USA,","FLH","RES-HYBR","","USA","",5067.28,"h"]
[null,"FLH,RES-HYBR,,VNM,","FLH","RES-HYBR","","VNM","",4699.5574412419974,"h"]
[null,"FLH,RES-HYBR,,ZAF,","FLH","RES-HYBR","","ZAF","",4382.46,"h"]
[null,"FLH,RES-HYBR,,ZAF-EC,","FLH","RES-HYBR","","ZAF-EC","",5288.7578237093758,"h"]
[null,"FLH,RES-HYBR,,ZAF-FRS,","FLH","RES-HYBR","","ZAF-FRS","",4425.6106106284642,"h"]
[null,"FLH,RES-HYBR,,ZAF-GAU,","FLH","RES-HYBR","","ZAF-GAU","",3757.1990000000001,"h"]
[null,"FLH,RES-HYBR,,ZAF-KWA,","FLH","RES-HYBR","","ZAF-KWA","",4268.4057445788794,"h"]
[null,"FLH,RES-HYBR,,ZAF-LIM,","FLH","RES-HYBR","","ZAF-LIM","",4233.3590689024513,"h"]
[null,"FLH,RES-HYBR,,ZAF-MPU,","FLH","RES-HYBR","","ZAF-MPU","",4233.3590689024513,"h"]
[null,"FLH,RES-HYBR,,ZAF-NC,","FLH","RES-HYBR","","ZAF-NC","",5250.5102949318216,"h"]
[null,"FLH,RES-HYBR,,ZAF-NW,","FLH","RES-HYBR","","ZAF-NW","",4461.2336445282735,"h"]
[null,"FLH,RES-HYBR,,ZAF-WC,","FLH","RES-HYBR","","ZAF-WC","",4751.4057997393265,"h"]
[null,"FLH,SOEC-EL,,,","FLH","SOEC-EL","","","",5519.7223140495871,"h","average of PTX Atlas"]
[null,"FLH,WIND-OFF,,ARE,","FLH","WIND-OFF","","ARE","",2453,"h","Bosch et al. 2018"]
[null,"FLH,WIND-OFF,,ARG,","FLH","WIND-OFF","","ARG","",5369,"h","Bosch et al. 2018"]
[null,"FLH,WIND-OFF,,ARG-BA,","FLH","WIND-OFF","","ARG-BA","",3854.4,"h","Bosch et al. 2018"]
[null,"FLH,WIND-OFF,,ARG-CBA,","FLH","WIND-OFF","","ARG-CBA","",3854.4,"h","Bosch et al. 2018"]
[null,"FLH,WIND-OFF,,ARG-CHU,","FLH","WIND-OFF","","ARG-CHU","",5763.0835753699857,"h","Bosch et al. 2018"]
[null,"FLH,WIND-OFF,,ARG-CRU,","FLH","WIND-OFF","","ARG-CRU","",5854.9926980599967,"h","Bosch et al. 2018"]
[null,"FLH,WIND-OFF,,ARG-FUE,","FLH","WIND-OFF","","ARG-FUE","",3854.4,"h","Bosch et al. 2018"]
[null,"FLH,WIND-OFF,,ARG-NEG,","FLH","WIND-OFF","","ARG-NEG","",4738.1899020500086,"h","Bosch et al. 2018"]
[null,"FLH,WIND-OFF,,AUS,","FLH","WIND-OFF","","AUS","",4205,"h","Bosch et al. 2018"]
[null,"FLH,WIND-OFF,,BRA,","FLH","WIND-OFF","","BRA","",3854,"h","Bosch et al. 2018"]
[null,"FLH,WIND-OFF,,CHL,","FLH","WIND-OFF","","CHL","",6034,"h","Bosch et al. 2018"]
[null,"FLH,WIND-OFF,,CHN,","FLH","WIND-OFF","","CHN","",3592,"h","Bosch et al. 2018"]
[null,"FLH,WIND-OFF,,COL,","FLH","WIND-OFF","","COL","",4269,"h"]
[null,"FLH,WIND-OFF,,CRI,","FLH","WIND-OFF","","CRI","",2803,"h","Bosch et al. 2018"]
[null,"FLH,WIND-OFF,,DNK,","FLH","WIND-OFF","","DNK","",4730.4000000000005,"h","Bosch et al. 2018"]
[null,"FLH,WIND-OFF,,DZA,","FLH","WIND-OFF","","DZA","",3066,"h","Bosch et al. 2018"]
[null,"FLH,WIND-OFF,,EGY,","FLH","WIND-OFF","","EGY","",3066,"h","Bosch et al. 2018"]
[null,"FLH,WIND-OFF,,ESP,","FLH","WIND-OFF","","ESP","",4277,"h","Bosch et al. 2018"]
[null,"FLH,WIND-OFF,,IDN,","FLH","WIND-OFF","","IDN","",2453,"h","Bosch et al. 2018"]
[null,"FLH,WIND-OFF,,IND,","FLH","WIND-OFF","","IND","",3567,"h","Bosch et al. 2018"]
[null,"FLH,WIND-OFF,,KAZ,","FLH","WIND-OFF","","KAZ","",3697,"h","Bosch et al. 2018"]
[null,"FLH,WIND-OFF,,KEN,","FLH","WIND-OFF","","KEN","",3329,"h","Bosch et al. 2018"]
[null,"FLH,WIND-OFF,,MAR,","FLH","WIND-OFF","","MAR","",4643,"h","Bosch et al. 2018"]
[null,"FLH,WIND-OFF,,MAR-CAS,","FLH","WIND-OFF","","MAR-CAS","",4642.8,"h","Bosch et al. 2018"]
[null,"FLH,WIND-OFF,,MAR-DAK,","FLH","WIND-OFF","","MAR-DAK","",5181.7820854799875,"h","Bosch et al. 2018"]
[null,"FLH,WIND-OFF,,MAR-GUE,","FLH","WIND-OFF","","MAR-GUE","",4642.8,"h","Bosch et al. 2018"]
[null,"FLH,WIND-OFF,,MAR-LAA,","FLH","WIND-OFF","","MAR-LAA","",4642.8,"h","Bosch et al. 2018"]
[null,"FLH,WIND-OFF,,MAR-LOR,","FLH","WIND-OFF","","MAR-LOR","",4642.8,"h","Bosch et al. 2018"]
[null,"FLH,WIND-OFF,,MAR-MAR,","FLH","WIND-OFF","","MAR-MAR","",4642.8,"h","Bosch et al. 2018"]
[null,"FLH,WIND-OFF,,MAR-RAB,","FLH","WIND-OFF","","MAR-RAB","",4642.8,"h","Bosch et al. 2018"]
[null,"FLH,WIND-OFF,,MAR-SOU,","FLH","WIND-OFF","","MAR-SOU","",4642.8,"h","Bosch et al. 2018"]
[null,"FLH,WIND-OFF,,MAR-TAN,","FLH","WIND-OFF","","MAR-TAN","",4642.8,"h","Bosch et al. 2018"]
[null,"FLH,WIND-OFF,,MEX,","FLH","WIND-OFF","","MEX","",4042,"h","Bosch et al. 2018"]
[null,"FLH,WIND-OFF,,MRT,","FLH","WIND-OFF","","MRT","",4750,"h","Bosch et al. 2018"]
[null,"FLH,WIND-OFF,,NAM,","FLH","WIND-OFF","","NAM","",5116,"h","Bosch et al. 2018"]
[null,"FLH,WIND-OFF,,NOR,","FLH","WIND-OFF","","NOR","",4730,"h","Bosch et al. 2018"]
[null,"FLH,WIND-OFF,,PER,","FLH","WIND-OFF","","PER","",3854,"h","Bosch et al. 2018"]
[null,"FLH,WIND-OFF,,PRT,","FLH","WIND-OFF","","PRT","",4408,"h","Bosch et al. 2018"]
[null,"FLH,WIND-OFF,,RUS,","FLH","WIND-OFF","","RUS","",4522,"h","Bosch et al. 2018"]
[null,"FLH,WIND-OFF,,SAU,","FLH","WIND-OFF","","SAU","",2453,"h","Bosch et al. 2018"]
[null,"FLH,WIND-OFF,,SWE,","FLH","WIND-OFF","","SWE","",4730,"h","Bosch et al. 2018"]
[null,"FLH,WIND-OFF,,THA,","FLH","WIND-OFF","","THA","",2453,"h","Bosch et al. 2018"]
[null,"FLH,WIND-OFF,,TUN,","FLH","WIND-OFF","","TUN","",3066,"h","Bosch et al. 2018"]
[null,"FLH,WIND-OFF,,UKR,","FLH","WIND-OFF","","UKR","",3066,"h","Bosch et al. 2018"]
[null,"FLH,WIND-OFF,,URY,","FLH","WIND-OFF","","URY","",3854,"h","Bosch et al. 2018"]
[null,"FLH,WIND-OFF,,USA,","FLH","WIND-OFF","","USA","",4030,"h","Bosch et al. 2018"]
[null,"FLH,WIND-OFF,,VNM,","FLH","WIND-OFF","","VNM","",3578,"h","Bosch et al. 2018"]
[null,"FLH,WIND-OFF,,ZAF,","FLH","WIND-OFF","","ZAF","",4117,"h","Bosch et al. 2018"]
[null,"FLH,WIND-OFF,,ZAF-EC,","FLH","WIND-OFF","","ZAF-EC","",4117.2,"h","Bosch et al. 2018"]
[null,"FLH,WIND-OFF,,ZAF-KWA,","FLH","WIND-OFF","","ZAF-KWA","",4117.2,"h","Bosch et al. 2018"]
[null,"FLH,WIND-OFF,,ZAF-NC,","FLH","WIND-OFF","","ZAF-NC","",4117.2,"h","Bosch et al. 2018"]
[null,"FLH,WIND-OFF,,ZAF-WC,","FLH","WIND-OFF","","ZAF-WC","",4117.2,"h","Bosch et al. 2018"]
[null,"FLH,WIND-ON,,ARE,","FLH","WIND-ON","","ARE","",1642.3104587999985,"h"]
[null,"FLH,WIND-ON,,ARG,","FLH","WIND-ON","","ARG","",5369,"h"]
[null,"FLH,WIND-ON,,ARG-BA,","FLH","WIND-ON","","ARG-BA","",3756.6367058000046,"h"]
[null,"FLH,WIND-ON,,ARG-CAT,","FLH","WIND-ON","","ARG-CAT","",2884.1487291833364,"h"]
[null,"FLH,WIND-ON,,ARG-CBA,","FLH","WIND-ON","","ARG-CBA","",3601.8171951299964,"h"]
[null,"FLH,WIND-ON,,ARG-CHA,","FLH","WIND-ON","","ARG-CHA","",3079.6049933000008,"h"]
[null,"FLH,WIND-ON,,ARG-CHU,","FLH","WIND-ON","","ARG-CHU","",5763.0835753699857,"h"]
[null,"FLH,WIND-ON,,ARG-COR,","FLH","WIND-ON","","ARG-COR","",3045.2758197400012,"h"]
[null,"FLH,WIND-ON,,ARG-CRB,","FLH","WIND-ON","","ARG-CRB","",2605.2082556500004,"h"]
[null,"FLH,WIND-ON,,ARG-CRU,","FLH","WIND-ON","","ARG-CRU","",5854.9926980599967,"h"]
[null,"FLH,WIND-ON,,ARG-EST,","FLH","WIND-ON","","ARG-EST","",3710.4766984999937,"h"]
[null,"FLH,WIND-ON,,ARG-FOR,","FLH","WIND-ON","","ARG-FOR","",3781.7001483800022,"h"]
[null,"FLH,WIND-ON,,ARG-FUE,","FLH","WIND-ON","","ARG-FUE","",3710.4766984999937,"h"]
[null,"FLH,WIND-ON,,ARG-JUJ,","FLH","WIND-ON","","ARG-JUJ","",3773.9698333333426,"h"]
[null,"FLH,WIND-ON,,ARG-LAR,","FLH","WIND-ON","","ARG-LAR","",3188.6275809666754,"h"]
[null,"FLH,WIND-ON,,ARG-MEN,","FLH","WIND-ON","","ARG-MEN","",3077.1630279499932,"h"]
[null,"FLH,WIND-ON,,ARG-MIS,","FLH","WIND-ON","","ARG-MIS","",1777.2726296600022,"h"]
[null,"FLH,WIND-ON,,ARG-NEG,","FLH","WIND-ON","","ARG-NEG","",4738.1899020500086,"h"]
[null,"FLH,WIND-ON,,ARG-NEU,","FLH","WIND-ON","","ARG-NEU","",3956.5844284999962,"h"]
[null,"FLH,WIND-ON,,ARG-PAM,","FLH","WIND-ON","","ARG-PAM","",3897.7887775199929,"h"]
[null,"FLH,WIND-ON,,ARG-RIO,","FLH","WIND-ON","","ARG-RIO","",3070.126660369996,"h"]
[null,"FLH,WIND-ON,,ARG-SAF,","FLH","WIND-ON","","ARG-SAF","",3158.174208530002,"h"]
[null,"FLH,WIND-ON,,ARG-SAJ,","FLH","WIND-ON","","ARG-SAJ","",2534.5746024499945,"h"]
[null,"FLH,WIND-ON,,ARG-SAL,","FLH","WIND-ON","","ARG-SAL","",3657.6108475499996,"h"]
[null,"FLH,WIND-ON,,ARG-SAT,","FLH","WIND-ON","","ARG-SAT","",3418.5372058749972,"h"]
[null,"FLH,WIND-ON,,ARG-TUC,","FLH","WIND-ON","","ARG-TUC","",1908.3186970833303,"h"]
[null,"FLH,WIND-ON,,AUS,","FLH","WIND-ON","","AUS","",3971,"h"]
[null,"FLH,WIND-ON,,BRA,","FLH","WIND-ON","","BRA","",3517,"h"]
[null,"FLH,WIND-ON,,CHL,","FLH","WIND-ON","","CHL","",6034,"h"]
[null,"FLH,WIND-ON,,CHN,","FLH","WIND-ON","","CHN","",3250,"h"]
[null,"FLH,WIND-ON,,COL,","FLH","WIND-ON","","COL","",4269,"h"]
[null,"FLH,WIND-ON,,CRI,","FLH","WIND-ON","","CRI","",2191.2308093499951,"h"]
[null,"FLH,WIND-ON,,DNK,","FLH","WIND-ON","","DNK","",4400,"h"]
[null,"FLH,WIND-ON,,DZA,","FLH","WIND-ON","","DZA","",2738,"h"]
[null,"FLH,WIND-ON,,EGY,","FLH","WIND-ON","","EGY","",3045,"h"]
[null,"FLH,WIND-ON,,ESP,","FLH","WIND-ON","","ESP","",4276.5734962500064,"h"]
[null,"FLH,WIND-ON,,IDN,","FLH","WIND-ON","","IDN","",1150.7783336499949,"h"]
[null,"FLH,WIND-ON,,IND,","FLH","WIND-ON","","IND","",3567,"h"]
[null,"FLH,WIND-ON,,JOR,","FLH","WIND-ON","","JOR","",667,"h"]
[null,"FLH,WIND-ON,,KAZ,","FLH","WIND-ON","","KAZ","",3697,"h"]
[null,"FLH,WIND-ON,,KEN,","FLH","WIND-ON","","KEN","",2364,"h"]
[null,"FLH,WIND-ON,,MAR,","FLH","WIND-ON","","MAR","",3289,"h"]
[null,"FLH,WIND-ON,,MAR-BEN,","FLH","WIND-ON","","MAR-BEN","",1563.4934093166669,"h"]
[null,"FLH,WIND-ON,,MAR-CAS,","FLH","WIND-ON","","MAR-CAS","",2513.2012449499989,"h"]
[null,"FLH,WIND-ON,,MAR-DAK,","FLH","WIND-ON","","MAR-DAK","",5181.7820854799875,"h"]
[null,"FLH,WIND-ON,,MAR-DRA,","FLH","WIND-ON","","MAR-DRA","",2724.0904536999979,"h"]
[null,"FLH,WIND-ON,,MAR-FES,","FLH","WIND-ON","","MAR-FES","",2050.2642833200007,"h"]
[null,"FLH,WIND-ON,,MAR-GUE,","FLH","WIND-ON","","MAR-GUE","",3542.2692728499992,"h"]
[null,"FLH,WIND-ON,,MAR-LAA,","FLH","WIND-ON","","MAR-LAA","",4616.7798365699955,"h"]
[null,"FLH,WIND-ON,,MAR-LOR,","FLH","WIND-ON","","MAR-LOR","",3320.8164008250001,"h"]
[null,"FLH,WIND-ON,,MAR-MAR,","FLH","WIND-ON","","MAR-MAR","",1820.4342362250004,"h"]
[null,"FLH,WIND-ON,,MAR-RAB,","FLH","WIND-ON","","MAR-RAB","",1826.0421998500019,"h"]
[null,"FLH,WIND-ON,,MAR-SOU,","FLH","WIND-ON","","MAR-SOU","",2799.5123925999974,"h"]
[null,"FLH,WIND-ON,,MAR-TAN,","FLH","WIND-ON","","MAR-TAN","",2979.4188451500013,"h"]
[null,"FLH,WIND-ON,,MEX,","FLH","WIND-ON","","MEX","",4042,"h"]
[null,"FLH,WIND-ON,,MRT,","FLH","WIND-ON","","MRT","",4750,"h"]
[null,"FLH,WIND-ON,,NAM,","FLH","WIND-ON","","NAM","",5116.1308995500021,"h"]
[null,"FLH,WIND-ON,,NOR,","FLH","WIND-ON","","NOR","",4263.9575632499955,"h"]
[null,"FLH,WIND-ON,,PER,","FLH","WIND-ON","","PER","",1448,"h"]
[null,"FLH,WIND-ON,,PRT,","FLH","WIND-ON","","PRT","",4407.8754648499926,"h"]
[null,"FLH,WIND-ON,,RUS,","FLH","WIND-ON","","RUS","",4522,"h"]
[null,"FLH,WIND-ON,,SAU,","FLH","WIND-ON","","SAU","",2282,"h"]
[null,"FLH,WIND-ON,,SWE,","FLH","WIND-ON","","SWE","",3056.1689955499933,"h"]
[null,"FLH,WIND-ON,,THA,","FLH","WIND-ON","","THA","",2425.4030030999993,"h"]
[null,"FLH,WIND-ON,,TUN,","FLH","WIND-ON","","TUN","",2843,"h"]
[null,"FLH,WIND-ON,,UKR,","FLH","WIND-ON","","UKR","",2769,"h"]
[null,"FLH,WIND-ON,,URY,","FLH","WIND-ON","","URY","",3594,"h"]
[null,"FLH,WIND-ON,,USA,","FLH","WIND-ON","","USA","",3503,"h"]
[null,"FLH,WIND-ON,,VNM,","FLH","WIND-ON","","VNM","",3577.9190809999977,"h"]
[null,"FLH,WIND-ON,,ZAF,","FLH","WIND-ON","","ZAF","",3070,"h"]
[null,"FLH,WIND-ON,,ZAF-EC,","FLH","WIND-ON","","ZAF-EC","",3914.4857524666741,"h"]
[null,"FLH,WIND-ON,,ZAF-FRS,","FLH","WIND-ON","","ZAF-FRS","",2775.7070136400025,"h"]
[null,"FLH,WIND-ON,,ZAF-GAU,","FLH","WIND-ON","","ZAF-GAU","",2069.9309253700035,"h"]
[null,"FLH,WIND-ON,,ZAF-KWA,","FLH","WIND-ON","","ZAF-KWA","",2682.3634953500023,"h"]
[null,"FLH,WIND-ON,,ZAF-LIM,","FLH","WIND-ON","","ZAF-LIM","",2627.5496087499969,"h"]
[null,"FLH,WIND-ON,,ZAF-MPU,","FLH","WIND-ON","","ZAF-MPU","",2612.1821174166703,"h"]
[null,"FLH,WIND-ON,,ZAF-NC,","FLH","WIND-ON","","ZAF-NC","",3748.8309036749974,"h"]
[null,"FLH,WIND-ON,,ZAF-NW,","FLH","WIND-ON","","ZAF-NW","",3092.6134290333307,"h"]
[null,"FLH,WIND-ON,,ZAF-WC,","FLH","WIND-ON","","ZAF-WC","",3346.6670672599976,"h"]
[null,"LIFETIME,AEL-EL,,,","LIFETIME","AEL-EL","","","",20,"years"]
[null,"LIFETIME,ATR,,,","LIFETIME","ATR","","","",25,"years","Oni et al. 2022"]
[null,"LIFETIME,CH3OH-S,,,","LIFETIME","CH3OH-S","","","",30,"years","UNSW Sydney 2021"]
[null,"LIFETIME,CH3OH-SB,,,","LIFETIME","CH3OH-SB","","","",30,"years","UNSW Sydney 2021"]
[null,"LIFETIME,CH3OHSYN,,,","LIFETIME","CH3OHSYN","","","",30,"years","Öko-Institut 2020"]
[null,"LIFETIME,CH4-COMP,,,","LIFETIME","CH4-COMP","","","",20,"years","DNV GL 2020"]
[null,"LIFETIME,CH4-LIQ,,,","LIFETIME","CH4-LIQ","","","",30,"years","UNSW Sydney 2021"]
[null,"LIFETIME,CH4-P-L,,,","LIFETIME","CH4-P-L","","","",40,"years"]
[null,"LIFETIME,CH4-P-LR,,,","LIFETIME","CH4-P-LR","","","",40,"years"]
[null,"LIFETIME,CH4-P-S,,,","LIFETIME","CH4-P-S","","","",40,"years"]
[null,"LIFETIME,CH4-P-SR,,,","LIFETIME","CH4-P-SR","","","",40,"years"]
[null,"LIFETIME,CH4-S,,,","LIFETIME","CH4-S","","","",30,"years","UNSW Sydney 2021"]
[null,"LIFETIME,CH4-SB,,,","LIFETIME","CH4-SB","","","",30,"years","UNSW Sydney 2021"]
[null,"LIFETIME,CH4SYN,,,","LIFETIME","CH4SYN","","","",30,"years","Öko-Institut 2020"]
[null,"LIFETIME,DAC,,,","LIFETIME","DAC","","","",30,"years","Kreidelmeyer et al. 2020"]
[null,"LIFETIME,DESAL,,,","LIFETIME","DESAL","","","",20,"years","PTX Atlas"]
[null,"LIFETIME,DRI,,,","LIFETIME","DRI","","","",15,"years","Agora Industry Transformation 2021"]
[null,"LIFETIME,EFUELSYN,,,","LIFETIME","EFUELSYN","","","",30,"years","Öko-Institut 2020"]
[null,"LIFETIME,EL-TRANS,,,","LIFETIME","EL-TRANS","","","",20,"years","DUMMY"]
[null,"LIFETIME,H2-COMP,,,","LIFETIME","H2-COMP","","","",20,"years","DNV GL 2020"]
[null,"LIFETIME,H2-LIQ,,,","LIFETIME","H2-LIQ","","","",30,"years","IEA 2015"]
[null,"LIFETIME,H2-P-L,,,","LIFETIME","H2-P-L","","","",30,"years"]
[null,"LIFETIME,H2-P-LR,,,","LIFETIME","H2-P-LR","","","",30,"years"]
[null,"LIFETIME,H2-P-S,,,","LIFETIME","H2-P-S","","","",30,"years"]
[null,"LIFETIME,H2-P-SR,,,","LIFETIME","H2-P-SR","","","",30,"years"]
[null,"LIFETIME,H2-RGAS,,,","LIFETIME","H2-RGAS","","","",30,"years"]
[null,"LIFETIME,H2-S,,,","LIFETIME","H2-S","","","",30,"years","UNSW Sydney 2021"]
[null,"LIFETIME,H2-SB,,,","LIFETIME","H2-SB","","","",30,"years","UNSW Sydney 2021"]
[null,"LIFETIME,LOHC-CON,,,","LIFETIME","LOHC-CON","","","",20,"years","DNV GL 2020"]
[null,"LIFETIME,LOHC-REC,,,","LIFETIME","LOHC-REC","","","",30,"years","IEA 2019"]
[null,"LIFETIME,LOHC-S,,,","LIFETIME","LOHC-S","","","",30,"years","UNSW Sydney 2021"]
[null,"LIFETIME,LOHC-SB,,,","LIFETIME","LOHC-SB","","","",30,"years","UNSW Sydney 2021"]
[null,"LIFETIME,NH3-REC,,,","LIFETIME","NH3-REC","","","",25,"years","NGN; Equinor 2018"]
[null,"LIFETIME,NH3-S,,,","LIFETIME","NH3-S","","","",30,"years","UNSW Sydney 2021"]
[null,"LIFETIME,NH3-SB,,,","LIFETIME","NH3-SB","","","",30,"years","UNSW Sydney 2021"]
[null,"LIFETIME,NH3SYN,,,","LIFETIME","NH3SYN","","","",30,"years","Fasihi et al. 2021"]
[null,"LIFETIME,PEM-EL,,,","LIFETIME","PEM-EL","","","",20,"years"]
[null,"LIFETIME,PV-FIX,,,","LIFETIME","PV-FIX","","","",20,"years"]
[null,"LIFETIME,REGASATR,,,","LIFETIME","REGASATR","","","",25,"years","combined values"]
[null,"LIFETIME,RES-HYBR,,,","LIFETIME","RES-HYBR","","","",20,"years"]
[null,"LIFETIME,SOEC-EL,,,","LIFETIME","SOEC-EL","","","",20,"years"]
[null,"LIFETIME,SYN-S,,,","LIFETIME","SYN-S","","","",30,"years","UNSW Sydney 2021"]
[null,"LIFETIME,SYN-SB,,,","LIFETIME","SYN-SB","","","",30,"years","UNSW Sydney 2021"]
[null,"LIFETIME,WIND-OFF,,,","LIFETIME","WIND-OFF","","","",20,"years"]
[null,"LIFETIME,WIND-ON,,,","LIFETIME","WIND-ON","","","",20,"years"]
[null,"LOSS-T,CH3OH-S,,,","LOSS-T","CH3OH-S","","","",3.0509883673175365E-6,"fraction/km","calc_shipping"]
[null,"LOSS-T,CH3OH-SB,,,","LOSS-T","CH3OH-SB","","","",4.7996160307175429E-7,"fraction/km","calc_shipping"]
[null,"LOSS-T,CH4-P-L,,,","LOSS-T","CH4-P-L","","","",5.6666666666666669E-6,"fraction/km"]
[null,"LOSS-T,CH4-P-LR,,,","LOSS-T","CH4-P-LR","","","",5.6666666666666669E-6,"fraction/km"]
[null,"LOSS-T,CH4-P-S,,,","LOSS-T","CH4-P-S","","","",5.6666666666666669E-6,"fraction/km"]
[null,"LOSS-T,CH4-P-SR,,,","LOSS-T","CH4-P-SR","","","",5.6666666666666669E-6,"fraction/km"]
[null,"LOSS-T,CH4-S,,,","LOSS-T","CH4-S","","","",3.3002590965851543E-6,"fraction/km","calc_shipping"]
[null,"LOSS-T,CH4-SB,,,","LOSS-T","CH4-SB","","","",2.3075077070757413E-6,"fraction/km","calc_shipping"]
[null,"LOSS-T,H2-P-L,,,","LOSS-T","H2-P-L","","","",1.6866666666666666E-5,"fraction/km"]
[null,"LOSS-T,H2-P-LR,,,","LOSS-T","H2-P-LR","","","",1.6866666666666666E-5,"fraction/km"]
[null,"LOSS-T,H2-P-S,,,","LOSS-T","H2-P-S","","","",1.6866666666666666E-5,"fraction/km"]
[null,"LOSS-T,H2-P-SR,,,","LOSS-T","H2-P-SR","","","",1.6866666666666666E-5,"fraction/km"]
[null,"LOSS-T,H2-S,,,","LOSS-T","H2-S","","","",9.2511936896845982E-6,"fraction/km","calc_shipping"]
[null,"LOSS-T,H2-SB,,,","LOSS-T","H2-SB","","","",4.6150154141514826E-6,"fraction/km","calc_shipping"]
[null,"LOSS-T,LOHC-S,,,","LOSS-T","LOHC-S","","","",1.1535367546997468E-5,"fraction/km","calc_shipping"]
[null,"LOSS-T,NH3-S,,,","LOSS-T","NH3-S","","","",5.3436561034163411E-6,"fraction/km","calc_shipping"]
[null,"LOSS-T,NH3-SB,,,","LOSS-T","NH3-SB","","","",9.2300308283029658E-7,"fraction/km","calc_shipping"]
[null,"OPEX-F,AEL-EL,,,","OPEX-F","AEL-EL","","","",10.330718045117374,"USD2021/kW"]
[null,"OPEX-F,ATR,,,","OPEX-F","ATR","","","",48.829790310167752,"USD2021/kW","Oni et al. 2022"]
[null,"OPEX-F,CH3OHSYN,,,","OPEX-F","CH3OHSYN","","","",23.600659265954345,"USD2021/kW","Öko-Institut 2020"]
[null,"OPEX-F,CH4-COMP,,,","OPEX-F","CH4-COMP","","","",5.7796175335134681,"USD2021/kW","DNV GL 2020"]
[null,"OPEX-F,CH4-LIQ,,,","OPEX-F","CH4-LIQ","","","",8.7998736512607394,"USD2021/kW","Hank et al. 2020"]
[null,"OPEX-F,CH4SYN,,,","OPEX-F","CH4SYN","","","",19.472335306337374,"USD2021/kW","Öko-Institut 2020"]
[null,"OPEX-F,DAC,,,","OPEX-F","DAC","","","",3.5690058830877433E-2,"USD2021/ kg CO2 (g)*a","average low and high"]
[null,"OPEX-F,DESAL,,,","OPEX-F","DESAL","","","",9.4669104972375679E-5,"USD2021/kW"]
[null,"OPEX-F,DRI,,,","OPEX-F","DRI","","","",123.76885357719151,"USD2021/kg DRI (s)/a*h","Agora Industry Transformation 2021"]
[null,"OPEX-F,EFUELSYN,,,","OPEX-F","EFUELSYN","","","",23.600659265954345,"USD2021/kW","Öko-Institut 2020"]
[null,"OPEX-F,H2-COMP,,,","OPEX-F","H2-COMP","","","",5.7796175335134681,"USD2021/kW","DNV GL 2020"]
[null,"OPEX-F,H2-LIQ,,,","OPEX-F","H2-LIQ","","","",58.294484220432686,"USD2021/kW","IEA 2019"]
[null,"OPEX-F,H2-RGAS,,,","OPEX-F","H2-RGAS","","","",7.9535567883452885,"USD2021/kW","DNV GL 2020"]
[null,"OPEX-F,LOHC-CON,,,","OPEX-F","LOHC-CON","","","",8.0391693383425267,"USD2021/kW","DNV GL 2020"]
[null,"OPEX-F,LOHC-REC,,,","OPEX-F","LOHC-REC","","","",14.916754450335576,"USD2021/kW","DNV GL 2021"]
[null,"OPEX-F,NH3-REC,,,","OPEX-F","NH3-REC","","","",12.342104587697584,"USD2021/kW","NGN; Equinor 2018"]
[null,"OPEX-F,NH3SYN,,,","OPEX-F","NH3SYN","","","",65.835990549298756,"USD2021/kW","Fasihi et al. 2021"]
[null,"OPEX-F,PEM-EL,,,","OPEX-F","PEM-EL","","","",14.626799511718794,"USD2021/kW"]
[null,"OPEX-F,PV-FIX,,ARE,","OPEX-F","PV-FIX","","ARE","",19.317718687904147,"USD2021/kW"]
[null,"OPEX-F,PV-FIX,,ARG,","OPEX-F","PV-FIX","","ARG","",18.741858237637476,"USD2021/kW"]
[null,"OPEX-F,PV-FIX,,ARG-BA,","OPEX-F","PV-FIX","","ARG-BA","",18.741858237637476,"USD2021/kW"]
[null,"OPEX-F,PV-FIX,,ARG-CAT,","OPEX-F","PV-FIX","","ARG-CAT","",18.741858237637476,"USD2021/kW"]
[null,"OPEX-F,PV-FIX,,ARG-CBA,","OPEX-F","PV-FIX","","ARG-CBA","",18.741858237637476,"USD2021/kW"]
[null,"OPEX-F,PV-FIX,,ARG-CHA,","OPEX-F","PV-FIX","","ARG-CHA","",18.741858237637476,"USD2021/kW"]
[null,"OPEX-F,PV-FIX,,ARG-CHU,","OPEX-F","PV-FIX","","ARG-CHU","",18.741858237637476,"USD2021/kW"]
[null,"OPEX-F,PV-FIX,,ARG-COR,","OPEX-F","PV-FIX","","ARG-COR","",18.741858237637476,"USD2021/kW"]
[null,"OPEX-F,PV-FIX,,ARG-CRB,","OPEX-F","PV-FIX","","ARG-CRB","",18.741858237637476,"USD2021/kW"]
[null,"OPEX-F,PV-FIX,,ARG-CRU,","OPEX-F","PV-FIX","","ARG-CRU","",18.741858237637476,"USD2021/kW"]
[null,"OPEX-F,PV-FIX,,ARG-EST,","OPEX-F","PV-FIX","","ARG-EST","",18.741858237637476,"USD2021/kW"]
[null,"OPEX-F,PV-FIX,,ARG-FOR,","OPEX-F","PV-FIX","","ARG-FOR","",18.741858237637476,"USD2021/kW"]
[null,"OPEX-F,PV-FIX,,ARG-FUE,","OPEX-F","PV-FIX","","ARG-FUE","",18.741858237637476,"USD2021/kW"]
[null,"OPEX-F,PV-FIX,,ARG-JUJ,","OPEX-F","PV-FIX","","ARG-JUJ","",18.741858237637476,"USD2021/kW"]
[null,"OPEX-F,PV-FIX,,ARG-LAR,","OPEX-F","PV-FIX","","ARG-LAR","",18.741858237637476,"USD2021/kW"]
[null,"OPEX-F,PV-FIX,,ARG-MEN,","OPEX-F","PV-FIX","","ARG-MEN","",18.741858237637476,"USD2021/kW"]
[null,"OPEX-F,PV-FIX,,ARG-MIS,","OPEX-F","PV-FIX","","ARG-MIS","",18.741858237637476,"USD2021/kW"]
[null,"OPEX-F,PV-FIX,,ARG-NEG,","OPEX-F","PV-FIX","","ARG-NEG","",18.741858237637476,"USD2021/kW"]
[null,"OPEX-F,PV-FIX,,ARG-NEU,","OPEX-F","PV-FIX","","ARG-NEU","",18.741858237637476,"USD2021/kW"]
[null,"OPEX-F,PV-FIX,,ARG-PAM,","OPEX-F","PV-FIX","","ARG-PAM","",18.741858237637476,"USD2021/kW"]
[null,"OPEX-F,PV-FIX,,ARG-RIO,","OPEX-F","PV-FIX","","ARG-RIO","",18.741858237637476,"USD2021/kW"]
[null,"OPEX-F,PV-FIX,,ARG-SAF,","OPEX-F","PV-FIX","","ARG-SAF","",18.741858237637476,"USD2021/kW"]
[null,"OPEX-F,PV-FIX,,ARG-SAJ,","OPEX-F","PV-FIX","","ARG-SAJ","",18.741858237637476,"USD2021/kW"]
[null,"OPEX-F,PV-FIX,,ARG-SAL,","OPEX-F","PV-FIX","","ARG-SAL","",18.741858237637476,"USD2021/kW"]
[null,"OPEX-F,PV-FIX,,ARG-SAT,","OPEX-F","PV-FIX","","ARG-SAT","",18.741858237637476,"USD2021/kW"]
[null,"OPEX-F,PV-FIX,,ARG-TUC,","OPEX-F","PV-FIX","","ARG-TUC","",18.741858237637476,"USD2021/kW"]
[null,"OPEX-F,PV-FIX,,AUS,","OPEX-F","PV-FIX","","AUS","",21.174868640014175,"USD2021/kW"]
[null,"OPEX-F,PV-FIX,,BRA,","OPEX-F","PV-FIX","","BRA","",18.348353596621916,"USD2021/kW"]
[null,"OPEX-F,PV-FIX,,CHL,","OPEX-F","PV-FIX","","CHL","",20.86294422945306,"USD2021/kW"]
[null,"OPEX-F,PV-FIX,,CHN,","OPEX-F","PV-FIX","","CHN","",12.14105782645572,"USD2021/kW"]
[null,"OPEX-F,PV-FIX,,COL,","OPEX-F","PV-FIX","","COL","",11.72861491765609,"USD2021/kW"]
[null,"OPEX-F,PV-FIX,,CRI,","OPEX-F","PV-FIX","","CRI","",19.317718687904147,"USD2021/kW"]
[null,"OPEX-F,PV-FIX,,DNK,","OPEX-F","PV-FIX","","DNK","",16.747941428589115,"USD2021/kW"]
[null,"OPEX-F,PV-FIX,,DZA,","OPEX-F","PV-FIX","","DZA","",19.317718687904147,"USD2021/kW"]
[null,"OPEX-F,PV-FIX,,EGY,","OPEX-F","PV-FIX","","EGY","",19.317718687904147,"USD2021/kW"]
[null,"OPEX-F,PV-FIX,,ESP,","OPEX-F","PV-FIX","","ESP","",18.201989065512471,"USD2021/kW"]
[null,"OPEX-F,PV-FIX,,IDN,","OPEX-F","PV-FIX","","IDN","",22.391373841202526,"USD2021/kW"]
[null,"OPEX-F,PV-FIX,,IND,","OPEX-F","PV-FIX","","IND","",12.548958978727946,"USD2021/kW"]
[null,"OPEX-F,PV-FIX,,JOR,","OPEX-F","PV-FIX","","JOR","",19.317718687904147,"USD2021/kW"]
[null,"OPEX-F,PV-FIX,,KAZ,","OPEX-F","PV-FIX","","KAZ","",19.317718687904147,"USD2021/kW"]
[null,"OPEX-F,PV-FIX,,KEN,","OPEX-F","PV-FIX","","KEN","",19.317718687904147,"USD2021/kW"]
[null,"OPEX-F,PV-FIX,,MAR,","OPEX-F","PV-FIX","","MAR","",19.317718687904147,"USD2021/kW"]
[null,"OPEX-F,PV-FIX,,MAR-BEN,","OPEX-F","PV-FIX","","MAR-BEN","",19.317718687904147,"USD2021/kW"]
[null,"OPEX-F,PV-FIX,,MAR-CAS,","OPEX-F","PV-FIX","","MAR-CAS","",19.317718687904147,"USD2021/kW"]
[null,"OPEX-F,PV-FIX,,MAR-DAK,","OPEX-F","PV-FIX","","MAR-DAK","",19.317718687904147,"USD2021/kW"]
[null,"OPEX-F,PV-FIX,,MAR-DRA,","OPEX-F","PV-FIX","","MAR-DRA","",19.317718687904147,"USD2021/kW"]
[null,"OPEX-F,PV-FIX,,MAR-FES,","OPEX-F","PV-FIX","","MAR-FES","",19.317718687904147,"USD2021/kW"]
[null,"OPEX-F,PV-FIX,,MAR-GUE,","OPEX-F","PV-FIX","","MAR-GUE","",19.317718687904147,"USD2021/kW"]
[null,"OPEX-F,PV-FIX,,MAR-LAA,","OPEX-F","PV-FIX","","MAR-LAA","",19.317718687904147,"USD2021/kW"]
[null,"OPEX-F,PV-FIX,,MAR-LOR,","OPEX-F","PV-FIX","","MAR-LOR","",19.317718687904147,"USD2021/kW"]
[null,"OPEX-F,PV-FIX,,MAR-MAR,","OPEX-F","PV-FIX","","MAR-MAR","",19.317718687904147,"USD2021/kW"]
[null,"OPEX-F,PV-FIX,,MAR-RAB,","OPEX-F","PV-FIX","","MAR-RAB","",19.317718687904147,"USD2021/kW"]
[null,"OPEX-F,PV-FIX,,MAR-SOU,","OPEX-F","PV-FIX","","MAR-SOU","",19.317718687904147,"USD2021/kW"]
[null,"OPEX-F,PV-FIX,,MAR-TAN,","OPEX-F","PV-FIX","","MAR-TAN","",19.317718687904147,"USD2021/kW"]
[null,"OPEX-F,PV-FIX,,MEX,","OPEX-F","PV-FIX","","MEX","",17.604533848360795,"USD2021/kW"]
[null,"OPEX-F,PV-FIX,,MRT,","OPEX-F","PV-FIX","","MRT","",19.317718687904147,"USD2021/kW"]
[null,"OPEX-F,PV-FIX,,NAM,","OPEX-F","PV-FIX","","NAM","",19.317718687904147,"USD2021/kW"]
[null,"OPEX-F,PV-FIX,,NOR,","OPEX-F","PV-FIX","","NOR","",17.799953158567035,"USD2021/kW"]
[null,"OPEX-F,PV-FIX,,PER,","OPEX-F","PV-FIX","","PER","",19.317718687904147,"USD2021/kW"]
[null,"OPEX-F,PV-FIX,,PRT,","OPEX-F","PV-FIX","","PRT","",19.533666356754154,"USD2021/kW"]
[null,"OPEX-F,PV-FIX,,RUS,","OPEX-F","PV-FIX","","RUS","",34.652402594797138,"USD2021/kW"]
[null,"OPEX-F,PV-FIX,,SAU,","OPEX-F","PV-FIX","","SAU","",20.035144832194714,"USD2021/kW"]
[null,"OPEX-F,PV-FIX,,SWE,","OPEX-F","PV-FIX","","SWE","",17.799953158567035,"USD2021/kW"]
[null,"OPEX-F,PV-FIX,,THA,","OPEX-F","PV-FIX","","THA","",21.314034915495284,"USD2021/kW"]
[null,"OPEX-F,PV-FIX,,TUN,","OPEX-F","PV-FIX","","TUN","",19.317718687904147,"USD2021/kW"]
[null,"OPEX-F,PV-FIX,,UKR,","OPEX-F","PV-FIX","","UKR","",17.799953158567035,"USD2021/kW"]
[null,"OPEX-F,PV-FIX,,URY,","OPEX-F","PV-FIX","","URY","",19.317718687904147,"USD2021/kW"]
[null,"OPEX-F,PV-FIX,,USA,","OPEX-F","PV-FIX","","USA","",23.077607544436976,"USD2021/kW"]
[null,"OPEX-F,PV-FIX,,VNM,","OPEX-F","PV-FIX","","VNM","",21.314034915495284,"USD2021/kW"]
[null,"OPEX-F,PV-FIX,,ZAF,","OPEX-F","PV-FIX","","ZAF","",19.317718687904147,"USD2021/kW"]
[null,"OPEX-F,PV-FIX,,ZAF-EC,","OPEX-F","PV-FIX","","ZAF-EC","",19.317718687904147,"USD2021/kW"]
[null,"OPEX-F,PV-FIX,,ZAF-FRS,","OPEX-F","PV-FIX","","ZAF-FRS","",19.317718687904147,"USD2021/kW"]
[null,"OPEX-F,PV-FIX,,ZAF-GAU,","OPEX-F","PV-FIX","","ZAF-GAU","",19.317718687904147,"USD2021/kW"]
[null,"OPEX-F,PV-FIX,,ZAF-KWA,","OPEX-F","PV-FIX","","ZAF-KWA","",19.317718687904147,"USD2021/kW"]
[null,"OPEX-F,PV-FIX,,ZAF-LIM,","OPEX-F","PV-FIX","","ZAF-LIM","",19.317718687904147,"USD2021/kW"]
[null,"OPEX-F,PV-FIX,,ZAF-MPU,","OPEX-F","PV-FIX","","ZAF-MPU","",19.317718687904147,"USD2021/kW"]
[null,"OPEX-F,PV-FIX,,ZAF-NC,","OPEX-F","PV-FIX","","ZAF-NC","",19.317718687904147,"USD2021/kW"]
[null,"OPEX-F,PV-FIX,,ZAF-NW,","OPEX-F","PV-FIX","","ZAF-NW","",19.317718687904147,"USD2021/kW"]
[null,"OPEX-F,PV-FIX,,ZAF-WC,","OPEX-F","PV-FIX","","ZAF-WC","",19.317718687904147,"USD2021/kW"]
[null,"OPEX-F,REGASATR,,,","OPEX-F","REGASATR","","","",48.829790310167752,"USD2021/kW","combined values"]
[null,"OPEX-F,RES-HYBR,,ARE,","OPEX-F","RES-HYBR","","ARE","",21.614376424056928,"USD2021/kW"]
[null,"OPEX-F,RES-HYBR,,ARG,","OPEX-F","RES-HYBR","","ARG","",23.361213072398655,"USD2021/kW"]
[null,"OPEX-F,RES-HYBR,,ARG-BA,","OPEX-F","RES-HYBR","","ARG-BA","",23.361213072398655,"USD2021/kW"]
[null,"OPEX-F,RES-HYBR,,ARG-CAT,","OPEX-F","RES-HYBR","","ARG-CAT","",23.361213072398655,"USD2021/kW"]
[null,"OPEX-F,RES-HYBR,,ARG-CBA,","OPEX-F","RES-HYBR","","ARG-CBA","",23.361213072398655,"USD2021/kW"]
[null,"OPEX-F,RES-HYBR,,ARG-CHA,","OPEX-F","RES-HYBR","","ARG-CHA","",23.361213072398655,"USD2021/kW"]
[null,"OPEX-F,RES-HYBR,,ARG-CHU,","OPEX-F","RES-HYBR","","ARG-CHU","",23.361213072398655,"USD2021/kW"]
[null,"OPEX-F,RES-HYBR,,ARG-COR,","OPEX-F","RES-HYBR","","ARG-COR","",23.361213072398655,"USD2021/kW"]
[null,"OPEX-F,RES-HYBR,,ARG-CRB,","OPEX-F","RES-HYBR","","ARG-CRB","",23.361213072398655,"USD2021/kW"]
[null,"OPEX-F,RES-HYBR,,ARG-CRU,","OPEX-F","RES-HYBR","","ARG-CRU","",23.361213072398655,"USD2021/kW"]
[null,"OPEX-F,RES-HYBR,,ARG-EST,","OPEX-F","RES-HYBR","","ARG-EST","",23.361213072398655,"USD2021/kW"]
[null,"OPEX-F,RES-HYBR,,ARG-FOR,","OPEX-F","RES-HYBR","","ARG-FOR","",23.361213072398655,"USD2021/kW"]
[null,"OPEX-F,RES-HYBR,,ARG-FUE,","OPEX-F","RES-HYBR","","ARG-FUE","",23.361213072398655,"USD2021/kW"]
[null,"OPEX-F,RES-HYBR,,ARG-JUJ,","OPEX-F","RES-HYBR","","ARG-JUJ","",23.361213072398655,"USD2021/kW"]
[null,"OPEX-F,RES-HYBR,,ARG-LAR,","OPEX-F","RES-HYBR","","ARG-LAR","",23.361213072398655,"USD2021/kW"]
[null,"OPEX-F,RES-HYBR,,ARG-MEN,","OPEX-F","RES-HYBR","","ARG-MEN","",23.361213072398655,"USD2021/kW"]
[null,"OPEX-F,RES-HYBR,,ARG-MIS,","OPEX-F","RES-HYBR","","ARG-MIS","",23.361213072398655,"USD2021/kW"]
[null,"OPEX-F,RES-HYBR,,ARG-NEG,","OPEX-F","RES-HYBR","","ARG-NEG","",23.361213072398655,"USD2021/kW"]
[null,"OPEX-F,RES-HYBR,,ARG-NEU,","OPEX-F","RES-HYBR","","ARG-NEU","",23.361213072398655,"USD2021/kW"]
[null,"OPEX-F,RES-HYBR,,ARG-PAM,","OPEX-F","RES-HYBR","","ARG-PAM","",23.361213072398655,"USD2021/kW"]
[null,"OPEX-F,RES-HYBR,,ARG-RIO,","OPEX-F","RES-HYBR","","ARG-RIO","",23.361213072398655,"USD2021/kW"]
[null,"OPEX-F,RES-HYBR,,ARG-SAF,","OPEX-F","RES-HYBR","","ARG-SAF","",23.361213072398655,"USD2021/kW"]
[null,"OPEX-F,RES-HYBR,,ARG-SAJ,","OPEX-F","RES-HYBR","","ARG-SAJ","",23.361213072398655,"USD2021/kW"]
[null,"OPEX-F,RES-HYBR,,ARG-SAL,","OPEX-F","RES-HYBR","","ARG-SAL","",23.361213072398655,"USD2021/kW"]
[null,"OPEX-F,RES-HYBR,,ARG-SAT,","OPEX-F","RES-HYBR","","ARG-SAT","",23.361213072398655,"USD2021/kW"]
[null,"OPEX-F,RES-HYBR,,ARG-TUC,","OPEX-F","RES-HYBR","","ARG-TUC","",23.361213072398655,"USD2021/kW"]
[null,"OPEX-F,RES-HYBR,,AUS,","OPEX-F","RES-HYBR","","AUS","",24.230145358961764,"USD2021/kW"]
[null,"OPEX-F,RES-HYBR,,BRA,","OPEX-F","RES-HYBR","","BRA","",17.506038349781416,"USD2021/kW"]
[null,"OPEX-F,RES-HYBR,,CHL,","OPEX-F","RES-HYBR","","CHL","",24.118743783761367,"USD2021/kW"]
[null,"OPEX-F,RES-HYBR,,CHN,","OPEX-F","RES-HYBR","","CHN","",15.355817772386457,"USD2021/kW"]
[null,"OPEX-F,RES-HYBR,,CRI,","OPEX-F","RES-HYBR","","CRI","",21.976303456275911,"USD2021/kW"]
[null,"OPEX-F,RES-HYBR,,DNK,","OPEX-F","RES-HYBR","","DNK","",21.439501687051795,"USD2021/kW"]
[null,"OPEX-F,RES-HYBR,,DZA,","OPEX-F","RES-HYBR","","DZA","",24.919341691951281,"USD2021/kW"]
[null,"OPEX-F,RES-HYBR,,EGY,","OPEX-F","RES-HYBR","","EGY","",21.185778622744984,"USD2021/kW"]
[null,"OPEX-F,RES-HYBR,,ESP,","OPEX-F","RES-HYBR","","ESP","",17.659025921958783,"USD2021/kW"]
[null,"OPEX-F,RES-HYBR,,IDN,","OPEX-F","RES-HYBR","","IDN","",29.426809294598293,"USD2021/kW"]
[null,"OPEX-F,RES-HYBR,,IND,","OPEX-F","RES-HYBR","","IND","",13.301361375272824,"USD2021/kW"]
[null,"OPEX-F,RES-HYBR,,JOR,","OPEX-F","RES-HYBR","","JOR","",24.919341691951281,"USD2021/kW"]
[null,"OPEX-F,RES-HYBR,,KAZ,","OPEX-F","RES-HYBR","","KAZ","",21.185778622744984,"USD2021/kW"]
[null,"OPEX-F,RES-HYBR,,KEN,","OPEX-F","RES-HYBR","","KEN","",24.919341691951281,"USD2021/kW"]
[null,"OPEX-F,RES-HYBR,,MAR,","OPEX-F","RES-HYBR","","MAR","",23.566877518922464,"USD2021/kW"]
[null,"OPEX-F,RES-HYBR,,MAR-BEN,","OPEX-F","RES-HYBR","","MAR-BEN","",23.566877518922464,"USD2021/kW"]
[null,"OPEX-F,RES-HYBR,,MAR-CAS,","OPEX-F","RES-HYBR","","MAR-CAS","",23.566877518922464,"USD2021/kW"]
[null,"OPEX-F,RES-HYBR,,MAR-DAK,","OPEX-F","RES-HYBR","","MAR-DAK","",23.566877518922464,"USD2021/kW"]
[null,"OPEX-F,RES-HYBR,,MAR-DRA,","OPEX-F","RES-HYBR","","MAR-DRA","",23.566877518922464,"USD2021/kW"]
[null,"OPEX-F,RES-HYBR,,MAR-FES,","OPEX-F","RES-HYBR","","MAR-FES","",23.566877518922464,"USD2021/kW"]
[null,"OPEX-F,RES-HYBR,,MAR-GUE,","OPEX-F","RES-HYBR","","MAR-GUE","",23.566877518922464,"USD2021/kW"]
[null,"OPEX-F,RES-HYBR,,MAR-LAA,","OPEX-F","RES-HYBR","","MAR-LAA","",23.566877518922464,"USD2021/kW"]
[null,"OPEX-F,RES-HYBR,,MAR-LOR,","OPEX-F","RES-HYBR","","MAR-LOR","",23.566877518922464,"USD2021/kW"]
[null,"OPEX-F,RES-HYBR,,MAR-MAR,","OPEX-F","RES-HYBR","","MAR-MAR","",23.566877518922464,"USD2021/kW"]
[null,"OPEX-F,RES-HYBR,,MAR-RAB,","OPEX-F","RES-HYBR","","MAR-RAB","",23.566877518922464,"USD2021/kW"]
[null,"OPEX-F,RES-HYBR,,MAR-SOU,","OPEX-F","RES-HYBR","","MAR-SOU","",23.566877518922464,"USD2021/kW"]
[null,"OPEX-F,RES-HYBR,,MAR-TAN,","OPEX-F","RES-HYBR","","MAR-TAN","",23.566877518922464,"USD2021/kW"]
[null,"OPEX-F,RES-HYBR,,MEX,","OPEX-F","RES-HYBR","","MEX","",20.301812769911546,"USD2021/kW"]
[null,"OPEX-F,RES-HYBR,,MRT,","OPEX-F","RES-HYBR","","MRT","",24.919341691951281,"USD2021/kW"]
[null,"OPEX-F,RES-HYBR,,NAM,","OPEX-F","RES-HYBR","","NAM","",24.919341691951281,"USD2021/kW"]
[null,"OPEX-F,RES-HYBR,,NOR,","OPEX-F","RES-HYBR","","NOR","",20.643719505124583,"USD2021/kW"]
[null,"OPEX-F,RES-HYBR,,PER,","OPEX-F","RES-HYBR","","PER","",18.804679726567493,"USD2021/kW"]
[null,"OPEX-F,RES-HYBR,,PRT,","OPEX-F","RES-HYBR","","PRT","",23.644001686368899,"USD2021/kW"]
[null,"OPEX-F,RES-HYBR,,RUS,","OPEX-F","RES-HYBR","","RUS","",26.662451446635334,"USD2021/kW"]
[null,"OPEX-F,RES-HYBR,,SAU,","OPEX-F","RES-HYBR","","SAU","",21.870600047017842,"USD2021/kW"]
[null,"OPEX-F,RES-HYBR,,SWE,","OPEX-F","RES-HYBR","","SWE","",21.815220162043907,"USD2021/kW"]
[null,"OPEX-F,RES-HYBR,,THA,","OPEX-F","RES-HYBR","","THA","",22.327346505339474,"USD2021/kW"]
[null,"OPEX-F,RES-HYBR,,TUN,","OPEX-F","RES-HYBR","","TUN","",24.919341691951281,"USD2021/kW"]
[null,"OPEX-F,RES-HYBR,,UKR,","OPEX-F","RES-HYBR","","UKR","",20.643719505124583,"USD2021/kW"]
[null,"OPEX-F,RES-HYBR,,URY,","OPEX-F","RES-HYBR","","URY","",28.32907531127745,"USD2021/kW"]
[null,"OPEX-F,RES-HYBR,,USA,","OPEX-F","RES-HYBR","","USA","",21.401979804840973,"USD2021/kW"]
[null,"OPEX-F,RES-HYBR,,VNM,","OPEX-F","RES-HYBR","","VNM","",29.042045392559995,"USD2021/kW"]
[null,"OPEX-F,RES-HYBR,,ZAF,","OPEX-F","RES-HYBR","","ZAF","",23.566877518922464,"USD2021/kW"]
[null,"OPEX-F,RES-HYBR,,ZAF-EC,","OPEX-F","RES-HYBR","","ZAF-EC","",23.566877518922464,"USD2021/kW"]
[null,"OPEX-F,RES-HYBR,,ZAF-FRS,","OPEX-F","RES-HYBR","","ZAF-FRS","",23.566877518922464,"USD2021/kW"]
[null,"OPEX-F,RES-HYBR,,ZAF-GAU,","OPEX-F","RES-HYBR","","ZAF-GAU","",23.566877518922464,"USD2021/kW"]
[null,"OPEX-F,RES-HYBR,,ZAF-KWA,","OPEX-F","RES-HYBR","","ZAF-KWA","",23.566877518922464,"USD2021/kW"]
[null,"OPEX-F,RES-HYBR,,ZAF-LIM,","OPEX-F","RES-HYBR","","ZAF-LIM","",23.566877518922464,"USD2021/kW"]
[null,"OPEX-F,RES-HYBR,,ZAF-MPU,","OPEX-F","RES-HYBR","","ZAF-MPU","",23.566877518922464,"USD2021/kW"]
[null,"OPEX-F,RES-HYBR,,ZAF-NC,","OPEX-F","RES-HYBR","","ZAF-NC","",23.566877518922464,"USD2021/kW"]
[null,"OPEX-F,RES-HYBR,,ZAF-NW,","OPEX-F","RES-HYBR","","ZAF-NW","",23.566877518922464,"USD2021/kW"]
[null,"OPEX-F,RES-HYBR,,ZAF-WC,","OPEX-F","RES-HYBR","","ZAF-WC","",23.566877518922464,"USD2021/kW"]
[null,"OPEX-F,SOEC-EL,,,","OPEX-F","SOEC-EL","","","",45.743745633586165,"USD2021/kW"]
[null,"OPEX-F,WIND-OFF,,ARE,","OPEX-F","WIND-OFF","","ARE","",108.54387831377963,"USD2021/kW"]
[null,"OPEX-F,WIND-OFF,,ARG,","OPEX-F","WIND-OFF","","ARG","",108.54387831377963,"USD2021/kW"]
[null,"OPEX-F,WIND-OFF,,ARG-BA,","OPEX-F","WIND-OFF","","ARG-BA","",108.54387831377963,"USD2021/kW"]
[null,"OPEX-F,WIND-OFF,,ARG-CAT,","OPEX-F","WIND-OFF","","ARG-CAT","",108.54387831377963,"USD2021/kW"]
[null,"OPEX-F,WIND-OFF,,ARG-CBA,","OPEX-F","WIND-OFF","","ARG-CBA","",108.54387831377963,"USD2021/kW"]
[null,"OPEX-F,WIND-OFF,,ARG-CHA,","OPEX-F","WIND-OFF","","ARG-CHA","",108.54387831377963,"USD2021/kW"]
[null,"OPEX-F,WIND-OFF,,ARG-CHU,","OPEX-F","WIND-OFF","","ARG-CHU","",108.54387831377963,"USD2021/kW"]
[null,"OPEX-F,WIND-OFF,,ARG-COR,","OPEX-F","WIND-OFF","","ARG-COR","",108.54387831377963,"USD2021/kW"]
[null,"OPEX-F,WIND-OFF,,ARG-CRB,","OPEX-F","WIND-OFF","","ARG-CRB","",108.54387831377963,"USD2021/kW"]
[null,"OPEX-F,WIND-OFF,,ARG-CRU,","OPEX-F","WIND-OFF","","ARG-CRU","",108.54387831377963,"USD2021/kW"]
[null,"OPEX-F,WIND-OFF,,ARG-EST,","OPEX-F","WIND-OFF","","ARG-EST","",108.54387831377963,"USD2021/kW"]
[null,"OPEX-F,WIND-OFF,,ARG-FOR,","OPEX-F","WIND-OFF","","ARG-FOR","",108.54387831377963,"USD2021/kW"]
[null,"OPEX-F,WIND-OFF,,ARG-FUE,","OPEX-F","WIND-OFF","","ARG-FUE","",108.54387831377963,"USD2021/kW"]
[null,"OPEX-F,WIND-OFF,,ARG-JUJ,","OPEX-F","WIND-OFF","","ARG-JUJ","",108.54387831377963,"USD2021/kW"]
[null,"OPEX-F,WIND-OFF,,ARG-LAR,","OPEX-F","WIND-OFF","","ARG-LAR","",108.54387831377963,"USD2021/kW"]
[null,"OPEX-F,WIND-OFF,,ARG-MEN,","OPEX-F","WIND-OFF","","ARG-MEN","",108.54387831377963,"USD2021/kW"]
[null,"OPEX-F,WIND-OFF,,ARG-MIS,","OPEX-F","WIND-OFF","","ARG-MIS","",108.54387831377963,"USD2021/kW"]
[null,"OPEX-F,WIND-OFF,,ARG-NEG,","OPEX-F","WIND-OFF","","ARG-NEG","",108.54387831377963,"USD2021/kW"]
[null,"OPEX-F,WIND-OFF,,ARG-NEU,","OPEX-F","WIND-OFF","","ARG-NEU","",108.54387831377963,"USD2021/kW"]
[null,"OPEX-F,WIND-OFF,,ARG-PAM,","OPEX-F","WIND-OFF","","ARG-PAM","",108.54387831377963,"USD2021/kW"]
[null,"OPEX-F,WIND-OFF,,ARG-RIO,","OPEX-F","WIND-OFF","","ARG-RIO","",108.54387831377963,"USD2021/kW"]
[null,"OPEX-F,WIND-OFF,,ARG-SAF,","OPEX-F","WIND-OFF","","ARG-SAF","",108.54387831377963,"USD2021/kW"]
[null,"OPEX-F,WIND-OFF,,ARG-SAJ,","OPEX-F","WIND-OFF","","ARG-SAJ","",108.54387831377963,"USD2021/kW"]
[null,"OPEX-F,WIND-OFF,,ARG-SAL,","OPEX-F","WIND-OFF","","ARG-SAL","",108.54387831377963,"USD2021/kW"]
[null,"OPEX-F,WIND-OFF,,ARG-SAT,","OPEX-F","WIND-OFF","","ARG-SAT","",108.54387831377963,"USD2021/kW"]
[null,"OPEX-F,WIND-OFF,,ARG-TUC,","OPEX-F","WIND-OFF","","ARG-TUC","",108.54387831377963,"USD2021/kW"]
[null,"OPEX-F,WIND-OFF,,AUS,","OPEX-F","WIND-OFF","","AUS","",108.54387831377963,"USD2021/kW"]
[null,"OPEX-F,WIND-OFF,,BRA,","OPEX-F","WIND-OFF","","BRA","",108.54387831377963,"USD2021/kW"]
[null,"OPEX-F,WIND-OFF,,CHL,","OPEX-F","WIND-OFF","","CHL","",108.54387831377963,"USD2021/kW"]
[null,"OPEX-F,WIND-OFF,,CHN,","OPEX-F","WIND-OFF","","CHN","",90.453231928149691,"USD2021/kW"]
[null,"OPEX-F,WIND-OFF,,COL,","OPEX-F","WIND-OFF","","COL","",108.54387831377963,"USD2021/kW"]
[null,"OPEX-F,WIND-OFF,,CRI,","OPEX-F","WIND-OFF","","CRI","",108.54387831377963,"USD2021/kW"]
[null,"OPEX-F,WIND-OFF,,DNK,","OPEX-F","WIND-OFF","","DNK","",72.470230270750662,"USD2021/kW"]
[null,"OPEX-F,WIND-OFF,,DZA,","OPEX-F","WIND-OFF","","DZA","",108.54387831377963,"USD2021/kW"]
[null,"OPEX-F,WIND-OFF,,EGY,","OPEX-F","WIND-OFF","","EGY","",108.54387831377963,"USD2021/kW"]
[null,"OPEX-F,WIND-OFF,,ESP,","OPEX-F","WIND-OFF","","ESP","",108.54387831377963,"USD2021/kW"]
[null,"OPEX-F,WIND-OFF,,IDN,","OPEX-F","WIND-OFF","","IDN","",108.54387831377963,"USD2021/kW"]
[null,"OPEX-F,WIND-OFF,,IND,","OPEX-F","WIND-OFF","","IND","",108.54387831377963,"USD2021/kW"]
[null,"OPEX-F,WIND-OFF,,JOR,","OPEX-F","WIND-OFF","","JOR","",108.54387831377963,"USD2021/kW"]
[null,"OPEX-F,WIND-OFF,,KAZ,","OPEX-F","WIND-OFF","","KAZ","",108.54387831377963,"USD2021/kW"]
[null,"OPEX-F,WIND-OFF,,KEN,","OPEX-F","WIND-OFF","","KEN","",108.54387831377963,"USD2021/kW"]
[null,"OPEX-F,WIND-OFF,,MAR,","OPEX-F","WIND-OFF","","MAR","",108.54387831377963,"USD2021/kW"]
[null,"OPEX-F,WIND-OFF,,MAR-BEN,","OPEX-F","WIND-OFF","","MAR-BEN","",108.54387831377963,"USD2021/kW"]
[null,"OPEX-F,WIND-OFF,,MAR-CAS,","OPEX-F","WIND-OFF","","MAR-CAS","",108.54387831377963,"USD2021/kW"]
[null,"OPEX-F,WIND-OFF,,MAR-DAK,","OPEX-F","WIND-OFF","","MAR-DAK","",108.54387831377963,"USD2021/kW"]
[null,"OPEX-F,WIND-OFF,,MAR-DRA,","OPEX-F","WIND-OFF","","MAR-DRA","",108.54387831377963,"USD2021/kW"]
[null,"OPEX-F,WIND-OFF,,MAR-FES,","OPEX-F","WIND-OFF","","MAR-FES","",108.54387831377963,"USD2021/kW"]
[null,"OPEX-F,WIND-OFF,,MAR-GUE,","OPEX-F","WIND-OFF","","MAR-GUE","",108.54387831377963,"USD2021/kW"]
[null,"OPEX-F,WIND-OFF,,MAR-LAA,","OPEX-F","WIND-OFF","","MAR-LAA","",108.54387831377963,"USD2021/kW"]
[null,"OPEX-F,WIND-OFF,,MAR-LOR,","OPEX-F","WIND-OFF","","MAR-LOR","",108.54387831377963,"USD2021/kW"]
[null,"OPEX-F,WIND-OFF,,MAR-MAR,","OPEX-F","WIND-OFF","","MAR-MAR","",108.54387831377963,"USD2021/kW"]
[null,"OPEX-F,WIND-OFF,,MAR-RAB,","OPEX-F","WIND-OFF","","MAR-RAB","",108.54387831377963,"USD2021/kW"]
[null,"OPEX-F,WIND-OFF,,MAR-SOU,","OPEX-F","WIND-OFF","","MAR-SOU","",108.54387831377963,"USD2021/kW"]
[null,"OPEX-F,WIND-OFF,,MAR-TAN,","OPEX-F","WIND-OFF","","MAR-TAN","",108.54387831377963,"USD2021/kW"]
[null,"OPEX-F,WIND-OFF,,MEX,","OPEX-F","WIND-OFF","","MEX","",108.54387831377963,"USD2021/kW"]
[null,"OPEX-F,WIND-OFF,,MRT,","OPEX-F","WIND-OFF","","MRT","",108.54387831377963,"USD2021/kW"]
[null,"OPEX-F,WIND-OFF,,NAM,","OPEX-F","WIND-OFF","","NAM","",108.54387831377963,"USD2021/kW"]
[null,"OPEX-F,WIND-OFF,,NOR,","OPEX-F","WIND-OFF","","NOR","",108.54387831377963,"USD2021/kW"]
[null,"OPEX-F,WIND-OFF,,PER,","OPEX-F","WIND-OFF","","PER","",108.54387831377963,"USD2021/kW"]
[null,"OPEX-F,WIND-OFF,,PRT,","OPEX-F","WIND-OFF","","PRT","",108.54387831377963,"USD2021/kW"]
[null,"OPEX-F,WIND-OFF,,RUS,","OPEX-F","WIND-OFF","","RUS","",108.54387831377963,"USD2021/kW"]
[null,"OPEX-F,WIND-OFF,,SAU,","OPEX-F","WIND-OFF","","SAU","",108.54387831377963,"USD2021/kW"]
[null,"OPEX-F,WIND-OFF,,SWE,","OPEX-F","WIND-OFF","","SWE","",108.54387831377963,"USD2021/kW"]
[null,"OPEX-F,WIND-OFF,,THA,","OPEX-F","WIND-OFF","","THA","",108.54387831377963,"USD2021/kW"]
[null,"OPEX-F,WIND-OFF,,TUN,","OPEX-F","WIND-OFF","","TUN","",108.54387831377963,"USD2021/kW"]
[null,"OPEX-F,WIND-OFF,,UKR,","OPEX-F","WIND-OFF","","UKR","",108.54387831377963,"USD2021/kW"]
[null,"OPEX-F,WIND-OFF,,URY,","OPEX-F","WIND-OFF","","URY","",108.54387831377963,"USD2021/kW"]
[null,"OPEX-F,WIND-OFF,,USA,","OPEX-F","WIND-OFF","","USA","",108.54387831377963,"USD2021/kW"]
[null,"OPEX-F,WIND-OFF,,VNM,","OPEX-F","WIND-OFF","","VNM","",108.54387831377963,"USD2021/kW"]
[null,"OPEX-F,WIND-OFF,,ZAF,","OPEX-F","WIND-OFF","","ZAF","",108.54387831377963,"USD2021/kW"]
[null,"OPEX-F,WIND-OFF,,ZAF-EC,","OPEX-F","WIND-OFF","","ZAF-EC","",108.54387831377963,"USD2021/kW"]
[null,"OPEX-F,WIND-OFF,,ZAF-FRS,","OPEX-F","WIND-OFF","","ZAF-FRS","",108.54387831377963,"USD2021/kW"]
[null,"OPEX-F,WIND-OFF,,ZAF-GAU,","OPEX-F","WIND-OFF","","ZAF-GAU","",108.54387831377963,"USD2021/kW"]
[null,"OPEX-F,WIND-OFF,,ZAF-KWA,","OPEX-F","WIND-OFF","","ZAF-KWA","",108.54387831377963,"USD2021/kW"]
[null,"OPEX-F,WIND-OFF,,ZAF-LIM,","OPEX-F","WIND-OFF","","ZAF-LIM","",108.54387831377963,"USD2021/kW"]
[null,"OPEX-F,WIND-OFF,,ZAF-MPU,","OPEX-F","WIND-OFF","","ZAF-MPU","",108.54387831377963,"USD2021/kW"]
[null,"OPEX-F,WIND-OFF,,ZAF-NC,","OPEX-F","WIND-OFF","","ZAF-NC","",108.54387831377963,"USD2021/kW"]
[null,"OPEX-F,WIND-OFF,,ZAF-NW,","OPEX-F","WIND-OFF","","ZAF-NW","",108.54387831377963,"USD2021/kW"]
[null,"OPEX-F,WIND-OFF,,ZAF-WC,","OPEX-F","WIND-OFF","","ZAF-WC","",108.54387831377963,"USD2021/kW"]
[null,"OPEX-F,WIND-ON,,ARE,","OPEX-F","WIND-ON","","ARE","",41.202535299455249,"USD2021/kW"]
[null,"OPEX-F,WIND-ON,,ARG,","OPEX-F","WIND-ON","","ARG","",46.669538365078765,"USD2021/kW"]
[null,"OPEX-F,WIND-ON,,ARG-BA,","OPEX-F","WIND-ON","","ARG-BA","",46.669538365078765,"USD2021/kW"]
[null,"OPEX-F,WIND-ON,,ARG-CAT,","OPEX-F","WIND-ON","","ARG-CAT","",46.669538365078765,"USD2021/kW"]
[null,"OPEX-F,WIND-ON,,ARG-CBA,","OPEX-F","WIND-ON","","ARG-CBA","",46.669538365078765,"USD2021/kW"]
[null,"OPEX-F,WIND-ON,,ARG-CHA,","OPEX-F","WIND-ON","","ARG-CHA","",46.669538365078765,"USD2021/kW"]
[null,"OPEX-F,WIND-ON,,ARG-CHU,","OPEX-F","WIND-ON","","ARG-CHU","",46.669538365078765,"USD2021/kW"]
[null,"OPEX-F,WIND-ON,,ARG-COR,","OPEX-F","WIND-ON","","ARG-COR","",46.669538365078765,"USD2021/kW"]
[null,"OPEX-F,WIND-ON,,ARG-CRB,","OPEX-F","WIND-ON","","ARG-CRB","",46.669538365078765,"USD2021/kW"]
[null,"OPEX-F,WIND-ON,,ARG-CRU,","OPEX-F","WIND-ON","","ARG-CRU","",46.669538365078765,"USD2021/kW"]
[null,"OPEX-F,WIND-ON,,ARG-EST,","OPEX-F","WIND-ON","","ARG-EST","",46.669538365078765,"USD2021/kW"]
[null,"OPEX-F,WIND-ON,,ARG-FOR,","OPEX-F","WIND-ON","","ARG-FOR","",46.669538365078765,"USD2021/kW"]
[null,"OPEX-F,WIND-ON,,ARG-FUE,","OPEX-F","WIND-ON","","ARG-FUE","",46.669538365078765,"USD2021/kW"]
[null,"OPEX-F,WIND-ON,,ARG-JUJ,","OPEX-F","WIND-ON","","ARG-JUJ","",46.669538365078765,"USD2021/kW"]
[null,"OPEX-F,WIND-ON,,ARG-LAR,","OPEX-F","WIND-ON","","ARG-LAR","",46.669538365078765,"USD2021/kW"]
[null,"OPEX-F,WIND-ON,,ARG-MEN,","OPEX-F","WIND-ON","","ARG-MEN","",46.669538365078765,"USD2021/kW"]
[null,"OPEX-F,WIND-ON,,ARG-MIS,","OPEX-F","WIND-ON","","ARG-MIS","",46.669538365078765,"USD2021/kW"]
[null,"OPEX-F,WIND-ON,,ARG-NEG,","OPEX-F","WIND-ON","","ARG-NEG","",46.669538365078765,"USD2021/kW"]
[null,"OPEX-F,WIND-ON,,ARG-NEU,","OPEX-F","WIND-ON","","ARG-NEU","",46.669538365078765,"USD2021/kW"]
[null,"OPEX-F,WIND-ON,,ARG-PAM,","OPEX-F","WIND-ON","","ARG-PAM","",46.669538365078765,"USD2021/kW"]
[null,"OPEX-F,WIND-ON,,ARG-RIO,","OPEX-F","WIND-ON","","ARG-RIO","",46.669538365078765,"USD2021/kW"]
[null,"OPEX-F,WIND-ON,,ARG-SAF,","OPEX-F","WIND-ON","","ARG-SAF","",46.669538365078765,"USD2021/kW"]
[null,"OPEX-F,WIND-ON,,ARG-SAJ,","OPEX-F","WIND-ON","","ARG-SAJ","",46.669538365078765,"USD2021/kW"]
[null,"OPEX-F,WIND-ON,,ARG-SAL,","OPEX-F","WIND-ON","","ARG-SAL","",46.669538365078765,"USD2021/kW"]
[null,"OPEX-F,WIND-ON,,ARG-SAT,","OPEX-F","WIND-ON","","ARG-SAT","",46.669538365078765,"USD2021/kW"]
[null,"OPEX-F,WIND-ON,,ARG-TUC,","OPEX-F","WIND-ON","","ARG-TUC","",46.669538365078765,"USD2021/kW"]
[null,"OPEX-F,WIND-ON,,AUS,","OPEX-F","WIND-ON","","AUS","",46.669538365078765,"USD2021/kW"]
[null,"OPEX-F,WIND-ON,,BRA,","OPEX-F","WIND-ON","","BRA","",30.668553782766047,"USD2021/kW"]
[null,"OPEX-F,WIND-ON,,CHL,","OPEX-F","WIND-ON","","CHL","",46.669538365078765,"USD2021/kW"]
[null,"OPEX-F,WIND-ON,,CHN,","OPEX-F","WIND-ON","","CHN","",30.85523193622636,"USD2021/kW"]
[null,"OPEX-F,WIND-ON,,COL,","OPEX-F","WIND-ON","","COL","",43.344000000000001,"USD2021/kW"]
[null,"OPEX-F,WIND-ON,,CRI,","OPEX-F","WIND-ON","","CRI","",42.215930989668394,"USD2021/kW"]
[null,"OPEX-F,WIND-ON,,DNK,","OPEX-F","WIND-ON","","DNK","",43.282663295155899,"USD2021/kW"]
[null,"OPEX-F,WIND-ON,,DZA,","OPEX-F","WIND-ON","","DZA","",50.456438049559438,"USD2021/kW"]
[null,"OPEX-F,WIND-ON,,EGY,","OPEX-F","WIND-ON","","EGY","",40.002461455781798,"USD2021/kW"]
[null,"OPEX-F,WIND-ON,,ESP,","OPEX-F","WIND-ON","","ESP","",31.243283515972124,"USD2021/kW"]
[null,"OPEX-F,WIND-ON,,IDN,","OPEX-F","WIND-ON","","IDN","",60.003692183672698,"USD2021/kW"]
[null,"OPEX-F,WIND-ON,,IND,","OPEX-F","WIND-ON","","IND","",24.694852872035963,"USD2021/kW"]
[null,"OPEX-F,WIND-ON,,JOR,","OPEX-F","WIND-ON","","JOR","",50.456438049559438,"USD2021/kW"]
[null,"OPEX-F,WIND-ON,,KAZ,","OPEX-F","WIND-ON","","KAZ","",40.002461455781798,"USD2021/kW"]
[null,"OPEX-F,WIND-ON,,KEN,","OPEX-F","WIND-ON","","KEN","",50.456438049559438,"USD2021/kW"]
[null,"OPEX-F,WIND-ON,,MAR,","OPEX-F","WIND-ON","","MAR","",46.669538365078765,"USD2021/kW"]
[null,"OPEX-F,WIND-ON,,MAR-BEN,","OPEX-F","WIND-ON","","MAR-BEN","",46.669538365078765,"USD2021/kW"]
[null,"OPEX-F,WIND-ON,,MAR-CAS,","OPEX-F","WIND-ON","","MAR-CAS","",46.669538365078765,"USD2021/kW"]
[null,"OPEX-F,WIND-ON,,MAR-DAK,","OPEX-F","WIND-ON","","MAR-DAK","",46.669538365078765,"USD2021/kW"]
[null,"OPEX-F,WIND-ON,,MAR-DRA,","OPEX-F","WIND-ON","","MAR-DRA","",46.669538365078765,"USD2021/kW"]
[null,"OPEX-F,WIND-ON,,MAR-FES,","OPEX-F","WIND-ON","","MAR-FES","",46.669538365078765,"USD2021/kW"]
[null,"OPEX-F,WIND-ON,,MAR-GUE,","OPEX-F","WIND-ON","","MAR-GUE","",46.669538365078765,"USD2021/kW"]
[null,"OPEX-F,WIND-ON,,MAR-LAA,","OPEX-F","WIND-ON","","MAR-LAA","",46.669538365078765,"USD2021/kW"]
[null,"OPEX-F,WIND-ON,,MAR-LOR,","OPEX-F","WIND-ON","","MAR-LOR","",46.669538365078765,"USD2021/kW"]
[null,"OPEX-F,WIND-ON,,MAR-MAR,","OPEX-F","WIND-ON","","MAR-MAR","",46.669538365078765,"USD2021/kW"]
[null,"OPEX-F,WIND-ON,,MAR-RAB,","OPEX-F","WIND-ON","","MAR-RAB","",46.669538365078765,"USD2021/kW"]
[null,"OPEX-F,WIND-ON,,MAR-SOU,","OPEX-F","WIND-ON","","MAR-SOU","",46.669538365078765,"USD2021/kW"]
[null,"OPEX-F,WIND-ON,,MAR-TAN,","OPEX-F","WIND-ON","","MAR-TAN","",46.669538365078765,"USD2021/kW"]
[null,"OPEX-F,WIND-ON,,MEX,","OPEX-F","WIND-ON","","MEX","",39.240541907391524,"USD2021/kW"]
[null,"OPEX-F,WIND-ON,,MRT,","OPEX-F","WIND-ON","","MRT","",50.456438049559438,"USD2021/kW"]
[null,"OPEX-F,WIND-ON,,NAM,","OPEX-F","WIND-ON","","NAM","",50.456438049559438,"USD2021/kW"]
[null,"OPEX-F,WIND-ON,,NOR,","OPEX-F","WIND-ON","","NOR","",40.002461455781798,"USD2021/kW"]
[null,"OPEX-F,WIND-ON,,PER,","OPEX-F","WIND-ON","","PER","",33.335384546484832,"USD2021/kW"]
[null,"OPEX-F,WIND-ON,,PRT,","OPEX-F","WIND-ON","","PRT","",46.669538365078765,"USD2021/kW"]
[null,"OPEX-F,WIND-ON,,RUS,","OPEX-F","WIND-ON","","RUS","",40.002461455781798,"USD2021/kW"]
[null,"OPEX-F,WIND-ON,,SAU,","OPEX-F","WIND-ON","","SAU","",41.202535299455249,"USD2021/kW"]
[null,"OPEX-F,WIND-ON,,SWE,","OPEX-F","WIND-ON","","SWE","",43.282663295155899,"USD2021/kW"]
[null,"OPEX-F,WIND-ON,,THA,","OPEX-F","WIND-ON","","THA","",41.202535299455249,"USD2021/kW"]
[null,"OPEX-F,WIND-ON,,TUN,","OPEX-F","WIND-ON","","TUN","",50.456438049559438,"USD2021/kW"]
[null,"OPEX-F,WIND-ON,,UKR,","OPEX-F","WIND-ON","","UKR","",40.002461455781798,"USD2021/kW"]
[null,"OPEX-F,WIND-ON,,URY,","OPEX-F","WIND-ON","","URY","",60.003692183672698,"USD2021/kW"]
[null,"OPEX-F,WIND-ON,,USA,","OPEX-F","WIND-ON","","USA","",36.847935909117744,"USD2021/kW"]
[null,"OPEX-F,WIND-ON,,VNM,","OPEX-F","WIND-ON","","VNM","",60.003692183672698,"USD2021/kW"]
[null,"OPEX-F,WIND-ON,,ZAF,","OPEX-F","WIND-ON","","ZAF","",46.669538365078765,"USD2021/kW"]
[null,"OPEX-F,WIND-ON,,ZAF-EC,","OPEX-F","WIND-ON","","ZAF-EC","",46.669538365078765,"USD2021/kW"]
[null,"OPEX-F,WIND-ON,,ZAF-FRS,","OPEX-F","WIND-ON","","ZAF-FRS","",46.669538365078765,"USD2021/kW"]
[null,"OPEX-F,WIND-ON,,ZAF-GAU,","OPEX-F","WIND-ON","","ZAF-GAU","",46.669538365078765,"USD2021/kW"]
[null,"OPEX-F,WIND-ON,,ZAF-KWA,","OPEX-F","WIND-ON","","ZAF-KWA","",46.669538365078765,"USD2021/kW"]
[null,"OPEX-F,WIND-ON,,ZAF-LIM,","OPEX-F","WIND-ON","","ZAF-LIM","",46.669538365078765,"USD2021/kW"]
[null,"OPEX-F,WIND-ON,,ZAF-MPU,","OPEX-F","WIND-ON","","ZAF-MPU","",46.669538365078765,"USD2021/kW"]
[null,"OPEX-F,WIND-ON,,ZAF-NC,","OPEX-F","WIND-ON","","ZAF-NC","",46.669538365078765,"USD2021/kW"]
[null,"OPEX-F,WIND-ON,,ZAF-NW,","OPEX-F","WIND-ON","","ZAF-NW","",46.669538365078765,"USD2021/kW"]
[null,"OPEX-F,WIND-ON,,ZAF-WC,","OPEX-F","WIND-ON","","ZAF-WC","",46.669538365078765,"USD2021/kW"]
[null,"OPEX-O,ATR,,,","OPEX-O","ATR","","","",9.1464146414641494E-3,"USD2021/kWh","George et al. (2022)"]
[null,"OPEX-O,CH3OH-S,,,","OPEX-O","CH3OH-S","","","",1.0849036835729676E-4,"USD2021/kWh","UNSW Sydney 2021"]
[null,"OPEX-O,CH3OH-SB,,,","OPEX-O","CH3OH-SB","","","",1.0849036835729676E-4,"USD2021/kWh","UNSW Sydney 2021"]
[null,"OPEX-O,CH4-S,,,","OPEX-O","CH4-S","","","",3.3042876189725266E-4,"USD2021/kWh","UNSW Sydney 2021"]
[null,"OPEX-O,CH4-SB,,,","OPEX-O","CH4-SB","","","",3.3042876189725266E-4,"USD2021/kWh","UNSW Sydney 2021"]
[null,"OPEX-O,DRI,,,","OPEX-O","DRI","","","",0.26656892307692304,"USD2021/kg DRI (s)","Agora Industry Transformation 2021"]
[null,"OPEX-O,H2-S,,,","OPEX-O","H2-S","","","",1.9557894682818507E-3,"USD2021/kWh","UNSW Sydney 2021"]
[null,"OPEX-O,H2-SB,,,","OPEX-O","H2-SB","","","",1.9557894682818507E-3,"USD2021/kWh","UNSW Sydney 2021"]
[null,"OPEX-O,LOHC-S,,,","OPEX-O","LOHC-S","","","",1.5378717307752301E-2,"USD2021/kWh","UNSW Sydney 2021"]
[null,"OPEX-O,LOHC-SB,,,","OPEX-O","LOHC-SB","","","",1.5378717307752301E-2,"USD2021/kWh","UNSW Sydney 2021"]
[null,"OPEX-O,NH3-S,,,","OPEX-O","NH3-S","","","",4.2087134757005104E-4,"USD2021/kWh","UNSW Sydney 2021"]
[null,"OPEX-O,NH3-SB,,,","OPEX-O","NH3-SB","","","",4.2087134757005104E-4,"USD2021/kWh","UNSW Sydney 2021"]
[null,"OPEX-O,REGASATR,,,","OPEX-O","REGASATR","","","",9.1464146414641494E-3,"USD2021/kWh","combined values"]
[null,"OPEX-O,SYN-S,,,","OPEX-O","SYN-S","","","",4.5028839113694242E-5,"USD2021/kWh","UNSW Sydney 2021"]
[null,"OPEX-O,SYN-SB,,,","OPEX-O","SYN-SB","","","",4.5028839113694242E-5,"USD2021/kWh","UNSW Sydney 2021"]
[null,"OPEX-T,CH3OH-S,,,","OPEX-T","CH3OH-S","","","",1.0848168982211098E-7,"USD2021/(kWh*km)","calc_shipping"]
[null,"OPEX-T,CH3OH-SB,,,","OPEX-T","CH3OH-SB","","","",1.0848168982211098E-7,"USD2021/(kWh*km)","calc_shipping"]
[null,"OPEX-T,CH4-P-L,,,","OPEX-T","CH4-P-L","","","",2.7651437055456481E-6,"USD2021/(kWh*km)"]
[null,"OPEX-T,CH4-P-LR,,,","OPEX-T","CH4-P-LR","","","",8.624381235013173E-7,"USD2021/(kWh*km)"]
[null,"OPEX-T,CH4-P-S,,,","OPEX-T","CH4-P-S","","","",3.3181724466547807E-6,"USD2021/(kWh*km)"]
[null,"OPEX-T,CH4-P-SR,,,","OPEX-T","CH4-P-SR","","","",8.624381235013173E-7,"USD2021/(kWh*km)"]
[null,"OPEX-T,CH4-S,,,","OPEX-T","CH4-S","","","",2.5415563823913519E-7,"USD2021/(kWh*km)","calc_shipping"]
[null,"OPEX-T,CH4-SB,,,","OPEX-T","CH4-SB","","","",2.5415563823913519E-7,"USD2021/(kWh*km)","calc_shipping"]
[null,"OPEX-T,DRI-SB,,,","OPEX-T","DRI-SB","","","",3.262896862987803E-7,"USD2021/(kg*km)","calc_shipping"]
[null,"OPEX-T,H2-P-L,,,","OPEX-T","H2-P-L","","","",8.8738982865209894E-6,"USD2021/(kWh*km)","Guidehouse 2022"]
[null,"OPEX-T,H2-P-LR,,,","OPEX-T","H2-P-LR","","","",3.0424794125214817E-6,"USD2021/(kWh*km)","Guidehouse 2022"]
[null,"OPEX-T,H2-P-S,,,","OPEX-T","H2-P-S","","","",1.5212397062607411E-5,"USD2021/(kWh*km)","Guidehouse 2022"]
[null,"OPEX-T,H2-P-SR,,,","OPEX-T","H2-P-SR","","","",3.8030992656518527E-6,"USD2021/(kWh*km)","Guidehouse 2022"]
[null,"OPEX-T,H2-S,,,","OPEX-T","H2-S","","","",1.5043330904926455E-6,"USD2021/(kWh*km)","calc_shipping"]
[null,"OPEX-T,H2-SB,,,","OPEX-T","H2-SB","","","",1.5043330904926455E-6,"USD2021/(kWh*km)","calc_shipping"]
[null,"OPEX-T,LOHC-S,,,","OPEX-T","LOHC-S","","","",1.3493717175603379E-6,"USD2021/(kWh*km)","calc_shipping"]
[null,"OPEX-T,LOHC-SB,,,","OPEX-T","LOHC-SB","","","",1.3493717175603379E-6,"USD2021/(kWh*km)","calc_shipping"]
[null,"OPEX-T,NH3-S,,,","OPEX-T","NH3-S","","","",3.2372129273508194E-7,"USD2021/(kWh*km)","calc_shipping"]
[null,"OPEX-T,NH3-SB,,,","OPEX-T","NH3-SB","","","",3.2372129273508194E-7,"USD2021/(kWh*km)","calc_shipping"]
[null,"OPEX-T,SYN-S,,,","OPEX-T","SYN-S","","","",4.502523709472666E-8,"USD2021/(kWh*km)","calc_shipping"]
[null,"OPEX-T,SYN-SB,,,","OPEX-T","SYN-SB","","","",4.502523709472666E-8,"USD2021/(kWh*km)","calc_shipping"]
[null,"SEASHARE,,,ARE,CHN","SEASHARE","","","ARE","CHN",0.11111111111111099,null,"Research Susanne Krieger"]
[null,"SEASHARE,,,ARE,IND","SEASHARE","","","ARE","IND",0.65,null,"Research Susanne Krieger"]
[null,"SEASHARE,,,CHN,JPN","SEASHARE","","","CHN","JPN",0.28571428571428598,null,"Research Susanne Krieger"]
[null,"SEASHARE,,,CHN,KOR","SEASHARE","","","CHN","KOR",0.4,null,"Research Susanne Krieger"]
[null,"SEASHARE,,,COL,USA","SEASHARE","","","COL","USA",0.64444444444444404,"km","Research Susanne Krieger"]
[null,"SEASHARE,,,CRI,USA","SEASHARE","","","CRI","USA",0.14285714285714299,null,"Research Susanne Krieger"]
[null,"SEASHARE,,,DNK,FRA","SEASHARE","","","DNK","FRA",0.5,null,"Research Susanne Krieger"]
[null,"SEASHARE,,,DNK,NLD","SEASHARE","","","DNK","NLD",1,null,"Research Susanne Krieger"]
[null,"SEASHARE,,,DZA,DEU","SEASHARE","","","DZA","DEU",0.1,null,"Research Susanne Krieger"]
[null,"SEASHARE,,,DZA,ESP","SEASHARE","","","DZA","ESP",0.27741832232496999,null,"Research Susanne Krieger"]
[null,"SEASHARE,,,DZA,FRA","SEASHARE","","","DZA","FRA",0.15,null,"Research Susanne Krieger"]
[null,"SEASHARE,,,DZA,NLD","SEASHARE","","","DZA","NLD",0.133333333333333,null,"Research Susanne Krieger"]
[null,"SEASHARE,,,EGY,ESP","SEASHARE","","","EGY","ESP",0.155555555555556,null,"Research Susanne Krieger"]
[null,"SEASHARE,,,EGY,FRA","SEASHARE","","","EGY","FRA",0.17499999999999999,null,"Research Susanne Krieger"]
[null,"SEASHARE,,,EGY,IND","SEASHARE","","","EGY","IND",0.52,null,"Research Susanne Krieger"]
[null,"SEASHARE,,,IDN,CHN","SEASHARE","","","IDN","CHN",0.5,null,"Research Susanne Krieger"]
[null,"SEASHARE,,,IDN,IND","SEASHARE","","","IDN","IND",0.4,null,"Research Susanne Krieger"]
[null,"SEASHARE,,,IDN,JPN","SEASHARE","","","IDN","JPN",0.90909090909090906,null,"Research Susanne Krieger"]
[null,"SEASHARE,,,IDN,KOR","SEASHARE","","","IDN","KOR",0.90909090909090906,null,"Research Susanne Krieger"]
[null,"SEASHARE,,,KEN,IND","SEASHARE","","","KEN","IND",0.86,null,"Research Susanne Krieger"]
[null,"SEASHARE,,,MAR,ESP","SEASHARE","","","MAR","ESP",0.18,null,"Research Susanne Krieger"]
[null,"SEASHARE,,,MAR-BEN,ESP","SEASHARE","","","MAR-BEN","ESP",0.18,null,"Research Susanne Krieger"]
[null,"SEASHARE,,,MAR-CAS,ESP","SEASHARE","","","MAR-CAS","ESP",0.18,null,"Research Susanne Krieger"]
[null,"SEASHARE,,,MAR-DAK,ESP","SEASHARE","","","MAR-DAK","ESP",0.18,null,"Research Susanne Krieger"]
[null,"SEASHARE,,,MAR-DRA,ESP","SEASHARE","","","MAR-DRA","ESP",0.18,null,"Research Susanne Krieger"]
[null,"SEASHARE,,,MAR-FES,ESP","SEASHARE","","","MAR-FES","ESP",0.18,null,"Research Susanne Krieger"]
[null,"SEASHARE,,,MAR-GUE,ESP","SEASHARE","","","MAR-GUE","ESP",0.18,null,"Research Susanne Krieger"]
[null,"SEASHARE,,,MAR-LAA,ESP","SEASHARE","","","MAR-LAA","ESP",0.18,null,"Research Susanne Krieger"]
[null,"SEASHARE,,,MAR-LOR,ESP","SEASHARE","","","MAR-LOR","ESP",0.18,null,"Research Susanne Krieger"]
[null,"SEASHARE,,,MAR-MAR,ESP","SEASHARE","","","MAR-MAR","ESP",0.18,null,"Research Susanne Krieger"]
[null,"SEASHARE,,,MAR-RAB,ESP","SEASHARE","","","MAR-RAB","ESP",0.18,null,"Research Susanne Krieger"]
[null,"SEASHARE,,,MAR-SOU,ESP","SEASHARE","","","MAR-SOU","ESP",0.18,null,"Research Susanne Krieger"]
[null,"SEASHARE,,,MAR-TAN,ESP","SEASHARE","","","MAR-TAN","ESP",0.18,null,"Research Susanne Krieger"]
[null,"SEASHARE,,,MEX,USA","SEASHARE","","","MEX","USA",1,null,"Research Susanne Krieger"]
[null,"SEASHARE,,,NOR,DEU","SEASHARE","","","NOR","DEU",1,null,"Research Susanne Krieger"]
[null,"SEASHARE,,,NOR,ESP","SEASHARE","","","NOR","ESP",0.45,null,"Research Susanne Krieger"]
[null,"SEASHARE,,,NOR,FRA","SEASHARE","","","NOR","FRA",0.9,null,"Research Susanne Krieger"]
[null,"SEASHARE,,,NOR,NLD","SEASHARE","","","NOR","NLD",1,null,"Research Susanne Krieger"]
[null,"SEASHARE,,,PER,USA","SEASHARE","","","PER","USA",0.58181818181818201,null,"Research Susanne Krieger"]
[null,"SEASHARE,,,RUS,DEU","SEASHARE","","","RUS","DEU",1,null,"Research Susanne Krieger"]
[null,"SEASHARE,,,RUS,JPN","SEASHARE","","","RUS","JPN",0.17499999999999999,null,"Research Susanne Krieger"]
[null,"SEASHARE,,,SAU,IND","SEASHARE","","","SAU","IND",0.74285714285714299,null,"Research Susanne Krieger"]
[null,"SEASHARE,,,SWE,DEU","SEASHARE","","","SWE","DEU",0.3,null,"Research Susanne Krieger"]
[null,"SEASHARE,,,SWE,ESP","SEASHARE","","","SWE","ESP",0.1,null,"Research Susanne Krieger"]
[null,"SEASHARE,,,SWE,FRA","SEASHARE","","","SWE","FRA",0.15,null,"Research Susanne Krieger"]
[null,"SEASHARE,,,SWE,NLD","SEASHARE","","","SWE","NLD",0.15,null,"Research Susanne Krieger"]
[null,"SEASHARE,,,THA,JPN","SEASHARE","","","THA","JPN",0.18,null,"Research Susanne Krieger"]
[null,"SEASHARE,,,THA,KOR","SEASHARE","","","THA","KOR",0.16,null,"Research Susanne Krieger"]
[null,"SEASHARE,,,TUN,DEU","SEASHARE","","","TUN","DEU",0.35,null,"Research Susanne Krieger"]
[null,"SEASHARE,,,TUN,ESP","SEASHARE","","","TUN","ESP",0.46666666666666701,null,"Research Susanne Krieger"]
[null,"SEASHARE,,,TUN,FRA","SEASHARE","","","TUN","FRA",0.7,null,"Research Susanne Krieger"]
[null,"SEASHARE,,,TUN,NLD","SEASHARE","","","TUN","NLD",0.28000000000000003,null,"Research Susanne Krieger"]
[null,"SEASHARE,,,VNM,JPN","SEASHARE","","","VNM","JPN",0.22500000000000001,null,"Research Susanne Krieger"]
[null,"SEASHARE,,,VNM,KOR","SEASHARE","","","VNM","KOR",0.16,null,"Research Susanne Krieger"]
[null,"SPECCOST,,BFUEL-L,,","SPECCOST","","BFUEL-L","","",2.7940534453652541E-3,"USD2021 / kwh bunker fuel (l)"]
[null,"SPECCOST,,CO2-G,,","SPECCOST","","CO2-G","","",3.8577660276243091E-2,"USD2021 / kg CO2 (g)"]
[null,"SPECCOST,,EL,,","SPECCOST","","EL","","",7.0000000000000007E-2,"USD2021 / kWh (el.)","dummy mh! Auf Null gesetzt bis bug in Rechner behoben ist. Korrekter Wert ist 0,08"]
[null,"SPECCOST,,H2O-L,,","SPECCOST","","H2O-L","","",1.190463995027624E-3,"USD2021 / kg H2O (l)"]
[null,"SPECCOST,,HEAT,,","SPECCOST","","HEAT","","",0.05,"USD2021 / kWh (heat)"]
[null,"SPECCOST,,N2-G,,","SPECCOST","","N2-G","","",0.01,"USD2021 / kg N2 (g)"]
[null,"WACC,,,ARE,","WACC","","","ARE","",5.5673211551852057E-2,"fraction"]
[null,"WACC,,,ARG,","WACC","","","ARG","",0.15031035355923136,"fraction"]
[null,"WACC,,,ARG-BA,","WACC","","","ARG-BA","",0.15031035355923136,"fraction"]
[null,"WACC,,,ARG-CAT,","WACC","","","ARG-CAT","",0.15031035355923136,"fraction"]
[null,"WACC,,,ARG-CBA,","WACC","","","ARG-CBA","",0.15031035355923136,"fraction"]
[null,"WACC,,,ARG-CHA,","WACC","","","ARG-CHA","",0.15031035355923136,"fraction"]
[null,"WACC,,,ARG-CHU,","WACC","","","ARG-CHU","",0.15031035355923136,"fraction"]
[null,"WACC,,,ARG-COR,","WACC","","","ARG-COR","",0.15031035355923136,"fraction"]
[null,"WACC,,,ARG-CRB,","WACC","","","ARG-CRB","",0.15031035355923136,"fraction"]
[null,"WACC,,,ARG-CRU,","WACC","","","ARG-CRU","",0.15031035355923136,"fraction"]
[null,"WACC,,,ARG-EST,","WACC","","","ARG-EST","",0.15031035355923136,"fraction"]
[null,"WACC,,,ARG-FOR,","WACC","","","ARG-FOR","",0.15031035355923136,"fraction"]
[null,"WACC,,,ARG-FUE,","WACC","","","ARG-FUE","",0.15031035355923136,"fraction"]
[null,"WACC,,,ARG-JUJ,","WACC","","","ARG-JUJ","",0.15031035355923136,"fraction"]
[null,"WACC,,,ARG-LAR,","WACC","","","ARG-LAR","",0.15031035355923136,"fraction"]
[null,"WACC,,,ARG-MEN,","WACC","","","ARG-MEN","",0.15031035355923136,"fraction"]
[null,"WACC,,,ARG-MIS,","WACC","","","ARG-MIS","",0.15031035355923136,"fraction"]
[null,"WACC,,,ARG-NEG,","WACC","","","ARG-NEG","",0.15031035355923136,"fraction"]
[null,"WACC,,,ARG-NEU,","WACC","","","ARG-NEU","",0.15031035355923136,"fraction"]
[null,"WACC,,,ARG-PAM,","WACC","","","ARG-PAM","",0.15031035355923136,"fraction"]
[null,"WACC,,,ARG-RIO,","WACC","","","ARG-RIO","",0.15031035355923136,"fraction"]
[null,"WACC,,,ARG-SAF,","WACC","","","ARG-SAF","",0.15031035355923136,"fraction"]
[null,"WACC,,,ARG-SAJ,","WACC","","","ARG-SAJ","",0.15031035355923136,"fraction"]
[null,"WACC,,,ARG-SAL,","WACC","","","ARG-SAL","",0.15031035355923136,"fraction"]
[null,"WACC,,,ARG-SAT,","WACC","","","ARG-SAT","",0.15031035355923136,"fraction"]
[null,"WACC,,,ARG-TUC,","WACC","","","ARG-TUC","",0.15031035355923136,"fraction"]
[null,"WACC,,,AUS,","WACC","","","AUS","",5.0299999999999997E-2,"fraction"]
[null,"WACC,,,BRA,","WACC","","","BRA","",8.2832353577576984E-2,"fraction"]
[null,"WACC,,,CHL,","WACC","","","CHL","",5.5673211551852057E-2,"fraction"]
[null,"WACC,,,CHN,","WACC","","","CHN","",5.5673211551852057E-2,"fraction"]
[null,"WACC,,,COL,","WACC","","","COL","",7.0913593408014244E-2,"fraction"]
[null,"WACC,,,CRI,","WACC","","","CRI","",0.10395003232720652,"fraction"]
[null,"WACC,,,DNK,","WACC","","","DNK","",5.0299999999999997E-2,"fraction"]
[null,"WACC,,,DZA,","WACC","","","DZA","",9.1999999999999998E-2,"fraction"]
[null,"WACC,,,EGY,","WACC","","","EGY","",0.11336853373134342,"fraction"]
[null,"WACC,,,ESP,","WACC","","","ESP","",6.4274782725559448E-2,"fraction"]
[null,"WACC,,,IDN,","WACC","","","IDN","",7.0913593408014244E-2,"fraction"]
[null,"WACC,,,IND,","WACC","","","IND","",7.237045402218821E-2,"fraction"]
[null,"WACC,,,JOR,","WACC","","","JOR","",9.9049682988621379E-2,"fraction"]
[null,"WACC,,,KAZ,","WACC","","","KAZ","",7.3401485154905771E-2,"fraction"]
[null,"WACC,,,KEN,","WACC","","","KEN","",0.10989380084781369,"fraction"]
[null,"WACC,,,MAR,","WACC","","","MAR","",7.731973992583685E-2,"fraction"]
[null,"WACC,,,MAR-BEN,","WACC","","","MAR-BEN","",7.731973992583685E-2,"fraction"]
[null,"WACC,,,MAR-CAS,","WACC","","","MAR-CAS","",7.731973992583685E-2,"fraction"]
[null,"WACC,,,MAR-DAK,","WACC","","","MAR-DAK","",7.731973992583685E-2,"fraction"]
[null,"WACC,,,MAR-DRA,","WACC","","","MAR-DRA","",7.731973992583685E-2,"fraction"]
[null,"WACC,,,MAR-FES,","WACC","","","MAR-FES","",7.731973992583685E-2,"fraction"]
[null,"WACC,,,MAR-GUE,","WACC","","","MAR-GUE","",7.731973992583685E-2,"fraction"]
[null,"WACC,,,MAR-LAA,","WACC","","","MAR-LAA","",7.731973992583685E-2,"fraction"]
[null,"WACC,,,MAR-LOR,","WACC","","","MAR-LOR","",7.731973992583685E-2,"fraction"]
[null,"WACC,,,MAR-MAR,","WACC","","","MAR-MAR","",7.731973992583685E-2,"fraction"]
[null,"WACC,,,MAR-RAB,","WACC","","","MAR-RAB","",7.731973992583685E-2,"fraction"]
[null,"WACC,,,MAR-SOU,","WACC","","","MAR-SOU","",7.731973992583685E-2,"fraction"]
[null,"WACC,,,MAR-TAN,","WACC","","","MAR-TAN","",7.731973992583685E-2,"fraction"]
[null,"WACC,,,MEX,","WACC","","","MEX","",6.4274782725559448E-2,"fraction"]
[null,"WACC,,,MRT,","WACC","","","MRT","",9.1999999999999998E-2,"fraction"]
[null,"WACC,,,NAM,","WACC","","","NAM","",8.3993056414234241E-2,"fraction"]
[null,"WACC,,,NOR,","WACC","","","NOR","",5.0299999999999997E-2,"fraction"]
[null,"WACC,,,PER,","WACC","","","PER","",6.4274782725559448E-2,"fraction"]
[null,"WACC,,,PRT,","WACC","","","PRT","",7.3401485154905771E-2,"fraction"]
[null,"WACC,,,RUS,","WACC","","","RUS","",7.5170549034228915E-2,"fraction"]
[null,"WACC,,,SAU,","WACC","","","SAU","",5.5673211551852057E-2,"fraction"]
[null,"WACC,,,SWE,","WACC","","","SWE","",5.0299999999999997E-2,"fraction"]
[null,"WACC,,,THA,","WACC","","","THA","",6.4274782725559448E-2,"fraction"]
[null,"WACC,,,TUN,","WACC","","","TUN","",0.11482300617243665,"fraction"]
[null,"WACC,,,UKR,","WACC","","","UKR","",0.1266281397634636,"fraction"]
[null,"WACC,,,URY,","WACC","","","URY","",7.731973992583685E-2,"fraction"]
[null,"WACC,,,USA,","WACC","","","USA","",5.0299999999999997E-2,"fraction"]
[null,"WACC,,,VNM,","WACC","","","VNM","",8.9280207439799461E-2,"fraction"]
[null,"WACC,,,ZAF,","WACC","","","ZAF","",7.8066629268261314E-2,"fraction"]
[null,"WACC,,,ZAF-EC,","WACC","","","ZAF-EC","",7.8066629268261314E-2,"fraction"]
[null,"WACC,,,ZAF-FRS,","WACC","","","ZAF-FRS","",7.8066629268261314E-2,"fraction"]
[null,"WACC,,,ZAF-GAU,","WACC","","","ZAF-GAU","",7.8066629268261314E-2,"fraction"]
[null,"WACC,,,ZAF-KWA,","WACC","","","ZAF-KWA","",7.8066629268261314E-2,"fraction"]
[null,"WACC,,,ZAF-LIM,","WACC","","","ZAF-LIM","",7.8066629268261314E-2,"fraction"]
[null,"WACC,,,ZAF-MPU,","WACC","","","ZAF-MPU","",7.8066629268261314E-2,"fraction"]
[null,"WACC,,,ZAF-NC,","WACC","","","ZAF-NC","",7.8066629268261314E-2,"fraction"]
[null,"WACC,,,ZAF-NW,","WACC","","","ZAF-NW","",7.8066629268261314E-2,"fraction"]
[null,"WACC,,,ZAF-WC,","WACC","","","ZAF-WC","",7.8066629268261314E-2,"fraction"]
["/data"]

{"sheet":"_scenario_2030_low","index":46,"n_rows":2137,"n_cols":10,"rows_kept":2137,"cut":false,"hidden":true,"merged":[]}
["data","key","parameter_code","process_code","flow_code","source_region_code","target_country_code","value","unit","source"]
[null,"CALOR,,CH3OH-L,,","CALOR","","CH3OH-L","","",5.5277777777777768,"kWh CH3OH (l)/kg","Wikipedia with conversions"]
[null,"CALOR,,CH4-G,,","CALOR","","CH4-G","","",13.5,"kWh CH4 (g)/kg","Wikipedia with conversions"]
[null,"CALOR,,CH4-L,,","CALOR","","CH4-L","","",13.5,"kWh CH4 (l)/kg","Wikipedia with conversions"]
[null,"CALOR,,CHX-L,,","CALOR","","CHX-L","","",11.944444444444445,"kwh CHx (l)/kg","Wikipedia with conversions"]
[null,"CALOR,,DRI-S,,","CALOR","","DRI-S","","",1,"kg DRI (s)/kg","no conversion necessary"]
[null,"CALOR,,H2-G,,","CALOR","","H2-G","","",33.33,"kWh H2 (g)/kg","Linde"]
[null,"CALOR,,H2-L,,","CALOR","","H2-L","","",33.33,"kWh H2 (l)/kg","Linde"]
[null,"CALOR,,LOHC-L,,","CALOR","","LOHC-L","","",33.33,"kWh H2 (l)/kg","Linde"]
[null,"CALOR,,NH3-L,,","CALOR","","NH3-L","","",5.1999999999999993,"kWh NH3 (l)/kg","Wikipedia with conversions"]
[null,"CAPEX,AEL-EL,,,","CAPEX","AEL-EL","","","",650.6426539852938,"USD2021/kW"]
[null,"CAPEX,ATR,,,","CAPEX","ATR","","","",1000.0341055522356,"USD2021/kW","Oni et al. 2022"]
[null,"CAPEX,CH3OHSYN,,,","CAPEX","CH3OHSYN","","","",842.04693216594069,"USD2021/kW","Öko-Institut 2020"]
[null,"CAPEX,CH4-COMP,,,","CAPEX","CH4-COMP","","","",109.99917241203053,"USD2021/kW","DNV GL 2020"]
[null,"CAPEX,CH4-LIQ,,,","CAPEX","CH4-LIQ","","","",439.99368256303694,"USD2021/kW","Hank et al. 2020"]
[null,"CAPEX,CH4SYN,,,","CAPEX","CH4SYN","","","",847.89448030598192,"USD2021/kW","Öko-Institut 2020"]
[null,"CAPEX,DAC,,,","CAPEX","DAC","","","",0.41636519784362236,"USD2021/ kg CO2 (g)*a","Fasihi et al. 2019"]
[null,"CAPEX,DESAL,,,","CAPEX","DESAL","","","",2.3667276243093918E-3,"USD2021/l*a","Fraunhofer IEE"]
[null,"CAPEX,DRI,,,","CAPEX","DRI","","","",4125.6284525730507,"USD2021/kg DRI (s)/a*h","Agora Industry Transformation 2021"]
[null,"CAPEX,EFUELSYN,,,","CAPEX","EFUELSYN","","","",842.04693216594069,"USD2021/kW","Öko-Institut 2020"]
[null,"CAPEX,H2-COMP,,,","CAPEX","H2-COMP","","","",109.99917241203053,"USD2021/kW","DNV GL 2020"]
[null,"CAPEX,H2-LIQ,,,","CAPEX","H2-LIQ","","","",1002.8117916963051,"USD2021/kW","IEA 2015"]
[null,"CAPEX,H2-RGAS,,,","CAPEX","H2-RGAS","","","",132.39460989295262,"USD2021/kW","DNV GL 2020"]
[null,"CAPEX,LOHC-CON,,,","CAPEX","LOHC-CON","","","",115.62902187902189,"USD2021/kW","DNV GL 2020"]
[null,"CAPEX,LOHC-REC,,,","CAPEX","LOHC-REC","","","",392.49239121445908,"USD2021/kW","DNV GL 2020"]
[null,"CAPEX,NH3-REC,,,","CAPEX","NH3-REC","","","",400.62187765124105,"USD2021/kW","NGN; Equinor 2018"]
[null,"CAPEX,NH3SYN,,,","CAPEX","NH3SYN","","","",1148.7731776455587,"USD2021/kW","Fasihi et al. 2021"]
[null,"CAPEX,PEM-EL,,,","CAPEX","PEM-EL","","","",924.60772108052163,"USD2021/kW"]
[null,"CAPEX,PV-FIX,,ARE,","CAPEX","PV-FIX","","ARE","",748.32170696054584,"USD2021/kW"]
[null,"CAPEX,PV-FIX,,ARG,","CAPEX","PV-FIX","","ARG","",726.01426568983027,"USD2021/kW"]
[null,"CAPEX,PV-FIX,,ARG-BA,","CAPEX","PV-FIX","","ARG-BA","",726.01426568983027,"USD2021/kW"]
[null,"CAPEX,PV-FIX,,ARG-CAT,","CAPEX","PV-FIX","","ARG-CAT","",726.01426568983027,"USD2021/kW"]
[null,"CAPEX,PV-FIX,,ARG-CBA,","CAPEX","PV-FIX","","ARG-CBA","",726.01426568983027,"USD2021/kW"]
[null,"CAPEX,PV-FIX,,ARG-CHA,","CAPEX","PV-FIX","","ARG-CHA","",726.01426568983027,"USD2021/kW"]
[null,"CAPEX,PV-FIX,,ARG-CHU,","CAPEX","PV-FIX","","ARG-CHU","",726.01426568983027,"USD2021/kW"]
[null,"CAPEX,PV-FIX,,ARG-COR,","CAPEX","PV-FIX","","ARG-COR","",726.01426568983027,"USD2021/kW"]
[null,"CAPEX,PV-FIX,,ARG-CRB,","CAPEX","PV-FIX","","ARG-CRB","",726.01426568983027,"USD2021/kW"]
[null,"CAPEX,PV-FIX,,ARG-CRU,","CAPEX","PV-FIX","","ARG-CRU","",726.01426568983027,"USD2021/kW"]
[null,"CAPEX,PV-FIX,,ARG-EST,","CAPEX","PV-FIX","","ARG-EST","",726.01426568983027,"USD2021/kW"]
[null,"CAPEX,PV-FIX,,ARG-FOR,","CAPEX","PV-FIX","","ARG-FOR","",726.01426568983027,"USD2021/kW"]
[null,"CAPEX,PV-FIX,,ARG-FUE,","CAPEX","PV-FIX","","ARG-FUE","",726.01426568983027,"USD2021/kW"]
[null,"CAPEX,PV-FIX,,ARG-JUJ,","CAPEX","PV-FIX","","ARG-JUJ","",726.01426568983027,"USD2021/kW"]
[null,"CAPEX,PV-FIX,,ARG-LAR,","CAPEX","PV-FIX","","ARG-LAR","",726.01426568983027,"USD2021/kW"]
[null,"CAPEX,PV-FIX,,ARG-MEN,","CAPEX","PV-FIX","","ARG-MEN","",726.01426568983027,"USD2021/kW"]
[null,"CAPEX,PV-FIX,,ARG-MIS,","CAPEX","PV-FIX","","ARG-MIS","",726.01426568983027,"USD2021/kW"]
[null,"CAPEX,PV-FIX,,ARG-NEG,","CAPEX","PV-FIX","","ARG-NEG","",726.01426568983027,"USD2021/kW"]
[null,"CAPEX,PV-FIX,,ARG-NEU,","CAPEX","PV-FIX","","ARG-NEU","",726.01426568983027,"USD2021/kW"]
[null,"CAPEX,PV-FIX,,ARG-PAM,","CAPEX","PV-FIX","","ARG-PAM","",726.01426568983027,"USD2021/kW"]
[null,"CAPEX,PV-FIX,,ARG-RIO,","CAPEX","PV-FIX","","ARG-RIO","",726.01426568983027,"USD2021/kW"]
[null,"CAPEX,PV-FIX,,ARG-SAF,","CAPEX","PV-FIX","","ARG-SAF","",726.01426568983027,"USD2021/kW"]
[null,"CAPEX,PV-FIX,,ARG-SAJ,","CAPEX","PV-FIX","","ARG-SAJ","",726.01426568983027,"USD2021/kW"]
[null,"CAPEX,PV-FIX,,ARG-SAL,","CAPEX","PV-FIX","","ARG-SAL","",726.01426568983027,"USD2021/kW"]
[null,"CAPEX,PV-FIX,,ARG-SAT,","CAPEX","PV-FIX","","ARG-SAT","",726.01426568983027,"USD2021/kW"]
[null,"CAPEX,PV-FIX,,ARG-TUC,","CAPEX","PV-FIX","","ARG-TUC","",726.01426568983027,"USD2021/kW"]
[null,"CAPEX,PV-FIX,,AUS,","CAPEX","PV-FIX","","AUS","",820.26320505860349,"USD2021/kW"]
[null,"CAPEX,PV-FIX,,BRA,","CAPEX","PV-FIX","","BRA","",710.7708474881747,"USD2021/kW"]
[null,"CAPEX,PV-FIX,,CHL,","CAPEX","PV-FIX","","CHL","",808.18000770363255,"USD2021/kW"]
[null,"CAPEX,PV-FIX,,CHN,","CAPEX","PV-FIX","","CHN","",470.31522012425313,"USD2021/kW"]
[null,"CAPEX,PV-FIX,,COL,","CAPEX","PV-FIX","","COL","",748.32170696054584,"USD2021/kW"]
[null,"CAPEX,PV-FIX,,CRI,","CAPEX","PV-FIX","","CRI","",748.32170696054584,"USD2021/kW"]
[null,"CAPEX,PV-FIX,,DNK,","CAPEX","PV-FIX","","DNK","",648.77475028997765,"USD2021/kW"]
[null,"CAPEX,PV-FIX,,DZA,","CAPEX","PV-FIX","","DZA","",748.32170696054584,"USD2021/kW"]
[null,"CAPEX,PV-FIX,,EGY,","CAPEX","PV-FIX","","EGY","",748.32170696054584,"USD2021/kW"]
[null,"CAPEX,PV-FIX,,ESP,","CAPEX","PV-FIX","","ESP","",705.10103949853442,"USD2021/kW"]
[null,"CAPEX,PV-FIX,,IDN,","CAPEX","PV-FIX","","IDN","",867.38767474299016,"USD2021/kW"]
[null,"CAPEX,PV-FIX,,IND,","CAPEX","PV-FIX","","IND","",486.11632435767666,"USD2021/kW"]
[null,"CAPEX,PV-FIX,,JOR,","CAPEX","PV-FIX","","JOR","",748.32170696054584,"USD2021/kW"]
[null,"CAPEX,PV-FIX,,KAZ,","CAPEX","PV-FIX","","KAZ","",748.32170696054584,"USD2021/kW"]
[null,"CAPEX,PV-FIX,,KEN,","CAPEX","PV-FIX","","KEN","",748.32170696054584,"USD2021/kW"]
[null,"CAPEX,PV-FIX,,MAR,","CAPEX","PV-FIX","","MAR","",748.32170696054584,"USD2021/kW"]
[null,"CAPEX,PV-FIX,,MAR-BEN,","CAPEX","PV-FIX","","MAR-BEN","",748.32170696054584,"USD2021/kW"]
[null,"CAPEX,PV-FIX,,MAR-CAS,","CAPEX","PV-FIX","","MAR-CAS","",748.32170696054584,"USD2021/kW"]
[null,"CAPEX,PV-FIX,,MAR-DAK,","CAPEX","PV-FIX","","MAR-DAK","",748.32170696054584,"USD2021/kW"]
[null,"CAPEX,PV-FIX,,MAR-DRA,","CAPEX","PV-FIX","","MAR-DRA","",748.32170696054584,"USD2021/kW"]
[null,"CAPEX,PV-FIX,,MAR-FES,","CAPEX","PV-FIX","","MAR-FES","",748.32170696054584,"USD2021/kW"]
[null,"CAPEX,PV-FIX,,MAR-GUE,","CAPEX","PV-FIX","","MAR-GUE","",748.32170696054584,"USD2021/kW"]
[null,"CAPEX,PV-FIX,,MAR-LAA,","CAPEX","PV-FIX","","MAR-LAA","",748.32170696054584,"USD2021/kW"]
[null,"CAPEX,PV-FIX,,MAR-LOR,","CAPEX","PV-FIX","","MAR-LOR","",748.32170696054584,"USD2021/kW"]
[null,"CAPEX,PV-FIX,,MAR-MAR,","CAPEX","PV-FIX","","MAR-MAR","",748.32170696054584,"USD2021/kW"]
[null,"CAPEX,PV-FIX,,MAR-RAB,","CAPEX","PV-FIX","","MAR-RAB","",748.32170696054584,"USD2021/kW"]
[null,"CAPEX,PV-FIX,,MAR-SOU,","CAPEX","PV-FIX","","MAR-SOU","",748.32170696054584,"USD2021/kW"]
[null,"CAPEX,PV-FIX,,MAR-TAN,","CAPEX","PV-FIX","","MAR-TAN","",748.32170696054584,"USD2021/kW"]
[null,"CAPEX,PV-FIX,,MEX,","CAPEX","PV-FIX","","MEX","",681.95706918016708,"USD2021/kW"]
[null,"CAPEX,PV-FIX,,MRT,","CAPEX","PV-FIX","","MRT","",748.32170696054584,"USD2021/kW"]
[null,"CAPEX,PV-FIX,,NAM,","CAPEX","PV-FIX","","NAM","",748.32170696054584,"USD2021/kW"]
[null,"CAPEX,PV-FIX,,NOR,","CAPEX","PV-FIX","","NOR","",689.52714068546084,"USD2021/kW"]
[null,"CAPEX,PV-FIX,,PER,","CAPEX","PV-FIX","","PER","",748.32170696054584,"USD2021/kW"]
[null,"CAPEX,PV-FIX,,PRT,","CAPEX","PV-FIX","","PRT","",756.68699743706418,"USD2021/kW"]
[null,"CAPEX,PV-FIX,,RUS,","CAPEX","PV-FIX","","RUS","",1342.350278465309,"USD2021/kW"]
[null,"CAPEX,PV-FIX,,SAU,","CAPEX","PV-FIX","","SAU","",776.11306087697903,"USD2021/kW"]
[null,"CAPEX,PV-FIX,,SWE,","CAPEX","PV-FIX","","SWE","",689.52714068546084,"USD2021/kW"]
[null,"CAPEX,PV-FIX,,THA,","CAPEX","PV-FIX","","THA","",825.65417003235973,"USD2021/kW"]
[null,"CAPEX,PV-FIX,,TUN,","CAPEX","PV-FIX","","TUN","",748.32170696054584,"USD2021/kW"]
[null,"CAPEX,PV-FIX,,UKR,","CAPEX","PV-FIX","","UKR","",689.52714068546084,"USD2021/kW"]
[null,"CAPEX,PV-FIX,,URY,","CAPEX","PV-FIX","","URY","",748.32170696054584,"USD2021/kW"]
[null,"CAPEX,PV-FIX,,USA,","CAPEX","PV-FIX","","USA","",893.97070892392617,"USD2021/kW"]
[null,"CAPEX,PV-FIX,,VNM,","CAPEX","PV-FIX","","VNM","",825.65417003235973,"USD2021/kW"]
[null,"CAPEX,PV-FIX,,ZAF,","CAPEX","PV-FIX","","ZAF","",748.32170696054584,"USD2021/kW"]
[null,"CAPEX,PV-FIX,,ZAF-EC,","CAPEX","PV-FIX","","ZAF-EC","",748.32170696054584,"USD2021/kW"]
[null,"CAPEX,PV-FIX,,ZAF-FRS,","CAPEX","PV-FIX","","ZAF-FRS","",748.32170696054584,"USD2021/kW"]
[null,"CAPEX,PV-FIX,,ZAF-GAU,","CAPEX","PV-FIX","","ZAF-GAU","",748.32170696054584,"USD2021/kW"]
[null,"CAPEX,PV-FIX,,ZAF-KWA,","CAPEX","PV-FIX","","ZAF-KWA","",748.32170696054584,"USD2021/kW"]
[null,"CAPEX,PV-FIX,,ZAF-LIM,","CAPEX","PV-FIX","","ZAF-LIM","",748.32170696054584,"USD2021/kW"]
[null,"CAPEX,PV-FIX,,ZAF-MPU,","CAPEX","PV-FIX","","ZAF-MPU","",748.32170696054584,"USD2021/kW"]
[null,"CAPEX,PV-FIX,,ZAF-NC,","CAPEX","PV-FIX","","ZAF-NC","",748.32170696054584,"USD2021/kW"]
[null,"CAPEX,PV-FIX,,ZAF-NW,","CAPEX","PV-FIX","","ZAF-NW","",748.32170696054584,"USD2021/kW"]
[null,"CAPEX,PV-FIX,,ZAF-WC,","CAPEX","PV-FIX","","ZAF-WC","",748.32170696054584,"USD2021/kW"]
[null,"CAPEX,REGASATR,,,","CAPEX","REGASATR","","","",1000.0341055522356,"USD2021/kW","combined values"]
[null,"CAPEX,RES-HYBR,,ARE,","CAPEX","RES-HYBR","","ARE","",1129.0342332707282,"USD2021/kW","calculated. PV:  WIND-ON: "]
[null,"CAPEX,RES-HYBR,,ARG,","CAPEX","RES-HYBR","","ARG","",1218.0417054231007,"USD2021/kW","calculated. PV:  WIND-ON: "]
[null,"CAPEX,RES-HYBR,,ARG-BA,","CAPEX","RES-HYBR","","ARG-BA","",1218.0417054231007,"USD2021/kW","calculated. PV:  WIND-ON: "]
[null,"CAPEX,RES-HYBR,,ARG-CAT,","CAPEX","RES-HYBR","","ARG-CAT","",1218.0417054231007,"USD2021/kW","calculated. PV:  WIND-ON: "]
[null,"CAPEX,RES-HYBR,,ARG-CBA,","CAPEX","RES-HYBR","","ARG-CBA","",1218.0417054231007,"USD2021/kW","calculated. PV:  WIND-ON: "]
[null,"CAPEX,RES-HYBR,,ARG-CHA,","CAPEX","RES-HYBR","","ARG-CHA","",1218.0417054231007,"USD2021/kW","calculated. PV:  WIND-ON: "]
[null,"CAPEX,RES-HYBR,,ARG-CHU,","CAPEX","RES-HYBR","","ARG-CHU","",1218.0417054231007,"USD2021/kW","calculated. PV:  WIND-ON: "]
[null,"CAPEX,RES-HYBR,,ARG-COR,","CAPEX","RES-HYBR","","ARG-COR","",1218.0417054231007,"USD2021/kW","calculated. PV:  WIND-ON: "]
[null,"CAPEX,RES-HYBR,,ARG-CRB,","CAPEX","RES-HYBR","","ARG-CRB","",1218.0417054231007,"USD2021/kW","calculated. PV:  WIND-ON: "]
[null,"CAPEX,RES-HYBR,,ARG-CRU,","CAPEX","RES-HYBR","","ARG-CRU","",1218.0417054231007,"USD2021/kW","calculated. PV:  WIND-ON: "]
[null,"CAPEX,RES-HYBR,,ARG-EST,","CAPEX","RES-HYBR","","ARG-EST","",1218.0417054231007,"USD2021/kW","calculated. PV:  WIND-ON: "]
[null,"CAPEX,RES-HYBR,,ARG-FOR,","CAPEX","RES-HYBR","","ARG-FOR","",1218.0417054231007,"USD2021/kW","calculated. PV:  WIND-ON: "]
[null,"CAPEX,RES-HYBR,,ARG-FUE,","CAPEX","RES-HYBR","","ARG-FUE","",1218.0417054231007,"USD2021/kW","calculated. PV:  WIND-ON: "]
[null,"CAPEX,RES-HYBR,,ARG-JUJ,","CAPEX","RES-HYBR","","ARG-JUJ","",1218.0417054231007,"USD2021/kW","calculated. PV:  WIND-ON: "]
[null,"CAPEX,RES-HYBR,,ARG-LAR,","CAPEX","RES-HYBR","","ARG-LAR","",1218.0417054231007,"USD2021/kW","calculated. PV:  WIND-ON: "]
[null,"CAPEX,RES-HYBR,,ARG-MEN,","CAPEX","RES-HYBR","","ARG-MEN","",1218.0417054231007,"USD2021/kW","calculated. PV:  WIND-ON: "]
[null,"CAPEX,RES-HYBR,,ARG-MIS,","CAPEX","RES-HYBR","","ARG-MIS","",1218.0417054231007,"USD2021/kW","calculated. PV:  WIND-ON: "]
[null,"CAPEX,RES-HYBR,,ARG-NEG,","CAPEX","RES-HYBR","","ARG-NEG","",1218.0417054231007,"USD2021/kW","calculated. PV:  WIND-ON: "]
[null,"CAPEX,RES-HYBR,,ARG-NEU,","CAPEX","RES-HYBR","","ARG-NEU","",1218.0417054231007,"USD2021/kW","calculated. PV:  WIND-ON: "]
[null,"CAPEX,RES-HYBR,,ARG-PAM,","CAPEX","RES-HYBR","","ARG-PAM","",1218.0417054231007,"USD2021/kW","calculated. PV:  WIND-ON: "]
[null,"CAPEX,RES-HYBR,,ARG-RIO,","CAPEX","RES-HYBR","","ARG-RIO","",1218.0417054231007,"USD2021/kW","calculated. PV:  WIND-ON: "]
[null,"CAPEX,RES-HYBR,,ARG-SAF,","CAPEX","RES-HYBR","","ARG-SAF","",1218.0417054231007,"USD2021/kW","calculated. PV:  WIND-ON: "]
[null,"CAPEX,RES-HYBR,,ARG-SAJ,","CAPEX","RES-HYBR","","ARG-SAJ","",1218.0417054231007,"USD2021/kW","calculated. PV:  WIND-ON: "]
[null,"CAPEX,RES-HYBR,,ARG-SAL,","CAPEX","RES-HYBR","","ARG-SAL","",1218.0417054231007,"USD2021/kW","calculated. PV:  WIND-ON: "]
[null,"CAPEX,RES-HYBR,,ARG-SAT,","CAPEX","RES-HYBR","","ARG-SAT","",1218.0417054231007,"USD2021/kW","calculated. PV:  WIND-ON: "]
[null,"CAPEX,RES-HYBR,,ARG-TUC,","CAPEX","RES-HYBR","","ARG-TUC","",1218.0417054231007,"USD2021/kW","calculated. PV:  WIND-ON: "]
[null,"CAPEX,RES-HYBR,,AUS,","CAPEX","RES-HYBR","","AUS","",1265.1661751074873,"USD2021/kW","calculated. PV:  WIND-ON: "]
[null,"CAPEX,RES-HYBR,,BRA,","CAPEX","RES-HYBR","","BRA","",917.26528572403788,"USD2021/kW","calculated. PV:  WIND-ON: "]
[null,"CAPEX,RES-HYBR,,CHL,","CAPEX","RES-HYBR","","CHL","",1259.124576430002,"USD2021/kW","calculated. PV:  WIND-ON: "]
[null,"CAPEX,RES-HYBR,,CHN,","CAPEX","RES-HYBR","","CHN","",800.45761033238978,"USD2021/kW","calculated. PV:  WIND-ON: "]
[null,"CAPEX,RES-HYBR,,COL,","CAPEX","RES-HYBR","","COL","",1186.6608534802729,"USD2021/kW","calculated. PV:  WIND-ON: "]
[null,"CAPEX,RES-HYBR,,CRI,","CAPEX","RES-HYBR","","CRI","",1147.6006982752831,"USD2021/kW","calculated. PV:  WIND-ON: "]
[null,"CAPEX,RES-HYBR,,DNK,","CAPEX","RES-HYBR","","DNK","",1117.3708673132146,"USD2021/kW","calculated. PV:  WIND-ON: "]
[null,"CAPEX,RES-HYBR,,DZA,","CAPEX","RES-HYBR","","DZA","",1298.5753742333741,"USD2021/kW","calculated. PV:  WIND-ON: "]
[null,"CAPEX,RES-HYBR,,EGY,","CAPEX","RES-HYBR","","EGY","",1107.0476299758607,"USD2021/kW","calculated. PV:  WIND-ON: "]
[null,"CAPEX,RES-HYBR,,ESP,","CAPEX","RES-HYBR","","ESP","",924.96002931080898,"USD2021/kW","calculated. PV:  WIND-ON: "]
[null,"CAPEX,RES-HYBR,,IDN,","CAPEX","RES-HYBR","","IDN","",1533.0240021148766,"USD2021/kW","calculated. PV:  WIND-ON: "]
[null,"CAPEX,RES-HYBR,,IND,","CAPEX","RES-HYBR","","IND","",695.49359886878108,"USD2021/kW","calculated. PV:  WIND-ON: "]
[null,"CAPEX,RES-HYBR,,JOR,","CAPEX","RES-HYBR","","JOR","",1298.5753742333741,"USD2021/kW","calculated. PV:  WIND-ON: "]
[null,"CAPEX,RES-HYBR,,KAZ,","CAPEX","RES-HYBR","","KAZ","",1107.0476299758607,"USD2021/kW","calculated. PV:  WIND-ON: "]
[null,"CAPEX,RES-HYBR,,KEN,","CAPEX","RES-HYBR","","KEN","",1298.5753742333741,"USD2021/kW","calculated. PV:  WIND-ON: "]
[null,"CAPEX,RES-HYBR,,MAR,","CAPEX","RES-HYBR","","MAR","",1229.1954260584585,"USD2021/kW","calculated. PV:  WIND-ON: "]
[null,"CAPEX,RES-HYBR,,MAR-BEN,","CAPEX","RES-HYBR","","MAR-BEN","",1229.1954260584585,"USD2021/kW","calculated. PV:  WIND-ON: "]
[null,"CAPEX,RES-HYBR,,MAR-CAS,","CAPEX","RES-HYBR","","MAR-CAS","",1229.1954260584585,"USD2021/kW","calculated. PV:  WIND-ON: "]
[null,"CAPEX,RES-HYBR,,MAR-DAK,","CAPEX","RES-HYBR","","MAR-DAK","",1229.1954260584585,"USD2021/kW","calculated. PV:  WIND-ON: "]
[null,"CAPEX,RES-HYBR,,MAR-DRA,","CAPEX","RES-HYBR","","MAR-DRA","",1229.1954260584585,"USD2021/kW","calculated. PV:  WIND-ON: "]
[null,"CAPEX,RES-HYBR,,MAR-FES,","CAPEX","RES-HYBR","","MAR-FES","",1229.1954260584585,"USD2021/kW","calculated. PV:  WIND-ON: "]
[null,"CAPEX,RES-HYBR,,MAR-GUE,","CAPEX","RES-HYBR","","MAR-GUE","",1229.1954260584585,"USD2021/kW","calculated. PV:  WIND-ON: "]
[null,"CAPEX,RES-HYBR,,MAR-LAA,","CAPEX","RES-HYBR","","MAR-LAA","",1229.1954260584585,"USD2021/kW","calculated. PV:  WIND-ON: "]
[null,"CAPEX,RES-HYBR,,MAR-LOR,","CAPEX","RES-HYBR","","MAR-LOR","",1229.1954260584585,"USD2021/kW","calculated. PV:  WIND-ON: "]
[null,"CAPEX,RES-HYBR,,MAR-MAR,","CAPEX","RES-HYBR","","MAR-MAR","",1229.1954260584585,"USD2021/kW","calculated. PV:  WIND-ON: "]
[null,"CAPEX,RES-HYBR,,MAR-RAB,","CAPEX","RES-HYBR","","MAR-RAB","",1229.1954260584585,"USD2021/kW","calculated. PV:  WIND-ON: "]
[null,"CAPEX,RES-HYBR,,MAR-SOU,","CAPEX","RES-HYBR","","MAR-SOU","",1229.1954260584585,"USD2021/kW","calculated. PV:  WIND-ON: "]
[null,"CAPEX,RES-HYBR,,MAR-TAN,","CAPEX","RES-HYBR","","MAR-TAN","",1229.1954260584585,"USD2021/kW","calculated. PV:  WIND-ON: "]
[null,"CAPEX,RES-HYBR,,MEX,","CAPEX","RES-HYBR","","MEX","",1059.9061510378335,"USD2021/kW","calculated. PV:  WIND-ON: "]
[null,"CAPEX,RES-HYBR,,MRT,","CAPEX","RES-HYBR","","MRT","",1298.5753742333741,"USD2021/kW","calculated. PV:  WIND-ON: "]
[null,"CAPEX,RES-HYBR,,NAM,","CAPEX","RES-HYBR","","NAM","",1298.5753742333741,"USD2021/kW","calculated. PV:  WIND-ON: "]
[null,"CAPEX,RES-HYBR,,NOR,","CAPEX","RES-HYBR","","NOR","",1077.650346838318,"USD2021/kW","calculated. PV:  WIND-ON: "]
[null,"CAPEX,RES-HYBR,,PER,","CAPEX","RES-HYBR","","PER","",984.89983389326267,"USD2021/kW","calculated. PV:  WIND-ON: "]
[null,"CAPEX,RES-HYBR,,PRT,","CAPEX","RES-HYBR","","PRT","",1233.3780712967177,"USD2021/kW","calculated. PV:  WIND-ON: "]
[null,"CAPEX,RES-HYBR,,RUS,","CAPEX","RES-HYBR","","RUS","",1404.0619157282422,"USD2021/kW","calculated. PV:  WIND-ON: "]
[null,"CAPEX,RES-HYBR,,SAU,","CAPEX","RES-HYBR","","SAU","",1142.9299102289447,"USD2021/kW","calculated. PV:  WIND-ON: "]
[null,"CAPEX,RES-HYBR,,SWE,","CAPEX","RES-HYBR","","SWE","",1137.7470625109563,"USD2021/kW","calculated. PV:  WIND-ON: "]
[null,"CAPEX,RES-HYBR,,THA,","CAPEX","RES-HYBR","","THA","",1167.7004648066352,"USD2021/kW","calculated. PV:  WIND-ON: "]
[null,"CAPEX,RES-HYBR,,TUN,","CAPEX","RES-HYBR","","TUN","",1298.5753742333741,"USD2021/kW","calculated. PV:  WIND-ON: "]
[null,"CAPEX,RES-HYBR,,UKR,","CAPEX","RES-HYBR","","UKR","",1077.650346838318,"USD2021/kW","calculated. PV:  WIND-ON: "]
[null,"CAPEX,RES-HYBR,,URY,","CAPEX","RES-HYBR","","URY","",1473.4910182236545,"USD2021/kW","calculated. PV:  WIND-ON: "]
[null,"CAPEX,RES-HYBR,,USA,","CAPEX","RES-HYBR","","USA","",1122.077935922249,"USD2021/kW","calculated. PV:  WIND-ON: "]
[null,"CAPEX,RES-HYBR,,VNM,","CAPEX","RES-HYBR","","VNM","",1512.1572497595614,"USD2021/kW","calculated. PV:  WIND-ON: "]
[null,"CAPEX,RES-HYBR,,ZAF,","CAPEX","RES-HYBR","","ZAF","",1229.1954260584585,"USD2021/kW","calculated. PV:  WIND-ON: "]
[null,"CAPEX,RES-HYBR,,ZAF-EC,","CAPEX","RES-HYBR","","ZAF-EC","",1229.1954260584585,"USD2021/kW","calculated. PV:  WIND-ON: "]
[null,"CAPEX,RES-HYBR,,ZAF-FRS,","CAPEX","RES-HYBR","","ZAF-FRS","",1229.1954260584585,"USD2021/kW","calculated. PV:  WIND-ON: "]
[null,"CAPEX,RES-HYBR,,ZAF-GAU,","CAPEX","RES-HYBR","","ZAF-GAU","",1229.1954260584585,"USD2021/kW","calculated. PV:  WIND-ON: "]
[null,"CAPEX,RES-HYBR,,ZAF-KWA,","CAPEX","RES-HYBR","","ZAF-KWA","",1229.1954260584585,"USD2021/kW","calculated. PV:  WIND-ON: "]
[null,"CAPEX,RES-HYBR,,ZAF-LIM,","CAPEX","RES-HYBR","","ZAF-LIM","",1229.1954260584585,"USD2021/kW","calculated. PV:  WIND-ON: "]
[null,"CAPEX,RES-HYBR,,ZAF-MPU,","CAPEX","RES-HYBR","","ZAF-MPU","",1229.1954260584585,"USD2021/kW","calculated. PV:  WIND-ON: "]
[null,"CAPEX,RES-HYBR,,ZAF-NC,","CAPEX","RES-HYBR","","ZAF-NC","",1229.1954260584585,"USD2021/kW","calculated. PV:  WIND-ON: "]
[null,"CAPEX,RES-HYBR,,ZAF-NW,","CAPEX","RES-HYBR","","ZAF-NW","",1229.1954260584585,"USD2021/kW","calculated. PV:  WIND-ON: "]
[null,"CAPEX,RES-HYBR,,ZAF-WC,","CAPEX","RES-HYBR","","ZAF-WC","",1229.1954260584585,"USD2021/kW","calculated. PV:  WIND-ON: "]
[null,"CAPEX,SOEC-EL,,,","CAPEX","SOEC-EL","","","",2248.3912430939217,"USD2021/kW"]
[null,"CAPEX,WIND-OFF,,ARE,","CAPEX","WIND-OFF","","ARE","",3316.6422675294375,"USD2021/kW"]
[null,"CAPEX,WIND-OFF,,ARG,","CAPEX","WIND-OFF","","ARG","",3316.6422675294375,"USD2021/kW"]
[null,"CAPEX,WIND-OFF,,ARG-BA,","CAPEX","WIND-OFF","","ARG-BA","",3316.6422675294375,"USD2021/kW"]
[null,"CAPEX,WIND-OFF,,ARG-CAT,","CAPEX","WIND-OFF","","ARG-CAT","",3316.6422675294375,"USD2021/kW"]
[null,"CAPEX,WIND-OFF,,ARG-CBA,","CAPEX","WIND-OFF","","ARG-CBA","",3316.6422675294375,"USD2021/kW"]
[null,"CAPEX,WIND-OFF,,ARG-CHA,","CAPEX","WIND-OFF","","ARG-CHA","",3316.6422675294375,"USD2021/kW"]
[null,"CAPEX,WIND-OFF,,ARG-CHU,","CAPEX","WIND-OFF","","ARG-CHU","",3316.6422675294375,"USD2021/kW"]
[null,"CAPEX,WIND-OFF,,ARG-COR,","CAPEX","WIND-OFF","","ARG-COR","",3316.6422675294375,"USD2021/kW"]
[null,"CAPEX,WIND-OFF,,ARG-CRB,","CAPEX","WIND-OFF","","ARG-CRB","",3316.6422675294375,"USD2021/kW"]
[null,"CAPEX,WIND-OFF,,ARG-CRU,","CAPEX","WIND-OFF","","ARG-CRU","",3316.6422675294375,"USD2021/kW"]
[null,"CAPEX,WIND-OFF,,ARG-EST,","CAPEX","WIND-OFF","","ARG-EST","",3316.6422675294375,"USD2021/kW"]
[null,"CAPEX,WIND-OFF,,ARG-FOR,","CAPEX","WIND-OFF","","ARG-FOR","",3316.6422675294375,"USD2021/kW"]
[null,"CAPEX,WIND-OFF,,ARG-FUE,","CAPEX","WIND-OFF","","ARG-FUE","",3316.6422675294375,"USD2021/kW"]
[null,"CAPEX,WIND-OFF,,ARG-JUJ,","CAPEX","WIND-OFF","","ARG-JUJ","",3316.6422675294375,"USD2021/kW"]
[null,"CAPEX,WIND-OFF,,ARG-LAR,","CAPEX","WIND-OFF","","ARG-LAR","",3316.6422675294375,"USD2021/kW"]
[null,"CAPEX,WIND-OFF,,ARG-MEN,","CAPEX","WIND-OFF","","ARG-MEN","",3316.6422675294375,"USD2021/kW"]
[null,"CAPEX,WIND-OFF,,ARG-MIS,","CAPEX","WIND-OFF","","ARG-MIS","",3316.6422675294375,"USD2021/kW"]
[null,"CAPEX,WIND-OFF,,ARG-NEG,","CAPEX","WIND-OFF","","ARG-NEG","",3316.6422675294375,"USD2021/kW"]
[null,"CAPEX,WIND-OFF,,ARG-NEU,","CAPEX","WIND-OFF","","ARG-NEU","",3316.6422675294375,"USD2021/kW"]
[null,"CAPEX,WIND-OFF,,ARG-PAM,","CAPEX","WIND-OFF","","ARG-PAM","",3316.6422675294375,"USD2021/kW"]
[null,"CAPEX,WIND-OFF,,ARG-RIO,","CAPEX","WIND-OFF","","ARG-RIO","",3316.6422675294375,"USD2021/kW"]
[null,"CAPEX,WIND-OFF,,ARG-SAF,","CAPEX","WIND-OFF","","ARG-SAF","",3316.6422675294375,"USD2021/kW"]
[null,"CAPEX,WIND-OFF,,ARG-SAJ,","CAPEX","WIND-OFF","","ARG-SAJ","",3316.6422675294375,"USD2021/kW"]
[null,"CAPEX,WIND-OFF,,ARG-SAL,","CAPEX","WIND-OFF","","ARG-SAL","",3316.6422675294375,"USD2021/kW"]
[null,"CAPEX,WIND-OFF,,ARG-SAT,","CAPEX","WIND-OFF","","ARG-SAT","",3316.6422675294375,"USD2021/kW"]
[null,"CAPEX,WIND-OFF,,ARG-TUC,","CAPEX","WIND-OFF","","ARG-TUC","",3316.6422675294375,"USD2021/kW"]
[null,"CAPEX,WIND-OFF,,AUS,","CAPEX","WIND-OFF","","AUS","",3316.6422675294375,"USD2021/kW"]
[null,"CAPEX,WIND-OFF,,BRA,","CAPEX","WIND-OFF","","BRA","",3316.6422675294375,"USD2021/kW"]
[null,"CAPEX,WIND-OFF,,CHL,","CAPEX","WIND-OFF","","CHL","",3316.6422675294375,"USD2021/kW"]
[null,"CAPEX,WIND-OFF,,CHN,","CAPEX","WIND-OFF","","CHN","",2763.8685562745313,"USD2021/kW"]
[null,"CAPEX,WIND-OFF,,COL,","CAPEX","WIND-OFF","","COL","",3317,"USD2021/kW"]
[null,"CAPEX,WIND-OFF,,CRI,","CAPEX","WIND-OFF","","CRI","",3316.6422675294375,"USD2021/kW"]
[null,"CAPEX,WIND-OFF,,DNK,","CAPEX","WIND-OFF","","DNK","",2214.3840130599938,"USD2021/kW"]
[null,"CAPEX,WIND-OFF,,DZA,","CAPEX","WIND-OFF","","DZA","",3316.6422675294375,"USD2021/kW"]
[null,"CAPEX,WIND-OFF,,EGY,","CAPEX","WIND-OFF","","EGY","",3316.6422675294375,"USD2021/kW"]
[null,"CAPEX,WIND-OFF,,ESP,","CAPEX","WIND-OFF","","ESP","",3316.6422675294375,"USD2021/kW"]
[null,"CAPEX,WIND-OFF,,IDN,","CAPEX","WIND-OFF","","IDN","",3316.6422675294375,"USD2021/kW"]
[null,"CAPEX,WIND-OFF,,IND,","CAPEX","WIND-OFF","","IND","",3316.6422675294375,"USD2021/kW"]
[null,"CAPEX,WIND-OFF,,JOR,","CAPEX","WIND-OFF","","JOR","",3316.6422675294375,"USD2021/kW"]
[null,"CAPEX,WIND-OFF,,KAZ,","CAPEX","WIND-OFF","","KAZ","",3316.6422675294375,"USD2021/kW"]
[null,"CAPEX,WIND-OFF,,KEN,","CAPEX","WIND-OFF","","KEN","",3316.6422675294375,"USD2021/kW"]
[null,"CAPEX,WIND-OFF,,MAR,","CAPEX","WIND-OFF","","MAR","",3316.6422675294375,"USD2021/kW"]
[null,"CAPEX,WIND-OFF,,MAR-BEN,","CAPEX","WIND-OFF","","MAR-BEN","",3316.6422675294375,"USD2021/kW"]
[null,"CAPEX,WIND-OFF,,MAR-CAS,","CAPEX","WIND-OFF","","MAR-CAS","",3316.6422675294375,"USD2021/kW"]
[null,"CAPEX,WIND-OFF,,MAR-DAK,","CAPEX","WIND-OFF","","MAR-DAK","",3316.6422675294375,"USD2021/kW"]
[null,"CAPEX,WIND-OFF,,MAR-DRA,","CAPEX","WIND-OFF","","MAR-DRA","",3316.6422675294375,"USD2021/kW"]
[null,"CAPEX,WIND-OFF,,MAR-FES,","CAPEX","WIND-OFF","","MAR-FES","",3316.6422675294375,"USD2021/kW"]
[null,"CAPEX,WIND-OFF,,MAR-GUE,","CAPEX","WIND-OFF","","MAR-GUE","",3316.6422675294375,"USD2021/kW"]
[null,"CAPEX,WIND-OFF,,MAR-LAA,","CAPEX","WIND-OFF","","MAR-LAA","",3316.6422675294375,"USD2021/kW"]
[null,"CAPEX,WIND-OFF,,MAR-LOR,","CAPEX","WIND-OFF","","MAR-LOR","",3316.6422675294375,"USD2021/kW"]
[null,"CAPEX,WIND-OFF,,MAR-MAR,","CAPEX","WIND-OFF","","MAR-MAR","",3316.6422675294375,"USD2021/kW"]
[null,"CAPEX,WIND-OFF,,MAR-RAB,","CAPEX","WIND-OFF","","MAR-RAB","",3316.6422675294375,"USD2021/kW"]
[null,"CAPEX,WIND-OFF,,MAR-SOU,","CAPEX","WIND-OFF","","MAR-SOU","",3316.6422675294375,"USD2021/kW"]
[null,"CAPEX,WIND-OFF,,MAR-TAN,","CAPEX","WIND-OFF","","MAR-TAN","",3316.6422675294375,"USD2021/kW"]
[null,"CAPEX,WIND-OFF,,MEX,","CAPEX","WIND-OFF","","MEX","",3316.6422675294375,"USD2021/kW"]
[null,"CAPEX,WIND-OFF,,MRT,","CAPEX","WIND-OFF","","MRT","",3316.6422675294375,"USD2021/kW"]
[null,"CAPEX,WIND-OFF,,NAM,","CAPEX","WIND-OFF","","NAM","",3316.6422675294375,"USD2021/kW"]
[null,"CAPEX,WIND-OFF,,NOR,","CAPEX","WIND-OFF","","NOR","",3316.6422675294375,"USD2021/kW"]
[null,"CAPEX,WIND-OFF,,PER,","CAPEX","WIND-OFF","","PER","",3316.6422675294375,"USD2021/kW"]
[null,"CAPEX,WIND-OFF,,PRT,","CAPEX","WIND-OFF","","PRT","",3316.6422675294375,"USD2021/kW"]
[null,"CAPEX,WIND-OFF,,RUS,","CAPEX","WIND-OFF","","RUS","",3316.6422675294375,"USD2021/kW"]
[null,"CAPEX,WIND-OFF,,SAU,","CAPEX","WIND-OFF","","SAU","",3316.6422675294375,"USD2021/kW"]
[null,"CAPEX,WIND-OFF,,SWE,","CAPEX","WIND-OFF","","SWE","",3316.6422675294375,"USD2021/kW"]
[null,"CAPEX,WIND-OFF,,THA,","CAPEX","WIND-OFF","","THA","",3316.6422675294375,"USD2021/kW"]
[null,"CAPEX,WIND-OFF,,TUN,","CAPEX","WIND-OFF","","TUN","",3316.6422675294375,"USD2021/kW"]
[null,"CAPEX,WIND-OFF,,UKR,","CAPEX","WIND-OFF","","UKR","",3316.6422675294375,"USD2021/kW"]
[null,"CAPEX,WIND-OFF,,URY,","CAPEX","WIND-OFF","","URY","",3316.6422675294375,"USD2021/kW"]
[null,"CAPEX,WIND-OFF,,USA,","CAPEX","WIND-OFF","","USA","",3316.6422675294375,"USD2021/kW"]
[null,"CAPEX,WIND-OFF,,VNM,","CAPEX","WIND-OFF","","VNM","",3316.6422675294375,"USD2021/kW"]
[null,"CAPEX,WIND-OFF,,ZAF,","CAPEX","WIND-OFF","","ZAF","",3316.6422675294375,"USD2021/kW"]
[null,"CAPEX,WIND-OFF,,ZAF-EC,","CAPEX","WIND-OFF","","ZAF-EC","",3316.6422675294375,"USD2021/kW"]
[null,"CAPEX,WIND-OFF,,ZAF-FRS,","CAPEX","WIND-OFF","","ZAF-FRS","",3316.6422675294375,"USD2021/kW"]
[null,"CAPEX,WIND-OFF,,ZAF-GAU,","CAPEX","WIND-OFF","","ZAF-GAU","",3316.6422675294375,"USD2021/kW"]
[null,"CAPEX,WIND-OFF,,ZAF-KWA,","CAPEX","WIND-OFF","","ZAF-KWA","",3316.6422675294375,"USD2021/kW"]
[null,"CAPEX,WIND-OFF,,ZAF-LIM,","CAPEX","WIND-OFF","","ZAF-LIM","",3316.6422675294375,"USD2021/kW"]
[null,"CAPEX,WIND-OFF,,ZAF-MPU,","CAPEX","WIND-OFF","","ZAF-MPU","",3316.6422675294375,"USD2021/kW"]
[null,"CAPEX,WIND-OFF,,ZAF-NC,","CAPEX","WIND-OFF","","ZAF-NC","",3316.6422675294375,"USD2021/kW"]
[null,"CAPEX,WIND-OFF,,ZAF-NW,","CAPEX","WIND-OFF","","ZAF-NW","",3316.6422675294375,"USD2021/kW"]
[null,"CAPEX,WIND-OFF,,ZAF-WC,","CAPEX","WIND-OFF","","ZAF-WC","",3316.6422675294375,"USD2021/kW"]
[null,"CAPEX,WIND-ON,,ARE,","CAPEX","WIND-ON","","ARE","",1509.7467595809105,"USD2021/kW"]
[null,"CAPEX,WIND-ON,,ARG,","CAPEX","WIND-ON","","ARG","",1710.0691451563712,"USD2021/kW"]
[null,"CAPEX,WIND-ON,,ARG-BA,","CAPEX","WIND-ON","","ARG-BA","",1710.0691451563712,"USD2021/kW"]
[null,"CAPEX,WIND-ON,,ARG-CAT,","CAPEX","WIND-ON","","ARG-CAT","",1710.0691451563712,"USD2021/kW"]
[null,"CAPEX,WIND-ON,,ARG-CBA,","CAPEX","WIND-ON","","ARG-CBA","",1710.0691451563712,"USD2021/kW"]
[null,"CAPEX,WIND-ON,,ARG-CHA,","CAPEX","WIND-ON","","ARG-CHA","",1710.0691451563712,"USD2021/kW"]
[null,"CAPEX,WIND-ON,,ARG-CHU,","CAPEX","WIND-ON","","ARG-CHU","",1710.0691451563712,"USD2021/kW"]
[null,"CAPEX,WIND-ON,,ARG-COR,","CAPEX","WIND-ON","","ARG-COR","",1710.0691451563712,"USD2021/kW"]
[null,"CAPEX,WIND-ON,,ARG-CRB,","CAPEX","WIND-ON","","ARG-CRB","",1710.0691451563712,"USD2021/kW"]
[null,"CAPEX,WIND-ON,,ARG-CRU,","CAPEX","WIND-ON","","ARG-CRU","",1710.0691451563712,"USD2021/kW"]
[null,"CAPEX,WIND-ON,,ARG-EST,","CAPEX","WIND-ON","","ARG-EST","",1710.0691451563712,"USD2021/kW"]
[null,"CAPEX,WIND-ON,,ARG-FOR,","CAPEX","WIND-ON","","ARG-FOR","",1710.0691451563712,"USD2021/kW"]
[null,"CAPEX,WIND-ON,,ARG-FUE,","CAPEX","WIND-ON","","ARG-FUE","",1710.0691451563712,"USD2021/kW"]
[null,"CAPEX,WIND-ON,,ARG-JUJ,","CAPEX","WIND-ON","","ARG-JUJ","",1710.0691451563712,"USD2021/kW"]
[null,"CAPEX,WIND-ON,,ARG-LAR,","CAPEX","WIND-ON","","ARG-LAR","",1710.0691451563712,"USD2021/kW"]
[null,"CAPEX,WIND-ON,,ARG-MEN,","CAPEX","WIND-ON","","ARG-MEN","",1710.0691451563712,"USD2021/kW"]
[null,"CAPEX,WIND-ON,,ARG-MIS,","CAPEX","WIND-ON","","ARG-MIS","",1710.0691451563712,"USD2021/kW"]
[null,"CAPEX,WIND-ON,,ARG-NEG,","CAPEX","WIND-ON","","ARG-NEG","",1710.0691451563712,"USD2021/kW"]
[null,"CAPEX,WIND-ON,,ARG-NEU,","CAPEX","WIND-ON","","ARG-NEU","",1710.0691451563712,"USD2021/kW"]
[null,"CAPEX,WIND-ON,,ARG-PAM,","CAPEX","WIND-ON","","ARG-PAM","",1710.0691451563712,"USD2021/kW"]
[null,"CAPEX,WIND-ON,,ARG-RIO,","CAPEX","WIND-ON","","ARG-RIO","",1710.0691451563712,"USD2021/kW"]
[null,"CAPEX,WIND-ON,,ARG-SAF,","CAPEX","WIND-ON","","ARG-SAF","",1710.0691451563712,"USD2021/kW"]
[null,"CAPEX,WIND-ON,,ARG-SAJ,","CAPEX","WIND-ON","","ARG-SAJ","",1710.0691451563712,"USD2021/kW"]
[null,"CAPEX,WIND-ON,,ARG-SAL,","CAPEX","WIND-ON","","ARG-SAL","",1710.0691451563712,"USD2021/kW"]
[null,"CAPEX,WIND-ON,,ARG-SAT,","CAPEX","WIND-ON","","ARG-SAT","",1710.0691451563712,"USD2021/kW"]
[null,"CAPEX,WIND-ON,,ARG-TUC,","CAPEX","WIND-ON","","ARG-TUC","",1710.0691451563712,"USD2021/kW"]
[null,"CAPEX,WIND-ON,,AUS,","CAPEX","WIND-ON","","AUS","",1710.0691451563712,"USD2021/kW"]
[null,"CAPEX,WIND-ON,,BRA,","CAPEX","WIND-ON","","BRA","",1123.7597239599011,"USD2021/kW"]
[null,"CAPEX,WIND-ON,,CHL,","CAPEX","WIND-ON","","CHL","",1710.0691451563712,"USD2021/kW"]
[null,"CAPEX,WIND-ON,,CHN,","CAPEX","WIND-ON","","CHN","",1130.6000005405265,"USD2021/kW"]
[null,"CAPEX,WIND-ON,,COL,","CAPEX","WIND-ON","","COL","",1625,"USD2021/kW"]
[null,"CAPEX,WIND-ON,,CRI,","CAPEX","WIND-ON","","CRI","",1546.8796895900205,"USD2021/kW"]
[null,"CAPEX,WIND-ON,,DNK,","CAPEX","WIND-ON","","DNK","",1585.9669843364518,"USD2021/kW"]
[null,"CAPEX,WIND-ON,,DZA,","CAPEX","WIND-ON","","DZA","",1848.8290415062024,"USD2021/kW"]
[null,"CAPEX,WIND-ON,,EGY,","CAPEX","WIND-ON","","EGY","",1465.7735529911754,"USD2021/kW"]
[null,"CAPEX,WIND-ON,,ESP,","CAPEX","WIND-ON","","ESP","",1144.8190191230835,"USD2021/kW"]
[null,"CAPEX,WIND-ON,,IDN,","CAPEX","WIND-ON","","IDN","",2198.6603294867632,"USD2021/kW"]
[null,"CAPEX,WIND-ON,,IND,","CAPEX","WIND-ON","","IND","",904.87087337988555,"USD2021/kW"]
[null,"CAPEX,WIND-ON,,JOR,","CAPEX","WIND-ON","","JOR","",1848.8290415062024,"USD2021/kW"]
[null,"CAPEX,WIND-ON,,KAZ,","CAPEX","WIND-ON","","KAZ","",1465.7735529911754,"USD2021/kW"]
[null,"CAPEX,WIND-ON,,KEN,","CAPEX","WIND-ON","","KEN","",1848.8290415062024,"USD2021/kW"]
[null,"CAPEX,WIND-ON,,MAR,","CAPEX","WIND-ON","","MAR","",1710.0691451563712,"USD2021/kW"]
[null,"CAPEX,WIND-ON,,MAR-BEN,","CAPEX","WIND-ON","","MAR-BEN","",1710.0691451563712,"USD2021/kW"]
[null,"CAPEX,WIND-ON,,MAR-CAS,","CAPEX","WIND-ON","","MAR-CAS","",1710.0691451563712,"USD2021/kW"]
[null,"CAPEX,WIND-ON,,MAR-DAK,","CAPEX","WIND-ON","","MAR-DAK","",1710.0691451563712,"USD2021/kW"]
[null,"CAPEX,WIND-ON,,MAR-DRA,","CAPEX","WIND-ON","","MAR-DRA","",1710.0691451563712,"USD2021/kW"]
[null,"CAPEX,WIND-ON,,MAR-FES,","CAPEX","WIND-ON","","MAR-FES","",1710.0691451563712,"USD2021/kW"]
[null,"CAPEX,WIND-ON,,MAR-GUE,","CAPEX","WIND-ON","","MAR-GUE","",1710.0691451563712,"USD2021/kW"]
[null,"CAPEX,WIND-ON,,MAR-LAA,","CAPEX","WIND-ON","","MAR-LAA","",1710.0691451563712,"USD2021/kW"]
[null,"CAPEX,WIND-ON,,MAR-LOR,","CAPEX","WIND-ON","","MAR-LOR","",1710.0691451563712,"USD2021/kW"]
[null,"CAPEX,WIND-ON,,MAR-MAR,","CAPEX","WIND-ON","","MAR-MAR","",1710.0691451563712,"USD2021/kW"]
[null,"CAPEX,WIND-ON,,MAR-RAB,","CAPEX","WIND-ON","","MAR-RAB","",1710.0691451563712,"USD2021/kW"]
[null,"CAPEX,WIND-ON,,MAR-SOU,","CAPEX","WIND-ON","","MAR-SOU","",1710.0691451563712,"USD2021/kW"]
[null,"CAPEX,WIND-ON,,MAR-TAN,","CAPEX","WIND-ON","","MAR-TAN","",1710.0691451563712,"USD2021/kW"]
[null,"CAPEX,WIND-ON,,MEX,","CAPEX","WIND-ON","","MEX","",1437.8552328955,"USD2021/kW"]
[null,"CAPEX,WIND-ON,,MRT,","CAPEX","WIND-ON","","MRT","",1848.8290415062024,"USD2021/kW"]
[null,"CAPEX,WIND-ON,,NAM,","CAPEX","WIND-ON","","NAM","",1848.8290415062024,"USD2021/kW"]
[null,"CAPEX,WIND-ON,,NOR,","CAPEX","WIND-ON","","NOR","",1465.7735529911754,"USD2021/kW"]
[null,"CAPEX,WIND-ON,,PER,","CAPEX","WIND-ON","","PER","",1221.4779608259794,"USD2021/kW"]
[null,"CAPEX,WIND-ON,,PRT,","CAPEX","WIND-ON","","PRT","",1710.0691451563712,"USD2021/kW"]
[null,"CAPEX,WIND-ON,,RUS,","CAPEX","WIND-ON","","RUS","",1465.7735529911754,"USD2021/kW"]
[null,"CAPEX,WIND-ON,,SAU,","CAPEX","WIND-ON","","SAU","",1509.7467595809105,"USD2021/kW"]
[null,"CAPEX,WIND-ON,,SWE,","CAPEX","WIND-ON","","SWE","",1585.9669843364518,"USD2021/kW"]
[null,"CAPEX,WIND-ON,,THA,","CAPEX","WIND-ON","","THA","",1509.7467595809105,"USD2021/kW"]
[null,"CAPEX,WIND-ON,,TUN,","CAPEX","WIND-ON","","TUN","",1848.8290415062024,"USD2021/kW"]
[null,"CAPEX,WIND-ON,,UKR,","CAPEX","WIND-ON","","UKR","",1465.7735529911754,"USD2021/kW"]
[null,"CAPEX,WIND-ON,,URY,","CAPEX","WIND-ON","","URY","",2198.6603294867632,"USD2021/kW"]
[null,"CAPEX,WIND-ON,,USA,","CAPEX","WIND-ON","","USA","",1350.1851629205719,"USD2021/kW"]
[null,"CAPEX,WIND-ON,,VNM,","CAPEX","WIND-ON","","VNM","",2198.6603294867632,"USD2021/kW"]
[null,"CAPEX,WIND-ON,,ZAF,","CAPEX","WIND-ON","","ZAF","",1710.0691451563712,"USD2021/kW"]
[null,"CAPEX,WIND-ON,,ZAF-EC,","CAPEX","WIND-ON","","ZAF-EC","",1710.0691451563712,"USD2021/kW"]
[null,"CAPEX,WIND-ON,,ZAF-FRS,","CAPEX","WIND-ON","","ZAF-FRS","",1710.0691451563712,"USD2021/kW"]
[null,"CAPEX,WIND-ON,,ZAF-GAU,","CAPEX","WIND-ON","","ZAF-GAU","",1710.0691451563712,"USD2021/kW"]
[null,"CAPEX,WIND-ON,,ZAF-KWA,","CAPEX","WIND-ON","","ZAF-KWA","",1710.0691451563712,"USD2021/kW"]
[null,"CAPEX,WIND-ON,,ZAF-LIM,","CAPEX","WIND-ON","","ZAF-LIM","",1710.0691451563712,"USD2021/kW"]
[null,"CAPEX,WIND-ON,,ZAF-MPU,","CAPEX","WIND-ON","","ZAF-MPU","",1710.0691451563712,"USD2021/kW"]
[null,"CAPEX,WIND-ON,,ZAF-NC,","CAPEX","WIND-ON","","ZAF-NC","",1710.0691451563712,"USD2021/kW"]
[null,"CAPEX,WIND-ON,,ZAF-NW,","CAPEX","WIND-ON","","ZAF-NW","",1710.0691451563712,"USD2021/kW"]
[null,"CAPEX,WIND-ON,,ZAF-WC,","CAPEX","WIND-ON","","ZAF-WC","",1710.0691451563712,"USD2021/kW"]
[null,"CAP-T,,,DNK,DEU","CAP-T","","","DNK","DEU",1,"kWh/a"]
[null,"CAP-T,,,DZA,ESP","CAP-T","","","DZA","ESP",1,"kWh/a"]
[null,"CAP-T,,,ESP,FRA","CAP-T","","","ESP","FRA",1,"kWh/a"]
[null,"CAP-T,,,KAZ,CHN","CAP-T","","","KAZ","CHN",1,"kWh/a"]
[null,"CAP-T,,,MAR,ESP","CAP-T","","","MAR","ESP",1,"kWh/a"]
[null,"CAP-T,,,MAR-BEN,ESP","CAP-T","","","MAR-BEN","ESP",1,"kWh/a"]
[null,"CAP-T,,,MAR-CAS,ESP","CAP-T","","","MAR-CAS","ESP",1,"kWh/a"]
[null,"CAP-T,,,MAR-DAK,ESP","CAP-T","","","MAR-DAK","ESP",1,"kWh/a"]
[null,"CAP-T,,,MAR-DRA,ESP","CAP-T","","","MAR-DRA","ESP",1,"kWh/a"]
[null,"CAP-T,,,MAR-FES,ESP","CAP-T","","","MAR-FES","ESP",1,"kWh/a"]
[null,"CAP-T,,,MAR-GUE,ESP","CAP-T","","","MAR-GUE","ESP",1,"kWh/a"]
[null,"CAP-T,,,MAR-LAA,ESP","CAP-T","","","MAR-LAA","ESP",1,"kWh/a"]
[null,"CAP-T,,,MAR-LOR,ESP","CAP-T","","","MAR-LOR","ESP",1,"kWh/a"]
[null,"CAP-T,,,MAR-MAR,ESP","CAP-T","","","MAR-MAR","ESP",1,"kWh/a"]
[null,"CAP-T,,,MAR-RAB,ESP","CAP-T","","","MAR-RAB","ESP",1,"kWh/a"]
[null,"CAP-T,,,MAR-SOU,ESP","CAP-T","","","MAR-SOU","ESP",1,"kWh/a"]
[null,"CAP-T,,,MAR-TAN,ESP","CAP-T","","","MAR-TAN","ESP",1,"kWh/a"]
[null,"CAP-T,,,MEX,USA","CAP-T","","","MEX","USA",1,"kWh/a"]
[null,"CAP-T,,,NOR,DEU","CAP-T","","","NOR","DEU",1,"kWh/a"]
[null,"CAP-T,,,PRT,ESP","CAP-T","","","PRT","ESP",1,"kWh/a"]
[null,"CAP-T,,,RUS,CHN","CAP-T","","","RUS","CHN",1,"kWh/a"]
[null,"CAP-T,,,RUS,DEU","CAP-T","","","RUS","DEU",1,"kWh/a"]
[null,"CONV,AEL-EL,H2O-L,,","CONV","AEL-EL","H2O-L","","",0.3,"kg H2O (l)/H2-G"]
[null,"CONV,ATR,EL,,","CONV","ATR","EL","","",0.10771077107710771,"kWh (el.)/H2-G","Oni et al. 2022"]
[null,"CONV,CH3OH-SB,BFUEL-L,,","CONV","CH3OH-SB","BFUEL-L","","",3.0509883673175369E-6,"kwh bunker fuel (l)/(km*CH3OH-L)","calc_shipping"]
[null,"CONV,CH3OHSYN,CO2-G,,","CONV","CH3OHSYN","CO2-G","","",0.26448241206030154,"kg CO2 (g)/kWh CH3OH (l)","Frotier Economics 2021"]
[null,"CONV,CH3OHSYN,EL,,","CONV","CH3OHSYN","EL","","",3.9989420788151285E-2,"kWh (el.)/kWh CH3OH (l)","Fasihi & Breyer 2018"]
[null,"CONV,CH4-COMP,EL,,","CONV","CH4-COMP","EL","","",0.01,"kWh (el.)/CH4-G","DNV GL 2020"]
[null,"CONV,CH4-LIQ,EL,,","CONV","CH4-LIQ","EL","","",5.2631578947368425E-2,"kWh (el.)/CH4-L","Pospíšil et al. 2019"]
[null,"CONV,CH4-SB,BFUEL-L,,","CONV","CH4-SB","BFUEL-L","","",3.3002590965851548E-6,"kwh bunker fuel (l)/(km*CH4-L)","calc_shipping"]
[null,"CONV,CH4SYN,CO2-G,,","CONV","CH4SYN","CO2-G","","",0.20196,"kg CO2 (g)/kWh CH4 (g)"]
[null,"CONV,CH4SYN,H2O-L,,","CONV","CH4SYN","H2O-L","","",-0.14263322884012539,"kg H2O (l)/kWh CH4 (g)","Fasihi & Breyer 2018"]
[null,"CONV,CH4SYN,HEAT,,","CONV","CH4SYN","HEAT","","",-0.18495297805642633,"kWh (heat)/kWh CH4 (g)","Fasihi & Breyer 2018"]
[null,"CONV,DAC,EL,,","CONV","DAC","EL","","",0.22500000000000001,"kWh (el.)/kg CO2 (g)","Fasihi et al. 2019"]
[null,"CONV,DAC,H2O-L,,","CONV","DAC","H2O-L","","",-1.4,"kg H2O (l)/kg CO2 (g)","Fasihi et al. 2019"]
[null,"CONV,DAC,HEAT,,","CONV","DAC","HEAT","","",1.5,"kWh (heat)/kg CO2 (g)","Fasihi et al. 2019"]
[null,"CONV,DESAL,EL,,","CONV","DESAL","EL","","",3.0000000000000001E-3,"kWh (el.)/kg H2O (l)"]
[null,"CONV,DRI,EL,,","CONV","DRI","EL","","",0.10829670329670329,"kWh (el.)/kg DRI (s)","Agora Industry Transformation 2021"]
[null,"CONV,EFUELSYN,CO2-G,,","CONV","EFUELSYN","CO2-G","","",0.26455813953488377,"kg CO2 (g)/kwh CHx (l)","Frontier Economics 2021"]
[null,"CONV,EFUELSYN,EL,,","CONV","EFUELSYN","EL","","",8.5778781038374718E-2,"kWh (el.)/kwh CHx (l)","Fasihi & Breyer 2018"]
[null,"CONV,EFUELSYN,H2O-L,,","CONV","EFUELSYN","H2O-L","","",-0.24830699774266365,"kg H2O (l)/kwh CHx (l)","Fasihi & Breyer 2018"]
[null,"CONV,EFUELSYN,HEAT,,","CONV","EFUELSYN","HEAT","","",-0.40397350993377484,"kWh (heat)/kwh CHx (l)","Fasihi & Breyer 2018"]
[null,"CONV,H2-COMP,EL,,","CONV","H2-COMP","EL","","",0.01,"kWh (el.)/H2-G","DNV GL 2020"]
[null,"CONV,H2-LIQ,EL,,","CONV","H2-LIQ","EL","","",0.24008002667555853,"kWh (el.)/H2-L","DNV GL 2020"]
[null,"CONV,H2-SB,BFUEL-L,,","CONV","H2-SB","BFUEL-L","","",7.9560265731287527E-6,"kwh bunker fuel (l)/(km*H2-L)","calc_shipping"]
[null,"CONV,LOHC-CON,EL,,","CONV","LOHC-CON","EL","","",5.0000000000000001E-3,"kWh (el.)/LOHC-L","DNV GL 2020"]
[null,"CONV,LOHC-REC,EL,,","CONV","LOHC-REC","EL","","",2.8502850285028507E-2,"kWh (el.)/H2-G","Staiß et al. 2022 nach Wasserscheid"]
[null,"CONV,LOHC-REC,HEAT,,","CONV","LOHC-REC","HEAT","","",0.3276576576576577,"kWh (heat)/H2-G","DNV GL 2020"]
[null,"CONV,LOHC-SB,BFUEL-L,,","CONV","LOHC-SB","BFUEL-L","","",9.9204160904178207E-6,"kwh bunker fuel (l)/(km*LOHC-L)","calc_shipping"]
[null,"CONV,NH3-REC,EL,,","CONV","NH3-REC","EL","","",1.4160000000000002E-3,"kWh (el.)/H2-G","NGN; Equinor 2018"]
[null,"CONV,NH3-SB,BFUEL-L,,","CONV","NH3-SB","BFUEL-L","","",5.3436561034163411E-6,"kwh bunker fuel (l)/(km*NH3-L)","calc_shipping"]
[null,"CONV,NH3SYN,EL,,","CONV","NH3SYN","EL","","",0.14192307692307693,"kWh (el.)/kWh NH3 (l)","Fasihi et al. 2021"]
[null,"CONV,NH3SYN,N2-G,,","CONV","NH3SYN","N2-G","","",0.15980769230769232,"kg N2 (g)/kWh NH3 (l)","Fasihi et al. 2021"]
[null,"CONV,PEM-EL,H2O-L,,","CONV","PEM-EL","H2O-L","","",0.3,"kg H2O (l)/H2-G"]
[null,"CONV,REGASATR,EL,,","CONV","REGASATR","EL","","",0.10771077107710771,"kWh (el.)/H2-G","combined values"]
[null,"CONV,SOEC-EL,H2O-L,,","CONV","SOEC-EL","H2O-L","","",0.3,"kg H2O (l)/H2-G"]
[null,"CONV,SYN-S,CHX-L,,","CONV","SYN-S","CHX-L","","",1.2641936395012889E-6,"kwh CHx (l)/(km*CHX-L)","calc_shipping"]
[null,"CONV,SYN-SB,BFUEL-L,,","CONV","SYN-SB","BFUEL-L","","",1.2641936395012889E-6,"kwh bunker fuel (l)/(km*CHX-L)","calc_shipping"]
[null,"DST-S-D,,,ARE,CHN","DST-S-D","","","ARE","CHN",10367.799999999999,null,"CERDI"]
[null,"DST-S-D,,,ARE,DEU","DST-S-D","","","ARE","DEU",12441.9,null,"CERDI"]
[null,"DST-S-D,,,ARE,ESP","DST-S-D","","","ARE","ESP",8992.74,null,"CERDI"]
[null,"DST-S-D,,,ARE,FRA","DST-S-D","","","ARE","FRA",7580.97,null,"CERDI"]
[null,"DST-S-D,,,ARE,IND","DST-S-D","","","ARE","IND",1804.27,null,"CERDI"]
[null,"DST-S-D,,,ARE,JPN","DST-S-D","","","ARE","JPN",11276.3,null,"CERDI"]
[null,"DST-S-D,,,ARE,KOR","DST-S-D","","","ARE","KOR",10955.6,null,"CERDI"]
[null,"DST-S-D,,,ARE,NLD","DST-S-D","","","ARE","NLD",11975.9,null,"CERDI"]
[null,"DST-S-D,,,ARE,USA","DST-S-D","","","ARE","USA",18373.3,null,"CERDI"]
[null,"DST-S-D,,,ARG,CHN","DST-S-D","","","ARG","CHN",19486.8,null,"CERDI"]
[null,"DST-S-D,,,ARG,DEU","DST-S-D","","","ARG","DEU",12728.796,null,"SEA-DISTANCES.ORG"]
[null,"DST-S-D,,,ARG,ESP","DST-S-D","","","ARG","ESP",11766,null,"CERDI"]
[null,"DST-S-D,,,ARG,FRA","DST-S-D","","","ARG","FRA",13195.9,null,"CERDI"]
[null,"DST-S-D,,,ARG,IND","DST-S-D","","","ARG","IND",16155.2,null,"CERDI"]
[null,"DST-S-D,,,ARG,JPN","DST-S-D","","","ARG","JPN",18848.2,null,"CERDI"]
[null,"DST-S-D,,,ARG,KOR","DST-S-D","","","ARG","KOR",19350,null,"CERDI"]
[null,"DST-S-D,,,ARG,NLD","DST-S-D","","","ARG","NLD",13750.5,null,"CERDI"]
[null,"DST-S-D,,,ARG,USA","DST-S-D","","","ARG","USA",12589.7,null,"CERDI"]
[null,"DST-S-D,,,ARG-BA,CHN","DST-S-D","","","ARG-BA","CHN",19486.8,null,"CERDI"]
[null,"DST-S-D,,,ARG-BA,DEU","DST-S-D","","","ARG-BA","DEU",12728.796,null,"SEA-DISTANCES.ORG"]
[null,"DST-S-D,,,ARG-BA,ESP","DST-S-D","","","ARG-BA","ESP",11766,null,"CERDI"]
[null,"DST-S-D,,,ARG-BA,FRA","DST-S-D","","","ARG-BA","FRA",13195.9,null,"CERDI"]
[null,"DST-S-D,,,ARG-BA,IND","DST-S-D","","","ARG-BA","IND",16155.2,null,"CERDI"]
[null,"DST-S-D,,,ARG-BA,JPN","DST-S-D","","","ARG-BA","JPN",18848.2,null,"CERDI"]
[null,"DST-S-D,,,ARG-BA,KOR","DST-S-D","","","ARG-BA","KOR",19350,null,"CERDI"]
[null,"DST-S-D,,,ARG-BA,NLD","DST-S-D","","","ARG-BA","NLD",13750.5,null,"CERDI"]
[null,"DST-S-D,,,ARG-BA,USA","DST-S-D","","","ARG-BA","USA",12589.7,null,"CERDI"]
[null,"DST-S-D,,,ARG-CAT,CHN","DST-S-D","","","ARG-CAT","CHN",19486.8,null,"CERDI"]
[null,"DST-S-D,,,ARG-CAT,DEU","DST-S-D","","","ARG-CAT","DEU",12728.796,null,"SEA-DISTANCES.ORG"]
[null,"DST-S-D,,,ARG-CAT,ESP","DST-S-D","","","ARG-CAT","ESP",11766,null,"CERDI"]
[null,"DST-S-D,,,ARG-CAT,FRA","DST-S-D","","","ARG-CAT","FRA",13195.9,null,"CERDI"]
[null,"DST-S-D,,,ARG-CAT,IND","DST-S-D","","","ARG-CAT","IND",16155.2,null,"CERDI"]
[null,"DST-S-D,,,ARG-CAT,JPN","DST-S-D","","","ARG-CAT","JPN",18848.2,null,"CERDI"]
[null,"DST-S-D,,,ARG-CAT,KOR","DST-S-D","","","ARG-CAT","KOR",19350,null,"CERDI"]
[null,"DST-S-D,,,ARG-CAT,NLD","DST-S-D","","","ARG-CAT","NLD",13750.5,null,"CERDI"]
[null,"DST-S-D,,,ARG-CAT,USA","DST-S-D","","","ARG-CAT","USA",12589.7,null,"CERDI"]
[null,"DST-S-D,,,ARG-CBA,CHN","DST-S-D","","","ARG-CBA","CHN",19486.8,null,"CERDI"]
[null,"DST-S-D,,,ARG-CBA,DEU","DST-S-D","","","ARG-CBA","DEU",12728.796,null,"SEA-DISTANCES.ORG"]
[null,"DST-S-D,,,ARG-CBA,ESP","DST-S-D","","","ARG-CBA","ESP",11766,null,"CERDI"]
[null,"DST-S-D,,,ARG-CBA,FRA","DST-S-D","","","ARG-CBA","FRA",13195.9,null,"CERDI"]
[null,"DST-S-D,,,ARG-CBA,IND","DST-S-D","","","ARG-CBA","IND",16155.2,null,"CERDI"]
[null,"DST-S-D,,,ARG-CBA,JPN","DST-S-D","","","ARG-CBA","JPN",18848.2,null,"CERDI"]
[null,"DST-S-D,,,ARG-CBA,KOR","DST-S-D","","","ARG-CBA","KOR",19350,null,"CERDI"]
[null,"DST-S-D,,,ARG-CBA,NLD","DST-S-D","","","ARG-CBA","NLD",13750.5,null,"CERDI"]
[null,"DST-S-D,,,ARG-CBA,USA","DST-S-D","","","ARG-CBA","USA",12589.7,null,"CERDI"]
[null,"DST-S-D,,,ARG-CHA,CHN","DST-S-D","","","ARG-CHA","CHN",19486.8,null,"CERDI"]
[null,"DST-S-D,,,ARG-CHA,DEU","DST-S-D","","","ARG-CHA","DEU",12728.796,null,"SEA-DISTANCES.ORG"]
[null,"DST-S-D,,,ARG-CHA,ESP","DST-S-D","","","ARG-CHA","ESP",11766,null,"CERDI"]
[null,"DST-S-D,,,ARG-CHA,FRA","DST-S-D","","","ARG-CHA","FRA",13195.9,null,"CERDI"]
[null,"DST-S-D,,,ARG-CHA,IND","DST-S-D","","","ARG-CHA","IND",16155.2,null,"CERDI"]
[null,"DST-S-D,,,ARG-CHA,JPN","DST-S-D","","","ARG-CHA","JPN",18848.2,null,"CERDI"]
[null,"DST-S-D,,,ARG-CHA,KOR","DST-S-D","","","ARG-CHA","KOR",19350,null,"CERDI"]
[null,"DST-S-D,,,ARG-CHA,NLD","DST-S-D","","","ARG-CHA","NLD",13750.5,null,"CERDI"]
[null,"DST-S-D,,,ARG-CHA,USA","DST-S-D","","","ARG-CHA","USA",12589.7,null,"CERDI"]
[null,"DST-S-D,,,ARG-CHU,CHN","DST-S-D","","","ARG-CHU","CHN",19486.8,null,"CERDI"]
[null,"DST-S-D,,,ARG-CHU,DEU","DST-S-D","","","ARG-CHU","DEU",12728.796,null,"SEA-DISTANCES.ORG"]
[null,"DST-S-D,,,ARG-CHU,ESP","DST-S-D","","","ARG-CHU","ESP",11766,null,"CERDI"]
[null,"DST-S-D,,,ARG-CHU,FRA","DST-S-D","","","ARG-CHU","FRA",13195.9,null,"CERDI"]
[null,"DST-S-D,,,ARG-CHU,IND","DST-S-D","","","ARG-CHU","IND",16155.2,null,"CERDI"]
[null,"DST-S-D,,,ARG-CHU,JPN","DST-S-D","","","ARG-CHU","JPN",18848.2,null,"CERDI"]
[null,"DST-S-D,,,ARG-CHU,KOR","DST-S-D","","","ARG-CHU","KOR",19350,null,"CERDI"]
[null,"DST-S-D,,,ARG-CHU,NLD","DST-S-D","","","ARG-CHU","NLD",13750.5,null,"CERDI"]
[null,"DST-S-D,,,ARG-CHU,USA","DST-S-D","","","ARG-CHU","USA",12589.7,null,"CERDI"]
[null,"DST-S-D,,,ARG-COR,CHN","DST-S-D","","","ARG-COR","CHN",19486.8,null,"CERDI"]
[null,"DST-S-D,,,ARG-COR,DEU","DST-S-D","","","ARG-COR","DEU",12728.796,null,"SEA-DISTANCES.ORG"]
[null,"DST-S-D,,,ARG-COR,ESP","DST-S-D","","","ARG-COR","ESP",11766,null,"CERDI"]
[null,"DST-S-D,,,ARG-COR,FRA","DST-S-D","","","ARG-COR","FRA",13195.9,null,"CERDI"]
[null,"DST-S-D,,,ARG-COR,IND","DST-S-D","","","ARG-COR","IND",16155.2,null,"CERDI"]
[null,"DST-S-D,,,ARG-COR,JPN","DST-S-D","","","ARG-COR","JPN",18848.2,null,"CERDI"]
[null,"DST-S-D,,,ARG-COR,KOR","DST-S-D","","","ARG-COR","KOR",19350,null,"CERDI"]
[null,"DST-S-D,,,ARG-COR,NLD","DST-S-D","","","ARG-COR","NLD",13750.5,null,"CERDI"]
[null,"DST-S-D,,,ARG-COR,USA","DST-S-D","","","ARG-COR","USA",12589.7,null,"CERDI"]
[null,"DST-S-D,,,ARG-CRB,CHN","DST-S-D","","","ARG-CRB","CHN",19486.8,null,"CERDI"]
[null,"DST-S-D,,,ARG-CRB,DEU","DST-S-D","","","ARG-CRB","DEU",12728.796,null,"SEA-DISTANCES.ORG"]
[null,"DST-S-D,,,ARG-CRB,ESP","DST-S-D","","","ARG-CRB","ESP",11766,null,"CERDI"]
[null,"DST-S-D,,,ARG-CRB,FRA","DST-S-D","","","ARG-CRB","FRA",13195.9,null,"CERDI"]
[null,"DST-S-D,,,ARG-CRB,IND","DST-S-D","","","ARG-CRB","IND",16155.2,null,"CERDI"]
[null,"DST-S-D,,,ARG-CRB,JPN","DST-S-D","","","ARG-CRB","JPN",18848.2,null,"CERDI"]
[null,"DST-S-D,,,ARG-CRB,KOR","DST-S-D","","","ARG-CRB","KOR",19350,null,"CERDI"]
[null,"DST-S-D,,,ARG-CRB,NLD","DST-S-D","","","ARG-CRB","NLD",13750.5,null,"CERDI"]
[null,"DST-S-D,,,ARG-CRB,USA","DST-S-D","","","ARG-CRB","USA",12589.7,null,"CERDI"]
[null,"DST-S-D,,,ARG-CRU,CHN","DST-S-D","","","ARG-CRU","CHN",19486.8,null,"CERDI"]
[null,"DST-S-D,,,ARG-CRU,DEU","DST-S-D","","","ARG-CRU","DEU",12728.796,null,"SEA-DISTANCES.ORG"]
[null,"DST-S-D,,,ARG-CRU,ESP","DST-S-D","","","ARG-CRU","ESP",11766,null,"CERDI"]
[null,"DST-S-D,,,ARG-CRU,FRA","DST-S-D","","","ARG-CRU","FRA",13195.9,null,"CERDI"]
[null,"DST-S-D,,,ARG-CRU,IND","DST-S-D","","","ARG-CRU","IND",16155.2,null,"CERDI"]
[null,"DST-S-D,,,ARG-CRU,JPN","DST-S-D","","","ARG-CRU","JPN",18848.2,null,"CERDI"]
[null,"DST-S-D,,,ARG-CRU,KOR","DST-S-D","","","ARG-CRU","KOR",19350,null,"CERDI"]
[null,"DST-S-D,,,ARG-CRU,NLD","DST-S-D","","","ARG-CRU","NLD",13750.5,null,"CERDI"]
[null,"DST-S-D,,,ARG-CRU,USA","DST-S-D","","","ARG-CRU","USA",12589.7,null,"CERDI"]
[null,"DST-S-D,,,ARG-EST,CHN","DST-S-D","","","ARG-EST","CHN",19486.8,null,"CERDI"]
[null,"DST-S-D,,,ARG-EST,DEU","DST-S-D","","","ARG-EST","DEU",12728.796,null,"SEA-DISTANCES.ORG"]
[null,"DST-S-D,,,ARG-EST,ESP","DST-S-D","","","ARG-EST","ESP",11766,null,"CERDI"]
[null,"DST-S-D,,,ARG-EST,FRA","DST-S-D","","","ARG-EST","FRA",13195.9,null,"CERDI"]
[null,"DST-S-D,,,ARG-EST,IND","DST-S-D","","","ARG-EST","IND",16155.2,null,"CERDI"]
[null,"DST-S-D,,,ARG-EST,JPN","DST-S-D","","","ARG-EST","JPN",18848.2,null,"CERDI"]
[null,"DST-S-D,,,ARG-EST,KOR","DST-S-D","","","ARG-EST","KOR",19350,null,"CERDI"]
[null,"DST-S-D,,,ARG-EST,NLD","DST-S-D","","","ARG-EST","NLD",13750.5,null,"CERDI"]
[null,"DST-S-D,,,ARG-EST,USA","DST-S-D","","","ARG-EST","USA",12589.7,null,"CERDI"]
[null,"DST-S-D,,,ARG-FOR,CHN","DST-S-D","","","ARG-FOR","CHN",19486.8,null,"CERDI"]
[null,"DST-S-D,,,ARG-FOR,DEU","DST-S-D","","","ARG-FOR","DEU",12728.796,null,"SEA-DISTANCES.ORG"]
[null,"DST-S-D,,,ARG-FOR,ESP","DST-S-D","","","ARG-FOR","ESP",11766,null,"CERDI"]
[null,"DST-S-D,,,ARG-FOR,FRA","DST-S-D","","","ARG-FOR","FRA",13195.9,null,"CERDI"]
[null,"DST-S-D,,,ARG-FOR,IND","DST-S-D","","","ARG-FOR","IND",16155.2,null,"CERDI"]
[null,"DST-S-D,,,ARG-FOR,JPN","DST-S-D","","","ARG-FOR","JPN",18848.2,null,"CERDI"]
[null,"DST-S-D,,,ARG-FOR,KOR","DST-S-D","","","ARG-FOR","KOR",19350,null,"CERDI"]
[null,"DST-S-D,,,ARG-FOR,NLD","DST-S-D","","","ARG-FOR","NLD",13750.5,null,"CERDI"]
[null,"DST-S-D,,,ARG-FOR,USA","DST-S-D","","","ARG-FOR","USA",12589.7,null,"CERDI"]
[null,"DST-S-D,,,ARG-FUE,CHN","DST-S-D","","","ARG-FUE","CHN",19486.8,null,"CERDI"]
[null,"DST-S-D,,,ARG-FUE,DEU","DST-S-D","","","ARG-FUE","DEU",12728.796,null,"SEA-DISTANCES.ORG"]
[null,"DST-S-D,,,ARG-FUE,ESP","DST-S-D","","","ARG-FUE","ESP",11766,null,"CERDI"]
[null,"DST-S-D,,,ARG-FUE,FRA","DST-S-D","","","ARG-FUE","FRA",13195.9,null,"CERDI"]
[null,"DST-S-D,,,ARG-FUE,IND","DST-S-D","","","ARG-FUE","IND",16155.2,null,"CERDI"]
[null,"DST-S-D,,,ARG-FUE,JPN","DST-S-D","","","ARG-FUE","JPN",18848.2,null,"CERDI"]
[null,"DST-S-D,,,ARG-FUE,KOR","DST-S-D","","","ARG-FUE","KOR",19350,null,"CERDI"]
[null,"DST-S-D,,,ARG-FUE,NLD","DST-S-D","","","ARG-FUE","NLD",13750.5,null,"CERDI"]
[null,"DST-S-D,,,ARG-FUE,USA","DST-S-D","","","ARG-FUE","USA",12589.7,null,"CERDI"]
[null,"DST-S-D,,,ARG-JUJ,CHN","DST-S-D","","","ARG-JUJ","CHN",19486.8,null,"CERDI"]
[null,"DST-S-D,,,ARG-JUJ,DEU","DST-S-D","","","ARG-JUJ","DEU",12728.796,null,"SEA-DISTANCES.ORG"]
[null,"DST-S-D,,,ARG-JUJ,ESP","DST-S-D","","","ARG-JUJ","ESP",11766,null,"CERDI"]
[null,"DST-S-D,,,ARG-JUJ,FRA","DST-S-D","","","ARG-JUJ","FRA",13195.9,null,"CERDI"]
[null,"DST-S-D,,,ARG-JUJ,IND","DST-S-D","","","ARG-JUJ","IND",16155.2,null,"CERDI"]
[null,"DST-S-D,,,ARG-JUJ,JPN","DST-S-D","","","ARG-JUJ","JPN",18848.2,null,"CERDI"]
[null,"DST-S-D,,,ARG-JUJ,KOR","DST-S-D","","","ARG-JUJ","KOR",19350,null,"CERDI"]
[null,"DST-S-D,,,ARG-JUJ,NLD","DST-S-D","","","ARG-JUJ","NLD",13750.5,null,"CERDI"]
[null,"DST-S-D,,,ARG-JUJ,USA","DST-S-D","","","ARG-JUJ","USA",12589.7,null,"CERDI"]
[null,"DST-S-D,,,ARG-LAR,CHN","DST-S-D","","","ARG-LAR","CHN",19486.8,null,"CERDI"]
[null,"DST-S-D,,,ARG-LAR,DEU","DST-S-D","","","ARG-LAR","DEU",12728.796,null,"SEA-DISTANCES.ORG"]
[null,"DST-S-D,,,ARG-LAR,ESP","DST-S-D","","","ARG-LAR","ESP",11766,null,"CERDI"]
[null,"DST-S-D,,,ARG-LAR,FRA","DST-S-D","","","ARG-LAR","FRA",13195.9,null,"CERDI"]
[null,"DST-S-D,,,ARG-LAR,IND","DST-S-D","","","ARG-LAR","IND",16155.2,null,"CERDI"]
[null,"DST-S-D,,,ARG-LAR,JPN","DST-S-D","","","ARG-LAR","JPN",18848.2,null,"CERDI"]
[null,"DST-S-D,,,ARG-LAR,KOR","DST-S-D","","","ARG-LAR","KOR",19350,null,"CERDI"]
[null,"DST-S-D,,,ARG-LAR,NLD","DST-S-D","","","ARG-LAR","NLD",13750.5,null,"CERDI"]
[null,"DST-S-D,,,ARG-LAR,USA","DST-S-D","","","ARG-LAR","USA",12589.7,null,"CERDI"]
[null,"DST-S-D,,,ARG-MEN,CHN","DST-S-D","","","ARG-MEN","CHN",19486.8,null,"CERDI"]
[null,"DST-S-D,,,ARG-MEN,DEU","DST-S-D","","","ARG-MEN","DEU",12728.796,null,"SEA-DISTANCES.ORG"]
[null,"DST-S-D,,,ARG-MEN,ESP","DST-S-D","","","ARG-MEN","ESP",11766,null,"CERDI"]
[null,"DST-S-D,,,ARG-MEN,FRA","DST-S-D","","","ARG-MEN","FRA",13195.9,null,"CERDI"]
[null,"DST-S-D,,,ARG-MEN,IND","DST-S-D","","","ARG-MEN","IND",16155.2,null,"CERDI"]
[null,"DST-S-D,,,ARG-MEN,JPN","DST-S-D","","","ARG-MEN","JPN",18848.2,null,"CERDI"]
[null,"DST-S-D,,,ARG-MEN,KOR","DST-S-D","","","ARG-MEN","KOR",19350,null,"CERDI"]
[null,"DST-S-D,,,ARG-MEN,NLD","DST-S-D","","","ARG-MEN","NLD",13750.5,null,"CERDI"]
[null,"DST-S-D,,,ARG-MEN,USA","DST-S-D","","","ARG-MEN","USA",12589.7,null,"CERDI"]
[null,"DST-S-D,,,ARG-MIS,CHN","DST-S-D","","","ARG-MIS","CHN",19486.8,null,"CERDI"]
[null,"DST-S-D,,,ARG-MIS,DEU","DST-S-D","","","ARG-MIS","DEU",12728.796,null,"SEA-DISTANCES.ORG"]
[null,"DST-S-D,,,ARG-MIS,ESP","DST-S-D","","","ARG-MIS","ESP",11766,null,"CERDI"]
[null,"DST-S-D,,,ARG-MIS,FRA","DST-S-D","","","ARG-MIS","FRA",13195.9,null,"CERDI"]
[null,"DST-S-D,,,ARG-MIS,IND","DST-S-D","","","ARG-MIS","IND",16155.2,null,"CERDI"]
[null,"DST-S-D,,,ARG-MIS,JPN","DST-S-D","","","ARG-MIS","JPN",18848.2,null,"CERDI"]
[null,"DST-S-D,,,ARG-MIS,KOR","DST-S-D","","","ARG-MIS","KOR",19350,null,"CERDI"]
[null,"DST-S-D,,,ARG-MIS,NLD","DST-S-D","","","ARG-MIS","NLD",13750.5,null,"CERDI"]
[null,"DST-S-D,,,ARG-MIS,USA","DST-S-D","","","ARG-MIS","USA",12589.7,null,"CERDI"]
[null,"DST-S-D,,,ARG-NEG,CHN","DST-S-D","","","ARG-NEG","CHN",19486.8,null,"CERDI"]
[null,"DST-S-D,,,ARG-NEG,DEU","DST-S-D","","","ARG-NEG","DEU",12728.796,null,"SEA-DISTANCES.ORG"]
[null,"DST-S-D,,,ARG-NEG,ESP","DST-S-D","","","ARG-NEG","ESP",11766,null,"CERDI"]
[null,"DST-S-D,,,ARG-NEG,FRA","DST-S-D","","","ARG-NEG","FRA",13195.9,null,"CERDI"]
[null,"DST-S-D,,,ARG-NEG,IND","DST-S-D","","","ARG-NEG","IND",16155.2,null,"CERDI"]
[null,"DST-S-D,,,ARG-NEG,JPN","DST-S-D","","","ARG-NEG","JPN",18848.2,null,"CERDI"]
[null,"DST-S-D,,,ARG-NEG,KOR","DST-S-D","","","ARG-NEG","KOR",19350,null,"CERDI"]
[null,"DST-S-D,,,ARG-NEG,NLD","DST-S-D","","","ARG-NEG","NLD",13750.5,null,"CERDI"]
[null,"DST-S-D,,,ARG-NEG,USA","DST-S-D","","","ARG-NEG","USA",12589.7,null,"CERDI"]
[null,"DST-S-D,,,ARG-NEU,CHN","DST-S-D","","","ARG-NEU","CHN",19486.8,null,"CERDI"]
[null,"DST-S-D,,,ARG-NEU,DEU","DST-S-D","","","ARG-NEU","DEU",12728.796,null,"SEA-DISTANCES.ORG"]
[null,"DST-S-D,,,ARG-NEU,ESP","DST-S-D","","","ARG-NEU","ESP",11766,null,"CERDI"]
[null,"DST-S-D,,,ARG-NEU,FRA","DST-S-D","","","ARG-NEU","FRA",13195.9,null,"CERDI"]
[null,"DST-S-D,,,ARG-NEU,IND","DST-S-D","","","ARG-NEU","IND",16155.2,null,"CERDI"]
[null,"DST-S-D,,,ARG-NEU,JPN","DST-S-D","","","ARG-NEU","JPN",18848.2,null,"CERDI"]
[null,"DST-S-D,,,ARG-NEU,KOR","DST-S-D","","","ARG-NEU","KOR",19350,null,"CERDI"]
[null,"DST-S-D,,,ARG-NEU,NLD","DST-S-D","","","ARG-NEU","NLD",13750.5,null,"CERDI"]
[null,"DST-S-D,,,ARG-NEU,USA","DST-S-D","","","ARG-NEU","USA",12589.7,null,"CERDI"]
[null,"DST-S-D,,,ARG-PAM,CHN","DST-S-D","","","ARG-PAM","CHN",19486.8,null,"CERDI"]
[null,"DST-S-D,,,ARG-PAM,DEU","DST-S-D","","","ARG-PAM","DEU",12728.796,null,"SEA-DISTANCES.ORG"]
[null,"DST-S-D,,,ARG-PAM,ESP","DST-S-D","","","ARG-PAM","ESP",11766,null,"CERDI"]
[null,"DST-S-D,,,ARG-PAM,FRA","DST-S-D","","","ARG-PAM","FRA",13195.9,null,"CERDI"]
[null,"DST-S-D,,,ARG-PAM,IND","DST-S-D","","","ARG-PAM","IND",16155.2,null,"CERDI"]
[null,"DST-S-D,,,ARG-PAM,JPN","DST-S-D","","","ARG-PAM","JPN",18848.2,null,"CERDI"]
[null,"DST-S-D,,,ARG-PAM,KOR","DST-S-D","","","ARG-PAM","KOR",19350,null,"CERDI"]
[null,"DST-S-D,,,ARG-PAM,NLD","DST-S-D","","","ARG-PAM","NLD",13750.5,null,"CERDI"]
[null,"DST-S-D,,,ARG-PAM,USA","DST-S-D","","","ARG-PAM","USA",12589.7,null,"CERDI"]
[null,"DST-S-D,,,ARG-RIO,CHN","DST-S-D","","","ARG-RIO","CHN",19486.8,null,"CERDI"]
[null,"DST-S-D,,,ARG-RIO,DEU","DST-S-D","","","ARG-RIO","DEU",12728.796,null,"SEA-DISTANCES.ORG"]
[null,"DST-S-D,,,ARG-RIO,ESP","DST-S-D","","","ARG-RIO","ESP",11766,null,"CERDI"]
[null,"DST-S-D,,,ARG-RIO,FRA","DST-S-D","","","ARG-RIO","FRA",13195.9,null,"CERDI"]
[null,"DST-S-D,,,ARG-RIO,IND","DST-S-D","","","ARG-RIO","IND",16155.2,null,"CERDI"]
[null,"DST-S-D,,,ARG-RIO,JPN","DST-S-D","","","ARG-RIO","JPN",18848.2,null,"CERDI"]
[null,"DST-S-D,,,ARG-RIO,KOR","DST-S-D","","","ARG-RIO","KOR",19350,null,"CERDI"]
[null,"DST-S-D,,,ARG-RIO,NLD","DST-S-D","","","ARG-RIO","NLD",13750.5,null,"CERDI"]
[null,"DST-S-D,,,ARG-RIO,USA","DST-S-D","","","ARG-RIO","USA",12589.7,null,"CERDI"]
[null,"DST-S-D,,,ARG-SAF,CHN","DST-S-D","","","ARG-SAF","CHN",19486.8,null,"CERDI"]
[null,"DST-S-D,,,ARG-SAF,DEU","DST-S-D","","","ARG-SAF","DEU",12728.796,null,"SEA-DISTANCES.ORG"]
[null,"DST-S-D,,,ARG-SAF,ESP","DST-S-D","","","ARG-SAF","ESP",11766,null,"CERDI"]
[null,"DST-S-D,,,ARG-SAF,FRA","DST-S-D","","","ARG-SAF","FRA",13195.9,null,"CERDI"]
[null,"DST-S-D,,,ARG-SAF,IND","DST-S-D","","","ARG-SAF","IND",16155.2,null,"CERDI"]
[null,"DST-S-D,,,ARG-SAF,JPN","DST-S-D","","","ARG-SAF","JPN",18848.2,null,"CERDI"]
[null,"DST-S-D,,,ARG-SAF,KOR","DST-S-D","","","ARG-SAF","KOR",19350,null,"CERDI"]
[null,"DST-S-D,,,ARG-SAF,NLD","DST-S-D","","","ARG-SAF","NLD",13750.5,null,"CERDI"]
[null,"DST-S-D,,,ARG-SAF,USA","DST-S-D","","","ARG-SAF","USA",12589.7,null,"CERDI"]
[null,"DST-S-D,,,ARG-SAJ,CHN","DST-S-D","","","ARG-SAJ","CHN",19486.8,null,"CERDI"]
[null,"DST-S-D,,,ARG-SAJ,DEU","DST-S-D","","","ARG-SAJ","DEU",12728.796,null,"SEA-DISTANCES.ORG"]
[null,"DST-S-D,,,ARG-SAJ,ESP","DST-S-D","","","ARG-SAJ","ESP",11766,null,"CERDI"]
[null,"DST-S-D,,,ARG-SAJ,FRA","DST-S-D","","","ARG-SAJ","FRA",13195.9,null,"CERDI"]
[null,"DST-S-D,,,ARG-SAJ,IND","DST-S-D","","","ARG-SAJ","IND",16155.2,null,"CERDI"]
[null,"DST-S-D,,,ARG-SAJ,JPN","DST-S-D","","","ARG-SAJ","JPN",18848.2,null,"CERDI"]
[null,"DST-S-D,,,ARG-SAJ,KOR","DST-S-D","","","ARG-SAJ","KOR",19350,null,"CERDI"]
[null,"DST-S-D,,,ARG-SAJ,NLD","DST-S-D","","","ARG-SAJ","NLD",13750.5,null,"CERDI"]
[null,"DST-S-D,,,ARG-SAJ,USA","DST-S-D","","","ARG-SAJ","USA",12589.7,null,"CERDI"]
[null,"DST-S-D,,,ARG-SAL,CHN","DST-S-D","","","ARG-SAL","CHN",19486.8,null,"CERDI"]
[null,"DST-S-D,,,ARG-SAL,DEU","DST-S-D","","","ARG-SAL","DEU",12728.796,null,"SEA-DISTANCES.ORG"]
[null,"DST-S-D,,,ARG-SAL,ESP","DST-S-D","","","ARG-SAL","ESP",11766,null,"CERDI"]
[null,"DST-S-D,,,ARG-SAL,FRA","DST-S-D","","","ARG-SAL","FRA",13195.9,null,"CERDI"]
[null,"DST-S-D,,,ARG-SAL,IND","DST-S-D","","","ARG-SAL","IND",16155.2,null,"CERDI"]
[null,"DST-S-D,,,ARG-SAL,JPN","DST-S-D","","","ARG-SAL","JPN",18848.2,null,"CERDI"]
[null,"DST-S-D,,,ARG-SAL,KOR","DST-S-D","","","ARG-SAL","KOR",19350,null,"CERDI"]
[null,"DST-S-D,,,ARG-SAL,NLD","DST-S-D","","","ARG-SAL","NLD",13750.5,null,"CERDI"]
[null,"DST-S-D,,,ARG-SAL,USA","DST-S-D","","","ARG-SAL","USA",12589.7,null,"CERDI"]
[null,"DST-S-D,,,ARG-SAT,CHN","DST-S-D","","","ARG-SAT","CHN",19486.8,null,"CERDI"]
[null,"DST-S-D,,,ARG-SAT,DEU","DST-S-D","","","ARG-SAT","DEU",12728.796,null,"SEA-DISTANCES.ORG"]
[null,"DST-S-D,,,ARG-SAT,ESP","DST-S-D","","","ARG-SAT","ESP",11766,null,"CERDI"]
[null,"DST-S-D,,,ARG-SAT,FRA","DST-S-D","","","ARG-SAT","FRA",13195.9,null,"CERDI"]
[null,"DST-S-D,,,ARG-SAT,IND","DST-S-D","","","ARG-SAT","IND",16155.2,null,"CERDI"]
[null,"DST-S-D,,,ARG-SAT,JPN","DST-S-D","","","ARG-SAT","JPN",18848.2,null,"CERDI"]
[null,"DST-S-D,,,ARG-SAT,KOR","DST-S-D","","","ARG-SAT","KOR",19350,null,"CERDI"]
[null,"DST-S-D,,,ARG-SAT,NLD","DST-S-D","","","ARG-SAT","NLD",13750.5,null,"CERDI"]
[null,"DST-S-D,,,ARG-SAT,USA","DST-S-D","","","ARG-SAT","USA",12589.7,null,"CERDI"]
[null,"DST-S-D,,,ARG-TUC,CHN","DST-S-D","","","ARG-TUC","CHN",19486.8,null,"CERDI"]
[null,"DST-S-D,,,ARG-TUC,DEU","DST-S-D","","","ARG-TUC","DEU",12728.796,null,"SEA-DISTANCES.ORG"]
[null,"DST-S-D,,,ARG-TUC,ESP","DST-S-D","","","ARG-TUC","ESP",11766,null,"CERDI"]
[null,"DST-S-D,,,ARG-TUC,FRA","DST-S-D","","","ARG-TUC","FRA",13195.9,null,"CERDI"]
[null,"DST-S-D,,,ARG-TUC,IND","DST-S-D","","","ARG-TUC","IND",16155.2,null,"CERDI"]
[null,"DST-S-D,,,ARG-TUC,JPN","DST-S-D","","","ARG-TUC","JPN",18848.2,null,"CERDI"]
[null,"DST-S-D,,,ARG-TUC,KOR","DST-S-D","","","ARG-TUC","KOR",19350,null,"CERDI"]
[null,"DST-S-D,,,ARG-TUC,NLD","DST-S-D","","","ARG-TUC","NLD",13750.5,null,"CERDI"]
[null,"DST-S-D,,,ARG-TUC,USA","DST-S-D","","","ARG-TUC","USA",12589.7,null,"CERDI"]
[null,"DST-S-D,,,AUS,CHN","DST-S-D","","","AUS","CHN",10024.9,null,"CERDI"]
[null,"DST-S-D,,,AUS,DEU","DST-S-D","","","AUS","DEU",21212.3,null,"CERDI"]
[null,"DST-S-D,,,AUS,ESP","DST-S-D","","","AUS","ESP",17760.900000000001,null,"CERDI"]
[null,"DST-S-D,,,AUS,FRA","DST-S-D","","","AUS","FRA",16854,null,"CERDI"]
[null,"DST-S-D,,,AUS,IND","DST-S-D","","","AUS","IND",10647.6,null,"CERDI"]
[null,"DST-S-D,,,AUS,JPN","DST-S-D","","","AUS","JPN",9845.85,null,"CERDI"]
[null,"DST-S-D,,,AUS,KOR","DST-S-D","","","AUS","KOR",10153.5,null,"CERDI"]
[null,"DST-S-D,,,AUS,NLD","DST-S-D","","","AUS","NLD",20628.3,null,"CERDI"]
[null,"DST-S-D,,,AUS,USA","DST-S-D","","","AUS","USA",12771.9,null,"CERDI"]
[null,"DST-S-D,,,BRA,CHN","DST-S-D","","","BRA","CHN",21462,null,"CERDI"]
[null,"DST-S-D,,,BRA,DEU","DST-S-D","","","BRA","DEU",10409.5,null,"CERDI"]
[null,"DST-S-D,,,BRA,ESP","DST-S-D","","","BRA","ESP",8824.26,null,"CERDI"]
[null,"DST-S-D,,,BRA,FRA","DST-S-D","","","BRA","FRA",9895.24,null,"CERDI"]
[null,"DST-S-D,,,BRA,IND","DST-S-D","","","BRA","IND",15751.1,null,"CERDI"]
[null,"DST-S-D,,,BRA,JPN","DST-S-D","","","BRA","JPN",22369.4,null,"CERDI"]
[null,"DST-S-D,,,BRA,KOR","DST-S-D","","","BRA","KOR",22048.5,null,"CERDI"]
[null,"DST-S-D,,,BRA,NLD","DST-S-D","","","BRA","NLD",10110.1,null,"CERDI"]
[null,"DST-S-D,,,BRA,USA","DST-S-D","","","BRA","USA",9777.43,null,"CERDI"]
[null,"DST-S-D,,,CHL,CHN","DST-S-D","","","CHL","CHN",18238,null,"CERDI"]
[null,"DST-S-D,,,CHL,DEU","DST-S-D","","","CHL","DEU",12511.9,null,"CERDI"]
[null,"DST-S-D,,,CHL,ESP","DST-S-D","","","CHL","ESP",13257.8,null,"CERDI"]
[null,"DST-S-D,,,CHL,FRA","DST-S-D","","","CHL","FRA",14328.9,null,"CERDI"]
[null,"DST-S-D,,,CHL,IND","DST-S-D","","","CHL","IND",20076.400000000001,null,"CERDI"]
[null,"DST-S-D,,,CHL,JPN","DST-S-D","","","CHL","JPN",16934.8,null,"CERDI"]
[null,"DST-S-D,,,CHL,KOR","DST-S-D","","","CHL","KOR",17656.2,null,"CERDI"]
[null,"DST-S-D,,,CHL,NLD","DST-S-D","","","CHL","NLD",12212.5,null,"CERDI"]
[null,"DST-S-D,,,CHL,USA","DST-S-D","","","CHL","USA",8511.36,null,"CERDI"]
[null,"DST-S-D,,,CHN,DEU","DST-S-D","","","CHN","DEU",20484.900000000001,null,"CERDI"]
[null,"DST-S-D,,,CHN,ESP","DST-S-D","","","CHN","ESP",16840.5,null,"CERDI"]
[null,"DST-S-D,,,CHN,FRA","DST-S-D","","","CHN","FRA",15425.3,null,"CERDI"]
[null,"DST-S-D,,,CHN,IND","DST-S-D","","","CHN","IND",8761.85,null,"CERDI"]
[null,"DST-S-D,,,CHN,JPN","DST-S-D","","","CHN","JPN",1458.02,null,"CERDI"]
[null,"DST-S-D,,,CHN,KOR","DST-S-D","","","CHN","KOR",659.33900000000006,null,"CERDI"]
[null,"DST-S-D,,,CHN,NLD","DST-S-D","","","CHN","NLD",19901,null,"CERDI"]
[null,"DST-S-D,,,CHN,USA","DST-S-D","","","CHN","USA",10401.4,null,"CERDI"]
[null,"DST-S-D,,,COL,CHN","DST-S-D","","","COL","CHN",16752,"km","CERDI"]
[null,"DST-S-D,,,COL,DEU","DST-S-D","","","COL","DEU",9250.74,"km","SEA-DISTANCES.ORG"]
[null,"DST-S-D,,,COL,ESP","DST-S-D","","","COL","ESP",7282,"km","CERDI"]
[null,"DST-S-D,,,COL,FRA","DST-S-D","","","COL","FRA",8323,"km","CERDI"]
[null,"DST-S-D,,,COL,IND","DST-S-D","","","COL","IND",17936,"km","CERDI"]
[null,"DST-S-D,,,COL,JPN","DST-S-D","","","COL","JPN",15390,"km","CERDI"]
[null,"DST-S-D,,,COL,KOR","DST-S-D","","","COL","KOR",16112,"km","CERDI"]
[null,"DST-S-D,,,COL,NLD","DST-S-D","","","COL","NLD",8361.7800000000007,"km","SEA-DISTANCES.ORG"]
[null,"DST-S-D,,,COL,USA","DST-S-D","","","COL","USA",2242,"km","CERDI"]
[null,"DST-S-D,,,CRI,CHN","DST-S-D","","","CRI","CHN",16735.5,null,"CERDI"]
[null,"DST-S-D,,,CRI,DEU","DST-S-D","","","CRI","DEU",7422.6,null,"CERDI"]
[null,"DST-S-D,,,CRI,ESP","DST-S-D","","","CRI","ESP",8028.79,null,"CERDI"]
[null,"DST-S-D,,,CRI,FRA","DST-S-D","","","CRI","FRA",9099.84,null,"CERDI"]
[null,"DST-S-D,,,CRI,IND","DST-S-D","","","CRI","IND",18692.900000000001,null,"CERDI"]
[null,"DST-S-D,,,CRI,JPN","DST-S-D","","","CRI","JPN",15373.2,null,"CERDI"]
[null,"DST-S-D,,,CRI,KOR","DST-S-D","","","CRI","KOR",16095.6,null,"CERDI"]
[null,"DST-S-D,,,CRI,NLD","DST-S-D","","","CRI","NLD",7150.86,null,"CERDI"]
[null,"DST-S-D,,,CRI,USA","DST-S-D","","","CRI","USA",2590.9699999999998,null,"CERDI"]
[null,"DST-S-D,,,DNK,CHN","DST-S-D","","","DNK","CHN",21206.9,null,"CERDI"]
[null,"DST-S-D,,,DNK,DEU","DST-S-D","","","DNK","DEU",814.84100000000001,null,"CERDI"]
[null,"DST-S-D,,,DNK,ESP","DST-S-D","","","DNK","ESP",2403.9,null,"SEA-DISTANCES.ORG"]
[null,"DST-S-D,,,DNK,FRA","DST-S-D","","","DNK","FRA",1859.4080000000001,null,"SEA-DISTANCES.ORG"]
[null,"DST-S-D,,,DNK,IND","DST-S-D","","","DNK","IND",13318,null,"CERDI"]
[null,"DST-S-D,,,DNK,JPN","DST-S-D","","","DNK","JPN",22113.599999999999,null,"CERDI"]
[null,"DST-S-D,,,DNK,KOR","DST-S-D","","","DNK","KOR",21793,null,"CERDI"]
[null,"DST-S-D,,,DNK,NLD","DST-S-D","","","DNK","NLD",1117.3499999999999,null,"CERDI"]
[null,"DST-S-D,,,DNK,USA","DST-S-D","","","DNK","USA",8659.0300000000007,null,"CERDI"]
[null,"DST-S-D,,,DZA,CHN","DST-S-D","","","DZA","CHN",16414.7,null,"CERDI"]
[null,"DST-S-D,,,DZA,DEU","DST-S-D","","","DZA","DEU",3174.14,null,"CERDI"]
[null,"DST-S-D,,,DZA,ESP","DST-S-D","","","DZA","ESP",449.37400000000002,null,"CERDI"]
[null,"DST-S-D,,,DZA,FRA","DST-S-D","","","DZA","FRA",863.68899999999996,null,"CERDI"]
[null,"DST-S-D,,,DZA,IND","DST-S-D","","","DZA","IND",8829.52,null,"CERDI"]
[null,"DST-S-D,,,DZA,JPN","DST-S-D","","","DZA","JPN",17389.099999999999,null,"CERDI"]
[null,"DST-S-D,,,DZA,KOR","DST-S-D","","","DZA","KOR",17085.5,null,"CERDI"]
[null,"DST-S-D,,,DZA,NLD","DST-S-D","","","DZA","NLD",2860.67,null,"CERDI"]
[null,"DST-S-D,,,DZA,USA","DST-S-D","","","DZA","USA",9072.02,null,"CERDI"]
[null,"DST-S-D,,,EGY,CHN","DST-S-D","","","EGY","CHN",13389.8,null,"CERDI"]
[null,"DST-S-D,,,EGY,DEU","DST-S-D","","","EGY","DEU",6629.18,null,"CERDI"]
[null,"DST-S-D,,,EGY,ESP","DST-S-D","","","EGY","ESP",3408.43,null,"CERDI"]
[null,"DST-S-D,,,EGY,FRA","DST-S-D","","","EGY","FRA",2024.05,null,"CERDI"]
[null,"DST-S-D,,,EGY,IND","DST-S-D","","","EGY","IND",5810.46,null,"CERDI"]
[null,"DST-S-D,,,EGY,JPN","DST-S-D","","","EGY","JPN",14387.6,null,"CERDI"]
[null,"DST-S-D,,,EGY,KOR","DST-S-D","","","EGY","KOR",14066.7,null,"CERDI"]
[null,"DST-S-D,,,EGY,NLD","DST-S-D","","","EGY","NLD",6261.57,null,"CERDI"]
[null,"DST-S-D,,,EGY,USA","DST-S-D","","","EGY","USA",12612.9,null,"CERDI"]
[null,"DST-S-D,,,ESP,CHN","DST-S-D","","","ESP","CHN",16838.3,null,"CERDI"]
[null,"DST-S-D,,,ESP,DEU","DST-S-D","","","ESP","DEU",2697.76,null,"CERDI"]
[null,"DST-S-D,,,ESP,FRA","DST-S-D","","","ESP","FRA",342.62,null,"SEA-DISTANCES.ORG"]
[null,"DST-S-D,,,ESP,IND","DST-S-D","","","ESP","IND",9253.6200000000008,null,"CERDI"]
[null,"DST-S-D,,,ESP,JPN","DST-S-D","","","ESP","JPN",17812.599999999999,null,"CERDI"]
[null,"DST-S-D,,,ESP,KOR","DST-S-D","","","ESP","KOR",17509,null,"CERDI"]
[null,"DST-S-D,,,ESP,NLD","DST-S-D","","","ESP","NLD",1427.89,null,"SEA-DISTANCES.ORG"]
[null,"DST-S-D,,,ESP,USA","DST-S-D","","","ESP","USA",8601.06,null,"CERDI"]
[null,"DST-S-D,,,IDN,CHN","DST-S-D","","","IDN","CHN",4900.57,null,"CERDI"]
[null,"DST-S-D,,,IDN,DEU","DST-S-D","","","IDN","DEU",16946.8,null,"CERDI"]
[null,"DST-S-D,,,IDN,ESP","DST-S-D","","","IDN","ESP",13236.9,null,"CERDI"]
[null,"DST-S-D,,,IDN,FRA","DST-S-D","","","IDN","FRA",11693.4,null,"CERDI"]
[null,"DST-S-D,,,IDN,IND","DST-S-D","","","IDN","IND",5100.03,null,"CERDI"]
[null,"DST-S-D,,,IDN,JPN","DST-S-D","","","IDN","JPN",5807.96,null,"CERDI"]
[null,"DST-S-D,,,IDN,KOR","DST-S-D","","","IDN","KOR",5487.17,null,"CERDI"]
[null,"DST-S-D,,,IDN,NLD","DST-S-D","","","IDN","NLD",16421,null,"CERDI"]
[null,"DST-S-D,,,IDN,USA","DST-S-D","","","IDN","USA",13999.4,null,"CERDI"]
[null,"DST-S-D,,,IND,CHN","DST-S-D","","","IND","CHN",8761.3799999999992,null,"CERDI"]
[null,"DST-S-D,,,IND,DEU","DST-S-D","","","IND","DEU",12687.7,null,"CERDI"]
[null,"DST-S-D,,,IND,ESP","DST-S-D","","","IND","ESP",9254.24,null,"CERDI"]
[null,"DST-S-D,,,IND,FRA","DST-S-D","","","IND","FRA",8441.42,null,"SEA-DISTANCES.ORG"]
[null,"DST-S-D,,,IND,JPN","DST-S-D","","","IND","JPN",9668.61,null,"CERDI"]
[null,"DST-S-D,,,IND,KOR","DST-S-D","","","IND","KOR",9347.85,null,"CERDI"]
[null,"DST-S-D,,,IND,NLD","DST-S-D","","","IND","NLD",12221.7,null,"CERDI"]
[null,"DST-S-D,,,IND,USA","DST-S-D","","","IND","USA",18312.2,null,"CERDI"]
[null,"DST-S-D,,,JOR,CHN","DST-S-D","","","JOR","CHN",13090.6,null,"CERDI"]
[null,"DST-S-D,,,JOR,DEU","DST-S-D","","","JOR","DEU",7488.73,null,"CERDI"]
[null,"DST-S-D,,,JOR,ESP","DST-S-D","","","JOR","ESP",3457.7,null,"SEA-DISTANCES.ORG"]
[null,"DST-S-D,,,JOR,FRA","DST-S-D","","","JOR","FRA",3516.95,null,"SEA-DISTANCES.ORG"]
[null,"DST-S-D,,,JOR,IND","DST-S-D","","","JOR","IND",5511.15,null,"CERDI"]
[null,"DST-S-D,,,JOR,JPN","DST-S-D","","","JOR","JPN",14049.3,null,"CERDI"]
[null,"DST-S-D,,,JOR,KOR","DST-S-D","","","JOR","KOR",13728.5,null,"CERDI"]
[null,"DST-S-D,,,JOR,NLD","DST-S-D","","","JOR","NLD",7079.06,null,"CERDI"]
[null,"DST-S-D,,,JOR,USA","DST-S-D","","","JOR","USA",13472.2,null,"CERDI"]
[null,"DST-S-D,,,KAZ,CHN","DST-S-D","","","KAZ","CHN",2252.4699999999998,null,"CERDI"]
[null,"DST-S-D,,,KAZ,DEU","DST-S-D","","","KAZ","DEU",6601.17,null,"CERDI"]
[null,"DST-S-D,,,KAZ,ESP","DST-S-D","","","KAZ","ESP",3900.92,null,"CERDI"]
[null,"DST-S-D,,,KAZ,FRA","DST-S-D","","","KAZ","FRA",3529.3,null,"CERDI"]
[null,"DST-S-D,,,KAZ,IND","DST-S-D","","","KAZ","IND",8331.77,null,"CERDI"]
[null,"DST-S-D,,,KAZ,JPN","DST-S-D","","","KAZ","JPN",2136.6799999999998,null,"CERDI"]
[null,"DST-S-D,,,KAZ,KOR","DST-S-D","","","KAZ","KOR",1579.54,null,"CERDI"]
[null,"DST-S-D,,,KAZ,NLD","DST-S-D","","","KAZ","NLD",6287.68,null,"CERDI"]
[null,"DST-S-D,,,KAZ,USA","DST-S-D","","","KAZ","USA",8226.75,null,"CERDI"]
[null,"DST-S-D,,,KEN,CHN","DST-S-D","","","KEN","CHN",11244.6,null,"CERDI"]
[null,"DST-S-D,,,KEN,DEU","DST-S-D","","","KEN","DEU",12814.1,null,"CERDI"]
[null,"DST-S-D,,,KEN,ESP","DST-S-D","","","KEN","ESP",9223.33,null,"CERDI"]
[null,"DST-S-D,,,KEN,FRA","DST-S-D","","","KEN","FRA",7736.75,null,"CERDI"]
[null,"DST-S-D,,,KEN,IND","DST-S-D","","","KEN","IND",4305.05,null,"CERDI"]
[null,"DST-S-D,,,KEN,JPN","DST-S-D","","","KEN","JPN",12152,null,"CERDI"]
[null,"DST-S-D,,,KEN,KOR","DST-S-D","","","KEN","KOR",11831.2,null,"CERDI"]
[null,"DST-S-D,,,KEN,NLD","DST-S-D","","","KEN","NLD",12343.5,null,"CERDI"]
[null,"DST-S-D,,,KEN,USA","DST-S-D","","","KEN","USA",18739.400000000001,null,"CERDI"]
[null,"DST-S-D,,,MAR,CHN","DST-S-D","","","MAR","CHN",16917.900000000001,null,"CERDI"]
[null,"DST-S-D,,,MAR,DEU","DST-S-D","","","MAR","DEU",2668.15,null,"CERDI"]
[null,"DST-S-D,,,MAR,ESP","DST-S-D","","","MAR","ESP",38.352499999999999,null,"CERDI"]
[null,"DST-S-D,,,MAR,FRA","DST-S-D","","","MAR","FRA",1104.08,null,"CERDI"]
[null,"DST-S-D,,,MAR,IND","DST-S-D","","","MAR","IND",9333.25,null,"CERDI"]
[null,"DST-S-D,,,MAR,JPN","DST-S-D","","","MAR","JPN",17892.3,null,"CERDI"]
[null,"DST-S-D,,,MAR,KOR","DST-S-D","","","MAR","KOR",17588.7,null,"CERDI"]
[null,"DST-S-D,,,MAR,NLD","DST-S-D","","","MAR","NLD",2354.6799999999998,null,"CERDI"]
[null,"DST-S-D,,,MAR,USA","DST-S-D","","","MAR","USA",8558.2999999999993,null,"CERDI"]
[null,"DST-S-D,,,MAR-BEN,CHN","DST-S-D","","","MAR-BEN","CHN",16917.900000000001,null,"CERDI"]
[null,"DST-S-D,,,MAR-BEN,DEU","DST-S-D","","","MAR-BEN","DEU",2668.15,null,"CERDI"]
[null,"DST-S-D,,,MAR-BEN,ESP","DST-S-D","","","MAR-BEN","ESP",38.352499999999999,null,"CERDI"]
[null,"DST-S-D,,,MAR-BEN,FRA","DST-S-D","","","MAR-BEN","FRA",1104.08,null,"CERDI"]
[null,"DST-S-D,,,MAR-BEN,IND","DST-S-D","","","MAR-BEN","IND",9333.25,null,"CERDI"]
[null,"DST-S-D,,,MAR-BEN,JPN","DST-S-D","","","MAR-BEN","JPN",17892.3,null,"CERDI"]
[null,"DST-S-D,,,MAR-BEN,KOR","DST-S-D","","","MAR-BEN","KOR",17588.7,null,"CERDI"]
[null,"DST-S-D,,,MAR-BEN,NLD","DST-S-D","","","MAR-BEN","NLD",2354.6799999999998,null,"CERDI"]
[null,"DST-S-D,,,MAR-BEN,USA","DST-S-D","","","MAR-BEN","USA",8558.2999999999993,null,"CERDI"]
[null,"DST-S-D,,,MAR-CAS,CHN","DST-S-D","","","MAR-CAS","CHN",16917.900000000001,null,"CERDI"]
[null,"DST-S-D,,,MAR-CAS,DEU","DST-S-D","","","MAR-CAS","DEU",2668.15,null,"CERDI"]
[null,"DST-S-D,,,MAR-CAS,ESP","DST-S-D","","","MAR-CAS","ESP",38.352499999999999,null,"CERDI"]
[null,"DST-S-D,,,MAR-CAS,FRA","DST-S-D","","","MAR-CAS","FRA",1104.08,null,"CERDI"]
[null,"DST-S-D,,,MAR-CAS,IND","DST-S-D","","","MAR-CAS","IND",9333.25,null,"CERDI"]
[null,"DST-S-D,,,MAR-CAS,JPN","DST-S-D","","","MAR-CAS","JPN",17892.3,null,"CERDI"]
[null,"DST-S-D,,,MAR-CAS,KOR","DST-S-D","","","MAR-CAS","KOR",17588.7,null,"CERDI"]
[null,"DST-S-D,,,MAR-CAS,NLD","DST-S-D","","","MAR-CAS","NLD",2354.6799999999998,null,"CERDI"]
[null,"DST-S-D,,,MAR-CAS,USA","DST-S-D","","","MAR-CAS","USA",8558.2999999999993,null,"CERDI"]
[null,"DST-S-D,,,MAR-DAK,CHN","DST-S-D","","","MAR-DAK","CHN",16917.900000000001,null,"CERDI"]
[null,"DST-S-D,,,MAR-DAK,DEU","DST-S-D","","","MAR-DAK","DEU",2668.15,null,"CERDI"]
[null,"DST-S-D,,,MAR-DAK,ESP","DST-S-D","","","MAR-DAK","ESP",38.352499999999999,null,"CERDI"]
[null,"DST-S-D,,,MAR-DAK,FRA","DST-S-D","","","MAR-DAK","FRA",1104.08,null,"CERDI"]
[null,"DST-S-D,,,MAR-DAK,IND","DST-S-D","","","MAR-DAK","IND",9333.25,null,"CERDI"]
[null,"DST-S-D,,,MAR-DAK,JPN","DST-S-D","","","MAR-DAK","JPN",17892.3,null,"CERDI"]
[null,"DST-S-D,,,MAR-DAK,KOR","DST-S-D","","","MAR-DAK","KOR",17588.7,null,"CERDI"]
[null,"DST-S-D,,,MAR-DAK,NLD","DST-S-D","","","MAR-DAK","NLD",2354.6799999999998,null,"CERDI"]
[null,"DST-S-D,,,MAR-DAK,USA","DST-S-D","","","MAR-DAK","USA",8558.2999999999993,null,"CERDI"]
[null,"DST-S-D,,,MAR-DRA,CHN","DST-S-D","","","MAR-DRA","CHN",16917.900000000001,null,"CERDI"]
[null,"DST-S-D,,,MAR-DRA,DEU","DST-S-D","","","MAR-DRA","DEU",2668.15,null,"CERDI"]
[null,"DST-S-D,,,MAR-DRA,ESP","DST-S-D","","","MAR-DRA","ESP",38.352499999999999,null,"CERDI"]
[null,"DST-S-D,,,MAR-DRA,FRA","DST-S-D","","","MAR-DRA","FRA",1104.08,null,"CERDI"]
[null,"DST-S-D,,,MAR-DRA,IND","DST-S-D","","","MAR-DRA","IND",9333.25,null,"CERDI"]
[null,"DST-S-D,,,MAR-DRA,JPN","DST-S-D","","","MAR-DRA","JPN",17892.3,null,"CERDI"]
[null,"DST-S-D,,,MAR-DRA,KOR","DST-S-D","","","MAR-DRA","KOR",17588.7,null,"CERDI"]
[null,"DST-S-D,,,MAR-DRA,NLD","DST-S-D","","","MAR-DRA","NLD",2354.6799999999998,null,"CERDI"]
[null,"DST-S-D,,,MAR-DRA,USA","DST-S-D","","","MAR-DRA","USA",8558.2999999999993,null,"CERDI"]
[null,"DST-S-D,,,MAR-FES,CHN","DST-S-D","","","MAR-FES","CHN",16917.900000000001,null,"CERDI"]
[null,"DST-S-D,,,MAR-FES,DEU","DST-S-D","","","MAR-FES","DEU",2668.15,null,"CERDI"]
[null,"DST-S-D,,,MAR-FES,ESP","DST-S-D","","","MAR-FES","ESP",38.352499999999999,null,"CERDI"]
[null,"DST-S-D,,,MAR-FES,FRA","DST-S-D","","","MAR-FES","FRA",1104.08,null,"CERDI"]
[null,"DST-S-D,,,MAR-FES,IND","DST-S-D","","","MAR-FES","IND",9333.25,null,"CERDI"]
[null,"DST-S-D,,,MAR-FES,JPN","DST-S-D","","","MAR-FES","JPN",17892.3,null,"CERDI"]
[null,"DST-S-D,,,MAR-FES,KOR","DST-S-D","","","MAR-FES","KOR",17588.7,null,"CERDI"]
[null,"DST-S-D,,,MAR-FES,NLD","DST-S-D","","","MAR-FES","NLD",2354.6799999999998,null,"CERDI"]
[null,"DST-S-D,,,MAR-FES,USA","DST-S-D","","","MAR-FES","USA",8558.2999999999993,null,"CERDI"]
[null,"DST-S-D,,,MAR-GUE,CHN","DST-S-D","","","MAR-GUE","CHN",16917.900000000001,null,"CERDI"]
[null,"DST-S-D,,,MAR-GUE,DEU","DST-S-D","","","MAR-GUE","DEU",2668.15,null,"CERDI"]
[null,"DST-S-D,,,MAR-GUE,ESP","DST-S-D","","","MAR-GUE","ESP",38.352499999999999,null,"CERDI"]
[null,"DST-S-D,,,MAR-GUE,FRA","DST-S-D","","","MAR-GUE","FRA",1104.08,null,"CERDI"]
[null,"DST-S-D,,,MAR-GUE,IND","DST-S-D","","","MAR-GUE","IND",9333.25,null,"CERDI"]
[null,"DST-S-D,,,MAR-GUE,JPN","DST-S-D","","","MAR-GUE","JPN",17892.3,null,"CERDI"]
[null,"DST-S-D,,,MAR-GUE,KOR","DST-S-D","","","MAR-GUE","KOR",17588.7,null,"CERDI"]
[null,"DST-S-D,,,MAR-GUE,NLD","DST-S-D","","","MAR-GUE","NLD",2354.6799999999998,null,"CERDI"]
[null,"DST-S-D,,,MAR-GUE,USA","DST-S-D","","","MAR-GUE","USA",8558.2999999999993,null,"CERDI"]
[null,"DST-S-D,,,MAR-LAA,CHN","DST-S-D","","","MAR-LAA","CHN",16917.900000000001,null,"CERDI"]
[null,"DST-S-D,,,MAR-LAA,DEU","DST-S-D","","","MAR-LAA","DEU",2668.15,null,"CERDI"]
[null,"DST-S-D,,,MAR-LAA,ESP","DST-S-D","","","MAR-LAA","ESP",38.352499999999999,null,"CERDI"]
[null,"DST-S-D,,,MAR-LAA,FRA","DST-S-D","","","MAR-LAA","FRA",1104.08,null,"CERDI"]
[null,"DST-S-D,,,MAR-LAA,IND","DST-S-D","","","MAR-LAA","IND",9333.25,null,"CERDI"]
[null,"DST-S-D,,,MAR-LAA,JPN","DST-S-D","","","MAR-LAA","JPN",17892.3,null,"CERDI"]
[null,"DST-S-D,,,MAR-LAA,KOR","DST-S-D","","","MAR-LAA","KOR",17588.7,null,"CERDI"]
[null,"DST-S-D,,,MAR-LAA,NLD","DST-S-D","","","MAR-LAA","NLD",2354.6799999999998,null,"CERDI"]
[null,"DST-S-D,,,MAR-LAA,USA","DST-S-D","","","MAR-LAA","USA",8558.2999999999993,null,"CERDI"]
[null,"DST-S-D,,,MAR-LOR,CHN","DST-S-D","","","MAR-LOR","CHN",16917.900000000001,null,"CERDI"]
[null,"DST-S-D,,,MAR-LOR,DEU","DST-S-D","","","MAR-LOR","DEU",2668.15,null,"CERDI"]
[null,"DST-S-D,,,MAR-LOR,ESP","DST-S-D","","","MAR-LOR","ESP",38.352499999999999,null,"CERDI"]
[null,"DST-S-D,,,MAR-LOR,FRA","DST-S-D","","","MAR-LOR","FRA",1104.08,null,"CERDI"]
[null,"DST-S-D,,,MAR-LOR,IND","DST-S-D","","","MAR-LOR","IND",9333.25,null,"CERDI"]
[null,"DST-S-D,,,MAR-LOR,JPN","DST-S-D","","","MAR-LOR","JPN",17892.3,null,"CERDI"]
[null,"DST-S-D,,,MAR-LOR,KOR","DST-S-D","","","MAR-LOR","KOR",17588.7,null,"CERDI"]
[null,"DST-S-D,,,MAR-LOR,NLD","DST-S-D","","","MAR-LOR","NLD",2354.6799999999998,null,"CERDI"]
[null,"DST-S-D,,,MAR-LOR,USA","DST-S-D","","","MAR-LOR","USA",8558.2999999999993,null,"CERDI"]
[null,"DST-S-D,,,MAR-MAR,CHN","DST-S-D","","","MAR-MAR","CHN",16917.900000000001,null,"CERDI"]
[null,"DST-S-D,,,MAR-MAR,DEU","DST-S-D","","","MAR-MAR","DEU",2668.15,null,"CERDI"]
[null,"DST-S-D,,,MAR-MAR,ESP","DST-S-D","","","MAR-MAR","ESP",38.352499999999999,null,"CERDI"]
[null,"DST-S-D,,,MAR-MAR,FRA","DST-S-D","","","MAR-MAR","FRA",1104.08,null,"CERDI"]
[null,"DST-S-D,,,MAR-MAR,IND","DST-S-D","","","MAR-MAR","IND",9333.25,null,"CERDI"]
[null,"DST-S-D,,,MAR-MAR,JPN","DST-S-D","","","MAR-MAR","JPN",17892.3,null,"CERDI"]
[null,"DST-S-D,,,MAR-MAR,KOR","DST-S-D","","","MAR-MAR","KOR",17588.7,null,"CERDI"]
[null,"DST-S-D,,,MAR-MAR,NLD","DST-S-D","","","MAR-MAR","NLD",2354.6799999999998,null,"CERDI"]
[null,"DST-S-D,,,MAR-MAR,USA","DST-S-D","","","MAR-MAR","USA",8558.2999999999993,null,"CERDI"]
[null,"DST-S-D,,,MAR-RAB,CHN","DST-S-D","","","MAR-RAB","CHN",16917.900000000001,null,"CERDI"]
[null,"DST-S-D,,,MAR-RAB,DEU","DST-S-D","","","MAR-RAB","DEU",2668.15,null,"CERDI"]
[null,"DST-S-D,,,MAR-RAB,ESP","DST-S-D","","","MAR-RAB","ESP",38.352499999999999,null,"CERDI"]
[null,"DST-S-D,,,MAR-RAB,FRA","DST-S-D","","","MAR-RAB","FRA",1104.08,null,"CERDI"]
[null,"DST-S-D,,,MAR-RAB,IND","DST-S-D","","","MAR-RAB","IND",9333.25,null,"CERDI"]
[null,"DST-S-D,,,MAR-RAB,JPN","DST-S-D","","","MAR-RAB","JPN",17892.3,null,"CERDI"]
[null,"DST-S-D,,,MAR-RAB,KOR","DST-S-D","","","MAR-RAB","KOR",17588.7,null,"CERDI"]
[null,"DST-S-D,,,MAR-RAB,NLD","DST-S-D","","","MAR-RAB","NLD",2354.6799999999998,null,"CERDI"]
[null,"DST-S-D,,,MAR-RAB,USA","DST-S-D","","","MAR-RAB","USA",8558.2999999999993,null,"CERDI"]
[null,"DST-S-D,,,MAR-SOU,CHN","DST-S-D","","","MAR-SOU","CHN",16917.900000000001,null,"CERDI"]
[null,"DST-S-D,,,MAR-SOU,DEU","DST-S-D","","","MAR-SOU","DEU",2668.15,null,"CERDI"]
[null,"DST-S-D,,,MAR-SOU,ESP","DST-S-D","","","MAR-SOU","ESP",38.352499999999999,null,"CERDI"]
[null,"DST-S-D,,,MAR-SOU,FRA","DST-S-D","","","MAR-SOU","FRA",1104.08,null,"CERDI"]
[null,"DST-S-D,,,MAR-SOU,IND","DST-S-D","","","MAR-SOU","IND",9333.25,null,"CERDI"]
[null,"DST-S-D,,,MAR-SOU,JPN","DST-S-D","","","MAR-SOU","JPN",17892.3,null,"CERDI"]
[null,"DST-S-D,,,MAR-SOU,KOR","DST-S-D","","","MAR-SOU","KOR",17588.7,null,"CERDI"]
[null,"DST-S-D,,,MAR-SOU,NLD","DST-S-D","","","MAR-SOU","NLD",2354.6799999999998,null,"CERDI"]
[null,"DST-S-D,,,MAR-SOU,USA","DST-S-D","","","MAR-SOU","USA",8558.2999999999993,null,"CERDI"]
[null,"DST-S-D,,,MAR-TAN,CHN","DST-S-D","","","MAR-TAN","CHN",16917.900000000001,null,"CERDI"]
[null,"DST-S-D,,,MAR-TAN,DEU","DST-S-D","","","MAR-TAN","DEU",2668.15,null,"CERDI"]
[null,"DST-S-D,,,MAR-TAN,ESP","DST-S-D","","","MAR-TAN","ESP",38.352499999999999,null,"CERDI"]
[null,"DST-S-D,,,MAR-TAN,FRA","DST-S-D","","","MAR-TAN","FRA",1104.08,null,"CERDI"]
[null,"DST-S-D,,,MAR-TAN,IND","DST-S-D","","","MAR-TAN","IND",9333.25,null,"CERDI"]
[null,"DST-S-D,,,MAR-TAN,JPN","DST-S-D","","","MAR-TAN","JPN",17892.3,null,"CERDI"]
[null,"DST-S-D,,,MAR-TAN,KOR","DST-S-D","","","MAR-TAN","KOR",17588.7,null,"CERDI"]
[null,"DST-S-D,,,MAR-TAN,NLD","DST-S-D","","","MAR-TAN","NLD",2354.6799999999998,null,"CERDI"]
[null,"DST-S-D,,,MAR-TAN,USA","DST-S-D","","","MAR-TAN","USA",8558.2999999999993,null,"CERDI"]
[null,"DST-S-D,,,MEX,CHN","DST-S-D","","","MEX","CHN",13223.2,null,"CERDI"]
[null,"DST-S-D,,,MEX,DEU","DST-S-D","","","MEX","DEU",10256.299999999999,null,"CERDI"]
[null,"DST-S-D,,,MEX,ESP","DST-S-D","","","MEX","ESP",10695.5,null,"CERDI"]
[null,"DST-S-D,,,MEX,FRA","DST-S-D","","","MEX","FRA",11766.6,null,"CERDI"]
[null,"DST-S-D,,,MEX,IND","DST-S-D","","","MEX","IND",20448.3,null,"CERDI"]
[null,"DST-S-D,,,MEX,JPN","DST-S-D","","","MEX","JPN",11860.6,null,"CERDI"]
[null,"DST-S-D,,,MEX,KOR","DST-S-D","","","MEX","KOR",12583,null,"CERDI"]
[null,"DST-S-D,,,MEX,NLD","DST-S-D","","","MEX","NLD",9956.94,null,"CERDI"]
[null,"DST-S-D,,,MEX,USA","DST-S-D","","","MEX","USA",1231.58,null,"SEA-DISTANCES.ORG"]
[null,"DST-S-D,,,MRT,CHN","DST-S-D","","","MRT","CHN",19545.900000000001,null,"CERDI"]
[null,"DST-S-D,,,MRT,DEU","DST-S-D","","","MRT","DEU",4171.75,null,"CERDI"]
[null,"DST-S-D,,,MRT,ESP","DST-S-D","","","MRT","ESP",2012.1,null,"CERDI"]
[null,"DST-S-D,,,MRT,FRA","DST-S-D","","","MRT","FRA",3083.36,null,"CERDI"]
[null,"DST-S-D,,,MRT,IND","DST-S-D","","","MRT","IND",11940.3,null,"CERDI"]
[null,"DST-S-D,,,MRT,JPN","DST-S-D","","","MRT","JPN",20452.599999999999,null,"CERDI"]
[null,"DST-S-D,,,MRT,KOR","DST-S-D","","","MRT","KOR",20132,null,"CERDI"]
[null,"DST-S-D,,,MRT,NLD","DST-S-D","","","MRT","NLD",3858.24,null,"CERDI"]
[null,"DST-S-D,,,MRT,USA","DST-S-D","","","MRT","USA",7511.88,null,"CERDI"]
[null,"DST-S-D,,,NAM,CHN","DST-S-D","","","NAM","CHN",16002.4,null,"CERDI"]
[null,"DST-S-D,,,NAM,DEU","DST-S-D","","","NAM","DEU",10723.8,null,"CERDI"]
[null,"DST-S-D,,,NAM,ESP","DST-S-D","","","NAM","ESP",8564.51,null,"CERDI"]
[null,"DST-S-D,,,NAM,FRA","DST-S-D","","","NAM","FRA",9635.7099999999991,null,"CERDI"]
[null,"DST-S-D,,,NAM,IND","DST-S-D","","","NAM","IND",10561.3,null,"CERDI"]
[null,"DST-S-D,,,NAM,JPN","DST-S-D","","","NAM","JPN",16976.900000000001,null,"CERDI"]
[null,"DST-S-D,,,NAM,KOR","DST-S-D","","","NAM","KOR",16673.3,null,"CERDI"]
[null,"DST-S-D,,,NAM,NLD","DST-S-D","","","NAM","NLD",10410.4,null,"CERDI"]
[null,"DST-S-D,,,NAM,USA","DST-S-D","","","NAM","USA",12721.7,null,"CERDI"]
[null,"DST-S-D,,,NOR,CHN","DST-S-D","","","NOR","CHN",21062.6,null,"CERDI"]
[null,"DST-S-D,,,NOR,DEU","DST-S-D","","","NOR","DEU",605.048,null,"CERDI"]
[null,"DST-S-D,,,NOR,ESP","DST-S-D","","","NOR","ESP",2363.15,null,"SEA-DISTANCES.ORG"]
[null,"DST-S-D,,,NOR,FRA","DST-S-D","","","NOR","FRA",1818.66,null,"SEA-DISTANCES.ORG"]
[null,"DST-S-D,,,NOR,IND","DST-S-D","","","NOR","IND",13108.2,null,"CERDI"]
[null,"DST-S-D,,,NOR,JPN","DST-S-D","","","NOR","JPN",21969.200000000001,null,"CERDI"]
[null,"DST-S-D,,,NOR,KOR","DST-S-D","","","NOR","KOR",21648.7,null,"CERDI"]
[null,"DST-S-D,,,NOR,NLD","DST-S-D","","","NOR","NLD",808.45699999999999,null,"CERDI"]
[null,"DST-S-D,,,NOR,USA","DST-S-D","","","NOR","USA",7940.34,null,"CERDI"]
[null,"DST-S-D,,,PER,CHN","DST-S-D","","","PER","CHN",16633.3,null,"CERDI"]
[null,"DST-S-D,,,PER,DEU","DST-S-D","","","PER","DEU",12282.46,null,"SEA-DISTANCES.ORG"]
[null,"DST-S-D,,,PER,ESP","DST-S-D","","","PER","ESP",11517.59,null,"SEA-DISTANCES.ORG"]
[null,"DST-S-D,,,PER,FRA","DST-S-D","","","PER","FRA",10735.1,null,"CERDI"]
[null,"DST-S-D,,,PER,IND","DST-S-D","","","PER","IND",20364.8,null,"CERDI"]
[null,"DST-S-D,,,PER,JPN","DST-S-D","","","PER","JPN",15271,null,"CERDI"]
[null,"DST-S-D,,,PER,KOR","DST-S-D","","","PER","KOR",15993.2,null,"CERDI"]
[null,"DST-S-D,,,PER,NLD","DST-S-D","","","PER","NLD",11445.36,null,"SEA-DISTANCES.ORG"]
[null,"DST-S-D,,,PER,USA","DST-S-D","","","PER","USA",4729.2,null,"CERDI"]
[null,"DST-S-D,,,PRT,CHN","DST-S-D","","","PRT","CHN",17380,null,"CERDI"]
[null,"DST-S-D,,,PRT,DEU","DST-S-D","","","PRT","DEU",2479.8200000000002,null,"SEA-DISTANCES.ORG"]
[null,"DST-S-D,,,PRT,ESP","DST-S-D","","","PRT","ESP",1085.27,null,"SEA-DISTANCES.ORG"]
[null,"DST-S-D,,,PRT,FRA","DST-S-D","","","PRT","FRA",1729.71,null,"CERDI"]
[null,"DST-S-D,,,PRT,IND","DST-S-D","","","PRT","IND",9795.41,null,"CERDI"]
[null,"DST-S-D,,,PRT,JPN","DST-S-D","","","PRT","JPN",18354.400000000001,null,"CERDI"]
[null,"DST-S-D,,,PRT,KOR","DST-S-D","","","PRT","KOR",18050.8,null,"CERDI"]
[null,"DST-S-D,,,PRT,NLD","DST-S-D","","","PRT","NLD",1721.53,null,"CERDI"]
[null,"DST-S-D,,,PRT,USA","DST-S-D","","","PRT","USA",7944.32,null,"CERDI"]
[null,"DST-S-D,,,RUS,CHN","DST-S-D","","","RUS","CHN",2252.4699999999998,null,"CERDI"]
[null,"DST-S-D,,,RUS,DEU","DST-S-D","","","RUS","DEU",6601.17,null,"CERDI"]
[null,"DST-S-D,,,RUS,ESP","DST-S-D","","","RUS","ESP",3900.92,null,"CERDI"]
[null,"DST-S-D,,,RUS,FRA","DST-S-D","","","RUS","FRA",3529.3,null,"CERDI"]
[null,"DST-S-D,,,RUS,IND","DST-S-D","","","RUS","IND",8331.77,null,"CERDI"]
[null,"DST-S-D,,,RUS,JPN","DST-S-D","","","RUS","JPN",2136.6799999999998,null,"CERDI"]
[null,"DST-S-D,,,RUS,KOR","DST-S-D","","","RUS","KOR",1579.54,null,"CERDI"]
[null,"DST-S-D,,,RUS,NLD","DST-S-D","","","RUS","NLD",7921,null,"SEA-DISTANCES.ORG"]
[null,"DST-S-D,,,RUS,USA","DST-S-D","","","RUS","USA",8226.75,null,"CERDI"]
[null,"DST-S-D,,,SAU,CHN","DST-S-D","","","SAU","CHN",12014.2,null,"CERDI"]
[null,"DST-S-D,,,SAU,DEU","DST-S-D","","","SAU","DEU",8624.76,null,"SEA-DISTANCES.ORG"]
[null,"DST-S-D,,,SAU,ESP","DST-S-D","","","SAU","ESP",4279.97,null,"SEA-DISTANCES.ORG"]
[null,"DST-S-D,,,SAU,FRA","DST-S-D","","","SAU","FRA",3364.12,null,"CERDI"]
[null,"DST-S-D,,,SAU,IND","DST-S-D","","","SAU","IND",4376.12,null,"CERDI"]
[null,"DST-S-D,,,SAU,JPN","DST-S-D","","","SAU","JPN",12921.6,null,"CERDI"]
[null,"DST-S-D,,,SAU,KOR","DST-S-D","","","SAU","KOR",12600.8,null,"CERDI"]
[null,"DST-S-D,,,SAU,NLD","DST-S-D","","","SAU","NLD",7402.44,null,"SEA-DISTANCES.ORG"]
[null,"DST-S-D,,,SAU,USA","DST-S-D","","","SAU","USA",14233.2,null,"CERDI"]
[null,"DST-S-D,,,SWE,CHN","DST-S-D","","","SWE","CHN",21022.6,null,"CERDI"]
[null,"DST-S-D,,,SWE,DEU","DST-S-D","","","SWE","DEU",602.49,null,"CERDI"]
[null,"DST-S-D,,,SWE,ESP","DST-S-D","","","SWE","ESP",3104.64,null,"CERDI"]
[null,"DST-S-D,,,SWE,FRA","DST-S-D","","","SWE","FRA",4175.91,null,"CERDI"]
[null,"DST-S-D,,,SWE,IND","DST-S-D","","","SWE","IND",13105.7,null,"CERDI"]
[null,"DST-S-D,,,SWE,JPN","DST-S-D","","","SWE","JPN",21929.3,null,"CERDI"]
[null,"DST-S-D,,,SWE,KOR","DST-S-D","","","SWE","KOR",21608.7,null,"CERDI"]
[null,"DST-S-D,,,SWE,NLD","DST-S-D","","","SWE","NLD",821.91899999999998,null,"CERDI"]
[null,"DST-S-D,,,SWE,USA","DST-S-D","","","SWE","USA",8160.7,null,"CERDI"]
[null,"DST-S-D,,,THA,CHN","DST-S-D","","","THA","CHN",4046.29,null,"CERDI"]
[null,"DST-S-D,,,THA,DEU","DST-S-D","","","THA","DEU",18076.400000000001,null,"CERDI"]
[null,"DST-S-D,,,THA,ESP","DST-S-D","","","THA","ESP",14281.2,null,"CERDI"]
[null,"DST-S-D,,,THA,FRA","DST-S-D","","","THA","FRA",12690.1,null,"CERDI"]
[null,"DST-S-D,,,THA,IND","DST-S-D","","","THA","IND",6056.68,null,"CERDI"]
[null,"DST-S-D,,,THA,JPN","DST-S-D","","","THA","JPN",5539.33,null,"SEA-DISTANCES.ORG"]
[null,"DST-S-D,,,THA,KOR","DST-S-D","","","THA","KOR",4632.9399999999996,null,"CERDI"]
[null,"DST-S-D,,,THA,NLD","DST-S-D","","","THA","NLD",17505.099999999999,null,"CERDI"]
[null,"DST-S-D,,,THA,USA","DST-S-D","","","THA","USA",14109.5,null,"CERDI"]
[null,"DST-S-D,,,TUN,CHN","DST-S-D","","","TUN","CHN",15188.8,null,"CERDI"]
[null,"DST-S-D,,,TUN,DEU","DST-S-D","","","TUN","DEU",4114.37,null,"CERDI"]
[null,"DST-S-D,,,TUN,ESP","DST-S-D","","","TUN","ESP",1414.33,null,"CERDI"]
[null,"DST-S-D,,,TUN,FRA","DST-S-D","","","TUN","FRA",754.12400000000002,null,"CERDI"]
[null,"DST-S-D,,,TUN,IND","DST-S-D","","","TUN","IND",7609.79,null,"CERDI"]
[null,"DST-S-D,,,TUN,JPN","DST-S-D","","","TUN","JPN",16218.3,null,"CERDI"]
[null,"DST-S-D,,,TUN,KOR","DST-S-D","","","TUN","KOR",15930.7,null,"CERDI"]
[null,"DST-S-D,,,TUN,NLD","DST-S-D","","","TUN","NLD",3800.89,null,"CERDI"]
[null,"DST-S-D,,,TUN,USA","DST-S-D","","","TUN","USA",10017.6,null,"CERDI"]
[null,"DST-S-D,,,UKR,CHN","DST-S-D","","","UKR","CHN",15605.7,null,"CERDI"]
[null,"DST-S-D,,,UKR,DEU","DST-S-D","","","UKR","DEU",6650.36,null,"CERDI"]
[null,"DST-S-D,,,UKR,ESP","DST-S-D","","","UKR","ESP",3912.3,null,"CERDI"]
[null,"DST-S-D,,,UKR,FRA","DST-S-D","","","UKR","FRA",3171.22,null,"CERDI"]
[null,"DST-S-D,,,UKR,IND","DST-S-D","","","UKR","IND",8000.83,null,"CERDI"]
[null,"DST-S-D,,,UKR,JPN","DST-S-D","","","UKR","JPN",16513.099999999999,null,"CERDI"]
[null,"DST-S-D,,,UKR,KOR","DST-S-D","","","UKR","KOR",16192.3,null,"CERDI"]
[null,"DST-S-D,,,UKR,NLD","DST-S-D","","","UKR","NLD",6336.87,null,"CERDI"]
[null,"DST-S-D,,,UKR,USA","DST-S-D","","","UKR","USA",12553.3,null,"CERDI"]
[null,"DST-S-D,,,URY,CHN","DST-S-D","","","URY","CHN",21524.1,null,"CERDI"]
[null,"DST-S-D,,,URY,DEU","DST-S-D","","","URY","DEU",12547.2,null,"CERDI"]
[null,"DST-S-D,,,URY,ESP","DST-S-D","","","URY","ESP",10706.9,null,"CERDI"]
[null,"DST-S-D,,,URY,FRA","DST-S-D","","","URY","FRA",11777.9,null,"CERDI"]
[null,"DST-S-D,,,URY,IND","DST-S-D","","","URY","IND",15885.2,null,"CERDI"]
[null,"DST-S-D,,,URY,JPN","DST-S-D","","","URY","JPN",20938.400000000001,null,"CERDI"]
[null,"DST-S-D,,,URY,KOR","DST-S-D","","","URY","KOR",21620.9,null,"CERDI"]
[null,"DST-S-D,,,URY,NLD","DST-S-D","","","URY","NLD",12233.8,null,"CERDI"]
[null,"DST-S-D,,,URY,USA","DST-S-D","","","URY","USA",11454,null,"CERDI"]
[null,"DST-S-D,,,USA,CHN","DST-S-D","","","USA","CHN",10402.299999999999,null,"CERDI"]
[null,"DST-S-D,,,USA,DEU","DST-S-D","","","USA","DEU",8323.27,null,"CERDI"]
[null,"DST-S-D,,,USA,ESP","DST-S-D","","","USA","ESP",8604.8700000000008,null,"CERDI"]
[null,"DST-S-D,,,USA,FRA","DST-S-D","","","USA","FRA",9676.0499999999993,null,"CERDI"]
[null,"DST-S-D,,,USA,IND","DST-S-D","","","USA","IND",18311.5,null,"CERDI"]
[null,"DST-S-D,,,USA,JPN","DST-S-D","","","USA","JPN",8904.7099999999991,null,"CERDI"]
[null,"DST-S-D,,,USA,KOR","DST-S-D","","","USA","KOR",9754.8799999999992,null,"CERDI"]
[null,"DST-S-D,,,USA,NLD","DST-S-D","","","USA","NLD",8053.45,null,"CERDI"]
[null,"DST-S-D,,,VNM,CHN","DST-S-D","","","VNM","CHN",2839.27,null,"CERDI"]
[null,"DST-S-D,,,VNM,DEU","DST-S-D","","","VNM","DEU",18266.27,null,"SEA-DISTANCES.ORG"]
[null,"DST-S-D,,,VNM,ESP","DST-S-D","","","VNM","ESP",17590.400000000001,null,"CERDI"]
[null,"DST-S-D,,,VNM,FRA","DST-S-D","","","VNM","FRA",14534.49,null,"SEA-DISTANCES.ORG"]
[null,"DST-S-D,,,VNM,IND","DST-S-D","","","VNM","IND",3746.62,null,"CERDI"]
[null,"DST-S-D,,,VNM,JPN","DST-S-D","","","VNM","JPN",17066.7,null,"CERDI"]
[null,"DST-S-D,,,VNM,KOR","DST-S-D","","","VNM","KOR",3425.83,null,"CERDI"]
[null,"DST-S-D,,,VNM,NLD","DST-S-D","","","VNM","NLD",13891,null,"CERDI"]
[null,"DST-S-D,,,VNM,USA","DST-S-D","","","VNM","USA",12906.4,null,"CERDI"]
[null,"DST-S-D,,,ZAF,CHN","DST-S-D","","","ZAF","CHN",12852.2,null,"CERDI"]
[null,"DST-S-D,,,ZAF,DEU","DST-S-D","","","ZAF","DEU",11789.832,null,"SEA-DISTANCES.ORG"]
[null,"DST-S-D,,,ZAF,ESP","DST-S-D","","","ZAF","ESP",11662.6,null,"CERDI"]
[null,"DST-S-D,,,ZAF,FRA","DST-S-D","","","ZAF","FRA",10912.4,null,"CERDI"]
[null,"DST-S-D,,,ZAF,IND","DST-S-D","","","ZAF","IND",7432.11,null,"CERDI"]
[null,"DST-S-D,,,ZAF,JPN","DST-S-D","","","ZAF","JPN",13881.4,null,"CERDI"]
[null,"DST-S-D,,,ZAF,KOR","DST-S-D","","","ZAF","KOR",13593.9,null,"CERDI"]
[null,"DST-S-D,,,ZAF,NLD","DST-S-D","","","ZAF","NLD",13501.1,null,"CERDI"]
[null,"DST-S-D,,,ZAF,USA","DST-S-D","","","ZAF","USA",15010.8,null,"CERDI"]
[null,"DST-S-D,,,ZAF-EC,CHN","DST-S-D","","","ZAF-EC","CHN",12852.2,null,"CERDI"]
[null,"DST-S-D,,,ZAF-EC,DEU","DST-S-D","","","ZAF-EC","DEU",11789.832,null,"SEA-DISTANCES.ORG"]
[null,"DST-S-D,,,ZAF-EC,ESP","DST-S-D","","","ZAF-EC","ESP",11662.6,null,"CERDI"]
[null,"DST-S-D,,,ZAF-EC,FRA","DST-S-D","","","ZAF-EC","FRA",10912.4,null,"CERDI"]
[null,"DST-S-D,,,ZAF-EC,IND","DST-S-D","","","ZAF-EC","IND",7432.11,null,"CERDI"]
[null,"DST-S-D,,,ZAF-EC,JPN","DST-S-D","","","ZAF-EC","JPN",13881.4,null,"CERDI"]
[null,"DST-S-D,,,ZAF-EC,KOR","DST-S-D","","","ZAF-EC","KOR",13593.9,null,"CERDI"]
[null,"DST-S-D,,,ZAF-EC,NLD","DST-S-D","","","ZAF-EC","NLD",13501.1,null,"CERDI"]
[null,"DST-S-D,,,ZAF-EC,USA","DST-S-D","","","ZAF-EC","USA",15010.8,null,"CERDI"]
[null,"DST-S-D,,,ZAF-FRS,CHN","DST-S-D","","","ZAF-FRS","CHN",12852.2,null,"CERDI"]
[null,"DST-S-D,,,ZAF-FRS,DEU","DST-S-D","","","ZAF-FRS","DEU",11789.832,null,"SEA-DISTANCES.ORG"]
[null,"DST-S-D,,,ZAF-FRS,ESP","DST-S-D","","","ZAF-FRS","ESP",11662.6,null,"CERDI"]
[null,"DST-S-D,,,ZAF-FRS,FRA","DST-S-D","","","ZAF-FRS","FRA",10912.4,null,"CERDI"]
[null,"DST-S-D,,,ZAF-FRS,IND","DST-S-D","","","ZAF-FRS","IND",7432.11,null,"CERDI"]
[null,"DST-S-D,,,ZAF-FRS,JPN","DST-S-D","","","ZAF-FRS","JPN",13881.4,null,"CERDI"]
[null,"DST-S-D,,,ZAF-FRS,KOR","DST-S-D","","","ZAF-FRS","KOR",13593.9,null,"CERDI"]
[null,"DST-S-D,,,ZAF-FRS,NLD","DST-S-D","","","ZAF-FRS","NLD",13501.1,null,"CERDI"]
[null,"DST-S-D,,,ZAF-FRS,USA","DST-S-D","","","ZAF-FRS","USA",15010.8,null,"CERDI"]
[null,"DST-S-D,,,ZAF-GAU,CHN","DST-S-D","","","ZAF-GAU","CHN",12852.2,null,"CERDI"]
[null,"DST-S-D,,,ZAF-GAU,DEU","DST-S-D","","","ZAF-GAU","DEU",11789.832,null,"SEA-DISTANCES.ORG"]
[null,"DST-S-D,,,ZAF-GAU,ESP","DST-S-D","","","ZAF-GAU","ESP",11662.6,null,"CERDI"]
[null,"DST-S-D,,,ZAF-GAU,FRA","DST-S-D","","","ZAF-GAU","FRA",10912.4,null,"CERDI"]
[null,"DST-S-D,,,ZAF-GAU,IND","DST-S-D","","","ZAF-GAU","IND",7432.11,null,"CERDI"]
[null,"DST-S-D,,,ZAF-GAU,JPN","DST-S-D","","","ZAF-GAU","JPN",13881.4,null,"CERDI"]
[null,"DST-S-D,,,ZAF-GAU,KOR","DST-S-D","","","ZAF-GAU","KOR",13593.9,null,"CERDI"]
[null,"DST-S-D,,,ZAF-GAU,NLD","DST-S-D","","","ZAF-GAU","NLD",13501.1,null,"CERDI"]
[null,"DST-S-D,,,ZAF-GAU,USA","DST-S-D","","","ZAF-GAU","USA",15010.8,null,"CERDI"]
[null,"DST-S-D,,,ZAF-KWA,CHN","DST-S-D","","","ZAF-KWA","CHN",12852.2,null,"CERDI"]
[null,"DST-S-D,,,ZAF-KWA,DEU","DST-S-D","","","ZAF-KWA","DEU",11789.832,null,"SEA-DISTANCES.ORG"]
[null,"DST-S-D,,,ZAF-KWA,ESP","DST-S-D","","","ZAF-KWA","ESP",11662.6,null,"CERDI"]
[null,"DST-S-D,,,ZAF-KWA,FRA","DST-S-D","","","ZAF-KWA","FRA",10912.4,null,"CERDI"]
[null,"DST-S-D,,,ZAF-KWA,IND","DST-S-D","","","ZAF-KWA","IND",7432.11,null,"CERDI"]
[null,"DST-S-D,,,ZAF-KWA,JPN","DST-S-D","","","ZAF-KWA","JPN",13881.4,null,"CERDI"]
[null,"DST-S-D,,,ZAF-KWA,KOR","DST-S-D","","","ZAF-KWA","KOR",13593.9,null,"CERDI"]
[null,"DST-S-D,,,ZAF-KWA,NLD","DST-S-D","","","ZAF-KWA","NLD",13501.1,null,"CERDI"]
[null,"DST-S-D,,,ZAF-KWA,USA","DST-S-D","","","ZAF-KWA","USA",15010.8,null,"CERDI"]
[null,"DST-S-D,,,ZAF-LIM,CHN","DST-S-D","","","ZAF-LIM","CHN",12852.2,null,"CERDI"]
[null,"DST-S-D,,,ZAF-LIM,DEU","DST-S-D","","","ZAF-LIM","DEU",11789.832,null,"SEA-DISTANCES.ORG"]
[null,"DST-S-D,,,ZAF-LIM,ESP","DST-S-D","","","ZAF-LIM","ESP",11662.6,null,"CERDI"]
[null,"DST-S-D,,,ZAF-LIM,FRA","DST-S-D","","","ZAF-LIM","FRA",10912.4,null,"CERDI"]
[null,"DST-S-D,,,ZAF-LIM,IND","DST-S-D","","","ZAF-LIM","IND",7432.11,null,"CERDI"]
[null,"DST-S-D,,,ZAF-LIM,JPN","DST-S-D","","","ZAF-LIM","JPN",13881.4,null,"CERDI"]
[null,"DST-S-D,,,ZAF-LIM,KOR","DST-S-D","","","ZAF-LIM","KOR",13593.9,null,"CERDI"]
[null,"DST-S-D,,,ZAF-LIM,NLD","DST-S-D","","","ZAF-LIM","NLD",13501.1,null,"CERDI"]
[null,"DST-S-D,,,ZAF-LIM,USA","DST-S-D","","","ZAF-LIM","USA",15010.8,null,"CERDI"]
[null,"DST-S-D,,,ZAF-MPU,CHN","DST-S-D","","","ZAF-MPU","CHN",12852.2,null,"CERDI"]
[null,"DST-S-D,,,ZAF-MPU,DEU","DST-S-D","","","ZAF-MPU","DEU",11789.832,null,"SEA-DISTANCES.ORG"]
[null,"DST-S-D,,,ZAF-MPU,ESP","DST-S-D","","","ZAF-MPU","ESP",11662.6,null,"CERDI"]
[null,"DST-S-D,,,ZAF-MPU,FRA","DST-S-D","","","ZAF-MPU","FRA",10912.4,null,"CERDI"]
[null,"DST-S-D,,,ZAF-MPU,IND","DST-S-D","","","ZAF-MPU","IND",7432.11,null,"CERDI"]
[null,"DST-S-D,,,ZAF-MPU,JPN","DST-S-D","","","ZAF-MPU","JPN",13881.4,null,"CERDI"]
[null,"DST-S-D,,,ZAF-MPU,KOR","DST-S-D","","","ZAF-MPU","KOR",13593.9,null,"CERDI"]
[null,"DST-S-D,,,ZAF-MPU,NLD","DST-S-D","","","ZAF-MPU","NLD",13501.1,null,"CERDI"]
[null,"DST-S-D,,,ZAF-MPU,USA","DST-S-D","","","ZAF-MPU","USA",15010.8,null,"CERDI"]
[null,"DST-S-D,,,ZAF-NC,CHN","DST-S-D","","","ZAF-NC","CHN",12852.2,null,"CERDI"]
[null,"DST-S-D,,,ZAF-NC,DEU","DST-S-D","","","ZAF-NC","DEU",11789.832,null,"SEA-DISTANCES.ORG"]
[null,"DST-S-D,,,ZAF-NC,ESP","DST-S-D","","","ZAF-NC","ESP",11662.6,null,"CERDI"]
[null,"DST-S-D,,,ZAF-NC,FRA","DST-S-D","","","ZAF-NC","FRA",10912.4,null,"CERDI"]
[null,"DST-S-D,,,ZAF-NC,IND","DST-S-D","","","ZAF-NC","IND",7432.11,null,"CERDI"]
[null,"DST-S-D,,,ZAF-NC,JPN","DST-S-D","","","ZAF-NC","JPN",13881.4,null,"CERDI"]
[null,"DST-S-D,,,ZAF-NC,KOR","DST-S-D","","","ZAF-NC","KOR",13593.9,null,"CERDI"]
[null,"DST-S-D,,,ZAF-NC,NLD","DST-S-D","","","ZAF-NC","NLD",13501.1,null,"CERDI"]
[null,"DST-S-D,,,ZAF-NC,USA","DST-S-D","","","ZAF-NC","USA",15010.8,null,"CERDI"]
[null,"DST-S-D,,,ZAF-NW,CHN","DST-S-D","","","ZAF-NW","CHN",12852.2,null,"CERDI"]
[null,"DST-S-D,,,ZAF-NW,DEU","DST-S-D","","","ZAF-NW","DEU",11789.832,null,"SEA-DISTANCES.ORG"]
[null,"DST-S-D,,,ZAF-NW,ESP","DST-S-D","","","ZAF-NW","ESP",11662.6,null,"CERDI"]
[null,"DST-S-D,,,ZAF-NW,FRA","DST-S-D","","","ZAF-NW","FRA",10912.4,null,"CERDI"]
[null,"DST-S-D,,,ZAF-NW,IND","DST-S-D","","","ZAF-NW","IND",7432.11,null,"CERDI"]
[null,"DST-S-D,,,ZAF-NW,JPN","DST-S-D","","","ZAF-NW","JPN",13881.4,null,"CERDI"]
[null,"DST-S-D,,,ZAF-NW,KOR","DST-S-D","","","ZAF-NW","KOR",13593.9,null,"CERDI"]
[null,"DST-S-D,,,ZAF-NW,NLD","DST-S-D","","","ZAF-NW","NLD",13501.1,null,"CERDI"]
[null,"DST-S-D,,,ZAF-NW,USA","DST-S-D","","","ZAF-NW","USA",15010.8,null,"CERDI"]
[null,"DST-S-D,,,ZAF-WC,CHN","DST-S-D","","","ZAF-WC","CHN",12852.2,null,"CERDI"]
[null,"DST-S-D,,,ZAF-WC,DEU","DST-S-D","","","ZAF-WC","DEU",11789.832,null,"SEA-DISTANCES.ORG"]
[null,"DST-S-D,,,ZAF-WC,ESP","DST-S-D","","","ZAF-WC","ESP",11662.6,null,"CERDI"]
[null,"DST-S-D,,,ZAF-WC,FRA","DST-S-D","","","ZAF-WC","FRA",10912.4,null,"CERDI"]
[null,"DST-S-D,,,ZAF-WC,IND","DST-S-D","","","ZAF-WC","IND",7432.11,null,"CERDI"]
[null,"DST-S-D,,,ZAF-WC,JPN","DST-S-D","","","ZAF-WC","JPN",13881.4,null,"CERDI"]
[null,"DST-S-D,,,ZAF-WC,KOR","DST-S-D","","","ZAF-WC","KOR",13593.9,null,"CERDI"]
[null,"DST-S-D,,,ZAF-WC,NLD","DST-S-D","","","ZAF-WC","NLD",13501.1,null,"CERDI"]
[null,"DST-S-D,,,ZAF-WC,USA","DST-S-D","","","ZAF-WC","USA",15010.8,null,"CERDI"]
[null,"DST-S-DP,,,ARE,CHN","DST-S-DP","","","ARE","CHN",4500,"km","Research Susanne Krieger"]
[null,"DST-S-DP,,,ARE,DEU","DST-S-DP","","","ARE","DEU",5500,"km","Research Susanne Krieger"]
[null,"DST-S-DP,,,ARE,ESP","DST-S-DP","","","ARE","ESP",6000,"km","Research Susanne Krieger"]
[null,"DST-S-DP,,,ARE,FRA","DST-S-DP","","","ARE","FRA",6000,"km","Research Susanne Krieger"]
[null,"DST-S-DP,,,ARE,IND","DST-S-DP","","","ARE","IND",2000,"km","Research Susanne Krieger"]
[null,"DST-S-DP,,,ARE,NLD","DST-S-DP","","","ARE","NLD",6000,"km","Research Susanne Krieger"]
[null,"DST-S-DP,,,CHN,IND","DST-S-DP","","","CHN","IND",3500,"km","Research Susanne Krieger"]
[null,"DST-S-DP,,,CHN,JPN","DST-S-DP","","","CHN","JPN",3500,"km","Research Susanne Krieger"]
[null,"DST-S-DP,,,CHN,KOR","DST-S-DP","","","CHN","KOR",2000,"km","Research Susanne Krieger"]
[null,"DST-S-DP,,,COL,USA","DST-S-DP","","","COL","USA",4500,"km","Research Susanne Krieger"]
[null,"DST-S-DP,,,CRI,USA","DST-S-DP","","","CRI","USA",3500,"km","Research Susanne Krieger"]
[null,"DST-S-DP,,,DNK,DEU","DST-S-DP","","","DNK","DEU",500,"km","Research Susanne Krieger"]
[null,"DST-S-DP,,,DNK,ESP","DST-S-DP","","","DNK","ESP",2000,"km","Research Susanne Krieger"]
[null,"DST-S-DP,,,DNK,FRA","DST-S-DP","","","DNK","FRA",1000,"km","Research Susanne Krieger"]
[null,"DST-S-DP,,,DNK,NLD","DST-S-DP","","","DNK","NLD",500,"km","Research Susanne Krieger"]
[null,"DST-S-DP,,,DZA,DEU","DST-S-DP","","","DZA","DEU",3000,"km","Research Susanne Krieger"]
[null,"DST-S-DP,,,DZA,ESP","DST-S-DP","","","DZA","ESP",1000,"km","Research Susanne Krieger"]
[null,"DST-S-DP,,,DZA,FRA","DST-S-DP","","","DZA","FRA",2000,"km","Research Susanne Krieger"]
[null,"DST-S-DP,,,DZA,NLD","DST-S-DP","","","DZA","NLD",3000,"km","Research Susanne Krieger"]
[null,"DST-S-DP,,,EGY,DEU","DST-S-DP","","","EGY","DEU",5000,"km","Research Susanne Krieger"]
[null,"DST-S-DP,,,EGY,ESP","DST-S-DP","","","EGY","ESP",4500,"km","Research Susanne Krieger"]
[null,"DST-S-DP,,,EGY,FRA","DST-S-DP","","","EGY","FRA",4000,"km","Research Susanne Krieger"]
[null,"DST-S-DP,,,EGY,IND","DST-S-DP","","","EGY","IND",5000,"km","Research Susanne Krieger"]
[null,"DST-S-DP,,,EGY,NLD","DST-S-DP","","","EGY","NLD",5000,"km","Research Susanne Krieger"]
[null,"DST-S-DP,,,ESP,DEU","DST-S-DP","","","ESP","DEU",1500,"km","Research Susanne Krieger"]
[null,"DST-S-DP,,,ESP,FRA","DST-S-DP","","","ESP","FRA",100,"km","Research Susanne Krieger"]
[null,"DST-S-DP,,,ESP,NLD","DST-S-DP","","","ESP","NLD",1500,"km","Research Susanne Krieger"]
[null,"DST-S-DP,,,IDN,CHN","DST-S-DP","","","IDN","CHN",4000,"km","Research Susanne Krieger"]
[null,"DST-S-DP,,,IDN,IND","DST-S-DP","","","IDN","IND",5000,"km","Research Susanne Krieger"]
[null,"DST-S-DP,,,IDN,JPN","DST-S-DP","","","IDN","JPN",5500,"km","Research Susanne Krieger"]
[null,"DST-S-DP,,,IDN,KOR","DST-S-DP","","","IDN","KOR",5500,"km","Research Susanne Krieger"]
[null,"DST-S-DP,,,IND,CHN","DST-S-DP","","","IND","CHN",3000,"km","Research Susanne Krieger"]
[null,"DST-S-DP,,,JOR,DEU","DST-S-DP","","","JOR","DEU",3500,"km","Research Susanne Krieger"]
[null,"DST-S-DP,,,JOR,ESP","DST-S-DP","","","JOR","ESP",4000,"km","Research Susanne Krieger"]
[null,"DST-S-DP,,,JOR,FRA","DST-S-DP","","","JOR","FRA",4000,"km","Research Susanne Krieger"]
[null,"DST-S-DP,,,JOR,IND","DST-S-DP","","","JOR","IND",4500,"km","Research Susanne Krieger"]
[null,"DST-S-DP,,,JOR,NLD","DST-S-DP","","","JOR","NLD",4000,"km","Research Susanne Krieger"]
[null,"DST-S-DP,,,KAZ,CHN","DST-S-DP","","","KAZ","CHN",1500,"km","Research Susanne Krieger"]
[null,"DST-S-DP,,,KAZ,DEU","DST-S-DP","","","KAZ","DEU",3500,"km","Research Susanne Krieger"]
[null,"DST-S-DP,,,KAZ,ESP","DST-S-DP","","","KAZ","ESP",5000,"km","Research Susanne Krieger"]
[null,"DST-S-DP,,,KAZ,FRA","DST-S-DP","","","KAZ","FRA",4000,"km","Research Susanne Krieger"]
[null,"DST-S-DP,,,KAZ,IND","DST-S-DP","","","KAZ","IND",3000,"km","Research Susanne Krieger"]
[null,"DST-S-DP,,,KAZ,NLD","DST-S-DP","","","KAZ","NLD",4000,"km","Research Susanne Krieger"]
[null,"DST-S-DP,,,KEN,IND","DST-S-DP","","","KEN","IND",5000,"km","Research Susanne Krieger"]
[null,"DST-S-DP,,,MAR,DEU","DST-S-DP","","","MAR","DEU",2500,"km","Research Susanne Krieger"]
[null,"DST-S-DP,,,MAR,ESP","DST-S-DP","","","MAR","ESP",250,"km","Research Susanne Krieger"]
[null,"DST-S-DP,,,MAR,FRA","DST-S-DP","","","MAR","FRA",2000,"km","Research Susanne Krieger"]
[null,"DST-S-DP,,,MAR,NLD","DST-S-DP","","","MAR","NLD",2500,"km","Research Susanne Krieger"]
[null,"DST-S-DP,,,MAR-BEN,DEU","DST-S-DP","","","MAR-BEN","DEU",2500,"km","Research Susanne Krieger"]
[null,"DST-S-DP,,,MAR-BEN,ESP","DST-S-DP","","","MAR-BEN","ESP",250,"km","Research Susanne Krieger"]
[null,"DST-S-DP,,,MAR-BEN,FRA","DST-S-DP","","","MAR-BEN","FRA",2000,"km","Research Susanne Krieger"]
[null,"DST-S-DP,,,MAR-BEN,NLD","DST-S-DP","","","MAR-BEN","NLD",2500,"km","Research Susanne Krieger"]
[null,"DST-S-DP,,,MAR-CAS,DEU","DST-S-DP","","","MAR-CAS","DEU",2500,"km","Research Susanne Krieger"]
[null,"DST-S-DP,,,MAR-CAS,ESP","DST-S-DP","","","MAR-CAS","ESP",250,"km","Research Susanne Krieger"]
[null,"DST-S-DP,,,MAR-CAS,FRA","DST-S-DP","","","MAR-CAS","FRA",2000,"km","Research Susanne Krieger"]
[null,"DST-S-DP,,,MAR-CAS,NLD","DST-S-DP","","","MAR-CAS","NLD",2500,"km","Research Susanne Krieger"]
[null,"DST-S-DP,,,MAR-DAK,DEU","DST-S-DP","","","MAR-DAK","DEU",2500,"km","Research Susanne Krieger"]
[null,"DST-S-DP,,,MAR-DAK,ESP","DST-S-DP","","","MAR-DAK","ESP",250,"km","Research Susanne Krieger"]
[null,"DST-S-DP,,,MAR-DAK,FRA","DST-S-DP","","","MAR-DAK","FRA",2000,"km","Research Susanne Krieger"]
[null,"DST-S-DP,,,MAR-DAK,NLD","DST-S-DP","","","MAR-DAK","NLD",2500,"km","Research Susanne Krieger"]
[null,"DST-S-DP,,,MAR-DRA,DEU","DST-S-DP","","","MAR-DRA","DEU",2500,"km","Research Susanne Krieger"]
[null,"DST-S-DP,,,MAR-DRA,ESP","DST-S-DP","","","MAR-DRA","ESP",250,"km","Research Susanne Krieger"]
[null,"DST-S-DP,,,MAR-DRA,FRA","DST-S-DP","","","MAR-DRA","FRA",2000,"km","Research Susanne Krieger"]
[null,"DST-S-DP,,,MAR-DRA,NLD","DST-S-DP","","","MAR-DRA","NLD",2500,"km","Research Susanne Krieger"]
[null,"DST-S-DP,,,MAR-FES,DEU","DST-S-DP","","","MAR-FES","DEU",2500,"km","Research Susanne Krieger"]
[null,"DST-S-DP,,,MAR-FES,ESP","DST-S-DP","","","MAR-FES","ESP",250,"km","Research Susanne Krieger"]
[null,"DST-S-DP,,,MAR-FES,FRA","DST-S-DP","","","MAR-FES","FRA",2000,"km","Research Susanne Krieger"]
[null,"DST-S-DP,,,MAR-FES,NLD","DST-S-DP","","","MAR-FES","NLD",2500,"km","Research Susanne Krieger"]
[null,"DST-S-DP,,,MAR-GUE,DEU","DST-S-DP","","","MAR-GUE","DEU",2500,"km","Research Susanne Krieger"]
[null,"DST-S-DP,,,MAR-GUE,ESP","DST-S-DP","","","MAR-GUE","ESP",250,"km","Research Susanne Krieger"]
[null,"DST-S-DP,,,MAR-GUE,FRA","DST-S-DP","","","MAR-GUE","FRA",2000,"km","Research Susanne Krieger"]
[null,"DST-S-DP,,,MAR-GUE,NLD","DST-S-DP","","","MAR-GUE","NLD",2500,"km","Research Susanne Krieger"]
[null,"DST-S-DP,,,MAR-LAA,DEU","DST-S-DP","","","MAR-LAA","DEU",2500,"km","Research Susanne Krieger"]
[null,"DST-S-DP,,,MAR-LAA,ESP","DST-S-DP","","","MAR-LAA","ESP",250,"km","Research Susanne Krieger"]
[null,"DST-S-DP,,,MAR-LAA,FRA","DST-S-DP","","","MAR-LAA","FRA",2000,"km","Research Susanne Krieger"]
[null,"DST-S-DP,,,MAR-LAA,NLD","DST-S-DP","","","MAR-LAA","NLD",2500,"km","Research Susanne Krieger"]
[null,"DST-S-DP,,,MAR-LOR,DEU","DST-S-DP","","","MAR-LOR","DEU",2500,"km","Research Susanne Krieger"]
[null,"DST-S-DP,,,MAR-LOR,ESP","DST-S-DP","","","MAR-LOR","ESP",250,"km","Research Susanne Krieger"]
[null,"DST-S-DP,,,MAR-LOR,FRA","DST-S-DP","","","MAR-LOR","FRA",2000,"km","Research Susanne Krieger"]
[null,"DST-S-DP,,,MAR-LOR,NLD","DST-S-DP","","","MAR-LOR","NLD",2500,"km","Research Susanne Krieger"]
[null,"DST-S-DP,,,MAR-MAR,DEU","DST-S-DP","","","MAR-MAR","DEU",2500,"km","Research Susanne Krieger"]
[null,"DST-S-DP,,,MAR-MAR,ESP","DST-S-DP","","","MAR-MAR","ESP",250,"km","Research Susanne Krieger"]
[null,"DST-S-DP,,,MAR-MAR,FRA","DST-S-DP","","","MAR-MAR","FRA",2000,"km","Research Susanne Krieger"]
[null,"DST-S-DP,,,MAR-MAR,NLD","DST-S-DP","","","MAR-MAR","NLD",2500,"km","Research Susanne Krieger"]
[null,"DST-S-DP,,,MAR-RAB,DEU","DST-S-DP","","","MAR-RAB","DEU",2500,"km","Research Susanne Krieger"]
[null,"DST-S-DP,,,MAR-RAB,ESP","DST-S-DP","","","MAR-RAB","ESP",250,"km","Research Susanne Krieger"]
[null,"DST-S-DP,,,MAR-RAB,FRA","DST-S-DP","","","MAR-RAB","FRA",2000,"km","Research Susanne Krieger"]
[null,"DST-S-DP,,,MAR-RAB,NLD","DST-S-DP","","","MAR-RAB","NLD",2500,"km","Research Susanne Krieger"]
[null,"DST-S-DP,,,MAR-SOU,DEU","DST-S-DP","","","MAR-SOU","DEU",2500,"km","Research Susanne Krieger"]
[null,"DST-S-DP,,,MAR-SOU,ESP","DST-S-DP","","","MAR-SOU","ESP",250,"km","Research Susanne Krieger"]
[null,"DST-S-DP,,,MAR-SOU,FRA","DST-S-DP","","","MAR-SOU","FRA",2000,"km","Research Susanne Krieger"]
[null,"DST-S-DP,,,MAR-SOU,NLD","DST-S-DP","","","MAR-SOU","NLD",2500,"km","Research Susanne Krieger"]
[null,"DST-S-DP,,,MAR-TAN,DEU","DST-S-DP","","","MAR-TAN","DEU",2500,"km","Research Susanne Krieger"]
[null,"DST-S-DP,,,MAR-TAN,ESP","DST-S-DP","","","MAR-TAN","ESP",250,"km","Research Susanne Krieger"]
[null,"DST-S-DP,,,MAR-TAN,FRA","DST-S-DP","","","MAR-TAN","FRA",2000,"km","Research Susanne Krieger"]
[null,"DST-S-DP,,,MAR-TAN,NLD","DST-S-DP","","","MAR-TAN","NLD",2500,"km","Research Susanne Krieger"]
[null,"DST-S-DP,,,MEX,USA","DST-S-DP","","","MEX","USA",500,"km","Research Susanne Krieger"]
[null,"DST-S-DP,,,MRT,DEU","DST-S-DP","","","MRT","DEU",5000,"km","Research Susanne Krieger"]
[null,"DST-S-DP,,,MRT,ESP","DST-S-DP","","","MRT","ESP",3000,"km","Research Susanne Krieger"]
[null,"DST-S-DP,,,MRT,FRA","DST-S-DP","","","MRT","FRA",4000,"km","Research Susanne Krieger"]
[null,"DST-S-DP,,,MRT,NLD","DST-S-DP","","","MRT","NLD",5000,"km","Research Susanne Krieger"]
[null,"DST-S-DP,,,NOR,DEU","DST-S-DP","","","NOR","DEU",500,"km","Research Susanne Krieger"]
[null,"DST-S-DP,,,NOR,ESP","DST-S-DP","","","NOR","ESP",2000,"km","Research Susanne Krieger"]
[null,"DST-S-DP,,,NOR,FRA","DST-S-DP","","","NOR","FRA",1000,"km","Research Susanne Krieger"]
[null,"DST-S-DP,,,NOR,NLD","DST-S-DP","","","NOR","NLD",1000,"km","Research Susanne Krieger"]
[null,"DST-S-DP,,,PER,USA","DST-S-DP","","","PER","USA",5500,"km","Research Susanne Krieger"]
[null,"DST-S-DP,,,PRT,DEU","DST-S-DP","","","PRT","DEU",2000,"km","Research Susanne Krieger"]
[null,"DST-S-DP,,,PRT,ESP","DST-S-DP","","","PRT","ESP",250,"km","Research Susanne Krieger"]
[null,"DST-S-DP,,,PRT,FRA","DST-S-DP","","","PRT","FRA",1000,"km","Research Susanne Krieger"]
[null,"DST-S-DP,,,PRT,NLD","DST-S-DP","","","PRT","NLD",2000,"km","Research Susanne Krieger"]
[null,"DST-S-DP,,,RUS,CHN","DST-S-DP","","","RUS","CHN",4000,"km","Research Susanne Krieger"]
[null,"DST-S-DP,,,RUS,DEU","DST-S-DP","","","RUS","DEU",1000,"km","Research Susanne Krieger"]
[null,"DST-S-DP,,,RUS,ESP","DST-S-DP","","","RUS","ESP",5000,"km","Research Susanne Krieger"]
[null,"DST-S-DP,,,RUS,FRA","DST-S-DP","","","RUS","FRA",4000,"km","Research Susanne Krieger"]
[null,"DST-S-DP,,,RUS,IND","DST-S-DP","","","RUS","IND",4000,"km","Research Susanne Krieger"]
[null,"DST-S-DP,,,RUS,JPN","DST-S-DP","","","RUS","JPN",4000,"km","Research Susanne Krieger"]
[null,"DST-S-DP,,,RUS,KOR","DST-S-DP","","","RUS","KOR",3000,"km","Research Susanne Krieger"]
[null,"DST-S-DP,,,RUS,NLD","DST-S-DP","","","RUS","NLD",4000,"km","Research Susanne Krieger"]
[null,"DST-S-DP,,,SAU,DEU","DST-S-DP","","","SAU","DEU",4500,"km","Research Susanne Krieger"]
[null,"DST-S-DP,,,SAU,ESP","DST-S-DP","","","SAU","ESP",5000,"km","Research Susanne Krieger"]
[null,"DST-S-DP,,,SAU,FRA","DST-S-DP","","","SAU","FRA",5000,"km","Research Susanne Krieger"]
[null,"DST-S-DP,,,SAU,IND","DST-S-DP","","","SAU","IND",3500,"km","Research Susanne Krieger"]
[null,"DST-S-DP,,,SAU,NLD","DST-S-DP","","","SAU","NLD",5000,"km","Research Susanne Krieger"]
[null,"DST-S-DP,,,SWE,DEU","DST-S-DP","","","SWE","DEU",1000,"km","Research Susanne Krieger"]
[null,"DST-S-DP,,,SWE,ESP","DST-S-DP","","","SWE","ESP",3000,"km","Research Susanne Krieger"]
[null,"DST-S-DP,,,SWE,FRA","DST-S-DP","","","SWE","FRA",2000,"km","Research Susanne Krieger"]
[null,"DST-S-DP,,,SWE,NLD","DST-S-DP","","","SWE","NLD",2000,"km","Research Susanne Krieger"]
[null,"DST-S-DP,,,THA,CHN","DST-S-DP","","","THA","CHN",1500,"km","Research Susanne Krieger"]
[null,"DST-S-DP,,,THA,IND","DST-S-DP","","","THA","IND",2500,"km","Research Susanne Krieger"]
[null,"DST-S-DP,,,THA,JPN","DST-S-DP","","","THA","JPN",5000,"km","Research Susanne Krieger"]
[null,"DST-S-DP,,,THA,KOR","DST-S-DP","","","THA","KOR",5000,"km","Research Susanne Krieger"]
[null,"DST-S-DP,,,TUN,DEU","DST-S-DP","","","TUN","DEU",2000,"km","Research Susanne Krieger"]
[null,"DST-S-DP,,,TUN,ESP","DST-S-DP","","","TUN","ESP",1500,"km","Research Susanne Krieger"]
[null,"DST-S-DP,,,TUN,FRA","DST-S-DP","","","TUN","FRA",1000,"km","Research Susanne Krieger"]
[null,"DST-S-DP,,,TUN,NLD","DST-S-DP","","","TUN","NLD",2500,"km","Research Susanne Krieger"]
[null,"DST-S-DP,,,UKR,DEU","DST-S-DP","","","UKR","DEU",1500,"km","Research Susanne Krieger"]
[null,"DST-S-DP,,,UKR,ESP","DST-S-DP","","","UKR","ESP",3000,"km","Research Susanne Krieger"]
[null,"DST-S-DP,,,UKR,FRA","DST-S-DP","","","UKR","FRA",2000,"km","Research Susanne Krieger"]
[null,"DST-S-DP,,,UKR,NLD","DST-S-DP","","","UKR","NLD",2000,"km","Research Susanne Krieger"]
[null,"DST-S-DP,,,VNM,CHN","DST-S-DP","","","VNM","CHN",1000,"km","Research Susanne Krieger"]
[null,"DST-S-DP,,,VNM,IND","DST-S-DP","","","VNM","IND",3500,"km","Research Susanne Krieger"]
[null,"DST-S-DP,,,VNM,JPN","DST-S-DP","","","VNM","JPN",4000,"km","Research Susanne Krieger"]
[null,"DST-S-DP,,,VNM,KOR","DST-S-DP","","","VNM","KOR",5000,"km","Research Susanne Krieger"]
[null,"EFF,AEL-EL,,,","EFF","AEL-EL","","","",0.69,"various (output per main input)"]
[null,"EFF,ATR,,,","EFF","ATR","","","",0.79991999999999996,"various (output per main input)","Oni et al. 2022"]
[null,"EFF,CH3OHSYN,,,","EFF","CH3OHSYN","","","",0.80300000000000005,"various (output per main input)","Frontier Economics 2021"]
[null,"EFF,CH4-RGAS,,,","EFF","CH4-RGAS","","","",0.98,"various (output per main input)","Pospíšil et al. 2019"]
[null,"EFF,CH4SYN,,,","EFF","CH4SYN","","","",0.83,"various (output per main input)","Öko-Institut 2020"]
[null,"EFF,DESAL,,,","EFF","DESAL","","","",1,"various (output per main input)"]
[null,"EFF,DRI,,,","EFF","DRI","","","",0.35759897828863341,"kg DRI (s)/kwhh2","Agora Industry Transformation 2021"]
[null,"EFF,EFUELSYN,,,","EFF","EFUELSYN","","","",0.73,"various (output per main input)","Frontier Economics 2021"]
[null,"EFF,H2-LIQ,,,","EFF","H2-LIQ","","","",1,"various (output per main input)"]
[null,"EFF,H2-RGAS,,,","EFF","H2-RGAS","","","",0.99789789789789785,"various (output per main input)","DNV GL 2020"]
[null,"EFF,LOHC-REC,,,","EFF","LOHC-REC","","","",0.9,"various (output per main input)","DNV GL 2020"]
[null,"EFF,NH3-REC,,,","EFF","NH3-REC","","","",0.74152542372881358,"various (output per main input)","NGN; Equinor 2018"]
[null,"EFF,NH3SYN,,,","EFF","NH3SYN","","","",0.81899999999999995,"various (output per main input)","Frotier Economics 2021"]
[null,"EFF,PEM-EL,,,","EFF","PEM-EL","","","",0.67,"various (output per main input)"]
[null,"EFF,REGASATR,,,","EFF","REGASATR","","","",0.77991999999999995,"various (output per main input)","combined values"]
[null,"EFF,SOEC-EL,,,","EFF","SOEC-EL","","","",0.73,"various (output per main input)"]
[null,"FLH,AEL-EL,,,","FLH","AEL-EL","","","",3861.9141914191418,"h","average of PTX Atlas"]
[null,"FLH,DRI,,,","FLH","DRI","","","",7884,"0"]
[null,"FLH,NH3SYN,,,","FLH","NH3SYN","","","",8000,"h","Fasihi et al. 2021"]
[null,"FLH,PEM-EL,,,","FLH","PEM-EL","","","",3861.9141914191418,"h","average of PTX Atlas"]
[null,"FLH,PV-FIX,,ARE,","FLH","PV-FIX","","ARE","",1662,"h"]
[null,"FLH,PV-FIX,,ARG,","FLH","PV-FIX","","ARG","",1494,"h"]
[null,"FLH,PV-FIX,,ARG-BA,","FLH","PV-FIX","","ARG-BA","",1501.409990284945,"h"]
[null,"FLH,PV-FIX,,ARG-CAT,","FLH","PV-FIX","","ARG-CAT","",2184.2849520000136,"h"]
[null,"FLH,PV-FIX,,ARG-CBA,","FLH","PV-FIX","","ARG-CBA","",1472.2464967200012,"h"]
[null,"FLH,PV-FIX,,ARG-CHA,","FLH","PV-FIX","","ARG-CHA","",1462.293405359997,"h"]
[null,"FLH,PV-FIX,,ARG-CHU,","FLH","PV-FIX","","ARG-CHU","",1565.6552791200011,"h"]
[null,"FLH,PV-FIX,,ARG-COR,","FLH","PV-FIX","","ARG-COR","",1411.9226517600005,"h"]
[null,"FLH,PV-FIX,,ARG-CRB,","FLH","PV-FIX","","ARG-CRB","",1571.8333939199993,"h"]
[null,"FLH,PV-FIX,,ARG-CRU,","FLH","PV-FIX","","ARG-CRU","",1419.2559755999985,"h"]
[null,"FLH,PV-FIX,,ARG-EST,","FLH","PV-FIX","","ARG-EST","",1553.4726681600023,"h"]
[null,"FLH,PV-FIX,,ARG-FOR,","FLH","PV-FIX","","ARG-FOR","",1449.92262888,"h"]
[null,"FLH,PV-FIX,,ARG-FUE,","FLH","PV-FIX","","ARG-FUE","",919.59809255999858,"h"]
[null,"FLH,PV-FIX,,ARG-JUJ,","FLH","PV-FIX","","ARG-JUJ","",2038.9844970000051,"h"]
[null,"FLH,PV-FIX,,ARG-LAR,","FLH","PV-FIX","","ARG-LAR","",1927.5699347999985,"h"]
[null,"FLH,PV-FIX,,ARG-MEN,","FLH","PV-FIX","","ARG-MEN","",1738.9096295999984,"h"]
[null,"FLH,PV-FIX,,ARG-MIS,","FLH","PV-FIX","","ARG-MIS","",1441.0558828799994,"h"]
[null,"FLH,PV-FIX,,ARG-NEG,","FLH","PV-FIX","","ARG-NEG","",1598.6654748000003,"h"]
[null,"FLH,PV-FIX,,ARG-NEU,","FLH","PV-FIX","","ARG-NEU","",1672.0413458399996,"h"]
[null,"FLH,PV-FIX,,ARG-PAM,","FLH","PV-FIX","","ARG-PAM","",1585.1219047199993,"h"]
[null,"FLH,PV-FIX,,ARG-RIO,","FLH","PV-FIX","","ARG-RIO","",1444.5405770399989,"h"]
[null,"FLH,PV-FIX,,ARG-SAF,","FLH","PV-FIX","","ARG-SAF","",1463.6960647199994,"h"]
[null,"FLH,PV-FIX,,ARG-SAJ,","FLH","PV-FIX","","ARG-SAJ","",1798.3159226999983,"h"]
[null,"FLH,PV-FIX,,ARG-SAL,","FLH","PV-FIX","","ARG-SAL","",1674.9613511999978,"h"]
[null,"FLH,PV-FIX,,ARG-SAT,","FLH","PV-FIX","","ARG-SAT","",1564.1549919000008,"h"]
[null,"FLH,PV-FIX,,ARG-TUC,","FLH","PV-FIX","","ARG-TUC","",1670.31158688,"h"]
[null,"FLH,PV-FIX,,AUS,","FLH","PV-FIX","","AUS","",1557,"h"]
[null,"FLH,PV-FIX,,BRA,","FLH","PV-FIX","","BRA","",1346,"h"]
[null,"FLH,PV-FIX,,CHL,","FLH","PV-FIX","","CHL","",1939,"h"]
[null,"FLH,PV-FIX,,CHN,","FLH","PV-FIX","","CHN","",1845.4554144000026,"h"]
[null,"FLH,PV-FIX,,COL,","FLH","PV-FIX","","COL","",1300,"h"]
[null,"FLH,PV-FIX,,CRI,","FLH","PV-FIX","","CRI","",1336.1040323999978,"h"]
[null,"FLH,PV-FIX,,DNK,","FLH","PV-FIX","","DNK","",957.75962760000073,"h"]
[null,"FLH,PV-FIX,,DZA,","FLH","PV-FIX","","DZA","",1699,"h"]
[null,"FLH,PV-FIX,,EGY,","FLH","PV-FIX","","EGY","",1744,"h"]
[null,"FLH,PV-FIX,,ESP,","FLH","PV-FIX","","ESP","",1567.2650796000021,"h"]
[null,"FLH,PV-FIX,,IDN,","FLH","PV-FIX","","IDN","",1506,"h"]
[null,"FLH,PV-FIX,,IND,","FLH","PV-FIX","","IND","",1562,"h"]
[null,"FLH,PV-FIX,,JOR,","FLH","PV-FIX","","JOR","",1792,"h"]
[null,"FLH,PV-FIX,,KAZ,","FLH","PV-FIX","","KAZ","",1425,"h"]
[null,"FLH,PV-FIX,,KEN,","FLH","PV-FIX","","KEN","",1418,"h"]
[null,"FLH,PV-FIX,,MAR,","FLH","PV-FIX","","MAR","",1631,"h"]
[null,"FLH,PV-FIX,,MAR-BEN,","FLH","PV-FIX","","MAR-BEN","",1745.3384668799999,"h"]
[null,"FLH,PV-FIX,,MAR-CAS,","FLH","PV-FIX","","MAR-CAS","",1665.7276233599982,"h"]
[null,"FLH,PV-FIX,,MAR-DAK,","FLH","PV-FIX","","MAR-DAK","",1728.1917287999981,"h"]
[null,"FLH,PV-FIX,,MAR-DRA,","FLH","PV-FIX","","MAR-DRA","",1808.0709587999988,"h"]
[null,"FLH,PV-FIX,,MAR-FES,","FLH","PV-FIX","","MAR-FES","",1678.0894264800027,"h"]
[null,"FLH,PV-FIX,,MAR-GUE,","FLH","PV-FIX","","MAR-GUE","",1758.0457144800002,"h"]
[null,"FLH,PV-FIX,,MAR-LAA,","FLH","PV-FIX","","MAR-LAA","",1742.770432080001,"h"]
[null,"FLH,PV-FIX,,MAR-LOR,","FLH","PV-FIX","","MAR-LOR","",1709.8854897600017,"h"]
[null,"FLH,PV-FIX,,MAR-MAR,","FLH","PV-FIX","","MAR-MAR","",1734.1491045599982,"h"]
[null,"FLH,PV-FIX,,MAR-RAB,","FLH","PV-FIX","","MAR-RAB","",1620.7182007199983,"h"]
[null,"FLH,PV-FIX,,MAR-SOU,","FLH","PV-FIX","","MAR-SOU","",1800.775983599998,"h"]
[null,"FLH,PV-FIX,,MAR-TAN,","FLH","PV-FIX","","MAR-TAN","",1615.309697519999,"h"]
[null,"FLH,PV-FIX,,MEX,","FLH","PV-FIX","","MEX","",1731,"h"]
[null,"FLH,PV-FIX,,MRT,","FLH","PV-FIX","","MRT","",1657,"h"]
[null,"FLH,PV-FIX,,NAM,","FLH","PV-FIX","","NAM","",1859.5896948000045,"h"]
[null,"FLH,PV-FIX,,NOR,","FLH","PV-FIX","","NOR","",845.30347200000051,"h"]
[null,"FLH,PV-FIX,,PER,","FLH","PV-FIX","","PER","",1746,"h"]
[null,"FLH,PV-FIX,,PRT,","FLH","PV-FIX","","PRT","",1445.5080791999967,"h"]
[null,"FLH,PV-FIX,,RUS,","FLH","PV-FIX","","RUS","",1173,"h"]
[null,"FLH,PV-FIX,,SAU,","FLH","PV-FIX","","SAU","",1723,"h"]
[null,"FLH,PV-FIX,,SWE,","FLH","PV-FIX","","SWE","",886.08134879999852,"h"]
[null,"FLH,PV-FIX,,THA,","FLH","PV-FIX","","THA","",1254.531981600001,"h"]
[null,"FLH,PV-FIX,,TUN,","FLH","PV-FIX","","TUN","",1611,"h"]
[null,"FLH,PV-FIX,,UKR,","FLH","PV-FIX","","UKR","",1398.7297331999989,"h"]
[null,"FLH,PV-FIX,,URY,","FLH","PV-FIX","","URY","",1338,"h"]
[null,"FLH,PV-FIX,,USA,","FLH","PV-FIX","","USA","",1593,"h"]
[null,"FLH,PV-FIX,,VNM,","FLH","PV-FIX","","VNM","",1266.9854976000001,"h"]
[null,"FLH,PV-FIX,,ZAF,","FLH","PV-FIX","","ZAF","",1603,"h"]
[null,"FLH,PV-FIX,,ZAF-EC,","FLH","PV-FIX","","ZAF-EC","",1725.7083537599988,"h"]
[null,"FLH,PV-FIX,,ZAF-FRS,","FLH","PV-FIX","","ZAF-FRS","",1808.769283199998,"h"]
[null,"FLH,PV-FIX,,ZAF-GAU,","FLH","PV-FIX","","ZAF-GAU","",1770.0387314399968,"h"]
[null,"FLH,PV-FIX,,ZAF-KWA,","FLH","PV-FIX","","ZAF-KWA","",1694.9134799999979,"h"]
[null,"FLH,PV-FIX,,ZAF-LIM,","FLH","PV-FIX","","ZAF-LIM","",1711.457395919999,"h"]
[null,"FLH,PV-FIX,,ZAF-MPU,","FLH","PV-FIX","","ZAF-MPU","",1752.2448955200002,"h"]
[null,"FLH,PV-FIX,,ZAF-NC,","FLH","PV-FIX","","ZAF-NC","",1814.9242226399974,"h"]
[null,"FLH,PV-FIX,,ZAF-NW,","FLH","PV-FIX","","ZAF-NW","",1786.6500962399978,"h"]
[null,"FLH,PV-FIX,,ZAF-WC,","FLH","PV-FIX","","ZAF-WC","",1664.7200798400002,"h"]
[null,"FLH,RES-HYBR,,ARE,","FLH","RES-HYBR","","ARE","",3116.3347803479924,"h"]
[null,"FLH,RES-HYBR,,ARG,","FLH","RES-HYBR","","ARG","",5660.92,"h"]
[null,"FLH,RES-HYBR,,ARG-BA,","FLH","RES-HYBR","","ARG-BA","",4945.8767126930315,"h"]
[null,"FLH,RES-HYBR,,ARG-CAT,","FLH","RES-HYBR","","ARG-CAT","",4818.1134165187877,"h"]
[null,"FLH,RES-HYBR,,ARG-CBA,","FLH","RES-HYBR","","ARG-CBA","",4796.3272366469528,"h"]
[null,"FLH,RES-HYBR,,ARG-CHA,","FLH","RES-HYBR","","ARG-CHA","",4353.1801274671416,"h"]
[null,"FLH,RES-HYBR,,ARG-CHU,","FLH","RES-HYBR","","ARG-CHU","",6390.4146064505558,"h"]
[null,"FLH,RES-HYBR,,ARG-COR,","FLH","RES-HYBR","","ARG-COR","",4296.9749353692923,"h"]
[null,"FLH,RES-HYBR,,ARG-CRB,","FLH","RES-HYBR","","ARG-CRB","",4058.0540031422247,"h"]
[null,"FLH,RES-HYBR,,ARG-CRU,","FLH","RES-HYBR","","ARG-CRU","",6369.4767112831887,"h"]
[null,"FLH,RES-HYBR,,ARG-EST,","FLH","RES-HYBR","","ARG-EST","",4886.4479918271754,"h"]
[null,"FLH,RES-HYBR,,ARG-FOR,","FLH","RES-HYBR","","ARG-FOR","",4947.3662874337479,"h"]
[null,"FLH,RES-HYBR,,ARG-FUE,","FLH","RES-HYBR","","ARG-FUE","",4348.7759583573197,"h"]
[null,"FLH,RES-HYBR,,ARG-JUJ,","FLH","RES-HYBR","","ARG-JUJ","",5341.5292254807428,"h"]
[null,"FLH,RES-HYBR,,ARG-LAR,","FLH","RES-HYBR","","ARG-LAR","",4993.6358442638966,"h"]
[null,"FLH,RES-HYBR,,ARG-MEN,","FLH","RES-HYBR","","ARG-MEN","",4634.7425576878331,"h"]
[null,"FLH,RES-HYBR,,ARG-MIS,","FLH","RES-HYBR","","ARG-MIS","",3199.5290500507745,"h"]
[null,"FLH,RES-HYBR,,ARG-NEG,","FLH","RES-HYBR","","ARG-NEG","",5871.0170147807694,"h"]
[null,"FLH,RES-HYBR,,ARG-NEU,","FLH","RES-HYBR","","ARG-NEU","",5150.2668537210066,"h"]
[null,"FLH,RES-HYBR,,ARG-PAM,","FLH","RES-HYBR","","ARG-PAM","",5140.6823491886607,"h"]
[null,"FLH,RES-HYBR,,ARG-RIO,","FLH","RES-HYBR","","ARG-RIO","",4336.8044520469111,"h"]
[null,"FLH,RES-HYBR,,ARG-SAF,","FLH","RES-HYBR","","ARG-SAF","",4440.5215244686588,"h"]
[null,"FLH,RES-HYBR,,ARG-SAJ,","FLH","RES-HYBR","","ARG-SAJ","",4214.2631306310104,"h"]
[null,"FLH,RES-HYBR,,ARG-SAL,","FLH","RES-HYBR","","ARG-SAL","",5055.8296990927674,"h"]
[null,"FLH,RES-HYBR,,ARG-SAT,","FLH","RES-HYBR","","ARG-SAT","",4747.3079047460951,"h"]
[null,"FLH,RES-HYBR,,ARG-TUC,","FLH","RES-HYBR","","ARG-TUC","",3565.3259655172683,"h"]
[null,"FLH,RES-HYBR,,AUS,","FLH","RES-HYBR","","AUS","",4753.97,"h"]
[null,"FLH,RES-HYBR,,BRA,","FLH","RES-HYBR","","BRA","",5155.55,"h"]
[null,"FLH,RES-HYBR,,CHL,","FLH","RES-HYBR","","CHL","",3450.29,"h"]
[null,"FLH,RES-HYBR,,CHN,","FLH","RES-HYBR","","CHN","",5183.707028904495,"h"]
[null,"FLH,RES-HYBR,,COL,","FLH","RES-HYBR","","COL","",5503,"h"]
[null,"FLH,RES-HYBR,,CRI,","FLH","RES-HYBR","","CRI","",3421.5147964974931,"h"]
[null,"FLH,RES-HYBR,,DNK,","FLH","RES-HYBR","","DNK","",5197.0268387719998,"h"]
[null,"FLH,RES-HYBR,,DZA,","FLH","RES-HYBR","","DZA","",4270.91,"h"]
[null,"FLH,RES-HYBR,,EGY,","FLH","RES-HYBR","","EGY","",4644.3599999999997,"h"]
[null,"FLH,RES-HYBR,,ESP,","FLH","RES-HYBR","","ESP","",5668.5234185745076,"h"]
[null,"FLH,RES-HYBR,,IDN,","FLH","RES-HYBR","","IDN","",2496.284437136494,"h"]
[null,"FLH,RES-HYBR,,IND,","FLH","RES-HYBR","","IND","",4890.74,"h"]
[null,"FLH,RES-HYBR,,JOR,","FLH","RES-HYBR","","JOR","",2376.5,"h"]
[null,"FLH,RES-HYBR,,KAZ,","FLH","RES-HYBR","","KAZ","",5289.962108140493,"h"]
[null,"FLH,RES-HYBR,,KEN,","FLH","RES-HYBR","","KEN","",3668.54,"h"]
[null,"FLH,RES-HYBR,,MAR,","FLH","RES-HYBR","","MAR","",4739.42,"h"]
[null,"FLH,RES-HYBR,,MAR-BEN,","FLH","RES-HYBR","","MAR-BEN","",3352.6974508185135,"h"]
[null,"FLH,RES-HYBR,,MAR-CAS,","FLH","RES-HYBR","","MAR-CAS","",4107.461264954989,"h"]
[null,"FLH,RES-HYBR,,MAR-DAK,","FLH","RES-HYBR","","MAR-DAK","",6342.17431498525,"h"]
[null,"FLH,RES-HYBR,,MAR-DRA,","FLH","RES-HYBR","","MAR-DRA","",4442.5500678171611,"h"]
[null,"FLH,RES-HYBR,,MAR-FES,","FLH","RES-HYBR","","MAR-FES","",3693.5166831944407,"h"]
[null,"FLH,RES-HYBR,,MAR-GUE,","FLH","RES-HYBR","","MAR-GUE","",5015.1834420732221,"h"]
[null,"FLH,RES-HYBR,,MAR-LAA,","FLH","RES-HYBR","","MAR-LAA","",5823.2278770450366,"h"]
[null,"FLH,RES-HYBR,,MAR-LOR,","FLH","RES-HYBR","","MAR-LOR","",4805.6356254658413,"h"]
[null,"FLH,RES-HYBR,,MAR-MAR,","FLH","RES-HYBR","","MAR-MAR","",3574.4335757714989,"h"]
[null,"FLH,RES-HYBR,,MAR-RAB,","FLH","RES-HYBR","","MAR-RAB","",3447.3598533759478,"h"]
[null,"FLH,RES-HYBR,,MAR-SOU,","FLH","RES-HYBR","","MAR-SOU","",4479.2641726234597,"h"]
[null,"FLH,RES-HYBR,,MAR-TAN,","FLH","RES-HYBR","","MAR-TAN","",4503.3511393000135,"h"]
[null,"FLH,RES-HYBR,,MEX,","FLH","RES-HYBR","","MEX","",4219.5,"h"]
[null,"FLH,RES-HYBR,,MRT,","FLH","RES-HYBR","","MRT","",6214.79,"h"]
[null,"FLH,RES-HYBR,,NAM,","FLH","RES-HYBR","","NAM","",6766.4489765195067,"h"]
[null,"FLH,RES-HYBR,,NOR,","FLH","RES-HYBR","","NOR","",4955.9832041924956,"h"]
[null,"FLH,RES-HYBR,,PER,","FLH","RES-HYBR","","PER","",2965.29,"h"]
[null,"FLH,RES-HYBR,,PRT,","FLH","RES-HYBR","","PRT","",5677.7820377284897,"h"]
[null,"FLH,RES-HYBR,,RUS,","FLH","RES-HYBR","","RUS","",3549.23,"h"]
[null,"FLH,RES-HYBR,,SAU,","FLH","RES-HYBR","","SAU","",3830.5299999999997,"h"]
[null,"FLH,RES-HYBR,,SWE,","FLH","RES-HYBR","","SWE","",3823.9828340194917,"h"]
[null,"FLH,RES-HYBR,,THA,","FLH","RES-HYBR","","THA","",3569.5369351590002,"h"]
[null,"FLH,RES-HYBR,,TUN,","FLH","RES-HYBR","","TUN","",4306.8,"h"]
[null,"FLH,RES-HYBR,,UKR,","FLH","RES-HYBR","","UKR","",5019.1641120944814,"h"]
[null,"FLH,RES-HYBR,,URY,","FLH","RES-HYBR","","URY","",4775.3099999999995,"h"]
[null,"FLH,RES-HYBR,,USA,","FLH","RES-HYBR","","USA","",5067.28,"h"]
[null,"FLH,RES-HYBR,,VNM,","FLH","RES-HYBR","","VNM","",4699.5574412419974,"h"]
[null,"FLH,RES-HYBR,,ZAF,","FLH","RES-HYBR","","ZAF","",4382.46,"h"]
[null,"FLH,RES-HYBR,,ZAF-EC,","FLH","RES-HYBR","","ZAF-EC","",5288.7578237093758,"h"]
[null,"FLH,RES-HYBR,,ZAF-FRS,","FLH","RES-HYBR","","ZAF-FRS","",4425.6106106284642,"h"]
[null,"FLH,RES-HYBR,,ZAF-GAU,","FLH","RES-HYBR","","ZAF-GAU","",3757.1990000000001,"h"]
[null,"FLH,RES-HYBR,,ZAF-KWA,","FLH","RES-HYBR","","ZAF-KWA","",4268.4057445788794,"h"]
[null,"FLH,RES-HYBR,,ZAF-LIM,","FLH","RES-HYBR","","ZAF-LIM","",4233.3590689024513,"h"]
[null,"FLH,RES-HYBR,,ZAF-MPU,","FLH","RES-HYBR","","ZAF-MPU","",4233.3590689024513,"h"]
[null,"FLH,RES-HYBR,,ZAF-NC,","FLH","RES-HYBR","","ZAF-NC","",5250.5102949318216,"h"]
[null,"FLH,RES-HYBR,,ZAF-NW,","FLH","RES-HYBR","","ZAF-NW","",4461.2336445282735,"h"]
[null,"FLH,RES-HYBR,,ZAF-WC,","FLH","RES-HYBR","","ZAF-WC","",4751.4057997393265,"h"]
[null,"FLH,SOEC-EL,,,","FLH","SOEC-EL","","","",5519.7223140495871,"h","average of PTX Atlas"]
[null,"FLH,WIND-OFF,,ARE,","FLH","WIND-OFF","","ARE","",2453,"h","Bosch et al. 2018"]
[null,"FLH,WIND-OFF,,ARG,","FLH","WIND-OFF","","ARG","",5369,"h","Bosch et al. 2018"]
[null,"FLH,WIND-OFF,,ARG-BA,","FLH","WIND-OFF","","ARG-BA","",3854.4,"h","Bosch et al. 2018"]
[null,"FLH,WIND-OFF,,ARG-CBA,","FLH","WIND-OFF","","ARG-CBA","",3854.4,"h","Bosch et al. 2018"]
[null,"FLH,WIND-OFF,,ARG-CHU,","FLH","WIND-OFF","","ARG-CHU","",5763.0835753699857,"h","Bosch et al. 2018"]
[null,"FLH,WIND-OFF,,ARG-CRU,","FLH","WIND-OFF","","ARG-CRU","",5854.9926980599967,"h","Bosch et al. 2018"]
[null,"FLH,WIND-OFF,,ARG-FUE,","FLH","WIND-OFF","","ARG-FUE","",3854.4,"h","Bosch et al. 2018"]
[null,"FLH,WIND-OFF,,ARG-NEG,","FLH","WIND-OFF","","ARG-NEG","",4738.1899020500086,"h","Bosch et al. 2018"]
[null,"FLH,WIND-OFF,,AUS,","FLH","WIND-OFF","","AUS","",4205,"h","Bosch et al. 2018"]
[null,"FLH,WIND-OFF,,BRA,","FLH","WIND-OFF","","BRA","",3854,"h","Bosch et al. 2018"]
[null,"FLH,WIND-OFF,,CHL,","FLH","WIND-OFF","","CHL","",6034,"h","Bosch et al. 2018"]
[null,"FLH,WIND-OFF,,CHN,","FLH","WIND-OFF","","CHN","",3592,"h","Bosch et al. 2018"]
[null,"FLH,WIND-OFF,,COL,","FLH","WIND-OFF","","COL","",4269,"h"]
[null,"FLH,WIND-OFF,,CRI,","FLH","WIND-OFF","","CRI","",2803,"h","Bosch et al. 2018"]
[null,"FLH,WIND-OFF,,DNK,","FLH","WIND-OFF","","DNK","",4730.4000000000005,"h","Bosch et al. 2018"]
[null,"FLH,WIND-OFF,,DZA,","FLH","WIND-OFF","","DZA","",3066,"h","Bosch et al. 2018"]
[null,"FLH,WIND-OFF,,EGY,","FLH","WIND-OFF","","EGY","",3066,"h","Bosch et al. 2018"]
[null,"FLH,WIND-OFF,,ESP,","FLH","WIND-OFF","","ESP","",4277,"h","Bosch et al. 2018"]
[null,"FLH,WIND-OFF,,IDN,","FLH","WIND-OFF","","IDN","",2453,"h","Bosch et al. 2018"]
[null,"FLH,WIND-OFF,,IND,","FLH","WIND-OFF","","IND","",3567,"h","Bosch et al. 2018"]
[null,"FLH,WIND-OFF,,KAZ,","FLH","WIND-OFF","","KAZ","",3697,"h","Bosch et al. 2018"]
[null,"FLH,WIND-OFF,,KEN,","FLH","WIND-OFF","","KEN","",3329,"h","Bosch et al. 2018"]
[null,"FLH,WIND-OFF,,MAR,","FLH","WIND-OFF","","MAR","",4643,"h","Bosch et al. 2018"]
[null,"FLH,WIND-OFF,,MAR-CAS,","FLH","WIND-OFF","","MAR-CAS","",4642.8,"h","Bosch et al. 2018"]
[null,"FLH,WIND-OFF,,MAR-DAK,","FLH","WIND-OFF","","MAR-DAK","",5181.7820854799875,"h","Bosch et al. 2018"]
[null,"FLH,WIND-OFF,,MAR-GUE,","FLH","WIND-OFF","","MAR-GUE","",4642.8,"h","Bosch et al. 2018"]
[null,"FLH,WIND-OFF,,MAR-LAA,","FLH","WIND-OFF","","MAR-LAA","",4642.8,"h","Bosch et al. 2018"]
[null,"FLH,WIND-OFF,,MAR-LOR,","FLH","WIND-OFF","","MAR-LOR","",4642.8,"h","Bosch et al. 2018"]
[null,"FLH,WIND-OFF,,MAR-MAR,","FLH","WIND-OFF","","MAR-MAR","",4642.8,"h","Bosch et al. 2018"]
[null,"FLH,WIND-OFF,,MAR-RAB,","FLH","WIND-OFF","","MAR-RAB","",4642.8,"h","Bosch et al. 2018"]
[null,"FLH,WIND-OFF,,MAR-SOU,","FLH","WIND-OFF","","MAR-SOU","",4642.8,"h","Bosch et al. 2018"]
[null,"FLH,WIND-OFF,,MAR-TAN,","FLH","WIND-OFF","","MAR-TAN","",4642.8,"h","Bosch et al. 2018"]
[null,"FLH,WIND-OFF,,MEX,","FLH","WIND-OFF","","MEX","",4042,"h","Bosch et al. 2018"]
[null,"FLH,WIND-OFF,,MRT,","FLH","WIND-OFF","","MRT","",4750,"h","Bosch et al. 2018"]
[null,"FLH,WIND-OFF,,NAM,","FLH","WIND-OFF","","NAM","",5116,"h","Bosch et al. 2018"]
[null,"FLH,WIND-OFF,,NOR,","FLH","WIND-OFF","","NOR","",4730,"h","Bosch et al. 2018"]
[null,"FLH,WIND-OFF,,PER,","FLH","WIND-OFF","","PER","",3854,"h","Bosch et al. 2018"]
[null,"FLH,WIND-OFF,,PRT,","FLH","WIND-OFF","","PRT","",4408,"h","Bosch et al. 2018"]
[null,"FLH,WIND-OFF,,RUS,","FLH","WIND-OFF","","RUS","",4522,"h","Bosch et al. 2018"]
[null,"FLH,WIND-OFF,,SAU,","FLH","WIND-OFF","","SAU","",2453,"h","Bosch et al. 2018"]
[null,"FLH,WIND-OFF,,SWE,","FLH","WIND-OFF","","SWE","",4730,"h","Bosch et al. 2018"]
[null,"FLH,WIND-OFF,,THA,","FLH","WIND-OFF","","THA","",2453,"h","Bosch et al. 2018"]
[null,"FLH,WIND-OFF,,TUN,","FLH","WIND-OFF","","TUN","",3066,"h","Bosch et al. 2018"]
[null,"FLH,WIND-OFF,,UKR,","FLH","WIND-OFF","","UKR","",3066,"h","Bosch et al. 2018"]
[null,"FLH,WIND-OFF,,URY,","FLH","WIND-OFF","","URY","",3854,"h","Bosch et al. 2018"]
[null,"FLH,WIND-OFF,,USA,","FLH","WIND-OFF","","USA","",4030,"h","Bosch et al. 2018"]
[null,"FLH,WIND-OFF,,VNM,","FLH","WIND-OFF","","VNM","",3578,"h","Bosch et al. 2018"]
[null,"FLH,WIND-OFF,,ZAF,","FLH","WIND-OFF","","ZAF","",4117,"h","Bosch et al. 2018"]
[null,"FLH,WIND-OFF,,ZAF-EC,","FLH","WIND-OFF","","ZAF-EC","",4117.2,"h","Bosch et al. 2018"]
[null,"FLH,WIND-OFF,,ZAF-KWA,","FLH","WIND-OFF","","ZAF-KWA","",4117.2,"h","Bosch et al. 2018"]
[null,"FLH,WIND-OFF,,ZAF-NC,","FLH","WIND-OFF","","ZAF-NC","",4117.2,"h","Bosch et al. 2018"]
[null,"FLH,WIND-OFF,,ZAF-WC,","FLH","WIND-OFF","","ZAF-WC","",4117.2,"h","Bosch et al. 2018"]
[null,"FLH,WIND-ON,,ARE,","FLH","WIND-ON","","ARE","",1642.3104587999985,"h"]
[null,"FLH,WIND-ON,,ARG,","FLH","WIND-ON","","ARG","",5369,"h"]
[null,"FLH,WIND-ON,,ARG-BA,","FLH","WIND-ON","","ARG-BA","",3756.6367058000046,"h"]
[null,"FLH,WIND-ON,,ARG-CAT,","FLH","WIND-ON","","ARG-CAT","",2884.1487291833364,"h"]
[null,"FLH,WIND-ON,,ARG-CBA,","FLH","WIND-ON","","ARG-CBA","",3601.8171951299964,"h"]
[null,"FLH,WIND-ON,,ARG-CHA,","FLH","WIND-ON","","ARG-CHA","",3079.6049933000008,"h"]
[null,"FLH,WIND-ON,,ARG-CHU,","FLH","WIND-ON","","ARG-CHU","",5763.0835753699857,"h"]
[null,"FLH,WIND-ON,,ARG-COR,","FLH","WIND-ON","","ARG-COR","",3045.2758197400012,"h"]
[null,"FLH,WIND-ON,,ARG-CRB,","FLH","WIND-ON","","ARG-CRB","",2605.2082556500004,"h"]
[null,"FLH,WIND-ON,,ARG-CRU,","FLH","WIND-ON","","ARG-CRU","",5854.9926980599967,"h"]
[null,"FLH,WIND-ON,,ARG-EST,","FLH","WIND-ON","","ARG-EST","",3710.4766984999937,"h"]
[null,"FLH,WIND-ON,,ARG-FOR,","FLH","WIND-ON","","ARG-FOR","",3781.7001483800022,"h"]
[null,"FLH,WIND-ON,,ARG-FUE,","FLH","WIND-ON","","ARG-FUE","",3710.4766984999937,"h"]
[null,"FLH,WIND-ON,,ARG-JUJ,","FLH","WIND-ON","","ARG-JUJ","",3773.9698333333426,"h"]
[null,"FLH,WIND-ON,,ARG-LAR,","FLH","WIND-ON","","ARG-LAR","",3188.6275809666754,"h"]
[null,"FLH,WIND-ON,,ARG-MEN,","FLH","WIND-ON","","ARG-MEN","",3077.1630279499932,"h"]
[null,"FLH,WIND-ON,,ARG-MIS,","FLH","WIND-ON","","ARG-MIS","",1777.2726296600022,"h"]
[null,"FLH,WIND-ON,,ARG-NEG,","FLH","WIND-ON","","ARG-NEG","",4738.1899020500086,"h"]
[null,"FLH,WIND-ON,,ARG-NEU,","FLH","WIND-ON","","ARG-NEU","",3956.5844284999962,"h"]
[null,"FLH,WIND-ON,,ARG-PAM,","FLH","WIND-ON","","ARG-PAM","",3897.7887775199929,"h"]
[null,"FLH,WIND-ON,,ARG-RIO,","FLH","WIND-ON","","ARG-RIO","",3070.126660369996,"h"]
[null,"FLH,WIND-ON,,ARG-SAF,","FLH","WIND-ON","","ARG-SAF","",3158.174208530002,"h"]
[null,"FLH,WIND-ON,,ARG-SAJ,","FLH","WIND-ON","","ARG-SAJ","",2534.5746024499945,"h"]
[null,"FLH,WIND-ON,,ARG-SAL,","FLH","WIND-ON","","ARG-SAL","",3657.6108475499996,"h"]
[null,"FLH,WIND-ON,,ARG-SAT,","FLH","WIND-ON","","ARG-SAT","",3418.5372058749972,"h"]
[null,"FLH,WIND-ON,,ARG-TUC,","FLH","WIND-ON","","ARG-TUC","",1908.3186970833303,"h"]
[null,"FLH,WIND-ON,,AUS,","FLH","WIND-ON","","AUS","",3971,"h"]
[null,"FLH,WIND-ON,,BRA,","FLH","WIND-ON","","BRA","",3517,"h"]
[null,"FLH,WIND-ON,,CHL,","FLH","WIND-ON","","CHL","",6034,"h"]
[null,"FLH,WIND-ON,,CHN,","FLH","WIND-ON","","CHN","",3250,"h"]
[null,"FLH,WIND-ON,,COL,","FLH","WIND-ON","","COL","",4269,"h"]
[null,"FLH,WIND-ON,,CRI,","FLH","WIND-ON","","CRI","",2191.2308093499951,"h"]
[null,"FLH,WIND-ON,,DNK,","FLH","WIND-ON","","DNK","",4400,"h"]
[null,"FLH,WIND-ON,,DZA,","FLH","WIND-ON","","DZA","",2738,"h"]
[null,"FLH,WIND-ON,,EGY,","FLH","WIND-ON","","EGY","",3045,"h"]
[null,"FLH,WIND-ON,,ESP,","FLH","WIND-ON","","ESP","",4276.5734962500064,"h"]
[null,"FLH,WIND-ON,,IDN,","FLH","WIND-ON","","IDN","",1150.7783336499949,"h"]
[null,"FLH,WIND-ON,,IND,","FLH","WIND-ON","","IND","",3567,"h"]
[null,"FLH,WIND-ON,,JOR,","FLH","WIND-ON","","JOR","",667,"h"]
[null,"FLH,WIND-ON,,KAZ,","FLH","WIND-ON","","KAZ","",3697,"h"]
[null,"FLH,WIND-ON,,KEN,","FLH","WIND-ON","","KEN","",2364,"h"]
[null,"FLH,WIND-ON,,MAR,","FLH","WIND-ON","","MAR","",3289,"h"]
[null,"FLH,WIND-ON,,MAR-BEN,","FLH","WIND-ON","","MAR-BEN","",1563.4934093166669,"h"]
[null,"FLH,WIND-ON,,MAR-CAS,","FLH","WIND-ON","","MAR-CAS","",2513.2012449499989,"h"]
[null,"FLH,WIND-ON,,MAR-DAK,","FLH","WIND-ON","","MAR-DAK","",5181.7820854799875,"h"]
[null,"FLH,WIND-ON,,MAR-DRA,","FLH","WIND-ON","","MAR-DRA","",2724.0904536999979,"h"]
[null,"FLH,WIND-ON,,MAR-FES,","FLH","WIND-ON","","MAR-FES","",2050.2642833200007,"h"]
[null,"FLH,WIND-ON,,MAR-GUE,","FLH","WIND-ON","","MAR-GUE","",3542.2692728499992,"h"]
[null,"FLH,WIND-ON,,MAR-LAA,","FLH","WIND-ON","","MAR-LAA","",4616.7798365699955,"h"]
[null,"FLH,WIND-ON,,MAR-LOR,","FLH","WIND-ON","","MAR-LOR","",3320.8164008250001,"h"]
[null,"FLH,WIND-ON,,MAR-MAR,","FLH","WIND-ON","","MAR-MAR","",1820.4342362250004,"h"]
[null,"FLH,WIND-ON,,MAR-RAB,","FLH","WIND-ON","","MAR-RAB","",1826.0421998500019,"h"]
[null,"FLH,WIND-ON,,MAR-SOU,","FLH","WIND-ON","","MAR-SOU","",2799.5123925999974,"h"]
[null,"FLH,WIND-ON,,MAR-TAN,","FLH","WIND-ON","","MAR-TAN","",2979.4188451500013,"h"]
[null,"FLH,WIND-ON,,MEX,","FLH","WIND-ON","","MEX","",4042,"h"]
[null,"FLH,WIND-ON,,MRT,","FLH","WIND-ON","","MRT","",4750,"h"]
[null,"FLH,WIND-ON,,NAM,","FLH","WIND-ON","","NAM","",5116.1308995500021,"h"]
[null,"FLH,WIND-ON,,NOR,","FLH","WIND-ON","","NOR","",4263.9575632499955,"h"]
[null,"FLH,WIND-ON,,PER,","FLH","WIND-ON","","PER","",1448,"h"]
[null,"FLH,WIND-ON,,PRT,","FLH","WIND-ON","","PRT","",4407.8754648499926,"h"]
[null,"FLH,WIND-ON,,RUS,","FLH","WIND-ON","","RUS","",4522,"h"]
[null,"FLH,WIND-ON,,SAU,","FLH","WIND-ON","","SAU","",2282,"h"]
[null,"FLH,WIND-ON,,SWE,","FLH","WIND-ON","","SWE","",3056.1689955499933,"h"]
[null,"FLH,WIND-ON,,THA,","FLH","WIND-ON","","THA","",2425.4030030999993,"h"]
[null,"FLH,WIND-ON,,TUN,","FLH","WIND-ON","","TUN","",2843,"h"]
[null,"FLH,WIND-ON,,UKR,","FLH","WIND-ON","","UKR","",2769,"h"]
[null,"FLH,WIND-ON,,URY,","FLH","WIND-ON","","URY","",3594,"h"]
[null,"FLH,WIND-ON,,USA,","FLH","WIND-ON","","USA","",3503,"h"]
[null,"FLH,WIND-ON,,VNM,","FLH","WIND-ON","","VNM","",3577.9190809999977,"h"]
[null,"FLH,WIND-ON,,ZAF,","FLH","WIND-ON","","ZAF","",3070,"h"]
[null,"FLH,WIND-ON,,ZAF-EC,","FLH","WIND-ON","","ZAF-EC","",3914.4857524666741,"h"]
[null,"FLH,WIND-ON,,ZAF-FRS,","FLH","WIND-ON","","ZAF-FRS","",2775.7070136400025,"h"]
[null,"FLH,WIND-ON,,ZAF-GAU,","FLH","WIND-ON","","ZAF-GAU","",2069.9309253700035,"h"]
[null,"FLH,WIND-ON,,ZAF-KWA,","FLH","WIND-ON","","ZAF-KWA","",2682.3634953500023,"h"]
[null,"FLH,WIND-ON,,ZAF-LIM,","FLH","WIND-ON","","ZAF-LIM","",2627.5496087499969,"h"]
[null,"FLH,WIND-ON,,ZAF-MPU,","FLH","WIND-ON","","ZAF-MPU","",2612.1821174166703,"h"]
[null,"FLH,WIND-ON,,ZAF-NC,","FLH","WIND-ON","","ZAF-NC","",3748.8309036749974,"h"]
[null,"FLH,WIND-ON,,ZAF-NW,","FLH","WIND-ON","","ZAF-NW","",3092.6134290333307,"h"]
[null,"FLH,WIND-ON,,ZAF-WC,","FLH","WIND-ON","","ZAF-WC","",3346.6670672599976,"h"]
[null,"LIFETIME,AEL-EL,,,","LIFETIME","AEL-EL","","","",20,"years"]
[null,"LIFETIME,ATR,,,","LIFETIME","ATR","","","",25,"years","Oni et al. 2022"]
[null,"LIFETIME,CH3OH-S,,,","LIFETIME","CH3OH-S","","","",30,"years","UNSW Sydney 2021"]
[null,"LIFETIME,CH3OH-SB,,,","LIFETIME","CH3OH-SB","","","",30,"years","UNSW Sydney 2021"]
[null,"LIFETIME,CH3OHSYN,,,","LIFETIME","CH3OHSYN","","","",30,"years","Öko-Institut 2020"]
[null,"LIFETIME,CH4-COMP,,,","LIFETIME","CH4-COMP","","","",20,"years","DNV GL 2020"]
[null,"LIFETIME,CH4-LIQ,,,","LIFETIME","CH4-LIQ","","","",30,"years","UNSW Sydney 2021"]
[null,"LIFETIME,CH4-P-L,,,","LIFETIME","CH4-P-L","","","",40,"years"]
[null,"LIFETIME,CH4-P-LR,,,","LIFETIME","CH4-P-LR","","","",40,"years"]
[null,"LIFETIME,CH4-P-S,,,","LIFETIME","CH4-P-S","","","",40,"years"]
[null,"LIFETIME,CH4-P-SR,,,","LIFETIME","CH4-P-SR","","","",40,"years"]
[null,"LIFETIME,CH4-S,,,","LIFETIME","CH4-S","","","",30,"years","UNSW Sydney 2021"]
[null,"LIFETIME,CH4-SB,,,","LIFETIME","CH4-SB","","","",30,"years","UNSW Sydney 2021"]
[null,"LIFETIME,CH4SYN,,,","LIFETIME","CH4SYN","","","",30,"years","Öko-Institut 2020"]
[null,"LIFETIME,DAC,,,","LIFETIME","DAC","","","",25,"years","Fasihi et al. 2019"]
[null,"LIFETIME,DESAL,,,","LIFETIME","DESAL","","","",20,"years","PTX Atlas"]
[null,"LIFETIME,DRI,,,","LIFETIME","DRI","","","",15,"years","Agora Industry Transformation 2021"]
[null,"LIFETIME,EFUELSYN,,,","LIFETIME","EFUELSYN","","","",30,"years","Öko-Institut 2020"]
[null,"LIFETIME,EL-TRANS,,,","LIFETIME","EL-TRANS","","","",20,"years","DUMMY"]
[null,"LIFETIME,H2-COMP,,,","LIFETIME","H2-COMP","","","",20,"years","DNV GL 2020"]
[null,"LIFETIME,H2-LIQ,,,","LIFETIME","H2-LIQ","","","",30,"years","IEA 2015"]
[null,"LIFETIME,H2-P-L,,,","LIFETIME","H2-P-L","","","",30,"years"]
[null,"LIFETIME,H2-P-LR,,,","LIFETIME","H2-P-LR","","","",30,"years"]
[null,"LIFETIME,H2-P-S,,,","LIFETIME","H2-P-S","","","",30,"years"]
[null,"LIFETIME,H2-P-SR,,,","LIFETIME","H2-P-SR","","","",30,"years"]
[null,"LIFETIME,H2-RGAS,,,","LIFETIME","H2-RGAS","","","",30,"years"]
[null,"LIFETIME,H2-S,,,","LIFETIME","H2-S","","","",30,"years","UNSW Sydney 2021"]
[null,"LIFETIME,H2-SB,,,","LIFETIME","H2-SB","","","",30,"years","UNSW Sydney 2021"]
[null,"LIFETIME,LOHC-CON,,,","LIFETIME","LOHC-CON","","","",20,"years","DNV GL 2020"]
[null,"LIFETIME,LOHC-REC,,,","LIFETIME","LOHC-REC","","","",30,"years","IEA 2019"]
[null,"LIFETIME,LOHC-S,,,","LIFETIME","LOHC-S","","","",30,"years","UNSW Sydney 2021"]
[null,"LIFETIME,LOHC-SB,,,","LIFETIME","LOHC-SB","","","",30,"years","UNSW Sydney 2021"]
[null,"LIFETIME,NH3-REC,,,","LIFETIME","NH3-REC","","","",25,"years","NGN; Equinor 2018"]
[null,"LIFETIME,NH3-S,,,","LIFETIME","NH3-S","","","",30,"years","UNSW Sydney 2021"]
[null,"LIFETIME,NH3-SB,,,","LIFETIME","NH3-SB","","","",30,"years","UNSW Sydney 2021"]
[null,"LIFETIME,NH3SYN,,,","LIFETIME","NH3SYN","","","",30,"years","Fasihi et al. 2021"]
[null,"LIFETIME,PEM-EL,,,","LIFETIME","PEM-EL","","","",20,"years"]
[null,"LIFETIME,PV-FIX,,,","LIFETIME","PV-FIX","","","",20,"years"]
[null,"LIFETIME,REGASATR,,,","LIFETIME","REGASATR","","","",25,"years","combined values"]
[null,"LIFETIME,RES-HYBR,,,","LIFETIME","RES-HYBR","","","",20,"years"]
[null,"LIFETIME,SOEC-EL,,,","LIFETIME","SOEC-EL","","","",20,"years"]
[null,"LIFETIME,SYN-S,,,","LIFETIME","SYN-S","","","",30,"years","UNSW Sydney 2021"]
[null,"LIFETIME,SYN-SB,,,","LIFETIME","SYN-SB","","","",30,"years","UNSW Sydney 2021"]
[null,"LIFETIME,WIND-OFF,,,","LIFETIME","WIND-OFF","","","",20,"years"]
[null,"LIFETIME,WIND-ON,,,","LIFETIME","WIND-ON","","","",20,"years"]
[null,"LOSS-T,CH3OH-S,,,","LOSS-T","CH3OH-S","","","",3.0509883673175365E-6,"fraction/km","calc_shipping"]
[null,"LOSS-T,CH3OH-SB,,,","LOSS-T","CH3OH-SB","","","",4.7996160307175429E-7,"fraction/km","calc_shipping"]
[null,"LOSS-T,CH4-P-L,,,","LOSS-T","CH4-P-L","","","",5.6666666666666669E-6,"fraction/km"]
[null,"LOSS-T,CH4-P-LR,,,","LOSS-T","CH4-P-LR","","","",5.6666666666666669E-6,"fraction/km"]
[null,"LOSS-T,CH4-P-S,,,","LOSS-T","CH4-P-S","","","",5.6666666666666669E-6,"fraction/km"]
[null,"LOSS-T,CH4-P-SR,,,","LOSS-T","CH4-P-SR","","","",5.6666666666666669E-6,"fraction/km"]
[null,"LOSS-T,CH4-S,,,","LOSS-T","CH4-S","","","",3.3002590965851543E-6,"fraction/km","calc_shipping"]
[null,"LOSS-T,CH4-SB,,,","LOSS-T","CH4-SB","","","",2.3075077070757413E-6,"fraction/km","calc_shipping"]
[null,"LOSS-T,H2-P-L,,,","LOSS-T","H2-P-L","","","",1.6866666666666666E-5,"fraction/km"]
[null,"LOSS-T,H2-P-LR,,,","LOSS-T","H2-P-LR","","","",1.6866666666666666E-5,"fraction/km"]
[null,"LOSS-T,H2-P-S,,,","LOSS-T","H2-P-S","","","",1.6866666666666666E-5,"fraction/km"]
[null,"LOSS-T,H2-P-SR,,,","LOSS-T","H2-P-SR","","","",1.6866666666666666E-5,"fraction/km"]
[null,"LOSS-T,H2-S,,,","LOSS-T","H2-S","","","",9.2511936896845982E-6,"fraction/km","calc_shipping"]
[null,"LOSS-T,H2-SB,,,","LOSS-T","H2-SB","","","",4.6150154141514826E-6,"fraction/km","calc_shipping"]
[null,"LOSS-T,LOHC-S,,,","LOSS-T","LOHC-S","","","",1.1535367546997468E-5,"fraction/km","calc_shipping"]
[null,"LOSS-T,NH3-S,,,","LOSS-T","NH3-S","","","",5.3436561034163411E-6,"fraction/km","calc_shipping"]
[null,"LOSS-T,NH3-SB,,,","LOSS-T","NH3-SB","","","",9.2300308283029658E-7,"fraction/km","calc_shipping"]
[null,"OPEX-F,AEL-EL,,,","OPEX-F","AEL-EL","","","",13.012853079705877,"USD2021/kW"]
[null,"OPEX-F,ATR,,,","OPEX-F","ATR","","","",48.829790310167752,"USD2021/kW","Oni et al. 2022"]
[null,"OPEX-F,CH3OHSYN,,,","OPEX-F","CH3OHSYN","","","",25.261407964978218,"USD2021/kW","Öko-Institut 2020"]
[null,"OPEX-F,CH4-COMP,,,","OPEX-F","CH4-COMP","","","",4.3999668964812217,"USD2021/kW","DNV GL 2020"]
[null,"OPEX-F,CH4-LIQ,,,","OPEX-F","CH4-LIQ","","","",8.7998736512607394,"USD2021/kW","Hank et al. 2020"]
[null,"OPEX-F,CH4SYN,,,","OPEX-F","CH4SYN","","","",25.436834409179458,"USD2021/kW","Öko-Institut 2020"]
[null,"OPEX-F,DAC,,,","OPEX-F","DAC","","","",1.6654607913744894E-2,"USD2021/ kg CO2 (g)*a","Fasihi et al. 2019"]
[null,"OPEX-F,DESAL,,,","OPEX-F","DESAL","","","",9.4669104972375679E-5,"USD2021/kW"]
[null,"OPEX-F,DRI,,,","OPEX-F","DRI","","","",123.76885357719151,"USD2021/kg DRI (s)/a*h","Agora Industry Transformation 2021"]
[null,"OPEX-F,EFUELSYN,,,","OPEX-F","EFUELSYN","","","",25.261407964978218,"USD2021/kW","Öko-Institut 2020"]
[null,"OPEX-F,H2-COMP,,,","OPEX-F","H2-COMP","","","",4.3999668964812217,"USD2021/kW","DNV GL 2020"]
[null,"OPEX-F,H2-LIQ,,,","OPEX-F","H2-LIQ","","","",40.112471667852205,"USD2021/kW","IEA 2019"]
[null,"OPEX-F,H2-RGAS,,,","OPEX-F","H2-RGAS","","","",3.3098652473238155,"USD2021/kW","DNV GL 2020"]
[null,"OPEX-F,LOHC-CON,,,","OPEX-F","LOHC-CON","","","",2.8907255469755473,"USD2021/kW","DNV GL 2020"]
[null,"OPEX-F,LOHC-REC,,,","OPEX-F","LOHC-REC","","","",9.8123097803614776,"USD2021/kW","DNV GL 2022"]
[null,"OPEX-F,NH3-REC,,,","OPEX-F","NH3-REC","","","",12.018656329537231,"USD2021/kW","NGN; Equinor 2018"]
[null,"OPEX-F,NH3SYN,,,","OPEX-F","NH3SYN","","","",57.438658882277934,"USD2021/kW","Fasihi et al. 2021"]
[null,"OPEX-F,PEM-EL,,,","OPEX-F","PEM-EL","","","",18.492154421610433,"USD2021/kW"]
[null,"OPEX-F,PV-FIX,,ARE,","OPEX-F","PV-FIX","","ARE","",20.953007794895285,"USD2021/kW"]
[null,"OPEX-F,PV-FIX,,ARG,","OPEX-F","PV-FIX","","ARG","",20.328399439315248,"USD2021/kW"]
[null,"OPEX-F,PV-FIX,,ARG-BA,","OPEX-F","PV-FIX","","ARG-BA","",20.328399439315248,"USD2021/kW"]
[null,"OPEX-F,PV-FIX,,ARG-CAT,","OPEX-F","PV-FIX","","ARG-CAT","",20.328399439315248,"USD2021/kW"]
[null,"OPEX-F,PV-FIX,,ARG-CBA,","OPEX-F","PV-FIX","","ARG-CBA","",20.328399439315248,"USD2021/kW"]
[null,"OPEX-F,PV-FIX,,ARG-CHA,","OPEX-F","PV-FIX","","ARG-CHA","",20.328399439315248,"USD2021/kW"]
[null,"OPEX-F,PV-FIX,,ARG-CHU,","OPEX-F","PV-FIX","","ARG-CHU","",20.328399439315248,"USD2021/kW"]
[null,"OPEX-F,PV-FIX,,ARG-COR,","OPEX-F","PV-FIX","","ARG-COR","",20.328399439315248,"USD2021/kW"]
[null,"OPEX-F,PV-FIX,,ARG-CRB,","OPEX-F","PV-FIX","","ARG-CRB","",20.328399439315248,"USD2021/kW"]
[null,"OPEX-F,PV-FIX,,ARG-CRU,","OPEX-F","PV-FIX","","ARG-CRU","",20.328399439315248,"USD2021/kW"]
[null,"OPEX-F,PV-FIX,,ARG-EST,","OPEX-F","PV-FIX","","ARG-EST","",20.328399439315248,"USD2021/kW"]
[null,"OPEX-F,PV-FIX,,ARG-FOR,","OPEX-F","PV-FIX","","ARG-FOR","",20.328399439315248,"USD2021/kW"]
[null,"OPEX-F,PV-FIX,,ARG-FUE,","OPEX-F","PV-FIX","","ARG-FUE","",20.328399439315248,"USD2021/kW"]
[null,"OPEX-F,PV-FIX,,ARG-JUJ,","OPEX-F","PV-FIX","","ARG-JUJ","",20.328399439315248,"USD2021/kW"]
[null,"OPEX-F,PV-FIX,,ARG-LAR,","OPEX-F","PV-FIX","","ARG-LAR","",20.328399439315248,"USD2021/kW"]
[null,"OPEX-F,PV-FIX,,ARG-MEN,","OPEX-F","PV-FIX","","ARG-MEN","",20.328399439315248,"USD2021/kW"]
[null,"OPEX-F,PV-FIX,,ARG-MIS,","OPEX-F","PV-FIX","","ARG-MIS","",20.328399439315248,"USD2021/kW"]
[null,"OPEX-F,PV-FIX,,ARG-NEG,","OPEX-F","PV-FIX","","ARG-NEG","",20.328399439315248,"USD2021/kW"]
[null,"OPEX-F,PV-FIX,,ARG-NEU,","OPEX-F","PV-FIX","","ARG-NEU","",20.328399439315248,"USD2021/kW"]
[null,"OPEX-F,PV-FIX,,ARG-PAM,","OPEX-F","PV-FIX","","ARG-PAM","",20.328399439315248,"USD2021/kW"]
[null,"OPEX-F,PV-FIX,,ARG-RIO,","OPEX-F","PV-FIX","","ARG-RIO","",20.328399439315248,"USD2021/kW"]
[null,"OPEX-F,PV-FIX,,ARG-SAF,","OPEX-F","PV-FIX","","ARG-SAF","",20.328399439315248,"USD2021/kW"]
[null,"OPEX-F,PV-FIX,,ARG-SAJ,","OPEX-F","PV-FIX","","ARG-SAJ","",20.328399439315248,"USD2021/kW"]
[null,"OPEX-F,PV-FIX,,ARG-SAL,","OPEX-F","PV-FIX","","ARG-SAL","",20.328399439315248,"USD2021/kW"]
[null,"OPEX-F,PV-FIX,,ARG-SAT,","OPEX-F","PV-FIX","","ARG-SAT","",20.328399439315248,"USD2021/kW"]
[null,"OPEX-F,PV-FIX,,ARG-TUC,","OPEX-F","PV-FIX","","ARG-TUC","",20.328399439315248,"USD2021/kW"]
[null,"OPEX-F,PV-FIX,,AUS,","OPEX-F","PV-FIX","","AUS","",22.967369741640898,"USD2021/kW"]
[null,"OPEX-F,PV-FIX,,BRA,","OPEX-F","PV-FIX","","BRA","",19.901583729668893,"USD2021/kW"]
[null,"OPEX-F,PV-FIX,,CHL,","OPEX-F","PV-FIX","","CHL","",22.629040215701711,"USD2021/kW"]
[null,"OPEX-F,PV-FIX,,CHN,","OPEX-F","PV-FIX","","CHN","",13.168826163479087,"USD2021/kW"]
[null,"OPEX-F,PV-FIX,,COL,","OPEX-F","PV-FIX","","COL","",12.72146901832928,"USD2021/kW"]
[null,"OPEX-F,PV-FIX,,CRI,","OPEX-F","PV-FIX","","CRI","",20.953007794895285,"USD2021/kW"]
[null,"OPEX-F,PV-FIX,,DNK,","OPEX-F","PV-FIX","","DNK","",18.165693008119373,"USD2021/kW"]
[null,"OPEX-F,PV-FIX,,DZA,","OPEX-F","PV-FIX","","DZA","",20.953007794895285,"USD2021/kW"]
[null,"OPEX-F,PV-FIX,,EGY,","OPEX-F","PV-FIX","","EGY","",20.953007794895285,"USD2021/kW"]
[null,"OPEX-F,PV-FIX,,ESP,","OPEX-F","PV-FIX","","ESP","",19.742829105958965,"USD2021/kW"]
[null,"OPEX-F,PV-FIX,,IDN,","OPEX-F","PV-FIX","","IDN","",24.286854892803724,"USD2021/kW"]
[null,"OPEX-F,PV-FIX,,IND,","OPEX-F","PV-FIX","","IND","",13.611257082014946,"USD2021/kW"]
[null,"OPEX-F,PV-FIX,,JOR,","OPEX-F","PV-FIX","","JOR","",20.953007794895285,"USD2021/kW"]
[null,"OPEX-F,PV-FIX,,KAZ,","OPEX-F","PV-FIX","","KAZ","",20.953007794895285,"USD2021/kW"]
[null,"OPEX-F,PV-FIX,,KEN,","OPEX-F","PV-FIX","","KEN","",20.953007794895285,"USD2021/kW"]
[null,"OPEX-F,PV-FIX,,MAR,","OPEX-F","PV-FIX","","MAR","",20.953007794895285,"USD2021/kW"]
[null,"OPEX-F,PV-FIX,,MAR-BEN,","OPEX-F","PV-FIX","","MAR-BEN","",20.953007794895285,"USD2021/kW"]
[null,"OPEX-F,PV-FIX,,MAR-CAS,","OPEX-F","PV-FIX","","MAR-CAS","",20.953007794895285,"USD2021/kW"]
[null,"OPEX-F,PV-FIX,,MAR-DAK,","OPEX-F","PV-FIX","","MAR-DAK","",20.953007794895285,"USD2021/kW"]
[null,"OPEX-F,PV-FIX,,MAR-DRA,","OPEX-F","PV-FIX","","MAR-DRA","",20.953007794895285,"USD2021/kW"]
[null,"OPEX-F,PV-FIX,,MAR-FES,","OPEX-F","PV-FIX","","MAR-FES","",20.953007794895285,"USD2021/kW"]
[null,"OPEX-F,PV-FIX,,MAR-GUE,","OPEX-F","PV-FIX","","MAR-GUE","",20.953007794895285,"USD2021/kW"]
[null,"OPEX-F,PV-FIX,,MAR-LAA,","OPEX-F","PV-FIX","","MAR-LAA","",20.953007794895285,"USD2021/kW"]
[null,"OPEX-F,PV-FIX,,MAR-LOR,","OPEX-F","PV-FIX","","MAR-LOR","",20.953007794895285,"USD2021/kW"]
[null,"OPEX-F,PV-FIX,,MAR-MAR,","OPEX-F","PV-FIX","","MAR-MAR","",20.953007794895285,"USD2021/kW"]
[null,"OPEX-F,PV-FIX,,MAR-RAB,","OPEX-F","PV-FIX","","MAR-RAB","",20.953007794895285,"USD2021/kW"]
[null,"OPEX-F,PV-FIX,,MAR-SOU,","OPEX-F","PV-FIX","","MAR-SOU","",20.953007794895285,"USD2021/kW"]
[null,"OPEX-F,PV-FIX,,MAR-TAN,","OPEX-F","PV-FIX","","MAR-TAN","",20.953007794895285,"USD2021/kW"]
[null,"OPEX-F,PV-FIX,,MEX,","OPEX-F","PV-FIX","","MEX","",19.094797937044678,"USD2021/kW"]
[null,"OPEX-F,PV-FIX,,MRT,","OPEX-F","PV-FIX","","MRT","",20.953007794895285,"USD2021/kW"]
[null,"OPEX-F,PV-FIX,,NAM,","OPEX-F","PV-FIX","","NAM","",20.953007794895285,"USD2021/kW"]
[null,"OPEX-F,PV-FIX,,NOR,","OPEX-F","PV-FIX","","NOR","",19.306759939192904,"USD2021/kW"]
[null,"OPEX-F,PV-FIX,,PER,","OPEX-F","PV-FIX","","PER","",20.953007794895285,"USD2021/kW"]
[null,"OPEX-F,PV-FIX,,PRT,","OPEX-F","PV-FIX","","PRT","",21.187235928237797,"USD2021/kW"]
[null,"OPEX-F,PV-FIX,,RUS,","OPEX-F","PV-FIX","","RUS","",37.58580779702865,"USD2021/kW"]
[null,"OPEX-F,PV-FIX,,SAU,","OPEX-F","PV-FIX","","SAU","",21.731165704555412,"USD2021/kW"]
[null,"OPEX-F,PV-FIX,,SWE,","OPEX-F","PV-FIX","","SWE","",19.306759939192904,"USD2021/kW"]
[null,"OPEX-F,PV-FIX,,THA,","OPEX-F","PV-FIX","","THA","",23.118316760906072,"USD2021/kW"]
[null,"OPEX-F,PV-FIX,,TUN,","OPEX-F","PV-FIX","","TUN","",20.953007794895285,"USD2021/kW"]
[null,"OPEX-F,PV-FIX,,UKR,","OPEX-F","PV-FIX","","UKR","",19.306759939192904,"USD2021/kW"]
[null,"OPEX-F,PV-FIX,,URY,","OPEX-F","PV-FIX","","URY","",20.953007794895285,"USD2021/kW"]
[null,"OPEX-F,PV-FIX,,USA,","OPEX-F","PV-FIX","","USA","",25.031179849869932,"USD2021/kW"]
[null,"OPEX-F,PV-FIX,,VNM,","OPEX-F","PV-FIX","","VNM","",23.118316760906072,"USD2021/kW"]
[null,"OPEX-F,PV-FIX,,ZAF,","OPEX-F","PV-FIX","","ZAF","",20.953007794895285,"USD2021/kW"]
[null,"OPEX-F,PV-FIX,,ZAF-EC,","OPEX-F","PV-FIX","","ZAF-EC","",20.953007794895285,"USD2021/kW"]
[null,"OPEX-F,PV-FIX,,ZAF-FRS,","OPEX-F","PV-FIX","","ZAF-FRS","",20.953007794895285,"USD2021/kW"]
[null,"OPEX-F,PV-FIX,,ZAF-GAU,","OPEX-F","PV-FIX","","ZAF-GAU","",20.953007794895285,"USD2021/kW"]
[null,"OPEX-F,PV-FIX,,ZAF-KWA,","OPEX-F","PV-FIX","","ZAF-KWA","",20.953007794895285,"USD2021/kW"]
[null,"OPEX-F,PV-FIX,,ZAF-LIM,","OPEX-F","PV-FIX","","ZAF-LIM","",20.953007794895285,"USD2021/kW"]
[null,"OPEX-F,PV-FIX,,ZAF-MPU,","OPEX-F","PV-FIX","","ZAF-MPU","",20.953007794895285,"USD2021/kW"]
[null,"OPEX-F,PV-FIX,,ZAF-NC,","OPEX-F","PV-FIX","","ZAF-NC","",20.953007794895285,"USD2021/kW"]
[null,"OPEX-F,PV-FIX,,ZAF-NW,","OPEX-F","PV-FIX","","ZAF-NW","",20.953007794895285,"USD2021/kW"]
[null,"OPEX-F,PV-FIX,,ZAF-WC,","OPEX-F","PV-FIX","","ZAF-WC","",20.953007794895285,"USD2021/kW"]
[null,"OPEX-F,REGASATR,,,","OPEX-F","REGASATR","","","",48.829790310167752,"USD2021/kW","combined values"]
[null,"OPEX-F,RES-HYBR,,ARE,","OPEX-F","RES-HYBR","","ARE","",22.580684665414566,"USD2021/kW"]
[null,"OPEX-F,RES-HYBR,,ARG,","OPEX-F","RES-HYBR","","ARG","",24.360834108462015,"USD2021/kW"]
[null,"OPEX-F,RES-HYBR,,ARG-BA,","OPEX-F","RES-HYBR","","ARG-BA","",24.360834108462015,"USD2021/kW"]
[null,"OPEX-F,RES-HYBR,,ARG-CAT,","OPEX-F","RES-HYBR","","ARG-CAT","",24.360834108462015,"USD2021/kW"]
[null,"OPEX-F,RES-HYBR,,ARG-CBA,","OPEX-F","RES-HYBR","","ARG-CBA","",24.360834108462015,"USD2021/kW"]
[null,"OPEX-F,RES-HYBR,,ARG-CHA,","OPEX-F","RES-HYBR","","ARG-CHA","",24.360834108462015,"USD2021/kW"]
[null,"OPEX-F,RES-HYBR,,ARG-CHU,","OPEX-F","RES-HYBR","","ARG-CHU","",24.360834108462015,"USD2021/kW"]
[null,"OPEX-F,RES-HYBR,,ARG-COR,","OPEX-F","RES-HYBR","","ARG-COR","",24.360834108462015,"USD2021/kW"]
[null,"OPEX-F,RES-HYBR,,ARG-CRB,","OPEX-F","RES-HYBR","","ARG-CRB","",24.360834108462015,"USD2021/kW"]
[null,"OPEX-F,RES-HYBR,,ARG-CRU,","OPEX-F","RES-HYBR","","ARG-CRU","",24.360834108462015,"USD2021/kW"]
[null,"OPEX-F,RES-HYBR,,ARG-EST,","OPEX-F","RES-HYBR","","ARG-EST","",24.360834108462015,"USD2021/kW"]
[null,"OPEX-F,RES-HYBR,,ARG-FOR,","OPEX-F","RES-HYBR","","ARG-FOR","",24.360834108462015,"USD2021/kW"]
[null,"OPEX-F,RES-HYBR,,ARG-FUE,","OPEX-F","RES-HYBR","","ARG-FUE","",24.360834108462015,"USD2021/kW"]
[null,"OPEX-F,RES-HYBR,,ARG-JUJ,","OPEX-F","RES-HYBR","","ARG-JUJ","",24.360834108462015,"USD2021/kW"]
[null,"OPEX-F,RES-HYBR,,ARG-LAR,","OPEX-F","RES-HYBR","","ARG-LAR","",24.360834108462015,"USD2021/kW"]
[null,"OPEX-F,RES-HYBR,,ARG-MEN,","OPEX-F","RES-HYBR","","ARG-MEN","",24.360834108462015,"USD2021/kW"]
[null,"OPEX-F,RES-HYBR,,ARG-MIS,","OPEX-F","RES-HYBR","","ARG-MIS","",24.360834108462015,"USD2021/kW"]
[null,"OPEX-F,RES-HYBR,,ARG-NEG,","OPEX-F","RES-HYBR","","ARG-NEG","",24.360834108462015,"USD2021/kW"]
[null,"OPEX-F,RES-HYBR,,ARG-NEU,","OPEX-F","RES-HYBR","","ARG-NEU","",24.360834108462015,"USD2021/kW"]
[null,"OPEX-F,RES-HYBR,,ARG-PAM,","OPEX-F","RES-HYBR","","ARG-PAM","",24.360834108462015,"USD2021/kW"]
[null,"OPEX-F,RES-HYBR,,ARG-RIO,","OPEX-F","RES-HYBR","","ARG-RIO","",24.360834108462015,"USD2021/kW"]
[null,"OPEX-F,RES-HYBR,,ARG-SAF,","OPEX-F","RES-HYBR","","ARG-SAF","",24.360834108462015,"USD2021/kW"]
[null,"OPEX-F,RES-HYBR,,ARG-SAJ,","OPEX-F","RES-HYBR","","ARG-SAJ","",24.360834108462015,"USD2021/kW"]
[null,"OPEX-F,RES-HYBR,,ARG-SAL,","OPEX-F","RES-HYBR","","ARG-SAL","",24.360834108462015,"USD2021/kW"]
[null,"OPEX-F,RES-HYBR,,ARG-SAT,","OPEX-F","RES-HYBR","","ARG-SAT","",24.360834108462015,"USD2021/kW"]
[null,"OPEX-F,RES-HYBR,,ARG-TUC,","OPEX-F","RES-HYBR","","ARG-TUC","",24.360834108462015,"USD2021/kW"]
[null,"OPEX-F,RES-HYBR,,AUS,","OPEX-F","RES-HYBR","","AUS","",25.303323502149748,"USD2021/kW"]
[null,"OPEX-F,RES-HYBR,,BRA,","OPEX-F","RES-HYBR","","BRA","",18.345305714480759,"USD2021/kW"]
[null,"OPEX-F,RES-HYBR,,CHL,","OPEX-F","RES-HYBR","","CHL","",25.182491528600039,"USD2021/kW"]
[null,"OPEX-F,RES-HYBR,,CHN,","OPEX-F","RES-HYBR","","CHN","",16.009152206647794,"USD2021/kW"]
[null,"OPEX-F,RES-HYBR,,CRI,","OPEX-F","RES-HYBR","","CRI","",22.952013965505664,"USD2021/kW"]
[null,"OPEX-F,RES-HYBR,,DNK,","OPEX-F","RES-HYBR","","DNK","",22.347417346264294,"USD2021/kW"]
[null,"OPEX-F,RES-HYBR,,DZA,","OPEX-F","RES-HYBR","","DZA","",25.971507484667484,"USD2021/kW"]
[null,"OPEX-F,RES-HYBR,,EGY,","OPEX-F","RES-HYBR","","EGY","",22.140952599517213,"USD2021/kW"]
[null,"OPEX-F,RES-HYBR,,ESP,","OPEX-F","RES-HYBR","","ESP","",18.49920058621618,"USD2021/kW"]
[null,"OPEX-F,RES-HYBR,,IDN,","OPEX-F","RES-HYBR","","IDN","",30.660480042297532,"USD2021/kW"]
[null,"OPEX-F,RES-HYBR,,IND,","OPEX-F","RES-HYBR","","IND","",13.909871977375621,"USD2021/kW"]
[null,"OPEX-F,RES-HYBR,,JOR,","OPEX-F","RES-HYBR","","JOR","",25.971507484667484,"USD2021/kW"]
[null,"OPEX-F,RES-HYBR,,KAZ,","OPEX-F","RES-HYBR","","KAZ","",22.140952599517213,"USD2021/kW"]
[null,"OPEX-F,RES-HYBR,,KEN,","OPEX-F","RES-HYBR","","KEN","",25.971507484667484,"USD2021/kW"]
[null,"OPEX-F,RES-HYBR,,MAR,","OPEX-F","RES-HYBR","","MAR","",24.583908521169171,"USD2021/kW"]
[null,"OPEX-F,RES-HYBR,,MAR-BEN,","OPEX-F","RES-HYBR","","MAR-BEN","",24.583908521169171,"USD2021/kW"]
[null,"OPEX-F,RES-HYBR,,MAR-CAS,","OPEX-F","RES-HYBR","","MAR-CAS","",24.583908521169171,"USD2021/kW"]
[null,"OPEX-F,RES-HYBR,,MAR-DAK,","OPEX-F","RES-HYBR","","MAR-DAK","",24.583908521169171,"USD2021/kW"]
[null,"OPEX-F,RES-HYBR,,MAR-DRA,","OPEX-F","RES-HYBR","","MAR-DRA","",24.583908521169171,"USD2021/kW"]
[null,"OPEX-F,RES-HYBR,,MAR-FES,","OPEX-F","RES-HYBR","","MAR-FES","",24.583908521169171,"USD2021/kW"]
[null,"OPEX-F,RES-HYBR,,MAR-GUE,","OPEX-F","RES-HYBR","","MAR-GUE","",24.583908521169171,"USD2021/kW"]
[null,"OPEX-F,RES-HYBR,,MAR-LAA,","OPEX-F","RES-HYBR","","MAR-LAA","",24.583908521169171,"USD2021/kW"]
[null,"OPEX-F,RES-HYBR,,MAR-LOR,","OPEX-F","RES-HYBR","","MAR-LOR","",24.583908521169171,"USD2021/kW"]
[null,"OPEX-F,RES-HYBR,,MAR-MAR,","OPEX-F","RES-HYBR","","MAR-MAR","",24.583908521169171,"USD2021/kW"]
[null,"OPEX-F,RES-HYBR,,MAR-RAB,","OPEX-F","RES-HYBR","","MAR-RAB","",24.583908521169171,"USD2021/kW"]
[null,"OPEX-F,RES-HYBR,,MAR-SOU,","OPEX-F","RES-HYBR","","MAR-SOU","",24.583908521169171,"USD2021/kW"]
[null,"OPEX-F,RES-HYBR,,MAR-TAN,","OPEX-F","RES-HYBR","","MAR-TAN","",24.583908521169171,"USD2021/kW"]
[null,"OPEX-F,RES-HYBR,,MEX,","OPEX-F","RES-HYBR","","MEX","",21.198123020756672,"USD2021/kW"]
[null,"OPEX-F,RES-HYBR,,MRT,","OPEX-F","RES-HYBR","","MRT","",25.971507484667484,"USD2021/kW"]
[null,"OPEX-F,RES-HYBR,,NAM,","OPEX-F","RES-HYBR","","NAM","",25.971507484667484,"USD2021/kW"]
[null,"OPEX-F,RES-HYBR,,NOR,","OPEX-F","RES-HYBR","","NOR","",21.553006936766362,"USD2021/kW"]
[null,"OPEX-F,RES-HYBR,,PER,","OPEX-F","RES-HYBR","","PER","",19.697996677865255,"USD2021/kW"]
[null,"OPEX-F,RES-HYBR,,PRT,","OPEX-F","RES-HYBR","","PRT","",24.667561425934355,"USD2021/kW"]
[null,"OPEX-F,RES-HYBR,,RUS,","OPEX-F","RES-HYBR","","RUS","",28.081238314564843,"USD2021/kW"]
[null,"OPEX-F,RES-HYBR,,SAU,","OPEX-F","RES-HYBR","","SAU","",22.858598204578893,"USD2021/kW"]
[null,"OPEX-F,RES-HYBR,,SWE,","OPEX-F","RES-HYBR","","SWE","",22.754941250219126,"USD2021/kW"]
[null,"OPEX-F,RES-HYBR,,THA,","OPEX-F","RES-HYBR","","THA","",23.354009296132705,"USD2021/kW"]
[null,"OPEX-F,RES-HYBR,,TUN,","OPEX-F","RES-HYBR","","TUN","",25.971507484667484,"USD2021/kW"]
[null,"OPEX-F,RES-HYBR,,UKR,","OPEX-F","RES-HYBR","","UKR","",21.553006936766362,"USD2021/kW"]
[null,"OPEX-F,RES-HYBR,,URY,","OPEX-F","RES-HYBR","","URY","",29.46982036447309,"USD2021/kW"]
[null,"OPEX-F,RES-HYBR,,USA,","OPEX-F","RES-HYBR","","USA","",22.441558718444981,"USD2021/kW"]
[null,"OPEX-F,RES-HYBR,,VNM,","OPEX-F","RES-HYBR","","VNM","",30.24314499519123,"USD2021/kW"]
[null,"OPEX-F,RES-HYBR,,ZAF,","OPEX-F","RES-HYBR","","ZAF","",24.583908521169171,"USD2021/kW"]
[null,"OPEX-F,RES-HYBR,,ZAF-EC,","OPEX-F","RES-HYBR","","ZAF-EC","",24.583908521169171,"USD2021/kW"]
[null,"OPEX-F,RES-HYBR,,ZAF-FRS,","OPEX-F","RES-HYBR","","ZAF-FRS","",24.583908521169171,"USD2021/kW"]
[null,"OPEX-F,RES-HYBR,,ZAF-GAU,","OPEX-F","RES-HYBR","","ZAF-GAU","",24.583908521169171,"USD2021/kW"]
[null,"OPEX-F,RES-HYBR,,ZAF-KWA,","OPEX-F","RES-HYBR","","ZAF-KWA","",24.583908521169171,"USD2021/kW"]
[null,"OPEX-F,RES-HYBR,,ZAF-LIM,","OPEX-F","RES-HYBR","","ZAF-LIM","",24.583908521169171,"USD2021/kW"]
[null,"OPEX-F,RES-HYBR,,ZAF-MPU,","OPEX-F","RES-HYBR","","ZAF-MPU","",24.583908521169171,"USD2021/kW"]
[null,"OPEX-F,RES-HYBR,,ZAF-NC,","OPEX-F","RES-HYBR","","ZAF-NC","",24.583908521169171,"USD2021/kW"]
[null,"OPEX-F,RES-HYBR,,ZAF-NW,","OPEX-F","RES-HYBR","","ZAF-NW","",24.583908521169171,"USD2021/kW"]
[null,"OPEX-F,RES-HYBR,,ZAF-WC,","OPEX-F","RES-HYBR","","ZAF-WC","",24.583908521169171,"USD2021/kW"]
[null,"OPEX-F,SOEC-EL,,,","OPEX-F","SOEC-EL","","","",67.451737292817654,"USD2021/kW"]
[null,"OPEX-F,WIND-OFF,,ARE,","OPEX-F","WIND-OFF","","ARE","",112.76583709600088,"USD2021/kW"]
[null,"OPEX-F,WIND-OFF,,ARG,","OPEX-F","WIND-OFF","","ARG","",112.76583709600088,"USD2021/kW"]
[null,"OPEX-F,WIND-OFF,,ARG-BA,","OPEX-F","WIND-OFF","","ARG-BA","",112.76583709600088,"USD2021/kW"]
[null,"OPEX-F,WIND-OFF,,ARG-CAT,","OPEX-F","WIND-OFF","","ARG-CAT","",112.76583709600088,"USD2021/kW"]
[null,"OPEX-F,WIND-OFF,,ARG-CBA,","OPEX-F","WIND-OFF","","ARG-CBA","",112.76583709600088,"USD2021/kW"]
[null,"OPEX-F,WIND-OFF,,ARG-CHA,","OPEX-F","WIND-OFF","","ARG-CHA","",112.76583709600088,"USD2021/kW"]
[null,"OPEX-F,WIND-OFF,,ARG-CHU,","OPEX-F","WIND-OFF","","ARG-CHU","",112.76583709600088,"USD2021/kW"]
[null,"OPEX-F,WIND-OFF,,ARG-COR,","OPEX-F","WIND-OFF","","ARG-COR","",112.76583709600088,"USD2021/kW"]
[null,"OPEX-F,WIND-OFF,,ARG-CRB,","OPEX-F","WIND-OFF","","ARG-CRB","",112.76583709600088,"USD2021/kW"]
[null,"OPEX-F,WIND-OFF,,ARG-CRU,","OPEX-F","WIND-OFF","","ARG-CRU","",112.76583709600088,"USD2021/kW"]
[null,"OPEX-F,WIND-OFF,,ARG-EST,","OPEX-F","WIND-OFF","","ARG-EST","",112.76583709600088,"USD2021/kW"]
[null,"OPEX-F,WIND-OFF,,ARG-FOR,","OPEX-F","WIND-OFF","","ARG-FOR","",112.76583709600088,"USD2021/kW"]
[null,"OPEX-F,WIND-OFF,,ARG-FUE,","OPEX-F","WIND-OFF","","ARG-FUE","",112.76583709600088,"USD2021/kW"]
[null,"OPEX-F,WIND-OFF,,ARG-JUJ,","OPEX-F","WIND-OFF","","ARG-JUJ","",112.76583709600088,"USD2021/kW"]
[null,"OPEX-F,WIND-OFF,,ARG-LAR,","OPEX-F","WIND-OFF","","ARG-LAR","",112.76583709600088,"USD2021/kW"]
[null,"OPEX-F,WIND-OFF,,ARG-MEN,","OPEX-F","WIND-OFF","","ARG-MEN","",112.76583709600088,"USD2021/kW"]
[null,"OPEX-F,WIND-OFF,,ARG-MIS,","OPEX-F","WIND-OFF","","ARG-MIS","",112.76583709600088,"USD2021/kW"]
[null,"OPEX-F,WIND-OFF,,ARG-NEG,","OPEX-F","WIND-OFF","","ARG-NEG","",112.76583709600088,"USD2021/kW"]
[null,"OPEX-F,WIND-OFF,,ARG-NEU,","OPEX-F","WIND-OFF","","ARG-NEU","",112.76583709600088,"USD2021/kW"]
[null,"OPEX-F,WIND-OFF,,ARG-PAM,","OPEX-F","WIND-OFF","","ARG-PAM","",112.76583709600088,"USD2021/kW"]
[null,"OPEX-F,WIND-OFF,,ARG-RIO,","OPEX-F","WIND-OFF","","ARG-RIO","",112.76583709600088,"USD2021/kW"]
[null,"OPEX-F,WIND-OFF,,ARG-SAF,","OPEX-F","WIND-OFF","","ARG-SAF","",112.76583709600088,"USD2021/kW"]
[null,"OPEX-F,WIND-OFF,,ARG-SAJ,","OPEX-F","WIND-OFF","","ARG-SAJ","",112.76583709600088,"USD2021/kW"]
[null,"OPEX-F,WIND-OFF,,ARG-SAL,","OPEX-F","WIND-OFF","","ARG-SAL","",112.76583709600088,"USD2021/kW"]
[null,"OPEX-F,WIND-OFF,,ARG-SAT,","OPEX-F","WIND-OFF","","ARG-SAT","",112.76583709600088,"USD2021/kW"]
[null,"OPEX-F,WIND-OFF,,ARG-TUC,","OPEX-F","WIND-OFF","","ARG-TUC","",112.76583709600088,"USD2021/kW"]
[null,"OPEX-F,WIND-OFF,,AUS,","OPEX-F","WIND-OFF","","AUS","",112.76583709600088,"USD2021/kW"]
[null,"OPEX-F,WIND-OFF,,BRA,","OPEX-F","WIND-OFF","","BRA","",112.76583709600088,"USD2021/kW"]
[null,"OPEX-F,WIND-OFF,,CHL,","OPEX-F","WIND-OFF","","CHL","",112.76583709600088,"USD2021/kW"]
[null,"OPEX-F,WIND-OFF,,CHN,","OPEX-F","WIND-OFF","","CHN","",93.971530913334078,"USD2021/kW"]
[null,"OPEX-F,WIND-OFF,,COL,","OPEX-F","WIND-OFF","","COL","",112.77800000000001,"USD2021/kW"]
[null,"OPEX-F,WIND-OFF,,CRI,","OPEX-F","WIND-OFF","","CRI","",112.76583709600088,"USD2021/kW"]
[null,"OPEX-F,WIND-OFF,,DNK,","OPEX-F","WIND-OFF","","DNK","",75.289056444039801,"USD2021/kW"]
[null,"OPEX-F,WIND-OFF,,DZA,","OPEX-F","WIND-OFF","","DZA","",112.76583709600088,"USD2021/kW"]
[null,"OPEX-F,WIND-OFF,,EGY,","OPEX-F","WIND-OFF","","EGY","",112.76583709600088,"USD2021/kW"]
[null,"OPEX-F,WIND-OFF,,ESP,","OPEX-F","WIND-OFF","","ESP","",112.76583709600088,"USD2021/kW"]
[null,"OPEX-F,WIND-OFF,,IDN,","OPEX-F","WIND-OFF","","IDN","",112.76583709600088,"USD2021/kW"]
[null,"OPEX-F,WIND-OFF,,IND,","OPEX-F","WIND-OFF","","IND","",112.76583709600088,"USD2021/kW"]
[null,"OPEX-F,WIND-OFF,,JOR,","OPEX-F","WIND-OFF","","JOR","",112.76583709600088,"USD2021/kW"]
[null,"OPEX-F,WIND-OFF,,KAZ,","OPEX-F","WIND-OFF","","KAZ","",112.76583709600088,"USD2021/kW"]
[null,"OPEX-F,WIND-OFF,,KEN,","OPEX-F","WIND-OFF","","KEN","",112.76583709600088,"USD2021/kW"]
[null,"OPEX-F,WIND-OFF,,MAR,","OPEX-F","WIND-OFF","","MAR","",112.76583709600088,"USD2021/kW"]
[null,"OPEX-F,WIND-OFF,,MAR-BEN,","OPEX-F","WIND-OFF","","MAR-BEN","",112.76583709600088,"USD2021/kW"]
[null,"OPEX-F,WIND-OFF,,MAR-CAS,","OPEX-F","WIND-OFF","","MAR-CAS","",112.76583709600088,"USD2021/kW"]
[null,"OPEX-F,WIND-OFF,,MAR-DAK,","OPEX-F","WIND-OFF","","MAR-DAK","",112.76583709600088,"USD2021/kW"]
[null,"OPEX-F,WIND-OFF,,MAR-DRA,","OPEX-F","WIND-OFF","","MAR-DRA","",112.76583709600088,"USD2021/kW"]
[null,"OPEX-F,WIND-OFF,,MAR-FES,","OPEX-F","WIND-OFF","","MAR-FES","",112.76583709600088,"USD2021/kW"]
[null,"OPEX-F,WIND-OFF,,MAR-GUE,","OPEX-F","WIND-OFF","","MAR-GUE","",112.76583709600088,"USD2021/kW"]
[null,"OPEX-F,WIND-OFF,,MAR-LAA,","OPEX-F","WIND-OFF","","MAR-LAA","",112.76583709600088,"USD2021/kW"]
[null,"OPEX-F,WIND-OFF,,MAR-LOR,","OPEX-F","WIND-OFF","","MAR-LOR","",112.76583709600088,"USD2021/kW"]
[null,"OPEX-F,WIND-OFF,,MAR-MAR,","OPEX-F","WIND-OFF","","MAR-MAR","",112.76583709600088,"USD2021/kW"]
[null,"OPEX-F,WIND-OFF,,MAR-RAB,","OPEX-F","WIND-OFF","","MAR-RAB","",112.76583709600088,"USD2021/kW"]
[null,"OPEX-F,WIND-OFF,,MAR-SOU,","OPEX-F","WIND-OFF","","MAR-SOU","",112.76583709600088,"USD2021/kW"]
[null,"OPEX-F,WIND-OFF,,MAR-TAN,","OPEX-F","WIND-OFF","","MAR-TAN","",112.76583709600088,"USD2021/kW"]
[null,"OPEX-F,WIND-OFF,,MEX,","OPEX-F","WIND-OFF","","MEX","",112.76583709600088,"USD2021/kW"]
[null,"OPEX-F,WIND-OFF,,MRT,","OPEX-F","WIND-OFF","","MRT","",112.76583709600088,"USD2021/kW"]
[null,"OPEX-F,WIND-OFF,,NAM,","OPEX-F","WIND-OFF","","NAM","",112.76583709600088,"USD2021/kW"]
[null,"OPEX-F,WIND-OFF,,NOR,","OPEX-F","WIND-OFF","","NOR","",112.76583709600088,"USD2021/kW"]
[null,"OPEX-F,WIND-OFF,,PER,","OPEX-F","WIND-OFF","","PER","",112.76583709600088,"USD2021/kW"]
[null,"OPEX-F,WIND-OFF,,PRT,","OPEX-F","WIND-OFF","","PRT","",112.76583709600088,"USD2021/kW"]
[null,"OPEX-F,WIND-OFF,,RUS,","OPEX-F","WIND-OFF","","RUS","",112.76583709600088,"USD2021/kW"]
[null,"OPEX-F,WIND-OFF,,SAU,","OPEX-F","WIND-OFF","","SAU","",112.76583709600088,"USD2021/kW"]
[null,"OPEX-F,WIND-OFF,,SWE,","OPEX-F","WIND-OFF","","SWE","",112.76583709600088,"USD2021/kW"]
[null,"OPEX-F,WIND-OFF,,THA,","OPEX-F","WIND-OFF","","THA","",112.76583709600088,"USD2021/kW"]
[null,"OPEX-F,WIND-OFF,,TUN,","OPEX-F","WIND-OFF","","TUN","",112.76583709600088,"USD2021/kW"]
[null,"OPEX-F,WIND-OFF,,UKR,","OPEX-F","WIND-OFF","","UKR","",112.76583709600088,"USD2021/kW"]
[null,"OPEX-F,WIND-OFF,,URY,","OPEX-F","WIND-OFF","","URY","",112.76583709600088,"USD2021/kW"]
[null,"OPEX-F,WIND-OFF,,USA,","OPEX-F","WIND-OFF","","USA","",112.76583709600088,"USD2021/kW"]
[null,"OPEX-F,WIND-OFF,,VNM,","OPEX-F","WIND-OFF","","VNM","",112.76583709600088,"USD2021/kW"]
[null,"OPEX-F,WIND-OFF,,ZAF,","OPEX-F","WIND-OFF","","ZAF","",112.76583709600088,"USD2021/kW"]
[null,"OPEX-F,WIND-OFF,,ZAF-EC,","OPEX-F","WIND-OFF","","ZAF-EC","",112.76583709600088,"USD2021/kW"]
[null,"OPEX-F,WIND-OFF,,ZAF-FRS,","OPEX-F","WIND-OFF","","ZAF-FRS","",112.76583709600088,"USD2021/kW"]
[null,"OPEX-F,WIND-OFF,,ZAF-GAU,","OPEX-F","WIND-OFF","","ZAF-GAU","",112.76583709600088,"USD2021/kW"]
[null,"OPEX-F,WIND-OFF,,ZAF-KWA,","OPEX-F","WIND-OFF","","ZAF-KWA","",112.76583709600088,"USD2021/kW"]
[null,"OPEX-F,WIND-OFF,,ZAF-LIM,","OPEX-F","WIND-OFF","","ZAF-LIM","",112.76583709600088,"USD2021/kW"]
[null,"OPEX-F,WIND-OFF,,ZAF-MPU,","OPEX-F","WIND-OFF","","ZAF-MPU","",112.76583709600088,"USD2021/kW"]
[null,"OPEX-F,WIND-OFF,,ZAF-NC,","OPEX-F","WIND-OFF","","ZAF-NC","",112.76583709600088,"USD2021/kW"]
[null,"OPEX-F,WIND-OFF,,ZAF-NW,","OPEX-F","WIND-OFF","","ZAF-NW","",112.76583709600088,"USD2021/kW"]
[null,"OPEX-F,WIND-OFF,,ZAF-WC,","OPEX-F","WIND-OFF","","ZAF-WC","",112.76583709600088,"USD2021/kW"]
[null,"OPEX-F,WIND-ON,,ARE,","OPEX-F","WIND-ON","","ARE","",42.272909268265494,"USD2021/kW"]
[null,"OPEX-F,WIND-ON,,ARG,","OPEX-F","WIND-ON","","ARG","",47.881936064378394,"USD2021/kW"]
[null,"OPEX-F,WIND-ON,,ARG-BA,","OPEX-F","WIND-ON","","ARG-BA","",47.881936064378394,"USD2021/kW"]
[null,"OPEX-F,WIND-ON,,ARG-CAT,","OPEX-F","WIND-ON","","ARG-CAT","",47.881936064378394,"USD2021/kW"]
[null,"OPEX-F,WIND-ON,,ARG-CBA,","OPEX-F","WIND-ON","","ARG-CBA","",47.881936064378394,"USD2021/kW"]
[null,"OPEX-F,WIND-ON,,ARG-CHA,","OPEX-F","WIND-ON","","ARG-CHA","",47.881936064378394,"USD2021/kW"]
[null,"OPEX-F,WIND-ON,,ARG-CHU,","OPEX-F","WIND-ON","","ARG-CHU","",47.881936064378394,"USD2021/kW"]
[null,"OPEX-F,WIND-ON,,ARG-COR,","OPEX-F","WIND-ON","","ARG-COR","",47.881936064378394,"USD2021/kW"]
[null,"OPEX-F,WIND-ON,,ARG-CRB,","OPEX-F","WIND-ON","","ARG-CRB","",47.881936064378394,"USD2021/kW"]
[null,"OPEX-F,WIND-ON,,ARG-CRU,","OPEX-F","WIND-ON","","ARG-CRU","",47.881936064378394,"USD2021/kW"]
[null,"OPEX-F,WIND-ON,,ARG-EST,","OPEX-F","WIND-ON","","ARG-EST","",47.881936064378394,"USD2021/kW"]
[null,"OPEX-F,WIND-ON,,ARG-FOR,","OPEX-F","WIND-ON","","ARG-FOR","",47.881936064378394,"USD2021/kW"]
[null,"OPEX-F,WIND-ON,,ARG-FUE,","OPEX-F","WIND-ON","","ARG-FUE","",47.881936064378394,"USD2021/kW"]
[null,"OPEX-F,WIND-ON,,ARG-JUJ,","OPEX-F","WIND-ON","","ARG-JUJ","",47.881936064378394,"USD2021/kW"]
[null,"OPEX-F,WIND-ON,,ARG-LAR,","OPEX-F","WIND-ON","","ARG-LAR","",47.881936064378394,"USD2021/kW"]
[null,"OPEX-F,WIND-ON,,ARG-MEN,","OPEX-F","WIND-ON","","ARG-MEN","",47.881936064378394,"USD2021/kW"]
[null,"OPEX-F,WIND-ON,,ARG-MIS,","OPEX-F","WIND-ON","","ARG-MIS","",47.881936064378394,"USD2021/kW"]
[null,"OPEX-F,WIND-ON,,ARG-NEG,","OPEX-F","WIND-ON","","ARG-NEG","",47.881936064378394,"USD2021/kW"]
[null,"OPEX-F,WIND-ON,,ARG-NEU,","OPEX-F","WIND-ON","","ARG-NEU","",47.881936064378394,"USD2021/kW"]
[null,"OPEX-F,WIND-ON,,ARG-PAM,","OPEX-F","WIND-ON","","ARG-PAM","",47.881936064378394,"USD2021/kW"]
[null,"OPEX-F,WIND-ON,,ARG-RIO,","OPEX-F","WIND-ON","","ARG-RIO","",47.881936064378394,"USD2021/kW"]
[null,"OPEX-F,WIND-ON,,ARG-SAF,","OPEX-F","WIND-ON","","ARG-SAF","",47.881936064378394,"USD2021/kW"]
[null,"OPEX-F,WIND-ON,,ARG-SAJ,","OPEX-F","WIND-ON","","ARG-SAJ","",47.881936064378394,"USD2021/kW"]
[null,"OPEX-F,WIND-ON,,ARG-SAL,","OPEX-F","WIND-ON","","ARG-SAL","",47.881936064378394,"USD2021/kW"]
[null,"OPEX-F,WIND-ON,,ARG-SAT,","OPEX-F","WIND-ON","","ARG-SAT","",47.881936064378394,"USD2021/kW"]
[null,"OPEX-F,WIND-ON,,ARG-TUC,","OPEX-F","WIND-ON","","ARG-TUC","",47.881936064378394,"USD2021/kW"]
[null,"OPEX-F,WIND-ON,,AUS,","OPEX-F","WIND-ON","","AUS","",47.881936064378394,"USD2021/kW"]
[null,"OPEX-F,WIND-ON,,BRA,","OPEX-F","WIND-ON","","BRA","",31.465272270877229,"USD2021/kW"]
[null,"OPEX-F,WIND-ON,,CHL,","OPEX-F","WIND-ON","","CHL","",47.881936064378394,"USD2021/kW"]
[null,"OPEX-F,WIND-ON,,CHN,","OPEX-F","WIND-ON","","CHN","",31.656800015134742,"USD2021/kW"]
[null,"OPEX-F,WIND-ON,,COL,","OPEX-F","WIND-ON","","COL","",45.5,"USD2021/kW"]
[null,"OPEX-F,WIND-ON,,CRI,","OPEX-F","WIND-ON","","CRI","",43.312631308520572,"USD2021/kW"]
[null,"OPEX-F,WIND-ON,,DNK,","OPEX-F","WIND-ON","","DNK","",44.407075561420648,"USD2021/kW"]
[null,"OPEX-F,WIND-ON,,DZA,","OPEX-F","WIND-ON","","DZA","",51.767213162173668,"USD2021/kW"]
[null,"OPEX-F,WIND-ON,,EGY,","OPEX-F","WIND-ON","","EGY","",41.041659483752909,"USD2021/kW"]
[null,"OPEX-F,WIND-ON,,ESP,","OPEX-F","WIND-ON","","ESP","",32.054932535446341,"USD2021/kW"]
[null,"OPEX-F,WIND-ON,,IDN,","OPEX-F","WIND-ON","","IDN","",61.562489225629371,"USD2021/kW"]
[null,"OPEX-F,WIND-ON,,IND,","OPEX-F","WIND-ON","","IND","",25.336384454636796,"USD2021/kW"]
[null,"OPEX-F,WIND-ON,,JOR,","OPEX-F","WIND-ON","","JOR","",51.767213162173668,"USD2021/kW"]
[null,"OPEX-F,WIND-ON,,KAZ,","OPEX-F","WIND-ON","","KAZ","",41.041659483752909,"USD2021/kW"]
[null,"OPEX-F,WIND-ON,,KEN,","OPEX-F","WIND-ON","","KEN","",51.767213162173668,"USD2021/kW"]
[null,"OPEX-F,WIND-ON,,MAR,","OPEX-F","WIND-ON","","MAR","",47.881936064378394,"USD2021/kW"]
[null,"OPEX-F,WIND-ON,,MAR-BEN,","OPEX-F","WIND-ON","","MAR-BEN","",47.881936064378394,"USD2021/kW"]
[null,"OPEX-F,WIND-ON,,MAR-CAS,","OPEX-F","WIND-ON","","MAR-CAS","",47.881936064378394,"USD2021/kW"]
[null,"OPEX-F,WIND-ON,,MAR-DAK,","OPEX-F","WIND-ON","","MAR-DAK","",47.881936064378394,"USD2021/kW"]
[null,"OPEX-F,WIND-ON,,MAR-DRA,","OPEX-F","WIND-ON","","MAR-DRA","",47.881936064378394,"USD2021/kW"]
[null,"OPEX-F,WIND-ON,,MAR-FES,","OPEX-F","WIND-ON","","MAR-FES","",47.881936064378394,"USD2021/kW"]
[null,"OPEX-F,WIND-ON,,MAR-GUE,","OPEX-F","WIND-ON","","MAR-GUE","",47.881936064378394,"USD2021/kW"]
[null,"OPEX-F,WIND-ON,,MAR-LAA,","OPEX-F","WIND-ON","","MAR-LAA","",47.881936064378394,"USD2021/kW"]
[null,"OPEX-F,WIND-ON,,MAR-LOR,","OPEX-F","WIND-ON","","MAR-LOR","",47.881936064378394,"USD2021/kW"]
[null,"OPEX-F,WIND-ON,,MAR-MAR,","OPEX-F","WIND-ON","","MAR-MAR","",47.881936064378394,"USD2021/kW"]
[null,"OPEX-F,WIND-ON,,MAR-RAB,","OPEX-F","WIND-ON","","MAR-RAB","",47.881936064378394,"USD2021/kW"]
[null,"OPEX-F,WIND-ON,,MAR-SOU,","OPEX-F","WIND-ON","","MAR-SOU","",47.881936064378394,"USD2021/kW"]
[null,"OPEX-F,WIND-ON,,MAR-TAN,","OPEX-F","WIND-ON","","MAR-TAN","",47.881936064378394,"USD2021/kW"]
[null,"OPEX-F,WIND-ON,,MEX,","OPEX-F","WIND-ON","","MEX","",40.259946521073999,"USD2021/kW"]
[null,"OPEX-F,WIND-ON,,MRT,","OPEX-F","WIND-ON","","MRT","",51.767213162173668,"USD2021/kW"]
[null,"OPEX-F,WIND-ON,,NAM,","OPEX-F","WIND-ON","","NAM","",51.767213162173668,"USD2021/kW"]
[null,"OPEX-F,WIND-ON,,NOR,","OPEX-F","WIND-ON","","NOR","",41.041659483752909,"USD2021/kW"]
[null,"OPEX-F,WIND-ON,,PER,","OPEX-F","WIND-ON","","PER","",34.201382903127424,"USD2021/kW"]
[null,"OPEX-F,WIND-ON,,PRT,","OPEX-F","WIND-ON","","PRT","",47.881936064378394,"USD2021/kW"]
[null,"OPEX-F,WIND-ON,,RUS,","OPEX-F","WIND-ON","","RUS","",41.041659483752909,"USD2021/kW"]
[null,"OPEX-F,WIND-ON,,SAU,","OPEX-F","WIND-ON","","SAU","",42.272909268265494,"USD2021/kW"]
[null,"OPEX-F,WIND-ON,,SWE,","OPEX-F","WIND-ON","","SWE","",44.407075561420648,"USD2021/kW"]
[null,"OPEX-F,WIND-ON,,THA,","OPEX-F","WIND-ON","","THA","",42.272909268265494,"USD2021/kW"]
[null,"OPEX-F,WIND-ON,,TUN,","OPEX-F","WIND-ON","","TUN","",51.767213162173668,"USD2021/kW"]
[null,"OPEX-F,WIND-ON,,UKR,","OPEX-F","WIND-ON","","UKR","",41.041659483752909,"USD2021/kW"]
[null,"OPEX-F,WIND-ON,,URY,","OPEX-F","WIND-ON","","URY","",61.562489225629371,"USD2021/kW"]
[null,"OPEX-F,WIND-ON,,USA,","OPEX-F","WIND-ON","","USA","",37.805184561776016,"USD2021/kW"]
[null,"OPEX-F,WIND-ON,,VNM,","OPEX-F","WIND-ON","","VNM","",61.562489225629371,"USD2021/kW"]
[null,"OPEX-F,WIND-ON,,ZAF,","OPEX-F","WIND-ON","","ZAF","",47.881936064378394,"USD2021/kW"]
[null,"OPEX-F,WIND-ON,,ZAF-EC,","OPEX-F","WIND-ON","","ZAF-EC","",47.881936064378394,"USD2021/kW"]
[null,"OPEX-F,WIND-ON,,ZAF-FRS,","OPEX-F","WIND-ON","","ZAF-FRS","",47.881936064378394,"USD2021/kW"]
[null,"OPEX-F,WIND-ON,,ZAF-GAU,","OPEX-F","WIND-ON","","ZAF-GAU","",47.881936064378394,"USD2021/kW"]
[null,"OPEX-F,WIND-ON,,ZAF-KWA,","OPEX-F","WIND-ON","","ZAF-KWA","",47.881936064378394,"USD2021/kW"]
[null,"OPEX-F,WIND-ON,,ZAF-LIM,","OPEX-F","WIND-ON","","ZAF-LIM","",47.881936064378394,"USD2021/kW"]
[null,"OPEX-F,WIND-ON,,ZAF-MPU,","OPEX-F","WIND-ON","","ZAF-MPU","",47.881936064378394,"USD2021/kW"]
[null,"OPEX-F,WIND-ON,,ZAF-NC,","OPEX-F","WIND-ON","","ZAF-NC","",47.881936064378394,"USD2021/kW"]
[null,"OPEX-F,WIND-ON,,ZAF-NW,","OPEX-F","WIND-ON","","ZAF-NW","",47.881936064378394,"USD2021/kW"]
[null,"OPEX-F,WIND-ON,,ZAF-WC,","OPEX-F","WIND-ON","","ZAF-WC","",47.881936064378394,"USD2021/kW"]
[null,"OPEX-O,ATR,,,","OPEX-O","ATR","","","",9.1464146414641494E-3,"USD2021/kWh","George et al. (2022)"]
[null,"OPEX-O,CH3OH-S,,,","OPEX-O","CH3OH-S","","","",1.0849036835729676E-4,"USD2021/kWh","UNSW Sydney 2021"]
[null,"OPEX-O,CH3OH-SB,,,","OPEX-O","CH3OH-SB","","","",1.0849036835729676E-4,"USD2021/kWh","UNSW Sydney 2021"]
[null,"OPEX-O,CH4-S,,,","OPEX-O","CH4-S","","","",3.3042876189725266E-4,"USD2021/kWh","UNSW Sydney 2021"]
[null,"OPEX-O,CH4-SB,,,","OPEX-O","CH4-SB","","","",3.3042876189725266E-4,"USD2021/kWh","UNSW Sydney 2021"]
[null,"OPEX-O,DRI,,,","OPEX-O","DRI","","","",0.26656892307692304,"USD2021/kg DRI (s)","Agora Industry Transformation 2021"]
[null,"OPEX-O,H2-S,,,","OPEX-O","H2-S","","","",1.9557894682818507E-3,"USD2021/kWh","UNSW Sydney 2021"]
[null,"OPEX-O,H2-SB,,,","OPEX-O","H2-SB","","","",1.9557894682818507E-3,"USD2021/kWh","UNSW Sydney 2021"]
[null,"OPEX-O,LOHC-S,,,","OPEX-O","LOHC-S","","","",1.5378717307752301E-2,"USD2021/kWh","UNSW Sydney 2021"]
[null,"OPEX-O,LOHC-SB,,,","OPEX-O","LOHC-SB","","","",1.5378717307752301E-2,"USD2021/kWh","UNSW Sydney 2021"]
[null,"OPEX-O,NH3-S,,,","OPEX-O","NH3-S","","","",4.2087134757005104E-4,"USD2021/kWh","UNSW Sydney 2021"]
[null,"OPEX-O,NH3-SB,,,","OPEX-O","NH3-SB","","","",4.2087134757005104E-4,"USD2021/kWh","UNSW Sydney 2021"]
[null,"OPEX-O,REGASATR,,,","OPEX-O","REGASATR","","","",9.1464146414641494E-3,"USD2021/kWh","combined values"]
[null,"OPEX-O,SYN-S,,,","OPEX-O","SYN-S","","","",4.5028839113694242E-5,"USD2021/kWh","UNSW Sydney 2021"]
[null,"OPEX-O,SYN-SB,,,","OPEX-O","SYN-SB","","","",4.5028839113694242E-5,"USD2021/kWh","UNSW Sydney 2021"]
[null,"OPEX-T,CH3OH-S,,,","OPEX-T","CH3OH-S","","","",1.0848168982211098E-7,"USD2021/(kWh*km)","calc_shipping"]
[null,"OPEX-T,CH3OH-SB,,,","OPEX-T","CH3OH-SB","","","",1.0848168982211098E-7,"USD2021/(kWh*km)","calc_shipping"]
[null,"OPEX-T,CH4-P-L,,,","OPEX-T","CH4-P-L","","","",2.7651437055456481E-6,"USD2021/(kWh*km)"]
[null,"OPEX-T,CH4-P-LR,,,","OPEX-T","CH4-P-LR","","","",8.624381235013173E-7,"USD2021/(kWh*km)"]
[null,"OPEX-T,CH4-P-S,,,","OPEX-T","CH4-P-S","","","",3.3181724466547807E-6,"USD2021/(kWh*km)"]
[null,"OPEX-T,CH4-P-SR,,,","OPEX-T","CH4-P-SR","","","",8.624381235013173E-7,"USD2021/(kWh*km)"]
[null,"OPEX-T,CH4-S,,,","OPEX-T","CH4-S","","","",2.5415563823913519E-7,"USD2021/(kWh*km)","calc_shipping"]
[null,"OPEX-T,CH4-SB,,,","OPEX-T","CH4-SB","","","",2.5415563823913519E-7,"USD2021/(kWh*km)","calc_shipping"]
[null,"OPEX-T,DRI-SB,,,","OPEX-T","DRI-SB","","","",3.262896862987803E-7,"USD2021/(kg*km)","calc_shipping"]
[null,"OPEX-T,H2-P-L,,,","OPEX-T","H2-P-L","","","",8.8738982865209894E-6,"USD2021/(kWh*km)","Guidehouse 2022"]
[null,"OPEX-T,H2-P-LR,,,","OPEX-T","H2-P-LR","","","",3.0424794125214817E-6,"USD2021/(kWh*km)","Guidehouse 2022"]
[null,"OPEX-T,H2-P-S,,,","OPEX-T","H2-P-S","","","",1.5212397062607411E-5,"USD2021/(kWh*km)","Guidehouse 2022"]
[null,"OPEX-T,H2-P-SR,,,","OPEX-T","H2-P-SR","","","",3.8030992656518527E-6,"USD2021/(kWh*km)","Guidehouse 2022"]
[null,"OPEX-T,H2-S,,,","OPEX-T","H2-S","","","",1.5043330904926455E-6,"USD2021/(kWh*km)","calc_shipping"]
[null,"OPEX-T,H2-SB,,,","OPEX-T","H2-SB","","","",1.5043330904926455E-6,"USD2021/(kWh*km)","calc_shipping"]
[null,"OPEX-T,LOHC-S,,,","OPEX-T","LOHC-S","","","",1.3493717175603379E-6,"USD2021/(kWh*km)","calc_shipping"]
[null,"OPEX-T,LOHC-SB,,,","OPEX-T","LOHC-SB","","","",1.3493717175603379E-6,"USD2021/(kWh*km)","calc_shipping"]
[null,"OPEX-T,NH3-S,,,","OPEX-T","NH3-S","","","",3.2372129273508194E-7,"USD2021/(kWh*km)","calc_shipping"]
[null,"OPEX-T,NH3-SB,,,","OPEX-T","NH3-SB","","","",3.2372129273508194E-7,"USD2021/(kWh*km)","calc_shipping"]
[null,"OPEX-T,SYN-S,,,","OPEX-T","SYN-S","","","",4.502523709472666E-8,"USD2021/(kWh*km)","calc_shipping"]
[null,"OPEX-T,SYN-SB,,,","OPEX-T","SYN-SB","","","",4.502523709472666E-8,"USD2021/(kWh*km)","calc_shipping"]
[null,"SEASHARE,,,ARE,CHN","SEASHARE","","","ARE","CHN",0.11111111111111099,null,"Research Susanne Krieger"]
[null,"SEASHARE,,,ARE,IND","SEASHARE","","","ARE","IND",0.65,null,"Research Susanne Krieger"]
[null,"SEASHARE,,,CHN,JPN","SEASHARE","","","CHN","JPN",0.28571428571428598,null,"Research Susanne Krieger"]
[null,"SEASHARE,,,CHN,KOR","SEASHARE","","","CHN","KOR",0.4,null,"Research Susanne Krieger"]
[null,"SEASHARE,,,COL,USA","SEASHARE","","","COL","USA",0.64444444444444404,"km","Research Susanne Krieger"]
[null,"SEASHARE,,,CRI,USA","SEASHARE","","","CRI","USA",0.14285714285714299,null,"Research Susanne Krieger"]
[null,"SEASHARE,,,DNK,FRA","SEASHARE","","","DNK","FRA",0.5,null,"Research Susanne Krieger"]
[null,"SEASHARE,,,DNK,NLD","SEASHARE","","","DNK","NLD",1,null,"Research Susanne Krieger"]
[null,"SEASHARE,,,DZA,DEU","SEASHARE","","","DZA","DEU",0.1,null,"Research Susanne Krieger"]
[null,"SEASHARE,,,DZA,ESP","SEASHARE","","","DZA","ESP",0.27741832232496999,null,"Research Susanne Krieger"]
[null,"SEASHARE,,,DZA,FRA","SEASHARE","","","DZA","FRA",0.15,null,"Research Susanne Krieger"]
[null,"SEASHARE,,,DZA,NLD","SEASHARE","","","DZA","NLD",0.133333333333333,null,"Research Susanne Krieger"]
[null,"SEASHARE,,,EGY,ESP","SEASHARE","","","EGY","ESP",0.155555555555556,null,"Research Susanne Krieger"]
[null,"SEASHARE,,,EGY,FRA","SEASHARE","","","EGY","FRA",0.17499999999999999,null,"Research Susanne Krieger"]
[null,"SEASHARE,,,EGY,IND","SEASHARE","","","EGY","IND",0.52,null,"Research Susanne Krieger"]
[null,"SEASHARE,,,IDN,CHN","SEASHARE","","","IDN","CHN",0.5,null,"Research Susanne Krieger"]
[null,"SEASHARE,,,IDN,IND","SEASHARE","","","IDN","IND",0.4,null,"Research Susanne Krieger"]
[null,"SEASHARE,,,IDN,JPN","SEASHARE","","","IDN","JPN",0.90909090909090906,null,"Research Susanne Krieger"]
[null,"SEASHARE,,,IDN,KOR","SEASHARE","","","IDN","KOR",0.90909090909090906,null,"Research Susanne Krieger"]
[null,"SEASHARE,,,KEN,IND","SEASHARE","","","KEN","IND",0.86,null,"Research Susanne Krieger"]
[null,"SEASHARE,,,MAR,ESP","SEASHARE","","","MAR","ESP",0.18,null,"Research Susanne Krieger"]
[null,"SEASHARE,,,MAR-BEN,ESP","SEASHARE","","","MAR-BEN","ESP",0.18,null,"Research Susanne Krieger"]
[null,"SEASHARE,,,MAR-CAS,ESP","SEASHARE","","","MAR-CAS","ESP",0.18,null,"Research Susanne Krieger"]
[null,"SEASHARE,,,MAR-DAK,ESP","SEASHARE","","","MAR-DAK","ESP",0.18,null,"Research Susanne Krieger"]
[null,"SEASHARE,,,MAR-DRA,ESP","SEASHARE","","","MAR-DRA","ESP",0.18,null,"Research Susanne Krieger"]
[null,"SEASHARE,,,MAR-FES,ESP","SEASHARE","","","MAR-FES","ESP",0.18,null,"Research Susanne Krieger"]
[null,"SEASHARE,,,MAR-GUE,ESP","SEASHARE","","","MAR-GUE","ESP",0.18,null,"Research Susanne Krieger"]
[null,"SEASHARE,,,MAR-LAA,ESP","SEASHARE","","","MAR-LAA","ESP",0.18,null,"Research Susanne Krieger"]
[null,"SEASHARE,,,MAR-LOR,ESP","SEASHARE","","","MAR-LOR","ESP",0.18,null,"Research Susanne Krieger"]
[null,"SEASHARE,,,MAR-MAR,ESP","SEASHARE","","","MAR-MAR","ESP",0.18,null,"Research Susanne Krieger"]
[null,"SEASHARE,,,MAR-RAB,ESP","SEASHARE","","","MAR-RAB","ESP",0.18,null,"Research Susanne Krieger"]
[null,"SEASHARE,,,MAR-SOU,ESP","SEASHARE","","","MAR-SOU","ESP",0.18,null,"Research Susanne Krieger"]
[null,"SEASHARE,,,MAR-TAN,ESP","SEASHARE","","","MAR-TAN","ESP",0.18,null,"Research Susanne Krieger"]
[null,"SEASHARE,,,MEX,USA","SEASHARE","","","MEX","USA",1,null,"Research Susanne Krieger"]
[null,"SEASHARE,,,NOR,DEU","SEASHARE","","","NOR","DEU",1,null,"Research Susanne Krieger"]
[null,"SEASHARE,,,NOR,ESP","SEASHARE","","","NOR","ESP",0.45,null,"Research Susanne Krieger"]
[null,"SEASHARE,,,NOR,FRA","SEASHARE","","","NOR","FRA",0.9,null,"Research Susanne Krieger"]
[null,"SEASHARE,,,NOR,NLD","SEASHARE","","","NOR","NLD",1,null,"Research Susanne Krieger"]
[null,"SEASHARE,,,PER,USA","SEASHARE","","","PER","USA",0.58181818181818201,null,"Research Susanne Krieger"]
[null,"SEASHARE,,,RUS,DEU","SEASHARE","","","RUS","DEU",1,null,"Research Susanne Krieger"]
[null,"SEASHARE,,,RUS,JPN","SEASHARE","","","RUS","JPN",0.17499999999999999,null,"Research Susanne Krieger"]
[null,"SEASHARE,,,SAU,IND","SEASHARE","","","SAU","IND",0.74285714285714299,null,"Research Susanne Krieger"]
[null,"SEASHARE,,,SWE,DEU","SEASHARE","","","SWE","DEU",0.3,null,"Research Susanne Krieger"]
[null,"SEASHARE,,,SWE,ESP","SEASHARE","","","SWE","ESP",0.1,null,"Research Susanne Krieger"]
[null,"SEASHARE,,,SWE,FRA","SEASHARE","","","SWE","FRA",0.15,null,"Research Susanne Krieger"]
[null,"SEASHARE,,,SWE,NLD","SEASHARE","","","SWE","NLD",0.15,null,"Research Susanne Krieger"]
[null,"SEASHARE,,,THA,JPN","SEASHARE","","","THA","JPN",0.18,null,"Research Susanne Krieger"]
[null,"SEASHARE,,,THA,KOR","SEASHARE","","","THA","KOR",0.16,null,"Research Susanne Krieger"]
[null,"SEASHARE,,,TUN,DEU","SEASHARE","","","TUN","DEU",0.35,null,"Research Susanne Krieger"]
[null,"SEASHARE,,,TUN,ESP","SEASHARE","","","TUN","ESP",0.46666666666666701,null,"Research Susanne Krieger"]
[null,"SEASHARE,,,TUN,FRA","SEASHARE","","","TUN","FRA",0.7,null,"Research Susanne Krieger"]
[null,"SEASHARE,,,TUN,NLD","SEASHARE","","","TUN","NLD",0.28000000000000003,null,"Research Susanne Krieger"]
[null,"SEASHARE,,,VNM,JPN","SEASHARE","","","VNM","JPN",0.22500000000000001,null,"Research Susanne Krieger"]
[null,"SEASHARE,,,VNM,KOR","SEASHARE","","","VNM","KOR",0.16,null,"Research Susanne Krieger"]
[null,"SPECCOST,,BFUEL-L,,","SPECCOST","","BFUEL-L","","",1.6435608502148554E-3,"USD2021 / kwh bunker fuel (l)"]
[null,"SPECCOST,,CO2-G,,","SPECCOST","","CO2-G","","",3.8577660276243091E-2,"USD2021 / kg CO2 (g)"]
[null,"SPECCOST,,EL,,","SPECCOST","","EL","","",7.0000000000000007E-2,"USD2021 / kWh (el.)","dummy mh! Auf Null gesetzt bis bug in Rechner behoben ist. Korrekter Wert ist 0,08"]
[null,"SPECCOST,,H2O-L,,","SPECCOST","","H2O-L","","",1.190463995027624E-3,"USD2021 / kg H2O (l)"]
[null,"SPECCOST,,HEAT,,","SPECCOST","","HEAT","","",0.05,"USD2021 / kWh (heat)"]
[null,"SPECCOST,,N2-G,,","SPECCOST","","N2-G","","",0.01,"USD2021 / kg N2 (g)"]
[null,"WACC,,,ARE,","WACC","","","ARE","",5.5673211551852057E-2,"fraction"]
[null,"WACC,,,ARG,","WACC","","","ARG","",0.15031035355923136,"fraction"]
[null,"WACC,,,ARG-BA,","WACC","","","ARG-BA","",0.15031035355923136,"fraction"]
[null,"WACC,,,ARG-CAT,","WACC","","","ARG-CAT","",0.15031035355923136,"fraction"]
[null,"WACC,,,ARG-CBA,","WACC","","","ARG-CBA","",0.15031035355923136,"fraction"]
[null,"WACC,,,ARG-CHA,","WACC","","","ARG-CHA","",0.15031035355923136,"fraction"]
[null,"WACC,,,ARG-CHU,","WACC","","","ARG-CHU","",0.15031035355923136,"fraction"]
[null,"WACC,,,ARG-COR,","WACC","","","ARG-COR","",0.15031035355923136,"fraction"]
[null,"WACC,,,ARG-CRB,","WACC","","","ARG-CRB","",0.15031035355923136,"fraction"]
[null,"WACC,,,ARG-CRU,","WACC","","","ARG-CRU","",0.15031035355923136,"fraction"]
[null,"WACC,,,ARG-EST,","WACC","","","ARG-EST","",0.15031035355923136,"fraction"]
[null,"WACC,,,ARG-FOR,","WACC","","","ARG-FOR","",0.15031035355923136,"fraction"]
[null,"WACC,,,ARG-FUE,","WACC","","","ARG-FUE","",0.15031035355923136,"fraction"]
[null,"WACC,,,ARG-JUJ,","WACC","","","ARG-JUJ","",0.15031035355923136,"fraction"]
[null,"WACC,,,ARG-LAR,","WACC","","","ARG-LAR","",0.15031035355923136,"fraction"]
[null,"WACC,,,ARG-MEN,","WACC","","","ARG-MEN","",0.15031035355923136,"fraction"]
[null,"WACC,,,ARG-MIS,","WACC","","","ARG-MIS","",0.15031035355923136,"fraction"]
[null,"WACC,,,ARG-NEG,","WACC","","","ARG-NEG","",0.15031035355923136,"fraction"]
[null,"WACC,,,ARG-NEU,","WACC","","","ARG-NEU","",0.15031035355923136,"fraction"]
[null,"WACC,,,ARG-PAM,","WACC","","","ARG-PAM","",0.15031035355923136,"fraction"]
[null,"WACC,,,ARG-RIO,","WACC","","","ARG-RIO","",0.15031035355923136,"fraction"]
[null,"WACC,,,ARG-SAF,","WACC","","","ARG-SAF","",0.15031035355923136,"fraction"]
[null,"WACC,,,ARG-SAJ,","WACC","","","ARG-SAJ","",0.15031035355923136,"fraction"]
[null,"WACC,,,ARG-SAL,","WACC","","","ARG-SAL","",0.15031035355923136,"fraction"]
[null,"WACC,,,ARG-SAT,","WACC","","","ARG-SAT","",0.15031035355923136,"fraction"]
[null,"WACC,,,ARG-TUC,","WACC","","","ARG-TUC","",0.15031035355923136,"fraction"]
[null,"WACC,,,AUS,","WACC","","","AUS","",5.0299999999999997E-2,"fraction"]
[null,"WACC,,,BRA,","WACC","","","BRA","",8.2832353577576984E-2,"fraction"]
[null,"WACC,,,CHL,","WACC","","","CHL","",5.5673211551852057E-2,"fraction"]
[null,"WACC,,,CHN,","WACC","","","CHN","",5.5673211551852057E-2,"fraction"]
[null,"WACC,,,COL,","WACC","","","COL","",7.0913593408014244E-2,"fraction"]
[null,"WACC,,,CRI,","WACC","","","CRI","",0.10395003232720652,"fraction"]
[null,"WACC,,,DNK,","WACC","","","DNK","",5.0299999999999997E-2,"fraction"]
[null,"WACC,,,DZA,","WACC","","","DZA","",9.1999999999999998E-2,"fraction"]
[null,"WACC,,,EGY,","WACC","","","EGY","",0.11336853373134342,"fraction"]
[null,"WACC,,,ESP,","WACC","","","ESP","",6.4274782725559448E-2,"fraction"]
[null,"WACC,,,IDN,","WACC","","","IDN","",7.0913593408014244E-2,"fraction"]
[null,"WACC,,,IND,","WACC","","","IND","",7.237045402218821E-2,"fraction"]
[null,"WACC,,,JOR,","WACC","","","JOR","",9.9049682988621379E-2,"fraction"]
[null,"WACC,,,KAZ,","WACC","","","KAZ","",7.3401485154905771E-2,"fraction"]
[null,"WACC,,,KEN,","WACC","","","KEN","",0.10989380084781369,"fraction"]
[null,"WACC,,,MAR,","WACC","","","MAR","",7.731973992583685E-2,"fraction"]
[null,"WACC,,,MAR-BEN,","WACC","","","MAR-BEN","",7.731973992583685E-2,"fraction"]
[null,"WACC,,,MAR-CAS,","WACC","","","MAR-CAS","",7.731973992583685E-2,"fraction"]
[null,"WACC,,,MAR-DAK,","WACC","","","MAR-DAK","",7.731973992583685E-2,"fraction"]
[null,"WACC,,,MAR-DRA,","WACC","","","MAR-DRA","",7.731973992583685E-2,"fraction"]
[null,"WACC,,,MAR-FES,","WACC","","","MAR-FES","",7.731973992583685E-2,"fraction"]
[null,"WACC,,,MAR-GUE,","WACC","","","MAR-GUE","",7.731973992583685E-2,"fraction"]
[null,"WACC,,,MAR-LAA,","WACC","","","MAR-LAA","",7.731973992583685E-2,"fraction"]
[null,"WACC,,,MAR-LOR,","WACC","","","MAR-LOR","",7.731973992583685E-2,"fraction"]
[null,"WACC,,,MAR-MAR,","WACC","","","MAR-MAR","",7.731973992583685E-2,"fraction"]
[null,"WACC,,,MAR-RAB,","WACC","","","MAR-RAB","",7.731973992583685E-2,"fraction"]
[null,"WACC,,,MAR-SOU,","WACC","","","MAR-SOU","",7.731973992583685E-2,"fraction"]
[null,"WACC,,,MAR-TAN,","WACC","","","MAR-TAN","",7.731973992583685E-2,"fraction"]
[null,"WACC,,,MEX,","WACC","","","MEX","",6.4274782725559448E-2,"fraction"]
[null,"WACC,,,MRT,","WACC","","","MRT","",9.1999999999999998E-2,"fraction"]
[null,"WACC,,,NAM,","WACC","","","NAM","",8.3993056414234241E-2,"fraction"]
[null,"WACC,,,NOR,","WACC","","","NOR","",5.0299999999999997E-2,"fraction"]
[null,"WACC,,,PER,","WACC","","","PER","",6.4274782725559448E-2,"fraction"]
[null,"WACC,,,PRT,","WACC","","","PRT","",7.3401485154905771E-2,"fraction"]
[null,"WACC,,,RUS,","WACC","","","RUS","",7.5170549034228915E-2,"fraction"]
[null,"WACC,,,SAU,","WACC","","","SAU","",5.5673211551852057E-2,"fraction"]
[null,"WACC,,,SWE,","WACC","","","SWE","",5.0299999999999997E-2,"fraction"]
[null,"WACC,,,THA,","WACC","","","THA","",6.4274782725559448E-2,"fraction"]
[null,"WACC,,,TUN,","WACC","","","TUN","",0.11482300617243665,"fraction"]
[null,"WACC,,,UKR,","WACC","","","UKR","",0.1266281397634636,"fraction"]
[null,"WACC,,,URY,","WACC","","","URY","",7.731973992583685E-2,"fraction"]
[null,"WACC,,,USA,","WACC","","","USA","",5.0299999999999997E-2,"fraction"]
[null,"WACC,,,VNM,","WACC","","","VNM","",8.9280207439799461E-2,"fraction"]
[null,"WACC,,,ZAF,","WACC","","","ZAF","",7.8066629268261314E-2,"fraction"]
[null,"WACC,,,ZAF-EC,","WACC","","","ZAF-EC","",7.8066629268261314E-2,"fraction"]
[null,"WACC,,,ZAF-FRS,","WACC","","","ZAF-FRS","",7.8066629268261314E-2,"fraction"]
[null,"WACC,,,ZAF-GAU,","WACC","","","ZAF-GAU","",7.8066629268261314E-2,"fraction"]
[null,"WACC,,,ZAF-KWA,","WACC","","","ZAF-KWA","",7.8066629268261314E-2,"fraction"]
[null,"WACC,,,ZAF-LIM,","WACC","","","ZAF-LIM","",7.8066629268261314E-2,"fraction"]
[null,"WACC,,,ZAF-MPU,","WACC","","","ZAF-MPU","",7.8066629268261314E-2,"fraction"]
[null,"WACC,,,ZAF-NC,","WACC","","","ZAF-NC","",7.8066629268261314E-2,"fraction"]
[null,"WACC,,,ZAF-NW,","WACC","","","ZAF-NW","",7.8066629268261314E-2,"fraction"]
[null,"WACC,,,ZAF-WC,","WACC","","","ZAF-WC","",7.8066629268261314E-2,"fraction"]
["/data"]

{"sheet":"_scenario_2040_low","index":47,"n_rows":2137,"n_cols":10,"rows_kept":2137,"cut":false,"hidden":true,"merged":[]}
["data","key","parameter_code","process_code","flow_code","source_region_code","target_country_code","value","unit","source"]
[null,"CALOR,,CH3OH-L,,","CALOR","","CH3OH-L","","",5.5277777777777768,"kWh CH3OH (l)/kg","Wikipedia with conversions"]
[null,"CALOR,,CH4-G,,","CALOR","","CH4-G","","",13.5,"kWh CH4 (g)/kg","Wikipedia with conversions"]
[null,"CALOR,,CH4-L,,","CALOR","","CH4-L","","",13.5,"kWh CH4 (l)/kg","Wikipedia with conversions"]
[null,"CALOR,,CHX-L,,","CALOR","","CHX-L","","",11.944444444444445,"kwh CHx (l)/kg","Wikipedia with conversions"]
[null,"CALOR,,DRI-S,,","CALOR","","DRI-S","","",1,"kg DRI (s)/kg","no conversion necessary"]
[null,"CALOR,,H2-G,,","CALOR","","H2-G","","",33.33,"kWh H2 (g)/kg","Linde"]
[null,"CALOR,,H2-L,,","CALOR","","H2-L","","",33.33,"kWh H2 (l)/kg","Linde"]
[null,"CALOR,,LOHC-L,,","CALOR","","LOHC-L","","",33.33,"kWh H2 (l)/kg","Linde"]
[null,"CALOR,,NH3-L,,","CALOR","","NH3-L","","",5.1999999999999993,"kWh NH3 (l)/kg","Wikipedia with conversions"]
[null,"CAPEX,AEL-EL,,,","CAPEX","AEL-EL","","","",516.53590225586868,"USD2021/kW"]
[null,"CAPEX,ATR,,,","CAPEX","ATR","","","",1000.0341055522356,"USD2021/kW","Oni et al. 2022"]
[null,"CAPEX,CH3OHSYN,,,","CAPEX","CH3OHSYN","","","",619.84010284437295,"USD2021/kW","Öko-Institut 2020"]
[null,"CAPEX,CH4-COMP,,,","CAPEX","CH4-COMP","","","",109.99917241203053,"USD2021/kW","DNV GL 2020"]
[null,"CAPEX,CH4-LIQ,,,","CAPEX","CH4-LIQ","","","",439.99368256303694,"USD2021/kW","Hank et al. 2020"]
[null,"CAPEX,CH4SYN,,,","CAPEX","CH4SYN","","","",649.0778435445792,"USD2021/kW","Öko-Institut 2020"]
[null,"CAPEX,DAC,,,","CAPEX","DAC","","","",0.29194837836964049,"USD2021/ kg CO2 (g)*a","Fasihi et al. 2019"]
[null,"CAPEX,DESAL,,,","CAPEX","DESAL","","","",2.3667276243093918E-3,"USD2021/l*a","Fraunhofer IEE"]
[null,"CAPEX,DRI,,,","CAPEX","DRI","","","",4125.6284525730507,"USD2021/kg DRI (s)/a*h","Agora Industry Transformation 2021"]
[null,"CAPEX,EFUELSYN,,,","CAPEX","EFUELSYN","","","",619.84010284437295,"USD2021/kW","Öko-Institut 2020"]
[null,"CAPEX,H2-COMP,,,","CAPEX","H2-COMP","","","",109.99917241203053,"USD2021/kW","DNV GL 2020"]
[null,"CAPEX,H2-LIQ,,,","CAPEX","H2-LIQ","","","",1002.8117916963051,"USD2021/kW","IEA 2015"]
[null,"CAPEX,H2-RGAS,,,","CAPEX","H2-RGAS","","","",132.39460989295262,"USD2021/kW","DNV GL 2020"]
[null,"CAPEX,LOHC-CON,,,","CAPEX","LOHC-CON","","","",115.62902187902189,"USD2021/kW","DNV GL 2020"]
[null,"CAPEX,LOHC-REC,,,","CAPEX","LOHC-REC","","","",392.49239121445908,"USD2021/kW","DNV GL 2020"]
[null,"CAPEX,NH3-REC,,,","CAPEX","NH3-REC","","","",400.62187765124105,"USD2021/kW","NGN; Equinor 2018"]
[null,"CAPEX,NH3SYN,,,","CAPEX","NH3SYN","","","",1148.7731776455587,"USD2021/kW","Fasihi et al. 2021"]
[null,"CAPEX,PEM-EL,,,","CAPEX","PEM-EL","","","",731.33997558593967,"USD2021/kW"]
[null,"CAPEX,PV-FIX,,ARE,","CAPEX","PV-FIX","","ARE","",689.9185245680053,"USD2021/kW"]
[null,"CAPEX,PV-FIX,,ARG,","CAPEX","PV-FIX","","ARG","",669.35207991562413,"USD2021/kW"]
[null,"CAPEX,PV-FIX,,ARG-BA,","CAPEX","PV-FIX","","ARG-BA","",669.35207991562413,"USD2021/kW"]
[null,"CAPEX,PV-FIX,,ARG-CAT,","CAPEX","PV-FIX","","ARG-CAT","",669.35207991562413,"USD2021/kW"]
[null,"CAPEX,PV-FIX,,ARG-CBA,","CAPEX","PV-FIX","","ARG-CBA","",669.35207991562413,"USD2021/kW"]
[null,"CAPEX,PV-FIX,,ARG-CHA,","CAPEX","PV-FIX","","ARG-CHA","",669.35207991562413,"USD2021/kW"]
[null,"CAPEX,PV-FIX,,ARG-CHU,","CAPEX","PV-FIX","","ARG-CHU","",669.35207991562413,"USD2021/kW"]
[null,"CAPEX,PV-FIX,,ARG-COR,","CAPEX","PV-FIX","","ARG-COR","",669.35207991562413,"USD2021/kW"]
[null,"CAPEX,PV-FIX,,ARG-CRB,","CAPEX","PV-FIX","","ARG-CRB","",669.35207991562413,"USD2021/kW"]
[null,"CAPEX,PV-FIX,,ARG-CRU,","CAPEX","PV-FIX","","ARG-CRU","",669.35207991562413,"USD2021/kW"]
[null,"CAPEX,PV-FIX,,ARG-EST,","CAPEX","PV-FIX","","ARG-EST","",669.35207991562413,"USD2021/kW"]
[null,"CAPEX,PV-FIX,,ARG-FOR,","CAPEX","PV-FIX","","ARG-FOR","",669.35207991562413,"USD2021/kW"]
[null,"CAPEX,PV-FIX,,ARG-FUE,","CAPEX","PV-FIX","","ARG-FUE","",669.35207991562413,"USD2021/kW"]
[null,"CAPEX,PV-FIX,,ARG-JUJ,","CAPEX","PV-FIX","","ARG-JUJ","",669.35207991562413,"USD2021/kW"]
[null,"CAPEX,PV-FIX,,ARG-LAR,","CAPEX","PV-FIX","","ARG-LAR","",669.35207991562413,"USD2021/kW"]
[null,"CAPEX,PV-FIX,,ARG-MEN,","CAPEX","PV-FIX","","ARG-MEN","",669.35207991562413,"USD2021/kW"]
[null,"CAPEX,PV-FIX,,ARG-MIS,","CAPEX","PV-FIX","","ARG-MIS","",669.35207991562413,"USD2021/kW"]
[null,"CAPEX,PV-FIX,,ARG-NEG,","CAPEX","PV-FIX","","ARG-NEG","",669.35207991562413,"USD2021/kW"]
[null,"CAPEX,PV-FIX,,ARG-NEU,","CAPEX","PV-FIX","","ARG-NEU","",669.35207991562413,"USD2021/kW"]
[null,"CAPEX,PV-FIX,,ARG-PAM,","CAPEX","PV-FIX","","ARG-PAM","",669.35207991562413,"USD2021/kW"]
[null,"CAPEX,PV-FIX,,ARG-RIO,","CAPEX","PV-FIX","","ARG-RIO","",669.35207991562413,"USD2021/kW"]
[null,"CAPEX,PV-FIX,,ARG-SAF,","CAPEX","PV-FIX","","ARG-SAF","",669.35207991562413,"USD2021/kW"]
[null,"CAPEX,PV-FIX,,ARG-SAJ,","CAPEX","PV-FIX","","ARG-SAJ","",669.35207991562413,"USD2021/kW"]
[null,"CAPEX,PV-FIX,,ARG-SAL,","CAPEX","PV-FIX","","ARG-SAL","",669.35207991562413,"USD2021/kW"]
[null,"CAPEX,PV-FIX,,ARG-SAT,","CAPEX","PV-FIX","","ARG-SAT","",669.35207991562413,"USD2021/kW"]
[null,"CAPEX,PV-FIX,,ARG-TUC,","CAPEX","PV-FIX","","ARG-TUC","",669.35207991562413,"USD2021/kW"]
[null,"CAPEX,PV-FIX,,AUS,","CAPEX","PV-FIX","","AUS","",756.24530857193474,"USD2021/kW"]
[null,"CAPEX,PV-FIX,,BRA,","CAPEX","PV-FIX","","BRA","",655.29834273649692,"USD2021/kW"]
[null,"CAPEX,PV-FIX,,CHL,","CAPEX","PV-FIX","","CHL","",745.10515105189495,"USD2021/kW"]
[null,"CAPEX,PV-FIX,,CHN,","CAPEX","PV-FIX","","CHN","",433.60920808770425,"USD2021/kW"]
[null,"CAPEX,PV-FIX,,COL,","CAPEX","PV-FIX","","COL","",689.9185245680053,"USD2021/kW"]
[null,"CAPEX,PV-FIX,,CRI,","CAPEX","PV-FIX","","CRI","",689.9185245680053,"USD2021/kW"]
[null,"CAPEX,PV-FIX,,DNK,","CAPEX","PV-FIX","","DNK","",598.14076530675413,"USD2021/kW"]
[null,"CAPEX,PV-FIX,,DZA,","CAPEX","PV-FIX","","DZA","",689.9185245680053,"USD2021/kW"]
[null,"CAPEX,PV-FIX,,EGY,","CAPEX","PV-FIX","","EGY","",689.9185245680053,"USD2021/kW"]
[null,"CAPEX,PV-FIX,,ESP,","CAPEX","PV-FIX","","ESP","",650.07103805401675,"USD2021/kW"]
[null,"CAPEX,PV-FIX,,IDN,","CAPEX","PV-FIX","","IDN","",799.69192290009016,"USD2021/kW"]
[null,"CAPEX,PV-FIX,,IND,","CAPEX","PV-FIX","","IND","",448.17710638314094,"USD2021/kW"]
[null,"CAPEX,PV-FIX,,JOR,","CAPEX","PV-FIX","","JOR","",689.9185245680053,"USD2021/kW"]
[null,"CAPEX,PV-FIX,,KAZ,","CAPEX","PV-FIX","","KAZ","",689.9185245680053,"USD2021/kW"]
[null,"CAPEX,PV-FIX,,KEN,","CAPEX","PV-FIX","","KEN","",689.9185245680053,"USD2021/kW"]
[null,"CAPEX,PV-FIX,,MAR,","CAPEX","PV-FIX","","MAR","",689.9185245680053,"USD2021/kW"]
[null,"CAPEX,PV-FIX,,MAR-BEN,","CAPEX","PV-FIX","","MAR-BEN","",689.9185245680053,"USD2021/kW"]
[null,"CAPEX,PV-FIX,,MAR-CAS,","CAPEX","PV-FIX","","MAR-CAS","",689.9185245680053,"USD2021/kW"]
[null,"CAPEX,PV-FIX,,MAR-DAK,","CAPEX","PV-FIX","","MAR-DAK","",689.9185245680053,"USD2021/kW"]
[null,"CAPEX,PV-FIX,,MAR-DRA,","CAPEX","PV-FIX","","MAR-DRA","",689.9185245680053,"USD2021/kW"]
[null,"CAPEX,PV-FIX,,MAR-FES,","CAPEX","PV-FIX","","MAR-FES","",689.9185245680053,"USD2021/kW"]
[null,"CAPEX,PV-FIX,,MAR-GUE,","CAPEX","PV-FIX","","MAR-GUE","",689.9185245680053,"USD2021/kW"]
[null,"CAPEX,PV-FIX,,MAR-LAA,","CAPEX","PV-FIX","","MAR-LAA","",689.9185245680053,"USD2021/kW"]
[null,"CAPEX,PV-FIX,,MAR-LOR,","CAPEX","PV-FIX","","MAR-LOR","",689.9185245680053,"USD2021/kW"]
[null,"CAPEX,PV-FIX,,MAR-MAR,","CAPEX","PV-FIX","","MAR-MAR","",689.9185245680053,"USD2021/kW"]
[null,"CAPEX,PV-FIX,,MAR-RAB,","CAPEX","PV-FIX","","MAR-RAB","",689.9185245680053,"USD2021/kW"]
[null,"CAPEX,PV-FIX,,MAR-SOU,","CAPEX","PV-FIX","","MAR-SOU","",689.9185245680053,"USD2021/kW"]
[null,"CAPEX,PV-FIX,,MAR-TAN,","CAPEX","PV-FIX","","MAR-TAN","",689.9185245680053,"USD2021/kW"]
[null,"CAPEX,PV-FIX,,MEX,","CAPEX","PV-FIX","","MEX","",628.73335172717123,"USD2021/kW"]
[null,"CAPEX,PV-FIX,,MRT,","CAPEX","PV-FIX","","MRT","",689.9185245680053,"USD2021/kW"]
[null,"CAPEX,PV-FIX,,NAM,","CAPEX","PV-FIX","","NAM","",689.9185245680053,"USD2021/kW"]
[null,"CAPEX,PV-FIX,,NOR,","CAPEX","PV-FIX","","NOR","",635.71261280596548,"USD2021/kW"]
[null,"CAPEX,PV-FIX,,PER,","CAPEX","PV-FIX","","PER","",689.9185245680053,"USD2021/kW"]
[null,"CAPEX,PV-FIX,,PRT,","CAPEX","PV-FIX","","PRT","",697.63094131264836,"USD2021/kW"]
[null,"CAPEX,PV-FIX,,RUS,","CAPEX","PV-FIX","","RUS","",1237.5858069570406,"USD2021/kW"]
[null,"CAPEX,PV-FIX,,SAU,","CAPEX","PV-FIX","","SAU","",715.54088686409693,"USD2021/kW"]
[null,"CAPEX,PV-FIX,,SWE,","CAPEX","PV-FIX","","SWE","",635.71261280596548,"USD2021/kW"]
[null,"CAPEX,PV-FIX,,THA,","CAPEX","PV-FIX","","THA","",761.2155326962602,"USD2021/kW"]
[null,"CAPEX,PV-FIX,,TUN,","CAPEX","PV-FIX","","TUN","",689.9185245680053,"USD2021/kW"]
[null,"CAPEX,PV-FIX,,UKR,","CAPEX","PV-FIX","","UKR","",635.71261280596548,"USD2021/kW"]
[null,"CAPEX,PV-FIX,,URY,","CAPEX","PV-FIX","","URY","",689.9185245680053,"USD2021/kW"]
[null,"CAPEX,PV-FIX,,USA,","CAPEX","PV-FIX","","USA","",824.20026944417771,"USD2021/kW"]
[null,"CAPEX,PV-FIX,,VNM,","CAPEX","PV-FIX","","VNM","",761.2155326962602,"USD2021/kW"]
[null,"CAPEX,PV-FIX,,ZAF,","CAPEX","PV-FIX","","ZAF","",689.9185245680053,"USD2021/kW"]
[null,"CAPEX,PV-FIX,,ZAF-EC,","CAPEX","PV-FIX","","ZAF-EC","",689.9185245680053,"USD2021/kW"]
[null,"CAPEX,PV-FIX,,ZAF-FRS,","CAPEX","PV-FIX","","ZAF-FRS","",689.9185245680053,"USD2021/kW"]
[null,"CAPEX,PV-FIX,,ZAF-GAU,","CAPEX","PV-FIX","","ZAF-GAU","",689.9185245680053,"USD2021/kW"]
[null,"CAPEX,PV-FIX,,ZAF-KWA,","CAPEX","PV-FIX","","ZAF-KWA","",689.9185245680053,"USD2021/kW"]
[null,"CAPEX,PV-FIX,,ZAF-LIM,","CAPEX","PV-FIX","","ZAF-LIM","",689.9185245680053,"USD2021/kW"]
[null,"CAPEX,PV-FIX,,ZAF-MPU,","CAPEX","PV-FIX","","ZAF-MPU","",689.9185245680053,"USD2021/kW"]
[null,"CAPEX,PV-FIX,,ZAF-NC,","CAPEX","PV-FIX","","ZAF-NC","",689.9185245680053,"USD2021/kW"]
[null,"CAPEX,PV-FIX,,ZAF-NW,","CAPEX","PV-FIX","","ZAF-NW","",689.9185245680053,"USD2021/kW"]
[null,"CAPEX,PV-FIX,,ZAF-WC,","CAPEX","PV-FIX","","ZAF-WC","",689.9185245680053,"USD2021/kW"]
[null,"CAPEX,REGASATR,,,","CAPEX","REGASATR","","","",1000.0341055522356,"USD2021/kW","combined values"]
[null,"CAPEX,RES-HYBR,,ARE,","CAPEX","RES-HYBR","","ARE","",1080.7188212028464,"USD2021/kW","calculated. PV:  WIND-ON: "]
[null,"CAPEX,RES-HYBR,,ARG,","CAPEX","RES-HYBR","","ARG","",1168.0606536199327,"USD2021/kW","calculated. PV:  WIND-ON: "]
[null,"CAPEX,RES-HYBR,,ARG-BA,","CAPEX","RES-HYBR","","ARG-BA","",1168.0606536199327,"USD2021/kW","calculated. PV:  WIND-ON: "]
[null,"CAPEX,RES-HYBR,,ARG-CAT,","CAPEX","RES-HYBR","","ARG-CAT","",1168.0606536199327,"USD2021/kW","calculated. PV:  WIND-ON: "]
[null,"CAPEX,RES-HYBR,,ARG-CBA,","CAPEX","RES-HYBR","","ARG-CBA","",1168.0606536199327,"USD2021/kW","calculated. PV:  WIND-ON: "]
[null,"CAPEX,RES-HYBR,,ARG-CHA,","CAPEX","RES-HYBR","","ARG-CHA","",1168.0606536199327,"USD2021/kW","calculated. PV:  WIND-ON: "]
[null,"CAPEX,RES-HYBR,,ARG-CHU,","CAPEX","RES-HYBR","","ARG-CHU","",1168.0606536199327,"USD2021/kW","calculated. PV:  WIND-ON: "]
[null,"CAPEX,RES-HYBR,,ARG-COR,","CAPEX","RES-HYBR","","ARG-COR","",1168.0606536199327,"USD2021/kW","calculated. PV:  WIND-ON: "]
[null,"CAPEX,RES-HYBR,,ARG-CRB,","CAPEX","RES-HYBR","","ARG-CRB","",1168.0606536199327,"USD2021/kW","calculated. PV:  WIND-ON: "]
[null,"CAPEX,RES-HYBR,,ARG-CRU,","CAPEX","RES-HYBR","","ARG-CRU","",1168.0606536199327,"USD2021/kW","calculated. PV:  WIND-ON: "]
[null,"CAPEX,RES-HYBR,,ARG-EST,","CAPEX","RES-HYBR","","ARG-EST","",1168.0606536199327,"USD2021/kW","calculated. PV:  WIND-ON: "]
[null,"CAPEX,RES-HYBR,,ARG-FOR,","CAPEX","RES-HYBR","","ARG-FOR","",1168.0606536199327,"USD2021/kW","calculated. PV:  WIND-ON: "]
[null,"CAPEX,RES-HYBR,,ARG-FUE,","CAPEX","RES-HYBR","","ARG-FUE","",1168.0606536199327,"USD2021/kW","calculated. PV:  WIND-ON: "]
[null,"CAPEX,RES-HYBR,,ARG-JUJ,","CAPEX","RES-HYBR","","ARG-JUJ","",1168.0606536199327,"USD2021/kW","calculated. PV:  WIND-ON: "]
[null,"CAPEX,RES-HYBR,,ARG-LAR,","CAPEX","RES-HYBR","","ARG-LAR","",1168.0606536199327,"USD2021/kW","calculated. PV:  WIND-ON: "]
[null,"CAPEX,RES-HYBR,,ARG-MEN,","CAPEX","RES-HYBR","","ARG-MEN","",1168.0606536199327,"USD2021/kW","calculated. PV:  WIND-ON: "]
[null,"CAPEX,RES-HYBR,,ARG-MIS,","CAPEX","RES-HYBR","","ARG-MIS","",1168.0606536199327,"USD2021/kW","calculated. PV:  WIND-ON: "]
[null,"CAPEX,RES-HYBR,,ARG-NEG,","CAPEX","RES-HYBR","","ARG-NEG","",1168.0606536199327,"USD2021/kW","calculated. PV:  WIND-ON: "]
[null,"CAPEX,RES-HYBR,,ARG-NEU,","CAPEX","RES-HYBR","","ARG-NEU","",1168.0606536199327,"USD2021/kW","calculated. PV:  WIND-ON: "]
[null,"CAPEX,RES-HYBR,,ARG-PAM,","CAPEX","RES-HYBR","","ARG-PAM","",1168.0606536199327,"USD2021/kW","calculated. PV:  WIND-ON: "]
[null,"CAPEX,RES-HYBR,,ARG-RIO,","CAPEX","RES-HYBR","","ARG-RIO","",1168.0606536199327,"USD2021/kW","calculated. PV:  WIND-ON: "]
[null,"CAPEX,RES-HYBR,,ARG-SAF,","CAPEX","RES-HYBR","","ARG-SAF","",1168.0606536199327,"USD2021/kW","calculated. PV:  WIND-ON: "]
[null,"CAPEX,RES-HYBR,,ARG-SAJ,","CAPEX","RES-HYBR","","ARG-SAJ","",1168.0606536199327,"USD2021/kW","calculated. PV:  WIND-ON: "]
[null,"CAPEX,RES-HYBR,,ARG-SAL,","CAPEX","RES-HYBR","","ARG-SAL","",1168.0606536199327,"USD2021/kW","calculated. PV:  WIND-ON: "]
[null,"CAPEX,RES-HYBR,,ARG-SAT,","CAPEX","RES-HYBR","","ARG-SAT","",1168.0606536199327,"USD2021/kW","calculated. PV:  WIND-ON: "]
[null,"CAPEX,RES-HYBR,,ARG-TUC,","CAPEX","RES-HYBR","","ARG-TUC","",1168.0606536199327,"USD2021/kW","calculated. PV:  WIND-ON: "]
[null,"CAPEX,RES-HYBR,,AUS,","CAPEX","RES-HYBR","","AUS","",1211.5072679480882,"USD2021/kW","calculated. PV:  WIND-ON: "]
[null,"CAPEX,RES-HYBR,,BRA,","CAPEX","RES-HYBR","","BRA","",875.30191748907077,"USD2021/kW","calculated. PV:  WIND-ON: "]
[null,"CAPEX,RES-HYBR,,CHL,","CAPEX","RES-HYBR","","CHL","",1205.9371891880683,"USD2021/kW","calculated. PV:  WIND-ON: "]
[null,"CAPEX,RES-HYBR,,CHN,","CAPEX","RES-HYBR","","CHN","",767.7908886193228,"USD2021/kW","calculated. PV:  WIND-ON: "]
[null,"CAPEX,RES-HYBR,,COL,","CAPEX","RES-HYBR","","COL","",1118.9592622840028,"USD2021/kW","calculated. PV:  WIND-ON: "]
[null,"CAPEX,RES-HYBR,,CRI,","CAPEX","RES-HYBR","","CRI","",1098.8151728137955,"USD2021/kW","calculated. PV:  WIND-ON: "]
[null,"CAPEX,RES-HYBR,,DNK,","CAPEX","RES-HYBR","","DNK","",1071.9750843525896,"USD2021/kW","calculated. PV:  WIND-ON: "]
[null,"CAPEX,RES-HYBR,,DZA,","CAPEX","RES-HYBR","","DZA","",1245.9670845975641,"USD2021/kW","calculated. PV:  WIND-ON: "]
[null,"CAPEX,RES-HYBR,,EGY,","CAPEX","RES-HYBR","","EGY","",1059.2889311372492,"USD2021/kW","calculated. PV:  WIND-ON: "]
[null,"CAPEX,RES-HYBR,,ESP,","CAPEX","RES-HYBR","","ESP","",882.95129609793912,"USD2021/kW","calculated. PV:  WIND-ON: "]
[null,"CAPEX,RES-HYBR,,IDN,","CAPEX","RES-HYBR","","IDN","",1471.3404647299146,"USD2021/kW","calculated. PV:  WIND-ON: "]
[null,"CAPEX,RES-HYBR,,IND,","CAPEX","RES-HYBR","","IND","",665.06806876364124,"USD2021/kW","calculated. PV:  WIND-ON: "]
[null,"CAPEX,RES-HYBR,,JOR,","CAPEX","RES-HYBR","","JOR","",1245.9670845975641,"USD2021/kW","calculated. PV:  WIND-ON: "]
[null,"CAPEX,RES-HYBR,,KAZ,","CAPEX","RES-HYBR","","KAZ","",1059.2889311372492,"USD2021/kW","calculated. PV:  WIND-ON: "]
[null,"CAPEX,RES-HYBR,,KEN,","CAPEX","RES-HYBR","","KEN","",1245.9670845975641,"USD2021/kW","calculated. PV:  WIND-ON: "]
[null,"CAPEX,RES-HYBR,,MAR,","CAPEX","RES-HYBR","","MAR","",1178.3438759461233,"USD2021/kW","calculated. PV:  WIND-ON: "]
[null,"CAPEX,RES-HYBR,,MAR-BEN,","CAPEX","RES-HYBR","","MAR-BEN","",1178.3438759461233,"USD2021/kW","calculated. PV:  WIND-ON: "]
[null,"CAPEX,RES-HYBR,,MAR-CAS,","CAPEX","RES-HYBR","","MAR-CAS","",1178.3438759461233,"USD2021/kW","calculated. PV:  WIND-ON: "]
[null,"CAPEX,RES-HYBR,,MAR-DAK,","CAPEX","RES-HYBR","","MAR-DAK","",1178.3438759461233,"USD2021/kW","calculated. PV:  WIND-ON: "]
[null,"CAPEX,RES-HYBR,,MAR-DRA,","CAPEX","RES-HYBR","","MAR-DRA","",1178.3438759461233,"USD2021/kW","calculated. PV:  WIND-ON: "]
[null,"CAPEX,RES-HYBR,,MAR-FES,","CAPEX","RES-HYBR","","MAR-FES","",1178.3438759461233,"USD2021/kW","calculated. PV:  WIND-ON: "]
[null,"CAPEX,RES-HYBR,,MAR-GUE,","CAPEX","RES-HYBR","","MAR-GUE","",1178.3438759461233,"USD2021/kW","calculated. PV:  WIND-ON: "]
[null,"CAPEX,RES-HYBR,,MAR-LAA,","CAPEX","RES-HYBR","","MAR-LAA","",1178.3438759461233,"USD2021/kW","calculated. PV:  WIND-ON: "]
[null,"CAPEX,RES-HYBR,,MAR-LOR,","CAPEX","RES-HYBR","","MAR-LOR","",1178.3438759461233,"USD2021/kW","calculated. PV:  WIND-ON: "]
[null,"CAPEX,RES-HYBR,,MAR-MAR,","CAPEX","RES-HYBR","","MAR-MAR","",1178.3438759461233,"USD2021/kW","calculated. PV:  WIND-ON: "]
[null,"CAPEX,RES-HYBR,,MAR-RAB,","CAPEX","RES-HYBR","","MAR-RAB","",1178.3438759461233,"USD2021/kW","calculated. PV:  WIND-ON: "]
[null,"CAPEX,RES-HYBR,,MAR-SOU,","CAPEX","RES-HYBR","","MAR-SOU","",1178.3438759461233,"USD2021/kW","calculated. PV:  WIND-ON: "]
[null,"CAPEX,RES-HYBR,,MAR-TAN,","CAPEX","RES-HYBR","","MAR-TAN","",1178.3438759461233,"USD2021/kW","calculated. PV:  WIND-ON: "]
[null,"CAPEX,RES-HYBR,,MEX,","CAPEX","RES-HYBR","","MEX","",1015.0906384955772,"USD2021/kW","calculated. PV:  WIND-ON: "]
[null,"CAPEX,RES-HYBR,,MRT,","CAPEX","RES-HYBR","","MRT","",1245.9670845975641,"USD2021/kW","calculated. PV:  WIND-ON: "]
[null,"CAPEX,RES-HYBR,,NAM,","CAPEX","RES-HYBR","","NAM","",1245.9670845975641,"USD2021/kW","calculated. PV:  WIND-ON: "]
[null,"CAPEX,RES-HYBR,,NOR,","CAPEX","RES-HYBR","","NOR","",1032.1859752562291,"USD2021/kW","calculated. PV:  WIND-ON: "]
[null,"CAPEX,RES-HYBR,,PER,","CAPEX","RES-HYBR","","PER","",940.23398632837461,"USD2021/kW","calculated. PV:  WIND-ON: "]
[null,"CAPEX,RES-HYBR,,PRT,","CAPEX","RES-HYBR","","PRT","",1182.2000843184449,"USD2021/kW","calculated. PV:  WIND-ON: "]
[null,"CAPEX,RES-HYBR,,RUS,","CAPEX","RES-HYBR","","RUS","",1333.1225723317666,"USD2021/kW","calculated. PV:  WIND-ON: "]
[null,"CAPEX,RES-HYBR,,SAU,","CAPEX","RES-HYBR","","SAU","",1093.5300023508921,"USD2021/kW","calculated. PV:  WIND-ON: "]
[null,"CAPEX,RES-HYBR,,SWE,","CAPEX","RES-HYBR","","SWE","",1090.7610081021953,"USD2021/kW","calculated. PV:  WIND-ON: "]
[null,"CAPEX,RES-HYBR,,THA,","CAPEX","RES-HYBR","","THA","",1116.3673252669737,"USD2021/kW","calculated. PV:  WIND-ON: "]
[null,"CAPEX,RES-HYBR,,TUN,","CAPEX","RES-HYBR","","TUN","",1245.9670845975641,"USD2021/kW","calculated. PV:  WIND-ON: "]
[null,"CAPEX,RES-HYBR,,UKR,","CAPEX","RES-HYBR","","UKR","",1032.1859752562291,"USD2021/kW","calculated. PV:  WIND-ON: "]
[null,"CAPEX,RES-HYBR,,URY,","CAPEX","RES-HYBR","","URY","",1416.4537655638724,"USD2021/kW","calculated. PV:  WIND-ON: "]
[null,"CAPEX,RES-HYBR,,USA,","CAPEX","RES-HYBR","","USA","",1070.0989902420486,"USD2021/kW","calculated. PV:  WIND-ON: "]
[null,"CAPEX,RES-HYBR,,VNM,","CAPEX","RES-HYBR","","VNM","",1452.1022696279997,"USD2021/kW","calculated. PV:  WIND-ON: "]
[null,"CAPEX,RES-HYBR,,ZAF,","CAPEX","RES-HYBR","","ZAF","",1178.3438759461233,"USD2021/kW","calculated. PV:  WIND-ON: "]
[null,"CAPEX,RES-HYBR,,ZAF-EC,","CAPEX","RES-HYBR","","ZAF-EC","",1178.3438759461233,"USD2021/kW","calculated. PV:  WIND-ON: "]
[null,"CAPEX,RES-HYBR,,ZAF-FRS,","CAPEX","RES-HYBR","","ZAF-FRS","",1178.3438759461233,"USD2021/kW","calculated. PV:  WIND-ON: "]
[null,"CAPEX,RES-HYBR,,ZAF-GAU,","CAPEX","RES-HYBR","","ZAF-GAU","",1178.3438759461233,"USD2021/kW","calculated. PV:  WIND-ON: "]
[null,"CAPEX,RES-HYBR,,ZAF-KWA,","CAPEX","RES-HYBR","","ZAF-KWA","",1178.3438759461233,"USD2021/kW","calculated. PV:  WIND-ON: "]
[null,"CAPEX,RES-HYBR,,ZAF-LIM,","CAPEX","RES-HYBR","","ZAF-LIM","",1178.3438759461233,"USD2021/kW","calculated. PV:  WIND-ON: "]
[null,"CAPEX,RES-HYBR,,ZAF-MPU,","CAPEX","RES-HYBR","","ZAF-MPU","",1178.3438759461233,"USD2021/kW","calculated. PV:  WIND-ON: "]
[null,"CAPEX,RES-HYBR,,ZAF-NC,","CAPEX","RES-HYBR","","ZAF-NC","",1178.3438759461233,"USD2021/kW","calculated. PV:  WIND-ON: "]
[null,"CAPEX,RES-HYBR,,ZAF-NW,","CAPEX","RES-HYBR","","ZAF-NW","",1178.3438759461233,"USD2021/kW","calculated. PV:  WIND-ON: "]
[null,"CAPEX,RES-HYBR,,ZAF-WC,","CAPEX","RES-HYBR","","ZAF-WC","",1178.3438759461233,"USD2021/kW","calculated. PV:  WIND-ON: "]
[null,"CAPEX,SOEC-EL,,,","CAPEX","SOEC-EL","","","",1273.0222311682319,"USD2021/kW"]
[null,"CAPEX,WIND-OFF,,ARE,","CAPEX","WIND-OFF","","ARE","",3192.4670092288125,"USD2021/kW"]
[null,"CAPEX,WIND-OFF,,ARG,","CAPEX","WIND-OFF","","ARG","",3192.4670092288125,"USD2021/kW"]
[null,"CAPEX,WIND-OFF,,ARG-BA,","CAPEX","WIND-OFF","","ARG-BA","",3192.4670092288125,"USD2021/kW"]
[null,"CAPEX,WIND-OFF,,ARG-CAT,","CAPEX","WIND-OFF","","ARG-CAT","",3192.4670092288125,"USD2021/kW"]
[null,"CAPEX,WIND-OFF,,ARG-CBA,","CAPEX","WIND-OFF","","ARG-CBA","",3192.4670092288125,"USD2021/kW"]
[null,"CAPEX,WIND-OFF,,ARG-CHA,","CAPEX","WIND-OFF","","ARG-CHA","",3192.4670092288125,"USD2021/kW"]
[null,"CAPEX,WIND-OFF,,ARG-CHU,","CAPEX","WIND-OFF","","ARG-CHU","",3192.4670092288125,"USD2021/kW"]
[null,"CAPEX,WIND-OFF,,ARG-COR,","CAPEX","WIND-OFF","","ARG-COR","",3192.4670092288125,"USD2021/kW"]
[null,"CAPEX,WIND-OFF,,ARG-CRB,","CAPEX","WIND-OFF","","ARG-CRB","",3192.4670092288125,"USD2021/kW"]
[null,"CAPEX,WIND-OFF,,ARG-CRU,","CAPEX","WIND-OFF","","ARG-CRU","",3192.4670092288125,"USD2021/kW"]
[null,"CAPEX,WIND-OFF,,ARG-EST,","CAPEX","WIND-OFF","","ARG-EST","",3192.4670092288125,"USD2021/kW"]
[null,"CAPEX,WIND-OFF,,ARG-FOR,","CAPEX","WIND-OFF","","ARG-FOR","",3192.4670092288125,"USD2021/kW"]
[null,"CAPEX,WIND-OFF,,ARG-FUE,","CAPEX","WIND-OFF","","ARG-FUE","",3192.4670092288125,"USD2021/kW"]
[null,"CAPEX,WIND-OFF,,ARG-JUJ,","CAPEX","WIND-OFF","","ARG-JUJ","",3192.4670092288125,"USD2021/kW"]
[null,"CAPEX,WIND-OFF,,ARG-LAR,","CAPEX","WIND-OFF","","ARG-LAR","",3192.4670092288125,"USD2021/kW"]
[null,"CAPEX,WIND-OFF,,ARG-MEN,","CAPEX","WIND-OFF","","ARG-MEN","",3192.4670092288125,"USD2021/kW"]
[null,"CAPEX,WIND-OFF,,ARG-MIS,","CAPEX","WIND-OFF","","ARG-MIS","",3192.4670092288125,"USD2021/kW"]
[null,"CAPEX,WIND-OFF,,ARG-NEG,","CAPEX","WIND-OFF","","ARG-NEG","",3192.4670092288125,"USD2021/kW"]
[null,"CAPEX,WIND-OFF,,ARG-NEU,","CAPEX","WIND-OFF","","ARG-NEU","",3192.4670092288125,"USD2021/kW"]
[null,"CAPEX,WIND-OFF,,ARG-PAM,","CAPEX","WIND-OFF","","ARG-PAM","",3192.4670092288125,"USD2021/kW"]
[null,"CAPEX,WIND-OFF,,ARG-RIO,","CAPEX","WIND-OFF","","ARG-RIO","",3192.4670092288125,"USD2021/kW"]
[null,"CAPEX,WIND-OFF,,ARG-SAF,","CAPEX","WIND-OFF","","ARG-SAF","",3192.4670092288125,"USD2021/kW"]
[null,"CAPEX,WIND-OFF,,ARG-SAJ,","CAPEX","WIND-OFF","","ARG-SAJ","",3192.4670092288125,"USD2021/kW"]
[null,"CAPEX,WIND-OFF,,ARG-SAL,","CAPEX","WIND-OFF","","ARG-SAL","",3192.4670092288125,"USD2021/kW"]
[null,"CAPEX,WIND-OFF,,ARG-SAT,","CAPEX","WIND-OFF","","ARG-SAT","",3192.4670092288125,"USD2021/kW"]
[null,"CAPEX,WIND-OFF,,ARG-TUC,","CAPEX","WIND-OFF","","ARG-TUC","",3192.4670092288125,"USD2021/kW"]
[null,"CAPEX,WIND-OFF,,AUS,","CAPEX","WIND-OFF","","AUS","",3192.4670092288125,"USD2021/kW"]
[null,"CAPEX,WIND-OFF,,BRA,","CAPEX","WIND-OFF","","BRA","",3192.4670092288125,"USD2021/kW"]
[null,"CAPEX,WIND-OFF,,CHL,","CAPEX","WIND-OFF","","CHL","",3192.4670092288125,"USD2021/kW"]
[null,"CAPEX,WIND-OFF,,CHN,","CAPEX","WIND-OFF","","CHN","",2660.3891743573436,"USD2021/kW"]
[null,"CAPEX,WIND-OFF,,COL,","CAPEX","WIND-OFF","","COL","",3192,"USD2021/kW"]
[null,"CAPEX,WIND-OFF,,CRI,","CAPEX","WIND-OFF","","CRI","",3192.4670092288125,"USD2021/kW"]
[null,"CAPEX,WIND-OFF,,DNK,","CAPEX","WIND-OFF","","DNK","",2131.477360904431,"USD2021/kW"]
[null,"CAPEX,WIND-OFF,,DZA,","CAPEX","WIND-OFF","","DZA","",3192.4670092288125,"USD2021/kW"]
[null,"CAPEX,WIND-OFF,,EGY,","CAPEX","WIND-OFF","","EGY","",3192.4670092288125,"USD2021/kW"]
[null,"CAPEX,WIND-OFF,,ESP,","CAPEX","WIND-OFF","","ESP","",3192.4670092288125,"USD2021/kW"]
[null,"CAPEX,WIND-OFF,,IDN,","CAPEX","WIND-OFF","","IDN","",3192.4670092288125,"USD2021/kW"]
[null,"CAPEX,WIND-OFF,,IND,","CAPEX","WIND-OFF","","IND","",3192.4670092288125,"USD2021/kW"]
[null,"CAPEX,WIND-OFF,,JOR,","CAPEX","WIND-OFF","","JOR","",3192.4670092288125,"USD2021/kW"]
[null,"CAPEX,WIND-OFF,,KAZ,","CAPEX","WIND-OFF","","KAZ","",3192.4670092288125,"USD2021/kW"]
[null,"CAPEX,WIND-OFF,,KEN,","CAPEX","WIND-OFF","","KEN","",3192.4670092288125,"USD2021/kW"]
[null,"CAPEX,WIND-OFF,,MAR,","CAPEX","WIND-OFF","","MAR","",3192.4670092288125,"USD2021/kW"]
[null,"CAPEX,WIND-OFF,,MAR-BEN,","CAPEX","WIND-OFF","","MAR-BEN","",3192.4670092288125,"USD2021/kW"]
[null,"CAPEX,WIND-OFF,,MAR-CAS,","CAPEX","WIND-OFF","","MAR-CAS","",3192.4670092288125,"USD2021/kW"]
[null,"CAPEX,WIND-OFF,,MAR-DAK,","CAPEX","WIND-OFF","","MAR-DAK","",3192.4670092288125,"USD2021/kW"]
[null,"CAPEX,WIND-OFF,,MAR-DRA,","CAPEX","WIND-OFF","","MAR-DRA","",3192.4670092288125,"USD2021/kW"]
[null,"CAPEX,WIND-OFF,,MAR-FES,","CAPEX","WIND-OFF","","MAR-FES","",3192.4670092288125,"USD2021/kW"]
[null,"CAPEX,WIND-OFF,,MAR-GUE,","CAPEX","WIND-OFF","","MAR-GUE","",3192.4670092288125,"USD2021/kW"]
[null,"CAPEX,WIND-OFF,,MAR-LAA,","CAPEX","WIND-OFF","","MAR-LAA","",3192.4670092288125,"USD2021/kW"]
[null,"CAPEX,WIND-OFF,,MAR-LOR,","CAPEX","WIND-OFF","","MAR-LOR","",3192.4670092288125,"USD2021/kW"]
[null,"CAPEX,WIND-OFF,,MAR-MAR,","CAPEX","WIND-OFF","","MAR-MAR","",3192.4670092288125,"USD2021/kW"]
[null,"CAPEX,WIND-OFF,,MAR-RAB,","CAPEX","WIND-OFF","","MAR-RAB","",3192.4670092288125,"USD2021/kW"]
[null,"CAPEX,WIND-OFF,,MAR-SOU,","CAPEX","WIND-OFF","","MAR-SOU","",3192.4670092288125,"USD2021/kW"]
[null,"CAPEX,WIND-OFF,,MAR-TAN,","CAPEX","WIND-OFF","","MAR-TAN","",3192.4670092288125,"USD2021/kW"]
[null,"CAPEX,WIND-OFF,,MEX,","CAPEX","WIND-OFF","","MEX","",3192.4670092288125,"USD2021/kW"]
[null,"CAPEX,WIND-OFF,,MRT,","CAPEX","WIND-OFF","","MRT","",3192.4670092288125,"USD2021/kW"]
[null,"CAPEX,WIND-OFF,,NAM,","CAPEX","WIND-OFF","","NAM","",3192.4670092288125,"USD2021/kW"]
[null,"CAPEX,WIND-OFF,,NOR,","CAPEX","WIND-OFF","","NOR","",3192.4670092288125,"USD2021/kW"]
[null,"CAPEX,WIND-OFF,,PER,","CAPEX","WIND-OFF","","PER","",3192.4670092288125,"USD2021/kW"]
[null,"CAPEX,WIND-OFF,,PRT,","CAPEX","WIND-OFF","","PRT","",3192.4670092288125,"USD2021/kW"]
[null,"CAPEX,WIND-OFF,,RUS,","CAPEX","WIND-OFF","","RUS","",3192.4670092288125,"USD2021/kW"]
[null,"CAPEX,WIND-OFF,,SAU,","CAPEX","WIND-OFF","","SAU","",3192.4670092288125,"USD2021/kW"]
[null,"CAPEX,WIND-OFF,,SWE,","CAPEX","WIND-OFF","","SWE","",3192.4670092288125,"USD2021/kW"]
[null,"CAPEX,WIND-OFF,,THA,","CAPEX","WIND-OFF","","THA","",3192.4670092288125,"USD2021/kW"]
[null,"CAPEX,WIND-OFF,,TUN,","CAPEX","WIND-OFF","","TUN","",3192.4670092288125,"USD2021/kW"]
[null,"CAPEX,WIND-OFF,,UKR,","CAPEX","WIND-OFF","","UKR","",3192.4670092288125,"USD2021/kW"]
[null,"CAPEX,WIND-OFF,,URY,","CAPEX","WIND-OFF","","URY","",3192.4670092288125,"USD2021/kW"]
[null,"CAPEX,WIND-OFF,,USA,","CAPEX","WIND-OFF","","USA","",3192.4670092288125,"USD2021/kW"]
[null,"CAPEX,WIND-OFF,,VNM,","CAPEX","WIND-OFF","","VNM","",3192.4670092288125,"USD2021/kW"]
[null,"CAPEX,WIND-OFF,,ZAF,","CAPEX","WIND-OFF","","ZAF","",3192.4670092288125,"USD2021/kW"]
[null,"CAPEX,WIND-OFF,,ZAF-EC,","CAPEX","WIND-OFF","","ZAF-EC","",3192.4670092288125,"USD2021/kW"]
[null,"CAPEX,WIND-OFF,,ZAF-FRS,","CAPEX","WIND-OFF","","ZAF-FRS","",3192.4670092288125,"USD2021/kW"]
[null,"CAPEX,WIND-OFF,,ZAF-GAU,","CAPEX","WIND-OFF","","ZAF-GAU","",3192.4670092288125,"USD2021/kW"]
[null,"CAPEX,WIND-OFF,,ZAF-KWA,","CAPEX","WIND-OFF","","ZAF-KWA","",3192.4670092288125,"USD2021/kW"]
[null,"CAPEX,WIND-OFF,,ZAF-LIM,","CAPEX","WIND-OFF","","ZAF-LIM","",3192.4670092288125,"USD2021/kW"]
[null,"CAPEX,WIND-OFF,,ZAF-MPU,","CAPEX","WIND-OFF","","ZAF-MPU","",3192.4670092288125,"USD2021/kW"]
[null,"CAPEX,WIND-OFF,,ZAF-NC,","CAPEX","WIND-OFF","","ZAF-NC","",3192.4670092288125,"USD2021/kW"]
[null,"CAPEX,WIND-OFF,,ZAF-NW,","CAPEX","WIND-OFF","","ZAF-NW","",3192.4670092288125,"USD2021/kW"]
[null,"CAPEX,WIND-OFF,,ZAF-WC,","CAPEX","WIND-OFF","","ZAF-WC","",3192.4670092288125,"USD2021/kW"]
[null,"CAPEX,WIND-ON,,ARE,","CAPEX","WIND-ON","","ARE","",1471.5191178376874,"USD2021/kW"]
[null,"CAPEX,WIND-ON,,ARG,","CAPEX","WIND-ON","","ARG","",1666.7692273242415,"USD2021/kW"]
[null,"CAPEX,WIND-ON,,ARG-BA,","CAPEX","WIND-ON","","ARG-BA","",1666.7692273242415,"USD2021/kW"]
[null,"CAPEX,WIND-ON,,ARG-CAT,","CAPEX","WIND-ON","","ARG-CAT","",1666.7692273242415,"USD2021/kW"]
[null,"CAPEX,WIND-ON,,ARG-CBA,","CAPEX","WIND-ON","","ARG-CBA","",1666.7692273242415,"USD2021/kW"]
[null,"CAPEX,WIND-ON,,ARG-CHA,","CAPEX","WIND-ON","","ARG-CHA","",1666.7692273242415,"USD2021/kW"]
[null,"CAPEX,WIND-ON,,ARG-CHU,","CAPEX","WIND-ON","","ARG-CHU","",1666.7692273242415,"USD2021/kW"]
[null,"CAPEX,WIND-ON,,ARG-COR,","CAPEX","WIND-ON","","ARG-COR","",1666.7692273242415,"USD2021/kW"]
[null,"CAPEX,WIND-ON,,ARG-CRB,","CAPEX","WIND-ON","","ARG-CRB","",1666.7692273242415,"USD2021/kW"]
[null,"CAPEX,WIND-ON,,ARG-CRU,","CAPEX","WIND-ON","","ARG-CRU","",1666.7692273242415,"USD2021/kW"]
[null,"CAPEX,WIND-ON,,ARG-EST,","CAPEX","WIND-ON","","ARG-EST","",1666.7692273242415,"USD2021/kW"]
[null,"CAPEX,WIND-ON,,ARG-FOR,","CAPEX","WIND-ON","","ARG-FOR","",1666.7692273242415,"USD2021/kW"]
[null,"CAPEX,WIND-ON,,ARG-FUE,","CAPEX","WIND-ON","","ARG-FUE","",1666.7692273242415,"USD2021/kW"]
[null,"CAPEX,WIND-ON,,ARG-JUJ,","CAPEX","WIND-ON","","ARG-JUJ","",1666.7692273242415,"USD2021/kW"]
[null,"CAPEX,WIND-ON,,ARG-LAR,","CAPEX","WIND-ON","","ARG-LAR","",1666.7692273242415,"USD2021/kW"]
[null,"CAPEX,WIND-ON,,ARG-MEN,","CAPEX","WIND-ON","","ARG-MEN","",1666.7692273242415,"USD2021/kW"]
[null,"CAPEX,WIND-ON,,ARG-MIS,","CAPEX","WIND-ON","","ARG-MIS","",1666.7692273242415,"USD2021/kW"]
[null,"CAPEX,WIND-ON,,ARG-NEG,","CAPEX","WIND-ON","","ARG-NEG","",1666.7692273242415,"USD2021/kW"]
[null,"CAPEX,WIND-ON,,ARG-NEU,","CAPEX","WIND-ON","","ARG-NEU","",1666.7692273242415,"USD2021/kW"]
[null,"CAPEX,WIND-ON,,ARG-PAM,","CAPEX","WIND-ON","","ARG-PAM","",1666.7692273242415,"USD2021/kW"]
[null,"CAPEX,WIND-ON,,ARG-RIO,","CAPEX","WIND-ON","","ARG-RIO","",1666.7692273242415,"USD2021/kW"]
[null,"CAPEX,WIND-ON,,ARG-SAF,","CAPEX","WIND-ON","","ARG-SAF","",1666.7692273242415,"USD2021/kW"]
[null,"CAPEX,WIND-ON,,ARG-SAJ,","CAPEX","WIND-ON","","ARG-SAJ","",1666.7692273242415,"USD2021/kW"]
[null,"CAPEX,WIND-ON,,ARG-SAL,","CAPEX","WIND-ON","","ARG-SAL","",1666.7692273242415,"USD2021/kW"]
[null,"CAPEX,WIND-ON,,ARG-SAT,","CAPEX","WIND-ON","","ARG-SAT","",1666.7692273242415,"USD2021/kW"]
[null,"CAPEX,WIND-ON,,ARG-TUC,","CAPEX","WIND-ON","","ARG-TUC","",1666.7692273242415,"USD2021/kW"]
[null,"CAPEX,WIND-ON,,AUS,","CAPEX","WIND-ON","","AUS","",1666.7692273242415,"USD2021/kW"]
[null,"CAPEX,WIND-ON,,BRA,","CAPEX","WIND-ON","","BRA","",1095.3054922416445,"USD2021/kW"]
[null,"CAPEX,WIND-ON,,CHL,","CAPEX","WIND-ON","","CHL","",1666.7692273242415,"USD2021/kW"]
[null,"CAPEX,WIND-ON,,CHN,","CAPEX","WIND-ON","","CHN","",1101.9725691509414,"USD2021/kW"]
[null,"CAPEX,WIND-ON,,COL,","CAPEX","WIND-ON","","COL","",1548,"USD2021/kW"]
[null,"CAPEX,WIND-ON,,CRI,","CAPEX","WIND-ON","","CRI","",1507.7118210595854,"USD2021/kW"]
[null,"CAPEX,WIND-ON,,DNK,","CAPEX","WIND-ON","","DNK","",1545.809403398425,"USD2021/kW"]
[null,"CAPEX,WIND-ON,,DZA,","CAPEX","WIND-ON","","DZA","",1802.0156446271228,"USD2021/kW"]
[null,"CAPEX,WIND-ON,,EGY,","CAPEX","WIND-ON","","EGY","",1428.6593377064928,"USD2021/kW"]
[null,"CAPEX,WIND-ON,,ESP,","CAPEX","WIND-ON","","ESP","",1115.8315541418615,"USD2021/kW"]
[null,"CAPEX,WIND-ON,,IDN,","CAPEX","WIND-ON","","IDN","",2142.9890065597392,"USD2021/kW"]
[null,"CAPEX,WIND-ON,,IND,","CAPEX","WIND-ON","","IND","",881.95903114414148,"USD2021/kW"]
[null,"CAPEX,WIND-ON,,JOR,","CAPEX","WIND-ON","","JOR","",1802.0156446271228,"USD2021/kW"]
[null,"CAPEX,WIND-ON,,KAZ,","CAPEX","WIND-ON","","KAZ","",1428.6593377064928,"USD2021/kW"]
[null,"CAPEX,WIND-ON,,KEN,","CAPEX","WIND-ON","","KEN","",1802.0156446271228,"USD2021/kW"]
[null,"CAPEX,WIND-ON,,MAR,","CAPEX","WIND-ON","","MAR","",1666.7692273242415,"USD2021/kW"]
[null,"CAPEX,WIND-ON,,MAR-BEN,","CAPEX","WIND-ON","","MAR-BEN","",1666.7692273242415,"USD2021/kW"]
[null,"CAPEX,WIND-ON,,MAR-CAS,","CAPEX","WIND-ON","","MAR-CAS","",1666.7692273242415,"USD2021/kW"]
[null,"CAPEX,WIND-ON,,MAR-DAK,","CAPEX","WIND-ON","","MAR-DAK","",1666.7692273242415,"USD2021/kW"]
[null,"CAPEX,WIND-ON,,MAR-DRA,","CAPEX","WIND-ON","","MAR-DRA","",1666.7692273242415,"USD2021/kW"]
[null,"CAPEX,WIND-ON,,MAR-FES,","CAPEX","WIND-ON","","MAR-FES","",1666.7692273242415,"USD2021/kW"]
[null,"CAPEX,WIND-ON,,MAR-GUE,","CAPEX","WIND-ON","","MAR-GUE","",1666.7692273242415,"USD2021/kW"]
[null,"CAPEX,WIND-ON,,MAR-LAA,","CAPEX","WIND-ON","","MAR-LAA","",1666.7692273242415,"USD2021/kW"]
[null,"CAPEX,WIND-ON,,MAR-LOR,","CAPEX","WIND-ON","","MAR-LOR","",1666.7692273242415,"USD2021/kW"]
[null,"CAPEX,WIND-ON,,MAR-MAR,","CAPEX","WIND-ON","","MAR-MAR","",1666.7692273242415,"USD2021/kW"]
[null,"CAPEX,WIND-ON,,MAR-RAB,","CAPEX","WIND-ON","","MAR-RAB","",1666.7692273242415,"USD2021/kW"]
[null,"CAPEX,WIND-ON,,MAR-SOU,","CAPEX","WIND-ON","","MAR-SOU","",1666.7692273242415,"USD2021/kW"]
[null,"CAPEX,WIND-ON,,MAR-TAN,","CAPEX","WIND-ON","","MAR-TAN","",1666.7692273242415,"USD2021/kW"]
[null,"CAPEX,WIND-ON,,MEX,","CAPEX","WIND-ON","","MEX","",1401.4479252639831,"USD2021/kW"]
[null,"CAPEX,WIND-ON,,MRT,","CAPEX","WIND-ON","","MRT","",1802.0156446271228,"USD2021/kW"]
[null,"CAPEX,WIND-ON,,NAM,","CAPEX","WIND-ON","","NAM","",1802.0156446271228,"USD2021/kW"]
[null,"CAPEX,WIND-ON,,NOR,","CAPEX","WIND-ON","","NOR","",1428.6593377064928,"USD2021/kW"]
[null,"CAPEX,WIND-ON,,PER,","CAPEX","WIND-ON","","PER","",1190.5494480887439,"USD2021/kW"]
[null,"CAPEX,WIND-ON,,PRT,","CAPEX","WIND-ON","","PRT","",1666.7692273242415,"USD2021/kW"]
[null,"CAPEX,WIND-ON,,RUS,","CAPEX","WIND-ON","","RUS","",1428.6593377064928,"USD2021/kW"]
[null,"CAPEX,WIND-ON,,SAU,","CAPEX","WIND-ON","","SAU","",1471.5191178376874,"USD2021/kW"]
[null,"CAPEX,WIND-ON,,SWE,","CAPEX","WIND-ON","","SWE","",1545.809403398425,"USD2021/kW"]
[null,"CAPEX,WIND-ON,,THA,","CAPEX","WIND-ON","","THA","",1471.5191178376874,"USD2021/kW"]
[null,"CAPEX,WIND-ON,,TUN,","CAPEX","WIND-ON","","TUN","",1802.0156446271228,"USD2021/kW"]
[null,"CAPEX,WIND-ON,,UKR,","CAPEX","WIND-ON","","UKR","",1428.6593377064928,"USD2021/kW"]
[null,"CAPEX,WIND-ON,,URY,","CAPEX","WIND-ON","","URY","",2142.9890065597392,"USD2021/kW"]
[null,"CAPEX,WIND-ON,,USA,","CAPEX","WIND-ON","","USA","",1315.9977110399195,"USD2021/kW"]
[null,"CAPEX,WIND-ON,,VNM,","CAPEX","WIND-ON","","VNM","",2142.9890065597392,"USD2021/kW"]
[null,"CAPEX,WIND-ON,,ZAF,","CAPEX","WIND-ON","","ZAF","",1666.7692273242415,"USD2021/kW"]
[null,"CAPEX,WIND-ON,,ZAF-EC,","CAPEX","WIND-ON","","ZAF-EC","",1666.7692273242415,"USD2021/kW"]
[null,"CAPEX,WIND-ON,,ZAF-FRS,","CAPEX","WIND-ON","","ZAF-FRS","",1666.7692273242415,"USD2021/kW"]
[null,"CAPEX,WIND-ON,,ZAF-GAU,","CAPEX","WIND-ON","","ZAF-GAU","",1666.7692273242415,"USD2021/kW"]
[null,"CAPEX,WIND-ON,,ZAF-KWA,","CAPEX","WIND-ON","","ZAF-KWA","",1666.7692273242415,"USD2021/kW"]
[null,"CAPEX,WIND-ON,,ZAF-LIM,","CAPEX","WIND-ON","","ZAF-LIM","",1666.7692273242415,"USD2021/kW"]
[null,"CAPEX,WIND-ON,,ZAF-MPU,","CAPEX","WIND-ON","","ZAF-MPU","",1666.7692273242415,"USD2021/kW"]
[null,"CAPEX,WIND-ON,,ZAF-NC,","CAPEX","WIND-ON","","ZAF-NC","",1666.7692273242415,"USD2021/kW"]
[null,"CAPEX,WIND-ON,,ZAF-NW,","CAPEX","WIND-ON","","ZAF-NW","",1666.7692273242415,"USD2021/kW"]
[null,"CAPEX,WIND-ON,,ZAF-WC,","CAPEX","WIND-ON","","ZAF-WC","",1666.7692273242415,"USD2021/kW"]
[null,"CAP-T,,,DNK,DEU","CAP-T","","","DNK","DEU",1,"kWh/a"]
[null,"CAP-T,,,DZA,ESP","CAP-T","","","DZA","ESP",1,"kWh/a"]
[null,"CAP-T,,,ESP,FRA","CAP-T","","","ESP","FRA",1,"kWh/a"]
[null,"CAP-T,,,KAZ,CHN","CAP-T","","","KAZ","CHN",1,"kWh/a"]
[null,"CAP-T,,,MAR,ESP","CAP-T","","","MAR","ESP",1,"kWh/a"]
[null,"CAP-T,,,MAR-BEN,ESP","CAP-T","","","MAR-BEN","ESP",1,"kWh/a"]
[null,"CAP-T,,,MAR-CAS,ESP","CAP-T","","","MAR-CAS","ESP",1,"kWh/a"]
[null,"CAP-T,,,MAR-DAK,ESP","CAP-T","","","MAR-DAK","ESP",1,"kWh/a"]
[null,"CAP-T,,,MAR-DRA,ESP","CAP-T","","","MAR-DRA","ESP",1,"kWh/a"]
[null,"CAP-T,,,MAR-FES,ESP","CAP-T","","","MAR-FES","ESP",1,"kWh/a"]
[null,"CAP-T,,,MAR-GUE,ESP","CAP-T","","","MAR-GUE","ESP",1,"kWh/a"]
[null,"CAP-T,,,MAR-LAA,ESP","CAP-T","","","MAR-LAA","ESP",1,"kWh/a"]
[null,"CAP-T,,,MAR-LOR,ESP","CAP-T","","","MAR-LOR","ESP",1,"kWh/a"]
[null,"CAP-T,,,MAR-MAR,ESP","CAP-T","","","MAR-MAR","ESP",1,"kWh/a"]
[null,"CAP-T,,,MAR-RAB,ESP","CAP-T","","","MAR-RAB","ESP",1,"kWh/a"]
[null,"CAP-T,,,MAR-SOU,ESP","CAP-T","","","MAR-SOU","ESP",1,"kWh/a"]
[null,"CAP-T,,,MAR-TAN,ESP","CAP-T","","","MAR-TAN","ESP",1,"kWh/a"]
[null,"CAP-T,,,MEX,USA","CAP-T","","","MEX","USA",1,"kWh/a"]
[null,"CAP-T,,,NOR,DEU","CAP-T","","","NOR","DEU",1,"kWh/a"]
[null,"CAP-T,,,PRT,ESP","CAP-T","","","PRT","ESP",1,"kWh/a"]
[null,"CAP-T,,,RUS,CHN","CAP-T","","","RUS","CHN",1,"kWh/a"]
[null,"CAP-T,,,RUS,DEU","CAP-T","","","RUS","DEU",1,"kWh/a"]
[null,"CONV,AEL-EL,H2O-L,,","CONV","AEL-EL","H2O-L","","",0.3,"kg H2O (l)/H2-G"]
[null,"CONV,ATR,EL,,","CONV","ATR","EL","","",0.10771077107710771,"kWh (el.)/H2-G","Oni et al. 2022"]
[null,"CONV,CH3OH-SB,BFUEL-L,,","CONV","CH3OH-SB","BFUEL-L","","",3.0509883673175369E-6,"kwh bunker fuel (l)/(km*CH3OH-L)","calc_shipping"]
[null,"CONV,CH3OHSYN,CO2-G,,","CONV","CH3OHSYN","CO2-G","","",0.26448241206030154,"kg CO2 (g)/kWh CH3OH (l)","Frotier Economics 2021"]
[null,"CONV,CH3OHSYN,EL,,","CONV","CH3OHSYN","EL","","",3.9989420788151285E-2,"kWh (el.)/kWh CH3OH (l)","Fasihi & Breyer 2018"]
[null,"CONV,CH4-COMP,EL,,","CONV","CH4-COMP","EL","","",0.01,"kWh (el.)/CH4-G","DNV GL 2020"]
[null,"CONV,CH4-LIQ,EL,,","CONV","CH4-LIQ","EL","","",5.2631578947368425E-2,"kWh (el.)/CH4-L","Pospíšil et al. 2019"]
[null,"CONV,CH4-SB,BFUEL-L,,","CONV","CH4-SB","BFUEL-L","","",3.3002590965851548E-6,"kwh bunker fuel (l)/(km*CH4-L)","calc_shipping"]
[null,"CONV,CH4SYN,CO2-G,,","CONV","CH4SYN","CO2-G","","",0.20196,"kg CO2 (g)/kWh CH4 (g)"]
[null,"CONV,CH4SYN,H2O-L,,","CONV","CH4SYN","H2O-L","","",-0.14263322884012539,"kg H2O (l)/kWh CH4 (g)","Fasihi & Breyer 2018"]
[null,"CONV,CH4SYN,HEAT,,","CONV","CH4SYN","HEAT","","",-0.18495297805642633,"kWh (heat)/kWh CH4 (g)","Fasihi & Breyer 2018"]
[null,"CONV,DAC,EL,,","CONV","DAC","EL","","",0.20300000000000001,"kWh (el.)/kg CO2 (g)","Fasihi et al. 2019"]
[null,"CONV,DAC,H2O-L,,","CONV","DAC","H2O-L","","",-1.4,"kg H2O (l)/kg CO2 (g)","Fasihi et al. 2019"]
[null,"CONV,DAC,HEAT,,","CONV","DAC","HEAT","","",1.286,"kWh (heat)/kg CO2 (g)","Fasihi et al. 2019"]
[null,"CONV,DESAL,EL,,","CONV","DESAL","EL","","",3.0000000000000001E-3,"kWh (el.)/kg H2O (l)"]
[null,"CONV,DRI,EL,,","CONV","DRI","EL","","",0.10829670329670329,"kWh (el.)/kg DRI (s)","Agora Industry Transformation 2021"]
[null,"CONV,EFUELSYN,CO2-G,,","CONV","EFUELSYN","CO2-G","","",0.26455813953488377,"kg CO2 (g)/kwh CHx (l)","Frontier Economics 2021"]
[null,"CONV,EFUELSYN,EL,,","CONV","EFUELSYN","EL","","",8.5778781038374718E-2,"kWh (el.)/kwh CHx (l)","Fasihi & Breyer 2018"]
[null,"CONV,EFUELSYN,H2O-L,,","CONV","EFUELSYN","H2O-L","","",-0.24830699774266365,"kg H2O (l)/kwh CHx (l)","Fasihi & Breyer 2018"]
[null,"CONV,EFUELSYN,HEAT,,","CONV","EFUELSYN","HEAT","","",-0.40397350993377484,"kWh (heat)/kwh CHx (l)","Fasihi & Breyer 2018"]
[null,"CONV,H2-COMP,EL,,","CONV","H2-COMP","EL","","",0.01,"kWh (el.)/H2-G","DNV GL 2020"]
[null,"CONV,H2-LIQ,EL,,","CONV","H2-LIQ","EL","","",0.24008002667555853,"kWh (el.)/H2-L","DNV GL 2020"]
[null,"CONV,H2-SB,BFUEL-L,,","CONV","H2-SB","BFUEL-L","","",7.9560265731287527E-6,"kwh bunker fuel (l)/(km*H2-L)","calc_shipping"]
[null,"CONV,LOHC-CON,EL,,","CONV","LOHC-CON","EL","","",5.0000000000000001E-3,"kWh (el.)/LOHC-L","DNV GL 2020"]
[null,"CONV,LOHC-REC,EL,,","CONV","LOHC-REC","EL","","",2.8502850285028507E-2,"kWh (el.)/H2-G","Staiß et al. 2022 nach Wasserscheid"]
[null,"CONV,LOHC-REC,HEAT,,","CONV","LOHC-REC","HEAT","","",0.3276576576576577,"kWh (heat)/H2-G","DNV GL 2020"]
[null,"CONV,LOHC-SB,BFUEL-L,,","CONV","LOHC-SB","BFUEL-L","","",9.9204160904178207E-6,"kwh bunker fuel (l)/(km*LOHC-L)","calc_shipping"]
[null,"CONV,NH3-REC,EL,,","CONV","NH3-REC","EL","","",1.4160000000000002E-3,"kWh (el.)/H2-G","NGN; Equinor 2018"]
[null,"CONV,NH3-SB,BFUEL-L,,","CONV","NH3-SB","BFUEL-L","","",5.3436561034163411E-6,"kwh bunker fuel (l)/(km*NH3-L)","calc_shipping"]
[null,"CONV,NH3SYN,EL,,","CONV","NH3SYN","EL","","",0.14192307692307693,"kWh (el.)/kWh NH3 (l)","Fasihi et al. 2021"]
[null,"CONV,NH3SYN,N2-G,,","CONV","NH3SYN","N2-G","","",0.15980769230769232,"kg N2 (g)/kWh NH3 (l)","Fasihi et al. 2021"]
[null,"CONV,PEM-EL,H2O-L,,","CONV","PEM-EL","H2O-L","","",0.3,"kg H2O (l)/H2-G"]
[null,"CONV,REGASATR,EL,,","CONV","REGASATR","EL","","",0.10771077107710771,"kWh (el.)/H2-G","combined values"]
[null,"CONV,SOEC-EL,H2O-L,,","CONV","SOEC-EL","H2O-L","","",0.3,"kg H2O (l)/H2-G"]
[null,"CONV,SYN-S,CHX-L,,","CONV","SYN-S","CHX-L","","",1.2641936395012889E-6,"kwh CHx (l)/(km*CHX-L)","calc_shipping"]
[null,"CONV,SYN-SB,BFUEL-L,,","CONV","SYN-SB","BFUEL-L","","",1.2641936395012889E-6,"kwh bunker fuel (l)/(km*CHX-L)","calc_shipping"]
[null,"DST-S-D,,,ARE,CHN","DST-S-D","","","ARE","CHN",10367.799999999999,null,"CERDI"]
[null,"DST-S-D,,,ARE,DEU","DST-S-D","","","ARE","DEU",12441.9,null,"CERDI"]
[null,"DST-S-D,,,ARE,ESP","DST-S-D","","","ARE","ESP",8992.74,null,"CERDI"]
[null,"DST-S-D,,,ARE,FRA","DST-S-D","","","ARE","FRA",7580.97,null,"CERDI"]
[null,"DST-S-D,,,ARE,IND","DST-S-D","","","ARE","IND",1804.27,null,"CERDI"]
[null,"DST-S-D,,,ARE,JPN","DST-S-D","","","ARE","JPN",11276.3,null,"CERDI"]
[null,"DST-S-D,,,ARE,KOR","DST-S-D","","","ARE","KOR",10955.6,null,"CERDI"]
[null,"DST-S-D,,,ARE,NLD","DST-S-D","","","ARE","NLD",11975.9,null,"CERDI"]
[null,"DST-S-D,,,ARE,USA","DST-S-D","","","ARE","USA",18373.3,null,"CERDI"]
[null,"DST-S-D,,,ARG,CHN","DST-S-D","","","ARG","CHN",19486.8,null,"CERDI"]
[null,"DST-S-D,,,ARG,DEU","DST-S-D","","","ARG","DEU",12728.796,null,"SEA-DISTANCES.ORG"]
[null,"DST-S-D,,,ARG,ESP","DST-S-D","","","ARG","ESP",11766,null,"CERDI"]
[null,"DST-S-D,,,ARG,FRA","DST-S-D","","","ARG","FRA",13195.9,null,"CERDI"]
[null,"DST-S-D,,,ARG,IND","DST-S-D","","","ARG","IND",16155.2,null,"CERDI"]
[null,"DST-S-D,,,ARG,JPN","DST-S-D","","","ARG","JPN",18848.2,null,"CERDI"]
[null,"DST-S-D,,,ARG,KOR","DST-S-D","","","ARG","KOR",19350,null,"CERDI"]
[null,"DST-S-D,,,ARG,NLD","DST-S-D","","","ARG","NLD",13750.5,null,"CERDI"]
[null,"DST-S-D,,,ARG,USA","DST-S-D","","","ARG","USA",12589.7,null,"CERDI"]
[null,"DST-S-D,,,ARG-BA,CHN","DST-S-D","","","ARG-BA","CHN",19486.8,null,"CERDI"]
[null,"DST-S-D,,,ARG-BA,DEU","DST-S-D","","","ARG-BA","DEU",12728.796,null,"SEA-DISTANCES.ORG"]
[null,"DST-S-D,,,ARG-BA,ESP","DST-S-D","","","ARG-BA","ESP",11766,null,"CERDI"]
[null,"DST-S-D,,,ARG-BA,FRA","DST-S-D","","","ARG-BA","FRA",13195.9,null,"CERDI"]
[null,"DST-S-D,,,ARG-BA,IND","DST-S-D","","","ARG-BA","IND",16155.2,null,"CERDI"]
[null,"DST-S-D,,,ARG-BA,JPN","DST-S-D","","","ARG-BA","JPN",18848.2,null,"CERDI"]
[null,"DST-S-D,,,ARG-BA,KOR","DST-S-D","","","ARG-BA","KOR",19350,null,"CERDI"]
[null,"DST-S-D,,,ARG-BA,NLD","DST-S-D","","","ARG-BA","NLD",13750.5,null,"CERDI"]
[null,"DST-S-D,,,ARG-BA,USA","DST-S-D","","","ARG-BA","USA",12589.7,null,"CERDI"]
[null,"DST-S-D,,,ARG-CAT,CHN","DST-S-D","","","ARG-CAT","CHN",19486.8,null,"CERDI"]
[null,"DST-S-D,,,ARG-CAT,DEU","DST-S-D","","","ARG-CAT","DEU",12728.796,null,"SEA-DISTANCES.ORG"]
[null,"DST-S-D,,,ARG-CAT,ESP","DST-S-D","","","ARG-CAT","ESP",11766,null,"CERDI"]
[null,"DST-S-D,,,ARG-CAT,FRA","DST-S-D","","","ARG-CAT","FRA",13195.9,null,"CERDI"]
[null,"DST-S-D,,,ARG-CAT,IND","DST-S-D","","","ARG-CAT","IND",16155.2,null,"CERDI"]
[null,"DST-S-D,,,ARG-CAT,JPN","DST-S-D","","","ARG-CAT","JPN",18848.2,null,"CERDI"]
[null,"DST-S-D,,,ARG-CAT,KOR","DST-S-D","","","ARG-CAT","KOR",19350,null,"CERDI"]
[null,"DST-S-D,,,ARG-CAT,NLD","DST-S-D","","","ARG-CAT","NLD",13750.5,null,"CERDI"]
[null,"DST-S-D,,,ARG-CAT,USA","DST-S-D","","","ARG-CAT","USA",12589.7,null,"CERDI"]
[null,"DST-S-D,,,ARG-CBA,CHN","DST-S-D","","","ARG-CBA","CHN",19486.8,null,"CERDI"]
[null,"DST-S-D,,,ARG-CBA,DEU","DST-S-D","","","ARG-CBA","DEU",12728.796,null,"SEA-DISTANCES.ORG"]
[null,"DST-S-D,,,ARG-CBA,ESP","DST-S-D","","","ARG-CBA","ESP",11766,null,"CERDI"]
[null,"DST-S-D,,,ARG-CBA,FRA","DST-S-D","","","ARG-CBA","FRA",13195.9,null,"CERDI"]
[null,"DST-S-D,,,ARG-CBA,IND","DST-S-D","","","ARG-CBA","IND",16155.2,null,"CERDI"]
[null,"DST-S-D,,,ARG-CBA,JPN","DST-S-D","","","ARG-CBA","JPN",18848.2,null,"CERDI"]
[null,"DST-S-D,,,ARG-CBA,KOR","DST-S-D","","","ARG-CBA","KOR",19350,null,"CERDI"]
[null,"DST-S-D,,,ARG-CBA,NLD","DST-S-D","","","ARG-CBA","NLD",13750.5,null,"CERDI"]
[null,"DST-S-D,,,ARG-CBA,USA","DST-S-D","","","ARG-CBA","USA",12589.7,null,"CERDI"]
[null,"DST-S-D,,,ARG-CHA,CHN","DST-S-D","","","ARG-CHA","CHN",19486.8,null,"CERDI"]
[null,"DST-S-D,,,ARG-CHA,DEU","DST-S-D","","","ARG-CHA","DEU",12728.796,null,"SEA-DISTANCES.ORG"]
[null,"DST-S-D,,,ARG-CHA,ESP","DST-S-D","","","ARG-CHA","ESP",11766,null,"CERDI"]
[null,"DST-S-D,,,ARG-CHA,FRA","DST-S-D","","","ARG-CHA","FRA",13195.9,null,"CERDI"]
[null,"DST-S-D,,,ARG-CHA,IND","DST-S-D","","","ARG-CHA","IND",16155.2,null,"CERDI"]
[null,"DST-S-D,,,ARG-CHA,JPN","DST-S-D","","","ARG-CHA","JPN",18848.2,null,"CERDI"]
[null,"DST-S-D,,,ARG-CHA,KOR","DST-S-D","","","ARG-CHA","KOR",19350,null,"CERDI"]
[null,"DST-S-D,,,ARG-CHA,NLD","DST-S-D","","","ARG-CHA","NLD",13750.5,null,"CERDI"]
[null,"DST-S-D,,,ARG-CHA,USA","DST-S-D","","","ARG-CHA","USA",12589.7,null,"CERDI"]
[null,"DST-S-D,,,ARG-CHU,CHN","DST-S-D","","","ARG-CHU","CHN",19486.8,null,"CERDI"]
[null,"DST-S-D,,,ARG-CHU,DEU","DST-S-D","","","ARG-CHU","DEU",12728.796,null,"SEA-DISTANCES.ORG"]
[null,"DST-S-D,,,ARG-CHU,ESP","DST-S-D","","","ARG-CHU","ESP",11766,null,"CERDI"]
[null,"DST-S-D,,,ARG-CHU,FRA","DST-S-D","","","ARG-CHU","FRA",13195.9,null,"CERDI"]
[null,"DST-S-D,,,ARG-CHU,IND","DST-S-D","","","ARG-CHU","IND",16155.2,null,"CERDI"]
[null,"DST-S-D,,,ARG-CHU,JPN","DST-S-D","","","ARG-CHU","JPN",18848.2,null,"CERDI"]
[null,"DST-S-D,,,ARG-CHU,KOR","DST-S-D","","","ARG-CHU","KOR",19350,null,"CERDI"]
[null,"DST-S-D,,,ARG-CHU,NLD","DST-S-D","","","ARG-CHU","NLD",13750.5,null,"CERDI"]
[null,"DST-S-D,,,ARG-CHU,USA","DST-S-D","","","ARG-CHU","USA",12589.7,null,"CERDI"]
[null,"DST-S-D,,,ARG-COR,CHN","DST-S-D","","","ARG-COR","CHN",19486.8,null,"CERDI"]
[null,"DST-S-D,,,ARG-COR,DEU","DST-S-D","","","ARG-COR","DEU",12728.796,null,"SEA-DISTANCES.ORG"]
[null,"DST-S-D,,,ARG-COR,ESP","DST-S-D","","","ARG-COR","ESP",11766,null,"CERDI"]
[null,"DST-S-D,,,ARG-COR,FRA","DST-S-D","","","ARG-COR","FRA",13195.9,null,"CERDI"]
[null,"DST-S-D,,,ARG-COR,IND","DST-S-D","","","ARG-COR","IND",16155.2,null,"CERDI"]
[null,"DST-S-D,,,ARG-COR,JPN","DST-S-D","","","ARG-COR","JPN",18848.2,null,"CERDI"]
[null,"DST-S-D,,,ARG-COR,KOR","DST-S-D","","","ARG-COR","KOR",19350,null,"CERDI"]
[null,"DST-S-D,,,ARG-COR,NLD","DST-S-D","","","ARG-COR","NLD",13750.5,null,"CERDI"]
[null,"DST-S-D,,,ARG-COR,USA","DST-S-D","","","ARG-COR","USA",12589.7,null,"CERDI"]
[null,"DST-S-D,,,ARG-CRB,CHN","DST-S-D","","","ARG-CRB","CHN",19486.8,null,"CERDI"]
[null,"DST-S-D,,,ARG-CRB,DEU","DST-S-D","","","ARG-CRB","DEU",12728.796,null,"SEA-DISTANCES.ORG"]
[null,"DST-S-D,,,ARG-CRB,ESP","DST-S-D","","","ARG-CRB","ESP",11766,null,"CERDI"]
[null,"DST-S-D,,,ARG-CRB,FRA","DST-S-D","","","ARG-CRB","FRA",13195.9,null,"CERDI"]
[null,"DST-S-D,,,ARG-CRB,IND","DST-S-D","","","ARG-CRB","IND",16155.2,null,"CERDI"]
[null,"DST-S-D,,,ARG-CRB,JPN","DST-S-D","","","ARG-CRB","JPN",18848.2,null,"CERDI"]
[null,"DST-S-D,,,ARG-CRB,KOR","DST-S-D","","","ARG-CRB","KOR",19350,null,"CERDI"]
[null,"DST-S-D,,,ARG-CRB,NLD","DST-S-D","","","ARG-CRB","NLD",13750.5,null,"CERDI"]
[null,"DST-S-D,,,ARG-CRB,USA","DST-S-D","","","ARG-CRB","USA",12589.7,null,"CERDI"]
[null,"DST-S-D,,,ARG-CRU,CHN","DST-S-D","","","ARG-CRU","CHN",19486.8,null,"CERDI"]
[null,"DST-S-D,,,ARG-CRU,DEU","DST-S-D","","","ARG-CRU","DEU",12728.796,null,"SEA-DISTANCES.ORG"]
[null,"DST-S-D,,,ARG-CRU,ESP","DST-S-D","","","ARG-CRU","ESP",11766,null,"CERDI"]
[null,"DST-S-D,,,ARG-CRU,FRA","DST-S-D","","","ARG-CRU","FRA",13195.9,null,"CERDI"]
[null,"DST-S-D,,,ARG-CRU,IND","DST-S-D","","","ARG-CRU","IND",16155.2,null,"CERDI"]
[null,"DST-S-D,,,ARG-CRU,JPN","DST-S-D","","","ARG-CRU","JPN",18848.2,null,"CERDI"]
[null,"DST-S-D,,,ARG-CRU,KOR","DST-S-D","","","ARG-CRU","KOR",19350,null,"CERDI"]
[null,"DST-S-D,,,ARG-CRU,NLD","DST-S-D","","","ARG-CRU","NLD",13750.5,null,"CERDI"]
[null,"DST-S-D,,,ARG-CRU,USA","DST-S-D","","","ARG-CRU","USA",12589.7,null,"CERDI"]
[null,"DST-S-D,,,ARG-EST,CHN","DST-S-D","","","ARG-EST","CHN",19486.8,null,"CERDI"]
[null,"DST-S-D,,,ARG-EST,DEU","DST-S-D","","","ARG-EST","DEU",12728.796,null,"SEA-DISTANCES.ORG"]
[null,"DST-S-D,,,ARG-EST,ESP","DST-S-D","","","ARG-EST","ESP",11766,null,"CERDI"]
[null,"DST-S-D,,,ARG-EST,FRA","DST-S-D","","","ARG-EST","FRA",13195.9,null,"CERDI"]
[null,"DST-S-D,,,ARG-EST,IND","DST-S-D","","","ARG-EST","IND",16155.2,null,"CERDI"]
[null,"DST-S-D,,,ARG-EST,JPN","DST-S-D","","","ARG-EST","JPN",18848.2,null,"CERDI"]
[null,"DST-S-D,,,ARG-EST,KOR","DST-S-D","","","ARG-EST","KOR",19350,null,"CERDI"]
[null,"DST-S-D,,,ARG-EST,NLD","DST-S-D","","","ARG-EST","NLD",13750.5,null,"CERDI"]
[null,"DST-S-D,,,ARG-EST,USA","DST-S-D","","","ARG-EST","USA",12589.7,null,"CERDI"]
[null,"DST-S-D,,,ARG-FOR,CHN","DST-S-D","","","ARG-FOR","CHN",19486.8,null,"CERDI"]
[null,"DST-S-D,,,ARG-FOR,DEU","DST-S-D","","","ARG-FOR","DEU",12728.796,null,"SEA-DISTANCES.ORG"]
[null,"DST-S-D,,,ARG-FOR,ESP","DST-S-D","","","ARG-FOR","ESP",11766,null,"CERDI"]
[null,"DST-S-D,,,ARG-FOR,FRA","DST-S-D","","","ARG-FOR","FRA",13195.9,null,"CERDI"]
[null,"DST-S-D,,,ARG-FOR,IND","DST-S-D","","","ARG-FOR","IND",16155.2,null,"CERDI"]
[null,"DST-S-D,,,ARG-FOR,JPN","DST-S-D","","","ARG-FOR","JPN",18848.2,null,"CERDI"]
[null,"DST-S-D,,,ARG-FOR,KOR","DST-S-D","","","ARG-FOR","KOR",19350,null,"CERDI"]
[null,"DST-S-D,,,ARG-FOR,NLD","DST-S-D","","","ARG-FOR","NLD",13750.5,null,"CERDI"]
[null,"DST-S-D,,,ARG-FOR,USA","DST-S-D","","","ARG-FOR","USA",12589.7,null,"CERDI"]
[null,"DST-S-D,,,ARG-FUE,CHN","DST-S-D","","","ARG-FUE","CHN",19486.8,null,"CERDI"]
[null,"DST-S-D,,,ARG-FUE,DEU","DST-S-D","","","ARG-FUE","DEU",12728.796,null,"SEA-DISTANCES.ORG"]
[null,"DST-S-D,,,ARG-FUE,ESP","DST-S-D","","","ARG-FUE","ESP",11766,null,"CERDI"]
[null,"DST-S-D,,,ARG-FUE,FRA","DST-S-D","","","ARG-FUE","FRA",13195.9,null,"CERDI"]
[null,"DST-S-D,,,ARG-FUE,IND","DST-S-D","","","ARG-FUE","IND",16155.2,null,"CERDI"]
[null,"DST-S-D,,,ARG-FUE,JPN","DST-S-D","","","ARG-FUE","JPN",18848.2,null,"CERDI"]
[null,"DST-S-D,,,ARG-FUE,KOR","DST-S-D","","","ARG-FUE","KOR",19350,null,"CERDI"]
[null,"DST-S-D,,,ARG-FUE,NLD","DST-S-D","","","ARG-FUE","NLD",13750.5,null,"CERDI"]
[null,"DST-S-D,,,ARG-FUE,USA","DST-S-D","","","ARG-FUE","USA",12589.7,null,"CERDI"]
[null,"DST-S-D,,,ARG-JUJ,CHN","DST-S-D","","","ARG-JUJ","CHN",19486.8,null,"CERDI"]
[null,"DST-S-D,,,ARG-JUJ,DEU","DST-S-D","","","ARG-JUJ","DEU",12728.796,null,"SEA-DISTANCES.ORG"]
[null,"DST-S-D,,,ARG-JUJ,ESP","DST-S-D","","","ARG-JUJ","ESP",11766,null,"CERDI"]
[null,"DST-S-D,,,ARG-JUJ,FRA","DST-S-D","","","ARG-JUJ","FRA",13195.9,null,"CERDI"]
[null,"DST-S-D,,,ARG-JUJ,IND","DST-S-D","","","ARG-JUJ","IND",16155.2,null,"CERDI"]
[null,"DST-S-D,,,ARG-JUJ,JPN","DST-S-D","","","ARG-JUJ","JPN",18848.2,null,"CERDI"]
[null,"DST-S-D,,,ARG-JUJ,KOR","DST-S-D","","","ARG-JUJ","KOR",19350,null,"CERDI"]
[null,"DST-S-D,,,ARG-JUJ,NLD","DST-S-D","","","ARG-JUJ","NLD",13750.5,null,"CERDI"]
[null,"DST-S-D,,,ARG-JUJ,USA","DST-S-D","","","ARG-JUJ","USA",12589.7,null,"CERDI"]
[null,"DST-S-D,,,ARG-LAR,CHN","DST-S-D","","","ARG-LAR","CHN",19486.8,null,"CERDI"]
[null,"DST-S-D,,,ARG-LAR,DEU","DST-S-D","","","ARG-LAR","DEU",12728.796,null,"SEA-DISTANCES.ORG"]
[null,"DST-S-D,,,ARG-LAR,ESP","DST-S-D","","","ARG-LAR","ESP",11766,null,"CERDI"]
[null,"DST-S-D,,,ARG-LAR,FRA","DST-S-D","","","ARG-LAR","FRA",13195.9,null,"CERDI"]
[null,"DST-S-D,,,ARG-LAR,IND","DST-S-D","","","ARG-LAR","IND",16155.2,null,"CERDI"]
[null,"DST-S-D,,,ARG-LAR,JPN","DST-S-D","","","ARG-LAR","JPN",18848.2,null,"CERDI"]
[null,"DST-S-D,,,ARG-LAR,KOR","DST-S-D","","","ARG-LAR","KOR",19350,null,"CERDI"]
[null,"DST-S-D,,,ARG-LAR,NLD","DST-S-D","","","ARG-LAR","NLD",13750.5,null,"CERDI"]
[null,"DST-S-D,,,ARG-LAR,USA","DST-S-D","","","ARG-LAR","USA",12589.7,null,"CERDI"]
[null,"DST-S-D,,,ARG-MEN,CHN","DST-S-D","","","ARG-MEN","CHN",19486.8,null,"CERDI"]
[null,"DST-S-D,,,ARG-MEN,DEU","DST-S-D","","","ARG-MEN","DEU",12728.796,null,"SEA-DISTANCES.ORG"]
[null,"DST-S-D,,,ARG-MEN,ESP","DST-S-D","","","ARG-MEN","ESP",11766,null,"CERDI"]
[null,"DST-S-D,,,ARG-MEN,FRA","DST-S-D","","","ARG-MEN","FRA",13195.9,null,"CERDI"]
[null,"DST-S-D,,,ARG-MEN,IND","DST-S-D","","","ARG-MEN","IND",16155.2,null,"CERDI"]
[null,"DST-S-D,,,ARG-MEN,JPN","DST-S-D","","","ARG-MEN","JPN",18848.2,null,"CERDI"]
[null,"DST-S-D,,,ARG-MEN,KOR","DST-S-D","","","ARG-MEN","KOR",19350,null,"CERDI"]
[null,"DST-S-D,,,ARG-MEN,NLD","DST-S-D","","","ARG-MEN","NLD",13750.5,null,"CERDI"]
[null,"DST-S-D,,,ARG-MEN,USA","DST-S-D","","","ARG-MEN","USA",12589.7,null,"CERDI"]
[null,"DST-S-D,,,ARG-MIS,CHN","DST-S-D","","","ARG-MIS","CHN",19486.8,null,"CERDI"]
[null,"DST-S-D,,,ARG-MIS,DEU","DST-S-D","","","ARG-MIS","DEU",12728.796,null,"SEA-DISTANCES.ORG"]
[null,"DST-S-D,,,ARG-MIS,ESP","DST-S-D","","","ARG-MIS","ESP",11766,null,"CERDI"]
[null,"DST-S-D,,,ARG-MIS,FRA","DST-S-D","","","ARG-MIS","FRA",13195.9,null,"CERDI"]
[null,"DST-S-D,,,ARG-MIS,IND","DST-S-D","","","ARG-MIS","IND",16155.2,null,"CERDI"]
[null,"DST-S-D,,,ARG-MIS,JPN","DST-S-D","","","ARG-MIS","JPN",18848.2,null,"CERDI"]
[null,"DST-S-D,,,ARG-MIS,KOR","DST-S-D","","","ARG-MIS","KOR",19350,null,"CERDI"]
[null,"DST-S-D,,,ARG-MIS,NLD","DST-S-D","","","ARG-MIS","NLD",13750.5,null,"CERDI"]
[null,"DST-S-D,,,ARG-MIS,USA","DST-S-D","","","ARG-MIS","USA",12589.7,null,"CERDI"]
[null,"DST-S-D,,,ARG-NEG,CHN","DST-S-D","","","ARG-NEG","CHN",19486.8,null,"CERDI"]
[null,"DST-S-D,,,ARG-NEG,DEU","DST-S-D","","","ARG-NEG","DEU",12728.796,null,"SEA-DISTANCES.ORG"]
[null,"DST-S-D,,,ARG-NEG,ESP","DST-S-D","","","ARG-NEG","ESP",11766,null,"CERDI"]
[null,"DST-S-D,,,ARG-NEG,FRA","DST-S-D","","","ARG-NEG","FRA",13195.9,null,"CERDI"]
[null,"DST-S-D,,,ARG-NEG,IND","DST-S-D","","","ARG-NEG","IND",16155.2,null,"CERDI"]
[null,"DST-S-D,,,ARG-NEG,JPN","DST-S-D","","","ARG-NEG","JPN",18848.2,null,"CERDI"]
[null,"DST-S-D,,,ARG-NEG,KOR","DST-S-D","","","ARG-NEG","KOR",19350,null,"CERDI"]
[null,"DST-S-D,,,ARG-NEG,NLD","DST-S-D","","","ARG-NEG","NLD",13750.5,null,"CERDI"]
[null,"DST-S-D,,,ARG-NEG,USA","DST-S-D","","","ARG-NEG","USA",12589.7,null,"CERDI"]
[null,"DST-S-D,,,ARG-NEU,CHN","DST-S-D","","","ARG-NEU","CHN",19486.8,null,"CERDI"]
[null,"DST-S-D,,,ARG-NEU,DEU","DST-S-D","","","ARG-NEU","DEU",12728.796,null,"SEA-DISTANCES.ORG"]
[null,"DST-S-D,,,ARG-NEU,ESP","DST-S-D","","","ARG-NEU","ESP",11766,null,"CERDI"]
[null,"DST-S-D,,,ARG-NEU,FRA","DST-S-D","","","ARG-NEU","FRA",13195.9,null,"CERDI"]
[null,"DST-S-D,,,ARG-NEU,IND","DST-S-D","","","ARG-NEU","IND",16155.2,null,"CERDI"]
[null,"DST-S-D,,,ARG-NEU,JPN","DST-S-D","","","ARG-NEU","JPN",18848.2,null,"CERDI"]
[null,"DST-S-D,,,ARG-NEU,KOR","DST-S-D","","","ARG-NEU","KOR",19350,null,"CERDI"]
[null,"DST-S-D,,,ARG-NEU,NLD","DST-S-D","","","ARG-NEU","NLD",13750.5,null,"CERDI"]
[null,"DST-S-D,,,ARG-NEU,USA","DST-S-D","","","ARG-NEU","USA",12589.7,null,"CERDI"]
[null,"DST-S-D,,,ARG-PAM,CHN","DST-S-D","","","ARG-PAM","CHN",19486.8,null,"CERDI"]
[null,"DST-S-D,,,ARG-PAM,DEU","DST-S-D","","","ARG-PAM","DEU",12728.796,null,"SEA-DISTANCES.ORG"]
[null,"DST-S-D,,,ARG-PAM,ESP","DST-S-D","","","ARG-PAM","ESP",11766,null,"CERDI"]
[null,"DST-S-D,,,ARG-PAM,FRA","DST-S-D","","","ARG-PAM","FRA",13195.9,null,"CERDI"]
[null,"DST-S-D,,,ARG-PAM,IND","DST-S-D","","","ARG-PAM","IND",16155.2,null,"CERDI"]
[null,"DST-S-D,,,ARG-PAM,JPN","DST-S-D","","","ARG-PAM","JPN",18848.2,null,"CERDI"]
[null,"DST-S-D,,,ARG-PAM,KOR","DST-S-D","","","ARG-PAM","KOR",19350,null,"CERDI"]
[null,"DST-S-D,,,ARG-PAM,NLD","DST-S-D","","","ARG-PAM","NLD",13750.5,null,"CERDI"]
[null,"DST-S-D,,,ARG-PAM,USA","DST-S-D","","","ARG-PAM","USA",12589.7,null,"CERDI"]
[null,"DST-S-D,,,ARG-RIO,CHN","DST-S-D","","","ARG-RIO","CHN",19486.8,null,"CERDI"]
[null,"DST-S-D,,,ARG-RIO,DEU","DST-S-D","","","ARG-RIO","DEU",12728.796,null,"SEA-DISTANCES.ORG"]
[null,"DST-S-D,,,ARG-RIO,ESP","DST-S-D","","","ARG-RIO","ESP",11766,null,"CERDI"]
[null,"DST-S-D,,,ARG-RIO,FRA","DST-S-D","","","ARG-RIO","FRA",13195.9,null,"CERDI"]
[null,"DST-S-D,,,ARG-RIO,IND","DST-S-D","","","ARG-RIO","IND",16155.2,null,"CERDI"]
[null,"DST-S-D,,,ARG-RIO,JPN","DST-S-D","","","ARG-RIO","JPN",18848.2,null,"CERDI"]
[null,"DST-S-D,,,ARG-RIO,KOR","DST-S-D","","","ARG-RIO","KOR",19350,null,"CERDI"]
[null,"DST-S-D,,,ARG-RIO,NLD","DST-S-D","","","ARG-RIO","NLD",13750.5,null,"CERDI"]
[null,"DST-S-D,,,ARG-RIO,USA","DST-S-D","","","ARG-RIO","USA",12589.7,null,"CERDI"]
[null,"DST-S-D,,,ARG-SAF,CHN","DST-S-D","","","ARG-SAF","CHN",19486.8,null,"CERDI"]
[null,"DST-S-D,,,ARG-SAF,DEU","DST-S-D","","","ARG-SAF","DEU",12728.796,null,"SEA-DISTANCES.ORG"]
[null,"DST-S-D,,,ARG-SAF,ESP","DST-S-D","","","ARG-SAF","ESP",11766,null,"CERDI"]
[null,"DST-S-D,,,ARG-SAF,FRA","DST-S-D","","","ARG-SAF","FRA",13195.9,null,"CERDI"]
[null,"DST-S-D,,,ARG-SAF,IND","DST-S-D","","","ARG-SAF","IND",16155.2,null,"CERDI"]
[null,"DST-S-D,,,ARG-SAF,JPN","DST-S-D","","","ARG-SAF","JPN",18848.2,null,"CERDI"]
[null,"DST-S-D,,,ARG-SAF,KOR","DST-S-D","","","ARG-SAF","KOR",19350,null,"CERDI"]
[null,"DST-S-D,,,ARG-SAF,NLD","DST-S-D","","","ARG-SAF","NLD",13750.5,null,"CERDI"]
[null,"DST-S-D,,,ARG-SAF,USA","DST-S-D","","","ARG-SAF","USA",12589.7,null,"CERDI"]
[null,"DST-S-D,,,ARG-SAJ,CHN","DST-S-D","","","ARG-SAJ","CHN",19486.8,null,"CERDI"]
[null,"DST-S-D,,,ARG-SAJ,DEU","DST-S-D","","","ARG-SAJ","DEU",12728.796,null,"SEA-DISTANCES.ORG"]
[null,"DST-S-D,,,ARG-SAJ,ESP","DST-S-D","","","ARG-SAJ","ESP",11766,null,"CERDI"]
[null,"DST-S-D,,,ARG-SAJ,FRA","DST-S-D","","","ARG-SAJ","FRA",13195.9,null,"CERDI"]
[null,"DST-S-D,,,ARG-SAJ,IND","DST-S-D","","","ARG-SAJ","IND",16155.2,null,"CERDI"]
[null,"DST-S-D,,,ARG-SAJ,JPN","DST-S-D","","","ARG-SAJ","JPN",18848.2,null,"CERDI"]
[null,"DST-S-D,,,ARG-SAJ,KOR","DST-S-D","","","ARG-SAJ","KOR",19350,null,"CERDI"]
[null,"DST-S-D,,,ARG-SAJ,NLD","DST-S-D","","","ARG-SAJ","NLD",13750.5,null,"CERDI"]
[null,"DST-S-D,,,ARG-SAJ,USA","DST-S-D","","","ARG-SAJ","USA",12589.7,null,"CERDI"]
[null,"DST-S-D,,,ARG-SAL,CHN","DST-S-D","","","ARG-SAL","CHN",19486.8,null,"CERDI"]
[null,"DST-S-D,,,ARG-SAL,DEU","DST-S-D","","","ARG-SAL","DEU",12728.796,null,"SEA-DISTANCES.ORG"]
[null,"DST-S-D,,,ARG-SAL,ESP","DST-S-D","","","ARG-SAL","ESP",11766,null,"CERDI"]
[null,"DST-S-D,,,ARG-SAL,FRA","DST-S-D","","","ARG-SAL","FRA",13195.9,null,"CERDI"]
[null,"DST-S-D,,,ARG-SAL,IND","DST-S-D","","","ARG-SAL","IND",16155.2,null,"CERDI"]
[null,"DST-S-D,,,ARG-SAL,JPN","DST-S-D","","","ARG-SAL","JPN",18848.2,null,"CERDI"]
[null,"DST-S-D,,,ARG-SAL,KOR","DST-S-D","","","ARG-SAL","KOR",19350,null,"CERDI"]
[null,"DST-S-D,,,ARG-SAL,NLD","DST-S-D","","","ARG-SAL","NLD",13750.5,null,"CERDI"]
[null,"DST-S-D,,,ARG-SAL,USA","DST-S-D","","","ARG-SAL","USA",12589.7,null,"CERDI"]
[null,"DST-S-D,,,ARG-SAT,CHN","DST-S-D","","","ARG-SAT","CHN",19486.8,null,"CERDI"]
[null,"DST-S-D,,,ARG-SAT,DEU","DST-S-D","","","ARG-SAT","DEU",12728.796,null,"SEA-DISTANCES.ORG"]
[null,"DST-S-D,,,ARG-SAT,ESP","DST-S-D","","","ARG-SAT","ESP",11766,null,"CERDI"]
[null,"DST-S-D,,,ARG-SAT,FRA","DST-S-D","","","ARG-SAT","FRA",13195.9,null,"CERDI"]
[null,"DST-S-D,,,ARG-SAT,IND","DST-S-D","","","ARG-SAT","IND",16155.2,null,"CERDI"]
[null,"DST-S-D,,,ARG-SAT,JPN","DST-S-D","","","ARG-SAT","JPN",18848.2,null,"CERDI"]
[null,"DST-S-D,,,ARG-SAT,KOR","DST-S-D","","","ARG-SAT","KOR",19350,null,"CERDI"]
[null,"DST-S-D,,,ARG-SAT,NLD","DST-S-D","","","ARG-SAT","NLD",13750.5,null,"CERDI"]
[null,"DST-S-D,,,ARG-SAT,USA","DST-S-D","","","ARG-SAT","USA",12589.7,null,"CERDI"]
[null,"DST-S-D,,,ARG-TUC,CHN","DST-S-D","","","ARG-TUC","CHN",19486.8,null,"CERDI"]
[null,"DST-S-D,,,ARG-TUC,DEU","DST-S-D","","","ARG-TUC","DEU",12728.796,null,"SEA-DISTANCES.ORG"]
[null,"DST-S-D,,,ARG-TUC,ESP","DST-S-D","","","ARG-TUC","ESP",11766,null,"CERDI"]
[null,"DST-S-D,,,ARG-TUC,FRA","DST-S-D","","","ARG-TUC","FRA",13195.9,null,"CERDI"]
[null,"DST-S-D,,,ARG-TUC,IND","DST-S-D","","","ARG-TUC","IND",16155.2,null,"CERDI"]
[null,"DST-S-D,,,ARG-TUC,JPN","DST-S-D","","","ARG-TUC","JPN",18848.2,null,"CERDI"]
[null,"DST-S-D,,,ARG-TUC,KOR","DST-S-D","","","ARG-TUC","KOR",19350,null,"CERDI"]
[null,"DST-S-D,,,ARG-TUC,NLD","DST-S-D","","","ARG-TUC","NLD",13750.5,null,"CERDI"]
[null,"DST-S-D,,,ARG-TUC,USA","DST-S-D","","","ARG-TUC","USA",12589.7,null,"CERDI"]
[null,"DST-S-D,,,AUS,CHN","DST-S-D","","","AUS","CHN",10024.9,null,"CERDI"]
[null,"DST-S-D,,,AUS,DEU","DST-S-D","","","AUS","DEU",21212.3,null,"CERDI"]
[null,"DST-S-D,,,AUS,ESP","DST-S-D","","","AUS","ESP",17760.900000000001,null,"CERDI"]
[null,"DST-S-D,,,AUS,FRA","DST-S-D","","","AUS","FRA",16854,null,"CERDI"]
[null,"DST-S-D,,,AUS,IND","DST-S-D","","","AUS","IND",10647.6,null,"CERDI"]
[null,"DST-S-D,,,AUS,JPN","DST-S-D","","","AUS","JPN",9845.85,null,"CERDI"]
[null,"DST-S-D,,,AUS,KOR","DST-S-D","","","AUS","KOR",10153.5,null,"CERDI"]
[null,"DST-S-D,,,AUS,NLD","DST-S-D","","","AUS","NLD",20628.3,null,"CERDI"]
[null,"DST-S-D,,,AUS,USA","DST-S-D","","","AUS","USA",12771.9,null,"CERDI"]
[null,"DST-S-D,,,BRA,CHN","DST-S-D","","","BRA","CHN",21462,null,"CERDI"]
[null,"DST-S-D,,,BRA,DEU","DST-S-D","","","BRA","DEU",10409.5,null,"CERDI"]
[null,"DST-S-D,,,BRA,ESP","DST-S-D","","","BRA","ESP",8824.26,null,"CERDI"]
[null,"DST-S-D,,,BRA,FRA","DST-S-D","","","BRA","FRA",9895.24,null,"CERDI"]
[null,"DST-S-D,,,BRA,IND","DST-S-D","","","BRA","IND",15751.1,null,"CERDI"]
[null,"DST-S-D,,,BRA,JPN","DST-S-D","","","BRA","JPN",22369.4,null,"CERDI"]
[null,"DST-S-D,,,BRA,KOR","DST-S-D","","","BRA","KOR",22048.5,null,"CERDI"]
[null,"DST-S-D,,,BRA,NLD","DST-S-D","","","BRA","NLD",10110.1,null,"CERDI"]
[null,"DST-S-D,,,BRA,USA","DST-S-D","","","BRA","USA",9777.43,null,"CERDI"]
[null,"DST-S-D,,,CHL,CHN","DST-S-D","","","CHL","CHN",18238,null,"CERDI"]
[null,"DST-S-D,,,CHL,DEU","DST-S-D","","","CHL","DEU",12511.9,null,"CERDI"]
[null,"DST-S-D,,,CHL,ESP","DST-S-D","","","CHL","ESP",13257.8,null,"CERDI"]
[null,"DST-S-D,,,CHL,FRA","DST-S-D","","","CHL","FRA",14328.9,null,"CERDI"]
[null,"DST-S-D,,,CHL,IND","DST-S-D","","","CHL","IND",20076.400000000001,null,"CERDI"]
[null,"DST-S-D,,,CHL,JPN","DST-S-D","","","CHL","JPN",16934.8,null,"CERDI"]
[null,"DST-S-D,,,CHL,KOR","DST-S-D","","","CHL","KOR",17656.2,null,"CERDI"]
[null,"DST-S-D,,,CHL,NLD","DST-S-D","","","CHL","NLD",12212.5,null,"CERDI"]
[null,"DST-S-D,,,CHL,USA","DST-S-D","","","CHL","USA",8511.36,null,"CERDI"]
[null,"DST-S-D,,,CHN,DEU","DST-S-D","","","CHN","DEU",20484.900000000001,null,"CERDI"]
[null,"DST-S-D,,,CHN,ESP","DST-S-D","","","CHN","ESP",16840.5,null,"CERDI"]
[null,"DST-S-D,,,CHN,FRA","DST-S-D","","","CHN","FRA",15425.3,null,"CERDI"]
[null,"DST-S-D,,,CHN,IND","DST-S-D","","","CHN","IND",8761.85,null,"CERDI"]
[null,"DST-S-D,,,CHN,JPN","DST-S-D","","","CHN","JPN",1458.02,null,"CERDI"]
[null,"DST-S-D,,,CHN,KOR","DST-S-D","","","CHN","KOR",659.33900000000006,null,"CERDI"]
[null,"DST-S-D,,,CHN,NLD","DST-S-D","","","CHN","NLD",19901,null,"CERDI"]
[null,"DST-S-D,,,CHN,USA","DST-S-D","","","CHN","USA",10401.4,null,"CERDI"]
[null,"DST-S-D,,,COL,CHN","DST-S-D","","","COL","CHN",16752,"km","CERDI"]
[null,"DST-S-D,,,COL,DEU","DST-S-D","","","COL","DEU",9250.74,"km","SEA-DISTANCES.ORG"]
[null,"DST-S-D,,,COL,ESP","DST-S-D","","","COL","ESP",7282,"km","CERDI"]
[null,"DST-S-D,,,COL,FRA","DST-S-D","","","COL","FRA",8323,"km","CERDI"]
[null,"DST-S-D,,,COL,IND","DST-S-D","","","COL","IND",17936,"km","CERDI"]
[null,"DST-S-D,,,COL,JPN","DST-S-D","","","COL","JPN",15390,"km","CERDI"]
[null,"DST-S-D,,,COL,KOR","DST-S-D","","","COL","KOR",16112,"km","CERDI"]
[null,"DST-S-D,,,COL,NLD","DST-S-D","","","COL","NLD",8361.7800000000007,"km","SEA-DISTANCES.ORG"]
[null,"DST-S-D,,,COL,USA","DST-S-D","","","COL","USA",2242,"km","CERDI"]
[null,"DST-S-D,,,CRI,CHN","DST-S-D","","","CRI","CHN",16735.5,null,"CERDI"]
[null,"DST-S-D,,,CRI,DEU","DST-S-D","","","CRI","DEU",7422.6,null,"CERDI"]
[null,"DST-S-D,,,CRI,ESP","DST-S-D","","","CRI","ESP",8028.79,null,"CERDI"]
[null,"DST-S-D,,,CRI,FRA","DST-S-D","","","CRI","FRA",9099.84,null,"CERDI"]
[null,"DST-S-D,,,CRI,IND","DST-S-D","","","CRI","IND",18692.900000000001,null,"CERDI"]
[null,"DST-S-D,,,CRI,JPN","DST-S-D","","","CRI","JPN",15373.2,null,"CERDI"]
[null,"DST-S-D,,,CRI,KOR","DST-S-D","","","CRI","KOR",16095.6,null,"CERDI"]
[null,"DST-S-D,,,CRI,NLD","DST-S-D","","","CRI","NLD",7150.86,null,"CERDI"]
[null,"DST-S-D,,,CRI,USA","DST-S-D","","","CRI","USA",2590.9699999999998,null,"CERDI"]
[null,"DST-S-D,,,DNK,CHN","DST-S-D","","","DNK","CHN",21206.9,null,"CERDI"]
[null,"DST-S-D,,,DNK,DEU","DST-S-D","","","DNK","DEU",814.84100000000001,null,"CERDI"]
[null,"DST-S-D,,,DNK,ESP","DST-S-D","","","DNK","ESP",2403.9,null,"SEA-DISTANCES.ORG"]
[null,"DST-S-D,,,DNK,FRA","DST-S-D","","","DNK","FRA",1859.4080000000001,null,"SEA-DISTANCES.ORG"]
[null,"DST-S-D,,,DNK,IND","DST-S-D","","","DNK","IND",13318,null,"CERDI"]
[null,"DST-S-D,,,DNK,JPN","DST-S-D","","","DNK","JPN",22113.599999999999,null,"CERDI"]
[null,"DST-S-D,,,DNK,KOR","DST-S-D","","","DNK","KOR",21793,null,"CERDI"]
[null,"DST-S-D,,,DNK,NLD","DST-S-D","","","DNK","NLD",1117.3499999999999,null,"CERDI"]
[null,"DST-S-D,,,DNK,USA","DST-S-D","","","DNK","USA",8659.0300000000007,null,"CERDI"]
[null,"DST-S-D,,,DZA,CHN","DST-S-D","","","DZA","CHN",16414.7,null,"CERDI"]
[null,"DST-S-D,,,DZA,DEU","DST-S-D","","","DZA","DEU",3174.14,null,"CERDI"]
[null,"DST-S-D,,,DZA,ESP","DST-S-D","","","DZA","ESP",449.37400000000002,null,"CERDI"]
[null,"DST-S-D,,,DZA,FRA","DST-S-D","","","DZA","FRA",863.68899999999996,null,"CERDI"]
[null,"DST-S-D,,,DZA,IND","DST-S-D","","","DZA","IND",8829.52,null,"CERDI"]
[null,"DST-S-D,,,DZA,JPN","DST-S-D","","","DZA","JPN",17389.099999999999,null,"CERDI"]
[null,"DST-S-D,,,DZA,KOR","DST-S-D","","","DZA","KOR",17085.5,null,"CERDI"]
[null,"DST-S-D,,,DZA,NLD","DST-S-D","","","DZA","NLD",2860.67,null,"CERDI"]
[null,"DST-S-D,,,DZA,USA","DST-S-D","","","DZA","USA",9072.02,null,"CERDI"]
[null,"DST-S-D,,,EGY,CHN","DST-S-D","","","EGY","CHN",13389.8,null,"CERDI"]
[null,"DST-S-D,,,EGY,DEU","DST-S-D","","","EGY","DEU",6629.18,null,"CERDI"]
[null,"DST-S-D,,,EGY,ESP","DST-S-D","","","EGY","ESP",3408.43,null,"CERDI"]
[null,"DST-S-D,,,EGY,FRA","DST-S-D","","","EGY","FRA",2024.05,null,"CERDI"]
[null,"DST-S-D,,,EGY,IND","DST-S-D","","","EGY","IND",5810.46,null,"CERDI"]
[null,"DST-S-D,,,EGY,JPN","DST-S-D","","","EGY","JPN",14387.6,null,"CERDI"]
[null,"DST-S-D,,,EGY,KOR","DST-S-D","","","EGY","KOR",14066.7,null,"CERDI"]
[null,"DST-S-D,,,EGY,NLD","DST-S-D","","","EGY","NLD",6261.57,null,"CERDI"]
[null,"DST-S-D,,,EGY,USA","DST-S-D","","","EGY","USA",12612.9,null,"CERDI"]
[null,"DST-S-D,,,ESP,CHN","DST-S-D","","","ESP","CHN",16838.3,null,"CERDI"]
[null,"DST-S-D,,,ESP,DEU","DST-S-D","","","ESP","DEU",2697.76,null,"CERDI"]
[null,"DST-S-D,,,ESP,FRA","DST-S-D","","","ESP","FRA",342.62,null,"SEA-DISTANCES.ORG"]
[null,"DST-S-D,,,ESP,IND","DST-S-D","","","ESP","IND",9253.6200000000008,null,"CERDI"]
[null,"DST-S-D,,,ESP,JPN","DST-S-D","","","ESP","JPN",17812.599999999999,null,"CERDI"]
[null,"DST-S-D,,,ESP,KOR","DST-S-D","","","ESP","KOR",17509,null,"CERDI"]
[null,"DST-S-D,,,ESP,NLD","DST-S-D","","","ESP","NLD",1427.89,null,"SEA-DISTANCES.ORG"]
[null,"DST-S-D,,,ESP,USA","DST-S-D","","","ESP","USA",8601.06,null,"CERDI"]
[null,"DST-S-D,,,IDN,CHN","DST-S-D","","","IDN","CHN",4900.57,null,"CERDI"]
[null,"DST-S-D,,,IDN,DEU","DST-S-D","","","IDN","DEU",16946.8,null,"CERDI"]
[null,"DST-S-D,,,IDN,ESP","DST-S-D","","","IDN","ESP",13236.9,null,"CERDI"]
[null,"DST-S-D,,,IDN,FRA","DST-S-D","","","IDN","FRA",11693.4,null,"CERDI"]
[null,"DST-S-D,,,IDN,IND","DST-S-D","","","IDN","IND",5100.03,null,"CERDI"]
[null,"DST-S-D,,,IDN,JPN","DST-S-D","","","IDN","JPN",5807.96,null,"CERDI"]
[null,"DST-S-D,,,IDN,KOR","DST-S-D","","","IDN","KOR",5487.17,null,"CERDI"]
[null,"DST-S-D,,,IDN,NLD","DST-S-D","","","IDN","NLD",16421,null,"CERDI"]
[null,"DST-S-D,,,IDN,USA","DST-S-D","","","IDN","USA",13999.4,null,"CERDI"]
[null,"DST-S-D,,,IND,CHN","DST-S-D","","","IND","CHN",8761.3799999999992,null,"CERDI"]
[null,"DST-S-D,,,IND,DEU","DST-S-D","","","IND","DEU",12687.7,null,"CERDI"]
[null,"DST-S-D,,,IND,ESP","DST-S-D","","","IND","ESP",9254.24,null,"CERDI"]
[null,"DST-S-D,,,IND,FRA","DST-S-D","","","IND","FRA",8441.42,null,"SEA-DISTANCES.ORG"]
[null,"DST-S-D,,,IND,JPN","DST-S-D","","","IND","JPN",9668.61,null,"CERDI"]
[null,"DST-S-D,,,IND,KOR","DST-S-D","","","IND","KOR",9347.85,null,"CERDI"]
[null,"DST-S-D,,,IND,NLD","DST-S-D","","","IND","NLD",12221.7,null,"CERDI"]
[null,"DST-S-D,,,IND,USA","DST-S-D","","","IND","USA",18312.2,null,"CERDI"]
[null,"DST-S-D,,,JOR,CHN","DST-S-D","","","JOR","CHN",13090.6,null,"CERDI"]
[null,"DST-S-D,,,JOR,DEU","DST-S-D","","","JOR","DEU",7488.73,null,"CERDI"]
[null,"DST-S-D,,,JOR,ESP","DST-S-D","","","JOR","ESP",3457.7,null,"SEA-DISTANCES.ORG"]
[null,"DST-S-D,,,JOR,FRA","DST-S-D","","","JOR","FRA",3516.95,null,"SEA-DISTANCES.ORG"]
[null,"DST-S-D,,,JOR,IND","DST-S-D","","","JOR","IND",5511.15,null,"CERDI"]
[null,"DST-S-D,,,JOR,JPN","DST-S-D","","","JOR","JPN",14049.3,null,"CERDI"]
[null,"DST-S-D,,,JOR,KOR","DST-S-D","","","JOR","KOR",13728.5,null,"CERDI"]
[null,"DST-S-D,,,JOR,NLD","DST-S-D","","","JOR","NLD",7079.06,null,"CERDI"]
[null,"DST-S-D,,,JOR,USA","DST-S-D","","","JOR","USA",13472.2,null,"CERDI"]
[null,"DST-S-D,,,KAZ,CHN","DST-S-D","","","KAZ","CHN",2252.4699999999998,null,"CERDI"]
[null,"DST-S-D,,,KAZ,DEU","DST-S-D","","","KAZ","DEU",6601.17,null,"CERDI"]
[null,"DST-S-D,,,KAZ,ESP","DST-S-D","","","KAZ","ESP",3900.92,null,"CERDI"]
[null,"DST-S-D,,,KAZ,FRA","DST-S-D","","","KAZ","FRA",3529.3,null,"CERDI"]
[null,"DST-S-D,,,KAZ,IND","DST-S-D","","","KAZ","IND",8331.77,null,"CERDI"]
[null,"DST-S-D,,,KAZ,JPN","DST-S-D","","","KAZ","JPN",2136.6799999999998,null,"CERDI"]
[null,"DST-S-D,,,KAZ,KOR","DST-S-D","","","KAZ","KOR",1579.54,null,"CERDI"]
[null,"DST-S-D,,,KAZ,NLD","DST-S-D","","","KAZ","NLD",6287.68,null,"CERDI"]
[null,"DST-S-D,,,KAZ,USA","DST-S-D","","","KAZ","USA",8226.75,null,"CERDI"]
[null,"DST-S-D,,,KEN,CHN","DST-S-D","","","KEN","CHN",11244.6,null,"CERDI"]
[null,"DST-S-D,,,KEN,DEU","DST-S-D","","","KEN","DEU",12814.1,null,"CERDI"]
[null,"DST-S-D,,,KEN,ESP","DST-S-D","","","KEN","ESP",9223.33,null,"CERDI"]
[null,"DST-S-D,,,KEN,FRA","DST-S-D","","","KEN","FRA",7736.75,null,"CERDI"]
[null,"DST-S-D,,,KEN,IND","DST-S-D","","","KEN","IND",4305.05,null,"CERDI"]
[null,"DST-S-D,,,KEN,JPN","DST-S-D","","","KEN","JPN",12152,null,"CERDI"]
[null,"DST-S-D,,,KEN,KOR","DST-S-D","","","KEN","KOR",11831.2,null,"CERDI"]
[null,"DST-S-D,,,KEN,NLD","DST-S-D","","","KEN","NLD",12343.5,null,"CERDI"]
[null,"DST-S-D,,,KEN,USA","DST-S-D","","","KEN","USA",18739.400000000001,null,"CERDI"]
[null,"DST-S-D,,,MAR,CHN","DST-S-D","","","MAR","CHN",16917.900000000001,null,"CERDI"]
[null,"DST-S-D,,,MAR,DEU","DST-S-D","","","MAR","DEU",2668.15,null,"CERDI"]
[null,"DST-S-D,,,MAR,ESP","DST-S-D","","","MAR","ESP",38.352499999999999,null,"CERDI"]
[null,"DST-S-D,,,MAR,FRA","DST-S-D","","","MAR","FRA",1104.08,null,"CERDI"]
[null,"DST-S-D,,,MAR,IND","DST-S-D","","","MAR","IND",9333.25,null,"CERDI"]
[null,"DST-S-D,,,MAR,JPN","DST-S-D","","","MAR","JPN",17892.3,null,"CERDI"]
[null,"DST-S-D,,,MAR,KOR","DST-S-D","","","MAR","KOR",17588.7,null,"CERDI"]
[null,"DST-S-D,,,MAR,NLD","DST-S-D","","","MAR","NLD",2354.6799999999998,null,"CERDI"]
[null,"DST-S-D,,,MAR,USA","DST-S-D","","","MAR","USA",8558.2999999999993,null,"CERDI"]
[null,"DST-S-D,,,MAR-BEN,CHN","DST-S-D","","","MAR-BEN","CHN",16917.900000000001,null,"CERDI"]
[null,"DST-S-D,,,MAR-BEN,DEU","DST-S-D","","","MAR-BEN","DEU",2668.15,null,"CERDI"]
[null,"DST-S-D,,,MAR-BEN,ESP","DST-S-D","","","MAR-BEN","ESP",38.352499999999999,null,"CERDI"]
[null,"DST-S-D,,,MAR-BEN,FRA","DST-S-D","","","MAR-BEN","FRA",1104.08,null,"CERDI"]
[null,"DST-S-D,,,MAR-BEN,IND","DST-S-D","","","MAR-BEN","IND",9333.25,null,"CERDI"]
[null,"DST-S-D,,,MAR-BEN,JPN","DST-S-D","","","MAR-BEN","JPN",17892.3,null,"CERDI"]
[null,"DST-S-D,,,MAR-BEN,KOR","DST-S-D","","","MAR-BEN","KOR",17588.7,null,"CERDI"]
[null,"DST-S-D,,,MAR-BEN,NLD","DST-S-D","","","MAR-BEN","NLD",2354.6799999999998,null,"CERDI"]
[null,"DST-S-D,,,MAR-BEN,USA","DST-S-D","","","MAR-BEN","USA",8558.2999999999993,null,"CERDI"]
[null,"DST-S-D,,,MAR-CAS,CHN","DST-S-D","","","MAR-CAS","CHN",16917.900000000001,null,"CERDI"]
[null,"DST-S-D,,,MAR-CAS,DEU","DST-S-D","","","MAR-CAS","DEU",2668.15,null,"CERDI"]
[null,"DST-S-D,,,MAR-CAS,ESP","DST-S-D","","","MAR-CAS","ESP",38.352499999999999,null,"CERDI"]
[null,"DST-S-D,,,MAR-CAS,FRA","DST-S-D","","","MAR-CAS","FRA",1104.08,null,"CERDI"]
[null,"DST-S-D,,,MAR-CAS,IND","DST-S-D","","","MAR-CAS","IND",9333.25,null,"CERDI"]
[null,"DST-S-D,,,MAR-CAS,JPN","DST-S-D","","","MAR-CAS","JPN",17892.3,null,"CERDI"]
[null,"DST-S-D,,,MAR-CAS,KOR","DST-S-D","","","MAR-CAS","KOR",17588.7,null,"CERDI"]
[null,"DST-S-D,,,MAR-CAS,NLD","DST-S-D","","","MAR-CAS","NLD",2354.6799999999998,null,"CERDI"]
[null,"DST-S-D,,,MAR-CAS,USA","DST-S-D","","","MAR-CAS","USA",8558.2999999999993,null,"CERDI"]
[null,"DST-S-D,,,MAR-DAK,CHN","DST-S-D","","","MAR-DAK","CHN",16917.900000000001,null,"CERDI"]
[null,"DST-S-D,,,MAR-DAK,DEU","DST-S-D","","","MAR-DAK","DEU",2668.15,null,"CERDI"]
[null,"DST-S-D,,,MAR-DAK,ESP","DST-S-D","","","MAR-DAK","ESP",38.352499999999999,null,"CERDI"]
[null,"DST-S-D,,,MAR-DAK,FRA","DST-S-D","","","MAR-DAK","FRA",1104.08,null,"CERDI"]
[null,"DST-S-D,,,MAR-DAK,IND","DST-S-D","","","MAR-DAK","IND",9333.25,null,"CERDI"]
[null,"DST-S-D,,,MAR-DAK,JPN","DST-S-D","","","MAR-DAK","JPN",17892.3,null,"CERDI"]
[null,"DST-S-D,,,MAR-DAK,KOR","DST-S-D","","","MAR-DAK","KOR",17588.7,null,"CERDI"]
[null,"DST-S-D,,,MAR-DAK,NLD","DST-S-D","","","MAR-DAK","NLD",2354.6799999999998,null,"CERDI"]
[null,"DST-S-D,,,MAR-DAK,USA","DST-S-D","","","MAR-DAK","USA",8558.2999999999993,null,"CERDI"]
[null,"DST-S-D,,,MAR-DRA,CHN","DST-S-D","","","MAR-DRA","CHN",16917.900000000001,null,"CERDI"]
[null,"DST-S-D,,,MAR-DRA,DEU","DST-S-D","","","MAR-DRA","DEU",2668.15,null,"CERDI"]
[null,"DST-S-D,,,MAR-DRA,ESP","DST-S-D","","","MAR-DRA","ESP",38.352499999999999,null,"CERDI"]
[null,"DST-S-D,,,MAR-DRA,FRA","DST-S-D","","","MAR-DRA","FRA",1104.08,null,"CERDI"]
[null,"DST-S-D,,,MAR-DRA,IND","DST-S-D","","","MAR-DRA","IND",9333.25,null,"CERDI"]
[null,"DST-S-D,,,MAR-DRA,JPN","DST-S-D","","","MAR-DRA","JPN",17892.3,null,"CERDI"]
[null,"DST-S-D,,,MAR-DRA,KOR","DST-S-D","","","MAR-DRA","KOR",17588.7,null,"CERDI"]
[null,"DST-S-D,,,MAR-DRA,NLD","DST-S-D","","","MAR-DRA","NLD",2354.6799999999998,null,"CERDI"]
[null,"DST-S-D,,,MAR-DRA,USA","DST-S-D","","","MAR-DRA","USA",8558.2999999999993,null,"CERDI"]
[null,"DST-S-D,,,MAR-FES,CHN","DST-S-D","","","MAR-FES","CHN",16917.900000000001,null,"CERDI"]
[null,"DST-S-D,,,MAR-FES,DEU","DST-S-D","","","MAR-FES","DEU",2668.15,null,"CERDI"]
[null,"DST-S-D,,,MAR-FES,ESP","DST-S-D","","","MAR-FES","ESP",38.352499999999999,null,"CERDI"]
[null,"DST-S-D,,,MAR-FES,FRA","DST-S-D","","","MAR-FES","FRA",1104.08,null,"CERDI"]
[null,"DST-S-D,,,MAR-FES,IND","DST-S-D","","","MAR-FES","IND",9333.25,null,"CERDI"]
[null,"DST-S-D,,,MAR-FES,JPN","DST-S-D","","","MAR-FES","JPN",17892.3,null,"CERDI"]
[null,"DST-S-D,,,MAR-FES,KOR","DST-S-D","","","MAR-FES","KOR",17588.7,null,"CERDI"]
[null,"DST-S-D,,,MAR-FES,NLD","DST-S-D","","","MAR-FES","NLD",2354.6799999999998,null,"CERDI"]
[null,"DST-S-D,,,MAR-FES,USA","DST-S-D","","","MAR-FES","USA",8558.2999999999993,null,"CERDI"]
[null,"DST-S-D,,,MAR-GUE,CHN","DST-S-D","","","MAR-GUE","CHN",16917.900000000001,null,"CERDI"]
[null,"DST-S-D,,,MAR-GUE,DEU","DST-S-D","","","MAR-GUE","DEU",2668.15,null,"CERDI"]
[null,"DST-S-D,,,MAR-GUE,ESP","DST-S-D","","","MAR-GUE","ESP",38.352499999999999,null,"CERDI"]
[null,"DST-S-D,,,MAR-GUE,FRA","DST-S-D","","","MAR-GUE","FRA",1104.08,null,"CERDI"]
[null,"DST-S-D,,,MAR-GUE,IND","DST-S-D","","","MAR-GUE","IND",9333.25,null,"CERDI"]
[null,"DST-S-D,,,MAR-GUE,JPN","DST-S-D","","","MAR-GUE","JPN",17892.3,null,"CERDI"]
[null,"DST-S-D,,,MAR-GUE,KOR","DST-S-D","","","MAR-GUE","KOR",17588.7,null,"CERDI"]
[null,"DST-S-D,,,MAR-GUE,NLD","DST-S-D","","","MAR-GUE","NLD",2354.6799999999998,null,"CERDI"]
[null,"DST-S-D,,,MAR-GUE,USA","DST-S-D","","","MAR-GUE","USA",8558.2999999999993,null,"CERDI"]
[null,"DST-S-D,,,MAR-LAA,CHN","DST-S-D","","","MAR-LAA","CHN",16917.900000000001,null,"CERDI"]
[null,"DST-S-D,,,MAR-LAA,DEU","DST-S-D","","","MAR-LAA","DEU",2668.15,null,"CERDI"]
[null,"DST-S-D,,,MAR-LAA,ESP","DST-S-D","","","MAR-LAA","ESP",38.352499999999999,null,"CERDI"]
[null,"DST-S-D,,,MAR-LAA,FRA","DST-S-D","","","MAR-LAA","FRA",1104.08,null,"CERDI"]
[null,"DST-S-D,,,MAR-LAA,IND","DST-S-D","","","MAR-LAA","IND",9333.25,null,"CERDI"]
[null,"DST-S-D,,,MAR-LAA,JPN","DST-S-D","","","MAR-LAA","JPN",17892.3,null,"CERDI"]
[null,"DST-S-D,,,MAR-LAA,KOR","DST-S-D","","","MAR-LAA","KOR",17588.7,null,"CERDI"]
[null,"DST-S-D,,,MAR-LAA,NLD","DST-S-D","","","MAR-LAA","NLD",2354.6799999999998,null,"CERDI"]
[null,"DST-S-D,,,MAR-LAA,USA","DST-S-D","","","MAR-LAA","USA",8558.2999999999993,null,"CERDI"]
[null,"DST-S-D,,,MAR-LOR,CHN","DST-S-D","","","MAR-LOR","CHN",16917.900000000001,null,"CERDI"]
[null,"DST-S-D,,,MAR-LOR,DEU","DST-S-D","","","MAR-LOR","DEU",2668.15,null,"CERDI"]
[null,"DST-S-D,,,MAR-LOR,ESP","DST-S-D","","","MAR-LOR","ESP",38.352499999999999,null,"CERDI"]
[null,"DST-S-D,,,MAR-LOR,FRA","DST-S-D","","","MAR-LOR","FRA",1104.08,null,"CERDI"]
[null,"DST-S-D,,,MAR-LOR,IND","DST-S-D","","","MAR-LOR","IND",9333.25,null,"CERDI"]
[null,"DST-S-D,,,MAR-LOR,JPN","DST-S-D","","","MAR-LOR","JPN",17892.3,null,"CERDI"]
[null,"DST-S-D,,,MAR-LOR,KOR","DST-S-D","","","MAR-LOR","KOR",17588.7,null,"CERDI"]
[null,"DST-S-D,,,MAR-LOR,NLD","DST-S-D","","","MAR-LOR","NLD",2354.6799999999998,null,"CERDI"]
[null,"DST-S-D,,,MAR-LOR,USA","DST-S-D","","","MAR-LOR","USA",8558.2999999999993,null,"CERDI"]
[null,"DST-S-D,,,MAR-MAR,CHN","DST-S-D","","","MAR-MAR","CHN",16917.900000000001,null,"CERDI"]
[null,"DST-S-D,,,MAR-MAR,DEU","DST-S-D","","","MAR-MAR","DEU",2668.15,null,"CERDI"]
[null,"DST-S-D,,,MAR-MAR,ESP","DST-S-D","","","MAR-MAR","ESP",38.352499999999999,null,"CERDI"]
[null,"DST-S-D,,,MAR-MAR,FRA","DST-S-D","","","MAR-MAR","FRA",1104.08,null,"CERDI"]
[null,"DST-S-D,,,MAR-MAR,IND","DST-S-D","","","MAR-MAR","IND",9333.25,null,"CERDI"]
[null,"DST-S-D,,,MAR-MAR,JPN","DST-S-D","","","MAR-MAR","JPN",17892.3,null,"CERDI"]
[null,"DST-S-D,,,MAR-MAR,KOR","DST-S-D","","","MAR-MAR","KOR",17588.7,null,"CERDI"]
[null,"DST-S-D,,,MAR-MAR,NLD","DST-S-D","","","MAR-MAR","NLD",2354.6799999999998,null,"CERDI"]
[null,"DST-S-D,,,MAR-MAR,USA","DST-S-D","","","MAR-MAR","USA",8558.2999999999993,null,"CERDI"]
[null,"DST-S-D,,,MAR-RAB,CHN","DST-S-D","","","MAR-RAB","CHN",16917.900000000001,null,"CERDI"]
[null,"DST-S-D,,,MAR-RAB,DEU","DST-S-D","","","MAR-RAB","DEU",2668.15,null,"CERDI"]
[null,"DST-S-D,,,MAR-RAB,ESP","DST-S-D","","","MAR-RAB","ESP",38.352499999999999,null,"CERDI"]
[null,"DST-S-D,,,MAR-RAB,FRA","DST-S-D","","","MAR-RAB","FRA",1104.08,null,"CERDI"]
[null,"DST-S-D,,,MAR-RAB,IND","DST-S-D","","","MAR-RAB","IND",9333.25,null,"CERDI"]
[null,"DST-S-D,,,MAR-RAB,JPN","DST-S-D","","","MAR-RAB","JPN",17892.3,null,"CERDI"]
[null,"DST-S-D,,,MAR-RAB,KOR","DST-S-D","","","MAR-RAB","KOR",17588.7,null,"CERDI"]
[null,"DST-S-D,,,MAR-RAB,NLD","DST-S-D","","","MAR-RAB","NLD",2354.6799999999998,null,"CERDI"]
[null,"DST-S-D,,,MAR-RAB,USA","DST-S-D","","","MAR-RAB","USA",8558.2999999999993,null,"CERDI"]
[null,"DST-S-D,,,MAR-SOU,CHN","DST-S-D","","","MAR-SOU","CHN",16917.900000000001,null,"CERDI"]
[null,"DST-S-D,,,MAR-SOU,DEU","DST-S-D","","","MAR-SOU","DEU",2668.15,null,"CERDI"]
[null,"DST-S-D,,,MAR-SOU,ESP","DST-S-D","","","MAR-SOU","ESP",38.352499999999999,null,"CERDI"]
[null,"DST-S-D,,,MAR-SOU,FRA","DST-S-D","","","MAR-SOU","FRA",1104.08,null,"CERDI"]
[null,"DST-S-D,,,MAR-SOU,IND","DST-S-D","","","MAR-SOU","IND",9333.25,null,"CERDI"]
[null,"DST-S-D,,,MAR-SOU,JPN","DST-S-D","","","MAR-SOU","JPN",17892.3,null,"CERDI"]
[null,"DST-S-D,,,MAR-SOU,KOR","DST-S-D","","","MAR-SOU","KOR",17588.7,null,"CERDI"]
[null,"DST-S-D,,,MAR-SOU,NLD","DST-S-D","","","MAR-SOU","NLD",2354.6799999999998,null,"CERDI"]
[null,"DST-S-D,,,MAR-SOU,USA","DST-S-D","","","MAR-SOU","USA",8558.2999999999993,null,"CERDI"]
[null,"DST-S-D,,,MAR-TAN,CHN","DST-S-D","","","MAR-TAN","CHN",16917.900000000001,null,"CERDI"]
[null,"DST-S-D,,,MAR-TAN,DEU","DST-S-D","","","MAR-TAN","DEU",2668.15,null,"CERDI"]
[null,"DST-S-D,,,MAR-TAN,ESP","DST-S-D","","","MAR-TAN","ESP",38.352499999999999,null,"CERDI"]
[null,"DST-S-D,,,MAR-TAN,FRA","DST-S-D","","","MAR-TAN","FRA",1104.08,null,"CERDI"]
[null,"DST-S-D,,,MAR-TAN,IND","DST-S-D","","","MAR-TAN","IND",9333.25,null,"CERDI"]
[null,"DST-S-D,,,MAR-TAN,JPN","DST-S-D","","","MAR-TAN","JPN",17892.3,null,"CERDI"]
[null,"DST-S-D,,,MAR-TAN,KOR","DST-S-D","","","MAR-TAN","KOR",17588.7,null,"CERDI"]
[null,"DST-S-D,,,MAR-TAN,NLD","DST-S-D","","","MAR-TAN","NLD",2354.6799999999998,null,"CERDI"]
[null,"DST-S-D,,,MAR-TAN,USA","DST-S-D","","","MAR-TAN","USA",8558.2999999999993,null,"CERDI"]
[null,"DST-S-D,,,MEX,CHN","DST-S-D","","","MEX","CHN",13223.2,null,"CERDI"]
[null,"DST-S-D,,,MEX,DEU","DST-S-D","","","MEX","DEU",10256.299999999999,null,"CERDI"]
[null,"DST-S-D,,,MEX,ESP","DST-S-D","","","MEX","ESP",10695.5,null,"CERDI"]
[null,"DST-S-D,,,MEX,FRA","DST-S-D","","","MEX","FRA",11766.6,null,"CERDI"]
[null,"DST-S-D,,,MEX,IND","DST-S-D","","","MEX","IND",20448.3,null,"CERDI"]
[null,"DST-S-D,,,MEX,JPN","DST-S-D","","","MEX","JPN",11860.6,null,"CERDI"]
[null,"DST-S-D,,,MEX,KOR","DST-S-D","","","MEX","KOR",12583,null,"CERDI"]
[null,"DST-S-D,,,MEX,NLD","DST-S-D","","","MEX","NLD",9956.94,null,"CERDI"]
[null,"DST-S-D,,,MEX,USA","DST-S-D","","","MEX","USA",1231.58,null,"SEA-DISTANCES.ORG"]
[null,"DST-S-D,,,MRT,CHN","DST-S-D","","","MRT","CHN",19545.900000000001,null,"CERDI"]
[null,"DST-S-D,,,MRT,DEU","DST-S-D","","","MRT","DEU",4171.75,null,"CERDI"]
[null,"DST-S-D,,,MRT,ESP","DST-S-D","","","MRT","ESP",2012.1,null,"CERDI"]
[null,"DST-S-D,,,MRT,FRA","DST-S-D","","","MRT","FRA",3083.36,null,"CERDI"]
[null,"DST-S-D,,,MRT,IND","DST-S-D","","","MRT","IND",11940.3,null,"CERDI"]
[null,"DST-S-D,,,MRT,JPN","DST-S-D","","","MRT","JPN",20452.599999999999,null,"CERDI"]
[null,"DST-S-D,,,MRT,KOR","DST-S-D","","","MRT","KOR",20132,null,"CERDI"]
[null,"DST-S-D,,,MRT,NLD","DST-S-D","","","MRT","NLD",3858.24,null,"CERDI"]
[null,"DST-S-D,,,MRT,USA","DST-S-D","","","MRT","USA",7511.88,null,"CERDI"]
[null,"DST-S-D,,,NAM,CHN","DST-S-D","","","NAM","CHN",16002.4,null,"CERDI"]
[null,"DST-S-D,,,NAM,DEU","DST-S-D","","","NAM","DEU",10723.8,null,"CERDI"]
[null,"DST-S-D,,,NAM,ESP","DST-S-D","","","NAM","ESP",8564.51,null,"CERDI"]
[null,"DST-S-D,,,NAM,FRA","DST-S-D","","","NAM","FRA",9635.7099999999991,null,"CERDI"]
[null,"DST-S-D,,,NAM,IND","DST-S-D","","","NAM","IND",10561.3,null,"CERDI"]
[null,"DST-S-D,,,NAM,JPN","DST-S-D","","","NAM","JPN",16976.900000000001,null,"CERDI"]
[null,"DST-S-D,,,NAM,KOR","DST-S-D","","","NAM","KOR",16673.3,null,"CERDI"]
[null,"DST-S-D,,,NAM,NLD","DST-S-D","","","NAM","NLD",10410.4,null,"CERDI"]
[null,"DST-S-D,,,NAM,USA","DST-S-D","","","NAM","USA",12721.7,null,"CERDI"]
[null,"DST-S-D,,,NOR,CHN","DST-S-D","","","NOR","CHN",21062.6,null,"CERDI"]
[null,"DST-S-D,,,NOR,DEU","DST-S-D","","","NOR","DEU",605.048,null,"CERDI"]
[null,"DST-S-D,,,NOR,ESP","DST-S-D","","","NOR","ESP",2363.15,null,"SEA-DISTANCES.ORG"]
[null,"DST-S-D,,,NOR,FRA","DST-S-D","","","NOR","FRA",1818.66,null,"SEA-DISTANCES.ORG"]
[null,"DST-S-D,,,NOR,IND","DST-S-D","","","NOR","IND",13108.2,null,"CERDI"]
[null,"DST-S-D,,,NOR,JPN","DST-S-D","","","NOR","JPN",21969.200000000001,null,"CERDI"]
[null,"DST-S-D,,,NOR,KOR","DST-S-D","","","NOR","KOR",21648.7,null,"CERDI"]
[null,"DST-S-D,,,NOR,NLD","DST-S-D","","","NOR","NLD",808.45699999999999,null,"CERDI"]
[null,"DST-S-D,,,NOR,USA","DST-S-D","","","NOR","USA",7940.34,null,"CERDI"]
[null,"DST-S-D,,,PER,CHN","DST-S-D","","","PER","CHN",16633.3,null,"CERDI"]
[null,"DST-S-D,,,PER,DEU","DST-S-D","","","PER","DEU",12282.46,null,"SEA-DISTANCES.ORG"]
[null,"DST-S-D,,,PER,ESP","DST-S-D","","","PER","ESP",11517.59,null,"SEA-DISTANCES.ORG"]
[null,"DST-S-D,,,PER,FRA","DST-S-D","","","PER","FRA",10735.1,null,"CERDI"]
[null,"DST-S-D,,,PER,IND","DST-S-D","","","PER","IND",20364.8,null,"CERDI"]
[null,"DST-S-D,,,PER,JPN","DST-S-D","","","PER","JPN",15271,null,"CERDI"]
[null,"DST-S-D,,,PER,KOR","DST-S-D","","","PER","KOR",15993.2,null,"CERDI"]
[null,"DST-S-D,,,PER,NLD","DST-S-D","","","PER","NLD",11445.36,null,"SEA-DISTANCES.ORG"]
[null,"DST-S-D,,,PER,USA","DST-S-D","","","PER","USA",4729.2,null,"CERDI"]
[null,"DST-S-D,,,PRT,CHN","DST-S-D","","","PRT","CHN",17380,null,"CERDI"]
[null,"DST-S-D,,,PRT,DEU","DST-S-D","","","PRT","DEU",2479.8200000000002,null,"SEA-DISTANCES.ORG"]
[null,"DST-S-D,,,PRT,ESP","DST-S-D","","","PRT","ESP",1085.27,null,"SEA-DISTANCES.ORG"]
[null,"DST-S-D,,,PRT,FRA","DST-S-D","","","PRT","FRA",1729.71,null,"CERDI"]
[null,"DST-S-D,,,PRT,IND","DST-S-D","","","PRT","IND",9795.41,null,"CERDI"]
[null,"DST-S-D,,,PRT,JPN","DST-S-D","","","PRT","JPN",18354.400000000001,null,"CERDI"]
[null,"DST-S-D,,,PRT,KOR","DST-S-D","","","PRT","KOR",18050.8,null,"CERDI"]
[null,"DST-S-D,,,PRT,NLD","DST-S-D","","","PRT","NLD",1721.53,null,"CERDI"]
[null,"DST-S-D,,,PRT,USA","DST-S-D","","","PRT","USA",7944.32,null,"CERDI"]
[null,"DST-S-D,,,RUS,CHN","DST-S-D","","","RUS","CHN",2252.4699999999998,null,"CERDI"]
[null,"DST-S-D,,,RUS,DEU","DST-S-D","","","RUS","DEU",6601.17,null,"CERDI"]
[null,"DST-S-D,,,RUS,ESP","DST-S-D","","","RUS","ESP",3900.92,null,"CERDI"]
[null,"DST-S-D,,,RUS,FRA","DST-S-D","","","RUS","FRA",3529.3,null,"CERDI"]
[null,"DST-S-D,,,RUS,IND","DST-S-D","","","RUS","IND",8331.77,null,"CERDI"]
[null,"DST-S-D,,,RUS,JPN","DST-S-D","","","RUS","JPN",2136.6799999999998,null,"CERDI"]
[null,"DST-S-D,,,RUS,KOR","DST-S-D","","","RUS","KOR",1579.54,null,"CERDI"]
[null,"DST-S-D,,,RUS,NLD","DST-S-D","","","RUS","NLD",7921,null,"SEA-DISTANCES.ORG"]
[null,"DST-S-D,,,RUS,USA","DST-S-D","","","RUS","USA",8226.75,null,"CERDI"]
[null,"DST-S-D,,,SAU,CHN","DST-S-D","","","SAU","CHN",12014.2,null,"CERDI"]
[null,"DST-S-D,,,SAU,DEU","DST-S-D","","","SAU","DEU",8624.76,null,"SEA-DISTANCES.ORG"]
[null,"DST-S-D,,,SAU,ESP","DST-S-D","","","SAU","ESP",4279.97,null,"SEA-DISTANCES.ORG"]
[null,"DST-S-D,,,SAU,FRA","DST-S-D","","","SAU","FRA",3364.12,null,"CERDI"]
[null,"DST-S-D,,,SAU,IND","DST-S-D","","","SAU","IND",4376.12,null,"CERDI"]
[null,"DST-S-D,,,SAU,JPN","DST-S-D","","","SAU","JPN",12921.6,null,"CERDI"]
[null,"DST-S-D,,,SAU,KOR","DST-S-D","","","SAU","KOR",12600.8,null,"CERDI"]
[null,"DST-S-D,,,SAU,NLD","DST-S-D","","","SAU","NLD",7402.44,null,"SEA-DISTANCES.ORG"]
[null,"DST-S-D,,,SAU,USA","DST-S-D","","","SAU","USA",14233.2,null,"CERDI"]
[null,"DST-S-D,,,SWE,CHN","DST-S-D","","","SWE","CHN",21022.6,null,"CERDI"]
[null,"DST-S-D,,,SWE,DEU","DST-S-D","","","SWE","DEU",602.49,null,"CERDI"]
[null,"DST-S-D,,,SWE,ESP","DST-S-D","","","SWE","ESP",3104.64,null,"CERDI"]
[null,"DST-S-D,,,SWE,FRA","DST-S-D","","","SWE","FRA",4175.91,null,"CERDI"]
[null,"DST-S-D,,,SWE,IND","DST-S-D","","","SWE","IND",13105.7,null,"CERDI"]
[null,"DST-S-D,,,SWE,JPN","DST-S-D","","","SWE","JPN",21929.3,null,"CERDI"]
[null,"DST-S-D,,,SWE,KOR","DST-S-D","","","SWE","KOR",21608.7,null,"CERDI"]
[null,"DST-S-D,,,SWE,NLD","DST-S-D","","","SWE","NLD",821.91899999999998,null,"CERDI"]
[null,"DST-S-D,,,SWE,USA","DST-S-D","","","SWE","USA",8160.7,null,"CERDI"]
[null,"DST-S-D,,,THA,CHN","DST-S-D","","","THA","CHN",4046.29,null,"CERDI"]
[null,"DST-S-D,,,THA,DEU","DST-S-D","","","THA","DEU",18076.400000000001,null,"CERDI"]
[null,"DST-S-D,,,THA,ESP","DST-S-D","","","THA","ESP",14281.2,null,"CERDI"]
[null,"DST-S-D,,,THA,FRA","DST-S-D","","","THA","FRA",12690.1,null,"CERDI"]
[null,"DST-S-D,,,THA,IND","DST-S-D","","","THA","IND",6056.68,null,"CERDI"]
[null,"DST-S-D,,,THA,JPN","DST-S-D","","","THA","JPN",5539.33,null,"SEA-DISTANCES.ORG"]
[null,"DST-S-D,,,THA,KOR","DST-S-D","","","THA","KOR",4632.9399999999996,null,"CERDI"]
[null,"DST-S-D,,,THA,NLD","DST-S-D","","","THA","NLD",17505.099999999999,null,"CERDI"]
[null,"DST-S-D,,,THA,USA","DST-S-D","","","THA","USA",14109.5,null,"CERDI"]
[null,"DST-S-D,,,TUN,CHN","DST-S-D","","","TUN","CHN",15188.8,null,"CERDI"]
[null,"DST-S-D,,,TUN,DEU","DST-S-D","","","TUN","DEU",4114.37,null,"CERDI"]
[null,"DST-S-D,,,TUN,ESP","DST-S-D","","","TUN","ESP",1414.33,null,"CERDI"]
[null,"DST-S-D,,,TUN,FRA","DST-S-D","","","TUN","FRA",754.12400000000002,null,"CERDI"]
[null,"DST-S-D,,,TUN,IND","DST-S-D","","","TUN","IND",7609.79,null,"CERDI"]
[null,"DST-S-D,,,TUN,JPN","DST-S-D","","","TUN","JPN",16218.3,null,"CERDI"]
[null,"DST-S-D,,,TUN,KOR","DST-S-D","","","TUN","KOR",15930.7,null,"CERDI"]
[null,"DST-S-D,,,TUN,NLD","DST-S-D","","","TUN","NLD",3800.89,null,"CERDI"]
[null,"DST-S-D,,,TUN,USA","DST-S-D","","","TUN","USA",10017.6,null,"CERDI"]
[null,"DST-S-D,,,UKR,CHN","DST-S-D","","","UKR","CHN",15605.7,null,"CERDI"]
[null,"DST-S-D,,,UKR,DEU","DST-S-D","","","UKR","DEU",6650.36,null,"CERDI"]
[null,"DST-S-D,,,UKR,ESP","DST-S-D","","","UKR","ESP",3912.3,null,"CERDI"]
[null,"DST-S-D,,,UKR,FRA","DST-S-D","","","UKR","FRA",3171.22,null,"CERDI"]
[null,"DST-S-D,,,UKR,IND","DST-S-D","","","UKR","IND",8000.83,null,"CERDI"]
[null,"DST-S-D,,,UKR,JPN","DST-S-D","","","UKR","JPN",16513.099999999999,null,"CERDI"]
[null,"DST-S-D,,,UKR,KOR","DST-S-D","","","UKR","KOR",16192.3,null,"CERDI"]
[null,"DST-S-D,,,UKR,NLD","DST-S-D","","","UKR","NLD",6336.87,null,"CERDI"]
[null,"DST-S-D,,,UKR,USA","DST-S-D","","","UKR","USA",12553.3,null,"CERDI"]
[null,"DST-S-D,,,URY,CHN","DST-S-D","","","URY","CHN",21524.1,null,"CERDI"]
[null,"DST-S-D,,,URY,DEU","DST-S-D","","","URY","DEU",12547.2,null,"CERDI"]
[null,"DST-S-D,,,URY,ESP","DST-S-D","","","URY","ESP",10706.9,null,"CERDI"]
[null,"DST-S-D,,,URY,FRA","DST-S-D","","","URY","FRA",11777.9,null,"CERDI"]
[null,"DST-S-D,,,URY,IND","DST-S-D","","","URY","IND",15885.2,null,"CERDI"]
[null,"DST-S-D,,,URY,JPN","DST-S-D","","","URY","JPN",20938.400000000001,null,"CERDI"]
[null,"DST-S-D,,,URY,KOR","DST-S-D","","","URY","KOR",21620.9,null,"CERDI"]
[null,"DST-S-D,,,URY,NLD","DST-S-D","","","URY","NLD",12233.8,null,"CERDI"]
[null,"DST-S-D,,,URY,USA","DST-S-D","","","URY","USA",11454,null,"CERDI"]
[null,"DST-S-D,,,USA,CHN","DST-S-D","","","USA","CHN",10402.299999999999,null,"CERDI"]
[null,"DST-S-D,,,USA,DEU","DST-S-D","","","USA","DEU",8323.27,null,"CERDI"]
[null,"DST-S-D,,,USA,ESP","DST-S-D","","","USA","ESP",8604.8700000000008,null,"CERDI"]
[null,"DST-S-D,,,USA,FRA","DST-S-D","","","USA","FRA",9676.0499999999993,null,"CERDI"]
[null,"DST-S-D,,,USA,IND","DST-S-D","","","USA","IND",18311.5,null,"CERDI"]
[null,"DST-S-D,,,USA,JPN","DST-S-D","","","USA","JPN",8904.7099999999991,null,"CERDI"]
[null,"DST-S-D,,,USA,KOR","DST-S-D","","","USA","KOR",9754.8799999999992,null,"CERDI"]
[null,"DST-S-D,,,USA,NLD","DST-S-D","","","USA","NLD",8053.45,null,"CERDI"]
[null,"DST-S-D,,,VNM,CHN","DST-S-D","","","VNM","CHN",2839.27,null,"CERDI"]
[null,"DST-S-D,,,VNM,DEU","DST-S-D","","","VNM","DEU",18266.27,null,"SEA-DISTANCES.ORG"]
[null,"DST-S-D,,,VNM,ESP","DST-S-D","","","VNM","ESP",17590.400000000001,null,"CERDI"]
[null,"DST-S-D,,,VNM,FRA","DST-S-D","","","VNM","FRA",14534.49,null,"SEA-DISTANCES.ORG"]
[null,"DST-S-D,,,VNM,IND","DST-S-D","","","VNM","IND",3746.62,null,"CERDI"]
[null,"DST-S-D,,,VNM,JPN","DST-S-D","","","VNM","JPN",17066.7,null,"CERDI"]
[null,"DST-S-D,,,VNM,KOR","DST-S-D","","","VNM","KOR",3425.83,null,"CERDI"]
[null,"DST-S-D,,,VNM,NLD","DST-S-D","","","VNM","NLD",13891,null,"CERDI"]
[null,"DST-S-D,,,VNM,USA","DST-S-D","","","VNM","USA",12906.4,null,"CERDI"]
[null,"DST-S-D,,,ZAF,CHN","DST-S-D","","","ZAF","CHN",12852.2,null,"CERDI"]
[null,"DST-S-D,,,ZAF,DEU","DST-S-D","","","ZAF","DEU",11789.832,null,"SEA-DISTANCES.ORG"]
[null,"DST-S-D,,,ZAF,ESP","DST-S-D","","","ZAF","ESP",11662.6,null,"CERDI"]
[null,"DST-S-D,,,ZAF,FRA","DST-S-D","","","ZAF","FRA",10912.4,null,"CERDI"]
[null,"DST-S-D,,,ZAF,IND","DST-S-D","","","ZAF","IND",7432.11,null,"CERDI"]
[null,"DST-S-D,,,ZAF,JPN","DST-S-D","","","ZAF","JPN",13881.4,null,"CERDI"]
[null,"DST-S-D,,,ZAF,KOR","DST-S-D","","","ZAF","KOR",13593.9,null,"CERDI"]
[null,"DST-S-D,,,ZAF,NLD","DST-S-D","","","ZAF","NLD",13501.1,null,"CERDI"]
[null,"DST-S-D,,,ZAF,USA","DST-S-D","","","ZAF","USA",15010.8,null,"CERDI"]
[null,"DST-S-D,,,ZAF-EC,CHN","DST-S-D","","","ZAF-EC","CHN",12852.2,null,"CERDI"]
[null,"DST-S-D,,,ZAF-EC,DEU","DST-S-D","","","ZAF-EC","DEU",11789.832,null,"SEA-DISTANCES.ORG"]
[null,"DST-S-D,,,ZAF-EC,ESP","DST-S-D","","","ZAF-EC","ESP",11662.6,null,"CERDI"]
[null,"DST-S-D,,,ZAF-EC,FRA","DST-S-D","","","ZAF-EC","FRA",10912.4,null,"CERDI"]
[null,"DST-S-D,,,ZAF-EC,IND","DST-S-D","","","ZAF-EC","IND",7432.11,null,"CERDI"]
[null,"DST-S-D,,,ZAF-EC,JPN","DST-S-D","","","ZAF-EC","JPN",13881.4,null,"CERDI"]
[null,"DST-S-D,,,ZAF-EC,KOR","DST-S-D","","","ZAF-EC","KOR",13593.9,null,"CERDI"]
[null,"DST-S-D,,,ZAF-EC,NLD","DST-S-D","","","ZAF-EC","NLD",13501.1,null,"CERDI"]
[null,"DST-S-D,,,ZAF-EC,USA","DST-S-D","","","ZAF-EC","USA",15010.8,null,"CERDI"]
[null,"DST-S-D,,,ZAF-FRS,CHN","DST-S-D","","","ZAF-FRS","CHN",12852.2,null,"CERDI"]
[null,"DST-S-D,,,ZAF-FRS,DEU","DST-S-D","","","ZAF-FRS","DEU",11789.832,null,"SEA-DISTANCES.ORG"]
[null,"DST-S-D,,,ZAF-FRS,ESP","DST-S-D","","","ZAF-FRS","ESP",11662.6,null,"CERDI"]
[null,"DST-S-D,,,ZAF-FRS,FRA","DST-S-D","","","ZAF-FRS","FRA",10912.4,null,"CERDI"]
[null,"DST-S-D,,,ZAF-FRS,IND","DST-S-D","","","ZAF-FRS","IND",7432.11,null,"CERDI"]
[null,"DST-S-D,,,ZAF-FRS,JPN","DST-S-D","","","ZAF-FRS","JPN",13881.4,null,"CERDI"]
[null,"DST-S-D,,,ZAF-FRS,KOR","DST-S-D","","","ZAF-FRS","KOR",13593.9,null,"CERDI"]
[null,"DST-S-D,,,ZAF-FRS,NLD","DST-S-D","","","ZAF-FRS","NLD",13501.1,null,"CERDI"]
[null,"DST-S-D,,,ZAF-FRS,USA","DST-S-D","","","ZAF-FRS","USA",15010.8,null,"CERDI"]
[null,"DST-S-D,,,ZAF-GAU,CHN","DST-S-D","","","ZAF-GAU","CHN",12852.2,null,"CERDI"]
[null,"DST-S-D,,,ZAF-GAU,DEU","DST-S-D","","","ZAF-GAU","DEU",11789.832,null,"SEA-DISTANCES.ORG"]
[null,"DST-S-D,,,ZAF-GAU,ESP","DST-S-D","","","ZAF-GAU","ESP",11662.6,null,"CERDI"]
[null,"DST-S-D,,,ZAF-GAU,FRA","DST-S-D","","","ZAF-GAU","FRA",10912.4,null,"CERDI"]
[null,"DST-S-D,,,ZAF-GAU,IND","DST-S-D","","","ZAF-GAU","IND",7432.11,null,"CERDI"]
[null,"DST-S-D,,,ZAF-GAU,JPN","DST-S-D","","","ZAF-GAU","JPN",13881.4,null,"CERDI"]
[null,"DST-S-D,,,ZAF-GAU,KOR","DST-S-D","","","ZAF-GAU","KOR",13593.9,null,"CERDI"]
[null,"DST-S-D,,,ZAF-GAU,NLD","DST-S-D","","","ZAF-GAU","NLD",13501.1,null,"CERDI"]
[null,"DST-S-D,,,ZAF-GAU,USA","DST-S-D","","","ZAF-GAU","USA",15010.8,null,"CERDI"]
[null,"DST-S-D,,,ZAF-KWA,CHN","DST-S-D","","","ZAF-KWA","CHN",12852.2,null,"CERDI"]
[null,"DST-S-D,,,ZAF-KWA,DEU","DST-S-D","","","ZAF-KWA","DEU",11789.832,null,"SEA-DISTANCES.ORG"]
[null,"DST-S-D,,,ZAF-KWA,ESP","DST-S-D","","","ZAF-KWA","ESP",11662.6,null,"CERDI"]
[null,"DST-S-D,,,ZAF-KWA,FRA","DST-S-D","","","ZAF-KWA","FRA",10912.4,null,"CERDI"]
[null,"DST-S-D,,,ZAF-KWA,IND","DST-S-D","","","ZAF-KWA","IND",7432.11,null,"CERDI"]
[null,"DST-S-D,,,ZAF-KWA,JPN","DST-S-D","","","ZAF-KWA","JPN",13881.4,null,"CERDI"]
[null,"DST-S-D,,,ZAF-KWA,KOR","DST-S-D","","","ZAF-KWA","KOR",13593.9,null,"CERDI"]
[null,"DST-S-D,,,ZAF-KWA,NLD","DST-S-D","","","ZAF-KWA","NLD",13501.1,null,"CERDI"]
[null,"DST-S-D,,,ZAF-KWA,USA","DST-S-D","","","ZAF-KWA","USA",15010.8,null,"CERDI"]
[null,"DST-S-D,,,ZAF-LIM,CHN","DST-S-D","","","ZAF-LIM","CHN",12852.2,null,"CERDI"]
[null,"DST-S-D,,,ZAF-LIM,DEU","DST-S-D","","","ZAF-LIM","DEU",11789.832,null,"SEA-DISTANCES.ORG"]
[null,"DST-S-D,,,ZAF-LIM,ESP","DST-S-D","","","ZAF-LIM","ESP",11662.6,null,"CERDI"]
[null,"DST-S-D,,,ZAF-LIM,FRA","DST-S-D","","","ZAF-LIM","FRA",10912.4,null,"CERDI"]
[null,"DST-S-D,,,ZAF-LIM,IND","DST-S-D","","","ZAF-LIM","IND",7432.11,null,"CERDI"]
[null,"DST-S-D,,,ZAF-LIM,JPN","DST-S-D","","","ZAF-LIM","JPN",13881.4,null,"CERDI"]
[null,"DST-S-D,,,ZAF-LIM,KOR","DST-S-D","","","ZAF-LIM","KOR",13593.9,null,"CERDI"]
[null,"DST-S-D,,,ZAF-LIM,NLD","DST-S-D","","","ZAF-LIM","NLD",13501.1,null,"CERDI"]
[null,"DST-S-D,,,ZAF-LIM,USA","DST-S-D","","","ZAF-LIM","USA",15010.8,null,"CERDI"]
[null,"DST-S-D,,,ZAF-MPU,CHN","DST-S-D","","","ZAF-MPU","CHN",12852.2,null,"CERDI"]
[null,"DST-S-D,,,ZAF-MPU,DEU","DST-S-D","","","ZAF-MPU","DEU",11789.832,null,"SEA-DISTANCES.ORG"]
[null,"DST-S-D,,,ZAF-MPU,ESP","DST-S-D","","","ZAF-MPU","ESP",11662.6,null,"CERDI"]
[null,"DST-S-D,,,ZAF-MPU,FRA","DST-S-D","","","ZAF-MPU","FRA",10912.4,null,"CERDI"]
[null,"DST-S-D,,,ZAF-MPU,IND","DST-S-D","","","ZAF-MPU","IND",7432.11,null,"CERDI"]
[null,"DST-S-D,,,ZAF-MPU,JPN","DST-S-D","","","ZAF-MPU","JPN",13881.4,null,"CERDI"]
[null,"DST-S-D,,,ZAF-MPU,KOR","DST-S-D","","","ZAF-MPU","KOR",13593.9,null,"CERDI"]
[null,"DST-S-D,,,ZAF-MPU,NLD","DST-S-D","","","ZAF-MPU","NLD",13501.1,null,"CERDI"]
[null,"DST-S-D,,,ZAF-MPU,USA","DST-S-D","","","ZAF-MPU","USA",15010.8,null,"CERDI"]
[null,"DST-S-D,,,ZAF-NC,CHN","DST-S-D","","","ZAF-NC","CHN",12852.2,null,"CERDI"]
[null,"DST-S-D,,,ZAF-NC,DEU","DST-S-D","","","ZAF-NC","DEU",11789.832,null,"SEA-DISTANCES.ORG"]
[null,"DST-S-D,,,ZAF-NC,ESP","DST-S-D","","","ZAF-NC","ESP",11662.6,null,"CERDI"]
[null,"DST-S-D,,,ZAF-NC,FRA","DST-S-D","","","ZAF-NC","FRA",10912.4,null,"CERDI"]
[null,"DST-S-D,,,ZAF-NC,IND","DST-S-D","","","ZAF-NC","IND",7432.11,null,"CERDI"]
[null,"DST-S-D,,,ZAF-NC,JPN","DST-S-D","","","ZAF-NC","JPN",13881.4,null,"CERDI"]
[null,"DST-S-D,,,ZAF-NC,KOR","DST-S-D","","","ZAF-NC","KOR",13593.9,null,"CERDI"]
[null,"DST-S-D,,,ZAF-NC,NLD","DST-S-D","","","ZAF-NC","NLD",13501.1,null,"CERDI"]
[null,"DST-S-D,,,ZAF-NC,USA","DST-S-D","","","ZAF-NC","USA",15010.8,null,"CERDI"]
[null,"DST-S-D,,,ZAF-NW,CHN","DST-S-D","","","ZAF-NW","CHN",12852.2,null,"CERDI"]
[null,"DST-S-D,,,ZAF-NW,DEU","DST-S-D","","","ZAF-NW","DEU",11789.832,null,"SEA-DISTANCES.ORG"]
[null,"DST-S-D,,,ZAF-NW,ESP","DST-S-D","","","ZAF-NW","ESP",11662.6,null,"CERDI"]
[null,"DST-S-D,,,ZAF-NW,FRA","DST-S-D","","","ZAF-NW","FRA",10912.4,null,"CERDI"]
[null,"DST-S-D,,,ZAF-NW,IND","DST-S-D","","","ZAF-NW","IND",7432.11,null,"CERDI"]
[null,"DST-S-D,,,ZAF-NW,JPN","DST-S-D","","","ZAF-NW","JPN",13881.4,null,"CERDI"]
[null,"DST-S-D,,,ZAF-NW,KOR","DST-S-D","","","ZAF-NW","KOR",13593.9,null,"CERDI"]
[null,"DST-S-D,,,ZAF-NW,NLD","DST-S-D","","","ZAF-NW","NLD",13501.1,null,"CERDI"]
[null,"DST-S-D,,,ZAF-NW,USA","DST-S-D","","","ZAF-NW","USA",15010.8,null,"CERDI"]
[null,"DST-S-D,,,ZAF-WC,CHN","DST-S-D","","","ZAF-WC","CHN",12852.2,null,"CERDI"]
[null,"DST-S-D,,,ZAF-WC,DEU","DST-S-D","","","ZAF-WC","DEU",11789.832,null,"SEA-DISTANCES.ORG"]
[null,"DST-S-D,,,ZAF-WC,ESP","DST-S-D","","","ZAF-WC","ESP",11662.6,null,"CERDI"]
[null,"DST-S-D,,,ZAF-WC,FRA","DST-S-D","","","ZAF-WC","FRA",10912.4,null,"CERDI"]
[null,"DST-S-D,,,ZAF-WC,IND","DST-S-D","","","ZAF-WC","IND",7432.11,null,"CERDI"]
[null,"DST-S-D,,,ZAF-WC,JPN","DST-S-D","","","ZAF-WC","JPN",13881.4,null,"CERDI"]
[null,"DST-S-D,,,ZAF-WC,KOR","DST-S-D","","","ZAF-WC","KOR",13593.9,null,"CERDI"]
[null,"DST-S-D,,,ZAF-WC,NLD","DST-S-D","","","ZAF-WC","NLD",13501.1,null,"CERDI"]
[null,"DST-S-D,,,ZAF-WC,USA","DST-S-D","","","ZAF-WC","USA",15010.8,null,"CERDI"]
[null,"DST-S-DP,,,ARE,CHN","DST-S-DP","","","ARE","CHN",4500,"km","Research Susanne Krieger"]
[null,"DST-S-DP,,,ARE,DEU","DST-S-DP","","","ARE","DEU",5500,"km","Research Susanne Krieger"]
[null,"DST-S-DP,,,ARE,ESP","DST-S-DP","","","ARE","ESP",6000,"km","Research Susanne Krieger"]
[null,"DST-S-DP,,,ARE,FRA","DST-S-DP","","","ARE","FRA",6000,"km","Research Susanne Krieger"]
[null,"DST-S-DP,,,ARE,IND","DST-S-DP","","","ARE","IND",2000,"km","Research Susanne Krieger"]
[null,"DST-S-DP,,,ARE,NLD","DST-S-DP","","","ARE","NLD",6000,"km","Research Susanne Krieger"]
[null,"DST-S-DP,,,CHN,IND","DST-S-DP","","","CHN","IND",3500,"km","Research Susanne Krieger"]
[null,"DST-S-DP,,,CHN,JPN","DST-S-DP","","","CHN","JPN",3500,"km","Research Susanne Krieger"]
[null,"DST-S-DP,,,CHN,KOR","DST-S-DP","","","CHN","KOR",2000,"km","Research Susanne Krieger"]
[null,"DST-S-DP,,,COL,USA","DST-S-DP","","","COL","USA",4500,"km","Research Susanne Krieger"]
[null,"DST-S-DP,,,CRI,USA","DST-S-DP","","","CRI","USA",3500,"km","Research Susanne Krieger"]
[null,"DST-S-DP,,,DNK,DEU","DST-S-DP","","","DNK","DEU",500,"km","Research Susanne Krieger"]
[null,"DST-S-DP,,,DNK,ESP","DST-S-DP","","","DNK","ESP",2000,"km","Research Susanne Krieger"]
[null,"DST-S-DP,,,DNK,FRA","DST-S-DP","","","DNK","FRA",1000,"km","Research Susanne Krieger"]
[null,"DST-S-DP,,,DNK,NLD","DST-S-DP","","","DNK","NLD",500,"km","Research Susanne Krieger"]
[null,"DST-S-DP,,,DZA,DEU","DST-S-DP","","","DZA","DEU",3000,"km","Research Susanne Krieger"]
[null,"DST-S-DP,,,DZA,ESP","DST-S-DP","","","DZA","ESP",1000,"km","Research Susanne Krieger"]
[null,"DST-S-DP,,,DZA,FRA","DST-S-DP","","","DZA","FRA",2000,"km","Research Susanne Krieger"]
[null,"DST-S-DP,,,DZA,NLD","DST-S-DP","","","DZA","NLD",3000,"km","Research Susanne Krieger"]
[null,"DST-S-DP,,,EGY,DEU","DST-S-DP","","","EGY","DEU",5000,"km","Research Susanne Krieger"]
[null,"DST-S-DP,,,EGY,ESP","DST-S-DP","","","EGY","ESP",4500,"km","Research Susanne Krieger"]
[null,"DST-S-DP,,,EGY,FRA","DST-S-DP","","","EGY","FRA",4000,"km","Research Susanne Krieger"]
[null,"DST-S-DP,,,EGY,IND","DST-S-DP","","","EGY","IND",5000,"km","Research Susanne Krieger"]
[null,"DST-S-DP,,,EGY,NLD","DST-S-DP","","","EGY","NLD",5000,"km","Research Susanne Krieger"]
[null,"DST-S-DP,,,ESP,DEU","DST-S-DP","","","ESP","DEU",1500,"km","Research Susanne Krieger"]
[null,"DST-S-DP,,,ESP,FRA","DST-S-DP","","","ESP","FRA",100,"km","Research Susanne Krieger"]
[null,"DST-S-DP,,,ESP,NLD","DST-S-DP","","","ESP","NLD",1500,"km","Research Susanne Krieger"]
[null,"DST-S-DP,,,IDN,CHN","DST-S-DP","","","IDN","CHN",4000,"km","Research Susanne Krieger"]
[null,"DST-S-DP,,,IDN,IND","DST-S-DP","","","IDN","IND",5000,"km","Research Susanne Krieger"]
[null,"DST-S-DP,,,IDN,JPN","DST-S-DP","","","IDN","JPN",5500,"km","Research Susanne Krieger"]
[null,"DST-S-DP,,,IDN,KOR","DST-S-DP","","","IDN","KOR",5500,"km","Research Susanne Krieger"]
[null,"DST-S-DP,,,IND,CHN","DST-S-DP","","","IND","CHN",3000,"km","Research Susanne Krieger"]
[null,"DST-S-DP,,,JOR,DEU","DST-S-DP","","","JOR","DEU",3500,"km","Research Susanne Krieger"]
[null,"DST-S-DP,,,JOR,ESP","DST-S-DP","","","JOR","ESP",4000,"km","Research Susanne Krieger"]
[null,"DST-S-DP,,,JOR,FRA","DST-S-DP","","","JOR","FRA",4000,"km","Research Susanne Krieger"]
[null,"DST-S-DP,,,JOR,IND","DST-S-DP","","","JOR","IND",4500,"km","Research Susanne Krieger"]
[null,"DST-S-DP,,,JOR,NLD","DST-S-DP","","","JOR","NLD",4000,"km","Research Susanne Krieger"]
[null,"DST-S-DP,,,KAZ,CHN","DST-S-DP","","","KAZ","CHN",1500,"km","Research Susanne Krieger"]
[null,"DST-S-DP,,,KAZ,DEU","DST-S-DP","","","KAZ","DEU",3500,"km","Research Susanne Krieger"]
[null,"DST-S-DP,,,KAZ,ESP","DST-S-DP","","","KAZ","ESP",5000,"km","Research Susanne Krieger"]
[null,"DST-S-DP,,,KAZ,FRA","DST-S-DP","","","KAZ","FRA",4000,"km","Research Susanne Krieger"]
[null,"DST-S-DP,,,KAZ,IND","DST-S-DP","","","KAZ","IND",3000,"km","Research Susanne Krieger"]
[null,"DST-S-DP,,,KAZ,NLD","DST-S-DP","","","KAZ","NLD",4000,"km","Research Susanne Krieger"]
[null,"DST-S-DP,,,KEN,IND","DST-S-DP","","","KEN","IND",5000,"km","Research Susanne Krieger"]
[null,"DST-S-DP,,,MAR,DEU","DST-S-DP","","","MAR","DEU",2500,"km","Research Susanne Krieger"]
[null,"DST-S-DP,,,MAR,ESP","DST-S-DP","","","MAR","ESP",250,"km","Research Susanne Krieger"]
[null,"DST-S-DP,,,MAR,FRA","DST-S-DP","","","MAR","FRA",2000,"km","Research Susanne Krieger"]
[null,"DST-S-DP,,,MAR,NLD","DST-S-DP","","","MAR","NLD",2500,"km","Research Susanne Krieger"]
[null,"DST-S-DP,,,MAR-BEN,DEU","DST-S-DP","","","MAR-BEN","DEU",2500,"km","Research Susanne Krieger"]
[null,"DST-S-DP,,,MAR-BEN,ESP","DST-S-DP","","","MAR-BEN","ESP",250,"km","Research Susanne Krieger"]
[null,"DST-S-DP,,,MAR-BEN,FRA","DST-S-DP","","","MAR-BEN","FRA",2000,"km","Research Susanne Krieger"]
[null,"DST-S-DP,,,MAR-BEN,NLD","DST-S-DP","","","MAR-BEN","NLD",2500,"km","Research Susanne Krieger"]
[null,"DST-S-DP,,,MAR-CAS,DEU","DST-S-DP","","","MAR-CAS","DEU",2500,"km","Research Susanne Krieger"]
[null,"DST-S-DP,,,MAR-CAS,ESP","DST-S-DP","","","MAR-CAS","ESP",250,"km","Research Susanne Krieger"]
[null,"DST-S-DP,,,MAR-CAS,FRA","DST-S-DP","","","MAR-CAS","FRA",2000,"km","Research Susanne Krieger"]
[null,"DST-S-DP,,,MAR-CAS,NLD","DST-S-DP","","","MAR-CAS","NLD",2500,"km","Research Susanne Krieger"]
[null,"DST-S-DP,,,MAR-DAK,DEU","DST-S-DP","","","MAR-DAK","DEU",2500,"km","Research Susanne Krieger"]
[null,"DST-S-DP,,,MAR-DAK,ESP","DST-S-DP","","","MAR-DAK","ESP",250,"km","Research Susanne Krieger"]
[null,"DST-S-DP,,,MAR-DAK,FRA","DST-S-DP","","","MAR-DAK","FRA",2000,"km","Research Susanne Krieger"]
[null,"DST-S-DP,,,MAR-DAK,NLD","DST-S-DP","","","MAR-DAK","NLD",2500,"km","Research Susanne Krieger"]
[null,"DST-S-DP,,,MAR-DRA,DEU","DST-S-DP","","","MAR-DRA","DEU",2500,"km","Research Susanne Krieger"]
[null,"DST-S-DP,,,MAR-DRA,ESP","DST-S-DP","","","MAR-DRA","ESP",250,"km","Research Susanne Krieger"]
[null,"DST-S-DP,,,MAR-DRA,FRA","DST-S-DP","","","MAR-DRA","FRA",2000,"km","Research Susanne Krieger"]
[null,"DST-S-DP,,,MAR-DRA,NLD","DST-S-DP","","","MAR-DRA","NLD",2500,"km","Research Susanne Krieger"]
[null,"DST-S-DP,,,MAR-FES,DEU","DST-S-DP","","","MAR-FES","DEU",2500,"km","Research Susanne Krieger"]
[null,"DST-S-DP,,,MAR-FES,ESP","DST-S-DP","","","MAR-FES","ESP",250,"km","Research Susanne Krieger"]
[null,"DST-S-DP,,,MAR-FES,FRA","DST-S-DP","","","MAR-FES","FRA",2000,"km","Research Susanne Krieger"]
[null,"DST-S-DP,,,MAR-FES,NLD","DST-S-DP","","","MAR-FES","NLD",2500,"km","Research Susanne Krieger"]
[null,"DST-S-DP,,,MAR-GUE,DEU","DST-S-DP","","","MAR-GUE","DEU",2500,"km","Research Susanne Krieger"]
[null,"DST-S-DP,,,MAR-GUE,ESP","DST-S-DP","","","MAR-GUE","ESP",250,"km","Research Susanne Krieger"]
[null,"DST-S-DP,,,MAR-GUE,FRA","DST-S-DP","","","MAR-GUE","FRA",2000,"km","Research Susanne Krieger"]
[null,"DST-S-DP,,,MAR-GUE,NLD","DST-S-DP","","","MAR-GUE","NLD",2500,"km","Research Susanne Krieger"]
[null,"DST-S-DP,,,MAR-LAA,DEU","DST-S-DP","","","MAR-LAA","DEU",2500,"km","Research Susanne Krieger"]
[null,"DST-S-DP,,,MAR-LAA,ESP","DST-S-DP","","","MAR-LAA","ESP",250,"km","Research Susanne Krieger"]
[null,"DST-S-DP,,,MAR-LAA,FRA","DST-S-DP","","","MAR-LAA","FRA",2000,"km","Research Susanne Krieger"]
[null,"DST-S-DP,,,MAR-LAA,NLD","DST-S-DP","","","MAR-LAA","NLD",2500,"km","Research Susanne Krieger"]
[null,"DST-S-DP,,,MAR-LOR,DEU","DST-S-DP","","","MAR-LOR","DEU",2500,"km","Research Susanne Krieger"]
[null,"DST-S-DP,,,MAR-LOR,ESP","DST-S-DP","","","MAR-LOR","ESP",250,"km","Research Susanne Krieger"]
[null,"DST-S-DP,,,MAR-LOR,FRA","DST-S-DP","","","MAR-LOR","FRA",2000,"km","Research Susanne Krieger"]
[null,"DST-S-DP,,,MAR-LOR,NLD","DST-S-DP","","","MAR-LOR","NLD",2500,"km","Research Susanne Krieger"]
[null,"DST-S-DP,,,MAR-MAR,DEU","DST-S-DP","","","MAR-MAR","DEU",2500,"km","Research Susanne Krieger"]
[null,"DST-S-DP,,,MAR-MAR,ESP","DST-S-DP","","","MAR-MAR","ESP",250,"km","Research Susanne Krieger"]
[null,"DST-S-DP,,,MAR-MAR,FRA","DST-S-DP","","","MAR-MAR","FRA",2000,"km","Research Susanne Krieger"]
[null,"DST-S-DP,,,MAR-MAR,NLD","DST-S-DP","","","MAR-MAR","NLD",2500,"km","Research Susanne Krieger"]
[null,"DST-S-DP,,,MAR-RAB,DEU","DST-S-DP","","","MAR-RAB","DEU",2500,"km","Research Susanne Krieger"]
[null,"DST-S-DP,,,MAR-RAB,ESP","DST-S-DP","","","MAR-RAB","ESP",250,"km","Research Susanne Krieger"]
[null,"DST-S-DP,,,MAR-RAB,FRA","DST-S-DP","","","MAR-RAB","FRA",2000,"km","Research Susanne Krieger"]
[null,"DST-S-DP,,,MAR-RAB,NLD","DST-S-DP","","","MAR-RAB","NLD",2500,"km","Research Susanne Krieger"]
[null,"DST-S-DP,,,MAR-SOU,DEU","DST-S-DP","","","MAR-SOU","DEU",2500,"km","Research Susanne Krieger"]
[null,"DST-S-DP,,,MAR-SOU,ESP","DST-S-DP","","","MAR-SOU","ESP",250,"km","Research Susanne Krieger"]
[null,"DST-S-DP,,,MAR-SOU,FRA","DST-S-DP","","","MAR-SOU","FRA",2000,"km","Research Susanne Krieger"]
[null,"DST-S-DP,,,MAR-SOU,NLD","DST-S-DP","","","MAR-SOU","NLD",2500,"km","Research Susanne Krieger"]
[null,"DST-S-DP,,,MAR-TAN,DEU","DST-S-DP","","","MAR-TAN","DEU",2500,"km","Research Susanne Krieger"]
[null,"DST-S-DP,,,MAR-TAN,ESP","DST-S-DP","","","MAR-TAN","ESP",250,"km","Research Susanne Krieger"]
[null,"DST-S-DP,,,MAR-TAN,FRA","DST-S-DP","","","MAR-TAN","FRA",2000,"km","Research Susanne Krieger"]
[null,"DST-S-DP,,,MAR-TAN,NLD","DST-S-DP","","","MAR-TAN","NLD",2500,"km","Research Susanne Krieger"]
[null,"DST-S-DP,,,MEX,USA","DST-S-DP","","","MEX","USA",500,"km","Research Susanne Krieger"]
[null,"DST-S-DP,,,MRT,DEU","DST-S-DP","","","MRT","DEU",5000,"km","Research Susanne Krieger"]
[null,"DST-S-DP,,,MRT,ESP","DST-S-DP","","","MRT","ESP",3000,"km","Research Susanne Krieger"]
[null,"DST-S-DP,,,MRT,FRA","DST-S-DP","","","MRT","FRA",4000,"km","Research Susanne Krieger"]
[null,"DST-S-DP,,,MRT,NLD","DST-S-DP","","","MRT","NLD",5000,"km","Research Susanne Krieger"]
[null,"DST-S-DP,,,NOR,DEU","DST-S-DP","","","NOR","DEU",500,"km","Research Susanne Krieger"]
[null,"DST-S-DP,,,NOR,ESP","DST-S-DP","","","NOR","ESP",2000,"km","Research Susanne Krieger"]
[null,"DST-S-DP,,,NOR,FRA","DST-S-DP","","","NOR","FRA",1000,"km","Research Susanne Krieger"]
[null,"DST-S-DP,,,NOR,NLD","DST-S-DP","","","NOR","NLD",1000,"km","Research Susanne Krieger"]
[null,"DST-S-DP,,,PER,USA","DST-S-DP","","","PER","USA",5500,"km","Research Susanne Krieger"]
[null,"DST-S-DP,,,PRT,DEU","DST-S-DP","","","PRT","DEU",2000,"km","Research Susanne Krieger"]
[null,"DST-S-DP,,,PRT,ESP","DST-S-DP","","","PRT","ESP",250,"km","Research Susanne Krieger"]
[null,"DST-S-DP,,,PRT,FRA","DST-S-DP","","","PRT","FRA",1000,"km","Research Susanne Krieger"]
[null,"DST-S-DP,,,PRT,NLD","DST-S-DP","","","PRT","NLD",2000,"km","Research Susanne Krieger"]
[null,"DST-S-DP,,,RUS,CHN","DST-S-DP","","","RUS","CHN",4000,"km","Research Susanne Krieger"]
[null,"DST-S-DP,,,RUS,DEU","DST-S-DP","","","RUS","DEU",1000,"km","Research Susanne Krieger"]
[null,"DST-S-DP,,,RUS,ESP","DST-S-DP","","","RUS","ESP",5000,"km","Research Susanne Krieger"]
[null,"DST-S-DP,,,RUS,FRA","DST-S-DP","","","RUS","FRA",4000,"km","Research Susanne Krieger"]
[null,"DST-S-DP,,,RUS,IND","DST-S-DP","","","RUS","IND",4000,"km","Research Susanne Krieger"]
[null,"DST-S-DP,,,RUS,JPN","DST-S-DP","","","RUS","JPN",4000,"km","Research Susanne Krieger"]
[null,"DST-S-DP,,,RUS,KOR","DST-S-DP","","","RUS","KOR",3000,"km","Research Susanne Krieger"]
[null,"DST-S-DP,,,RUS,NLD","DST-S-DP","","","RUS","NLD",4000,"km","Research Susanne Krieger"]
[null,"DST-S-DP,,,SAU,DEU","DST-S-DP","","","SAU","DEU",4500,"km","Research Susanne Krieger"]
[null,"DST-S-DP,,,SAU,ESP","DST-S-DP","","","SAU","ESP",5000,"km","Research Susanne Krieger"]
[null,"DST-S-DP,,,SAU,FRA","DST-S-DP","","","SAU","FRA",5000,"km","Research Susanne Krieger"]
[null,"DST-S-DP,,,SAU,IND","DST-S-DP","","","SAU","IND",3500,"km","Research Susanne Krieger"]
[null,"DST-S-DP,,,SAU,NLD","DST-S-DP","","","SAU","NLD",5000,"km","Research Susanne Krieger"]
[null,"DST-S-DP,,,SWE,DEU","DST-S-DP","","","SWE","DEU",1000,"km","Research Susanne Krieger"]
[null,"DST-S-DP,,,SWE,ESP","DST-S-DP","","","SWE","ESP",3000,"km","Research Susanne Krieger"]
[null,"DST-S-DP,,,SWE,FRA","DST-S-DP","","","SWE","FRA",2000,"km","Research Susanne Krieger"]
[null,"DST-S-DP,,,SWE,NLD","DST-S-DP","","","SWE","NLD",2000,"km","Research Susanne Krieger"]
[null,"DST-S-DP,,,THA,CHN","DST-S-DP","","","THA","CHN",1500,"km","Research Susanne Krieger"]
[null,"DST-S-DP,,,THA,IND","DST-S-DP","","","THA","IND",2500,"km","Research Susanne Krieger"]
[null,"DST-S-DP,,,THA,JPN","DST-S-DP","","","THA","JPN",5000,"km","Research Susanne Krieger"]
[null,"DST-S-DP,,,THA,KOR","DST-S-DP","","","THA","KOR",5000,"km","Research Susanne Krieger"]
[null,"DST-S-DP,,,TUN,DEU","DST-S-DP","","","TUN","DEU",2000,"km","Research Susanne Krieger"]
[null,"DST-S-DP,,,TUN,ESP","DST-S-DP","","","TUN","ESP",1500,"km","Research Susanne Krieger"]
[null,"DST-S-DP,,,TUN,FRA","DST-S-DP","","","TUN","FRA",1000,"km","Research Susanne Krieger"]
[null,"DST-S-DP,,,TUN,NLD","DST-S-DP","","","TUN","NLD",2500,"km","Research Susanne Krieger"]
[null,"DST-S-DP,,,UKR,DEU","DST-S-DP","","","UKR","DEU",1500,"km","Research Susanne Krieger"]
[null,"DST-S-DP,,,UKR,ESP","DST-S-DP","","","UKR","ESP",3000,"km","Research Susanne Krieger"]
[null,"DST-S-DP,,,UKR,FRA","DST-S-DP","","","UKR","FRA",2000,"km","Research Susanne Krieger"]
[null,"DST-S-DP,,,UKR,NLD","DST-S-DP","","","UKR","NLD",2000,"km","Research Susanne Krieger"]
[null,"DST-S-DP,,,VNM,CHN","DST-S-DP","","","VNM","CHN",1000,"km","Research Susanne Krieger"]
[null,"DST-S-DP,,,VNM,IND","DST-S-DP","","","VNM","IND",3500,"km","Research Susanne Krieger"]
[null,"DST-S-DP,,,VNM,JPN","DST-S-DP","","","VNM","JPN",4000,"km","Research Susanne Krieger"]
[null,"DST-S-DP,,,VNM,KOR","DST-S-DP","","","VNM","KOR",5000,"km","Research Susanne Krieger"]
[null,"EFF,AEL-EL,,,","EFF","AEL-EL","","","",0.71499999999999997,"various (output per main input)"]
[null,"EFF,ATR,,,","EFF","ATR","","","",0.79991999999999996,"various (output per main input)","Oni et al. 2022"]
[null,"EFF,CH3OHSYN,,,","EFF","CH3OHSYN","","","",0.80300000000000005,"various (output per main input)","Frontier Economics 2021"]
[null,"EFF,CH4-RGAS,,,","EFF","CH4-RGAS","","","",0.98,"various (output per main input)","Pospíšil et al. 2019"]
[null,"EFF,CH4SYN,,,","EFF","CH4SYN","","","",0.83,"various (output per main input)","Öko-Institut 2020"]
[null,"EFF,DESAL,,,","EFF","DESAL","","","",1,"various (output per main input)"]
[null,"EFF,DRI,,,","EFF","DRI","","","",0.35759897828863341,"kg DRI (s)/kwhh2","Agora Industry Transformation 2021"]
[null,"EFF,EFUELSYN,,,","EFF","EFUELSYN","","","",0.73,"various (output per main input)","Frontier Economics 2021"]
[null,"EFF,H2-LIQ,,,","EFF","H2-LIQ","","","",1,"various (output per main input)"]
[null,"EFF,H2-RGAS,,,","EFF","H2-RGAS","","","",0.99789789789789785,"various (output per main input)","DNV GL 2020"]
[null,"EFF,LOHC-REC,,,","EFF","LOHC-REC","","","",0.9,"various (output per main input)","DNV GL 2020"]
[null,"EFF,NH3-REC,,,","EFF","NH3-REC","","","",0.74152542372881358,"various (output per main input)","NGN; Equinor 2018"]
[null,"EFF,NH3SYN,,,","EFF","NH3SYN","","","",0.81899999999999995,"various (output per main input)","Frotier Economics 2021"]
[null,"EFF,PEM-EL,,,","EFF","PEM-EL","","","",0.70499999999999996,"various (output per main input)"]
[null,"EFF,REGASATR,,,","EFF","REGASATR","","","",0.77991999999999995,"various (output per main input)","combined values"]
[null,"EFF,SOEC-EL,,,","EFF","SOEC-EL","","","",0.77333333333333321,"various (output per main input)"]
[null,"FLH,AEL-EL,,,","FLH","AEL-EL","","","",3861.9141914191418,"h","average of PTX Atlas"]
[null,"FLH,DRI,,,","FLH","DRI","","","",7884,"0"]
[null,"FLH,NH3SYN,,,","FLH","NH3SYN","","","",8000,"h","Fasihi et al. 2021"]
[null,"FLH,PEM-EL,,,","FLH","PEM-EL","","","",3861.9141914191418,"h","average of PTX Atlas"]
[null,"FLH,PV-FIX,,ARE,","FLH","PV-FIX","","ARE","",1662,"h"]
[null,"FLH,PV-FIX,,ARG,","FLH","PV-FIX","","ARG","",1494,"h"]
[null,"FLH,PV-FIX,,ARG-BA,","FLH","PV-FIX","","ARG-BA","",1501.409990284945,"h"]
[null,"FLH,PV-FIX,,ARG-CAT,","FLH","PV-FIX","","ARG-CAT","",2184.2849520000136,"h"]
[null,"FLH,PV-FIX,,ARG-CBA,","FLH","PV-FIX","","ARG-CBA","",1472.2464967200012,"h"]
[null,"FLH,PV-FIX,,ARG-CHA,","FLH","PV-FIX","","ARG-CHA","",1462.293405359997,"h"]
[null,"FLH,PV-FIX,,ARG-CHU,","FLH","PV-FIX","","ARG-CHU","",1565.6552791200011,"h"]
[null,"FLH,PV-FIX,,ARG-COR,","FLH","PV-FIX","","ARG-COR","",1411.9226517600005,"h"]
[null,"FLH,PV-FIX,,ARG-CRB,","FLH","PV-FIX","","ARG-CRB","",1571.8333939199993,"h"]
[null,"FLH,PV-FIX,,ARG-CRU,","FLH","PV-FIX","","ARG-CRU","",1419.2559755999985,"h"]
[null,"FLH,PV-FIX,,ARG-EST,","FLH","PV-FIX","","ARG-EST","",1553.4726681600023,"h"]
[null,"FLH,PV-FIX,,ARG-FOR,","FLH","PV-FIX","","ARG-FOR","",1449.92262888,"h"]
[null,"FLH,PV-FIX,,ARG-FUE,","FLH","PV-FIX","","ARG-FUE","",919.59809255999858,"h"]
[null,"FLH,PV-FIX,,ARG-JUJ,","FLH","PV-FIX","","ARG-JUJ","",2038.9844970000051,"h"]
[null,"FLH,PV-FIX,,ARG-LAR,","FLH","PV-FIX","","ARG-LAR","",1927.5699347999985,"h"]
[null,"FLH,PV-FIX,,ARG-MEN,","FLH","PV-FIX","","ARG-MEN","",1738.9096295999984,"h"]
[null,"FLH,PV-FIX,,ARG-MIS,","FLH","PV-FIX","","ARG-MIS","",1441.0558828799994,"h"]
[null,"FLH,PV-FIX,,ARG-NEG,","FLH","PV-FIX","","ARG-NEG","",1598.6654748000003,"h"]
[null,"FLH,PV-FIX,,ARG-NEU,","FLH","PV-FIX","","ARG-NEU","",1672.0413458399996,"h"]
[null,"FLH,PV-FIX,,ARG-PAM,","FLH","PV-FIX","","ARG-PAM","",1585.1219047199993,"h"]
[null,"FLH,PV-FIX,,ARG-RIO,","FLH","PV-FIX","","ARG-RIO","",1444.5405770399989,"h"]
[null,"FLH,PV-FIX,,ARG-SAF,","FLH","PV-FIX","","ARG-SAF","",1463.6960647199994,"h"]
[null,"FLH,PV-FIX,,ARG-SAJ,","FLH","PV-FIX","","ARG-SAJ","",1798.3159226999983,"h"]
[null,"FLH,PV-FIX,,ARG-SAL,","FLH","PV-FIX","","ARG-SAL","",1674.9613511999978,"h"]
[null,"FLH,PV-FIX,,ARG-SAT,","FLH","PV-FIX","","ARG-SAT","",1564.1549919000008,"h"]
[null,"FLH,PV-FIX,,ARG-TUC,","FLH","PV-FIX","","ARG-TUC","",1670.31158688,"h"]
[null,"FLH,PV-FIX,,AUS,","FLH","PV-FIX","","AUS","",1557,"h"]
[null,"FLH,PV-FIX,,BRA,","FLH","PV-FIX","","BRA","",1346,"h"]
[null,"FLH,PV-FIX,,CHL,","FLH","PV-FIX","","CHL","",1939,"h"]
[null,"FLH,PV-FIX,,CHN,","FLH","PV-FIX","","CHN","",1845.4554144000026,"h"]
[null,"FLH,PV-FIX,,COL,","FLH","PV-FIX","","COL","",1300,"h"]
[null,"FLH,PV-FIX,,CRI,","FLH","PV-FIX","","CRI","",1336.1040323999978,"h"]
[null,"FLH,PV-FIX,,DNK,","FLH","PV-FIX","","DNK","",957.75962760000073,"h"]
[null,"FLH,PV-FIX,,DZA,","FLH","PV-FIX","","DZA","",1699,"h"]
[null,"FLH,PV-FIX,,EGY,","FLH","PV-FIX","","EGY","",1744,"h"]
[null,"FLH,PV-FIX,,ESP,","FLH","PV-FIX","","ESP","",1567.2650796000021,"h"]
[null,"FLH,PV-FIX,,IDN,","FLH","PV-FIX","","IDN","",1506,"h"]
[null,"FLH,PV-FIX,,IND,","FLH","PV-FIX","","IND","",1562,"h"]
[null,"FLH,PV-FIX,,JOR,","FLH","PV-FIX","","JOR","",1792,"h"]
[null,"FLH,PV-FIX,,KAZ,","FLH","PV-FIX","","KAZ","",1425,"h"]
[null,"FLH,PV-FIX,,KEN,","FLH","PV-FIX","","KEN","",1418,"h"]
[null,"FLH,PV-FIX,,MAR,","FLH","PV-FIX","","MAR","",1631,"h"]
[null,"FLH,PV-FIX,,MAR-BEN,","FLH","PV-FIX","","MAR-BEN","",1745.3384668799999,"h"]
[null,"FLH,PV-FIX,,MAR-CAS,","FLH","PV-FIX","","MAR-CAS","",1665.7276233599982,"h"]
[null,"FLH,PV-FIX,,MAR-DAK,","FLH","PV-FIX","","MAR-DAK","",1728.1917287999981,"h"]
[null,"FLH,PV-FIX,,MAR-DRA,","FLH","PV-FIX","","MAR-DRA","",1808.0709587999988,"h"]
[null,"FLH,PV-FIX,,MAR-FES,","FLH","PV-FIX","","MAR-FES","",1678.0894264800027,"h"]
[null,"FLH,PV-FIX,,MAR-GUE,","FLH","PV-FIX","","MAR-GUE","",1758.0457144800002,"h"]
[null,"FLH,PV-FIX,,MAR-LAA,","FLH","PV-FIX","","MAR-LAA","",1742.770432080001,"h"]
[null,"FLH,PV-FIX,,MAR-LOR,","FLH","PV-FIX","","MAR-LOR","",1709.8854897600017,"h"]
[null,"FLH,PV-FIX,,MAR-MAR,","FLH","PV-FIX","","MAR-MAR","",1734.1491045599982,"h"]
[null,"FLH,PV-FIX,,MAR-RAB,","FLH","PV-FIX","","MAR-RAB","",1620.7182007199983,"h"]
[null,"FLH,PV-FIX,,MAR-SOU,","FLH","PV-FIX","","MAR-SOU","",1800.775983599998,"h"]
[null,"FLH,PV-FIX,,MAR-TAN,","FLH","PV-FIX","","MAR-TAN","",1615.309697519999,"h"]
[null,"FLH,PV-FIX,,MEX,","FLH","PV-FIX","","MEX","",1731,"h"]
[null,"FLH,PV-FIX,,MRT,","FLH","PV-FIX","","MRT","",1657,"h"]
[null,"FLH,PV-FIX,,NAM,","FLH","PV-FIX","","NAM","",1859.5896948000045,"h"]
[null,"FLH,PV-FIX,,NOR,","FLH","PV-FIX","","NOR","",845.30347200000051,"h"]
[null,"FLH,PV-FIX,,PER,","FLH","PV-FIX","","PER","",1746,"h"]
[null,"FLH,PV-FIX,,PRT,","FLH","PV-FIX","","PRT","",1445.5080791999967,"h"]
[null,"FLH,PV-FIX,,RUS,","FLH","PV-FIX","","RUS","",1173,"h"]
[null,"FLH,PV-FIX,,SAU,","FLH","PV-FIX","","SAU","",1723,"h"]
[null,"FLH,PV-FIX,,SWE,","FLH","PV-FIX","","SWE","",886.08134879999852,"h"]
[null,"FLH,PV-FIX,,THA,","FLH","PV-FIX","","THA","",1254.531981600001,"h"]
[null,"FLH,PV-FIX,,TUN,","FLH","PV-FIX","","TUN","",1611,"h"]
[null,"FLH,PV-FIX,,UKR,","FLH","PV-FIX","","UKR","",1398.7297331999989,"h"]
[null,"FLH,PV-FIX,,URY,","FLH","PV-FIX","","URY","",1338,"h"]
[null,"FLH,PV-FIX,,USA,","FLH","PV-FIX","","USA","",1593,"h"]
[null,"FLH,PV-FIX,,VNM,","FLH","PV-FIX","","VNM","",1266.9854976000001,"h"]
[null,"FLH,PV-FIX,,ZAF,","FLH","PV-FIX","","ZAF","",1603,"h"]
[null,"FLH,PV-FIX,,ZAF-EC,","FLH","PV-FIX","","ZAF-EC","",1725.7083537599988,"h"]
[null,"FLH,PV-FIX,,ZAF-FRS,","FLH","PV-FIX","","ZAF-FRS","",1808.769283199998,"h"]
[null,"FLH,PV-FIX,,ZAF-GAU,","FLH","PV-FIX","","ZAF-GAU","",1770.0387314399968,"h"]
[null,"FLH,PV-FIX,,ZAF-KWA,","FLH","PV-FIX","","ZAF-KWA","",1694.9134799999979,"h"]
[null,"FLH,PV-FIX,,ZAF-LIM,","FLH","PV-FIX","","ZAF-LIM","",1711.457395919999,"h"]
[null,"FLH,PV-FIX,,ZAF-MPU,","FLH","PV-FIX","","ZAF-MPU","",1752.2448955200002,"h"]
[null,"FLH,PV-FIX,,ZAF-NC,","FLH","PV-FIX","","ZAF-NC","",1814.9242226399974,"h"]
[null,"FLH,PV-FIX,,ZAF-NW,","FLH","PV-FIX","","ZAF-NW","",1786.6500962399978,"h"]
[null,"FLH,PV-FIX,,ZAF-WC,","FLH","PV-FIX","","ZAF-WC","",1664.7200798400002,"h"]
[null,"FLH,RES-HYBR,,ARE,","FLH","RES-HYBR","","ARE","",3116.3347803479924,"h"]
[null,"FLH,RES-HYBR,,ARG,","FLH","RES-HYBR","","ARG","",5660.92,"h"]
[null,"FLH,RES-HYBR,,ARG-BA,","FLH","RES-HYBR","","ARG-BA","",4945.8767126930315,"h"]
[null,"FLH,RES-HYBR,,ARG-CAT,","FLH","RES-HYBR","","ARG-CAT","",4818.1134165187877,"h"]
[null,"FLH,RES-HYBR,,ARG-CBA,","FLH","RES-HYBR","","ARG-CBA","",4796.3272366469528,"h"]
[null,"FLH,RES-HYBR,,ARG-CHA,","FLH","RES-HYBR","","ARG-CHA","",4353.1801274671416,"h"]
[null,"FLH,RES-HYBR,,ARG-CHU,","FLH","RES-HYBR","","ARG-CHU","",6390.4146064505558,"h"]
[null,"FLH,RES-HYBR,,ARG-COR,","FLH","RES-HYBR","","ARG-COR","",4296.9749353692923,"h"]
[null,"FLH,RES-HYBR,,ARG-CRB,","FLH","RES-HYBR","","ARG-CRB","",4058.0540031422247,"h"]
[null,"FLH,RES-HYBR,,ARG-CRU,","FLH","RES-HYBR","","ARG-CRU","",6369.4767112831887,"h"]
[null,"FLH,RES-HYBR,,ARG-EST,","FLH","RES-HYBR","","ARG-EST","",4886.4479918271754,"h"]
[null,"FLH,RES-HYBR,,ARG-FOR,","FLH","RES-HYBR","","ARG-FOR","",4947.3662874337479,"h"]
[null,"FLH,RES-HYBR,,ARG-FUE,","FLH","RES-HYBR","","ARG-FUE","",4348.7759583573197,"h"]
[null,"FLH,RES-HYBR,,ARG-JUJ,","FLH","RES-HYBR","","ARG-JUJ","",5341.5292254807428,"h"]
[null,"FLH,RES-HYBR,,ARG-LAR,","FLH","RES-HYBR","","ARG-LAR","",4993.6358442638966,"h"]
[null,"FLH,RES-HYBR,,ARG-MEN,","FLH","RES-HYBR","","ARG-MEN","",4634.7425576878331,"h"]
[null,"FLH,RES-HYBR,,ARG-MIS,","FLH","RES-HYBR","","ARG-MIS","",3199.5290500507745,"h"]
[null,"FLH,RES-HYBR,,ARG-NEG,","FLH","RES-HYBR","","ARG-NEG","",5871.0170147807694,"h"]
[null,"FLH,RES-HYBR,,ARG-NEU,","FLH","RES-HYBR","","ARG-NEU","",5150.2668537210066,"h"]
[null,"FLH,RES-HYBR,,ARG-PAM,","FLH","RES-HYBR","","ARG-PAM","",5140.6823491886607,"h"]
[null,"FLH,RES-HYBR,,ARG-RIO,","FLH","RES-HYBR","","ARG-RIO","",4336.8044520469111,"h"]
[null,"FLH,RES-HYBR,,ARG-SAF,","FLH","RES-HYBR","","ARG-SAF","",4440.5215244686588,"h"]
[null,"FLH,RES-HYBR,,ARG-SAJ,","FLH","RES-HYBR","","ARG-SAJ","",4214.2631306310104,"h"]
[null,"FLH,RES-HYBR,,ARG-SAL,","FLH","RES-HYBR","","ARG-SAL","",5055.8296990927674,"h"]
[null,"FLH,RES-HYBR,,ARG-SAT,","FLH","RES-HYBR","","ARG-SAT","",4747.3079047460951,"h"]
[null,"FLH,RES-HYBR,,ARG-TUC,","FLH","RES-HYBR","","ARG-TUC","",3565.3259655172683,"h"]
[null,"FLH,RES-HYBR,,AUS,","FLH","RES-HYBR","","AUS","",4753.97,"h"]
[null,"FLH,RES-HYBR,,BRA,","FLH","RES-HYBR","","BRA","",5155.55,"h"]
[null,"FLH,RES-HYBR,,CHL,","FLH","RES-HYBR","","CHL","",3450.29,"h"]
[null,"FLH,RES-HYBR,,CHN,","FLH","RES-HYBR","","CHN","",5183.707028904495,"h"]
[null,"FLH,RES-HYBR,,COL,","FLH","RES-HYBR","","COL","",5503,"h"]
[null,"FLH,RES-HYBR,,CRI,","FLH","RES-HYBR","","CRI","",3421.5147964974931,"h"]
[null,"FLH,RES-HYBR,,DNK,","FLH","RES-HYBR","","DNK","",5197.0268387719998,"h"]
[null,"FLH,RES-HYBR,,DZA,","FLH","RES-HYBR","","DZA","",4270.91,"h"]
[null,"FLH,RES-HYBR,,EGY,","FLH","RES-HYBR","","EGY","",4644.3599999999997,"h"]
[null,"FLH,RES-HYBR,,ESP,","FLH","RES-HYBR","","ESP","",5668.5234185745076,"h"]
[null,"FLH,RES-HYBR,,IDN,","FLH","RES-HYBR","","IDN","",2496.284437136494,"h"]
[null,"FLH,RES-HYBR,,IND,","FLH","RES-HYBR","","IND","",4890.74,"h"]
[null,"FLH,RES-HYBR,,JOR,","FLH","RES-HYBR","","JOR","",2376.5,"h"]
[null,"FLH,RES-HYBR,,KAZ,","FLH","RES-HYBR","","KAZ","",5289.962108140493,"h"]
[null,"FLH,RES-HYBR,,KEN,","FLH","RES-HYBR","","KEN","",3668.54,"h"]
[null,"FLH,RES-HYBR,,MAR,","FLH","RES-HYBR","","MAR","",4739.42,"h"]
[null,"FLH,RES-HYBR,,MAR-BEN,","FLH","RES-HYBR","","MAR-BEN","",3352.6974508185135,"h"]
[null,"FLH,RES-HYBR,,MAR-CAS,","FLH","RES-HYBR","","MAR-CAS","",4107.461264954989,"h"]
[null,"FLH,RES-HYBR,,MAR-DAK,","FLH","RES-HYBR","","MAR-DAK","",6342.17431498525,"h"]
[null,"FLH,RES-HYBR,,MAR-DRA,","FLH","RES-HYBR","","MAR-DRA","",4442.5500678171611,"h"]
[null,"FLH,RES-HYBR,,MAR-FES,","FLH","RES-HYBR","","MAR-FES","",3693.5166831944407,"h"]
[null,"FLH,RES-HYBR,,MAR-GUE,","FLH","RES-HYBR","","MAR-GUE","",5015.1834420732221,"h"]
[null,"FLH,RES-HYBR,,MAR-LAA,","FLH","RES-HYBR","","MAR-LAA","",5823.2278770450366,"h"]
[null,"FLH,RES-HYBR,,MAR-LOR,","FLH","RES-HYBR","","MAR-LOR","",4805.6356254658413,"h"]
[null,"FLH,RES-HYBR,,MAR-MAR,","FLH","RES-HYBR","","MAR-MAR","",3574.4335757714989,"h"]
[null,"FLH,RES-HYBR,,MAR-RAB,","FLH","RES-HYBR","","MAR-RAB","",3447.3598533759478,"h"]
[null,"FLH,RES-HYBR,,MAR-SOU,","FLH","RES-HYBR","","MAR-SOU","",4479.2641726234597,"h"]
[null,"FLH,RES-HYBR,,MAR-TAN,","FLH","RES-HYBR","","MAR-TAN","",4503.3511393000135,"h"]
[null,"FLH,RES-HYBR,,MEX,","FLH","RES-HYBR","","MEX","",4219.5,"h"]
[null,"FLH,RES-HYBR,,MRT,","FLH","RES-HYBR","","MRT","",6214.79,"h"]
[null,"FLH,RES-HYBR,,NAM,","FLH","RES-HYBR","","NAM","",6766.4489765195067,"h"]
[null,"FLH,RES-HYBR,,NOR,","FLH","RES-HYBR","","NOR","",4955.9832041924956,"h"]
[null,"FLH,RES-HYBR,,PER,","FLH","RES-HYBR","","PER","",2965.29,"h"]
[null,"FLH,RES-HYBR,,PRT,","FLH","RES-HYBR","","PRT","",5677.7820377284897,"h"]
[null,"FLH,RES-HYBR,,RUS,","FLH","RES-HYBR","","RUS","",3549.23,"h"]
[null,"FLH,RES-HYBR,,SAU,","FLH","RES-HYBR","","SAU","",3830.5299999999997,"h"]
[null,"FLH,RES-HYBR,,SWE,","FLH","RES-HYBR","","SWE","",3823.9828340194917,"h"]
[null,"FLH,RES-HYBR,,THA,","FLH","RES-HYBR","","THA","",3569.5369351590002,"h"]
[null,"FLH,RES-HYBR,,TUN,","FLH","RES-HYBR","","TUN","",4306.8,"h"]
[null,"FLH,RES-HYBR,,UKR,","FLH","RES-HYBR","","UKR","",5019.1641120944814,"h"]
[null,"FLH,RES-HYBR,,URY,","FLH","RES-HYBR","","URY","",4775.3099999999995,"h"]
[null,"FLH,RES-HYBR,,USA,","FLH","RES-HYBR","","USA","",5067.28,"h"]
[null,"FLH,RES-HYBR,,VNM,","FLH","RES-HYBR","","VNM","",4699.5574412419974,"h"]
[null,"FLH,RES-HYBR,,ZAF,","FLH","RES-HYBR","","ZAF","",4382.46,"h"]
[null,"FLH,RES-HYBR,,ZAF-EC,","FLH","RES-HYBR","","ZAF-EC","",5288.7578237093758,"h"]
[null,"FLH,RES-HYBR,,ZAF-FRS,","FLH","RES-HYBR","","ZAF-FRS","",4425.6106106284642,"h"]
[null,"FLH,RES-HYBR,,ZAF-GAU,","FLH","RES-HYBR","","ZAF-GAU","",3757.1990000000001,"h"]
[null,"FLH,RES-HYBR,,ZAF-KWA,","FLH","RES-HYBR","","ZAF-KWA","",4268.4057445788794,"h"]
[null,"FLH,RES-HYBR,,ZAF-LIM,","FLH","RES-HYBR","","ZAF-LIM","",4233.3590689024513,"h"]
[null,"FLH,RES-HYBR,,ZAF-MPU,","FLH","RES-HYBR","","ZAF-MPU","",4233.3590689024513,"h"]
[null,"FLH,RES-HYBR,,ZAF-NC,","FLH","RES-HYBR","","ZAF-NC","",5250.5102949318216,"h"]
[null,"FLH,RES-HYBR,,ZAF-NW,","FLH","RES-HYBR","","ZAF-NW","",4461.2336445282735,"h"]
[null,"FLH,RES-HYBR,,ZAF-WC,","FLH","RES-HYBR","","ZAF-WC","",4751.4057997393265,"h"]
[null,"FLH,SOEC-EL,,,","FLH","SOEC-EL","","","",5519.7223140495871,"h","average of PTX Atlas"]
[null,"FLH,WIND-OFF,,ARE,","FLH","WIND-OFF","","ARE","",2453,"h","Bosch et al. 2018"]
[null,"FLH,WIND-OFF,,ARG,","FLH","WIND-OFF","","ARG","",5369,"h","Bosch et al. 2018"]
[null,"FLH,WIND-OFF,,ARG-BA,","FLH","WIND-OFF","","ARG-BA","",3854.4,"h","Bosch et al. 2018"]
[null,"FLH,WIND-OFF,,ARG-CBA,","FLH","WIND-OFF","","ARG-CBA","",3854.4,"h","Bosch et al. 2018"]
[null,"FLH,WIND-OFF,,ARG-CHU,","FLH","WIND-OFF","","ARG-CHU","",5763.0835753699857,"h","Bosch et al. 2018"]
[null,"FLH,WIND-OFF,,ARG-CRU,","FLH","WIND-OFF","","ARG-CRU","",5854.9926980599967,"h","Bosch et al. 2018"]
[null,"FLH,WIND-OFF,,ARG-FUE,","FLH","WIND-OFF","","ARG-FUE","",3854.4,"h","Bosch et al. 2018"]
[null,"FLH,WIND-OFF,,ARG-NEG,","FLH","WIND-OFF","","ARG-NEG","",4738.1899020500086,"h","Bosch et al. 2018"]
[null,"FLH,WIND-OFF,,AUS,","FLH","WIND-OFF","","AUS","",4205,"h","Bosch et al. 2018"]
[null,"FLH,WIND-OFF,,BRA,","FLH","WIND-OFF","","BRA","",3854,"h","Bosch et al. 2018"]
[null,"FLH,WIND-OFF,,CHL,","FLH","WIND-OFF","","CHL","",6034,"h","Bosch et al. 2018"]
[null,"FLH,WIND-OFF,,CHN,","FLH","WIND-OFF","","CHN","",3592,"h","Bosch et al. 2018"]
[null,"FLH,WIND-OFF,,COL,","FLH","WIND-OFF","","COL","",4269,"h"]
[null,"FLH,WIND-OFF,,CRI,","FLH","WIND-OFF","","CRI","",2803,"h","Bosch et al. 2018"]
[null,"FLH,WIND-OFF,,DNK,","FLH","WIND-OFF","","DNK","",4730.4000000000005,"h","Bosch et al. 2018"]
[null,"FLH,WIND-OFF,,DZA,","FLH","WIND-OFF","","DZA","",3066,"h","Bosch et al. 2018"]
[null,"FLH,WIND-OFF,,EGY,","FLH","WIND-OFF","","EGY","",3066,"h","Bosch et al. 2018"]
[null,"FLH,WIND-OFF,,ESP,","FLH","WIND-OFF","","ESP","",4277,"h","Bosch et al. 2018"]
[null,"FLH,WIND-OFF,,IDN,","FLH","WIND-OFF","","IDN","",2453,"h","Bosch et al. 2018"]
[null,"FLH,WIND-OFF,,IND,","FLH","WIND-OFF","","IND","",3567,"h","Bosch et al. 2018"]
[null,"FLH,WIND-OFF,,KAZ,","FLH","WIND-OFF","","KAZ","",3697,"h","Bosch et al. 2018"]
[null,"FLH,WIND-OFF,,KEN,","FLH","WIND-OFF","","KEN","",3329,"h","Bosch et al. 2018"]
[null,"FLH,WIND-OFF,,MAR,","FLH","WIND-OFF","","MAR","",4643,"h","Bosch et al. 2018"]
[null,"FLH,WIND-OFF,,MAR-CAS,","FLH","WIND-OFF","","MAR-CAS","",4642.8,"h","Bosch et al. 2018"]
[null,"FLH,WIND-OFF,,MAR-DAK,","FLH","WIND-OFF","","MAR-DAK","",5181.7820854799875,"h","Bosch et al. 2018"]
[null,"FLH,WIND-OFF,,MAR-GUE,","FLH","WIND-OFF","","MAR-GUE","",4642.8,"h","Bosch et al. 2018"]
[null,"FLH,WIND-OFF,,MAR-LAA,","FLH","WIND-OFF","","MAR-LAA","",4642.8,"h","Bosch et al. 2018"]
[null,"FLH,WIND-OFF,,MAR-LOR,","FLH","WIND-OFF","","MAR-LOR","",4642.8,"h","Bosch et al. 2018"]
[null,"FLH,WIND-OFF,,MAR-MAR,","FLH","WIND-OFF","","MAR-MAR","",4642.8,"h","Bosch et al. 2018"]
[null,"FLH,WIND-OFF,,MAR-RAB,","FLH","WIND-OFF","","MAR-RAB","",4642.8,"h","Bosch et al. 2018"]
[null,"FLH,WIND-OFF,,MAR-SOU,","FLH","WIND-OFF","","MAR-SOU","",4642.8,"h","Bosch et al. 2018"]
[null,"FLH,WIND-OFF,,MAR-TAN,","FLH","WIND-OFF","","MAR-TAN","",4642.8,"h","Bosch et al. 2018"]
[null,"FLH,WIND-OFF,,MEX,","FLH","WIND-OFF","","MEX","",4042,"h","Bosch et al. 2018"]
[null,"FLH,WIND-OFF,,MRT,","FLH","WIND-OFF","","MRT","",4750,"h","Bosch et al. 2018"]
[null,"FLH,WIND-OFF,,NAM,","FLH","WIND-OFF","","NAM","",5116,"h","Bosch et al. 2018"]
[null,"FLH,WIND-OFF,,NOR,","FLH","WIND-OFF","","NOR","",4730,"h","Bosch et al. 2018"]
[null,"FLH,WIND-OFF,,PER,","FLH","WIND-OFF","","PER","",3854,"h","Bosch et al. 2018"]
[null,"FLH,WIND-OFF,,PRT,","FLH","WIND-OFF","","PRT","",4408,"h","Bosch et al. 2018"]
[null,"FLH,WIND-OFF,,RUS,","FLH","WIND-OFF","","RUS","",4522,"h","Bosch et al. 2018"]
[null,"FLH,WIND-OFF,,SAU,","FLH","WIND-OFF","","SAU","",2453,"h","Bosch et al. 2018"]
[null,"FLH,WIND-OFF,,SWE,","FLH","WIND-OFF","","SWE","",4730,"h","Bosch et al. 2018"]
[null,"FLH,WIND-OFF,,THA,","FLH","WIND-OFF","","THA","",2453,"h","Bosch et al. 2018"]
[null,"FLH,WIND-OFF,,TUN,","FLH","WIND-OFF","","TUN","",3066,"h","Bosch et al. 2018"]
[null,"FLH,WIND-OFF,,UKR,","FLH","WIND-OFF","","UKR","",3066,"h","Bosch et al. 2018"]
[null,"FLH,WIND-OFF,,URY,","FLH","WIND-OFF","","URY","",3854,"h","Bosch et al. 2018"]
[null,"FLH,WIND-OFF,,USA,","FLH","WIND-OFF","","USA","",4030,"h","Bosch et al. 2018"]
[null,"FLH,WIND-OFF,,VNM,","FLH","WIND-OFF","","VNM","",3578,"h","Bosch et al. 2018"]
[null,"FLH,WIND-OFF,,ZAF,","FLH","WIND-OFF","","ZAF","",4117,"h","Bosch et al. 2018"]
[null,"FLH,WIND-OFF,,ZAF-EC,","FLH","WIND-OFF","","ZAF-EC","",4117.2,"h","Bosch et al. 2018"]
[null,"FLH,WIND-OFF,,ZAF-KWA,","FLH","WIND-OFF","","ZAF-KWA","",4117.2,"h","Bosch et al. 2018"]
[null,"FLH,WIND-OFF,,ZAF-NC,","FLH","WIND-OFF","","ZAF-NC","",4117.2,"h","Bosch et al. 2018"]
[null,"FLH,WIND-OFF,,ZAF-WC,","FLH","WIND-OFF","","ZAF-WC","",4117.2,"h","Bosch et al. 2018"]
[null,"FLH,WIND-ON,,ARE,","FLH","WIND-ON","","ARE","",1642.3104587999985,"h"]
[null,"FLH,WIND-ON,,ARG,","FLH","WIND-ON","","ARG","",5369,"h"]
[null,"FLH,WIND-ON,,ARG-BA,","FLH","WIND-ON","","ARG-BA","",3756.6367058000046,"h"]
[null,"FLH,WIND-ON,,ARG-CAT,","FLH","WIND-ON","","ARG-CAT","",2884.1487291833364,"h"]
[null,"FLH,WIND-ON,,ARG-CBA,","FLH","WIND-ON","","ARG-CBA","",3601.8171951299964,"h"]
[null,"FLH,WIND-ON,,ARG-CHA,","FLH","WIND-ON","","ARG-CHA","",3079.6049933000008,"h"]
[null,"FLH,WIND-ON,,ARG-CHU,","FLH","WIND-ON","","ARG-CHU","",5763.0835753699857,"h"]
[null,"FLH,WIND-ON,,ARG-COR,","FLH","WIND-ON","","ARG-COR","",3045.2758197400012,"h"]
[null,"FLH,WIND-ON,,ARG-CRB,","FLH","WIND-ON","","ARG-CRB","",2605.2082556500004,"h"]
[null,"FLH,WIND-ON,,ARG-CRU,","FLH","WIND-ON","","ARG-CRU","",5854.9926980599967,"h"]
[null,"FLH,WIND-ON,,ARG-EST,","FLH","WIND-ON","","ARG-EST","",3710.4766984999937,"h"]
[null,"FLH,WIND-ON,,ARG-FOR,","FLH","WIND-ON","","ARG-FOR","",3781.7001483800022,"h"]
[null,"FLH,WIND-ON,,ARG-FUE,","FLH","WIND-ON","","ARG-FUE","",3710.4766984999937,"h"]
[null,"FLH,WIND-ON,,ARG-JUJ,","FLH","WIND-ON","","ARG-JUJ","",3773.9698333333426,"h"]
[null,"FLH,WIND-ON,,ARG-LAR,","FLH","WIND-ON","","ARG-LAR","",3188.6275809666754,"h"]
[null,"FLH,WIND-ON,,ARG-MEN,","FLH","WIND-ON","","ARG-MEN","",3077.1630279499932,"h"]
[null,"FLH,WIND-ON,,ARG-MIS,","FLH","WIND-ON","","ARG-MIS","",1777.2726296600022,"h"]
[null,"FLH,WIND-ON,,ARG-NEG,","FLH","WIND-ON","","ARG-NEG","",4738.1899020500086,"h"]
[null,"FLH,WIND-ON,,ARG-NEU,","FLH","WIND-ON","","ARG-NEU","",3956.5844284999962,"h"]
[null,"FLH,WIND-ON,,ARG-PAM,","FLH","WIND-ON","","ARG-PAM","",3897.7887775199929,"h"]
[null,"FLH,WIND-ON,,ARG-RIO,","FLH","WIND-ON","","ARG-RIO","",3070.126660369996,"h"]
[null,"FLH,WIND-ON,,ARG-SAF,","FLH","WIND-ON","","ARG-SAF","",3158.174208530002,"h"]
[null,"FLH,WIND-ON,,ARG-SAJ,","FLH","WIND-ON","","ARG-SAJ","",2534.5746024499945,"h"]
[null,"FLH,WIND-ON,,ARG-SAL,","FLH","WIND-ON","","ARG-SAL","",3657.6108475499996,"h"]
[null,"FLH,WIND-ON,,ARG-SAT,","FLH","WIND-ON","","ARG-SAT","",3418.5372058749972,"h"]
[null,"FLH,WIND-ON,,ARG-TUC,","FLH","WIND-ON","","ARG-TUC","",1908.3186970833303,"h"]
[null,"FLH,WIND-ON,,AUS,","FLH","WIND-ON","","AUS","",3971,"h"]
[null,"FLH,WIND-ON,,BRA,","FLH","WIND-ON","","BRA","",3517,"h"]
[null,"FLH,WIND-ON,,CHL,","FLH","WIND-ON","","CHL","",6034,"h"]
[null,"FLH,WIND-ON,,CHN,","FLH","WIND-ON","","CHN","",3250,"h"]
[null,"FLH,WIND-ON,,COL,","FLH","WIND-ON","","COL","",4269,"h"]
[null,"FLH,WIND-ON,,CRI,","FLH","WIND-ON","","CRI","",2191.2308093499951,"h"]
[null,"FLH,WIND-ON,,DNK,","FLH","WIND-ON","","DNK","",4400,"h"]
[null,"FLH,WIND-ON,,DZA,","FLH","WIND-ON","","DZA","",2738,"h"]
[null,"FLH,WIND-ON,,EGY,","FLH","WIND-ON","","EGY","",3045,"h"]
[null,"FLH,WIND-ON,,ESP,","FLH","WIND-ON","","ESP","",4276.5734962500064,"h"]
[null,"FLH,WIND-ON,,IDN,","FLH","WIND-ON","","IDN","",1150.7783336499949,"h"]
[null,"FLH,WIND-ON,,IND,","FLH","WIND-ON","","IND","",3567,"h"]
[null,"FLH,WIND-ON,,JOR,","FLH","WIND-ON","","JOR","",667,"h"]
[null,"FLH,WIND-ON,,KAZ,","FLH","WIND-ON","","KAZ","",3697,"h"]
[null,"FLH,WIND-ON,,KEN,","FLH","WIND-ON","","KEN","",2364,"h"]
[null,"FLH,WIND-ON,,MAR,","FLH","WIND-ON","","MAR","",3289,"h"]
[null,"FLH,WIND-ON,,MAR-BEN,","FLH","WIND-ON","","MAR-BEN","",1563.4934093166669,"h"]
[null,"FLH,WIND-ON,,MAR-CAS,","FLH","WIND-ON","","MAR-CAS","",2513.2012449499989,"h"]
[null,"FLH,WIND-ON,,MAR-DAK,","FLH","WIND-ON","","MAR-DAK","",5181.7820854799875,"h"]
[null,"FLH,WIND-ON,,MAR-DRA,","FLH","WIND-ON","","MAR-DRA","",2724.0904536999979,"h"]
[null,"FLH,WIND-ON,,MAR-FES,","FLH","WIND-ON","","MAR-FES","",2050.2642833200007,"h"]
[null,"FLH,WIND-ON,,MAR-GUE,","FLH","WIND-ON","","MAR-GUE","",3542.2692728499992,"h"]
[null,"FLH,WIND-ON,,MAR-LAA,","FLH","WIND-ON","","MAR-LAA","",4616.7798365699955,"h"]
[null,"FLH,WIND-ON,,MAR-LOR,","FLH","WIND-ON","","MAR-LOR","",3320.8164008250001,"h"]
[null,"FLH,WIND-ON,,MAR-MAR,","FLH","WIND-ON","","MAR-MAR","",1820.4342362250004,"h"]
[null,"FLH,WIND-ON,,MAR-RAB,","FLH","WIND-ON","","MAR-RAB","",1826.0421998500019,"h"]
[null,"FLH,WIND-ON,,MAR-SOU,","FLH","WIND-ON","","MAR-SOU","",2799.5123925999974,"h"]
[null,"FLH,WIND-ON,,MAR-TAN,","FLH","WIND-ON","","MAR-TAN","",2979.4188451500013,"h"]
[null,"FLH,WIND-ON,,MEX,","FLH","WIND-ON","","MEX","",4042,"h"]
[null,"FLH,WIND-ON,,MRT,","FLH","WIND-ON","","MRT","",4750,"h"]
[null,"FLH,WIND-ON,,NAM,","FLH","WIND-ON","","NAM","",5116.1308995500021,"h"]
[null,"FLH,WIND-ON,,NOR,","FLH","WIND-ON","","NOR","",4263.9575632499955,"h"]
[null,"FLH,WIND-ON,,PER,","FLH","WIND-ON","","PER","",1448,"h"]
[null,"FLH,WIND-ON,,PRT,","FLH","WIND-ON","","PRT","",4407.8754648499926,"h"]
[null,"FLH,WIND-ON,,RUS,","FLH","WIND-ON","","RUS","",4522,"h"]
[null,"FLH,WIND-ON,,SAU,","FLH","WIND-ON","","SAU","",2282,"h"]
[null,"FLH,WIND-ON,,SWE,","FLH","WIND-ON","","SWE","",3056.1689955499933,"h"]
[null,"FLH,WIND-ON,,THA,","FLH","WIND-ON","","THA","",2425.4030030999993,"h"]
[null,"FLH,WIND-ON,,TUN,","FLH","WIND-ON","","TUN","",2843,"h"]
[null,"FLH,WIND-ON,,UKR,","FLH","WIND-ON","","UKR","",2769,"h"]
[null,"FLH,WIND-ON,,URY,","FLH","WIND-ON","","URY","",3594,"h"]
[null,"FLH,WIND-ON,,USA,","FLH","WIND-ON","","USA","",3503,"h"]
[null,"FLH,WIND-ON,,VNM,","FLH","WIND-ON","","VNM","",3577.9190809999977,"h"]
[null,"FLH,WIND-ON,,ZAF,","FLH","WIND-ON","","ZAF","",3070,"h"]
[null,"FLH,WIND-ON,,ZAF-EC,","FLH","WIND-ON","","ZAF-EC","",3914.4857524666741,"h"]
[null,"FLH,WIND-ON,,ZAF-FRS,","FLH","WIND-ON","","ZAF-FRS","",2775.7070136400025,"h"]
[null,"FLH,WIND-ON,,ZAF-GAU,","FLH","WIND-ON","","ZAF-GAU","",2069.9309253700035,"h"]
[null,"FLH,WIND-ON,,ZAF-KWA,","FLH","WIND-ON","","ZAF-KWA","",2682.3634953500023,"h"]
[null,"FLH,WIND-ON,,ZAF-LIM,","FLH","WIND-ON","","ZAF-LIM","",2627.5496087499969,"h"]
[null,"FLH,WIND-ON,,ZAF-MPU,","FLH","WIND-ON","","ZAF-MPU","",2612.1821174166703,"h"]
[null,"FLH,WIND-ON,,ZAF-NC,","FLH","WIND-ON","","ZAF-NC","",3748.8309036749974,"h"]
[null,"FLH,WIND-ON,,ZAF-NW,","FLH","WIND-ON","","ZAF-NW","",3092.6134290333307,"h"]
[null,"FLH,WIND-ON,,ZAF-WC,","FLH","WIND-ON","","ZAF-WC","",3346.6670672599976,"h"]
[null,"LIFETIME,AEL-EL,,,","LIFETIME","AEL-EL","","","",20,"years"]
[null,"LIFETIME,ATR,,,","LIFETIME","ATR","","","",25,"years","Oni et al. 2022"]
[null,"LIFETIME,CH3OH-S,,,","LIFETIME","CH3OH-S","","","",30,"years","UNSW Sydney 2021"]
[null,"LIFETIME,CH3OH-SB,,,","LIFETIME","CH3OH-SB","","","",30,"years","UNSW Sydney 2021"]
[null,"LIFETIME,CH3OHSYN,,,","LIFETIME","CH3OHSYN","","","",30,"years","Öko-Institut 2020"]
[null,"LIFETIME,CH4-COMP,,,","LIFETIME","CH4-COMP","","","",20,"years","DNV GL 2020"]
[null,"LIFETIME,CH4-LIQ,,,","LIFETIME","CH4-LIQ","","","",30,"years","UNSW Sydney 2021"]
[null,"LIFETIME,CH4-P-L,,,","LIFETIME","CH4-P-L","","","",40,"years"]
[null,"LIFETIME,CH4-P-LR,,,","LIFETIME","CH4-P-LR","","","",40,"years"]
[null,"LIFETIME,CH4-P-S,,,","LIFETIME","CH4-P-S","","","",40,"years"]
[null,"LIFETIME,CH4-P-SR,,,","LIFETIME","CH4-P-SR","","","",40,"years"]
[null,"LIFETIME,CH4-S,,,","LIFETIME","CH4-S","","","",30,"years","UNSW Sydney 2021"]
[null,"LIFETIME,CH4-SB,,,","LIFETIME","CH4-SB","","","",30,"years","UNSW Sydney 2021"]
[null,"LIFETIME,CH4SYN,,,","LIFETIME","CH4SYN","","","",30,"years","Öko-Institut 2020"]
[null,"LIFETIME,DAC,,,","LIFETIME","DAC","","","",30,"years","Fasihi et al. 2019"]
[null,"LIFETIME,DESAL,,,","LIFETIME","DESAL","","","",20,"years","PTX Atlas"]
[null,"LIFETIME,DRI,,,","LIFETIME","DRI","","","",15,"years","Agora Industry Transformation 2021"]
[null,"LIFETIME,EFUELSYN,,,","LIFETIME","EFUELSYN","","","",30,"years","Öko-Institut 2020"]
[null,"LIFETIME,EL-TRANS,,,","LIFETIME","EL-TRANS","","","",20,"years","DUMMY"]
[null,"LIFETIME,H2-COMP,,,","LIFETIME","H2-COMP","","","",20,"years","DNV GL 2020"]
[null,"LIFETIME,H2-LIQ,,,","LIFETIME","H2-LIQ","","","",30,"years","IEA 2015"]
[null,"LIFETIME,H2-P-L,,,","LIFETIME","H2-P-L","","","",30,"years"]
[null,"LIFETIME,H2-P-LR,,,","LIFETIME","H2-P-LR","","","",30,"years"]
[null,"LIFETIME,H2-P-S,,,","LIFETIME","H2-P-S","","","",30,"years"]
[null,"LIFETIME,H2-P-SR,,,","LIFETIME","H2-P-SR","","","",30,"years"]
[null,"LIFETIME,H2-RGAS,,,","LIFETIME","H2-RGAS","","","",30,"years"]
[null,"LIFETIME,H2-S,,,","LIFETIME","H2-S","","","",30,"years","UNSW Sydney 2021"]
[null,"LIFETIME,H2-SB,,,","LIFETIME","H2-SB","","","",30,"years","UNSW Sydney 2021"]
[null,"LIFETIME,LOHC-CON,,,","LIFETIME","LOHC-CON","","","",20,"years","DNV GL 2020"]
[null,"LIFETIME,LOHC-REC,,,","LIFETIME","LOHC-REC","","","",30,"years","IEA 2019"]
[null,"LIFETIME,LOHC-S,,,","LIFETIME","LOHC-S","","","",30,"years","UNSW Sydney 2021"]
[null,"LIFETIME,LOHC-SB,,,","LIFETIME","LOHC-SB","","","",30,"years","UNSW Sydney 2021"]
[null,"LIFETIME,NH3-REC,,,","LIFETIME","NH3-REC","","","",25,"years","NGN; Equinor 2018"]
[null,"LIFETIME,NH3-S,,,","LIFETIME","NH3-S","","","",30,"years","UNSW Sydney 2021"]
[null,"LIFETIME,NH3-SB,,,","LIFETIME","NH3-SB","","","",30,"years","UNSW Sydney 2021"]
[null,"LIFETIME,NH3SYN,,,","LIFETIME","NH3SYN","","","",30,"years","Fasihi et al. 2021"]
[null,"LIFETIME,PEM-EL,,,","LIFETIME","PEM-EL","","","",20,"years"]
[null,"LIFETIME,PV-FIX,,,","LIFETIME","PV-FIX","","","",20,"years"]
[null,"LIFETIME,REGASATR,,,","LIFETIME","REGASATR","","","",25,"years","combined values"]
[null,"LIFETIME,RES-HYBR,,,","LIFETIME","RES-HYBR","","","",20,"years"]
[null,"LIFETIME,SOEC-EL,,,","LIFETIME","SOEC-EL","","","",20,"years"]
[null,"LIFETIME,SYN-S,,,","LIFETIME","SYN-S","","","",30,"years","UNSW Sydney 2021"]
[null,"LIFETIME,SYN-SB,,,","LIFETIME","SYN-SB","","","",30,"years","UNSW Sydney 2021"]
[null,"LIFETIME,WIND-OFF,,,","LIFETIME","WIND-OFF","","","",20,"years"]
[null,"LIFETIME,WIND-ON,,,","LIFETIME","WIND-ON","","","",20,"years"]
[null,"LOSS-T,CH3OH-S,,,","LOSS-T","CH3OH-S","","","",3.0509883673175365E-6,"fraction/km","calc_shipping"]
[null,"LOSS-T,CH3OH-SB,,,","LOSS-T","CH3OH-SB","","","",4.7996160307175429E-7,"fraction/km","calc_shipping"]
[null,"LOSS-T,CH4-P-L,,,","LOSS-T","CH4-P-L","","","",5.6666666666666669E-6,"fraction/km"]
[null,"LOSS-T,CH4-P-LR,,,","LOSS-T","CH4-P-LR","","","",5.6666666666666669E-6,"fraction/km"]
[null,"LOSS-T,CH4-P-S,,,","LOSS-T","CH4-P-S","","","",5.6666666666666669E-6,"fraction/km"]
[null,"LOSS-T,CH4-P-SR,,,","LOSS-T","CH4-P-SR","","","",5.6666666666666669E-6,"fraction/km"]
[null,"LOSS-T,CH4-S,,,","LOSS-T","CH4-S","","","",3.3002590965851543E-6,"fraction/km","calc_shipping"]
[null,"LOSS-T,CH4-SB,,,","LOSS-T","CH4-SB","","","",2.3075077070757413E-6,"fraction/km","calc_shipping"]
[null,"LOSS-T,H2-P-L,,,","LOSS-T","H2-P-L","","","",1.6866666666666666E-5,"fraction/km"]
[null,"LOSS-T,H2-P-LR,,,","LOSS-T","H2-P-LR","","","",1.6866666666666666E-5,"fraction/km"]
[null,"LOSS-T,H2-P-S,,,","LOSS-T","H2-P-S","","","",1.6866666666666666E-5,"fraction/km"]
[null,"LOSS-T,H2-P-SR,,,","LOSS-T","H2-P-SR","","","",1.6866666666666666E-5,"fraction/km"]
[null,"LOSS-T,H2-S,,,","LOSS-T","H2-S","","","",9.2511936896845982E-6,"fraction/km","calc_shipping"]
[null,"LOSS-T,H2-SB,,,","LOSS-T","H2-SB","","","",4.6150154141514826E-6,"fraction/km","calc_shipping"]
[null,"LOSS-T,LOHC-S,,,","LOSS-T","LOHC-S","","","",1.1535367546997468E-5,"fraction/km","calc_shipping"]
[null,"LOSS-T,NH3-S,,,","LOSS-T","NH3-S","","","",5.3436561034163411E-6,"fraction/km","calc_shipping"]
[null,"LOSS-T,NH3-SB,,,","LOSS-T","NH3-SB","","","",9.2300308283029658E-7,"fraction/km","calc_shipping"]
[null,"OPEX-F,AEL-EL,,,","OPEX-F","AEL-EL","","","",10.330718045117374,"USD2021/kW"]
[null,"OPEX-F,ATR,,,","OPEX-F","ATR","","","",48.829790310167752,"USD2021/kW","Oni et al. 2022"]
[null,"OPEX-F,CH3OHSYN,,,","OPEX-F","CH3OHSYN","","","",18.595203085331189,"USD2021/kW","Öko-Institut 2020"]
[null,"OPEX-F,CH4-COMP,,,","OPEX-F","CH4-COMP","","","",4.3999668964812217,"USD2021/kW","DNV GL 2020"]
[null,"OPEX-F,CH4-LIQ,,,","OPEX-F","CH4-LIQ","","","",8.7998736512607394,"USD2021/kW","Hank et al. 2020"]
[null,"OPEX-F,CH4SYN,,,","OPEX-F","CH4SYN","","","",19.472335306337374,"USD2021/kW","Öko-Institut 2020"]
[null,"OPEX-F,DAC,,,","OPEX-F","DAC","","","",1.1677935134785621E-2,"USD2021/ kg CO2 (g)*a","Fasihi et al. 2019"]
[null,"OPEX-F,DESAL,,,","OPEX-F","DESAL","","","",9.4669104972375679E-5,"USD2021/kW"]
[null,"OPEX-F,DRI,,,","OPEX-F","DRI","","","",123.76885357719151,"USD2021/kg DRI (s)/a*h","Agora Industry Transformation 2021"]
[null,"OPEX-F,EFUELSYN,,,","OPEX-F","EFUELSYN","","","",18.595203085331189,"USD2021/kW","Öko-Institut 2020"]
[null,"OPEX-F,H2-COMP,,,","OPEX-F","H2-COMP","","","",4.3999668964812217,"USD2021/kW","DNV GL 2020"]
[null,"OPEX-F,H2-LIQ,,,","OPEX-F","H2-LIQ","","","",40.112471667852205,"USD2021/kW","IEA 2019"]
[null,"OPEX-F,H2-RGAS,,,","OPEX-F","H2-RGAS","","","",3.3098652473238155,"USD2021/kW","DNV GL 2020"]
[null,"OPEX-F,LOHC-CON,,,","OPEX-F","LOHC-CON","","","",2.8907255469755473,"USD2021/kW","DNV GL 2020"]
[null,"OPEX-F,LOHC-REC,,,","OPEX-F","LOHC-REC","","","",9.8123097803614776,"USD2021/kW","DNV GL 2022"]
[null,"OPEX-F,NH3-REC,,,","OPEX-F","NH3-REC","","","",12.018656329537231,"USD2021/kW","NGN; Equinor 2018"]
[null,"OPEX-F,NH3SYN,,,","OPEX-F","NH3SYN","","","",57.438658882277934,"USD2021/kW","Fasihi et al. 2021"]
[null,"OPEX-F,PEM-EL,,,","OPEX-F","PEM-EL","","","",14.626799511718794,"USD2021/kW"]
[null,"OPEX-F,PV-FIX,,ARE,","OPEX-F","PV-FIX","","ARE","",19.317718687904147,"USD2021/kW"]
[null,"OPEX-F,PV-FIX,,ARG,","OPEX-F","PV-FIX","","ARG","",18.741858237637476,"USD2021/kW"]
[null,"OPEX-F,PV-FIX,,ARG-BA,","OPEX-F","PV-FIX","","ARG-BA","",18.741858237637476,"USD2021/kW"]
[null,"OPEX-F,PV-FIX,,ARG-CAT,","OPEX-F","PV-FIX","","ARG-CAT","",18.741858237637476,"USD2021/kW"]
[null,"OPEX-F,PV-FIX,,ARG-CBA,","OPEX-F","PV-FIX","","ARG-CBA","",18.741858237637476,"USD2021/kW"]
[null,"OPEX-F,PV-FIX,,ARG-CHA,","OPEX-F","PV-FIX","","ARG-CHA","",18.741858237637476,"USD2021/kW"]
[null,"OPEX-F,PV-FIX,,ARG-CHU,","OPEX-F","PV-FIX","","ARG-CHU","",18.741858237637476,"USD2021/kW"]
[null,"OPEX-F,PV-FIX,,ARG-COR,","OPEX-F","PV-FIX","","ARG-COR","",18.741858237637476,"USD2021/kW"]
[null,"OPEX-F,PV-FIX,,ARG-CRB,","OPEX-F","PV-FIX","","ARG-CRB","",18.741858237637476,"USD2021/kW"]
[null,"OPEX-F,PV-FIX,,ARG-CRU,","OPEX-F","PV-FIX","","ARG-CRU","",18.741858237637476,"USD2021/kW"]
[null,"OPEX-F,PV-FIX,,ARG-EST,","OPEX-F","PV-FIX","","ARG-EST","",18.741858237637476,"USD2021/kW"]
[null,"OPEX-F,PV-FIX,,ARG-FOR,","OPEX-F","PV-FIX","","ARG-FOR","",18.741858237637476,"USD2021/kW"]
[null,"OPEX-F,PV-FIX,,ARG-FUE,","OPEX-F","PV-FIX","","ARG-FUE","",18.741858237637476,"USD2021/kW"]
[null,"OPEX-F,PV-FIX,,ARG-JUJ,","OPEX-F","PV-FIX","","ARG-JUJ","",18.741858237637476,"USD2021/kW"]
[null,"OPEX-F,PV-FIX,,ARG-LAR,","OPEX-F","PV-FIX","","ARG-LAR","",18.741858237637476,"USD2021/kW"]
[null,"OPEX-F,PV-FIX,,ARG-MEN,","OPEX-F","PV-FIX","","ARG-MEN","",18.741858237637476,"USD2021/kW"]
[null,"OPEX-F,PV-FIX,,ARG-MIS,","OPEX-F","PV-FIX","","ARG-MIS","",18.741858237637476,"USD2021/kW"]
[null,"OPEX-F,PV-FIX,,ARG-NEG,","OPEX-F","PV-FIX","","ARG-NEG","",18.741858237637476,"USD2021/kW"]
[null,"OPEX-F,PV-FIX,,ARG-NEU,","OPEX-F","PV-FIX","","ARG-NEU","",18.741858237637476,"USD2021/kW"]
[null,"OPEX-F,PV-FIX,,ARG-PAM,","OPEX-F","PV-FIX","","ARG-PAM","",18.741858237637476,"USD2021/kW"]
[null,"OPEX-F,PV-FIX,,ARG-RIO,","OPEX-F","PV-FIX","","ARG-RIO","",18.741858237637476,"USD2021/kW"]
[null,"OPEX-F,PV-FIX,,ARG-SAF,","OPEX-F","PV-FIX","","ARG-SAF","",18.741858237637476,"USD2021/kW"]
[null,"OPEX-F,PV-FIX,,ARG-SAJ,","OPEX-F","PV-FIX","","ARG-SAJ","",18.741858237637476,"USD2021/kW"]
[null,"OPEX-F,PV-FIX,,ARG-SAL,","OPEX-F","PV-FIX","","ARG-SAL","",18.741858237637476,"USD2021/kW"]
[null,"OPEX-F,PV-FIX,,ARG-SAT,","OPEX-F","PV-FIX","","ARG-SAT","",18.741858237637476,"USD2021/kW"]
[null,"OPEX-F,PV-FIX,,ARG-TUC,","OPEX-F","PV-FIX","","ARG-TUC","",18.741858237637476,"USD2021/kW"]
[null,"OPEX-F,PV-FIX,,AUS,","OPEX-F","PV-FIX","","AUS","",21.174868640014175,"USD2021/kW"]
[null,"OPEX-F,PV-FIX,,BRA,","OPEX-F","PV-FIX","","BRA","",18.348353596621916,"USD2021/kW"]
[null,"OPEX-F,PV-FIX,,CHL,","OPEX-F","PV-FIX","","CHL","",20.86294422945306,"USD2021/kW"]
[null,"OPEX-F,PV-FIX,,CHN,","OPEX-F","PV-FIX","","CHN","",12.14105782645572,"USD2021/kW"]
[null,"OPEX-F,PV-FIX,,COL,","OPEX-F","PV-FIX","","COL","",11.72861491765609,"USD2021/kW"]
[null,"OPEX-F,PV-FIX,,CRI,","OPEX-F","PV-FIX","","CRI","",19.317718687904147,"USD2021/kW"]
[null,"OPEX-F,PV-FIX,,DNK,","OPEX-F","PV-FIX","","DNK","",16.747941428589115,"USD2021/kW"]
[null,"OPEX-F,PV-FIX,,DZA,","OPEX-F","PV-FIX","","DZA","",19.317718687904147,"USD2021/kW"]
[null,"OPEX-F,PV-FIX,,EGY,","OPEX-F","PV-FIX","","EGY","",19.317718687904147,"USD2021/kW"]
[null,"OPEX-F,PV-FIX,,ESP,","OPEX-F","PV-FIX","","ESP","",18.201989065512471,"USD2021/kW"]
[null,"OPEX-F,PV-FIX,,IDN,","OPEX-F","PV-FIX","","IDN","",22.391373841202526,"USD2021/kW"]
[null,"OPEX-F,PV-FIX,,IND,","OPEX-F","PV-FIX","","IND","",12.548958978727946,"USD2021/kW"]
[null,"OPEX-F,PV-FIX,,JOR,","OPEX-F","PV-FIX","","JOR","",19.317718687904147,"USD2021/kW"]
[null,"OPEX-F,PV-FIX,,KAZ,","OPEX-F","PV-FIX","","KAZ","",19.317718687904147,"USD2021/kW"]
[null,"OPEX-F,PV-FIX,,KEN,","OPEX-F","PV-FIX","","KEN","",19.317718687904147,"USD2021/kW"]
[null,"OPEX-F,PV-FIX,,MAR,","OPEX-F","PV-FIX","","MAR","",19.317718687904147,"USD2021/kW"]
[null,"OPEX-F,PV-FIX,,MAR-BEN,","OPEX-F","PV-FIX","","MAR-BEN","",19.317718687904147,"USD2021/kW"]
[null,"OPEX-F,PV-FIX,,MAR-CAS,","OPEX-F","PV-FIX","","MAR-CAS","",19.317718687904147,"USD2021/kW"]
[null,"OPEX-F,PV-FIX,,MAR-DAK,","OPEX-F","PV-FIX","","MAR-DAK","",19.317718687904147,"USD2021/kW"]
[null,"OPEX-F,PV-FIX,,MAR-DRA,","OPEX-F","PV-FIX","","MAR-DRA","",19.317718687904147,"USD2021/kW"]
[null,"OPEX-F,PV-FIX,,MAR-FES,","OPEX-F","PV-FIX","","MAR-FES","",19.317718687904147,"USD2021/kW"]
[null,"OPEX-F,PV-FIX,,MAR-GUE,","OPEX-F","PV-FIX","","MAR-GUE","",19.317718687904147,"USD2021/kW"]
[null,"OPEX-F,PV-FIX,,MAR-LAA,","OPEX-F","PV-FIX","","MAR-LAA","",19.317718687904147,"USD2021/kW"]
[null,"OPEX-F,PV-FIX,,MAR-LOR,","OPEX-F","PV-FIX","","MAR-LOR","",19.317718687904147,"USD2021/kW"]
[null,"OPEX-F,PV-FIX,,MAR-MAR,","OPEX-F","PV-FIX","","MAR-MAR","",19.317718687904147,"USD2021/kW"]
[null,"OPEX-F,PV-FIX,,MAR-RAB,","OPEX-F","PV-FIX","","MAR-RAB","",19.317718687904147,"USD2021/kW"]
[null,"OPEX-F,PV-FIX,,MAR-SOU,","OPEX-F","PV-FIX","","MAR-SOU","",19.317718687904147,"USD2021/kW"]
[null,"OPEX-F,PV-FIX,,MAR-TAN,","OPEX-F","PV-FIX","","MAR-TAN","",19.317718687904147,"USD2021/kW"]
[null,"OPEX-F,PV-FIX,,MEX,","OPEX-F","PV-FIX","","MEX","",17.604533848360795,"USD2021/kW"]
[null,"OPEX-F,PV-FIX,,MRT,","OPEX-F","PV-FIX","","MRT","",19.317718687904147,"USD2021/kW"]
[null,"OPEX-F,PV-FIX,,NAM,","OPEX-F","PV-FIX","","NAM","",19.317718687904147,"USD2021/kW"]
[null,"OPEX-F,PV-FIX,,NOR,","OPEX-F","PV-FIX","","NOR","",17.799953158567035,"USD2021/kW"]
[null,"OPEX-F,PV-FIX,,PER,","OPEX-F","PV-FIX","","PER","",19.317718687904147,"USD2021/kW"]
[null,"OPEX-F,PV-FIX,,PRT,","OPEX-F","PV-FIX","","PRT","",19.533666356754154,"USD2021/kW"]
[null,"OPEX-F,PV-FIX,,RUS,","OPEX-F","PV-FIX","","RUS","",34.652402594797138,"USD2021/kW"]
[null,"OPEX-F,PV-FIX,,SAU,","OPEX-F","PV-FIX","","SAU","",20.035144832194714,"USD2021/kW"]
[null,"OPEX-F,PV-FIX,,SWE,","OPEX-F","PV-FIX","","SWE","",17.799953158567035,"USD2021/kW"]
[null,"OPEX-F,PV-FIX,,THA,","OPEX-F","PV-FIX","","THA","",21.314034915495284,"USD2021/kW"]
[null,"OPEX-F,PV-FIX,,TUN,","OPEX-F","PV-FIX","","TUN","",19.317718687904147,"USD2021/kW"]
[null,"OPEX-F,PV-FIX,,UKR,","OPEX-F","PV-FIX","","UKR","",17.799953158567035,"USD2021/kW"]
[null,"OPEX-F,PV-FIX,,URY,","OPEX-F","PV-FIX","","URY","",19.317718687904147,"USD2021/kW"]
[null,"OPEX-F,PV-FIX,,USA,","OPEX-F","PV-FIX","","USA","",23.077607544436976,"USD2021/kW"]
[null,"OPEX-F,PV-FIX,,VNM,","OPEX-F","PV-FIX","","VNM","",21.314034915495284,"USD2021/kW"]
[null,"OPEX-F,PV-FIX,,ZAF,","OPEX-F","PV-FIX","","ZAF","",19.317718687904147,"USD2021/kW"]
[null,"OPEX-F,PV-FIX,,ZAF-EC,","OPEX-F","PV-FIX","","ZAF-EC","",19.317718687904147,"USD2021/kW"]
[null,"OPEX-F,PV-FIX,,ZAF-FRS,","OPEX-F","PV-FIX","","ZAF-FRS","",19.317718687904147,"USD2021/kW"]
[null,"OPEX-F,PV-FIX,,ZAF-GAU,","OPEX-F","PV-FIX","","ZAF-GAU","",19.317718687904147,"USD2021/kW"]
[null,"OPEX-F,PV-FIX,,ZAF-KWA,","OPEX-F","PV-FIX","","ZAF-KWA","",19.317718687904147,"USD2021/kW"]
[null,"OPEX-F,PV-FIX,,ZAF-LIM,","OPEX-F","PV-FIX","","ZAF-LIM","",19.317718687904147,"USD2021/kW"]
[null,"OPEX-F,PV-FIX,,ZAF-MPU,","OPEX-F","PV-FIX","","ZAF-MPU","",19.317718687904147,"USD2021/kW"]
[null,"OPEX-F,PV-FIX,,ZAF-NC,","OPEX-F","PV-FIX","","ZAF-NC","",19.317718687904147,"USD2021/kW"]
[null,"OPEX-F,PV-FIX,,ZAF-NW,","OPEX-F","PV-FIX","","ZAF-NW","",19.317718687904147,"USD2021/kW"]
[null,"OPEX-F,PV-FIX,,ZAF-WC,","OPEX-F","PV-FIX","","ZAF-WC","",19.317718687904147,"USD2021/kW"]
[null,"OPEX-F,REGASATR,,,","OPEX-F","REGASATR","","","",48.829790310167752,"USD2021/kW","combined values"]
[null,"OPEX-F,RES-HYBR,,ARE,","OPEX-F","RES-HYBR","","ARE","",21.614376424056928,"USD2021/kW"]
[null,"OPEX-F,RES-HYBR,,ARG,","OPEX-F","RES-HYBR","","ARG","",23.361213072398655,"USD2021/kW"]
[null,"OPEX-F,RES-HYBR,,ARG-BA,","OPEX-F","RES-HYBR","","ARG-BA","",23.361213072398655,"USD2021/kW"]
[null,"OPEX-F,RES-HYBR,,ARG-CAT,","OPEX-F","RES-HYBR","","ARG-CAT","",23.361213072398655,"USD2021/kW"]
[null,"OPEX-F,RES-HYBR,,ARG-CBA,","OPEX-F","RES-HYBR","","ARG-CBA","",23.361213072398655,"USD2021/kW"]
[null,"OPEX-F,RES-HYBR,,ARG-CHA,","OPEX-F","RES-HYBR","","ARG-CHA","",23.361213072398655,"USD2021/kW"]
[null,"OPEX-F,RES-HYBR,,ARG-CHU,","OPEX-F","RES-HYBR","","ARG-CHU","",23.361213072398655,"USD2021/kW"]
[null,"OPEX-F,RES-HYBR,,ARG-COR,","OPEX-F","RES-HYBR","","ARG-COR","",23.361213072398655,"USD2021/kW"]
[null,"OPEX-F,RES-HYBR,,ARG-CRB,","OPEX-F","RES-HYBR","","ARG-CRB","",23.361213072398655,"USD2021/kW"]
[null,"OPEX-F,RES-HYBR,,ARG-CRU,","OPEX-F","RES-HYBR","","ARG-CRU","",23.361213072398655,"USD2021/kW"]
[null,"OPEX-F,RES-HYBR,,ARG-EST,","OPEX-F","RES-HYBR","","ARG-EST","",23.361213072398655,"USD2021/kW"]
[null,"OPEX-F,RES-HYBR,,ARG-FOR,","OPEX-F","RES-HYBR","","ARG-FOR","",23.361213072398655,"USD2021/kW"]
[null,"OPEX-F,RES-HYBR,,ARG-FUE,","OPEX-F","RES-HYBR","","ARG-FUE","",23.361213072398655,"USD2021/kW"]
[null,"OPEX-F,RES-HYBR,,ARG-JUJ,","OPEX-F","RES-HYBR","","ARG-JUJ","",23.361213072398655,"USD2021/kW"]
[null,"OPEX-F,RES-HYBR,,ARG-LAR,","OPEX-F","RES-HYBR","","ARG-LAR","",23.361213072398655,"USD2021/kW"]
[null,"OPEX-F,RES-HYBR,,ARG-MEN,","OPEX-F","RES-HYBR","","ARG-MEN","",23.361213072398655,"USD2021/kW"]
[null,"OPEX-F,RES-HYBR,,ARG-MIS,","OPEX-F","RES-HYBR","","ARG-MIS","",23.361213072398655,"USD2021/kW"]
[null,"OPEX-F,RES-HYBR,,ARG-NEG,","OPEX-F","RES-HYBR","","ARG-NEG","",23.361213072398655,"USD2021/kW"]
[null,"OPEX-F,RES-HYBR,,ARG-NEU,","OPEX-F","RES-HYBR","","ARG-NEU","",23.361213072398655,"USD2021/kW"]
[null,"OPEX-F,RES-HYBR,,ARG-PAM,","OPEX-F","RES-HYBR","","ARG-PAM","",23.361213072398655,"USD2021/kW"]
[null,"OPEX-F,RES-HYBR,,ARG-RIO,","OPEX-F","RES-HYBR","","ARG-RIO","",23.361213072398655,"USD2021/kW"]
[null,"OPEX-F,RES-HYBR,,ARG-SAF,","OPEX-F","RES-HYBR","","ARG-SAF","",23.361213072398655,"USD2021/kW"]
[null,"OPEX-F,RES-HYBR,,ARG-SAJ,","OPEX-F","RES-HYBR","","ARG-SAJ","",23.361213072398655,"USD2021/kW"]
[null,"OPEX-F,RES-HYBR,,ARG-SAL,","OPEX-F","RES-HYBR","","ARG-SAL","",23.361213072398655,"USD2021/kW"]
[null,"OPEX-F,RES-HYBR,,ARG-SAT,","OPEX-F","RES-HYBR","","ARG-SAT","",23.361213072398655,"USD2021/kW"]
[null,"OPEX-F,RES-HYBR,,ARG-TUC,","OPEX-F","RES-HYBR","","ARG-TUC","",23.361213072398655,"USD2021/kW"]
[null,"OPEX-F,RES-HYBR,,AUS,","OPEX-F","RES-HYBR","","AUS","",24.230145358961764,"USD2021/kW"]
[null,"OPEX-F,RES-HYBR,,BRA,","OPEX-F","RES-HYBR","","BRA","",17.506038349781416,"USD2021/kW"]
[null,"OPEX-F,RES-HYBR,,CHL,","OPEX-F","RES-HYBR","","CHL","",24.118743783761367,"USD2021/kW"]
[null,"OPEX-F,RES-HYBR,,CHN,","OPEX-F","RES-HYBR","","CHN","",15.355817772386457,"USD2021/kW"]
[null,"OPEX-F,RES-HYBR,,CRI,","OPEX-F","RES-HYBR","","CRI","",21.976303456275911,"USD2021/kW"]
[null,"OPEX-F,RES-HYBR,,DNK,","OPEX-F","RES-HYBR","","DNK","",21.439501687051795,"USD2021/kW"]
[null,"OPEX-F,RES-HYBR,,DZA,","OPEX-F","RES-HYBR","","DZA","",24.919341691951281,"USD2021/kW"]
[null,"OPEX-F,RES-HYBR,,EGY,","OPEX-F","RES-HYBR","","EGY","",21.185778622744984,"USD2021/kW"]
[null,"OPEX-F,RES-HYBR,,ESP,","OPEX-F","RES-HYBR","","ESP","",17.659025921958783,"USD2021/kW"]
[null,"OPEX-F,RES-HYBR,,IDN,","OPEX-F","RES-HYBR","","IDN","",29.426809294598293,"USD2021/kW"]
[null,"OPEX-F,RES-HYBR,,IND,","OPEX-F","RES-HYBR","","IND","",13.301361375272824,"USD2021/kW"]
[null,"OPEX-F,RES-HYBR,,JOR,","OPEX-F","RES-HYBR","","JOR","",24.919341691951281,"USD2021/kW"]
[null,"OPEX-F,RES-HYBR,,KAZ,","OPEX-F","RES-HYBR","","KAZ","",21.185778622744984,"USD2021/kW"]
[null,"OPEX-F,RES-HYBR,,KEN,","OPEX-F","RES-HYBR","","KEN","",24.919341691951281,"USD2021/kW"]
[null,"OPEX-F,RES-HYBR,,MAR,","OPEX-F","RES-HYBR","","MAR","",23.566877518922464,"USD2021/kW"]
[null,"OPEX-F,RES-HYBR,,MAR-BEN,","OPEX-F","RES-HYBR","","MAR-BEN","",23.566877518922464,"USD2021/kW"]
[null,"OPEX-F,RES-HYBR,,MAR-CAS,","OPEX-F","RES-HYBR","","MAR-CAS","",23.566877518922464,"USD2021/kW"]
[null,"OPEX-F,RES-HYBR,,MAR-DAK,","OPEX-F","RES-HYBR","","MAR-DAK","",23.566877518922464,"USD2021/kW"]
[null,"OPEX-F,RES-HYBR,,MAR-DRA,","OPEX-F","RES-HYBR","","MAR-DRA","",23.566877518922464,"USD2021/kW"]
[null,"OPEX-F,RES-HYBR,,MAR-FES,","OPEX-F","RES-HYBR","","MAR-FES","",23.566877518922464,"USD2021/kW"]
[null,"OPEX-F,RES-HYBR,,MAR-GUE,","OPEX-F","RES-HYBR","","MAR-GUE","",23.566877518922464,"USD2021/kW"]
[null,"OPEX-F,RES-HYBR,,MAR-LAA,","OPEX-F","RES-HYBR","","MAR-LAA","",23.566877518922464,"USD2021/kW"]
[null,"OPEX-F,RES-HYBR,,MAR-LOR,","OPEX-F","RES-HYBR","","MAR-LOR","",23.566877518922464,"USD2021/kW"]
[null,"OPEX-F,RES-HYBR,,MAR-MAR,","OPEX-F","RES-HYBR","","MAR-MAR","",23.566877518922464,"USD2021/kW"]
[null,"OPEX-F,RES-HYBR,,MAR-RAB,","OPEX-F","RES-HYBR","","MAR-RAB","",23.566877518922464,"USD2021/kW"]
[null,"OPEX-F,RES-HYBR,,MAR-SOU,","OPEX-F","RES-HYBR","","MAR-SOU","",23.566877518922464,"USD2021/kW"]
[null,"OPEX-F,RES-HYBR,,MAR-TAN,","OPEX-F","RES-HYBR","","MAR-TAN","",23.566877518922464,"USD2021/kW"]
[null,"OPEX-F,RES-HYBR,,MEX,","OPEX-F","RES-HYBR","","MEX","",20.301812769911546,"USD2021/kW"]
[null,"OPEX-F,RES-HYBR,,MRT,","OPEX-F","RES-HYBR","","MRT","",24.919341691951281,"USD2021/kW"]
[null,"OPEX-F,RES-HYBR,,NAM,","OPEX-F","RES-HYBR","","NAM","",24.919341691951281,"USD2021/kW"]
[null,"OPEX-F,RES-HYBR,,NOR,","OPEX-F","RES-HYBR","","NOR","",20.643719505124583,"USD2021/kW"]
[null,"OPEX-F,RES-HYBR,,PER,","OPEX-F","RES-HYBR","","PER","",18.804679726567493,"USD2021/kW"]
[null,"OPEX-F,RES-HYBR,,PRT,","OPEX-F","RES-HYBR","","PRT","",23.644001686368899,"USD2021/kW"]
[null,"OPEX-F,RES-HYBR,,RUS,","OPEX-F","RES-HYBR","","RUS","",26.662451446635334,"USD2021/kW"]
[null,"OPEX-F,RES-HYBR,,SAU,","OPEX-F","RES-HYBR","","SAU","",21.870600047017842,"USD2021/kW"]
[null,"OPEX-F,RES-HYBR,,SWE,","OPEX-F","RES-HYBR","","SWE","",21.815220162043907,"USD2021/kW"]
[null,"OPEX-F,RES-HYBR,,THA,","OPEX-F","RES-HYBR","","THA","",22.327346505339474,"USD2021/kW"]
[null,"OPEX-F,RES-HYBR,,TUN,","OPEX-F","RES-HYBR","","TUN","",24.919341691951281,"USD2021/kW"]
[null,"OPEX-F,RES-HYBR,,UKR,","OPEX-F","RES-HYBR","","UKR","",20.643719505124583,"USD2021/kW"]
[null,"OPEX-F,RES-HYBR,,URY,","OPEX-F","RES-HYBR","","URY","",28.32907531127745,"USD2021/kW"]
[null,"OPEX-F,RES-HYBR,,USA,","OPEX-F","RES-HYBR","","USA","",21.401979804840973,"USD2021/kW"]
[null,"OPEX-F,RES-HYBR,,VNM,","OPEX-F","RES-HYBR","","VNM","",29.042045392559995,"USD2021/kW"]
[null,"OPEX-F,RES-HYBR,,ZAF,","OPEX-F","RES-HYBR","","ZAF","",23.566877518922464,"USD2021/kW"]
[null,"OPEX-F,RES-HYBR,,ZAF-EC,","OPEX-F","RES-HYBR","","ZAF-EC","",23.566877518922464,"USD2021/kW"]
[null,"OPEX-F,RES-HYBR,,ZAF-FRS,","OPEX-F","RES-HYBR","","ZAF-FRS","",23.566877518922464,"USD2021/kW"]
[null,"OPEX-F,RES-HYBR,,ZAF-GAU,","OPEX-F","RES-HYBR","","ZAF-GAU","",23.566877518922464,"USD2021/kW"]
[null,"OPEX-F,RES-HYBR,,ZAF-KWA,","OPEX-F","RES-HYBR","","ZAF-KWA","",23.566877518922464,"USD2021/kW"]
[null,"OPEX-F,RES-HYBR,,ZAF-LIM,","OPEX-F","RES-HYBR","","ZAF-LIM","",23.566877518922464,"USD2021/kW"]
[null,"OPEX-F,RES-HYBR,,ZAF-MPU,","OPEX-F","RES-HYBR","","ZAF-MPU","",23.566877518922464,"USD2021/kW"]
[null,"OPEX-F,RES-HYBR,,ZAF-NC,","OPEX-F","RES-HYBR","","ZAF-NC","",23.566877518922464,"USD2021/kW"]
[null,"OPEX-F,RES-HYBR,,ZAF-NW,","OPEX-F","RES-HYBR","","ZAF-NW","",23.566877518922464,"USD2021/kW"]
[null,"OPEX-F,RES-HYBR,,ZAF-WC,","OPEX-F","RES-HYBR","","ZAF-WC","",23.566877518922464,"USD2021/kW"]
[null,"OPEX-F,SOEC-EL,,,","OPEX-F","SOEC-EL","","","",38.190666935046956,"USD2021/kW"]
[null,"OPEX-F,WIND-OFF,,ARE,","OPEX-F","WIND-OFF","","ARE","",108.54387831377963,"USD2021/kW"]
[null,"OPEX-F,WIND-OFF,,ARG,","OPEX-F","WIND-OFF","","ARG","",108.54387831377963,"USD2021/kW"]
[null,"OPEX-F,WIND-OFF,,ARG-BA,","OPEX-F","WIND-OFF","","ARG-BA","",108.54387831377963,"USD2021/kW"]
[null,"OPEX-F,WIND-OFF,,ARG-CAT,","OPEX-F","WIND-OFF","","ARG-CAT","",108.54387831377963,"USD2021/kW"]
[null,"OPEX-F,WIND-OFF,,ARG-CBA,","OPEX-F","WIND-OFF","","ARG-CBA","",108.54387831377963,"USD2021/kW"]
[null,"OPEX-F,WIND-OFF,,ARG-CHA,","OPEX-F","WIND-OFF","","ARG-CHA","",108.54387831377963,"USD2021/kW"]
[null,"OPEX-F,WIND-OFF,,ARG-CHU,","OPEX-F","WIND-OFF","","ARG-CHU","",108.54387831377963,"USD2021/kW"]
[null,"OPEX-F,WIND-OFF,,ARG-COR,","OPEX-F","WIND-OFF","","ARG-COR","",108.54387831377963,"USD2021/kW"]
[null,"OPEX-F,WIND-OFF,,ARG-CRB,","OPEX-F","WIND-OFF","","ARG-CRB","",108.54387831377963,"USD2021/kW"]
[null,"OPEX-F,WIND-OFF,,ARG-CRU,","OPEX-F","WIND-OFF","","ARG-CRU","",108.54387831377963,"USD2021/kW"]
[null,"OPEX-F,WIND-OFF,,ARG-EST,","OPEX-F","WIND-OFF","","ARG-EST","",108.54387831377963,"USD2021/kW"]
[null,"OPEX-F,WIND-OFF,,ARG-FOR,","OPEX-F","WIND-OFF","","ARG-FOR","",108.54387831377963,"USD2021/kW"]
[null,"OPEX-F,WIND-OFF,,ARG-FUE,","OPEX-F","WIND-OFF","","ARG-FUE","",108.54387831377963,"USD2021/kW"]
[null,"OPEX-F,WIND-OFF,,ARG-JUJ,","OPEX-F","WIND-OFF","","ARG-JUJ","",108.54387831377963,"USD2021/kW"]
[null,"OPEX-F,WIND-OFF,,ARG-LAR,","OPEX-F","WIND-OFF","","ARG-LAR","",108.54387831377963,"USD2021/kW"]
[null,"OPEX-F,WIND-OFF,,ARG-MEN,","OPEX-F","WIND-OFF","","ARG-MEN","",108.54387831377963,"USD2021/kW"]
[null,"OPEX-F,WIND-OFF,,ARG-MIS,","OPEX-F","WIND-OFF","","ARG-MIS","",108.54387831377963,"USD2021/kW"]
[null,"OPEX-F,WIND-OFF,,ARG-NEG,","OPEX-F","WIND-OFF","","ARG-NEG","",108.54387831377963,"USD2021/kW"]
[null,"OPEX-F,WIND-OFF,,ARG-NEU,","OPEX-F","WIND-OFF","","ARG-NEU","",108.54387831377963,"USD2021/kW"]
[null,"OPEX-F,WIND-OFF,,ARG-PAM,","OPEX-F","WIND-OFF","","ARG-PAM","",108.54387831377963,"USD2021/kW"]
[null,"OPEX-F,WIND-OFF,,ARG-RIO,","OPEX-F","WIND-OFF","","ARG-RIO","",108.54387831377963,"USD2021/kW"]
[null,"OPEX-F,WIND-OFF,,ARG-SAF,","OPEX-F","WIND-OFF","","ARG-SAF","",108.54387831377963,"USD2021/kW"]
[null,"OPEX-F,WIND-OFF,,ARG-SAJ,","OPEX-F","WIND-OFF","","ARG-SAJ","",108.54387831377963,"USD2021/kW"]
[null,"OPEX-F,WIND-OFF,,ARG-SAL,","OPEX-F","WIND-OFF","","ARG-SAL","",108.54387831377963,"USD2021/kW"]
[null,"OPEX-F,WIND-OFF,,ARG-SAT,","OPEX-F","WIND-OFF","","ARG-SAT","",108.54387831377963,"USD2021/kW"]
[null,"OPEX-F,WIND-OFF,,ARG-TUC,","OPEX-F","WIND-OFF","","ARG-TUC","",108.54387831377963,"USD2021/kW"]
[null,"OPEX-F,WIND-OFF,,AUS,","OPEX-F","WIND-OFF","","AUS","",108.54387831377963,"USD2021/kW"]
[null,"OPEX-F,WIND-OFF,,BRA,","OPEX-F","WIND-OFF","","BRA","",108.54387831377963,"USD2021/kW"]
[null,"OPEX-F,WIND-OFF,,CHL,","OPEX-F","WIND-OFF","","CHL","",108.54387831377963,"USD2021/kW"]
[null,"OPEX-F,WIND-OFF,,CHN,","OPEX-F","WIND-OFF","","CHN","",90.453231928149691,"USD2021/kW"]
[null,"OPEX-F,WIND-OFF,,COL,","OPEX-F","WIND-OFF","","COL","",108.54387831377963,"USD2021/kW"]
[null,"OPEX-F,WIND-OFF,,CRI,","OPEX-F","WIND-OFF","","CRI","",108.54387831377963,"USD2021/kW"]
[null,"OPEX-F,WIND-OFF,,DNK,","OPEX-F","WIND-OFF","","DNK","",72.470230270750662,"USD2021/kW"]
[null,"OPEX-F,WIND-OFF,,DZA,","OPEX-F","WIND-OFF","","DZA","",108.54387831377963,"USD2021/kW"]
[null,"OPEX-F,WIND-OFF,,EGY,","OPEX-F","WIND-OFF","","EGY","",108.54387831377963,"USD2021/kW"]
[null,"OPEX-F,WIND-OFF,,ESP,","OPEX-F","WIND-OFF","","ESP","",108.54387831377963,"USD2021/kW"]
[null,"OPEX-F,WIND-OFF,,IDN,","OPEX-F","WIND-OFF","","IDN","",108.54387831377963,"USD2021/kW"]
[null,"OPEX-F,WIND-OFF,,IND,","OPEX-F","WIND-OFF","","IND","",108.54387831377963,"USD2021/kW"]
[null,"OPEX-F,WIND-OFF,,JOR,","OPEX-F","WIND-OFF","","JOR","",108.54387831377963,"USD2021/kW"]
[null,"OPEX-F,WIND-OFF,,KAZ,","OPEX-F","WIND-OFF","","KAZ","",108.54387831377963,"USD2021/kW"]
[null,"OPEX-F,WIND-OFF,,KEN,","OPEX-F","WIND-OFF","","KEN","",108.54387831377963,"USD2021/kW"]
[null,"OPEX-F,WIND-OFF,,MAR,","OPEX-F","WIND-OFF","","MAR","",108.54387831377963,"USD2021/kW"]
[null,"OPEX-F,WIND-OFF,,MAR-BEN,","OPEX-F","WIND-OFF","","MAR-BEN","",108.54387831377963,"USD2021/kW"]
[null,"OPEX-F,WIND-OFF,,MAR-CAS,","OPEX-F","WIND-OFF","","MAR-CAS","",108.54387831377963,"USD2021/kW"]
[null,"OPEX-F,WIND-OFF,,MAR-DAK,","OPEX-F","WIND-OFF","","MAR-DAK","",108.54387831377963,"USD2021/kW"]
[null,"OPEX-F,WIND-OFF,,MAR-DRA,","OPEX-F","WIND-OFF","","MAR-DRA","",108.54387831377963,"USD2021/kW"]
[null,"OPEX-F,WIND-OFF,,MAR-FES,","OPEX-F","WIND-OFF","","MAR-FES","",108.54387831377963,"USD2021/kW"]
[null,"OPEX-F,WIND-OFF,,MAR-GUE,","OPEX-F","WIND-OFF","","MAR-GUE","",108.54387831377963,"USD2021/kW"]
[null,"OPEX-F,WIND-OFF,,MAR-LAA,","OPEX-F","WIND-OFF","","MAR-LAA","",108.54387831377963,"USD2021/kW"]
[null,"OPEX-F,WIND-OFF,,MAR-LOR,","OPEX-F","WIND-OFF","","MAR-LOR","",108.54387831377963,"USD2021/kW"]
[null,"OPEX-F,WIND-OFF,,MAR-MAR,","OPEX-F","WIND-OFF","","MAR-MAR","",108.54387831377963,"USD2021/kW"]
[null,"OPEX-F,WIND-OFF,,MAR-RAB,","OPEX-F","WIND-OFF","","MAR-RAB","",108.54387831377963,"USD2021/kW"]
[null,"OPEX-F,WIND-OFF,,MAR-SOU,","OPEX-F","WIND-OFF","","MAR-SOU","",108.54387831377963,"USD2021/kW"]
[null,"OPEX-F,WIND-OFF,,MAR-TAN,","OPEX-F","WIND-OFF","","MAR-TAN","",108.54387831377963,"USD2021/kW"]
[null,"OPEX-F,WIND-OFF,,MEX,","OPEX-F","WIND-OFF","","MEX","",108.54387831377963,"USD2021/kW"]
[null,"OPEX-F,WIND-OFF,,MRT,","OPEX-F","WIND-OFF","","MRT","",108.54387831377963,"USD2021/kW"]
[null,"OPEX-F,WIND-OFF,,NAM,","OPEX-F","WIND-OFF","","NAM","",108.54387831377963,"USD2021/kW"]
[null,"OPEX-F,WIND-OFF,,NOR,","OPEX-F","WIND-OFF","","NOR","",108.54387831377963,"USD2021/kW"]
[null,"OPEX-F,WIND-OFF,,PER,","OPEX-F","WIND-OFF","","PER","",108.54387831377963,"USD2021/kW"]
[null,"OPEX-F,WIND-OFF,,PRT,","OPEX-F","WIND-OFF","","PRT","",108.54387831377963,"USD2021/kW"]
[null,"OPEX-F,WIND-OFF,,RUS,","OPEX-F","WIND-OFF","","RUS","",108.54387831377963,"USD2021/kW"]
[null,"OPEX-F,WIND-OFF,,SAU,","OPEX-F","WIND-OFF","","SAU","",108.54387831377963,"USD2021/kW"]
[null,"OPEX-F,WIND-OFF,,SWE,","OPEX-F","WIND-OFF","","SWE","",108.54387831377963,"USD2021/kW"]
[null,"OPEX-F,WIND-OFF,,THA,","OPEX-F","WIND-OFF","","THA","",108.54387831377963,"USD2021/kW"]
[null,"OPEX-F,WIND-OFF,,TUN,","OPEX-F","WIND-OFF","","TUN","",108.54387831377963,"USD2021/kW"]
[null,"OPEX-F,WIND-OFF,,UKR,","OPEX-F","WIND-OFF","","UKR","",108.54387831377963,"USD2021/kW"]
[null,"OPEX-F,WIND-OFF,,URY,","OPEX-F","WIND-OFF","","URY","",108.54387831377963,"USD2021/kW"]
[null,"OPEX-F,WIND-OFF,,USA,","OPEX-F","WIND-OFF","","USA","",108.54387831377963,"USD2021/kW"]
[null,"OPEX-F,WIND-OFF,,VNM,","OPEX-F","WIND-OFF","","VNM","",108.54387831377963,"USD2021/kW"]
[null,"OPEX-F,WIND-OFF,,ZAF,","OPEX-F","WIND-OFF","","ZAF","",108.54387831377963,"USD2021/kW"]
[null,"OPEX-F,WIND-OFF,,ZAF-EC,","OPEX-F","WIND-OFF","","ZAF-EC","",108.54387831377963,"USD2021/kW"]
[null,"OPEX-F,WIND-OFF,,ZAF-FRS,","OPEX-F","WIND-OFF","","ZAF-FRS","",108.54387831377963,"USD2021/kW"]
[null,"OPEX-F,WIND-OFF,,ZAF-GAU,","OPEX-F","WIND-OFF","","ZAF-GAU","",108.54387831377963,"USD2021/kW"]
[null,"OPEX-F,WIND-OFF,,ZAF-KWA,","OPEX-F","WIND-OFF","","ZAF-KWA","",108.54387831377963,"USD2021/kW"]
[null,"OPEX-F,WIND-OFF,,ZAF-LIM,","OPEX-F","WIND-OFF","","ZAF-LIM","",108.54387831377963,"USD2021/kW"]
[null,"OPEX-F,WIND-OFF,,ZAF-MPU,","OPEX-F","WIND-OFF","","ZAF-MPU","",108.54387831377963,"USD2021/kW"]
[null,"OPEX-F,WIND-OFF,,ZAF-NC,","OPEX-F","WIND-OFF","","ZAF-NC","",108.54387831377963,"USD2021/kW"]
[null,"OPEX-F,WIND-OFF,,ZAF-NW,","OPEX-F","WIND-OFF","","ZAF-NW","",108.54387831377963,"USD2021/kW"]
[null,"OPEX-F,WIND-OFF,,ZAF-WC,","OPEX-F","WIND-OFF","","ZAF-WC","",108.54387831377963,"USD2021/kW"]
[null,"OPEX-F,WIND-ON,,ARE,","OPEX-F","WIND-ON","","ARE","",41.202535299455249,"USD2021/kW"]
[null,"OPEX-F,WIND-ON,,ARG,","OPEX-F","WIND-ON","","ARG","",46.669538365078765,"USD2021/kW"]
[null,"OPEX-F,WIND-ON,,ARG-BA,","OPEX-F","WIND-ON","","ARG-BA","",46.669538365078765,"USD2021/kW"]
[null,"OPEX-F,WIND-ON,,ARG-CAT,","OPEX-F","WIND-ON","","ARG-CAT","",46.669538365078765,"USD2021/kW"]
[null,"OPEX-F,WIND-ON,,ARG-CBA,","OPEX-F","WIND-ON","","ARG-CBA","",46.669538365078765,"USD2021/kW"]
[null,"OPEX-F,WIND-ON,,ARG-CHA,","OPEX-F","WIND-ON","","ARG-CHA","",46.669538365078765,"USD2021/kW"]
[null,"OPEX-F,WIND-ON,,ARG-CHU,","OPEX-F","WIND-ON","","ARG-CHU","",46.669538365078765,"USD2021/kW"]
[null,"OPEX-F,WIND-ON,,ARG-COR,","OPEX-F","WIND-ON","","ARG-COR","",46.669538365078765,"USD2021/kW"]
[null,"OPEX-F,WIND-ON,,ARG-CRB,","OPEX-F","WIND-ON","","ARG-CRB","",46.669538365078765,"USD2021/kW"]
[null,"OPEX-F,WIND-ON,,ARG-CRU,","OPEX-F","WIND-ON","","ARG-CRU","",46.669538365078765,"USD2021/kW"]
[null,"OPEX-F,WIND-ON,,ARG-EST,","OPEX-F","WIND-ON","","ARG-EST","",46.669538365078765,"USD2021/kW"]
[null,"OPEX-F,WIND-ON,,ARG-FOR,","OPEX-F","WIND-ON","","ARG-FOR","",46.669538365078765,"USD2021/kW"]
[null,"OPEX-F,WIND-ON,,ARG-FUE,","OPEX-F","WIND-ON","","ARG-FUE","",46.669538365078765,"USD2021/kW"]
[null,"OPEX-F,WIND-ON,,ARG-JUJ,","OPEX-F","WIND-ON","","ARG-JUJ","",46.669538365078765,"USD2021/kW"]
[null,"OPEX-F,WIND-ON,,ARG-LAR,","OPEX-F","WIND-ON","","ARG-LAR","",46.669538365078765,"USD2021/kW"]
[null,"OPEX-F,WIND-ON,,ARG-MEN,","OPEX-F","WIND-ON","","ARG-MEN","",46.669538365078765,"USD2021/kW"]
[null,"OPEX-F,WIND-ON,,ARG-MIS,","OPEX-F","WIND-ON","","ARG-MIS","",46.669538365078765,"USD2021/kW"]
[null,"OPEX-F,WIND-ON,,ARG-NEG,","OPEX-F","WIND-ON","","ARG-NEG","",46.669538365078765,"USD2021/kW"]
[null,"OPEX-F,WIND-ON,,ARG-NEU,","OPEX-F","WIND-ON","","ARG-NEU","",46.669538365078765,"USD2021/kW"]
[null,"OPEX-F,WIND-ON,,ARG-PAM,","OPEX-F","WIND-ON","","ARG-PAM","",46.669538365078765,"USD2021/kW"]
[null,"OPEX-F,WIND-ON,,ARG-RIO,","OPEX-F","WIND-ON","","ARG-RIO","",46.669538365078765,"USD2021/kW"]
[null,"OPEX-F,WIND-ON,,ARG-SAF,","OPEX-F","WIND-ON","","ARG-SAF","",46.669538365078765,"USD2021/kW"]
[null,"OPEX-F,WIND-ON,,ARG-SAJ,","OPEX-F","WIND-ON","","ARG-SAJ","",46.669538365078765,"USD2021/kW"]
[null,"OPEX-F,WIND-ON,,ARG-SAL,","OPEX-F","WIND-ON","","ARG-SAL","",46.669538365078765,"USD2021/kW"]
[null,"OPEX-F,WIND-ON,,ARG-SAT,","OPEX-F","WIND-ON","","ARG-SAT","",46.669538365078765,"USD2021/kW"]
[null,"OPEX-F,WIND-ON,,ARG-TUC,","OPEX-F","WIND-ON","","ARG-TUC","",46.669538365078765,"USD2021/kW"]
[null,"OPEX-F,WIND-ON,,AUS,","OPEX-F","WIND-ON","","AUS","",46.669538365078765,"USD2021/kW"]
[null,"OPEX-F,WIND-ON,,BRA,","OPEX-F","WIND-ON","","BRA","",30.668553782766047,"USD2021/kW"]
[null,"OPEX-F,WIND-ON,,CHL,","OPEX-F","WIND-ON","","CHL","",46.669538365078765,"USD2021/kW"]
[null,"OPEX-F,WIND-ON,,CHN,","OPEX-F","WIND-ON","","CHN","",30.85523193622636,"USD2021/kW"]
[null,"OPEX-F,WIND-ON,,COL,","OPEX-F","WIND-ON","","COL","",43.344000000000001,"USD2021/kW"]
[null,"OPEX-F,WIND-ON,,CRI,","OPEX-F","WIND-ON","","CRI","",42.215930989668394,"USD2021/kW"]
[null,"OPEX-F,WIND-ON,,DNK,","OPEX-F","WIND-ON","","DNK","",43.282663295155899,"USD2021/kW"]
[null,"OPEX-F,WIND-ON,,DZA,","OPEX-F","WIND-ON","","DZA","",50.456438049559438,"USD2021/kW"]
[null,"OPEX-F,WIND-ON,,EGY,","OPEX-F","WIND-ON","","EGY","",40.002461455781798,"USD2021/kW"]
[null,"OPEX-F,WIND-ON,,ESP,","OPEX-F","WIND-ON","","ESP","",31.243283515972124,"USD2021/kW"]
[null,"OPEX-F,WIND-ON,,IDN,","OPEX-F","WIND-ON","","IDN","",60.003692183672698,"USD2021/kW"]
[null,"OPEX-F,WIND-ON,,IND,","OPEX-F","WIND-ON","","IND","",24.694852872035963,"USD2021/kW"]
[null,"OPEX-F,WIND-ON,,JOR,","OPEX-F","WIND-ON","","JOR","",50.456438049559438,"USD2021/kW"]
[null,"OPEX-F,WIND-ON,,KAZ,","OPEX-F","WIND-ON","","KAZ","",40.002461455781798,"USD2021/kW"]
[null,"OPEX-F,WIND-ON,,KEN,","OPEX-F","WIND-ON","","KEN","",50.456438049559438,"USD2021/kW"]
[null,"OPEX-F,WIND-ON,,MAR,","OPEX-F","WIND-ON","","MAR","",46.669538365078765,"USD2021/kW"]
[null,"OPEX-F,WIND-ON,,MAR-BEN,","OPEX-F","WIND-ON","","MAR-BEN","",46.669538365078765,"USD2021/kW"]
[null,"OPEX-F,WIND-ON,,MAR-CAS,","OPEX-F","WIND-ON","","MAR-CAS","",46.669538365078765,"USD2021/kW"]
[null,"OPEX-F,WIND-ON,,MAR-DAK,","OPEX-F","WIND-ON","","MAR-DAK","",46.669538365078765,"USD2021/kW"]
[null,"OPEX-F,WIND-ON,,MAR-DRA,","OPEX-F","WIND-ON","","MAR-DRA","",46.669538365078765,"USD2021/kW"]
[null,"OPEX-F,WIND-ON,,MAR-FES,","OPEX-F","WIND-ON","","MAR-FES","",46.669538365078765,"USD2021/kW"]
[null,"OPEX-F,WIND-ON,,MAR-GUE,","OPEX-F","WIND-ON","","MAR-GUE","",46.669538365078765,"USD2021/kW"]
[null,"OPEX-F,WIND-ON,,MAR-LAA,","OPEX-F","WIND-ON","","MAR-LAA","",46.669538365078765,"USD2021/kW"]
[null,"OPEX-F,WIND-ON,,MAR-LOR,","OPEX-F","WIND-ON","","MAR-LOR","",46.669538365078765,"USD2021/kW"]
[null,"OPEX-F,WIND-ON,,MAR-MAR,","OPEX-F","WIND-ON","","MAR-MAR","",46.669538365078765,"USD2021/kW"]
[null,"OPEX-F,WIND-ON,,MAR-RAB,","OPEX-F","WIND-ON","","MAR-RAB","",46.669538365078765,"USD2021/kW"]
[null,"OPEX-F,WIND-ON,,MAR-SOU,","OPEX-F","WIND-ON","","MAR-SOU","",46.669538365078765,"USD2021/kW"]
[null,"OPEX-F,WIND-ON,,MAR-TAN,","OPEX-F","WIND-ON","","MAR-TAN","",46.669538365078765,"USD2021/kW"]
[null,"OPEX-F,WIND-ON,,MEX,","OPEX-F","WIND-ON","","MEX","",39.240541907391524,"USD2021/kW"]
[null,"OPEX-F,WIND-ON,,MRT,","OPEX-F","WIND-ON","","MRT","",50.456438049559438,"USD2021/kW"]
[null,"OPEX-F,WIND-ON,,NAM,","OPEX-F","WIND-ON","","NAM","",50.456438049559438,"USD2021/kW"]
[null,"OPEX-F,WIND-ON,,NOR,","OPEX-F","WIND-ON","","NOR","",40.002461455781798,"USD2021/kW"]
[null,"OPEX-F,WIND-ON,,PER,","OPEX-F","WIND-ON","","PER","",33.335384546484832,"USD2021/kW"]
[null,"OPEX-F,WIND-ON,,PRT,","OPEX-F","WIND-ON","","PRT","",46.669538365078765,"USD2021/kW"]
[null,"OPEX-F,WIND-ON,,RUS,","OPEX-F","WIND-ON","","RUS","",40.002461455781798,"USD2021/kW"]
[null,"OPEX-F,WIND-ON,,SAU,","OPEX-F","WIND-ON","","SAU","",41.202535299455249,"USD2021/kW"]
[null,"OPEX-F,WIND-ON,,SWE,","OPEX-F","WIND-ON","","SWE","",43.282663295155899,"USD2021/kW"]
[null,"OPEX-F,WIND-ON,,THA,","OPEX-F","WIND-ON","","THA","",41.202535299455249,"USD2021/kW"]
[null,"OPEX-F,WIND-ON,,TUN,","OPEX-F","WIND-ON","","TUN","",50.456438049559438,"USD2021/kW"]
[null,"OPEX-F,WIND-ON,,UKR,","OPEX-F","WIND-ON","","UKR","",40.002461455781798,"USD2021/kW"]
[null,"OPEX-F,WIND-ON,,URY,","OPEX-F","WIND-ON","","URY","",60.003692183672698,"USD2021/kW"]
[null,"OPEX-F,WIND-ON,,USA,","OPEX-F","WIND-ON","","USA","",36.847935909117744,"USD2021/kW"]
[null,"OPEX-F,WIND-ON,,VNM,","OPEX-F","WIND-ON","","VNM","",60.003692183672698,"USD2021/kW"]
[null,"OPEX-F,WIND-ON,,ZAF,","OPEX-F","WIND-ON","","ZAF","",46.669538365078765,"USD2021/kW"]
[null,"OPEX-F,WIND-ON,,ZAF-EC,","OPEX-F","WIND-ON","","ZAF-EC","",46.669538365078765,"USD2021/kW"]
[null,"OPEX-F,WIND-ON,,ZAF-FRS,","OPEX-F","WIND-ON","","ZAF-FRS","",46.669538365078765,"USD2021/kW"]
[null,"OPEX-F,WIND-ON,,ZAF-GAU,","OPEX-F","WIND-ON","","ZAF-GAU","",46.669538365078765,"USD2021/kW"]
[null,"OPEX-F,WIND-ON,,ZAF-KWA,","OPEX-F","WIND-ON","","ZAF-KWA","",46.669538365078765,"USD2021/kW"]
[null,"OPEX-F,WIND-ON,,ZAF-LIM,","OPEX-F","WIND-ON","","ZAF-LIM","",46.669538365078765,"USD2021/kW"]
[null,"OPEX-F,WIND-ON,,ZAF-MPU,","OPEX-F","WIND-ON","","ZAF-MPU","",46.669538365078765,"USD2021/kW"]
[null,"OPEX-F,WIND-ON,,ZAF-NC,","OPEX-F","WIND-ON","","ZAF-NC","",46.669538365078765,"USD2021/kW"]
[null,"OPEX-F,WIND-ON,,ZAF-NW,","OPEX-F","WIND-ON","","ZAF-NW","",46.669538365078765,"USD2021/kW"]
[null,"OPEX-F,WIND-ON,,ZAF-WC,","OPEX-F","WIND-ON","","ZAF-WC","",46.669538365078765,"USD2021/kW"]
[null,"OPEX-O,ATR,,,","OPEX-O","ATR","","","",9.1464146414641494E-3,"USD2021/kWh","George et al. (2022)"]
[null,"OPEX-O,CH3OH-S,,,","OPEX-O","CH3OH-S","","","",1.0849036835729676E-4,"USD2021/kWh","UNSW Sydney 2021"]
[null,"OPEX-O,CH3OH-SB,,,","OPEX-O","CH3OH-SB","","","",1.0849036835729676E-4,"USD2021/kWh","UNSW Sydney 2021"]
[null,"OPEX-O,CH4-S,,,","OPEX-O","CH4-S","","","",3.3042876189725266E-4,"USD2021/kWh","UNSW Sydney 2021"]
[null,"OPEX-O,CH4-SB,,,","OPEX-O","CH4-SB","","","",3.3042876189725266E-4,"USD2021/kWh","UNSW Sydney 2021"]
[null,"OPEX-O,DRI,,,","OPEX-O","DRI","","","",0.26656892307692304,"USD2021/kg DRI (s)","Agora Industry Transformation 2021"]
[null,"OPEX-O,H2-S,,,","OPEX-O","H2-S","","","",1.9557894682818507E-3,"USD2021/kWh","UNSW Sydney 2021"]
[null,"OPEX-O,H2-SB,,,","OPEX-O","H2-SB","","","",1.9557894682818507E-3,"USD2021/kWh","UNSW Sydney 2021"]
[null,"OPEX-O,LOHC-S,,,","OPEX-O","LOHC-S","","","",1.5378717307752301E-2,"USD2021/kWh","UNSW Sydney 2021"]
[null,"OPEX-O,LOHC-SB,,,","OPEX-O","LOHC-SB","","","",1.5378717307752301E-2,"USD2021/kWh","UNSW Sydney 2021"]
[null,"OPEX-O,NH3-S,,,","OPEX-O","NH3-S","","","",4.2087134757005104E-4,"USD2021/kWh","UNSW Sydney 2021"]
[null,"OPEX-O,NH3-SB,,,","OPEX-O","NH3-SB","","","",4.2087134757005104E-4,"USD2021/kWh","UNSW Sydney 2021"]
[null,"OPEX-O,REGASATR,,,","OPEX-O","REGASATR","","","",9.1464146414641494E-3,"USD2021/kWh","combined values"]
[null,"OPEX-O,SYN-S,,,","OPEX-O","SYN-S","","","",4.5028839113694242E-5,"USD2021/kWh","UNSW Sydney 2021"]
[null,"OPEX-O,SYN-SB,,,","OPEX-O","SYN-SB","","","",4.5028839113694242E-5,"USD2021/kWh","UNSW Sydney 2021"]
[null,"OPEX-T,CH3OH-S,,,","OPEX-T","CH3OH-S","","","",1.0848168982211098E-7,"USD2021/(kWh*km)","calc_shipping"]
[null,"OPEX-T,CH3OH-SB,,,","OPEX-T","CH3OH-SB","","","",1.0848168982211098E-7,"USD2021/(kWh*km)","calc_shipping"]
[null,"OPEX-T,CH4-P-L,,,","OPEX-T","CH4-P-L","","","",2.7651437055456481E-6,"USD2021/(kWh*km)"]
[null,"OPEX-T,CH4-P-LR,,,","OPEX-T","CH4-P-LR","","","",8.624381235013173E-7,"USD2021/(kWh*km)"]
[null,"OPEX-T,CH4-P-S,,,","OPEX-T","CH4-P-S","","","",3.3181724466547807E-6,"USD2021/(kWh*km)"]
[null,"OPEX-T,CH4-P-SR,,,","OPEX-T","CH4-P-SR","","","",8.624381235013173E-7,"USD2021/(kWh*km)"]
[null,"OPEX-T,CH4-S,,,","OPEX-T","CH4-S","","","",2.5415563823913519E-7,"USD2021/(kWh*km)","calc_shipping"]
[null,"OPEX-T,CH4-SB,,,","OPEX-T","CH4-SB","","","",2.5415563823913519E-7,"USD2021/(kWh*km)","calc_shipping"]
[null,"OPEX-T,DRI-SB,,,","OPEX-T","DRI-SB","","","",3.262896862987803E-7,"USD2021/(kg*km)","calc_shipping"]
[null,"OPEX-T,H2-P-L,,,","OPEX-T","H2-P-L","","","",8.8738982865209894E-6,"USD2021/(kWh*km)","Guidehouse 2022"]
[null,"OPEX-T,H2-P-LR,,,","OPEX-T","H2-P-LR","","","",3.0424794125214817E-6,"USD2021/(kWh*km)","Guidehouse 2022"]
[null,"OPEX-T,H2-P-S,,,","OPEX-T","H2-P-S","","","",1.5212397062607411E-5,"USD2021/(kWh*km)","Guidehouse 2022"]
[null,"OPEX-T,H2-P-SR,,,","OPEX-T","H2-P-SR","","","",3.8030992656518527E-6,"USD2021/(kWh*km)","Guidehouse 2022"]
[null,"OPEX-T,H2-S,,,","OPEX-T","H2-S","","","",1.5043330904926455E-6,"USD2021/(kWh*km)","calc_shipping"]
[null,"OPEX-T,H2-SB,,,","OPEX-T","H2-SB","","","",1.5043330904926455E-6,"USD2021/(kWh*km)","calc_shipping"]
[null,"OPEX-T,LOHC-S,,,","OPEX-T","LOHC-S","","","",1.3493717175603379E-6,"USD2021/(kWh*km)","calc_shipping"]
[null,"OPEX-T,LOHC-SB,,,","OPEX-T","LOHC-SB","","","",1.3493717175603379E-6,"USD2021/(kWh*km)","calc_shipping"]
[null,"OPEX-T,NH3-S,,,","OPEX-T","NH3-S","","","",3.2372129273508194E-7,"USD2021/(kWh*km)","calc_shipping"]
[null,"OPEX-T,NH3-SB,,,","OPEX-T","NH3-SB","","","",3.2372129273508194E-7,"USD2021/(kWh*km)","calc_shipping"]
[null,"OPEX-T,SYN-S,,,","OPEX-T","SYN-S","","","",4.502523709472666E-8,"USD2021/(kWh*km)","calc_shipping"]
[null,"OPEX-T,SYN-SB,,,","OPEX-T","SYN-SB","","","",4.502523709472666E-8,"USD2021/(kWh*km)","calc_shipping"]
[null,"SEASHARE,,,ARE,CHN","SEASHARE","","","ARE","CHN",0.11111111111111099,null,"Research Susanne Krieger"]
[null,"SEASHARE,,,ARE,IND","SEASHARE","","","ARE","IND",0.65,null,"Research Susanne Krieger"]
[null,"SEASHARE,,,CHN,JPN","SEASHARE","","","CHN","JPN",0.28571428571428598,null,"Research Susanne Krieger"]
[null,"SEASHARE,,,CHN,KOR","SEASHARE","","","CHN","KOR",0.4,null,"Research Susanne Krieger"]
[null,"SEASHARE,,,COL,USA","SEASHARE","","","COL","USA",0.64444444444444404,"km","Research Susanne Krieger"]
[null,"SEASHARE,,,CRI,USA","SEASHARE","","","CRI","USA",0.14285714285714299,null,"Research Susanne Krieger"]
[null,"SEASHARE,,,DNK,FRA","SEASHARE","","","DNK","FRA",0.5,null,"Research Susanne Krieger"]
[null,"SEASHARE,,,DNK,NLD","SEASHARE","","","DNK","NLD",1,null,"Research Susanne Krieger"]
[null,"SEASHARE,,,DZA,DEU","SEASHARE","","","DZA","DEU",0.1,null,"Research Susanne Krieger"]
[null,"SEASHARE,,,DZA,ESP","SEASHARE","","","DZA","ESP",0.27741832232496999,null,"Research Susanne Krieger"]
[null,"SEASHARE,,,DZA,FRA","SEASHARE","","","DZA","FRA",0.15,null,"Research Susanne Krieger"]
[null,"SEASHARE,,,DZA,NLD","SEASHARE","","","DZA","NLD",0.133333333333333,null,"Research Susanne Krieger"]
[null,"SEASHARE,,,EGY,ESP","SEASHARE","","","EGY","ESP",0.155555555555556,null,"Research Susanne Krieger"]
[null,"SEASHARE,,,EGY,FRA","SEASHARE","","","EGY","FRA",0.17499999999999999,null,"Research Susanne Krieger"]
[null,"SEASHARE,,,EGY,IND","SEASHARE","","","EGY","IND",0.52,null,"Research Susanne Krieger"]
[null,"SEASHARE,,,IDN,CHN","SEASHARE","","","IDN","CHN",0.5,null,"Research Susanne Krieger"]
[null,"SEASHARE,,,IDN,IND","SEASHARE","","","IDN","IND",0.4,null,"Research Susanne Krieger"]
[null,"SEASHARE,,,IDN,JPN","SEASHARE","","","IDN","JPN",0.90909090909090906,null,"Research Susanne Krieger"]
[null,"SEASHARE,,,IDN,KOR","SEASHARE","","","IDN","KOR",0.90909090909090906,null,"Research Susanne Krieger"]
[null,"SEASHARE,,,KEN,IND","SEASHARE","","","KEN","IND",0.86,null,"Research Susanne Krieger"]
[null,"SEASHARE,,,MAR,ESP","SEASHARE","","","MAR","ESP",0.18,null,"Research Susanne Krieger"]
[null,"SEASHARE,,,MAR-BEN,ESP","SEASHARE","","","MAR-BEN","ESP",0.18,null,"Research Susanne Krieger"]
[null,"SEASHARE,,,MAR-CAS,ESP","SEASHARE","","","MAR-CAS","ESP",0.18,null,"Research Susanne Krieger"]
[null,"SEASHARE,,,MAR-DAK,ESP","SEASHARE","","","MAR-DAK","ESP",0.18,null,"Research Susanne Krieger"]
[null,"SEASHARE,,,MAR-DRA,ESP","SEASHARE","","","MAR-DRA","ESP",0.18,null,"Research Susanne Krieger"]
[null,"SEASHARE,,,MAR-FES,ESP","SEASHARE","","","MAR-FES","ESP",0.18,null,"Research Susanne Krieger"]
[null,"SEASHARE,,,MAR-GUE,ESP","SEASHARE","","","MAR-GUE","ESP",0.18,null,"Research Susanne Krieger"]
[null,"SEASHARE,,,MAR-LAA,ESP","SEASHARE","","","MAR-LAA","ESP",0.18,null,"Research Susanne Krieger"]
[null,"SEASHARE,,,MAR-LOR,ESP","SEASHARE","","","MAR-LOR","ESP",0.18,null,"Research Susanne Krieger"]
[null,"SEASHARE,,,MAR-MAR,ESP","SEASHARE","","","MAR-MAR","ESP",0.18,null,"Research Susanne Krieger"]
[null,"SEASHARE,,,MAR-RAB,ESP","SEASHARE","","","MAR-RAB","ESP",0.18,null,"Research Susanne Krieger"]
[null,"SEASHARE,,,MAR-SOU,ESP","SEASHARE","","","MAR-SOU","ESP",0.18,null,"Research Susanne Krieger"]
[null,"SEASHARE,,,MAR-TAN,ESP","SEASHARE","","","MAR-TAN","ESP",0.18,null,"Research Susanne Krieger"]
[null,"SEASHARE,,,MEX,USA","SEASHARE","","","MEX","USA",1,null,"Research Susanne Krieger"]
[null,"SEASHARE,,,NOR,DEU","SEASHARE","","","NOR","DEU",1,null,"Research Susanne Krieger"]
[null,"SEASHARE,,,NOR,ESP","SEASHARE","","","NOR","ESP",0.45,null,"Research Susanne Krieger"]
[null,"SEASHARE,,,NOR,FRA","SEASHARE","","","NOR","FRA",0.9,null,"Research Susanne Krieger"]
[null,"SEASHARE,,,NOR,NLD","SEASHARE","","","NOR","NLD",1,null,"Research Susanne Krieger"]
[null,"SEASHARE,,,PER,USA","SEASHARE","","","PER","USA",0.58181818181818201,null,"Research Susanne Krieger"]
[null,"SEASHARE,,,RUS,DEU","SEASHARE","","","RUS","DEU",1,null,"Research Susanne Krieger"]
[null,"SEASHARE,,,RUS,JPN","SEASHARE","","","RUS","JPN",0.17499999999999999,null,"Research Susanne Krieger"]
[null,"SEASHARE,,,SAU,IND","SEASHARE","","","SAU","IND",0.74285714285714299,null,"Research Susanne Krieger"]
[null,"SEASHARE,,,SWE,DEU","SEASHARE","","","SWE","DEU",0.3,null,"Research Susanne Krieger"]
[null,"SEASHARE,,,SWE,ESP","SEASHARE","","","SWE","ESP",0.1,null,"Research Susanne Krieger"]
[null,"SEASHARE,,,SWE,FRA","SEASHARE","","","SWE","FRA",0.15,null,"Research Susanne Krieger"]
[null,"SEASHARE,,,SWE,NLD","SEASHARE","","","SWE","NLD",0.15,null,"Research Susanne Krieger"]
[null,"SEASHARE,,,THA,JPN","SEASHARE","","","THA","JPN",0.18,null,"Research Susanne Krieger"]
[null,"SEASHARE,,,THA,KOR","SEASHARE","","","THA","KOR",0.16,null,"Research Susanne Krieger"]
[null,"SEASHARE,,,TUN,DEU","SEASHARE","","","TUN","DEU",0.35,null,"Research Susanne Krieger"]
[null,"SEASHARE,,,TUN,ESP","SEASHARE","","","TUN","ESP",0.46666666666666701,null,"Research Susanne Krieger"]
[null,"SEASHARE,,,TUN,FRA","SEASHARE","","","TUN","FRA",0.7,null,"Research Susanne Krieger"]
[null,"SEASHARE,,,TUN,NLD","SEASHARE","","","TUN","NLD",0.28000000000000003,null,"Research Susanne Krieger"]
[null,"SEASHARE,,,VNM,JPN","SEASHARE","","","VNM","JPN",0.22500000000000001,null,"Research Susanne Krieger"]
[null,"SEASHARE,,,VNM,KOR","SEASHARE","","","VNM","KOR",0.16,null,"Research Susanne Krieger"]
[null,"SPECCOST,,BFUEL-L,,","SPECCOST","","BFUEL-L","","",1.6435608502148554E-3,"USD2021 / kwh bunker fuel (l)"]
[null,"SPECCOST,,CO2-G,,","SPECCOST","","CO2-G","","",3.8577660276243091E-2,"USD2021 / kg CO2 (g)"]
[null,"SPECCOST,,EL,,","SPECCOST","","EL","","",7.0000000000000007E-2,"USD2021 / kWh (el.)","dummy mh! Auf Null gesetzt bis bug in Rechner behoben ist. Korrekter Wert ist 0,08"]
[null,"SPECCOST,,H2O-L,,","SPECCOST","","H2O-L","","",1.190463995027624E-3,"USD2021 / kg H2O (l)"]
[null,"SPECCOST,,HEAT,,","SPECCOST","","HEAT","","",0.05,"USD2021 / kWh (heat)"]
[null,"SPECCOST,,N2-G,,","SPECCOST","","N2-G","","",0.01,"USD2021 / kg N2 (g)"]
[null,"WACC,,,ARE,","WACC","","","ARE","",5.5673211551852057E-2,"fraction"]
[null,"WACC,,,ARG,","WACC","","","ARG","",0.15031035355923136,"fraction"]
[null,"WACC,,,ARG-BA,","WACC","","","ARG-BA","",0.15031035355923136,"fraction"]
[null,"WACC,,,ARG-CAT,","WACC","","","ARG-CAT","",0.15031035355923136,"fraction"]
[null,"WACC,,,ARG-CBA,","WACC","","","ARG-CBA","",0.15031035355923136,"fraction"]
[null,"WACC,,,ARG-CHA,","WACC","","","ARG-CHA","",0.15031035355923136,"fraction"]
[null,"WACC,,,ARG-CHU,","WACC","","","ARG-CHU","",0.15031035355923136,"fraction"]
[null,"WACC,,,ARG-COR,","WACC","","","ARG-COR","",0.15031035355923136,"fraction"]
[null,"WACC,,,ARG-CRB,","WACC","","","ARG-CRB","",0.15031035355923136,"fraction"]
[null,"WACC,,,ARG-CRU,","WACC","","","ARG-CRU","",0.15031035355923136,"fraction"]
[null,"WACC,,,ARG-EST,","WACC","","","ARG-EST","",0.15031035355923136,"fraction"]
[null,"WACC,,,ARG-FOR,","WACC","","","ARG-FOR","",0.15031035355923136,"fraction"]
[null,"WACC,,,ARG-FUE,","WACC","","","ARG-FUE","",0.15031035355923136,"fraction"]
[null,"WACC,,,ARG-JUJ,","WACC","","","ARG-JUJ","",0.15031035355923136,"fraction"]
[null,"WACC,,,ARG-LAR,","WACC","","","ARG-LAR","",0.15031035355923136,"fraction"]
[null,"WACC,,,ARG-MEN,","WACC","","","ARG-MEN","",0.15031035355923136,"fraction"]
[null,"WACC,,,ARG-MIS,","WACC","","","ARG-MIS","",0.15031035355923136,"fraction"]
[null,"WACC,,,ARG-NEG,","WACC","","","ARG-NEG","",0.15031035355923136,"fraction"]
[null,"WACC,,,ARG-NEU,","WACC","","","ARG-NEU","",0.15031035355923136,"fraction"]
[null,"WACC,,,ARG-PAM,","WACC","","","ARG-PAM","",0.15031035355923136,"fraction"]
[null,"WACC,,,ARG-RIO,","WACC","","","ARG-RIO","",0.15031035355923136,"fraction"]
[null,"WACC,,,ARG-SAF,","WACC","","","ARG-SAF","",0.15031035355923136,"fraction"]
[null,"WACC,,,ARG-SAJ,","WACC","","","ARG-SAJ","",0.15031035355923136,"fraction"]
[null,"WACC,,,ARG-SAL,","WACC","","","ARG-SAL","",0.15031035355923136,"fraction"]
[null,"WACC,,,ARG-SAT,","WACC","","","ARG-SAT","",0.15031035355923136,"fraction"]
[null,"WACC,,,ARG-TUC,","WACC","","","ARG-TUC","",0.15031035355923136,"fraction"]
[null,"WACC,,,AUS,","WACC","","","AUS","",5.0299999999999997E-2,"fraction"]
[null,"WACC,,,BRA,","WACC","","","BRA","",8.2832353577576984E-2,"fraction"]
[null,"WACC,,,CHL,","WACC","","","CHL","",5.5673211551852057E-2,"fraction"]
[null,"WACC,,,CHN,","WACC","","","CHN","",5.5673211551852057E-2,"fraction"]
[null,"WACC,,,COL,","WACC","","","COL","",7.0913593408014244E-2,"fraction"]
[null,"WACC,,,CRI,","WACC","","","CRI","",0.10395003232720652,"fraction"]
[null,"WACC,,,DNK,","WACC","","","DNK","",5.0299999999999997E-2,"fraction"]
[null,"WACC,,,DZA,","WACC","","","DZA","",9.1999999999999998E-2,"fraction"]
[null,"WACC,,,EGY,","WACC","","","EGY","",0.11336853373134342,"fraction"]
[null,"WACC,,,ESP,","WACC","","","ESP","",6.4274782725559448E-2,"fraction"]
[null,"WACC,,,IDN,","WACC","","","IDN","",7.0913593408014244E-2,"fraction"]
[null,"WACC,,,IND,","WACC","","","IND","",7.237045402218821E-2,"fraction"]
[null,"WACC,,,JOR,","WACC","","","JOR","",9.9049682988621379E-2,"fraction"]
[null,"WACC,,,KAZ,","WACC","","","KAZ","",7.3401485154905771E-2,"fraction"]
[null,"WACC,,,KEN,","WACC","","","KEN","",0.10989380084781369,"fraction"]
[null,"WACC,,,MAR,","WACC","","","MAR","",7.731973992583685E-2,"fraction"]
[null,"WACC,,,MAR-BEN,","WACC","","","MAR-BEN","",7.731973992583685E-2,"fraction"]
[null,"WACC,,,MAR-CAS,","WACC","","","MAR-CAS","",7.731973992583685E-2,"fraction"]
[null,"WACC,,,MAR-DAK,","WACC","","","MAR-DAK","",7.731973992583685E-2,"fraction"]
[null,"WACC,,,MAR-DRA,","WACC","","","MAR-DRA","",7.731973992583685E-2,"fraction"]
[null,"WACC,,,MAR-FES,","WACC","","","MAR-FES","",7.731973992583685E-2,"fraction"]
[null,"WACC,,,MAR-GUE,","WACC","","","MAR-GUE","",7.731973992583685E-2,"fraction"]
[null,"WACC,,,MAR-LAA,","WACC","","","MAR-LAA","",7.731973992583685E-2,"fraction"]
[null,"WACC,,,MAR-LOR,","WACC","","","MAR-LOR","",7.731973992583685E-2,"fraction"]
[null,"WACC,,,MAR-MAR,","WACC","","","MAR-MAR","",7.731973992583685E-2,"fraction"]
[null,"WACC,,,MAR-RAB,","WACC","","","MAR-RAB","",7.731973992583685E-2,"fraction"]
[null,"WACC,,,MAR-SOU,","WACC","","","MAR-SOU","",7.731973992583685E-2,"fraction"]
[null,"WACC,,,MAR-TAN,","WACC","","","MAR-TAN","",7.731973992583685E-2,"fraction"]
[null,"WACC,,,MEX,","WACC","","","MEX","",6.4274782725559448E-2,"fraction"]
[null,"WACC,,,MRT,","WACC","","","MRT","",9.1999999999999998E-2,"fraction"]
[null,"WACC,,,NAM,","WACC","","","NAM","",8.3993056414234241E-2,"fraction"]
[null,"WACC,,,NOR,","WACC","","","NOR","",5.0299999999999997E-2,"fraction"]
[null,"WACC,,,PER,","WACC","","","PER","",6.4274782725559448E-2,"fraction"]
[null,"WACC,,,PRT,","WACC","","","PRT","",7.3401485154905771E-2,"fraction"]
[null,"WACC,,,RUS,","WACC","","","RUS","",7.5170549034228915E-2,"fraction"]
[null,"WACC,,,SAU,","WACC","","","SAU","",5.5673211551852057E-2,"fraction"]
[null,"WACC,,,SWE,","WACC","","","SWE","",5.0299999999999997E-2,"fraction"]
[null,"WACC,,,THA,","WACC","","","THA","",6.4274782725559448E-2,"fraction"]
[null,"WACC,,,TUN,","WACC","","","TUN","",0.11482300617243665,"fraction"]
[null,"WACC,,,UKR,","WACC","","","UKR","",0.1266281397634636,"fraction"]
[null,"WACC,,,URY,","WACC","","","URY","",7.731973992583685E-2,"fraction"]
[null,"WACC,,,USA,","WACC","","","USA","",5.0299999999999997E-2,"fraction"]
[null,"WACC,,,VNM,","WACC","","","VNM","",8.9280207439799461E-2,"fraction"]
[null,"WACC,,,ZAF,","WACC","","","ZAF","",7.8066629268261314E-2,"fraction"]
[null,"WACC,,,ZAF-EC,","WACC","","","ZAF-EC","",7.8066629268261314E-2,"fraction"]
[null,"WACC,,,ZAF-FRS,","WACC","","","ZAF-FRS","",7.8066629268261314E-2,"fraction"]
[null,"WACC,,,ZAF-GAU,","WACC","","","ZAF-GAU","",7.8066629268261314E-2,"fraction"]
[null,"WACC,,,ZAF-KWA,","WACC","","","ZAF-KWA","",7.8066629268261314E-2,"fraction"]
[null,"WACC,,,ZAF-LIM,","WACC","","","ZAF-LIM","",7.8066629268261314E-2,"fraction"]
[null,"WACC,,,ZAF-MPU,","WACC","","","ZAF-MPU","",7.8066629268261314E-2,"fraction"]
[null,"WACC,,,ZAF-NC,","WACC","","","ZAF-NC","",7.8066629268261314E-2,"fraction"]
[null,"WACC,,,ZAF-NW,","WACC","","","ZAF-NW","",7.8066629268261314E-2,"fraction"]
[null,"WACC,,,ZAF-WC,","WACC","","","ZAF-WC","",7.8066629268261314E-2,"fraction"]
["/data"]

{"sheet":"_scenario_2030_medium","index":48,"n_rows":2137,"n_cols":10,"rows_kept":2137,"cut":false,"hidden":true,"merged":[]}
["data","key","parameter_code","process_code","flow_code","source_region_code","target_country_code","value","unit","source"]
[null,"CALOR,,CH3OH-L,,","CALOR","","CH3OH-L","","",5.5277777777777768,"kWh CH3OH (l)/kg","Wikipedia with conversions"]
[null,"CALOR,,CH4-G,,","CALOR","","CH4-G","","",13.5,"kWh CH4 (g)/kg","Wikipedia with conversions"]
[null,"CALOR,,CH4-L,,","CALOR","","CH4-L","","",13.5,"kWh CH4 (l)/kg","Wikipedia with conversions"]
[null,"CALOR,,CHX-L,,","CALOR","","CHX-L","","",11.944444444444445,"kwh CHx (l)/kg","Wikipedia with conversions"]
[null,"CALOR,,DRI-S,,","CALOR","","DRI-S","","",1,"kg DRI (s)/kg","no conversion necessary"]
[null,"CALOR,,H2-G,,","CALOR","","H2-G","","",33.33,"kWh H2 (g)/kg","Linde"]
[null,"CALOR,,H2-L,,","CALOR","","H2-L","","",33.33,"kWh H2 (l)/kg","Linde"]
[null,"CALOR,,LOHC-L,,","CALOR","","LOHC-L","","",33.33,"kWh H2 (l)/kg","Linde"]
[null,"CALOR,,NH3-L,,","CALOR","","NH3-L","","",5.1999999999999993,"kWh NH3 (l)/kg","Wikipedia with conversions"]
[null,"CAPEX,AEL-EL,,,","CAPEX","AEL-EL","","","",650.6426539852938,"USD2021/kW"]
[null,"CAPEX,ATR,,,","CAPEX","ATR","","","",1000.0341055522356,"USD2021/kW","Oni et al. 2022"]
[null,"CAPEX,CH3OHSYN,,,","CAPEX","CH3OHSYN","","","",953.53718155258355,"USD2021/kW"]
[null,"CAPEX,CH4-COMP,,,","CAPEX","CH4-COMP","","","",144.49043833783671,"USD2021/kW","DNV GL 2020"]
[null,"CAPEX,CH4-LIQ,,,","CAPEX","CH4-LIQ","","","",439.99368256303694,"USD2021/kW","Hank et al. 2020"]
[null,"CAPEX,CH4SYN,,,","CAPEX","CH4SYN","","","",847.89448030598192,"USD2021/kW","Öko-Institut 2020"]
[null,"CAPEX,DAC,,,","CAPEX","DAC","","","",1.0377410418368698,"USD2021/ kg CO2 (g)*a","average low and high"]
[null,"CAPEX,DESAL,,,","CAPEX","DESAL","","","",2.3667276243093918E-3,"USD2021/l*a","Fraunhofer IEE"]
[null,"CAPEX,DRI,,,","CAPEX","DRI","","","",4125.6284525730507,"USD2021/kg DRI (s)/a*h","Agora Industry Transformation 2021"]
[null,"CAPEX,EFUELSYN,,,","CAPEX","EFUELSYN","","","",953.53718155258355,"USD2021/kW"]
[null,"CAPEX,H2-COMP,,,","CAPEX","H2-COMP","","","",144.49043833783671,"USD2021/kW","DNV GL 2020"]
[null,"CAPEX,H2-LIQ,,,","CAPEX","H2-LIQ","","","",1457.3621055108172,"USD2021/kW","IEA 2019"]
[null,"CAPEX,H2-RGAS,,,","CAPEX","H2-RGAS","","","",318.14227153381154,"USD2021/kW","DNV GL 2020"]
[null,"CAPEX,LOHC-CON,,,","CAPEX","LOHC-CON","","","",200.97923345856316,"USD2021/kW"]
[null,"CAPEX,LOHC-REC,,,","CAPEX","LOHC-REC","","","",458.97706001032537,"USD2021/kW"]
[null,"CAPEX,NH3-REC,,,","CAPEX","NH3-REC","","","",411.40348625658612,"USD2021/kW","NGN; Equinor 2018"]
[null,"CAPEX,NH3SYN,,,","CAPEX","NH3SYN","","","",1484.6664443263917,"USD2021/kW"]
[null,"CAPEX,PEM-EL,,,","CAPEX","PEM-EL","","","",924.60772108052163,"USD2021/kW"]
[null,"CAPEX,PV-FIX,,ARE,","CAPEX","PV-FIX","","ARE","",748.32170696054584,"USD2021/kW"]
[null,"CAPEX,PV-FIX,,ARG,","CAPEX","PV-FIX","","ARG","",726.01426568983027,"USD2021/kW"]
[null,"CAPEX,PV-FIX,,ARG-BA,","CAPEX","PV-FIX","","ARG-BA","",726.01426568983027,"USD2021/kW"]
[null,"CAPEX,PV-FIX,,ARG-CAT,","CAPEX","PV-FIX","","ARG-CAT","",726.01426568983027,"USD2021/kW"]
[null,"CAPEX,PV-FIX,,ARG-CBA,","CAPEX","PV-FIX","","ARG-CBA","",726.01426568983027,"USD2021/kW"]
[null,"CAPEX,PV-FIX,,ARG-CHA,","CAPEX","PV-FIX","","ARG-CHA","",726.01426568983027,"USD2021/kW"]
[null,"CAPEX,PV-FIX,,ARG-CHU,","CAPEX","PV-FIX","","ARG-CHU","",726.01426568983027,"USD2021/kW"]
[null,"CAPEX,PV-FIX,,ARG-COR,","CAPEX","PV-FIX","","ARG-COR","",726.01426568983027,"USD2021/kW"]
[null,"CAPEX,PV-FIX,,ARG-CRB,","CAPEX","PV-FIX","","ARG-CRB","",726.01426568983027,"USD2021/kW"]
[null,"CAPEX,PV-FIX,,ARG-CRU,","CAPEX","PV-FIX","","ARG-CRU","",726.01426568983027,"USD2021/kW"]
[null,"CAPEX,PV-FIX,,ARG-EST,","CAPEX","PV-FIX","","ARG-EST","",726.01426568983027,"USD2021/kW"]
[null,"CAPEX,PV-FIX,,ARG-FOR,","CAPEX","PV-FIX","","ARG-FOR","",726.01426568983027,"USD2021/kW"]
[null,"CAPEX,PV-FIX,,ARG-FUE,","CAPEX","PV-FIX","","ARG-FUE","",726.01426568983027,"USD2021/kW"]
[null,"CAPEX,PV-FIX,,ARG-JUJ,","CAPEX","PV-FIX","","ARG-JUJ","",726.01426568983027,"USD2021/kW"]
[null,"CAPEX,PV-FIX,,ARG-LAR,","CAPEX","PV-FIX","","ARG-LAR","",726.01426568983027,"USD2021/kW"]
[null,"CAPEX,PV-FIX,,ARG-MEN,","CAPEX","PV-FIX","","ARG-MEN","",726.01426568983027,"USD2021/kW"]
[null,"CAPEX,PV-FIX,,ARG-MIS,","CAPEX","PV-FIX","","ARG-MIS","",726.01426568983027,"USD2021/kW"]
[null,"CAPEX,PV-FIX,,ARG-NEG,","CAPEX","PV-FIX","","ARG-NEG","",726.01426568983027,"USD2021/kW"]
[null,"CAPEX,PV-FIX,,ARG-NEU,","CAPEX","PV-FIX","","ARG-NEU","",726.01426568983027,"USD2021/kW"]
[null,"CAPEX,PV-FIX,,ARG-PAM,","CAPEX","PV-FIX","","ARG-PAM","",726.01426568983027,"USD2021/kW"]
[null,"CAPEX,PV-FIX,,ARG-RIO,","CAPEX","PV-FIX","","ARG-RIO","",726.01426568983027,"USD2021/kW"]
[null,"CAPEX,PV-FIX,,ARG-SAF,","CAPEX","PV-FIX","","ARG-SAF","",726.01426568983027,"USD2021/kW"]
[null,"CAPEX,PV-FIX,,ARG-SAJ,","CAPEX","PV-FIX","","ARG-SAJ","",726.01426568983027,"USD2021/kW"]
[null,"CAPEX,PV-FIX,,ARG-SAL,","CAPEX","PV-FIX","","ARG-SAL","",726.01426568983027,"USD2021/kW"]
[null,"CAPEX,PV-FIX,,ARG-SAT,","CAPEX","PV-FIX","","ARG-SAT","",726.01426568983027,"USD2021/kW"]
[null,"CAPEX,PV-FIX,,ARG-TUC,","CAPEX","PV-FIX","","ARG-TUC","",726.01426568983027,"USD2021/kW"]
[null,"CAPEX,PV-FIX,,AUS,","CAPEX","PV-FIX","","AUS","",820.26320505860349,"USD2021/kW"]
[null,"CAPEX,PV-FIX,,BRA,","CAPEX","PV-FIX","","BRA","",710.7708474881747,"USD2021/kW"]
[null,"CAPEX,PV-FIX,,CHL,","CAPEX","PV-FIX","","CHL","",808.18000770363255,"USD2021/kW"]
[null,"CAPEX,PV-FIX,,CHN,","CAPEX","PV-FIX","","CHN","",470.31522012425313,"USD2021/kW"]
[null,"CAPEX,PV-FIX,,COL,","CAPEX","PV-FIX","","COL","",748.32170696054584,"USD2021/kW"]
[null,"CAPEX,PV-FIX,,CRI,","CAPEX","PV-FIX","","CRI","",748.32170696054584,"USD2021/kW"]
[null,"CAPEX,PV-FIX,,DNK,","CAPEX","PV-FIX","","DNK","",648.77475028997765,"USD2021/kW"]
[null,"CAPEX,PV-FIX,,DZA,","CAPEX","PV-FIX","","DZA","",748.32170696054584,"USD2021/kW"]
[null,"CAPEX,PV-FIX,,EGY,","CAPEX","PV-FIX","","EGY","",748.32170696054584,"USD2021/kW"]
[null,"CAPEX,PV-FIX,,ESP,","CAPEX","PV-FIX","","ESP","",705.10103949853442,"USD2021/kW"]
[null,"CAPEX,PV-FIX,,IDN,","CAPEX","PV-FIX","","IDN","",867.38767474299016,"USD2021/kW"]
[null,"CAPEX,PV-FIX,,IND,","CAPEX","PV-FIX","","IND","",486.11632435767666,"USD2021/kW"]
[null,"CAPEX,PV-FIX,,JOR,","CAPEX","PV-FIX","","JOR","",748.32170696054584,"USD2021/kW"]
[null,"CAPEX,PV-FIX,,KAZ,","CAPEX","PV-FIX","","KAZ","",748.32170696054584,"USD2021/kW"]
[null,"CAPEX,PV-FIX,,KEN,","CAPEX","PV-FIX","","KEN","",748.32170696054584,"USD2021/kW"]
[null,"CAPEX,PV-FIX,,MAR,","CAPEX","PV-FIX","","MAR","",748.32170696054584,"USD2021/kW"]
[null,"CAPEX,PV-FIX,,MAR-BEN,","CAPEX","PV-FIX","","MAR-BEN","",748.32170696054584,"USD2021/kW"]
[null,"CAPEX,PV-FIX,,MAR-CAS,","CAPEX","PV-FIX","","MAR-CAS","",748.32170696054584,"USD2021/kW"]
[null,"CAPEX,PV-FIX,,MAR-DAK,","CAPEX","PV-FIX","","MAR-DAK","",748.32170696054584,"USD2021/kW"]
[null,"CAPEX,PV-FIX,,MAR-DRA,","CAPEX","PV-FIX","","MAR-DRA","",748.32170696054584,"USD2021/kW"]
[null,"CAPEX,PV-FIX,,MAR-FES,","CAPEX","PV-FIX","","MAR-FES","",748.32170696054584,"USD2021/kW"]
[null,"CAPEX,PV-FIX,,MAR-GUE,","CAPEX","PV-FIX","","MAR-GUE","",748.32170696054584,"USD2021/kW"]
[null,"CAPEX,PV-FIX,,MAR-LAA,","CAPEX","PV-FIX","","MAR-LAA","",748.32170696054584,"USD2021/kW"]
[null,"CAPEX,PV-FIX,,MAR-LOR,","CAPEX","PV-FIX","","MAR-LOR","",748.32170696054584,"USD2021/kW"]
[null,"CAPEX,PV-FIX,,MAR-MAR,","CAPEX","PV-FIX","","MAR-MAR","",748.32170696054584,"USD2021/kW"]
[null,"CAPEX,PV-FIX,,MAR-RAB,","CAPEX","PV-FIX","","MAR-RAB","",748.32170696054584,"USD2021/kW"]
[null,"CAPEX,PV-FIX,,MAR-SOU,","CAPEX","PV-FIX","","MAR-SOU","",748.32170696054584,"USD2021/kW"]
[null,"CAPEX,PV-FIX,,MAR-TAN,","CAPEX","PV-FIX","","MAR-TAN","",748.32170696054584,"USD2021/kW"]
[null,"CAPEX,PV-FIX,,MEX,","CAPEX","PV-FIX","","MEX","",681.95706918016708,"USD2021/kW"]
[null,"CAPEX,PV-FIX,,MRT,","CAPEX","PV-FIX","","MRT","",748.32170696054584,"USD2021/kW"]
[null,"CAPEX,PV-FIX,,NAM,","CAPEX","PV-FIX","","NAM","",748.32170696054584,"USD2021/kW"]
[null,"CAPEX,PV-FIX,,NOR,","CAPEX","PV-FIX","","NOR","",689.52714068546084,"USD2021/kW"]
[null,"CAPEX,PV-FIX,,PER,","CAPEX","PV-FIX","","PER","",748.32170696054584,"USD2021/kW"]
[null,"CAPEX,PV-FIX,,PRT,","CAPEX","PV-FIX","","PRT","",756.68699743706418,"USD2021/kW"]
[null,"CAPEX,PV-FIX,,RUS,","CAPEX","PV-FIX","","RUS","",1342.350278465309,"USD2021/kW"]
[null,"CAPEX,PV-FIX,,SAU,","CAPEX","PV-FIX","","SAU","",776.11306087697903,"USD2021/kW"]
[null,"CAPEX,PV-FIX,,SWE,","CAPEX","PV-FIX","","SWE","",689.52714068546084,"USD2021/kW"]
[null,"CAPEX,PV-FIX,,THA,","CAPEX","PV-FIX","","THA","",825.65417003235973,"USD2021/kW"]
[null,"CAPEX,PV-FIX,,TUN,","CAPEX","PV-FIX","","TUN","",748.32170696054584,"USD2021/kW"]
[null,"CAPEX,PV-FIX,,UKR,","CAPEX","PV-FIX","","UKR","",689.52714068546084,"USD2021/kW"]
[null,"CAPEX,PV-FIX,,URY,","CAPEX","PV-FIX","","URY","",748.32170696054584,"USD2021/kW"]
[null,"CAPEX,PV-FIX,,USA,","CAPEX","PV-FIX","","USA","",893.97070892392617,"USD2021/kW"]
[null,"CAPEX,PV-FIX,,VNM,","CAPEX","PV-FIX","","VNM","",825.65417003235973,"USD2021/kW"]
[null,"CAPEX,PV-FIX,,ZAF,","CAPEX","PV-FIX","","ZAF","",748.32170696054584,"USD2021/kW"]
[null,"CAPEX,PV-FIX,,ZAF-EC,","CAPEX","PV-FIX","","ZAF-EC","",748.32170696054584,"USD2021/kW"]
[null,"CAPEX,PV-FIX,,ZAF-FRS,","CAPEX","PV-FIX","","ZAF-FRS","",748.32170696054584,"USD2021/kW"]
[null,"CAPEX,PV-FIX,,ZAF-GAU,","CAPEX","PV-FIX","","ZAF-GAU","",748.32170696054584,"USD2021/kW"]
[null,"CAPEX,PV-FIX,,ZAF-KWA,","CAPEX","PV-FIX","","ZAF-KWA","",748.32170696054584,"USD2021/kW"]
[null,"CAPEX,PV-FIX,,ZAF-LIM,","CAPEX","PV-FIX","","ZAF-LIM","",748.32170696054584,"USD2021/kW"]
[null,"CAPEX,PV-FIX,,ZAF-MPU,","CAPEX","PV-FIX","","ZAF-MPU","",748.32170696054584,"USD2021/kW"]
[null,"CAPEX,PV-FIX,,ZAF-NC,","CAPEX","PV-FIX","","ZAF-NC","",748.32170696054584,"USD2021/kW"]
[null,"CAPEX,PV-FIX,,ZAF-NW,","CAPEX","PV-FIX","","ZAF-NW","",748.32170696054584,"USD2021/kW"]
[null,"CAPEX,PV-FIX,,ZAF-WC,","CAPEX","PV-FIX","","ZAF-WC","",748.32170696054584,"USD2021/kW"]
[null,"CAPEX,REGASATR,,,","CAPEX","REGASATR","","","",1000.0341055522356,"USD2021/kW","combined values"]
[null,"CAPEX,RES-HYBR,,ARE,","CAPEX","RES-HYBR","","ARE","",1129.0342332707282,"USD2021/kW","calculated. PV:  WIND-ON: "]
[null,"CAPEX,RES-HYBR,,ARG,","CAPEX","RES-HYBR","","ARG","",1218.0417054231007,"USD2021/kW","calculated. PV:  WIND-ON: "]
[null,"CAPEX,RES-HYBR,,ARG-BA,","CAPEX","RES-HYBR","","ARG-BA","",1218.0417054231007,"USD2021/kW","calculated. PV:  WIND-ON: "]
[null,"CAPEX,RES-HYBR,,ARG-CAT,","CAPEX","RES-HYBR","","ARG-CAT","",1218.0417054231007,"USD2021/kW","calculated. PV:  WIND-ON: "]
[null,"CAPEX,RES-HYBR,,ARG-CBA,","CAPEX","RES-HYBR","","ARG-CBA","",1218.0417054231007,"USD2021/kW","calculated. PV:  WIND-ON: "]
[null,"CAPEX,RES-HYBR,,ARG-CHA,","CAPEX","RES-HYBR","","ARG-CHA","",1218.0417054231007,"USD2021/kW","calculated. PV:  WIND-ON: "]
[null,"CAPEX,RES-HYBR,,ARG-CHU,","CAPEX","RES-HYBR","","ARG-CHU","",1218.0417054231007,"USD2021/kW","calculated. PV:  WIND-ON: "]
[null,"CAPEX,RES-HYBR,,ARG-COR,","CAPEX","RES-HYBR","","ARG-COR","",1218.0417054231007,"USD2021/kW","calculated. PV:  WIND-ON: "]
[null,"CAPEX,RES-HYBR,,ARG-CRB,","CAPEX","RES-HYBR","","ARG-CRB","",1218.0417054231007,"USD2021/kW","calculated. PV:  WIND-ON: "]
[null,"CAPEX,RES-HYBR,,ARG-CRU,","CAPEX","RES-HYBR","","ARG-CRU","",1218.0417054231007,"USD2021/kW","calculated. PV:  WIND-ON: "]
[null,"CAPEX,RES-HYBR,,ARG-EST,","CAPEX","RES-HYBR","","ARG-EST","",1218.0417054231007,"USD2021/kW","calculated. PV:  WIND-ON: "]
[null,"CAPEX,RES-HYBR,,ARG-FOR,","CAPEX","RES-HYBR","","ARG-FOR","",1218.0417054231007,"USD2021/kW","calculated. PV:  WIND-ON: "]
[null,"CAPEX,RES-HYBR,,ARG-FUE,","CAPEX","RES-HYBR","","ARG-FUE","",1218.0417054231007,"USD2021/kW","calculated. PV:  WIND-ON: "]
[null,"CAPEX,RES-HYBR,,ARG-JUJ,","CAPEX","RES-HYBR","","ARG-JUJ","",1218.0417054231007,"USD2021/kW","calculated. PV:  WIND-ON: "]
[null,"CAPEX,RES-HYBR,,ARG-LAR,","CAPEX","RES-HYBR","","ARG-LAR","",1218.0417054231007,"USD2021/kW","calculated. PV:  WIND-ON: "]
[null,"CAPEX,RES-HYBR,,ARG-MEN,","CAPEX","RES-HYBR","","ARG-MEN","",1218.0417054231007,"USD2021/kW","calculated. PV:  WIND-ON: "]
[null,"CAPEX,RES-HYBR,,ARG-MIS,","CAPEX","RES-HYBR","","ARG-MIS","",1218.0417054231007,"USD2021/kW","calculated. PV:  WIND-ON: "]
[null,"CAPEX,RES-HYBR,,ARG-NEG,","CAPEX","RES-HYBR","","ARG-NEG","",1218.0417054231007,"USD2021/kW","calculated. PV:  WIND-ON: "]
[null,"CAPEX,RES-HYBR,,ARG-NEU,","CAPEX","RES-HYBR","","ARG-NEU","",1218.0417054231007,"USD2021/kW","calculated. PV:  WIND-ON: "]
[null,"CAPEX,RES-HYBR,,ARG-PAM,","CAPEX","RES-HYBR","","ARG-PAM","",1218.0417054231007,"USD2021/kW","calculated. PV:  WIND-ON: "]
[null,"CAPEX,RES-HYBR,,ARG-RIO,","CAPEX","RES-HYBR","","ARG-RIO","",1218.0417054231007,"USD2021/kW","calculated. PV:  WIND-ON: "]
[null,"CAPEX,RES-HYBR,,ARG-SAF,","CAPEX","RES-HYBR","","ARG-SAF","",1218.0417054231007,"USD2021/kW","calculated. PV:  WIND-ON: "]
[null,"CAPEX,RES-HYBR,,ARG-SAJ,","CAPEX","RES-HYBR","","ARG-SAJ","",1218.0417054231007,"USD2021/kW","calculated. PV:  WIND-ON: "]
[null,"CAPEX,RES-HYBR,,ARG-SAL,","CAPEX","RES-HYBR","","ARG-SAL","",1218.0417054231007,"USD2021/kW","calculated. PV:  WIND-ON: "]
[null,"CAPEX,RES-HYBR,,ARG-SAT,","CAPEX","RES-HYBR","","ARG-SAT","",1218.0417054231007,"USD2021/kW","calculated. PV:  WIND-ON: "]
[null,"CAPEX,RES-HYBR,,ARG-TUC,","CAPEX","RES-HYBR","","ARG-TUC","",1218.0417054231007,"USD2021/kW","calculated. PV:  WIND-ON: "]
[null,"CAPEX,RES-HYBR,,AUS,","CAPEX","RES-HYBR","","AUS","",1265.1661751074873,"USD2021/kW","calculated. PV:  WIND-ON: "]
[null,"CAPEX,RES-HYBR,,BRA,","CAPEX","RES-HYBR","","BRA","",917.26528572403788,"USD2021/kW","calculated. PV:  WIND-ON: "]
[null,"CAPEX,RES-HYBR,,CHL,","CAPEX","RES-HYBR","","CHL","",1259.124576430002,"USD2021/kW","calculated. PV:  WIND-ON: "]
[null,"CAPEX,RES-HYBR,,CHN,","CAPEX","RES-HYBR","","CHN","",800.45761033238978,"USD2021/kW","calculated. PV:  WIND-ON: "]
[null,"CAPEX,RES-HYBR,,COL,","CAPEX","RES-HYBR","","COL","",1186.6608534802729,"USD2021/kW","calculated. PV:  WIND-ON: "]
[null,"CAPEX,RES-HYBR,,CRI,","CAPEX","RES-HYBR","","CRI","",1147.6006982752831,"USD2021/kW","calculated. PV:  WIND-ON: "]
[null,"CAPEX,RES-HYBR,,DNK,","CAPEX","RES-HYBR","","DNK","",1117.3708673132146,"USD2021/kW","calculated. PV:  WIND-ON: "]
[null,"CAPEX,RES-HYBR,,DZA,","CAPEX","RES-HYBR","","DZA","",1298.5753742333741,"USD2021/kW","calculated. PV:  WIND-ON: "]
[null,"CAPEX,RES-HYBR,,EGY,","CAPEX","RES-HYBR","","EGY","",1107.0476299758607,"USD2021/kW","calculated. PV:  WIND-ON: "]
[null,"CAPEX,RES-HYBR,,ESP,","CAPEX","RES-HYBR","","ESP","",924.96002931080898,"USD2021/kW","calculated. PV:  WIND-ON: "]
[null,"CAPEX,RES-HYBR,,IDN,","CAPEX","RES-HYBR","","IDN","",1533.0240021148766,"USD2021/kW","calculated. PV:  WIND-ON: "]
[null,"CAPEX,RES-HYBR,,IND,","CAPEX","RES-HYBR","","IND","",695.49359886878108,"USD2021/kW","calculated. PV:  WIND-ON: "]
[null,"CAPEX,RES-HYBR,,JOR,","CAPEX","RES-HYBR","","JOR","",1298.5753742333741,"USD2021/kW","calculated. PV:  WIND-ON: "]
[null,"CAPEX,RES-HYBR,,KAZ,","CAPEX","RES-HYBR","","KAZ","",1107.0476299758607,"USD2021/kW","calculated. PV:  WIND-ON: "]
[null,"CAPEX,RES-HYBR,,KEN,","CAPEX","RES-HYBR","","KEN","",1298.5753742333741,"USD2021/kW","calculated. PV:  WIND-ON: "]
[null,"CAPEX,RES-HYBR,,MAR,","CAPEX","RES-HYBR","","MAR","",1229.1954260584585,"USD2021/kW","calculated. PV:  WIND-ON: "]
[null,"CAPEX,RES-HYBR,,MAR-BEN,","CAPEX","RES-HYBR","","MAR-BEN","",1229.1954260584585,"USD2021/kW","calculated. PV:  WIND-ON: "]
[null,"CAPEX,RES-HYBR,,MAR-CAS,","CAPEX","RES-HYBR","","MAR-CAS","",1229.1954260584585,"USD2021/kW","calculated. PV:  WIND-ON: "]
[null,"CAPEX,RES-HYBR,,MAR-DAK,","CAPEX","RES-HYBR","","MAR-DAK","",1229.1954260584585,"USD2021/kW","calculated. PV:  WIND-ON: "]
[null,"CAPEX,RES-HYBR,,MAR-DRA,","CAPEX","RES-HYBR","","MAR-DRA","",1229.1954260584585,"USD2021/kW","calculated. PV:  WIND-ON: "]
[null,"CAPEX,RES-HYBR,,MAR-FES,","CAPEX","RES-HYBR","","MAR-FES","",1229.1954260584585,"USD2021/kW","calculated. PV:  WIND-ON: "]
[null,"CAPEX,RES-HYBR,,MAR-GUE,","CAPEX","RES-HYBR","","MAR-GUE","",1229.1954260584585,"USD2021/kW","calculated. PV:  WIND-ON: "]
[null,"CAPEX,RES-HYBR,,MAR-LAA,","CAPEX","RES-HYBR","","MAR-LAA","",1229.1954260584585,"USD2021/kW","calculated. PV:  WIND-ON: "]
[null,"CAPEX,RES-HYBR,,MAR-LOR,","CAPEX","RES-HYBR","","MAR-LOR","",1229.1954260584585,"USD2021/kW","calculated. PV:  WIND-ON: "]
[null,"CAPEX,RES-HYBR,,MAR-MAR,","CAPEX","RES-HYBR","","MAR-MAR","",1229.1954260584585,"USD2021/kW","calculated. PV:  WIND-ON: "]
[null,"CAPEX,RES-HYBR,,MAR-RAB,","CAPEX","RES-HYBR","","MAR-RAB","",1229.1954260584585,"USD2021/kW","calculated. PV:  WIND-ON: "]
[null,"CAPEX,RES-HYBR,,MAR-SOU,","CAPEX","RES-HYBR","","MAR-SOU","",1229.1954260584585,"USD2021/kW","calculated. PV:  WIND-ON: "]
[null,"CAPEX,RES-HYBR,,MAR-TAN,","CAPEX","RES-HYBR","","MAR-TAN","",1229.1954260584585,"USD2021/kW","calculated. PV:  WIND-ON: "]
[null,"CAPEX,RES-HYBR,,MEX,","CAPEX","RES-HYBR","","MEX","",1059.9061510378335,"USD2021/kW","calculated. PV:  WIND-ON: "]
[null,"CAPEX,RES-HYBR,,MRT,","CAPEX","RES-HYBR","","MRT","",1298.5753742333741,"USD2021/kW","calculated. PV:  WIND-ON: "]
[null,"CAPEX,RES-HYBR,,NAM,","CAPEX","RES-HYBR","","NAM","",1298.5753742333741,"USD2021/kW","calculated. PV:  WIND-ON: "]
[null,"CAPEX,RES-HYBR,,NOR,","CAPEX","RES-HYBR","","NOR","",1077.650346838318,"USD2021/kW","calculated. PV:  WIND-ON: "]
[null,"CAPEX,RES-HYBR,,PER,","CAPEX","RES-HYBR","","PER","",984.89983389326267,"USD2021/kW","calculated. PV:  WIND-ON: "]
[null,"CAPEX,RES-HYBR,,PRT,","CAPEX","RES-HYBR","","PRT","",1233.3780712967177,"USD2021/kW","calculated. PV:  WIND-ON: "]
[null,"CAPEX,RES-HYBR,,RUS,","CAPEX","RES-HYBR","","RUS","",1404.0619157282422,"USD2021/kW","calculated. PV:  WIND-ON: "]
[null,"CAPEX,RES-HYBR,,SAU,","CAPEX","RES-HYBR","","SAU","",1142.9299102289447,"USD2021/kW","calculated. PV:  WIND-ON: "]
[null,"CAPEX,RES-HYBR,,SWE,","CAPEX","RES-HYBR","","SWE","",1137.7470625109563,"USD2021/kW","calculated. PV:  WIND-ON: "]
[null,"CAPEX,RES-HYBR,,THA,","CAPEX","RES-HYBR","","THA","",1167.7004648066352,"USD2021/kW","calculated. PV:  WIND-ON: "]
[null,"CAPEX,RES-HYBR,,TUN,","CAPEX","RES-HYBR","","TUN","",1298.5753742333741,"USD2021/kW","calculated. PV:  WIND-ON: "]
[null,"CAPEX,RES-HYBR,,UKR,","CAPEX","RES-HYBR","","UKR","",1077.650346838318,"USD2021/kW","calculated. PV:  WIND-ON: "]
[null,"CAPEX,RES-HYBR,,URY,","CAPEX","RES-HYBR","","URY","",1473.4910182236545,"USD2021/kW","calculated. PV:  WIND-ON: "]
[null,"CAPEX,RES-HYBR,,USA,","CAPEX","RES-HYBR","","USA","",1122.077935922249,"USD2021/kW","calculated. PV:  WIND-ON: "]
[null,"CAPEX,RES-HYBR,,VNM,","CAPEX","RES-HYBR","","VNM","",1512.1572497595614,"USD2021/kW","calculated. PV:  WIND-ON: "]
[null,"CAPEX,RES-HYBR,,ZAF,","CAPEX","RES-HYBR","","ZAF","",1229.1954260584585,"USD2021/kW","calculated. PV:  WIND-ON: "]
[null,"CAPEX,RES-HYBR,,ZAF-EC,","CAPEX","RES-HYBR","","ZAF-EC","",1229.1954260584585,"USD2021/kW","calculated. PV:  WIND-ON: "]
[null,"CAPEX,RES-HYBR,,ZAF-FRS,","CAPEX","RES-HYBR","","ZAF-FRS","",1229.1954260584585,"USD2021/kW","calculated. PV:  WIND-ON: "]
[null,"CAPEX,RES-HYBR,,ZAF-GAU,","CAPEX","RES-HYBR","","ZAF-GAU","",1229.1954260584585,"USD2021/kW","calculated. PV:  WIND-ON: "]
[null,"CAPEX,RES-HYBR,,ZAF-KWA,","CAPEX","RES-HYBR","","ZAF-KWA","",1229.1954260584585,"USD2021/kW","calculated. PV:  WIND-ON: "]
[null,"CAPEX,RES-HYBR,,ZAF-LIM,","CAPEX","RES-HYBR","","ZAF-LIM","",1229.1954260584585,"USD2021/kW","calculated. PV:  WIND-ON: "]
[null,"CAPEX,RES-HYBR,,ZAF-MPU,","CAPEX","RES-HYBR","","ZAF-MPU","",1229.1954260584585,"USD2021/kW","calculated. PV:  WIND-ON: "]
[null,"CAPEX,RES-HYBR,,ZAF-NC,","CAPEX","RES-HYBR","","ZAF-NC","",1229.1954260584585,"USD2021/kW","calculated. PV:  WIND-ON: "]
[null,"CAPEX,RES-HYBR,,ZAF-NW,","CAPEX","RES-HYBR","","ZAF-NW","",1229.1954260584585,"USD2021/kW","calculated. PV:  WIND-ON: "]
[null,"CAPEX,RES-HYBR,,ZAF-WC,","CAPEX","RES-HYBR","","ZAF-WC","",1229.1954260584585,"USD2021/kW","calculated. PV:  WIND-ON: "]
[null,"CAPEX,SOEC-EL,,,","CAPEX","SOEC-EL","","","",2831.6970271597133,"USD2021/kW"]
[null,"CAPEX,WIND-OFF,,ARE,","CAPEX","WIND-OFF","","ARE","",3316.6422675294375,"USD2021/kW"]
[null,"CAPEX,WIND-OFF,,ARG,","CAPEX","WIND-OFF","","ARG","",3316.6422675294375,"USD2021/kW"]
[null,"CAPEX,WIND-OFF,,ARG-BA,","CAPEX","WIND-OFF","","ARG-BA","",3316.6422675294375,"USD2021/kW"]
[null,"CAPEX,WIND-OFF,,ARG-CAT,","CAPEX","WIND-OFF","","ARG-CAT","",3316.6422675294375,"USD2021/kW"]
[null,"CAPEX,WIND-OFF,,ARG-CBA,","CAPEX","WIND-OFF","","ARG-CBA","",3316.6422675294375,"USD2021/kW"]
[null,"CAPEX,WIND-OFF,,ARG-CHA,","CAPEX","WIND-OFF","","ARG-CHA","",3316.6422675294375,"USD2021/kW"]
[null,"CAPEX,WIND-OFF,,ARG-CHU,","CAPEX","WIND-OFF","","ARG-CHU","",3316.6422675294375,"USD2021/kW"]
[null,"CAPEX,WIND-OFF,,ARG-COR,","CAPEX","WIND-OFF","","ARG-COR","",3316.6422675294375,"USD2021/kW"]
[null,"CAPEX,WIND-OFF,,ARG-CRB,","CAPEX","WIND-OFF","","ARG-CRB","",3316.6422675294375,"USD2021/kW"]
[null,"CAPEX,WIND-OFF,,ARG-CRU,","CAPEX","WIND-OFF","","ARG-CRU","",3316.6422675294375,"USD2021/kW"]
[null,"CAPEX,WIND-OFF,,ARG-EST,","CAPEX","WIND-OFF","","ARG-EST","",3316.6422675294375,"USD2021/kW"]
[null,"CAPEX,WIND-OFF,,ARG-FOR,","CAPEX","WIND-OFF","","ARG-FOR","",3316.6422675294375,"USD2021/kW"]
[null,"CAPEX,WIND-OFF,,ARG-FUE,","CAPEX","WIND-OFF","","ARG-FUE","",3316.6422675294375,"USD2021/kW"]
[null,"CAPEX,WIND-OFF,,ARG-JUJ,","CAPEX","WIND-OFF","","ARG-JUJ","",3316.6422675294375,"USD2021/kW"]
[null,"CAPEX,WIND-OFF,,ARG-LAR,","CAPEX","WIND-OFF","","ARG-LAR","",3316.6422675294375,"USD2021/kW"]
[null,"CAPEX,WIND-OFF,,ARG-MEN,","CAPEX","WIND-OFF","","ARG-MEN","",3316.6422675294375,"USD2021/kW"]
[null,"CAPEX,WIND-OFF,,ARG-MIS,","CAPEX","WIND-OFF","","ARG-MIS","",3316.6422675294375,"USD2021/kW"]
[null,"CAPEX,WIND-OFF,,ARG-NEG,","CAPEX","WIND-OFF","","ARG-NEG","",3316.6422675294375,"USD2021/kW"]
[null,"CAPEX,WIND-OFF,,ARG-NEU,","CAPEX","WIND-OFF","","ARG-NEU","",3316.6422675294375,"USD2021/kW"]
[null,"CAPEX,WIND-OFF,,ARG-PAM,","CAPEX","WIND-OFF","","ARG-PAM","",3316.6422675294375,"USD2021/kW"]
[null,"CAPEX,WIND-OFF,,ARG-RIO,","CAPEX","WIND-OFF","","ARG-RIO","",3316.6422675294375,"USD2021/kW"]
[null,"CAPEX,WIND-OFF,,ARG-SAF,","CAPEX","WIND-OFF","","ARG-SAF","",3316.6422675294375,"USD2021/kW"]
[null,"CAPEX,WIND-OFF,,ARG-SAJ,","CAPEX","WIND-OFF","","ARG-SAJ","",3316.6422675294375,"USD2021/kW"]
[null,"CAPEX,WIND-OFF,,ARG-SAL,","CAPEX","WIND-OFF","","ARG-SAL","",3316.6422675294375,"USD2021/kW"]
[null,"CAPEX,WIND-OFF,,ARG-SAT,","CAPEX","WIND-OFF","","ARG-SAT","",3316.6422675294375,"USD2021/kW"]
[null,"CAPEX,WIND-OFF,,ARG-TUC,","CAPEX","WIND-OFF","","ARG-TUC","",3316.6422675294375,"USD2021/kW"]
[null,"CAPEX,WIND-OFF,,AUS,","CAPEX","WIND-OFF","","AUS","",3316.6422675294375,"USD2021/kW"]
[null,"CAPEX,WIND-OFF,,BRA,","CAPEX","WIND-OFF","","BRA","",3316.6422675294375,"USD2021/kW"]
[null,"CAPEX,WIND-OFF,,CHL,","CAPEX","WIND-OFF","","CHL","",3316.6422675294375,"USD2021/kW"]
[null,"CAPEX,WIND-OFF,,CHN,","CAPEX","WIND-OFF","","CHN","",2763.8685562745313,"USD2021/kW"]
[null,"CAPEX,WIND-OFF,,COL,","CAPEX","WIND-OFF","","COL","",3317,"USD2021/kW"]
[null,"CAPEX,WIND-OFF,,CRI,","CAPEX","WIND-OFF","","CRI","",3316.6422675294375,"USD2021/kW"]
[null,"CAPEX,WIND-OFF,,DNK,","CAPEX","WIND-OFF","","DNK","",2214.3840130599938,"USD2021/kW"]
[null,"CAPEX,WIND-OFF,,DZA,","CAPEX","WIND-OFF","","DZA","",3316.6422675294375,"USD2021/kW"]
[null,"CAPEX,WIND-OFF,,EGY,","CAPEX","WIND-OFF","","EGY","",3316.6422675294375,"USD2021/kW"]
[null,"CAPEX,WIND-OFF,,ESP,","CAPEX","WIND-OFF","","ESP","",3316.6422675294375,"USD2021/kW"]
[null,"CAPEX,WIND-OFF,,IDN,","CAPEX","WIND-OFF","","IDN","",3316.6422675294375,"USD2021/kW"]
[null,"CAPEX,WIND-OFF,,IND,","CAPEX","WIND-OFF","","IND","",3316.6422675294375,"USD2021/kW"]
[null,"CAPEX,WIND-OFF,,JOR,","CAPEX","WIND-OFF","","JOR","",3316.6422675294375,"USD2021/kW"]
[null,"CAPEX,WIND-OFF,,KAZ,","CAPEX","WIND-OFF","","KAZ","",3316.6422675294375,"USD2021/kW"]
[null,"CAPEX,WIND-OFF,,KEN,","CAPEX","WIND-OFF","","KEN","",3316.6422675294375,"USD2021/kW"]
[null,"CAPEX,WIND-OFF,,MAR,","CAPEX","WIND-OFF","","MAR","",3316.6422675294375,"USD2021/kW"]
[null,"CAPEX,WIND-OFF,,MAR-BEN,","CAPEX","WIND-OFF","","MAR-BEN","",3316.6422675294375,"USD2021/kW"]
[null,"CAPEX,WIND-OFF,,MAR-CAS,","CAPEX","WIND-OFF","","MAR-CAS","",3316.6422675294375,"USD2021/kW"]
[null,"CAPEX,WIND-OFF,,MAR-DAK,","CAPEX","WIND-OFF","","MAR-DAK","",3316.6422675294375,"USD2021/kW"]
[null,"CAPEX,WIND-OFF,,MAR-DRA,","CAPEX","WIND-OFF","","MAR-DRA","",3316.6422675294375,"USD2021/kW"]
[null,"CAPEX,WIND-OFF,,MAR-FES,","CAPEX","WIND-OFF","","MAR-FES","",3316.6422675294375,"USD2021/kW"]
[null,"CAPEX,WIND-OFF,,MAR-GUE,","CAPEX","WIND-OFF","","MAR-GUE","",3316.6422675294375,"USD2021/kW"]
[null,"CAPEX,WIND-OFF,,MAR-LAA,","CAPEX","WIND-OFF","","MAR-LAA","",3316.6422675294375,"USD2021/kW"]
[null,"CAPEX,WIND-OFF,,MAR-LOR,","CAPEX","WIND-OFF","","MAR-LOR","",3316.6422675294375,"USD2021/kW"]
[null,"CAPEX,WIND-OFF,,MAR-MAR,","CAPEX","WIND-OFF","","MAR-MAR","",3316.6422675294375,"USD2021/kW"]
[null,"CAPEX,WIND-OFF,,MAR-RAB,","CAPEX","WIND-OFF","","MAR-RAB","",3316.6422675294375,"USD2021/kW"]
[null,"CAPEX,WIND-OFF,,MAR-SOU,","CAPEX","WIND-OFF","","MAR-SOU","",3316.6422675294375,"USD2021/kW"]
[null,"CAPEX,WIND-OFF,,MAR-TAN,","CAPEX","WIND-OFF","","MAR-TAN","",3316.6422675294375,"USD2021/kW"]
[null,"CAPEX,WIND-OFF,,MEX,","CAPEX","WIND-OFF","","MEX","",3316.6422675294375,"USD2021/kW"]
[null,"CAPEX,WIND-OFF,,MRT,","CAPEX","WIND-OFF","","MRT","",3316.6422675294375,"USD2021/kW"]
[null,"CAPEX,WIND-OFF,,NAM,","CAPEX","WIND-OFF","","NAM","",3316.6422675294375,"USD2021/kW"]
[null,"CAPEX,WIND-OFF,,NOR,","CAPEX","WIND-OFF","","NOR","",3316.6422675294375,"USD2021/kW"]
[null,"CAPEX,WIND-OFF,,PER,","CAPEX","WIND-OFF","","PER","",3316.6422675294375,"USD2021/kW"]
[null,"CAPEX,WIND-OFF,,PRT,","CAPEX","WIND-OFF","","PRT","",3316.6422675294375,"USD2021/kW"]
[null,"CAPEX,WIND-OFF,,RUS,","CAPEX","WIND-OFF","","RUS","",3316.6422675294375,"USD2021/kW"]
[null,"CAPEX,WIND-OFF,,SAU,","CAPEX","WIND-OFF","","SAU","",3316.6422675294375,"USD2021/kW"]
[null,"CAPEX,WIND-OFF,,SWE,","CAPEX","WIND-OFF","","SWE","",3316.6422675294375,"USD2021/kW"]
[null,"CAPEX,WIND-OFF,,THA,","CAPEX","WIND-OFF","","THA","",3316.6422675294375,"USD2021/kW"]
[null,"CAPEX,WIND-OFF,,TUN,","CAPEX","WIND-OFF","","TUN","",3316.6422675294375,"USD2021/kW"]
[null,"CAPEX,WIND-OFF,,UKR,","CAPEX","WIND-OFF","","UKR","",3316.6422675294375,"USD2021/kW"]
[null,"CAPEX,WIND-OFF,,URY,","CAPEX","WIND-OFF","","URY","",3316.6422675294375,"USD2021/kW"]
[null,"CAPEX,WIND-OFF,,USA,","CAPEX","WIND-OFF","","USA","",3316.6422675294375,"USD2021/kW"]
[null,"CAPEX,WIND-OFF,,VNM,","CAPEX","WIND-OFF","","VNM","",3316.6422675294375,"USD2021/kW"]
[null,"CAPEX,WIND-OFF,,ZAF,","CAPEX","WIND-OFF","","ZAF","",3316.6422675294375,"USD2021/kW"]
[null,"CAPEX,WIND-OFF,,ZAF-EC,","CAPEX","WIND-OFF","","ZAF-EC","",3316.6422675294375,"USD2021/kW"]
[null,"CAPEX,WIND-OFF,,ZAF-FRS,","CAPEX","WIND-OFF","","ZAF-FRS","",3316.6422675294375,"USD2021/kW"]
[null,"CAPEX,WIND-OFF,,ZAF-GAU,","CAPEX","WIND-OFF","","ZAF-GAU","",3316.6422675294375,"USD2021/kW"]
[null,"CAPEX,WIND-OFF,,ZAF-KWA,","CAPEX","WIND-OFF","","ZAF-KWA","",3316.6422675294375,"USD2021/kW"]
[null,"CAPEX,WIND-OFF,,ZAF-LIM,","CAPEX","WIND-OFF","","ZAF-LIM","",3316.6422675294375,"USD2021/kW"]
[null,"CAPEX,WIND-OFF,,ZAF-MPU,","CAPEX","WIND-OFF","","ZAF-MPU","",3316.6422675294375,"USD2021/kW"]
[null,"CAPEX,WIND-OFF,,ZAF-NC,","CAPEX","WIND-OFF","","ZAF-NC","",3316.6422675294375,"USD2021/kW"]
[null,"CAPEX,WIND-OFF,,ZAF-NW,","CAPEX","WIND-OFF","","ZAF-NW","",3316.6422675294375,"USD2021/kW"]
[null,"CAPEX,WIND-OFF,,ZAF-WC,","CAPEX","WIND-OFF","","ZAF-WC","",3316.6422675294375,"USD2021/kW"]
[null,"CAPEX,WIND-ON,,ARE,","CAPEX","WIND-ON","","ARE","",1509.7467595809105,"USD2021/kW"]
[null,"CAPEX,WIND-ON,,ARG,","CAPEX","WIND-ON","","ARG","",1710.0691451563712,"USD2021/kW"]
[null,"CAPEX,WIND-ON,,ARG-BA,","CAPEX","WIND-ON","","ARG-BA","",1710.0691451563712,"USD2021/kW"]
[null,"CAPEX,WIND-ON,,ARG-CAT,","CAPEX","WIND-ON","","ARG-CAT","",1710.0691451563712,"USD2021/kW"]
[null,"CAPEX,WIND-ON,,ARG-CBA,","CAPEX","WIND-ON","","ARG-CBA","",1710.0691451563712,"USD2021/kW"]
[null,"CAPEX,WIND-ON,,ARG-CHA,","CAPEX","WIND-ON","","ARG-CHA","",1710.0691451563712,"USD2021/kW"]
[null,"CAPEX,WIND-ON,,ARG-CHU,","CAPEX","WIND-ON","","ARG-CHU","",1710.0691451563712,"USD2021/kW"]
[null,"CAPEX,WIND-ON,,ARG-COR,","CAPEX","WIND-ON","","ARG-COR","",1710.0691451563712,"USD2021/kW"]
[null,"CAPEX,WIND-ON,,ARG-CRB,","CAPEX","WIND-ON","","ARG-CRB","",1710.0691451563712,"USD2021/kW"]
[null,"CAPEX,WIND-ON,,ARG-CRU,","CAPEX","WIND-ON","","ARG-CRU","",1710.0691451563712,"USD2021/kW"]
[null,"CAPEX,WIND-ON,,ARG-EST,","CAPEX","WIND-ON","","ARG-EST","",1710.0691451563712,"USD2021/kW"]
[null,"CAPEX,WIND-ON,,ARG-FOR,","CAPEX","WIND-ON","","ARG-FOR","",1710.0691451563712,"USD2021/kW"]
[null,"CAPEX,WIND-ON,,ARG-FUE,","CAPEX","WIND-ON","","ARG-FUE","",1710.0691451563712,"USD2021/kW"]
[null,"CAPEX,WIND-ON,,ARG-JUJ,","CAPEX","WIND-ON","","ARG-JUJ","",1710.0691451563712,"USD2021/kW"]
[null,"CAPEX,WIND-ON,,ARG-LAR,","CAPEX","WIND-ON","","ARG-LAR","",1710.0691451563712,"USD2021/kW"]
[null,"CAPEX,WIND-ON,,ARG-MEN,","CAPEX","WIND-ON","","ARG-MEN","",1710.0691451563712,"USD2021/kW"]
[null,"CAPEX,WIND-ON,,ARG-MIS,","CAPEX","WIND-ON","","ARG-MIS","",1710.0691451563712,"USD2021/kW"]
[null,"CAPEX,WIND-ON,,ARG-NEG,","CAPEX","WIND-ON","","ARG-NEG","",1710.0691451563712,"USD2021/kW"]
[null,"CAPEX,WIND-ON,,ARG-NEU,","CAPEX","WIND-ON","","ARG-NEU","",1710.0691451563712,"USD2021/kW"]
[null,"CAPEX,WIND-ON,,ARG-PAM,","CAPEX","WIND-ON","","ARG-PAM","",1710.0691451563712,"USD2021/kW"]
[null,"CAPEX,WIND-ON,,ARG-RIO,","CAPEX","WIND-ON","","ARG-RIO","",1710.0691451563712,"USD2021/kW"]
[null,"CAPEX,WIND-ON,,ARG-SAF,","CAPEX","WIND-ON","","ARG-SAF","",1710.0691451563712,"USD2021/kW"]
[null,"CAPEX,WIND-ON,,ARG-SAJ,","CAPEX","WIND-ON","","ARG-SAJ","",1710.0691451563712,"USD2021/kW"]
[null,"CAPEX,WIND-ON,,ARG-SAL,","CAPEX","WIND-ON","","ARG-SAL","",1710.0691451563712,"USD2021/kW"]
[null,"CAPEX,WIND-ON,,ARG-SAT,","CAPEX","WIND-ON","","ARG-SAT","",1710.0691451563712,"USD2021/kW"]
[null,"CAPEX,WIND-ON,,ARG-TUC,","CAPEX","WIND-ON","","ARG-TUC","",1710.0691451563712,"USD2021/kW"]
[null,"CAPEX,WIND-ON,,AUS,","CAPEX","WIND-ON","","AUS","",1710.0691451563712,"USD2021/kW"]
[null,"CAPEX,WIND-ON,,BRA,","CAPEX","WIND-ON","","BRA","",1123.7597239599011,"USD2021/kW"]
[null,"CAPEX,WIND-ON,,CHL,","CAPEX","WIND-ON","","CHL","",1710.0691451563712,"USD2021/kW"]
[null,"CAPEX,WIND-ON,,CHN,","CAPEX","WIND-ON","","CHN","",1130.6000005405265,"USD2021/kW"]
[null,"CAPEX,WIND-ON,,COL,","CAPEX","WIND-ON","","COL","",1625,"USD2021/kW"]
[null,"CAPEX,WIND-ON,,CRI,","CAPEX","WIND-ON","","CRI","",1546.8796895900205,"USD2021/kW"]
[null,"CAPEX,WIND-ON,,DNK,","CAPEX","WIND-ON","","DNK","",1585.9669843364518,"USD2021/kW"]
[null,"CAPEX,WIND-ON,,DZA,","CAPEX","WIND-ON","","DZA","",1848.8290415062024,"USD2021/kW"]
[null,"CAPEX,WIND-ON,,EGY,","CAPEX","WIND-ON","","EGY","",1465.7735529911754,"USD2021/kW"]
[null,"CAPEX,WIND-ON,,ESP,","CAPEX","WIND-ON","","ESP","",1144.8190191230835,"USD2021/kW"]
[null,"CAPEX,WIND-ON,,IDN,","CAPEX","WIND-ON","","IDN","",2198.6603294867632,"USD2021/kW"]
[null,"CAPEX,WIND-ON,,IND,","CAPEX","WIND-ON","","IND","",904.87087337988555,"USD2021/kW"]
[null,"CAPEX,WIND-ON,,JOR,","CAPEX","WIND-ON","","JOR","",1848.8290415062024,"USD2021/kW"]
[null,"CAPEX,WIND-ON,,KAZ,","CAPEX","WIND-ON","","KAZ","",1465.7735529911754,"USD2021/kW"]
[null,"CAPEX,WIND-ON,,KEN,","CAPEX","WIND-ON","","KEN","",1848.8290415062024,"USD2021/kW"]
[null,"CAPEX,WIND-ON,,MAR,","CAPEX","WIND-ON","","MAR","",1710.0691451563712,"USD2021/kW"]
[null,"CAPEX,WIND-ON,,MAR-BEN,","CAPEX","WIND-ON","","MAR-BEN","",1710.0691451563712,"USD2021/kW"]
[null,"CAPEX,WIND-ON,,MAR-CAS,","CAPEX","WIND-ON","","MAR-CAS","",1710.0691451563712,"USD2021/kW"]
[null,"CAPEX,WIND-ON,,MAR-DAK,","CAPEX","WIND-ON","","MAR-DAK","",1710.0691451563712,"USD2021/kW"]
[null,"CAPEX,WIND-ON,,MAR-DRA,","CAPEX","WIND-ON","","MAR-DRA","",1710.0691451563712,"USD2021/kW"]
[null,"CAPEX,WIND-ON,,MAR-FES,","CAPEX","WIND-ON","","MAR-FES","",1710.0691451563712,"USD2021/kW"]
[null,"CAPEX,WIND-ON,,MAR-GUE,","CAPEX","WIND-ON","","MAR-GUE","",1710.0691451563712,"USD2021/kW"]
[null,"CAPEX,WIND-ON,,MAR-LAA,","CAPEX","WIND-ON","","MAR-LAA","",1710.0691451563712,"USD2021/kW"]
[null,"CAPEX,WIND-ON,,MAR-LOR,","CAPEX","WIND-ON","","MAR-LOR","",1710.0691451563712,"USD2021/kW"]
[null,"CAPEX,WIND-ON,,MAR-MAR,","CAPEX","WIND-ON","","MAR-MAR","",1710.0691451563712,"USD2021/kW"]
[null,"CAPEX,WIND-ON,,MAR-RAB,","CAPEX","WIND-ON","","MAR-RAB","",1710.0691451563712,"USD2021/kW"]
[null,"CAPEX,WIND-ON,,MAR-SOU,","CAPEX","WIND-ON","","MAR-SOU","",1710.0691451563712,"USD2021/kW"]
[null,"CAPEX,WIND-ON,,MAR-TAN,","CAPEX","WIND-ON","","MAR-TAN","",1710.0691451563712,"USD2021/kW"]
[null,"CAPEX,WIND-ON,,MEX,","CAPEX","WIND-ON","","MEX","",1437.8552328955,"USD2021/kW"]
[null,"CAPEX,WIND-ON,,MRT,","CAPEX","WIND-ON","","MRT","",1848.8290415062024,"USD2021/kW"]
[null,"CAPEX,WIND-ON,,NAM,","CAPEX","WIND-ON","","NAM","",1848.8290415062024,"USD2021/kW"]
[null,"CAPEX,WIND-ON,,NOR,","CAPEX","WIND-ON","","NOR","",1465.7735529911754,"USD2021/kW"]
[null,"CAPEX,WIND-ON,,PER,","CAPEX","WIND-ON","","PER","",1221.4779608259794,"USD2021/kW"]
[null,"CAPEX,WIND-ON,,PRT,","CAPEX","WIND-ON","","PRT","",1710.0691451563712,"USD2021/kW"]
[null,"CAPEX,WIND-ON,,RUS,","CAPEX","WIND-ON","","RUS","",1465.7735529911754,"USD2021/kW"]
[null,"CAPEX,WIND-ON,,SAU,","CAPEX","WIND-ON","","SAU","",1509.7467595809105,"USD2021/kW"]
[null,"CAPEX,WIND-ON,,SWE,","CAPEX","WIND-ON","","SWE","",1585.9669843364518,"USD2021/kW"]
[null,"CAPEX,WIND-ON,,THA,","CAPEX","WIND-ON","","THA","",1509.7467595809105,"USD2021/kW"]
[null,"CAPEX,WIND-ON,,TUN,","CAPEX","WIND-ON","","TUN","",1848.8290415062024,"USD2021/kW"]
[null,"CAPEX,WIND-ON,,UKR,","CAPEX","WIND-ON","","UKR","",1465.7735529911754,"USD2021/kW"]
[null,"CAPEX,WIND-ON,,URY,","CAPEX","WIND-ON","","URY","",2198.6603294867632,"USD2021/kW"]
[null,"CAPEX,WIND-ON,,USA,","CAPEX","WIND-ON","","USA","",1350.1851629205719,"USD2021/kW"]
[null,"CAPEX,WIND-ON,,VNM,","CAPEX","WIND-ON","","VNM","",2198.6603294867632,"USD2021/kW"]
[null,"CAPEX,WIND-ON,,ZAF,","CAPEX","WIND-ON","","ZAF","",1710.0691451563712,"USD2021/kW"]
[null,"CAPEX,WIND-ON,,ZAF-EC,","CAPEX","WIND-ON","","ZAF-EC","",1710.0691451563712,"USD2021/kW"]
[null,"CAPEX,WIND-ON,,ZAF-FRS,","CAPEX","WIND-ON","","ZAF-FRS","",1710.0691451563712,"USD2021/kW"]
[null,"CAPEX,WIND-ON,,ZAF-GAU,","CAPEX","WIND-ON","","ZAF-GAU","",1710.0691451563712,"USD2021/kW"]
[null,"CAPEX,WIND-ON,,ZAF-KWA,","CAPEX","WIND-ON","","ZAF-KWA","",1710.0691451563712,"USD2021/kW"]
[null,"CAPEX,WIND-ON,,ZAF-LIM,","CAPEX","WIND-ON","","ZAF-LIM","",1710.0691451563712,"USD2021/kW"]
[null,"CAPEX,WIND-ON,,ZAF-MPU,","CAPEX","WIND-ON","","ZAF-MPU","",1710.0691451563712,"USD2021/kW"]
[null,"CAPEX,WIND-ON,,ZAF-NC,","CAPEX","WIND-ON","","ZAF-NC","",1710.0691451563712,"USD2021/kW"]
[null,"CAPEX,WIND-ON,,ZAF-NW,","CAPEX","WIND-ON","","ZAF-NW","",1710.0691451563712,"USD2021/kW"]
[null,"CAPEX,WIND-ON,,ZAF-WC,","CAPEX","WIND-ON","","ZAF-WC","",1710.0691451563712,"USD2021/kW"]
[null,"CAP-T,,,DNK,DEU","CAP-T","","","DNK","DEU",1,"kWh/a"]
[null,"CAP-T,,,DZA,ESP","CAP-T","","","DZA","ESP",1,"kWh/a"]
[null,"CAP-T,,,ESP,FRA","CAP-T","","","ESP","FRA",1,"kWh/a"]
[null,"CAP-T,,,KAZ,CHN","CAP-T","","","KAZ","CHN",1,"kWh/a"]
[null,"CAP-T,,,MAR,ESP","CAP-T","","","MAR","ESP",1,"kWh/a"]
[null,"CAP-T,,,MAR-BEN,ESP","CAP-T","","","MAR-BEN","ESP",1,"kWh/a"]
[null,"CAP-T,,,MAR-CAS,ESP","CAP-T","","","MAR-CAS","ESP",1,"kWh/a"]
[null,"CAP-T,,,MAR-DAK,ESP","CAP-T","","","MAR-DAK","ESP",1,"kWh/a"]
[null,"CAP-T,,,MAR-DRA,ESP","CAP-T","","","MAR-DRA","ESP",1,"kWh/a"]
[null,"CAP-T,,,MAR-FES,ESP","CAP-T","","","MAR-FES","ESP",1,"kWh/a"]
[null,"CAP-T,,,MAR-GUE,ESP","CAP-T","","","MAR-GUE","ESP",1,"kWh/a"]
[null,"CAP-T,,,MAR-LAA,ESP","CAP-T","","","MAR-LAA","ESP",1,"kWh/a"]
[null,"CAP-T,,,MAR-LOR,ESP","CAP-T","","","MAR-LOR","ESP",1,"kWh/a"]
[null,"CAP-T,,,MAR-MAR,ESP","CAP-T","","","MAR-MAR","ESP",1,"kWh/a"]
[null,"CAP-T,,,MAR-RAB,ESP","CAP-T","","","MAR-RAB","ESP",1,"kWh/a"]
[null,"CAP-T,,,MAR-SOU,ESP","CAP-T","","","MAR-SOU","ESP",1,"kWh/a"]
[null,"CAP-T,,,MAR-TAN,ESP","CAP-T","","","MAR-TAN","ESP",1,"kWh/a"]
[null,"CAP-T,,,MEX,USA","CAP-T","","","MEX","USA",1,"kWh/a"]
[null,"CAP-T,,,NOR,DEU","CAP-T","","","NOR","DEU",1,"kWh/a"]
[null,"CAP-T,,,PRT,ESP","CAP-T","","","PRT","ESP",1,"kWh/a"]
[null,"CAP-T,,,RUS,CHN","CAP-T","","","RUS","CHN",1,"kWh/a"]
[null,"CAP-T,,,RUS,DEU","CAP-T","","","RUS","DEU",1,"kWh/a"]
[null,"CONV,AEL-EL,H2O-L,,","CONV","AEL-EL","H2O-L","","",0.3,"kg H2O (l)/H2-G"]
[null,"CONV,ATR,EL,,","CONV","ATR","EL","","",0.10771077107710771,"kWh (el.)/H2-G","Oni et al. 2022"]
[null,"CONV,CH3OH-SB,BFUEL-L,,","CONV","CH3OH-SB","BFUEL-L","","",3.0509883673175369E-6,"kwh bunker fuel (l)/(km*CH3OH-L)","calc_shipping"]
[null,"CONV,CH3OHSYN,CO2-G,,","CONV","CH3OHSYN","CO2-G","","",0.26448241206030154,"kg CO2 (g)/kWh CH3OH (l)","Frotier Economics 2021"]
[null,"CONV,CH3OHSYN,EL,,","CONV","CH3OHSYN","EL","","",3.9989420788151285E-2,"kWh (el.)/kWh CH3OH (l)","Fasihi & Breyer 2018"]
[null,"CONV,CH4-COMP,EL,,","CONV","CH4-COMP","EL","","",0.02,"kWh (el.)/CH4-G","DNV GL 2020"]
[null,"CONV,CH4-LIQ,EL,,","CONV","CH4-LIQ","EL","","",0.10526315789473685,"kWh (el.)/CH4-L","Pospíšil et al. 2019"]
[null,"CONV,CH4-SB,BFUEL-L,,","CONV","CH4-SB","BFUEL-L","","",3.3002590965851548E-6,"kwh bunker fuel (l)/(km*CH4-L)","calc_shipping"]
[null,"CONV,CH4SYN,CO2-G,,","CONV","CH4SYN","CO2-G","","",0.20196,"kg CO2 (g)/kWh CH4 (g)"]
[null,"CONV,CH4SYN,H2O-L,,","CONV","CH4SYN","H2O-L","","",-0.14263322884012539,"kg H2O (l)/kWh CH4 (g)","Fasihi & Breyer 2018"]
[null,"CONV,CH4SYN,HEAT,,","CONV","CH4SYN","HEAT","","",-0.18495297805642633,"kWh (heat)/kWh CH4 (g)","Fasihi & Breyer 2018"]
[null,"CONV,DAC,EL,,","CONV","DAC","EL","","",0.46249999999999997,"kWh (el.)/kg CO2 (g)","average low and high"]
[null,"CONV,DAC,H2O-L,,","CONV","DAC","H2O-L","","",-1.4,"kg H2O (l)/kg CO2 (g)","Fasihi et al. 2019"]
[null,"CONV,DAC,HEAT,,","CONV","DAC","HEAT","","",1.85,"kWh (heat)/kg CO2 (g)","average low and high"]
[null,"CONV,DESAL,EL,,","CONV","DESAL","EL","","",3.0000000000000001E-3,"kWh (el.)/kg H2O (l)"]
[null,"CONV,DRI,EL,,","CONV","DRI","EL","","",0.10829670329670329,"kWh (el.)/kg DRI (s)","Agora Industry Transformation 2021"]
[null,"CONV,EFUELSYN,CO2-G,,","CONV","EFUELSYN","CO2-G","","",0.26455813953488377,"kg CO2 (g)/kwh CHx (l)","Frontier Economics 2021"]
[null,"CONV,EFUELSYN,EL,,","CONV","EFUELSYN","EL","","",8.5778781038374718E-2,"kWh (el.)/kwh CHx (l)","Fasihi & Breyer 2018"]
[null,"CONV,EFUELSYN,H2O-L,,","CONV","EFUELSYN","H2O-L","","",-0.24830699774266365,"kg H2O (l)/kwh CHx (l)","Fasihi & Breyer 2018"]
[null,"CONV,EFUELSYN,HEAT,,","CONV","EFUELSYN","HEAT","","",-0.40397350993377484,"kWh (heat)/kwh CHx (l)","Fasihi & Breyer 2018"]
[null,"CONV,H2-COMP,EL,,","CONV","H2-COMP","EL","","",0.02,"kWh (el.)/H2-G","DNV GL 2020"]
[null,"CONV,H2-LIQ,EL,,","CONV","H2-LIQ","EL","","",0.30010003334444812,"kWh (el.)/H2-L","DNV GL 2020"]
[null,"CONV,H2-SB,BFUEL-L,,","CONV","H2-SB","BFUEL-L","","",7.9560265731287527E-6,"kwh bunker fuel (l)/(km*H2-L)","calc_shipping"]
[null,"CONV,LOHC-CON,EL,,","CONV","LOHC-CON","EL","","",0.01,"kWh (el.)/LOHC-L","DNV GL 2020"]
[null,"CONV,LOHC-REC,EL,,","CONV","LOHC-REC","EL","","",2.8502850285028507E-2,"kWh (el.)/H2-G","Staiß et al. 2022 nach Wasserscheid"]
[null,"CONV,LOHC-REC,HEAT,,","CONV","LOHC-REC","HEAT","","",0.40540540540540537,"kWh (heat)/H2-G","DNV GL 2020"]
[null,"CONV,LOHC-SB,BFUEL-L,,","CONV","LOHC-SB","BFUEL-L","","",9.9204160904178207E-6,"kwh bunker fuel (l)/(km*LOHC-L)","calc_shipping"]
[null,"CONV,NH3-REC,EL,,","CONV","NH3-REC","EL","","",7.6699999999999989E-3,"kWh (el.)/H2-G","NGN; Equinor 2018"]
[null,"CONV,NH3-SB,BFUEL-L,,","CONV","NH3-SB","BFUEL-L","","",5.3436561034163411E-6,"kwh bunker fuel (l)/(km*NH3-L)","calc_shipping"]
[null,"CONV,NH3SYN,EL,,","CONV","NH3SYN","EL","","",0.14192307692307693,"kWh (el.)/kWh NH3 (l)","Fasihi et al. 2021"]
[null,"CONV,NH3SYN,N2-G,,","CONV","NH3SYN","N2-G","","",0.15980769230769232,"kg N2 (g)/kWh NH3 (l)","Fasihi et al. 2021"]
[null,"CONV,PEM-EL,H2O-L,,","CONV","PEM-EL","H2O-L","","",0.3,"kg H2O (l)/H2-G"]
[null,"CONV,REGASATR,EL,,","CONV","REGASATR","EL","","",0.10771077107710771,"kWh (el.)/H2-G","combined values"]
[null,"CONV,SOEC-EL,H2O-L,,","CONV","SOEC-EL","H2O-L","","",0.3,"kg H2O (l)/H2-G"]
[null,"CONV,SYN-S,CHX-L,,","CONV","SYN-S","CHX-L","","",1.2641936395012889E-6,"kwh CHx (l)/(km*CHX-L)","calc_shipping"]
[null,"CONV,SYN-SB,BFUEL-L,,","CONV","SYN-SB","BFUEL-L","","",1.2641936395012889E-6,"kwh bunker fuel (l)/(km*CHX-L)","calc_shipping"]
[null,"DST-S-D,,,ARE,CHN","DST-S-D","","","ARE","CHN",10367.799999999999,null,"CERDI"]
[null,"DST-S-D,,,ARE,DEU","DST-S-D","","","ARE","DEU",12441.9,null,"CERDI"]
[null,"DST-S-D,,,ARE,ESP","DST-S-D","","","ARE","ESP",8992.74,null,"CERDI"]
[null,"DST-S-D,,,ARE,FRA","DST-S-D","","","ARE","FRA",7580.97,null,"CERDI"]
[null,"DST-S-D,,,ARE,IND","DST-S-D","","","ARE","IND",1804.27,null,"CERDI"]
[null,"DST-S-D,,,ARE,JPN","DST-S-D","","","ARE","JPN",11276.3,null,"CERDI"]
[null,"DST-S-D,,,ARE,KOR","DST-S-D","","","ARE","KOR",10955.6,null,"CERDI"]
[null,"DST-S-D,,,ARE,NLD","DST-S-D","","","ARE","NLD",11975.9,null,"CERDI"]
[null,"DST-S-D,,,ARE,USA","DST-S-D","","","ARE","USA",18373.3,null,"CERDI"]
[null,"DST-S-D,,,ARG,CHN","DST-S-D","","","ARG","CHN",19486.8,null,"CERDI"]
[null,"DST-S-D,,,ARG,DEU","DST-S-D","","","ARG","DEU",12728.796,null,"SEA-DISTANCES.ORG"]
[null,"DST-S-D,,,ARG,ESP","DST-S-D","","","ARG","ESP",11766,null,"CERDI"]
[null,"DST-S-D,,,ARG,FRA","DST-S-D","","","ARG","FRA",13195.9,null,"CERDI"]
[null,"DST-S-D,,,ARG,IND","DST-S-D","","","ARG","IND",16155.2,null,"CERDI"]
[null,"DST-S-D,,,ARG,JPN","DST-S-D","","","ARG","JPN",18848.2,null,"CERDI"]
[null,"DST-S-D,,,ARG,KOR","DST-S-D","","","ARG","KOR",19350,null,"CERDI"]
[null,"DST-S-D,,,ARG,NLD","DST-S-D","","","ARG","NLD",13750.5,null,"CERDI"]
[null,"DST-S-D,,,ARG,USA","DST-S-D","","","ARG","USA",12589.7,null,"CERDI"]
[null,"DST-S-D,,,ARG-BA,CHN","DST-S-D","","","ARG-BA","CHN",19486.8,null,"CERDI"]
[null,"DST-S-D,,,ARG-BA,DEU","DST-S-D","","","ARG-BA","DEU",12728.796,null,"SEA-DISTANCES.ORG"]
[null,"DST-S-D,,,ARG-BA,ESP","DST-S-D","","","ARG-BA","ESP",11766,null,"CERDI"]
[null,"DST-S-D,,,ARG-BA,FRA","DST-S-D","","","ARG-BA","FRA",13195.9,null,"CERDI"]
[null,"DST-S-D,,,ARG-BA,IND","DST-S-D","","","ARG-BA","IND",16155.2,null,"CERDI"]
[null,"DST-S-D,,,ARG-BA,JPN","DST-S-D","","","ARG-BA","JPN",18848.2,null,"CERDI"]
[null,"DST-S-D,,,ARG-BA,KOR","DST-S-D","","","ARG-BA","KOR",19350,null,"CERDI"]
[null,"DST-S-D,,,ARG-BA,NLD","DST-S-D","","","ARG-BA","NLD",13750.5,null,"CERDI"]
[null,"DST-S-D,,,ARG-BA,USA","DST-S-D","","","ARG-BA","USA",12589.7,null,"CERDI"]
[null,"DST-S-D,,,ARG-CAT,CHN","DST-S-D","","","ARG-CAT","CHN",19486.8,null,"CERDI"]
[null,"DST-S-D,,,ARG-CAT,DEU","DST-S-D","","","ARG-CAT","DEU",12728.796,null,"SEA-DISTANCES.ORG"]
[null,"DST-S-D,,,ARG-CAT,ESP","DST-S-D","","","ARG-CAT","ESP",11766,null,"CERDI"]
[null,"DST-S-D,,,ARG-CAT,FRA","DST-S-D","","","ARG-CAT","FRA",13195.9,null,"CERDI"]
[null,"DST-S-D,,,ARG-CAT,IND","DST-S-D","","","ARG-CAT","IND",16155.2,null,"CERDI"]
[null,"DST-S-D,,,ARG-CAT,JPN","DST-S-D","","","ARG-CAT","JPN",18848.2,null,"CERDI"]
[null,"DST-S-D,,,ARG-CAT,KOR","DST-S-D","","","ARG-CAT","KOR",19350,null,"CERDI"]
[null,"DST-S-D,,,ARG-CAT,NLD","DST-S-D","","","ARG-CAT","NLD",13750.5,null,"CERDI"]
[null,"DST-S-D,,,ARG-CAT,USA","DST-S-D","","","ARG-CAT","USA",12589.7,null,"CERDI"]
[null,"DST-S-D,,,ARG-CBA,CHN","DST-S-D","","","ARG-CBA","CHN",19486.8,null,"CERDI"]
[null,"DST-S-D,,,ARG-CBA,DEU","DST-S-D","","","ARG-CBA","DEU",12728.796,null,"SEA-DISTANCES.ORG"]
[null,"DST-S-D,,,ARG-CBA,ESP","DST-S-D","","","ARG-CBA","ESP",11766,null,"CERDI"]
[null,"DST-S-D,,,ARG-CBA,FRA","DST-S-D","","","ARG-CBA","FRA",13195.9,null,"CERDI"]
[null,"DST-S-D,,,ARG-CBA,IND","DST-S-D","","","ARG-CBA","IND",16155.2,null,"CERDI"]
[null,"DST-S-D,,,ARG-CBA,JPN","DST-S-D","","","ARG-CBA","JPN",18848.2,null,"CERDI"]
[null,"DST-S-D,,,ARG-CBA,KOR","DST-S-D","","","ARG-CBA","KOR",19350,null,"CERDI"]
[null,"DST-S-D,,,ARG-CBA,NLD","DST-S-D","","","ARG-CBA","NLD",13750.5,null,"CERDI"]
[null,"DST-S-D,,,ARG-CBA,USA","DST-S-D","","","ARG-CBA","USA",12589.7,null,"CERDI"]
[null,"DST-S-D,,,ARG-CHA,CHN","DST-S-D","","","ARG-CHA","CHN",19486.8,null,"CERDI"]
[null,"DST-S-D,,,ARG-CHA,DEU","DST-S-D","","","ARG-CHA","DEU",12728.796,null,"SEA-DISTANCES.ORG"]
[null,"DST-S-D,,,ARG-CHA,ESP","DST-S-D","","","ARG-CHA","ESP",11766,null,"CERDI"]
[null,"DST-S-D,,,ARG-CHA,FRA","DST-S-D","","","ARG-CHA","FRA",13195.9,null,"CERDI"]
[null,"DST-S-D,,,ARG-CHA,IND","DST-S-D","","","ARG-CHA","IND",16155.2,null,"CERDI"]
[null,"DST-S-D,,,ARG-CHA,JPN","DST-S-D","","","ARG-CHA","JPN",18848.2,null,"CERDI"]
[null,"DST-S-D,,,ARG-CHA,KOR","DST-S-D","","","ARG-CHA","KOR",19350,null,"CERDI"]
[null,"DST-S-D,,,ARG-CHA,NLD","DST-S-D","","","ARG-CHA","NLD",13750.5,null,"CERDI"]
[null,"DST-S-D,,,ARG-CHA,USA","DST-S-D","","","ARG-CHA","USA",12589.7,null,"CERDI"]
[null,"DST-S-D,,,ARG-CHU,CHN","DST-S-D","","","ARG-CHU","CHN",19486.8,null,"CERDI"]
[null,"DST-S-D,,,ARG-CHU,DEU","DST-S-D","","","ARG-CHU","DEU",12728.796,null,"SEA-DISTANCES.ORG"]
[null,"DST-S-D,,,ARG-CHU,ESP","DST-S-D","","","ARG-CHU","ESP",11766,null,"CERDI"]
[null,"DST-S-D,,,ARG-CHU,FRA","DST-S-D","","","ARG-CHU","FRA",13195.9,null,"CERDI"]
[null,"DST-S-D,,,ARG-CHU,IND","DST-S-D","","","ARG-CHU","IND",16155.2,null,"CERDI"]
[null,"DST-S-D,,,ARG-CHU,JPN","DST-S-D","","","ARG-CHU","JPN",18848.2,null,"CERDI"]
[null,"DST-S-D,,,ARG-CHU,KOR","DST-S-D","","","ARG-CHU","KOR",19350,null,"CERDI"]
[null,"DST-S-D,,,ARG-CHU,NLD","DST-S-D","","","ARG-CHU","NLD",13750.5,null,"CERDI"]
[null,"DST-S-D,,,ARG-CHU,USA","DST-S-D","","","ARG-CHU","USA",12589.7,null,"CERDI"]
[null,"DST-S-D,,,ARG-COR,CHN","DST-S-D","","","ARG-COR","CHN",19486.8,null,"CERDI"]
[null,"DST-S-D,,,ARG-COR,DEU","DST-S-D","","","ARG-COR","DEU",12728.796,null,"SEA-DISTANCES.ORG"]
[null,"DST-S-D,,,ARG-COR,ESP","DST-S-D","","","ARG-COR","ESP",11766,null,"CERDI"]
[null,"DST-S-D,,,ARG-COR,FRA","DST-S-D","","","ARG-COR","FRA",13195.9,null,"CERDI"]
[null,"DST-S-D,,,ARG-COR,IND","DST-S-D","","","ARG-COR","IND",16155.2,null,"CERDI"]
[null,"DST-S-D,,,ARG-COR,JPN","DST-S-D","","","ARG-COR","JPN",18848.2,null,"CERDI"]
[null,"DST-S-D,,,ARG-COR,KOR","DST-S-D","","","ARG-COR","KOR",19350,null,"CERDI"]
[null,"DST-S-D,,,ARG-COR,NLD","DST-S-D","","","ARG-COR","NLD",13750.5,null,"CERDI"]
[null,"DST-S-D,,,ARG-COR,USA","DST-S-D","","","ARG-COR","USA",12589.7,null,"CERDI"]
[null,"DST-S-D,,,ARG-CRB,CHN","DST-S-D","","","ARG-CRB","CHN",19486.8,null,"CERDI"]
[null,"DST-S-D,,,ARG-CRB,DEU","DST-S-D","","","ARG-CRB","DEU",12728.796,null,"SEA-DISTANCES.ORG"]
[null,"DST-S-D,,,ARG-CRB,ESP","DST-S-D","","","ARG-CRB","ESP",11766,null,"CERDI"]
[null,"DST-S-D,,,ARG-CRB,FRA","DST-S-D","","","ARG-CRB","FRA",13195.9,null,"CERDI"]
[null,"DST-S-D,,,ARG-CRB,IND","DST-S-D","","","ARG-CRB","IND",16155.2,null,"CERDI"]
[null,"DST-S-D,,,ARG-CRB,JPN","DST-S-D","","","ARG-CRB","JPN",18848.2,null,"CERDI"]
[null,"DST-S-D,,,ARG-CRB,KOR","DST-S-D","","","ARG-CRB","KOR",19350,null,"CERDI"]
[null,"DST-S-D,,,ARG-CRB,NLD","DST-S-D","","","ARG-CRB","NLD",13750.5,null,"CERDI"]
[null,"DST-S-D,,,ARG-CRB,USA","DST-S-D","","","ARG-CRB","USA",12589.7,null,"CERDI"]
[null,"DST-S-D,,,ARG-CRU,CHN","DST-S-D","","","ARG-CRU","CHN",19486.8,null,"CERDI"]
[null,"DST-S-D,,,ARG-CRU,DEU","DST-S-D","","","ARG-CRU","DEU",12728.796,null,"SEA-DISTANCES.ORG"]
[null,"DST-S-D,,,ARG-CRU,ESP","DST-S-D","","","ARG-CRU","ESP",11766,null,"CERDI"]
[null,"DST-S-D,,,ARG-CRU,FRA","DST-S-D","","","ARG-CRU","FRA",13195.9,null,"CERDI"]
[null,"DST-S-D,,,ARG-CRU,IND","DST-S-D","","","ARG-CRU","IND",16155.2,null,"CERDI"]
[null,"DST-S-D,,,ARG-CRU,JPN","DST-S-D","","","ARG-CRU","JPN",18848.2,null,"CERDI"]
[null,"DST-S-D,,,ARG-CRU,KOR","DST-S-D","","","ARG-CRU","KOR",19350,null,"CERDI"]
[null,"DST-S-D,,,ARG-CRU,NLD","DST-S-D","","","ARG-CRU","NLD",13750.5,null,"CERDI"]
[null,"DST-S-D,,,ARG-CRU,USA","DST-S-D","","","ARG-CRU","USA",12589.7,null,"CERDI"]
[null,"DST-S-D,,,ARG-EST,CHN","DST-S-D","","","ARG-EST","CHN",19486.8,null,"CERDI"]
[null,"DST-S-D,,,ARG-EST,DEU","DST-S-D","","","ARG-EST","DEU",12728.796,null,"SEA-DISTANCES.ORG"]
[null,"DST-S-D,,,ARG-EST,ESP","DST-S-D","","","ARG-EST","ESP",11766,null,"CERDI"]
[null,"DST-S-D,,,ARG-EST,FRA","DST-S-D","","","ARG-EST","FRA",13195.9,null,"CERDI"]
[null,"DST-S-D,,,ARG-EST,IND","DST-S-D","","","ARG-EST","IND",16155.2,null,"CERDI"]
[null,"DST-S-D,,,ARG-EST,JPN","DST-S-D","","","ARG-EST","JPN",18848.2,null,"CERDI"]
[null,"DST-S-D,,,ARG-EST,KOR","DST-S-D","","","ARG-EST","KOR",19350,null,"CERDI"]
[null,"DST-S-D,,,ARG-EST,NLD","DST-S-D","","","ARG-EST","NLD",13750.5,null,"CERDI"]
[null,"DST-S-D,,,ARG-EST,USA","DST-S-D","","","ARG-EST","USA",12589.7,null,"CERDI"]
[null,"DST-S-D,,,ARG-FOR,CHN","DST-S-D","","","ARG-FOR","CHN",19486.8,null,"CERDI"]
[null,"DST-S-D,,,ARG-FOR,DEU","DST-S-D","","","ARG-FOR","DEU",12728.796,null,"SEA-DISTANCES.ORG"]
[null,"DST-S-D,,,ARG-FOR,ESP","DST-S-D","","","ARG-FOR","ESP",11766,null,"CERDI"]
[null,"DST-S-D,,,ARG-FOR,FRA","DST-S-D","","","ARG-FOR","FRA",13195.9,null,"CERDI"]
[null,"DST-S-D,,,ARG-FOR,IND","DST-S-D","","","ARG-FOR","IND",16155.2,null,"CERDI"]
[null,"DST-S-D,,,ARG-FOR,JPN","DST-S-D","","","ARG-FOR","JPN",18848.2,null,"CERDI"]
[null,"DST-S-D,,,ARG-FOR,KOR","DST-S-D","","","ARG-FOR","KOR",19350,null,"CERDI"]
[null,"DST-S-D,,,ARG-FOR,NLD","DST-S-D","","","ARG-FOR","NLD",13750.5,null,"CERDI"]
[null,"DST-S-D,,,ARG-FOR,USA","DST-S-D","","","ARG-FOR","USA",12589.7,null,"CERDI"]
[null,"DST-S-D,,,ARG-FUE,CHN","DST-S-D","","","ARG-FUE","CHN",19486.8,null,"CERDI"]
[null,"DST-S-D,,,ARG-FUE,DEU","DST-S-D","","","ARG-FUE","DEU",12728.796,null,"SEA-DISTANCES.ORG"]
[null,"DST-S-D,,,ARG-FUE,ESP","DST-S-D","","","ARG-FUE","ESP",11766,null,"CERDI"]
[null,"DST-S-D,,,ARG-FUE,FRA","DST-S-D","","","ARG-FUE","FRA",13195.9,null,"CERDI"]
[null,"DST-S-D,,,ARG-FUE,IND","DST-S-D","","","ARG-FUE","IND",16155.2,null,"CERDI"]
[null,"DST-S-D,,,ARG-FUE,JPN","DST-S-D","","","ARG-FUE","JPN",18848.2,null,"CERDI"]
[null,"DST-S-D,,,ARG-FUE,KOR","DST-S-D","","","ARG-FUE","KOR",19350,null,"CERDI"]
[null,"DST-S-D,,,ARG-FUE,NLD","DST-S-D","","","ARG-FUE","NLD",13750.5,null,"CERDI"]
[null,"DST-S-D,,,ARG-FUE,USA","DST-S-D","","","ARG-FUE","USA",12589.7,null,"CERDI"]
[null,"DST-S-D,,,ARG-JUJ,CHN","DST-S-D","","","ARG-JUJ","CHN",19486.8,null,"CERDI"]
[null,"DST-S-D,,,ARG-JUJ,DEU","DST-S-D","","","ARG-JUJ","DEU",12728.796,null,"SEA-DISTANCES.ORG"]
[null,"DST-S-D,,,ARG-JUJ,ESP","DST-S-D","","","ARG-JUJ","ESP",11766,null,"CERDI"]
[null,"DST-S-D,,,ARG-JUJ,FRA","DST-S-D","","","ARG-JUJ","FRA",13195.9,null,"CERDI"]
[null,"DST-S-D,,,ARG-JUJ,IND","DST-S-D","","","ARG-JUJ","IND",16155.2,null,"CERDI"]
[null,"DST-S-D,,,ARG-JUJ,JPN","DST-S-D","","","ARG-JUJ","JPN",18848.2,null,"CERDI"]
[null,"DST-S-D,,,ARG-JUJ,KOR","DST-S-D","","","ARG-JUJ","KOR",19350,null,"CERDI"]
[null,"DST-S-D,,,ARG-JUJ,NLD","DST-S-D","","","ARG-JUJ","NLD",13750.5,null,"CERDI"]
[null,"DST-S-D,,,ARG-JUJ,USA","DST-S-D","","","ARG-JUJ","USA",12589.7,null,"CERDI"]
[null,"DST-S-D,,,ARG-LAR,CHN","DST-S-D","","","ARG-LAR","CHN",19486.8,null,"CERDI"]
[null,"DST-S-D,,,ARG-LAR,DEU","DST-S-D","","","ARG-LAR","DEU",12728.796,null,"SEA-DISTANCES.ORG"]
[null,"DST-S-D,,,ARG-LAR,ESP","DST-S-D","","","ARG-LAR","ESP",11766,null,"CERDI"]
[null,"DST-S-D,,,ARG-LAR,FRA","DST-S-D","","","ARG-LAR","FRA",13195.9,null,"CERDI"]
[null,"DST-S-D,,,ARG-LAR,IND","DST-S-D","","","ARG-LAR","IND",16155.2,null,"CERDI"]
[null,"DST-S-D,,,ARG-LAR,JPN","DST-S-D","","","ARG-LAR","JPN",18848.2,null,"CERDI"]
[null,"DST-S-D,,,ARG-LAR,KOR","DST-S-D","","","ARG-LAR","KOR",19350,null,"CERDI"]
[null,"DST-S-D,,,ARG-LAR,NLD","DST-S-D","","","ARG-LAR","NLD",13750.5,null,"CERDI"]
[null,"DST-S-D,,,ARG-LAR,USA","DST-S-D","","","ARG-LAR","USA",12589.7,null,"CERDI"]
[null,"DST-S-D,,,ARG-MEN,CHN","DST-S-D","","","ARG-MEN","CHN",19486.8,null,"CERDI"]
[null,"DST-S-D,,,ARG-MEN,DEU","DST-S-D","","","ARG-MEN","DEU",12728.796,null,"SEA-DISTANCES.ORG"]
[null,"DST-S-D,,,ARG-MEN,ESP","DST-S-D","","","ARG-MEN","ESP",11766,null,"CERDI"]
[null,"DST-S-D,,,ARG-MEN,FRA","DST-S-D","","","ARG-MEN","FRA",13195.9,null,"CERDI"]
[null,"DST-S-D,,,ARG-MEN,IND","DST-S-D","","","ARG-MEN","IND",16155.2,null,"CERDI"]
[null,"DST-S-D,,,ARG-MEN,JPN","DST-S-D","","","ARG-MEN","JPN",18848.2,null,"CERDI"]
[null,"DST-S-D,,,ARG-MEN,KOR","DST-S-D","","","ARG-MEN","KOR",19350,null,"CERDI"]
[null,"DST-S-D,,,ARG-MEN,NLD","DST-S-D","","","ARG-MEN","NLD",13750.5,null,"CERDI"]
[null,"DST-S-D,,,ARG-MEN,USA","DST-S-D","","","ARG-MEN","USA",12589.7,null,"CERDI"]
[null,"DST-S-D,,,ARG-MIS,CHN","DST-S-D","","","ARG-MIS","CHN",19486.8,null,"CERDI"]
[null,"DST-S-D,,,ARG-MIS,DEU","DST-S-D","","","ARG-MIS","DEU",12728.796,null,"SEA-DISTANCES.ORG"]
[null,"DST-S-D,,,ARG-MIS,ESP","DST-S-D","","","ARG-MIS","ESP",11766,null,"CERDI"]
[null,"DST-S-D,,,ARG-MIS,FRA","DST-S-D","","","ARG-MIS","FRA",13195.9,null,"CERDI"]
[null,"DST-S-D,,,ARG-MIS,IND","DST-S-D","","","ARG-MIS","IND",16155.2,null,"CERDI"]
[null,"DST-S-D,,,ARG-MIS,JPN","DST-S-D","","","ARG-MIS","JPN",18848.2,null,"CERDI"]
[null,"DST-S-D,,,ARG-MIS,KOR","DST-S-D","","","ARG-MIS","KOR",19350,null,"CERDI"]
[null,"DST-S-D,,,ARG-MIS,NLD","DST-S-D","","","ARG-MIS","NLD",13750.5,null,"CERDI"]
[null,"DST-S-D,,,ARG-MIS,USA","DST-S-D","","","ARG-MIS","USA",12589.7,null,"CERDI"]
[null,"DST-S-D,,,ARG-NEG,CHN","DST-S-D","","","ARG-NEG","CHN",19486.8,null,"CERDI"]
[null,"DST-S-D,,,ARG-NEG,DEU","DST-S-D","","","ARG-NEG","DEU",12728.796,null,"SEA-DISTANCES.ORG"]
[null,"DST-S-D,,,ARG-NEG,ESP","DST-S-D","","","ARG-NEG","ESP",11766,null,"CERDI"]
[null,"DST-S-D,,,ARG-NEG,FRA","DST-S-D","","","ARG-NEG","FRA",13195.9,null,"CERDI"]
[null,"DST-S-D,,,ARG-NEG,IND","DST-S-D","","","ARG-NEG","IND",16155.2,null,"CERDI"]
[null,"DST-S-D,,,ARG-NEG,JPN","DST-S-D","","","ARG-NEG","JPN",18848.2,null,"CERDI"]
[null,"DST-S-D,,,ARG-NEG,KOR","DST-S-D","","","ARG-NEG","KOR",19350,null,"CERDI"]
[null,"DST-S-D,,,ARG-NEG,NLD","DST-S-D","","","ARG-NEG","NLD",13750.5,null,"CERDI"]
[null,"DST-S-D,,,ARG-NEG,USA","DST-S-D","","","ARG-NEG","USA",12589.7,null,"CERDI"]
[null,"DST-S-D,,,ARG-NEU,CHN","DST-S-D","","","ARG-NEU","CHN",19486.8,null,"CERDI"]
[null,"DST-S-D,,,ARG-NEU,DEU","DST-S-D","","","ARG-NEU","DEU",12728.796,null,"SEA-DISTANCES.ORG"]
[null,"DST-S-D,,,ARG-NEU,ESP","DST-S-D","","","ARG-NEU","ESP",11766,null,"CERDI"]
[null,"DST-S-D,,,ARG-NEU,FRA","DST-S-D","","","ARG-NEU","FRA",13195.9,null,"CERDI"]
[null,"DST-S-D,,,ARG-NEU,IND","DST-S-D","","","ARG-NEU","IND",16155.2,null,"CERDI"]
[null,"DST-S-D,,,ARG-NEU,JPN","DST-S-D","","","ARG-NEU","JPN",18848.2,null,"CERDI"]
[null,"DST-S-D,,,ARG-NEU,KOR","DST-S-D","","","ARG-NEU","KOR",19350,null,"CERDI"]
[null,"DST-S-D,,,ARG-NEU,NLD","DST-S-D","","","ARG-NEU","NLD",13750.5,null,"CERDI"]
[null,"DST-S-D,,,ARG-NEU,USA","DST-S-D","","","ARG-NEU","USA",12589.7,null,"CERDI"]
[null,"DST-S-D,,,ARG-PAM,CHN","DST-S-D","","","ARG-PAM","CHN",19486.8,null,"CERDI"]
[null,"DST-S-D,,,ARG-PAM,DEU","DST-S-D","","","ARG-PAM","DEU",12728.796,null,"SEA-DISTANCES.ORG"]
[null,"DST-S-D,,,ARG-PAM,ESP","DST-S-D","","","ARG-PAM","ESP",11766,null,"CERDI"]
[null,"DST-S-D,,,ARG-PAM,FRA","DST-S-D","","","ARG-PAM","FRA",13195.9,null,"CERDI"]
[null,"DST-S-D,,,ARG-PAM,IND","DST-S-D","","","ARG-PAM","IND",16155.2,null,"CERDI"]
[null,"DST-S-D,,,ARG-PAM,JPN","DST-S-D","","","ARG-PAM","JPN",18848.2,null,"CERDI"]
[null,"DST-S-D,,,ARG-PAM,KOR","DST-S-D","","","ARG-PAM","KOR",19350,null,"CERDI"]
[null,"DST-S-D,,,ARG-PAM,NLD","DST-S-D","","","ARG-PAM","NLD",13750.5,null,"CERDI"]
[null,"DST-S-D,,,ARG-PAM,USA","DST-S-D","","","ARG-PAM","USA",12589.7,null,"CERDI"]
[null,"DST-S-D,,,ARG-RIO,CHN","DST-S-D","","","ARG-RIO","CHN",19486.8,null,"CERDI"]
[null,"DST-S-D,,,ARG-RIO,DEU","DST-S-D","","","ARG-RIO","DEU",12728.796,null,"SEA-DISTANCES.ORG"]
[null,"DST-S-D,,,ARG-RIO,ESP","DST-S-D","","","ARG-RIO","ESP",11766,null,"CERDI"]
[null,"DST-S-D,,,ARG-RIO,FRA","DST-S-D","","","ARG-RIO","FRA",13195.9,null,"CERDI"]
[null,"DST-S-D,,,ARG-RIO,IND","DST-S-D","","","ARG-RIO","IND",16155.2,null,"CERDI"]
[null,"DST-S-D,,,ARG-RIO,JPN","DST-S-D","","","ARG-RIO","JPN",18848.2,null,"CERDI"]
[null,"DST-S-D,,,ARG-RIO,KOR","DST-S-D","","","ARG-RIO","KOR",19350,null,"CERDI"]
[null,"DST-S-D,,,ARG-RIO,NLD","DST-S-D","","","ARG-RIO","NLD",13750.5,null,"CERDI"]
[null,"DST-S-D,,,ARG-RIO,USA","DST-S-D","","","ARG-RIO","USA",12589.7,null,"CERDI"]
[null,"DST-S-D,,,ARG-SAF,CHN","DST-S-D","","","ARG-SAF","CHN",19486.8,null,"CERDI"]
[null,"DST-S-D,,,ARG-SAF,DEU","DST-S-D","","","ARG-SAF","DEU",12728.796,null,"SEA-DISTANCES.ORG"]
[null,"DST-S-D,,,ARG-SAF,ESP","DST-S-D","","","ARG-SAF","ESP",11766,null,"CERDI"]
[null,"DST-S-D,,,ARG-SAF,FRA","DST-S-D","","","ARG-SAF","FRA",13195.9,null,"CERDI"]
[null,"DST-S-D,,,ARG-SAF,IND","DST-S-D","","","ARG-SAF","IND",16155.2,null,"CERDI"]
[null,"DST-S-D,,,ARG-SAF,JPN","DST-S-D","","","ARG-SAF","JPN",18848.2,null,"CERDI"]
[null,"DST-S-D,,,ARG-SAF,KOR","DST-S-D","","","ARG-SAF","KOR",19350,null,"CERDI"]
[null,"DST-S-D,,,ARG-SAF,NLD","DST-S-D","","","ARG-SAF","NLD",13750.5,null,"CERDI"]
[null,"DST-S-D,,,ARG-SAF,USA","DST-S-D","","","ARG-SAF","USA",12589.7,null,"CERDI"]
[null,"DST-S-D,,,ARG-SAJ,CHN","DST-S-D","","","ARG-SAJ","CHN",19486.8,null,"CERDI"]
[null,"DST-S-D,,,ARG-SAJ,DEU","DST-S-D","","","ARG-SAJ","DEU",12728.796,null,"SEA-DISTANCES.ORG"]
[null,"DST-S-D,,,ARG-SAJ,ESP","DST-S-D","","","ARG-SAJ","ESP",11766,null,"CERDI"]
[null,"DST-S-D,,,ARG-SAJ,FRA","DST-S-D","","","ARG-SAJ","FRA",13195.9,null,"CERDI"]
[null,"DST-S-D,,,ARG-SAJ,IND","DST-S-D","","","ARG-SAJ","IND",16155.2,null,"CERDI"]
[null,"DST-S-D,,,ARG-SAJ,JPN","DST-S-D","","","ARG-SAJ","JPN",18848.2,null,"CERDI"]
[null,"DST-S-D,,,ARG-SAJ,KOR","DST-S-D","","","ARG-SAJ","KOR",19350,null,"CERDI"]
[null,"DST-S-D,,,ARG-SAJ,NLD","DST-S-D","","","ARG-SAJ","NLD",13750.5,null,"CERDI"]
[null,"DST-S-D,,,ARG-SAJ,USA","DST-S-D","","","ARG-SAJ","USA",12589.7,null,"CERDI"]
[null,"DST-S-D,,,ARG-SAL,CHN","DST-S-D","","","ARG-SAL","CHN",19486.8,null,"CERDI"]
[null,"DST-S-D,,,ARG-SAL,DEU","DST-S-D","","","ARG-SAL","DEU",12728.796,null,"SEA-DISTANCES.ORG"]
[null,"DST-S-D,,,ARG-SAL,ESP","DST-S-D","","","ARG-SAL","ESP",11766,null,"CERDI"]
[null,"DST-S-D,,,ARG-SAL,FRA","DST-S-D","","","ARG-SAL","FRA",13195.9,null,"CERDI"]
[null,"DST-S-D,,,ARG-SAL,IND","DST-S-D","","","ARG-SAL","IND",16155.2,null,"CERDI"]
[null,"DST-S-D,,,ARG-SAL,JPN","DST-S-D","","","ARG-SAL","JPN",18848.2,null,"CERDI"]
[null,"DST-S-D,,,ARG-SAL,KOR","DST-S-D","","","ARG-SAL","KOR",19350,null,"CERDI"]
[null,"DST-S-D,,,ARG-SAL,NLD","DST-S-D","","","ARG-SAL","NLD",13750.5,null,"CERDI"]
[null,"DST-S-D,,,ARG-SAL,USA","DST-S-D","","","ARG-SAL","USA",12589.7,null,"CERDI"]
[null,"DST-S-D,,,ARG-SAT,CHN","DST-S-D","","","ARG-SAT","CHN",19486.8,null,"CERDI"]
[null,"DST-S-D,,,ARG-SAT,DEU","DST-S-D","","","ARG-SAT","DEU",12728.796,null,"SEA-DISTANCES.ORG"]
[null,"DST-S-D,,,ARG-SAT,ESP","DST-S-D","","","ARG-SAT","ESP",11766,null,"CERDI"]
[null,"DST-S-D,,,ARG-SAT,FRA","DST-S-D","","","ARG-SAT","FRA",13195.9,null,"CERDI"]
[null,"DST-S-D,,,ARG-SAT,IND","DST-S-D","","","ARG-SAT","IND",16155.2,null,"CERDI"]
[null,"DST-S-D,,,ARG-SAT,JPN","DST-S-D","","","ARG-SAT","JPN",18848.2,null,"CERDI"]
[null,"DST-S-D,,,ARG-SAT,KOR","DST-S-D","","","ARG-SAT","KOR",19350,null,"CERDI"]
[null,"DST-S-D,,,ARG-SAT,NLD","DST-S-D","","","ARG-SAT","NLD",13750.5,null,"CERDI"]
[null,"DST-S-D,,,ARG-SAT,USA","DST-S-D","","","ARG-SAT","USA",12589.7,null,"CERDI"]
[null,"DST-S-D,,,ARG-TUC,CHN","DST-S-D","","","ARG-TUC","CHN",19486.8,null,"CERDI"]
[null,"DST-S-D,,,ARG-TUC,DEU","DST-S-D","","","ARG-TUC","DEU",12728.796,null,"SEA-DISTANCES.ORG"]
[null,"DST-S-D,,,ARG-TUC,ESP","DST-S-D","","","ARG-TUC","ESP",11766,null,"CERDI"]
[null,"DST-S-D,,,ARG-TUC,FRA","DST-S-D","","","ARG-TUC","FRA",13195.9,null,"CERDI"]
[null,"DST-S-D,,,ARG-TUC,IND","DST-S-D","","","ARG-TUC","IND",16155.2,null,"CERDI"]
[null,"DST-S-D,,,ARG-TUC,JPN","DST-S-D","","","ARG-TUC","JPN",18848.2,null,"CERDI"]
[null,"DST-S-D,,,ARG-TUC,KOR","DST-S-D","","","ARG-TUC","KOR",19350,null,"CERDI"]
[null,"DST-S-D,,,ARG-TUC,NLD","DST-S-D","","","ARG-TUC","NLD",13750.5,null,"CERDI"]
[null,"DST-S-D,,,ARG-TUC,USA","DST-S-D","","","ARG-TUC","USA",12589.7,null,"CERDI"]
[null,"DST-S-D,,,AUS,CHN","DST-S-D","","","AUS","CHN",10024.9,null,"CERDI"]
[null,"DST-S-D,,,AUS,DEU","DST-S-D","","","AUS","DEU",21212.3,null,"CERDI"]
[null,"DST-S-D,,,AUS,ESP","DST-S-D","","","AUS","ESP",17760.900000000001,null,"CERDI"]
[null,"DST-S-D,,,AUS,FRA","DST-S-D","","","AUS","FRA",16854,null,"CERDI"]
[null,"DST-S-D,,,AUS,IND","DST-S-D","","","AUS","IND",10647.6,null,"CERDI"]
[null,"DST-S-D,,,AUS,JPN","DST-S-D","","","AUS","JPN",9845.85,null,"CERDI"]
[null,"DST-S-D,,,AUS,KOR","DST-S-D","","","AUS","KOR",10153.5,null,"CERDI"]
[null,"DST-S-D,,,AUS,NLD","DST-S-D","","","AUS","NLD",20628.3,null,"CERDI"]
[null,"DST-S-D,,,AUS,USA","DST-S-D","","","AUS","USA",12771.9,null,"CERDI"]
[null,"DST-S-D,,,BRA,CHN","DST-S-D","","","BRA","CHN",21462,null,"CERDI"]
[null,"DST-S-D,,,BRA,DEU","DST-S-D","","","BRA","DEU",10409.5,null,"CERDI"]
[null,"DST-S-D,,,BRA,ESP","DST-S-D","","","BRA","ESP",8824.26,null,"CERDI"]
[null,"DST-S-D,,,BRA,FRA","DST-S-D","","","BRA","FRA",9895.24,null,"CERDI"]
[null,"DST-S-D,,,BRA,IND","DST-S-D","","","BRA","IND",15751.1,null,"CERDI"]
[null,"DST-S-D,,,BRA,JPN","DST-S-D","","","BRA","JPN",22369.4,null,"CERDI"]
[null,"DST-S-D,,,BRA,KOR","DST-S-D","","","BRA","KOR",22048.5,null,"CERDI"]
[null,"DST-S-D,,,BRA,NLD","DST-S-D","","","BRA","NLD",10110.1,null,"CERDI"]
[null,"DST-S-D,,,BRA,USA","DST-S-D","","","BRA","USA",9777.43,null,"CERDI"]
[null,"DST-S-D,,,CHL,CHN","DST-S-D","","","CHL","CHN",18238,null,"CERDI"]
[null,"DST-S-D,,,CHL,DEU","DST-S-D","","","CHL","DEU",12511.9,null,"CERDI"]
[null,"DST-S-D,,,CHL,ESP","DST-S-D","","","CHL","ESP",13257.8,null,"CERDI"]
[null,"DST-S-D,,,CHL,FRA","DST-S-D","","","CHL","FRA",14328.9,null,"CERDI"]
[null,"DST-S-D,,,CHL,IND","DST-S-D","","","CHL","IND",20076.400000000001,null,"CERDI"]
[null,"DST-S-D,,,CHL,JPN","DST-S-D","","","CHL","JPN",16934.8,null,"CERDI"]
[null,"DST-S-D,,,CHL,KOR","DST-S-D","","","CHL","KOR",17656.2,null,"CERDI"]
[null,"DST-S-D,,,CHL,NLD","DST-S-D","","","CHL","NLD",12212.5,null,"CERDI"]
[null,"DST-S-D,,,CHL,USA","DST-S-D","","","CHL","USA",8511.36,null,"CERDI"]
[null,"DST-S-D,,,CHN,DEU","DST-S-D","","","CHN","DEU",20484.900000000001,null,"CERDI"]
[null,"DST-S-D,,,CHN,ESP","DST-S-D","","","CHN","ESP",16840.5,null,"CERDI"]
[null,"DST-S-D,,,CHN,FRA","DST-S-D","","","CHN","FRA",15425.3,null,"CERDI"]
[null,"DST-S-D,,,CHN,IND","DST-S-D","","","CHN","IND",8761.85,null,"CERDI"]
[null,"DST-S-D,,,CHN,JPN","DST-S-D","","","CHN","JPN",1458.02,null,"CERDI"]
[null,"DST-S-D,,,CHN,KOR","DST-S-D","","","CHN","KOR",659.33900000000006,null,"CERDI"]
[null,"DST-S-D,,,CHN,NLD","DST-S-D","","","CHN","NLD",19901,null,"CERDI"]
[null,"DST-S-D,,,CHN,USA","DST-S-D","","","CHN","USA",10401.4,null,"CERDI"]
[null,"DST-S-D,,,COL,CHN","DST-S-D","","","COL","CHN",16752,"km","CERDI"]
[null,"DST-S-D,,,COL,DEU","DST-S-D","","","COL","DEU",9250.74,"km","SEA-DISTANCES.ORG"]
[null,"DST-S-D,,,COL,ESP","DST-S-D","","","COL","ESP",7282,"km","CERDI"]
[null,"DST-S-D,,,COL,FRA","DST-S-D","","","COL","FRA",8323,"km","CERDI"]
[null,"DST-S-D,,,COL,IND","DST-S-D","","","COL","IND",17936,"km","CERDI"]
[null,"DST-S-D,,,COL,JPN","DST-S-D","","","COL","JPN",15390,"km","CERDI"]
[null,"DST-S-D,,,COL,KOR","DST-S-D","","","COL","KOR",16112,"km","CERDI"]
[null,"DST-S-D,,,COL,NLD","DST-S-D","","","COL","NLD",8361.7800000000007,"km","SEA-DISTANCES.ORG"]
[null,"DST-S-D,,,COL,USA","DST-S-D","","","COL","USA",2242,"km","CERDI"]
[null,"DST-S-D,,,CRI,CHN","DST-S-D","","","CRI","CHN",16735.5,null,"CERDI"]
[null,"DST-S-D,,,CRI,DEU","DST-S-D","","","CRI","DEU",7422.6,null,"CERDI"]
[null,"DST-S-D,,,CRI,ESP","DST-S-D","","","CRI","ESP",8028.79,null,"CERDI"]
[null,"DST-S-D,,,CRI,FRA","DST-S-D","","","CRI","FRA",9099.84,null,"CERDI"]
[null,"DST-S-D,,,CRI,IND","DST-S-D","","","CRI","IND",18692.900000000001,null,"CERDI"]
[null,"DST-S-D,,,CRI,JPN","DST-S-D","","","CRI","JPN",15373.2,null,"CERDI"]
[null,"DST-S-D,,,CRI,KOR","DST-S-D","","","CRI","KOR",16095.6,null,"CERDI"]
[null,"DST-S-D,,,CRI,NLD","DST-S-D","","","CRI","NLD",7150.86,null,"CERDI"]
[null,"DST-S-D,,,CRI,USA","DST-S-D","","","CRI","USA",2590.9699999999998,null,"CERDI"]
[null,"DST-S-D,,,DNK,CHN","DST-S-D","","","DNK","CHN",21206.9,null,"CERDI"]
[null,"DST-S-D,,,DNK,DEU","DST-S-D","","","DNK","DEU",814.84100000000001,null,"CERDI"]
[null,"DST-S-D,,,DNK,ESP","DST-S-D","","","DNK","ESP",2403.9,null,"SEA-DISTANCES.ORG"]
[null,"DST-S-D,,,DNK,FRA","DST-S-D","","","DNK","FRA",1859.4080000000001,null,"SEA-DISTANCES.ORG"]
[null,"DST-S-D,,,DNK,IND","DST-S-D","","","DNK","IND",13318,null,"CERDI"]
[null,"DST-S-D,,,DNK,JPN","DST-S-D","","","DNK","JPN",22113.599999999999,null,"CERDI"]
[null,"DST-S-D,,,DNK,KOR","DST-S-D","","","DNK","KOR",21793,null,"CERDI"]
[null,"DST-S-D,,,DNK,NLD","DST-S-D","","","DNK","NLD",1117.3499999999999,null,"CERDI"]
[null,"DST-S-D,,,DNK,USA","DST-S-D","","","DNK","USA",8659.0300000000007,null,"CERDI"]
[null,"DST-S-D,,,DZA,CHN","DST-S-D","","","DZA","CHN",16414.7,null,"CERDI"]
[null,"DST-S-D,,,DZA,DEU","DST-S-D","","","DZA","DEU",3174.14,null,"CERDI"]
[null,"DST-S-D,,,DZA,ESP","DST-S-D","","","DZA","ESP",449.37400000000002,null,"CERDI"]
[null,"DST-S-D,,,DZA,FRA","DST-S-D","","","DZA","FRA",863.68899999999996,null,"CERDI"]
[null,"DST-S-D,,,DZA,IND","DST-S-D","","","DZA","IND",8829.52,null,"CERDI"]
[null,"DST-S-D,,,DZA,JPN","DST-S-D","","","DZA","JPN",17389.099999999999,null,"CERDI"]
[null,"DST-S-D,,,DZA,KOR","DST-S-D","","","DZA","KOR",17085.5,null,"CERDI"]
[null,"DST-S-D,,,DZA,NLD","DST-S-D","","","DZA","NLD",2860.67,null,"CERDI"]
[null,"DST-S-D,,,DZA,USA","DST-S-D","","","DZA","USA",9072.02,null,"CERDI"]
[null,"DST-S-D,,,EGY,CHN","DST-S-D","","","EGY","CHN",13389.8,null,"CERDI"]
[null,"DST-S-D,,,EGY,DEU","DST-S-D","","","EGY","DEU",6629.18,null,"CERDI"]
[null,"DST-S-D,,,EGY,ESP","DST-S-D","","","EGY","ESP",3408.43,null,"CERDI"]
[null,"DST-S-D,,,EGY,FRA","DST-S-D","","","EGY","FRA",2024.05,null,"CERDI"]
[null,"DST-S-D,,,EGY,IND","DST-S-D","","","EGY","IND",5810.46,null,"CERDI"]
[null,"DST-S-D,,,EGY,JPN","DST-S-D","","","EGY","JPN",14387.6,null,"CERDI"]
[null,"DST-S-D,,,EGY,KOR","DST-S-D","","","EGY","KOR",14066.7,null,"CERDI"]
[null,"DST-S-D,,,EGY,NLD","DST-S-D","","","EGY","NLD",6261.57,null,"CERDI"]
[null,"DST-S-D,,,EGY,USA","DST-S-D","","","EGY","USA",12612.9,null,"CERDI"]
[null,"DST-S-D,,,ESP,CHN","DST-S-D","","","ESP","CHN",16838.3,null,"CERDI"]
[null,"DST-S-D,,,ESP,DEU","DST-S-D","","","ESP","DEU",2697.76,null,"CERDI"]
[null,"DST-S-D,,,ESP,FRA","DST-S-D","","","ESP","FRA",342.62,null,"SEA-DISTANCES.ORG"]
[null,"DST-S-D,,,ESP,IND","DST-S-D","","","ESP","IND",9253.6200000000008,null,"CERDI"]
[null,"DST-S-D,,,ESP,JPN","DST-S-D","","","ESP","JPN",17812.599999999999,null,"CERDI"]
[null,"DST-S-D,,,ESP,KOR","DST-S-D","","","ESP","KOR",17509,null,"CERDI"]
[null,"DST-S-D,,,ESP,NLD","DST-S-D","","","ESP","NLD",1427.89,null,"SEA-DISTANCES.ORG"]
[null,"DST-S-D,,,ESP,USA","DST-S-D","","","ESP","USA",8601.06,null,"CERDI"]
[null,"DST-S-D,,,IDN,CHN","DST-S-D","","","IDN","CHN",4900.57,null,"CERDI"]
[null,"DST-S-D,,,IDN,DEU","DST-S-D","","","IDN","DEU",16946.8,null,"CERDI"]
[null,"DST-S-D,,,IDN,ESP","DST-S-D","","","IDN","ESP",13236.9,null,"CERDI"]
[null,"DST-S-D,,,IDN,FRA","DST-S-D","","","IDN","FRA",11693.4,null,"CERDI"]
[null,"DST-S-D,,,IDN,IND","DST-S-D","","","IDN","IND",5100.03,null,"CERDI"]
[null,"DST-S-D,,,IDN,JPN","DST-S-D","","","IDN","JPN",5807.96,null,"CERDI"]
[null,"DST-S-D,,,IDN,KOR","DST-S-D","","","IDN","KOR",5487.17,null,"CERDI"]
[null,"DST-S-D,,,IDN,NLD","DST-S-D","","","IDN","NLD",16421,null,"CERDI"]
[null,"DST-S-D,,,IDN,USA","DST-S-D","","","IDN","USA",13999.4,null,"CERDI"]
[null,"DST-S-D,,,IND,CHN","DST-S-D","","","IND","CHN",8761.3799999999992,null,"CERDI"]
[null,"DST-S-D,,,IND,DEU","DST-S-D","","","IND","DEU",12687.7,null,"CERDI"]
[null,"DST-S-D,,,IND,ESP","DST-S-D","","","IND","ESP",9254.24,null,"CERDI"]
[null,"DST-S-D,,,IND,FRA","DST-S-D","","","IND","FRA",8441.42,null,"SEA-DISTANCES.ORG"]
[null,"DST-S-D,,,IND,JPN","DST-S-D","","","IND","JPN",9668.61,null,"CERDI"]
[null,"DST-S-D,,,IND,KOR","DST-S-D","","","IND","KOR",9347.85,null,"CERDI"]
[null,"DST-S-D,,,IND,NLD","DST-S-D","","","IND","NLD",12221.7,null,"CERDI"]
[null,"DST-S-D,,,IND,USA","DST-S-D","","","IND","USA",18312.2,null,"CERDI"]
[null,"DST-S-D,,,JOR,CHN","DST-S-D","","","JOR","CHN",13090.6,null,"CERDI"]
[null,"DST-S-D,,,JOR,DEU","DST-S-D","","","JOR","DEU",7488.73,null,"CERDI"]
[null,"DST-S-D,,,JOR,ESP","DST-S-D","","","JOR","ESP",3457.7,null,"SEA-DISTANCES.ORG"]
[null,"DST-S-D,,,JOR,FRA","DST-S-D","","","JOR","FRA",3516.95,null,"SEA-DISTANCES.ORG"]
[null,"DST-S-D,,,JOR,IND","DST-S-D","","","JOR","IND",5511.15,null,"CERDI"]
[null,"DST-S-D,,,JOR,JPN","DST-S-D","","","JOR","JPN",14049.3,null,"CERDI"]
[null,"DST-S-D,,,JOR,KOR","DST-S-D","","","JOR","KOR",13728.5,null,"CERDI"]
[null,"DST-S-D,,,JOR,NLD","DST-S-D","","","JOR","NLD",7079.06,null,"CERDI"]
[null,"DST-S-D,,,JOR,USA","DST-S-D","","","JOR","USA",13472.2,null,"CERDI"]
[null,"DST-S-D,,,KAZ,CHN","DST-S-D","","","KAZ","CHN",2252.4699999999998,null,"CERDI"]
[null,"DST-S-D,,,KAZ,DEU","DST-S-D","","","KAZ","DEU",6601.17,null,"CERDI"]
[null,"DST-S-D,,,KAZ,ESP","DST-S-D","","","KAZ","ESP",3900.92,null,"CERDI"]
[null,"DST-S-D,,,KAZ,FRA","DST-S-D","","","KAZ","FRA",3529.3,null,"CERDI"]
[null,"DST-S-D,,,KAZ,IND","DST-S-D","","","KAZ","IND",8331.77,null,"CERDI"]
[null,"DST-S-D,,,KAZ,JPN","DST-S-D","","","KAZ","JPN",2136.6799999999998,null,"CERDI"]
[null,"DST-S-D,,,KAZ,KOR","DST-S-D","","","KAZ","KOR",1579.54,null,"CERDI"]
[null,"DST-S-D,,,KAZ,NLD","DST-S-D","","","KAZ","NLD",6287.68,null,"CERDI"]
[null,"DST-S-D,,,KAZ,USA","DST-S-D","","","KAZ","USA",8226.75,null,"CERDI"]
[null,"DST-S-D,,,KEN,CHN","DST-S-D","","","KEN","CHN",11244.6,null,"CERDI"]
[null,"DST-S-D,,,KEN,DEU","DST-S-D","","","KEN","DEU",12814.1,null,"CERDI"]
[null,"DST-S-D,,,KEN,ESP","DST-S-D","","","KEN","ESP",9223.33,null,"CERDI"]
[null,"DST-S-D,,,KEN,FRA","DST-S-D","","","KEN","FRA",7736.75,null,"CERDI"]
[null,"DST-S-D,,,KEN,IND","DST-S-D","","","KEN","IND",4305.05,null,"CERDI"]
[null,"DST-S-D,,,KEN,JPN","DST-S-D","","","KEN","JPN",12152,null,"CERDI"]
[null,"DST-S-D,,,KEN,KOR","DST-S-D","","","KEN","KOR",11831.2,null,"CERDI"]
[null,"DST-S-D,,,KEN,NLD","DST-S-D","","","KEN","NLD",12343.5,null,"CERDI"]
[null,"DST-S-D,,,KEN,USA","DST-S-D","","","KEN","USA",18739.400000000001,null,"CERDI"]
[null,"DST-S-D,,,MAR,CHN","DST-S-D","","","MAR","CHN",16917.900000000001,null,"CERDI"]
[null,"DST-S-D,,,MAR,DEU","DST-S-D","","","MAR","DEU",2668.15,null,"CERDI"]
[null,"DST-S-D,,,MAR,ESP","DST-S-D","","","MAR","ESP",38.352499999999999,null,"CERDI"]
[null,"DST-S-D,,,MAR,FRA","DST-S-D","","","MAR","FRA",1104.08,null,"CERDI"]
[null,"DST-S-D,,,MAR,IND","DST-S-D","","","MAR","IND",9333.25,null,"CERDI"]
[null,"DST-S-D,,,MAR,JPN","DST-S-D","","","MAR","JPN",17892.3,null,"CERDI"]
[null,"DST-S-D,,,MAR,KOR","DST-S-D","","","MAR","KOR",17588.7,null,"CERDI"]
[null,"DST-S-D,,,MAR,NLD","DST-S-D","","","MAR","NLD",2354.6799999999998,null,"CERDI"]
[null,"DST-S-D,,,MAR,USA","DST-S-D","","","MAR","USA",8558.2999999999993,null,"CERDI"]
[null,"DST-S-D,,,MAR-BEN,CHN","DST-S-D","","","MAR-BEN","CHN",16917.900000000001,null,"CERDI"]
[null,"DST-S-D,,,MAR-BEN,DEU","DST-S-D","","","MAR-BEN","DEU",2668.15,null,"CERDI"]
[null,"DST-S-D,,,MAR-BEN,ESP","DST-S-D","","","MAR-BEN","ESP",38.352499999999999,null,"CERDI"]
[null,"DST-S-D,,,MAR-BEN,FRA","DST-S-D","","","MAR-BEN","FRA",1104.08,null,"CERDI"]
[null,"DST-S-D,,,MAR-BEN,IND","DST-S-D","","","MAR-BEN","IND",9333.25,null,"CERDI"]
[null,"DST-S-D,,,MAR-BEN,JPN","DST-S-D","","","MAR-BEN","JPN",17892.3,null,"CERDI"]
[null,"DST-S-D,,,MAR-BEN,KOR","DST-S-D","","","MAR-BEN","KOR",17588.7,null,"CERDI"]
[null,"DST-S-D,,,MAR-BEN,NLD","DST-S-D","","","MAR-BEN","NLD",2354.6799999999998,null,"CERDI"]
[null,"DST-S-D,,,MAR-BEN,USA","DST-S-D","","","MAR-BEN","USA",8558.2999999999993,null,"CERDI"]
[null,"DST-S-D,,,MAR-CAS,CHN","DST-S-D","","","MAR-CAS","CHN",16917.900000000001,null,"CERDI"]
[null,"DST-S-D,,,MAR-CAS,DEU","DST-S-D","","","MAR-CAS","DEU",2668.15,null,"CERDI"]
[null,"DST-S-D,,,MAR-CAS,ESP","DST-S-D","","","MAR-CAS","ESP",38.352499999999999,null,"CERDI"]
[null,"DST-S-D,,,MAR-CAS,FRA","DST-S-D","","","MAR-CAS","FRA",1104.08,null,"CERDI"]
[null,"DST-S-D,,,MAR-CAS,IND","DST-S-D","","","MAR-CAS","IND",9333.25,null,"CERDI"]
[null,"DST-S-D,,,MAR-CAS,JPN","DST-S-D","","","MAR-CAS","JPN",17892.3,null,"CERDI"]
[null,"DST-S-D,,,MAR-CAS,KOR","DST-S-D","","","MAR-CAS","KOR",17588.7,null,"CERDI"]
[null,"DST-S-D,,,MAR-CAS,NLD","DST-S-D","","","MAR-CAS","NLD",2354.6799999999998,null,"CERDI"]
[null,"DST-S-D,,,MAR-CAS,USA","DST-S-D","","","MAR-CAS","USA",8558.2999999999993,null,"CERDI"]
[null,"DST-S-D,,,MAR-DAK,CHN","DST-S-D","","","MAR-DAK","CHN",16917.900000000001,null,"CERDI"]
[null,"DST-S-D,,,MAR-DAK,DEU","DST-S-D","","","MAR-DAK","DEU",2668.15,null,"CERDI"]
[null,"DST-S-D,,,MAR-DAK,ESP","DST-S-D","","","MAR-DAK","ESP",38.352499999999999,null,"CERDI"]
[null,"DST-S-D,,,MAR-DAK,FRA","DST-S-D","","","MAR-DAK","FRA",1104.08,null,"CERDI"]
[null,"DST-S-D,,,MAR-DAK,IND","DST-S-D","","","MAR-DAK","IND",9333.25,null,"CERDI"]
[null,"DST-S-D,,,MAR-DAK,JPN","DST-S-D","","","MAR-DAK","JPN",17892.3,null,"CERDI"]
[null,"DST-S-D,,,MAR-DAK,KOR","DST-S-D","","","MAR-DAK","KOR",17588.7,null,"CERDI"]
[null,"DST-S-D,,,MAR-DAK,NLD","DST-S-D","","","MAR-DAK","NLD",2354.6799999999998,null,"CERDI"]
[null,"DST-S-D,,,MAR-DAK,USA","DST-S-D","","","MAR-DAK","USA",8558.2999999999993,null,"CERDI"]
[null,"DST-S-D,,,MAR-DRA,CHN","DST-S-D","","","MAR-DRA","CHN",16917.900000000001,null,"CERDI"]
[null,"DST-S-D,,,MAR-DRA,DEU","DST-S-D","","","MAR-DRA","DEU",2668.15,null,"CERDI"]
[null,"DST-S-D,,,MAR-DRA,ESP","DST-S-D","","","MAR-DRA","ESP",38.352499999999999,null,"CERDI"]
[null,"DST-S-D,,,MAR-DRA,FRA","DST-S-D","","","MAR-DRA","FRA",1104.08,null,"CERDI"]
[null,"DST-S-D,,,MAR-DRA,IND","DST-S-D","","","MAR-DRA","IND",9333.25,null,"CERDI"]
[null,"DST-S-D,,,MAR-DRA,JPN","DST-S-D","","","MAR-DRA","JPN",17892.3,null,"CERDI"]
[null,"DST-S-D,,,MAR-DRA,KOR","DST-S-D","","","MAR-DRA","KOR",17588.7,null,"CERDI"]
[null,"DST-S-D,,,MAR-DRA,NLD","DST-S-D","","","MAR-DRA","NLD",2354.6799999999998,null,"CERDI"]
[null,"DST-S-D,,,MAR-DRA,USA","DST-S-D","","","MAR-DRA","USA",8558.2999999999993,null,"CERDI"]
[null,"DST-S-D,,,MAR-FES,CHN","DST-S-D","","","MAR-FES","CHN",16917.900000000001,null,"CERDI"]
[null,"DST-S-D,,,MAR-FES,DEU","DST-S-D","","","MAR-FES","DEU",2668.15,null,"CERDI"]
[null,"DST-S-D,,,MAR-FES,ESP","DST-S-D","","","MAR-FES","ESP",38.352499999999999,null,"CERDI"]
[null,"DST-S-D,,,MAR-FES,FRA","DST-S-D","","","MAR-FES","FRA",1104.08,null,"CERDI"]
[null,"DST-S-D,,,MAR-FES,IND","DST-S-D","","","MAR-FES","IND",9333.25,null,"CERDI"]
[null,"DST-S-D,,,MAR-FES,JPN","DST-S-D","","","MAR-FES","JPN",17892.3,null,"CERDI"]
[null,"DST-S-D,,,MAR-FES,KOR","DST-S-D","","","MAR-FES","KOR",17588.7,null,"CERDI"]
[null,"DST-S-D,,,MAR-FES,NLD","DST-S-D","","","MAR-FES","NLD",2354.6799999999998,null,"CERDI"]
[null,"DST-S-D,,,MAR-FES,USA","DST-S-D","","","MAR-FES","USA",8558.2999999999993,null,"CERDI"]
[null,"DST-S-D,,,MAR-GUE,CHN","DST-S-D","","","MAR-GUE","CHN",16917.900000000001,null,"CERDI"]
[null,"DST-S-D,,,MAR-GUE,DEU","DST-S-D","","","MAR-GUE","DEU",2668.15,null,"CERDI"]
[null,"DST-S-D,,,MAR-GUE,ESP","DST-S-D","","","MAR-GUE","ESP",38.352499999999999,null,"CERDI"]
[null,"DST-S-D,,,MAR-GUE,FRA","DST-S-D","","","MAR-GUE","FRA",1104.08,null,"CERDI"]
[null,"DST-S-D,,,MAR-GUE,IND","DST-S-D","","","MAR-GUE","IND",9333.25,null,"CERDI"]
[null,"DST-S-D,,,MAR-GUE,JPN","DST-S-D","","","MAR-GUE","JPN",17892.3,null,"CERDI"]
[null,"DST-S-D,,,MAR-GUE,KOR","DST-S-D","","","MAR-GUE","KOR",17588.7,null,"CERDI"]
[null,"DST-S-D,,,MAR-GUE,NLD","DST-S-D","","","MAR-GUE","NLD",2354.6799999999998,null,"CERDI"]
[null,"DST-S-D,,,MAR-GUE,USA","DST-S-D","","","MAR-GUE","USA",8558.2999999999993,null,"CERDI"]
[null,"DST-S-D,,,MAR-LAA,CHN","DST-S-D","","","MAR-LAA","CHN",16917.900000000001,null,"CERDI"]
[null,"DST-S-D,,,MAR-LAA,DEU","DST-S-D","","","MAR-LAA","DEU",2668.15,null,"CERDI"]
[null,"DST-S-D,,,MAR-LAA,ESP","DST-S-D","","","MAR-LAA","ESP",38.352499999999999,null,"CERDI"]
[null,"DST-S-D,,,MAR-LAA,FRA","DST-S-D","","","MAR-LAA","FRA",1104.08,null,"CERDI"]
[null,"DST-S-D,,,MAR-LAA,IND","DST-S-D","","","MAR-LAA","IND",9333.25,null,"CERDI"]
[null,"DST-S-D,,,MAR-LAA,JPN","DST-S-D","","","MAR-LAA","JPN",17892.3,null,"CERDI"]
[null,"DST-S-D,,,MAR-LAA,KOR","DST-S-D","","","MAR-LAA","KOR",17588.7,null,"CERDI"]
[null,"DST-S-D,,,MAR-LAA,NLD","DST-S-D","","","MAR-LAA","NLD",2354.6799999999998,null,"CERDI"]
[null,"DST-S-D,,,MAR-LAA,USA","DST-S-D","","","MAR-LAA","USA",8558.2999999999993,null,"CERDI"]
[null,"DST-S-D,,,MAR-LOR,CHN","DST-S-D","","","MAR-LOR","CHN",16917.900000000001,null,"CERDI"]
[null,"DST-S-D,,,MAR-LOR,DEU","DST-S-D","","","MAR-LOR","DEU",2668.15,null,"CERDI"]
[null,"DST-S-D,,,MAR-LOR,ESP","DST-S-D","","","MAR-LOR","ESP",38.352499999999999,null,"CERDI"]
[null,"DST-S-D,,,MAR-LOR,FRA","DST-S-D","","","MAR-LOR","FRA",1104.08,null,"CERDI"]
[null,"DST-S-D,,,MAR-LOR,IND","DST-S-D","","","MAR-LOR","IND",9333.25,null,"CERDI"]
[null,"DST-S-D,,,MAR-LOR,JPN","DST-S-D","","","MAR-LOR","JPN",17892.3,null,"CERDI"]
[null,"DST-S-D,,,MAR-LOR,KOR","DST-S-D","","","MAR-LOR","KOR",17588.7,null,"CERDI"]
[null,"DST-S-D,,,MAR-LOR,NLD","DST-S-D","","","MAR-LOR","NLD",2354.6799999999998,null,"CERDI"]
[null,"DST-S-D,,,MAR-LOR,USA","DST-S-D","","","MAR-LOR","USA",8558.2999999999993,null,"CERDI"]
[null,"DST-S-D,,,MAR-MAR,CHN","DST-S-D","","","MAR-MAR","CHN",16917.900000000001,null,"CERDI"]
[null,"DST-S-D,,,MAR-MAR,DEU","DST-S-D","","","MAR-MAR","DEU",2668.15,null,"CERDI"]
[null,"DST-S-D,,,MAR-MAR,ESP","DST-S-D","","","MAR-MAR","ESP",38.352499999999999,null,"CERDI"]
[null,"DST-S-D,,,MAR-MAR,FRA","DST-S-D","","","MAR-MAR","FRA",1104.08,null,"CERDI"]
[null,"DST-S-D,,,MAR-MAR,IND","DST-S-D","","","MAR-MAR","IND",9333.25,null,"CERDI"]
[null,"DST-S-D,,,MAR-MAR,JPN","DST-S-D","","","MAR-MAR","JPN",17892.3,null,"CERDI"]
[null,"DST-S-D,,,MAR-MAR,KOR","DST-S-D","","","MAR-MAR","KOR",17588.7,null,"CERDI"]
[null,"DST-S-D,,,MAR-MAR,NLD","DST-S-D","","","MAR-MAR","NLD",2354.6799999999998,null,"CERDI"]
[null,"DST-S-D,,,MAR-MAR,USA","DST-S-D","","","MAR-MAR","USA",8558.2999999999993,null,"CERDI"]
[null,"DST-S-D,,,MAR-RAB,CHN","DST-S-D","","","MAR-RAB","CHN",16917.900000000001,null,"CERDI"]
[null,"DST-S-D,,,MAR-RAB,DEU","DST-S-D","","","MAR-RAB","DEU",2668.15,null,"CERDI"]
[null,"DST-S-D,,,MAR-RAB,ESP","DST-S-D","","","MAR-RAB","ESP",38.352499999999999,null,"CERDI"]
[null,"DST-S-D,,,MAR-RAB,FRA","DST-S-D","","","MAR-RAB","FRA",1104.08,null,"CERDI"]
[null,"DST-S-D,,,MAR-RAB,IND","DST-S-D","","","MAR-RAB","IND",9333.25,null,"CERDI"]
[null,"DST-S-D,,,MAR-RAB,JPN","DST-S-D","","","MAR-RAB","JPN",17892.3,null,"CERDI"]
[null,"DST-S-D,,,MAR-RAB,KOR","DST-S-D","","","MAR-RAB","KOR",17588.7,null,"CERDI"]
[null,"DST-S-D,,,MAR-RAB,NLD","DST-S-D","","","MAR-RAB","NLD",2354.6799999999998,null,"CERDI"]
[null,"DST-S-D,,,MAR-RAB,USA","DST-S-D","","","MAR-RAB","USA",8558.2999999999993,null,"CERDI"]
[null,"DST-S-D,,,MAR-SOU,CHN","DST-S-D","","","MAR-SOU","CHN",16917.900000000001,null,"CERDI"]
[null,"DST-S-D,,,MAR-SOU,DEU","DST-S-D","","","MAR-SOU","DEU",2668.15,null,"CERDI"]
[null,"DST-S-D,,,MAR-SOU,ESP","DST-S-D","","","MAR-SOU","ESP",38.352499999999999,null,"CERDI"]
[null,"DST-S-D,,,MAR-SOU,FRA","DST-S-D","","","MAR-SOU","FRA",1104.08,null,"CERDI"]
[null,"DST-S-D,,,MAR-SOU,IND","DST-S-D","","","MAR-SOU","IND",9333.25,null,"CERDI"]
[null,"DST-S-D,,,MAR-SOU,JPN","DST-S-D","","","MAR-SOU","JPN",17892.3,null,"CERDI"]
[null,"DST-S-D,,,MAR-SOU,KOR","DST-S-D","","","MAR-SOU","KOR",17588.7,null,"CERDI"]
[null,"DST-S-D,,,MAR-SOU,NLD","DST-S-D","","","MAR-SOU","NLD",2354.6799999999998,null,"CERDI"]
[null,"DST-S-D,,,MAR-SOU,USA","DST-S-D","","","MAR-SOU","USA",8558.2999999999993,null,"CERDI"]
[null,"DST-S-D,,,MAR-TAN,CHN","DST-S-D","","","MAR-TAN","CHN",16917.900000000001,null,"CERDI"]
[null,"DST-S-D,,,MAR-TAN,DEU","DST-S-D","","","MAR-TAN","DEU",2668.15,null,"CERDI"]
[null,"DST-S-D,,,MAR-TAN,ESP","DST-S-D","","","MAR-TAN","ESP",38.352499999999999,null,"CERDI"]
[null,"DST-S-D,,,MAR-TAN,FRA","DST-S-D","","","MAR-TAN","FRA",1104.08,null,"CERDI"]
[null,"DST-S-D,,,MAR-TAN,IND","DST-S-D","","","MAR-TAN","IND",9333.25,null,"CERDI"]
[null,"DST-S-D,,,MAR-TAN,JPN","DST-S-D","","","MAR-TAN","JPN",17892.3,null,"CERDI"]
[null,"DST-S-D,,,MAR-TAN,KOR","DST-S-D","","","MAR-TAN","KOR",17588.7,null,"CERDI"]
[null,"DST-S-D,,,MAR-TAN,NLD","DST-S-D","","","MAR-TAN","NLD",2354.6799999999998,null,"CERDI"]
[null,"DST-S-D,,,MAR-TAN,USA","DST-S-D","","","MAR-TAN","USA",8558.2999999999993,null,"CERDI"]
[null,"DST-S-D,,,MEX,CHN","DST-S-D","","","MEX","CHN",13223.2,null,"CERDI"]
[null,"DST-S-D,,,MEX,DEU","DST-S-D","","","MEX","DEU",10256.299999999999,null,"CERDI"]
[null,"DST-S-D,,,MEX,ESP","DST-S-D","","","MEX","ESP",10695.5,null,"CERDI"]
[null,"DST-S-D,,,MEX,FRA","DST-S-D","","","MEX","FRA",11766.6,null,"CERDI"]
[null,"DST-S-D,,,MEX,IND","DST-S-D","","","MEX","IND",20448.3,null,"CERDI"]
[null,"DST-S-D,,,MEX,JPN","DST-S-D","","","MEX","JPN",11860.6,null,"CERDI"]
[null,"DST-S-D,,,MEX,KOR","DST-S-D","","","MEX","KOR",12583,null,"CERDI"]
[null,"DST-S-D,,,MEX,NLD","DST-S-D","","","MEX","NLD",9956.94,null,"CERDI"]
[null,"DST-S-D,,,MEX,USA","DST-S-D","","","MEX","USA",1231.58,null,"SEA-DISTANCES.ORG"]
[null,"DST-S-D,,,MRT,CHN","DST-S-D","","","MRT","CHN",19545.900000000001,null,"CERDI"]
[null,"DST-S-D,,,MRT,DEU","DST-S-D","","","MRT","DEU",4171.75,null,"CERDI"]
[null,"DST-S-D,,,MRT,ESP","DST-S-D","","","MRT","ESP",2012.1,null,"CERDI"]
[null,"DST-S-D,,,MRT,FRA","DST-S-D","","","MRT","FRA",3083.36,null,"CERDI"]
[null,"DST-S-D,,,MRT,IND","DST-S-D","","","MRT","IND",11940.3,null,"CERDI"]
[null,"DST-S-D,,,MRT,JPN","DST-S-D","","","MRT","JPN",20452.599999999999,null,"CERDI"]
[null,"DST-S-D,,,MRT,KOR","DST-S-D","","","MRT","KOR",20132,null,"CERDI"]
[null,"DST-S-D,,,MRT,NLD","DST-S-D","","","MRT","NLD",3858.24,null,"CERDI"]
[null,"DST-S-D,,,MRT,USA","DST-S-D","","","MRT","USA",7511.88,null,"CERDI"]
[null,"DST-S-D,,,NAM,CHN","DST-S-D","","","NAM","CHN",16002.4,null,"CERDI"]
[null,"DST-S-D,,,NAM,DEU","DST-S-D","","","NAM","DEU",10723.8,null,"CERDI"]
[null,"DST-S-D,,,NAM,ESP","DST-S-D","","","NAM","ESP",8564.51,null,"CERDI"]
[null,"DST-S-D,,,NAM,FRA","DST-S-D","","","NAM","FRA",9635.7099999999991,null,"CERDI"]
[null,"DST-S-D,,,NAM,IND","DST-S-D","","","NAM","IND",10561.3,null,"CERDI"]
[null,"DST-S-D,,,NAM,JPN","DST-S-D","","","NAM","JPN",16976.900000000001,null,"CERDI"]
[null,"DST-S-D,,,NAM,KOR","DST-S-D","","","NAM","KOR",16673.3,null,"CERDI"]
[null,"DST-S-D,,,NAM,NLD","DST-S-D","","","NAM","NLD",10410.4,null,"CERDI"]
[null,"DST-S-D,,,NAM,USA","DST-S-D","","","NAM","USA",12721.7,null,"CERDI"]
[null,"DST-S-D,,,NOR,CHN","DST-S-D","","","NOR","CHN",21062.6,null,"CERDI"]
[null,"DST-S-D,,,NOR,DEU","DST-S-D","","","NOR","DEU",605.048,null,"CERDI"]
[null,"DST-S-D,,,NOR,ESP","DST-S-D","","","NOR","ESP",2363.15,null,"SEA-DISTANCES.ORG"]
[null,"DST-S-D,,,NOR,FRA","DST-S-D","","","NOR","FRA",1818.66,null,"SEA-DISTANCES.ORG"]
[null,"DST-S-D,,,NOR,IND","DST-S-D","","","NOR","IND",13108.2,null,"CERDI"]
[null,"DST-S-D,,,NOR,JPN","DST-S-D","","","NOR","JPN",21969.200000000001,null,"CERDI"]
[null,"DST-S-D,,,NOR,KOR","DST-S-D","","","NOR","KOR",21648.7,null,"CERDI"]
[null,"DST-S-D,,,NOR,NLD","DST-S-D","","","NOR","NLD",808.45699999999999,null,"CERDI"]
[null,"DST-S-D,,,NOR,USA","DST-S-D","","","NOR","USA",7940.34,null,"CERDI"]
[null,"DST-S-D,,,PER,CHN","DST-S-D","","","PER","CHN",16633.3,null,"CERDI"]
[null,"DST-S-D,,,PER,DEU","DST-S-D","","","PER","DEU",12282.46,null,"SEA-DISTANCES.ORG"]
[null,"DST-S-D,,,PER,ESP","DST-S-D","","","PER","ESP",11517.59,null,"SEA-DISTANCES.ORG"]
[null,"DST-S-D,,,PER,FRA","DST-S-D","","","PER","FRA",10735.1,null,"CERDI"]
[null,"DST-S-D,,,PER,IND","DST-S-D","","","PER","IND",20364.8,null,"CERDI"]
[null,"DST-S-D,,,PER,JPN","DST-S-D","","","PER","JPN",15271,null,"CERDI"]
[null,"DST-S-D,,,PER,KOR","DST-S-D","","","PER","KOR",15993.2,null,"CERDI"]
[null,"DST-S-D,,,PER,NLD","DST-S-D","","","PER","NLD",11445.36,null,"SEA-DISTANCES.ORG"]
[null,"DST-S-D,,,PER,USA","DST-S-D","","","PER","USA",4729.2,null,"CERDI"]
[null,"DST-S-D,,,PRT,CHN","DST-S-D","","","PRT","CHN",17380,null,"CERDI"]
[null,"DST-S-D,,,PRT,DEU","DST-S-D","","","PRT","DEU",2479.8200000000002,null,"SEA-DISTANCES.ORG"]
[null,"DST-S-D,,,PRT,ESP","DST-S-D","","","PRT","ESP",1085.27,null,"SEA-DISTANCES.ORG"]
[null,"DST-S-D,,,PRT,FRA","DST-S-D","","","PRT","FRA",1729.71,null,"CERDI"]
[null,"DST-S-D,,,PRT,IND","DST-S-D","","","PRT","IND",9795.41,null,"CERDI"]
[null,"DST-S-D,,,PRT,JPN","DST-S-D","","","PRT","JPN",18354.400000000001,null,"CERDI"]
[null,"DST-S-D,,,PRT,KOR","DST-S-D","","","PRT","KOR",18050.8,null,"CERDI"]
[null,"DST-S-D,,,PRT,NLD","DST-S-D","","","PRT","NLD",1721.53,null,"CERDI"]
[null,"DST-S-D,,,PRT,USA","DST-S-D","","","PRT","USA",7944.32,null,"CERDI"]
[null,"DST-S-D,,,RUS,CHN","DST-S-D","","","RUS","CHN",2252.4699999999998,null,"CERDI"]
[null,"DST-S-D,,,RUS,DEU","DST-S-D","","","RUS","DEU",6601.17,null,"CERDI"]
[null,"DST-S-D,,,RUS,ESP","DST-S-D","","","RUS","ESP",3900.92,null,"CERDI"]
[null,"DST-S-D,,,RUS,FRA","DST-S-D","","","RUS","FRA",3529.3,null,"CERDI"]
[null,"DST-S-D,,,RUS,IND","DST-S-D","","","RUS","IND",8331.77,null,"CERDI"]
[null,"DST-S-D,,,RUS,JPN","DST-S-D","","","RUS","JPN",2136.6799999999998,null,"CERDI"]
[null,"DST-S-D,,,RUS,KOR","DST-S-D","","","RUS","KOR",1579.54,null,"CERDI"]
[null,"DST-S-D,,,RUS,NLD","DST-S-D","","","RUS","NLD",7921,null,"SEA-DISTANCES.ORG"]
[null,"DST-S-D,,,RUS,USA","DST-S-D","","","RUS","USA",8226.75,null,"CERDI"]
[null,"DST-S-D,,,SAU,CHN","DST-S-D","","","SAU","CHN",12014.2,null,"CERDI"]
[null,"DST-S-D,,,SAU,DEU","DST-S-D","","","SAU","DEU",8624.76,null,"SEA-DISTANCES.ORG"]
[null,"DST-S-D,,,SAU,ESP","DST-S-D","","","SAU","ESP",4279.97,null,"SEA-DISTANCES.ORG"]
[null,"DST-S-D,,,SAU,FRA","DST-S-D","","","SAU","FRA",3364.12,null,"CERDI"]
[null,"DST-S-D,,,SAU,IND","DST-S-D","","","SAU","IND",4376.12,null,"CERDI"]
[null,"DST-S-D,,,SAU,JPN","DST-S-D","","","SAU","JPN",12921.6,null,"CERDI"]
[null,"DST-S-D,,,SAU,KOR","DST-S-D","","","SAU","KOR",12600.8,null,"CERDI"]
[null,"DST-S-D,,,SAU,NLD","DST-S-D","","","SAU","NLD",7402.44,null,"SEA-DISTANCES.ORG"]
[null,"DST-S-D,,,SAU,USA","DST-S-D","","","SAU","USA",14233.2,null,"CERDI"]
[null,"DST-S-D,,,SWE,CHN","DST-S-D","","","SWE","CHN",21022.6,null,"CERDI"]
[null,"DST-S-D,,,SWE,DEU","DST-S-D","","","SWE","DEU",602.49,null,"CERDI"]
[null,"DST-S-D,,,SWE,ESP","DST-S-D","","","SWE","ESP",3104.64,null,"CERDI"]
[null,"DST-S-D,,,SWE,FRA","DST-S-D","","","SWE","FRA",4175.91,null,"CERDI"]
[null,"DST-S-D,,,SWE,IND","DST-S-D","","","SWE","IND",13105.7,null,"CERDI"]
[null,"DST-S-D,,,SWE,JPN","DST-S-D","","","SWE","JPN",21929.3,null,"CERDI"]
[null,"DST-S-D,,,SWE,KOR","DST-S-D","","","SWE","KOR",21608.7,null,"CERDI"]
[null,"DST-S-D,,,SWE,NLD","DST-S-D","","","SWE","NLD",821.91899999999998,null,"CERDI"]
[null,"DST-S-D,,,SWE,USA","DST-S-D","","","SWE","USA",8160.7,null,"CERDI"]
[null,"DST-S-D,,,THA,CHN","DST-S-D","","","THA","CHN",4046.29,null,"CERDI"]
[null,"DST-S-D,,,THA,DEU","DST-S-D","","","THA","DEU",18076.400000000001,null,"CERDI"]
[null,"DST-S-D,,,THA,ESP","DST-S-D","","","THA","ESP",14281.2,null,"CERDI"]
[null,"DST-S-D,,,THA,FRA","DST-S-D","","","THA","FRA",12690.1,null,"CERDI"]
[null,"DST-S-D,,,THA,IND","DST-S-D","","","THA","IND",6056.68,null,"CERDI"]
[null,"DST-S-D,,,THA,JPN","DST-S-D","","","THA","JPN",5539.33,null,"SEA-DISTANCES.ORG"]
[null,"DST-S-D,,,THA,KOR","DST-S-D","","","THA","KOR",4632.9399999999996,null,"CERDI"]
[null,"DST-S-D,,,THA,NLD","DST-S-D","","","THA","NLD",17505.099999999999,null,"CERDI"]
[null,"DST-S-D,,,THA,USA","DST-S-D","","","THA","USA",14109.5,null,"CERDI"]
[null,"DST-S-D,,,TUN,CHN","DST-S-D","","","TUN","CHN",15188.8,null,"CERDI"]
[null,"DST-S-D,,,TUN,DEU","DST-S-D","","","TUN","DEU",4114.37,null,"CERDI"]
[null,"DST-S-D,,,TUN,ESP","DST-S-D","","","TUN","ESP",1414.33,null,"CERDI"]
[null,"DST-S-D,,,TUN,FRA","DST-S-D","","","TUN","FRA",754.12400000000002,null,"CERDI"]
[null,"DST-S-D,,,TUN,IND","DST-S-D","","","TUN","IND",7609.79,null,"CERDI"]
[null,"DST-S-D,,,TUN,JPN","DST-S-D","","","TUN","JPN",16218.3,null,"CERDI"]
[null,"DST-S-D,,,TUN,KOR","DST-S-D","","","TUN","KOR",15930.7,null,"CERDI"]
[null,"DST-S-D,,,TUN,NLD","DST-S-D","","","TUN","NLD",3800.89,null,"CERDI"]
[null,"DST-S-D,,,TUN,USA","DST-S-D","","","TUN","USA",10017.6,null,"CERDI"]
[null,"DST-S-D,,,UKR,CHN","DST-S-D","","","UKR","CHN",15605.7,null,"CERDI"]
[null,"DST-S-D,,,UKR,DEU","DST-S-D","","","UKR","DEU",6650.36,null,"CERDI"]
[null,"DST-S-D,,,UKR,ESP","DST-S-D","","","UKR","ESP",3912.3,null,"CERDI"]
[null,"DST-S-D,,,UKR,FRA","DST-S-D","","","UKR","FRA",3171.22,null,"CERDI"]
[null,"DST-S-D,,,UKR,IND","DST-S-D","","","UKR","IND",8000.83,null,"CERDI"]
[null,"DST-S-D,,,UKR,JPN","DST-S-D","","","UKR","JPN",16513.099999999999,null,"CERDI"]
[null,"DST-S-D,,,UKR,KOR","DST-S-D","","","UKR","KOR",16192.3,null,"CERDI"]
[null,"DST-S-D,,,UKR,NLD","DST-S-D","","","UKR","NLD",6336.87,null,"CERDI"]
[null,"DST-S-D,,,UKR,USA","DST-S-D","","","UKR","USA",12553.3,null,"CERDI"]
[null,"DST-S-D,,,URY,CHN","DST-S-D","","","URY","CHN",21524.1,null,"CERDI"]
[null,"DST-S-D,,,URY,DEU","DST-S-D","","","URY","DEU",12547.2,null,"CERDI"]
[null,"DST-S-D,,,URY,ESP","DST-S-D","","","URY","ESP",10706.9,null,"CERDI"]
[null,"DST-S-D,,,URY,FRA","DST-S-D","","","URY","FRA",11777.9,null,"CERDI"]
[null,"DST-S-D,,,URY,IND","DST-S-D","","","URY","IND",15885.2,null,"CERDI"]
[null,"DST-S-D,,,URY,JPN","DST-S-D","","","URY","JPN",20938.400000000001,null,"CERDI"]
[null,"DST-S-D,,,URY,KOR","DST-S-D","","","URY","KOR",21620.9,null,"CERDI"]
[null,"DST-S-D,,,URY,NLD","DST-S-D","","","URY","NLD",12233.8,null,"CERDI"]
[null,"DST-S-D,,,URY,USA","DST-S-D","","","URY","USA",11454,null,"CERDI"]
[null,"DST-S-D,,,USA,CHN","DST-S-D","","","USA","CHN",10402.299999999999,null,"CERDI"]
[null,"DST-S-D,,,USA,DEU","DST-S-D","","","USA","DEU",8323.27,null,"CERDI"]
[null,"DST-S-D,,,USA,ESP","DST-S-D","","","USA","ESP",8604.8700000000008,null,"CERDI"]
[null,"DST-S-D,,,USA,FRA","DST-S-D","","","USA","FRA",9676.0499999999993,null,"CERDI"]
[null,"DST-S-D,,,USA,IND","DST-S-D","","","USA","IND",18311.5,null,"CERDI"]
[null,"DST-S-D,,,USA,JPN","DST-S-D","","","USA","JPN",8904.7099999999991,null,"CERDI"]
[null,"DST-S-D,,,USA,KOR","DST-S-D","","","USA","KOR",9754.8799999999992,null,"CERDI"]
[null,"DST-S-D,,,USA,NLD","DST-S-D","","","USA","NLD",8053.45,null,"CERDI"]
[null,"DST-S-D,,,VNM,CHN","DST-S-D","","","VNM","CHN",2839.27,null,"CERDI"]
[null,"DST-S-D,,,VNM,DEU","DST-S-D","","","VNM","DEU",18266.27,null,"SEA-DISTANCES.ORG"]
[null,"DST-S-D,,,VNM,ESP","DST-S-D","","","VNM","ESP",17590.400000000001,null,"CERDI"]
[null,"DST-S-D,,,VNM,FRA","DST-S-D","","","VNM","FRA",14534.49,null,"SEA-DISTANCES.ORG"]
[null,"DST-S-D,,,VNM,IND","DST-S-D","","","VNM","IND",3746.62,null,"CERDI"]
[null,"DST-S-D,,,VNM,JPN","DST-S-D","","","VNM","JPN",17066.7,null,"CERDI"]
[null,"DST-S-D,,,VNM,KOR","DST-S-D","","","VNM","KOR",3425.83,null,"CERDI"]
[null,"DST-S-D,,,VNM,NLD","DST-S-D","","","VNM","NLD",13891,null,"CERDI"]
[null,"DST-S-D,,,VNM,USA","DST-S-D","","","VNM","USA",12906.4,null,"CERDI"]
[null,"DST-S-D,,,ZAF,CHN","DST-S-D","","","ZAF","CHN",12852.2,null,"CERDI"]
[null,"DST-S-D,,,ZAF,DEU","DST-S-D","","","ZAF","DEU",11789.832,null,"SEA-DISTANCES.ORG"]
[null,"DST-S-D,,,ZAF,ESP","DST-S-D","","","ZAF","ESP",11662.6,null,"CERDI"]
[null,"DST-S-D,,,ZAF,FRA","DST-S-D","","","ZAF","FRA",10912.4,null,"CERDI"]
[null,"DST-S-D,,,ZAF,IND","DST-S-D","","","ZAF","IND",7432.11,null,"CERDI"]
[null,"DST-S-D,,,ZAF,JPN","DST-S-D","","","ZAF","JPN",13881.4,null,"CERDI"]
[null,"DST-S-D,,,ZAF,KOR","DST-S-D","","","ZAF","KOR",13593.9,null,"CERDI"]
[null,"DST-S-D,,,ZAF,NLD","DST-S-D","","","ZAF","NLD",13501.1,null,"CERDI"]
[null,"DST-S-D,,,ZAF,USA","DST-S-D","","","ZAF","USA",15010.8,null,"CERDI"]
[null,"DST-S-D,,,ZAF-EC,CHN","DST-S-D","","","ZAF-EC","CHN",12852.2,null,"CERDI"]
[null,"DST-S-D,,,ZAF-EC,DEU","DST-S-D","","","ZAF-EC","DEU",11789.832,null,"SEA-DISTANCES.ORG"]
[null,"DST-S-D,,,ZAF-EC,ESP","DST-S-D","","","ZAF-EC","ESP",11662.6,null,"CERDI"]
[null,"DST-S-D,,,ZAF-EC,FRA","DST-S-D","","","ZAF-EC","FRA",10912.4,null,"CERDI"]
[null,"DST-S-D,,,ZAF-EC,IND","DST-S-D","","","ZAF-EC","IND",7432.11,null,"CERDI"]
[null,"DST-S-D,,,ZAF-EC,JPN","DST-S-D","","","ZAF-EC","JPN",13881.4,null,"CERDI"]
[null,"DST-S-D,,,ZAF-EC,KOR","DST-S-D","","","ZAF-EC","KOR",13593.9,null,"CERDI"]
[null,"DST-S-D,,,ZAF-EC,NLD","DST-S-D","","","ZAF-EC","NLD",13501.1,null,"CERDI"]
[null,"DST-S-D,,,ZAF-EC,USA","DST-S-D","","","ZAF-EC","USA",15010.8,null,"CERDI"]
[null,"DST-S-D,,,ZAF-FRS,CHN","DST-S-D","","","ZAF-FRS","CHN",12852.2,null,"CERDI"]
[null,"DST-S-D,,,ZAF-FRS,DEU","DST-S-D","","","ZAF-FRS","DEU",11789.832,null,"SEA-DISTANCES.ORG"]
[null,"DST-S-D,,,ZAF-FRS,ESP","DST-S-D","","","ZAF-FRS","ESP",11662.6,null,"CERDI"]
[null,"DST-S-D,,,ZAF-FRS,FRA","DST-S-D","","","ZAF-FRS","FRA",10912.4,null,"CERDI"]
[null,"DST-S-D,,,ZAF-FRS,IND","DST-S-D","","","ZAF-FRS","IND",7432.11,null,"CERDI"]
[null,"DST-S-D,,,ZAF-FRS,JPN","DST-S-D","","","ZAF-FRS","JPN",13881.4,null,"CERDI"]
[null,"DST-S-D,,,ZAF-FRS,KOR","DST-S-D","","","ZAF-FRS","KOR",13593.9,null,"CERDI"]
[null,"DST-S-D,,,ZAF-FRS,NLD","DST-S-D","","","ZAF-FRS","NLD",13501.1,null,"CERDI"]
[null,"DST-S-D,,,ZAF-FRS,USA","DST-S-D","","","ZAF-FRS","USA",15010.8,null,"CERDI"]
[null,"DST-S-D,,,ZAF-GAU,CHN","DST-S-D","","","ZAF-GAU","CHN",12852.2,null,"CERDI"]
[null,"DST-S-D,,,ZAF-GAU,DEU","DST-S-D","","","ZAF-GAU","DEU",11789.832,null,"SEA-DISTANCES.ORG"]
[null,"DST-S-D,,,ZAF-GAU,ESP","DST-S-D","","","ZAF-GAU","ESP",11662.6,null,"CERDI"]
[null,"DST-S-D,,,ZAF-GAU,FRA","DST-S-D","","","ZAF-GAU","FRA",10912.4,null,"CERDI"]
[null,"DST-S-D,,,ZAF-GAU,IND","DST-S-D","","","ZAF-GAU","IND",7432.11,null,"CERDI"]
[null,"DST-S-D,,,ZAF-GAU,JPN","DST-S-D","","","ZAF-GAU","JPN",13881.4,null,"CERDI"]
[null,"DST-S-D,,,ZAF-GAU,KOR","DST-S-D","","","ZAF-GAU","KOR",13593.9,null,"CERDI"]
[null,"DST-S-D,,,ZAF-GAU,NLD","DST-S-D","","","ZAF-GAU","NLD",13501.1,null,"CERDI"]
[null,"DST-S-D,,,ZAF-GAU,USA","DST-S-D","","","ZAF-GAU","USA",15010.8,null,"CERDI"]
[null,"DST-S-D,,,ZAF-KWA,CHN","DST-S-D","","","ZAF-KWA","CHN",12852.2,null,"CERDI"]
[null,"DST-S-D,,,ZAF-KWA,DEU","DST-S-D","","","ZAF-KWA","DEU",11789.832,null,"SEA-DISTANCES.ORG"]
[null,"DST-S-D,,,ZAF-KWA,ESP","DST-S-D","","","ZAF-KWA","ESP",11662.6,null,"CERDI"]
[null,"DST-S-D,,,ZAF-KWA,FRA","DST-S-D","","","ZAF-KWA","FRA",10912.4,null,"CERDI"]
[null,"DST-S-D,,,ZAF-KWA,IND","DST-S-D","","","ZAF-KWA","IND",7432.11,null,"CERDI"]
[null,"DST-S-D,,,ZAF-KWA,JPN","DST-S-D","","","ZAF-KWA","JPN",13881.4,null,"CERDI"]
[null,"DST-S-D,,,ZAF-KWA,KOR","DST-S-D","","","ZAF-KWA","KOR",13593.9,null,"CERDI"]
[null,"DST-S-D,,,ZAF-KWA,NLD","DST-S-D","","","ZAF-KWA","NLD",13501.1,null,"CERDI"]
[null,"DST-S-D,,,ZAF-KWA,USA","DST-S-D","","","ZAF-KWA","USA",15010.8,null,"CERDI"]
[null,"DST-S-D,,,ZAF-LIM,CHN","DST-S-D","","","ZAF-LIM","CHN",12852.2,null,"CERDI"]
[null,"DST-S-D,,,ZAF-LIM,DEU","DST-S-D","","","ZAF-LIM","DEU",11789.832,null,"SEA-DISTANCES.ORG"]
[null,"DST-S-D,,,ZAF-LIM,ESP","DST-S-D","","","ZAF-LIM","ESP",11662.6,null,"CERDI"]
[null,"DST-S-D,,,ZAF-LIM,FRA","DST-S-D","","","ZAF-LIM","FRA",10912.4,null,"CERDI"]
[null,"DST-S-D,,,ZAF-LIM,IND","DST-S-D","","","ZAF-LIM","IND",7432.11,null,"CERDI"]
[null,"DST-S-D,,,ZAF-LIM,JPN","DST-S-D","","","ZAF-LIM","JPN",13881.4,null,"CERDI"]
[null,"DST-S-D,,,ZAF-LIM,KOR","DST-S-D","","","ZAF-LIM","KOR",13593.9,null,"CERDI"]
[null,"DST-S-D,,,ZAF-LIM,NLD","DST-S-D","","","ZAF-LIM","NLD",13501.1,null,"CERDI"]
[null,"DST-S-D,,,ZAF-LIM,USA","DST-S-D","","","ZAF-LIM","USA",15010.8,null,"CERDI"]
[null,"DST-S-D,,,ZAF-MPU,CHN","DST-S-D","","","ZAF-MPU","CHN",12852.2,null,"CERDI"]
[null,"DST-S-D,,,ZAF-MPU,DEU","DST-S-D","","","ZAF-MPU","DEU",11789.832,null,"SEA-DISTANCES.ORG"]
[null,"DST-S-D,,,ZAF-MPU,ESP","DST-S-D","","","ZAF-MPU","ESP",11662.6,null,"CERDI"]
[null,"DST-S-D,,,ZAF-MPU,FRA","DST-S-D","","","ZAF-MPU","FRA",10912.4,null,"CERDI"]
[null,"DST-S-D,,,ZAF-MPU,IND","DST-S-D","","","ZAF-MPU","IND",7432.11,null,"CERDI"]
[null,"DST-S-D,,,ZAF-MPU,JPN","DST-S-D","","","ZAF-MPU","JPN",13881.4,null,"CERDI"]
[null,"DST-S-D,,,ZAF-MPU,KOR","DST-S-D","","","ZAF-MPU","KOR",13593.9,null,"CERDI"]
[null,"DST-S-D,,,ZAF-MPU,NLD","DST-S-D","","","ZAF-MPU","NLD",13501.1,null,"CERDI"]
[null,"DST-S-D,,,ZAF-MPU,USA","DST-S-D","","","ZAF-MPU","USA",15010.8,null,"CERDI"]
[null,"DST-S-D,,,ZAF-NC,CHN","DST-S-D","","","ZAF-NC","CHN",12852.2,null,"CERDI"]
[null,"DST-S-D,,,ZAF-NC,DEU","DST-S-D","","","ZAF-NC","DEU",11789.832,null,"SEA-DISTANCES.ORG"]
[null,"DST-S-D,,,ZAF-NC,ESP","DST-S-D","","","ZAF-NC","ESP",11662.6,null,"CERDI"]
[null,"DST-S-D,,,ZAF-NC,FRA","DST-S-D","","","ZAF-NC","FRA",10912.4,null,"CERDI"]
[null,"DST-S-D,,,ZAF-NC,IND","DST-S-D","","","ZAF-NC","IND",7432.11,null,"CERDI"]
[null,"DST-S-D,,,ZAF-NC,JPN","DST-S-D","","","ZAF-NC","JPN",13881.4,null,"CERDI"]
[null,"DST-S-D,,,ZAF-NC,KOR","DST-S-D","","","ZAF-NC","KOR",13593.9,null,"CERDI"]
[null,"DST-S-D,,,ZAF-NC,NLD","DST-S-D","","","ZAF-NC","NLD",13501.1,null,"CERDI"]
[null,"DST-S-D,,,ZAF-NC,USA","DST-S-D","","","ZAF-NC","USA",15010.8,null,"CERDI"]
[null,"DST-S-D,,,ZAF-NW,CHN","DST-S-D","","","ZAF-NW","CHN",12852.2,null,"CERDI"]
[null,"DST-S-D,,,ZAF-NW,DEU","DST-S-D","","","ZAF-NW","DEU",11789.832,null,"SEA-DISTANCES.ORG"]
[null,"DST-S-D,,,ZAF-NW,ESP","DST-S-D","","","ZAF-NW","ESP",11662.6,null,"CERDI"]
[null,"DST-S-D,,,ZAF-NW,FRA","DST-S-D","","","ZAF-NW","FRA",10912.4,null,"CERDI"]
[null,"DST-S-D,,,ZAF-NW,IND","DST-S-D","","","ZAF-NW","IND",7432.11,null,"CERDI"]
[null,"DST-S-D,,,ZAF-NW,JPN","DST-S-D","","","ZAF-NW","JPN",13881.4,null,"CERDI"]
[null,"DST-S-D,,,ZAF-NW,KOR","DST-S-D","","","ZAF-NW","KOR",13593.9,null,"CERDI"]
[null,"DST-S-D,,,ZAF-NW,NLD","DST-S-D","","","ZAF-NW","NLD",13501.1,null,"CERDI"]
[null,"DST-S-D,,,ZAF-NW,USA","DST-S-D","","","ZAF-NW","USA",15010.8,null,"CERDI"]
[null,"DST-S-D,,,ZAF-WC,CHN","DST-S-D","","","ZAF-WC","CHN",12852.2,null,"CERDI"]
[null,"DST-S-D,,,ZAF-WC,DEU","DST-S-D","","","ZAF-WC","DEU",11789.832,null,"SEA-DISTANCES.ORG"]
[null,"DST-S-D,,,ZAF-WC,ESP","DST-S-D","","","ZAF-WC","ESP",11662.6,null,"CERDI"]
[null,"DST-S-D,,,ZAF-WC,FRA","DST-S-D","","","ZAF-WC","FRA",10912.4,null,"CERDI"]
[null,"DST-S-D,,,ZAF-WC,IND","DST-S-D","","","ZAF-WC","IND",7432.11,null,"CERDI"]
[null,"DST-S-D,,,ZAF-WC,JPN","DST-S-D","","","ZAF-WC","JPN",13881.4,null,"CERDI"]
[null,"DST-S-D,,,ZAF-WC,KOR","DST-S-D","","","ZAF-WC","KOR",13593.9,null,"CERDI"]
[null,"DST-S-D,,,ZAF-WC,NLD","DST-S-D","","","ZAF-WC","NLD",13501.1,null,"CERDI"]
[null,"DST-S-D,,,ZAF-WC,USA","DST-S-D","","","ZAF-WC","USA",15010.8,null,"CERDI"]
[null,"DST-S-DP,,,ARE,CHN","DST-S-DP","","","ARE","CHN",4500,"km","Research Susanne Krieger"]
[null,"DST-S-DP,,,ARE,DEU","DST-S-DP","","","ARE","DEU",5500,"km","Research Susanne Krieger"]
[null,"DST-S-DP,,,ARE,ESP","DST-S-DP","","","ARE","ESP",6000,"km","Research Susanne Krieger"]
[null,"DST-S-DP,,,ARE,FRA","DST-S-DP","","","ARE","FRA",6000,"km","Research Susanne Krieger"]
[null,"DST-S-DP,,,ARE,IND","DST-S-DP","","","ARE","IND",2000,"km","Research Susanne Krieger"]
[null,"DST-S-DP,,,ARE,NLD","DST-S-DP","","","ARE","NLD",6000,"km","Research Susanne Krieger"]
[null,"DST-S-DP,,,CHN,IND","DST-S-DP","","","CHN","IND",3500,"km","Research Susanne Krieger"]
[null,"DST-S-DP,,,CHN,JPN","DST-S-DP","","","CHN","JPN",3500,"km","Research Susanne Krieger"]
[null,"DST-S-DP,,,CHN,KOR","DST-S-DP","","","CHN","KOR",2000,"km","Research Susanne Krieger"]
[null,"DST-S-DP,,,COL,USA","DST-S-DP","","","COL","USA",4500,"km","Research Susanne Krieger"]
[null,"DST-S-DP,,,CRI,USA","DST-S-DP","","","CRI","USA",3500,"km","Research Susanne Krieger"]
[null,"DST-S-DP,,,DNK,DEU","DST-S-DP","","","DNK","DEU",500,"km","Research Susanne Krieger"]
[null,"DST-S-DP,,,DNK,ESP","DST-S-DP","","","DNK","ESP",2000,"km","Research Susanne Krieger"]
[null,"DST-S-DP,,,DNK,FRA","DST-S-DP","","","DNK","FRA",1000,"km","Research Susanne Krieger"]
[null,"DST-S-DP,,,DNK,NLD","DST-S-DP","","","DNK","NLD",500,"km","Research Susanne Krieger"]
[null,"DST-S-DP,,,DZA,DEU","DST-S-DP","","","DZA","DEU",3000,"km","Research Susanne Krieger"]
[null,"DST-S-DP,,,DZA,ESP","DST-S-DP","","","DZA","ESP",1000,"km","Research Susanne Krieger"]
[null,"DST-S-DP,,,DZA,FRA","DST-S-DP","","","DZA","FRA",2000,"km","Research Susanne Krieger"]
[null,"DST-S-DP,,,DZA,NLD","DST-S-DP","","","DZA","NLD",3000,"km","Research Susanne Krieger"]
[null,"DST-S-DP,,,EGY,DEU","DST-S-DP","","","EGY","DEU",5000,"km","Research Susanne Krieger"]
[null,"DST-S-DP,,,EGY,ESP","DST-S-DP","","","EGY","ESP",4500,"km","Research Susanne Krieger"]
[null,"DST-S-DP,,,EGY,FRA","DST-S-DP","","","EGY","FRA",4000,"km","Research Susanne Krieger"]
[null,"DST-S-DP,,,EGY,IND","DST-S-DP","","","EGY","IND",5000,"km","Research Susanne Krieger"]
[null,"DST-S-DP,,,EGY,NLD","DST-S-DP","","","EGY","NLD",5000,"km","Research Susanne Krieger"]
[null,"DST-S-DP,,,ESP,DEU","DST-S-DP","","","ESP","DEU",1500,"km","Research Susanne Krieger"]
[null,"DST-S-DP,,,ESP,FRA","DST-S-DP","","","ESP","FRA",100,"km","Research Susanne Krieger"]
[null,"DST-S-DP,,,ESP,NLD","DST-S-DP","","","ESP","NLD",1500,"km","Research Susanne Krieger"]
[null,"DST-S-DP,,,IDN,CHN","DST-S-DP","","","IDN","CHN",4000,"km","Research Susanne Krieger"]
[null,"DST-S-DP,,,IDN,IND","DST-S-DP","","","IDN","IND",5000,"km","Research Susanne Krieger"]
[null,"DST-S-DP,,,IDN,JPN","DST-S-DP","","","IDN","JPN",5500,"km","Research Susanne Krieger"]
[null,"DST-S-DP,,,IDN,KOR","DST-S-DP","","","IDN","KOR",5500,"km","Research Susanne Krieger"]
[null,"DST-S-DP,,,IND,CHN","DST-S-DP","","","IND","CHN",3000,"km","Research Susanne Krieger"]
[null,"DST-S-DP,,,JOR,DEU","DST-S-DP","","","JOR","DEU",3500,"km","Research Susanne Krieger"]
[null,"DST-S-DP,,,JOR,ESP","DST-S-DP","","","JOR","ESP",4000,"km","Research Susanne Krieger"]
[null,"DST-S-DP,,,JOR,FRA","DST-S-DP","","","JOR","FRA",4000,"km","Research Susanne Krieger"]
[null,"DST-S-DP,,,JOR,IND","DST-S-DP","","","JOR","IND",4500,"km","Research Susanne Krieger"]
[null,"DST-S-DP,,,JOR,NLD","DST-S-DP","","","JOR","NLD",4000,"km","Research Susanne Krieger"]
[null,"DST-S-DP,,,KAZ,CHN","DST-S-DP","","","KAZ","CHN",1500,"km","Research Susanne Krieger"]
[null,"DST-S-DP,,,KAZ,DEU","DST-S-DP","","","KAZ","DEU",3500,"km","Research Susanne Krieger"]
[null,"DST-S-DP,,,KAZ,ESP","DST-S-DP","","","KAZ","ESP",5000,"km","Research Susanne Krieger"]
[null,"DST-S-DP,,,KAZ,FRA","DST-S-DP","","","KAZ","FRA",4000,"km","Research Susanne Krieger"]
[null,"DST-S-DP,,,KAZ,IND","DST-S-DP","","","KAZ","IND",3000,"km","Research Susanne Krieger"]
[null,"DST-S-DP,,,KAZ,NLD","DST-S-DP","","","KAZ","NLD",4000,"km","Research Susanne Krieger"]
[null,"DST-S-DP,,,KEN,IND","DST-S-DP","","","KEN","IND",5000,"km","Research Susanne Krieger"]
[null,"DST-S-DP,,,MAR,DEU","DST-S-DP","","","MAR","DEU",2500,"km","Research Susanne Krieger"]
[null,"DST-S-DP,,,MAR,ESP","DST-S-DP","","","MAR","ESP",250,"km","Research Susanne Krieger"]
[null,"DST-S-DP,,,MAR,FRA","DST-S-DP","","","MAR","FRA",2000,"km","Research Susanne Krieger"]
[null,"DST-S-DP,,,MAR,NLD","DST-S-DP","","","MAR","NLD",2500,"km","Research Susanne Krieger"]
[null,"DST-S-DP,,,MAR-BEN,DEU","DST-S-DP","","","MAR-BEN","DEU",2500,"km","Research Susanne Krieger"]
[null,"DST-S-DP,,,MAR-BEN,ESP","DST-S-DP","","","MAR-BEN","ESP",250,"km","Research Susanne Krieger"]
[null,"DST-S-DP,,,MAR-BEN,FRA","DST-S-DP","","","MAR-BEN","FRA",2000,"km","Research Susanne Krieger"]
[null,"DST-S-DP,,,MAR-BEN,NLD","DST-S-DP","","","MAR-BEN","NLD",2500,"km","Research Susanne Krieger"]
[null,"DST-S-DP,,,MAR-CAS,DEU","DST-S-DP","","","MAR-CAS","DEU",2500,"km","Research Susanne Krieger"]
[null,"DST-S-DP,,,MAR-CAS,ESP","DST-S-DP","","","MAR-CAS","ESP",250,"km","Research Susanne Krieger"]
[null,"DST-S-DP,,,MAR-CAS,FRA","DST-S-DP","","","MAR-CAS","FRA",2000,"km","Research Susanne Krieger"]
[null,"DST-S-DP,,,MAR-CAS,NLD","DST-S-DP","","","MAR-CAS","NLD",2500,"km","Research Susanne Krieger"]
[null,"DST-S-DP,,,MAR-DAK,DEU","DST-S-DP","","","MAR-DAK","DEU",2500,"km","Research Susanne Krieger"]
[null,"DST-S-DP,,,MAR-DAK,ESP","DST-S-DP","","","MAR-DAK","ESP",250,"km","Research Susanne Krieger"]
[null,"DST-S-DP,,,MAR-DAK,FRA","DST-S-DP","","","MAR-DAK","FRA",2000,"km","Research Susanne Krieger"]
[null,"DST-S-DP,,,MAR-DAK,NLD","DST-S-DP","","","MAR-DAK","NLD",2500,"km","Research Susanne Krieger"]
[null,"DST-S-DP,,,MAR-DRA,DEU","DST-S-DP","","","MAR-DRA","DEU",2500,"km","Research Susanne Krieger"]
[null,"DST-S-DP,,,MAR-DRA,ESP","DST-S-DP","","","MAR-DRA","ESP",250,"km","Research Susanne Krieger"]
[null,"DST-S-DP,,,MAR-DRA,FRA","DST-S-DP","","","MAR-DRA","FRA",2000,"km","Research Susanne Krieger"]
[null,"DST-S-DP,,,MAR-DRA,NLD","DST-S-DP","","","MAR-DRA","NLD",2500,"km","Research Susanne Krieger"]
[null,"DST-S-DP,,,MAR-FES,DEU","DST-S-DP","","","MAR-FES","DEU",2500,"km","Research Susanne Krieger"]
[null,"DST-S-DP,,,MAR-FES,ESP","DST-S-DP","","","MAR-FES","ESP",250,"km","Research Susanne Krieger"]
[null,"DST-S-DP,,,MAR-FES,FRA","DST-S-DP","","","MAR-FES","FRA",2000,"km","Research Susanne Krieger"]
[null,"DST-S-DP,,,MAR-FES,NLD","DST-S-DP","","","MAR-FES","NLD",2500,"km","Research Susanne Krieger"]
[null,"DST-S-DP,,,MAR-GUE,DEU","DST-S-DP","","","MAR-GUE","DEU",2500,"km","Research Susanne Krieger"]
[null,"DST-S-DP,,,MAR-GUE,ESP","DST-S-DP","","","MAR-GUE","ESP",250,"km","Research Susanne Krieger"]
[null,"DST-S-DP,,,MAR-GUE,FRA","DST-S-DP","","","MAR-GUE","FRA",2000,"km","Research Susanne Krieger"]
[null,"DST-S-DP,,,MAR-GUE,NLD","DST-S-DP","","","MAR-GUE","NLD",2500,"km","Research Susanne Krieger"]
[null,"DST-S-DP,,,MAR-LAA,DEU","DST-S-DP","","","MAR-LAA","DEU",2500,"km","Research Susanne Krieger"]
[null,"DST-S-DP,,,MAR-LAA,ESP","DST-S-DP","","","MAR-LAA","ESP",250,"km","Research Susanne Krieger"]
[null,"DST-S-DP,,,MAR-LAA,FRA","DST-S-DP","","","MAR-LAA","FRA",2000,"km","Research Susanne Krieger"]
[null,"DST-S-DP,,,MAR-LAA,NLD","DST-S-DP","","","MAR-LAA","NLD",2500,"km","Research Susanne Krieger"]
[null,"DST-S-DP,,,MAR-LOR,DEU","DST-S-DP","","","MAR-LOR","DEU",2500,"km","Research Susanne Krieger"]
[null,"DST-S-DP,,,MAR-LOR,ESP","DST-S-DP","","","MAR-LOR","ESP",250,"km","Research Susanne Krieger"]
[null,"DST-S-DP,,,MAR-LOR,FRA","DST-S-DP","","","MAR-LOR","FRA",2000,"km","Research Susanne Krieger"]
[null,"DST-S-DP,,,MAR-LOR,NLD","DST-S-DP","","","MAR-LOR","NLD",2500,"km","Research Susanne Krieger"]
[null,"DST-S-DP,,,MAR-MAR,DEU","DST-S-DP","","","MAR-MAR","DEU",2500,"km","Research Susanne Krieger"]
[null,"DST-S-DP,,,MAR-MAR,ESP","DST-S-DP","","","MAR-MAR","ESP",250,"km","Research Susanne Krieger"]
[null,"DST-S-DP,,,MAR-MAR,FRA","DST-S-DP","","","MAR-MAR","FRA",2000,"km","Research Susanne Krieger"]
[null,"DST-S-DP,,,MAR-MAR,NLD","DST-S-DP","","","MAR-MAR","NLD",2500,"km","Research Susanne Krieger"]
[null,"DST-S-DP,,,MAR-RAB,DEU","DST-S-DP","","","MAR-RAB","DEU",2500,"km","Research Susanne Krieger"]
[null,"DST-S-DP,,,MAR-RAB,ESP","DST-S-DP","","","MAR-RAB","ESP",250,"km","Research Susanne Krieger"]
[null,"DST-S-DP,,,MAR-RAB,FRA","DST-S-DP","","","MAR-RAB","FRA",2000,"km","Research Susanne Krieger"]
[null,"DST-S-DP,,,MAR-RAB,NLD","DST-S-DP","","","MAR-RAB","NLD",2500,"km","Research Susanne Krieger"]
[null,"DST-S-DP,,,MAR-SOU,DEU","DST-S-DP","","","MAR-SOU","DEU",2500,"km","Research Susanne Krieger"]
[null,"DST-S-DP,,,MAR-SOU,ESP","DST-S-DP","","","MAR-SOU","ESP",250,"km","Research Susanne Krieger"]
[null,"DST-S-DP,,,MAR-SOU,FRA","DST-S-DP","","","MAR-SOU","FRA",2000,"km","Research Susanne Krieger"]
[null,"DST-S-DP,,,MAR-SOU,NLD","DST-S-DP","","","MAR-SOU","NLD",2500,"km","Research Susanne Krieger"]
[null,"DST-S-DP,,,MAR-TAN,DEU","DST-S-DP","","","MAR-TAN","DEU",2500,"km","Research Susanne Krieger"]
[null,"DST-S-DP,,,MAR-TAN,ESP","DST-S-DP","","","MAR-TAN","ESP",250,"km","Research Susanne Krieger"]
[null,"DST-S-DP,,,MAR-TAN,FRA","DST-S-DP","","","MAR-TAN","FRA",2000,"km","Research Susanne Krieger"]
[null,"DST-S-DP,,,MAR-TAN,NLD","DST-S-DP","","","MAR-TAN","NLD",2500,"km","Research Susanne Krieger"]
[null,"DST-S-DP,,,MEX,USA","DST-S-DP","","","MEX","USA",500,"km","Research Susanne Krieger"]
[null,"DST-S-DP,,,MRT,DEU","DST-S-DP","","","MRT","DEU",5000,"km","Research Susanne Krieger"]
[null,"DST-S-DP,,,MRT,ESP","DST-S-DP","","","MRT","ESP",3000,"km","Research Susanne Krieger"]
[null,"DST-S-DP,,,MRT,FRA","DST-S-DP","","","MRT","FRA",4000,"km","Research Susanne Krieger"]
[null,"DST-S-DP,,,MRT,NLD","DST-S-DP","","","MRT","NLD",5000,"km","Research Susanne Krieger"]
[null,"DST-S-DP,,,NOR,DEU","DST-S-DP","","","NOR","DEU",500,"km","Research Susanne Krieger"]
[null,"DST-S-DP,,,NOR,ESP","DST-S-DP","","","NOR","ESP",2000,"km","Research Susanne Krieger"]
[null,"DST-S-DP,,,NOR,FRA","DST-S-DP","","","NOR","FRA",1000,"km","Research Susanne Krieger"]
[null,"DST-S-DP,,,NOR,NLD","DST-S-DP","","","NOR","NLD",1000,"km","Research Susanne Krieger"]
[null,"DST-S-DP,,,PER,USA","DST-S-DP","","","PER","USA",5500,"km","Research Susanne Krieger"]
[null,"DST-S-DP,,,PRT,DEU","DST-S-DP","","","PRT","DEU",2000,"km","Research Susanne Krieger"]
[null,"DST-S-DP,,,PRT,ESP","DST-S-DP","","","PRT","ESP",250,"km","Research Susanne Krieger"]
[null,"DST-S-DP,,,PRT,FRA","DST-S-DP","","","PRT","FRA",1000,"km","Research Susanne Krieger"]
[null,"DST-S-DP,,,PRT,NLD","DST-S-DP","","","PRT","NLD",2000,"km","Research Susanne Krieger"]
[null,"DST-S-DP,,,RUS,CHN","DST-S-DP","","","RUS","CHN",4000,"km","Research Susanne Krieger"]
[null,"DST-S-DP,,,RUS,DEU","DST-S-DP","","","RUS","DEU",1000,"km","Research Susanne Krieger"]
[null,"DST-S-DP,,,RUS,ESP","DST-S-DP","","","RUS","ESP",5000,"km","Research Susanne Krieger"]
[null,"DST-S-DP,,,RUS,FRA","DST-S-DP","","","RUS","FRA",4000,"km","Research Susanne Krieger"]
[null,"DST-S-DP,,,RUS,IND","DST-S-DP","","","RUS","IND",4000,"km","Research Susanne Krieger"]
[null,"DST-S-DP,,,RUS,JPN","DST-S-DP","","","RUS","JPN",4000,"km","Research Susanne Krieger"]
[null,"DST-S-DP,,,RUS,KOR","DST-S-DP","","","RUS","KOR",3000,"km","Research Susanne Krieger"]
[null,"DST-S-DP,,,RUS,NLD","DST-S-DP","","","RUS","NLD",4000,"km","Research Susanne Krieger"]
[null,"DST-S-DP,,,SAU,DEU","DST-S-DP","","","SAU","DEU",4500,"km","Research Susanne Krieger"]
[null,"DST-S-DP,,,SAU,ESP","DST-S-DP","","","SAU","ESP",5000,"km","Research Susanne Krieger"]
[null,"DST-S-DP,,,SAU,FRA","DST-S-DP","","","SAU","FRA",5000,"km","Research Susanne Krieger"]
[null,"DST-S-DP,,,SAU,IND","DST-S-DP","","","SAU","IND",3500,"km","Research Susanne Krieger"]
[null,"DST-S-DP,,,SAU,NLD","DST-S-DP","","","SAU","NLD",5000,"km","Research Susanne Krieger"]
[null,"DST-S-DP,,,SWE,DEU","DST-S-DP","","","SWE","DEU",1000,"km","Research Susanne Krieger"]
[null,"DST-S-DP,,,SWE,ESP","DST-S-DP","","","SWE","ESP",3000,"km","Research Susanne Krieger"]
[null,"DST-S-DP,,,SWE,FRA","DST-S-DP","","","SWE","FRA",2000,"km","Research Susanne Krieger"]
[null,"DST-S-DP,,,SWE,NLD","DST-S-DP","","","SWE","NLD",2000,"km","Research Susanne Krieger"]
[null,"DST-S-DP,,,THA,CHN","DST-S-DP","","","THA","CHN",1500,"km","Research Susanne Krieger"]
[null,"DST-S-DP,,,THA,IND","DST-S-DP","","","THA","IND",2500,"km","Research Susanne Krieger"]
[null,"DST-S-DP,,,THA,JPN","DST-S-DP","","","THA","JPN",5000,"km","Research Susanne Krieger"]
[null,"DST-S-DP,,,THA,KOR","DST-S-DP","","","THA","KOR",5000,"km","Research Susanne Krieger"]
[null,"DST-S-DP,,,TUN,DEU","DST-S-DP","","","TUN","DEU",2000,"km","Research Susanne Krieger"]
[null,"DST-S-DP,,,TUN,ESP","DST-S-DP","","","TUN","ESP",1500,"km","Research Susanne Krieger"]
[null,"DST-S-DP,,,TUN,FRA","DST-S-DP","","","TUN","FRA",1000,"km","Research Susanne Krieger"]
[null,"DST-S-DP,,,TUN,NLD","DST-S-DP","","","TUN","NLD",2500,"km","Research Susanne Krieger"]
[null,"DST-S-DP,,,UKR,DEU","DST-S-DP","","","UKR","DEU",1500,"km","Research Susanne Krieger"]
[null,"DST-S-DP,,,UKR,ESP","DST-S-DP","","","UKR","ESP",3000,"km","Research Susanne Krieger"]
[null,"DST-S-DP,,,UKR,FRA","DST-S-DP","","","UKR","FRA",2000,"km","Research Susanne Krieger"]
[null,"DST-S-DP,,,UKR,NLD","DST-S-DP","","","UKR","NLD",2000,"km","Research Susanne Krieger"]
[null,"DST-S-DP,,,VNM,CHN","DST-S-DP","","","VNM","CHN",1000,"km","Research Susanne Krieger"]
[null,"DST-S-DP,,,VNM,IND","DST-S-DP","","","VNM","IND",3500,"km","Research Susanne Krieger"]
[null,"DST-S-DP,,,VNM,JPN","DST-S-DP","","","VNM","JPN",4000,"km","Research Susanne Krieger"]
[null,"DST-S-DP,,,VNM,KOR","DST-S-DP","","","VNM","KOR",5000,"km","Research Susanne Krieger"]
[null,"EFF,AEL-EL,,,","EFF","AEL-EL","","","",0.69,"various (output per main input)"]
[null,"EFF,ATR,,,","EFF","ATR","","","",0.79991999999999996,"various (output per main input)","Oni et al. 2022"]
[null,"EFF,CH3OHSYN,,,","EFF","CH3OHSYN","","","",0.80300000000000005,"various (output per main input)","Frontier Economics 2021"]
[null,"EFF,CH4-RGAS,,,","EFF","CH4-RGAS","","","",0.98,"various (output per main input)","Pospíšil et al. 2019"]
[null,"EFF,CH4SYN,,,","EFF","CH4SYN","","","",0.83,"various (output per main input)","Öko-Institut 2020"]
[null,"EFF,DESAL,,,","EFF","DESAL","","","",1,"various (output per main input)"]
[null,"EFF,DRI,,,","EFF","DRI","","","",0.35759897828863341,"kg DRI (s)/kwhh2","Agora Industry Transformation 2021"]
[null,"EFF,EFUELSYN,,,","EFF","EFUELSYN","","","",0.73,"various (output per main input)","Frontier Economics 2021"]
[null,"EFF,H2-LIQ,,,","EFF","H2-LIQ","","","",1,"various (output per main input)"]
[null,"EFF,H2-RGAS,,,","EFF","H2-RGAS","","","",0.99654654654654651,"various (output per main input)","DNV GL 2020"]
[null,"EFF,LOHC-REC,,,","EFF","LOHC-REC","","","",0.9,"various (output per main input)","DNV GL 2020"]
[null,"EFF,NH3-REC,,,","EFF","NH3-REC","","","",0.74661016949152537,"various (output per main input)","NGN; Equinor 2018"]
[null,"EFF,NH3SYN,,,","EFF","NH3SYN","","","",0.81899999999999995,"various (output per main input)","Frotier Economics 2021"]
[null,"EFF,PEM-EL,,,","EFF","PEM-EL","","","",0.67,"various (output per main input)"]
[null,"EFF,REGASATR,,,","EFF","REGASATR","","","",0.77991999999999995,"various (output per main input)","combined values"]
[null,"EFF,SOEC-EL,,,","EFF","SOEC-EL","","","",0.73,"various (output per main input)"]
[null,"FLH,AEL-EL,,,","FLH","AEL-EL","","","",3861.9141914191418,"h","average of PTX Atlas"]
[null,"FLH,DRI,,,","FLH","DRI","","","",7884,"0"]
[null,"FLH,NH3SYN,,,","FLH","NH3SYN","","","",8000,"h","Fasihi et al. 2021"]
[null,"FLH,PEM-EL,,,","FLH","PEM-EL","","","",3861.9141914191418,"h","average of PTX Atlas"]
[null,"FLH,PV-FIX,,ARE,","FLH","PV-FIX","","ARE","",1662,"h"]
[null,"FLH,PV-FIX,,ARG,","FLH","PV-FIX","","ARG","",1494,"h"]
[null,"FLH,PV-FIX,,ARG-BA,","FLH","PV-FIX","","ARG-BA","",1501.409990284945,"h"]
[null,"FLH,PV-FIX,,ARG-CAT,","FLH","PV-FIX","","ARG-CAT","",2184.2849520000136,"h"]
[null,"FLH,PV-FIX,,ARG-CBA,","FLH","PV-FIX","","ARG-CBA","",1472.2464967200012,"h"]
[null,"FLH,PV-FIX,,ARG-CHA,","FLH","PV-FIX","","ARG-CHA","",1462.293405359997,"h"]
[null,"FLH,PV-FIX,,ARG-CHU,","FLH","PV-FIX","","ARG-CHU","",1565.6552791200011,"h"]
[null,"FLH,PV-FIX,,ARG-COR,","FLH","PV-FIX","","ARG-COR","",1411.9226517600005,"h"]
[null,"FLH,PV-FIX,,ARG-CRB,","FLH","PV-FIX","","ARG-CRB","",1571.8333939199993,"h"]
[null,"FLH,PV-FIX,,ARG-CRU,","FLH","PV-FIX","","ARG-CRU","",1419.2559755999985,"h"]
[null,"FLH,PV-FIX,,ARG-EST,","FLH","PV-FIX","","ARG-EST","",1553.4726681600023,"h"]
[null,"FLH,PV-FIX,,ARG-FOR,","FLH","PV-FIX","","ARG-FOR","",1449.92262888,"h"]
[null,"FLH,PV-FIX,,ARG-FUE,","FLH","PV-FIX","","ARG-FUE","",919.59809255999858,"h"]
[null,"FLH,PV-FIX,,ARG-JUJ,","FLH","PV-FIX","","ARG-JUJ","",2038.9844970000051,"h"]
[null,"FLH,PV-FIX,,ARG-LAR,","FLH","PV-FIX","","ARG-LAR","",1927.5699347999985,"h"]
[null,"FLH,PV-FIX,,ARG-MEN,","FLH","PV-FIX","","ARG-MEN","",1738.9096295999984,"h"]
[null,"FLH,PV-FIX,,ARG-MIS,","FLH","PV-FIX","","ARG-MIS","",1441.0558828799994,"h"]
[null,"FLH,PV-FIX,,ARG-NEG,","FLH","PV-FIX","","ARG-NEG","",1598.6654748000003,"h"]
[null,"FLH,PV-FIX,,ARG-NEU,","FLH","PV-FIX","","ARG-NEU","",1672.0413458399996,"h"]
[null,"FLH,PV-FIX,,ARG-PAM,","FLH","PV-FIX","","ARG-PAM","",1585.1219047199993,"h"]
[null,"FLH,PV-FIX,,ARG-RIO,","FLH","PV-FIX","","ARG-RIO","",1444.5405770399989,"h"]
[null,"FLH,PV-FIX,,ARG-SAF,","FLH","PV-FIX","","ARG-SAF","",1463.6960647199994,"h"]
[null,"FLH,PV-FIX,,ARG-SAJ,","FLH","PV-FIX","","ARG-SAJ","",1798.3159226999983,"h"]
[null,"FLH,PV-FIX,,ARG-SAL,","FLH","PV-FIX","","ARG-SAL","",1674.9613511999978,"h"]
[null,"FLH,PV-FIX,,ARG-SAT,","FLH","PV-FIX","","ARG-SAT","",1564.1549919000008,"h"]
[null,"FLH,PV-FIX,,ARG-TUC,","FLH","PV-FIX","","ARG-TUC","",1670.31158688,"h"]
[null,"FLH,PV-FIX,,AUS,","FLH","PV-FIX","","AUS","",1557,"h"]
[null,"FLH,PV-FIX,,BRA,","FLH","PV-FIX","","BRA","",1346,"h"]
[null,"FLH,PV-FIX,,CHL,","FLH","PV-FIX","","CHL","",1939,"h"]
[null,"FLH,PV-FIX,,CHN,","FLH","PV-FIX","","CHN","",1845.4554144000026,"h"]
[null,"FLH,PV-FIX,,COL,","FLH","PV-FIX","","COL","",1300,"h"]
[null,"FLH,PV-FIX,,CRI,","FLH","PV-FIX","","CRI","",1336.1040323999978,"h"]
[null,"FLH,PV-FIX,,DNK,","FLH","PV-FIX","","DNK","",957.75962760000073,"h"]
[null,"FLH,PV-FIX,,DZA,","FLH","PV-FIX","","DZA","",1699,"h"]
[null,"FLH,PV-FIX,,EGY,","FLH","PV-FIX","","EGY","",1744,"h"]
[null,"FLH,PV-FIX,,ESP,","FLH","PV-FIX","","ESP","",1567.2650796000021,"h"]
[null,"FLH,PV-FIX,,IDN,","FLH","PV-FIX","","IDN","",1506,"h"]
[null,"FLH,PV-FIX,,IND,","FLH","PV-FIX","","IND","",1562,"h"]
[null,"FLH,PV-FIX,,JOR,","FLH","PV-FIX","","JOR","",1792,"h"]
[null,"FLH,PV-FIX,,KAZ,","FLH","PV-FIX","","KAZ","",1425,"h"]
[null,"FLH,PV-FIX,,KEN,","FLH","PV-FIX","","KEN","",1418,"h"]
[null,"FLH,PV-FIX,,MAR,","FLH","PV-FIX","","MAR","",1631,"h"]
[null,"FLH,PV-FIX,,MAR-BEN,","FLH","PV-FIX","","MAR-BEN","",1745.3384668799999,"h"]
[null,"FLH,PV-FIX,,MAR-CAS,","FLH","PV-FIX","","MAR-CAS","",1665.7276233599982,"h"]
[null,"FLH,PV-FIX,,MAR-DAK,","FLH","PV-FIX","","MAR-DAK","",1728.1917287999981,"h"]
[null,"FLH,PV-FIX,,MAR-DRA,","FLH","PV-FIX","","MAR-DRA","",1808.0709587999988,"h"]
[null,"FLH,PV-FIX,,MAR-FES,","FLH","PV-FIX","","MAR-FES","",1678.0894264800027,"h"]
[null,"FLH,PV-FIX,,MAR-GUE,","FLH","PV-FIX","","MAR-GUE","",1758.0457144800002,"h"]
[null,"FLH,PV-FIX,,MAR-LAA,","FLH","PV-FIX","","MAR-LAA","",1742.770432080001,"h"]
[null,"FLH,PV-FIX,,MAR-LOR,","FLH","PV-FIX","","MAR-LOR","",1709.8854897600017,"h"]
[null,"FLH,PV-FIX,,MAR-MAR,","FLH","PV-FIX","","MAR-MAR","",1734.1491045599982,"h"]
[null,"FLH,PV-FIX,,MAR-RAB,","FLH","PV-FIX","","MAR-RAB","",1620.7182007199983,"h"]
[null,"FLH,PV-FIX,,MAR-SOU,","FLH","PV-FIX","","MAR-SOU","",1800.775983599998,"h"]
[null,"FLH,PV-FIX,,MAR-TAN,","FLH","PV-FIX","","MAR-TAN","",1615.309697519999,"h"]
[null,"FLH,PV-FIX,,MEX,","FLH","PV-FIX","","MEX","",1731,"h"]
[null,"FLH,PV-FIX,,MRT,","FLH","PV-FIX","","MRT","",1657,"h"]
[null,"FLH,PV-FIX,,NAM,","FLH","PV-FIX","","NAM","",1859.5896948000045,"h"]
[null,"FLH,PV-FIX,,NOR,","FLH","PV-FIX","","NOR","",845.30347200000051,"h"]
[null,"FLH,PV-FIX,,PER,","FLH","PV-FIX","","PER","",1746,"h"]
[null,"FLH,PV-FIX,,PRT,","FLH","PV-FIX","","PRT","",1445.5080791999967,"h"]
[null,"FLH,PV-FIX,,RUS,","FLH","PV-FIX","","RUS","",1173,"h"]
[null,"FLH,PV-FIX,,SAU,","FLH","PV-FIX","","SAU","",1723,"h"]
[null,"FLH,PV-FIX,,SWE,","FLH","PV-FIX","","SWE","",886.08134879999852,"h"]
[null,"FLH,PV-FIX,,THA,","FLH","PV-FIX","","THA","",1254.531981600001,"h"]
[null,"FLH,PV-FIX,,TUN,","FLH","PV-FIX","","TUN","",1611,"h"]
[null,"FLH,PV-FIX,,UKR,","FLH","PV-FIX","","UKR","",1398.7297331999989,"h"]
[null,"FLH,PV-FIX,,URY,","FLH","PV-FIX","","URY","",1338,"h"]
[null,"FLH,PV-FIX,,USA,","FLH","PV-FIX","","USA","",1593,"h"]
[null,"FLH,PV-FIX,,VNM,","FLH","PV-FIX","","VNM","",1266.9854976000001,"h"]
[null,"FLH,PV-FIX,,ZAF,","FLH","PV-FIX","","ZAF","",1603,"h"]
[null,"FLH,PV-FIX,,ZAF-EC,","FLH","PV-FIX","","ZAF-EC","",1725.7083537599988,"h"]
[null,"FLH,PV-FIX,,ZAF-FRS,","FLH","PV-FIX","","ZAF-FRS","",1808.769283199998,"h"]
[null,"FLH,PV-FIX,,ZAF-GAU,","FLH","PV-FIX","","ZAF-GAU","",1770.0387314399968,"h"]
[null,"FLH,PV-FIX,,ZAF-KWA,","FLH","PV-FIX","","ZAF-KWA","",1694.9134799999979,"h"]
[null,"FLH,PV-FIX,,ZAF-LIM,","FLH","PV-FIX","","ZAF-LIM","",1711.457395919999,"h"]
[null,"FLH,PV-FIX,,ZAF-MPU,","FLH","PV-FIX","","ZAF-MPU","",1752.2448955200002,"h"]
[null,"FLH,PV-FIX,,ZAF-NC,","FLH","PV-FIX","","ZAF-NC","",1814.9242226399974,"h"]
[null,"FLH,PV-FIX,,ZAF-NW,","FLH","PV-FIX","","ZAF-NW","",1786.6500962399978,"h"]
[null,"FLH,PV-FIX,,ZAF-WC,","FLH","PV-FIX","","ZAF-WC","",1664.7200798400002,"h"]
[null,"FLH,RES-HYBR,,ARE,","FLH","RES-HYBR","","ARE","",3116.3347803479924,"h"]
[null,"FLH,RES-HYBR,,ARG,","FLH","RES-HYBR","","ARG","",5660.92,"h"]
[null,"FLH,RES-HYBR,,ARG-BA,","FLH","RES-HYBR","","ARG-BA","",4945.8767126930315,"h"]
[null,"FLH,RES-HYBR,,ARG-CAT,","FLH","RES-HYBR","","ARG-CAT","",4818.1134165187877,"h"]
[null,"FLH,RES-HYBR,,ARG-CBA,","FLH","RES-HYBR","","ARG-CBA","",4796.3272366469528,"h"]
[null,"FLH,RES-HYBR,,ARG-CHA,","FLH","RES-HYBR","","ARG-CHA","",4353.1801274671416,"h"]
[null,"FLH,RES-HYBR,,ARG-CHU,","FLH","RES-HYBR","","ARG-CHU","",6390.4146064505558,"h"]
[null,"FLH,RES-HYBR,,ARG-COR,","FLH","RES-HYBR","","ARG-COR","",4296.9749353692923,"h"]
[null,"FLH,RES-HYBR,,ARG-CRB,","FLH","RES-HYBR","","ARG-CRB","",4058.0540031422247,"h"]
[null,"FLH,RES-HYBR,,ARG-CRU,","FLH","RES-HYBR","","ARG-CRU","",6369.4767112831887,"h"]
[null,"FLH,RES-HYBR,,ARG-EST,","FLH","RES-HYBR","","ARG-EST","",4886.4479918271754,"h"]
[null,"FLH,RES-HYBR,,ARG-FOR,","FLH","RES-HYBR","","ARG-FOR","",4947.3662874337479,"h"]
[null,"FLH,RES-HYBR,,ARG-FUE,","FLH","RES-HYBR","","ARG-FUE","",4348.7759583573197,"h"]
[null,"FLH,RES-HYBR,,ARG-JUJ,","FLH","RES-HYBR","","ARG-JUJ","",5341.5292254807428,"h"]
[null,"FLH,RES-HYBR,,ARG-LAR,","FLH","RES-HYBR","","ARG-LAR","",4993.6358442638966,"h"]
[null,"FLH,RES-HYBR,,ARG-MEN,","FLH","RES-HYBR","","ARG-MEN","",4634.7425576878331,"h"]
[null,"FLH,RES-HYBR,,ARG-MIS,","FLH","RES-HYBR","","ARG-MIS","",3199.5290500507745,"h"]
[null,"FLH,RES-HYBR,,ARG-NEG,","FLH","RES-HYBR","","ARG-NEG","",5871.0170147807694,"h"]
[null,"FLH,RES-HYBR,,ARG-NEU,","FLH","RES-HYBR","","ARG-NEU","",5150.2668537210066,"h"]
[null,"FLH,RES-HYBR,,ARG-PAM,","FLH","RES-HYBR","","ARG-PAM","",5140.6823491886607,"h"]
[null,"FLH,RES-HYBR,,ARG-RIO,","FLH","RES-HYBR","","ARG-RIO","",4336.8044520469111,"h"]
[null,"FLH,RES-HYBR,,ARG-SAF,","FLH","RES-HYBR","","ARG-SAF","",4440.5215244686588,"h"]
[null,"FLH,RES-HYBR,,ARG-SAJ,","FLH","RES-HYBR","","ARG-SAJ","",4214.2631306310104,"h"]
[null,"FLH,RES-HYBR,,ARG-SAL,","FLH","RES-HYBR","","ARG-SAL","",5055.8296990927674,"h"]
[null,"FLH,RES-HYBR,,ARG-SAT,","FLH","RES-HYBR","","ARG-SAT","",4747.3079047460951,"h"]
[null,"FLH,RES-HYBR,,ARG-TUC,","FLH","RES-HYBR","","ARG-TUC","",3565.3259655172683,"h"]
[null,"FLH,RES-HYBR,,AUS,","FLH","RES-HYBR","","AUS","",4753.97,"h"]
[null,"FLH,RES-HYBR,,BRA,","FLH","RES-HYBR","","BRA","",5155.55,"h"]
[null,"FLH,RES-HYBR,,CHL,","FLH","RES-HYBR","","CHL","",3450.29,"h"]
[null,"FLH,RES-HYBR,,CHN,","FLH","RES-HYBR","","CHN","",5183.707028904495,"h"]
[null,"FLH,RES-HYBR,,COL,","FLH","RES-HYBR","","COL","",5503,"h"]
[null,"FLH,RES-HYBR,,CRI,","FLH","RES-HYBR","","CRI","",3421.5147964974931,"h"]
[null,"FLH,RES-HYBR,,DNK,","FLH","RES-HYBR","","DNK","",5197.0268387719998,"h"]
[null,"FLH,RES-HYBR,,DZA,","FLH","RES-HYBR","","DZA","",4270.91,"h"]
[null,"FLH,RES-HYBR,,EGY,","FLH","RES-HYBR","","EGY","",4644.3599999999997,"h"]
[null,"FLH,RES-HYBR,,ESP,","FLH","RES-HYBR","","ESP","",5668.5234185745076,"h"]
[null,"FLH,RES-HYBR,,IDN,","FLH","RES-HYBR","","IDN","",2496.284437136494,"h"]
[null,"FLH,RES-HYBR,,IND,","FLH","RES-HYBR","","IND","",4890.74,"h"]
[null,"FLH,RES-HYBR,,JOR,","FLH","RES-HYBR","","JOR","",2376.5,"h"]
[null,"FLH,RES-HYBR,,KAZ,","FLH","RES-HYBR","","KAZ","",5289.962108140493,"h"]
[null,"FLH,RES-HYBR,,KEN,","FLH","RES-HYBR","","KEN","",3668.54,"h"]
[null,"FLH,RES-HYBR,,MAR,","FLH","RES-HYBR","","MAR","",4739.42,"h"]
[null,"FLH,RES-HYBR,,MAR-BEN,","FLH","RES-HYBR","","MAR-BEN","",3352.6974508185135,"h"]
[null,"FLH,RES-HYBR,,MAR-CAS,","FLH","RES-HYBR","","MAR-CAS","",4107.461264954989,"h"]
[null,"FLH,RES-HYBR,,MAR-DAK,","FLH","RES-HYBR","","MAR-DAK","",6342.17431498525,"h"]
[null,"FLH,RES-HYBR,,MAR-DRA,","FLH","RES-HYBR","","MAR-DRA","",4442.5500678171611,"h"]
[null,"FLH,RES-HYBR,,MAR-FES,","FLH","RES-HYBR","","MAR-FES","",3693.5166831944407,"h"]
[null,"FLH,RES-HYBR,,MAR-GUE,","FLH","RES-HYBR","","MAR-GUE","",5015.1834420732221,"h"]
[null,"FLH,RES-HYBR,,MAR-LAA,","FLH","RES-HYBR","","MAR-LAA","",5823.2278770450366,"h"]
[null,"FLH,RES-HYBR,,MAR-LOR,","FLH","RES-HYBR","","MAR-LOR","",4805.6356254658413,"h"]
[null,"FLH,RES-HYBR,,MAR-MAR,","FLH","RES-HYBR","","MAR-MAR","",3574.4335757714989,"h"]
[null,"FLH,RES-HYBR,,MAR-RAB,","FLH","RES-HYBR","","MAR-RAB","",3447.3598533759478,"h"]
[null,"FLH,RES-HYBR,,MAR-SOU,","FLH","RES-HYBR","","MAR-SOU","",4479.2641726234597,"h"]
[null,"FLH,RES-HYBR,,MAR-TAN,","FLH","RES-HYBR","","MAR-TAN","",4503.3511393000135,"h"]
[null,"FLH,RES-HYBR,,MEX,","FLH","RES-HYBR","","MEX","",4219.5,"h"]
[null,"FLH,RES-HYBR,,MRT,","FLH","RES-HYBR","","MRT","",6214.79,"h"]
[null,"FLH,RES-HYBR,,NAM,","FLH","RES-HYBR","","NAM","",6766.4489765195067,"h"]
[null,"FLH,RES-HYBR,,NOR,","FLH","RES-HYBR","","NOR","",4955.9832041924956,"h"]
[null,"FLH,RES-HYBR,,PER,","FLH","RES-HYBR","","PER","",2965.29,"h"]
[null,"FLH,RES-HYBR,,PRT,","FLH","RES-HYBR","","PRT","",5677.7820377284897,"h"]
[null,"FLH,RES-HYBR,,RUS,","FLH","RES-HYBR","","RUS","",3549.23,"h"]
[null,"FLH,RES-HYBR,,SAU,","FLH","RES-HYBR","","SAU","",3830.5299999999997,"h"]
[null,"FLH,RES-HYBR,,SWE,","FLH","RES-HYBR","","SWE","",3823.9828340194917,"h"]
[null,"FLH,RES-HYBR,,THA,","FLH","RES-HYBR","","THA","",3569.5369351590002,"h"]
[null,"FLH,RES-HYBR,,TUN,","FLH","RES-HYBR","","TUN","",4306.8,"h"]
[null,"FLH,RES-HYBR,,UKR,","FLH","RES-HYBR","","UKR","",5019.1641120944814,"h"]
[null,"FLH,RES-HYBR,,URY,","FLH","RES-HYBR","","URY","",4775.3099999999995,"h"]
[null,"FLH,RES-HYBR,,USA,","FLH","RES-HYBR","","USA","",5067.28,"h"]
[null,"FLH,RES-HYBR,,VNM,","FLH","RES-HYBR","","VNM","",4699.5574412419974,"h"]
[null,"FLH,RES-HYBR,,ZAF,","FLH","RES-HYBR","","ZAF","",4382.46,"h"]
[null,"FLH,RES-HYBR,,ZAF-EC,","FLH","RES-HYBR","","ZAF-EC","",5288.7578237093758,"h"]
[null,"FLH,RES-HYBR,,ZAF-FRS,","FLH","RES-HYBR","","ZAF-FRS","",4425.6106106284642,"h"]
[null,"FLH,RES-HYBR,,ZAF-GAU,","FLH","RES-HYBR","","ZAF-GAU","",3757.1990000000001,"h"]
[null,"FLH,RES-HYBR,,ZAF-KWA,","FLH","RES-HYBR","","ZAF-KWA","",4268.4057445788794,"h"]
[null,"FLH,RES-HYBR,,ZAF-LIM,","FLH","RES-HYBR","","ZAF-LIM","",4233.3590689024513,"h"]
[null,"FLH,RES-HYBR,,ZAF-MPU,","FLH","RES-HYBR","","ZAF-MPU","",4233.3590689024513,"h"]
[null,"FLH,RES-HYBR,,ZAF-NC,","FLH","RES-HYBR","","ZAF-NC","",5250.5102949318216,"h"]
[null,"FLH,RES-HYBR,,ZAF-NW,","FLH","RES-HYBR","","ZAF-NW","",4461.2336445282735,"h"]
[null,"FLH,RES-HYBR,,ZAF-WC,","FLH","RES-HYBR","","ZAF-WC","",4751.4057997393265,"h"]
[null,"FLH,SOEC-EL,,,","FLH","SOEC-EL","","","",5519.7223140495871,"h","average of PTX Atlas"]
[null,"FLH,WIND-OFF,,ARE,","FLH","WIND-OFF","","ARE","",2453,"h","Bosch et al. 2018"]
[null,"FLH,WIND-OFF,,ARG,","FLH","WIND-OFF","","ARG","",5369,"h","Bosch et al. 2018"]
[null,"FLH,WIND-OFF,,ARG-BA,","FLH","WIND-OFF","","ARG-BA","",3854.4,"h","Bosch et al. 2018"]
[null,"FLH,WIND-OFF,,ARG-CBA,","FLH","WIND-OFF","","ARG-CBA","",3854.4,"h","Bosch et al. 2018"]
[null,"FLH,WIND-OFF,,ARG-CHU,","FLH","WIND-OFF","","ARG-CHU","",5763.0835753699857,"h","Bosch et al. 2018"]
[null,"FLH,WIND-OFF,,ARG-CRU,","FLH","WIND-OFF","","ARG-CRU","",5854.9926980599967,"h","Bosch et al. 2018"]
[null,"FLH,WIND-OFF,,ARG-FUE,","FLH","WIND-OFF","","ARG-FUE","",3854.4,"h","Bosch et al. 2018"]
[null,"FLH,WIND-OFF,,ARG-NEG,","FLH","WIND-OFF","","ARG-NEG","",4738.1899020500086,"h","Bosch et al. 2018"]
[null,"FLH,WIND-OFF,,AUS,","FLH","WIND-OFF","","AUS","",4205,"h","Bosch et al. 2018"]
[null,"FLH,WIND-OFF,,BRA,","FLH","WIND-OFF","","BRA","",3854,"h","Bosch et al. 2018"]
[null,"FLH,WIND-OFF,,CHL,","FLH","WIND-OFF","","CHL","",6034,"h","Bosch et al. 2018"]
[null,"FLH,WIND-OFF,,CHN,","FLH","WIND-OFF","","CHN","",3592,"h","Bosch et al. 2018"]
[null,"FLH,WIND-OFF,,COL,","FLH","WIND-OFF","","COL","",4269,"h"]
[null,"FLH,WIND-OFF,,CRI,","FLH","WIND-OFF","","CRI","",2803,"h","Bosch et al. 2018"]
[null,"FLH,WIND-OFF,,DNK,","FLH","WIND-OFF","","DNK","",4730.4000000000005,"h","Bosch et al. 2018"]
[null,"FLH,WIND-OFF,,DZA,","FLH","WIND-OFF","","DZA","",3066,"h","Bosch et al. 2018"]
[null,"FLH,WIND-OFF,,EGY,","FLH","WIND-OFF","","EGY","",3066,"h","Bosch et al. 2018"]
[null,"FLH,WIND-OFF,,ESP,","FLH","WIND-OFF","","ESP","",4277,"h","Bosch et al. 2018"]
[null,"FLH,WIND-OFF,,IDN,","FLH","WIND-OFF","","IDN","",2453,"h","Bosch et al. 2018"]
[null,"FLH,WIND-OFF,,IND,","FLH","WIND-OFF","","IND","",3567,"h","Bosch et al. 2018"]
[null,"FLH,WIND-OFF,,KAZ,","FLH","WIND-OFF","","KAZ","",3697,"h","Bosch et al. 2018"]
[null,"FLH,WIND-OFF,,KEN,","FLH","WIND-OFF","","KEN","",3329,"h","Bosch et al. 2018"]
[null,"FLH,WIND-OFF,,MAR,","FLH","WIND-OFF","","MAR","",4643,"h","Bosch et al. 2018"]
[null,"FLH,WIND-OFF,,MAR-CAS,","FLH","WIND-OFF","","MAR-CAS","",4642.8,"h","Bosch et al. 2018"]
[null,"FLH,WIND-OFF,,MAR-DAK,","FLH","WIND-OFF","","MAR-DAK","",5181.7820854799875,"h","Bosch et al. 2018"]
[null,"FLH,WIND-OFF,,MAR-GUE,","FLH","WIND-OFF","","MAR-GUE","",4642.8,"h","Bosch et al. 2018"]
[null,"FLH,WIND-OFF,,MAR-LAA,","FLH","WIND-OFF","","MAR-LAA","",4642.8,"h","Bosch et al. 2018"]
[null,"FLH,WIND-OFF,,MAR-LOR,","FLH","WIND-OFF","","MAR-LOR","",4642.8,"h","Bosch et al. 2018"]
[null,"FLH,WIND-OFF,,MAR-MAR,","FLH","WIND-OFF","","MAR-MAR","",4642.8,"h","Bosch et al. 2018"]
[null,"FLH,WIND-OFF,,MAR-RAB,","FLH","WIND-OFF","","MAR-RAB","",4642.8,"h","Bosch et al. 2018"]
[null,"FLH,WIND-OFF,,MAR-SOU,","FLH","WIND-OFF","","MAR-SOU","",4642.8,"h","Bosch et al. 2018"]
[null,"FLH,WIND-OFF,,MAR-TAN,","FLH","WIND-OFF","","MAR-TAN","",4642.8,"h","Bosch et al. 2018"]
[null,"FLH,WIND-OFF,,MEX,","FLH","WIND-OFF","","MEX","",4042,"h","Bosch et al. 2018"]
[null,"FLH,WIND-OFF,,MRT,","FLH","WIND-OFF","","MRT","",4750,"h","Bosch et al. 2018"]
[null,"FLH,WIND-OFF,,NAM,","FLH","WIND-OFF","","NAM","",5116,"h","Bosch et al. 2018"]
[null,"FLH,WIND-OFF,,NOR,","FLH","WIND-OFF","","NOR","",4730,"h","Bosch et al. 2018"]
[null,"FLH,WIND-OFF,,PER,","FLH","WIND-OFF","","PER","",3854,"h","Bosch et al. 2018"]
[null,"FLH,WIND-OFF,,PRT,","FLH","WIND-OFF","","PRT","",4408,"h","Bosch et al. 2018"]
[null,"FLH,WIND-OFF,,RUS,","FLH","WIND-OFF","","RUS","",4522,"h","Bosch et al. 2018"]
[null,"FLH,WIND-OFF,,SAU,","FLH","WIND-OFF","","SAU","",2453,"h","Bosch et al. 2018"]
[null,"FLH,WIND-OFF,,SWE,","FLH","WIND-OFF","","SWE","",4730,"h","Bosch et al. 2018"]
[null,"FLH,WIND-OFF,,THA,","FLH","WIND-OFF","","THA","",2453,"h","Bosch et al. 2018"]
[null,"FLH,WIND-OFF,,TUN,","FLH","WIND-OFF","","TUN","",3066,"h","Bosch et al. 2018"]
[null,"FLH,WIND-OFF,,UKR,","FLH","WIND-OFF","","UKR","",3066,"h","Bosch et al. 2018"]
[null,"FLH,WIND-OFF,,URY,","FLH","WIND-OFF","","URY","",3854,"h","Bosch et al. 2018"]
[null,"FLH,WIND-OFF,,USA,","FLH","WIND-OFF","","USA","",4030,"h","Bosch et al. 2018"]
[null,"FLH,WIND-OFF,,VNM,","FLH","WIND-OFF","","VNM","",3578,"h","Bosch et al. 2018"]
[null,"FLH,WIND-OFF,,ZAF,","FLH","WIND-OFF","","ZAF","",4117,"h","Bosch et al. 2018"]
[null,"FLH,WIND-OFF,,ZAF-EC,","FLH","WIND-OFF","","ZAF-EC","",4117.2,"h","Bosch et al. 2018"]
[null,"FLH,WIND-OFF,,ZAF-KWA,","FLH","WIND-OFF","","ZAF-KWA","",4117.2,"h","Bosch et al. 2018"]
[null,"FLH,WIND-OFF,,ZAF-NC,","FLH","WIND-OFF","","ZAF-NC","",4117.2,"h","Bosch et al. 2018"]
[null,"FLH,WIND-OFF,,ZAF-WC,","FLH","WIND-OFF","","ZAF-WC","",4117.2,"h","Bosch et al. 2018"]
[null,"FLH,WIND-ON,,ARE,","FLH","WIND-ON","","ARE","",1642.3104587999985,"h"]
[null,"FLH,WIND-ON,,ARG,","FLH","WIND-ON","","ARG","",5369,"h"]
[null,"FLH,WIND-ON,,ARG-BA,","FLH","WIND-ON","","ARG-BA","",3756.6367058000046,"h"]
[null,"FLH,WIND-ON,,ARG-CAT,","FLH","WIND-ON","","ARG-CAT","",2884.1487291833364,"h"]
[null,"FLH,WIND-ON,,ARG-CBA,","FLH","WIND-ON","","ARG-CBA","",3601.8171951299964,"h"]
[null,"FLH,WIND-ON,,ARG-CHA,","FLH","WIND-ON","","ARG-CHA","",3079.6049933000008,"h"]
[null,"FLH,WIND-ON,,ARG-CHU,","FLH","WIND-ON","","ARG-CHU","",5763.0835753699857,"h"]
[null,"FLH,WIND-ON,,ARG-COR,","FLH","WIND-ON","","ARG-COR","",3045.2758197400012,"h"]
[null,"FLH,WIND-ON,,ARG-CRB,","FLH","WIND-ON","","ARG-CRB","",2605.2082556500004,"h"]
[null,"FLH,WIND-ON,,ARG-CRU,","FLH","WIND-ON","","ARG-CRU","",5854.9926980599967,"h"]
[null,"FLH,WIND-ON,,ARG-EST,","FLH","WIND-ON","","ARG-EST","",3710.4766984999937,"h"]
[null,"FLH,WIND-ON,,ARG-FOR,","FLH","WIND-ON","","ARG-FOR","",3781.7001483800022,"h"]
[null,"FLH,WIND-ON,,ARG-FUE,","FLH","WIND-ON","","ARG-FUE","",3710.4766984999937,"h"]
[null,"FLH,WIND-ON,,ARG-JUJ,","FLH","WIND-ON","","ARG-JUJ","",3773.9698333333426,"h"]
[null,"FLH,WIND-ON,,ARG-LAR,","FLH","WIND-ON","","ARG-LAR","",3188.6275809666754,"h"]
[null,"FLH,WIND-ON,,ARG-MEN,","FLH","WIND-ON","","ARG-MEN","",3077.1630279499932,"h"]
[null,"FLH,WIND-ON,,ARG-MIS,","FLH","WIND-ON","","ARG-MIS","",1777.2726296600022,"h"]
[null,"FLH,WIND-ON,,ARG-NEG,","FLH","WIND-ON","","ARG-NEG","",4738.1899020500086,"h"]
[null,"FLH,WIND-ON,,ARG-NEU,","FLH","WIND-ON","","ARG-NEU","",3956.5844284999962,"h"]
[null,"FLH,WIND-ON,,ARG-PAM,","FLH","WIND-ON","","ARG-PAM","",3897.7887775199929,"h"]
[null,"FLH,WIND-ON,,ARG-RIO,","FLH","WIND-ON","","ARG-RIO","",3070.126660369996,"h"]
[null,"FLH,WIND-ON,,ARG-SAF,","FLH","WIND-ON","","ARG-SAF","",3158.174208530002,"h"]
[null,"FLH,WIND-ON,,ARG-SAJ,","FLH","WIND-ON","","ARG-SAJ","",2534.5746024499945,"h"]
[null,"FLH,WIND-ON,,ARG-SAL,","FLH","WIND-ON","","ARG-SAL","",3657.6108475499996,"h"]
[null,"FLH,WIND-ON,,ARG-SAT,","FLH","WIND-ON","","ARG-SAT","",3418.5372058749972,"h"]
[null,"FLH,WIND-ON,,ARG-TUC,","FLH","WIND-ON","","ARG-TUC","",1908.3186970833303,"h"]
[null,"FLH,WIND-ON,,AUS,","FLH","WIND-ON","","AUS","",3971,"h"]
[null,"FLH,WIND-ON,,BRA,","FLH","WIND-ON","","BRA","",3517,"h"]
[null,"FLH,WIND-ON,,CHL,","FLH","WIND-ON","","CHL","",6034,"h"]
[null,"FLH,WIND-ON,,CHN,","FLH","WIND-ON","","CHN","",3250,"h"]
[null,"FLH,WIND-ON,,COL,","FLH","WIND-ON","","COL","",4269,"h"]
[null,"FLH,WIND-ON,,CRI,","FLH","WIND-ON","","CRI","",2191.2308093499951,"h"]
[null,"FLH,WIND-ON,,DNK,","FLH","WIND-ON","","DNK","",4400,"h"]
[null,"FLH,WIND-ON,,DZA,","FLH","WIND-ON","","DZA","",2738,"h"]
[null,"FLH,WIND-ON,,EGY,","FLH","WIND-ON","","EGY","",3045,"h"]
[null,"FLH,WIND-ON,,ESP,","FLH","WIND-ON","","ESP","",4276.5734962500064,"h"]
[null,"FLH,WIND-ON,,IDN,","FLH","WIND-ON","","IDN","",1150.7783336499949,"h"]
[null,"FLH,WIND-ON,,IND,","FLH","WIND-ON","","IND","",3567,"h"]
[null,"FLH,WIND-ON,,JOR,","FLH","WIND-ON","","JOR","",667,"h"]
[null,"FLH,WIND-ON,,KAZ,","FLH","WIND-ON","","KAZ","",3697,"h"]
[null,"FLH,WIND-ON,,KEN,","FLH","WIND-ON","","KEN","",2364,"h"]
[null,"FLH,WIND-ON,,MAR,","FLH","WIND-ON","","MAR","",3289,"h"]
[null,"FLH,WIND-ON,,MAR-BEN,","FLH","WIND-ON","","MAR-BEN","",1563.4934093166669,"h"]
[null,"FLH,WIND-ON,,MAR-CAS,","FLH","WIND-ON","","MAR-CAS","",2513.2012449499989,"h"]
[null,"FLH,WIND-ON,,MAR-DAK,","FLH","WIND-ON","","MAR-DAK","",5181.7820854799875,"h"]
[null,"FLH,WIND-ON,,MAR-DRA,","FLH","WIND-ON","","MAR-DRA","",2724.0904536999979,"h"]
[null,"FLH,WIND-ON,,MAR-FES,","FLH","WIND-ON","","MAR-FES","",2050.2642833200007,"h"]
[null,"FLH,WIND-ON,,MAR-GUE,","FLH","WIND-ON","","MAR-GUE","",3542.2692728499992,"h"]
[null,"FLH,WIND-ON,,MAR-LAA,","FLH","WIND-ON","","MAR-LAA","",4616.7798365699955,"h"]
[null,"FLH,WIND-ON,,MAR-LOR,","FLH","WIND-ON","","MAR-LOR","",3320.8164008250001,"h"]
[null,"FLH,WIND-ON,,MAR-MAR,","FLH","WIND-ON","","MAR-MAR","",1820.4342362250004,"h"]
[null,"FLH,WIND-ON,,MAR-RAB,","FLH","WIND-ON","","MAR-RAB","",1826.0421998500019,"h"]
[null,"FLH,WIND-ON,,MAR-SOU,","FLH","WIND-ON","","MAR-SOU","",2799.5123925999974,"h"]
[null,"FLH,WIND-ON,,MAR-TAN,","FLH","WIND-ON","","MAR-TAN","",2979.4188451500013,"h"]
[null,"FLH,WIND-ON,,MEX,","FLH","WIND-ON","","MEX","",4042,"h"]
[null,"FLH,WIND-ON,,MRT,","FLH","WIND-ON","","MRT","",4750,"h"]
[null,"FLH,WIND-ON,,NAM,","FLH","WIND-ON","","NAM","",5116.1308995500021,"h"]
[null,"FLH,WIND-ON,,NOR,","FLH","WIND-ON","","NOR","",4263.9575632499955,"h"]
[null,"FLH,WIND-ON,,PER,","FLH","WIND-ON","","PER","",1448,"h"]
[null,"FLH,WIND-ON,,PRT,","FLH","WIND-ON","","PRT","",4407.8754648499926,"h"]
[null,"FLH,WIND-ON,,RUS,","FLH","WIND-ON","","RUS","",4522,"h"]
[null,"FLH,WIND-ON,,SAU,","FLH","WIND-ON","","SAU","",2282,"h"]
[null,"FLH,WIND-ON,,SWE,","FLH","WIND-ON","","SWE","",3056.1689955499933,"h"]
[null,"FLH,WIND-ON,,THA,","FLH","WIND-ON","","THA","",2425.4030030999993,"h"]
[null,"FLH,WIND-ON,,TUN,","FLH","WIND-ON","","TUN","",2843,"h"]
[null,"FLH,WIND-ON,,UKR,","FLH","WIND-ON","","UKR","",2769,"h"]
[null,"FLH,WIND-ON,,URY,","FLH","WIND-ON","","URY","",3594,"h"]
[null,"FLH,WIND-ON,,USA,","FLH","WIND-ON","","USA","",3503,"h"]
[null,"FLH,WIND-ON,,VNM,","FLH","WIND-ON","","VNM","",3577.9190809999977,"h"]
[null,"FLH,WIND-ON,,ZAF,","FLH","WIND-ON","","ZAF","",3070,"h"]
[null,"FLH,WIND-ON,,ZAF-EC,","FLH","WIND-ON","","ZAF-EC","",3914.4857524666741,"h"]
[null,"FLH,WIND-ON,,ZAF-FRS,","FLH","WIND-ON","","ZAF-FRS","",2775.7070136400025,"h"]
[null,"FLH,WIND-ON,,ZAF-GAU,","FLH","WIND-ON","","ZAF-GAU","",2069.9309253700035,"h"]
[null,"FLH,WIND-ON,,ZAF-KWA,","FLH","WIND-ON","","ZAF-KWA","",2682.3634953500023,"h"]
[null,"FLH,WIND-ON,,ZAF-LIM,","FLH","WIND-ON","","ZAF-LIM","",2627.5496087499969,"h"]
[null,"FLH,WIND-ON,,ZAF-MPU,","FLH","WIND-ON","","ZAF-MPU","",2612.1821174166703,"h"]
[null,"FLH,WIND-ON,,ZAF-NC,","FLH","WIND-ON","","ZAF-NC","",3748.8309036749974,"h"]
[null,"FLH,WIND-ON,,ZAF-NW,","FLH","WIND-ON","","ZAF-NW","",3092.6134290333307,"h"]
[null,"FLH,WIND-ON,,ZAF-WC,","FLH","WIND-ON","","ZAF-WC","",3346.6670672599976,"h"]
[null,"LIFETIME,AEL-EL,,,","LIFETIME","AEL-EL","","","",20,"years"]
[null,"LIFETIME,ATR,,,","LIFETIME","ATR","","","",25,"years","Oni et al. 2022"]
[null,"LIFETIME,CH3OH-S,,,","LIFETIME","CH3OH-S","","","",30,"years","UNSW Sydney 2021"]
[null,"LIFETIME,CH3OH-SB,,,","LIFETIME","CH3OH-SB","","","",30,"years","UNSW Sydney 2021"]
[null,"LIFETIME,CH3OHSYN,,,","LIFETIME","CH3OHSYN","","","",30,"years","Öko-Institut 2020"]
[null,"LIFETIME,CH4-COMP,,,","LIFETIME","CH4-COMP","","","",20,"years","DNV GL 2020"]
[null,"LIFETIME,CH4-LIQ,,,","LIFETIME","CH4-LIQ","","","",30,"years","UNSW Sydney 2021"]
[null,"LIFETIME,CH4-P-L,,,","LIFETIME","CH4-P-L","","","",40,"years"]
[null,"LIFETIME,CH4-P-LR,,,","LIFETIME","CH4-P-LR","","","",40,"years"]
[null,"LIFETIME,CH4-P-S,,,","LIFETIME","CH4-P-S","","","",40,"years"]
[null,"LIFETIME,CH4-P-SR,,,","LIFETIME","CH4-P-SR","","","",40,"years"]
[null,"LIFETIME,CH4-S,,,","LIFETIME","CH4-S","","","",30,"years","UNSW Sydney 2021"]
[null,"LIFETIME,CH4-SB,,,","LIFETIME","CH4-SB","","","",30,"years","UNSW Sydney 2021"]
[null,"LIFETIME,CH4SYN,,,","LIFETIME","CH4SYN","","","",30,"years","Öko-Institut 2020"]
[null,"LIFETIME,DAC,,,","LIFETIME","DAC","","","",25,"years","Fasihi et al. 2019"]
[null,"LIFETIME,DESAL,,,","LIFETIME","DESAL","","","",20,"years","PTX Atlas"]
[null,"LIFETIME,DRI,,,","LIFETIME","DRI","","","",15,"years","Agora Industry Transformation 2021"]
[null,"LIFETIME,EFUELSYN,,,","LIFETIME","EFUELSYN","","","",30,"years","Öko-Institut 2020"]
[null,"LIFETIME,EL-TRANS,,,","LIFETIME","EL-TRANS","","","",20,"years","DUMMY"]
[null,"LIFETIME,H2-COMP,,,","LIFETIME","H2-COMP","","","",20,"years","DNV GL 2020"]
[null,"LIFETIME,H2-LIQ,,,","LIFETIME","H2-LIQ","","","",30,"years","IEA 2015"]
[null,"LIFETIME,H2-P-L,,,","LIFETIME","H2-P-L","","","",30,"years"]
[null,"LIFETIME,H2-P-LR,,,","LIFETIME","H2-P-LR","","","",30,"years"]
[null,"LIFETIME,H2-P-S,,,","LIFETIME","H2-P-S","","","",30,"years"]
[null,"LIFETIME,H2-P-SR,,,","LIFETIME","H2-P-SR","","","",30,"years"]
[null,"LIFETIME,H2-RGAS,,,","LIFETIME","H2-RGAS","","","",30,"years"]
[null,"LIFETIME,H2-S,,,","LIFETIME","H2-S","","","",30,"years","UNSW Sydney 2021"]
[null,"LIFETIME,H2-SB,,,","LIFETIME","H2-SB","","","",30,"years","UNSW Sydney 2021"]
[null,"LIFETIME,LOHC-CON,,,","LIFETIME","LOHC-CON","","","",20,"years","DNV GL 2020"]
[null,"LIFETIME,LOHC-REC,,,","LIFETIME","LOHC-REC","","","",30,"years","IEA 2019"]
[null,"LIFETIME,LOHC-S,,,","LIFETIME","LOHC-S","","","",30,"years","UNSW Sydney 2021"]
[null,"LIFETIME,LOHC-SB,,,","LIFETIME","LOHC-SB","","","",30,"years","UNSW Sydney 2021"]
[null,"LIFETIME,NH3-REC,,,","LIFETIME","NH3-REC","","","",25,"years","NGN; Equinor 2018"]
[null,"LIFETIME,NH3-S,,,","LIFETIME","NH3-S","","","",30,"years","UNSW Sydney 2021"]
[null,"LIFETIME,NH3-SB,,,","LIFETIME","NH3-SB","","","",30,"years","UNSW Sydney 2021"]
[null,"LIFETIME,NH3SYN,,,","LIFETIME","NH3SYN","","","",30,"years","Fasihi et al. 2021"]
[null,"LIFETIME,PEM-EL,,,","LIFETIME","PEM-EL","","","",20,"years"]
[null,"LIFETIME,PV-FIX,,,","LIFETIME","PV-FIX","","","",20,"years"]
[null,"LIFETIME,REGASATR,,,","LIFETIME","REGASATR","","","",25,"years","combined values"]
[null,"LIFETIME,RES-HYBR,,,","LIFETIME","RES-HYBR","","","",20,"years"]
[null,"LIFETIME,SOEC-EL,,,","LIFETIME","SOEC-EL","","","",20,"years"]
[null,"LIFETIME,SYN-S,,,","LIFETIME","SYN-S","","","",30,"years","UNSW Sydney 2021"]
[null,"LIFETIME,SYN-SB,,,","LIFETIME","SYN-SB","","","",30,"years","UNSW Sydney 2021"]
[null,"LIFETIME,WIND-OFF,,,","LIFETIME","WIND-OFF","","","",20,"years"]
[null,"LIFETIME,WIND-ON,,,","LIFETIME","WIND-ON","","","",20,"years"]
[null,"LOSS-T,CH3OH-S,,,","LOSS-T","CH3OH-S","","","",3.0509883673175365E-6,"fraction/km","calc_shipping"]
[null,"LOSS-T,CH3OH-SB,,,","LOSS-T","CH3OH-SB","","","",4.7996160307175429E-7,"fraction/km","calc_shipping"]
[null,"LOSS-T,CH4-P-L,,,","LOSS-T","CH4-P-L","","","",5.6666666666666669E-6,"fraction/km"]
[null,"LOSS-T,CH4-P-LR,,,","LOSS-T","CH4-P-LR","","","",5.6666666666666669E-6,"fraction/km"]
[null,"LOSS-T,CH4-P-S,,,","LOSS-T","CH4-P-S","","","",5.6666666666666669E-6,"fraction/km"]
[null,"LOSS-T,CH4-P-SR,,,","LOSS-T","CH4-P-SR","","","",5.6666666666666669E-6,"fraction/km"]
[null,"LOSS-T,CH4-S,,,","LOSS-T","CH4-S","","","",3.3002590965851543E-6,"fraction/km","calc_shipping"]
[null,"LOSS-T,CH4-SB,,,","LOSS-T","CH4-SB","","","",2.3075077070757413E-6,"fraction/km","calc_shipping"]
[null,"LOSS-T,H2-P-L,,,","LOSS-T","H2-P-L","","","",1.6866666666666666E-5,"fraction/km"]
[null,"LOSS-T,H2-P-LR,,,","LOSS-T","H2-P-LR","","","",1.6866666666666666E-5,"fraction/km"]
[null,"LOSS-T,H2-P-S,,,","LOSS-T","H2-P-S","","","",1.6866666666666666E-5,"fraction/km"]
[null,"LOSS-T,H2-P-SR,,,","LOSS-T","H2-P-SR","","","",1.6866666666666666E-5,"fraction/km"]
[null,"LOSS-T,H2-S,,,","LOSS-T","H2-S","","","",9.2511936896845982E-6,"fraction/km","calc_shipping"]
[null,"LOSS-T,H2-SB,,,","LOSS-T","H2-SB","","","",4.6150154141514826E-6,"fraction/km","calc_shipping"]
[null,"LOSS-T,LOHC-S,,,","LOSS-T","LOHC-S","","","",1.1535367546997468E-5,"fraction/km","calc_shipping"]
[null,"LOSS-T,NH3-S,,,","LOSS-T","NH3-S","","","",5.3436561034163411E-6,"fraction/km","calc_shipping"]
[null,"LOSS-T,NH3-SB,,,","LOSS-T","NH3-SB","","","",9.2300308283029658E-7,"fraction/km","calc_shipping"]
[null,"OPEX-F,AEL-EL,,,","OPEX-F","AEL-EL","","","",13.012853079705877,"USD2021/kW"]
[null,"OPEX-F,ATR,,,","OPEX-F","ATR","","","",48.829790310167752,"USD2021/kW","Oni et al. 2022"]
[null,"OPEX-F,CH3OHSYN,,,","OPEX-F","CH3OHSYN","","","",28.606115446577505,"USD2021/kW","Öko-Institut 2020"]
[null,"OPEX-F,CH4-COMP,,,","OPEX-F","CH4-COMP","","","",5.7796175335134681,"USD2021/kW","DNV GL 2020"]
[null,"OPEX-F,CH4-LIQ,,,","OPEX-F","CH4-LIQ","","","",8.7998736512607394,"USD2021/kW","Hank et al. 2020"]
[null,"OPEX-F,CH4SYN,,,","OPEX-F","CH4SYN","","","",25.436834409179458,"USD2021/kW","Öko-Institut 2020"]
[null,"OPEX-F,DAC,,,","OPEX-F","DAC","","","",4.150964167347479E-2,"USD2021/ kg CO2 (g)*a","average low and high"]
[null,"OPEX-F,DESAL,,,","OPEX-F","DESAL","","","",9.4669104972375679E-5,"USD2021/kW"]
[null,"OPEX-F,DRI,,,","OPEX-F","DRI","","","",123.76885357719151,"USD2021/kg DRI (s)/a*h","Agora Industry Transformation 2021"]
[null,"OPEX-F,EFUELSYN,,,","OPEX-F","EFUELSYN","","","",28.606115446577505,"USD2021/kW","Öko-Institut 2020"]
[null,"OPEX-F,H2-COMP,,,","OPEX-F","H2-COMP","","","",5.7796175335134681,"USD2021/kW","DNV GL 2020"]
[null,"OPEX-F,H2-LIQ,,,","OPEX-F","H2-LIQ","","","",58.294484220432686,"USD2021/kW","IEA 2019"]
[null,"OPEX-F,H2-RGAS,,,","OPEX-F","H2-RGAS","","","",7.9535567883452885,"USD2021/kW","DNV GL 2020"]
[null,"OPEX-F,LOHC-CON,,,","OPEX-F","LOHC-CON","","","",8.0391693383425267,"USD2021/kW","DNV GL 2020"]
[null,"OPEX-F,LOHC-REC,,,","OPEX-F","LOHC-REC","","","",14.916754450335576,"USD2021/kW","DNV GL 2021"]
[null,"OPEX-F,NH3-REC,,,","OPEX-F","NH3-REC","","","",12.342104587697584,"USD2021/kW","NGN; Equinor 2018"]
[null,"OPEX-F,NH3SYN,,,","OPEX-F","NH3SYN","","","",74.233322216319593,"USD2021/kW","Fasihi et al. 2021"]
[null,"OPEX-F,PEM-EL,,,","OPEX-F","PEM-EL","","","",18.492154421610433,"USD2021/kW"]
[null,"OPEX-F,PV-FIX,,ARE,","OPEX-F","PV-FIX","","ARE","",20.953007794895285,"USD2021/kW"]
[null,"OPEX-F,PV-FIX,,ARG,","OPEX-F","PV-FIX","","ARG","",20.328399439315248,"USD2021/kW"]
[null,"OPEX-F,PV-FIX,,ARG-BA,","OPEX-F","PV-FIX","","ARG-BA","",20.328399439315248,"USD2021/kW"]
[null,"OPEX-F,PV-FIX,,ARG-CAT,","OPEX-F","PV-FIX","","ARG-CAT","",20.328399439315248,"USD2021/kW"]
[null,"OPEX-F,PV-FIX,,ARG-CBA,","OPEX-F","PV-FIX","","ARG-CBA","",20.328399439315248,"USD2021/kW"]
[null,"OPEX-F,PV-FIX,,ARG-CHA,","OPEX-F","PV-FIX","","ARG-CHA","",20.328399439315248,"USD2021/kW"]
[null,"OPEX-F,PV-FIX,,ARG-CHU,","OPEX-F","PV-FIX","","ARG-CHU","",20.328399439315248,"USD2021/kW"]
[null,"OPEX-F,PV-FIX,,ARG-COR,","OPEX-F","PV-FIX","","ARG-COR","",20.328399439315248,"USD2021/kW"]
[null,"OPEX-F,PV-FIX,,ARG-CRB,","OPEX-F","PV-FIX","","ARG-CRB","",20.328399439315248,"USD2021/kW"]
[null,"OPEX-F,PV-FIX,,ARG-CRU,","OPEX-F","PV-FIX","","ARG-CRU","",20.328399439315248,"USD2021/kW"]
[null,"OPEX-F,PV-FIX,,ARG-EST,","OPEX-F","PV-FIX","","ARG-EST","",20.328399439315248,"USD2021/kW"]
[null,"OPEX-F,PV-FIX,,ARG-FOR,","OPEX-F","PV-FIX","","ARG-FOR","",20.328399439315248,"USD2021/kW"]
[null,"OPEX-F,PV-FIX,,ARG-FUE,","OPEX-F","PV-FIX","","ARG-FUE","",20.328399439315248,"USD2021/kW"]
[null,"OPEX-F,PV-FIX,,ARG-JUJ,","OPEX-F","PV-FIX","","ARG-JUJ","",20.328399439315248,"USD2021/kW"]
[null,"OPEX-F,PV-FIX,,ARG-LAR,","OPEX-F","PV-FIX","","ARG-LAR","",20.328399439315248,"USD2021/kW"]
[null,"OPEX-F,PV-FIX,,ARG-MEN,","OPEX-F","PV-FIX","","ARG-MEN","",20.328399439315248,"USD2021/kW"]
[null,"OPEX-F,PV-FIX,,ARG-MIS,","OPEX-F","PV-FIX","","ARG-MIS","",20.328399439315248,"USD2021/kW"]
[null,"OPEX-F,PV-FIX,,ARG-NEG,","OPEX-F","PV-FIX","","ARG-NEG","",20.328399439315248,"USD2021/kW"]
[null,"OPEX-F,PV-FIX,,ARG-NEU,","OPEX-F","PV-FIX","","ARG-NEU","",20.328399439315248,"USD2021/kW"]
[null,"OPEX-F,PV-FIX,,ARG-PAM,","OPEX-F","PV-FIX","","ARG-PAM","",20.328399439315248,"USD2021/kW"]
[null,"OPEX-F,PV-FIX,,ARG-RIO,","OPEX-F","PV-FIX","","ARG-RIO","",20.328399439315248,"USD2021/kW"]
[null,"OPEX-F,PV-FIX,,ARG-SAF,","OPEX-F","PV-FIX","","ARG-SAF","",20.328399439315248,"USD2021/kW"]
[null,"OPEX-F,PV-FIX,,ARG-SAJ,","OPEX-F","PV-FIX","","ARG-SAJ","",20.328399439315248,"USD2021/kW"]
[null,"OPEX-F,PV-FIX,,ARG-SAL,","OPEX-F","PV-FIX","","ARG-SAL","",20.328399439315248,"USD2021/kW"]
[null,"OPEX-F,PV-FIX,,ARG-SAT,","OPEX-F","PV-FIX","","ARG-SAT","",20.328399439315248,"USD2021/kW"]
[null,"OPEX-F,PV-FIX,,ARG-TUC,","OPEX-F","PV-FIX","","ARG-TUC","",20.328399439315248,"USD2021/kW"]
[null,"OPEX-F,PV-FIX,,AUS,","OPEX-F","PV-FIX","","AUS","",22.967369741640898,"USD2021/kW"]
[null,"OPEX-F,PV-FIX,,BRA,","OPEX-F","PV-FIX","","BRA","",19.901583729668893,"USD2021/kW"]
[null,"OPEX-F,PV-FIX,,CHL,","OPEX-F","PV-FIX","","CHL","",22.629040215701711,"USD2021/kW"]
[null,"OPEX-F,PV-FIX,,CHN,","OPEX-F","PV-FIX","","CHN","",13.168826163479087,"USD2021/kW"]
[null,"OPEX-F,PV-FIX,,COL,","OPEX-F","PV-FIX","","COL","",12.72146901832928,"USD2021/kW"]
[null,"OPEX-F,PV-FIX,,CRI,","OPEX-F","PV-FIX","","CRI","",20.953007794895285,"USD2021/kW"]
[null,"OPEX-F,PV-FIX,,DNK,","OPEX-F","PV-FIX","","DNK","",18.165693008119373,"USD2021/kW"]
[null,"OPEX-F,PV-FIX,,DZA,","OPEX-F","PV-FIX","","DZA","",20.953007794895285,"USD2021/kW"]
[null,"OPEX-F,PV-FIX,,EGY,","OPEX-F","PV-FIX","","EGY","",20.953007794895285,"USD2021/kW"]
[null,"OPEX-F,PV-FIX,,ESP,","OPEX-F","PV-FIX","","ESP","",19.742829105958965,"USD2021/kW"]
[null,"OPEX-F,PV-FIX,,IDN,","OPEX-F","PV-FIX","","IDN","",24.286854892803724,"USD2021/kW"]
[null,"OPEX-F,PV-FIX,,IND,","OPEX-F","PV-FIX","","IND","",13.611257082014946,"USD2021/kW"]
[null,"OPEX-F,PV-FIX,,JOR,","OPEX-F","PV-FIX","","JOR","",20.953007794895285,"USD2021/kW"]
[null,"OPEX-F,PV-FIX,,KAZ,","OPEX-F","PV-FIX","","KAZ","",20.953007794895285,"USD2021/kW"]
[null,"OPEX-F,PV-FIX,,KEN,","OPEX-F","PV-FIX","","KEN","",20.953007794895285,"USD2021/kW"]
[null,"OPEX-F,PV-FIX,,MAR,","OPEX-F","PV-FIX","","MAR","",20.953007794895285,"USD2021/kW"]
[null,"OPEX-F,PV-FIX,,MAR-BEN,","OPEX-F","PV-FIX","","MAR-BEN","",20.953007794895285,"USD2021/kW"]
[null,"OPEX-F,PV-FIX,,MAR-CAS,","OPEX-F","PV-FIX","","MAR-CAS","",20.953007794895285,"USD2021/kW"]
[null,"OPEX-F,PV-FIX,,MAR-DAK,","OPEX-F","PV-FIX","","MAR-DAK","",20.953007794895285,"USD2021/kW"]
[null,"OPEX-F,PV-FIX,,MAR-DRA,","OPEX-F","PV-FIX","","MAR-DRA","",20.953007794895285,"USD2021/kW"]
[null,"OPEX-F,PV-FIX,,MAR-FES,","OPEX-F","PV-FIX","","MAR-FES","",20.953007794895285,"USD2021/kW"]
[null,"OPEX-F,PV-FIX,,MAR-GUE,","OPEX-F","PV-FIX","","MAR-GUE","",20.953007794895285,"USD2021/kW"]
[null,"OPEX-F,PV-FIX,,MAR-LAA,","OPEX-F","PV-FIX","","MAR-LAA","",20.953007794895285,"USD2021/kW"]
[null,"OPEX-F,PV-FIX,,MAR-LOR,","OPEX-F","PV-FIX","","MAR-LOR","",20.953007794895285,"USD2021/kW"]
[null,"OPEX-F,PV-FIX,,MAR-MAR,","OPEX-F","PV-FIX","","MAR-MAR","",20.953007794895285,"USD2021/kW"]
[null,"OPEX-F,PV-FIX,,MAR-RAB,","OPEX-F","PV-FIX","","MAR-RAB","",20.953007794895285,"USD2021/kW"]
[null,"OPEX-F,PV-FIX,,MAR-SOU,","OPEX-F","PV-FIX","","MAR-SOU","",20.953007794895285,"USD2021/kW"]
[null,"OPEX-F,PV-FIX,,MAR-TAN,","OPEX-F","PV-FIX","","MAR-TAN","",20.953007794895285,"USD2021/kW"]
[null,"OPEX-F,PV-FIX,,MEX,","OPEX-F","PV-FIX","","MEX","",19.094797937044678,"USD2021/kW"]
[null,"OPEX-F,PV-FIX,,MRT,","OPEX-F","PV-FIX","","MRT","",20.953007794895285,"USD2021/kW"]
[null,"OPEX-F,PV-FIX,,NAM,","OPEX-F","PV-FIX","","NAM","",20.953007794895285,"USD2021/kW"]
[null,"OPEX-F,PV-FIX,,NOR,","OPEX-F","PV-FIX","","NOR","",19.306759939192904,"USD2021/kW"]
[null,"OPEX-F,PV-FIX,,PER,","OPEX-F","PV-FIX","","PER","",20.953007794895285,"USD2021/kW"]
[null,"OPEX-F,PV-FIX,,PRT,","OPEX-F","PV-FIX","","PRT","",21.187235928237797,"USD2021/kW"]
[null,"OPEX-F,PV-FIX,,RUS,","OPEX-F","PV-FIX","","RUS","",37.58580779702865,"USD2021/kW"]
[null,"OPEX-F,PV-FIX,,SAU,","OPEX-F","PV-FIX","","SAU","",21.731165704555412,"USD2021/kW"]
[null,"OPEX-F,PV-FIX,,SWE,","OPEX-F","PV-FIX","","SWE","",19.306759939192904,"USD2021/kW"]
[null,"OPEX-F,PV-FIX,,THA,","OPEX-F","PV-FIX","","THA","",23.118316760906072,"USD2021/kW"]
[null,"OPEX-F,PV-FIX,,TUN,","OPEX-F","PV-FIX","","TUN","",20.953007794895285,"USD2021/kW"]
[null,"OPEX-F,PV-FIX,,UKR,","OPEX-F","PV-FIX","","UKR","",19.306759939192904,"USD2021/kW"]
[null,"OPEX-F,PV-FIX,,URY,","OPEX-F","PV-FIX","","URY","",20.953007794895285,"USD2021/kW"]
[null,"OPEX-F,PV-FIX,,USA,","OPEX-F","PV-FIX","","USA","",25.031179849869932,"USD2021/kW"]
[null,"OPEX-F,PV-FIX,,VNM,","OPEX-F","PV-FIX","","VNM","",23.118316760906072,"USD2021/kW"]
[null,"OPEX-F,PV-FIX,,ZAF,","OPEX-F","PV-FIX","","ZAF","",20.953007794895285,"USD2021/kW"]
[null,"OPEX-F,PV-FIX,,ZAF-EC,","OPEX-F","PV-FIX","","ZAF-EC","",20.953007794895285,"USD2021/kW"]
[null,"OPEX-F,PV-FIX,,ZAF-FRS,","OPEX-F","PV-FIX","","ZAF-FRS","",20.953007794895285,"USD2021/kW"]
[null,"OPEX-F,PV-FIX,,ZAF-GAU,","OPEX-F","PV-FIX","","ZAF-GAU","",20.953007794895285,"USD2021/kW"]
[null,"OPEX-F,PV-FIX,,ZAF-KWA,","OPEX-F","PV-FIX","","ZAF-KWA","",20.953007794895285,"USD2021/kW"]
[null,"OPEX-F,PV-FIX,,ZAF-LIM,","OPEX-F","PV-FIX","","ZAF-LIM","",20.953007794895285,"USD2021/kW"]
[null,"OPEX-F,PV-FIX,,ZAF-MPU,","OPEX-F","PV-FIX","","ZAF-MPU","",20.953007794895285,"USD2021/kW"]
[null,"OPEX-F,PV-FIX,,ZAF-NC,","OPEX-F","PV-FIX","","ZAF-NC","",20.953007794895285,"USD2021/kW"]
[null,"OPEX-F,PV-FIX,,ZAF-NW,","OPEX-F","PV-FIX","","ZAF-NW","",20.953007794895285,"USD2021/kW"]
[null,"OPEX-F,PV-FIX,,ZAF-WC,","OPEX-F","PV-FIX","","ZAF-WC","",20.953007794895285,"USD2021/kW"]
[null,"OPEX-F,REGASATR,,,","OPEX-F","REGASATR","","","",48.829790310167752,"USD2021/kW","combined values"]
[null,"OPEX-F,RES-HYBR,,ARE,","OPEX-F","RES-HYBR","","ARE","",22.580684665414566,"USD2021/kW"]
[null,"OPEX-F,RES-HYBR,,ARG,","OPEX-F","RES-HYBR","","ARG","",24.360834108462015,"USD2021/kW"]
[null,"OPEX-F,RES-HYBR,,ARG-BA,","OPEX-F","RES-HYBR","","ARG-BA","",24.360834108462015,"USD2021/kW"]
[null,"OPEX-F,RES-HYBR,,ARG-CAT,","OPEX-F","RES-HYBR","","ARG-CAT","",24.360834108462015,"USD2021/kW"]
[null,"OPEX-F,RES-HYBR,,ARG-CBA,","OPEX-F","RES-HYBR","","ARG-CBA","",24.360834108462015,"USD2021/kW"]
[null,"OPEX-F,RES-HYBR,,ARG-CHA,","OPEX-F","RES-HYBR","","ARG-CHA","",24.360834108462015,"USD2021/kW"]
[null,"OPEX-F,RES-HYBR,,ARG-CHU,","OPEX-F","RES-HYBR","","ARG-CHU","",24.360834108462015,"USD2021/kW"]
[null,"OPEX-F,RES-HYBR,,ARG-COR,","OPEX-F","RES-HYBR","","ARG-COR","",24.360834108462015,"USD2021/kW"]
[null,"OPEX-F,RES-HYBR,,ARG-CRB,","OPEX-F","RES-HYBR","","ARG-CRB","",24.360834108462015,"USD2021/kW"]
[null,"OPEX-F,RES-HYBR,,ARG-CRU,","OPEX-F","RES-HYBR","","ARG-CRU","",24.360834108462015,"USD2021/kW"]
[null,"OPEX-F,RES-HYBR,,ARG-EST,","OPEX-F","RES-HYBR","","ARG-EST","",24.360834108462015,"USD2021/kW"]
[null,"OPEX-F,RES-HYBR,,ARG-FOR,","OPEX-F","RES-HYBR","","ARG-FOR","",24.360834108462015,"USD2021/kW"]
[null,"OPEX-F,RES-HYBR,,ARG-FUE,","OPEX-F","RES-HYBR","","ARG-FUE","",24.360834108462015,"USD2021/kW"]
[null,"OPEX-F,RES-HYBR,,ARG-JUJ,","OPEX-F","RES-HYBR","","ARG-JUJ","",24.360834108462015,"USD2021/kW"]
[null,"OPEX-F,RES-HYBR,,ARG-LAR,","OPEX-F","RES-HYBR","","ARG-LAR","",24.360834108462015,"USD2021/kW"]
[null,"OPEX-F,RES-HYBR,,ARG-MEN,","OPEX-F","RES-HYBR","","ARG-MEN","",24.360834108462015,"USD2021/kW"]
[null,"OPEX-F,RES-HYBR,,ARG-MIS,","OPEX-F","RES-HYBR","","ARG-MIS","",24.360834108462015,"USD2021/kW"]
[null,"OPEX-F,RES-HYBR,,ARG-NEG,","OPEX-F","RES-HYBR","","ARG-NEG","",24.360834108462015,"USD2021/kW"]
[null,"OPEX-F,RES-HYBR,,ARG-NEU,","OPEX-F","RES-HYBR","","ARG-NEU","",24.360834108462015,"USD2021/kW"]
[null,"OPEX-F,RES-HYBR,,ARG-PAM,","OPEX-F","RES-HYBR","","ARG-PAM","",24.360834108462015,"USD2021/kW"]
[null,"OPEX-F,RES-HYBR,,ARG-RIO,","OPEX-F","RES-HYBR","","ARG-RIO","",24.360834108462015,"USD2021/kW"]
[null,"OPEX-F,RES-HYBR,,ARG-SAF,","OPEX-F","RES-HYBR","","ARG-SAF","",24.360834108462015,"USD2021/kW"]
[null,"OPEX-F,RES-HYBR,,ARG-SAJ,","OPEX-F","RES-HYBR","","ARG-SAJ","",24.360834108462015,"USD2021/kW"]
[null,"OPEX-F,RES-HYBR,,ARG-SAL,","OPEX-F","RES-HYBR","","ARG-SAL","",24.360834108462015,"USD2021/kW"]
[null,"OPEX-F,RES-HYBR,,ARG-SAT,","OPEX-F","RES-HYBR","","ARG-SAT","",24.360834108462015,"USD2021/kW"]
[null,"OPEX-F,RES-HYBR,,ARG-TUC,","OPEX-F","RES-HYBR","","ARG-TUC","",24.360834108462015,"USD2021/kW"]
[null,"OPEX-F,RES-HYBR,,AUS,","OPEX-F","RES-HYBR","","AUS","",25.303323502149748,"USD2021/kW"]
[null,"OPEX-F,RES-HYBR,,BRA,","OPEX-F","RES-HYBR","","BRA","",18.345305714480759,"USD2021/kW"]
[null,"OPEX-F,RES-HYBR,,CHL,","OPEX-F","RES-HYBR","","CHL","",25.182491528600039,"USD2021/kW"]
[null,"OPEX-F,RES-HYBR,,CHN,","OPEX-F","RES-HYBR","","CHN","",16.009152206647794,"USD2021/kW"]
[null,"OPEX-F,RES-HYBR,,CRI,","OPEX-F","RES-HYBR","","CRI","",22.952013965505664,"USD2021/kW"]
[null,"OPEX-F,RES-HYBR,,DNK,","OPEX-F","RES-HYBR","","DNK","",22.347417346264294,"USD2021/kW"]
[null,"OPEX-F,RES-HYBR,,DZA,","OPEX-F","RES-HYBR","","DZA","",25.971507484667484,"USD2021/kW"]
[null,"OPEX-F,RES-HYBR,,EGY,","OPEX-F","RES-HYBR","","EGY","",22.140952599517213,"USD2021/kW"]
[null,"OPEX-F,RES-HYBR,,ESP,","OPEX-F","RES-HYBR","","ESP","",18.49920058621618,"USD2021/kW"]
[null,"OPEX-F,RES-HYBR,,IDN,","OPEX-F","RES-HYBR","","IDN","",30.660480042297532,"USD2021/kW"]
[null,"OPEX-F,RES-HYBR,,IND,","OPEX-F","RES-HYBR","","IND","",13.909871977375621,"USD2021/kW"]
[null,"OPEX-F,RES-HYBR,,JOR,","OPEX-F","RES-HYBR","","JOR","",25.971507484667484,"USD2021/kW"]
[null,"OPEX-F,RES-HYBR,,KAZ,","OPEX-F","RES-HYBR","","KAZ","",22.140952599517213,"USD2021/kW"]
[null,"OPEX-F,RES-HYBR,,KEN,","OPEX-F","RES-HYBR","","KEN","",25.971507484667484,"USD2021/kW"]
[null,"OPEX-F,RES-HYBR,,MAR,","OPEX-F","RES-HYBR","","MAR","",24.583908521169171,"USD2021/kW"]
[null,"OPEX-F,RES-HYBR,,MAR-BEN,","OPEX-F","RES-HYBR","","MAR-BEN","",24.583908521169171,"USD2021/kW"]
[null,"OPEX-F,RES-HYBR,,MAR-CAS,","OPEX-F","RES-HYBR","","MAR-CAS","",24.583908521169171,"USD2021/kW"]
[null,"OPEX-F,RES-HYBR,,MAR-DAK,","OPEX-F","RES-HYBR","","MAR-DAK","",24.583908521169171,"USD2021/kW"]
[null,"OPEX-F,RES-HYBR,,MAR-DRA,","OPEX-F","RES-HYBR","","MAR-DRA","",24.583908521169171,"USD2021/kW"]
[null,"OPEX-F,RES-HYBR,,MAR-FES,","OPEX-F","RES-HYBR","","MAR-FES","",24.583908521169171,"USD2021/kW"]
[null,"OPEX-F,RES-HYBR,,MAR-GUE,","OPEX-F","RES-HYBR","","MAR-GUE","",24.583908521169171,"USD2021/kW"]
[null,"OPEX-F,RES-HYBR,,MAR-LAA,","OPEX-F","RES-HYBR","","MAR-LAA","",24.583908521169171,"USD2021/kW"]
[null,"OPEX-F,RES-HYBR,,MAR-LOR,","OPEX-F","RES-HYBR","","MAR-LOR","",24.583908521169171,"USD2021/kW"]
[null,"OPEX-F,RES-HYBR,,MAR-MAR,","OPEX-F","RES-HYBR","","MAR-MAR","",24.583908521169171,"USD2021/kW"]
[null,"OPEX-F,RES-HYBR,,MAR-RAB,","OPEX-F","RES-HYBR","","MAR-RAB","",24.583908521169171,"USD2021/kW"]
[null,"OPEX-F,RES-HYBR,,MAR-SOU,","OPEX-F","RES-HYBR","","MAR-SOU","",24.583908521169171,"USD2021/kW"]
[null,"OPEX-F,RES-HYBR,,MAR-TAN,","OPEX-F","RES-HYBR","","MAR-TAN","",24.583908521169171,"USD2021/kW"]
[null,"OPEX-F,RES-HYBR,,MEX,","OPEX-F","RES-HYBR","","MEX","",21.198123020756672,"USD2021/kW"]
[null,"OPEX-F,RES-HYBR,,MRT,","OPEX-F","RES-HYBR","","MRT","",25.971507484667484,"USD2021/kW"]
[null,"OPEX-F,RES-HYBR,,NAM,","OPEX-F","RES-HYBR","","NAM","",25.971507484667484,"USD2021/kW"]
[null,"OPEX-F,RES-HYBR,,NOR,","OPEX-F","RES-HYBR","","NOR","",21.553006936766362,"USD2021/kW"]
[null,"OPEX-F,RES-HYBR,,PER,","OPEX-F","RES-HYBR","","PER","",19.697996677865255,"USD2021/kW"]
[null,"OPEX-F,RES-HYBR,,PRT,","OPEX-F","RES-HYBR","","PRT","",24.667561425934355,"USD2021/kW"]
[null,"OPEX-F,RES-HYBR,,RUS,","OPEX-F","RES-HYBR","","RUS","",28.081238314564843,"USD2021/kW"]
[null,"OPEX-F,RES-HYBR,,SAU,","OPEX-F","RES-HYBR","","SAU","",22.858598204578893,"USD2021/kW"]
[null,"OPEX-F,RES-HYBR,,SWE,","OPEX-F","RES-HYBR","","SWE","",22.754941250219126,"USD2021/kW"]
[null,"OPEX-F,RES-HYBR,,THA,","OPEX-F","RES-HYBR","","THA","",23.354009296132705,"USD2021/kW"]
[null,"OPEX-F,RES-HYBR,,TUN,","OPEX-F","RES-HYBR","","TUN","",25.971507484667484,"USD2021/kW"]
[null,"OPEX-F,RES-HYBR,,UKR,","OPEX-F","RES-HYBR","","UKR","",21.553006936766362,"USD2021/kW"]
[null,"OPEX-F,RES-HYBR,,URY,","OPEX-F","RES-HYBR","","URY","",29.46982036447309,"USD2021/kW"]
[null,"OPEX-F,RES-HYBR,,USA,","OPEX-F","RES-HYBR","","USA","",22.441558718444981,"USD2021/kW"]
[null,"OPEX-F,RES-HYBR,,VNM,","OPEX-F","RES-HYBR","","VNM","",30.24314499519123,"USD2021/kW"]
[null,"OPEX-F,RES-HYBR,,ZAF,","OPEX-F","RES-HYBR","","ZAF","",24.583908521169171,"USD2021/kW"]
[null,"OPEX-F,RES-HYBR,,ZAF-EC,","OPEX-F","RES-HYBR","","ZAF-EC","",24.583908521169171,"USD2021/kW"]
[null,"OPEX-F,RES-HYBR,,ZAF-FRS,","OPEX-F","RES-HYBR","","ZAF-FRS","",24.583908521169171,"USD2021/kW"]
[null,"OPEX-F,RES-HYBR,,ZAF-GAU,","OPEX-F","RES-HYBR","","ZAF-GAU","",24.583908521169171,"USD2021/kW"]
[null,"OPEX-F,RES-HYBR,,ZAF-KWA,","OPEX-F","RES-HYBR","","ZAF-KWA","",24.583908521169171,"USD2021/kW"]
[null,"OPEX-F,RES-HYBR,,ZAF-LIM,","OPEX-F","RES-HYBR","","ZAF-LIM","",24.583908521169171,"USD2021/kW"]
[null,"OPEX-F,RES-HYBR,,ZAF-MPU,","OPEX-F","RES-HYBR","","ZAF-MPU","",24.583908521169171,"USD2021/kW"]
[null,"OPEX-F,RES-HYBR,,ZAF-NC,","OPEX-F","RES-HYBR","","ZAF-NC","",24.583908521169171,"USD2021/kW"]
[null,"OPEX-F,RES-HYBR,,ZAF-NW,","OPEX-F","RES-HYBR","","ZAF-NW","",24.583908521169171,"USD2021/kW"]
[null,"OPEX-F,RES-HYBR,,ZAF-WC,","OPEX-F","RES-HYBR","","ZAF-WC","",24.583908521169171,"USD2021/kW"]
[null,"OPEX-F,SOEC-EL,,,","OPEX-F","SOEC-EL","","","",84.950910814791399,"USD2021/kW"]
[null,"OPEX-F,WIND-OFF,,ARE,","OPEX-F","WIND-OFF","","ARE","",112.76583709600088,"USD2021/kW"]
[null,"OPEX-F,WIND-OFF,,ARG,","OPEX-F","WIND-OFF","","ARG","",112.76583709600088,"USD2021/kW"]
[null,"OPEX-F,WIND-OFF,,ARG-BA,","OPEX-F","WIND-OFF","","ARG-BA","",112.76583709600088,"USD2021/kW"]
[null,"OPEX-F,WIND-OFF,,ARG-CAT,","OPEX-F","WIND-OFF","","ARG-CAT","",112.76583709600088,"USD2021/kW"]
[null,"OPEX-F,WIND-OFF,,ARG-CBA,","OPEX-F","WIND-OFF","","ARG-CBA","",112.76583709600088,"USD2021/kW"]
[null,"OPEX-F,WIND-OFF,,ARG-CHA,","OPEX-F","WIND-OFF","","ARG-CHA","",112.76583709600088,"USD2021/kW"]
[null,"OPEX-F,WIND-OFF,,ARG-CHU,","OPEX-F","WIND-OFF","","ARG-CHU","",112.76583709600088,"USD2021/kW"]
[null,"OPEX-F,WIND-OFF,,ARG-COR,","OPEX-F","WIND-OFF","","ARG-COR","",112.76583709600088,"USD2021/kW"]
[null,"OPEX-F,WIND-OFF,,ARG-CRB,","OPEX-F","WIND-OFF","","ARG-CRB","",112.76583709600088,"USD2021/kW"]
[null,"OPEX-F,WIND-OFF,,ARG-CRU,","OPEX-F","WIND-OFF","","ARG-CRU","",112.76583709600088,"USD2021/kW"]
[null,"OPEX-F,WIND-OFF,,ARG-EST,","OPEX-F","WIND-OFF","","ARG-EST","",112.76583709600088,"USD2021/kW"]
[null,"OPEX-F,WIND-OFF,,ARG-FOR,","OPEX-F","WIND-OFF","","ARG-FOR","",112.76583709600088,"USD2021/kW"]
[null,"OPEX-F,WIND-OFF,,ARG-FUE,","OPEX-F","WIND-OFF","","ARG-FUE","",112.76583709600088,"USD2021/kW"]
[null,"OPEX-F,WIND-OFF,,ARG-JUJ,","OPEX-F","WIND-OFF","","ARG-JUJ","",112.76583709600088,"USD2021/kW"]
[null,"OPEX-F,WIND-OFF,,ARG-LAR,","OPEX-F","WIND-OFF","","ARG-LAR","",112.76583709600088,"USD2021/kW"]
[null,"OPEX-F,WIND-OFF,,ARG-MEN,","OPEX-F","WIND-OFF","","ARG-MEN","",112.76583709600088,"USD2021/kW"]
[null,"OPEX-F,WIND-OFF,,ARG-MIS,","OPEX-F","WIND-OFF","","ARG-MIS","",112.76583709600088,"USD2021/kW"]
[null,"OPEX-F,WIND-OFF,,ARG-NEG,","OPEX-F","WIND-OFF","","ARG-NEG","",112.76583709600088,"USD2021/kW"]
[null,"OPEX-F,WIND-OFF,,ARG-NEU,","OPEX-F","WIND-OFF","","ARG-NEU","",112.76583709600088,"USD2021/kW"]
[null,"OPEX-F,WIND-OFF,,ARG-PAM,","OPEX-F","WIND-OFF","","ARG-PAM","",112.76583709600088,"USD2021/kW"]
[null,"OPEX-F,WIND-OFF,,ARG-RIO,","OPEX-F","WIND-OFF","","ARG-RIO","",112.76583709600088,"USD2021/kW"]
[null,"OPEX-F,WIND-OFF,,ARG-SAF,","OPEX-F","WIND-OFF","","ARG-SAF","",112.76583709600088,"USD2021/kW"]
[null,"OPEX-F,WIND-OFF,,ARG-SAJ,","OPEX-F","WIND-OFF","","ARG-SAJ","",112.76583709600088,"USD2021/kW"]
[null,"OPEX-F,WIND-OFF,,ARG-SAL,","OPEX-F","WIND-OFF","","ARG-SAL","",112.76583709600088,"USD2021/kW"]
[null,"OPEX-F,WIND-OFF,,ARG-SAT,","OPEX-F","WIND-OFF","","ARG-SAT","",112.76583709600088,"USD2021/kW"]
[null,"OPEX-F,WIND-OFF,,ARG-TUC,","OPEX-F","WIND-OFF","","ARG-TUC","",112.76583709600088,"USD2021/kW"]
[null,"OPEX-F,WIND-OFF,,AUS,","OPEX-F","WIND-OFF","","AUS","",112.76583709600088,"USD2021/kW"]
[null,"OPEX-F,WIND-OFF,,BRA,","OPEX-F","WIND-OFF","","BRA","",112.76583709600088,"USD2021/kW"]
[null,"OPEX-F,WIND-OFF,,CHL,","OPEX-F","WIND-OFF","","CHL","",112.76583709600088,"USD2021/kW"]
[null,"OPEX-F,WIND-OFF,,CHN,","OPEX-F","WIND-OFF","","CHN","",93.971530913334078,"USD2021/kW"]
[null,"OPEX-F,WIND-OFF,,COL,","OPEX-F","WIND-OFF","","COL","",112.77800000000001,"USD2021/kW"]
[null,"OPEX-F,WIND-OFF,,CRI,","OPEX-F","WIND-OFF","","CRI","",112.76583709600088,"USD2021/kW"]
[null,"OPEX-F,WIND-OFF,,DNK,","OPEX-F","WIND-OFF","","DNK","",75.289056444039801,"USD2021/kW"]
[null,"OPEX-F,WIND-OFF,,DZA,","OPEX-F","WIND-OFF","","DZA","",112.76583709600088,"USD2021/kW"]
[null,"OPEX-F,WIND-OFF,,EGY,","OPEX-F","WIND-OFF","","EGY","",112.76583709600088,"USD2021/kW"]
[null,"OPEX-F,WIND-OFF,,ESP,","OPEX-F","WIND-OFF","","ESP","",112.76583709600088,"USD2021/kW"]
[null,"OPEX-F,WIND-OFF,,IDN,","OPEX-F","WIND-OFF","","IDN","",112.76583709600088,"USD2021/kW"]
[null,"OPEX-F,WIND-OFF,,IND,","OPEX-F","WIND-OFF","","IND","",112.76583709600088,"USD2021/kW"]
[null,"OPEX-F,WIND-OFF,,JOR,","OPEX-F","WIND-OFF","","JOR","",112.76583709600088,"USD2021/kW"]
[null,"OPEX-F,WIND-OFF,,KAZ,","OPEX-F","WIND-OFF","","KAZ","",112.76583709600088,"USD2021/kW"]
[null,"OPEX-F,WIND-OFF,,KEN,","OPEX-F","WIND-OFF","","KEN","",112.76583709600088,"USD2021/kW"]
[null,"OPEX-F,WIND-OFF,,MAR,","OPEX-F","WIND-OFF","","MAR","",112.76583709600088,"USD2021/kW"]
[null,"OPEX-F,WIND-OFF,,MAR-BEN,","OPEX-F","WIND-OFF","","MAR-BEN","",112.76583709600088,"USD2021/kW"]
[null,"OPEX-F,WIND-OFF,,MAR-CAS,","OPEX-F","WIND-OFF","","MAR-CAS","",112.76583709600088,"USD2021/kW"]
[null,"OPEX-F,WIND-OFF,,MAR-DAK,","OPEX-F","WIND-OFF","","MAR-DAK","",112.76583709600088,"USD2021/kW"]
[null,"OPEX-F,WIND-OFF,,MAR-DRA,","OPEX-F","WIND-OFF","","MAR-DRA","",112.76583709600088,"USD2021/kW"]
[null,"OPEX-F,WIND-OFF,,MAR-FES,","OPEX-F","WIND-OFF","","MAR-FES","",112.76583709600088,"USD2021/kW"]
[null,"OPEX-F,WIND-OFF,,MAR-GUE,","OPEX-F","WIND-OFF","","MAR-GUE","",112.76583709600088,"USD2021/kW"]
[null,"OPEX-F,WIND-OFF,,MAR-LAA,","OPEX-F","WIND-OFF","","MAR-LAA","",112.76583709600088,"USD2021/kW"]
[null,"OPEX-F,WIND-OFF,,MAR-LOR,","OPEX-F","WIND-OFF","","MAR-LOR","",112.76583709600088,"USD2021/kW"]
[null,"OPEX-F,WIND-OFF,,MAR-MAR,","OPEX-F","WIND-OFF","","MAR-MAR","",112.76583709600088,"USD2021/kW"]
[null,"OPEX-F,WIND-OFF,,MAR-RAB,","OPEX-F","WIND-OFF","","MAR-RAB","",112.76583709600088,"USD2021/kW"]
[null,"OPEX-F,WIND-OFF,,MAR-SOU,","OPEX-F","WIND-OFF","","MAR-SOU","",112.76583709600088,"USD2021/kW"]
[null,"OPEX-F,WIND-OFF,,MAR-TAN,","OPEX-F","WIND-OFF","","MAR-TAN","",112.76583709600088,"USD2021/kW"]
[null,"OPEX-F,WIND-OFF,,MEX,","OPEX-F","WIND-OFF","","MEX","",112.76583709600088,"USD2021/kW"]
[null,"OPEX-F,WIND-OFF,,MRT,","OPEX-F","WIND-OFF","","MRT","",112.76583709600088,"USD2021/kW"]
[null,"OPEX-F,WIND-OFF,,NAM,","OPEX-F","WIND-OFF","","NAM","",112.76583709600088,"USD2021/kW"]
[null,"OPEX-F,WIND-OFF,,NOR,","OPEX-F","WIND-OFF","","NOR","",112.76583709600088,"USD2021/kW"]
[null,"OPEX-F,WIND-OFF,,PER,","OPEX-F","WIND-OFF","","PER","",112.76583709600088,"USD2021/kW"]
[null,"OPEX-F,WIND-OFF,,PRT,","OPEX-F","WIND-OFF","","PRT","",112.76583709600088,"USD2021/kW"]
[null,"OPEX-F,WIND-OFF,,RUS,","OPEX-F","WIND-OFF","","RUS","",112.76583709600088,"USD2021/kW"]
[null,"OPEX-F,WIND-OFF,,SAU,","OPEX-F","WIND-OFF","","SAU","",112.76583709600088,"USD2021/kW"]
[null,"OPEX-F,WIND-OFF,,SWE,","OPEX-F","WIND-OFF","","SWE","",112.76583709600088,"USD2021/kW"]
[null,"OPEX-F,WIND-OFF,,THA,","OPEX-F","WIND-OFF","","THA","",112.76583709600088,"USD2021/kW"]
[null,"OPEX-F,WIND-OFF,,TUN,","OPEX-F","WIND-OFF","","TUN","",112.76583709600088,"USD2021/kW"]
[null,"OPEX-F,WIND-OFF,,UKR,","OPEX-F","WIND-OFF","","UKR","",112.76583709600088,"USD2021/kW"]
[null,"OPEX-F,WIND-OFF,,URY,","OPEX-F","WIND-OFF","","URY","",112.76583709600088,"USD2021/kW"]
[null,"OPEX-F,WIND-OFF,,USA,","OPEX-F","WIND-OFF","","USA","",112.76583709600088,"USD2021/kW"]
[null,"OPEX-F,WIND-OFF,,VNM,","OPEX-F","WIND-OFF","","VNM","",112.76583709600088,"USD2021/kW"]
[null,"OPEX-F,WIND-OFF,,ZAF,","OPEX-F","WIND-OFF","","ZAF","",112.76583709600088,"USD2021/kW"]
[null,"OPEX-F,WIND-OFF,,ZAF-EC,","OPEX-F","WIND-OFF","","ZAF-EC","",112.76583709600088,"USD2021/kW"]
[null,"OPEX-F,WIND-OFF,,ZAF-FRS,","OPEX-F","WIND-OFF","","ZAF-FRS","",112.76583709600088,"USD2021/kW"]
[null,"OPEX-F,WIND-OFF,,ZAF-GAU,","OPEX-F","WIND-OFF","","ZAF-GAU","",112.76583709600088,"USD2021/kW"]
[null,"OPEX-F,WIND-OFF,,ZAF-KWA,","OPEX-F","WIND-OFF","","ZAF-KWA","",112.76583709600088,"USD2021/kW"]
[null,"OPEX-F,WIND-OFF,,ZAF-LIM,","OPEX-F","WIND-OFF","","ZAF-LIM","",112.76583709600088,"USD2021/kW"]
[null,"OPEX-F,WIND-OFF,,ZAF-MPU,","OPEX-F","WIND-OFF","","ZAF-MPU","",112.76583709600088,"USD2021/kW"]
[null,"OPEX-F,WIND-OFF,,ZAF-NC,","OPEX-F","WIND-OFF","","ZAF-NC","",112.76583709600088,"USD2021/kW"]
[null,"OPEX-F,WIND-OFF,,ZAF-NW,","OPEX-F","WIND-OFF","","ZAF-NW","",112.76583709600088,"USD2021/kW"]
[null,"OPEX-F,WIND-OFF,,ZAF-WC,","OPEX-F","WIND-OFF","","ZAF-WC","",112.76583709600088,"USD2021/kW"]
[null,"OPEX-F,WIND-ON,,ARE,","OPEX-F","WIND-ON","","ARE","",42.272909268265494,"USD2021/kW"]
[null,"OPEX-F,WIND-ON,,ARG,","OPEX-F","WIND-ON","","ARG","",47.881936064378394,"USD2021/kW"]
[null,"OPEX-F,WIND-ON,,ARG-BA,","OPEX-F","WIND-ON","","ARG-BA","",47.881936064378394,"USD2021/kW"]
[null,"OPEX-F,WIND-ON,,ARG-CAT,","OPEX-F","WIND-ON","","ARG-CAT","",47.881936064378394,"USD2021/kW"]
[null,"OPEX-F,WIND-ON,,ARG-CBA,","OPEX-F","WIND-ON","","ARG-CBA","",47.881936064378394,"USD2021/kW"]
[null,"OPEX-F,WIND-ON,,ARG-CHA,","OPEX-F","WIND-ON","","ARG-CHA","",47.881936064378394,"USD2021/kW"]
[null,"OPEX-F,WIND-ON,,ARG-CHU,","OPEX-F","WIND-ON","","ARG-CHU","",47.881936064378394,"USD2021/kW"]
[null,"OPEX-F,WIND-ON,,ARG-COR,","OPEX-F","WIND-ON","","ARG-COR","",47.881936064378394,"USD2021/kW"]
[null,"OPEX-F,WIND-ON,,ARG-CRB,","OPEX-F","WIND-ON","","ARG-CRB","",47.881936064378394,"USD2021/kW"]
[null,"OPEX-F,WIND-ON,,ARG-CRU,","OPEX-F","WIND-ON","","ARG-CRU","",47.881936064378394,"USD2021/kW"]
[null,"OPEX-F,WIND-ON,,ARG-EST,","OPEX-F","WIND-ON","","ARG-EST","",47.881936064378394,"USD2021/kW"]
[null,"OPEX-F,WIND-ON,,ARG-FOR,","OPEX-F","WIND-ON","","ARG-FOR","",47.881936064378394,"USD2021/kW"]
[null,"OPEX-F,WIND-ON,,ARG-FUE,","OPEX-F","WIND-ON","","ARG-FUE","",47.881936064378394,"USD2021/kW"]
[null,"OPEX-F,WIND-ON,,ARG-JUJ,","OPEX-F","WIND-ON","","ARG-JUJ","",47.881936064378394,"USD2021/kW"]
[null,"OPEX-F,WIND-ON,,ARG-LAR,","OPEX-F","WIND-ON","","ARG-LAR","",47.881936064378394,"USD2021/kW"]
[null,"OPEX-F,WIND-ON,,ARG-MEN,","OPEX-F","WIND-ON","","ARG-MEN","",47.881936064378394,"USD2021/kW"]
[null,"OPEX-F,WIND-ON,,ARG-MIS,","OPEX-F","WIND-ON","","ARG-MIS","",47.881936064378394,"USD2021/kW"]
[null,"OPEX-F,WIND-ON,,ARG-NEG,","OPEX-F","WIND-ON","","ARG-NEG","",47.881936064378394,"USD2021/kW"]
[null,"OPEX-F,WIND-ON,,ARG-NEU,","OPEX-F","WIND-ON","","ARG-NEU","",47.881936064378394,"USD2021/kW"]
[null,"OPEX-F,WIND-ON,,ARG-PAM,","OPEX-F","WIND-ON","","ARG-PAM","",47.881936064378394,"USD2021/kW"]
[null,"OPEX-F,WIND-ON,,ARG-RIO,","OPEX-F","WIND-ON","","ARG-RIO","",47.881936064378394,"USD2021/kW"]
[null,"OPEX-F,WIND-ON,,ARG-SAF,","OPEX-F","WIND-ON","","ARG-SAF","",47.881936064378394,"USD2021/kW"]
[null,"OPEX-F,WIND-ON,,ARG-SAJ,","OPEX-F","WIND-ON","","ARG-SAJ","",47.881936064378394,"USD2021/kW"]
[null,"OPEX-F,WIND-ON,,ARG-SAL,","OPEX-F","WIND-ON","","ARG-SAL","",47.881936064378394,"USD2021/kW"]
[null,"OPEX-F,WIND-ON,,ARG-SAT,","OPEX-F","WIND-ON","","ARG-SAT","",47.881936064378394,"USD2021/kW"]
[null,"OPEX-F,WIND-ON,,ARG-TUC,","OPEX-F","WIND-ON","","ARG-TUC","",47.881936064378394,"USD2021/kW"]
[null,"OPEX-F,WIND-ON,,AUS,","OPEX-F","WIND-ON","","AUS","",47.881936064378394,"USD2021/kW"]
[null,"OPEX-F,WIND-ON,,BRA,","OPEX-F","WIND-ON","","BRA","",31.465272270877229,"USD2021/kW"]
[null,"OPEX-F,WIND-ON,,CHL,","OPEX-F","WIND-ON","","CHL","",47.881936064378394,"USD2021/kW"]
[null,"OPEX-F,WIND-ON,,CHN,","OPEX-F","WIND-ON","","CHN","",31.656800015134742,"USD2021/kW"]
[null,"OPEX-F,WIND-ON,,COL,","OPEX-F","WIND-ON","","COL","",45.5,"USD2021/kW"]
[null,"OPEX-F,WIND-ON,,CRI,","OPEX-F","WIND-ON","","CRI","",43.312631308520572,"USD2021/kW"]
[null,"OPEX-F,WIND-ON,,DNK,","OPEX-F","WIND-ON","","DNK","",44.407075561420648,"USD2021/kW"]
[null,"OPEX-F,WIND-ON,,DZA,","OPEX-F","WIND-ON","","DZA","",51.767213162173668,"USD2021/kW"]
[null,"OPEX-F,WIND-ON,,EGY,","OPEX-F","WIND-ON","","EGY","",41.041659483752909,"USD2021/kW"]
[null,"OPEX-F,WIND-ON,,ESP,","OPEX-F","WIND-ON","","ESP","",32.054932535446341,"USD2021/kW"]
[null,"OPEX-F,WIND-ON,,IDN,","OPEX-F","WIND-ON","","IDN","",61.562489225629371,"USD2021/kW"]
[null,"OPEX-F,WIND-ON,,IND,","OPEX-F","WIND-ON","","IND","",25.336384454636796,"USD2021/kW"]
[null,"OPEX-F,WIND-ON,,JOR,","OPEX-F","WIND-ON","","JOR","",51.767213162173668,"USD2021/kW"]
[null,"OPEX-F,WIND-ON,,KAZ,","OPEX-F","WIND-ON","","KAZ","",41.041659483752909,"USD2021/kW"]
[null,"OPEX-F,WIND-ON,,KEN,","OPEX-F","WIND-ON","","KEN","",51.767213162173668,"USD2021/kW"]
[null,"OPEX-F,WIND-ON,,MAR,","OPEX-F","WIND-ON","","MAR","",47.881936064378394,"USD2021/kW"]
[null,"OPEX-F,WIND-ON,,MAR-BEN,","OPEX-F","WIND-ON","","MAR-BEN","",47.881936064378394,"USD2021/kW"]
[null,"OPEX-F,WIND-ON,,MAR-CAS,","OPEX-F","WIND-ON","","MAR-CAS","",47.881936064378394,"USD2021/kW"]
[null,"OPEX-F,WIND-ON,,MAR-DAK,","OPEX-F","WIND-ON","","MAR-DAK","",47.881936064378394,"USD2021/kW"]
[null,"OPEX-F,WIND-ON,,MAR-DRA,","OPEX-F","WIND-ON","","MAR-DRA","",47.881936064378394,"USD2021/kW"]
[null,"OPEX-F,WIND-ON,,MAR-FES,","OPEX-F","WIND-ON","","MAR-FES","",47.881936064378394,"USD2021/kW"]
[null,"OPEX-F,WIND-ON,,MAR-GUE,","OPEX-F","WIND-ON","","MAR-GUE","",47.881936064378394,"USD2021/kW"]
[null,"OPEX-F,WIND-ON,,MAR-LAA,","OPEX-F","WIND-ON","","MAR-LAA","",47.881936064378394,"USD2021/kW"]
[null,"OPEX-F,WIND-ON,,MAR-LOR,","OPEX-F","WIND-ON","","MAR-LOR","",47.881936064378394,"USD2021/kW"]
[null,"OPEX-F,WIND-ON,,MAR-MAR,","OPEX-F","WIND-ON","","MAR-MAR","",47.881936064378394,"USD2021/kW"]
[null,"OPEX-F,WIND-ON,,MAR-RAB,","OPEX-F","WIND-ON","","MAR-RAB","",47.881936064378394,"USD2021/kW"]
[null,"OPEX-F,WIND-ON,,MAR-SOU,","OPEX-F","WIND-ON","","MAR-SOU","",47.881936064378394,"USD2021/kW"]
[null,"OPEX-F,WIND-ON,,MAR-TAN,","OPEX-F","WIND-ON","","MAR-TAN","",47.881936064378394,"USD2021/kW"]
[null,"OPEX-F,WIND-ON,,MEX,","OPEX-F","WIND-ON","","MEX","",40.259946521073999,"USD2021/kW"]
[null,"OPEX-F,WIND-ON,,MRT,","OPEX-F","WIND-ON","","MRT","",51.767213162173668,"USD2021/kW"]
[null,"OPEX-F,WIND-ON,,NAM,","OPEX-F","WIND-ON","","NAM","",51.767213162173668,"USD2021/kW"]
[null,"OPEX-F,WIND-ON,,NOR,","OPEX-F","WIND-ON","","NOR","",41.041659483752909,"USD2021/kW"]
[null,"OPEX-F,WIND-ON,,PER,","OPEX-F","WIND-ON","","PER","",34.201382903127424,"USD2021/kW"]
[null,"OPEX-F,WIND-ON,,PRT,","OPEX-F","WIND-ON","","PRT","",47.881936064378394,"USD2021/kW"]
[null,"OPEX-F,WIND-ON,,RUS,","OPEX-F","WIND-ON","","RUS","",41.041659483752909,"USD2021/kW"]
[null,"OPEX-F,WIND-ON,,SAU,","OPEX-F","WIND-ON","","SAU","",42.272909268265494,"USD2021/kW"]
[null,"OPEX-F,WIND-ON,,SWE,","OPEX-F","WIND-ON","","SWE","",44.407075561420648,"USD2021/kW"]
[null,"OPEX-F,WIND-ON,,THA,","OPEX-F","WIND-ON","","THA","",42.272909268265494,"USD2021/kW"]
[null,"OPEX-F,WIND-ON,,TUN,","OPEX-F","WIND-ON","","TUN","",51.767213162173668,"USD2021/kW"]
[null,"OPEX-F,WIND-ON,,UKR,","OPEX-F","WIND-ON","","UKR","",41.041659483752909,"USD2021/kW"]
[null,"OPEX-F,WIND-ON,,URY,","OPEX-F","WIND-ON","","URY","",61.562489225629371,"USD2021/kW"]
[null,"OPEX-F,WIND-ON,,USA,","OPEX-F","WIND-ON","","USA","",37.805184561776016,"USD2021/kW"]
[null,"OPEX-F,WIND-ON,,VNM,","OPEX-F","WIND-ON","","VNM","",61.562489225629371,"USD2021/kW"]
[null,"OPEX-F,WIND-ON,,ZAF,","OPEX-F","WIND-ON","","ZAF","",47.881936064378394,"USD2021/kW"]
[null,"OPEX-F,WIND-ON,,ZAF-EC,","OPEX-F","WIND-ON","","ZAF-EC","",47.881936064378394,"USD2021/kW"]
[null,"OPEX-F,WIND-ON,,ZAF-FRS,","OPEX-F","WIND-ON","","ZAF-FRS","",47.881936064378394,"USD2021/kW"]
[null,"OPEX-F,WIND-ON,,ZAF-GAU,","OPEX-F","WIND-ON","","ZAF-GAU","",47.881936064378394,"USD2021/kW"]
[null,"OPEX-F,WIND-ON,,ZAF-KWA,","OPEX-F","WIND-ON","","ZAF-KWA","",47.881936064378394,"USD2021/kW"]
[null,"OPEX-F,WIND-ON,,ZAF-LIM,","OPEX-F","WIND-ON","","ZAF-LIM","",47.881936064378394,"USD2021/kW"]
[null,"OPEX-F,WIND-ON,,ZAF-MPU,","OPEX-F","WIND-ON","","ZAF-MPU","",47.881936064378394,"USD2021/kW"]
[null,"OPEX-F,WIND-ON,,ZAF-NC,","OPEX-F","WIND-ON","","ZAF-NC","",47.881936064378394,"USD2021/kW"]
[null,"OPEX-F,WIND-ON,,ZAF-NW,","OPEX-F","WIND-ON","","ZAF-NW","",47.881936064378394,"USD2021/kW"]
[null,"OPEX-F,WIND-ON,,ZAF-WC,","OPEX-F","WIND-ON","","ZAF-WC","",47.881936064378394,"USD2021/kW"]
[null,"OPEX-O,ATR,,,","OPEX-O","ATR","","","",9.1464146414641494E-3,"USD2021/kWh","George et al. (2022)"]
[null,"OPEX-O,CH3OH-S,,,","OPEX-O","CH3OH-S","","","",1.0849036835729676E-4,"USD2021/kWh","UNSW Sydney 2021"]
[null,"OPEX-O,CH3OH-SB,,,","OPEX-O","CH3OH-SB","","","",1.0849036835729676E-4,"USD2021/kWh","UNSW Sydney 2021"]
[null,"OPEX-O,CH4-S,,,","OPEX-O","CH4-S","","","",3.3042876189725266E-4,"USD2021/kWh","UNSW Sydney 2021"]
[null,"OPEX-O,CH4-SB,,,","OPEX-O","CH4-SB","","","",3.3042876189725266E-4,"USD2021/kWh","UNSW Sydney 2021"]
[null,"OPEX-O,DRI,,,","OPEX-O","DRI","","","",0.26656892307692304,"USD2021/kg DRI (s)","Agora Industry Transformation 2021"]
[null,"OPEX-O,H2-S,,,","OPEX-O","H2-S","","","",1.9557894682818507E-3,"USD2021/kWh","UNSW Sydney 2021"]
[null,"OPEX-O,H2-SB,,,","OPEX-O","H2-SB","","","",1.9557894682818507E-3,"USD2021/kWh","UNSW Sydney 2021"]
[null,"OPEX-O,LOHC-S,,,","OPEX-O","LOHC-S","","","",1.5378717307752301E-2,"USD2021/kWh","UNSW Sydney 2021"]
[null,"OPEX-O,LOHC-SB,,,","OPEX-O","LOHC-SB","","","",1.5378717307752301E-2,"USD2021/kWh","UNSW Sydney 2021"]
[null,"OPEX-O,NH3-S,,,","OPEX-O","NH3-S","","","",4.2087134757005104E-4,"USD2021/kWh","UNSW Sydney 2021"]
[null,"OPEX-O,NH3-SB,,,","OPEX-O","NH3-SB","","","",4.2087134757005104E-4,"USD2021/kWh","UNSW Sydney 2021"]
[null,"OPEX-O,REGASATR,,,","OPEX-O","REGASATR","","","",9.1464146414641494E-3,"USD2021/kWh","combined values"]
[null,"OPEX-O,SYN-S,,,","OPEX-O","SYN-S","","","",4.5028839113694242E-5,"USD2021/kWh","UNSW Sydney 2021"]
[null,"OPEX-O,SYN-SB,,,","OPEX-O","SYN-SB","","","",4.5028839113694242E-5,"USD2021/kWh","UNSW Sydney 2021"]
[null,"OPEX-T,CH3OH-S,,,","OPEX-T","CH3OH-S","","","",1.0848168982211098E-7,"USD2021/(kWh*km)","calc_shipping"]
[null,"OPEX-T,CH3OH-SB,,,","OPEX-T","CH3OH-SB","","","",1.0848168982211098E-7,"USD2021/(kWh*km)","calc_shipping"]
[null,"OPEX-T,CH4-P-L,,,","OPEX-T","CH4-P-L","","","",2.7651437055456481E-6,"USD2021/(kWh*km)"]
[null,"OPEX-T,CH4-P-LR,,,","OPEX-T","CH4-P-LR","","","",8.624381235013173E-7,"USD2021/(kWh*km)"]
[null,"OPEX-T,CH4-P-S,,,","OPEX-T","CH4-P-S","","","",3.3181724466547807E-6,"USD2021/(kWh*km)"]
[null,"OPEX-T,CH4-P-SR,,,","OPEX-T","CH4-P-SR","","","",8.624381235013173E-7,"USD2021/(kWh*km)"]
[null,"OPEX-T,CH4-S,,,","OPEX-T","CH4-S","","","",2.5415563823913519E-7,"USD2021/(kWh*km)","calc_shipping"]
[null,"OPEX-T,CH4-SB,,,","OPEX-T","CH4-SB","","","",2.5415563823913519E-7,"USD2021/(kWh*km)","calc_shipping"]
[null,"OPEX-T,DRI-SB,,,","OPEX-T","DRI-SB","","","",3.262896862987803E-7,"USD2021/(kg*km)","calc_shipping"]
[null,"OPEX-T,H2-P-L,,,","OPEX-T","H2-P-L","","","",8.8738982865209894E-6,"USD2021/(kWh*km)","Guidehouse 2022"]
[null,"OPEX-T,H2-P-LR,,,","OPEX-T","H2-P-LR","","","",3.0424794125214817E-6,"USD2021/(kWh*km)","Guidehouse 2022"]
[null,"OPEX-T,H2-P-S,,,","OPEX-T","H2-P-S","","","",1.5212397062607411E-5,"USD2021/(kWh*km)","Guidehouse 2022"]
[null,"OPEX-T,H2-P-SR,,,","OPEX-T","H2-P-SR","","","",3.8030992656518527E-6,"USD2021/(kWh*km)","Guidehouse 2022"]
[null,"OPEX-T,H2-S,,,","OPEX-T","H2-S","","","",1.5043330904926455E-6,"USD2021/(kWh*km)","calc_shipping"]
[null,"OPEX-T,H2-SB,,,","OPEX-T","H2-SB","","","",1.5043330904926455E-6,"USD2021/(kWh*km)","calc_shipping"]
[null,"OPEX-T,LOHC-S,,,","OPEX-T","LOHC-S","","","",1.3493717175603379E-6,"USD2021/(kWh*km)","calc_shipping"]
[null,"OPEX-T,LOHC-SB,,,","OPEX-T","LOHC-SB","","","",1.3493717175603379E-6,"USD2021/(kWh*km)","calc_shipping"]
[null,"OPEX-T,NH3-S,,,","OPEX-T","NH3-S","","","",3.2372129273508194E-7,"USD2021/(kWh*km)","calc_shipping"]
[null,"OPEX-T,NH3-SB,,,","OPEX-T","NH3-SB","","","",3.2372129273508194E-7,"USD2021/(kWh*km)","calc_shipping"]
[null,"OPEX-T,SYN-S,,,","OPEX-T","SYN-S","","","",4.502523709472666E-8,"USD2021/(kWh*km)","calc_shipping"]
[null,"OPEX-T,SYN-SB,,,","OPEX-T","SYN-SB","","","",4.502523709472666E-8,"USD2021/(kWh*km)","calc_shipping"]
[null,"SEASHARE,,,ARE,CHN","SEASHARE","","","ARE","CHN",0.11111111111111099,null,"Research Susanne Krieger"]
[null,"SEASHARE,,,ARE,IND","SEASHARE","","","ARE","IND",0.65,null,"Research Susanne Krieger"]
[null,"SEASHARE,,,CHN,JPN","SEASHARE","","","CHN","JPN",0.28571428571428598,null,"Research Susanne Krieger"]
[null,"SEASHARE,,,CHN,KOR","SEASHARE","","","CHN","KOR",0.4,null,"Research Susanne Krieger"]
[null,"SEASHARE,,,COL,USA","SEASHARE","","","COL","USA",0.64444444444444404,"km","Research Susanne Krieger"]
[null,"SEASHARE,,,CRI,USA","SEASHARE","","","CRI","USA",0.14285714285714299,null,"Research Susanne Krieger"]
[null,"SEASHARE,,,DNK,FRA","SEASHARE","","","DNK","FRA",0.5,null,"Research Susanne Krieger"]
[null,"SEASHARE,,,DNK,NLD","SEASHARE","","","DNK","NLD",1,null,"Research Susanne Krieger"]
[null,"SEASHARE,,,DZA,DEU","SEASHARE","","","DZA","DEU",0.1,null,"Research Susanne Krieger"]
[null,"SEASHARE,,,DZA,ESP","SEASHARE","","","DZA","ESP",0.27741832232496999,null,"Research Susanne Krieger"]
[null,"SEASHARE,,,DZA,FRA","SEASHARE","","","DZA","FRA",0.15,null,"Research Susanne Krieger"]
[null,"SEASHARE,,,DZA,NLD","SEASHARE","","","DZA","NLD",0.133333333333333,null,"Research Susanne Krieger"]
[null,"SEASHARE,,,EGY,ESP","SEASHARE","","","EGY","ESP",0.155555555555556,null,"Research Susanne Krieger"]
[null,"SEASHARE,,,EGY,FRA","SEASHARE","","","EGY","FRA",0.17499999999999999,null,"Research Susanne Krieger"]
[null,"SEASHARE,,,EGY,IND","SEASHARE","","","EGY","IND",0.52,null,"Research Susanne Krieger"]
[null,"SEASHARE,,,IDN,CHN","SEASHARE","","","IDN","CHN",0.5,null,"Research Susanne Krieger"]
[null,"SEASHARE,,,IDN,IND","SEASHARE","","","IDN","IND",0.4,null,"Research Susanne Krieger"]
[null,"SEASHARE,,,IDN,JPN","SEASHARE","","","IDN","JPN",0.90909090909090906,null,"Research Susanne Krieger"]
[null,"SEASHARE,,,IDN,KOR","SEASHARE","","","IDN","KOR",0.90909090909090906,null,"Research Susanne Krieger"]
[null,"SEASHARE,,,KEN,IND","SEASHARE","","","KEN","IND",0.86,null,"Research Susanne Krieger"]
[null,"SEASHARE,,,MAR,ESP","SEASHARE","","","MAR","ESP",0.18,null,"Research Susanne Krieger"]
[null,"SEASHARE,,,MAR-BEN,ESP","SEASHARE","","","MAR-BEN","ESP",0.18,null,"Research Susanne Krieger"]
[null,"SEASHARE,,,MAR-CAS,ESP","SEASHARE","","","MAR-CAS","ESP",0.18,null,"Research Susanne Krieger"]
[null,"SEASHARE,,,MAR-DAK,ESP","SEASHARE","","","MAR-DAK","ESP",0.18,null,"Research Susanne Krieger"]
[null,"SEASHARE,,,MAR-DRA,ESP","SEASHARE","","","MAR-DRA","ESP",0.18,null,"Research Susanne Krieger"]
[null,"SEASHARE,,,MAR-FES,ESP","SEASHARE","","","MAR-FES","ESP",0.18,null,"Research Susanne Krieger"]
[null,"SEASHARE,,,MAR-GUE,ESP","SEASHARE","","","MAR-GUE","ESP",0.18,null,"Research Susanne Krieger"]
[null,"SEASHARE,,,MAR-LAA,ESP","SEASHARE","","","MAR-LAA","ESP",0.18,null,"Research Susanne Krieger"]
[null,"SEASHARE,,,MAR-LOR,ESP","SEASHARE","","","MAR-LOR","ESP",0.18,null,"Research Susanne Krieger"]
[null,"SEASHARE,,,MAR-MAR,ESP","SEASHARE","","","MAR-MAR","ESP",0.18,null,"Research Susanne Krieger"]
[null,"SEASHARE,,,MAR-RAB,ESP","SEASHARE","","","MAR-RAB","ESP",0.18,null,"Research Susanne Krieger"]
[null,"SEASHARE,,,MAR-SOU,ESP","SEASHARE","","","MAR-SOU","ESP",0.18,null,"Research Susanne Krieger"]
[null,"SEASHARE,,,MAR-TAN,ESP","SEASHARE","","","MAR-TAN","ESP",0.18,null,"Research Susanne Krieger"]
[null,"SEASHARE,,,MEX,USA","SEASHARE","","","MEX","USA",1,null,"Research Susanne Krieger"]
[null,"SEASHARE,,,NOR,DEU","SEASHARE","","","NOR","DEU",1,null,"Research Susanne Krieger"]
[null,"SEASHARE,,,NOR,ESP","SEASHARE","","","NOR","ESP",0.45,null,"Research Susanne Krieger"]
[null,"SEASHARE,,,NOR,FRA","SEASHARE","","","NOR","FRA",0.9,null,"Research Susanne Krieger"]
[null,"SEASHARE,,,NOR,NLD","SEASHARE","","","NOR","NLD",1,null,"Research Susanne Krieger"]
[null,"SEASHARE,,,PER,USA","SEASHARE","","","PER","USA",0.58181818181818201,null,"Research Susanne Krieger"]
[null,"SEASHARE,,,RUS,DEU","SEASHARE","","","RUS","DEU",1,null,"Research Susanne Krieger"]
[null,"SEASHARE,,,RUS,JPN","SEASHARE","","","RUS","JPN",0.17499999999999999,null,"Research Susanne Krieger"]
[null,"SEASHARE,,,SAU,IND","SEASHARE","","","SAU","IND",0.74285714285714299,null,"Research Susanne Krieger"]
[null,"SEASHARE,,,SWE,DEU","SEASHARE","","","SWE","DEU",0.3,null,"Research Susanne Krieger"]
[null,"SEASHARE,,,SWE,ESP","SEASHARE","","","SWE","ESP",0.1,null,"Research Susanne Krieger"]
[null,"SEASHARE,,,SWE,FRA","SEASHARE","","","SWE","FRA",0.15,null,"Research Susanne Krieger"]
[null,"SEASHARE,,,SWE,NLD","SEASHARE","","","SWE","NLD",0.15,null,"Research Susanne Krieger"]
[null,"SEASHARE,,,THA,JPN","SEASHARE","","","THA","JPN",0.18,null,"Research Susanne Krieger"]
[null,"SEASHARE,,,THA,KOR","SEASHARE","","","THA","KOR",0.16,null,"Research Susanne Krieger"]
[null,"SEASHARE,,,TUN,DEU","SEASHARE","","","TUN","DEU",0.35,null,"Research Susanne Krieger"]
[null,"SEASHARE,,,TUN,ESP","SEASHARE","","","TUN","ESP",0.46666666666666701,null,"Research Susanne Krieger"]
[null,"SEASHARE,,,TUN,FRA","SEASHARE","","","TUN","FRA",0.7,null,"Research Susanne Krieger"]
[null,"SEASHARE,,,TUN,NLD","SEASHARE","","","TUN","NLD",0.28000000000000003,null,"Research Susanne Krieger"]
[null,"SEASHARE,,,VNM,JPN","SEASHARE","","","VNM","JPN",0.22500000000000001,null,"Research Susanne Krieger"]
[null,"SEASHARE,,,VNM,KOR","SEASHARE","","","VNM","KOR",0.16,null,"Research Susanne Krieger"]
[null,"SPECCOST,,BFUEL-L,,","SPECCOST","","BFUEL-L","","",2.7940534453652541E-3,"USD2021 / kwh bunker fuel (l)"]
[null,"SPECCOST,,CO2-G,,","SPECCOST","","CO2-G","","",3.8577660276243091E-2,"USD2021 / kg CO2 (g)"]
[null,"SPECCOST,,EL,,","SPECCOST","","EL","","",7.0000000000000007E-2,"USD2021 / kWh (el.)","dummy mh! Auf Null gesetzt bis bug in Rechner behoben ist. Korrekter Wert ist 0,08"]
[null,"SPECCOST,,H2O-L,,","SPECCOST","","H2O-L","","",1.190463995027624E-3,"USD2021 / kg H2O (l)"]
[null,"SPECCOST,,HEAT,,","SPECCOST","","HEAT","","",0.05,"USD2021 / kWh (heat)"]
[null,"SPECCOST,,N2-G,,","SPECCOST","","N2-G","","",0.01,"USD2021 / kg N2 (g)"]
[null,"WACC,,,ARE,","WACC","","","ARE","",5.5673211551852057E-2,"fraction"]
[null,"WACC,,,ARG,","WACC","","","ARG","",0.15031035355923136,"fraction"]
[null,"WACC,,,ARG-BA,","WACC","","","ARG-BA","",0.15031035355923136,"fraction"]
[null,"WACC,,,ARG-CAT,","WACC","","","ARG-CAT","",0.15031035355923136,"fraction"]
[null,"WACC,,,ARG-CBA,","WACC","","","ARG-CBA","",0.15031035355923136,"fraction"]
[null,"WACC,,,ARG-CHA,","WACC","","","ARG-CHA","",0.15031035355923136,"fraction"]
[null,"WACC,,,ARG-CHU,","WACC","","","ARG-CHU","",0.15031035355923136,"fraction"]
[null,"WACC,,,ARG-COR,","WACC","","","ARG-COR","",0.15031035355923136,"fraction"]
[null,"WACC,,,ARG-CRB,","WACC","","","ARG-CRB","",0.15031035355923136,"fraction"]
[null,"WACC,,,ARG-CRU,","WACC","","","ARG-CRU","",0.15031035355923136,"fraction"]
[null,"WACC,,,ARG-EST,","WACC","","","ARG-EST","",0.15031035355923136,"fraction"]
[null,"WACC,,,ARG-FOR,","WACC","","","ARG-FOR","",0.15031035355923136,"fraction"]
[null,"WACC,,,ARG-FUE,","WACC","","","ARG-FUE","",0.15031035355923136,"fraction"]
[null,"WACC,,,ARG-JUJ,","WACC","","","ARG-JUJ","",0.15031035355923136,"fraction"]
[null,"WACC,,,ARG-LAR,","WACC","","","ARG-LAR","",0.15031035355923136,"fraction"]
[null,"WACC,,,ARG-MEN,","WACC","","","ARG-MEN","",0.15031035355923136,"fraction"]
[null,"WACC,,,ARG-MIS,","WACC","","","ARG-MIS","",0.15031035355923136,"fraction"]
[null,"WACC,,,ARG-NEG,","WACC","","","ARG-NEG","",0.15031035355923136,"fraction"]
[null,"WACC,,,ARG-NEU,","WACC","","","ARG-NEU","",0.15031035355923136,"fraction"]
[null,"WACC,,,ARG-PAM,","WACC","","","ARG-PAM","",0.15031035355923136,"fraction"]
[null,"WACC,,,ARG-RIO,","WACC","","","ARG-RIO","",0.15031035355923136,"fraction"]
[null,"WACC,,,ARG-SAF,","WACC","","","ARG-SAF","",0.15031035355923136,"fraction"]
[null,"WACC,,,ARG-SAJ,","WACC","","","ARG-SAJ","",0.15031035355923136,"fraction"]
[null,"WACC,,,ARG-SAL,","WACC","","","ARG-SAL","",0.15031035355923136,"fraction"]
[null,"WACC,,,ARG-SAT,","WACC","","","ARG-SAT","",0.15031035355923136,"fraction"]
[null,"WACC,,,ARG-TUC,","WACC","","","ARG-TUC","",0.15031035355923136,"fraction"]
[null,"WACC,,,AUS,","WACC","","","AUS","",5.0299999999999997E-2,"fraction"]
[null,"WACC,,,BRA,","WACC","","","BRA","",8.2832353577576984E-2,"fraction"]
[null,"WACC,,,CHL,","WACC","","","CHL","",5.5673211551852057E-2,"fraction"]
[null,"WACC,,,CHN,","WACC","","","CHN","",5.5673211551852057E-2,"fraction"]
[null,"WACC,,,COL,","WACC","","","COL","",7.0913593408014244E-2,"fraction"]
[null,"WACC,,,CRI,","WACC","","","CRI","",0.10395003232720652,"fraction"]
[null,"WACC,,,DNK,","WACC","","","DNK","",5.0299999999999997E-2,"fraction"]
[null,"WACC,,,DZA,","WACC","","","DZA","",9.1999999999999998E-2,"fraction"]
[null,"WACC,,,EGY,","WACC","","","EGY","",0.11336853373134342,"fraction"]
[null,"WACC,,,ESP,","WACC","","","ESP","",6.4274782725559448E-2,"fraction"]
[null,"WACC,,,IDN,","WACC","","","IDN","",7.0913593408014244E-2,"fraction"]
[null,"WACC,,,IND,","WACC","","","IND","",7.237045402218821E-2,"fraction"]
[null,"WACC,,,JOR,","WACC","","","JOR","",9.9049682988621379E-2,"fraction"]
[null,"WACC,,,KAZ,","WACC","","","KAZ","",7.3401485154905771E-2,"fraction"]
[null,"WACC,,,KEN,","WACC","","","KEN","",0.10989380084781369,"fraction"]
[null,"WACC,,,MAR,","WACC","","","MAR","",7.731973992583685E-2,"fraction"]
[null,"WACC,,,MAR-BEN,","WACC","","","MAR-BEN","",7.731973992583685E-2,"fraction"]
[null,"WACC,,,MAR-CAS,","WACC","","","MAR-CAS","",7.731973992583685E-2,"fraction"]
[null,"WACC,,,MAR-DAK,","WACC","","","MAR-DAK","",7.731973992583685E-2,"fraction"]
[null,"WACC,,,MAR-DRA,","WACC","","","MAR-DRA","",7.731973992583685E-2,"fraction"]
[null,"WACC,,,MAR-FES,","WACC","","","MAR-FES","",7.731973992583685E-2,"fraction"]
[null,"WACC,,,MAR-GUE,","WACC","","","MAR-GUE","",7.731973992583685E-2,"fraction"]
[null,"WACC,,,MAR-LAA,","WACC","","","MAR-LAA","",7.731973992583685E-2,"fraction"]
[null,"WACC,,,MAR-LOR,","WACC","","","MAR-LOR","",7.731973992583685E-2,"fraction"]
[null,"WACC,,,MAR-MAR,","WACC","","","MAR-MAR","",7.731973992583685E-2,"fraction"]
[null,"WACC,,,MAR-RAB,","WACC","","","MAR-RAB","",7.731973992583685E-2,"fraction"]
[null,"WACC,,,MAR-SOU,","WACC","","","MAR-SOU","",7.731973992583685E-2,"fraction"]
[null,"WACC,,,MAR-TAN,","WACC","","","MAR-TAN","",7.731973992583685E-2,"fraction"]
[null,"WACC,,,MEX,","WACC","","","MEX","",6.4274782725559448E-2,"fraction"]
[null,"WACC,,,MRT,","WACC","","","MRT","",9.1999999999999998E-2,"fraction"]
[null,"WACC,,,NAM,","WACC","","","NAM","",8.3993056414234241E-2,"fraction"]
[null,"WACC,,,NOR,","WACC","","","NOR","",5.0299999999999997E-2,"fraction"]
[null,"WACC,,,PER,","WACC","","","PER","",6.4274782725559448E-2,"fraction"]
[null,"WACC,,,PRT,","WACC","","","PRT","",7.3401485154905771E-2,"fraction"]
[null,"WACC,,,RUS,","WACC","","","RUS","",7.5170549034228915E-2,"fraction"]
[null,"WACC,,,SAU,","WACC","","","SAU","",5.5673211551852057E-2,"fraction"]
[null,"WACC,,,SWE,","WACC","","","SWE","",5.0299999999999997E-2,"fraction"]
[null,"WACC,,,THA,","WACC","","","THA","",6.4274782725559448E-2,"fraction"]
[null,"WACC,,,TUN,","WACC","","","TUN","",0.11482300617243665,"fraction"]
[null,"WACC,,,UKR,","WACC","","","UKR","",0.1266281397634636,"fraction"]
[null,"WACC,,,URY,","WACC","","","URY","",7.731973992583685E-2,"fraction"]
[null,"WACC,,,USA,","WACC","","","USA","",5.0299999999999997E-2,"fraction"]
[null,"WACC,,,VNM,","WACC","","","VNM","",8.9280207439799461E-2,"fraction"]
[null,"WACC,,,ZAF,","WACC","","","ZAF","",7.8066629268261314E-2,"fraction"]
[null,"WACC,,,ZAF-EC,","WACC","","","ZAF-EC","",7.8066629268261314E-2,"fraction"]
[null,"WACC,,,ZAF-FRS,","WACC","","","ZAF-FRS","",7.8066629268261314E-2,"fraction"]
[null,"WACC,,,ZAF-GAU,","WACC","","","ZAF-GAU","",7.8066629268261314E-2,"fraction"]
[null,"WACC,,,ZAF-KWA,","WACC","","","ZAF-KWA","",7.8066629268261314E-2,"fraction"]
[null,"WACC,,,ZAF-LIM,","WACC","","","ZAF-LIM","",7.8066629268261314E-2,"fraction"]
[null,"WACC,,,ZAF-MPU,","WACC","","","ZAF-MPU","",7.8066629268261314E-2,"fraction"]
[null,"WACC,,,ZAF-NC,","WACC","","","ZAF-NC","",7.8066629268261314E-2,"fraction"]
[null,"WACC,,,ZAF-NW,","WACC","","","ZAF-NW","",7.8066629268261314E-2,"fraction"]
[null,"WACC,,,ZAF-WC,","WACC","","","ZAF-WC","",7.8066629268261314E-2,"fraction"]
["/data"]

{"sheet":"_scenario_2040_high","index":49,"n_rows":2137,"n_cols":10,"rows_kept":2137,"cut":false,"hidden":true,"merged":[]}
["data","key","parameter_code","process_code","flow_code","source_region_code","target_country_code","value","unit","source"]
[null,"CALOR,,CH3OH-L,,","CALOR","","CH3OH-L","","",5.5277777777777768,"kWh CH3OH (l)/kg","Wikipedia with conversions"]
[null,"CALOR,,CH4-G,,","CALOR","","CH4-G","","",13.5,"kWh CH4 (g)/kg","Wikipedia with conversions"]
[null,"CALOR,,CH4-L,,","CALOR","","CH4-L","","",13.5,"kWh CH4 (l)/kg","Wikipedia with conversions"]
[null,"CALOR,,CHX-L,,","CALOR","","CHX-L","","",11.944444444444445,"kwh CHx (l)/kg","Wikipedia with conversions"]
[null,"CALOR,,DRI-S,,","CALOR","","DRI-S","","",1,"kg DRI (s)/kg","no conversion necessary"]
[null,"CALOR,,H2-G,,","CALOR","","H2-G","","",33.33,"kWh H2 (g)/kg","Linde"]
[null,"CALOR,,H2-L,,","CALOR","","H2-L","","",33.33,"kWh H2 (l)/kg","Linde"]
[null,"CALOR,,LOHC-L,,","CALOR","","LOHC-L","","",33.33,"kWh H2 (l)/kg","Linde"]
[null,"CALOR,,NH3-L,,","CALOR","","NH3-L","","",5.1999999999999993,"kWh NH3 (l)/kg","Wikipedia with conversions"]
[null,"CAPEX,AEL-EL,,,","CAPEX","AEL-EL","","","",516.53590225586868,"USD2021/kW"]
[null,"CAPEX,ATR,,,","CAPEX","ATR","","","",1000.0341055522356,"USD2021/kW","Oni et al. 2022"]
[null,"CAPEX,CH3OHSYN,,,","CAPEX","CH3OHSYN","","","",953.53718155258355,"USD2021/kW"]
[null,"CAPEX,CH4-COMP,,,","CAPEX","CH4-COMP","","","",270.33694914821058,"USD2021/kW","DNV GL 2020"]
[null,"CAPEX,CH4-LIQ,,,","CAPEX","CH4-LIQ","","","",439.99368256303694,"USD2021/kW","Hank et al. 2020"]
[null,"CAPEX,CH4SYN,,,","CAPEX","CH4SYN","","","",649.0778435445792,"USD2021/kW","Öko-Institut 2020"]
[null,"CAPEX,DAC,,,","CAPEX","DAC","","","",1.4925545631742312,"USD2021/ kg CO2 (g)*a","Kreidelmeyer et al. 2020"]
[null,"CAPEX,DESAL,,,","CAPEX","DESAL","","","",2.3667276243093918E-3,"USD2021/l*a","Fraunhofer IEE"]
[null,"CAPEX,DRI,,,","CAPEX","DRI","","","",4125.6284525730507,"USD2021/kg DRI (s)/a*h","Agora Industry Transformation 2021"]
[null,"CAPEX,EFUELSYN,,,","CAPEX","EFUELSYN","","","",953.53718155258355,"USD2021/kW"]
[null,"CAPEX,H2-COMP,,,","CAPEX","H2-COMP","","","",270.33694914821058,"USD2021/kW","DNV GL 2020"]
[null,"CAPEX,H2-LIQ,,,","CAPEX","H2-LIQ","","","",2228.4706482140114,"USD2021/kW","IEA 2015"]
[null,"CAPEX,H2-RGAS,,,","CAPEX","H2-RGAS","","","",503.88993317467032,"USD2021/kW","DNV GL 2020"]
[null,"CAPEX,LOHC-CON,,,","CAPEX","LOHC-CON","","","",286.32944503810444,"USD2021/kW","Staiß et al. 2022 nach Wasserscheid"]
[null,"CAPEX,LOHC-REC,,,","CAPEX","LOHC-REC","","","",525.46172880619167,"USD2021/kW","Staiß et al. 2022 nach Wasserscheid"]
[null,"CAPEX,NH3-REC,,,","CAPEX","NH3-REC","","","",422.18509486193108,"USD2021/kW","NGN; Equinor 2018"]
[null,"CAPEX,NH3SYN,,,","CAPEX","NH3SYN","","","",1484.6664443263917,"USD2021/kW"]
[null,"CAPEX,PEM-EL,,,","CAPEX","PEM-EL","","","",731.33997558593967,"USD2021/kW"]
[null,"CAPEX,PV-FIX,,ARE,","CAPEX","PV-FIX","","ARE","",689.9185245680053,"USD2021/kW"]
[null,"CAPEX,PV-FIX,,ARG,","CAPEX","PV-FIX","","ARG","",669.35207991562413,"USD2021/kW"]
[null,"CAPEX,PV-FIX,,ARG-BA,","CAPEX","PV-FIX","","ARG-BA","",669.35207991562413,"USD2021/kW"]
[null,"CAPEX,PV-FIX,,ARG-CAT,","CAPEX","PV-FIX","","ARG-CAT","",669.35207991562413,"USD2021/kW"]
[null,"CAPEX,PV-FIX,,ARG-CBA,","CAPEX","PV-FIX","","ARG-CBA","",669.35207991562413,"USD2021/kW"]
[null,"CAPEX,PV-FIX,,ARG-CHA,","CAPEX","PV-FIX","","ARG-CHA","",669.35207991562413,"USD2021/kW"]
[null,"CAPEX,PV-FIX,,ARG-CHU,","CAPEX","PV-FIX","","ARG-CHU","",669.35207991562413,"USD2021/kW"]
[null,"CAPEX,PV-FIX,,ARG-COR,","CAPEX","PV-FIX","","ARG-COR","",669.35207991562413,"USD2021/kW"]
[null,"CAPEX,PV-FIX,,ARG-CRB,","CAPEX","PV-FIX","","ARG-CRB","",669.35207991562413,"USD2021/kW"]
[null,"CAPEX,PV-FIX,,ARG-CRU,","CAPEX","PV-FIX","","ARG-CRU","",669.35207991562413,"USD2021/kW"]
[null,"CAPEX,PV-FIX,,ARG-EST,","CAPEX","PV-FIX","","ARG-EST","",669.35207991562413,"USD2021/kW"]
[null,"CAPEX,PV-FIX,,ARG-FOR,","CAPEX","PV-FIX","","ARG-FOR","",669.35207991562413,"USD2021/kW"]
[null,"CAPEX,PV-FIX,,ARG-FUE,","CAPEX","PV-FIX","","ARG-FUE","",669.35207991562413,"USD2021/kW"]
[null,"CAPEX,PV-FIX,,ARG-JUJ,","CAPEX","PV-FIX","","ARG-JUJ","",669.35207991562413,"USD2021/kW"]
[null,"CAPEX,PV-FIX,,ARG-LAR,","CAPEX","PV-FIX","","ARG-LAR","",669.35207991562413,"USD2021/kW"]
[null,"CAPEX,PV-FIX,,ARG-MEN,","CAPEX","PV-FIX","","ARG-MEN","",669.35207991562413,"USD2021/kW"]
[null,"CAPEX,PV-FIX,,ARG-MIS,","CAPEX","PV-FIX","","ARG-MIS","",669.35207991562413,"USD2021/kW"]
[null,"CAPEX,PV-FIX,,ARG-NEG,","CAPEX","PV-FIX","","ARG-NEG","",669.35207991562413,"USD2021/kW"]
[null,"CAPEX,PV-FIX,,ARG-NEU,","CAPEX","PV-FIX","","ARG-NEU","",669.35207991562413,"USD2021/kW"]
[null,"CAPEX,PV-FIX,,ARG-PAM,","CAPEX","PV-FIX","","ARG-PAM","",669.35207991562413,"USD2021/kW"]
[null,"CAPEX,PV-FIX,,ARG-RIO,","CAPEX","PV-FIX","","ARG-RIO","",669.35207991562413,"USD2021/kW"]
[null,"CAPEX,PV-FIX,,ARG-SAF,","CAPEX","PV-FIX","","ARG-SAF","",669.35207991562413,"USD2021/kW"]
[null,"CAPEX,PV-FIX,,ARG-SAJ,","CAPEX","PV-FIX","","ARG-SAJ","",669.35207991562413,"USD2021/kW"]
[null,"CAPEX,PV-FIX,,ARG-SAL,","CAPEX","PV-FIX","","ARG-SAL","",669.35207991562413,"USD2021/kW"]
[null,"CAPEX,PV-FIX,,ARG-SAT,","CAPEX","PV-FIX","","ARG-SAT","",669.35207991562413,"USD2021/kW"]
[null,"CAPEX,PV-FIX,,ARG-TUC,","CAPEX","PV-FIX","","ARG-TUC","",669.35207991562413,"USD2021/kW"]
[null,"CAPEX,PV-FIX,,AUS,","CAPEX","PV-FIX","","AUS","",756.24530857193474,"USD2021/kW"]
[null,"CAPEX,PV-FIX,,BRA,","CAPEX","PV-FIX","","BRA","",655.29834273649692,"USD2021/kW"]
[null,"CAPEX,PV-FIX,,CHL,","CAPEX","PV-FIX","","CHL","",745.10515105189495,"USD2021/kW"]
[null,"CAPEX,PV-FIX,,CHN,","CAPEX","PV-FIX","","CHN","",433.60920808770425,"USD2021/kW"]
[null,"CAPEX,PV-FIX,,COL,","CAPEX","PV-FIX","","COL","",689.9185245680053,"USD2021/kW"]
[null,"CAPEX,PV-FIX,,CRI,","CAPEX","PV-FIX","","CRI","",689.9185245680053,"USD2021/kW"]
[null,"CAPEX,PV-FIX,,DNK,","CAPEX","PV-FIX","","DNK","",598.14076530675413,"USD2021/kW"]
[null,"CAPEX,PV-FIX,,DZA,","CAPEX","PV-FIX","","DZA","",689.9185245680053,"USD2021/kW"]
[null,"CAPEX,PV-FIX,,EGY,","CAPEX","PV-FIX","","EGY","",689.9185245680053,"USD2021/kW"]
[null,"CAPEX,PV-FIX,,ESP,","CAPEX","PV-FIX","","ESP","",650.07103805401675,"USD2021/kW"]
[null,"CAPEX,PV-FIX,,IDN,","CAPEX","PV-FIX","","IDN","",799.69192290009016,"USD2021/kW"]
[null,"CAPEX,PV-FIX,,IND,","CAPEX","PV-FIX","","IND","",448.17710638314094,"USD2021/kW"]
[null,"CAPEX,PV-FIX,,JOR,","CAPEX","PV-FIX","","JOR","",689.9185245680053,"USD2021/kW"]
[null,"CAPEX,PV-FIX,,KAZ,","CAPEX","PV-FIX","","KAZ","",689.9185245680053,"USD2021/kW"]
[null,"CAPEX,PV-FIX,,KEN,","CAPEX","PV-FIX","","KEN","",689.9185245680053,"USD2021/kW"]
[null,"CAPEX,PV-FIX,,MAR,","CAPEX","PV-FIX","","MAR","",689.9185245680053,"USD2021/kW"]
[null,"CAPEX,PV-FIX,,MAR-BEN,","CAPEX","PV-FIX","","MAR-BEN","",689.9185245680053,"USD2021/kW"]
[null,"CAPEX,PV-FIX,,MAR-CAS,","CAPEX","PV-FIX","","MAR-CAS","",689.9185245680053,"USD2021/kW"]
[null,"CAPEX,PV-FIX,,MAR-DAK,","CAPEX","PV-FIX","","MAR-DAK","",689.9185245680053,"USD2021/kW"]
[null,"CAPEX,PV-FIX,,MAR-DRA,","CAPEX","PV-FIX","","MAR-DRA","",689.9185245680053,"USD2021/kW"]
[null,"CAPEX,PV-FIX,,MAR-FES,","CAPEX","PV-FIX","","MAR-FES","",689.9185245680053,"USD2021/kW"]
[null,"CAPEX,PV-FIX,,MAR-GUE,","CAPEX","PV-FIX","","MAR-GUE","",689.9185245680053,"USD2021/kW"]
[null,"CAPEX,PV-FIX,,MAR-LAA,","CAPEX","PV-FIX","","MAR-LAA","",689.9185245680053,"USD2021/kW"]
[null,"CAPEX,PV-FIX,,MAR-LOR,","CAPEX","PV-FIX","","MAR-LOR","",689.9185245680053,"USD2021/kW"]
[null,"CAPEX,PV-FIX,,MAR-MAR,","CAPEX","PV-FIX","","MAR-MAR","",689.9185245680053,"USD2021/kW"]
[null,"CAPEX,PV-FIX,,MAR-RAB,","CAPEX","PV-FIX","","MAR-RAB","",689.9185245680053,"USD2021/kW"]
[null,"CAPEX,PV-FIX,,MAR-SOU,","CAPEX","PV-FIX","","MAR-SOU","",689.9185245680053,"USD2021/kW"]
[null,"CAPEX,PV-FIX,,MAR-TAN,","CAPEX","PV-FIX","","MAR-TAN","",689.9185245680053,"USD2021/kW"]
[null,"CAPEX,PV-FIX,,MEX,","CAPEX","PV-FIX","","MEX","",628.73335172717123,"USD2021/kW"]
[null,"CAPEX,PV-FIX,,MRT,","CAPEX","PV-FIX","","MRT","",689.9185245680053,"USD2021/kW"]
[null,"CAPEX,PV-FIX,,NAM,","CAPEX","PV-FIX","","NAM","",689.9185245680053,"USD2021/kW"]
[null,"CAPEX,PV-FIX,,NOR,","CAPEX","PV-FIX","","NOR","",635.71261280596548,"USD2021/kW"]
[null,"CAPEX,PV-FIX,,PER,","CAPEX","PV-FIX","","PER","",689.9185245680053,"USD2021/kW"]
[null,"CAPEX,PV-FIX,,PRT,","CAPEX","PV-FIX","","PRT","",697.63094131264836,"USD2021/kW"]
[null,"CAPEX,PV-FIX,,RUS,","CAPEX","PV-FIX","","RUS","",1237.5858069570406,"USD2021/kW"]
[null,"CAPEX,PV-FIX,,SAU,","CAPEX","PV-FIX","","SAU","",715.54088686409693,"USD2021/kW"]
[null,"CAPEX,PV-FIX,,SWE,","CAPEX","PV-FIX","","SWE","",635.71261280596548,"USD2021/kW"]
[null,"CAPEX,PV-FIX,,THA,","CAPEX","PV-FIX","","THA","",761.2155326962602,"USD2021/kW"]
[null,"CAPEX,PV-FIX,,TUN,","CAPEX","PV-FIX","","TUN","",689.9185245680053,"USD2021/kW"]
[null,"CAPEX,PV-FIX,,UKR,","CAPEX","PV-FIX","","UKR","",635.71261280596548,"USD2021/kW"]
[null,"CAPEX,PV-FIX,,URY,","CAPEX","PV-FIX","","URY","",689.9185245680053,"USD2021/kW"]
[null,"CAPEX,PV-FIX,,USA,","CAPEX","PV-FIX","","USA","",824.20026944417771,"USD2021/kW"]
[null,"CAPEX,PV-FIX,,VNM,","CAPEX","PV-FIX","","VNM","",761.2155326962602,"USD2021/kW"]
[null,"CAPEX,PV-FIX,,ZAF,","CAPEX","PV-FIX","","ZAF","",689.9185245680053,"USD2021/kW"]
[null,"CAPEX,PV-FIX,,ZAF-EC,","CAPEX","PV-FIX","","ZAF-EC","",689.9185245680053,"USD2021/kW"]
[null,"CAPEX,PV-FIX,,ZAF-FRS,","CAPEX","PV-FIX","","ZAF-FRS","",689.9185245680053,"USD2021/kW"]
[null,"CAPEX,PV-FIX,,ZAF-GAU,","CAPEX","PV-FIX","","ZAF-GAU","",689.9185245680053,"USD2021/kW"]
[null,"CAPEX,PV-FIX,,ZAF-KWA,","CAPEX","PV-FIX","","ZAF-KWA","",689.9185245680053,"USD2021/kW"]
[null,"CAPEX,PV-FIX,,ZAF-LIM,","CAPEX","PV-FIX","","ZAF-LIM","",689.9185245680053,"USD2021/kW"]
[null,"CAPEX,PV-FIX,,ZAF-MPU,","CAPEX","PV-FIX","","ZAF-MPU","",689.9185245680053,"USD2021/kW"]
[null,"CAPEX,PV-FIX,,ZAF-NC,","CAPEX","PV-FIX","","ZAF-NC","",689.9185245680053,"USD2021/kW"]
[null,"CAPEX,PV-FIX,,ZAF-NW,","CAPEX","PV-FIX","","ZAF-NW","",689.9185245680053,"USD2021/kW"]
[null,"CAPEX,PV-FIX,,ZAF-WC,","CAPEX","PV-FIX","","ZAF-WC","",689.9185245680053,"USD2021/kW"]
[null,"CAPEX,REGASATR,,,","CAPEX","REGASATR","","","",1000.0341055522356,"USD2021/kW","combined values"]
[null,"CAPEX,RES-HYBR,,ARE,","CAPEX","RES-HYBR","","ARE","",1080.7188212028464,"USD2021/kW","calculated. PV:  WIND-ON: "]
[null,"CAPEX,RES-HYBR,,ARG,","CAPEX","RES-HYBR","","ARG","",1168.0606536199327,"USD2021/kW","calculated. PV:  WIND-ON: "]
[null,"CAPEX,RES-HYBR,,ARG-BA,","CAPEX","RES-HYBR","","ARG-BA","",1168.0606536199327,"USD2021/kW","calculated. PV:  WIND-ON: "]
[null,"CAPEX,RES-HYBR,,ARG-CAT,","CAPEX","RES-HYBR","","ARG-CAT","",1168.0606536199327,"USD2021/kW","calculated. PV:  WIND-ON: "]
[null,"CAPEX,RES-HYBR,,ARG-CBA,","CAPEX","RES-HYBR","","ARG-CBA","",1168.0606536199327,"USD2021/kW","calculated. PV:  WIND-ON: "]
[null,"CAPEX,RES-HYBR,,ARG-CHA,","CAPEX","RES-HYBR","","ARG-CHA","",1168.0606536199327,"USD2021/kW","calculated. PV:  WIND-ON: "]
[null,"CAPEX,RES-HYBR,,ARG-CHU,","CAPEX","RES-HYBR","","ARG-CHU","",1168.0606536199327,"USD2021/kW","calculated. PV:  WIND-ON: "]
[null,"CAPEX,RES-HYBR,,ARG-COR,","CAPEX","RES-HYBR","","ARG-COR","",1168.0606536199327,"USD2021/kW","calculated. PV:  WIND-ON: "]
[null,"CAPEX,RES-HYBR,,ARG-CRB,","CAPEX","RES-HYBR","","ARG-CRB","",1168.0606536199327,"USD2021/kW","calculated. PV:  WIND-ON: "]
[null,"CAPEX,RES-HYBR,,ARG-CRU,","CAPEX","RES-HYBR","","ARG-CRU","",1168.0606536199327,"USD2021/kW","calculated. PV:  WIND-ON: "]
[null,"CAPEX,RES-HYBR,,ARG-EST,","CAPEX","RES-HYBR","","ARG-EST","",1168.0606536199327,"USD2021/kW","calculated. PV:  WIND-ON: "]
[null,"CAPEX,RES-HYBR,,ARG-FOR,","CAPEX","RES-HYBR","","ARG-FOR","",1168.0606536199327,"USD2021/kW","calculated. PV:  WIND-ON: "]
[null,"CAPEX,RES-HYBR,,ARG-FUE,","CAPEX","RES-HYBR","","ARG-FUE","",1168.0606536199327,"USD2021/kW","calculated. PV:  WIND-ON: "]
[null,"CAPEX,RES-HYBR,,ARG-JUJ,","CAPEX","RES-HYBR","","ARG-JUJ","",1168.0606536199327,"USD2021/kW","calculated. PV:  WIND-ON: "]
[null,"CAPEX,RES-HYBR,,ARG-LAR,","CAPEX","RES-HYBR","","ARG-LAR","",1168.0606536199327,"USD2021/kW","calculated. PV:  WIND-ON: "]
[null,"CAPEX,RES-HYBR,,ARG-MEN,","CAPEX","RES-HYBR","","ARG-MEN","",1168.0606536199327,"USD2021/kW","calculated. PV:  WIND-ON: "]
[null,"CAPEX,RES-HYBR,,ARG-MIS,","CAPEX","RES-HYBR","","ARG-MIS","",1168.0606536199327,"USD2021/kW","calculated. PV:  WIND-ON: "]
[null,"CAPEX,RES-HYBR,,ARG-NEG,","CAPEX","RES-HYBR","","ARG-NEG","",1168.0606536199327,"USD2021/kW","calculated. PV:  WIND-ON: "]
[null,"CAPEX,RES-HYBR,,ARG-NEU,","CAPEX","RES-HYBR","","ARG-NEU","",1168.0606536199327,"USD2021/kW","calculated. PV:  WIND-ON: "]
[null,"CAPEX,RES-HYBR,,ARG-PAM,","CAPEX","RES-HYBR","","ARG-PAM","",1168.0606536199327,"USD2021/kW","calculated. PV:  WIND-ON: "]
[null,"CAPEX,RES-HYBR,,ARG-RIO,","CAPEX","RES-HYBR","","ARG-RIO","",1168.0606536199327,"USD2021/kW","calculated. PV:  WIND-ON: "]
[null,"CAPEX,RES-HYBR,,ARG-SAF,","CAPEX","RES-HYBR","","ARG-SAF","",1168.0606536199327,"USD2021/kW","calculated. PV:  WIND-ON: "]
[null,"CAPEX,RES-HYBR,,ARG-SAJ,","CAPEX","RES-HYBR","","ARG-SAJ","",1168.0606536199327,"USD2021/kW","calculated. PV:  WIND-ON: "]
[null,"CAPEX,RES-HYBR,,ARG-SAL,","CAPEX","RES-HYBR","","ARG-SAL","",1168.0606536199327,"USD2021/kW","calculated. PV:  WIND-ON: "]
[null,"CAPEX,RES-HYBR,,ARG-SAT,","CAPEX","RES-HYBR","","ARG-SAT","",1168.0606536199327,"USD2021/kW","calculated. PV:  WIND-ON: "]
[null,"CAPEX,RES-HYBR,,ARG-TUC,","CAPEX","RES-HYBR","","ARG-TUC","",1168.0606536199327,"USD2021/kW","calculated. PV:  WIND-ON: "]
[null,"CAPEX,RES-HYBR,,AUS,","CAPEX","RES-HYBR","","AUS","",1211.5072679480882,"USD2021/kW","calculated. PV:  WIND-ON: "]
[null,"CAPEX,RES-HYBR,,BRA,","CAPEX","RES-HYBR","","BRA","",875.30191748907077,"USD2021/kW","calculated. PV:  WIND-ON: "]
[null,"CAPEX,RES-HYBR,,CHL,","CAPEX","RES-HYBR","","CHL","",1205.9371891880683,"USD2021/kW","calculated. PV:  WIND-ON: "]
[null,"CAPEX,RES-HYBR,,CHN,","CAPEX","RES-HYBR","","CHN","",767.7908886193228,"USD2021/kW","calculated. PV:  WIND-ON: "]
[null,"CAPEX,RES-HYBR,,COL,","CAPEX","RES-HYBR","","COL","",1118.9592622840028,"USD2021/kW","calculated. PV:  WIND-ON: "]
[null,"CAPEX,RES-HYBR,,CRI,","CAPEX","RES-HYBR","","CRI","",1098.8151728137955,"USD2021/kW","calculated. PV:  WIND-ON: "]
[null,"CAPEX,RES-HYBR,,DNK,","CAPEX","RES-HYBR","","DNK","",1071.9750843525896,"USD2021/kW","calculated. PV:  WIND-ON: "]
[null,"CAPEX,RES-HYBR,,DZA,","CAPEX","RES-HYBR","","DZA","",1245.9670845975641,"USD2021/kW","calculated. PV:  WIND-ON: "]
[null,"CAPEX,RES-HYBR,,EGY,","CAPEX","RES-HYBR","","EGY","",1059.2889311372492,"USD2021/kW","calculated. PV:  WIND-ON: "]
[null,"CAPEX,RES-HYBR,,ESP,","CAPEX","RES-HYBR","","ESP","",882.95129609793912,"USD2021/kW","calculated. PV:  WIND-ON: "]
[null,"CAPEX,RES-HYBR,,IDN,","CAPEX","RES-HYBR","","IDN","",1471.3404647299146,"USD2021/kW","calculated. PV:  WIND-ON: "]
[null,"CAPEX,RES-HYBR,,IND,","CAPEX","RES-HYBR","","IND","",665.06806876364124,"USD2021/kW","calculated. PV:  WIND-ON: "]
[null,"CAPEX,RES-HYBR,,JOR,","CAPEX","RES-HYBR","","JOR","",1245.9670845975641,"USD2021/kW","calculated. PV:  WIND-ON: "]
[null,"CAPEX,RES-HYBR,,KAZ,","CAPEX","RES-HYBR","","KAZ","",1059.2889311372492,"USD2021/kW","calculated. PV:  WIND-ON: "]
[null,"CAPEX,RES-HYBR,,KEN,","CAPEX","RES-HYBR","","KEN","",1245.9670845975641,"USD2021/kW","calculated. PV:  WIND-ON: "]
[null,"CAPEX,RES-HYBR,,MAR,","CAPEX","RES-HYBR","","MAR","",1178.3438759461233,"USD2021/kW","calculated. PV:  WIND-ON: "]
[null,"CAPEX,RES-HYBR,,MAR-BEN,","CAPEX","RES-HYBR","","MAR-BEN","",1178.3438759461233,"USD2021/kW","calculated. PV:  WIND-ON: "]
[null,"CAPEX,RES-HYBR,,MAR-CAS,","CAPEX","RES-HYBR","","MAR-CAS","",1178.3438759461233,"USD2021/kW","calculated. PV:  WIND-ON: "]
[null,"CAPEX,RES-HYBR,,MAR-DAK,","CAPEX","RES-HYBR","","MAR-DAK","",1178.3438759461233,"USD2021/kW","calculated. PV:  WIND-ON: "]
[null,"CAPEX,RES-HYBR,,MAR-DRA,","CAPEX","RES-HYBR","","MAR-DRA","",1178.3438759461233,"USD2021/kW","calculated. PV:  WIND-ON: "]
[null,"CAPEX,RES-HYBR,,MAR-FES,","CAPEX","RES-HYBR","","MAR-FES","",1178.3438759461233,"USD2021/kW","calculated. PV:  WIND-ON: "]
[null,"CAPEX,RES-HYBR,,MAR-GUE,","CAPEX","RES-HYBR","","MAR-GUE","",1178.3438759461233,"USD2021/kW","calculated. PV:  WIND-ON: "]
[null,"CAPEX,RES-HYBR,,MAR-LAA,","CAPEX","RES-HYBR","","MAR-LAA","",1178.3438759461233,"USD2021/kW","calculated. PV:  WIND-ON: "]
[null,"CAPEX,RES-HYBR,,MAR-LOR,","CAPEX","RES-HYBR","","MAR-LOR","",1178.3438759461233,"USD2021/kW","calculated. PV:  WIND-ON: "]
[null,"CAPEX,RES-HYBR,,MAR-MAR,","CAPEX","RES-HYBR","","MAR-MAR","",1178.3438759461233,"USD2021/kW","calculated. PV:  WIND-ON: "]
[null,"CAPEX,RES-HYBR,,MAR-RAB,","CAPEX","RES-HYBR","","MAR-RAB","",1178.3438759461233,"USD2021/kW","calculated. PV:  WIND-ON: "]
[null,"CAPEX,RES-HYBR,,MAR-SOU,","CAPEX","RES-HYBR","","MAR-SOU","",1178.3438759461233,"USD2021/kW","calculated. PV:  WIND-ON: "]
[null,"CAPEX,RES-HYBR,,MAR-TAN,","CAPEX","RES-HYBR","","MAR-TAN","",1178.3438759461233,"USD2021/kW","calculated. PV:  WIND-ON: "]
[null,"CAPEX,RES-HYBR,,MEX,","CAPEX","RES-HYBR","","MEX","",1015.0906384955772,"USD2021/kW","calculated. PV:  WIND-ON: "]
[null,"CAPEX,RES-HYBR,,MRT,","CAPEX","RES-HYBR","","MRT","",1245.9670845975641,"USD2021/kW","calculated. PV:  WIND-ON: "]
[null,"CAPEX,RES-HYBR,,NAM,","CAPEX","RES-HYBR","","NAM","",1245.9670845975641,"USD2021/kW","calculated. PV:  WIND-ON: "]
[null,"CAPEX,RES-HYBR,,NOR,","CAPEX","RES-HYBR","","NOR","",1032.1859752562291,"USD2021/kW","calculated. PV:  WIND-ON: "]
[null,"CAPEX,RES-HYBR,,PER,","CAPEX","RES-HYBR","","PER","",940.23398632837461,"USD2021/kW","calculated. PV:  WIND-ON: "]
[null,"CAPEX,RES-HYBR,,PRT,","CAPEX","RES-HYBR","","PRT","",1182.2000843184449,"USD2021/kW","calculated. PV:  WIND-ON: "]
[null,"CAPEX,RES-HYBR,,RUS,","CAPEX","RES-HYBR","","RUS","",1333.1225723317666,"USD2021/kW","calculated. PV:  WIND-ON: "]
[null,"CAPEX,RES-HYBR,,SAU,","CAPEX","RES-HYBR","","SAU","",1093.5300023508921,"USD2021/kW","calculated. PV:  WIND-ON: "]
[null,"CAPEX,RES-HYBR,,SWE,","CAPEX","RES-HYBR","","SWE","",1090.7610081021953,"USD2021/kW","calculated. PV:  WIND-ON: "]
[null,"CAPEX,RES-HYBR,,THA,","CAPEX","RES-HYBR","","THA","",1116.3673252669737,"USD2021/kW","calculated. PV:  WIND-ON: "]
[null,"CAPEX,RES-HYBR,,TUN,","CAPEX","RES-HYBR","","TUN","",1245.9670845975641,"USD2021/kW","calculated. PV:  WIND-ON: "]
[null,"CAPEX,RES-HYBR,,UKR,","CAPEX","RES-HYBR","","UKR","",1032.1859752562291,"USD2021/kW","calculated. PV:  WIND-ON: "]
[null,"CAPEX,RES-HYBR,,URY,","CAPEX","RES-HYBR","","URY","",1416.4537655638724,"USD2021/kW","calculated. PV:  WIND-ON: "]
[null,"CAPEX,RES-HYBR,,USA,","CAPEX","RES-HYBR","","USA","",1070.0989902420486,"USD2021/kW","calculated. PV:  WIND-ON: "]
[null,"CAPEX,RES-HYBR,,VNM,","CAPEX","RES-HYBR","","VNM","",1452.1022696279997,"USD2021/kW","calculated. PV:  WIND-ON: "]
[null,"CAPEX,RES-HYBR,,ZAF,","CAPEX","RES-HYBR","","ZAF","",1178.3438759461233,"USD2021/kW","calculated. PV:  WIND-ON: "]
[null,"CAPEX,RES-HYBR,,ZAF-EC,","CAPEX","RES-HYBR","","ZAF-EC","",1178.3438759461233,"USD2021/kW","calculated. PV:  WIND-ON: "]
[null,"CAPEX,RES-HYBR,,ZAF-FRS,","CAPEX","RES-HYBR","","ZAF-FRS","",1178.3438759461233,"USD2021/kW","calculated. PV:  WIND-ON: "]
[null,"CAPEX,RES-HYBR,,ZAF-GAU,","CAPEX","RES-HYBR","","ZAF-GAU","",1178.3438759461233,"USD2021/kW","calculated. PV:  WIND-ON: "]
[null,"CAPEX,RES-HYBR,,ZAF-KWA,","CAPEX","RES-HYBR","","ZAF-KWA","",1178.3438759461233,"USD2021/kW","calculated. PV:  WIND-ON: "]
[null,"CAPEX,RES-HYBR,,ZAF-LIM,","CAPEX","RES-HYBR","","ZAF-LIM","",1178.3438759461233,"USD2021/kW","calculated. PV:  WIND-ON: "]
[null,"CAPEX,RES-HYBR,,ZAF-MPU,","CAPEX","RES-HYBR","","ZAF-MPU","",1178.3438759461233,"USD2021/kW","calculated. PV:  WIND-ON: "]
[null,"CAPEX,RES-HYBR,,ZAF-NC,","CAPEX","RES-HYBR","","ZAF-NC","",1178.3438759461233,"USD2021/kW","calculated. PV:  WIND-ON: "]
[null,"CAPEX,RES-HYBR,,ZAF-NW,","CAPEX","RES-HYBR","","ZAF-NW","",1178.3438759461233,"USD2021/kW","calculated. PV:  WIND-ON: "]
[null,"CAPEX,RES-HYBR,,ZAF-WC,","CAPEX","RES-HYBR","","ZAF-WC","",1178.3438759461233,"USD2021/kW","calculated. PV:  WIND-ON: "]
[null,"CAPEX,SOEC-EL,,,","CAPEX","SOEC-EL","","","",1776.5608110708458,"USD2021/kW"]
[null,"CAPEX,WIND-OFF,,ARE,","CAPEX","WIND-OFF","","ARE","",3192.4670092288125,"USD2021/kW"]
[null,"CAPEX,WIND-OFF,,ARG,","CAPEX","WIND-OFF","","ARG","",3192.4670092288125,"USD2021/kW"]
[null,"CAPEX,WIND-OFF,,ARG-BA,","CAPEX","WIND-OFF","","ARG-BA","",3192.4670092288125,"USD2021/kW"]
[null,"CAPEX,WIND-OFF,,ARG-CAT,","CAPEX","WIND-OFF","","ARG-CAT","",3192.4670092288125,"USD2021/kW"]
[null,"CAPEX,WIND-OFF,,ARG-CBA,","CAPEX","WIND-OFF","","ARG-CBA","",3192.4670092288125,"USD2021/kW"]
[null,"CAPEX,WIND-OFF,,ARG-CHA,","CAPEX","WIND-OFF","","ARG-CHA","",3192.4670092288125,"USD2021/kW"]
[null,"CAPEX,WIND-OFF,,ARG-CHU,","CAPEX","WIND-OFF","","ARG-CHU","",3192.4670092288125,"USD2021/kW"]
[null,"CAPEX,WIND-OFF,,ARG-COR,","CAPEX","WIND-OFF","","ARG-COR","",3192.4670092288125,"USD2021/kW"]
[null,"CAPEX,WIND-OFF,,ARG-CRB,","CAPEX","WIND-OFF","","ARG-CRB","",3192.4670092288125,"USD2021/kW"]
[null,"CAPEX,WIND-OFF,,ARG-CRU,","CAPEX","WIND-OFF","","ARG-CRU","",3192.4670092288125,"USD2021/kW"]
[null,"CAPEX,WIND-OFF,,ARG-EST,","CAPEX","WIND-OFF","","ARG-EST","",3192.4670092288125,"USD2021/kW"]
[null,"CAPEX,WIND-OFF,,ARG-FOR,","CAPEX","WIND-OFF","","ARG-FOR","",3192.4670092288125,"USD2021/kW"]
[null,"CAPEX,WIND-OFF,,ARG-FUE,","CAPEX","WIND-OFF","","ARG-FUE","",3192.4670092288125,"USD2021/kW"]
[null,"CAPEX,WIND-OFF,,ARG-JUJ,","CAPEX","WIND-OFF","","ARG-JUJ","",3192.4670092288125,"USD2021/kW"]
[null,"CAPEX,WIND-OFF,,ARG-LAR,","CAPEX","WIND-OFF","","ARG-LAR","",3192.4670092288125,"USD2021/kW"]
[null,"CAPEX,WIND-OFF,,ARG-MEN,","CAPEX","WIND-OFF","","ARG-MEN","",3192.4670092288125,"USD2021/kW"]
[null,"CAPEX,WIND-OFF,,ARG-MIS,","CAPEX","WIND-OFF","","ARG-MIS","",3192.4670092288125,"USD2021/kW"]
[null,"CAPEX,WIND-OFF,,ARG-NEG,","CAPEX","WIND-OFF","","ARG-NEG","",3192.4670092288125,"USD2021/kW"]
[null,"CAPEX,WIND-OFF,,ARG-NEU,","CAPEX","WIND-OFF","","ARG-NEU","",3192.4670092288125,"USD2021/kW"]
[null,"CAPEX,WIND-OFF,,ARG-PAM,","CAPEX","WIND-OFF","","ARG-PAM","",3192.4670092288125,"USD2021/kW"]
[null,"CAPEX,WIND-OFF,,ARG-RIO,","CAPEX","WIND-OFF","","ARG-RIO","",3192.4670092288125,"USD2021/kW"]
[null,"CAPEX,WIND-OFF,,ARG-SAF,","CAPEX","WIND-OFF","","ARG-SAF","",3192.4670092288125,"USD2021/kW"]
[null,"CAPEX,WIND-OFF,,ARG-SAJ,","CAPEX","WIND-OFF","","ARG-SAJ","",3192.4670092288125,"USD2021/kW"]
[null,"CAPEX,WIND-OFF,,ARG-SAL,","CAPEX","WIND-OFF","","ARG-SAL","",3192.4670092288125,"USD2021/kW"]
[null,"CAPEX,WIND-OFF,,ARG-SAT,","CAPEX","WIND-OFF","","ARG-SAT","",3192.4670092288125,"USD2021/kW"]
[null,"CAPEX,WIND-OFF,,ARG-TUC,","CAPEX","WIND-OFF","","ARG-TUC","",3192.4670092288125,"USD2021/kW"]
[null,"CAPEX,WIND-OFF,,AUS,","CAPEX","WIND-OFF","","AUS","",3192.4670092288125,"USD2021/kW"]
[null,"CAPEX,WIND-OFF,,BRA,","CAPEX","WIND-OFF","","BRA","",3192.4670092288125,"USD2021/kW"]
[null,"CAPEX,WIND-OFF,,CHL,","CAPEX","WIND-OFF","","CHL","",3192.4670092288125,"USD2021/kW"]
[null,"CAPEX,WIND-OFF,,CHN,","CAPEX","WIND-OFF","","CHN","",2660.3891743573436,"USD2021/kW"]
[null,"CAPEX,WIND-OFF,,COL,","CAPEX","WIND-OFF","","COL","",3192,"USD2021/kW"]
[null,"CAPEX,WIND-OFF,,CRI,","CAPEX","WIND-OFF","","CRI","",3192.4670092288125,"USD2021/kW"]
[null,"CAPEX,WIND-OFF,,DNK,","CAPEX","WIND-OFF","","DNK","",2131.477360904431,"USD2021/kW"]
[null,"CAPEX,WIND-OFF,,DZA,","CAPEX","WIND-OFF","","DZA","",3192.4670092288125,"USD2021/kW"]
[null,"CAPEX,WIND-OFF,,EGY,","CAPEX","WIND-OFF","","EGY","",3192.4670092288125,"USD2021/kW"]
[null,"CAPEX,WIND-OFF,,ESP,","CAPEX","WIND-OFF","","ESP","",3192.4670092288125,"USD2021/kW"]
[null,"CAPEX,WIND-OFF,,IDN,","CAPEX","WIND-OFF","","IDN","",3192.4670092288125,"USD2021/kW"]
[null,"CAPEX,WIND-OFF,,IND,","CAPEX","WIND-OFF","","IND","",3192.4670092288125,"USD2021/kW"]
[null,"CAPEX,WIND-OFF,,JOR,","CAPEX","WIND-OFF","","JOR","",3192.4670092288125,"USD2021/kW"]
[null,"CAPEX,WIND-OFF,,KAZ,","CAPEX","WIND-OFF","","KAZ","",3192.4670092288125,"USD2021/kW"]
[null,"CAPEX,WIND-OFF,,KEN,","CAPEX","WIND-OFF","","KEN","",3192.4670092288125,"USD2021/kW"]
[null,"CAPEX,WIND-OFF,,MAR,","CAPEX","WIND-OFF","","MAR","",3192.4670092288125,"USD2021/kW"]
[null,"CAPEX,WIND-OFF,,MAR-BEN,","CAPEX","WIND-OFF","","MAR-BEN","",3192.4670092288125,"USD2021/kW"]
[null,"CAPEX,WIND-OFF,,MAR-CAS,","CAPEX","WIND-OFF","","MAR-CAS","",3192.4670092288125,"USD2021/kW"]
[null,"CAPEX,WIND-OFF,,MAR-DAK,","CAPEX","WIND-OFF","","MAR-DAK","",3192.4670092288125,"USD2021/kW"]
[null,"CAPEX,WIND-OFF,,MAR-DRA,","CAPEX","WIND-OFF","","MAR-DRA","",3192.4670092288125,"USD2021/kW"]
[null,"CAPEX,WIND-OFF,,MAR-FES,","CAPEX","WIND-OFF","","MAR-FES","",3192.4670092288125,"USD2021/kW"]
[null,"CAPEX,WIND-OFF,,MAR-GUE,","CAPEX","WIND-OFF","","MAR-GUE","",3192.4670092288125,"USD2021/kW"]
[null,"CAPEX,WIND-OFF,,MAR-LAA,","CAPEX","WIND-OFF","","MAR-LAA","",3192.4670092288125,"USD2021/kW"]
[null,"CAPEX,WIND-OFF,,MAR-LOR,","CAPEX","WIND-OFF","","MAR-LOR","",3192.4670092288125,"USD2021/kW"]
[null,"CAPEX,WIND-OFF,,MAR-MAR,","CAPEX","WIND-OFF","","MAR-MAR","",3192.4670092288125,"USD2021/kW"]
[null,"CAPEX,WIND-OFF,,MAR-RAB,","CAPEX","WIND-OFF","","MAR-RAB","",3192.4670092288125,"USD2021/kW"]
[null,"CAPEX,WIND-OFF,,MAR-SOU,","CAPEX","WIND-OFF","","MAR-SOU","",3192.4670092288125,"USD2021/kW"]
[null,"CAPEX,WIND-OFF,,MAR-TAN,","CAPEX","WIND-OFF","","MAR-TAN","",3192.4670092288125,"USD2021/kW"]
[null,"CAPEX,WIND-OFF,,MEX,","CAPEX","WIND-OFF","","MEX","",3192.4670092288125,"USD2021/kW"]
[null,"CAPEX,WIND-OFF,,MRT,","CAPEX","WIND-OFF","","MRT","",3192.4670092288125,"USD2021/kW"]
[null,"CAPEX,WIND-OFF,,NAM,","CAPEX","WIND-OFF","","NAM","",3192.4670092288125,"USD2021/kW"]
[null,"CAPEX,WIND-OFF,,NOR,","CAPEX","WIND-OFF","","NOR","",3192.4670092288125,"USD2021/kW"]
[null,"CAPEX,WIND-OFF,,PER,","CAPEX","WIND-OFF","","PER","",3192.4670092288125,"USD2021/kW"]
[null,"CAPEX,WIND-OFF,,PRT,","CAPEX","WIND-OFF","","PRT","",3192.4670092288125,"USD2021/kW"]
[null,"CAPEX,WIND-OFF,,RUS,","CAPEX","WIND-OFF","","RUS","",3192.4670092288125,"USD2021/kW"]
[null,"CAPEX,WIND-OFF,,SAU,","CAPEX","WIND-OFF","","SAU","",3192.4670092288125,"USD2021/kW"]
[null,"CAPEX,WIND-OFF,,SWE,","CAPEX","WIND-OFF","","SWE","",3192.4670092288125,"USD2021/kW"]
[null,"CAPEX,WIND-OFF,,THA,","CAPEX","WIND-OFF","","THA","",3192.4670092288125,"USD2021/kW"]
[null,"CAPEX,WIND-OFF,,TUN,","CAPEX","WIND-OFF","","TUN","",3192.4670092288125,"USD2021/kW"]
[null,"CAPEX,WIND-OFF,,UKR,","CAPEX","WIND-OFF","","UKR","",3192.4670092288125,"USD2021/kW"]
[null,"CAPEX,WIND-OFF,,URY,","CAPEX","WIND-OFF","","URY","",3192.4670092288125,"USD2021/kW"]
[null,"CAPEX,WIND-OFF,,USA,","CAPEX","WIND-OFF","","USA","",3192.4670092288125,"USD2021/kW"]
[null,"CAPEX,WIND-OFF,,VNM,","CAPEX","WIND-OFF","","VNM","",3192.4670092288125,"USD2021/kW"]
[null,"CAPEX,WIND-OFF,,ZAF,","CAPEX","WIND-OFF","","ZAF","",3192.4670092288125,"USD2021/kW"]
[null,"CAPEX,WIND-OFF,,ZAF-EC,","CAPEX","WIND-OFF","","ZAF-EC","",3192.4670092288125,"USD2021/kW"]
[null,"CAPEX,WIND-OFF,,ZAF-FRS,","CAPEX","WIND-OFF","","ZAF-FRS","",3192.4670092288125,"USD2021/kW"]
[null,"CAPEX,WIND-OFF,,ZAF-GAU,","CAPEX","WIND-OFF","","ZAF-GAU","",3192.4670092288125,"USD2021/kW"]
[null,"CAPEX,WIND-OFF,,ZAF-KWA,","CAPEX","WIND-OFF","","ZAF-KWA","",3192.4670092288125,"USD2021/kW"]
[null,"CAPEX,WIND-OFF,,ZAF-LIM,","CAPEX","WIND-OFF","","ZAF-LIM","",3192.4670092288125,"USD2021/kW"]
[null,"CAPEX,WIND-OFF,,ZAF-MPU,","CAPEX","WIND-OFF","","ZAF-MPU","",3192.4670092288125,"USD2021/kW"]
[null,"CAPEX,WIND-OFF,,ZAF-NC,","CAPEX","WIND-OFF","","ZAF-NC","",3192.4670092288125,"USD2021/kW"]
[null,"CAPEX,WIND-OFF,,ZAF-NW,","CAPEX","WIND-OFF","","ZAF-NW","",3192.4670092288125,"USD2021/kW"]
[null,"CAPEX,WIND-OFF,,ZAF-WC,","CAPEX","WIND-OFF","","ZAF-WC","",3192.4670092288125,"USD2021/kW"]
[null,"CAPEX,WIND-ON,,ARE,","CAPEX","WIND-ON","","ARE","",1471.5191178376874,"USD2021/kW"]
[null,"CAPEX,WIND-ON,,ARG,","CAPEX","WIND-ON","","ARG","",1666.7692273242415,"USD2021/kW"]
[null,"CAPEX,WIND-ON,,ARG-BA,","CAPEX","WIND-ON","","ARG-BA","",1666.7692273242415,"USD2021/kW"]
[null,"CAPEX,WIND-ON,,ARG-CAT,","CAPEX","WIND-ON","","ARG-CAT","",1666.7692273242415,"USD2021/kW"]
[null,"CAPEX,WIND-ON,,ARG-CBA,","CAPEX","WIND-ON","","ARG-CBA","",1666.7692273242415,"USD2021/kW"]
[null,"CAPEX,WIND-ON,,ARG-CHA,","CAPEX","WIND-ON","","ARG-CHA","",1666.7692273242415,"USD2021/kW"]
[null,"CAPEX,WIND-ON,,ARG-CHU,","CAPEX","WIND-ON","","ARG-CHU","",1666.7692273242415,"USD2021/kW"]
[null,"CAPEX,WIND-ON,,ARG-COR,","CAPEX","WIND-ON","","ARG-COR","",1666.7692273242415,"USD2021/kW"]
[null,"CAPEX,WIND-ON,,ARG-CRB,","CAPEX","WIND-ON","","ARG-CRB","",1666.7692273242415,"USD2021/kW"]
[null,"CAPEX,WIND-ON,,ARG-CRU,","CAPEX","WIND-ON","","ARG-CRU","",1666.7692273242415,"USD2021/kW"]
[null,"CAPEX,WIND-ON,,ARG-EST,","CAPEX","WIND-ON","","ARG-EST","",1666.7692273242415,"USD2021/kW"]
[null,"CAPEX,WIND-ON,,ARG-FOR,","CAPEX","WIND-ON","","ARG-FOR","",1666.7692273242415,"USD2021/kW"]
[null,"CAPEX,WIND-ON,,ARG-FUE,","CAPEX","WIND-ON","","ARG-FUE","",1666.7692273242415,"USD2021/kW"]
[null,"CAPEX,WIND-ON,,ARG-JUJ,","CAPEX","WIND-ON","","ARG-JUJ","",1666.7692273242415,"USD2021/kW"]
[null,"CAPEX,WIND-ON,,ARG-LAR,","CAPEX","WIND-ON","","ARG-LAR","",1666.7692273242415,"USD2021/kW"]
[null,"CAPEX,WIND-ON,,ARG-MEN,","CAPEX","WIND-ON","","ARG-MEN","",1666.7692273242415,"USD2021/kW"]
[null,"CAPEX,WIND-ON,,ARG-MIS,","CAPEX","WIND-ON","","ARG-MIS","",1666.7692273242415,"USD2021/kW"]
[null,"CAPEX,WIND-ON,,ARG-NEG,","CAPEX","WIND-ON","","ARG-NEG","",1666.7692273242415,"USD2021/kW"]
[null,"CAPEX,WIND-ON,,ARG-NEU,","CAPEX","WIND-ON","","ARG-NEU","",1666.7692273242415,"USD2021/kW"]
[null,"CAPEX,WIND-ON,,ARG-PAM,","CAPEX","WIND-ON","","ARG-PAM","",1666.7692273242415,"USD2021/kW"]
[null,"CAPEX,WIND-ON,,ARG-RIO,","CAPEX","WIND-ON","","ARG-RIO","",1666.7692273242415,"USD2021/kW"]
[null,"CAPEX,WIND-ON,,ARG-SAF,","CAPEX","WIND-ON","","ARG-SAF","",1666.7692273242415,"USD2021/kW"]
[null,"CAPEX,WIND-ON,,ARG-SAJ,","CAPEX","WIND-ON","","ARG-SAJ","",1666.7692273242415,"USD2021/kW"]
[null,"CAPEX,WIND-ON,,ARG-SAL,","CAPEX","WIND-ON","","ARG-SAL","",1666.7692273242415,"USD2021/kW"]
[null,"CAPEX,WIND-ON,,ARG-SAT,","CAPEX","WIND-ON","","ARG-SAT","",1666.7692273242415,"USD2021/kW"]
[null,"CAPEX,WIND-ON,,ARG-TUC,","CAPEX","WIND-ON","","ARG-TUC","",1666.7692273242415,"USD2021/kW"]
[null,"CAPEX,WIND-ON,,AUS,","CAPEX","WIND-ON","","AUS","",1666.7692273242415,"USD2021/kW"]
[null,"CAPEX,WIND-ON,,BRA,","CAPEX","WIND-ON","","BRA","",1095.3054922416445,"USD2021/kW"]
[null,"CAPEX,WIND-ON,,CHL,","CAPEX","WIND-ON","","CHL","",1666.7692273242415,"USD2021/kW"]
[null,"CAPEX,WIND-ON,,CHN,","CAPEX","WIND-ON","","CHN","",1101.9725691509414,"USD2021/kW"]
[null,"CAPEX,WIND-ON,,COL,","CAPEX","WIND-ON","","COL","",1548,"USD2021/kW"]
[null,"CAPEX,WIND-ON,,CRI,","CAPEX","WIND-ON","","CRI","",1507.7118210595854,"USD2021/kW"]
[null,"CAPEX,WIND-ON,,DNK,","CAPEX","WIND-ON","","DNK","",1545.809403398425,"USD2021/kW"]
[null,"CAPEX,WIND-ON,,DZA,","CAPEX","WIND-ON","","DZA","",1802.0156446271228,"USD2021/kW"]
[null,"CAPEX,WIND-ON,,EGY,","CAPEX","WIND-ON","","EGY","",1428.6593377064928,"USD2021/kW"]
[null,"CAPEX,WIND-ON,,ESP,","CAPEX","WIND-ON","","ESP","",1115.8315541418615,"USD2021/kW"]
[null,"CAPEX,WIND-ON,,IDN,","CAPEX","WIND-ON","","IDN","",2142.9890065597392,"USD2021/kW"]
[null,"CAPEX,WIND-ON,,IND,","CAPEX","WIND-ON","","IND","",881.95903114414148,"USD2021/kW"]
[null,"CAPEX,WIND-ON,,JOR,","CAPEX","WIND-ON","","JOR","",1802.0156446271228,"USD2021/kW"]
[null,"CAPEX,WIND-ON,,KAZ,","CAPEX","WIND-ON","","KAZ","",1428.6593377064928,"USD2021/kW"]
[null,"CAPEX,WIND-ON,,KEN,","CAPEX","WIND-ON","","KEN","",1802.0156446271228,"USD2021/kW"]
[null,"CAPEX,WIND-ON,,MAR,","CAPEX","WIND-ON","","MAR","",1666.7692273242415,"USD2021/kW"]
[null,"CAPEX,WIND-ON,,MAR-BEN,","CAPEX","WIND-ON","","MAR-BEN","",1666.7692273242415,"USD2021/kW"]
[null,"CAPEX,WIND-ON,,MAR-CAS,","CAPEX","WIND-ON","","MAR-CAS","",1666.7692273242415,"USD2021/kW"]
[null,"CAPEX,WIND-ON,,MAR-DAK,","CAPEX","WIND-ON","","MAR-DAK","",1666.7692273242415,"USD2021/kW"]
[null,"CAPEX,WIND-ON,,MAR-DRA,","CAPEX","WIND-ON","","MAR-DRA","",1666.7692273242415,"USD2021/kW"]
[null,"CAPEX,WIND-ON,,MAR-FES,","CAPEX","WIND-ON","","MAR-FES","",1666.7692273242415,"USD2021/kW"]
[null,"CAPEX,WIND-ON,,MAR-GUE,","CAPEX","WIND-ON","","MAR-GUE","",1666.7692273242415,"USD2021/kW"]
[null,"CAPEX,WIND-ON,,MAR-LAA,","CAPEX","WIND-ON","","MAR-LAA","",1666.7692273242415,"USD2021/kW"]
[null,"CAPEX,WIND-ON,,MAR-LOR,","CAPEX","WIND-ON","","MAR-LOR","",1666.7692273242415,"USD2021/kW"]
[null,"CAPEX,WIND-ON,,MAR-MAR,","CAPEX","WIND-ON","","MAR-MAR","",1666.7692273242415,"USD2021/kW"]
[null,"CAPEX,WIND-ON,,MAR-RAB,","CAPEX","WIND-ON","","MAR-RAB","",1666.7692273242415,"USD2021/kW"]
[null,"CAPEX,WIND-ON,,MAR-SOU,","CAPEX","WIND-ON","","MAR-SOU","",1666.7692273242415,"USD2021/kW"]
[null,"CAPEX,WIND-ON,,MAR-TAN,","CAPEX","WIND-ON","","MAR-TAN","",1666.7692273242415,"USD2021/kW"]
[null,"CAPEX,WIND-ON,,MEX,","CAPEX","WIND-ON","","MEX","",1401.4479252639831,"USD2021/kW"]
[null,"CAPEX,WIND-ON,,MRT,","CAPEX","WIND-ON","","MRT","",1802.0156446271228,"USD2021/kW"]
[null,"CAPEX,WIND-ON,,NAM,","CAPEX","WIND-ON","","NAM","",1802.0156446271228,"USD2021/kW"]
[null,"CAPEX,WIND-ON,,NOR,","CAPEX","WIND-ON","","NOR","",1428.6593377064928,"USD2021/kW"]
[null,"CAPEX,WIND-ON,,PER,","CAPEX","WIND-ON","","PER","",1190.5494480887439,"USD2021/kW"]
[null,"CAPEX,WIND-ON,,PRT,","CAPEX","WIND-ON","","PRT","",1666.7692273242415,"USD2021/kW"]
[null,"CAPEX,WIND-ON,,RUS,","CAPEX","WIND-ON","","RUS","",1428.6593377064928,"USD2021/kW"]
[null,"CAPEX,WIND-ON,,SAU,","CAPEX","WIND-ON","","SAU","",1471.5191178376874,"USD2021/kW"]
[null,"CAPEX,WIND-ON,,SWE,","CAPEX","WIND-ON","","SWE","",1545.809403398425,"USD2021/kW"]
[null,"CAPEX,WIND-ON,,THA,","CAPEX","WIND-ON","","THA","",1471.5191178376874,"USD2021/kW"]
[null,"CAPEX,WIND-ON,,TUN,","CAPEX","WIND-ON","","TUN","",1802.0156446271228,"USD2021/kW"]
[null,"CAPEX,WIND-ON,,UKR,","CAPEX","WIND-ON","","UKR","",1428.6593377064928,"USD2021/kW"]
[null,"CAPEX,WIND-ON,,URY,","CAPEX","WIND-ON","","URY","",2142.9890065597392,"USD2021/kW"]
[null,"CAPEX,WIND-ON,,USA,","CAPEX","WIND-ON","","USA","",1315.9977110399195,"USD2021/kW"]
[null,"CAPEX,WIND-ON,,VNM,","CAPEX","WIND-ON","","VNM","",2142.9890065597392,"USD2021/kW"]
[null,"CAPEX,WIND-ON,,ZAF,","CAPEX","WIND-ON","","ZAF","",1666.7692273242415,"USD2021/kW"]
[null,"CAPEX,WIND-ON,,ZAF-EC,","CAPEX","WIND-ON","","ZAF-EC","",1666.7692273242415,"USD2021/kW"]
[null,"CAPEX,WIND-ON,,ZAF-FRS,","CAPEX","WIND-ON","","ZAF-FRS","",1666.7692273242415,"USD2021/kW"]
[null,"CAPEX,WIND-ON,,ZAF-GAU,","CAPEX","WIND-ON","","ZAF-GAU","",1666.7692273242415,"USD2021/kW"]
[null,"CAPEX,WIND-ON,,ZAF-KWA,","CAPEX","WIND-ON","","ZAF-KWA","",1666.7692273242415,"USD2021/kW"]
[null,"CAPEX,WIND-ON,,ZAF-LIM,","CAPEX","WIND-ON","","ZAF-LIM","",1666.7692273242415,"USD2021/kW"]
[null,"CAPEX,WIND-ON,,ZAF-MPU,","CAPEX","WIND-ON","","ZAF-MPU","",1666.7692273242415,"USD2021/kW"]
[null,"CAPEX,WIND-ON,,ZAF-NC,","CAPEX","WIND-ON","","ZAF-NC","",1666.7692273242415,"USD2021/kW"]
[null,"CAPEX,WIND-ON,,ZAF-NW,","CAPEX","WIND-ON","","ZAF-NW","",1666.7692273242415,"USD2021/kW"]
[null,"CAPEX,WIND-ON,,ZAF-WC,","CAPEX","WIND-ON","","ZAF-WC","",1666.7692273242415,"USD2021/kW"]
[null,"CAP-T,,,DNK,DEU","CAP-T","","","DNK","DEU",1,"kWh/a"]
[null,"CAP-T,,,DZA,ESP","CAP-T","","","DZA","ESP",1,"kWh/a"]
[null,"CAP-T,,,ESP,FRA","CAP-T","","","ESP","FRA",1,"kWh/a"]
[null,"CAP-T,,,KAZ,CHN","CAP-T","","","KAZ","CHN",1,"kWh/a"]
[null,"CAP-T,,,MAR,ESP","CAP-T","","","MAR","ESP",1,"kWh/a"]
[null,"CAP-T,,,MAR-BEN,ESP","CAP-T","","","MAR-BEN","ESP",1,"kWh/a"]
[null,"CAP-T,,,MAR-CAS,ESP","CAP-T","","","MAR-CAS","ESP",1,"kWh/a"]
[null,"CAP-T,,,MAR-DAK,ESP","CAP-T","","","MAR-DAK","ESP",1,"kWh/a"]
[null,"CAP-T,,,MAR-DRA,ESP","CAP-T","","","MAR-DRA","ESP",1,"kWh/a"]
[null,"CAP-T,,,MAR-FES,ESP","CAP-T","","","MAR-FES","ESP",1,"kWh/a"]
[null,"CAP-T,,,MAR-GUE,ESP","CAP-T","","","MAR-GUE","ESP",1,"kWh/a"]
[null,"CAP-T,,,MAR-LAA,ESP","CAP-T","","","MAR-LAA","ESP",1,"kWh/a"]
[null,"CAP-T,,,MAR-LOR,ESP","CAP-T","","","MAR-LOR","ESP",1,"kWh/a"]
[null,"CAP-T,,,MAR-MAR,ESP","CAP-T","","","MAR-MAR","ESP",1,"kWh/a"]
[null,"CAP-T,,,MAR-RAB,ESP","CAP-T","","","MAR-RAB","ESP",1,"kWh/a"]
[null,"CAP-T,,,MAR-SOU,ESP","CAP-T","","","MAR-SOU","ESP",1,"kWh/a"]
[null,"CAP-T,,,MAR-TAN,ESP","CAP-T","","","MAR-TAN","ESP",1,"kWh/a"]
[null,"CAP-T,,,MEX,USA","CAP-T","","","MEX","USA",1,"kWh/a"]
[null,"CAP-T,,,NOR,DEU","CAP-T","","","NOR","DEU",1,"kWh/a"]
[null,"CAP-T,,,PRT,ESP","CAP-T","","","PRT","ESP",1,"kWh/a"]
[null,"CAP-T,,,RUS,CHN","CAP-T","","","RUS","CHN",1,"kWh/a"]
[null,"CAP-T,,,RUS,DEU","CAP-T","","","RUS","DEU",1,"kWh/a"]
[null,"CONV,AEL-EL,H2O-L,,","CONV","AEL-EL","H2O-L","","",0.3,"kg H2O (l)/H2-G"]
[null,"CONV,ATR,EL,,","CONV","ATR","EL","","",0.10771077107710771,"kWh (el.)/H2-G","Oni et al. 2022"]
[null,"CONV,CH3OH-SB,BFUEL-L,,","CONV","CH3OH-SB","BFUEL-L","","",3.0509883673175369E-6,"kwh bunker fuel (l)/(km*CH3OH-L)","calc_shipping"]
[null,"CONV,CH3OHSYN,CO2-G,,","CONV","CH3OHSYN","CO2-G","","",0.26448241206030154,"kg CO2 (g)/kWh CH3OH (l)","Frotier Economics 2021"]
[null,"CONV,CH3OHSYN,EL,,","CONV","CH3OHSYN","EL","","",3.9989420788151285E-2,"kWh (el.)/kWh CH3OH (l)","Fasihi & Breyer 2018"]
[null,"CONV,CH4-COMP,EL,,","CONV","CH4-COMP","EL","","",0.04,"kWh (el.)/CH4-G","DNV GL 2020"]
[null,"CONV,CH4-LIQ,EL,,","CONV","CH4-LIQ","EL","","",0.15789473684210525,"kWh (el.)/CH4-L","Pospíšil et al. 2019"]
[null,"CONV,CH4-SB,BFUEL-L,,","CONV","CH4-SB","BFUEL-L","","",3.3002590965851548E-6,"kwh bunker fuel (l)/(km*CH4-L)","calc_shipping"]
[null,"CONV,CH4SYN,CO2-G,,","CONV","CH4SYN","CO2-G","","",0.20196,"kg CO2 (g)/kWh CH4 (g)"]
[null,"CONV,CH4SYN,H2O-L,,","CONV","CH4SYN","H2O-L","","",-0.14263322884012539,"kg H2O (l)/kWh CH4 (g)","Fasihi & Breyer 2018"]
[null,"CONV,CH4SYN,HEAT,,","CONV","CH4SYN","HEAT","","",-0.18495297805642633,"kWh (heat)/kWh CH4 (g)","Fasihi & Breyer 2018"]
[null,"CONV,DAC,EL,,","CONV","DAC","EL","","",0.7,"kWh (el.)/kg CO2 (g)","Kreidelmeyer et al. 2020"]
[null,"CONV,DAC,H2O-L,,","CONV","DAC","H2O-L","","",-1.4,"kg H2O (l)/kg CO2 (g)","Fasihi et al. 2019"]
[null,"CONV,DAC,HEAT,,","CONV","DAC","HEAT","","",2.2000000000000002,"kWh (heat)/kg CO2 (g)","Kreidelmeyer et al. 2020"]
[null,"CONV,DESAL,EL,,","CONV","DESAL","EL","","",3.0000000000000001E-3,"kWh (el.)/kg H2O (l)"]
[null,"CONV,DRI,EL,,","CONV","DRI","EL","","",0.10829670329670329,"kWh (el.)/kg DRI (s)","Agora Industry Transformation 2021"]
[null,"CONV,EFUELSYN,CO2-G,,","CONV","EFUELSYN","CO2-G","","",0.26455813953488377,"kg CO2 (g)/kwh CHx (l)","Frontier Economics 2021"]
[null,"CONV,EFUELSYN,EL,,","CONV","EFUELSYN","EL","","",8.5778781038374718E-2,"kWh (el.)/kwh CHx (l)","Fasihi & Breyer 2018"]
[null,"CONV,EFUELSYN,H2O-L,,","CONV","EFUELSYN","H2O-L","","",-0.24830699774266365,"kg H2O (l)/kwh CHx (l)","Fasihi & Breyer 2018"]
[null,"CONV,EFUELSYN,HEAT,,","CONV","EFUELSYN","HEAT","","",-0.40397350993377484,"kWh (heat)/kwh CHx (l)","Fasihi & Breyer 2018"]
[null,"CONV,H2-COMP,EL,,","CONV","H2-COMP","EL","","",0.04,"kWh (el.)/H2-G","DNV GL 2020"]
[null,"CONV,H2-LIQ,EL,,","CONV","H2-LIQ","EL","","",0.39013004334778256,"kWh (el.)/H2-L","DNV GL 2020"]
[null,"CONV,H2-SB,BFUEL-L,,","CONV","H2-SB","BFUEL-L","","",7.9560265731287527E-6,"kwh bunker fuel (l)/(km*H2-L)","calc_shipping"]
[null,"CONV,LOHC-CON,EL,,","CONV","LOHC-CON","EL","","",0.02,"kWh (el.)/LOHC-L","DNV GL 2020"]
[null,"CONV,LOHC-REC,EL,,","CONV","LOHC-REC","EL","","",2.8502850285028507E-2,"kWh (el.)/H2-G","Staiß et al. 2022 nach Wasserscheid"]
[null,"CONV,LOHC-REC,HEAT,,","CONV","LOHC-REC","HEAT","","",0.4534534534534535,"kWh (heat)/H2-G","DNV GL 2020"]
[null,"CONV,LOHC-SB,BFUEL-L,,","CONV","LOHC-SB","BFUEL-L","","",9.9204160904178207E-6,"kwh bunker fuel (l)/(km*LOHC-L)","calc_shipping"]
[null,"CONV,NH3-REC,EL,,","CONV","NH3-REC","EL","","",1.3923999999999999E-2,"kWh (el.)/H2-G","NGN; Equinor 2018"]
[null,"CONV,NH3-SB,BFUEL-L,,","CONV","NH3-SB","BFUEL-L","","",5.3436561034163411E-6,"kwh bunker fuel (l)/(km*NH3-L)","calc_shipping"]
[null,"CONV,NH3SYN,EL,,","CONV","NH3SYN","EL","","",0.14192307692307693,"kWh (el.)/kWh NH3 (l)","Fasihi et al. 2021"]
[null,"CONV,NH3SYN,N2-G,,","CONV","NH3SYN","N2-G","","",0.15980769230769232,"kg N2 (g)/kWh NH3 (l)","Fasihi et al. 2021"]
[null,"CONV,PEM-EL,H2O-L,,","CONV","PEM-EL","H2O-L","","",0.3,"kg H2O (l)/H2-G"]
[null,"CONV,REGASATR,EL,,","CONV","REGASATR","EL","","",0.10771077107710771,"kWh (el.)/H2-G","combined values"]
[null,"CONV,SOEC-EL,H2O-L,,","CONV","SOEC-EL","H2O-L","","",0.3,"kg H2O (l)/H2-G"]
[null,"CONV,SYN-S,CHX-L,,","CONV","SYN-S","CHX-L","","",1.2641936395012889E-6,"kwh CHx (l)/(km*CHX-L)","calc_shipping"]
[null,"CONV,SYN-SB,BFUEL-L,,","CONV","SYN-SB","BFUEL-L","","",1.2641936395012889E-6,"kwh bunker fuel (l)/(km*CHX-L)","calc_shipping"]
[null,"DST-S-D,,,ARE,CHN","DST-S-D","","","ARE","CHN",10367.799999999999,null,"CERDI"]
[null,"DST-S-D,,,ARE,DEU","DST-S-D","","","ARE","DEU",12441.9,null,"CERDI"]
[null,"DST-S-D,,,ARE,ESP","DST-S-D","","","ARE","ESP",8992.74,null,"CERDI"]
[null,"DST-S-D,,,ARE,FRA","DST-S-D","","","ARE","FRA",7580.97,null,"CERDI"]
[null,"DST-S-D,,,ARE,IND","DST-S-D","","","ARE","IND",1804.27,null,"CERDI"]
[null,"DST-S-D,,,ARE,JPN","DST-S-D","","","ARE","JPN",11276.3,null,"CERDI"]
[null,"DST-S-D,,,ARE,KOR","DST-S-D","","","ARE","KOR",10955.6,null,"CERDI"]
[null,"DST-S-D,,,ARE,NLD","DST-S-D","","","ARE","NLD",11975.9,null,"CERDI"]
[null,"DST-S-D,,,ARE,USA","DST-S-D","","","ARE","USA",18373.3,null,"CERDI"]
[null,"DST-S-D,,,ARG,CHN","DST-S-D","","","ARG","CHN",19486.8,null,"CERDI"]
[null,"DST-S-D,,,ARG,DEU","DST-S-D","","","ARG","DEU",12728.796,null,"SEA-DISTANCES.ORG"]
[null,"DST-S-D,,,ARG,ESP","DST-S-D","","","ARG","ESP",11766,null,"CERDI"]
[null,"DST-S-D,,,ARG,FRA","DST-S-D","","","ARG","FRA",13195.9,null,"CERDI"]
[null,"DST-S-D,,,ARG,IND","DST-S-D","","","ARG","IND",16155.2,null,"CERDI"]
[null,"DST-S-D,,,ARG,JPN","DST-S-D","","","ARG","JPN",18848.2,null,"CERDI"]
[null,"DST-S-D,,,ARG,KOR","DST-S-D","","","ARG","KOR",19350,null,"CERDI"]
[null,"DST-S-D,,,ARG,NLD","DST-S-D","","","ARG","NLD",13750.5,null,"CERDI"]
[null,"DST-S-D,,,ARG,USA","DST-S-D","","","ARG","USA",12589.7,null,"CERDI"]
[null,"DST-S-D,,,ARG-BA,CHN","DST-S-D","","","ARG-BA","CHN",19486.8,null,"CERDI"]
[null,"DST-S-D,,,ARG-BA,DEU","DST-S-D","","","ARG-BA","DEU",12728.796,null,"SEA-DISTANCES.ORG"]
[null,"DST-S-D,,,ARG-BA,ESP","DST-S-D","","","ARG-BA","ESP",11766,null,"CERDI"]
[null,"DST-S-D,,,ARG-BA,FRA","DST-S-D","","","ARG-BA","FRA",13195.9,null,"CERDI"]
[null,"DST-S-D,,,ARG-BA,IND","DST-S-D","","","ARG-BA","IND",16155.2,null,"CERDI"]
[null,"DST-S-D,,,ARG-BA,JPN","DST-S-D","","","ARG-BA","JPN",18848.2,null,"CERDI"]
[null,"DST-S-D,,,ARG-BA,KOR","DST-S-D","","","ARG-BA","KOR",19350,null,"CERDI"]
[null,"DST-S-D,,,ARG-BA,NLD","DST-S-D","","","ARG-BA","NLD",13750.5,null,"CERDI"]
[null,"DST-S-D,,,ARG-BA,USA","DST-S-D","","","ARG-BA","USA",12589.7,null,"CERDI"]
[null,"DST-S-D,,,ARG-CAT,CHN","DST-S-D","","","ARG-CAT","CHN",19486.8,null,"CERDI"]
[null,"DST-S-D,,,ARG-CAT,DEU","DST-S-D","","","ARG-CAT","DEU",12728.796,null,"SEA-DISTANCES.ORG"]
[null,"DST-S-D,,,ARG-CAT,ESP","DST-S-D","","","ARG-CAT","ESP",11766,null,"CERDI"]
[null,"DST-S-D,,,ARG-CAT,FRA","DST-S-D","","","ARG-CAT","FRA",13195.9,null,"CERDI"]
[null,"DST-S-D,,,ARG-CAT,IND","DST-S-D","","","ARG-CAT","IND",16155.2,null,"CERDI"]
[null,"DST-S-D,,,ARG-CAT,JPN","DST-S-D","","","ARG-CAT","JPN",18848.2,null,"CERDI"]
[null,"DST-S-D,,,ARG-CAT,KOR","DST-S-D","","","ARG-CAT","KOR",19350,null,"CERDI"]
[null,"DST-S-D,,,ARG-CAT,NLD","DST-S-D","","","ARG-CAT","NLD",13750.5,null,"CERDI"]
[null,"DST-S-D,,,ARG-CAT,USA","DST-S-D","","","ARG-CAT","USA",12589.7,null,"CERDI"]
[null,"DST-S-D,,,ARG-CBA,CHN","DST-S-D","","","ARG-CBA","CHN",19486.8,null,"CERDI"]
[null,"DST-S-D,,,ARG-CBA,DEU","DST-S-D","","","ARG-CBA","DEU",12728.796,null,"SEA-DISTANCES.ORG"]
[null,"DST-S-D,,,ARG-CBA,ESP","DST-S-D","","","ARG-CBA","ESP",11766,null,"CERDI"]
[null,"DST-S-D,,,ARG-CBA,FRA","DST-S-D","","","ARG-CBA","FRA",13195.9,null,"CERDI"]
[null,"DST-S-D,,,ARG-CBA,IND","DST-S-D","","","ARG-CBA","IND",16155.2,null,"CERDI"]
[null,"DST-S-D,,,ARG-CBA,JPN","DST-S-D","","","ARG-CBA","JPN",18848.2,null,"CERDI"]
[null,"DST-S-D,,,ARG-CBA,KOR","DST-S-D","","","ARG-CBA","KOR",19350,null,"CERDI"]
[null,"DST-S-D,,,ARG-CBA,NLD","DST-S-D","","","ARG-CBA","NLD",13750.5,null,"CERDI"]
[null,"DST-S-D,,,ARG-CBA,USA","DST-S-D","","","ARG-CBA","USA",12589.7,null,"CERDI"]
[null,"DST-S-D,,,ARG-CHA,CHN","DST-S-D","","","ARG-CHA","CHN",19486.8,null,"CERDI"]
[null,"DST-S-D,,,ARG-CHA,DEU","DST-S-D","","","ARG-CHA","DEU",12728.796,null,"SEA-DISTANCES.ORG"]
[null,"DST-S-D,,,ARG-CHA,ESP","DST-S-D","","","ARG-CHA","ESP",11766,null,"CERDI"]
[null,"DST-S-D,,,ARG-CHA,FRA","DST-S-D","","","ARG-CHA","FRA",13195.9,null,"CERDI"]
[null,"DST-S-D,,,ARG-CHA,IND","DST-S-D","","","ARG-CHA","IND",16155.2,null,"CERDI"]
[null,"DST-S-D,,,ARG-CHA,JPN","DST-S-D","","","ARG-CHA","JPN",18848.2,null,"CERDI"]
[null,"DST-S-D,,,ARG-CHA,KOR","DST-S-D","","","ARG-CHA","KOR",19350,null,"CERDI"]
[null,"DST-S-D,,,ARG-CHA,NLD","DST-S-D","","","ARG-CHA","NLD",13750.5,null,"CERDI"]
[null,"DST-S-D,,,ARG-CHA,USA","DST-S-D","","","ARG-CHA","USA",12589.7,null,"CERDI"]
[null,"DST-S-D,,,ARG-CHU,CHN","DST-S-D","","","ARG-CHU","CHN",19486.8,null,"CERDI"]
[null,"DST-S-D,,,ARG-CHU,DEU","DST-S-D","","","ARG-CHU","DEU",12728.796,null,"SEA-DISTANCES.ORG"]
[null,"DST-S-D,,,ARG-CHU,ESP","DST-S-D","","","ARG-CHU","ESP",11766,null,"CERDI"]
[null,"DST-S-D,,,ARG-CHU,FRA","DST-S-D","","","ARG-CHU","FRA",13195.9,null,"CERDI"]
[null,"DST-S-D,,,ARG-CHU,IND","DST-S-D","","","ARG-CHU","IND",16155.2,null,"CERDI"]
[null,"DST-S-D,,,ARG-CHU,JPN","DST-S-D","","","ARG-CHU","JPN",18848.2,null,"CERDI"]
[null,"DST-S-D,,,ARG-CHU,KOR","DST-S-D","","","ARG-CHU","KOR",19350,null,"CERDI"]
[null,"DST-S-D,,,ARG-CHU,NLD","DST-S-D","","","ARG-CHU","NLD",13750.5,null,"CERDI"]
[null,"DST-S-D,,,ARG-CHU,USA","DST-S-D","","","ARG-CHU","USA",12589.7,null,"CERDI"]
[null,"DST-S-D,,,ARG-COR,CHN","DST-S-D","","","ARG-COR","CHN",19486.8,null,"CERDI"]
[null,"DST-S-D,,,ARG-COR,DEU","DST-S-D","","","ARG-COR","DEU",12728.796,null,"SEA-DISTANCES.ORG"]
[null,"DST-S-D,,,ARG-COR,ESP","DST-S-D","","","ARG-COR","ESP",11766,null,"CERDI"]
[null,"DST-S-D,,,ARG-COR,FRA","DST-S-D","","","ARG-COR","FRA",13195.9,null,"CERDI"]
[null,"DST-S-D,,,ARG-COR,IND","DST-S-D","","","ARG-COR","IND",16155.2,null,"CERDI"]
[null,"DST-S-D,,,ARG-COR,JPN","DST-S-D","","","ARG-COR","JPN",18848.2,null,"CERDI"]
[null,"DST-S-D,,,ARG-COR,KOR","DST-S-D","","","ARG-COR","KOR",19350,null,"CERDI"]
[null,"DST-S-D,,,ARG-COR,NLD","DST-S-D","","","ARG-COR","NLD",13750.5,null,"CERDI"]
[null,"DST-S-D,,,ARG-COR,USA","DST-S-D","","","ARG-COR","USA",12589.7,null,"CERDI"]
[null,"DST-S-D,,,ARG-CRB,CHN","DST-S-D","","","ARG-CRB","CHN",19486.8,null,"CERDI"]
[null,"DST-S-D,,,ARG-CRB,DEU","DST-S-D","","","ARG-CRB","DEU",12728.796,null,"SEA-DISTANCES.ORG"]
[null,"DST-S-D,,,ARG-CRB,ESP","DST-S-D","","","ARG-CRB","ESP",11766,null,"CERDI"]
[null,"DST-S-D,,,ARG-CRB,FRA","DST-S-D","","","ARG-CRB","FRA",13195.9,null,"CERDI"]
[null,"DST-S-D,,,ARG-CRB,IND","DST-S-D","","","ARG-CRB","IND",16155.2,null,"CERDI"]
[null,"DST-S-D,,,ARG-CRB,JPN","DST-S-D","","","ARG-CRB","JPN",18848.2,null,"CERDI"]
[null,"DST-S-D,,,ARG-CRB,KOR","DST-S-D","","","ARG-CRB","KOR",19350,null,"CERDI"]
[null,"DST-S-D,,,ARG-CRB,NLD","DST-S-D","","","ARG-CRB","NLD",13750.5,null,"CERDI"]
[null,"DST-S-D,,,ARG-CRB,USA","DST-S-D","","","ARG-CRB","USA",12589.7,null,"CERDI"]
[null,"DST-S-D,,,ARG-CRU,CHN","DST-S-D","","","ARG-CRU","CHN",19486.8,null,"CERDI"]
[null,"DST-S-D,,,ARG-CRU,DEU","DST-S-D","","","ARG-CRU","DEU",12728.796,null,"SEA-DISTANCES.ORG"]
[null,"DST-S-D,,,ARG-CRU,ESP","DST-S-D","","","ARG-CRU","ESP",11766,null,"CERDI"]
[null,"DST-S-D,,,ARG-CRU,FRA","DST-S-D","","","ARG-CRU","FRA",13195.9,null,"CERDI"]
[null,"DST-S-D,,,ARG-CRU,IND","DST-S-D","","","ARG-CRU","IND",16155.2,null,"CERDI"]
[null,"DST-S-D,,,ARG-CRU,JPN","DST-S-D","","","ARG-CRU","JPN",18848.2,null,"CERDI"]
[null,"DST-S-D,,,ARG-CRU,KOR","DST-S-D","","","ARG-CRU","KOR",19350,null,"CERDI"]
[null,"DST-S-D,,,ARG-CRU,NLD","DST-S-D","","","ARG-CRU","NLD",13750.5,null,"CERDI"]
[null,"DST-S-D,,,ARG-CRU,USA","DST-S-D","","","ARG-CRU","USA",12589.7,null,"CERDI"]
[null,"DST-S-D,,,ARG-EST,CHN","DST-S-D","","","ARG-EST","CHN",19486.8,null,"CERDI"]
[null,"DST-S-D,,,ARG-EST,DEU","DST-S-D","","","ARG-EST","DEU",12728.796,null,"SEA-DISTANCES.ORG"]
[null,"DST-S-D,,,ARG-EST,ESP","DST-S-D","","","ARG-EST","ESP",11766,null,"CERDI"]
[null,"DST-S-D,,,ARG-EST,FRA","DST-S-D","","","ARG-EST","FRA",13195.9,null,"CERDI"]
[null,"DST-S-D,,,ARG-EST,IND","DST-S-D","","","ARG-EST","IND",16155.2,null,"CERDI"]
[null,"DST-S-D,,,ARG-EST,JPN","DST-S-D","","","ARG-EST","JPN",18848.2,null,"CERDI"]
[null,"DST-S-D,,,ARG-EST,KOR","DST-S-D","","","ARG-EST","KOR",19350,null,"CERDI"]
[null,"DST-S-D,,,ARG-EST,NLD","DST-S-D","","","ARG-EST","NLD",13750.5,null,"CERDI"]
[null,"DST-S-D,,,ARG-EST,USA","DST-S-D","","","ARG-EST","USA",12589.7,null,"CERDI"]
[null,"DST-S-D,,,ARG-FOR,CHN","DST-S-D","","","ARG-FOR","CHN",19486.8,null,"CERDI"]
[null,"DST-S-D,,,ARG-FOR,DEU","DST-S-D","","","ARG-FOR","DEU",12728.796,null,"SEA-DISTANCES.ORG"]
[null,"DST-S-D,,,ARG-FOR,ESP","DST-S-D","","","ARG-FOR","ESP",11766,null,"CERDI"]
[null,"DST-S-D,,,ARG-FOR,FRA","DST-S-D","","","ARG-FOR","FRA",13195.9,null,"CERDI"]
[null,"DST-S-D,,,ARG-FOR,IND","DST-S-D","","","ARG-FOR","IND",16155.2,null,"CERDI"]
[null,"DST-S-D,,,ARG-FOR,JPN","DST-S-D","","","ARG-FOR","JPN",18848.2,null,"CERDI"]
[null,"DST-S-D,,,ARG-FOR,KOR","DST-S-D","","","ARG-FOR","KOR",19350,null,"CERDI"]
[null,"DST-S-D,,,ARG-FOR,NLD","DST-S-D","","","ARG-FOR","NLD",13750.5,null,"CERDI"]
[null,"DST-S-D,,,ARG-FOR,USA","DST-S-D","","","ARG-FOR","USA",12589.7,null,"CERDI"]
[null,"DST-S-D,,,ARG-FUE,CHN","DST-S-D","","","ARG-FUE","CHN",19486.8,null,"CERDI"]
[null,"DST-S-D,,,ARG-FUE,DEU","DST-S-D","","","ARG-FUE","DEU",12728.796,null,"SEA-DISTANCES.ORG"]
[null,"DST-S-D,,,ARG-FUE,ESP","DST-S-D","","","ARG-FUE","ESP",11766,null,"CERDI"]
[null,"DST-S-D,,,ARG-FUE,FRA","DST-S-D","","","ARG-FUE","FRA",13195.9,null,"CERDI"]
[null,"DST-S-D,,,ARG-FUE,IND","DST-S-D","","","ARG-FUE","IND",16155.2,null,"CERDI"]
[null,"DST-S-D,,,ARG-FUE,JPN","DST-S-D","","","ARG-FUE","JPN",18848.2,null,"CERDI"]
[null,"DST-S-D,,,ARG-FUE,KOR","DST-S-D","","","ARG-FUE","KOR",19350,null,"CERDI"]
[null,"DST-S-D,,,ARG-FUE,NLD","DST-S-D","","","ARG-FUE","NLD",13750.5,null,"CERDI"]
[null,"DST-S-D,,,ARG-FUE,USA","DST-S-D","","","ARG-FUE","USA",12589.7,null,"CERDI"]
[null,"DST-S-D,,,ARG-JUJ,CHN","DST-S-D","","","ARG-JUJ","CHN",19486.8,null,"CERDI"]
[null,"DST-S-D,,,ARG-JUJ,DEU","DST-S-D","","","ARG-JUJ","DEU",12728.796,null,"SEA-DISTANCES.ORG"]
[null,"DST-S-D,,,ARG-JUJ,ESP","DST-S-D","","","ARG-JUJ","ESP",11766,null,"CERDI"]
[null,"DST-S-D,,,ARG-JUJ,FRA","DST-S-D","","","ARG-JUJ","FRA",13195.9,null,"CERDI"]
[null,"DST-S-D,,,ARG-JUJ,IND","DST-S-D","","","ARG-JUJ","IND",16155.2,null,"CERDI"]
[null,"DST-S-D,,,ARG-JUJ,JPN","DST-S-D","","","ARG-JUJ","JPN",18848.2,null,"CERDI"]
[null,"DST-S-D,,,ARG-JUJ,KOR","DST-S-D","","","ARG-JUJ","KOR",19350,null,"CERDI"]
[null,"DST-S-D,,,ARG-JUJ,NLD","DST-S-D","","","ARG-JUJ","NLD",13750.5,null,"CERDI"]
[null,"DST-S-D,,,ARG-JUJ,USA","DST-S-D","","","ARG-JUJ","USA",12589.7,null,"CERDI"]
[null,"DST-S-D,,,ARG-LAR,CHN","DST-S-D","","","ARG-LAR","CHN",19486.8,null,"CERDI"]
[null,"DST-S-D,,,ARG-LAR,DEU","DST-S-D","","","ARG-LAR","DEU",12728.796,null,"SEA-DISTANCES.ORG"]
[null,"DST-S-D,,,ARG-LAR,ESP","DST-S-D","","","ARG-LAR","ESP",11766,null,"CERDI"]
[null,"DST-S-D,,,ARG-LAR,FRA","DST-S-D","","","ARG-LAR","FRA",13195.9,null,"CERDI"]
[null,"DST-S-D,,,ARG-LAR,IND","DST-S-D","","","ARG-LAR","IND",16155.2,null,"CERDI"]
[null,"DST-S-D,,,ARG-LAR,JPN","DST-S-D","","","ARG-LAR","JPN",18848.2,null,"CERDI"]
[null,"DST-S-D,,,ARG-LAR,KOR","DST-S-D","","","ARG-LAR","KOR",19350,null,"CERDI"]
[null,"DST-S-D,,,ARG-LAR,NLD","DST-S-D","","","ARG-LAR","NLD",13750.5,null,"CERDI"]
[null,"DST-S-D,,,ARG-LAR,USA","DST-S-D","","","ARG-LAR","USA",12589.7,null,"CERDI"]
[null,"DST-S-D,,,ARG-MEN,CHN","DST-S-D","","","ARG-MEN","CHN",19486.8,null,"CERDI"]
[null,"DST-S-D,,,ARG-MEN,DEU","DST-S-D","","","ARG-MEN","DEU",12728.796,null,"SEA-DISTANCES.ORG"]
[null,"DST-S-D,,,ARG-MEN,ESP","DST-S-D","","","ARG-MEN","ESP",11766,null,"CERDI"]
[null,"DST-S-D,,,ARG-MEN,FRA","DST-S-D","","","ARG-MEN","FRA",13195.9,null,"CERDI"]
[null,"DST-S-D,,,ARG-MEN,IND","DST-S-D","","","ARG-MEN","IND",16155.2,null,"CERDI"]
[null,"DST-S-D,,,ARG-MEN,JPN","DST-S-D","","","ARG-MEN","JPN",18848.2,null,"CERDI"]
[null,"DST-S-D,,,ARG-MEN,KOR","DST-S-D","","","ARG-MEN","KOR",19350,null,"CERDI"]
[null,"DST-S-D,,,ARG-MEN,NLD","DST-S-D","","","ARG-MEN","NLD",13750.5,null,"CERDI"]
[null,"DST-S-D,,,ARG-MEN,USA","DST-S-D","","","ARG-MEN","USA",12589.7,null,"CERDI"]
[null,"DST-S-D,,,ARG-MIS,CHN","DST-S-D","","","ARG-MIS","CHN",19486.8,null,"CERDI"]
[null,"DST-S-D,,,ARG-MIS,DEU","DST-S-D","","","ARG-MIS","DEU",12728.796,null,"SEA-DISTANCES.ORG"]
[null,"DST-S-D,,,ARG-MIS,ESP","DST-S-D","","","ARG-MIS","ESP",11766,null,"CERDI"]
[null,"DST-S-D,,,ARG-MIS,FRA","DST-S-D","","","ARG-MIS","FRA",13195.9,null,"CERDI"]
[null,"DST-S-D,,,ARG-MIS,IND","DST-S-D","","","ARG-MIS","IND",16155.2,null,"CERDI"]
[null,"DST-S-D,,,ARG-MIS,JPN","DST-S-D","","","ARG-MIS","JPN",18848.2,null,"CERDI"]
[null,"DST-S-D,,,ARG-MIS,KOR","DST-S-D","","","ARG-MIS","KOR",19350,null,"CERDI"]
[null,"DST-S-D,,,ARG-MIS,NLD","DST-S-D","","","ARG-MIS","NLD",13750.5,null,"CERDI"]
[null,"DST-S-D,,,ARG-MIS,USA","DST-S-D","","","ARG-MIS","USA",12589.7,null,"CERDI"]
[null,"DST-S-D,,,ARG-NEG,CHN","DST-S-D","","","ARG-NEG","CHN",19486.8,null,"CERDI"]
[null,"DST-S-D,,,ARG-NEG,DEU","DST-S-D","","","ARG-NEG","DEU",12728.796,null,"SEA-DISTANCES.ORG"]
[null,"DST-S-D,,,ARG-NEG,ESP","DST-S-D","","","ARG-NEG","ESP",11766,null,"CERDI"]
[null,"DST-S-D,,,ARG-NEG,FRA","DST-S-D","","","ARG-NEG","FRA",13195.9,null,"CERDI"]
[null,"DST-S-D,,,ARG-NEG,IND","DST-S-D","","","ARG-NEG","IND",16155.2,null,"CERDI"]
[null,"DST-S-D,,,ARG-NEG,JPN","DST-S-D","","","ARG-NEG","JPN",18848.2,null,"CERDI"]
[null,"DST-S-D,,,ARG-NEG,KOR","DST-S-D","","","ARG-NEG","KOR",19350,null,"CERDI"]
[null,"DST-S-D,,,ARG-NEG,NLD","DST-S-D","","","ARG-NEG","NLD",13750.5,null,"CERDI"]
[null,"DST-S-D,,,ARG-NEG,USA","DST-S-D","","","ARG-NEG","USA",12589.7,null,"CERDI"]
[null,"DST-S-D,,,ARG-NEU,CHN","DST-S-D","","","ARG-NEU","CHN",19486.8,null,"CERDI"]
[null,"DST-S-D,,,ARG-NEU,DEU","DST-S-D","","","ARG-NEU","DEU",12728.796,null,"SEA-DISTANCES.ORG"]
[null,"DST-S-D,,,ARG-NEU,ESP","DST-S-D","","","ARG-NEU","ESP",11766,null,"CERDI"]
[null,"DST-S-D,,,ARG-NEU,FRA","DST-S-D","","","ARG-NEU","FRA",13195.9,null,"CERDI"]
[null,"DST-S-D,,,ARG-NEU,IND","DST-S-D","","","ARG-NEU","IND",16155.2,null,"CERDI"]
[null,"DST-S-D,,,ARG-NEU,JPN","DST-S-D","","","ARG-NEU","JPN",18848.2,null,"CERDI"]
[null,"DST-S-D,,,ARG-NEU,KOR","DST-S-D","","","ARG-NEU","KOR",19350,null,"CERDI"]
[null,"DST-S-D,,,ARG-NEU,NLD","DST-S-D","","","ARG-NEU","NLD",13750.5,null,"CERDI"]
[null,"DST-S-D,,,ARG-NEU,USA","DST-S-D","","","ARG-NEU","USA",12589.7,null,"CERDI"]
[null,"DST-S-D,,,ARG-PAM,CHN","DST-S-D","","","ARG-PAM","CHN",19486.8,null,"CERDI"]
[null,"DST-S-D,,,ARG-PAM,DEU","DST-S-D","","","ARG-PAM","DEU",12728.796,null,"SEA-DISTANCES.ORG"]
[null,"DST-S-D,,,ARG-PAM,ESP","DST-S-D","","","ARG-PAM","ESP",11766,null,"CERDI"]
[null,"DST-S-D,,,ARG-PAM,FRA","DST-S-D","","","ARG-PAM","FRA",13195.9,null,"CERDI"]
[null,"DST-S-D,,,ARG-PAM,IND","DST-S-D","","","ARG-PAM","IND",16155.2,null,"CERDI"]
[null,"DST-S-D,,,ARG-PAM,JPN","DST-S-D","","","ARG-PAM","JPN",18848.2,null,"CERDI"]
[null,"DST-S-D,,,ARG-PAM,KOR","DST-S-D","","","ARG-PAM","KOR",19350,null,"CERDI"]
[null,"DST-S-D,,,ARG-PAM,NLD","DST-S-D","","","ARG-PAM","NLD",13750.5,null,"CERDI"]
[null,"DST-S-D,,,ARG-PAM,USA","DST-S-D","","","ARG-PAM","USA",12589.7,null,"CERDI"]
[null,"DST-S-D,,,ARG-RIO,CHN","DST-S-D","","","ARG-RIO","CHN",19486.8,null,"CERDI"]
[null,"DST-S-D,,,ARG-RIO,DEU","DST-S-D","","","ARG-RIO","DEU",12728.796,null,"SEA-DISTANCES.ORG"]
[null,"DST-S-D,,,ARG-RIO,ESP","DST-S-D","","","ARG-RIO","ESP",11766,null,"CERDI"]
[null,"DST-S-D,,,ARG-RIO,FRA","DST-S-D","","","ARG-RIO","FRA",13195.9,null,"CERDI"]
[null,"DST-S-D,,,ARG-RIO,IND","DST-S-D","","","ARG-RIO","IND",16155.2,null,"CERDI"]
[null,"DST-S-D,,,ARG-RIO,JPN","DST-S-D","","","ARG-RIO","JPN",18848.2,null,"CERDI"]
[null,"DST-S-D,,,ARG-RIO,KOR","DST-S-D","","","ARG-RIO","KOR",19350,null,"CERDI"]
[null,"DST-S-D,,,ARG-RIO,NLD","DST-S-D","","","ARG-RIO","NLD",13750.5,null,"CERDI"]
[null,"DST-S-D,,,ARG-RIO,USA","DST-S-D","","","ARG-RIO","USA",12589.7,null,"CERDI"]
[null,"DST-S-D,,,ARG-SAF,CHN","DST-S-D","","","ARG-SAF","CHN",19486.8,null,"CERDI"]
[null,"DST-S-D,,,ARG-SAF,DEU","DST-S-D","","","ARG-SAF","DEU",12728.796,null,"SEA-DISTANCES.ORG"]
[null,"DST-S-D,,,ARG-SAF,ESP","DST-S-D","","","ARG-SAF","ESP",11766,null,"CERDI"]
[null,"DST-S-D,,,ARG-SAF,FRA","DST-S-D","","","ARG-SAF","FRA",13195.9,null,"CERDI"]
[null,"DST-S-D,,,ARG-SAF,IND","DST-S-D","","","ARG-SAF","IND",16155.2,null,"CERDI"]
[null,"DST-S-D,,,ARG-SAF,JPN","DST-S-D","","","ARG-SAF","JPN",18848.2,null,"CERDI"]
[null,"DST-S-D,,,ARG-SAF,KOR","DST-S-D","","","ARG-SAF","KOR",19350,null,"CERDI"]
[null,"DST-S-D,,,ARG-SAF,NLD","DST-S-D","","","ARG-SAF","NLD",13750.5,null,"CERDI"]
[null,"DST-S-D,,,ARG-SAF,USA","DST-S-D","","","ARG-SAF","USA",12589.7,null,"CERDI"]
[null,"DST-S-D,,,ARG-SAJ,CHN","DST-S-D","","","ARG-SAJ","CHN",19486.8,null,"CERDI"]
[null,"DST-S-D,,,ARG-SAJ,DEU","DST-S-D","","","ARG-SAJ","DEU",12728.796,null,"SEA-DISTANCES.ORG"]
[null,"DST-S-D,,,ARG-SAJ,ESP","DST-S-D","","","ARG-SAJ","ESP",11766,null,"CERDI"]
[null,"DST-S-D,,,ARG-SAJ,FRA","DST-S-D","","","ARG-SAJ","FRA",13195.9,null,"CERDI"]
[null,"DST-S-D,,,ARG-SAJ,IND","DST-S-D","","","ARG-SAJ","IND",16155.2,null,"CERDI"]
[null,"DST-S-D,,,ARG-SAJ,JPN","DST-S-D","","","ARG-SAJ","JPN",18848.2,null,"CERDI"]
[null,"DST-S-D,,,ARG-SAJ,KOR","DST-S-D","","","ARG-SAJ","KOR",19350,null,"CERDI"]
[null,"DST-S-D,,,ARG-SAJ,NLD","DST-S-D","","","ARG-SAJ","NLD",13750.5,null,"CERDI"]
[null,"DST-S-D,,,ARG-SAJ,USA","DST-S-D","","","ARG-SAJ","USA",12589.7,null,"CERDI"]
[null,"DST-S-D,,,ARG-SAL,CHN","DST-S-D","","","ARG-SAL","CHN",19486.8,null,"CERDI"]
[null,"DST-S-D,,,ARG-SAL,DEU","DST-S-D","","","ARG-SAL","DEU",12728.796,null,"SEA-DISTANCES.ORG"]
[null,"DST-S-D,,,ARG-SAL,ESP","DST-S-D","","","ARG-SAL","ESP",11766,null,"CERDI"]
[null,"DST-S-D,,,ARG-SAL,FRA","DST-S-D","","","ARG-SAL","FRA",13195.9,null,"CERDI"]
[null,"DST-S-D,,,ARG-SAL,IND","DST-S-D","","","ARG-SAL","IND",16155.2,null,"CERDI"]
[null,"DST-S-D,,,ARG-SAL,JPN","DST-S-D","","","ARG-SAL","JPN",18848.2,null,"CERDI"]
[null,"DST-S-D,,,ARG-SAL,KOR","DST-S-D","","","ARG-SAL","KOR",19350,null,"CERDI"]
[null,"DST-S-D,,,ARG-SAL,NLD","DST-S-D","","","ARG-SAL","NLD",13750.5,null,"CERDI"]
[null,"DST-S-D,,,ARG-SAL,USA","DST-S-D","","","ARG-SAL","USA",12589.7,null,"CERDI"]
[null,"DST-S-D,,,ARG-SAT,CHN","DST-S-D","","","ARG-SAT","CHN",19486.8,null,"CERDI"]
[null,"DST-S-D,,,ARG-SAT,DEU","DST-S-D","","","ARG-SAT","DEU",12728.796,null,"SEA-DISTANCES.ORG"]
[null,"DST-S-D,,,ARG-SAT,ESP","DST-S-D","","","ARG-SAT","ESP",11766,null,"CERDI"]
[null,"DST-S-D,,,ARG-SAT,FRA","DST-S-D","","","ARG-SAT","FRA",13195.9,null,"CERDI"]
[null,"DST-S-D,,,ARG-SAT,IND","DST-S-D","","","ARG-SAT","IND",16155.2,null,"CERDI"]
[null,"DST-S-D,,,ARG-SAT,JPN","DST-S-D","","","ARG-SAT","JPN",18848.2,null,"CERDI"]
[null,"DST-S-D,,,ARG-SAT,KOR","DST-S-D","","","ARG-SAT","KOR",19350,null,"CERDI"]
[null,"DST-S-D,,,ARG-SAT,NLD","DST-S-D","","","ARG-SAT","NLD",13750.5,null,"CERDI"]
[null,"DST-S-D,,,ARG-SAT,USA","DST-S-D","","","ARG-SAT","USA",12589.7,null,"CERDI"]
[null,"DST-S-D,,,ARG-TUC,CHN","DST-S-D","","","ARG-TUC","CHN",19486.8,null,"CERDI"]
[null,"DST-S-D,,,ARG-TUC,DEU","DST-S-D","","","ARG-TUC","DEU",12728.796,null,"SEA-DISTANCES.ORG"]
[null,"DST-S-D,,,ARG-TUC,ESP","DST-S-D","","","ARG-TUC","ESP",11766,null,"CERDI"]
[null,"DST-S-D,,,ARG-TUC,FRA","DST-S-D","","","ARG-TUC","FRA",13195.9,null,"CERDI"]
[null,"DST-S-D,,,ARG-TUC,IND","DST-S-D","","","ARG-TUC","IND",16155.2,null,"CERDI"]
[null,"DST-S-D,,,ARG-TUC,JPN","DST-S-D","","","ARG-TUC","JPN",18848.2,null,"CERDI"]
[null,"DST-S-D,,,ARG-TUC,KOR","DST-S-D","","","ARG-TUC","KOR",19350,null,"CERDI"]
[null,"DST-S-D,,,ARG-TUC,NLD","DST-S-D","","","ARG-TUC","NLD",13750.5,null,"CERDI"]
[null,"DST-S-D,,,ARG-TUC,USA","DST-S-D","","","ARG-TUC","USA",12589.7,null,"CERDI"]
[null,"DST-S-D,,,AUS,CHN","DST-S-D","","","AUS","CHN",10024.9,null,"CERDI"]
[null,"DST-S-D,,,AUS,DEU","DST-S-D","","","AUS","DEU",21212.3,null,"CERDI"]
[null,"DST-S-D,,,AUS,ESP","DST-S-D","","","AUS","ESP",17760.900000000001,null,"CERDI"]
[null,"DST-S-D,,,AUS,FRA","DST-S-D","","","AUS","FRA",16854,null,"CERDI"]
[null,"DST-S-D,,,AUS,IND","DST-S-D","","","AUS","IND",10647.6,null,"CERDI"]
[null,"DST-S-D,,,AUS,JPN","DST-S-D","","","AUS","JPN",9845.85,null,"CERDI"]
[null,"DST-S-D,,,AUS,KOR","DST-S-D","","","AUS","KOR",10153.5,null,"CERDI"]
[null,"DST-S-D,,,AUS,NLD","DST-S-D","","","AUS","NLD",20628.3,null,"CERDI"]
[null,"DST-S-D,,,AUS,USA","DST-S-D","","","AUS","USA",12771.9,null,"CERDI"]
[null,"DST-S-D,,,BRA,CHN","DST-S-D","","","BRA","CHN",21462,null,"CERDI"]
[null,"DST-S-D,,,BRA,DEU","DST-S-D","","","BRA","DEU",10409.5,null,"CERDI"]
[null,"DST-S-D,,,BRA,ESP","DST-S-D","","","BRA","ESP",8824.26,null,"CERDI"]
[null,"DST-S-D,,,BRA,FRA","DST-S-D","","","BRA","FRA",9895.24,null,"CERDI"]
[null,"DST-S-D,,,BRA,IND","DST-S-D","","","BRA","IND",15751.1,null,"CERDI"]
[null,"DST-S-D,,,BRA,JPN","DST-S-D","","","BRA","JPN",22369.4,null,"CERDI"]
[null,"DST-S-D,,,BRA,KOR","DST-S-D","","","BRA","KOR",22048.5,null,"CERDI"]
[null,"DST-S-D,,,BRA,NLD","DST-S-D","","","BRA","NLD",10110.1,null,"CERDI"]
[null,"DST-S-D,,,BRA,USA","DST-S-D","","","BRA","USA",9777.43,null,"CERDI"]
[null,"DST-S-D,,,CHL,CHN","DST-S-D","","","CHL","CHN",18238,null,"CERDI"]
[null,"DST-S-D,,,CHL,DEU","DST-S-D","","","CHL","DEU",12511.9,null,"CERDI"]
[null,"DST-S-D,,,CHL,ESP","DST-S-D","","","CHL","ESP",13257.8,null,"CERDI"]
[null,"DST-S-D,,,CHL,FRA","DST-S-D","","","CHL","FRA",14328.9,null,"CERDI"]
[null,"DST-S-D,,,CHL,IND","DST-S-D","","","CHL","IND",20076.400000000001,null,"CERDI"]
[null,"DST-S-D,,,CHL,JPN","DST-S-D","","","CHL","JPN",16934.8,null,"CERDI"]
[null,"DST-S-D,,,CHL,KOR","DST-S-D","","","CHL","KOR",17656.2,null,"CERDI"]
[null,"DST-S-D,,,CHL,NLD","DST-S-D","","","CHL","NLD",12212.5,null,"CERDI"]
[null,"DST-S-D,,,CHL,USA","DST-S-D","","","CHL","USA",8511.36,null,"CERDI"]
[null,"DST-S-D,,,CHN,DEU","DST-S-D","","","CHN","DEU",20484.900000000001,null,"CERDI"]
[null,"DST-S-D,,,CHN,ESP","DST-S-D","","","CHN","ESP",16840.5,null,"CERDI"]
[null,"DST-S-D,,,CHN,FRA","DST-S-D","","","CHN","FRA",15425.3,null,"CERDI"]
[null,"DST-S-D,,,CHN,IND","DST-S-D","","","CHN","IND",8761.85,null,"CERDI"]
[null,"DST-S-D,,,CHN,JPN","DST-S-D","","","CHN","JPN",1458.02,null,"CERDI"]
[null,"DST-S-D,,,CHN,KOR","DST-S-D","","","CHN","KOR",659.33900000000006,null,"CERDI"]
[null,"DST-S-D,,,CHN,NLD","DST-S-D","","","CHN","NLD",19901,null,"CERDI"]
[null,"DST-S-D,,,CHN,USA","DST-S-D","","","CHN","USA",10401.4,null,"CERDI"]
[null,"DST-S-D,,,COL,CHN","DST-S-D","","","COL","CHN",16752,"km","CERDI"]
[null,"DST-S-D,,,COL,DEU","DST-S-D","","","COL","DEU",9250.74,"km","SEA-DISTANCES.ORG"]
[null,"DST-S-D,,,COL,ESP","DST-S-D","","","COL","ESP",7282,"km","CERDI"]
[null,"DST-S-D,,,COL,FRA","DST-S-D","","","COL","FRA",8323,"km","CERDI"]
[null,"DST-S-D,,,COL,IND","DST-S-D","","","COL","IND",17936,"km","CERDI"]
[null,"DST-S-D,,,COL,JPN","DST-S-D","","","COL","JPN",15390,"km","CERDI"]
[null,"DST-S-D,,,COL,KOR","DST-S-D","","","COL","KOR",16112,"km","CERDI"]
[null,"DST-S-D,,,COL,NLD","DST-S-D","","","COL","NLD",8361.7800000000007,"km","SEA-DISTANCES.ORG"]
[null,"DST-S-D,,,COL,USA","DST-S-D","","","COL","USA",2242,"km","CERDI"]
[null,"DST-S-D,,,CRI,CHN","DST-S-D","","","CRI","CHN",16735.5,null,"CERDI"]
[null,"DST-S-D,,,CRI,DEU","DST-S-D","","","CRI","DEU",7422.6,null,"CERDI"]
[null,"DST-S-D,,,CRI,ESP","DST-S-D","","","CRI","ESP",8028.79,null,"CERDI"]
[null,"DST-S-D,,,CRI,FRA","DST-S-D","","","CRI","FRA",9099.84,null,"CERDI"]
[null,"DST-S-D,,,CRI,IND","DST-S-D","","","CRI","IND",18692.900000000001,null,"CERDI"]
[null,"DST-S-D,,,CRI,JPN","DST-S-D","","","CRI","JPN",15373.2,null,"CERDI"]
[null,"DST-S-D,,,CRI,KOR","DST-S-D","","","CRI","KOR",16095.6,null,"CERDI"]
[null,"DST-S-D,,,CRI,NLD","DST-S-D","","","CRI","NLD",7150.86,null,"CERDI"]
[null,"DST-S-D,,,CRI,USA","DST-S-D","","","CRI","USA",2590.9699999999998,null,"CERDI"]
[null,"DST-S-D,,,DNK,CHN","DST-S-D","","","DNK","CHN",21206.9,null,"CERDI"]
[null,"DST-S-D,,,DNK,DEU","DST-S-D","","","DNK","DEU",814.84100000000001,null,"CERDI"]
[null,"DST-S-D,,,DNK,ESP","DST-S-D","","","DNK","ESP",2403.9,null,"SEA-DISTANCES.ORG"]
[null,"DST-S-D,,,DNK,FRA","DST-S-D","","","DNK","FRA",1859.4080000000001,null,"SEA-DISTANCES.ORG"]
[null,"DST-S-D,,,DNK,IND","DST-S-D","","","DNK","IND",13318,null,"CERDI"]
[null,"DST-S-D,,,DNK,JPN","DST-S-D","","","DNK","JPN",22113.599999999999,null,"CERDI"]
[null,"DST-S-D,,,DNK,KOR","DST-S-D","","","DNK","KOR",21793,null,"CERDI"]
[null,"DST-S-D,,,DNK,NLD","DST-S-D","","","DNK","NLD",1117.3499999999999,null,"CERDI"]
[null,"DST-S-D,,,DNK,USA","DST-S-D","","","DNK","USA",8659.0300000000007,null,"CERDI"]
[null,"DST-S-D,,,DZA,CHN","DST-S-D","","","DZA","CHN",16414.7,null,"CERDI"]
[null,"DST-S-D,,,DZA,DEU","DST-S-D","","","DZA","DEU",3174.14,null,"CERDI"]
[null,"DST-S-D,,,DZA,ESP","DST-S-D","","","DZA","ESP",449.37400000000002,null,"CERDI"]
[null,"DST-S-D,,,DZA,FRA","DST-S-D","","","DZA","FRA",863.68899999999996,null,"CERDI"]
[null,"DST-S-D,,,DZA,IND","DST-S-D","","","DZA","IND",8829.52,null,"CERDI"]
[null,"DST-S-D,,,DZA,JPN","DST-S-D","","","DZA","JPN",17389.099999999999,null,"CERDI"]
[null,"DST-S-D,,,DZA,KOR","DST-S-D","","","DZA","KOR",17085.5,null,"CERDI"]
[null,"DST-S-D,,,DZA,NLD","DST-S-D","","","DZA","NLD",2860.67,null,"CERDI"]
[null,"DST-S-D,,,DZA,USA","DST-S-D","","","DZA","USA",9072.02,null,"CERDI"]
[null,"DST-S-D,,,EGY,CHN","DST-S-D","","","EGY","CHN",13389.8,null,"CERDI"]
[null,"DST-S-D,,,EGY,DEU","DST-S-D","","","EGY","DEU",6629.18,null,"CERDI"]
[null,"DST-S-D,,,EGY,ESP","DST-S-D","","","EGY","ESP",3408.43,null,"CERDI"]
[null,"DST-S-D,,,EGY,FRA","DST-S-D","","","EGY","FRA",2024.05,null,"CERDI"]
[null,"DST-S-D,,,EGY,IND","DST-S-D","","","EGY","IND",5810.46,null,"CERDI"]
[null,"DST-S-D,,,EGY,JPN","DST-S-D","","","EGY","JPN",14387.6,null,"CERDI"]
[null,"DST-S-D,,,EGY,KOR","DST-S-D","","","EGY","KOR",14066.7,null,"CERDI"]
[null,"DST-S-D,,,EGY,NLD","DST-S-D","","","EGY","NLD",6261.57,null,"CERDI"]
[null,"DST-S-D,,,EGY,USA","DST-S-D","","","EGY","USA",12612.9,null,"CERDI"]
[null,"DST-S-D,,,ESP,CHN","DST-S-D","","","ESP","CHN",16838.3,null,"CERDI"]
[null,"DST-S-D,,,ESP,DEU","DST-S-D","","","ESP","DEU",2697.76,null,"CERDI"]
[null,"DST-S-D,,,ESP,FRA","DST-S-D","","","ESP","FRA",342.62,null,"SEA-DISTANCES.ORG"]
[null,"DST-S-D,,,ESP,IND","DST-S-D","","","ESP","IND",9253.6200000000008,null,"CERDI"]
[null,"DST-S-D,,,ESP,JPN","DST-S-D","","","ESP","JPN",17812.599999999999,null,"CERDI"]
[null,"DST-S-D,,,ESP,KOR","DST-S-D","","","ESP","KOR",17509,null,"CERDI"]
[null,"DST-S-D,,,ESP,NLD","DST-S-D","","","ESP","NLD",1427.89,null,"SEA-DISTANCES.ORG"]
[null,"DST-S-D,,,ESP,USA","DST-S-D","","","ESP","USA",8601.06,null,"CERDI"]
[null,"DST-S-D,,,IDN,CHN","DST-S-D","","","IDN","CHN",4900.57,null,"CERDI"]
[null,"DST-S-D,,,IDN,DEU","DST-S-D","","","IDN","DEU",16946.8,null,"CERDI"]
[null,"DST-S-D,,,IDN,ESP","DST-S-D","","","IDN","ESP",13236.9,null,"CERDI"]
[null,"DST-S-D,,,IDN,FRA","DST-S-D","","","IDN","FRA",11693.4,null,"CERDI"]
[null,"DST-S-D,,,IDN,IND","DST-S-D","","","IDN","IND",5100.03,null,"CERDI"]
[null,"DST-S-D,,,IDN,JPN","DST-S-D","","","IDN","JPN",5807.96,null,"CERDI"]
[null,"DST-S-D,,,IDN,KOR","DST-S-D","","","IDN","KOR",5487.17,null,"CERDI"]
[null,"DST-S-D,,,IDN,NLD","DST-S-D","","","IDN","NLD",16421,null,"CERDI"]
[null,"DST-S-D,,,IDN,USA","DST-S-D","","","IDN","USA",13999.4,null,"CERDI"]
[null,"DST-S-D,,,IND,CHN","DST-S-D","","","IND","CHN",8761.3799999999992,null,"CERDI"]
[null,"DST-S-D,,,IND,DEU","DST-S-D","","","IND","DEU",12687.7,null,"CERDI"]
[null,"DST-S-D,,,IND,ESP","DST-S-D","","","IND","ESP",9254.24,null,"CERDI"]
[null,"DST-S-D,,,IND,FRA","DST-S-D","","","IND","FRA",8441.42,null,"SEA-DISTANCES.ORG"]
[null,"DST-S-D,,,IND,JPN","DST-S-D","","","IND","JPN",9668.61,null,"CERDI"]
[null,"DST-S-D,,,IND,KOR","DST-S-D","","","IND","KOR",9347.85,null,"CERDI"]
[null,"DST-S-D,,,IND,NLD","DST-S-D","","","IND","NLD",12221.7,null,"CERDI"]
[null,"DST-S-D,,,IND,USA","DST-S-D","","","IND","USA",18312.2,null,"CERDI"]
[null,"DST-S-D,,,JOR,CHN","DST-S-D","","","JOR","CHN",13090.6,null,"CERDI"]
[null,"DST-S-D,,,JOR,DEU","DST-S-D","","","JOR","DEU",7488.73,null,"CERDI"]
[null,"DST-S-D,,,JOR,ESP","DST-S-D","","","JOR","ESP",3457.7,null,"SEA-DISTANCES.ORG"]
[null,"DST-S-D,,,JOR,FRA","DST-S-D","","","JOR","FRA",3516.95,null,"SEA-DISTANCES.ORG"]
[null,"DST-S-D,,,JOR,IND","DST-S-D","","","JOR","IND",5511.15,null,"CERDI"]
[null,"DST-S-D,,,JOR,JPN","DST-S-D","","","JOR","JPN",14049.3,null,"CERDI"]
[null,"DST-S-D,,,JOR,KOR","DST-S-D","","","JOR","KOR",13728.5,null,"CERDI"]
[null,"DST-S-D,,,JOR,NLD","DST-S-D","","","JOR","NLD",7079.06,null,"CERDI"]
[null,"DST-S-D,,,JOR,USA","DST-S-D","","","JOR","USA",13472.2,null,"CERDI"]
[null,"DST-S-D,,,KAZ,CHN","DST-S-D","","","KAZ","CHN",2252.4699999999998,null,"CERDI"]
[null,"DST-S-D,,,KAZ,DEU","DST-S-D","","","KAZ","DEU",6601.17,null,"CERDI"]
[null,"DST-S-D,,,KAZ,ESP","DST-S-D","","","KAZ","ESP",3900.92,null,"CERDI"]
[null,"DST-S-D,,,KAZ,FRA","DST-S-D","","","KAZ","FRA",3529.3,null,"CERDI"]
[null,"DST-S-D,,,KAZ,IND","DST-S-D","","","KAZ","IND",8331.77,null,"CERDI"]
[null,"DST-S-D,,,KAZ,JPN","DST-S-D","","","KAZ","JPN",2136.6799999999998,null,"CERDI"]
[null,"DST-S-D,,,KAZ,KOR","DST-S-D","","","KAZ","KOR",1579.54,null,"CERDI"]
[null,"DST-S-D,,,KAZ,NLD","DST-S-D","","","KAZ","NLD",6287.68,null,"CERDI"]
[null,"DST-S-D,,,KAZ,USA","DST-S-D","","","KAZ","USA",8226.75,null,"CERDI"]
[null,"DST-S-D,,,KEN,CHN","DST-S-D","","","KEN","CHN",11244.6,null,"CERDI"]
[null,"DST-S-D,,,KEN,DEU","DST-S-D","","","KEN","DEU",12814.1,null,"CERDI"]
[null,"DST-S-D,,,KEN,ESP","DST-S-D","","","KEN","ESP",9223.33,null,"CERDI"]
[null,"DST-S-D,,,KEN,FRA","DST-S-D","","","KEN","FRA",7736.75,null,"CERDI"]
[null,"DST-S-D,,,KEN,IND","DST-S-D","","","KEN","IND",4305.05,null,"CERDI"]
[null,"DST-S-D,,,KEN,JPN","DST-S-D","","","KEN","JPN",12152,null,"CERDI"]
[null,"DST-S-D,,,KEN,KOR","DST-S-D","","","KEN","KOR",11831.2,null,"CERDI"]
[null,"DST-S-D,,,KEN,NLD","DST-S-D","","","KEN","NLD",12343.5,null,"CERDI"]
[null,"DST-S-D,,,KEN,USA","DST-S-D","","","KEN","USA",18739.400000000001,null,"CERDI"]
[null,"DST-S-D,,,MAR,CHN","DST-S-D","","","MAR","CHN",16917.900000000001,null,"CERDI"]
[null,"DST-S-D,,,MAR,DEU","DST-S-D","","","MAR","DEU",2668.15,null,"CERDI"]
[null,"DST-S-D,,,MAR,ESP","DST-S-D","","","MAR","ESP",38.352499999999999,null,"CERDI"]
[null,"DST-S-D,,,MAR,FRA","DST-S-D","","","MAR","FRA",1104.08,null,"CERDI"]
[null,"DST-S-D,,,MAR,IND","DST-S-D","","","MAR","IND",9333.25,null,"CERDI"]
[null,"DST-S-D,,,MAR,JPN","DST-S-D","","","MAR","JPN",17892.3,null,"CERDI"]
[null,"DST-S-D,,,MAR,KOR","DST-S-D","","","MAR","KOR",17588.7,null,"CERDI"]
[null,"DST-S-D,,,MAR,NLD","DST-S-D","","","MAR","NLD",2354.6799999999998,null,"CERDI"]
[null,"DST-S-D,,,MAR,USA","DST-S-D","","","MAR","USA",8558.2999999999993,null,"CERDI"]
[null,"DST-S-D,,,MAR-BEN,CHN","DST-S-D","","","MAR-BEN","CHN",16917.900000000001,null,"CERDI"]
[null,"DST-S-D,,,MAR-BEN,DEU","DST-S-D","","","MAR-BEN","DEU",2668.15,null,"CERDI"]
[null,"DST-S-D,,,MAR-BEN,ESP","DST-S-D","","","MAR-BEN","ESP",38.352499999999999,null,"CERDI"]
[null,"DST-S-D,,,MAR-BEN,FRA","DST-S-D","","","MAR-BEN","FRA",1104.08,null,"CERDI"]
[null,"DST-S-D,,,MAR-BEN,IND","DST-S-D","","","MAR-BEN","IND",9333.25,null,"CERDI"]
[null,"DST-S-D,,,MAR-BEN,JPN","DST-S-D","","","MAR-BEN","JPN",17892.3,null,"CERDI"]
[null,"DST-S-D,,,MAR-BEN,KOR","DST-S-D","","","MAR-BEN","KOR",17588.7,null,"CERDI"]
[null,"DST-S-D,,,MAR-BEN,NLD","DST-S-D","","","MAR-BEN","NLD",2354.6799999999998,null,"CERDI"]
[null,"DST-S-D,,,MAR-BEN,USA","DST-S-D","","","MAR-BEN","USA",8558.2999999999993,null,"CERDI"]
[null,"DST-S-D,,,MAR-CAS,CHN","DST-S-D","","","MAR-CAS","CHN",16917.900000000001,null,"CERDI"]
[null,"DST-S-D,,,MAR-CAS,DEU","DST-S-D","","","MAR-CAS","DEU",2668.15,null,"CERDI"]
[null,"DST-S-D,,,MAR-CAS,ESP","DST-S-D","","","MAR-CAS","ESP",38.352499999999999,null,"CERDI"]
[null,"DST-S-D,,,MAR-CAS,FRA","DST-S-D","","","MAR-CAS","FRA",1104.08,null,"CERDI"]
[null,"DST-S-D,,,MAR-CAS,IND","DST-S-D","","","MAR-CAS","IND",9333.25,null,"CERDI"]
[null,"DST-S-D,,,MAR-CAS,JPN","DST-S-D","","","MAR-CAS","JPN",17892.3,null,"CERDI"]
[null,"DST-S-D,,,MAR-CAS,KOR","DST-S-D","","","MAR-CAS","KOR",17588.7,null,"CERDI"]
[null,"DST-S-D,,,MAR-CAS,NLD","DST-S-D","","","MAR-CAS","NLD",2354.6799999999998,null,"CERDI"]
[null,"DST-S-D,,,MAR-CAS,USA","DST-S-D","","","MAR-CAS","USA",8558.2999999999993,null,"CERDI"]
[null,"DST-S-D,,,MAR-DAK,CHN","DST-S-D","","","MAR-DAK","CHN",16917.900000000001,null,"CERDI"]
[null,"DST-S-D,,,MAR-DAK,DEU","DST-S-D","","","MAR-DAK","DEU",2668.15,null,"CERDI"]
[null,"DST-S-D,,,MAR-DAK,ESP","DST-S-D","","","MAR-DAK","ESP",38.352499999999999,null,"CERDI"]
[null,"DST-S-D,,,MAR-DAK,FRA","DST-S-D","","","MAR-DAK","FRA",1104.08,null,"CERDI"]
[null,"DST-S-D,,,MAR-DAK,IND","DST-S-D","","","MAR-DAK","IND",9333.25,null,"CERDI"]
[null,"DST-S-D,,,MAR-DAK,JPN","DST-S-D","","","MAR-DAK","JPN",17892.3,null,"CERDI"]
[null,"DST-S-D,,,MAR-DAK,KOR","DST-S-D","","","MAR-DAK","KOR",17588.7,null,"CERDI"]
[null,"DST-S-D,,,MAR-DAK,NLD","DST-S-D","","","MAR-DAK","NLD",2354.6799999999998,null,"CERDI"]
[null,"DST-S-D,,,MAR-DAK,USA","DST-S-D","","","MAR-DAK","USA",8558.2999999999993,null,"CERDI"]
[null,"DST-S-D,,,MAR-DRA,CHN","DST-S-D","","","MAR-DRA","CHN",16917.900000000001,null,"CERDI"]
[null,"DST-S-D,,,MAR-DRA,DEU","DST-S-D","","","MAR-DRA","DEU",2668.15,null,"CERDI"]
[null,"DST-S-D,,,MAR-DRA,ESP","DST-S-D","","","MAR-DRA","ESP",38.352499999999999,null,"CERDI"]
[null,"DST-S-D,,,MAR-DRA,FRA","DST-S-D","","","MAR-DRA","FRA",1104.08,null,"CERDI"]
[null,"DST-S-D,,,MAR-DRA,IND","DST-S-D","","","MAR-DRA","IND",9333.25,null,"CERDI"]
[null,"DST-S-D,,,MAR-DRA,JPN","DST-S-D","","","MAR-DRA","JPN",17892.3,null,"CERDI"]
[null,"DST-S-D,,,MAR-DRA,KOR","DST-S-D","","","MAR-DRA","KOR",17588.7,null,"CERDI"]
[null,"DST-S-D,,,MAR-DRA,NLD","DST-S-D","","","MAR-DRA","NLD",2354.6799999999998,null,"CERDI"]
[null,"DST-S-D,,,MAR-DRA,USA","DST-S-D","","","MAR-DRA","USA",8558.2999999999993,null,"CERDI"]
[null,"DST-S-D,,,MAR-FES,CHN","DST-S-D","","","MAR-FES","CHN",16917.900000000001,null,"CERDI"]
[null,"DST-S-D,,,MAR-FES,DEU","DST-S-D","","","MAR-FES","DEU",2668.15,null,"CERDI"]
[null,"DST-S-D,,,MAR-FES,ESP","DST-S-D","","","MAR-FES","ESP",38.352499999999999,null,"CERDI"]
[null,"DST-S-D,,,MAR-FES,FRA","DST-S-D","","","MAR-FES","FRA",1104.08,null,"CERDI"]
[null,"DST-S-D,,,MAR-FES,IND","DST-S-D","","","MAR-FES","IND",9333.25,null,"CERDI"]
[null,"DST-S-D,,,MAR-FES,JPN","DST-S-D","","","MAR-FES","JPN",17892.3,null,"CERDI"]
[null,"DST-S-D,,,MAR-FES,KOR","DST-S-D","","","MAR-FES","KOR",17588.7,null,"CERDI"]
[null,"DST-S-D,,,MAR-FES,NLD","DST-S-D","","","MAR-FES","NLD",2354.6799999999998,null,"CERDI"]
[null,"DST-S-D,,,MAR-FES,USA","DST-S-D","","","MAR-FES","USA",8558.2999999999993,null,"CERDI"]
[null,"DST-S-D,,,MAR-GUE,CHN","DST-S-D","","","MAR-GUE","CHN",16917.900000000001,null,"CERDI"]
[null,"DST-S-D,,,MAR-GUE,DEU","DST-S-D","","","MAR-GUE","DEU",2668.15,null,"CERDI"]
[null,"DST-S-D,,,MAR-GUE,ESP","DST-S-D","","","MAR-GUE","ESP",38.352499999999999,null,"CERDI"]
[null,"DST-S-D,,,MAR-GUE,FRA","DST-S-D","","","MAR-GUE","FRA",1104.08,null,"CERDI"]
[null,"DST-S-D,,,MAR-GUE,IND","DST-S-D","","","MAR-GUE","IND",9333.25,null,"CERDI"]
[null,"DST-S-D,,,MAR-GUE,JPN","DST-S-D","","","MAR-GUE","JPN",17892.3,null,"CERDI"]
[null,"DST-S-D,,,MAR-GUE,KOR","DST-S-D","","","MAR-GUE","KOR",17588.7,null,"CERDI"]
[null,"DST-S-D,,,MAR-GUE,NLD","DST-S-D","","","MAR-GUE","NLD",2354.6799999999998,null,"CERDI"]
[null,"DST-S-D,,,MAR-GUE,USA","DST-S-D","","","MAR-GUE","USA",8558.2999999999993,null,"CERDI"]
[null,"DST-S-D,,,MAR-LAA,CHN","DST-S-D","","","MAR-LAA","CHN",16917.900000000001,null,"CERDI"]
[null,"DST-S-D,,,MAR-LAA,DEU","DST-S-D","","","MAR-LAA","DEU",2668.15,null,"CERDI"]
[null,"DST-S-D,,,MAR-LAA,ESP","DST-S-D","","","MAR-LAA","ESP",38.352499999999999,null,"CERDI"]
[null,"DST-S-D,,,MAR-LAA,FRA","DST-S-D","","","MAR-LAA","FRA",1104.08,null,"CERDI"]
[null,"DST-S-D,,,MAR-LAA,IND","DST-S-D","","","MAR-LAA","IND",9333.25,null,"CERDI"]
[null,"DST-S-D,,,MAR-LAA,JPN","DST-S-D","","","MAR-LAA","JPN",17892.3,null,"CERDI"]
[null,"DST-S-D,,,MAR-LAA,KOR","DST-S-D","","","MAR-LAA","KOR",17588.7,null,"CERDI"]
[null,"DST-S-D,,,MAR-LAA,NLD","DST-S-D","","","MAR-LAA","NLD",2354.6799999999998,null,"CERDI"]
[null,"DST-S-D,,,MAR-LAA,USA","DST-S-D","","","MAR-LAA","USA",8558.2999999999993,null,"CERDI"]
[null,"DST-S-D,,,MAR-LOR,CHN","DST-S-D","","","MAR-LOR","CHN",16917.900000000001,null,"CERDI"]
[null,"DST-S-D,,,MAR-LOR,DEU","DST-S-D","","","MAR-LOR","DEU",2668.15,null,"CERDI"]
[null,"DST-S-D,,,MAR-LOR,ESP","DST-S-D","","","MAR-LOR","ESP",38.352499999999999,null,"CERDI"]
[null,"DST-S-D,,,MAR-LOR,FRA","DST-S-D","","","MAR-LOR","FRA",1104.08,null,"CERDI"]
[null,"DST-S-D,,,MAR-LOR,IND","DST-S-D","","","MAR-LOR","IND",9333.25,null,"CERDI"]
[null,"DST-S-D,,,MAR-LOR,JPN","DST-S-D","","","MAR-LOR","JPN",17892.3,null,"CERDI"]
[null,"DST-S-D,,,MAR-LOR,KOR","DST-S-D","","","MAR-LOR","KOR",17588.7,null,"CERDI"]
[null,"DST-S-D,,,MAR-LOR,NLD","DST-S-D","","","MAR-LOR","NLD",2354.6799999999998,null,"CERDI"]
[null,"DST-S-D,,,MAR-LOR,USA","DST-S-D","","","MAR-LOR","USA",8558.2999999999993,null,"CERDI"]
[null,"DST-S-D,,,MAR-MAR,CHN","DST-S-D","","","MAR-MAR","CHN",16917.900000000001,null,"CERDI"]
[null,"DST-S-D,,,MAR-MAR,DEU","DST-S-D","","","MAR-MAR","DEU",2668.15,null,"CERDI"]
[null,"DST-S-D,,,MAR-MAR,ESP","DST-S-D","","","MAR-MAR","ESP",38.352499999999999,null,"CERDI"]
[null,"DST-S-D,,,MAR-MAR,FRA","DST-S-D","","","MAR-MAR","FRA",1104.08,null,"CERDI"]
[null,"DST-S-D,,,MAR-MAR,IND","DST-S-D","","","MAR-MAR","IND",9333.25,null,"CERDI"]
[null,"DST-S-D,,,MAR-MAR,JPN","DST-S-D","","","MAR-MAR","JPN",17892.3,null,"CERDI"]
[null,"DST-S-D,,,MAR-MAR,KOR","DST-S-D","","","MAR-MAR","KOR",17588.7,null,"CERDI"]
[null,"DST-S-D,,,MAR-MAR,NLD","DST-S-D","","","MAR-MAR","NLD",2354.6799999999998,null,"CERDI"]
[null,"DST-S-D,,,MAR-MAR,USA","DST-S-D","","","MAR-MAR","USA",8558.2999999999993,null,"CERDI"]
[null,"DST-S-D,,,MAR-RAB,CHN","DST-S-D","","","MAR-RAB","CHN",16917.900000000001,null,"CERDI"]
[null,"DST-S-D,,,MAR-RAB,DEU","DST-S-D","","","MAR-RAB","DEU",2668.15,null,"CERDI"]
[null,"DST-S-D,,,MAR-RAB,ESP","DST-S-D","","","MAR-RAB","ESP",38.352499999999999,null,"CERDI"]
[null,"DST-S-D,,,MAR-RAB,FRA","DST-S-D","","","MAR-RAB","FRA",1104.08,null,"CERDI"]
[null,"DST-S-D,,,MAR-RAB,IND","DST-S-D","","","MAR-RAB","IND",9333.25,null,"CERDI"]
[null,"DST-S-D,,,MAR-RAB,JPN","DST-S-D","","","MAR-RAB","JPN",17892.3,null,"CERDI"]
[null,"DST-S-D,,,MAR-RAB,KOR","DST-S-D","","","MAR-RAB","KOR",17588.7,null,"CERDI"]
[null,"DST-S-D,,,MAR-RAB,NLD","DST-S-D","","","MAR-RAB","NLD",2354.6799999999998,null,"CERDI"]
[null,"DST-S-D,,,MAR-RAB,USA","DST-S-D","","","MAR-RAB","USA",8558.2999999999993,null,"CERDI"]
[null,"DST-S-D,,,MAR-SOU,CHN","DST-S-D","","","MAR-SOU","CHN",16917.900000000001,null,"CERDI"]
[null,"DST-S-D,,,MAR-SOU,DEU","DST-S-D","","","MAR-SOU","DEU",2668.15,null,"CERDI"]
[null,"DST-S-D,,,MAR-SOU,ESP","DST-S-D","","","MAR-SOU","ESP",38.352499999999999,null,"CERDI"]
[null,"DST-S-D,,,MAR-SOU,FRA","DST-S-D","","","MAR-SOU","FRA",1104.08,null,"CERDI"]
[null,"DST-S-D,,,MAR-SOU,IND","DST-S-D","","","MAR-SOU","IND",9333.25,null,"CERDI"]
[null,"DST-S-D,,,MAR-SOU,JPN","DST-S-D","","","MAR-SOU","JPN",17892.3,null,"CERDI"]
[null,"DST-S-D,,,MAR-SOU,KOR","DST-S-D","","","MAR-SOU","KOR",17588.7,null,"CERDI"]
[null,"DST-S-D,,,MAR-SOU,NLD","DST-S-D","","","MAR-SOU","NLD",2354.6799999999998,null,"CERDI"]
[null,"DST-S-D,,,MAR-SOU,USA","DST-S-D","","","MAR-SOU","USA",8558.2999999999993,null,"CERDI"]
[null,"DST-S-D,,,MAR-TAN,CHN","DST-S-D","","","MAR-TAN","CHN",16917.900000000001,null,"CERDI"]
[null,"DST-S-D,,,MAR-TAN,DEU","DST-S-D","","","MAR-TAN","DEU",2668.15,null,"CERDI"]
[null,"DST-S-D,,,MAR-TAN,ESP","DST-S-D","","","MAR-TAN","ESP",38.352499999999999,null,"CERDI"]
[null,"DST-S-D,,,MAR-TAN,FRA","DST-S-D","","","MAR-TAN","FRA",1104.08,null,"CERDI"]
[null,"DST-S-D,,,MAR-TAN,IND","DST-S-D","","","MAR-TAN","IND",9333.25,null,"CERDI"]
[null,"DST-S-D,,,MAR-TAN,JPN","DST-S-D","","","MAR-TAN","JPN",17892.3,null,"CERDI"]
[null,"DST-S-D,,,MAR-TAN,KOR","DST-S-D","","","MAR-TAN","KOR",17588.7,null,"CERDI"]
[null,"DST-S-D,,,MAR-TAN,NLD","DST-S-D","","","MAR-TAN","NLD",2354.6799999999998,null,"CERDI"]
[null,"DST-S-D,,,MAR-TAN,USA","DST-S-D","","","MAR-TAN","USA",8558.2999999999993,null,"CERDI"]
[null,"DST-S-D,,,MEX,CHN","DST-S-D","","","MEX","CHN",13223.2,null,"CERDI"]
[null,"DST-S-D,,,MEX,DEU","DST-S-D","","","MEX","DEU",10256.299999999999,null,"CERDI"]
[null,"DST-S-D,,,MEX,ESP","DST-S-D","","","MEX","ESP",10695.5,null,"CERDI"]
[null,"DST-S-D,,,MEX,FRA","DST-S-D","","","MEX","FRA",11766.6,null,"CERDI"]
[null,"DST-S-D,,,MEX,IND","DST-S-D","","","MEX","IND",20448.3,null,"CERDI"]
[null,"DST-S-D,,,MEX,JPN","DST-S-D","","","MEX","JPN",11860.6,null,"CERDI"]
[null,"DST-S-D,,,MEX,KOR","DST-S-D","","","MEX","KOR",12583,null,"CERDI"]
[null,"DST-S-D,,,MEX,NLD","DST-S-D","","","MEX","NLD",9956.94,null,"CERDI"]
[null,"DST-S-D,,,MEX,USA","DST-S-D","","","MEX","USA",1231.58,null,"SEA-DISTANCES.ORG"]
[null,"DST-S-D,,,MRT,CHN","DST-S-D","","","MRT","CHN",19545.900000000001,null,"CERDI"]
[null,"DST-S-D,,,MRT,DEU","DST-S-D","","","MRT","DEU",4171.75,null,"CERDI"]
[null,"DST-S-D,,,MRT,ESP","DST-S-D","","","MRT","ESP",2012.1,null,"CERDI"]
[null,"DST-S-D,,,MRT,FRA","DST-S-D","","","MRT","FRA",3083.36,null,"CERDI"]
[null,"DST-S-D,,,MRT,IND","DST-S-D","","","MRT","IND",11940.3,null,"CERDI"]
[null,"DST-S-D,,,MRT,JPN","DST-S-D","","","MRT","JPN",20452.599999999999,null,"CERDI"]
[null,"DST-S-D,,,MRT,KOR","DST-S-D","","","MRT","KOR",20132,null,"CERDI"]
[null,"DST-S-D,,,MRT,NLD","DST-S-D","","","MRT","NLD",3858.24,null,"CERDI"]
[null,"DST-S-D,,,MRT,USA","DST-S-D","","","MRT","USA",7511.88,null,"CERDI"]
[null,"DST-S-D,,,NAM,CHN","DST-S-D","","","NAM","CHN",16002.4,null,"CERDI"]
[null,"DST-S-D,,,NAM,DEU","DST-S-D","","","NAM","DEU",10723.8,null,"CERDI"]
[null,"DST-S-D,,,NAM,ESP","DST-S-D","","","NAM","ESP",8564.51,null,"CERDI"]
[null,"DST-S-D,,,NAM,FRA","DST-S-D","","","NAM","FRA",9635.7099999999991,null,"CERDI"]
[null,"DST-S-D,,,NAM,IND","DST-S-D","","","NAM","IND",10561.3,null,"CERDI"]
[null,"DST-S-D,,,NAM,JPN","DST-S-D","","","NAM","JPN",16976.900000000001,null,"CERDI"]
[null,"DST-S-D,,,NAM,KOR","DST-S-D","","","NAM","KOR",16673.3,null,"CERDI"]
[null,"DST-S-D,,,NAM,NLD","DST-S-D","","","NAM","NLD",10410.4,null,"CERDI"]
[null,"DST-S-D,,,NAM,USA","DST-S-D","","","NAM","USA",12721.7,null,"CERDI"]
[null,"DST-S-D,,,NOR,CHN","DST-S-D","","","NOR","CHN",21062.6,null,"CERDI"]
[null,"DST-S-D,,,NOR,DEU","DST-S-D","","","NOR","DEU",605.048,null,"CERDI"]
[null,"DST-S-D,,,NOR,ESP","DST-S-D","","","NOR","ESP",2363.15,null,"SEA-DISTANCES.ORG"]
[null,"DST-S-D,,,NOR,FRA","DST-S-D","","","NOR","FRA",1818.66,null,"SEA-DISTANCES.ORG"]
[null,"DST-S-D,,,NOR,IND","DST-S-D","","","NOR","IND",13108.2,null,"CERDI"]
[null,"DST-S-D,,,NOR,JPN","DST-S-D","","","NOR","JPN",21969.200000000001,null,"CERDI"]
[null,"DST-S-D,,,NOR,KOR","DST-S-D","","","NOR","KOR",21648.7,null,"CERDI"]
[null,"DST-S-D,,,NOR,NLD","DST-S-D","","","NOR","NLD",808.45699999999999,null,"CERDI"]
[null,"DST-S-D,,,NOR,USA","DST-S-D","","","NOR","USA",7940.34,null,"CERDI"]
[null,"DST-S-D,,,PER,CHN","DST-S-D","","","PER","CHN",16633.3,null,"CERDI"]
[null,"DST-S-D,,,PER,DEU","DST-S-D","","","PER","DEU",12282.46,null,"SEA-DISTANCES.ORG"]
[null,"DST-S-D,,,PER,ESP","DST-S-D","","","PER","ESP",11517.59,null,"SEA-DISTANCES.ORG"]
[null,"DST-S-D,,,PER,FRA","DST-S-D","","","PER","FRA",10735.1,null,"CERDI"]
[null,"DST-S-D,,,PER,IND","DST-S-D","","","PER","IND",20364.8,null,"CERDI"]
[null,"DST-S-D,,,PER,JPN","DST-S-D","","","PER","JPN",15271,null,"CERDI"]
[null,"DST-S-D,,,PER,KOR","DST-S-D","","","PER","KOR",15993.2,null,"CERDI"]
[null,"DST-S-D,,,PER,NLD","DST-S-D","","","PER","NLD",11445.36,null,"SEA-DISTANCES.ORG"]
[null,"DST-S-D,,,PER,USA","DST-S-D","","","PER","USA",4729.2,null,"CERDI"]
[null,"DST-S-D,,,PRT,CHN","DST-S-D","","","PRT","CHN",17380,null,"CERDI"]
[null,"DST-S-D,,,PRT,DEU","DST-S-D","","","PRT","DEU",2479.8200000000002,null,"SEA-DISTANCES.ORG"]
[null,"DST-S-D,,,PRT,ESP","DST-S-D","","","PRT","ESP",1085.27,null,"SEA-DISTANCES.ORG"]
[null,"DST-S-D,,,PRT,FRA","DST-S-D","","","PRT","FRA",1729.71,null,"CERDI"]
[null,"DST-S-D,,,PRT,IND","DST-S-D","","","PRT","IND",9795.41,null,"CERDI"]
[null,"DST-S-D,,,PRT,JPN","DST-S-D","","","PRT","JPN",18354.400000000001,null,"CERDI"]
[null,"DST-S-D,,,PRT,KOR","DST-S-D","","","PRT","KOR",18050.8,null,"CERDI"]
[null,"DST-S-D,,,PRT,NLD","DST-S-D","","","PRT","NLD",1721.53,null,"CERDI"]
[null,"DST-S-D,,,PRT,USA","DST-S-D","","","PRT","USA",7944.32,null,"CERDI"]
[null,"DST-S-D,,,RUS,CHN","DST-S-D","","","RUS","CHN",2252.4699999999998,null,"CERDI"]
[null,"DST-S-D,,,RUS,DEU","DST-S-D","","","RUS","DEU",6601.17,null,"CERDI"]
[null,"DST-S-D,,,RUS,ESP","DST-S-D","","","RUS","ESP",3900.92,null,"CERDI"]
[null,"DST-S-D,,,RUS,FRA","DST-S-D","","","RUS","FRA",3529.3,null,"CERDI"]
[null,"DST-S-D,,,RUS,IND","DST-S-D","","","RUS","IND",8331.77,null,"CERDI"]
[null,"DST-S-D,,,RUS,JPN","DST-S-D","","","RUS","JPN",2136.6799999999998,null,"CERDI"]
[null,"DST-S-D,,,RUS,KOR","DST-S-D","","","RUS","KOR",1579.54,null,"CERDI"]
[null,"DST-S-D,,,RUS,NLD","DST-S-D","","","RUS","NLD",7921,null,"SEA-DISTANCES.ORG"]
[null,"DST-S-D,,,RUS,USA","DST-S-D","","","RUS","USA",8226.75,null,"CERDI"]
[null,"DST-S-D,,,SAU,CHN","DST-S-D","","","SAU","CHN",12014.2,null,"CERDI"]
[null,"DST-S-D,,,SAU,DEU","DST-S-D","","","SAU","DEU",8624.76,null,"SEA-DISTANCES.ORG"]
[null,"DST-S-D,,,SAU,ESP","DST-S-D","","","SAU","ESP",4279.97,null,"SEA-DISTANCES.ORG"]
[null,"DST-S-D,,,SAU,FRA","DST-S-D","","","SAU","FRA",3364.12,null,"CERDI"]
[null,"DST-S-D,,,SAU,IND","DST-S-D","","","SAU","IND",4376.12,null,"CERDI"]
[null,"DST-S-D,,,SAU,JPN","DST-S-D","","","SAU","JPN",12921.6,null,"CERDI"]
[null,"DST-S-D,,,SAU,KOR","DST-S-D","","","SAU","KOR",12600.8,null,"CERDI"]
[null,"DST-S-D,,,SAU,NLD","DST-S-D","","","SAU","NLD",7402.44,null,"SEA-DISTANCES.ORG"]
[null,"DST-S-D,,,SAU,USA","DST-S-D","","","SAU","USA",14233.2,null,"CERDI"]
[null,"DST-S-D,,,SWE,CHN","DST-S-D","","","SWE","CHN",21022.6,null,"CERDI"]
[null,"DST-S-D,,,SWE,DEU","DST-S-D","","","SWE","DEU",602.49,null,"CERDI"]
[null,"DST-S-D,,,SWE,ESP","DST-S-D","","","SWE","ESP",3104.64,null,"CERDI"]
[null,"DST-S-D,,,SWE,FRA","DST-S-D","","","SWE","FRA",4175.91,null,"CERDI"]
[null,"DST-S-D,,,SWE,IND","DST-S-D","","","SWE","IND",13105.7,null,"CERDI"]
[null,"DST-S-D,,,SWE,JPN","DST-S-D","","","SWE","JPN",21929.3,null,"CERDI"]
[null,"DST-S-D,,,SWE,KOR","DST-S-D","","","SWE","KOR",21608.7,null,"CERDI"]
[null,"DST-S-D,,,SWE,NLD","DST-S-D","","","SWE","NLD",821.91899999999998,null,"CERDI"]
[null,"DST-S-D,,,SWE,USA","DST-S-D","","","SWE","USA",8160.7,null,"CERDI"]
[null,"DST-S-D,,,THA,CHN","DST-S-D","","","THA","CHN",4046.29,null,"CERDI"]
[null,"DST-S-D,,,THA,DEU","DST-S-D","","","THA","DEU",18076.400000000001,null,"CERDI"]
[null,"DST-S-D,,,THA,ESP","DST-S-D","","","THA","ESP",14281.2,null,"CERDI"]
[null,"DST-S-D,,,THA,FRA","DST-S-D","","","THA","FRA",12690.1,null,"CERDI"]
[null,"DST-S-D,,,THA,IND","DST-S-D","","","THA","IND",6056.68,null,"CERDI"]
[null,"DST-S-D,,,THA,JPN","DST-S-D","","","THA","JPN",5539.33,null,"SEA-DISTANCES.ORG"]
[null,"DST-S-D,,,THA,KOR","DST-S-D","","","THA","KOR",4632.9399999999996,null,"CERDI"]
[null,"DST-S-D,,,THA,NLD","DST-S-D","","","THA","NLD",17505.099999999999,null,"CERDI"]
[null,"DST-S-D,,,THA,USA","DST-S-D","","","THA","USA",14109.5,null,"CERDI"]
[null,"DST-S-D,,,TUN,CHN","DST-S-D","","","TUN","CHN",15188.8,null,"CERDI"]
[null,"DST-S-D,,,TUN,DEU","DST-S-D","","","TUN","DEU",4114.37,null,"CERDI"]
[null,"DST-S-D,,,TUN,ESP","DST-S-D","","","TUN","ESP",1414.33,null,"CERDI"]
[null,"DST-S-D,,,TUN,FRA","DST-S-D","","","TUN","FRA",754.12400000000002,null,"CERDI"]
[null,"DST-S-D,,,TUN,IND","DST-S-D","","","TUN","IND",7609.79,null,"CERDI"]
[null,"DST-S-D,,,TUN,JPN","DST-S-D","","","TUN","JPN",16218.3,null,"CERDI"]
[null,"DST-S-D,,,TUN,KOR","DST-S-D","","","TUN","KOR",15930.7,null,"CERDI"]
[null,"DST-S-D,,,TUN,NLD","DST-S-D","","","TUN","NLD",3800.89,null,"CERDI"]
[null,"DST-S-D,,,TUN,USA","DST-S-D","","","TUN","USA",10017.6,null,"CERDI"]
[null,"DST-S-D,,,UKR,CHN","DST-S-D","","","UKR","CHN",15605.7,null,"CERDI"]
[null,"DST-S-D,,,UKR,DEU","DST-S-D","","","UKR","DEU",6650.36,null,"CERDI"]
[null,"DST-S-D,,,UKR,ESP","DST-S-D","","","UKR","ESP",3912.3,null,"CERDI"]
[null,"DST-S-D,,,UKR,FRA","DST-S-D","","","UKR","FRA",3171.22,null,"CERDI"]
[null,"DST-S-D,,,UKR,IND","DST-S-D","","","UKR","IND",8000.83,null,"CERDI"]
[null,"DST-S-D,,,UKR,JPN","DST-S-D","","","UKR","JPN",16513.099999999999,null,"CERDI"]
[null,"DST-S-D,,,UKR,KOR","DST-S-D","","","UKR","KOR",16192.3,null,"CERDI"]
[null,"DST-S-D,,,UKR,NLD","DST-S-D","","","UKR","NLD",6336.87,null,"CERDI"]
[null,"DST-S-D,,,UKR,USA","DST-S-D","","","UKR","USA",12553.3,null,"CERDI"]
[null,"DST-S-D,,,URY,CHN","DST-S-D","","","URY","CHN",21524.1,null,"CERDI"]
[null,"DST-S-D,,,URY,DEU","DST-S-D","","","URY","DEU",12547.2,null,"CERDI"]
[null,"DST-S-D,,,URY,ESP","DST-S-D","","","URY","ESP",10706.9,null,"CERDI"]
[null,"DST-S-D,,,URY,FRA","DST-S-D","","","URY","FRA",11777.9,null,"CERDI"]
[null,"DST-S-D,,,URY,IND","DST-S-D","","","URY","IND",15885.2,null,"CERDI"]
[null,"DST-S-D,,,URY,JPN","DST-S-D","","","URY","JPN",20938.400000000001,null,"CERDI"]
[null,"DST-S-D,,,URY,KOR","DST-S-D","","","URY","KOR",21620.9,null,"CERDI"]
[null,"DST-S-D,,,URY,NLD","DST-S-D","","","URY","NLD",12233.8,null,"CERDI"]
[null,"DST-S-D,,,URY,USA","DST-S-D","","","URY","USA",11454,null,"CERDI"]
[null,"DST-S-D,,,USA,CHN","DST-S-D","","","USA","CHN",10402.299999999999,null,"CERDI"]
[null,"DST-S-D,,,USA,DEU","DST-S-D","","","USA","DEU",8323.27,null,"CERDI"]
[null,"DST-S-D,,,USA,ESP","DST-S-D","","","USA","ESP",8604.8700000000008,null,"CERDI"]
[null,"DST-S-D,,,USA,FRA","DST-S-D","","","USA","FRA",9676.0499999999993,null,"CERDI"]
[null,"DST-S-D,,,USA,IND","DST-S-D","","","USA","IND",18311.5,null,"CERDI"]
[null,"DST-S-D,,,USA,JPN","DST-S-D","","","USA","JPN",8904.7099999999991,null,"CERDI"]
[null,"DST-S-D,,,USA,KOR","DST-S-D","","","USA","KOR",9754.8799999999992,null,"CERDI"]
[null,"DST-S-D,,,USA,NLD","DST-S-D","","","USA","NLD",8053.45,null,"CERDI"]
[null,"DST-S-D,,,VNM,CHN","DST-S-D","","","VNM","CHN",2839.27,null,"CERDI"]
[null,"DST-S-D,,,VNM,DEU","DST-S-D","","","VNM","DEU",18266.27,null,"SEA-DISTANCES.ORG"]
[null,"DST-S-D,,,VNM,ESP","DST-S-D","","","VNM","ESP",17590.400000000001,null,"CERDI"]
[null,"DST-S-D,,,VNM,FRA","DST-S-D","","","VNM","FRA",14534.49,null,"SEA-DISTANCES.ORG"]
[null,"DST-S-D,,,VNM,IND","DST-S-D","","","VNM","IND",3746.62,null,"CERDI"]
[null,"DST-S-D,,,VNM,JPN","DST-S-D","","","VNM","JPN",17066.7,null,"CERDI"]
[null,"DST-S-D,,,VNM,KOR","DST-S-D","","","VNM","KOR",3425.83,null,"CERDI"]
[null,"DST-S-D,,,VNM,NLD","DST-S-D","","","VNM","NLD",13891,null,"CERDI"]
[null,"DST-S-D,,,VNM,USA","DST-S-D","","","VNM","USA",12906.4,null,"CERDI"]
[null,"DST-S-D,,,ZAF,CHN","DST-S-D","","","ZAF","CHN",12852.2,null,"CERDI"]
[null,"DST-S-D,,,ZAF,DEU","DST-S-D","","","ZAF","DEU",11789.832,null,"SEA-DISTANCES.ORG"]
[null,"DST-S-D,,,ZAF,ESP","DST-S-D","","","ZAF","ESP",11662.6,null,"CERDI"]
[null,"DST-S-D,,,ZAF,FRA","DST-S-D","","","ZAF","FRA",10912.4,null,"CERDI"]
[null,"DST-S-D,,,ZAF,IND","DST-S-D","","","ZAF","IND",7432.11,null,"CERDI"]
[null,"DST-S-D,,,ZAF,JPN","DST-S-D","","","ZAF","JPN",13881.4,null,"CERDI"]
[null,"DST-S-D,,,ZAF,KOR","DST-S-D","","","ZAF","KOR",13593.9,null,"CERDI"]
[null,"DST-S-D,,,ZAF,NLD","DST-S-D","","","ZAF","NLD",13501.1,null,"CERDI"]
[null,"DST-S-D,,,ZAF,USA","DST-S-D","","","ZAF","USA",15010.8,null,"CERDI"]
[null,"DST-S-D,,,ZAF-EC,CHN","DST-S-D","","","ZAF-EC","CHN",12852.2,null,"CERDI"]
[null,"DST-S-D,,,ZAF-EC,DEU","DST-S-D","","","ZAF-EC","DEU",11789.832,null,"SEA-DISTANCES.ORG"]
[null,"DST-S-D,,,ZAF-EC,ESP","DST-S-D","","","ZAF-EC","ESP",11662.6,null,"CERDI"]
[null,"DST-S-D,,,ZAF-EC,FRA","DST-S-D","","","ZAF-EC","FRA",10912.4,null,"CERDI"]
[null,"DST-S-D,,,ZAF-EC,IND","DST-S-D","","","ZAF-EC","IND",7432.11,null,"CERDI"]
[null,"DST-S-D,,,ZAF-EC,JPN","DST-S-D","","","ZAF-EC","JPN",13881.4,null,"CERDI"]
[null,"DST-S-D,,,ZAF-EC,KOR","DST-S-D","","","ZAF-EC","KOR",13593.9,null,"CERDI"]
[null,"DST-S-D,,,ZAF-EC,NLD","DST-S-D","","","ZAF-EC","NLD",13501.1,null,"CERDI"]
[null,"DST-S-D,,,ZAF-EC,USA","DST-S-D","","","ZAF-EC","USA",15010.8,null,"CERDI"]
[null,"DST-S-D,,,ZAF-FRS,CHN","DST-S-D","","","ZAF-FRS","CHN",12852.2,null,"CERDI"]
[null,"DST-S-D,,,ZAF-FRS,DEU","DST-S-D","","","ZAF-FRS","DEU",11789.832,null,"SEA-DISTANCES.ORG"]
[null,"DST-S-D,,,ZAF-FRS,ESP","DST-S-D","","","ZAF-FRS","ESP",11662.6,null,"CERDI"]
[null,"DST-S-D,,,ZAF-FRS,FRA","DST-S-D","","","ZAF-FRS","FRA",10912.4,null,"CERDI"]
[null,"DST-S-D,,,ZAF-FRS,IND","DST-S-D","","","ZAF-FRS","IND",7432.11,null,"CERDI"]
[null,"DST-S-D,,,ZAF-FRS,JPN","DST-S-D","","","ZAF-FRS","JPN",13881.4,null,"CERDI"]
[null,"DST-S-D,,,ZAF-FRS,KOR","DST-S-D","","","ZAF-FRS","KOR",13593.9,null,"CERDI"]
[null,"DST-S-D,,,ZAF-FRS,NLD","DST-S-D","","","ZAF-FRS","NLD",13501.1,null,"CERDI"]
[null,"DST-S-D,,,ZAF-FRS,USA","DST-S-D","","","ZAF-FRS","USA",15010.8,null,"CERDI"]
[null,"DST-S-D,,,ZAF-GAU,CHN","DST-S-D","","","ZAF-GAU","CHN",12852.2,null,"CERDI"]
[null,"DST-S-D,,,ZAF-GAU,DEU","DST-S-D","","","ZAF-GAU","DEU",11789.832,null,"SEA-DISTANCES.ORG"]
[null,"DST-S-D,,,ZAF-GAU,ESP","DST-S-D","","","ZAF-GAU","ESP",11662.6,null,"CERDI"]
[null,"DST-S-D,,,ZAF-GAU,FRA","DST-S-D","","","ZAF-GAU","FRA",10912.4,null,"CERDI"]
[null,"DST-S-D,,,ZAF-GAU,IND","DST-S-D","","","ZAF-GAU","IND",7432.11,null,"CERDI"]
[null,"DST-S-D,,,ZAF-GAU,JPN","DST-S-D","","","ZAF-GAU","JPN",13881.4,null,"CERDI"]
[null,"DST-S-D,,,ZAF-GAU,KOR","DST-S-D","","","ZAF-GAU","KOR",13593.9,null,"CERDI"]
[null,"DST-S-D,,,ZAF-GAU,NLD","DST-S-D","","","ZAF-GAU","NLD",13501.1,null,"CERDI"]
[null,"DST-S-D,,,ZAF-GAU,USA","DST-S-D","","","ZAF-GAU","USA",15010.8,null,"CERDI"]
[null,"DST-S-D,,,ZAF-KWA,CHN","DST-S-D","","","ZAF-KWA","CHN",12852.2,null,"CERDI"]
[null,"DST-S-D,,,ZAF-KWA,DEU","DST-S-D","","","ZAF-KWA","DEU",11789.832,null,"SEA-DISTANCES.ORG"]
[null,"DST-S-D,,,ZAF-KWA,ESP","DST-S-D","","","ZAF-KWA","ESP",11662.6,null,"CERDI"]
[null,"DST-S-D,,,ZAF-KWA,FRA","DST-S-D","","","ZAF-KWA","FRA",10912.4,null,"CERDI"]
[null,"DST-S-D,,,ZAF-KWA,IND","DST-S-D","","","ZAF-KWA","IND",7432.11,null,"CERDI"]
[null,"DST-S-D,,,ZAF-KWA,JPN","DST-S-D","","","ZAF-KWA","JPN",13881.4,null,"CERDI"]
[null,"DST-S-D,,,ZAF-KWA,KOR","DST-S-D","","","ZAF-KWA","KOR",13593.9,null,"CERDI"]
[null,"DST-S-D,,,ZAF-KWA,NLD","DST-S-D","","","ZAF-KWA","NLD",13501.1,null,"CERDI"]
[null,"DST-S-D,,,ZAF-KWA,USA","DST-S-D","","","ZAF-KWA","USA",15010.8,null,"CERDI"]
[null,"DST-S-D,,,ZAF-LIM,CHN","DST-S-D","","","ZAF-LIM","CHN",12852.2,null,"CERDI"]
[null,"DST-S-D,,,ZAF-LIM,DEU","DST-S-D","","","ZAF-LIM","DEU",11789.832,null,"SEA-DISTANCES.ORG"]
[null,"DST-S-D,,,ZAF-LIM,ESP","DST-S-D","","","ZAF-LIM","ESP",11662.6,null,"CERDI"]
[null,"DST-S-D,,,ZAF-LIM,FRA","DST-S-D","","","ZAF-LIM","FRA",10912.4,null,"CERDI"]
[null,"DST-S-D,,,ZAF-LIM,IND","DST-S-D","","","ZAF-LIM","IND",7432.11,null,"CERDI"]
[null,"DST-S-D,,,ZAF-LIM,JPN","DST-S-D","","","ZAF-LIM","JPN",13881.4,null,"CERDI"]
[null,"DST-S-D,,,ZAF-LIM,KOR","DST-S-D","","","ZAF-LIM","KOR",13593.9,null,"CERDI"]
[null,"DST-S-D,,,ZAF-LIM,NLD","DST-S-D","","","ZAF-LIM","NLD",13501.1,null,"CERDI"]
[null,"DST-S-D,,,ZAF-LIM,USA","DST-S-D","","","ZAF-LIM","USA",15010.8,null,"CERDI"]
[null,"DST-S-D,,,ZAF-MPU,CHN","DST-S-D","","","ZAF-MPU","CHN",12852.2,null,"CERDI"]
[null,"DST-S-D,,,ZAF-MPU,DEU","DST-S-D","","","ZAF-MPU","DEU",11789.832,null,"SEA-DISTANCES.ORG"]
[null,"DST-S-D,,,ZAF-MPU,ESP","DST-S-D","","","ZAF-MPU","ESP",11662.6,null,"CERDI"]
[null,"DST-S-D,,,ZAF-MPU,FRA","DST-S-D","","","ZAF-MPU","FRA",10912.4,null,"CERDI"]
[null,"DST-S-D,,,ZAF-MPU,IND","DST-S-D","","","ZAF-MPU","IND",7432.11,null,"CERDI"]
[null,"DST-S-D,,,ZAF-MPU,JPN","DST-S-D","","","ZAF-MPU","JPN",13881.4,null,"CERDI"]
[null,"DST-S-D,,,ZAF-MPU,KOR","DST-S-D","","","ZAF-MPU","KOR",13593.9,null,"CERDI"]
[null,"DST-S-D,,,ZAF-MPU,NLD","DST-S-D","","","ZAF-MPU","NLD",13501.1,null,"CERDI"]
[null,"DST-S-D,,,ZAF-MPU,USA","DST-S-D","","","ZAF-MPU","USA",15010.8,null,"CERDI"]
[null,"DST-S-D,,,ZAF-NC,CHN","DST-S-D","","","ZAF-NC","CHN",12852.2,null,"CERDI"]
[null,"DST-S-D,,,ZAF-NC,DEU","DST-S-D","","","ZAF-NC","DEU",11789.832,null,"SEA-DISTANCES.ORG"]
[null,"DST-S-D,,,ZAF-NC,ESP","DST-S-D","","","ZAF-NC","ESP",11662.6,null,"CERDI"]
[null,"DST-S-D,,,ZAF-NC,FRA","DST-S-D","","","ZAF-NC","FRA",10912.4,null,"CERDI"]
[null,"DST-S-D,,,ZAF-NC,IND","DST-S-D","","","ZAF-NC","IND",7432.11,null,"CERDI"]
[null,"DST-S-D,,,ZAF-NC,JPN","DST-S-D","","","ZAF-NC","JPN",13881.4,null,"CERDI"]
[null,"DST-S-D,,,ZAF-NC,KOR","DST-S-D","","","ZAF-NC","KOR",13593.9,null,"CERDI"]
[null,"DST-S-D,,,ZAF-NC,NLD","DST-S-D","","","ZAF-NC","NLD",13501.1,null,"CERDI"]
[null,"DST-S-D,,,ZAF-NC,USA","DST-S-D","","","ZAF-NC","USA",15010.8,null,"CERDI"]
[null,"DST-S-D,,,ZAF-NW,CHN","DST-S-D","","","ZAF-NW","CHN",12852.2,null,"CERDI"]
[null,"DST-S-D,,,ZAF-NW,DEU","DST-S-D","","","ZAF-NW","DEU",11789.832,null,"SEA-DISTANCES.ORG"]
[null,"DST-S-D,,,ZAF-NW,ESP","DST-S-D","","","ZAF-NW","ESP",11662.6,null,"CERDI"]
[null,"DST-S-D,,,ZAF-NW,FRA","DST-S-D","","","ZAF-NW","FRA",10912.4,null,"CERDI"]
[null,"DST-S-D,,,ZAF-NW,IND","DST-S-D","","","ZAF-NW","IND",7432.11,null,"CERDI"]
[null,"DST-S-D,,,ZAF-NW,JPN","DST-S-D","","","ZAF-NW","JPN",13881.4,null,"CERDI"]
[null,"DST-S-D,,,ZAF-NW,KOR","DST-S-D","","","ZAF-NW","KOR",13593.9,null,"CERDI"]
[null,"DST-S-D,,,ZAF-NW,NLD","DST-S-D","","","ZAF-NW","NLD",13501.1,null,"CERDI"]
[null,"DST-S-D,,,ZAF-NW,USA","DST-S-D","","","ZAF-NW","USA",15010.8,null,"CERDI"]
[null,"DST-S-D,,,ZAF-WC,CHN","DST-S-D","","","ZAF-WC","CHN",12852.2,null,"CERDI"]
[null,"DST-S-D,,,ZAF-WC,DEU","DST-S-D","","","ZAF-WC","DEU",11789.832,null,"SEA-DISTANCES.ORG"]
[null,"DST-S-D,,,ZAF-WC,ESP","DST-S-D","","","ZAF-WC","ESP",11662.6,null,"CERDI"]
[null,"DST-S-D,,,ZAF-WC,FRA","DST-S-D","","","ZAF-WC","FRA",10912.4,null,"CERDI"]
[null,"DST-S-D,,,ZAF-WC,IND","DST-S-D","","","ZAF-WC","IND",7432.11,null,"CERDI"]
[null,"DST-S-D,,,ZAF-WC,JPN","DST-S-D","","","ZAF-WC","JPN",13881.4,null,"CERDI"]
[null,"DST-S-D,,,ZAF-WC,KOR","DST-S-D","","","ZAF-WC","KOR",13593.9,null,"CERDI"]
[null,"DST-S-D,,,ZAF-WC,NLD","DST-S-D","","","ZAF-WC","NLD",13501.1,null,"CERDI"]
[null,"DST-S-D,,,ZAF-WC,USA","DST-S-D","","","ZAF-WC","USA",15010.8,null,"CERDI"]
[null,"DST-S-DP,,,ARE,CHN","DST-S-DP","","","ARE","CHN",4500,"km","Research Susanne Krieger"]
[null,"DST-S-DP,,,ARE,DEU","DST-S-DP","","","ARE","DEU",5500,"km","Research Susanne Krieger"]
[null,"DST-S-DP,,,ARE,ESP","DST-S-DP","","","ARE","ESP",6000,"km","Research Susanne Krieger"]
[null,"DST-S-DP,,,ARE,FRA","DST-S-DP","","","ARE","FRA",6000,"km","Research Susanne Krieger"]
[null,"DST-S-DP,,,ARE,IND","DST-S-DP","","","ARE","IND",2000,"km","Research Susanne Krieger"]
[null,"DST-S-DP,,,ARE,NLD","DST-S-DP","","","ARE","NLD",6000,"km","Research Susanne Krieger"]
[null,"DST-S-DP,,,CHN,IND","DST-S-DP","","","CHN","IND",3500,"km","Research Susanne Krieger"]
[null,"DST-S-DP,,,CHN,JPN","DST-S-DP","","","CHN","JPN",3500,"km","Research Susanne Krieger"]
[null,"DST-S-DP,,,CHN,KOR","DST-S-DP","","","CHN","KOR",2000,"km","Research Susanne Krieger"]
[null,"DST-S-DP,,,COL,USA","DST-S-DP","","","COL","USA",4500,"km","Research Susanne Krieger"]
[null,"DST-S-DP,,,CRI,USA","DST-S-DP","","","CRI","USA",3500,"km","Research Susanne Krieger"]
[null,"DST-S-DP,,,DNK,DEU","DST-S-DP","","","DNK","DEU",500,"km","Research Susanne Krieger"]
[null,"DST-S-DP,,,DNK,ESP","DST-S-DP","","","DNK","ESP",2000,"km","Research Susanne Krieger"]
[null,"DST-S-DP,,,DNK,FRA","DST-S-DP","","","DNK","FRA",1000,"km","Research Susanne Krieger"]
[null,"DST-S-DP,,,DNK,NLD","DST-S-DP","","","DNK","NLD",500,"km","Research Susanne Krieger"]
[null,"DST-S-DP,,,DZA,DEU","DST-S-DP","","","DZA","DEU",3000,"km","Research Susanne Krieger"]
[null,"DST-S-DP,,,DZA,ESP","DST-S-DP","","","DZA","ESP",1000,"km","Research Susanne Krieger"]
[null,"DST-S-DP,,,DZA,FRA","DST-S-DP","","","DZA","FRA",2000,"km","Research Susanne Krieger"]
[null,"DST-S-DP,,,DZA,NLD","DST-S-DP","","","DZA","NLD",3000,"km","Research Susanne Krieger"]
[null,"DST-S-DP,,,EGY,DEU","DST-S-DP","","","EGY","DEU",5000,"km","Research Susanne Krieger"]
[null,"DST-S-DP,,,EGY,ESP","DST-S-DP","","","EGY","ESP",4500,"km","Research Susanne Krieger"]
[null,"DST-S-DP,,,EGY,FRA","DST-S-DP","","","EGY","FRA",4000,"km","Research Susanne Krieger"]
[null,"DST-S-DP,,,EGY,IND","DST-S-DP","","","EGY","IND",5000,"km","Research Susanne Krieger"]
[null,"DST-S-DP,,,EGY,NLD","DST-S-DP","","","EGY","NLD",5000,"km","Research Susanne Krieger"]
[null,"DST-S-DP,,,ESP,DEU","DST-S-DP","","","ESP","DEU",1500,"km","Research Susanne Krieger"]
[null,"DST-S-DP,,,ESP,FRA","DST-S-DP","","","ESP","FRA",100,"km","Research Susanne Krieger"]
[null,"DST-S-DP,,,ESP,NLD","DST-S-DP","","","ESP","NLD",1500,"km","Research Susanne Krieger"]
[null,"DST-S-DP,,,IDN,CHN","DST-S-DP","","","IDN","CHN",4000,"km","Research Susanne Krieger"]
[null,"DST-S-DP,,,IDN,IND","DST-S-DP","","","IDN","IND",5000,"km","Research Susanne Krieger"]
[null,"DST-S-DP,,,IDN,JPN","DST-S-DP","","","IDN","JPN",5500,"km","Research Susanne Krieger"]
[null,"DST-S-DP,,,IDN,KOR","DST-S-DP","","","IDN","KOR",5500,"km","Research Susanne Krieger"]
[null,"DST-S-DP,,,IND,CHN","DST-S-DP","","","IND","CHN",3000,"km","Research Susanne Krieger"]
[null,"DST-S-DP,,,JOR,DEU","DST-S-DP","","","JOR","DEU",3500,"km","Research Susanne Krieger"]
[null,"DST-S-DP,,,JOR,ESP","DST-S-DP","","","JOR","ESP",4000,"km","Research Susanne Krieger"]
[null,"DST-S-DP,,,JOR,FRA","DST-S-DP","","","JOR","FRA",4000,"km","Research Susanne Krieger"]
[null,"DST-S-DP,,,JOR,IND","DST-S-DP","","","JOR","IND",4500,"km","Research Susanne Krieger"]
[null,"DST-S-DP,,,JOR,NLD","DST-S-DP","","","JOR","NLD",4000,"km","Research Susanne Krieger"]
[null,"DST-S-DP,,,KAZ,CHN","DST-S-DP","","","KAZ","CHN",1500,"km","Research Susanne Krieger"]
[null,"DST-S-DP,,,KAZ,DEU","DST-S-DP","","","KAZ","DEU",3500,"km","Research Susanne Krieger"]
[null,"DST-S-DP,,,KAZ,ESP","DST-S-DP","","","KAZ","ESP",5000,"km","Research Susanne Krieger"]
[null,"DST-S-DP,,,KAZ,FRA","DST-S-DP","","","KAZ","FRA",4000,"km","Research Susanne Krieger"]
[null,"DST-S-DP,,,KAZ,IND","DST-S-DP","","","KAZ","IND",3000,"km","Research Susanne Krieger"]
[null,"DST-S-DP,,,KAZ,NLD","DST-S-DP","","","KAZ","NLD",4000,"km","Research Susanne Krieger"]
[null,"DST-S-DP,,,KEN,IND","DST-S-DP","","","KEN","IND",5000,"km","Research Susanne Krieger"]
[null,"DST-S-DP,,,MAR,DEU","DST-S-DP","","","MAR","DEU",2500,"km","Research Susanne Krieger"]
[null,"DST-S-DP,,,MAR,ESP","DST-S-DP","","","MAR","ESP",250,"km","Research Susanne Krieger"]
[null,"DST-S-DP,,,MAR,FRA","DST-S-DP","","","MAR","FRA",2000,"km","Research Susanne Krieger"]
[null,"DST-S-DP,,,MAR,NLD","DST-S-DP","","","MAR","NLD",2500,"km","Research Susanne Krieger"]
[null,"DST-S-DP,,,MAR-BEN,DEU","DST-S-DP","","","MAR-BEN","DEU",2500,"km","Research Susanne Krieger"]
[null,"DST-S-DP,,,MAR-BEN,ESP","DST-S-DP","","","MAR-BEN","ESP",250,"km","Research Susanne Krieger"]
[null,"DST-S-DP,,,MAR-BEN,FRA","DST-S-DP","","","MAR-BEN","FRA",2000,"km","Research Susanne Krieger"]
[null,"DST-S-DP,,,MAR-BEN,NLD","DST-S-DP","","","MAR-BEN","NLD",2500,"km","Research Susanne Krieger"]
[null,"DST-S-DP,,,MAR-CAS,DEU","DST-S-DP","","","MAR-CAS","DEU",2500,"km","Research Susanne Krieger"]
[null,"DST-S-DP,,,MAR-CAS,ESP","DST-S-DP","","","MAR-CAS","ESP",250,"km","Research Susanne Krieger"]
[null,"DST-S-DP,,,MAR-CAS,FRA","DST-S-DP","","","MAR-CAS","FRA",2000,"km","Research Susanne Krieger"]
[null,"DST-S-DP,,,MAR-CAS,NLD","DST-S-DP","","","MAR-CAS","NLD",2500,"km","Research Susanne Krieger"]
[null,"DST-S-DP,,,MAR-DAK,DEU","DST-S-DP","","","MAR-DAK","DEU",2500,"km","Research Susanne Krieger"]
[null,"DST-S-DP,,,MAR-DAK,ESP","DST-S-DP","","","MAR-DAK","ESP",250,"km","Research Susanne Krieger"]
[null,"DST-S-DP,,,MAR-DAK,FRA","DST-S-DP","","","MAR-DAK","FRA",2000,"km","Research Susanne Krieger"]
[null,"DST-S-DP,,,MAR-DAK,NLD","DST-S-DP","","","MAR-DAK","NLD",2500,"km","Research Susanne Krieger"]
[null,"DST-S-DP,,,MAR-DRA,DEU","DST-S-DP","","","MAR-DRA","DEU",2500,"km","Research Susanne Krieger"]
[null,"DST-S-DP,,,MAR-DRA,ESP","DST-S-DP","","","MAR-DRA","ESP",250,"km","Research Susanne Krieger"]
[null,"DST-S-DP,,,MAR-DRA,FRA","DST-S-DP","","","MAR-DRA","FRA",2000,"km","Research Susanne Krieger"]
[null,"DST-S-DP,,,MAR-DRA,NLD","DST-S-DP","","","MAR-DRA","NLD",2500,"km","Research Susanne Krieger"]
[null,"DST-S-DP,,,MAR-FES,DEU","DST-S-DP","","","MAR-FES","DEU",2500,"km","Research Susanne Krieger"]
[null,"DST-S-DP,,,MAR-FES,ESP","DST-S-DP","","","MAR-FES","ESP",250,"km","Research Susanne Krieger"]
[null,"DST-S-DP,,,MAR-FES,FRA","DST-S-DP","","","MAR-FES","FRA",2000,"km","Research Susanne Krieger"]
[null,"DST-S-DP,,,MAR-FES,NLD","DST-S-DP","","","MAR-FES","NLD",2500,"km","Research Susanne Krieger"]
[null,"DST-S-DP,,,MAR-GUE,DEU","DST-S-DP","","","MAR-GUE","DEU",2500,"km","Research Susanne Krieger"]
[null,"DST-S-DP,,,MAR-GUE,ESP","DST-S-DP","","","MAR-GUE","ESP",250,"km","Research Susanne Krieger"]
[null,"DST-S-DP,,,MAR-GUE,FRA","DST-S-DP","","","MAR-GUE","FRA",2000,"km","Research Susanne Krieger"]
[null,"DST-S-DP,,,MAR-GUE,NLD","DST-S-DP","","","MAR-GUE","NLD",2500,"km","Research Susanne Krieger"]
[null,"DST-S-DP,,,MAR-LAA,DEU","DST-S-DP","","","MAR-LAA","DEU",2500,"km","Research Susanne Krieger"]
[null,"DST-S-DP,,,MAR-LAA,ESP","DST-S-DP","","","MAR-LAA","ESP",250,"km","Research Susanne Krieger"]
[null,"DST-S-DP,,,MAR-LAA,FRA","DST-S-DP","","","MAR-LAA","FRA",2000,"km","Research Susanne Krieger"]
[null,"DST-S-DP,,,MAR-LAA,NLD","DST-S-DP","","","MAR-LAA","NLD",2500,"km","Research Susanne Krieger"]
[null,"DST-S-DP,,,MAR-LOR,DEU","DST-S-DP","","","MAR-LOR","DEU",2500,"km","Research Susanne Krieger"]
[null,"DST-S-DP,,,MAR-LOR,ESP","DST-S-DP","","","MAR-LOR","ESP",250,"km","Research Susanne Krieger"]
[null,"DST-S-DP,,,MAR-LOR,FRA","DST-S-DP","","","MAR-LOR","FRA",2000,"km","Research Susanne Krieger"]
[null,"DST-S-DP,,,MAR-LOR,NLD","DST-S-DP","","","MAR-LOR","NLD",2500,"km","Research Susanne Krieger"]
[null,"DST-S-DP,,,MAR-MAR,DEU","DST-S-DP","","","MAR-MAR","DEU",2500,"km","Research Susanne Krieger"]
[null,"DST-S-DP,,,MAR-MAR,ESP","DST-S-DP","","","MAR-MAR","ESP",250,"km","Research Susanne Krieger"]
[null,"DST-S-DP,,,MAR-MAR,FRA","DST-S-DP","","","MAR-MAR","FRA",2000,"km","Research Susanne Krieger"]
[null,"DST-S-DP,,,MAR-MAR,NLD","DST-S-DP","","","MAR-MAR","NLD",2500,"km","Research Susanne Krieger"]
[null,"DST-S-DP,,,MAR-RAB,DEU","DST-S-DP","","","MAR-RAB","DEU",2500,"km","Research Susanne Krieger"]
[null,"DST-S-DP,,,MAR-RAB,ESP","DST-S-DP","","","MAR-RAB","ESP",250,"km","Research Susanne Krieger"]
[null,"DST-S-DP,,,MAR-RAB,FRA","DST-S-DP","","","MAR-RAB","FRA",2000,"km","Research Susanne Krieger"]
[null,"DST-S-DP,,,MAR-RAB,NLD","DST-S-DP","","","MAR-RAB","NLD",2500,"km","Research Susanne Krieger"]
[null,"DST-S-DP,,,MAR-SOU,DEU","DST-S-DP","","","MAR-SOU","DEU",2500,"km","Research Susanne Krieger"]
[null,"DST-S-DP,,,MAR-SOU,ESP","DST-S-DP","","","MAR-SOU","ESP",250,"km","Research Susanne Krieger"]
[null,"DST-S-DP,,,MAR-SOU,FRA","DST-S-DP","","","MAR-SOU","FRA",2000,"km","Research Susanne Krieger"]
[null,"DST-S-DP,,,MAR-SOU,NLD","DST-S-DP","","","MAR-SOU","NLD",2500,"km","Research Susanne Krieger"]
[null,"DST-S-DP,,,MAR-TAN,DEU","DST-S-DP","","","MAR-TAN","DEU",2500,"km","Research Susanne Krieger"]
[null,"DST-S-DP,,,MAR-TAN,ESP","DST-S-DP","","","MAR-TAN","ESP",250,"km","Research Susanne Krieger"]
[null,"DST-S-DP,,,MAR-TAN,FRA","DST-S-DP","","","MAR-TAN","FRA",2000,"km","Research Susanne Krieger"]
[null,"DST-S-DP,,,MAR-TAN,NLD","DST-S-DP","","","MAR-TAN","NLD",2500,"km","Research Susanne Krieger"]
[null,"DST-S-DP,,,MEX,USA","DST-S-DP","","","MEX","USA",500,"km","Research Susanne Krieger"]
[null,"DST-S-DP,,,MRT,DEU","DST-S-DP","","","MRT","DEU",5000,"km","Research Susanne Krieger"]
[null,"DST-S-DP,,,MRT,ESP","DST-S-DP","","","MRT","ESP",3000,"km","Research Susanne Krieger"]
[null,"DST-S-DP,,,MRT,FRA","DST-S-DP","","","MRT","FRA",4000,"km","Research Susanne Krieger"]
[null,"DST-S-DP,,,MRT,NLD","DST-S-DP","","","MRT","NLD",5000,"km","Research Susanne Krieger"]
[null,"DST-S-DP,,,NOR,DEU","DST-S-DP","","","NOR","DEU",500,"km","Research Susanne Krieger"]
[null,"DST-S-DP,,,NOR,ESP","DST-S-DP","","","NOR","ESP",2000,"km","Research Susanne Krieger"]
[null,"DST-S-DP,,,NOR,FRA","DST-S-DP","","","NOR","FRA",1000,"km","Research Susanne Krieger"]
[null,"DST-S-DP,,,NOR,NLD","DST-S-DP","","","NOR","NLD",1000,"km","Research Susanne Krieger"]
[null,"DST-S-DP,,,PER,USA","DST-S-DP","","","PER","USA",5500,"km","Research Susanne Krieger"]
[null,"DST-S-DP,,,PRT,DEU","DST-S-DP","","","PRT","DEU",2000,"km","Research Susanne Krieger"]
[null,"DST-S-DP,,,PRT,ESP","DST-S-DP","","","PRT","ESP",250,"km","Research Susanne Krieger"]
[null,"DST-S-DP,,,PRT,FRA","DST-S-DP","","","PRT","FRA",1000,"km","Research Susanne Krieger"]
[null,"DST-S-DP,,,PRT,NLD","DST-S-DP","","","PRT","NLD",2000,"km","Research Susanne Krieger"]
[null,"DST-S-DP,,,RUS,CHN","DST-S-DP","","","RUS","CHN",4000,"km","Research Susanne Krieger"]
[null,"DST-S-DP,,,RUS,DEU","DST-S-DP","","","RUS","DEU",1000,"km","Research Susanne Krieger"]
[null,"DST-S-DP,,,RUS,ESP","DST-S-DP","","","RUS","ESP",5000,"km","Research Susanne Krieger"]
[null,"DST-S-DP,,,RUS,FRA","DST-S-DP","","","RUS","FRA",4000,"km","Research Susanne Krieger"]
[null,"DST-S-DP,,,RUS,IND","DST-S-DP","","","RUS","IND",4000,"km","Research Susanne Krieger"]
[null,"DST-S-DP,,,RUS,JPN","DST-S-DP","","","RUS","JPN",4000,"km","Research Susanne Krieger"]
[null,"DST-S-DP,,,RUS,KOR","DST-S-DP","","","RUS","KOR",3000,"km","Research Susanne Krieger"]
[null,"DST-S-DP,,,RUS,NLD","DST-S-DP","","","RUS","NLD",4000,"km","Research Susanne Krieger"]
[null,"DST-S-DP,,,SAU,DEU","DST-S-DP","","","SAU","DEU",4500,"km","Research Susanne Krieger"]
[null,"DST-S-DP,,,SAU,ESP","DST-S-DP","","","SAU","ESP",5000,"km","Research Susanne Krieger"]
[null,"DST-S-DP,,,SAU,FRA","DST-S-DP","","","SAU","FRA",5000,"km","Research Susanne Krieger"]
[null,"DST-S-DP,,,SAU,IND","DST-S-DP","","","SAU","IND",3500,"km","Research Susanne Krieger"]
[null,"DST-S-DP,,,SAU,NLD","DST-S-DP","","","SAU","NLD",5000,"km","Research Susanne Krieger"]
[null,"DST-S-DP,,,SWE,DEU","DST-S-DP","","","SWE","DEU",1000,"km","Research Susanne Krieger"]
[null,"DST-S-DP,,,SWE,ESP","DST-S-DP","","","SWE","ESP",3000,"km","Research Susanne Krieger"]
[null,"DST-S-DP,,,SWE,FRA","DST-S-DP","","","SWE","FRA",2000,"km","Research Susanne Krieger"]
[null,"DST-S-DP,,,SWE,NLD","DST-S-DP","","","SWE","NLD",2000,"km","Research Susanne Krieger"]
[null,"DST-S-DP,,,THA,CHN","DST-S-DP","","","THA","CHN",1500,"km","Research Susanne Krieger"]
[null,"DST-S-DP,,,THA,IND","DST-S-DP","","","THA","IND",2500,"km","Research Susanne Krieger"]
[null,"DST-S-DP,,,THA,JPN","DST-S-DP","","","THA","JPN",5000,"km","Research Susanne Krieger"]
[null,"DST-S-DP,,,THA,KOR","DST-S-DP","","","THA","KOR",5000,"km","Research Susanne Krieger"]
[null,"DST-S-DP,,,TUN,DEU","DST-S-DP","","","TUN","DEU",2000,"km","Research Susanne Krieger"]
[null,"DST-S-DP,,,TUN,ESP","DST-S-DP","","","TUN","ESP",1500,"km","Research Susanne Krieger"]
[null,"DST-S-DP,,,TUN,FRA","DST-S-DP","","","TUN","FRA",1000,"km","Research Susanne Krieger"]
[null,"DST-S-DP,,,TUN,NLD","DST-S-DP","","","TUN","NLD",2500,"km","Research Susanne Krieger"]
[null,"DST-S-DP,,,UKR,DEU","DST-S-DP","","","UKR","DEU",1500,"km","Research Susanne Krieger"]
[null,"DST-S-DP,,,UKR,ESP","DST-S-DP","","","UKR","ESP",3000,"km","Research Susanne Krieger"]
[null,"DST-S-DP,,,UKR,FRA","DST-S-DP","","","UKR","FRA",2000,"km","Research Susanne Krieger"]
[null,"DST-S-DP,,,UKR,NLD","DST-S-DP","","","UKR","NLD",2000,"km","Research Susanne Krieger"]
[null,"DST-S-DP,,,VNM,CHN","DST-S-DP","","","VNM","CHN",1000,"km","Research Susanne Krieger"]
[null,"DST-S-DP,,,VNM,IND","DST-S-DP","","","VNM","IND",3500,"km","Research Susanne Krieger"]
[null,"DST-S-DP,,,VNM,JPN","DST-S-DP","","","VNM","JPN",4000,"km","Research Susanne Krieger"]
[null,"DST-S-DP,,,VNM,KOR","DST-S-DP","","","VNM","KOR",5000,"km","Research Susanne Krieger"]
[null,"EFF,AEL-EL,,,","EFF","AEL-EL","","","",0.71499999999999997,"various (output per main input)"]
[null,"EFF,ATR,,,","EFF","ATR","","","",0.79991999999999996,"various (output per main input)","Oni et al. 2022"]
[null,"EFF,CH3OHSYN,,,","EFF","CH3OHSYN","","","",0.80300000000000005,"various (output per main input)","Frontier Economics 2021"]
[null,"EFF,CH4-RGAS,,,","EFF","CH4-RGAS","","","",0.98,"various (output per main input)","Pospíšil et al. 2019"]
[null,"EFF,CH4SYN,,,","EFF","CH4SYN","","","",0.83,"various (output per main input)","Öko-Institut 2020"]
[null,"EFF,DESAL,,,","EFF","DESAL","","","",1,"various (output per main input)"]
[null,"EFF,DRI,,,","EFF","DRI","","","",0.35759897828863341,"kg DRI (s)/kwhh2","Agora Industry Transformation 2021"]
[null,"EFF,EFUELSYN,,,","EFF","EFUELSYN","","","",0.73,"various (output per main input)","Frontier Economics 2021"]
[null,"EFF,H2-LIQ,,,","EFF","H2-LIQ","","","",1,"various (output per main input)"]
[null,"EFF,H2-RGAS,,,","EFF","H2-RGAS","","","",0.99519519519519517,"various (output per main input)","DNV GL 2020"]
[null,"EFF,LOHC-REC,,,","EFF","LOHC-REC","","","",0.9,"various (output per main input)","DNV GL 2020"]
[null,"EFF,NH3-REC,,,","EFF","NH3-REC","","","",0.75169491525423726,"various (output per main input)","NGN; Equinor 2018"]
[null,"EFF,NH3SYN,,,","EFF","NH3SYN","","","",0.81899999999999995,"various (output per main input)","Frotier Economics 2021"]
[null,"EFF,PEM-EL,,,","EFF","PEM-EL","","","",0.70499999999999996,"various (output per main input)"]
[null,"EFF,REGASATR,,,","EFF","REGASATR","","","",0.77991999999999995,"various (output per main input)","combined values"]
[null,"EFF,SOEC-EL,,,","EFF","SOEC-EL","","","",0.77333333333333321,"various (output per main input)"]
[null,"FLH,AEL-EL,,,","FLH","AEL-EL","","","",3861.9141914191418,"h","average of PTX Atlas"]
[null,"FLH,DRI,,,","FLH","DRI","","","",7884,"0"]
[null,"FLH,NH3SYN,,,","FLH","NH3SYN","","","",8000,"h","Fasihi et al. 2021"]
[null,"FLH,PEM-EL,,,","FLH","PEM-EL","","","",3861.9141914191418,"h","average of PTX Atlas"]
[null,"FLH,PV-FIX,,ARE,","FLH","PV-FIX","","ARE","",1662,"h"]
[null,"FLH,PV-FIX,,ARG,","FLH","PV-FIX","","ARG","",1494,"h"]
[null,"FLH,PV-FIX,,ARG-BA,","FLH","PV-FIX","","ARG-BA","",1501.409990284945,"h"]
[null,"FLH,PV-FIX,,ARG-CAT,","FLH","PV-FIX","","ARG-CAT","",2184.2849520000136,"h"]
[null,"FLH,PV-FIX,,ARG-CBA,","FLH","PV-FIX","","ARG-CBA","",1472.2464967200012,"h"]
[null,"FLH,PV-FIX,,ARG-CHA,","FLH","PV-FIX","","ARG-CHA","",1462.293405359997,"h"]
[null,"FLH,PV-FIX,,ARG-CHU,","FLH","PV-FIX","","ARG-CHU","",1565.6552791200011,"h"]
[null,"FLH,PV-FIX,,ARG-COR,","FLH","PV-FIX","","ARG-COR","",1411.9226517600005,"h"]
[null,"FLH,PV-FIX,,ARG-CRB,","FLH","PV-FIX","","ARG-CRB","",1571.8333939199993,"h"]
[null,"FLH,PV-FIX,,ARG-CRU,","FLH","PV-FIX","","ARG-CRU","",1419.2559755999985,"h"]
[null,"FLH,PV-FIX,,ARG-EST,","FLH","PV-FIX","","ARG-EST","",1553.4726681600023,"h"]
[null,"FLH,PV-FIX,,ARG-FOR,","FLH","PV-FIX","","ARG-FOR","",1449.92262888,"h"]
[null,"FLH,PV-FIX,,ARG-FUE,","FLH","PV-FIX","","ARG-FUE","",919.59809255999858,"h"]
[null,"FLH,PV-FIX,,ARG-JUJ,","FLH","PV-FIX","","ARG-JUJ","",2038.9844970000051,"h"]
[null,"FLH,PV-FIX,,ARG-LAR,","FLH","PV-FIX","","ARG-LAR","",1927.5699347999985,"h"]
[null,"FLH,PV-FIX,,ARG-MEN,","FLH","PV-FIX","","ARG-MEN","",1738.9096295999984,"h"]
[null,"FLH,PV-FIX,,ARG-MIS,","FLH","PV-FIX","","ARG-MIS","",1441.0558828799994,"h"]
[null,"FLH,PV-FIX,,ARG-NEG,","FLH","PV-FIX","","ARG-NEG","",1598.6654748000003,"h"]
[null,"FLH,PV-FIX,,ARG-NEU,","FLH","PV-FIX","","ARG-NEU","",1672.0413458399996,"h"]
[null,"FLH,PV-FIX,,ARG-PAM,","FLH","PV-FIX","","ARG-PAM","",1585.1219047199993,"h"]
[null,"FLH,PV-FIX,,ARG-RIO,","FLH","PV-FIX","","ARG-RIO","",1444.5405770399989,"h"]
[null,"FLH,PV-FIX,,ARG-SAF,","FLH","PV-FIX","","ARG-SAF","",1463.6960647199994,"h"]
[null,"FLH,PV-FIX,,ARG-SAJ,","FLH","PV-FIX","","ARG-SAJ","",1798.3159226999983,"h"]
[null,"FLH,PV-FIX,,ARG-SAL,","FLH","PV-FIX","","ARG-SAL","",1674.9613511999978,"h"]
[null,"FLH,PV-FIX,,ARG-SAT,","FLH","PV-FIX","","ARG-SAT","",1564.1549919000008,"h"]
[null,"FLH,PV-FIX,,ARG-TUC,","FLH","PV-FIX","","ARG-TUC","",1670.31158688,"h"]
[null,"FLH,PV-FIX,,AUS,","FLH","PV-FIX","","AUS","",1557,"h"]
[null,"FLH,PV-FIX,,BRA,","FLH","PV-FIX","","BRA","",1346,"h"]
[null,"FLH,PV-FIX,,CHL,","FLH","PV-FIX","","CHL","",1939,"h"]
[null,"FLH,PV-FIX,,CHN,","FLH","PV-FIX","","CHN","",1845.4554144000026,"h"]
[null,"FLH,PV-FIX,,COL,","FLH","PV-FIX","","COL","",1300,"h"]
[null,"FLH,PV-FIX,,CRI,","FLH","PV-FIX","","CRI","",1336.1040323999978,"h"]
[null,"FLH,PV-FIX,,DNK,","FLH","PV-FIX","","DNK","",957.75962760000073,"h"]
[null,"FLH,PV-FIX,,DZA,","FLH","PV-FIX","","DZA","",1699,"h"]
[null,"FLH,PV-FIX,,EGY,","FLH","PV-FIX","","EGY","",1744,"h"]
[null,"FLH,PV-FIX,,ESP,","FLH","PV-FIX","","ESP","",1567.2650796000021,"h"]
[null,"FLH,PV-FIX,,IDN,","FLH","PV-FIX","","IDN","",1506,"h"]
[null,"FLH,PV-FIX,,IND,","FLH","PV-FIX","","IND","",1562,"h"]
[null,"FLH,PV-FIX,,JOR,","FLH","PV-FIX","","JOR","",1792,"h"]
[null,"FLH,PV-FIX,,KAZ,","FLH","PV-FIX","","KAZ","",1425,"h"]
[null,"FLH,PV-FIX,,KEN,","FLH","PV-FIX","","KEN","",1418,"h"]
[null,"FLH,PV-FIX,,MAR,","FLH","PV-FIX","","MAR","",1631,"h"]
[null,"FLH,PV-FIX,,MAR-BEN,","FLH","PV-FIX","","MAR-BEN","",1745.3384668799999,"h"]
[null,"FLH,PV-FIX,,MAR-CAS,","FLH","PV-FIX","","MAR-CAS","",1665.7276233599982,"h"]
[null,"FLH,PV-FIX,,MAR-DAK,","FLH","PV-FIX","","MAR-DAK","",1728.1917287999981,"h"]
[null,"FLH,PV-FIX,,MAR-DRA,","FLH","PV-FIX","","MAR-DRA","",1808.0709587999988,"h"]
[null,"FLH,PV-FIX,,MAR-FES,","FLH","PV-FIX","","MAR-FES","",1678.0894264800027,"h"]
[null,"FLH,PV-FIX,,MAR-GUE,","FLH","PV-FIX","","MAR-GUE","",1758.0457144800002,"h"]
[null,"FLH,PV-FIX,,MAR-LAA,","FLH","PV-FIX","","MAR-LAA","",1742.770432080001,"h"]
[null,"FLH,PV-FIX,,MAR-LOR,","FLH","PV-FIX","","MAR-LOR","",1709.8854897600017,"h"]
[null,"FLH,PV-FIX,,MAR-MAR,","FLH","PV-FIX","","MAR-MAR","",1734.1491045599982,"h"]
[null,"FLH,PV-FIX,,MAR-RAB,","FLH","PV-FIX","","MAR-RAB","",1620.7182007199983,"h"]
[null,"FLH,PV-FIX,,MAR-SOU,","FLH","PV-FIX","","MAR-SOU","",1800.775983599998,"h"]
[null,"FLH,PV-FIX,,MAR-TAN,","FLH","PV-FIX","","MAR-TAN","",1615.309697519999,"h"]
[null,"FLH,PV-FIX,,MEX,","FLH","PV-FIX","","MEX","",1731,"h"]
[null,"FLH,PV-FIX,,MRT,","FLH","PV-FIX","","MRT","",1657,"h"]
[null,"FLH,PV-FIX,,NAM,","FLH","PV-FIX","","NAM","",1859.5896948000045,"h"]
[null,"FLH,PV-FIX,,NOR,","FLH","PV-FIX","","NOR","",845.30347200000051,"h"]
[null,"FLH,PV-FIX,,PER,","FLH","PV-FIX","","PER","",1746,"h"]
[null,"FLH,PV-FIX,,PRT,","FLH","PV-FIX","","PRT","",1445.5080791999967,"h"]
[null,"FLH,PV-FIX,,RUS,","FLH","PV-FIX","","RUS","",1173,"h"]
[null,"FLH,PV-FIX,,SAU,","FLH","PV-FIX","","SAU","",1723,"h"]
[null,"FLH,PV-FIX,,SWE,","FLH","PV-FIX","","SWE","",886.08134879999852,"h"]
[null,"FLH,PV-FIX,,THA,","FLH","PV-FIX","","THA","",1254.531981600001,"h"]
[null,"FLH,PV-FIX,,TUN,","FLH","PV-FIX","","TUN","",1611,"h"]
[null,"FLH,PV-FIX,,UKR,","FLH","PV-FIX","","UKR","",1398.7297331999989,"h"]
[null,"FLH,PV-FIX,,URY,","FLH","PV-FIX","","URY","",1338,"h"]
[null,"FLH,PV-FIX,,USA,","FLH","PV-FIX","","USA","",1593,"h"]
[null,"FLH,PV-FIX,,VNM,","FLH","PV-FIX","","VNM","",1266.9854976000001,"h"]
[null,"FLH,PV-FIX,,ZAF,","FLH","PV-FIX","","ZAF","",1603,"h"]
[null,"FLH,PV-FIX,,ZAF-EC,","FLH","PV-FIX","","ZAF-EC","",1725.7083537599988,"h"]
[null,"FLH,PV-FIX,,ZAF-FRS,","FLH","PV-FIX","","ZAF-FRS","",1808.769283199998,"h"]
[null,"FLH,PV-FIX,,ZAF-GAU,","FLH","PV-FIX","","ZAF-GAU","",1770.0387314399968,"h"]
[null,"FLH,PV-FIX,,ZAF-KWA,","FLH","PV-FIX","","ZAF-KWA","",1694.9134799999979,"h"]
[null,"FLH,PV-FIX,,ZAF-LIM,","FLH","PV-FIX","","ZAF-LIM","",1711.457395919999,"h"]
[null,"FLH,PV-FIX,,ZAF-MPU,","FLH","PV-FIX","","ZAF-MPU","",1752.2448955200002,"h"]
[null,"FLH,PV-FIX,,ZAF-NC,","FLH","PV-FIX","","ZAF-NC","",1814.9242226399974,"h"]
[null,"FLH,PV-FIX,,ZAF-NW,","FLH","PV-FIX","","ZAF-NW","",1786.6500962399978,"h"]
[null,"FLH,PV-FIX,,ZAF-WC,","FLH","PV-FIX","","ZAF-WC","",1664.7200798400002,"h"]
[null,"FLH,RES-HYBR,,ARE,","FLH","RES-HYBR","","ARE","",3116.3347803479924,"h"]
[null,"FLH,RES-HYBR,,ARG,","FLH","RES-HYBR","","ARG","",5660.92,"h"]
[null,"FLH,RES-HYBR,,ARG-BA,","FLH","RES-HYBR","","ARG-BA","",4945.8767126930315,"h"]
[null,"FLH,RES-HYBR,,ARG-CAT,","FLH","RES-HYBR","","ARG-CAT","",4818.1134165187877,"h"]
[null,"FLH,RES-HYBR,,ARG-CBA,","FLH","RES-HYBR","","ARG-CBA","",4796.3272366469528,"h"]
[null,"FLH,RES-HYBR,,ARG-CHA,","FLH","RES-HYBR","","ARG-CHA","",4353.1801274671416,"h"]
[null,"FLH,RES-HYBR,,ARG-CHU,","FLH","RES-HYBR","","ARG-CHU","",6390.4146064505558,"h"]
[null,"FLH,RES-HYBR,,ARG-COR,","FLH","RES-HYBR","","ARG-COR","",4296.9749353692923,"h"]
[null,"FLH,RES-HYBR,,ARG-CRB,","FLH","RES-HYBR","","ARG-CRB","",4058.0540031422247,"h"]
[null,"FLH,RES-HYBR,,ARG-CRU,","FLH","RES-HYBR","","ARG-CRU","",6369.4767112831887,"h"]
[null,"FLH,RES-HYBR,,ARG-EST,","FLH","RES-HYBR","","ARG-EST","",4886.4479918271754,"h"]
[null,"FLH,RES-HYBR,,ARG-FOR,","FLH","RES-HYBR","","ARG-FOR","",4947.3662874337479,"h"]
[null,"FLH,RES-HYBR,,ARG-FUE,","FLH","RES-HYBR","","ARG-FUE","",4348.7759583573197,"h"]
[null,"FLH,RES-HYBR,,ARG-JUJ,","FLH","RES-HYBR","","ARG-JUJ","",5341.5292254807428,"h"]
[null,"FLH,RES-HYBR,,ARG-LAR,","FLH","RES-HYBR","","ARG-LAR","",4993.6358442638966,"h"]
[null,"FLH,RES-HYBR,,ARG-MEN,","FLH","RES-HYBR","","ARG-MEN","",4634.7425576878331,"h"]
[null,"FLH,RES-HYBR,,ARG-MIS,","FLH","RES-HYBR","","ARG-MIS","",3199.5290500507745,"h"]
[null,"FLH,RES-HYBR,,ARG-NEG,","FLH","RES-HYBR","","ARG-NEG","",5871.0170147807694,"h"]
[null,"FLH,RES-HYBR,,ARG-NEU,","FLH","RES-HYBR","","ARG-NEU","",5150.2668537210066,"h"]
[null,"FLH,RES-HYBR,,ARG-PAM,","FLH","RES-HYBR","","ARG-PAM","",5140.6823491886607,"h"]
[null,"FLH,RES-HYBR,,ARG-RIO,","FLH","RES-HYBR","","ARG-RIO","",4336.8044520469111,"h"]
[null,"FLH,RES-HYBR,,ARG-SAF,","FLH","RES-HYBR","","ARG-SAF","",4440.5215244686588,"h"]
[null,"FLH,RES-HYBR,,ARG-SAJ,","FLH","RES-HYBR","","ARG-SAJ","",4214.2631306310104,"h"]
[null,"FLH,RES-HYBR,,ARG-SAL,","FLH","RES-HYBR","","ARG-SAL","",5055.8296990927674,"h"]
[null,"FLH,RES-HYBR,,ARG-SAT,","FLH","RES-HYBR","","ARG-SAT","",4747.3079047460951,"h"]
[null,"FLH,RES-HYBR,,ARG-TUC,","FLH","RES-HYBR","","ARG-TUC","",3565.3259655172683,"h"]
[null,"FLH,RES-HYBR,,AUS,","FLH","RES-HYBR","","AUS","",4753.97,"h"]
[null,"FLH,RES-HYBR,,BRA,","FLH","RES-HYBR","","BRA","",5155.55,"h"]
[null,"FLH,RES-HYBR,,CHL,","FLH","RES-HYBR","","CHL","",3450.29,"h"]
[null,"FLH,RES-HYBR,,CHN,","FLH","RES-HYBR","","CHN","",5183.707028904495,"h"]
[null,"FLH,RES-HYBR,,COL,","FLH","RES-HYBR","","COL","",5503,"h"]
[null,"FLH,RES-HYBR,,CRI,","FLH","RES-HYBR","","CRI","",3421.5147964974931,"h"]
[null,"FLH,RES-HYBR,,DNK,","FLH","RES-HYBR","","DNK","",5197.0268387719998,"h"]
[null,"FLH,RES-HYBR,,DZA,","FLH","RES-HYBR","","DZA","",4270.91,"h"]
[null,"FLH,RES-HYBR,,EGY,","FLH","RES-HYBR","","EGY","",4644.3599999999997,"h"]
[null,"FLH,RES-HYBR,,ESP,","FLH","RES-HYBR","","ESP","",5668.5234185745076,"h"]
[null,"FLH,RES-HYBR,,IDN,","FLH","RES-HYBR","","IDN","",2496.284437136494,"h"]
[null,"FLH,RES-HYBR,,IND,","FLH","RES-HYBR","","IND","",4890.74,"h"]
[null,"FLH,RES-HYBR,,JOR,","FLH","RES-HYBR","","JOR","",2376.5,"h"]
[null,"FLH,RES-HYBR,,KAZ,","FLH","RES-HYBR","","KAZ","",5289.962108140493,"h"]
[null,"FLH,RES-HYBR,,KEN,","FLH","RES-HYBR","","KEN","",3668.54,"h"]
[null,"FLH,RES-HYBR,,MAR,","FLH","RES-HYBR","","MAR","",4739.42,"h"]
[null,"FLH,RES-HYBR,,MAR-BEN,","FLH","RES-HYBR","","MAR-BEN","",3352.6974508185135,"h"]
[null,"FLH,RES-HYBR,,MAR-CAS,","FLH","RES-HYBR","","MAR-CAS","",4107.461264954989,"h"]
[null,"FLH,RES-HYBR,,MAR-DAK,","FLH","RES-HYBR","","MAR-DAK","",6342.17431498525,"h"]
[null,"FLH,RES-HYBR,,MAR-DRA,","FLH","RES-HYBR","","MAR-DRA","",4442.5500678171611,"h"]
[null,"FLH,RES-HYBR,,MAR-FES,","FLH","RES-HYBR","","MAR-FES","",3693.5166831944407,"h"]
[null,"FLH,RES-HYBR,,MAR-GUE,","FLH","RES-HYBR","","MAR-GUE","",5015.1834420732221,"h"]
[null,"FLH,RES-HYBR,,MAR-LAA,","FLH","RES-HYBR","","MAR-LAA","",5823.2278770450366,"h"]
[null,"FLH,RES-HYBR,,MAR-LOR,","FLH","RES-HYBR","","MAR-LOR","",4805.6356254658413,"h"]
[null,"FLH,RES-HYBR,,MAR-MAR,","FLH","RES-HYBR","","MAR-MAR","",3574.4335757714989,"h"]
[null,"FLH,RES-HYBR,,MAR-RAB,","FLH","RES-HYBR","","MAR-RAB","",3447.3598533759478,"h"]
[null,"FLH,RES-HYBR,,MAR-SOU,","FLH","RES-HYBR","","MAR-SOU","",4479.2641726234597,"h"]
[null,"FLH,RES-HYBR,,MAR-TAN,","FLH","RES-HYBR","","MAR-TAN","",4503.3511393000135,"h"]
[null,"FLH,RES-HYBR,,MEX,","FLH","RES-HYBR","","MEX","",4219.5,"h"]
[null,"FLH,RES-HYBR,,MRT,","FLH","RES-HYBR","","MRT","",6214.79,"h"]
[null,"FLH,RES-HYBR,,NAM,","FLH","RES-HYBR","","NAM","",6766.4489765195067,"h"]
[null,"FLH,RES-HYBR,,NOR,","FLH","RES-HYBR","","NOR","",4955.9832041924956,"h"]
[null,"FLH,RES-HYBR,,PER,","FLH","RES-HYBR","","PER","",2965.29,"h"]
[null,"FLH,RES-HYBR,,PRT,","FLH","RES-HYBR","","PRT","",5677.7820377284897,"h"]
[null,"FLH,RES-HYBR,,RUS,","FLH","RES-HYBR","","RUS","",3549.23,"h"]
[null,"FLH,RES-HYBR,,SAU,","FLH","RES-HYBR","","SAU","",3830.5299999999997,"h"]
[null,"FLH,RES-HYBR,,SWE,","FLH","RES-HYBR","","SWE","",3823.9828340194917,"h"]
[null,"FLH,RES-HYBR,,THA,","FLH","RES-HYBR","","THA","",3569.5369351590002,"h"]
[null,"FLH,RES-HYBR,,TUN,","FLH","RES-HYBR","","TUN","",4306.8,"h"]
[null,"FLH,RES-HYBR,,UKR,","FLH","RES-HYBR","","UKR","",5019.1641120944814,"h"]
[null,"FLH,RES-HYBR,,URY,","FLH","RES-HYBR","","URY","",4775.3099999999995,"h"]
[null,"FLH,RES-HYBR,,USA,","FLH","RES-HYBR","","USA","",5067.28,"h"]
[null,"FLH,RES-HYBR,,VNM,","FLH","RES-HYBR","","VNM","",4699.5574412419974,"h"]
[null,"FLH,RES-HYBR,,ZAF,","FLH","RES-HYBR","","ZAF","",4382.46,"h"]
[null,"FLH,RES-HYBR,,ZAF-EC,","FLH","RES-HYBR","","ZAF-EC","",5288.7578237093758,"h"]
[null,"FLH,RES-HYBR,,ZAF-FRS,","FLH","RES-HYBR","","ZAF-FRS","",4425.6106106284642,"h"]
[null,"FLH,RES-HYBR,,ZAF-GAU,","FLH","RES-HYBR","","ZAF-GAU","",3757.1990000000001,"h"]
[null,"FLH,RES-HYBR,,ZAF-KWA,","FLH","RES-HYBR","","ZAF-KWA","",4268.4057445788794,"h"]
[null,"FLH,RES-HYBR,,ZAF-LIM,","FLH","RES-HYBR","","ZAF-LIM","",4233.3590689024513,"h"]
[null,"FLH,RES-HYBR,,ZAF-MPU,","FLH","RES-HYBR","","ZAF-MPU","",4233.3590689024513,"h"]
[null,"FLH,RES-HYBR,,ZAF-NC,","FLH","RES-HYBR","","ZAF-NC","",5250.5102949318216,"h"]
[null,"FLH,RES-HYBR,,ZAF-NW,","FLH","RES-HYBR","","ZAF-NW","",4461.2336445282735,"h"]
[null,"FLH,RES-HYBR,,ZAF-WC,","FLH","RES-HYBR","","ZAF-WC","",4751.4057997393265,"h"]
[null,"FLH,SOEC-EL,,,","FLH","SOEC-EL","","","",5519.7223140495871,"h","average of PTX Atlas"]
[null,"FLH,WIND-OFF,,ARE,","FLH","WIND-OFF","","ARE","",2453,"h","Bosch et al. 2018"]
[null,"FLH,WIND-OFF,,ARG,","FLH","WIND-OFF","","ARG","",5369,"h","Bosch et al. 2018"]
[null,"FLH,WIND-OFF,,ARG-BA,","FLH","WIND-OFF","","ARG-BA","",3854.4,"h","Bosch et al. 2018"]
[null,"FLH,WIND-OFF,,ARG-CBA,","FLH","WIND-OFF","","ARG-CBA","",3854.4,"h","Bosch et al. 2018"]
[null,"FLH,WIND-OFF,,ARG-CHU,","FLH","WIND-OFF","","ARG-CHU","",5763.0835753699857,"h","Bosch et al. 2018"]
[null,"FLH,WIND-OFF,,ARG-CRU,","FLH","WIND-OFF","","ARG-CRU","",5854.9926980599967,"h","Bosch et al. 2018"]
[null,"FLH,WIND-OFF,,ARG-FUE,","FLH","WIND-OFF","","ARG-FUE","",3854.4,"h","Bosch et al. 2018"]
[null,"FLH,WIND-OFF,,ARG-NEG,","FLH","WIND-OFF","","ARG-NEG","",4738.1899020500086,"h","Bosch et al. 2018"]
[null,"FLH,WIND-OFF,,AUS,","FLH","WIND-OFF","","AUS","",4205,"h","Bosch et al. 2018"]
[null,"FLH,WIND-OFF,,BRA,","FLH","WIND-OFF","","BRA","",3854,"h","Bosch et al. 2018"]
[null,"FLH,WIND-OFF,,CHL,","FLH","WIND-OFF","","CHL","",6034,"h","Bosch et al. 2018"]
[null,"FLH,WIND-OFF,,CHN,","FLH","WIND-OFF","","CHN","",3592,"h","Bosch et al. 2018"]
[null,"FLH,WIND-OFF,,COL,","FLH","WIND-OFF","","COL","",4269,"h"]
[null,"FLH,WIND-OFF,,CRI,","FLH","WIND-OFF","","CRI","",2803,"h","Bosch et al. 2018"]
[null,"FLH,WIND-OFF,,DNK,","FLH","WIND-OFF","","DNK","",4730.4000000000005,"h","Bosch et al. 2018"]
[null,"FLH,WIND-OFF,,DZA,","FLH","WIND-OFF","","DZA","",3066,"h","Bosch et al. 2018"]
[null,"FLH,WIND-OFF,,EGY,","FLH","WIND-OFF","","EGY","",3066,"h","Bosch et al. 2018"]
[null,"FLH,WIND-OFF,,ESP,","FLH","WIND-OFF","","ESP","",4277,"h","Bosch et al. 2018"]
[null,"FLH,WIND-OFF,,IDN,","FLH","WIND-OFF","","IDN","",2453,"h","Bosch et al. 2018"]
[null,"FLH,WIND-OFF,,IND,","FLH","WIND-OFF","","IND","",3567,"h","Bosch et al. 2018"]
[null,"FLH,WIND-OFF,,KAZ,","FLH","WIND-OFF","","KAZ","",3697,"h","Bosch et al. 2018"]
[null,"FLH,WIND-OFF,,KEN,","FLH","WIND-OFF","","KEN","",3329,"h","Bosch et al. 2018"]
[null,"FLH,WIND-OFF,,MAR,","FLH","WIND-OFF","","MAR","",4643,"h","Bosch et al. 2018"]
[null,"FLH,WIND-OFF,,MAR-CAS,","FLH","WIND-OFF","","MAR-CAS","",4642.8,"h","Bosch et al. 2018"]
[null,"FLH,WIND-OFF,,MAR-DAK,","FLH","WIND-OFF","","MAR-DAK","",5181.7820854799875,"h","Bosch et al. 2018"]
[null,"FLH,WIND-OFF,,MAR-GUE,","FLH","WIND-OFF","","MAR-GUE","",4642.8,"h","Bosch et al. 2018"]
[null,"FLH,WIND-OFF,,MAR-LAA,","FLH","WIND-OFF","","MAR-LAA","",4642.8,"h","Bosch et al. 2018"]
[null,"FLH,WIND-OFF,,MAR-LOR,","FLH","WIND-OFF","","MAR-LOR","",4642.8,"h","Bosch et al. 2018"]
[null,"FLH,WIND-OFF,,MAR-MAR,","FLH","WIND-OFF","","MAR-MAR","",4642.8,"h","Bosch et al. 2018"]
[null,"FLH,WIND-OFF,,MAR-RAB,","FLH","WIND-OFF","","MAR-RAB","",4642.8,"h","Bosch et al. 2018"]
[null,"FLH,WIND-OFF,,MAR-SOU,","FLH","WIND-OFF","","MAR-SOU","",4642.8,"h","Bosch et al. 2018"]
[null,"FLH,WIND-OFF,,MAR-TAN,","FLH","WIND-OFF","","MAR-TAN","",4642.8,"h","Bosch et al. 2018"]
[null,"FLH,WIND-OFF,,MEX,","FLH","WIND-OFF","","MEX","",4042,"h","Bosch et al. 2018"]
[null,"FLH,WIND-OFF,,MRT,","FLH","WIND-OFF","","MRT","",4750,"h","Bosch et al. 2018"]
[null,"FLH,WIND-OFF,,NAM,","FLH","WIND-OFF","","NAM","",5116,"h","Bosch et al. 2018"]
[null,"FLH,WIND-OFF,,NOR,","FLH","WIND-OFF","","NOR","",4730,"h","Bosch et al. 2018"]
[null,"FLH,WIND-OFF,,PER,","FLH","WIND-OFF","","PER","",3854,"h","Bosch et al. 2018"]
[null,"FLH,WIND-OFF,,PRT,","FLH","WIND-OFF","","PRT","",4408,"h","Bosch et al. 2018"]
[null,"FLH,WIND-OFF,,RUS,","FLH","WIND-OFF","","RUS","",4522,"h","Bosch et al. 2018"]
[null,"FLH,WIND-OFF,,SAU,","FLH","WIND-OFF","","SAU","",2453,"h","Bosch et al. 2018"]
[null,"FLH,WIND-OFF,,SWE,","FLH","WIND-OFF","","SWE","",4730,"h","Bosch et al. 2018"]
[null,"FLH,WIND-OFF,,THA,","FLH","WIND-OFF","","THA","",2453,"h","Bosch et al. 2018"]
[null,"FLH,WIND-OFF,,TUN,","FLH","WIND-OFF","","TUN","",3066,"h","Bosch et al. 2018"]
[null,"FLH,WIND-OFF,,UKR,","FLH","WIND-OFF","","UKR","",3066,"h","Bosch et al. 2018"]
[null,"FLH,WIND-OFF,,URY,","FLH","WIND-OFF","","URY","",3854,"h","Bosch et al. 2018"]
[null,"FLH,WIND-OFF,,USA,","FLH","WIND-OFF","","USA","",4030,"h","Bosch et al. 2018"]
[null,"FLH,WIND-OFF,,VNM,","FLH","WIND-OFF","","VNM","",3578,"h","Bosch et al. 2018"]
[null,"FLH,WIND-OFF,,ZAF,","FLH","WIND-OFF","","ZAF","",4117,"h","Bosch et al. 2018"]
[null,"FLH,WIND-OFF,,ZAF-EC,","FLH","WIND-OFF","","ZAF-EC","",4117.2,"h","Bosch et al. 2018"]
[null,"FLH,WIND-OFF,,ZAF-KWA,","FLH","WIND-OFF","","ZAF-KWA","",4117.2,"h","Bosch et al. 2018"]
[null,"FLH,WIND-OFF,,ZAF-NC,","FLH","WIND-OFF","","ZAF-NC","",4117.2,"h","Bosch et al. 2018"]
[null,"FLH,WIND-OFF,,ZAF-WC,","FLH","WIND-OFF","","ZAF-WC","",4117.2,"h","Bosch et al. 2018"]
[null,"FLH,WIND-ON,,ARE,","FLH","WIND-ON","","ARE","",1642.3104587999985,"h"]
[null,"FLH,WIND-ON,,ARG,","FLH","WIND-ON","","ARG","",5369,"h"]
[null,"FLH,WIND-ON,,ARG-BA,","FLH","WIND-ON","","ARG-BA","",3756.6367058000046,"h"]
[null,"FLH,WIND-ON,,ARG-CAT,","FLH","WIND-ON","","ARG-CAT","",2884.1487291833364,"h"]
[null,"FLH,WIND-ON,,ARG-CBA,","FLH","WIND-ON","","ARG-CBA","",3601.8171951299964,"h"]
[null,"FLH,WIND-ON,,ARG-CHA,","FLH","WIND-ON","","ARG-CHA","",3079.6049933000008,"h"]
[null,"FLH,WIND-ON,,ARG-CHU,","FLH","WIND-ON","","ARG-CHU","",5763.0835753699857,"h"]
[null,"FLH,WIND-ON,,ARG-COR,","FLH","WIND-ON","","ARG-COR","",3045.2758197400012,"h"]
[null,"FLH,WIND-ON,,ARG-CRB,","FLH","WIND-ON","","ARG-CRB","",2605.2082556500004,"h"]
[null,"FLH,WIND-ON,,ARG-CRU,","FLH","WIND-ON","","ARG-CRU","",5854.9926980599967,"h"]
[null,"FLH,WIND-ON,,ARG-EST,","FLH","WIND-ON","","ARG-EST","",3710.4766984999937,"h"]
[null,"FLH,WIND-ON,,ARG-FOR,","FLH","WIND-ON","","ARG-FOR","",3781.7001483800022,"h"]
[null,"FLH,WIND-ON,,ARG-FUE,","FLH","WIND-ON","","ARG-FUE","",3710.4766984999937,"h"]
[null,"FLH,WIND-ON,,ARG-JUJ,","FLH","WIND-ON","","ARG-JUJ","",3773.9698333333426,"h"]
[null,"FLH,WIND-ON,,ARG-LAR,","FLH","WIND-ON","","ARG-LAR","",3188.6275809666754,"h"]
[null,"FLH,WIND-ON,,ARG-MEN,","FLH","WIND-ON","","ARG-MEN","",3077.1630279499932,"h"]
[null,"FLH,WIND-ON,,ARG-MIS,","FLH","WIND-ON","","ARG-MIS","",1777.2726296600022,"h"]
[null,"FLH,WIND-ON,,ARG-NEG,","FLH","WIND-ON","","ARG-NEG","",4738.1899020500086,"h"]
[null,"FLH,WIND-ON,,ARG-NEU,","FLH","WIND-ON","","ARG-NEU","",3956.5844284999962,"h"]
[null,"FLH,WIND-ON,,ARG-PAM,","FLH","WIND-ON","","ARG-PAM","",3897.7887775199929,"h"]
[null,"FLH,WIND-ON,,ARG-RIO,","FLH","WIND-ON","","ARG-RIO","",3070.126660369996,"h"]
[null,"FLH,WIND-ON,,ARG-SAF,","FLH","WIND-ON","","ARG-SAF","",3158.174208530002,"h"]
[null,"FLH,WIND-ON,,ARG-SAJ,","FLH","WIND-ON","","ARG-SAJ","",2534.5746024499945,"h"]
[null,"FLH,WIND-ON,,ARG-SAL,","FLH","WIND-ON","","ARG-SAL","",3657.6108475499996,"h"]
[null,"FLH,WIND-ON,,ARG-SAT,","FLH","WIND-ON","","ARG-SAT","",3418.5372058749972,"h"]
[null,"FLH,WIND-ON,,ARG-TUC,","FLH","WIND-ON","","ARG-TUC","",1908.3186970833303,"h"]
[null,"FLH,WIND-ON,,AUS,","FLH","WIND-ON","","AUS","",3971,"h"]
[null,"FLH,WIND-ON,,BRA,","FLH","WIND-ON","","BRA","",3517,"h"]
[null,"FLH,WIND-ON,,CHL,","FLH","WIND-ON","","CHL","",6034,"h"]
[null,"FLH,WIND-ON,,CHN,","FLH","WIND-ON","","CHN","",3250,"h"]
[null,"FLH,WIND-ON,,COL,","FLH","WIND-ON","","COL","",4269,"h"]
[null,"FLH,WIND-ON,,CRI,","FLH","WIND-ON","","CRI","",2191.2308093499951,"h"]
[null,"FLH,WIND-ON,,DNK,","FLH","WIND-ON","","DNK","",4400,"h"]
[null,"FLH,WIND-ON,,DZA,","FLH","WIND-ON","","DZA","",2738,"h"]
[null,"FLH,WIND-ON,,EGY,","FLH","WIND-ON","","EGY","",3045,"h"]
[null,"FLH,WIND-ON,,ESP,","FLH","WIND-ON","","ESP","",4276.5734962500064,"h"]
[null,"FLH,WIND-ON,,IDN,","FLH","WIND-ON","","IDN","",1150.7783336499949,"h"]
[null,"FLH,WIND-ON,,IND,","FLH","WIND-ON","","IND","",3567,"h"]
[null,"FLH,WIND-ON,,JOR,","FLH","WIND-ON","","JOR","",667,"h"]
[null,"FLH,WIND-ON,,KAZ,","FLH","WIND-ON","","KAZ","",3697,"h"]
[null,"FLH,WIND-ON,,KEN,","FLH","WIND-ON","","KEN","",2364,"h"]
[null,"FLH,WIND-ON,,MAR,","FLH","WIND-ON","","MAR","",3289,"h"]
[null,"FLH,WIND-ON,,MAR-BEN,","FLH","WIND-ON","","MAR-BEN","",1563.4934093166669,"h"]
[null,"FLH,WIND-ON,,MAR-CAS,","FLH","WIND-ON","","MAR-CAS","",2513.2012449499989,"h"]
[null,"FLH,WIND-ON,,MAR-DAK,","FLH","WIND-ON","","MAR-DAK","",5181.7820854799875,"h"]
[null,"FLH,WIND-ON,,MAR-DRA,","FLH","WIND-ON","","MAR-DRA","",2724.0904536999979,"h"]
[null,"FLH,WIND-ON,,MAR-FES,","FLH","WIND-ON","","MAR-FES","",2050.2642833200007,"h"]
[null,"FLH,WIND-ON,,MAR-GUE,","FLH","WIND-ON","","MAR-GUE","",3542.2692728499992,"h"]
[null,"FLH,WIND-ON,,MAR-LAA,","FLH","WIND-ON","","MAR-LAA","",4616.7798365699955,"h"]
[null,"FLH,WIND-ON,,MAR-LOR,","FLH","WIND-ON","","MAR-LOR","",3320.8164008250001,"h"]
[null,"FLH,WIND-ON,,MAR-MAR,","FLH","WIND-ON","","MAR-MAR","",1820.4342362250004,"h"]
[null,"FLH,WIND-ON,,MAR-RAB,","FLH","WIND-ON","","MAR-RAB","",1826.0421998500019,"h"]
[null,"FLH,WIND-ON,,MAR-SOU,","FLH","WIND-ON","","MAR-SOU","",2799.5123925999974,"h"]
[null,"FLH,WIND-ON,,MAR-TAN,","FLH","WIND-ON","","MAR-TAN","",2979.4188451500013,"h"]
[null,"FLH,WIND-ON,,MEX,","FLH","WIND-ON","","MEX","",4042,"h"]
[null,"FLH,WIND-ON,,MRT,","FLH","WIND-ON","","MRT","",4750,"h"]
[null,"FLH,WIND-ON,,NAM,","FLH","WIND-ON","","NAM","",5116.1308995500021,"h"]
[null,"FLH,WIND-ON,,NOR,","FLH","WIND-ON","","NOR","",4263.9575632499955,"h"]
[null,"FLH,WIND-ON,,PER,","FLH","WIND-ON","","PER","",1448,"h"]
[null,"FLH,WIND-ON,,PRT,","FLH","WIND-ON","","PRT","",4407.8754648499926,"h"]
[null,"FLH,WIND-ON,,RUS,","FLH","WIND-ON","","RUS","",4522,"h"]
[null,"FLH,WIND-ON,,SAU,","FLH","WIND-ON","","SAU","",2282,"h"]
[null,"FLH,WIND-ON,,SWE,","FLH","WIND-ON","","SWE","",3056.1689955499933,"h"]
[null,"FLH,WIND-ON,,THA,","FLH","WIND-ON","","THA","",2425.4030030999993,"h"]
[null,"FLH,WIND-ON,,TUN,","FLH","WIND-ON","","TUN","",2843,"h"]
[null,"FLH,WIND-ON,,UKR,","FLH","WIND-ON","","UKR","",2769,"h"]
[null,"FLH,WIND-ON,,URY,","FLH","WIND-ON","","URY","",3594,"h"]
[null,"FLH,WIND-ON,,USA,","FLH","WIND-ON","","USA","",3503,"h"]
[null,"FLH,WIND-ON,,VNM,","FLH","WIND-ON","","VNM","",3577.9190809999977,"h"]
[null,"FLH,WIND-ON,,ZAF,","FLH","WIND-ON","","ZAF","",3070,"h"]
[null,"FLH,WIND-ON,,ZAF-EC,","FLH","WIND-ON","","ZAF-EC","",3914.4857524666741,"h"]
[null,"FLH,WIND-ON,,ZAF-FRS,","FLH","WIND-ON","","ZAF-FRS","",2775.7070136400025,"h"]
[null,"FLH,WIND-ON,,ZAF-GAU,","FLH","WIND-ON","","ZAF-GAU","",2069.9309253700035,"h"]
[null,"FLH,WIND-ON,,ZAF-KWA,","FLH","WIND-ON","","ZAF-KWA","",2682.3634953500023,"h"]
[null,"FLH,WIND-ON,,ZAF-LIM,","FLH","WIND-ON","","ZAF-LIM","",2627.5496087499969,"h"]
[null,"FLH,WIND-ON,,ZAF-MPU,","FLH","WIND-ON","","ZAF-MPU","",2612.1821174166703,"h"]
[null,"FLH,WIND-ON,,ZAF-NC,","FLH","WIND-ON","","ZAF-NC","",3748.8309036749974,"h"]
[null,"FLH,WIND-ON,,ZAF-NW,","FLH","WIND-ON","","ZAF-NW","",3092.6134290333307,"h"]
[null,"FLH,WIND-ON,,ZAF-WC,","FLH","WIND-ON","","ZAF-WC","",3346.6670672599976,"h"]
[null,"LIFETIME,AEL-EL,,,","LIFETIME","AEL-EL","","","",20,"years"]
[null,"LIFETIME,ATR,,,","LIFETIME","ATR","","","",25,"years","Oni et al. 2022"]
[null,"LIFETIME,CH3OH-S,,,","LIFETIME","CH3OH-S","","","",30,"years","UNSW Sydney 2021"]
[null,"LIFETIME,CH3OH-SB,,,","LIFETIME","CH3OH-SB","","","",30,"years","UNSW Sydney 2021"]
[null,"LIFETIME,CH3OHSYN,,,","LIFETIME","CH3OHSYN","","","",30,"years","Öko-Institut 2020"]
[null,"LIFETIME,CH4-COMP,,,","LIFETIME","CH4-COMP","","","",20,"years","DNV GL 2020"]
[null,"LIFETIME,CH4-LIQ,,,","LIFETIME","CH4-LIQ","","","",30,"years","UNSW Sydney 2021"]
[null,"LIFETIME,CH4-P-L,,,","LIFETIME","CH4-P-L","","","",40,"years"]
[null,"LIFETIME,CH4-P-LR,,,","LIFETIME","CH4-P-LR","","","",40,"years"]
[null,"LIFETIME,CH4-P-S,,,","LIFETIME","CH4-P-S","","","",40,"years"]
[null,"LIFETIME,CH4-P-SR,,,","LIFETIME","CH4-P-SR","","","",40,"years"]
[null,"LIFETIME,CH4-S,,,","LIFETIME","CH4-S","","","",30,"years","UNSW Sydney 2021"]
[null,"LIFETIME,CH4-SB,,,","LIFETIME","CH4-SB","","","",30,"years","UNSW Sydney 2021"]
[null,"LIFETIME,CH4SYN,,,","LIFETIME","CH4SYN","","","",30,"years","Öko-Institut 2020"]
[null,"LIFETIME,DAC,,,","LIFETIME","DAC","","","",30,"years","Kreidelmeyer et al. 2020"]
[null,"LIFETIME,DESAL,,,","LIFETIME","DESAL","","","",20,"years","PTX Atlas"]
[null,"LIFETIME,DRI,,,","LIFETIME","DRI","","","",15,"years","Agora Industry Transformation 2021"]
[null,"LIFETIME,EFUELSYN,,,","LIFETIME","EFUELSYN","","","",30,"years","Öko-Institut 2020"]
[null,"LIFETIME,EL-TRANS,,,","LIFETIME","EL-TRANS","","","",20,"years","DUMMY"]
[null,"LIFETIME,H2-COMP,,,","LIFETIME","H2-COMP","","","",20,"years","DNV GL 2020"]
[null,"LIFETIME,H2-LIQ,,,","LIFETIME","H2-LIQ","","","",30,"years","IEA 2015"]
[null,"LIFETIME,H2-P-L,,,","LIFETIME","H2-P-L","","","",30,"years"]
[null,"LIFETIME,H2-P-LR,,,","LIFETIME","H2-P-LR","","","",30,"years"]
[null,"LIFETIME,H2-P-S,,,","LIFETIME","H2-P-S","","","",30,"years"]
[null,"LIFETIME,H2-P-SR,,,","LIFETIME","H2-P-SR","","","",30,"years"]
[null,"LIFETIME,H2-RGAS,,,","LIFETIME","H2-RGAS","","","",30,"years"]
[null,"LIFETIME,H2-S,,,","LIFETIME","H2-S","","","",30,"years","UNSW Sydney 2021"]
[null,"LIFETIME,H2-SB,,,","LIFETIME","H2-SB","","","",30,"years","UNSW Sydney 2021"]
[null,"LIFETIME,LOHC-CON,,,","LIFETIME","LOHC-CON","","","",20,"years","DNV GL 2020"]
[null,"LIFETIME,LOHC-REC,,,","LIFETIME","LOHC-REC","","","",30,"years","IEA 2019"]
[null,"LIFETIME,LOHC-S,,,","LIFETIME","LOHC-S","","","",30,"years","UNSW Sydney 2021"]
[null,"LIFETIME,LOHC-SB,,,","LIFETIME","LOHC-SB","","","",30,"years","UNSW Sydney 2021"]
[null,"LIFETIME,NH3-REC,,,","LIFETIME","NH3-REC","","","",25,"years","NGN; Equinor 2018"]
[null,"LIFETIME,NH3-S,,,","LIFETIME","NH3-S","","","",30,"years","UNSW Sydney 2021"]
[null,"LIFETIME,NH3-SB,,,","LIFETIME","NH3-SB","","","",30,"years","UNSW Sydney 2021"]
[null,"LIFETIME,NH3SYN,,,","LIFETIME","NH3SYN","","","",30,"years","Fasihi et al. 2021"]
[null,"LIFETIME,PEM-EL,,,","LIFETIME","PEM-EL","","","",20,"years"]
[null,"LIFETIME,PV-FIX,,,","LIFETIME","PV-FIX","","","",20,"years"]
[null,"LIFETIME,REGASATR,,,","LIFETIME","REGASATR","","","",25,"years","combined values"]
[null,"LIFETIME,RES-HYBR,,,","LIFETIME","RES-HYBR","","","",20,"years"]
[null,"LIFETIME,SOEC-EL,,,","LIFETIME","SOEC-EL","","","",20,"years"]
[null,"LIFETIME,SYN-S,,,","LIFETIME","SYN-S","","","",30,"years","UNSW Sydney 2021"]
[null,"LIFETIME,SYN-SB,,,","LIFETIME","SYN-SB","","","",30,"years","UNSW Sydney 2021"]
[null,"LIFETIME,WIND-OFF,,,","LIFETIME","WIND-OFF","","","",20,"years"]
[null,"LIFETIME,WIND-ON,,,","LIFETIME","WIND-ON","","","",20,"years"]
[null,"LOSS-T,CH3OH-S,,,","LOSS-T","CH3OH-S","","","",3.0509883673175365E-6,"fraction/km","calc_shipping"]
[null,"LOSS-T,CH3OH-SB,,,","LOSS-T","CH3OH-SB","","","",4.7996160307175429E-7,"fraction/km","calc_shipping"]
[null,"LOSS-T,CH4-P-L,,,","LOSS-T","CH4-P-L","","","",5.6666666666666669E-6,"fraction/km"]
[null,"LOSS-T,CH4-P-LR,,,","LOSS-T","CH4-P-LR","","","",5.6666666666666669E-6,"fraction/km"]
[null,"LOSS-T,CH4-P-S,,,","LOSS-T","CH4-P-S","","","",5.6666666666666669E-6,"fraction/km"]
[null,"LOSS-T,CH4-P-SR,,,","LOSS-T","CH4-P-SR","","","",5.6666666666666669E-6,"fraction/km"]
[null,"LOSS-T,CH4-S,,,","LOSS-T","CH4-S","","","",3.3002590965851543E-6,"fraction/km","calc_shipping"]
[null,"LOSS-T,CH4-SB,,,","LOSS-T","CH4-SB","","","",2.3075077070757413E-6,"fraction/km","calc_shipping"]
[null,"LOSS-T,H2-P-L,,,","LOSS-T","H2-P-L","","","",1.6866666666666666E-5,"fraction/km"]
[null,"LOSS-T,H2-P-LR,,,","LOSS-T","H2-P-LR","","","",1.6866666666666666E-5,"fraction/km"]
[null,"LOSS-T,H2-P-S,,,","LOSS-T","H2-P-S","","","",1.6866666666666666E-5,"fraction/km"]
[null,"LOSS-T,H2-P-SR,,,","LOSS-T","H2-P-SR","","","",1.6866666666666666E-5,"fraction/km"]
[null,"LOSS-T,H2-S,,,","LOSS-T","H2-S","","","",9.2511936896845982E-6,"fraction/km","calc_shipping"]
[null,"LOSS-T,H2-SB,,,","LOSS-T","H2-SB","","","",4.6150154141514826E-6,"fraction/km","calc_shipping"]
[null,"LOSS-T,LOHC-S,,,","LOSS-T","LOHC-S","","","",1.1535367546997468E-5,"fraction/km","calc_shipping"]
[null,"LOSS-T,NH3-S,,,","LOSS-T","NH3-S","","","",5.3436561034163411E-6,"fraction/km","calc_shipping"]
[null,"LOSS-T,NH3-SB,,,","LOSS-T","NH3-SB","","","",9.2300308283029658E-7,"fraction/km","calc_shipping"]
[null,"OPEX-F,AEL-EL,,,","OPEX-F","AEL-EL","","","",10.330718045117374,"USD2021/kW"]
[null,"OPEX-F,ATR,,,","OPEX-F","ATR","","","",48.829790310167752,"USD2021/kW","Oni et al. 2022"]
[null,"OPEX-F,CH3OHSYN,,,","OPEX-F","CH3OHSYN","","","",28.606115446577505,"USD2021/kW","Öko-Institut 2020"]
[null,"OPEX-F,CH4-COMP,,,","OPEX-F","CH4-COMP","","","",10.813477965928424,"USD2021/kW","DNV GL 2020"]
[null,"OPEX-F,CH4-LIQ,,,","OPEX-F","CH4-LIQ","","","",8.7998736512607394,"USD2021/kW","Hank et al. 2020"]
[null,"OPEX-F,CH4SYN,,,","OPEX-F","CH4SYN","","","",19.472335306337374,"USD2021/kW","Öko-Institut 2020"]
[null,"OPEX-F,DAC,,,","OPEX-F","DAC","","","",5.9702182526969245E-2,"USD2021/ kg CO2 (g)*a","Kreidelmeyer et al. 2020"]
[null,"OPEX-F,DESAL,,,","OPEX-F","DESAL","","","",9.4669104972375679E-5,"USD2021/kW"]
[null,"OPEX-F,DRI,,,","OPEX-F","DRI","","","",123.76885357719151,"USD2021/kg DRI (s)/a*h","Agora Industry Transformation 2021"]
[null,"OPEX-F,EFUELSYN,,,","OPEX-F","EFUELSYN","","","",28.606115446577505,"USD2021/kW","Öko-Institut 2020"]
[null,"OPEX-F,H2-COMP,,,","OPEX-F","H2-COMP","","","",10.813477965928424,"USD2021/kW","DNV GL 2020"]
[null,"OPEX-F,H2-LIQ,,,","OPEX-F","H2-LIQ","","","",89.138825928560451,"USD2021/kW","IEA 2019"]
[null,"OPEX-F,H2-RGAS,,,","OPEX-F","H2-RGAS","","","",12.597248329366758,"USD2021/kW","DNV GL 2020"]
[null,"OPEX-F,LOHC-CON,,,","OPEX-F","LOHC-CON","","","",11.453177801524177,"USD2021/kW","DNV GL 2020"]
[null,"OPEX-F,LOHC-REC,,,","OPEX-F","LOHC-REC","","","",21.018469152247668,"USD2021/kW","DNV GL 2023"]
[null,"OPEX-F,NH3-REC,,,","OPEX-F","NH3-REC","","","",12.665552845857931,"USD2021/kW","NGN; Equinor 2018"]
[null,"OPEX-F,NH3SYN,,,","OPEX-F","NH3SYN","","","",74.233322216319593,"USD2021/kW","Fasihi et al. 2021"]
[null,"OPEX-F,PEM-EL,,,","OPEX-F","PEM-EL","","","",14.626799511718794,"USD2021/kW"]
[null,"OPEX-F,PV-FIX,,ARE,","OPEX-F","PV-FIX","","ARE","",19.317718687904147,"USD2021/kW"]
[null,"OPEX-F,PV-FIX,,ARG,","OPEX-F","PV-FIX","","ARG","",18.741858237637476,"USD2021/kW"]
[null,"OPEX-F,PV-FIX,,ARG-BA,","OPEX-F","PV-FIX","","ARG-BA","",18.741858237637476,"USD2021/kW"]
[null,"OPEX-F,PV-FIX,,ARG-CAT,","OPEX-F","PV-FIX","","ARG-CAT","",18.741858237637476,"USD2021/kW"]
[null,"OPEX-F,PV-FIX,,ARG-CBA,","OPEX-F","PV-FIX","","ARG-CBA","",18.741858237637476,"USD2021/kW"]
[null,"OPEX-F,PV-FIX,,ARG-CHA,","OPEX-F","PV-FIX","","ARG-CHA","",18.741858237637476,"USD2021/kW"]
[null,"OPEX-F,PV-FIX,,ARG-CHU,","OPEX-F","PV-FIX","","ARG-CHU","",18.741858237637476,"USD2021/kW"]
[null,"OPEX-F,PV-FIX,,ARG-COR,","OPEX-F","PV-FIX","","ARG-COR","",18.741858237637476,"USD2021/kW"]
[null,"OPEX-F,PV-FIX,,ARG-CRB,","OPEX-F","PV-FIX","","ARG-CRB","",18.741858237637476,"USD2021/kW"]
[null,"OPEX-F,PV-FIX,,ARG-CRU,","OPEX-F","PV-FIX","","ARG-CRU","",18.741858237637476,"USD2021/kW"]
[null,"OPEX-F,PV-FIX,,ARG-EST,","OPEX-F","PV-FIX","","ARG-EST","",18.741858237637476,"USD2021/kW"]
[null,"OPEX-F,PV-FIX,,ARG-FOR,","OPEX-F","PV-FIX","","ARG-FOR","",18.741858237637476,"USD2021/kW"]
[null,"OPEX-F,PV-FIX,,ARG-FUE,","OPEX-F","PV-FIX","","ARG-FUE","",18.741858237637476,"USD2021/kW"]
[null,"OPEX-F,PV-FIX,,ARG-JUJ,","OPEX-F","PV-FIX","","ARG-JUJ","",18.741858237637476,"USD2021/kW"]
[null,"OPEX-F,PV-FIX,,ARG-LAR,","OPEX-F","PV-FIX","","ARG-LAR","",18.741858237637476,"USD2021/kW"]
[null,"OPEX-F,PV-FIX,,ARG-MEN,","OPEX-F","PV-FIX","","ARG-MEN","",18.741858237637476,"USD2021/kW"]
[null,"OPEX-F,PV-FIX,,ARG-MIS,","OPEX-F","PV-FIX","","ARG-MIS","",18.741858237637476,"USD2021/kW"]
[null,"OPEX-F,PV-FIX,,ARG-NEG,","OPEX-F","PV-FIX","","ARG-NEG","",18.741858237637476,"USD2021/kW"]
[null,"OPEX-F,PV-FIX,,ARG-NEU,","OPEX-F","PV-FIX","","ARG-NEU","",18.741858237637476,"USD2021/kW"]
[null,"OPEX-F,PV-FIX,,ARG-PAM,","OPEX-F","PV-FIX","","ARG-PAM","",18.741858237637476,"USD2021/kW"]
[null,"OPEX-F,PV-FIX,,ARG-RIO,","OPEX-F","PV-FIX","","ARG-RIO","",18.741858237637476,"USD2021/kW"]
[null,"OPEX-F,PV-FIX,,ARG-SAF,","OPEX-F","PV-FIX","","ARG-SAF","",18.741858237637476,"USD2021/kW"]
[null,"OPEX-F,PV-FIX,,ARG-SAJ,","OPEX-F","PV-FIX","","ARG-SAJ","",18.741858237637476,"USD2021/kW"]
[null,"OPEX-F,PV-FIX,,ARG-SAL,","OPEX-F","PV-FIX","","ARG-SAL","",18.741858237637476,"USD2021/kW"]
[null,"OPEX-F,PV-FIX,,ARG-SAT,","OPEX-F","PV-FIX","","ARG-SAT","",18.741858237637476,"USD2021/kW"]
[null,"OPEX-F,PV-FIX,,ARG-TUC,","OPEX-F","PV-FIX","","ARG-TUC","",18.741858237637476,"USD2021/kW"]
[null,"OPEX-F,PV-FIX,,AUS,","OPEX-F","PV-FIX","","AUS","",21.174868640014175,"USD2021/kW"]
[null,"OPEX-F,PV-FIX,,BRA,","OPEX-F","PV-FIX","","BRA","",18.348353596621916,"USD2021/kW"]
[null,"OPEX-F,PV-FIX,,CHL,","OPEX-F","PV-FIX","","CHL","",20.86294422945306,"USD2021/kW"]
[null,"OPEX-F,PV-FIX,,CHN,","OPEX-F","PV-FIX","","CHN","",12.14105782645572,"USD2021/kW"]
[null,"OPEX-F,PV-FIX,,COL,","OPEX-F","PV-FIX","","COL","",11.72861491765609,"USD2021/kW"]
[null,"OPEX-F,PV-FIX,,CRI,","OPEX-F","PV-FIX","","CRI","",19.317718687904147,"USD2021/kW"]
[null,"OPEX-F,PV-FIX,,DNK,","OPEX-F","PV-FIX","","DNK","",16.747941428589115,"USD2021/kW"]
[null,"OPEX-F,PV-FIX,,DZA,","OPEX-F","PV-FIX","","DZA","",19.317718687904147,"USD2021/kW"]
[null,"OPEX-F,PV-FIX,,EGY,","OPEX-F","PV-FIX","","EGY","",19.317718687904147,"USD2021/kW"]
[null,"OPEX-F,PV-FIX,,ESP,","OPEX-F","PV-FIX","","ESP","",18.201989065512471,"USD2021/kW"]
[null,"OPEX-F,PV-FIX,,IDN,","OPEX-F","PV-FIX","","IDN","",22.391373841202526,"USD2021/kW"]
[null,"OPEX-F,PV-FIX,,IND,","OPEX-F","PV-FIX","","IND","",12.548958978727946,"USD2021/kW"]
[null,"OPEX-F,PV-FIX,,JOR,","OPEX-F","PV-FIX","","JOR","",19.317718687904147,"USD2021/kW"]
[null,"OPEX-F,PV-FIX,,KAZ,","OPEX-F","PV-FIX","","KAZ","",19.317718687904147,"USD2021/kW"]
[null,"OPEX-F,PV-FIX,,KEN,","OPEX-F","PV-FIX","","KEN","",19.317718687904147,"USD2021/kW"]
[null,"OPEX-F,PV-FIX,,MAR,","OPEX-F","PV-FIX","","MAR","",19.317718687904147,"USD2021/kW"]
[null,"OPEX-F,PV-FIX,,MAR-BEN,","OPEX-F","PV-FIX","","MAR-BEN","",19.317718687904147,"USD2021/kW"]
[null,"OPEX-F,PV-FIX,,MAR-CAS,","OPEX-F","PV-FIX","","MAR-CAS","",19.317718687904147,"USD2021/kW"]
[null,"OPEX-F,PV-FIX,,MAR-DAK,","OPEX-F","PV-FIX","","MAR-DAK","",19.317718687904147,"USD2021/kW"]
[null,"OPEX-F,PV-FIX,,MAR-DRA,","OPEX-F","PV-FIX","","MAR-DRA","",19.317718687904147,"USD2021/kW"]
[null,"OPEX-F,PV-FIX,,MAR-FES,","OPEX-F","PV-FIX","","MAR-FES","",19.317718687904147,"USD2021/kW"]
[null,"OPEX-F,PV-FIX,,MAR-GUE,","OPEX-F","PV-FIX","","MAR-GUE","",19.317718687904147,"USD2021/kW"]
[null,"OPEX-F,PV-FIX,,MAR-LAA,","OPEX-F","PV-FIX","","MAR-LAA","",19.317718687904147,"USD2021/kW"]
[null,"OPEX-F,PV-FIX,,MAR-LOR,","OPEX-F","PV-FIX","","MAR-LOR","",19.317718687904147,"USD2021/kW"]
[null,"OPEX-F,PV-FIX,,MAR-MAR,","OPEX-F","PV-FIX","","MAR-MAR","",19.317718687904147,"USD2021/kW"]
[null,"OPEX-F,PV-FIX,,MAR-RAB,","OPEX-F","PV-FIX","","MAR-RAB","",19.317718687904147,"USD2021/kW"]
[null,"OPEX-F,PV-FIX,,MAR-SOU,","OPEX-F","PV-FIX","","MAR-SOU","",19.317718687904147,"USD2021/kW"]
[null,"OPEX-F,PV-FIX,,MAR-TAN,","OPEX-F","PV-FIX","","MAR-TAN","",19.317718687904147,"USD2021/kW"]
[null,"OPEX-F,PV-FIX,,MEX,","OPEX-F","PV-FIX","","MEX","",17.604533848360795,"USD2021/kW"]
[null,"OPEX-F,PV-FIX,,MRT,","OPEX-F","PV-FIX","","MRT","",19.317718687904147,"USD2021/kW"]
[null,"OPEX-F,PV-FIX,,NAM,","OPEX-F","PV-FIX","","NAM","",19.317718687904147,"USD2021/kW"]
[null,"OPEX-F,PV-FIX,,NOR,","OPEX-F","PV-FIX","","NOR","",17.799953158567035,"USD2021/kW"]
[null,"OPEX-F,PV-FIX,,PER,","OPEX-F","PV-FIX","","PER","",19.317718687904147,"USD2021/kW"]
[null,"OPEX-F,PV-FIX,,PRT,","OPEX-F","PV-FIX","","PRT","",19.533666356754154,"USD2021/kW"]
[null,"OPEX-F,PV-FIX,,RUS,","OPEX-F","PV-FIX","","RUS","",34.652402594797138,"USD2021/kW"]
[null,"OPEX-F,PV-FIX,,SAU,","OPEX-F","PV-FIX","","SAU","",20.035144832194714,"USD2021/kW"]
[null,"OPEX-F,PV-FIX,,SWE,","OPEX-F","PV-FIX","","SWE","",17.799953158567035,"USD2021/kW"]
[null,"OPEX-F,PV-FIX,,THA,","OPEX-F","PV-FIX","","THA","",21.314034915495284,"USD2021/kW"]
[null,"OPEX-F,PV-FIX,,TUN,","OPEX-F","PV-FIX","","TUN","",19.317718687904147,"USD2021/kW"]
[null,"OPEX-F,PV-FIX,,UKR,","OPEX-F","PV-FIX","","UKR","",17.799953158567035,"USD2021/kW"]
[null,"OPEX-F,PV-FIX,,URY,","OPEX-F","PV-FIX","","URY","",19.317718687904147,"USD2021/kW"]
[null,"OPEX-F,PV-FIX,,USA,","OPEX-F","PV-FIX","","USA","",23.077607544436976,"USD2021/kW"]
[null,"OPEX-F,PV-FIX,,VNM,","OPEX-F","PV-FIX","","VNM","",21.314034915495284,"USD2021/kW"]
[null,"OPEX-F,PV-FIX,,ZAF,","OPEX-F","PV-FIX","","ZAF","",19.317718687904147,"USD2021/kW"]
[null,"OPEX-F,PV-FIX,,ZAF-EC,","OPEX-F","PV-FIX","","ZAF-EC","",19.317718687904147,"USD2021/kW"]
[null,"OPEX-F,PV-FIX,,ZAF-FRS,","OPEX-F","PV-FIX","","ZAF-FRS","",19.317718687904147,"USD2021/kW"]
[null,"OPEX-F,PV-FIX,,ZAF-GAU,","OPEX-F","PV-FIX","","ZAF-GAU","",19.317718687904147,"USD2021/kW"]
[null,"OPEX-F,PV-FIX,,ZAF-KWA,","OPEX-F","PV-FIX","","ZAF-KWA","",19.317718687904147,"USD2021/kW"]
[null,"OPEX-F,PV-FIX,,ZAF-LIM,","OPEX-F","PV-FIX","","ZAF-LIM","",19.317718687904147,"USD2021/kW"]
[null,"OPEX-F,PV-FIX,,ZAF-MPU,","OPEX-F","PV-FIX","","ZAF-MPU","",19.317718687904147,"USD2021/kW"]
[null,"OPEX-F,PV-FIX,,ZAF-NC,","OPEX-F","PV-FIX","","ZAF-NC","",19.317718687904147,"USD2021/kW"]
[null,"OPEX-F,PV-FIX,,ZAF-NW,","OPEX-F","PV-FIX","","ZAF-NW","",19.317718687904147,"USD2021/kW"]
[null,"OPEX-F,PV-FIX,,ZAF-WC,","OPEX-F","PV-FIX","","ZAF-WC","",19.317718687904147,"USD2021/kW"]
[null,"OPEX-F,REGASATR,,,","OPEX-F","REGASATR","","","",48.829790310167752,"USD2021/kW","combined values"]
[null,"OPEX-F,RES-HYBR,,ARE,","OPEX-F","RES-HYBR","","ARE","",21.614376424056928,"USD2021/kW"]
[null,"OPEX-F,RES-HYBR,,ARG,","OPEX-F","RES-HYBR","","ARG","",23.361213072398655,"USD2021/kW"]
[null,"OPEX-F,RES-HYBR,,ARG-BA,","OPEX-F","RES-HYBR","","ARG-BA","",23.361213072398655,"USD2021/kW"]
[null,"OPEX-F,RES-HYBR,,ARG-CAT,","OPEX-F","RES-HYBR","","ARG-CAT","",23.361213072398655,"USD2021/kW"]
[null,"OPEX-F,RES-HYBR,,ARG-CBA,","OPEX-F","RES-HYBR","","ARG-CBA","",23.361213072398655,"USD2021/kW"]
[null,"OPEX-F,RES-HYBR,,ARG-CHA,","OPEX-F","RES-HYBR","","ARG-CHA","",23.361213072398655,"USD2021/kW"]
[null,"OPEX-F,RES-HYBR,,ARG-CHU,","OPEX-F","RES-HYBR","","ARG-CHU","",23.361213072398655,"USD2021/kW"]
[null,"OPEX-F,RES-HYBR,,ARG-COR,","OPEX-F","RES-HYBR","","ARG-COR","",23.361213072398655,"USD2021/kW"]
[null,"OPEX-F,RES-HYBR,,ARG-CRB,","OPEX-F","RES-HYBR","","ARG-CRB","",23.361213072398655,"USD2021/kW"]
[null,"OPEX-F,RES-HYBR,,ARG-CRU,","OPEX-F","RES-HYBR","","ARG-CRU","",23.361213072398655,"USD2021/kW"]
[null,"OPEX-F,RES-HYBR,,ARG-EST,","OPEX-F","RES-HYBR","","ARG-EST","",23.361213072398655,"USD2021/kW"]
[null,"OPEX-F,RES-HYBR,,ARG-FOR,","OPEX-F","RES-HYBR","","ARG-FOR","",23.361213072398655,"USD2021/kW"]
[null,"OPEX-F,RES-HYBR,,ARG-FUE,","OPEX-F","RES-HYBR","","ARG-FUE","",23.361213072398655,"USD2021/kW"]
[null,"OPEX-F,RES-HYBR,,ARG-JUJ,","OPEX-F","RES-HYBR","","ARG-JUJ","",23.361213072398655,"USD2021/kW"]
[null,"OPEX-F,RES-HYBR,,ARG-LAR,","OPEX-F","RES-HYBR","","ARG-LAR","",23.361213072398655,"USD2021/kW"]
[null,"OPEX-F,RES-HYBR,,ARG-MEN,","OPEX-F","RES-HYBR","","ARG-MEN","",23.361213072398655,"USD2021/kW"]
[null,"OPEX-F,RES-HYBR,,ARG-MIS,","OPEX-F","RES-HYBR","","ARG-MIS","",23.361213072398655,"USD2021/kW"]
[null,"OPEX-F,RES-HYBR,,ARG-NEG,","OPEX-F","RES-HYBR","","ARG-NEG","",23.361213072398655,"USD2021/kW"]
[null,"OPEX-F,RES-HYBR,,ARG-NEU,","OPEX-F","RES-HYBR","","ARG-NEU","",23.361213072398655,"USD2021/kW"]
[null,"OPEX-F,RES-HYBR,,ARG-PAM,","OPEX-F","RES-HYBR","","ARG-PAM","",23.361213072398655,"USD2021/kW"]
[null,"OPEX-F,RES-HYBR,,ARG-RIO,","OPEX-F","RES-HYBR","","ARG-RIO","",23.361213072398655,"USD2021/kW"]
[null,"OPEX-F,RES-HYBR,,ARG-SAF,","OPEX-F","RES-HYBR","","ARG-SAF","",23.361213072398655,"USD2021/kW"]
[null,"OPEX-F,RES-HYBR,,ARG-SAJ,","OPEX-F","RES-HYBR","","ARG-SAJ","",23.361213072398655,"USD2021/kW"]
[null,"OPEX-F,RES-HYBR,,ARG-SAL,","OPEX-F","RES-HYBR","","ARG-SAL","",23.361213072398655,"USD2021/kW"]
[null,"OPEX-F,RES-HYBR,,ARG-SAT,","OPEX-F","RES-HYBR","","ARG-SAT","",23.361213072398655,"USD2021/kW"]
[null,"OPEX-F,RES-HYBR,,ARG-TUC,","OPEX-F","RES-HYBR","","ARG-TUC","",23.361213072398655,"USD2021/kW"]
[null,"OPEX-F,RES-HYBR,,AUS,","OPEX-F","RES-HYBR","","AUS","",24.230145358961764,"USD2021/kW"]
[null,"OPEX-F,RES-HYBR,,BRA,","OPEX-F","RES-HYBR","","BRA","",17.506038349781416,"USD2021/kW"]
[null,"OPEX-F,RES-HYBR,,CHL,","OPEX-F","RES-HYBR","","CHL","",24.118743783761367,"USD2021/kW"]
[null,"OPEX-F,RES-HYBR,,CHN,","OPEX-F","RES-HYBR","","CHN","",15.355817772386457,"USD2021/kW"]
[null,"OPEX-F,RES-HYBR,,CRI,","OPEX-F","RES-HYBR","","CRI","",21.976303456275911,"USD2021/kW"]
[null,"OPEX-F,RES-HYBR,,DNK,","OPEX-F","RES-HYBR","","DNK","",21.439501687051795,"USD2021/kW"]
[null,"OPEX-F,RES-HYBR,,DZA,","OPEX-F","RES-HYBR","","DZA","",24.919341691951281,"USD2021/kW"]
[null,"OPEX-F,RES-HYBR,,EGY,","OPEX-F","RES-HYBR","","EGY","",21.185778622744984,"USD2021/kW"]
[null,"OPEX-F,RES-HYBR,,ESP,","OPEX-F","RES-HYBR","","ESP","",17.659025921958783,"USD2021/kW"]
[null,"OPEX-F,RES-HYBR,,IDN,","OPEX-F","RES-HYBR","","IDN","",29.426809294598293,"USD2021/kW"]
[null,"OPEX-F,RES-HYBR,,IND,","OPEX-F","RES-HYBR","","IND","",13.301361375272824,"USD2021/kW"]
[null,"OPEX-F,RES-HYBR,,JOR,","OPEX-F","RES-HYBR","","JOR","",24.919341691951281,"USD2021/kW"]
[null,"OPEX-F,RES-HYBR,,KAZ,","OPEX-F","RES-HYBR","","KAZ","",21.185778622744984,"USD2021/kW"]
[null,"OPEX-F,RES-HYBR,,KEN,","OPEX-F","RES-HYBR","","KEN","",24.919341691951281,"USD2021/kW"]
[null,"OPEX-F,RES-HYBR,,MAR,","OPEX-F","RES-HYBR","","MAR","",23.566877518922464,"USD2021/kW"]
[null,"OPEX-F,RES-HYBR,,MAR-BEN,","OPEX-F","RES-HYBR","","MAR-BEN","",23.566877518922464,"USD2021/kW"]
[null,"OPEX-F,RES-HYBR,,MAR-CAS,","OPEX-F","RES-HYBR","","MAR-CAS","",23.566877518922464,"USD2021/kW"]
[null,"OPEX-F,RES-HYBR,,MAR-DAK,","OPEX-F","RES-HYBR","","MAR-DAK","",23.566877518922464,"USD2021/kW"]
[null,"OPEX-F,RES-HYBR,,MAR-DRA,","OPEX-F","RES-HYBR","","MAR-DRA","",23.566877518922464,"USD2021/kW"]
[null,"OPEX-F,RES-HYBR,,MAR-FES,","OPEX-F","RES-HYBR","","MAR-FES","",23.566877518922464,"USD2021/kW"]
[null,"OPEX-F,RES-HYBR,,MAR-GUE,","OPEX-F","RES-HYBR","","MAR-GUE","",23.566877518922464,"USD2021/kW"]
[null,"OPEX-F,RES-HYBR,,MAR-LAA,","OPEX-F","RES-HYBR","","MAR-LAA","",23.566877518922464,"USD2021/kW"]
[null,"OPEX-F,RES-HYBR,,MAR-LOR,","OPEX-F","RES-HYBR","","MAR-LOR","",23.566877518922464,"USD2021/kW"]
[null,"OPEX-F,RES-HYBR,,MAR-MAR,","OPEX-F","RES-HYBR","","MAR-MAR","",23.566877518922464,"USD2021/kW"]
[null,"OPEX-F,RES-HYBR,,MAR-RAB,","OPEX-F","RES-HYBR","","MAR-RAB","",23.566877518922464,"USD2021/kW"]
[null,"OPEX-F,RES-HYBR,,MAR-SOU,","OPEX-F","RES-HYBR","","MAR-SOU","",23.566877518922464,"USD2021/kW"]
[null,"OPEX-F,RES-HYBR,,MAR-TAN,","OPEX-F","RES-HYBR","","MAR-TAN","",23.566877518922464,"USD2021/kW"]
[null,"OPEX-F,RES-HYBR,,MEX,","OPEX-F","RES-HYBR","","MEX","",20.301812769911546,"USD2021/kW"]
[null,"OPEX-F,RES-HYBR,,MRT,","OPEX-F","RES-HYBR","","MRT","",24.919341691951281,"USD2021/kW"]
[null,"OPEX-F,RES-HYBR,,NAM,","OPEX-F","RES-HYBR","","NAM","",24.919341691951281,"USD2021/kW"]
[null,"OPEX-F,RES-HYBR,,NOR,","OPEX-F","RES-HYBR","","NOR","",20.643719505124583,"USD2021/kW"]
[null,"OPEX-F,RES-HYBR,,PER,","OPEX-F","RES-HYBR","","PER","",18.804679726567493,"USD2021/kW"]
[null,"OPEX-F,RES-HYBR,,PRT,","OPEX-F","RES-HYBR","","PRT","",23.644001686368899,"USD2021/kW"]
[null,"OPEX-F,RES-HYBR,,RUS,","OPEX-F","RES-HYBR","","RUS","",26.662451446635334,"USD2021/kW"]
[null,"OPEX-F,RES-HYBR,,SAU,","OPEX-F","RES-HYBR","","SAU","",21.870600047017842,"USD2021/kW"]
[null,"OPEX-F,RES-HYBR,,SWE,","OPEX-F","RES-HYBR","","SWE","",21.815220162043907,"USD2021/kW"]
[null,"OPEX-F,RES-HYBR,,THA,","OPEX-F","RES-HYBR","","THA","",22.327346505339474,"USD2021/kW"]
[null,"OPEX-F,RES-HYBR,,TUN,","OPEX-F","RES-HYBR","","TUN","",24.919341691951281,"USD2021/kW"]
[null,"OPEX-F,RES-HYBR,,UKR,","OPEX-F","RES-HYBR","","UKR","",20.643719505124583,"USD2021/kW"]
[null,"OPEX-F,RES-HYBR,,URY,","OPEX-F","RES-HYBR","","URY","",28.32907531127745,"USD2021/kW"]
[null,"OPEX-F,RES-HYBR,,USA,","OPEX-F","RES-HYBR","","USA","",21.401979804840973,"USD2021/kW"]
[null,"OPEX-F,RES-HYBR,,VNM,","OPEX-F","RES-HYBR","","VNM","",29.042045392559995,"USD2021/kW"]
[null,"OPEX-F,RES-HYBR,,ZAF,","OPEX-F","RES-HYBR","","ZAF","",23.566877518922464,"USD2021/kW"]
[null,"OPEX-F,RES-HYBR,,ZAF-EC,","OPEX-F","RES-HYBR","","ZAF-EC","",23.566877518922464,"USD2021/kW"]
[null,"OPEX-F,RES-HYBR,,ZAF-FRS,","OPEX-F","RES-HYBR","","ZAF-FRS","",23.566877518922464,"USD2021/kW"]
[null,"OPEX-F,RES-HYBR,,ZAF-GAU,","OPEX-F","RES-HYBR","","ZAF-GAU","",23.566877518922464,"USD2021/kW"]
[null,"OPEX-F,RES-HYBR,,ZAF-KWA,","OPEX-F","RES-HYBR","","ZAF-KWA","",23.566877518922464,"USD2021/kW"]
[null,"OPEX-F,RES-HYBR,,ZAF-LIM,","OPEX-F","RES-HYBR","","ZAF-LIM","",23.566877518922464,"USD2021/kW"]
[null,"OPEX-F,RES-HYBR,,ZAF-MPU,","OPEX-F","RES-HYBR","","ZAF-MPU","",23.566877518922464,"USD2021/kW"]
[null,"OPEX-F,RES-HYBR,,ZAF-NC,","OPEX-F","RES-HYBR","","ZAF-NC","",23.566877518922464,"USD2021/kW"]
[null,"OPEX-F,RES-HYBR,,ZAF-NW,","OPEX-F","RES-HYBR","","ZAF-NW","",23.566877518922464,"USD2021/kW"]
[null,"OPEX-F,RES-HYBR,,ZAF-WC,","OPEX-F","RES-HYBR","","ZAF-WC","",23.566877518922464,"USD2021/kW"]
[null,"OPEX-F,SOEC-EL,,,","OPEX-F","SOEC-EL","","","",53.296824332125375,"USD2021/kW"]
[null,"OPEX-F,WIND-OFF,,ARE,","OPEX-F","WIND-OFF","","ARE","",108.54387831377963,"USD2021/kW"]
[null,"OPEX-F,WIND-OFF,,ARG,","OPEX-F","WIND-OFF","","ARG","",108.54387831377963,"USD2021/kW"]
[null,"OPEX-F,WIND-OFF,,ARG-BA,","OPEX-F","WIND-OFF","","ARG-BA","",108.54387831377963,"USD2021/kW"]
[null,"OPEX-F,WIND-OFF,,ARG-CAT,","OPEX-F","WIND-OFF","","ARG-CAT","",108.54387831377963,"USD2021/kW"]
[null,"OPEX-F,WIND-OFF,,ARG-CBA,","OPEX-F","WIND-OFF","","ARG-CBA","",108.54387831377963,"USD2021/kW"]
[null,"OPEX-F,WIND-OFF,,ARG-CHA,","OPEX-F","WIND-OFF","","ARG-CHA","",108.54387831377963,"USD2021/kW"]
[null,"OPEX-F,WIND-OFF,,ARG-CHU,","OPEX-F","WIND-OFF","","ARG-CHU","",108.54387831377963,"USD2021/kW"]
[null,"OPEX-F,WIND-OFF,,ARG-COR,","OPEX-F","WIND-OFF","","ARG-COR","",108.54387831377963,"USD2021/kW"]
[null,"OPEX-F,WIND-OFF,,ARG-CRB,","OPEX-F","WIND-OFF","","ARG-CRB","",108.54387831377963,"USD2021/kW"]
[null,"OPEX-F,WIND-OFF,,ARG-CRU,","OPEX-F","WIND-OFF","","ARG-CRU","",108.54387831377963,"USD2021/kW"]
[null,"OPEX-F,WIND-OFF,,ARG-EST,","OPEX-F","WIND-OFF","","ARG-EST","",108.54387831377963,"USD2021/kW"]
[null,"OPEX-F,WIND-OFF,,ARG-FOR,","OPEX-F","WIND-OFF","","ARG-FOR","",108.54387831377963,"USD2021/kW"]
[null,"OPEX-F,WIND-OFF,,ARG-FUE,","OPEX-F","WIND-OFF","","ARG-FUE","",108.54387831377963,"USD2021/kW"]
[null,"OPEX-F,WIND-OFF,,ARG-JUJ,","OPEX-F","WIND-OFF","","ARG-JUJ","",108.54387831377963,"USD2021/kW"]
[null,"OPEX-F,WIND-OFF,,ARG-LAR,","OPEX-F","WIND-OFF","","ARG-LAR","",108.54387831377963,"USD2021/kW"]
[null,"OPEX-F,WIND-OFF,,ARG-MEN,","OPEX-F","WIND-OFF","","ARG-MEN","",108.54387831377963,"USD2021/kW"]
[null,"OPEX-F,WIND-OFF,,ARG-MIS,","OPEX-F","WIND-OFF","","ARG-MIS","",108.54387831377963,"USD2021/kW"]
[null,"OPEX-F,WIND-OFF,,ARG-NEG,","OPEX-F","WIND-OFF","","ARG-NEG","",108.54387831377963,"USD2021/kW"]
[null,"OPEX-F,WIND-OFF,,ARG-NEU,","OPEX-F","WIND-OFF","","ARG-NEU","",108.54387831377963,"USD2021/kW"]
[null,"OPEX-F,WIND-OFF,,ARG-PAM,","OPEX-F","WIND-OFF","","ARG-PAM","",108.54387831377963,"USD2021/kW"]
[null,"OPEX-F,WIND-OFF,,ARG-RIO,","OPEX-F","WIND-OFF","","ARG-RIO","",108.54387831377963,"USD2021/kW"]
[null,"OPEX-F,WIND-OFF,,ARG-SAF,","OPEX-F","WIND-OFF","","ARG-SAF","",108.54387831377963,"USD2021/kW"]
[null,"OPEX-F,WIND-OFF,,ARG-SAJ,","OPEX-F","WIND-OFF","","ARG-SAJ","",108.54387831377963,"USD2021/kW"]
[null,"OPEX-F,WIND-OFF,,ARG-SAL,","OPEX-F","WIND-OFF","","ARG-SAL","",108.54387831377963,"USD2021/kW"]
[null,"OPEX-F,WIND-OFF,,ARG-SAT,","OPEX-F","WIND-OFF","","ARG-SAT","",108.54387831377963,"USD2021/kW"]
[null,"OPEX-F,WIND-OFF,,ARG-TUC,","OPEX-F","WIND-OFF","","ARG-TUC","",108.54387831377963,"USD2021/kW"]
[null,"OPEX-F,WIND-OFF,,AUS,","OPEX-F","WIND-OFF","","AUS","",108.54387831377963,"USD2021/kW"]
[null,"OPEX-F,WIND-OFF,,BRA,","OPEX-F","WIND-OFF","","BRA","",108.54387831377963,"USD2021/kW"]
[null,"OPEX-F,WIND-OFF,,CHL,","OPEX-F","WIND-OFF","","CHL","",108.54387831377963,"USD2021/kW"]
[null,"OPEX-F,WIND-OFF,,CHN,","OPEX-F","WIND-OFF","","CHN","",90.453231928149691,"USD2021/kW"]
[null,"OPEX-F,WIND-OFF,,COL,","OPEX-F","WIND-OFF","","COL","",108.54387831377963,"USD2021/kW"]
[null,"OPEX-F,WIND-OFF,,CRI,","OPEX-F","WIND-OFF","","CRI","",108.54387831377963,"USD2021/kW"]
[null,"OPEX-F,WIND-OFF,,DNK,","OPEX-F","WIND-OFF","","DNK","",72.470230270750662,"USD2021/kW"]
[null,"OPEX-F,WIND-OFF,,DZA,","OPEX-F","WIND-OFF","","DZA","",108.54387831377963,"USD2021/kW"]
[null,"OPEX-F,WIND-OFF,,EGY,","OPEX-F","WIND-OFF","","EGY","",108.54387831377963,"USD2021/kW"]
[null,"OPEX-F,WIND-OFF,,ESP,","OPEX-F","WIND-OFF","","ESP","",108.54387831377963,"USD2021/kW"]
[null,"OPEX-F,WIND-OFF,,IDN,","OPEX-F","WIND-OFF","","IDN","",108.54387831377963,"USD2021/kW"]
[null,"OPEX-F,WIND-OFF,,IND,","OPEX-F","WIND-OFF","","IND","",108.54387831377963,"USD2021/kW"]
[null,"OPEX-F,WIND-OFF,,JOR,","OPEX-F","WIND-OFF","","JOR","",108.54387831377963,"USD2021/kW"]
[null,"OPEX-F,WIND-OFF,,KAZ,","OPEX-F","WIND-OFF","","KAZ","",108.54387831377963,"USD2021/kW"]
[null,"OPEX-F,WIND-OFF,,KEN,","OPEX-F","WIND-OFF","","KEN","",108.54387831377963,"USD2021/kW"]
[null,"OPEX-F,WIND-OFF,,MAR,","OPEX-F","WIND-OFF","","MAR","",108.54387831377963,"USD2021/kW"]
[null,"OPEX-F,WIND-OFF,,MAR-BEN,","OPEX-F","WIND-OFF","","MAR-BEN","",108.54387831377963,"USD2021/kW"]
[null,"OPEX-F,WIND-OFF,,MAR-CAS,","OPEX-F","WIND-OFF","","MAR-CAS","",108.54387831377963,"USD2021/kW"]
[null,"OPEX-F,WIND-OFF,,MAR-DAK,","OPEX-F","WIND-OFF","","MAR-DAK","",108.54387831377963,"USD2021/kW"]
[null,"OPEX-F,WIND-OFF,,MAR-DRA,","OPEX-F","WIND-OFF","","MAR-DRA","",108.54387831377963,"USD2021/kW"]
[null,"OPEX-F,WIND-OFF,,MAR-FES,","OPEX-F","WIND-OFF","","MAR-FES","",108.54387831377963,"USD2021/kW"]
[null,"OPEX-F,WIND-OFF,,MAR-GUE,","OPEX-F","WIND-OFF","","MAR-GUE","",108.54387831377963,"USD2021/kW"]
[null,"OPEX-F,WIND-OFF,,MAR-LAA,","OPEX-F","WIND-OFF","","MAR-LAA","",108.54387831377963,"USD2021/kW"]
[null,"OPEX-F,WIND-OFF,,MAR-LOR,","OPEX-F","WIND-OFF","","MAR-LOR","",108.54387831377963,"USD2021/kW"]
[null,"OPEX-F,WIND-OFF,,MAR-MAR,","OPEX-F","WIND-OFF","","MAR-MAR","",108.54387831377963,"USD2021/kW"]
[null,"OPEX-F,WIND-OFF,,MAR-RAB,","OPEX-F","WIND-OFF","","MAR-RAB","",108.54387831377963,"USD2021/kW"]
[null,"OPEX-F,WIND-OFF,,MAR-SOU,","OPEX-F","WIND-OFF","","MAR-SOU","",108.54387831377963,"USD2021/kW"]
[null,"OPEX-F,WIND-OFF,,MAR-TAN,","OPEX-F","WIND-OFF","","MAR-TAN","",108.54387831377963,"USD2021/kW"]
[null,"OPEX-F,WIND-OFF,,MEX,","OPEX-F","WIND-OFF","","MEX","",108.54387831377963,"USD2021/kW"]
[null,"OPEX-F,WIND-OFF,,MRT,","OPEX-F","WIND-OFF","","MRT","",108.54387831377963,"USD2021/kW"]
[null,"OPEX-F,WIND-OFF,,NAM,","OPEX-F","WIND-OFF","","NAM","",108.54387831377963,"USD2021/kW"]
[null,"OPEX-F,WIND-OFF,,NOR,","OPEX-F","WIND-OFF","","NOR","",108.54387831377963,"USD2021/kW"]
[null,"OPEX-F,WIND-OFF,,PER,","OPEX-F","WIND-OFF","","PER","",108.54387831377963,"USD2021/kW"]
[null,"OPEX-F,WIND-OFF,,PRT,","OPEX-F","WIND-OFF","","PRT","",108.54387831377963,"USD2021/kW"]
[null,"OPEX-F,WIND-OFF,,RUS,","OPEX-F","WIND-OFF","","RUS","",108.54387831377963,"USD2021/kW"]
[null,"OPEX-F,WIND-OFF,,SAU,","OPEX-F","WIND-OFF","","SAU","",108.54387831377963,"USD2021/kW"]
[null,"OPEX-F,WIND-OFF,,SWE,","OPEX-F","WIND-OFF","","SWE","",108.54387831377963,"USD2021/kW"]
[null,"OPEX-F,WIND-OFF,,THA,","OPEX-F","WIND-OFF","","THA","",108.54387831377963,"USD2021/kW"]
[null,"OPEX-F,WIND-OFF,,TUN,","OPEX-F","WIND-OFF","","TUN","",108.54387831377963,"USD2021/kW"]
[null,"OPEX-F,WIND-OFF,,UKR,","OPEX-F","WIND-OFF","","UKR","",108.54387831377963,"USD2021/kW"]
[null,"OPEX-F,WIND-OFF,,URY,","OPEX-F","WIND-OFF","","URY","",108.54387831377963,"USD2021/kW"]
[null,"OPEX-F,WIND-OFF,,USA,","OPEX-F","WIND-OFF","","USA","",108.54387831377963,"USD2021/kW"]
[null,"OPEX-F,WIND-OFF,,VNM,","OPEX-F","WIND-OFF","","VNM","",108.54387831377963,"USD2021/kW"]
[null,"OPEX-F,WIND-OFF,,ZAF,","OPEX-F","WIND-OFF","","ZAF","",108.54387831377963,"USD2021/kW"]
[null,"OPEX-F,WIND-OFF,,ZAF-EC,","OPEX-F","WIND-OFF","","ZAF-EC","",108.54387831377963,"USD2021/kW"]
[null,"OPEX-F,WIND-OFF,,ZAF-FRS,","OPEX-F","WIND-OFF","","ZAF-FRS","",108.54387831377963,"USD2021/kW"]
[null,"OPEX-F,WIND-OFF,,ZAF-GAU,","OPEX-F","WIND-OFF","","ZAF-GAU","",108.54387831377963,"USD2021/kW"]
[null,"OPEX-F,WIND-OFF,,ZAF-KWA,","OPEX-F","WIND-OFF","","ZAF-KWA","",108.54387831377963,"USD2021/kW"]
[null,"OPEX-F,WIND-OFF,,ZAF-LIM,","OPEX-F","WIND-OFF","","ZAF-LIM","",108.54387831377963,"USD2021/kW"]
[null,"OPEX-F,WIND-OFF,,ZAF-MPU,","OPEX-F","WIND-OFF","","ZAF-MPU","",108.54387831377963,"USD2021/kW"]
[null,"OPEX-F,WIND-OFF,,ZAF-NC,","OPEX-F","WIND-OFF","","ZAF-NC","",108.54387831377963,"USD2021/kW"]
[null,"OPEX-F,WIND-OFF,,ZAF-NW,","OPEX-F","WIND-OFF","","ZAF-NW","",108.54387831377963,"USD2021/kW"]
[null,"OPEX-F,WIND-OFF,,ZAF-WC,","OPEX-F","WIND-OFF","","ZAF-WC","",108.54387831377963,"USD2021/kW"]
[null,"OPEX-F,WIND-ON,,ARE,","OPEX-F","WIND-ON","","ARE","",41.202535299455249,"USD2021/kW"]
[null,"OPEX-F,WIND-ON,,ARG,","OPEX-F","WIND-ON","","ARG","",46.669538365078765,"USD2021/kW"]
[null,"OPEX-F,WIND-ON,,ARG-BA,","OPEX-F","WIND-ON","","ARG-BA","",46.669538365078765,"USD2021/kW"]
[null,"OPEX-F,WIND-ON,,ARG-CAT,","OPEX-F","WIND-ON","","ARG-CAT","",46.669538365078765,"USD2021/kW"]
[null,"OPEX-F,WIND-ON,,ARG-CBA,","OPEX-F","WIND-ON","","ARG-CBA","",46.669538365078765,"USD2021/kW"]
[null,"OPEX-F,WIND-ON,,ARG-CHA,","OPEX-F","WIND-ON","","ARG-CHA","",46.669538365078765,"USD2021/kW"]
[null,"OPEX-F,WIND-ON,,ARG-CHU,","OPEX-F","WIND-ON","","ARG-CHU","",46.669538365078765,"USD2021/kW"]
[null,"OPEX-F,WIND-ON,,ARG-COR,","OPEX-F","WIND-ON","","ARG-COR","",46.669538365078765,"USD2021/kW"]
[null,"OPEX-F,WIND-ON,,ARG-CRB,","OPEX-F","WIND-ON","","ARG-CRB","",46.669538365078765,"USD2021/kW"]
[null,"OPEX-F,WIND-ON,,ARG-CRU,","OPEX-F","WIND-ON","","ARG-CRU","",46.669538365078765,"USD2021/kW"]
[null,"OPEX-F,WIND-ON,,ARG-EST,","OPEX-F","WIND-ON","","ARG-EST","",46.669538365078765,"USD2021/kW"]
[null,"OPEX-F,WIND-ON,,ARG-FOR,","OPEX-F","WIND-ON","","ARG-FOR","",46.669538365078765,"USD2021/kW"]
[null,"OPEX-F,WIND-ON,,ARG-FUE,","OPEX-F","WIND-ON","","ARG-FUE","",46.669538365078765,"USD2021/kW"]
[null,"OPEX-F,WIND-ON,,ARG-JUJ,","OPEX-F","WIND-ON","","ARG-JUJ","",46.669538365078765,"USD2021/kW"]
[null,"OPEX-F,WIND-ON,,ARG-LAR,","OPEX-F","WIND-ON","","ARG-LAR","",46.669538365078765,"USD2021/kW"]
[null,"OPEX-F,WIND-ON,,ARG-MEN,","OPEX-F","WIND-ON","","ARG-MEN","",46.669538365078765,"USD2021/kW"]
[null,"OPEX-F,WIND-ON,,ARG-MIS,","OPEX-F","WIND-ON","","ARG-MIS","",46.669538365078765,"USD2021/kW"]
[null,"OPEX-F,WIND-ON,,ARG-NEG,","OPEX-F","WIND-ON","","ARG-NEG","",46.669538365078765,"USD2021/kW"]
[null,"OPEX-F,WIND-ON,,ARG-NEU,","OPEX-F","WIND-ON","","ARG-NEU","",46.669538365078765,"USD2021/kW"]
[null,"OPEX-F,WIND-ON,,ARG-PAM,","OPEX-F","WIND-ON","","ARG-PAM","",46.669538365078765,"USD2021/kW"]
[null,"OPEX-F,WIND-ON,,ARG-RIO,","OPEX-F","WIND-ON","","ARG-RIO","",46.669538365078765,"USD2021/kW"]
[null,"OPEX-F,WIND-ON,,ARG-SAF,","OPEX-F","WIND-ON","","ARG-SAF","",46.669538365078765,"USD2021/kW"]
[null,"OPEX-F,WIND-ON,,ARG-SAJ,","OPEX-F","WIND-ON","","ARG-SAJ","",46.669538365078765,"USD2021/kW"]
[null,"OPEX-F,WIND-ON,,ARG-SAL,","OPEX-F","WIND-ON","","ARG-SAL","",46.669538365078765,"USD2021/kW"]
[null,"OPEX-F,WIND-ON,,ARG-SAT,","OPEX-F","WIND-ON","","ARG-SAT","",46.669538365078765,"USD2021/kW"]
[null,"OPEX-F,WIND-ON,,ARG-TUC,","OPEX-F","WIND-ON","","ARG-TUC","",46.669538365078765,"USD2021/kW"]
[null,"OPEX-F,WIND-ON,,AUS,","OPEX-F","WIND-ON","","AUS","",46.669538365078765,"USD2021/kW"]
[null,"OPEX-F,WIND-ON,,BRA,","OPEX-F","WIND-ON","","BRA","",30.668553782766047,"USD2021/kW"]
[null,"OPEX-F,WIND-ON,,CHL,","OPEX-F","WIND-ON","","CHL","",46.669538365078765,"USD2021/kW"]
[null,"OPEX-F,WIND-ON,,CHN,","OPEX-F","WIND-ON","","CHN","",30.85523193622636,"USD2021/kW"]
[null,"OPEX-F,WIND-ON,,COL,","OPEX-F","WIND-ON","","COL","",43.344000000000001,"USD2021/kW"]
[null,"OPEX-F,WIND-ON,,CRI,","OPEX-F","WIND-ON","","CRI","",42.215930989668394,"USD2021/kW"]
[null,"OPEX-F,WIND-ON,,DNK,","OPEX-F","WIND-ON","","DNK","",43.282663295155899,"USD2021/kW"]
[null,"OPEX-F,WIND-ON,,DZA,","OPEX-F","WIND-ON","","DZA","",50.456438049559438,"USD2021/kW"]
[null,"OPEX-F,WIND-ON,,EGY,","OPEX-F","WIND-ON","","EGY","",40.002461455781798,"USD2021/kW"]
[null,"OPEX-F,WIND-ON,,ESP,","OPEX-F","WIND-ON","","ESP","",31.243283515972124,"USD2021/kW"]
[null,"OPEX-F,WIND-ON,,IDN,","OPEX-F","WIND-ON","","IDN","",60.003692183672698,"USD2021/kW"]
[null,"OPEX-F,WIND-ON,,IND,","OPEX-F","WIND-ON","","IND","",24.694852872035963,"USD2021/kW"]
[null,"OPEX-F,WIND-ON,,JOR,","OPEX-F","WIND-ON","","JOR","",50.456438049559438,"USD2021/kW"]
[null,"OPEX-F,WIND-ON,,KAZ,","OPEX-F","WIND-ON","","KAZ","",40.002461455781798,"USD2021/kW"]
[null,"OPEX-F,WIND-ON,,KEN,","OPEX-F","WIND-ON","","KEN","",50.456438049559438,"USD2021/kW"]
[null,"OPEX-F,WIND-ON,,MAR,","OPEX-F","WIND-ON","","MAR","",46.669538365078765,"USD2021/kW"]
[null,"OPEX-F,WIND-ON,,MAR-BEN,","OPEX-F","WIND-ON","","MAR-BEN","",46.669538365078765,"USD2021/kW"]
[null,"OPEX-F,WIND-ON,,MAR-CAS,","OPEX-F","WIND-ON","","MAR-CAS","",46.669538365078765,"USD2021/kW"]
[null,"OPEX-F,WIND-ON,,MAR-DAK,","OPEX-F","WIND-ON","","MAR-DAK","",46.669538365078765,"USD2021/kW"]
[null,"OPEX-F,WIND-ON,,MAR-DRA,","OPEX-F","WIND-ON","","MAR-DRA","",46.669538365078765,"USD2021/kW"]
[null,"OPEX-F,WIND-ON,,MAR-FES,","OPEX-F","WIND-ON","","MAR-FES","",46.669538365078765,"USD2021/kW"]
[null,"OPEX-F,WIND-ON,,MAR-GUE,","OPEX-F","WIND-ON","","MAR-GUE","",46.669538365078765,"USD2021/kW"]
[null,"OPEX-F,WIND-ON,,MAR-LAA,","OPEX-F","WIND-ON","","MAR-LAA","",46.669538365078765,"USD2021/kW"]
[null,"OPEX-F,WIND-ON,,MAR-LOR,","OPEX-F","WIND-ON","","MAR-LOR","",46.669538365078765,"USD2021/kW"]
[null,"OPEX-F,WIND-ON,,MAR-MAR,","OPEX-F","WIND-ON","","MAR-MAR","",46.669538365078765,"USD2021/kW"]
[null,"OPEX-F,WIND-ON,,MAR-RAB,","OPEX-F","WIND-ON","","MAR-RAB","",46.669538365078765,"USD2021/kW"]
[null,"OPEX-F,WIND-ON,,MAR-SOU,","OPEX-F","WIND-ON","","MAR-SOU","",46.669538365078765,"USD2021/kW"]
[null,"OPEX-F,WIND-ON,,MAR-TAN,","OPEX-F","WIND-ON","","MAR-TAN","",46.669538365078765,"USD2021/kW"]
[null,"OPEX-F,WIND-ON,,MEX,","OPEX-F","WIND-ON","","MEX","",39.240541907391524,"USD2021/kW"]
[null,"OPEX-F,WIND-ON,,MRT,","OPEX-F","WIND-ON","","MRT","",50.456438049559438,"USD2021/kW"]
[null,"OPEX-F,WIND-ON,,NAM,","OPEX-F","WIND-ON","","NAM","",50.456438049559438,"USD2021/kW"]
[null,"OPEX-F,WIND-ON,,NOR,","OPEX-F","WIND-ON","","NOR","",40.002461455781798,"USD2021/kW"]
[null,"OPEX-F,WIND-ON,,PER,","OPEX-F","WIND-ON","","PER","",33.335384546484832,"USD2021/kW"]
[null,"OPEX-F,WIND-ON,,PRT,","OPEX-F","WIND-ON","","PRT","",46.669538365078765,"USD2021/kW"]
[null,"OPEX-F,WIND-ON,,RUS,","OPEX-F","WIND-ON","","RUS","",40.002461455781798,"USD2021/kW"]
[null,"OPEX-F,WIND-ON,,SAU,","OPEX-F","WIND-ON","","SAU","",41.202535299455249,"USD2021/kW"]
[null,"OPEX-F,WIND-ON,,SWE,","OPEX-F","WIND-ON","","SWE","",43.282663295155899,"USD2021/kW"]
[null,"OPEX-F,WIND-ON,,THA,","OPEX-F","WIND-ON","","THA","",41.202535299455249,"USD2021/kW"]
[null,"OPEX-F,WIND-ON,,TUN,","OPEX-F","WIND-ON","","TUN","",50.456438049559438,"USD2021/kW"]
[null,"OPEX-F,WIND-ON,,UKR,","OPEX-F","WIND-ON","","UKR","",40.002461455781798,"USD2021/kW"]
[null,"OPEX-F,WIND-ON,,URY,","OPEX-F","WIND-ON","","URY","",60.003692183672698,"USD2021/kW"]
[null,"OPEX-F,WIND-ON,,USA,","OPEX-F","WIND-ON","","USA","",36.847935909117744,"USD2021/kW"]
[null,"OPEX-F,WIND-ON,,VNM,","OPEX-F","WIND-ON","","VNM","",60.003692183672698,"USD2021/kW"]
[null,"OPEX-F,WIND-ON,,ZAF,","OPEX-F","WIND-ON","","ZAF","",46.669538365078765,"USD2021/kW"]
[null,"OPEX-F,WIND-ON,,ZAF-EC,","OPEX-F","WIND-ON","","ZAF-EC","",46.669538365078765,"USD2021/kW"]
[null,"OPEX-F,WIND-ON,,ZAF-FRS,","OPEX-F","WIND-ON","","ZAF-FRS","",46.669538365078765,"USD2021/kW"]
[null,"OPEX-F,WIND-ON,,ZAF-GAU,","OPEX-F","WIND-ON","","ZAF-GAU","",46.669538365078765,"USD2021/kW"]
[null,"OPEX-F,WIND-ON,,ZAF-KWA,","OPEX-F","WIND-ON","","ZAF-KWA","",46.669538365078765,"USD2021/kW"]
[null,"OPEX-F,WIND-ON,,ZAF-LIM,","OPEX-F","WIND-ON","","ZAF-LIM","",46.669538365078765,"USD2021/kW"]
[null,"OPEX-F,WIND-ON,,ZAF-MPU,","OPEX-F","WIND-ON","","ZAF-MPU","",46.669538365078765,"USD2021/kW"]
[null,"OPEX-F,WIND-ON,,ZAF-NC,","OPEX-F","WIND-ON","","ZAF-NC","",46.669538365078765,"USD2021/kW"]
[null,"OPEX-F,WIND-ON,,ZAF-NW,","OPEX-F","WIND-ON","","ZAF-NW","",46.669538365078765,"USD2021/kW"]
[null,"OPEX-F,WIND-ON,,ZAF-WC,","OPEX-F","WIND-ON","","ZAF-WC","",46.669538365078765,"USD2021/kW"]
[null,"OPEX-O,ATR,,,","OPEX-O","ATR","","","",9.1464146414641494E-3,"USD2021/kWh","George et al. (2022)"]
[null,"OPEX-O,CH3OH-S,,,","OPEX-O","CH3OH-S","","","",1.0849036835729676E-4,"USD2021/kWh","UNSW Sydney 2021"]
[null,"OPEX-O,CH3OH-SB,,,","OPEX-O","CH3OH-SB","","","",1.0849036835729676E-4,"USD2021/kWh","UNSW Sydney 2021"]
[null,"OPEX-O,CH4-S,,,","OPEX-O","CH4-S","","","",3.3042876189725266E-4,"USD2021/kWh","UNSW Sydney 2021"]
[null,"OPEX-O,CH4-SB,,,","OPEX-O","CH4-SB","","","",3.3042876189725266E-4,"USD2021/kWh","UNSW Sydney 2021"]
[null,"OPEX-O,DRI,,,","OPEX-O","DRI","","","",0.26656892307692304,"USD2021/kg DRI (s)","Agora Industry Transformation 2021"]
[null,"OPEX-O,H2-S,,,","OPEX-O","H2-S","","","",1.9557894682818507E-3,"USD2021/kWh","UNSW Sydney 2021"]
[null,"OPEX-O,H2-SB,,,","OPEX-O","H2-SB","","","",1.9557894682818507E-3,"USD2021/kWh","UNSW Sydney 2021"]
[null,"OPEX-O,LOHC-S,,,","OPEX-O","LOHC-S","","","",1.5378717307752301E-2,"USD2021/kWh","UNSW Sydney 2021"]
[null,"OPEX-O,LOHC-SB,,,","OPEX-O","LOHC-SB","","","",1.5378717307752301E-2,"USD2021/kWh","UNSW Sydney 2021"]
[null,"OPEX-O,NH3-S,,,","OPEX-O","NH3-S","","","",4.2087134757005104E-4,"USD2021/kWh","UNSW Sydney 2021"]
[null,"OPEX-O,NH3-SB,,,","OPEX-O","NH3-SB","","","",4.2087134757005104E-4,"USD2021/kWh","UNSW Sydney 2021"]
[null,"OPEX-O,REGASATR,,,","OPEX-O","REGASATR","","","",9.1464146414641494E-3,"USD2021/kWh","combined values"]
[null,"OPEX-O,SYN-S,,,","OPEX-O","SYN-S","","","",4.5028839113694242E-5,"USD2021/kWh","UNSW Sydney 2021"]
[null,"OPEX-O,SYN-SB,,,","OPEX-O","SYN-SB","","","",4.5028839113694242E-5,"USD2021/kWh","UNSW Sydney 2021"]
[null,"OPEX-T,CH3OH-S,,,","OPEX-T","CH3OH-S","","","",1.0848168982211098E-7,"USD2021/(kWh*km)","calc_shipping"]
[null,"OPEX-T,CH3OH-SB,,,","OPEX-T","CH3OH-SB","","","",1.0848168982211098E-7,"USD2021/(kWh*km)","calc_shipping"]
[null,"OPEX-T,CH4-P-L,,,","OPEX-T","CH4-P-L","","","",2.7651437055456481E-6,"USD2021/(kWh*km)"]
[null,"OPEX-T,CH4-P-LR,,,","OPEX-T","CH4-P-LR","","","",8.624381235013173E-7,"USD2021/(kWh*km)"]
[null,"OPEX-T,CH4-P-S,,,","OPEX-T","CH4-P-S","","","",3.3181724466547807E-6,"USD2021/(kWh*km)"]
[null,"OPEX-T,CH4-P-SR,,,","OPEX-T","CH4-P-SR","","","",8.624381235013173E-7,"USD2021/(kWh*km)"]
[null,"OPEX-T,CH4-S,,,","OPEX-T","CH4-S","","","",2.5415563823913519E-7,"USD2021/(kWh*km)","calc_shipping"]
[null,"OPEX-T,CH4-SB,,,","OPEX-T","CH4-SB","","","",2.5415563823913519E-7,"USD2021/(kWh*km)","calc_shipping"]
[null,"OPEX-T,DRI-SB,,,","OPEX-T","DRI-SB","","","",3.262896862987803E-7,"USD2021/(kg*km)","calc_shipping"]
[null,"OPEX-T,H2-P-L,,,","OPEX-T","H2-P-L","","","",8.8738982865209894E-6,"USD2021/(kWh*km)","Guidehouse 2022"]
[null,"OPEX-T,H2-P-LR,,,","OPEX-T","H2-P-LR","","","",3.0424794125214817E-6,"USD2021/(kWh*km)","Guidehouse 2022"]
[null,"OPEX-T,H2-P-S,,,","OPEX-T","H2-P-S","","","",1.5212397062607411E-5,"USD2021/(kWh*km)","Guidehouse 2022"]
[null,"OPEX-T,H2-P-SR,,,","OPEX-T","H2-P-SR","","","",3.8030992656518527E-6,"USD2021/(kWh*km)","Guidehouse 2022"]
[null,"OPEX-T,H2-S,,,","OPEX-T","H2-S","","","",1.5043330904926455E-6,"USD2021/(kWh*km)","calc_shipping"]
[null,"OPEX-T,H2-SB,,,","OPEX-T","H2-SB","","","",1.5043330904926455E-6,"USD2021/(kWh*km)","calc_shipping"]
[null,"OPEX-T,LOHC-S,,,","OPEX-T","LOHC-S","","","",1.3493717175603379E-6,"USD2021/(kWh*km)","calc_shipping"]
[null,"OPEX-T,LOHC-SB,,,","OPEX-T","LOHC-SB","","","",1.3493717175603379E-6,"USD2021/(kWh*km)","calc_shipping"]
[null,"OPEX-T,NH3-S,,,","OPEX-T","NH3-S","","","",3.2372129273508194E-7,"USD2021/(kWh*km)","calc_shipping"]
[null,"OPEX-T,NH3-SB,,,","OPEX-T","NH3-SB","","","",3.2372129273508194E-7,"USD2021/(kWh*km)","calc_shipping"]
[null,"OPEX-T,SYN-S,,,","OPEX-T","SYN-S","","","",4.502523709472666E-8,"USD2021/(kWh*km)","calc_shipping"]
[null,"OPEX-T,SYN-SB,,,","OPEX-T","SYN-SB","","","",4.502523709472666E-8,"USD2021/(kWh*km)","calc_shipping"]
[null,"SEASHARE,,,ARE,CHN","SEASHARE","","","ARE","CHN",0.11111111111111099,null,"Research Susanne Krieger"]
[null,"SEASHARE,,,ARE,IND","SEASHARE","","","ARE","IND",0.65,null,"Research Susanne Krieger"]
[null,"SEASHARE,,,CHN,JPN","SEASHARE","","","CHN","JPN",0.28571428571428598,null,"Research Susanne Krieger"]
[null,"SEASHARE,,,CHN,KOR","SEASHARE","","","CHN","KOR",0.4,null,"Research Susanne Krieger"]
[null,"SEASHARE,,,COL,USA","SEASHARE","","","COL","USA",0.64444444444444404,"km","Research Susanne Krieger"]
[null,"SEASHARE,,,CRI,USA","SEASHARE","","","CRI","USA",0.14285714285714299,null,"Research Susanne Krieger"]
[null,"SEASHARE,,,DNK,FRA","SEASHARE","","","DNK","FRA",0.5,null,"Research Susanne Krieger"]
[null,"SEASHARE,,,DNK,NLD","SEASHARE","","","DNK","NLD",1,null,"Research Susanne Krieger"]
[null,"SEASHARE,,,DZA,DEU","SEASHARE","","","DZA","DEU",0.1,null,"Research Susanne Krieger"]
[null,"SEASHARE,,,DZA,ESP","SEASHARE","","","DZA","ESP",0.27741832232496999,null,"Research Susanne Krieger"]
[null,"SEASHARE,,,DZA,FRA","SEASHARE","","","DZA","FRA",0.15,null,"Research Susanne Krieger"]
[null,"SEASHARE,,,DZA,NLD","SEASHARE","","","DZA","NLD",0.133333333333333,null,"Research Susanne Krieger"]
[null,"SEASHARE,,,EGY,ESP","SEASHARE","","","EGY","ESP",0.155555555555556,null,"Research Susanne Krieger"]
[null,"SEASHARE,,,EGY,FRA","SEASHARE","","","EGY","FRA",0.17499999999999999,null,"Research Susanne Krieger"]
[null,"SEASHARE,,,EGY,IND","SEASHARE","","","EGY","IND",0.52,null,"Research Susanne Krieger"]
[null,"SEASHARE,,,IDN,CHN","SEASHARE","","","IDN","CHN",0.5,null,"Research Susanne Krieger"]
[null,"SEASHARE,,,IDN,IND","SEASHARE","","","IDN","IND",0.4,null,"Research Susanne Krieger"]
[null,"SEASHARE,,,IDN,JPN","SEASHARE","","","IDN","JPN",0.90909090909090906,null,"Research Susanne Krieger"]
[null,"SEASHARE,,,IDN,KOR","SEASHARE","","","IDN","KOR",0.90909090909090906,null,"Research Susanne Krieger"]
[null,"SEASHARE,,,KEN,IND","SEASHARE","","","KEN","IND",0.86,null,"Research Susanne Krieger"]
[null,"SEASHARE,,,MAR,ESP","SEASHARE","","","MAR","ESP",0.18,null,"Research Susanne Krieger"]
[null,"SEASHARE,,,MAR-BEN,ESP","SEASHARE","","","MAR-BEN","ESP",0.18,null,"Research Susanne Krieger"]
[null,"SEASHARE,,,MAR-CAS,ESP","SEASHARE","","","MAR-CAS","ESP",0.18,null,"Research Susanne Krieger"]
[null,"SEASHARE,,,MAR-DAK,ESP","SEASHARE","","","MAR-DAK","ESP",0.18,null,"Research Susanne Krieger"]
[null,"SEASHARE,,,MAR-DRA,ESP","SEASHARE","","","MAR-DRA","ESP",0.18,null,"Research Susanne Krieger"]
[null,"SEASHARE,,,MAR-FES,ESP","SEASHARE","","","MAR-FES","ESP",0.18,null,"Research Susanne Krieger"]
[null,"SEASHARE,,,MAR-GUE,ESP","SEASHARE","","","MAR-GUE","ESP",0.18,null,"Research Susanne Krieger"]
[null,"SEASHARE,,,MAR-LAA,ESP","SEASHARE","","","MAR-LAA","ESP",0.18,null,"Research Susanne Krieger"]
[null,"SEASHARE,,,MAR-LOR,ESP","SEASHARE","","","MAR-LOR","ESP",0.18,null,"Research Susanne Krieger"]
[null,"SEASHARE,,,MAR-MAR,ESP","SEASHARE","","","MAR-MAR","ESP",0.18,null,"Research Susanne Krieger"]
[null,"SEASHARE,,,MAR-RAB,ESP","SEASHARE","","","MAR-RAB","ESP",0.18,null,"Research Susanne Krieger"]
[null,"SEASHARE,,,MAR-SOU,ESP","SEASHARE","","","MAR-SOU","ESP",0.18,null,"Research Susanne Krieger"]
[null,"SEASHARE,,,MAR-TAN,ESP","SEASHARE","","","MAR-TAN","ESP",0.18,null,"Research Susanne Krieger"]
[null,"SEASHARE,,,MEX,USA","SEASHARE","","","MEX","USA",1,null,"Research Susanne Krieger"]
[null,"SEASHARE,,,NOR,DEU","SEASHARE","","","NOR","DEU",1,null,"Research Susanne Krieger"]
[null,"SEASHARE,,,NOR,ESP","SEASHARE","","","NOR","ESP",0.45,null,"Research Susanne Krieger"]
[null,"SEASHARE,,,NOR,FRA","SEASHARE","","","NOR","FRA",0.9,null,"Research Susanne Krieger"]
[null,"SEASHARE,,,NOR,NLD","SEASHARE","","","NOR","NLD",1,null,"Research Susanne Krieger"]
[null,"SEASHARE,,,PER,USA","SEASHARE","","","PER","USA",0.58181818181818201,null,"Research Susanne Krieger"]
[null,"SEASHARE,,,RUS,DEU","SEASHARE","","","RUS","DEU",1,null,"Research Susanne Krieger"]
[null,"SEASHARE,,,RUS,JPN","SEASHARE","","","RUS","JPN",0.17499999999999999,null,"Research Susanne Krieger"]
[null,"SEASHARE,,,SAU,IND","SEASHARE","","","SAU","IND",0.74285714285714299,null,"Research Susanne Krieger"]
[null,"SEASHARE,,,SWE,DEU","SEASHARE","","","SWE","DEU",0.3,null,"Research Susanne Krieger"]
[null,"SEASHARE,,,SWE,ESP","SEASHARE","","","SWE","ESP",0.1,null,"Research Susanne Krieger"]
[null,"SEASHARE,,,SWE,FRA","SEASHARE","","","SWE","FRA",0.15,null,"Research Susanne Krieger"]
[null,"SEASHARE,,,SWE,NLD","SEASHARE","","","SWE","NLD",0.15,null,"Research Susanne Krieger"]
[null,"SEASHARE,,,THA,JPN","SEASHARE","","","THA","JPN",0.18,null,"Research Susanne Krieger"]
[null,"SEASHARE,,,THA,KOR","SEASHARE","","","THA","KOR",0.16,null,"Research Susanne Krieger"]
[null,"SEASHARE,,,TUN,DEU","SEASHARE","","","TUN","DEU",0.35,null,"Research Susanne Krieger"]
[null,"SEASHARE,,,TUN,ESP","SEASHARE","","","TUN","ESP",0.46666666666666701,null,"Research Susanne Krieger"]
[null,"SEASHARE,,,TUN,FRA","SEASHARE","","","TUN","FRA",0.7,null,"Research Susanne Krieger"]
[null,"SEASHARE,,,TUN,NLD","SEASHARE","","","TUN","NLD",0.28000000000000003,null,"Research Susanne Krieger"]
[null,"SEASHARE,,,VNM,JPN","SEASHARE","","","VNM","JPN",0.22500000000000001,null,"Research Susanne Krieger"]
[null,"SEASHARE,,,VNM,KOR","SEASHARE","","","VNM","KOR",0.16,null,"Research Susanne Krieger"]
[null,"SPECCOST,,BFUEL-L,,","SPECCOST","","BFUEL-L","","",3.9445460405156535E-3,"USD2021 / kwh bunker fuel (l)"]
[null,"SPECCOST,,CO2-G,,","SPECCOST","","CO2-G","","",3.8577660276243091E-2,"USD2021 / kg CO2 (g)"]
[null,"SPECCOST,,EL,,","SPECCOST","","EL","","",7.0000000000000007E-2,"USD2021 / kWh (el.)","dummy mh! Auf Null gesetzt bis bug in Rechner behoben ist. Korrekter Wert ist 0,08"]
[null,"SPECCOST,,H2O-L,,","SPECCOST","","H2O-L","","",1.190463995027624E-3,"USD2021 / kg H2O (l)"]
[null,"SPECCOST,,HEAT,,","SPECCOST","","HEAT","","",0.05,"USD2021 / kWh (heat)"]
[null,"SPECCOST,,N2-G,,","SPECCOST","","N2-G","","",0.01,"USD2021 / kg N2 (g)"]
[null,"WACC,,,ARE,","WACC","","","ARE","",5.5673211551852057E-2,"fraction"]
[null,"WACC,,,ARG,","WACC","","","ARG","",0.15031035355923136,"fraction"]
[null,"WACC,,,ARG-BA,","WACC","","","ARG-BA","",0.15031035355923136,"fraction"]
[null,"WACC,,,ARG-CAT,","WACC","","","ARG-CAT","",0.15031035355923136,"fraction"]
[null,"WACC,,,ARG-CBA,","WACC","","","ARG-CBA","",0.15031035355923136,"fraction"]
[null,"WACC,,,ARG-CHA,","WACC","","","ARG-CHA","",0.15031035355923136,"fraction"]
[null,"WACC,,,ARG-CHU,","WACC","","","ARG-CHU","",0.15031035355923136,"fraction"]
[null,"WACC,,,ARG-COR,","WACC","","","ARG-COR","",0.15031035355923136,"fraction"]
[null,"WACC,,,ARG-CRB,","WACC","","","ARG-CRB","",0.15031035355923136,"fraction"]
[null,"WACC,,,ARG-CRU,","WACC","","","ARG-CRU","",0.15031035355923136,"fraction"]
[null,"WACC,,,ARG-EST,","WACC","","","ARG-EST","",0.15031035355923136,"fraction"]
[null,"WACC,,,ARG-FOR,","WACC","","","ARG-FOR","",0.15031035355923136,"fraction"]
[null,"WACC,,,ARG-FUE,","WACC","","","ARG-FUE","",0.15031035355923136,"fraction"]
[null,"WACC,,,ARG-JUJ,","WACC","","","ARG-JUJ","",0.15031035355923136,"fraction"]
[null,"WACC,,,ARG-LAR,","WACC","","","ARG-LAR","",0.15031035355923136,"fraction"]
[null,"WACC,,,ARG-MEN,","WACC","","","ARG-MEN","",0.15031035355923136,"fraction"]
[null,"WACC,,,ARG-MIS,","WACC","","","ARG-MIS","",0.15031035355923136,"fraction"]
[null,"WACC,,,ARG-NEG,","WACC","","","ARG-NEG","",0.15031035355923136,"fraction"]
[null,"WACC,,,ARG-NEU,","WACC","","","ARG-NEU","",0.15031035355923136,"fraction"]
[null,"WACC,,,ARG-PAM,","WACC","","","ARG-PAM","",0.15031035355923136,"fraction"]
[null,"WACC,,,ARG-RIO,","WACC","","","ARG-RIO","",0.15031035355923136,"fraction"]
[null,"WACC,,,ARG-SAF,","WACC","","","ARG-SAF","",0.15031035355923136,"fraction"]
[null,"WACC,,,ARG-SAJ,","WACC","","","ARG-SAJ","",0.15031035355923136,"fraction"]
[null,"WACC,,,ARG-SAL,","WACC","","","ARG-SAL","",0.15031035355923136,"fraction"]
[null,"WACC,,,ARG-SAT,","WACC","","","ARG-SAT","",0.15031035355923136,"fraction"]
[null,"WACC,,,ARG-TUC,","WACC","","","ARG-TUC","",0.15031035355923136,"fraction"]
[null,"WACC,,,AUS,","WACC","","","AUS","",5.0299999999999997E-2,"fraction"]
[null,"WACC,,,BRA,","WACC","","","BRA","",8.2832353577576984E-2,"fraction"]
[null,"WACC,,,CHL,","WACC","","","CHL","",5.5673211551852057E-2,"fraction"]
[null,"WACC,,,CHN,","WACC","","","CHN","",5.5673211551852057E-2,"fraction"]
[null,"WACC,,,COL,","WACC","","","COL","",7.0913593408014244E-2,"fraction"]
[null,"WACC,,,CRI,","WACC","","","CRI","",0.10395003232720652,"fraction"]
[null,"WACC,,,DNK,","WACC","","","DNK","",5.0299999999999997E-2,"fraction"]
[null,"WACC,,,DZA,","WACC","","","DZA","",9.1999999999999998E-2,"fraction"]
[null,"WACC,,,EGY,","WACC","","","EGY","",0.11336853373134342,"fraction"]
[null,"WACC,,,ESP,","WACC","","","ESP","",6.4274782725559448E-2,"fraction"]
[null,"WACC,,,IDN,","WACC","","","IDN","",7.0913593408014244E-2,"fraction"]
[null,"WACC,,,IND,","WACC","","","IND","",7.237045402218821E-2,"fraction"]
[null,"WACC,,,JOR,","WACC","","","JOR","",9.9049682988621379E-2,"fraction"]
[null,"WACC,,,KAZ,","WACC","","","KAZ","",7.3401485154905771E-2,"fraction"]
[null,"WACC,,,KEN,","WACC","","","KEN","",0.10989380084781369,"fraction"]
[null,"WACC,,,MAR,","WACC","","","MAR","",7.731973992583685E-2,"fraction"]
[null,"WACC,,,MAR-BEN,","WACC","","","MAR-BEN","",7.731973992583685E-2,"fraction"]
[null,"WACC,,,MAR-CAS,","WACC","","","MAR-CAS","",7.731973992583685E-2,"fraction"]
[null,"WACC,,,MAR-DAK,","WACC","","","MAR-DAK","",7.731973992583685E-2,"fraction"]
[null,"WACC,,,MAR-DRA,","WACC","","","MAR-DRA","",7.731973992583685E-2,"fraction"]
[null,"WACC,,,MAR-FES,","WACC","","","MAR-FES","",7.731973992583685E-2,"fraction"]
[null,"WACC,,,MAR-GUE,","WACC","","","MAR-GUE","",7.731973992583685E-2,"fraction"]
[null,"WACC,,,MAR-LAA,","WACC","","","MAR-LAA","",7.731973992583685E-2,"fraction"]
[null,"WACC,,,MAR-LOR,","WACC","","","MAR-LOR","",7.731973992583685E-2,"fraction"]
[null,"WACC,,,MAR-MAR,","WACC","","","MAR-MAR","",7.731973992583685E-2,"fraction"]
[null,"WACC,,,MAR-RAB,","WACC","","","MAR-RAB","",7.731973992583685E-2,"fraction"]
[null,"WACC,,,MAR-SOU,","WACC","","","MAR-SOU","",7.731973992583685E-2,"fraction"]
[null,"WACC,,,MAR-TAN,","WACC","","","MAR-TAN","",7.731973992583685E-2,"fraction"]
[null,"WACC,,,MEX,","WACC","","","MEX","",6.4274782725559448E-2,"fraction"]
[null,"WACC,,,MRT,","WACC","","","MRT","",9.1999999999999998E-2,"fraction"]
[null,"WACC,,,NAM,","WACC","","","NAM","",8.3993056414234241E-2,"fraction"]
[null,"WACC,,,NOR,","WACC","","","NOR","",5.0299999999999997E-2,"fraction"]
[null,"WACC,,,PER,","WACC","","","PER","",6.4274782725559448E-2,"fraction"]
[null,"WACC,,,PRT,","WACC","","","PRT","",7.3401485154905771E-2,"fraction"]
[null,"WACC,,,RUS,","WACC","","","RUS","",7.5170549034228915E-2,"fraction"]
[null,"WACC,,,SAU,","WACC","","","SAU","",5.5673211551852057E-2,"fraction"]
[null,"WACC,,,SWE,","WACC","","","SWE","",5.0299999999999997E-2,"fraction"]
[null,"WACC,,,THA,","WACC","","","THA","",6.4274782725559448E-2,"fraction"]
[null,"WACC,,,TUN,","WACC","","","TUN","",0.11482300617243665,"fraction"]
[null,"WACC,,,UKR,","WACC","","","UKR","",0.1266281397634636,"fraction"]
[null,"WACC,,,URY,","WACC","","","URY","",7.731973992583685E-2,"fraction"]
[null,"WACC,,,USA,","WACC","","","USA","",5.0299999999999997E-2,"fraction"]
[null,"WACC,,,VNM,","WACC","","","VNM","",8.9280207439799461E-2,"fraction"]
[null,"WACC,,,ZAF,","WACC","","","ZAF","",7.8066629268261314E-2,"fraction"]
[null,"WACC,,,ZAF-EC,","WACC","","","ZAF-EC","",7.8066629268261314E-2,"fraction"]
[null,"WACC,,,ZAF-FRS,","WACC","","","ZAF-FRS","",7.8066629268261314E-2,"fraction"]
[null,"WACC,,,ZAF-GAU,","WACC","","","ZAF-GAU","",7.8066629268261314E-2,"fraction"]
[null,"WACC,,,ZAF-KWA,","WACC","","","ZAF-KWA","",7.8066629268261314E-2,"fraction"]
[null,"WACC,,,ZAF-LIM,","WACC","","","ZAF-LIM","",7.8066629268261314E-2,"fraction"]
[null,"WACC,,,ZAF-MPU,","WACC","","","ZAF-MPU","",7.8066629268261314E-2,"fraction"]
[null,"WACC,,,ZAF-NC,","WACC","","","ZAF-NC","",7.8066629268261314E-2,"fraction"]
[null,"WACC,,,ZAF-NW,","WACC","","","ZAF-NW","",7.8066629268261314E-2,"fraction"]
[null,"WACC,,,ZAF-WC,","WACC","","","ZAF-WC","",7.8066629268261314E-2,"fraction"]
["/data"]

{"sheet":"_scenario_2030_high","index":50,"n_rows":2137,"n_cols":10,"rows_kept":2137,"cut":false,"hidden":true,"merged":[]}
["data","key","parameter_code","process_code","flow_code","source_region_code","target_country_code","value","unit","source"]
[null,"CALOR,,CH3OH-L,,","CALOR","","CH3OH-L","","",5.5277777777777768,"kWh CH3OH (l)/kg","Wikipedia with conversions"]
[null,"CALOR,,CH4-G,,","CALOR","","CH4-G","","",13.5,"kWh CH4 (g)/kg","Wikipedia with conversions"]
[null,"CALOR,,CH4-L,,","CALOR","","CH4-L","","",13.5,"kWh CH4 (l)/kg","Wikipedia with conversions"]
[null,"CALOR,,CHX-L,,","CALOR","","CHX-L","","",11.944444444444445,"kwh CHx (l)/kg","Wikipedia with conversions"]
[null,"CALOR,,DRI-S,,","CALOR","","DRI-S","","",1,"kg DRI (s)/kg","no conversion necessary"]
[null,"CALOR,,H2-G,,","CALOR","","H2-G","","",33.33,"kWh H2 (g)/kg","Linde"]
[null,"CALOR,,H2-L,,","CALOR","","H2-L","","",33.33,"kWh H2 (l)/kg","Linde"]
[null,"CALOR,,LOHC-L,,","CALOR","","LOHC-L","","",33.33,"kWh H2 (l)/kg","Linde"]
[null,"CALOR,,NH3-L,,","CALOR","","NH3-L","","",5.1999999999999993,"kWh NH3 (l)/kg","Wikipedia with conversions"]
[null,"CAPEX,AEL-EL,,,","CAPEX","AEL-EL","","","",650.6426539852938,"USD2021/kW"]
[null,"CAPEX,ATR,,,","CAPEX","ATR","","","",1000.0341055522356,"USD2021/kW","Oni et al. 2022"]
[null,"CAPEX,CH3OHSYN,,,","CAPEX","CH3OHSYN","","","",1065.0274309392264,"USD2021/kW","Frotier Economics 2021"]
[null,"CAPEX,CH4-COMP,,,","CAPEX","CH4-COMP","","","",270.33694914821058,"USD2021/kW","DNV GL 2020"]
[null,"CAPEX,CH4-LIQ,,,","CAPEX","CH4-LIQ","","","",439.99368256303694,"USD2021/kW","Hank et al. 2020"]
[null,"CAPEX,CH4SYN,,,","CAPEX","CH4SYN","","","",847.89448030598192,"USD2021/kW","Öko-Institut 2020"]
[null,"CAPEX,DAC,,,","CAPEX","DAC","","","",1.6591168858301173,"USD2021/ kg CO2 (g)*a","Kreidelmeyer et al. 2020"]
[null,"CAPEX,DESAL,,,","CAPEX","DESAL","","","",2.3667276243093918E-3,"USD2021/l*a","Fraunhofer IEE"]
[null,"CAPEX,DRI,,,","CAPEX","DRI","","","",4125.6284525730507,"USD2021/kg DRI (s)/a*h","Agora Industry Transformation 2021"]
[null,"CAPEX,EFUELSYN,,,","CAPEX","EFUELSYN","","","",1065.0274309392264,"USD2021/kW","Frotier Economics 2021"]
[null,"CAPEX,H2-COMP,,,","CAPEX","H2-COMP","","","",270.33694914821058,"USD2021/kW","DNV GL 2020"]
[null,"CAPEX,H2-LIQ,,,","CAPEX","H2-LIQ","","","",2228.4706482140114,"USD2021/kW","IEA 2015"]
[null,"CAPEX,H2-RGAS,,,","CAPEX","H2-RGAS","","","",503.88993317467032,"USD2021/kW","DNV GL 2020"]
[null,"CAPEX,LOHC-CON,,,","CAPEX","LOHC-CON","","","",286.32944503810444,"USD2021/kW","Staiß et al. 2022 nach Wasserscheid"]
[null,"CAPEX,LOHC-REC,,,","CAPEX","LOHC-REC","","","",525.46172880619167,"USD2021/kW","Staiß et al. 2022 nach Wasserscheid"]
[null,"CAPEX,NH3-REC,,,","CAPEX","NH3-REC","","","",422.18509486193108,"USD2021/kW","NGN; Equinor 2018"]
[null,"CAPEX,NH3SYN,,,","CAPEX","NH3SYN","","","",1820.5597110072247,"USD2021/kW","Frotier Economics 2021"]
[null,"CAPEX,PEM-EL,,,","CAPEX","PEM-EL","","","",924.60772108052163,"USD2021/kW"]
[null,"CAPEX,PV-FIX,,ARE,","CAPEX","PV-FIX","","ARE","",748.32170696054584,"USD2021/kW"]
[null,"CAPEX,PV-FIX,,ARG,","CAPEX","PV-FIX","","ARG","",726.01426568983027,"USD2021/kW"]
[null,"CAPEX,PV-FIX,,ARG-BA,","CAPEX","PV-FIX","","ARG-BA","",726.01426568983027,"USD2021/kW"]
[null,"CAPEX,PV-FIX,,ARG-CAT,","CAPEX","PV-FIX","","ARG-CAT","",726.01426568983027,"USD2021/kW"]
[null,"CAPEX,PV-FIX,,ARG-CBA,","CAPEX","PV-FIX","","ARG-CBA","",726.01426568983027,"USD2021/kW"]
[null,"CAPEX,PV-FIX,,ARG-CHA,","CAPEX","PV-FIX","","ARG-CHA","",726.01426568983027,"USD2021/kW"]
[null,"CAPEX,PV-FIX,,ARG-CHU,","CAPEX","PV-FIX","","ARG-CHU","",726.01426568983027,"USD2021/kW"]
[null,"CAPEX,PV-FIX,,ARG-COR,","CAPEX","PV-FIX","","ARG-COR","",726.01426568983027,"USD2021/kW"]
[null,"CAPEX,PV-FIX,,ARG-CRB,","CAPEX","PV-FIX","","ARG-CRB","",726.01426568983027,"USD2021/kW"]
[null,"CAPEX,PV-FIX,,ARG-CRU,","CAPEX","PV-FIX","","ARG-CRU","",726.01426568983027,"USD2021/kW"]
[null,"CAPEX,PV-FIX,,ARG-EST,","CAPEX","PV-FIX","","ARG-EST","",726.01426568983027,"USD2021/kW"]
[null,"CAPEX,PV-FIX,,ARG-FOR,","CAPEX","PV-FIX","","ARG-FOR","",726.01426568983027,"USD2021/kW"]
[null,"CAPEX,PV-FIX,,ARG-FUE,","CAPEX","PV-FIX","","ARG-FUE","",726.01426568983027,"USD2021/kW"]
[null,"CAPEX,PV-FIX,,ARG-JUJ,","CAPEX","PV-FIX","","ARG-JUJ","",726.01426568983027,"USD2021/kW"]
[null,"CAPEX,PV-FIX,,ARG-LAR,","CAPEX","PV-FIX","","ARG-LAR","",726.01426568983027,"USD2021/kW"]
[null,"CAPEX,PV-FIX,,ARG-MEN,","CAPEX","PV-FIX","","ARG-MEN","",726.01426568983027,"USD2021/kW"]
[null,"CAPEX,PV-FIX,,ARG-MIS,","CAPEX","PV-FIX","","ARG-MIS","",726.01426568983027,"USD2021/kW"]
[null,"CAPEX,PV-FIX,,ARG-NEG,","CAPEX","PV-FIX","","ARG-NEG","",726.01426568983027,"USD2021/kW"]
[null,"CAPEX,PV-FIX,,ARG-NEU,","CAPEX","PV-FIX","","ARG-NEU","",726.01426568983027,"USD2021/kW"]
[null,"CAPEX,PV-FIX,,ARG-PAM,","CAPEX","PV-FIX","","ARG-PAM","",726.01426568983027,"USD2021/kW"]
[null,"CAPEX,PV-FIX,,ARG-RIO,","CAPEX","PV-FIX","","ARG-RIO","",726.01426568983027,"USD2021/kW"]
[null,"CAPEX,PV-FIX,,ARG-SAF,","CAPEX","PV-FIX","","ARG-SAF","",726.01426568983027,"USD2021/kW"]
[null,"CAPEX,PV-FIX,,ARG-SAJ,","CAPEX","PV-FIX","","ARG-SAJ","",726.01426568983027,"USD2021/kW"]
[null,"CAPEX,PV-FIX,,ARG-SAL,","CAPEX","PV-FIX","","ARG-SAL","",726.01426568983027,"USD2021/kW"]
[null,"CAPEX,PV-FIX,,ARG-SAT,","CAPEX","PV-FIX","","ARG-SAT","",726.01426568983027,"USD2021/kW"]
[null,"CAPEX,PV-FIX,,ARG-TUC,","CAPEX","PV-FIX","","ARG-TUC","",726.01426568983027,"USD2021/kW"]
[null,"CAPEX,PV-FIX,,AUS,","CAPEX","PV-FIX","","AUS","",820.26320505860349,"USD2021/kW"]
[null,"CAPEX,PV-FIX,,BRA,","CAPEX","PV-FIX","","BRA","",710.7708474881747,"USD2021/kW"]
[null,"CAPEX,PV-FIX,,CHL,","CAPEX","PV-FIX","","CHL","",808.18000770363255,"USD2021/kW"]
[null,"CAPEX,PV-FIX,,CHN,","CAPEX","PV-FIX","","CHN","",470.31522012425313,"USD2021/kW"]
[null,"CAPEX,PV-FIX,,COL,","CAPEX","PV-FIX","","COL","",748.32170696054584,"USD2021/kW"]
[null,"CAPEX,PV-FIX,,CRI,","CAPEX","PV-FIX","","CRI","",748.32170696054584,"USD2021/kW"]
[null,"CAPEX,PV-FIX,,DNK,","CAPEX","PV-FIX","","DNK","",648.77475028997765,"USD2021/kW"]
[null,"CAPEX,PV-FIX,,DZA,","CAPEX","PV-FIX","","DZA","",748.32170696054584,"USD2021/kW"]
[null,"CAPEX,PV-FIX,,EGY,","CAPEX","PV-FIX","","EGY","",748.32170696054584,"USD2021/kW"]
[null,"CAPEX,PV-FIX,,ESP,","CAPEX","PV-FIX","","ESP","",705.10103949853442,"USD2021/kW"]
[null,"CAPEX,PV-FIX,,IDN,","CAPEX","PV-FIX","","IDN","",867.38767474299016,"USD2021/kW"]
[null,"CAPEX,PV-FIX,,IND,","CAPEX","PV-FIX","","IND","",486.11632435767666,"USD2021/kW"]
[null,"CAPEX,PV-FIX,,JOR,","CAPEX","PV-FIX","","JOR","",748.32170696054584,"USD2021/kW"]
[null,"CAPEX,PV-FIX,,KAZ,","CAPEX","PV-FIX","","KAZ","",748.32170696054584,"USD2021/kW"]
[null,"CAPEX,PV-FIX,,KEN,","CAPEX","PV-FIX","","KEN","",748.32170696054584,"USD2021/kW"]
[null,"CAPEX,PV-FIX,,MAR,","CAPEX","PV-FIX","","MAR","",748.32170696054584,"USD2021/kW"]
[null,"CAPEX,PV-FIX,,MAR-BEN,","CAPEX","PV-FIX","","MAR-BEN","",748.32170696054584,"USD2021/kW"]
[null,"CAPEX,PV-FIX,,MAR-CAS,","CAPEX","PV-FIX","","MAR-CAS","",748.32170696054584,"USD2021/kW"]
[null,"CAPEX,PV-FIX,,MAR-DAK,","CAPEX","PV-FIX","","MAR-DAK","",748.32170696054584,"USD2021/kW"]
[null,"CAPEX,PV-FIX,,MAR-DRA,","CAPEX","PV-FIX","","MAR-DRA","",748.32170696054584,"USD2021/kW"]
[null,"CAPEX,PV-FIX,,MAR-FES,","CAPEX","PV-FIX","","MAR-FES","",748.32170696054584,"USD2021/kW"]
[null,"CAPEX,PV-FIX,,MAR-GUE,","CAPEX","PV-FIX","","MAR-GUE","",748.32170696054584,"USD2021/kW"]
[null,"CAPEX,PV-FIX,,MAR-LAA,","CAPEX","PV-FIX","","MAR-LAA","",748.32170696054584,"USD2021/kW"]
[null,"CAPEX,PV-FIX,,MAR-LOR,","CAPEX","PV-FIX","","MAR-LOR","",748.32170696054584,"USD2021/kW"]
[null,"CAPEX,PV-FIX,,MAR-MAR,","CAPEX","PV-FIX","","MAR-MAR","",748.32170696054584,"USD2021/kW"]
[null,"CAPEX,PV-FIX,,MAR-RAB,","CAPEX","PV-FIX","","MAR-RAB","",748.32170696054584,"USD2021/kW"]
[null,"CAPEX,PV-FIX,,MAR-SOU,","CAPEX","PV-FIX","","MAR-SOU","",748.32170696054584,"USD2021/kW"]
[null,"CAPEX,PV-FIX,,MAR-TAN,","CAPEX","PV-FIX","","MAR-TAN","",748.32170696054584,"USD2021/kW"]
[null,"CAPEX,PV-FIX,,MEX,","CAPEX","PV-FIX","","MEX","",681.95706918016708,"USD2021/kW"]
[null,"CAPEX,PV-FIX,,MRT,","CAPEX","PV-FIX","","MRT","",748.32170696054584,"USD2021/kW"]
[null,"CAPEX,PV-FIX,,NAM,","CAPEX","PV-FIX","","NAM","",748.32170696054584,"USD2021/kW"]
[null,"CAPEX,PV-FIX,,NOR,","CAPEX","PV-FIX","","NOR","",689.52714068546084,"USD2021/kW"]
[null,"CAPEX,PV-FIX,,PER,","CAPEX","PV-FIX","","PER","",748.32170696054584,"USD2021/kW"]
[null,"CAPEX,PV-FIX,,PRT,","CAPEX","PV-FIX","","PRT","",756.68699743706418,"USD2021/kW"]
[null,"CAPEX,PV-FIX,,RUS,","CAPEX","PV-FIX","","RUS","",1342.350278465309,"USD2021/kW"]
[null,"CAPEX,PV-FIX,,SAU,","CAPEX","PV-FIX","","SAU","",776.11306087697903,"USD2021/kW"]
[null,"CAPEX,PV-FIX,,SWE,","CAPEX","PV-FIX","","SWE","",689.52714068546084,"USD2021/kW"]
[null,"CAPEX,PV-FIX,,THA,","CAPEX","PV-FIX","","THA","",825.65417003235973,"USD2021/kW"]
[null,"CAPEX,PV-FIX,,TUN,","CAPEX","PV-FIX","","TUN","",748.32170696054584,"USD2021/kW"]
[null,"CAPEX,PV-FIX,,UKR,","CAPEX","PV-FIX","","UKR","",689.52714068546084,"USD2021/kW"]
[null,"CAPEX,PV-FIX,,URY,","CAPEX","PV-FIX","","URY","",748.32170696054584,"USD2021/kW"]
[null,"CAPEX,PV-FIX,,USA,","CAPEX","PV-FIX","","USA","",893.97070892392617,"USD2021/kW"]
[null,"CAPEX,PV-FIX,,VNM,","CAPEX","PV-FIX","","VNM","",825.65417003235973,"USD2021/kW"]
[null,"CAPEX,PV-FIX,,ZAF,","CAPEX","PV-FIX","","ZAF","",748.32170696054584,"USD2021/kW"]
[null,"CAPEX,PV-FIX,,ZAF-EC,","CAPEX","PV-FIX","","ZAF-EC","",748.32170696054584,"USD2021/kW"]
[null,"CAPEX,PV-FIX,,ZAF-FRS,","CAPEX","PV-FIX","","ZAF-FRS","",748.32170696054584,"USD2021/kW"]
[null,"CAPEX,PV-FIX,,ZAF-GAU,","CAPEX","PV-FIX","","ZAF-GAU","",748.32170696054584,"USD2021/kW"]
[null,"CAPEX,PV-FIX,,ZAF-KWA,","CAPEX","PV-FIX","","ZAF-KWA","",748.32170696054584,"USD2021/kW"]
[null,"CAPEX,PV-FIX,,ZAF-LIM,","CAPEX","PV-FIX","","ZAF-LIM","",748.32170696054584,"USD2021/kW"]
[null,"CAPEX,PV-FIX,,ZAF-MPU,","CAPEX","PV-FIX","","ZAF-MPU","",748.32170696054584,"USD2021/kW"]
[null,"CAPEX,PV-FIX,,ZAF-NC,","CAPEX","PV-FIX","","ZAF-NC","",748.32170696054584,"USD2021/kW"]
[null,"CAPEX,PV-FIX,,ZAF-NW,","CAPEX","PV-FIX","","ZAF-NW","",748.32170696054584,"USD2021/kW"]
[null,"CAPEX,PV-FIX,,ZAF-WC,","CAPEX","PV-FIX","","ZAF-WC","",748.32170696054584,"USD2021/kW"]
[null,"CAPEX,REGASATR,,,","CAPEX","REGASATR","","","",1000.0341055522356,"USD2021/kW","combined values"]
[null,"CAPEX,RES-HYBR,,ARE,","CAPEX","RES-HYBR","","ARE","",1129.0342332707282,"USD2021/kW","calculated. PV:  WIND-ON: "]
[null,"CAPEX,RES-HYBR,,ARG,","CAPEX","RES-HYBR","","ARG","",1218.0417054231007,"USD2021/kW","calculated. PV:  WIND-ON: "]
[null,"CAPEX,RES-HYBR,,ARG-BA,","CAPEX","RES-HYBR","","ARG-BA","",1218.0417054231007,"USD2021/kW","calculated. PV:  WIND-ON: "]
[null,"CAPEX,RES-HYBR,,ARG-CAT,","CAPEX","RES-HYBR","","ARG-CAT","",1218.0417054231007,"USD2021/kW","calculated. PV:  WIND-ON: "]
[null,"CAPEX,RES-HYBR,,ARG-CBA,","CAPEX","RES-HYBR","","ARG-CBA","",1218.0417054231007,"USD2021/kW","calculated. PV:  WIND-ON: "]
[null,"CAPEX,RES-HYBR,,ARG-CHA,","CAPEX","RES-HYBR","","ARG-CHA","",1218.0417054231007,"USD2021/kW","calculated. PV:  WIND-ON: "]
[null,"CAPEX,RES-HYBR,,ARG-CHU,","CAPEX","RES-HYBR","","ARG-CHU","",1218.0417054231007,"USD2021/kW","calculated. PV:  WIND-ON: "]
[null,"CAPEX,RES-HYBR,,ARG-COR,","CAPEX","RES-HYBR","","ARG-COR","",1218.0417054231007,"USD2021/kW","calculated. PV:  WIND-ON: "]
[null,"CAPEX,RES-HYBR,,ARG-CRB,","CAPEX","RES-HYBR","","ARG-CRB","",1218.0417054231007,"USD2021/kW","calculated. PV:  WIND-ON: "]
[null,"CAPEX,RES-HYBR,,ARG-CRU,","CAPEX","RES-HYBR","","ARG-CRU","",1218.0417054231007,"USD2021/kW","calculated. PV:  WIND-ON: "]
[null,"CAPEX,RES-HYBR,,ARG-EST,","CAPEX","RES-HYBR","","ARG-EST","",1218.0417054231007,"USD2021/kW","calculated. PV:  WIND-ON: "]
[null,"CAPEX,RES-HYBR,,ARG-FOR,","CAPEX","RES-HYBR","","ARG-FOR","",1218.0417054231007,"USD2021/kW","calculated. PV:  WIND-ON: "]
[null,"CAPEX,RES-HYBR,,ARG-FUE,","CAPEX","RES-HYBR","","ARG-FUE","",1218.0417054231007,"USD2021/kW","calculated. PV:  WIND-ON: "]
[null,"CAPEX,RES-HYBR,,ARG-JUJ,","CAPEX","RES-HYBR","","ARG-JUJ","",1218.0417054231007,"USD2021/kW","calculated. PV:  WIND-ON: "]
[null,"CAPEX,RES-HYBR,,ARG-LAR,","CAPEX","RES-HYBR","","ARG-LAR","",1218.0417054231007,"USD2021/kW","calculated. PV:  WIND-ON: "]
[null,"CAPEX,RES-HYBR,,ARG-MEN,","CAPEX","RES-HYBR","","ARG-MEN","",1218.0417054231007,"USD2021/kW","calculated. PV:  WIND-ON: "]
[null,"CAPEX,RES-HYBR,,ARG-MIS,","CAPEX","RES-HYBR","","ARG-MIS","",1218.0417054231007,"USD2021/kW","calculated. PV:  WIND-ON: "]
[null,"CAPEX,RES-HYBR,,ARG-NEG,","CAPEX","RES-HYBR","","ARG-NEG","",1218.0417054231007,"USD2021/kW","calculated. PV:  WIND-ON: "]
[null,"CAPEX,RES-HYBR,,ARG-NEU,","CAPEX","RES-HYBR","","ARG-NEU","",1218.0417054231007,"USD2021/kW","calculated. PV:  WIND-ON: "]
[null,"CAPEX,RES-HYBR,,ARG-PAM,","CAPEX","RES-HYBR","","ARG-PAM","",1218.0417054231007,"USD2021/kW","calculated. PV:  WIND-ON: "]
[null,"CAPEX,RES-HYBR,,ARG-RIO,","CAPEX","RES-HYBR","","ARG-RIO","",1218.0417054231007,"USD2021/kW","calculated. PV:  WIND-ON: "]
[null,"CAPEX,RES-HYBR,,ARG-SAF,","CAPEX","RES-HYBR","","ARG-SAF","",1218.0417054231007,"USD2021/kW","calculated. PV:  WIND-ON: "]
[null,"CAPEX,RES-HYBR,,ARG-SAJ,","CAPEX","RES-HYBR","","ARG-SAJ","",1218.0417054231007,"USD2021/kW","calculated. PV:  WIND-ON: "]
[null,"CAPEX,RES-HYBR,,ARG-SAL,","CAPEX","RES-HYBR","","ARG-SAL","",1218.0417054231007,"USD2021/kW","calculated. PV:  WIND-ON: "]
[null,"CAPEX,RES-HYBR,,ARG-SAT,","CAPEX","RES-HYBR","","ARG-SAT","",1218.0417054231007,"USD2021/kW","calculated. PV:  WIND-ON: "]
[null,"CAPEX,RES-HYBR,,ARG-TUC,","CAPEX","RES-HYBR","","ARG-TUC","",1218.0417054231007,"USD2021/kW","calculated. PV:  WIND-ON: "]
[null,"CAPEX,RES-HYBR,,AUS,","CAPEX","RES-HYBR","","AUS","",1265.1661751074873,"USD2021/kW","calculated. PV:  WIND-ON: "]
[null,"CAPEX,RES-HYBR,,BRA,","CAPEX","RES-HYBR","","BRA","",917.26528572403788,"USD2021/kW","calculated. PV:  WIND-ON: "]
[null,"CAPEX,RES-HYBR,,CHL,","CAPEX","RES-HYBR","","CHL","",1259.124576430002,"USD2021/kW","calculated. PV:  WIND-ON: "]
[null,"CAPEX,RES-HYBR,,CHN,","CAPEX","RES-HYBR","","CHN","",800.45761033238978,"USD2021/kW","calculated. PV:  WIND-ON: "]
[null,"CAPEX,RES-HYBR,,COL,","CAPEX","RES-HYBR","","COL","",1186.6608534802729,"USD2021/kW","calculated. PV:  WIND-ON: "]
[null,"CAPEX,RES-HYBR,,CRI,","CAPEX","RES-HYBR","","CRI","",1147.6006982752831,"USD2021/kW","calculated. PV:  WIND-ON: "]
[null,"CAPEX,RES-HYBR,,DNK,","CAPEX","RES-HYBR","","DNK","",1117.3708673132146,"USD2021/kW","calculated. PV:  WIND-ON: "]
[null,"CAPEX,RES-HYBR,,DZA,","CAPEX","RES-HYBR","","DZA","",1298.5753742333741,"USD2021/kW","calculated. PV:  WIND-ON: "]
[null,"CAPEX,RES-HYBR,,EGY,","CAPEX","RES-HYBR","","EGY","",1107.0476299758607,"USD2021/kW","calculated. PV:  WIND-ON: "]
[null,"CAPEX,RES-HYBR,,ESP,","CAPEX","RES-HYBR","","ESP","",924.96002931080898,"USD2021/kW","calculated. PV:  WIND-ON: "]
[null,"CAPEX,RES-HYBR,,IDN,","CAPEX","RES-HYBR","","IDN","",1533.0240021148766,"USD2021/kW","calculated. PV:  WIND-ON: "]
[null,"CAPEX,RES-HYBR,,IND,","CAPEX","RES-HYBR","","IND","",695.49359886878108,"USD2021/kW","calculated. PV:  WIND-ON: "]
[null,"CAPEX,RES-HYBR,,JOR,","CAPEX","RES-HYBR","","JOR","",1298.5753742333741,"USD2021/kW","calculated. PV:  WIND-ON: "]
[null,"CAPEX,RES-HYBR,,KAZ,","CAPEX","RES-HYBR","","KAZ","",1107.0476299758607,"USD2021/kW","calculated. PV:  WIND-ON: "]
[null,"CAPEX,RES-HYBR,,KEN,","CAPEX","RES-HYBR","","KEN","",1298.5753742333741,"USD2021/kW","calculated. PV:  WIND-ON: "]
[null,"CAPEX,RES-HYBR,,MAR,","CAPEX","RES-HYBR","","MAR","",1229.1954260584585,"USD2021/kW","calculated. PV:  WIND-ON: "]
[null,"CAPEX,RES-HYBR,,MAR-BEN,","CAPEX","RES-HYBR","","MAR-BEN","",1229.1954260584585,"USD2021/kW","calculated. PV:  WIND-ON: "]
[null,"CAPEX,RES-HYBR,,MAR-CAS,","CAPEX","RES-HYBR","","MAR-CAS","",1229.1954260584585,"USD2021/kW","calculated. PV:  WIND-ON: "]
[null,"CAPEX,RES-HYBR,,MAR-DAK,","CAPEX","RES-HYBR","","MAR-DAK","",1229.1954260584585,"USD2021/kW","calculated. PV:  WIND-ON: "]
[null,"CAPEX,RES-HYBR,,MAR-DRA,","CAPEX","RES-HYBR","","MAR-DRA","",1229.1954260584585,"USD2021/kW","calculated. PV:  WIND-ON: "]
[null,"CAPEX,RES-HYBR,,MAR-FES,","CAPEX","RES-HYBR","","MAR-FES","",1229.1954260584585,"USD2021/kW","calculated. PV:  WIND-ON: "]
[null,"CAPEX,RES-HYBR,,MAR-GUE,","CAPEX","RES-HYBR","","MAR-GUE","",1229.1954260584585,"USD2021/kW","calculated. PV:  WIND-ON: "]
[null,"CAPEX,RES-HYBR,,MAR-LAA,","CAPEX","RES-HYBR","","MAR-LAA","",1229.1954260584585,"USD2021/kW","calculated. PV:  WIND-ON: "]
[null,"CAPEX,RES-HYBR,,MAR-LOR,","CAPEX","RES-HYBR","","MAR-LOR","",1229.1954260584585,"USD2021/kW","calculated. PV:  WIND-ON: "]
[null,"CAPEX,RES-HYBR,,MAR-MAR,","CAPEX","RES-HYBR","","MAR-MAR","",1229.1954260584585,"USD2021/kW","calculated. PV:  WIND-ON: "]
[null,"CAPEX,RES-HYBR,,MAR-RAB,","CAPEX","RES-HYBR","","MAR-RAB","",1229.1954260584585,"USD2021/kW","calculated. PV:  WIND-ON: "]
[null,"CAPEX,RES-HYBR,,MAR-SOU,","CAPEX","RES-HYBR","","MAR-SOU","",1229.1954260584585,"USD2021/kW","calculated. PV:  WIND-ON: "]
[null,"CAPEX,RES-HYBR,,MAR-TAN,","CAPEX","RES-HYBR","","MAR-TAN","",1229.1954260584585,"USD2021/kW","calculated. PV:  WIND-ON: "]
[null,"CAPEX,RES-HYBR,,MEX,","CAPEX","RES-HYBR","","MEX","",1059.9061510378335,"USD2021/kW","calculated. PV:  WIND-ON: "]
[null,"CAPEX,RES-HYBR,,MRT,","CAPEX","RES-HYBR","","MRT","",1298.5753742333741,"USD2021/kW","calculated. PV:  WIND-ON: "]
[null,"CAPEX,RES-HYBR,,NAM,","CAPEX","RES-HYBR","","NAM","",1298.5753742333741,"USD2021/kW","calculated. PV:  WIND-ON: "]
[null,"CAPEX,RES-HYBR,,NOR,","CAPEX","RES-HYBR","","NOR","",1077.650346838318,"USD2021/kW","calculated. PV:  WIND-ON: "]
[null,"CAPEX,RES-HYBR,,PER,","CAPEX","RES-HYBR","","PER","",984.89983389326267,"USD2021/kW","calculated. PV:  WIND-ON: "]
[null,"CAPEX,RES-HYBR,,PRT,","CAPEX","RES-HYBR","","PRT","",1233.3780712967177,"USD2021/kW","calculated. PV:  WIND-ON: "]
[null,"CAPEX,RES-HYBR,,RUS,","CAPEX","RES-HYBR","","RUS","",1404.0619157282422,"USD2021/kW","calculated. PV:  WIND-ON: "]
[null,"CAPEX,RES-HYBR,,SAU,","CAPEX","RES-HYBR","","SAU","",1142.9299102289447,"USD2021/kW","calculated. PV:  WIND-ON: "]
[null,"CAPEX,RES-HYBR,,SWE,","CAPEX","RES-HYBR","","SWE","",1137.7470625109563,"USD2021/kW","calculated. PV:  WIND-ON: "]
[null,"CAPEX,RES-HYBR,,THA,","CAPEX","RES-HYBR","","THA","",1167.7004648066352,"USD2021/kW","calculated. PV:  WIND-ON: "]
[null,"CAPEX,RES-HYBR,,TUN,","CAPEX","RES-HYBR","","TUN","",1298.5753742333741,"USD2021/kW","calculated. PV:  WIND-ON: "]
[null,"CAPEX,RES-HYBR,,UKR,","CAPEX","RES-HYBR","","UKR","",1077.650346838318,"USD2021/kW","calculated. PV:  WIND-ON: "]
[null,"CAPEX,RES-HYBR,,URY,","CAPEX","RES-HYBR","","URY","",1473.4910182236545,"USD2021/kW","calculated. PV:  WIND-ON: "]
[null,"CAPEX,RES-HYBR,,USA,","CAPEX","RES-HYBR","","USA","",1122.077935922249,"USD2021/kW","calculated. PV:  WIND-ON: "]
[null,"CAPEX,RES-HYBR,,VNM,","CAPEX","RES-HYBR","","VNM","",1512.1572497595614,"USD2021/kW","calculated. PV:  WIND-ON: "]
[null,"CAPEX,RES-HYBR,,ZAF,","CAPEX","RES-HYBR","","ZAF","",1229.1954260584585,"USD2021/kW","calculated. PV:  WIND-ON: "]
[null,"CAPEX,RES-HYBR,,ZAF-EC,","CAPEX","RES-HYBR","","ZAF-EC","",1229.1954260584585,"USD2021/kW","calculated. PV:  WIND-ON: "]
[null,"CAPEX,RES-HYBR,,ZAF-FRS,","CAPEX","RES-HYBR","","ZAF-FRS","",1229.1954260584585,"USD2021/kW","calculated. PV:  WIND-ON: "]
[null,"CAPEX,RES-HYBR,,ZAF-GAU,","CAPEX","RES-HYBR","","ZAF-GAU","",1229.1954260584585,"USD2021/kW","calculated. PV:  WIND-ON: "]
[null,"CAPEX,RES-HYBR,,ZAF-KWA,","CAPEX","RES-HYBR","","ZAF-KWA","",1229.1954260584585,"USD2021/kW","calculated. PV:  WIND-ON: "]
[null,"CAPEX,RES-HYBR,,ZAF-LIM,","CAPEX","RES-HYBR","","ZAF-LIM","",1229.1954260584585,"USD2021/kW","calculated. PV:  WIND-ON: "]
[null,"CAPEX,RES-HYBR,,ZAF-MPU,","CAPEX","RES-HYBR","","ZAF-MPU","",1229.1954260584585,"USD2021/kW","calculated. PV:  WIND-ON: "]
[null,"CAPEX,RES-HYBR,,ZAF-NC,","CAPEX","RES-HYBR","","ZAF-NC","",1229.1954260584585,"USD2021/kW","calculated. PV:  WIND-ON: "]
[null,"CAPEX,RES-HYBR,,ZAF-NW,","CAPEX","RES-HYBR","","ZAF-NW","",1229.1954260584585,"USD2021/kW","calculated. PV:  WIND-ON: "]
[null,"CAPEX,RES-HYBR,,ZAF-WC,","CAPEX","RES-HYBR","","ZAF-WC","",1229.1954260584585,"USD2021/kW","calculated. PV:  WIND-ON: "]
[null,"CAPEX,SOEC-EL,,,","CAPEX","SOEC-EL","","","",3415.002811225505,"USD2021/kW"]
[null,"CAPEX,WIND-OFF,,ARE,","CAPEX","WIND-OFF","","ARE","",3316.6422675294375,"USD2021/kW"]
[null,"CAPEX,WIND-OFF,,ARG,","CAPEX","WIND-OFF","","ARG","",3316.6422675294375,"USD2021/kW"]
[null,"CAPEX,WIND-OFF,,ARG-BA,","CAPEX","WIND-OFF","","ARG-BA","",3316.6422675294375,"USD2021/kW"]
[null,"CAPEX,WIND-OFF,,ARG-CAT,","CAPEX","WIND-OFF","","ARG-CAT","",3316.6422675294375,"USD2021/kW"]
[null,"CAPEX,WIND-OFF,,ARG-CBA,","CAPEX","WIND-OFF","","ARG-CBA","",3316.6422675294375,"USD2021/kW"]
[null,"CAPEX,WIND-OFF,,ARG-CHA,","CAPEX","WIND-OFF","","ARG-CHA","",3316.6422675294375,"USD2021/kW"]
[null,"CAPEX,WIND-OFF,,ARG-CHU,","CAPEX","WIND-OFF","","ARG-CHU","",3316.6422675294375,"USD2021/kW"]
[null,"CAPEX,WIND-OFF,,ARG-COR,","CAPEX","WIND-OFF","","ARG-COR","",3316.6422675294375,"USD2021/kW"]
[null,"CAPEX,WIND-OFF,,ARG-CRB,","CAPEX","WIND-OFF","","ARG-CRB","",3316.6422675294375,"USD2021/kW"]
[null,"CAPEX,WIND-OFF,,ARG-CRU,","CAPEX","WIND-OFF","","ARG-CRU","",3316.6422675294375,"USD2021/kW"]
[null,"CAPEX,WIND-OFF,,ARG-EST,","CAPEX","WIND-OFF","","ARG-EST","",3316.6422675294375,"USD2021/kW"]
[null,"CAPEX,WIND-OFF,,ARG-FOR,","CAPEX","WIND-OFF","","ARG-FOR","",3316.6422675294375,"USD2021/kW"]
[null,"CAPEX,WIND-OFF,,ARG-FUE,","CAPEX","WIND-OFF","","ARG-FUE","",3316.6422675294375,"USD2021/kW"]
[null,"CAPEX,WIND-OFF,,ARG-JUJ,","CAPEX","WIND-OFF","","ARG-JUJ","",3316.6422675294375,"USD2021/kW"]
[null,"CAPEX,WIND-OFF,,ARG-LAR,","CAPEX","WIND-OFF","","ARG-LAR","",3316.6422675294375,"USD2021/kW"]
[null,"CAPEX,WIND-OFF,,ARG-MEN,","CAPEX","WIND-OFF","","ARG-MEN","",3316.6422675294375,"USD2021/kW"]
[null,"CAPEX,WIND-OFF,,ARG-MIS,","CAPEX","WIND-OFF","","ARG-MIS","",3316.6422675294375,"USD2021/kW"]
[null,"CAPEX,WIND-OFF,,ARG-NEG,","CAPEX","WIND-OFF","","ARG-NEG","",3316.6422675294375,"USD2021/kW"]
[null,"CAPEX,WIND-OFF,,ARG-NEU,","CAPEX","WIND-OFF","","ARG-NEU","",3316.6422675294375,"USD2021/kW"]
[null,"CAPEX,WIND-OFF,,ARG-PAM,","CAPEX","WIND-OFF","","ARG-PAM","",3316.6422675294375,"USD2021/kW"]
[null,"CAPEX,WIND-OFF,,ARG-RIO,","CAPEX","WIND-OFF","","ARG-RIO","",3316.6422675294375,"USD2021/kW"]
[null,"CAPEX,WIND-OFF,,ARG-SAF,","CAPEX","WIND-OFF","","ARG-SAF","",3316.6422675294375,"USD2021/kW"]
[null,"CAPEX,WIND-OFF,,ARG-SAJ,","CAPEX","WIND-OFF","","ARG-SAJ","",3316.6422675294375,"USD2021/kW"]
[null,"CAPEX,WIND-OFF,,ARG-SAL,","CAPEX","WIND-OFF","","ARG-SAL","",3316.6422675294375,"USD2021/kW"]
[null,"CAPEX,WIND-OFF,,ARG-SAT,","CAPEX","WIND-OFF","","ARG-SAT","",3316.6422675294375,"USD2021/kW"]
[null,"CAPEX,WIND-OFF,,ARG-TUC,","CAPEX","WIND-OFF","","ARG-TUC","",3316.6422675294375,"USD2021/kW"]
[null,"CAPEX,WIND-OFF,,AUS,","CAPEX","WIND-OFF","","AUS","",3316.6422675294375,"USD2021/kW"]
[null,"CAPEX,WIND-OFF,,BRA,","CAPEX","WIND-OFF","","BRA","",3316.6422675294375,"USD2021/kW"]
[null,"CAPEX,WIND-OFF,,CHL,","CAPEX","WIND-OFF","","CHL","",3316.6422675294375,"USD2021/kW"]
[null,"CAPEX,WIND-OFF,,CHN,","CAPEX","WIND-OFF","","CHN","",2763.8685562745313,"USD2021/kW"]
[null,"CAPEX,WIND-OFF,,COL,","CAPEX","WIND-OFF","","COL","",3317,"USD2021/kW"]
[null,"CAPEX,WIND-OFF,,CRI,","CAPEX","WIND-OFF","","CRI","",3316.6422675294375,"USD2021/kW"]
[null,"CAPEX,WIND-OFF,,DNK,","CAPEX","WIND-OFF","","DNK","",2214.3840130599938,"USD2021/kW"]
[null,"CAPEX,WIND-OFF,,DZA,","CAPEX","WIND-OFF","","DZA","",3316.6422675294375,"USD2021/kW"]
[null,"CAPEX,WIND-OFF,,EGY,","CAPEX","WIND-OFF","","EGY","",3316.6422675294375,"USD2021/kW"]
[null,"CAPEX,WIND-OFF,,ESP,","CAPEX","WIND-OFF","","ESP","",3316.6422675294375,"USD2021/kW"]
[null,"CAPEX,WIND-OFF,,IDN,","CAPEX","WIND-OFF","","IDN","",3316.6422675294375,"USD2021/kW"]
[null,"CAPEX,WIND-OFF,,IND,","CAPEX","WIND-OFF","","IND","",3316.6422675294375,"USD2021/kW"]
[null,"CAPEX,WIND-OFF,,JOR,","CAPEX","WIND-OFF","","JOR","",3316.6422675294375,"USD2021/kW"]
[null,"CAPEX,WIND-OFF,,KAZ,","CAPEX","WIND-OFF","","KAZ","",3316.6422675294375,"USD2021/kW"]
[null,"CAPEX,WIND-OFF,,KEN,","CAPEX","WIND-OFF","","KEN","",3316.6422675294375,"USD2021/kW"]
[null,"CAPEX,WIND-OFF,,MAR,","CAPEX","WIND-OFF","","MAR","",3316.6422675294375,"USD2021/kW"]
[null,"CAPEX,WIND-OFF,,MAR-BEN,","CAPEX","WIND-OFF","","MAR-BEN","",3316.6422675294375,"USD2021/kW"]
[null,"CAPEX,WIND-OFF,,MAR-CAS,","CAPEX","WIND-OFF","","MAR-CAS","",3316.6422675294375,"USD2021/kW"]
[null,"CAPEX,WIND-OFF,,MAR-DAK,","CAPEX","WIND-OFF","","MAR-DAK","",3316.6422675294375,"USD2021/kW"]
[null,"CAPEX,WIND-OFF,,MAR-DRA,","CAPEX","WIND-OFF","","MAR-DRA","",3316.6422675294375,"USD2021/kW"]
[null,"CAPEX,WIND-OFF,,MAR-FES,","CAPEX","WIND-OFF","","MAR-FES","",3316.6422675294375,"USD2021/kW"]
[null,"CAPEX,WIND-OFF,,MAR-GUE,","CAPEX","WIND-OFF","","MAR-GUE","",3316.6422675294375,"USD2021/kW"]
[null,"CAPEX,WIND-OFF,,MAR-LAA,","CAPEX","WIND-OFF","","MAR-LAA","",3316.6422675294375,"USD2021/kW"]
[null,"CAPEX,WIND-OFF,,MAR-LOR,","CAPEX","WIND-OFF","","MAR-LOR","",3316.6422675294375,"USD2021/kW"]
[null,"CAPEX,WIND-OFF,,MAR-MAR,","CAPEX","WIND-OFF","","MAR-MAR","",3316.6422675294375,"USD2021/kW"]
[null,"CAPEX,WIND-OFF,,MAR-RAB,","CAPEX","WIND-OFF","","MAR-RAB","",3316.6422675294375,"USD2021/kW"]
[null,"CAPEX,WIND-OFF,,MAR-SOU,","CAPEX","WIND-OFF","","MAR-SOU","",3316.6422675294375,"USD2021/kW"]
[null,"CAPEX,WIND-OFF,,MAR-TAN,","CAPEX","WIND-OFF","","MAR-TAN","",3316.6422675294375,"USD2021/kW"]
[null,"CAPEX,WIND-OFF,,MEX,","CAPEX","WIND-OFF","","MEX","",3316.6422675294375,"USD2021/kW"]
[null,"CAPEX,WIND-OFF,,MRT,","CAPEX","WIND-OFF","","MRT","",3316.6422675294375,"USD2021/kW"]
[null,"CAPEX,WIND-OFF,,NAM,","CAPEX","WIND-OFF","","NAM","",3316.6422675294375,"USD2021/kW"]
[null,"CAPEX,WIND-OFF,,NOR,","CAPEX","WIND-OFF","","NOR","",3316.6422675294375,"USD2021/kW"]
[null,"CAPEX,WIND-OFF,,PER,","CAPEX","WIND-OFF","","PER","",3316.6422675294375,"USD2021/kW"]
[null,"CAPEX,WIND-OFF,,PRT,","CAPEX","WIND-OFF","","PRT","",3316.6422675294375,"USD2021/kW"]
[null,"CAPEX,WIND-OFF,,RUS,","CAPEX","WIND-OFF","","RUS","",3316.6422675294375,"USD2021/kW"]
[null,"CAPEX,WIND-OFF,,SAU,","CAPEX","WIND-OFF","","SAU","",3316.6422675294375,"USD2021/kW"]
[null,"CAPEX,WIND-OFF,,SWE,","CAPEX","WIND-OFF","","SWE","",3316.6422675294375,"USD2021/kW"]
[null,"CAPEX,WIND-OFF,,THA,","CAPEX","WIND-OFF","","THA","",3316.6422675294375,"USD2021/kW"]
[null,"CAPEX,WIND-OFF,,TUN,","CAPEX","WIND-OFF","","TUN","",3316.6422675294375,"USD2021/kW"]
[null,"CAPEX,WIND-OFF,,UKR,","CAPEX","WIND-OFF","","UKR","",3316.6422675294375,"USD2021/kW"]
[null,"CAPEX,WIND-OFF,,URY,","CAPEX","WIND-OFF","","URY","",3316.6422675294375,"USD2021/kW"]
[null,"CAPEX,WIND-OFF,,USA,","CAPEX","WIND-OFF","","USA","",3316.6422675294375,"USD2021/kW"]
[null,"CAPEX,WIND-OFF,,VNM,","CAPEX","WIND-OFF","","VNM","",3316.6422675294375,"USD2021/kW"]
[null,"CAPEX,WIND-OFF,,ZAF,","CAPEX","WIND-OFF","","ZAF","",3316.6422675294375,"USD2021/kW"]
[null,"CAPEX,WIND-OFF,,ZAF-EC,","CAPEX","WIND-OFF","","ZAF-EC","",3316.6422675294375,"USD2021/kW"]
[null,"CAPEX,WIND-OFF,,ZAF-FRS,","CAPEX","WIND-OFF","","ZAF-FRS","",3316.6422675294375,"USD2021/kW"]
[null,"CAPEX,WIND-OFF,,ZAF-GAU,","CAPEX","WIND-OFF","","ZAF-GAU","",3316.6422675294375,"USD2021/kW"]
[null,"CAPEX,WIND-OFF,,ZAF-KWA,","CAPEX","WIND-OFF","","ZAF-KWA","",3316.6422675294375,"USD2021/kW"]
[null,"CAPEX,WIND-OFF,,ZAF-LIM,","CAPEX","WIND-OFF","","ZAF-LIM","",3316.6422675294375,"USD2021/kW"]
[null,"CAPEX,WIND-OFF,,ZAF-MPU,","CAPEX","WIND-OFF","","ZAF-MPU","",3316.6422675294375,"USD2021/kW"]
[null,"CAPEX,WIND-OFF,,ZAF-NC,","CAPEX","WIND-OFF","","ZAF-NC","",3316.6422675294375,"USD2021/kW"]
[null,"CAPEX,WIND-OFF,,ZAF-NW,","CAPEX","WIND-OFF","","ZAF-NW","",3316.6422675294375,"USD2021/kW"]
[null,"CAPEX,WIND-OFF,,ZAF-WC,","CAPEX","WIND-OFF","","ZAF-WC","",3316.6422675294375,"USD2021/kW"]
[null,"CAPEX,WIND-ON,,ARE,","CAPEX","WIND-ON","","ARE","",1509.7467595809105,"USD2021/kW"]
[null,"CAPEX,WIND-ON,,ARG,","CAPEX","WIND-ON","","ARG","",1710.0691451563712,"USD2021/kW"]
[null,"CAPEX,WIND-ON,,ARG-BA,","CAPEX","WIND-ON","","ARG-BA","",1710.0691451563712,"USD2021/kW"]
[null,"CAPEX,WIND-ON,,ARG-CAT,","CAPEX","WIND-ON","","ARG-CAT","",1710.0691451563712,"USD2021/kW"]
[null,"CAPEX,WIND-ON,,ARG-CBA,","CAPEX","WIND-ON","","ARG-CBA","",1710.0691451563712,"USD2021/kW"]
[null,"CAPEX,WIND-ON,,ARG-CHA,","CAPEX","WIND-ON","","ARG-CHA","",1710.0691451563712,"USD2021/kW"]
[null,"CAPEX,WIND-ON,,ARG-CHU,","CAPEX","WIND-ON","","ARG-CHU","",1710.0691451563712,"USD2021/kW"]
[null,"CAPEX,WIND-ON,,ARG-COR,","CAPEX","WIND-ON","","ARG-COR","",1710.0691451563712,"USD2021/kW"]
[null,"CAPEX,WIND-ON,,ARG-CRB,","CAPEX","WIND-ON","","ARG-CRB","",1710.0691451563712,"USD2021/kW"]
[null,"CAPEX,WIND-ON,,ARG-CRU,","CAPEX","WIND-ON","","ARG-CRU","",1710.0691451563712,"USD2021/kW"]
[null,"CAPEX,WIND-ON,,ARG-EST,","CAPEX","WIND-ON","","ARG-EST","",1710.0691451563712,"USD2021/kW"]
[null,"CAPEX,WIND-ON,,ARG-FOR,","CAPEX","WIND-ON","","ARG-FOR","",1710.0691451563712,"USD2021/kW"]
[null,"CAPEX,WIND-ON,,ARG-FUE,","CAPEX","WIND-ON","","ARG-FUE","",1710.0691451563712,"USD2021/kW"]
[null,"CAPEX,WIND-ON,,ARG-JUJ,","CAPEX","WIND-ON","","ARG-JUJ","",1710.0691451563712,"USD2021/kW"]
[null,"CAPEX,WIND-ON,,ARG-LAR,","CAPEX","WIND-ON","","ARG-LAR","",1710.0691451563712,"USD2021/kW"]
[null,"CAPEX,WIND-ON,,ARG-MEN,","CAPEX","WIND-ON","","ARG-MEN","",1710.0691451563712,"USD2021/kW"]
[null,"CAPEX,WIND-ON,,ARG-MIS,","CAPEX","WIND-ON","","ARG-MIS","",1710.0691451563712,"USD2021/kW"]
[null,"CAPEX,WIND-ON,,ARG-NEG,","CAPEX","WIND-ON","","ARG-NEG","",1710.0691451563712,"USD2021/kW"]
[null,"CAPEX,WIND-ON,,ARG-NEU,","CAPEX","WIND-ON","","ARG-NEU","",1710.0691451563712,"USD2021/kW"]
[null,"CAPEX,WIND-ON,,ARG-PAM,","CAPEX","WIND-ON","","ARG-PAM","",1710.0691451563712,"USD2021/kW"]
[null,"CAPEX,WIND-ON,,ARG-RIO,","CAPEX","WIND-ON","","ARG-RIO","",1710.0691451563712,"USD2021/kW"]
[null,"CAPEX,WIND-ON,,ARG-SAF,","CAPEX","WIND-ON","","ARG-SAF","",1710.0691451563712,"USD2021/kW"]
[null,"CAPEX,WIND-ON,,ARG-SAJ,","CAPEX","WIND-ON","","ARG-SAJ","",1710.0691451563712,"USD2021/kW"]
[null,"CAPEX,WIND-ON,,ARG-SAL,","CAPEX","WIND-ON","","ARG-SAL","",1710.0691451563712,"USD2021/kW"]
[null,"CAPEX,WIND-ON,,ARG-SAT,","CAPEX","WIND-ON","","ARG-SAT","",1710.0691451563712,"USD2021/kW"]
[null,"CAPEX,WIND-ON,,ARG-TUC,","CAPEX","WIND-ON","","ARG-TUC","",1710.0691451563712,"USD2021/kW"]
[null,"CAPEX,WIND-ON,,AUS,","CAPEX","WIND-ON","","AUS","",1710.0691451563712,"USD2021/kW"]
[null,"CAPEX,WIND-ON,,BRA,","CAPEX","WIND-ON","","BRA","",1123.7597239599011,"USD2021/kW"]
[null,"CAPEX,WIND-ON,,CHL,","CAPEX","WIND-ON","","CHL","",1710.0691451563712,"USD2021/kW"]
[null,"CAPEX,WIND-ON,,CHN,","CAPEX","WIND-ON","","CHN","",1130.6000005405265,"USD2021/kW"]
[null,"CAPEX,WIND-ON,,COL,","CAPEX","WIND-ON","","COL","",1625,"USD2021/kW"]
[null,"CAPEX,WIND-ON,,CRI,","CAPEX","WIND-ON","","CRI","",1546.8796895900205,"USD2021/kW"]
[null,"CAPEX,WIND-ON,,DNK,","CAPEX","WIND-ON","","DNK","",1585.9669843364518,"USD2021/kW"]
[null,"CAPEX,WIND-ON,,DZA,","CAPEX","WIND-ON","","DZA","",1848.8290415062024,"USD2021/kW"]
[null,"CAPEX,WIND-ON,,EGY,","CAPEX","WIND-ON","","EGY","",1465.7735529911754,"USD2021/kW"]
[null,"CAPEX,WIND-ON,,ESP,","CAPEX","WIND-ON","","ESP","",1144.8190191230835,"USD2021/kW"]
[null,"CAPEX,WIND-ON,,IDN,","CAPEX","WIND-ON","","IDN","",2198.6603294867632,"USD2021/kW"]
[null,"CAPEX,WIND-ON,,IND,","CAPEX","WIND-ON","","IND","",904.87087337988555,"USD2021/kW"]
[null,"CAPEX,WIND-ON,,JOR,","CAPEX","WIND-ON","","JOR","",1848.8290415062024,"USD2021/kW"]
[null,"CAPEX,WIND-ON,,KAZ,","CAPEX","WIND-ON","","KAZ","",1465.7735529911754,"USD2021/kW"]
[null,"CAPEX,WIND-ON,,KEN,","CAPEX","WIND-ON","","KEN","",1848.8290415062024,"USD2021/kW"]
[null,"CAPEX,WIND-ON,,MAR,","CAPEX","WIND-ON","","MAR","",1710.0691451563712,"USD2021/kW"]
[null,"CAPEX,WIND-ON,,MAR-BEN,","CAPEX","WIND-ON","","MAR-BEN","",1710.0691451563712,"USD2021/kW"]
[null,"CAPEX,WIND-ON,,MAR-CAS,","CAPEX","WIND-ON","","MAR-CAS","",1710.0691451563712,"USD2021/kW"]
[null,"CAPEX,WIND-ON,,MAR-DAK,","CAPEX","WIND-ON","","MAR-DAK","",1710.0691451563712,"USD2021/kW"]
[null,"CAPEX,WIND-ON,,MAR-DRA,","CAPEX","WIND-ON","","MAR-DRA","",1710.0691451563712,"USD2021/kW"]
[null,"CAPEX,WIND-ON,,MAR-FES,","CAPEX","WIND-ON","","MAR-FES","",1710.0691451563712,"USD2021/kW"]
[null,"CAPEX,WIND-ON,,MAR-GUE,","CAPEX","WIND-ON","","MAR-GUE","",1710.0691451563712,"USD2021/kW"]
[null,"CAPEX,WIND-ON,,MAR-LAA,","CAPEX","WIND-ON","","MAR-LAA","",1710.0691451563712,"USD2021/kW"]
[null,"CAPEX,WIND-ON,,MAR-LOR,","CAPEX","WIND-ON","","MAR-LOR","",1710.0691451563712,"USD2021/kW"]
[null,"CAPEX,WIND-ON,,MAR-MAR,","CAPEX","WIND-ON","","MAR-MAR","",1710.0691451563712,"USD2021/kW"]
[null,"CAPEX,WIND-ON,,MAR-RAB,","CAPEX","WIND-ON","","MAR-RAB","",1710.0691451563712,"USD2021/kW"]
[null,"CAPEX,WIND-ON,,MAR-SOU,","CAPEX","WIND-ON","","MAR-SOU","",1710.0691451563712,"USD2021/kW"]
[null,"CAPEX,WIND-ON,,MAR-TAN,","CAPEX","WIND-ON","","MAR-TAN","",1710.0691451563712,"USD2021/kW"]
[null,"CAPEX,WIND-ON,,MEX,","CAPEX","WIND-ON","","MEX","",1437.8552328955,"USD2021/kW"]
[null,"CAPEX,WIND-ON,,MRT,","CAPEX","WIND-ON","","MRT","",1848.8290415062024,"USD2021/kW"]
[null,"CAPEX,WIND-ON,,NAM,","CAPEX","WIND-ON","","NAM","",1848.8290415062024,"USD2021/kW"]
[null,"CAPEX,WIND-ON,,NOR,","CAPEX","WIND-ON","","NOR","",1465.7735529911754,"USD2021/kW"]
[null,"CAPEX,WIND-ON,,PER,","CAPEX","WIND-ON","","PER","",1221.4779608259794,"USD2021/kW"]
[null,"CAPEX,WIND-ON,,PRT,","CAPEX","WIND-ON","","PRT","",1710.0691451563712,"USD2021/kW"]
[null,"CAPEX,WIND-ON,,RUS,","CAPEX","WIND-ON","","RUS","",1465.7735529911754,"USD2021/kW"]
[null,"CAPEX,WIND-ON,,SAU,","CAPEX","WIND-ON","","SAU","",1509.7467595809105,"USD2021/kW"]
[null,"CAPEX,WIND-ON,,SWE,","CAPEX","WIND-ON","","SWE","",1585.9669843364518,"USD2021/kW"]
[null,"CAPEX,WIND-ON,,THA,","CAPEX","WIND-ON","","THA","",1509.7467595809105,"USD2021/kW"]
[null,"CAPEX,WIND-ON,,TUN,","CAPEX","WIND-ON","","TUN","",1848.8290415062024,"USD2021/kW"]
[null,"CAPEX,WIND-ON,,UKR,","CAPEX","WIND-ON","","UKR","",1465.7735529911754,"USD2021/kW"]
[null,"CAPEX,WIND-ON,,URY,","CAPEX","WIND-ON","","URY","",2198.6603294867632,"USD2021/kW"]
[null,"CAPEX,WIND-ON,,USA,","CAPEX","WIND-ON","","USA","",1350.1851629205719,"USD2021/kW"]
[null,"CAPEX,WIND-ON,,VNM,","CAPEX","WIND-ON","","VNM","",2198.6603294867632,"USD2021/kW"]
[null,"CAPEX,WIND-ON,,ZAF,","CAPEX","WIND-ON","","ZAF","",1710.0691451563712,"USD2021/kW"]
[null,"CAPEX,WIND-ON,,ZAF-EC,","CAPEX","WIND-ON","","ZAF-EC","",1710.0691451563712,"USD2021/kW"]
[null,"CAPEX,WIND-ON,,ZAF-FRS,","CAPEX","WIND-ON","","ZAF-FRS","",1710.0691451563712,"USD2021/kW"]
[null,"CAPEX,WIND-ON,,ZAF-GAU,","CAPEX","WIND-ON","","ZAF-GAU","",1710.0691451563712,"USD2021/kW"]
[null,"CAPEX,WIND-ON,,ZAF-KWA,","CAPEX","WIND-ON","","ZAF-KWA","",1710.0691451563712,"USD2021/kW"]
[null,"CAPEX,WIND-ON,,ZAF-LIM,","CAPEX","WIND-ON","","ZAF-LIM","",1710.0691451563712,"USD2021/kW"]
[null,"CAPEX,WIND-ON,,ZAF-MPU,","CAPEX","WIND-ON","","ZAF-MPU","",1710.0691451563712,"USD2021/kW"]
[null,"CAPEX,WIND-ON,,ZAF-NC,","CAPEX","WIND-ON","","ZAF-NC","",1710.0691451563712,"USD2021/kW"]
[null,"CAPEX,WIND-ON,,ZAF-NW,","CAPEX","WIND-ON","","ZAF-NW","",1710.0691451563712,"USD2021/kW"]
[null,"CAPEX,WIND-ON,,ZAF-WC,","CAPEX","WIND-ON","","ZAF-WC","",1710.0691451563712,"USD2021/kW"]
[null,"CAP-T,,,DNK,DEU","CAP-T","","","DNK","DEU",1,"kWh/a"]
[null,"CAP-T,,,DZA,ESP","CAP-T","","","DZA","ESP",1,"kWh/a"]
[null,"CAP-T,,,ESP,FRA","CAP-T","","","ESP","FRA",1,"kWh/a"]
[null,"CAP-T,,,KAZ,CHN","CAP-T","","","KAZ","CHN",1,"kWh/a"]
[null,"CAP-T,,,MAR,ESP","CAP-T","","","MAR","ESP",1,"kWh/a"]
[null,"CAP-T,,,MAR-BEN,ESP","CAP-T","","","MAR-BEN","ESP",1,"kWh/a"]
[null,"CAP-T,,,MAR-CAS,ESP","CAP-T","","","MAR-CAS","ESP",1,"kWh/a"]
[null,"CAP-T,,,MAR-DAK,ESP","CAP-T","","","MAR-DAK","ESP",1,"kWh/a"]
[null,"CAP-T,,,MAR-DRA,ESP","CAP-T","","","MAR-DRA","ESP",1,"kWh/a"]
[null,"CAP-T,,,MAR-FES,ESP","CAP-T","","","MAR-FES","ESP",1,"kWh/a"]
[null,"CAP-T,,,MAR-GUE,ESP","CAP-T","","","MAR-GUE","ESP",1,"kWh/a"]
[null,"CAP-T,,,MAR-LAA,ESP","CAP-T","","","MAR-LAA","ESP",1,"kWh/a"]
[null,"CAP-T,,,MAR-LOR,ESP","CAP-T","","","MAR-LOR","ESP",1,"kWh/a"]
[null,"CAP-T,,,MAR-MAR,ESP","CAP-T","","","MAR-MAR","ESP",1,"kWh/a"]
[null,"CAP-T,,,MAR-RAB,ESP","CAP-T","","","MAR-RAB","ESP",1,"kWh/a"]
[null,"CAP-T,,,MAR-SOU,ESP","CAP-T","","","MAR-SOU","ESP",1,"kWh/a"]
[null,"CAP-T,,,MAR-TAN,ESP","CAP-T","","","MAR-TAN","ESP",1,"kWh/a"]
[null,"CAP-T,,,MEX,USA","CAP-T","","","MEX","USA",1,"kWh/a"]
[null,"CAP-T,,,NOR,DEU","CAP-T","","","NOR","DEU",1,"kWh/a"]
[null,"CAP-T,,,PRT,ESP","CAP-T","","","PRT","ESP",1,"kWh/a"]
[null,"CAP-T,,,RUS,CHN","CAP-T","","","RUS","CHN",1,"kWh/a"]
[null,"CAP-T,,,RUS,DEU","CAP-T","","","RUS","DEU",1,"kWh/a"]
[null,"CONV,AEL-EL,H2O-L,,","CONV","AEL-EL","H2O-L","","",0.3,"kg H2O (l)/H2-G"]
[null,"CONV,ATR,EL,,","CONV","ATR","EL","","",0.10771077107710771,"kWh (el.)/H2-G","Oni et al. 2022"]
[null,"CONV,CH3OH-SB,BFUEL-L,,","CONV","CH3OH-SB","BFUEL-L","","",3.0509883673175369E-6,"kwh bunker fuel (l)/(km*CH3OH-L)","calc_shipping"]
[null,"CONV,CH3OHSYN,CO2-G,,","CONV","CH3OHSYN","CO2-G","","",0.26448241206030154,"kg CO2 (g)/kWh CH3OH (l)","Frotier Economics 2021"]
[null,"CONV,CH3OHSYN,EL,,","CONV","CH3OHSYN","EL","","",3.9989420788151285E-2,"kWh (el.)/kWh CH3OH (l)","Fasihi & Breyer 2018"]
[null,"CONV,CH4-COMP,EL,,","CONV","CH4-COMP","EL","","",0.04,"kWh (el.)/CH4-G","DNV GL 2020"]
[null,"CONV,CH4-LIQ,EL,,","CONV","CH4-LIQ","EL","","",0.15789473684210525,"kWh (el.)/CH4-L","Pospíšil et al. 2019"]
[null,"CONV,CH4-SB,BFUEL-L,,","CONV","CH4-SB","BFUEL-L","","",3.3002590965851548E-6,"kwh bunker fuel (l)/(km*CH4-L)","calc_shipping"]
[null,"CONV,CH4SYN,CO2-G,,","CONV","CH4SYN","CO2-G","","",0.20196,"kg CO2 (g)/kWh CH4 (g)"]
[null,"CONV,CH4SYN,H2O-L,,","CONV","CH4SYN","H2O-L","","",-0.14263322884012539,"kg H2O (l)/kWh CH4 (g)","Fasihi & Breyer 2018"]
[null,"CONV,CH4SYN,HEAT,,","CONV","CH4SYN","HEAT","","",-0.18495297805642633,"kWh (heat)/kWh CH4 (g)","Fasihi & Breyer 2018"]
[null,"CONV,DAC,EL,,","CONV","DAC","EL","","",0.7,"kWh (el.)/kg CO2 (g)","Kreidelmeyer et al. 2020"]
[null,"CONV,DAC,H2O-L,,","CONV","DAC","H2O-L","","",-1.4,"kg H2O (l)/kg CO2 (g)","Fasihi et al. 2019"]
[null,"CONV,DAC,HEAT,,","CONV","DAC","HEAT","","",2.2000000000000002,"kWh (heat)/kg CO2 (g)","Kreidelmeyer et al. 2020"]
[null,"CONV,DESAL,EL,,","CONV","DESAL","EL","","",3.0000000000000001E-3,"kWh (el.)/kg H2O (l)"]
[null,"CONV,DRI,EL,,","CONV","DRI","EL","","",0.10829670329670329,"kWh (el.)/kg DRI (s)","Agora Industry Transformation 2021"]
[null,"CONV,EFUELSYN,CO2-G,,","CONV","EFUELSYN","CO2-G","","",0.26455813953488377,"kg CO2 (g)/kwh CHx (l)","Frontier Economics 2021"]
[null,"CONV,EFUELSYN,EL,,","CONV","EFUELSYN","EL","","",8.5778781038374718E-2,"kWh (el.)/kwh CHx (l)","Fasihi & Breyer 2018"]
[null,"CONV,EFUELSYN,H2O-L,,","CONV","EFUELSYN","H2O-L","","",-0.24830699774266365,"kg H2O (l)/kwh CHx (l)","Fasihi & Breyer 2018"]
[null,"CONV,EFUELSYN,HEAT,,","CONV","EFUELSYN","HEAT","","",-0.40397350993377484,"kWh (heat)/kwh CHx (l)","Fasihi & Breyer 2018"]
[null,"CONV,H2-COMP,EL,,","CONV","H2-COMP","EL","","",0.04,"kWh (el.)/H2-G","DNV GL 2020"]
[null,"CONV,H2-LIQ,EL,,","CONV","H2-LIQ","EL","","",0.39013004334778256,"kWh (el.)/H2-L","DNV GL 2020"]
[null,"CONV,H2-SB,BFUEL-L,,","CONV","H2-SB","BFUEL-L","","",7.9560265731287527E-6,"kwh bunker fuel (l)/(km*H2-L)","calc_shipping"]
[null,"CONV,LOHC-CON,EL,,","CONV","LOHC-CON","EL","","",0.02,"kWh (el.)/LOHC-L","DNV GL 2020"]
[null,"CONV,LOHC-REC,EL,,","CONV","LOHC-REC","EL","","",2.8502850285028507E-2,"kWh (el.)/H2-G","Staiß et al. 2022 nach Wasserscheid"]
[null,"CONV,LOHC-REC,HEAT,,","CONV","LOHC-REC","HEAT","","",0.4534534534534535,"kWh (heat)/H2-G","DNV GL 2020"]
[null,"CONV,LOHC-SB,BFUEL-L,,","CONV","LOHC-SB","BFUEL-L","","",9.9204160904178207E-6,"kwh bunker fuel (l)/(km*LOHC-L)","calc_shipping"]
[null,"CONV,NH3-REC,EL,,","CONV","NH3-REC","EL","","",1.3923999999999999E-2,"kWh (el.)/H2-G","NGN; Equinor 2018"]
[null,"CONV,NH3-SB,BFUEL-L,,","CONV","NH3-SB","BFUEL-L","","",5.3436561034163411E-6,"kwh bunker fuel (l)/(km*NH3-L)","calc_shipping"]
[null,"CONV,NH3SYN,EL,,","CONV","NH3SYN","EL","","",0.14192307692307693,"kWh (el.)/kWh NH3 (l)","Fasihi et al. 2021"]
[null,"CONV,NH3SYN,N2-G,,","CONV","NH3SYN","N2-G","","",0.15980769230769232,"kg N2 (g)/kWh NH3 (l)","Fasihi et al. 2021"]
[null,"CONV,PEM-EL,H2O-L,,","CONV","PEM-EL","H2O-L","","",0.3,"kg H2O (l)/H2-G"]
[null,"CONV,REGASATR,EL,,","CONV","REGASATR","EL","","",0.10771077107710771,"kWh (el.)/H2-G","combined values"]
[null,"CONV,SOEC-EL,H2O-L,,","CONV","SOEC-EL","H2O-L","","",0.3,"kg H2O (l)/H2-G"]
[null,"CONV,SYN-S,CHX-L,,","CONV","SYN-S","CHX-L","","",1.2641936395012889E-6,"kwh CHx (l)/(km*CHX-L)","calc_shipping"]
[null,"CONV,SYN-SB,BFUEL-L,,","CONV","SYN-SB","BFUEL-L","","",1.2641936395012889E-6,"kwh bunker fuel (l)/(km*CHX-L)","calc_shipping"]
[null,"DST-S-D,,,ARE,CHN","DST-S-D","","","ARE","CHN",10367.799999999999,null,"CERDI"]
[null,"DST-S-D,,,ARE,DEU","DST-S-D","","","ARE","DEU",12441.9,null,"CERDI"]
[null,"DST-S-D,,,ARE,ESP","DST-S-D","","","ARE","ESP",8992.74,null,"CERDI"]
[null,"DST-S-D,,,ARE,FRA","DST-S-D","","","ARE","FRA",7580.97,null,"CERDI"]
[null,"DST-S-D,,,ARE,IND","DST-S-D","","","ARE","IND",1804.27,null,"CERDI"]
[null,"DST-S-D,,,ARE,JPN","DST-S-D","","","ARE","JPN",11276.3,null,"CERDI"]
[null,"DST-S-D,,,ARE,KOR","DST-S-D","","","ARE","KOR",10955.6,null,"CERDI"]
[null,"DST-S-D,,,ARE,NLD","DST-S-D","","","ARE","NLD",11975.9,null,"CERDI"]
[null,"DST-S-D,,,ARE,USA","DST-S-D","","","ARE","USA",18373.3,null,"CERDI"]
[null,"DST-S-D,,,ARG,CHN","DST-S-D","","","ARG","CHN",19486.8,null,"CERDI"]
[null,"DST-S-D,,,ARG,DEU","DST-S-D","","","ARG","DEU",12728.796,null,"SEA-DISTANCES.ORG"]
[null,"DST-S-D,,,ARG,ESP","DST-S-D","","","ARG","ESP",11766,null,"CERDI"]
[null,"DST-S-D,,,ARG,FRA","DST-S-D","","","ARG","FRA",13195.9,null,"CERDI"]
[null,"DST-S-D,,,ARG,IND","DST-S-D","","","ARG","IND",16155.2,null,"CERDI"]
[null,"DST-S-D,,,ARG,JPN","DST-S-D","","","ARG","JPN",18848.2,null,"CERDI"]
[null,"DST-S-D,,,ARG,KOR","DST-S-D","","","ARG","KOR",19350,null,"CERDI"]
[null,"DST-S-D,,,ARG,NLD","DST-S-D","","","ARG","NLD",13750.5,null,"CERDI"]
[null,"DST-S-D,,,ARG,USA","DST-S-D","","","ARG","USA",12589.7,null,"CERDI"]
[null,"DST-S-D,,,ARG-BA,CHN","DST-S-D","","","ARG-BA","CHN",19486.8,null,"CERDI"]
[null,"DST-S-D,,,ARG-BA,DEU","DST-S-D","","","ARG-BA","DEU",12728.796,null,"SEA-DISTANCES.ORG"]
[null,"DST-S-D,,,ARG-BA,ESP","DST-S-D","","","ARG-BA","ESP",11766,null,"CERDI"]
[null,"DST-S-D,,,ARG-BA,FRA","DST-S-D","","","ARG-BA","FRA",13195.9,null,"CERDI"]
[null,"DST-S-D,,,ARG-BA,IND","DST-S-D","","","ARG-BA","IND",16155.2,null,"CERDI"]
[null,"DST-S-D,,,ARG-BA,JPN","DST-S-D","","","ARG-BA","JPN",18848.2,null,"CERDI"]
[null,"DST-S-D,,,ARG-BA,KOR","DST-S-D","","","ARG-BA","KOR",19350,null,"CERDI"]
[null,"DST-S-D,,,ARG-BA,NLD","DST-S-D","","","ARG-BA","NLD",13750.5,null,"CERDI"]
[null,"DST-S-D,,,ARG-BA,USA","DST-S-D","","","ARG-BA","USA",12589.7,null,"CERDI"]
[null,"DST-S-D,,,ARG-CAT,CHN","DST-S-D","","","ARG-CAT","CHN",19486.8,null,"CERDI"]
[null,"DST-S-D,,,ARG-CAT,DEU","DST-S-D","","","ARG-CAT","DEU",12728.796,null,"SEA-DISTANCES.ORG"]
[null,"DST-S-D,,,ARG-CAT,ESP","DST-S-D","","","ARG-CAT","ESP",11766,null,"CERDI"]
[null,"DST-S-D,,,ARG-CAT,FRA","DST-S-D","","","ARG-CAT","FRA",13195.9,null,"CERDI"]
[null,"DST-S-D,,,ARG-CAT,IND","DST-S-D","","","ARG-CAT","IND",16155.2,null,"CERDI"]
[null,"DST-S-D,,,ARG-CAT,JPN","DST-S-D","","","ARG-CAT","JPN",18848.2,null,"CERDI"]
[null,"DST-S-D,,,ARG-CAT,KOR","DST-S-D","","","ARG-CAT","KOR",19350,null,"CERDI"]
[null,"DST-S-D,,,ARG-CAT,NLD","DST-S-D","","","ARG-CAT","NLD",13750.5,null,"CERDI"]
[null,"DST-S-D,,,ARG-CAT,USA","DST-S-D","","","ARG-CAT","USA",12589.7,null,"CERDI"]
[null,"DST-S-D,,,ARG-CBA,CHN","DST-S-D","","","ARG-CBA","CHN",19486.8,null,"CERDI"]
[null,"DST-S-D,,,ARG-CBA,DEU","DST-S-D","","","ARG-CBA","DEU",12728.796,null,"SEA-DISTANCES.ORG"]
[null,"DST-S-D,,,ARG-CBA,ESP","DST-S-D","","","ARG-CBA","ESP",11766,null,"CERDI"]
[null,"DST-S-D,,,ARG-CBA,FRA","DST-S-D","","","ARG-CBA","FRA",13195.9,null,"CERDI"]
[null,"DST-S-D,,,ARG-CBA,IND","DST-S-D","","","ARG-CBA","IND",16155.2,null,"CERDI"]
[null,"DST-S-D,,,ARG-CBA,JPN","DST-S-D","","","ARG-CBA","JPN",18848.2,null,"CERDI"]
[null,"DST-S-D,,,ARG-CBA,KOR","DST-S-D","","","ARG-CBA","KOR",19350,null,"CERDI"]
[null,"DST-S-D,,,ARG-CBA,NLD","DST-S-D","","","ARG-CBA","NLD",13750.5,null,"CERDI"]
[null,"DST-S-D,,,ARG-CBA,USA","DST-S-D","","","ARG-CBA","USA",12589.7,null,"CERDI"]
[null,"DST-S-D,,,ARG-CHA,CHN","DST-S-D","","","ARG-CHA","CHN",19486.8,null,"CERDI"]
[null,"DST-S-D,,,ARG-CHA,DEU","DST-S-D","","","ARG-CHA","DEU",12728.796,null,"SEA-DISTANCES.ORG"]
[null,"DST-S-D,,,ARG-CHA,ESP","DST-S-D","","","ARG-CHA","ESP",11766,null,"CERDI"]
[null,"DST-S-D,,,ARG-CHA,FRA","DST-S-D","","","ARG-CHA","FRA",13195.9,null,"CERDI"]
[null,"DST-S-D,,,ARG-CHA,IND","DST-S-D","","","ARG-CHA","IND",16155.2,null,"CERDI"]
[null,"DST-S-D,,,ARG-CHA,JPN","DST-S-D","","","ARG-CHA","JPN",18848.2,null,"CERDI"]
[null,"DST-S-D,,,ARG-CHA,KOR","DST-S-D","","","ARG-CHA","KOR",19350,null,"CERDI"]
[null,"DST-S-D,,,ARG-CHA,NLD","DST-S-D","","","ARG-CHA","NLD",13750.5,null,"CERDI"]
[null,"DST-S-D,,,ARG-CHA,USA","DST-S-D","","","ARG-CHA","USA",12589.7,null,"CERDI"]
[null,"DST-S-D,,,ARG-CHU,CHN","DST-S-D","","","ARG-CHU","CHN",19486.8,null,"CERDI"]
[null,"DST-S-D,,,ARG-CHU,DEU","DST-S-D","","","ARG-CHU","DEU",12728.796,null,"SEA-DISTANCES.ORG"]
[null,"DST-S-D,,,ARG-CHU,ESP","DST-S-D","","","ARG-CHU","ESP",11766,null,"CERDI"]
[null,"DST-S-D,,,ARG-CHU,FRA","DST-S-D","","","ARG-CHU","FRA",13195.9,null,"CERDI"]
[null,"DST-S-D,,,ARG-CHU,IND","DST-S-D","","","ARG-CHU","IND",16155.2,null,"CERDI"]
[null,"DST-S-D,,,ARG-CHU,JPN","DST-S-D","","","ARG-CHU","JPN",18848.2,null,"CERDI"]
[null,"DST-S-D,,,ARG-CHU,KOR","DST-S-D","","","ARG-CHU","KOR",19350,null,"CERDI"]
[null,"DST-S-D,,,ARG-CHU,NLD","DST-S-D","","","ARG-CHU","NLD",13750.5,null,"CERDI"]
[null,"DST-S-D,,,ARG-CHU,USA","DST-S-D","","","ARG-CHU","USA",12589.7,null,"CERDI"]
[null,"DST-S-D,,,ARG-COR,CHN","DST-S-D","","","ARG-COR","CHN",19486.8,null,"CERDI"]
[null,"DST-S-D,,,ARG-COR,DEU","DST-S-D","","","ARG-COR","DEU",12728.796,null,"SEA-DISTANCES.ORG"]
[null,"DST-S-D,,,ARG-COR,ESP","DST-S-D","","","ARG-COR","ESP",11766,null,"CERDI"]
[null,"DST-S-D,,,ARG-COR,FRA","DST-S-D","","","ARG-COR","FRA",13195.9,null,"CERDI"]
[null,"DST-S-D,,,ARG-COR,IND","DST-S-D","","","ARG-COR","IND",16155.2,null,"CERDI"]
[null,"DST-S-D,,,ARG-COR,JPN","DST-S-D","","","ARG-COR","JPN",18848.2,null,"CERDI"]
[null,"DST-S-D,,,ARG-COR,KOR","DST-S-D","","","ARG-COR","KOR",19350,null,"CERDI"]
[null,"DST-S-D,,,ARG-COR,NLD","DST-S-D","","","ARG-COR","NLD",13750.5,null,"CERDI"]
[null,"DST-S-D,,,ARG-COR,USA","DST-S-D","","","ARG-COR","USA",12589.7,null,"CERDI"]
[null,"DST-S-D,,,ARG-CRB,CHN","DST-S-D","","","ARG-CRB","CHN",19486.8,null,"CERDI"]
[null,"DST-S-D,,,ARG-CRB,DEU","DST-S-D","","","ARG-CRB","DEU",12728.796,null,"SEA-DISTANCES.ORG"]
[null,"DST-S-D,,,ARG-CRB,ESP","DST-S-D","","","ARG-CRB","ESP",11766,null,"CERDI"]
[null,"DST-S-D,,,ARG-CRB,FRA","DST-S-D","","","ARG-CRB","FRA",13195.9,null,"CERDI"]
[null,"DST-S-D,,,ARG-CRB,IND","DST-S-D","","","ARG-CRB","IND",16155.2,null,"CERDI"]
[null,"DST-S-D,,,ARG-CRB,JPN","DST-S-D","","","ARG-CRB","JPN",18848.2,null,"CERDI"]
[null,"DST-S-D,,,ARG-CRB,KOR","DST-S-D","","","ARG-CRB","KOR",19350,null,"CERDI"]
[null,"DST-S-D,,,ARG-CRB,NLD","DST-S-D","","","ARG-CRB","NLD",13750.5,null,"CERDI"]
[null,"DST-S-D,,,ARG-CRB,USA","DST-S-D","","","ARG-CRB","USA",12589.7,null,"CERDI"]
[null,"DST-S-D,,,ARG-CRU,CHN","DST-S-D","","","ARG-CRU","CHN",19486.8,null,"CERDI"]
[null,"DST-S-D,,,ARG-CRU,DEU","DST-S-D","","","ARG-CRU","DEU",12728.796,null,"SEA-DISTANCES.ORG"]
[null,"DST-S-D,,,ARG-CRU,ESP","DST-S-D","","","ARG-CRU","ESP",11766,null,"CERDI"]
[null,"DST-S-D,,,ARG-CRU,FRA","DST-S-D","","","ARG-CRU","FRA",13195.9,null,"CERDI"]
[null,"DST-S-D,,,ARG-CRU,IND","DST-S-D","","","ARG-CRU","IND",16155.2,null,"CERDI"]
[null,"DST-S-D,,,ARG-CRU,JPN","DST-S-D","","","ARG-CRU","JPN",18848.2,null,"CERDI"]
[null,"DST-S-D,,,ARG-CRU,KOR","DST-S-D","","","ARG-CRU","KOR",19350,null,"CERDI"]
[null,"DST-S-D,,,ARG-CRU,NLD","DST-S-D","","","ARG-CRU","NLD",13750.5,null,"CERDI"]
[null,"DST-S-D,,,ARG-CRU,USA","DST-S-D","","","ARG-CRU","USA",12589.7,null,"CERDI"]
[null,"DST-S-D,,,ARG-EST,CHN","DST-S-D","","","ARG-EST","CHN",19486.8,null,"CERDI"]
[null,"DST-S-D,,,ARG-EST,DEU","DST-S-D","","","ARG-EST","DEU",12728.796,null,"SEA-DISTANCES.ORG"]
[null,"DST-S-D,,,ARG-EST,ESP","DST-S-D","","","ARG-EST","ESP",11766,null,"CERDI"]
[null,"DST-S-D,,,ARG-EST,FRA","DST-S-D","","","ARG-EST","FRA",13195.9,null,"CERDI"]
[null,"DST-S-D,,,ARG-EST,IND","DST-S-D","","","ARG-EST","IND",16155.2,null,"CERDI"]
[null,"DST-S-D,,,ARG-EST,JPN","DST-S-D","","","ARG-EST","JPN",18848.2,null,"CERDI"]
[null,"DST-S-D,,,ARG-EST,KOR","DST-S-D","","","ARG-EST","KOR",19350,null,"CERDI"]
[null,"DST-S-D,,,ARG-EST,NLD","DST-S-D","","","ARG-EST","NLD",13750.5,null,"CERDI"]
[null,"DST-S-D,,,ARG-EST,USA","DST-S-D","","","ARG-EST","USA",12589.7,null,"CERDI"]
[null,"DST-S-D,,,ARG-FOR,CHN","DST-S-D","","","ARG-FOR","CHN",19486.8,null,"CERDI"]
[null,"DST-S-D,,,ARG-FOR,DEU","DST-S-D","","","ARG-FOR","DEU",12728.796,null,"SEA-DISTANCES.ORG"]
[null,"DST-S-D,,,ARG-FOR,ESP","DST-S-D","","","ARG-FOR","ESP",11766,null,"CERDI"]
[null,"DST-S-D,,,ARG-FOR,FRA","DST-S-D","","","ARG-FOR","FRA",13195.9,null,"CERDI"]
[null,"DST-S-D,,,ARG-FOR,IND","DST-S-D","","","ARG-FOR","IND",16155.2,null,"CERDI"]
[null,"DST-S-D,,,ARG-FOR,JPN","DST-S-D","","","ARG-FOR","JPN",18848.2,null,"CERDI"]
[null,"DST-S-D,,,ARG-FOR,KOR","DST-S-D","","","ARG-FOR","KOR",19350,null,"CERDI"]
[null,"DST-S-D,,,ARG-FOR,NLD","DST-S-D","","","ARG-FOR","NLD",13750.5,null,"CERDI"]
[null,"DST-S-D,,,ARG-FOR,USA","DST-S-D","","","ARG-FOR","USA",12589.7,null,"CERDI"]
[null,"DST-S-D,,,ARG-FUE,CHN","DST-S-D","","","ARG-FUE","CHN",19486.8,null,"CERDI"]
[null,"DST-S-D,,,ARG-FUE,DEU","DST-S-D","","","ARG-FUE","DEU",12728.796,null,"SEA-DISTANCES.ORG"]
[null,"DST-S-D,,,ARG-FUE,ESP","DST-S-D","","","ARG-FUE","ESP",11766,null,"CERDI"]
[null,"DST-S-D,,,ARG-FUE,FRA","DST-S-D","","","ARG-FUE","FRA",13195.9,null,"CERDI"]
[null,"DST-S-D,,,ARG-FUE,IND","DST-S-D","","","ARG-FUE","IND",16155.2,null,"CERDI"]
[null,"DST-S-D,,,ARG-FUE,JPN","DST-S-D","","","ARG-FUE","JPN",18848.2,null,"CERDI"]
[null,"DST-S-D,,,ARG-FUE,KOR","DST-S-D","","","ARG-FUE","KOR",19350,null,"CERDI"]
[null,"DST-S-D,,,ARG-FUE,NLD","DST-S-D","","","ARG-FUE","NLD",13750.5,null,"CERDI"]
[null,"DST-S-D,,,ARG-FUE,USA","DST-S-D","","","ARG-FUE","USA",12589.7,null,"CERDI"]
[null,"DST-S-D,,,ARG-JUJ,CHN","DST-S-D","","","ARG-JUJ","CHN",19486.8,null,"CERDI"]
[null,"DST-S-D,,,ARG-JUJ,DEU","DST-S-D","","","ARG-JUJ","DEU",12728.796,null,"SEA-DISTANCES.ORG"]
[null,"DST-S-D,,,ARG-JUJ,ESP","DST-S-D","","","ARG-JUJ","ESP",11766,null,"CERDI"]
[null,"DST-S-D,,,ARG-JUJ,FRA","DST-S-D","","","ARG-JUJ","FRA",13195.9,null,"CERDI"]
[null,"DST-S-D,,,ARG-JUJ,IND","DST-S-D","","","ARG-JUJ","IND",16155.2,null,"CERDI"]
[null,"DST-S-D,,,ARG-JUJ,JPN","DST-S-D","","","ARG-JUJ","JPN",18848.2,null,"CERDI"]
[null,"DST-S-D,,,ARG-JUJ,KOR","DST-S-D","","","ARG-JUJ","KOR",19350,null,"CERDI"]
[null,"DST-S-D,,,ARG-JUJ,NLD","DST-S-D","","","ARG-JUJ","NLD",13750.5,null,"CERDI"]
[null,"DST-S-D,,,ARG-JUJ,USA","DST-S-D","","","ARG-JUJ","USA",12589.7,null,"CERDI"]
[null,"DST-S-D,,,ARG-LAR,CHN","DST-S-D","","","ARG-LAR","CHN",19486.8,null,"CERDI"]
[null,"DST-S-D,,,ARG-LAR,DEU","DST-S-D","","","ARG-LAR","DEU",12728.796,null,"SEA-DISTANCES.ORG"]
[null,"DST-S-D,,,ARG-LAR,ESP","DST-S-D","","","ARG-LAR","ESP",11766,null,"CERDI"]
[null,"DST-S-D,,,ARG-LAR,FRA","DST-S-D","","","ARG-LAR","FRA",13195.9,null,"CERDI"]
[null,"DST-S-D,,,ARG-LAR,IND","DST-S-D","","","ARG-LAR","IND",16155.2,null,"CERDI"]
[null,"DST-S-D,,,ARG-LAR,JPN","DST-S-D","","","ARG-LAR","JPN",18848.2,null,"CERDI"]
[null,"DST-S-D,,,ARG-LAR,KOR","DST-S-D","","","ARG-LAR","KOR",19350,null,"CERDI"]
[null,"DST-S-D,,,ARG-LAR,NLD","DST-S-D","","","ARG-LAR","NLD",13750.5,null,"CERDI"]
[null,"DST-S-D,,,ARG-LAR,USA","DST-S-D","","","ARG-LAR","USA",12589.7,null,"CERDI"]
[null,"DST-S-D,,,ARG-MEN,CHN","DST-S-D","","","ARG-MEN","CHN",19486.8,null,"CERDI"]
[null,"DST-S-D,,,ARG-MEN,DEU","DST-S-D","","","ARG-MEN","DEU",12728.796,null,"SEA-DISTANCES.ORG"]
[null,"DST-S-D,,,ARG-MEN,ESP","DST-S-D","","","ARG-MEN","ESP",11766,null,"CERDI"]
[null,"DST-S-D,,,ARG-MEN,FRA","DST-S-D","","","ARG-MEN","FRA",13195.9,null,"CERDI"]
[null,"DST-S-D,,,ARG-MEN,IND","DST-S-D","","","ARG-MEN","IND",16155.2,null,"CERDI"]
[null,"DST-S-D,,,ARG-MEN,JPN","DST-S-D","","","ARG-MEN","JPN",18848.2,null,"CERDI"]
[null,"DST-S-D,,,ARG-MEN,KOR","DST-S-D","","","ARG-MEN","KOR",19350,null,"CERDI"]
[null,"DST-S-D,,,ARG-MEN,NLD","DST-S-D","","","ARG-MEN","NLD",13750.5,null,"CERDI"]
[null,"DST-S-D,,,ARG-MEN,USA","DST-S-D","","","ARG-MEN","USA",12589.7,null,"CERDI"]
[null,"DST-S-D,,,ARG-MIS,CHN","DST-S-D","","","ARG-MIS","CHN",19486.8,null,"CERDI"]
[null,"DST-S-D,,,ARG-MIS,DEU","DST-S-D","","","ARG-MIS","DEU",12728.796,null,"SEA-DISTANCES.ORG"]
[null,"DST-S-D,,,ARG-MIS,ESP","DST-S-D","","","ARG-MIS","ESP",11766,null,"CERDI"]
[null,"DST-S-D,,,ARG-MIS,FRA","DST-S-D","","","ARG-MIS","FRA",13195.9,null,"CERDI"]
[null,"DST-S-D,,,ARG-MIS,IND","DST-S-D","","","ARG-MIS","IND",16155.2,null,"CERDI"]
[null,"DST-S-D,,,ARG-MIS,JPN","DST-S-D","","","ARG-MIS","JPN",18848.2,null,"CERDI"]
[null,"DST-S-D,,,ARG-MIS,KOR","DST-S-D","","","ARG-MIS","KOR",19350,null,"CERDI"]
[null,"DST-S-D,,,ARG-MIS,NLD","DST-S-D","","","ARG-MIS","NLD",13750.5,null,"CERDI"]
[null,"DST-S-D,,,ARG-MIS,USA","DST-S-D","","","ARG-MIS","USA",12589.7,null,"CERDI"]
[null,"DST-S-D,,,ARG-NEG,CHN","DST-S-D","","","ARG-NEG","CHN",19486.8,null,"CERDI"]
[null,"DST-S-D,,,ARG-NEG,DEU","DST-S-D","","","ARG-NEG","DEU",12728.796,null,"SEA-DISTANCES.ORG"]
[null,"DST-S-D,,,ARG-NEG,ESP","DST-S-D","","","ARG-NEG","ESP",11766,null,"CERDI"]
[null,"DST-S-D,,,ARG-NEG,FRA","DST-S-D","","","ARG-NEG","FRA",13195.9,null,"CERDI"]
[null,"DST-S-D,,,ARG-NEG,IND","DST-S-D","","","ARG-NEG","IND",16155.2,null,"CERDI"]
[null,"DST-S-D,,,ARG-NEG,JPN","DST-S-D","","","ARG-NEG","JPN",18848.2,null,"CERDI"]
[null,"DST-S-D,,,ARG-NEG,KOR","DST-S-D","","","ARG-NEG","KOR",19350,null,"CERDI"]
[null,"DST-S-D,,,ARG-NEG,NLD","DST-S-D","","","ARG-NEG","NLD",13750.5,null,"CERDI"]
[null,"DST-S-D,,,ARG-NEG,USA","DST-S-D","","","ARG-NEG","USA",12589.7,null,"CERDI"]
[null,"DST-S-D,,,ARG-NEU,CHN","DST-S-D","","","ARG-NEU","CHN",19486.8,null,"CERDI"]
[null,"DST-S-D,,,ARG-NEU,DEU","DST-S-D","","","ARG-NEU","DEU",12728.796,null,"SEA-DISTANCES.ORG"]
[null,"DST-S-D,,,ARG-NEU,ESP","DST-S-D","","","ARG-NEU","ESP",11766,null,"CERDI"]
[null,"DST-S-D,,,ARG-NEU,FRA","DST-S-D","","","ARG-NEU","FRA",13195.9,null,"CERDI"]
[null,"DST-S-D,,,ARG-NEU,IND","DST-S-D","","","ARG-NEU","IND",16155.2,null,"CERDI"]
[null,"DST-S-D,,,ARG-NEU,JPN","DST-S-D","","","ARG-NEU","JPN",18848.2,null,"CERDI"]
[null,"DST-S-D,,,ARG-NEU,KOR","DST-S-D","","","ARG-NEU","KOR",19350,null,"CERDI"]
[null,"DST-S-D,,,ARG-NEU,NLD","DST-S-D","","","ARG-NEU","NLD",13750.5,null,"CERDI"]
[null,"DST-S-D,,,ARG-NEU,USA","DST-S-D","","","ARG-NEU","USA",12589.7,null,"CERDI"]
[null,"DST-S-D,,,ARG-PAM,CHN","DST-S-D","","","ARG-PAM","CHN",19486.8,null,"CERDI"]
[null,"DST-S-D,,,ARG-PAM,DEU","DST-S-D","","","ARG-PAM","DEU",12728.796,null,"SEA-DISTANCES.ORG"]
[null,"DST-S-D,,,ARG-PAM,ESP","DST-S-D","","","ARG-PAM","ESP",11766,null,"CERDI"]
[null,"DST-S-D,,,ARG-PAM,FRA","DST-S-D","","","ARG-PAM","FRA",13195.9,null,"CERDI"]
[null,"DST-S-D,,,ARG-PAM,IND","DST-S-D","","","ARG-PAM","IND",16155.2,null,"CERDI"]
[null,"DST-S-D,,,ARG-PAM,JPN","DST-S-D","","","ARG-PAM","JPN",18848.2,null,"CERDI"]
[null,"DST-S-D,,,ARG-PAM,KOR","DST-S-D","","","ARG-PAM","KOR",19350,null,"CERDI"]
[null,"DST-S-D,,,ARG-PAM,NLD","DST-S-D","","","ARG-PAM","NLD",13750.5,null,"CERDI"]
[null,"DST-S-D,,,ARG-PAM,USA","DST-S-D","","","ARG-PAM","USA",12589.7,null,"CERDI"]
[null,"DST-S-D,,,ARG-RIO,CHN","DST-S-D","","","ARG-RIO","CHN",19486.8,null,"CERDI"]
[null,"DST-S-D,,,ARG-RIO,DEU","DST-S-D","","","ARG-RIO","DEU",12728.796,null,"SEA-DISTANCES.ORG"]
[null,"DST-S-D,,,ARG-RIO,ESP","DST-S-D","","","ARG-RIO","ESP",11766,null,"CERDI"]
[null,"DST-S-D,,,ARG-RIO,FRA","DST-S-D","","","ARG-RIO","FRA",13195.9,null,"CERDI"]
[null,"DST-S-D,,,ARG-RIO,IND","DST-S-D","","","ARG-RIO","IND",16155.2,null,"CERDI"]
[null,"DST-S-D,,,ARG-RIO,JPN","DST-S-D","","","ARG-RIO","JPN",18848.2,null,"CERDI"]
[null,"DST-S-D,,,ARG-RIO,KOR","DST-S-D","","","ARG-RIO","KOR",19350,null,"CERDI"]
[null,"DST-S-D,,,ARG-RIO,NLD","DST-S-D","","","ARG-RIO","NLD",13750.5,null,"CERDI"]
[null,"DST-S-D,,,ARG-RIO,USA","DST-S-D","","","ARG-RIO","USA",12589.7,null,"CERDI"]
[null,"DST-S-D,,,ARG-SAF,CHN","DST-S-D","","","ARG-SAF","CHN",19486.8,null,"CERDI"]
[null,"DST-S-D,,,ARG-SAF,DEU","DST-S-D","","","ARG-SAF","DEU",12728.796,null,"SEA-DISTANCES.ORG"]
[null,"DST-S-D,,,ARG-SAF,ESP","DST-S-D","","","ARG-SAF","ESP",11766,null,"CERDI"]
[null,"DST-S-D,,,ARG-SAF,FRA","DST-S-D","","","ARG-SAF","FRA",13195.9,null,"CERDI"]
[null,"DST-S-D,,,ARG-SAF,IND","DST-S-D","","","ARG-SAF","IND",16155.2,null,"CERDI"]
[null,"DST-S-D,,,ARG-SAF,JPN","DST-S-D","","","ARG-SAF","JPN",18848.2,null,"CERDI"]
[null,"DST-S-D,,,ARG-SAF,KOR","DST-S-D","","","ARG-SAF","KOR",19350,null,"CERDI"]
[null,"DST-S-D,,,ARG-SAF,NLD","DST-S-D","","","ARG-SAF","NLD",13750.5,null,"CERDI"]
[null,"DST-S-D,,,ARG-SAF,USA","DST-S-D","","","ARG-SAF","USA",12589.7,null,"CERDI"]
[null,"DST-S-D,,,ARG-SAJ,CHN","DST-S-D","","","ARG-SAJ","CHN",19486.8,null,"CERDI"]
[null,"DST-S-D,,,ARG-SAJ,DEU","DST-S-D","","","ARG-SAJ","DEU",12728.796,null,"SEA-DISTANCES.ORG"]
[null,"DST-S-D,,,ARG-SAJ,ESP","DST-S-D","","","ARG-SAJ","ESP",11766,null,"CERDI"]
[null,"DST-S-D,,,ARG-SAJ,FRA","DST-S-D","","","ARG-SAJ","FRA",13195.9,null,"CERDI"]
[null,"DST-S-D,,,ARG-SAJ,IND","DST-S-D","","","ARG-SAJ","IND",16155.2,null,"CERDI"]
[null,"DST-S-D,,,ARG-SAJ,JPN","DST-S-D","","","ARG-SAJ","JPN",18848.2,null,"CERDI"]
[null,"DST-S-D,,,ARG-SAJ,KOR","DST-S-D","","","ARG-SAJ","KOR",19350,null,"CERDI"]
[null,"DST-S-D,,,ARG-SAJ,NLD","DST-S-D","","","ARG-SAJ","NLD",13750.5,null,"CERDI"]
[null,"DST-S-D,,,ARG-SAJ,USA","DST-S-D","","","ARG-SAJ","USA",12589.7,null,"CERDI"]
[null,"DST-S-D,,,ARG-SAL,CHN","DST-S-D","","","ARG-SAL","CHN",19486.8,null,"CERDI"]
[null,"DST-S-D,,,ARG-SAL,DEU","DST-S-D","","","ARG-SAL","DEU",12728.796,null,"SEA-DISTANCES.ORG"]
[null,"DST-S-D,,,ARG-SAL,ESP","DST-S-D","","","ARG-SAL","ESP",11766,null,"CERDI"]
[null,"DST-S-D,,,ARG-SAL,FRA","DST-S-D","","","ARG-SAL","FRA",13195.9,null,"CERDI"]
[null,"DST-S-D,,,ARG-SAL,IND","DST-S-D","","","ARG-SAL","IND",16155.2,null,"CERDI"]
[null,"DST-S-D,,,ARG-SAL,JPN","DST-S-D","","","ARG-SAL","JPN",18848.2,null,"CERDI"]
[null,"DST-S-D,,,ARG-SAL,KOR","DST-S-D","","","ARG-SAL","KOR",19350,null,"CERDI"]
[null,"DST-S-D,,,ARG-SAL,NLD","DST-S-D","","","ARG-SAL","NLD",13750.5,null,"CERDI"]
[null,"DST-S-D,,,ARG-SAL,USA","DST-S-D","","","ARG-SAL","USA",12589.7,null,"CERDI"]
[null,"DST-S-D,,,ARG-SAT,CHN","DST-S-D","","","ARG-SAT","CHN",19486.8,null,"CERDI"]
[null,"DST-S-D,,,ARG-SAT,DEU","DST-S-D","","","ARG-SAT","DEU",12728.796,null,"SEA-DISTANCES.ORG"]
[null,"DST-S-D,,,ARG-SAT,ESP","DST-S-D","","","ARG-SAT","ESP",11766,null,"CERDI"]
[null,"DST-S-D,,,ARG-SAT,FRA","DST-S-D","","","ARG-SAT","FRA",13195.9,null,"CERDI"]
[null,"DST-S-D,,,ARG-SAT,IND","DST-S-D","","","ARG-SAT","IND",16155.2,null,"CERDI"]
[null,"DST-S-D,,,ARG-SAT,JPN","DST-S-D","","","ARG-SAT","JPN",18848.2,null,"CERDI"]
[null,"DST-S-D,,,ARG-SAT,KOR","DST-S-D","","","ARG-SAT","KOR",19350,null,"CERDI"]
[null,"DST-S-D,,,ARG-SAT,NLD","DST-S-D","","","ARG-SAT","NLD",13750.5,null,"CERDI"]
[null,"DST-S-D,,,ARG-SAT,USA","DST-S-D","","","ARG-SAT","USA",12589.7,null,"CERDI"]
[null,"DST-S-D,,,ARG-TUC,CHN","DST-S-D","","","ARG-TUC","CHN",19486.8,null,"CERDI"]
[null,"DST-S-D,,,ARG-TUC,DEU","DST-S-D","","","ARG-TUC","DEU",12728.796,null,"SEA-DISTANCES.ORG"]
[null,"DST-S-D,,,ARG-TUC,ESP","DST-S-D","","","ARG-TUC","ESP",11766,null,"CERDI"]
[null,"DST-S-D,,,ARG-TUC,FRA","DST-S-D","","","ARG-TUC","FRA",13195.9,null,"CERDI"]
[null,"DST-S-D,,,ARG-TUC,IND","DST-S-D","","","ARG-TUC","IND",16155.2,null,"CERDI"]
[null,"DST-S-D,,,ARG-TUC,JPN","DST-S-D","","","ARG-TUC","JPN",18848.2,null,"CERDI"]
[null,"DST-S-D,,,ARG-TUC,KOR","DST-S-D","","","ARG-TUC","KOR",19350,null,"CERDI"]
[null,"DST-S-D,,,ARG-TUC,NLD","DST-S-D","","","ARG-TUC","NLD",13750.5,null,"CERDI"]
[null,"DST-S-D,,,ARG-TUC,USA","DST-S-D","","","ARG-TUC","USA",12589.7,null,"CERDI"]
[null,"DST-S-D,,,AUS,CHN","DST-S-D","","","AUS","CHN",10024.9,null,"CERDI"]
[null,"DST-S-D,,,AUS,DEU","DST-S-D","","","AUS","DEU",21212.3,null,"CERDI"]
[null,"DST-S-D,,,AUS,ESP","DST-S-D","","","AUS","ESP",17760.900000000001,null,"CERDI"]
[null,"DST-S-D,,,AUS,FRA","DST-S-D","","","AUS","FRA",16854,null,"CERDI"]
[null,"DST-S-D,,,AUS,IND","DST-S-D","","","AUS","IND",10647.6,null,"CERDI"]
[null,"DST-S-D,,,AUS,JPN","DST-S-D","","","AUS","JPN",9845.85,null,"CERDI"]
[null,"DST-S-D,,,AUS,KOR","DST-S-D","","","AUS","KOR",10153.5,null,"CERDI"]
[null,"DST-S-D,,,AUS,NLD","DST-S-D","","","AUS","NLD",20628.3,null,"CERDI"]
[null,"DST-S-D,,,AUS,USA","DST-S-D","","","AUS","USA",12771.9,null,"CERDI"]
[null,"DST-S-D,,,BRA,CHN","DST-S-D","","","BRA","CHN",21462,null,"CERDI"]
[null,"DST-S-D,,,BRA,DEU","DST-S-D","","","BRA","DEU",10409.5,null,"CERDI"]
[null,"DST-S-D,,,BRA,ESP","DST-S-D","","","BRA","ESP",8824.26,null,"CERDI"]
[null,"DST-S-D,,,BRA,FRA","DST-S-D","","","BRA","FRA",9895.24,null,"CERDI"]
[null,"DST-S-D,,,BRA,IND","DST-S-D","","","BRA","IND",15751.1,null,"CERDI"]
[null,"DST-S-D,,,BRA,JPN","DST-S-D","","","BRA","JPN",22369.4,null,"CERDI"]
[null,"DST-S-D,,,BRA,KOR","DST-S-D","","","BRA","KOR",22048.5,null,"CERDI"]
[null,"DST-S-D,,,BRA,NLD","DST-S-D","","","BRA","NLD",10110.1,null,"CERDI"]
[null,"DST-S-D,,,BRA,USA","DST-S-D","","","BRA","USA",9777.43,null,"CERDI"]
[null,"DST-S-D,,,CHL,CHN","DST-S-D","","","CHL","CHN",18238,null,"CERDI"]
[null,"DST-S-D,,,CHL,DEU","DST-S-D","","","CHL","DEU",12511.9,null,"CERDI"]
[null,"DST-S-D,,,CHL,ESP","DST-S-D","","","CHL","ESP",13257.8,null,"CERDI"]
[null,"DST-S-D,,,CHL,FRA","DST-S-D","","","CHL","FRA",14328.9,null,"CERDI"]
[null,"DST-S-D,,,CHL,IND","DST-S-D","","","CHL","IND",20076.400000000001,null,"CERDI"]
[null,"DST-S-D,,,CHL,JPN","DST-S-D","","","CHL","JPN",16934.8,null,"CERDI"]
[null,"DST-S-D,,,CHL,KOR","DST-S-D","","","CHL","KOR",17656.2,null,"CERDI"]
[null,"DST-S-D,,,CHL,NLD","DST-S-D","","","CHL","NLD",12212.5,null,"CERDI"]
[null,"DST-S-D,,,CHL,USA","DST-S-D","","","CHL","USA",8511.36,null,"CERDI"]
[null,"DST-S-D,,,CHN,DEU","DST-S-D","","","CHN","DEU",20484.900000000001,null,"CERDI"]
[null,"DST-S-D,,,CHN,ESP","DST-S-D","","","CHN","ESP",16840.5,null,"CERDI"]
[null,"DST-S-D,,,CHN,FRA","DST-S-D","","","CHN","FRA",15425.3,null,"CERDI"]
[null,"DST-S-D,,,CHN,IND","DST-S-D","","","CHN","IND",8761.85,null,"CERDI"]
[null,"DST-S-D,,,CHN,JPN","DST-S-D","","","CHN","JPN",1458.02,null,"CERDI"]
[null,"DST-S-D,,,CHN,KOR","DST-S-D","","","CHN","KOR",659.33900000000006,null,"CERDI"]
[null,"DST-S-D,,,CHN,NLD","DST-S-D","","","CHN","NLD",19901,null,"CERDI"]
[null,"DST-S-D,,,CHN,USA","DST-S-D","","","CHN","USA",10401.4,null,"CERDI"]
[null,"DST-S-D,,,COL,CHN","DST-S-D","","","COL","CHN",16752,"km","CERDI"]
[null,"DST-S-D,,,COL,DEU","DST-S-D","","","COL","DEU",9250.74,"km","SEA-DISTANCES.ORG"]
[null,"DST-S-D,,,COL,ESP","DST-S-D","","","COL","ESP",7282,"km","CERDI"]
[null,"DST-S-D,,,COL,FRA","DST-S-D","","","COL","FRA",8323,"km","CERDI"]
[null,"DST-S-D,,,COL,IND","DST-S-D","","","COL","IND",17936,"km","CERDI"]
[null,"DST-S-D,,,COL,JPN","DST-S-D","","","COL","JPN",15390,"km","CERDI"]
[null,"DST-S-D,,,COL,KOR","DST-S-D","","","COL","KOR",16112,"km","CERDI"]
[null,"DST-S-D,,,COL,NLD","DST-S-D","","","COL","NLD",8361.7800000000007,"km","SEA-DISTANCES.ORG"]
[null,"DST-S-D,,,COL,USA","DST-S-D","","","COL","USA",2242,"km","CERDI"]
[null,"DST-S-D,,,CRI,CHN","DST-S-D","","","CRI","CHN",16735.5,null,"CERDI"]
[null,"DST-S-D,,,CRI,DEU","DST-S-D","","","CRI","DEU",7422.6,null,"CERDI"]
[null,"DST-S-D,,,CRI,ESP","DST-S-D","","","CRI","ESP",8028.79,null,"CERDI"]
[null,"DST-S-D,,,CRI,FRA","DST-S-D","","","CRI","FRA",9099.84,null,"CERDI"]
[null,"DST-S-D,,,CRI,IND","DST-S-D","","","CRI","IND",18692.900000000001,null,"CERDI"]
[null,"DST-S-D,,,CRI,JPN","DST-S-D","","","CRI","JPN",15373.2,null,"CERDI"]
[null,"DST-S-D,,,CRI,KOR","DST-S-D","","","CRI","KOR",16095.6,null,"CERDI"]
[null,"DST-S-D,,,CRI,NLD","DST-S-D","","","CRI","NLD",7150.86,null,"CERDI"]
[null,"DST-S-D,,,CRI,USA","DST-S-D","","","CRI","USA",2590.9699999999998,null,"CERDI"]
[null,"DST-S-D,,,DNK,CHN","DST-S-D","","","DNK","CHN",21206.9,null,"CERDI"]
[null,"DST-S-D,,,DNK,DEU","DST-S-D","","","DNK","DEU",814.84100000000001,null,"CERDI"]
[null,"DST-S-D,,,DNK,ESP","DST-S-D","","","DNK","ESP",2403.9,null,"SEA-DISTANCES.ORG"]
[null,"DST-S-D,,,DNK,FRA","DST-S-D","","","DNK","FRA",1859.4080000000001,null,"SEA-DISTANCES.ORG"]
[null,"DST-S-D,,,DNK,IND","DST-S-D","","","DNK","IND",13318,null,"CERDI"]
[null,"DST-S-D,,,DNK,JPN","DST-S-D","","","DNK","JPN",22113.599999999999,null,"CERDI"]
[null,"DST-S-D,,,DNK,KOR","DST-S-D","","","DNK","KOR",21793,null,"CERDI"]
[null,"DST-S-D,,,DNK,NLD","DST-S-D","","","DNK","NLD",1117.3499999999999,null,"CERDI"]
[null,"DST-S-D,,,DNK,USA","DST-S-D","","","DNK","USA",8659.0300000000007,null,"CERDI"]
[null,"DST-S-D,,,DZA,CHN","DST-S-D","","","DZA","CHN",16414.7,null,"CERDI"]
[null,"DST-S-D,,,DZA,DEU","DST-S-D","","","DZA","DEU",3174.14,null,"CERDI"]
[null,"DST-S-D,,,DZA,ESP","DST-S-D","","","DZA","ESP",449.37400000000002,null,"CERDI"]
[null,"DST-S-D,,,DZA,FRA","DST-S-D","","","DZA","FRA",863.68899999999996,null,"CERDI"]
[null,"DST-S-D,,,DZA,IND","DST-S-D","","","DZA","IND",8829.52,null,"CERDI"]
[null,"DST-S-D,,,DZA,JPN","DST-S-D","","","DZA","JPN",17389.099999999999,null,"CERDI"]
[null,"DST-S-D,,,DZA,KOR","DST-S-D","","","DZA","KOR",17085.5,null,"CERDI"]
[null,"DST-S-D,,,DZA,NLD","DST-S-D","","","DZA","NLD",2860.67,null,"CERDI"]
[null,"DST-S-D,,,DZA,USA","DST-S-D","","","DZA","USA",9072.02,null,"CERDI"]
[null,"DST-S-D,,,EGY,CHN","DST-S-D","","","EGY","CHN",13389.8,null,"CERDI"]
[null,"DST-S-D,,,EGY,DEU","DST-S-D","","","EGY","DEU",6629.18,null,"CERDI"]
[null,"DST-S-D,,,EGY,ESP","DST-S-D","","","EGY","ESP",3408.43,null,"CERDI"]
[null,"DST-S-D,,,EGY,FRA","DST-S-D","","","EGY","FRA",2024.05,null,"CERDI"]
[null,"DST-S-D,,,EGY,IND","DST-S-D","","","EGY","IND",5810.46,null,"CERDI"]
[null,"DST-S-D,,,EGY,JPN","DST-S-D","","","EGY","JPN",14387.6,null,"CERDI"]
[null,"DST-S-D,,,EGY,KOR","DST-S-D","","","EGY","KOR",14066.7,null,"CERDI"]
[null,"DST-S-D,,,EGY,NLD","DST-S-D","","","EGY","NLD",6261.57,null,"CERDI"]
[null,"DST-S-D,,,EGY,USA","DST-S-D","","","EGY","USA",12612.9,null,"CERDI"]
[null,"DST-S-D,,,ESP,CHN","DST-S-D","","","ESP","CHN",16838.3,null,"CERDI"]
[null,"DST-S-D,,,ESP,DEU","DST-S-D","","","ESP","DEU",2697.76,null,"CERDI"]
[null,"DST-S-D,,,ESP,FRA","DST-S-D","","","ESP","FRA",342.62,null,"SEA-DISTANCES.ORG"]
[null,"DST-S-D,,,ESP,IND","DST-S-D","","","ESP","IND",9253.6200000000008,null,"CERDI"]
[null,"DST-S-D,,,ESP,JPN","DST-S-D","","","ESP","JPN",17812.599999999999,null,"CERDI"]
[null,"DST-S-D,,,ESP,KOR","DST-S-D","","","ESP","KOR",17509,null,"CERDI"]
[null,"DST-S-D,,,ESP,NLD","DST-S-D","","","ESP","NLD",1427.89,null,"SEA-DISTANCES.ORG"]
[null,"DST-S-D,,,ESP,USA","DST-S-D","","","ESP","USA",8601.06,null,"CERDI"]
[null,"DST-S-D,,,IDN,CHN","DST-S-D","","","IDN","CHN",4900.57,null,"CERDI"]
[null,"DST-S-D,,,IDN,DEU","DST-S-D","","","IDN","DEU",16946.8,null,"CERDI"]
[null,"DST-S-D,,,IDN,ESP","DST-S-D","","","IDN","ESP",13236.9,null,"CERDI"]
[null,"DST-S-D,,,IDN,FRA","DST-S-D","","","IDN","FRA",11693.4,null,"CERDI"]
[null,"DST-S-D,,,IDN,IND","DST-S-D","","","IDN","IND",5100.03,null,"CERDI"]
[null,"DST-S-D,,,IDN,JPN","DST-S-D","","","IDN","JPN",5807.96,null,"CERDI"]
[null,"DST-S-D,,,IDN,KOR","DST-S-D","","","IDN","KOR",5487.17,null,"CERDI"]
[null,"DST-S-D,,,IDN,NLD","DST-S-D","","","IDN","NLD",16421,null,"CERDI"]
[null,"DST-S-D,,,IDN,USA","DST-S-D","","","IDN","USA",13999.4,null,"CERDI"]
[null,"DST-S-D,,,IND,CHN","DST-S-D","","","IND","CHN",8761.3799999999992,null,"CERDI"]
[null,"DST-S-D,,,IND,DEU","DST-S-D","","","IND","DEU",12687.7,null,"CERDI"]
[null,"DST-S-D,,,IND,ESP","DST-S-D","","","IND","ESP",9254.24,null,"CERDI"]
[null,"DST-S-D,,,IND,FRA","DST-S-D","","","IND","FRA",8441.42,null,"SEA-DISTANCES.ORG"]
[null,"DST-S-D,,,IND,JPN","DST-S-D","","","IND","JPN",9668.61,null,"CERDI"]
[null,"DST-S-D,,,IND,KOR","DST-S-D","","","IND","KOR",9347.85,null,"CERDI"]
[null,"DST-S-D,,,IND,NLD","DST-S-D","","","IND","NLD",12221.7,null,"CERDI"]
[null,"DST-S-D,,,IND,USA","DST-S-D","","","IND","USA",18312.2,null,"CERDI"]
[null,"DST-S-D,,,JOR,CHN","DST-S-D","","","JOR","CHN",13090.6,null,"CERDI"]
[null,"DST-S-D,,,JOR,DEU","DST-S-D","","","JOR","DEU",7488.73,null,"CERDI"]
[null,"DST-S-D,,,JOR,ESP","DST-S-D","","","JOR","ESP",3457.7,null,"SEA-DISTANCES.ORG"]
[null,"DST-S-D,,,JOR,FRA","DST-S-D","","","JOR","FRA",3516.95,null,"SEA-DISTANCES.ORG"]
[null,"DST-S-D,,,JOR,IND","DST-S-D","","","JOR","IND",5511.15,null,"CERDI"]
[null,"DST-S-D,,,JOR,JPN","DST-S-D","","","JOR","JPN",14049.3,null,"CERDI"]
[null,"DST-S-D,,,JOR,KOR","DST-S-D","","","JOR","KOR",13728.5,null,"CERDI"]
[null,"DST-S-D,,,JOR,NLD","DST-S-D","","","JOR","NLD",7079.06,null,"CERDI"]
[null,"DST-S-D,,,JOR,USA","DST-S-D","","","JOR","USA",13472.2,null,"CERDI"]
[null,"DST-S-D,,,KAZ,CHN","DST-S-D","","","KAZ","CHN",2252.4699999999998,null,"CERDI"]
[null,"DST-S-D,,,KAZ,DEU","DST-S-D","","","KAZ","DEU",6601.17,null,"CERDI"]
[null,"DST-S-D,,,KAZ,ESP","DST-S-D","","","KAZ","ESP",3900.92,null,"CERDI"]
[null,"DST-S-D,,,KAZ,FRA","DST-S-D","","","KAZ","FRA",3529.3,null,"CERDI"]
[null,"DST-S-D,,,KAZ,IND","DST-S-D","","","KAZ","IND",8331.77,null,"CERDI"]
[null,"DST-S-D,,,KAZ,JPN","DST-S-D","","","KAZ","JPN",2136.6799999999998,null,"CERDI"]
[null,"DST-S-D,,,KAZ,KOR","DST-S-D","","","KAZ","KOR",1579.54,null,"CERDI"]
[null,"DST-S-D,,,KAZ,NLD","DST-S-D","","","KAZ","NLD",6287.68,null,"CERDI"]
[null,"DST-S-D,,,KAZ,USA","DST-S-D","","","KAZ","USA",8226.75,null,"CERDI"]
[null,"DST-S-D,,,KEN,CHN","DST-S-D","","","KEN","CHN",11244.6,null,"CERDI"]
[null,"DST-S-D,,,KEN,DEU","DST-S-D","","","KEN","DEU",12814.1,null,"CERDI"]
[null,"DST-S-D,,,KEN,ESP","DST-S-D","","","KEN","ESP",9223.33,null,"CERDI"]
[null,"DST-S-D,,,KEN,FRA","DST-S-D","","","KEN","FRA",7736.75,null,"CERDI"]
[null,"DST-S-D,,,KEN,IND","DST-S-D","","","KEN","IND",4305.05,null,"CERDI"]
[null,"DST-S-D,,,KEN,JPN","DST-S-D","","","KEN","JPN",12152,null,"CERDI"]
[null,"DST-S-D,,,KEN,KOR","DST-S-D","","","KEN","KOR",11831.2,null,"CERDI"]
[null,"DST-S-D,,,KEN,NLD","DST-S-D","","","KEN","NLD",12343.5,null,"CERDI"]
[null,"DST-S-D,,,KEN,USA","DST-S-D","","","KEN","USA",18739.400000000001,null,"CERDI"]
[null,"DST-S-D,,,MAR,CHN","DST-S-D","","","MAR","CHN",16917.900000000001,null,"CERDI"]
[null,"DST-S-D,,,MAR,DEU","DST-S-D","","","MAR","DEU",2668.15,null,"CERDI"]
[null,"DST-S-D,,,MAR,ESP","DST-S-D","","","MAR","ESP",38.352499999999999,null,"CERDI"]
[null,"DST-S-D,,,MAR,FRA","DST-S-D","","","MAR","FRA",1104.08,null,"CERDI"]
[null,"DST-S-D,,,MAR,IND","DST-S-D","","","MAR","IND",9333.25,null,"CERDI"]
[null,"DST-S-D,,,MAR,JPN","DST-S-D","","","MAR","JPN",17892.3,null,"CERDI"]
[null,"DST-S-D,,,MAR,KOR","DST-S-D","","","MAR","KOR",17588.7,null,"CERDI"]
[null,"DST-S-D,,,MAR,NLD","DST-S-D","","","MAR","NLD",2354.6799999999998,null,"CERDI"]
[null,"DST-S-D,,,MAR,USA","DST-S-D","","","MAR","USA",8558.2999999999993,null,"CERDI"]
[null,"DST-S-D,,,MAR-BEN,CHN","DST-S-D","","","MAR-BEN","CHN",16917.900000000001,null,"CERDI"]
[null,"DST-S-D,,,MAR-BEN,DEU","DST-S-D","","","MAR-BEN","DEU",2668.15,null,"CERDI"]
[null,"DST-S-D,,,MAR-BEN,ESP","DST-S-D","","","MAR-BEN","ESP",38.352499999999999,null,"CERDI"]
[null,"DST-S-D,,,MAR-BEN,FRA","DST-S-D","","","MAR-BEN","FRA",1104.08,null,"CERDI"]
[null,"DST-S-D,,,MAR-BEN,IND","DST-S-D","","","MAR-BEN","IND",9333.25,null,"CERDI"]
[null,"DST-S-D,,,MAR-BEN,JPN","DST-S-D","","","MAR-BEN","JPN",17892.3,null,"CERDI"]
[null,"DST-S-D,,,MAR-BEN,KOR","DST-S-D","","","MAR-BEN","KOR",17588.7,null,"CERDI"]
[null,"DST-S-D,,,MAR-BEN,NLD","DST-S-D","","","MAR-BEN","NLD",2354.6799999999998,null,"CERDI"]
[null,"DST-S-D,,,MAR-BEN,USA","DST-S-D","","","MAR-BEN","USA",8558.2999999999993,null,"CERDI"]
[null,"DST-S-D,,,MAR-CAS,CHN","DST-S-D","","","MAR-CAS","CHN",16917.900000000001,null,"CERDI"]
[null,"DST-S-D,,,MAR-CAS,DEU","DST-S-D","","","MAR-CAS","DEU",2668.15,null,"CERDI"]
[null,"DST-S-D,,,MAR-CAS,ESP","DST-S-D","","","MAR-CAS","ESP",38.352499999999999,null,"CERDI"]
[null,"DST-S-D,,,MAR-CAS,FRA","DST-S-D","","","MAR-CAS","FRA",1104.08,null,"CERDI"]
[null,"DST-S-D,,,MAR-CAS,IND","DST-S-D","","","MAR-CAS","IND",9333.25,null,"CERDI"]
[null,"DST-S-D,,,MAR-CAS,JPN","DST-S-D","","","MAR-CAS","JPN",17892.3,null,"CERDI"]
[null,"DST-S-D,,,MAR-CAS,KOR","DST-S-D","","","MAR-CAS","KOR",17588.7,null,"CERDI"]
[null,"DST-S-D,,,MAR-CAS,NLD","DST-S-D","","","MAR-CAS","NLD",2354.6799999999998,null,"CERDI"]
[null,"DST-S-D,,,MAR-CAS,USA","DST-S-D","","","MAR-CAS","USA",8558.2999999999993,null,"CERDI"]
[null,"DST-S-D,,,MAR-DAK,CHN","DST-S-D","","","MAR-DAK","CHN",16917.900000000001,null,"CERDI"]
[null,"DST-S-D,,,MAR-DAK,DEU","DST-S-D","","","MAR-DAK","DEU",2668.15,null,"CERDI"]
[null,"DST-S-D,,,MAR-DAK,ESP","DST-S-D","","","MAR-DAK","ESP",38.352499999999999,null,"CERDI"]
[null,"DST-S-D,,,MAR-DAK,FRA","DST-S-D","","","MAR-DAK","FRA",1104.08,null,"CERDI"]
[null,"DST-S-D,,,MAR-DAK,IND","DST-S-D","","","MAR-DAK","IND",9333.25,null,"CERDI"]
[null,"DST-S-D,,,MAR-DAK,JPN","DST-S-D","","","MAR-DAK","JPN",17892.3,null,"CERDI"]
[null,"DST-S-D,,,MAR-DAK,KOR","DST-S-D","","","MAR-DAK","KOR",17588.7,null,"CERDI"]
[null,"DST-S-D,,,MAR-DAK,NLD","DST-S-D","","","MAR-DAK","NLD",2354.6799999999998,null,"CERDI"]
[null,"DST-S-D,,,MAR-DAK,USA","DST-S-D","","","MAR-DAK","USA",8558.2999999999993,null,"CERDI"]
[null,"DST-S-D,,,MAR-DRA,CHN","DST-S-D","","","MAR-DRA","CHN",16917.900000000001,null,"CERDI"]
[null,"DST-S-D,,,MAR-DRA,DEU","DST-S-D","","","MAR-DRA","DEU",2668.15,null,"CERDI"]
[null,"DST-S-D,,,MAR-DRA,ESP","DST-S-D","","","MAR-DRA","ESP",38.352499999999999,null,"CERDI"]
[null,"DST-S-D,,,MAR-DRA,FRA","DST-S-D","","","MAR-DRA","FRA",1104.08,null,"CERDI"]
[null,"DST-S-D,,,MAR-DRA,IND","DST-S-D","","","MAR-DRA","IND",9333.25,null,"CERDI"]
[null,"DST-S-D,,,MAR-DRA,JPN","DST-S-D","","","MAR-DRA","JPN",17892.3,null,"CERDI"]
[null,"DST-S-D,,,MAR-DRA,KOR","DST-S-D","","","MAR-DRA","KOR",17588.7,null,"CERDI"]
[null,"DST-S-D,,,MAR-DRA,NLD","DST-S-D","","","MAR-DRA","NLD",2354.6799999999998,null,"CERDI"]
[null,"DST-S-D,,,MAR-DRA,USA","DST-S-D","","","MAR-DRA","USA",8558.2999999999993,null,"CERDI"]
[null,"DST-S-D,,,MAR-FES,CHN","DST-S-D","","","MAR-FES","CHN",16917.900000000001,null,"CERDI"]
[null,"DST-S-D,,,MAR-FES,DEU","DST-S-D","","","MAR-FES","DEU",2668.15,null,"CERDI"]
[null,"DST-S-D,,,MAR-FES,ESP","DST-S-D","","","MAR-FES","ESP",38.352499999999999,null,"CERDI"]
[null,"DST-S-D,,,MAR-FES,FRA","DST-S-D","","","MAR-FES","FRA",1104.08,null,"CERDI"]
[null,"DST-S-D,,,MAR-FES,IND","DST-S-D","","","MAR-FES","IND",9333.25,null,"CERDI"]
[null,"DST-S-D,,,MAR-FES,JPN","DST-S-D","","","MAR-FES","JPN",17892.3,null,"CERDI"]
[null,"DST-S-D,,,MAR-FES,KOR","DST-S-D","","","MAR-FES","KOR",17588.7,null,"CERDI"]
[null,"DST-S-D,,,MAR-FES,NLD","DST-S-D","","","MAR-FES","NLD",2354.6799999999998,null,"CERDI"]
[null,"DST-S-D,,,MAR-FES,USA","DST-S-D","","","MAR-FES","USA",8558.2999999999993,null,"CERDI"]
[null,"DST-S-D,,,MAR-GUE,CHN","DST-S-D","","","MAR-GUE","CHN",16917.900000000001,null,"CERDI"]
[null,"DST-S-D,,,MAR-GUE,DEU","DST-S-D","","","MAR-GUE","DEU",2668.15,null,"CERDI"]
[null,"DST-S-D,,,MAR-GUE,ESP","DST-S-D","","","MAR-GUE","ESP",38.352499999999999,null,"CERDI"]
[null,"DST-S-D,,,MAR-GUE,FRA","DST-S-D","","","MAR-GUE","FRA",1104.08,null,"CERDI"]
[null,"DST-S-D,,,MAR-GUE,IND","DST-S-D","","","MAR-GUE","IND",9333.25,null,"CERDI"]
[null,"DST-S-D,,,MAR-GUE,JPN","DST-S-D","","","MAR-GUE","JPN",17892.3,null,"CERDI"]
[null,"DST-S-D,,,MAR-GUE,KOR","DST-S-D","","","MAR-GUE","KOR",17588.7,null,"CERDI"]
[null,"DST-S-D,,,MAR-GUE,NLD","DST-S-D","","","MAR-GUE","NLD",2354.6799999999998,null,"CERDI"]
[null,"DST-S-D,,,MAR-GUE,USA","DST-S-D","","","MAR-GUE","USA",8558.2999999999993,null,"CERDI"]
[null,"DST-S-D,,,MAR-LAA,CHN","DST-S-D","","","MAR-LAA","CHN",16917.900000000001,null,"CERDI"]
[null,"DST-S-D,,,MAR-LAA,DEU","DST-S-D","","","MAR-LAA","DEU",2668.15,null,"CERDI"]
[null,"DST-S-D,,,MAR-LAA,ESP","DST-S-D","","","MAR-LAA","ESP",38.352499999999999,null,"CERDI"]
[null,"DST-S-D,,,MAR-LAA,FRA","DST-S-D","","","MAR-LAA","FRA",1104.08,null,"CERDI"]
[null,"DST-S-D,,,MAR-LAA,IND","DST-S-D","","","MAR-LAA","IND",9333.25,null,"CERDI"]
[null,"DST-S-D,,,MAR-LAA,JPN","DST-S-D","","","MAR-LAA","JPN",17892.3,null,"CERDI"]
[null,"DST-S-D,,,MAR-LAA,KOR","DST-S-D","","","MAR-LAA","KOR",17588.7,null,"CERDI"]
[null,"DST-S-D,,,MAR-LAA,NLD","DST-S-D","","","MAR-LAA","NLD",2354.6799999999998,null,"CERDI"]
[null,"DST-S-D,,,MAR-LAA,USA","DST-S-D","","","MAR-LAA","USA",8558.2999999999993,null,"CERDI"]
[null,"DST-S-D,,,MAR-LOR,CHN","DST-S-D","","","MAR-LOR","CHN",16917.900000000001,null,"CERDI"]
[null,"DST-S-D,,,MAR-LOR,DEU","DST-S-D","","","MAR-LOR","DEU",2668.15,null,"CERDI"]
[null,"DST-S-D,,,MAR-LOR,ESP","DST-S-D","","","MAR-LOR","ESP",38.352499999999999,null,"CERDI"]
[null,"DST-S-D,,,MAR-LOR,FRA","DST-S-D","","","MAR-LOR","FRA",1104.08,null,"CERDI"]
[null,"DST-S-D,,,MAR-LOR,IND","DST-S-D","","","MAR-LOR","IND",9333.25,null,"CERDI"]
[null,"DST-S-D,,,MAR-LOR,JPN","DST-S-D","","","MAR-LOR","JPN",17892.3,null,"CERDI"]
[null,"DST-S-D,,,MAR-LOR,KOR","DST-S-D","","","MAR-LOR","KOR",17588.7,null,"CERDI"]
[null,"DST-S-D,,,MAR-LOR,NLD","DST-S-D","","","MAR-LOR","NLD",2354.6799999999998,null,"CERDI"]
[null,"DST-S-D,,,MAR-LOR,USA","DST-S-D","","","MAR-LOR","USA",8558.2999999999993,null,"CERDI"]
[null,"DST-S-D,,,MAR-MAR,CHN","DST-S-D","","","MAR-MAR","CHN",16917.900000000001,null,"CERDI"]
[null,"DST-S-D,,,MAR-MAR,DEU","DST-S-D","","","MAR-MAR","DEU",2668.15,null,"CERDI"]
[null,"DST-S-D,,,MAR-MAR,ESP","DST-S-D","","","MAR-MAR","ESP",38.352499999999999,null,"CERDI"]
[null,"DST-S-D,,,MAR-MAR,FRA","DST-S-D","","","MAR-MAR","FRA",1104.08,null,"CERDI"]
[null,"DST-S-D,,,MAR-MAR,IND","DST-S-D","","","MAR-MAR","IND",9333.25,null,"CERDI"]
[null,"DST-S-D,,,MAR-MAR,JPN","DST-S-D","","","MAR-MAR","JPN",17892.3,null,"CERDI"]
[null,"DST-S-D,,,MAR-MAR,KOR","DST-S-D","","","MAR-MAR","KOR",17588.7,null,"CERDI"]
[null,"DST-S-D,,,MAR-MAR,NLD","DST-S-D","","","MAR-MAR","NLD",2354.6799999999998,null,"CERDI"]
[null,"DST-S-D,,,MAR-MAR,USA","DST-S-D","","","MAR-MAR","USA",8558.2999999999993,null,"CERDI"]
[null,"DST-S-D,,,MAR-RAB,CHN","DST-S-D","","","MAR-RAB","CHN",16917.900000000001,null,"CERDI"]
[null,"DST-S-D,,,MAR-RAB,DEU","DST-S-D","","","MAR-RAB","DEU",2668.15,null,"CERDI"]
[null,"DST-S-D,,,MAR-RAB,ESP","DST-S-D","","","MAR-RAB","ESP",38.352499999999999,null,"CERDI"]
[null,"DST-S-D,,,MAR-RAB,FRA","DST-S-D","","","MAR-RAB","FRA",1104.08,null,"CERDI"]
[null,"DST-S-D,,,MAR-RAB,IND","DST-S-D","","","MAR-RAB","IND",9333.25,null,"CERDI"]
[null,"DST-S-D,,,MAR-RAB,JPN","DST-S-D","","","MAR-RAB","JPN",17892.3,null,"CERDI"]
[null,"DST-S-D,,,MAR-RAB,KOR","DST-S-D","","","MAR-RAB","KOR",17588.7,null,"CERDI"]
[null,"DST-S-D,,,MAR-RAB,NLD","DST-S-D","","","MAR-RAB","NLD",2354.6799999999998,null,"CERDI"]
[null,"DST-S-D,,,MAR-RAB,USA","DST-S-D","","","MAR-RAB","USA",8558.2999999999993,null,"CERDI"]
[null,"DST-S-D,,,MAR-SOU,CHN","DST-S-D","","","MAR-SOU","CHN",16917.900000000001,null,"CERDI"]
[null,"DST-S-D,,,MAR-SOU,DEU","DST-S-D","","","MAR-SOU","DEU",2668.15,null,"CERDI"]
[null,"DST-S-D,,,MAR-SOU,ESP","DST-S-D","","","MAR-SOU","ESP",38.352499999999999,null,"CERDI"]
[null,"DST-S-D,,,MAR-SOU,FRA","DST-S-D","","","MAR-SOU","FRA",1104.08,null,"CERDI"]
[null,"DST-S-D,,,MAR-SOU,IND","DST-S-D","","","MAR-SOU","IND",9333.25,null,"CERDI"]
[null,"DST-S-D,,,MAR-SOU,JPN","DST-S-D","","","MAR-SOU","JPN",17892.3,null,"CERDI"]
[null,"DST-S-D,,,MAR-SOU,KOR","DST-S-D","","","MAR-SOU","KOR",17588.7,null,"CERDI"]
[null,"DST-S-D,,,MAR-SOU,NLD","DST-S-D","","","MAR-SOU","NLD",2354.6799999999998,null,"CERDI"]
[null,"DST-S-D,,,MAR-SOU,USA","DST-S-D","","","MAR-SOU","USA",8558.2999999999993,null,"CERDI"]
[null,"DST-S-D,,,MAR-TAN,CHN","DST-S-D","","","MAR-TAN","CHN",16917.900000000001,null,"CERDI"]
[null,"DST-S-D,,,MAR-TAN,DEU","DST-S-D","","","MAR-TAN","DEU",2668.15,null,"CERDI"]
[null,"DST-S-D,,,MAR-TAN,ESP","DST-S-D","","","MAR-TAN","ESP",38.352499999999999,null,"CERDI"]
[null,"DST-S-D,,,MAR-TAN,FRA","DST-S-D","","","MAR-TAN","FRA",1104.08,null,"CERDI"]
[null,"DST-S-D,,,MAR-TAN,IND","DST-S-D","","","MAR-TAN","IND",9333.25,null,"CERDI"]
[null,"DST-S-D,,,MAR-TAN,JPN","DST-S-D","","","MAR-TAN","JPN",17892.3,null,"CERDI"]
[null,"DST-S-D,,,MAR-TAN,KOR","DST-S-D","","","MAR-TAN","KOR",17588.7,null,"CERDI"]
[null,"DST-S-D,,,MAR-TAN,NLD","DST-S-D","","","MAR-TAN","NLD",2354.6799999999998,null,"CERDI"]
[null,"DST-S-D,,,MAR-TAN,USA","DST-S-D","","","MAR-TAN","USA",8558.2999999999993,null,"CERDI"]
[null,"DST-S-D,,,MEX,CHN","DST-S-D","","","MEX","CHN",13223.2,null,"CERDI"]
[null,"DST-S-D,,,MEX,DEU","DST-S-D","","","MEX","DEU",10256.299999999999,null,"CERDI"]
[null,"DST-S-D,,,MEX,ESP","DST-S-D","","","MEX","ESP",10695.5,null,"CERDI"]
[null,"DST-S-D,,,MEX,FRA","DST-S-D","","","MEX","FRA",11766.6,null,"CERDI"]
[null,"DST-S-D,,,MEX,IND","DST-S-D","","","MEX","IND",20448.3,null,"CERDI"]
[null,"DST-S-D,,,MEX,JPN","DST-S-D","","","MEX","JPN",11860.6,null,"CERDI"]
[null,"DST-S-D,,,MEX,KOR","DST-S-D","","","MEX","KOR",12583,null,"CERDI"]
[null,"DST-S-D,,,MEX,NLD","DST-S-D","","","MEX","NLD",9956.94,null,"CERDI"]
[null,"DST-S-D,,,MEX,USA","DST-S-D","","","MEX","USA",1231.58,null,"SEA-DISTANCES.ORG"]
[null,"DST-S-D,,,MRT,CHN","DST-S-D","","","MRT","CHN",19545.900000000001,null,"CERDI"]
[null,"DST-S-D,,,MRT,DEU","DST-S-D","","","MRT","DEU",4171.75,null,"CERDI"]
[null,"DST-S-D,,,MRT,ESP","DST-S-D","","","MRT","ESP",2012.1,null,"CERDI"]
[null,"DST-S-D,,,MRT,FRA","DST-S-D","","","MRT","FRA",3083.36,null,"CERDI"]
[null,"DST-S-D,,,MRT,IND","DST-S-D","","","MRT","IND",11940.3,null,"CERDI"]
[null,"DST-S-D,,,MRT,JPN","DST-S-D","","","MRT","JPN",20452.599999999999,null,"CERDI"]
[null,"DST-S-D,,,MRT,KOR","DST-S-D","","","MRT","KOR",20132,null,"CERDI"]
[null,"DST-S-D,,,MRT,NLD","DST-S-D","","","MRT","NLD",3858.24,null,"CERDI"]
[null,"DST-S-D,,,MRT,USA","DST-S-D","","","MRT","USA",7511.88,null,"CERDI"]
[null,"DST-S-D,,,NAM,CHN","DST-S-D","","","NAM","CHN",16002.4,null,"CERDI"]
[null,"DST-S-D,,,NAM,DEU","DST-S-D","","","NAM","DEU",10723.8,null,"CERDI"]
[null,"DST-S-D,,,NAM,ESP","DST-S-D","","","NAM","ESP",8564.51,null,"CERDI"]
[null,"DST-S-D,,,NAM,FRA","DST-S-D","","","NAM","FRA",9635.7099999999991,null,"CERDI"]
[null,"DST-S-D,,,NAM,IND","DST-S-D","","","NAM","IND",10561.3,null,"CERDI"]
[null,"DST-S-D,,,NAM,JPN","DST-S-D","","","NAM","JPN",16976.900000000001,null,"CERDI"]
[null,"DST-S-D,,,NAM,KOR","DST-S-D","","","NAM","KOR",16673.3,null,"CERDI"]
[null,"DST-S-D,,,NAM,NLD","DST-S-D","","","NAM","NLD",10410.4,null,"CERDI"]
[null,"DST-S-D,,,NAM,USA","DST-S-D","","","NAM","USA",12721.7,null,"CERDI"]
[null,"DST-S-D,,,NOR,CHN","DST-S-D","","","NOR","CHN",21062.6,null,"CERDI"]
[null,"DST-S-D,,,NOR,DEU","DST-S-D","","","NOR","DEU",605.048,null,"CERDI"]
[null,"DST-S-D,,,NOR,ESP","DST-S-D","","","NOR","ESP",2363.15,null,"SEA-DISTANCES.ORG"]
[null,"DST-S-D,,,NOR,FRA","DST-S-D","","","NOR","FRA",1818.66,null,"SEA-DISTANCES.ORG"]
[null,"DST-S-D,,,NOR,IND","DST-S-D","","","NOR","IND",13108.2,null,"CERDI"]
[null,"DST-S-D,,,NOR,JPN","DST-S-D","","","NOR","JPN",21969.200000000001,null,"CERDI"]
[null,"DST-S-D,,,NOR,KOR","DST-S-D","","","NOR","KOR",21648.7,null,"CERDI"]
[null,"DST-S-D,,,NOR,NLD","DST-S-D","","","NOR","NLD",808.45699999999999,null,"CERDI"]
[null,"DST-S-D,,,NOR,USA","DST-S-D","","","NOR","USA",7940.34,null,"CERDI"]
[null,"DST-S-D,,,PER,CHN","DST-S-D","","","PER","CHN",16633.3,null,"CERDI"]
[null,"DST-S-D,,,PER,DEU","DST-S-D","","","PER","DEU",12282.46,null,"SEA-DISTANCES.ORG"]
[null,"DST-S-D,,,PER,ESP","DST-S-D","","","PER","ESP",11517.59,null,"SEA-DISTANCES.ORG"]
[null,"DST-S-D,,,PER,FRA","DST-S-D","","","PER","FRA",10735.1,null,"CERDI"]
[null,"DST-S-D,,,PER,IND","DST-S-D","","","PER","IND",20364.8,null,"CERDI"]
[null,"DST-S-D,,,PER,JPN","DST-S-D","","","PER","JPN",15271,null,"CERDI"]
[null,"DST-S-D,,,PER,KOR","DST-S-D","","","PER","KOR",15993.2,null,"CERDI"]
[null,"DST-S-D,,,PER,NLD","DST-S-D","","","PER","NLD",11445.36,null,"SEA-DISTANCES.ORG"]
[null,"DST-S-D,,,PER,USA","DST-S-D","","","PER","USA",4729.2,null,"CERDI"]
[null,"DST-S-D,,,PRT,CHN","DST-S-D","","","PRT","CHN",17380,null,"CERDI"]
[null,"DST-S-D,,,PRT,DEU","DST-S-D","","","PRT","DEU",2479.8200000000002,null,"SEA-DISTANCES.ORG"]
[null,"DST-S-D,,,PRT,ESP","DST-S-D","","","PRT","ESP",1085.27,null,"SEA-DISTANCES.ORG"]
[null,"DST-S-D,,,PRT,FRA","DST-S-D","","","PRT","FRA",1729.71,null,"CERDI"]
[null,"DST-S-D,,,PRT,IND","DST-S-D","","","PRT","IND",9795.41,null,"CERDI"]
[null,"DST-S-D,,,PRT,JPN","DST-S-D","","","PRT","JPN",18354.400000000001,null,"CERDI"]
[null,"DST-S-D,,,PRT,KOR","DST-S-D","","","PRT","KOR",18050.8,null,"CERDI"]
[null,"DST-S-D,,,PRT,NLD","DST-S-D","","","PRT","NLD",1721.53,null,"CERDI"]
[null,"DST-S-D,,,PRT,USA","DST-S-D","","","PRT","USA",7944.32,null,"CERDI"]
[null,"DST-S-D,,,RUS,CHN","DST-S-D","","","RUS","CHN",2252.4699999999998,null,"CERDI"]
[null,"DST-S-D,,,RUS,DEU","DST-S-D","","","RUS","DEU",6601.17,null,"CERDI"]
[null,"DST-S-D,,,RUS,ESP","DST-S-D","","","RUS","ESP",3900.92,null,"CERDI"]
[null,"DST-S-D,,,RUS,FRA","DST-S-D","","","RUS","FRA",3529.3,null,"CERDI"]
[null,"DST-S-D,,,RUS,IND","DST-S-D","","","RUS","IND",8331.77,null,"CERDI"]
[null,"DST-S-D,,,RUS,JPN","DST-S-D","","","RUS","JPN",2136.6799999999998,null,"CERDI"]
[null,"DST-S-D,,,RUS,KOR","DST-S-D","","","RUS","KOR",1579.54,null,"CERDI"]
[null,"DST-S-D,,,RUS,NLD","DST-S-D","","","RUS","NLD",7921,null,"SEA-DISTANCES.ORG"]
[null,"DST-S-D,,,RUS,USA","DST-S-D","","","RUS","USA",8226.75,null,"CERDI"]
[null,"DST-S-D,,,SAU,CHN","DST-S-D","","","SAU","CHN",12014.2,null,"CERDI"]
[null,"DST-S-D,,,SAU,DEU","DST-S-D","","","SAU","DEU",8624.76,null,"SEA-DISTANCES.ORG"]
[null,"DST-S-D,,,SAU,ESP","DST-S-D","","","SAU","ESP",4279.97,null,"SEA-DISTANCES.ORG"]
[null,"DST-S-D,,,SAU,FRA","DST-S-D","","","SAU","FRA",3364.12,null,"CERDI"]
[null,"DST-S-D,,,SAU,IND","DST-S-D","","","SAU","IND",4376.12,null,"CERDI"]
[null,"DST-S-D,,,SAU,JPN","DST-S-D","","","SAU","JPN",12921.6,null,"CERDI"]
[null,"DST-S-D,,,SAU,KOR","DST-S-D","","","SAU","KOR",12600.8,null,"CERDI"]
[null,"DST-S-D,,,SAU,NLD","DST-S-D","","","SAU","NLD",7402.44,null,"SEA-DISTANCES.ORG"]
[null,"DST-S-D,,,SAU,USA","DST-S-D","","","SAU","USA",14233.2,null,"CERDI"]
[null,"DST-S-D,,,SWE,CHN","DST-S-D","","","SWE","CHN",21022.6,null,"CERDI"]
[null,"DST-S-D,,,SWE,DEU","DST-S-D","","","SWE","DEU",602.49,null,"CERDI"]
[null,"DST-S-D,,,SWE,ESP","DST-S-D","","","SWE","ESP",3104.64,null,"CERDI"]
[null,"DST-S-D,,,SWE,FRA","DST-S-D","","","SWE","FRA",4175.91,null,"CERDI"]
[null,"DST-S-D,,,SWE,IND","DST-S-D","","","SWE","IND",13105.7,null,"CERDI"]
[null,"DST-S-D,,,SWE,JPN","DST-S-D","","","SWE","JPN",21929.3,null,"CERDI"]
[null,"DST-S-D,,,SWE,KOR","DST-S-D","","","SWE","KOR",21608.7,null,"CERDI"]
[null,"DST-S-D,,,SWE,NLD","DST-S-D","","","SWE","NLD",821.91899999999998,null,"CERDI"]
[null,"DST-S-D,,,SWE,USA","DST-S-D","","","SWE","USA",8160.7,null,"CERDI"]
[null,"DST-S-D,,,THA,CHN","DST-S-D","","","THA","CHN",4046.29,null,"CERDI"]
[null,"DST-S-D,,,THA,DEU","DST-S-D","","","THA","DEU",18076.400000000001,null,"CERDI"]
[null,"DST-S-D,,,THA,ESP","DST-S-D","","","THA","ESP",14281.2,null,"CERDI"]
[null,"DST-S-D,,,THA,FRA","DST-S-D","","","THA","FRA",12690.1,null,"CERDI"]
[null,"DST-S-D,,,THA,IND","DST-S-D","","","THA","IND",6056.68,null,"CERDI"]
[null,"DST-S-D,,,THA,JPN","DST-S-D","","","THA","JPN",5539.33,null,"SEA-DISTANCES.ORG"]
[null,"DST-S-D,,,THA,KOR","DST-S-D","","","THA","KOR",4632.9399999999996,null,"CERDI"]
[null,"DST-S-D,,,THA,NLD","DST-S-D","","","THA","NLD",17505.099999999999,null,"CERDI"]
[null,"DST-S-D,,,THA,USA","DST-S-D","","","THA","USA",14109.5,null,"CERDI"]
[null,"DST-S-D,,,TUN,CHN","DST-S-D","","","TUN","CHN",15188.8,null,"CERDI"]
[null,"DST-S-D,,,TUN,DEU","DST-S-D","","","TUN","DEU",4114.37,null,"CERDI"]
[null,"DST-S-D,,,TUN,ESP","DST-S-D","","","TUN","ESP",1414.33,null,"CERDI"]
[null,"DST-S-D,,,TUN,FRA","DST-S-D","","","TUN","FRA",754.12400000000002,null,"CERDI"]
[null,"DST-S-D,,,TUN,IND","DST-S-D","","","TUN","IND",7609.79,null,"CERDI"]
[null,"DST-S-D,,,TUN,JPN","DST-S-D","","","TUN","JPN",16218.3,null,"CERDI"]
[null,"DST-S-D,,,TUN,KOR","DST-S-D","","","TUN","KOR",15930.7,null,"CERDI"]
[null,"DST-S-D,,,TUN,NLD","DST-S-D","","","TUN","NLD",3800.89,null,"CERDI"]
[null,"DST-S-D,,,TUN,USA","DST-S-D","","","TUN","USA",10017.6,null,"CERDI"]
[null,"DST-S-D,,,UKR,CHN","DST-S-D","","","UKR","CHN",15605.7,null,"CERDI"]
[null,"DST-S-D,,,UKR,DEU","DST-S-D","","","UKR","DEU",6650.36,null,"CERDI"]
[null,"DST-S-D,,,UKR,ESP","DST-S-D","","","UKR","ESP",3912.3,null,"CERDI"]
[null,"DST-S-D,,,UKR,FRA","DST-S-D","","","UKR","FRA",3171.22,null,"CERDI"]
[null,"DST-S-D,,,UKR,IND","DST-S-D","","","UKR","IND",8000.83,null,"CERDI"]
[null,"DST-S-D,,,UKR,JPN","DST-S-D","","","UKR","JPN",16513.099999999999,null,"CERDI"]
[null,"DST-S-D,,,UKR,KOR","DST-S-D","","","UKR","KOR",16192.3,null,"CERDI"]
[null,"DST-S-D,,,UKR,NLD","DST-S-D","","","UKR","NLD",6336.87,null,"CERDI"]
[null,"DST-S-D,,,UKR,USA","DST-S-D","","","UKR","USA",12553.3,null,"CERDI"]
[null,"DST-S-D,,,URY,CHN","DST-S-D","","","URY","CHN",21524.1,null,"CERDI"]
[null,"DST-S-D,,,URY,DEU","DST-S-D","","","URY","DEU",12547.2,null,"CERDI"]
[null,"DST-S-D,,,URY,ESP","DST-S-D","","","URY","ESP",10706.9,null,"CERDI"]
[null,"DST-S-D,,,URY,FRA","DST-S-D","","","URY","FRA",11777.9,null,"CERDI"]
[null,"DST-S-D,,,URY,IND","DST-S-D","","","URY","IND",15885.2,null,"CERDI"]
[null,"DST-S-D,,,URY,JPN","DST-S-D","","","URY","JPN",20938.400000000001,null,"CERDI"]
[null,"DST-S-D,,,URY,KOR","DST-S-D","","","URY","KOR",21620.9,null,"CERDI"]
[null,"DST-S-D,,,URY,NLD","DST-S-D","","","URY","NLD",12233.8,null,"CERDI"]
[null,"DST-S-D,,,URY,USA","DST-S-D","","","URY","USA",11454,null,"CERDI"]
[null,"DST-S-D,,,USA,CHN","DST-S-D","","","USA","CHN",10402.299999999999,null,"CERDI"]
[null,"DST-S-D,,,USA,DEU","DST-S-D","","","USA","DEU",8323.27,null,"CERDI"]
[null,"DST-S-D,,,USA,ESP","DST-S-D","","","USA","ESP",8604.8700000000008,null,"CERDI"]
[null,"DST-S-D,,,USA,FRA","DST-S-D","","","USA","FRA",9676.0499999999993,null,"CERDI"]
[null,"DST-S-D,,,USA,IND","DST-S-D","","","USA","IND",18311.5,null,"CERDI"]
[null,"DST-S-D,,,USA,JPN","DST-S-D","","","USA","JPN",8904.7099999999991,null,"CERDI"]
[null,"DST-S-D,,,USA,KOR","DST-S-D","","","USA","KOR",9754.8799999999992,null,"CERDI"]
[null,"DST-S-D,,,USA,NLD","DST-S-D","","","USA","NLD",8053.45,null,"CERDI"]
[null,"DST-S-D,,,VNM,CHN","DST-S-D","","","VNM","CHN",2839.27,null,"CERDI"]
[null,"DST-S-D,,,VNM,DEU","DST-S-D","","","VNM","DEU",18266.27,null,"SEA-DISTANCES.ORG"]
[null,"DST-S-D,,,VNM,ESP","DST-S-D","","","VNM","ESP",17590.400000000001,null,"CERDI"]
[null,"DST-S-D,,,VNM,FRA","DST-S-D","","","VNM","FRA",14534.49,null,"SEA-DISTANCES.ORG"]
[null,"DST-S-D,,,VNM,IND","DST-S-D","","","VNM","IND",3746.62,null,"CERDI"]
[null,"DST-S-D,,,VNM,JPN","DST-S-D","","","VNM","JPN",17066.7,null,"CERDI"]
[null,"DST-S-D,,,VNM,KOR","DST-S-D","","","VNM","KOR",3425.83,null,"CERDI"]
[null,"DST-S-D,,,VNM,NLD","DST-S-D","","","VNM","NLD",13891,null,"CERDI"]
[null,"DST-S-D,,,VNM,USA","DST-S-D","","","VNM","USA",12906.4,null,"CERDI"]
[null,"DST-S-D,,,ZAF,CHN","DST-S-D","","","ZAF","CHN",12852.2,null,"CERDI"]
[null,"DST-S-D,,,ZAF,DEU","DST-S-D","","","ZAF","DEU",11789.832,null,"SEA-DISTANCES.ORG"]
[null,"DST-S-D,,,ZAF,ESP","DST-S-D","","","ZAF","ESP",11662.6,null,"CERDI"]
[null,"DST-S-D,,,ZAF,FRA","DST-S-D","","","ZAF","FRA",10912.4,null,"CERDI"]
[null,"DST-S-D,,,ZAF,IND","DST-S-D","","","ZAF","IND",7432.11,null,"CERDI"]
[null,"DST-S-D,,,ZAF,JPN","DST-S-D","","","ZAF","JPN",13881.4,null,"CERDI"]
[null,"DST-S-D,,,ZAF,KOR","DST-S-D","","","ZAF","KOR",13593.9,null,"CERDI"]
[null,"DST-S-D,,,ZAF,NLD","DST-S-D","","","ZAF","NLD",13501.1,null,"CERDI"]
[null,"DST-S-D,,,ZAF,USA","DST-S-D","","","ZAF","USA",15010.8,null,"CERDI"]
[null,"DST-S-D,,,ZAF-EC,CHN","DST-S-D","","","ZAF-EC","CHN",12852.2,null,"CERDI"]
[null,"DST-S-D,,,ZAF-EC,DEU","DST-S-D","","","ZAF-EC","DEU",11789.832,null,"SEA-DISTANCES.ORG"]
[null,"DST-S-D,,,ZAF-EC,ESP","DST-S-D","","","ZAF-EC","ESP",11662.6,null,"CERDI"]
[null,"DST-S-D,,,ZAF-EC,FRA","DST-S-D","","","ZAF-EC","FRA",10912.4,null,"CERDI"]
[null,"DST-S-D,,,ZAF-EC,IND","DST-S-D","","","ZAF-EC","IND",7432.11,null,"CERDI"]
[null,"DST-S-D,,,ZAF-EC,JPN","DST-S-D","","","ZAF-EC","JPN",13881.4,null,"CERDI"]
[null,"DST-S-D,,,ZAF-EC,KOR","DST-S-D","","","ZAF-EC","KOR",13593.9,null,"CERDI"]
[null,"DST-S-D,,,ZAF-EC,NLD","DST-S-D","","","ZAF-EC","NLD",13501.1,null,"CERDI"]
[null,"DST-S-D,,,ZAF-EC,USA","DST-S-D","","","ZAF-EC","USA",15010.8,null,"CERDI"]
[null,"DST-S-D,,,ZAF-FRS,CHN","DST-S-D","","","ZAF-FRS","CHN",12852.2,null,"CERDI"]
[null,"DST-S-D,,,ZAF-FRS,DEU","DST-S-D","","","ZAF-FRS","DEU",11789.832,null,"SEA-DISTANCES.ORG"]
[null,"DST-S-D,,,ZAF-FRS,ESP","DST-S-D","","","ZAF-FRS","ESP",11662.6,null,"CERDI"]
[null,"DST-S-D,,,ZAF-FRS,FRA","DST-S-D","","","ZAF-FRS","FRA",10912.4,null,"CERDI"]
[null,"DST-S-D,,,ZAF-FRS,IND","DST-S-D","","","ZAF-FRS","IND",7432.11,null,"CERDI"]
[null,"DST-S-D,,,ZAF-FRS,JPN","DST-S-D","","","ZAF-FRS","JPN",13881.4,null,"CERDI"]
[null,"DST-S-D,,,ZAF-FRS,KOR","DST-S-D","","","ZAF-FRS","KOR",13593.9,null,"CERDI"]
[null,"DST-S-D,,,ZAF-FRS,NLD","DST-S-D","","","ZAF-FRS","NLD",13501.1,null,"CERDI"]
[null,"DST-S-D,,,ZAF-FRS,USA","DST-S-D","","","ZAF-FRS","USA",15010.8,null,"CERDI"]
[null,"DST-S-D,,,ZAF-GAU,CHN","DST-S-D","","","ZAF-GAU","CHN",12852.2,null,"CERDI"]
[null,"DST-S-D,,,ZAF-GAU,DEU","DST-S-D","","","ZAF-GAU","DEU",11789.832,null,"SEA-DISTANCES.ORG"]
[null,"DST-S-D,,,ZAF-GAU,ESP","DST-S-D","","","ZAF-GAU","ESP",11662.6,null,"CERDI"]
[null,"DST-S-D,,,ZAF-GAU,FRA","DST-S-D","","","ZAF-GAU","FRA",10912.4,null,"CERDI"]
[null,"DST-S-D,,,ZAF-GAU,IND","DST-S-D","","","ZAF-GAU","IND",7432.11,null,"CERDI"]
[null,"DST-S-D,,,ZAF-GAU,JPN","DST-S-D","","","ZAF-GAU","JPN",13881.4,null,"CERDI"]
[null,"DST-S-D,,,ZAF-GAU,KOR","DST-S-D","","","ZAF-GAU","KOR",13593.9,null,"CERDI"]
[null,"DST-S-D,,,ZAF-GAU,NLD","DST-S-D","","","ZAF-GAU","NLD",13501.1,null,"CERDI"]
[null,"DST-S-D,,,ZAF-GAU,USA","DST-S-D","","","ZAF-GAU","USA",15010.8,null,"CERDI"]
[null,"DST-S-D,,,ZAF-KWA,CHN","DST-S-D","","","ZAF-KWA","CHN",12852.2,null,"CERDI"]
[null,"DST-S-D,,,ZAF-KWA,DEU","DST-S-D","","","ZAF-KWA","DEU",11789.832,null,"SEA-DISTANCES.ORG"]
[null,"DST-S-D,,,ZAF-KWA,ESP","DST-S-D","","","ZAF-KWA","ESP",11662.6,null,"CERDI"]
[null,"DST-S-D,,,ZAF-KWA,FRA","DST-S-D","","","ZAF-KWA","FRA",10912.4,null,"CERDI"]
[null,"DST-S-D,,,ZAF-KWA,IND","DST-S-D","","","ZAF-KWA","IND",7432.11,null,"CERDI"]
[null,"DST-S-D,,,ZAF-KWA,JPN","DST-S-D","","","ZAF-KWA","JPN",13881.4,null,"CERDI"]
[null,"DST-S-D,,,ZAF-KWA,KOR","DST-S-D","","","ZAF-KWA","KOR",13593.9,null,"CERDI"]
[null,"DST-S-D,,,ZAF-KWA,NLD","DST-S-D","","","ZAF-KWA","NLD",13501.1,null,"CERDI"]
[null,"DST-S-D,,,ZAF-KWA,USA","DST-S-D","","","ZAF-KWA","USA",15010.8,null,"CERDI"]
[null,"DST-S-D,,,ZAF-LIM,CHN","DST-S-D","","","ZAF-LIM","CHN",12852.2,null,"CERDI"]
[null,"DST-S-D,,,ZAF-LIM,DEU","DST-S-D","","","ZAF-LIM","DEU",11789.832,null,"SEA-DISTANCES.ORG"]
[null,"DST-S-D,,,ZAF-LIM,ESP","DST-S-D","","","ZAF-LIM","ESP",11662.6,null,"CERDI"]
[null,"DST-S-D,,,ZAF-LIM,FRA","DST-S-D","","","ZAF-LIM","FRA",10912.4,null,"CERDI"]
[null,"DST-S-D,,,ZAF-LIM,IND","DST-S-D","","","ZAF-LIM","IND",7432.11,null,"CERDI"]
[null,"DST-S-D,,,ZAF-LIM,JPN","DST-S-D","","","ZAF-LIM","JPN",13881.4,null,"CERDI"]
[null,"DST-S-D,,,ZAF-LIM,KOR","DST-S-D","","","ZAF-LIM","KOR",13593.9,null,"CERDI"]
[null,"DST-S-D,,,ZAF-LIM,NLD","DST-S-D","","","ZAF-LIM","NLD",13501.1,null,"CERDI"]
[null,"DST-S-D,,,ZAF-LIM,USA","DST-S-D","","","ZAF-LIM","USA",15010.8,null,"CERDI"]
[null,"DST-S-D,,,ZAF-MPU,CHN","DST-S-D","","","ZAF-MPU","CHN",12852.2,null,"CERDI"]
[null,"DST-S-D,,,ZAF-MPU,DEU","DST-S-D","","","ZAF-MPU","DEU",11789.832,null,"SEA-DISTANCES.ORG"]
[null,"DST-S-D,,,ZAF-MPU,ESP","DST-S-D","","","ZAF-MPU","ESP",11662.6,null,"CERDI"]
[null,"DST-S-D,,,ZAF-MPU,FRA","DST-S-D","","","ZAF-MPU","FRA",10912.4,null,"CERDI"]
[null,"DST-S-D,,,ZAF-MPU,IND","DST-S-D","","","ZAF-MPU","IND",7432.11,null,"CERDI"]
[null,"DST-S-D,,,ZAF-MPU,JPN","DST-S-D","","","ZAF-MPU","JPN",13881.4,null,"CERDI"]
[null,"DST-S-D,,,ZAF-MPU,KOR","DST-S-D","","","ZAF-MPU","KOR",13593.9,null,"CERDI"]
[null,"DST-S-D,,,ZAF-MPU,NLD","DST-S-D","","","ZAF-MPU","NLD",13501.1,null,"CERDI"]
[null,"DST-S-D,,,ZAF-MPU,USA","DST-S-D","","","ZAF-MPU","USA",15010.8,null,"CERDI"]
[null,"DST-S-D,,,ZAF-NC,CHN","DST-S-D","","","ZAF-NC","CHN",12852.2,null,"CERDI"]
[null,"DST-S-D,,,ZAF-NC,DEU","DST-S-D","","","ZAF-NC","DEU",11789.832,null,"SEA-DISTANCES.ORG"]
[null,"DST-S-D,,,ZAF-NC,ESP","DST-S-D","","","ZAF-NC","ESP",11662.6,null,"CERDI"]
[null,"DST-S-D,,,ZAF-NC,FRA","DST-S-D","","","ZAF-NC","FRA",10912.4,null,"CERDI"]
[null,"DST-S-D,,,ZAF-NC,IND","DST-S-D","","","ZAF-NC","IND",7432.11,null,"CERDI"]
[null,"DST-S-D,,,ZAF-NC,JPN","DST-S-D","","","ZAF-NC","JPN",13881.4,null,"CERDI"]
[null,"DST-S-D,,,ZAF-NC,KOR","DST-S-D","","","ZAF-NC","KOR",13593.9,null,"CERDI"]
[null,"DST-S-D,,,ZAF-NC,NLD","DST-S-D","","","ZAF-NC","NLD",13501.1,null,"CERDI"]
[null,"DST-S-D,,,ZAF-NC,USA","DST-S-D","","","ZAF-NC","USA",15010.8,null,"CERDI"]
[null,"DST-S-D,,,ZAF-NW,CHN","DST-S-D","","","ZAF-NW","CHN",12852.2,null,"CERDI"]
[null,"DST-S-D,,,ZAF-NW,DEU","DST-S-D","","","ZAF-NW","DEU",11789.832,null,"SEA-DISTANCES.ORG"]
[null,"DST-S-D,,,ZAF-NW,ESP","DST-S-D","","","ZAF-NW","ESP",11662.6,null,"CERDI"]
[null,"DST-S-D,,,ZAF-NW,FRA","DST-S-D","","","ZAF-NW","FRA",10912.4,null,"CERDI"]
[null,"DST-S-D,,,ZAF-NW,IND","DST-S-D","","","ZAF-NW","IND",7432.11,null,"CERDI"]
[null,"DST-S-D,,,ZAF-NW,JPN","DST-S-D","","","ZAF-NW","JPN",13881.4,null,"CERDI"]
[null,"DST-S-D,,,ZAF-NW,KOR","DST-S-D","","","ZAF-NW","KOR",13593.9,null,"CERDI"]
[null,"DST-S-D,,,ZAF-NW,NLD","DST-S-D","","","ZAF-NW","NLD",13501.1,null,"CERDI"]
[null,"DST-S-D,,,ZAF-NW,USA","DST-S-D","","","ZAF-NW","USA",15010.8,null,"CERDI"]
[null,"DST-S-D,,,ZAF-WC,CHN","DST-S-D","","","ZAF-WC","CHN",12852.2,null,"CERDI"]
[null,"DST-S-D,,,ZAF-WC,DEU","DST-S-D","","","ZAF-WC","DEU",11789.832,null,"SEA-DISTANCES.ORG"]
[null,"DST-S-D,,,ZAF-WC,ESP","DST-S-D","","","ZAF-WC","ESP",11662.6,null,"CERDI"]
[null,"DST-S-D,,,ZAF-WC,FRA","DST-S-D","","","ZAF-WC","FRA",10912.4,null,"CERDI"]
[null,"DST-S-D,,,ZAF-WC,IND","DST-S-D","","","ZAF-WC","IND",7432.11,null,"CERDI"]
[null,"DST-S-D,,,ZAF-WC,JPN","DST-S-D","","","ZAF-WC","JPN",13881.4,null,"CERDI"]
[null,"DST-S-D,,,ZAF-WC,KOR","DST-S-D","","","ZAF-WC","KOR",13593.9,null,"CERDI"]
[null,"DST-S-D,,,ZAF-WC,NLD","DST-S-D","","","ZAF-WC","NLD",13501.1,null,"CERDI"]
[null,"DST-S-D,,,ZAF-WC,USA","DST-S-D","","","ZAF-WC","USA",15010.8,null,"CERDI"]
[null,"DST-S-DP,,,ARE,CHN","DST-S-DP","","","ARE","CHN",4500,"km","Research Susanne Krieger"]
[null,"DST-S-DP,,,ARE,DEU","DST-S-DP","","","ARE","DEU",5500,"km","Research Susanne Krieger"]
[null,"DST-S-DP,,,ARE,ESP","DST-S-DP","","","ARE","ESP",6000,"km","Research Susanne Krieger"]
[null,"DST-S-DP,,,ARE,FRA","DST-S-DP","","","ARE","FRA",6000,"km","Research Susanne Krieger"]
[null,"DST-S-DP,,,ARE,IND","DST-S-DP","","","ARE","IND",2000,"km","Research Susanne Krieger"]
[null,"DST-S-DP,,,ARE,NLD","DST-S-DP","","","ARE","NLD",6000,"km","Research Susanne Krieger"]
[null,"DST-S-DP,,,CHN,IND","DST-S-DP","","","CHN","IND",3500,"km","Research Susanne Krieger"]
[null,"DST-S-DP,,,CHN,JPN","DST-S-DP","","","CHN","JPN",3500,"km","Research Susanne Krieger"]
[null,"DST-S-DP,,,CHN,KOR","DST-S-DP","","","CHN","KOR",2000,"km","Research Susanne Krieger"]
[null,"DST-S-DP,,,COL,USA","DST-S-DP","","","COL","USA",4500,"km","Research Susanne Krieger"]
[null,"DST-S-DP,,,CRI,USA","DST-S-DP","","","CRI","USA",3500,"km","Research Susanne Krieger"]
[null,"DST-S-DP,,,DNK,DEU","DST-S-DP","","","DNK","DEU",500,"km","Research Susanne Krieger"]
[null,"DST-S-DP,,,DNK,ESP","DST-S-DP","","","DNK","ESP",2000,"km","Research Susanne Krieger"]
[null,"DST-S-DP,,,DNK,FRA","DST-S-DP","","","DNK","FRA",1000,"km","Research Susanne Krieger"]
[null,"DST-S-DP,,,DNK,NLD","DST-S-DP","","","DNK","NLD",500,"km","Research Susanne Krieger"]
[null,"DST-S-DP,,,DZA,DEU","DST-S-DP","","","DZA","DEU",3000,"km","Research Susanne Krieger"]
[null,"DST-S-DP,,,DZA,ESP","DST-S-DP","","","DZA","ESP",1000,"km","Research Susanne Krieger"]
[null,"DST-S-DP,,,DZA,FRA","DST-S-DP","","","DZA","FRA",2000,"km","Research Susanne Krieger"]
[null,"DST-S-DP,,,DZA,NLD","DST-S-DP","","","DZA","NLD",3000,"km","Research Susanne Krieger"]
[null,"DST-S-DP,,,EGY,DEU","DST-S-DP","","","EGY","DEU",5000,"km","Research Susanne Krieger"]
[null,"DST-S-DP,,,EGY,ESP","DST-S-DP","","","EGY","ESP",4500,"km","Research Susanne Krieger"]
[null,"DST-S-DP,,,EGY,FRA","DST-S-DP","","","EGY","FRA",4000,"km","Research Susanne Krieger"]
[null,"DST-S-DP,,,EGY,IND","DST-S-DP","","","EGY","IND",5000,"km","Research Susanne Krieger"]
[null,"DST-S-DP,,,EGY,NLD","DST-S-DP","","","EGY","NLD",5000,"km","Research Susanne Krieger"]
[null,"DST-S-DP,,,ESP,DEU","DST-S-DP","","","ESP","DEU",1500,"km","Research Susanne Krieger"]
[null,"DST-S-DP,,,ESP,FRA","DST-S-DP","","","ESP","FRA",100,"km","Research Susanne Krieger"]
[null,"DST-S-DP,,,ESP,NLD","DST-S-DP","","","ESP","NLD",1500,"km","Research Susanne Krieger"]
[null,"DST-S-DP,,,IDN,CHN","DST-S-DP","","","IDN","CHN",4000,"km","Research Susanne Krieger"]
[null,"DST-S-DP,,,IDN,IND","DST-S-DP","","","IDN","IND",5000,"km","Research Susanne Krieger"]
[null,"DST-S-DP,,,IDN,JPN","DST-S-DP","","","IDN","JPN",5500,"km","Research Susanne Krieger"]
[null,"DST-S-DP,,,IDN,KOR","DST-S-DP","","","IDN","KOR",5500,"km","Research Susanne Krieger"]
[null,"DST-S-DP,,,IND,CHN","DST-S-DP","","","IND","CHN",3000,"km","Research Susanne Krieger"]
[null,"DST-S-DP,,,JOR,DEU","DST-S-DP","","","JOR","DEU",3500,"km","Research Susanne Krieger"]
[null,"DST-S-DP,,,JOR,ESP","DST-S-DP","","","JOR","ESP",4000,"km","Research Susanne Krieger"]
[null,"DST-S-DP,,,JOR,FRA","DST-S-DP","","","JOR","FRA",4000,"km","Research Susanne Krieger"]
[null,"DST-S-DP,,,JOR,IND","DST-S-DP","","","JOR","IND",4500,"km","Research Susanne Krieger"]
[null,"DST-S-DP,,,JOR,NLD","DST-S-DP","","","JOR","NLD",4000,"km","Research Susanne Krieger"]
[null,"DST-S-DP,,,KAZ,CHN","DST-S-DP","","","KAZ","CHN",1500,"km","Research Susanne Krieger"]
[null,"DST-S-DP,,,KAZ,DEU","DST-S-DP","","","KAZ","DEU",3500,"km","Research Susanne Krieger"]
[null,"DST-S-DP,,,KAZ,ESP","DST-S-DP","","","KAZ","ESP",5000,"km","Research Susanne Krieger"]
[null,"DST-S-DP,,,KAZ,FRA","DST-S-DP","","","KAZ","FRA",4000,"km","Research Susanne Krieger"]
[null,"DST-S-DP,,,KAZ,IND","DST-S-DP","","","KAZ","IND",3000,"km","Research Susanne Krieger"]
[null,"DST-S-DP,,,KAZ,NLD","DST-S-DP","","","KAZ","NLD",4000,"km","Research Susanne Krieger"]
[null,"DST-S-DP,,,KEN,IND","DST-S-DP","","","KEN","IND",5000,"km","Research Susanne Krieger"]
[null,"DST-S-DP,,,MAR,DEU","DST-S-DP","","","MAR","DEU",2500,"km","Research Susanne Krieger"]
[null,"DST-S-DP,,,MAR,ESP","DST-S-DP","","","MAR","ESP",250,"km","Research Susanne Krieger"]
[null,"DST-S-DP,,,MAR,FRA","DST-S-DP","","","MAR","FRA",2000,"km","Research Susanne Krieger"]
[null,"DST-S-DP,,,MAR,NLD","DST-S-DP","","","MAR","NLD",2500,"km","Research Susanne Krieger"]
[null,"DST-S-DP,,,MAR-BEN,DEU","DST-S-DP","","","MAR-BEN","DEU",2500,"km","Research Susanne Krieger"]
[null,"DST-S-DP,,,MAR-BEN,ESP","DST-S-DP","","","MAR-BEN","ESP",250,"km","Research Susanne Krieger"]
[null,"DST-S-DP,,,MAR-BEN,FRA","DST-S-DP","","","MAR-BEN","FRA",2000,"km","Research Susanne Krieger"]
[null,"DST-S-DP,,,MAR-BEN,NLD","DST-S-DP","","","MAR-BEN","NLD",2500,"km","Research Susanne Krieger"]
[null,"DST-S-DP,,,MAR-CAS,DEU","DST-S-DP","","","MAR-CAS","DEU",2500,"km","Research Susanne Krieger"]
[null,"DST-S-DP,,,MAR-CAS,ESP","DST-S-DP","","","MAR-CAS","ESP",250,"km","Research Susanne Krieger"]
[null,"DST-S-DP,,,MAR-CAS,FRA","DST-S-DP","","","MAR-CAS","FRA",2000,"km","Research Susanne Krieger"]
[null,"DST-S-DP,,,MAR-CAS,NLD","DST-S-DP","","","MAR-CAS","NLD",2500,"km","Research Susanne Krieger"]
[null,"DST-S-DP,,,MAR-DAK,DEU","DST-S-DP","","","MAR-DAK","DEU",2500,"km","Research Susanne Krieger"]
[null,"DST-S-DP,,,MAR-DAK,ESP","DST-S-DP","","","MAR-DAK","ESP",250,"km","Research Susanne Krieger"]
[null,"DST-S-DP,,,MAR-DAK,FRA","DST-S-DP","","","MAR-DAK","FRA",2000,"km","Research Susanne Krieger"]
[null,"DST-S-DP,,,MAR-DAK,NLD","DST-S-DP","","","MAR-DAK","NLD",2500,"km","Research Susanne Krieger"]
[null,"DST-S-DP,,,MAR-DRA,DEU","DST-S-DP","","","MAR-DRA","DEU",2500,"km","Research Susanne Krieger"]
[null,"DST-S-DP,,,MAR-DRA,ESP","DST-S-DP","","","MAR-DRA","ESP",250,"km","Research Susanne Krieger"]
[null,"DST-S-DP,,,MAR-DRA,FRA","DST-S-DP","","","MAR-DRA","FRA",2000,"km","Research Susanne Krieger"]
[null,"DST-S-DP,,,MAR-DRA,NLD","DST-S-DP","","","MAR-DRA","NLD",2500,"km","Research Susanne Krieger"]
[null,"DST-S-DP,,,MAR-FES,DEU","DST-S-DP","","","MAR-FES","DEU",2500,"km","Research Susanne Krieger"]
[null,"DST-S-DP,,,MAR-FES,ESP","DST-S-DP","","","MAR-FES","ESP",250,"km","Research Susanne Krieger"]
[null,"DST-S-DP,,,MAR-FES,FRA","DST-S-DP","","","MAR-FES","FRA",2000,"km","Research Susanne Krieger"]
[null,"DST-S-DP,,,MAR-FES,NLD","DST-S-DP","","","MAR-FES","NLD",2500,"km","Research Susanne Krieger"]
[null,"DST-S-DP,,,MAR-GUE,DEU","DST-S-DP","","","MAR-GUE","DEU",2500,"km","Research Susanne Krieger"]
[null,"DST-S-DP,,,MAR-GUE,ESP","DST-S-DP","","","MAR-GUE","ESP",250,"km","Research Susanne Krieger"]
[null,"DST-S-DP,,,MAR-GUE,FRA","DST-S-DP","","","MAR-GUE","FRA",2000,"km","Research Susanne Krieger"]
[null,"DST-S-DP,,,MAR-GUE,NLD","DST-S-DP","","","MAR-GUE","NLD",2500,"km","Research Susanne Krieger"]
[null,"DST-S-DP,,,MAR-LAA,DEU","DST-S-DP","","","MAR-LAA","DEU",2500,"km","Research Susanne Krieger"]
[null,"DST-S-DP,,,MAR-LAA,ESP","DST-S-DP","","","MAR-LAA","ESP",250,"km","Research Susanne Krieger"]
[null,"DST-S-DP,,,MAR-LAA,FRA","DST-S-DP","","","MAR-LAA","FRA",2000,"km","Research Susanne Krieger"]
[null,"DST-S-DP,,,MAR-LAA,NLD","DST-S-DP","","","MAR-LAA","NLD",2500,"km","Research Susanne Krieger"]
[null,"DST-S-DP,,,MAR-LOR,DEU","DST-S-DP","","","MAR-LOR","DEU",2500,"km","Research Susanne Krieger"]
[null,"DST-S-DP,,,MAR-LOR,ESP","DST-S-DP","","","MAR-LOR","ESP",250,"km","Research Susanne Krieger"]
[null,"DST-S-DP,,,MAR-LOR,FRA","DST-S-DP","","","MAR-LOR","FRA",2000,"km","Research Susanne Krieger"]
[null,"DST-S-DP,,,MAR-LOR,NLD","DST-S-DP","","","MAR-LOR","NLD",2500,"km","Research Susanne Krieger"]
[null,"DST-S-DP,,,MAR-MAR,DEU","DST-S-DP","","","MAR-MAR","DEU",2500,"km","Research Susanne Krieger"]
[null,"DST-S-DP,,,MAR-MAR,ESP","DST-S-DP","","","MAR-MAR","ESP",250,"km","Research Susanne Krieger"]
[null,"DST-S-DP,,,MAR-MAR,FRA","DST-S-DP","","","MAR-MAR","FRA",2000,"km","Research Susanne Krieger"]
[null,"DST-S-DP,,,MAR-MAR,NLD","DST-S-DP","","","MAR-MAR","NLD",2500,"km","Research Susanne Krieger"]
[null,"DST-S-DP,,,MAR-RAB,DEU","DST-S-DP","","","MAR-RAB","DEU",2500,"km","Research Susanne Krieger"]
[null,"DST-S-DP,,,MAR-RAB,ESP","DST-S-DP","","","MAR-RAB","ESP",250,"km","Research Susanne Krieger"]
[null,"DST-S-DP,,,MAR-RAB,FRA","DST-S-DP","","","MAR-RAB","FRA",2000,"km","Research Susanne Krieger"]
[null,"DST-S-DP,,,MAR-RAB,NLD","DST-S-DP","","","MAR-RAB","NLD",2500,"km","Research Susanne Krieger"]
[null,"DST-S-DP,,,MAR-SOU,DEU","DST-S-DP","","","MAR-SOU","DEU",2500,"km","Research Susanne Krieger"]
[null,"DST-S-DP,,,MAR-SOU,ESP","DST-S-DP","","","MAR-SOU","ESP",250,"km","Research Susanne Krieger"]
[null,"DST-S-DP,,,MAR-SOU,FRA","DST-S-DP","","","MAR-SOU","FRA",2000,"km","Research Susanne Krieger"]
[null,"DST-S-DP,,,MAR-SOU,NLD","DST-S-DP","","","MAR-SOU","NLD",2500,"km","Research Susanne Krieger"]
[null,"DST-S-DP,,,MAR-TAN,DEU","DST-S-DP","","","MAR-TAN","DEU",2500,"km","Research Susanne Krieger"]
[null,"DST-S-DP,,,MAR-TAN,ESP","DST-S-DP","","","MAR-TAN","ESP",250,"km","Research Susanne Krieger"]
[null,"DST-S-DP,,,MAR-TAN,FRA","DST-S-DP","","","MAR-TAN","FRA",2000,"km","Research Susanne Krieger"]
[null,"DST-S-DP,,,MAR-TAN,NLD","DST-S-DP","","","MAR-TAN","NLD",2500,"km","Research Susanne Krieger"]
[null,"DST-S-DP,,,MEX,USA","DST-S-DP","","","MEX","USA",500,"km","Research Susanne Krieger"]
[null,"DST-S-DP,,,MRT,DEU","DST-S-DP","","","MRT","DEU",5000,"km","Research Susanne Krieger"]
[null,"DST-S-DP,,,MRT,ESP","DST-S-DP","","","MRT","ESP",3000,"km","Research Susanne Krieger"]
[null,"DST-S-DP,,,MRT,FRA","DST-S-DP","","","MRT","FRA",4000,"km","Research Susanne Krieger"]
[null,"DST-S-DP,,,MRT,NLD","DST-S-DP","","","MRT","NLD",5000,"km","Research Susanne Krieger"]
[null,"DST-S-DP,,,NOR,DEU","DST-S-DP","","","NOR","DEU",500,"km","Research Susanne Krieger"]
[null,"DST-S-DP,,,NOR,ESP","DST-S-DP","","","NOR","ESP",2000,"km","Research Susanne Krieger"]
[null,"DST-S-DP,,,NOR,FRA","DST-S-DP","","","NOR","FRA",1000,"km","Research Susanne Krieger"]
[null,"DST-S-DP,,,NOR,NLD","DST-S-DP","","","NOR","NLD",1000,"km","Research Susanne Krieger"]
[null,"DST-S-DP,,,PER,USA","DST-S-DP","","","PER","USA",5500,"km","Research Susanne Krieger"]
[null,"DST-S-DP,,,PRT,DEU","DST-S-DP","","","PRT","DEU",2000,"km","Research Susanne Krieger"]
[null,"DST-S-DP,,,PRT,ESP","DST-S-DP","","","PRT","ESP",250,"km","Research Susanne Krieger"]
[null,"DST-S-DP,,,PRT,FRA","DST-S-DP","","","PRT","FRA",1000,"km","Research Susanne Krieger"]
[null,"DST-S-DP,,,PRT,NLD","DST-S-DP","","","PRT","NLD",2000,"km","Research Susanne Krieger"]
[null,"DST-S-DP,,,RUS,CHN","DST-S-DP","","","RUS","CHN",4000,"km","Research Susanne Krieger"]
[null,"DST-S-DP,,,RUS,DEU","DST-S-DP","","","RUS","DEU",1000,"km","Research Susanne Krieger"]
[null,"DST-S-DP,,,RUS,ESP","DST-S-DP","","","RUS","ESP",5000,"km","Research Susanne Krieger"]
[null,"DST-S-DP,,,RUS,FRA","DST-S-DP","","","RUS","FRA",4000,"km","Research Susanne Krieger"]
[null,"DST-S-DP,,,RUS,IND","DST-S-DP","","","RUS","IND",4000,"km","Research Susanne Krieger"]
[null,"DST-S-DP,,,RUS,JPN","DST-S-DP","","","RUS","JPN",4000,"km","Research Susanne Krieger"]
[null,"DST-S-DP,,,RUS,KOR","DST-S-DP","","","RUS","KOR",3000,"km","Research Susanne Krieger"]
[null,"DST-S-DP,,,RUS,NLD","DST-S-DP","","","RUS","NLD",4000,"km","Research Susanne Krieger"]
[null,"DST-S-DP,,,SAU,DEU","DST-S-DP","","","SAU","DEU",4500,"km","Research Susanne Krieger"]
[null,"DST-S-DP,,,SAU,ESP","DST-S-DP","","","SAU","ESP",5000,"km","Research Susanne Krieger"]
[null,"DST-S-DP,,,SAU,FRA","DST-S-DP","","","SAU","FRA",5000,"km","Research Susanne Krieger"]
[null,"DST-S-DP,,,SAU,IND","DST-S-DP","","","SAU","IND",3500,"km","Research Susanne Krieger"]
[null,"DST-S-DP,,,SAU,NLD","DST-S-DP","","","SAU","NLD",5000,"km","Research Susanne Krieger"]
[null,"DST-S-DP,,,SWE,DEU","DST-S-DP","","","SWE","DEU",1000,"km","Research Susanne Krieger"]
[null,"DST-S-DP,,,SWE,ESP","DST-S-DP","","","SWE","ESP",3000,"km","Research Susanne Krieger"]
[null,"DST-S-DP,,,SWE,FRA","DST-S-DP","","","SWE","FRA",2000,"km","Research Susanne Krieger"]
[null,"DST-S-DP,,,SWE,NLD","DST-S-DP","","","SWE","NLD",2000,"km","Research Susanne Krieger"]
[null,"DST-S-DP,,,THA,CHN","DST-S-DP","","","THA","CHN",1500,"km","Research Susanne Krieger"]
[null,"DST-S-DP,,,THA,IND","DST-S-DP","","","THA","IND",2500,"km","Research Susanne Krieger"]
[null,"DST-S-DP,,,THA,JPN","DST-S-DP","","","THA","JPN",5000,"km","Research Susanne Krieger"]
[null,"DST-S-DP,,,THA,KOR","DST-S-DP","","","THA","KOR",5000,"km","Research Susanne Krieger"]
[null,"DST-S-DP,,,TUN,DEU","DST-S-DP","","","TUN","DEU",2000,"km","Research Susanne Krieger"]
[null,"DST-S-DP,,,TUN,ESP","DST-S-DP","","","TUN","ESP",1500,"km","Research Susanne Krieger"]
[null,"DST-S-DP,,,TUN,FRA","DST-S-DP","","","TUN","FRA",1000,"km","Research Susanne Krieger"]
[null,"DST-S-DP,,,TUN,NLD","DST-S-DP","","","TUN","NLD",2500,"km","Research Susanne Krieger"]
[null,"DST-S-DP,,,UKR,DEU","DST-S-DP","","","UKR","DEU",1500,"km","Research Susanne Krieger"]
[null,"DST-S-DP,,,UKR,ESP","DST-S-DP","","","UKR","ESP",3000,"km","Research Susanne Krieger"]
[null,"DST-S-DP,,,UKR,FRA","DST-S-DP","","","UKR","FRA",2000,"km","Research Susanne Krieger"]
[null,"DST-S-DP,,,UKR,NLD","DST-S-DP","","","UKR","NLD",2000,"km","Research Susanne Krieger"]
[null,"DST-S-DP,,,VNM,CHN","DST-S-DP","","","VNM","CHN",1000,"km","Research Susanne Krieger"]
[null,"DST-S-DP,,,VNM,IND","DST-S-DP","","","VNM","IND",3500,"km","Research Susanne Krieger"]
[null,"DST-S-DP,,,VNM,JPN","DST-S-DP","","","VNM","JPN",4000,"km","Research Susanne Krieger"]
[null,"DST-S-DP,,,VNM,KOR","DST-S-DP","","","VNM","KOR",5000,"km","Research Susanne Krieger"]
[null,"EFF,AEL-EL,,,","EFF","AEL-EL","","","",0.69,"various (output per main input)"]
[null,"EFF,ATR,,,","EFF","ATR","","","",0.79991999999999996,"various (output per main input)","Oni et al. 2022"]
[null,"EFF,CH3OHSYN,,,","EFF","CH3OHSYN","","","",0.80300000000000005,"various (output per main input)","Frontier Economics 2021"]
[null,"EFF,CH4-RGAS,,,","EFF","CH4-RGAS","","","",0.98,"various (output per main input)","Pospíšil et al. 2019"]
[null,"EFF,CH4SYN,,,","EFF","CH4SYN","","","",0.83,"various (output per main input)","Öko-Institut 2020"]
[null,"EFF,DESAL,,,","EFF","DESAL","","","",1,"various (output per main input)"]
[null,"EFF,DRI,,,","EFF","DRI","","","",0.35759897828863341,"kg DRI (s)/kwhh2","Agora Industry Transformation 2021"]
[null,"EFF,EFUELSYN,,,","EFF","EFUELSYN","","","",0.73,"various (output per main input)","Frontier Economics 2021"]
[null,"EFF,H2-LIQ,,,","EFF","H2-LIQ","","","",1,"various (output per main input)"]
[null,"EFF,H2-RGAS,,,","EFF","H2-RGAS","","","",0.99519519519519517,"various (output per main input)","DNV GL 2020"]
[null,"EFF,LOHC-REC,,,","EFF","LOHC-REC","","","",0.9,"various (output per main input)","DNV GL 2020"]
[null,"EFF,NH3-REC,,,","EFF","NH3-REC","","","",0.75169491525423726,"various (output per main input)","NGN; Equinor 2018"]
[null,"EFF,NH3SYN,,,","EFF","NH3SYN","","","",0.81899999999999995,"various (output per main input)","Frotier Economics 2021"]
[null,"EFF,PEM-EL,,,","EFF","PEM-EL","","","",0.67,"various (output per main input)"]
[null,"EFF,REGASATR,,,","EFF","REGASATR","","","",0.77991999999999995,"various (output per main input)","combined values"]
[null,"EFF,SOEC-EL,,,","EFF","SOEC-EL","","","",0.73,"various (output per main input)"]
[null,"FLH,AEL-EL,,,","FLH","AEL-EL","","","",3861.9141914191418,"h","average of PTX Atlas"]
[null,"FLH,DRI,,,","FLH","DRI","","","",7884,"0"]
[null,"FLH,NH3SYN,,,","FLH","NH3SYN","","","",8000,"h","Fasihi et al. 2021"]
[null,"FLH,PEM-EL,,,","FLH","PEM-EL","","","",3861.9141914191418,"h","average of PTX Atlas"]
[null,"FLH,PV-FIX,,ARE,","FLH","PV-FIX","","ARE","",1662,"h"]
[null,"FLH,PV-FIX,,ARG,","FLH","PV-FIX","","ARG","",1494,"h"]
[null,"FLH,PV-FIX,,ARG-BA,","FLH","PV-FIX","","ARG-BA","",1501.409990284945,"h"]
[null,"FLH,PV-FIX,,ARG-CAT,","FLH","PV-FIX","","ARG-CAT","",2184.2849520000136,"h"]
[null,"FLH,PV-FIX,,ARG-CBA,","FLH","PV-FIX","","ARG-CBA","",1472.2464967200012,"h"]
[null,"FLH,PV-FIX,,ARG-CHA,","FLH","PV-FIX","","ARG-CHA","",1462.293405359997,"h"]
[null,"FLH,PV-FIX,,ARG-CHU,","FLH","PV-FIX","","ARG-CHU","",1565.6552791200011,"h"]
[null,"FLH,PV-FIX,,ARG-COR,","FLH","PV-FIX","","ARG-COR","",1411.9226517600005,"h"]
[null,"FLH,PV-FIX,,ARG-CRB,","FLH","PV-FIX","","ARG-CRB","",1571.8333939199993,"h"]
[null,"FLH,PV-FIX,,ARG-CRU,","FLH","PV-FIX","","ARG-CRU","",1419.2559755999985,"h"]
[null,"FLH,PV-FIX,,ARG-EST,","FLH","PV-FIX","","ARG-EST","",1553.4726681600023,"h"]
[null,"FLH,PV-FIX,,ARG-FOR,","FLH","PV-FIX","","ARG-FOR","",1449.92262888,"h"]
[null,"FLH,PV-FIX,,ARG-FUE,","FLH","PV-FIX","","ARG-FUE","",919.59809255999858,"h"]
[null,"FLH,PV-FIX,,ARG-JUJ,","FLH","PV-FIX","","ARG-JUJ","",2038.9844970000051,"h"]
[null,"FLH,PV-FIX,,ARG-LAR,","FLH","PV-FIX","","ARG-LAR","",1927.5699347999985,"h"]
[null,"FLH,PV-FIX,,ARG-MEN,","FLH","PV-FIX","","ARG-MEN","",1738.9096295999984,"h"]
[null,"FLH,PV-FIX,,ARG-MIS,","FLH","PV-FIX","","ARG-MIS","",1441.0558828799994,"h"]
[null,"FLH,PV-FIX,,ARG-NEG,","FLH","PV-FIX","","ARG-NEG","",1598.6654748000003,"h"]
[null,"FLH,PV-FIX,,ARG-NEU,","FLH","PV-FIX","","ARG-NEU","",1672.0413458399996,"h"]
[null,"FLH,PV-FIX,,ARG-PAM,","FLH","PV-FIX","","ARG-PAM","",1585.1219047199993,"h"]
[null,"FLH,PV-FIX,,ARG-RIO,","FLH","PV-FIX","","ARG-RIO","",1444.5405770399989,"h"]
[null,"FLH,PV-FIX,,ARG-SAF,","FLH","PV-FIX","","ARG-SAF","",1463.6960647199994,"h"]
[null,"FLH,PV-FIX,,ARG-SAJ,","FLH","PV-FIX","","ARG-SAJ","",1798.3159226999983,"h"]
[null,"FLH,PV-FIX,,ARG-SAL,","FLH","PV-FIX","","ARG-SAL","",1674.9613511999978,"h"]
[null,"FLH,PV-FIX,,ARG-SAT,","FLH","PV-FIX","","ARG-SAT","",1564.1549919000008,"h"]
[null,"FLH,PV-FIX,,ARG-TUC,","FLH","PV-FIX","","ARG-TUC","",1670.31158688,"h"]
[null,"FLH,PV-FIX,,AUS,","FLH","PV-FIX","","AUS","",1557,"h"]
[null,"FLH,PV-FIX,,BRA,","FLH","PV-FIX","","BRA","",1346,"h"]
[null,"FLH,PV-FIX,,CHL,","FLH","PV-FIX","","CHL","",1939,"h"]
[null,"FLH,PV-FIX,,CHN,","FLH","PV-FIX","","CHN","",1845.4554144000026,"h"]
[null,"FLH,PV-FIX,,COL,","FLH","PV-FIX","","COL","",1300,"h"]
[null,"FLH,PV-FIX,,CRI,","FLH","PV-FIX","","CRI","",1336.1040323999978,"h"]
[null,"FLH,PV-FIX,,DNK,","FLH","PV-FIX","","DNK","",957.75962760000073,"h"]
[null,"FLH,PV-FIX,,DZA,","FLH","PV-FIX","","DZA","",1699,"h"]
[null,"FLH,PV-FIX,,EGY,","FLH","PV-FIX","","EGY","",1744,"h"]
[null,"FLH,PV-FIX,,ESP,","FLH","PV-FIX","","ESP","",1567.2650796000021,"h"]
[null,"FLH,PV-FIX,,IDN,","FLH","PV-FIX","","IDN","",1506,"h"]
[null,"FLH,PV-FIX,,IND,","FLH","PV-FIX","","IND","",1562,"h"]
[null,"FLH,PV-FIX,,JOR,","FLH","PV-FIX","","JOR","",1792,"h"]
[null,"FLH,PV-FIX,,KAZ,","FLH","PV-FIX","","KAZ","",1425,"h"]
[null,"FLH,PV-FIX,,KEN,","FLH","PV-FIX","","KEN","",1418,"h"]
[null,"FLH,PV-FIX,,MAR,","FLH","PV-FIX","","MAR","",1631,"h"]
[null,"FLH,PV-FIX,,MAR-BEN,","FLH","PV-FIX","","MAR-BEN","",1745.3384668799999,"h"]
[null,"FLH,PV-FIX,,MAR-CAS,","FLH","PV-FIX","","MAR-CAS","",1665.7276233599982,"h"]
[null,"FLH,PV-FIX,,MAR-DAK,","FLH","PV-FIX","","MAR-DAK","",1728.1917287999981,"h"]
[null,"FLH,PV-FIX,,MAR-DRA,","FLH","PV-FIX","","MAR-DRA","",1808.0709587999988,"h"]
[null,"FLH,PV-FIX,,MAR-FES,","FLH","PV-FIX","","MAR-FES","",1678.0894264800027,"h"]
[null,"FLH,PV-FIX,,MAR-GUE,","FLH","PV-FIX","","MAR-GUE","",1758.0457144800002,"h"]
[null,"FLH,PV-FIX,,MAR-LAA,","FLH","PV-FIX","","MAR-LAA","",1742.770432080001,"h"]
[null,"FLH,PV-FIX,,MAR-LOR,","FLH","PV-FIX","","MAR-LOR","",1709.8854897600017,"h"]
[null,"FLH,PV-FIX,,MAR-MAR,","FLH","PV-FIX","","MAR-MAR","",1734.1491045599982,"h"]
[null,"FLH,PV-FIX,,MAR-RAB,","FLH","PV-FIX","","MAR-RAB","",1620.7182007199983,"h"]
[null,"FLH,PV-FIX,,MAR-SOU,","FLH","PV-FIX","","MAR-SOU","",1800.775983599998,"h"]
[null,"FLH,PV-FIX,,MAR-TAN,","FLH","PV-FIX","","MAR-TAN","",1615.309697519999,"h"]
[null,"FLH,PV-FIX,,MEX,","FLH","PV-FIX","","MEX","",1731,"h"]
[null,"FLH,PV-FIX,,MRT,","FLH","PV-FIX","","MRT","",1657,"h"]
[null,"FLH,PV-FIX,,NAM,","FLH","PV-FIX","","NAM","",1859.5896948000045,"h"]
[null,"FLH,PV-FIX,,NOR,","FLH","PV-FIX","","NOR","",845.30347200000051,"h"]
[null,"FLH,PV-FIX,,PER,","FLH","PV-FIX","","PER","",1746,"h"]
[null,"FLH,PV-FIX,,PRT,","FLH","PV-FIX","","PRT","",1445.5080791999967,"h"]
[null,"FLH,PV-FIX,,RUS,","FLH","PV-FIX","","RUS","",1173,"h"]
[null,"FLH,PV-FIX,,SAU,","FLH","PV-FIX","","SAU","",1723,"h"]
[null,"FLH,PV-FIX,,SWE,","FLH","PV-FIX","","SWE","",886.08134879999852,"h"]
[null,"FLH,PV-FIX,,THA,","FLH","PV-FIX","","THA","",1254.531981600001,"h"]
[null,"FLH,PV-FIX,,TUN,","FLH","PV-FIX","","TUN","",1611,"h"]
[null,"FLH,PV-FIX,,UKR,","FLH","PV-FIX","","UKR","",1398.7297331999989,"h"]
[null,"FLH,PV-FIX,,URY,","FLH","PV-FIX","","URY","",1338,"h"]
[null,"FLH,PV-FIX,,USA,","FLH","PV-FIX","","USA","",1593,"h"]
[null,"FLH,PV-FIX,,VNM,","FLH","PV-FIX","","VNM","",1266.9854976000001,"h"]
[null,"FLH,PV-FIX,,ZAF,","FLH","PV-FIX","","ZAF","",1603,"h"]
[null,"FLH,PV-FIX,,ZAF-EC,","FLH","PV-FIX","","ZAF-EC","",1725.7083537599988,"h"]
[null,"FLH,PV-FIX,,ZAF-FRS,","FLH","PV-FIX","","ZAF-FRS","",1808.769283199998,"h"]
[null,"FLH,PV-FIX,,ZAF-GAU,","FLH","PV-FIX","","ZAF-GAU","",1770.0387314399968,"h"]
[null,"FLH,PV-FIX,,ZAF-KWA,","FLH","PV-FIX","","ZAF-KWA","",1694.9134799999979,"h"]
[null,"FLH,PV-FIX,,ZAF-LIM,","FLH","PV-FIX","","ZAF-LIM","",1711.457395919999,"h"]
[null,"FLH,PV-FIX,,ZAF-MPU,","FLH","PV-FIX","","ZAF-MPU","",1752.2448955200002,"h"]
[null,"FLH,PV-FIX,,ZAF-NC,","FLH","PV-FIX","","ZAF-NC","",1814.9242226399974,"h"]
[null,"FLH,PV-FIX,,ZAF-NW,","FLH","PV-FIX","","ZAF-NW","",1786.6500962399978,"h"]
[null,"FLH,PV-FIX,,ZAF-WC,","FLH","PV-FIX","","ZAF-WC","",1664.7200798400002,"h"]
[null,"FLH,RES-HYBR,,ARE,","FLH","RES-HYBR","","ARE","",3116.3347803479924,"h"]
[null,"FLH,RES-HYBR,,ARG,","FLH","RES-HYBR","","ARG","",5660.92,"h"]
[null,"FLH,RES-HYBR,,ARG-BA,","FLH","RES-HYBR","","ARG-BA","",4945.8767126930315,"h"]
[null,"FLH,RES-HYBR,,ARG-CAT,","FLH","RES-HYBR","","ARG-CAT","",4818.1134165187877,"h"]
[null,"FLH,RES-HYBR,,ARG-CBA,","FLH","RES-HYBR","","ARG-CBA","",4796.3272366469528,"h"]
[null,"FLH,RES-HYBR,,ARG-CHA,","FLH","RES-HYBR","","ARG-CHA","",4353.1801274671416,"h"]
[null,"FLH,RES-HYBR,,ARG-CHU,","FLH","RES-HYBR","","ARG-CHU","",6390.4146064505558,"h"]
[null,"FLH,RES-HYBR,,ARG-COR,","FLH","RES-HYBR","","ARG-COR","",4296.9749353692923,"h"]
[null,"FLH,RES-HYBR,,ARG-CRB,","FLH","RES-HYBR","","ARG-CRB","",4058.0540031422247,"h"]
[null,"FLH,RES-HYBR,,ARG-CRU,","FLH","RES-HYBR","","ARG-CRU","",6369.4767112831887,"h"]
[null,"FLH,RES-HYBR,,ARG-EST,","FLH","RES-HYBR","","ARG-EST","",4886.4479918271754,"h"]
[null,"FLH,RES-HYBR,,ARG-FOR,","FLH","RES-HYBR","","ARG-FOR","",4947.3662874337479,"h"]
[null,"FLH,RES-HYBR,,ARG-FUE,","FLH","RES-HYBR","","ARG-FUE","",4348.7759583573197,"h"]
[null,"FLH,RES-HYBR,,ARG-JUJ,","FLH","RES-HYBR","","ARG-JUJ","",5341.5292254807428,"h"]
[null,"FLH,RES-HYBR,,ARG-LAR,","FLH","RES-HYBR","","ARG-LAR","",4993.6358442638966,"h"]
[null,"FLH,RES-HYBR,,ARG-MEN,","FLH","RES-HYBR","","ARG-MEN","",4634.7425576878331,"h"]
[null,"FLH,RES-HYBR,,ARG-MIS,","FLH","RES-HYBR","","ARG-MIS","",3199.5290500507745,"h"]
[null,"FLH,RES-HYBR,,ARG-NEG,","FLH","RES-HYBR","","ARG-NEG","",5871.0170147807694,"h"]
[null,"FLH,RES-HYBR,,ARG-NEU,","FLH","RES-HYBR","","ARG-NEU","",5150.2668537210066,"h"]
[null,"FLH,RES-HYBR,,ARG-PAM,","FLH","RES-HYBR","","ARG-PAM","",5140.6823491886607,"h"]
[null,"FLH,RES-HYBR,,ARG-RIO,","FLH","RES-HYBR","","ARG-RIO","",4336.8044520469111,"h"]
[null,"FLH,RES-HYBR,,ARG-SAF,","FLH","RES-HYBR","","ARG-SAF","",4440.5215244686588,"h"]
[null,"FLH,RES-HYBR,,ARG-SAJ,","FLH","RES-HYBR","","ARG-SAJ","",4214.2631306310104,"h"]
[null,"FLH,RES-HYBR,,ARG-SAL,","FLH","RES-HYBR","","ARG-SAL","",5055.8296990927674,"h"]
[null,"FLH,RES-HYBR,,ARG-SAT,","FLH","RES-HYBR","","ARG-SAT","",4747.3079047460951,"h"]
[null,"FLH,RES-HYBR,,ARG-TUC,","FLH","RES-HYBR","","ARG-TUC","",3565.3259655172683,"h"]
[null,"FLH,RES-HYBR,,AUS,","FLH","RES-HYBR","","AUS","",4753.97,"h"]
[null,"FLH,RES-HYBR,,BRA,","FLH","RES-HYBR","","BRA","",5155.55,"h"]
[null,"FLH,RES-HYBR,,CHL,","FLH","RES-HYBR","","CHL","",3450.29,"h"]
[null,"FLH,RES-HYBR,,CHN,","FLH","RES-HYBR","","CHN","",5183.707028904495,"h"]
[null,"FLH,RES-HYBR,,COL,","FLH","RES-HYBR","","COL","",5503,"h"]
[null,"FLH,RES-HYBR,,CRI,","FLH","RES-HYBR","","CRI","",3421.5147964974931,"h"]
[null,"FLH,RES-HYBR,,DNK,","FLH","RES-HYBR","","DNK","",5197.0268387719998,"h"]
[null,"FLH,RES-HYBR,,DZA,","FLH","RES-HYBR","","DZA","",4270.91,"h"]
[null,"FLH,RES-HYBR,,EGY,","FLH","RES-HYBR","","EGY","",4644.3599999999997,"h"]
[null,"FLH,RES-HYBR,,ESP,","FLH","RES-HYBR","","ESP","",5668.5234185745076,"h"]
[null,"FLH,RES-HYBR,,IDN,","FLH","RES-HYBR","","IDN","",2496.284437136494,"h"]
[null,"FLH,RES-HYBR,,IND,","FLH","RES-HYBR","","IND","",4890.74,"h"]
[null,"FLH,RES-HYBR,,JOR,","FLH","RES-HYBR","","JOR","",2376.5,"h"]
[null,"FLH,RES-HYBR,,KAZ,","FLH","RES-HYBR","","KAZ","",5289.962108140493,"h"]
[null,"FLH,RES-HYBR,,KEN,","FLH","RES-HYBR","","KEN","",3668.54,"h"]
[null,"FLH,RES-HYBR,,MAR,","FLH","RES-HYBR","","MAR","",4739.42,"h"]
[null,"FLH,RES-HYBR,,MAR-BEN,","FLH","RES-HYBR","","MAR-BEN","",3352.6974508185135,"h"]
[null,"FLH,RES-HYBR,,MAR-CAS,","FLH","RES-HYBR","","MAR-CAS","",4107.461264954989,"h"]
[null,"FLH,RES-HYBR,,MAR-DAK,","FLH","RES-HYBR","","MAR-DAK","",6342.17431498525,"h"]
[null,"FLH,RES-HYBR,,MAR-DRA,","FLH","RES-HYBR","","MAR-DRA","",4442.5500678171611,"h"]
[null,"FLH,RES-HYBR,,MAR-FES,","FLH","RES-HYBR","","MAR-FES","",3693.5166831944407,"h"]
[null,"FLH,RES-HYBR,,MAR-GUE,","FLH","RES-HYBR","","MAR-GUE","",5015.1834420732221,"h"]
[null,"FLH,RES-HYBR,,MAR-LAA,","FLH","RES-HYBR","","MAR-LAA","",5823.2278770450366,"h"]
[null,"FLH,RES-HYBR,,MAR-LOR,","FLH","RES-HYBR","","MAR-LOR","",4805.6356254658413,"h"]
[null,"FLH,RES-HYBR,,MAR-MAR,","FLH","RES-HYBR","","MAR-MAR","",3574.4335757714989,"h"]
[null,"FLH,RES-HYBR,,MAR-RAB,","FLH","RES-HYBR","","MAR-RAB","",3447.3598533759478,"h"]
[null,"FLH,RES-HYBR,,MAR-SOU,","FLH","RES-HYBR","","MAR-SOU","",4479.2641726234597,"h"]
[null,"FLH,RES-HYBR,,MAR-TAN,","FLH","RES-HYBR","","MAR-TAN","",4503.3511393000135,"h"]
[null,"FLH,RES-HYBR,,MEX,","FLH","RES-HYBR","","MEX","",4219.5,"h"]
[null,"FLH,RES-HYBR,,MRT,","FLH","RES-HYBR","","MRT","",6214.79,"h"]
[null,"FLH,RES-HYBR,,NAM,","FLH","RES-HYBR","","NAM","",6766.4489765195067,"h"]
[null,"FLH,RES-HYBR,,NOR,","FLH","RES-HYBR","","NOR","",4955.9832041924956,"h"]
[null,"FLH,RES-HYBR,,PER,","FLH","RES-HYBR","","PER","",2965.29,"h"]
[null,"FLH,RES-HYBR,,PRT,","FLH","RES-HYBR","","PRT","",5677.7820377284897,"h"]
[null,"FLH,RES-HYBR,,RUS,","FLH","RES-HYBR","","RUS","",3549.23,"h"]
[null,"FLH,RES-HYBR,,SAU,","FLH","RES-HYBR","","SAU","",3830.5299999999997,"h"]
[null,"FLH,RES-HYBR,,SWE,","FLH","RES-HYBR","","SWE","",3823.9828340194917,"h"]
[null,"FLH,RES-HYBR,,THA,","FLH","RES-HYBR","","THA","",3569.5369351590002,"h"]
[null,"FLH,RES-HYBR,,TUN,","FLH","RES-HYBR","","TUN","",4306.8,"h"]
[null,"FLH,RES-HYBR,,UKR,","FLH","RES-HYBR","","UKR","",5019.1641120944814,"h"]
[null,"FLH,RES-HYBR,,URY,","FLH","RES-HYBR","","URY","",4775.3099999999995,"h"]
[null,"FLH,RES-HYBR,,USA,","FLH","RES-HYBR","","USA","",5067.28,"h"]
[null,"FLH,RES-HYBR,,VNM,","FLH","RES-HYBR","","VNM","",4699.5574412419974,"h"]
[null,"FLH,RES-HYBR,,ZAF,","FLH","RES-HYBR","","ZAF","",4382.46,"h"]
[null,"FLH,RES-HYBR,,ZAF-EC,","FLH","RES-HYBR","","ZAF-EC","",5288.7578237093758,"h"]
[null,"FLH,RES-HYBR,,ZAF-FRS,","FLH","RES-HYBR","","ZAF-FRS","",4425.6106106284642,"h"]
[null,"FLH,RES-HYBR,,ZAF-GAU,","FLH","RES-HYBR","","ZAF-GAU","",3757.1990000000001,"h"]
[null,"FLH,RES-HYBR,,ZAF-KWA,","FLH","RES-HYBR","","ZAF-KWA","",4268.4057445788794,"h"]
[null,"FLH,RES-HYBR,,ZAF-LIM,","FLH","RES-HYBR","","ZAF-LIM","",4233.3590689024513,"h"]
[null,"FLH,RES-HYBR,,ZAF-MPU,","FLH","RES-HYBR","","ZAF-MPU","",4233.3590689024513,"h"]
[null,"FLH,RES-HYBR,,ZAF-NC,","FLH","RES-HYBR","","ZAF-NC","",5250.5102949318216,"h"]
[null,"FLH,RES-HYBR,,ZAF-NW,","FLH","RES-HYBR","","ZAF-NW","",4461.2336445282735,"h"]
[null,"FLH,RES-HYBR,,ZAF-WC,","FLH","RES-HYBR","","ZAF-WC","",4751.4057997393265,"h"]
[null,"FLH,SOEC-EL,,,","FLH","SOEC-EL","","","",5519.7223140495871,"h","average of PTX Atlas"]
[null,"FLH,WIND-OFF,,ARE,","FLH","WIND-OFF","","ARE","",2453,"h","Bosch et al. 2018"]
[null,"FLH,WIND-OFF,,ARG,","FLH","WIND-OFF","","ARG","",5369,"h","Bosch et al. 2018"]
[null,"FLH,WIND-OFF,,ARG-BA,","FLH","WIND-OFF","","ARG-BA","",3854.4,"h","Bosch et al. 2018"]
[null,"FLH,WIND-OFF,,ARG-CBA,","FLH","WIND-OFF","","ARG-CBA","",3854.4,"h","Bosch et al. 2018"]
[null,"FLH,WIND-OFF,,ARG-CHU,","FLH","WIND-OFF","","ARG-CHU","",5763.0835753699857,"h","Bosch et al. 2018"]
[null,"FLH,WIND-OFF,,ARG-CRU,","FLH","WIND-OFF","","ARG-CRU","",5854.9926980599967,"h","Bosch et al. 2018"]
[null,"FLH,WIND-OFF,,ARG-FUE,","FLH","WIND-OFF","","ARG-FUE","",3854.4,"h","Bosch et al. 2018"]
[null,"FLH,WIND-OFF,,ARG-NEG,","FLH","WIND-OFF","","ARG-NEG","",4738.1899020500086,"h","Bosch et al. 2018"]
[null,"FLH,WIND-OFF,,AUS,","FLH","WIND-OFF","","AUS","",4205,"h","Bosch et al. 2018"]
[null,"FLH,WIND-OFF,,BRA,","FLH","WIND-OFF","","BRA","",3854,"h","Bosch et al. 2018"]
[null,"FLH,WIND-OFF,,CHL,","FLH","WIND-OFF","","CHL","",6034,"h","Bosch et al. 2018"]
[null,"FLH,WIND-OFF,,CHN,","FLH","WIND-OFF","","CHN","",3592,"h","Bosch et al. 2018"]
[null,"FLH,WIND-OFF,,COL,","FLH","WIND-OFF","","COL","",4269,"h"]
[null,"FLH,WIND-OFF,,CRI,","FLH","WIND-OFF","","CRI","",2803,"h","Bosch et al. 2018"]
[null,"FLH,WIND-OFF,,DNK,","FLH","WIND-OFF","","DNK","",4730.4000000000005,"h","Bosch et al. 2018"]
[null,"FLH,WIND-OFF,,DZA,","FLH","WIND-OFF","","DZA","",3066,"h","Bosch et al. 2018"]
[null,"FLH,WIND-OFF,,EGY,","FLH","WIND-OFF","","EGY","",3066,"h","Bosch et al. 2018"]
[null,"FLH,WIND-OFF,,ESP,","FLH","WIND-OFF","","ESP","",4277,"h","Bosch et al. 2018"]
[null,"FLH,WIND-OFF,,IDN,","FLH","WIND-OFF","","IDN","",2453,"h","Bosch et al. 2018"]
[null,"FLH,WIND-OFF,,IND,","FLH","WIND-OFF","","IND","",3567,"h","Bosch et al. 2018"]
[null,"FLH,WIND-OFF,,KAZ,","FLH","WIND-OFF","","KAZ","",3697,"h","Bosch et al. 2018"]
[null,"FLH,WIND-OFF,,KEN,","FLH","WIND-OFF","","KEN","",3329,"h","Bosch et al. 2018"]
[null,"FLH,WIND-OFF,,MAR,","FLH","WIND-OFF","","MAR","",4643,"h","Bosch et al. 2018"]
[null,"FLH,WIND-OFF,,MAR-CAS,","FLH","WIND-OFF","","MAR-CAS","",4642.8,"h","Bosch et al. 2018"]
[null,"FLH,WIND-OFF,,MAR-DAK,","FLH","WIND-OFF","","MAR-DAK","",5181.7820854799875,"h","Bosch et al. 2018"]
[null,"FLH,WIND-OFF,,MAR-GUE,","FLH","WIND-OFF","","MAR-GUE","",4642.8,"h","Bosch et al. 2018"]
[null,"FLH,WIND-OFF,,MAR-LAA,","FLH","WIND-OFF","","MAR-LAA","",4642.8,"h","Bosch et al. 2018"]
[null,"FLH,WIND-OFF,,MAR-LOR,","FLH","WIND-OFF","","MAR-LOR","",4642.8,"h","Bosch et al. 2018"]
[null,"FLH,WIND-OFF,,MAR-MAR,","FLH","WIND-OFF","","MAR-MAR","",4642.8,"h","Bosch et al. 2018"]
[null,"FLH,WIND-OFF,,MAR-RAB,","FLH","WIND-OFF","","MAR-RAB","",4642.8,"h","Bosch et al. 2018"]
[null,"FLH,WIND-OFF,,MAR-SOU,","FLH","WIND-OFF","","MAR-SOU","",4642.8,"h","Bosch et al. 2018"]
[null,"FLH,WIND-OFF,,MAR-TAN,","FLH","WIND-OFF","","MAR-TAN","",4642.8,"h","Bosch et al. 2018"]
[null,"FLH,WIND-OFF,,MEX,","FLH","WIND-OFF","","MEX","",4042,"h","Bosch et al. 2018"]
[null,"FLH,WIND-OFF,,MRT,","FLH","WIND-OFF","","MRT","",4750,"h","Bosch et al. 2018"]
[null,"FLH,WIND-OFF,,NAM,","FLH","WIND-OFF","","NAM","",5116,"h","Bosch et al. 2018"]
[null,"FLH,WIND-OFF,,NOR,","FLH","WIND-OFF","","NOR","",4730,"h","Bosch et al. 2018"]
[null,"FLH,WIND-OFF,,PER,","FLH","WIND-OFF","","PER","",3854,"h","Bosch et al. 2018"]
[null,"FLH,WIND-OFF,,PRT,","FLH","WIND-OFF","","PRT","",4408,"h","Bosch et al. 2018"]
[null,"FLH,WIND-OFF,,RUS,","FLH","WIND-OFF","","RUS","",4522,"h","Bosch et al. 2018"]
[null,"FLH,WIND-OFF,,SAU,","FLH","WIND-OFF","","SAU","",2453,"h","Bosch et al. 2018"]
[null,"FLH,WIND-OFF,,SWE,","FLH","WIND-OFF","","SWE","",4730,"h","Bosch et al. 2018"]
[null,"FLH,WIND-OFF,,THA,","FLH","WIND-OFF","","THA","",2453,"h","Bosch et al. 2018"]
[null,"FLH,WIND-OFF,,TUN,","FLH","WIND-OFF","","TUN","",3066,"h","Bosch et al. 2018"]
[null,"FLH,WIND-OFF,,UKR,","FLH","WIND-OFF","","UKR","",3066,"h","Bosch et al. 2018"]
[null,"FLH,WIND-OFF,,URY,","FLH","WIND-OFF","","URY","",3854,"h","Bosch et al. 2018"]
[null,"FLH,WIND-OFF,,USA,","FLH","WIND-OFF","","USA","",4030,"h","Bosch et al. 2018"]
[null,"FLH,WIND-OFF,,VNM,","FLH","WIND-OFF","","VNM","",3578,"h","Bosch et al. 2018"]
[null,"FLH,WIND-OFF,,ZAF,","FLH","WIND-OFF","","ZAF","",4117,"h","Bosch et al. 2018"]
[null,"FLH,WIND-OFF,,ZAF-EC,","FLH","WIND-OFF","","ZAF-EC","",4117.2,"h","Bosch et al. 2018"]
[null,"FLH,WIND-OFF,,ZAF-KWA,","FLH","WIND-OFF","","ZAF-KWA","",4117.2,"h","Bosch et al. 2018"]
[null,"FLH,WIND-OFF,,ZAF-NC,","FLH","WIND-OFF","","ZAF-NC","",4117.2,"h","Bosch et al. 2018"]
[null,"FLH,WIND-OFF,,ZAF-WC,","FLH","WIND-OFF","","ZAF-WC","",4117.2,"h","Bosch et al. 2018"]
[null,"FLH,WIND-ON,,ARE,","FLH","WIND-ON","","ARE","",1642.3104587999985,"h"]
[null,"FLH,WIND-ON,,ARG,","FLH","WIND-ON","","ARG","",5369,"h"]
[null,"FLH,WIND-ON,,ARG-BA,","FLH","WIND-ON","","ARG-BA","",3756.6367058000046,"h"]
[null,"FLH,WIND-ON,,ARG-CAT,","FLH","WIND-ON","","ARG-CAT","",2884.1487291833364,"h"]
[null,"FLH,WIND-ON,,ARG-CBA,","FLH","WIND-ON","","ARG-CBA","",3601.8171951299964,"h"]
[null,"FLH,WIND-ON,,ARG-CHA,","FLH","WIND-ON","","ARG-CHA","",3079.6049933000008,"h"]
[null,"FLH,WIND-ON,,ARG-CHU,","FLH","WIND-ON","","ARG-CHU","",5763.0835753699857,"h"]
[null,"FLH,WIND-ON,,ARG-COR,","FLH","WIND-ON","","ARG-COR","",3045.2758197400012,"h"]
[null,"FLH,WIND-ON,,ARG-CRB,","FLH","WIND-ON","","ARG-CRB","",2605.2082556500004,"h"]
[null,"FLH,WIND-ON,,ARG-CRU,","FLH","WIND-ON","","ARG-CRU","",5854.9926980599967,"h"]
[null,"FLH,WIND-ON,,ARG-EST,","FLH","WIND-ON","","ARG-EST","",3710.4766984999937,"h"]
[null,"FLH,WIND-ON,,ARG-FOR,","FLH","WIND-ON","","ARG-FOR","",3781.7001483800022,"h"]
[null,"FLH,WIND-ON,,ARG-FUE,","FLH","WIND-ON","","ARG-FUE","",3710.4766984999937,"h"]
[null,"FLH,WIND-ON,,ARG-JUJ,","FLH","WIND-ON","","ARG-JUJ","",3773.9698333333426,"h"]
[null,"FLH,WIND-ON,,ARG-LAR,","FLH","WIND-ON","","ARG-LAR","",3188.6275809666754,"h"]
[null,"FLH,WIND-ON,,ARG-MEN,","FLH","WIND-ON","","ARG-MEN","",3077.1630279499932,"h"]
[null,"FLH,WIND-ON,,ARG-MIS,","FLH","WIND-ON","","ARG-MIS","",1777.2726296600022,"h"]
[null,"FLH,WIND-ON,,ARG-NEG,","FLH","WIND-ON","","ARG-NEG","",4738.1899020500086,"h"]
[null,"FLH,WIND-ON,,ARG-NEU,","FLH","WIND-ON","","ARG-NEU","",3956.5844284999962,"h"]
[null,"FLH,WIND-ON,,ARG-PAM,","FLH","WIND-ON","","ARG-PAM","",3897.7887775199929,"h"]
[null,"FLH,WIND-ON,,ARG-RIO,","FLH","WIND-ON","","ARG-RIO","",3070.126660369996,"h"]
[null,"FLH,WIND-ON,,ARG-SAF,","FLH","WIND-ON","","ARG-SAF","",3158.174208530002,"h"]
[null,"FLH,WIND-ON,,ARG-SAJ,","FLH","WIND-ON","","ARG-SAJ","",2534.5746024499945,"h"]
[null,"FLH,WIND-ON,,ARG-SAL,","FLH","WIND-ON","","ARG-SAL","",3657.6108475499996,"h"]
[null,"FLH,WIND-ON,,ARG-SAT,","FLH","WIND-ON","","ARG-SAT","",3418.5372058749972,"h"]
[null,"FLH,WIND-ON,,ARG-TUC,","FLH","WIND-ON","","ARG-TUC","",1908.3186970833303,"h"]
[null,"FLH,WIND-ON,,AUS,","FLH","WIND-ON","","AUS","",3971,"h"]
[null,"FLH,WIND-ON,,BRA,","FLH","WIND-ON","","BRA","",3517,"h"]
[null,"FLH,WIND-ON,,CHL,","FLH","WIND-ON","","CHL","",6034,"h"]
[null,"FLH,WIND-ON,,CHN,","FLH","WIND-ON","","CHN","",3250,"h"]
[null,"FLH,WIND-ON,,COL,","FLH","WIND-ON","","COL","",4269,"h"]
[null,"FLH,WIND-ON,,CRI,","FLH","WIND-ON","","CRI","",2191.2308093499951,"h"]
[null,"FLH,WIND-ON,,DNK,","FLH","WIND-ON","","DNK","",4400,"h"]
[null,"FLH,WIND-ON,,DZA,","FLH","WIND-ON","","DZA","",2738,"h"]
[null,"FLH,WIND-ON,,EGY,","FLH","WIND-ON","","EGY","",3045,"h"]
[null,"FLH,WIND-ON,,ESP,","FLH","WIND-ON","","ESP","",4276.5734962500064,"h"]
[null,"FLH,WIND-ON,,IDN,","FLH","WIND-ON","","IDN","",1150.7783336499949,"h"]
[null,"FLH,WIND-ON,,IND,","FLH","WIND-ON","","IND","",3567,"h"]
[null,"FLH,WIND-ON,,JOR,","FLH","WIND-ON","","JOR","",667,"h"]
[null,"FLH,WIND-ON,,KAZ,","FLH","WIND-ON","","KAZ","",3697,"h"]
[null,"FLH,WIND-ON,,KEN,","FLH","WIND-ON","","KEN","",2364,"h"]
[null,"FLH,WIND-ON,,MAR,","FLH","WIND-ON","","MAR","",3289,"h"]
[null,"FLH,WIND-ON,,MAR-BEN,","FLH","WIND-ON","","MAR-BEN","",1563.4934093166669,"h"]
[null,"FLH,WIND-ON,,MAR-CAS,","FLH","WIND-ON","","MAR-CAS","",2513.2012449499989,"h"]
[null,"FLH,WIND-ON,,MAR-DAK,","FLH","WIND-ON","","MAR-DAK","",5181.7820854799875,"h"]
[null,"FLH,WIND-ON,,MAR-DRA,","FLH","WIND-ON","","MAR-DRA","",2724.0904536999979,"h"]
[null,"FLH,WIND-ON,,MAR-FES,","FLH","WIND-ON","","MAR-FES","",2050.2642833200007,"h"]
[null,"FLH,WIND-ON,,MAR-GUE,","FLH","WIND-ON","","MAR-GUE","",3542.2692728499992,"h"]
[null,"FLH,WIND-ON,,MAR-LAA,","FLH","WIND-ON","","MAR-LAA","",4616.7798365699955,"h"]
[null,"FLH,WIND-ON,,MAR-LOR,","FLH","WIND-ON","","MAR-LOR","",3320.8164008250001,"h"]
[null,"FLH,WIND-ON,,MAR-MAR,","FLH","WIND-ON","","MAR-MAR","",1820.4342362250004,"h"]
[null,"FLH,WIND-ON,,MAR-RAB,","FLH","WIND-ON","","MAR-RAB","",1826.0421998500019,"h"]
[null,"FLH,WIND-ON,,MAR-SOU,","FLH","WIND-ON","","MAR-SOU","",2799.5123925999974,"h"]
[null,"FLH,WIND-ON,,MAR-TAN,","FLH","WIND-ON","","MAR-TAN","",2979.4188451500013,"h"]
[null,"FLH,WIND-ON,,MEX,","FLH","WIND-ON","","MEX","",4042,"h"]
[null,"FLH,WIND-ON,,MRT,","FLH","WIND-ON","","MRT","",4750,"h"]
[null,"FLH,WIND-ON,,NAM,","FLH","WIND-ON","","NAM","",5116.1308995500021,"h"]
[null,"FLH,WIND-ON,,NOR,","FLH","WIND-ON","","NOR","",4263.9575632499955,"h"]
[null,"FLH,WIND-ON,,PER,","FLH","WIND-ON","","PER","",1448,"h"]
[null,"FLH,WIND-ON,,PRT,","FLH","WIND-ON","","PRT","",4407.8754648499926,"h"]
[null,"FLH,WIND-ON,,RUS,","FLH","WIND-ON","","RUS","",4522,"h"]
[null,"FLH,WIND-ON,,SAU,","FLH","WIND-ON","","SAU","",2282,"h"]
[null,"FLH,WIND-ON,,SWE,","FLH","WIND-ON","","SWE","",3056.1689955499933,"h"]
[null,"FLH,WIND-ON,,THA,","FLH","WIND-ON","","THA","",2425.4030030999993,"h"]
[null,"FLH,WIND-ON,,TUN,","FLH","WIND-ON","","TUN","",2843,"h"]
[null,"FLH,WIND-ON,,UKR,","FLH","WIND-ON","","UKR","",2769,"h"]
[null,"FLH,WIND-ON,,URY,","FLH","WIND-ON","","URY","",3594,"h"]
[null,"FLH,WIND-ON,,USA,","FLH","WIND-ON","","USA","",3503,"h"]
[null,"FLH,WIND-ON,,VNM,","FLH","WIND-ON","","VNM","",3577.9190809999977,"h"]
[null,"FLH,WIND-ON,,ZAF,","FLH","WIND-ON","","ZAF","",3070,"h"]
[null,"FLH,WIND-ON,,ZAF-EC,","FLH","WIND-ON","","ZAF-EC","",3914.4857524666741,"h"]
[null,"FLH,WIND-ON,,ZAF-FRS,","FLH","WIND-ON","","ZAF-FRS","",2775.7070136400025,"h"]
[null,"FLH,WIND-ON,,ZAF-GAU,","FLH","WIND-ON","","ZAF-GAU","",2069.9309253700035,"h"]
[null,"FLH,WIND-ON,,ZAF-KWA,","FLH","WIND-ON","","ZAF-KWA","",2682.3634953500023,"h"]
[null,"FLH,WIND-ON,,ZAF-LIM,","FLH","WIND-ON","","ZAF-LIM","",2627.5496087499969,"h"]
[null,"FLH,WIND-ON,,ZAF-MPU,","FLH","WIND-ON","","ZAF-MPU","",2612.1821174166703,"h"]
[null,"FLH,WIND-ON,,ZAF-NC,","FLH","WIND-ON","","ZAF-NC","",3748.8309036749974,"h"]
[null,"FLH,WIND-ON,,ZAF-NW,","FLH","WIND-ON","","ZAF-NW","",3092.6134290333307,"h"]
[null,"FLH,WIND-ON,,ZAF-WC,","FLH","WIND-ON","","ZAF-WC","",3346.6670672599976,"h"]
[null,"LIFETIME,AEL-EL,,,","LIFETIME","AEL-EL","","","",20,"years"]
[null,"LIFETIME,ATR,,,","LIFETIME","ATR","","","",25,"years","Oni et al. 2022"]
[null,"LIFETIME,CH3OH-S,,,","LIFETIME","CH3OH-S","","","",30,"years","UNSW Sydney 2021"]
[null,"LIFETIME,CH3OH-SB,,,","LIFETIME","CH3OH-SB","","","",30,"years","UNSW Sydney 2021"]
[null,"LIFETIME,CH3OHSYN,,,","LIFETIME","CH3OHSYN","","","",30,"years","Öko-Institut 2020"]
[null,"LIFETIME,CH4-COMP,,,","LIFETIME","CH4-COMP","","","",20,"years","DNV GL 2020"]
[null,"LIFETIME,CH4-LIQ,,,","LIFETIME","CH4-LIQ","","","",30,"years","UNSW Sydney 2021"]
[null,"LIFETIME,CH4-P-L,,,","LIFETIME","CH4-P-L","","","",40,"years"]
[null,"LIFETIME,CH4-P-LR,,,","LIFETIME","CH4-P-LR","","","",40,"years"]
[null,"LIFETIME,CH4-P-S,,,","LIFETIME","CH4-P-S","","","",40,"years"]
[null,"LIFETIME,CH4-P-SR,,,","LIFETIME","CH4-P-SR","","","",40,"years"]
[null,"LIFETIME,CH4-S,,,","LIFETIME","CH4-S","","","",30,"years","UNSW Sydney 2021"]
[null,"LIFETIME,CH4-SB,,,","LIFETIME","CH4-SB","","","",30,"years","UNSW Sydney 2021"]
[null,"LIFETIME,CH4SYN,,,","LIFETIME","CH4SYN","","","",30,"years","Öko-Institut 2020"]
[null,"LIFETIME,DAC,,,","LIFETIME","DAC","","","",30,"years","Kreidelmeyer et al. 2020"]
[null,"LIFETIME,DESAL,,,","LIFETIME","DESAL","","","",20,"years","PTX Atlas"]
[null,"LIFETIME,DRI,,,","LIFETIME","DRI","","","",15,"years","Agora Industry Transformation 2021"]
[null,"LIFETIME,EFUELSYN,,,","LIFETIME","EFUELSYN","","","",30,"years","Öko-Institut 2020"]
[null,"LIFETIME,EL-TRANS,,,","LIFETIME","EL-TRANS","","","",20,"years","DUMMY"]
[null,"LIFETIME,H2-COMP,,,","LIFETIME","H2-COMP","","","",20,"years","DNV GL 2020"]
[null,"LIFETIME,H2-LIQ,,,","LIFETIME","H2-LIQ","","","",30,"years","IEA 2015"]
[null,"LIFETIME,H2-P-L,,,","LIFETIME","H2-P-L","","","",30,"years"]
[null,"LIFETIME,H2-P-LR,,,","LIFETIME","H2-P-LR","","","",30,"years"]
[null,"LIFETIME,H2-P-S,,,","LIFETIME","H2-P-S","","","",30,"years"]
[null,"LIFETIME,H2-P-SR,,,","LIFETIME","H2-P-SR","","","",30,"years"]
[null,"LIFETIME,H2-RGAS,,,","LIFETIME","H2-RGAS","","","",30,"years"]
[null,"LIFETIME,H2-S,,,","LIFETIME","H2-S","","","",30,"years","UNSW Sydney 2021"]
[null,"LIFETIME,H2-SB,,,","LIFETIME","H2-SB","","","",30,"years","UNSW Sydney 2021"]
[null,"LIFETIME,LOHC-CON,,,","LIFETIME","LOHC-CON","","","",20,"years","DNV GL 2020"]
[null,"LIFETIME,LOHC-REC,,,","LIFETIME","LOHC-REC","","","",30,"years","IEA 2019"]
[null,"LIFETIME,LOHC-S,,,","LIFETIME","LOHC-S","","","",30,"years","UNSW Sydney 2021"]
[null,"LIFETIME,LOHC-SB,,,","LIFETIME","LOHC-SB","","","",30,"years","UNSW Sydney 2021"]
[null,"LIFETIME,NH3-REC,,,","LIFETIME","NH3-REC","","","",25,"years","NGN; Equinor 2018"]
[null,"LIFETIME,NH3-S,,,","LIFETIME","NH3-S","","","",30,"years","UNSW Sydney 2021"]
[null,"LIFETIME,NH3-SB,,,","LIFETIME","NH3-SB","","","",30,"years","UNSW Sydney 2021"]
[null,"LIFETIME,NH3SYN,,,","LIFETIME","NH3SYN","","","",30,"years","Fasihi et al. 2021"]
[null,"LIFETIME,PEM-EL,,,","LIFETIME","PEM-EL","","","",20,"years"]
[null,"LIFETIME,PV-FIX,,,","LIFETIME","PV-FIX","","","",20,"years"]
[null,"LIFETIME,REGASATR,,,","LIFETIME","REGASATR","","","",25,"years","combined values"]
[null,"LIFETIME,RES-HYBR,,,","LIFETIME","RES-HYBR","","","",20,"years"]
[null,"LIFETIME,SOEC-EL,,,","LIFETIME","SOEC-EL","","","",20,"years"]
[null,"LIFETIME,SYN-S,,,","LIFETIME","SYN-S","","","",30,"years","UNSW Sydney 2021"]
[null,"LIFETIME,SYN-SB,,,","LIFETIME","SYN-SB","","","",30,"years","UNSW Sydney 2021"]
[null,"LIFETIME,WIND-OFF,,,","LIFETIME","WIND-OFF","","","",20,"years"]
[null,"LIFETIME,WIND-ON,,,","LIFETIME","WIND-ON","","","",20,"years"]
[null,"LOSS-T,CH3OH-S,,,","LOSS-T","CH3OH-S","","","",3.0509883673175365E-6,"fraction/km","calc_shipping"]
[null,"LOSS-T,CH3OH-SB,,,","LOSS-T","CH3OH-SB","","","",4.7996160307175429E-7,"fraction/km","calc_shipping"]
[null,"LOSS-T,CH4-P-L,,,","LOSS-T","CH4-P-L","","","",5.6666666666666669E-6,"fraction/km"]
[null,"LOSS-T,CH4-P-LR,,,","LOSS-T","CH4-P-LR","","","",5.6666666666666669E-6,"fraction/km"]
[null,"LOSS-T,CH4-P-S,,,","LOSS-T","CH4-P-S","","","",5.6666666666666669E-6,"fraction/km"]
[null,"LOSS-T,CH4-P-SR,,,","LOSS-T","CH4-P-SR","","","",5.6666666666666669E-6,"fraction/km"]
[null,"LOSS-T,CH4-S,,,","LOSS-T","CH4-S","","","",3.3002590965851543E-6,"fraction/km","calc_shipping"]
[null,"LOSS-T,CH4-SB,,,","LOSS-T","CH4-SB","","","",2.3075077070757413E-6,"fraction/km","calc_shipping"]
[null,"LOSS-T,H2-P-L,,,","LOSS-T","H2-P-L","","","",1.6866666666666666E-5,"fraction/km"]
[null,"LOSS-T,H2-P-LR,,,","LOSS-T","H2-P-LR","","","",1.6866666666666666E-5,"fraction/km"]
[null,"LOSS-T,H2-P-S,,,","LOSS-T","H2-P-S","","","",1.6866666666666666E-5,"fraction/km"]
[null,"LOSS-T,H2-P-SR,,,","LOSS-T","H2-P-SR","","","",1.6866666666666666E-5,"fraction/km"]
[null,"LOSS-T,H2-S,,,","LOSS-T","H2-S","","","",9.2511936896845982E-6,"fraction/km","calc_shipping"]
[null,"LOSS-T,H2-SB,,,","LOSS-T","H2-SB","","","",4.6150154141514826E-6,"fraction/km","calc_shipping"]
[null,"LOSS-T,LOHC-S,,,","LOSS-T","LOHC-S","","","",1.1535367546997468E-5,"fraction/km","calc_shipping"]
[null,"LOSS-T,NH3-S,,,","LOSS-T","NH3-S","","","",5.3436561034163411E-6,"fraction/km","calc_shipping"]
[null,"LOSS-T,NH3-SB,,,","LOSS-T","NH3-SB","","","",9.2300308283029658E-7,"fraction/km","calc_shipping"]
[null,"OPEX-F,AEL-EL,,,","OPEX-F","AEL-EL","","","",13.012853079705877,"USD2021/kW"]
[null,"OPEX-F,ATR,,,","OPEX-F","ATR","","","",48.829790310167752,"USD2021/kW","Oni et al. 2022"]
[null,"OPEX-F,CH3OHSYN,,,","OPEX-F","CH3OHSYN","","","",31.950822928176791,"USD2021/kW","Öko-Institut 2020"]
[null,"OPEX-F,CH4-COMP,,,","OPEX-F","CH4-COMP","","","",10.813477965928424,"USD2021/kW","DNV GL 2020"]
[null,"OPEX-F,CH4-LIQ,,,","OPEX-F","CH4-LIQ","","","",8.7998736512607394,"USD2021/kW","Hank et al. 2020"]
[null,"OPEX-F,CH4SYN,,,","OPEX-F","CH4SYN","","","",25.436834409179458,"USD2021/kW","Öko-Institut 2020"]
[null,"OPEX-F,DAC,,,","OPEX-F","DAC","","","",6.6364675433204692E-2,"USD2021/ kg CO2 (g)*a","Kreidelmeyer et al. 2020"]
[null,"OPEX-F,DESAL,,,","OPEX-F","DESAL","","","",9.4669104972375679E-5,"USD2021/kW"]
[null,"OPEX-F,DRI,,,","OPEX-F","DRI","","","",123.76885357719151,"USD2021/kg DRI (s)/a*h","Agora Industry Transformation 2021"]
[null,"OPEX-F,EFUELSYN,,,","OPEX-F","EFUELSYN","","","",31.950822928176791,"USD2021/kW","Öko-Institut 2020"]
[null,"OPEX-F,H2-COMP,,,","OPEX-F","H2-COMP","","","",10.813477965928424,"USD2021/kW","DNV GL 2020"]
[null,"OPEX-F,H2-LIQ,,,","OPEX-F","H2-LIQ","","","",89.138825928560451,"USD2021/kW","IEA 2019"]
[null,"OPEX-F,H2-RGAS,,,","OPEX-F","H2-RGAS","","","",12.597248329366758,"USD2021/kW","DNV GL 2020"]
[null,"OPEX-F,LOHC-CON,,,","OPEX-F","LOHC-CON","","","",11.453177801524177,"USD2021/kW","DNV GL 2020"]
[null,"OPEX-F,LOHC-REC,,,","OPEX-F","LOHC-REC","","","",21.018469152247668,"USD2021/kW","DNV GL 2023"]
[null,"OPEX-F,NH3-REC,,,","OPEX-F","NH3-REC","","","",12.665552845857931,"USD2021/kW","NGN; Equinor 2018"]
[null,"OPEX-F,NH3SYN,,,","OPEX-F","NH3SYN","","","",91.027985550361237,"USD2021/kW","Fasihi et al. 2021"]
[null,"OPEX-F,PEM-EL,,,","OPEX-F","PEM-EL","","","",18.492154421610433,"USD2021/kW"]
[null,"OPEX-F,PV-FIX,,ARE,","OPEX-F","PV-FIX","","ARE","",20.953007794895285,"USD2021/kW"]
[null,"OPEX-F,PV-FIX,,ARG,","OPEX-F","PV-FIX","","ARG","",20.328399439315248,"USD2021/kW"]
[null,"OPEX-F,PV-FIX,,ARG-BA,","OPEX-F","PV-FIX","","ARG-BA","",20.328399439315248,"USD2021/kW"]
[null,"OPEX-F,PV-FIX,,ARG-CAT,","OPEX-F","PV-FIX","","ARG-CAT","",20.328399439315248,"USD2021/kW"]
[null,"OPEX-F,PV-FIX,,ARG-CBA,","OPEX-F","PV-FIX","","ARG-CBA","",20.328399439315248,"USD2021/kW"]
[null,"OPEX-F,PV-FIX,,ARG-CHA,","OPEX-F","PV-FIX","","ARG-CHA","",20.328399439315248,"USD2021/kW"]
[null,"OPEX-F,PV-FIX,,ARG-CHU,","OPEX-F","PV-FIX","","ARG-CHU","",20.328399439315248,"USD2021/kW"]
[null,"OPEX-F,PV-FIX,,ARG-COR,","OPEX-F","PV-FIX","","ARG-COR","",20.328399439315248,"USD2021/kW"]
[null,"OPEX-F,PV-FIX,,ARG-CRB,","OPEX-F","PV-FIX","","ARG-CRB","",20.328399439315248,"USD2021/kW"]
[null,"OPEX-F,PV-FIX,,ARG-CRU,","OPEX-F","PV-FIX","","ARG-CRU","",20.328399439315248,"USD2021/kW"]
[null,"OPEX-F,PV-FIX,,ARG-EST,","OPEX-F","PV-FIX","","ARG-EST","",20.328399439315248,"USD2021/kW"]
[null,"OPEX-F,PV-FIX,,ARG-FOR,","OPEX-F","PV-FIX","","ARG-FOR","",20.328399439315248,"USD2021/kW"]
[null,"OPEX-F,PV-FIX,,ARG-FUE,","OPEX-F","PV-FIX","","ARG-FUE","",20.328399439315248,"USD2021/kW"]
[null,"OPEX-F,PV-FIX,,ARG-JUJ,","OPEX-F","PV-FIX","","ARG-JUJ","",20.328399439315248,"USD2021/kW"]
[null,"OPEX-F,PV-FIX,,ARG-LAR,","OPEX-F","PV-FIX","","ARG-LAR","",20.328399439315248,"USD2021/kW"]
[null,"OPEX-F,PV-FIX,,ARG-MEN,","OPEX-F","PV-FIX","","ARG-MEN","",20.328399439315248,"USD2021/kW"]
[null,"OPEX-F,PV-FIX,,ARG-MIS,","OPEX-F","PV-FIX","","ARG-MIS","",20.328399439315248,"USD2021/kW"]
[null,"OPEX-F,PV-FIX,,ARG-NEG,","OPEX-F","PV-FIX","","ARG-NEG","",20.328399439315248,"USD2021/kW"]
[null,"OPEX-F,PV-FIX,,ARG-NEU,","OPEX-F","PV-FIX","","ARG-NEU","",20.328399439315248,"USD2021/kW"]
[null,"OPEX-F,PV-FIX,,ARG-PAM,","OPEX-F","PV-FIX","","ARG-PAM","",20.328399439315248,"USD2021/kW"]
[null,"OPEX-F,PV-FIX,,ARG-RIO,","OPEX-F","PV-FIX","","ARG-RIO","",20.328399439315248,"USD2021/kW"]
[null,"OPEX-F,PV-FIX,,ARG-SAF,","OPEX-F","PV-FIX","","ARG-SAF","",20.328399439315248,"USD2021/kW"]
[null,"OPEX-F,PV-FIX,,ARG-SAJ,","OPEX-F","PV-FIX","","ARG-SAJ","",20.328399439315248,"USD2021/kW"]
[null,"OPEX-F,PV-FIX,,ARG-SAL,","OPEX-F","PV-FIX","","ARG-SAL","",20.328399439315248,"USD2021/kW"]
[null,"OPEX-F,PV-FIX,,ARG-SAT,","OPEX-F","PV-FIX","","ARG-SAT","",20.328399439315248,"USD2021/kW"]
[null,"OPEX-F,PV-FIX,,ARG-TUC,","OPEX-F","PV-FIX","","ARG-TUC","",20.328399439315248,"USD2021/kW"]
[null,"OPEX-F,PV-FIX,,AUS,","OPEX-F","PV-FIX","","AUS","",22.967369741640898,"USD2021/kW"]
[null,"OPEX-F,PV-FIX,,BRA,","OPEX-F","PV-FIX","","BRA","",19.901583729668893,"USD2021/kW"]
[null,"OPEX-F,PV-FIX,,CHL,","OPEX-F","PV-FIX","","CHL","",22.629040215701711,"USD2021/kW"]
[null,"OPEX-F,PV-FIX,,CHN,","OPEX-F","PV-FIX","","CHN","",13.168826163479087,"USD2021/kW"]
[null,"OPEX-F,PV-FIX,,COL,","OPEX-F","PV-FIX","","COL","",12.72146901832928,"USD2021/kW"]
[null,"OPEX-F,PV-FIX,,CRI,","OPEX-F","PV-FIX","","CRI","",20.953007794895285,"USD2021/kW"]
[null,"OPEX-F,PV-FIX,,DNK,","OPEX-F","PV-FIX","","DNK","",18.165693008119373,"USD2021/kW"]
[null,"OPEX-F,PV-FIX,,DZA,","OPEX-F","PV-FIX","","DZA","",20.953007794895285,"USD2021/kW"]
[null,"OPEX-F,PV-FIX,,EGY,","OPEX-F","PV-FIX","","EGY","",20.953007794895285,"USD2021/kW"]
[null,"OPEX-F,PV-FIX,,ESP,","OPEX-F","PV-FIX","","ESP","",19.742829105958965,"USD2021/kW"]
[null,"OPEX-F,PV-FIX,,IDN,","OPEX-F","PV-FIX","","IDN","",24.286854892803724,"USD2021/kW"]
[null,"OPEX-F,PV-FIX,,IND,","OPEX-F","PV-FIX","","IND","",13.611257082014946,"USD2021/kW"]
[null,"OPEX-F,PV-FIX,,JOR,","OPEX-F","PV-FIX","","JOR","",20.953007794895285,"USD2021/kW"]
[null,"OPEX-F,PV-FIX,,KAZ,","OPEX-F","PV-FIX","","KAZ","",20.953007794895285,"USD2021/kW"]
[null,"OPEX-F,PV-FIX,,KEN,","OPEX-F","PV-FIX","","KEN","",20.953007794895285,"USD2021/kW"]
[null,"OPEX-F,PV-FIX,,MAR,","OPEX-F","PV-FIX","","MAR","",20.953007794895285,"USD2021/kW"]
[null,"OPEX-F,PV-FIX,,MAR-BEN,","OPEX-F","PV-FIX","","MAR-BEN","",20.953007794895285,"USD2021/kW"]
[null,"OPEX-F,PV-FIX,,MAR-CAS,","OPEX-F","PV-FIX","","MAR-CAS","",20.953007794895285,"USD2021/kW"]
[null,"OPEX-F,PV-FIX,,MAR-DAK,","OPEX-F","PV-FIX","","MAR-DAK","",20.953007794895285,"USD2021/kW"]
[null,"OPEX-F,PV-FIX,,MAR-DRA,","OPEX-F","PV-FIX","","MAR-DRA","",20.953007794895285,"USD2021/kW"]
[null,"OPEX-F,PV-FIX,,MAR-FES,","OPEX-F","PV-FIX","","MAR-FES","",20.953007794895285,"USD2021/kW"]
[null,"OPEX-F,PV-FIX,,MAR-GUE,","OPEX-F","PV-FIX","","MAR-GUE","",20.953007794895285,"USD2021/kW"]
[null,"OPEX-F,PV-FIX,,MAR-LAA,","OPEX-F","PV-FIX","","MAR-LAA","",20.953007794895285,"USD2021/kW"]
[null,"OPEX-F,PV-FIX,,MAR-LOR,","OPEX-F","PV-FIX","","MAR-LOR","",20.953007794895285,"USD2021/kW"]
[null,"OPEX-F,PV-FIX,,MAR-MAR,","OPEX-F","PV-FIX","","MAR-MAR","",20.953007794895285,"USD2021/kW"]
[null,"OPEX-F,PV-FIX,,MAR-RAB,","OPEX-F","PV-FIX","","MAR-RAB","",20.953007794895285,"USD2021/kW"]
[null,"OPEX-F,PV-FIX,,MAR-SOU,","OPEX-F","PV-FIX","","MAR-SOU","",20.953007794895285,"USD2021/kW"]
[null,"OPEX-F,PV-FIX,,MAR-TAN,","OPEX-F","PV-FIX","","MAR-TAN","",20.953007794895285,"USD2021/kW"]
[null,"OPEX-F,PV-FIX,,MEX,","OPEX-F","PV-FIX","","MEX","",19.094797937044678,"USD2021/kW"]
[null,"OPEX-F,PV-FIX,,MRT,","OPEX-F","PV-FIX","","MRT","",20.953007794895285,"USD2021/kW"]
[null,"OPEX-F,PV-FIX,,NAM,","OPEX-F","PV-FIX","","NAM","",20.953007794895285,"USD2021/kW"]
[null,"OPEX-F,PV-FIX,,NOR,","OPEX-F","PV-FIX","","NOR","",19.306759939192904,"USD2021/kW"]
[null,"OPEX-F,PV-FIX,,PER,","OPEX-F","PV-FIX","","PER","",20.953007794895285,"USD2021/kW"]
[null,"OPEX-F,PV-FIX,,PRT,","OPEX-F","PV-FIX","","PRT","",21.187235928237797,"USD2021/kW"]
[null,"OPEX-F,PV-FIX,,RUS,","OPEX-F","PV-FIX","","RUS","",37.58580779702865,"USD2021/kW"]
[null,"OPEX-F,PV-FIX,,SAU,","OPEX-F","PV-FIX","","SAU","",21.731165704555412,"USD2021/kW"]
[null,"OPEX-F,PV-FIX,,SWE,","OPEX-F","PV-FIX","","SWE","",19.306759939192904,"USD2021/kW"]
[null,"OPEX-F,PV-FIX,,THA,","OPEX-F","PV-FIX","","THA","",23.118316760906072,"USD2021/kW"]
[null,"OPEX-F,PV-FIX,,TUN,","OPEX-F","PV-FIX","","TUN","",20.953007794895285,"USD2021/kW"]
[null,"OPEX-F,PV-FIX,,UKR,","OPEX-F","PV-FIX","","UKR","",19.306759939192904,"USD2021/kW"]
[null,"OPEX-F,PV-FIX,,URY,","OPEX-F","PV-FIX","","URY","",20.953007794895285,"USD2021/kW"]
[null,"OPEX-F,PV-FIX,,USA,","OPEX-F","PV-FIX","","USA","",25.031179849869932,"USD2021/kW"]
[null,"OPEX-F,PV-FIX,,VNM,","OPEX-F","PV-FIX","","VNM","",23.118316760906072,"USD2021/kW"]
[null,"OPEX-F,PV-FIX,,ZAF,","OPEX-F","PV-FIX","","ZAF","",20.953007794895285,"USD2021/kW"]
[null,"OPEX-F,PV-FIX,,ZAF-EC,","OPEX-F","PV-FIX","","ZAF-EC","",20.953007794895285,"USD2021/kW"]
[null,"OPEX-F,PV-FIX,,ZAF-FRS,","OPEX-F","PV-FIX","","ZAF-FRS","",20.953007794895285,"USD2021/kW"]
[null,"OPEX-F,PV-FIX,,ZAF-GAU,","OPEX-F","PV-FIX","","ZAF-GAU","",20.953007794895285,"USD2021/kW"]
[null,"OPEX-F,PV-FIX,,ZAF-KWA,","OPEX-F","PV-FIX","","ZAF-KWA","",20.953007794895285,"USD2021/kW"]
[null,"OPEX-F,PV-FIX,,ZAF-LIM,","OPEX-F","PV-FIX","","ZAF-LIM","",20.953007794895285,"USD2021/kW"]
[null,"OPEX-F,PV-FIX,,ZAF-MPU,","OPEX-F","PV-FIX","","ZAF-MPU","",20.953007794895285,"USD2021/kW"]
[null,"OPEX-F,PV-FIX,,ZAF-NC,","OPEX-F","PV-FIX","","ZAF-NC","",20.953007794895285,"USD2021/kW"]
[null,"OPEX-F,PV-FIX,,ZAF-NW,","OPEX-F","PV-FIX","","ZAF-NW","",20.953007794895285,"USD2021/kW"]
[null,"OPEX-F,PV-FIX,,ZAF-WC,","OPEX-F","PV-FIX","","ZAF-WC","",20.953007794895285,"USD2021/kW"]
[null,"OPEX-F,REGASATR,,,","OPEX-F","REGASATR","","","",48.829790310167752,"USD2021/kW","combined values"]
[null,"OPEX-F,RES-HYBR,,ARE,","OPEX-F","RES-HYBR","","ARE","",22.580684665414566,"USD2021/kW"]
[null,"OPEX-F,RES-HYBR,,ARG,","OPEX-F","RES-HYBR","","ARG","",24.360834108462015,"USD2021/kW"]
[null,"OPEX-F,RES-HYBR,,ARG-BA,","OPEX-F","RES-HYBR","","ARG-BA","",24.360834108462015,"USD2021/kW"]
[null,"OPEX-F,RES-HYBR,,ARG-CAT,","OPEX-F","RES-HYBR","","ARG-CAT","",24.360834108462015,"USD2021/kW"]
[null,"OPEX-F,RES-HYBR,,ARG-CBA,","OPEX-F","RES-HYBR","","ARG-CBA","",24.360834108462015,"USD2021/kW"]
[null,"OPEX-F,RES-HYBR,,ARG-CHA,","OPEX-F","RES-HYBR","","ARG-CHA","",24.360834108462015,"USD2021/kW"]
[null,"OPEX-F,RES-HYBR,,ARG-CHU,","OPEX-F","RES-HYBR","","ARG-CHU","",24.360834108462015,"USD2021/kW"]
[null,"OPEX-F,RES-HYBR,,ARG-COR,","OPEX-F","RES-HYBR","","ARG-COR","",24.360834108462015,"USD2021/kW"]
[null,"OPEX-F,RES-HYBR,,ARG-CRB,","OPEX-F","RES-HYBR","","ARG-CRB","",24.360834108462015,"USD2021/kW"]
[null,"OPEX-F,RES-HYBR,,ARG-CRU,","OPEX-F","RES-HYBR","","ARG-CRU","",24.360834108462015,"USD2021/kW"]
[null,"OPEX-F,RES-HYBR,,ARG-EST,","OPEX-F","RES-HYBR","","ARG-EST","",24.360834108462015,"USD2021/kW"]
[null,"OPEX-F,RES-HYBR,,ARG-FOR,","OPEX-F","RES-HYBR","","ARG-FOR","",24.360834108462015,"USD2021/kW"]
[null,"OPEX-F,RES-HYBR,,ARG-FUE,","OPEX-F","RES-HYBR","","ARG-FUE","",24.360834108462015,"USD2021/kW"]
[null,"OPEX-F,RES-HYBR,,ARG-JUJ,","OPEX-F","RES-HYBR","","ARG-JUJ","",24.360834108462015,"USD2021/kW"]
[null,"OPEX-F,RES-HYBR,,ARG-LAR,","OPEX-F","RES-HYBR","","ARG-LAR","",24.360834108462015,"USD2021/kW"]
[null,"OPEX-F,RES-HYBR,,ARG-MEN,","OPEX-F","RES-HYBR","","ARG-MEN","",24.360834108462015,"USD2021/kW"]
[null,"OPEX-F,RES-HYBR,,ARG-MIS,","OPEX-F","RES-HYBR","","ARG-MIS","",24.360834108462015,"USD2021/kW"]
[null,"OPEX-F,RES-HYBR,,ARG-NEG,","OPEX-F","RES-HYBR","","ARG-NEG","",24.360834108462015,"USD2021/kW"]
[null,"OPEX-F,RES-HYBR,,ARG-NEU,","OPEX-F","RES-HYBR","","ARG-NEU","",24.360834108462015,"USD2021/kW"]
[null,"OPEX-F,RES-HYBR,,ARG-PAM,","OPEX-F","RES-HYBR","","ARG-PAM","",24.360834108462015,"USD2021/kW"]
[null,"OPEX-F,RES-HYBR,,ARG-RIO,","OPEX-F","RES-HYBR","","ARG-RIO","",24.360834108462015,"USD2021/kW"]
[null,"OPEX-F,RES-HYBR,,ARG-SAF,","OPEX-F","RES-HYBR","","ARG-SAF","",24.360834108462015,"USD2021/kW"]
[null,"OPEX-F,RES-HYBR,,ARG-SAJ,","OPEX-F","RES-HYBR","","ARG-SAJ","",24.360834108462015,"USD2021/kW"]
[null,"OPEX-F,RES-HYBR,,ARG-SAL,","OPEX-F","RES-HYBR","","ARG-SAL","",24.360834108462015,"USD2021/kW"]
[null,"OPEX-F,RES-HYBR,,ARG-SAT,","OPEX-F","RES-HYBR","","ARG-SAT","",24.360834108462015,"USD2021/kW"]
[null,"OPEX-F,RES-HYBR,,ARG-TUC,","OPEX-F","RES-HYBR","","ARG-TUC","",24.360834108462015,"USD2021/kW"]
[null,"OPEX-F,RES-HYBR,,AUS,","OPEX-F","RES-HYBR","","AUS","",25.303323502149748,"USD2021/kW"]
[null,"OPEX-F,RES-HYBR,,BRA,","OPEX-F","RES-HYBR","","BRA","",18.345305714480759,"USD2021/kW"]
[null,"OPEX-F,RES-HYBR,,CHL,","OPEX-F","RES-HYBR","","CHL","",25.182491528600039,"USD2021/kW"]
[null,"OPEX-F,RES-HYBR,,CHN,","OPEX-F","RES-HYBR","","CHN","",16.009152206647794,"USD2021/kW"]
[null,"OPEX-F,RES-HYBR,,CRI,","OPEX-F","RES-HYBR","","CRI","",22.952013965505664,"USD2021/kW"]
[null,"OPEX-F,RES-HYBR,,DNK,","OPEX-F","RES-HYBR","","DNK","",22.347417346264294,"USD2021/kW"]
[null,"OPEX-F,RES-HYBR,,DZA,","OPEX-F","RES-HYBR","","DZA","",25.971507484667484,"USD2021/kW"]
[null,"OPEX-F,RES-HYBR,,EGY,","OPEX-F","RES-HYBR","","EGY","",22.140952599517213,"USD2021/kW"]
[null,"OPEX-F,RES-HYBR,,ESP,","OPEX-F","RES-HYBR","","ESP","",18.49920058621618,"USD2021/kW"]
[null,"OPEX-F,RES-HYBR,,IDN,","OPEX-F","RES-HYBR","","IDN","",30.660480042297532,"USD2021/kW"]
[null,"OPEX-F,RES-HYBR,,IND,","OPEX-F","RES-HYBR","","IND","",13.909871977375621,"USD2021/kW"]
[null,"OPEX-F,RES-HYBR,,JOR,","OPEX-F","RES-HYBR","","JOR","",25.971507484667484,"USD2021/kW"]
[null,"OPEX-F,RES-HYBR,,KAZ,","OPEX-F","RES-HYBR","","KAZ","",22.140952599517213,"USD2021/kW"]
[null,"OPEX-F,RES-HYBR,,KEN,","OPEX-F","RES-HYBR","","KEN","",25.971507484667484,"USD2021/kW"]
[null,"OPEX-F,RES-HYBR,,MAR,","OPEX-F","RES-HYBR","","MAR","",24.583908521169171,"USD2021/kW"]
[null,"OPEX-F,RES-HYBR,,MAR-BEN,","OPEX-F","RES-HYBR","","MAR-BEN","",24.583908521169171,"USD2021/kW"]
[null,"OPEX-F,RES-HYBR,,MAR-CAS,","OPEX-F","RES-HYBR","","MAR-CAS","",24.583908521169171,"USD2021/kW"]
[null,"OPEX-F,RES-HYBR,,MAR-DAK,","OPEX-F","RES-HYBR","","MAR-DAK","",24.583908521169171,"USD2021/kW"]
[null,"OPEX-F,RES-HYBR,,MAR-DRA,","OPEX-F","RES-HYBR","","MAR-DRA","",24.583908521169171,"USD2021/kW"]
[null,"OPEX-F,RES-HYBR,,MAR-FES,","OPEX-F","RES-HYBR","","MAR-FES","",24.583908521169171,"USD2021/kW"]
[null,"OPEX-F,RES-HYBR,,MAR-GUE,","OPEX-F","RES-HYBR","","MAR-GUE","",24.583908521169171,"USD2021/kW"]
[null,"OPEX-F,RES-HYBR,,MAR-LAA,","OPEX-F","RES-HYBR","","MAR-LAA","",24.583908521169171,"USD2021/kW"]
[null,"OPEX-F,RES-HYBR,,MAR-LOR,","OPEX-F","RES-HYBR","","MAR-LOR","",24.583908521169171,"USD2021/kW"]
[null,"OPEX-F,RES-HYBR,,MAR-MAR,","OPEX-F","RES-HYBR","","MAR-MAR","",24.583908521169171,"USD2021/kW"]
[null,"OPEX-F,RES-HYBR,,MAR-RAB,","OPEX-F","RES-HYBR","","MAR-RAB","",24.583908521169171,"USD2021/kW"]
[null,"OPEX-F,RES-HYBR,,MAR-SOU,","OPEX-F","RES-HYBR","","MAR-SOU","",24.583908521169171,"USD2021/kW"]
[null,"OPEX-F,RES-HYBR,,MAR-TAN,","OPEX-F","RES-HYBR","","MAR-TAN","",24.583908521169171,"USD2021/kW"]
[null,"OPEX-F,RES-HYBR,,MEX,","OPEX-F","RES-HYBR","","MEX","",21.198123020756672,"USD2021/kW"]
[null,"OPEX-F,RES-HYBR,,MRT,","OPEX-F","RES-HYBR","","MRT","",25.971507484667484,"USD2021/kW"]
[null,"OPEX-F,RES-HYBR,,NAM,","OPEX-F","RES-HYBR","","NAM","",25.971507484667484,"USD2021/kW"]
[null,"OPEX-F,RES-HYBR,,NOR,","OPEX-F","RES-HYBR","","NOR","",21.553006936766362,"USD2021/kW"]
[null,"OPEX-F,RES-HYBR,,PER,","OPEX-F","RES-HYBR","","PER","",19.697996677865255,"USD2021/kW"]
[null,"OPEX-F,RES-HYBR,,PRT,","OPEX-F","RES-HYBR","","PRT","",24.667561425934355,"USD2021/kW"]
[null,"OPEX-F,RES-HYBR,,RUS,","OPEX-F","RES-HYBR","","RUS","",28.081238314564843,"USD2021/kW"]
[null,"OPEX-F,RES-HYBR,,SAU,","OPEX-F","RES-HYBR","","SAU","",22.858598204578893,"USD2021/kW"]
[null,"OPEX-F,RES-HYBR,,SWE,","OPEX-F","RES-HYBR","","SWE","",22.754941250219126,"USD2021/kW"]
[null,"OPEX-F,RES-HYBR,,THA,","OPEX-F","RES-HYBR","","THA","",23.354009296132705,"USD2021/kW"]
[null,"OPEX-F,RES-HYBR,,TUN,","OPEX-F","RES-HYBR","","TUN","",25.971507484667484,"USD2021/kW"]
[null,"OPEX-F,RES-HYBR,,UKR,","OPEX-F","RES-HYBR","","UKR","",21.553006936766362,"USD2021/kW"]
[null,"OPEX-F,RES-HYBR,,URY,","OPEX-F","RES-HYBR","","URY","",29.46982036447309,"USD2021/kW"]
[null,"OPEX-F,RES-HYBR,,USA,","OPEX-F","RES-HYBR","","USA","",22.441558718444981,"USD2021/kW"]
[null,"OPEX-F,RES-HYBR,,VNM,","OPEX-F","RES-HYBR","","VNM","",30.24314499519123,"USD2021/kW"]
[null,"OPEX-F,RES-HYBR,,ZAF,","OPEX-F","RES-HYBR","","ZAF","",24.583908521169171,"USD2021/kW"]
[null,"OPEX-F,RES-HYBR,,ZAF-EC,","OPEX-F","RES-HYBR","","ZAF-EC","",24.583908521169171,"USD2021/kW"]
[null,"OPEX-F,RES-HYBR,,ZAF-FRS,","OPEX-F","RES-HYBR","","ZAF-FRS","",24.583908521169171,"USD2021/kW"]
[null,"OPEX-F,RES-HYBR,,ZAF-GAU,","OPEX-F","RES-HYBR","","ZAF-GAU","",24.583908521169171,"USD2021/kW"]
[null,"OPEX-F,RES-HYBR,,ZAF-KWA,","OPEX-F","RES-HYBR","","ZAF-KWA","",24.583908521169171,"USD2021/kW"]
[null,"OPEX-F,RES-HYBR,,ZAF-LIM,","OPEX-F","RES-HYBR","","ZAF-LIM","",24.583908521169171,"USD2021/kW"]
[null,"OPEX-F,RES-HYBR,,ZAF-MPU,","OPEX-F","RES-HYBR","","ZAF-MPU","",24.583908521169171,"USD2021/kW"]
[null,"OPEX-F,RES-HYBR,,ZAF-NC,","OPEX-F","RES-HYBR","","ZAF-NC","",24.583908521169171,"USD2021/kW"]
[null,"OPEX-F,RES-HYBR,,ZAF-NW,","OPEX-F","RES-HYBR","","ZAF-NW","",24.583908521169171,"USD2021/kW"]
[null,"OPEX-F,RES-HYBR,,ZAF-WC,","OPEX-F","RES-HYBR","","ZAF-WC","",24.583908521169171,"USD2021/kW"]
[null,"OPEX-F,SOEC-EL,,,","OPEX-F","SOEC-EL","","","",102.45008433676514,"USD2021/kW"]
[null,"OPEX-F,WIND-OFF,,ARE,","OPEX-F","WIND-OFF","","ARE","",112.76583709600088,"USD2021/kW"]
[null,"OPEX-F,WIND-OFF,,ARG,","OPEX-F","WIND-OFF","","ARG","",112.76583709600088,"USD2021/kW"]
[null,"OPEX-F,WIND-OFF,,ARG-BA,","OPEX-F","WIND-OFF","","ARG-BA","",112.76583709600088,"USD2021/kW"]
[null,"OPEX-F,WIND-OFF,,ARG-CAT,","OPEX-F","WIND-OFF","","ARG-CAT","",112.76583709600088,"USD2021/kW"]
[null,"OPEX-F,WIND-OFF,,ARG-CBA,","OPEX-F","WIND-OFF","","ARG-CBA","",112.76583709600088,"USD2021/kW"]
[null,"OPEX-F,WIND-OFF,,ARG-CHA,","OPEX-F","WIND-OFF","","ARG-CHA","",112.76583709600088,"USD2021/kW"]
[null,"OPEX-F,WIND-OFF,,ARG-CHU,","OPEX-F","WIND-OFF","","ARG-CHU","",112.76583709600088,"USD2021/kW"]
[null,"OPEX-F,WIND-OFF,,ARG-COR,","OPEX-F","WIND-OFF","","ARG-COR","",112.76583709600088,"USD2021/kW"]
[null,"OPEX-F,WIND-OFF,,ARG-CRB,","OPEX-F","WIND-OFF","","ARG-CRB","",112.76583709600088,"USD2021/kW"]
[null,"OPEX-F,WIND-OFF,,ARG-CRU,","OPEX-F","WIND-OFF","","ARG-CRU","",112.76583709600088,"USD2021/kW"]
[null,"OPEX-F,WIND-OFF,,ARG-EST,","OPEX-F","WIND-OFF","","ARG-EST","",112.76583709600088,"USD2021/kW"]
[null,"OPEX-F,WIND-OFF,,ARG-FOR,","OPEX-F","WIND-OFF","","ARG-FOR","",112.76583709600088,"USD2021/kW"]
[null,"OPEX-F,WIND-OFF,,ARG-FUE,","OPEX-F","WIND-OFF","","ARG-FUE","",112.76583709600088,"USD2021/kW"]
[null,"OPEX-F,WIND-OFF,,ARG-JUJ,","OPEX-F","WIND-OFF","","ARG-JUJ","",112.76583709600088,"USD2021/kW"]
[null,"OPEX-F,WIND-OFF,,ARG-LAR,","OPEX-F","WIND-OFF","","ARG-LAR","",112.76583709600088,"USD2021/kW"]
[null,"OPEX-F,WIND-OFF,,ARG-MEN,","OPEX-F","WIND-OFF","","ARG-MEN","",112.76583709600088,"USD2021/kW"]
[null,"OPEX-F,WIND-OFF,,ARG-MIS,","OPEX-F","WIND-OFF","","ARG-MIS","",112.76583709600088,"USD2021/kW"]
[null,"OPEX-F,WIND-OFF,,ARG-NEG,","OPEX-F","WIND-OFF","","ARG-NEG","",112.76583709600088,"USD2021/kW"]
[null,"OPEX-F,WIND-OFF,,ARG-NEU,","OPEX-F","WIND-OFF","","ARG-NEU","",112.76583709600088,"USD2021/kW"]
[null,"OPEX-F,WIND-OFF,,ARG-PAM,","OPEX-F","WIND-OFF","","ARG-PAM","",112.76583709600088,"USD2021/kW"]
[null,"OPEX-F,WIND-OFF,,ARG-RIO,","OPEX-F","WIND-OFF","","ARG-RIO","",112.76583709600088,"USD2021/kW"]
[null,"OPEX-F,WIND-OFF,,ARG-SAF,","OPEX-F","WIND-OFF","","ARG-SAF","",112.76583709600088,"USD2021/kW"]
[null,"OPEX-F,WIND-OFF,,ARG-SAJ,","OPEX-F","WIND-OFF","","ARG-SAJ","",112.76583709600088,"USD2021/kW"]
[null,"OPEX-F,WIND-OFF,,ARG-SAL,","OPEX-F","WIND-OFF","","ARG-SAL","",112.76583709600088,"USD2021/kW"]
[null,"OPEX-F,WIND-OFF,,ARG-SAT,","OPEX-F","WIND-OFF","","ARG-SAT","",112.76583709600088,"USD2021/kW"]
[null,"OPEX-F,WIND-OFF,,ARG-TUC,","OPEX-F","WIND-OFF","","ARG-TUC","",112.76583709600088,"USD2021/kW"]
[null,"OPEX-F,WIND-OFF,,AUS,","OPEX-F","WIND-OFF","","AUS","",112.76583709600088,"USD2021/kW"]
[null,"OPEX-F,WIND-OFF,,BRA,","OPEX-F","WIND-OFF","","BRA","",112.76583709600088,"USD2021/kW"]
[null,"OPEX-F,WIND-OFF,,CHL,","OPEX-F","WIND-OFF","","CHL","",112.76583709600088,"USD2021/kW"]
[null,"OPEX-F,WIND-OFF,,CHN,","OPEX-F","WIND-OFF","","CHN","",93.971530913334078,"USD2021/kW"]
[null,"OPEX-F,WIND-OFF,,COL,","OPEX-F","WIND-OFF","","COL","",112.77800000000001,"USD2021/kW"]
[null,"OPEX-F,WIND-OFF,,CRI,","OPEX-F","WIND-OFF","","CRI","",112.76583709600088,"USD2021/kW"]
[null,"OPEX-F,WIND-OFF,,DNK,","OPEX-F","WIND-OFF","","DNK","",75.289056444039801,"USD2021/kW"]
[null,"OPEX-F,WIND-OFF,,DZA,","OPEX-F","WIND-OFF","","DZA","",112.76583709600088,"USD2021/kW"]
[null,"OPEX-F,WIND-OFF,,EGY,","OPEX-F","WIND-OFF","","EGY","",112.76583709600088,"USD2021/kW"]
[null,"OPEX-F,WIND-OFF,,ESP,","OPEX-F","WIND-OFF","","ESP","",112.76583709600088,"USD2021/kW"]
[null,"OPEX-F,WIND-OFF,,IDN,","OPEX-F","WIND-OFF","","IDN","",112.76583709600088,"USD2021/kW"]
[null,"OPEX-F,WIND-OFF,,IND,","OPEX-F","WIND-OFF","","IND","",112.76583709600088,"USD2021/kW"]
[null,"OPEX-F,WIND-OFF,,JOR,","OPEX-F","WIND-OFF","","JOR","",112.76583709600088,"USD2021/kW"]
[null,"OPEX-F,WIND-OFF,,KAZ,","OPEX-F","WIND-OFF","","KAZ","",112.76583709600088,"USD2021/kW"]
[null,"OPEX-F,WIND-OFF,,KEN,","OPEX-F","WIND-OFF","","KEN","",112.76583709600088,"USD2021/kW"]
[null,"OPEX-F,WIND-OFF,,MAR,","OPEX-F","WIND-OFF","","MAR","",112.76583709600088,"USD2021/kW"]
[null,"OPEX-F,WIND-OFF,,MAR-BEN,","OPEX-F","WIND-OFF","","MAR-BEN","",112.76583709600088,"USD2021/kW"]
[null,"OPEX-F,WIND-OFF,,MAR-CAS,","OPEX-F","WIND-OFF","","MAR-CAS","",112.76583709600088,"USD2021/kW"]
[null,"OPEX-F,WIND-OFF,,MAR-DAK,","OPEX-F","WIND-OFF","","MAR-DAK","",112.76583709600088,"USD2021/kW"]
[null,"OPEX-F,WIND-OFF,,MAR-DRA,","OPEX-F","WIND-OFF","","MAR-DRA","",112.76583709600088,"USD2021/kW"]
[null,"OPEX-F,WIND-OFF,,MAR-FES,","OPEX-F","WIND-OFF","","MAR-FES","",112.76583709600088,"USD2021/kW"]
[null,"OPEX-F,WIND-OFF,,MAR-GUE,","OPEX-F","WIND-OFF","","MAR-GUE","",112.76583709600088,"USD2021/kW"]
[null,"OPEX-F,WIND-OFF,,MAR-LAA,","OPEX-F","WIND-OFF","","MAR-LAA","",112.76583709600088,"USD2021/kW"]
[null,"OPEX-F,WIND-OFF,,MAR-LOR,","OPEX-F","WIND-OFF","","MAR-LOR","",112.76583709600088,"USD2021/kW"]
[null,"OPEX-F,WIND-OFF,,MAR-MAR,","OPEX-F","WIND-OFF","","MAR-MAR","",112.76583709600088,"USD2021/kW"]
[null,"OPEX-F,WIND-OFF,,MAR-RAB,","OPEX-F","WIND-OFF","","MAR-RAB","",112.76583709600088,"USD2021/kW"]
[null,"OPEX-F,WIND-OFF,,MAR-SOU,","OPEX-F","WIND-OFF","","MAR-SOU","",112.76583709600088,"USD2021/kW"]
[null,"OPEX-F,WIND-OFF,,MAR-TAN,","OPEX-F","WIND-OFF","","MAR-TAN","",112.76583709600088,"USD2021/kW"]
[null,"OPEX-F,WIND-OFF,,MEX,","OPEX-F","WIND-OFF","","MEX","",112.76583709600088,"USD2021/kW"]
[null,"OPEX-F,WIND-OFF,,MRT,","OPEX-F","WIND-OFF","","MRT","",112.76583709600088,"USD2021/kW"]
[null,"OPEX-F,WIND-OFF,,NAM,","OPEX-F","WIND-OFF","","NAM","",112.76583709600088,"USD2021/kW"]
[null,"OPEX-F,WIND-OFF,,NOR,","OPEX-F","WIND-OFF","","NOR","",112.76583709600088,"USD2021/kW"]
[null,"OPEX-F,WIND-OFF,,PER,","OPEX-F","WIND-OFF","","PER","",112.76583709600088,"USD2021/kW"]
[null,"OPEX-F,WIND-OFF,,PRT,","OPEX-F","WIND-OFF","","PRT","",112.76583709600088,"USD2021/kW"]
[null,"OPEX-F,WIND-OFF,,RUS,","OPEX-F","WIND-OFF","","RUS","",112.76583709600088,"USD2021/kW"]
[null,"OPEX-F,WIND-OFF,,SAU,","OPEX-F","WIND-OFF","","SAU","",112.76583709600088,"USD2021/kW"]
[null,"OPEX-F,WIND-OFF,,SWE,","OPEX-F","WIND-OFF","","SWE","",112.76583709600088,"USD2021/kW"]
[null,"OPEX-F,WIND-OFF,,THA,","OPEX-F","WIND-OFF","","THA","",112.76583709600088,"USD2021/kW"]
[null,"OPEX-F,WIND-OFF,,TUN,","OPEX-F","WIND-OFF","","TUN","",112.76583709600088,"USD2021/kW"]
[null,"OPEX-F,WIND-OFF,,UKR,","OPEX-F","WIND-OFF","","UKR","",112.76583709600088,"USD2021/kW"]
[null,"OPEX-F,WIND-OFF,,URY,","OPEX-F","WIND-OFF","","URY","",112.76583709600088,"USD2021/kW"]
[null,"OPEX-F,WIND-OFF,,USA,","OPEX-F","WIND-OFF","","USA","",112.76583709600088,"USD2021/kW"]
[null,"OPEX-F,WIND-OFF,,VNM,","OPEX-F","WIND-OFF","","VNM","",112.76583709600088,"USD2021/kW"]
[null,"OPEX-F,WIND-OFF,,ZAF,","OPEX-F","WIND-OFF","","ZAF","",112.76583709600088,"USD2021/kW"]
[null,"OPEX-F,WIND-OFF,,ZAF-EC,","OPEX-F","WIND-OFF","","ZAF-EC","",112.76583709600088,"USD2021/kW"]
[null,"OPEX-F,WIND-OFF,,ZAF-FRS,","OPEX-F","WIND-OFF","","ZAF-FRS","",112.76583709600088,"USD2021/kW"]
[null,"OPEX-F,WIND-OFF,,ZAF-GAU,","OPEX-F","WIND-OFF","","ZAF-GAU","",112.76583709600088,"USD2021/kW"]
[null,"OPEX-F,WIND-OFF,,ZAF-KWA,","OPEX-F","WIND-OFF","","ZAF-KWA","",112.76583709600088,"USD2021/kW"]
[null,"OPEX-F,WIND-OFF,,ZAF-LIM,","OPEX-F","WIND-OFF","","ZAF-LIM","",112.76583709600088,"USD2021/kW"]
[null,"OPEX-F,WIND-OFF,,ZAF-MPU,","OPEX-F","WIND-OFF","","ZAF-MPU","",112.76583709600088,"USD2021/kW"]
[null,"OPEX-F,WIND-OFF,,ZAF-NC,","OPEX-F","WIND-OFF","","ZAF-NC","",112.76583709600088,"USD2021/kW"]
[null,"OPEX-F,WIND-OFF,,ZAF-NW,","OPEX-F","WIND-OFF","","ZAF-NW","",112.76583709600088,"USD2021/kW"]
[null,"OPEX-F,WIND-OFF,,ZAF-WC,","OPEX-F","WIND-OFF","","ZAF-WC","",112.76583709600088,"USD2021/kW"]
[null,"OPEX-F,WIND-ON,,ARE,","OPEX-F","WIND-ON","","ARE","",42.272909268265494,"USD2021/kW"]
[null,"OPEX-F,WIND-ON,,ARG,","OPEX-F","WIND-ON","","ARG","",47.881936064378394,"USD2021/kW"]
[null,"OPEX-F,WIND-ON,,ARG-BA,","OPEX-F","WIND-ON","","ARG-BA","",47.881936064378394,"USD2021/kW"]
[null,"OPEX-F,WIND-ON,,ARG-CAT,","OPEX-F","WIND-ON","","ARG-CAT","",47.881936064378394,"USD2021/kW"]
[null,"OPEX-F,WIND-ON,,ARG-CBA,","OPEX-F","WIND-ON","","ARG-CBA","",47.881936064378394,"USD2021/kW"]
[null,"OPEX-F,WIND-ON,,ARG-CHA,","OPEX-F","WIND-ON","","ARG-CHA","",47.881936064378394,"USD2021/kW"]
[null,"OPEX-F,WIND-ON,,ARG-CHU,","OPEX-F","WIND-ON","","ARG-CHU","",47.881936064378394,"USD2021/kW"]
[null,"OPEX-F,WIND-ON,,ARG-COR,","OPEX-F","WIND-ON","","ARG-COR","",47.881936064378394,"USD2021/kW"]
[null,"OPEX-F,WIND-ON,,ARG-CRB,","OPEX-F","WIND-ON","","ARG-CRB","",47.881936064378394,"USD2021/kW"]
[null,"OPEX-F,WIND-ON,,ARG-CRU,","OPEX-F","WIND-ON","","ARG-CRU","",47.881936064378394,"USD2021/kW"]
[null,"OPEX-F,WIND-ON,,ARG-EST,","OPEX-F","WIND-ON","","ARG-EST","",47.881936064378394,"USD2021/kW"]
[null,"OPEX-F,WIND-ON,,ARG-FOR,","OPEX-F","WIND-ON","","ARG-FOR","",47.881936064378394,"USD2021/kW"]
[null,"OPEX-F,WIND-ON,,ARG-FUE,","OPEX-F","WIND-ON","","ARG-FUE","",47.881936064378394,"USD2021/kW"]
[null,"OPEX-F,WIND-ON,,ARG-JUJ,","OPEX-F","WIND-ON","","ARG-JUJ","",47.881936064378394,"USD2021/kW"]
[null,"OPEX-F,WIND-ON,,ARG-LAR,","OPEX-F","WIND-ON","","ARG-LAR","",47.881936064378394,"USD2021/kW"]
[null,"OPEX-F,WIND-ON,,ARG-MEN,","OPEX-F","WIND-ON","","ARG-MEN","",47.881936064378394,"USD2021/kW"]
[null,"OPEX-F,WIND-ON,,ARG-MIS,","OPEX-F","WIND-ON","","ARG-MIS","",47.881936064378394,"USD2021/kW"]
[null,"OPEX-F,WIND-ON,,ARG-NEG,","OPEX-F","WIND-ON","","ARG-NEG","",47.881936064378394,"USD2021/kW"]
[null,"OPEX-F,WIND-ON,,ARG-NEU,","OPEX-F","WIND-ON","","ARG-NEU","",47.881936064378394,"USD2021/kW"]
[null,"OPEX-F,WIND-ON,,ARG-PAM,","OPEX-F","WIND-ON","","ARG-PAM","",47.881936064378394,"USD2021/kW"]
[null,"OPEX-F,WIND-ON,,ARG-RIO,","OPEX-F","WIND-ON","","ARG-RIO","",47.881936064378394,"USD2021/kW"]
[null,"OPEX-F,WIND-ON,,ARG-SAF,","OPEX-F","WIND-ON","","ARG-SAF","",47.881936064378394,"USD2021/kW"]
[null,"OPEX-F,WIND-ON,,ARG-SAJ,","OPEX-F","WIND-ON","","ARG-SAJ","",47.881936064378394,"USD2021/kW"]
[null,"OPEX-F,WIND-ON,,ARG-SAL,","OPEX-F","WIND-ON","","ARG-SAL","",47.881936064378394,"USD2021/kW"]
[null,"OPEX-F,WIND-ON,,ARG-SAT,","OPEX-F","WIND-ON","","ARG-SAT","",47.881936064378394,"USD2021/kW"]
[null,"OPEX-F,WIND-ON,,ARG-TUC,","OPEX-F","WIND-ON","","ARG-TUC","",47.881936064378394,"USD2021/kW"]
[null,"OPEX-F,WIND-ON,,AUS,","OPEX-F","WIND-ON","","AUS","",47.881936064378394,"USD2021/kW"]
[null,"OPEX-F,WIND-ON,,BRA,","OPEX-F","WIND-ON","","BRA","",31.465272270877229,"USD2021/kW"]
[null,"OPEX-F,WIND-ON,,CHL,","OPEX-F","WIND-ON","","CHL","",47.881936064378394,"USD2021/kW"]
[null,"OPEX-F,WIND-ON,,CHN,","OPEX-F","WIND-ON","","CHN","",31.656800015134742,"USD2021/kW"]
[null,"OPEX-F,WIND-ON,,COL,","OPEX-F","WIND-ON","","COL","",45.5,"USD2021/kW"]
[null,"OPEX-F,WIND-ON,,CRI,","OPEX-F","WIND-ON","","CRI","",43.312631308520572,"USD2021/kW"]
[null,"OPEX-F,WIND-ON,,DNK,","OPEX-F","WIND-ON","","DNK","",44.407075561420648,"USD2021/kW"]
[null,"OPEX-F,WIND-ON,,DZA,","OPEX-F","WIND-ON","","DZA","",51.767213162173668,"USD2021/kW"]
[null,"OPEX-F,WIND-ON,,EGY,","OPEX-F","WIND-ON","","EGY","",41.041659483752909,"USD2021/kW"]
[null,"OPEX-F,WIND-ON,,ESP,","OPEX-F","WIND-ON","","ESP","",32.054932535446341,"USD2021/kW"]
[null,"OPEX-F,WIND-ON,,IDN,","OPEX-F","WIND-ON","","IDN","",61.562489225629371,"USD2021/kW"]
[null,"OPEX-F,WIND-ON,,IND,","OPEX-F","WIND-ON","","IND","",25.336384454636796,"USD2021/kW"]
[null,"OPEX-F,WIND-ON,,JOR,","OPEX-F","WIND-ON","","JOR","",51.767213162173668,"USD2021/kW"]
[null,"OPEX-F,WIND-ON,,KAZ,","OPEX-F","WIND-ON","","KAZ","",41.041659483752909,"USD2021/kW"]
[null,"OPEX-F,WIND-ON,,KEN,","OPEX-F","WIND-ON","","KEN","",51.767213162173668,"USD2021/kW"]
[null,"OPEX-F,WIND-ON,,MAR,","OPEX-F","WIND-ON","","MAR","",47.881936064378394,"USD2021/kW"]
[null,"OPEX-F,WIND-ON,,MAR-BEN,","OPEX-F","WIND-ON","","MAR-BEN","",47.881936064378394,"USD2021/kW"]
[null,"OPEX-F,WIND-ON,,MAR-CAS,","OPEX-F","WIND-ON","","MAR-CAS","",47.881936064378394,"USD2021/kW"]
[null,"OPEX-F,WIND-ON,,MAR-DAK,","OPEX-F","WIND-ON","","MAR-DAK","",47.881936064378394,"USD2021/kW"]
[null,"OPEX-F,WIND-ON,,MAR-DRA,","OPEX-F","WIND-ON","","MAR-DRA","",47.881936064378394,"USD2021/kW"]
[null,"OPEX-F,WIND-ON,,MAR-FES,","OPEX-F","WIND-ON","","MAR-FES","",47.881936064378394,"USD2021/kW"]
[null,"OPEX-F,WIND-ON,,MAR-GUE,","OPEX-F","WIND-ON","","MAR-GUE","",47.881936064378394,"USD2021/kW"]
[null,"OPEX-F,WIND-ON,,MAR-LAA,","OPEX-F","WIND-ON","","MAR-LAA","",47.881936064378394,"USD2021/kW"]
[null,"OPEX-F,WIND-ON,,MAR-LOR,","OPEX-F","WIND-ON","","MAR-LOR","",47.881936064378394,"USD2021/kW"]
[null,"OPEX-F,WIND-ON,,MAR-MAR,","OPEX-F","WIND-ON","","MAR-MAR","",47.881936064378394,"USD2021/kW"]
[null,"OPEX-F,WIND-ON,,MAR-RAB,","OPEX-F","WIND-ON","","MAR-RAB","",47.881936064378394,"USD2021/kW"]
[null,"OPEX-F,WIND-ON,,MAR-SOU,","OPEX-F","WIND-ON","","MAR-SOU","",47.881936064378394,"USD2021/kW"]
[null,"OPEX-F,WIND-ON,,MAR-TAN,","OPEX-F","WIND-ON","","MAR-TAN","",47.881936064378394,"USD2021/kW"]
[null,"OPEX-F,WIND-ON,,MEX,","OPEX-F","WIND-ON","","MEX","",40.259946521073999,"USD2021/kW"]
[null,"OPEX-F,WIND-ON,,MRT,","OPEX-F","WIND-ON","","MRT","",51.767213162173668,"USD2021/kW"]
[null,"OPEX-F,WIND-ON,,NAM,","OPEX-F","WIND-ON","","NAM","",51.767213162173668,"USD2021/kW"]
[null,"OPEX-F,WIND-ON,,NOR,","OPEX-F","WIND-ON","","NOR","",41.041659483752909,"USD2021/kW"]
[null,"OPEX-F,WIND-ON,,PER,","OPEX-F","WIND-ON","","PER","",34.201382903127424,"USD2021/kW"]
[null,"OPEX-F,WIND-ON,,PRT,","OPEX-F","WIND-ON","","PRT","",47.881936064378394,"USD2021/kW"]
[null,"OPEX-F,WIND-ON,,RUS,","OPEX-F","WIND-ON","","RUS","",41.041659483752909,"USD2021/kW"]
[null,"OPEX-F,WIND-ON,,SAU,","OPEX-F","WIND-ON","","SAU","",42.272909268265494,"USD2021/kW"]
[null,"OPEX-F,WIND-ON,,SWE,","OPEX-F","WIND-ON","","SWE","",44.407075561420648,"USD2021/kW"]
[null,"OPEX-F,WIND-ON,,THA,","OPEX-F","WIND-ON","","THA","",42.272909268265494,"USD2021/kW"]
[null,"OPEX-F,WIND-ON,,TUN,","OPEX-F","WIND-ON","","TUN","",51.767213162173668,"USD2021/kW"]
[null,"OPEX-F,WIND-ON,,UKR,","OPEX-F","WIND-ON","","UKR","",41.041659483752909,"USD2021/kW"]
[null,"OPEX-F,WIND-ON,,URY,","OPEX-F","WIND-ON","","URY","",61.562489225629371,"USD2021/kW"]
[null,"OPEX-F,WIND-ON,,USA,","OPEX-F","WIND-ON","","USA","",37.805184561776016,"USD2021/kW"]
[null,"OPEX-F,WIND-ON,,VNM,","OPEX-F","WIND-ON","","VNM","",61.562489225629371,"USD2021/kW"]
[null,"OPEX-F,WIND-ON,,ZAF,","OPEX-F","WIND-ON","","ZAF","",47.881936064378394,"USD2021/kW"]
[null,"OPEX-F,WIND-ON,,ZAF-EC,","OPEX-F","WIND-ON","","ZAF-EC","",47.881936064378394,"USD2021/kW"]
[null,"OPEX-F,WIND-ON,,ZAF-FRS,","OPEX-F","WIND-ON","","ZAF-FRS","",47.881936064378394,"USD2021/kW"]
[null,"OPEX-F,WIND-ON,,ZAF-GAU,","OPEX-F","WIND-ON","","ZAF-GAU","",47.881936064378394,"USD2021/kW"]
[null,"OPEX-F,WIND-ON,,ZAF-KWA,","OPEX-F","WIND-ON","","ZAF-KWA","",47.881936064378394,"USD2021/kW"]
[null,"OPEX-F,WIND-ON,,ZAF-LIM,","OPEX-F","WIND-ON","","ZAF-LIM","",47.881936064378394,"USD2021/kW"]
[null,"OPEX-F,WIND-ON,,ZAF-MPU,","OPEX-F","WIND-ON","","ZAF-MPU","",47.881936064378394,"USD2021/kW"]
[null,"OPEX-F,WIND-ON,,ZAF-NC,","OPEX-F","WIND-ON","","ZAF-NC","",47.881936064378394,"USD2021/kW"]
[null,"OPEX-F,WIND-ON,,ZAF-NW,","OPEX-F","WIND-ON","","ZAF-NW","",47.881936064378394,"USD2021/kW"]
[null,"OPEX-F,WIND-ON,,ZAF-WC,","OPEX-F","WIND-ON","","ZAF-WC","",47.881936064378394,"USD2021/kW"]
[null,"OPEX-O,ATR,,,","OPEX-O","ATR","","","",9.1464146414641494E-3,"USD2021/kWh","George et al. (2022)"]
[null,"OPEX-O,CH3OH-S,,,","OPEX-O","CH3OH-S","","","",1.0849036835729676E-4,"USD2021/kWh","UNSW Sydney 2021"]
[null,"OPEX-O,CH3OH-SB,,,","OPEX-O","CH3OH-SB","","","",1.0849036835729676E-4,"USD2021/kWh","UNSW Sydney 2021"]
[null,"OPEX-O,CH4-S,,,","OPEX-O","CH4-S","","","",3.3042876189725266E-4,"USD2021/kWh","UNSW Sydney 2021"]
[null,"OPEX-O,CH4-SB,,,","OPEX-O","CH4-SB","","","",3.3042876189725266E-4,"USD2021/kWh","UNSW Sydney 2021"]
[null,"OPEX-O,DRI,,,","OPEX-O","DRI","","","",0.26656892307692304,"USD2021/kg DRI (s)","Agora Industry Transformation 2021"]
[null,"OPEX-O,H2-S,,,","OPEX-O","H2-S","","","",1.9557894682818507E-3,"USD2021/kWh","UNSW Sydney 2021"]
[null,"OPEX-O,H2-SB,,,","OPEX-O","H2-SB","","","",1.9557894682818507E-3,"USD2021/kWh","UNSW Sydney 2021"]
[null,"OPEX-O,LOHC-S,,,","OPEX-O","LOHC-S","","","",1.5378717307752301E-2,"USD2021/kWh","UNSW Sydney 2021"]
[null,"OPEX-O,LOHC-SB,,,","OPEX-O","LOHC-SB","","","",1.5378717307752301E-2,"USD2021/kWh","UNSW Sydney 2021"]
[null,"OPEX-O,NH3-S,,,","OPEX-O","NH3-S","","","",4.2087134757005104E-4,"USD2021/kWh","UNSW Sydney 2021"]
[null,"OPEX-O,NH3-SB,,,","OPEX-O","NH3-SB","","","",4.2087134757005104E-4,"USD2021/kWh","UNSW Sydney 2021"]
[null,"OPEX-O,REGASATR,,,","OPEX-O","REGASATR","","","",9.1464146414641494E-3,"USD2021/kWh","combined values"]
[null,"OPEX-O,SYN-S,,,","OPEX-O","SYN-S","","","",4.5028839113694242E-5,"USD2021/kWh","UNSW Sydney 2021"]
[null,"OPEX-O,SYN-SB,,,","OPEX-O","SYN-SB","","","",4.5028839113694242E-5,"USD2021/kWh","UNSW Sydney 2021"]
[null,"OPEX-T,CH3OH-S,,,","OPEX-T","CH3OH-S","","","",1.0848168982211098E-7,"USD2021/(kWh*km)","calc_shipping"]
[null,"OPEX-T,CH3OH-SB,,,","OPEX-T","CH3OH-SB","","","",1.0848168982211098E-7,"USD2021/(kWh*km)","calc_shipping"]
[null,"OPEX-T,CH4-P-L,,,","OPEX-T","CH4-P-L","","","",2.7651437055456481E-6,"USD2021/(kWh*km)"]
[null,"OPEX-T,CH4-P-LR,,,","OPEX-T","CH4-P-LR","","","",8.624381235013173E-7,"USD2021/(kWh*km)"]
[null,"OPEX-T,CH4-P-S,,,","OPEX-T","CH4-P-S","","","",3.3181724466547807E-6,"USD2021/(kWh*km)"]
[null,"OPEX-T,CH4-P-SR,,,","OPEX-T","CH4-P-SR","","","",8.624381235013173E-7,"USD2021/(kWh*km)"]
[null,"OPEX-T,CH4-S,,,","OPEX-T","CH4-S","","","",2.5415563823913519E-7,"USD2021/(kWh*km)","calc_shipping"]
[null,"OPEX-T,CH4-SB,,,","OPEX-T","CH4-SB","","","",2.5415563823913519E-7,"USD2021/(kWh*km)","calc_shipping"]
[null,"OPEX-T,DRI-SB,,,","OPEX-T","DRI-SB","","","",3.262896862987803E-7,"USD2021/(kg*km)","calc_shipping"]
[null,"OPEX-T,H2-P-L,,,","OPEX-T","H2-P-L","","","",8.8738982865209894E-6,"USD2021/(kWh*km)","Guidehouse 2022"]
[null,"OPEX-T,H2-P-LR,,,","OPEX-T","H2-P-LR","","","",3.0424794125214817E-6,"USD2021/(kWh*km)","Guidehouse 2022"]
[null,"OPEX-T,H2-P-S,,,","OPEX-T","H2-P-S","","","",1.5212397062607411E-5,"USD2021/(kWh*km)","Guidehouse 2022"]
[null,"OPEX-T,H2-P-SR,,,","OPEX-T","H2-P-SR","","","",3.8030992656518527E-6,"USD2021/(kWh*km)","Guidehouse 2022"]
[null,"OPEX-T,H2-S,,,","OPEX-T","H2-S","","","",1.5043330904926455E-6,"USD2021/(kWh*km)","calc_shipping"]
[null,"OPEX-T,H2-SB,,,","OPEX-T","H2-SB","","","",1.5043330904926455E-6,"USD2021/(kWh*km)","calc_shipping"]
[null,"OPEX-T,LOHC-S,,,","OPEX-T","LOHC-S","","","",1.3493717175603379E-6,"USD2021/(kWh*km)","calc_shipping"]
[null,"OPEX-T,LOHC-SB,,,","OPEX-T","LOHC-SB","","","",1.3493717175603379E-6,"USD2021/(kWh*km)","calc_shipping"]
[null,"OPEX-T,NH3-S,,,","OPEX-T","NH3-S","","","",3.2372129273508194E-7,"USD2021/(kWh*km)","calc_shipping"]
[null,"OPEX-T,NH3-SB,,,","OPEX-T","NH3-SB","","","",3.2372129273508194E-7,"USD2021/(kWh*km)","calc_shipping"]
[null,"OPEX-T,SYN-S,,,","OPEX-T","SYN-S","","","",4.502523709472666E-8,"USD2021/(kWh*km)","calc_shipping"]
[null,"OPEX-T,SYN-SB,,,","OPEX-T","SYN-SB","","","",4.502523709472666E-8,"USD2021/(kWh*km)","calc_shipping"]
[null,"SEASHARE,,,ARE,CHN","SEASHARE","","","ARE","CHN",0.11111111111111099,null,"Research Susanne Krieger"]
[null,"SEASHARE,,,ARE,IND","SEASHARE","","","ARE","IND",0.65,null,"Research Susanne Krieger"]
[null,"SEASHARE,,,CHN,JPN","SEASHARE","","","CHN","JPN",0.28571428571428598,null,"Research Susanne Krieger"]
[null,"SEASHARE,,,CHN,KOR","SEASHARE","","","CHN","KOR",0.4,null,"Research Susanne Krieger"]
[null,"SEASHARE,,,COL,USA","SEASHARE","","","COL","USA",0.64444444444444404,"km","Research Susanne Krieger"]
[null,"SEASHARE,,,CRI,USA","SEASHARE","","","CRI","USA",0.14285714285714299,null,"Research Susanne Krieger"]
[null,"SEASHARE,,,DNK,FRA","SEASHARE","","","DNK","FRA",0.5,null,"Research Susanne Krieger"]
[null,"SEASHARE,,,DNK,NLD","SEASHARE","","","DNK","NLD",1,null,"Research Susanne Krieger"]
[null,"SEASHARE,,,DZA,DEU","SEASHARE","","","DZA","DEU",0.1,null,"Research Susanne Krieger"]
[null,"SEASHARE,,,DZA,ESP","SEASHARE","","","DZA","ESP",0.27741832232496999,null,"Research Susanne Krieger"]
[null,"SEASHARE,,,DZA,FRA","SEASHARE","","","DZA","FRA",0.15,null,"Research Susanne Krieger"]
[null,"SEASHARE,,,DZA,NLD","SEASHARE","","","DZA","NLD",0.133333333333333,null,"Research Susanne Krieger"]
[null,"SEASHARE,,,EGY,ESP","SEASHARE","","","EGY","ESP",0.155555555555556,null,"Research Susanne Krieger"]
[null,"SEASHARE,,,EGY,FRA","SEASHARE","","","EGY","FRA",0.17499999999999999,null,"Research Susanne Krieger"]
[null,"SEASHARE,,,EGY,IND","SEASHARE","","","EGY","IND",0.52,null,"Research Susanne Krieger"]
[null,"SEASHARE,,,IDN,CHN","SEASHARE","","","IDN","CHN",0.5,null,"Research Susanne Krieger"]
[null,"SEASHARE,,,IDN,IND","SEASHARE","","","IDN","IND",0.4,null,"Research Susanne Krieger"]
[null,"SEASHARE,,,IDN,JPN","SEASHARE","","","IDN","JPN",0.90909090909090906,null,"Research Susanne Krieger"]
[null,"SEASHARE,,,IDN,KOR","SEASHARE","","","IDN","KOR",0.90909090909090906,null,"Research Susanne Krieger"]
[null,"SEASHARE,,,KEN,IND","SEASHARE","","","KEN","IND",0.86,null,"Research Susanne Krieger"]
[null,"SEASHARE,,,MAR,ESP","SEASHARE","","","MAR","ESP",0.18,null,"Research Susanne Krieger"]
[null,"SEASHARE,,,MAR-BEN,ESP","SEASHARE","","","MAR-BEN","ESP",0.18,null,"Research Susanne Krieger"]
[null,"SEASHARE,,,MAR-CAS,ESP","SEASHARE","","","MAR-CAS","ESP",0.18,null,"Research Susanne Krieger"]
[null,"SEASHARE,,,MAR-DAK,ESP","SEASHARE","","","MAR-DAK","ESP",0.18,null,"Research Susanne Krieger"]
[null,"SEASHARE,,,MAR-DRA,ESP","SEASHARE","","","MAR-DRA","ESP",0.18,null,"Research Susanne Krieger"]
[null,"SEASHARE,,,MAR-FES,ESP","SEASHARE","","","MAR-FES","ESP",0.18,null,"Research Susanne Krieger"]
[null,"SEASHARE,,,MAR-GUE,ESP","SEASHARE","","","MAR-GUE","ESP",0.18,null,"Research Susanne Krieger"]
[null,"SEASHARE,,,MAR-LAA,ESP","SEASHARE","","","MAR-LAA","ESP",0.18,null,"Research Susanne Krieger"]
[null,"SEASHARE,,,MAR-LOR,ESP","SEASHARE","","","MAR-LOR","ESP",0.18,null,"Research Susanne Krieger"]
[null,"SEASHARE,,,MAR-MAR,ESP","SEASHARE","","","MAR-MAR","ESP",0.18,null,"Research Susanne Krieger"]
[null,"SEASHARE,,,MAR-RAB,ESP","SEASHARE","","","MAR-RAB","ESP",0.18,null,"Research Susanne Krieger"]
[null,"SEASHARE,,,MAR-SOU,ESP","SEASHARE","","","MAR-SOU","ESP",0.18,null,"Research Susanne Krieger"]
[null,"SEASHARE,,,MAR-TAN,ESP","SEASHARE","","","MAR-TAN","ESP",0.18,null,"Research Susanne Krieger"]
[null,"SEASHARE,,,MEX,USA","SEASHARE","","","MEX","USA",1,null,"Research Susanne Krieger"]
[null,"SEASHARE,,,NOR,DEU","SEASHARE","","","NOR","DEU",1,null,"Research Susanne Krieger"]
[null,"SEASHARE,,,NOR,ESP","SEASHARE","","","NOR","ESP",0.45,null,"Research Susanne Krieger"]
[null,"SEASHARE,,,NOR,FRA","SEASHARE","","","NOR","FRA",0.9,null,"Research Susanne Krieger"]
[null,"SEASHARE,,,NOR,NLD","SEASHARE","","","NOR","NLD",1,null,"Research Susanne Krieger"]
[null,"SEASHARE,,,PER,USA","SEASHARE","","","PER","USA",0.58181818181818201,null,"Research Susanne Krieger"]
[null,"SEASHARE,,,RUS,DEU","SEASHARE","","","RUS","DEU",1,null,"Research Susanne Krieger"]
[null,"SEASHARE,,,RUS,JPN","SEASHARE","","","RUS","JPN",0.17499999999999999,null,"Research Susanne Krieger"]
[null,"SEASHARE,,,SAU,IND","SEASHARE","","","SAU","IND",0.74285714285714299,null,"Research Susanne Krieger"]
[null,"SEASHARE,,,SWE,DEU","SEASHARE","","","SWE","DEU",0.3,null,"Research Susanne Krieger"]
[null,"SEASHARE,,,SWE,ESP","SEASHARE","","","SWE","ESP",0.1,null,"Research Susanne Krieger"]
[null,"SEASHARE,,,SWE,FRA","SEASHARE","","","SWE","FRA",0.15,null,"Research Susanne Krieger"]
[null,"SEASHARE,,,SWE,NLD","SEASHARE","","","SWE","NLD",0.15,null,"Research Susanne Krieger"]
[null,"SEASHARE,,,THA,JPN","SEASHARE","","","THA","JPN",0.18,null,"Research Susanne Krieger"]
[null,"SEASHARE,,,THA,KOR","SEASHARE","","","THA","KOR",0.16,null,"Research Susanne Krieger"]
[null,"SEASHARE,,,TUN,DEU","SEASHARE","","","TUN","DEU",0.35,null,"Research Susanne Krieger"]
[null,"SEASHARE,,,TUN,ESP","SEASHARE","","","TUN","ESP",0.46666666666666701,null,"Research Susanne Krieger"]
[null,"SEASHARE,,,TUN,FRA","SEASHARE","","","TUN","FRA",0.7,null,"Research Susanne Krieger"]
[null,"SEASHARE,,,TUN,NLD","SEASHARE","","","TUN","NLD",0.28000000000000003,null,"Research Susanne Krieger"]
[null,"SEASHARE,,,VNM,JPN","SEASHARE","","","VNM","JPN",0.22500000000000001,null,"Research Susanne Krieger"]
[null,"SEASHARE,,,VNM,KOR","SEASHARE","","","VNM","KOR",0.16,null,"Research Susanne Krieger"]
[null,"SPECCOST,,BFUEL-L,,","SPECCOST","","BFUEL-L","","",3.9445460405156535E-3,"USD2021 / kwh bunker fuel (l)"]
[null,"SPECCOST,,CO2-G,,","SPECCOST","","CO2-G","","",3.8577660276243091E-2,"USD2021 / kg CO2 (g)"]
[null,"SPECCOST,,EL,,","SPECCOST","","EL","","",7.0000000000000007E-2,"USD2021 / kWh (el.)","dummy mh! Auf Null gesetzt bis bug in Rechner behoben ist. Korrekter Wert ist 0,08"]
[null,"SPECCOST,,H2O-L,,","SPECCOST","","H2O-L","","",1.190463995027624E-3,"USD2021 / kg H2O (l)"]
[null,"SPECCOST,,HEAT,,","SPECCOST","","HEAT","","",0.05,"USD2021 / kWh (heat)"]
[null,"SPECCOST,,N2-G,,","SPECCOST","","N2-G","","",0.01,"USD2021 / kg N2 (g)"]
[null,"WACC,,,ARE,","WACC","","","ARE","",5.5673211551852057E-2,"fraction"]
[null,"WACC,,,ARG,","WACC","","","ARG","",0.15031035355923136,"fraction"]
[null,"WACC,,,ARG-BA,","WACC","","","ARG-BA","",0.15031035355923136,"fraction"]
[null,"WACC,,,ARG-CAT,","WACC","","","ARG-CAT","",0.15031035355923136,"fraction"]
[null,"WACC,,,ARG-CBA,","WACC","","","ARG-CBA","",0.15031035355923136,"fraction"]
[null,"WACC,,,ARG-CHA,","WACC","","","ARG-CHA","",0.15031035355923136,"fraction"]
[null,"WACC,,,ARG-CHU,","WACC","","","ARG-CHU","",0.15031035355923136,"fraction"]
[null,"WACC,,,ARG-COR,","WACC","","","ARG-COR","",0.15031035355923136,"fraction"]
[null,"WACC,,,ARG-CRB,","WACC","","","ARG-CRB","",0.15031035355923136,"fraction"]
[null,"WACC,,,ARG-CRU,","WACC","","","ARG-CRU","",0.15031035355923136,"fraction"]
[null,"WACC,,,ARG-EST,","WACC","","","ARG-EST","",0.15031035355923136,"fraction"]
[null,"WACC,,,ARG-FOR,","WACC","","","ARG-FOR","",0.15031035355923136,"fraction"]
[null,"WACC,,,ARG-FUE,","WACC","","","ARG-FUE","",0.15031035355923136,"fraction"]
[null,"WACC,,,ARG-JUJ,","WACC","","","ARG-JUJ","",0.15031035355923136,"fraction"]
[null,"WACC,,,ARG-LAR,","WACC","","","ARG-LAR","",0.15031035355923136,"fraction"]
[null,"WACC,,,ARG-MEN,","WACC","","","ARG-MEN","",0.15031035355923136,"fraction"]
[null,"WACC,,,ARG-MIS,","WACC","","","ARG-MIS","",0.15031035355923136,"fraction"]
[null,"WACC,,,ARG-NEG,","WACC","","","ARG-NEG","",0.15031035355923136,"fraction"]
[null,"WACC,,,ARG-NEU,","WACC","","","ARG-NEU","",0.15031035355923136,"fraction"]
[null,"WACC,,,ARG-PAM,","WACC","","","ARG-PAM","",0.15031035355923136,"fraction"]
[null,"WACC,,,ARG-RIO,","WACC","","","ARG-RIO","",0.15031035355923136,"fraction"]
[null,"WACC,,,ARG-SAF,","WACC","","","ARG-SAF","",0.15031035355923136,"fraction"]
[null,"WACC,,,ARG-SAJ,","WACC","","","ARG-SAJ","",0.15031035355923136,"fraction"]
[null,"WACC,,,ARG-SAL,","WACC","","","ARG-SAL","",0.15031035355923136,"fraction"]
[null,"WACC,,,ARG-SAT,","WACC","","","ARG-SAT","",0.15031035355923136,"fraction"]
[null,"WACC,,,ARG-TUC,","WACC","","","ARG-TUC","",0.15031035355923136,"fraction"]
[null,"WACC,,,AUS,","WACC","","","AUS","",5.0299999999999997E-2,"fraction"]
[null,"WACC,,,BRA,","WACC","","","BRA","",8.2832353577576984E-2,"fraction"]
[null,"WACC,,,CHL,","WACC","","","CHL","",5.5673211551852057E-2,"fraction"]
[null,"WACC,,,CHN,","WACC","","","CHN","",5.5673211551852057E-2,"fraction"]
[null,"WACC,,,COL,","WACC","","","COL","",7.0913593408014244E-2,"fraction"]
[null,"WACC,,,CRI,","WACC","","","CRI","",0.10395003232720652,"fraction"]
[null,"WACC,,,DNK,","WACC","","","DNK","",5.0299999999999997E-2,"fraction"]
[null,"WACC,,,DZA,","WACC","","","DZA","",9.1999999999999998E-2,"fraction"]
[null,"WACC,,,EGY,","WACC","","","EGY","",0.11336853373134342,"fraction"]
[null,"WACC,,,ESP,","WACC","","","ESP","",6.4274782725559448E-2,"fraction"]
[null,"WACC,,,IDN,","WACC","","","IDN","",7.0913593408014244E-2,"fraction"]
[null,"WACC,,,IND,","WACC","","","IND","",7.237045402218821E-2,"fraction"]
[null,"WACC,,,JOR,","WACC","","","JOR","",9.9049682988621379E-2,"fraction"]
[null,"WACC,,,KAZ,","WACC","","","KAZ","",7.3401485154905771E-2,"fraction"]
[null,"WACC,,,KEN,","WACC","","","KEN","",0.10989380084781369,"fraction"]
[null,"WACC,,,MAR,","WACC","","","MAR","",7.731973992583685E-2,"fraction"]
[null,"WACC,,,MAR-BEN,","WACC","","","MAR-BEN","",7.731973992583685E-2,"fraction"]
[null,"WACC,,,MAR-CAS,","WACC","","","MAR-CAS","",7.731973992583685E-2,"fraction"]
[null,"WACC,,,MAR-DAK,","WACC","","","MAR-DAK","",7.731973992583685E-2,"fraction"]
[null,"WACC,,,MAR-DRA,","WACC","","","MAR-DRA","",7.731973992583685E-2,"fraction"]
[null,"WACC,,,MAR-FES,","WACC","","","MAR-FES","",7.731973992583685E-2,"fraction"]
[null,"WACC,,,MAR-GUE,","WACC","","","MAR-GUE","",7.731973992583685E-2,"fraction"]
[null,"WACC,,,MAR-LAA,","WACC","","","MAR-LAA","",7.731973992583685E-2,"fraction"]
[null,"WACC,,,MAR-LOR,","WACC","","","MAR-LOR","",7.731973992583685E-2,"fraction"]
[null,"WACC,,,MAR-MAR,","WACC","","","MAR-MAR","",7.731973992583685E-2,"fraction"]
[null,"WACC,,,MAR-RAB,","WACC","","","MAR-RAB","",7.731973992583685E-2,"fraction"]
[null,"WACC,,,MAR-SOU,","WACC","","","MAR-SOU","",7.731973992583685E-2,"fraction"]
[null,"WACC,,,MAR-TAN,","WACC","","","MAR-TAN","",7.731973992583685E-2,"fraction"]
[null,"WACC,,,MEX,","WACC","","","MEX","",6.4274782725559448E-2,"fraction"]
[null,"WACC,,,MRT,","WACC","","","MRT","",9.1999999999999998E-2,"fraction"]
[null,"WACC,,,NAM,","WACC","","","NAM","",8.3993056414234241E-2,"fraction"]
[null,"WACC,,,NOR,","WACC","","","NOR","",5.0299999999999997E-2,"fraction"]
[null,"WACC,,,PER,","WACC","","","PER","",6.4274782725559448E-2,"fraction"]
[null,"WACC,,,PRT,","WACC","","","PRT","",7.3401485154905771E-2,"fraction"]
[null,"WACC,,,RUS,","WACC","","","RUS","",7.5170549034228915E-2,"fraction"]
[null,"WACC,,,SAU,","WACC","","","SAU","",5.5673211551852057E-2,"fraction"]
[null,"WACC,,,SWE,","WACC","","","SWE","",5.0299999999999997E-2,"fraction"]
[null,"WACC,,,THA,","WACC","","","THA","",6.4274782725559448E-2,"fraction"]
[null,"WACC,,,TUN,","WACC","","","TUN","",0.11482300617243665,"fraction"]
[null,"WACC,,,UKR,","WACC","","","UKR","",0.1266281397634636,"fraction"]
[null,"WACC,,,URY,","WACC","","","URY","",7.731973992583685E-2,"fraction"]
[null,"WACC,,,USA,","WACC","","","USA","",5.0299999999999997E-2,"fraction"]
[null,"WACC,,,VNM,","WACC","","","VNM","",8.9280207439799461E-2,"fraction"]
[null,"WACC,,,ZAF,","WACC","","","ZAF","",7.8066629268261314E-2,"fraction"]
[null,"WACC,,,ZAF-EC,","WACC","","","ZAF-EC","",7.8066629268261314E-2,"fraction"]
[null,"WACC,,,ZAF-FRS,","WACC","","","ZAF-FRS","",7.8066629268261314E-2,"fraction"]
[null,"WACC,,,ZAF-GAU,","WACC","","","ZAF-GAU","",7.8066629268261314E-2,"fraction"]
[null,"WACC,,,ZAF-KWA,","WACC","","","ZAF-KWA","",7.8066629268261314E-2,"fraction"]
[null,"WACC,,,ZAF-LIM,","WACC","","","ZAF-LIM","",7.8066629268261314E-2,"fraction"]
[null,"WACC,,,ZAF-MPU,","WACC","","","ZAF-MPU","",7.8066629268261314E-2,"fraction"]
[null,"WACC,,,ZAF-NC,","WACC","","","ZAF-NC","",7.8066629268261314E-2,"fraction"]
[null,"WACC,,,ZAF-NW,","WACC","","","ZAF-NW","",7.8066629268261314E-2,"fraction"]
[null,"WACC,,,ZAF-WC,","WACC","","","ZAF-WC","",7.8066629268261314E-2,"fraction"]
["/data"]